{"text_format":"1","workbook":"xlsx","n_sheets":11,"sheets":["Verificaciones","BD","POA","Puntajes","Capacidad Financiera","Puntaje Exp","Puntaje CT","Puntaje CF","Saldo Ctos Ejecución","PO","Formato Contratos En Ejecucion"],"not_rendered":{"charts":0,"images":0,"macros":1,"external_links":1,"defined_names":21,"comments":1,"pivot_tables":0},"unopened":[],"bounds":{"document_bytes":16777216,"sheet_cells":100000,"rows_first":2000,"rows_last":500,"rows_between":2000,"halvings":0,"cell_chars":16384,"cell_head_chars":4096},"cells_cut":0,"cells_raw":0,"read":"whole","date_system":"1900"}

{"sheet":"Verificaciones","index":0,"n_rows":35,"n_cols":23,"rows_kept":35,"cut":false,"hidden":true,"merged":[[34,2,37,21],[3,19,3,22],[3,1,4,2],[3,3,4,3],[3,15,3,18],[3,4,3,14],[6,1,12,1],[14,1,20,1],[21,1,25,1],[26,1,30,1]]}
[]
[]
[]
[null,"No. Oferta",null,"OFERENTE","Verificación Formulario No. 03",null,null,null,null,null,null,null,null,null,null,"Datos Declaración Renta 2003",null,null,null,"Variación"]
[null,null,null,null,"Activo Corriente","Activo Fijo","Otros Activos","Total Activo","Pasivo Corriente","Pasivo Mediano y Largo Plazo","Total Pasivo","Patrimonio","Total Pasivo + Patrimonio","Utilidad Antes de Impuesto","Utilidad Neta","Patrimonio Bruto","Total Pasivo","Patrimonio Liquido","Renta Liquida","Patrimonio Bruto","Total Pasivo","Patrimonio Liquido","Renta Liquida"]
[]
[null,1,null,"CONSORCIO LAS ANIMAS #1"]
[null,null,1.1000000000000001,"GERMA TORRES SALGADO",661279000,586850000,null,{"$f":"SUM(E8:G8)","v":1248129000},133995725,243009275,{"$f":"SUM(I8:J8)","v":377005000},{"$f":"+H8-K8","v":871124000},{"$f":"+K8+L8","v":1248129000},89170000,65583000,1248129000,353418000,894711000,93656000,{"$f":"(H8-P8)/P8","v":0},{"$f":"+(K8-Q8)/Q8","v":6.673966804180885E-2},{"$f":"(L8-R8)/R8","v":-2.6362702593351373E-2},{"$f":"(O8-S8)/S8","v":-0.29974587853421031}]
[null,null,1.2,"MARIO GIRALDO ENCISO",902790808,22582416,15532940,{"$f":"SUM(E9:G9)","v":940906164},69497421,467428657,{"$f":"SUM(I9:J9)","v":536926078},403980086,{"$f":"+K9+L9","v":940906164},18766695,20396695,null,null,null,null,{"$f":"(H9-P9)/P9","v":{"$error":"#DIV/0!"}},{"$f":"+(K9-Q9)/Q9","v":{"$error":"#DIV/0!"}},{"$f":"(L9-R9)/R9","v":{"$error":"#DIV/0!"}},{"$f":"(O9-S9)/S9","v":{"$error":"#DIV/0!"}}]
[null,null,1.3,"MANUEL MOSQUERA",300353422,251940082,69532472,621825976,153716887,54587444,208304331,413521645,621825976,16241438,16221673,611957000,208285000,403672000,17042000,1.6126910877725067E-2,9.2810331997023312E-5,2.4400119403872451E-2,-4.8135606149512969E-2]
[null,null,1.4,"JORGE DE JESUS E.",506655816,152054516,245059330,903769662,137779007,42562365,180341372,723428291,903769663,50395207,42647207,903769000,180341000,723428000,46988000,7.3248805834234188E-7,2.0627588845575881E-6,4.0225150256832744E-7,-9.2380884481144121E-2]
[null,null,1.5,"REPRESENTA Y CONS PAI LTDA",378072865,103601233,955950,482630048,36771662,134085789,170857451,311772597,482630048,15703386,7048986,482631000,170858000,311773000,22479000,-1.9725214501347823E-6,-3.2131945826358732E-6,-1.2926071212067754E-6,-0.68641905778726808]
[null,null,1.6,"ASFALTOS DE OCCID S.A.",69932426,460250218,107112095,637294739,29489669,80572256,110061925,527232814,637294739,8363847,3783847,637294000,110061000,527233000,11897000,1.1595903931309569E-6,8.4044302704863674E-6,-3.527852012298168E-7,-0.681949483062957]
[null,2,null,"CONCAY S.A.",40069494079,5482697057,13667555753,59219746889,21914617588,7301680273,29216297861,30003449028,59219746889,6682012591,6273203591,42778874000,22139102000,20639772000,1168027000,0.3843222448772261,0.31966950877230704,0.453671534162296,4.3707693323870078]
[null,3,null,"UNION TEMPORAL PAVIMENTACION DEL CHOCO"]
[null,null,3.1,"AULI FERNANDO VELANDIA M",1044688000,114208000,507125000,1666021000,89341000,920563000,1009904000,656117000,1666021000,82940000,65192000,1666021000,1009904000,656117000,82940000,0,0,0,-0.213986013986014]
[null,null,3.2,"HIFO S.A.",2210583412,1796245413,950172658,4957001483,578205453,2306752990,2884958443,2072043050,4957001493,126050800,81933020,4957002000,2884958000,2072044000,126051000,-1.042969117220449E-7,1.5355509508284004E-7,-4.5848447233746003E-7,-0.35000103132858923]
[null,null,3.3,"INFICAS S.A.",1128389590,497010730,450516529,2075916849,843827380,171544974,1015372354,1060544495,2075916849,150152888,84818888,2075917000,1014364000,1061553000,186669000,-7.2738938984554782E-8,9.9407510518906435E-4,-9.5002793077689012E-4,-0.54561877976525297]
[null,null,3.4,"CATOBRAS LTDA",null,null,null,0,null,null,0,null,0,null,null,null,null,null,null,{"$error":"#DIV/0!"},{"$error":"#DIV/0!"},{"$error":"#DIV/0!"},{"$error":"#DIV/0!"}]
[null,null,3.5,"CARLOS MARIO PALACIO CH",397516649,44535519,null,442052168,205584360,null,205584360,236467808,442052168,52120000,52120000,442053000,205584000,{"$f":"P20-Q20","v":236469000},52120000,-1.8821272562339809E-6,1.7511090357226243E-6,-5.0408298762205619E-6,0]
[null,null,3.6,"LUIS CORANDO VELAZQUEZ",230187357,487735892,9625046,727548295,117145481,76862715,194008196,533540099,727548295,null,null,727548000,194008000,533540000,null,4.0547152902626356E-7,1.0102676178301925E-6,1.855530981744574E-7,{"$error":"#DIV/0!"}]
[null,4,null,"CONSORCIO GOMGO 35"]
[null,null,4.0999999999999996,"MIGUEL EDGAR ALFONSO",940500000,220000000,19500000,1180000000,50000000,50000000,100000000,1080000000,1180000000,38000000,38000000,1180000000,100000000,1080000000,35000000,0,0,0,8.5714285714285715E-2]
[null,null,4.2,"ABEL FRANCISCO VALBUENA",1215892000,443008000,283790000,1942690000,374625000,55000000,429625000,1513065000,1942690000,47375000,47375000,1942690000,429625000,1513065000,47375000,0,0,0,0]
[null,null,4.3,"CESAR GOMEZ",2149248232,390736722,null,2539984954,1922763807,93405043,2016168850,523816104,2539984954,41060626,54549620,2539984000,2016168000,523816000,71993000,3.7559291712073775E-7,4.2159185147269473E-7,1.9854299983200209E-7,-0.24229272290361564]
[null,null,4.4000000000000004,"LUIS MAYORGA AGUIRRE",1286602000,529776000,367025000,2183403000,631956000,6584000,638540000,1544863000,2183403000,null,null,2183403000,638540000,{"$f":"P26-Q26","v":1544863000},null,0,0,0,{"$error":"#DIV/0!"}]
[null,5,null,"CONSORCIO PLAN VIAL CHOCO 2005"]
[null,null,5.0999999999999996,"VARGAS VELANDIA LTDA",3662005000,457085000,114779000,4233869000,530721000,160038000,690759000,3543110000,4233869000,457250000,297212000,4229443000,686333000,3543110000,457250000,1.0464734954460906E-3,6.4487646667142628E-3,0,-0.35000109349371239]
[null,null,5.2,"NACIONAL DE PAVIMENTOS LTDA",1345051857,622683311,1888148909,3855884077,235974264,1059293810,1295268074,2560616003,3855884077,211804765,128144765,1968115000,1295268000,672847000,239030000,0.95917620515061364,5.7131033886423504E-8,2.8056437838022612,-0.46389672844412833]
[null,null,5.3,"JAIME VARGAS GALINDO",68481000,248149000,1829723000,2146353000,20336000,1030069000,1050405000,1095948000,2146353000,63435000,51635000,2146353000,1050405000,1095948000,63435000,0,0,0,-0.18601718294317018]
[null,null,5.4,"VINDICO S.A.",9098479232,531593591,{"$f":"1377315265+27043045","v":1404358310},11034431133,1681476244,4212950518,5894426762,5140004372,11034431134,101528025,54379630,11007389000,5894427000,5112962000,122857000,2.4567254777677068E-3,-4.0377122322492076E-8,5.2889835676463073E-3,-0.55737458997045342]
[]
[]
[null,"OBSERVACIONES:"]
[null,null,"CONSORCIO LAS ANIMAS #1,,se subsana integrante 1,2porque no conciliacines  "]

{"sheet":"BD","index":1,"n_rows":440,"n_cols":5,"rows_kept":440,"cut":false,"hidden":true,"merged":[[0,12,2,12],[0,13,2,13],[0,14,2,14],[0,15,2,15],[0,16,2,16],[0,11,2,11],[0,4,2,4],[0,0,2,0],[0,1,2,1],[0,2,2,2],[0,3,2,3],[0,5,2,5],[0,6,2,6],[0,7,2,7],[0,8,2,8],[0,9,2,9],[0,10,2,10]]}
["PROPONENTE","ACTIVO CORRIENTE","ACTIVO TOTAL","PASIVO CORRIENTE","PASIVO TOTAL"]
[]
[]
["DIN DESARROLLO DE INGENIERIA",725256000,730287000,242772000,314919000]
["RT-TERRA S.A.S ",425000000,500000000,0,0]
["INTERESTUDIOS INGENIERIA ",1409393197,1981956977,101204660,375092525]
["JUAN AMADO LIZARAZO",3503200208,5076171451,499066086,1922837194]
["ESAO LTDA",3404833641,4525717988,675844461,2240857170]
["DPC INGENIEROS S.AS",840664949,840664949,319196008,499068939]
["MS INGENIEROS COLOMBIA S.AS."]
["MEDINA & RIVERA INGENIEROS ASOCIADOS S.A.S ",42456478993,2797936297,234817175,1074099589]
["CARLOS FERNANDO ANGEL PEREA",92339472,422954429,251254429,26865000]
["YOLANDA CABRERA BALCAZAR",1080341282,1639625550,465216320,465216320]
["JORGE ISAAC VELASQUEZ VARGAS",499772178,580272178,23348000,23348000]
["GRUPO METRO COLOMBIA S.A",1254046877,1272903631,90326298,90326298]
["INGESUELOS COLOMBIA LTDA",905939302,1140994223,92117132,326788462]
["VICTOR ARBOLEDA CORDOBA",1043760836,1937760836,39153416,761019416]
["ROADCON LTDA",658241837,877331500,297026580,416343048]
["INGENIEROS CONSULTORES INCORPORADOS LTDA",394586228,530858526,1065310,158195841]
["ERNESTO RAFAEL MERLANO MORALES",1000000,1000000,0,0]
["INTERDISEÑOS S.A",0,0,0,0]
["COPEBA LTDA",835256271,1158721679,215648716,232888813]
["LA VIALIDAD LTDA",1570627591,2670894176,310793143,705631299]
["CONSULTORES TECNICOS Y ECONOMICOS ",3309653000,3517834000,258375000,738051000]
["JOYCO S.A.S",3175302507,4398894848,426738104,426738104]
["GINPROSA INGENIERIA SL ",17752725528,18354187205,9617677456,10037674539]
["COMPAÑIA DE CONSULTORIA Y CONSTRUCCIONES LTDA",622699890,1090242220,144836203,144836203]
["SODICO S.A.S"," "," "," "," "]
["URBANISTA INGENIEROS S.A"]
["ESTRUCTURADOR COLOMBIA SAS",1428202815,1513500044,1056068758,1056068758]
["CONSULTORIA Y CONSTRUCCION LTDA CON Y CON",471291000,535366000,1000000,61938000]
["INTERVENTORIAS Y CONSULTORIAS EN INGENIERIA S.AS",423015168,457166337,15448205,53410625]
["PRODEINCOL S.A.S",1015917119,1304124719,280051000,304041000]
["INTERSA S.A",2073541000,2717687000,772740000,1640701000]
["DIEGO  FONSECA CHAVEZ",2295556051,2365448425,7383228,11143228]
["GEOTECNIA Y CIMIENTOS INGEOCIM LTDA",4357344531,4618657622,634070204,1501447765]
["CRA SERVICIOS S.A.S",1507730587,1507730587,406394370,1050171059]
["WILLIAN ARMANDO CRISTANCHO GARCIA",1152176600,1445167916,78361858,78361858]
["ECOVIAS S.A.S",1994801622,2236072136,778212111,778212111]
["BATEMAN INGENIEROS S.A.S",186310179,203476845,6907774,6907774]
["ELSA MARIA RUEDA LANDINEZ",300150235,557593231,9207158,52692739]
["PROEZA CONSULTORES SAS",6696542254,7187392854,2790117606,4271585509]
["JPS INGENIERIA SOCIEDAD ANONIMA ",2137403000,2184166000,571873000,1058612000]
["ARREDONDO MADRID INGENIEROS CIVILES (a:i:m) LIMITADA",7972994960,10750290836,2503349498,5565861116]
["COMPAÑÍA COLOMBIANA DE CONSULTORES S.A - CCC S.A",5127820027,7192974133,1289820709,3271696613]
["MYRIAM VIVIANA CASTLBLANCO VELA",140075413,680365715,41045164,81433766]
["JULIAN ARLY PEDRAZA JIMENEZ",231598442,306518442,1145650,{"$f":"+D47","v":1145650}]
["ANTONIO JOSE PEDRAZA JIMENEZ",422641403,648743223,11379202,33490177]
["CANO JIMENEZ ESTUDIOS S.A",12076120580,26452616717,5019990904,14947217226]
["GERARDO CORREDOR VILLALBA",705248881,1252533703,7327558,107378902]
["RESTREPO Y URIBE S.A.S",10946116056,12114861624,1924966232,7887985819]
["MARYLUZ MEJIA DE PUMAREJO",1017105917,1489647149,26069000,26069000]
["SERTIC S.A.S ",5566613579,5833488329,2128110742,2296040752]
["CGR S.A.S",773284933,1025353833,151208092,249348362]
["DIEGO IGNACIO ARENAS",0,0,0,0]
["MOLINA LOPEZ CONSTRUCIONES S.A.S",297800000,300000000,1,0]
["CONSTRUCIONES RMC SAS",0,0,0,0]
["JUAN CARLOS ROJAS ACERO",1961036880,2549639283,40818443,190938306]
["TECHNE LTDA",0,0,0,0]
["IPSUM INGENIEROS SAS",1016488,60903362,233827,{"$f":"+D60","v":233827}]
["FELD INGENIERIA LTDA",128813790,178813790,36564745,36564745]
["GUSTAVO ROSO GOMEZ",795709321,935709321,12619841,33786051]
["JAMES ALBERTO KAMMERER JIMENEZ",291386000,371386000,7702000,7702000]
["GEICOL S.AS",2201614818,2281916028,802652024,1129095345]
["MAB INGENIERIA DE VALOR S.A",4569174650,6713424846,1148965107,1148965107]
["INTERVENTORIAS Y CONSTRUCCIONES LTDA",781252250,862480150,463086300,463086300]
["SOCIEDAD TECNICA SOTA LTDA",0,0,0,0]
["JOSE WILMER CHILITO RIVADENEIRA",656617464,1134117464,1000000,206925514]
["LUIS ONESIMO ROSALES ORDOÑEZ",698296243,1922796243,11000000,{"$f":"+D69","v":11000000}]
["GNG INGENIERIA S.A.S",1864257378,3023281535,316203863,1273047695]
["INCOLTA INTERVENTORIAS Y CONSULTORIAS LTDA",297777403,557534287,25304108,41180453]
["CONSULTORIA Y CONSTRUCCIONES COLOMBIA",226667214,230982176,20757622,20757622]
["CIZALLA S.A.S",1730242069,3407167827,336681750,1683393139]
["SIGA INGENIERIA Y CONSULTORIA S.A SUCURSAL COLOMBIA",9939225668,15828521884,5099941285,5144575579]
["TRN INGENERIA Y PLANIFICACION DE INFRAESTRUCTURA S.A SUCURSAL COLOMBIA",7499974647,10540065059,4046910335,4046910335]
["RUTH ELENA TABARES",473214000,1263930000,20795000,199807000]
["CONSULTORIA CONSTRUHERCA LTDA",583212000,692140000,5854000,5854000]
["PROYECTOS E INTERVENTORIAS LTDA",6046748044,6312385656,2265649304,2592231586]
["MARTHA CECILIA ORDOÑEZ CAMPO",962221580,1732463833,156914378,835764180]
["DIEGO GERARDO ZAPATA ZUÑIGA",650289671,1173229023,55477653,168900783]
["CIVING INGENIEROS CONTRATISTAS S EN C",1505624460,2242849799,239961721,525106167]
["LKS COLOMBIA S.A.S",473359088,{"$f":"+B82","v":473359088},3359088,{"$f":"+D82","v":3359088}]
["GRUPO POSSO S.A.S",3925835657,5899229050,1750071261,1808060312]
["HUGO ALFREDO POSSO PRADO",1740890020,2204364173,468965558,677328690]
["CIC CONSULTORES DE INGENIERIA Y CIMENTACIONES S.A.S",0,0,0,0]
["MBM INGENIERIA S.A.S",557806783,562606873,1755000,60461700]
["TOP SUELOS INGENIERIA S.A.S",2849188502,3586386257,1810094901,2004133608]
["INPROTEKTO LIMITADA",760472921,1065091368,97390175,169451429]
["MIGUEL MORALES INGENIERIAS S.A.S",148484516,154359465,27059271,27059271]
["INGENIERIA Y CONSULTORIA INGECON S.A.S",1988177550,3411810370,634775914,951428813]
["PROYECTOS TECNICOS DE COLOMBIA PROYTECO S.A.S",2580793898,2957223104,174514168,1491748519]
["RODRIGO OSORIO OSORIO",524882644,606654000,928000,{"$f":"+D92","v":928000}]
["CONSULTORIA Y CONSTRUCCION LTDA ",471291000,535366000,1000000,61938000]
["ESTUDIOS TECNICOS S.A.S",51226432000,52791155000,31011374000,31011374000]
["HIDROVIAS S.A.S",1982128000,2109892000,1255183000,1690174000]
["INCOPLAN S.A",5432126070,7565688340,2042649216,2516728999]
["CIVILTEC INGENIEROS LIMITADA",2583116407,2735326720,746305669,1186136562]
["EDINTER S.A.S",1786953368,1832083768,64253626,64253626]
["DICONSULTORIA S.A",3973047703,4332046730,1126193208,1163693208]
["INGENIERIA DE PROYECTOS S.A.S",3664902910,4793075872,417879801,1306785735]
["ALEX JOAQUIN OSORIO ARAQUE",2282464518,2966804947,59281350,184781877]
["OSWALDO LUIS GUTIERREZ CHARRY",97528372,203154210,12555067,18060939]
["RAFAEL AUGUSTO ZAFRA DULCEY",433442101,481903101,26423616,43395216]
["PROYECTOS GEOTECNICOS AMBIENTALES VIALES Y DE INGENIEIRA S.A.S - PI SAS",449512984,717656957,77307688,184547784]
["RAMIRO MESA BARRERA",614233238,1528323644,66892684,215424766]
["MS INGENIEROS COLOMBIA S.AS.",2000000,2000000,1,0]
["JAIME GARZON CHICA",3359553823,4223083859,94227134,2076833236]
["URBANISTAS INGENIEROS",3252713368.6100001,3316310430.0900002,94352661.590000004,104365478.08]
["CONSULTORIA  INGENIERIA  ESTUDIOS ECONOMICOS  LIMITADA CITEC LTDA",103217643,164639765,5902799,5902799]
["CIVILTEC INGENIEROS LTDA",2583116407,2735326720,746305669,1186136562]
["CARLOS  ALBERTO PALTA MUNOZ",664390154,743932804,22626136,58227698]
["INGENIERIA INTEGRAL DE OBRAS INGEOBRAS S.A.S",2005078424,3441452937,378718253,1037473518]
["GEOTERRA CONSULTORES GEOTECNICOS S.A.S",386832521,420909950,165680389,165680389]
["NELSON HUMBERTO AREVALO ROJAS",535500000,947440000,5000000,5000000]
["JAIME ALBERTO MOLANO FAJARDO",390605000,528605000,5000000,259000000]
["COOPERATIVA D EPROFESIONALES DE COLOMBIA \" CREER EN LO NUESTRO\"",3776743730,4315551419,223255355,294177178]
["VICTOR G RODRIGUEZ RAMIREZ",42418345,55595444,3139474,38867834]
["B& H INGENIERIA  LTDA",563096543,801533464,30518459,74112828]
["PROVER INGENEIRIA URBANISMO Y CONSTUCCION S.L SUCURSAL COLOMBIA",2500620210,3872185822,335091128,1127122974]
["MAGDA PUENTES PRIETO",420124334,639663407,36262885,113997171]
["ARCELIA ARIAS DIAZ",590217804,994170604,37120891,285478109]
["PHI INGENEIRIA S.A.S",885333527,906747522,6233641,406233641]
["ERNESTO JOSE CUERVO MADERO",679078354,689598354,40532233,40532233]
["GERMAN ROBERTO RUED AREVALO",393886983,393886983,53363278,53363278]
["R-TERRA S.A.S",425000000,500000000,1,1]
["JORGE EMILIO MONTOYA GOYENECHE",432000000,502000000,1,1]
["CODIPRO LTDA",322566366,334391867,15627993,23192835]
["VIAS ALFA E.U",375929433,390562433,51135688,51135688]
["PROJEKTA LTDA",1186355193,1482894651,551335527,591999566]
["ANA ISABEL HENDE CARREÑO",649359502,891901502,56265209,250157782]
["ERJAR Y CIA S.A",1525147160,2057294798,191414580,191414580]
["GERMAN RAMIREZ BARBOSA",935199665,33776819,1654117435,507616690]
["CONCIC S.A.S",766399611,769578074,385676837,385676837]
["RD INGENEIROS CIVILES S.A.S",1227426882,1332686694,202049922,348240907]
["D&B INGENEIROS CIVILES S.A.S",858994551,1650241298,123782133,133649315]
["COMPAÑÍA COLOMBIANA DE CONSULTORES S.A - CCC S.A",5127820027,7192974133,1289820709,3271696613]
["PEYCO COLOMBIA"]
["GUSTAVO PEREZ MARIÑO",1740537106,3336462534,36238000,217567008]
["ROBERTO GUALDRON BULLA",700015400,889032800,194899094,194899084]
["EDGAR LOPEZ JURADO",244150930,474107603,17342083,17342083]
["JOSE DARIO FERNANDEZ RAMIREZ",761730323,917560548,6109000,20209000]
["OSCAR LISANDRO PASTRANA",385100000,399420000,2500000,7500000]
["PAVIMENTAR S.A",34662788220,89884914898,13587898135,44331564439]
["INFRAESTRUCTURA NACIONAL",1475955406,1502101446,182177490,833349163]
["YAMIL MONTENEGRO CALDERON",9441033661,10849537696,3490939102,7045902946]
["CONSTRUCTORA MONTECARLO VIAS  S.A.S"]
["INCITECO S.A.S",3102790556,3600864896,569514925,1641356107]
["CONSULTORIA Y CONSTRUCCIONES  DARLEV S.A.S",288526344,331101828,11456316,125956316]
["ALFONSO GOMEZ LEÓN",1319622736,1986411306,57093112,571877226]
["ROMULO TOBO USTEGUI",1798365257,2869277409,37261611,1284613358]
["JAIRO ARIAS MENDEZ",579429751,695174817,150000,115410341]
["CONSTRUVIAL LTDA",627258000,1197660858,8380000,277813000]
["BERNARDO ANCIZAR OSSA LOPEZ",16865020000,23351391000,7260939000,10530759000]
["COMPAÑÍA NACIONAL DE CONSTRUCTORES E.U",449311239,550519687,38638899,180900427]
["INARCO INGENIEROS LTDA",868790142,872990142,14172029,212434224]
["ICM INGENIEROS S.A",33606927414,49888039546,7554743432,20226739014]
["EAR INGENIEROS LTDA",4409825365,5618742721,134864506,1994499618]
["GEPAV S.A.S",1389593858,1530369429,385757926,385757926]
["ESTRUCTURAS ESPECIALES S.A",12870674636,15340262577,6984695419,7644349032]
["FERNANDO LOPEZ ROJAS",2671805572,4394237368,90563289,853063289]
["JAVIER FERNANDO LOPEZ VASQUEZ",765205776,1008232956,18636000,163457331]
["JR INGENIEROS LIMITADA",1298590982,1395058781,357839831,470675367]
["INCCA LTDA",370592042,1126158651,13701695,466859589]
["NUBIA YANETH ALVARADO TORRES",457971254,696086469,25238326,111297016]
["BERNARDO GIL ZAPATA",1658315929,2058232731,143877470,1209196097]
["REDES Y EDIFICACIONES S.A",33614367292,42420450001,23169664748,29518731978]
["CONVIAL S.A.S",4701529000,10134559000,1387518000,4212234000]
["INGENIERIA Y CIONSTRUCIONES S.A.S ",8182048000,12735747000,3233967000,5539840000]
["INGECON S.A",15959509780,20886947884,665437814,4542335203]
["EDIFICACIONES Y VIAS S.A",4779893000,6765189000,1363455000,4050697000]
["CARMELO JOAQUIN ROSALES AMELL",4724254680,8300262350,2139417356,3413562938]
["ATL INGENIEROS CONTRATISTAS LTDA",4481808609,7139401341,1510406484,4274047833]
["JULIO BAHAMON VANEGAS",860486568,973476921,103972270,192043380]
["INGENIERIA DE PROYECTOS AML S.A.S",595435000,675435000,161950000,161950000]
["VIAS Y CANALES S.A.S",2006029000,3192576000,191029000,1892799000]
["JOSE CAMILO CASTRO RUIZ",1183488111,1421208506,8714800,159640300]
["MARIA JULIANA LOZANO SEPULVEDA",1227640605,2169036605,101548000,812694000]
["FRANCISCO NEFTALI SERPA ANAYA",342962786,821101886,40066154,224546037]
["ERWIN CARDENAS SCHENEEMAN",1641144835,2144962489,13494071,999724748]
["FIDEL MODESTO MOSQUERA ORDOÑEZ",282973205,525410526,22957610,103770128]
["CASTRO TCHERASSI S.A",84343749463,160679150088,53087883033,83174426891]
["EDUARDO PEDRAZA RINALDY",1088714572,1776306536,65823222,410636755]
["LUIS FERNANDO HOYOS PEREZ",2050605225,2192627853,334117109,567383034]
["VICTOR RAUL NEIRA DELBASTO",655031118,1193217118,45225855,291716076]
["CONSTCAT INTERNACIONAL AI.E SUCURSAL COLOMBIA",290505909985,374938983590,163486163583,220650173436]
["CADSA S.A.S",1562224060,1847757066,504980407,877134117]
["WANKA INGENEIRIA S.A.S",705333022,881498026,4299989,68756109]
["JOSE ALBERTO ROJAS PRIETO",1380270604,1560758294,11580000,78538677]
["OLT LOGISTICS S.A.S",9115280000,12375300000,60145000,60145000]
["OLT CONSTRUCTORES EU",1415446865,1771428976,23369307,206152819]
["CONSTRUSOCIAL S.A.S",2634507941,2863994465,282396225,1467098800]
["CDF INGENEIRIA S.A.S",130000000,{"$f":"+B192","v":130000000},1300000,1300000]
["GERMAN VILLANUEVA CALDERON",3508144111,5453128793,181175003,2610309557]
["ASFALTAR S.A",6919279449,16175298162,2423816472,8081540951]
["HIFO S.A",5494249063,7418127851,1454428123,2555790933]
["CONSTRUCIONES Y CONSULTORIAS E INTERVENTORIAS DE OBRAS CIVILES",2015756000,2742365000,79609000,1096155000]
["SOCIEDAD CONSORCIO PROESCO S.A.S",488315000,619243000,2135000,92035000]
["MANUEL ALBERTO MARTINEZ RODRIGUEZ",938811000,1401803000,6349000,129350000]
["KEVIN ALBERTO VILLEGAS DE LA HOZ",759500000,823000000,3445000,116895000]
["RAFAEL ANGEL CEPEDA CORONADO"]
["GUILLERMO LEON ACERO CASTELLANOS",1168634059,1300876751,66424362,148907132]
[{"$f":"+A201","v":"GUILLERMO LEON ACERO CASTELLANOS"}]
["TORRESCAMARA Y CIA DE OPBRAS S.A",107453764636,131402690330,63122091751,88350475926]
["RSM CIA S.A.S",4781966824,6313529691,383294420,2069956824]
["OSCAR ALBERTO GUZMAN TRIVIÑO",1162026000,1658459605,796000,959025000]
["FREDY AUGUSTO CASTAÑEDA",1570900000,2685900000,23415788,330707788]
["GOMEZ INGENIEROS CONSTRUCTORES S.A.S",1171610642,1355192157,3949429,311109838]
["FREDY ISAAC MEJIA JIMENEZ",836840938,1502126816,20000000,20000000]
["PATRICIA HELENA MEJIA VERGEL",315028663,855689731,50000000,5000000]
["ASFALTOS LA HERRERA S.A.S ",8014794988,12231707718,2939001585,6991393531]
["WILLIAM ANGEL MENDIETA",481827076,926965676,15620462,333368708]
["JOSE DARIO OSOSRIO BOTERO",760251136,1331806565,60760000,159760000]
["HORACIO VEGA CARDENAS",3379180000,5063464000,104162000,365135000]
["VNF  S.A",3588164863,7215498616,751670617,1507473395]
["ZIGURAT INGENIERIA S.A.S                                            ",1372217167,1377677006,368815683,420575488]
["GUILLERMO BURGOS GRILLO",1543049860,4407146683,58824031,504084752]
["URIEL EDGARDO HERNANDEZ GAITAN"]
["JUAN CARLOS BIRCEÑO CHAVEZ"]
["JAIRO LUIS SOCARRAS BONILLA",507500000,989500000,6900000,18600000]
["CONSTRUCCIONES Y OBRAS DE INGENIERIA S.A.S",2838279942,2838279942,25683000,525683000]
["LUIS ALBERTO COBA CHOLE",2052590445,3105849845,9467499,9467499]
["MANUEL ANTONIO BUSTAMANTE CIFUENTES ",333923220,395923220,9408174,110666252]
["CESAR AUGUSTO CONRADO COTES",93452431,210932431,3430000,64667000]
["JORGE EDUARDO BORGOGNO ARANGO",746467262,1536467262,3000000,73000000]
["RENE LOPEZ ROAS",761036193,864036193,4956284,109206785]
["ARMANDO MARTINEZ SPADAFORA",1138683072,1405073072,10622318,10622318]
["ORLANDO ENRIQUE JIMENO GOMEZ",710810000,923810000,55000000,55000000]
["ICG PROYECTOS S.A.S",1218799762,1925999762,257538709,960438709]
["CARLOS ALBERTO VILLEGAS LOPERA",3245173499,4913821923,365127889,{"$f":"+D229","v":365127889}]
["VIAS S.A",8370081000,14192586000,1845967000,4218932000]
["JOSE MINGAN SANCHEZ",704083720,924458545,245000,2597500]
["JUAN FRANCISCO MORILLO ROSERO",535280000,1152631000,2239000,179808000]
["INFRAESTRUCTURA COLOMBIA  S.A.S ",1199556957,3568381626,71508540,1661596967]
["NOARCO S.A",19222560395,27500199205,9527810247,16334836957]
["ALCA INGENEIRIA S.A.S",6687412493,10786384967,1867817310,6132624894]
["CONSTRUCIONES LAGO S.A.S",25936780475,38182607697,5730995236,14925786892]
["HENRY ACERO ROMERO"]
["WILSON ENRIQUE ARANZALES RINCON"]
["ROGELIO ARDILA TORRES",4379780958,7797336247,368214922,3670966323]
["P&J CONSULTORIA Y CONSTRUCIONES LTDA",834980608,1194681766,67072322,67072322]
["PAVIMENTOS EL DORADO S.A.S",3839910826,12096034311,326829645,6942488842]
["JORGE DIAZ MURCIA",4603110474,9341092937,67281094,2986005320]
["LUIS ANTONIO ROJAS GIRON",1963952840,2148041941,210171142,349282474]
["VIACOL INGENIEROS CONTRATISTAS LTDA",114915162,263149162,1980000,1980000]
["EXCARVAR S.A.S",10443392848,13301107836,1017881770,4714702721]
["CI GRODCO S EN CA  INGENIEROS CIVILES ",193437543000,246758025000,85462608000,132524472]
["WILLIAN RICARDO MOJICA ROMO",895479000,1225479000,16030400,416030400]
["JAIRO ENRIQUE VIVEROS CHAVEZ",741304868,1476509673,10191151,387214218]
["CARLOS ALBERTO VILLEGAS  LOPERA",3245173499,4913821923,365127889,365127889]
["BALLEN BY CIA S.A.S",2562277432,3703921058,801996266,2166011382]
["SYS INGENIERIA CIVIL  LTDA",527719632,1115931444,38199185,500714448]
["INTRUCON LTDA",718836431,897666205,136368347,503115187]
["PAVIOBRAS LTDA",1575564591,2027359591,638001814,638001814]
["MARAN LTDA"]
["REYES Y RIVEROS LTDA"]
["SOFÁN INGENIERIA S.A.S",4676728106,6459707549,33474336,1233129666]
["CARLOS EDUARDO ROJAS ZAMBRANO",1300293484,1795930258,35061700,151635800]
["JOSE FERNANDO ANGULO CORTES",833293742,1473013480,52569770,400339308]
["JUAN CAMILO SILVA RODRIGUEZ",2707076716,4822316672,314446624,1370771564]
["MANUEL ANTONIO LEDEZMA MUÑOZ",1155018623,1736745203,68453783,403389878]
["MARAN LTDA",5123432454,5361539596,249297939,435422939]
["REYES Y RIVEROS LTDA",2506500320,4177305554,796269272,1660424097]
["HENRY ACERO ROMERO",724667130,1760276194,19622400,369622400]
["WILSON ENRIQUE ARANZALES RINCON",870351571,1079386980,23156597,179724120]
["JULIO BAHAMON VANEGAS"]
["INGENIERIA Y CONSTRUCCIONES S.A.S",8182048000,12735747000,3233967000,5539840000]
["EL CONDOR S.A",462892218000,809041674000,132565398000,188266252000]
["COSNTRUCTORA TAO LTDA"]
["EAR INGENIEROS  LTDA",4409825365,5618742721,134864506,1994499618]
["EDUARDO JOSE ALDANA ROBAYO",839388352,924388352,0,97113600]
["CONSTRUCTORA MP S.A",5028204961,10206908886,678346809,837074238]
["ML INGENIEROS S.A",1544987046,5236223121,468068646,959859390]
["KMC S.A.S",34289866513,40517405820,2642009040,20987041815]
["HARINSA NAVASFALT S.A",35777495826,36886750787,23462268503,28837631999]
["MANTENIMIENTOS VIALES ",349532725,352714225,34057640,34057640]
["CUMBRE INGENIERIA S.A.S",353887600,458436400,51584400,51584400]
["LUISA FERNANDA OCAMPO REY",212862078,690512226,4576052,313556002]
["PEDRO ALFONSO VARGAS",746993000,1635493000,3473000,375473000]
["MILTON HUGO GARZON HERMANDEZ",3228571000,4309871000,30709000,30709000]
["COOPERATIVA NACIONAL PARA LA ADMINISTRACION GESTION Y DESARROLLO D EENTIDADES TERRITORIALES- CONGETER LTDA",1260922783,1270429537,31238826,211889516]
["MIGUEL ALEJANDRO JIMENEZ DIAZ",1019664000,1722964000,11919000,311822000]
["MARCO ANTONIO POSADA HENAO",2166125087,3200345826,31507624,1607232684]
["CONGETER LTDA",602474298,787469052,4754370,192258420]
["CONSAU LTDA",1260922783,1270429537,31238826,211889516]
["OLAGER AGUDELO PRIETO",1438931102,2275031102,97634524,{"$f":"+D285","v":97634524}]
["ROVER ALCISA  COLOMBIA",238698887480,251663775044,153306316014,175921592760]
["CONSTRUCIONES AR & S LTDA",1012427790,2827856892,55610656,827149603]
["ROMULO TOBO USCATEGUI",1798365257,2869277409,37261611,1284613358]
["MBS SOLUTIONS S.A.S",1964976619,2151872207,39248827,128426006]
["VIAS Y CONSTRUCIONES",35035996178,65422438643,1746002758,32017498554]
["PROCOPAL S.A",94071835930,217474889050,46089416077,94258666823]
["CONSTRUCIONES AP S.A.S",10713187178,17813621474,5597150349,11725071758]
["SARIA S.A.S",2611351974,4353610756,892939575,2269801575]
["PROYECTOS Y VIAS S.A.S",7071089043,11427968565,2059105730,4501747259]
["VALORES Y CONTRATOS S.A",288833698191,481145606977,113392229712,260582896793]
["S&M INGENIERIA S.A.S",3057607780,4320478426,180198910,2866785161]
["ESTEBAN MACIAS VARGAS",298026729,821241729,5090000,{"$f":"+D297","v":5090000}]
["REYES RIVEROS LTDA",2506500320,4177305554,796269272,1660424097]
["NOVA SARMIENTO CONSTRUCCIONES LTDA",29740600,31459210,925400,925400]
["CONSTRUCCION Y DESARROLLO INGENIERIA S.A.S",3318227411,7480469927,2147932703,5387331030]
["UCOP CONSTUCCIONES S.A. SUCURSAL COLOMBIA",35162067170,44867159726,24437097377,29920261376]
["INFERCAL S.A ",14788552343,26291928676,4193280830,6727448312]
["HB ESTRUCTURAS METALICAS S.A",36884573277,75516556094,14582587054,38268091209]
["ESTYMA ESTUDIOS Y MANEJOS S.A",76002872246,137708983913,21741809941,60146338103]
["LUIS GONZALO ROBLES SAENZ",2550220632,3186620632,50000000,1685000000]
["VIGA INGENEIRIA S.A.S",535914098,613850476,76120443,457410921]
["DANIEL GONZALO ROBLES",59100000,251700000,1000000,15000000]
["JORGE ENRIQUE ROJAS ABRIL",3641410145,4692151386,23500000,111321225]
["INVERSIONES MONTEDIEZ S.A.S",40000000,4000000,1,1]
["SOCAR INGENEIRIA LTDA",19189270000,39066774000,4189485000,19393429000]
["CIMELEC INGENIERSO S.A.S",3347365621,3730199583,1453281028,2164615994]
["CONSTRUCCIONES VERA S.A",225619767452,322304405236,166199422177,223161301098]
["CONSTRUVIAS DE COLOMBIA S.A- CONSTRUVICOL S.A",39481624963,187755751621,23722779970,88769871274]
["SANTANDER ELIECER MAFIOLY CANTILLO",5383787148,6769283860,467601320,2044040733]
["EMPRESA DE PROYECTISTAS Y CONSTRUCTORES S.A.S",1879670573,1941684863,1241934681,1241934681]
["INGENIERA Y VIAS S.A.S INGEVIAS",23086391000,34781102000,11536498000,19360022000]
["JUAN  CARLOS LEDESMA GUTIERREZ",444804065,869912776,7802369,89423688]
["AURELIO GUTIERREZ CASTILLO",1627515097,2540784102,169697733,288493737]
["MARIO ALBERTO HUERTAS COTES",289458726144,661266863922,46727355857,246819631137]
["GRUPO GEA S.L SUCURSAL COLOMBIA",44470373093,106164239771,13459131813,43819025640]
["ANGEL OSWALDO ZAPATA CARDENAS",1168332152,2071942062,113624196,666807787]
["JUAN CARLOS DE LOS RIOS PINEDA",1132492504,1269892262,110153384,499816908]
["JUAN CARLOS RIOS RUETA",3866775013,7245983362,753185553,2218847768]
["BERAH CONSTRUCIONES S.A.S",1599036125,2593391621,59334963,529474652]
["PROYECTOS CIVILES Y TECNOLOGICOS S.A.S",1297035676,1437743826,280504529,531751367]
["IVAN DARIO RAMIREZ CARDONA",259740000,282740000,3180000,73170000]
["ARTURO JURADO ALVARAN",866490000,1101103000,38780000,438960000]
["SONACOL S.A.S",90292279328,159667047498,35678205588,110370402487]
["CONSTRUCCIONES RUBAU S.A SUCURSAL COLOMBIA",278745952615,425549618523,216927217241,265753362247]
["GERMAN TORRES SALGADO",3565106027,5187973217,569663244,2083742235]
["GTS CONSTRUCCIONES S.A.S",359602171,456107543,8329882,220100950]
["JULIO CESAR SALGADO GALEANO",1427079719,2278181060,400179461,1119089461]
["ALFONSO PARRA DE LOS RIOS",1168184946,2204834575,110826000,907124801]
["JORGE HERNAN LOPEZ CARVAJAL"]
["JOSE FERNANDO ZULUAGA DUQUE",1862138392,1960191592,452659831,1184198418]
["LOPECA LTDA",5304561527,7223916100,591145980,3966614668]
["TRAING LTDA",7390901158,10096586196,3543690349,4160168731]
["RG INGENIERIA LTDA",7621104962,13195204099,1936370093,5727051009]
["ENGICOL S.A.S",1808906077,2273704078,382342899,1382342999]
["MCI INGENIEROS CONTRATISTAS LTDA",5567524107,6477212761,900875370,3299862514]
["INGERCONSULTA S.A.S",349017843,354934423,4694211,120371560]
["PARRA Y CIA INGENIEROS CONSTRUCTORES",2014771000,2154100000,24435000,1123941000]
["SEÑALES Y VIAS S.A.S",259489560,1042087420,16744140,209996806]
["MEYAN S.A",87314996734,149911038300,33648058067,88937017800]
["EXPLANAN S.A",20754014000,29433255000,11258578000,13202684000]
["CI GRODCO S EN C INGENIEROS CIVILES",193437543000,246758025000,85462608000,132524472000]
["UCO S.A",8932351875,23033282754,1213478287,11991740801]
["KMA CONSTRUCCIONES S.A",163395204000,354276823000,105057652000,219208792000]
["COMPAÑIA DE TRABAJOS URBANOS S.A",9255163642,17513044617,2915533793,4853406719]
["AZUL SOLUCIONES Y ESPACIOS S.A.S",1072268721,1573494775,91304810,857971477]
["DARIO PEINADO SAAD",932885000,1861476000,22175000,88704000]
["JAIRO ENRIQUE VIVEROS CHAVES",74304868,1476509673,10191151,387214218]
["WILLIAM RICARDO MOJICA TOMO",895479000,1225479000,16030400,416030400]
["JAIME LEONARDO ROMO TAPIA",280555000,372624444,550000,550000]
["WILLIAM RICARDO MOJICA ROMO",895479000,1225479000,16030400,416030400]
["MOVIPETROL S.A.S",3394090285,4011087884,352623863,852864862]
["JUAN CARLOS RAMIREZ OSPINA",1331863024,1615969669,62798170,294133674]
["FERNANDO AUGUSTO RAMIREZ RESTREPO",811646166,915562086,112597150,283298288]
["CONSTRUCTORA VIAYCO LTDA",517519035,718869035,7448000,201574000]
["EDGAR ADOLFO HOYOS GARCIA",2690192996,5594636752,67468160,2347885440]
["CARLOS FERNANDO CORDOBA AVILES",3499363646,6687182438,490530014,1711092228]
["JUAN PABLO VEGA LLANOS",673477498,1201161443,73052087,444800439]
["JMV INGENIEROS",7165904988,9769230730,2149500410,4856328777]
["LYDCO INGENIERIA S.A.S",557417828,751256271,16966848,329875768]
["VIC S.A.S",2562063172,3581786743,1713137584,2013305450]
["VILLA HERNANDEZ Y CIA S.A.S",14750497541,23428538773,9479562500,11527264275]
["CONSULTORIA Y CONSTRUCCIONES DARLEV S.A.S",288526344,331101828,11456316,125956316]
["BOL INGENIEROS ARQUITECTOS S.A",16865020000,23351391000,7260939000,10530759000]
["IKON GROUP S.A.S",2801873018,4716860150,722593505,2805270135]
["CONSTRUCIONES E INVERSIONES BETA S.A.S-CONSINBE S.A.S",43969505671,50411274778,5168898676,26754211039]
["WILLIAM CARDONA OLMOS",2617383924,3077276682,194499419,343472790]
["JORGE EDAURDO BORGOGNO ARANGO",746467262,1536467262,3000000,73000000]
["LUIS FERNANDO BOTERO LONDOÑO",1301047733,2380454804,71167483,898073085]
["FRANKLIN RICARDO PIRAGUA ROA",384432000,482832000,2000000,80983000]
["GUSTAVO ALBERTO RODRIGUEZ CHAVARRO",326660697,1817591764,54083095,858993022]
["INGRID YOHANNA BARBOSA RUEDA",108439000,175199000,1500000,18500000]
["PROYECTOS DISEÑOS INGENIERIA ARQUITECTURA Y CONSTRUCCIONES LTDA",2817140895,3922607541,394690572,2115127230]
["ORLANDO ENRIQUE JIMENO",710810000,923810000,5500000,55000000]
["FERNANDO JIMENEZ ROA",3801389554,7253532247,384806351,3461476058]
["GERMAN ROBERTO RUEDA AREVALO",393886983,393886983,53363278,53363278]
["RAFAEL HUMBERTO ALVAREZ BUSTILLO",1567305080,2356092023,76000000,378173784]
["CARMELO  JOAQUIN GONZALEZ",4724254680,8300262350,2139417356,3413562938]
["CARMELO  JOAQUIN ROSALES AMELL",4724254680,8300262350,2139417356,3413562938]
["DONADO ARCE & COMPAÑÍA S.A.S",19729193462,20552965343,871779320,8206333068]
["TORRESCAMARA Y CIA DE OBRAS S.A",107453764636,131402690330,63122091751,88350475926]
["INGENIEIRA Y SUMINISTROS BROCA LTDA",4948881953,21828915513,2479013600,14869577871]
["SERVICIOS TECNICOS INDUSTRIALES PETROLEROS LTDA",14232570137,25735136260,6168142900,17609225413]
["BERNARDO ENRIQUE SALAS PARDO",2451187266,2458833616,126095841,220641529]
["SELMAC S.A.S",543214590,595583470,23477923,23477923]
["CONCRETOS EL DORADO S.A.S",8464028026,9572642173,373890365,8068091665]
["NESTOR ORLANDO CADENA",1789162536,2078384515,250010126,964347353]
["YERBALY HERNANCADENA LOZANO",1782101698,2232894378,28445722,437016182]
["REDES EDIFICACIONES S.A",33614367292,42420450001,23169664748,29518731978]
["CONSTRUCCION Y SANEAMIENTO AMBIENTAL LTDA",765605000,1708830000,58335000,458335000]
["CLAUDIA MARIA FERRERO",544450000,618450000,16700000,16700000]
["JORGE SERRANO",621300000,729100000,4150000,4150000]
["ANDRES JULIAN SERRANO CORZO",345520000,755520000,2600000,147600000]
["MAVICOL S.A.S",5334723859,6074808799,40344000,573086114]
["JAIME PUERTA ATEHORTUA",6719980015,13167507859,63077049,5395187697]
["ASDRUBAL GOMEZ ESPINDOLA",4325594425,5258094425,2826585,2260747190]
["JOSE IGANCIO QUINTERO",2021520541,2764832413,42734888,426766048]
["PROVISOCIAL S.A.S",11010296000,14071449000,646124000,10979865000]
["EISENHOWER ZAMORA GONZALEZ",6071397035,10473422229,163553173,1563553173]
["MINCIVIL S.A",169544786999,636649439358,41228774522,153024502665]
["LUIS CARLOS PABA ROYERO",1285221000,1876202000,19820000,428175000]
["SOFAN INGENEIRIA S.A.S",4676728106,6459707549,33474336,1233129666]
["EQUIPOS CONSTRUCCIONES Y OBRAS S.A",10704541388,23270393686,6229890087,9190150626]
["INGENIERIA Y CONTRATOS S.A.S",31541452000,32954931000,2213590000,4589656000]
["COINOBRAS LTDA",2015756000,2742365000,79609000,1096155000]
["MANUEL MARTINEZ RODRIGUEZ"]
["CONSTRUCCIONES LAGO S.A.S",25936780475,38182607697,5730995236,14925786892]
["INGESANDIA S.A.S",5312108990,5904770146,378574007,1686840448]
["EDIVIAL S.A",4779893000,6765189000,1363455000,4050697000]
["SAMAD INGENIERIA S.A.S",225000000,225000000,0,0]
["EDUARDO CABRERA DUSSAN",1138590085,1653481325,116918600,216918600]
["ROBERTO GARCIA RUEDA",940758524,1415393509,70554854,117281511]
["GILBERTO ACERO ROMERO",1497348505,2281448505,308000,216630826]
["ORLANDO RIVERA MORA",1208775650,1563475650,13964545,139258323]
["GTS CONSTRUCIONES S.A.S",359602171,456107543,8329882,220100950]
["BALLEN B Y CIA S.A.S",2562277432,3703921058,801996266,2166022382]
["SYS INGENIERIA CIVIL LTDA",527719632,1115931444,38199185,500714448]
["PEDRO JUAN NAVARRO",349316072,642122522,31958000,31958000]
["GRUPO PINDER S.A.S",967540824,971636367,50699645,364719117]
["COLOMBIANA DE INGENIERIA- COLINGENIERIAS",152777638,210273647,5016629,130786629]
["ECOVIAS S.A",2749027485,5917087141,1079158739,2701760000]
["ALFONSO GOMEZ LEON",1319622736,1986411306,57093111,571877226]
["GERMAN ENRIQUE IBAÑEZ",414390000,821890000,398000,99098000]
["LATINCO S.A",59046407000,127790322000,16786941000,67595557000]
["CONSTRUCTORA FG S.A",15227678860,30530778737,5233985527,9997482509]
["JOSE GABRIEL VARGAS  CARVAGAL",1332379607,2061209161,152418088,676385836]
["VINCOL S.A.S",868642018,1185729174,291912741,567812980]
["COINSO S.A.S",647040279,838084264,259010289,413071289]
["EQUIPOS Y TRITURADOS S.A",14161575141,22620071035,2112502122,5605455095]
["CONSTRUCCIONES BENAVIDES LTDA",6157178966,9353213022,588070091,2667920410]
["PROMOTORA NACIONAL DE CONSTRUCCIONES  S.A.S",1012228555,1394347714,149333957,492179434]
["CONSTRUCTORA INTERNACIONAL CONSCAT A.I.E SUCURSAL COLOMBIA",290505909985,374938983590,163486163583,220650173436]
["NACIONAL DE PAVIMENTOS S.A",6065764000,10424217000,1539916000,4072787000]
["OBRAS CIVILES COLOMBIANAS S.A.S",303475099,326802785,29872314,29872314]
["URBAMED INFRAESTRUCTURA SLU",2653965654.7697415,2984004799.0834217,1748193371.1940994,1785865826.2142298]
["AULI VELANDIA VELANDIA MEDINA",5962786283,6902066927,621431975,975725537]

{"sheet":"POA","index":2,"n_rows":5,"n_cols":6,"rows_kept":5,"cut":false,"hidden":false,"merged":[]}
["Modulo","PO","N","Anticipo",null,"SMMLV 2014"]
[1,4167150295,3,{"$f":"+B2*0.1","v":416715029.5},null,616000]
[2]
[3]
[4]

{"sheet":"Puntajes","index":3,"n_rows":16,"n_cols":8,"rows_kept":16,"cut":false,"hidden":false,"merged":[[1,1,1,3],[9,1,9,3],[1,5,1,7]]}
[]
[null,"EXPERIENCIA",null,null,null,"CAPACIDAD TÉCNICA"]
[null,"Mayor a","Menor o Igual a","Puntaje",null,"Desde","Hasta","Puntaje"]
[null,0,3,60,null,1,5,20]
[null,3,6,80,null,6,10,30]
[null,6,10,100,null,11,"Mayores",40]
[null,10,"Mayores",120]
[]
[]
[null,"CAPACIDAD FINANCIERA"]
[null,"Mayor a","Menor o Igual a","Puntaje"]
[null,0,0.5,20]
[null,0.5,0.75,25]
[null,0.75,1,30]
[null,1,1.5,35]
[null,1.5,"Mayores",40]

{"sheet":"Capacidad Financiera","index":4,"n_rows":781,"n_cols":31,"rows_kept":781,"cut":false,"hidden":false,"merged":[[6,28,6,29],[7,28,7,29],[7,30,9,30],[6,21,6,22],[7,21,7,22],[6,26,6,27],[7,26,7,27],[6,24,6,25],[7,1,9,1],[7,13,9,13],[7,23,9,23],[7,16,7,17],[7,18,7,19],[7,6,9,6],[7,20,9,20],[7,3,9,3],[7,5,9,5],[7,7,9,7],[0,1,0,23],[3,1,3,30],[2,1,2,30],[1,1,1,30],[7,15,9,15],[7,12,9,12],[7,14,9,14],[7,11,9,11],[7,2,9,2],[7,8,9,8],[7,4,9,4],[6,1,6,3],[6,16,6,17],[6,18,6,19],[6,4,6,8],[4,1,4,30]]}
[]
[null,"INSTITUTO NACIONAL DE VIAS "]
[null,"DIRECCIÓN DE CONTRATACIÓN"]
[null,"LICITACIÓN PÚBLICA No. LP-DO-SRN-XXX-2014"]
[null,"EVALUACIÓN FINANCIERA"]
[]
[null,"DATOS DEL INTERESADO",null,null,"INFORMACIÓN  FINANCIERA - RUP",null,null,null,null,null,null,null,null,null,null,null,"INDICE-LIQUIDEZ",null,"INDICE-ENDEUDAMIENTO",null,null,"RAZON DE COBERTURA DE INTERESES",null,"EVALUACIÓN CAPACIDAD FINANCIERA","CALIDAD DE MIPYME",null,"RENTABILIDAD DEL PATRIMONIO (ROE)",null,"RENTABILIDAD DEL ACTIVO (ROA)",null,"EVALUACIÓN CAPACIDAD ORGANIZACIÓN"]
[null,"OFERTA","PROPONENTE","PORCENTAJE DE PARTICIPACION","ACTIVO CORRIENTE","ACTIVO TOTAL","PASIVO CORRIENTE","PASIVO TOTAL","PATRIMONIO     (Activo Total - Pasivo Total )",null,null,"MÓDULO","PLAZO","MODULOS ADJUDICADOS","VALOR CAPITAL DE TRABAJO DEMANDADO MODULOS ADJUDICADOS","VALOR PRESUPUESTO OFICIAL ANUAL(PO)","Fórmula: Liquidez=AC/PC>=1,2",null,"Fórmula: Endeudamiento=Pas.T/Act.Tot.<=70%",null,"VALOR PATRIMONIO REQUERIDO MODULOS ADJUDICADOS","Fórmula:                        Razon Cobertura Intereses=UO/GI>=1,0",null,"HABIL/NO HABIL","SMMLV 2011",535600,"Fórmula:                        ROE=UO/Pat.>=3%",null,"Fórmula:                        ROA=UO/Act.Tot.>=1%",null,"HABIL/NO HABIL"]
[null,null,null,null,null,null,null,null,null,"UTILIDAD OPERACIONAL","GASTOS DE INTERESES",null,null,null,null,null,"Req. Min. Solvencia: > =",1.2,"Req. Min. Endeudamiento: < =",0.7,null,"Req. Min. Cobertura Intereses: > =",1,null,"SMMLV 2012",566700,"Req. Min. ROE: > =",0.03,"Req. Min. ROA: > =",0.01]
[null,null,null,null,null,null,null,null,null,null,null,null,null,null,null,null,"INDICADOR","RESULTADO","INDICADOR","RESULTADO",null,"INDICADOR","RESULTADO",null,"CALIDAD DE MIPYME EN SMMLV",30000,"INDICADOR","RESULTADO","INDICADOR","RESULTADO"]
[]
[null,1,"CONVIAL S.A.S.",{"$f":"IF(SUM(D13:D22)=0,\"\",SUM(D13:D22))","v":1},{"$f":"SUM(E13:E22)","v":6053046144},{"$f":"SUM(F13:F22)","v":12281220650},{"$f":"SUM(G13:G22)","v":2192379442},{"$f":"SUM(H13:H22)","v":4939465837},{"$f":"+F12-H12","v":7341754813},{"$f":"SUM(J13:J22)","v":2558742901},{"$f":"SUM(K13:K22)","v":449501180},1,{"$f":"IF(ISERROR(VLOOKUP(L12,POA!$A$2:$C$25,3,0)),\"\",VLOOKUP(L12,POA!$A$2:$C$25,3,0))","v":3}," ",{"$f":"+SUM(O13:O22)","v":0},{"$f":"IF(ISERROR(VLOOKUP(L12,POA!$A$2:$C$25,2,0)),\"\",VLOOKUP(L12,POA!$A$2:$C$25,2,0))","v":4167150295},{"$f":"SUM(E12/G12)","v":2.7609482318800178},{"$f":"IF(Q12=0,\"\",IF(Q12>=$R$9,\"HABIL\",\"NO HABIL\"))","v":"HABIL"},{"$f":"SUM(H12/F12)","v":0.40219665274070293},{"$f":"IF(S12=0,\"\",IF(S12<=$T$9,\"HABIL\",\"NO HABIL\"))","v":"HABIL"},{"$f":"+SUM(U13:U22)","v":0},{"$f":"SUM(J12/K12)","v":5.6924053035856321},{"$f":"IF(V12=0,\"\",IF(V12>=$W$9,\"HABIL\",\"NO HABIL\"))","v":"HABIL"},{"$f":"IF(R12=0,\"\",IF(R12=\"NO HABIL\",\"NO HABIL\",IF(T12=\"NO HABIL\",\"NO HABIL\",IF(W12=\"NO HABIL\",\"NO HABIL\",IF(W12=\"NO HABIL\",\"NO HABIL\",\"HABIL\")))))","v":"HABIL"},null,null,{"$f":"SUM(J12/I12)","v":0.34851925270907302},{"$f":"IF(AA12=0,\"\",IF(AA12>=$AB$9,\"HABIL\",\"NO HABIL\"))","v":"HABIL"},{"$f":"SUM(J12/F12)","v":0.20834597585379266},{"$f":"IF(AC12=0,\"\",IF(AC12>=$AD$9,\"HABIL\",\"NO HABIL\"))","v":"HABIL"},{"$f":"IF(AB12=0,\"\",IF(AB12=\"NO HABIL\",\"NO HABIL\",IF(AD12=\"NO HABIL\",\"NO HABIL\",IF(AD12=\"NO HABIL\",\"NO HABIL\",\"HABIL\"))))","v":"HABIL"}]
[null,{"$f":"IF(C13=\"\",\"\",B12+0.1)","v":1.1000000000000001},"CONVIAL S.A.S.",1,6053046144,12281220650,2192379442,4939465837,{"$f":"IF(ISERROR(F13-H13),\"\",F13-H13)","v":7341754813},2558742901,449501180,null,{"$f":"IF(ISERROR(VLOOKUP(L13,POA!$A$2:$C$25,3,0)),\"\",VLOOKUP(L13,POA!$A$2:$C$25,3,0))","v":""}," ",{"$f":"IF(ISERROR(VLOOKUP(N13,POA!$A$2:$F$25,4,0)),\"\",VLOOKUP(N13,POA!$A$2:$F$25,4,0))","v":""},{"$f":"IF(ISERROR(VLOOKUP(L13,POA!$A$2:$C$25,2,0)),\"\",VLOOKUP(L13,POA!$A$2:$C$25,2,0))","v":""},null,{"$f":"IF(Q13=0,\"\",IF(Q12>=$R$9,\"HABIL\",\"NO HABIL\"))","v":""},null,{"$f":"IF(S13=0,\"\",IF(S13<=$T$9,\"HABIL\",\"NO HABIL\"))","v":""},{"$f":"IF(ISERROR(VLOOKUP(N13,POA!$A$2:$F$25,5,0)),\"\",VLOOKUP(N13,POA!$A$2:$F$25,5,0))","v":""},null,{"$f":"IF(V13=0,\"\",IF(V13>=$W$9,\"HABIL\",\"NO HABIL\"))","v":""},null,{"$f":"IF(ISERROR(F13/$Z$9),\"\",F13/$Z$9)","v":21671.467531321687},{"$f":"+IF(Y13<$Z$10,\"MIPYME\",\"NO CUMPLE\")","v":"MIPYME"},null,{"$f":"IF(AA13=0,\"\",IF(AA13>=$AB$9,\"HABIL\",\"NO HABIL\"))","v":""},null,{"$f":"IF(AC13=0,\"\",IF(AC13>=$AD$9,\"HABIL\",\"NO HABIL\"))","v":""}]
[null,"",null,null,null,null,null,null,{"$f":"IF(ISERROR(F14-H14),\"\",F14-H14)","v":0},null,null,null,{"$f":"IF(ISERROR(VLOOKUP(L14,POA!$A$2:$C$25,3,0)),\"\",VLOOKUP(L14,POA!$A$2:$C$25,3,0))","v":""}," ",{"$f":"IF(ISERROR(VLOOKUP(N14,POA!$A$2:$F$25,4,0)),\"\",VLOOKUP(N14,POA!$A$2:$F$25,4,0))","v":""},{"$f":"IF(ISERROR(VLOOKUP(L14,POA!$A$2:$C$25,2,0)),\"\",VLOOKUP(L14,POA!$A$2:$C$25,2,0))","v":""},null,{"$f":"IF(Q14=0,\"\",IF(Q12>=$R$9,\"HABIL\",\"NO HABIL\"))","v":""},null,"",{"$f":"IF(ISERROR(VLOOKUP(N14,POA!$A$2:$F$25,5,0)),\"\",VLOOKUP(N14,POA!$A$2:$F$25,5,0))","v":""},null,"",null,{"$f":"IF(ISERROR(F14/$Z$9),\"\",F14/$Z$9)","v":0},{"$f":"+IF(Y14<$Z$10,\"MIPYME\",\"NO CUMPLE\")","v":"MIPYME"},null,"",null,""]
[null,"",null,null,null,null,null,null,0,null,null,null,{"$f":"IF(ISERROR(VLOOKUP(L15,POA!$A$2:$C$25,3,0)),\"\",VLOOKUP(L15,POA!$A$2:$C$25,3,0))","v":""},null,{"$f":"IF(ISERROR(VLOOKUP(N15,POA!$A$2:$F$25,4,0)),\"\",VLOOKUP(N15,POA!$A$2:$F$25,4,0))","v":""},{"$f":"IF(ISERROR(VLOOKUP(L15,POA!$A$2:$C$25,2,0)),\"\",VLOOKUP(L15,POA!$A$2:$C$25,2,0))","v":""},null,{"$f":"IF(Q15=0,\"\",IF(Q12>=$R$9,\"HABIL\",\"NO HABIL\"))","v":""},null,"",{"$f":"IF(ISERROR(VLOOKUP(N15,POA!$A$2:$F$25,5,0)),\"\",VLOOKUP(N15,POA!$A$2:$F$25,5,0))","v":""},null,"",null,0,"MIPYME",null,"",null,""]
[null,"",null,null,{"$f":"IF(ISERROR(VLOOKUP(C16,#REF!,2,0)),\"\",VLOOKUP(C16,#REF!,2,0))","v":""},null,{"$f":"IF(ISERROR(VLOOKUP(C16,#REF!,4,0)),\"\",VLOOKUP(C16,#REF!,4,0))","v":""},null,{"$f":"IF(ISERROR(F16-H16),\"\",F16-H16)","v":0},null,null,null,{"$f":"IF(ISERROR(VLOOKUP(L16,POA!$A$2:$C$25,3,0)),\"\",VLOOKUP(L16,POA!$A$2:$C$25,3,0))","v":""},null,{"$f":"IF(ISERROR(VLOOKUP(N16,POA!$A$2:$F$25,4,0)),\"\",VLOOKUP(N16,POA!$A$2:$F$25,4,0))","v":""},{"$f":"IF(ISERROR(VLOOKUP(L16,POA!$A$2:$C$25,2,0)),\"\",VLOOKUP(L16,POA!$A$2:$C$25,2,0))","v":""},null,{"$f":"IF(L16=0,\"\",IF(Q12>=$R$9,\"HABIL\",\"NO HABIL\"))","v":""},null,"",{"$f":"IF(ISERROR(VLOOKUP(N16,POA!$A$2:$F$25,5,0)),\"\",VLOOKUP(N16,POA!$A$2:$F$25,5,0))","v":""},null,"",null,0,"MIPYME",null,"",null,""]
[null,"",null,null,{"$f":"IF(ISERROR(VLOOKUP(C17,#REF!,2,0)),\"\",VLOOKUP(C17,#REF!,2,0))","v":""},null,{"$f":"IF(ISERROR(VLOOKUP(C17,#REF!,4,0)),\"\",VLOOKUP(C17,#REF!,4,0))","v":""},null,0,null,null,null,{"$f":"IF(ISERROR(VLOOKUP(L17,POA!$A$2:$C$25,3,0)),\"\",VLOOKUP(L17,POA!$A$2:$C$25,3,0))","v":""},null,{"$f":"IF(ISERROR(VLOOKUP(N17,POA!$A$2:$F$25,4,0)),\"\",VLOOKUP(N17,POA!$A$2:$F$25,4,0))","v":""},{"$f":"IF(ISERROR(VLOOKUP(L17,POA!$A$2:$C$25,2,0)),\"\",VLOOKUP(L17,POA!$A$2:$C$25,2,0))","v":""},null,{"$f":"IF(L17=0,\"\",IF(Q12>=$R$9,\"HABIL\",\"NO HABIL\"))","v":""},null,"",{"$f":"IF(ISERROR(VLOOKUP(N17,POA!$A$2:$F$25,5,0)),\"\",VLOOKUP(N17,POA!$A$2:$F$25,5,0))","v":""},null,"",null,0,"MIPYME",null,"",null,""]
[null,"",null,null,{"$f":"IF(ISERROR(VLOOKUP(C18,#REF!,2,0)),\"\",VLOOKUP(C18,#REF!,2,0))","v":""},null,{"$f":"IF(ISERROR(VLOOKUP(C18,#REF!,4,0)),\"\",VLOOKUP(C18,#REF!,4,0))","v":""},null,0,null,null,null,{"$f":"IF(ISERROR(VLOOKUP(L18,POA!$A$2:$C$25,3,0)),\"\",VLOOKUP(L18,POA!$A$2:$C$25,3,0))","v":""},null,{"$f":"IF(ISERROR(VLOOKUP(N18,POA!$A$2:$F$25,4,0)),\"\",VLOOKUP(N18,POA!$A$2:$F$25,4,0))","v":""},{"$f":"IF(ISERROR(VLOOKUP(L18,POA!$A$2:$C$25,2,0)),\"\",VLOOKUP(L18,POA!$A$2:$C$25,2,0))","v":""},null,{"$f":"IF(L18=0,\"\",IF(Q12>=$R$9,\"HABIL\",\"NO HABIL\"))","v":""},null,"",{"$f":"IF(ISERROR(VLOOKUP(N18,POA!$A$2:$F$25,5,0)),\"\",VLOOKUP(N18,POA!$A$2:$F$25,5,0))","v":""},null,"",null,0,"MIPYME",null,"",null,""]
[null,{"$f":"IF(C19=\"\",\"\",B18+0.1)","v":""},null,null,{"$f":"IF(ISERROR(VLOOKUP(C19,#REF!,2,0)),\"\",VLOOKUP(C19,#REF!,2,0))","v":""},null,{"$f":"IF(ISERROR(VLOOKUP(C19,#REF!,4,0)),\"\",VLOOKUP(C19,#REF!,4,0))","v":""},null,{"$f":"IF(ISERROR(F19-H19),\"\",F19-H19)","v":0},null,null,null,{"$f":"IF(ISERROR(VLOOKUP(L19,POA!$A$2:$C$25,3,0)),\"\",VLOOKUP(L19,POA!$A$2:$C$25,3,0))","v":""},null,{"$f":"IF(ISERROR(VLOOKUP(N19,POA!$A$2:$F$25,4,0)),\"\",VLOOKUP(N19,POA!$A$2:$F$25,4,0))","v":""},{"$f":"IF(ISERROR(VLOOKUP(L19,POA!$A$2:$C$25,2,0)),\"\",VLOOKUP(L19,POA!$A$2:$C$25,2,0))","v":""},null,{"$f":"IF(L19=0,\"\",IF(Q12>=$R$9,\"HABIL\",\"NO HABIL\"))","v":""},null,"",{"$f":"IF(ISERROR(VLOOKUP(N19,POA!$A$2:$F$25,5,0)),\"\",VLOOKUP(N19,POA!$A$2:$F$25,5,0))","v":""},null,"",null,0,"MIPYME",null,"",null,""]
[null,{"$f":"IF(C20=\"\",\"\",B19+0.1)","v":""},null,null,{"$f":"IF(ISERROR(VLOOKUP(C20,#REF!,2,0)),\"\",VLOOKUP(C20,#REF!,2,0))","v":""},null,{"$f":"IF(ISERROR(VLOOKUP(C20,#REF!,4,0)),\"\",VLOOKUP(C20,#REF!,4,0))","v":""},null,{"$f":"IF(ISERROR(F20-H20),\"\",F20-H20)","v":0},null,null,null,{"$f":"IF(ISERROR(VLOOKUP(L20,POA!$A$2:$C$25,3,0)),\"\",VLOOKUP(L20,POA!$A$2:$C$25,3,0))","v":""},null,{"$f":"IF(ISERROR(VLOOKUP(N20,POA!$A$2:$F$25,4,0)),\"\",VLOOKUP(N20,POA!$A$2:$F$25,4,0))","v":""},{"$f":"IF(ISERROR(VLOOKUP(L20,POA!$A$2:$C$25,2,0)),\"\",VLOOKUP(L20,POA!$A$2:$C$25,2,0))","v":""},null,{"$f":"IF(L20=0,\"\",IF(Q12>=$R$9,\"HABIL\",\"NO HABIL\"))","v":""},null,"",{"$f":"IF(ISERROR(VLOOKUP(N20,POA!$A$2:$F$25,5,0)),\"\",VLOOKUP(N20,POA!$A$2:$F$25,5,0))","v":""},null,"",null,0,"MIPYME",null,"",null,""]
[null,{"$f":"IF(C21=\"\",\"\",B20+0.1)","v":""},null,null,{"$f":"IF(ISERROR(VLOOKUP(C21,#REF!,2,0)),\"\",VLOOKUP(C21,#REF!,2,0))","v":""},null,{"$f":"IF(ISERROR(VLOOKUP(C21,#REF!,4,0)),\"\",VLOOKUP(C21,#REF!,4,0))","v":""},null,{"$f":"IF(ISERROR(F21-H21),\"\",F21-H21)","v":0},null,null,null,{"$f":"IF(ISERROR(VLOOKUP(L21,POA!$A$2:$C$25,3,0)),\"\",VLOOKUP(L21,POA!$A$2:$C$25,3,0))","v":""},null,{"$f":"IF(ISERROR(VLOOKUP(N21,POA!$A$2:$F$25,4,0)),\"\",VLOOKUP(N21,POA!$A$2:$F$25,4,0))","v":""},{"$f":"IF(ISERROR(VLOOKUP(L21,POA!$A$2:$C$25,2,0)),\"\",VLOOKUP(L21,POA!$A$2:$C$25,2,0))","v":""},null,{"$f":"IF(L21=0,\"\",IF(Q12>=$R$9,\"HABIL\",\"NO HABIL\"))","v":""},null,"",{"$f":"IF(ISERROR(VLOOKUP(N21,POA!$A$2:$F$25,5,0)),\"\",VLOOKUP(N21,POA!$A$2:$F$25,5,0))","v":""},null,"",null,0,"MIPYME",null,"",null,""]
[null,{"$f":"IF(C22=\"\",\"\",B21+0.1)","v":""},null,null,{"$f":"IF(ISERROR(VLOOKUP(C22,#REF!,2,0)),\"\",VLOOKUP(C22,#REF!,2,0))","v":""},null,{"$f":"IF(ISERROR(VLOOKUP(C22,#REF!,4,0)),\"\",VLOOKUP(C22,#REF!,4,0))","v":""},null,{"$f":"IF(ISERROR(F22-H22),\"\",F22-H22)","v":0},null,null,null,{"$f":"IF(ISERROR(VLOOKUP(L22,POA!$A$2:$C$25,3,0)),\"\",VLOOKUP(L22,POA!$A$2:$C$25,3,0))","v":""},null,{"$f":"IF(ISERROR(VLOOKUP(N22,POA!$A$2:$F$25,4,0)),\"\",VLOOKUP(N22,POA!$A$2:$F$25,4,0))","v":""},{"$f":"IF(ISERROR(VLOOKUP(L22,POA!$A$2:$C$25,2,0)),\"\",VLOOKUP(L22,POA!$A$2:$C$25,2,0))","v":""},null,{"$f":"IF(L22=0,\"\",IF(Q12>=$R$9,\"HABIL\",\"NO HABIL\"))","v":""},null,"",{"$f":"IF(ISERROR(VLOOKUP(N22,POA!$A$2:$F$25,5,0)),\"\",VLOOKUP(N22,POA!$A$2:$F$25,5,0))","v":""},null,"",null,{"$f":"IF(ISERROR(F22/$Z$9),\"\",F22/$Z$9)","v":0},"MIPYME",null,"",null,""]
[null,2,"CONSORCIO VIC DROMOS",{"$f":"IF(SUM(D24:D33)=0,\"\",SUM(D24:D33))","v":1},{"$f":"SUM(E24:E33)","v":19310298148},{"$f":"SUM(F24:F33)","v":45979486554},{"$f":"SUM(G24:G33)","v":12152799048},{"$f":"SUM(H24:H33)","v":19900604620},{"$f":"+F23-H23","v":26078881934},{"$f":"SUM(J24:J33)","v":2831943682},{"$f":"SUM(K24:K33)","v":416206422},1,{"$f":"IF(ISERROR(VLOOKUP(L23,POA!$A$2:$C$25,3,0)),\"\",VLOOKUP(L23,POA!$A$2:$C$25,3,0))","v":3}," ",{"$f":"+SUM(O24:O33)","v":0},{"$f":"IF(ISERROR(VLOOKUP(L23,POA!$A$2:$C$25,2,0)),\"\",VLOOKUP(L23,POA!$A$2:$C$25,2,0))","v":4167150295},{"$f":"SUM(E23/G23)","v":1.5889588951261329},{"$f":"IF(Q23=0,\"\",IF(Q23>=$R$9,\"HABIL\",\"NO HABIL\"))","v":"HABIL"},{"$f":"SUM(H23/F23)","v":0.43281485095811145},{"$f":"IF(S23=0,\"\",IF(S23<=$T$9,\"HABIL\",\"NO HABIL\"))","v":"HABIL"},{"$f":"+SUM(U24:U33)","v":0},{"$f":"SUM(J23/K23)","v":6.8041806476498818},{"$f":"IF(V23=0,\"\",IF(V23>=$W$9,\"HABIL\",\"NO HABIL\"))","v":"HABIL"},{"$f":"IF(R23=0,\"\",IF(R23=\"NO HABIL\",\"NO HABIL\",IF(T23=\"NO HABIL\",\"NO HABIL\",IF(W23=\"NO HABIL\",\"NO HABIL\",IF(W23=\"NO HABIL\",\"NO HABIL\",\"HABIL\")))))","v":"HABIL"},null,null,{"$f":"SUM(J23/I23)","v":0.10859145300657581},{"$f":"IF(AA23=0,\"\",IF(AA23>=$AB$9,\"HABIL\",\"NO HABIL\"))","v":"HABIL"},{"$f":"SUM(J23/F23)","v":6.1591459458209936E-2},{"$f":"IF(AC23=0,\"\",IF(AC23>=$AD$9,\"HABIL\",\"NO HABIL\"))","v":"HABIL"},{"$f":"IF(AB23=0,\"\",IF(AB23=\"NO HABIL\",\"NO HABIL\",IF(AD23=\"NO HABIL\",\"NO HABIL\",IF(AD23=\"NO HABIL\",\"NO HABIL\",\"HABIL\"))))","v":"HABIL"}]
[null,{"$f":"IF(C24=\"\",\"\",B23+0.1)","v":2.1},"VIC S.A.S.",0.5,1893054765,3289853791,934408738,1194026279,{"$f":"IF(ISERROR(F24-H24),\"\",F24-H24)","v":2095827512},325915411,73151927,null,{"$f":"IF(ISERROR(VLOOKUP(L24,POA!$A$2:$C$25,3,0)),\"\",VLOOKUP(L24,POA!$A$2:$C$25,3,0))","v":""}," ",{"$f":"IF(ISERROR(VLOOKUP(N24,POA!$A$2:$F$25,4,0)),\"\",VLOOKUP(N24,POA!$A$2:$F$25,4,0))","v":""},{"$f":"IF(ISERROR(VLOOKUP(L24,POA!$A$2:$C$25,2,0)),\"\",VLOOKUP(L24,POA!$A$2:$C$25,2,0))","v":""},null,{"$f":"IF(Q24=0,\"\",IF(Q23>=$R$9,\"HABIL\",\"NO HABIL\"))","v":""},null,{"$f":"IF(S24=0,\"\",IF(S24<=$T$9,\"HABIL\",\"NO HABIL\"))","v":""},{"$f":"IF(ISERROR(VLOOKUP(N24,POA!$A$2:$F$25,5,0)),\"\",VLOOKUP(N24,POA!$A$2:$F$25,5,0))","v":""},null,{"$f":"IF(V24=0,\"\",IF(V24>=$W$9,\"HABIL\",\"NO HABIL\"))","v":""},null,{"$f":"IF(ISERROR(F24/$Z$9),\"\",F24/$Z$9)","v":5805.2828498323624},{"$f":"+IF(Y24<$Z$10,\"MIPYME\",\"NO CUMPLE\")","v":"MIPYME"},null,{"$f":"IF(AA24=0,\"\",IF(AA24>=$AB$9,\"HABIL\",\"NO HABIL\"))","v":""},null,{"$f":"IF(AC24=0,\"\",IF(AC24>=$AD$9,\"HABIL\",\"NO HABIL\"))","v":""}]
[null,2.2000000000000002,"DROMOS PAVIMENTOS S.A.",0.5,17417243383,42689632763,11218390310,18706578341,23983054422,2506028271,343054495,null,{"$f":"IF(ISERROR(VLOOKUP(L25,POA!$A$2:$C$25,3,0)),\"\",VLOOKUP(L25,POA!$A$2:$C$25,3,0))","v":""}," ",{"$f":"IF(ISERROR(VLOOKUP(N25,POA!$A$2:$F$25,4,0)),\"\",VLOOKUP(N25,POA!$A$2:$F$25,4,0))","v":""},{"$f":"IF(ISERROR(VLOOKUP(L25,POA!$A$2:$C$25,2,0)),\"\",VLOOKUP(L25,POA!$A$2:$C$25,2,0))","v":""},null,{"$f":"IF(Q25=0,\"\",IF(Q23>=$R$9,\"HABIL\",\"NO HABIL\"))","v":""},null,"",{"$f":"IF(ISERROR(VLOOKUP(N25,POA!$A$2:$F$25,5,0)),\"\",VLOOKUP(N25,POA!$A$2:$F$25,5,0))","v":""},null,"",null,{"$f":"IF(ISERROR(F25/$Z$9),\"\",F25/$Z$9)","v":75330.214863243338},{"$f":"+IF(Y25<$Z$10,\"MIPYME\",\"NO CUMPLE\")","v":"NO CUMPLE"},null,"",null,""]
[null,"",null,null,null,null,null,null,{"$f":"IF(ISERROR(F26-H26),\"\",F26-H26)","v":0},null,null,null,{"$f":"IF(ISERROR(VLOOKUP(L26,POA!$A$2:$C$25,3,0)),\"\",VLOOKUP(L26,POA!$A$2:$C$25,3,0))","v":""},null,{"$f":"IF(ISERROR(VLOOKUP(N26,POA!$A$2:$F$25,4,0)),\"\",VLOOKUP(N26,POA!$A$2:$F$25,4,0))","v":""},{"$f":"IF(ISERROR(VLOOKUP(L26,POA!$A$2:$C$25,2,0)),\"\",VLOOKUP(L26,POA!$A$2:$C$25,2,0))","v":""},null,{"$f":"IF(Q26=0,\"\",IF(Q23>=$R$9,\"HABIL\",\"NO HABIL\"))","v":""},null,"",{"$f":"IF(ISERROR(VLOOKUP(N26,POA!$A$2:$F$25,5,0)),\"\",VLOOKUP(N26,POA!$A$2:$F$25,5,0))","v":""},null,"",null,0,"MIPYME",null,"",null,""]
[null,"",null,null,{"$f":"IF(ISERROR(VLOOKUP(C27,#REF!,2,0)),\"\",VLOOKUP(C27,#REF!,2,0))","v":""},null,{"$f":"IF(ISERROR(VLOOKUP(C27,#REF!,4,0)),\"\",VLOOKUP(C27,#REF!,4,0))","v":""},null,0,null,null,null,{"$f":"IF(ISERROR(VLOOKUP(L27,POA!$A$2:$C$25,3,0)),\"\",VLOOKUP(L27,POA!$A$2:$C$25,3,0))","v":""},null,{"$f":"IF(ISERROR(VLOOKUP(N27,POA!$A$2:$F$25,4,0)),\"\",VLOOKUP(N27,POA!$A$2:$F$25,4,0))","v":""},{"$f":"IF(ISERROR(VLOOKUP(L27,POA!$A$2:$C$25,2,0)),\"\",VLOOKUP(L27,POA!$A$2:$C$25,2,0))","v":""},null,{"$f":"IF(L27=0,\"\",IF(Q23>=$R$9,\"HABIL\",\"NO HABIL\"))","v":""},null,"",{"$f":"IF(ISERROR(VLOOKUP(N27,POA!$A$2:$F$25,5,0)),\"\",VLOOKUP(N27,POA!$A$2:$F$25,5,0))","v":""},null,"",null,0,"MIPYME",null,"",null,""]
[null,"",null,null,{"$f":"IF(ISERROR(VLOOKUP(C28,#REF!,2,0)),\"\",VLOOKUP(C28,#REF!,2,0))","v":""},null,{"$f":"IF(ISERROR(VLOOKUP(C28,#REF!,4,0)),\"\",VLOOKUP(C28,#REF!,4,0))","v":""},null,0,null,null,null,{"$f":"IF(ISERROR(VLOOKUP(L28,POA!$A$2:$C$25,3,0)),\"\",VLOOKUP(L28,POA!$A$2:$C$25,3,0))","v":""},null,{"$f":"IF(ISERROR(VLOOKUP(N28,POA!$A$2:$F$25,4,0)),\"\",VLOOKUP(N28,POA!$A$2:$F$25,4,0))","v":""},{"$f":"IF(ISERROR(VLOOKUP(L28,POA!$A$2:$C$25,2,0)),\"\",VLOOKUP(L28,POA!$A$2:$C$25,2,0))","v":""},null,{"$f":"IF(L28=0,\"\",IF(Q23>=$R$9,\"HABIL\",\"NO HABIL\"))","v":""},null,"",{"$f":"IF(ISERROR(VLOOKUP(N28,POA!$A$2:$F$25,5,0)),\"\",VLOOKUP(N28,POA!$A$2:$F$25,5,0))","v":""},null,"",null,0,"MIPYME",null,"",null,""]
[null,"",null,null,{"$f":"IF(ISERROR(VLOOKUP(C29,#REF!,2,0)),\"\",VLOOKUP(C29,#REF!,2,0))","v":""},null,{"$f":"IF(ISERROR(VLOOKUP(C29,#REF!,4,0)),\"\",VLOOKUP(C29,#REF!,4,0))","v":""},null,0,null,null,null,{"$f":"IF(ISERROR(VLOOKUP(L29,POA!$A$2:$C$25,3,0)),\"\",VLOOKUP(L29,POA!$A$2:$C$25,3,0))","v":""},null,{"$f":"IF(ISERROR(VLOOKUP(N29,POA!$A$2:$F$25,4,0)),\"\",VLOOKUP(N29,POA!$A$2:$F$25,4,0))","v":""},{"$f":"IF(ISERROR(VLOOKUP(L29,POA!$A$2:$C$25,2,0)),\"\",VLOOKUP(L29,POA!$A$2:$C$25,2,0))","v":""},null,{"$f":"IF(L29=0,\"\",IF(Q23>=$R$9,\"HABIL\",\"NO HABIL\"))","v":""},null,"",{"$f":"IF(ISERROR(VLOOKUP(N29,POA!$A$2:$F$25,5,0)),\"\",VLOOKUP(N29,POA!$A$2:$F$25,5,0))","v":""},null,"",null,0,"MIPYME",null,"",null,""]
[null,{"$f":"IF(C30=\"\",\"\",B29+0.1)","v":""},null,null,{"$f":"IF(ISERROR(VLOOKUP(C30,#REF!,2,0)),\"\",VLOOKUP(C30,#REF!,2,0))","v":""},null,{"$f":"IF(ISERROR(VLOOKUP(C30,#REF!,4,0)),\"\",VLOOKUP(C30,#REF!,4,0))","v":""},null,{"$f":"IF(ISERROR(F30-H30),\"\",F30-H30)","v":0},null,null,null,{"$f":"IF(ISERROR(VLOOKUP(L30,POA!$A$2:$C$25,3,0)),\"\",VLOOKUP(L30,POA!$A$2:$C$25,3,0))","v":""},null,{"$f":"IF(ISERROR(VLOOKUP(N30,POA!$A$2:$F$25,4,0)),\"\",VLOOKUP(N30,POA!$A$2:$F$25,4,0))","v":""},{"$f":"IF(ISERROR(VLOOKUP(L30,POA!$A$2:$C$25,2,0)),\"\",VLOOKUP(L30,POA!$A$2:$C$25,2,0))","v":""},null,{"$f":"IF(L30=0,\"\",IF(Q23>=$R$9,\"HABIL\",\"NO HABIL\"))","v":""},null,"",{"$f":"IF(ISERROR(VLOOKUP(N30,POA!$A$2:$F$25,5,0)),\"\",VLOOKUP(N30,POA!$A$2:$F$25,5,0))","v":""},null,"",null,0,"MIPYME",null,"",null,""]
[null,{"$f":"IF(C31=\"\",\"\",B30+0.1)","v":""},null,null,{"$f":"IF(ISERROR(VLOOKUP(C31,#REF!,2,0)),\"\",VLOOKUP(C31,#REF!,2,0))","v":""},null,{"$f":"IF(ISERROR(VLOOKUP(C31,#REF!,4,0)),\"\",VLOOKUP(C31,#REF!,4,0))","v":""},null,{"$f":"IF(ISERROR(F31-H31),\"\",F31-H31)","v":0},null,null,null,{"$f":"IF(ISERROR(VLOOKUP(L31,POA!$A$2:$C$25,3,0)),\"\",VLOOKUP(L31,POA!$A$2:$C$25,3,0))","v":""},null,{"$f":"IF(ISERROR(VLOOKUP(N31,POA!$A$2:$F$25,4,0)),\"\",VLOOKUP(N31,POA!$A$2:$F$25,4,0))","v":""},{"$f":"IF(ISERROR(VLOOKUP(L31,POA!$A$2:$C$25,2,0)),\"\",VLOOKUP(L31,POA!$A$2:$C$25,2,0))","v":""},null,{"$f":"IF(L31=0,\"\",IF(Q23>=$R$9,\"HABIL\",\"NO HABIL\"))","v":""},null,"",{"$f":"IF(ISERROR(VLOOKUP(N31,POA!$A$2:$F$25,5,0)),\"\",VLOOKUP(N31,POA!$A$2:$F$25,5,0))","v":""},null,"",null,0,"MIPYME",null,"",null,""]
[null,{"$f":"IF(C32=\"\",\"\",B31+0.1)","v":""},null,null,{"$f":"IF(ISERROR(VLOOKUP(C32,#REF!,2,0)),\"\",VLOOKUP(C32,#REF!,2,0))","v":""},null,{"$f":"IF(ISERROR(VLOOKUP(C32,#REF!,4,0)),\"\",VLOOKUP(C32,#REF!,4,0))","v":""},null,{"$f":"IF(ISERROR(F32-H32),\"\",F32-H32)","v":0},null,null,null,{"$f":"IF(ISERROR(VLOOKUP(L32,POA!$A$2:$C$25,3,0)),\"\",VLOOKUP(L32,POA!$A$2:$C$25,3,0))","v":""},null,{"$f":"IF(ISERROR(VLOOKUP(N32,POA!$A$2:$F$25,4,0)),\"\",VLOOKUP(N32,POA!$A$2:$F$25,4,0))","v":""},{"$f":"IF(ISERROR(VLOOKUP(L32,POA!$A$2:$C$25,2,0)),\"\",VLOOKUP(L32,POA!$A$2:$C$25,2,0))","v":""},null,{"$f":"IF(L32=0,\"\",IF(Q23>=$R$9,\"HABIL\",\"NO HABIL\"))","v":""},null,"",{"$f":"IF(ISERROR(VLOOKUP(N32,POA!$A$2:$F$25,5,0)),\"\",VLOOKUP(N32,POA!$A$2:$F$25,5,0))","v":""},null,"",null,0,"MIPYME",null,"",null,""]
[null,{"$f":"IF(C33=\"\",\"\",B32+0.1)","v":""},null,null,{"$f":"IF(ISERROR(VLOOKUP(C33,#REF!,2,0)),\"\",VLOOKUP(C33,#REF!,2,0))","v":""},null,{"$f":"IF(ISERROR(VLOOKUP(C33,#REF!,4,0)),\"\",VLOOKUP(C33,#REF!,4,0))","v":""},null,{"$f":"IF(ISERROR(F33-H33),\"\",F33-H33)","v":0},null,null,null,{"$f":"IF(ISERROR(VLOOKUP(L33,POA!$A$2:$C$25,3,0)),\"\",VLOOKUP(L33,POA!$A$2:$C$25,3,0))","v":""},null,{"$f":"IF(ISERROR(VLOOKUP(N33,POA!$A$2:$F$25,4,0)),\"\",VLOOKUP(N33,POA!$A$2:$F$25,4,0))","v":""},{"$f":"IF(ISERROR(VLOOKUP(L33,POA!$A$2:$C$25,2,0)),\"\",VLOOKUP(L33,POA!$A$2:$C$25,2,0))","v":""},null,{"$f":"IF(L33=0,\"\",IF(Q23>=$R$9,\"HABIL\",\"NO HABIL\"))","v":""},null,"",{"$f":"IF(ISERROR(VLOOKUP(N33,POA!$A$2:$F$25,5,0)),\"\",VLOOKUP(N33,POA!$A$2:$F$25,5,0))","v":""},null,"",null,{"$f":"IF(ISERROR(F33/$Z$9),\"\",F33/$Z$9)","v":0},"MIPYME",null,"",null,""]
[null,3,"EQUIPOS CONSTRUCCIONES Y OBRAS S.A.",{"$f":"IF(SUM(D35:D44)=0,\"\",SUM(D35:D44))","v":1},{"$f":"SUM(E35:E44)","v":8410906369.0600004},{"$f":"SUM(F35:F44)","v":20515353964.650002},{"$f":"SUM(G35:G44)","v":2808408841.8800001},{"$f":"SUM(H35:H44)","v":5289970320.7600002},{"$f":"+F34-H34","v":15225383643.890001},{"$f":"SUM(J35:J44)","v":2351613363.1700001},{"$f":"SUM(K35:K44)","v":564863468.02999997},1,{"$f":"IF(ISERROR(VLOOKUP(L34,POA!$A$2:$C$25,3,0)),\"\",VLOOKUP(L34,POA!$A$2:$C$25,3,0))","v":3}," ",{"$f":"+SUM(O35:O44)","v":0},{"$f":"IF(ISERROR(VLOOKUP(L34,POA!$A$2:$C$25,2,0)),\"\",VLOOKUP(L34,POA!$A$2:$C$25,2,0))","v":4167150295},{"$f":"SUM(E34/G34)","v":2.9949009715514165},{"$f":"IF(Q34=0,\"\",IF(Q34>=$R$9,\"HABIL\",\"NO HABIL\"))","v":"HABIL"},{"$f":"SUM(H34/F34)","v":0.2578542066529852},{"$f":"IF(S34=0,\"\",IF(S34<=$T$9,\"HABIL\",\"NO HABIL\"))","v":"HABIL"},{"$f":"+SUM(U35:U44)","v":0},{"$f":"SUM(J34/K34)","v":4.1631535694305262},{"$f":"IF(V34=0,\"\",IF(V34>=$W$9,\"HABIL\",\"NO HABIL\"))","v":"HABIL"},{"$f":"IF(R34=0,\"\",IF(R34=\"NO HABIL\",\"NO HABIL\",IF(T34=\"NO HABIL\",\"NO HABIL\",IF(W34=\"NO HABIL\",\"NO HABIL\",IF(W34=\"NO HABIL\",\"NO HABIL\",\"HABIL\")))))","v":"HABIL"},null,null,{"$f":"SUM(J34/I34)","v":0.15445347179239785},{"$f":"IF(AA34=0,\"\",IF(AA34>=$AB$9,\"HABIL\",\"NO HABIL\"))","v":"HABIL"},{"$f":"SUM(J34/F34)","v":0.11462699435856989},{"$f":"IF(AC34=0,\"\",IF(AC34>=$AD$9,\"HABIL\",\"NO HABIL\"))","v":"HABIL"},{"$f":"IF(AB34=0,\"\",IF(AB34=\"NO HABIL\",\"NO HABIL\",IF(AD34=\"NO HABIL\",\"NO HABIL\",IF(AD34=\"NO HABIL\",\"NO HABIL\",\"HABIL\"))))","v":"HABIL"}]
[null,{"$f":"IF(C35=\"\",\"\",B34+0.1)","v":3.1},"EQUIPOS CONSTRUCCIONES Y OBRAS S.A.",1,8410906369.0600004,20515353964.650002,2808408841.8800001,5289970320.7600002,{"$f":"IF(ISERROR(F35-H35),\"\",F35-H35)","v":15225383643.890001},2351613363.1700001,564863468.02999997,null,{"$f":"IF(ISERROR(VLOOKUP(L35,POA!$A$2:$C$25,3,0)),\"\",VLOOKUP(L35,POA!$A$2:$C$25,3,0))","v":""}," ",{"$f":"IF(ISERROR(VLOOKUP(N35,POA!$A$2:$F$25,4,0)),\"\",VLOOKUP(N35,POA!$A$2:$F$25,4,0))","v":""},{"$f":"IF(ISERROR(VLOOKUP(L35,POA!$A$2:$C$25,2,0)),\"\",VLOOKUP(L35,POA!$A$2:$C$25,2,0))","v":""},null,{"$f":"IF(Q35=0,\"\",IF(Q34>=$R$9,\"HABIL\",\"NO HABIL\"))","v":""},null,{"$f":"IF(S35=0,\"\",IF(S35<=$T$9,\"HABIL\",\"NO HABIL\"))","v":""},{"$f":"IF(ISERROR(VLOOKUP(N35,POA!$A$2:$F$25,5,0)),\"\",VLOOKUP(N35,POA!$A$2:$F$25,5,0))","v":""},null,{"$f":"IF(V35=0,\"\",IF(V35>=$W$9,\"HABIL\",\"NO HABIL\"))","v":""},null,{"$f":"IF(ISERROR(F35/$Z$9),\"\",F35/$Z$9)","v":36201.436323716254},{"$f":"+IF(Y35<$Z$10,\"MIPYME\",\"NO CUMPLE\")","v":"NO CUMPLE"},null,{"$f":"IF(AA35=0,\"\",IF(AA35>=$AB$9,\"HABIL\",\"NO HABIL\"))","v":""},null,{"$f":"IF(AC35=0,\"\",IF(AC35>=$AD$9,\"HABIL\",\"NO HABIL\"))","v":""}]
[null,"",null,null,null,null,null,null,0,null,null,null,{"$f":"IF(ISERROR(VLOOKUP(L36,POA!$A$2:$C$25,3,0)),\"\",VLOOKUP(L36,POA!$A$2:$C$25,3,0))","v":""}," ",{"$f":"IF(ISERROR(VLOOKUP(N36,POA!$A$2:$F$25,4,0)),\"\",VLOOKUP(N36,POA!$A$2:$F$25,4,0))","v":""},{"$f":"IF(ISERROR(VLOOKUP(L36,POA!$A$2:$C$25,2,0)),\"\",VLOOKUP(L36,POA!$A$2:$C$25,2,0))","v":""},null,{"$f":"IF(Q36=0,\"\",IF(Q34>=$R$9,\"HABIL\",\"NO HABIL\"))","v":""},null,"",{"$f":"IF(ISERROR(VLOOKUP(N36,POA!$A$2:$F$25,5,0)),\"\",VLOOKUP(N36,POA!$A$2:$F$25,5,0))","v":""},null,"",null,{"$f":"IF(ISERROR(F36/$Z$9),\"\",F36/$Z$9)","v":0},{"$f":"+IF(Y36<$Z$10,\"MIPYME\",\"NO CUMPLE\")","v":"MIPYME"},null,"",null,""]
[null,"",null,null,null,null,null,null,0,null,null,null,{"$f":"IF(ISERROR(VLOOKUP(L37,POA!$A$2:$C$25,3,0)),\"\",VLOOKUP(L37,POA!$A$2:$C$25,3,0))","v":""},null,{"$f":"IF(ISERROR(VLOOKUP(N37,POA!$A$2:$F$25,4,0)),\"\",VLOOKUP(N37,POA!$A$2:$F$25,4,0))","v":""},{"$f":"IF(ISERROR(VLOOKUP(L37,POA!$A$2:$C$25,2,0)),\"\",VLOOKUP(L37,POA!$A$2:$C$25,2,0))","v":""},null,{"$f":"IF(Q37=0,\"\",IF(Q34>=$R$9,\"HABIL\",\"NO HABIL\"))","v":""},null,"",{"$f":"IF(ISERROR(VLOOKUP(N37,POA!$A$2:$F$25,5,0)),\"\",VLOOKUP(N37,POA!$A$2:$F$25,5,0))","v":""},null,"",null,0,"MIPYME",null,"",null,""]
[null,"",null,null,{"$f":"IF(ISERROR(VLOOKUP(C38,#REF!,2,0)),\"\",VLOOKUP(C38,#REF!,2,0))","v":""},null,{"$f":"IF(ISERROR(VLOOKUP(C38,#REF!,4,0)),\"\",VLOOKUP(C38,#REF!,4,0))","v":""},null,0,null,null,null,{"$f":"IF(ISERROR(VLOOKUP(L38,POA!$A$2:$C$25,3,0)),\"\",VLOOKUP(L38,POA!$A$2:$C$25,3,0))","v":""},null,{"$f":"IF(ISERROR(VLOOKUP(N38,POA!$A$2:$F$25,4,0)),\"\",VLOOKUP(N38,POA!$A$2:$F$25,4,0))","v":""},{"$f":"IF(ISERROR(VLOOKUP(L38,POA!$A$2:$C$25,2,0)),\"\",VLOOKUP(L38,POA!$A$2:$C$25,2,0))","v":""},null,{"$f":"IF(L38=0,\"\",IF(Q34>=$R$9,\"HABIL\",\"NO HABIL\"))","v":""},null,"",{"$f":"IF(ISERROR(VLOOKUP(N38,POA!$A$2:$F$25,5,0)),\"\",VLOOKUP(N38,POA!$A$2:$F$25,5,0))","v":""},null,"",null,0,"MIPYME",null,"",null,""]
[null,"",null,null,{"$f":"IF(ISERROR(VLOOKUP(C39,#REF!,2,0)),\"\",VLOOKUP(C39,#REF!,2,0))","v":""},null,{"$f":"IF(ISERROR(VLOOKUP(C39,#REF!,4,0)),\"\",VLOOKUP(C39,#REF!,4,0))","v":""},null,0,null,null,null,{"$f":"IF(ISERROR(VLOOKUP(L39,POA!$A$2:$C$25,3,0)),\"\",VLOOKUP(L39,POA!$A$2:$C$25,3,0))","v":""},null,{"$f":"IF(ISERROR(VLOOKUP(N39,POA!$A$2:$F$25,4,0)),\"\",VLOOKUP(N39,POA!$A$2:$F$25,4,0))","v":""},{"$f":"IF(ISERROR(VLOOKUP(L39,POA!$A$2:$C$25,2,0)),\"\",VLOOKUP(L39,POA!$A$2:$C$25,2,0))","v":""},null,{"$f":"IF(L39=0,\"\",IF(Q34>=$R$9,\"HABIL\",\"NO HABIL\"))","v":""},null,"",{"$f":"IF(ISERROR(VLOOKUP(N39,POA!$A$2:$F$25,5,0)),\"\",VLOOKUP(N39,POA!$A$2:$F$25,5,0))","v":""},null,"",null,0,"MIPYME",null,"",null,""]
[null,"",null,null,{"$f":"IF(ISERROR(VLOOKUP(C40,#REF!,2,0)),\"\",VLOOKUP(C40,#REF!,2,0))","v":""},null,{"$f":"IF(ISERROR(VLOOKUP(C40,#REF!,4,0)),\"\",VLOOKUP(C40,#REF!,4,0))","v":""},null,0,null,null,null,{"$f":"IF(ISERROR(VLOOKUP(L40,POA!$A$2:$C$25,3,0)),\"\",VLOOKUP(L40,POA!$A$2:$C$25,3,0))","v":""},null,{"$f":"IF(ISERROR(VLOOKUP(N40,POA!$A$2:$F$25,4,0)),\"\",VLOOKUP(N40,POA!$A$2:$F$25,4,0))","v":""},{"$f":"IF(ISERROR(VLOOKUP(L40,POA!$A$2:$C$25,2,0)),\"\",VLOOKUP(L40,POA!$A$2:$C$25,2,0))","v":""},null,{"$f":"IF(L40=0,\"\",IF(Q34>=$R$9,\"HABIL\",\"NO HABIL\"))","v":""},null,"",{"$f":"IF(ISERROR(VLOOKUP(N40,POA!$A$2:$F$25,5,0)),\"\",VLOOKUP(N40,POA!$A$2:$F$25,5,0))","v":""},null,"",null,0,"MIPYME",null,"",null,""]
[null,{"$f":"IF(C41=\"\",\"\",B40+0.1)","v":""},null,null,{"$f":"IF(ISERROR(VLOOKUP(C41,#REF!,2,0)),\"\",VLOOKUP(C41,#REF!,2,0))","v":""},null,{"$f":"IF(ISERROR(VLOOKUP(C41,#REF!,4,0)),\"\",VLOOKUP(C41,#REF!,4,0))","v":""},null,{"$f":"IF(ISERROR(F41-H41),\"\",F41-H41)","v":0},null,null,null,{"$f":"IF(ISERROR(VLOOKUP(L41,POA!$A$2:$C$25,3,0)),\"\",VLOOKUP(L41,POA!$A$2:$C$25,3,0))","v":""},null,{"$f":"IF(ISERROR(VLOOKUP(N41,POA!$A$2:$F$25,4,0)),\"\",VLOOKUP(N41,POA!$A$2:$F$25,4,0))","v":""},{"$f":"IF(ISERROR(VLOOKUP(L41,POA!$A$2:$C$25,2,0)),\"\",VLOOKUP(L41,POA!$A$2:$C$25,2,0))","v":""},null,{"$f":"IF(L41=0,\"\",IF(Q34>=$R$9,\"HABIL\",\"NO HABIL\"))","v":""},null,"",{"$f":"IF(ISERROR(VLOOKUP(N41,POA!$A$2:$F$25,5,0)),\"\",VLOOKUP(N41,POA!$A$2:$F$25,5,0))","v":""},null,"",null,0,"MIPYME",null,"",null,""]
[null,{"$f":"IF(C42=\"\",\"\",B41+0.1)","v":""},null,null,{"$f":"IF(ISERROR(VLOOKUP(C42,#REF!,2,0)),\"\",VLOOKUP(C42,#REF!,2,0))","v":""},null,{"$f":"IF(ISERROR(VLOOKUP(C42,#REF!,4,0)),\"\",VLOOKUP(C42,#REF!,4,0))","v":""},null,{"$f":"IF(ISERROR(F42-H42),\"\",F42-H42)","v":0},null,null,null,{"$f":"IF(ISERROR(VLOOKUP(L42,POA!$A$2:$C$25,3,0)),\"\",VLOOKUP(L42,POA!$A$2:$C$25,3,0))","v":""},null,{"$f":"IF(ISERROR(VLOOKUP(N42,POA!$A$2:$F$25,4,0)),\"\",VLOOKUP(N42,POA!$A$2:$F$25,4,0))","v":""},{"$f":"IF(ISERROR(VLOOKUP(L42,POA!$A$2:$C$25,2,0)),\"\",VLOOKUP(L42,POA!$A$2:$C$25,2,0))","v":""},null,{"$f":"IF(L42=0,\"\",IF(Q34>=$R$9,\"HABIL\",\"NO HABIL\"))","v":""},null,"",{"$f":"IF(ISERROR(VLOOKUP(N42,POA!$A$2:$F$25,5,0)),\"\",VLOOKUP(N42,POA!$A$2:$F$25,5,0))","v":""},null,"",null,0,"MIPYME",null,"",null,""]
[null,{"$f":"IF(C43=\"\",\"\",B42+0.1)","v":""},null,null,{"$f":"IF(ISERROR(VLOOKUP(C43,#REF!,2,0)),\"\",VLOOKUP(C43,#REF!,2,0))","v":""},null,{"$f":"IF(ISERROR(VLOOKUP(C43,#REF!,4,0)),\"\",VLOOKUP(C43,#REF!,4,0))","v":""},null,{"$f":"IF(ISERROR(F43-H43),\"\",F43-H43)","v":0},null,null,null,{"$f":"IF(ISERROR(VLOOKUP(L43,POA!$A$2:$C$25,3,0)),\"\",VLOOKUP(L43,POA!$A$2:$C$25,3,0))","v":""},null,{"$f":"IF(ISERROR(VLOOKUP(N43,POA!$A$2:$F$25,4,0)),\"\",VLOOKUP(N43,POA!$A$2:$F$25,4,0))","v":""},{"$f":"IF(ISERROR(VLOOKUP(L43,POA!$A$2:$C$25,2,0)),\"\",VLOOKUP(L43,POA!$A$2:$C$25,2,0))","v":""},null,{"$f":"IF(L43=0,\"\",IF(Q34>=$R$9,\"HABIL\",\"NO HABIL\"))","v":""},null,"",{"$f":"IF(ISERROR(VLOOKUP(N43,POA!$A$2:$F$25,5,0)),\"\",VLOOKUP(N43,POA!$A$2:$F$25,5,0))","v":""},null,"",null,0,"MIPYME",null,"",null,""]
[null,{"$f":"IF(C44=\"\",\"\",B43+0.1)","v":""},null,null,{"$f":"IF(ISERROR(VLOOKUP(C44,#REF!,2,0)),\"\",VLOOKUP(C44,#REF!,2,0))","v":""},null,{"$f":"IF(ISERROR(VLOOKUP(C44,#REF!,4,0)),\"\",VLOOKUP(C44,#REF!,4,0))","v":""},null,{"$f":"IF(ISERROR(F44-H44),\"\",F44-H44)","v":0},null,null,null,{"$f":"IF(ISERROR(VLOOKUP(L44,POA!$A$2:$C$25,3,0)),\"\",VLOOKUP(L44,POA!$A$2:$C$25,3,0))","v":""},null,{"$f":"IF(ISERROR(VLOOKUP(N44,POA!$A$2:$F$25,4,0)),\"\",VLOOKUP(N44,POA!$A$2:$F$25,4,0))","v":""},{"$f":"IF(ISERROR(VLOOKUP(L44,POA!$A$2:$C$25,2,0)),\"\",VLOOKUP(L44,POA!$A$2:$C$25,2,0))","v":""},null,{"$f":"IF(L44=0,\"\",IF(Q34>=$R$9,\"HABIL\",\"NO HABIL\"))","v":""},null,"",{"$f":"IF(ISERROR(VLOOKUP(N44,POA!$A$2:$F$25,5,0)),\"\",VLOOKUP(N44,POA!$A$2:$F$25,5,0))","v":""},null,"",null,{"$f":"IF(ISERROR(F44/$Z$9),\"\",F44/$Z$9)","v":0},"MIPYME",null,"",null,""]
[null,4,"CONSORCIO IPV",{"$f":"IF(SUM(D46:D55)=0,\"\",SUM(D46:D55))","v":1},{"$f":"SUM(E46:E55)","v":5127406552},{"$f":"SUM(F46:F55)","v":7409140128},{"$f":"SUM(G46:G55)","v":108677433},{"$f":"SUM(H46:H55)","v":3450533432},{"$f":"+F45-H45","v":3958606696},{"$f":"SUM(J46:J55)","v":594969981},{"$f":"SUM(K46:K55)","v":73441217},1,{"$f":"IF(ISERROR(VLOOKUP(L45,POA!$A$2:$C$25,3,0)),\"\",VLOOKUP(L45,POA!$A$2:$C$25,3,0))","v":3}," ",{"$f":"+SUM(O46:O55)","v":0},{"$f":"IF(ISERROR(VLOOKUP(L45,POA!$A$2:$C$25,2,0)),\"\",VLOOKUP(L45,POA!$A$2:$C$25,2,0))","v":4167150295},{"$f":"SUM(E45/G45)","v":47.180048428269373},{"$f":"IF(Q45=0,\"\",IF(Q45>=$R$9,\"HABIL\",\"NO HABIL\"))","v":"HABIL"},{"$f":"SUM(H45/F45)","v":0.46571307498423925},{"$f":"IF(S45=0,\"\",IF(S45<=$T$9,\"HABIL\",\"NO HABIL\"))","v":"HABIL"},{"$f":"+SUM(U46:U55)","v":0},{"$f":"SUM(J45/K45)","v":8.1013088467746925},{"$f":"IF(V45=0,\"\",IF(V45>=$W$9,\"HABIL\",\"NO HABIL\"))","v":"HABIL"},{"$f":"IF(R45=0,\"\",IF(R45=\"NO HABIL\",\"NO HABIL\",IF(T45=\"NO HABIL\",\"NO HABIL\",IF(W45=\"NO HABIL\",\"NO HABIL\",IF(W45=\"NO HABIL\",\"NO HABIL\",\"HABIL\")))))","v":"HABIL"},null,null,{"$f":"SUM(J45/I45)","v":0.1502978261521134},{"$f":"IF(AA45=0,\"\",IF(AA45>=$AB$9,\"HABIL\",\"NO HABIL\"))","v":"HABIL"},{"$f":"SUM(J45/F45)","v":8.0302163371366059E-2},{"$f":"IF(AC45=0,\"\",IF(AC45>=$AD$9,\"HABIL\",\"NO HABIL\"))","v":"HABIL"},{"$f":"IF(AB45=0,\"\",IF(AB45=\"NO HABIL\",\"NO HABIL\",IF(AD45=\"NO HABIL\",\"NO HABIL\",IF(AD45=\"NO HABIL\",\"NO HABIL\",\"HABIL\"))))","v":"HABIL"}]
[null,{"$f":"IF(C46=\"\",\"\",B45+0.1)","v":4.0999999999999996},"INGENIERIA DE PUENTES Y VIAS S.A.S.",0.3,2356947366,2806947366,75460790,1664300957,{"$f":"IF(ISERROR(F46-H46),\"\",F46-H46)","v":1142646409},185884976,47211217,null,{"$f":"IF(ISERROR(VLOOKUP(L46,POA!$A$2:$C$25,3,0)),\"\",VLOOKUP(L46,POA!$A$2:$C$25,3,0))","v":""}," ",{"$f":"IF(ISERROR(VLOOKUP(N46,POA!$A$2:$F$25,4,0)),\"\",VLOOKUP(N46,POA!$A$2:$F$25,4,0))","v":""},{"$f":"IF(ISERROR(VLOOKUP(L46,POA!$A$2:$C$25,2,0)),\"\",VLOOKUP(L46,POA!$A$2:$C$25,2,0))","v":""},null,{"$f":"IF(Q46=0,\"\",IF(Q45>=$R$9,\"HABIL\",\"NO HABIL\"))","v":""},null,{"$f":"IF(S46=0,\"\",IF(S46<=$T$9,\"HABIL\",\"NO HABIL\"))","v":""},{"$f":"IF(ISERROR(VLOOKUP(N46,POA!$A$2:$F$25,5,0)),\"\",VLOOKUP(N46,POA!$A$2:$F$25,5,0))","v":""},null,{"$f":"IF(V46=0,\"\",IF(V46>=$W$9,\"HABIL\",\"NO HABIL\"))","v":""},null,{"$f":"IF(ISERROR(F46/$Z$9),\"\",F46/$Z$9)","v":4953.1451667548972},{"$f":"+IF(Y46<$Z$10,\"MIPYME\",\"NO CUMPLE\")","v":"MIPYME"},null,{"$f":"IF(AA46=0,\"\",IF(AA46>=$AB$9,\"HABIL\",\"NO HABIL\"))","v":""},null,{"$f":"IF(AC46=0,\"\",IF(AC46>=$AD$9,\"HABIL\",\"NO HABIL\"))","v":""}]
[null,4.1999999999999993,"RENAN CARDOZO CARDOZO",0.2,1404885338,2110854604,25000000,751163300,1359691304,256000000,17500000,null,{"$f":"IF(ISERROR(VLOOKUP(L47,POA!$A$2:$C$25,3,0)),\"\",VLOOKUP(L47,POA!$A$2:$C$25,3,0))","v":""}," ",{"$f":"IF(ISERROR(VLOOKUP(N47,POA!$A$2:$F$25,4,0)),\"\",VLOOKUP(N47,POA!$A$2:$F$25,4,0))","v":""},{"$f":"IF(ISERROR(VLOOKUP(L47,POA!$A$2:$C$25,2,0)),\"\",VLOOKUP(L47,POA!$A$2:$C$25,2,0))","v":""},null,{"$f":"IF(Q47=0,\"\",IF(Q45>=$R$9,\"HABIL\",\"NO HABIL\"))","v":""},null,"",{"$f":"IF(ISERROR(VLOOKUP(N47,POA!$A$2:$F$25,5,0)),\"\",VLOOKUP(N47,POA!$A$2:$F$25,5,0))","v":""},null,"",null,{"$f":"IF(ISERROR(F47/$Z$9),\"\",F47/$Z$9)","v":3724.8184295041469},{"$f":"+IF(Y47<$Z$10,\"MIPYME\",\"NO CUMPLE\")","v":"MIPYME"},null,"",null,""]
[null,4.2999999999999989,"OMAR CARDOZO CARDOZO",0.2,1012017040,1769404040,7610751,1034463283,734940757,125654000,8730000,null,{"$f":"IF(ISERROR(VLOOKUP(L48,POA!$A$2:$C$25,3,0)),\"\",VLOOKUP(L48,POA!$A$2:$C$25,3,0))","v":""},null,{"$f":"IF(ISERROR(VLOOKUP(N48,POA!$A$2:$F$25,4,0)),\"\",VLOOKUP(N48,POA!$A$2:$F$25,4,0))","v":""},{"$f":"IF(ISERROR(VLOOKUP(L48,POA!$A$2:$C$25,2,0)),\"\",VLOOKUP(L48,POA!$A$2:$C$25,2,0))","v":""},null,{"$f":"IF(Q48=0,\"\",IF(Q45>=$R$9,\"HABIL\",\"NO HABIL\"))","v":""},null,"",{"$f":"IF(ISERROR(VLOOKUP(N48,POA!$A$2:$F$25,5,0)),\"\",VLOOKUP(N48,POA!$A$2:$F$25,5,0))","v":""},null,"",null,3122.2940532909829,"MIPYME",null,"",null,""]
[null,4.3999999999999986,"LUIS MORENO RUBIO",0.3,353556808,721934118,605892,605892,721328226,27431005,0,null,{"$f":"IF(ISERROR(VLOOKUP(L49,POA!$A$2:$C$25,3,0)),\"\",VLOOKUP(L49,POA!$A$2:$C$25,3,0))","v":""},null,{"$f":"IF(ISERROR(VLOOKUP(N49,POA!$A$2:$F$25,4,0)),\"\",VLOOKUP(N49,POA!$A$2:$F$25,4,0))","v":""},{"$f":"IF(ISERROR(VLOOKUP(L49,POA!$A$2:$C$25,2,0)),\"\",VLOOKUP(L49,POA!$A$2:$C$25,2,0))","v":""},null,{"$f":"IF(L49=0,\"\",IF(Q45>=$R$9,\"HABIL\",\"NO HABIL\"))","v":""},null,"",{"$f":"IF(ISERROR(VLOOKUP(N49,POA!$A$2:$F$25,5,0)),\"\",VLOOKUP(N49,POA!$A$2:$F$25,5,0))","v":""},null,"",null,1273.9264478560085,"MIPYME",null,"",null,""]
[null,"",null,null,{"$f":"IF(ISERROR(VLOOKUP(C50,#REF!,2,0)),\"\",VLOOKUP(C50,#REF!,2,0))","v":""},null,{"$f":"IF(ISERROR(VLOOKUP(C50,#REF!,4,0)),\"\",VLOOKUP(C50,#REF!,4,0))","v":""},null,{"$f":"IF(ISERROR(F50-H50),\"\",F50-H50)","v":0},null,null,null,{"$f":"IF(ISERROR(VLOOKUP(L50,POA!$A$2:$C$25,3,0)),\"\",VLOOKUP(L50,POA!$A$2:$C$25,3,0))","v":""},null,{"$f":"IF(ISERROR(VLOOKUP(N50,POA!$A$2:$F$25,4,0)),\"\",VLOOKUP(N50,POA!$A$2:$F$25,4,0))","v":""},{"$f":"IF(ISERROR(VLOOKUP(L50,POA!$A$2:$C$25,2,0)),\"\",VLOOKUP(L50,POA!$A$2:$C$25,2,0))","v":""},null,{"$f":"IF(L50=0,\"\",IF(Q45>=$R$9,\"HABIL\",\"NO HABIL\"))","v":""},null,"",{"$f":"IF(ISERROR(VLOOKUP(N50,POA!$A$2:$F$25,5,0)),\"\",VLOOKUP(N50,POA!$A$2:$F$25,5,0))","v":""},null,"",null,0,"MIPYME",null,"",null,""]
[null,"",null,null,{"$f":"IF(ISERROR(VLOOKUP(C51,#REF!,2,0)),\"\",VLOOKUP(C51,#REF!,2,0))","v":""},null,{"$f":"IF(ISERROR(VLOOKUP(C51,#REF!,4,0)),\"\",VLOOKUP(C51,#REF!,4,0))","v":""},null,0,null,null,null,{"$f":"IF(ISERROR(VLOOKUP(L51,POA!$A$2:$C$25,3,0)),\"\",VLOOKUP(L51,POA!$A$2:$C$25,3,0))","v":""},null,{"$f":"IF(ISERROR(VLOOKUP(N51,POA!$A$2:$F$25,4,0)),\"\",VLOOKUP(N51,POA!$A$2:$F$25,4,0))","v":""},{"$f":"IF(ISERROR(VLOOKUP(L51,POA!$A$2:$C$25,2,0)),\"\",VLOOKUP(L51,POA!$A$2:$C$25,2,0))","v":""},null,{"$f":"IF(L51=0,\"\",IF(Q45>=$R$9,\"HABIL\",\"NO HABIL\"))","v":""},null,"",{"$f":"IF(ISERROR(VLOOKUP(N51,POA!$A$2:$F$25,5,0)),\"\",VLOOKUP(N51,POA!$A$2:$F$25,5,0))","v":""},null,"",null,0,"MIPYME",null,"",null,""]
[null,{"$f":"IF(C52=\"\",\"\",B51+0.1)","v":""},null,null,{"$f":"IF(ISERROR(VLOOKUP(C52,#REF!,2,0)),\"\",VLOOKUP(C52,#REF!,2,0))","v":""},null,{"$f":"IF(ISERROR(VLOOKUP(C52,#REF!,4,0)),\"\",VLOOKUP(C52,#REF!,4,0))","v":""},null,{"$f":"IF(ISERROR(F52-H52),\"\",F52-H52)","v":0},null,null,null,{"$f":"IF(ISERROR(VLOOKUP(L52,POA!$A$2:$C$25,3,0)),\"\",VLOOKUP(L52,POA!$A$2:$C$25,3,0))","v":""},null,{"$f":"IF(ISERROR(VLOOKUP(N52,POA!$A$2:$F$25,4,0)),\"\",VLOOKUP(N52,POA!$A$2:$F$25,4,0))","v":""},{"$f":"IF(ISERROR(VLOOKUP(L52,POA!$A$2:$C$25,2,0)),\"\",VLOOKUP(L52,POA!$A$2:$C$25,2,0))","v":""},null,{"$f":"IF(L52=0,\"\",IF(Q45>=$R$9,\"HABIL\",\"NO HABIL\"))","v":""},null,"",{"$f":"IF(ISERROR(VLOOKUP(N52,POA!$A$2:$F$25,5,0)),\"\",VLOOKUP(N52,POA!$A$2:$F$25,5,0))","v":""},null,"",null,0,"MIPYME",null,"",null,""]
[null,{"$f":"IF(C53=\"\",\"\",B52+0.1)","v":""},null,null,{"$f":"IF(ISERROR(VLOOKUP(C53,#REF!,2,0)),\"\",VLOOKUP(C53,#REF!,2,0))","v":""},null,{"$f":"IF(ISERROR(VLOOKUP(C53,#REF!,4,0)),\"\",VLOOKUP(C53,#REF!,4,0))","v":""},null,{"$f":"IF(ISERROR(F53-H53),\"\",F53-H53)","v":0},null,null,null,{"$f":"IF(ISERROR(VLOOKUP(L53,POA!$A$2:$C$25,3,0)),\"\",VLOOKUP(L53,POA!$A$2:$C$25,3,0))","v":""},null,{"$f":"IF(ISERROR(VLOOKUP(N53,POA!$A$2:$F$25,4,0)),\"\",VLOOKUP(N53,POA!$A$2:$F$25,4,0))","v":""},{"$f":"IF(ISERROR(VLOOKUP(L53,POA!$A$2:$C$25,2,0)),\"\",VLOOKUP(L53,POA!$A$2:$C$25,2,0))","v":""},null,{"$f":"IF(L53=0,\"\",IF(Q45>=$R$9,\"HABIL\",\"NO HABIL\"))","v":""},null,"",{"$f":"IF(ISERROR(VLOOKUP(N53,POA!$A$2:$F$25,5,0)),\"\",VLOOKUP(N53,POA!$A$2:$F$25,5,0))","v":""},null,"",null,0,"MIPYME",null,"",null,""]
[null,{"$f":"IF(C54=\"\",\"\",B53+0.1)","v":""},null,null,{"$f":"IF(ISERROR(VLOOKUP(C54,#REF!,2,0)),\"\",VLOOKUP(C54,#REF!,2,0))","v":""},null,{"$f":"IF(ISERROR(VLOOKUP(C54,#REF!,4,0)),\"\",VLOOKUP(C54,#REF!,4,0))","v":""},null,{"$f":"IF(ISERROR(F54-H54),\"\",F54-H54)","v":0},null,null,null,{"$f":"IF(ISERROR(VLOOKUP(L54,POA!$A$2:$C$25,3,0)),\"\",VLOOKUP(L54,POA!$A$2:$C$25,3,0))","v":""},null,{"$f":"IF(ISERROR(VLOOKUP(N54,POA!$A$2:$F$25,4,0)),\"\",VLOOKUP(N54,POA!$A$2:$F$25,4,0))","v":""},{"$f":"IF(ISERROR(VLOOKUP(L54,POA!$A$2:$C$25,2,0)),\"\",VLOOKUP(L54,POA!$A$2:$C$25,2,0))","v":""},null,{"$f":"IF(L54=0,\"\",IF(Q45>=$R$9,\"HABIL\",\"NO HABIL\"))","v":""},null,"",{"$f":"IF(ISERROR(VLOOKUP(N54,POA!$A$2:$F$25,5,0)),\"\",VLOOKUP(N54,POA!$A$2:$F$25,5,0))","v":""},null,"",null,0,"MIPYME",null,"",null,""]
[null,{"$f":"IF(C55=\"\",\"\",B54+0.1)","v":""},null,null,{"$f":"IF(ISERROR(VLOOKUP(C55,#REF!,2,0)),\"\",VLOOKUP(C55,#REF!,2,0))","v":""},null,{"$f":"IF(ISERROR(VLOOKUP(C55,#REF!,4,0)),\"\",VLOOKUP(C55,#REF!,4,0))","v":""},null,{"$f":"IF(ISERROR(F55-H55),\"\",F55-H55)","v":0},null,null,null,{"$f":"IF(ISERROR(VLOOKUP(L55,POA!$A$2:$C$25,3,0)),\"\",VLOOKUP(L55,POA!$A$2:$C$25,3,0))","v":""},null,{"$f":"IF(ISERROR(VLOOKUP(N55,POA!$A$2:$F$25,4,0)),\"\",VLOOKUP(N55,POA!$A$2:$F$25,4,0))","v":""},{"$f":"IF(ISERROR(VLOOKUP(L55,POA!$A$2:$C$25,2,0)),\"\",VLOOKUP(L55,POA!$A$2:$C$25,2,0))","v":""},null,{"$f":"IF(L55=0,\"\",IF(Q45>=$R$9,\"HABIL\",\"NO HABIL\"))","v":""},null,"",{"$f":"IF(ISERROR(VLOOKUP(N55,POA!$A$2:$F$25,5,0)),\"\",VLOOKUP(N55,POA!$A$2:$F$25,5,0))","v":""},null,"",null,{"$f":"IF(ISERROR(F55/$Z$9),\"\",F55/$Z$9)","v":0},"MIPYME",null,"",null,""]
[null,5,"CONSORCIO VIAS COLOMBIA",{"$f":"IF(SUM(D57:D66)=0,\"\",SUM(D57:D66))","v":1},{"$f":"SUM(E57:E66)","v":59417730419.520004},{"$f":"SUM(F57:F66)","v":78744649874.759995},{"$f":"SUM(G57:G66)","v":24604033580.68},{"$f":"SUM(H57:H66)","v":34028787063.959999},{"$f":"+F56-H56","v":44715862810.799995},{"$f":"SUM(J57:J66)","v":6981773629.3899994},{"$f":"SUM(K57:K66)","v":392456899.55000001},1,{"$f":"IF(ISERROR(VLOOKUP(L56,POA!$A$2:$C$25,3,0)),\"\",VLOOKUP(L56,POA!$A$2:$C$25,3,0))","v":3}," ",{"$f":"+SUM(O57:O66)","v":0},{"$f":"IF(ISERROR(VLOOKUP(L56,POA!$A$2:$C$25,2,0)),\"\",VLOOKUP(L56,POA!$A$2:$C$25,2,0))","v":4167150295},{"$f":"SUM(E56/G56)","v":2.4149589222710626},{"$f":"IF(Q56=0,\"\",IF(Q56>=$R$9,\"HABIL\",\"NO HABIL\"))","v":"HABIL"},{"$f":"SUM(H56/F56)","v":0.43214094059826708},{"$f":"IF(S56=0,\"\",IF(S56<=$T$9,\"HABIL\",\"NO HABIL\"))","v":"HABIL"},{"$f":"+SUM(U57:U66)","v":0},{"$f":"SUM(J56/K56)","v":17.789911802787667},{"$f":"IF(V56=0,\"\",IF(V56>=$W$9,\"HABIL\",\"NO HABIL\"))","v":"HABIL"},{"$f":"IF(R56=0,\"\",IF(R56=\"NO HABIL\",\"NO HABIL\",IF(T56=\"NO HABIL\",\"NO HABIL\",IF(W56=\"NO HABIL\",\"NO HABIL\",IF(W56=\"NO HABIL\",\"NO HABIL\",\"HABIL\")))))","v":"HABIL"},null,null,{"$f":"SUM(J56/I56)","v":0.15613639524146064},{"$f":"IF(AA56=0,\"\",IF(AA56>=$AB$9,\"HABIL\",\"NO HABIL\"))","v":"HABIL"},{"$f":"SUM(J56/F56)","v":8.8663466540193053E-2},{"$f":"IF(AC56=0,\"\",IF(AC56>=$AD$9,\"HABIL\",\"NO HABIL\"))","v":"HABIL"},{"$f":"IF(AB56=0,\"\",IF(AB56=\"NO HABIL\",\"NO HABIL\",IF(AD56=\"NO HABIL\",\"NO HABIL\",IF(AD56=\"NO HABIL\",\"NO HABIL\",\"HABIL\"))))","v":"HABIL"}]
["PROC. AD. FIRM. RUP",{"$f":"IF(C57=\"\",\"\",B56+0.1)","v":5.0999999999999996},"JV INGENIERIA Y CONSTRUCCIONES S.A.S.",0.6,3957725352,4961731607,659861429,1974861729,{"$f":"IF(ISERROR(F57-H57),\"\",F57-H57)","v":2986869878},661240469,49384693,null,{"$f":"IF(ISERROR(VLOOKUP(L57,POA!$A$2:$C$25,3,0)),\"\",VLOOKUP(L57,POA!$A$2:$C$25,3,0))","v":""}," ",{"$f":"IF(ISERROR(VLOOKUP(N57,POA!$A$2:$F$25,4,0)),\"\",VLOOKUP(N57,POA!$A$2:$F$25,4,0))","v":""},{"$f":"IF(ISERROR(VLOOKUP(L57,POA!$A$2:$C$25,2,0)),\"\",VLOOKUP(L57,POA!$A$2:$C$25,2,0))","v":""},null,{"$f":"IF(Q57=0,\"\",IF(Q56>=$R$9,\"HABIL\",\"NO HABIL\"))","v":""},null,{"$f":"IF(S57=0,\"\",IF(S57<=$T$9,\"HABIL\",\"NO HABIL\"))","v":""},{"$f":"IF(ISERROR(VLOOKUP(N57,POA!$A$2:$F$25,5,0)),\"\",VLOOKUP(N57,POA!$A$2:$F$25,5,0))","v":""},null,{"$f":"IF(V57=0,\"\",IF(V57>=$W$9,\"HABIL\",\"NO HABIL\"))","v":""},null,{"$f":"IF(ISERROR(F57/$Z$9),\"\",F57/$Z$9)","v":8755.4819251808713},{"$f":"+IF(Y57<$Z$10,\"MIPYME\",\"NO CUMPLE\")","v":"MIPYME"},null,{"$f":"IF(AA57=0,\"\",IF(AA57>=$AB$9,\"HABIL\",\"NO HABIL\"))","v":""},null,{"$f":"IF(AC57=0,\"\",IF(AC57>=$AD$9,\"HABIL\",\"NO HABIL\"))","v":""}]
[null,5.1999999999999993,"EXCAVACIONES JOBEPA SL SUCURSAL COLOMBIA",0.2,43457818842.730003,60509261798.559998,16688970523.41,22825025240.080002,37684236558.479996,5893424431.3599997,306012188.12,null,{"$f":"IF(ISERROR(VLOOKUP(L58,POA!$A$2:$C$25,3,0)),\"\",VLOOKUP(L58,POA!$A$2:$C$25,3,0))","v":""}," ",{"$f":"IF(ISERROR(VLOOKUP(N58,POA!$A$2:$F$25,4,0)),\"\",VLOOKUP(N58,POA!$A$2:$F$25,4,0))","v":""},{"$f":"IF(ISERROR(VLOOKUP(L58,POA!$A$2:$C$25,2,0)),\"\",VLOOKUP(L58,POA!$A$2:$C$25,2,0))","v":""},null,{"$f":"IF(Q58=0,\"\",IF(Q56>=$R$9,\"HABIL\",\"NO HABIL\"))","v":""},null,"",{"$f":"IF(ISERROR(VLOOKUP(N58,POA!$A$2:$F$25,5,0)),\"\",VLOOKUP(N58,POA!$A$2:$F$25,5,0))","v":""},null,"",null,{"$f":"IF(ISERROR(F58/$Z$9),\"\",F58/$Z$9)","v":106774.76936396681},{"$f":"+IF(Y58<$Z$10,\"MIPYME\",\"NO CUMPLE\")","v":"NO CUMPLE"},null,"",null,""]
[null,5.2999999999999989,"VIALOBRA SL SUCURSAL COLOMBIA",0.2,12002186224.790001,13273656469.200001,7255201628.2700005,9228900094.8799992,{"$f":"IF(ISERROR(F59-H59),\"\",F59-H59)","v":4044756374.3200016},427108729.02999997,37060018.43,null,{"$f":"IF(ISERROR(VLOOKUP(L59,POA!$A$2:$C$25,3,0)),\"\",VLOOKUP(L59,POA!$A$2:$C$25,3,0))","v":""},null,{"$f":"IF(ISERROR(VLOOKUP(N59,POA!$A$2:$F$25,4,0)),\"\",VLOOKUP(N59,POA!$A$2:$F$25,4,0))","v":""},{"$f":"IF(ISERROR(VLOOKUP(L59,POA!$A$2:$C$25,2,0)),\"\",VLOOKUP(L59,POA!$A$2:$C$25,2,0))","v":""},null,{"$f":"IF(Q59=0,\"\",IF(Q56>=$R$9,\"HABIL\",\"NO HABIL\"))","v":""},null,"",{"$f":"IF(ISERROR(VLOOKUP(N59,POA!$A$2:$F$25,5,0)),\"\",VLOOKUP(N59,POA!$A$2:$F$25,5,0))","v":""},null,"",null,23422.721844362099,"MIPYME",null,"",null,""]
[null,"",null,null,{"$f":"IF(ISERROR(VLOOKUP(C60,#REF!,2,0)),\"\",VLOOKUP(C60,#REF!,2,0))","v":""},null,{"$f":"IF(ISERROR(VLOOKUP(C60,#REF!,4,0)),\"\",VLOOKUP(C60,#REF!,4,0))","v":""},null,0,null,null,null,{"$f":"IF(ISERROR(VLOOKUP(L60,POA!$A$2:$C$25,3,0)),\"\",VLOOKUP(L60,POA!$A$2:$C$25,3,0))","v":""},null,{"$f":"IF(ISERROR(VLOOKUP(N60,POA!$A$2:$F$25,4,0)),\"\",VLOOKUP(N60,POA!$A$2:$F$25,4,0))","v":""},{"$f":"IF(ISERROR(VLOOKUP(L60,POA!$A$2:$C$25,2,0)),\"\",VLOOKUP(L60,POA!$A$2:$C$25,2,0))","v":""},null,{"$f":"IF(L60=0,\"\",IF(Q56>=$R$9,\"HABIL\",\"NO HABIL\"))","v":""},null,"",{"$f":"IF(ISERROR(VLOOKUP(N60,POA!$A$2:$F$25,5,0)),\"\",VLOOKUP(N60,POA!$A$2:$F$25,5,0))","v":""},null,"",null,0,"MIPYME",null,"",null,""]
[null,"",null,null,{"$f":"IF(ISERROR(VLOOKUP(C61,#REF!,2,0)),\"\",VLOOKUP(C61,#REF!,2,0))","v":""},null,{"$f":"IF(ISERROR(VLOOKUP(C61,#REF!,4,0)),\"\",VLOOKUP(C61,#REF!,4,0))","v":""},null,0,null,null,null,{"$f":"IF(ISERROR(VLOOKUP(L61,POA!$A$2:$C$25,3,0)),\"\",VLOOKUP(L61,POA!$A$2:$C$25,3,0))","v":""},null,{"$f":"IF(ISERROR(VLOOKUP(N61,POA!$A$2:$F$25,4,0)),\"\",VLOOKUP(N61,POA!$A$2:$F$25,4,0))","v":""},{"$f":"IF(ISERROR(VLOOKUP(L61,POA!$A$2:$C$25,2,0)),\"\",VLOOKUP(L61,POA!$A$2:$C$25,2,0))","v":""},null,{"$f":"IF(L61=0,\"\",IF(Q56>=$R$9,\"HABIL\",\"NO HABIL\"))","v":""},null,"",{"$f":"IF(ISERROR(VLOOKUP(N61,POA!$A$2:$F$25,5,0)),\"\",VLOOKUP(N61,POA!$A$2:$F$25,5,0))","v":""},null,"",null,0,"MIPYME",null,"",null,""]
[null,"",null,null,{"$f":"IF(ISERROR(VLOOKUP(C62,#REF!,2,0)),\"\",VLOOKUP(C62,#REF!,2,0))","v":""},null,{"$f":"IF(ISERROR(VLOOKUP(C62,#REF!,4,0)),\"\",VLOOKUP(C62,#REF!,4,0))","v":""},null,0,null,null,null,{"$f":"IF(ISERROR(VLOOKUP(L62,POA!$A$2:$C$25,3,0)),\"\",VLOOKUP(L62,POA!$A$2:$C$25,3,0))","v":""},null,{"$f":"IF(ISERROR(VLOOKUP(N62,POA!$A$2:$F$25,4,0)),\"\",VLOOKUP(N62,POA!$A$2:$F$25,4,0))","v":""},{"$f":"IF(ISERROR(VLOOKUP(L62,POA!$A$2:$C$25,2,0)),\"\",VLOOKUP(L62,POA!$A$2:$C$25,2,0))","v":""},null,{"$f":"IF(L62=0,\"\",IF(Q56>=$R$9,\"HABIL\",\"NO HABIL\"))","v":""},null,"",{"$f":"IF(ISERROR(VLOOKUP(N62,POA!$A$2:$F$25,5,0)),\"\",VLOOKUP(N62,POA!$A$2:$F$25,5,0))","v":""},null,"",null,0,"MIPYME",null,"",null,""]
[null,{"$f":"IF(C63=\"\",\"\",B62+0.1)","v":""},null,null,{"$f":"IF(ISERROR(VLOOKUP(C63,#REF!,2,0)),\"\",VLOOKUP(C63,#REF!,2,0))","v":""},null,{"$f":"IF(ISERROR(VLOOKUP(C63,#REF!,4,0)),\"\",VLOOKUP(C63,#REF!,4,0))","v":""},null,{"$f":"IF(ISERROR(F63-H63),\"\",F63-H63)","v":0},null,null,null,{"$f":"IF(ISERROR(VLOOKUP(L63,POA!$A$2:$C$25,3,0)),\"\",VLOOKUP(L63,POA!$A$2:$C$25,3,0))","v":""},null,{"$f":"IF(ISERROR(VLOOKUP(N63,POA!$A$2:$F$25,4,0)),\"\",VLOOKUP(N63,POA!$A$2:$F$25,4,0))","v":""},{"$f":"IF(ISERROR(VLOOKUP(L63,POA!$A$2:$C$25,2,0)),\"\",VLOOKUP(L63,POA!$A$2:$C$25,2,0))","v":""},null,{"$f":"IF(L63=0,\"\",IF(Q56>=$R$9,\"HABIL\",\"NO HABIL\"))","v":""},null,"",{"$f":"IF(ISERROR(VLOOKUP(N63,POA!$A$2:$F$25,5,0)),\"\",VLOOKUP(N63,POA!$A$2:$F$25,5,0))","v":""},null,"",null,0,"MIPYME",null,"",null,""]
[null,{"$f":"IF(C64=\"\",\"\",B63+0.1)","v":""},null,null,{"$f":"IF(ISERROR(VLOOKUP(C64,#REF!,2,0)),\"\",VLOOKUP(C64,#REF!,2,0))","v":""},null,{"$f":"IF(ISERROR(VLOOKUP(C64,#REF!,4,0)),\"\",VLOOKUP(C64,#REF!,4,0))","v":""},null,{"$f":"IF(ISERROR(F64-H64),\"\",F64-H64)","v":0},null,null,null,{"$f":"IF(ISERROR(VLOOKUP(L64,POA!$A$2:$C$25,3,0)),\"\",VLOOKUP(L64,POA!$A$2:$C$25,3,0))","v":""},null,{"$f":"IF(ISERROR(VLOOKUP(N64,POA!$A$2:$F$25,4,0)),\"\",VLOOKUP(N64,POA!$A$2:$F$25,4,0))","v":""},{"$f":"IF(ISERROR(VLOOKUP(L64,POA!$A$2:$C$25,2,0)),\"\",VLOOKUP(L64,POA!$A$2:$C$25,2,0))","v":""},null,{"$f":"IF(L64=0,\"\",IF(Q56>=$R$9,\"HABIL\",\"NO HABIL\"))","v":""},null,"",{"$f":"IF(ISERROR(VLOOKUP(N64,POA!$A$2:$F$25,5,0)),\"\",VLOOKUP(N64,POA!$A$2:$F$25,5,0))","v":""},null,"",null,0,"MIPYME",null,"",null,""]
[null,{"$f":"IF(C65=\"\",\"\",B64+0.1)","v":""},null,null,{"$f":"IF(ISERROR(VLOOKUP(C65,#REF!,2,0)),\"\",VLOOKUP(C65,#REF!,2,0))","v":""},null,{"$f":"IF(ISERROR(VLOOKUP(C65,#REF!,4,0)),\"\",VLOOKUP(C65,#REF!,4,0))","v":""},null,{"$f":"IF(ISERROR(F65-H65),\"\",F65-H65)","v":0},null,null,null,{"$f":"IF(ISERROR(VLOOKUP(L65,POA!$A$2:$C$25,3,0)),\"\",VLOOKUP(L65,POA!$A$2:$C$25,3,0))","v":""},null,{"$f":"IF(ISERROR(VLOOKUP(N65,POA!$A$2:$F$25,4,0)),\"\",VLOOKUP(N65,POA!$A$2:$F$25,4,0))","v":""},{"$f":"IF(ISERROR(VLOOKUP(L65,POA!$A$2:$C$25,2,0)),\"\",VLOOKUP(L65,POA!$A$2:$C$25,2,0))","v":""},null,{"$f":"IF(L65=0,\"\",IF(Q56>=$R$9,\"HABIL\",\"NO HABIL\"))","v":""},null,"",{"$f":"IF(ISERROR(VLOOKUP(N65,POA!$A$2:$F$25,5,0)),\"\",VLOOKUP(N65,POA!$A$2:$F$25,5,0))","v":""},null,"",null,0,"MIPYME",null,"",null,""]
[null,{"$f":"IF(C66=\"\",\"\",B65+0.1)","v":""},null,null,{"$f":"IF(ISERROR(VLOOKUP(C66,#REF!,2,0)),\"\",VLOOKUP(C66,#REF!,2,0))","v":""},null,{"$f":"IF(ISERROR(VLOOKUP(C66,#REF!,4,0)),\"\",VLOOKUP(C66,#REF!,4,0))","v":""},null,{"$f":"IF(ISERROR(F66-H66),\"\",F66-H66)","v":0},null,null,null,{"$f":"IF(ISERROR(VLOOKUP(L66,POA!$A$2:$C$25,3,0)),\"\",VLOOKUP(L66,POA!$A$2:$C$25,3,0))","v":""},null,{"$f":"IF(ISERROR(VLOOKUP(N66,POA!$A$2:$F$25,4,0)),\"\",VLOOKUP(N66,POA!$A$2:$F$25,4,0))","v":""},{"$f":"IF(ISERROR(VLOOKUP(L66,POA!$A$2:$C$25,2,0)),\"\",VLOOKUP(L66,POA!$A$2:$C$25,2,0))","v":""},null,{"$f":"IF(L66=0,\"\",IF(Q56>=$R$9,\"HABIL\",\"NO HABIL\"))","v":""},null,"",{"$f":"IF(ISERROR(VLOOKUP(N66,POA!$A$2:$F$25,5,0)),\"\",VLOOKUP(N66,POA!$A$2:$F$25,5,0))","v":""},null,"",null,{"$f":"IF(ISERROR(F66/$Z$9),\"\",F66/$Z$9)","v":0},"MIPYME",null,"",null,""]
[null,6,"CONSORCIO SALITRE BRICEÑO",{"$f":"IF(SUM(D68:D77)=0,\"\",SUM(D68:D77))","v":1},{"$f":"SUM(E68:E77)","v":13256970890},{"$f":"SUM(F68:F77)","v":20474261255},{"$f":"SUM(G68:G77)","v":10726944203},{"$f":"SUM(H68:H77)","v":11556143093},{"$f":"+F67-H67","v":8918118162},{"$f":"SUM(J68:J77)","v":1486974136},{"$f":"SUM(K68:K77)","v":136865617},1,{"$f":"IF(ISERROR(VLOOKUP(L67,POA!$A$2:$C$25,3,0)),\"\",VLOOKUP(L67,POA!$A$2:$C$25,3,0))","v":3}," ",{"$f":"+SUM(O68:O77)","v":0},{"$f":"IF(ISERROR(VLOOKUP(L67,POA!$A$2:$C$25,2,0)),\"\",VLOOKUP(L67,POA!$A$2:$C$25,2,0))","v":4167150295},{"$f":"SUM(E67/G67)","v":1.2358571685580717},{"$f":"IF(Q67=0,\"\",IF(Q67>=$R$9,\"HABIL\",\"NO HABIL\"))","v":"HABIL"},{"$f":"SUM(H67/F67)","v":0.56442295763798978},{"$f":"IF(S67=0,\"\",IF(S67<=$T$9,\"HABIL\",\"NO HABIL\"))","v":"HABIL"},{"$f":"+SUM(U68:U77)","v":0},{"$f":"SUM(J67/K67)","v":10.864482757565035},{"$f":"IF(V67=0,\"\",IF(V67>=$W$9,\"HABIL\",\"NO HABIL\"))","v":"HABIL"},{"$f":"IF(R67=0,\"\",IF(R67=\"NO HABIL\",\"NO HABIL\",IF(T67=\"NO HABIL\",\"NO HABIL\",IF(W67=\"NO HABIL\",\"NO HABIL\",IF(W67=\"NO HABIL\",\"NO HABIL\",\"HABIL\")))))","v":"HABIL"},null,null,{"$f":"SUM(J67/I67)","v":0.1667363124135291},{"$f":"IF(AA67=0,\"\",IF(AA67>=$AB$9,\"HABIL\",\"NO HABIL\"))","v":"HABIL"},{"$f":"SUM(J67/F67)","v":7.2626509815433143E-2},{"$f":"IF(AC67=0,\"\",IF(AC67>=$AD$9,\"HABIL\",\"NO HABIL\"))","v":"HABIL"},{"$f":"IF(AB67=0,\"\",IF(AB67=\"NO HABIL\",\"NO HABIL\",IF(AD67=\"NO HABIL\",\"NO HABIL\",IF(AD67=\"NO HABIL\",\"NO HABIL\",\"HABIL\"))))","v":"HABIL"}]
[null,{"$f":"IF(C68=\"\",\"\",B67+0.1)","v":6.1},"GEOCING S.A.S.",0.5,3391878042,4666016102,1976694597,2769323817,{"$f":"IF(ISERROR(F68-H68),\"\",F68-H68)","v":1896692285},982464382,113248139,null,{"$f":"IF(ISERROR(VLOOKUP(L68,POA!$A$2:$C$25,3,0)),\"\",VLOOKUP(L68,POA!$A$2:$C$25,3,0))","v":""}," ",{"$f":"IF(ISERROR(VLOOKUP(N68,POA!$A$2:$F$25,4,0)),\"\",VLOOKUP(N68,POA!$A$2:$F$25,4,0))","v":""},{"$f":"IF(ISERROR(VLOOKUP(L68,POA!$A$2:$C$25,2,0)),\"\",VLOOKUP(L68,POA!$A$2:$C$25,2,0))","v":""},null,{"$f":"IF(Q68=0,\"\",IF(Q67>=$R$9,\"HABIL\",\"NO HABIL\"))","v":""},null,{"$f":"IF(S68=0,\"\",IF(S68<=$T$9,\"HABIL\",\"NO HABIL\"))","v":""},{"$f":"IF(ISERROR(VLOOKUP(N68,POA!$A$2:$F$25,5,0)),\"\",VLOOKUP(N68,POA!$A$2:$F$25,5,0))","v":""},null,{"$f":"IF(V68=0,\"\",IF(V68>=$W$9,\"HABIL\",\"NO HABIL\"))","v":""},null,{"$f":"IF(ISERROR(F68/$Z$9),\"\",F68/$Z$9)","v":8233.6617293100408},{"$f":"+IF(Y68<$Z$10,\"MIPYME\",\"NO CUMPLE\")","v":"MIPYME"},null,{"$f":"IF(AA68=0,\"\",IF(AA68>=$AB$9,\"HABIL\",\"NO HABIL\"))","v":""},null,{"$f":"IF(AC68=0,\"\",IF(AC68>=$AD$9,\"HABIL\",\"NO HABIL\"))","v":""}]
[null,6.1999999999999993,"URBAMED INFRAESTRUCTURAS SLU",0.5,9865092848,15808245153,8750249606,8786819276,7021425877,504509754,23617478,null,{"$f":"IF(ISERROR(VLOOKUP(L69,POA!$A$2:$C$25,3,0)),\"\",VLOOKUP(L69,POA!$A$2:$C$25,3,0))","v":""}," ",{"$f":"IF(ISERROR(VLOOKUP(N69,POA!$A$2:$F$25,4,0)),\"\",VLOOKUP(N69,POA!$A$2:$F$25,4,0))","v":""},{"$f":"IF(ISERROR(VLOOKUP(L69,POA!$A$2:$C$25,2,0)),\"\",VLOOKUP(L69,POA!$A$2:$C$25,2,0))","v":""},null,{"$f":"IF(Q69=0,\"\",IF(Q67>=$R$9,\"HABIL\",\"NO HABIL\"))","v":""},null,"",{"$f":"IF(ISERROR(VLOOKUP(N69,POA!$A$2:$F$25,5,0)),\"\",VLOOKUP(N69,POA!$A$2:$F$25,5,0))","v":""},null,"",null,{"$f":"IF(ISERROR(F69/$Z$9),\"\",F69/$Z$9)","v":27895.26231339333},{"$f":"+IF(Y69<$Z$10,\"MIPYME\",\"NO CUMPLE\")","v":"MIPYME"},null,"",null,""]
[null,"",null,null,null,null,null,null,{"$f":"IF(ISERROR(F70-H70),\"\",F70-H70)","v":0},null,null,null,{"$f":"IF(ISERROR(VLOOKUP(L70,POA!$A$2:$C$25,3,0)),\"\",VLOOKUP(L70,POA!$A$2:$C$25,3,0))","v":""},null,{"$f":"IF(ISERROR(VLOOKUP(N70,POA!$A$2:$F$25,4,0)),\"\",VLOOKUP(N70,POA!$A$2:$F$25,4,0))","v":""},{"$f":"IF(ISERROR(VLOOKUP(L70,POA!$A$2:$C$25,2,0)),\"\",VLOOKUP(L70,POA!$A$2:$C$25,2,0))","v":""},null,{"$f":"IF(Q70=0,\"\",IF(Q67>=$R$9,\"HABIL\",\"NO HABIL\"))","v":""},null,"",{"$f":"IF(ISERROR(VLOOKUP(N70,POA!$A$2:$F$25,5,0)),\"\",VLOOKUP(N70,POA!$A$2:$F$25,5,0))","v":""},null,"",null,0,"MIPYME",null,"",null,""]
[null,"",null,null,{"$f":"IF(ISERROR(VLOOKUP(C71,#REF!,2,0)),\"\",VLOOKUP(C71,#REF!,2,0))","v":""},null,{"$f":"IF(ISERROR(VLOOKUP(C71,#REF!,4,0)),\"\",VLOOKUP(C71,#REF!,4,0))","v":""},null,0,null,null,null,{"$f":"IF(ISERROR(VLOOKUP(L71,POA!$A$2:$C$25,3,0)),\"\",VLOOKUP(L71,POA!$A$2:$C$25,3,0))","v":""},null,{"$f":"IF(ISERROR(VLOOKUP(N71,POA!$A$2:$F$25,4,0)),\"\",VLOOKUP(N71,POA!$A$2:$F$25,4,0))","v":""},{"$f":"IF(ISERROR(VLOOKUP(L71,POA!$A$2:$C$25,2,0)),\"\",VLOOKUP(L71,POA!$A$2:$C$25,2,0))","v":""},null,{"$f":"IF(L71=0,\"\",IF(Q67>=$R$9,\"HABIL\",\"NO HABIL\"))","v":""},null,"",{"$f":"IF(ISERROR(VLOOKUP(N71,POA!$A$2:$F$25,5,0)),\"\",VLOOKUP(N71,POA!$A$2:$F$25,5,0))","v":""},null,"",null,0,"MIPYME",null,"",null,""]
[null,"",null,null,{"$f":"IF(ISERROR(VLOOKUP(C72,#REF!,2,0)),\"\",VLOOKUP(C72,#REF!,2,0))","v":""},null,{"$f":"IF(ISERROR(VLOOKUP(C72,#REF!,4,0)),\"\",VLOOKUP(C72,#REF!,4,0))","v":""},null,0,null,null,null,{"$f":"IF(ISERROR(VLOOKUP(L72,POA!$A$2:$C$25,3,0)),\"\",VLOOKUP(L72,POA!$A$2:$C$25,3,0))","v":""},null,{"$f":"IF(ISERROR(VLOOKUP(N72,POA!$A$2:$F$25,4,0)),\"\",VLOOKUP(N72,POA!$A$2:$F$25,4,0))","v":""},{"$f":"IF(ISERROR(VLOOKUP(L72,POA!$A$2:$C$25,2,0)),\"\",VLOOKUP(L72,POA!$A$2:$C$25,2,0))","v":""},null,{"$f":"IF(L72=0,\"\",IF(Q67>=$R$9,\"HABIL\",\"NO HABIL\"))","v":""},null,"",{"$f":"IF(ISERROR(VLOOKUP(N72,POA!$A$2:$F$25,5,0)),\"\",VLOOKUP(N72,POA!$A$2:$F$25,5,0))","v":""},null,"",null,0,"MIPYME",null,"",null,""]
[null,"",null,null,{"$f":"IF(ISERROR(VLOOKUP(C73,#REF!,2,0)),\"\",VLOOKUP(C73,#REF!,2,0))","v":""},null,{"$f":"IF(ISERROR(VLOOKUP(C73,#REF!,4,0)),\"\",VLOOKUP(C73,#REF!,4,0))","v":""},null,0,null,null,null,{"$f":"IF(ISERROR(VLOOKUP(L73,POA!$A$2:$C$25,3,0)),\"\",VLOOKUP(L73,POA!$A$2:$C$25,3,0))","v":""},null,{"$f":"IF(ISERROR(VLOOKUP(N73,POA!$A$2:$F$25,4,0)),\"\",VLOOKUP(N73,POA!$A$2:$F$25,4,0))","v":""},{"$f":"IF(ISERROR(VLOOKUP(L73,POA!$A$2:$C$25,2,0)),\"\",VLOOKUP(L73,POA!$A$2:$C$25,2,0))","v":""},null,{"$f":"IF(L73=0,\"\",IF(Q67>=$R$9,\"HABIL\",\"NO HABIL\"))","v":""},null,"",{"$f":"IF(ISERROR(VLOOKUP(N73,POA!$A$2:$F$25,5,0)),\"\",VLOOKUP(N73,POA!$A$2:$F$25,5,0))","v":""},null,"",null,0,"MIPYME",null,"",null,""]
[null,{"$f":"IF(C74=\"\",\"\",B73+0.1)","v":""},null,null,{"$f":"IF(ISERROR(VLOOKUP(C74,#REF!,2,0)),\"\",VLOOKUP(C74,#REF!,2,0))","v":""},null,{"$f":"IF(ISERROR(VLOOKUP(C74,#REF!,4,0)),\"\",VLOOKUP(C74,#REF!,4,0))","v":""},null,{"$f":"IF(ISERROR(F74-H74),\"\",F74-H74)","v":0},null,null,null,{"$f":"IF(ISERROR(VLOOKUP(L74,POA!$A$2:$C$25,3,0)),\"\",VLOOKUP(L74,POA!$A$2:$C$25,3,0))","v":""},null,{"$f":"IF(ISERROR(VLOOKUP(N74,POA!$A$2:$F$25,4,0)),\"\",VLOOKUP(N74,POA!$A$2:$F$25,4,0))","v":""},{"$f":"IF(ISERROR(VLOOKUP(L74,POA!$A$2:$C$25,2,0)),\"\",VLOOKUP(L74,POA!$A$2:$C$25,2,0))","v":""},null,{"$f":"IF(L74=0,\"\",IF(Q67>=$R$9,\"HABIL\",\"NO HABIL\"))","v":""},null,"",{"$f":"IF(ISERROR(VLOOKUP(N74,POA!$A$2:$F$25,5,0)),\"\",VLOOKUP(N74,POA!$A$2:$F$25,5,0))","v":""},null,"",null,0,"MIPYME",null,"",null,""]
[null,{"$f":"IF(C75=\"\",\"\",B74+0.1)","v":""},null,null,{"$f":"IF(ISERROR(VLOOKUP(C75,#REF!,2,0)),\"\",VLOOKUP(C75,#REF!,2,0))","v":""},null,{"$f":"IF(ISERROR(VLOOKUP(C75,#REF!,4,0)),\"\",VLOOKUP(C75,#REF!,4,0))","v":""},null,{"$f":"IF(ISERROR(F75-H75),\"\",F75-H75)","v":0},null,null,null,{"$f":"IF(ISERROR(VLOOKUP(L75,POA!$A$2:$C$25,3,0)),\"\",VLOOKUP(L75,POA!$A$2:$C$25,3,0))","v":""},null,{"$f":"IF(ISERROR(VLOOKUP(N75,POA!$A$2:$F$25,4,0)),\"\",VLOOKUP(N75,POA!$A$2:$F$25,4,0))","v":""},{"$f":"IF(ISERROR(VLOOKUP(L75,POA!$A$2:$C$25,2,0)),\"\",VLOOKUP(L75,POA!$A$2:$C$25,2,0))","v":""},null,{"$f":"IF(L75=0,\"\",IF(Q67>=$R$9,\"HABIL\",\"NO HABIL\"))","v":""},null,"",{"$f":"IF(ISERROR(VLOOKUP(N75,POA!$A$2:$F$25,5,0)),\"\",VLOOKUP(N75,POA!$A$2:$F$25,5,0))","v":""},null,"",null,0,"MIPYME",null,"",null,""]
[null,{"$f":"IF(C76=\"\",\"\",B75+0.1)","v":""},null,null,{"$f":"IF(ISERROR(VLOOKUP(C76,#REF!,2,0)),\"\",VLOOKUP(C76,#REF!,2,0))","v":""},null,{"$f":"IF(ISERROR(VLOOKUP(C76,#REF!,4,0)),\"\",VLOOKUP(C76,#REF!,4,0))","v":""},null,{"$f":"IF(ISERROR(F76-H76),\"\",F76-H76)","v":0},null,null,null,{"$f":"IF(ISERROR(VLOOKUP(L76,POA!$A$2:$C$25,3,0)),\"\",VLOOKUP(L76,POA!$A$2:$C$25,3,0))","v":""},null,{"$f":"IF(ISERROR(VLOOKUP(N76,POA!$A$2:$F$25,4,0)),\"\",VLOOKUP(N76,POA!$A$2:$F$25,4,0))","v":""},{"$f":"IF(ISERROR(VLOOKUP(L76,POA!$A$2:$C$25,2,0)),\"\",VLOOKUP(L76,POA!$A$2:$C$25,2,0))","v":""},null,{"$f":"IF(L76=0,\"\",IF(Q67>=$R$9,\"HABIL\",\"NO HABIL\"))","v":""},null,"",{"$f":"IF(ISERROR(VLOOKUP(N76,POA!$A$2:$F$25,5,0)),\"\",VLOOKUP(N76,POA!$A$2:$F$25,5,0))","v":""},null,"",null,0,"MIPYME",null,"",null,""]
[null,{"$f":"IF(C77=\"\",\"\",B76+0.1)","v":""},null,null,{"$f":"IF(ISERROR(VLOOKUP(C77,#REF!,2,0)),\"\",VLOOKUP(C77,#REF!,2,0))","v":""},null,{"$f":"IF(ISERROR(VLOOKUP(C77,#REF!,4,0)),\"\",VLOOKUP(C77,#REF!,4,0))","v":""},null,{"$f":"IF(ISERROR(F77-H77),\"\",F77-H77)","v":0},null,null,null,{"$f":"IF(ISERROR(VLOOKUP(L77,POA!$A$2:$C$25,3,0)),\"\",VLOOKUP(L77,POA!$A$2:$C$25,3,0))","v":""},null,{"$f":"IF(ISERROR(VLOOKUP(N77,POA!$A$2:$F$25,4,0)),\"\",VLOOKUP(N77,POA!$A$2:$F$25,4,0))","v":""},{"$f":"IF(ISERROR(VLOOKUP(L77,POA!$A$2:$C$25,2,0)),\"\",VLOOKUP(L77,POA!$A$2:$C$25,2,0))","v":""},null,{"$f":"IF(L77=0,\"\",IF(Q67>=$R$9,\"HABIL\",\"NO HABIL\"))","v":""},null,"",{"$f":"IF(ISERROR(VLOOKUP(N77,POA!$A$2:$F$25,5,0)),\"\",VLOOKUP(N77,POA!$A$2:$F$25,5,0))","v":""},null,"",null,{"$f":"IF(ISERROR(F77/$Z$9),\"\",F77/$Z$9)","v":0},"MIPYME",null,"",null,""]
[null,7,"CONSORCIO AC - AINCOL",{"$f":"IF(SUM(D79:D88)=0,\"\",SUM(D79:D88))","v":1},{"$f":"SUM(E79:E88)","v":13643706289},{"$f":"SUM(F79:F88)","v":14084106289},{"$f":"SUM(G79:G88)","v":288376786},{"$f":"SUM(H79:H88)","v":331613315},{"$f":"+F78-H78","v":13752492974},{"$f":"SUM(J79:J88)","v":1549471378},{"$f":"SUM(K79:K88)","v":14086949},1,{"$f":"IF(ISERROR(VLOOKUP(L78,POA!$A$2:$C$25,3,0)),\"\",VLOOKUP(L78,POA!$A$2:$C$25,3,0))","v":3}," ",{"$f":"+SUM(O79:O88)","v":0},{"$f":"IF(ISERROR(VLOOKUP(L78,POA!$A$2:$C$25,2,0)),\"\",VLOOKUP(L78,POA!$A$2:$C$25,2,0))","v":4167150295},{"$f":"SUM(E78/G78)","v":47.312082495433593},{"$f":"IF(Q78=0,\"\",IF(Q78>=$R$9,\"HABIL\",\"NO HABIL\"))","v":"HABIL"},{"$f":"SUM(H78/F78)","v":2.3545215308336417E-2},{"$f":"IF(S78=0,\"\",IF(S78<=$T$9,\"HABIL\",\"NO HABIL\"))","v":"HABIL"},{"$f":"+SUM(U79:U88)","v":0},{"$f":"SUM(J78/K78)","v":109.99339729277078},{"$f":"IF(V78=0,\"\",IF(V78>=$W$9,\"HABIL\",\"NO HABIL\"))","v":"HABIL"},{"$f":"IF(R78=0,\"\",IF(R78=\"NO HABIL\",\"NO HABIL\",IF(T78=\"NO HABIL\",\"NO HABIL\",IF(W78=\"NO HABIL\",\"NO HABIL\",IF(W78=\"NO HABIL\",\"NO HABIL\",\"HABIL\")))))","v":"HABIL"},null,null,{"$f":"SUM(J78/I78)","v":0.11266839989879496},{"$f":"IF(AA78=0,\"\",IF(AA78>=$AB$9,\"HABIL\",\"NO HABIL\"))","v":"HABIL"},{"$f":"SUM(J78/F78)","v":0.11001559816473208},{"$f":"IF(AC78=0,\"\",IF(AC78>=$AD$9,\"HABIL\",\"NO HABIL\"))","v":"HABIL"},{"$f":"IF(AB78=0,\"\",IF(AB78=\"NO HABIL\",\"NO HABIL\",IF(AD78=\"NO HABIL\",\"NO HABIL\",IF(AD78=\"NO HABIL\",\"NO HABIL\",\"HABIL\"))))","v":"HABIL"}]
[null,{"$f":"IF(C79=\"\",\"\",B78+0.1)","v":7.1},"AINCOL S.A.S.",0.3,10748663079,11189063079,235415000,235415000,{"$f":"IF(ISERROR(F79-H79),\"\",F79-H79)","v":10953648079},1365506080,9368521,null,{"$f":"IF(ISERROR(VLOOKUP(L79,POA!$A$2:$C$25,3,0)),\"\",VLOOKUP(L79,POA!$A$2:$C$25,3,0))","v":""}," ",{"$f":"IF(ISERROR(VLOOKUP(N79,POA!$A$2:$F$25,4,0)),\"\",VLOOKUP(N79,POA!$A$2:$F$25,4,0))","v":""},{"$f":"IF(ISERROR(VLOOKUP(L79,POA!$A$2:$C$25,2,0)),\"\",VLOOKUP(L79,POA!$A$2:$C$25,2,0))","v":""},null,{"$f":"IF(Q79=0,\"\",IF(Q78>=$R$9,\"HABIL\",\"NO HABIL\"))","v":""},null,{"$f":"IF(S79=0,\"\",IF(S79<=$T$9,\"HABIL\",\"NO HABIL\"))","v":""},{"$f":"IF(ISERROR(VLOOKUP(N79,POA!$A$2:$F$25,5,0)),\"\",VLOOKUP(N79,POA!$A$2:$F$25,5,0))","v":""},null,{"$f":"IF(V79=0,\"\",IF(V79>=$W$9,\"HABIL\",\"NO HABIL\"))","v":""},null,{"$f":"IF(ISERROR(F79/$Z$9),\"\",F79/$Z$9)","v":19744.244007411329},{"$f":"+IF(Y79<$Z$10,\"MIPYME\",\"NO CUMPLE\")","v":"MIPYME"},null,{"$f":"IF(AA79=0,\"\",IF(AA79>=$AB$9,\"HABIL\",\"NO HABIL\"))","v":""},null,{"$f":"IF(AC79=0,\"\",IF(AC79>=$AD$9,\"HABIL\",\"NO HABIL\"))","v":""}]
[null,7.1999999999999993,"AC INGENIERIA Y CONSTRUCCIONES S.A.S.",0.7,2895043210,2895043210,52961786,96198315,2798844895,183965298,4718428,null,{"$f":"IF(ISERROR(VLOOKUP(L80,POA!$A$2:$C$25,3,0)),\"\",VLOOKUP(L80,POA!$A$2:$C$25,3,0))","v":""}," ",{"$f":"IF(ISERROR(VLOOKUP(N80,POA!$A$2:$F$25,4,0)),\"\",VLOOKUP(N80,POA!$A$2:$F$25,4,0))","v":""},{"$f":"IF(ISERROR(VLOOKUP(L80,POA!$A$2:$C$25,2,0)),\"\",VLOOKUP(L80,POA!$A$2:$C$25,2,0))","v":""},null,{"$f":"IF(Q80=0,\"\",IF(Q78>=$R$9,\"HABIL\",\"NO HABIL\"))","v":""},null,"",{"$f":"IF(ISERROR(VLOOKUP(N80,POA!$A$2:$F$25,5,0)),\"\",VLOOKUP(N80,POA!$A$2:$F$25,5,0))","v":""},null,"",null,{"$f":"IF(ISERROR(F80/$Z$9),\"\",F80/$Z$9)","v":5108.5992765131459},{"$f":"+IF(Y80<$Z$10,\"MIPYME\",\"NO CUMPLE\")","v":"MIPYME"},null,"",null,""]
[null,"",null,null,null,null,null,null,{"$f":"IF(ISERROR(F81-H81),\"\",F81-H81)","v":0},null,null,null,{"$f":"IF(ISERROR(VLOOKUP(L81,POA!$A$2:$C$25,3,0)),\"\",VLOOKUP(L81,POA!$A$2:$C$25,3,0))","v":""},null,{"$f":"IF(ISERROR(VLOOKUP(N81,POA!$A$2:$F$25,4,0)),\"\",VLOOKUP(N81,POA!$A$2:$F$25,4,0))","v":""},{"$f":"IF(ISERROR(VLOOKUP(L81,POA!$A$2:$C$25,2,0)),\"\",VLOOKUP(L81,POA!$A$2:$C$25,2,0))","v":""},null,{"$f":"IF(Q81=0,\"\",IF(Q78>=$R$9,\"HABIL\",\"NO HABIL\"))","v":""},null,"",{"$f":"IF(ISERROR(VLOOKUP(N81,POA!$A$2:$F$25,5,0)),\"\",VLOOKUP(N81,POA!$A$2:$F$25,5,0))","v":""},null,"",null,0,"MIPYME",null,"",null,""]
[null,"",null,null,{"$f":"IF(ISERROR(VLOOKUP(C82,#REF!,2,0)),\"\",VLOOKUP(C82,#REF!,2,0))","v":""},null,{"$f":"IF(ISERROR(VLOOKUP(C82,#REF!,4,0)),\"\",VLOOKUP(C82,#REF!,4,0))","v":""},null,0,null,null,null,{"$f":"IF(ISERROR(VLOOKUP(L82,POA!$A$2:$C$25,3,0)),\"\",VLOOKUP(L82,POA!$A$2:$C$25,3,0))","v":""},null,{"$f":"IF(ISERROR(VLOOKUP(N82,POA!$A$2:$F$25,4,0)),\"\",VLOOKUP(N82,POA!$A$2:$F$25,4,0))","v":""},{"$f":"IF(ISERROR(VLOOKUP(L82,POA!$A$2:$C$25,2,0)),\"\",VLOOKUP(L82,POA!$A$2:$C$25,2,0))","v":""},null,{"$f":"IF(L82=0,\"\",IF(Q78>=$R$9,\"HABIL\",\"NO HABIL\"))","v":""},null,"",{"$f":"IF(ISERROR(VLOOKUP(N82,POA!$A$2:$F$25,5,0)),\"\",VLOOKUP(N82,POA!$A$2:$F$25,5,0))","v":""},null,"",null,0,"MIPYME",null,"",null,""]
[null,"",null,null,{"$f":"IF(ISERROR(VLOOKUP(C83,#REF!,2,0)),\"\",VLOOKUP(C83,#REF!,2,0))","v":""},null,{"$f":"IF(ISERROR(VLOOKUP(C83,#REF!,4,0)),\"\",VLOOKUP(C83,#REF!,4,0))","v":""},null,0,null,null,null,{"$f":"IF(ISERROR(VLOOKUP(L83,POA!$A$2:$C$25,3,0)),\"\",VLOOKUP(L83,POA!$A$2:$C$25,3,0))","v":""},null,{"$f":"IF(ISERROR(VLOOKUP(N83,POA!$A$2:$F$25,4,0)),\"\",VLOOKUP(N83,POA!$A$2:$F$25,4,0))","v":""},{"$f":"IF(ISERROR(VLOOKUP(L83,POA!$A$2:$C$25,2,0)),\"\",VLOOKUP(L83,POA!$A$2:$C$25,2,0))","v":""},null,{"$f":"IF(L83=0,\"\",IF(Q78>=$R$9,\"HABIL\",\"NO HABIL\"))","v":""},null,"",{"$f":"IF(ISERROR(VLOOKUP(N83,POA!$A$2:$F$25,5,0)),\"\",VLOOKUP(N83,POA!$A$2:$F$25,5,0))","v":""},null,"",null,0,"MIPYME",null,"",null,""]
[null,"",null,null,{"$f":"IF(ISERROR(VLOOKUP(C84,#REF!,2,0)),\"\",VLOOKUP(C84,#REF!,2,0))","v":""},null,{"$f":"IF(ISERROR(VLOOKUP(C84,#REF!,4,0)),\"\",VLOOKUP(C84,#REF!,4,0))","v":""},null,0,null,null,null,{"$f":"IF(ISERROR(VLOOKUP(L84,POA!$A$2:$C$25,3,0)),\"\",VLOOKUP(L84,POA!$A$2:$C$25,3,0))","v":""},null,{"$f":"IF(ISERROR(VLOOKUP(N84,POA!$A$2:$F$25,4,0)),\"\",VLOOKUP(N84,POA!$A$2:$F$25,4,0))","v":""},{"$f":"IF(ISERROR(VLOOKUP(L84,POA!$A$2:$C$25,2,0)),\"\",VLOOKUP(L84,POA!$A$2:$C$25,2,0))","v":""},null,{"$f":"IF(L84=0,\"\",IF(Q78>=$R$9,\"HABIL\",\"NO HABIL\"))","v":""},null,"",{"$f":"IF(ISERROR(VLOOKUP(N84,POA!$A$2:$F$25,5,0)),\"\",VLOOKUP(N84,POA!$A$2:$F$25,5,0))","v":""},null,"",null,0,"MIPYME",null,"",null,""]
[null,{"$f":"IF(C85=\"\",\"\",B84+0.1)","v":""},null,null,{"$f":"IF(ISERROR(VLOOKUP(C85,#REF!,2,0)),\"\",VLOOKUP(C85,#REF!,2,0))","v":""},null,{"$f":"IF(ISERROR(VLOOKUP(C85,#REF!,4,0)),\"\",VLOOKUP(C85,#REF!,4,0))","v":""},null,{"$f":"IF(ISERROR(F85-H85),\"\",F85-H85)","v":0},null,null,null,{"$f":"IF(ISERROR(VLOOKUP(L85,POA!$A$2:$C$25,3,0)),\"\",VLOOKUP(L85,POA!$A$2:$C$25,3,0))","v":""},null,{"$f":"IF(ISERROR(VLOOKUP(N85,POA!$A$2:$F$25,4,0)),\"\",VLOOKUP(N85,POA!$A$2:$F$25,4,0))","v":""},{"$f":"IF(ISERROR(VLOOKUP(L85,POA!$A$2:$C$25,2,0)),\"\",VLOOKUP(L85,POA!$A$2:$C$25,2,0))","v":""},null,{"$f":"IF(L85=0,\"\",IF(Q78>=$R$9,\"HABIL\",\"NO HABIL\"))","v":""},null,"",{"$f":"IF(ISERROR(VLOOKUP(N85,POA!$A$2:$F$25,5,0)),\"\",VLOOKUP(N85,POA!$A$2:$F$25,5,0))","v":""},null,"",null,0,"MIPYME",null,"",null,""]
[null,{"$f":"IF(C86=\"\",\"\",B85+0.1)","v":""},null,null,{"$f":"IF(ISERROR(VLOOKUP(C86,#REF!,2,0)),\"\",VLOOKUP(C86,#REF!,2,0))","v":""},null,{"$f":"IF(ISERROR(VLOOKUP(C86,#REF!,4,0)),\"\",VLOOKUP(C86,#REF!,4,0))","v":""},null,{"$f":"IF(ISERROR(F86-H86),\"\",F86-H86)","v":0},null,null,null,{"$f":"IF(ISERROR(VLOOKUP(L86,POA!$A$2:$C$25,3,0)),\"\",VLOOKUP(L86,POA!$A$2:$C$25,3,0))","v":""},null,{"$f":"IF(ISERROR(VLOOKUP(N86,POA!$A$2:$F$25,4,0)),\"\",VLOOKUP(N86,POA!$A$2:$F$25,4,0))","v":""},{"$f":"IF(ISERROR(VLOOKUP(L86,POA!$A$2:$C$25,2,0)),\"\",VLOOKUP(L86,POA!$A$2:$C$25,2,0))","v":""},null,{"$f":"IF(L86=0,\"\",IF(Q78>=$R$9,\"HABIL\",\"NO HABIL\"))","v":""},null,"",{"$f":"IF(ISERROR(VLOOKUP(N86,POA!$A$2:$F$25,5,0)),\"\",VLOOKUP(N86,POA!$A$2:$F$25,5,0))","v":""},null,"",null,0,"MIPYME",null,"",null,""]
[null,{"$f":"IF(C87=\"\",\"\",B86+0.1)","v":""},null,null,{"$f":"IF(ISERROR(VLOOKUP(C87,#REF!,2,0)),\"\",VLOOKUP(C87,#REF!,2,0))","v":""},null,{"$f":"IF(ISERROR(VLOOKUP(C87,#REF!,4,0)),\"\",VLOOKUP(C87,#REF!,4,0))","v":""},null,{"$f":"IF(ISERROR(F87-H87),\"\",F87-H87)","v":0},null,null,null,{"$f":"IF(ISERROR(VLOOKUP(L87,POA!$A$2:$C$25,3,0)),\"\",VLOOKUP(L87,POA!$A$2:$C$25,3,0))","v":""},null,{"$f":"IF(ISERROR(VLOOKUP(N87,POA!$A$2:$F$25,4,0)),\"\",VLOOKUP(N87,POA!$A$2:$F$25,4,0))","v":""},{"$f":"IF(ISERROR(VLOOKUP(L87,POA!$A$2:$C$25,2,0)),\"\",VLOOKUP(L87,POA!$A$2:$C$25,2,0))","v":""},null,{"$f":"IF(L87=0,\"\",IF(Q78>=$R$9,\"HABIL\",\"NO HABIL\"))","v":""},null,"",{"$f":"IF(ISERROR(VLOOKUP(N87,POA!$A$2:$F$25,5,0)),\"\",VLOOKUP(N87,POA!$A$2:$F$25,5,0))","v":""},null,"",null,0,"MIPYME",null,"",null,""]
[null,{"$f":"IF(C88=\"\",\"\",B87+0.1)","v":""},null,null,{"$f":"IF(ISERROR(VLOOKUP(C88,#REF!,2,0)),\"\",VLOOKUP(C88,#REF!,2,0))","v":""},null,{"$f":"IF(ISERROR(VLOOKUP(C88,#REF!,4,0)),\"\",VLOOKUP(C88,#REF!,4,0))","v":""},null,{"$f":"IF(ISERROR(F88-H88),\"\",F88-H88)","v":0},null,null,null,{"$f":"IF(ISERROR(VLOOKUP(L88,POA!$A$2:$C$25,3,0)),\"\",VLOOKUP(L88,POA!$A$2:$C$25,3,0))","v":""},null,{"$f":"IF(ISERROR(VLOOKUP(N88,POA!$A$2:$F$25,4,0)),\"\",VLOOKUP(N88,POA!$A$2:$F$25,4,0))","v":""},{"$f":"IF(ISERROR(VLOOKUP(L88,POA!$A$2:$C$25,2,0)),\"\",VLOOKUP(L88,POA!$A$2:$C$25,2,0))","v":""},null,{"$f":"IF(L88=0,\"\",IF(Q78>=$R$9,\"HABIL\",\"NO HABIL\"))","v":""},null,"",{"$f":"IF(ISERROR(VLOOKUP(N88,POA!$A$2:$F$25,5,0)),\"\",VLOOKUP(N88,POA!$A$2:$F$25,5,0))","v":""},null,"",null,{"$f":"IF(ISERROR(F88/$Z$9),\"\",F88/$Z$9)","v":0},"MIPYME",null,"",null,""]
[null,8,"CONSULTORIA Y CONSTRUCCION LTDA.",{"$f":"IF(SUM(D90:D99)=0,\"\",SUM(D90:D99))","v":1},{"$f":"SUM(E90:E99)","v":9298906000},{"$f":"SUM(F90:F99)","v":9911241000},{"$f":"SUM(G90:G99)","v":2275741000},{"$f":"SUM(H90:H99)","v":3673356000},{"$f":"+F89-H89","v":6237885000},{"$f":"SUM(J90:J99)","v":1097539000},{"$f":"SUM(K90:K99)","v":200364000},1,{"$f":"IF(ISERROR(VLOOKUP(L89,POA!$A$2:$C$25,3,0)),\"\",VLOOKUP(L89,POA!$A$2:$C$25,3,0))","v":3}," ",{"$f":"+SUM(O90:O99)","v":0},{"$f":"IF(ISERROR(VLOOKUP(L89,POA!$A$2:$C$25,2,0)),\"\",VLOOKUP(L89,POA!$A$2:$C$25,2,0))","v":4167150295},{"$f":"SUM(E89/G89)","v":4.086100307548179},{"$f":"IF(Q89=0,\"\",IF(Q89>=$R$9,\"HABIL\",\"NO HABIL\"))","v":"HABIL"},{"$f":"SUM(H89/F89)","v":0.37062523250115703},{"$f":"IF(S89=0,\"\",IF(S89<=$T$9,\"HABIL\",\"NO HABIL\"))","v":"HABIL"},{"$f":"+SUM(U90:U99)","v":0},{"$f":"SUM(J89/K89)","v":5.4777255395180768},{"$f":"IF(V89=0,\"\",IF(V89>=$W$9,\"HABIL\",\"NO HABIL\"))","v":"HABIL"},{"$f":"IF(R89=0,\"\",IF(R89=\"NO HABIL\",\"NO HABIL\",IF(T89=\"NO HABIL\",\"NO HABIL\",IF(W89=\"NO HABIL\",\"NO HABIL\",IF(W89=\"NO HABIL\",\"NO HABIL\",\"HABIL\")))))","v":"HABIL"},null,null,{"$f":"SUM(J89/I89)","v":0.17594729623902974},{"$f":"IF(AA89=0,\"\",IF(AA89>=$AB$9,\"HABIL\",\"NO HABIL\"))","v":"HABIL"},{"$f":"SUM(J89/F89)","v":0.11073678866248939},{"$f":"IF(AC89=0,\"\",IF(AC89>=$AD$9,\"HABIL\",\"NO HABIL\"))","v":"HABIL"},{"$f":"IF(AB89=0,\"\",IF(AB89=\"NO HABIL\",\"NO HABIL\",IF(AD89=\"NO HABIL\",\"NO HABIL\",IF(AD89=\"NO HABIL\",\"NO HABIL\",\"HABIL\"))))","v":"HABIL"}]
[null,{"$f":"IF(C90=\"\",\"\",B89+0.1)","v":8.1},"CONSULTORIA Y CONSTRUCCION LTDA.",1,9298906000,9911241000,2275741000,3673356000,{"$f":"IF(ISERROR(F90-H90),\"\",F90-H90)","v":6237885000},1097539000,200364000,null,{"$f":"IF(ISERROR(VLOOKUP(L90,POA!$A$2:$C$25,3,0)),\"\",VLOOKUP(L90,POA!$A$2:$C$25,3,0))","v":""}," ",{"$f":"IF(ISERROR(VLOOKUP(N90,POA!$A$2:$F$25,4,0)),\"\",VLOOKUP(N90,POA!$A$2:$F$25,4,0))","v":""},{"$f":"IF(ISERROR(VLOOKUP(L90,POA!$A$2:$C$25,2,0)),\"\",VLOOKUP(L90,POA!$A$2:$C$25,2,0))","v":""},null,{"$f":"IF(Q90=0,\"\",IF(Q89>=$R$9,\"HABIL\",\"NO HABIL\"))","v":""},null,{"$f":"IF(S90=0,\"\",IF(S90<=$T$9,\"HABIL\",\"NO HABIL\"))","v":""},{"$f":"IF(ISERROR(VLOOKUP(N90,POA!$A$2:$F$25,5,0)),\"\",VLOOKUP(N90,POA!$A$2:$F$25,5,0))","v":""},null,{"$f":"IF(V90=0,\"\",IF(V90>=$W$9,\"HABIL\",\"NO HABIL\"))","v":""},null,{"$f":"IF(ISERROR(F90/$Z$9),\"\",F90/$Z$9)","v":17489.396506087876},{"$f":"+IF(Y90<$Z$10,\"MIPYME\",\"NO CUMPLE\")","v":"MIPYME"},null,{"$f":"IF(AA90=0,\"\",IF(AA90>=$AB$9,\"HABIL\",\"NO HABIL\"))","v":""},null,{"$f":"IF(AC90=0,\"\",IF(AC90>=$AD$9,\"HABIL\",\"NO HABIL\"))","v":""}]
[null,"",null,null,null,null,null,null,0,null,null,null,{"$f":"IF(ISERROR(VLOOKUP(L91,POA!$A$2:$C$25,3,0)),\"\",VLOOKUP(L91,POA!$A$2:$C$25,3,0))","v":""}," ",{"$f":"IF(ISERROR(VLOOKUP(N91,POA!$A$2:$F$25,4,0)),\"\",VLOOKUP(N91,POA!$A$2:$F$25,4,0))","v":""},{"$f":"IF(ISERROR(VLOOKUP(L91,POA!$A$2:$C$25,2,0)),\"\",VLOOKUP(L91,POA!$A$2:$C$25,2,0))","v":""},null,{"$f":"IF(Q91=0,\"\",IF(Q89>=$R$9,\"HABIL\",\"NO HABIL\"))","v":""},null,"",{"$f":"IF(ISERROR(VLOOKUP(N91,POA!$A$2:$F$25,5,0)),\"\",VLOOKUP(N91,POA!$A$2:$F$25,5,0))","v":""},null,"",null,{"$f":"IF(ISERROR(F91/$Z$9),\"\",F91/$Z$9)","v":0},{"$f":"+IF(Y91<$Z$10,\"MIPYME\",\"NO CUMPLE\")","v":"MIPYME"},null,"",null,""]
[null,"",null,null,null,null,null,null,0,null,null,null,{"$f":"IF(ISERROR(VLOOKUP(L92,POA!$A$2:$C$25,3,0)),\"\",VLOOKUP(L92,POA!$A$2:$C$25,3,0))","v":""},null,{"$f":"IF(ISERROR(VLOOKUP(N92,POA!$A$2:$F$25,4,0)),\"\",VLOOKUP(N92,POA!$A$2:$F$25,4,0))","v":""},{"$f":"IF(ISERROR(VLOOKUP(L92,POA!$A$2:$C$25,2,0)),\"\",VLOOKUP(L92,POA!$A$2:$C$25,2,0))","v":""},null,{"$f":"IF(Q92=0,\"\",IF(Q89>=$R$9,\"HABIL\",\"NO HABIL\"))","v":""},null,"",{"$f":"IF(ISERROR(VLOOKUP(N92,POA!$A$2:$F$25,5,0)),\"\",VLOOKUP(N92,POA!$A$2:$F$25,5,0))","v":""},null,"",null,0,"MIPYME",null,"",null,""]
[null,"",null,null,{"$f":"IF(ISERROR(VLOOKUP(C93,#REF!,2,0)),\"\",VLOOKUP(C93,#REF!,2,0))","v":""},null,{"$f":"IF(ISERROR(VLOOKUP(C93,#REF!,4,0)),\"\",VLOOKUP(C93,#REF!,4,0))","v":""},null,0,null,null,null,{"$f":"IF(ISERROR(VLOOKUP(L93,POA!$A$2:$C$25,3,0)),\"\",VLOOKUP(L93,POA!$A$2:$C$25,3,0))","v":""},null,{"$f":"IF(ISERROR(VLOOKUP(N93,POA!$A$2:$F$25,4,0)),\"\",VLOOKUP(N93,POA!$A$2:$F$25,4,0))","v":""},{"$f":"IF(ISERROR(VLOOKUP(L93,POA!$A$2:$C$25,2,0)),\"\",VLOOKUP(L93,POA!$A$2:$C$25,2,0))","v":""},null,{"$f":"IF(L93=0,\"\",IF(Q89>=$R$9,\"HABIL\",\"NO HABIL\"))","v":""},null,"",{"$f":"IF(ISERROR(VLOOKUP(N93,POA!$A$2:$F$25,5,0)),\"\",VLOOKUP(N93,POA!$A$2:$F$25,5,0))","v":""},null,"",null,0,"MIPYME",null,"",null,""]
[null,"",null,null,{"$f":"IF(ISERROR(VLOOKUP(C94,#REF!,2,0)),\"\",VLOOKUP(C94,#REF!,2,0))","v":""},null,{"$f":"IF(ISERROR(VLOOKUP(C94,#REF!,4,0)),\"\",VLOOKUP(C94,#REF!,4,0))","v":""},null,0,null,null,null,{"$f":"IF(ISERROR(VLOOKUP(L94,POA!$A$2:$C$25,3,0)),\"\",VLOOKUP(L94,POA!$A$2:$C$25,3,0))","v":""},null,{"$f":"IF(ISERROR(VLOOKUP(N94,POA!$A$2:$F$25,4,0)),\"\",VLOOKUP(N94,POA!$A$2:$F$25,4,0))","v":""},{"$f":"IF(ISERROR(VLOOKUP(L94,POA!$A$2:$C$25,2,0)),\"\",VLOOKUP(L94,POA!$A$2:$C$25,2,0))","v":""},null,{"$f":"IF(L94=0,\"\",IF(Q89>=$R$9,\"HABIL\",\"NO HABIL\"))","v":""},null,"",{"$f":"IF(ISERROR(VLOOKUP(N94,POA!$A$2:$F$25,5,0)),\"\",VLOOKUP(N94,POA!$A$2:$F$25,5,0))","v":""},null,"",null,0,"MIPYME",null,"",null,""]
[null,"",null,null,{"$f":"IF(ISERROR(VLOOKUP(C95,#REF!,2,0)),\"\",VLOOKUP(C95,#REF!,2,0))","v":""},null,{"$f":"IF(ISERROR(VLOOKUP(C95,#REF!,4,0)),\"\",VLOOKUP(C95,#REF!,4,0))","v":""},null,0,null,null,null,{"$f":"IF(ISERROR(VLOOKUP(L95,POA!$A$2:$C$25,3,0)),\"\",VLOOKUP(L95,POA!$A$2:$C$25,3,0))","v":""},null,{"$f":"IF(ISERROR(VLOOKUP(N95,POA!$A$2:$F$25,4,0)),\"\",VLOOKUP(N95,POA!$A$2:$F$25,4,0))","v":""},{"$f":"IF(ISERROR(VLOOKUP(L95,POA!$A$2:$C$25,2,0)),\"\",VLOOKUP(L95,POA!$A$2:$C$25,2,0))","v":""},null,{"$f":"IF(L95=0,\"\",IF(Q89>=$R$9,\"HABIL\",\"NO HABIL\"))","v":""},null,"",{"$f":"IF(ISERROR(VLOOKUP(N95,POA!$A$2:$F$25,5,0)),\"\",VLOOKUP(N95,POA!$A$2:$F$25,5,0))","v":""},null,"",null,0,"MIPYME",null,"",null,""]
[null,{"$f":"IF(C96=\"\",\"\",B95+0.1)","v":""},null,null,{"$f":"IF(ISERROR(VLOOKUP(C96,#REF!,2,0)),\"\",VLOOKUP(C96,#REF!,2,0))","v":""},null,{"$f":"IF(ISERROR(VLOOKUP(C96,#REF!,4,0)),\"\",VLOOKUP(C96,#REF!,4,0))","v":""},null,{"$f":"IF(ISERROR(F96-H96),\"\",F96-H96)","v":0},null,null,null,{"$f":"IF(ISERROR(VLOOKUP(L96,POA!$A$2:$C$25,3,0)),\"\",VLOOKUP(L96,POA!$A$2:$C$25,3,0))","v":""},null,{"$f":"IF(ISERROR(VLOOKUP(N96,POA!$A$2:$F$25,4,0)),\"\",VLOOKUP(N96,POA!$A$2:$F$25,4,0))","v":""},{"$f":"IF(ISERROR(VLOOKUP(L96,POA!$A$2:$C$25,2,0)),\"\",VLOOKUP(L96,POA!$A$2:$C$25,2,0))","v":""},null,{"$f":"IF(L96=0,\"\",IF(Q89>=$R$9,\"HABIL\",\"NO HABIL\"))","v":""},null,"",{"$f":"IF(ISERROR(VLOOKUP(N96,POA!$A$2:$F$25,5,0)),\"\",VLOOKUP(N96,POA!$A$2:$F$25,5,0))","v":""},null,"",null,0,"MIPYME",null,"",null,""]
[null,{"$f":"IF(C97=\"\",\"\",B96+0.1)","v":""},null,null,{"$f":"IF(ISERROR(VLOOKUP(C97,#REF!,2,0)),\"\",VLOOKUP(C97,#REF!,2,0))","v":""},null,{"$f":"IF(ISERROR(VLOOKUP(C97,#REF!,4,0)),\"\",VLOOKUP(C97,#REF!,4,0))","v":""},null,{"$f":"IF(ISERROR(F97-H97),\"\",F97-H97)","v":0},null,null,null,{"$f":"IF(ISERROR(VLOOKUP(L97,POA!$A$2:$C$25,3,0)),\"\",VLOOKUP(L97,POA!$A$2:$C$25,3,0))","v":""},null,{"$f":"IF(ISERROR(VLOOKUP(N97,POA!$A$2:$F$25,4,0)),\"\",VLOOKUP(N97,POA!$A$2:$F$25,4,0))","v":""},{"$f":"IF(ISERROR(VLOOKUP(L97,POA!$A$2:$C$25,2,0)),\"\",VLOOKUP(L97,POA!$A$2:$C$25,2,0))","v":""},null,{"$f":"IF(L97=0,\"\",IF(Q89>=$R$9,\"HABIL\",\"NO HABIL\"))","v":""},null,"",{"$f":"IF(ISERROR(VLOOKUP(N97,POA!$A$2:$F$25,5,0)),\"\",VLOOKUP(N97,POA!$A$2:$F$25,5,0))","v":""},null,"",null,0,"MIPYME",null,"",null,""]
[null,{"$f":"IF(C98=\"\",\"\",B97+0.1)","v":""},null,null,{"$f":"IF(ISERROR(VLOOKUP(C98,#REF!,2,0)),\"\",VLOOKUP(C98,#REF!,2,0))","v":""},null,{"$f":"IF(ISERROR(VLOOKUP(C98,#REF!,4,0)),\"\",VLOOKUP(C98,#REF!,4,0))","v":""},null,{"$f":"IF(ISERROR(F98-H98),\"\",F98-H98)","v":0},null,null,null,{"$f":"IF(ISERROR(VLOOKUP(L98,POA!$A$2:$C$25,3,0)),\"\",VLOOKUP(L98,POA!$A$2:$C$25,3,0))","v":""},null,{"$f":"IF(ISERROR(VLOOKUP(N98,POA!$A$2:$F$25,4,0)),\"\",VLOOKUP(N98,POA!$A$2:$F$25,4,0))","v":""},{"$f":"IF(ISERROR(VLOOKUP(L98,POA!$A$2:$C$25,2,0)),\"\",VLOOKUP(L98,POA!$A$2:$C$25,2,0))","v":""},null,{"$f":"IF(L98=0,\"\",IF(Q89>=$R$9,\"HABIL\",\"NO HABIL\"))","v":""},null,"",{"$f":"IF(ISERROR(VLOOKUP(N98,POA!$A$2:$F$25,5,0)),\"\",VLOOKUP(N98,POA!$A$2:$F$25,5,0))","v":""},null,"",null,0,"MIPYME",null,"",null,""]
[null,{"$f":"IF(C99=\"\",\"\",B98+0.1)","v":""},null,null,{"$f":"IF(ISERROR(VLOOKUP(C99,#REF!,2,0)),\"\",VLOOKUP(C99,#REF!,2,0))","v":""},null,{"$f":"IF(ISERROR(VLOOKUP(C99,#REF!,4,0)),\"\",VLOOKUP(C99,#REF!,4,0))","v":""},null,{"$f":"IF(ISERROR(F99-H99),\"\",F99-H99)","v":0},null,null,null,{"$f":"IF(ISERROR(VLOOKUP(L99,POA!$A$2:$C$25,3,0)),\"\",VLOOKUP(L99,POA!$A$2:$C$25,3,0))","v":""},null,{"$f":"IF(ISERROR(VLOOKUP(N99,POA!$A$2:$F$25,4,0)),\"\",VLOOKUP(N99,POA!$A$2:$F$25,4,0))","v":""},{"$f":"IF(ISERROR(VLOOKUP(L99,POA!$A$2:$C$25,2,0)),\"\",VLOOKUP(L99,POA!$A$2:$C$25,2,0))","v":""},null,{"$f":"IF(L99=0,\"\",IF(Q89>=$R$9,\"HABIL\",\"NO HABIL\"))","v":""},null,"",{"$f":"IF(ISERROR(VLOOKUP(N99,POA!$A$2:$F$25,5,0)),\"\",VLOOKUP(N99,POA!$A$2:$F$25,5,0))","v":""},null,"",null,{"$f":"IF(ISERROR(F99/$Z$9),\"\",F99/$Z$9)","v":0},"MIPYME",null,"",null,""]
[null,9,"CONSORCIO INFRAESTRUCUTRA VIAL",{"$f":"IF(SUM(D101:D110)=0,\"\",SUM(D101:D110))","v":1},{"$f":"SUM(E101:E110)","v":13777073117},{"$f":"SUM(F101:F110)","v":18919808476},{"$f":"SUM(G101:G110)","v":1813666118},{"$f":"SUM(H101:H110)","v":6957305887},{"$f":"+F100-H100","v":11962502589},{"$f":"SUM(J101:J110)","v":1393195624},{"$f":"SUM(K101:K110)","v":18522981},1,{"$f":"IF(ISERROR(VLOOKUP(L100,POA!$A$2:$C$25,3,0)),\"\",VLOOKUP(L100,POA!$A$2:$C$25,3,0))","v":3}," ",{"$f":"+SUM(O101:O110)","v":0},{"$f":"IF(ISERROR(VLOOKUP(L100,POA!$A$2:$C$25,2,0)),\"\",VLOOKUP(L100,POA!$A$2:$C$25,2,0))","v":4167150295},{"$f":"SUM(E100/G100)","v":7.5962565437306138},{"$f":"IF(Q100=0,\"\",IF(Q100>=$R$9,\"HABIL\",\"NO HABIL\"))","v":"HABIL"},{"$f":"SUM(H100/F100)","v":0.36772602089632273},{"$f":"IF(S100=0,\"\",IF(S100<=$T$9,\"HABIL\",\"NO HABIL\"))","v":"HABIL"},{"$f":"+SUM(U101:U110)","v":0},{"$f":"SUM(J100/K100)","v":75.21443897178321},{"$f":"IF(V100=0,\"\",IF(V100>=$W$9,\"HABIL\",\"NO HABIL\"))","v":"HABIL"},{"$f":"IF(R100=0,\"\",IF(R100=\"NO HABIL\",\"NO HABIL\",IF(T100=\"NO HABIL\",\"NO HABIL\",IF(W100=\"NO HABIL\",\"NO HABIL\",IF(W100=\"NO HABIL\",\"NO HABIL\",\"HABIL\")))))","v":"HABIL"},null,null,{"$f":"SUM(J100/I100)","v":0.11646355882765694},{"$f":"IF(AA100=0,\"\",IF(AA100>=$AB$9,\"HABIL\",\"NO HABIL\"))","v":"HABIL"},{"$f":"SUM(J100/F100)","v":7.3636877760537858E-2},{"$f":"IF(AC100=0,\"\",IF(AC100>=$AD$9,\"HABIL\",\"NO HABIL\"))","v":"HABIL"},{"$f":"IF(AB100=0,\"\",IF(AB100=\"NO HABIL\",\"NO HABIL\",IF(AD100=\"NO HABIL\",\"NO HABIL\",IF(AD100=\"NO HABIL\",\"NO HABIL\",\"HABIL\"))))","v":"HABIL"}]
[null,{"$f":"IF(C101=\"\",\"\",B100+0.1)","v":9.1},"VNF S.A.S",0.8,{"$f":"IF(ISERROR(VLOOKUP(C101,[1]TD!$4:$65536,2,0)),\"\",VLOOKUP(C101,[1]TD!$4:$65536,2,0))","v":7530553117},{"$f":"IF(ISERROR(VLOOKUP(C101,[1]TD!$4:$65536,3,0)),\"\",VLOOKUP(C101,[1]TD!$4:$65536,3,0))","v":11666991476},{"$f":"IF(ISERROR(VLOOKUP(C101,[1]TD!$4:$65536,4,0)),\"\",VLOOKUP(C101,[1]TD!$4:$65536,4,0))","v":1727553118},{"$f":"IF(ISERROR(VLOOKUP(C101,[1]TD!$4:$65536,5,0)),\"\",VLOOKUP(C101,[1]TD!$4:$65536,5,0))","v":4729845887},{"$f":"IF(ISERROR(F101-H101),\"\",F101-H101)","v":6937145589},{"$f":"IF(ISERROR(VLOOKUP(C101,[1]TD!$4:$65536,6,0)),\"\",VLOOKUP(C101,[1]TD!$4:$65536,6,0))","v":850785624},{"$f":"IF(ISERROR(VLOOKUP(C101,[1]TD!$4:$65536,7,0)),\"\",VLOOKUP(C101,[1]TD!$4:$65536,7,0))","v":4494981},null,{"$f":"IF(ISERROR(VLOOKUP(L101,POA!$A$2:$C$25,3,0)),\"\",VLOOKUP(L101,POA!$A$2:$C$25,3,0))","v":""}," ",{"$f":"IF(ISERROR(VLOOKUP(N101,POA!$A$2:$F$25,4,0)),\"\",VLOOKUP(N101,POA!$A$2:$F$25,4,0))","v":""},{"$f":"IF(ISERROR(VLOOKUP(L101,POA!$A$2:$C$25,2,0)),\"\",VLOOKUP(L101,POA!$A$2:$C$25,2,0))","v":""},null,{"$f":"IF(Q101=0,\"\",IF(Q100>=$R$9,\"HABIL\",\"NO HABIL\"))","v":""},null,{"$f":"IF(S101=0,\"\",IF(S101<=$T$9,\"HABIL\",\"NO HABIL\"))","v":""},{"$f":"IF(ISERROR(VLOOKUP(N101,POA!$A$2:$F$25,5,0)),\"\",VLOOKUP(N101,POA!$A$2:$F$25,5,0))","v":""},null,{"$f":"IF(V101=0,\"\",IF(V101>=$W$9,\"HABIL\",\"NO HABIL\"))","v":""},null,{"$f":"IF(ISERROR(F101/$Z$9),\"\",F101/$Z$9)","v":20587.597451914593},{"$f":"+IF(Y101<$Z$10,\"MIPYME\",\"NO CUMPLE\")","v":"MIPYME"},null,{"$f":"IF(AA101=0,\"\",IF(AA101>=$AB$9,\"HABIL\",\"NO HABIL\"))","v":""},null,{"$f":"IF(AC101=0,\"\",IF(AC101>=$AD$9,\"HABIL\",\"NO HABIL\"))","v":""}]
[null,9.1999999999999993,"HORACIO VEGA CARDENAS",0.2,{"$f":"IF(ISERROR(VLOOKUP(C102,[1]TD!$4:$65536,2,0)),\"\",VLOOKUP(C102,[1]TD!$4:$65536,2,0))","v":6246520000},{"$f":"IF(ISERROR(VLOOKUP(C102,[1]TD!$4:$65536,3,0)),\"\",VLOOKUP(C102,[1]TD!$4:$65536,3,0))","v":7252817000},{"$f":"IF(ISERROR(VLOOKUP(C102,[1]TD!$4:$65536,4,0)),\"\",VLOOKUP(C102,[1]TD!$4:$65536,4,0))","v":86113000},{"$f":"IF(ISERROR(VLOOKUP(C102,[1]TD!$4:$65536,5,0)),\"\",VLOOKUP(C102,[1]TD!$4:$65536,5,0))","v":2227460000},5025357000,{"$f":"IF(ISERROR(VLOOKUP(C102,[1]TD!$4:$65536,6,0)),\"\",VLOOKUP(C102,[1]TD!$4:$65536,6,0))","v":542410000},{"$f":"IF(ISERROR(VLOOKUP(C102,[1]TD!$4:$65536,7,0)),\"\",VLOOKUP(C102,[1]TD!$4:$65536,7,0))","v":14028000},null,{"$f":"IF(ISERROR(VLOOKUP(L102,POA!$A$2:$C$25,3,0)),\"\",VLOOKUP(L102,POA!$A$2:$C$25,3,0))","v":""}," ",{"$f":"IF(ISERROR(VLOOKUP(N102,POA!$A$2:$F$25,4,0)),\"\",VLOOKUP(N102,POA!$A$2:$F$25,4,0))","v":""},{"$f":"IF(ISERROR(VLOOKUP(L102,POA!$A$2:$C$25,2,0)),\"\",VLOOKUP(L102,POA!$A$2:$C$25,2,0))","v":""},null,{"$f":"IF(Q102=0,\"\",IF(Q100>=$R$9,\"HABIL\",\"NO HABIL\"))","v":""},null,"",{"$f":"IF(ISERROR(VLOOKUP(N102,POA!$A$2:$F$25,5,0)),\"\",VLOOKUP(N102,POA!$A$2:$F$25,5,0))","v":""},null,"",null,{"$f":"IF(ISERROR(F102/$Z$9),\"\",F102/$Z$9)","v":12798.335980236458},{"$f":"+IF(Y102<$Z$10,\"MIPYME\",\"NO CUMPLE\")","v":"MIPYME"},null,"",null,""]
[null,"",null,null,null,null,null,null,{"$f":"IF(ISERROR(F103-H103),\"\",F103-H103)","v":0},null,null,null,{"$f":"IF(ISERROR(VLOOKUP(L103,POA!$A$2:$C$25,3,0)),\"\",VLOOKUP(L103,POA!$A$2:$C$25,3,0))","v":""},null,{"$f":"IF(ISERROR(VLOOKUP(N103,POA!$A$2:$F$25,4,0)),\"\",VLOOKUP(N103,POA!$A$2:$F$25,4,0))","v":""},{"$f":"IF(ISERROR(VLOOKUP(L103,POA!$A$2:$C$25,2,0)),\"\",VLOOKUP(L103,POA!$A$2:$C$25,2,0))","v":""},null,{"$f":"IF(Q103=0,\"\",IF(Q100>=$R$9,\"HABIL\",\"NO HABIL\"))","v":""},null,"",{"$f":"IF(ISERROR(VLOOKUP(N103,POA!$A$2:$F$25,5,0)),\"\",VLOOKUP(N103,POA!$A$2:$F$25,5,0))","v":""},null,"",null,0,"MIPYME",null,"",null,""]
[null,"",null,null,{"$f":"IF(ISERROR(VLOOKUP(C104,#REF!,2,0)),\"\",VLOOKUP(C104,#REF!,2,0))","v":""},null,{"$f":"IF(ISERROR(VLOOKUP(C104,#REF!,4,0)),\"\",VLOOKUP(C104,#REF!,4,0))","v":""},null,0,null,null,null,{"$f":"IF(ISERROR(VLOOKUP(L104,POA!$A$2:$C$25,3,0)),\"\",VLOOKUP(L104,POA!$A$2:$C$25,3,0))","v":""},null,{"$f":"IF(ISERROR(VLOOKUP(N104,POA!$A$2:$F$25,4,0)),\"\",VLOOKUP(N104,POA!$A$2:$F$25,4,0))","v":""},{"$f":"IF(ISERROR(VLOOKUP(L104,POA!$A$2:$C$25,2,0)),\"\",VLOOKUP(L104,POA!$A$2:$C$25,2,0))","v":""},null,{"$f":"IF(L104=0,\"\",IF(Q100>=$R$9,\"HABIL\",\"NO HABIL\"))","v":""},null,"",{"$f":"IF(ISERROR(VLOOKUP(N104,POA!$A$2:$F$25,5,0)),\"\",VLOOKUP(N104,POA!$A$2:$F$25,5,0))","v":""},null,"",null,0,"MIPYME",null,"",null,""]
[null,"",null,null,{"$f":"IF(ISERROR(VLOOKUP(C105,#REF!,2,0)),\"\",VLOOKUP(C105,#REF!,2,0))","v":""},null,{"$f":"IF(ISERROR(VLOOKUP(C105,#REF!,4,0)),\"\",VLOOKUP(C105,#REF!,4,0))","v":""},null,0,null,null,null,{"$f":"IF(ISERROR(VLOOKUP(L105,POA!$A$2:$C$25,3,0)),\"\",VLOOKUP(L105,POA!$A$2:$C$25,3,0))","v":""},null,{"$f":"IF(ISERROR(VLOOKUP(N105,POA!$A$2:$F$25,4,0)),\"\",VLOOKUP(N105,POA!$A$2:$F$25,4,0))","v":""},{"$f":"IF(ISERROR(VLOOKUP(L105,POA!$A$2:$C$25,2,0)),\"\",VLOOKUP(L105,POA!$A$2:$C$25,2,0))","v":""},null,{"$f":"IF(L105=0,\"\",IF(Q100>=$R$9,\"HABIL\",\"NO HABIL\"))","v":""},null,"",{"$f":"IF(ISERROR(VLOOKUP(N105,POA!$A$2:$F$25,5,0)),\"\",VLOOKUP(N105,POA!$A$2:$F$25,5,0))","v":""},null,"",null,0,"MIPYME",null,"",null,""]
[null,"",null,null,{"$f":"IF(ISERROR(VLOOKUP(C106,#REF!,2,0)),\"\",VLOOKUP(C106,#REF!,2,0))","v":""},null,{"$f":"IF(ISERROR(VLOOKUP(C106,#REF!,4,0)),\"\",VLOOKUP(C106,#REF!,4,0))","v":""},null,0,null,null,null,{"$f":"IF(ISERROR(VLOOKUP(L106,POA!$A$2:$C$25,3,0)),\"\",VLOOKUP(L106,POA!$A$2:$C$25,3,0))","v":""},null,{"$f":"IF(ISERROR(VLOOKUP(N106,POA!$A$2:$F$25,4,0)),\"\",VLOOKUP(N106,POA!$A$2:$F$25,4,0))","v":""},{"$f":"IF(ISERROR(VLOOKUP(L106,POA!$A$2:$C$25,2,0)),\"\",VLOOKUP(L106,POA!$A$2:$C$25,2,0))","v":""},null,{"$f":"IF(L106=0,\"\",IF(Q100>=$R$9,\"HABIL\",\"NO HABIL\"))","v":""},null,"",{"$f":"IF(ISERROR(VLOOKUP(N106,POA!$A$2:$F$25,5,0)),\"\",VLOOKUP(N106,POA!$A$2:$F$25,5,0))","v":""},null,"",null,0,"MIPYME",null,"",null,""]
[null,{"$f":"IF(C107=\"\",\"\",B106+0.1)","v":""},null,null,{"$f":"IF(ISERROR(VLOOKUP(C107,#REF!,2,0)),\"\",VLOOKUP(C107,#REF!,2,0))","v":""},null,{"$f":"IF(ISERROR(VLOOKUP(C107,#REF!,4,0)),\"\",VLOOKUP(C107,#REF!,4,0))","v":""},null,{"$f":"IF(ISERROR(F107-H107),\"\",F107-H107)","v":0},null,null,null,{"$f":"IF(ISERROR(VLOOKUP(L107,POA!$A$2:$C$25,3,0)),\"\",VLOOKUP(L107,POA!$A$2:$C$25,3,0))","v":""},null,{"$f":"IF(ISERROR(VLOOKUP(N107,POA!$A$2:$F$25,4,0)),\"\",VLOOKUP(N107,POA!$A$2:$F$25,4,0))","v":""},{"$f":"IF(ISERROR(VLOOKUP(L107,POA!$A$2:$C$25,2,0)),\"\",VLOOKUP(L107,POA!$A$2:$C$25,2,0))","v":""},null,{"$f":"IF(L107=0,\"\",IF(Q100>=$R$9,\"HABIL\",\"NO HABIL\"))","v":""},null,"",{"$f":"IF(ISERROR(VLOOKUP(N107,POA!$A$2:$F$25,5,0)),\"\",VLOOKUP(N107,POA!$A$2:$F$25,5,0))","v":""},null,"",null,0,"MIPYME",null,"",null,""]
[null,{"$f":"IF(C108=\"\",\"\",B107+0.1)","v":""},null,null,{"$f":"IF(ISERROR(VLOOKUP(C108,#REF!,2,0)),\"\",VLOOKUP(C108,#REF!,2,0))","v":""},null,{"$f":"IF(ISERROR(VLOOKUP(C108,#REF!,4,0)),\"\",VLOOKUP(C108,#REF!,4,0))","v":""},null,{"$f":"IF(ISERROR(F108-H108),\"\",F108-H108)","v":0},null,null,null,{"$f":"IF(ISERROR(VLOOKUP(L108,POA!$A$2:$C$25,3,0)),\"\",VLOOKUP(L108,POA!$A$2:$C$25,3,0))","v":""},null,{"$f":"IF(ISERROR(VLOOKUP(N108,POA!$A$2:$F$25,4,0)),\"\",VLOOKUP(N108,POA!$A$2:$F$25,4,0))","v":""},{"$f":"IF(ISERROR(VLOOKUP(L108,POA!$A$2:$C$25,2,0)),\"\",VLOOKUP(L108,POA!$A$2:$C$25,2,0))","v":""},null,{"$f":"IF(L108=0,\"\",IF(Q100>=$R$9,\"HABIL\",\"NO HABIL\"))","v":""},null,"",{"$f":"IF(ISERROR(VLOOKUP(N108,POA!$A$2:$F$25,5,0)),\"\",VLOOKUP(N108,POA!$A$2:$F$25,5,0))","v":""},null,"",null,0,"MIPYME",null,"",null,""]
[null,{"$f":"IF(C109=\"\",\"\",B108+0.1)","v":""},null,null,{"$f":"IF(ISERROR(VLOOKUP(C109,#REF!,2,0)),\"\",VLOOKUP(C109,#REF!,2,0))","v":""},null,{"$f":"IF(ISERROR(VLOOKUP(C109,#REF!,4,0)),\"\",VLOOKUP(C109,#REF!,4,0))","v":""},null,{"$f":"IF(ISERROR(F109-H109),\"\",F109-H109)","v":0},null,null,null,{"$f":"IF(ISERROR(VLOOKUP(L109,POA!$A$2:$C$25,3,0)),\"\",VLOOKUP(L109,POA!$A$2:$C$25,3,0))","v":""},null,{"$f":"IF(ISERROR(VLOOKUP(N109,POA!$A$2:$F$25,4,0)),\"\",VLOOKUP(N109,POA!$A$2:$F$25,4,0))","v":""},{"$f":"IF(ISERROR(VLOOKUP(L109,POA!$A$2:$C$25,2,0)),\"\",VLOOKUP(L109,POA!$A$2:$C$25,2,0))","v":""},null,{"$f":"IF(L109=0,\"\",IF(Q100>=$R$9,\"HABIL\",\"NO HABIL\"))","v":""},null,"",{"$f":"IF(ISERROR(VLOOKUP(N109,POA!$A$2:$F$25,5,0)),\"\",VLOOKUP(N109,POA!$A$2:$F$25,5,0))","v":""},null,"",null,0,"MIPYME",null,"",null,""]
[null,{"$f":"IF(C110=\"\",\"\",B109+0.1)","v":""},null,null,{"$f":"IF(ISERROR(VLOOKUP(C110,#REF!,2,0)),\"\",VLOOKUP(C110,#REF!,2,0))","v":""},null,{"$f":"IF(ISERROR(VLOOKUP(C110,#REF!,4,0)),\"\",VLOOKUP(C110,#REF!,4,0))","v":""},null,{"$f":"IF(ISERROR(F110-H110),\"\",F110-H110)","v":0},null,null,null,{"$f":"IF(ISERROR(VLOOKUP(L110,POA!$A$2:$C$25,3,0)),\"\",VLOOKUP(L110,POA!$A$2:$C$25,3,0))","v":""},null,{"$f":"IF(ISERROR(VLOOKUP(N110,POA!$A$2:$F$25,4,0)),\"\",VLOOKUP(N110,POA!$A$2:$F$25,4,0))","v":""},{"$f":"IF(ISERROR(VLOOKUP(L110,POA!$A$2:$C$25,2,0)),\"\",VLOOKUP(L110,POA!$A$2:$C$25,2,0))","v":""},null,{"$f":"IF(L110=0,\"\",IF(Q100>=$R$9,\"HABIL\",\"NO HABIL\"))","v":""},null,"",{"$f":"IF(ISERROR(VLOOKUP(N110,POA!$A$2:$F$25,5,0)),\"\",VLOOKUP(N110,POA!$A$2:$F$25,5,0))","v":""},null,"",null,{"$f":"IF(ISERROR(F110/$Z$9),\"\",F110/$Z$9)","v":0},"MIPYME",null,"",null,""]
[null,10,"CONSORCIO AM 034",{"$f":"IF(SUM(D112:D121)=0,\"\",SUM(D112:D121))","v":1},{"$f":"SUM(E112:E121)","v":26593294195.650002},{"$f":"SUM(F112:F121)","v":41121494331.279999},{"$f":"SUM(G112:G121)","v":18337968512.279999},{"$f":"SUM(H112:H121)","v":23088912821.639999},{"$f":"+F111-H111","v":18032581509.639999},{"$f":"SUM(J112:J121)","v":1908871706.0999999},{"$f":"SUM(K112:K121)","v":641477208.67000008},1,{"$f":"IF(ISERROR(VLOOKUP(L111,POA!$A$2:$C$25,3,0)),\"\",VLOOKUP(L111,POA!$A$2:$C$25,3,0))","v":3}," ",{"$f":"+SUM(O112:O121)","v":0},{"$f":"IF(ISERROR(VLOOKUP(L111,POA!$A$2:$C$25,2,0)),\"\",VLOOKUP(L111,POA!$A$2:$C$25,2,0))","v":4167150295},{"$f":"SUM(E111/G111)","v":1.4501766745777664},{"$f":"IF(Q111=0,\"\",IF(Q111>=$R$9,\"HABIL\",\"NO HABIL\"))","v":"HABIL"},{"$f":"SUM(H111/F111)","v":0.561480393577937},{"$f":"IF(S111=0,\"\",IF(S111<=$T$9,\"HABIL\",\"NO HABIL\"))","v":"HABIL"},{"$f":"+SUM(U112:U121)","v":0},{"$f":"SUM(J111/K111)","v":2.9757436122442118},{"$f":"IF(V111=0,\"\",IF(V111>=$W$9,\"HABIL\",\"NO HABIL\"))","v":"HABIL"},{"$f":"IF(R111=0,\"\",IF(R111=\"NO HABIL\",\"NO HABIL\",IF(T111=\"NO HABIL\",\"NO HABIL\",IF(W111=\"NO HABIL\",\"NO HABIL\",IF(W111=\"NO HABIL\",\"NO HABIL\",\"HABIL\")))))","v":"HABIL"},null,null,{"$f":"SUM(J111/I111)","v":0.10585681839727386},{"$f":"IF(AA111=0,\"\",IF(AA111>=$AB$9,\"HABIL\",\"NO HABIL\"))","v":"HABIL"},{"$f":"SUM(J111/F111)","v":4.6420290340664326E-2},{"$f":"IF(AC111=0,\"\",IF(AC111>=$AD$9,\"HABIL\",\"NO HABIL\"))","v":"HABIL"},{"$f":"IF(AB111=0,\"\",IF(AB111=\"NO HABIL\",\"NO HABIL\",IF(AD111=\"NO HABIL\",\"NO HABIL\",IF(AD111=\"NO HABIL\",\"NO HABIL\",\"HABIL\"))))","v":"HABIL"}]
[null,{"$f":"IF(C112=\"\",\"\",B111+0.1)","v":10.1},"ROGELIO ARDILA TORRES",0.5,{"$f":"IF(ISERROR(VLOOKUP(C112,[1]TD!$4:$65536,2,0)),\"\",VLOOKUP(C112,[1]TD!$4:$65536,2,0))","v":4279139508},{"$f":"IF(ISERROR(VLOOKUP(C112,[1]TD!$4:$65536,3,0)),\"\",VLOOKUP(C112,[1]TD!$4:$65536,3,0))","v":7409302251},{"$f":"IF(ISERROR(VLOOKUP(C112,[1]TD!$4:$65536,4,0)),\"\",VLOOKUP(C112,[1]TD!$4:$65536,4,0))","v":471458818},{"$f":"IF(ISERROR(VLOOKUP(C112,[1]TD!$4:$65536,5,0)),\"\",VLOOKUP(C112,[1]TD!$4:$65536,5,0))","v":2991784876},{"$f":"IF(ISERROR(F112-H112),\"\",F112-H112)","v":4417517375},{"$f":"IF(ISERROR(VLOOKUP(C112,[1]TD!$4:$65536,6,0)),\"\",VLOOKUP(C112,[1]TD!$4:$65536,6,0))","v":1052978421},{"$f":"IF(ISERROR(VLOOKUP(C112,[1]TD!$4:$65536,7,0)),\"\",VLOOKUP(C112,[1]TD!$4:$65536,7,0))","v":172169561},null,{"$f":"IF(ISERROR(VLOOKUP(L112,POA!$A$2:$C$25,3,0)),\"\",VLOOKUP(L112,POA!$A$2:$C$25,3,0))","v":""}," ",{"$f":"IF(ISERROR(VLOOKUP(N112,POA!$A$2:$F$25,4,0)),\"\",VLOOKUP(N112,POA!$A$2:$F$25,4,0))","v":""},{"$f":"IF(ISERROR(VLOOKUP(L112,POA!$A$2:$C$25,2,0)),\"\",VLOOKUP(L112,POA!$A$2:$C$25,2,0))","v":""},null,{"$f":"IF(Q112=0,\"\",IF(Q111>=$R$9,\"HABIL\",\"NO HABIL\"))","v":""},null,{"$f":"IF(S112=0,\"\",IF(S112<=$T$9,\"HABIL\",\"NO HABIL\"))","v":""},{"$f":"IF(ISERROR(VLOOKUP(N112,POA!$A$2:$F$25,5,0)),\"\",VLOOKUP(N112,POA!$A$2:$F$25,5,0))","v":""},null,{"$f":"IF(V112=0,\"\",IF(V112>=$W$9,\"HABIL\",\"NO HABIL\"))","v":""},null,{"$f":"IF(ISERROR(F112/$Z$9),\"\",F112/$Z$9)","v":13074.470179989412},{"$f":"+IF(Y112<$Z$10,\"MIPYME\",\"NO CUMPLE\")","v":"MIPYME"},null,{"$f":"IF(AA112=0,\"\",IF(AA112>=$AB$9,\"HABIL\",\"NO HABIL\"))","v":""},null,{"$f":"IF(AC112=0,\"\",IF(AC112>=$AD$9,\"HABIL\",\"NO HABIL\"))","v":""}]
[null,10.199999999999999,"PAVIMENTACIONES MORALES SL",0.5,22314154687.650002,33712192080.279999,17866509694.279999,20097127945.639999,{"$f":"IF(ISERROR(F113-H113),\"\",F113-H113)","v":13615064134.639999},855893285.10000002,469307647.67000002,null,{"$f":"IF(ISERROR(VLOOKUP(L113,POA!$A$2:$C$25,3,0)),\"\",VLOOKUP(L113,POA!$A$2:$C$25,3,0))","v":""}," ",{"$f":"IF(ISERROR(VLOOKUP(N113,POA!$A$2:$F$25,4,0)),\"\",VLOOKUP(N113,POA!$A$2:$F$25,4,0))","v":""},{"$f":"IF(ISERROR(VLOOKUP(L113,POA!$A$2:$C$25,2,0)),\"\",VLOOKUP(L113,POA!$A$2:$C$25,2,0))","v":""},null,{"$f":"IF(Q113=0,\"\",IF(Q111>=$R$9,\"HABIL\",\"NO HABIL\"))","v":""},null,"",{"$f":"IF(ISERROR(VLOOKUP(N113,POA!$A$2:$F$25,5,0)),\"\",VLOOKUP(N113,POA!$A$2:$F$25,5,0))","v":""},null,"",null,{"$f":"IF(ISERROR(F113/$Z$9),\"\",F113/$Z$9)","v":59488.604341415208},{"$f":"+IF(Y113<$Z$10,\"MIPYME\",\"NO CUMPLE\")","v":"NO CUMPLE"},null,"",null,""]
[null,"",null,null,null,null,null,null,0,null,null,null,{"$f":"IF(ISERROR(VLOOKUP(L114,POA!$A$2:$C$25,3,0)),\"\",VLOOKUP(L114,POA!$A$2:$C$25,3,0))","v":""},null,{"$f":"IF(ISERROR(VLOOKUP(N114,POA!$A$2:$F$25,4,0)),\"\",VLOOKUP(N114,POA!$A$2:$F$25,4,0))","v":""},{"$f":"IF(ISERROR(VLOOKUP(L114,POA!$A$2:$C$25,2,0)),\"\",VLOOKUP(L114,POA!$A$2:$C$25,2,0))","v":""},null,{"$f":"IF(Q114=0,\"\",IF(Q111>=$R$9,\"HABIL\",\"NO HABIL\"))","v":""},null,"",{"$f":"IF(ISERROR(VLOOKUP(N114,POA!$A$2:$F$25,5,0)),\"\",VLOOKUP(N114,POA!$A$2:$F$25,5,0))","v":""},null,"",null,0,"MIPYME",null,"",null,""]
[null,"",null,null,{"$f":"IF(ISERROR(VLOOKUP(C115,#REF!,2,0)),\"\",VLOOKUP(C115,#REF!,2,0))","v":""},null,{"$f":"IF(ISERROR(VLOOKUP(C115,#REF!,4,0)),\"\",VLOOKUP(C115,#REF!,4,0))","v":""},null,0,null,null,null,{"$f":"IF(ISERROR(VLOOKUP(L115,POA!$A$2:$C$25,3,0)),\"\",VLOOKUP(L115,POA!$A$2:$C$25,3,0))","v":""},null,{"$f":"IF(ISERROR(VLOOKUP(N115,POA!$A$2:$F$25,4,0)),\"\",VLOOKUP(N115,POA!$A$2:$F$25,4,0))","v":""},{"$f":"IF(ISERROR(VLOOKUP(L115,POA!$A$2:$C$25,2,0)),\"\",VLOOKUP(L115,POA!$A$2:$C$25,2,0))","v":""},null,{"$f":"IF(L115=0,\"\",IF(Q111>=$R$9,\"HABIL\",\"NO HABIL\"))","v":""},null,"",{"$f":"IF(ISERROR(VLOOKUP(N115,POA!$A$2:$F$25,5,0)),\"\",VLOOKUP(N115,POA!$A$2:$F$25,5,0))","v":""},null,"",null,0,"MIPYME",null,"",null,""]
[null,"",null,null,{"$f":"IF(ISERROR(VLOOKUP(C116,#REF!,2,0)),\"\",VLOOKUP(C116,#REF!,2,0))","v":""},null,{"$f":"IF(ISERROR(VLOOKUP(C116,#REF!,4,0)),\"\",VLOOKUP(C116,#REF!,4,0))","v":""},null,0,null,null,null,{"$f":"IF(ISERROR(VLOOKUP(L116,POA!$A$2:$C$25,3,0)),\"\",VLOOKUP(L116,POA!$A$2:$C$25,3,0))","v":""},null,{"$f":"IF(ISERROR(VLOOKUP(N116,POA!$A$2:$F$25,4,0)),\"\",VLOOKUP(N116,POA!$A$2:$F$25,4,0))","v":""},{"$f":"IF(ISERROR(VLOOKUP(L116,POA!$A$2:$C$25,2,0)),\"\",VLOOKUP(L116,POA!$A$2:$C$25,2,0))","v":""},null,{"$f":"IF(L116=0,\"\",IF(Q111>=$R$9,\"HABIL\",\"NO HABIL\"))","v":""},null,"",{"$f":"IF(ISERROR(VLOOKUP(N116,POA!$A$2:$F$25,5,0)),\"\",VLOOKUP(N116,POA!$A$2:$F$25,5,0))","v":""},null,"",null,0,"MIPYME",null,"",null,""]
[null,"",null,null,{"$f":"IF(ISERROR(VLOOKUP(C117,#REF!,2,0)),\"\",VLOOKUP(C117,#REF!,2,0))","v":""},null,{"$f":"IF(ISERROR(VLOOKUP(C117,#REF!,4,0)),\"\",VLOOKUP(C117,#REF!,4,0))","v":""},null,0,null,null,null,{"$f":"IF(ISERROR(VLOOKUP(L117,POA!$A$2:$C$25,3,0)),\"\",VLOOKUP(L117,POA!$A$2:$C$25,3,0))","v":""},null,{"$f":"IF(ISERROR(VLOOKUP(N117,POA!$A$2:$F$25,4,0)),\"\",VLOOKUP(N117,POA!$A$2:$F$25,4,0))","v":""},{"$f":"IF(ISERROR(VLOOKUP(L117,POA!$A$2:$C$25,2,0)),\"\",VLOOKUP(L117,POA!$A$2:$C$25,2,0))","v":""},null,{"$f":"IF(L117=0,\"\",IF(Q111>=$R$9,\"HABIL\",\"NO HABIL\"))","v":""},null,"",{"$f":"IF(ISERROR(VLOOKUP(N117,POA!$A$2:$F$25,5,0)),\"\",VLOOKUP(N117,POA!$A$2:$F$25,5,0))","v":""},null,"",null,0,"MIPYME",null,"",null,""]
[null,{"$f":"IF(C118=\"\",\"\",B117+0.1)","v":""},null,null,{"$f":"IF(ISERROR(VLOOKUP(C118,#REF!,2,0)),\"\",VLOOKUP(C118,#REF!,2,0))","v":""},null,{"$f":"IF(ISERROR(VLOOKUP(C118,#REF!,4,0)),\"\",VLOOKUP(C118,#REF!,4,0))","v":""},null,{"$f":"IF(ISERROR(F118-H118),\"\",F118-H118)","v":0},null,null,null,{"$f":"IF(ISERROR(VLOOKUP(L118,POA!$A$2:$C$25,3,0)),\"\",VLOOKUP(L118,POA!$A$2:$C$25,3,0))","v":""},null,{"$f":"IF(ISERROR(VLOOKUP(N118,POA!$A$2:$F$25,4,0)),\"\",VLOOKUP(N118,POA!$A$2:$F$25,4,0))","v":""},{"$f":"IF(ISERROR(VLOOKUP(L118,POA!$A$2:$C$25,2,0)),\"\",VLOOKUP(L118,POA!$A$2:$C$25,2,0))","v":""},null,{"$f":"IF(L118=0,\"\",IF(Q111>=$R$9,\"HABIL\",\"NO HABIL\"))","v":""},null,"",{"$f":"IF(ISERROR(VLOOKUP(N118,POA!$A$2:$F$25,5,0)),\"\",VLOOKUP(N118,POA!$A$2:$F$25,5,0))","v":""},null,"",null,0,"MIPYME",null,"",null,""]
[null,{"$f":"IF(C119=\"\",\"\",B118+0.1)","v":""},null,null,{"$f":"IF(ISERROR(VLOOKUP(C119,#REF!,2,0)),\"\",VLOOKUP(C119,#REF!,2,0))","v":""},null,{"$f":"IF(ISERROR(VLOOKUP(C119,#REF!,4,0)),\"\",VLOOKUP(C119,#REF!,4,0))","v":""},null,{"$f":"IF(ISERROR(F119-H119),\"\",F119-H119)","v":0},null,null,null,{"$f":"IF(ISERROR(VLOOKUP(L119,POA!$A$2:$C$25,3,0)),\"\",VLOOKUP(L119,POA!$A$2:$C$25,3,0))","v":""},null,{"$f":"IF(ISERROR(VLOOKUP(N119,POA!$A$2:$F$25,4,0)),\"\",VLOOKUP(N119,POA!$A$2:$F$25,4,0))","v":""},{"$f":"IF(ISERROR(VLOOKUP(L119,POA!$A$2:$C$25,2,0)),\"\",VLOOKUP(L119,POA!$A$2:$C$25,2,0))","v":""},null,{"$f":"IF(L119=0,\"\",IF(Q111>=$R$9,\"HABIL\",\"NO HABIL\"))","v":""},null,"",{"$f":"IF(ISERROR(VLOOKUP(N119,POA!$A$2:$F$25,5,0)),\"\",VLOOKUP(N119,POA!$A$2:$F$25,5,0))","v":""},null,"",null,0,"MIPYME",null,"",null,""]
[null,{"$f":"IF(C120=\"\",\"\",B119+0.1)","v":""},null,null,{"$f":"IF(ISERROR(VLOOKUP(C120,#REF!,2,0)),\"\",VLOOKUP(C120,#REF!,2,0))","v":""},null,{"$f":"IF(ISERROR(VLOOKUP(C120,#REF!,4,0)),\"\",VLOOKUP(C120,#REF!,4,0))","v":""},null,{"$f":"IF(ISERROR(F120-H120),\"\",F120-H120)","v":0},null,null,null,{"$f":"IF(ISERROR(VLOOKUP(L120,POA!$A$2:$C$25,3,0)),\"\",VLOOKUP(L120,POA!$A$2:$C$25,3,0))","v":""},null,{"$f":"IF(ISERROR(VLOOKUP(N120,POA!$A$2:$F$25,4,0)),\"\",VLOOKUP(N120,POA!$A$2:$F$25,4,0))","v":""},{"$f":"IF(ISERROR(VLOOKUP(L120,POA!$A$2:$C$25,2,0)),\"\",VLOOKUP(L120,POA!$A$2:$C$25,2,0))","v":""},null,{"$f":"IF(L120=0,\"\",IF(Q111>=$R$9,\"HABIL\",\"NO HABIL\"))","v":""},null,"",{"$f":"IF(ISERROR(VLOOKUP(N120,POA!$A$2:$F$25,5,0)),\"\",VLOOKUP(N120,POA!$A$2:$F$25,5,0))","v":""},null,"",null,0,"MIPYME",null,"",null,""]
[null,{"$f":"IF(C121=\"\",\"\",B120+0.1)","v":""},null,null,{"$f":"IF(ISERROR(VLOOKUP(C121,#REF!,2,0)),\"\",VLOOKUP(C121,#REF!,2,0))","v":""},null,{"$f":"IF(ISERROR(VLOOKUP(C121,#REF!,4,0)),\"\",VLOOKUP(C121,#REF!,4,0))","v":""},null,{"$f":"IF(ISERROR(F121-H121),\"\",F121-H121)","v":0},null,null,null,{"$f":"IF(ISERROR(VLOOKUP(L121,POA!$A$2:$C$25,3,0)),\"\",VLOOKUP(L121,POA!$A$2:$C$25,3,0))","v":""},null,{"$f":"IF(ISERROR(VLOOKUP(N121,POA!$A$2:$F$25,4,0)),\"\",VLOOKUP(N121,POA!$A$2:$F$25,4,0))","v":""},{"$f":"IF(ISERROR(VLOOKUP(L121,POA!$A$2:$C$25,2,0)),\"\",VLOOKUP(L121,POA!$A$2:$C$25,2,0))","v":""},null,{"$f":"IF(L121=0,\"\",IF(Q111>=$R$9,\"HABIL\",\"NO HABIL\"))","v":""},null,"",{"$f":"IF(ISERROR(VLOOKUP(N121,POA!$A$2:$F$25,5,0)),\"\",VLOOKUP(N121,POA!$A$2:$F$25,5,0))","v":""},null,"",null,{"$f":"IF(ISERROR(F121/$Z$9),\"\",F121/$Z$9)","v":0},"MIPYME",null,"",null,""]
[null,11,"CONSORCIO INTERVIAS CUNDINAMARCA 2014",{"$f":"IF(SUM(D123:D132)=0,\"\",SUM(D123:D132))","v":1},{"$f":"SUM(E123:E132)","v":2386153562},{"$f":"SUM(F123:F132)","v":2450877649},{"$f":"SUM(G123:G132)","v":305744751},{"$f":"SUM(H123:H132)","v":529963688},{"$f":"+F122-H122","v":1920913961},{"$f":"SUM(J123:J132)","v":277970287},{"$f":"SUM(K123:K132)","v":38148936.600000001},1,{"$f":"IF(ISERROR(VLOOKUP(L122,POA!$A$2:$C$25,3,0)),\"\",VLOOKUP(L122,POA!$A$2:$C$25,3,0))","v":3}," ",{"$f":"+SUM(O123:O132)","v":0},{"$f":"IF(ISERROR(VLOOKUP(L122,POA!$A$2:$C$25,2,0)),\"\",VLOOKUP(L122,POA!$A$2:$C$25,2,0))","v":4167150295},{"$f":"SUM(E122/G122)","v":7.8043974727140943},{"$f":"IF(Q122=0,\"\",IF(Q122>=$R$9,\"HABIL\",\"NO HABIL\"))","v":"HABIL"},{"$f":"SUM(H122/F122)","v":0.21623424907246358},{"$f":"IF(S122=0,\"\",IF(S122<=$T$9,\"HABIL\",\"NO HABIL\"))","v":"HABIL"},{"$f":"+SUM(U123:U132)","v":0},{"$f":"SUM(J122/K122)","v":7.2864491588475886},{"$f":"IF(V122=0,\"\",IF(V122>=$W$9,\"HABIL\",\"NO HABIL\"))","v":"HABIL"},{"$f":"IF(R122=0,\"\",IF(R122=\"NO HABIL\",\"NO HABIL\",IF(T122=\"NO HABIL\",\"NO HABIL\",IF(W122=\"NO HABIL\",\"NO HABIL\",IF(W122=\"NO HABIL\",\"NO HABIL\",\"HABIL\")))))","v":"HABIL"},null,null,{"$f":"SUM(J122/I122)","v":0.14470730737741772},{"$f":"IF(AA122=0,\"\",IF(AA122>=$AB$9,\"HABIL\",\"NO HABIL\"))","v":"HABIL"},{"$f":"SUM(J122/F122)","v":0.11341663143136363},{"$f":"IF(AC122=0,\"\",IF(AC122>=$AD$9,\"HABIL\",\"NO HABIL\"))","v":"HABIL"},{"$f":"IF(AB122=0,\"\",IF(AB122=\"NO HABIL\",\"NO HABIL\",IF(AD122=\"NO HABIL\",\"NO HABIL\",IF(AD122=\"NO HABIL\",\"NO HABIL\",\"HABIL\"))))","v":"HABIL"}]
[null,{"$f":"IF(C123=\"\",\"\",B122+0.1)","v":11.1},"MBM INGENIERIA S.A.S.",0.4,1420521431,1447268745,197338257,197338257,{"$f":"IF(ISERROR(F123-H123),\"\",F123-H123)","v":1249930488},110001396,1476406.6,null,{"$f":"IF(ISERROR(VLOOKUP(L123,POA!$A$2:$C$25,3,0)),\"\",VLOOKUP(L123,POA!$A$2:$C$25,3,0))","v":""}," ",{"$f":"IF(ISERROR(VLOOKUP(N123,POA!$A$2:$F$25,4,0)),\"\",VLOOKUP(N123,POA!$A$2:$F$25,4,0))","v":""},{"$f":"IF(ISERROR(VLOOKUP(L123,POA!$A$2:$C$25,2,0)),\"\",VLOOKUP(L123,POA!$A$2:$C$25,2,0))","v":""},null,{"$f":"IF(Q123=0,\"\",IF(Q122>=$R$9,\"HABIL\",\"NO HABIL\"))","v":""},null,{"$f":"IF(S123=0,\"\",IF(S123<=$T$9,\"HABIL\",\"NO HABIL\"))","v":""},{"$f":"IF(ISERROR(VLOOKUP(N123,POA!$A$2:$F$25,5,0)),\"\",VLOOKUP(N123,POA!$A$2:$F$25,5,0))","v":""},null,{"$f":"IF(V123=0,\"\",IF(V123>=$W$9,\"HABIL\",\"NO HABIL\"))","v":""},null,{"$f":"IF(ISERROR(F123/$Z$9),\"\",F123/$Z$9)","v":2553.8534409740605},{"$f":"+IF(Y123<$Z$10,\"MIPYME\",\"NO CUMPLE\")","v":"MIPYME"},null,{"$f":"IF(AA123=0,\"\",IF(AA123>=$AB$9,\"HABIL\",\"NO HABIL\"))","v":""},null,{"$f":"IF(AC123=0,\"\",IF(AC123>=$AD$9,\"HABIL\",\"NO HABIL\"))","v":""}]
[null,11.2,"GUEVARA BAQUERO CIA LTDA.",0.4,510173286,510173286,32638151,32638151,477535135,48269067,30201,null,{"$f":"IF(ISERROR(VLOOKUP(L124,POA!$A$2:$C$25,3,0)),\"\",VLOOKUP(L124,POA!$A$2:$C$25,3,0))","v":""}," ",{"$f":"IF(ISERROR(VLOOKUP(N124,POA!$A$2:$F$25,4,0)),\"\",VLOOKUP(N124,POA!$A$2:$F$25,4,0))","v":""},{"$f":"IF(ISERROR(VLOOKUP(L124,POA!$A$2:$C$25,2,0)),\"\",VLOOKUP(L124,POA!$A$2:$C$25,2,0))","v":""},null,{"$f":"IF(Q124=0,\"\",IF(Q122>=$R$9,\"HABIL\",\"NO HABIL\"))","v":""},null,"",{"$f":"IF(ISERROR(VLOOKUP(N124,POA!$A$2:$F$25,5,0)),\"\",VLOOKUP(N124,POA!$A$2:$F$25,5,0))","v":""},null,"",null,{"$f":"IF(ISERROR(F124/$Z$9),\"\",F124/$Z$9)","v":900.25284277395451},{"$f":"+IF(Y124<$Z$10,\"MIPYME\",\"NO CUMPLE\")","v":"MIPYME"},null,"",null,""]
[null,11.299999999999999,"VIGA INGENIERIA S.A.S.",0.2,455458845,493435618,75768343,299987280,193448338,119699824,36642329,null,{"$f":"IF(ISERROR(VLOOKUP(L125,POA!$A$2:$C$25,3,0)),\"\",VLOOKUP(L125,POA!$A$2:$C$25,3,0))","v":""},null,{"$f":"IF(ISERROR(VLOOKUP(N125,POA!$A$2:$F$25,4,0)),\"\",VLOOKUP(N125,POA!$A$2:$F$25,4,0))","v":""},{"$f":"IF(ISERROR(VLOOKUP(L125,POA!$A$2:$C$25,2,0)),\"\",VLOOKUP(L125,POA!$A$2:$C$25,2,0))","v":""},null,{"$f":"IF(Q125=0,\"\",IF(Q122>=$R$9,\"HABIL\",\"NO HABIL\"))","v":""},null,"",{"$f":"IF(ISERROR(VLOOKUP(N125,POA!$A$2:$F$25,5,0)),\"\",VLOOKUP(N125,POA!$A$2:$F$25,5,0))","v":""},null,"",null,870.71751896947239,"MIPYME",null,"",null,""]
[null,"",null,null,{"$f":"IF(ISERROR(VLOOKUP(C126,#REF!,2,0)),\"\",VLOOKUP(C126,#REF!,2,0))","v":""},null,{"$f":"IF(ISERROR(VLOOKUP(C126,#REF!,4,0)),\"\",VLOOKUP(C126,#REF!,4,0))","v":""},null,{"$f":"IF(ISERROR(F126-H126),\"\",F126-H126)","v":0},null,null,null,{"$f":"IF(ISERROR(VLOOKUP(L126,POA!$A$2:$C$25,3,0)),\"\",VLOOKUP(L126,POA!$A$2:$C$25,3,0))","v":""},null,{"$f":"IF(ISERROR(VLOOKUP(N126,POA!$A$2:$F$25,4,0)),\"\",VLOOKUP(N126,POA!$A$2:$F$25,4,0))","v":""},{"$f":"IF(ISERROR(VLOOKUP(L126,POA!$A$2:$C$25,2,0)),\"\",VLOOKUP(L126,POA!$A$2:$C$25,2,0))","v":""},null,{"$f":"IF(L126=0,\"\",IF(Q122>=$R$9,\"HABIL\",\"NO HABIL\"))","v":""},null,"",{"$f":"IF(ISERROR(VLOOKUP(N126,POA!$A$2:$F$25,5,0)),\"\",VLOOKUP(N126,POA!$A$2:$F$25,5,0))","v":""},null,"",null,0,"MIPYME",null,"",null,""]
[null,"",null,null,{"$f":"IF(ISERROR(VLOOKUP(C127,#REF!,2,0)),\"\",VLOOKUP(C127,#REF!,2,0))","v":""},null,{"$f":"IF(ISERROR(VLOOKUP(C127,#REF!,4,0)),\"\",VLOOKUP(C127,#REF!,4,0))","v":""},null,0,null,null,null,{"$f":"IF(ISERROR(VLOOKUP(L127,POA!$A$2:$C$25,3,0)),\"\",VLOOKUP(L127,POA!$A$2:$C$25,3,0))","v":""},null,{"$f":"IF(ISERROR(VLOOKUP(N127,POA!$A$2:$F$25,4,0)),\"\",VLOOKUP(N127,POA!$A$2:$F$25,4,0))","v":""},{"$f":"IF(ISERROR(VLOOKUP(L127,POA!$A$2:$C$25,2,0)),\"\",VLOOKUP(L127,POA!$A$2:$C$25,2,0))","v":""},null,{"$f":"IF(L127=0,\"\",IF(Q122>=$R$9,\"HABIL\",\"NO HABIL\"))","v":""},null,"",{"$f":"IF(ISERROR(VLOOKUP(N127,POA!$A$2:$F$25,5,0)),\"\",VLOOKUP(N127,POA!$A$2:$F$25,5,0))","v":""},null,"",null,0,"MIPYME",null,"",null,""]
[null,"",null,null,{"$f":"IF(ISERROR(VLOOKUP(C128,#REF!,2,0)),\"\",VLOOKUP(C128,#REF!,2,0))","v":""},null,{"$f":"IF(ISERROR(VLOOKUP(C128,#REF!,4,0)),\"\",VLOOKUP(C128,#REF!,4,0))","v":""},null,0,null,null,null,{"$f":"IF(ISERROR(VLOOKUP(L128,POA!$A$2:$C$25,3,0)),\"\",VLOOKUP(L128,POA!$A$2:$C$25,3,0))","v":""},null,{"$f":"IF(ISERROR(VLOOKUP(N128,POA!$A$2:$F$25,4,0)),\"\",VLOOKUP(N128,POA!$A$2:$F$25,4,0))","v":""},{"$f":"IF(ISERROR(VLOOKUP(L128,POA!$A$2:$C$25,2,0)),\"\",VLOOKUP(L128,POA!$A$2:$C$25,2,0))","v":""},null,{"$f":"IF(L128=0,\"\",IF(Q122>=$R$9,\"HABIL\",\"NO HABIL\"))","v":""},null,"",{"$f":"IF(ISERROR(VLOOKUP(N128,POA!$A$2:$F$25,5,0)),\"\",VLOOKUP(N128,POA!$A$2:$F$25,5,0))","v":""},null,"",null,0,"MIPYME",null,"",null,""]
[null,{"$f":"IF(C129=\"\",\"\",B128+0.1)","v":""},null,null,{"$f":"IF(ISERROR(VLOOKUP(C129,#REF!,2,0)),\"\",VLOOKUP(C129,#REF!,2,0))","v":""},null,{"$f":"IF(ISERROR(VLOOKUP(C129,#REF!,4,0)),\"\",VLOOKUP(C129,#REF!,4,0))","v":""},null,{"$f":"IF(ISERROR(F129-H129),\"\",F129-H129)","v":0},null,null,null,{"$f":"IF(ISERROR(VLOOKUP(L129,POA!$A$2:$C$25,3,0)),\"\",VLOOKUP(L129,POA!$A$2:$C$25,3,0))","v":""},null,{"$f":"IF(ISERROR(VLOOKUP(N129,POA!$A$2:$F$25,4,0)),\"\",VLOOKUP(N129,POA!$A$2:$F$25,4,0))","v":""},{"$f":"IF(ISERROR(VLOOKUP(L129,POA!$A$2:$C$25,2,0)),\"\",VLOOKUP(L129,POA!$A$2:$C$25,2,0))","v":""},null,{"$f":"IF(L129=0,\"\",IF(Q122>=$R$9,\"HABIL\",\"NO HABIL\"))","v":""},null,"",{"$f":"IF(ISERROR(VLOOKUP(N129,POA!$A$2:$F$25,5,0)),\"\",VLOOKUP(N129,POA!$A$2:$F$25,5,0))","v":""},null,"",null,0,"MIPYME",null,"",null,""]
[null,{"$f":"IF(C130=\"\",\"\",B129+0.1)","v":""},null,null,{"$f":"IF(ISERROR(VLOOKUP(C130,#REF!,2,0)),\"\",VLOOKUP(C130,#REF!,2,0))","v":""},null,{"$f":"IF(ISERROR(VLOOKUP(C130,#REF!,4,0)),\"\",VLOOKUP(C130,#REF!,4,0))","v":""},null,{"$f":"IF(ISERROR(F130-H130),\"\",F130-H130)","v":0},null,null,null,{"$f":"IF(ISERROR(VLOOKUP(L130,POA!$A$2:$C$25,3,0)),\"\",VLOOKUP(L130,POA!$A$2:$C$25,3,0))","v":""},null,{"$f":"IF(ISERROR(VLOOKUP(N130,POA!$A$2:$F$25,4,0)),\"\",VLOOKUP(N130,POA!$A$2:$F$25,4,0))","v":""},{"$f":"IF(ISERROR(VLOOKUP(L130,POA!$A$2:$C$25,2,0)),\"\",VLOOKUP(L130,POA!$A$2:$C$25,2,0))","v":""},null,{"$f":"IF(L130=0,\"\",IF(Q122>=$R$9,\"HABIL\",\"NO HABIL\"))","v":""},null,"",{"$f":"IF(ISERROR(VLOOKUP(N130,POA!$A$2:$F$25,5,0)),\"\",VLOOKUP(N130,POA!$A$2:$F$25,5,0))","v":""},null,"",null,0,"MIPYME",null,"",null,""]
[null,{"$f":"IF(C131=\"\",\"\",B130+0.1)","v":""},null,null,{"$f":"IF(ISERROR(VLOOKUP(C131,#REF!,2,0)),\"\",VLOOKUP(C131,#REF!,2,0))","v":""},null,{"$f":"IF(ISERROR(VLOOKUP(C131,#REF!,4,0)),\"\",VLOOKUP(C131,#REF!,4,0))","v":""},null,{"$f":"IF(ISERROR(F131-H131),\"\",F131-H131)","v":0},null,null,null,{"$f":"IF(ISERROR(VLOOKUP(L131,POA!$A$2:$C$25,3,0)),\"\",VLOOKUP(L131,POA!$A$2:$C$25,3,0))","v":""},null,{"$f":"IF(ISERROR(VLOOKUP(N131,POA!$A$2:$F$25,4,0)),\"\",VLOOKUP(N131,POA!$A$2:$F$25,4,0))","v":""},{"$f":"IF(ISERROR(VLOOKUP(L131,POA!$A$2:$C$25,2,0)),\"\",VLOOKUP(L131,POA!$A$2:$C$25,2,0))","v":""},null,{"$f":"IF(L131=0,\"\",IF(Q122>=$R$9,\"HABIL\",\"NO HABIL\"))","v":""},null,"",{"$f":"IF(ISERROR(VLOOKUP(N131,POA!$A$2:$F$25,5,0)),\"\",VLOOKUP(N131,POA!$A$2:$F$25,5,0))","v":""},null,"",null,0,"MIPYME",null,"",null,""]
[null,{"$f":"IF(C132=\"\",\"\",B131+0.1)","v":""},null,null,{"$f":"IF(ISERROR(VLOOKUP(C132,#REF!,2,0)),\"\",VLOOKUP(C132,#REF!,2,0))","v":""},null,{"$f":"IF(ISERROR(VLOOKUP(C132,#REF!,4,0)),\"\",VLOOKUP(C132,#REF!,4,0))","v":""},null,{"$f":"IF(ISERROR(F132-H132),\"\",F132-H132)","v":0},null,null,null,{"$f":"IF(ISERROR(VLOOKUP(L132,POA!$A$2:$C$25,3,0)),\"\",VLOOKUP(L132,POA!$A$2:$C$25,3,0))","v":""},null,{"$f":"IF(ISERROR(VLOOKUP(N132,POA!$A$2:$F$25,4,0)),\"\",VLOOKUP(N132,POA!$A$2:$F$25,4,0))","v":""},{"$f":"IF(ISERROR(VLOOKUP(L132,POA!$A$2:$C$25,2,0)),\"\",VLOOKUP(L132,POA!$A$2:$C$25,2,0))","v":""},null,{"$f":"IF(L132=0,\"\",IF(Q122>=$R$9,\"HABIL\",\"NO HABIL\"))","v":""},null,"",{"$f":"IF(ISERROR(VLOOKUP(N132,POA!$A$2:$F$25,5,0)),\"\",VLOOKUP(N132,POA!$A$2:$F$25,5,0))","v":""},null,"",null,{"$f":"IF(ISERROR(F132/$Z$9),\"\",F132/$Z$9)","v":0},"MIPYME",null,"",null,""]
[null,12,"UNION TEMPORALSANTA MONICA",{"$f":"IF(SUM(D134:D143)=0,\"\",SUM(D134:D143))","v":1},{"$f":"SUM(E134:E143)","v":4526425249},{"$f":"SUM(F134:F143)","v":6030775390},{"$f":"SUM(G134:G143)","v":267900929},{"$f":"SUM(H134:H143)","v":1570888766},{"$f":"+F133-H133","v":4459886624},{"$f":"SUM(J134:J143)","v":339059271},{"$f":"SUM(K134:K143)","v":756200},1,{"$f":"IF(ISERROR(VLOOKUP(L133,POA!$A$2:$C$25,3,0)),\"\",VLOOKUP(L133,POA!$A$2:$C$25,3,0))","v":3}," ",{"$f":"+SUM(O134:O143)","v":0},{"$f":"IF(ISERROR(VLOOKUP(L133,POA!$A$2:$C$25,2,0)),\"\",VLOOKUP(L133,POA!$A$2:$C$25,2,0))","v":4167150295},{"$f":"SUM(E133/G133)","v":16.895892320701883},{"$f":"IF(Q133=0,\"\",IF(Q133>=$R$9,\"HABIL\",\"NO HABIL\"))","v":"HABIL"},{"$f":"SUM(H133/F133)","v":0.26047873853912507},{"$f":"IF(S133=0,\"\",IF(S133<=$T$9,\"HABIL\",\"NO HABIL\"))","v":"HABIL"},{"$f":"+SUM(U134:U143)","v":0},{"$f":"SUM(J133/K133)","v":448.37248214758},{"$f":"IF(V133=0,\"\",IF(V133>=$W$9,\"HABIL\",\"NO HABIL\"))","v":"HABIL"},{"$f":"IF(R133=0,\"\",IF(R133=\"NO HABIL\",\"NO HABIL\",IF(T133=\"NO HABIL\",\"NO HABIL\",IF(W133=\"NO HABIL\",\"NO HABIL\",IF(W133=\"NO HABIL\",\"NO HABIL\",\"HABIL\")))))","v":"HABIL"},null,null,{"$f":"SUM(J133/I133)","v":7.6024190654403509E-2},{"$f":"IF(AA133=0,\"\",IF(AA133>=$AB$9,\"HABIL\",\"NO HABIL\"))","v":"HABIL"},{"$f":"SUM(J133/F133)","v":5.6221505374286537E-2},{"$f":"IF(AC133=0,\"\",IF(AC133>=$AD$9,\"HABIL\",\"NO HABIL\"))","v":"HABIL"},{"$f":"IF(AB133=0,\"\",IF(AB133=\"NO HABIL\",\"NO HABIL\",IF(AD133=\"NO HABIL\",\"NO HABIL\",IF(AD133=\"NO HABIL\",\"NO HABIL\",\"HABIL\"))))","v":"HABIL"}]
[null,{"$f":"IF(C134=\"\",\"\",B133+0.1)","v":12.1},"EQUIPOS Y CONSTRUCCIONES VAREGO S.A.S.",0.3,1817327762,1918948790,109193747,585711904,{"$f":"IF(ISERROR(F134-H134),\"\",F134-H134)","v":1333236886},110089595,133200,null,{"$f":"IF(ISERROR(VLOOKUP(L134,POA!$A$2:$C$25,3,0)),\"\",VLOOKUP(L134,POA!$A$2:$C$25,3,0))","v":""}," ",{"$f":"IF(ISERROR(VLOOKUP(N134,POA!$A$2:$F$25,4,0)),\"\",VLOOKUP(N134,POA!$A$2:$F$25,4,0))","v":""},{"$f":"IF(ISERROR(VLOOKUP(L134,POA!$A$2:$C$25,2,0)),\"\",VLOOKUP(L134,POA!$A$2:$C$25,2,0))","v":""},null,{"$f":"IF(Q134=0,\"\",IF(Q133>=$R$9,\"HABIL\",\"NO HABIL\"))","v":""},null,{"$f":"IF(S134=0,\"\",IF(S134<=$T$9,\"HABIL\",\"NO HABIL\"))","v":""},{"$f":"IF(ISERROR(VLOOKUP(N134,POA!$A$2:$F$25,5,0)),\"\",VLOOKUP(N134,POA!$A$2:$F$25,5,0))","v":""},null,{"$f":"IF(V134=0,\"\",IF(V134>=$W$9,\"HABIL\",\"NO HABIL\"))","v":""},null,{"$f":"IF(ISERROR(F134/$Z$9),\"\",F134/$Z$9)","v":3386.1810305276158},{"$f":"+IF(Y134<$Z$10,\"MIPYME\",\"NO CUMPLE\")","v":"MIPYME"},null,{"$f":"IF(AA134=0,\"\",IF(AA134>=$AB$9,\"HABIL\",\"NO HABIL\"))","v":""},null,{"$f":"IF(AC134=0,\"\",IF(AC134>=$AD$9,\"HABIL\",\"NO HABIL\"))","v":""}]
[null,12.2,"VAREGO S.A.S.",0.3,870339760,2095157830,99005026,897612073,1197545757,127669815,418000,null,{"$f":"IF(ISERROR(VLOOKUP(L135,POA!$A$2:$C$25,3,0)),\"\",VLOOKUP(L135,POA!$A$2:$C$25,3,0))","v":""}," ",{"$f":"IF(ISERROR(VLOOKUP(N135,POA!$A$2:$F$25,4,0)),\"\",VLOOKUP(N135,POA!$A$2:$F$25,4,0))","v":""},{"$f":"IF(ISERROR(VLOOKUP(L135,POA!$A$2:$C$25,2,0)),\"\",VLOOKUP(L135,POA!$A$2:$C$25,2,0))","v":""},null,{"$f":"IF(Q135=0,\"\",IF(Q133>=$R$9,\"HABIL\",\"NO HABIL\"))","v":""},null,"",{"$f":"IF(ISERROR(VLOOKUP(N135,POA!$A$2:$F$25,5,0)),\"\",VLOOKUP(N135,POA!$A$2:$F$25,5,0))","v":""},null,"",null,{"$f":"IF(ISERROR(F135/$Z$9),\"\",F135/$Z$9)","v":3697.1198694194459},{"$f":"+IF(Y135<$Z$10,\"MIPYME\",\"NO CUMPLE\")","v":"MIPYME"},null,"",null,""]
[null,12.299999999999999,"INCIVIAS LTDA.",0.4,1838757727,2016668770,59702156,87564789,1929103981,101299861,205000,null,{"$f":"IF(ISERROR(VLOOKUP(L136,POA!$A$2:$C$25,3,0)),\"\",VLOOKUP(L136,POA!$A$2:$C$25,3,0))","v":""},null,{"$f":"IF(ISERROR(VLOOKUP(N136,POA!$A$2:$F$25,4,0)),\"\",VLOOKUP(N136,POA!$A$2:$F$25,4,0))","v":""},{"$f":"IF(ISERROR(VLOOKUP(L136,POA!$A$2:$C$25,2,0)),\"\",VLOOKUP(L136,POA!$A$2:$C$25,2,0))","v":""},null,{"$f":"IF(Q136=0,\"\",IF(Q133>=$R$9,\"HABIL\",\"NO HABIL\"))","v":""},null,"",{"$f":"IF(ISERROR(VLOOKUP(N136,POA!$A$2:$F$25,5,0)),\"\",VLOOKUP(N136,POA!$A$2:$F$25,5,0))","v":""},null,"",null,3558.6179107111348,"MIPYME",null,"",null,""]
[null,"",null,null,{"$f":"IF(ISERROR(VLOOKUP(C137,#REF!,2,0)),\"\",VLOOKUP(C137,#REF!,2,0))","v":""},null,{"$f":"IF(ISERROR(VLOOKUP(C137,#REF!,4,0)),\"\",VLOOKUP(C137,#REF!,4,0))","v":""},null,0,null,null,null,{"$f":"IF(ISERROR(VLOOKUP(L137,POA!$A$2:$C$25,3,0)),\"\",VLOOKUP(L137,POA!$A$2:$C$25,3,0))","v":""},null,{"$f":"IF(ISERROR(VLOOKUP(N137,POA!$A$2:$F$25,4,0)),\"\",VLOOKUP(N137,POA!$A$2:$F$25,4,0))","v":""},{"$f":"IF(ISERROR(VLOOKUP(L137,POA!$A$2:$C$25,2,0)),\"\",VLOOKUP(L137,POA!$A$2:$C$25,2,0))","v":""},null,{"$f":"IF(L137=0,\"\",IF(Q133>=$R$9,\"HABIL\",\"NO HABIL\"))","v":""},null,"",{"$f":"IF(ISERROR(VLOOKUP(N137,POA!$A$2:$F$25,5,0)),\"\",VLOOKUP(N137,POA!$A$2:$F$25,5,0))","v":""},null,"",null,0,"MIPYME",null,"",null,""]
[null,"",null,null,{"$f":"IF(ISERROR(VLOOKUP(C138,#REF!,2,0)),\"\",VLOOKUP(C138,#REF!,2,0))","v":""},null,{"$f":"IF(ISERROR(VLOOKUP(C138,#REF!,4,0)),\"\",VLOOKUP(C138,#REF!,4,0))","v":""},null,0,null,null,null,{"$f":"IF(ISERROR(VLOOKUP(L138,POA!$A$2:$C$25,3,0)),\"\",VLOOKUP(L138,POA!$A$2:$C$25,3,0))","v":""},null,{"$f":"IF(ISERROR(VLOOKUP(N138,POA!$A$2:$F$25,4,0)),\"\",VLOOKUP(N138,POA!$A$2:$F$25,4,0))","v":""},{"$f":"IF(ISERROR(VLOOKUP(L138,POA!$A$2:$C$25,2,0)),\"\",VLOOKUP(L138,POA!$A$2:$C$25,2,0))","v":""},null,{"$f":"IF(L138=0,\"\",IF(Q133>=$R$9,\"HABIL\",\"NO HABIL\"))","v":""},null,"",{"$f":"IF(ISERROR(VLOOKUP(N138,POA!$A$2:$F$25,5,0)),\"\",VLOOKUP(N138,POA!$A$2:$F$25,5,0))","v":""},null,"",null,0,"MIPYME",null,"",null,""]
[null,"",null,null,{"$f":"IF(ISERROR(VLOOKUP(C139,#REF!,2,0)),\"\",VLOOKUP(C139,#REF!,2,0))","v":""},null,{"$f":"IF(ISERROR(VLOOKUP(C139,#REF!,4,0)),\"\",VLOOKUP(C139,#REF!,4,0))","v":""},null,0,null,null,null,{"$f":"IF(ISERROR(VLOOKUP(L139,POA!$A$2:$C$25,3,0)),\"\",VLOOKUP(L139,POA!$A$2:$C$25,3,0))","v":""},null,{"$f":"IF(ISERROR(VLOOKUP(N139,POA!$A$2:$F$25,4,0)),\"\",VLOOKUP(N139,POA!$A$2:$F$25,4,0))","v":""},{"$f":"IF(ISERROR(VLOOKUP(L139,POA!$A$2:$C$25,2,0)),\"\",VLOOKUP(L139,POA!$A$2:$C$25,2,0))","v":""},null,{"$f":"IF(L139=0,\"\",IF(Q133>=$R$9,\"HABIL\",\"NO HABIL\"))","v":""},null,"",{"$f":"IF(ISERROR(VLOOKUP(N139,POA!$A$2:$F$25,5,0)),\"\",VLOOKUP(N139,POA!$A$2:$F$25,5,0))","v":""},null,"",null,0,"MIPYME",null,"",null,""]
[null,{"$f":"IF(C140=\"\",\"\",B139+0.1)","v":""},null,null,{"$f":"IF(ISERROR(VLOOKUP(C140,#REF!,2,0)),\"\",VLOOKUP(C140,#REF!,2,0))","v":""},null,{"$f":"IF(ISERROR(VLOOKUP(C140,#REF!,4,0)),\"\",VLOOKUP(C140,#REF!,4,0))","v":""},null,{"$f":"IF(ISERROR(F140-H140),\"\",F140-H140)","v":0},null,null,null,{"$f":"IF(ISERROR(VLOOKUP(L140,POA!$A$2:$C$25,3,0)),\"\",VLOOKUP(L140,POA!$A$2:$C$25,3,0))","v":""},null,{"$f":"IF(ISERROR(VLOOKUP(N140,POA!$A$2:$F$25,4,0)),\"\",VLOOKUP(N140,POA!$A$2:$F$25,4,0))","v":""},{"$f":"IF(ISERROR(VLOOKUP(L140,POA!$A$2:$C$25,2,0)),\"\",VLOOKUP(L140,POA!$A$2:$C$25,2,0))","v":""},null,{"$f":"IF(L140=0,\"\",IF(Q133>=$R$9,\"HABIL\",\"NO HABIL\"))","v":""},null,"",{"$f":"IF(ISERROR(VLOOKUP(N140,POA!$A$2:$F$25,5,0)),\"\",VLOOKUP(N140,POA!$A$2:$F$25,5,0))","v":""},null,"",null,0,"MIPYME",null,"",null,""]
[null,{"$f":"IF(C141=\"\",\"\",B140+0.1)","v":""},null,null,{"$f":"IF(ISERROR(VLOOKUP(C141,#REF!,2,0)),\"\",VLOOKUP(C141,#REF!,2,0))","v":""},null,{"$f":"IF(ISERROR(VLOOKUP(C141,#REF!,4,0)),\"\",VLOOKUP(C141,#REF!,4,0))","v":""},null,{"$f":"IF(ISERROR(F141-H141),\"\",F141-H141)","v":0},null,null,null,{"$f":"IF(ISERROR(VLOOKUP(L141,POA!$A$2:$C$25,3,0)),\"\",VLOOKUP(L141,POA!$A$2:$C$25,3,0))","v":""},null,{"$f":"IF(ISERROR(VLOOKUP(N141,POA!$A$2:$F$25,4,0)),\"\",VLOOKUP(N141,POA!$A$2:$F$25,4,0))","v":""},{"$f":"IF(ISERROR(VLOOKUP(L141,POA!$A$2:$C$25,2,0)),\"\",VLOOKUP(L141,POA!$A$2:$C$25,2,0))","v":""},null,{"$f":"IF(L141=0,\"\",IF(Q133>=$R$9,\"HABIL\",\"NO HABIL\"))","v":""},null,"",{"$f":"IF(ISERROR(VLOOKUP(N141,POA!$A$2:$F$25,5,0)),\"\",VLOOKUP(N141,POA!$A$2:$F$25,5,0))","v":""},null,"",null,0,"MIPYME",null,"",null,""]
[null,{"$f":"IF(C142=\"\",\"\",B141+0.1)","v":""},null,null,{"$f":"IF(ISERROR(VLOOKUP(C142,#REF!,2,0)),\"\",VLOOKUP(C142,#REF!,2,0))","v":""},null,{"$f":"IF(ISERROR(VLOOKUP(C142,#REF!,4,0)),\"\",VLOOKUP(C142,#REF!,4,0))","v":""},null,{"$f":"IF(ISERROR(F142-H142),\"\",F142-H142)","v":0},null,null,null,{"$f":"IF(ISERROR(VLOOKUP(L142,POA!$A$2:$C$25,3,0)),\"\",VLOOKUP(L142,POA!$A$2:$C$25,3,0))","v":""},null,{"$f":"IF(ISERROR(VLOOKUP(N142,POA!$A$2:$F$25,4,0)),\"\",VLOOKUP(N142,POA!$A$2:$F$25,4,0))","v":""},{"$f":"IF(ISERROR(VLOOKUP(L142,POA!$A$2:$C$25,2,0)),\"\",VLOOKUP(L142,POA!$A$2:$C$25,2,0))","v":""},null,{"$f":"IF(L142=0,\"\",IF(Q133>=$R$9,\"HABIL\",\"NO HABIL\"))","v":""},null,"",{"$f":"IF(ISERROR(VLOOKUP(N142,POA!$A$2:$F$25,5,0)),\"\",VLOOKUP(N142,POA!$A$2:$F$25,5,0))","v":""},null,"",null,0,"MIPYME",null,"",null,""]
[null,{"$f":"IF(C143=\"\",\"\",B142+0.1)","v":""},null,null,{"$f":"IF(ISERROR(VLOOKUP(C143,#REF!,2,0)),\"\",VLOOKUP(C143,#REF!,2,0))","v":""},null,{"$f":"IF(ISERROR(VLOOKUP(C143,#REF!,4,0)),\"\",VLOOKUP(C143,#REF!,4,0))","v":""},null,{"$f":"IF(ISERROR(F143-H143),\"\",F143-H143)","v":0},null,null,null,{"$f":"IF(ISERROR(VLOOKUP(L143,POA!$A$2:$C$25,3,0)),\"\",VLOOKUP(L143,POA!$A$2:$C$25,3,0))","v":""},null,{"$f":"IF(ISERROR(VLOOKUP(N143,POA!$A$2:$F$25,4,0)),\"\",VLOOKUP(N143,POA!$A$2:$F$25,4,0))","v":""},{"$f":"IF(ISERROR(VLOOKUP(L143,POA!$A$2:$C$25,2,0)),\"\",VLOOKUP(L143,POA!$A$2:$C$25,2,0))","v":""},null,{"$f":"IF(L143=0,\"\",IF(Q133>=$R$9,\"HABIL\",\"NO HABIL\"))","v":""},null,"",{"$f":"IF(ISERROR(VLOOKUP(N143,POA!$A$2:$F$25,5,0)),\"\",VLOOKUP(N143,POA!$A$2:$F$25,5,0))","v":""},null,"",null,{"$f":"IF(ISERROR(F143/$Z$9),\"\",F143/$Z$9)","v":0},"MIPYME",null,"",null,""]
[null,13,"CONSORCIO HD",{"$f":"IF(SUM(D145:D154)=0,\"\",SUM(D145:D154))","v":1},{"$f":"SUM(E145:E154)","v":3184170600},{"$f":"SUM(F145:F154)","v":3543508766},{"$f":"SUM(G145:G154)","v":557057400},{"$f":"SUM(H145:H154)","v":764888897},{"$f":"+F144-H144","v":2778619869},{"$f":"SUM(J145:J154)","v":204187195},{"$f":"SUM(K145:K154)","v":1638691},1,{"$f":"IF(ISERROR(VLOOKUP(L144,POA!$A$2:$C$25,3,0)),\"\",VLOOKUP(L144,POA!$A$2:$C$25,3,0))","v":3}," ",{"$f":"+SUM(O145:O154)","v":0},{"$f":"IF(ISERROR(VLOOKUP(L144,POA!$A$2:$C$25,2,0)),\"\",VLOOKUP(L144,POA!$A$2:$C$25,2,0))","v":4167150295},{"$f":"SUM(E144/G144)","v":5.7160547548600915},{"$f":"IF(Q144=0,\"\",IF(Q144>=$R$9,\"HABIL\",\"NO HABIL\"))","v":"HABIL"},{"$f":"SUM(H144/F144)","v":0.21585635806495421},{"$f":"IF(S144=0,\"\",IF(S144<=$T$9,\"HABIL\",\"NO HABIL\"))","v":"HABIL"},{"$f":"+SUM(U145:U154)","v":0},{"$f":"SUM(J144/K144)","v":124.60384233513213},{"$f":"IF(V144=0,\"\",IF(V144>=$W$9,\"HABIL\",\"NO HABIL\"))","v":"HABIL"},{"$f":"IF(R144=0,\"\",IF(R144=\"NO HABIL\",\"NO HABIL\",IF(T144=\"NO HABIL\",\"NO HABIL\",IF(W144=\"NO HABIL\",\"NO HABIL\",IF(W144=\"NO HABIL\",\"NO HABIL\",\"HABIL\")))))","v":"HABIL"},null,null,{"$f":"SUM(J144/I144)","v":7.3485112979302603E-2},{"$f":"IF(AA144=0,\"\",IF(AA144>=$AB$9,\"HABIL\",\"NO HABIL\"))","v":"HABIL"},{"$f":"SUM(J144/F144)","v":5.762288411959865E-2},{"$f":"IF(AC144=0,\"\",IF(AC144>=$AD$9,\"HABIL\",\"NO HABIL\"))","v":"HABIL"},{"$f":"IF(AB144=0,\"\",IF(AB144=\"NO HABIL\",\"NO HABIL\",IF(AD144=\"NO HABIL\",\"NO HABIL\",IF(AD144=\"NO HABIL\",\"NO HABIL\",\"HABIL\"))))","v":"HABIL"}]
[null,{"$f":"IF(C145=\"\",\"\",B144+0.1)","v":13.1},"OLMEDA S.A.S",0.33,{"$f":"IF(ISERROR(VLOOKUP(C145,[1]TD!$4:$65536,2,0)),\"\",VLOOKUP(C145,[1]TD!$4:$65536,2,0))","v":2438502512},{"$f":"IF(ISERROR(VLOOKUP(C145,[1]TD!$4:$65536,3,0)),\"\",VLOOKUP(C145,[1]TD!$4:$65536,3,0))","v":2458002512},{"$f":"IF(ISERROR(VLOOKUP(C145,[1]TD!$4:$65536,4,0)),\"\",VLOOKUP(C145,[1]TD!$4:$65536,4,0))","v":410044353},{"$f":"IF(ISERROR(VLOOKUP(C145,[1]TD!$4:$65536,5,0)),\"\",VLOOKUP(C145,[1]TD!$4:$65536,5,0))","v":520885643},{"$f":"IF(ISERROR(F145-H145),\"\",F145-H145)","v":1937116869},{"$f":"IF(ISERROR(VLOOKUP(C145,[1]TD!$4:$65536,6,0)),\"\",VLOOKUP(C145,[1]TD!$4:$65536,6,0))","v":115402195},{"$f":"IF(ISERROR(VLOOKUP(C145,[1]TD!$4:$65536,7,0)),\"\",VLOOKUP(C145,[1]TD!$4:$65536,7,0))","v":14691},null,{"$f":"IF(ISERROR(VLOOKUP(L145,POA!$A$2:$C$25,3,0)),\"\",VLOOKUP(L145,POA!$A$2:$C$25,3,0))","v":""}," ",{"$f":"IF(ISERROR(VLOOKUP(N145,POA!$A$2:$F$25,4,0)),\"\",VLOOKUP(N145,POA!$A$2:$F$25,4,0))","v":""},{"$f":"IF(ISERROR(VLOOKUP(L145,POA!$A$2:$C$25,2,0)),\"\",VLOOKUP(L145,POA!$A$2:$C$25,2,0))","v":""},null,{"$f":"IF(Q145=0,\"\",IF(Q144>=$R$9,\"HABIL\",\"NO HABIL\"))","v":""},null,{"$f":"IF(S145=0,\"\",IF(S145<=$T$9,\"HABIL\",\"NO HABIL\"))","v":""},{"$f":"IF(ISERROR(VLOOKUP(N145,POA!$A$2:$F$25,5,0)),\"\",VLOOKUP(N145,POA!$A$2:$F$25,5,0))","v":""},null,{"$f":"IF(V145=0,\"\",IF(V145>=$W$9,\"HABIL\",\"NO HABIL\"))","v":""},null,{"$f":"IF(ISERROR(F145/$Z$9),\"\",F145/$Z$9)","v":4337.3963508028937},{"$f":"+IF(Y145<$Z$10,\"MIPYME\",\"NO CUMPLE\")","v":"MIPYME"},null,{"$f":"IF(AA145=0,\"\",IF(AA145>=$AB$9,\"HABIL\",\"NO HABIL\"))","v":""},null,{"$f":"IF(AC145=0,\"\",IF(AC145>=$AD$9,\"HABIL\",\"NO HABIL\"))","v":""}]
[null,13.2,"HD CONSTRUCCIONES S.A.S.",0.33,50000000,50000000,0,0,50000000,0,0,null,{"$f":"IF(ISERROR(VLOOKUP(L146,POA!$A$2:$C$25,3,0)),\"\",VLOOKUP(L146,POA!$A$2:$C$25,3,0))","v":""}," ",{"$f":"IF(ISERROR(VLOOKUP(N146,POA!$A$2:$F$25,4,0)),\"\",VLOOKUP(N146,POA!$A$2:$F$25,4,0))","v":""},{"$f":"IF(ISERROR(VLOOKUP(L146,POA!$A$2:$C$25,2,0)),\"\",VLOOKUP(L146,POA!$A$2:$C$25,2,0))","v":""},null,{"$f":"IF(Q146=0,\"\",IF(Q144>=$R$9,\"HABIL\",\"NO HABIL\"))","v":""},null,"",{"$f":"IF(ISERROR(VLOOKUP(N146,POA!$A$2:$F$25,5,0)),\"\",VLOOKUP(N146,POA!$A$2:$F$25,5,0))","v":""},null,"",null,{"$f":"IF(ISERROR(F146/$Z$9),\"\",F146/$Z$9)","v":88.230104111522849},{"$f":"+IF(Y146<$Z$10,\"MIPYME\",\"NO CUMPLE\")","v":"MIPYME"},null,"",null,""]
[null,13.299999999999999,"HECTOR GIRALDO JARAMILLO",0.34,695668088,1035506254,147013047,244003254,{"$f":"IF(ISERROR(F147-H147),\"\",F147-H147)","v":791503000},88785000,1624000,null,{"$f":"IF(ISERROR(VLOOKUP(L147,POA!$A$2:$C$25,3,0)),\"\",VLOOKUP(L147,POA!$A$2:$C$25,3,0))","v":""},null,{"$f":"IF(ISERROR(VLOOKUP(N147,POA!$A$2:$F$25,4,0)),\"\",VLOOKUP(N147,POA!$A$2:$F$25,4,0))","v":""},{"$f":"IF(ISERROR(VLOOKUP(L147,POA!$A$2:$C$25,2,0)),\"\",VLOOKUP(L147,POA!$A$2:$C$25,2,0))","v":""},null,{"$f":"IF(Q147=0,\"\",IF(Q144>=$R$9,\"HABIL\",\"NO HABIL\"))","v":""},null,"",{"$f":"IF(ISERROR(VLOOKUP(N147,POA!$A$2:$F$25,5,0)),\"\",VLOOKUP(N147,POA!$A$2:$F$25,5,0))","v":""},null,"",null,1827.2564919710605,"MIPYME",null,"",null,""]
[null,"",null,null,{"$f":"IF(ISERROR(VLOOKUP(C148,#REF!,2,0)),\"\",VLOOKUP(C148,#REF!,2,0))","v":""},null,{"$f":"IF(ISERROR(VLOOKUP(C148,#REF!,4,0)),\"\",VLOOKUP(C148,#REF!,4,0))","v":""},null,0,null,null,null,{"$f":"IF(ISERROR(VLOOKUP(L148,POA!$A$2:$C$25,3,0)),\"\",VLOOKUP(L148,POA!$A$2:$C$25,3,0))","v":""},null,{"$f":"IF(ISERROR(VLOOKUP(N148,POA!$A$2:$F$25,4,0)),\"\",VLOOKUP(N148,POA!$A$2:$F$25,4,0))","v":""},{"$f":"IF(ISERROR(VLOOKUP(L148,POA!$A$2:$C$25,2,0)),\"\",VLOOKUP(L148,POA!$A$2:$C$25,2,0))","v":""},null,{"$f":"IF(L148=0,\"\",IF(Q144>=$R$9,\"HABIL\",\"NO HABIL\"))","v":""},null,"",{"$f":"IF(ISERROR(VLOOKUP(N148,POA!$A$2:$F$25,5,0)),\"\",VLOOKUP(N148,POA!$A$2:$F$25,5,0))","v":""},null,"",null,0,"MIPYME",null,"",null,""]
[null,"",null,null,{"$f":"IF(ISERROR(VLOOKUP(C149,#REF!,2,0)),\"\",VLOOKUP(C149,#REF!,2,0))","v":""},null,{"$f":"IF(ISERROR(VLOOKUP(C149,#REF!,4,0)),\"\",VLOOKUP(C149,#REF!,4,0))","v":""},null,0,null,null,null,{"$f":"IF(ISERROR(VLOOKUP(L149,POA!$A$2:$C$25,3,0)),\"\",VLOOKUP(L149,POA!$A$2:$C$25,3,0))","v":""},null,{"$f":"IF(ISERROR(VLOOKUP(N149,POA!$A$2:$F$25,4,0)),\"\",VLOOKUP(N149,POA!$A$2:$F$25,4,0))","v":""},{"$f":"IF(ISERROR(VLOOKUP(L149,POA!$A$2:$C$25,2,0)),\"\",VLOOKUP(L149,POA!$A$2:$C$25,2,0))","v":""},null,{"$f":"IF(L149=0,\"\",IF(Q144>=$R$9,\"HABIL\",\"NO HABIL\"))","v":""},null,"",{"$f":"IF(ISERROR(VLOOKUP(N149,POA!$A$2:$F$25,5,0)),\"\",VLOOKUP(N149,POA!$A$2:$F$25,5,0))","v":""},null,"",null,0,"MIPYME",null,"",null,""]
[null,"",null,null,{"$f":"IF(ISERROR(VLOOKUP(C150,#REF!,2,0)),\"\",VLOOKUP(C150,#REF!,2,0))","v":""},null,{"$f":"IF(ISERROR(VLOOKUP(C150,#REF!,4,0)),\"\",VLOOKUP(C150,#REF!,4,0))","v":""},null,0,null,null,null,{"$f":"IF(ISERROR(VLOOKUP(L150,POA!$A$2:$C$25,3,0)),\"\",VLOOKUP(L150,POA!$A$2:$C$25,3,0))","v":""},null,{"$f":"IF(ISERROR(VLOOKUP(N150,POA!$A$2:$F$25,4,0)),\"\",VLOOKUP(N150,POA!$A$2:$F$25,4,0))","v":""},{"$f":"IF(ISERROR(VLOOKUP(L150,POA!$A$2:$C$25,2,0)),\"\",VLOOKUP(L150,POA!$A$2:$C$25,2,0))","v":""},null,{"$f":"IF(L150=0,\"\",IF(Q144>=$R$9,\"HABIL\",\"NO HABIL\"))","v":""},null,"",{"$f":"IF(ISERROR(VLOOKUP(N150,POA!$A$2:$F$25,5,0)),\"\",VLOOKUP(N150,POA!$A$2:$F$25,5,0))","v":""},null,"",null,0,"MIPYME",null,"",null,""]
[null,{"$f":"IF(C151=\"\",\"\",B150+0.1)","v":""},null,null,{"$f":"IF(ISERROR(VLOOKUP(C151,#REF!,2,0)),\"\",VLOOKUP(C151,#REF!,2,0))","v":""},null,{"$f":"IF(ISERROR(VLOOKUP(C151,#REF!,4,0)),\"\",VLOOKUP(C151,#REF!,4,0))","v":""},null,{"$f":"IF(ISERROR(F151-H151),\"\",F151-H151)","v":0},null,null,null,{"$f":"IF(ISERROR(VLOOKUP(L151,POA!$A$2:$C$25,3,0)),\"\",VLOOKUP(L151,POA!$A$2:$C$25,3,0))","v":""},null,{"$f":"IF(ISERROR(VLOOKUP(N151,POA!$A$2:$F$25,4,0)),\"\",VLOOKUP(N151,POA!$A$2:$F$25,4,0))","v":""},{"$f":"IF(ISERROR(VLOOKUP(L151,POA!$A$2:$C$25,2,0)),\"\",VLOOKUP(L151,POA!$A$2:$C$25,2,0))","v":""},null,{"$f":"IF(L151=0,\"\",IF(Q144>=$R$9,\"HABIL\",\"NO HABIL\"))","v":""},null,"",{"$f":"IF(ISERROR(VLOOKUP(N151,POA!$A$2:$F$25,5,0)),\"\",VLOOKUP(N151,POA!$A$2:$F$25,5,0))","v":""},null,"",null,0,"MIPYME",null,"",null,""]
[null,{"$f":"IF(C152=\"\",\"\",B151+0.1)","v":""},null,null,{"$f":"IF(ISERROR(VLOOKUP(C152,#REF!,2,0)),\"\",VLOOKUP(C152,#REF!,2,0))","v":""},null,{"$f":"IF(ISERROR(VLOOKUP(C152,#REF!,4,0)),\"\",VLOOKUP(C152,#REF!,4,0))","v":""},null,{"$f":"IF(ISERROR(F152-H152),\"\",F152-H152)","v":0},null,null,null,{"$f":"IF(ISERROR(VLOOKUP(L152,POA!$A$2:$C$25,3,0)),\"\",VLOOKUP(L152,POA!$A$2:$C$25,3,0))","v":""},null,{"$f":"IF(ISERROR(VLOOKUP(N152,POA!$A$2:$F$25,4,0)),\"\",VLOOKUP(N152,POA!$A$2:$F$25,4,0))","v":""},{"$f":"IF(ISERROR(VLOOKUP(L152,POA!$A$2:$C$25,2,0)),\"\",VLOOKUP(L152,POA!$A$2:$C$25,2,0))","v":""},null,{"$f":"IF(L152=0,\"\",IF(Q144>=$R$9,\"HABIL\",\"NO HABIL\"))","v":""},null,"",{"$f":"IF(ISERROR(VLOOKUP(N152,POA!$A$2:$F$25,5,0)),\"\",VLOOKUP(N152,POA!$A$2:$F$25,5,0))","v":""},null,"",null,0,"MIPYME",null,"",null,""]
[null,{"$f":"IF(C153=\"\",\"\",B152+0.1)","v":""},null,null,{"$f":"IF(ISERROR(VLOOKUP(C153,#REF!,2,0)),\"\",VLOOKUP(C153,#REF!,2,0))","v":""},null,{"$f":"IF(ISERROR(VLOOKUP(C153,#REF!,4,0)),\"\",VLOOKUP(C153,#REF!,4,0))","v":""},null,{"$f":"IF(ISERROR(F153-H153),\"\",F153-H153)","v":0},null,null,null,{"$f":"IF(ISERROR(VLOOKUP(L153,POA!$A$2:$C$25,3,0)),\"\",VLOOKUP(L153,POA!$A$2:$C$25,3,0))","v":""},null,{"$f":"IF(ISERROR(VLOOKUP(N153,POA!$A$2:$F$25,4,0)),\"\",VLOOKUP(N153,POA!$A$2:$F$25,4,0))","v":""},{"$f":"IF(ISERROR(VLOOKUP(L153,POA!$A$2:$C$25,2,0)),\"\",VLOOKUP(L153,POA!$A$2:$C$25,2,0))","v":""},null,{"$f":"IF(L153=0,\"\",IF(Q144>=$R$9,\"HABIL\",\"NO HABIL\"))","v":""},null,"",{"$f":"IF(ISERROR(VLOOKUP(N153,POA!$A$2:$F$25,5,0)),\"\",VLOOKUP(N153,POA!$A$2:$F$25,5,0))","v":""},null,"",null,0,"MIPYME",null,"",null,""]
[null,{"$f":"IF(C154=\"\",\"\",B153+0.1)","v":""},null,null,{"$f":"IF(ISERROR(VLOOKUP(C154,#REF!,2,0)),\"\",VLOOKUP(C154,#REF!,2,0))","v":""},null,{"$f":"IF(ISERROR(VLOOKUP(C154,#REF!,4,0)),\"\",VLOOKUP(C154,#REF!,4,0))","v":""},null,{"$f":"IF(ISERROR(F154-H154),\"\",F154-H154)","v":0},null,null,null,{"$f":"IF(ISERROR(VLOOKUP(L154,POA!$A$2:$C$25,3,0)),\"\",VLOOKUP(L154,POA!$A$2:$C$25,3,0))","v":""},null,{"$f":"IF(ISERROR(VLOOKUP(N154,POA!$A$2:$F$25,4,0)),\"\",VLOOKUP(N154,POA!$A$2:$F$25,4,0))","v":""},{"$f":"IF(ISERROR(VLOOKUP(L154,POA!$A$2:$C$25,2,0)),\"\",VLOOKUP(L154,POA!$A$2:$C$25,2,0))","v":""},null,{"$f":"IF(L154=0,\"\",IF(Q144>=$R$9,\"HABIL\",\"NO HABIL\"))","v":""},null,"",{"$f":"IF(ISERROR(VLOOKUP(N154,POA!$A$2:$F$25,5,0)),\"\",VLOOKUP(N154,POA!$A$2:$F$25,5,0))","v":""},null,"",null,{"$f":"IF(ISERROR(F154/$Z$9),\"\",F154/$Z$9)","v":0},"MIPYME",null,"",null,""]
[null,14,"CONSORCIO CONXIE 034-14",{"$f":"IF(SUM(D156:D165)=0,\"\",SUM(D156:D165))","v":1},{"$f":"SUM(E156:E165)","v":10849538445},{"$f":"SUM(F156:F165)","v":22978378347},{"$f":"SUM(G156:G165)","v":1984519030},{"$f":"SUM(H156:H165)","v":5643212780},{"$f":"+F155-H155","v":17335165567},{"$f":"SUM(J156:J165)","v":1001678291},{"$f":"SUM(K156:K165)","v":182674495},1,{"$f":"IF(ISERROR(VLOOKUP(L155,POA!$A$2:$C$25,3,0)),\"\",VLOOKUP(L155,POA!$A$2:$C$25,3,0))","v":3}," ",{"$f":"+SUM(O156:O165)","v":0},{"$f":"IF(ISERROR(VLOOKUP(L155,POA!$A$2:$C$25,2,0)),\"\",VLOOKUP(L155,POA!$A$2:$C$25,2,0))","v":4167150295},{"$f":"SUM(E155/G155)","v":5.4670871284111593},{"$f":"IF(Q155=0,\"\",IF(Q155>=$R$9,\"HABIL\",\"NO HABIL\"))","v":"HABIL"},{"$f":"SUM(H155/F155)","v":0.24558794771245307},{"$f":"IF(S155=0,\"\",IF(S155<=$T$9,\"HABIL\",\"NO HABIL\"))","v":"HABIL"},{"$f":"+SUM(U156:U165)","v":0},{"$f":"SUM(J155/K155)","v":5.483405283260808},{"$f":"IF(V155=0,\"\",IF(V155>=$W$9,\"HABIL\",\"NO HABIL\"))","v":"HABIL"},{"$f":"IF(R155=0,\"\",IF(R155=\"NO HABIL\",\"NO HABIL\",IF(T155=\"NO HABIL\",\"NO HABIL\",IF(W155=\"NO HABIL\",\"NO HABIL\",IF(W155=\"NO HABIL\",\"NO HABIL\",\"HABIL\")))))","v":"HABIL"},null,null,{"$f":"SUM(J155/I155)","v":5.7783024172947027E-2},{"$f":"IF(AA155=0,\"\",IF(AA155>=$AB$9,\"HABIL\",\"NO HABIL\"))","v":"HABIL"},{"$f":"SUM(J155/F155)","v":4.35922098536939E-2},{"$f":"IF(AC155=0,\"\",IF(AC155>=$AD$9,\"HABIL\",\"NO HABIL\"))","v":"HABIL"},{"$f":"IF(AB155=0,\"\",IF(AB155=\"NO HABIL\",\"NO HABIL\",IF(AD155=\"NO HABIL\",\"NO HABIL\",IF(AD155=\"NO HABIL\",\"NO HABIL\",\"HABIL\"))))","v":"HABIL"}]
[null,{"$f":"IF(C156=\"\",\"\",B155+0.1)","v":14.1},"CONCREARMADO LTDA.",0.5,3252320445,10059862347,962999030,4383239780,{"$f":"IF(ISERROR(F156-H156),\"\",F156-H156)","v":5676622567},789091291,154840495,null,{"$f":"IF(ISERROR(VLOOKUP(L156,POA!$A$2:$C$25,3,0)),\"\",VLOOKUP(L156,POA!$A$2:$C$25,3,0))","v":""}," ",{"$f":"IF(ISERROR(VLOOKUP(N156,POA!$A$2:$F$25,4,0)),\"\",VLOOKUP(N156,POA!$A$2:$F$25,4,0))","v":""},{"$f":"IF(ISERROR(VLOOKUP(L156,POA!$A$2:$C$25,2,0)),\"\",VLOOKUP(L156,POA!$A$2:$C$25,2,0))","v":""},null,{"$f":"IF(Q156=0,\"\",IF(Q155>=$R$9,\"HABIL\",\"NO HABIL\"))","v":""},null,{"$f":"IF(S156=0,\"\",IF(S156<=$T$9,\"HABIL\",\"NO HABIL\"))","v":""},{"$f":"IF(ISERROR(VLOOKUP(N156,POA!$A$2:$F$25,5,0)),\"\",VLOOKUP(N156,POA!$A$2:$F$25,5,0))","v":""},null,{"$f":"IF(V156=0,\"\",IF(V156>=$W$9,\"HABIL\",\"NO HABIL\"))","v":""},null,{"$f":"IF(ISERROR(F156/$Z$9),\"\",F156/$Z$9)","v":17751.654044467974},{"$f":"+IF(Y156<$Z$10,\"MIPYME\",\"NO CUMPLE\")","v":"MIPYME"},null,{"$f":"IF(AA156=0,\"\",IF(AA156>=$AB$9,\"HABIL\",\"NO HABIL\"))","v":""},null,{"$f":"IF(AC156=0,\"\",IF(AC156>=$AD$9,\"HABIL\",\"NO HABIL\"))","v":""}]
[null,14.2,"JAIME VARGAS GALINDO",0.5,7597218000,12918516000,1021520000,1259973000,11658543000,212587000,27834000,null,{"$f":"IF(ISERROR(VLOOKUP(L157,POA!$A$2:$C$25,3,0)),\"\",VLOOKUP(L157,POA!$A$2:$C$25,3,0))","v":""}," ",{"$f":"IF(ISERROR(VLOOKUP(N157,POA!$A$2:$F$25,4,0)),\"\",VLOOKUP(N157,POA!$A$2:$F$25,4,0))","v":""},{"$f":"IF(ISERROR(VLOOKUP(L157,POA!$A$2:$C$25,2,0)),\"\",VLOOKUP(L157,POA!$A$2:$C$25,2,0))","v":""},null,{"$f":"IF(Q157=0,\"\",IF(Q155>=$R$9,\"HABIL\",\"NO HABIL\"))","v":""},null,"",{"$f":"IF(ISERROR(VLOOKUP(N157,POA!$A$2:$F$25,5,0)),\"\",VLOOKUP(N157,POA!$A$2:$F$25,5,0))","v":""},null,"",null,{"$f":"IF(ISERROR(F157/$Z$9),\"\",F157/$Z$9)","v":22796.040232927477},{"$f":"+IF(Y157<$Z$10,\"MIPYME\",\"NO CUMPLE\")","v":"MIPYME"},null,"",null,""]
[null,"",null,null,null,null,null,null,0,null,null,null,{"$f":"IF(ISERROR(VLOOKUP(L158,POA!$A$2:$C$25,3,0)),\"\",VLOOKUP(L158,POA!$A$2:$C$25,3,0))","v":""},null,{"$f":"IF(ISERROR(VLOOKUP(N158,POA!$A$2:$F$25,4,0)),\"\",VLOOKUP(N158,POA!$A$2:$F$25,4,0))","v":""},{"$f":"IF(ISERROR(VLOOKUP(L158,POA!$A$2:$C$25,2,0)),\"\",VLOOKUP(L158,POA!$A$2:$C$25,2,0))","v":""},null,{"$f":"IF(Q158=0,\"\",IF(Q155>=$R$9,\"HABIL\",\"NO HABIL\"))","v":""},null,"",{"$f":"IF(ISERROR(VLOOKUP(N158,POA!$A$2:$F$25,5,0)),\"\",VLOOKUP(N158,POA!$A$2:$F$25,5,0))","v":""},null,"",null,0,"MIPYME",null,"",null,""]
[null,"",null,null,{"$f":"IF(ISERROR(VLOOKUP(C159,#REF!,2,0)),\"\",VLOOKUP(C159,#REF!,2,0))","v":""},null,{"$f":"IF(ISERROR(VLOOKUP(C159,#REF!,4,0)),\"\",VLOOKUP(C159,#REF!,4,0))","v":""},null,0,null,null,null,{"$f":"IF(ISERROR(VLOOKUP(L159,POA!$A$2:$C$25,3,0)),\"\",VLOOKUP(L159,POA!$A$2:$C$25,3,0))","v":""},null,{"$f":"IF(ISERROR(VLOOKUP(N159,POA!$A$2:$F$25,4,0)),\"\",VLOOKUP(N159,POA!$A$2:$F$25,4,0))","v":""},{"$f":"IF(ISERROR(VLOOKUP(L159,POA!$A$2:$C$25,2,0)),\"\",VLOOKUP(L159,POA!$A$2:$C$25,2,0))","v":""},null,{"$f":"IF(L159=0,\"\",IF(Q155>=$R$9,\"HABIL\",\"NO HABIL\"))","v":""},null,"",{"$f":"IF(ISERROR(VLOOKUP(N159,POA!$A$2:$F$25,5,0)),\"\",VLOOKUP(N159,POA!$A$2:$F$25,5,0))","v":""},null,"",null,0,"MIPYME",null,"",null,""]
[null,"",null,null,{"$f":"IF(ISERROR(VLOOKUP(C160,#REF!,2,0)),\"\",VLOOKUP(C160,#REF!,2,0))","v":""},null,{"$f":"IF(ISERROR(VLOOKUP(C160,#REF!,4,0)),\"\",VLOOKUP(C160,#REF!,4,0))","v":""},null,0,null,null,null,{"$f":"IF(ISERROR(VLOOKUP(L160,POA!$A$2:$C$25,3,0)),\"\",VLOOKUP(L160,POA!$A$2:$C$25,3,0))","v":""},null,{"$f":"IF(ISERROR(VLOOKUP(N160,POA!$A$2:$F$25,4,0)),\"\",VLOOKUP(N160,POA!$A$2:$F$25,4,0))","v":""},{"$f":"IF(ISERROR(VLOOKUP(L160,POA!$A$2:$C$25,2,0)),\"\",VLOOKUP(L160,POA!$A$2:$C$25,2,0))","v":""},null,{"$f":"IF(L160=0,\"\",IF(Q155>=$R$9,\"HABIL\",\"NO HABIL\"))","v":""},null,"",{"$f":"IF(ISERROR(VLOOKUP(N160,POA!$A$2:$F$25,5,0)),\"\",VLOOKUP(N160,POA!$A$2:$F$25,5,0))","v":""},null,"",null,0,"MIPYME",null,"",null,""]
[null,"",null,null,{"$f":"IF(ISERROR(VLOOKUP(C161,#REF!,2,0)),\"\",VLOOKUP(C161,#REF!,2,0))","v":""},null,{"$f":"IF(ISERROR(VLOOKUP(C161,#REF!,4,0)),\"\",VLOOKUP(C161,#REF!,4,0))","v":""},null,0,null,null,null,{"$f":"IF(ISERROR(VLOOKUP(L161,POA!$A$2:$C$25,3,0)),\"\",VLOOKUP(L161,POA!$A$2:$C$25,3,0))","v":""},null,{"$f":"IF(ISERROR(VLOOKUP(N161,POA!$A$2:$F$25,4,0)),\"\",VLOOKUP(N161,POA!$A$2:$F$25,4,0))","v":""},{"$f":"IF(ISERROR(VLOOKUP(L161,POA!$A$2:$C$25,2,0)),\"\",VLOOKUP(L161,POA!$A$2:$C$25,2,0))","v":""},null,{"$f":"IF(L161=0,\"\",IF(Q155>=$R$9,\"HABIL\",\"NO HABIL\"))","v":""},null,"",{"$f":"IF(ISERROR(VLOOKUP(N161,POA!$A$2:$F$25,5,0)),\"\",VLOOKUP(N161,POA!$A$2:$F$25,5,0))","v":""},null,"",null,0,"MIPYME",null,"",null,""]
[null,{"$f":"IF(C162=\"\",\"\",B161+0.1)","v":""},null,null,{"$f":"IF(ISERROR(VLOOKUP(C162,#REF!,2,0)),\"\",VLOOKUP(C162,#REF!,2,0))","v":""},null,{"$f":"IF(ISERROR(VLOOKUP(C162,#REF!,4,0)),\"\",VLOOKUP(C162,#REF!,4,0))","v":""},null,{"$f":"IF(ISERROR(F162-H162),\"\",F162-H162)","v":0},null,null,null,{"$f":"IF(ISERROR(VLOOKUP(L162,POA!$A$2:$C$25,3,0)),\"\",VLOOKUP(L162,POA!$A$2:$C$25,3,0))","v":""},null,{"$f":"IF(ISERROR(VLOOKUP(N162,POA!$A$2:$F$25,4,0)),\"\",VLOOKUP(N162,POA!$A$2:$F$25,4,0))","v":""},{"$f":"IF(ISERROR(VLOOKUP(L162,POA!$A$2:$C$25,2,0)),\"\",VLOOKUP(L162,POA!$A$2:$C$25,2,0))","v":""},null,{"$f":"IF(L162=0,\"\",IF(Q155>=$R$9,\"HABIL\",\"NO HABIL\"))","v":""},null,"",{"$f":"IF(ISERROR(VLOOKUP(N162,POA!$A$2:$F$25,5,0)),\"\",VLOOKUP(N162,POA!$A$2:$F$25,5,0))","v":""},null,"",null,0,"MIPYME",null,"",null,""]
[null,{"$f":"IF(C163=\"\",\"\",B162+0.1)","v":""},null,null,{"$f":"IF(ISERROR(VLOOKUP(C163,#REF!,2,0)),\"\",VLOOKUP(C163,#REF!,2,0))","v":""},null,{"$f":"IF(ISERROR(VLOOKUP(C163,#REF!,4,0)),\"\",VLOOKUP(C163,#REF!,4,0))","v":""},null,{"$f":"IF(ISERROR(F163-H163),\"\",F163-H163)","v":0},null,null,null,{"$f":"IF(ISERROR(VLOOKUP(L163,POA!$A$2:$C$25,3,0)),\"\",VLOOKUP(L163,POA!$A$2:$C$25,3,0))","v":""},null,{"$f":"IF(ISERROR(VLOOKUP(N163,POA!$A$2:$F$25,4,0)),\"\",VLOOKUP(N163,POA!$A$2:$F$25,4,0))","v":""},{"$f":"IF(ISERROR(VLOOKUP(L163,POA!$A$2:$C$25,2,0)),\"\",VLOOKUP(L163,POA!$A$2:$C$25,2,0))","v":""},null,{"$f":"IF(L163=0,\"\",IF(Q155>=$R$9,\"HABIL\",\"NO HABIL\"))","v":""},null,"",{"$f":"IF(ISERROR(VLOOKUP(N163,POA!$A$2:$F$25,5,0)),\"\",VLOOKUP(N163,POA!$A$2:$F$25,5,0))","v":""},null,"",null,0,"MIPYME",null,"",null,""]
[null,{"$f":"IF(C164=\"\",\"\",B163+0.1)","v":""},null,null,{"$f":"IF(ISERROR(VLOOKUP(C164,#REF!,2,0)),\"\",VLOOKUP(C164,#REF!,2,0))","v":""},null,{"$f":"IF(ISERROR(VLOOKUP(C164,#REF!,4,0)),\"\",VLOOKUP(C164,#REF!,4,0))","v":""},null,{"$f":"IF(ISERROR(F164-H164),\"\",F164-H164)","v":0},null,null,null,{"$f":"IF(ISERROR(VLOOKUP(L164,POA!$A$2:$C$25,3,0)),\"\",VLOOKUP(L164,POA!$A$2:$C$25,3,0))","v":""},null,{"$f":"IF(ISERROR(VLOOKUP(N164,POA!$A$2:$F$25,4,0)),\"\",VLOOKUP(N164,POA!$A$2:$F$25,4,0))","v":""},{"$f":"IF(ISERROR(VLOOKUP(L164,POA!$A$2:$C$25,2,0)),\"\",VLOOKUP(L164,POA!$A$2:$C$25,2,0))","v":""},null,{"$f":"IF(L164=0,\"\",IF(Q155>=$R$9,\"HABIL\",\"NO HABIL\"))","v":""},null,"",{"$f":"IF(ISERROR(VLOOKUP(N164,POA!$A$2:$F$25,5,0)),\"\",VLOOKUP(N164,POA!$A$2:$F$25,5,0))","v":""},null,"",null,0,"MIPYME",null,"",null,""]
[null,{"$f":"IF(C165=\"\",\"\",B164+0.1)","v":""},null,null,{"$f":"IF(ISERROR(VLOOKUP(C165,#REF!,2,0)),\"\",VLOOKUP(C165,#REF!,2,0))","v":""},null,{"$f":"IF(ISERROR(VLOOKUP(C165,#REF!,4,0)),\"\",VLOOKUP(C165,#REF!,4,0))","v":""},null,{"$f":"IF(ISERROR(F165-H165),\"\",F165-H165)","v":0},null,null,null,{"$f":"IF(ISERROR(VLOOKUP(L165,POA!$A$2:$C$25,3,0)),\"\",VLOOKUP(L165,POA!$A$2:$C$25,3,0))","v":""},null,{"$f":"IF(ISERROR(VLOOKUP(N165,POA!$A$2:$F$25,4,0)),\"\",VLOOKUP(N165,POA!$A$2:$F$25,4,0))","v":""},{"$f":"IF(ISERROR(VLOOKUP(L165,POA!$A$2:$C$25,2,0)),\"\",VLOOKUP(L165,POA!$A$2:$C$25,2,0))","v":""},null,{"$f":"IF(L165=0,\"\",IF(Q155>=$R$9,\"HABIL\",\"NO HABIL\"))","v":""},null,"",{"$f":"IF(ISERROR(VLOOKUP(N165,POA!$A$2:$F$25,5,0)),\"\",VLOOKUP(N165,POA!$A$2:$F$25,5,0))","v":""},null,"",null,{"$f":"IF(ISERROR(F165/$Z$9),\"\",F165/$Z$9)","v":0},"MIPYME",null,"",null,""]
[null,15,"CONSORCIO BP LA CALERA",{"$f":"IF(SUM(D167:D176)=0,\"\",SUM(D167:D176))","v":1},{"$f":"SUM(E167:E176)","v":3825881396},{"$f":"SUM(F167:F176)","v":6605053223},{"$f":"SUM(G167:G176)","v":967704971},{"$f":"SUM(H167:H176)","v":2533968144},{"$f":"+F166-H166","v":4071085079},{"$f":"SUM(J167:J176)","v":850273236},{"$f":"SUM(K167:K176)","v":141371539},1,{"$f":"IF(ISERROR(VLOOKUP(L166,POA!$A$2:$C$25,3,0)),\"\",VLOOKUP(L166,POA!$A$2:$C$25,3,0))","v":3}," ",{"$f":"+SUM(O167:O176)","v":0},{"$f":"IF(ISERROR(VLOOKUP(L166,POA!$A$2:$C$25,2,0)),\"\",VLOOKUP(L166,POA!$A$2:$C$25,2,0))","v":4167150295},{"$f":"SUM(E166/G166)","v":3.9535617886166672},{"$f":"IF(Q166=0,\"\",IF(Q166>=$R$9,\"HABIL\",\"NO HABIL\"))","v":"HABIL"},{"$f":"SUM(H166/F166)","v":0.38364083656075032},{"$f":"IF(S166=0,\"\",IF(S166<=$T$9,\"HABIL\",\"NO HABIL\"))","v":"HABIL"},{"$f":"+SUM(U167:U176)","v":0},{"$f":"SUM(J166/K166)","v":6.0144583698703311},{"$f":"IF(V166=0,\"\",IF(V166>=$W$9,\"HABIL\",\"NO HABIL\"))","v":"HABIL"},{"$f":"IF(R166=0,\"\",IF(R166=\"NO HABIL\",\"NO HABIL\",IF(T166=\"NO HABIL\",\"NO HABIL\",IF(W166=\"NO HABIL\",\"NO HABIL\",IF(W166=\"NO HABIL\",\"NO HABIL\",\"HABIL\")))))","v":"HABIL"},null,null,{"$f":"SUM(J166/I166)","v":0.20885666093936231},{"$f":"IF(AA166=0,\"\",IF(AA166>=$AB$9,\"HABIL\",\"NO HABIL\"))","v":"HABIL"},{"$f":"SUM(J166/F166)","v":0.12873071681530038},{"$f":"IF(AC166=0,\"\",IF(AC166>=$AD$9,\"HABIL\",\"NO HABIL\"))","v":"HABIL"},{"$f":"IF(AB166=0,\"\",IF(AB166=\"NO HABIL\",\"NO HABIL\",IF(AD166=\"NO HABIL\",\"NO HABIL\",IF(AD166=\"NO HABIL\",\"NO HABIL\",\"HABIL\"))))","v":"HABIL"}]
[null,{"$f":"IF(C167=\"\",\"\",B166+0.1)","v":15.1},"PEDRO NAVARRO RODRIGUEZ",0.25,309959284,691063484,31948000,31948000,{"$f":"IF(ISERROR(F167-H167),\"\",F167-H167)","v":659115484},36064110,0,null,{"$f":"IF(ISERROR(VLOOKUP(L167,POA!$A$2:$C$25,3,0)),\"\",VLOOKUP(L167,POA!$A$2:$C$25,3,0))","v":""}," ",{"$f":"IF(ISERROR(VLOOKUP(N167,POA!$A$2:$F$25,4,0)),\"\",VLOOKUP(N167,POA!$A$2:$F$25,4,0))","v":""},{"$f":"IF(ISERROR(VLOOKUP(L167,POA!$A$2:$C$25,2,0)),\"\",VLOOKUP(L167,POA!$A$2:$C$25,2,0))","v":""},null,{"$f":"IF(Q167=0,\"\",IF(Q166>=$R$9,\"HABIL\",\"NO HABIL\"))","v":""},null,{"$f":"IF(S167=0,\"\",IF(S167<=$T$9,\"HABIL\",\"NO HABIL\"))","v":""},{"$f":"IF(ISERROR(VLOOKUP(N167,POA!$A$2:$F$25,5,0)),\"\",VLOOKUP(N167,POA!$A$2:$F$25,5,0))","v":""},null,{"$f":"IF(V167=0,\"\",IF(V167>=$W$9,\"HABIL\",\"NO HABIL\"))","v":""},null,{"$f":"IF(ISERROR(F167/$Z$9),\"\",F167/$Z$9)","v":1219.4520628198341},{"$f":"+IF(Y167<$Z$10,\"MIPYME\",\"NO CUMPLE\")","v":"MIPYME"},null,{"$f":"IF(AA167=0,\"\",IF(AA167>=$AB$9,\"HABIL\",\"NO HABIL\"))","v":""},null,{"$f":"IF(AC167=0,\"\",IF(AC167>=$AD$9,\"HABIL\",\"NO HABIL\"))","v":""}]
["PROC. AD. FIRM. RUP",15.2,"PAVIOBRAS S.A.S.",0.25,1433877421,2128733246,480788162,480788162,1647945084,161339306,0,null,{"$f":"IF(ISERROR(VLOOKUP(L168,POA!$A$2:$C$25,3,0)),\"\",VLOOKUP(L168,POA!$A$2:$C$25,3,0))","v":""}," ",{"$f":"IF(ISERROR(VLOOKUP(N168,POA!$A$2:$F$25,4,0)),\"\",VLOOKUP(N168,POA!$A$2:$F$25,4,0))","v":""},{"$f":"IF(ISERROR(VLOOKUP(L168,POA!$A$2:$C$25,2,0)),\"\",VLOOKUP(L168,POA!$A$2:$C$25,2,0))","v":""},null,{"$f":"IF(Q168=0,\"\",IF(Q166>=$R$9,\"HABIL\",\"NO HABIL\"))","v":""},null,"",{"$f":"IF(ISERROR(VLOOKUP(N168,POA!$A$2:$F$25,5,0)),\"\",VLOOKUP(N168,POA!$A$2:$F$25,5,0))","v":""},null,"",null,{"$f":"IF(ISERROR(F168/$Z$9),\"\",F168/$Z$9)","v":3756.3671184047998},{"$f":"+IF(Y168<$Z$10,\"MIPYME\",\"NO CUMPLE\")","v":"MIPYME"},null,"",null,""]
[null,15.299999999999999,"BALLEN B Y CIA S.A.S.",0.5,2082044691,3785256493,454968809,2021231982,1764024511,652869820,141371539,null,{"$f":"IF(ISERROR(VLOOKUP(L169,POA!$A$2:$C$25,3,0)),\"\",VLOOKUP(L169,POA!$A$2:$C$25,3,0))","v":""},null,{"$f":"IF(ISERROR(VLOOKUP(N169,POA!$A$2:$F$25,4,0)),\"\",VLOOKUP(N169,POA!$A$2:$F$25,4,0))","v":""},{"$f":"IF(ISERROR(VLOOKUP(L169,POA!$A$2:$C$25,2,0)),\"\",VLOOKUP(L169,POA!$A$2:$C$25,2,0))","v":""},null,{"$f":"IF(Q169=0,\"\",IF(Q166>=$R$9,\"HABIL\",\"NO HABIL\"))","v":""},null,"",{"$f":"IF(ISERROR(VLOOKUP(N169,POA!$A$2:$F$25,5,0)),\"\",VLOOKUP(N169,POA!$A$2:$F$25,5,0))","v":""},null,"",null,6679.4714893241571,"MIPYME",null,"",null,""]
[null,"",null,null,{"$f":"IF(ISERROR(VLOOKUP(C170,#REF!,2,0)),\"\",VLOOKUP(C170,#REF!,2,0))","v":""},null,{"$f":"IF(ISERROR(VLOOKUP(C170,#REF!,4,0)),\"\",VLOOKUP(C170,#REF!,4,0))","v":""},null,{"$f":"IF(ISERROR(F170-H170),\"\",F170-H170)","v":0},null,null,null,{"$f":"IF(ISERROR(VLOOKUP(L170,POA!$A$2:$C$25,3,0)),\"\",VLOOKUP(L170,POA!$A$2:$C$25,3,0))","v":""},null,{"$f":"IF(ISERROR(VLOOKUP(N170,POA!$A$2:$F$25,4,0)),\"\",VLOOKUP(N170,POA!$A$2:$F$25,4,0))","v":""},{"$f":"IF(ISERROR(VLOOKUP(L170,POA!$A$2:$C$25,2,0)),\"\",VLOOKUP(L170,POA!$A$2:$C$25,2,0))","v":""},null,{"$f":"IF(L170=0,\"\",IF(Q166>=$R$9,\"HABIL\",\"NO HABIL\"))","v":""},null,"",{"$f":"IF(ISERROR(VLOOKUP(N170,POA!$A$2:$F$25,5,0)),\"\",VLOOKUP(N170,POA!$A$2:$F$25,5,0))","v":""},null,"",null,0,"MIPYME",null,"",null,""]
[null,"",null,null,{"$f":"IF(ISERROR(VLOOKUP(C171,#REF!,2,0)),\"\",VLOOKUP(C171,#REF!,2,0))","v":""},null,{"$f":"IF(ISERROR(VLOOKUP(C171,#REF!,4,0)),\"\",VLOOKUP(C171,#REF!,4,0))","v":""},null,0,null,null,null,{"$f":"IF(ISERROR(VLOOKUP(L171,POA!$A$2:$C$25,3,0)),\"\",VLOOKUP(L171,POA!$A$2:$C$25,3,0))","v":""},null,{"$f":"IF(ISERROR(VLOOKUP(N171,POA!$A$2:$F$25,4,0)),\"\",VLOOKUP(N171,POA!$A$2:$F$25,4,0))","v":""},{"$f":"IF(ISERROR(VLOOKUP(L171,POA!$A$2:$C$25,2,0)),\"\",VLOOKUP(L171,POA!$A$2:$C$25,2,0))","v":""},null,{"$f":"IF(L171=0,\"\",IF(Q166>=$R$9,\"HABIL\",\"NO HABIL\"))","v":""},null,"",{"$f":"IF(ISERROR(VLOOKUP(N171,POA!$A$2:$F$25,5,0)),\"\",VLOOKUP(N171,POA!$A$2:$F$25,5,0))","v":""},null,"",null,0,"MIPYME",null,"",null,""]
[null,"",null,null,{"$f":"IF(ISERROR(VLOOKUP(C172,#REF!,2,0)),\"\",VLOOKUP(C172,#REF!,2,0))","v":""},null,{"$f":"IF(ISERROR(VLOOKUP(C172,#REF!,4,0)),\"\",VLOOKUP(C172,#REF!,4,0))","v":""},null,0,null,null,null,{"$f":"IF(ISERROR(VLOOKUP(L172,POA!$A$2:$C$25,3,0)),\"\",VLOOKUP(L172,POA!$A$2:$C$25,3,0))","v":""},null,{"$f":"IF(ISERROR(VLOOKUP(N172,POA!$A$2:$F$25,4,0)),\"\",VLOOKUP(N172,POA!$A$2:$F$25,4,0))","v":""},{"$f":"IF(ISERROR(VLOOKUP(L172,POA!$A$2:$C$25,2,0)),\"\",VLOOKUP(L172,POA!$A$2:$C$25,2,0))","v":""},null,{"$f":"IF(L172=0,\"\",IF(Q166>=$R$9,\"HABIL\",\"NO HABIL\"))","v":""},null,"",{"$f":"IF(ISERROR(VLOOKUP(N172,POA!$A$2:$F$25,5,0)),\"\",VLOOKUP(N172,POA!$A$2:$F$25,5,0))","v":""},null,"",null,0,"MIPYME",null,"",null,""]
[null,{"$f":"IF(C173=\"\",\"\",B172+0.1)","v":""},null,null,{"$f":"IF(ISERROR(VLOOKUP(C173,#REF!,2,0)),\"\",VLOOKUP(C173,#REF!,2,0))","v":""},null,{"$f":"IF(ISERROR(VLOOKUP(C173,#REF!,4,0)),\"\",VLOOKUP(C173,#REF!,4,0))","v":""},null,{"$f":"IF(ISERROR(F173-H173),\"\",F173-H173)","v":0},null,null,null,{"$f":"IF(ISERROR(VLOOKUP(L173,POA!$A$2:$C$25,3,0)),\"\",VLOOKUP(L173,POA!$A$2:$C$25,3,0))","v":""},null,{"$f":"IF(ISERROR(VLOOKUP(N173,POA!$A$2:$F$25,4,0)),\"\",VLOOKUP(N173,POA!$A$2:$F$25,4,0))","v":""},{"$f":"IF(ISERROR(VLOOKUP(L173,POA!$A$2:$C$25,2,0)),\"\",VLOOKUP(L173,POA!$A$2:$C$25,2,0))","v":""},null,{"$f":"IF(L173=0,\"\",IF(Q166>=$R$9,\"HABIL\",\"NO HABIL\"))","v":""},null,"",{"$f":"IF(ISERROR(VLOOKUP(N173,POA!$A$2:$F$25,5,0)),\"\",VLOOKUP(N173,POA!$A$2:$F$25,5,0))","v":""},null,"",null,0,"MIPYME",null,"",null,""]
[null,{"$f":"IF(C174=\"\",\"\",B173+0.1)","v":""},null,null,{"$f":"IF(ISERROR(VLOOKUP(C174,#REF!,2,0)),\"\",VLOOKUP(C174,#REF!,2,0))","v":""},null,{"$f":"IF(ISERROR(VLOOKUP(C174,#REF!,4,0)),\"\",VLOOKUP(C174,#REF!,4,0))","v":""},null,{"$f":"IF(ISERROR(F174-H174),\"\",F174-H174)","v":0},null,null,null,{"$f":"IF(ISERROR(VLOOKUP(L174,POA!$A$2:$C$25,3,0)),\"\",VLOOKUP(L174,POA!$A$2:$C$25,3,0))","v":""},null,{"$f":"IF(ISERROR(VLOOKUP(N174,POA!$A$2:$F$25,4,0)),\"\",VLOOKUP(N174,POA!$A$2:$F$25,4,0))","v":""},{"$f":"IF(ISERROR(VLOOKUP(L174,POA!$A$2:$C$25,2,0)),\"\",VLOOKUP(L174,POA!$A$2:$C$25,2,0))","v":""},null,{"$f":"IF(L174=0,\"\",IF(Q166>=$R$9,\"HABIL\",\"NO HABIL\"))","v":""},null,"",{"$f":"IF(ISERROR(VLOOKUP(N174,POA!$A$2:$F$25,5,0)),\"\",VLOOKUP(N174,POA!$A$2:$F$25,5,0))","v":""},null,"",null,0,"MIPYME",null,"",null,""]
[null,{"$f":"IF(C175=\"\",\"\",B174+0.1)","v":""},null,null,{"$f":"IF(ISERROR(VLOOKUP(C175,#REF!,2,0)),\"\",VLOOKUP(C175,#REF!,2,0))","v":""},null,{"$f":"IF(ISERROR(VLOOKUP(C175,#REF!,4,0)),\"\",VLOOKUP(C175,#REF!,4,0))","v":""},null,{"$f":"IF(ISERROR(F175-H175),\"\",F175-H175)","v":0},null,null,null,{"$f":"IF(ISERROR(VLOOKUP(L175,POA!$A$2:$C$25,3,0)),\"\",VLOOKUP(L175,POA!$A$2:$C$25,3,0))","v":""},null,{"$f":"IF(ISERROR(VLOOKUP(N175,POA!$A$2:$F$25,4,0)),\"\",VLOOKUP(N175,POA!$A$2:$F$25,4,0))","v":""},{"$f":"IF(ISERROR(VLOOKUP(L175,POA!$A$2:$C$25,2,0)),\"\",VLOOKUP(L175,POA!$A$2:$C$25,2,0))","v":""},null,{"$f":"IF(L175=0,\"\",IF(Q166>=$R$9,\"HABIL\",\"NO HABIL\"))","v":""},null,"",{"$f":"IF(ISERROR(VLOOKUP(N175,POA!$A$2:$F$25,5,0)),\"\",VLOOKUP(N175,POA!$A$2:$F$25,5,0))","v":""},null,"",null,0,"MIPYME",null,"",null,""]
[null,{"$f":"IF(C176=\"\",\"\",B175+0.1)","v":""},null,null,{"$f":"IF(ISERROR(VLOOKUP(C176,#REF!,2,0)),\"\",VLOOKUP(C176,#REF!,2,0))","v":""},null,{"$f":"IF(ISERROR(VLOOKUP(C176,#REF!,4,0)),\"\",VLOOKUP(C176,#REF!,4,0))","v":""},null,{"$f":"IF(ISERROR(F176-H176),\"\",F176-H176)","v":0},null,null,null,{"$f":"IF(ISERROR(VLOOKUP(L176,POA!$A$2:$C$25,3,0)),\"\",VLOOKUP(L176,POA!$A$2:$C$25,3,0))","v":""},null,{"$f":"IF(ISERROR(VLOOKUP(N176,POA!$A$2:$F$25,4,0)),\"\",VLOOKUP(N176,POA!$A$2:$F$25,4,0))","v":""},{"$f":"IF(ISERROR(VLOOKUP(L176,POA!$A$2:$C$25,2,0)),\"\",VLOOKUP(L176,POA!$A$2:$C$25,2,0))","v":""},null,{"$f":"IF(L176=0,\"\",IF(Q166>=$R$9,\"HABIL\",\"NO HABIL\"))","v":""},null,"",{"$f":"IF(ISERROR(VLOOKUP(N176,POA!$A$2:$F$25,5,0)),\"\",VLOOKUP(N176,POA!$A$2:$F$25,5,0))","v":""},null,"",null,{"$f":"IF(ISERROR(F176/$Z$9),\"\",F176/$Z$9)","v":0},"MIPYME",null,"",null,""]
[null,16,"CONSORCIO SAN PABLO",{"$f":"IF(SUM(D178:D187)=0,\"\",SUM(D178:D187))","v":1},{"$f":"SUM(E178:E187)","v":114478871615},{"$f":"SUM(F178:F187)","v":151820944418},{"$f":"SUM(G178:G187)","v":52750978245},{"$f":"SUM(H178:H187)","v":89368120494},{"$f":"+F177-H177","v":62452823924},{"$f":"SUM(J178:J187)","v":5400407808},{"$f":"SUM(K178:K187)","v":2341098317},1,{"$f":"IF(ISERROR(VLOOKUP(L177,POA!$A$2:$C$25,3,0)),\"\",VLOOKUP(L177,POA!$A$2:$C$25,3,0))","v":3}," ",{"$f":"+SUM(O178:O187)","v":0},{"$f":"IF(ISERROR(VLOOKUP(L177,POA!$A$2:$C$25,2,0)),\"\",VLOOKUP(L177,POA!$A$2:$C$25,2,0))","v":4167150295},{"$f":"SUM(E177/G177)","v":2.1701753298925954},{"$f":"IF(Q177=0,\"\",IF(Q177>=$R$9,\"HABIL\",\"NO HABIL\"))","v":"HABIL"},{"$f":"SUM(H177/F177)","v":0.58864157930639538},{"$f":"IF(S177=0,\"\",IF(S177<=$T$9,\"HABIL\",\"NO HABIL\"))","v":"HABIL"},{"$f":"+SUM(U178:U187)","v":0},{"$f":"SUM(J177/K177)","v":2.3067838581509688},{"$f":"IF(V177=0,\"\",IF(V177>=$W$9,\"HABIL\",\"NO HABIL\"))","v":"HABIL"},{"$f":"IF(R177=0,\"\",IF(R177=\"NO HABIL\",\"NO HABIL\",IF(T177=\"NO HABIL\",\"NO HABIL\",IF(W177=\"NO HABIL\",\"NO HABIL\",IF(W177=\"NO HABIL\",\"NO HABIL\",\"HABIL\")))))","v":"HABIL"},null,null,{"$f":"SUM(J177/I177)","v":8.6471795327811865E-2},{"$f":"IF(AA177=0,\"\",IF(AA177>=$AB$9,\"HABIL\",\"NO HABIL\"))","v":"HABIL"},{"$f":"SUM(J177/F177)","v":3.5570901160589301E-2},{"$f":"IF(AC177=0,\"\",IF(AC177>=$AD$9,\"HABIL\",\"NO HABIL\"))","v":"HABIL"},{"$f":"IF(AB177=0,\"\",IF(AB177=\"NO HABIL\",\"NO HABIL\",IF(AD177=\"NO HABIL\",\"NO HABIL\",IF(AD177=\"NO HABIL\",\"NO HABIL\",\"HABIL\"))))","v":"HABIL"}]
[null,{"$f":"IF(C178=\"\",\"\",B177+0.1)","v":16.100000000000001},"ALCA INGENIERIA S.A.S.",0.6,16669734107,29085486224,8282217822,17158922672,{"$f":"IF(ISERROR(F178-H178),\"\",F178-H178)","v":11926563552},2256803930,207261263,null,{"$f":"IF(ISERROR(VLOOKUP(L178,POA!$A$2:$C$25,3,0)),\"\",VLOOKUP(L178,POA!$A$2:$C$25,3,0))","v":""}," ",{"$f":"IF(ISERROR(VLOOKUP(N178,POA!$A$2:$F$25,4,0)),\"\",VLOOKUP(N178,POA!$A$2:$F$25,4,0))","v":""},{"$f":"IF(ISERROR(VLOOKUP(L178,POA!$A$2:$C$25,2,0)),\"\",VLOOKUP(L178,POA!$A$2:$C$25,2,0))","v":""},null,{"$f":"IF(Q178=0,\"\",IF(Q177>=$R$9,\"HABIL\",\"NO HABIL\"))","v":""},null,{"$f":"IF(S178=0,\"\",IF(S178<=$T$9,\"HABIL\",\"NO HABIL\"))","v":""},{"$f":"IF(ISERROR(VLOOKUP(N178,POA!$A$2:$F$25,5,0)),\"\",VLOOKUP(N178,POA!$A$2:$F$25,5,0))","v":""},null,{"$f":"IF(V178=0,\"\",IF(V178>=$W$9,\"HABIL\",\"NO HABIL\"))","v":""},null,{"$f":"IF(ISERROR(F178/$Z$9),\"\",F178/$Z$9)","v":51324.309553555671},{"$f":"+IF(Y178<$Z$10,\"MIPYME\",\"NO CUMPLE\")","v":"NO CUMPLE"},null,{"$f":"IF(AA178=0,\"\",IF(AA178>=$AB$9,\"HABIL\",\"NO HABIL\"))","v":""},null,{"$f":"IF(AC178=0,\"\",IF(AC178>=$AD$9,\"HABIL\",\"NO HABIL\"))","v":""}]
[null,16.200000000000003,"TORRESCAMARA Y CIA DE OBRAS S.A. SUCURSAL COLOMBIA",0.4,97809137508,122735458194,44468760423,72209197822,50526260372,3143603878,2133837054,null,{"$f":"IF(ISERROR(VLOOKUP(L179,POA!$A$2:$C$25,3,0)),\"\",VLOOKUP(L179,POA!$A$2:$C$25,3,0))","v":""}," ",{"$f":"IF(ISERROR(VLOOKUP(N179,POA!$A$2:$F$25,4,0)),\"\",VLOOKUP(N179,POA!$A$2:$F$25,4,0))","v":""},{"$f":"IF(ISERROR(VLOOKUP(L179,POA!$A$2:$C$25,2,0)),\"\",VLOOKUP(L179,POA!$A$2:$C$25,2,0))","v":""},null,{"$f":"IF(Q179=0,\"\",IF(Q177>=$R$9,\"HABIL\",\"NO HABIL\"))","v":""},null,"",{"$f":"IF(ISERROR(VLOOKUP(N179,POA!$A$2:$F$25,5,0)),\"\",VLOOKUP(N179,POA!$A$2:$F$25,5,0))","v":""},null,"",null,{"$f":"IF(ISERROR(F179/$Z$9),\"\",F179/$Z$9)","v":216579.24509264162},{"$f":"+IF(Y179<$Z$10,\"MIPYME\",\"NO CUMPLE\")","v":"NO CUMPLE"},null,"",null,""]
[null,"",null,null,null,null,null,null,{"$f":"IF(ISERROR(F180-H180),\"\",F180-H180)","v":0},null,null,null,{"$f":"IF(ISERROR(VLOOKUP(L180,POA!$A$2:$C$25,3,0)),\"\",VLOOKUP(L180,POA!$A$2:$C$25,3,0))","v":""},null,{"$f":"IF(ISERROR(VLOOKUP(N180,POA!$A$2:$F$25,4,0)),\"\",VLOOKUP(N180,POA!$A$2:$F$25,4,0))","v":""},{"$f":"IF(ISERROR(VLOOKUP(L180,POA!$A$2:$C$25,2,0)),\"\",VLOOKUP(L180,POA!$A$2:$C$25,2,0))","v":""},null,{"$f":"IF(Q180=0,\"\",IF(Q177>=$R$9,\"HABIL\",\"NO HABIL\"))","v":""},null,"",{"$f":"IF(ISERROR(VLOOKUP(N180,POA!$A$2:$F$25,5,0)),\"\",VLOOKUP(N180,POA!$A$2:$F$25,5,0))","v":""},null,"",null,0,"MIPYME",null,"",null,""]
[null,"",null,null,{"$f":"IF(ISERROR(VLOOKUP(C181,#REF!,2,0)),\"\",VLOOKUP(C181,#REF!,2,0))","v":""},null,{"$f":"IF(ISERROR(VLOOKUP(C181,#REF!,4,0)),\"\",VLOOKUP(C181,#REF!,4,0))","v":""},null,0,null,null,null,{"$f":"IF(ISERROR(VLOOKUP(L181,POA!$A$2:$C$25,3,0)),\"\",VLOOKUP(L181,POA!$A$2:$C$25,3,0))","v":""},null,{"$f":"IF(ISERROR(VLOOKUP(N181,POA!$A$2:$F$25,4,0)),\"\",VLOOKUP(N181,POA!$A$2:$F$25,4,0))","v":""},{"$f":"IF(ISERROR(VLOOKUP(L181,POA!$A$2:$C$25,2,0)),\"\",VLOOKUP(L181,POA!$A$2:$C$25,2,0))","v":""},null,{"$f":"IF(L181=0,\"\",IF(Q177>=$R$9,\"HABIL\",\"NO HABIL\"))","v":""},null,"",{"$f":"IF(ISERROR(VLOOKUP(N181,POA!$A$2:$F$25,5,0)),\"\",VLOOKUP(N181,POA!$A$2:$F$25,5,0))","v":""},null,"",null,0,"MIPYME",null,"",null,""]
[null,"",null,null,{"$f":"IF(ISERROR(VLOOKUP(C182,#REF!,2,0)),\"\",VLOOKUP(C182,#REF!,2,0))","v":""},null,{"$f":"IF(ISERROR(VLOOKUP(C182,#REF!,4,0)),\"\",VLOOKUP(C182,#REF!,4,0))","v":""},null,0,null,null,null,{"$f":"IF(ISERROR(VLOOKUP(L182,POA!$A$2:$C$25,3,0)),\"\",VLOOKUP(L182,POA!$A$2:$C$25,3,0))","v":""},null,{"$f":"IF(ISERROR(VLOOKUP(N182,POA!$A$2:$F$25,4,0)),\"\",VLOOKUP(N182,POA!$A$2:$F$25,4,0))","v":""},{"$f":"IF(ISERROR(VLOOKUP(L182,POA!$A$2:$C$25,2,0)),\"\",VLOOKUP(L182,POA!$A$2:$C$25,2,0))","v":""},null,{"$f":"IF(L182=0,\"\",IF(Q177>=$R$9,\"HABIL\",\"NO HABIL\"))","v":""},null,"",{"$f":"IF(ISERROR(VLOOKUP(N182,POA!$A$2:$F$25,5,0)),\"\",VLOOKUP(N182,POA!$A$2:$F$25,5,0))","v":""},null,"",null,0,"MIPYME",null,"",null,""]
[null,"",null,null,{"$f":"IF(ISERROR(VLOOKUP(C183,#REF!,2,0)),\"\",VLOOKUP(C183,#REF!,2,0))","v":""},null,{"$f":"IF(ISERROR(VLOOKUP(C183,#REF!,4,0)),\"\",VLOOKUP(C183,#REF!,4,0))","v":""},null,0,null,null,null,{"$f":"IF(ISERROR(VLOOKUP(L183,POA!$A$2:$C$25,3,0)),\"\",VLOOKUP(L183,POA!$A$2:$C$25,3,0))","v":""},null,{"$f":"IF(ISERROR(VLOOKUP(N183,POA!$A$2:$F$25,4,0)),\"\",VLOOKUP(N183,POA!$A$2:$F$25,4,0))","v":""},{"$f":"IF(ISERROR(VLOOKUP(L183,POA!$A$2:$C$25,2,0)),\"\",VLOOKUP(L183,POA!$A$2:$C$25,2,0))","v":""},null,{"$f":"IF(L183=0,\"\",IF(Q177>=$R$9,\"HABIL\",\"NO HABIL\"))","v":""},null,"",{"$f":"IF(ISERROR(VLOOKUP(N183,POA!$A$2:$F$25,5,0)),\"\",VLOOKUP(N183,POA!$A$2:$F$25,5,0))","v":""},null,"",null,0,"MIPYME",null,"",null,""]
[null,{"$f":"IF(C184=\"\",\"\",B183+0.1)","v":""},null,null,{"$f":"IF(ISERROR(VLOOKUP(C184,#REF!,2,0)),\"\",VLOOKUP(C184,#REF!,2,0))","v":""},null,{"$f":"IF(ISERROR(VLOOKUP(C184,#REF!,4,0)),\"\",VLOOKUP(C184,#REF!,4,0))","v":""},null,{"$f":"IF(ISERROR(F184-H184),\"\",F184-H184)","v":0},null,null,null,{"$f":"IF(ISERROR(VLOOKUP(L184,POA!$A$2:$C$25,3,0)),\"\",VLOOKUP(L184,POA!$A$2:$C$25,3,0))","v":""},null,{"$f":"IF(ISERROR(VLOOKUP(N184,POA!$A$2:$F$25,4,0)),\"\",VLOOKUP(N184,POA!$A$2:$F$25,4,0))","v":""},{"$f":"IF(ISERROR(VLOOKUP(L184,POA!$A$2:$C$25,2,0)),\"\",VLOOKUP(L184,POA!$A$2:$C$25,2,0))","v":""},null,{"$f":"IF(L184=0,\"\",IF(Q177>=$R$9,\"HABIL\",\"NO HABIL\"))","v":""},null,"",{"$f":"IF(ISERROR(VLOOKUP(N184,POA!$A$2:$F$25,5,0)),\"\",VLOOKUP(N184,POA!$A$2:$F$25,5,0))","v":""},null,"",null,0,"MIPYME",null,"",null,""]
[null,{"$f":"IF(C185=\"\",\"\",B184+0.1)","v":""},null,null,{"$f":"IF(ISERROR(VLOOKUP(C185,#REF!,2,0)),\"\",VLOOKUP(C185,#REF!,2,0))","v":""},null,{"$f":"IF(ISERROR(VLOOKUP(C185,#REF!,4,0)),\"\",VLOOKUP(C185,#REF!,4,0))","v":""},null,{"$f":"IF(ISERROR(F185-H185),\"\",F185-H185)","v":0},null,null,null,{"$f":"IF(ISERROR(VLOOKUP(L185,POA!$A$2:$C$25,3,0)),\"\",VLOOKUP(L185,POA!$A$2:$C$25,3,0))","v":""},null,{"$f":"IF(ISERROR(VLOOKUP(N185,POA!$A$2:$F$25,4,0)),\"\",VLOOKUP(N185,POA!$A$2:$F$25,4,0))","v":""},{"$f":"IF(ISERROR(VLOOKUP(L185,POA!$A$2:$C$25,2,0)),\"\",VLOOKUP(L185,POA!$A$2:$C$25,2,0))","v":""},null,{"$f":"IF(L185=0,\"\",IF(Q177>=$R$9,\"HABIL\",\"NO HABIL\"))","v":""},null,"",{"$f":"IF(ISERROR(VLOOKUP(N185,POA!$A$2:$F$25,5,0)),\"\",VLOOKUP(N185,POA!$A$2:$F$25,5,0))","v":""},null,"",null,0,"MIPYME",null,"",null,""]
[null,{"$f":"IF(C186=\"\",\"\",B185+0.1)","v":""},null,null,{"$f":"IF(ISERROR(VLOOKUP(C186,#REF!,2,0)),\"\",VLOOKUP(C186,#REF!,2,0))","v":""},null,{"$f":"IF(ISERROR(VLOOKUP(C186,#REF!,4,0)),\"\",VLOOKUP(C186,#REF!,4,0))","v":""},null,{"$f":"IF(ISERROR(F186-H186),\"\",F186-H186)","v":0},null,null,null,{"$f":"IF(ISERROR(VLOOKUP(L186,POA!$A$2:$C$25,3,0)),\"\",VLOOKUP(L186,POA!$A$2:$C$25,3,0))","v":""},null,{"$f":"IF(ISERROR(VLOOKUP(N186,POA!$A$2:$F$25,4,0)),\"\",VLOOKUP(N186,POA!$A$2:$F$25,4,0))","v":""},{"$f":"IF(ISERROR(VLOOKUP(L186,POA!$A$2:$C$25,2,0)),\"\",VLOOKUP(L186,POA!$A$2:$C$25,2,0))","v":""},null,{"$f":"IF(L186=0,\"\",IF(Q177>=$R$9,\"HABIL\",\"NO HABIL\"))","v":""},null,"",{"$f":"IF(ISERROR(VLOOKUP(N186,POA!$A$2:$F$25,5,0)),\"\",VLOOKUP(N186,POA!$A$2:$F$25,5,0))","v":""},null,"",null,0,"MIPYME",null,"",null,""]
[null,{"$f":"IF(C187=\"\",\"\",B186+0.1)","v":""},null,null,{"$f":"IF(ISERROR(VLOOKUP(C187,#REF!,2,0)),\"\",VLOOKUP(C187,#REF!,2,0))","v":""},null,{"$f":"IF(ISERROR(VLOOKUP(C187,#REF!,4,0)),\"\",VLOOKUP(C187,#REF!,4,0))","v":""},null,{"$f":"IF(ISERROR(F187-H187),\"\",F187-H187)","v":0},null,null,null,{"$f":"IF(ISERROR(VLOOKUP(L187,POA!$A$2:$C$25,3,0)),\"\",VLOOKUP(L187,POA!$A$2:$C$25,3,0))","v":""},null,{"$f":"IF(ISERROR(VLOOKUP(N187,POA!$A$2:$F$25,4,0)),\"\",VLOOKUP(N187,POA!$A$2:$F$25,4,0))","v":""},{"$f":"IF(ISERROR(VLOOKUP(L187,POA!$A$2:$C$25,2,0)),\"\",VLOOKUP(L187,POA!$A$2:$C$25,2,0))","v":""},null,{"$f":"IF(L187=0,\"\",IF(Q177>=$R$9,\"HABIL\",\"NO HABIL\"))","v":""},null,"",{"$f":"IF(ISERROR(VLOOKUP(N187,POA!$A$2:$F$25,5,0)),\"\",VLOOKUP(N187,POA!$A$2:$F$25,5,0))","v":""},null,"",null,{"$f":"IF(ISERROR(F187/$Z$9),\"\",F187/$Z$9)","v":0},"MIPYME",null,"",null,""]
[null,17,"CONSORCIO LA CALERA CUNDINAMARCA",{"$f":"IF(SUM(D189:D198)=0,\"\",SUM(D189:D198))","v":1},{"$f":"SUM(E189:E198)","v":7733546759},{"$f":"SUM(F189:F198)","v":15056086091},{"$f":"SUM(G189:G198)","v":662438548},{"$f":"SUM(H189:H198)","v":6125999246},{"$f":"+F188-H188","v":8930086845},{"$f":"SUM(J189:J198)","v":1406901344},{"$f":"SUM(K189:K198)","v":255551190},1,{"$f":"IF(ISERROR(VLOOKUP(L188,POA!$A$2:$C$25,3,0)),\"\",VLOOKUP(L188,POA!$A$2:$C$25,3,0))","v":3}," ",{"$f":"+SUM(O189:O198)","v":0},{"$f":"IF(ISERROR(VLOOKUP(L188,POA!$A$2:$C$25,2,0)),\"\",VLOOKUP(L188,POA!$A$2:$C$25,2,0))","v":4167150295},{"$f":"SUM(E188/G188)","v":11.674361014087603},{"$f":"IF(Q188=0,\"\",IF(Q188>=$R$9,\"HABIL\",\"NO HABIL\"))","v":"HABIL"},{"$f":"SUM(H188/F188)","v":0.4068786010503691},{"$f":"IF(S188=0,\"\",IF(S188<=$T$9,\"HABIL\",\"NO HABIL\"))","v":"HABIL"},{"$f":"+SUM(U189:U198)","v":0},{"$f":"SUM(J188/K188)","v":5.505360174609244},{"$f":"IF(V188=0,\"\",IF(V188>=$W$9,\"HABIL\",\"NO HABIL\"))","v":"HABIL"},{"$f":"IF(R188=0,\"\",IF(R188=\"NO HABIL\",\"NO HABIL\",IF(T188=\"NO HABIL\",\"NO HABIL\",IF(W188=\"NO HABIL\",\"NO HABIL\",IF(W188=\"NO HABIL\",\"NO HABIL\",\"HABIL\")))))","v":"HABIL"},null,null,{"$f":"SUM(J188/I188)","v":0.15754621073900654},{"$f":"IF(AA188=0,\"\",IF(AA188>=$AB$9,\"HABIL\",\"NO HABIL\"))","v":"HABIL"},{"$f":"SUM(J188/F188)","v":9.3444028912732915E-2},{"$f":"IF(AC188=0,\"\",IF(AC188>=$AD$9,\"HABIL\",\"NO HABIL\"))","v":"HABIL"},{"$f":"IF(AB188=0,\"\",IF(AB188=\"NO HABIL\",\"NO HABIL\",IF(AD188=\"NO HABIL\",\"NO HABIL\",IF(AD188=\"NO HABIL\",\"NO HABIL\",\"HABIL\"))))","v":"HABIL"}]
[null,{"$f":"IF(C189=\"\",\"\",B188+0.1)","v":17.100000000000001},"JUAN SILVA RODRIGUEZ",0.5,3946319652,7245031905,209147914,2418482838,{"$f":"IF(ISERROR(F189-H189),\"\",F189-H189)","v":4826549067},658416814,108990375,null,{"$f":"IF(ISERROR(VLOOKUP(L189,POA!$A$2:$C$25,3,0)),\"\",VLOOKUP(L189,POA!$A$2:$C$25,3,0))","v":""}," ",{"$f":"IF(ISERROR(VLOOKUP(N189,POA!$A$2:$F$25,4,0)),\"\",VLOOKUP(N189,POA!$A$2:$F$25,4,0))","v":""},{"$f":"IF(ISERROR(VLOOKUP(L189,POA!$A$2:$C$25,2,0)),\"\",VLOOKUP(L189,POA!$A$2:$C$25,2,0))","v":""},null,{"$f":"IF(Q189=0,\"\",IF(Q188>=$R$9,\"HABIL\",\"NO HABIL\"))","v":""},null,{"$f":"IF(S189=0,\"\",IF(S189<=$T$9,\"HABIL\",\"NO HABIL\"))","v":""},{"$f":"IF(ISERROR(VLOOKUP(N189,POA!$A$2:$F$25,5,0)),\"\",VLOOKUP(N189,POA!$A$2:$F$25,5,0))","v":""},null,{"$f":"IF(V189=0,\"\",IF(V189>=$W$9,\"HABIL\",\"NO HABIL\"))","v":""},null,{"$f":"IF(ISERROR(F189/$Z$9),\"\",F189/$Z$9)","v":12784.598385389094},{"$f":"+IF(Y189<$Z$10,\"MIPYME\",\"NO CUMPLE\")","v":"MIPYME"},null,{"$f":"IF(AA189=0,\"\",IF(AA189>=$AB$9,\"HABIL\",\"NO HABIL\"))","v":""},null,{"$f":"IF(AC189=0,\"\",IF(AC189>=$AD$9,\"HABIL\",\"NO HABIL\"))","v":""}]
[null,17.200000000000003,"FERNANDO JIMENEZ ROA",0.5,3787227107,7811054186,453290634,3707516408,4103537778,748484530,146560815,null,{"$f":"IF(ISERROR(VLOOKUP(L190,POA!$A$2:$C$25,3,0)),\"\",VLOOKUP(L190,POA!$A$2:$C$25,3,0))","v":""}," ",{"$f":"IF(ISERROR(VLOOKUP(N190,POA!$A$2:$F$25,4,0)),\"\",VLOOKUP(N190,POA!$A$2:$F$25,4,0))","v":""},{"$f":"IF(ISERROR(VLOOKUP(L190,POA!$A$2:$C$25,2,0)),\"\",VLOOKUP(L190,POA!$A$2:$C$25,2,0))","v":""},null,{"$f":"IF(Q190=0,\"\",IF(Q188>=$R$9,\"HABIL\",\"NO HABIL\"))","v":""},null,"",{"$f":"IF(ISERROR(VLOOKUP(N190,POA!$A$2:$F$25,5,0)),\"\",VLOOKUP(N190,POA!$A$2:$F$25,5,0))","v":""},null,"",null,{"$f":"IF(ISERROR(F190/$Z$9),\"\",F190/$Z$9)","v":13783.402481030527},{"$f":"+IF(Y190<$Z$10,\"MIPYME\",\"NO CUMPLE\")","v":"MIPYME"},null,"",null,""]
[null,"",null,null,null,null,null,null,{"$f":"IF(ISERROR(F191-H191),\"\",F191-H191)","v":0},null,null,null,{"$f":"IF(ISERROR(VLOOKUP(L191,POA!$A$2:$C$25,3,0)),\"\",VLOOKUP(L191,POA!$A$2:$C$25,3,0))","v":""},null,{"$f":"IF(ISERROR(VLOOKUP(N191,POA!$A$2:$F$25,4,0)),\"\",VLOOKUP(N191,POA!$A$2:$F$25,4,0))","v":""},{"$f":"IF(ISERROR(VLOOKUP(L191,POA!$A$2:$C$25,2,0)),\"\",VLOOKUP(L191,POA!$A$2:$C$25,2,0))","v":""},null,{"$f":"IF(Q191=0,\"\",IF(Q188>=$R$9,\"HABIL\",\"NO HABIL\"))","v":""},null,"",{"$f":"IF(ISERROR(VLOOKUP(N191,POA!$A$2:$F$25,5,0)),\"\",VLOOKUP(N191,POA!$A$2:$F$25,5,0))","v":""},null,"",null,0,"MIPYME",null,"",null,""]
[null,"",null,null,{"$f":"IF(ISERROR(VLOOKUP(C192,#REF!,2,0)),\"\",VLOOKUP(C192,#REF!,2,0))","v":""},null,{"$f":"IF(ISERROR(VLOOKUP(C192,#REF!,4,0)),\"\",VLOOKUP(C192,#REF!,4,0))","v":""},null,0,null,null,null,{"$f":"IF(ISERROR(VLOOKUP(L192,POA!$A$2:$C$25,3,0)),\"\",VLOOKUP(L192,POA!$A$2:$C$25,3,0))","v":""},null,{"$f":"IF(ISERROR(VLOOKUP(N192,POA!$A$2:$F$25,4,0)),\"\",VLOOKUP(N192,POA!$A$2:$F$25,4,0))","v":""},{"$f":"IF(ISERROR(VLOOKUP(L192,POA!$A$2:$C$25,2,0)),\"\",VLOOKUP(L192,POA!$A$2:$C$25,2,0))","v":""},null,{"$f":"IF(L192=0,\"\",IF(Q188>=$R$9,\"HABIL\",\"NO HABIL\"))","v":""},null,"",{"$f":"IF(ISERROR(VLOOKUP(N192,POA!$A$2:$F$25,5,0)),\"\",VLOOKUP(N192,POA!$A$2:$F$25,5,0))","v":""},null,"",null,0,"MIPYME",null,"",null,""]
[null,"",null,null,{"$f":"IF(ISERROR(VLOOKUP(C193,#REF!,2,0)),\"\",VLOOKUP(C193,#REF!,2,0))","v":""},null,{"$f":"IF(ISERROR(VLOOKUP(C193,#REF!,4,0)),\"\",VLOOKUP(C193,#REF!,4,0))","v":""},null,0,null,null,null,{"$f":"IF(ISERROR(VLOOKUP(L193,POA!$A$2:$C$25,3,0)),\"\",VLOOKUP(L193,POA!$A$2:$C$25,3,0))","v":""},null,{"$f":"IF(ISERROR(VLOOKUP(N193,POA!$A$2:$F$25,4,0)),\"\",VLOOKUP(N193,POA!$A$2:$F$25,4,0))","v":""},{"$f":"IF(ISERROR(VLOOKUP(L193,POA!$A$2:$C$25,2,0)),\"\",VLOOKUP(L193,POA!$A$2:$C$25,2,0))","v":""},null,{"$f":"IF(L193=0,\"\",IF(Q188>=$R$9,\"HABIL\",\"NO HABIL\"))","v":""},null,"",{"$f":"IF(ISERROR(VLOOKUP(N193,POA!$A$2:$F$25,5,0)),\"\",VLOOKUP(N193,POA!$A$2:$F$25,5,0))","v":""},null,"",null,0,"MIPYME",null,"",null,""]
[null,"",null,null,{"$f":"IF(ISERROR(VLOOKUP(C194,#REF!,2,0)),\"\",VLOOKUP(C194,#REF!,2,0))","v":""},null,{"$f":"IF(ISERROR(VLOOKUP(C194,#REF!,4,0)),\"\",VLOOKUP(C194,#REF!,4,0))","v":""},null,0,null,null,null,{"$f":"IF(ISERROR(VLOOKUP(L194,POA!$A$2:$C$25,3,0)),\"\",VLOOKUP(L194,POA!$A$2:$C$25,3,0))","v":""},null,{"$f":"IF(ISERROR(VLOOKUP(N194,POA!$A$2:$F$25,4,0)),\"\",VLOOKUP(N194,POA!$A$2:$F$25,4,0))","v":""},{"$f":"IF(ISERROR(VLOOKUP(L194,POA!$A$2:$C$25,2,0)),\"\",VLOOKUP(L194,POA!$A$2:$C$25,2,0))","v":""},null,{"$f":"IF(L194=0,\"\",IF(Q188>=$R$9,\"HABIL\",\"NO HABIL\"))","v":""},null,"",{"$f":"IF(ISERROR(VLOOKUP(N194,POA!$A$2:$F$25,5,0)),\"\",VLOOKUP(N194,POA!$A$2:$F$25,5,0))","v":""},null,"",null,0,"MIPYME",null,"",null,""]
[null,{"$f":"IF(C195=\"\",\"\",B194+0.1)","v":""},null,null,{"$f":"IF(ISERROR(VLOOKUP(C195,#REF!,2,0)),\"\",VLOOKUP(C195,#REF!,2,0))","v":""},null,{"$f":"IF(ISERROR(VLOOKUP(C195,#REF!,4,0)),\"\",VLOOKUP(C195,#REF!,4,0))","v":""},null,{"$f":"IF(ISERROR(F195-H195),\"\",F195-H195)","v":0},null,null,null,{"$f":"IF(ISERROR(VLOOKUP(L195,POA!$A$2:$C$25,3,0)),\"\",VLOOKUP(L195,POA!$A$2:$C$25,3,0))","v":""},null,{"$f":"IF(ISERROR(VLOOKUP(N195,POA!$A$2:$F$25,4,0)),\"\",VLOOKUP(N195,POA!$A$2:$F$25,4,0))","v":""},{"$f":"IF(ISERROR(VLOOKUP(L195,POA!$A$2:$C$25,2,0)),\"\",VLOOKUP(L195,POA!$A$2:$C$25,2,0))","v":""},null,{"$f":"IF(L195=0,\"\",IF(Q188>=$R$9,\"HABIL\",\"NO HABIL\"))","v":""},null,"",{"$f":"IF(ISERROR(VLOOKUP(N195,POA!$A$2:$F$25,5,0)),\"\",VLOOKUP(N195,POA!$A$2:$F$25,5,0))","v":""},null,"",null,0,"MIPYME",null,"",null,""]
[null,{"$f":"IF(C196=\"\",\"\",B195+0.1)","v":""},null,null,{"$f":"IF(ISERROR(VLOOKUP(C196,#REF!,2,0)),\"\",VLOOKUP(C196,#REF!,2,0))","v":""},null,{"$f":"IF(ISERROR(VLOOKUP(C196,#REF!,4,0)),\"\",VLOOKUP(C196,#REF!,4,0))","v":""},null,{"$f":"IF(ISERROR(F196-H196),\"\",F196-H196)","v":0},null,null,null,{"$f":"IF(ISERROR(VLOOKUP(L196,POA!$A$2:$C$25,3,0)),\"\",VLOOKUP(L196,POA!$A$2:$C$25,3,0))","v":""},null,{"$f":"IF(ISERROR(VLOOKUP(N196,POA!$A$2:$F$25,4,0)),\"\",VLOOKUP(N196,POA!$A$2:$F$25,4,0))","v":""},{"$f":"IF(ISERROR(VLOOKUP(L196,POA!$A$2:$C$25,2,0)),\"\",VLOOKUP(L196,POA!$A$2:$C$25,2,0))","v":""},null,{"$f":"IF(L196=0,\"\",IF(Q188>=$R$9,\"HABIL\",\"NO HABIL\"))","v":""},null,"",{"$f":"IF(ISERROR(VLOOKUP(N196,POA!$A$2:$F$25,5,0)),\"\",VLOOKUP(N196,POA!$A$2:$F$25,5,0))","v":""},null,"",null,0,"MIPYME",null,"",null,""]
[null,{"$f":"IF(C197=\"\",\"\",B196+0.1)","v":""},null,null,{"$f":"IF(ISERROR(VLOOKUP(C197,#REF!,2,0)),\"\",VLOOKUP(C197,#REF!,2,0))","v":""},null,{"$f":"IF(ISERROR(VLOOKUP(C197,#REF!,4,0)),\"\",VLOOKUP(C197,#REF!,4,0))","v":""},null,{"$f":"IF(ISERROR(F197-H197),\"\",F197-H197)","v":0},null,null,null,{"$f":"IF(ISERROR(VLOOKUP(L197,POA!$A$2:$C$25,3,0)),\"\",VLOOKUP(L197,POA!$A$2:$C$25,3,0))","v":""},null,{"$f":"IF(ISERROR(VLOOKUP(N197,POA!$A$2:$F$25,4,0)),\"\",VLOOKUP(N197,POA!$A$2:$F$25,4,0))","v":""},{"$f":"IF(ISERROR(VLOOKUP(L197,POA!$A$2:$C$25,2,0)),\"\",VLOOKUP(L197,POA!$A$2:$C$25,2,0))","v":""},null,{"$f":"IF(L197=0,\"\",IF(Q188>=$R$9,\"HABIL\",\"NO HABIL\"))","v":""},null,"",{"$f":"IF(ISERROR(VLOOKUP(N197,POA!$A$2:$F$25,5,0)),\"\",VLOOKUP(N197,POA!$A$2:$F$25,5,0))","v":""},null,"",null,0,"MIPYME",null,"",null,""]
[null,{"$f":"IF(C198=\"\",\"\",B197+0.1)","v":""},null,null,{"$f":"IF(ISERROR(VLOOKUP(C198,#REF!,2,0)),\"\",VLOOKUP(C198,#REF!,2,0))","v":""},null,{"$f":"IF(ISERROR(VLOOKUP(C198,#REF!,4,0)),\"\",VLOOKUP(C198,#REF!,4,0))","v":""},null,{"$f":"IF(ISERROR(F198-H198),\"\",F198-H198)","v":0},null,null,null,{"$f":"IF(ISERROR(VLOOKUP(L198,POA!$A$2:$C$25,3,0)),\"\",VLOOKUP(L198,POA!$A$2:$C$25,3,0))","v":""},null,{"$f":"IF(ISERROR(VLOOKUP(N198,POA!$A$2:$F$25,4,0)),\"\",VLOOKUP(N198,POA!$A$2:$F$25,4,0))","v":""},{"$f":"IF(ISERROR(VLOOKUP(L198,POA!$A$2:$C$25,2,0)),\"\",VLOOKUP(L198,POA!$A$2:$C$25,2,0))","v":""},null,{"$f":"IF(L198=0,\"\",IF(Q188>=$R$9,\"HABIL\",\"NO HABIL\"))","v":""},null,"",{"$f":"IF(ISERROR(VLOOKUP(N198,POA!$A$2:$F$25,5,0)),\"\",VLOOKUP(N198,POA!$A$2:$F$25,5,0))","v":""},null,"",null,{"$f":"IF(ISERROR(F198/$Z$9),\"\",F198/$Z$9)","v":0},"MIPYME",null,"",null,""]
[null,18,"CONSORCIO VIAS HN",{"$f":"IF(SUM(D200:D209)=0,\"\",SUM(D200:D209))","v":1},{"$f":"SUM(E200:E209)","v":3057443404},{"$f":"SUM(F200:F209)","v":3871581393},{"$f":"SUM(G200:G209)","v":171481447},{"$f":"SUM(H200:H209)","v":1005557786},{"$f":"+F199-H199","v":2866023607},{"$f":"SUM(J200:J209)","v":962920323},{"$f":"SUM(K200:K209)","v":104446419},1,{"$f":"IF(ISERROR(VLOOKUP(L199,POA!$A$2:$C$25,3,0)),\"\",VLOOKUP(L199,POA!$A$2:$C$25,3,0))","v":3}," ",{"$f":"+SUM(O200:O209)","v":0},{"$f":"IF(ISERROR(VLOOKUP(L199,POA!$A$2:$C$25,2,0)),\"\",VLOOKUP(L199,POA!$A$2:$C$25,2,0))","v":4167150295},{"$f":"SUM(E199/G199)","v":17.829587150614607},{"$f":"IF(Q199=0,\"\",IF(Q199>=$R$9,\"HABIL\",\"NO HABIL\"))","v":"HABIL"},{"$f":"SUM(H199/F199)","v":0.25972792095191266},{"$f":"IF(S199=0,\"\",IF(S199<=$T$9,\"HABIL\",\"NO HABIL\"))","v":"HABIL"},{"$f":"+SUM(U200:U209)","v":0},{"$f":"SUM(J199/K199)","v":9.2192756077161437},{"$f":"IF(V199=0,\"\",IF(V199>=$W$9,\"HABIL\",\"NO HABIL\"))","v":"HABIL"},{"$f":"IF(R199=0,\"\",IF(R199=\"NO HABIL\",\"NO HABIL\",IF(T199=\"NO HABIL\",\"NO HABIL\",IF(W199=\"NO HABIL\",\"NO HABIL\",IF(W199=\"NO HABIL\",\"NO HABIL\",\"HABIL\")))))","v":"HABIL"},null,null,{"$f":"SUM(J199/I199)","v":0.33597780585203674},{"$f":"IF(AA199=0,\"\",IF(AA199>=$AB$9,\"HABIL\",\"NO HABIL\"))","v":"HABIL"},{"$f":"SUM(J199/F199)","v":0.24871498885210186},{"$f":"IF(AC199=0,\"\",IF(AC199>=$AD$9,\"HABIL\",\"NO HABIL\"))","v":"HABIL"},{"$f":"IF(AB199=0,\"\",IF(AB199=\"NO HABIL\",\"NO HABIL\",IF(AD199=\"NO HABIL\",\"NO HABIL\",IF(AD199=\"NO HABIL\",\"NO HABIL\",\"HABIL\"))))","v":"HABIL"}]
[null,{"$f":"IF(C200=\"\",\"\",B199+0.1)","v":18.100000000000001},"LUIS FERNANDO HOYOS PEREZ",0.6,{"$f":"IF(ISERROR(VLOOKUP(C200,[1]TD!$4:$65536,2,0)),\"\",VLOOKUP(C200,[1]TD!$4:$65536,2,0))","v":2255677333},{"$f":"IF(ISERROR(VLOOKUP(C200,[1]TD!$4:$65536,3,0)),\"\",VLOOKUP(C200,[1]TD!$4:$65536,3,0))","v":2447443322},{"$f":"IF(ISERROR(VLOOKUP(C200,[1]TD!$4:$65536,4,0)),\"\",VLOOKUP(C200,[1]TD!$4:$65536,4,0))","v":139077085},{"$f":"IF(ISERROR(VLOOKUP(C200,[1]TD!$4:$65536,5,0)),\"\",VLOOKUP(C200,[1]TD!$4:$65536,5,0))","v":627632642},{"$f":"IF(ISERROR(F200-H200),\"\",F200-H200)","v":1819810680},{"$f":"IF(ISERROR(VLOOKUP(C200,[1]TD!$4:$65536,6,0)),\"\",VLOOKUP(C200,[1]TD!$4:$65536,6,0))","v":659966876},{"$f":"IF(ISERROR(VLOOKUP(C200,[1]TD!$4:$65536,7,0)),\"\",VLOOKUP(C200,[1]TD!$4:$65536,7,0))","v":94569876},null,{"$f":"IF(ISERROR(VLOOKUP(L200,POA!$A$2:$C$25,3,0)),\"\",VLOOKUP(L200,POA!$A$2:$C$25,3,0))","v":""}," ",{"$f":"IF(ISERROR(VLOOKUP(N200,POA!$A$2:$F$25,4,0)),\"\",VLOOKUP(N200,POA!$A$2:$F$25,4,0))","v":""},{"$f":"IF(ISERROR(VLOOKUP(L200,POA!$A$2:$C$25,2,0)),\"\",VLOOKUP(L200,POA!$A$2:$C$25,2,0))","v":""},null,{"$f":"IF(Q200=0,\"\",IF(Q199>=$R$9,\"HABIL\",\"NO HABIL\"))","v":""},null,{"$f":"IF(S200=0,\"\",IF(S200<=$T$9,\"HABIL\",\"NO HABIL\"))","v":""},{"$f":"IF(ISERROR(VLOOKUP(N200,POA!$A$2:$F$25,5,0)),\"\",VLOOKUP(N200,POA!$A$2:$F$25,5,0))","v":""},null,{"$f":"IF(V200=0,\"\",IF(V200>=$W$9,\"HABIL\",\"NO HABIL\"))","v":""},null,{"$f":"IF(ISERROR(F200/$Z$9),\"\",F200/$Z$9)","v":4318.7635821422273},{"$f":"+IF(Y200<$Z$10,\"MIPYME\",\"NO CUMPLE\")","v":"MIPYME"},null,{"$f":"IF(AA200=0,\"\",IF(AA200>=$AB$9,\"HABIL\",\"NO HABIL\"))","v":""},null,{"$f":"IF(AC200=0,\"\",IF(AC200>=$AD$9,\"HABIL\",\"NO HABIL\"))","v":""}]
[null,18.200000000000003,"VICTOR RAUL NEIRA DELBASTO",0.4,{"$f":"IF(ISERROR(VLOOKUP(C201,[1]TD!$4:$65536,2,0)),\"\",VLOOKUP(C201,[1]TD!$4:$65536,2,0))","v":801766071},{"$f":"IF(ISERROR(VLOOKUP(C201,[1]TD!$4:$65536,3,0)),\"\",VLOOKUP(C201,[1]TD!$4:$65536,3,0))","v":1424138071},{"$f":"IF(ISERROR(VLOOKUP(C201,[1]TD!$4:$65536,4,0)),\"\",VLOOKUP(C201,[1]TD!$4:$65536,4,0))","v":32404362},{"$f":"IF(ISERROR(VLOOKUP(C201,[1]TD!$4:$65536,5,0)),\"\",VLOOKUP(C201,[1]TD!$4:$65536,5,0))","v":377925144},1046212927,{"$f":"IF(ISERROR(VLOOKUP(C201,[1]TD!$4:$65536,6,0)),\"\",VLOOKUP(C201,[1]TD!$4:$65536,6,0))","v":302953447},{"$f":"IF(ISERROR(VLOOKUP(C201,[1]TD!$4:$65536,7,0)),\"\",VLOOKUP(C201,[1]TD!$4:$65536,7,0))","v":9876543},null,{"$f":"IF(ISERROR(VLOOKUP(L201,POA!$A$2:$C$25,3,0)),\"\",VLOOKUP(L201,POA!$A$2:$C$25,3,0))","v":""}," ",{"$f":"IF(ISERROR(VLOOKUP(N201,POA!$A$2:$F$25,4,0)),\"\",VLOOKUP(N201,POA!$A$2:$F$25,4,0))","v":""},{"$f":"IF(ISERROR(VLOOKUP(L201,POA!$A$2:$C$25,2,0)),\"\",VLOOKUP(L201,POA!$A$2:$C$25,2,0))","v":""},null,{"$f":"IF(Q201=0,\"\",IF(Q199>=$R$9,\"HABIL\",\"NO HABIL\"))","v":""},null,"",{"$f":"IF(ISERROR(VLOOKUP(N201,POA!$A$2:$F$25,5,0)),\"\",VLOOKUP(N201,POA!$A$2:$F$25,5,0))","v":""},null,"",null,{"$f":"IF(ISERROR(F201/$Z$9),\"\",F201/$Z$9)","v":2513.0370054702666},{"$f":"+IF(Y201<$Z$10,\"MIPYME\",\"NO CUMPLE\")","v":"MIPYME"},null,"",null,""]
[null,"",null,null,null,null,null,null,{"$f":"IF(ISERROR(F202-H202),\"\",F202-H202)","v":0},null,null,null,{"$f":"IF(ISERROR(VLOOKUP(L202,POA!$A$2:$C$25,3,0)),\"\",VLOOKUP(L202,POA!$A$2:$C$25,3,0))","v":""},null,{"$f":"IF(ISERROR(VLOOKUP(N202,POA!$A$2:$F$25,4,0)),\"\",VLOOKUP(N202,POA!$A$2:$F$25,4,0))","v":""},{"$f":"IF(ISERROR(VLOOKUP(L202,POA!$A$2:$C$25,2,0)),\"\",VLOOKUP(L202,POA!$A$2:$C$25,2,0))","v":""},null,{"$f":"IF(Q202=0,\"\",IF(Q199>=$R$9,\"HABIL\",\"NO HABIL\"))","v":""},null,"",{"$f":"IF(ISERROR(VLOOKUP(N202,POA!$A$2:$F$25,5,0)),\"\",VLOOKUP(N202,POA!$A$2:$F$25,5,0))","v":""},null,"",null,0,"MIPYME",null,"",null,""]
[null,"",null,null,{"$f":"IF(ISERROR(VLOOKUP(C203,#REF!,2,0)),\"\",VLOOKUP(C203,#REF!,2,0))","v":""},null,{"$f":"IF(ISERROR(VLOOKUP(C203,#REF!,4,0)),\"\",VLOOKUP(C203,#REF!,4,0))","v":""},null,0,null,null,null,{"$f":"IF(ISERROR(VLOOKUP(L203,POA!$A$2:$C$25,3,0)),\"\",VLOOKUP(L203,POA!$A$2:$C$25,3,0))","v":""},null,{"$f":"IF(ISERROR(VLOOKUP(N203,POA!$A$2:$F$25,4,0)),\"\",VLOOKUP(N203,POA!$A$2:$F$25,4,0))","v":""},{"$f":"IF(ISERROR(VLOOKUP(L203,POA!$A$2:$C$25,2,0)),\"\",VLOOKUP(L203,POA!$A$2:$C$25,2,0))","v":""},null,{"$f":"IF(L203=0,\"\",IF(Q199>=$R$9,\"HABIL\",\"NO HABIL\"))","v":""},null,"",{"$f":"IF(ISERROR(VLOOKUP(N203,POA!$A$2:$F$25,5,0)),\"\",VLOOKUP(N203,POA!$A$2:$F$25,5,0))","v":""},null,"",null,0,"MIPYME",null,"",null,""]
[null,"",null,null,{"$f":"IF(ISERROR(VLOOKUP(C204,#REF!,2,0)),\"\",VLOOKUP(C204,#REF!,2,0))","v":""},null,{"$f":"IF(ISERROR(VLOOKUP(C204,#REF!,4,0)),\"\",VLOOKUP(C204,#REF!,4,0))","v":""},null,0,null,null,null,{"$f":"IF(ISERROR(VLOOKUP(L204,POA!$A$2:$C$25,3,0)),\"\",VLOOKUP(L204,POA!$A$2:$C$25,3,0))","v":""},null,{"$f":"IF(ISERROR(VLOOKUP(N204,POA!$A$2:$F$25,4,0)),\"\",VLOOKUP(N204,POA!$A$2:$F$25,4,0))","v":""},{"$f":"IF(ISERROR(VLOOKUP(L204,POA!$A$2:$C$25,2,0)),\"\",VLOOKUP(L204,POA!$A$2:$C$25,2,0))","v":""},null,{"$f":"IF(L204=0,\"\",IF(Q199>=$R$9,\"HABIL\",\"NO HABIL\"))","v":""},null,"",{"$f":"IF(ISERROR(VLOOKUP(N204,POA!$A$2:$F$25,5,0)),\"\",VLOOKUP(N204,POA!$A$2:$F$25,5,0))","v":""},null,"",null,0,"MIPYME",null,"",null,""]
[null,"",null,null,{"$f":"IF(ISERROR(VLOOKUP(C205,#REF!,2,0)),\"\",VLOOKUP(C205,#REF!,2,0))","v":""},null,{"$f":"IF(ISERROR(VLOOKUP(C205,#REF!,4,0)),\"\",VLOOKUP(C205,#REF!,4,0))","v":""},null,0,null,null,null,{"$f":"IF(ISERROR(VLOOKUP(L205,POA!$A$2:$C$25,3,0)),\"\",VLOOKUP(L205,POA!$A$2:$C$25,3,0))","v":""},null,{"$f":"IF(ISERROR(VLOOKUP(N205,POA!$A$2:$F$25,4,0)),\"\",VLOOKUP(N205,POA!$A$2:$F$25,4,0))","v":""},{"$f":"IF(ISERROR(VLOOKUP(L205,POA!$A$2:$C$25,2,0)),\"\",VLOOKUP(L205,POA!$A$2:$C$25,2,0))","v":""},null,{"$f":"IF(L205=0,\"\",IF(Q199>=$R$9,\"HABIL\",\"NO HABIL\"))","v":""},null,"",{"$f":"IF(ISERROR(VLOOKUP(N205,POA!$A$2:$F$25,5,0)),\"\",VLOOKUP(N205,POA!$A$2:$F$25,5,0))","v":""},null,"",null,0,"MIPYME",null,"",null,""]
[null,{"$f":"IF(C206=\"\",\"\",B205+0.1)","v":""},null,null,{"$f":"IF(ISERROR(VLOOKUP(C206,#REF!,2,0)),\"\",VLOOKUP(C206,#REF!,2,0))","v":""},null,{"$f":"IF(ISERROR(VLOOKUP(C206,#REF!,4,0)),\"\",VLOOKUP(C206,#REF!,4,0))","v":""},null,{"$f":"IF(ISERROR(F206-H206),\"\",F206-H206)","v":0},null,null,null,{"$f":"IF(ISERROR(VLOOKUP(L206,POA!$A$2:$C$25,3,0)),\"\",VLOOKUP(L206,POA!$A$2:$C$25,3,0))","v":""},null,{"$f":"IF(ISERROR(VLOOKUP(N206,POA!$A$2:$F$25,4,0)),\"\",VLOOKUP(N206,POA!$A$2:$F$25,4,0))","v":""},{"$f":"IF(ISERROR(VLOOKUP(L206,POA!$A$2:$C$25,2,0)),\"\",VLOOKUP(L206,POA!$A$2:$C$25,2,0))","v":""},null,{"$f":"IF(L206=0,\"\",IF(Q199>=$R$9,\"HABIL\",\"NO HABIL\"))","v":""},null,"",{"$f":"IF(ISERROR(VLOOKUP(N206,POA!$A$2:$F$25,5,0)),\"\",VLOOKUP(N206,POA!$A$2:$F$25,5,0))","v":""},null,"",null,0,"MIPYME",null,"",null,""]
[null,{"$f":"IF(C207=\"\",\"\",B206+0.1)","v":""},null,null,{"$f":"IF(ISERROR(VLOOKUP(C207,#REF!,2,0)),\"\",VLOOKUP(C207,#REF!,2,0))","v":""},null,{"$f":"IF(ISERROR(VLOOKUP(C207,#REF!,4,0)),\"\",VLOOKUP(C207,#REF!,4,0))","v":""},null,{"$f":"IF(ISERROR(F207-H207),\"\",F207-H207)","v":0},null,null,null,{"$f":"IF(ISERROR(VLOOKUP(L207,POA!$A$2:$C$25,3,0)),\"\",VLOOKUP(L207,POA!$A$2:$C$25,3,0))","v":""},null,{"$f":"IF(ISERROR(VLOOKUP(N207,POA!$A$2:$F$25,4,0)),\"\",VLOOKUP(N207,POA!$A$2:$F$25,4,0))","v":""},{"$f":"IF(ISERROR(VLOOKUP(L207,POA!$A$2:$C$25,2,0)),\"\",VLOOKUP(L207,POA!$A$2:$C$25,2,0))","v":""},null,{"$f":"IF(L207=0,\"\",IF(Q199>=$R$9,\"HABIL\",\"NO HABIL\"))","v":""},null,"",{"$f":"IF(ISERROR(VLOOKUP(N207,POA!$A$2:$F$25,5,0)),\"\",VLOOKUP(N207,POA!$A$2:$F$25,5,0))","v":""},null,"",null,0,"MIPYME",null,"",null,""]
[null,{"$f":"IF(C208=\"\",\"\",B207+0.1)","v":""},null,null,{"$f":"IF(ISERROR(VLOOKUP(C208,#REF!,2,0)),\"\",VLOOKUP(C208,#REF!,2,0))","v":""},null,{"$f":"IF(ISERROR(VLOOKUP(C208,#REF!,4,0)),\"\",VLOOKUP(C208,#REF!,4,0))","v":""},null,{"$f":"IF(ISERROR(F208-H208),\"\",F208-H208)","v":0},null,null,null,{"$f":"IF(ISERROR(VLOOKUP(L208,POA!$A$2:$C$25,3,0)),\"\",VLOOKUP(L208,POA!$A$2:$C$25,3,0))","v":""},null,{"$f":"IF(ISERROR(VLOOKUP(N208,POA!$A$2:$F$25,4,0)),\"\",VLOOKUP(N208,POA!$A$2:$F$25,4,0))","v":""},{"$f":"IF(ISERROR(VLOOKUP(L208,POA!$A$2:$C$25,2,0)),\"\",VLOOKUP(L208,POA!$A$2:$C$25,2,0))","v":""},null,{"$f":"IF(L208=0,\"\",IF(Q199>=$R$9,\"HABIL\",\"NO HABIL\"))","v":""},null,"",{"$f":"IF(ISERROR(VLOOKUP(N208,POA!$A$2:$F$25,5,0)),\"\",VLOOKUP(N208,POA!$A$2:$F$25,5,0))","v":""},null,"",null,0,"MIPYME",null,"",null,""]
[null,{"$f":"IF(C209=\"\",\"\",B208+0.1)","v":""},null,null,{"$f":"IF(ISERROR(VLOOKUP(C209,#REF!,2,0)),\"\",VLOOKUP(C209,#REF!,2,0))","v":""},null,{"$f":"IF(ISERROR(VLOOKUP(C209,#REF!,4,0)),\"\",VLOOKUP(C209,#REF!,4,0))","v":""},null,{"$f":"IF(ISERROR(F209-H209),\"\",F209-H209)","v":0},null,null,null,{"$f":"IF(ISERROR(VLOOKUP(L209,POA!$A$2:$C$25,3,0)),\"\",VLOOKUP(L209,POA!$A$2:$C$25,3,0))","v":""},null,{"$f":"IF(ISERROR(VLOOKUP(N209,POA!$A$2:$F$25,4,0)),\"\",VLOOKUP(N209,POA!$A$2:$F$25,4,0))","v":""},{"$f":"IF(ISERROR(VLOOKUP(L209,POA!$A$2:$C$25,2,0)),\"\",VLOOKUP(L209,POA!$A$2:$C$25,2,0))","v":""},null,{"$f":"IF(L209=0,\"\",IF(Q199>=$R$9,\"HABIL\",\"NO HABIL\"))","v":""},null,"",{"$f":"IF(ISERROR(VLOOKUP(N209,POA!$A$2:$F$25,5,0)),\"\",VLOOKUP(N209,POA!$A$2:$F$25,5,0))","v":""},null,"",null,{"$f":"IF(ISERROR(F209/$Z$9),\"\",F209/$Z$9)","v":0},"MIPYME",null,"",null,""]
[null,19,"EXPLANAN S.A.",{"$f":"IF(SUM(D211:D220)=0,\"\",SUM(D211:D220))","v":1},{"$f":"SUM(E211:E220)","v":21479698000},{"$f":"SUM(F211:F220)","v":30219613000},{"$f":"SUM(G211:G220)","v":9926421000},{"$f":"SUM(H211:H220)","v":11554963000},{"$f":"+F210-H210","v":18664650000},{"$f":"SUM(J211:J220)","v":3388397000},{"$f":"SUM(K211:K220)","v":350015000},1,{"$f":"IF(ISERROR(VLOOKUP(L210,POA!$A$2:$C$25,3,0)),\"\",VLOOKUP(L210,POA!$A$2:$C$25,3,0))","v":3}," ",{"$f":"+SUM(O211:O220)","v":0},{"$f":"IF(ISERROR(VLOOKUP(L210,POA!$A$2:$C$25,2,0)),\"\",VLOOKUP(L210,POA!$A$2:$C$25,2,0))","v":4167150295},{"$f":"SUM(E210/G210)","v":2.1638914972475982},{"$f":"IF(Q210=0,\"\",IF(Q210>=$R$9,\"HABIL\",\"NO HABIL\"))","v":"HABIL"},{"$f":"SUM(H210/F210)","v":0.38236634598861341},{"$f":"IF(S210=0,\"\",IF(S210<=$T$9,\"HABIL\",\"NO HABIL\"))","v":"HABIL"},{"$f":"+SUM(U211:U220)","v":0},{"$f":"SUM(J210/K210)","v":9.6807193977400967},{"$f":"IF(V210=0,\"\",IF(V210>=$W$9,\"HABIL\",\"NO HABIL\"))","v":"HABIL"},{"$f":"IF(R210=0,\"\",IF(R210=\"NO HABIL\",\"NO HABIL\",IF(T210=\"NO HABIL\",\"NO HABIL\",IF(W210=\"NO HABIL\",\"NO HABIL\",IF(W210=\"NO HABIL\",\"NO HABIL\",\"HABIL\")))))","v":"HABIL"},null,null,{"$f":"SUM(J210/I210)","v":0.18154088075586738},{"$f":"IF(AA210=0,\"\",IF(AA210>=$AB$9,\"HABIL\",\"NO HABIL\"))","v":"HABIL"},{"$f":"SUM(J210/F210)","v":0.11212575753369178},{"$f":"IF(AC210=0,\"\",IF(AC210>=$AD$9,\"HABIL\",\"NO HABIL\"))","v":"HABIL"},{"$f":"IF(AB210=0,\"\",IF(AB210=\"NO HABIL\",\"NO HABIL\",IF(AD210=\"NO HABIL\",\"NO HABIL\",IF(AD210=\"NO HABIL\",\"NO HABIL\",\"HABIL\"))))","v":"HABIL"}]
[null,{"$f":"IF(C211=\"\",\"\",B210+0.1)","v":19.100000000000001},"EXPLANAN S.A.",1,21479698000,30219613000,9926421000,11554963000,{"$f":"IF(ISERROR(F211-H211),\"\",F211-H211)","v":18664650000},3388397000,350015000,null,{"$f":"IF(ISERROR(VLOOKUP(L211,POA!$A$2:$C$25,3,0)),\"\",VLOOKUP(L211,POA!$A$2:$C$25,3,0))","v":""}," ",{"$f":"IF(ISERROR(VLOOKUP(N211,POA!$A$2:$F$25,4,0)),\"\",VLOOKUP(N211,POA!$A$2:$F$25,4,0))","v":""},{"$f":"IF(ISERROR(VLOOKUP(L211,POA!$A$2:$C$25,2,0)),\"\",VLOOKUP(L211,POA!$A$2:$C$25,2,0))","v":""},null,{"$f":"IF(Q211=0,\"\",IF(Q210>=$R$9,\"HABIL\",\"NO HABIL\"))","v":""},null,{"$f":"IF(S211=0,\"\",IF(S211<=$T$9,\"HABIL\",\"NO HABIL\"))","v":""},{"$f":"IF(ISERROR(VLOOKUP(N211,POA!$A$2:$F$25,5,0)),\"\",VLOOKUP(N211,POA!$A$2:$F$25,5,0))","v":""},null,{"$f":"IF(V211=0,\"\",IF(V211>=$W$9,\"HABIL\",\"NO HABIL\"))","v":""},null,{"$f":"IF(ISERROR(F211/$Z$9),\"\",F211/$Z$9)","v":53325.592023998586},{"$f":"+IF(Y211<$Z$10,\"MIPYME\",\"NO CUMPLE\")","v":"NO CUMPLE"},null,{"$f":"IF(AA211=0,\"\",IF(AA211>=$AB$9,\"HABIL\",\"NO HABIL\"))","v":""},null,{"$f":"IF(AC211=0,\"\",IF(AC211>=$AD$9,\"HABIL\",\"NO HABIL\"))","v":""}]
[null,"",null,null,null,null,null,null,{"$f":"IF(ISERROR(F212-H212),\"\",F212-H212)","v":0},null,null,null,{"$f":"IF(ISERROR(VLOOKUP(L212,POA!$A$2:$C$25,3,0)),\"\",VLOOKUP(L212,POA!$A$2:$C$25,3,0))","v":""}," ",{"$f":"IF(ISERROR(VLOOKUP(N212,POA!$A$2:$F$25,4,0)),\"\",VLOOKUP(N212,POA!$A$2:$F$25,4,0))","v":""},{"$f":"IF(ISERROR(VLOOKUP(L212,POA!$A$2:$C$25,2,0)),\"\",VLOOKUP(L212,POA!$A$2:$C$25,2,0))","v":""},null,{"$f":"IF(Q212=0,\"\",IF(Q210>=$R$9,\"HABIL\",\"NO HABIL\"))","v":""},null,"",{"$f":"IF(ISERROR(VLOOKUP(N212,POA!$A$2:$F$25,5,0)),\"\",VLOOKUP(N212,POA!$A$2:$F$25,5,0))","v":""},null,"",null,{"$f":"IF(ISERROR(F212/$Z$9),\"\",F212/$Z$9)","v":0},{"$f":"+IF(Y212<$Z$10,\"MIPYME\",\"NO CUMPLE\")","v":"MIPYME"},null,"",null,""]
[null,"",null,null,null,null,null,null,0,null,null,null,{"$f":"IF(ISERROR(VLOOKUP(L213,POA!$A$2:$C$25,3,0)),\"\",VLOOKUP(L213,POA!$A$2:$C$25,3,0))","v":""},null,{"$f":"IF(ISERROR(VLOOKUP(N213,POA!$A$2:$F$25,4,0)),\"\",VLOOKUP(N213,POA!$A$2:$F$25,4,0))","v":""},{"$f":"IF(ISERROR(VLOOKUP(L213,POA!$A$2:$C$25,2,0)),\"\",VLOOKUP(L213,POA!$A$2:$C$25,2,0))","v":""},null,{"$f":"IF(Q213=0,\"\",IF(Q210>=$R$9,\"HABIL\",\"NO HABIL\"))","v":""},null,"",{"$f":"IF(ISERROR(VLOOKUP(N213,POA!$A$2:$F$25,5,0)),\"\",VLOOKUP(N213,POA!$A$2:$F$25,5,0))","v":""},null,"",null,0,"MIPYME",null,"",null,""]
[null,"",null,null,{"$f":"IF(ISERROR(VLOOKUP(C214,#REF!,2,0)),\"\",VLOOKUP(C214,#REF!,2,0))","v":""},null,{"$f":"IF(ISERROR(VLOOKUP(C214,#REF!,4,0)),\"\",VLOOKUP(C214,#REF!,4,0))","v":""},null,0,null,null,null,{"$f":"IF(ISERROR(VLOOKUP(L214,POA!$A$2:$C$25,3,0)),\"\",VLOOKUP(L214,POA!$A$2:$C$25,3,0))","v":""},null,{"$f":"IF(ISERROR(VLOOKUP(N214,POA!$A$2:$F$25,4,0)),\"\",VLOOKUP(N214,POA!$A$2:$F$25,4,0))","v":""},{"$f":"IF(ISERROR(VLOOKUP(L214,POA!$A$2:$C$25,2,0)),\"\",VLOOKUP(L214,POA!$A$2:$C$25,2,0))","v":""},null,{"$f":"IF(L214=0,\"\",IF(Q210>=$R$9,\"HABIL\",\"NO HABIL\"))","v":""},null,"",{"$f":"IF(ISERROR(VLOOKUP(N214,POA!$A$2:$F$25,5,0)),\"\",VLOOKUP(N214,POA!$A$2:$F$25,5,0))","v":""},null,"",null,0,"MIPYME",null,"",null,""]
[null,"",null,null,{"$f":"IF(ISERROR(VLOOKUP(C215,#REF!,2,0)),\"\",VLOOKUP(C215,#REF!,2,0))","v":""},null,{"$f":"IF(ISERROR(VLOOKUP(C215,#REF!,4,0)),\"\",VLOOKUP(C215,#REF!,4,0))","v":""},null,0,null,null,null,{"$f":"IF(ISERROR(VLOOKUP(L215,POA!$A$2:$C$25,3,0)),\"\",VLOOKUP(L215,POA!$A$2:$C$25,3,0))","v":""},null,{"$f":"IF(ISERROR(VLOOKUP(N215,POA!$A$2:$F$25,4,0)),\"\",VLOOKUP(N215,POA!$A$2:$F$25,4,0))","v":""},{"$f":"IF(ISERROR(VLOOKUP(L215,POA!$A$2:$C$25,2,0)),\"\",VLOOKUP(L215,POA!$A$2:$C$25,2,0))","v":""},null,{"$f":"IF(L215=0,\"\",IF(Q210>=$R$9,\"HABIL\",\"NO HABIL\"))","v":""},null,"",{"$f":"IF(ISERROR(VLOOKUP(N215,POA!$A$2:$F$25,5,0)),\"\",VLOOKUP(N215,POA!$A$2:$F$25,5,0))","v":""},null,"",null,0,"MIPYME",null,"",null,""]
[null,"",null,null,{"$f":"IF(ISERROR(VLOOKUP(C216,#REF!,2,0)),\"\",VLOOKUP(C216,#REF!,2,0))","v":""},null,{"$f":"IF(ISERROR(VLOOKUP(C216,#REF!,4,0)),\"\",VLOOKUP(C216,#REF!,4,0))","v":""},null,0,null,null,null,{"$f":"IF(ISERROR(VLOOKUP(L216,POA!$A$2:$C$25,3,0)),\"\",VLOOKUP(L216,POA!$A$2:$C$25,3,0))","v":""},null,{"$f":"IF(ISERROR(VLOOKUP(N216,POA!$A$2:$F$25,4,0)),\"\",VLOOKUP(N216,POA!$A$2:$F$25,4,0))","v":""},{"$f":"IF(ISERROR(VLOOKUP(L216,POA!$A$2:$C$25,2,0)),\"\",VLOOKUP(L216,POA!$A$2:$C$25,2,0))","v":""},null,{"$f":"IF(L216=0,\"\",IF(Q210>=$R$9,\"HABIL\",\"NO HABIL\"))","v":""},null,"",{"$f":"IF(ISERROR(VLOOKUP(N216,POA!$A$2:$F$25,5,0)),\"\",VLOOKUP(N216,POA!$A$2:$F$25,5,0))","v":""},null,"",null,0,"MIPYME",null,"",null,""]
[null,{"$f":"IF(C217=\"\",\"\",B216+0.1)","v":""},null,null,{"$f":"IF(ISERROR(VLOOKUP(C217,#REF!,2,0)),\"\",VLOOKUP(C217,#REF!,2,0))","v":""},null,{"$f":"IF(ISERROR(VLOOKUP(C217,#REF!,4,0)),\"\",VLOOKUP(C217,#REF!,4,0))","v":""},null,{"$f":"IF(ISERROR(F217-H217),\"\",F217-H217)","v":0},null,null,null,{"$f":"IF(ISERROR(VLOOKUP(L217,POA!$A$2:$C$25,3,0)),\"\",VLOOKUP(L217,POA!$A$2:$C$25,3,0))","v":""},null,{"$f":"IF(ISERROR(VLOOKUP(N217,POA!$A$2:$F$25,4,0)),\"\",VLOOKUP(N217,POA!$A$2:$F$25,4,0))","v":""},{"$f":"IF(ISERROR(VLOOKUP(L217,POA!$A$2:$C$25,2,0)),\"\",VLOOKUP(L217,POA!$A$2:$C$25,2,0))","v":""},null,{"$f":"IF(L217=0,\"\",IF(Q210>=$R$9,\"HABIL\",\"NO HABIL\"))","v":""},null,"",{"$f":"IF(ISERROR(VLOOKUP(N217,POA!$A$2:$F$25,5,0)),\"\",VLOOKUP(N217,POA!$A$2:$F$25,5,0))","v":""},null,"",null,0,"MIPYME",null,"",null,""]
[null,{"$f":"IF(C218=\"\",\"\",B217+0.1)","v":""},null,null,{"$f":"IF(ISERROR(VLOOKUP(C218,#REF!,2,0)),\"\",VLOOKUP(C218,#REF!,2,0))","v":""},null,{"$f":"IF(ISERROR(VLOOKUP(C218,#REF!,4,0)),\"\",VLOOKUP(C218,#REF!,4,0))","v":""},null,{"$f":"IF(ISERROR(F218-H218),\"\",F218-H218)","v":0},null,null,null,{"$f":"IF(ISERROR(VLOOKUP(L218,POA!$A$2:$C$25,3,0)),\"\",VLOOKUP(L218,POA!$A$2:$C$25,3,0))","v":""},null,{"$f":"IF(ISERROR(VLOOKUP(N218,POA!$A$2:$F$25,4,0)),\"\",VLOOKUP(N218,POA!$A$2:$F$25,4,0))","v":""},{"$f":"IF(ISERROR(VLOOKUP(L218,POA!$A$2:$C$25,2,0)),\"\",VLOOKUP(L218,POA!$A$2:$C$25,2,0))","v":""},null,{"$f":"IF(L218=0,\"\",IF(Q210>=$R$9,\"HABIL\",\"NO HABIL\"))","v":""},null,"",{"$f":"IF(ISERROR(VLOOKUP(N218,POA!$A$2:$F$25,5,0)),\"\",VLOOKUP(N218,POA!$A$2:$F$25,5,0))","v":""},null,"",null,0,"MIPYME",null,"",null,""]
[null,{"$f":"IF(C219=\"\",\"\",B218+0.1)","v":""},null,null,{"$f":"IF(ISERROR(VLOOKUP(C219,#REF!,2,0)),\"\",VLOOKUP(C219,#REF!,2,0))","v":""},null,{"$f":"IF(ISERROR(VLOOKUP(C219,#REF!,4,0)),\"\",VLOOKUP(C219,#REF!,4,0))","v":""},null,{"$f":"IF(ISERROR(F219-H219),\"\",F219-H219)","v":0},null,null,null,{"$f":"IF(ISERROR(VLOOKUP(L219,POA!$A$2:$C$25,3,0)),\"\",VLOOKUP(L219,POA!$A$2:$C$25,3,0))","v":""},null,{"$f":"IF(ISERROR(VLOOKUP(N219,POA!$A$2:$F$25,4,0)),\"\",VLOOKUP(N219,POA!$A$2:$F$25,4,0))","v":""},{"$f":"IF(ISERROR(VLOOKUP(L219,POA!$A$2:$C$25,2,0)),\"\",VLOOKUP(L219,POA!$A$2:$C$25,2,0))","v":""},null,{"$f":"IF(L219=0,\"\",IF(Q210>=$R$9,\"HABIL\",\"NO HABIL\"))","v":""},null,"",{"$f":"IF(ISERROR(VLOOKUP(N219,POA!$A$2:$F$25,5,0)),\"\",VLOOKUP(N219,POA!$A$2:$F$25,5,0))","v":""},null,"",null,0,"MIPYME",null,"",null,""]
[null,{"$f":"IF(C220=\"\",\"\",B219+0.1)","v":""},null,null,{"$f":"IF(ISERROR(VLOOKUP(C220,#REF!,2,0)),\"\",VLOOKUP(C220,#REF!,2,0))","v":""},null,{"$f":"IF(ISERROR(VLOOKUP(C220,#REF!,4,0)),\"\",VLOOKUP(C220,#REF!,4,0))","v":""},null,{"$f":"IF(ISERROR(F220-H220),\"\",F220-H220)","v":0},null,null,null,{"$f":"IF(ISERROR(VLOOKUP(L220,POA!$A$2:$C$25,3,0)),\"\",VLOOKUP(L220,POA!$A$2:$C$25,3,0))","v":""},null,{"$f":"IF(ISERROR(VLOOKUP(N220,POA!$A$2:$F$25,4,0)),\"\",VLOOKUP(N220,POA!$A$2:$F$25,4,0))","v":""},{"$f":"IF(ISERROR(VLOOKUP(L220,POA!$A$2:$C$25,2,0)),\"\",VLOOKUP(L220,POA!$A$2:$C$25,2,0))","v":""},null,{"$f":"IF(L220=0,\"\",IF(Q210>=$R$9,\"HABIL\",\"NO HABIL\"))","v":""},null,"",{"$f":"IF(ISERROR(VLOOKUP(N220,POA!$A$2:$F$25,5,0)),\"\",VLOOKUP(N220,POA!$A$2:$F$25,5,0))","v":""},null,"",null,{"$f":"IF(ISERROR(F220/$Z$9),\"\",F220/$Z$9)","v":0},"MIPYME",null,"",null,""]
[null,20,"CONSORCIO VIAL LA CALERA",{"$f":"IF(SUM(D222:D231)=0,\"\",SUM(D222:D231))","v":1},{"$f":"SUM(E222:E231)","v":6956141997},{"$f":"SUM(F222:F231)","v":7765369525},{"$f":"SUM(G222:G231)","v":1963013234},{"$f":"SUM(H222:H231)","v":5264903114},{"$f":"+F221-H221","v":2500466411},{"$f":"SUM(J222:J231)","v":749477085},{"$f":"SUM(K222:K231)","v":8043839},1,{"$f":"IF(ISERROR(VLOOKUP(L221,POA!$A$2:$C$25,3,0)),\"\",VLOOKUP(L221,POA!$A$2:$C$25,3,0))","v":3}," ",{"$f":"+SUM(O222:O231)","v":0},{"$f":"IF(ISERROR(VLOOKUP(L221,POA!$A$2:$C$25,2,0)),\"\",VLOOKUP(L221,POA!$A$2:$C$25,2,0))","v":4167150295},{"$f":"SUM(E221/G221)","v":3.5436042287018021},{"$f":"IF(Q221=0,\"\",IF(Q221>=$R$9,\"HABIL\",\"NO HABIL\"))","v":"HABIL"},{"$f":"SUM(H221/F221)","v":0.67799775619821523},{"$f":"IF(S221=0,\"\",IF(S221<=$T$9,\"HABIL\",\"NO HABIL\"))","v":"HABIL"},{"$f":"+SUM(U222:U231)","v":0},{"$f":"SUM(J221/K221)","v":93.174053458802447},{"$f":"IF(V221=0,\"\",IF(V221>=$W$9,\"HABIL\",\"NO HABIL\"))","v":"HABIL"},{"$f":"IF(R221=0,\"\",IF(R221=\"NO HABIL\",\"NO HABIL\",IF(T221=\"NO HABIL\",\"NO HABIL\",IF(W221=\"NO HABIL\",\"NO HABIL\",IF(W221=\"NO HABIL\",\"NO HABIL\",\"HABIL\")))))","v":"HABIL"},null,null,{"$f":"SUM(J221/I221)","v":0.29973491413558523},{"$f":"IF(AA221=0,\"\",IF(AA221>=$AB$9,\"HABIL\",\"NO HABIL\"))","v":"HABIL"},{"$f":"SUM(J221/F221)","v":9.6515314897393761E-2},{"$f":"IF(AC221=0,\"\",IF(AC221>=$AD$9,\"HABIL\",\"NO HABIL\"))","v":"HABIL"},{"$f":"IF(AB221=0,\"\",IF(AB221=\"NO HABIL\",\"NO HABIL\",IF(AD221=\"NO HABIL\",\"NO HABIL\",IF(AD221=\"NO HABIL\",\"NO HABIL\",\"HABIL\"))))","v":"HABIL"}]
[null,{"$f":"IF(C222=\"\",\"\",B221+0.1)","v":20.100000000000001},"ARMANDO VALENCIA VALENCIA",0.6,5590151157,6211621163,1292864654,4323768830,1887852333,670228859,7343726,null,{"$f":"IF(ISERROR(VLOOKUP(L222,POA!$A$2:$C$25,3,0)),\"\",VLOOKUP(L222,POA!$A$2:$C$25,3,0))","v":""}," ",{"$f":"IF(ISERROR(VLOOKUP(N222,POA!$A$2:$F$25,4,0)),\"\",VLOOKUP(N222,POA!$A$2:$F$25,4,0))","v":""},{"$f":"IF(ISERROR(VLOOKUP(L222,POA!$A$2:$C$25,2,0)),\"\",VLOOKUP(L222,POA!$A$2:$C$25,2,0))","v":""},null,{"$f":"IF(Q222=0,\"\",IF(Q221>=$R$9,\"HABIL\",\"NO HABIL\"))","v":""},null,{"$f":"IF(S222=0,\"\",IF(S222<=$T$9,\"HABIL\",\"NO HABIL\"))","v":""},{"$f":"IF(ISERROR(VLOOKUP(N222,POA!$A$2:$F$25,5,0)),\"\",VLOOKUP(N222,POA!$A$2:$F$25,5,0))","v":""},null,{"$f":"IF(V222=0,\"\",IF(V222>=$W$9,\"HABIL\",\"NO HABIL\"))","v":""},null,{"$f":"IF(ISERROR(F222/$Z$9),\"\",F222/$Z$9)","v":10961.039638256572},{"$f":"+IF(Y222<$Z$10,\"MIPYME\",\"NO CUMPLE\")","v":"MIPYME"},null,{"$f":"IF(AA222=0,\"\",IF(AA222>=$AB$9,\"HABIL\",\"NO HABIL\"))","v":""},null,{"$f":"IF(AC222=0,\"\",IF(AC222>=$AD$9,\"HABIL\",\"NO HABIL\"))","v":""}]
["PROC. AD. FIRM. RUP",20.200000000000003,"OLGA VELEZ MESA",0.4,1365990840,1553748362,670148580,941134284,{"$f":"IF(ISERROR(F223-H223),\"\",F223-H223)","v":612614078},79248226,700113,null,{"$f":"IF(ISERROR(VLOOKUP(L223,POA!$A$2:$C$25,3,0)),\"\",VLOOKUP(L223,POA!$A$2:$C$25,3,0))","v":""}," ",{"$f":"IF(ISERROR(VLOOKUP(N223,POA!$A$2:$F$25,4,0)),\"\",VLOOKUP(N223,POA!$A$2:$F$25,4,0))","v":""},{"$f":"IF(ISERROR(VLOOKUP(L223,POA!$A$2:$C$25,2,0)),\"\",VLOOKUP(L223,POA!$A$2:$C$25,2,0))","v":""},null,{"$f":"IF(Q223=0,\"\",IF(Q221>=$R$9,\"HABIL\",\"NO HABIL\"))","v":""},null,"",{"$f":"IF(ISERROR(VLOOKUP(N223,POA!$A$2:$F$25,5,0)),\"\",VLOOKUP(N223,POA!$A$2:$F$25,5,0))","v":""},null,"",null,{"$f":"IF(ISERROR(F223/$Z$9),\"\",F223/$Z$9)","v":2741.7475948473621},{"$f":"+IF(Y223<$Z$10,\"MIPYME\",\"NO CUMPLE\")","v":"MIPYME"},null,"",null,""]
[null,"",null,null,null,null,null,null,0,null,null,null,{"$f":"IF(ISERROR(VLOOKUP(L224,POA!$A$2:$C$25,3,0)),\"\",VLOOKUP(L224,POA!$A$2:$C$25,3,0))","v":""},null,{"$f":"IF(ISERROR(VLOOKUP(N224,POA!$A$2:$F$25,4,0)),\"\",VLOOKUP(N224,POA!$A$2:$F$25,4,0))","v":""},{"$f":"IF(ISERROR(VLOOKUP(L224,POA!$A$2:$C$25,2,0)),\"\",VLOOKUP(L224,POA!$A$2:$C$25,2,0))","v":""},null,{"$f":"IF(Q224=0,\"\",IF(Q221>=$R$9,\"HABIL\",\"NO HABIL\"))","v":""},null,"",{"$f":"IF(ISERROR(VLOOKUP(N224,POA!$A$2:$F$25,5,0)),\"\",VLOOKUP(N224,POA!$A$2:$F$25,5,0))","v":""},null,"",null,0,"MIPYME",null,"",null,""]
[null,"",null,null,{"$f":"IF(ISERROR(VLOOKUP(C225,#REF!,2,0)),\"\",VLOOKUP(C225,#REF!,2,0))","v":""},null,{"$f":"IF(ISERROR(VLOOKUP(C225,#REF!,4,0)),\"\",VLOOKUP(C225,#REF!,4,0))","v":""},null,0,null,null,null,{"$f":"IF(ISERROR(VLOOKUP(L225,POA!$A$2:$C$25,3,0)),\"\",VLOOKUP(L225,POA!$A$2:$C$25,3,0))","v":""},null,{"$f":"IF(ISERROR(VLOOKUP(N225,POA!$A$2:$F$25,4,0)),\"\",VLOOKUP(N225,POA!$A$2:$F$25,4,0))","v":""},{"$f":"IF(ISERROR(VLOOKUP(L225,POA!$A$2:$C$25,2,0)),\"\",VLOOKUP(L225,POA!$A$2:$C$25,2,0))","v":""},null,{"$f":"IF(L225=0,\"\",IF(Q221>=$R$9,\"HABIL\",\"NO HABIL\"))","v":""},null,"",{"$f":"IF(ISERROR(VLOOKUP(N225,POA!$A$2:$F$25,5,0)),\"\",VLOOKUP(N225,POA!$A$2:$F$25,5,0))","v":""},null,"",null,0,"MIPYME",null,"",null,""]
[null,"",null,null,{"$f":"IF(ISERROR(VLOOKUP(C226,#REF!,2,0)),\"\",VLOOKUP(C226,#REF!,2,0))","v":""},null,{"$f":"IF(ISERROR(VLOOKUP(C226,#REF!,4,0)),\"\",VLOOKUP(C226,#REF!,4,0))","v":""},null,0,null,null,null,{"$f":"IF(ISERROR(VLOOKUP(L226,POA!$A$2:$C$25,3,0)),\"\",VLOOKUP(L226,POA!$A$2:$C$25,3,0))","v":""},null,{"$f":"IF(ISERROR(VLOOKUP(N226,POA!$A$2:$F$25,4,0)),\"\",VLOOKUP(N226,POA!$A$2:$F$25,4,0))","v":""},{"$f":"IF(ISERROR(VLOOKUP(L226,POA!$A$2:$C$25,2,0)),\"\",VLOOKUP(L226,POA!$A$2:$C$25,2,0))","v":""},null,{"$f":"IF(L226=0,\"\",IF(Q221>=$R$9,\"HABIL\",\"NO HABIL\"))","v":""},null,"",{"$f":"IF(ISERROR(VLOOKUP(N226,POA!$A$2:$F$25,5,0)),\"\",VLOOKUP(N226,POA!$A$2:$F$25,5,0))","v":""},null,"",null,0,"MIPYME",null,"",null,""]
[null,"",null,null,{"$f":"IF(ISERROR(VLOOKUP(C227,#REF!,2,0)),\"\",VLOOKUP(C227,#REF!,2,0))","v":""},null,{"$f":"IF(ISERROR(VLOOKUP(C227,#REF!,4,0)),\"\",VLOOKUP(C227,#REF!,4,0))","v":""},null,0,null,null,null,{"$f":"IF(ISERROR(VLOOKUP(L227,POA!$A$2:$C$25,3,0)),\"\",VLOOKUP(L227,POA!$A$2:$C$25,3,0))","v":""},null,{"$f":"IF(ISERROR(VLOOKUP(N227,POA!$A$2:$F$25,4,0)),\"\",VLOOKUP(N227,POA!$A$2:$F$25,4,0))","v":""},{"$f":"IF(ISERROR(VLOOKUP(L227,POA!$A$2:$C$25,2,0)),\"\",VLOOKUP(L227,POA!$A$2:$C$25,2,0))","v":""},null,{"$f":"IF(L227=0,\"\",IF(Q221>=$R$9,\"HABIL\",\"NO HABIL\"))","v":""},null,"",{"$f":"IF(ISERROR(VLOOKUP(N227,POA!$A$2:$F$25,5,0)),\"\",VLOOKUP(N227,POA!$A$2:$F$25,5,0))","v":""},null,"",null,0,"MIPYME",null,"",null,""]
[null,{"$f":"IF(C228=\"\",\"\",B227+0.1)","v":""},null,null,{"$f":"IF(ISERROR(VLOOKUP(C228,#REF!,2,0)),\"\",VLOOKUP(C228,#REF!,2,0))","v":""},null,{"$f":"IF(ISERROR(VLOOKUP(C228,#REF!,4,0)),\"\",VLOOKUP(C228,#REF!,4,0))","v":""},null,{"$f":"IF(ISERROR(F228-H228),\"\",F228-H228)","v":0},null,null,null,{"$f":"IF(ISERROR(VLOOKUP(L228,POA!$A$2:$C$25,3,0)),\"\",VLOOKUP(L228,POA!$A$2:$C$25,3,0))","v":""},null,{"$f":"IF(ISERROR(VLOOKUP(N228,POA!$A$2:$F$25,4,0)),\"\",VLOOKUP(N228,POA!$A$2:$F$25,4,0))","v":""},{"$f":"IF(ISERROR(VLOOKUP(L228,POA!$A$2:$C$25,2,0)),\"\",VLOOKUP(L228,POA!$A$2:$C$25,2,0))","v":""},null,{"$f":"IF(L228=0,\"\",IF(Q221>=$R$9,\"HABIL\",\"NO HABIL\"))","v":""},null,"",{"$f":"IF(ISERROR(VLOOKUP(N228,POA!$A$2:$F$25,5,0)),\"\",VLOOKUP(N228,POA!$A$2:$F$25,5,0))","v":""},null,"",null,0,"MIPYME",null,"",null,""]
[null,{"$f":"IF(C229=\"\",\"\",B228+0.1)","v":""},null,null,{"$f":"IF(ISERROR(VLOOKUP(C229,#REF!,2,0)),\"\",VLOOKUP(C229,#REF!,2,0))","v":""},null,{"$f":"IF(ISERROR(VLOOKUP(C229,#REF!,4,0)),\"\",VLOOKUP(C229,#REF!,4,0))","v":""},null,{"$f":"IF(ISERROR(F229-H229),\"\",F229-H229)","v":0},null,null,null,{"$f":"IF(ISERROR(VLOOKUP(L229,POA!$A$2:$C$25,3,0)),\"\",VLOOKUP(L229,POA!$A$2:$C$25,3,0))","v":""},null,{"$f":"IF(ISERROR(VLOOKUP(N229,POA!$A$2:$F$25,4,0)),\"\",VLOOKUP(N229,POA!$A$2:$F$25,4,0))","v":""},{"$f":"IF(ISERROR(VLOOKUP(L229,POA!$A$2:$C$25,2,0)),\"\",VLOOKUP(L229,POA!$A$2:$C$25,2,0))","v":""},null,{"$f":"IF(L229=0,\"\",IF(Q221>=$R$9,\"HABIL\",\"NO HABIL\"))","v":""},null,"",{"$f":"IF(ISERROR(VLOOKUP(N229,POA!$A$2:$F$25,5,0)),\"\",VLOOKUP(N229,POA!$A$2:$F$25,5,0))","v":""},null,"",null,0,"MIPYME",null,"",null,""]
[null,{"$f":"IF(C230=\"\",\"\",B229+0.1)","v":""},null,null,{"$f":"IF(ISERROR(VLOOKUP(C230,#REF!,2,0)),\"\",VLOOKUP(C230,#REF!,2,0))","v":""},null,{"$f":"IF(ISERROR(VLOOKUP(C230,#REF!,4,0)),\"\",VLOOKUP(C230,#REF!,4,0))","v":""},null,{"$f":"IF(ISERROR(F230-H230),\"\",F230-H230)","v":0},null,null,null,{"$f":"IF(ISERROR(VLOOKUP(L230,POA!$A$2:$C$25,3,0)),\"\",VLOOKUP(L230,POA!$A$2:$C$25,3,0))","v":""},null,{"$f":"IF(ISERROR(VLOOKUP(N230,POA!$A$2:$F$25,4,0)),\"\",VLOOKUP(N230,POA!$A$2:$F$25,4,0))","v":""},{"$f":"IF(ISERROR(VLOOKUP(L230,POA!$A$2:$C$25,2,0)),\"\",VLOOKUP(L230,POA!$A$2:$C$25,2,0))","v":""},null,{"$f":"IF(L230=0,\"\",IF(Q221>=$R$9,\"HABIL\",\"NO HABIL\"))","v":""},null,"",{"$f":"IF(ISERROR(VLOOKUP(N230,POA!$A$2:$F$25,5,0)),\"\",VLOOKUP(N230,POA!$A$2:$F$25,5,0))","v":""},null,"",null,0,"MIPYME",null,"",null,""]
[null,{"$f":"IF(C231=\"\",\"\",B230+0.1)","v":""},null,null,{"$f":"IF(ISERROR(VLOOKUP(C231,#REF!,2,0)),\"\",VLOOKUP(C231,#REF!,2,0))","v":""},null,{"$f":"IF(ISERROR(VLOOKUP(C231,#REF!,4,0)),\"\",VLOOKUP(C231,#REF!,4,0))","v":""},null,{"$f":"IF(ISERROR(F231-H231),\"\",F231-H231)","v":0},null,null,null,{"$f":"IF(ISERROR(VLOOKUP(L231,POA!$A$2:$C$25,3,0)),\"\",VLOOKUP(L231,POA!$A$2:$C$25,3,0))","v":""},null,{"$f":"IF(ISERROR(VLOOKUP(N231,POA!$A$2:$F$25,4,0)),\"\",VLOOKUP(N231,POA!$A$2:$F$25,4,0))","v":""},{"$f":"IF(ISERROR(VLOOKUP(L231,POA!$A$2:$C$25,2,0)),\"\",VLOOKUP(L231,POA!$A$2:$C$25,2,0))","v":""},null,{"$f":"IF(L231=0,\"\",IF(Q221>=$R$9,\"HABIL\",\"NO HABIL\"))","v":""},null,"",{"$f":"IF(ISERROR(VLOOKUP(N231,POA!$A$2:$F$25,5,0)),\"\",VLOOKUP(N231,POA!$A$2:$F$25,5,0))","v":""},null,"",null,{"$f":"IF(ISERROR(F231/$Z$9),\"\",F231/$Z$9)","v":0},"MIPYME",null,"",null,""]
[null,21,"CONSORCIO VIAL COLOMBIA 2014",{"$f":"IF(SUM(D233:D242)=0,\"\",SUM(D233:D242))","v":1},{"$f":"SUM(E233:E242)","v":9281687732},{"$f":"SUM(F233:F242)","v":16197795376},{"$f":"SUM(G233:G242)","v":868655852},{"$f":"SUM(H233:H242)","v":8574210045},{"$f":"+F232-H232","v":7623585331},{"$f":"SUM(J233:J242)","v":1692360252},{"$f":"SUM(K233:K242)","v":368359815},1,{"$f":"IF(ISERROR(VLOOKUP(L232,POA!$A$2:$C$25,3,0)),\"\",VLOOKUP(L232,POA!$A$2:$C$25,3,0))","v":3}," ",{"$f":"+SUM(O233:O242)","v":0},{"$f":"IF(ISERROR(VLOOKUP(L232,POA!$A$2:$C$25,2,0)),\"\",VLOOKUP(L232,POA!$A$2:$C$25,2,0))","v":4167150295},{"$f":"SUM(E232/G232)","v":10.685115066720346},{"$f":"IF(Q232=0,\"\",IF(Q232>=$R$9,\"HABIL\",\"NO HABIL\"))","v":"HABIL"},{"$f":"SUM(H232/F232)","v":0.52934426234969378},{"$f":"IF(S232=0,\"\",IF(S232<=$T$9,\"HABIL\",\"NO HABIL\"))","v":"HABIL"},{"$f":"+SUM(U233:U242)","v":0},{"$f":"SUM(J232/K232)","v":4.5943129057114982},{"$f":"IF(V232=0,\"\",IF(V232>=$W$9,\"HABIL\",\"NO HABIL\"))","v":"HABIL"},{"$f":"IF(R232=0,\"\",IF(R232=\"NO HABIL\",\"NO HABIL\",IF(T232=\"NO HABIL\",\"NO HABIL\",IF(W232=\"NO HABIL\",\"NO HABIL\",IF(W232=\"NO HABIL\",\"NO HABIL\",\"HABIL\")))))","v":"HABIL"},null,null,{"$f":"SUM(J232/I232)","v":0.22199007140620672},{"$f":"IF(AA232=0,\"\",IF(AA232>=$AB$9,\"HABIL\",\"NO HABIL\"))","v":"HABIL"},{"$f":"SUM(J232/F232)","v":0.10448090080873237},{"$f":"IF(AC232=0,\"\",IF(AC232>=$AD$9,\"HABIL\",\"NO HABIL\"))","v":"HABIL"},{"$f":"IF(AB232=0,\"\",IF(AB232=\"NO HABIL\",\"NO HABIL\",IF(AD232=\"NO HABIL\",\"NO HABIL\",IF(AD232=\"NO HABIL\",\"NO HABIL\",\"HABIL\"))))","v":"HABIL"}]
[null,{"$f":"IF(C233=\"\",\"\",B232+0.1)","v":21.1},"SARIA S.A.S.",0.5,5034888897,8645489612,601425869,4811967561,{"$f":"IF(ISERROR(F233-H233),\"\",F233-H233)","v":3833522051},1284608266,366488382,null,{"$f":"IF(ISERROR(VLOOKUP(L233,POA!$A$2:$C$25,3,0)),\"\",VLOOKUP(L233,POA!$A$2:$C$25,3,0))","v":""}," ",{"$f":"IF(ISERROR(VLOOKUP(N233,POA!$A$2:$F$25,4,0)),\"\",VLOOKUP(N233,POA!$A$2:$F$25,4,0))","v":""},{"$f":"IF(ISERROR(VLOOKUP(L233,POA!$A$2:$C$25,2,0)),\"\",VLOOKUP(L233,POA!$A$2:$C$25,2,0))","v":""},null,{"$f":"IF(Q233=0,\"\",IF(Q232>=$R$9,\"HABIL\",\"NO HABIL\"))","v":""},null,{"$f":"IF(S233=0,\"\",IF(S233<=$T$9,\"HABIL\",\"NO HABIL\"))","v":""},{"$f":"IF(ISERROR(VLOOKUP(N233,POA!$A$2:$F$25,5,0)),\"\",VLOOKUP(N233,POA!$A$2:$F$25,5,0))","v":""},null,{"$f":"IF(V233=0,\"\",IF(V233>=$W$9,\"HABIL\",\"NO HABIL\"))","v":""},null,{"$f":"IF(ISERROR(F233/$Z$9),\"\",F233/$Z$9)","v":15255.848971236986},{"$f":"+IF(Y233<$Z$10,\"MIPYME\",\"NO CUMPLE\")","v":"MIPYME"},null,{"$f":"IF(AA233=0,\"\",IF(AA233>=$AB$9,\"HABIL\",\"NO HABIL\"))","v":""},null,{"$f":"IF(AC233=0,\"\",IF(AC233>=$AD$9,\"HABIL\",\"NO HABIL\"))","v":""}]
[null,21.200000000000003,"TRAINCO S.A.",0.5,4246798835,7552305764,267229983,3762242484,3790063280,407751986,1871433,null,{"$f":"IF(ISERROR(VLOOKUP(L234,POA!$A$2:$C$25,3,0)),\"\",VLOOKUP(L234,POA!$A$2:$C$25,3,0))","v":""}," ",{"$f":"IF(ISERROR(VLOOKUP(N234,POA!$A$2:$F$25,4,0)),\"\",VLOOKUP(N234,POA!$A$2:$F$25,4,0))","v":""},{"$f":"IF(ISERROR(VLOOKUP(L234,POA!$A$2:$C$25,2,0)),\"\",VLOOKUP(L234,POA!$A$2:$C$25,2,0))","v":""},null,{"$f":"IF(Q234=0,\"\",IF(Q232>=$R$9,\"HABIL\",\"NO HABIL\"))","v":""},null,"",{"$f":"IF(ISERROR(VLOOKUP(N234,POA!$A$2:$F$25,5,0)),\"\",VLOOKUP(N234,POA!$A$2:$F$25,5,0))","v":""},null,"",null,{"$f":"IF(ISERROR(F234/$Z$9),\"\",F234/$Z$9)","v":13326.814476795482},{"$f":"+IF(Y234<$Z$10,\"MIPYME\",\"NO CUMPLE\")","v":"MIPYME"},null,"",null,""]
[null,"",null,null,null,null,null,null,{"$f":"IF(ISERROR(F235-H235),\"\",F235-H235)","v":0},null,null,null,{"$f":"IF(ISERROR(VLOOKUP(L235,POA!$A$2:$C$25,3,0)),\"\",VLOOKUP(L235,POA!$A$2:$C$25,3,0))","v":""},null,{"$f":"IF(ISERROR(VLOOKUP(N235,POA!$A$2:$F$25,4,0)),\"\",VLOOKUP(N235,POA!$A$2:$F$25,4,0))","v":""},{"$f":"IF(ISERROR(VLOOKUP(L235,POA!$A$2:$C$25,2,0)),\"\",VLOOKUP(L235,POA!$A$2:$C$25,2,0))","v":""},null,{"$f":"IF(Q235=0,\"\",IF(Q232>=$R$9,\"HABIL\",\"NO HABIL\"))","v":""},null,"",{"$f":"IF(ISERROR(VLOOKUP(N235,POA!$A$2:$F$25,5,0)),\"\",VLOOKUP(N235,POA!$A$2:$F$25,5,0))","v":""},null,"",null,0,"MIPYME",null,"",null,""]
[null,"",null,null,{"$f":"IF(ISERROR(VLOOKUP(C236,#REF!,2,0)),\"\",VLOOKUP(C236,#REF!,2,0))","v":""},null,{"$f":"IF(ISERROR(VLOOKUP(C236,#REF!,4,0)),\"\",VLOOKUP(C236,#REF!,4,0))","v":""},null,0,null,null,null,{"$f":"IF(ISERROR(VLOOKUP(L236,POA!$A$2:$C$25,3,0)),\"\",VLOOKUP(L236,POA!$A$2:$C$25,3,0))","v":""},null,{"$f":"IF(ISERROR(VLOOKUP(N236,POA!$A$2:$F$25,4,0)),\"\",VLOOKUP(N236,POA!$A$2:$F$25,4,0))","v":""},{"$f":"IF(ISERROR(VLOOKUP(L236,POA!$A$2:$C$25,2,0)),\"\",VLOOKUP(L236,POA!$A$2:$C$25,2,0))","v":""},null,{"$f":"IF(L236=0,\"\",IF(Q232>=$R$9,\"HABIL\",\"NO HABIL\"))","v":""},null,"",{"$f":"IF(ISERROR(VLOOKUP(N236,POA!$A$2:$F$25,5,0)),\"\",VLOOKUP(N236,POA!$A$2:$F$25,5,0))","v":""},null,"",null,0,"MIPYME",null,"",null,""]
[null,"",null,null,{"$f":"IF(ISERROR(VLOOKUP(C237,#REF!,2,0)),\"\",VLOOKUP(C237,#REF!,2,0))","v":""},null,{"$f":"IF(ISERROR(VLOOKUP(C237,#REF!,4,0)),\"\",VLOOKUP(C237,#REF!,4,0))","v":""},null,0,null,null,null,{"$f":"IF(ISERROR(VLOOKUP(L237,POA!$A$2:$C$25,3,0)),\"\",VLOOKUP(L237,POA!$A$2:$C$25,3,0))","v":""},null,{"$f":"IF(ISERROR(VLOOKUP(N237,POA!$A$2:$F$25,4,0)),\"\",VLOOKUP(N237,POA!$A$2:$F$25,4,0))","v":""},{"$f":"IF(ISERROR(VLOOKUP(L237,POA!$A$2:$C$25,2,0)),\"\",VLOOKUP(L237,POA!$A$2:$C$25,2,0))","v":""},null,{"$f":"IF(L237=0,\"\",IF(Q232>=$R$9,\"HABIL\",\"NO HABIL\"))","v":""},null,"",{"$f":"IF(ISERROR(VLOOKUP(N237,POA!$A$2:$F$25,5,0)),\"\",VLOOKUP(N237,POA!$A$2:$F$25,5,0))","v":""},null,"",null,0,"MIPYME",null,"",null,""]
[null,"",null,null,{"$f":"IF(ISERROR(VLOOKUP(C238,#REF!,2,0)),\"\",VLOOKUP(C238,#REF!,2,0))","v":""},null,{"$f":"IF(ISERROR(VLOOKUP(C238,#REF!,4,0)),\"\",VLOOKUP(C238,#REF!,4,0))","v":""},null,0,null,null,null,{"$f":"IF(ISERROR(VLOOKUP(L238,POA!$A$2:$C$25,3,0)),\"\",VLOOKUP(L238,POA!$A$2:$C$25,3,0))","v":""},null,{"$f":"IF(ISERROR(VLOOKUP(N238,POA!$A$2:$F$25,4,0)),\"\",VLOOKUP(N238,POA!$A$2:$F$25,4,0))","v":""},{"$f":"IF(ISERROR(VLOOKUP(L238,POA!$A$2:$C$25,2,0)),\"\",VLOOKUP(L238,POA!$A$2:$C$25,2,0))","v":""},null,{"$f":"IF(L238=0,\"\",IF(Q232>=$R$9,\"HABIL\",\"NO HABIL\"))","v":""},null,"",{"$f":"IF(ISERROR(VLOOKUP(N238,POA!$A$2:$F$25,5,0)),\"\",VLOOKUP(N238,POA!$A$2:$F$25,5,0))","v":""},null,"",null,0,"MIPYME",null,"",null,""]
[null,{"$f":"IF(C239=\"\",\"\",B238+0.1)","v":""},null,null,{"$f":"IF(ISERROR(VLOOKUP(C239,#REF!,2,0)),\"\",VLOOKUP(C239,#REF!,2,0))","v":""},null,{"$f":"IF(ISERROR(VLOOKUP(C239,#REF!,4,0)),\"\",VLOOKUP(C239,#REF!,4,0))","v":""},null,{"$f":"IF(ISERROR(F239-H239),\"\",F239-H239)","v":0},null,null,null,{"$f":"IF(ISERROR(VLOOKUP(L239,POA!$A$2:$C$25,3,0)),\"\",VLOOKUP(L239,POA!$A$2:$C$25,3,0))","v":""},null,{"$f":"IF(ISERROR(VLOOKUP(N239,POA!$A$2:$F$25,4,0)),\"\",VLOOKUP(N239,POA!$A$2:$F$25,4,0))","v":""},{"$f":"IF(ISERROR(VLOOKUP(L239,POA!$A$2:$C$25,2,0)),\"\",VLOOKUP(L239,POA!$A$2:$C$25,2,0))","v":""},null,{"$f":"IF(L239=0,\"\",IF(Q232>=$R$9,\"HABIL\",\"NO HABIL\"))","v":""},null,"",{"$f":"IF(ISERROR(VLOOKUP(N239,POA!$A$2:$F$25,5,0)),\"\",VLOOKUP(N239,POA!$A$2:$F$25,5,0))","v":""},null,"",null,0,"MIPYME",null,"",null,""]
[null,{"$f":"IF(C240=\"\",\"\",B239+0.1)","v":""},null,null,{"$f":"IF(ISERROR(VLOOKUP(C240,#REF!,2,0)),\"\",VLOOKUP(C240,#REF!,2,0))","v":""},null,{"$f":"IF(ISERROR(VLOOKUP(C240,#REF!,4,0)),\"\",VLOOKUP(C240,#REF!,4,0))","v":""},null,{"$f":"IF(ISERROR(F240-H240),\"\",F240-H240)","v":0},null,null,null,{"$f":"IF(ISERROR(VLOOKUP(L240,POA!$A$2:$C$25,3,0)),\"\",VLOOKUP(L240,POA!$A$2:$C$25,3,0))","v":""},null,{"$f":"IF(ISERROR(VLOOKUP(N240,POA!$A$2:$F$25,4,0)),\"\",VLOOKUP(N240,POA!$A$2:$F$25,4,0))","v":""},{"$f":"IF(ISERROR(VLOOKUP(L240,POA!$A$2:$C$25,2,0)),\"\",VLOOKUP(L240,POA!$A$2:$C$25,2,0))","v":""},null,{"$f":"IF(L240=0,\"\",IF(Q232>=$R$9,\"HABIL\",\"NO HABIL\"))","v":""},null,"",{"$f":"IF(ISERROR(VLOOKUP(N240,POA!$A$2:$F$25,5,0)),\"\",VLOOKUP(N240,POA!$A$2:$F$25,5,0))","v":""},null,"",null,0,"MIPYME",null,"",null,""]
[null,{"$f":"IF(C241=\"\",\"\",B240+0.1)","v":""},null,null,{"$f":"IF(ISERROR(VLOOKUP(C241,#REF!,2,0)),\"\",VLOOKUP(C241,#REF!,2,0))","v":""},null,{"$f":"IF(ISERROR(VLOOKUP(C241,#REF!,4,0)),\"\",VLOOKUP(C241,#REF!,4,0))","v":""},null,{"$f":"IF(ISERROR(F241-H241),\"\",F241-H241)","v":0},null,null,null,{"$f":"IF(ISERROR(VLOOKUP(L241,POA!$A$2:$C$25,3,0)),\"\",VLOOKUP(L241,POA!$A$2:$C$25,3,0))","v":""},null,{"$f":"IF(ISERROR(VLOOKUP(N241,POA!$A$2:$F$25,4,0)),\"\",VLOOKUP(N241,POA!$A$2:$F$25,4,0))","v":""},{"$f":"IF(ISERROR(VLOOKUP(L241,POA!$A$2:$C$25,2,0)),\"\",VLOOKUP(L241,POA!$A$2:$C$25,2,0))","v":""},null,{"$f":"IF(L241=0,\"\",IF(Q232>=$R$9,\"HABIL\",\"NO HABIL\"))","v":""},null,"",{"$f":"IF(ISERROR(VLOOKUP(N241,POA!$A$2:$F$25,5,0)),\"\",VLOOKUP(N241,POA!$A$2:$F$25,5,0))","v":""},null,"",null,0,"MIPYME",null,"",null,""]
[null,{"$f":"IF(C242=\"\",\"\",B241+0.1)","v":""},null,null,{"$f":"IF(ISERROR(VLOOKUP(C242,#REF!,2,0)),\"\",VLOOKUP(C242,#REF!,2,0))","v":""},null,{"$f":"IF(ISERROR(VLOOKUP(C242,#REF!,4,0)),\"\",VLOOKUP(C242,#REF!,4,0))","v":""},null,{"$f":"IF(ISERROR(F242-H242),\"\",F242-H242)","v":0},null,null,null,{"$f":"IF(ISERROR(VLOOKUP(L242,POA!$A$2:$C$25,3,0)),\"\",VLOOKUP(L242,POA!$A$2:$C$25,3,0))","v":""},null,{"$f":"IF(ISERROR(VLOOKUP(N242,POA!$A$2:$F$25,4,0)),\"\",VLOOKUP(N242,POA!$A$2:$F$25,4,0))","v":""},{"$f":"IF(ISERROR(VLOOKUP(L242,POA!$A$2:$C$25,2,0)),\"\",VLOOKUP(L242,POA!$A$2:$C$25,2,0))","v":""},null,{"$f":"IF(L242=0,\"\",IF(Q232>=$R$9,\"HABIL\",\"NO HABIL\"))","v":""},null,"",{"$f":"IF(ISERROR(VLOOKUP(N242,POA!$A$2:$F$25,5,0)),\"\",VLOOKUP(N242,POA!$A$2:$F$25,5,0))","v":""},null,"",null,{"$f":"IF(ISERROR(F242/$Z$9),\"\",F242/$Z$9)","v":0},"MIPYME",null,"",null,""]
[null,22,"INGENIERIA Y CONSTRUCCIONES S.A.S",{"$f":"IF(SUM(D244:D253)=0,\"\",SUM(D244:D253))","v":1},{"$f":"SUM(E244:E253)","v":12881582000},{"$f":"SUM(F244:F253)","v":19442127000},{"$f":"SUM(G244:G253)","v":3570063000},{"$f":"SUM(H244:H253)","v":5603078000},{"$f":"+F243-H243","v":13839049000},{"$f":"SUM(J244:J253)","v":7852161000},{"$f":"SUM(K244:K253)","v":475280000},1,{"$f":"IF(ISERROR(VLOOKUP(L243,POA!$A$2:$C$25,3,0)),\"\",VLOOKUP(L243,POA!$A$2:$C$25,3,0))","v":3}," ",{"$f":"+SUM(O244:O253)","v":0},{"$f":"IF(ISERROR(VLOOKUP(L243,POA!$A$2:$C$25,2,0)),\"\",VLOOKUP(L243,POA!$A$2:$C$25,2,0))","v":4167150295},{"$f":"SUM(E243/G243)","v":3.6082225999933333},{"$f":"IF(Q243=0,\"\",IF(Q243>=$R$9,\"HABIL\",\"NO HABIL\"))","v":"HABIL"},{"$f":"SUM(H243/F243)","v":0.28819264476566786},{"$f":"IF(S243=0,\"\",IF(S243<=$T$9,\"HABIL\",\"NO HABIL\"))","v":"HABIL"},{"$f":"+SUM(U244:U253)","v":0},{"$f":"SUM(J243/K243)","v":16.521126493856254},{"$f":"IF(V243=0,\"\",IF(V243>=$W$9,\"HABIL\",\"NO HABIL\"))","v":"HABIL"},{"$f":"IF(R243=0,\"\",IF(R243=\"NO HABIL\",\"NO HABIL\",IF(T243=\"NO HABIL\",\"NO HABIL\",IF(W243=\"NO HABIL\",\"NO HABIL\",IF(W243=\"NO HABIL\",\"NO HABIL\",\"HABIL\")))))","v":"HABIL"},null,null,{"$f":"SUM(J243/I243)","v":0.56739166108885086},{"$f":"IF(AA243=0,\"\",IF(AA243>=$AB$9,\"HABIL\",\"NO HABIL\"))","v":"HABIL"},{"$f":"SUM(J243/F243)","v":0.40387355766166944},{"$f":"IF(AC243=0,\"\",IF(AC243>=$AD$9,\"HABIL\",\"NO HABIL\"))","v":"HABIL"},{"$f":"IF(AB243=0,\"\",IF(AB243=\"NO HABIL\",\"NO HABIL\",IF(AD243=\"NO HABIL\",\"NO HABIL\",IF(AD243=\"NO HABIL\",\"NO HABIL\",\"HABIL\"))))","v":"HABIL"}]
[null,{"$f":"IF(C244=\"\",\"\",B243+0.1)","v":22.1},"INGENIERIA Y CONSTRUCCIONES S.A.S",1,{"$f":"IF(ISERROR(VLOOKUP(C244,[1]TD!$4:$65536,2,0)),\"\",VLOOKUP(C244,[1]TD!$4:$65536,2,0))","v":12881582000},{"$f":"IF(ISERROR(VLOOKUP(C244,[1]TD!$4:$65536,3,0)),\"\",VLOOKUP(C244,[1]TD!$4:$65536,3,0))","v":19442127000},{"$f":"IF(ISERROR(VLOOKUP(C244,[1]TD!$4:$65536,4,0)),\"\",VLOOKUP(C244,[1]TD!$4:$65536,4,0))","v":3570063000},{"$f":"IF(ISERROR(VLOOKUP(C244,[1]TD!$4:$65536,5,0)),\"\",VLOOKUP(C244,[1]TD!$4:$65536,5,0))","v":5603078000},{"$f":"IF(ISERROR(F244-H244),\"\",F244-H244)","v":13839049000},{"$f":"IF(ISERROR(VLOOKUP(C244,[1]TD!$4:$65536,6,0)),\"\",VLOOKUP(C244,[1]TD!$4:$65536,6,0))","v":7852161000},{"$f":"IF(ISERROR(VLOOKUP(C244,[1]TD!$4:$65536,7,0)),\"\",VLOOKUP(C244,[1]TD!$4:$65536,7,0))","v":475280000},null,{"$f":"IF(ISERROR(VLOOKUP(L244,POA!$A$2:$C$25,3,0)),\"\",VLOOKUP(L244,POA!$A$2:$C$25,3,0))","v":""}," ",{"$f":"IF(ISERROR(VLOOKUP(N244,POA!$A$2:$F$25,4,0)),\"\",VLOOKUP(N244,POA!$A$2:$F$25,4,0))","v":""},{"$f":"IF(ISERROR(VLOOKUP(L244,POA!$A$2:$C$25,2,0)),\"\",VLOOKUP(L244,POA!$A$2:$C$25,2,0))","v":""},null,{"$f":"IF(Q244=0,\"\",IF(Q243>=$R$9,\"HABIL\",\"NO HABIL\"))","v":""},null,{"$f":"IF(S244=0,\"\",IF(S244<=$T$9,\"HABIL\",\"NO HABIL\"))","v":""},{"$f":"IF(ISERROR(VLOOKUP(N244,POA!$A$2:$F$25,5,0)),\"\",VLOOKUP(N244,POA!$A$2:$F$25,5,0))","v":""},null,{"$f":"IF(V244=0,\"\",IF(V244>=$W$9,\"HABIL\",\"NO HABIL\"))","v":""},null,{"$f":"IF(ISERROR(F244/$Z$9),\"\",F244/$Z$9)","v":34307.617787188989},{"$f":"+IF(Y244<$Z$10,\"MIPYME\",\"NO CUMPLE\")","v":"NO CUMPLE"},null,{"$f":"IF(AA244=0,\"\",IF(AA244>=$AB$9,\"HABIL\",\"NO HABIL\"))","v":""},null,{"$f":"IF(AC244=0,\"\",IF(AC244>=$AD$9,\"HABIL\",\"NO HABIL\"))","v":""}]
[null,"",null,null,null,null,null,null,{"$f":"IF(ISERROR(F245-H245),\"\",F245-H245)","v":0},null,null,null,{"$f":"IF(ISERROR(VLOOKUP(L245,POA!$A$2:$C$25,3,0)),\"\",VLOOKUP(L245,POA!$A$2:$C$25,3,0))","v":""}," ",{"$f":"IF(ISERROR(VLOOKUP(N245,POA!$A$2:$F$25,4,0)),\"\",VLOOKUP(N245,POA!$A$2:$F$25,4,0))","v":""},{"$f":"IF(ISERROR(VLOOKUP(L245,POA!$A$2:$C$25,2,0)),\"\",VLOOKUP(L245,POA!$A$2:$C$25,2,0))","v":""},null,{"$f":"IF(Q245=0,\"\",IF(Q243>=$R$9,\"HABIL\",\"NO HABIL\"))","v":""},null,"",{"$f":"IF(ISERROR(VLOOKUP(N245,POA!$A$2:$F$25,5,0)),\"\",VLOOKUP(N245,POA!$A$2:$F$25,5,0))","v":""},null,"",null,{"$f":"IF(ISERROR(F245/$Z$9),\"\",F245/$Z$9)","v":0},{"$f":"+IF(Y245<$Z$10,\"MIPYME\",\"NO CUMPLE\")","v":"MIPYME"},null,"",null,""]
[null,"",null,null,null,null,null,null,0,null,null,null,{"$f":"IF(ISERROR(VLOOKUP(L246,POA!$A$2:$C$25,3,0)),\"\",VLOOKUP(L246,POA!$A$2:$C$25,3,0))","v":""},null,{"$f":"IF(ISERROR(VLOOKUP(N246,POA!$A$2:$F$25,4,0)),\"\",VLOOKUP(N246,POA!$A$2:$F$25,4,0))","v":""},{"$f":"IF(ISERROR(VLOOKUP(L246,POA!$A$2:$C$25,2,0)),\"\",VLOOKUP(L246,POA!$A$2:$C$25,2,0))","v":""},null,{"$f":"IF(Q246=0,\"\",IF(Q243>=$R$9,\"HABIL\",\"NO HABIL\"))","v":""},null,"",{"$f":"IF(ISERROR(VLOOKUP(N246,POA!$A$2:$F$25,5,0)),\"\",VLOOKUP(N246,POA!$A$2:$F$25,5,0))","v":""},null,"",null,0,"MIPYME",null,"",null,""]
[null,"",null,null,{"$f":"IF(ISERROR(VLOOKUP(C247,#REF!,2,0)),\"\",VLOOKUP(C247,#REF!,2,0))","v":""},null,{"$f":"IF(ISERROR(VLOOKUP(C247,#REF!,4,0)),\"\",VLOOKUP(C247,#REF!,4,0))","v":""},null,0,null,null,null,{"$f":"IF(ISERROR(VLOOKUP(L247,POA!$A$2:$C$25,3,0)),\"\",VLOOKUP(L247,POA!$A$2:$C$25,3,0))","v":""},null,{"$f":"IF(ISERROR(VLOOKUP(N247,POA!$A$2:$F$25,4,0)),\"\",VLOOKUP(N247,POA!$A$2:$F$25,4,0))","v":""},{"$f":"IF(ISERROR(VLOOKUP(L247,POA!$A$2:$C$25,2,0)),\"\",VLOOKUP(L247,POA!$A$2:$C$25,2,0))","v":""},null,{"$f":"IF(L247=0,\"\",IF(Q243>=$R$9,\"HABIL\",\"NO HABIL\"))","v":""},null,"",{"$f":"IF(ISERROR(VLOOKUP(N247,POA!$A$2:$F$25,5,0)),\"\",VLOOKUP(N247,POA!$A$2:$F$25,5,0))","v":""},null,"",null,0,"MIPYME",null,"",null,""]
[null,"",null,null,{"$f":"IF(ISERROR(VLOOKUP(C248,#REF!,2,0)),\"\",VLOOKUP(C248,#REF!,2,0))","v":""},null,{"$f":"IF(ISERROR(VLOOKUP(C248,#REF!,4,0)),\"\",VLOOKUP(C248,#REF!,4,0))","v":""},null,0,null,null,null,{"$f":"IF(ISERROR(VLOOKUP(L248,POA!$A$2:$C$25,3,0)),\"\",VLOOKUP(L248,POA!$A$2:$C$25,3,0))","v":""},null,{"$f":"IF(ISERROR(VLOOKUP(N248,POA!$A$2:$F$25,4,0)),\"\",VLOOKUP(N248,POA!$A$2:$F$25,4,0))","v":""},{"$f":"IF(ISERROR(VLOOKUP(L248,POA!$A$2:$C$25,2,0)),\"\",VLOOKUP(L248,POA!$A$2:$C$25,2,0))","v":""},null,{"$f":"IF(L248=0,\"\",IF(Q243>=$R$9,\"HABIL\",\"NO HABIL\"))","v":""},null,"",{"$f":"IF(ISERROR(VLOOKUP(N248,POA!$A$2:$F$25,5,0)),\"\",VLOOKUP(N248,POA!$A$2:$F$25,5,0))","v":""},null,"",null,0,"MIPYME",null,"",null,""]
[null,"",null,null,{"$f":"IF(ISERROR(VLOOKUP(C249,#REF!,2,0)),\"\",VLOOKUP(C249,#REF!,2,0))","v":""},null,{"$f":"IF(ISERROR(VLOOKUP(C249,#REF!,4,0)),\"\",VLOOKUP(C249,#REF!,4,0))","v":""},null,0,null,null,null,{"$f":"IF(ISERROR(VLOOKUP(L249,POA!$A$2:$C$25,3,0)),\"\",VLOOKUP(L249,POA!$A$2:$C$25,3,0))","v":""},null,{"$f":"IF(ISERROR(VLOOKUP(N249,POA!$A$2:$F$25,4,0)),\"\",VLOOKUP(N249,POA!$A$2:$F$25,4,0))","v":""},{"$f":"IF(ISERROR(VLOOKUP(L249,POA!$A$2:$C$25,2,0)),\"\",VLOOKUP(L249,POA!$A$2:$C$25,2,0))","v":""},null,{"$f":"IF(L249=0,\"\",IF(Q243>=$R$9,\"HABIL\",\"NO HABIL\"))","v":""},null,"",{"$f":"IF(ISERROR(VLOOKUP(N249,POA!$A$2:$F$25,5,0)),\"\",VLOOKUP(N249,POA!$A$2:$F$25,5,0))","v":""},null,"",null,0,"MIPYME",null,"",null,""]
[null,{"$f":"IF(C250=\"\",\"\",B249+0.1)","v":""},null,null,{"$f":"IF(ISERROR(VLOOKUP(C250,#REF!,2,0)),\"\",VLOOKUP(C250,#REF!,2,0))","v":""},null,{"$f":"IF(ISERROR(VLOOKUP(C250,#REF!,4,0)),\"\",VLOOKUP(C250,#REF!,4,0))","v":""},null,{"$f":"IF(ISERROR(F250-H250),\"\",F250-H250)","v":0},null,null,null,{"$f":"IF(ISERROR(VLOOKUP(L250,POA!$A$2:$C$25,3,0)),\"\",VLOOKUP(L250,POA!$A$2:$C$25,3,0))","v":""},null,{"$f":"IF(ISERROR(VLOOKUP(N250,POA!$A$2:$F$25,4,0)),\"\",VLOOKUP(N250,POA!$A$2:$F$25,4,0))","v":""},{"$f":"IF(ISERROR(VLOOKUP(L250,POA!$A$2:$C$25,2,0)),\"\",VLOOKUP(L250,POA!$A$2:$C$25,2,0))","v":""},null,{"$f":"IF(L250=0,\"\",IF(Q243>=$R$9,\"HABIL\",\"NO HABIL\"))","v":""},null,"",{"$f":"IF(ISERROR(VLOOKUP(N250,POA!$A$2:$F$25,5,0)),\"\",VLOOKUP(N250,POA!$A$2:$F$25,5,0))","v":""},null,"",null,0,"MIPYME",null,"",null,""]
[null,{"$f":"IF(C251=\"\",\"\",B250+0.1)","v":""},null,null,{"$f":"IF(ISERROR(VLOOKUP(C251,#REF!,2,0)),\"\",VLOOKUP(C251,#REF!,2,0))","v":""},null,{"$f":"IF(ISERROR(VLOOKUP(C251,#REF!,4,0)),\"\",VLOOKUP(C251,#REF!,4,0))","v":""},null,{"$f":"IF(ISERROR(F251-H251),\"\",F251-H251)","v":0},null,null,null,{"$f":"IF(ISERROR(VLOOKUP(L251,POA!$A$2:$C$25,3,0)),\"\",VLOOKUP(L251,POA!$A$2:$C$25,3,0))","v":""},null,{"$f":"IF(ISERROR(VLOOKUP(N251,POA!$A$2:$F$25,4,0)),\"\",VLOOKUP(N251,POA!$A$2:$F$25,4,0))","v":""},{"$f":"IF(ISERROR(VLOOKUP(L251,POA!$A$2:$C$25,2,0)),\"\",VLOOKUP(L251,POA!$A$2:$C$25,2,0))","v":""},null,{"$f":"IF(L251=0,\"\",IF(Q243>=$R$9,\"HABIL\",\"NO HABIL\"))","v":""},null,"",{"$f":"IF(ISERROR(VLOOKUP(N251,POA!$A$2:$F$25,5,0)),\"\",VLOOKUP(N251,POA!$A$2:$F$25,5,0))","v":""},null,"",null,0,"MIPYME",null,"",null,""]
[null,{"$f":"IF(C252=\"\",\"\",B251+0.1)","v":""},null,null,{"$f":"IF(ISERROR(VLOOKUP(C252,#REF!,2,0)),\"\",VLOOKUP(C252,#REF!,2,0))","v":""},null,{"$f":"IF(ISERROR(VLOOKUP(C252,#REF!,4,0)),\"\",VLOOKUP(C252,#REF!,4,0))","v":""},null,{"$f":"IF(ISERROR(F252-H252),\"\",F252-H252)","v":0},null,null,null,{"$f":"IF(ISERROR(VLOOKUP(L252,POA!$A$2:$C$25,3,0)),\"\",VLOOKUP(L252,POA!$A$2:$C$25,3,0))","v":""},null,{"$f":"IF(ISERROR(VLOOKUP(N252,POA!$A$2:$F$25,4,0)),\"\",VLOOKUP(N252,POA!$A$2:$F$25,4,0))","v":""},{"$f":"IF(ISERROR(VLOOKUP(L252,POA!$A$2:$C$25,2,0)),\"\",VLOOKUP(L252,POA!$A$2:$C$25,2,0))","v":""},null,{"$f":"IF(L252=0,\"\",IF(Q243>=$R$9,\"HABIL\",\"NO HABIL\"))","v":""},null,"",{"$f":"IF(ISERROR(VLOOKUP(N252,POA!$A$2:$F$25,5,0)),\"\",VLOOKUP(N252,POA!$A$2:$F$25,5,0))","v":""},null,"",null,0,"MIPYME",null,"",null,""]
[null,{"$f":"IF(C253=\"\",\"\",B252+0.1)","v":""},null,null,{"$f":"IF(ISERROR(VLOOKUP(C253,#REF!,2,0)),\"\",VLOOKUP(C253,#REF!,2,0))","v":""},null,{"$f":"IF(ISERROR(VLOOKUP(C253,#REF!,4,0)),\"\",VLOOKUP(C253,#REF!,4,0))","v":""},null,{"$f":"IF(ISERROR(F253-H253),\"\",F253-H253)","v":0},null,null,null,{"$f":"IF(ISERROR(VLOOKUP(L253,POA!$A$2:$C$25,3,0)),\"\",VLOOKUP(L253,POA!$A$2:$C$25,3,0))","v":""},null,{"$f":"IF(ISERROR(VLOOKUP(N253,POA!$A$2:$F$25,4,0)),\"\",VLOOKUP(N253,POA!$A$2:$F$25,4,0))","v":""},{"$f":"IF(ISERROR(VLOOKUP(L253,POA!$A$2:$C$25,2,0)),\"\",VLOOKUP(L253,POA!$A$2:$C$25,2,0))","v":""},null,{"$f":"IF(L253=0,\"\",IF(Q243>=$R$9,\"HABIL\",\"NO HABIL\"))","v":""},null,"",{"$f":"IF(ISERROR(VLOOKUP(N253,POA!$A$2:$F$25,5,0)),\"\",VLOOKUP(N253,POA!$A$2:$F$25,5,0))","v":""},null,"",null,{"$f":"IF(ISERROR(F253/$Z$9),\"\",F253/$Z$9)","v":0},"MIPYME",null,"",null,""]
[null,23,"CONSORCIO VIAL SUCRE 2014",{"$f":"IF(SUM(D255:D264)=0,\"\",SUM(D255:D264))","v":1},{"$f":"SUM(E255:E264)","v":10144244398},{"$f":"SUM(F255:F264)","v":17598450836},{"$f":"SUM(G255:G264)","v":1911444169},{"$f":"SUM(H255:H264)","v":7808497717},{"$f":"+F254-H254","v":9789953119},{"$f":"SUM(J255:J264)","v":1712874529},{"$f":"SUM(K255:K264)","v":50360601},1,{"$f":"IF(ISERROR(VLOOKUP(L254,POA!$A$2:$C$25,3,0)),\"\",VLOOKUP(L254,POA!$A$2:$C$25,3,0))","v":3}," ",{"$f":"+SUM(O255:O264)","v":0},{"$f":"IF(ISERROR(VLOOKUP(L254,POA!$A$2:$C$25,2,0)),\"\",VLOOKUP(L254,POA!$A$2:$C$25,2,0))","v":4167150295},{"$f":"SUM(E254/G254)","v":5.3071099656063252},{"$f":"IF(Q254=0,\"\",IF(Q254>=$R$9,\"HABIL\",\"NO HABIL\"))","v":"HABIL"},{"$f":"SUM(H254/F254)","v":0.44370369811339683},{"$f":"IF(S254=0,\"\",IF(S254<=$T$9,\"HABIL\",\"NO HABIL\"))","v":"HABIL"},{"$f":"+SUM(U255:U264)","v":0},{"$f":"SUM(J254/K254)","v":34.012193956938681},{"$f":"IF(V254=0,\"\",IF(V254>=$W$9,\"HABIL\",\"NO HABIL\"))","v":"HABIL"},{"$f":"IF(R254=0,\"\",IF(R254=\"NO HABIL\",\"NO HABIL\",IF(T254=\"NO HABIL\",\"NO HABIL\",IF(W254=\"NO HABIL\",\"NO HABIL\",IF(W254=\"NO HABIL\",\"NO HABIL\",\"HABIL\")))))","v":"HABIL"},null,null,{"$f":"SUM(J254/I254)","v":0.17496248533363382},{"$f":"IF(AA254=0,\"\",IF(AA254>=$AB$9,\"HABIL\",\"NO HABIL\"))","v":"HABIL"},{"$f":"SUM(J254/F254)","v":9.7330983559989537E-2},{"$f":"IF(AC254=0,\"\",IF(AC254>=$AD$9,\"HABIL\",\"NO HABIL\"))","v":"HABIL"},{"$f":"IF(AB254=0,\"\",IF(AB254=\"NO HABIL\",\"NO HABIL\",IF(AD254=\"NO HABIL\",\"NO HABIL\",IF(AD254=\"NO HABIL\",\"NO HABIL\",\"HABIL\"))))","v":"HABIL"}]
[null,{"$f":"IF(C255=\"\",\"\",B254+0.1)","v":23.1},"PROVIAS S.A.S.",0.75,8954360950,15718580388,1784423787,6968601420,{"$f":"IF(ISERROR(F255-H255),\"\",F255-H255)","v":8749978968},1459617549,50089800,null,{"$f":"IF(ISERROR(VLOOKUP(L255,POA!$A$2:$C$25,3,0)),\"\",VLOOKUP(L255,POA!$A$2:$C$25,3,0))","v":""}," ",{"$f":"IF(ISERROR(VLOOKUP(N255,POA!$A$2:$F$25,4,0)),\"\",VLOOKUP(N255,POA!$A$2:$F$25,4,0))","v":""},{"$f":"IF(ISERROR(VLOOKUP(L255,POA!$A$2:$C$25,2,0)),\"\",VLOOKUP(L255,POA!$A$2:$C$25,2,0))","v":""},null,{"$f":"IF(Q255=0,\"\",IF(Q254>=$R$9,\"HABIL\",\"NO HABIL\"))","v":""},null,{"$f":"IF(S255=0,\"\",IF(S255<=$T$9,\"HABIL\",\"NO HABIL\"))","v":""},{"$f":"IF(ISERROR(VLOOKUP(N255,POA!$A$2:$F$25,5,0)),\"\",VLOOKUP(N255,POA!$A$2:$F$25,5,0))","v":""},null,{"$f":"IF(V255=0,\"\",IF(V255>=$W$9,\"HABIL\",\"NO HABIL\"))","v":""},null,{"$f":"IF(ISERROR(F255/$Z$9),\"\",F255/$Z$9)","v":27737.039682371626},{"$f":"+IF(Y255<$Z$10,\"MIPYME\",\"NO CUMPLE\")","v":"MIPYME"},null,{"$f":"IF(AA255=0,\"\",IF(AA255>=$AB$9,\"HABIL\",\"NO HABIL\"))","v":""},null,{"$f":"IF(AC255=0,\"\",IF(AC255>=$AD$9,\"HABIL\",\"NO HABIL\"))","v":""}]
[null,23.200000000000003,"ICG PROYECTOS S.A.S.",0.25,1189883448,1879870448,127020382,839896297,1039974151,253256980,270801,null,{"$f":"IF(ISERROR(VLOOKUP(L256,POA!$A$2:$C$25,3,0)),\"\",VLOOKUP(L256,POA!$A$2:$C$25,3,0))","v":""}," ",{"$f":"IF(ISERROR(VLOOKUP(N256,POA!$A$2:$F$25,4,0)),\"\",VLOOKUP(N256,POA!$A$2:$F$25,4,0))","v":""},{"$f":"IF(ISERROR(VLOOKUP(L256,POA!$A$2:$C$25,2,0)),\"\",VLOOKUP(L256,POA!$A$2:$C$25,2,0))","v":""},null,{"$f":"IF(Q256=0,\"\",IF(Q254>=$R$9,\"HABIL\",\"NO HABIL\"))","v":""},null,"",{"$f":"IF(ISERROR(VLOOKUP(N256,POA!$A$2:$F$25,5,0)),\"\",VLOOKUP(N256,POA!$A$2:$F$25,5,0))","v":""},null,"",null,{"$f":"IF(ISERROR(F256/$Z$9),\"\",F256/$Z$9)","v":3317.2233068643022},{"$f":"+IF(Y256<$Z$10,\"MIPYME\",\"NO CUMPLE\")","v":"MIPYME"},null,"",null,""]
[null,"",null,null,null,null,null,null,{"$f":"IF(ISERROR(F257-H257),\"\",F257-H257)","v":0},null,null,null,{"$f":"IF(ISERROR(VLOOKUP(L257,POA!$A$2:$C$25,3,0)),\"\",VLOOKUP(L257,POA!$A$2:$C$25,3,0))","v":""},null,{"$f":"IF(ISERROR(VLOOKUP(N257,POA!$A$2:$F$25,4,0)),\"\",VLOOKUP(N257,POA!$A$2:$F$25,4,0))","v":""},{"$f":"IF(ISERROR(VLOOKUP(L257,POA!$A$2:$C$25,2,0)),\"\",VLOOKUP(L257,POA!$A$2:$C$25,2,0))","v":""},null,{"$f":"IF(Q257=0,\"\",IF(Q254>=$R$9,\"HABIL\",\"NO HABIL\"))","v":""},null,"",{"$f":"IF(ISERROR(VLOOKUP(N257,POA!$A$2:$F$25,5,0)),\"\",VLOOKUP(N257,POA!$A$2:$F$25,5,0))","v":""},null,"",null,0,"MIPYME",null,"",null,""]
[null,"",null,null,{"$f":"IF(ISERROR(VLOOKUP(C258,#REF!,2,0)),\"\",VLOOKUP(C258,#REF!,2,0))","v":""},null,{"$f":"IF(ISERROR(VLOOKUP(C258,#REF!,4,0)),\"\",VLOOKUP(C258,#REF!,4,0))","v":""},null,0,null,null,null,{"$f":"IF(ISERROR(VLOOKUP(L258,POA!$A$2:$C$25,3,0)),\"\",VLOOKUP(L258,POA!$A$2:$C$25,3,0))","v":""},null,{"$f":"IF(ISERROR(VLOOKUP(N258,POA!$A$2:$F$25,4,0)),\"\",VLOOKUP(N258,POA!$A$2:$F$25,4,0))","v":""},{"$f":"IF(ISERROR(VLOOKUP(L258,POA!$A$2:$C$25,2,0)),\"\",VLOOKUP(L258,POA!$A$2:$C$25,2,0))","v":""},null,{"$f":"IF(L258=0,\"\",IF(Q254>=$R$9,\"HABIL\",\"NO HABIL\"))","v":""},null,"",{"$f":"IF(ISERROR(VLOOKUP(N258,POA!$A$2:$F$25,5,0)),\"\",VLOOKUP(N258,POA!$A$2:$F$25,5,0))","v":""},null,"",null,0,"MIPYME",null,"",null,""]
[null,"",null,null,{"$f":"IF(ISERROR(VLOOKUP(C259,#REF!,2,0)),\"\",VLOOKUP(C259,#REF!,2,0))","v":""},null,{"$f":"IF(ISERROR(VLOOKUP(C259,#REF!,4,0)),\"\",VLOOKUP(C259,#REF!,4,0))","v":""},null,0,null,null,null,{"$f":"IF(ISERROR(VLOOKUP(L259,POA!$A$2:$C$25,3,0)),\"\",VLOOKUP(L259,POA!$A$2:$C$25,3,0))","v":""},null,{"$f":"IF(ISERROR(VLOOKUP(N259,POA!$A$2:$F$25,4,0)),\"\",VLOOKUP(N259,POA!$A$2:$F$25,4,0))","v":""},{"$f":"IF(ISERROR(VLOOKUP(L259,POA!$A$2:$C$25,2,0)),\"\",VLOOKUP(L259,POA!$A$2:$C$25,2,0))","v":""},null,{"$f":"IF(L259=0,\"\",IF(Q254>=$R$9,\"HABIL\",\"NO HABIL\"))","v":""},null,"",{"$f":"IF(ISERROR(VLOOKUP(N259,POA!$A$2:$F$25,5,0)),\"\",VLOOKUP(N259,POA!$A$2:$F$25,5,0))","v":""},null,"",null,0,"MIPYME",null,"",null,""]
[null,"",null,null,{"$f":"IF(ISERROR(VLOOKUP(C260,#REF!,2,0)),\"\",VLOOKUP(C260,#REF!,2,0))","v":""},null,{"$f":"IF(ISERROR(VLOOKUP(C260,#REF!,4,0)),\"\",VLOOKUP(C260,#REF!,4,0))","v":""},null,0,null,null,null,{"$f":"IF(ISERROR(VLOOKUP(L260,POA!$A$2:$C$25,3,0)),\"\",VLOOKUP(L260,POA!$A$2:$C$25,3,0))","v":""},null,{"$f":"IF(ISERROR(VLOOKUP(N260,POA!$A$2:$F$25,4,0)),\"\",VLOOKUP(N260,POA!$A$2:$F$25,4,0))","v":""},{"$f":"IF(ISERROR(VLOOKUP(L260,POA!$A$2:$C$25,2,0)),\"\",VLOOKUP(L260,POA!$A$2:$C$25,2,0))","v":""},null,{"$f":"IF(L260=0,\"\",IF(Q254>=$R$9,\"HABIL\",\"NO HABIL\"))","v":""},null,"",{"$f":"IF(ISERROR(VLOOKUP(N260,POA!$A$2:$F$25,5,0)),\"\",VLOOKUP(N260,POA!$A$2:$F$25,5,0))","v":""},null,"",null,0,"MIPYME",null,"",null,""]
[null,{"$f":"IF(C261=\"\",\"\",B260+0.1)","v":""},null,null,{"$f":"IF(ISERROR(VLOOKUP(C261,#REF!,2,0)),\"\",VLOOKUP(C261,#REF!,2,0))","v":""},null,{"$f":"IF(ISERROR(VLOOKUP(C261,#REF!,4,0)),\"\",VLOOKUP(C261,#REF!,4,0))","v":""},null,{"$f":"IF(ISERROR(F261-H261),\"\",F261-H261)","v":0},null,null,null,{"$f":"IF(ISERROR(VLOOKUP(L261,POA!$A$2:$C$25,3,0)),\"\",VLOOKUP(L261,POA!$A$2:$C$25,3,0))","v":""},null,{"$f":"IF(ISERROR(VLOOKUP(N261,POA!$A$2:$F$25,4,0)),\"\",VLOOKUP(N261,POA!$A$2:$F$25,4,0))","v":""},{"$f":"IF(ISERROR(VLOOKUP(L261,POA!$A$2:$C$25,2,0)),\"\",VLOOKUP(L261,POA!$A$2:$C$25,2,0))","v":""},null,{"$f":"IF(L261=0,\"\",IF(Q254>=$R$9,\"HABIL\",\"NO HABIL\"))","v":""},null,"",{"$f":"IF(ISERROR(VLOOKUP(N261,POA!$A$2:$F$25,5,0)),\"\",VLOOKUP(N261,POA!$A$2:$F$25,5,0))","v":""},null,"",null,0,"MIPYME",null,"",null,""]
[null,{"$f":"IF(C262=\"\",\"\",B261+0.1)","v":""},null,null,{"$f":"IF(ISERROR(VLOOKUP(C262,#REF!,2,0)),\"\",VLOOKUP(C262,#REF!,2,0))","v":""},null,{"$f":"IF(ISERROR(VLOOKUP(C262,#REF!,4,0)),\"\",VLOOKUP(C262,#REF!,4,0))","v":""},null,{"$f":"IF(ISERROR(F262-H262),\"\",F262-H262)","v":0},null,null,null,{"$f":"IF(ISERROR(VLOOKUP(L262,POA!$A$2:$C$25,3,0)),\"\",VLOOKUP(L262,POA!$A$2:$C$25,3,0))","v":""},null,{"$f":"IF(ISERROR(VLOOKUP(N262,POA!$A$2:$F$25,4,0)),\"\",VLOOKUP(N262,POA!$A$2:$F$25,4,0))","v":""},{"$f":"IF(ISERROR(VLOOKUP(L262,POA!$A$2:$C$25,2,0)),\"\",VLOOKUP(L262,POA!$A$2:$C$25,2,0))","v":""},null,{"$f":"IF(L262=0,\"\",IF(Q254>=$R$9,\"HABIL\",\"NO HABIL\"))","v":""},null,"",{"$f":"IF(ISERROR(VLOOKUP(N262,POA!$A$2:$F$25,5,0)),\"\",VLOOKUP(N262,POA!$A$2:$F$25,5,0))","v":""},null,"",null,0,"MIPYME",null,"",null,""]
[null,{"$f":"IF(C263=\"\",\"\",B262+0.1)","v":""},null,null,{"$f":"IF(ISERROR(VLOOKUP(C263,#REF!,2,0)),\"\",VLOOKUP(C263,#REF!,2,0))","v":""},null,{"$f":"IF(ISERROR(VLOOKUP(C263,#REF!,4,0)),\"\",VLOOKUP(C263,#REF!,4,0))","v":""},null,{"$f":"IF(ISERROR(F263-H263),\"\",F263-H263)","v":0},null,null,null,{"$f":"IF(ISERROR(VLOOKUP(L263,POA!$A$2:$C$25,3,0)),\"\",VLOOKUP(L263,POA!$A$2:$C$25,3,0))","v":""},null,{"$f":"IF(ISERROR(VLOOKUP(N263,POA!$A$2:$F$25,4,0)),\"\",VLOOKUP(N263,POA!$A$2:$F$25,4,0))","v":""},{"$f":"IF(ISERROR(VLOOKUP(L263,POA!$A$2:$C$25,2,0)),\"\",VLOOKUP(L263,POA!$A$2:$C$25,2,0))","v":""},null,{"$f":"IF(L263=0,\"\",IF(Q254>=$R$9,\"HABIL\",\"NO HABIL\"))","v":""},null,"",{"$f":"IF(ISERROR(VLOOKUP(N263,POA!$A$2:$F$25,5,0)),\"\",VLOOKUP(N263,POA!$A$2:$F$25,5,0))","v":""},null,"",null,0,"MIPYME",null,"",null,""]
[null,{"$f":"IF(C264=\"\",\"\",B263+0.1)","v":""},null,null,{"$f":"IF(ISERROR(VLOOKUP(C264,#REF!,2,0)),\"\",VLOOKUP(C264,#REF!,2,0))","v":""},null,{"$f":"IF(ISERROR(VLOOKUP(C264,#REF!,4,0)),\"\",VLOOKUP(C264,#REF!,4,0))","v":""},null,{"$f":"IF(ISERROR(F264-H264),\"\",F264-H264)","v":0},null,null,null,{"$f":"IF(ISERROR(VLOOKUP(L264,POA!$A$2:$C$25,3,0)),\"\",VLOOKUP(L264,POA!$A$2:$C$25,3,0))","v":""},null,{"$f":"IF(ISERROR(VLOOKUP(N264,POA!$A$2:$F$25,4,0)),\"\",VLOOKUP(N264,POA!$A$2:$F$25,4,0))","v":""},{"$f":"IF(ISERROR(VLOOKUP(L264,POA!$A$2:$C$25,2,0)),\"\",VLOOKUP(L264,POA!$A$2:$C$25,2,0))","v":""},null,{"$f":"IF(L264=0,\"\",IF(Q254>=$R$9,\"HABIL\",\"NO HABIL\"))","v":""},null,"",{"$f":"IF(ISERROR(VLOOKUP(N264,POA!$A$2:$F$25,5,0)),\"\",VLOOKUP(N264,POA!$A$2:$F$25,5,0))","v":""},null,"",null,{"$f":"IF(ISERROR(F264/$Z$9),\"\",F264/$Z$9)","v":0},"MIPYME",null,"",null,""]
[null,24,"INGENIERIA Y VIAS S.A.S.",{"$f":"IF(SUM(D266:D275)=0,\"\",SUM(D266:D275))","v":1},{"$f":"SUM(E266:E275)","v":30110750000},{"$f":"SUM(F266:F275)","v":42476775000},{"$f":"SUM(G266:G275)","v":14747981000},{"$f":"SUM(H266:H275)","v":24952658000},{"$f":"+F265-H265","v":17524117000},{"$f":"SUM(J266:J275)","v":3472836000},{"$f":"SUM(K266:K275)","v":498777000},1,{"$f":"IF(ISERROR(VLOOKUP(L265,POA!$A$2:$C$25,3,0)),\"\",VLOOKUP(L265,POA!$A$2:$C$25,3,0))","v":3}," ",{"$f":"+SUM(O266:O275)","v":0},{"$f":"IF(ISERROR(VLOOKUP(L265,POA!$A$2:$C$25,2,0)),\"\",VLOOKUP(L265,POA!$A$2:$C$25,2,0))","v":4167150295},{"$f":"SUM(E265/G265)","v":2.0416862484430918},{"$f":"IF(Q265=0,\"\",IF(Q265>=$R$9,\"HABIL\",\"NO HABIL\"))","v":"HABIL"},{"$f":"SUM(H265/F265)","v":0.58744238469139898},{"$f":"IF(S265=0,\"\",IF(S265<=$T$9,\"HABIL\",\"NO HABIL\"))","v":"HABIL"},{"$f":"+SUM(U266:U275)","v":0},{"$f":"SUM(J265/K265)","v":6.9627027709778115},{"$f":"IF(V265=0,\"\",IF(V265>=$W$9,\"HABIL\",\"NO HABIL\"))","v":"HABIL"},{"$f":"IF(R265=0,\"\",IF(R265=\"NO HABIL\",\"NO HABIL\",IF(T265=\"NO HABIL\",\"NO HABIL\",IF(W265=\"NO HABIL\",\"NO HABIL\",IF(W265=\"NO HABIL\",\"NO HABIL\",\"HABIL\")))))","v":"HABIL"},null,null,{"$f":"SUM(J265/I265)","v":0.19817466409291834},{"$f":"IF(AA265=0,\"\",IF(AA265>=$AB$9,\"HABIL\",\"NO HABIL\"))","v":"HABIL"},{"$f":"SUM(J265/F265)","v":8.1758466832757434E-2},{"$f":"IF(AC265=0,\"\",IF(AC265>=$AD$9,\"HABIL\",\"NO HABIL\"))","v":"HABIL"},{"$f":"IF(AB265=0,\"\",IF(AB265=\"NO HABIL\",\"NO HABIL\",IF(AD265=\"NO HABIL\",\"NO HABIL\",IF(AD265=\"NO HABIL\",\"NO HABIL\",\"HABIL\"))))","v":"HABIL"}]
[null,{"$f":"IF(C266=\"\",\"\",B265+0.1)","v":24.1},"INGENIERIA Y VIAS S.A.S.",1,30110750000,42476775000,14747981000,24952658000,{"$f":"IF(ISERROR(F266-H266),\"\",F266-H266)","v":17524117000},3472836000,498777000,null,{"$f":"IF(ISERROR(VLOOKUP(L266,POA!$A$2:$C$25,3,0)),\"\",VLOOKUP(L266,POA!$A$2:$C$25,3,0))","v":""}," ",{"$f":"IF(ISERROR(VLOOKUP(N266,POA!$A$2:$F$25,4,0)),\"\",VLOOKUP(N266,POA!$A$2:$F$25,4,0))","v":""},{"$f":"IF(ISERROR(VLOOKUP(L266,POA!$A$2:$C$25,2,0)),\"\",VLOOKUP(L266,POA!$A$2:$C$25,2,0))","v":""},null,{"$f":"IF(Q266=0,\"\",IF(Q265>=$R$9,\"HABIL\",\"NO HABIL\"))","v":""},null,{"$f":"IF(S266=0,\"\",IF(S266<=$T$9,\"HABIL\",\"NO HABIL\"))","v":""},{"$f":"IF(ISERROR(VLOOKUP(N266,POA!$A$2:$F$25,5,0)),\"\",VLOOKUP(N266,POA!$A$2:$F$25,5,0))","v":""},null,{"$f":"IF(V266=0,\"\",IF(V266>=$W$9,\"HABIL\",\"NO HABIL\"))","v":""},null,{"$f":"IF(ISERROR(F266/$Z$9),\"\",F266/$Z$9)","v":74954.605611434628},{"$f":"+IF(Y266<$Z$10,\"MIPYME\",\"NO CUMPLE\")","v":"NO CUMPLE"},null,{"$f":"IF(AA266=0,\"\",IF(AA266>=$AB$9,\"HABIL\",\"NO HABIL\"))","v":""},null,{"$f":"IF(AC266=0,\"\",IF(AC266>=$AD$9,\"HABIL\",\"NO HABIL\"))","v":""}]
[null,"",null,null,null,null,null,null,{"$f":"IF(ISERROR(F267-H267),\"\",F267-H267)","v":0},null,null,null,{"$f":"IF(ISERROR(VLOOKUP(L267,POA!$A$2:$C$25,3,0)),\"\",VLOOKUP(L267,POA!$A$2:$C$25,3,0))","v":""}," ",{"$f":"IF(ISERROR(VLOOKUP(N267,POA!$A$2:$F$25,4,0)),\"\",VLOOKUP(N267,POA!$A$2:$F$25,4,0))","v":""},{"$f":"IF(ISERROR(VLOOKUP(L267,POA!$A$2:$C$25,2,0)),\"\",VLOOKUP(L267,POA!$A$2:$C$25,2,0))","v":""},null,{"$f":"IF(Q267=0,\"\",IF(Q265>=$R$9,\"HABIL\",\"NO HABIL\"))","v":""},null,"",{"$f":"IF(ISERROR(VLOOKUP(N267,POA!$A$2:$F$25,5,0)),\"\",VLOOKUP(N267,POA!$A$2:$F$25,5,0))","v":""},null,"",null,{"$f":"IF(ISERROR(F267/$Z$9),\"\",F267/$Z$9)","v":0},{"$f":"+IF(Y267<$Z$10,\"MIPYME\",\"NO CUMPLE\")","v":"MIPYME"},null,"",null,""]
[null,"",null,null,null,null,null,null,0,null,null,null,{"$f":"IF(ISERROR(VLOOKUP(L268,POA!$A$2:$C$25,3,0)),\"\",VLOOKUP(L268,POA!$A$2:$C$25,3,0))","v":""},null,{"$f":"IF(ISERROR(VLOOKUP(N268,POA!$A$2:$F$25,4,0)),\"\",VLOOKUP(N268,POA!$A$2:$F$25,4,0))","v":""},{"$f":"IF(ISERROR(VLOOKUP(L268,POA!$A$2:$C$25,2,0)),\"\",VLOOKUP(L268,POA!$A$2:$C$25,2,0))","v":""},null,{"$f":"IF(Q268=0,\"\",IF(Q265>=$R$9,\"HABIL\",\"NO HABIL\"))","v":""},null,"",{"$f":"IF(ISERROR(VLOOKUP(N268,POA!$A$2:$F$25,5,0)),\"\",VLOOKUP(N268,POA!$A$2:$F$25,5,0))","v":""},null,"",null,0,"MIPYME",null,"",null,""]
[null,"",null,null,{"$f":"IF(ISERROR(VLOOKUP(C269,#REF!,2,0)),\"\",VLOOKUP(C269,#REF!,2,0))","v":""},null,{"$f":"IF(ISERROR(VLOOKUP(C269,#REF!,4,0)),\"\",VLOOKUP(C269,#REF!,4,0))","v":""},null,0,null,null,null,{"$f":"IF(ISERROR(VLOOKUP(L269,POA!$A$2:$C$25,3,0)),\"\",VLOOKUP(L269,POA!$A$2:$C$25,3,0))","v":""},null,{"$f":"IF(ISERROR(VLOOKUP(N269,POA!$A$2:$F$25,4,0)),\"\",VLOOKUP(N269,POA!$A$2:$F$25,4,0))","v":""},{"$f":"IF(ISERROR(VLOOKUP(L269,POA!$A$2:$C$25,2,0)),\"\",VLOOKUP(L269,POA!$A$2:$C$25,2,0))","v":""},null,{"$f":"IF(L269=0,\"\",IF(Q265>=$R$9,\"HABIL\",\"NO HABIL\"))","v":""},null,"",{"$f":"IF(ISERROR(VLOOKUP(N269,POA!$A$2:$F$25,5,0)),\"\",VLOOKUP(N269,POA!$A$2:$F$25,5,0))","v":""},null,"",null,0,"MIPYME",null,"",null,""]
[null,"",null,null,{"$f":"IF(ISERROR(VLOOKUP(C270,#REF!,2,0)),\"\",VLOOKUP(C270,#REF!,2,0))","v":""},null,{"$f":"IF(ISERROR(VLOOKUP(C270,#REF!,4,0)),\"\",VLOOKUP(C270,#REF!,4,0))","v":""},null,0,null,null,null,{"$f":"IF(ISERROR(VLOOKUP(L270,POA!$A$2:$C$25,3,0)),\"\",VLOOKUP(L270,POA!$A$2:$C$25,3,0))","v":""},null,{"$f":"IF(ISERROR(VLOOKUP(N270,POA!$A$2:$F$25,4,0)),\"\",VLOOKUP(N270,POA!$A$2:$F$25,4,0))","v":""},{"$f":"IF(ISERROR(VLOOKUP(L270,POA!$A$2:$C$25,2,0)),\"\",VLOOKUP(L270,POA!$A$2:$C$25,2,0))","v":""},null,{"$f":"IF(L270=0,\"\",IF(Q265>=$R$9,\"HABIL\",\"NO HABIL\"))","v":""},null,"",{"$f":"IF(ISERROR(VLOOKUP(N270,POA!$A$2:$F$25,5,0)),\"\",VLOOKUP(N270,POA!$A$2:$F$25,5,0))","v":""},null,"",null,0,"MIPYME",null,"",null,""]
[null,"",null,null,{"$f":"IF(ISERROR(VLOOKUP(C271,#REF!,2,0)),\"\",VLOOKUP(C271,#REF!,2,0))","v":""},null,{"$f":"IF(ISERROR(VLOOKUP(C271,#REF!,4,0)),\"\",VLOOKUP(C271,#REF!,4,0))","v":""},null,0,null,null,null,{"$f":"IF(ISERROR(VLOOKUP(L271,POA!$A$2:$C$25,3,0)),\"\",VLOOKUP(L271,POA!$A$2:$C$25,3,0))","v":""},null,{"$f":"IF(ISERROR(VLOOKUP(N271,POA!$A$2:$F$25,4,0)),\"\",VLOOKUP(N271,POA!$A$2:$F$25,4,0))","v":""},{"$f":"IF(ISERROR(VLOOKUP(L271,POA!$A$2:$C$25,2,0)),\"\",VLOOKUP(L271,POA!$A$2:$C$25,2,0))","v":""},null,{"$f":"IF(L271=0,\"\",IF(Q265>=$R$9,\"HABIL\",\"NO HABIL\"))","v":""},null,"",{"$f":"IF(ISERROR(VLOOKUP(N271,POA!$A$2:$F$25,5,0)),\"\",VLOOKUP(N271,POA!$A$2:$F$25,5,0))","v":""},null,"",null,0,"MIPYME",null,"",null,""]
[null,{"$f":"IF(C272=\"\",\"\",B271+0.1)","v":""},null,null,{"$f":"IF(ISERROR(VLOOKUP(C272,#REF!,2,0)),\"\",VLOOKUP(C272,#REF!,2,0))","v":""},null,{"$f":"IF(ISERROR(VLOOKUP(C272,#REF!,4,0)),\"\",VLOOKUP(C272,#REF!,4,0))","v":""},null,{"$f":"IF(ISERROR(F272-H272),\"\",F272-H272)","v":0},null,null,null,{"$f":"IF(ISERROR(VLOOKUP(L272,POA!$A$2:$C$25,3,0)),\"\",VLOOKUP(L272,POA!$A$2:$C$25,3,0))","v":""},null,{"$f":"IF(ISERROR(VLOOKUP(N272,POA!$A$2:$F$25,4,0)),\"\",VLOOKUP(N272,POA!$A$2:$F$25,4,0))","v":""},{"$f":"IF(ISERROR(VLOOKUP(L272,POA!$A$2:$C$25,2,0)),\"\",VLOOKUP(L272,POA!$A$2:$C$25,2,0))","v":""},null,{"$f":"IF(L272=0,\"\",IF(Q265>=$R$9,\"HABIL\",\"NO HABIL\"))","v":""},null,"",{"$f":"IF(ISERROR(VLOOKUP(N272,POA!$A$2:$F$25,5,0)),\"\",VLOOKUP(N272,POA!$A$2:$F$25,5,0))","v":""},null,"",null,0,"MIPYME",null,"",null,""]
[null,{"$f":"IF(C273=\"\",\"\",B272+0.1)","v":""},null,null,{"$f":"IF(ISERROR(VLOOKUP(C273,#REF!,2,0)),\"\",VLOOKUP(C273,#REF!,2,0))","v":""},null,{"$f":"IF(ISERROR(VLOOKUP(C273,#REF!,4,0)),\"\",VLOOKUP(C273,#REF!,4,0))","v":""},null,{"$f":"IF(ISERROR(F273-H273),\"\",F273-H273)","v":0},null,null,null,{"$f":"IF(ISERROR(VLOOKUP(L273,POA!$A$2:$C$25,3,0)),\"\",VLOOKUP(L273,POA!$A$2:$C$25,3,0))","v":""},null,{"$f":"IF(ISERROR(VLOOKUP(N273,POA!$A$2:$F$25,4,0)),\"\",VLOOKUP(N273,POA!$A$2:$F$25,4,0))","v":""},{"$f":"IF(ISERROR(VLOOKUP(L273,POA!$A$2:$C$25,2,0)),\"\",VLOOKUP(L273,POA!$A$2:$C$25,2,0))","v":""},null,{"$f":"IF(L273=0,\"\",IF(Q265>=$R$9,\"HABIL\",\"NO HABIL\"))","v":""},null,"",{"$f":"IF(ISERROR(VLOOKUP(N273,POA!$A$2:$F$25,5,0)),\"\",VLOOKUP(N273,POA!$A$2:$F$25,5,0))","v":""},null,"",null,0,"MIPYME",null,"",null,""]
[null,{"$f":"IF(C274=\"\",\"\",B273+0.1)","v":""},null,null,{"$f":"IF(ISERROR(VLOOKUP(C274,#REF!,2,0)),\"\",VLOOKUP(C274,#REF!,2,0))","v":""},null,{"$f":"IF(ISERROR(VLOOKUP(C274,#REF!,4,0)),\"\",VLOOKUP(C274,#REF!,4,0))","v":""},null,{"$f":"IF(ISERROR(F274-H274),\"\",F274-H274)","v":0},null,null,null,{"$f":"IF(ISERROR(VLOOKUP(L274,POA!$A$2:$C$25,3,0)),\"\",VLOOKUP(L274,POA!$A$2:$C$25,3,0))","v":""},null,{"$f":"IF(ISERROR(VLOOKUP(N274,POA!$A$2:$F$25,4,0)),\"\",VLOOKUP(N274,POA!$A$2:$F$25,4,0))","v":""},{"$f":"IF(ISERROR(VLOOKUP(L274,POA!$A$2:$C$25,2,0)),\"\",VLOOKUP(L274,POA!$A$2:$C$25,2,0))","v":""},null,{"$f":"IF(L274=0,\"\",IF(Q265>=$R$9,\"HABIL\",\"NO HABIL\"))","v":""},null,"",{"$f":"IF(ISERROR(VLOOKUP(N274,POA!$A$2:$F$25,5,0)),\"\",VLOOKUP(N274,POA!$A$2:$F$25,5,0))","v":""},null,"",null,0,"MIPYME",null,"",null,""]
[null,{"$f":"IF(C275=\"\",\"\",B274+0.1)","v":""},null,null,{"$f":"IF(ISERROR(VLOOKUP(C275,#REF!,2,0)),\"\",VLOOKUP(C275,#REF!,2,0))","v":""},null,{"$f":"IF(ISERROR(VLOOKUP(C275,#REF!,4,0)),\"\",VLOOKUP(C275,#REF!,4,0))","v":""},null,{"$f":"IF(ISERROR(F275-H275),\"\",F275-H275)","v":0},null,null,null,{"$f":"IF(ISERROR(VLOOKUP(L275,POA!$A$2:$C$25,3,0)),\"\",VLOOKUP(L275,POA!$A$2:$C$25,3,0))","v":""},null,{"$f":"IF(ISERROR(VLOOKUP(N275,POA!$A$2:$F$25,4,0)),\"\",VLOOKUP(N275,POA!$A$2:$F$25,4,0))","v":""},{"$f":"IF(ISERROR(VLOOKUP(L275,POA!$A$2:$C$25,2,0)),\"\",VLOOKUP(L275,POA!$A$2:$C$25,2,0))","v":""},null,{"$f":"IF(L275=0,\"\",IF(Q265>=$R$9,\"HABIL\",\"NO HABIL\"))","v":""},null,"",{"$f":"IF(ISERROR(VLOOKUP(N275,POA!$A$2:$F$25,5,0)),\"\",VLOOKUP(N275,POA!$A$2:$F$25,5,0))","v":""},null,"",null,{"$f":"IF(ISERROR(F275/$Z$9),\"\",F275/$Z$9)","v":0},"MIPYME",null,"",null,""]
[null,25,"GUSTAVO VELANDIA POVEDA",{"$f":"IF(SUM(D277:D286)=0,\"\",SUM(D277:D286))","v":1},{"$f":"SUM(E277:E286)","v":8644309114},{"$f":"SUM(F277:F286)","v":13404947114},{"$f":"SUM(G277:G286)","v":2884657125},{"$f":"SUM(H277:H286)","v":8133378611},{"$f":"+F276-H276","v":5271568503},{"$f":"SUM(J277:J286)","v":1480897003},{"$f":"SUM(K277:K286)","v":0},1,{"$f":"IF(ISERROR(VLOOKUP(L276,POA!$A$2:$C$25,3,0)),\"\",VLOOKUP(L276,POA!$A$2:$C$25,3,0))","v":3}," ",{"$f":"+SUM(O277:O286)","v":0},{"$f":"IF(ISERROR(VLOOKUP(L276,POA!$A$2:$C$25,2,0)),\"\",VLOOKUP(L276,POA!$A$2:$C$25,2,0))","v":4167150295},{"$f":"SUM(E276/G276)","v":2.9966504646544432},{"$f":"IF(Q276=0,\"\",IF(Q276>=$R$9,\"HABIL\",\"NO HABIL\"))","v":"HABIL"},{"$f":"SUM(H276/F276)","v":0.60674455048804898},{"$f":"IF(S276=0,\"\",IF(S276<=$T$9,\"HABIL\",\"NO HABIL\"))","v":"HABIL"},{"$f":"+SUM(U277:U286)","v":0},null,"HABIL",{"$f":"IF(R276=0,\"\",IF(R276=\"NO HABIL\",\"NO HABIL\",IF(T276=\"NO HABIL\",\"NO HABIL\",IF(W276=\"NO HABIL\",\"NO HABIL\",IF(W276=\"NO HABIL\",\"NO HABIL\",\"HABIL\")))))","v":"HABIL"},null,null,{"$f":"SUM(J276/I276)","v":0.28092151361729162},{"$f":"IF(AA276=0,\"\",IF(AA276>=$AB$9,\"HABIL\",\"NO HABIL\"))","v":"HABIL"},{"$f":"SUM(J276/F276)","v":0.11047391611514566},{"$f":"IF(AC276=0,\"\",IF(AC276>=$AD$9,\"HABIL\",\"NO HABIL\"))","v":"HABIL"},{"$f":"IF(AB276=0,\"\",IF(AB276=\"NO HABIL\",\"NO HABIL\",IF(AD276=\"NO HABIL\",\"NO HABIL\",IF(AD276=\"NO HABIL\",\"NO HABIL\",\"HABIL\"))))","v":"HABIL"}]
[null,{"$f":"IF(C277=\"\",\"\",B276+0.1)","v":25.1},"GUSTAVO VELANDIA POVEDA",1,8644309114,13404947114,2884657125,8133378611,{"$f":"IF(ISERROR(F277-H277),\"\",F277-H277)","v":5271568503},1480897003,0,null,{"$f":"IF(ISERROR(VLOOKUP(L277,POA!$A$2:$C$25,3,0)),\"\",VLOOKUP(L277,POA!$A$2:$C$25,3,0))","v":""}," ",{"$f":"IF(ISERROR(VLOOKUP(N277,POA!$A$2:$F$25,4,0)),\"\",VLOOKUP(N277,POA!$A$2:$F$25,4,0))","v":""},{"$f":"IF(ISERROR(VLOOKUP(L277,POA!$A$2:$C$25,2,0)),\"\",VLOOKUP(L277,POA!$A$2:$C$25,2,0))","v":""},null,{"$f":"IF(Q277=0,\"\",IF(Q276>=$R$9,\"HABIL\",\"NO HABIL\"))","v":""},null,{"$f":"IF(S277=0,\"\",IF(S277<=$T$9,\"HABIL\",\"NO HABIL\"))","v":""},{"$f":"IF(ISERROR(VLOOKUP(N277,POA!$A$2:$F$25,5,0)),\"\",VLOOKUP(N277,POA!$A$2:$F$25,5,0))","v":""},null,{"$f":"IF(V277=0,\"\",IF(V277>=$W$9,\"HABIL\",\"NO HABIL\"))","v":""},null,{"$f":"IF(ISERROR(F277/$Z$9),\"\",F277/$Z$9)","v":23654.397589553555},{"$f":"+IF(Y277<$Z$10,\"MIPYME\",\"NO CUMPLE\")","v":"MIPYME"},null,{"$f":"IF(AA277=0,\"\",IF(AA277>=$AB$9,\"HABIL\",\"NO HABIL\"))","v":""},null,{"$f":"IF(AC277=0,\"\",IF(AC277>=$AD$9,\"HABIL\",\"NO HABIL\"))","v":""}]
[null,"",null,null,null,null,null,null,{"$f":"IF(ISERROR(F278-H278),\"\",F278-H278)","v":0},null,null,null,{"$f":"IF(ISERROR(VLOOKUP(L278,POA!$A$2:$C$25,3,0)),\"\",VLOOKUP(L278,POA!$A$2:$C$25,3,0))","v":""}," ",{"$f":"IF(ISERROR(VLOOKUP(N278,POA!$A$2:$F$25,4,0)),\"\",VLOOKUP(N278,POA!$A$2:$F$25,4,0))","v":""},{"$f":"IF(ISERROR(VLOOKUP(L278,POA!$A$2:$C$25,2,0)),\"\",VLOOKUP(L278,POA!$A$2:$C$25,2,0))","v":""},null,{"$f":"IF(Q278=0,\"\",IF(Q276>=$R$9,\"HABIL\",\"NO HABIL\"))","v":""},null,"",{"$f":"IF(ISERROR(VLOOKUP(N278,POA!$A$2:$F$25,5,0)),\"\",VLOOKUP(N278,POA!$A$2:$F$25,5,0))","v":""},null,"",null,{"$f":"IF(ISERROR(F278/$Z$9),\"\",F278/$Z$9)","v":0},{"$f":"+IF(Y278<$Z$10,\"MIPYME\",\"NO CUMPLE\")","v":"MIPYME"},null,"",null,""]
[null,"",null,null,null,null,null,null,0,null,null,null,{"$f":"IF(ISERROR(VLOOKUP(L279,POA!$A$2:$C$25,3,0)),\"\",VLOOKUP(L279,POA!$A$2:$C$25,3,0))","v":""},null,{"$f":"IF(ISERROR(VLOOKUP(N279,POA!$A$2:$F$25,4,0)),\"\",VLOOKUP(N279,POA!$A$2:$F$25,4,0))","v":""},{"$f":"IF(ISERROR(VLOOKUP(L279,POA!$A$2:$C$25,2,0)),\"\",VLOOKUP(L279,POA!$A$2:$C$25,2,0))","v":""},null,{"$f":"IF(Q279=0,\"\",IF(Q276>=$R$9,\"HABIL\",\"NO HABIL\"))","v":""},null,"",{"$f":"IF(ISERROR(VLOOKUP(N279,POA!$A$2:$F$25,5,0)),\"\",VLOOKUP(N279,POA!$A$2:$F$25,5,0))","v":""},null,"",null,0,"MIPYME",null,"",null,""]
[null,"",null,null,{"$f":"IF(ISERROR(VLOOKUP(C280,#REF!,2,0)),\"\",VLOOKUP(C280,#REF!,2,0))","v":""},null,{"$f":"IF(ISERROR(VLOOKUP(C280,#REF!,4,0)),\"\",VLOOKUP(C280,#REF!,4,0))","v":""},null,0,null,null,null,{"$f":"IF(ISERROR(VLOOKUP(L280,POA!$A$2:$C$25,3,0)),\"\",VLOOKUP(L280,POA!$A$2:$C$25,3,0))","v":""},null,{"$f":"IF(ISERROR(VLOOKUP(N280,POA!$A$2:$F$25,4,0)),\"\",VLOOKUP(N280,POA!$A$2:$F$25,4,0))","v":""},{"$f":"IF(ISERROR(VLOOKUP(L280,POA!$A$2:$C$25,2,0)),\"\",VLOOKUP(L280,POA!$A$2:$C$25,2,0))","v":""},null,{"$f":"IF(L280=0,\"\",IF(Q276>=$R$9,\"HABIL\",\"NO HABIL\"))","v":""},null,"",{"$f":"IF(ISERROR(VLOOKUP(N280,POA!$A$2:$F$25,5,0)),\"\",VLOOKUP(N280,POA!$A$2:$F$25,5,0))","v":""},null,"",null,0,"MIPYME",null,"",null,""]
[null,"",null,null,{"$f":"IF(ISERROR(VLOOKUP(C281,#REF!,2,0)),\"\",VLOOKUP(C281,#REF!,2,0))","v":""},null,{"$f":"IF(ISERROR(VLOOKUP(C281,#REF!,4,0)),\"\",VLOOKUP(C281,#REF!,4,0))","v":""},null,0,null,null,null,{"$f":"IF(ISERROR(VLOOKUP(L281,POA!$A$2:$C$25,3,0)),\"\",VLOOKUP(L281,POA!$A$2:$C$25,3,0))","v":""},null,{"$f":"IF(ISERROR(VLOOKUP(N281,POA!$A$2:$F$25,4,0)),\"\",VLOOKUP(N281,POA!$A$2:$F$25,4,0))","v":""},{"$f":"IF(ISERROR(VLOOKUP(L281,POA!$A$2:$C$25,2,0)),\"\",VLOOKUP(L281,POA!$A$2:$C$25,2,0))","v":""},null,{"$f":"IF(L281=0,\"\",IF(Q276>=$R$9,\"HABIL\",\"NO HABIL\"))","v":""},null,"",{"$f":"IF(ISERROR(VLOOKUP(N281,POA!$A$2:$F$25,5,0)),\"\",VLOOKUP(N281,POA!$A$2:$F$25,5,0))","v":""},null,"",null,0,"MIPYME",null,"",null,""]
[null,"",null,null,{"$f":"IF(ISERROR(VLOOKUP(C282,#REF!,2,0)),\"\",VLOOKUP(C282,#REF!,2,0))","v":""},null,{"$f":"IF(ISERROR(VLOOKUP(C282,#REF!,4,0)),\"\",VLOOKUP(C282,#REF!,4,0))","v":""},null,0,null,null,null,{"$f":"IF(ISERROR(VLOOKUP(L282,POA!$A$2:$C$25,3,0)),\"\",VLOOKUP(L282,POA!$A$2:$C$25,3,0))","v":""},null,{"$f":"IF(ISERROR(VLOOKUP(N282,POA!$A$2:$F$25,4,0)),\"\",VLOOKUP(N282,POA!$A$2:$F$25,4,0))","v":""},{"$f":"IF(ISERROR(VLOOKUP(L282,POA!$A$2:$C$25,2,0)),\"\",VLOOKUP(L282,POA!$A$2:$C$25,2,0))","v":""},null,{"$f":"IF(L282=0,\"\",IF(Q276>=$R$9,\"HABIL\",\"NO HABIL\"))","v":""},null,"",{"$f":"IF(ISERROR(VLOOKUP(N282,POA!$A$2:$F$25,5,0)),\"\",VLOOKUP(N282,POA!$A$2:$F$25,5,0))","v":""},null,"",null,0,"MIPYME",null,"",null,""]
[null,{"$f":"IF(C283=\"\",\"\",B282+0.1)","v":""},null,null,{"$f":"IF(ISERROR(VLOOKUP(C283,#REF!,2,0)),\"\",VLOOKUP(C283,#REF!,2,0))","v":""},null,{"$f":"IF(ISERROR(VLOOKUP(C283,#REF!,4,0)),\"\",VLOOKUP(C283,#REF!,4,0))","v":""},null,{"$f":"IF(ISERROR(F283-H283),\"\",F283-H283)","v":0},null,null,null,{"$f":"IF(ISERROR(VLOOKUP(L283,POA!$A$2:$C$25,3,0)),\"\",VLOOKUP(L283,POA!$A$2:$C$25,3,0))","v":""},null,{"$f":"IF(ISERROR(VLOOKUP(N283,POA!$A$2:$F$25,4,0)),\"\",VLOOKUP(N283,POA!$A$2:$F$25,4,0))","v":""},{"$f":"IF(ISERROR(VLOOKUP(L283,POA!$A$2:$C$25,2,0)),\"\",VLOOKUP(L283,POA!$A$2:$C$25,2,0))","v":""},null,{"$f":"IF(L283=0,\"\",IF(Q276>=$R$9,\"HABIL\",\"NO HABIL\"))","v":""},null,"",{"$f":"IF(ISERROR(VLOOKUP(N283,POA!$A$2:$F$25,5,0)),\"\",VLOOKUP(N283,POA!$A$2:$F$25,5,0))","v":""},null,"",null,0,"MIPYME",null,"",null,""]
[null,{"$f":"IF(C284=\"\",\"\",B283+0.1)","v":""},null,null,{"$f":"IF(ISERROR(VLOOKUP(C284,#REF!,2,0)),\"\",VLOOKUP(C284,#REF!,2,0))","v":""},null,{"$f":"IF(ISERROR(VLOOKUP(C284,#REF!,4,0)),\"\",VLOOKUP(C284,#REF!,4,0))","v":""},null,{"$f":"IF(ISERROR(F284-H284),\"\",F284-H284)","v":0},null,null,null,{"$f":"IF(ISERROR(VLOOKUP(L284,POA!$A$2:$C$25,3,0)),\"\",VLOOKUP(L284,POA!$A$2:$C$25,3,0))","v":""},null,{"$f":"IF(ISERROR(VLOOKUP(N284,POA!$A$2:$F$25,4,0)),\"\",VLOOKUP(N284,POA!$A$2:$F$25,4,0))","v":""},{"$f":"IF(ISERROR(VLOOKUP(L284,POA!$A$2:$C$25,2,0)),\"\",VLOOKUP(L284,POA!$A$2:$C$25,2,0))","v":""},null,{"$f":"IF(L284=0,\"\",IF(Q276>=$R$9,\"HABIL\",\"NO HABIL\"))","v":""},null,"",{"$f":"IF(ISERROR(VLOOKUP(N284,POA!$A$2:$F$25,5,0)),\"\",VLOOKUP(N284,POA!$A$2:$F$25,5,0))","v":""},null,"",null,0,"MIPYME",null,"",null,""]
[null,{"$f":"IF(C285=\"\",\"\",B284+0.1)","v":""},null,null,{"$f":"IF(ISERROR(VLOOKUP(C285,#REF!,2,0)),\"\",VLOOKUP(C285,#REF!,2,0))","v":""},null,{"$f":"IF(ISERROR(VLOOKUP(C285,#REF!,4,0)),\"\",VLOOKUP(C285,#REF!,4,0))","v":""},null,{"$f":"IF(ISERROR(F285-H285),\"\",F285-H285)","v":0},null,null,null,{"$f":"IF(ISERROR(VLOOKUP(L285,POA!$A$2:$C$25,3,0)),\"\",VLOOKUP(L285,POA!$A$2:$C$25,3,0))","v":""},null,{"$f":"IF(ISERROR(VLOOKUP(N285,POA!$A$2:$F$25,4,0)),\"\",VLOOKUP(N285,POA!$A$2:$F$25,4,0))","v":""},{"$f":"IF(ISERROR(VLOOKUP(L285,POA!$A$2:$C$25,2,0)),\"\",VLOOKUP(L285,POA!$A$2:$C$25,2,0))","v":""},null,{"$f":"IF(L285=0,\"\",IF(Q276>=$R$9,\"HABIL\",\"NO HABIL\"))","v":""},null,"",{"$f":"IF(ISERROR(VLOOKUP(N285,POA!$A$2:$F$25,5,0)),\"\",VLOOKUP(N285,POA!$A$2:$F$25,5,0))","v":""},null,"",null,0,"MIPYME",null,"",null,""]
[null,{"$f":"IF(C286=\"\",\"\",B285+0.1)","v":""},null,null,{"$f":"IF(ISERROR(VLOOKUP(C286,#REF!,2,0)),\"\",VLOOKUP(C286,#REF!,2,0))","v":""},null,{"$f":"IF(ISERROR(VLOOKUP(C286,#REF!,4,0)),\"\",VLOOKUP(C286,#REF!,4,0))","v":""},null,{"$f":"IF(ISERROR(F286-H286),\"\",F286-H286)","v":0},null,null,null,{"$f":"IF(ISERROR(VLOOKUP(L286,POA!$A$2:$C$25,3,0)),\"\",VLOOKUP(L286,POA!$A$2:$C$25,3,0))","v":""},null,{"$f":"IF(ISERROR(VLOOKUP(N286,POA!$A$2:$F$25,4,0)),\"\",VLOOKUP(N286,POA!$A$2:$F$25,4,0))","v":""},{"$f":"IF(ISERROR(VLOOKUP(L286,POA!$A$2:$C$25,2,0)),\"\",VLOOKUP(L286,POA!$A$2:$C$25,2,0))","v":""},null,{"$f":"IF(L286=0,\"\",IF(Q276>=$R$9,\"HABIL\",\"NO HABIL\"))","v":""},null,"",{"$f":"IF(ISERROR(VLOOKUP(N286,POA!$A$2:$F$25,5,0)),\"\",VLOOKUP(N286,POA!$A$2:$F$25,5,0))","v":""},null,"",null,{"$f":"IF(ISERROR(F286/$Z$9),\"\",F286/$Z$9)","v":0},"MIPYME",null,"",null,""]
[null,26,"UNION TEMPORAL MACROVIAS",{"$f":"IF(SUM(D288:D297)=0,\"\",SUM(D288:D297))","v":1},{"$f":"SUM(E288:E297)","v":10216818057},{"$f":"SUM(F288:F297)","v":13038150450},{"$f":"SUM(G288:G297)","v":919723954},{"$f":"SUM(H288:H297)","v":5519655475},{"$f":"+F287-H287","v":7518494975},{"$f":"SUM(J288:J297)","v":1371572565},{"$f":"SUM(K288:K297)","v":138561805},1,{"$f":"IF(ISERROR(VLOOKUP(L287,POA!$A$2:$C$25,3,0)),\"\",VLOOKUP(L287,POA!$A$2:$C$25,3,0))","v":3}," ",{"$f":"+SUM(O288:O297)","v":0},{"$f":"IF(ISERROR(VLOOKUP(L287,POA!$A$2:$C$25,2,0)),\"\",VLOOKUP(L287,POA!$A$2:$C$25,2,0))","v":4167150295},{"$f":"SUM(E287/G287)","v":11.108570144950253},{"$f":"IF(Q287=0,\"\",IF(Q287>=$R$9,\"HABIL\",\"NO HABIL\"))","v":"HABIL"},{"$f":"SUM(H287/F287)","v":0.42334650886008146},{"$f":"IF(S287=0,\"\",IF(S287<=$T$9,\"HABIL\",\"NO HABIL\"))","v":"HABIL"},{"$f":"+SUM(U288:U297)","v":0},{"$f":"SUM(J287/K287)","v":9.8986337901703862},{"$f":"IF(V287=0,\"\",IF(V287>=$W$9,\"HABIL\",\"NO HABIL\"))","v":"HABIL"},{"$f":"IF(R287=0,\"\",IF(R287=\"NO HABIL\",\"NO HABIL\",IF(T287=\"NO HABIL\",\"NO HABIL\",IF(W287=\"NO HABIL\",\"NO HABIL\",IF(W287=\"NO HABIL\",\"NO HABIL\",\"HABIL\")))))","v":"HABIL"},null,null,{"$f":"SUM(J287/I287)","v":0.18242647891109351},{"$f":"IF(AA287=0,\"\",IF(AA287>=$AB$9,\"HABIL\",\"NO HABIL\"))","v":"HABIL"},{"$f":"SUM(J287/F287)","v":0.10519686594044479},{"$f":"IF(AC287=0,\"\",IF(AC287>=$AD$9,\"HABIL\",\"NO HABIL\"))","v":"HABIL"},{"$f":"IF(AB287=0,\"\",IF(AB287=\"NO HABIL\",\"NO HABIL\",IF(AD287=\"NO HABIL\",\"NO HABIL\",IF(AD287=\"NO HABIL\",\"NO HABIL\",\"HABIL\"))))","v":"HABIL"}]
[null,{"$f":"IF(C288=\"\",\"\",B287+0.1)","v":26.1},"SIBEL INGENIERIA S.A.S.",0.34,517223834,966611679,14757283,239757283,{"$f":"IF(ISERROR(F288-H288),\"\",F288-H288)","v":726854396},16527156,845200,null,{"$f":"IF(ISERROR(VLOOKUP(L288,POA!$A$2:$C$25,3,0)),\"\",VLOOKUP(L288,POA!$A$2:$C$25,3,0))","v":""}," ",{"$f":"IF(ISERROR(VLOOKUP(N288,POA!$A$2:$F$25,4,0)),\"\",VLOOKUP(N288,POA!$A$2:$F$25,4,0))","v":""},{"$f":"IF(ISERROR(VLOOKUP(L288,POA!$A$2:$C$25,2,0)),\"\",VLOOKUP(L288,POA!$A$2:$C$25,2,0))","v":""},null,{"$f":"IF(Q288=0,\"\",IF(Q287>=$R$9,\"HABIL\",\"NO HABIL\"))","v":""},null,{"$f":"IF(S288=0,\"\",IF(S288<=$T$9,\"HABIL\",\"NO HABIL\"))","v":""},{"$f":"IF(ISERROR(VLOOKUP(N288,POA!$A$2:$F$25,5,0)),\"\",VLOOKUP(N288,POA!$A$2:$F$25,5,0))","v":""},null,{"$f":"IF(V288=0,\"\",IF(V288>=$W$9,\"HABIL\",\"NO HABIL\"))","v":""},null,{"$f":"IF(ISERROR(F288/$Z$9),\"\",F288/$Z$9)","v":1705.6849814716782},{"$f":"+IF(Y288<$Z$10,\"MIPYME\",\"NO CUMPLE\")","v":"MIPYME"},null,{"$f":"IF(AA288=0,\"\",IF(AA288>=$AB$9,\"HABIL\",\"NO HABIL\"))","v":""},null,{"$f":"IF(AC288=0,\"\",IF(AC288>=$AD$9,\"HABIL\",\"NO HABIL\"))","v":""}]
[null,26.200000000000003,"MILTON RIVERA RINCON",0.33,7919607295,9840759163,880018349,4846382410,4994376753,991045409,133716605,null,{"$f":"IF(ISERROR(VLOOKUP(L289,POA!$A$2:$C$25,3,0)),\"\",VLOOKUP(L289,POA!$A$2:$C$25,3,0))","v":""}," ",{"$f":"IF(ISERROR(VLOOKUP(N289,POA!$A$2:$F$25,4,0)),\"\",VLOOKUP(N289,POA!$A$2:$F$25,4,0))","v":""},{"$f":"IF(ISERROR(VLOOKUP(L289,POA!$A$2:$C$25,2,0)),\"\",VLOOKUP(L289,POA!$A$2:$C$25,2,0))","v":""},null,{"$f":"IF(Q289=0,\"\",IF(Q287>=$R$9,\"HABIL\",\"NO HABIL\"))","v":""},null,"",{"$f":"IF(ISERROR(VLOOKUP(N289,POA!$A$2:$F$25,5,0)),\"\",VLOOKUP(N289,POA!$A$2:$F$25,5,0))","v":""},null,"",null,{"$f":"IF(ISERROR(F289/$Z$9),\"\",F289/$Z$9)","v":17365.024109758251},{"$f":"+IF(Y289<$Z$10,\"MIPYME\",\"NO CUMPLE\")","v":"MIPYME"},null,"",null,""]
[null,26.300000000000004,"YEBRAIL CADENA LOZANO",0.33,1779986928,2230779608,24948322,433515782,1797263826,364000000,4000000,null,{"$f":"IF(ISERROR(VLOOKUP(L290,POA!$A$2:$C$25,3,0)),\"\",VLOOKUP(L290,POA!$A$2:$C$25,3,0))","v":""},null,{"$f":"IF(ISERROR(VLOOKUP(N290,POA!$A$2:$F$25,4,0)),\"\",VLOOKUP(N290,POA!$A$2:$F$25,4,0))","v":""},{"$f":"IF(ISERROR(VLOOKUP(L290,POA!$A$2:$C$25,2,0)),\"\",VLOOKUP(L290,POA!$A$2:$C$25,2,0))","v":""},null,{"$f":"IF(Q290=0,\"\",IF(Q287>=$R$9,\"HABIL\",\"NO HABIL\"))","v":""},null,"",{"$f":"IF(ISERROR(VLOOKUP(N290,POA!$A$2:$F$25,5,0)),\"\",VLOOKUP(N290,POA!$A$2:$F$25,5,0))","v":""},null,"",null,3936.4383412740426,"MIPYME",null,"",null,""]
[null,"",null,null,{"$f":"IF(ISERROR(VLOOKUP(C291,#REF!,2,0)),\"\",VLOOKUP(C291,#REF!,2,0))","v":""},null,{"$f":"IF(ISERROR(VLOOKUP(C291,#REF!,4,0)),\"\",VLOOKUP(C291,#REF!,4,0))","v":""},null,0,null,null,null,{"$f":"IF(ISERROR(VLOOKUP(L291,POA!$A$2:$C$25,3,0)),\"\",VLOOKUP(L291,POA!$A$2:$C$25,3,0))","v":""},null,{"$f":"IF(ISERROR(VLOOKUP(N291,POA!$A$2:$F$25,4,0)),\"\",VLOOKUP(N291,POA!$A$2:$F$25,4,0))","v":""},{"$f":"IF(ISERROR(VLOOKUP(L291,POA!$A$2:$C$25,2,0)),\"\",VLOOKUP(L291,POA!$A$2:$C$25,2,0))","v":""},null,{"$f":"IF(L291=0,\"\",IF(Q287>=$R$9,\"HABIL\",\"NO HABIL\"))","v":""},null,"",{"$f":"IF(ISERROR(VLOOKUP(N291,POA!$A$2:$F$25,5,0)),\"\",VLOOKUP(N291,POA!$A$2:$F$25,5,0))","v":""},null,"",null,0,"MIPYME",null,"",null,""]
[null,"",null,null,{"$f":"IF(ISERROR(VLOOKUP(C292,#REF!,2,0)),\"\",VLOOKUP(C292,#REF!,2,0))","v":""},null,{"$f":"IF(ISERROR(VLOOKUP(C292,#REF!,4,0)),\"\",VLOOKUP(C292,#REF!,4,0))","v":""},null,0,null,null,null,{"$f":"IF(ISERROR(VLOOKUP(L292,POA!$A$2:$C$25,3,0)),\"\",VLOOKUP(L292,POA!$A$2:$C$25,3,0))","v":""},null,{"$f":"IF(ISERROR(VLOOKUP(N292,POA!$A$2:$F$25,4,0)),\"\",VLOOKUP(N292,POA!$A$2:$F$25,4,0))","v":""},{"$f":"IF(ISERROR(VLOOKUP(L292,POA!$A$2:$C$25,2,0)),\"\",VLOOKUP(L292,POA!$A$2:$C$25,2,0))","v":""},null,{"$f":"IF(L292=0,\"\",IF(Q287>=$R$9,\"HABIL\",\"NO HABIL\"))","v":""},null,"",{"$f":"IF(ISERROR(VLOOKUP(N292,POA!$A$2:$F$25,5,0)),\"\",VLOOKUP(N292,POA!$A$2:$F$25,5,0))","v":""},null,"",null,0,"MIPYME",null,"",null,""]
[null,"",null,null,{"$f":"IF(ISERROR(VLOOKUP(C293,#REF!,2,0)),\"\",VLOOKUP(C293,#REF!,2,0))","v":""},null,{"$f":"IF(ISERROR(VLOOKUP(C293,#REF!,4,0)),\"\",VLOOKUP(C293,#REF!,4,0))","v":""},null,0,null,null,null,{"$f":"IF(ISERROR(VLOOKUP(L293,POA!$A$2:$C$25,3,0)),\"\",VLOOKUP(L293,POA!$A$2:$C$25,3,0))","v":""},null,{"$f":"IF(ISERROR(VLOOKUP(N293,POA!$A$2:$F$25,4,0)),\"\",VLOOKUP(N293,POA!$A$2:$F$25,4,0))","v":""},{"$f":"IF(ISERROR(VLOOKUP(L293,POA!$A$2:$C$25,2,0)),\"\",VLOOKUP(L293,POA!$A$2:$C$25,2,0))","v":""},null,{"$f":"IF(L293=0,\"\",IF(Q287>=$R$9,\"HABIL\",\"NO HABIL\"))","v":""},null,"",{"$f":"IF(ISERROR(VLOOKUP(N293,POA!$A$2:$F$25,5,0)),\"\",VLOOKUP(N293,POA!$A$2:$F$25,5,0))","v":""},null,"",null,0,"MIPYME",null,"",null,""]
[null,{"$f":"IF(C294=\"\",\"\",B293+0.1)","v":""},null,null,{"$f":"IF(ISERROR(VLOOKUP(C294,#REF!,2,0)),\"\",VLOOKUP(C294,#REF!,2,0))","v":""},null,{"$f":"IF(ISERROR(VLOOKUP(C294,#REF!,4,0)),\"\",VLOOKUP(C294,#REF!,4,0))","v":""},null,{"$f":"IF(ISERROR(F294-H294),\"\",F294-H294)","v":0},null,null,null,{"$f":"IF(ISERROR(VLOOKUP(L294,POA!$A$2:$C$25,3,0)),\"\",VLOOKUP(L294,POA!$A$2:$C$25,3,0))","v":""},null,{"$f":"IF(ISERROR(VLOOKUP(N294,POA!$A$2:$F$25,4,0)),\"\",VLOOKUP(N294,POA!$A$2:$F$25,4,0))","v":""},{"$f":"IF(ISERROR(VLOOKUP(L294,POA!$A$2:$C$25,2,0)),\"\",VLOOKUP(L294,POA!$A$2:$C$25,2,0))","v":""},null,{"$f":"IF(L294=0,\"\",IF(Q287>=$R$9,\"HABIL\",\"NO HABIL\"))","v":""},null,"",{"$f":"IF(ISERROR(VLOOKUP(N294,POA!$A$2:$F$25,5,0)),\"\",VLOOKUP(N294,POA!$A$2:$F$25,5,0))","v":""},null,"",null,0,"MIPYME",null,"",null,""]
[null,{"$f":"IF(C295=\"\",\"\",B294+0.1)","v":""},null,null,{"$f":"IF(ISERROR(VLOOKUP(C295,#REF!,2,0)),\"\",VLOOKUP(C295,#REF!,2,0))","v":""},null,{"$f":"IF(ISERROR(VLOOKUP(C295,#REF!,4,0)),\"\",VLOOKUP(C295,#REF!,4,0))","v":""},null,{"$f":"IF(ISERROR(F295-H295),\"\",F295-H295)","v":0},null,null,null,{"$f":"IF(ISERROR(VLOOKUP(L295,POA!$A$2:$C$25,3,0)),\"\",VLOOKUP(L295,POA!$A$2:$C$25,3,0))","v":""},null,{"$f":"IF(ISERROR(VLOOKUP(N295,POA!$A$2:$F$25,4,0)),\"\",VLOOKUP(N295,POA!$A$2:$F$25,4,0))","v":""},{"$f":"IF(ISERROR(VLOOKUP(L295,POA!$A$2:$C$25,2,0)),\"\",VLOOKUP(L295,POA!$A$2:$C$25,2,0))","v":""},null,{"$f":"IF(L295=0,\"\",IF(Q287>=$R$9,\"HABIL\",\"NO HABIL\"))","v":""},null,"",{"$f":"IF(ISERROR(VLOOKUP(N295,POA!$A$2:$F$25,5,0)),\"\",VLOOKUP(N295,POA!$A$2:$F$25,5,0))","v":""},null,"",null,0,"MIPYME",null,"",null,""]
[null,{"$f":"IF(C296=\"\",\"\",B295+0.1)","v":""},null,null,{"$f":"IF(ISERROR(VLOOKUP(C296,#REF!,2,0)),\"\",VLOOKUP(C296,#REF!,2,0))","v":""},null,{"$f":"IF(ISERROR(VLOOKUP(C296,#REF!,4,0)),\"\",VLOOKUP(C296,#REF!,4,0))","v":""},null,{"$f":"IF(ISERROR(F296-H296),\"\",F296-H296)","v":0},null,null,null,{"$f":"IF(ISERROR(VLOOKUP(L296,POA!$A$2:$C$25,3,0)),\"\",VLOOKUP(L296,POA!$A$2:$C$25,3,0))","v":""},null,{"$f":"IF(ISERROR(VLOOKUP(N296,POA!$A$2:$F$25,4,0)),\"\",VLOOKUP(N296,POA!$A$2:$F$25,4,0))","v":""},{"$f":"IF(ISERROR(VLOOKUP(L296,POA!$A$2:$C$25,2,0)),\"\",VLOOKUP(L296,POA!$A$2:$C$25,2,0))","v":""},null,{"$f":"IF(L296=0,\"\",IF(Q287>=$R$9,\"HABIL\",\"NO HABIL\"))","v":""},null,"",{"$f":"IF(ISERROR(VLOOKUP(N296,POA!$A$2:$F$25,5,0)),\"\",VLOOKUP(N296,POA!$A$2:$F$25,5,0))","v":""},null,"",null,0,"MIPYME",null,"",null,""]
[null,{"$f":"IF(C297=\"\",\"\",B296+0.1)","v":""},null,null,{"$f":"IF(ISERROR(VLOOKUP(C297,#REF!,2,0)),\"\",VLOOKUP(C297,#REF!,2,0))","v":""},null,{"$f":"IF(ISERROR(VLOOKUP(C297,#REF!,4,0)),\"\",VLOOKUP(C297,#REF!,4,0))","v":""},null,{"$f":"IF(ISERROR(F297-H297),\"\",F297-H297)","v":0},null,null,null,{"$f":"IF(ISERROR(VLOOKUP(L297,POA!$A$2:$C$25,3,0)),\"\",VLOOKUP(L297,POA!$A$2:$C$25,3,0))","v":""},null,{"$f":"IF(ISERROR(VLOOKUP(N297,POA!$A$2:$F$25,4,0)),\"\",VLOOKUP(N297,POA!$A$2:$F$25,4,0))","v":""},{"$f":"IF(ISERROR(VLOOKUP(L297,POA!$A$2:$C$25,2,0)),\"\",VLOOKUP(L297,POA!$A$2:$C$25,2,0))","v":""},null,{"$f":"IF(L297=0,\"\",IF(Q287>=$R$9,\"HABIL\",\"NO HABIL\"))","v":""},null,"",{"$f":"IF(ISERROR(VLOOKUP(N297,POA!$A$2:$F$25,5,0)),\"\",VLOOKUP(N297,POA!$A$2:$F$25,5,0))","v":""},null,"",null,{"$f":"IF(ISERROR(F297/$Z$9),\"\",F297/$Z$9)","v":0},"MIPYME",null,"",null,""]
[null,27,"CONSORCIO LOS PATIOS 2014",{"$f":"IF(SUM(D299:D308)=0,\"\",SUM(D299:D308))","v":1},{"$f":"SUM(E299:E308)","v":2587802095},{"$f":"SUM(F299:F308)","v":4516003005},{"$f":"SUM(G299:G308)","v":89670455},{"$f":"SUM(H299:H308)","v":1873162698},{"$f":"+F298-H298","v":2642840307},{"$f":"SUM(J299:J308)","v":302710528},{"$f":"SUM(K299:K308)","v":1292140},1,{"$f":"IF(ISERROR(VLOOKUP(L298,POA!$A$2:$C$25,3,0)),\"\",VLOOKUP(L298,POA!$A$2:$C$25,3,0))","v":3}," ",{"$f":"+SUM(O299:O308)","v":0},{"$f":"IF(ISERROR(VLOOKUP(L298,POA!$A$2:$C$25,2,0)),\"\",VLOOKUP(L298,POA!$A$2:$C$25,2,0))","v":4167150295},{"$f":"SUM(E298/G298)","v":28.859027145563161},{"$f":"IF(Q298=0,\"\",IF(Q298>=$R$9,\"HABIL\",\"NO HABIL\"))","v":"HABIL"},{"$f":"SUM(H298/F298)","v":0.41478331522943707},{"$f":"IF(S298=0,\"\",IF(S298<=$T$9,\"HABIL\",\"NO HABIL\"))","v":"HABIL"},{"$f":"+SUM(U299:U308)","v":0},{"$f":"SUM(J298/K298)","v":234.27068893463556},{"$f":"IF(V298=0,\"\",IF(V298>=$W$9,\"HABIL\",\"NO HABIL\"))","v":"HABIL"},{"$f":"IF(R298=0,\"\",IF(R298=\"NO HABIL\",\"NO HABIL\",IF(T298=\"NO HABIL\",\"NO HABIL\",IF(W298=\"NO HABIL\",\"NO HABIL\",IF(W298=\"NO HABIL\",\"NO HABIL\",\"HABIL\")))))","v":"HABIL"},null,null,{"$f":"SUM(J298/I298)","v":0.1145398483586848},{"$f":"IF(AA298=0,\"\",IF(AA298>=$AB$9,\"HABIL\",\"NO HABIL\"))","v":"HABIL"},{"$f":"SUM(J298/F298)","v":6.7030630330592533E-2},{"$f":"IF(AC298=0,\"\",IF(AC298>=$AD$9,\"HABIL\",\"NO HABIL\"))","v":"HABIL"},{"$f":"IF(AB298=0,\"\",IF(AB298=\"NO HABIL\",\"NO HABIL\",IF(AD298=\"NO HABIL\",\"NO HABIL\",IF(AD298=\"NO HABIL\",\"NO HABIL\",\"HABIL\"))))","v":"HABIL"}]
[null,{"$f":"IF(C299=\"\",\"\",B298+0.1)","v":27.1},"S Y M INGENIERIA S.A.S.",0.4,1946412532,3174237780,48037506,1659778547,{"$f":"IF(ISERROR(F299-H299),\"\",F299-H299)","v":1514459233},132823340,1292140,null,{"$f":"IF(ISERROR(VLOOKUP(L299,POA!$A$2:$C$25,3,0)),\"\",VLOOKUP(L299,POA!$A$2:$C$25,3,0))","v":""}," ",{"$f":"IF(ISERROR(VLOOKUP(N299,POA!$A$2:$F$25,4,0)),\"\",VLOOKUP(N299,POA!$A$2:$F$25,4,0))","v":""},{"$f":"IF(ISERROR(VLOOKUP(L299,POA!$A$2:$C$25,2,0)),\"\",VLOOKUP(L299,POA!$A$2:$C$25,2,0))","v":""},null,{"$f":"IF(Q299=0,\"\",IF(Q298>=$R$9,\"HABIL\",\"NO HABIL\"))","v":""},null,{"$f":"IF(S299=0,\"\",IF(S299<=$T$9,\"HABIL\",\"NO HABIL\"))","v":""},{"$f":"IF(ISERROR(VLOOKUP(N299,POA!$A$2:$F$25,5,0)),\"\",VLOOKUP(N299,POA!$A$2:$F$25,5,0))","v":""},null,{"$f":"IF(V299=0,\"\",IF(V299>=$W$9,\"HABIL\",\"NO HABIL\"))","v":""},null,{"$f":"IF(ISERROR(F299/$Z$9),\"\",F299/$Z$9)","v":5601.2665960825834},{"$f":"+IF(Y299<$Z$10,\"MIPYME\",\"NO CUMPLE\")","v":"MIPYME"},null,{"$f":"IF(AA299=0,\"\",IF(AA299>=$AB$9,\"HABIL\",\"NO HABIL\"))","v":""},null,{"$f":"IF(AC299=0,\"\",IF(AC299>=$AD$9,\"HABIL\",\"NO HABIL\"))","v":""}]
[null,27.200000000000003,"MACIAS MORA Y CIA. S. EN C.S.",0.4,420106867,451990819,32844949,204596151,247394668,109691027,0,null,{"$f":"IF(ISERROR(VLOOKUP(L300,POA!$A$2:$C$25,3,0)),\"\",VLOOKUP(L300,POA!$A$2:$C$25,3,0))","v":""}," ",{"$f":"IF(ISERROR(VLOOKUP(N300,POA!$A$2:$F$25,4,0)),\"\",VLOOKUP(N300,POA!$A$2:$F$25,4,0))","v":""},{"$f":"IF(ISERROR(VLOOKUP(L300,POA!$A$2:$C$25,2,0)),\"\",VLOOKUP(L300,POA!$A$2:$C$25,2,0))","v":""},null,{"$f":"IF(Q300=0,\"\",IF(Q298>=$R$9,\"HABIL\",\"NO HABIL\"))","v":""},null,"",{"$f":"IF(ISERROR(VLOOKUP(N300,POA!$A$2:$F$25,5,0)),\"\",VLOOKUP(N300,POA!$A$2:$F$25,5,0))","v":""},null,"",null,{"$f":"IF(ISERROR(F300/$Z$9),\"\",F300/$Z$9)","v":797.5839403564496},{"$f":"+IF(Y300<$Z$10,\"MIPYME\",\"NO CUMPLE\")","v":"MIPYME"},null,"",null,""]
[null,27.300000000000004,"ESTEBAN MACIAS VARGAS",0.2,221282696,889774406,8788000,8788000,880986406,60196161,0,null,{"$f":"IF(ISERROR(VLOOKUP(L301,POA!$A$2:$C$25,3,0)),\"\",VLOOKUP(L301,POA!$A$2:$C$25,3,0))","v":""},null,{"$f":"IF(ISERROR(VLOOKUP(N301,POA!$A$2:$F$25,4,0)),\"\",VLOOKUP(N301,POA!$A$2:$F$25,4,0))","v":""},{"$f":"IF(ISERROR(VLOOKUP(L301,POA!$A$2:$C$25,2,0)),\"\",VLOOKUP(L301,POA!$A$2:$C$25,2,0))","v":""},null,{"$f":"IF(Q301=0,\"\",IF(Q298>=$R$9,\"HABIL\",\"NO HABIL\"))","v":""},null,"",{"$f":"IF(ISERROR(VLOOKUP(N301,POA!$A$2:$F$25,5,0)),\"\",VLOOKUP(N301,POA!$A$2:$F$25,5,0))","v":""},null,"",null,1570.0977695429681,"MIPYME",null,"",null,""]
[null,"",null,null,{"$f":"IF(ISERROR(VLOOKUP(C302,#REF!,2,0)),\"\",VLOOKUP(C302,#REF!,2,0))","v":""},null,{"$f":"IF(ISERROR(VLOOKUP(C302,#REF!,4,0)),\"\",VLOOKUP(C302,#REF!,4,0))","v":""},null,{"$f":"IF(ISERROR(F302-H302),\"\",F302-H302)","v":0},null,null,null,{"$f":"IF(ISERROR(VLOOKUP(L302,POA!$A$2:$C$25,3,0)),\"\",VLOOKUP(L302,POA!$A$2:$C$25,3,0))","v":""},null,{"$f":"IF(ISERROR(VLOOKUP(N302,POA!$A$2:$F$25,4,0)),\"\",VLOOKUP(N302,POA!$A$2:$F$25,4,0))","v":""},{"$f":"IF(ISERROR(VLOOKUP(L302,POA!$A$2:$C$25,2,0)),\"\",VLOOKUP(L302,POA!$A$2:$C$25,2,0))","v":""},null,{"$f":"IF(L302=0,\"\",IF(Q298>=$R$9,\"HABIL\",\"NO HABIL\"))","v":""},null,"",{"$f":"IF(ISERROR(VLOOKUP(N302,POA!$A$2:$F$25,5,0)),\"\",VLOOKUP(N302,POA!$A$2:$F$25,5,0))","v":""},null,"",null,0,"MIPYME",null,"",null,""]
[null,"",null,null,{"$f":"IF(ISERROR(VLOOKUP(C303,#REF!,2,0)),\"\",VLOOKUP(C303,#REF!,2,0))","v":""},null,{"$f":"IF(ISERROR(VLOOKUP(C303,#REF!,4,0)),\"\",VLOOKUP(C303,#REF!,4,0))","v":""},null,0,null,null,null,{"$f":"IF(ISERROR(VLOOKUP(L303,POA!$A$2:$C$25,3,0)),\"\",VLOOKUP(L303,POA!$A$2:$C$25,3,0))","v":""},null,{"$f":"IF(ISERROR(VLOOKUP(N303,POA!$A$2:$F$25,4,0)),\"\",VLOOKUP(N303,POA!$A$2:$F$25,4,0))","v":""},{"$f":"IF(ISERROR(VLOOKUP(L303,POA!$A$2:$C$25,2,0)),\"\",VLOOKUP(L303,POA!$A$2:$C$25,2,0))","v":""},null,{"$f":"IF(L303=0,\"\",IF(Q298>=$R$9,\"HABIL\",\"NO HABIL\"))","v":""},null,"",{"$f":"IF(ISERROR(VLOOKUP(N303,POA!$A$2:$F$25,5,0)),\"\",VLOOKUP(N303,POA!$A$2:$F$25,5,0))","v":""},null,"",null,0,"MIPYME",null,"",null,""]
[null,"",null,null,{"$f":"IF(ISERROR(VLOOKUP(C304,#REF!,2,0)),\"\",VLOOKUP(C304,#REF!,2,0))","v":""},null,{"$f":"IF(ISERROR(VLOOKUP(C304,#REF!,4,0)),\"\",VLOOKUP(C304,#REF!,4,0))","v":""},null,0,null,null,null,{"$f":"IF(ISERROR(VLOOKUP(L304,POA!$A$2:$C$25,3,0)),\"\",VLOOKUP(L304,POA!$A$2:$C$25,3,0))","v":""},null,{"$f":"IF(ISERROR(VLOOKUP(N304,POA!$A$2:$F$25,4,0)),\"\",VLOOKUP(N304,POA!$A$2:$F$25,4,0))","v":""},{"$f":"IF(ISERROR(VLOOKUP(L304,POA!$A$2:$C$25,2,0)),\"\",VLOOKUP(L304,POA!$A$2:$C$25,2,0))","v":""},null,{"$f":"IF(L304=0,\"\",IF(Q298>=$R$9,\"HABIL\",\"NO HABIL\"))","v":""},null,"",{"$f":"IF(ISERROR(VLOOKUP(N304,POA!$A$2:$F$25,5,0)),\"\",VLOOKUP(N304,POA!$A$2:$F$25,5,0))","v":""},null,"",null,0,"MIPYME",null,"",null,""]
[null,{"$f":"IF(C305=\"\",\"\",B304+0.1)","v":""},null,null,{"$f":"IF(ISERROR(VLOOKUP(C305,#REF!,2,0)),\"\",VLOOKUP(C305,#REF!,2,0))","v":""},null,{"$f":"IF(ISERROR(VLOOKUP(C305,#REF!,4,0)),\"\",VLOOKUP(C305,#REF!,4,0))","v":""},null,{"$f":"IF(ISERROR(F305-H305),\"\",F305-H305)","v":0},null,null,null,{"$f":"IF(ISERROR(VLOOKUP(L305,POA!$A$2:$C$25,3,0)),\"\",VLOOKUP(L305,POA!$A$2:$C$25,3,0))","v":""},null,{"$f":"IF(ISERROR(VLOOKUP(N305,POA!$A$2:$F$25,4,0)),\"\",VLOOKUP(N305,POA!$A$2:$F$25,4,0))","v":""},{"$f":"IF(ISERROR(VLOOKUP(L305,POA!$A$2:$C$25,2,0)),\"\",VLOOKUP(L305,POA!$A$2:$C$25,2,0))","v":""},null,{"$f":"IF(L305=0,\"\",IF(Q298>=$R$9,\"HABIL\",\"NO HABIL\"))","v":""},null,"",{"$f":"IF(ISERROR(VLOOKUP(N305,POA!$A$2:$F$25,5,0)),\"\",VLOOKUP(N305,POA!$A$2:$F$25,5,0))","v":""},null,"",null,0,"MIPYME",null,"",null,""]
[null,{"$f":"IF(C306=\"\",\"\",B305+0.1)","v":""},null,null,{"$f":"IF(ISERROR(VLOOKUP(C306,#REF!,2,0)),\"\",VLOOKUP(C306,#REF!,2,0))","v":""},null,{"$f":"IF(ISERROR(VLOOKUP(C306,#REF!,4,0)),\"\",VLOOKUP(C306,#REF!,4,0))","v":""},null,{"$f":"IF(ISERROR(F306-H306),\"\",F306-H306)","v":0},null,null,null,{"$f":"IF(ISERROR(VLOOKUP(L306,POA!$A$2:$C$25,3,0)),\"\",VLOOKUP(L306,POA!$A$2:$C$25,3,0))","v":""},null,{"$f":"IF(ISERROR(VLOOKUP(N306,POA!$A$2:$F$25,4,0)),\"\",VLOOKUP(N306,POA!$A$2:$F$25,4,0))","v":""},{"$f":"IF(ISERROR(VLOOKUP(L306,POA!$A$2:$C$25,2,0)),\"\",VLOOKUP(L306,POA!$A$2:$C$25,2,0))","v":""},null,{"$f":"IF(L306=0,\"\",IF(Q298>=$R$9,\"HABIL\",\"NO HABIL\"))","v":""},null,"",{"$f":"IF(ISERROR(VLOOKUP(N306,POA!$A$2:$F$25,5,0)),\"\",VLOOKUP(N306,POA!$A$2:$F$25,5,0))","v":""},null,"",null,0,"MIPYME",null,"",null,""]
[null,{"$f":"IF(C307=\"\",\"\",B306+0.1)","v":""},null,null,{"$f":"IF(ISERROR(VLOOKUP(C307,#REF!,2,0)),\"\",VLOOKUP(C307,#REF!,2,0))","v":""},null,{"$f":"IF(ISERROR(VLOOKUP(C307,#REF!,4,0)),\"\",VLOOKUP(C307,#REF!,4,0))","v":""},null,{"$f":"IF(ISERROR(F307-H307),\"\",F307-H307)","v":0},null,null,null,{"$f":"IF(ISERROR(VLOOKUP(L307,POA!$A$2:$C$25,3,0)),\"\",VLOOKUP(L307,POA!$A$2:$C$25,3,0))","v":""},null,{"$f":"IF(ISERROR(VLOOKUP(N307,POA!$A$2:$F$25,4,0)),\"\",VLOOKUP(N307,POA!$A$2:$F$25,4,0))","v":""},{"$f":"IF(ISERROR(VLOOKUP(L307,POA!$A$2:$C$25,2,0)),\"\",VLOOKUP(L307,POA!$A$2:$C$25,2,0))","v":""},null,{"$f":"IF(L307=0,\"\",IF(Q298>=$R$9,\"HABIL\",\"NO HABIL\"))","v":""},null,"",{"$f":"IF(ISERROR(VLOOKUP(N307,POA!$A$2:$F$25,5,0)),\"\",VLOOKUP(N307,POA!$A$2:$F$25,5,0))","v":""},null,"",null,0,"MIPYME",null,"",null,""]
[null,{"$f":"IF(C308=\"\",\"\",B307+0.1)","v":""},null,null,{"$f":"IF(ISERROR(VLOOKUP(C308,#REF!,2,0)),\"\",VLOOKUP(C308,#REF!,2,0))","v":""},null,{"$f":"IF(ISERROR(VLOOKUP(C308,#REF!,4,0)),\"\",VLOOKUP(C308,#REF!,4,0))","v":""},null,{"$f":"IF(ISERROR(F308-H308),\"\",F308-H308)","v":0},null,null,null,{"$f":"IF(ISERROR(VLOOKUP(L308,POA!$A$2:$C$25,3,0)),\"\",VLOOKUP(L308,POA!$A$2:$C$25,3,0))","v":""},null,{"$f":"IF(ISERROR(VLOOKUP(N308,POA!$A$2:$F$25,4,0)),\"\",VLOOKUP(N308,POA!$A$2:$F$25,4,0))","v":""},{"$f":"IF(ISERROR(VLOOKUP(L308,POA!$A$2:$C$25,2,0)),\"\",VLOOKUP(L308,POA!$A$2:$C$25,2,0))","v":""},null,{"$f":"IF(L308=0,\"\",IF(Q298>=$R$9,\"HABIL\",\"NO HABIL\"))","v":""},null,"",{"$f":"IF(ISERROR(VLOOKUP(N308,POA!$A$2:$F$25,5,0)),\"\",VLOOKUP(N308,POA!$A$2:$F$25,5,0))","v":""},null,"",null,{"$f":"IF(ISERROR(F308/$Z$9),\"\",F308/$Z$9)","v":0},"MIPYME",null,"",null,""]
[null,28,"SOFAN INGENIERIA S.A.S.",{"$f":"IF(SUM(D310:D319)=0,\"\",SUM(D310:D319))","v":1},{"$f":"SUM(E310:E319)","v":5803561978.6400003},{"$f":"SUM(F310:F319)","v":7850735822.8900003},{"$f":"SUM(G310:G319)","v":869346413.49000001},{"$f":"SUM(H310:H319)","v":1902335077.49},{"$f":"+F309-H309","v":5948400745.4000006},{"$f":"SUM(J310:J319)","v":1159541714.9300001},{"$f":"SUM(K310:K319)","v":68171528.400000006},1,{"$f":"IF(ISERROR(VLOOKUP(L309,POA!$A$2:$C$25,3,0)),\"\",VLOOKUP(L309,POA!$A$2:$C$25,3,0))","v":3}," ",{"$f":"+SUM(O310:O319)","v":0},{"$f":"IF(ISERROR(VLOOKUP(L309,POA!$A$2:$C$25,2,0)),\"\",VLOOKUP(L309,POA!$A$2:$C$25,2,0))","v":4167150295},{"$f":"SUM(E309/G309)","v":6.675776064160134},{"$f":"IF(Q309=0,\"\",IF(Q309>=$R$9,\"HABIL\",\"NO HABIL\"))","v":"HABIL"},{"$f":"SUM(H309/F309)","v":0.24231296535841343},{"$f":"IF(S309=0,\"\",IF(S309<=$T$9,\"HABIL\",\"NO HABIL\"))","v":"HABIL"},{"$f":"+SUM(U310:U319)","v":0},{"$f":"SUM(J309/K309)","v":17.009178789806917},{"$f":"IF(V309=0,\"\",IF(V309>=$W$9,\"HABIL\",\"NO HABIL\"))","v":"HABIL"},{"$f":"IF(R309=0,\"\",IF(R309=\"NO HABIL\",\"NO HABIL\",IF(T309=\"NO HABIL\",\"NO HABIL\",IF(W309=\"NO HABIL\",\"NO HABIL\",IF(W309=\"NO HABIL\",\"NO HABIL\",\"HABIL\")))))","v":"HABIL"},null,null,{"$f":"SUM(J309/I309)","v":0.19493335512518947},{"$f":"IF(AA309=0,\"\",IF(AA309>=$AB$9,\"HABIL\",\"NO HABIL\"))","v":"HABIL"},{"$f":"SUM(J309/F309)","v":0.14769847579754014},{"$f":"IF(AC309=0,\"\",IF(AC309>=$AD$9,\"HABIL\",\"NO HABIL\"))","v":"HABIL"},{"$f":"IF(AB309=0,\"\",IF(AB309=\"NO HABIL\",\"NO HABIL\",IF(AD309=\"NO HABIL\",\"NO HABIL\",IF(AD309=\"NO HABIL\",\"NO HABIL\",\"HABIL\"))))","v":"HABIL"}]
[null,{"$f":"IF(C310=\"\",\"\",B309+0.1)","v":28.1},"SOFAN INGENIERIA S.A.S.",1,5803561978.6400003,7850735822.8900003,869346413.49000001,1902335077.49,{"$f":"IF(ISERROR(F310-H310),\"\",F310-H310)","v":5948400745.4000006},1159541714.9300001,68171528.400000006,null,{"$f":"IF(ISERROR(VLOOKUP(L310,POA!$A$2:$C$25,3,0)),\"\",VLOOKUP(L310,POA!$A$2:$C$25,3,0))","v":""}," ",{"$f":"IF(ISERROR(VLOOKUP(N310,POA!$A$2:$F$25,4,0)),\"\",VLOOKUP(N310,POA!$A$2:$F$25,4,0))","v":""},{"$f":"IF(ISERROR(VLOOKUP(L310,POA!$A$2:$C$25,2,0)),\"\",VLOOKUP(L310,POA!$A$2:$C$25,2,0))","v":""},null,{"$f":"IF(Q310=0,\"\",IF(Q309>=$R$9,\"HABIL\",\"NO HABIL\"))","v":""},null,{"$f":"IF(S310=0,\"\",IF(S310<=$T$9,\"HABIL\",\"NO HABIL\"))","v":""},{"$f":"IF(ISERROR(VLOOKUP(N310,POA!$A$2:$F$25,5,0)),\"\",VLOOKUP(N310,POA!$A$2:$F$25,5,0))","v":""},null,{"$f":"IF(V310=0,\"\",IF(V310>=$W$9,\"HABIL\",\"NO HABIL\"))","v":""},null,{"$f":"IF(ISERROR(F310/$Z$9),\"\",F310/$Z$9)","v":13853.424780112935},{"$f":"+IF(Y310<$Z$10,\"MIPYME\",\"NO CUMPLE\")","v":"MIPYME"},null,{"$f":"IF(AA310=0,\"\",IF(AA310>=$AB$9,\"HABIL\",\"NO HABIL\"))","v":""},null,{"$f":"IF(AC310=0,\"\",IF(AC310>=$AD$9,\"HABIL\",\"NO HABIL\"))","v":""}]
[null,"",null,null,null,null,null,null,null,null,null,null,{"$f":"IF(ISERROR(VLOOKUP(L311,POA!$A$2:$C$25,3,0)),\"\",VLOOKUP(L311,POA!$A$2:$C$25,3,0))","v":""}," ",{"$f":"IF(ISERROR(VLOOKUP(N311,POA!$A$2:$F$25,4,0)),\"\",VLOOKUP(N311,POA!$A$2:$F$25,4,0))","v":""},{"$f":"IF(ISERROR(VLOOKUP(L311,POA!$A$2:$C$25,2,0)),\"\",VLOOKUP(L311,POA!$A$2:$C$25,2,0))","v":""},null,{"$f":"IF(Q311=0,\"\",IF(Q309>=$R$9,\"HABIL\",\"NO HABIL\"))","v":""},null,"",{"$f":"IF(ISERROR(VLOOKUP(N311,POA!$A$2:$F$25,5,0)),\"\",VLOOKUP(N311,POA!$A$2:$F$25,5,0))","v":""},null,"",null,{"$f":"IF(ISERROR(F311/$Z$9),\"\",F311/$Z$9)","v":0},{"$f":"+IF(Y311<$Z$10,\"MIPYME\",\"NO CUMPLE\")","v":"MIPYME"},null,"",null,""]
[null,"",null,null,null,null,null,null,null,null,null,null,{"$f":"IF(ISERROR(VLOOKUP(L312,POA!$A$2:$C$25,3,0)),\"\",VLOOKUP(L312,POA!$A$2:$C$25,3,0))","v":""},null,{"$f":"IF(ISERROR(VLOOKUP(N312,POA!$A$2:$F$25,4,0)),\"\",VLOOKUP(N312,POA!$A$2:$F$25,4,0))","v":""},{"$f":"IF(ISERROR(VLOOKUP(L312,POA!$A$2:$C$25,2,0)),\"\",VLOOKUP(L312,POA!$A$2:$C$25,2,0))","v":""},null,{"$f":"IF(Q312=0,\"\",IF(Q309>=$R$9,\"HABIL\",\"NO HABIL\"))","v":""},null,"",{"$f":"IF(ISERROR(VLOOKUP(N312,POA!$A$2:$F$25,5,0)),\"\",VLOOKUP(N312,POA!$A$2:$F$25,5,0))","v":""},null,"",null,0,"MIPYME",null,"",null,""]
[null,"",null,null,{"$f":"IF(ISERROR(VLOOKUP(C313,#REF!,2,0)),\"\",VLOOKUP(C313,#REF!,2,0))","v":""},null,{"$f":"IF(ISERROR(VLOOKUP(C313,#REF!,4,0)),\"\",VLOOKUP(C313,#REF!,4,0))","v":""},null,{"$f":"IF(ISERROR(F313-H313),\"\",F313-H313)","v":0},null,null,null,{"$f":"IF(ISERROR(VLOOKUP(L313,POA!$A$2:$C$25,3,0)),\"\",VLOOKUP(L313,POA!$A$2:$C$25,3,0))","v":""},null,{"$f":"IF(ISERROR(VLOOKUP(N313,POA!$A$2:$F$25,4,0)),\"\",VLOOKUP(N313,POA!$A$2:$F$25,4,0))","v":""},{"$f":"IF(ISERROR(VLOOKUP(L313,POA!$A$2:$C$25,2,0)),\"\",VLOOKUP(L313,POA!$A$2:$C$25,2,0))","v":""},null,{"$f":"IF(L313=0,\"\",IF(Q309>=$R$9,\"HABIL\",\"NO HABIL\"))","v":""},null,"",{"$f":"IF(ISERROR(VLOOKUP(N313,POA!$A$2:$F$25,5,0)),\"\",VLOOKUP(N313,POA!$A$2:$F$25,5,0))","v":""},null,"",null,0,"MIPYME",null,"",null,""]
[null,"",null,null,{"$f":"IF(ISERROR(VLOOKUP(C314,#REF!,2,0)),\"\",VLOOKUP(C314,#REF!,2,0))","v":""},null,{"$f":"IF(ISERROR(VLOOKUP(C314,#REF!,4,0)),\"\",VLOOKUP(C314,#REF!,4,0))","v":""},null,0,null,null,null,{"$f":"IF(ISERROR(VLOOKUP(L314,POA!$A$2:$C$25,3,0)),\"\",VLOOKUP(L314,POA!$A$2:$C$25,3,0))","v":""},null,{"$f":"IF(ISERROR(VLOOKUP(N314,POA!$A$2:$F$25,4,0)),\"\",VLOOKUP(N314,POA!$A$2:$F$25,4,0))","v":""},{"$f":"IF(ISERROR(VLOOKUP(L314,POA!$A$2:$C$25,2,0)),\"\",VLOOKUP(L314,POA!$A$2:$C$25,2,0))","v":""},null,{"$f":"IF(L314=0,\"\",IF(Q309>=$R$9,\"HABIL\",\"NO HABIL\"))","v":""},null,"",{"$f":"IF(ISERROR(VLOOKUP(N314,POA!$A$2:$F$25,5,0)),\"\",VLOOKUP(N314,POA!$A$2:$F$25,5,0))","v":""},null,"",null,0,"MIPYME",null,"",null,""]
[null,"",null,null,{"$f":"IF(ISERROR(VLOOKUP(C315,#REF!,2,0)),\"\",VLOOKUP(C315,#REF!,2,0))","v":""},null,{"$f":"IF(ISERROR(VLOOKUP(C315,#REF!,4,0)),\"\",VLOOKUP(C315,#REF!,4,0))","v":""},null,0,null,null,null,{"$f":"IF(ISERROR(VLOOKUP(L315,POA!$A$2:$C$25,3,0)),\"\",VLOOKUP(L315,POA!$A$2:$C$25,3,0))","v":""},null,{"$f":"IF(ISERROR(VLOOKUP(N315,POA!$A$2:$F$25,4,0)),\"\",VLOOKUP(N315,POA!$A$2:$F$25,4,0))","v":""},{"$f":"IF(ISERROR(VLOOKUP(L315,POA!$A$2:$C$25,2,0)),\"\",VLOOKUP(L315,POA!$A$2:$C$25,2,0))","v":""},null,{"$f":"IF(L315=0,\"\",IF(Q309>=$R$9,\"HABIL\",\"NO HABIL\"))","v":""},null,"",{"$f":"IF(ISERROR(VLOOKUP(N315,POA!$A$2:$F$25,5,0)),\"\",VLOOKUP(N315,POA!$A$2:$F$25,5,0))","v":""},null,"",null,0,"MIPYME",null,"",null,""]
[null,{"$f":"IF(C316=\"\",\"\",B315+0.1)","v":""},null,null,{"$f":"IF(ISERROR(VLOOKUP(C316,#REF!,2,0)),\"\",VLOOKUP(C316,#REF!,2,0))","v":""},null,{"$f":"IF(ISERROR(VLOOKUP(C316,#REF!,4,0)),\"\",VLOOKUP(C316,#REF!,4,0))","v":""},null,{"$f":"IF(ISERROR(F316-H316),\"\",F316-H316)","v":0},null,null,null,{"$f":"IF(ISERROR(VLOOKUP(L316,POA!$A$2:$C$25,3,0)),\"\",VLOOKUP(L316,POA!$A$2:$C$25,3,0))","v":""},null,{"$f":"IF(ISERROR(VLOOKUP(N316,POA!$A$2:$F$25,4,0)),\"\",VLOOKUP(N316,POA!$A$2:$F$25,4,0))","v":""},{"$f":"IF(ISERROR(VLOOKUP(L316,POA!$A$2:$C$25,2,0)),\"\",VLOOKUP(L316,POA!$A$2:$C$25,2,0))","v":""},null,{"$f":"IF(L316=0,\"\",IF(Q309>=$R$9,\"HABIL\",\"NO HABIL\"))","v":""},null,"",{"$f":"IF(ISERROR(VLOOKUP(N316,POA!$A$2:$F$25,5,0)),\"\",VLOOKUP(N316,POA!$A$2:$F$25,5,0))","v":""},null,"",null,0,"MIPYME",null,"",null,""]
[null,{"$f":"IF(C317=\"\",\"\",B316+0.1)","v":""},null,null,{"$f":"IF(ISERROR(VLOOKUP(C317,#REF!,2,0)),\"\",VLOOKUP(C317,#REF!,2,0))","v":""},null,{"$f":"IF(ISERROR(VLOOKUP(C317,#REF!,4,0)),\"\",VLOOKUP(C317,#REF!,4,0))","v":""},null,{"$f":"IF(ISERROR(F317-H317),\"\",F317-H317)","v":0},null,null,null,{"$f":"IF(ISERROR(VLOOKUP(L317,POA!$A$2:$C$25,3,0)),\"\",VLOOKUP(L317,POA!$A$2:$C$25,3,0))","v":""},null,{"$f":"IF(ISERROR(VLOOKUP(N317,POA!$A$2:$F$25,4,0)),\"\",VLOOKUP(N317,POA!$A$2:$F$25,4,0))","v":""},{"$f":"IF(ISERROR(VLOOKUP(L317,POA!$A$2:$C$25,2,0)),\"\",VLOOKUP(L317,POA!$A$2:$C$25,2,0))","v":""},null,{"$f":"IF(L317=0,\"\",IF(Q309>=$R$9,\"HABIL\",\"NO HABIL\"))","v":""},null,"",{"$f":"IF(ISERROR(VLOOKUP(N317,POA!$A$2:$F$25,5,0)),\"\",VLOOKUP(N317,POA!$A$2:$F$25,5,0))","v":""},null,"",null,0,"MIPYME",null,"",null,""]
[null,{"$f":"IF(C318=\"\",\"\",B317+0.1)","v":""},null,null,{"$f":"IF(ISERROR(VLOOKUP(C318,#REF!,2,0)),\"\",VLOOKUP(C318,#REF!,2,0))","v":""},null,{"$f":"IF(ISERROR(VLOOKUP(C318,#REF!,4,0)),\"\",VLOOKUP(C318,#REF!,4,0))","v":""},null,{"$f":"IF(ISERROR(F318-H318),\"\",F318-H318)","v":0},null,null,null,{"$f":"IF(ISERROR(VLOOKUP(L318,POA!$A$2:$C$25,3,0)),\"\",VLOOKUP(L318,POA!$A$2:$C$25,3,0))","v":""},null,{"$f":"IF(ISERROR(VLOOKUP(N318,POA!$A$2:$F$25,4,0)),\"\",VLOOKUP(N318,POA!$A$2:$F$25,4,0))","v":""},{"$f":"IF(ISERROR(VLOOKUP(L318,POA!$A$2:$C$25,2,0)),\"\",VLOOKUP(L318,POA!$A$2:$C$25,2,0))","v":""},null,{"$f":"IF(L318=0,\"\",IF(Q309>=$R$9,\"HABIL\",\"NO HABIL\"))","v":""},null,"",{"$f":"IF(ISERROR(VLOOKUP(N318,POA!$A$2:$F$25,5,0)),\"\",VLOOKUP(N318,POA!$A$2:$F$25,5,0))","v":""},null,"",null,0,"MIPYME",null,"",null,""]
[null,{"$f":"IF(C319=\"\",\"\",B318+0.1)","v":""},null,null,{"$f":"IF(ISERROR(VLOOKUP(C319,#REF!,2,0)),\"\",VLOOKUP(C319,#REF!,2,0))","v":""},null,{"$f":"IF(ISERROR(VLOOKUP(C319,#REF!,4,0)),\"\",VLOOKUP(C319,#REF!,4,0))","v":""},null,{"$f":"IF(ISERROR(F319-H319),\"\",F319-H319)","v":0},null,null,null,{"$f":"IF(ISERROR(VLOOKUP(L319,POA!$A$2:$C$25,3,0)),\"\",VLOOKUP(L319,POA!$A$2:$C$25,3,0))","v":""},null,{"$f":"IF(ISERROR(VLOOKUP(N319,POA!$A$2:$F$25,4,0)),\"\",VLOOKUP(N319,POA!$A$2:$F$25,4,0))","v":""},{"$f":"IF(ISERROR(VLOOKUP(L319,POA!$A$2:$C$25,2,0)),\"\",VLOOKUP(L319,POA!$A$2:$C$25,2,0))","v":""},null,{"$f":"IF(L319=0,\"\",IF(Q309>=$R$9,\"HABIL\",\"NO HABIL\"))","v":""},null,"",{"$f":"IF(ISERROR(VLOOKUP(N319,POA!$A$2:$F$25,5,0)),\"\",VLOOKUP(N319,POA!$A$2:$F$25,5,0))","v":""},null,"",null,{"$f":"IF(ISERROR(F319/$Z$9),\"\",F319/$Z$9)","v":0},"MIPYME",null,"",null,""]
[null,29,"CARMELO JOAQUIN ROSALES AMELL",{"$f":"IF(SUM(D321:D330)=0,\"\",SUM(D321:D330))","v":1},{"$f":"SUM(E321:E330)","v":4499612881},{"$f":"SUM(F321:F330)","v":7931595804},{"$f":"SUM(G321:G330)","v":1532903553},{"$f":"SUM(H321:H330)","v":3089136694},{"$f":"+F320-H320","v":4842459110},{"$f":"SUM(J321:J330)","v":350786457},{"$f":"SUM(K321:K330)","v":137167269},1,{"$f":"IF(ISERROR(VLOOKUP(L320,POA!$A$2:$C$25,3,0)),\"\",VLOOKUP(L320,POA!$A$2:$C$25,3,0))","v":3}," ",{"$f":"+SUM(O321:O330)","v":0},{"$f":"IF(ISERROR(VLOOKUP(L320,POA!$A$2:$C$25,2,0)),\"\",VLOOKUP(L320,POA!$A$2:$C$25,2,0))","v":4167150295},{"$f":"SUM(E320/G320)","v":2.9353528943121967},{"$f":"IF(Q320=0,\"\",IF(Q320>=$R$9,\"HABIL\",\"NO HABIL\"))","v":"HABIL"},{"$f":"SUM(H320/F320)","v":0.38947227901377812},{"$f":"IF(S320=0,\"\",IF(S320<=$T$9,\"HABIL\",\"NO HABIL\"))","v":"HABIL"},{"$f":"+SUM(U321:U330)","v":0},{"$f":"SUM(J320/K320)","v":2.5573626970731627},{"$f":"IF(V320=0,\"\",IF(V320>=$W$9,\"HABIL\",\"NO HABIL\"))","v":"HABIL"},{"$f":"IF(R320=0,\"\",IF(R320=\"NO HABIL\",\"NO HABIL\",IF(T320=\"NO HABIL\",\"NO HABIL\",IF(W320=\"NO HABIL\",\"NO HABIL\",IF(W320=\"NO HABIL\",\"NO HABIL\",\"HABIL\")))))","v":"HABIL"},null,null,{"$f":"SUM(J320/I320)","v":7.2439735479769493E-2},{"$f":"IF(AA320=0,\"\",IF(AA320>=$AB$9,\"HABIL\",\"NO HABIL\"))","v":"HABIL"},{"$f":"SUM(J320/F320)","v":4.4226466611308426E-2},{"$f":"IF(AC320=0,\"\",IF(AC320>=$AD$9,\"HABIL\",\"NO HABIL\"))","v":"HABIL"},{"$f":"IF(AB320=0,\"\",IF(AB320=\"NO HABIL\",\"NO HABIL\",IF(AD320=\"NO HABIL\",\"NO HABIL\",IF(AD320=\"NO HABIL\",\"NO HABIL\",\"HABIL\"))))","v":"HABIL"}]
[null,{"$f":"IF(C321=\"\",\"\",B320+0.1)","v":29.1},"CARMELO JOAQUIN ROSALES AMELL",1,4499612881,7931595804,1532903553,3089136694,{"$f":"IF(ISERROR(F321-H321),\"\",F321-H321)","v":4842459110},350786457,137167269,null,{"$f":"IF(ISERROR(VLOOKUP(L321,POA!$A$2:$C$25,3,0)),\"\",VLOOKUP(L321,POA!$A$2:$C$25,3,0))","v":""}," ",{"$f":"IF(ISERROR(VLOOKUP(N321,POA!$A$2:$F$25,4,0)),\"\",VLOOKUP(N321,POA!$A$2:$F$25,4,0))","v":""},{"$f":"IF(ISERROR(VLOOKUP(L321,POA!$A$2:$C$25,2,0)),\"\",VLOOKUP(L321,POA!$A$2:$C$25,2,0))","v":""},null,{"$f":"IF(Q321=0,\"\",IF(Q320>=$R$9,\"HABIL\",\"NO HABIL\"))","v":""},null,{"$f":"IF(S321=0,\"\",IF(S321<=$T$9,\"HABIL\",\"NO HABIL\"))","v":""},{"$f":"IF(ISERROR(VLOOKUP(N321,POA!$A$2:$F$25,5,0)),\"\",VLOOKUP(N321,POA!$A$2:$F$25,5,0))","v":""},null,{"$f":"IF(V321=0,\"\",IF(V321>=$W$9,\"HABIL\",\"NO HABIL\"))","v":""},null,{"$f":"IF(ISERROR(F321/$Z$9),\"\",F321/$Z$9)","v":13996.110471148755},{"$f":"+IF(Y321<$Z$10,\"MIPYME\",\"NO CUMPLE\")","v":"MIPYME"},null,{"$f":"IF(AA321=0,\"\",IF(AA321>=$AB$9,\"HABIL\",\"NO HABIL\"))","v":""},null,{"$f":"IF(AC321=0,\"\",IF(AC321>=$AD$9,\"HABIL\",\"NO HABIL\"))","v":""}]
[null,"",null,null,null,null,null,null,{"$f":"IF(ISERROR(F322-H322),\"\",F322-H322)","v":0},null,null,null,{"$f":"IF(ISERROR(VLOOKUP(L322,POA!$A$2:$C$25,3,0)),\"\",VLOOKUP(L322,POA!$A$2:$C$25,3,0))","v":""}," ",{"$f":"IF(ISERROR(VLOOKUP(N322,POA!$A$2:$F$25,4,0)),\"\",VLOOKUP(N322,POA!$A$2:$F$25,4,0))","v":""},{"$f":"IF(ISERROR(VLOOKUP(L322,POA!$A$2:$C$25,2,0)),\"\",VLOOKUP(L322,POA!$A$2:$C$25,2,0))","v":""},null,{"$f":"IF(Q322=0,\"\",IF(Q320>=$R$9,\"HABIL\",\"NO HABIL\"))","v":""},null,"",{"$f":"IF(ISERROR(VLOOKUP(N322,POA!$A$2:$F$25,5,0)),\"\",VLOOKUP(N322,POA!$A$2:$F$25,5,0))","v":""},null,"",null,{"$f":"IF(ISERROR(F322/$Z$9),\"\",F322/$Z$9)","v":0},{"$f":"+IF(Y322<$Z$10,\"MIPYME\",\"NO CUMPLE\")","v":"MIPYME"},null,"",null,""]
[null,"",null,null,null,null,null,null,0,null,null,null,{"$f":"IF(ISERROR(VLOOKUP(L323,POA!$A$2:$C$25,3,0)),\"\",VLOOKUP(L323,POA!$A$2:$C$25,3,0))","v":""},null,{"$f":"IF(ISERROR(VLOOKUP(N323,POA!$A$2:$F$25,4,0)),\"\",VLOOKUP(N323,POA!$A$2:$F$25,4,0))","v":""},{"$f":"IF(ISERROR(VLOOKUP(L323,POA!$A$2:$C$25,2,0)),\"\",VLOOKUP(L323,POA!$A$2:$C$25,2,0))","v":""},null,{"$f":"IF(Q323=0,\"\",IF(Q320>=$R$9,\"HABIL\",\"NO HABIL\"))","v":""},null,"",{"$f":"IF(ISERROR(VLOOKUP(N323,POA!$A$2:$F$25,5,0)),\"\",VLOOKUP(N323,POA!$A$2:$F$25,5,0))","v":""},null,"",null,0,"MIPYME",null,"",null,""]
[null,"",null,null,{"$f":"IF(ISERROR(VLOOKUP(C324,#REF!,2,0)),\"\",VLOOKUP(C324,#REF!,2,0))","v":""},null,{"$f":"IF(ISERROR(VLOOKUP(C324,#REF!,4,0)),\"\",VLOOKUP(C324,#REF!,4,0))","v":""},null,0,null,null,null,{"$f":"IF(ISERROR(VLOOKUP(L324,POA!$A$2:$C$25,3,0)),\"\",VLOOKUP(L324,POA!$A$2:$C$25,3,0))","v":""},null,{"$f":"IF(ISERROR(VLOOKUP(N324,POA!$A$2:$F$25,4,0)),\"\",VLOOKUP(N324,POA!$A$2:$F$25,4,0))","v":""},{"$f":"IF(ISERROR(VLOOKUP(L324,POA!$A$2:$C$25,2,0)),\"\",VLOOKUP(L324,POA!$A$2:$C$25,2,0))","v":""},null,{"$f":"IF(L324=0,\"\",IF(Q320>=$R$9,\"HABIL\",\"NO HABIL\"))","v":""},null,"",{"$f":"IF(ISERROR(VLOOKUP(N324,POA!$A$2:$F$25,5,0)),\"\",VLOOKUP(N324,POA!$A$2:$F$25,5,0))","v":""},null,"",null,0,"MIPYME",null,"",null,""]
[null,"",null,null,{"$f":"IF(ISERROR(VLOOKUP(C325,#REF!,2,0)),\"\",VLOOKUP(C325,#REF!,2,0))","v":""},null,{"$f":"IF(ISERROR(VLOOKUP(C325,#REF!,4,0)),\"\",VLOOKUP(C325,#REF!,4,0))","v":""},null,0,null,null,null,{"$f":"IF(ISERROR(VLOOKUP(L325,POA!$A$2:$C$25,3,0)),\"\",VLOOKUP(L325,POA!$A$2:$C$25,3,0))","v":""},null,{"$f":"IF(ISERROR(VLOOKUP(N325,POA!$A$2:$F$25,4,0)),\"\",VLOOKUP(N325,POA!$A$2:$F$25,4,0))","v":""},{"$f":"IF(ISERROR(VLOOKUP(L325,POA!$A$2:$C$25,2,0)),\"\",VLOOKUP(L325,POA!$A$2:$C$25,2,0))","v":""},null,{"$f":"IF(L325=0,\"\",IF(Q320>=$R$9,\"HABIL\",\"NO HABIL\"))","v":""},null,"",{"$f":"IF(ISERROR(VLOOKUP(N325,POA!$A$2:$F$25,5,0)),\"\",VLOOKUP(N325,POA!$A$2:$F$25,5,0))","v":""},null,"",null,0,"MIPYME",null,"",null,""]
[null,"",null,null,{"$f":"IF(ISERROR(VLOOKUP(C326,#REF!,2,0)),\"\",VLOOKUP(C326,#REF!,2,0))","v":""},null,{"$f":"IF(ISERROR(VLOOKUP(C326,#REF!,4,0)),\"\",VLOOKUP(C326,#REF!,4,0))","v":""},null,0,null,null,null,{"$f":"IF(ISERROR(VLOOKUP(L326,POA!$A$2:$C$25,3,0)),\"\",VLOOKUP(L326,POA!$A$2:$C$25,3,0))","v":""},null,{"$f":"IF(ISERROR(VLOOKUP(N326,POA!$A$2:$F$25,4,0)),\"\",VLOOKUP(N326,POA!$A$2:$F$25,4,0))","v":""},{"$f":"IF(ISERROR(VLOOKUP(L326,POA!$A$2:$C$25,2,0)),\"\",VLOOKUP(L326,POA!$A$2:$C$25,2,0))","v":""},null,{"$f":"IF(L326=0,\"\",IF(Q320>=$R$9,\"HABIL\",\"NO HABIL\"))","v":""},null,"",{"$f":"IF(ISERROR(VLOOKUP(N326,POA!$A$2:$F$25,5,0)),\"\",VLOOKUP(N326,POA!$A$2:$F$25,5,0))","v":""},null,"",null,0,"MIPYME",null,"",null,""]
[null,{"$f":"IF(C327=\"\",\"\",B326+0.1)","v":""},null,null,{"$f":"IF(ISERROR(VLOOKUP(C327,#REF!,2,0)),\"\",VLOOKUP(C327,#REF!,2,0))","v":""},null,{"$f":"IF(ISERROR(VLOOKUP(C327,#REF!,4,0)),\"\",VLOOKUP(C327,#REF!,4,0))","v":""},null,{"$f":"IF(ISERROR(F327-H327),\"\",F327-H327)","v":0},null,null,null,{"$f":"IF(ISERROR(VLOOKUP(L327,POA!$A$2:$C$25,3,0)),\"\",VLOOKUP(L327,POA!$A$2:$C$25,3,0))","v":""},null,{"$f":"IF(ISERROR(VLOOKUP(N327,POA!$A$2:$F$25,4,0)),\"\",VLOOKUP(N327,POA!$A$2:$F$25,4,0))","v":""},{"$f":"IF(ISERROR(VLOOKUP(L327,POA!$A$2:$C$25,2,0)),\"\",VLOOKUP(L327,POA!$A$2:$C$25,2,0))","v":""},null,{"$f":"IF(L327=0,\"\",IF(Q320>=$R$9,\"HABIL\",\"NO HABIL\"))","v":""},null,"",{"$f":"IF(ISERROR(VLOOKUP(N327,POA!$A$2:$F$25,5,0)),\"\",VLOOKUP(N327,POA!$A$2:$F$25,5,0))","v":""},null,"",null,0,"MIPYME",null,"",null,""]
[null,{"$f":"IF(C328=\"\",\"\",B327+0.1)","v":""},null,null,{"$f":"IF(ISERROR(VLOOKUP(C328,#REF!,2,0)),\"\",VLOOKUP(C328,#REF!,2,0))","v":""},null,{"$f":"IF(ISERROR(VLOOKUP(C328,#REF!,4,0)),\"\",VLOOKUP(C328,#REF!,4,0))","v":""},null,{"$f":"IF(ISERROR(F328-H328),\"\",F328-H328)","v":0},null,null,null,{"$f":"IF(ISERROR(VLOOKUP(L328,POA!$A$2:$C$25,3,0)),\"\",VLOOKUP(L328,POA!$A$2:$C$25,3,0))","v":""},null,{"$f":"IF(ISERROR(VLOOKUP(N328,POA!$A$2:$F$25,4,0)),\"\",VLOOKUP(N328,POA!$A$2:$F$25,4,0))","v":""},{"$f":"IF(ISERROR(VLOOKUP(L328,POA!$A$2:$C$25,2,0)),\"\",VLOOKUP(L328,POA!$A$2:$C$25,2,0))","v":""},null,{"$f":"IF(L328=0,\"\",IF(Q320>=$R$9,\"HABIL\",\"NO HABIL\"))","v":""},null,"",{"$f":"IF(ISERROR(VLOOKUP(N328,POA!$A$2:$F$25,5,0)),\"\",VLOOKUP(N328,POA!$A$2:$F$25,5,0))","v":""},null,"",null,0,"MIPYME",null,"",null,""]
[null,{"$f":"IF(C329=\"\",\"\",B328+0.1)","v":""},null,null,{"$f":"IF(ISERROR(VLOOKUP(C329,#REF!,2,0)),\"\",VLOOKUP(C329,#REF!,2,0))","v":""},null,{"$f":"IF(ISERROR(VLOOKUP(C329,#REF!,4,0)),\"\",VLOOKUP(C329,#REF!,4,0))","v":""},null,{"$f":"IF(ISERROR(F329-H329),\"\",F329-H329)","v":0},null,null,null,{"$f":"IF(ISERROR(VLOOKUP(L329,POA!$A$2:$C$25,3,0)),\"\",VLOOKUP(L329,POA!$A$2:$C$25,3,0))","v":""},null,{"$f":"IF(ISERROR(VLOOKUP(N329,POA!$A$2:$F$25,4,0)),\"\",VLOOKUP(N329,POA!$A$2:$F$25,4,0))","v":""},{"$f":"IF(ISERROR(VLOOKUP(L329,POA!$A$2:$C$25,2,0)),\"\",VLOOKUP(L329,POA!$A$2:$C$25,2,0))","v":""},null,{"$f":"IF(L329=0,\"\",IF(Q320>=$R$9,\"HABIL\",\"NO HABIL\"))","v":""},null,"",{"$f":"IF(ISERROR(VLOOKUP(N329,POA!$A$2:$F$25,5,0)),\"\",VLOOKUP(N329,POA!$A$2:$F$25,5,0))","v":""},null,"",null,0,"MIPYME",null,"",null,""]
[null,{"$f":"IF(C330=\"\",\"\",B329+0.1)","v":""},null,null,{"$f":"IF(ISERROR(VLOOKUP(C330,#REF!,2,0)),\"\",VLOOKUP(C330,#REF!,2,0))","v":""},null,{"$f":"IF(ISERROR(VLOOKUP(C330,#REF!,4,0)),\"\",VLOOKUP(C330,#REF!,4,0))","v":""},null,{"$f":"IF(ISERROR(F330-H330),\"\",F330-H330)","v":0},null,null,null,{"$f":"IF(ISERROR(VLOOKUP(L330,POA!$A$2:$C$25,3,0)),\"\",VLOOKUP(L330,POA!$A$2:$C$25,3,0))","v":""},null,{"$f":"IF(ISERROR(VLOOKUP(N330,POA!$A$2:$F$25,4,0)),\"\",VLOOKUP(N330,POA!$A$2:$F$25,4,0))","v":""},{"$f":"IF(ISERROR(VLOOKUP(L330,POA!$A$2:$C$25,2,0)),\"\",VLOOKUP(L330,POA!$A$2:$C$25,2,0))","v":""},null,{"$f":"IF(L330=0,\"\",IF(Q320>=$R$9,\"HABIL\",\"NO HABIL\"))","v":""},null,"",{"$f":"IF(ISERROR(VLOOKUP(N330,POA!$A$2:$F$25,5,0)),\"\",VLOOKUP(N330,POA!$A$2:$F$25,5,0))","v":""},null,"",null,{"$f":"IF(ISERROR(F330/$Z$9),\"\",F330/$Z$9)","v":0},"MIPYME",null,"",null,""]
[null,30,"CONSORCIO MP - ML",{"$f":"IF(SUM(D332:D341)=0,\"\",SUM(D332:D341))","v":1},{"$f":"SUM(E332:E341)","v":11780411524},{"$f":"SUM(F332:F341)","v":21468535518},{"$f":"SUM(G332:G341)","v":1436128542},{"$f":"SUM(H332:H341)","v":5910856134},{"$f":"+F331-H331","v":15557679384},{"$f":"SUM(J332:J341)","v":1795039393},{"$f":"SUM(K332:K341)","v":0},1,{"$f":"IF(ISERROR(VLOOKUP(L331,POA!$A$2:$C$25,3,0)),\"\",VLOOKUP(L331,POA!$A$2:$C$25,3,0))","v":3}," ",{"$f":"+SUM(O332:O341)","v":0},{"$f":"IF(ISERROR(VLOOKUP(L331,POA!$A$2:$C$25,2,0)),\"\",VLOOKUP(L331,POA!$A$2:$C$25,2,0))","v":4167150295},{"$f":"SUM(E331/G331)","v":8.2028949216441376},{"$f":"IF(Q331=0,\"\",IF(Q331>=$R$9,\"HABIL\",\"NO HABIL\"))","v":"HABIL"},{"$f":"SUM(H331/F331)","v":0.27532647157250772},{"$f":"IF(S331=0,\"\",IF(S331<=$T$9,\"HABIL\",\"NO HABIL\"))","v":"HABIL"},{"$f":"+SUM(U332:U341)","v":0},{"$f":"SUM(J331/K331)","v":{"$error":"#DIV/0!"}},{"$f":"IF(V331=0,\"\",IF(V331>=$W$9,\"HABIL\",\"NO HABIL\"))","v":{"$error":"#DIV/0!"}},{"$f":"IF(R331=0,\"\",IF(R331=\"NO HABIL\",\"NO HABIL\",IF(T331=\"NO HABIL\",\"NO HABIL\",IF(W331=\"NO HABIL\",\"NO HABIL\",IF(W331=\"NO HABIL\",\"NO HABIL\",\"HABIL\")))))","v":{"$error":"#DIV/0!"}},null,null,{"$f":"SUM(J331/I331)","v":0.11537963655724093},{"$f":"IF(AA331=0,\"\",IF(AA331>=$AB$9,\"HABIL\",\"NO HABIL\"))","v":"HABIL"},{"$f":"SUM(J331/F331)","v":8.361256833261746E-2},{"$f":"IF(AC331=0,\"\",IF(AC331>=$AD$9,\"HABIL\",\"NO HABIL\"))","v":"HABIL"},{"$f":"IF(AB331=0,\"\",IF(AB331=\"NO HABIL\",\"NO HABIL\",IF(AD331=\"NO HABIL\",\"NO HABIL\",IF(AD331=\"NO HABIL\",\"NO HABIL\",\"HABIL\"))))","v":"HABIL"}]
[null,{"$f":"IF(C332=\"\",\"\",B331+0.1)","v":30.1},"CONSTRUCTORA MP S.A.",0.5,8654821672,13774716119,895919298,3751139298,{"$f":"IF(ISERROR(F332-H332),\"\",F332-H332)","v":10023576821},1238926298,0,null,{"$f":"IF(ISERROR(VLOOKUP(L332,POA!$A$2:$C$25,3,0)),\"\",VLOOKUP(L332,POA!$A$2:$C$25,3,0))","v":""}," ",{"$f":"IF(ISERROR(VLOOKUP(N332,POA!$A$2:$F$25,4,0)),\"\",VLOOKUP(N332,POA!$A$2:$F$25,4,0))","v":""},{"$f":"IF(ISERROR(VLOOKUP(L332,POA!$A$2:$C$25,2,0)),\"\",VLOOKUP(L332,POA!$A$2:$C$25,2,0))","v":""},null,{"$f":"IF(Q332=0,\"\",IF(Q331>=$R$9,\"HABIL\",\"NO HABIL\"))","v":""},null,{"$f":"IF(S332=0,\"\",IF(S332<=$T$9,\"HABIL\",\"NO HABIL\"))","v":""},{"$f":"IF(ISERROR(VLOOKUP(N332,POA!$A$2:$F$25,5,0)),\"\",VLOOKUP(N332,POA!$A$2:$F$25,5,0))","v":""},null,{"$f":"IF(V332=0,\"\",IF(V332>=$W$9,\"HABIL\",\"NO HABIL\"))","v":""},null,{"$f":"IF(ISERROR(F332/$Z$9),\"\",F332/$Z$9)","v":24306.892745720841},{"$f":"+IF(Y332<$Z$10,\"MIPYME\",\"NO CUMPLE\")","v":"MIPYME"},null,{"$f":"IF(AA332=0,\"\",IF(AA332>=$AB$9,\"HABIL\",\"NO HABIL\"))","v":""},null,{"$f":"IF(AC332=0,\"\",IF(AC332>=$AD$9,\"HABIL\",\"NO HABIL\"))","v":""}]
[null,30.200000000000003,"ML INGENIEROS S.A.",0.5,3125589852,7693819399,540209244,2159716836,5534102563,556113095,0,null,{"$f":"IF(ISERROR(VLOOKUP(L333,POA!$A$2:$C$25,3,0)),\"\",VLOOKUP(L333,POA!$A$2:$C$25,3,0))","v":""}," ",{"$f":"IF(ISERROR(VLOOKUP(N333,POA!$A$2:$F$25,4,0)),\"\",VLOOKUP(N333,POA!$A$2:$F$25,4,0))","v":""},{"$f":"IF(ISERROR(VLOOKUP(L333,POA!$A$2:$C$25,2,0)),\"\",VLOOKUP(L333,POA!$A$2:$C$25,2,0))","v":""},null,{"$f":"IF(Q333=0,\"\",IF(Q331>=$R$9,\"HABIL\",\"NO HABIL\"))","v":""},null,"",{"$f":"IF(ISERROR(VLOOKUP(N333,POA!$A$2:$F$25,5,0)),\"\",VLOOKUP(N333,POA!$A$2:$F$25,5,0))","v":""},null,"",null,{"$f":"IF(ISERROR(F333/$Z$9),\"\",F333/$Z$9)","v":13576.529731780483},{"$f":"+IF(Y333<$Z$10,\"MIPYME\",\"NO CUMPLE\")","v":"MIPYME"},null,"",null,""]
[null,"",null,null,null,null,null,null,{"$f":"IF(ISERROR(F334-H334),\"\",F334-H334)","v":0},null,null,null,{"$f":"IF(ISERROR(VLOOKUP(L334,POA!$A$2:$C$25,3,0)),\"\",VLOOKUP(L334,POA!$A$2:$C$25,3,0))","v":""},null,{"$f":"IF(ISERROR(VLOOKUP(N334,POA!$A$2:$F$25,4,0)),\"\",VLOOKUP(N334,POA!$A$2:$F$25,4,0))","v":""},{"$f":"IF(ISERROR(VLOOKUP(L334,POA!$A$2:$C$25,2,0)),\"\",VLOOKUP(L334,POA!$A$2:$C$25,2,0))","v":""},null,{"$f":"IF(Q334=0,\"\",IF(Q331>=$R$9,\"HABIL\",\"NO HABIL\"))","v":""},null,"",{"$f":"IF(ISERROR(VLOOKUP(N334,POA!$A$2:$F$25,5,0)),\"\",VLOOKUP(N334,POA!$A$2:$F$25,5,0))","v":""},null,"",null,0,"MIPYME",null,"",null,""]
[null,"",null,null,{"$f":"IF(ISERROR(VLOOKUP(C335,#REF!,2,0)),\"\",VLOOKUP(C335,#REF!,2,0))","v":""},null,{"$f":"IF(ISERROR(VLOOKUP(C335,#REF!,4,0)),\"\",VLOOKUP(C335,#REF!,4,0))","v":""},null,0,null,null,null,{"$f":"IF(ISERROR(VLOOKUP(L335,POA!$A$2:$C$25,3,0)),\"\",VLOOKUP(L335,POA!$A$2:$C$25,3,0))","v":""},null,{"$f":"IF(ISERROR(VLOOKUP(N335,POA!$A$2:$F$25,4,0)),\"\",VLOOKUP(N335,POA!$A$2:$F$25,4,0))","v":""},{"$f":"IF(ISERROR(VLOOKUP(L335,POA!$A$2:$C$25,2,0)),\"\",VLOOKUP(L335,POA!$A$2:$C$25,2,0))","v":""},null,{"$f":"IF(L335=0,\"\",IF(Q331>=$R$9,\"HABIL\",\"NO HABIL\"))","v":""},null,"",{"$f":"IF(ISERROR(VLOOKUP(N335,POA!$A$2:$F$25,5,0)),\"\",VLOOKUP(N335,POA!$A$2:$F$25,5,0))","v":""},null,"",null,0,"MIPYME",null,"",null,""]
[null,"",null,null,{"$f":"IF(ISERROR(VLOOKUP(C336,#REF!,2,0)),\"\",VLOOKUP(C336,#REF!,2,0))","v":""},null,{"$f":"IF(ISERROR(VLOOKUP(C336,#REF!,4,0)),\"\",VLOOKUP(C336,#REF!,4,0))","v":""},null,0,null,null,null,{"$f":"IF(ISERROR(VLOOKUP(L336,POA!$A$2:$C$25,3,0)),\"\",VLOOKUP(L336,POA!$A$2:$C$25,3,0))","v":""},null,{"$f":"IF(ISERROR(VLOOKUP(N336,POA!$A$2:$F$25,4,0)),\"\",VLOOKUP(N336,POA!$A$2:$F$25,4,0))","v":""},{"$f":"IF(ISERROR(VLOOKUP(L336,POA!$A$2:$C$25,2,0)),\"\",VLOOKUP(L336,POA!$A$2:$C$25,2,0))","v":""},null,{"$f":"IF(L336=0,\"\",IF(Q331>=$R$9,\"HABIL\",\"NO HABIL\"))","v":""},null,"",{"$f":"IF(ISERROR(VLOOKUP(N336,POA!$A$2:$F$25,5,0)),\"\",VLOOKUP(N336,POA!$A$2:$F$25,5,0))","v":""},null,"",null,0,"MIPYME",null,"",null,""]
[null,"",null,null,{"$f":"IF(ISERROR(VLOOKUP(C337,#REF!,2,0)),\"\",VLOOKUP(C337,#REF!,2,0))","v":""},null,{"$f":"IF(ISERROR(VLOOKUP(C337,#REF!,4,0)),\"\",VLOOKUP(C337,#REF!,4,0))","v":""},null,0,null,null,null,{"$f":"IF(ISERROR(VLOOKUP(L337,POA!$A$2:$C$25,3,0)),\"\",VLOOKUP(L337,POA!$A$2:$C$25,3,0))","v":""},null,{"$f":"IF(ISERROR(VLOOKUP(N337,POA!$A$2:$F$25,4,0)),\"\",VLOOKUP(N337,POA!$A$2:$F$25,4,0))","v":""},{"$f":"IF(ISERROR(VLOOKUP(L337,POA!$A$2:$C$25,2,0)),\"\",VLOOKUP(L337,POA!$A$2:$C$25,2,0))","v":""},null,{"$f":"IF(L337=0,\"\",IF(Q331>=$R$9,\"HABIL\",\"NO HABIL\"))","v":""},null,"",{"$f":"IF(ISERROR(VLOOKUP(N337,POA!$A$2:$F$25,5,0)),\"\",VLOOKUP(N337,POA!$A$2:$F$25,5,0))","v":""},null,"",null,0,"MIPYME",null,"",null,""]
[null,{"$f":"IF(C338=\"\",\"\",B337+0.1)","v":""},null,null,{"$f":"IF(ISERROR(VLOOKUP(C338,#REF!,2,0)),\"\",VLOOKUP(C338,#REF!,2,0))","v":""},null,{"$f":"IF(ISERROR(VLOOKUP(C338,#REF!,4,0)),\"\",VLOOKUP(C338,#REF!,4,0))","v":""},null,{"$f":"IF(ISERROR(F338-H338),\"\",F338-H338)","v":0},null,null,null,{"$f":"IF(ISERROR(VLOOKUP(L338,POA!$A$2:$C$25,3,0)),\"\",VLOOKUP(L338,POA!$A$2:$C$25,3,0))","v":""},null,{"$f":"IF(ISERROR(VLOOKUP(N338,POA!$A$2:$F$25,4,0)),\"\",VLOOKUP(N338,POA!$A$2:$F$25,4,0))","v":""},{"$f":"IF(ISERROR(VLOOKUP(L338,POA!$A$2:$C$25,2,0)),\"\",VLOOKUP(L338,POA!$A$2:$C$25,2,0))","v":""},null,{"$f":"IF(L338=0,\"\",IF(Q331>=$R$9,\"HABIL\",\"NO HABIL\"))","v":""},null,"",{"$f":"IF(ISERROR(VLOOKUP(N338,POA!$A$2:$F$25,5,0)),\"\",VLOOKUP(N338,POA!$A$2:$F$25,5,0))","v":""},null,"",null,0,"MIPYME",null,"",null,""]
[null,{"$f":"IF(C339=\"\",\"\",B338+0.1)","v":""},null,null,{"$f":"IF(ISERROR(VLOOKUP(C339,#REF!,2,0)),\"\",VLOOKUP(C339,#REF!,2,0))","v":""},null,{"$f":"IF(ISERROR(VLOOKUP(C339,#REF!,4,0)),\"\",VLOOKUP(C339,#REF!,4,0))","v":""},null,{"$f":"IF(ISERROR(F339-H339),\"\",F339-H339)","v":0},null,null,null,{"$f":"IF(ISERROR(VLOOKUP(L339,POA!$A$2:$C$25,3,0)),\"\",VLOOKUP(L339,POA!$A$2:$C$25,3,0))","v":""},null,{"$f":"IF(ISERROR(VLOOKUP(N339,POA!$A$2:$F$25,4,0)),\"\",VLOOKUP(N339,POA!$A$2:$F$25,4,0))","v":""},{"$f":"IF(ISERROR(VLOOKUP(L339,POA!$A$2:$C$25,2,0)),\"\",VLOOKUP(L339,POA!$A$2:$C$25,2,0))","v":""},null,{"$f":"IF(L339=0,\"\",IF(Q331>=$R$9,\"HABIL\",\"NO HABIL\"))","v":""},null,"",{"$f":"IF(ISERROR(VLOOKUP(N339,POA!$A$2:$F$25,5,0)),\"\",VLOOKUP(N339,POA!$A$2:$F$25,5,0))","v":""},null,"",null,0,"MIPYME",null,"",null,""]
[null,{"$f":"IF(C340=\"\",\"\",B339+0.1)","v":""},null,null,{"$f":"IF(ISERROR(VLOOKUP(C340,#REF!,2,0)),\"\",VLOOKUP(C340,#REF!,2,0))","v":""},null,{"$f":"IF(ISERROR(VLOOKUP(C340,#REF!,4,0)),\"\",VLOOKUP(C340,#REF!,4,0))","v":""},null,{"$f":"IF(ISERROR(F340-H340),\"\",F340-H340)","v":0},null,null,null,{"$f":"IF(ISERROR(VLOOKUP(L340,POA!$A$2:$C$25,3,0)),\"\",VLOOKUP(L340,POA!$A$2:$C$25,3,0))","v":""},null,{"$f":"IF(ISERROR(VLOOKUP(N340,POA!$A$2:$F$25,4,0)),\"\",VLOOKUP(N340,POA!$A$2:$F$25,4,0))","v":""},{"$f":"IF(ISERROR(VLOOKUP(L340,POA!$A$2:$C$25,2,0)),\"\",VLOOKUP(L340,POA!$A$2:$C$25,2,0))","v":""},null,{"$f":"IF(L340=0,\"\",IF(Q331>=$R$9,\"HABIL\",\"NO HABIL\"))","v":""},null,"",{"$f":"IF(ISERROR(VLOOKUP(N340,POA!$A$2:$F$25,5,0)),\"\",VLOOKUP(N340,POA!$A$2:$F$25,5,0))","v":""},null,"",null,0,"MIPYME",null,"",null,""]
[null,{"$f":"IF(C341=\"\",\"\",B340+0.1)","v":""},null,null,{"$f":"IF(ISERROR(VLOOKUP(C341,#REF!,2,0)),\"\",VLOOKUP(C341,#REF!,2,0))","v":""},null,{"$f":"IF(ISERROR(VLOOKUP(C341,#REF!,4,0)),\"\",VLOOKUP(C341,#REF!,4,0))","v":""},null,{"$f":"IF(ISERROR(F341-H341),\"\",F341-H341)","v":0},null,null,null,{"$f":"IF(ISERROR(VLOOKUP(L341,POA!$A$2:$C$25,3,0)),\"\",VLOOKUP(L341,POA!$A$2:$C$25,3,0))","v":""},null,{"$f":"IF(ISERROR(VLOOKUP(N341,POA!$A$2:$F$25,4,0)),\"\",VLOOKUP(N341,POA!$A$2:$F$25,4,0))","v":""},{"$f":"IF(ISERROR(VLOOKUP(L341,POA!$A$2:$C$25,2,0)),\"\",VLOOKUP(L341,POA!$A$2:$C$25,2,0))","v":""},null,{"$f":"IF(L341=0,\"\",IF(Q331>=$R$9,\"HABIL\",\"NO HABIL\"))","v":""},null,"",{"$f":"IF(ISERROR(VLOOKUP(N341,POA!$A$2:$F$25,5,0)),\"\",VLOOKUP(N341,POA!$A$2:$F$25,5,0))","v":""},null,"",null,{"$f":"IF(ISERROR(F341/$Z$9),\"\",F341/$Z$9)","v":0},"MIPYME",null,"",null,""]
[null,31,"LATINCO S.A.",{"$f":"IF(SUM(D343:D352)=0,\"\",SUM(D343:D352))","v":1},{"$f":"SUM(E343:E352)","v":94052297000},{"$f":"SUM(F343:F352)","v":172113336000},{"$f":"SUM(G343:G352)","v":39328613000},{"$f":"SUM(H343:H352)","v":100649549000},{"$f":"+F342-H342","v":71463787000},{"$f":"SUM(J343:J352)","v":22940061000},{"$f":"SUM(K343:K352)","v":4039236000},1,{"$f":"IF(ISERROR(VLOOKUP(L342,POA!$A$2:$C$25,3,0)),\"\",VLOOKUP(L342,POA!$A$2:$C$25,3,0))","v":3}," ",{"$f":"+SUM(O343:O352)","v":0},{"$f":"IF(ISERROR(VLOOKUP(L342,POA!$A$2:$C$25,2,0)),\"\",VLOOKUP(L342,POA!$A$2:$C$25,2,0))","v":4167150295},{"$f":"SUM(E342/G342)","v":2.3914470871372964},{"$f":"IF(Q342=0,\"\",IF(Q342>=$R$9,\"HABIL\",\"NO HABIL\"))","v":"HABIL"},{"$f":"SUM(H342/F342)","v":0.58478646303154569},{"$f":"IF(S342=0,\"\",IF(S342<=$T$9,\"HABIL\",\"NO HABIL\"))","v":"HABIL"},{"$f":"+SUM(U343:U352)","v":0},{"$f":"SUM(J342/K342)","v":5.6793069283399138},{"$f":"IF(V342=0,\"\",IF(V342>=$W$9,\"HABIL\",\"NO HABIL\"))","v":"HABIL"},{"$f":"IF(R342=0,\"\",IF(R342=\"NO HABIL\",\"NO HABIL\",IF(T342=\"NO HABIL\",\"NO HABIL\",IF(W342=\"NO HABIL\",\"NO HABIL\",IF(W342=\"NO HABIL\",\"NO HABIL\",\"HABIL\")))))","v":"HABIL"},null,null,{"$f":"SUM(J342/I342)","v":0.32100259394313935},{"$f":"IF(AA342=0,\"\",IF(AA342>=$AB$9,\"HABIL\",\"NO HABIL\"))","v":"HABIL"},{"$f":"SUM(J342/F342)","v":0.13328462240717942},{"$f":"IF(AC342=0,\"\",IF(AC342>=$AD$9,\"HABIL\",\"NO HABIL\"))","v":"HABIL"},{"$f":"IF(AB342=0,\"\",IF(AB342=\"NO HABIL\",\"NO HABIL\",IF(AD342=\"NO HABIL\",\"NO HABIL\",IF(AD342=\"NO HABIL\",\"NO HABIL\",\"HABIL\"))))","v":"HABIL"}]
[null,{"$f":"IF(C343=\"\",\"\",B342+0.1)","v":31.1},"LATINCO S.A.",1,94052297000,172113336000,39328613000,100649549000,{"$f":"+F343-H343","v":71463787000},22940061000,4039236000,null,{"$f":"IF(ISERROR(VLOOKUP(L343,POA!$A$2:$C$25,3,0)),\"\",VLOOKUP(L343,POA!$A$2:$C$25,3,0))","v":""}," ",{"$f":"IF(ISERROR(VLOOKUP(N343,POA!$A$2:$F$25,4,0)),\"\",VLOOKUP(N343,POA!$A$2:$F$25,4,0))","v":""},{"$f":"IF(ISERROR(VLOOKUP(L343,POA!$A$2:$C$25,2,0)),\"\",VLOOKUP(L343,POA!$A$2:$C$25,2,0))","v":""},null,{"$f":"IF(Q343=0,\"\",IF(Q342>=$R$9,\"HABIL\",\"NO HABIL\"))","v":""},null,{"$f":"IF(S343=0,\"\",IF(S343<=$T$9,\"HABIL\",\"NO HABIL\"))","v":""},{"$f":"IF(ISERROR(VLOOKUP(N343,POA!$A$2:$F$25,5,0)),\"\",VLOOKUP(N343,POA!$A$2:$F$25,5,0))","v":""},null,{"$f":"IF(V343=0,\"\",IF(V343>=$W$9,\"HABIL\",\"NO HABIL\"))","v":""},null,{"$f":"IF(ISERROR(F343/$Z$9),\"\",F343/$Z$9)","v":303711.55108523025},{"$f":"+IF(Y343<$Z$10,\"MIPYME\",\"NO CUMPLE\")","v":"NO CUMPLE"},null,{"$f":"IF(AA343=0,\"\",IF(AA343>=$AB$9,\"HABIL\",\"NO HABIL\"))","v":""},null,{"$f":"IF(AC343=0,\"\",IF(AC343>=$AD$9,\"HABIL\",\"NO HABIL\"))","v":""}]
[null,"",null,null,null,null,null,null,{"$f":"IF(ISERROR(F344-H344),\"\",F344-H344)","v":0},null,null,null,{"$f":"IF(ISERROR(VLOOKUP(L344,POA!$A$2:$C$25,3,0)),\"\",VLOOKUP(L344,POA!$A$2:$C$25,3,0))","v":""}," ",{"$f":"IF(ISERROR(VLOOKUP(N344,POA!$A$2:$F$25,4,0)),\"\",VLOOKUP(N344,POA!$A$2:$F$25,4,0))","v":""},{"$f":"IF(ISERROR(VLOOKUP(L344,POA!$A$2:$C$25,2,0)),\"\",VLOOKUP(L344,POA!$A$2:$C$25,2,0))","v":""},null,{"$f":"IF(Q344=0,\"\",IF(Q342>=$R$9,\"HABIL\",\"NO HABIL\"))","v":""},null,"",{"$f":"IF(ISERROR(VLOOKUP(N344,POA!$A$2:$F$25,5,0)),\"\",VLOOKUP(N344,POA!$A$2:$F$25,5,0))","v":""},null,"",null,{"$f":"IF(ISERROR(F344/$Z$9),\"\",F344/$Z$9)","v":0},{"$f":"+IF(Y344<$Z$10,\"MIPYME\",\"NO CUMPLE\")","v":"MIPYME"},null,"",null,""]
[null,"",null,null,null,null,null,null,0,null,null,null,{"$f":"IF(ISERROR(VLOOKUP(L345,POA!$A$2:$C$25,3,0)),\"\",VLOOKUP(L345,POA!$A$2:$C$25,3,0))","v":""},null,{"$f":"IF(ISERROR(VLOOKUP(N345,POA!$A$2:$F$25,4,0)),\"\",VLOOKUP(N345,POA!$A$2:$F$25,4,0))","v":""},{"$f":"IF(ISERROR(VLOOKUP(L345,POA!$A$2:$C$25,2,0)),\"\",VLOOKUP(L345,POA!$A$2:$C$25,2,0))","v":""},null,{"$f":"IF(Q345=0,\"\",IF(Q342>=$R$9,\"HABIL\",\"NO HABIL\"))","v":""},null,"",{"$f":"IF(ISERROR(VLOOKUP(N345,POA!$A$2:$F$25,5,0)),\"\",VLOOKUP(N345,POA!$A$2:$F$25,5,0))","v":""},null,"",null,0,"MIPYME",null,"",null,""]
[null,"",null,null,{"$f":"IF(ISERROR(VLOOKUP(C346,#REF!,2,0)),\"\",VLOOKUP(C346,#REF!,2,0))","v":""},null,{"$f":"IF(ISERROR(VLOOKUP(C346,#REF!,4,0)),\"\",VLOOKUP(C346,#REF!,4,0))","v":""},null,0,null,null,null,{"$f":"IF(ISERROR(VLOOKUP(L346,POA!$A$2:$C$25,3,0)),\"\",VLOOKUP(L346,POA!$A$2:$C$25,3,0))","v":""},null,{"$f":"IF(ISERROR(VLOOKUP(N346,POA!$A$2:$F$25,4,0)),\"\",VLOOKUP(N346,POA!$A$2:$F$25,4,0))","v":""},{"$f":"IF(ISERROR(VLOOKUP(L346,POA!$A$2:$C$25,2,0)),\"\",VLOOKUP(L346,POA!$A$2:$C$25,2,0))","v":""},null,{"$f":"IF(L346=0,\"\",IF(Q342>=$R$9,\"HABIL\",\"NO HABIL\"))","v":""},null,"",{"$f":"IF(ISERROR(VLOOKUP(N346,POA!$A$2:$F$25,5,0)),\"\",VLOOKUP(N346,POA!$A$2:$F$25,5,0))","v":""},null,"",null,0,"MIPYME",null,"",null,""]
[null,"",null,null,{"$f":"IF(ISERROR(VLOOKUP(C347,#REF!,2,0)),\"\",VLOOKUP(C347,#REF!,2,0))","v":""},null,{"$f":"IF(ISERROR(VLOOKUP(C347,#REF!,4,0)),\"\",VLOOKUP(C347,#REF!,4,0))","v":""},null,0,null,null,null,{"$f":"IF(ISERROR(VLOOKUP(L347,POA!$A$2:$C$25,3,0)),\"\",VLOOKUP(L347,POA!$A$2:$C$25,3,0))","v":""},null,{"$f":"IF(ISERROR(VLOOKUP(N347,POA!$A$2:$F$25,4,0)),\"\",VLOOKUP(N347,POA!$A$2:$F$25,4,0))","v":""},{"$f":"IF(ISERROR(VLOOKUP(L347,POA!$A$2:$C$25,2,0)),\"\",VLOOKUP(L347,POA!$A$2:$C$25,2,0))","v":""},null,{"$f":"IF(L347=0,\"\",IF(Q342>=$R$9,\"HABIL\",\"NO HABIL\"))","v":""},null,"",{"$f":"IF(ISERROR(VLOOKUP(N347,POA!$A$2:$F$25,5,0)),\"\",VLOOKUP(N347,POA!$A$2:$F$25,5,0))","v":""},null,"",null,0,"MIPYME",null,"",null,""]
[null,"",null,null,{"$f":"IF(ISERROR(VLOOKUP(C348,#REF!,2,0)),\"\",VLOOKUP(C348,#REF!,2,0))","v":""},null,{"$f":"IF(ISERROR(VLOOKUP(C348,#REF!,4,0)),\"\",VLOOKUP(C348,#REF!,4,0))","v":""},null,0,null,null,null,{"$f":"IF(ISERROR(VLOOKUP(L348,POA!$A$2:$C$25,3,0)),\"\",VLOOKUP(L348,POA!$A$2:$C$25,3,0))","v":""},null,{"$f":"IF(ISERROR(VLOOKUP(N348,POA!$A$2:$F$25,4,0)),\"\",VLOOKUP(N348,POA!$A$2:$F$25,4,0))","v":""},{"$f":"IF(ISERROR(VLOOKUP(L348,POA!$A$2:$C$25,2,0)),\"\",VLOOKUP(L348,POA!$A$2:$C$25,2,0))","v":""},null,{"$f":"IF(L348=0,\"\",IF(Q342>=$R$9,\"HABIL\",\"NO HABIL\"))","v":""},null,"",{"$f":"IF(ISERROR(VLOOKUP(N348,POA!$A$2:$F$25,5,0)),\"\",VLOOKUP(N348,POA!$A$2:$F$25,5,0))","v":""},null,"",null,0,"MIPYME",null,"",null,""]
[null,{"$f":"IF(C349=\"\",\"\",B348+0.1)","v":""},null,null,{"$f":"IF(ISERROR(VLOOKUP(C349,#REF!,2,0)),\"\",VLOOKUP(C349,#REF!,2,0))","v":""},null,{"$f":"IF(ISERROR(VLOOKUP(C349,#REF!,4,0)),\"\",VLOOKUP(C349,#REF!,4,0))","v":""},null,{"$f":"IF(ISERROR(F349-H349),\"\",F349-H349)","v":0},null,null,null,{"$f":"IF(ISERROR(VLOOKUP(L349,POA!$A$2:$C$25,3,0)),\"\",VLOOKUP(L349,POA!$A$2:$C$25,3,0))","v":""},null,{"$f":"IF(ISERROR(VLOOKUP(N349,POA!$A$2:$F$25,4,0)),\"\",VLOOKUP(N349,POA!$A$2:$F$25,4,0))","v":""},{"$f":"IF(ISERROR(VLOOKUP(L349,POA!$A$2:$C$25,2,0)),\"\",VLOOKUP(L349,POA!$A$2:$C$25,2,0))","v":""},null,{"$f":"IF(L349=0,\"\",IF(Q342>=$R$9,\"HABIL\",\"NO HABIL\"))","v":""},null,"",{"$f":"IF(ISERROR(VLOOKUP(N349,POA!$A$2:$F$25,5,0)),\"\",VLOOKUP(N349,POA!$A$2:$F$25,5,0))","v":""},null,"",null,0,"MIPYME",null,"",null,""]
[null,{"$f":"IF(C350=\"\",\"\",B349+0.1)","v":""},null,null,{"$f":"IF(ISERROR(VLOOKUP(C350,#REF!,2,0)),\"\",VLOOKUP(C350,#REF!,2,0))","v":""},null,{"$f":"IF(ISERROR(VLOOKUP(C350,#REF!,4,0)),\"\",VLOOKUP(C350,#REF!,4,0))","v":""},null,{"$f":"IF(ISERROR(F350-H350),\"\",F350-H350)","v":0},null,null,null,{"$f":"IF(ISERROR(VLOOKUP(L350,POA!$A$2:$C$25,3,0)),\"\",VLOOKUP(L350,POA!$A$2:$C$25,3,0))","v":""},null,{"$f":"IF(ISERROR(VLOOKUP(N350,POA!$A$2:$F$25,4,0)),\"\",VLOOKUP(N350,POA!$A$2:$F$25,4,0))","v":""},{"$f":"IF(ISERROR(VLOOKUP(L350,POA!$A$2:$C$25,2,0)),\"\",VLOOKUP(L350,POA!$A$2:$C$25,2,0))","v":""},null,{"$f":"IF(L350=0,\"\",IF(Q342>=$R$9,\"HABIL\",\"NO HABIL\"))","v":""},null,"",{"$f":"IF(ISERROR(VLOOKUP(N350,POA!$A$2:$F$25,5,0)),\"\",VLOOKUP(N350,POA!$A$2:$F$25,5,0))","v":""},null,"",null,0,"MIPYME",null,"",null,""]
[null,{"$f":"IF(C351=\"\",\"\",B350+0.1)","v":""},null,null,{"$f":"IF(ISERROR(VLOOKUP(C351,#REF!,2,0)),\"\",VLOOKUP(C351,#REF!,2,0))","v":""},null,{"$f":"IF(ISERROR(VLOOKUP(C351,#REF!,4,0)),\"\",VLOOKUP(C351,#REF!,4,0))","v":""},null,{"$f":"IF(ISERROR(F351-H351),\"\",F351-H351)","v":0},null,null,null,{"$f":"IF(ISERROR(VLOOKUP(L351,POA!$A$2:$C$25,3,0)),\"\",VLOOKUP(L351,POA!$A$2:$C$25,3,0))","v":""},null,{"$f":"IF(ISERROR(VLOOKUP(N351,POA!$A$2:$F$25,4,0)),\"\",VLOOKUP(N351,POA!$A$2:$F$25,4,0))","v":""},{"$f":"IF(ISERROR(VLOOKUP(L351,POA!$A$2:$C$25,2,0)),\"\",VLOOKUP(L351,POA!$A$2:$C$25,2,0))","v":""},null,{"$f":"IF(L351=0,\"\",IF(Q342>=$R$9,\"HABIL\",\"NO HABIL\"))","v":""},null,"",{"$f":"IF(ISERROR(VLOOKUP(N351,POA!$A$2:$F$25,5,0)),\"\",VLOOKUP(N351,POA!$A$2:$F$25,5,0))","v":""},null,"",null,0,"MIPYME",null,"",null,""]
[null,{"$f":"IF(C352=\"\",\"\",B351+0.1)","v":""},null,null,{"$f":"IF(ISERROR(VLOOKUP(C352,#REF!,2,0)),\"\",VLOOKUP(C352,#REF!,2,0))","v":""},null,{"$f":"IF(ISERROR(VLOOKUP(C352,#REF!,4,0)),\"\",VLOOKUP(C352,#REF!,4,0))","v":""},null,{"$f":"IF(ISERROR(F352-H352),\"\",F352-H352)","v":0},null,null,null,{"$f":"IF(ISERROR(VLOOKUP(L352,POA!$A$2:$C$25,3,0)),\"\",VLOOKUP(L352,POA!$A$2:$C$25,3,0))","v":""},null,{"$f":"IF(ISERROR(VLOOKUP(N352,POA!$A$2:$F$25,4,0)),\"\",VLOOKUP(N352,POA!$A$2:$F$25,4,0))","v":""},{"$f":"IF(ISERROR(VLOOKUP(L352,POA!$A$2:$C$25,2,0)),\"\",VLOOKUP(L352,POA!$A$2:$C$25,2,0))","v":""},null,{"$f":"IF(L352=0,\"\",IF(Q342>=$R$9,\"HABIL\",\"NO HABIL\"))","v":""},null,"",{"$f":"IF(ISERROR(VLOOKUP(N352,POA!$A$2:$F$25,5,0)),\"\",VLOOKUP(N352,POA!$A$2:$F$25,5,0))","v":""},null,"",null,{"$f":"IF(ISERROR(F352/$Z$9),\"\",F352/$Z$9)","v":0},"MIPYME",null,"",null,""]
[null,32,"ICEIN S.A.S.",{"$f":"IF(SUM(D354:D363)=0,\"\",SUM(D354:D363))","v":1},{"$f":"SUM(E354:E363)","v":275657318297},{"$f":"SUM(F354:F363)","v":469904918263},{"$f":"SUM(G354:G363)","v":49741116169},{"$f":"SUM(H354:H363)","v":137839071489},{"$f":"+F353-H353","v":332065846774},{"$f":"SUM(J354:J363)","v":13103590281},{"$f":"SUM(K354:K363)","v":7455040218.1400003},1,{"$f":"IF(ISERROR(VLOOKUP(L353,POA!$A$2:$C$25,3,0)),\"\",VLOOKUP(L353,POA!$A$2:$C$25,3,0))","v":3}," ",{"$f":"+SUM(O354:O363)","v":0},{"$f":"IF(ISERROR(VLOOKUP(L353,POA!$A$2:$C$25,2,0)),\"\",VLOOKUP(L353,POA!$A$2:$C$25,2,0))","v":4167150295},{"$f":"SUM(E353/G353)","v":5.5418402224917713},{"$f":"IF(Q353=0,\"\",IF(Q353>=$R$9,\"HABIL\",\"NO HABIL\"))","v":"HABIL"},{"$f":"SUM(H353/F353)","v":0.29333396210986917},{"$f":"IF(S353=0,\"\",IF(S353<=$T$9,\"HABIL\",\"NO HABIL\"))","v":"HABIL"},{"$f":"+SUM(U354:U363)","v":0},{"$f":"SUM(J353/K353)","v":1.7576820375986231},{"$f":"IF(V353=0,\"\",IF(V353>=$W$9,\"HABIL\",\"NO HABIL\"))","v":"HABIL"},{"$f":"IF(R353=0,\"\",IF(R353=\"NO HABIL\",\"NO HABIL\",IF(T353=\"NO HABIL\",\"NO HABIL\",IF(W353=\"NO HABIL\",\"NO HABIL\",IF(W353=\"NO HABIL\",\"NO HABIL\",\"HABIL\")))))","v":"HABIL"},null,null,{"$f":"SUM(J353/I353)","v":3.9460819016169844E-2},{"$f":"IF(AA353=0,\"\",IF(AA353>=$AB$9,\"HABIL\",\"NO HABIL\"))","v":"HABIL"},{"$f":"SUM(J353/F353)","v":2.7885620626056273E-2},{"$f":"IF(AC353=0,\"\",IF(AC353>=$AD$9,\"HABIL\",\"NO HABIL\"))","v":"HABIL"},{"$f":"IF(AB353=0,\"\",IF(AB353=\"NO HABIL\",\"NO HABIL\",IF(AD353=\"NO HABIL\",\"NO HABIL\",IF(AD353=\"NO HABIL\",\"NO HABIL\",\"HABIL\"))))","v":"HABIL"}]
[null,{"$f":"IF(C354=\"\",\"\",B353+0.1)","v":32.1},"ICEIN S.A.S.",1,275657318297,469904918263,49741116169,137839071489,{"$f":"+F354-H354","v":332065846774},13103590281,7455040218.1400003,null,{"$f":"IF(ISERROR(VLOOKUP(L354,POA!$A$2:$C$25,3,0)),\"\",VLOOKUP(L354,POA!$A$2:$C$25,3,0))","v":""}," ",{"$f":"IF(ISERROR(VLOOKUP(N354,POA!$A$2:$F$25,4,0)),\"\",VLOOKUP(N354,POA!$A$2:$F$25,4,0))","v":""},{"$f":"IF(ISERROR(VLOOKUP(L354,POA!$A$2:$C$25,2,0)),\"\",VLOOKUP(L354,POA!$A$2:$C$25,2,0))","v":""},null,{"$f":"IF(Q354=0,\"\",IF(Q353>=$R$9,\"HABIL\",\"NO HABIL\"))","v":""},null,{"$f":"IF(S354=0,\"\",IF(S354<=$T$9,\"HABIL\",\"NO HABIL\"))","v":""},{"$f":"IF(ISERROR(VLOOKUP(N354,POA!$A$2:$F$25,5,0)),\"\",VLOOKUP(N354,POA!$A$2:$F$25,5,0))","v":""},null,{"$f":"IF(V354=0,\"\",IF(V354>=$W$9,\"HABIL\",\"NO HABIL\"))","v":""},null,{"$f":"IF(ISERROR(F354/$Z$9),\"\",F354/$Z$9)","v":829195.19721722254},{"$f":"+IF(Y354<$Z$10,\"MIPYME\",\"NO CUMPLE\")","v":"NO CUMPLE"},null,{"$f":"IF(AA354=0,\"\",IF(AA354>=$AB$9,\"HABIL\",\"NO HABIL\"))","v":""},null,{"$f":"IF(AC354=0,\"\",IF(AC354>=$AD$9,\"HABIL\",\"NO HABIL\"))","v":""}]
[null,"",null,null,null,null,null,null,{"$f":"IF(ISERROR(F355-H355),\"\",F355-H355)","v":0},null,null,null,{"$f":"IF(ISERROR(VLOOKUP(L355,POA!$A$2:$C$25,3,0)),\"\",VLOOKUP(L355,POA!$A$2:$C$25,3,0))","v":""}," ",{"$f":"IF(ISERROR(VLOOKUP(N355,POA!$A$2:$F$25,4,0)),\"\",VLOOKUP(N355,POA!$A$2:$F$25,4,0))","v":""},{"$f":"IF(ISERROR(VLOOKUP(L355,POA!$A$2:$C$25,2,0)),\"\",VLOOKUP(L355,POA!$A$2:$C$25,2,0))","v":""},null,{"$f":"IF(Q355=0,\"\",IF(Q353>=$R$9,\"HABIL\",\"NO HABIL\"))","v":""},null,"",{"$f":"IF(ISERROR(VLOOKUP(N355,POA!$A$2:$F$25,5,0)),\"\",VLOOKUP(N355,POA!$A$2:$F$25,5,0))","v":""},null,"",null,{"$f":"IF(ISERROR(F355/$Z$9),\"\",F355/$Z$9)","v":0},{"$f":"+IF(Y355<$Z$10,\"MIPYME\",\"NO CUMPLE\")","v":"MIPYME"},null,"",null,""]
[null,"",null,null,null,null,null,null,0,null,null,null,{"$f":"IF(ISERROR(VLOOKUP(L356,POA!$A$2:$C$25,3,0)),\"\",VLOOKUP(L356,POA!$A$2:$C$25,3,0))","v":""},null,{"$f":"IF(ISERROR(VLOOKUP(N356,POA!$A$2:$F$25,4,0)),\"\",VLOOKUP(N356,POA!$A$2:$F$25,4,0))","v":""},{"$f":"IF(ISERROR(VLOOKUP(L356,POA!$A$2:$C$25,2,0)),\"\",VLOOKUP(L356,POA!$A$2:$C$25,2,0))","v":""},null,{"$f":"IF(Q356=0,\"\",IF(Q353>=$R$9,\"HABIL\",\"NO HABIL\"))","v":""},null,"",{"$f":"IF(ISERROR(VLOOKUP(N356,POA!$A$2:$F$25,5,0)),\"\",VLOOKUP(N356,POA!$A$2:$F$25,5,0))","v":""},null,"",null,0,"MIPYME",null,"",null,""]
[null,"",null,null,{"$f":"IF(ISERROR(VLOOKUP(C357,#REF!,2,0)),\"\",VLOOKUP(C357,#REF!,2,0))","v":""},null,{"$f":"IF(ISERROR(VLOOKUP(C357,#REF!,4,0)),\"\",VLOOKUP(C357,#REF!,4,0))","v":""},null,0,null,null,null,{"$f":"IF(ISERROR(VLOOKUP(L357,POA!$A$2:$C$25,3,0)),\"\",VLOOKUP(L357,POA!$A$2:$C$25,3,0))","v":""},null,{"$f":"IF(ISERROR(VLOOKUP(N357,POA!$A$2:$F$25,4,0)),\"\",VLOOKUP(N357,POA!$A$2:$F$25,4,0))","v":""},{"$f":"IF(ISERROR(VLOOKUP(L357,POA!$A$2:$C$25,2,0)),\"\",VLOOKUP(L357,POA!$A$2:$C$25,2,0))","v":""},null,{"$f":"IF(L357=0,\"\",IF(Q353>=$R$9,\"HABIL\",\"NO HABIL\"))","v":""},null,"",{"$f":"IF(ISERROR(VLOOKUP(N357,POA!$A$2:$F$25,5,0)),\"\",VLOOKUP(N357,POA!$A$2:$F$25,5,0))","v":""},null,"",null,0,"MIPYME",null,"",null,""]
[null,"",null,null,{"$f":"IF(ISERROR(VLOOKUP(C358,#REF!,2,0)),\"\",VLOOKUP(C358,#REF!,2,0))","v":""},null,{"$f":"IF(ISERROR(VLOOKUP(C358,#REF!,4,0)),\"\",VLOOKUP(C358,#REF!,4,0))","v":""},null,0,null,null,null,{"$f":"IF(ISERROR(VLOOKUP(L358,POA!$A$2:$C$25,3,0)),\"\",VLOOKUP(L358,POA!$A$2:$C$25,3,0))","v":""},null,{"$f":"IF(ISERROR(VLOOKUP(N358,POA!$A$2:$F$25,4,0)),\"\",VLOOKUP(N358,POA!$A$2:$F$25,4,0))","v":""},{"$f":"IF(ISERROR(VLOOKUP(L358,POA!$A$2:$C$25,2,0)),\"\",VLOOKUP(L358,POA!$A$2:$C$25,2,0))","v":""},null,{"$f":"IF(L358=0,\"\",IF(Q353>=$R$9,\"HABIL\",\"NO HABIL\"))","v":""},null,"",{"$f":"IF(ISERROR(VLOOKUP(N358,POA!$A$2:$F$25,5,0)),\"\",VLOOKUP(N358,POA!$A$2:$F$25,5,0))","v":""},null,"",null,0,"MIPYME",null,"",null,""]
[null,"",null,null,{"$f":"IF(ISERROR(VLOOKUP(C359,#REF!,2,0)),\"\",VLOOKUP(C359,#REF!,2,0))","v":""},null,{"$f":"IF(ISERROR(VLOOKUP(C359,#REF!,4,0)),\"\",VLOOKUP(C359,#REF!,4,0))","v":""},null,0,null,null,null,{"$f":"IF(ISERROR(VLOOKUP(L359,POA!$A$2:$C$25,3,0)),\"\",VLOOKUP(L359,POA!$A$2:$C$25,3,0))","v":""},null,{"$f":"IF(ISERROR(VLOOKUP(N359,POA!$A$2:$F$25,4,0)),\"\",VLOOKUP(N359,POA!$A$2:$F$25,4,0))","v":""},{"$f":"IF(ISERROR(VLOOKUP(L359,POA!$A$2:$C$25,2,0)),\"\",VLOOKUP(L359,POA!$A$2:$C$25,2,0))","v":""},null,{"$f":"IF(L359=0,\"\",IF(Q353>=$R$9,\"HABIL\",\"NO HABIL\"))","v":""},null,"",{"$f":"IF(ISERROR(VLOOKUP(N359,POA!$A$2:$F$25,5,0)),\"\",VLOOKUP(N359,POA!$A$2:$F$25,5,0))","v":""},null,"",null,0,"MIPYME",null,"",null,""]
[null,{"$f":"IF(C360=\"\",\"\",B359+0.1)","v":""},null,null,{"$f":"IF(ISERROR(VLOOKUP(C360,#REF!,2,0)),\"\",VLOOKUP(C360,#REF!,2,0))","v":""},null,{"$f":"IF(ISERROR(VLOOKUP(C360,#REF!,4,0)),\"\",VLOOKUP(C360,#REF!,4,0))","v":""},null,{"$f":"IF(ISERROR(F360-H360),\"\",F360-H360)","v":0},null,null,null,{"$f":"IF(ISERROR(VLOOKUP(L360,POA!$A$2:$C$25,3,0)),\"\",VLOOKUP(L360,POA!$A$2:$C$25,3,0))","v":""},null,{"$f":"IF(ISERROR(VLOOKUP(N360,POA!$A$2:$F$25,4,0)),\"\",VLOOKUP(N360,POA!$A$2:$F$25,4,0))","v":""},{"$f":"IF(ISERROR(VLOOKUP(L360,POA!$A$2:$C$25,2,0)),\"\",VLOOKUP(L360,POA!$A$2:$C$25,2,0))","v":""},null,{"$f":"IF(L360=0,\"\",IF(Q353>=$R$9,\"HABIL\",\"NO HABIL\"))","v":""},null,"",{"$f":"IF(ISERROR(VLOOKUP(N360,POA!$A$2:$F$25,5,0)),\"\",VLOOKUP(N360,POA!$A$2:$F$25,5,0))","v":""},null,"",null,0,"MIPYME",null,"",null,""]
[null,{"$f":"IF(C361=\"\",\"\",B360+0.1)","v":""},null,null,{"$f":"IF(ISERROR(VLOOKUP(C361,#REF!,2,0)),\"\",VLOOKUP(C361,#REF!,2,0))","v":""},null,{"$f":"IF(ISERROR(VLOOKUP(C361,#REF!,4,0)),\"\",VLOOKUP(C361,#REF!,4,0))","v":""},null,{"$f":"IF(ISERROR(F361-H361),\"\",F361-H361)","v":0},null,null,null,{"$f":"IF(ISERROR(VLOOKUP(L361,POA!$A$2:$C$25,3,0)),\"\",VLOOKUP(L361,POA!$A$2:$C$25,3,0))","v":""},null,{"$f":"IF(ISERROR(VLOOKUP(N361,POA!$A$2:$F$25,4,0)),\"\",VLOOKUP(N361,POA!$A$2:$F$25,4,0))","v":""},{"$f":"IF(ISERROR(VLOOKUP(L361,POA!$A$2:$C$25,2,0)),\"\",VLOOKUP(L361,POA!$A$2:$C$25,2,0))","v":""},null,{"$f":"IF(L361=0,\"\",IF(Q353>=$R$9,\"HABIL\",\"NO HABIL\"))","v":""},null,"",{"$f":"IF(ISERROR(VLOOKUP(N361,POA!$A$2:$F$25,5,0)),\"\",VLOOKUP(N361,POA!$A$2:$F$25,5,0))","v":""},null,"",null,0,"MIPYME",null,"",null,""]
[null,{"$f":"IF(C362=\"\",\"\",B361+0.1)","v":""},null,null,{"$f":"IF(ISERROR(VLOOKUP(C362,#REF!,2,0)),\"\",VLOOKUP(C362,#REF!,2,0))","v":""},null,{"$f":"IF(ISERROR(VLOOKUP(C362,#REF!,4,0)),\"\",VLOOKUP(C362,#REF!,4,0))","v":""},null,{"$f":"IF(ISERROR(F362-H362),\"\",F362-H362)","v":0},null,null,null,{"$f":"IF(ISERROR(VLOOKUP(L362,POA!$A$2:$C$25,3,0)),\"\",VLOOKUP(L362,POA!$A$2:$C$25,3,0))","v":""},null,{"$f":"IF(ISERROR(VLOOKUP(N362,POA!$A$2:$F$25,4,0)),\"\",VLOOKUP(N362,POA!$A$2:$F$25,4,0))","v":""},{"$f":"IF(ISERROR(VLOOKUP(L362,POA!$A$2:$C$25,2,0)),\"\",VLOOKUP(L362,POA!$A$2:$C$25,2,0))","v":""},null,{"$f":"IF(L362=0,\"\",IF(Q353>=$R$9,\"HABIL\",\"NO HABIL\"))","v":""},null,"",{"$f":"IF(ISERROR(VLOOKUP(N362,POA!$A$2:$F$25,5,0)),\"\",VLOOKUP(N362,POA!$A$2:$F$25,5,0))","v":""},null,"",null,0,"MIPYME",null,"",null,""]
[null,{"$f":"IF(C363=\"\",\"\",B362+0.1)","v":""},null,null,{"$f":"IF(ISERROR(VLOOKUP(C363,#REF!,2,0)),\"\",VLOOKUP(C363,#REF!,2,0))","v":""},null,{"$f":"IF(ISERROR(VLOOKUP(C363,#REF!,4,0)),\"\",VLOOKUP(C363,#REF!,4,0))","v":""},null,{"$f":"IF(ISERROR(F363-H363),\"\",F363-H363)","v":0},null,null,null,{"$f":"IF(ISERROR(VLOOKUP(L363,POA!$A$2:$C$25,3,0)),\"\",VLOOKUP(L363,POA!$A$2:$C$25,3,0))","v":""},null,{"$f":"IF(ISERROR(VLOOKUP(N363,POA!$A$2:$F$25,4,0)),\"\",VLOOKUP(N363,POA!$A$2:$F$25,4,0))","v":""},{"$f":"IF(ISERROR(VLOOKUP(L363,POA!$A$2:$C$25,2,0)),\"\",VLOOKUP(L363,POA!$A$2:$C$25,2,0))","v":""},null,{"$f":"IF(L363=0,\"\",IF(Q353>=$R$9,\"HABIL\",\"NO HABIL\"))","v":""},null,"",{"$f":"IF(ISERROR(VLOOKUP(N363,POA!$A$2:$F$25,5,0)),\"\",VLOOKUP(N363,POA!$A$2:$F$25,5,0))","v":""},null,"",null,{"$f":"IF(ISERROR(F363/$Z$9),\"\",F363/$Z$9)","v":0},"MIPYME",null,"",null,""]
[null,33,"CONSTRUCCIONES E INVERSIONES BETA S.A.S.",{"$f":"IF(SUM(D365:D374)=0,\"\",SUM(D365:D374))","v":1},{"$f":"SUM(E365:E374)","v":58291300967.5},{"$f":"SUM(F365:F374)","v":65842434528.370003},{"$f":"SUM(G365:G374)","v":7049854058.8199997},{"$f":"SUM(H365:H374)","v":37390193914.339996},{"$f":"+F364-H364","v":28452240614.030006},{"$f":"SUM(J365:J374)","v":3195694613},{"$f":"SUM(K365:K374)","v":2257919291.7399998},1,{"$f":"IF(ISERROR(VLOOKUP(L364,POA!$A$2:$C$25,3,0)),\"\",VLOOKUP(L364,POA!$A$2:$C$25,3,0))","v":3}," ",{"$f":"+SUM(O365:O374)","v":0},{"$f":"IF(ISERROR(VLOOKUP(L364,POA!$A$2:$C$25,2,0)),\"\",VLOOKUP(L364,POA!$A$2:$C$25,2,0))","v":4167150295},{"$f":"SUM(E364/G364)","v":8.2684408047528812},{"$f":"IF(Q364=0,\"\",IF(Q364>=$R$9,\"HABIL\",\"NO HABIL\"))","v":"HABIL"},{"$f":"SUM(H364/F364)","v":0.56787380634033835},{"$f":"IF(S364=0,\"\",IF(S364<=$T$9,\"HABIL\",\"NO HABIL\"))","v":"HABIL"},{"$f":"+SUM(U365:U374)","v":0},{"$f":"SUM(J364/K364)","v":1.4153272106273254},{"$f":"IF(V364=0,\"\",IF(V364>=$W$9,\"HABIL\",\"NO HABIL\"))","v":"HABIL"},{"$f":"IF(R364=0,\"\",IF(R364=\"NO HABIL\",\"NO HABIL\",IF(T364=\"NO HABIL\",\"NO HABIL\",IF(W364=\"NO HABIL\",\"NO HABIL\",IF(W364=\"NO HABIL\",\"NO HABIL\",\"HABIL\")))))","v":"HABIL"},null,null,{"$f":"SUM(J364/I364)","v":0.11231785420175941},{"$f":"IF(AA364=0,\"\",IF(AA364>=$AB$9,\"HABIL\",\"NO HABIL\"))","v":"HABIL"},{"$f":"SUM(J364/F364)","v":4.8535486816227123E-2},{"$f":"IF(AC364=0,\"\",IF(AC364>=$AD$9,\"HABIL\",\"NO HABIL\"))","v":"HABIL"},{"$f":"IF(AB364=0,\"\",IF(AB364=\"NO HABIL\",\"NO HABIL\",IF(AD364=\"NO HABIL\",\"NO HABIL\",IF(AD364=\"NO HABIL\",\"NO HABIL\",\"HABIL\"))))","v":"HABIL"}]
[null,{"$f":"IF(C365=\"\",\"\",B364+0.1)","v":33.1},"CONSTRUCCIONES E INVERSIONES BETA S.A.S.",1,58291300967.5,65842434528.370003,7049854058.8199997,37390193914.339996,{"$f":"+F365-H365","v":28452240614.030006},3195694613,2257919291.7399998,null,{"$f":"IF(ISERROR(VLOOKUP(L365,POA!$A$2:$C$25,3,0)),\"\",VLOOKUP(L365,POA!$A$2:$C$25,3,0))","v":""}," ",{"$f":"IF(ISERROR(VLOOKUP(N365,POA!$A$2:$F$25,4,0)),\"\",VLOOKUP(N365,POA!$A$2:$F$25,4,0))","v":""},{"$f":"IF(ISERROR(VLOOKUP(L365,POA!$A$2:$C$25,2,0)),\"\",VLOOKUP(L365,POA!$A$2:$C$25,2,0))","v":""},null,{"$f":"IF(Q365=0,\"\",IF(Q364>=$R$9,\"HABIL\",\"NO HABIL\"))","v":""},null,{"$f":"IF(S365=0,\"\",IF(S365<=$T$9,\"HABIL\",\"NO HABIL\"))","v":""},{"$f":"IF(ISERROR(VLOOKUP(N365,POA!$A$2:$F$25,5,0)),\"\",VLOOKUP(N365,POA!$A$2:$F$25,5,0))","v":""},null,{"$f":"IF(V365=0,\"\",IF(V365>=$W$9,\"HABIL\",\"NO HABIL\"))","v":""},null,{"$f":"IF(ISERROR(F365/$Z$9),\"\",F365/$Z$9)","v":116185.69706788425},{"$f":"+IF(Y365<$Z$10,\"MIPYME\",\"NO CUMPLE\")","v":"NO CUMPLE"},null,{"$f":"IF(AA365=0,\"\",IF(AA365>=$AB$9,\"HABIL\",\"NO HABIL\"))","v":""},null,{"$f":"IF(AC365=0,\"\",IF(AC365>=$AD$9,\"HABIL\",\"NO HABIL\"))","v":""}]
[null,"",null,null,null,null,null,null,{"$f":"IF(ISERROR(F366-H366),\"\",F366-H366)","v":0},null,null,null,{"$f":"IF(ISERROR(VLOOKUP(L366,POA!$A$2:$C$25,3,0)),\"\",VLOOKUP(L366,POA!$A$2:$C$25,3,0))","v":""}," ",{"$f":"IF(ISERROR(VLOOKUP(N366,POA!$A$2:$F$25,4,0)),\"\",VLOOKUP(N366,POA!$A$2:$F$25,4,0))","v":""},{"$f":"IF(ISERROR(VLOOKUP(L366,POA!$A$2:$C$25,2,0)),\"\",VLOOKUP(L366,POA!$A$2:$C$25,2,0))","v":""},null,{"$f":"IF(Q366=0,\"\",IF(Q364>=$R$9,\"HABIL\",\"NO HABIL\"))","v":""},null,"",{"$f":"IF(ISERROR(VLOOKUP(N366,POA!$A$2:$F$25,5,0)),\"\",VLOOKUP(N366,POA!$A$2:$F$25,5,0))","v":""},null,"",null,{"$f":"IF(ISERROR(F366/$Z$9),\"\",F366/$Z$9)","v":0},{"$f":"+IF(Y366<$Z$10,\"MIPYME\",\"NO CUMPLE\")","v":"MIPYME"},null,"",null,""]
[null,"",null,null,null,null,null,null,0,null,null,null,{"$f":"IF(ISERROR(VLOOKUP(L367,POA!$A$2:$C$25,3,0)),\"\",VLOOKUP(L367,POA!$A$2:$C$25,3,0))","v":""},null,{"$f":"IF(ISERROR(VLOOKUP(N367,POA!$A$2:$F$25,4,0)),\"\",VLOOKUP(N367,POA!$A$2:$F$25,4,0))","v":""},{"$f":"IF(ISERROR(VLOOKUP(L367,POA!$A$2:$C$25,2,0)),\"\",VLOOKUP(L367,POA!$A$2:$C$25,2,0))","v":""},null,{"$f":"IF(Q367=0,\"\",IF(Q364>=$R$9,\"HABIL\",\"NO HABIL\"))","v":""},null,"",{"$f":"IF(ISERROR(VLOOKUP(N367,POA!$A$2:$F$25,5,0)),\"\",VLOOKUP(N367,POA!$A$2:$F$25,5,0))","v":""},null,"",null,0,"MIPYME",null,"",null,""]
[null,"",null,null,{"$f":"IF(ISERROR(VLOOKUP(C368,#REF!,2,0)),\"\",VLOOKUP(C368,#REF!,2,0))","v":""},null,{"$f":"IF(ISERROR(VLOOKUP(C368,#REF!,4,0)),\"\",VLOOKUP(C368,#REF!,4,0))","v":""},null,0,null,null,null,{"$f":"IF(ISERROR(VLOOKUP(L368,POA!$A$2:$C$25,3,0)),\"\",VLOOKUP(L368,POA!$A$2:$C$25,3,0))","v":""},null,{"$f":"IF(ISERROR(VLOOKUP(N368,POA!$A$2:$F$25,4,0)),\"\",VLOOKUP(N368,POA!$A$2:$F$25,4,0))","v":""},{"$f":"IF(ISERROR(VLOOKUP(L368,POA!$A$2:$C$25,2,0)),\"\",VLOOKUP(L368,POA!$A$2:$C$25,2,0))","v":""},null,{"$f":"IF(L368=0,\"\",IF(Q364>=$R$9,\"HABIL\",\"NO HABIL\"))","v":""},null,"",{"$f":"IF(ISERROR(VLOOKUP(N368,POA!$A$2:$F$25,5,0)),\"\",VLOOKUP(N368,POA!$A$2:$F$25,5,0))","v":""},null,"",null,0,"MIPYME",null,"",null,""]
[null,"",null,null,{"$f":"IF(ISERROR(VLOOKUP(C369,#REF!,2,0)),\"\",VLOOKUP(C369,#REF!,2,0))","v":""},null,{"$f":"IF(ISERROR(VLOOKUP(C369,#REF!,4,0)),\"\",VLOOKUP(C369,#REF!,4,0))","v":""},null,0,null,null,null,{"$f":"IF(ISERROR(VLOOKUP(L369,POA!$A$2:$C$25,3,0)),\"\",VLOOKUP(L369,POA!$A$2:$C$25,3,0))","v":""},null,{"$f":"IF(ISERROR(VLOOKUP(N369,POA!$A$2:$F$25,4,0)),\"\",VLOOKUP(N369,POA!$A$2:$F$25,4,0))","v":""},{"$f":"IF(ISERROR(VLOOKUP(L369,POA!$A$2:$C$25,2,0)),\"\",VLOOKUP(L369,POA!$A$2:$C$25,2,0))","v":""},null,{"$f":"IF(L369=0,\"\",IF(Q364>=$R$9,\"HABIL\",\"NO HABIL\"))","v":""},null,"",{"$f":"IF(ISERROR(VLOOKUP(N369,POA!$A$2:$F$25,5,0)),\"\",VLOOKUP(N369,POA!$A$2:$F$25,5,0))","v":""},null,"",null,0,"MIPYME",null,"",null,""]
[null,"",null,null,{"$f":"IF(ISERROR(VLOOKUP(C370,#REF!,2,0)),\"\",VLOOKUP(C370,#REF!,2,0))","v":""},null,{"$f":"IF(ISERROR(VLOOKUP(C370,#REF!,4,0)),\"\",VLOOKUP(C370,#REF!,4,0))","v":""},null,0,null,null,null,{"$f":"IF(ISERROR(VLOOKUP(L370,POA!$A$2:$C$25,3,0)),\"\",VLOOKUP(L370,POA!$A$2:$C$25,3,0))","v":""},null,{"$f":"IF(ISERROR(VLOOKUP(N370,POA!$A$2:$F$25,4,0)),\"\",VLOOKUP(N370,POA!$A$2:$F$25,4,0))","v":""},{"$f":"IF(ISERROR(VLOOKUP(L370,POA!$A$2:$C$25,2,0)),\"\",VLOOKUP(L370,POA!$A$2:$C$25,2,0))","v":""},null,{"$f":"IF(L370=0,\"\",IF(Q364>=$R$9,\"HABIL\",\"NO HABIL\"))","v":""},null,"",{"$f":"IF(ISERROR(VLOOKUP(N370,POA!$A$2:$F$25,5,0)),\"\",VLOOKUP(N370,POA!$A$2:$F$25,5,0))","v":""},null,"",null,0,"MIPYME",null,"",null,""]
[null,{"$f":"IF(C371=\"\",\"\",B370+0.1)","v":""},null,null,{"$f":"IF(ISERROR(VLOOKUP(C371,#REF!,2,0)),\"\",VLOOKUP(C371,#REF!,2,0))","v":""},null,{"$f":"IF(ISERROR(VLOOKUP(C371,#REF!,4,0)),\"\",VLOOKUP(C371,#REF!,4,0))","v":""},null,{"$f":"IF(ISERROR(F371-H371),\"\",F371-H371)","v":0},null,null,null,{"$f":"IF(ISERROR(VLOOKUP(L371,POA!$A$2:$C$25,3,0)),\"\",VLOOKUP(L371,POA!$A$2:$C$25,3,0))","v":""},null,{"$f":"IF(ISERROR(VLOOKUP(N371,POA!$A$2:$F$25,4,0)),\"\",VLOOKUP(N371,POA!$A$2:$F$25,4,0))","v":""},{"$f":"IF(ISERROR(VLOOKUP(L371,POA!$A$2:$C$25,2,0)),\"\",VLOOKUP(L371,POA!$A$2:$C$25,2,0))","v":""},null,{"$f":"IF(L371=0,\"\",IF(Q364>=$R$9,\"HABIL\",\"NO HABIL\"))","v":""},null,"",{"$f":"IF(ISERROR(VLOOKUP(N371,POA!$A$2:$F$25,5,0)),\"\",VLOOKUP(N371,POA!$A$2:$F$25,5,0))","v":""},null,"",null,0,"MIPYME",null,"",null,""]
[null,{"$f":"IF(C372=\"\",\"\",B371+0.1)","v":""},null,null,{"$f":"IF(ISERROR(VLOOKUP(C372,#REF!,2,0)),\"\",VLOOKUP(C372,#REF!,2,0))","v":""},null,{"$f":"IF(ISERROR(VLOOKUP(C372,#REF!,4,0)),\"\",VLOOKUP(C372,#REF!,4,0))","v":""},null,{"$f":"IF(ISERROR(F372-H372),\"\",F372-H372)","v":0},null,null,null,{"$f":"IF(ISERROR(VLOOKUP(L372,POA!$A$2:$C$25,3,0)),\"\",VLOOKUP(L372,POA!$A$2:$C$25,3,0))","v":""},null,{"$f":"IF(ISERROR(VLOOKUP(N372,POA!$A$2:$F$25,4,0)),\"\",VLOOKUP(N372,POA!$A$2:$F$25,4,0))","v":""},{"$f":"IF(ISERROR(VLOOKUP(L372,POA!$A$2:$C$25,2,0)),\"\",VLOOKUP(L372,POA!$A$2:$C$25,2,0))","v":""},null,{"$f":"IF(L372=0,\"\",IF(Q364>=$R$9,\"HABIL\",\"NO HABIL\"))","v":""},null,"",{"$f":"IF(ISERROR(VLOOKUP(N372,POA!$A$2:$F$25,5,0)),\"\",VLOOKUP(N372,POA!$A$2:$F$25,5,0))","v":""},null,"",null,0,"MIPYME",null,"",null,""]
[null,{"$f":"IF(C373=\"\",\"\",B372+0.1)","v":""},null,null,{"$f":"IF(ISERROR(VLOOKUP(C373,#REF!,2,0)),\"\",VLOOKUP(C373,#REF!,2,0))","v":""},null,{"$f":"IF(ISERROR(VLOOKUP(C373,#REF!,4,0)),\"\",VLOOKUP(C373,#REF!,4,0))","v":""},null,{"$f":"IF(ISERROR(F373-H373),\"\",F373-H373)","v":0},null,null,null,{"$f":"IF(ISERROR(VLOOKUP(L373,POA!$A$2:$C$25,3,0)),\"\",VLOOKUP(L373,POA!$A$2:$C$25,3,0))","v":""},null,{"$f":"IF(ISERROR(VLOOKUP(N373,POA!$A$2:$F$25,4,0)),\"\",VLOOKUP(N373,POA!$A$2:$F$25,4,0))","v":""},{"$f":"IF(ISERROR(VLOOKUP(L373,POA!$A$2:$C$25,2,0)),\"\",VLOOKUP(L373,POA!$A$2:$C$25,2,0))","v":""},null,{"$f":"IF(L373=0,\"\",IF(Q364>=$R$9,\"HABIL\",\"NO HABIL\"))","v":""},null,"",{"$f":"IF(ISERROR(VLOOKUP(N373,POA!$A$2:$F$25,5,0)),\"\",VLOOKUP(N373,POA!$A$2:$F$25,5,0))","v":""},null,"",null,0,"MIPYME",null,"",null,""]
[null,{"$f":"IF(C374=\"\",\"\",B373+0.1)","v":""},null,null,{"$f":"IF(ISERROR(VLOOKUP(C374,#REF!,2,0)),\"\",VLOOKUP(C374,#REF!,2,0))","v":""},null,{"$f":"IF(ISERROR(VLOOKUP(C374,#REF!,4,0)),\"\",VLOOKUP(C374,#REF!,4,0))","v":""},null,{"$f":"IF(ISERROR(F374-H374),\"\",F374-H374)","v":0},null,null,null,{"$f":"IF(ISERROR(VLOOKUP(L374,POA!$A$2:$C$25,3,0)),\"\",VLOOKUP(L374,POA!$A$2:$C$25,3,0))","v":""},null,{"$f":"IF(ISERROR(VLOOKUP(N374,POA!$A$2:$F$25,4,0)),\"\",VLOOKUP(N374,POA!$A$2:$F$25,4,0))","v":""},{"$f":"IF(ISERROR(VLOOKUP(L374,POA!$A$2:$C$25,2,0)),\"\",VLOOKUP(L374,POA!$A$2:$C$25,2,0))","v":""},null,{"$f":"IF(L374=0,\"\",IF(Q364>=$R$9,\"HABIL\",\"NO HABIL\"))","v":""},null,"",{"$f":"IF(ISERROR(VLOOKUP(N374,POA!$A$2:$F$25,5,0)),\"\",VLOOKUP(N374,POA!$A$2:$F$25,5,0))","v":""},null,"",null,{"$f":"IF(ISERROR(F374/$Z$9),\"\",F374/$Z$9)","v":0},"MIPYME",null,"",null,""]
[null,34,"CI GRODCO S EN CA INGENIEROS CIVILES",{"$f":"IF(SUM(D376:D385)=0,\"\",SUM(D376:D385))","v":1},{"$f":"SUM(E376:E385)","v":206578272000},{"$f":"SUM(F376:F385)","v":256691877000},{"$f":"SUM(G376:G385)","v":80040795000},{"$f":"SUM(H376:H385)","v":127472571000},{"$f":"+F375-H375","v":129219306000},{"$f":"SUM(J376:J385)","v":10360224000},{"$f":"SUM(K376:K385)","v":4944965000},1,{"$f":"IF(ISERROR(VLOOKUP(L375,POA!$A$2:$C$25,3,0)),\"\",VLOOKUP(L375,POA!$A$2:$C$25,3,0))","v":3}," ",{"$f":"+SUM(O376:O385)","v":0},{"$f":"IF(ISERROR(VLOOKUP(L375,POA!$A$2:$C$25,2,0)),\"\",VLOOKUP(L375,POA!$A$2:$C$25,2,0))","v":4167150295},{"$f":"SUM(E375/G375)","v":2.5809122960360402},{"$f":"IF(Q375=0,\"\",IF(Q375>=$R$9,\"HABIL\",\"NO HABIL\"))","v":"HABIL"},{"$f":"SUM(H375/F375)","v":0.49659760367095684},{"$f":"IF(S375=0,\"\",IF(S375<=$T$9,\"HABIL\",\"NO HABIL\"))","v":"HABIL"},{"$f":"+SUM(U376:U385)","v":0},{"$f":"SUM(J375/K375)","v":2.0951056276434716},{"$f":"IF(V375=0,\"\",IF(V375>=$W$9,\"HABIL\",\"NO HABIL\"))","v":"HABIL"},{"$f":"IF(R375=0,\"\",IF(R375=\"NO HABIL\",\"NO HABIL\",IF(T375=\"NO HABIL\",\"NO HABIL\",IF(W375=\"NO HABIL\",\"NO HABIL\",IF(W375=\"NO HABIL\",\"NO HABIL\",\"HABIL\")))))","v":"HABIL"},null,null,{"$f":"SUM(J375/I375)","v":8.0175511854242584E-2},{"$f":"IF(AA375=0,\"\",IF(AA375>=$AB$9,\"HABIL\",\"NO HABIL\"))","v":"HABIL"},{"$f":"SUM(J375/F375)","v":4.0360544794333326E-2},{"$f":"IF(AC375=0,\"\",IF(AC375>=$AD$9,\"HABIL\",\"NO HABIL\"))","v":"HABIL"},{"$f":"IF(AB375=0,\"\",IF(AB375=\"NO HABIL\",\"NO HABIL\",IF(AD375=\"NO HABIL\",\"NO HABIL\",IF(AD375=\"NO HABIL\",\"NO HABIL\",\"HABIL\"))))","v":"HABIL"}]
[null,{"$f":"IF(C376=\"\",\"\",B375+0.1)","v":34.1},"CI GRODCO S EN CA INGENIEROS CIVILES",1,206578272000,256691877000,80040795000,127472571000,{"$f":"IF(ISERROR(F376-H376),\"\",F376-H376)","v":129219306000},10360224000,4944965000,null,{"$f":"IF(ISERROR(VLOOKUP(L376,POA!$A$2:$C$25,3,0)),\"\",VLOOKUP(L376,POA!$A$2:$C$25,3,0))","v":""}," ",{"$f":"IF(ISERROR(VLOOKUP(N376,POA!$A$2:$F$25,4,0)),\"\",VLOOKUP(N376,POA!$A$2:$F$25,4,0))","v":""},{"$f":"IF(ISERROR(VLOOKUP(L376,POA!$A$2:$C$25,2,0)),\"\",VLOOKUP(L376,POA!$A$2:$C$25,2,0))","v":""},null,{"$f":"IF(Q376=0,\"\",IF(Q375>=$R$9,\"HABIL\",\"NO HABIL\"))","v":""},null,{"$f":"IF(S376=0,\"\",IF(S376<=$T$9,\"HABIL\",\"NO HABIL\"))","v":""},{"$f":"IF(ISERROR(VLOOKUP(N376,POA!$A$2:$F$25,5,0)),\"\",VLOOKUP(N376,POA!$A$2:$F$25,5,0))","v":""},null,{"$f":"IF(V376=0,\"\",IF(V376>=$W$9,\"HABIL\",\"NO HABIL\"))","v":""},null,{"$f":"IF(ISERROR(F376/$Z$9),\"\",F376/$Z$9)","v":452959.02064584434},{"$f":"+IF(Y376<$Z$10,\"MIPYME\",\"NO CUMPLE\")","v":"NO CUMPLE"},null,{"$f":"IF(AA376=0,\"\",IF(AA376>=$AB$9,\"HABIL\",\"NO HABIL\"))","v":""},null,{"$f":"IF(AC376=0,\"\",IF(AC376>=$AD$9,\"HABIL\",\"NO HABIL\"))","v":""}]
[null,"",null,null,null,null,null,null,0,null,null,null,{"$f":"IF(ISERROR(VLOOKUP(L377,POA!$A$2:$C$25,3,0)),\"\",VLOOKUP(L377,POA!$A$2:$C$25,3,0))","v":""}," ",{"$f":"IF(ISERROR(VLOOKUP(N377,POA!$A$2:$F$25,4,0)),\"\",VLOOKUP(N377,POA!$A$2:$F$25,4,0))","v":""},{"$f":"IF(ISERROR(VLOOKUP(L377,POA!$A$2:$C$25,2,0)),\"\",VLOOKUP(L377,POA!$A$2:$C$25,2,0))","v":""},null,{"$f":"IF(Q377=0,\"\",IF(Q375>=$R$9,\"HABIL\",\"NO HABIL\"))","v":""},null,"",{"$f":"IF(ISERROR(VLOOKUP(N377,POA!$A$2:$F$25,5,0)),\"\",VLOOKUP(N377,POA!$A$2:$F$25,5,0))","v":""},null,"",null,{"$f":"IF(ISERROR(F377/$Z$9),\"\",F377/$Z$9)","v":0},{"$f":"+IF(Y377<$Z$10,\"MIPYME\",\"NO CUMPLE\")","v":"MIPYME"},null,"",null,""]
[null,"",null,null,null,null,null,null,0,null,null,null,{"$f":"IF(ISERROR(VLOOKUP(L378,POA!$A$2:$C$25,3,0)),\"\",VLOOKUP(L378,POA!$A$2:$C$25,3,0))","v":""},null,{"$f":"IF(ISERROR(VLOOKUP(N378,POA!$A$2:$F$25,4,0)),\"\",VLOOKUP(N378,POA!$A$2:$F$25,4,0))","v":""},{"$f":"IF(ISERROR(VLOOKUP(L378,POA!$A$2:$C$25,2,0)),\"\",VLOOKUP(L378,POA!$A$2:$C$25,2,0))","v":""},null,{"$f":"IF(Q378=0,\"\",IF(Q375>=$R$9,\"HABIL\",\"NO HABIL\"))","v":""},null,"",{"$f":"IF(ISERROR(VLOOKUP(N378,POA!$A$2:$F$25,5,0)),\"\",VLOOKUP(N378,POA!$A$2:$F$25,5,0))","v":""},null,"",null,0,"MIPYME",null,"",null,""]
[null,"",null,null,{"$f":"IF(ISERROR(VLOOKUP(C379,#REF!,2,0)),\"\",VLOOKUP(C379,#REF!,2,0))","v":""},null,{"$f":"IF(ISERROR(VLOOKUP(C379,#REF!,4,0)),\"\",VLOOKUP(C379,#REF!,4,0))","v":""},null,0,null,null,null,{"$f":"IF(ISERROR(VLOOKUP(L379,POA!$A$2:$C$25,3,0)),\"\",VLOOKUP(L379,POA!$A$2:$C$25,3,0))","v":""},null,{"$f":"IF(ISERROR(VLOOKUP(N379,POA!$A$2:$F$25,4,0)),\"\",VLOOKUP(N379,POA!$A$2:$F$25,4,0))","v":""},{"$f":"IF(ISERROR(VLOOKUP(L379,POA!$A$2:$C$25,2,0)),\"\",VLOOKUP(L379,POA!$A$2:$C$25,2,0))","v":""},null,{"$f":"IF(L379=0,\"\",IF(Q375>=$R$9,\"HABIL\",\"NO HABIL\"))","v":""},null,"",{"$f":"IF(ISERROR(VLOOKUP(N379,POA!$A$2:$F$25,5,0)),\"\",VLOOKUP(N379,POA!$A$2:$F$25,5,0))","v":""},null,"",null,0,"MIPYME",null,"",null,""]
[null,"",null,null,{"$f":"IF(ISERROR(VLOOKUP(C380,#REF!,2,0)),\"\",VLOOKUP(C380,#REF!,2,0))","v":""},null,{"$f":"IF(ISERROR(VLOOKUP(C380,#REF!,4,0)),\"\",VLOOKUP(C380,#REF!,4,0))","v":""},null,0,null,null,null,{"$f":"IF(ISERROR(VLOOKUP(L380,POA!$A$2:$C$25,3,0)),\"\",VLOOKUP(L380,POA!$A$2:$C$25,3,0))","v":""},null,{"$f":"IF(ISERROR(VLOOKUP(N380,POA!$A$2:$F$25,4,0)),\"\",VLOOKUP(N380,POA!$A$2:$F$25,4,0))","v":""},{"$f":"IF(ISERROR(VLOOKUP(L380,POA!$A$2:$C$25,2,0)),\"\",VLOOKUP(L380,POA!$A$2:$C$25,2,0))","v":""},null,{"$f":"IF(L380=0,\"\",IF(Q375>=$R$9,\"HABIL\",\"NO HABIL\"))","v":""},null,"",{"$f":"IF(ISERROR(VLOOKUP(N380,POA!$A$2:$F$25,5,0)),\"\",VLOOKUP(N380,POA!$A$2:$F$25,5,0))","v":""},null,"",null,0,"MIPYME",null,"",null,""]
[null,"",null,null,{"$f":"IF(ISERROR(VLOOKUP(C381,#REF!,2,0)),\"\",VLOOKUP(C381,#REF!,2,0))","v":""},null,{"$f":"IF(ISERROR(VLOOKUP(C381,#REF!,4,0)),\"\",VLOOKUP(C381,#REF!,4,0))","v":""},null,0,null,null,null,{"$f":"IF(ISERROR(VLOOKUP(L381,POA!$A$2:$C$25,3,0)),\"\",VLOOKUP(L381,POA!$A$2:$C$25,3,0))","v":""},null,{"$f":"IF(ISERROR(VLOOKUP(N381,POA!$A$2:$F$25,4,0)),\"\",VLOOKUP(N381,POA!$A$2:$F$25,4,0))","v":""},{"$f":"IF(ISERROR(VLOOKUP(L381,POA!$A$2:$C$25,2,0)),\"\",VLOOKUP(L381,POA!$A$2:$C$25,2,0))","v":""},null,{"$f":"IF(L381=0,\"\",IF(Q375>=$R$9,\"HABIL\",\"NO HABIL\"))","v":""},null,"",{"$f":"IF(ISERROR(VLOOKUP(N381,POA!$A$2:$F$25,5,0)),\"\",VLOOKUP(N381,POA!$A$2:$F$25,5,0))","v":""},null,"",null,0,"MIPYME",null,"",null,""]
[null,{"$f":"IF(C382=\"\",\"\",B381+0.1)","v":""},null,null,{"$f":"IF(ISERROR(VLOOKUP(C382,#REF!,2,0)),\"\",VLOOKUP(C382,#REF!,2,0))","v":""},null,{"$f":"IF(ISERROR(VLOOKUP(C382,#REF!,4,0)),\"\",VLOOKUP(C382,#REF!,4,0))","v":""},null,{"$f":"IF(ISERROR(F382-H382),\"\",F382-H382)","v":0},null,null,null,{"$f":"IF(ISERROR(VLOOKUP(L382,POA!$A$2:$C$25,3,0)),\"\",VLOOKUP(L382,POA!$A$2:$C$25,3,0))","v":""},null,{"$f":"IF(ISERROR(VLOOKUP(N382,POA!$A$2:$F$25,4,0)),\"\",VLOOKUP(N382,POA!$A$2:$F$25,4,0))","v":""},{"$f":"IF(ISERROR(VLOOKUP(L382,POA!$A$2:$C$25,2,0)),\"\",VLOOKUP(L382,POA!$A$2:$C$25,2,0))","v":""},null,{"$f":"IF(L382=0,\"\",IF(Q375>=$R$9,\"HABIL\",\"NO HABIL\"))","v":""},null,"",{"$f":"IF(ISERROR(VLOOKUP(N382,POA!$A$2:$F$25,5,0)),\"\",VLOOKUP(N382,POA!$A$2:$F$25,5,0))","v":""},null,"",null,0,"MIPYME",null,"",null,""]
[null,{"$f":"IF(C383=\"\",\"\",B382+0.1)","v":""},null,null,{"$f":"IF(ISERROR(VLOOKUP(C383,#REF!,2,0)),\"\",VLOOKUP(C383,#REF!,2,0))","v":""},null,{"$f":"IF(ISERROR(VLOOKUP(C383,#REF!,4,0)),\"\",VLOOKUP(C383,#REF!,4,0))","v":""},null,{"$f":"IF(ISERROR(F383-H383),\"\",F383-H383)","v":0},null,null,null,{"$f":"IF(ISERROR(VLOOKUP(L383,POA!$A$2:$C$25,3,0)),\"\",VLOOKUP(L383,POA!$A$2:$C$25,3,0))","v":""},null,{"$f":"IF(ISERROR(VLOOKUP(N383,POA!$A$2:$F$25,4,0)),\"\",VLOOKUP(N383,POA!$A$2:$F$25,4,0))","v":""},{"$f":"IF(ISERROR(VLOOKUP(L383,POA!$A$2:$C$25,2,0)),\"\",VLOOKUP(L383,POA!$A$2:$C$25,2,0))","v":""},null,{"$f":"IF(L383=0,\"\",IF(Q375>=$R$9,\"HABIL\",\"NO HABIL\"))","v":""},null,"",{"$f":"IF(ISERROR(VLOOKUP(N383,POA!$A$2:$F$25,5,0)),\"\",VLOOKUP(N383,POA!$A$2:$F$25,5,0))","v":""},null,"",null,0,"MIPYME",null,"",null,""]
[null,{"$f":"IF(C384=\"\",\"\",B383+0.1)","v":""},null,null,{"$f":"IF(ISERROR(VLOOKUP(C384,#REF!,2,0)),\"\",VLOOKUP(C384,#REF!,2,0))","v":""},null,{"$f":"IF(ISERROR(VLOOKUP(C384,#REF!,4,0)),\"\",VLOOKUP(C384,#REF!,4,0))","v":""},null,{"$f":"IF(ISERROR(F384-H384),\"\",F384-H384)","v":0},null,null,null,{"$f":"IF(ISERROR(VLOOKUP(L384,POA!$A$2:$C$25,3,0)),\"\",VLOOKUP(L384,POA!$A$2:$C$25,3,0))","v":""},null,{"$f":"IF(ISERROR(VLOOKUP(N384,POA!$A$2:$F$25,4,0)),\"\",VLOOKUP(N384,POA!$A$2:$F$25,4,0))","v":""},{"$f":"IF(ISERROR(VLOOKUP(L384,POA!$A$2:$C$25,2,0)),\"\",VLOOKUP(L384,POA!$A$2:$C$25,2,0))","v":""},null,{"$f":"IF(L384=0,\"\",IF(Q375>=$R$9,\"HABIL\",\"NO HABIL\"))","v":""},null,"",{"$f":"IF(ISERROR(VLOOKUP(N384,POA!$A$2:$F$25,5,0)),\"\",VLOOKUP(N384,POA!$A$2:$F$25,5,0))","v":""},null,"",null,0,"MIPYME",null,"",null,""]
[null,{"$f":"IF(C385=\"\",\"\",B384+0.1)","v":""},null,null,{"$f":"IF(ISERROR(VLOOKUP(C385,#REF!,2,0)),\"\",VLOOKUP(C385,#REF!,2,0))","v":""},null,{"$f":"IF(ISERROR(VLOOKUP(C385,#REF!,4,0)),\"\",VLOOKUP(C385,#REF!,4,0))","v":""},null,{"$f":"IF(ISERROR(F385-H385),\"\",F385-H385)","v":0},null,null,null,{"$f":"IF(ISERROR(VLOOKUP(L385,POA!$A$2:$C$25,3,0)),\"\",VLOOKUP(L385,POA!$A$2:$C$25,3,0))","v":""},null,{"$f":"IF(ISERROR(VLOOKUP(N385,POA!$A$2:$F$25,4,0)),\"\",VLOOKUP(N385,POA!$A$2:$F$25,4,0))","v":""},{"$f":"IF(ISERROR(VLOOKUP(L385,POA!$A$2:$C$25,2,0)),\"\",VLOOKUP(L385,POA!$A$2:$C$25,2,0))","v":""},null,{"$f":"IF(L385=0,\"\",IF(Q375>=$R$9,\"HABIL\",\"NO HABIL\"))","v":""},null,"",{"$f":"IF(ISERROR(VLOOKUP(N385,POA!$A$2:$F$25,5,0)),\"\",VLOOKUP(N385,POA!$A$2:$F$25,5,0))","v":""},null,"",null,{"$f":"IF(ISERROR(F385/$Z$9),\"\",F385/$Z$9)","v":0},"MIPYME",null,"",null,""]
[null,35,"MUVEK S.A.S",{"$f":"IF(SUM(D387:D396)=0,\"\",SUM(D387:D396))","v":1},{"$f":"SUM(E387:E396)","v":9581892867},{"$f":"SUM(F387:F396)","v":10707949702},{"$f":"SUM(G387:G396)","v":383855272},{"$f":"SUM(H387:H396)","v":690166665},{"$f":"+F386-H386","v":10017783037},{"$f":"SUM(J387:J396)","v":753528048},{"$f":"SUM(K387:K396)","v":5829681},1,{"$f":"IF(ISERROR(VLOOKUP(L386,POA!$A$2:$C$25,3,0)),\"\",VLOOKUP(L386,POA!$A$2:$C$25,3,0))","v":3}," ",{"$f":"+SUM(O387:O396)","v":0},{"$f":"IF(ISERROR(VLOOKUP(L386,POA!$A$2:$C$25,2,0)),\"\",VLOOKUP(L386,POA!$A$2:$C$25,2,0))","v":4167150295},{"$f":"SUM(E386/G386)","v":24.962254177402571},{"$f":"IF(Q386=0,\"\",IF(Q386>=$R$9,\"HABIL\",\"NO HABIL\"))","v":"HABIL"},{"$f":"SUM(H386/F386)","v":6.4453670796669194E-2},{"$f":"IF(S386=0,\"\",IF(S386<=$T$9,\"HABIL\",\"NO HABIL\"))","v":"HABIL"},{"$f":"+SUM(U387:U396)","v":0},{"$f":"SUM(J386/K386)","v":129.25716655851323},{"$f":"IF(V386=0,\"\",IF(V386>=$W$9,\"HABIL\",\"NO HABIL\"))","v":"HABIL"},{"$f":"IF(R386=0,\"\",IF(R386=\"NO HABIL\",\"NO HABIL\",IF(T386=\"NO HABIL\",\"NO HABIL\",IF(W386=\"NO HABIL\",\"NO HABIL\",IF(W386=\"NO HABIL\",\"NO HABIL\",\"HABIL\")))))","v":"HABIL"},null,null,{"$f":"SUM(J386/I386)","v":7.5219042498414615E-2},{"$f":"IF(AA386=0,\"\",IF(AA386>=$AB$9,\"HABIL\",\"NO HABIL\"))","v":"HABIL"},{"$f":"SUM(J386/F386)","v":7.0370899095581127E-2},{"$f":"IF(AC386=0,\"\",IF(AC386>=$AD$9,\"HABIL\",\"NO HABIL\"))","v":"HABIL"},{"$f":"IF(AB386=0,\"\",IF(AB386=\"NO HABIL\",\"NO HABIL\",IF(AD386=\"NO HABIL\",\"NO HABIL\",IF(AD386=\"NO HABIL\",\"NO HABIL\",\"HABIL\"))))","v":"HABIL"}]
[null,{"$f":"IF(C387=\"\",\"\",B386+0.1)","v":35.1},"MUVEK S.A.S",1,9581892867,10707949702,383855272,690166665,10017783037,753528048,5829681,null,{"$f":"IF(ISERROR(VLOOKUP(L387,POA!$A$2:$C$25,3,0)),\"\",VLOOKUP(L387,POA!$A$2:$C$25,3,0))","v":""}," ",{"$f":"IF(ISERROR(VLOOKUP(N387,POA!$A$2:$F$25,4,0)),\"\",VLOOKUP(N387,POA!$A$2:$F$25,4,0))","v":""},{"$f":"IF(ISERROR(VLOOKUP(L387,POA!$A$2:$C$25,2,0)),\"\",VLOOKUP(L387,POA!$A$2:$C$25,2,0))","v":""},null,{"$f":"IF(Q387=0,\"\",IF(Q386>=$R$9,\"HABIL\",\"NO HABIL\"))","v":""},null,{"$f":"IF(S387=0,\"\",IF(S387<=$T$9,\"HABIL\",\"NO HABIL\"))","v":""},{"$f":"IF(ISERROR(VLOOKUP(N387,POA!$A$2:$F$25,5,0)),\"\",VLOOKUP(N387,POA!$A$2:$F$25,5,0))","v":""},null,{"$f":"IF(V387=0,\"\",IF(V387>=$W$9,\"HABIL\",\"NO HABIL\"))","v":""},null,{"$f":"IF(ISERROR(F387/$Z$9),\"\",F387/$Z$9)","v":18895.2703405682},{"$f":"+IF(Y387<$Z$10,\"MIPYME\",\"NO CUMPLE\")","v":"MIPYME"},null,{"$f":"IF(AA387=0,\"\",IF(AA387>=$AB$9,\"HABIL\",\"NO HABIL\"))","v":""},null,{"$f":"IF(AC387=0,\"\",IF(AC387>=$AD$9,\"HABIL\",\"NO HABIL\"))","v":""}]
[null,"",null,null,null,null,null,null,{"$f":"IF(ISERROR(F388-H388),\"\",F388-H388)","v":0},null,null,null,{"$f":"IF(ISERROR(VLOOKUP(L388,POA!$A$2:$C$25,3,0)),\"\",VLOOKUP(L388,POA!$A$2:$C$25,3,0))","v":""}," ",{"$f":"IF(ISERROR(VLOOKUP(N388,POA!$A$2:$F$25,4,0)),\"\",VLOOKUP(N388,POA!$A$2:$F$25,4,0))","v":""},{"$f":"IF(ISERROR(VLOOKUP(L388,POA!$A$2:$C$25,2,0)),\"\",VLOOKUP(L388,POA!$A$2:$C$25,2,0))","v":""},null,{"$f":"IF(Q388=0,\"\",IF(Q386>=$R$9,\"HABIL\",\"NO HABIL\"))","v":""},null,"",{"$f":"IF(ISERROR(VLOOKUP(N388,POA!$A$2:$F$25,5,0)),\"\",VLOOKUP(N388,POA!$A$2:$F$25,5,0))","v":""},null,"",null,{"$f":"IF(ISERROR(F388/$Z$9),\"\",F388/$Z$9)","v":0},{"$f":"+IF(Y388<$Z$10,\"MIPYME\",\"NO CUMPLE\")","v":"MIPYME"},null,"",null,""]
[null,"",null,null,null,null,null,null,0,null,null,null,{"$f":"IF(ISERROR(VLOOKUP(L389,POA!$A$2:$C$25,3,0)),\"\",VLOOKUP(L389,POA!$A$2:$C$25,3,0))","v":""},null,{"$f":"IF(ISERROR(VLOOKUP(N389,POA!$A$2:$F$25,4,0)),\"\",VLOOKUP(N389,POA!$A$2:$F$25,4,0))","v":""},{"$f":"IF(ISERROR(VLOOKUP(L389,POA!$A$2:$C$25,2,0)),\"\",VLOOKUP(L389,POA!$A$2:$C$25,2,0))","v":""},null,{"$f":"IF(Q389=0,\"\",IF(Q386>=$R$9,\"HABIL\",\"NO HABIL\"))","v":""},null,"",{"$f":"IF(ISERROR(VLOOKUP(N389,POA!$A$2:$F$25,5,0)),\"\",VLOOKUP(N389,POA!$A$2:$F$25,5,0))","v":""},null,"",null,0,"MIPYME",null,"",null,""]
[null,"",null,null,{"$f":"IF(ISERROR(VLOOKUP(C390,#REF!,2,0)),\"\",VLOOKUP(C390,#REF!,2,0))","v":""},null,{"$f":"IF(ISERROR(VLOOKUP(C390,#REF!,4,0)),\"\",VLOOKUP(C390,#REF!,4,0))","v":""},null,0,null,null,null,{"$f":"IF(ISERROR(VLOOKUP(L390,POA!$A$2:$C$25,3,0)),\"\",VLOOKUP(L390,POA!$A$2:$C$25,3,0))","v":""},null,{"$f":"IF(ISERROR(VLOOKUP(N390,POA!$A$2:$F$25,4,0)),\"\",VLOOKUP(N390,POA!$A$2:$F$25,4,0))","v":""},{"$f":"IF(ISERROR(VLOOKUP(L390,POA!$A$2:$C$25,2,0)),\"\",VLOOKUP(L390,POA!$A$2:$C$25,2,0))","v":""},null,{"$f":"IF(L390=0,\"\",IF(Q386>=$R$9,\"HABIL\",\"NO HABIL\"))","v":""},null,"",{"$f":"IF(ISERROR(VLOOKUP(N390,POA!$A$2:$F$25,5,0)),\"\",VLOOKUP(N390,POA!$A$2:$F$25,5,0))","v":""},null,"",null,0,"MIPYME",null,"",null,""]
[null,"",null,null,{"$f":"IF(ISERROR(VLOOKUP(C391,#REF!,2,0)),\"\",VLOOKUP(C391,#REF!,2,0))","v":""},null,{"$f":"IF(ISERROR(VLOOKUP(C391,#REF!,4,0)),\"\",VLOOKUP(C391,#REF!,4,0))","v":""},null,0,null,null,null,{"$f":"IF(ISERROR(VLOOKUP(L391,POA!$A$2:$C$25,3,0)),\"\",VLOOKUP(L391,POA!$A$2:$C$25,3,0))","v":""},null,{"$f":"IF(ISERROR(VLOOKUP(N391,POA!$A$2:$F$25,4,0)),\"\",VLOOKUP(N391,POA!$A$2:$F$25,4,0))","v":""},{"$f":"IF(ISERROR(VLOOKUP(L391,POA!$A$2:$C$25,2,0)),\"\",VLOOKUP(L391,POA!$A$2:$C$25,2,0))","v":""},null,{"$f":"IF(L391=0,\"\",IF(Q386>=$R$9,\"HABIL\",\"NO HABIL\"))","v":""},null,"",{"$f":"IF(ISERROR(VLOOKUP(N391,POA!$A$2:$F$25,5,0)),\"\",VLOOKUP(N391,POA!$A$2:$F$25,5,0))","v":""},null,"",null,0,"MIPYME",null,"",null,""]
[null,"",null,null,{"$f":"IF(ISERROR(VLOOKUP(C392,#REF!,2,0)),\"\",VLOOKUP(C392,#REF!,2,0))","v":""},null,{"$f":"IF(ISERROR(VLOOKUP(C392,#REF!,4,0)),\"\",VLOOKUP(C392,#REF!,4,0))","v":""},null,0,null,null,null,{"$f":"IF(ISERROR(VLOOKUP(L392,POA!$A$2:$C$25,3,0)),\"\",VLOOKUP(L392,POA!$A$2:$C$25,3,0))","v":""},null,{"$f":"IF(ISERROR(VLOOKUP(N392,POA!$A$2:$F$25,4,0)),\"\",VLOOKUP(N392,POA!$A$2:$F$25,4,0))","v":""},{"$f":"IF(ISERROR(VLOOKUP(L392,POA!$A$2:$C$25,2,0)),\"\",VLOOKUP(L392,POA!$A$2:$C$25,2,0))","v":""},null,{"$f":"IF(L392=0,\"\",IF(Q386>=$R$9,\"HABIL\",\"NO HABIL\"))","v":""},null,"",{"$f":"IF(ISERROR(VLOOKUP(N392,POA!$A$2:$F$25,5,0)),\"\",VLOOKUP(N392,POA!$A$2:$F$25,5,0))","v":""},null,"",null,0,"MIPYME",null,"",null,""]
[null,{"$f":"IF(C393=\"\",\"\",B392+0.1)","v":""},null,null,{"$f":"IF(ISERROR(VLOOKUP(C393,#REF!,2,0)),\"\",VLOOKUP(C393,#REF!,2,0))","v":""},null,{"$f":"IF(ISERROR(VLOOKUP(C393,#REF!,4,0)),\"\",VLOOKUP(C393,#REF!,4,0))","v":""},null,{"$f":"IF(ISERROR(F393-H393),\"\",F393-H393)","v":0},null,null,null,{"$f":"IF(ISERROR(VLOOKUP(L393,POA!$A$2:$C$25,3,0)),\"\",VLOOKUP(L393,POA!$A$2:$C$25,3,0))","v":""},null,{"$f":"IF(ISERROR(VLOOKUP(N393,POA!$A$2:$F$25,4,0)),\"\",VLOOKUP(N393,POA!$A$2:$F$25,4,0))","v":""},{"$f":"IF(ISERROR(VLOOKUP(L393,POA!$A$2:$C$25,2,0)),\"\",VLOOKUP(L393,POA!$A$2:$C$25,2,0))","v":""},null,{"$f":"IF(L393=0,\"\",IF(Q386>=$R$9,\"HABIL\",\"NO HABIL\"))","v":""},null,"",{"$f":"IF(ISERROR(VLOOKUP(N393,POA!$A$2:$F$25,5,0)),\"\",VLOOKUP(N393,POA!$A$2:$F$25,5,0))","v":""},null,"",null,0,"MIPYME",null,"",null,""]
[null,{"$f":"IF(C394=\"\",\"\",B393+0.1)","v":""},null,null,{"$f":"IF(ISERROR(VLOOKUP(C394,#REF!,2,0)),\"\",VLOOKUP(C394,#REF!,2,0))","v":""},null,{"$f":"IF(ISERROR(VLOOKUP(C394,#REF!,4,0)),\"\",VLOOKUP(C394,#REF!,4,0))","v":""},null,{"$f":"IF(ISERROR(F394-H394),\"\",F394-H394)","v":0},null,null,null,{"$f":"IF(ISERROR(VLOOKUP(L394,POA!$A$2:$C$25,3,0)),\"\",VLOOKUP(L394,POA!$A$2:$C$25,3,0))","v":""},null,{"$f":"IF(ISERROR(VLOOKUP(N394,POA!$A$2:$F$25,4,0)),\"\",VLOOKUP(N394,POA!$A$2:$F$25,4,0))","v":""},{"$f":"IF(ISERROR(VLOOKUP(L394,POA!$A$2:$C$25,2,0)),\"\",VLOOKUP(L394,POA!$A$2:$C$25,2,0))","v":""},null,{"$f":"IF(L394=0,\"\",IF(Q386>=$R$9,\"HABIL\",\"NO HABIL\"))","v":""},null,"",{"$f":"IF(ISERROR(VLOOKUP(N394,POA!$A$2:$F$25,5,0)),\"\",VLOOKUP(N394,POA!$A$2:$F$25,5,0))","v":""},null,"",null,0,"MIPYME",null,"",null,""]
[null,{"$f":"IF(C395=\"\",\"\",B394+0.1)","v":""},null,null,{"$f":"IF(ISERROR(VLOOKUP(C395,#REF!,2,0)),\"\",VLOOKUP(C395,#REF!,2,0))","v":""},null,{"$f":"IF(ISERROR(VLOOKUP(C395,#REF!,4,0)),\"\",VLOOKUP(C395,#REF!,4,0))","v":""},null,{"$f":"IF(ISERROR(F395-H395),\"\",F395-H395)","v":0},null,null,null,{"$f":"IF(ISERROR(VLOOKUP(L395,POA!$A$2:$C$25,3,0)),\"\",VLOOKUP(L395,POA!$A$2:$C$25,3,0))","v":""},null,{"$f":"IF(ISERROR(VLOOKUP(N395,POA!$A$2:$F$25,4,0)),\"\",VLOOKUP(N395,POA!$A$2:$F$25,4,0))","v":""},{"$f":"IF(ISERROR(VLOOKUP(L395,POA!$A$2:$C$25,2,0)),\"\",VLOOKUP(L395,POA!$A$2:$C$25,2,0))","v":""},null,{"$f":"IF(L395=0,\"\",IF(Q386>=$R$9,\"HABIL\",\"NO HABIL\"))","v":""},null,"",{"$f":"IF(ISERROR(VLOOKUP(N395,POA!$A$2:$F$25,5,0)),\"\",VLOOKUP(N395,POA!$A$2:$F$25,5,0))","v":""},null,"",null,0,"MIPYME",null,"",null,""]
[null,{"$f":"IF(C396=\"\",\"\",B395+0.1)","v":""},null,null,{"$f":"IF(ISERROR(VLOOKUP(C396,#REF!,2,0)),\"\",VLOOKUP(C396,#REF!,2,0))","v":""},null,{"$f":"IF(ISERROR(VLOOKUP(C396,#REF!,4,0)),\"\",VLOOKUP(C396,#REF!,4,0))","v":""},null,{"$f":"IF(ISERROR(F396-H396),\"\",F396-H396)","v":0},null,null,null,{"$f":"IF(ISERROR(VLOOKUP(L396,POA!$A$2:$C$25,3,0)),\"\",VLOOKUP(L396,POA!$A$2:$C$25,3,0))","v":""},null,{"$f":"IF(ISERROR(VLOOKUP(N396,POA!$A$2:$F$25,4,0)),\"\",VLOOKUP(N396,POA!$A$2:$F$25,4,0))","v":""},{"$f":"IF(ISERROR(VLOOKUP(L396,POA!$A$2:$C$25,2,0)),\"\",VLOOKUP(L396,POA!$A$2:$C$25,2,0))","v":""},null,{"$f":"IF(L396=0,\"\",IF(Q386>=$R$9,\"HABIL\",\"NO HABIL\"))","v":""},null,"",{"$f":"IF(ISERROR(VLOOKUP(N396,POA!$A$2:$F$25,5,0)),\"\",VLOOKUP(N396,POA!$A$2:$F$25,5,0))","v":""},null,"",null,{"$f":"IF(ISERROR(F396/$Z$9),\"\",F396/$Z$9)","v":0},"MIPYME",null,"",null,""]
[null,36,"CONSORCIO SUCRE VIAL",1,44479874640,52666611337,884869547,9824900089,42841711248,2955776863,9779745,1,{"$f":"IF(ISERROR(VLOOKUP(L397,POA!$A$2:$C$25,3,0)),\"\",VLOOKUP(L397,POA!$A$2:$C$25,3,0))","v":3}," ",{"$f":"+SUM(O398:O407)","v":0},{"$f":"IF(ISERROR(VLOOKUP(L397,POA!$A$2:$C$25,2,0)),\"\",VLOOKUP(L397,POA!$A$2:$C$25,2,0))","v":4167150295},{"$f":"SUM(E397/G397)","v":50.267154961769748},{"$f":"IF(Q397=0,\"\",IF(Q397>=$R$9,\"HABIL\",\"NO HABIL\"))","v":"HABIL"},{"$f":"SUM(H397/F397)","v":0.1865489318485484},{"$f":"IF(S397=0,\"\",IF(S397<=$T$9,\"HABIL\",\"NO HABIL\"))","v":"HABIL"},{"$f":"+SUM(U398:U407)","v":0},{"$f":"SUM(J397/K397)","v":302.23455345717093},{"$f":"IF(V397=0,\"\",IF(V397>=$W$9,\"HABIL\",\"NO HABIL\"))","v":"HABIL"},{"$f":"IF(R397=0,\"\",IF(R397=\"NO HABIL\",\"NO HABIL\",IF(T397=\"NO HABIL\",\"NO HABIL\",IF(W397=\"NO HABIL\",\"NO HABIL\",IF(W397=\"NO HABIL\",\"NO HABIL\",\"HABIL\")))))","v":"HABIL"},null,null,{"$f":"SUM(J397/I397)","v":6.8992969162453469E-2},{"$f":"IF(AA397=0,\"\",IF(AA397>=$AB$9,\"HABIL\",\"NO HABIL\"))","v":"HABIL"},{"$f":"SUM(J397/F397)","v":5.6122404460137935E-2},{"$f":"IF(AC397=0,\"\",IF(AC397>=$AD$9,\"HABIL\",\"NO HABIL\"))","v":"HABIL"},{"$f":"IF(AB397=0,\"\",IF(AB397=\"NO HABIL\",\"NO HABIL\",IF(AD397=\"NO HABIL\",\"NO HABIL\",IF(AD397=\"NO HABIL\",\"NO HABIL\",\"HABIL\"))))","v":"HABIL"}]
[null,{"$f":"IF(C398=\"\",\"\",B397+0.1)","v":36.1},"CROMAS S.A.",0.7,36823961392,43959246089,654939547,9094970089,34864276000,932561402,2609745,null,{"$f":"IF(ISERROR(VLOOKUP(L398,POA!$A$2:$C$25,3,0)),\"\",VLOOKUP(L398,POA!$A$2:$C$25,3,0))","v":""}," ",{"$f":"IF(ISERROR(VLOOKUP(N398,POA!$A$2:$F$25,4,0)),\"\",VLOOKUP(N398,POA!$A$2:$F$25,4,0))","v":""},{"$f":"IF(ISERROR(VLOOKUP(L398,POA!$A$2:$C$25,2,0)),\"\",VLOOKUP(L398,POA!$A$2:$C$25,2,0))","v":""},null,{"$f":"IF(Q398=0,\"\",IF(Q397>=$R$9,\"HABIL\",\"NO HABIL\"))","v":""},null,{"$f":"IF(S398=0,\"\",IF(S398<=$T$9,\"HABIL\",\"NO HABIL\"))","v":""},{"$f":"IF(ISERROR(VLOOKUP(N398,POA!$A$2:$F$25,5,0)),\"\",VLOOKUP(N398,POA!$A$2:$F$25,5,0))","v":""},null,{"$f":"IF(V398=0,\"\",IF(V398>=$W$9,\"HABIL\",\"NO HABIL\"))","v":""},null,{"$f":"IF(ISERROR(F398/$Z$9),\"\",F398/$Z$9)","v":77570.577181930479},{"$f":"+IF(Y398<$Z$10,\"MIPYME\",\"NO CUMPLE\")","v":"NO CUMPLE"},null,{"$f":"IF(AA398=0,\"\",IF(AA398>=$AB$9,\"HABIL\",\"NO HABIL\"))","v":""},null,{"$f":"IF(AC398=0,\"\",IF(AC398>=$AD$9,\"HABIL\",\"NO HABIL\"))","v":""}]
[null,36.200000000000003,"OSCAR ANDRADE LARA",0.3,7655913248,8707365248,229930000,729930000,7977435248,2023215461,7170000,null,{"$f":"IF(ISERROR(VLOOKUP(L399,POA!$A$2:$C$25,3,0)),\"\",VLOOKUP(L399,POA!$A$2:$C$25,3,0))","v":""}," ",{"$f":"IF(ISERROR(VLOOKUP(N399,POA!$A$2:$F$25,4,0)),\"\",VLOOKUP(N399,POA!$A$2:$F$25,4,0))","v":""},{"$f":"IF(ISERROR(VLOOKUP(L399,POA!$A$2:$C$25,2,0)),\"\",VLOOKUP(L399,POA!$A$2:$C$25,2,0))","v":""},null,{"$f":"IF(Q399=0,\"\",IF(Q397>=$R$9,\"HABIL\",\"NO HABIL\"))","v":""},null,"",{"$f":"IF(ISERROR(VLOOKUP(N399,POA!$A$2:$F$25,5,0)),\"\",VLOOKUP(N399,POA!$A$2:$F$25,5,0))","v":""},null,"",null,{"$f":"IF(ISERROR(F399/$Z$9),\"\",F399/$Z$9)","v":15365.03484736192},{"$f":"+IF(Y399<$Z$10,\"MIPYME\",\"NO CUMPLE\")","v":"MIPYME"},null,"",null,""]
[null,"",null,null,null,null,null,null,{"$f":"IF(ISERROR(F400-H400),\"\",F400-H400)","v":0},null,null,null,{"$f":"IF(ISERROR(VLOOKUP(L400,POA!$A$2:$C$25,3,0)),\"\",VLOOKUP(L400,POA!$A$2:$C$25,3,0))","v":""},null,{"$f":"IF(ISERROR(VLOOKUP(N400,POA!$A$2:$F$25,4,0)),\"\",VLOOKUP(N400,POA!$A$2:$F$25,4,0))","v":""},{"$f":"IF(ISERROR(VLOOKUP(L400,POA!$A$2:$C$25,2,0)),\"\",VLOOKUP(L400,POA!$A$2:$C$25,2,0))","v":""},null,{"$f":"IF(Q400=0,\"\",IF(Q397>=$R$9,\"HABIL\",\"NO HABIL\"))","v":""},null,"",{"$f":"IF(ISERROR(VLOOKUP(N400,POA!$A$2:$F$25,5,0)),\"\",VLOOKUP(N400,POA!$A$2:$F$25,5,0))","v":""},null,"",null,0,"MIPYME",null,"",null,""]
[null,"",null,null,{"$f":"IF(ISERROR(VLOOKUP(C401,#REF!,2,0)),\"\",VLOOKUP(C401,#REF!,2,0))","v":""},null,{"$f":"IF(ISERROR(VLOOKUP(C401,#REF!,4,0)),\"\",VLOOKUP(C401,#REF!,4,0))","v":""},null,0,null,null,null,{"$f":"IF(ISERROR(VLOOKUP(L401,POA!$A$2:$C$25,3,0)),\"\",VLOOKUP(L401,POA!$A$2:$C$25,3,0))","v":""},null,{"$f":"IF(ISERROR(VLOOKUP(N401,POA!$A$2:$F$25,4,0)),\"\",VLOOKUP(N401,POA!$A$2:$F$25,4,0))","v":""},{"$f":"IF(ISERROR(VLOOKUP(L401,POA!$A$2:$C$25,2,0)),\"\",VLOOKUP(L401,POA!$A$2:$C$25,2,0))","v":""},null,{"$f":"IF(L401=0,\"\",IF(Q397>=$R$9,\"HABIL\",\"NO HABIL\"))","v":""},null,"",{"$f":"IF(ISERROR(VLOOKUP(N401,POA!$A$2:$F$25,5,0)),\"\",VLOOKUP(N401,POA!$A$2:$F$25,5,0))","v":""},null,"",null,0,"MIPYME",null,"",null,""]
[null,"",null,null,{"$f":"IF(ISERROR(VLOOKUP(C402,#REF!,2,0)),\"\",VLOOKUP(C402,#REF!,2,0))","v":""},null,{"$f":"IF(ISERROR(VLOOKUP(C402,#REF!,4,0)),\"\",VLOOKUP(C402,#REF!,4,0))","v":""},null,0,null,null,null,{"$f":"IF(ISERROR(VLOOKUP(L402,POA!$A$2:$C$25,3,0)),\"\",VLOOKUP(L402,POA!$A$2:$C$25,3,0))","v":""},null,{"$f":"IF(ISERROR(VLOOKUP(N402,POA!$A$2:$F$25,4,0)),\"\",VLOOKUP(N402,POA!$A$2:$F$25,4,0))","v":""},{"$f":"IF(ISERROR(VLOOKUP(L402,POA!$A$2:$C$25,2,0)),\"\",VLOOKUP(L402,POA!$A$2:$C$25,2,0))","v":""},null,{"$f":"IF(L402=0,\"\",IF(Q397>=$R$9,\"HABIL\",\"NO HABIL\"))","v":""},null,"",{"$f":"IF(ISERROR(VLOOKUP(N402,POA!$A$2:$F$25,5,0)),\"\",VLOOKUP(N402,POA!$A$2:$F$25,5,0))","v":""},null,"",null,0,"MIPYME",null,"",null,""]
[null,"",null,null,{"$f":"IF(ISERROR(VLOOKUP(C403,#REF!,2,0)),\"\",VLOOKUP(C403,#REF!,2,0))","v":""},null,{"$f":"IF(ISERROR(VLOOKUP(C403,#REF!,4,0)),\"\",VLOOKUP(C403,#REF!,4,0))","v":""},null,0,null,null,null,{"$f":"IF(ISERROR(VLOOKUP(L403,POA!$A$2:$C$25,3,0)),\"\",VLOOKUP(L403,POA!$A$2:$C$25,3,0))","v":""},null,{"$f":"IF(ISERROR(VLOOKUP(N403,POA!$A$2:$F$25,4,0)),\"\",VLOOKUP(N403,POA!$A$2:$F$25,4,0))","v":""},{"$f":"IF(ISERROR(VLOOKUP(L403,POA!$A$2:$C$25,2,0)),\"\",VLOOKUP(L403,POA!$A$2:$C$25,2,0))","v":""},null,{"$f":"IF(L403=0,\"\",IF(Q397>=$R$9,\"HABIL\",\"NO HABIL\"))","v":""},null,"",{"$f":"IF(ISERROR(VLOOKUP(N403,POA!$A$2:$F$25,5,0)),\"\",VLOOKUP(N403,POA!$A$2:$F$25,5,0))","v":""},null,"",null,0,"MIPYME",null,"",null,""]
[null,{"$f":"IF(C404=\"\",\"\",B403+0.1)","v":""},null,null,{"$f":"IF(ISERROR(VLOOKUP(C404,#REF!,2,0)),\"\",VLOOKUP(C404,#REF!,2,0))","v":""},null,{"$f":"IF(ISERROR(VLOOKUP(C404,#REF!,4,0)),\"\",VLOOKUP(C404,#REF!,4,0))","v":""},null,{"$f":"IF(ISERROR(F404-H404),\"\",F404-H404)","v":0},null,null,null,{"$f":"IF(ISERROR(VLOOKUP(L404,POA!$A$2:$C$25,3,0)),\"\",VLOOKUP(L404,POA!$A$2:$C$25,3,0))","v":""},null,{"$f":"IF(ISERROR(VLOOKUP(N404,POA!$A$2:$F$25,4,0)),\"\",VLOOKUP(N404,POA!$A$2:$F$25,4,0))","v":""},{"$f":"IF(ISERROR(VLOOKUP(L404,POA!$A$2:$C$25,2,0)),\"\",VLOOKUP(L404,POA!$A$2:$C$25,2,0))","v":""},null,{"$f":"IF(L404=0,\"\",IF(Q397>=$R$9,\"HABIL\",\"NO HABIL\"))","v":""},null,"",{"$f":"IF(ISERROR(VLOOKUP(N404,POA!$A$2:$F$25,5,0)),\"\",VLOOKUP(N404,POA!$A$2:$F$25,5,0))","v":""},null,"",null,0,"MIPYME",null,"",null,""]
[null,{"$f":"IF(C405=\"\",\"\",B404+0.1)","v":""},null,null,{"$f":"IF(ISERROR(VLOOKUP(C405,#REF!,2,0)),\"\",VLOOKUP(C405,#REF!,2,0))","v":""},null,{"$f":"IF(ISERROR(VLOOKUP(C405,#REF!,4,0)),\"\",VLOOKUP(C405,#REF!,4,0))","v":""},null,{"$f":"IF(ISERROR(F405-H405),\"\",F405-H405)","v":0},null,null,null,{"$f":"IF(ISERROR(VLOOKUP(L405,POA!$A$2:$C$25,3,0)),\"\",VLOOKUP(L405,POA!$A$2:$C$25,3,0))","v":""},null,{"$f":"IF(ISERROR(VLOOKUP(N405,POA!$A$2:$F$25,4,0)),\"\",VLOOKUP(N405,POA!$A$2:$F$25,4,0))","v":""},{"$f":"IF(ISERROR(VLOOKUP(L405,POA!$A$2:$C$25,2,0)),\"\",VLOOKUP(L405,POA!$A$2:$C$25,2,0))","v":""},null,{"$f":"IF(L405=0,\"\",IF(Q397>=$R$9,\"HABIL\",\"NO HABIL\"))","v":""},null,"",{"$f":"IF(ISERROR(VLOOKUP(N405,POA!$A$2:$F$25,5,0)),\"\",VLOOKUP(N405,POA!$A$2:$F$25,5,0))","v":""},null,"",null,0,"MIPYME",null,"",null,""]
[null,{"$f":"IF(C406=\"\",\"\",B405+0.1)","v":""},null,null,{"$f":"IF(ISERROR(VLOOKUP(C406,#REF!,2,0)),\"\",VLOOKUP(C406,#REF!,2,0))","v":""},null,{"$f":"IF(ISERROR(VLOOKUP(C406,#REF!,4,0)),\"\",VLOOKUP(C406,#REF!,4,0))","v":""},null,{"$f":"IF(ISERROR(F406-H406),\"\",F406-H406)","v":0},null,null,null,{"$f":"IF(ISERROR(VLOOKUP(L406,POA!$A$2:$C$25,3,0)),\"\",VLOOKUP(L406,POA!$A$2:$C$25,3,0))","v":""},null,{"$f":"IF(ISERROR(VLOOKUP(N406,POA!$A$2:$F$25,4,0)),\"\",VLOOKUP(N406,POA!$A$2:$F$25,4,0))","v":""},{"$f":"IF(ISERROR(VLOOKUP(L406,POA!$A$2:$C$25,2,0)),\"\",VLOOKUP(L406,POA!$A$2:$C$25,2,0))","v":""},null,{"$f":"IF(L406=0,\"\",IF(Q397>=$R$9,\"HABIL\",\"NO HABIL\"))","v":""},null,"",{"$f":"IF(ISERROR(VLOOKUP(N406,POA!$A$2:$F$25,5,0)),\"\",VLOOKUP(N406,POA!$A$2:$F$25,5,0))","v":""},null,"",null,0,"MIPYME",null,"",null,""]
[null,{"$f":"IF(C407=\"\",\"\",B406+0.1)","v":""},null,null,{"$f":"IF(ISERROR(VLOOKUP(C407,#REF!,2,0)),\"\",VLOOKUP(C407,#REF!,2,0))","v":""},null,{"$f":"IF(ISERROR(VLOOKUP(C407,#REF!,4,0)),\"\",VLOOKUP(C407,#REF!,4,0))","v":""},null,{"$f":"IF(ISERROR(F407-H407),\"\",F407-H407)","v":0},null,null,null,{"$f":"IF(ISERROR(VLOOKUP(L407,POA!$A$2:$C$25,3,0)),\"\",VLOOKUP(L407,POA!$A$2:$C$25,3,0))","v":""},null,{"$f":"IF(ISERROR(VLOOKUP(N407,POA!$A$2:$F$25,4,0)),\"\",VLOOKUP(N407,POA!$A$2:$F$25,4,0))","v":""},{"$f":"IF(ISERROR(VLOOKUP(L407,POA!$A$2:$C$25,2,0)),\"\",VLOOKUP(L407,POA!$A$2:$C$25,2,0))","v":""},null,{"$f":"IF(L407=0,\"\",IF(Q397>=$R$9,\"HABIL\",\"NO HABIL\"))","v":""},null,"",{"$f":"IF(ISERROR(VLOOKUP(N407,POA!$A$2:$F$25,5,0)),\"\",VLOOKUP(N407,POA!$A$2:$F$25,5,0))","v":""},null,"",null,{"$f":"IF(ISERROR(F407/$Z$9),\"\",F407/$Z$9)","v":0},"MIPYME",null,"",null,""]
[null,37,"CONSORCIO SALITRE ",{"$f":"IF(SUM(D409:D418)=0,\"\",SUM(D409:D418))","v":1},{"$f":"SUM(E409:E418)","v":26938610918},{"$f":"SUM(F409:F418)","v":31132634056},{"$f":"SUM(G409:G418)","v":17693256801},{"$f":"SUM(H409:H418)","v":23967076468},{"$f":"+F408-H408","v":7165557588},{"$f":"SUM(J409:J418)","v":2377899171},{"$f":"SUM(K409:K418)","v":167107289},1,{"$f":"IF(ISERROR(VLOOKUP(L408,POA!$A$2:$C$25,3,0)),\"\",VLOOKUP(L408,POA!$A$2:$C$25,3,0))","v":3}," ",{"$f":"+SUM(O409:O418)","v":0},{"$f":"IF(ISERROR(VLOOKUP(L408,POA!$A$2:$C$25,2,0)),\"\",VLOOKUP(L408,POA!$A$2:$C$25,2,0))","v":4167150295},{"$f":"SUM(E408/G408)","v":1.5225354620115763},{"$f":"IF(Q408=0,\"\",IF(Q408>=$R$9,\"HABIL\",\"NO HABIL\"))","v":"HABIL"},{"$f":"SUM(H408/F408)","v":0.7698377344136409},{"$f":"IF(S408=0,\"\",IF(S408<=$T$9,\"HABIL\",\"NO HABIL\"))","v":"NO HABIL"},{"$f":"+SUM(U409:U418)","v":0},{"$f":"SUM(J408/K408)","v":14.229775285265983},{"$f":"IF(V408=0,\"\",IF(V408>=$W$9,\"HABIL\",\"NO HABIL\"))","v":"HABIL"},{"$f":"IF(R408=0,\"\",IF(R408=\"NO HABIL\",\"NO HABIL\",IF(T408=\"NO HABIL\",\"NO HABIL\",IF(W408=\"NO HABIL\",\"NO HABIL\",IF(W408=\"NO HABIL\",\"NO HABIL\",\"HABIL\")))))","v":"NO HABIL"},null,null,{"$f":"SUM(J408/I408)","v":0.33185124001825272},{"$f":"IF(AA408=0,\"\",IF(AA408>=$AB$9,\"HABIL\",\"NO HABIL\"))","v":"HABIL"},{"$f":"SUM(J408/F408)","v":7.6379633240243675E-2},{"$f":"IF(AC408=0,\"\",IF(AC408>=$AD$9,\"HABIL\",\"NO HABIL\"))","v":"HABIL"},{"$f":"IF(AB408=0,\"\",IF(AB408=\"NO HABIL\",\"NO HABIL\",IF(AD408=\"NO HABIL\",\"NO HABIL\",IF(AD408=\"NO HABIL\",\"NO HABIL\",\"HABIL\"))))","v":"HABIL"}]
[null,{"$f":"IF(C409=\"\",\"\",B408+0.1)","v":37.1},"CONSTRUCTORA CRD S.A.",0.8,11878764442,16034573648,3616916990,9251988459,6782585189,1756271958,167089932,null,{"$f":"IF(ISERROR(VLOOKUP(L409,POA!$A$2:$C$25,3,0)),\"\",VLOOKUP(L409,POA!$A$2:$C$25,3,0))","v":""}," ",{"$f":"IF(ISERROR(VLOOKUP(N409,POA!$A$2:$F$25,4,0)),\"\",VLOOKUP(N409,POA!$A$2:$F$25,4,0))","v":""},{"$f":"IF(ISERROR(VLOOKUP(L409,POA!$A$2:$C$25,2,0)),\"\",VLOOKUP(L409,POA!$A$2:$C$25,2,0))","v":""},null,{"$f":"IF(Q409=0,\"\",IF(Q408>=$R$9,\"HABIL\",\"NO HABIL\"))","v":""},null,{"$f":"IF(S409=0,\"\",IF(S409<=$T$9,\"HABIL\",\"NO HABIL\"))","v":""},{"$f":"IF(ISERROR(VLOOKUP(N409,POA!$A$2:$F$25,5,0)),\"\",VLOOKUP(N409,POA!$A$2:$F$25,5,0))","v":""},null,{"$f":"IF(V409=0,\"\",IF(V409>=$W$9,\"HABIL\",\"NO HABIL\"))","v":""},null,{"$f":"IF(ISERROR(F409/$Z$9),\"\",F409/$Z$9)","v":28294.642046938414},{"$f":"+IF(Y409<$Z$10,\"MIPYME\",\"NO CUMPLE\")","v":"MIPYME"},null,{"$f":"IF(AA409=0,\"\",IF(AA409>=$AB$9,\"HABIL\",\"NO HABIL\"))","v":""},null,{"$f":"IF(AC409=0,\"\",IF(AC409>=$AD$9,\"HABIL\",\"NO HABIL\"))","v":""}]
[null,37.200000000000003,"CONSTRUCTORA S&L S.A.S.",0.2,15059846476,15098060408,14076339811,14715088009,382972399,621627213,17357,null,{"$f":"IF(ISERROR(VLOOKUP(L410,POA!$A$2:$C$25,3,0)),\"\",VLOOKUP(L410,POA!$A$2:$C$25,3,0))","v":""}," ",{"$f":"IF(ISERROR(VLOOKUP(N410,POA!$A$2:$F$25,4,0)),\"\",VLOOKUP(N410,POA!$A$2:$F$25,4,0))","v":""},{"$f":"IF(ISERROR(VLOOKUP(L410,POA!$A$2:$C$25,2,0)),\"\",VLOOKUP(L410,POA!$A$2:$C$25,2,0))","v":""},null,{"$f":"IF(Q410=0,\"\",IF(Q408>=$R$9,\"HABIL\",\"NO HABIL\"))","v":""},null,"",{"$f":"IF(ISERROR(VLOOKUP(N410,POA!$A$2:$F$25,5,0)),\"\",VLOOKUP(N410,POA!$A$2:$F$25,5,0))","v":""},null,"",null,{"$f":"IF(ISERROR(F410/$Z$9),\"\",F410/$Z$9)","v":26642.068833598023},{"$f":"+IF(Y410<$Z$10,\"MIPYME\",\"NO CUMPLE\")","v":"MIPYME"},null,"",null,""]
[null,"",null,null,null,null,null,null,{"$f":"IF(ISERROR(F411-H411),\"\",F411-H411)","v":0},null,null,null,{"$f":"IF(ISERROR(VLOOKUP(L411,POA!$A$2:$C$25,3,0)),\"\",VLOOKUP(L411,POA!$A$2:$C$25,3,0))","v":""},null,{"$f":"IF(ISERROR(VLOOKUP(N411,POA!$A$2:$F$25,4,0)),\"\",VLOOKUP(N411,POA!$A$2:$F$25,4,0))","v":""},{"$f":"IF(ISERROR(VLOOKUP(L411,POA!$A$2:$C$25,2,0)),\"\",VLOOKUP(L411,POA!$A$2:$C$25,2,0))","v":""},null,{"$f":"IF(Q411=0,\"\",IF(Q408>=$R$9,\"HABIL\",\"NO HABIL\"))","v":""},null,"",{"$f":"IF(ISERROR(VLOOKUP(N411,POA!$A$2:$F$25,5,0)),\"\",VLOOKUP(N411,POA!$A$2:$F$25,5,0))","v":""},null,"",null,0,"MIPYME",null,"",null,""]
[null,"",null,null,{"$f":"IF(ISERROR(VLOOKUP(C412,#REF!,2,0)),\"\",VLOOKUP(C412,#REF!,2,0))","v":""},null,{"$f":"IF(ISERROR(VLOOKUP(C412,#REF!,4,0)),\"\",VLOOKUP(C412,#REF!,4,0))","v":""},null,0,null,null,null,{"$f":"IF(ISERROR(VLOOKUP(L412,POA!$A$2:$C$25,3,0)),\"\",VLOOKUP(L412,POA!$A$2:$C$25,3,0))","v":""},null,{"$f":"IF(ISERROR(VLOOKUP(N412,POA!$A$2:$F$25,4,0)),\"\",VLOOKUP(N412,POA!$A$2:$F$25,4,0))","v":""},{"$f":"IF(ISERROR(VLOOKUP(L412,POA!$A$2:$C$25,2,0)),\"\",VLOOKUP(L412,POA!$A$2:$C$25,2,0))","v":""},null,{"$f":"IF(L412=0,\"\",IF(Q408>=$R$9,\"HABIL\",\"NO HABIL\"))","v":""},null,"",{"$f":"IF(ISERROR(VLOOKUP(N412,POA!$A$2:$F$25,5,0)),\"\",VLOOKUP(N412,POA!$A$2:$F$25,5,0))","v":""},null,"",null,0,"MIPYME",null,"",null,""]
[null,"",null,null,{"$f":"IF(ISERROR(VLOOKUP(C413,#REF!,2,0)),\"\",VLOOKUP(C413,#REF!,2,0))","v":""},null,{"$f":"IF(ISERROR(VLOOKUP(C413,#REF!,4,0)),\"\",VLOOKUP(C413,#REF!,4,0))","v":""},null,0,null,null,null,{"$f":"IF(ISERROR(VLOOKUP(L413,POA!$A$2:$C$25,3,0)),\"\",VLOOKUP(L413,POA!$A$2:$C$25,3,0))","v":""},null,{"$f":"IF(ISERROR(VLOOKUP(N413,POA!$A$2:$F$25,4,0)),\"\",VLOOKUP(N413,POA!$A$2:$F$25,4,0))","v":""},{"$f":"IF(ISERROR(VLOOKUP(L413,POA!$A$2:$C$25,2,0)),\"\",VLOOKUP(L413,POA!$A$2:$C$25,2,0))","v":""},null,{"$f":"IF(L413=0,\"\",IF(Q408>=$R$9,\"HABIL\",\"NO HABIL\"))","v":""},null,"",{"$f":"IF(ISERROR(VLOOKUP(N413,POA!$A$2:$F$25,5,0)),\"\",VLOOKUP(N413,POA!$A$2:$F$25,5,0))","v":""},null,"",null,0,"MIPYME",null,"",null,""]
[null,"",null,null,{"$f":"IF(ISERROR(VLOOKUP(C414,#REF!,2,0)),\"\",VLOOKUP(C414,#REF!,2,0))","v":""},null,{"$f":"IF(ISERROR(VLOOKUP(C414,#REF!,4,0)),\"\",VLOOKUP(C414,#REF!,4,0))","v":""},null,0,null,null,null,{"$f":"IF(ISERROR(VLOOKUP(L414,POA!$A$2:$C$25,3,0)),\"\",VLOOKUP(L414,POA!$A$2:$C$25,3,0))","v":""},null,{"$f":"IF(ISERROR(VLOOKUP(N414,POA!$A$2:$F$25,4,0)),\"\",VLOOKUP(N414,POA!$A$2:$F$25,4,0))","v":""},{"$f":"IF(ISERROR(VLOOKUP(L414,POA!$A$2:$C$25,2,0)),\"\",VLOOKUP(L414,POA!$A$2:$C$25,2,0))","v":""},null,{"$f":"IF(L414=0,\"\",IF(Q408>=$R$9,\"HABIL\",\"NO HABIL\"))","v":""},null,"",{"$f":"IF(ISERROR(VLOOKUP(N414,POA!$A$2:$F$25,5,0)),\"\",VLOOKUP(N414,POA!$A$2:$F$25,5,0))","v":""},null,"",null,0,"MIPYME",null,"",null,""]
[null,{"$f":"IF(C415=\"\",\"\",B414+0.1)","v":""},null,null,{"$f":"IF(ISERROR(VLOOKUP(C415,#REF!,2,0)),\"\",VLOOKUP(C415,#REF!,2,0))","v":""},null,{"$f":"IF(ISERROR(VLOOKUP(C415,#REF!,4,0)),\"\",VLOOKUP(C415,#REF!,4,0))","v":""},null,{"$f":"IF(ISERROR(F415-H415),\"\",F415-H415)","v":0},null,null,null,{"$f":"IF(ISERROR(VLOOKUP(L415,POA!$A$2:$C$25,3,0)),\"\",VLOOKUP(L415,POA!$A$2:$C$25,3,0))","v":""},null,{"$f":"IF(ISERROR(VLOOKUP(N415,POA!$A$2:$F$25,4,0)),\"\",VLOOKUP(N415,POA!$A$2:$F$25,4,0))","v":""},{"$f":"IF(ISERROR(VLOOKUP(L415,POA!$A$2:$C$25,2,0)),\"\",VLOOKUP(L415,POA!$A$2:$C$25,2,0))","v":""},null,{"$f":"IF(L415=0,\"\",IF(Q408>=$R$9,\"HABIL\",\"NO HABIL\"))","v":""},null,"",{"$f":"IF(ISERROR(VLOOKUP(N415,POA!$A$2:$F$25,5,0)),\"\",VLOOKUP(N415,POA!$A$2:$F$25,5,0))","v":""},null,"",null,0,"MIPYME",null,"",null,""]
[null,{"$f":"IF(C416=\"\",\"\",B415+0.1)","v":""},null,null,{"$f":"IF(ISERROR(VLOOKUP(C416,#REF!,2,0)),\"\",VLOOKUP(C416,#REF!,2,0))","v":""},null,{"$f":"IF(ISERROR(VLOOKUP(C416,#REF!,4,0)),\"\",VLOOKUP(C416,#REF!,4,0))","v":""},null,{"$f":"IF(ISERROR(F416-H416),\"\",F416-H416)","v":0},null,null,null,{"$f":"IF(ISERROR(VLOOKUP(L416,POA!$A$2:$C$25,3,0)),\"\",VLOOKUP(L416,POA!$A$2:$C$25,3,0))","v":""},null,{"$f":"IF(ISERROR(VLOOKUP(N416,POA!$A$2:$F$25,4,0)),\"\",VLOOKUP(N416,POA!$A$2:$F$25,4,0))","v":""},{"$f":"IF(ISERROR(VLOOKUP(L416,POA!$A$2:$C$25,2,0)),\"\",VLOOKUP(L416,POA!$A$2:$C$25,2,0))","v":""},null,{"$f":"IF(L416=0,\"\",IF(Q408>=$R$9,\"HABIL\",\"NO HABIL\"))","v":""},null,"",{"$f":"IF(ISERROR(VLOOKUP(N416,POA!$A$2:$F$25,5,0)),\"\",VLOOKUP(N416,POA!$A$2:$F$25,5,0))","v":""},null,"",null,0,"MIPYME",null,"",null,""]
[null,{"$f":"IF(C417=\"\",\"\",B416+0.1)","v":""},null,null,{"$f":"IF(ISERROR(VLOOKUP(C417,#REF!,2,0)),\"\",VLOOKUP(C417,#REF!,2,0))","v":""},null,{"$f":"IF(ISERROR(VLOOKUP(C417,#REF!,4,0)),\"\",VLOOKUP(C417,#REF!,4,0))","v":""},null,{"$f":"IF(ISERROR(F417-H417),\"\",F417-H417)","v":0},null,null,null,{"$f":"IF(ISERROR(VLOOKUP(L417,POA!$A$2:$C$25,3,0)),\"\",VLOOKUP(L417,POA!$A$2:$C$25,3,0))","v":""},null,{"$f":"IF(ISERROR(VLOOKUP(N417,POA!$A$2:$F$25,4,0)),\"\",VLOOKUP(N417,POA!$A$2:$F$25,4,0))","v":""},{"$f":"IF(ISERROR(VLOOKUP(L417,POA!$A$2:$C$25,2,0)),\"\",VLOOKUP(L417,POA!$A$2:$C$25,2,0))","v":""},null,{"$f":"IF(L417=0,\"\",IF(Q408>=$R$9,\"HABIL\",\"NO HABIL\"))","v":""},null,"",{"$f":"IF(ISERROR(VLOOKUP(N417,POA!$A$2:$F$25,5,0)),\"\",VLOOKUP(N417,POA!$A$2:$F$25,5,0))","v":""},null,"",null,0,"MIPYME",null,"",null,""]
[null,{"$f":"IF(C418=\"\",\"\",B417+0.1)","v":""},null,null,{"$f":"IF(ISERROR(VLOOKUP(C418,#REF!,2,0)),\"\",VLOOKUP(C418,#REF!,2,0))","v":""},null,{"$f":"IF(ISERROR(VLOOKUP(C418,#REF!,4,0)),\"\",VLOOKUP(C418,#REF!,4,0))","v":""},null,{"$f":"IF(ISERROR(F418-H418),\"\",F418-H418)","v":0},null,null,null,{"$f":"IF(ISERROR(VLOOKUP(L418,POA!$A$2:$C$25,3,0)),\"\",VLOOKUP(L418,POA!$A$2:$C$25,3,0))","v":""},null,{"$f":"IF(ISERROR(VLOOKUP(N418,POA!$A$2:$F$25,4,0)),\"\",VLOOKUP(N418,POA!$A$2:$F$25,4,0))","v":""},{"$f":"IF(ISERROR(VLOOKUP(L418,POA!$A$2:$C$25,2,0)),\"\",VLOOKUP(L418,POA!$A$2:$C$25,2,0))","v":""},null,{"$f":"IF(L418=0,\"\",IF(Q408>=$R$9,\"HABIL\",\"NO HABIL\"))","v":""},null,"",{"$f":"IF(ISERROR(VLOOKUP(N418,POA!$A$2:$F$25,5,0)),\"\",VLOOKUP(N418,POA!$A$2:$F$25,5,0))","v":""},null,"",null,{"$f":"IF(ISERROR(F418/$Z$9),\"\",F418/$Z$9)","v":0},"MIPYME",null,"",null,""]
[null,38,"CONSORCIO PATIOS 444",{"$f":"IF(SUM(D420:D429)=0,\"\",SUM(D420:D429))","v":1},{"$f":"SUM(E420:E429)","v":15795141970.440001},{"$f":"SUM(F420:F429)","v":24157184991.610001},{"$f":"SUM(G420:G429)","v":5382826107.5100002},{"$f":"SUM(H420:H429)","v":14949816343.35},{"$f":"+F419-H419","v":9207368648.2600002},{"$f":"SUM(J420:J429)","v":1971663768.05},{"$f":"SUM(K420:K429)","v":1170349897.4300001},1,{"$f":"IF(ISERROR(VLOOKUP(L419,POA!$A$2:$C$25,3,0)),\"\",VLOOKUP(L419,POA!$A$2:$C$25,3,0))","v":3}," ",{"$f":"+SUM(O420:O429)","v":0},{"$f":"IF(ISERROR(VLOOKUP(L419,POA!$A$2:$C$25,2,0)),\"\",VLOOKUP(L419,POA!$A$2:$C$25,2,0))","v":4167150295},{"$f":"SUM(E419/G419)","v":2.9343585794835478},{"$f":"IF(Q419=0,\"\",IF(Q419>=$R$9,\"HABIL\",\"NO HABIL\"))","v":"HABIL"},{"$f":"SUM(H419/F419)","v":0.61885589519400541},{"$f":"IF(S419=0,\"\",IF(S419<=$T$9,\"HABIL\",\"NO HABIL\"))","v":"HABIL"},{"$f":"+SUM(U420:U429)","v":0},{"$f":"SUM(J419/K419)","v":1.6846788916542177},{"$f":"IF(V419=0,\"\",IF(V419>=$W$9,\"HABIL\",\"NO HABIL\"))","v":"HABIL"},{"$f":"IF(R419=0,\"\",IF(R419=\"NO HABIL\",\"NO HABIL\",IF(T419=\"NO HABIL\",\"NO HABIL\",IF(W419=\"NO HABIL\",\"NO HABIL\",IF(W419=\"NO HABIL\",\"NO HABIL\",\"HABIL\")))))","v":"HABIL"},null,null,{"$f":"SUM(J419/I419)","v":0.21413976602561721},{"$f":"IF(AA419=0,\"\",IF(AA419>=$AB$9,\"HABIL\",\"NO HABIL\"))","v":"HABIL"},{"$f":"SUM(J419/F419)","v":8.1618109425198995E-2},{"$f":"IF(AC419=0,\"\",IF(AC419>=$AD$9,\"HABIL\",\"NO HABIL\"))","v":"HABIL"},{"$f":"IF(AB419=0,\"\",IF(AB419=\"NO HABIL\",\"NO HABIL\",IF(AD419=\"NO HABIL\",\"NO HABIL\",IF(AD419=\"NO HABIL\",\"NO HABIL\",\"HABIL\"))))","v":"HABIL"}]
[null,{"$f":"IF(C420=\"\",\"\",B419+0.1)","v":38.1},"CONSTRUSOCIAL S.A.S.",0.3,2537335136.4400001,2766821660.6100001,216259405.50999999,1328973306.3499999,{"$f":"IF(ISERROR(F420-H420),\"\",F420-H420)","v":1437848354.2600002},616024602.04999995,36639687.43,null,{"$f":"IF(ISERROR(VLOOKUP(L420,POA!$A$2:$C$25,3,0)),\"\",VLOOKUP(L420,POA!$A$2:$C$25,3,0))","v":""}," ",{"$f":"IF(ISERROR(VLOOKUP(N420,POA!$A$2:$F$25,4,0)),\"\",VLOOKUP(N420,POA!$A$2:$F$25,4,0))","v":""},{"$f":"IF(ISERROR(VLOOKUP(L420,POA!$A$2:$C$25,2,0)),\"\",VLOOKUP(L420,POA!$A$2:$C$25,2,0))","v":""},null,{"$f":"IF(Q420=0,\"\",IF(Q419>=$R$9,\"HABIL\",\"NO HABIL\"))","v":""},null,{"$f":"IF(S420=0,\"\",IF(S420<=$T$9,\"HABIL\",\"NO HABIL\"))","v":""},{"$f":"IF(ISERROR(VLOOKUP(N420,POA!$A$2:$F$25,5,0)),\"\",VLOOKUP(N420,POA!$A$2:$F$25,5,0))","v":""},null,{"$f":"IF(V420=0,\"\",IF(V420>=$W$9,\"HABIL\",\"NO HABIL\"))","v":""},null,{"$f":"IF(ISERROR(F420/$Z$9),\"\",F420/$Z$9)","v":4882.339263472737},{"$f":"+IF(Y420<$Z$10,\"MIPYME\",\"NO CUMPLE\")","v":"MIPYME"},null,{"$f":"IF(AA420=0,\"\",IF(AA420>=$AB$9,\"HABIL\",\"NO HABIL\"))","v":""},null,{"$f":"IF(AC420=0,\"\",IF(AC420>=$AD$9,\"HABIL\",\"NO HABIL\"))","v":""}]
[null,38.200000000000003,"CORPOANDINA S.A.S.",0.3,3648060567,6928822880,1644480731,4331610692,2597212188,346999877,372855105,null,{"$f":"IF(ISERROR(VLOOKUP(L421,POA!$A$2:$C$25,3,0)),\"\",VLOOKUP(L421,POA!$A$2:$C$25,3,0))","v":""}," ",{"$f":"IF(ISERROR(VLOOKUP(N421,POA!$A$2:$F$25,4,0)),\"\",VLOOKUP(N421,POA!$A$2:$F$25,4,0))","v":""},{"$f":"IF(ISERROR(VLOOKUP(L421,POA!$A$2:$C$25,2,0)),\"\",VLOOKUP(L421,POA!$A$2:$C$25,2,0))","v":""},null,{"$f":"IF(Q421=0,\"\",IF(Q419>=$R$9,\"HABIL\",\"NO HABIL\"))","v":""},null,"",{"$f":"IF(ISERROR(VLOOKUP(N421,POA!$A$2:$F$25,5,0)),\"\",VLOOKUP(N421,POA!$A$2:$F$25,5,0))","v":""},null,"",null,{"$f":"IF(ISERROR(F421/$Z$9),\"\",F421/$Z$9)","v":12226.615281454033},{"$f":"+IF(Y421<$Z$10,\"MIPYME\",\"NO CUMPLE\")","v":"MIPYME"},null,"",null,""]
[null,38.300000000000004,"R&U CONSTRUCTORES S.A.S.",0.4,9609746267,14461540451,3522085971,9289232345,5172308106,1008639289,760855105,null,{"$f":"IF(ISERROR(VLOOKUP(L422,POA!$A$2:$C$25,3,0)),\"\",VLOOKUP(L422,POA!$A$2:$C$25,3,0))","v":""},null,{"$f":"IF(ISERROR(VLOOKUP(N422,POA!$A$2:$F$25,4,0)),\"\",VLOOKUP(N422,POA!$A$2:$F$25,4,0))","v":""},{"$f":"IF(ISERROR(VLOOKUP(L422,POA!$A$2:$C$25,2,0)),\"\",VLOOKUP(L422,POA!$A$2:$C$25,2,0))","v":""},null,{"$f":"IF(Q422=0,\"\",IF(Q419>=$R$9,\"HABIL\",\"NO HABIL\"))","v":""},null,"",{"$f":"IF(ISERROR(VLOOKUP(N422,POA!$A$2:$F$25,5,0)),\"\",VLOOKUP(N422,POA!$A$2:$F$25,5,0))","v":""},null,"",null,25518.864392094583,"MIPYME",null,"",null,""]
[null,"",null,null,{"$f":"IF(ISERROR(VLOOKUP(C423,#REF!,2,0)),\"\",VLOOKUP(C423,#REF!,2,0))","v":""},null,{"$f":"IF(ISERROR(VLOOKUP(C423,#REF!,4,0)),\"\",VLOOKUP(C423,#REF!,4,0))","v":""},null,0,null,null,null,{"$f":"IF(ISERROR(VLOOKUP(L423,POA!$A$2:$C$25,3,0)),\"\",VLOOKUP(L423,POA!$A$2:$C$25,3,0))","v":""},null,{"$f":"IF(ISERROR(VLOOKUP(N423,POA!$A$2:$F$25,4,0)),\"\",VLOOKUP(N423,POA!$A$2:$F$25,4,0))","v":""},{"$f":"IF(ISERROR(VLOOKUP(L423,POA!$A$2:$C$25,2,0)),\"\",VLOOKUP(L423,POA!$A$2:$C$25,2,0))","v":""},null,{"$f":"IF(L423=0,\"\",IF(Q419>=$R$9,\"HABIL\",\"NO HABIL\"))","v":""},null,"",{"$f":"IF(ISERROR(VLOOKUP(N423,POA!$A$2:$F$25,5,0)),\"\",VLOOKUP(N423,POA!$A$2:$F$25,5,0))","v":""},null,"",null,0,"MIPYME",null,"",null,""]
[null,"",null,null,{"$f":"IF(ISERROR(VLOOKUP(C424,#REF!,2,0)),\"\",VLOOKUP(C424,#REF!,2,0))","v":""},null,{"$f":"IF(ISERROR(VLOOKUP(C424,#REF!,4,0)),\"\",VLOOKUP(C424,#REF!,4,0))","v":""},null,0,null,null,null,{"$f":"IF(ISERROR(VLOOKUP(L424,POA!$A$2:$C$25,3,0)),\"\",VLOOKUP(L424,POA!$A$2:$C$25,3,0))","v":""},null,{"$f":"IF(ISERROR(VLOOKUP(N424,POA!$A$2:$F$25,4,0)),\"\",VLOOKUP(N424,POA!$A$2:$F$25,4,0))","v":""},{"$f":"IF(ISERROR(VLOOKUP(L424,POA!$A$2:$C$25,2,0)),\"\",VLOOKUP(L424,POA!$A$2:$C$25,2,0))","v":""},null,{"$f":"IF(L424=0,\"\",IF(Q419>=$R$9,\"HABIL\",\"NO HABIL\"))","v":""},null,"",{"$f":"IF(ISERROR(VLOOKUP(N424,POA!$A$2:$F$25,5,0)),\"\",VLOOKUP(N424,POA!$A$2:$F$25,5,0))","v":""},null,"",null,0,"MIPYME",null,"",null,""]
[null,"",null,null,{"$f":"IF(ISERROR(VLOOKUP(C425,#REF!,2,0)),\"\",VLOOKUP(C425,#REF!,2,0))","v":""},null,{"$f":"IF(ISERROR(VLOOKUP(C425,#REF!,4,0)),\"\",VLOOKUP(C425,#REF!,4,0))","v":""},null,0,null,null,null,{"$f":"IF(ISERROR(VLOOKUP(L425,POA!$A$2:$C$25,3,0)),\"\",VLOOKUP(L425,POA!$A$2:$C$25,3,0))","v":""},null,{"$f":"IF(ISERROR(VLOOKUP(N425,POA!$A$2:$F$25,4,0)),\"\",VLOOKUP(N425,POA!$A$2:$F$25,4,0))","v":""},{"$f":"IF(ISERROR(VLOOKUP(L425,POA!$A$2:$C$25,2,0)),\"\",VLOOKUP(L425,POA!$A$2:$C$25,2,0))","v":""},null,{"$f":"IF(L425=0,\"\",IF(Q419>=$R$9,\"HABIL\",\"NO HABIL\"))","v":""},null,"",{"$f":"IF(ISERROR(VLOOKUP(N425,POA!$A$2:$F$25,5,0)),\"\",VLOOKUP(N425,POA!$A$2:$F$25,5,0))","v":""},null,"",null,0,"MIPYME",null,"",null,""]
[null,{"$f":"IF(C426=\"\",\"\",B425+0.1)","v":""},null,null,{"$f":"IF(ISERROR(VLOOKUP(C426,#REF!,2,0)),\"\",VLOOKUP(C426,#REF!,2,0))","v":""},null,{"$f":"IF(ISERROR(VLOOKUP(C426,#REF!,4,0)),\"\",VLOOKUP(C426,#REF!,4,0))","v":""},null,{"$f":"IF(ISERROR(F426-H426),\"\",F426-H426)","v":0},null,null,null,{"$f":"IF(ISERROR(VLOOKUP(L426,POA!$A$2:$C$25,3,0)),\"\",VLOOKUP(L426,POA!$A$2:$C$25,3,0))","v":""},null,{"$f":"IF(ISERROR(VLOOKUP(N426,POA!$A$2:$F$25,4,0)),\"\",VLOOKUP(N426,POA!$A$2:$F$25,4,0))","v":""},{"$f":"IF(ISERROR(VLOOKUP(L426,POA!$A$2:$C$25,2,0)),\"\",VLOOKUP(L426,POA!$A$2:$C$25,2,0))","v":""},null,{"$f":"IF(L426=0,\"\",IF(Q419>=$R$9,\"HABIL\",\"NO HABIL\"))","v":""},null,"",{"$f":"IF(ISERROR(VLOOKUP(N426,POA!$A$2:$F$25,5,0)),\"\",VLOOKUP(N426,POA!$A$2:$F$25,5,0))","v":""},null,"",null,0,"MIPYME",null,"",null,""]
[null,{"$f":"IF(C427=\"\",\"\",B426+0.1)","v":""},null,null,{"$f":"IF(ISERROR(VLOOKUP(C427,#REF!,2,0)),\"\",VLOOKUP(C427,#REF!,2,0))","v":""},null,{"$f":"IF(ISERROR(VLOOKUP(C427,#REF!,4,0)),\"\",VLOOKUP(C427,#REF!,4,0))","v":""},null,{"$f":"IF(ISERROR(F427-H427),\"\",F427-H427)","v":0},null,null,null,{"$f":"IF(ISERROR(VLOOKUP(L427,POA!$A$2:$C$25,3,0)),\"\",VLOOKUP(L427,POA!$A$2:$C$25,3,0))","v":""},null,{"$f":"IF(ISERROR(VLOOKUP(N427,POA!$A$2:$F$25,4,0)),\"\",VLOOKUP(N427,POA!$A$2:$F$25,4,0))","v":""},{"$f":"IF(ISERROR(VLOOKUP(L427,POA!$A$2:$C$25,2,0)),\"\",VLOOKUP(L427,POA!$A$2:$C$25,2,0))","v":""},null,{"$f":"IF(L427=0,\"\",IF(Q419>=$R$9,\"HABIL\",\"NO HABIL\"))","v":""},null,"",{"$f":"IF(ISERROR(VLOOKUP(N427,POA!$A$2:$F$25,5,0)),\"\",VLOOKUP(N427,POA!$A$2:$F$25,5,0))","v":""},null,"",null,0,"MIPYME",null,"",null,""]
[null,{"$f":"IF(C428=\"\",\"\",B427+0.1)","v":""},null,null,{"$f":"IF(ISERROR(VLOOKUP(C428,#REF!,2,0)),\"\",VLOOKUP(C428,#REF!,2,0))","v":""},null,{"$f":"IF(ISERROR(VLOOKUP(C428,#REF!,4,0)),\"\",VLOOKUP(C428,#REF!,4,0))","v":""},null,{"$f":"IF(ISERROR(F428-H428),\"\",F428-H428)","v":0},null,null,null,{"$f":"IF(ISERROR(VLOOKUP(L428,POA!$A$2:$C$25,3,0)),\"\",VLOOKUP(L428,POA!$A$2:$C$25,3,0))","v":""},null,{"$f":"IF(ISERROR(VLOOKUP(N428,POA!$A$2:$F$25,4,0)),\"\",VLOOKUP(N428,POA!$A$2:$F$25,4,0))","v":""},{"$f":"IF(ISERROR(VLOOKUP(L428,POA!$A$2:$C$25,2,0)),\"\",VLOOKUP(L428,POA!$A$2:$C$25,2,0))","v":""},null,{"$f":"IF(L428=0,\"\",IF(Q419>=$R$9,\"HABIL\",\"NO HABIL\"))","v":""},null,"",{"$f":"IF(ISERROR(VLOOKUP(N428,POA!$A$2:$F$25,5,0)),\"\",VLOOKUP(N428,POA!$A$2:$F$25,5,0))","v":""},null,"",null,0,"MIPYME",null,"",null,""]
[null,{"$f":"IF(C429=\"\",\"\",B428+0.1)","v":""},null,null,{"$f":"IF(ISERROR(VLOOKUP(C429,#REF!,2,0)),\"\",VLOOKUP(C429,#REF!,2,0))","v":""},null,{"$f":"IF(ISERROR(VLOOKUP(C429,#REF!,4,0)),\"\",VLOOKUP(C429,#REF!,4,0))","v":""},null,{"$f":"IF(ISERROR(F429-H429),\"\",F429-H429)","v":0},null,null,null,{"$f":"IF(ISERROR(VLOOKUP(L429,POA!$A$2:$C$25,3,0)),\"\",VLOOKUP(L429,POA!$A$2:$C$25,3,0))","v":""},null,{"$f":"IF(ISERROR(VLOOKUP(N429,POA!$A$2:$F$25,4,0)),\"\",VLOOKUP(N429,POA!$A$2:$F$25,4,0))","v":""},{"$f":"IF(ISERROR(VLOOKUP(L429,POA!$A$2:$C$25,2,0)),\"\",VLOOKUP(L429,POA!$A$2:$C$25,2,0))","v":""},null,{"$f":"IF(L429=0,\"\",IF(Q419>=$R$9,\"HABIL\",\"NO HABIL\"))","v":""},null,"",{"$f":"IF(ISERROR(VLOOKUP(N429,POA!$A$2:$F$25,5,0)),\"\",VLOOKUP(N429,POA!$A$2:$F$25,5,0))","v":""},null,"",null,{"$f":"IF(ISERROR(F429/$Z$9),\"\",F429/$Z$9)","v":0},"MIPYME",null,"",null,""]
[null,39,"VIAS S.A.",{"$f":"IF(SUM(D431:D440)=0,\"\",SUM(D431:D440))","v":1},{"$f":"SUM(E431:E440)","v":15462013000},{"$f":"SUM(F431:F440)","v":20653339000},{"$f":"SUM(G431:G440)","v":6057921000},{"$f":"SUM(H431:H440)","v":10012287000},{"$f":"+F430-H430","v":10641052000},{"$f":"SUM(J431:J440)","v":1217476000},{"$f":"SUM(K431:K440)","v":290876000},1,{"$f":"IF(ISERROR(VLOOKUP(L430,POA!$A$2:$C$25,3,0)),\"\",VLOOKUP(L430,POA!$A$2:$C$25,3,0))","v":3}," ",{"$f":"+SUM(O431:O440)","v":0},{"$f":"IF(ISERROR(VLOOKUP(L430,POA!$A$2:$C$25,2,0)),\"\",VLOOKUP(L430,POA!$A$2:$C$25,2,0))","v":4167150295},{"$f":"SUM(E430/G430)","v":2.5523629311111851},{"$f":"IF(Q430=0,\"\",IF(Q430>=$R$9,\"HABIL\",\"NO HABIL\"))","v":"HABIL"},{"$f":"SUM(H430/F430)","v":0.4847781271590032},{"$f":"IF(S430=0,\"\",IF(S430<=$T$9,\"HABIL\",\"NO HABIL\"))","v":"HABIL"},{"$f":"+SUM(U431:U440)","v":0},{"$f":"SUM(J430/K430)","v":4.1855498562961539},{"$f":"IF(V430=0,\"\",IF(V430>=$W$9,\"HABIL\",\"NO HABIL\"))","v":"HABIL"},{"$f":"IF(R430=0,\"\",IF(R430=\"NO HABIL\",\"NO HABIL\",IF(T430=\"NO HABIL\",\"NO HABIL\",IF(W430=\"NO HABIL\",\"NO HABIL\",IF(W430=\"NO HABIL\",\"NO HABIL\",\"HABIL\")))))","v":"HABIL"},null,null,{"$f":"SUM(J430/I430)","v":0.11441312381520173},{"$f":"IF(AA430=0,\"\",IF(AA430>=$AB$9,\"HABIL\",\"NO HABIL\"))","v":"HABIL"},{"$f":"SUM(J430/F430)","v":5.8948143929657089E-2},{"$f":"IF(AC430=0,\"\",IF(AC430>=$AD$9,\"HABIL\",\"NO HABIL\"))","v":"HABIL"},{"$f":"IF(AB430=0,\"\",IF(AB430=\"NO HABIL\",\"NO HABIL\",IF(AD430=\"NO HABIL\",\"NO HABIL\",IF(AD430=\"NO HABIL\",\"NO HABIL\",\"HABIL\"))))","v":"HABIL"}]
[null,{"$f":"IF(C431=\"\",\"\",B430+0.1)","v":39.1},"VIAS S.A.",1,15462013000,20653339000,6057921000,10012287000,10641052000,1217476000,290876000,null,{"$f":"IF(ISERROR(VLOOKUP(L431,POA!$A$2:$C$25,3,0)),\"\",VLOOKUP(L431,POA!$A$2:$C$25,3,0))","v":""}," ",{"$f":"IF(ISERROR(VLOOKUP(N431,POA!$A$2:$F$25,4,0)),\"\",VLOOKUP(N431,POA!$A$2:$F$25,4,0))","v":""},{"$f":"IF(ISERROR(VLOOKUP(L431,POA!$A$2:$C$25,2,0)),\"\",VLOOKUP(L431,POA!$A$2:$C$25,2,0))","v":""},null,{"$f":"IF(Q431=0,\"\",IF(Q430>=$R$9,\"HABIL\",\"NO HABIL\"))","v":""},null,{"$f":"IF(S431=0,\"\",IF(S431<=$T$9,\"HABIL\",\"NO HABIL\"))","v":""},{"$f":"IF(ISERROR(VLOOKUP(N431,POA!$A$2:$F$25,5,0)),\"\",VLOOKUP(N431,POA!$A$2:$F$25,5,0))","v":""},null,{"$f":"IF(V431=0,\"\",IF(V431>=$W$9,\"HABIL\",\"NO HABIL\"))","v":""},null,{"$f":"IF(ISERROR(F431/$Z$9),\"\",F431/$Z$9)","v":36444.925004411503},{"$f":"+IF(Y431<$Z$10,\"MIPYME\",\"NO CUMPLE\")","v":"NO CUMPLE"},null,{"$f":"IF(AA431=0,\"\",IF(AA431>=$AB$9,\"HABIL\",\"NO HABIL\"))","v":""},null,{"$f":"IF(AC431=0,\"\",IF(AC431>=$AD$9,\"HABIL\",\"NO HABIL\"))","v":""}]
[null,"",null,null,null,null,null,null,{"$f":"IF(ISERROR(F432-H432),\"\",F432-H432)","v":0},null,null,null,{"$f":"IF(ISERROR(VLOOKUP(L432,POA!$A$2:$C$25,3,0)),\"\",VLOOKUP(L432,POA!$A$2:$C$25,3,0))","v":""}," ",{"$f":"IF(ISERROR(VLOOKUP(N432,POA!$A$2:$F$25,4,0)),\"\",VLOOKUP(N432,POA!$A$2:$F$25,4,0))","v":""},{"$f":"IF(ISERROR(VLOOKUP(L432,POA!$A$2:$C$25,2,0)),\"\",VLOOKUP(L432,POA!$A$2:$C$25,2,0))","v":""},null,{"$f":"IF(Q432=0,\"\",IF(Q430>=$R$9,\"HABIL\",\"NO HABIL\"))","v":""},null,"",{"$f":"IF(ISERROR(VLOOKUP(N432,POA!$A$2:$F$25,5,0)),\"\",VLOOKUP(N432,POA!$A$2:$F$25,5,0))","v":""},null,"",null,{"$f":"IF(ISERROR(F432/$Z$9),\"\",F432/$Z$9)","v":0},{"$f":"+IF(Y432<$Z$10,\"MIPYME\",\"NO CUMPLE\")","v":"MIPYME"},null,"",null,""]
[null,"",null,null,null,null,null,null,0,null,null,null,{"$f":"IF(ISERROR(VLOOKUP(L433,POA!$A$2:$C$25,3,0)),\"\",VLOOKUP(L433,POA!$A$2:$C$25,3,0))","v":""},null,{"$f":"IF(ISERROR(VLOOKUP(N433,POA!$A$2:$F$25,4,0)),\"\",VLOOKUP(N433,POA!$A$2:$F$25,4,0))","v":""},{"$f":"IF(ISERROR(VLOOKUP(L433,POA!$A$2:$C$25,2,0)),\"\",VLOOKUP(L433,POA!$A$2:$C$25,2,0))","v":""},null,{"$f":"IF(Q433=0,\"\",IF(Q430>=$R$9,\"HABIL\",\"NO HABIL\"))","v":""},null,"",{"$f":"IF(ISERROR(VLOOKUP(N433,POA!$A$2:$F$25,5,0)),\"\",VLOOKUP(N433,POA!$A$2:$F$25,5,0))","v":""},null,"",null,0,"MIPYME",null,"",null,""]
[null,"",null,null,{"$f":"IF(ISERROR(VLOOKUP(C434,#REF!,2,0)),\"\",VLOOKUP(C434,#REF!,2,0))","v":""},null,{"$f":"IF(ISERROR(VLOOKUP(C434,#REF!,4,0)),\"\",VLOOKUP(C434,#REF!,4,0))","v":""},null,0,null,null,null,{"$f":"IF(ISERROR(VLOOKUP(L434,POA!$A$2:$C$25,3,0)),\"\",VLOOKUP(L434,POA!$A$2:$C$25,3,0))","v":""},null,{"$f":"IF(ISERROR(VLOOKUP(N434,POA!$A$2:$F$25,4,0)),\"\",VLOOKUP(N434,POA!$A$2:$F$25,4,0))","v":""},{"$f":"IF(ISERROR(VLOOKUP(L434,POA!$A$2:$C$25,2,0)),\"\",VLOOKUP(L434,POA!$A$2:$C$25,2,0))","v":""},null,{"$f":"IF(L434=0,\"\",IF(Q430>=$R$9,\"HABIL\",\"NO HABIL\"))","v":""},null,"",{"$f":"IF(ISERROR(VLOOKUP(N434,POA!$A$2:$F$25,5,0)),\"\",VLOOKUP(N434,POA!$A$2:$F$25,5,0))","v":""},null,"",null,0,"MIPYME",null,"",null,""]
[null,"",null,null,{"$f":"IF(ISERROR(VLOOKUP(C435,#REF!,2,0)),\"\",VLOOKUP(C435,#REF!,2,0))","v":""},null,{"$f":"IF(ISERROR(VLOOKUP(C435,#REF!,4,0)),\"\",VLOOKUP(C435,#REF!,4,0))","v":""},null,0,null,null,null,{"$f":"IF(ISERROR(VLOOKUP(L435,POA!$A$2:$C$25,3,0)),\"\",VLOOKUP(L435,POA!$A$2:$C$25,3,0))","v":""},null,{"$f":"IF(ISERROR(VLOOKUP(N435,POA!$A$2:$F$25,4,0)),\"\",VLOOKUP(N435,POA!$A$2:$F$25,4,0))","v":""},{"$f":"IF(ISERROR(VLOOKUP(L435,POA!$A$2:$C$25,2,0)),\"\",VLOOKUP(L435,POA!$A$2:$C$25,2,0))","v":""},null,{"$f":"IF(L435=0,\"\",IF(Q430>=$R$9,\"HABIL\",\"NO HABIL\"))","v":""},null,"",{"$f":"IF(ISERROR(VLOOKUP(N435,POA!$A$2:$F$25,5,0)),\"\",VLOOKUP(N435,POA!$A$2:$F$25,5,0))","v":""},null,"",null,0,"MIPYME",null,"",null,""]
[null,"",null,null,{"$f":"IF(ISERROR(VLOOKUP(C436,#REF!,2,0)),\"\",VLOOKUP(C436,#REF!,2,0))","v":""},null,{"$f":"IF(ISERROR(VLOOKUP(C436,#REF!,4,0)),\"\",VLOOKUP(C436,#REF!,4,0))","v":""},null,0,null,null,null,{"$f":"IF(ISERROR(VLOOKUP(L436,POA!$A$2:$C$25,3,0)),\"\",VLOOKUP(L436,POA!$A$2:$C$25,3,0))","v":""},null,{"$f":"IF(ISERROR(VLOOKUP(N436,POA!$A$2:$F$25,4,0)),\"\",VLOOKUP(N436,POA!$A$2:$F$25,4,0))","v":""},{"$f":"IF(ISERROR(VLOOKUP(L436,POA!$A$2:$C$25,2,0)),\"\",VLOOKUP(L436,POA!$A$2:$C$25,2,0))","v":""},null,{"$f":"IF(L436=0,\"\",IF(Q430>=$R$9,\"HABIL\",\"NO HABIL\"))","v":""},null,"",{"$f":"IF(ISERROR(VLOOKUP(N436,POA!$A$2:$F$25,5,0)),\"\",VLOOKUP(N436,POA!$A$2:$F$25,5,0))","v":""},null,"",null,0,"MIPYME",null,"",null,""]
[null,{"$f":"IF(C437=\"\",\"\",B436+0.1)","v":""},null,null,{"$f":"IF(ISERROR(VLOOKUP(C437,#REF!,2,0)),\"\",VLOOKUP(C437,#REF!,2,0))","v":""},null,{"$f":"IF(ISERROR(VLOOKUP(C437,#REF!,4,0)),\"\",VLOOKUP(C437,#REF!,4,0))","v":""},null,{"$f":"IF(ISERROR(F437-H437),\"\",F437-H437)","v":0},null,null,null,{"$f":"IF(ISERROR(VLOOKUP(L437,POA!$A$2:$C$25,3,0)),\"\",VLOOKUP(L437,POA!$A$2:$C$25,3,0))","v":""},null,{"$f":"IF(ISERROR(VLOOKUP(N437,POA!$A$2:$F$25,4,0)),\"\",VLOOKUP(N437,POA!$A$2:$F$25,4,0))","v":""},{"$f":"IF(ISERROR(VLOOKUP(L437,POA!$A$2:$C$25,2,0)),\"\",VLOOKUP(L437,POA!$A$2:$C$25,2,0))","v":""},null,{"$f":"IF(L437=0,\"\",IF(Q430>=$R$9,\"HABIL\",\"NO HABIL\"))","v":""},null,"",{"$f":"IF(ISERROR(VLOOKUP(N437,POA!$A$2:$F$25,5,0)),\"\",VLOOKUP(N437,POA!$A$2:$F$25,5,0))","v":""},null,"",null,0,"MIPYME",null,"",null,""]
[null,{"$f":"IF(C438=\"\",\"\",B437+0.1)","v":""},null,null,{"$f":"IF(ISERROR(VLOOKUP(C438,#REF!,2,0)),\"\",VLOOKUP(C438,#REF!,2,0))","v":""},null,{"$f":"IF(ISERROR(VLOOKUP(C438,#REF!,4,0)),\"\",VLOOKUP(C438,#REF!,4,0))","v":""},null,{"$f":"IF(ISERROR(F438-H438),\"\",F438-H438)","v":0},null,null,null,{"$f":"IF(ISERROR(VLOOKUP(L438,POA!$A$2:$C$25,3,0)),\"\",VLOOKUP(L438,POA!$A$2:$C$25,3,0))","v":""},null,{"$f":"IF(ISERROR(VLOOKUP(N438,POA!$A$2:$F$25,4,0)),\"\",VLOOKUP(N438,POA!$A$2:$F$25,4,0))","v":""},{"$f":"IF(ISERROR(VLOOKUP(L438,POA!$A$2:$C$25,2,0)),\"\",VLOOKUP(L438,POA!$A$2:$C$25,2,0))","v":""},null,{"$f":"IF(L438=0,\"\",IF(Q430>=$R$9,\"HABIL\",\"NO HABIL\"))","v":""},null,"",{"$f":"IF(ISERROR(VLOOKUP(N438,POA!$A$2:$F$25,5,0)),\"\",VLOOKUP(N438,POA!$A$2:$F$25,5,0))","v":""},null,"",null,0,"MIPYME",null,"",null,""]
[null,{"$f":"IF(C439=\"\",\"\",B438+0.1)","v":""},null,null,{"$f":"IF(ISERROR(VLOOKUP(C439,#REF!,2,0)),\"\",VLOOKUP(C439,#REF!,2,0))","v":""},null,{"$f":"IF(ISERROR(VLOOKUP(C439,#REF!,4,0)),\"\",VLOOKUP(C439,#REF!,4,0))","v":""},null,{"$f":"IF(ISERROR(F439-H439),\"\",F439-H439)","v":0},null,null,null,{"$f":"IF(ISERROR(VLOOKUP(L439,POA!$A$2:$C$25,3,0)),\"\",VLOOKUP(L439,POA!$A$2:$C$25,3,0))","v":""},null,{"$f":"IF(ISERROR(VLOOKUP(N439,POA!$A$2:$F$25,4,0)),\"\",VLOOKUP(N439,POA!$A$2:$F$25,4,0))","v":""},{"$f":"IF(ISERROR(VLOOKUP(L439,POA!$A$2:$C$25,2,0)),\"\",VLOOKUP(L439,POA!$A$2:$C$25,2,0))","v":""},null,{"$f":"IF(L439=0,\"\",IF(Q430>=$R$9,\"HABIL\",\"NO HABIL\"))","v":""},null,"",{"$f":"IF(ISERROR(VLOOKUP(N439,POA!$A$2:$F$25,5,0)),\"\",VLOOKUP(N439,POA!$A$2:$F$25,5,0))","v":""},null,"",null,0,"MIPYME",null,"",null,""]
[null,{"$f":"IF(C440=\"\",\"\",B439+0.1)","v":""},null,null,{"$f":"IF(ISERROR(VLOOKUP(C440,#REF!,2,0)),\"\",VLOOKUP(C440,#REF!,2,0))","v":""},null,{"$f":"IF(ISERROR(VLOOKUP(C440,#REF!,4,0)),\"\",VLOOKUP(C440,#REF!,4,0))","v":""},null,{"$f":"IF(ISERROR(F440-H440),\"\",F440-H440)","v":0},null,null,null,{"$f":"IF(ISERROR(VLOOKUP(L440,POA!$A$2:$C$25,3,0)),\"\",VLOOKUP(L440,POA!$A$2:$C$25,3,0))","v":""},null,{"$f":"IF(ISERROR(VLOOKUP(N440,POA!$A$2:$F$25,4,0)),\"\",VLOOKUP(N440,POA!$A$2:$F$25,4,0))","v":""},{"$f":"IF(ISERROR(VLOOKUP(L440,POA!$A$2:$C$25,2,0)),\"\",VLOOKUP(L440,POA!$A$2:$C$25,2,0))","v":""},null,{"$f":"IF(L440=0,\"\",IF(Q430>=$R$9,\"HABIL\",\"NO HABIL\"))","v":""},null,"",{"$f":"IF(ISERROR(VLOOKUP(N440,POA!$A$2:$F$25,5,0)),\"\",VLOOKUP(N440,POA!$A$2:$F$25,5,0))","v":""},null,"",null,{"$f":"IF(ISERROR(F440/$Z$9),\"\",F440/$Z$9)","v":0},"MIPYME",null,"",null,""]
[null,40,"CONSTRUCCIONES Y TRACTORES S.A.",{"$f":"IF(SUM(D442:D451)=0,\"\",SUM(D442:D451))","v":1},{"$f":"SUM(E442:E451)","v":16998858000},{"$f":"SUM(F442:F451)","v":31504903000},{"$f":"SUM(G442:G451)","v":1876142000},{"$f":"SUM(H442:H451)","v":14366758000},{"$f":"+F441-H441","v":17138145000},{"$f":"SUM(J442:J451)","v":3023562000},{"$f":"SUM(K442:K451)","v":60869000},1,{"$f":"IF(ISERROR(VLOOKUP(L441,POA!$A$2:$C$25,3,0)),\"\",VLOOKUP(L441,POA!$A$2:$C$25,3,0))","v":3}," ",{"$f":"+SUM(O442:O451)","v":0},{"$f":"IF(ISERROR(VLOOKUP(L441,POA!$A$2:$C$25,2,0)),\"\",VLOOKUP(L441,POA!$A$2:$C$25,2,0))","v":4167150295},{"$f":"SUM(E441/G441)","v":9.0605391276353284},{"$f":"IF(Q441=0,\"\",IF(Q441>=$R$9,\"HABIL\",\"NO HABIL\"))","v":"HABIL"},{"$f":"SUM(H441/F441)","v":0.45601657621355002},{"$f":"IF(S441=0,\"\",IF(S441<=$T$9,\"HABIL\",\"NO HABIL\"))","v":"HABIL"},{"$f":"+SUM(U442:U451)","v":0},{"$f":"SUM(J441/K441)","v":49.673265537465703},{"$f":"IF(V441=0,\"\",IF(V441>=$W$9,\"HABIL\",\"NO HABIL\"))","v":"HABIL"},{"$f":"IF(R441=0,\"\",IF(R441=\"NO HABIL\",\"NO HABIL\",IF(T441=\"NO HABIL\",\"NO HABIL\",IF(W441=\"NO HABIL\",\"NO HABIL\",IF(W441=\"NO HABIL\",\"NO HABIL\",\"HABIL\")))))","v":"HABIL"},null,null,{"$f":"SUM(J441/I441)","v":0.17642294425680258},{"$f":"IF(AA441=0,\"\",IF(AA441>=$AB$9,\"HABIL\",\"NO HABIL\"))","v":"HABIL"},{"$f":"SUM(J441/F441)","v":9.5971157251301481E-2},{"$f":"IF(AC441=0,\"\",IF(AC441>=$AD$9,\"HABIL\",\"NO HABIL\"))","v":"HABIL"},{"$f":"IF(AB441=0,\"\",IF(AB441=\"NO HABIL\",\"NO HABIL\",IF(AD441=\"NO HABIL\",\"NO HABIL\",IF(AD441=\"NO HABIL\",\"NO HABIL\",\"HABIL\"))))","v":"HABIL"}]
[null,{"$f":"IF(C442=\"\",\"\",B441+0.1)","v":40.1},"CONSTRUCCIONES Y TRACTORES S.A.",1,16998858000,31504903000,1876142000,14366758000,17138145000,3023562000,60869000,null,{"$f":"IF(ISERROR(VLOOKUP(L442,POA!$A$2:$C$25,3,0)),\"\",VLOOKUP(L442,POA!$A$2:$C$25,3,0))","v":""}," ",{"$f":"IF(ISERROR(VLOOKUP(N442,POA!$A$2:$F$25,4,0)),\"\",VLOOKUP(N442,POA!$A$2:$F$25,4,0))","v":""},{"$f":"IF(ISERROR(VLOOKUP(L442,POA!$A$2:$C$25,2,0)),\"\",VLOOKUP(L442,POA!$A$2:$C$25,2,0))","v":""},null,{"$f":"IF(Q442=0,\"\",IF(Q441>=$R$9,\"HABIL\",\"NO HABIL\"))","v":""},null,{"$f":"IF(S442=0,\"\",IF(S442<=$T$9,\"HABIL\",\"NO HABIL\"))","v":""},{"$f":"IF(ISERROR(VLOOKUP(N442,POA!$A$2:$F$25,5,0)),\"\",VLOOKUP(N442,POA!$A$2:$F$25,5,0))","v":""},null,{"$f":"IF(V442=0,\"\",IF(V442>=$W$9,\"HABIL\",\"NO HABIL\"))","v":""},null,{"$f":"IF(ISERROR(F442/$Z$9),\"\",F442/$Z$9)","v":55593.61743426857},{"$f":"+IF(Y442<$Z$10,\"MIPYME\",\"NO CUMPLE\")","v":"NO CUMPLE"},null,{"$f":"IF(AA442=0,\"\",IF(AA442>=$AB$9,\"HABIL\",\"NO HABIL\"))","v":""},null,{"$f":"IF(AC442=0,\"\",IF(AC442>=$AD$9,\"HABIL\",\"NO HABIL\"))","v":""}]
[null,"",null,null,null,null,null,null,{"$f":"IF(ISERROR(F443-H443),\"\",F443-H443)","v":0},null,null,null,{"$f":"IF(ISERROR(VLOOKUP(L443,POA!$A$2:$C$25,3,0)),\"\",VLOOKUP(L443,POA!$A$2:$C$25,3,0))","v":""}," ",{"$f":"IF(ISERROR(VLOOKUP(N443,POA!$A$2:$F$25,4,0)),\"\",VLOOKUP(N443,POA!$A$2:$F$25,4,0))","v":""},{"$f":"IF(ISERROR(VLOOKUP(L443,POA!$A$2:$C$25,2,0)),\"\",VLOOKUP(L443,POA!$A$2:$C$25,2,0))","v":""},null,{"$f":"IF(Q443=0,\"\",IF(Q441>=$R$9,\"HABIL\",\"NO HABIL\"))","v":""},null,"",{"$f":"IF(ISERROR(VLOOKUP(N443,POA!$A$2:$F$25,5,0)),\"\",VLOOKUP(N443,POA!$A$2:$F$25,5,0))","v":""},null,"",null,{"$f":"IF(ISERROR(F443/$Z$9),\"\",F443/$Z$9)","v":0},{"$f":"+IF(Y443<$Z$10,\"MIPYME\",\"NO CUMPLE\")","v":"MIPYME"},null,"",null,""]
[null,"",null,null,null,null,null,null,0,null,null,null,{"$f":"IF(ISERROR(VLOOKUP(L444,POA!$A$2:$C$25,3,0)),\"\",VLOOKUP(L444,POA!$A$2:$C$25,3,0))","v":""},null,{"$f":"IF(ISERROR(VLOOKUP(N444,POA!$A$2:$F$25,4,0)),\"\",VLOOKUP(N444,POA!$A$2:$F$25,4,0))","v":""},{"$f":"IF(ISERROR(VLOOKUP(L444,POA!$A$2:$C$25,2,0)),\"\",VLOOKUP(L444,POA!$A$2:$C$25,2,0))","v":""},null,{"$f":"IF(Q444=0,\"\",IF(Q441>=$R$9,\"HABIL\",\"NO HABIL\"))","v":""},null,"",{"$f":"IF(ISERROR(VLOOKUP(N444,POA!$A$2:$F$25,5,0)),\"\",VLOOKUP(N444,POA!$A$2:$F$25,5,0))","v":""},null,"",null,0,"MIPYME",null,"",null,""]
[null,"",null,null,{"$f":"IF(ISERROR(VLOOKUP(C445,#REF!,2,0)),\"\",VLOOKUP(C445,#REF!,2,0))","v":""},null,{"$f":"IF(ISERROR(VLOOKUP(C445,#REF!,4,0)),\"\",VLOOKUP(C445,#REF!,4,0))","v":""},null,0,null,null,null,{"$f":"IF(ISERROR(VLOOKUP(L445,POA!$A$2:$C$25,3,0)),\"\",VLOOKUP(L445,POA!$A$2:$C$25,3,0))","v":""},null,{"$f":"IF(ISERROR(VLOOKUP(N445,POA!$A$2:$F$25,4,0)),\"\",VLOOKUP(N445,POA!$A$2:$F$25,4,0))","v":""},{"$f":"IF(ISERROR(VLOOKUP(L445,POA!$A$2:$C$25,2,0)),\"\",VLOOKUP(L445,POA!$A$2:$C$25,2,0))","v":""},null,{"$f":"IF(L445=0,\"\",IF(Q441>=$R$9,\"HABIL\",\"NO HABIL\"))","v":""},null,"",{"$f":"IF(ISERROR(VLOOKUP(N445,POA!$A$2:$F$25,5,0)),\"\",VLOOKUP(N445,POA!$A$2:$F$25,5,0))","v":""},null,"",null,0,"MIPYME",null,"",null,""]
[null,"",null,null,{"$f":"IF(ISERROR(VLOOKUP(C446,#REF!,2,0)),\"\",VLOOKUP(C446,#REF!,2,0))","v":""},null,{"$f":"IF(ISERROR(VLOOKUP(C446,#REF!,4,0)),\"\",VLOOKUP(C446,#REF!,4,0))","v":""},null,0,null,null,null,{"$f":"IF(ISERROR(VLOOKUP(L446,POA!$A$2:$C$25,3,0)),\"\",VLOOKUP(L446,POA!$A$2:$C$25,3,0))","v":""},null,{"$f":"IF(ISERROR(VLOOKUP(N446,POA!$A$2:$F$25,4,0)),\"\",VLOOKUP(N446,POA!$A$2:$F$25,4,0))","v":""},{"$f":"IF(ISERROR(VLOOKUP(L446,POA!$A$2:$C$25,2,0)),\"\",VLOOKUP(L446,POA!$A$2:$C$25,2,0))","v":""},null,{"$f":"IF(L446=0,\"\",IF(Q441>=$R$9,\"HABIL\",\"NO HABIL\"))","v":""},null,"",{"$f":"IF(ISERROR(VLOOKUP(N446,POA!$A$2:$F$25,5,0)),\"\",VLOOKUP(N446,POA!$A$2:$F$25,5,0))","v":""},null,"",null,0,"MIPYME",null,"",null,""]
[null,"",null,null,{"$f":"IF(ISERROR(VLOOKUP(C447,#REF!,2,0)),\"\",VLOOKUP(C447,#REF!,2,0))","v":""},null,{"$f":"IF(ISERROR(VLOOKUP(C447,#REF!,4,0)),\"\",VLOOKUP(C447,#REF!,4,0))","v":""},null,0,null,null,null,{"$f":"IF(ISERROR(VLOOKUP(L447,POA!$A$2:$C$25,3,0)),\"\",VLOOKUP(L447,POA!$A$2:$C$25,3,0))","v":""},null,{"$f":"IF(ISERROR(VLOOKUP(N447,POA!$A$2:$F$25,4,0)),\"\",VLOOKUP(N447,POA!$A$2:$F$25,4,0))","v":""},{"$f":"IF(ISERROR(VLOOKUP(L447,POA!$A$2:$C$25,2,0)),\"\",VLOOKUP(L447,POA!$A$2:$C$25,2,0))","v":""},null,{"$f":"IF(L447=0,\"\",IF(Q441>=$R$9,\"HABIL\",\"NO HABIL\"))","v":""},null,"",{"$f":"IF(ISERROR(VLOOKUP(N447,POA!$A$2:$F$25,5,0)),\"\",VLOOKUP(N447,POA!$A$2:$F$25,5,0))","v":""},null,"",null,0,"MIPYME",null,"",null,""]
[null,{"$f":"IF(C448=\"\",\"\",B447+0.1)","v":""},null,null,{"$f":"IF(ISERROR(VLOOKUP(C448,#REF!,2,0)),\"\",VLOOKUP(C448,#REF!,2,0))","v":""},null,{"$f":"IF(ISERROR(VLOOKUP(C448,#REF!,4,0)),\"\",VLOOKUP(C448,#REF!,4,0))","v":""},null,{"$f":"IF(ISERROR(F448-H448),\"\",F448-H448)","v":0},null,null,null,{"$f":"IF(ISERROR(VLOOKUP(L448,POA!$A$2:$C$25,3,0)),\"\",VLOOKUP(L448,POA!$A$2:$C$25,3,0))","v":""},null,{"$f":"IF(ISERROR(VLOOKUP(N448,POA!$A$2:$F$25,4,0)),\"\",VLOOKUP(N448,POA!$A$2:$F$25,4,0))","v":""},{"$f":"IF(ISERROR(VLOOKUP(L448,POA!$A$2:$C$25,2,0)),\"\",VLOOKUP(L448,POA!$A$2:$C$25,2,0))","v":""},null,{"$f":"IF(L448=0,\"\",IF(Q441>=$R$9,\"HABIL\",\"NO HABIL\"))","v":""},null,"",{"$f":"IF(ISERROR(VLOOKUP(N448,POA!$A$2:$F$25,5,0)),\"\",VLOOKUP(N448,POA!$A$2:$F$25,5,0))","v":""},null,"",null,0,"MIPYME",null,"",null,""]
[null,{"$f":"IF(C449=\"\",\"\",B448+0.1)","v":""},null,null,{"$f":"IF(ISERROR(VLOOKUP(C449,#REF!,2,0)),\"\",VLOOKUP(C449,#REF!,2,0))","v":""},null,{"$f":"IF(ISERROR(VLOOKUP(C449,#REF!,4,0)),\"\",VLOOKUP(C449,#REF!,4,0))","v":""},null,{"$f":"IF(ISERROR(F449-H449),\"\",F449-H449)","v":0},null,null,null,{"$f":"IF(ISERROR(VLOOKUP(L449,POA!$A$2:$C$25,3,0)),\"\",VLOOKUP(L449,POA!$A$2:$C$25,3,0))","v":""},null,{"$f":"IF(ISERROR(VLOOKUP(N449,POA!$A$2:$F$25,4,0)),\"\",VLOOKUP(N449,POA!$A$2:$F$25,4,0))","v":""},{"$f":"IF(ISERROR(VLOOKUP(L449,POA!$A$2:$C$25,2,0)),\"\",VLOOKUP(L449,POA!$A$2:$C$25,2,0))","v":""},null,{"$f":"IF(L449=0,\"\",IF(Q441>=$R$9,\"HABIL\",\"NO HABIL\"))","v":""},null,"",{"$f":"IF(ISERROR(VLOOKUP(N449,POA!$A$2:$F$25,5,0)),\"\",VLOOKUP(N449,POA!$A$2:$F$25,5,0))","v":""},null,"",null,0,"MIPYME",null,"",null,""]
[null,{"$f":"IF(C450=\"\",\"\",B449+0.1)","v":""},null,null,{"$f":"IF(ISERROR(VLOOKUP(C450,#REF!,2,0)),\"\",VLOOKUP(C450,#REF!,2,0))","v":""},null,{"$f":"IF(ISERROR(VLOOKUP(C450,#REF!,4,0)),\"\",VLOOKUP(C450,#REF!,4,0))","v":""},null,{"$f":"IF(ISERROR(F450-H450),\"\",F450-H450)","v":0},null,null,null,{"$f":"IF(ISERROR(VLOOKUP(L450,POA!$A$2:$C$25,3,0)),\"\",VLOOKUP(L450,POA!$A$2:$C$25,3,0))","v":""},null,{"$f":"IF(ISERROR(VLOOKUP(N450,POA!$A$2:$F$25,4,0)),\"\",VLOOKUP(N450,POA!$A$2:$F$25,4,0))","v":""},{"$f":"IF(ISERROR(VLOOKUP(L450,POA!$A$2:$C$25,2,0)),\"\",VLOOKUP(L450,POA!$A$2:$C$25,2,0))","v":""},null,{"$f":"IF(L450=0,\"\",IF(Q441>=$R$9,\"HABIL\",\"NO HABIL\"))","v":""},null,"",{"$f":"IF(ISERROR(VLOOKUP(N450,POA!$A$2:$F$25,5,0)),\"\",VLOOKUP(N450,POA!$A$2:$F$25,5,0))","v":""},null,"",null,0,"MIPYME",null,"",null,""]
[null,{"$f":"IF(C451=\"\",\"\",B450+0.1)","v":""},null,null,{"$f":"IF(ISERROR(VLOOKUP(C451,#REF!,2,0)),\"\",VLOOKUP(C451,#REF!,2,0))","v":""},null,{"$f":"IF(ISERROR(VLOOKUP(C451,#REF!,4,0)),\"\",VLOOKUP(C451,#REF!,4,0))","v":""},null,{"$f":"IF(ISERROR(F451-H451),\"\",F451-H451)","v":0},null,null,null,{"$f":"IF(ISERROR(VLOOKUP(L451,POA!$A$2:$C$25,3,0)),\"\",VLOOKUP(L451,POA!$A$2:$C$25,3,0))","v":""},null,{"$f":"IF(ISERROR(VLOOKUP(N451,POA!$A$2:$F$25,4,0)),\"\",VLOOKUP(N451,POA!$A$2:$F$25,4,0))","v":""},{"$f":"IF(ISERROR(VLOOKUP(L451,POA!$A$2:$C$25,2,0)),\"\",VLOOKUP(L451,POA!$A$2:$C$25,2,0))","v":""},null,{"$f":"IF(L451=0,\"\",IF(Q441>=$R$9,\"HABIL\",\"NO HABIL\"))","v":""},null,"",{"$f":"IF(ISERROR(VLOOKUP(N451,POA!$A$2:$F$25,5,0)),\"\",VLOOKUP(N451,POA!$A$2:$F$25,5,0))","v":""},null,"",null,{"$f":"IF(ISERROR(F451/$Z$9),\"\",F451/$Z$9)","v":0},"MIPYME",null,"",null,""]
[null,41,"RICARDO ORTIGOZA GONZALEZ",{"$f":"IF(SUM(D453:D462)=0,\"\",SUM(D453:D462))","v":1},{"$f":"SUM(E453:E462)","v":2764528966},{"$f":"SUM(F453:F462)","v":5019792603},{"$f":"SUM(G453:G462)","v":18620506},{"$f":"SUM(H453:H462)","v":1475755284},{"$f":"+F452-H452","v":3544037319},{"$f":"SUM(J453:J462)","v":506121116},{"$f":"SUM(K453:K462)","v":33317149},1,{"$f":"IF(ISERROR(VLOOKUP(L452,POA!$A$2:$C$25,3,0)),\"\",VLOOKUP(L452,POA!$A$2:$C$25,3,0))","v":3}," ",{"$f":"+SUM(O453:O462)","v":0},{"$f":"IF(ISERROR(VLOOKUP(L452,POA!$A$2:$C$25,2,0)),\"\",VLOOKUP(L452,POA!$A$2:$C$25,2,0))","v":4167150295},{"$f":"SUM(E452/G452)","v":148.46690879399304},{"$f":"IF(Q452=0,\"\",IF(Q452>=$R$9,\"HABIL\",\"NO HABIL\"))","v":"HABIL"},{"$f":"SUM(H452/F452)","v":0.29398730200885953},{"$f":"IF(S452=0,\"\",IF(S452<=$T$9,\"HABIL\",\"NO HABIL\"))","v":"HABIL"},{"$f":"+SUM(U453:U462)","v":0},{"$f":"SUM(J452/K452)","v":15.191009170682641},{"$f":"IF(V452=0,\"\",IF(V452>=$W$9,\"HABIL\",\"NO HABIL\"))","v":"HABIL"},{"$f":"IF(R452=0,\"\",IF(R452=\"NO HABIL\",\"NO HABIL\",IF(T452=\"NO HABIL\",\"NO HABIL\",IF(W452=\"NO HABIL\",\"NO HABIL\",IF(W452=\"NO HABIL\",\"NO HABIL\",\"HABIL\")))))","v":"HABIL"},null,null,{"$f":"SUM(J452/I452)","v":0.14280919483737525},{"$f":"IF(AA452=0,\"\",IF(AA452>=$AB$9,\"HABIL\",\"NO HABIL\"))","v":"HABIL"},{"$f":"SUM(J452/F452)","v":0.10082510494507775},{"$f":"IF(AC452=0,\"\",IF(AC452>=$AD$9,\"HABIL\",\"NO HABIL\"))","v":"HABIL"},{"$f":"IF(AB452=0,\"\",IF(AB452=\"NO HABIL\",\"NO HABIL\",IF(AD452=\"NO HABIL\",\"NO HABIL\",IF(AD452=\"NO HABIL\",\"NO HABIL\",\"HABIL\"))))","v":"HABIL"}]
[null,{"$f":"IF(C453=\"\",\"\",B452+0.1)","v":41.1},"RICARDO ORTIGOZA GONZALEZ",1,2764528966,5019792603,18620506,1475755284,3544037319,506121116,33317149,null,{"$f":"IF(ISERROR(VLOOKUP(L453,POA!$A$2:$C$25,3,0)),\"\",VLOOKUP(L453,POA!$A$2:$C$25,3,0))","v":""}," ",{"$f":"IF(ISERROR(VLOOKUP(N453,POA!$A$2:$F$25,4,0)),\"\",VLOOKUP(N453,POA!$A$2:$F$25,4,0))","v":""},{"$f":"IF(ISERROR(VLOOKUP(L453,POA!$A$2:$C$25,2,0)),\"\",VLOOKUP(L453,POA!$A$2:$C$25,2,0))","v":""},null,{"$f":"IF(Q453=0,\"\",IF(Q452>=$R$9,\"HABIL\",\"NO HABIL\"))","v":""},null,{"$f":"IF(S453=0,\"\",IF(S453<=$T$9,\"HABIL\",\"NO HABIL\"))","v":""},{"$f":"IF(ISERROR(VLOOKUP(N453,POA!$A$2:$F$25,5,0)),\"\",VLOOKUP(N453,POA!$A$2:$F$25,5,0))","v":""},null,{"$f":"IF(V453=0,\"\",IF(V453>=$W$9,\"HABIL\",\"NO HABIL\"))","v":""},null,{"$f":"IF(ISERROR(F453/$Z$9),\"\",F453/$Z$9)","v":8857.9364796188456},{"$f":"+IF(Y453<$Z$10,\"MIPYME\",\"NO CUMPLE\")","v":"MIPYME"},null,{"$f":"IF(AA453=0,\"\",IF(AA453>=$AB$9,\"HABIL\",\"NO HABIL\"))","v":""},null,{"$f":"IF(AC453=0,\"\",IF(AC453>=$AD$9,\"HABIL\",\"NO HABIL\"))","v":""}]
[null,"",null,null,null,null,null,null,{"$f":"IF(ISERROR(F454-H454),\"\",F454-H454)","v":0},null,null,null,{"$f":"IF(ISERROR(VLOOKUP(L454,POA!$A$2:$C$25,3,0)),\"\",VLOOKUP(L454,POA!$A$2:$C$25,3,0))","v":""}," ",{"$f":"IF(ISERROR(VLOOKUP(N454,POA!$A$2:$F$25,4,0)),\"\",VLOOKUP(N454,POA!$A$2:$F$25,4,0))","v":""},{"$f":"IF(ISERROR(VLOOKUP(L454,POA!$A$2:$C$25,2,0)),\"\",VLOOKUP(L454,POA!$A$2:$C$25,2,0))","v":""},null,{"$f":"IF(Q454=0,\"\",IF(Q452>=$R$9,\"HABIL\",\"NO HABIL\"))","v":""},null,"",{"$f":"IF(ISERROR(VLOOKUP(N454,POA!$A$2:$F$25,5,0)),\"\",VLOOKUP(N454,POA!$A$2:$F$25,5,0))","v":""},null,"",null,{"$f":"IF(ISERROR(F454/$Z$9),\"\",F454/$Z$9)","v":0},{"$f":"+IF(Y454<$Z$10,\"MIPYME\",\"NO CUMPLE\")","v":"MIPYME"},null,"",null,""]
[null,"",null,null,null,null,null,null,0,null,null,null,{"$f":"IF(ISERROR(VLOOKUP(L455,POA!$A$2:$C$25,3,0)),\"\",VLOOKUP(L455,POA!$A$2:$C$25,3,0))","v":""},null,{"$f":"IF(ISERROR(VLOOKUP(N455,POA!$A$2:$F$25,4,0)),\"\",VLOOKUP(N455,POA!$A$2:$F$25,4,0))","v":""},{"$f":"IF(ISERROR(VLOOKUP(L455,POA!$A$2:$C$25,2,0)),\"\",VLOOKUP(L455,POA!$A$2:$C$25,2,0))","v":""},null,{"$f":"IF(Q455=0,\"\",IF(Q452>=$R$9,\"HABIL\",\"NO HABIL\"))","v":""},null,"",{"$f":"IF(ISERROR(VLOOKUP(N455,POA!$A$2:$F$25,5,0)),\"\",VLOOKUP(N455,POA!$A$2:$F$25,5,0))","v":""},null,"",null,0,"MIPYME",null,"",null,""]
[null,"",null,null,{"$f":"IF(ISERROR(VLOOKUP(C456,#REF!,2,0)),\"\",VLOOKUP(C456,#REF!,2,0))","v":""},null,{"$f":"IF(ISERROR(VLOOKUP(C456,#REF!,4,0)),\"\",VLOOKUP(C456,#REF!,4,0))","v":""},null,0,null,null,null,{"$f":"IF(ISERROR(VLOOKUP(L456,POA!$A$2:$C$25,3,0)),\"\",VLOOKUP(L456,POA!$A$2:$C$25,3,0))","v":""},null,{"$f":"IF(ISERROR(VLOOKUP(N456,POA!$A$2:$F$25,4,0)),\"\",VLOOKUP(N456,POA!$A$2:$F$25,4,0))","v":""},{"$f":"IF(ISERROR(VLOOKUP(L456,POA!$A$2:$C$25,2,0)),\"\",VLOOKUP(L456,POA!$A$2:$C$25,2,0))","v":""},null,{"$f":"IF(L456=0,\"\",IF(Q452>=$R$9,\"HABIL\",\"NO HABIL\"))","v":""},null,"",{"$f":"IF(ISERROR(VLOOKUP(N456,POA!$A$2:$F$25,5,0)),\"\",VLOOKUP(N456,POA!$A$2:$F$25,5,0))","v":""},null,"",null,0,"MIPYME",null,"",null,""]
[null,"",null,null,{"$f":"IF(ISERROR(VLOOKUP(C457,#REF!,2,0)),\"\",VLOOKUP(C457,#REF!,2,0))","v":""},null,{"$f":"IF(ISERROR(VLOOKUP(C457,#REF!,4,0)),\"\",VLOOKUP(C457,#REF!,4,0))","v":""},null,0,null,null,null,{"$f":"IF(ISERROR(VLOOKUP(L457,POA!$A$2:$C$25,3,0)),\"\",VLOOKUP(L457,POA!$A$2:$C$25,3,0))","v":""},null,{"$f":"IF(ISERROR(VLOOKUP(N457,POA!$A$2:$F$25,4,0)),\"\",VLOOKUP(N457,POA!$A$2:$F$25,4,0))","v":""},{"$f":"IF(ISERROR(VLOOKUP(L457,POA!$A$2:$C$25,2,0)),\"\",VLOOKUP(L457,POA!$A$2:$C$25,2,0))","v":""},null,{"$f":"IF(L457=0,\"\",IF(Q452>=$R$9,\"HABIL\",\"NO HABIL\"))","v":""},null,"",{"$f":"IF(ISERROR(VLOOKUP(N457,POA!$A$2:$F$25,5,0)),\"\",VLOOKUP(N457,POA!$A$2:$F$25,5,0))","v":""},null,"",null,0,"MIPYME",null,"",null,""]
[null,"",null,null,{"$f":"IF(ISERROR(VLOOKUP(C458,#REF!,2,0)),\"\",VLOOKUP(C458,#REF!,2,0))","v":""},null,{"$f":"IF(ISERROR(VLOOKUP(C458,#REF!,4,0)),\"\",VLOOKUP(C458,#REF!,4,0))","v":""},null,0,null,null,null,{"$f":"IF(ISERROR(VLOOKUP(L458,POA!$A$2:$C$25,3,0)),\"\",VLOOKUP(L458,POA!$A$2:$C$25,3,0))","v":""},null,{"$f":"IF(ISERROR(VLOOKUP(N458,POA!$A$2:$F$25,4,0)),\"\",VLOOKUP(N458,POA!$A$2:$F$25,4,0))","v":""},{"$f":"IF(ISERROR(VLOOKUP(L458,POA!$A$2:$C$25,2,0)),\"\",VLOOKUP(L458,POA!$A$2:$C$25,2,0))","v":""},null,{"$f":"IF(L458=0,\"\",IF(Q452>=$R$9,\"HABIL\",\"NO HABIL\"))","v":""},null,"",{"$f":"IF(ISERROR(VLOOKUP(N458,POA!$A$2:$F$25,5,0)),\"\",VLOOKUP(N458,POA!$A$2:$F$25,5,0))","v":""},null,"",null,0,"MIPYME",null,"",null,""]
[null,{"$f":"IF(C459=\"\",\"\",B458+0.1)","v":""},null,null,{"$f":"IF(ISERROR(VLOOKUP(C459,#REF!,2,0)),\"\",VLOOKUP(C459,#REF!,2,0))","v":""},null,{"$f":"IF(ISERROR(VLOOKUP(C459,#REF!,4,0)),\"\",VLOOKUP(C459,#REF!,4,0))","v":""},null,{"$f":"IF(ISERROR(F459-H459),\"\",F459-H459)","v":0},null,null,null,{"$f":"IF(ISERROR(VLOOKUP(L459,POA!$A$2:$C$25,3,0)),\"\",VLOOKUP(L459,POA!$A$2:$C$25,3,0))","v":""},null,{"$f":"IF(ISERROR(VLOOKUP(N459,POA!$A$2:$F$25,4,0)),\"\",VLOOKUP(N459,POA!$A$2:$F$25,4,0))","v":""},{"$f":"IF(ISERROR(VLOOKUP(L459,POA!$A$2:$C$25,2,0)),\"\",VLOOKUP(L459,POA!$A$2:$C$25,2,0))","v":""},null,{"$f":"IF(L459=0,\"\",IF(Q452>=$R$9,\"HABIL\",\"NO HABIL\"))","v":""},null,"",{"$f":"IF(ISERROR(VLOOKUP(N459,POA!$A$2:$F$25,5,0)),\"\",VLOOKUP(N459,POA!$A$2:$F$25,5,0))","v":""},null,"",null,0,"MIPYME",null,"",null,""]
[null,{"$f":"IF(C460=\"\",\"\",B459+0.1)","v":""},null,null,{"$f":"IF(ISERROR(VLOOKUP(C460,#REF!,2,0)),\"\",VLOOKUP(C460,#REF!,2,0))","v":""},null,{"$f":"IF(ISERROR(VLOOKUP(C460,#REF!,4,0)),\"\",VLOOKUP(C460,#REF!,4,0))","v":""},null,{"$f":"IF(ISERROR(F460-H460),\"\",F460-H460)","v":0},null,null,null,{"$f":"IF(ISERROR(VLOOKUP(L460,POA!$A$2:$C$25,3,0)),\"\",VLOOKUP(L460,POA!$A$2:$C$25,3,0))","v":""},null,{"$f":"IF(ISERROR(VLOOKUP(N460,POA!$A$2:$F$25,4,0)),\"\",VLOOKUP(N460,POA!$A$2:$F$25,4,0))","v":""},{"$f":"IF(ISERROR(VLOOKUP(L460,POA!$A$2:$C$25,2,0)),\"\",VLOOKUP(L460,POA!$A$2:$C$25,2,0))","v":""},null,{"$f":"IF(L460=0,\"\",IF(Q452>=$R$9,\"HABIL\",\"NO HABIL\"))","v":""},null,"",{"$f":"IF(ISERROR(VLOOKUP(N460,POA!$A$2:$F$25,5,0)),\"\",VLOOKUP(N460,POA!$A$2:$F$25,5,0))","v":""},null,"",null,0,"MIPYME",null,"",null,""]
[null,{"$f":"IF(C461=\"\",\"\",B460+0.1)","v":""},null,null,{"$f":"IF(ISERROR(VLOOKUP(C461,#REF!,2,0)),\"\",VLOOKUP(C461,#REF!,2,0))","v":""},null,{"$f":"IF(ISERROR(VLOOKUP(C461,#REF!,4,0)),\"\",VLOOKUP(C461,#REF!,4,0))","v":""},null,{"$f":"IF(ISERROR(F461-H461),\"\",F461-H461)","v":0},null,null,null,{"$f":"IF(ISERROR(VLOOKUP(L461,POA!$A$2:$C$25,3,0)),\"\",VLOOKUP(L461,POA!$A$2:$C$25,3,0))","v":""},null,{"$f":"IF(ISERROR(VLOOKUP(N461,POA!$A$2:$F$25,4,0)),\"\",VLOOKUP(N461,POA!$A$2:$F$25,4,0))","v":""},{"$f":"IF(ISERROR(VLOOKUP(L461,POA!$A$2:$C$25,2,0)),\"\",VLOOKUP(L461,POA!$A$2:$C$25,2,0))","v":""},null,{"$f":"IF(L461=0,\"\",IF(Q452>=$R$9,\"HABIL\",\"NO HABIL\"))","v":""},null,"",{"$f":"IF(ISERROR(VLOOKUP(N461,POA!$A$2:$F$25,5,0)),\"\",VLOOKUP(N461,POA!$A$2:$F$25,5,0))","v":""},null,"",null,0,"MIPYME",null,"",null,""]
[null,{"$f":"IF(C462=\"\",\"\",B461+0.1)","v":""},null,null,{"$f":"IF(ISERROR(VLOOKUP(C462,#REF!,2,0)),\"\",VLOOKUP(C462,#REF!,2,0))","v":""},null,{"$f":"IF(ISERROR(VLOOKUP(C462,#REF!,4,0)),\"\",VLOOKUP(C462,#REF!,4,0))","v":""},null,{"$f":"IF(ISERROR(F462-H462),\"\",F462-H462)","v":0},null,null,null,{"$f":"IF(ISERROR(VLOOKUP(L462,POA!$A$2:$C$25,3,0)),\"\",VLOOKUP(L462,POA!$A$2:$C$25,3,0))","v":""},null,{"$f":"IF(ISERROR(VLOOKUP(N462,POA!$A$2:$F$25,4,0)),\"\",VLOOKUP(N462,POA!$A$2:$F$25,4,0))","v":""},{"$f":"IF(ISERROR(VLOOKUP(L462,POA!$A$2:$C$25,2,0)),\"\",VLOOKUP(L462,POA!$A$2:$C$25,2,0))","v":""},null,{"$f":"IF(L462=0,\"\",IF(Q452>=$R$9,\"HABIL\",\"NO HABIL\"))","v":""},null,"",{"$f":"IF(ISERROR(VLOOKUP(N462,POA!$A$2:$F$25,5,0)),\"\",VLOOKUP(N462,POA!$A$2:$F$25,5,0))","v":""},null,"",null,{"$f":"IF(ISERROR(F462/$Z$9),\"\",F462/$Z$9)","v":0},"MIPYME",null,"",null,""]
[null,42,"CONSORCIO VIALES CUNDINAMARCA",{"$f":"IF(SUM(D464:D473)=0,\"\",SUM(D464:D473))","v":1},{"$f":"SUM(E464:E473)","v":13885117705},{"$f":"SUM(F464:F473)","v":20101453703},{"$f":"SUM(G464:G473)","v":1541429069},{"$f":"SUM(H464:H473)","v":10289686066},{"$f":"+F463-H463","v":9811767637},{"$f":"SUM(J464:J473)","v":2292775427},{"$f":"SUM(K464:K473)","v":596251963},1,{"$f":"IF(ISERROR(VLOOKUP(L463,POA!$A$2:$C$25,3,0)),\"\",VLOOKUP(L463,POA!$A$2:$C$25,3,0))","v":3}," ",{"$f":"+SUM(O464:O473)","v":0},{"$f":"IF(ISERROR(VLOOKUP(L463,POA!$A$2:$C$25,2,0)),\"\",VLOOKUP(L463,POA!$A$2:$C$25,2,0))","v":4167150295},{"$f":"SUM(E463/G463)","v":9.0079511177299594},{"$f":"IF(Q463=0,\"\",IF(Q463>=$R$9,\"HABIL\",\"NO HABIL\"))","v":"HABIL"},{"$f":"SUM(H463/F463)","v":0.51188765837688333},{"$f":"IF(S463=0,\"\",IF(S463<=$T$9,\"HABIL\",\"NO HABIL\"))","v":"HABIL"},{"$f":"+SUM(U464:U473)","v":0},{"$f":"SUM(J463/K463)","v":3.8453130040261185},{"$f":"IF(V463=0,\"\",IF(V463>=$W$9,\"HABIL\",\"NO HABIL\"))","v":"HABIL"},{"$f":"IF(R463=0,\"\",IF(R463=\"NO HABIL\",\"NO HABIL\",IF(T463=\"NO HABIL\",\"NO HABIL\",IF(W463=\"NO HABIL\",\"NO HABIL\",IF(W463=\"NO HABIL\",\"NO HABIL\",\"HABIL\")))))","v":"HABIL"},null,null,{"$f":"SUM(J463/I463)","v":0.23367608282466709},{"$f":"IF(AA463=0,\"\",IF(AA463>=$AB$9,\"HABIL\",\"NO HABIL\"))","v":"HABIL"},{"$f":"SUM(J463/F463)","v":0.11406017996886561},{"$f":"IF(AC463=0,\"\",IF(AC463>=$AD$9,\"HABIL\",\"NO HABIL\"))","v":"HABIL"},{"$f":"IF(AB463=0,\"\",IF(AB463=\"NO HABIL\",\"NO HABIL\",IF(AD463=\"NO HABIL\",\"NO HABIL\",IF(AD463=\"NO HABIL\",\"NO HABIL\",\"HABIL\"))))","v":"HABIL"}]
[null,{"$f":"IF(C464=\"\",\"\",B463+0.1)","v":42.1},"OLT CONSTRUCTORES S.A.S.",0.6,2775955694,3131937805,14956357,131937805,{"$f":"IF(ISERROR(F464-H464),\"\",F464-H464)","v":3000000000},2093870818,0,null,{"$f":"IF(ISERROR(VLOOKUP(L464,POA!$A$2:$C$25,3,0)),\"\",VLOOKUP(L464,POA!$A$2:$C$25,3,0))","v":""}," ",{"$f":"IF(ISERROR(VLOOKUP(N464,POA!$A$2:$F$25,4,0)),\"\",VLOOKUP(N464,POA!$A$2:$F$25,4,0))","v":""},{"$f":"IF(ISERROR(VLOOKUP(L464,POA!$A$2:$C$25,2,0)),\"\",VLOOKUP(L464,POA!$A$2:$C$25,2,0))","v":""},null,{"$f":"IF(Q464=0,\"\",IF(Q463>=$R$9,\"HABIL\",\"NO HABIL\"))","v":""},null,{"$f":"IF(S464=0,\"\",IF(S464<=$T$9,\"HABIL\",\"NO HABIL\"))","v":""},{"$f":"IF(ISERROR(VLOOKUP(N464,POA!$A$2:$F$25,5,0)),\"\",VLOOKUP(N464,POA!$A$2:$F$25,5,0))","v":""},null,{"$f":"IF(V464=0,\"\",IF(V464>=$W$9,\"HABIL\",\"NO HABIL\"))","v":""},null,{"$f":"IF(ISERROR(F464/$Z$9),\"\",F464/$Z$9)","v":5526.6239721192869},{"$f":"+IF(Y464<$Z$10,\"MIPYME\",\"NO CUMPLE\")","v":"MIPYME"},null,{"$f":"IF(AA464=0,\"\",IF(AA464>=$AB$9,\"HABIL\",\"NO HABIL\"))","v":""},null,{"$f":"IF(AC464=0,\"\",IF(AC464>=$AD$9,\"HABIL\",\"NO HABIL\"))","v":""}]
[null,42.2,"CONSTRUCCIONES MAJA S.A.S.",0.4,11109162011,16969515898,1526472712,10157748261,6811767637,198904609,596251963,null,{"$f":"IF(ISERROR(VLOOKUP(L465,POA!$A$2:$C$25,3,0)),\"\",VLOOKUP(L465,POA!$A$2:$C$25,3,0))","v":""}," ",{"$f":"IF(ISERROR(VLOOKUP(N465,POA!$A$2:$F$25,4,0)),\"\",VLOOKUP(N465,POA!$A$2:$F$25,4,0))","v":""},{"$f":"IF(ISERROR(VLOOKUP(L465,POA!$A$2:$C$25,2,0)),\"\",VLOOKUP(L465,POA!$A$2:$C$25,2,0))","v":""},null,{"$f":"IF(Q465=0,\"\",IF(Q463>=$R$9,\"HABIL\",\"NO HABIL\"))","v":""},null,"",{"$f":"IF(ISERROR(VLOOKUP(N465,POA!$A$2:$F$25,5,0)),\"\",VLOOKUP(N465,POA!$A$2:$F$25,5,0))","v":""},null,"",null,{"$f":"IF(ISERROR(F465/$Z$9),\"\",F465/$Z$9)","v":29944.443088053646},{"$f":"+IF(Y465<$Z$10,\"MIPYME\",\"NO CUMPLE\")","v":"MIPYME"},null,"",null,""]
[null,"",null,null,null,null,null,null,0,null,null,null,{"$f":"IF(ISERROR(VLOOKUP(L466,POA!$A$2:$C$25,3,0)),\"\",VLOOKUP(L466,POA!$A$2:$C$25,3,0))","v":""},null,{"$f":"IF(ISERROR(VLOOKUP(N466,POA!$A$2:$F$25,4,0)),\"\",VLOOKUP(N466,POA!$A$2:$F$25,4,0))","v":""},{"$f":"IF(ISERROR(VLOOKUP(L466,POA!$A$2:$C$25,2,0)),\"\",VLOOKUP(L466,POA!$A$2:$C$25,2,0))","v":""},null,{"$f":"IF(Q466=0,\"\",IF(Q463>=$R$9,\"HABIL\",\"NO HABIL\"))","v":""},null,"",{"$f":"IF(ISERROR(VLOOKUP(N466,POA!$A$2:$F$25,5,0)),\"\",VLOOKUP(N466,POA!$A$2:$F$25,5,0))","v":""},null,"",null,0,"MIPYME",null,"",null,""]
[null,"",null,null,{"$f":"IF(ISERROR(VLOOKUP(C467,#REF!,2,0)),\"\",VLOOKUP(C467,#REF!,2,0))","v":""},null,{"$f":"IF(ISERROR(VLOOKUP(C467,#REF!,4,0)),\"\",VLOOKUP(C467,#REF!,4,0))","v":""},null,0,null,null,null,{"$f":"IF(ISERROR(VLOOKUP(L467,POA!$A$2:$C$25,3,0)),\"\",VLOOKUP(L467,POA!$A$2:$C$25,3,0))","v":""},null,{"$f":"IF(ISERROR(VLOOKUP(N467,POA!$A$2:$F$25,4,0)),\"\",VLOOKUP(N467,POA!$A$2:$F$25,4,0))","v":""},{"$f":"IF(ISERROR(VLOOKUP(L467,POA!$A$2:$C$25,2,0)),\"\",VLOOKUP(L467,POA!$A$2:$C$25,2,0))","v":""},null,{"$f":"IF(L467=0,\"\",IF(Q463>=$R$9,\"HABIL\",\"NO HABIL\"))","v":""},null,"",{"$f":"IF(ISERROR(VLOOKUP(N467,POA!$A$2:$F$25,5,0)),\"\",VLOOKUP(N467,POA!$A$2:$F$25,5,0))","v":""},null,"",null,0,"MIPYME",null,"",null,""]
[null,"",null,null,{"$f":"IF(ISERROR(VLOOKUP(C468,#REF!,2,0)),\"\",VLOOKUP(C468,#REF!,2,0))","v":""},null,{"$f":"IF(ISERROR(VLOOKUP(C468,#REF!,4,0)),\"\",VLOOKUP(C468,#REF!,4,0))","v":""},null,0,null,null,null,{"$f":"IF(ISERROR(VLOOKUP(L468,POA!$A$2:$C$25,3,0)),\"\",VLOOKUP(L468,POA!$A$2:$C$25,3,0))","v":""},null,{"$f":"IF(ISERROR(VLOOKUP(N468,POA!$A$2:$F$25,4,0)),\"\",VLOOKUP(N468,POA!$A$2:$F$25,4,0))","v":""},{"$f":"IF(ISERROR(VLOOKUP(L468,POA!$A$2:$C$25,2,0)),\"\",VLOOKUP(L468,POA!$A$2:$C$25,2,0))","v":""},null,{"$f":"IF(L468=0,\"\",IF(Q463>=$R$9,\"HABIL\",\"NO HABIL\"))","v":""},null,"",{"$f":"IF(ISERROR(VLOOKUP(N468,POA!$A$2:$F$25,5,0)),\"\",VLOOKUP(N468,POA!$A$2:$F$25,5,0))","v":""},null,"",null,0,"MIPYME",null,"",null,""]
[null,"",null,null,{"$f":"IF(ISERROR(VLOOKUP(C469,#REF!,2,0)),\"\",VLOOKUP(C469,#REF!,2,0))","v":""},null,{"$f":"IF(ISERROR(VLOOKUP(C469,#REF!,4,0)),\"\",VLOOKUP(C469,#REF!,4,0))","v":""},null,0,null,null,null,{"$f":"IF(ISERROR(VLOOKUP(L469,POA!$A$2:$C$25,3,0)),\"\",VLOOKUP(L469,POA!$A$2:$C$25,3,0))","v":""},null,{"$f":"IF(ISERROR(VLOOKUP(N469,POA!$A$2:$F$25,4,0)),\"\",VLOOKUP(N469,POA!$A$2:$F$25,4,0))","v":""},{"$f":"IF(ISERROR(VLOOKUP(L469,POA!$A$2:$C$25,2,0)),\"\",VLOOKUP(L469,POA!$A$2:$C$25,2,0))","v":""},null,{"$f":"IF(L469=0,\"\",IF(Q463>=$R$9,\"HABIL\",\"NO HABIL\"))","v":""},null,"",{"$f":"IF(ISERROR(VLOOKUP(N469,POA!$A$2:$F$25,5,0)),\"\",VLOOKUP(N469,POA!$A$2:$F$25,5,0))","v":""},null,"",null,0,"MIPYME",null,"",null,""]
[null,{"$f":"IF(C470=\"\",\"\",B469+0.1)","v":""},null,null,{"$f":"IF(ISERROR(VLOOKUP(C470,#REF!,2,0)),\"\",VLOOKUP(C470,#REF!,2,0))","v":""},null,{"$f":"IF(ISERROR(VLOOKUP(C470,#REF!,4,0)),\"\",VLOOKUP(C470,#REF!,4,0))","v":""},null,{"$f":"IF(ISERROR(F470-H470),\"\",F470-H470)","v":0},null,null,null,{"$f":"IF(ISERROR(VLOOKUP(L470,POA!$A$2:$C$25,3,0)),\"\",VLOOKUP(L470,POA!$A$2:$C$25,3,0))","v":""},null,{"$f":"IF(ISERROR(VLOOKUP(N470,POA!$A$2:$F$25,4,0)),\"\",VLOOKUP(N470,POA!$A$2:$F$25,4,0))","v":""},{"$f":"IF(ISERROR(VLOOKUP(L470,POA!$A$2:$C$25,2,0)),\"\",VLOOKUP(L470,POA!$A$2:$C$25,2,0))","v":""},null,{"$f":"IF(L470=0,\"\",IF(Q463>=$R$9,\"HABIL\",\"NO HABIL\"))","v":""},null,"",{"$f":"IF(ISERROR(VLOOKUP(N470,POA!$A$2:$F$25,5,0)),\"\",VLOOKUP(N470,POA!$A$2:$F$25,5,0))","v":""},null,"",null,0,"MIPYME",null,"",null,""]
[null,{"$f":"IF(C471=\"\",\"\",B470+0.1)","v":""},null,null,{"$f":"IF(ISERROR(VLOOKUP(C471,#REF!,2,0)),\"\",VLOOKUP(C471,#REF!,2,0))","v":""},null,{"$f":"IF(ISERROR(VLOOKUP(C471,#REF!,4,0)),\"\",VLOOKUP(C471,#REF!,4,0))","v":""},null,{"$f":"IF(ISERROR(F471-H471),\"\",F471-H471)","v":0},null,null,null,{"$f":"IF(ISERROR(VLOOKUP(L471,POA!$A$2:$C$25,3,0)),\"\",VLOOKUP(L471,POA!$A$2:$C$25,3,0))","v":""},null,{"$f":"IF(ISERROR(VLOOKUP(N471,POA!$A$2:$F$25,4,0)),\"\",VLOOKUP(N471,POA!$A$2:$F$25,4,0))","v":""},{"$f":"IF(ISERROR(VLOOKUP(L471,POA!$A$2:$C$25,2,0)),\"\",VLOOKUP(L471,POA!$A$2:$C$25,2,0))","v":""},null,{"$f":"IF(L471=0,\"\",IF(Q463>=$R$9,\"HABIL\",\"NO HABIL\"))","v":""},null,"",{"$f":"IF(ISERROR(VLOOKUP(N471,POA!$A$2:$F$25,5,0)),\"\",VLOOKUP(N471,POA!$A$2:$F$25,5,0))","v":""},null,"",null,0,"MIPYME",null,"",null,""]
[null,{"$f":"IF(C472=\"\",\"\",B471+0.1)","v":""},null,null,{"$f":"IF(ISERROR(VLOOKUP(C472,#REF!,2,0)),\"\",VLOOKUP(C472,#REF!,2,0))","v":""},null,{"$f":"IF(ISERROR(VLOOKUP(C472,#REF!,4,0)),\"\",VLOOKUP(C472,#REF!,4,0))","v":""},null,{"$f":"IF(ISERROR(F472-H472),\"\",F472-H472)","v":0},null,null,null,{"$f":"IF(ISERROR(VLOOKUP(L472,POA!$A$2:$C$25,3,0)),\"\",VLOOKUP(L472,POA!$A$2:$C$25,3,0))","v":""},null,{"$f":"IF(ISERROR(VLOOKUP(N472,POA!$A$2:$F$25,4,0)),\"\",VLOOKUP(N472,POA!$A$2:$F$25,4,0))","v":""},{"$f":"IF(ISERROR(VLOOKUP(L472,POA!$A$2:$C$25,2,0)),\"\",VLOOKUP(L472,POA!$A$2:$C$25,2,0))","v":""},null,{"$f":"IF(L472=0,\"\",IF(Q463>=$R$9,\"HABIL\",\"NO HABIL\"))","v":""},null,"",{"$f":"IF(ISERROR(VLOOKUP(N472,POA!$A$2:$F$25,5,0)),\"\",VLOOKUP(N472,POA!$A$2:$F$25,5,0))","v":""},null,"",null,0,"MIPYME",null,"",null,""]
[null,{"$f":"IF(C473=\"\",\"\",B472+0.1)","v":""},null,null,{"$f":"IF(ISERROR(VLOOKUP(C473,#REF!,2,0)),\"\",VLOOKUP(C473,#REF!,2,0))","v":""},null,{"$f":"IF(ISERROR(VLOOKUP(C473,#REF!,4,0)),\"\",VLOOKUP(C473,#REF!,4,0))","v":""},null,{"$f":"IF(ISERROR(F473-H473),\"\",F473-H473)","v":0},null,null,null,{"$f":"IF(ISERROR(VLOOKUP(L473,POA!$A$2:$C$25,3,0)),\"\",VLOOKUP(L473,POA!$A$2:$C$25,3,0))","v":""},null,{"$f":"IF(ISERROR(VLOOKUP(N473,POA!$A$2:$F$25,4,0)),\"\",VLOOKUP(N473,POA!$A$2:$F$25,4,0))","v":""},{"$f":"IF(ISERROR(VLOOKUP(L473,POA!$A$2:$C$25,2,0)),\"\",VLOOKUP(L473,POA!$A$2:$C$25,2,0))","v":""},null,{"$f":"IF(L473=0,\"\",IF(Q463>=$R$9,\"HABIL\",\"NO HABIL\"))","v":""},null,"",{"$f":"IF(ISERROR(VLOOKUP(N473,POA!$A$2:$F$25,5,0)),\"\",VLOOKUP(N473,POA!$A$2:$F$25,5,0))","v":""},null,"",null,{"$f":"IF(ISERROR(F473/$Z$9),\"\",F473/$Z$9)","v":0},"MIPYME",null,"",null,""]
[null,43,"CONSORCIO LA CALERA 034",{"$f":"IF(SUM(D475:D484)=0,\"\",SUM(D475:D484))","v":0.99999999999999989},{"$f":"SUM(E475:E484)","v":270801826},{"$f":"SUM(F475:F484)","v":285743493},{"$f":"SUM(G475:G484)","v":26843.82},{"$f":"SUM(H475:H484)","v":96562321},{"$f":"+F474-H474","v":189181172},{"$f":"SUM(J475:J484)","v":124724856},{"$f":"SUM(K475:K484)","v":4684924},1,{"$f":"IF(ISERROR(VLOOKUP(L474,POA!$A$2:$C$25,3,0)),\"\",VLOOKUP(L474,POA!$A$2:$C$25,3,0))","v":3}," ",{"$f":"+SUM(O475:O484)","v":0},{"$f":"IF(ISERROR(VLOOKUP(L474,POA!$A$2:$C$25,2,0)),\"\",VLOOKUP(L474,POA!$A$2:$C$25,2,0))","v":4167150295},{"$f":"SUM(E474/G474)","v":10088.051029994986},{"$f":"IF(Q474=0,\"\",IF(Q474>=$R$9,\"HABIL\",\"NO HABIL\"))","v":"HABIL"},{"$f":"SUM(H474/F474)","v":0.33793357807101493},{"$f":"IF(S474=0,\"\",IF(S474<=$T$9,\"HABIL\",\"NO HABIL\"))","v":"HABIL"},{"$f":"+SUM(U475:U484)","v":0},{"$f":"SUM(J474/K474)","v":26.622599640890652},{"$f":"IF(V474=0,\"\",IF(V474>=$W$9,\"HABIL\",\"NO HABIL\"))","v":"HABIL"},{"$f":"IF(R474=0,\"\",IF(R474=\"NO HABIL\",\"NO HABIL\",IF(T474=\"NO HABIL\",\"NO HABIL\",IF(W474=\"NO HABIL\",\"NO HABIL\",IF(W474=\"NO HABIL\",\"NO HABIL\",\"HABIL\")))))","v":"HABIL"},null,null,{"$f":"SUM(J474/I474)","v":0.65928789150328337},{"$f":"IF(AA474=0,\"\",IF(AA474>=$AB$9,\"HABIL\",\"NO HABIL\"))","v":"HABIL"},{"$f":"SUM(J474/F474)","v":0.43649237534868379},{"$f":"IF(AC474=0,\"\",IF(AC474>=$AD$9,\"HABIL\",\"NO HABIL\"))","v":"HABIL"},{"$f":"IF(AB474=0,\"\",IF(AB474=\"NO HABIL\",\"NO HABIL\",IF(AD474=\"NO HABIL\",\"NO HABIL\",IF(AD474=\"NO HABIL\",\"NO HABIL\",\"HABIL\"))))","v":"HABIL"}]
[null,{"$f":"IF(C475=\"\",\"\",B474+0.1)","v":43.1},"JULIO ECHEVERRY SARMIENTO",0.35,270801826,285743493,26843.82,96562321,189181172,124724856,4684924,null,{"$f":"IF(ISERROR(VLOOKUP(L475,POA!$A$2:$C$25,3,0)),\"\",VLOOKUP(L475,POA!$A$2:$C$25,3,0))","v":""}," ",{"$f":"IF(ISERROR(VLOOKUP(N475,POA!$A$2:$F$25,4,0)),\"\",VLOOKUP(N475,POA!$A$2:$F$25,4,0))","v":""},{"$f":"IF(ISERROR(VLOOKUP(L475,POA!$A$2:$C$25,2,0)),\"\",VLOOKUP(L475,POA!$A$2:$C$25,2,0))","v":""},null,{"$f":"IF(Q475=0,\"\",IF(Q474>=$R$9,\"HABIL\",\"NO HABIL\"))","v":""},null,{"$f":"IF(S475=0,\"\",IF(S475<=$T$9,\"HABIL\",\"NO HABIL\"))","v":""},{"$f":"IF(ISERROR(VLOOKUP(N475,POA!$A$2:$F$25,5,0)),\"\",VLOOKUP(N475,POA!$A$2:$F$25,5,0))","v":""},null,{"$f":"IF(V475=0,\"\",IF(V475>=$W$9,\"HABIL\",\"NO HABIL\"))","v":""},null,{"$f":"IF(ISERROR(F475/$Z$9),\"\",F475/$Z$9)","v":504.22356273160403},{"$f":"+IF(Y475<$Z$10,\"MIPYME\",\"NO CUMPLE\")","v":"MIPYME"},null,{"$f":"IF(AA475=0,\"\",IF(AA475>=$AB$9,\"HABIL\",\"NO HABIL\"))","v":""},null,{"$f":"IF(AC475=0,\"\",IF(AC475>=$AD$9,\"HABIL\",\"NO HABIL\"))","v":""}]
["rup incomp e ileg",43.2,"FRANKLIN PIRAGUA ROA",0.3,null,null,null,null,0,null,null,null,{"$f":"IF(ISERROR(VLOOKUP(L476,POA!$A$2:$C$25,3,0)),\"\",VLOOKUP(L476,POA!$A$2:$C$25,3,0))","v":""}," ",{"$f":"IF(ISERROR(VLOOKUP(N476,POA!$A$2:$F$25,4,0)),\"\",VLOOKUP(N476,POA!$A$2:$F$25,4,0))","v":""},{"$f":"IF(ISERROR(VLOOKUP(L476,POA!$A$2:$C$25,2,0)),\"\",VLOOKUP(L476,POA!$A$2:$C$25,2,0))","v":""},null,{"$f":"IF(Q476=0,\"\",IF(Q474>=$R$9,\"HABIL\",\"NO HABIL\"))","v":""},null,"",{"$f":"IF(ISERROR(VLOOKUP(N476,POA!$A$2:$F$25,5,0)),\"\",VLOOKUP(N476,POA!$A$2:$F$25,5,0))","v":""},null,"",null,{"$f":"IF(ISERROR(F476/$Z$9),\"\",F476/$Z$9)","v":0},{"$f":"+IF(Y476<$Z$10,\"MIPYME\",\"NO CUMPLE\")","v":"MIPYME"},null,"",null,""]
["rup incomp e ileg",43.300000000000004,"CARLOS ARANGO SALAZAR",0.35,null,null,null,null,0,null,null,null,{"$f":"IF(ISERROR(VLOOKUP(L477,POA!$A$2:$C$25,3,0)),\"\",VLOOKUP(L477,POA!$A$2:$C$25,3,0))","v":""},null,{"$f":"IF(ISERROR(VLOOKUP(N477,POA!$A$2:$F$25,4,0)),\"\",VLOOKUP(N477,POA!$A$2:$F$25,4,0))","v":""},{"$f":"IF(ISERROR(VLOOKUP(L477,POA!$A$2:$C$25,2,0)),\"\",VLOOKUP(L477,POA!$A$2:$C$25,2,0))","v":""},null,{"$f":"IF(Q477=0,\"\",IF(Q474>=$R$9,\"HABIL\",\"NO HABIL\"))","v":""},null,"",{"$f":"IF(ISERROR(VLOOKUP(N477,POA!$A$2:$F$25,5,0)),\"\",VLOOKUP(N477,POA!$A$2:$F$25,5,0))","v":""},null,"",null,0,"MIPYME",null,"",null,""]
[null,"",null,null,{"$f":"IF(ISERROR(VLOOKUP(C478,#REF!,2,0)),\"\",VLOOKUP(C478,#REF!,2,0))","v":""},null,{"$f":"IF(ISERROR(VLOOKUP(C478,#REF!,4,0)),\"\",VLOOKUP(C478,#REF!,4,0))","v":""},null,{"$f":"IF(ISERROR(F478-H478),\"\",F478-H478)","v":0},null,null,null,{"$f":"IF(ISERROR(VLOOKUP(L478,POA!$A$2:$C$25,3,0)),\"\",VLOOKUP(L478,POA!$A$2:$C$25,3,0))","v":""},null,{"$f":"IF(ISERROR(VLOOKUP(N478,POA!$A$2:$F$25,4,0)),\"\",VLOOKUP(N478,POA!$A$2:$F$25,4,0))","v":""},{"$f":"IF(ISERROR(VLOOKUP(L478,POA!$A$2:$C$25,2,0)),\"\",VLOOKUP(L478,POA!$A$2:$C$25,2,0))","v":""},null,{"$f":"IF(L478=0,\"\",IF(Q474>=$R$9,\"HABIL\",\"NO HABIL\"))","v":""},null,"",{"$f":"IF(ISERROR(VLOOKUP(N478,POA!$A$2:$F$25,5,0)),\"\",VLOOKUP(N478,POA!$A$2:$F$25,5,0))","v":""},null,"",null,0,"MIPYME",null,"",null,""]
[null,"",null,null,{"$f":"IF(ISERROR(VLOOKUP(C479,#REF!,2,0)),\"\",VLOOKUP(C479,#REF!,2,0))","v":""},null,{"$f":"IF(ISERROR(VLOOKUP(C479,#REF!,4,0)),\"\",VLOOKUP(C479,#REF!,4,0))","v":""},null,0,null,null,null,{"$f":"IF(ISERROR(VLOOKUP(L479,POA!$A$2:$C$25,3,0)),\"\",VLOOKUP(L479,POA!$A$2:$C$25,3,0))","v":""},null,{"$f":"IF(ISERROR(VLOOKUP(N479,POA!$A$2:$F$25,4,0)),\"\",VLOOKUP(N479,POA!$A$2:$F$25,4,0))","v":""},{"$f":"IF(ISERROR(VLOOKUP(L479,POA!$A$2:$C$25,2,0)),\"\",VLOOKUP(L479,POA!$A$2:$C$25,2,0))","v":""},null,{"$f":"IF(L479=0,\"\",IF(Q474>=$R$9,\"HABIL\",\"NO HABIL\"))","v":""},null,"",{"$f":"IF(ISERROR(VLOOKUP(N479,POA!$A$2:$F$25,5,0)),\"\",VLOOKUP(N479,POA!$A$2:$F$25,5,0))","v":""},null,"",null,0,"MIPYME",null,"",null,""]
[null,"",null,null,{"$f":"IF(ISERROR(VLOOKUP(C480,#REF!,2,0)),\"\",VLOOKUP(C480,#REF!,2,0))","v":""},null,{"$f":"IF(ISERROR(VLOOKUP(C480,#REF!,4,0)),\"\",VLOOKUP(C480,#REF!,4,0))","v":""},null,0,null,null,null,{"$f":"IF(ISERROR(VLOOKUP(L480,POA!$A$2:$C$25,3,0)),\"\",VLOOKUP(L480,POA!$A$2:$C$25,3,0))","v":""},null,{"$f":"IF(ISERROR(VLOOKUP(N480,POA!$A$2:$F$25,4,0)),\"\",VLOOKUP(N480,POA!$A$2:$F$25,4,0))","v":""},{"$f":"IF(ISERROR(VLOOKUP(L480,POA!$A$2:$C$25,2,0)),\"\",VLOOKUP(L480,POA!$A$2:$C$25,2,0))","v":""},null,{"$f":"IF(L480=0,\"\",IF(Q474>=$R$9,\"HABIL\",\"NO HABIL\"))","v":""},null,"",{"$f":"IF(ISERROR(VLOOKUP(N480,POA!$A$2:$F$25,5,0)),\"\",VLOOKUP(N480,POA!$A$2:$F$25,5,0))","v":""},null,"",null,0,"MIPYME",null,"",null,""]
[null,{"$f":"IF(C481=\"\",\"\",B480+0.1)","v":""},null,null,{"$f":"IF(ISERROR(VLOOKUP(C481,#REF!,2,0)),\"\",VLOOKUP(C481,#REF!,2,0))","v":""},null,{"$f":"IF(ISERROR(VLOOKUP(C481,#REF!,4,0)),\"\",VLOOKUP(C481,#REF!,4,0))","v":""},null,{"$f":"IF(ISERROR(F481-H481),\"\",F481-H481)","v":0},null,null,null,{"$f":"IF(ISERROR(VLOOKUP(L481,POA!$A$2:$C$25,3,0)),\"\",VLOOKUP(L481,POA!$A$2:$C$25,3,0))","v":""},null,{"$f":"IF(ISERROR(VLOOKUP(N481,POA!$A$2:$F$25,4,0)),\"\",VLOOKUP(N481,POA!$A$2:$F$25,4,0))","v":""},{"$f":"IF(ISERROR(VLOOKUP(L481,POA!$A$2:$C$25,2,0)),\"\",VLOOKUP(L481,POA!$A$2:$C$25,2,0))","v":""},null,{"$f":"IF(L481=0,\"\",IF(Q474>=$R$9,\"HABIL\",\"NO HABIL\"))","v":""},null,"",{"$f":"IF(ISERROR(VLOOKUP(N481,POA!$A$2:$F$25,5,0)),\"\",VLOOKUP(N481,POA!$A$2:$F$25,5,0))","v":""},null,"",null,0,"MIPYME",null,"",null,""]
[null,{"$f":"IF(C482=\"\",\"\",B481+0.1)","v":""},null,null,{"$f":"IF(ISERROR(VLOOKUP(C482,#REF!,2,0)),\"\",VLOOKUP(C482,#REF!,2,0))","v":""},null,{"$f":"IF(ISERROR(VLOOKUP(C482,#REF!,4,0)),\"\",VLOOKUP(C482,#REF!,4,0))","v":""},null,{"$f":"IF(ISERROR(F482-H482),\"\",F482-H482)","v":0},null,null,null,{"$f":"IF(ISERROR(VLOOKUP(L482,POA!$A$2:$C$25,3,0)),\"\",VLOOKUP(L482,POA!$A$2:$C$25,3,0))","v":""},null,{"$f":"IF(ISERROR(VLOOKUP(N482,POA!$A$2:$F$25,4,0)),\"\",VLOOKUP(N482,POA!$A$2:$F$25,4,0))","v":""},{"$f":"IF(ISERROR(VLOOKUP(L482,POA!$A$2:$C$25,2,0)),\"\",VLOOKUP(L482,POA!$A$2:$C$25,2,0))","v":""},null,{"$f":"IF(L482=0,\"\",IF(Q474>=$R$9,\"HABIL\",\"NO HABIL\"))","v":""},null,"",{"$f":"IF(ISERROR(VLOOKUP(N482,POA!$A$2:$F$25,5,0)),\"\",VLOOKUP(N482,POA!$A$2:$F$25,5,0))","v":""},null,"",null,0,"MIPYME",null,"",null,""]
[null,{"$f":"IF(C483=\"\",\"\",B482+0.1)","v":""},null,null,{"$f":"IF(ISERROR(VLOOKUP(C483,#REF!,2,0)),\"\",VLOOKUP(C483,#REF!,2,0))","v":""},null,{"$f":"IF(ISERROR(VLOOKUP(C483,#REF!,4,0)),\"\",VLOOKUP(C483,#REF!,4,0))","v":""},null,{"$f":"IF(ISERROR(F483-H483),\"\",F483-H483)","v":0},null,null,null,{"$f":"IF(ISERROR(VLOOKUP(L483,POA!$A$2:$C$25,3,0)),\"\",VLOOKUP(L483,POA!$A$2:$C$25,3,0))","v":""},null,{"$f":"IF(ISERROR(VLOOKUP(N483,POA!$A$2:$F$25,4,0)),\"\",VLOOKUP(N483,POA!$A$2:$F$25,4,0))","v":""},{"$f":"IF(ISERROR(VLOOKUP(L483,POA!$A$2:$C$25,2,0)),\"\",VLOOKUP(L483,POA!$A$2:$C$25,2,0))","v":""},null,{"$f":"IF(L483=0,\"\",IF(Q474>=$R$9,\"HABIL\",\"NO HABIL\"))","v":""},null,"",{"$f":"IF(ISERROR(VLOOKUP(N483,POA!$A$2:$F$25,5,0)),\"\",VLOOKUP(N483,POA!$A$2:$F$25,5,0))","v":""},null,"",null,0,"MIPYME",null,"",null,""]
[null,{"$f":"IF(C484=\"\",\"\",B483+0.1)","v":""},null,null,{"$f":"IF(ISERROR(VLOOKUP(C484,#REF!,2,0)),\"\",VLOOKUP(C484,#REF!,2,0))","v":""},null,{"$f":"IF(ISERROR(VLOOKUP(C484,#REF!,4,0)),\"\",VLOOKUP(C484,#REF!,4,0))","v":""},null,{"$f":"IF(ISERROR(F484-H484),\"\",F484-H484)","v":0},null,null,null,{"$f":"IF(ISERROR(VLOOKUP(L484,POA!$A$2:$C$25,3,0)),\"\",VLOOKUP(L484,POA!$A$2:$C$25,3,0))","v":""},null,{"$f":"IF(ISERROR(VLOOKUP(N484,POA!$A$2:$F$25,4,0)),\"\",VLOOKUP(N484,POA!$A$2:$F$25,4,0))","v":""},{"$f":"IF(ISERROR(VLOOKUP(L484,POA!$A$2:$C$25,2,0)),\"\",VLOOKUP(L484,POA!$A$2:$C$25,2,0))","v":""},null,{"$f":"IF(L484=0,\"\",IF(Q474>=$R$9,\"HABIL\",\"NO HABIL\"))","v":""},null,"",{"$f":"IF(ISERROR(VLOOKUP(N484,POA!$A$2:$F$25,5,0)),\"\",VLOOKUP(N484,POA!$A$2:$F$25,5,0))","v":""},null,"",null,{"$f":"IF(ISERROR(F484/$Z$9),\"\",F484/$Z$9)","v":0},"MIPYME",null,"",null,""]
[null,44,"CONCRETOS Y ASFALTOS S.A.",{"$f":"IF(SUM(D486:D495)=0,\"\",SUM(D486:D495))","v":1},{"$f":"SUM(E486:E495)","v":54258671993},{"$f":"SUM(F486:F495)","v":213053851949},{"$f":"SUM(G486:G495)","v":25035712683},{"$f":"SUM(H486:H495)","v":70682961661},{"$f":"+F485-H485","v":142370890288},{"$f":"SUM(J486:J495)","v":9190120682},{"$f":"SUM(K486:K495)","v":4647435514},1,{"$f":"IF(ISERROR(VLOOKUP(L485,POA!$A$2:$C$25,3,0)),\"\",VLOOKUP(L485,POA!$A$2:$C$25,3,0))","v":3}," ",{"$f":"+SUM(O486:O495)","v":0},{"$f":"IF(ISERROR(VLOOKUP(L485,POA!$A$2:$C$25,2,0)),\"\",VLOOKUP(L485,POA!$A$2:$C$25,2,0))","v":4167150295},{"$f":"SUM(E485/G485)","v":2.1672509458795344},{"$f":"IF(Q485=0,\"\",IF(Q485>=$R$9,\"HABIL\",\"NO HABIL\"))","v":"HABIL"},{"$f":"SUM(H485/F485)","v":0.33176101260032514},{"$f":"IF(S485=0,\"\",IF(S485<=$T$9,\"HABIL\",\"NO HABIL\"))","v":"HABIL"},{"$f":"+SUM(U486:U495)","v":0},{"$f":"SUM(J485/K485)","v":1.9774606133459089},{"$f":"IF(V485=0,\"\",IF(V485>=$W$9,\"HABIL\",\"NO HABIL\"))","v":"HABIL"},{"$f":"IF(R485=0,\"\",IF(R485=\"NO HABIL\",\"NO HABIL\",IF(T485=\"NO HABIL\",\"NO HABIL\",IF(W485=\"NO HABIL\",\"NO HABIL\",IF(W485=\"NO HABIL\",\"NO HABIL\",\"HABIL\")))))","v":"HABIL"},null,null,{"$f":"SUM(J485/I485)","v":6.4550559903147606E-2},{"$f":"IF(AA485=0,\"\",IF(AA485>=$AB$9,\"HABIL\",\"NO HABIL\"))","v":"HABIL"},{"$f":"SUM(J485/F485)","v":4.3135200785761413E-2},{"$f":"IF(AC485=0,\"\",IF(AC485>=$AD$9,\"HABIL\",\"NO HABIL\"))","v":"HABIL"},{"$f":"IF(AB485=0,\"\",IF(AB485=\"NO HABIL\",\"NO HABIL\",IF(AD485=\"NO HABIL\",\"NO HABIL\",IF(AD485=\"NO HABIL\",\"NO HABIL\",\"HABIL\"))))","v":"HABIL"}]
[null,{"$f":"IF(C486=\"\",\"\",B485+0.1)","v":44.1},"CONCRETOS Y ASFALTOS S.A.",1,54258671993,213053851949,25035712683,70682961661,142370890288,9190120682,4647435514,null,{"$f":"IF(ISERROR(VLOOKUP(L486,POA!$A$2:$C$25,3,0)),\"\",VLOOKUP(L486,POA!$A$2:$C$25,3,0))","v":""}," ",{"$f":"IF(ISERROR(VLOOKUP(N486,POA!$A$2:$F$25,4,0)),\"\",VLOOKUP(N486,POA!$A$2:$F$25,4,0))","v":""},{"$f":"IF(ISERROR(VLOOKUP(L486,POA!$A$2:$C$25,2,0)),\"\",VLOOKUP(L486,POA!$A$2:$C$25,2,0))","v":""},null,{"$f":"IF(Q486=0,\"\",IF(Q485>=$R$9,\"HABIL\",\"NO HABIL\"))","v":""},null,{"$f":"IF(S486=0,\"\",IF(S486<=$T$9,\"HABIL\",\"NO HABIL\"))","v":""},{"$f":"IF(ISERROR(VLOOKUP(N486,POA!$A$2:$F$25,5,0)),\"\",VLOOKUP(N486,POA!$A$2:$F$25,5,0))","v":""},null,{"$f":"IF(V486=0,\"\",IF(V486>=$W$9,\"HABIL\",\"NO HABIL\"))","v":""},null,{"$f":"IF(ISERROR(F486/$Z$9),\"\",F486/$Z$9)","v":375955.27077642491},{"$f":"+IF(Y486<$Z$10,\"MIPYME\",\"NO CUMPLE\")","v":"NO CUMPLE"},null,{"$f":"IF(AA486=0,\"\",IF(AA486>=$AB$9,\"HABIL\",\"NO HABIL\"))","v":""},null,{"$f":"IF(AC486=0,\"\",IF(AC486>=$AD$9,\"HABIL\",\"NO HABIL\"))","v":""}]
[null,"",null,null,null,null,null,null,{"$f":"IF(ISERROR(F487-H487),\"\",F487-H487)","v":0},null,null,null,{"$f":"IF(ISERROR(VLOOKUP(L487,POA!$A$2:$C$25,3,0)),\"\",VLOOKUP(L487,POA!$A$2:$C$25,3,0))","v":""}," ",{"$f":"IF(ISERROR(VLOOKUP(N487,POA!$A$2:$F$25,4,0)),\"\",VLOOKUP(N487,POA!$A$2:$F$25,4,0))","v":""},{"$f":"IF(ISERROR(VLOOKUP(L487,POA!$A$2:$C$25,2,0)),\"\",VLOOKUP(L487,POA!$A$2:$C$25,2,0))","v":""},null,{"$f":"IF(Q487=0,\"\",IF(Q485>=$R$9,\"HABIL\",\"NO HABIL\"))","v":""},null,"",{"$f":"IF(ISERROR(VLOOKUP(N487,POA!$A$2:$F$25,5,0)),\"\",VLOOKUP(N487,POA!$A$2:$F$25,5,0))","v":""},null,"",null,{"$f":"IF(ISERROR(F487/$Z$9),\"\",F487/$Z$9)","v":0},{"$f":"+IF(Y487<$Z$10,\"MIPYME\",\"NO CUMPLE\")","v":"MIPYME"},null,"",null,""]
[null,"",null,null,null,null,null,null,0,null,null,null,{"$f":"IF(ISERROR(VLOOKUP(L488,POA!$A$2:$C$25,3,0)),\"\",VLOOKUP(L488,POA!$A$2:$C$25,3,0))","v":""},null,{"$f":"IF(ISERROR(VLOOKUP(N488,POA!$A$2:$F$25,4,0)),\"\",VLOOKUP(N488,POA!$A$2:$F$25,4,0))","v":""},{"$f":"IF(ISERROR(VLOOKUP(L488,POA!$A$2:$C$25,2,0)),\"\",VLOOKUP(L488,POA!$A$2:$C$25,2,0))","v":""},null,{"$f":"IF(Q488=0,\"\",IF(Q485>=$R$9,\"HABIL\",\"NO HABIL\"))","v":""},null,"",{"$f":"IF(ISERROR(VLOOKUP(N488,POA!$A$2:$F$25,5,0)),\"\",VLOOKUP(N488,POA!$A$2:$F$25,5,0))","v":""},null,"",null,0,"MIPYME",null,"",null,""]
[null,"",null,null,{"$f":"IF(ISERROR(VLOOKUP(C489,#REF!,2,0)),\"\",VLOOKUP(C489,#REF!,2,0))","v":""},null,{"$f":"IF(ISERROR(VLOOKUP(C489,#REF!,4,0)),\"\",VLOOKUP(C489,#REF!,4,0))","v":""},null,0,null,null,null,{"$f":"IF(ISERROR(VLOOKUP(L489,POA!$A$2:$C$25,3,0)),\"\",VLOOKUP(L489,POA!$A$2:$C$25,3,0))","v":""},null,{"$f":"IF(ISERROR(VLOOKUP(N489,POA!$A$2:$F$25,4,0)),\"\",VLOOKUP(N489,POA!$A$2:$F$25,4,0))","v":""},{"$f":"IF(ISERROR(VLOOKUP(L489,POA!$A$2:$C$25,2,0)),\"\",VLOOKUP(L489,POA!$A$2:$C$25,2,0))","v":""},null,{"$f":"IF(L489=0,\"\",IF(Q485>=$R$9,\"HABIL\",\"NO HABIL\"))","v":""},null,"",{"$f":"IF(ISERROR(VLOOKUP(N489,POA!$A$2:$F$25,5,0)),\"\",VLOOKUP(N489,POA!$A$2:$F$25,5,0))","v":""},null,"",null,0,"MIPYME",null,"",null,""]
[null,"",null,null,{"$f":"IF(ISERROR(VLOOKUP(C490,#REF!,2,0)),\"\",VLOOKUP(C490,#REF!,2,0))","v":""},null,{"$f":"IF(ISERROR(VLOOKUP(C490,#REF!,4,0)),\"\",VLOOKUP(C490,#REF!,4,0))","v":""},null,0,null,null,null,{"$f":"IF(ISERROR(VLOOKUP(L490,POA!$A$2:$C$25,3,0)),\"\",VLOOKUP(L490,POA!$A$2:$C$25,3,0))","v":""},null,{"$f":"IF(ISERROR(VLOOKUP(N490,POA!$A$2:$F$25,4,0)),\"\",VLOOKUP(N490,POA!$A$2:$F$25,4,0))","v":""},{"$f":"IF(ISERROR(VLOOKUP(L490,POA!$A$2:$C$25,2,0)),\"\",VLOOKUP(L490,POA!$A$2:$C$25,2,0))","v":""},null,{"$f":"IF(L490=0,\"\",IF(Q485>=$R$9,\"HABIL\",\"NO HABIL\"))","v":""},null,"",{"$f":"IF(ISERROR(VLOOKUP(N490,POA!$A$2:$F$25,5,0)),\"\",VLOOKUP(N490,POA!$A$2:$F$25,5,0))","v":""},null,"",null,0,"MIPYME",null,"",null,""]
[null,"",null,null,{"$f":"IF(ISERROR(VLOOKUP(C491,#REF!,2,0)),\"\",VLOOKUP(C491,#REF!,2,0))","v":""},null,{"$f":"IF(ISERROR(VLOOKUP(C491,#REF!,4,0)),\"\",VLOOKUP(C491,#REF!,4,0))","v":""},null,0,null,null,null,{"$f":"IF(ISERROR(VLOOKUP(L491,POA!$A$2:$C$25,3,0)),\"\",VLOOKUP(L491,POA!$A$2:$C$25,3,0))","v":""},null,{"$f":"IF(ISERROR(VLOOKUP(N491,POA!$A$2:$F$25,4,0)),\"\",VLOOKUP(N491,POA!$A$2:$F$25,4,0))","v":""},{"$f":"IF(ISERROR(VLOOKUP(L491,POA!$A$2:$C$25,2,0)),\"\",VLOOKUP(L491,POA!$A$2:$C$25,2,0))","v":""},null,{"$f":"IF(L491=0,\"\",IF(Q485>=$R$9,\"HABIL\",\"NO HABIL\"))","v":""},null,"",{"$f":"IF(ISERROR(VLOOKUP(N491,POA!$A$2:$F$25,5,0)),\"\",VLOOKUP(N491,POA!$A$2:$F$25,5,0))","v":""},null,"",null,0,"MIPYME",null,"",null,""]
[null,{"$f":"IF(C492=\"\",\"\",B491+0.1)","v":""},null,null,{"$f":"IF(ISERROR(VLOOKUP(C492,#REF!,2,0)),\"\",VLOOKUP(C492,#REF!,2,0))","v":""},null,{"$f":"IF(ISERROR(VLOOKUP(C492,#REF!,4,0)),\"\",VLOOKUP(C492,#REF!,4,0))","v":""},null,{"$f":"IF(ISERROR(F492-H492),\"\",F492-H492)","v":0},null,null,null,{"$f":"IF(ISERROR(VLOOKUP(L492,POA!$A$2:$C$25,3,0)),\"\",VLOOKUP(L492,POA!$A$2:$C$25,3,0))","v":""},null,{"$f":"IF(ISERROR(VLOOKUP(N492,POA!$A$2:$F$25,4,0)),\"\",VLOOKUP(N492,POA!$A$2:$F$25,4,0))","v":""},{"$f":"IF(ISERROR(VLOOKUP(L492,POA!$A$2:$C$25,2,0)),\"\",VLOOKUP(L492,POA!$A$2:$C$25,2,0))","v":""},null,{"$f":"IF(L492=0,\"\",IF(Q485>=$R$9,\"HABIL\",\"NO HABIL\"))","v":""},null,"",{"$f":"IF(ISERROR(VLOOKUP(N492,POA!$A$2:$F$25,5,0)),\"\",VLOOKUP(N492,POA!$A$2:$F$25,5,0))","v":""},null,"",null,0,"MIPYME",null,"",null,""]
[null,{"$f":"IF(C493=\"\",\"\",B492+0.1)","v":""},null,null,{"$f":"IF(ISERROR(VLOOKUP(C493,#REF!,2,0)),\"\",VLOOKUP(C493,#REF!,2,0))","v":""},null,{"$f":"IF(ISERROR(VLOOKUP(C493,#REF!,4,0)),\"\",VLOOKUP(C493,#REF!,4,0))","v":""},null,{"$f":"IF(ISERROR(F493-H493),\"\",F493-H493)","v":0},null,null,null,{"$f":"IF(ISERROR(VLOOKUP(L493,POA!$A$2:$C$25,3,0)),\"\",VLOOKUP(L493,POA!$A$2:$C$25,3,0))","v":""},null,{"$f":"IF(ISERROR(VLOOKUP(N493,POA!$A$2:$F$25,4,0)),\"\",VLOOKUP(N493,POA!$A$2:$F$25,4,0))","v":""},{"$f":"IF(ISERROR(VLOOKUP(L493,POA!$A$2:$C$25,2,0)),\"\",VLOOKUP(L493,POA!$A$2:$C$25,2,0))","v":""},null,{"$f":"IF(L493=0,\"\",IF(Q485>=$R$9,\"HABIL\",\"NO HABIL\"))","v":""},null,"",{"$f":"IF(ISERROR(VLOOKUP(N493,POA!$A$2:$F$25,5,0)),\"\",VLOOKUP(N493,POA!$A$2:$F$25,5,0))","v":""},null,"",null,0,"MIPYME",null,"",null,""]
[null,{"$f":"IF(C494=\"\",\"\",B493+0.1)","v":""},null,null,{"$f":"IF(ISERROR(VLOOKUP(C494,#REF!,2,0)),\"\",VLOOKUP(C494,#REF!,2,0))","v":""},null,{"$f":"IF(ISERROR(VLOOKUP(C494,#REF!,4,0)),\"\",VLOOKUP(C494,#REF!,4,0))","v":""},null,{"$f":"IF(ISERROR(F494-H494),\"\",F494-H494)","v":0},null,null,null,{"$f":"IF(ISERROR(VLOOKUP(L494,POA!$A$2:$C$25,3,0)),\"\",VLOOKUP(L494,POA!$A$2:$C$25,3,0))","v":""},null,{"$f":"IF(ISERROR(VLOOKUP(N494,POA!$A$2:$F$25,4,0)),\"\",VLOOKUP(N494,POA!$A$2:$F$25,4,0))","v":""},{"$f":"IF(ISERROR(VLOOKUP(L494,POA!$A$2:$C$25,2,0)),\"\",VLOOKUP(L494,POA!$A$2:$C$25,2,0))","v":""},null,{"$f":"IF(L494=0,\"\",IF(Q485>=$R$9,\"HABIL\",\"NO HABIL\"))","v":""},null,"",{"$f":"IF(ISERROR(VLOOKUP(N494,POA!$A$2:$F$25,5,0)),\"\",VLOOKUP(N494,POA!$A$2:$F$25,5,0))","v":""},null,"",null,0,"MIPYME",null,"",null,""]
[null,{"$f":"IF(C495=\"\",\"\",B494+0.1)","v":""},null,null,{"$f":"IF(ISERROR(VLOOKUP(C495,#REF!,2,0)),\"\",VLOOKUP(C495,#REF!,2,0))","v":""},null,{"$f":"IF(ISERROR(VLOOKUP(C495,#REF!,4,0)),\"\",VLOOKUP(C495,#REF!,4,0))","v":""},null,{"$f":"IF(ISERROR(F495-H495),\"\",F495-H495)","v":0},null,null,null,{"$f":"IF(ISERROR(VLOOKUP(L495,POA!$A$2:$C$25,3,0)),\"\",VLOOKUP(L495,POA!$A$2:$C$25,3,0))","v":""},null,{"$f":"IF(ISERROR(VLOOKUP(N495,POA!$A$2:$F$25,4,0)),\"\",VLOOKUP(N495,POA!$A$2:$F$25,4,0))","v":""},{"$f":"IF(ISERROR(VLOOKUP(L495,POA!$A$2:$C$25,2,0)),\"\",VLOOKUP(L495,POA!$A$2:$C$25,2,0))","v":""},null,{"$f":"IF(L495=0,\"\",IF(Q485>=$R$9,\"HABIL\",\"NO HABIL\"))","v":""},null,"",{"$f":"IF(ISERROR(VLOOKUP(N495,POA!$A$2:$F$25,5,0)),\"\",VLOOKUP(N495,POA!$A$2:$F$25,5,0))","v":""},null,"",null,{"$f":"IF(ISERROR(F495/$Z$9),\"\",F495/$Z$9)","v":0},"MIPYME",null,"",null,""]
[null,45,"CONSORCIO INFRAESTRUCTURA GUASCA",{"$f":"IF(SUM(D497:D506)=0,\"\",SUM(D497:D506))","v":1},{"$f":"SUM(E497:E506)","v":18952813905},{"$f":"SUM(F497:F506)","v":26380853174},{"$f":"SUM(G497:G506)","v":6367175270},{"$f":"SUM(H497:H506)","v":14462003128},{"$f":"+F496-H496","v":11918850046},{"$f":"SUM(J497:J506)","v":2671446266},{"$f":"SUM(K497:K506)","v":350915062},1,{"$f":"IF(ISERROR(VLOOKUP(L496,POA!$A$2:$C$25,3,0)),\"\",VLOOKUP(L496,POA!$A$2:$C$25,3,0))","v":3}," ",{"$f":"+SUM(O497:O506)","v":0},{"$f":"IF(ISERROR(VLOOKUP(L496,POA!$A$2:$C$25,2,0)),\"\",VLOOKUP(L496,POA!$A$2:$C$25,2,0))","v":4167150295},{"$f":"SUM(E496/G496)","v":2.9766439749663118},{"$f":"IF(Q496=0,\"\",IF(Q496>=$R$9,\"HABIL\",\"NO HABIL\"))","v":"HABIL"},{"$f":"SUM(H496/F496)","v":0.54820073606464026},{"$f":"IF(S496=0,\"\",IF(S496<=$T$9,\"HABIL\",\"NO HABIL\"))","v":"HABIL"},{"$f":"+SUM(U497:U506)","v":0},{"$f":"SUM(J496/K496)","v":7.6128002336930187},{"$f":"IF(V496=0,\"\",IF(V496>=$W$9,\"HABIL\",\"NO HABIL\"))","v":"HABIL"},{"$f":"IF(R496=0,\"\",IF(R496=\"NO HABIL\",\"NO HABIL\",IF(T496=\"NO HABIL\",\"NO HABIL\",IF(W496=\"NO HABIL\",\"NO HABIL\",IF(W496=\"NO HABIL\",\"NO HABIL\",\"HABIL\")))))","v":"HABIL"},null,null,{"$f":"SUM(J496/I496)","v":0.22413624264838747},{"$f":"IF(AA496=0,\"\",IF(AA496>=$AB$9,\"HABIL\",\"NO HABIL\"))","v":"HABIL"},{"$f":"SUM(J496/F496)","v":0.10126458944977865},{"$f":"IF(AC496=0,\"\",IF(AC496>=$AD$9,\"HABIL\",\"NO HABIL\"))","v":"HABIL"},{"$f":"IF(AB496=0,\"\",IF(AB496=\"NO HABIL\",\"NO HABIL\",IF(AD496=\"NO HABIL\",\"NO HABIL\",IF(AD496=\"NO HABIL\",\"NO HABIL\",\"HABIL\"))))","v":"HABIL"}]
[null,{"$f":"IF(C497=\"\",\"\",B496+0.1)","v":45.1},"INFRAESTRUCTURA NACIONAL LTDA.",0.3,1537410811,1557457350,238652254,702243808,855213542,307432452,0,null,{"$f":"IF(ISERROR(VLOOKUP(L497,POA!$A$2:$C$25,3,0)),\"\",VLOOKUP(L497,POA!$A$2:$C$25,3,0))","v":""}," ",{"$f":"IF(ISERROR(VLOOKUP(N497,POA!$A$2:$F$25,4,0)),\"\",VLOOKUP(N497,POA!$A$2:$F$25,4,0))","v":""},{"$f":"IF(ISERROR(VLOOKUP(L497,POA!$A$2:$C$25,2,0)),\"\",VLOOKUP(L497,POA!$A$2:$C$25,2,0))","v":""},null,{"$f":"IF(Q497=0,\"\",IF(Q496>=$R$9,\"HABIL\",\"NO HABIL\"))","v":""},null,{"$f":"IF(S497=0,\"\",IF(S497<=$T$9,\"HABIL\",\"NO HABIL\"))","v":""},{"$f":"IF(ISERROR(VLOOKUP(N497,POA!$A$2:$F$25,5,0)),\"\",VLOOKUP(N497,POA!$A$2:$F$25,5,0))","v":""},null,{"$f":"IF(V497=0,\"\",IF(V497>=$W$9,\"HABIL\",\"NO HABIL\"))","v":""},null,{"$f":"IF(ISERROR(F497/$Z$9),\"\",F497/$Z$9)","v":2748.2924827951297},{"$f":"+IF(Y497<$Z$10,\"MIPYME\",\"NO CUMPLE\")","v":"MIPYME"},null,{"$f":"IF(AA497=0,\"\",IF(AA497>=$AB$9,\"HABIL\",\"NO HABIL\"))","v":""},null,{"$f":"IF(AC497=0,\"\",IF(AC497>=$AD$9,\"HABIL\",\"NO HABIL\"))","v":""}]
[null,45.2,"RB DE COLOMBIA S.A.",0.3,7055311908,11333718056,3503277862,5061065162,6272652894,996205696,64038777,null,{"$f":"IF(ISERROR(VLOOKUP(L498,POA!$A$2:$C$25,3,0)),\"\",VLOOKUP(L498,POA!$A$2:$C$25,3,0))","v":""}," ",{"$f":"IF(ISERROR(VLOOKUP(N498,POA!$A$2:$F$25,4,0)),\"\",VLOOKUP(N498,POA!$A$2:$F$25,4,0))","v":""},{"$f":"IF(ISERROR(VLOOKUP(L498,POA!$A$2:$C$25,2,0)),\"\",VLOOKUP(L498,POA!$A$2:$C$25,2,0))","v":""},null,{"$f":"IF(Q498=0,\"\",IF(Q496>=$R$9,\"HABIL\",\"NO HABIL\"))","v":""},null,"",{"$f":"IF(ISERROR(VLOOKUP(N498,POA!$A$2:$F$25,5,0)),\"\",VLOOKUP(N498,POA!$A$2:$F$25,5,0))","v":""},null,"",null,{"$f":"IF(ISERROR(F498/$Z$9),\"\",F498/$Z$9)","v":19999.502481030526},{"$f":"+IF(Y498<$Z$10,\"MIPYME\",\"NO CUMPLE\")","v":"MIPYME"},null,"",null,""]
[null,45.300000000000004,"YAMIL MONTENEGRO CALDERON",0.4,10360091186,13489677768,2625245154,8698694158,4790983610,1367808118,286876285,null,{"$f":"IF(ISERROR(VLOOKUP(L499,POA!$A$2:$C$25,3,0)),\"\",VLOOKUP(L499,POA!$A$2:$C$25,3,0))","v":""},null,{"$f":"IF(ISERROR(VLOOKUP(N499,POA!$A$2:$F$25,4,0)),\"\",VLOOKUP(N499,POA!$A$2:$F$25,4,0))","v":""},{"$f":"IF(ISERROR(VLOOKUP(L499,POA!$A$2:$C$25,2,0)),\"\",VLOOKUP(L499,POA!$A$2:$C$25,2,0))","v":""},null,{"$f":"IF(Q499=0,\"\",IF(Q496>=$R$9,\"HABIL\",\"NO HABIL\"))","v":""},null,"",{"$f":"IF(ISERROR(VLOOKUP(N499,POA!$A$2:$F$25,5,0)),\"\",VLOOKUP(N499,POA!$A$2:$F$25,5,0))","v":""},null,"",null,23803.913478030703,"MIPYME",null,"",null,""]
[null,"",null,null,{"$f":"IF(ISERROR(VLOOKUP(C500,#REF!,2,0)),\"\",VLOOKUP(C500,#REF!,2,0))","v":""},null,{"$f":"IF(ISERROR(VLOOKUP(C500,#REF!,4,0)),\"\",VLOOKUP(C500,#REF!,4,0))","v":""},null,{"$f":"IF(ISERROR(F500-H500),\"\",F500-H500)","v":0},null,null,null,{"$f":"IF(ISERROR(VLOOKUP(L500,POA!$A$2:$C$25,3,0)),\"\",VLOOKUP(L500,POA!$A$2:$C$25,3,0))","v":""},null,{"$f":"IF(ISERROR(VLOOKUP(N500,POA!$A$2:$F$25,4,0)),\"\",VLOOKUP(N500,POA!$A$2:$F$25,4,0))","v":""},{"$f":"IF(ISERROR(VLOOKUP(L500,POA!$A$2:$C$25,2,0)),\"\",VLOOKUP(L500,POA!$A$2:$C$25,2,0))","v":""},null,{"$f":"IF(L500=0,\"\",IF(Q496>=$R$9,\"HABIL\",\"NO HABIL\"))","v":""},null,"",{"$f":"IF(ISERROR(VLOOKUP(N500,POA!$A$2:$F$25,5,0)),\"\",VLOOKUP(N500,POA!$A$2:$F$25,5,0))","v":""},null,"",null,0,"MIPYME",null,"",null,""]
[null,"",null,null,{"$f":"IF(ISERROR(VLOOKUP(C501,#REF!,2,0)),\"\",VLOOKUP(C501,#REF!,2,0))","v":""},null,{"$f":"IF(ISERROR(VLOOKUP(C501,#REF!,4,0)),\"\",VLOOKUP(C501,#REF!,4,0))","v":""},null,0,null,null,null,{"$f":"IF(ISERROR(VLOOKUP(L501,POA!$A$2:$C$25,3,0)),\"\",VLOOKUP(L501,POA!$A$2:$C$25,3,0))","v":""},null,{"$f":"IF(ISERROR(VLOOKUP(N501,POA!$A$2:$F$25,4,0)),\"\",VLOOKUP(N501,POA!$A$2:$F$25,4,0))","v":""},{"$f":"IF(ISERROR(VLOOKUP(L501,POA!$A$2:$C$25,2,0)),\"\",VLOOKUP(L501,POA!$A$2:$C$25,2,0))","v":""},null,{"$f":"IF(L501=0,\"\",IF(Q496>=$R$9,\"HABIL\",\"NO HABIL\"))","v":""},null,"",{"$f":"IF(ISERROR(VLOOKUP(N501,POA!$A$2:$F$25,5,0)),\"\",VLOOKUP(N501,POA!$A$2:$F$25,5,0))","v":""},null,"",null,0,"MIPYME",null,"",null,""]
[null,"",null,null,{"$f":"IF(ISERROR(VLOOKUP(C502,#REF!,2,0)),\"\",VLOOKUP(C502,#REF!,2,0))","v":""},null,{"$f":"IF(ISERROR(VLOOKUP(C502,#REF!,4,0)),\"\",VLOOKUP(C502,#REF!,4,0))","v":""},null,0,null,null,null,{"$f":"IF(ISERROR(VLOOKUP(L502,POA!$A$2:$C$25,3,0)),\"\",VLOOKUP(L502,POA!$A$2:$C$25,3,0))","v":""},null,{"$f":"IF(ISERROR(VLOOKUP(N502,POA!$A$2:$F$25,4,0)),\"\",VLOOKUP(N502,POA!$A$2:$F$25,4,0))","v":""},{"$f":"IF(ISERROR(VLOOKUP(L502,POA!$A$2:$C$25,2,0)),\"\",VLOOKUP(L502,POA!$A$2:$C$25,2,0))","v":""},null,{"$f":"IF(L502=0,\"\",IF(Q496>=$R$9,\"HABIL\",\"NO HABIL\"))","v":""},null,"",{"$f":"IF(ISERROR(VLOOKUP(N502,POA!$A$2:$F$25,5,0)),\"\",VLOOKUP(N502,POA!$A$2:$F$25,5,0))","v":""},null,"",null,0,"MIPYME",null,"",null,""]
[null,{"$f":"IF(C503=\"\",\"\",B502+0.1)","v":""},null,null,{"$f":"IF(ISERROR(VLOOKUP(C503,#REF!,2,0)),\"\",VLOOKUP(C503,#REF!,2,0))","v":""},null,{"$f":"IF(ISERROR(VLOOKUP(C503,#REF!,4,0)),\"\",VLOOKUP(C503,#REF!,4,0))","v":""},null,{"$f":"IF(ISERROR(F503-H503),\"\",F503-H503)","v":0},null,null,null,{"$f":"IF(ISERROR(VLOOKUP(L503,POA!$A$2:$C$25,3,0)),\"\",VLOOKUP(L503,POA!$A$2:$C$25,3,0))","v":""},null,{"$f":"IF(ISERROR(VLOOKUP(N503,POA!$A$2:$F$25,4,0)),\"\",VLOOKUP(N503,POA!$A$2:$F$25,4,0))","v":""},{"$f":"IF(ISERROR(VLOOKUP(L503,POA!$A$2:$C$25,2,0)),\"\",VLOOKUP(L503,POA!$A$2:$C$25,2,0))","v":""},null,{"$f":"IF(L503=0,\"\",IF(Q496>=$R$9,\"HABIL\",\"NO HABIL\"))","v":""},null,"",{"$f":"IF(ISERROR(VLOOKUP(N503,POA!$A$2:$F$25,5,0)),\"\",VLOOKUP(N503,POA!$A$2:$F$25,5,0))","v":""},null,"",null,0,"MIPYME",null,"",null,""]
[null,{"$f":"IF(C504=\"\",\"\",B503+0.1)","v":""},null,null,{"$f":"IF(ISERROR(VLOOKUP(C504,#REF!,2,0)),\"\",VLOOKUP(C504,#REF!,2,0))","v":""},null,{"$f":"IF(ISERROR(VLOOKUP(C504,#REF!,4,0)),\"\",VLOOKUP(C504,#REF!,4,0))","v":""},null,{"$f":"IF(ISERROR(F504-H504),\"\",F504-H504)","v":0},null,null,null,{"$f":"IF(ISERROR(VLOOKUP(L504,POA!$A$2:$C$25,3,0)),\"\",VLOOKUP(L504,POA!$A$2:$C$25,3,0))","v":""},null,{"$f":"IF(ISERROR(VLOOKUP(N504,POA!$A$2:$F$25,4,0)),\"\",VLOOKUP(N504,POA!$A$2:$F$25,4,0))","v":""},{"$f":"IF(ISERROR(VLOOKUP(L504,POA!$A$2:$C$25,2,0)),\"\",VLOOKUP(L504,POA!$A$2:$C$25,2,0))","v":""},null,{"$f":"IF(L504=0,\"\",IF(Q496>=$R$9,\"HABIL\",\"NO HABIL\"))","v":""},null,"",{"$f":"IF(ISERROR(VLOOKUP(N504,POA!$A$2:$F$25,5,0)),\"\",VLOOKUP(N504,POA!$A$2:$F$25,5,0))","v":""},null,"",null,0,"MIPYME",null,"",null,""]
[null,{"$f":"IF(C505=\"\",\"\",B504+0.1)","v":""},null,null,{"$f":"IF(ISERROR(VLOOKUP(C505,#REF!,2,0)),\"\",VLOOKUP(C505,#REF!,2,0))","v":""},null,{"$f":"IF(ISERROR(VLOOKUP(C505,#REF!,4,0)),\"\",VLOOKUP(C505,#REF!,4,0))","v":""},null,{"$f":"IF(ISERROR(F505-H505),\"\",F505-H505)","v":0},null,null,null,{"$f":"IF(ISERROR(VLOOKUP(L505,POA!$A$2:$C$25,3,0)),\"\",VLOOKUP(L505,POA!$A$2:$C$25,3,0))","v":""},null,{"$f":"IF(ISERROR(VLOOKUP(N505,POA!$A$2:$F$25,4,0)),\"\",VLOOKUP(N505,POA!$A$2:$F$25,4,0))","v":""},{"$f":"IF(ISERROR(VLOOKUP(L505,POA!$A$2:$C$25,2,0)),\"\",VLOOKUP(L505,POA!$A$2:$C$25,2,0))","v":""},null,{"$f":"IF(L505=0,\"\",IF(Q496>=$R$9,\"HABIL\",\"NO HABIL\"))","v":""},null,"",{"$f":"IF(ISERROR(VLOOKUP(N505,POA!$A$2:$F$25,5,0)),\"\",VLOOKUP(N505,POA!$A$2:$F$25,5,0))","v":""},null,"",null,0,"MIPYME",null,"",null,""]
[null,{"$f":"IF(C506=\"\",\"\",B505+0.1)","v":""},null,null,{"$f":"IF(ISERROR(VLOOKUP(C506,#REF!,2,0)),\"\",VLOOKUP(C506,#REF!,2,0))","v":""},null,{"$f":"IF(ISERROR(VLOOKUP(C506,#REF!,4,0)),\"\",VLOOKUP(C506,#REF!,4,0))","v":""},null,{"$f":"IF(ISERROR(F506-H506),\"\",F506-H506)","v":0},null,null,null,{"$f":"IF(ISERROR(VLOOKUP(L506,POA!$A$2:$C$25,3,0)),\"\",VLOOKUP(L506,POA!$A$2:$C$25,3,0))","v":""},null,{"$f":"IF(ISERROR(VLOOKUP(N506,POA!$A$2:$F$25,4,0)),\"\",VLOOKUP(N506,POA!$A$2:$F$25,4,0))","v":""},{"$f":"IF(ISERROR(VLOOKUP(L506,POA!$A$2:$C$25,2,0)),\"\",VLOOKUP(L506,POA!$A$2:$C$25,2,0))","v":""},null,{"$f":"IF(L506=0,\"\",IF(Q496>=$R$9,\"HABIL\",\"NO HABIL\"))","v":""},null,"",{"$f":"IF(ISERROR(VLOOKUP(N506,POA!$A$2:$F$25,5,0)),\"\",VLOOKUP(N506,POA!$A$2:$F$25,5,0))","v":""},null,"",null,{"$f":"IF(ISERROR(F506/$Z$9),\"\",F506/$Z$9)","v":0},"MIPYME",null,"",null,""]
[null,46,"RG INGENIERIA LTDA.",{"$f":"IF(SUM(D508:D517)=0,\"\",SUM(D508:D517))","v":1},{"$f":"SUM(E508:E517)","v":5855315545},{"$f":"SUM(F508:F517)","v":10983372284},{"$f":"SUM(G508:G517)","v":972351421},{"$f":"SUM(H508:H517)","v":3207676014},{"$f":"+F507-H507","v":7775696270},{"$f":"SUM(J508:J517)","v":1268905395},{"$f":"SUM(K508:K517)","v":94206697},1,{"$f":"IF(ISERROR(VLOOKUP(L507,POA!$A$2:$C$25,3,0)),\"\",VLOOKUP(L507,POA!$A$2:$C$25,3,0))","v":3}," ",{"$f":"+SUM(O508:O517)","v":0},{"$f":"IF(ISERROR(VLOOKUP(L507,POA!$A$2:$C$25,2,0)),\"\",VLOOKUP(L507,POA!$A$2:$C$25,2,0))","v":4167150295},{"$f":"SUM(E507/G507)","v":6.0218100354892163},{"$f":"IF(Q507=0,\"\",IF(Q507>=$R$9,\"HABIL\",\"NO HABIL\"))","v":"HABIL"},{"$f":"SUM(H507/F507)","v":0.29204837376520271},{"$f":"IF(S507=0,\"\",IF(S507<=$T$9,\"HABIL\",\"NO HABIL\"))","v":"HABIL"},{"$f":"+SUM(U508:U517)","v":0},{"$f":"SUM(J507/K507)","v":13.469375696294712},{"$f":"IF(V507=0,\"\",IF(V507>=$W$9,\"HABIL\",\"NO HABIL\"))","v":"HABIL"},{"$f":"IF(R507=0,\"\",IF(R507=\"NO HABIL\",\"NO HABIL\",IF(T507=\"NO HABIL\",\"NO HABIL\",IF(W507=\"NO HABIL\",\"NO HABIL\",IF(W507=\"NO HABIL\",\"NO HABIL\",\"HABIL\")))))","v":"HABIL"},null,null,{"$f":"SUM(J507/I507)","v":0.16318865230058685},{"$f":"IF(AA507=0,\"\",IF(AA507>=$AB$9,\"HABIL\",\"NO HABIL\"))","v":"HABIL"},{"$f":"SUM(J507/F507)","v":0.11552967177926535},{"$f":"IF(AC507=0,\"\",IF(AC507>=$AD$9,\"HABIL\",\"NO HABIL\"))","v":"HABIL"},{"$f":"IF(AB507=0,\"\",IF(AB507=\"NO HABIL\",\"NO HABIL\",IF(AD507=\"NO HABIL\",\"NO HABIL\",IF(AD507=\"NO HABIL\",\"NO HABIL\",\"HABIL\"))))","v":"HABIL"}]
[null,{"$f":"IF(C508=\"\",\"\",B507+0.1)","v":46.1},"RG INGENIERIA LTDA.",1,5855315545,10983372284,972351421,3207676014,7775696270,1268905395,94206697,null,{"$f":"IF(ISERROR(VLOOKUP(L508,POA!$A$2:$C$25,3,0)),\"\",VLOOKUP(L508,POA!$A$2:$C$25,3,0))","v":""}," ",{"$f":"IF(ISERROR(VLOOKUP(N508,POA!$A$2:$F$25,4,0)),\"\",VLOOKUP(N508,POA!$A$2:$F$25,4,0))","v":""},{"$f":"IF(ISERROR(VLOOKUP(L508,POA!$A$2:$C$25,2,0)),\"\",VLOOKUP(L508,POA!$A$2:$C$25,2,0))","v":""},null,{"$f":"IF(Q508=0,\"\",IF(Q507>=$R$9,\"HABIL\",\"NO HABIL\"))","v":""},null,{"$f":"IF(S508=0,\"\",IF(S508<=$T$9,\"HABIL\",\"NO HABIL\"))","v":""},{"$f":"IF(ISERROR(VLOOKUP(N508,POA!$A$2:$F$25,5,0)),\"\",VLOOKUP(N508,POA!$A$2:$F$25,5,0))","v":""},null,{"$f":"IF(V508=0,\"\",IF(V508>=$W$9,\"HABIL\",\"NO HABIL\"))","v":""},null,{"$f":"IF(ISERROR(F508/$Z$9),\"\",F508/$Z$9)","v":19381.281602258692},{"$f":"+IF(Y508<$Z$10,\"MIPYME\",\"NO CUMPLE\")","v":"MIPYME"},null,{"$f":"IF(AA508=0,\"\",IF(AA508>=$AB$9,\"HABIL\",\"NO HABIL\"))","v":""},null,{"$f":"IF(AC508=0,\"\",IF(AC508>=$AD$9,\"HABIL\",\"NO HABIL\"))","v":""}]
[null,"",null,null,null,null,null,null,{"$f":"IF(ISERROR(F509-H509),\"\",F509-H509)","v":0},null,null,null,{"$f":"IF(ISERROR(VLOOKUP(L509,POA!$A$2:$C$25,3,0)),\"\",VLOOKUP(L509,POA!$A$2:$C$25,3,0))","v":""}," ",{"$f":"IF(ISERROR(VLOOKUP(N509,POA!$A$2:$F$25,4,0)),\"\",VLOOKUP(N509,POA!$A$2:$F$25,4,0))","v":""},{"$f":"IF(ISERROR(VLOOKUP(L509,POA!$A$2:$C$25,2,0)),\"\",VLOOKUP(L509,POA!$A$2:$C$25,2,0))","v":""},null,{"$f":"IF(Q509=0,\"\",IF(Q507>=$R$9,\"HABIL\",\"NO HABIL\"))","v":""},null,"",{"$f":"IF(ISERROR(VLOOKUP(N509,POA!$A$2:$F$25,5,0)),\"\",VLOOKUP(N509,POA!$A$2:$F$25,5,0))","v":""},null,"",null,{"$f":"IF(ISERROR(F509/$Z$9),\"\",F509/$Z$9)","v":0},{"$f":"+IF(Y509<$Z$10,\"MIPYME\",\"NO CUMPLE\")","v":"MIPYME"},null,"",null,""]
[null,"",null,null,null,null,null,null,0,null,null,null,{"$f":"IF(ISERROR(VLOOKUP(L510,POA!$A$2:$C$25,3,0)),\"\",VLOOKUP(L510,POA!$A$2:$C$25,3,0))","v":""},null,{"$f":"IF(ISERROR(VLOOKUP(N510,POA!$A$2:$F$25,4,0)),\"\",VLOOKUP(N510,POA!$A$2:$F$25,4,0))","v":""},{"$f":"IF(ISERROR(VLOOKUP(L510,POA!$A$2:$C$25,2,0)),\"\",VLOOKUP(L510,POA!$A$2:$C$25,2,0))","v":""},null,{"$f":"IF(Q510=0,\"\",IF(Q507>=$R$9,\"HABIL\",\"NO HABIL\"))","v":""},null,"",{"$f":"IF(ISERROR(VLOOKUP(N510,POA!$A$2:$F$25,5,0)),\"\",VLOOKUP(N510,POA!$A$2:$F$25,5,0))","v":""},null,"",null,0,"MIPYME",null,"",null,""]
[null,"",null,null,{"$f":"IF(ISERROR(VLOOKUP(C511,#REF!,2,0)),\"\",VLOOKUP(C511,#REF!,2,0))","v":""},null,{"$f":"IF(ISERROR(VLOOKUP(C511,#REF!,4,0)),\"\",VLOOKUP(C511,#REF!,4,0))","v":""},null,0,null,null,null,{"$f":"IF(ISERROR(VLOOKUP(L511,POA!$A$2:$C$25,3,0)),\"\",VLOOKUP(L511,POA!$A$2:$C$25,3,0))","v":""},null,{"$f":"IF(ISERROR(VLOOKUP(N511,POA!$A$2:$F$25,4,0)),\"\",VLOOKUP(N511,POA!$A$2:$F$25,4,0))","v":""},{"$f":"IF(ISERROR(VLOOKUP(L511,POA!$A$2:$C$25,2,0)),\"\",VLOOKUP(L511,POA!$A$2:$C$25,2,0))","v":""},null,{"$f":"IF(L511=0,\"\",IF(Q507>=$R$9,\"HABIL\",\"NO HABIL\"))","v":""},null,"",{"$f":"IF(ISERROR(VLOOKUP(N511,POA!$A$2:$F$25,5,0)),\"\",VLOOKUP(N511,POA!$A$2:$F$25,5,0))","v":""},null,"",null,0,"MIPYME",null,"",null,""]
[null,"",null,null,{"$f":"IF(ISERROR(VLOOKUP(C512,#REF!,2,0)),\"\",VLOOKUP(C512,#REF!,2,0))","v":""},null,{"$f":"IF(ISERROR(VLOOKUP(C512,#REF!,4,0)),\"\",VLOOKUP(C512,#REF!,4,0))","v":""},null,0,null,null,null,{"$f":"IF(ISERROR(VLOOKUP(L512,POA!$A$2:$C$25,3,0)),\"\",VLOOKUP(L512,POA!$A$2:$C$25,3,0))","v":""},null,{"$f":"IF(ISERROR(VLOOKUP(N512,POA!$A$2:$F$25,4,0)),\"\",VLOOKUP(N512,POA!$A$2:$F$25,4,0))","v":""},{"$f":"IF(ISERROR(VLOOKUP(L512,POA!$A$2:$C$25,2,0)),\"\",VLOOKUP(L512,POA!$A$2:$C$25,2,0))","v":""},null,{"$f":"IF(L512=0,\"\",IF(Q507>=$R$9,\"HABIL\",\"NO HABIL\"))","v":""},null,"",{"$f":"IF(ISERROR(VLOOKUP(N512,POA!$A$2:$F$25,5,0)),\"\",VLOOKUP(N512,POA!$A$2:$F$25,5,0))","v":""},null,"",null,0,"MIPYME",null,"",null,""]
[null,"",null,null,{"$f":"IF(ISERROR(VLOOKUP(C513,#REF!,2,0)),\"\",VLOOKUP(C513,#REF!,2,0))","v":""},null,{"$f":"IF(ISERROR(VLOOKUP(C513,#REF!,4,0)),\"\",VLOOKUP(C513,#REF!,4,0))","v":""},null,0,null,null,null,{"$f":"IF(ISERROR(VLOOKUP(L513,POA!$A$2:$C$25,3,0)),\"\",VLOOKUP(L513,POA!$A$2:$C$25,3,0))","v":""},null,{"$f":"IF(ISERROR(VLOOKUP(N513,POA!$A$2:$F$25,4,0)),\"\",VLOOKUP(N513,POA!$A$2:$F$25,4,0))","v":""},{"$f":"IF(ISERROR(VLOOKUP(L513,POA!$A$2:$C$25,2,0)),\"\",VLOOKUP(L513,POA!$A$2:$C$25,2,0))","v":""},null,{"$f":"IF(L513=0,\"\",IF(Q507>=$R$9,\"HABIL\",\"NO HABIL\"))","v":""},null,"",{"$f":"IF(ISERROR(VLOOKUP(N513,POA!$A$2:$F$25,5,0)),\"\",VLOOKUP(N513,POA!$A$2:$F$25,5,0))","v":""},null,"",null,0,"MIPYME",null,"",null,""]
[null,{"$f":"IF(C514=\"\",\"\",B513+0.1)","v":""},null,null,{"$f":"IF(ISERROR(VLOOKUP(C514,#REF!,2,0)),\"\",VLOOKUP(C514,#REF!,2,0))","v":""},null,{"$f":"IF(ISERROR(VLOOKUP(C514,#REF!,4,0)),\"\",VLOOKUP(C514,#REF!,4,0))","v":""},null,{"$f":"IF(ISERROR(F514-H514),\"\",F514-H514)","v":0},null,null,null,{"$f":"IF(ISERROR(VLOOKUP(L514,POA!$A$2:$C$25,3,0)),\"\",VLOOKUP(L514,POA!$A$2:$C$25,3,0))","v":""},null,{"$f":"IF(ISERROR(VLOOKUP(N514,POA!$A$2:$F$25,4,0)),\"\",VLOOKUP(N514,POA!$A$2:$F$25,4,0))","v":""},{"$f":"IF(ISERROR(VLOOKUP(L514,POA!$A$2:$C$25,2,0)),\"\",VLOOKUP(L514,POA!$A$2:$C$25,2,0))","v":""},null,{"$f":"IF(L514=0,\"\",IF(Q507>=$R$9,\"HABIL\",\"NO HABIL\"))","v":""},null,"",{"$f":"IF(ISERROR(VLOOKUP(N514,POA!$A$2:$F$25,5,0)),\"\",VLOOKUP(N514,POA!$A$2:$F$25,5,0))","v":""},null,"",null,0,"MIPYME",null,"",null,""]
[null,{"$f":"IF(C515=\"\",\"\",B514+0.1)","v":""},null,null,{"$f":"IF(ISERROR(VLOOKUP(C515,#REF!,2,0)),\"\",VLOOKUP(C515,#REF!,2,0))","v":""},null,{"$f":"IF(ISERROR(VLOOKUP(C515,#REF!,4,0)),\"\",VLOOKUP(C515,#REF!,4,0))","v":""},null,{"$f":"IF(ISERROR(F515-H515),\"\",F515-H515)","v":0},null,null,null,{"$f":"IF(ISERROR(VLOOKUP(L515,POA!$A$2:$C$25,3,0)),\"\",VLOOKUP(L515,POA!$A$2:$C$25,3,0))","v":""},null,{"$f":"IF(ISERROR(VLOOKUP(N515,POA!$A$2:$F$25,4,0)),\"\",VLOOKUP(N515,POA!$A$2:$F$25,4,0))","v":""},{"$f":"IF(ISERROR(VLOOKUP(L515,POA!$A$2:$C$25,2,0)),\"\",VLOOKUP(L515,POA!$A$2:$C$25,2,0))","v":""},null,{"$f":"IF(L515=0,\"\",IF(Q507>=$R$9,\"HABIL\",\"NO HABIL\"))","v":""},null,"",{"$f":"IF(ISERROR(VLOOKUP(N515,POA!$A$2:$F$25,5,0)),\"\",VLOOKUP(N515,POA!$A$2:$F$25,5,0))","v":""},null,"",null,0,"MIPYME",null,"",null,""]
[null,{"$f":"IF(C516=\"\",\"\",B515+0.1)","v":""},null,null,{"$f":"IF(ISERROR(VLOOKUP(C516,#REF!,2,0)),\"\",VLOOKUP(C516,#REF!,2,0))","v":""},null,{"$f":"IF(ISERROR(VLOOKUP(C516,#REF!,4,0)),\"\",VLOOKUP(C516,#REF!,4,0))","v":""},null,{"$f":"IF(ISERROR(F516-H516),\"\",F516-H516)","v":0},null,null,null,{"$f":"IF(ISERROR(VLOOKUP(L516,POA!$A$2:$C$25,3,0)),\"\",VLOOKUP(L516,POA!$A$2:$C$25,3,0))","v":""},null,{"$f":"IF(ISERROR(VLOOKUP(N516,POA!$A$2:$F$25,4,0)),\"\",VLOOKUP(N516,POA!$A$2:$F$25,4,0))","v":""},{"$f":"IF(ISERROR(VLOOKUP(L516,POA!$A$2:$C$25,2,0)),\"\",VLOOKUP(L516,POA!$A$2:$C$25,2,0))","v":""},null,{"$f":"IF(L516=0,\"\",IF(Q507>=$R$9,\"HABIL\",\"NO HABIL\"))","v":""},null,"",{"$f":"IF(ISERROR(VLOOKUP(N516,POA!$A$2:$F$25,5,0)),\"\",VLOOKUP(N516,POA!$A$2:$F$25,5,0))","v":""},null,"",null,0,"MIPYME",null,"",null,""]
[null,{"$f":"IF(C517=\"\",\"\",B516+0.1)","v":""},null,null,{"$f":"IF(ISERROR(VLOOKUP(C517,#REF!,2,0)),\"\",VLOOKUP(C517,#REF!,2,0))","v":""},null,{"$f":"IF(ISERROR(VLOOKUP(C517,#REF!,4,0)),\"\",VLOOKUP(C517,#REF!,4,0))","v":""},null,{"$f":"IF(ISERROR(F517-H517),\"\",F517-H517)","v":0},null,null,null,{"$f":"IF(ISERROR(VLOOKUP(L517,POA!$A$2:$C$25,3,0)),\"\",VLOOKUP(L517,POA!$A$2:$C$25,3,0))","v":""},null,{"$f":"IF(ISERROR(VLOOKUP(N517,POA!$A$2:$F$25,4,0)),\"\",VLOOKUP(N517,POA!$A$2:$F$25,4,0))","v":""},{"$f":"IF(ISERROR(VLOOKUP(L517,POA!$A$2:$C$25,2,0)),\"\",VLOOKUP(L517,POA!$A$2:$C$25,2,0))","v":""},null,{"$f":"IF(L517=0,\"\",IF(Q507>=$R$9,\"HABIL\",\"NO HABIL\"))","v":""},null,"",{"$f":"IF(ISERROR(VLOOKUP(N517,POA!$A$2:$F$25,5,0)),\"\",VLOOKUP(N517,POA!$A$2:$F$25,5,0))","v":""},null,"",null,{"$f":"IF(ISERROR(F517/$Z$9),\"\",F517/$Z$9)","v":0},"MIPYME",null,"",null,""]
[null,47,"CONSORCIO GAMA 034",{"$f":"IF(SUM(D519:D528)=0,\"\",SUM(D519:D528))","v":1},{"$f":"SUM(E519:E528)","v":11906883434},{"$f":"SUM(F519:F528)","v":16400113491},{"$f":"SUM(G519:G528)","v":2861302241},{"$f":"SUM(H519:H528)","v":8837287200},{"$f":"+F518-H518","v":7562826291},{"$f":"SUM(J519:J528)","v":1201050007},{"$f":"SUM(K519:K528)","v":100378600},1,{"$f":"IF(ISERROR(VLOOKUP(L518,POA!$A$2:$C$25,3,0)),\"\",VLOOKUP(L518,POA!$A$2:$C$25,3,0))","v":3}," ",{"$f":"+SUM(O519:O528)","v":0},{"$f":"IF(ISERROR(VLOOKUP(L518,POA!$A$2:$C$25,2,0)),\"\",VLOOKUP(L518,POA!$A$2:$C$25,2,0))","v":4167150295},{"$f":"SUM(E518/G518)","v":4.1613511719889642},{"$f":"IF(Q518=0,\"\",IF(Q518>=$R$9,\"HABIL\",\"NO HABIL\"))","v":"HABIL"},{"$f":"SUM(H518/F518)","v":0.53885524663287832},{"$f":"IF(S518=0,\"\",IF(S518<=$T$9,\"HABIL\",\"NO HABIL\"))","v":"HABIL"},{"$f":"+SUM(U519:U528)","v":0},{"$f":"SUM(J518/K518)","v":11.96519982346835},{"$f":"IF(V518=0,\"\",IF(V518>=$W$9,\"HABIL\",\"NO HABIL\"))","v":"HABIL"},{"$f":"IF(R518=0,\"\",IF(R518=\"NO HABIL\",\"NO HABIL\",IF(T518=\"NO HABIL\",\"NO HABIL\",IF(W518=\"NO HABIL\",\"NO HABIL\",IF(W518=\"NO HABIL\",\"NO HABIL\",\"HABIL\")))))","v":"HABIL"},null,null,{"$f":"SUM(J518/I518)","v":0.1588096778620034},{"$f":"IF(AA518=0,\"\",IF(AA518>=$AB$9,\"HABIL\",\"NO HABIL\"))","v":"HABIL"},{"$f":"SUM(J518/F518)","v":7.3234249729985601E-2},{"$f":"IF(AC518=0,\"\",IF(AC518>=$AD$9,\"HABIL\",\"NO HABIL\"))","v":"HABIL"},{"$f":"IF(AB518=0,\"\",IF(AB518=\"NO HABIL\",\"NO HABIL\",IF(AD518=\"NO HABIL\",\"NO HABIL\",IF(AD518=\"NO HABIL\",\"NO HABIL\",\"HABIL\"))))","v":"HABIL"}]
[null,{"$f":"IF(C519=\"\",\"\",B518+0.1)","v":47.1},"GAMA INGENIEROS ARQUITECTOS S.A.S.",0.8,4948872434,8319482491,2757697241,4401579200,{"$f":"IF(ISERROR(F519-H519),\"\",F519-H519)","v":3917903291},630027007,52455600,null,{"$f":"IF(ISERROR(VLOOKUP(L519,POA!$A$2:$C$25,3,0)),\"\",VLOOKUP(L519,POA!$A$2:$C$25,3,0))","v":""}," ",{"$f":"IF(ISERROR(VLOOKUP(N519,POA!$A$2:$F$25,4,0)),\"\",VLOOKUP(N519,POA!$A$2:$F$25,4,0))","v":""},{"$f":"IF(ISERROR(VLOOKUP(L519,POA!$A$2:$C$25,2,0)),\"\",VLOOKUP(L519,POA!$A$2:$C$25,2,0))","v":""},null,{"$f":"IF(Q519=0,\"\",IF(Q518>=$R$9,\"HABIL\",\"NO HABIL\"))","v":""},null,{"$f":"IF(S519=0,\"\",IF(S519<=$T$9,\"HABIL\",\"NO HABIL\"))","v":""},{"$f":"IF(ISERROR(VLOOKUP(N519,POA!$A$2:$F$25,5,0)),\"\",VLOOKUP(N519,POA!$A$2:$F$25,5,0))","v":""},null,{"$f":"IF(V519=0,\"\",IF(V519>=$W$9,\"HABIL\",\"NO HABIL\"))","v":""},null,{"$f":"IF(ISERROR(F519/$Z$9),\"\",F519/$Z$9)","v":14680.57612669843},{"$f":"+IF(Y519<$Z$10,\"MIPYME\",\"NO CUMPLE\")","v":"MIPYME"},null,{"$f":"IF(AA519=0,\"\",IF(AA519>=$AB$9,\"HABIL\",\"NO HABIL\"))","v":""},null,{"$f":"IF(AC519=0,\"\",IF(AC519>=$AD$9,\"HABIL\",\"NO HABIL\"))","v":""}]
[null,47.2,"JOSE GALAN GOMEZ",0.2,6958011000,8080631000,103605000,4435708000,3644923000,571023000,47923000,null,{"$f":"IF(ISERROR(VLOOKUP(L520,POA!$A$2:$C$25,3,0)),\"\",VLOOKUP(L520,POA!$A$2:$C$25,3,0))","v":""}," ",{"$f":"IF(ISERROR(VLOOKUP(N520,POA!$A$2:$F$25,4,0)),\"\",VLOOKUP(N520,POA!$A$2:$F$25,4,0))","v":""},{"$f":"IF(ISERROR(VLOOKUP(L520,POA!$A$2:$C$25,2,0)),\"\",VLOOKUP(L520,POA!$A$2:$C$25,2,0))","v":""},null,{"$f":"IF(Q520=0,\"\",IF(Q518>=$R$9,\"HABIL\",\"NO HABIL\"))","v":""},null,"",{"$f":"IF(ISERROR(VLOOKUP(N520,POA!$A$2:$F$25,5,0)),\"\",VLOOKUP(N520,POA!$A$2:$F$25,5,0))","v":""},null,"",null,{"$f":"IF(ISERROR(F520/$Z$9),\"\",F520/$Z$9)","v":14259.098288335981},{"$f":"+IF(Y520<$Z$10,\"MIPYME\",\"NO CUMPLE\")","v":"MIPYME"},null,"",null,""]
[null,"",null,null,null,null,null,null,0,null,null,null,{"$f":"IF(ISERROR(VLOOKUP(L521,POA!$A$2:$C$25,3,0)),\"\",VLOOKUP(L521,POA!$A$2:$C$25,3,0))","v":""},null,{"$f":"IF(ISERROR(VLOOKUP(N521,POA!$A$2:$F$25,4,0)),\"\",VLOOKUP(N521,POA!$A$2:$F$25,4,0))","v":""},{"$f":"IF(ISERROR(VLOOKUP(L521,POA!$A$2:$C$25,2,0)),\"\",VLOOKUP(L521,POA!$A$2:$C$25,2,0))","v":""},null,{"$f":"IF(Q521=0,\"\",IF(Q518>=$R$9,\"HABIL\",\"NO HABIL\"))","v":""},null,"",{"$f":"IF(ISERROR(VLOOKUP(N521,POA!$A$2:$F$25,5,0)),\"\",VLOOKUP(N521,POA!$A$2:$F$25,5,0))","v":""},null,"",null,0,"MIPYME",null,"",null,""]
[null,"",null,null,{"$f":"IF(ISERROR(VLOOKUP(C522,#REF!,2,0)),\"\",VLOOKUP(C522,#REF!,2,0))","v":""},null,{"$f":"IF(ISERROR(VLOOKUP(C522,#REF!,4,0)),\"\",VLOOKUP(C522,#REF!,4,0))","v":""},null,0,null,null,null,{"$f":"IF(ISERROR(VLOOKUP(L522,POA!$A$2:$C$25,3,0)),\"\",VLOOKUP(L522,POA!$A$2:$C$25,3,0))","v":""},null,{"$f":"IF(ISERROR(VLOOKUP(N522,POA!$A$2:$F$25,4,0)),\"\",VLOOKUP(N522,POA!$A$2:$F$25,4,0))","v":""},{"$f":"IF(ISERROR(VLOOKUP(L522,POA!$A$2:$C$25,2,0)),\"\",VLOOKUP(L522,POA!$A$2:$C$25,2,0))","v":""},null,{"$f":"IF(L522=0,\"\",IF(Q518>=$R$9,\"HABIL\",\"NO HABIL\"))","v":""},null,"",{"$f":"IF(ISERROR(VLOOKUP(N522,POA!$A$2:$F$25,5,0)),\"\",VLOOKUP(N522,POA!$A$2:$F$25,5,0))","v":""},null,"",null,0,"MIPYME",null,"",null,""]
[null,"",null,null,{"$f":"IF(ISERROR(VLOOKUP(C523,#REF!,2,0)),\"\",VLOOKUP(C523,#REF!,2,0))","v":""},null,{"$f":"IF(ISERROR(VLOOKUP(C523,#REF!,4,0)),\"\",VLOOKUP(C523,#REF!,4,0))","v":""},null,0,null,null,null,{"$f":"IF(ISERROR(VLOOKUP(L523,POA!$A$2:$C$25,3,0)),\"\",VLOOKUP(L523,POA!$A$2:$C$25,3,0))","v":""},null,{"$f":"IF(ISERROR(VLOOKUP(N523,POA!$A$2:$F$25,4,0)),\"\",VLOOKUP(N523,POA!$A$2:$F$25,4,0))","v":""},{"$f":"IF(ISERROR(VLOOKUP(L523,POA!$A$2:$C$25,2,0)),\"\",VLOOKUP(L523,POA!$A$2:$C$25,2,0))","v":""},null,{"$f":"IF(L523=0,\"\",IF(Q518>=$R$9,\"HABIL\",\"NO HABIL\"))","v":""},null,"",{"$f":"IF(ISERROR(VLOOKUP(N523,POA!$A$2:$F$25,5,0)),\"\",VLOOKUP(N523,POA!$A$2:$F$25,5,0))","v":""},null,"",null,0,"MIPYME",null,"",null,""]
[null,"",null,null,{"$f":"IF(ISERROR(VLOOKUP(C524,#REF!,2,0)),\"\",VLOOKUP(C524,#REF!,2,0))","v":""},null,{"$f":"IF(ISERROR(VLOOKUP(C524,#REF!,4,0)),\"\",VLOOKUP(C524,#REF!,4,0))","v":""},null,0,null,null,null,{"$f":"IF(ISERROR(VLOOKUP(L524,POA!$A$2:$C$25,3,0)),\"\",VLOOKUP(L524,POA!$A$2:$C$25,3,0))","v":""},null,{"$f":"IF(ISERROR(VLOOKUP(N524,POA!$A$2:$F$25,4,0)),\"\",VLOOKUP(N524,POA!$A$2:$F$25,4,0))","v":""},{"$f":"IF(ISERROR(VLOOKUP(L524,POA!$A$2:$C$25,2,0)),\"\",VLOOKUP(L524,POA!$A$2:$C$25,2,0))","v":""},null,{"$f":"IF(L524=0,\"\",IF(Q518>=$R$9,\"HABIL\",\"NO HABIL\"))","v":""},null,"",{"$f":"IF(ISERROR(VLOOKUP(N524,POA!$A$2:$F$25,5,0)),\"\",VLOOKUP(N524,POA!$A$2:$F$25,5,0))","v":""},null,"",null,0,"MIPYME",null,"",null,""]
[null,{"$f":"IF(C525=\"\",\"\",B524+0.1)","v":""},null,null,{"$f":"IF(ISERROR(VLOOKUP(C525,#REF!,2,0)),\"\",VLOOKUP(C525,#REF!,2,0))","v":""},null,{"$f":"IF(ISERROR(VLOOKUP(C525,#REF!,4,0)),\"\",VLOOKUP(C525,#REF!,4,0))","v":""},null,{"$f":"IF(ISERROR(F525-H525),\"\",F525-H525)","v":0},null,null,null,{"$f":"IF(ISERROR(VLOOKUP(L525,POA!$A$2:$C$25,3,0)),\"\",VLOOKUP(L525,POA!$A$2:$C$25,3,0))","v":""},null,{"$f":"IF(ISERROR(VLOOKUP(N525,POA!$A$2:$F$25,4,0)),\"\",VLOOKUP(N525,POA!$A$2:$F$25,4,0))","v":""},{"$f":"IF(ISERROR(VLOOKUP(L525,POA!$A$2:$C$25,2,0)),\"\",VLOOKUP(L525,POA!$A$2:$C$25,2,0))","v":""},null,{"$f":"IF(L525=0,\"\",IF(Q518>=$R$9,\"HABIL\",\"NO HABIL\"))","v":""},null,"",{"$f":"IF(ISERROR(VLOOKUP(N525,POA!$A$2:$F$25,5,0)),\"\",VLOOKUP(N525,POA!$A$2:$F$25,5,0))","v":""},null,"",null,0,"MIPYME",null,"",null,""]
[null,{"$f":"IF(C526=\"\",\"\",B525+0.1)","v":""},null,null,{"$f":"IF(ISERROR(VLOOKUP(C526,#REF!,2,0)),\"\",VLOOKUP(C526,#REF!,2,0))","v":""},null,{"$f":"IF(ISERROR(VLOOKUP(C526,#REF!,4,0)),\"\",VLOOKUP(C526,#REF!,4,0))","v":""},null,{"$f":"IF(ISERROR(F526-H526),\"\",F526-H526)","v":0},null,null,null,{"$f":"IF(ISERROR(VLOOKUP(L526,POA!$A$2:$C$25,3,0)),\"\",VLOOKUP(L526,POA!$A$2:$C$25,3,0))","v":""},null,{"$f":"IF(ISERROR(VLOOKUP(N526,POA!$A$2:$F$25,4,0)),\"\",VLOOKUP(N526,POA!$A$2:$F$25,4,0))","v":""},{"$f":"IF(ISERROR(VLOOKUP(L526,POA!$A$2:$C$25,2,0)),\"\",VLOOKUP(L526,POA!$A$2:$C$25,2,0))","v":""},null,{"$f":"IF(L526=0,\"\",IF(Q518>=$R$9,\"HABIL\",\"NO HABIL\"))","v":""},null,"",{"$f":"IF(ISERROR(VLOOKUP(N526,POA!$A$2:$F$25,5,0)),\"\",VLOOKUP(N526,POA!$A$2:$F$25,5,0))","v":""},null,"",null,0,"MIPYME",null,"",null,""]
[null,{"$f":"IF(C527=\"\",\"\",B526+0.1)","v":""},null,null,{"$f":"IF(ISERROR(VLOOKUP(C527,#REF!,2,0)),\"\",VLOOKUP(C527,#REF!,2,0))","v":""},null,{"$f":"IF(ISERROR(VLOOKUP(C527,#REF!,4,0)),\"\",VLOOKUP(C527,#REF!,4,0))","v":""},null,{"$f":"IF(ISERROR(F527-H527),\"\",F527-H527)","v":0},null,null,null,{"$f":"IF(ISERROR(VLOOKUP(L527,POA!$A$2:$C$25,3,0)),\"\",VLOOKUP(L527,POA!$A$2:$C$25,3,0))","v":""},null,{"$f":"IF(ISERROR(VLOOKUP(N527,POA!$A$2:$F$25,4,0)),\"\",VLOOKUP(N527,POA!$A$2:$F$25,4,0))","v":""},{"$f":"IF(ISERROR(VLOOKUP(L527,POA!$A$2:$C$25,2,0)),\"\",VLOOKUP(L527,POA!$A$2:$C$25,2,0))","v":""},null,{"$f":"IF(L527=0,\"\",IF(Q518>=$R$9,\"HABIL\",\"NO HABIL\"))","v":""},null,"",{"$f":"IF(ISERROR(VLOOKUP(N527,POA!$A$2:$F$25,5,0)),\"\",VLOOKUP(N527,POA!$A$2:$F$25,5,0))","v":""},null,"",null,0,"MIPYME",null,"",null,""]
[null,{"$f":"IF(C528=\"\",\"\",B527+0.1)","v":""},null,null,{"$f":"IF(ISERROR(VLOOKUP(C528,#REF!,2,0)),\"\",VLOOKUP(C528,#REF!,2,0))","v":""},null,{"$f":"IF(ISERROR(VLOOKUP(C528,#REF!,4,0)),\"\",VLOOKUP(C528,#REF!,4,0))","v":""},null,{"$f":"IF(ISERROR(F528-H528),\"\",F528-H528)","v":0},null,null,null,{"$f":"IF(ISERROR(VLOOKUP(L528,POA!$A$2:$C$25,3,0)),\"\",VLOOKUP(L528,POA!$A$2:$C$25,3,0))","v":""},null,{"$f":"IF(ISERROR(VLOOKUP(N528,POA!$A$2:$F$25,4,0)),\"\",VLOOKUP(N528,POA!$A$2:$F$25,4,0))","v":""},{"$f":"IF(ISERROR(VLOOKUP(L528,POA!$A$2:$C$25,2,0)),\"\",VLOOKUP(L528,POA!$A$2:$C$25,2,0))","v":""},null,{"$f":"IF(L528=0,\"\",IF(Q518>=$R$9,\"HABIL\",\"NO HABIL\"))","v":""},null,"",{"$f":"IF(ISERROR(VLOOKUP(N528,POA!$A$2:$F$25,5,0)),\"\",VLOOKUP(N528,POA!$A$2:$F$25,5,0))","v":""},null,"",null,{"$f":"IF(ISERROR(F528/$Z$9),\"\",F528/$Z$9)","v":0},"MIPYME",null,"",null,""]
[null,48,null,{"$f":"IF(SUM(D530:D539)=0,\"\",SUM(D530:D539))","v":""},{"$f":"SUM(E530:E539)","v":0},{"$f":"SUM(F530:F539)","v":0},{"$f":"SUM(G530:G539)","v":0},{"$f":"SUM(H530:H539)","v":0},{"$f":"+F529-H529","v":0},{"$f":"SUM(J530:J539)","v":0},{"$f":"SUM(K530:K539)","v":0},1,{"$f":"IF(ISERROR(VLOOKUP(L529,POA!$A$2:$C$25,3,0)),\"\",VLOOKUP(L529,POA!$A$2:$C$25,3,0))","v":3}," ",{"$f":"+SUM(O530:O539)","v":0},{"$f":"IF(ISERROR(VLOOKUP(L529,POA!$A$2:$C$25,2,0)),\"\",VLOOKUP(L529,POA!$A$2:$C$25,2,0))","v":4167150295},{"$f":"SUM(E529/G529)","v":{"$error":"#DIV/0!"}},{"$f":"IF(Q529=0,\"\",IF(Q529>=$R$9,\"HABIL\",\"NO HABIL\"))","v":{"$error":"#DIV/0!"}},{"$f":"SUM(H529/F529)","v":{"$error":"#DIV/0!"}},{"$f":"IF(S529=0,\"\",IF(S529<=$T$9,\"HABIL\",\"NO HABIL\"))","v":{"$error":"#DIV/0!"}},{"$f":"+SUM(U530:U539)","v":0},{"$f":"SUM(J529/K529)","v":{"$error":"#DIV/0!"}},{"$f":"IF(V529=0,\"\",IF(V529>=$W$9,\"HABIL\",\"NO HABIL\"))","v":{"$error":"#DIV/0!"}},{"$f":"IF(R529=0,\"\",IF(R529=\"NO HABIL\",\"NO HABIL\",IF(T529=\"NO HABIL\",\"NO HABIL\",IF(W529=\"NO HABIL\",\"NO HABIL\",IF(W529=\"NO HABIL\",\"NO HABIL\",\"HABIL\")))))","v":{"$error":"#DIV/0!"}},null,null,{"$f":"SUM(J529/I529)","v":{"$error":"#DIV/0!"}},{"$f":"IF(AA529=0,\"\",IF(AA529>=$AB$9,\"HABIL\",\"NO HABIL\"))","v":{"$error":"#DIV/0!"}},{"$f":"SUM(J529/F529)","v":{"$error":"#DIV/0!"}},{"$f":"IF(AC529=0,\"\",IF(AC529>=$AD$9,\"HABIL\",\"NO HABIL\"))","v":{"$error":"#DIV/0!"}},{"$f":"IF(AB529=0,\"\",IF(AB529=\"NO HABIL\",\"NO HABIL\",IF(AD529=\"NO HABIL\",\"NO HABIL\",IF(AD529=\"NO HABIL\",\"NO HABIL\",\"HABIL\"))))","v":{"$error":"#DIV/0!"}}]
[null,{"$f":"IF(C530=\"\",\"\",B529+0.1)","v":""},null,null,null,null,null,null,{"$f":"IF(ISERROR(F530-H530),\"\",F530-H530)","v":0},null,null,null,{"$f":"IF(ISERROR(VLOOKUP(L530,POA!$A$2:$C$25,3,0)),\"\",VLOOKUP(L530,POA!$A$2:$C$25,3,0))","v":""}," ",{"$f":"IF(ISERROR(VLOOKUP(N530,POA!$A$2:$F$25,4,0)),\"\",VLOOKUP(N530,POA!$A$2:$F$25,4,0))","v":""},{"$f":"IF(ISERROR(VLOOKUP(L530,POA!$A$2:$C$25,2,0)),\"\",VLOOKUP(L530,POA!$A$2:$C$25,2,0))","v":""},null,{"$f":"IF(Q530=0,\"\",IF(Q529>=$R$9,\"HABIL\",\"NO HABIL\"))","v":""},null,{"$f":"IF(S530=0,\"\",IF(S530<=$T$9,\"HABIL\",\"NO HABIL\"))","v":""},{"$f":"IF(ISERROR(VLOOKUP(N530,POA!$A$2:$F$25,5,0)),\"\",VLOOKUP(N530,POA!$A$2:$F$25,5,0))","v":""},null,{"$f":"IF(V530=0,\"\",IF(V530>=$W$9,\"HABIL\",\"NO HABIL\"))","v":""},null,{"$f":"IF(ISERROR(F530/$Z$9),\"\",F530/$Z$9)","v":0},{"$f":"+IF(Y530<$Z$10,\"MIPYME\",\"NO CUMPLE\")","v":"MIPYME"},null,{"$f":"IF(AA530=0,\"\",IF(AA530>=$AB$9,\"HABIL\",\"NO HABIL\"))","v":""},null,{"$f":"IF(AC530=0,\"\",IF(AC530>=$AD$9,\"HABIL\",\"NO HABIL\"))","v":""}]
[null,"",null,null,null,null,null,null,0,null,null,null,{"$f":"IF(ISERROR(VLOOKUP(L531,POA!$A$2:$C$25,3,0)),\"\",VLOOKUP(L531,POA!$A$2:$C$25,3,0))","v":""}," ",{"$f":"IF(ISERROR(VLOOKUP(N531,POA!$A$2:$F$25,4,0)),\"\",VLOOKUP(N531,POA!$A$2:$F$25,4,0))","v":""},{"$f":"IF(ISERROR(VLOOKUP(L531,POA!$A$2:$C$25,2,0)),\"\",VLOOKUP(L531,POA!$A$2:$C$25,2,0))","v":""},null,{"$f":"IF(Q531=0,\"\",IF(Q529>=$R$9,\"HABIL\",\"NO HABIL\"))","v":""},null,"",{"$f":"IF(ISERROR(VLOOKUP(N531,POA!$A$2:$F$25,5,0)),\"\",VLOOKUP(N531,POA!$A$2:$F$25,5,0))","v":""},null,"",null,{"$f":"IF(ISERROR(F531/$Z$9),\"\",F531/$Z$9)","v":0},{"$f":"+IF(Y531<$Z$10,\"MIPYME\",\"NO CUMPLE\")","v":"MIPYME"},null,"",null,""]
[null,"",null,null,null,null,null,null,0,null,null,null,{"$f":"IF(ISERROR(VLOOKUP(L532,POA!$A$2:$C$25,3,0)),\"\",VLOOKUP(L532,POA!$A$2:$C$25,3,0))","v":""},null,{"$f":"IF(ISERROR(VLOOKUP(N532,POA!$A$2:$F$25,4,0)),\"\",VLOOKUP(N532,POA!$A$2:$F$25,4,0))","v":""},{"$f":"IF(ISERROR(VLOOKUP(L532,POA!$A$2:$C$25,2,0)),\"\",VLOOKUP(L532,POA!$A$2:$C$25,2,0))","v":""},null,{"$f":"IF(Q532=0,\"\",IF(Q529>=$R$9,\"HABIL\",\"NO HABIL\"))","v":""},null,"",{"$f":"IF(ISERROR(VLOOKUP(N532,POA!$A$2:$F$25,5,0)),\"\",VLOOKUP(N532,POA!$A$2:$F$25,5,0))","v":""},null,"",null,0,"MIPYME",null,"",null,""]
[null,"",null,null,{"$f":"IF(ISERROR(VLOOKUP(C533,#REF!,2,0)),\"\",VLOOKUP(C533,#REF!,2,0))","v":""},null,{"$f":"IF(ISERROR(VLOOKUP(C533,#REF!,4,0)),\"\",VLOOKUP(C533,#REF!,4,0))","v":""},null,0,null,null,null,{"$f":"IF(ISERROR(VLOOKUP(L533,POA!$A$2:$C$25,3,0)),\"\",VLOOKUP(L533,POA!$A$2:$C$25,3,0))","v":""},null,{"$f":"IF(ISERROR(VLOOKUP(N533,POA!$A$2:$F$25,4,0)),\"\",VLOOKUP(N533,POA!$A$2:$F$25,4,0))","v":""},{"$f":"IF(ISERROR(VLOOKUP(L533,POA!$A$2:$C$25,2,0)),\"\",VLOOKUP(L533,POA!$A$2:$C$25,2,0))","v":""},null,{"$f":"IF(L533=0,\"\",IF(Q529>=$R$9,\"HABIL\",\"NO HABIL\"))","v":""},null,"",{"$f":"IF(ISERROR(VLOOKUP(N533,POA!$A$2:$F$25,5,0)),\"\",VLOOKUP(N533,POA!$A$2:$F$25,5,0))","v":""},null,"",null,0,"MIPYME",null,"",null,""]
[null,"",null,null,{"$f":"IF(ISERROR(VLOOKUP(C534,#REF!,2,0)),\"\",VLOOKUP(C534,#REF!,2,0))","v":""},null,{"$f":"IF(ISERROR(VLOOKUP(C534,#REF!,4,0)),\"\",VLOOKUP(C534,#REF!,4,0))","v":""},null,0,null,null,null,{"$f":"IF(ISERROR(VLOOKUP(L534,POA!$A$2:$C$25,3,0)),\"\",VLOOKUP(L534,POA!$A$2:$C$25,3,0))","v":""},null,{"$f":"IF(ISERROR(VLOOKUP(N534,POA!$A$2:$F$25,4,0)),\"\",VLOOKUP(N534,POA!$A$2:$F$25,4,0))","v":""},{"$f":"IF(ISERROR(VLOOKUP(L534,POA!$A$2:$C$25,2,0)),\"\",VLOOKUP(L534,POA!$A$2:$C$25,2,0))","v":""},null,{"$f":"IF(L534=0,\"\",IF(Q529>=$R$9,\"HABIL\",\"NO HABIL\"))","v":""},null,"",{"$f":"IF(ISERROR(VLOOKUP(N534,POA!$A$2:$F$25,5,0)),\"\",VLOOKUP(N534,POA!$A$2:$F$25,5,0))","v":""},null,"",null,0,"MIPYME",null,"",null,""]
[null,"",null,null,{"$f":"IF(ISERROR(VLOOKUP(C535,#REF!,2,0)),\"\",VLOOKUP(C535,#REF!,2,0))","v":""},null,{"$f":"IF(ISERROR(VLOOKUP(C535,#REF!,4,0)),\"\",VLOOKUP(C535,#REF!,4,0))","v":""},null,0,null,null,null,{"$f":"IF(ISERROR(VLOOKUP(L535,POA!$A$2:$C$25,3,0)),\"\",VLOOKUP(L535,POA!$A$2:$C$25,3,0))","v":""},null,{"$f":"IF(ISERROR(VLOOKUP(N535,POA!$A$2:$F$25,4,0)),\"\",VLOOKUP(N535,POA!$A$2:$F$25,4,0))","v":""},{"$f":"IF(ISERROR(VLOOKUP(L535,POA!$A$2:$C$25,2,0)),\"\",VLOOKUP(L535,POA!$A$2:$C$25,2,0))","v":""},null,{"$f":"IF(L535=0,\"\",IF(Q529>=$R$9,\"HABIL\",\"NO HABIL\"))","v":""},null,"",{"$f":"IF(ISERROR(VLOOKUP(N535,POA!$A$2:$F$25,5,0)),\"\",VLOOKUP(N535,POA!$A$2:$F$25,5,0))","v":""},null,"",null,0,"MIPYME",null,"",null,""]
[null,{"$f":"IF(C536=\"\",\"\",B535+0.1)","v":""},null,null,{"$f":"IF(ISERROR(VLOOKUP(C536,#REF!,2,0)),\"\",VLOOKUP(C536,#REF!,2,0))","v":""},null,{"$f":"IF(ISERROR(VLOOKUP(C536,#REF!,4,0)),\"\",VLOOKUP(C536,#REF!,4,0))","v":""},null,{"$f":"IF(ISERROR(F536-H536),\"\",F536-H536)","v":0},null,null,null,{"$f":"IF(ISERROR(VLOOKUP(L536,POA!$A$2:$C$25,3,0)),\"\",VLOOKUP(L536,POA!$A$2:$C$25,3,0))","v":""},null,{"$f":"IF(ISERROR(VLOOKUP(N536,POA!$A$2:$F$25,4,0)),\"\",VLOOKUP(N536,POA!$A$2:$F$25,4,0))","v":""},{"$f":"IF(ISERROR(VLOOKUP(L536,POA!$A$2:$C$25,2,0)),\"\",VLOOKUP(L536,POA!$A$2:$C$25,2,0))","v":""},null,{"$f":"IF(L536=0,\"\",IF(Q529>=$R$9,\"HABIL\",\"NO HABIL\"))","v":""},null,"",{"$f":"IF(ISERROR(VLOOKUP(N536,POA!$A$2:$F$25,5,0)),\"\",VLOOKUP(N536,POA!$A$2:$F$25,5,0))","v":""},null,"",null,0,"MIPYME",null,"",null,""]
[null,{"$f":"IF(C537=\"\",\"\",B536+0.1)","v":""},null,null,{"$f":"IF(ISERROR(VLOOKUP(C537,#REF!,2,0)),\"\",VLOOKUP(C537,#REF!,2,0))","v":""},null,{"$f":"IF(ISERROR(VLOOKUP(C537,#REF!,4,0)),\"\",VLOOKUP(C537,#REF!,4,0))","v":""},null,{"$f":"IF(ISERROR(F537-H537),\"\",F537-H537)","v":0},null,null,null,{"$f":"IF(ISERROR(VLOOKUP(L537,POA!$A$2:$C$25,3,0)),\"\",VLOOKUP(L537,POA!$A$2:$C$25,3,0))","v":""},null,{"$f":"IF(ISERROR(VLOOKUP(N537,POA!$A$2:$F$25,4,0)),\"\",VLOOKUP(N537,POA!$A$2:$F$25,4,0))","v":""},{"$f":"IF(ISERROR(VLOOKUP(L537,POA!$A$2:$C$25,2,0)),\"\",VLOOKUP(L537,POA!$A$2:$C$25,2,0))","v":""},null,{"$f":"IF(L537=0,\"\",IF(Q529>=$R$9,\"HABIL\",\"NO HABIL\"))","v":""},null,"",{"$f":"IF(ISERROR(VLOOKUP(N537,POA!$A$2:$F$25,5,0)),\"\",VLOOKUP(N537,POA!$A$2:$F$25,5,0))","v":""},null,"",null,0,"MIPYME",null,"",null,""]
[null,{"$f":"IF(C538=\"\",\"\",B537+0.1)","v":""},null,null,{"$f":"IF(ISERROR(VLOOKUP(C538,#REF!,2,0)),\"\",VLOOKUP(C538,#REF!,2,0))","v":""},null,{"$f":"IF(ISERROR(VLOOKUP(C538,#REF!,4,0)),\"\",VLOOKUP(C538,#REF!,4,0))","v":""},null,{"$f":"IF(ISERROR(F538-H538),\"\",F538-H538)","v":0},null,null,null,{"$f":"IF(ISERROR(VLOOKUP(L538,POA!$A$2:$C$25,3,0)),\"\",VLOOKUP(L538,POA!$A$2:$C$25,3,0))","v":""},null,{"$f":"IF(ISERROR(VLOOKUP(N538,POA!$A$2:$F$25,4,0)),\"\",VLOOKUP(N538,POA!$A$2:$F$25,4,0))","v":""},{"$f":"IF(ISERROR(VLOOKUP(L538,POA!$A$2:$C$25,2,0)),\"\",VLOOKUP(L538,POA!$A$2:$C$25,2,0))","v":""},null,{"$f":"IF(L538=0,\"\",IF(Q529>=$R$9,\"HABIL\",\"NO HABIL\"))","v":""},null,"",{"$f":"IF(ISERROR(VLOOKUP(N538,POA!$A$2:$F$25,5,0)),\"\",VLOOKUP(N538,POA!$A$2:$F$25,5,0))","v":""},null,"",null,0,"MIPYME",null,"",null,""]
[null,{"$f":"IF(C539=\"\",\"\",B538+0.1)","v":""},null,null,{"$f":"IF(ISERROR(VLOOKUP(C539,#REF!,2,0)),\"\",VLOOKUP(C539,#REF!,2,0))","v":""},null,{"$f":"IF(ISERROR(VLOOKUP(C539,#REF!,4,0)),\"\",VLOOKUP(C539,#REF!,4,0))","v":""},null,{"$f":"IF(ISERROR(F539-H539),\"\",F539-H539)","v":0},null,null,null,{"$f":"IF(ISERROR(VLOOKUP(L539,POA!$A$2:$C$25,3,0)),\"\",VLOOKUP(L539,POA!$A$2:$C$25,3,0))","v":""},null,{"$f":"IF(ISERROR(VLOOKUP(N539,POA!$A$2:$F$25,4,0)),\"\",VLOOKUP(N539,POA!$A$2:$F$25,4,0))","v":""},{"$f":"IF(ISERROR(VLOOKUP(L539,POA!$A$2:$C$25,2,0)),\"\",VLOOKUP(L539,POA!$A$2:$C$25,2,0))","v":""},null,{"$f":"IF(L539=0,\"\",IF(Q529>=$R$9,\"HABIL\",\"NO HABIL\"))","v":""},null,"",{"$f":"IF(ISERROR(VLOOKUP(N539,POA!$A$2:$F$25,5,0)),\"\",VLOOKUP(N539,POA!$A$2:$F$25,5,0))","v":""},null,"",null,{"$f":"IF(ISERROR(F539/$Z$9),\"\",F539/$Z$9)","v":0},"MIPYME",null,"",null,""]
[null,49,null,{"$f":"IF(SUM(D541:D550)=0,\"\",SUM(D541:D550))","v":""},{"$f":"SUM(E541:E550)","v":0},{"$f":"SUM(F541:F550)","v":0},{"$f":"SUM(G541:G550)","v":0},{"$f":"SUM(H541:H550)","v":0},{"$f":"+F540-H540","v":0},{"$f":"SUM(J541:J550)","v":0},{"$f":"SUM(K541:K550)","v":0},1,{"$f":"IF(ISERROR(VLOOKUP(L540,POA!$A$2:$C$25,3,0)),\"\",VLOOKUP(L540,POA!$A$2:$C$25,3,0))","v":3}," ",{"$f":"+SUM(O541:O550)","v":0},{"$f":"IF(ISERROR(VLOOKUP(L540,POA!$A$2:$C$25,2,0)),\"\",VLOOKUP(L540,POA!$A$2:$C$25,2,0))","v":4167150295},{"$f":"SUM(E540/G540)","v":{"$error":"#DIV/0!"}},{"$f":"IF(Q540=0,\"\",IF(Q540>=$R$9,\"HABIL\",\"NO HABIL\"))","v":{"$error":"#DIV/0!"}},{"$f":"SUM(H540/F540)","v":{"$error":"#DIV/0!"}},{"$f":"IF(S540=0,\"\",IF(S540<=$T$9,\"HABIL\",\"NO HABIL\"))","v":{"$error":"#DIV/0!"}},{"$f":"+SUM(U541:U550)","v":0},{"$f":"SUM(J540/K540)","v":{"$error":"#DIV/0!"}},{"$f":"IF(V540=0,\"\",IF(V540>=$W$9,\"HABIL\",\"NO HABIL\"))","v":{"$error":"#DIV/0!"}},{"$f":"IF(R540=0,\"\",IF(R540=\"NO HABIL\",\"NO HABIL\",IF(T540=\"NO HABIL\",\"NO HABIL\",IF(W540=\"NO HABIL\",\"NO HABIL\",IF(W540=\"NO HABIL\",\"NO HABIL\",\"HABIL\")))))","v":{"$error":"#DIV/0!"}},null,null,{"$f":"SUM(J540/I540)","v":{"$error":"#DIV/0!"}},{"$f":"IF(AA540=0,\"\",IF(AA540>=$AB$9,\"HABIL\",\"NO HABIL\"))","v":{"$error":"#DIV/0!"}},{"$f":"SUM(J540/F540)","v":{"$error":"#DIV/0!"}},{"$f":"IF(AC540=0,\"\",IF(AC540>=$AD$9,\"HABIL\",\"NO HABIL\"))","v":{"$error":"#DIV/0!"}},{"$f":"IF(AB540=0,\"\",IF(AB540=\"NO HABIL\",\"NO HABIL\",IF(AD540=\"NO HABIL\",\"NO HABIL\",IF(AD540=\"NO HABIL\",\"NO HABIL\",\"HABIL\"))))","v":{"$error":"#DIV/0!"}}]
[null,{"$f":"IF(C541=\"\",\"\",B540+0.1)","v":""},null,null,null,null,null,null,{"$f":"IF(ISERROR(F541-H541),\"\",F541-H541)","v":0},null,null,null,{"$f":"IF(ISERROR(VLOOKUP(L541,POA!$A$2:$C$25,3,0)),\"\",VLOOKUP(L541,POA!$A$2:$C$25,3,0))","v":""}," ",{"$f":"IF(ISERROR(VLOOKUP(N541,POA!$A$2:$F$25,4,0)),\"\",VLOOKUP(N541,POA!$A$2:$F$25,4,0))","v":""},{"$f":"IF(ISERROR(VLOOKUP(L541,POA!$A$2:$C$25,2,0)),\"\",VLOOKUP(L541,POA!$A$2:$C$25,2,0))","v":""},null,{"$f":"IF(Q541=0,\"\",IF(Q540>=$R$9,\"HABIL\",\"NO HABIL\"))","v":""},null,{"$f":"IF(S541=0,\"\",IF(S541<=$T$9,\"HABIL\",\"NO HABIL\"))","v":""},{"$f":"IF(ISERROR(VLOOKUP(N541,POA!$A$2:$F$25,5,0)),\"\",VLOOKUP(N541,POA!$A$2:$F$25,5,0))","v":""},null,{"$f":"IF(V541=0,\"\",IF(V541>=$W$9,\"HABIL\",\"NO HABIL\"))","v":""},null,{"$f":"IF(ISERROR(F541/$Z$9),\"\",F541/$Z$9)","v":0},{"$f":"+IF(Y541<$Z$10,\"MIPYME\",\"NO CUMPLE\")","v":"MIPYME"},null,{"$f":"IF(AA541=0,\"\",IF(AA541>=$AB$9,\"HABIL\",\"NO HABIL\"))","v":""},null,{"$f":"IF(AC541=0,\"\",IF(AC541>=$AD$9,\"HABIL\",\"NO HABIL\"))","v":""}]
[null,"",null,null,null,null,null,null,0,null,null,null,{"$f":"IF(ISERROR(VLOOKUP(L542,POA!$A$2:$C$25,3,0)),\"\",VLOOKUP(L542,POA!$A$2:$C$25,3,0))","v":""}," ",{"$f":"IF(ISERROR(VLOOKUP(N542,POA!$A$2:$F$25,4,0)),\"\",VLOOKUP(N542,POA!$A$2:$F$25,4,0))","v":""},{"$f":"IF(ISERROR(VLOOKUP(L542,POA!$A$2:$C$25,2,0)),\"\",VLOOKUP(L542,POA!$A$2:$C$25,2,0))","v":""},null,{"$f":"IF(Q542=0,\"\",IF(Q540>=$R$9,\"HABIL\",\"NO HABIL\"))","v":""},null,"",{"$f":"IF(ISERROR(VLOOKUP(N542,POA!$A$2:$F$25,5,0)),\"\",VLOOKUP(N542,POA!$A$2:$F$25,5,0))","v":""},null,"",null,{"$f":"IF(ISERROR(F542/$Z$9),\"\",F542/$Z$9)","v":0},{"$f":"+IF(Y542<$Z$10,\"MIPYME\",\"NO CUMPLE\")","v":"MIPYME"},null,"",null,""]
[null,"",null,null,null,null,null,null,0,null,null,null,{"$f":"IF(ISERROR(VLOOKUP(L543,POA!$A$2:$C$25,3,0)),\"\",VLOOKUP(L543,POA!$A$2:$C$25,3,0))","v":""},null,{"$f":"IF(ISERROR(VLOOKUP(N543,POA!$A$2:$F$25,4,0)),\"\",VLOOKUP(N543,POA!$A$2:$F$25,4,0))","v":""},{"$f":"IF(ISERROR(VLOOKUP(L543,POA!$A$2:$C$25,2,0)),\"\",VLOOKUP(L543,POA!$A$2:$C$25,2,0))","v":""},null,{"$f":"IF(Q543=0,\"\",IF(Q540>=$R$9,\"HABIL\",\"NO HABIL\"))","v":""},null,"",{"$f":"IF(ISERROR(VLOOKUP(N543,POA!$A$2:$F$25,5,0)),\"\",VLOOKUP(N543,POA!$A$2:$F$25,5,0))","v":""},null,"",null,0,"MIPYME",null,"",null,""]
[null,"",null,null,{"$f":"IF(ISERROR(VLOOKUP(C544,#REF!,2,0)),\"\",VLOOKUP(C544,#REF!,2,0))","v":""},null,{"$f":"IF(ISERROR(VLOOKUP(C544,#REF!,4,0)),\"\",VLOOKUP(C544,#REF!,4,0))","v":""},null,0,null,null,null,{"$f":"IF(ISERROR(VLOOKUP(L544,POA!$A$2:$C$25,3,0)),\"\",VLOOKUP(L544,POA!$A$2:$C$25,3,0))","v":""},null,{"$f":"IF(ISERROR(VLOOKUP(N544,POA!$A$2:$F$25,4,0)),\"\",VLOOKUP(N544,POA!$A$2:$F$25,4,0))","v":""},{"$f":"IF(ISERROR(VLOOKUP(L544,POA!$A$2:$C$25,2,0)),\"\",VLOOKUP(L544,POA!$A$2:$C$25,2,0))","v":""},null,{"$f":"IF(L544=0,\"\",IF(Q540>=$R$9,\"HABIL\",\"NO HABIL\"))","v":""},null,"",{"$f":"IF(ISERROR(VLOOKUP(N544,POA!$A$2:$F$25,5,0)),\"\",VLOOKUP(N544,POA!$A$2:$F$25,5,0))","v":""},null,"",null,0,"MIPYME",null,"",null,""]
[null,"",null,null,{"$f":"IF(ISERROR(VLOOKUP(C545,#REF!,2,0)),\"\",VLOOKUP(C545,#REF!,2,0))","v":""},null,{"$f":"IF(ISERROR(VLOOKUP(C545,#REF!,4,0)),\"\",VLOOKUP(C545,#REF!,4,0))","v":""},null,0,null,null,null,{"$f":"IF(ISERROR(VLOOKUP(L545,POA!$A$2:$C$25,3,0)),\"\",VLOOKUP(L545,POA!$A$2:$C$25,3,0))","v":""},null,{"$f":"IF(ISERROR(VLOOKUP(N545,POA!$A$2:$F$25,4,0)),\"\",VLOOKUP(N545,POA!$A$2:$F$25,4,0))","v":""},{"$f":"IF(ISERROR(VLOOKUP(L545,POA!$A$2:$C$25,2,0)),\"\",VLOOKUP(L545,POA!$A$2:$C$25,2,0))","v":""},null,{"$f":"IF(L545=0,\"\",IF(Q540>=$R$9,\"HABIL\",\"NO HABIL\"))","v":""},null,"",{"$f":"IF(ISERROR(VLOOKUP(N545,POA!$A$2:$F$25,5,0)),\"\",VLOOKUP(N545,POA!$A$2:$F$25,5,0))","v":""},null,"",null,0,"MIPYME",null,"",null,""]
[null,"",null,null,{"$f":"IF(ISERROR(VLOOKUP(C546,#REF!,2,0)),\"\",VLOOKUP(C546,#REF!,2,0))","v":""},null,{"$f":"IF(ISERROR(VLOOKUP(C546,#REF!,4,0)),\"\",VLOOKUP(C546,#REF!,4,0))","v":""},null,0,null,null,null,{"$f":"IF(ISERROR(VLOOKUP(L546,POA!$A$2:$C$25,3,0)),\"\",VLOOKUP(L546,POA!$A$2:$C$25,3,0))","v":""},null,{"$f":"IF(ISERROR(VLOOKUP(N546,POA!$A$2:$F$25,4,0)),\"\",VLOOKUP(N546,POA!$A$2:$F$25,4,0))","v":""},{"$f":"IF(ISERROR(VLOOKUP(L546,POA!$A$2:$C$25,2,0)),\"\",VLOOKUP(L546,POA!$A$2:$C$25,2,0))","v":""},null,{"$f":"IF(L546=0,\"\",IF(Q540>=$R$9,\"HABIL\",\"NO HABIL\"))","v":""},null,"",{"$f":"IF(ISERROR(VLOOKUP(N546,POA!$A$2:$F$25,5,0)),\"\",VLOOKUP(N546,POA!$A$2:$F$25,5,0))","v":""},null,"",null,0,"MIPYME",null,"",null,""]
[null,{"$f":"IF(C547=\"\",\"\",B546+0.1)","v":""},null,null,{"$f":"IF(ISERROR(VLOOKUP(C547,#REF!,2,0)),\"\",VLOOKUP(C547,#REF!,2,0))","v":""},null,{"$f":"IF(ISERROR(VLOOKUP(C547,#REF!,4,0)),\"\",VLOOKUP(C547,#REF!,4,0))","v":""},null,{"$f":"IF(ISERROR(F547-H547),\"\",F547-H547)","v":0},null,null,null,{"$f":"IF(ISERROR(VLOOKUP(L547,POA!$A$2:$C$25,3,0)),\"\",VLOOKUP(L547,POA!$A$2:$C$25,3,0))","v":""},null,{"$f":"IF(ISERROR(VLOOKUP(N547,POA!$A$2:$F$25,4,0)),\"\",VLOOKUP(N547,POA!$A$2:$F$25,4,0))","v":""},{"$f":"IF(ISERROR(VLOOKUP(L547,POA!$A$2:$C$25,2,0)),\"\",VLOOKUP(L547,POA!$A$2:$C$25,2,0))","v":""},null,{"$f":"IF(L547=0,\"\",IF(Q540>=$R$9,\"HABIL\",\"NO HABIL\"))","v":""},null,"",{"$f":"IF(ISERROR(VLOOKUP(N547,POA!$A$2:$F$25,5,0)),\"\",VLOOKUP(N547,POA!$A$2:$F$25,5,0))","v":""},null,"",null,0,"MIPYME",null,"",null,""]
[null,{"$f":"IF(C548=\"\",\"\",B547+0.1)","v":""},null,null,{"$f":"IF(ISERROR(VLOOKUP(C548,#REF!,2,0)),\"\",VLOOKUP(C548,#REF!,2,0))","v":""},null,{"$f":"IF(ISERROR(VLOOKUP(C548,#REF!,4,0)),\"\",VLOOKUP(C548,#REF!,4,0))","v":""},null,{"$f":"IF(ISERROR(F548-H548),\"\",F548-H548)","v":0},null,null,null,{"$f":"IF(ISERROR(VLOOKUP(L548,POA!$A$2:$C$25,3,0)),\"\",VLOOKUP(L548,POA!$A$2:$C$25,3,0))","v":""},null,{"$f":"IF(ISERROR(VLOOKUP(N548,POA!$A$2:$F$25,4,0)),\"\",VLOOKUP(N548,POA!$A$2:$F$25,4,0))","v":""},{"$f":"IF(ISERROR(VLOOKUP(L548,POA!$A$2:$C$25,2,0)),\"\",VLOOKUP(L548,POA!$A$2:$C$25,2,0))","v":""},null,{"$f":"IF(L548=0,\"\",IF(Q540>=$R$9,\"HABIL\",\"NO HABIL\"))","v":""},null,"",{"$f":"IF(ISERROR(VLOOKUP(N548,POA!$A$2:$F$25,5,0)),\"\",VLOOKUP(N548,POA!$A$2:$F$25,5,0))","v":""},null,"",null,0,"MIPYME",null,"",null,""]
[null,{"$f":"IF(C549=\"\",\"\",B548+0.1)","v":""},null,null,{"$f":"IF(ISERROR(VLOOKUP(C549,#REF!,2,0)),\"\",VLOOKUP(C549,#REF!,2,0))","v":""},null,{"$f":"IF(ISERROR(VLOOKUP(C549,#REF!,4,0)),\"\",VLOOKUP(C549,#REF!,4,0))","v":""},null,{"$f":"IF(ISERROR(F549-H549),\"\",F549-H549)","v":0},null,null,null,{"$f":"IF(ISERROR(VLOOKUP(L549,POA!$A$2:$C$25,3,0)),\"\",VLOOKUP(L549,POA!$A$2:$C$25,3,0))","v":""},null,{"$f":"IF(ISERROR(VLOOKUP(N549,POA!$A$2:$F$25,4,0)),\"\",VLOOKUP(N549,POA!$A$2:$F$25,4,0))","v":""},{"$f":"IF(ISERROR(VLOOKUP(L549,POA!$A$2:$C$25,2,0)),\"\",VLOOKUP(L549,POA!$A$2:$C$25,2,0))","v":""},null,{"$f":"IF(L549=0,\"\",IF(Q540>=$R$9,\"HABIL\",\"NO HABIL\"))","v":""},null,"",{"$f":"IF(ISERROR(VLOOKUP(N549,POA!$A$2:$F$25,5,0)),\"\",VLOOKUP(N549,POA!$A$2:$F$25,5,0))","v":""},null,"",null,0,"MIPYME",null,"",null,""]
[null,{"$f":"IF(C550=\"\",\"\",B549+0.1)","v":""},null,null,{"$f":"IF(ISERROR(VLOOKUP(C550,#REF!,2,0)),\"\",VLOOKUP(C550,#REF!,2,0))","v":""},null,{"$f":"IF(ISERROR(VLOOKUP(C550,#REF!,4,0)),\"\",VLOOKUP(C550,#REF!,4,0))","v":""},null,{"$f":"IF(ISERROR(F550-H550),\"\",F550-H550)","v":0},null,null,null,{"$f":"IF(ISERROR(VLOOKUP(L550,POA!$A$2:$C$25,3,0)),\"\",VLOOKUP(L550,POA!$A$2:$C$25,3,0))","v":""},null,{"$f":"IF(ISERROR(VLOOKUP(N550,POA!$A$2:$F$25,4,0)),\"\",VLOOKUP(N550,POA!$A$2:$F$25,4,0))","v":""},{"$f":"IF(ISERROR(VLOOKUP(L550,POA!$A$2:$C$25,2,0)),\"\",VLOOKUP(L550,POA!$A$2:$C$25,2,0))","v":""},null,{"$f":"IF(L550=0,\"\",IF(Q540>=$R$9,\"HABIL\",\"NO HABIL\"))","v":""},null,"",{"$f":"IF(ISERROR(VLOOKUP(N550,POA!$A$2:$F$25,5,0)),\"\",VLOOKUP(N550,POA!$A$2:$F$25,5,0))","v":""},null,"",null,{"$f":"IF(ISERROR(F550/$Z$9),\"\",F550/$Z$9)","v":0},"MIPYME",null,"",null,""]
[null,50,null,{"$f":"IF(SUM(D552:D561)=0,\"\",SUM(D552:D561))","v":""},{"$f":"SUM(E552:E561)","v":0},{"$f":"SUM(F552:F561)","v":0},{"$f":"SUM(G552:G561)","v":0},{"$f":"SUM(H552:H561)","v":0},{"$f":"+F551-H551","v":0},{"$f":"SUM(J552:J561)","v":0},{"$f":"SUM(K552:K561)","v":0},1,{"$f":"IF(ISERROR(VLOOKUP(L551,POA!$A$2:$C$25,3,0)),\"\",VLOOKUP(L551,POA!$A$2:$C$25,3,0))","v":3}," ",{"$f":"+SUM(O552:O561)","v":0},{"$f":"IF(ISERROR(VLOOKUP(L551,POA!$A$2:$C$25,2,0)),\"\",VLOOKUP(L551,POA!$A$2:$C$25,2,0))","v":4167150295},{"$f":"SUM(E551/G551)","v":{"$error":"#DIV/0!"}},{"$f":"IF(Q551=0,\"\",IF(Q551>=$R$9,\"HABIL\",\"NO HABIL\"))","v":{"$error":"#DIV/0!"}},{"$f":"SUM(H551/F551)","v":{"$error":"#DIV/0!"}},{"$f":"IF(S551=0,\"\",IF(S551<=$T$9,\"HABIL\",\"NO HABIL\"))","v":{"$error":"#DIV/0!"}},{"$f":"+SUM(U552:U561)","v":0},{"$f":"SUM(J551/K551)","v":{"$error":"#DIV/0!"}},{"$f":"IF(V551=0,\"\",IF(V551>=$W$9,\"HABIL\",\"NO HABIL\"))","v":{"$error":"#DIV/0!"}},{"$f":"IF(R551=0,\"\",IF(R551=\"NO HABIL\",\"NO HABIL\",IF(T551=\"NO HABIL\",\"NO HABIL\",IF(W551=\"NO HABIL\",\"NO HABIL\",IF(W551=\"NO HABIL\",\"NO HABIL\",\"HABIL\")))))","v":{"$error":"#DIV/0!"}},null,null,{"$f":"SUM(J551/I551)","v":{"$error":"#DIV/0!"}},{"$f":"IF(AA551=0,\"\",IF(AA551>=$AB$9,\"HABIL\",\"NO HABIL\"))","v":{"$error":"#DIV/0!"}},{"$f":"SUM(J551/F551)","v":{"$error":"#DIV/0!"}},{"$f":"IF(AC551=0,\"\",IF(AC551>=$AD$9,\"HABIL\",\"NO HABIL\"))","v":{"$error":"#DIV/0!"}},{"$f":"IF(AB551=0,\"\",IF(AB551=\"NO HABIL\",\"NO HABIL\",IF(AD551=\"NO HABIL\",\"NO HABIL\",IF(AD551=\"NO HABIL\",\"NO HABIL\",\"HABIL\"))))","v":{"$error":"#DIV/0!"}}]
[null,{"$f":"IF(C552=\"\",\"\",B551+0.1)","v":""},null,null,null,null,null,null,{"$f":"IF(ISERROR(F552-H552),\"\",F552-H552)","v":0},null,null,null,{"$f":"IF(ISERROR(VLOOKUP(L552,POA!$A$2:$C$25,3,0)),\"\",VLOOKUP(L552,POA!$A$2:$C$25,3,0))","v":""}," ",{"$f":"IF(ISERROR(VLOOKUP(N552,POA!$A$2:$F$25,4,0)),\"\",VLOOKUP(N552,POA!$A$2:$F$25,4,0))","v":""},{"$f":"IF(ISERROR(VLOOKUP(L552,POA!$A$2:$C$25,2,0)),\"\",VLOOKUP(L552,POA!$A$2:$C$25,2,0))","v":""},null,{"$f":"IF(Q552=0,\"\",IF(Q551>=$R$9,\"HABIL\",\"NO HABIL\"))","v":""},null,{"$f":"IF(S552=0,\"\",IF(S552<=$T$9,\"HABIL\",\"NO HABIL\"))","v":""},{"$f":"IF(ISERROR(VLOOKUP(N552,POA!$A$2:$F$25,5,0)),\"\",VLOOKUP(N552,POA!$A$2:$F$25,5,0))","v":""},null,{"$f":"IF(V552=0,\"\",IF(V552>=$W$9,\"HABIL\",\"NO HABIL\"))","v":""},null,{"$f":"IF(ISERROR(F552/$Z$9),\"\",F552/$Z$9)","v":0},{"$f":"+IF(Y552<$Z$10,\"MIPYME\",\"NO CUMPLE\")","v":"MIPYME"},null,{"$f":"IF(AA552=0,\"\",IF(AA552>=$AB$9,\"HABIL\",\"NO HABIL\"))","v":""},null,{"$f":"IF(AC552=0,\"\",IF(AC552>=$AD$9,\"HABIL\",\"NO HABIL\"))","v":""}]
[null,"",null,null,null,null,null,null,0,null,null,null,{"$f":"IF(ISERROR(VLOOKUP(L553,POA!$A$2:$C$25,3,0)),\"\",VLOOKUP(L553,POA!$A$2:$C$25,3,0))","v":""}," ",{"$f":"IF(ISERROR(VLOOKUP(N553,POA!$A$2:$F$25,4,0)),\"\",VLOOKUP(N553,POA!$A$2:$F$25,4,0))","v":""},{"$f":"IF(ISERROR(VLOOKUP(L553,POA!$A$2:$C$25,2,0)),\"\",VLOOKUP(L553,POA!$A$2:$C$25,2,0))","v":""},null,{"$f":"IF(Q553=0,\"\",IF(Q551>=$R$9,\"HABIL\",\"NO HABIL\"))","v":""},null,"",{"$f":"IF(ISERROR(VLOOKUP(N553,POA!$A$2:$F$25,5,0)),\"\",VLOOKUP(N553,POA!$A$2:$F$25,5,0))","v":""},null,"",null,{"$f":"IF(ISERROR(F553/$Z$9),\"\",F553/$Z$9)","v":0},{"$f":"+IF(Y553<$Z$10,\"MIPYME\",\"NO CUMPLE\")","v":"MIPYME"},null,"",null,""]
[null,"",null,null,null,null,null,null,0,null,null,null,{"$f":"IF(ISERROR(VLOOKUP(L554,POA!$A$2:$C$25,3,0)),\"\",VLOOKUP(L554,POA!$A$2:$C$25,3,0))","v":""},null,{"$f":"IF(ISERROR(VLOOKUP(N554,POA!$A$2:$F$25,4,0)),\"\",VLOOKUP(N554,POA!$A$2:$F$25,4,0))","v":""},{"$f":"IF(ISERROR(VLOOKUP(L554,POA!$A$2:$C$25,2,0)),\"\",VLOOKUP(L554,POA!$A$2:$C$25,2,0))","v":""},null,{"$f":"IF(Q554=0,\"\",IF(Q551>=$R$9,\"HABIL\",\"NO HABIL\"))","v":""},null,"",{"$f":"IF(ISERROR(VLOOKUP(N554,POA!$A$2:$F$25,5,0)),\"\",VLOOKUP(N554,POA!$A$2:$F$25,5,0))","v":""},null,"",null,0,"MIPYME",null,"",null,""]
[null,"",null,null,{"$f":"IF(ISERROR(VLOOKUP(C555,#REF!,2,0)),\"\",VLOOKUP(C555,#REF!,2,0))","v":""},null,{"$f":"IF(ISERROR(VLOOKUP(C555,#REF!,4,0)),\"\",VLOOKUP(C555,#REF!,4,0))","v":""},null,0,null,null,null,{"$f":"IF(ISERROR(VLOOKUP(L555,POA!$A$2:$C$25,3,0)),\"\",VLOOKUP(L555,POA!$A$2:$C$25,3,0))","v":""},null,{"$f":"IF(ISERROR(VLOOKUP(N555,POA!$A$2:$F$25,4,0)),\"\",VLOOKUP(N555,POA!$A$2:$F$25,4,0))","v":""},{"$f":"IF(ISERROR(VLOOKUP(L555,POA!$A$2:$C$25,2,0)),\"\",VLOOKUP(L555,POA!$A$2:$C$25,2,0))","v":""},null,{"$f":"IF(L555=0,\"\",IF(Q551>=$R$9,\"HABIL\",\"NO HABIL\"))","v":""},null,"",{"$f":"IF(ISERROR(VLOOKUP(N555,POA!$A$2:$F$25,5,0)),\"\",VLOOKUP(N555,POA!$A$2:$F$25,5,0))","v":""},null,"",null,0,"MIPYME",null,"",null,""]
[null,"",null,null,{"$f":"IF(ISERROR(VLOOKUP(C556,#REF!,2,0)),\"\",VLOOKUP(C556,#REF!,2,0))","v":""},null,{"$f":"IF(ISERROR(VLOOKUP(C556,#REF!,4,0)),\"\",VLOOKUP(C556,#REF!,4,0))","v":""},null,0,null,null,null,{"$f":"IF(ISERROR(VLOOKUP(L556,POA!$A$2:$C$25,3,0)),\"\",VLOOKUP(L556,POA!$A$2:$C$25,3,0))","v":""},null,{"$f":"IF(ISERROR(VLOOKUP(N556,POA!$A$2:$F$25,4,0)),\"\",VLOOKUP(N556,POA!$A$2:$F$25,4,0))","v":""},{"$f":"IF(ISERROR(VLOOKUP(L556,POA!$A$2:$C$25,2,0)),\"\",VLOOKUP(L556,POA!$A$2:$C$25,2,0))","v":""},null,{"$f":"IF(L556=0,\"\",IF(Q551>=$R$9,\"HABIL\",\"NO HABIL\"))","v":""},null,"",{"$f":"IF(ISERROR(VLOOKUP(N556,POA!$A$2:$F$25,5,0)),\"\",VLOOKUP(N556,POA!$A$2:$F$25,5,0))","v":""},null,"",null,0,"MIPYME",null,"",null,""]
[null,"",null,null,{"$f":"IF(ISERROR(VLOOKUP(C557,#REF!,2,0)),\"\",VLOOKUP(C557,#REF!,2,0))","v":""},null,{"$f":"IF(ISERROR(VLOOKUP(C557,#REF!,4,0)),\"\",VLOOKUP(C557,#REF!,4,0))","v":""},null,0,null,null,null,{"$f":"IF(ISERROR(VLOOKUP(L557,POA!$A$2:$C$25,3,0)),\"\",VLOOKUP(L557,POA!$A$2:$C$25,3,0))","v":""},null,{"$f":"IF(ISERROR(VLOOKUP(N557,POA!$A$2:$F$25,4,0)),\"\",VLOOKUP(N557,POA!$A$2:$F$25,4,0))","v":""},{"$f":"IF(ISERROR(VLOOKUP(L557,POA!$A$2:$C$25,2,0)),\"\",VLOOKUP(L557,POA!$A$2:$C$25,2,0))","v":""},null,{"$f":"IF(L557=0,\"\",IF(Q551>=$R$9,\"HABIL\",\"NO HABIL\"))","v":""},null,"",{"$f":"IF(ISERROR(VLOOKUP(N557,POA!$A$2:$F$25,5,0)),\"\",VLOOKUP(N557,POA!$A$2:$F$25,5,0))","v":""},null,"",null,0,"MIPYME",null,"",null,""]
[null,{"$f":"IF(C558=\"\",\"\",B557+0.1)","v":""},null,null,{"$f":"IF(ISERROR(VLOOKUP(C558,#REF!,2,0)),\"\",VLOOKUP(C558,#REF!,2,0))","v":""},null,{"$f":"IF(ISERROR(VLOOKUP(C558,#REF!,4,0)),\"\",VLOOKUP(C558,#REF!,4,0))","v":""},null,{"$f":"IF(ISERROR(F558-H558),\"\",F558-H558)","v":0},null,null,null,{"$f":"IF(ISERROR(VLOOKUP(L558,POA!$A$2:$C$25,3,0)),\"\",VLOOKUP(L558,POA!$A$2:$C$25,3,0))","v":""},null,{"$f":"IF(ISERROR(VLOOKUP(N558,POA!$A$2:$F$25,4,0)),\"\",VLOOKUP(N558,POA!$A$2:$F$25,4,0))","v":""},{"$f":"IF(ISERROR(VLOOKUP(L558,POA!$A$2:$C$25,2,0)),\"\",VLOOKUP(L558,POA!$A$2:$C$25,2,0))","v":""},null,{"$f":"IF(L558=0,\"\",IF(Q551>=$R$9,\"HABIL\",\"NO HABIL\"))","v":""},null,"",{"$f":"IF(ISERROR(VLOOKUP(N558,POA!$A$2:$F$25,5,0)),\"\",VLOOKUP(N558,POA!$A$2:$F$25,5,0))","v":""},null,"",null,0,"MIPYME",null,"",null,""]
[null,{"$f":"IF(C559=\"\",\"\",B558+0.1)","v":""},null,null,{"$f":"IF(ISERROR(VLOOKUP(C559,#REF!,2,0)),\"\",VLOOKUP(C559,#REF!,2,0))","v":""},null,{"$f":"IF(ISERROR(VLOOKUP(C559,#REF!,4,0)),\"\",VLOOKUP(C559,#REF!,4,0))","v":""},null,{"$f":"IF(ISERROR(F559-H559),\"\",F559-H559)","v":0},null,null,null,{"$f":"IF(ISERROR(VLOOKUP(L559,POA!$A$2:$C$25,3,0)),\"\",VLOOKUP(L559,POA!$A$2:$C$25,3,0))","v":""},null,{"$f":"IF(ISERROR(VLOOKUP(N559,POA!$A$2:$F$25,4,0)),\"\",VLOOKUP(N559,POA!$A$2:$F$25,4,0))","v":""},{"$f":"IF(ISERROR(VLOOKUP(L559,POA!$A$2:$C$25,2,0)),\"\",VLOOKUP(L559,POA!$A$2:$C$25,2,0))","v":""},null,{"$f":"IF(L559=0,\"\",IF(Q551>=$R$9,\"HABIL\",\"NO HABIL\"))","v":""},null,"",{"$f":"IF(ISERROR(VLOOKUP(N559,POA!$A$2:$F$25,5,0)),\"\",VLOOKUP(N559,POA!$A$2:$F$25,5,0))","v":""},null,"",null,0,"MIPYME",null,"",null,""]
[null,{"$f":"IF(C560=\"\",\"\",B559+0.1)","v":""},null,null,{"$f":"IF(ISERROR(VLOOKUP(C560,#REF!,2,0)),\"\",VLOOKUP(C560,#REF!,2,0))","v":""},null,{"$f":"IF(ISERROR(VLOOKUP(C560,#REF!,4,0)),\"\",VLOOKUP(C560,#REF!,4,0))","v":""},null,{"$f":"IF(ISERROR(F560-H560),\"\",F560-H560)","v":0},null,null,null,{"$f":"IF(ISERROR(VLOOKUP(L560,POA!$A$2:$C$25,3,0)),\"\",VLOOKUP(L560,POA!$A$2:$C$25,3,0))","v":""},null,{"$f":"IF(ISERROR(VLOOKUP(N560,POA!$A$2:$F$25,4,0)),\"\",VLOOKUP(N560,POA!$A$2:$F$25,4,0))","v":""},{"$f":"IF(ISERROR(VLOOKUP(L560,POA!$A$2:$C$25,2,0)),\"\",VLOOKUP(L560,POA!$A$2:$C$25,2,0))","v":""},null,{"$f":"IF(L560=0,\"\",IF(Q551>=$R$9,\"HABIL\",\"NO HABIL\"))","v":""},null,"",{"$f":"IF(ISERROR(VLOOKUP(N560,POA!$A$2:$F$25,5,0)),\"\",VLOOKUP(N560,POA!$A$2:$F$25,5,0))","v":""},null,"",null,0,"MIPYME",null,"",null,""]
[null,{"$f":"IF(C561=\"\",\"\",B560+0.1)","v":""},null,null,{"$f":"IF(ISERROR(VLOOKUP(C561,#REF!,2,0)),\"\",VLOOKUP(C561,#REF!,2,0))","v":""},null,{"$f":"IF(ISERROR(VLOOKUP(C561,#REF!,4,0)),\"\",VLOOKUP(C561,#REF!,4,0))","v":""},null,{"$f":"IF(ISERROR(F561-H561),\"\",F561-H561)","v":0},null,null,null,{"$f":"IF(ISERROR(VLOOKUP(L561,POA!$A$2:$C$25,3,0)),\"\",VLOOKUP(L561,POA!$A$2:$C$25,3,0))","v":""},null,{"$f":"IF(ISERROR(VLOOKUP(N561,POA!$A$2:$F$25,4,0)),\"\",VLOOKUP(N561,POA!$A$2:$F$25,4,0))","v":""},{"$f":"IF(ISERROR(VLOOKUP(L561,POA!$A$2:$C$25,2,0)),\"\",VLOOKUP(L561,POA!$A$2:$C$25,2,0))","v":""},null,{"$f":"IF(L561=0,\"\",IF(Q551>=$R$9,\"HABIL\",\"NO HABIL\"))","v":""},null,"",{"$f":"IF(ISERROR(VLOOKUP(N561,POA!$A$2:$F$25,5,0)),\"\",VLOOKUP(N561,POA!$A$2:$F$25,5,0))","v":""},null,"",null,{"$f":"IF(ISERROR(F561/$Z$9),\"\",F561/$Z$9)","v":0},"MIPYME",null,"",null,""]
[null,51,null,{"$f":"IF(SUM(D563:D572)=0,\"\",SUM(D563:D572))","v":""},{"$f":"SUM(E563:E572)","v":0},{"$f":"SUM(F563:F572)","v":0},{"$f":"SUM(G563:G572)","v":0},{"$f":"SUM(H563:H572)","v":0},{"$f":"+F562-H562","v":0},{"$f":"SUM(J563:J572)","v":0},{"$f":"SUM(K563:K572)","v":0},1,{"$f":"IF(ISERROR(VLOOKUP(L562,POA!$A$2:$C$25,3,0)),\"\",VLOOKUP(L562,POA!$A$2:$C$25,3,0))","v":3}," ",{"$f":"+SUM(O563:O572)","v":0},{"$f":"IF(ISERROR(VLOOKUP(L562,POA!$A$2:$C$25,2,0)),\"\",VLOOKUP(L562,POA!$A$2:$C$25,2,0))","v":4167150295},{"$f":"SUM(E562/G562)","v":{"$error":"#DIV/0!"}},{"$f":"IF(Q562=0,\"\",IF(Q562>=$R$9,\"HABIL\",\"NO HABIL\"))","v":{"$error":"#DIV/0!"}},{"$f":"SUM(H562/F562)","v":{"$error":"#DIV/0!"}},{"$f":"IF(S562=0,\"\",IF(S562<=$T$9,\"HABIL\",\"NO HABIL\"))","v":{"$error":"#DIV/0!"}},{"$f":"+SUM(U563:U572)","v":0},{"$f":"SUM(J562/K562)","v":{"$error":"#DIV/0!"}},{"$f":"IF(V562=0,\"\",IF(V562>=$W$9,\"HABIL\",\"NO HABIL\"))","v":{"$error":"#DIV/0!"}},{"$f":"IF(R562=0,\"\",IF(R562=\"NO HABIL\",\"NO HABIL\",IF(T562=\"NO HABIL\",\"NO HABIL\",IF(W562=\"NO HABIL\",\"NO HABIL\",IF(W562=\"NO HABIL\",\"NO HABIL\",\"HABIL\")))))","v":{"$error":"#DIV/0!"}},null,null,{"$f":"SUM(J562/I562)","v":{"$error":"#DIV/0!"}},{"$f":"IF(AA562=0,\"\",IF(AA562>=$AB$9,\"HABIL\",\"NO HABIL\"))","v":{"$error":"#DIV/0!"}},{"$f":"SUM(J562/F562)","v":{"$error":"#DIV/0!"}},{"$f":"IF(AC562=0,\"\",IF(AC562>=$AD$9,\"HABIL\",\"NO HABIL\"))","v":{"$error":"#DIV/0!"}},{"$f":"IF(AB562=0,\"\",IF(AB562=\"NO HABIL\",\"NO HABIL\",IF(AD562=\"NO HABIL\",\"NO HABIL\",IF(AD562=\"NO HABIL\",\"NO HABIL\",\"HABIL\"))))","v":{"$error":"#DIV/0!"}}]
[null,{"$f":"IF(C563=\"\",\"\",B562+0.1)","v":""},null,null,null,null,null,null,{"$f":"IF(ISERROR(F563-H563),\"\",F563-H563)","v":0},null,null,null,{"$f":"IF(ISERROR(VLOOKUP(L563,POA!$A$2:$C$25,3,0)),\"\",VLOOKUP(L563,POA!$A$2:$C$25,3,0))","v":""}," ",{"$f":"IF(ISERROR(VLOOKUP(N563,POA!$A$2:$F$25,4,0)),\"\",VLOOKUP(N563,POA!$A$2:$F$25,4,0))","v":""},{"$f":"IF(ISERROR(VLOOKUP(L563,POA!$A$2:$C$25,2,0)),\"\",VLOOKUP(L563,POA!$A$2:$C$25,2,0))","v":""},null,{"$f":"IF(Q563=0,\"\",IF(Q562>=$R$9,\"HABIL\",\"NO HABIL\"))","v":""},null,{"$f":"IF(S563=0,\"\",IF(S563<=$T$9,\"HABIL\",\"NO HABIL\"))","v":""},{"$f":"IF(ISERROR(VLOOKUP(N563,POA!$A$2:$F$25,5,0)),\"\",VLOOKUP(N563,POA!$A$2:$F$25,5,0))","v":""},null,{"$f":"IF(V563=0,\"\",IF(V563>=$W$9,\"HABIL\",\"NO HABIL\"))","v":""},null,{"$f":"IF(ISERROR(F563/$Z$9),\"\",F563/$Z$9)","v":0},{"$f":"+IF(Y563<$Z$10,\"MIPYME\",\"NO CUMPLE\")","v":"MIPYME"},null,{"$f":"IF(AA563=0,\"\",IF(AA563>=$AB$9,\"HABIL\",\"NO HABIL\"))","v":""},null,{"$f":"IF(AC563=0,\"\",IF(AC563>=$AD$9,\"HABIL\",\"NO HABIL\"))","v":""}]
[null,"",null,null,null,null,null,null,0,null,null,null,{"$f":"IF(ISERROR(VLOOKUP(L564,POA!$A$2:$C$25,3,0)),\"\",VLOOKUP(L564,POA!$A$2:$C$25,3,0))","v":""}," ",{"$f":"IF(ISERROR(VLOOKUP(N564,POA!$A$2:$F$25,4,0)),\"\",VLOOKUP(N564,POA!$A$2:$F$25,4,0))","v":""},{"$f":"IF(ISERROR(VLOOKUP(L564,POA!$A$2:$C$25,2,0)),\"\",VLOOKUP(L564,POA!$A$2:$C$25,2,0))","v":""},null,{"$f":"IF(Q564=0,\"\",IF(Q562>=$R$9,\"HABIL\",\"NO HABIL\"))","v":""},null,"",{"$f":"IF(ISERROR(VLOOKUP(N564,POA!$A$2:$F$25,5,0)),\"\",VLOOKUP(N564,POA!$A$2:$F$25,5,0))","v":""},null,"",null,{"$f":"IF(ISERROR(F564/$Z$9),\"\",F564/$Z$9)","v":0},{"$f":"+IF(Y564<$Z$10,\"MIPYME\",\"NO CUMPLE\")","v":"MIPYME"},null,"",null,""]
[null,"",null,null,null,null,null,null,0,null,null,null,{"$f":"IF(ISERROR(VLOOKUP(L565,POA!$A$2:$C$25,3,0)),\"\",VLOOKUP(L565,POA!$A$2:$C$25,3,0))","v":""},null,{"$f":"IF(ISERROR(VLOOKUP(N565,POA!$A$2:$F$25,4,0)),\"\",VLOOKUP(N565,POA!$A$2:$F$25,4,0))","v":""},{"$f":"IF(ISERROR(VLOOKUP(L565,POA!$A$2:$C$25,2,0)),\"\",VLOOKUP(L565,POA!$A$2:$C$25,2,0))","v":""},null,{"$f":"IF(Q565=0,\"\",IF(Q562>=$R$9,\"HABIL\",\"NO HABIL\"))","v":""},null,"",{"$f":"IF(ISERROR(VLOOKUP(N565,POA!$A$2:$F$25,5,0)),\"\",VLOOKUP(N565,POA!$A$2:$F$25,5,0))","v":""},null,"",null,0,"MIPYME",null,"",null,""]
[null,"",null,null,{"$f":"IF(ISERROR(VLOOKUP(C566,#REF!,2,0)),\"\",VLOOKUP(C566,#REF!,2,0))","v":""},null,{"$f":"IF(ISERROR(VLOOKUP(C566,#REF!,4,0)),\"\",VLOOKUP(C566,#REF!,4,0))","v":""},null,0,null,null,null,{"$f":"IF(ISERROR(VLOOKUP(L566,POA!$A$2:$C$25,3,0)),\"\",VLOOKUP(L566,POA!$A$2:$C$25,3,0))","v":""},null,{"$f":"IF(ISERROR(VLOOKUP(N566,POA!$A$2:$F$25,4,0)),\"\",VLOOKUP(N566,POA!$A$2:$F$25,4,0))","v":""},{"$f":"IF(ISERROR(VLOOKUP(L566,POA!$A$2:$C$25,2,0)),\"\",VLOOKUP(L566,POA!$A$2:$C$25,2,0))","v":""},null,{"$f":"IF(L566=0,\"\",IF(Q562>=$R$9,\"HABIL\",\"NO HABIL\"))","v":""},null,"",{"$f":"IF(ISERROR(VLOOKUP(N566,POA!$A$2:$F$25,5,0)),\"\",VLOOKUP(N566,POA!$A$2:$F$25,5,0))","v":""},null,"",null,0,"MIPYME",null,"",null,""]
[null,"",null,null,{"$f":"IF(ISERROR(VLOOKUP(C567,#REF!,2,0)),\"\",VLOOKUP(C567,#REF!,2,0))","v":""},null,{"$f":"IF(ISERROR(VLOOKUP(C567,#REF!,4,0)),\"\",VLOOKUP(C567,#REF!,4,0))","v":""},null,0,null,null,null,{"$f":"IF(ISERROR(VLOOKUP(L567,POA!$A$2:$C$25,3,0)),\"\",VLOOKUP(L567,POA!$A$2:$C$25,3,0))","v":""},null,{"$f":"IF(ISERROR(VLOOKUP(N567,POA!$A$2:$F$25,4,0)),\"\",VLOOKUP(N567,POA!$A$2:$F$25,4,0))","v":""},{"$f":"IF(ISERROR(VLOOKUP(L567,POA!$A$2:$C$25,2,0)),\"\",VLOOKUP(L567,POA!$A$2:$C$25,2,0))","v":""},null,{"$f":"IF(L567=0,\"\",IF(Q562>=$R$9,\"HABIL\",\"NO HABIL\"))","v":""},null,"",{"$f":"IF(ISERROR(VLOOKUP(N567,POA!$A$2:$F$25,5,0)),\"\",VLOOKUP(N567,POA!$A$2:$F$25,5,0))","v":""},null,"",null,0,"MIPYME",null,"",null,""]
[null,"",null,null,{"$f":"IF(ISERROR(VLOOKUP(C568,#REF!,2,0)),\"\",VLOOKUP(C568,#REF!,2,0))","v":""},null,{"$f":"IF(ISERROR(VLOOKUP(C568,#REF!,4,0)),\"\",VLOOKUP(C568,#REF!,4,0))","v":""},null,0,null,null,null,{"$f":"IF(ISERROR(VLOOKUP(L568,POA!$A$2:$C$25,3,0)),\"\",VLOOKUP(L568,POA!$A$2:$C$25,3,0))","v":""},null,{"$f":"IF(ISERROR(VLOOKUP(N568,POA!$A$2:$F$25,4,0)),\"\",VLOOKUP(N568,POA!$A$2:$F$25,4,0))","v":""},{"$f":"IF(ISERROR(VLOOKUP(L568,POA!$A$2:$C$25,2,0)),\"\",VLOOKUP(L568,POA!$A$2:$C$25,2,0))","v":""},null,{"$f":"IF(L568=0,\"\",IF(Q562>=$R$9,\"HABIL\",\"NO HABIL\"))","v":""},null,"",{"$f":"IF(ISERROR(VLOOKUP(N568,POA!$A$2:$F$25,5,0)),\"\",VLOOKUP(N568,POA!$A$2:$F$25,5,0))","v":""},null,"",null,0,"MIPYME",null,"",null,""]
[null,{"$f":"IF(C569=\"\",\"\",B568+0.1)","v":""},null,null,{"$f":"IF(ISERROR(VLOOKUP(C569,#REF!,2,0)),\"\",VLOOKUP(C569,#REF!,2,0))","v":""},null,{"$f":"IF(ISERROR(VLOOKUP(C569,#REF!,4,0)),\"\",VLOOKUP(C569,#REF!,4,0))","v":""},null,{"$f":"IF(ISERROR(F569-H569),\"\",F569-H569)","v":0},null,null,null,{"$f":"IF(ISERROR(VLOOKUP(L569,POA!$A$2:$C$25,3,0)),\"\",VLOOKUP(L569,POA!$A$2:$C$25,3,0))","v":""},null,{"$f":"IF(ISERROR(VLOOKUP(N569,POA!$A$2:$F$25,4,0)),\"\",VLOOKUP(N569,POA!$A$2:$F$25,4,0))","v":""},{"$f":"IF(ISERROR(VLOOKUP(L569,POA!$A$2:$C$25,2,0)),\"\",VLOOKUP(L569,POA!$A$2:$C$25,2,0))","v":""},null,{"$f":"IF(L569=0,\"\",IF(Q562>=$R$9,\"HABIL\",\"NO HABIL\"))","v":""},null,"",{"$f":"IF(ISERROR(VLOOKUP(N569,POA!$A$2:$F$25,5,0)),\"\",VLOOKUP(N569,POA!$A$2:$F$25,5,0))","v":""},null,"",null,0,"MIPYME",null,"",null,""]
[null,{"$f":"IF(C570=\"\",\"\",B569+0.1)","v":""},null,null,{"$f":"IF(ISERROR(VLOOKUP(C570,#REF!,2,0)),\"\",VLOOKUP(C570,#REF!,2,0))","v":""},null,{"$f":"IF(ISERROR(VLOOKUP(C570,#REF!,4,0)),\"\",VLOOKUP(C570,#REF!,4,0))","v":""},null,{"$f":"IF(ISERROR(F570-H570),\"\",F570-H570)","v":0},null,null,null,{"$f":"IF(ISERROR(VLOOKUP(L570,POA!$A$2:$C$25,3,0)),\"\",VLOOKUP(L570,POA!$A$2:$C$25,3,0))","v":""},null,{"$f":"IF(ISERROR(VLOOKUP(N570,POA!$A$2:$F$25,4,0)),\"\",VLOOKUP(N570,POA!$A$2:$F$25,4,0))","v":""},{"$f":"IF(ISERROR(VLOOKUP(L570,POA!$A$2:$C$25,2,0)),\"\",VLOOKUP(L570,POA!$A$2:$C$25,2,0))","v":""},null,{"$f":"IF(L570=0,\"\",IF(Q562>=$R$9,\"HABIL\",\"NO HABIL\"))","v":""},null,"",{"$f":"IF(ISERROR(VLOOKUP(N570,POA!$A$2:$F$25,5,0)),\"\",VLOOKUP(N570,POA!$A$2:$F$25,5,0))","v":""},null,"",null,0,"MIPYME",null,"",null,""]
[null,{"$f":"IF(C571=\"\",\"\",B570+0.1)","v":""},null,null,{"$f":"IF(ISERROR(VLOOKUP(C571,#REF!,2,0)),\"\",VLOOKUP(C571,#REF!,2,0))","v":""},null,{"$f":"IF(ISERROR(VLOOKUP(C571,#REF!,4,0)),\"\",VLOOKUP(C571,#REF!,4,0))","v":""},null,{"$f":"IF(ISERROR(F571-H571),\"\",F571-H571)","v":0},null,null,null,{"$f":"IF(ISERROR(VLOOKUP(L571,POA!$A$2:$C$25,3,0)),\"\",VLOOKUP(L571,POA!$A$2:$C$25,3,0))","v":""},null,{"$f":"IF(ISERROR(VLOOKUP(N571,POA!$A$2:$F$25,4,0)),\"\",VLOOKUP(N571,POA!$A$2:$F$25,4,0))","v":""},{"$f":"IF(ISERROR(VLOOKUP(L571,POA!$A$2:$C$25,2,0)),\"\",VLOOKUP(L571,POA!$A$2:$C$25,2,0))","v":""},null,{"$f":"IF(L571=0,\"\",IF(Q562>=$R$9,\"HABIL\",\"NO HABIL\"))","v":""},null,"",{"$f":"IF(ISERROR(VLOOKUP(N571,POA!$A$2:$F$25,5,0)),\"\",VLOOKUP(N571,POA!$A$2:$F$25,5,0))","v":""},null,"",null,0,"MIPYME",null,"",null,""]
[null,{"$f":"IF(C572=\"\",\"\",B571+0.1)","v":""},null,null,{"$f":"IF(ISERROR(VLOOKUP(C572,#REF!,2,0)),\"\",VLOOKUP(C572,#REF!,2,0))","v":""},null,{"$f":"IF(ISERROR(VLOOKUP(C572,#REF!,4,0)),\"\",VLOOKUP(C572,#REF!,4,0))","v":""},null,{"$f":"IF(ISERROR(F572-H572),\"\",F572-H572)","v":0},null,null,null,{"$f":"IF(ISERROR(VLOOKUP(L572,POA!$A$2:$C$25,3,0)),\"\",VLOOKUP(L572,POA!$A$2:$C$25,3,0))","v":""},null,{"$f":"IF(ISERROR(VLOOKUP(N572,POA!$A$2:$F$25,4,0)),\"\",VLOOKUP(N572,POA!$A$2:$F$25,4,0))","v":""},{"$f":"IF(ISERROR(VLOOKUP(L572,POA!$A$2:$C$25,2,0)),\"\",VLOOKUP(L572,POA!$A$2:$C$25,2,0))","v":""},null,{"$f":"IF(L572=0,\"\",IF(Q562>=$R$9,\"HABIL\",\"NO HABIL\"))","v":""},null,"",{"$f":"IF(ISERROR(VLOOKUP(N572,POA!$A$2:$F$25,5,0)),\"\",VLOOKUP(N572,POA!$A$2:$F$25,5,0))","v":""},null,"",null,{"$f":"IF(ISERROR(F572/$Z$9),\"\",F572/$Z$9)","v":0},"MIPYME",null,"",null,""]
[null,52,null,{"$f":"IF(SUM(D574:D583)=0,\"\",SUM(D574:D583))","v":""},{"$f":"SUM(E574:E583)","v":0},{"$f":"SUM(F574:F583)","v":0},{"$f":"SUM(G574:G583)","v":0},{"$f":"SUM(H574:H583)","v":0},{"$f":"+F573-H573","v":0},{"$f":"SUM(J574:J583)","v":0},{"$f":"SUM(K574:K583)","v":0},1,{"$f":"IF(ISERROR(VLOOKUP(L573,POA!$A$2:$C$25,3,0)),\"\",VLOOKUP(L573,POA!$A$2:$C$25,3,0))","v":3}," ",{"$f":"+SUM(O574:O583)","v":0},{"$f":"IF(ISERROR(VLOOKUP(L573,POA!$A$2:$C$25,2,0)),\"\",VLOOKUP(L573,POA!$A$2:$C$25,2,0))","v":4167150295},{"$f":"SUM(E573/G573)","v":{"$error":"#DIV/0!"}},{"$f":"IF(Q573=0,\"\",IF(Q573>=$R$9,\"HABIL\",\"NO HABIL\"))","v":{"$error":"#DIV/0!"}},{"$f":"SUM(H573/F573)","v":{"$error":"#DIV/0!"}},{"$f":"IF(S573=0,\"\",IF(S573<=$T$9,\"HABIL\",\"NO HABIL\"))","v":{"$error":"#DIV/0!"}},{"$f":"+SUM(U574:U583)","v":0},{"$f":"SUM(J573/K573)","v":{"$error":"#DIV/0!"}},{"$f":"IF(V573=0,\"\",IF(V573>=$W$9,\"HABIL\",\"NO HABIL\"))","v":{"$error":"#DIV/0!"}},{"$f":"IF(R573=0,\"\",IF(R573=\"NO HABIL\",\"NO HABIL\",IF(T573=\"NO HABIL\",\"NO HABIL\",IF(W573=\"NO HABIL\",\"NO HABIL\",IF(W573=\"NO HABIL\",\"NO HABIL\",\"HABIL\")))))","v":{"$error":"#DIV/0!"}},null,null,{"$f":"SUM(J573/I573)","v":{"$error":"#DIV/0!"}},{"$f":"IF(AA573=0,\"\",IF(AA573>=$AB$9,\"HABIL\",\"NO HABIL\"))","v":{"$error":"#DIV/0!"}},{"$f":"SUM(J573/F573)","v":{"$error":"#DIV/0!"}},{"$f":"IF(AC573=0,\"\",IF(AC573>=$AD$9,\"HABIL\",\"NO HABIL\"))","v":{"$error":"#DIV/0!"}},{"$f":"IF(AB573=0,\"\",IF(AB573=\"NO HABIL\",\"NO HABIL\",IF(AD573=\"NO HABIL\",\"NO HABIL\",IF(AD573=\"NO HABIL\",\"NO HABIL\",\"HABIL\"))))","v":{"$error":"#DIV/0!"}}]
[null,{"$f":"IF(C574=\"\",\"\",B573+0.1)","v":""},null,null,null,null,null,null,{"$f":"IF(ISERROR(F574-H574),\"\",F574-H574)","v":0},null,null,null,{"$f":"IF(ISERROR(VLOOKUP(L574,POA!$A$2:$C$25,3,0)),\"\",VLOOKUP(L574,POA!$A$2:$C$25,3,0))","v":""}," ",{"$f":"IF(ISERROR(VLOOKUP(N574,POA!$A$2:$F$25,4,0)),\"\",VLOOKUP(N574,POA!$A$2:$F$25,4,0))","v":""},{"$f":"IF(ISERROR(VLOOKUP(L574,POA!$A$2:$C$25,2,0)),\"\",VLOOKUP(L574,POA!$A$2:$C$25,2,0))","v":""},null,{"$f":"IF(Q574=0,\"\",IF(Q573>=$R$9,\"HABIL\",\"NO HABIL\"))","v":""},null,{"$f":"IF(S574=0,\"\",IF(S574<=$T$9,\"HABIL\",\"NO HABIL\"))","v":""},{"$f":"IF(ISERROR(VLOOKUP(N574,POA!$A$2:$F$25,5,0)),\"\",VLOOKUP(N574,POA!$A$2:$F$25,5,0))","v":""},null,{"$f":"IF(V574=0,\"\",IF(V574>=$W$9,\"HABIL\",\"NO HABIL\"))","v":""},null,{"$f":"IF(ISERROR(F574/$Z$9),\"\",F574/$Z$9)","v":0},{"$f":"+IF(Y574<$Z$10,\"MIPYME\",\"NO CUMPLE\")","v":"MIPYME"},null,{"$f":"IF(AA574=0,\"\",IF(AA574>=$AB$9,\"HABIL\",\"NO HABIL\"))","v":""},null,{"$f":"IF(AC574=0,\"\",IF(AC574>=$AD$9,\"HABIL\",\"NO HABIL\"))","v":""}]
[null,"",null,null,null,null,null,null,0,null,null,null,{"$f":"IF(ISERROR(VLOOKUP(L575,POA!$A$2:$C$25,3,0)),\"\",VLOOKUP(L575,POA!$A$2:$C$25,3,0))","v":""}," ",{"$f":"IF(ISERROR(VLOOKUP(N575,POA!$A$2:$F$25,4,0)),\"\",VLOOKUP(N575,POA!$A$2:$F$25,4,0))","v":""},{"$f":"IF(ISERROR(VLOOKUP(L575,POA!$A$2:$C$25,2,0)),\"\",VLOOKUP(L575,POA!$A$2:$C$25,2,0))","v":""},null,{"$f":"IF(Q575=0,\"\",IF(Q573>=$R$9,\"HABIL\",\"NO HABIL\"))","v":""},null,"",{"$f":"IF(ISERROR(VLOOKUP(N575,POA!$A$2:$F$25,5,0)),\"\",VLOOKUP(N575,POA!$A$2:$F$25,5,0))","v":""},null,"",null,{"$f":"IF(ISERROR(F575/$Z$9),\"\",F575/$Z$9)","v":0},{"$f":"+IF(Y575<$Z$10,\"MIPYME\",\"NO CUMPLE\")","v":"MIPYME"},null,"",null,""]
[null,"",null,null,null,null,null,null,0,null,null,null,{"$f":"IF(ISERROR(VLOOKUP(L576,POA!$A$2:$C$25,3,0)),\"\",VLOOKUP(L576,POA!$A$2:$C$25,3,0))","v":""},null,{"$f":"IF(ISERROR(VLOOKUP(N576,POA!$A$2:$F$25,4,0)),\"\",VLOOKUP(N576,POA!$A$2:$F$25,4,0))","v":""},{"$f":"IF(ISERROR(VLOOKUP(L576,POA!$A$2:$C$25,2,0)),\"\",VLOOKUP(L576,POA!$A$2:$C$25,2,0))","v":""},null,{"$f":"IF(Q576=0,\"\",IF(Q573>=$R$9,\"HABIL\",\"NO HABIL\"))","v":""},null,"",{"$f":"IF(ISERROR(VLOOKUP(N576,POA!$A$2:$F$25,5,0)),\"\",VLOOKUP(N576,POA!$A$2:$F$25,5,0))","v":""},null,"",null,0,"MIPYME",null,"",null,""]
[null,"",null,null,{"$f":"IF(ISERROR(VLOOKUP(C577,#REF!,2,0)),\"\",VLOOKUP(C577,#REF!,2,0))","v":""},null,{"$f":"IF(ISERROR(VLOOKUP(C577,#REF!,4,0)),\"\",VLOOKUP(C577,#REF!,4,0))","v":""},null,0,null,null,null,{"$f":"IF(ISERROR(VLOOKUP(L577,POA!$A$2:$C$25,3,0)),\"\",VLOOKUP(L577,POA!$A$2:$C$25,3,0))","v":""},null,{"$f":"IF(ISERROR(VLOOKUP(N577,POA!$A$2:$F$25,4,0)),\"\",VLOOKUP(N577,POA!$A$2:$F$25,4,0))","v":""},{"$f":"IF(ISERROR(VLOOKUP(L577,POA!$A$2:$C$25,2,0)),\"\",VLOOKUP(L577,POA!$A$2:$C$25,2,0))","v":""},null,{"$f":"IF(L577=0,\"\",IF(Q573>=$R$9,\"HABIL\",\"NO HABIL\"))","v":""},null,"",{"$f":"IF(ISERROR(VLOOKUP(N577,POA!$A$2:$F$25,5,0)),\"\",VLOOKUP(N577,POA!$A$2:$F$25,5,0))","v":""},null,"",null,0,"MIPYME",null,"",null,""]
[null,"",null,null,{"$f":"IF(ISERROR(VLOOKUP(C578,#REF!,2,0)),\"\",VLOOKUP(C578,#REF!,2,0))","v":""},null,{"$f":"IF(ISERROR(VLOOKUP(C578,#REF!,4,0)),\"\",VLOOKUP(C578,#REF!,4,0))","v":""},null,0,null,null,null,{"$f":"IF(ISERROR(VLOOKUP(L578,POA!$A$2:$C$25,3,0)),\"\",VLOOKUP(L578,POA!$A$2:$C$25,3,0))","v":""},null,{"$f":"IF(ISERROR(VLOOKUP(N578,POA!$A$2:$F$25,4,0)),\"\",VLOOKUP(N578,POA!$A$2:$F$25,4,0))","v":""},{"$f":"IF(ISERROR(VLOOKUP(L578,POA!$A$2:$C$25,2,0)),\"\",VLOOKUP(L578,POA!$A$2:$C$25,2,0))","v":""},null,{"$f":"IF(L578=0,\"\",IF(Q573>=$R$9,\"HABIL\",\"NO HABIL\"))","v":""},null,"",{"$f":"IF(ISERROR(VLOOKUP(N578,POA!$A$2:$F$25,5,0)),\"\",VLOOKUP(N578,POA!$A$2:$F$25,5,0))","v":""},null,"",null,0,"MIPYME",null,"",null,""]
[null,"",null,null,{"$f":"IF(ISERROR(VLOOKUP(C579,#REF!,2,0)),\"\",VLOOKUP(C579,#REF!,2,0))","v":""},null,{"$f":"IF(ISERROR(VLOOKUP(C579,#REF!,4,0)),\"\",VLOOKUP(C579,#REF!,4,0))","v":""},null,0,null,null,null,{"$f":"IF(ISERROR(VLOOKUP(L579,POA!$A$2:$C$25,3,0)),\"\",VLOOKUP(L579,POA!$A$2:$C$25,3,0))","v":""},null,{"$f":"IF(ISERROR(VLOOKUP(N579,POA!$A$2:$F$25,4,0)),\"\",VLOOKUP(N579,POA!$A$2:$F$25,4,0))","v":""},{"$f":"IF(ISERROR(VLOOKUP(L579,POA!$A$2:$C$25,2,0)),\"\",VLOOKUP(L579,POA!$A$2:$C$25,2,0))","v":""},null,{"$f":"IF(L579=0,\"\",IF(Q573>=$R$9,\"HABIL\",\"NO HABIL\"))","v":""},null,"",{"$f":"IF(ISERROR(VLOOKUP(N579,POA!$A$2:$F$25,5,0)),\"\",VLOOKUP(N579,POA!$A$2:$F$25,5,0))","v":""},null,"",null,0,"MIPYME",null,"",null,""]
[null,{"$f":"IF(C580=\"\",\"\",B579+0.1)","v":""},null,null,{"$f":"IF(ISERROR(VLOOKUP(C580,#REF!,2,0)),\"\",VLOOKUP(C580,#REF!,2,0))","v":""},null,{"$f":"IF(ISERROR(VLOOKUP(C580,#REF!,4,0)),\"\",VLOOKUP(C580,#REF!,4,0))","v":""},null,{"$f":"IF(ISERROR(F580-H580),\"\",F580-H580)","v":0},null,null,null,{"$f":"IF(ISERROR(VLOOKUP(L580,POA!$A$2:$C$25,3,0)),\"\",VLOOKUP(L580,POA!$A$2:$C$25,3,0))","v":""},null,{"$f":"IF(ISERROR(VLOOKUP(N580,POA!$A$2:$F$25,4,0)),\"\",VLOOKUP(N580,POA!$A$2:$F$25,4,0))","v":""},{"$f":"IF(ISERROR(VLOOKUP(L580,POA!$A$2:$C$25,2,0)),\"\",VLOOKUP(L580,POA!$A$2:$C$25,2,0))","v":""},null,{"$f":"IF(L580=0,\"\",IF(Q573>=$R$9,\"HABIL\",\"NO HABIL\"))","v":""},null,"",{"$f":"IF(ISERROR(VLOOKUP(N580,POA!$A$2:$F$25,5,0)),\"\",VLOOKUP(N580,POA!$A$2:$F$25,5,0))","v":""},null,"",null,0,"MIPYME",null,"",null,""]
[null,{"$f":"IF(C581=\"\",\"\",B580+0.1)","v":""},null,null,{"$f":"IF(ISERROR(VLOOKUP(C581,#REF!,2,0)),\"\",VLOOKUP(C581,#REF!,2,0))","v":""},null,{"$f":"IF(ISERROR(VLOOKUP(C581,#REF!,4,0)),\"\",VLOOKUP(C581,#REF!,4,0))","v":""},null,{"$f":"IF(ISERROR(F581-H581),\"\",F581-H581)","v":0},null,null,null,{"$f":"IF(ISERROR(VLOOKUP(L581,POA!$A$2:$C$25,3,0)),\"\",VLOOKUP(L581,POA!$A$2:$C$25,3,0))","v":""},null,{"$f":"IF(ISERROR(VLOOKUP(N581,POA!$A$2:$F$25,4,0)),\"\",VLOOKUP(N581,POA!$A$2:$F$25,4,0))","v":""},{"$f":"IF(ISERROR(VLOOKUP(L581,POA!$A$2:$C$25,2,0)),\"\",VLOOKUP(L581,POA!$A$2:$C$25,2,0))","v":""},null,{"$f":"IF(L581=0,\"\",IF(Q573>=$R$9,\"HABIL\",\"NO HABIL\"))","v":""},null,"",{"$f":"IF(ISERROR(VLOOKUP(N581,POA!$A$2:$F$25,5,0)),\"\",VLOOKUP(N581,POA!$A$2:$F$25,5,0))","v":""},null,"",null,0,"MIPYME",null,"",null,""]
[null,{"$f":"IF(C582=\"\",\"\",B581+0.1)","v":""},null,null,{"$f":"IF(ISERROR(VLOOKUP(C582,#REF!,2,0)),\"\",VLOOKUP(C582,#REF!,2,0))","v":""},null,{"$f":"IF(ISERROR(VLOOKUP(C582,#REF!,4,0)),\"\",VLOOKUP(C582,#REF!,4,0))","v":""},null,{"$f":"IF(ISERROR(F582-H582),\"\",F582-H582)","v":0},null,null,null,{"$f":"IF(ISERROR(VLOOKUP(L582,POA!$A$2:$C$25,3,0)),\"\",VLOOKUP(L582,POA!$A$2:$C$25,3,0))","v":""},null,{"$f":"IF(ISERROR(VLOOKUP(N582,POA!$A$2:$F$25,4,0)),\"\",VLOOKUP(N582,POA!$A$2:$F$25,4,0))","v":""},{"$f":"IF(ISERROR(VLOOKUP(L582,POA!$A$2:$C$25,2,0)),\"\",VLOOKUP(L582,POA!$A$2:$C$25,2,0))","v":""},null,{"$f":"IF(L582=0,\"\",IF(Q573>=$R$9,\"HABIL\",\"NO HABIL\"))","v":""},null,"",{"$f":"IF(ISERROR(VLOOKUP(N582,POA!$A$2:$F$25,5,0)),\"\",VLOOKUP(N582,POA!$A$2:$F$25,5,0))","v":""},null,"",null,0,"MIPYME",null,"",null,""]
[null,{"$f":"IF(C583=\"\",\"\",B582+0.1)","v":""},null,null,{"$f":"IF(ISERROR(VLOOKUP(C583,#REF!,2,0)),\"\",VLOOKUP(C583,#REF!,2,0))","v":""},null,{"$f":"IF(ISERROR(VLOOKUP(C583,#REF!,4,0)),\"\",VLOOKUP(C583,#REF!,4,0))","v":""},null,{"$f":"IF(ISERROR(F583-H583),\"\",F583-H583)","v":0},null,null,null,{"$f":"IF(ISERROR(VLOOKUP(L583,POA!$A$2:$C$25,3,0)),\"\",VLOOKUP(L583,POA!$A$2:$C$25,3,0))","v":""},null,{"$f":"IF(ISERROR(VLOOKUP(N583,POA!$A$2:$F$25,4,0)),\"\",VLOOKUP(N583,POA!$A$2:$F$25,4,0))","v":""},{"$f":"IF(ISERROR(VLOOKUP(L583,POA!$A$2:$C$25,2,0)),\"\",VLOOKUP(L583,POA!$A$2:$C$25,2,0))","v":""},null,{"$f":"IF(L583=0,\"\",IF(Q573>=$R$9,\"HABIL\",\"NO HABIL\"))","v":""},null,"",{"$f":"IF(ISERROR(VLOOKUP(N583,POA!$A$2:$F$25,5,0)),\"\",VLOOKUP(N583,POA!$A$2:$F$25,5,0))","v":""},null,"",null,{"$f":"IF(ISERROR(F583/$Z$9),\"\",F583/$Z$9)","v":0},"MIPYME",null,"",null,""]
[null,53,null,{"$f":"IF(SUM(D585:D594)=0,\"\",SUM(D585:D594))","v":""},{"$f":"SUM(E585:E594)","v":0},{"$f":"SUM(F585:F594)","v":0},{"$f":"SUM(G585:G594)","v":0},{"$f":"SUM(H585:H594)","v":0},{"$f":"+F584-H584","v":0},{"$f":"SUM(J585:J594)","v":0},{"$f":"SUM(K585:K594)","v":0},1,{"$f":"IF(ISERROR(VLOOKUP(L584,POA!$A$2:$C$25,3,0)),\"\",VLOOKUP(L584,POA!$A$2:$C$25,3,0))","v":3}," ",{"$f":"+SUM(O585:O594)","v":0},{"$f":"IF(ISERROR(VLOOKUP(L584,POA!$A$2:$C$25,2,0)),\"\",VLOOKUP(L584,POA!$A$2:$C$25,2,0))","v":4167150295},{"$f":"SUM(E584/G584)","v":{"$error":"#DIV/0!"}},{"$f":"IF(Q584=0,\"\",IF(Q584>=$R$9,\"HABIL\",\"NO HABIL\"))","v":{"$error":"#DIV/0!"}},{"$f":"SUM(H584/F584)","v":{"$error":"#DIV/0!"}},{"$f":"IF(S584=0,\"\",IF(S584<=$T$9,\"HABIL\",\"NO HABIL\"))","v":{"$error":"#DIV/0!"}},{"$f":"+SUM(U585:U594)","v":0},{"$f":"SUM(J584/K584)","v":{"$error":"#DIV/0!"}},{"$f":"IF(V584=0,\"\",IF(V584>=$W$9,\"HABIL\",\"NO HABIL\"))","v":{"$error":"#DIV/0!"}},{"$f":"IF(R584=0,\"\",IF(R584=\"NO HABIL\",\"NO HABIL\",IF(T584=\"NO HABIL\",\"NO HABIL\",IF(W584=\"NO HABIL\",\"NO HABIL\",IF(W584=\"NO HABIL\",\"NO HABIL\",\"HABIL\")))))","v":{"$error":"#DIV/0!"}},null,null,{"$f":"SUM(J584/I584)","v":{"$error":"#DIV/0!"}},{"$f":"IF(AA584=0,\"\",IF(AA584>=$AB$9,\"HABIL\",\"NO HABIL\"))","v":{"$error":"#DIV/0!"}},{"$f":"SUM(J584/F584)","v":{"$error":"#DIV/0!"}},{"$f":"IF(AC584=0,\"\",IF(AC584>=$AD$9,\"HABIL\",\"NO HABIL\"))","v":{"$error":"#DIV/0!"}},{"$f":"IF(AB584=0,\"\",IF(AB584=\"NO HABIL\",\"NO HABIL\",IF(AD584=\"NO HABIL\",\"NO HABIL\",IF(AD584=\"NO HABIL\",\"NO HABIL\",\"HABIL\"))))","v":{"$error":"#DIV/0!"}}]
[null,{"$f":"IF(C585=\"\",\"\",B584+0.1)","v":""},null,null,null,null,null,null,{"$f":"IF(ISERROR(F585-H585),\"\",F585-H585)","v":0},null,null,null,{"$f":"IF(ISERROR(VLOOKUP(L585,POA!$A$2:$C$25,3,0)),\"\",VLOOKUP(L585,POA!$A$2:$C$25,3,0))","v":""}," ",{"$f":"IF(ISERROR(VLOOKUP(N585,POA!$A$2:$F$25,4,0)),\"\",VLOOKUP(N585,POA!$A$2:$F$25,4,0))","v":""},{"$f":"IF(ISERROR(VLOOKUP(L585,POA!$A$2:$C$25,2,0)),\"\",VLOOKUP(L585,POA!$A$2:$C$25,2,0))","v":""},null,{"$f":"IF(Q585=0,\"\",IF(Q584>=$R$9,\"HABIL\",\"NO HABIL\"))","v":""},null,{"$f":"IF(S585=0,\"\",IF(S585<=$T$9,\"HABIL\",\"NO HABIL\"))","v":""},{"$f":"IF(ISERROR(VLOOKUP(N585,POA!$A$2:$F$25,5,0)),\"\",VLOOKUP(N585,POA!$A$2:$F$25,5,0))","v":""},null,{"$f":"IF(V585=0,\"\",IF(V585>=$W$9,\"HABIL\",\"NO HABIL\"))","v":""},null,{"$f":"IF(ISERROR(F585/$Z$9),\"\",F585/$Z$9)","v":0},{"$f":"+IF(Y585<$Z$10,\"MIPYME\",\"NO CUMPLE\")","v":"MIPYME"},null,{"$f":"IF(AA585=0,\"\",IF(AA585>=$AB$9,\"HABIL\",\"NO HABIL\"))","v":""},null,{"$f":"IF(AC585=0,\"\",IF(AC585>=$AD$9,\"HABIL\",\"NO HABIL\"))","v":""}]
[null,"",null,null,null,null,null,null,0,null,null,null,{"$f":"IF(ISERROR(VLOOKUP(L586,POA!$A$2:$C$25,3,0)),\"\",VLOOKUP(L586,POA!$A$2:$C$25,3,0))","v":""}," ",{"$f":"IF(ISERROR(VLOOKUP(N586,POA!$A$2:$F$25,4,0)),\"\",VLOOKUP(N586,POA!$A$2:$F$25,4,0))","v":""},{"$f":"IF(ISERROR(VLOOKUP(L586,POA!$A$2:$C$25,2,0)),\"\",VLOOKUP(L586,POA!$A$2:$C$25,2,0))","v":""},null,{"$f":"IF(Q586=0,\"\",IF(Q584>=$R$9,\"HABIL\",\"NO HABIL\"))","v":""},null,"",{"$f":"IF(ISERROR(VLOOKUP(N586,POA!$A$2:$F$25,5,0)),\"\",VLOOKUP(N586,POA!$A$2:$F$25,5,0))","v":""},null,"",null,{"$f":"IF(ISERROR(F586/$Z$9),\"\",F586/$Z$9)","v":0},{"$f":"+IF(Y586<$Z$10,\"MIPYME\",\"NO CUMPLE\")","v":"MIPYME"},null,"",null,""]
[null,"",null,null,null,null,null,null,0,null,null,null,{"$f":"IF(ISERROR(VLOOKUP(L587,POA!$A$2:$C$25,3,0)),\"\",VLOOKUP(L587,POA!$A$2:$C$25,3,0))","v":""},null,{"$f":"IF(ISERROR(VLOOKUP(N587,POA!$A$2:$F$25,4,0)),\"\",VLOOKUP(N587,POA!$A$2:$F$25,4,0))","v":""},{"$f":"IF(ISERROR(VLOOKUP(L587,POA!$A$2:$C$25,2,0)),\"\",VLOOKUP(L587,POA!$A$2:$C$25,2,0))","v":""},null,{"$f":"IF(Q587=0,\"\",IF(Q584>=$R$9,\"HABIL\",\"NO HABIL\"))","v":""},null,"",{"$f":"IF(ISERROR(VLOOKUP(N587,POA!$A$2:$F$25,5,0)),\"\",VLOOKUP(N587,POA!$A$2:$F$25,5,0))","v":""},null,"",null,0,"MIPYME",null,"",null,""]
[null,"",null,null,{"$f":"IF(ISERROR(VLOOKUP(C588,#REF!,2,0)),\"\",VLOOKUP(C588,#REF!,2,0))","v":""},null,{"$f":"IF(ISERROR(VLOOKUP(C588,#REF!,4,0)),\"\",VLOOKUP(C588,#REF!,4,0))","v":""},null,0,null,null,null,{"$f":"IF(ISERROR(VLOOKUP(L588,POA!$A$2:$C$25,3,0)),\"\",VLOOKUP(L588,POA!$A$2:$C$25,3,0))","v":""},null,{"$f":"IF(ISERROR(VLOOKUP(N588,POA!$A$2:$F$25,4,0)),\"\",VLOOKUP(N588,POA!$A$2:$F$25,4,0))","v":""},{"$f":"IF(ISERROR(VLOOKUP(L588,POA!$A$2:$C$25,2,0)),\"\",VLOOKUP(L588,POA!$A$2:$C$25,2,0))","v":""},null,{"$f":"IF(L588=0,\"\",IF(Q584>=$R$9,\"HABIL\",\"NO HABIL\"))","v":""},null,"",{"$f":"IF(ISERROR(VLOOKUP(N588,POA!$A$2:$F$25,5,0)),\"\",VLOOKUP(N588,POA!$A$2:$F$25,5,0))","v":""},null,"",null,0,"MIPYME",null,"",null,""]
[null,"",null,null,{"$f":"IF(ISERROR(VLOOKUP(C589,#REF!,2,0)),\"\",VLOOKUP(C589,#REF!,2,0))","v":""},null,{"$f":"IF(ISERROR(VLOOKUP(C589,#REF!,4,0)),\"\",VLOOKUP(C589,#REF!,4,0))","v":""},null,0,null,null,null,{"$f":"IF(ISERROR(VLOOKUP(L589,POA!$A$2:$C$25,3,0)),\"\",VLOOKUP(L589,POA!$A$2:$C$25,3,0))","v":""},null,{"$f":"IF(ISERROR(VLOOKUP(N589,POA!$A$2:$F$25,4,0)),\"\",VLOOKUP(N589,POA!$A$2:$F$25,4,0))","v":""},{"$f":"IF(ISERROR(VLOOKUP(L589,POA!$A$2:$C$25,2,0)),\"\",VLOOKUP(L589,POA!$A$2:$C$25,2,0))","v":""},null,{"$f":"IF(L589=0,\"\",IF(Q584>=$R$9,\"HABIL\",\"NO HABIL\"))","v":""},null,"",{"$f":"IF(ISERROR(VLOOKUP(N589,POA!$A$2:$F$25,5,0)),\"\",VLOOKUP(N589,POA!$A$2:$F$25,5,0))","v":""},null,"",null,0,"MIPYME",null,"",null,""]
[null,"",null,null,{"$f":"IF(ISERROR(VLOOKUP(C590,#REF!,2,0)),\"\",VLOOKUP(C590,#REF!,2,0))","v":""},null,{"$f":"IF(ISERROR(VLOOKUP(C590,#REF!,4,0)),\"\",VLOOKUP(C590,#REF!,4,0))","v":""},null,0,null,null,null,{"$f":"IF(ISERROR(VLOOKUP(L590,POA!$A$2:$C$25,3,0)),\"\",VLOOKUP(L590,POA!$A$2:$C$25,3,0))","v":""},null,{"$f":"IF(ISERROR(VLOOKUP(N590,POA!$A$2:$F$25,4,0)),\"\",VLOOKUP(N590,POA!$A$2:$F$25,4,0))","v":""},{"$f":"IF(ISERROR(VLOOKUP(L590,POA!$A$2:$C$25,2,0)),\"\",VLOOKUP(L590,POA!$A$2:$C$25,2,0))","v":""},null,{"$f":"IF(L590=0,\"\",IF(Q584>=$R$9,\"HABIL\",\"NO HABIL\"))","v":""},null,"",{"$f":"IF(ISERROR(VLOOKUP(N590,POA!$A$2:$F$25,5,0)),\"\",VLOOKUP(N590,POA!$A$2:$F$25,5,0))","v":""},null,"",null,0,"MIPYME",null,"",null,""]
[null,{"$f":"IF(C591=\"\",\"\",B590+0.1)","v":""},null,null,{"$f":"IF(ISERROR(VLOOKUP(C591,#REF!,2,0)),\"\",VLOOKUP(C591,#REF!,2,0))","v":""},null,{"$f":"IF(ISERROR(VLOOKUP(C591,#REF!,4,0)),\"\",VLOOKUP(C591,#REF!,4,0))","v":""},null,{"$f":"IF(ISERROR(F591-H591),\"\",F591-H591)","v":0},null,null,null,{"$f":"IF(ISERROR(VLOOKUP(L591,POA!$A$2:$C$25,3,0)),\"\",VLOOKUP(L591,POA!$A$2:$C$25,3,0))","v":""},null,{"$f":"IF(ISERROR(VLOOKUP(N591,POA!$A$2:$F$25,4,0)),\"\",VLOOKUP(N591,POA!$A$2:$F$25,4,0))","v":""},{"$f":"IF(ISERROR(VLOOKUP(L591,POA!$A$2:$C$25,2,0)),\"\",VLOOKUP(L591,POA!$A$2:$C$25,2,0))","v":""},null,{"$f":"IF(L591=0,\"\",IF(Q584>=$R$9,\"HABIL\",\"NO HABIL\"))","v":""},null,"",{"$f":"IF(ISERROR(VLOOKUP(N591,POA!$A$2:$F$25,5,0)),\"\",VLOOKUP(N591,POA!$A$2:$F$25,5,0))","v":""},null,"",null,0,"MIPYME",null,"",null,""]
[null,{"$f":"IF(C592=\"\",\"\",B591+0.1)","v":""},null,null,{"$f":"IF(ISERROR(VLOOKUP(C592,#REF!,2,0)),\"\",VLOOKUP(C592,#REF!,2,0))","v":""},null,{"$f":"IF(ISERROR(VLOOKUP(C592,#REF!,4,0)),\"\",VLOOKUP(C592,#REF!,4,0))","v":""},null,{"$f":"IF(ISERROR(F592-H592),\"\",F592-H592)","v":0},null,null,null,{"$f":"IF(ISERROR(VLOOKUP(L592,POA!$A$2:$C$25,3,0)),\"\",VLOOKUP(L592,POA!$A$2:$C$25,3,0))","v":""},null,{"$f":"IF(ISERROR(VLOOKUP(N592,POA!$A$2:$F$25,4,0)),\"\",VLOOKUP(N592,POA!$A$2:$F$25,4,0))","v":""},{"$f":"IF(ISERROR(VLOOKUP(L592,POA!$A$2:$C$25,2,0)),\"\",VLOOKUP(L592,POA!$A$2:$C$25,2,0))","v":""},null,{"$f":"IF(L592=0,\"\",IF(Q584>=$R$9,\"HABIL\",\"NO HABIL\"))","v":""},null,"",{"$f":"IF(ISERROR(VLOOKUP(N592,POA!$A$2:$F$25,5,0)),\"\",VLOOKUP(N592,POA!$A$2:$F$25,5,0))","v":""},null,"",null,0,"MIPYME",null,"",null,""]
[null,{"$f":"IF(C593=\"\",\"\",B592+0.1)","v":""},null,null,{"$f":"IF(ISERROR(VLOOKUP(C593,#REF!,2,0)),\"\",VLOOKUP(C593,#REF!,2,0))","v":""},null,{"$f":"IF(ISERROR(VLOOKUP(C593,#REF!,4,0)),\"\",VLOOKUP(C593,#REF!,4,0))","v":""},null,{"$f":"IF(ISERROR(F593-H593),\"\",F593-H593)","v":0},null,null,null,{"$f":"IF(ISERROR(VLOOKUP(L593,POA!$A$2:$C$25,3,0)),\"\",VLOOKUP(L593,POA!$A$2:$C$25,3,0))","v":""},null,{"$f":"IF(ISERROR(VLOOKUP(N593,POA!$A$2:$F$25,4,0)),\"\",VLOOKUP(N593,POA!$A$2:$F$25,4,0))","v":""},{"$f":"IF(ISERROR(VLOOKUP(L593,POA!$A$2:$C$25,2,0)),\"\",VLOOKUP(L593,POA!$A$2:$C$25,2,0))","v":""},null,{"$f":"IF(L593=0,\"\",IF(Q584>=$R$9,\"HABIL\",\"NO HABIL\"))","v":""},null,"",{"$f":"IF(ISERROR(VLOOKUP(N593,POA!$A$2:$F$25,5,0)),\"\",VLOOKUP(N593,POA!$A$2:$F$25,5,0))","v":""},null,"",null,0,"MIPYME",null,"",null,""]
[null,{"$f":"IF(C594=\"\",\"\",B593+0.1)","v":""},null,null,{"$f":"IF(ISERROR(VLOOKUP(C594,#REF!,2,0)),\"\",VLOOKUP(C594,#REF!,2,0))","v":""},null,{"$f":"IF(ISERROR(VLOOKUP(C594,#REF!,4,0)),\"\",VLOOKUP(C594,#REF!,4,0))","v":""},null,{"$f":"IF(ISERROR(F594-H594),\"\",F594-H594)","v":0},null,null,null,{"$f":"IF(ISERROR(VLOOKUP(L594,POA!$A$2:$C$25,3,0)),\"\",VLOOKUP(L594,POA!$A$2:$C$25,3,0))","v":""},null,{"$f":"IF(ISERROR(VLOOKUP(N594,POA!$A$2:$F$25,4,0)),\"\",VLOOKUP(N594,POA!$A$2:$F$25,4,0))","v":""},{"$f":"IF(ISERROR(VLOOKUP(L594,POA!$A$2:$C$25,2,0)),\"\",VLOOKUP(L594,POA!$A$2:$C$25,2,0))","v":""},null,{"$f":"IF(L594=0,\"\",IF(Q584>=$R$9,\"HABIL\",\"NO HABIL\"))","v":""},null,"",{"$f":"IF(ISERROR(VLOOKUP(N594,POA!$A$2:$F$25,5,0)),\"\",VLOOKUP(N594,POA!$A$2:$F$25,5,0))","v":""},null,"",null,{"$f":"IF(ISERROR(F594/$Z$9),\"\",F594/$Z$9)","v":0},"MIPYME",null,"",null,""]
[null,54,null,{"$f":"IF(SUM(D596:D605)=0,\"\",SUM(D596:D605))","v":""},{"$f":"SUM(E596:E605)","v":0},{"$f":"SUM(F596:F605)","v":0},{"$f":"SUM(G596:G605)","v":0},{"$f":"SUM(H596:H605)","v":0},{"$f":"+F595-H595","v":0},{"$f":"SUM(J596:J605)","v":0},{"$f":"SUM(K596:K605)","v":0},1,{"$f":"IF(ISERROR(VLOOKUP(L595,POA!$A$2:$C$25,3,0)),\"\",VLOOKUP(L595,POA!$A$2:$C$25,3,0))","v":3}," ",{"$f":"+SUM(O596:O605)","v":0},{"$f":"IF(ISERROR(VLOOKUP(L595,POA!$A$2:$C$25,2,0)),\"\",VLOOKUP(L595,POA!$A$2:$C$25,2,0))","v":4167150295},{"$f":"SUM(E595/G595)","v":{"$error":"#DIV/0!"}},{"$f":"IF(Q595=0,\"\",IF(Q595>=$R$9,\"HABIL\",\"NO HABIL\"))","v":{"$error":"#DIV/0!"}},{"$f":"SUM(H595/F595)","v":{"$error":"#DIV/0!"}},{"$f":"IF(S595=0,\"\",IF(S595<=$T$9,\"HABIL\",\"NO HABIL\"))","v":{"$error":"#DIV/0!"}},{"$f":"+SUM(U596:U605)","v":0},{"$f":"SUM(J595/K595)","v":{"$error":"#DIV/0!"}},{"$f":"IF(V595=0,\"\",IF(V595>=$W$9,\"HABIL\",\"NO HABIL\"))","v":{"$error":"#DIV/0!"}},{"$f":"IF(R595=0,\"\",IF(R595=\"NO HABIL\",\"NO HABIL\",IF(T595=\"NO HABIL\",\"NO HABIL\",IF(W595=\"NO HABIL\",\"NO HABIL\",IF(W595=\"NO HABIL\",\"NO HABIL\",\"HABIL\")))))","v":{"$error":"#DIV/0!"}},null,null,{"$f":"SUM(J595/I595)","v":{"$error":"#DIV/0!"}},{"$f":"IF(AA595=0,\"\",IF(AA595>=$AB$9,\"HABIL\",\"NO HABIL\"))","v":{"$error":"#DIV/0!"}},{"$f":"SUM(J595/F595)","v":{"$error":"#DIV/0!"}},{"$f":"IF(AC595=0,\"\",IF(AC595>=$AD$9,\"HABIL\",\"NO HABIL\"))","v":{"$error":"#DIV/0!"}},{"$f":"IF(AB595=0,\"\",IF(AB595=\"NO HABIL\",\"NO HABIL\",IF(AD595=\"NO HABIL\",\"NO HABIL\",IF(AD595=\"NO HABIL\",\"NO HABIL\",\"HABIL\"))))","v":{"$error":"#DIV/0!"}}]
[null,{"$f":"IF(C596=\"\",\"\",B595+0.1)","v":""},null,null,null,null,null,null,{"$f":"IF(ISERROR(F596-H596),\"\",F596-H596)","v":0},null,null,null,{"$f":"IF(ISERROR(VLOOKUP(L596,POA!$A$2:$C$25,3,0)),\"\",VLOOKUP(L596,POA!$A$2:$C$25,3,0))","v":""}," ",{"$f":"IF(ISERROR(VLOOKUP(N596,POA!$A$2:$F$25,4,0)),\"\",VLOOKUP(N596,POA!$A$2:$F$25,4,0))","v":""},{"$f":"IF(ISERROR(VLOOKUP(L596,POA!$A$2:$C$25,2,0)),\"\",VLOOKUP(L596,POA!$A$2:$C$25,2,0))","v":""},null,{"$f":"IF(Q596=0,\"\",IF(Q595>=$R$9,\"HABIL\",\"NO HABIL\"))","v":""},null,{"$f":"IF(S596=0,\"\",IF(S596<=$T$9,\"HABIL\",\"NO HABIL\"))","v":""},{"$f":"IF(ISERROR(VLOOKUP(N596,POA!$A$2:$F$25,5,0)),\"\",VLOOKUP(N596,POA!$A$2:$F$25,5,0))","v":""},null,{"$f":"IF(V596=0,\"\",IF(V596>=$W$9,\"HABIL\",\"NO HABIL\"))","v":""},null,{"$f":"IF(ISERROR(F596/$Z$9),\"\",F596/$Z$9)","v":0},{"$f":"+IF(Y596<$Z$10,\"MIPYME\",\"NO CUMPLE\")","v":"MIPYME"},null,{"$f":"IF(AA596=0,\"\",IF(AA596>=$AB$9,\"HABIL\",\"NO HABIL\"))","v":""},null,{"$f":"IF(AC596=0,\"\",IF(AC596>=$AD$9,\"HABIL\",\"NO HABIL\"))","v":""}]
[null,"",null,null,null,null,null,null,0,null,null,null,{"$f":"IF(ISERROR(VLOOKUP(L597,POA!$A$2:$C$25,3,0)),\"\",VLOOKUP(L597,POA!$A$2:$C$25,3,0))","v":""}," ",{"$f":"IF(ISERROR(VLOOKUP(N597,POA!$A$2:$F$25,4,0)),\"\",VLOOKUP(N597,POA!$A$2:$F$25,4,0))","v":""},{"$f":"IF(ISERROR(VLOOKUP(L597,POA!$A$2:$C$25,2,0)),\"\",VLOOKUP(L597,POA!$A$2:$C$25,2,0))","v":""},null,{"$f":"IF(Q597=0,\"\",IF(Q595>=$R$9,\"HABIL\",\"NO HABIL\"))","v":""},null,"",{"$f":"IF(ISERROR(VLOOKUP(N597,POA!$A$2:$F$25,5,0)),\"\",VLOOKUP(N597,POA!$A$2:$F$25,5,0))","v":""},null,"",null,{"$f":"IF(ISERROR(F597/$Z$9),\"\",F597/$Z$9)","v":0},{"$f":"+IF(Y597<$Z$10,\"MIPYME\",\"NO CUMPLE\")","v":"MIPYME"},null,"",null,""]
[null,"",null,null,null,null,null,null,0,null,null,null,{"$f":"IF(ISERROR(VLOOKUP(L598,POA!$A$2:$C$25,3,0)),\"\",VLOOKUP(L598,POA!$A$2:$C$25,3,0))","v":""},null,{"$f":"IF(ISERROR(VLOOKUP(N598,POA!$A$2:$F$25,4,0)),\"\",VLOOKUP(N598,POA!$A$2:$F$25,4,0))","v":""},{"$f":"IF(ISERROR(VLOOKUP(L598,POA!$A$2:$C$25,2,0)),\"\",VLOOKUP(L598,POA!$A$2:$C$25,2,0))","v":""},null,{"$f":"IF(Q598=0,\"\",IF(Q595>=$R$9,\"HABIL\",\"NO HABIL\"))","v":""},null,"",{"$f":"IF(ISERROR(VLOOKUP(N598,POA!$A$2:$F$25,5,0)),\"\",VLOOKUP(N598,POA!$A$2:$F$25,5,0))","v":""},null,"",null,0,"MIPYME",null,"",null,""]
[null,"",null,null,{"$f":"IF(ISERROR(VLOOKUP(C599,#REF!,2,0)),\"\",VLOOKUP(C599,#REF!,2,0))","v":""},null,{"$f":"IF(ISERROR(VLOOKUP(C599,#REF!,4,0)),\"\",VLOOKUP(C599,#REF!,4,0))","v":""},null,0,null,null,null,{"$f":"IF(ISERROR(VLOOKUP(L599,POA!$A$2:$C$25,3,0)),\"\",VLOOKUP(L599,POA!$A$2:$C$25,3,0))","v":""},null,{"$f":"IF(ISERROR(VLOOKUP(N599,POA!$A$2:$F$25,4,0)),\"\",VLOOKUP(N599,POA!$A$2:$F$25,4,0))","v":""},{"$f":"IF(ISERROR(VLOOKUP(L599,POA!$A$2:$C$25,2,0)),\"\",VLOOKUP(L599,POA!$A$2:$C$25,2,0))","v":""},null,{"$f":"IF(L599=0,\"\",IF(Q595>=$R$9,\"HABIL\",\"NO HABIL\"))","v":""},null,"",{"$f":"IF(ISERROR(VLOOKUP(N599,POA!$A$2:$F$25,5,0)),\"\",VLOOKUP(N599,POA!$A$2:$F$25,5,0))","v":""},null,"",null,0,"MIPYME",null,"",null,""]
[null,"",null,null,{"$f":"IF(ISERROR(VLOOKUP(C600,#REF!,2,0)),\"\",VLOOKUP(C600,#REF!,2,0))","v":""},null,{"$f":"IF(ISERROR(VLOOKUP(C600,#REF!,4,0)),\"\",VLOOKUP(C600,#REF!,4,0))","v":""},null,0,null,null,null,{"$f":"IF(ISERROR(VLOOKUP(L600,POA!$A$2:$C$25,3,0)),\"\",VLOOKUP(L600,POA!$A$2:$C$25,3,0))","v":""},null,{"$f":"IF(ISERROR(VLOOKUP(N600,POA!$A$2:$F$25,4,0)),\"\",VLOOKUP(N600,POA!$A$2:$F$25,4,0))","v":""},{"$f":"IF(ISERROR(VLOOKUP(L600,POA!$A$2:$C$25,2,0)),\"\",VLOOKUP(L600,POA!$A$2:$C$25,2,0))","v":""},null,{"$f":"IF(L600=0,\"\",IF(Q595>=$R$9,\"HABIL\",\"NO HABIL\"))","v":""},null,"",{"$f":"IF(ISERROR(VLOOKUP(N600,POA!$A$2:$F$25,5,0)),\"\",VLOOKUP(N600,POA!$A$2:$F$25,5,0))","v":""},null,"",null,0,"MIPYME",null,"",null,""]
[null,"",null,null,{"$f":"IF(ISERROR(VLOOKUP(C601,#REF!,2,0)),\"\",VLOOKUP(C601,#REF!,2,0))","v":""},null,{"$f":"IF(ISERROR(VLOOKUP(C601,#REF!,4,0)),\"\",VLOOKUP(C601,#REF!,4,0))","v":""},null,0,null,null,null,{"$f":"IF(ISERROR(VLOOKUP(L601,POA!$A$2:$C$25,3,0)),\"\",VLOOKUP(L601,POA!$A$2:$C$25,3,0))","v":""},null,{"$f":"IF(ISERROR(VLOOKUP(N601,POA!$A$2:$F$25,4,0)),\"\",VLOOKUP(N601,POA!$A$2:$F$25,4,0))","v":""},{"$f":"IF(ISERROR(VLOOKUP(L601,POA!$A$2:$C$25,2,0)),\"\",VLOOKUP(L601,POA!$A$2:$C$25,2,0))","v":""},null,{"$f":"IF(L601=0,\"\",IF(Q595>=$R$9,\"HABIL\",\"NO HABIL\"))","v":""},null,"",{"$f":"IF(ISERROR(VLOOKUP(N601,POA!$A$2:$F$25,5,0)),\"\",VLOOKUP(N601,POA!$A$2:$F$25,5,0))","v":""},null,"",null,0,"MIPYME",null,"",null,""]
[null,{"$f":"IF(C602=\"\",\"\",B601+0.1)","v":""},null,null,{"$f":"IF(ISERROR(VLOOKUP(C602,#REF!,2,0)),\"\",VLOOKUP(C602,#REF!,2,0))","v":""},null,{"$f":"IF(ISERROR(VLOOKUP(C602,#REF!,4,0)),\"\",VLOOKUP(C602,#REF!,4,0))","v":""},null,{"$f":"IF(ISERROR(F602-H602),\"\",F602-H602)","v":0},null,null,null,{"$f":"IF(ISERROR(VLOOKUP(L602,POA!$A$2:$C$25,3,0)),\"\",VLOOKUP(L602,POA!$A$2:$C$25,3,0))","v":""},null,{"$f":"IF(ISERROR(VLOOKUP(N602,POA!$A$2:$F$25,4,0)),\"\",VLOOKUP(N602,POA!$A$2:$F$25,4,0))","v":""},{"$f":"IF(ISERROR(VLOOKUP(L602,POA!$A$2:$C$25,2,0)),\"\",VLOOKUP(L602,POA!$A$2:$C$25,2,0))","v":""},null,{"$f":"IF(L602=0,\"\",IF(Q595>=$R$9,\"HABIL\",\"NO HABIL\"))","v":""},null,"",{"$f":"IF(ISERROR(VLOOKUP(N602,POA!$A$2:$F$25,5,0)),\"\",VLOOKUP(N602,POA!$A$2:$F$25,5,0))","v":""},null,"",null,0,"MIPYME",null,"",null,""]
[null,{"$f":"IF(C603=\"\",\"\",B602+0.1)","v":""},null,null,{"$f":"IF(ISERROR(VLOOKUP(C603,#REF!,2,0)),\"\",VLOOKUP(C603,#REF!,2,0))","v":""},null,{"$f":"IF(ISERROR(VLOOKUP(C603,#REF!,4,0)),\"\",VLOOKUP(C603,#REF!,4,0))","v":""},null,{"$f":"IF(ISERROR(F603-H603),\"\",F603-H603)","v":0},null,null,null,{"$f":"IF(ISERROR(VLOOKUP(L603,POA!$A$2:$C$25,3,0)),\"\",VLOOKUP(L603,POA!$A$2:$C$25,3,0))","v":""},null,{"$f":"IF(ISERROR(VLOOKUP(N603,POA!$A$2:$F$25,4,0)),\"\",VLOOKUP(N603,POA!$A$2:$F$25,4,0))","v":""},{"$f":"IF(ISERROR(VLOOKUP(L603,POA!$A$2:$C$25,2,0)),\"\",VLOOKUP(L603,POA!$A$2:$C$25,2,0))","v":""},null,{"$f":"IF(L603=0,\"\",IF(Q595>=$R$9,\"HABIL\",\"NO HABIL\"))","v":""},null,"",{"$f":"IF(ISERROR(VLOOKUP(N603,POA!$A$2:$F$25,5,0)),\"\",VLOOKUP(N603,POA!$A$2:$F$25,5,0))","v":""},null,"",null,0,"MIPYME",null,"",null,""]
[null,{"$f":"IF(C604=\"\",\"\",B603+0.1)","v":""},null,null,{"$f":"IF(ISERROR(VLOOKUP(C604,#REF!,2,0)),\"\",VLOOKUP(C604,#REF!,2,0))","v":""},null,{"$f":"IF(ISERROR(VLOOKUP(C604,#REF!,4,0)),\"\",VLOOKUP(C604,#REF!,4,0))","v":""},null,{"$f":"IF(ISERROR(F604-H604),\"\",F604-H604)","v":0},null,null,null,{"$f":"IF(ISERROR(VLOOKUP(L604,POA!$A$2:$C$25,3,0)),\"\",VLOOKUP(L604,POA!$A$2:$C$25,3,0))","v":""},null,{"$f":"IF(ISERROR(VLOOKUP(N604,POA!$A$2:$F$25,4,0)),\"\",VLOOKUP(N604,POA!$A$2:$F$25,4,0))","v":""},{"$f":"IF(ISERROR(VLOOKUP(L604,POA!$A$2:$C$25,2,0)),\"\",VLOOKUP(L604,POA!$A$2:$C$25,2,0))","v":""},null,{"$f":"IF(L604=0,\"\",IF(Q595>=$R$9,\"HABIL\",\"NO HABIL\"))","v":""},null,"",{"$f":"IF(ISERROR(VLOOKUP(N604,POA!$A$2:$F$25,5,0)),\"\",VLOOKUP(N604,POA!$A$2:$F$25,5,0))","v":""},null,"",null,0,"MIPYME",null,"",null,""]
[null,{"$f":"IF(C605=\"\",\"\",B604+0.1)","v":""},null,null,{"$f":"IF(ISERROR(VLOOKUP(C605,#REF!,2,0)),\"\",VLOOKUP(C605,#REF!,2,0))","v":""},null,{"$f":"IF(ISERROR(VLOOKUP(C605,#REF!,4,0)),\"\",VLOOKUP(C605,#REF!,4,0))","v":""},null,{"$f":"IF(ISERROR(F605-H605),\"\",F605-H605)","v":0},null,null,null,{"$f":"IF(ISERROR(VLOOKUP(L605,POA!$A$2:$C$25,3,0)),\"\",VLOOKUP(L605,POA!$A$2:$C$25,3,0))","v":""},null,{"$f":"IF(ISERROR(VLOOKUP(N605,POA!$A$2:$F$25,4,0)),\"\",VLOOKUP(N605,POA!$A$2:$F$25,4,0))","v":""},{"$f":"IF(ISERROR(VLOOKUP(L605,POA!$A$2:$C$25,2,0)),\"\",VLOOKUP(L605,POA!$A$2:$C$25,2,0))","v":""},null,{"$f":"IF(L605=0,\"\",IF(Q595>=$R$9,\"HABIL\",\"NO HABIL\"))","v":""},null,"",{"$f":"IF(ISERROR(VLOOKUP(N605,POA!$A$2:$F$25,5,0)),\"\",VLOOKUP(N605,POA!$A$2:$F$25,5,0))","v":""},null,"",null,{"$f":"IF(ISERROR(F605/$Z$9),\"\",F605/$Z$9)","v":0},"MIPYME",null,"",null,""]
[null,55,null,{"$f":"IF(SUM(D607:D616)=0,\"\",SUM(D607:D616))","v":""},{"$f":"SUM(E607:E616)","v":0},{"$f":"SUM(F607:F616)","v":0},{"$f":"SUM(G607:G616)","v":0},{"$f":"SUM(H607:H616)","v":0},{"$f":"+F606-H606","v":0},{"$f":"SUM(J607:J616)","v":0},{"$f":"SUM(K607:K616)","v":0},1,{"$f":"IF(ISERROR(VLOOKUP(L606,POA!$A$2:$C$25,3,0)),\"\",VLOOKUP(L606,POA!$A$2:$C$25,3,0))","v":3}," ",{"$f":"+SUM(O607:O616)","v":0},{"$f":"IF(ISERROR(VLOOKUP(L606,POA!$A$2:$C$25,2,0)),\"\",VLOOKUP(L606,POA!$A$2:$C$25,2,0))","v":4167150295},{"$f":"SUM(E606/G606)","v":{"$error":"#DIV/0!"}},{"$f":"IF(Q606=0,\"\",IF(Q606>=$R$9,\"HABIL\",\"NO HABIL\"))","v":{"$error":"#DIV/0!"}},{"$f":"SUM(H606/F606)","v":{"$error":"#DIV/0!"}},{"$f":"IF(S606=0,\"\",IF(S606<=$T$9,\"HABIL\",\"NO HABIL\"))","v":{"$error":"#DIV/0!"}},{"$f":"+SUM(U607:U616)","v":0},{"$f":"SUM(J606/K606)","v":{"$error":"#DIV/0!"}},{"$f":"IF(V606=0,\"\",IF(V606>=$W$9,\"HABIL\",\"NO HABIL\"))","v":{"$error":"#DIV/0!"}},{"$f":"IF(R606=0,\"\",IF(R606=\"NO HABIL\",\"NO HABIL\",IF(T606=\"NO HABIL\",\"NO HABIL\",IF(W606=\"NO HABIL\",\"NO HABIL\",IF(W606=\"NO HABIL\",\"NO HABIL\",\"HABIL\")))))","v":{"$error":"#DIV/0!"}},null,null,{"$f":"SUM(J606/I606)","v":{"$error":"#DIV/0!"}},{"$f":"IF(AA606=0,\"\",IF(AA606>=$AB$9,\"HABIL\",\"NO HABIL\"))","v":{"$error":"#DIV/0!"}},{"$f":"SUM(J606/F606)","v":{"$error":"#DIV/0!"}},{"$f":"IF(AC606=0,\"\",IF(AC606>=$AD$9,\"HABIL\",\"NO HABIL\"))","v":{"$error":"#DIV/0!"}},{"$f":"IF(AB606=0,\"\",IF(AB606=\"NO HABIL\",\"NO HABIL\",IF(AD606=\"NO HABIL\",\"NO HABIL\",IF(AD606=\"NO HABIL\",\"NO HABIL\",\"HABIL\"))))","v":{"$error":"#DIV/0!"}}]
[null,{"$f":"IF(C607=\"\",\"\",B606+0.1)","v":""},null,null,null,null,null,null,{"$f":"IF(ISERROR(F607-H607),\"\",F607-H607)","v":0},null,null,null,{"$f":"IF(ISERROR(VLOOKUP(L607,POA!$A$2:$C$25,3,0)),\"\",VLOOKUP(L607,POA!$A$2:$C$25,3,0))","v":""}," ",{"$f":"IF(ISERROR(VLOOKUP(N607,POA!$A$2:$F$25,4,0)),\"\",VLOOKUP(N607,POA!$A$2:$F$25,4,0))","v":""},{"$f":"IF(ISERROR(VLOOKUP(L607,POA!$A$2:$C$25,2,0)),\"\",VLOOKUP(L607,POA!$A$2:$C$25,2,0))","v":""},null,{"$f":"IF(Q607=0,\"\",IF(Q606>=$R$9,\"HABIL\",\"NO HABIL\"))","v":""},null,{"$f":"IF(S607=0,\"\",IF(S607<=$T$9,\"HABIL\",\"NO HABIL\"))","v":""},{"$f":"IF(ISERROR(VLOOKUP(N607,POA!$A$2:$F$25,5,0)),\"\",VLOOKUP(N607,POA!$A$2:$F$25,5,0))","v":""},null,{"$f":"IF(V607=0,\"\",IF(V607>=$W$9,\"HABIL\",\"NO HABIL\"))","v":""},null,{"$f":"IF(ISERROR(F607/$Z$9),\"\",F607/$Z$9)","v":0},{"$f":"+IF(Y607<$Z$10,\"MIPYME\",\"NO CUMPLE\")","v":"MIPYME"},null,{"$f":"IF(AA607=0,\"\",IF(AA607>=$AB$9,\"HABIL\",\"NO HABIL\"))","v":""},null,{"$f":"IF(AC607=0,\"\",IF(AC607>=$AD$9,\"HABIL\",\"NO HABIL\"))","v":""}]
[null,"",null,null,null,null,null,null,0,null,null,null,{"$f":"IF(ISERROR(VLOOKUP(L608,POA!$A$2:$C$25,3,0)),\"\",VLOOKUP(L608,POA!$A$2:$C$25,3,0))","v":""}," ",{"$f":"IF(ISERROR(VLOOKUP(N608,POA!$A$2:$F$25,4,0)),\"\",VLOOKUP(N608,POA!$A$2:$F$25,4,0))","v":""},{"$f":"IF(ISERROR(VLOOKUP(L608,POA!$A$2:$C$25,2,0)),\"\",VLOOKUP(L608,POA!$A$2:$C$25,2,0))","v":""},null,{"$f":"IF(Q608=0,\"\",IF(Q606>=$R$9,\"HABIL\",\"NO HABIL\"))","v":""},null,"",{"$f":"IF(ISERROR(VLOOKUP(N608,POA!$A$2:$F$25,5,0)),\"\",VLOOKUP(N608,POA!$A$2:$F$25,5,0))","v":""},null,"",null,{"$f":"IF(ISERROR(F608/$Z$9),\"\",F608/$Z$9)","v":0},{"$f":"+IF(Y608<$Z$10,\"MIPYME\",\"NO CUMPLE\")","v":"MIPYME"},null,"",null,""]
[null,"",null,null,null,null,null,null,0,null,null,null,{"$f":"IF(ISERROR(VLOOKUP(L609,POA!$A$2:$C$25,3,0)),\"\",VLOOKUP(L609,POA!$A$2:$C$25,3,0))","v":""},null,{"$f":"IF(ISERROR(VLOOKUP(N609,POA!$A$2:$F$25,4,0)),\"\",VLOOKUP(N609,POA!$A$2:$F$25,4,0))","v":""},{"$f":"IF(ISERROR(VLOOKUP(L609,POA!$A$2:$C$25,2,0)),\"\",VLOOKUP(L609,POA!$A$2:$C$25,2,0))","v":""},null,{"$f":"IF(Q609=0,\"\",IF(Q606>=$R$9,\"HABIL\",\"NO HABIL\"))","v":""},null,"",{"$f":"IF(ISERROR(VLOOKUP(N609,POA!$A$2:$F$25,5,0)),\"\",VLOOKUP(N609,POA!$A$2:$F$25,5,0))","v":""},null,"",null,0,"MIPYME",null,"",null,""]
[null,"",null,null,{"$f":"IF(ISERROR(VLOOKUP(C610,#REF!,2,0)),\"\",VLOOKUP(C610,#REF!,2,0))","v":""},null,{"$f":"IF(ISERROR(VLOOKUP(C610,#REF!,4,0)),\"\",VLOOKUP(C610,#REF!,4,0))","v":""},null,0,null,null,null,{"$f":"IF(ISERROR(VLOOKUP(L610,POA!$A$2:$C$25,3,0)),\"\",VLOOKUP(L610,POA!$A$2:$C$25,3,0))","v":""},null,{"$f":"IF(ISERROR(VLOOKUP(N610,POA!$A$2:$F$25,4,0)),\"\",VLOOKUP(N610,POA!$A$2:$F$25,4,0))","v":""},{"$f":"IF(ISERROR(VLOOKUP(L610,POA!$A$2:$C$25,2,0)),\"\",VLOOKUP(L610,POA!$A$2:$C$25,2,0))","v":""},null,{"$f":"IF(L610=0,\"\",IF(Q606>=$R$9,\"HABIL\",\"NO HABIL\"))","v":""},null,"",{"$f":"IF(ISERROR(VLOOKUP(N610,POA!$A$2:$F$25,5,0)),\"\",VLOOKUP(N610,POA!$A$2:$F$25,5,0))","v":""},null,"",null,0,"MIPYME",null,"",null,""]
[null,"",null,null,{"$f":"IF(ISERROR(VLOOKUP(C611,#REF!,2,0)),\"\",VLOOKUP(C611,#REF!,2,0))","v":""},null,{"$f":"IF(ISERROR(VLOOKUP(C611,#REF!,4,0)),\"\",VLOOKUP(C611,#REF!,4,0))","v":""},null,0,null,null,null,{"$f":"IF(ISERROR(VLOOKUP(L611,POA!$A$2:$C$25,3,0)),\"\",VLOOKUP(L611,POA!$A$2:$C$25,3,0))","v":""},null,{"$f":"IF(ISERROR(VLOOKUP(N611,POA!$A$2:$F$25,4,0)),\"\",VLOOKUP(N611,POA!$A$2:$F$25,4,0))","v":""},{"$f":"IF(ISERROR(VLOOKUP(L611,POA!$A$2:$C$25,2,0)),\"\",VLOOKUP(L611,POA!$A$2:$C$25,2,0))","v":""},null,{"$f":"IF(L611=0,\"\",IF(Q606>=$R$9,\"HABIL\",\"NO HABIL\"))","v":""},null,"",{"$f":"IF(ISERROR(VLOOKUP(N611,POA!$A$2:$F$25,5,0)),\"\",VLOOKUP(N611,POA!$A$2:$F$25,5,0))","v":""},null,"",null,0,"MIPYME",null,"",null,""]
[null,"",null,null,{"$f":"IF(ISERROR(VLOOKUP(C612,#REF!,2,0)),\"\",VLOOKUP(C612,#REF!,2,0))","v":""},null,{"$f":"IF(ISERROR(VLOOKUP(C612,#REF!,4,0)),\"\",VLOOKUP(C612,#REF!,4,0))","v":""},null,0,null,null,null,{"$f":"IF(ISERROR(VLOOKUP(L612,POA!$A$2:$C$25,3,0)),\"\",VLOOKUP(L612,POA!$A$2:$C$25,3,0))","v":""},null,{"$f":"IF(ISERROR(VLOOKUP(N612,POA!$A$2:$F$25,4,0)),\"\",VLOOKUP(N612,POA!$A$2:$F$25,4,0))","v":""},{"$f":"IF(ISERROR(VLOOKUP(L612,POA!$A$2:$C$25,2,0)),\"\",VLOOKUP(L612,POA!$A$2:$C$25,2,0))","v":""},null,{"$f":"IF(L612=0,\"\",IF(Q606>=$R$9,\"HABIL\",\"NO HABIL\"))","v":""},null,"",{"$f":"IF(ISERROR(VLOOKUP(N612,POA!$A$2:$F$25,5,0)),\"\",VLOOKUP(N612,POA!$A$2:$F$25,5,0))","v":""},null,"",null,0,"MIPYME",null,"",null,""]
[null,{"$f":"IF(C613=\"\",\"\",B612+0.1)","v":""},null,null,{"$f":"IF(ISERROR(VLOOKUP(C613,#REF!,2,0)),\"\",VLOOKUP(C613,#REF!,2,0))","v":""},null,{"$f":"IF(ISERROR(VLOOKUP(C613,#REF!,4,0)),\"\",VLOOKUP(C613,#REF!,4,0))","v":""},null,{"$f":"IF(ISERROR(F613-H613),\"\",F613-H613)","v":0},null,null,null,{"$f":"IF(ISERROR(VLOOKUP(L613,POA!$A$2:$C$25,3,0)),\"\",VLOOKUP(L613,POA!$A$2:$C$25,3,0))","v":""},null,{"$f":"IF(ISERROR(VLOOKUP(N613,POA!$A$2:$F$25,4,0)),\"\",VLOOKUP(N613,POA!$A$2:$F$25,4,0))","v":""},{"$f":"IF(ISERROR(VLOOKUP(L613,POA!$A$2:$C$25,2,0)),\"\",VLOOKUP(L613,POA!$A$2:$C$25,2,0))","v":""},null,{"$f":"IF(L613=0,\"\",IF(Q606>=$R$9,\"HABIL\",\"NO HABIL\"))","v":""},null,"",{"$f":"IF(ISERROR(VLOOKUP(N613,POA!$A$2:$F$25,5,0)),\"\",VLOOKUP(N613,POA!$A$2:$F$25,5,0))","v":""},null,"",null,0,"MIPYME",null,"",null,""]
[null,{"$f":"IF(C614=\"\",\"\",B613+0.1)","v":""},null,null,{"$f":"IF(ISERROR(VLOOKUP(C614,#REF!,2,0)),\"\",VLOOKUP(C614,#REF!,2,0))","v":""},null,{"$f":"IF(ISERROR(VLOOKUP(C614,#REF!,4,0)),\"\",VLOOKUP(C614,#REF!,4,0))","v":""},null,{"$f":"IF(ISERROR(F614-H614),\"\",F614-H614)","v":0},null,null,null,{"$f":"IF(ISERROR(VLOOKUP(L614,POA!$A$2:$C$25,3,0)),\"\",VLOOKUP(L614,POA!$A$2:$C$25,3,0))","v":""},null,{"$f":"IF(ISERROR(VLOOKUP(N614,POA!$A$2:$F$25,4,0)),\"\",VLOOKUP(N614,POA!$A$2:$F$25,4,0))","v":""},{"$f":"IF(ISERROR(VLOOKUP(L614,POA!$A$2:$C$25,2,0)),\"\",VLOOKUP(L614,POA!$A$2:$C$25,2,0))","v":""},null,{"$f":"IF(L614=0,\"\",IF(Q606>=$R$9,\"HABIL\",\"NO HABIL\"))","v":""},null,"",{"$f":"IF(ISERROR(VLOOKUP(N614,POA!$A$2:$F$25,5,0)),\"\",VLOOKUP(N614,POA!$A$2:$F$25,5,0))","v":""},null,"",null,0,"MIPYME",null,"",null,""]
[null,{"$f":"IF(C615=\"\",\"\",B614+0.1)","v":""},null,null,{"$f":"IF(ISERROR(VLOOKUP(C615,#REF!,2,0)),\"\",VLOOKUP(C615,#REF!,2,0))","v":""},null,{"$f":"IF(ISERROR(VLOOKUP(C615,#REF!,4,0)),\"\",VLOOKUP(C615,#REF!,4,0))","v":""},null,{"$f":"IF(ISERROR(F615-H615),\"\",F615-H615)","v":0},null,null,null,{"$f":"IF(ISERROR(VLOOKUP(L615,POA!$A$2:$C$25,3,0)),\"\",VLOOKUP(L615,POA!$A$2:$C$25,3,0))","v":""},null,{"$f":"IF(ISERROR(VLOOKUP(N615,POA!$A$2:$F$25,4,0)),\"\",VLOOKUP(N615,POA!$A$2:$F$25,4,0))","v":""},{"$f":"IF(ISERROR(VLOOKUP(L615,POA!$A$2:$C$25,2,0)),\"\",VLOOKUP(L615,POA!$A$2:$C$25,2,0))","v":""},null,{"$f":"IF(L615=0,\"\",IF(Q606>=$R$9,\"HABIL\",\"NO HABIL\"))","v":""},null,"",{"$f":"IF(ISERROR(VLOOKUP(N615,POA!$A$2:$F$25,5,0)),\"\",VLOOKUP(N615,POA!$A$2:$F$25,5,0))","v":""},null,"",null,0,"MIPYME",null,"",null,""]
[null,{"$f":"IF(C616=\"\",\"\",B615+0.1)","v":""},null,null,{"$f":"IF(ISERROR(VLOOKUP(C616,#REF!,2,0)),\"\",VLOOKUP(C616,#REF!,2,0))","v":""},null,{"$f":"IF(ISERROR(VLOOKUP(C616,#REF!,4,0)),\"\",VLOOKUP(C616,#REF!,4,0))","v":""},null,{"$f":"IF(ISERROR(F616-H616),\"\",F616-H616)","v":0},null,null,null,{"$f":"IF(ISERROR(VLOOKUP(L616,POA!$A$2:$C$25,3,0)),\"\",VLOOKUP(L616,POA!$A$2:$C$25,3,0))","v":""},null,{"$f":"IF(ISERROR(VLOOKUP(N616,POA!$A$2:$F$25,4,0)),\"\",VLOOKUP(N616,POA!$A$2:$F$25,4,0))","v":""},{"$f":"IF(ISERROR(VLOOKUP(L616,POA!$A$2:$C$25,2,0)),\"\",VLOOKUP(L616,POA!$A$2:$C$25,2,0))","v":""},null,{"$f":"IF(L616=0,\"\",IF(Q606>=$R$9,\"HABIL\",\"NO HABIL\"))","v":""},null,"",{"$f":"IF(ISERROR(VLOOKUP(N616,POA!$A$2:$F$25,5,0)),\"\",VLOOKUP(N616,POA!$A$2:$F$25,5,0))","v":""},null,"",null,{"$f":"IF(ISERROR(F616/$Z$9),\"\",F616/$Z$9)","v":0},"MIPYME",null,"",null,""]
[null,56,null,{"$f":"IF(SUM(D618:D627)=0,\"\",SUM(D618:D627))","v":""},{"$f":"SUM(E618:E627)","v":0},{"$f":"SUM(F618:F627)","v":0},{"$f":"SUM(G618:G627)","v":0},{"$f":"SUM(H618:H627)","v":0},{"$f":"+F617-H617","v":0},{"$f":"SUM(J618:J627)","v":0},{"$f":"SUM(K618:K627)","v":0},1,{"$f":"IF(ISERROR(VLOOKUP(L617,POA!$A$2:$C$25,3,0)),\"\",VLOOKUP(L617,POA!$A$2:$C$25,3,0))","v":3}," ",{"$f":"+SUM(O618:O627)","v":0},{"$f":"IF(ISERROR(VLOOKUP(L617,POA!$A$2:$C$25,2,0)),\"\",VLOOKUP(L617,POA!$A$2:$C$25,2,0))","v":4167150295},{"$f":"SUM(E617/G617)","v":{"$error":"#DIV/0!"}},{"$f":"IF(Q617=0,\"\",IF(Q617>=$R$9,\"HABIL\",\"NO HABIL\"))","v":{"$error":"#DIV/0!"}},{"$f":"SUM(H617/F617)","v":{"$error":"#DIV/0!"}},{"$f":"IF(S617=0,\"\",IF(S617<=$T$9,\"HABIL\",\"NO HABIL\"))","v":{"$error":"#DIV/0!"}},{"$f":"+SUM(U618:U627)","v":0},{"$f":"SUM(J617/K617)","v":{"$error":"#DIV/0!"}},{"$f":"IF(V617=0,\"\",IF(V617>=$W$9,\"HABIL\",\"NO HABIL\"))","v":{"$error":"#DIV/0!"}},{"$f":"IF(R617=0,\"\",IF(R617=\"NO HABIL\",\"NO HABIL\",IF(T617=\"NO HABIL\",\"NO HABIL\",IF(W617=\"NO HABIL\",\"NO HABIL\",IF(W617=\"NO HABIL\",\"NO HABIL\",\"HABIL\")))))","v":{"$error":"#DIV/0!"}},null,null,{"$f":"SUM(J617/I617)","v":{"$error":"#DIV/0!"}},{"$f":"IF(AA617=0,\"\",IF(AA617>=$AB$9,\"HABIL\",\"NO HABIL\"))","v":{"$error":"#DIV/0!"}},{"$f":"SUM(J617/F617)","v":{"$error":"#DIV/0!"}},{"$f":"IF(AC617=0,\"\",IF(AC617>=$AD$9,\"HABIL\",\"NO HABIL\"))","v":{"$error":"#DIV/0!"}},{"$f":"IF(AB617=0,\"\",IF(AB617=\"NO HABIL\",\"NO HABIL\",IF(AD617=\"NO HABIL\",\"NO HABIL\",IF(AD617=\"NO HABIL\",\"NO HABIL\",\"HABIL\"))))","v":{"$error":"#DIV/0!"}}]
[null,{"$f":"IF(C618=\"\",\"\",B617+0.1)","v":""},null,null,null,null,null,null,{"$f":"IF(ISERROR(F618-H618),\"\",F618-H618)","v":0},null,null,null,{"$f":"IF(ISERROR(VLOOKUP(L618,POA!$A$2:$C$25,3,0)),\"\",VLOOKUP(L618,POA!$A$2:$C$25,3,0))","v":""}," ",{"$f":"IF(ISERROR(VLOOKUP(N618,POA!$A$2:$F$25,4,0)),\"\",VLOOKUP(N618,POA!$A$2:$F$25,4,0))","v":""},{"$f":"IF(ISERROR(VLOOKUP(L618,POA!$A$2:$C$25,2,0)),\"\",VLOOKUP(L618,POA!$A$2:$C$25,2,0))","v":""},null,{"$f":"IF(Q618=0,\"\",IF(Q617>=$R$9,\"HABIL\",\"NO HABIL\"))","v":""},null,{"$f":"IF(S618=0,\"\",IF(S618<=$T$9,\"HABIL\",\"NO HABIL\"))","v":""},{"$f":"IF(ISERROR(VLOOKUP(N618,POA!$A$2:$F$25,5,0)),\"\",VLOOKUP(N618,POA!$A$2:$F$25,5,0))","v":""},null,{"$f":"IF(V618=0,\"\",IF(V618>=$W$9,\"HABIL\",\"NO HABIL\"))","v":""},null,{"$f":"IF(ISERROR(F618/$Z$9),\"\",F618/$Z$9)","v":0},{"$f":"+IF(Y618<$Z$10,\"MIPYME\",\"NO CUMPLE\")","v":"MIPYME"},null,{"$f":"IF(AA618=0,\"\",IF(AA618>=$AB$9,\"HABIL\",\"NO HABIL\"))","v":""},null,{"$f":"IF(AC618=0,\"\",IF(AC618>=$AD$9,\"HABIL\",\"NO HABIL\"))","v":""}]
[null,"",null,null,null,null,null,null,0,null,null,null,{"$f":"IF(ISERROR(VLOOKUP(L619,POA!$A$2:$C$25,3,0)),\"\",VLOOKUP(L619,POA!$A$2:$C$25,3,0))","v":""}," ",{"$f":"IF(ISERROR(VLOOKUP(N619,POA!$A$2:$F$25,4,0)),\"\",VLOOKUP(N619,POA!$A$2:$F$25,4,0))","v":""},{"$f":"IF(ISERROR(VLOOKUP(L619,POA!$A$2:$C$25,2,0)),\"\",VLOOKUP(L619,POA!$A$2:$C$25,2,0))","v":""},null,{"$f":"IF(Q619=0,\"\",IF(Q617>=$R$9,\"HABIL\",\"NO HABIL\"))","v":""},null,"",{"$f":"IF(ISERROR(VLOOKUP(N619,POA!$A$2:$F$25,5,0)),\"\",VLOOKUP(N619,POA!$A$2:$F$25,5,0))","v":""},null,"",null,{"$f":"IF(ISERROR(F619/$Z$9),\"\",F619/$Z$9)","v":0},{"$f":"+IF(Y619<$Z$10,\"MIPYME\",\"NO CUMPLE\")","v":"MIPYME"},null,"",null,""]
[null,"",null,null,null,null,null,null,0,null,null,null,{"$f":"IF(ISERROR(VLOOKUP(L620,POA!$A$2:$C$25,3,0)),\"\",VLOOKUP(L620,POA!$A$2:$C$25,3,0))","v":""},null,{"$f":"IF(ISERROR(VLOOKUP(N620,POA!$A$2:$F$25,4,0)),\"\",VLOOKUP(N620,POA!$A$2:$F$25,4,0))","v":""},{"$f":"IF(ISERROR(VLOOKUP(L620,POA!$A$2:$C$25,2,0)),\"\",VLOOKUP(L620,POA!$A$2:$C$25,2,0))","v":""},null,{"$f":"IF(Q620=0,\"\",IF(Q617>=$R$9,\"HABIL\",\"NO HABIL\"))","v":""},null,"",{"$f":"IF(ISERROR(VLOOKUP(N620,POA!$A$2:$F$25,5,0)),\"\",VLOOKUP(N620,POA!$A$2:$F$25,5,0))","v":""},null,"",null,0,"MIPYME",null,"",null,""]
[null,"",null,null,{"$f":"IF(ISERROR(VLOOKUP(C621,#REF!,2,0)),\"\",VLOOKUP(C621,#REF!,2,0))","v":""},null,{"$f":"IF(ISERROR(VLOOKUP(C621,#REF!,4,0)),\"\",VLOOKUP(C621,#REF!,4,0))","v":""},null,0,null,null,null,{"$f":"IF(ISERROR(VLOOKUP(L621,POA!$A$2:$C$25,3,0)),\"\",VLOOKUP(L621,POA!$A$2:$C$25,3,0))","v":""},null,{"$f":"IF(ISERROR(VLOOKUP(N621,POA!$A$2:$F$25,4,0)),\"\",VLOOKUP(N621,POA!$A$2:$F$25,4,0))","v":""},{"$f":"IF(ISERROR(VLOOKUP(L621,POA!$A$2:$C$25,2,0)),\"\",VLOOKUP(L621,POA!$A$2:$C$25,2,0))","v":""},null,{"$f":"IF(L621=0,\"\",IF(Q617>=$R$9,\"HABIL\",\"NO HABIL\"))","v":""},null,"",{"$f":"IF(ISERROR(VLOOKUP(N621,POA!$A$2:$F$25,5,0)),\"\",VLOOKUP(N621,POA!$A$2:$F$25,5,0))","v":""},null,"",null,0,"MIPYME",null,"",null,""]
[null,"",null,null,{"$f":"IF(ISERROR(VLOOKUP(C622,#REF!,2,0)),\"\",VLOOKUP(C622,#REF!,2,0))","v":""},null,{"$f":"IF(ISERROR(VLOOKUP(C622,#REF!,4,0)),\"\",VLOOKUP(C622,#REF!,4,0))","v":""},null,0,null,null,null,{"$f":"IF(ISERROR(VLOOKUP(L622,POA!$A$2:$C$25,3,0)),\"\",VLOOKUP(L622,POA!$A$2:$C$25,3,0))","v":""},null,{"$f":"IF(ISERROR(VLOOKUP(N622,POA!$A$2:$F$25,4,0)),\"\",VLOOKUP(N622,POA!$A$2:$F$25,4,0))","v":""},{"$f":"IF(ISERROR(VLOOKUP(L622,POA!$A$2:$C$25,2,0)),\"\",VLOOKUP(L622,POA!$A$2:$C$25,2,0))","v":""},null,{"$f":"IF(L622=0,\"\",IF(Q617>=$R$9,\"HABIL\",\"NO HABIL\"))","v":""},null,"",{"$f":"IF(ISERROR(VLOOKUP(N622,POA!$A$2:$F$25,5,0)),\"\",VLOOKUP(N622,POA!$A$2:$F$25,5,0))","v":""},null,"",null,0,"MIPYME",null,"",null,""]
[null,"",null,null,{"$f":"IF(ISERROR(VLOOKUP(C623,#REF!,2,0)),\"\",VLOOKUP(C623,#REF!,2,0))","v":""},null,{"$f":"IF(ISERROR(VLOOKUP(C623,#REF!,4,0)),\"\",VLOOKUP(C623,#REF!,4,0))","v":""},null,0,null,null,null,{"$f":"IF(ISERROR(VLOOKUP(L623,POA!$A$2:$C$25,3,0)),\"\",VLOOKUP(L623,POA!$A$2:$C$25,3,0))","v":""},null,{"$f":"IF(ISERROR(VLOOKUP(N623,POA!$A$2:$F$25,4,0)),\"\",VLOOKUP(N623,POA!$A$2:$F$25,4,0))","v":""},{"$f":"IF(ISERROR(VLOOKUP(L623,POA!$A$2:$C$25,2,0)),\"\",VLOOKUP(L623,POA!$A$2:$C$25,2,0))","v":""},null,{"$f":"IF(L623=0,\"\",IF(Q617>=$R$9,\"HABIL\",\"NO HABIL\"))","v":""},null,"",{"$f":"IF(ISERROR(VLOOKUP(N623,POA!$A$2:$F$25,5,0)),\"\",VLOOKUP(N623,POA!$A$2:$F$25,5,0))","v":""},null,"",null,0,"MIPYME",null,"",null,""]
[null,{"$f":"IF(C624=\"\",\"\",B623+0.1)","v":""},null,null,{"$f":"IF(ISERROR(VLOOKUP(C624,#REF!,2,0)),\"\",VLOOKUP(C624,#REF!,2,0))","v":""},null,{"$f":"IF(ISERROR(VLOOKUP(C624,#REF!,4,0)),\"\",VLOOKUP(C624,#REF!,4,0))","v":""},null,{"$f":"IF(ISERROR(F624-H624),\"\",F624-H624)","v":0},null,null,null,{"$f":"IF(ISERROR(VLOOKUP(L624,POA!$A$2:$C$25,3,0)),\"\",VLOOKUP(L624,POA!$A$2:$C$25,3,0))","v":""},null,{"$f":"IF(ISERROR(VLOOKUP(N624,POA!$A$2:$F$25,4,0)),\"\",VLOOKUP(N624,POA!$A$2:$F$25,4,0))","v":""},{"$f":"IF(ISERROR(VLOOKUP(L624,POA!$A$2:$C$25,2,0)),\"\",VLOOKUP(L624,POA!$A$2:$C$25,2,0))","v":""},null,{"$f":"IF(L624=0,\"\",IF(Q617>=$R$9,\"HABIL\",\"NO HABIL\"))","v":""},null,"",{"$f":"IF(ISERROR(VLOOKUP(N624,POA!$A$2:$F$25,5,0)),\"\",VLOOKUP(N624,POA!$A$2:$F$25,5,0))","v":""},null,"",null,0,"MIPYME",null,"",null,""]
[null,{"$f":"IF(C625=\"\",\"\",B624+0.1)","v":""},null,null,{"$f":"IF(ISERROR(VLOOKUP(C625,#REF!,2,0)),\"\",VLOOKUP(C625,#REF!,2,0))","v":""},null,{"$f":"IF(ISERROR(VLOOKUP(C625,#REF!,4,0)),\"\",VLOOKUP(C625,#REF!,4,0))","v":""},null,{"$f":"IF(ISERROR(F625-H625),\"\",F625-H625)","v":0},null,null,null,{"$f":"IF(ISERROR(VLOOKUP(L625,POA!$A$2:$C$25,3,0)),\"\",VLOOKUP(L625,POA!$A$2:$C$25,3,0))","v":""},null,{"$f":"IF(ISERROR(VLOOKUP(N625,POA!$A$2:$F$25,4,0)),\"\",VLOOKUP(N625,POA!$A$2:$F$25,4,0))","v":""},{"$f":"IF(ISERROR(VLOOKUP(L625,POA!$A$2:$C$25,2,0)),\"\",VLOOKUP(L625,POA!$A$2:$C$25,2,0))","v":""},null,{"$f":"IF(L625=0,\"\",IF(Q617>=$R$9,\"HABIL\",\"NO HABIL\"))","v":""},null,"",{"$f":"IF(ISERROR(VLOOKUP(N625,POA!$A$2:$F$25,5,0)),\"\",VLOOKUP(N625,POA!$A$2:$F$25,5,0))","v":""},null,"",null,0,"MIPYME",null,"",null,""]
[null,{"$f":"IF(C626=\"\",\"\",B625+0.1)","v":""},null,null,{"$f":"IF(ISERROR(VLOOKUP(C626,#REF!,2,0)),\"\",VLOOKUP(C626,#REF!,2,0))","v":""},null,{"$f":"IF(ISERROR(VLOOKUP(C626,#REF!,4,0)),\"\",VLOOKUP(C626,#REF!,4,0))","v":""},null,{"$f":"IF(ISERROR(F626-H626),\"\",F626-H626)","v":0},null,null,null,{"$f":"IF(ISERROR(VLOOKUP(L626,POA!$A$2:$C$25,3,0)),\"\",VLOOKUP(L626,POA!$A$2:$C$25,3,0))","v":""},null,{"$f":"IF(ISERROR(VLOOKUP(N626,POA!$A$2:$F$25,4,0)),\"\",VLOOKUP(N626,POA!$A$2:$F$25,4,0))","v":""},{"$f":"IF(ISERROR(VLOOKUP(L626,POA!$A$2:$C$25,2,0)),\"\",VLOOKUP(L626,POA!$A$2:$C$25,2,0))","v":""},null,{"$f":"IF(L626=0,\"\",IF(Q617>=$R$9,\"HABIL\",\"NO HABIL\"))","v":""},null,"",{"$f":"IF(ISERROR(VLOOKUP(N626,POA!$A$2:$F$25,5,0)),\"\",VLOOKUP(N626,POA!$A$2:$F$25,5,0))","v":""},null,"",null,0,"MIPYME",null,"",null,""]
[null,{"$f":"IF(C627=\"\",\"\",B626+0.1)","v":""},null,null,{"$f":"IF(ISERROR(VLOOKUP(C627,#REF!,2,0)),\"\",VLOOKUP(C627,#REF!,2,0))","v":""},null,{"$f":"IF(ISERROR(VLOOKUP(C627,#REF!,4,0)),\"\",VLOOKUP(C627,#REF!,4,0))","v":""},null,{"$f":"IF(ISERROR(F627-H627),\"\",F627-H627)","v":0},null,null,null,{"$f":"IF(ISERROR(VLOOKUP(L627,POA!$A$2:$C$25,3,0)),\"\",VLOOKUP(L627,POA!$A$2:$C$25,3,0))","v":""},null,{"$f":"IF(ISERROR(VLOOKUP(N627,POA!$A$2:$F$25,4,0)),\"\",VLOOKUP(N627,POA!$A$2:$F$25,4,0))","v":""},{"$f":"IF(ISERROR(VLOOKUP(L627,POA!$A$2:$C$25,2,0)),\"\",VLOOKUP(L627,POA!$A$2:$C$25,2,0))","v":""},null,{"$f":"IF(L627=0,\"\",IF(Q617>=$R$9,\"HABIL\",\"NO HABIL\"))","v":""},null,"",{"$f":"IF(ISERROR(VLOOKUP(N627,POA!$A$2:$F$25,5,0)),\"\",VLOOKUP(N627,POA!$A$2:$F$25,5,0))","v":""},null,"",null,{"$f":"IF(ISERROR(F627/$Z$9),\"\",F627/$Z$9)","v":0},"MIPYME",null,"",null,""]
[null,57,null,{"$f":"IF(SUM(D629:D638)=0,\"\",SUM(D629:D638))","v":""},{"$f":"SUM(E629:E638)","v":0},{"$f":"SUM(F629:F638)","v":0},{"$f":"SUM(G629:G638)","v":0},{"$f":"SUM(H629:H638)","v":0},{"$f":"+F628-H628","v":0},{"$f":"SUM(J629:J638)","v":0},{"$f":"SUM(K629:K638)","v":0},1,{"$f":"IF(ISERROR(VLOOKUP(L628,POA!$A$2:$C$25,3,0)),\"\",VLOOKUP(L628,POA!$A$2:$C$25,3,0))","v":3}," ",{"$f":"+SUM(O629:O638)","v":0},{"$f":"IF(ISERROR(VLOOKUP(L628,POA!$A$2:$C$25,2,0)),\"\",VLOOKUP(L628,POA!$A$2:$C$25,2,0))","v":4167150295},{"$f":"SUM(E628/G628)","v":{"$error":"#DIV/0!"}},{"$f":"IF(Q628=0,\"\",IF(Q628>=$R$9,\"HABIL\",\"NO HABIL\"))","v":{"$error":"#DIV/0!"}},{"$f":"SUM(H628/F628)","v":{"$error":"#DIV/0!"}},{"$f":"IF(S628=0,\"\",IF(S628<=$T$9,\"HABIL\",\"NO HABIL\"))","v":{"$error":"#DIV/0!"}},{"$f":"+SUM(U629:U638)","v":0},{"$f":"SUM(J628/K628)","v":{"$error":"#DIV/0!"}},{"$f":"IF(V628=0,\"\",IF(V628>=$W$9,\"HABIL\",\"NO HABIL\"))","v":{"$error":"#DIV/0!"}},{"$f":"IF(R628=0,\"\",IF(R628=\"NO HABIL\",\"NO HABIL\",IF(T628=\"NO HABIL\",\"NO HABIL\",IF(W628=\"NO HABIL\",\"NO HABIL\",IF(W628=\"NO HABIL\",\"NO HABIL\",\"HABIL\")))))","v":{"$error":"#DIV/0!"}},null,null,{"$f":"SUM(J628/I628)","v":{"$error":"#DIV/0!"}},{"$f":"IF(AA628=0,\"\",IF(AA628>=$AB$9,\"HABIL\",\"NO HABIL\"))","v":{"$error":"#DIV/0!"}},{"$f":"SUM(J628/F628)","v":{"$error":"#DIV/0!"}},{"$f":"IF(AC628=0,\"\",IF(AC628>=$AD$9,\"HABIL\",\"NO HABIL\"))","v":{"$error":"#DIV/0!"}},{"$f":"IF(AB628=0,\"\",IF(AB628=\"NO HABIL\",\"NO HABIL\",IF(AD628=\"NO HABIL\",\"NO HABIL\",IF(AD628=\"NO HABIL\",\"NO HABIL\",\"HABIL\"))))","v":{"$error":"#DIV/0!"}}]
[null,{"$f":"IF(C629=\"\",\"\",B628+0.1)","v":""},null,null,null,null,null,null,{"$f":"IF(ISERROR(F629-H629),\"\",F629-H629)","v":0},null,null,null,{"$f":"IF(ISERROR(VLOOKUP(L629,POA!$A$2:$C$25,3,0)),\"\",VLOOKUP(L629,POA!$A$2:$C$25,3,0))","v":""}," ",{"$f":"IF(ISERROR(VLOOKUP(N629,POA!$A$2:$F$25,4,0)),\"\",VLOOKUP(N629,POA!$A$2:$F$25,4,0))","v":""},{"$f":"IF(ISERROR(VLOOKUP(L629,POA!$A$2:$C$25,2,0)),\"\",VLOOKUP(L629,POA!$A$2:$C$25,2,0))","v":""},null,{"$f":"IF(Q629=0,\"\",IF(Q628>=$R$9,\"HABIL\",\"NO HABIL\"))","v":""},null,{"$f":"IF(S629=0,\"\",IF(S629<=$T$9,\"HABIL\",\"NO HABIL\"))","v":""},{"$f":"IF(ISERROR(VLOOKUP(N629,POA!$A$2:$F$25,5,0)),\"\",VLOOKUP(N629,POA!$A$2:$F$25,5,0))","v":""},null,{"$f":"IF(V629=0,\"\",IF(V629>=$W$9,\"HABIL\",\"NO HABIL\"))","v":""},null,{"$f":"IF(ISERROR(F629/$Z$9),\"\",F629/$Z$9)","v":0},{"$f":"+IF(Y629<$Z$10,\"MIPYME\",\"NO CUMPLE\")","v":"MIPYME"},null,{"$f":"IF(AA629=0,\"\",IF(AA629>=$AB$9,\"HABIL\",\"NO HABIL\"))","v":""},null,{"$f":"IF(AC629=0,\"\",IF(AC629>=$AD$9,\"HABIL\",\"NO HABIL\"))","v":""}]
[null,"",null,null,null,null,null,null,0,null,null,null,{"$f":"IF(ISERROR(VLOOKUP(L630,POA!$A$2:$C$25,3,0)),\"\",VLOOKUP(L630,POA!$A$2:$C$25,3,0))","v":""}," ",{"$f":"IF(ISERROR(VLOOKUP(N630,POA!$A$2:$F$25,4,0)),\"\",VLOOKUP(N630,POA!$A$2:$F$25,4,0))","v":""},{"$f":"IF(ISERROR(VLOOKUP(L630,POA!$A$2:$C$25,2,0)),\"\",VLOOKUP(L630,POA!$A$2:$C$25,2,0))","v":""},null,{"$f":"IF(Q630=0,\"\",IF(Q628>=$R$9,\"HABIL\",\"NO HABIL\"))","v":""},null,"",{"$f":"IF(ISERROR(VLOOKUP(N630,POA!$A$2:$F$25,5,0)),\"\",VLOOKUP(N630,POA!$A$2:$F$25,5,0))","v":""},null,"",null,{"$f":"IF(ISERROR(F630/$Z$9),\"\",F630/$Z$9)","v":0},{"$f":"+IF(Y630<$Z$10,\"MIPYME\",\"NO CUMPLE\")","v":"MIPYME"},null,"",null,""]
[null,"",null,null,null,null,null,null,0,null,null,null,{"$f":"IF(ISERROR(VLOOKUP(L631,POA!$A$2:$C$25,3,0)),\"\",VLOOKUP(L631,POA!$A$2:$C$25,3,0))","v":""},null,{"$f":"IF(ISERROR(VLOOKUP(N631,POA!$A$2:$F$25,4,0)),\"\",VLOOKUP(N631,POA!$A$2:$F$25,4,0))","v":""},{"$f":"IF(ISERROR(VLOOKUP(L631,POA!$A$2:$C$25,2,0)),\"\",VLOOKUP(L631,POA!$A$2:$C$25,2,0))","v":""},null,{"$f":"IF(Q631=0,\"\",IF(Q628>=$R$9,\"HABIL\",\"NO HABIL\"))","v":""},null,"",{"$f":"IF(ISERROR(VLOOKUP(N631,POA!$A$2:$F$25,5,0)),\"\",VLOOKUP(N631,POA!$A$2:$F$25,5,0))","v":""},null,"",null,0,"MIPYME",null,"",null,""]
[null,"",null,null,{"$f":"IF(ISERROR(VLOOKUP(C632,#REF!,2,0)),\"\",VLOOKUP(C632,#REF!,2,0))","v":""},null,{"$f":"IF(ISERROR(VLOOKUP(C632,#REF!,4,0)),\"\",VLOOKUP(C632,#REF!,4,0))","v":""},null,0,null,null,null,{"$f":"IF(ISERROR(VLOOKUP(L632,POA!$A$2:$C$25,3,0)),\"\",VLOOKUP(L632,POA!$A$2:$C$25,3,0))","v":""},null,{"$f":"IF(ISERROR(VLOOKUP(N632,POA!$A$2:$F$25,4,0)),\"\",VLOOKUP(N632,POA!$A$2:$F$25,4,0))","v":""},{"$f":"IF(ISERROR(VLOOKUP(L632,POA!$A$2:$C$25,2,0)),\"\",VLOOKUP(L632,POA!$A$2:$C$25,2,0))","v":""},null,{"$f":"IF(L632=0,\"\",IF(Q628>=$R$9,\"HABIL\",\"NO HABIL\"))","v":""},null,"",{"$f":"IF(ISERROR(VLOOKUP(N632,POA!$A$2:$F$25,5,0)),\"\",VLOOKUP(N632,POA!$A$2:$F$25,5,0))","v":""},null,"",null,0,"MIPYME",null,"",null,""]
[null,"",null,null,{"$f":"IF(ISERROR(VLOOKUP(C633,#REF!,2,0)),\"\",VLOOKUP(C633,#REF!,2,0))","v":""},null,{"$f":"IF(ISERROR(VLOOKUP(C633,#REF!,4,0)),\"\",VLOOKUP(C633,#REF!,4,0))","v":""},null,0,null,null,null,{"$f":"IF(ISERROR(VLOOKUP(L633,POA!$A$2:$C$25,3,0)),\"\",VLOOKUP(L633,POA!$A$2:$C$25,3,0))","v":""},null,{"$f":"IF(ISERROR(VLOOKUP(N633,POA!$A$2:$F$25,4,0)),\"\",VLOOKUP(N633,POA!$A$2:$F$25,4,0))","v":""},{"$f":"IF(ISERROR(VLOOKUP(L633,POA!$A$2:$C$25,2,0)),\"\",VLOOKUP(L633,POA!$A$2:$C$25,2,0))","v":""},null,{"$f":"IF(L633=0,\"\",IF(Q628>=$R$9,\"HABIL\",\"NO HABIL\"))","v":""},null,"",{"$f":"IF(ISERROR(VLOOKUP(N633,POA!$A$2:$F$25,5,0)),\"\",VLOOKUP(N633,POA!$A$2:$F$25,5,0))","v":""},null,"",null,0,"MIPYME",null,"",null,""]
[null,"",null,null,{"$f":"IF(ISERROR(VLOOKUP(C634,#REF!,2,0)),\"\",VLOOKUP(C634,#REF!,2,0))","v":""},null,{"$f":"IF(ISERROR(VLOOKUP(C634,#REF!,4,0)),\"\",VLOOKUP(C634,#REF!,4,0))","v":""},null,0,null,null,null,{"$f":"IF(ISERROR(VLOOKUP(L634,POA!$A$2:$C$25,3,0)),\"\",VLOOKUP(L634,POA!$A$2:$C$25,3,0))","v":""},null,{"$f":"IF(ISERROR(VLOOKUP(N634,POA!$A$2:$F$25,4,0)),\"\",VLOOKUP(N634,POA!$A$2:$F$25,4,0))","v":""},{"$f":"IF(ISERROR(VLOOKUP(L634,POA!$A$2:$C$25,2,0)),\"\",VLOOKUP(L634,POA!$A$2:$C$25,2,0))","v":""},null,{"$f":"IF(L634=0,\"\",IF(Q628>=$R$9,\"HABIL\",\"NO HABIL\"))","v":""},null,"",{"$f":"IF(ISERROR(VLOOKUP(N634,POA!$A$2:$F$25,5,0)),\"\",VLOOKUP(N634,POA!$A$2:$F$25,5,0))","v":""},null,"",null,0,"MIPYME",null,"",null,""]
[null,{"$f":"IF(C635=\"\",\"\",B634+0.1)","v":""},null,null,{"$f":"IF(ISERROR(VLOOKUP(C635,#REF!,2,0)),\"\",VLOOKUP(C635,#REF!,2,0))","v":""},null,{"$f":"IF(ISERROR(VLOOKUP(C635,#REF!,4,0)),\"\",VLOOKUP(C635,#REF!,4,0))","v":""},null,{"$f":"IF(ISERROR(F635-H635),\"\",F635-H635)","v":0},null,null,null,{"$f":"IF(ISERROR(VLOOKUP(L635,POA!$A$2:$C$25,3,0)),\"\",VLOOKUP(L635,POA!$A$2:$C$25,3,0))","v":""},null,{"$f":"IF(ISERROR(VLOOKUP(N635,POA!$A$2:$F$25,4,0)),\"\",VLOOKUP(N635,POA!$A$2:$F$25,4,0))","v":""},{"$f":"IF(ISERROR(VLOOKUP(L635,POA!$A$2:$C$25,2,0)),\"\",VLOOKUP(L635,POA!$A$2:$C$25,2,0))","v":""},null,{"$f":"IF(L635=0,\"\",IF(Q628>=$R$9,\"HABIL\",\"NO HABIL\"))","v":""},null,"",{"$f":"IF(ISERROR(VLOOKUP(N635,POA!$A$2:$F$25,5,0)),\"\",VLOOKUP(N635,POA!$A$2:$F$25,5,0))","v":""},null,"",null,0,"MIPYME",null,"",null,""]
[null,{"$f":"IF(C636=\"\",\"\",B635+0.1)","v":""},null,null,{"$f":"IF(ISERROR(VLOOKUP(C636,#REF!,2,0)),\"\",VLOOKUP(C636,#REF!,2,0))","v":""},null,{"$f":"IF(ISERROR(VLOOKUP(C636,#REF!,4,0)),\"\",VLOOKUP(C636,#REF!,4,0))","v":""},null,{"$f":"IF(ISERROR(F636-H636),\"\",F636-H636)","v":0},null,null,null,{"$f":"IF(ISERROR(VLOOKUP(L636,POA!$A$2:$C$25,3,0)),\"\",VLOOKUP(L636,POA!$A$2:$C$25,3,0))","v":""},null,{"$f":"IF(ISERROR(VLOOKUP(N636,POA!$A$2:$F$25,4,0)),\"\",VLOOKUP(N636,POA!$A$2:$F$25,4,0))","v":""},{"$f":"IF(ISERROR(VLOOKUP(L636,POA!$A$2:$C$25,2,0)),\"\",VLOOKUP(L636,POA!$A$2:$C$25,2,0))","v":""},null,{"$f":"IF(L636=0,\"\",IF(Q628>=$R$9,\"HABIL\",\"NO HABIL\"))","v":""},null,"",{"$f":"IF(ISERROR(VLOOKUP(N636,POA!$A$2:$F$25,5,0)),\"\",VLOOKUP(N636,POA!$A$2:$F$25,5,0))","v":""},null,"",null,0,"MIPYME",null,"",null,""]
[null,{"$f":"IF(C637=\"\",\"\",B636+0.1)","v":""},null,null,{"$f":"IF(ISERROR(VLOOKUP(C637,#REF!,2,0)),\"\",VLOOKUP(C637,#REF!,2,0))","v":""},null,{"$f":"IF(ISERROR(VLOOKUP(C637,#REF!,4,0)),\"\",VLOOKUP(C637,#REF!,4,0))","v":""},null,{"$f":"IF(ISERROR(F637-H637),\"\",F637-H637)","v":0},null,null,null,{"$f":"IF(ISERROR(VLOOKUP(L637,POA!$A$2:$C$25,3,0)),\"\",VLOOKUP(L637,POA!$A$2:$C$25,3,0))","v":""},null,{"$f":"IF(ISERROR(VLOOKUP(N637,POA!$A$2:$F$25,4,0)),\"\",VLOOKUP(N637,POA!$A$2:$F$25,4,0))","v":""},{"$f":"IF(ISERROR(VLOOKUP(L637,POA!$A$2:$C$25,2,0)),\"\",VLOOKUP(L637,POA!$A$2:$C$25,2,0))","v":""},null,{"$f":"IF(L637=0,\"\",IF(Q628>=$R$9,\"HABIL\",\"NO HABIL\"))","v":""},null,"",{"$f":"IF(ISERROR(VLOOKUP(N637,POA!$A$2:$F$25,5,0)),\"\",VLOOKUP(N637,POA!$A$2:$F$25,5,0))","v":""},null,"",null,0,"MIPYME",null,"",null,""]
[null,{"$f":"IF(C638=\"\",\"\",B637+0.1)","v":""},null,null,{"$f":"IF(ISERROR(VLOOKUP(C638,#REF!,2,0)),\"\",VLOOKUP(C638,#REF!,2,0))","v":""},null,{"$f":"IF(ISERROR(VLOOKUP(C638,#REF!,4,0)),\"\",VLOOKUP(C638,#REF!,4,0))","v":""},null,{"$f":"IF(ISERROR(F638-H638),\"\",F638-H638)","v":0},null,null,null,{"$f":"IF(ISERROR(VLOOKUP(L638,POA!$A$2:$C$25,3,0)),\"\",VLOOKUP(L638,POA!$A$2:$C$25,3,0))","v":""},null,{"$f":"IF(ISERROR(VLOOKUP(N638,POA!$A$2:$F$25,4,0)),\"\",VLOOKUP(N638,POA!$A$2:$F$25,4,0))","v":""},{"$f":"IF(ISERROR(VLOOKUP(L638,POA!$A$2:$C$25,2,0)),\"\",VLOOKUP(L638,POA!$A$2:$C$25,2,0))","v":""},null,{"$f":"IF(L638=0,\"\",IF(Q628>=$R$9,\"HABIL\",\"NO HABIL\"))","v":""},null,"",{"$f":"IF(ISERROR(VLOOKUP(N638,POA!$A$2:$F$25,5,0)),\"\",VLOOKUP(N638,POA!$A$2:$F$25,5,0))","v":""},null,"",null,{"$f":"IF(ISERROR(F638/$Z$9),\"\",F638/$Z$9)","v":0},"MIPYME",null,"",null,""]
[null,58,null,{"$f":"IF(SUM(D640:D649)=0,\"\",SUM(D640:D649))","v":""},{"$f":"SUM(E640:E649)","v":0},{"$f":"SUM(F640:F649)","v":0},{"$f":"SUM(G640:G649)","v":0},{"$f":"SUM(H640:H649)","v":0},{"$f":"+F639-H639","v":0},{"$f":"SUM(J640:J649)","v":0},{"$f":"SUM(K640:K649)","v":0},1,{"$f":"IF(ISERROR(VLOOKUP(L639,POA!$A$2:$C$25,3,0)),\"\",VLOOKUP(L639,POA!$A$2:$C$25,3,0))","v":3}," ",{"$f":"+SUM(O640:O649)","v":0},{"$f":"IF(ISERROR(VLOOKUP(L639,POA!$A$2:$C$25,2,0)),\"\",VLOOKUP(L639,POA!$A$2:$C$25,2,0))","v":4167150295},{"$f":"SUM(E639/G639)","v":{"$error":"#DIV/0!"}},{"$f":"IF(Q639=0,\"\",IF(Q639>=$R$9,\"HABIL\",\"NO HABIL\"))","v":{"$error":"#DIV/0!"}},{"$f":"SUM(H639/F639)","v":{"$error":"#DIV/0!"}},{"$f":"IF(S639=0,\"\",IF(S639<=$T$9,\"HABIL\",\"NO HABIL\"))","v":{"$error":"#DIV/0!"}},{"$f":"+SUM(U640:U649)","v":0},{"$f":"SUM(J639/K639)","v":{"$error":"#DIV/0!"}},{"$f":"IF(V639=0,\"\",IF(V639>=$W$9,\"HABIL\",\"NO HABIL\"))","v":{"$error":"#DIV/0!"}},{"$f":"IF(R639=0,\"\",IF(R639=\"NO HABIL\",\"NO HABIL\",IF(T639=\"NO HABIL\",\"NO HABIL\",IF(W639=\"NO HABIL\",\"NO HABIL\",IF(W639=\"NO HABIL\",\"NO HABIL\",\"HABIL\")))))","v":{"$error":"#DIV/0!"}},null,null,{"$f":"SUM(J639/I639)","v":{"$error":"#DIV/0!"}},{"$f":"IF(AA639=0,\"\",IF(AA639>=$AB$9,\"HABIL\",\"NO HABIL\"))","v":{"$error":"#DIV/0!"}},{"$f":"SUM(J639/F639)","v":{"$error":"#DIV/0!"}},{"$f":"IF(AC639=0,\"\",IF(AC639>=$AD$9,\"HABIL\",\"NO HABIL\"))","v":{"$error":"#DIV/0!"}},{"$f":"IF(AB639=0,\"\",IF(AB639=\"NO HABIL\",\"NO HABIL\",IF(AD639=\"NO HABIL\",\"NO HABIL\",IF(AD639=\"NO HABIL\",\"NO HABIL\",\"HABIL\"))))","v":{"$error":"#DIV/0!"}}]
[null,{"$f":"IF(C640=\"\",\"\",B639+0.1)","v":""},null,null,null,null,null,null,{"$f":"IF(ISERROR(F640-H640),\"\",F640-H640)","v":0},null,null,null,{"$f":"IF(ISERROR(VLOOKUP(L640,POA!$A$2:$C$25,3,0)),\"\",VLOOKUP(L640,POA!$A$2:$C$25,3,0))","v":""}," ",{"$f":"IF(ISERROR(VLOOKUP(N640,POA!$A$2:$F$25,4,0)),\"\",VLOOKUP(N640,POA!$A$2:$F$25,4,0))","v":""},{"$f":"IF(ISERROR(VLOOKUP(L640,POA!$A$2:$C$25,2,0)),\"\",VLOOKUP(L640,POA!$A$2:$C$25,2,0))","v":""},null,{"$f":"IF(Q640=0,\"\",IF(Q639>=$R$9,\"HABIL\",\"NO HABIL\"))","v":""},null,{"$f":"IF(S640=0,\"\",IF(S640<=$T$9,\"HABIL\",\"NO HABIL\"))","v":""},{"$f":"IF(ISERROR(VLOOKUP(N640,POA!$A$2:$F$25,5,0)),\"\",VLOOKUP(N640,POA!$A$2:$F$25,5,0))","v":""},null,{"$f":"IF(V640=0,\"\",IF(V640>=$W$9,\"HABIL\",\"NO HABIL\"))","v":""},null,{"$f":"IF(ISERROR(F640/$Z$9),\"\",F640/$Z$9)","v":0},{"$f":"+IF(Y640<$Z$10,\"MIPYME\",\"NO CUMPLE\")","v":"MIPYME"},null,{"$f":"IF(AA640=0,\"\",IF(AA640>=$AB$9,\"HABIL\",\"NO HABIL\"))","v":""},null,{"$f":"IF(AC640=0,\"\",IF(AC640>=$AD$9,\"HABIL\",\"NO HABIL\"))","v":""}]
[null,"",null,null,null,null,null,null,0,null,null,null,{"$f":"IF(ISERROR(VLOOKUP(L641,POA!$A$2:$C$25,3,0)),\"\",VLOOKUP(L641,POA!$A$2:$C$25,3,0))","v":""}," ",{"$f":"IF(ISERROR(VLOOKUP(N641,POA!$A$2:$F$25,4,0)),\"\",VLOOKUP(N641,POA!$A$2:$F$25,4,0))","v":""},{"$f":"IF(ISERROR(VLOOKUP(L641,POA!$A$2:$C$25,2,0)),\"\",VLOOKUP(L641,POA!$A$2:$C$25,2,0))","v":""},null,{"$f":"IF(Q641=0,\"\",IF(Q639>=$R$9,\"HABIL\",\"NO HABIL\"))","v":""},null,"",{"$f":"IF(ISERROR(VLOOKUP(N641,POA!$A$2:$F$25,5,0)),\"\",VLOOKUP(N641,POA!$A$2:$F$25,5,0))","v":""},null,"",null,{"$f":"IF(ISERROR(F641/$Z$9),\"\",F641/$Z$9)","v":0},{"$f":"+IF(Y641<$Z$10,\"MIPYME\",\"NO CUMPLE\")","v":"MIPYME"},null,"",null,""]
[null,"",null,null,null,null,null,null,0,null,null,null,{"$f":"IF(ISERROR(VLOOKUP(L642,POA!$A$2:$C$25,3,0)),\"\",VLOOKUP(L642,POA!$A$2:$C$25,3,0))","v":""},null,{"$f":"IF(ISERROR(VLOOKUP(N642,POA!$A$2:$F$25,4,0)),\"\",VLOOKUP(N642,POA!$A$2:$F$25,4,0))","v":""},{"$f":"IF(ISERROR(VLOOKUP(L642,POA!$A$2:$C$25,2,0)),\"\",VLOOKUP(L642,POA!$A$2:$C$25,2,0))","v":""},null,{"$f":"IF(Q642=0,\"\",IF(Q639>=$R$9,\"HABIL\",\"NO HABIL\"))","v":""},null,"",{"$f":"IF(ISERROR(VLOOKUP(N642,POA!$A$2:$F$25,5,0)),\"\",VLOOKUP(N642,POA!$A$2:$F$25,5,0))","v":""},null,"",null,0,"MIPYME",null,"",null,""]
[null,"",null,null,{"$f":"IF(ISERROR(VLOOKUP(C643,#REF!,2,0)),\"\",VLOOKUP(C643,#REF!,2,0))","v":""},null,{"$f":"IF(ISERROR(VLOOKUP(C643,#REF!,4,0)),\"\",VLOOKUP(C643,#REF!,4,0))","v":""},null,0,null,null,null,{"$f":"IF(ISERROR(VLOOKUP(L643,POA!$A$2:$C$25,3,0)),\"\",VLOOKUP(L643,POA!$A$2:$C$25,3,0))","v":""},null,{"$f":"IF(ISERROR(VLOOKUP(N643,POA!$A$2:$F$25,4,0)),\"\",VLOOKUP(N643,POA!$A$2:$F$25,4,0))","v":""},{"$f":"IF(ISERROR(VLOOKUP(L643,POA!$A$2:$C$25,2,0)),\"\",VLOOKUP(L643,POA!$A$2:$C$25,2,0))","v":""},null,{"$f":"IF(L643=0,\"\",IF(Q639>=$R$9,\"HABIL\",\"NO HABIL\"))","v":""},null,"",{"$f":"IF(ISERROR(VLOOKUP(N643,POA!$A$2:$F$25,5,0)),\"\",VLOOKUP(N643,POA!$A$2:$F$25,5,0))","v":""},null,"",null,0,"MIPYME",null,"",null,""]
[null,"",null,null,{"$f":"IF(ISERROR(VLOOKUP(C644,#REF!,2,0)),\"\",VLOOKUP(C644,#REF!,2,0))","v":""},null,{"$f":"IF(ISERROR(VLOOKUP(C644,#REF!,4,0)),\"\",VLOOKUP(C644,#REF!,4,0))","v":""},null,0,null,null,null,{"$f":"IF(ISERROR(VLOOKUP(L644,POA!$A$2:$C$25,3,0)),\"\",VLOOKUP(L644,POA!$A$2:$C$25,3,0))","v":""},null,{"$f":"IF(ISERROR(VLOOKUP(N644,POA!$A$2:$F$25,4,0)),\"\",VLOOKUP(N644,POA!$A$2:$F$25,4,0))","v":""},{"$f":"IF(ISERROR(VLOOKUP(L644,POA!$A$2:$C$25,2,0)),\"\",VLOOKUP(L644,POA!$A$2:$C$25,2,0))","v":""},null,{"$f":"IF(L644=0,\"\",IF(Q639>=$R$9,\"HABIL\",\"NO HABIL\"))","v":""},null,"",{"$f":"IF(ISERROR(VLOOKUP(N644,POA!$A$2:$F$25,5,0)),\"\",VLOOKUP(N644,POA!$A$2:$F$25,5,0))","v":""},null,"",null,0,"MIPYME",null,"",null,""]
[null,"",null,null,{"$f":"IF(ISERROR(VLOOKUP(C645,#REF!,2,0)),\"\",VLOOKUP(C645,#REF!,2,0))","v":""},null,{"$f":"IF(ISERROR(VLOOKUP(C645,#REF!,4,0)),\"\",VLOOKUP(C645,#REF!,4,0))","v":""},null,0,null,null,null,{"$f":"IF(ISERROR(VLOOKUP(L645,POA!$A$2:$C$25,3,0)),\"\",VLOOKUP(L645,POA!$A$2:$C$25,3,0))","v":""},null,{"$f":"IF(ISERROR(VLOOKUP(N645,POA!$A$2:$F$25,4,0)),\"\",VLOOKUP(N645,POA!$A$2:$F$25,4,0))","v":""},{"$f":"IF(ISERROR(VLOOKUP(L645,POA!$A$2:$C$25,2,0)),\"\",VLOOKUP(L645,POA!$A$2:$C$25,2,0))","v":""},null,{"$f":"IF(L645=0,\"\",IF(Q639>=$R$9,\"HABIL\",\"NO HABIL\"))","v":""},null,"",{"$f":"IF(ISERROR(VLOOKUP(N645,POA!$A$2:$F$25,5,0)),\"\",VLOOKUP(N645,POA!$A$2:$F$25,5,0))","v":""},null,"",null,0,"MIPYME",null,"",null,""]
[null,{"$f":"IF(C646=\"\",\"\",B645+0.1)","v":""},null,null,{"$f":"IF(ISERROR(VLOOKUP(C646,#REF!,2,0)),\"\",VLOOKUP(C646,#REF!,2,0))","v":""},null,{"$f":"IF(ISERROR(VLOOKUP(C646,#REF!,4,0)),\"\",VLOOKUP(C646,#REF!,4,0))","v":""},null,{"$f":"IF(ISERROR(F646-H646),\"\",F646-H646)","v":0},null,null,null,{"$f":"IF(ISERROR(VLOOKUP(L646,POA!$A$2:$C$25,3,0)),\"\",VLOOKUP(L646,POA!$A$2:$C$25,3,0))","v":""},null,{"$f":"IF(ISERROR(VLOOKUP(N646,POA!$A$2:$F$25,4,0)),\"\",VLOOKUP(N646,POA!$A$2:$F$25,4,0))","v":""},{"$f":"IF(ISERROR(VLOOKUP(L646,POA!$A$2:$C$25,2,0)),\"\",VLOOKUP(L646,POA!$A$2:$C$25,2,0))","v":""},null,{"$f":"IF(L646=0,\"\",IF(Q639>=$R$9,\"HABIL\",\"NO HABIL\"))","v":""},null,"",{"$f":"IF(ISERROR(VLOOKUP(N646,POA!$A$2:$F$25,5,0)),\"\",VLOOKUP(N646,POA!$A$2:$F$25,5,0))","v":""},null,"",null,0,"MIPYME",null,"",null,""]
[null,{"$f":"IF(C647=\"\",\"\",B646+0.1)","v":""},null,null,{"$f":"IF(ISERROR(VLOOKUP(C647,#REF!,2,0)),\"\",VLOOKUP(C647,#REF!,2,0))","v":""},null,{"$f":"IF(ISERROR(VLOOKUP(C647,#REF!,4,0)),\"\",VLOOKUP(C647,#REF!,4,0))","v":""},null,{"$f":"IF(ISERROR(F647-H647),\"\",F647-H647)","v":0},null,null,null,{"$f":"IF(ISERROR(VLOOKUP(L647,POA!$A$2:$C$25,3,0)),\"\",VLOOKUP(L647,POA!$A$2:$C$25,3,0))","v":""},null,{"$f":"IF(ISERROR(VLOOKUP(N647,POA!$A$2:$F$25,4,0)),\"\",VLOOKUP(N647,POA!$A$2:$F$25,4,0))","v":""},{"$f":"IF(ISERROR(VLOOKUP(L647,POA!$A$2:$C$25,2,0)),\"\",VLOOKUP(L647,POA!$A$2:$C$25,2,0))","v":""},null,{"$f":"IF(L647=0,\"\",IF(Q639>=$R$9,\"HABIL\",\"NO HABIL\"))","v":""},null,"",{"$f":"IF(ISERROR(VLOOKUP(N647,POA!$A$2:$F$25,5,0)),\"\",VLOOKUP(N647,POA!$A$2:$F$25,5,0))","v":""},null,"",null,0,"MIPYME",null,"",null,""]
[null,{"$f":"IF(C648=\"\",\"\",B647+0.1)","v":""},null,null,{"$f":"IF(ISERROR(VLOOKUP(C648,#REF!,2,0)),\"\",VLOOKUP(C648,#REF!,2,0))","v":""},null,{"$f":"IF(ISERROR(VLOOKUP(C648,#REF!,4,0)),\"\",VLOOKUP(C648,#REF!,4,0))","v":""},null,{"$f":"IF(ISERROR(F648-H648),\"\",F648-H648)","v":0},null,null,null,{"$f":"IF(ISERROR(VLOOKUP(L648,POA!$A$2:$C$25,3,0)),\"\",VLOOKUP(L648,POA!$A$2:$C$25,3,0))","v":""},null,{"$f":"IF(ISERROR(VLOOKUP(N648,POA!$A$2:$F$25,4,0)),\"\",VLOOKUP(N648,POA!$A$2:$F$25,4,0))","v":""},{"$f":"IF(ISERROR(VLOOKUP(L648,POA!$A$2:$C$25,2,0)),\"\",VLOOKUP(L648,POA!$A$2:$C$25,2,0))","v":""},null,{"$f":"IF(L648=0,\"\",IF(Q639>=$R$9,\"HABIL\",\"NO HABIL\"))","v":""},null,"",{"$f":"IF(ISERROR(VLOOKUP(N648,POA!$A$2:$F$25,5,0)),\"\",VLOOKUP(N648,POA!$A$2:$F$25,5,0))","v":""},null,"",null,0,"MIPYME",null,"",null,""]
[null,{"$f":"IF(C649=\"\",\"\",B648+0.1)","v":""},null,null,{"$f":"IF(ISERROR(VLOOKUP(C649,#REF!,2,0)),\"\",VLOOKUP(C649,#REF!,2,0))","v":""},null,{"$f":"IF(ISERROR(VLOOKUP(C649,#REF!,4,0)),\"\",VLOOKUP(C649,#REF!,4,0))","v":""},null,{"$f":"IF(ISERROR(F649-H649),\"\",F649-H649)","v":0},null,null,null,{"$f":"IF(ISERROR(VLOOKUP(L649,POA!$A$2:$C$25,3,0)),\"\",VLOOKUP(L649,POA!$A$2:$C$25,3,0))","v":""},null,{"$f":"IF(ISERROR(VLOOKUP(N649,POA!$A$2:$F$25,4,0)),\"\",VLOOKUP(N649,POA!$A$2:$F$25,4,0))","v":""},{"$f":"IF(ISERROR(VLOOKUP(L649,POA!$A$2:$C$25,2,0)),\"\",VLOOKUP(L649,POA!$A$2:$C$25,2,0))","v":""},null,{"$f":"IF(L649=0,\"\",IF(Q639>=$R$9,\"HABIL\",\"NO HABIL\"))","v":""},null,"",{"$f":"IF(ISERROR(VLOOKUP(N649,POA!$A$2:$F$25,5,0)),\"\",VLOOKUP(N649,POA!$A$2:$F$25,5,0))","v":""},null,"",null,{"$f":"IF(ISERROR(F649/$Z$9),\"\",F649/$Z$9)","v":0},"MIPYME",null,"",null,""]
[null,59,null,{"$f":"IF(SUM(D651:D660)=0,\"\",SUM(D651:D660))","v":""},{"$f":"SUM(E651:E660)","v":0},{"$f":"SUM(F651:F660)","v":0},{"$f":"SUM(G651:G660)","v":0},{"$f":"SUM(H651:H660)","v":0},{"$f":"+F650-H650","v":0},{"$f":"SUM(J651:J660)","v":0},{"$f":"SUM(K651:K660)","v":0},1,{"$f":"IF(ISERROR(VLOOKUP(L650,POA!$A$2:$C$25,3,0)),\"\",VLOOKUP(L650,POA!$A$2:$C$25,3,0))","v":3}," ",{"$f":"+SUM(O651:O660)","v":0},{"$f":"IF(ISERROR(VLOOKUP(L650,POA!$A$2:$C$25,2,0)),\"\",VLOOKUP(L650,POA!$A$2:$C$25,2,0))","v":4167150295},{"$f":"SUM(E650/G650)","v":{"$error":"#DIV/0!"}},{"$f":"IF(Q650=0,\"\",IF(Q650>=$R$9,\"HABIL\",\"NO HABIL\"))","v":{"$error":"#DIV/0!"}},{"$f":"SUM(H650/F650)","v":{"$error":"#DIV/0!"}},{"$f":"IF(S650=0,\"\",IF(S650<=$T$9,\"HABIL\",\"NO HABIL\"))","v":{"$error":"#DIV/0!"}},{"$f":"+SUM(U651:U660)","v":0},{"$f":"SUM(J650/K650)","v":{"$error":"#DIV/0!"}},{"$f":"IF(V650=0,\"\",IF(V650>=$W$9,\"HABIL\",\"NO HABIL\"))","v":{"$error":"#DIV/0!"}},{"$f":"IF(R650=0,\"\",IF(R650=\"NO HABIL\",\"NO HABIL\",IF(T650=\"NO HABIL\",\"NO HABIL\",IF(W650=\"NO HABIL\",\"NO HABIL\",IF(W650=\"NO HABIL\",\"NO HABIL\",\"HABIL\")))))","v":{"$error":"#DIV/0!"}},null,null,{"$f":"SUM(J650/I650)","v":{"$error":"#DIV/0!"}},{"$f":"IF(AA650=0,\"\",IF(AA650>=$AB$9,\"HABIL\",\"NO HABIL\"))","v":{"$error":"#DIV/0!"}},{"$f":"SUM(J650/F650)","v":{"$error":"#DIV/0!"}},{"$f":"IF(AC650=0,\"\",IF(AC650>=$AD$9,\"HABIL\",\"NO HABIL\"))","v":{"$error":"#DIV/0!"}},{"$f":"IF(AB650=0,\"\",IF(AB650=\"NO HABIL\",\"NO HABIL\",IF(AD650=\"NO HABIL\",\"NO HABIL\",IF(AD650=\"NO HABIL\",\"NO HABIL\",\"HABIL\"))))","v":{"$error":"#DIV/0!"}}]
[null,{"$f":"IF(C651=\"\",\"\",B650+0.1)","v":""},null,null,null,null,null,null,{"$f":"IF(ISERROR(F651-H651),\"\",F651-H651)","v":0},null,null,null,{"$f":"IF(ISERROR(VLOOKUP(L651,POA!$A$2:$C$25,3,0)),\"\",VLOOKUP(L651,POA!$A$2:$C$25,3,0))","v":""}," ",{"$f":"IF(ISERROR(VLOOKUP(N651,POA!$A$2:$F$25,4,0)),\"\",VLOOKUP(N651,POA!$A$2:$F$25,4,0))","v":""},{"$f":"IF(ISERROR(VLOOKUP(L651,POA!$A$2:$C$25,2,0)),\"\",VLOOKUP(L651,POA!$A$2:$C$25,2,0))","v":""},null,{"$f":"IF(Q651=0,\"\",IF(Q650>=$R$9,\"HABIL\",\"NO HABIL\"))","v":""},null,{"$f":"IF(S651=0,\"\",IF(S651<=$T$9,\"HABIL\",\"NO HABIL\"))","v":""},{"$f":"IF(ISERROR(VLOOKUP(N651,POA!$A$2:$F$25,5,0)),\"\",VLOOKUP(N651,POA!$A$2:$F$25,5,0))","v":""},null,{"$f":"IF(V651=0,\"\",IF(V651>=$W$9,\"HABIL\",\"NO HABIL\"))","v":""},null,{"$f":"IF(ISERROR(F651/$Z$9),\"\",F651/$Z$9)","v":0},{"$f":"+IF(Y651<$Z$10,\"MIPYME\",\"NO CUMPLE\")","v":"MIPYME"},null,{"$f":"IF(AA651=0,\"\",IF(AA651>=$AB$9,\"HABIL\",\"NO HABIL\"))","v":""},null,{"$f":"IF(AC651=0,\"\",IF(AC651>=$AD$9,\"HABIL\",\"NO HABIL\"))","v":""}]
[null,"",null,null,null,null,null,null,0,null,null,null,{"$f":"IF(ISERROR(VLOOKUP(L652,POA!$A$2:$C$25,3,0)),\"\",VLOOKUP(L652,POA!$A$2:$C$25,3,0))","v":""}," ",{"$f":"IF(ISERROR(VLOOKUP(N652,POA!$A$2:$F$25,4,0)),\"\",VLOOKUP(N652,POA!$A$2:$F$25,4,0))","v":""},{"$f":"IF(ISERROR(VLOOKUP(L652,POA!$A$2:$C$25,2,0)),\"\",VLOOKUP(L652,POA!$A$2:$C$25,2,0))","v":""},null,{"$f":"IF(Q652=0,\"\",IF(Q650>=$R$9,\"HABIL\",\"NO HABIL\"))","v":""},null,"",{"$f":"IF(ISERROR(VLOOKUP(N652,POA!$A$2:$F$25,5,0)),\"\",VLOOKUP(N652,POA!$A$2:$F$25,5,0))","v":""},null,"",null,{"$f":"IF(ISERROR(F652/$Z$9),\"\",F652/$Z$9)","v":0},{"$f":"+IF(Y652<$Z$10,\"MIPYME\",\"NO CUMPLE\")","v":"MIPYME"},null,"",null,""]
[null,"",null,null,null,null,null,null,0,null,null,null,{"$f":"IF(ISERROR(VLOOKUP(L653,POA!$A$2:$C$25,3,0)),\"\",VLOOKUP(L653,POA!$A$2:$C$25,3,0))","v":""},null,{"$f":"IF(ISERROR(VLOOKUP(N653,POA!$A$2:$F$25,4,0)),\"\",VLOOKUP(N653,POA!$A$2:$F$25,4,0))","v":""},{"$f":"IF(ISERROR(VLOOKUP(L653,POA!$A$2:$C$25,2,0)),\"\",VLOOKUP(L653,POA!$A$2:$C$25,2,0))","v":""},null,{"$f":"IF(Q653=0,\"\",IF(Q650>=$R$9,\"HABIL\",\"NO HABIL\"))","v":""},null,"",{"$f":"IF(ISERROR(VLOOKUP(N653,POA!$A$2:$F$25,5,0)),\"\",VLOOKUP(N653,POA!$A$2:$F$25,5,0))","v":""},null,"",null,0,"MIPYME",null,"",null,""]
[null,"",null,null,{"$f":"IF(ISERROR(VLOOKUP(C654,#REF!,2,0)),\"\",VLOOKUP(C654,#REF!,2,0))","v":""},null,{"$f":"IF(ISERROR(VLOOKUP(C654,#REF!,4,0)),\"\",VLOOKUP(C654,#REF!,4,0))","v":""},null,0,null,null,null,{"$f":"IF(ISERROR(VLOOKUP(L654,POA!$A$2:$C$25,3,0)),\"\",VLOOKUP(L654,POA!$A$2:$C$25,3,0))","v":""},null,{"$f":"IF(ISERROR(VLOOKUP(N654,POA!$A$2:$F$25,4,0)),\"\",VLOOKUP(N654,POA!$A$2:$F$25,4,0))","v":""},{"$f":"IF(ISERROR(VLOOKUP(L654,POA!$A$2:$C$25,2,0)),\"\",VLOOKUP(L654,POA!$A$2:$C$25,2,0))","v":""},null,{"$f":"IF(L654=0,\"\",IF(Q650>=$R$9,\"HABIL\",\"NO HABIL\"))","v":""},null,"",{"$f":"IF(ISERROR(VLOOKUP(N654,POA!$A$2:$F$25,5,0)),\"\",VLOOKUP(N654,POA!$A$2:$F$25,5,0))","v":""},null,"",null,0,"MIPYME",null,"",null,""]
[null,"",null,null,{"$f":"IF(ISERROR(VLOOKUP(C655,#REF!,2,0)),\"\",VLOOKUP(C655,#REF!,2,0))","v":""},null,{"$f":"IF(ISERROR(VLOOKUP(C655,#REF!,4,0)),\"\",VLOOKUP(C655,#REF!,4,0))","v":""},null,0,null,null,null,{"$f":"IF(ISERROR(VLOOKUP(L655,POA!$A$2:$C$25,3,0)),\"\",VLOOKUP(L655,POA!$A$2:$C$25,3,0))","v":""},null,{"$f":"IF(ISERROR(VLOOKUP(N655,POA!$A$2:$F$25,4,0)),\"\",VLOOKUP(N655,POA!$A$2:$F$25,4,0))","v":""},{"$f":"IF(ISERROR(VLOOKUP(L655,POA!$A$2:$C$25,2,0)),\"\",VLOOKUP(L655,POA!$A$2:$C$25,2,0))","v":""},null,{"$f":"IF(L655=0,\"\",IF(Q650>=$R$9,\"HABIL\",\"NO HABIL\"))","v":""},null,"",{"$f":"IF(ISERROR(VLOOKUP(N655,POA!$A$2:$F$25,5,0)),\"\",VLOOKUP(N655,POA!$A$2:$F$25,5,0))","v":""},null,"",null,0,"MIPYME",null,"",null,""]
[null,"",null,null,{"$f":"IF(ISERROR(VLOOKUP(C656,#REF!,2,0)),\"\",VLOOKUP(C656,#REF!,2,0))","v":""},null,{"$f":"IF(ISERROR(VLOOKUP(C656,#REF!,4,0)),\"\",VLOOKUP(C656,#REF!,4,0))","v":""},null,0,null,null,null,{"$f":"IF(ISERROR(VLOOKUP(L656,POA!$A$2:$C$25,3,0)),\"\",VLOOKUP(L656,POA!$A$2:$C$25,3,0))","v":""},null,{"$f":"IF(ISERROR(VLOOKUP(N656,POA!$A$2:$F$25,4,0)),\"\",VLOOKUP(N656,POA!$A$2:$F$25,4,0))","v":""},{"$f":"IF(ISERROR(VLOOKUP(L656,POA!$A$2:$C$25,2,0)),\"\",VLOOKUP(L656,POA!$A$2:$C$25,2,0))","v":""},null,{"$f":"IF(L656=0,\"\",IF(Q650>=$R$9,\"HABIL\",\"NO HABIL\"))","v":""},null,"",{"$f":"IF(ISERROR(VLOOKUP(N656,POA!$A$2:$F$25,5,0)),\"\",VLOOKUP(N656,POA!$A$2:$F$25,5,0))","v":""},null,"",null,0,"MIPYME",null,"",null,""]
[null,{"$f":"IF(C657=\"\",\"\",B656+0.1)","v":""},null,null,{"$f":"IF(ISERROR(VLOOKUP(C657,#REF!,2,0)),\"\",VLOOKUP(C657,#REF!,2,0))","v":""},null,{"$f":"IF(ISERROR(VLOOKUP(C657,#REF!,4,0)),\"\",VLOOKUP(C657,#REF!,4,0))","v":""},null,{"$f":"IF(ISERROR(F657-H657),\"\",F657-H657)","v":0},null,null,null,{"$f":"IF(ISERROR(VLOOKUP(L657,POA!$A$2:$C$25,3,0)),\"\",VLOOKUP(L657,POA!$A$2:$C$25,3,0))","v":""},null,{"$f":"IF(ISERROR(VLOOKUP(N657,POA!$A$2:$F$25,4,0)),\"\",VLOOKUP(N657,POA!$A$2:$F$25,4,0))","v":""},{"$f":"IF(ISERROR(VLOOKUP(L657,POA!$A$2:$C$25,2,0)),\"\",VLOOKUP(L657,POA!$A$2:$C$25,2,0))","v":""},null,{"$f":"IF(L657=0,\"\",IF(Q650>=$R$9,\"HABIL\",\"NO HABIL\"))","v":""},null,"",{"$f":"IF(ISERROR(VLOOKUP(N657,POA!$A$2:$F$25,5,0)),\"\",VLOOKUP(N657,POA!$A$2:$F$25,5,0))","v":""},null,"",null,0,"MIPYME",null,"",null,""]
[null,{"$f":"IF(C658=\"\",\"\",B657+0.1)","v":""},null,null,{"$f":"IF(ISERROR(VLOOKUP(C658,#REF!,2,0)),\"\",VLOOKUP(C658,#REF!,2,0))","v":""},null,{"$f":"IF(ISERROR(VLOOKUP(C658,#REF!,4,0)),\"\",VLOOKUP(C658,#REF!,4,0))","v":""},null,{"$f":"IF(ISERROR(F658-H658),\"\",F658-H658)","v":0},null,null,null,{"$f":"IF(ISERROR(VLOOKUP(L658,POA!$A$2:$C$25,3,0)),\"\",VLOOKUP(L658,POA!$A$2:$C$25,3,0))","v":""},null,{"$f":"IF(ISERROR(VLOOKUP(N658,POA!$A$2:$F$25,4,0)),\"\",VLOOKUP(N658,POA!$A$2:$F$25,4,0))","v":""},{"$f":"IF(ISERROR(VLOOKUP(L658,POA!$A$2:$C$25,2,0)),\"\",VLOOKUP(L658,POA!$A$2:$C$25,2,0))","v":""},null,{"$f":"IF(L658=0,\"\",IF(Q650>=$R$9,\"HABIL\",\"NO HABIL\"))","v":""},null,"",{"$f":"IF(ISERROR(VLOOKUP(N658,POA!$A$2:$F$25,5,0)),\"\",VLOOKUP(N658,POA!$A$2:$F$25,5,0))","v":""},null,"",null,0,"MIPYME",null,"",null,""]
[null,{"$f":"IF(C659=\"\",\"\",B658+0.1)","v":""},null,null,{"$f":"IF(ISERROR(VLOOKUP(C659,#REF!,2,0)),\"\",VLOOKUP(C659,#REF!,2,0))","v":""},null,{"$f":"IF(ISERROR(VLOOKUP(C659,#REF!,4,0)),\"\",VLOOKUP(C659,#REF!,4,0))","v":""},null,{"$f":"IF(ISERROR(F659-H659),\"\",F659-H659)","v":0},null,null,null,{"$f":"IF(ISERROR(VLOOKUP(L659,POA!$A$2:$C$25,3,0)),\"\",VLOOKUP(L659,POA!$A$2:$C$25,3,0))","v":""},null,{"$f":"IF(ISERROR(VLOOKUP(N659,POA!$A$2:$F$25,4,0)),\"\",VLOOKUP(N659,POA!$A$2:$F$25,4,0))","v":""},{"$f":"IF(ISERROR(VLOOKUP(L659,POA!$A$2:$C$25,2,0)),\"\",VLOOKUP(L659,POA!$A$2:$C$25,2,0))","v":""},null,{"$f":"IF(L659=0,\"\",IF(Q650>=$R$9,\"HABIL\",\"NO HABIL\"))","v":""},null,"",{"$f":"IF(ISERROR(VLOOKUP(N659,POA!$A$2:$F$25,5,0)),\"\",VLOOKUP(N659,POA!$A$2:$F$25,5,0))","v":""},null,"",null,0,"MIPYME",null,"",null,""]
[null,{"$f":"IF(C660=\"\",\"\",B659+0.1)","v":""},null,null,{"$f":"IF(ISERROR(VLOOKUP(C660,#REF!,2,0)),\"\",VLOOKUP(C660,#REF!,2,0))","v":""},null,{"$f":"IF(ISERROR(VLOOKUP(C660,#REF!,4,0)),\"\",VLOOKUP(C660,#REF!,4,0))","v":""},null,{"$f":"IF(ISERROR(F660-H660),\"\",F660-H660)","v":0},null,null,null,{"$f":"IF(ISERROR(VLOOKUP(L660,POA!$A$2:$C$25,3,0)),\"\",VLOOKUP(L660,POA!$A$2:$C$25,3,0))","v":""},null,{"$f":"IF(ISERROR(VLOOKUP(N660,POA!$A$2:$F$25,4,0)),\"\",VLOOKUP(N660,POA!$A$2:$F$25,4,0))","v":""},{"$f":"IF(ISERROR(VLOOKUP(L660,POA!$A$2:$C$25,2,0)),\"\",VLOOKUP(L660,POA!$A$2:$C$25,2,0))","v":""},null,{"$f":"IF(L660=0,\"\",IF(Q650>=$R$9,\"HABIL\",\"NO HABIL\"))","v":""},null,"",{"$f":"IF(ISERROR(VLOOKUP(N660,POA!$A$2:$F$25,5,0)),\"\",VLOOKUP(N660,POA!$A$2:$F$25,5,0))","v":""},null,"",null,{"$f":"IF(ISERROR(F660/$Z$9),\"\",F660/$Z$9)","v":0},"MIPYME",null,"",null,""]
[null,60,null,{"$f":"IF(SUM(D662:D671)=0,\"\",SUM(D662:D671))","v":""},{"$f":"SUM(E662:E671)","v":0},{"$f":"SUM(F662:F671)","v":0},{"$f":"SUM(G662:G671)","v":0},{"$f":"SUM(H662:H671)","v":0},{"$f":"+F661-H661","v":0},{"$f":"SUM(J662:J671)","v":0},{"$f":"SUM(K662:K671)","v":0},1,{"$f":"IF(ISERROR(VLOOKUP(L661,POA!$A$2:$C$25,3,0)),\"\",VLOOKUP(L661,POA!$A$2:$C$25,3,0))","v":3}," ",{"$f":"+SUM(O662:O671)","v":0},{"$f":"IF(ISERROR(VLOOKUP(L661,POA!$A$2:$C$25,2,0)),\"\",VLOOKUP(L661,POA!$A$2:$C$25,2,0))","v":4167150295},{"$f":"SUM(E661/G661)","v":{"$error":"#DIV/0!"}},{"$f":"IF(Q661=0,\"\",IF(Q661>=$R$9,\"HABIL\",\"NO HABIL\"))","v":{"$error":"#DIV/0!"}},{"$f":"SUM(H661/F661)","v":{"$error":"#DIV/0!"}},{"$f":"IF(S661=0,\"\",IF(S661<=$T$9,\"HABIL\",\"NO HABIL\"))","v":{"$error":"#DIV/0!"}},{"$f":"+SUM(U662:U671)","v":0},{"$f":"SUM(J661/K661)","v":{"$error":"#DIV/0!"}},{"$f":"IF(V661=0,\"\",IF(V661>=$W$9,\"HABIL\",\"NO HABIL\"))","v":{"$error":"#DIV/0!"}},{"$f":"IF(R661=0,\"\",IF(R661=\"NO HABIL\",\"NO HABIL\",IF(T661=\"NO HABIL\",\"NO HABIL\",IF(W661=\"NO HABIL\",\"NO HABIL\",IF(W661=\"NO HABIL\",\"NO HABIL\",\"HABIL\")))))","v":{"$error":"#DIV/0!"}},null,null,{"$f":"SUM(J661/I661)","v":{"$error":"#DIV/0!"}},{"$f":"IF(AA661=0,\"\",IF(AA661>=$AB$9,\"HABIL\",\"NO HABIL\"))","v":{"$error":"#DIV/0!"}},{"$f":"SUM(J661/F661)","v":{"$error":"#DIV/0!"}},{"$f":"IF(AC661=0,\"\",IF(AC661>=$AD$9,\"HABIL\",\"NO HABIL\"))","v":{"$error":"#DIV/0!"}},{"$f":"IF(AB661=0,\"\",IF(AB661=\"NO HABIL\",\"NO HABIL\",IF(AD661=\"NO HABIL\",\"NO HABIL\",IF(AD661=\"NO HABIL\",\"NO HABIL\",\"HABIL\"))))","v":{"$error":"#DIV/0!"}}]
[null,{"$f":"IF(C662=\"\",\"\",B661+0.1)","v":""},null,null,null,null,null,null,{"$f":"IF(ISERROR(F662-H662),\"\",F662-H662)","v":0},null,null,null,{"$f":"IF(ISERROR(VLOOKUP(L662,POA!$A$2:$C$25,3,0)),\"\",VLOOKUP(L662,POA!$A$2:$C$25,3,0))","v":""}," ",{"$f":"IF(ISERROR(VLOOKUP(N662,POA!$A$2:$F$25,4,0)),\"\",VLOOKUP(N662,POA!$A$2:$F$25,4,0))","v":""},{"$f":"IF(ISERROR(VLOOKUP(L662,POA!$A$2:$C$25,2,0)),\"\",VLOOKUP(L662,POA!$A$2:$C$25,2,0))","v":""},null,{"$f":"IF(Q662=0,\"\",IF(Q661>=$R$9,\"HABIL\",\"NO HABIL\"))","v":""},null,{"$f":"IF(S662=0,\"\",IF(S662<=$T$9,\"HABIL\",\"NO HABIL\"))","v":""},{"$f":"IF(ISERROR(VLOOKUP(N662,POA!$A$2:$F$25,5,0)),\"\",VLOOKUP(N662,POA!$A$2:$F$25,5,0))","v":""},null,{"$f":"IF(V662=0,\"\",IF(V662>=$W$9,\"HABIL\",\"NO HABIL\"))","v":""},null,{"$f":"IF(ISERROR(F662/$Z$9),\"\",F662/$Z$9)","v":0},{"$f":"+IF(Y662<$Z$10,\"MIPYME\",\"NO CUMPLE\")","v":"MIPYME"},null,{"$f":"IF(AA662=0,\"\",IF(AA662>=$AB$9,\"HABIL\",\"NO HABIL\"))","v":""},null,{"$f":"IF(AC662=0,\"\",IF(AC662>=$AD$9,\"HABIL\",\"NO HABIL\"))","v":""}]
[null,"",null,null,null,null,null,null,0,null,null,null,{"$f":"IF(ISERROR(VLOOKUP(L663,POA!$A$2:$C$25,3,0)),\"\",VLOOKUP(L663,POA!$A$2:$C$25,3,0))","v":""}," ",{"$f":"IF(ISERROR(VLOOKUP(N663,POA!$A$2:$F$25,4,0)),\"\",VLOOKUP(N663,POA!$A$2:$F$25,4,0))","v":""},{"$f":"IF(ISERROR(VLOOKUP(L663,POA!$A$2:$C$25,2,0)),\"\",VLOOKUP(L663,POA!$A$2:$C$25,2,0))","v":""},null,{"$f":"IF(Q663=0,\"\",IF(Q661>=$R$9,\"HABIL\",\"NO HABIL\"))","v":""},null,"",{"$f":"IF(ISERROR(VLOOKUP(N663,POA!$A$2:$F$25,5,0)),\"\",VLOOKUP(N663,POA!$A$2:$F$25,5,0))","v":""},null,"",null,{"$f":"IF(ISERROR(F663/$Z$9),\"\",F663/$Z$9)","v":0},{"$f":"+IF(Y663<$Z$10,\"MIPYME\",\"NO CUMPLE\")","v":"MIPYME"},null,"",null,""]
[null,"",null,null,null,null,null,null,0,null,null,null,{"$f":"IF(ISERROR(VLOOKUP(L664,POA!$A$2:$C$25,3,0)),\"\",VLOOKUP(L664,POA!$A$2:$C$25,3,0))","v":""},null,{"$f":"IF(ISERROR(VLOOKUP(N664,POA!$A$2:$F$25,4,0)),\"\",VLOOKUP(N664,POA!$A$2:$F$25,4,0))","v":""},{"$f":"IF(ISERROR(VLOOKUP(L664,POA!$A$2:$C$25,2,0)),\"\",VLOOKUP(L664,POA!$A$2:$C$25,2,0))","v":""},null,{"$f":"IF(Q664=0,\"\",IF(Q661>=$R$9,\"HABIL\",\"NO HABIL\"))","v":""},null,"",{"$f":"IF(ISERROR(VLOOKUP(N664,POA!$A$2:$F$25,5,0)),\"\",VLOOKUP(N664,POA!$A$2:$F$25,5,0))","v":""},null,"",null,0,"MIPYME",null,"",null,""]
[null,"",null,null,{"$f":"IF(ISERROR(VLOOKUP(C665,#REF!,2,0)),\"\",VLOOKUP(C665,#REF!,2,0))","v":""},null,{"$f":"IF(ISERROR(VLOOKUP(C665,#REF!,4,0)),\"\",VLOOKUP(C665,#REF!,4,0))","v":""},null,0,null,null,null,{"$f":"IF(ISERROR(VLOOKUP(L665,POA!$A$2:$C$25,3,0)),\"\",VLOOKUP(L665,POA!$A$2:$C$25,3,0))","v":""},null,{"$f":"IF(ISERROR(VLOOKUP(N665,POA!$A$2:$F$25,4,0)),\"\",VLOOKUP(N665,POA!$A$2:$F$25,4,0))","v":""},{"$f":"IF(ISERROR(VLOOKUP(L665,POA!$A$2:$C$25,2,0)),\"\",VLOOKUP(L665,POA!$A$2:$C$25,2,0))","v":""},null,{"$f":"IF(L665=0,\"\",IF(Q661>=$R$9,\"HABIL\",\"NO HABIL\"))","v":""},null,"",{"$f":"IF(ISERROR(VLOOKUP(N665,POA!$A$2:$F$25,5,0)),\"\",VLOOKUP(N665,POA!$A$2:$F$25,5,0))","v":""},null,"",null,0,"MIPYME",null,"",null,""]
[null,"",null,null,{"$f":"IF(ISERROR(VLOOKUP(C666,#REF!,2,0)),\"\",VLOOKUP(C666,#REF!,2,0))","v":""},null,{"$f":"IF(ISERROR(VLOOKUP(C666,#REF!,4,0)),\"\",VLOOKUP(C666,#REF!,4,0))","v":""},null,0,null,null,null,{"$f":"IF(ISERROR(VLOOKUP(L666,POA!$A$2:$C$25,3,0)),\"\",VLOOKUP(L666,POA!$A$2:$C$25,3,0))","v":""},null,{"$f":"IF(ISERROR(VLOOKUP(N666,POA!$A$2:$F$25,4,0)),\"\",VLOOKUP(N666,POA!$A$2:$F$25,4,0))","v":""},{"$f":"IF(ISERROR(VLOOKUP(L666,POA!$A$2:$C$25,2,0)),\"\",VLOOKUP(L666,POA!$A$2:$C$25,2,0))","v":""},null,{"$f":"IF(L666=0,\"\",IF(Q661>=$R$9,\"HABIL\",\"NO HABIL\"))","v":""},null,"",{"$f":"IF(ISERROR(VLOOKUP(N666,POA!$A$2:$F$25,5,0)),\"\",VLOOKUP(N666,POA!$A$2:$F$25,5,0))","v":""},null,"",null,0,"MIPYME",null,"",null,""]
[null,"",null,null,{"$f":"IF(ISERROR(VLOOKUP(C667,#REF!,2,0)),\"\",VLOOKUP(C667,#REF!,2,0))","v":""},null,{"$f":"IF(ISERROR(VLOOKUP(C667,#REF!,4,0)),\"\",VLOOKUP(C667,#REF!,4,0))","v":""},null,0,null,null,null,{"$f":"IF(ISERROR(VLOOKUP(L667,POA!$A$2:$C$25,3,0)),\"\",VLOOKUP(L667,POA!$A$2:$C$25,3,0))","v":""},null,{"$f":"IF(ISERROR(VLOOKUP(N667,POA!$A$2:$F$25,4,0)),\"\",VLOOKUP(N667,POA!$A$2:$F$25,4,0))","v":""},{"$f":"IF(ISERROR(VLOOKUP(L667,POA!$A$2:$C$25,2,0)),\"\",VLOOKUP(L667,POA!$A$2:$C$25,2,0))","v":""},null,{"$f":"IF(L667=0,\"\",IF(Q661>=$R$9,\"HABIL\",\"NO HABIL\"))","v":""},null,"",{"$f":"IF(ISERROR(VLOOKUP(N667,POA!$A$2:$F$25,5,0)),\"\",VLOOKUP(N667,POA!$A$2:$F$25,5,0))","v":""},null,"",null,0,"MIPYME",null,"",null,""]
[null,{"$f":"IF(C668=\"\",\"\",B667+0.1)","v":""},null,null,{"$f":"IF(ISERROR(VLOOKUP(C668,#REF!,2,0)),\"\",VLOOKUP(C668,#REF!,2,0))","v":""},null,{"$f":"IF(ISERROR(VLOOKUP(C668,#REF!,4,0)),\"\",VLOOKUP(C668,#REF!,4,0))","v":""},null,{"$f":"IF(ISERROR(F668-H668),\"\",F668-H668)","v":0},null,null,null,{"$f":"IF(ISERROR(VLOOKUP(L668,POA!$A$2:$C$25,3,0)),\"\",VLOOKUP(L668,POA!$A$2:$C$25,3,0))","v":""},null,{"$f":"IF(ISERROR(VLOOKUP(N668,POA!$A$2:$F$25,4,0)),\"\",VLOOKUP(N668,POA!$A$2:$F$25,4,0))","v":""},{"$f":"IF(ISERROR(VLOOKUP(L668,POA!$A$2:$C$25,2,0)),\"\",VLOOKUP(L668,POA!$A$2:$C$25,2,0))","v":""},null,{"$f":"IF(L668=0,\"\",IF(Q661>=$R$9,\"HABIL\",\"NO HABIL\"))","v":""},null,"",{"$f":"IF(ISERROR(VLOOKUP(N668,POA!$A$2:$F$25,5,0)),\"\",VLOOKUP(N668,POA!$A$2:$F$25,5,0))","v":""},null,"",null,0,"MIPYME",null,"",null,""]
[null,{"$f":"IF(C669=\"\",\"\",B668+0.1)","v":""},null,null,{"$f":"IF(ISERROR(VLOOKUP(C669,#REF!,2,0)),\"\",VLOOKUP(C669,#REF!,2,0))","v":""},null,{"$f":"IF(ISERROR(VLOOKUP(C669,#REF!,4,0)),\"\",VLOOKUP(C669,#REF!,4,0))","v":""},null,{"$f":"IF(ISERROR(F669-H669),\"\",F669-H669)","v":0},null,null,null,{"$f":"IF(ISERROR(VLOOKUP(L669,POA!$A$2:$C$25,3,0)),\"\",VLOOKUP(L669,POA!$A$2:$C$25,3,0))","v":""},null,{"$f":"IF(ISERROR(VLOOKUP(N669,POA!$A$2:$F$25,4,0)),\"\",VLOOKUP(N669,POA!$A$2:$F$25,4,0))","v":""},{"$f":"IF(ISERROR(VLOOKUP(L669,POA!$A$2:$C$25,2,0)),\"\",VLOOKUP(L669,POA!$A$2:$C$25,2,0))","v":""},null,{"$f":"IF(L669=0,\"\",IF(Q661>=$R$9,\"HABIL\",\"NO HABIL\"))","v":""},null,"",{"$f":"IF(ISERROR(VLOOKUP(N669,POA!$A$2:$F$25,5,0)),\"\",VLOOKUP(N669,POA!$A$2:$F$25,5,0))","v":""},null,"",null,0,"MIPYME",null,"",null,""]
[null,{"$f":"IF(C670=\"\",\"\",B669+0.1)","v":""},null,null,{"$f":"IF(ISERROR(VLOOKUP(C670,#REF!,2,0)),\"\",VLOOKUP(C670,#REF!,2,0))","v":""},null,{"$f":"IF(ISERROR(VLOOKUP(C670,#REF!,4,0)),\"\",VLOOKUP(C670,#REF!,4,0))","v":""},null,{"$f":"IF(ISERROR(F670-H670),\"\",F670-H670)","v":0},null,null,null,{"$f":"IF(ISERROR(VLOOKUP(L670,POA!$A$2:$C$25,3,0)),\"\",VLOOKUP(L670,POA!$A$2:$C$25,3,0))","v":""},null,{"$f":"IF(ISERROR(VLOOKUP(N670,POA!$A$2:$F$25,4,0)),\"\",VLOOKUP(N670,POA!$A$2:$F$25,4,0))","v":""},{"$f":"IF(ISERROR(VLOOKUP(L670,POA!$A$2:$C$25,2,0)),\"\",VLOOKUP(L670,POA!$A$2:$C$25,2,0))","v":""},null,{"$f":"IF(L670=0,\"\",IF(Q661>=$R$9,\"HABIL\",\"NO HABIL\"))","v":""},null,"",{"$f":"IF(ISERROR(VLOOKUP(N670,POA!$A$2:$F$25,5,0)),\"\",VLOOKUP(N670,POA!$A$2:$F$25,5,0))","v":""},null,"",null,0,"MIPYME",null,"",null,""]
[null,{"$f":"IF(C671=\"\",\"\",B670+0.1)","v":""},null,null,{"$f":"IF(ISERROR(VLOOKUP(C671,#REF!,2,0)),\"\",VLOOKUP(C671,#REF!,2,0))","v":""},null,{"$f":"IF(ISERROR(VLOOKUP(C671,#REF!,4,0)),\"\",VLOOKUP(C671,#REF!,4,0))","v":""},null,{"$f":"IF(ISERROR(F671-H671),\"\",F671-H671)","v":0},null,null,null,{"$f":"IF(ISERROR(VLOOKUP(L671,POA!$A$2:$C$25,3,0)),\"\",VLOOKUP(L671,POA!$A$2:$C$25,3,0))","v":""},null,{"$f":"IF(ISERROR(VLOOKUP(N671,POA!$A$2:$F$25,4,0)),\"\",VLOOKUP(N671,POA!$A$2:$F$25,4,0))","v":""},{"$f":"IF(ISERROR(VLOOKUP(L671,POA!$A$2:$C$25,2,0)),\"\",VLOOKUP(L671,POA!$A$2:$C$25,2,0))","v":""},null,{"$f":"IF(L671=0,\"\",IF(Q661>=$R$9,\"HABIL\",\"NO HABIL\"))","v":""},null,"",{"$f":"IF(ISERROR(VLOOKUP(N671,POA!$A$2:$F$25,5,0)),\"\",VLOOKUP(N671,POA!$A$2:$F$25,5,0))","v":""},null,"",null,{"$f":"IF(ISERROR(F671/$Z$9),\"\",F671/$Z$9)","v":0},"MIPYME",null,"",null,""]
[null,61,null,{"$f":"IF(SUM(D673:D682)=0,\"\",SUM(D673:D682))","v":""},{"$f":"SUM(E673:E682)","v":0},{"$f":"SUM(F673:F682)","v":0},{"$f":"SUM(G673:G682)","v":0},{"$f":"SUM(H673:H682)","v":0},{"$f":"+F672-H672","v":0},{"$f":"SUM(J673:J682)","v":0},{"$f":"SUM(K673:K682)","v":0},1,{"$f":"IF(ISERROR(VLOOKUP(L672,POA!$A$2:$C$25,3,0)),\"\",VLOOKUP(L672,POA!$A$2:$C$25,3,0))","v":3}," ",{"$f":"+SUM(O673:O682)","v":0},{"$f":"IF(ISERROR(VLOOKUP(L672,POA!$A$2:$C$25,2,0)),\"\",VLOOKUP(L672,POA!$A$2:$C$25,2,0))","v":4167150295},{"$f":"SUM(E672/G672)","v":{"$error":"#DIV/0!"}},{"$f":"IF(Q672=0,\"\",IF(Q672>=$R$9,\"HABIL\",\"NO HABIL\"))","v":{"$error":"#DIV/0!"}},{"$f":"SUM(H672/F672)","v":{"$error":"#DIV/0!"}},{"$f":"IF(S672=0,\"\",IF(S672<=$T$9,\"HABIL\",\"NO HABIL\"))","v":{"$error":"#DIV/0!"}},{"$f":"+SUM(U673:U682)","v":0},{"$f":"SUM(J672/K672)","v":{"$error":"#DIV/0!"}},{"$f":"IF(V672=0,\"\",IF(V672>=$W$9,\"HABIL\",\"NO HABIL\"))","v":{"$error":"#DIV/0!"}},{"$f":"IF(R672=0,\"\",IF(R672=\"NO HABIL\",\"NO HABIL\",IF(T672=\"NO HABIL\",\"NO HABIL\",IF(W672=\"NO HABIL\",\"NO HABIL\",IF(W672=\"NO HABIL\",\"NO HABIL\",\"HABIL\")))))","v":{"$error":"#DIV/0!"}},null,null,{"$f":"SUM(J672/I672)","v":{"$error":"#DIV/0!"}},{"$f":"IF(AA672=0,\"\",IF(AA672>=$AB$9,\"HABIL\",\"NO HABIL\"))","v":{"$error":"#DIV/0!"}},{"$f":"SUM(J672/F672)","v":{"$error":"#DIV/0!"}},{"$f":"IF(AC672=0,\"\",IF(AC672>=$AD$9,\"HABIL\",\"NO HABIL\"))","v":{"$error":"#DIV/0!"}},{"$f":"IF(AB672=0,\"\",IF(AB672=\"NO HABIL\",\"NO HABIL\",IF(AD672=\"NO HABIL\",\"NO HABIL\",IF(AD672=\"NO HABIL\",\"NO HABIL\",\"HABIL\"))))","v":{"$error":"#DIV/0!"}}]
[null,{"$f":"IF(C673=\"\",\"\",B672+0.1)","v":""},null,null,null,null,null,null,{"$f":"IF(ISERROR(F673-H673),\"\",F673-H673)","v":0},null,null,null,{"$f":"IF(ISERROR(VLOOKUP(L673,POA!$A$2:$C$25,3,0)),\"\",VLOOKUP(L673,POA!$A$2:$C$25,3,0))","v":""}," ",{"$f":"IF(ISERROR(VLOOKUP(N673,POA!$A$2:$F$25,4,0)),\"\",VLOOKUP(N673,POA!$A$2:$F$25,4,0))","v":""},{"$f":"IF(ISERROR(VLOOKUP(L673,POA!$A$2:$C$25,2,0)),\"\",VLOOKUP(L673,POA!$A$2:$C$25,2,0))","v":""},null,{"$f":"IF(Q673=0,\"\",IF(Q672>=$R$9,\"HABIL\",\"NO HABIL\"))","v":""},null,{"$f":"IF(S673=0,\"\",IF(S673<=$T$9,\"HABIL\",\"NO HABIL\"))","v":""},{"$f":"IF(ISERROR(VLOOKUP(N673,POA!$A$2:$F$25,5,0)),\"\",VLOOKUP(N673,POA!$A$2:$F$25,5,0))","v":""},null,{"$f":"IF(V673=0,\"\",IF(V673>=$W$9,\"HABIL\",\"NO HABIL\"))","v":""},null,{"$f":"IF(ISERROR(F673/$Z$9),\"\",F673/$Z$9)","v":0},{"$f":"+IF(Y673<$Z$10,\"MIPYME\",\"NO CUMPLE\")","v":"MIPYME"},null,{"$f":"IF(AA673=0,\"\",IF(AA673>=$AB$9,\"HABIL\",\"NO HABIL\"))","v":""},null,{"$f":"IF(AC673=0,\"\",IF(AC673>=$AD$9,\"HABIL\",\"NO HABIL\"))","v":""}]
[null,"",null,null,null,null,null,null,0,null,null,null,{"$f":"IF(ISERROR(VLOOKUP(L674,POA!$A$2:$C$25,3,0)),\"\",VLOOKUP(L674,POA!$A$2:$C$25,3,0))","v":""}," ",{"$f":"IF(ISERROR(VLOOKUP(N674,POA!$A$2:$F$25,4,0)),\"\",VLOOKUP(N674,POA!$A$2:$F$25,4,0))","v":""},{"$f":"IF(ISERROR(VLOOKUP(L674,POA!$A$2:$C$25,2,0)),\"\",VLOOKUP(L674,POA!$A$2:$C$25,2,0))","v":""},null,{"$f":"IF(Q674=0,\"\",IF(Q672>=$R$9,\"HABIL\",\"NO HABIL\"))","v":""},null,"",{"$f":"IF(ISERROR(VLOOKUP(N674,POA!$A$2:$F$25,5,0)),\"\",VLOOKUP(N674,POA!$A$2:$F$25,5,0))","v":""},null,"",null,{"$f":"IF(ISERROR(F674/$Z$9),\"\",F674/$Z$9)","v":0},{"$f":"+IF(Y674<$Z$10,\"MIPYME\",\"NO CUMPLE\")","v":"MIPYME"},null,"",null,""]
[null,"",null,null,null,null,null,null,0,null,null,null,{"$f":"IF(ISERROR(VLOOKUP(L675,POA!$A$2:$C$25,3,0)),\"\",VLOOKUP(L675,POA!$A$2:$C$25,3,0))","v":""},null,{"$f":"IF(ISERROR(VLOOKUP(N675,POA!$A$2:$F$25,4,0)),\"\",VLOOKUP(N675,POA!$A$2:$F$25,4,0))","v":""},{"$f":"IF(ISERROR(VLOOKUP(L675,POA!$A$2:$C$25,2,0)),\"\",VLOOKUP(L675,POA!$A$2:$C$25,2,0))","v":""},null,{"$f":"IF(Q675=0,\"\",IF(Q672>=$R$9,\"HABIL\",\"NO HABIL\"))","v":""},null,"",{"$f":"IF(ISERROR(VLOOKUP(N675,POA!$A$2:$F$25,5,0)),\"\",VLOOKUP(N675,POA!$A$2:$F$25,5,0))","v":""},null,"",null,0,"MIPYME",null,"",null,""]
[null,"",null,null,{"$f":"IF(ISERROR(VLOOKUP(C676,#REF!,2,0)),\"\",VLOOKUP(C676,#REF!,2,0))","v":""},null,{"$f":"IF(ISERROR(VLOOKUP(C676,#REF!,4,0)),\"\",VLOOKUP(C676,#REF!,4,0))","v":""},null,0,null,null,null,{"$f":"IF(ISERROR(VLOOKUP(L676,POA!$A$2:$C$25,3,0)),\"\",VLOOKUP(L676,POA!$A$2:$C$25,3,0))","v":""},null,{"$f":"IF(ISERROR(VLOOKUP(N676,POA!$A$2:$F$25,4,0)),\"\",VLOOKUP(N676,POA!$A$2:$F$25,4,0))","v":""},{"$f":"IF(ISERROR(VLOOKUP(L676,POA!$A$2:$C$25,2,0)),\"\",VLOOKUP(L676,POA!$A$2:$C$25,2,0))","v":""},null,{"$f":"IF(L676=0,\"\",IF(Q672>=$R$9,\"HABIL\",\"NO HABIL\"))","v":""},null,"",{"$f":"IF(ISERROR(VLOOKUP(N676,POA!$A$2:$F$25,5,0)),\"\",VLOOKUP(N676,POA!$A$2:$F$25,5,0))","v":""},null,"",null,0,"MIPYME",null,"",null,""]
[null,"",null,null,{"$f":"IF(ISERROR(VLOOKUP(C677,#REF!,2,0)),\"\",VLOOKUP(C677,#REF!,2,0))","v":""},null,{"$f":"IF(ISERROR(VLOOKUP(C677,#REF!,4,0)),\"\",VLOOKUP(C677,#REF!,4,0))","v":""},null,0,null,null,null,{"$f":"IF(ISERROR(VLOOKUP(L677,POA!$A$2:$C$25,3,0)),\"\",VLOOKUP(L677,POA!$A$2:$C$25,3,0))","v":""},null,{"$f":"IF(ISERROR(VLOOKUP(N677,POA!$A$2:$F$25,4,0)),\"\",VLOOKUP(N677,POA!$A$2:$F$25,4,0))","v":""},{"$f":"IF(ISERROR(VLOOKUP(L677,POA!$A$2:$C$25,2,0)),\"\",VLOOKUP(L677,POA!$A$2:$C$25,2,0))","v":""},null,{"$f":"IF(L677=0,\"\",IF(Q672>=$R$9,\"HABIL\",\"NO HABIL\"))","v":""},null,"",{"$f":"IF(ISERROR(VLOOKUP(N677,POA!$A$2:$F$25,5,0)),\"\",VLOOKUP(N677,POA!$A$2:$F$25,5,0))","v":""},null,"",null,0,"MIPYME",null,"",null,""]
[null,"",null,null,{"$f":"IF(ISERROR(VLOOKUP(C678,#REF!,2,0)),\"\",VLOOKUP(C678,#REF!,2,0))","v":""},null,{"$f":"IF(ISERROR(VLOOKUP(C678,#REF!,4,0)),\"\",VLOOKUP(C678,#REF!,4,0))","v":""},null,0,null,null,null,{"$f":"IF(ISERROR(VLOOKUP(L678,POA!$A$2:$C$25,3,0)),\"\",VLOOKUP(L678,POA!$A$2:$C$25,3,0))","v":""},null,{"$f":"IF(ISERROR(VLOOKUP(N678,POA!$A$2:$F$25,4,0)),\"\",VLOOKUP(N678,POA!$A$2:$F$25,4,0))","v":""},{"$f":"IF(ISERROR(VLOOKUP(L678,POA!$A$2:$C$25,2,0)),\"\",VLOOKUP(L678,POA!$A$2:$C$25,2,0))","v":""},null,{"$f":"IF(L678=0,\"\",IF(Q672>=$R$9,\"HABIL\",\"NO HABIL\"))","v":""},null,"",{"$f":"IF(ISERROR(VLOOKUP(N678,POA!$A$2:$F$25,5,0)),\"\",VLOOKUP(N678,POA!$A$2:$F$25,5,0))","v":""},null,"",null,0,"MIPYME",null,"",null,""]
[null,{"$f":"IF(C679=\"\",\"\",B678+0.1)","v":""},null,null,{"$f":"IF(ISERROR(VLOOKUP(C679,#REF!,2,0)),\"\",VLOOKUP(C679,#REF!,2,0))","v":""},null,{"$f":"IF(ISERROR(VLOOKUP(C679,#REF!,4,0)),\"\",VLOOKUP(C679,#REF!,4,0))","v":""},null,{"$f":"IF(ISERROR(F679-H679),\"\",F679-H679)","v":0},null,null,null,{"$f":"IF(ISERROR(VLOOKUP(L679,POA!$A$2:$C$25,3,0)),\"\",VLOOKUP(L679,POA!$A$2:$C$25,3,0))","v":""},null,{"$f":"IF(ISERROR(VLOOKUP(N679,POA!$A$2:$F$25,4,0)),\"\",VLOOKUP(N679,POA!$A$2:$F$25,4,0))","v":""},{"$f":"IF(ISERROR(VLOOKUP(L679,POA!$A$2:$C$25,2,0)),\"\",VLOOKUP(L679,POA!$A$2:$C$25,2,0))","v":""},null,{"$f":"IF(L679=0,\"\",IF(Q672>=$R$9,\"HABIL\",\"NO HABIL\"))","v":""},null,"",{"$f":"IF(ISERROR(VLOOKUP(N679,POA!$A$2:$F$25,5,0)),\"\",VLOOKUP(N679,POA!$A$2:$F$25,5,0))","v":""},null,"",null,0,"MIPYME",null,"",null,""]
[null,{"$f":"IF(C680=\"\",\"\",B679+0.1)","v":""},null,null,{"$f":"IF(ISERROR(VLOOKUP(C680,#REF!,2,0)),\"\",VLOOKUP(C680,#REF!,2,0))","v":""},null,{"$f":"IF(ISERROR(VLOOKUP(C680,#REF!,4,0)),\"\",VLOOKUP(C680,#REF!,4,0))","v":""},null,{"$f":"IF(ISERROR(F680-H680),\"\",F680-H680)","v":0},null,null,null,{"$f":"IF(ISERROR(VLOOKUP(L680,POA!$A$2:$C$25,3,0)),\"\",VLOOKUP(L680,POA!$A$2:$C$25,3,0))","v":""},null,{"$f":"IF(ISERROR(VLOOKUP(N680,POA!$A$2:$F$25,4,0)),\"\",VLOOKUP(N680,POA!$A$2:$F$25,4,0))","v":""},{"$f":"IF(ISERROR(VLOOKUP(L680,POA!$A$2:$C$25,2,0)),\"\",VLOOKUP(L680,POA!$A$2:$C$25,2,0))","v":""},null,{"$f":"IF(L680=0,\"\",IF(Q672>=$R$9,\"HABIL\",\"NO HABIL\"))","v":""},null,"",{"$f":"IF(ISERROR(VLOOKUP(N680,POA!$A$2:$F$25,5,0)),\"\",VLOOKUP(N680,POA!$A$2:$F$25,5,0))","v":""},null,"",null,0,"MIPYME",null,"",null,""]
[null,{"$f":"IF(C681=\"\",\"\",B680+0.1)","v":""},null,null,{"$f":"IF(ISERROR(VLOOKUP(C681,#REF!,2,0)),\"\",VLOOKUP(C681,#REF!,2,0))","v":""},null,{"$f":"IF(ISERROR(VLOOKUP(C681,#REF!,4,0)),\"\",VLOOKUP(C681,#REF!,4,0))","v":""},null,{"$f":"IF(ISERROR(F681-H681),\"\",F681-H681)","v":0},null,null,null,{"$f":"IF(ISERROR(VLOOKUP(L681,POA!$A$2:$C$25,3,0)),\"\",VLOOKUP(L681,POA!$A$2:$C$25,3,0))","v":""},null,{"$f":"IF(ISERROR(VLOOKUP(N681,POA!$A$2:$F$25,4,0)),\"\",VLOOKUP(N681,POA!$A$2:$F$25,4,0))","v":""},{"$f":"IF(ISERROR(VLOOKUP(L681,POA!$A$2:$C$25,2,0)),\"\",VLOOKUP(L681,POA!$A$2:$C$25,2,0))","v":""},null,{"$f":"IF(L681=0,\"\",IF(Q672>=$R$9,\"HABIL\",\"NO HABIL\"))","v":""},null,"",{"$f":"IF(ISERROR(VLOOKUP(N681,POA!$A$2:$F$25,5,0)),\"\",VLOOKUP(N681,POA!$A$2:$F$25,5,0))","v":""},null,"",null,0,"MIPYME",null,"",null,""]
[null,{"$f":"IF(C682=\"\",\"\",B681+0.1)","v":""},null,null,{"$f":"IF(ISERROR(VLOOKUP(C682,#REF!,2,0)),\"\",VLOOKUP(C682,#REF!,2,0))","v":""},null,{"$f":"IF(ISERROR(VLOOKUP(C682,#REF!,4,0)),\"\",VLOOKUP(C682,#REF!,4,0))","v":""},null,{"$f":"IF(ISERROR(F682-H682),\"\",F682-H682)","v":0},null,null,null,{"$f":"IF(ISERROR(VLOOKUP(L682,POA!$A$2:$C$25,3,0)),\"\",VLOOKUP(L682,POA!$A$2:$C$25,3,0))","v":""},null,{"$f":"IF(ISERROR(VLOOKUP(N682,POA!$A$2:$F$25,4,0)),\"\",VLOOKUP(N682,POA!$A$2:$F$25,4,0))","v":""},{"$f":"IF(ISERROR(VLOOKUP(L682,POA!$A$2:$C$25,2,0)),\"\",VLOOKUP(L682,POA!$A$2:$C$25,2,0))","v":""},null,{"$f":"IF(L682=0,\"\",IF(Q672>=$R$9,\"HABIL\",\"NO HABIL\"))","v":""},null,"",{"$f":"IF(ISERROR(VLOOKUP(N682,POA!$A$2:$F$25,5,0)),\"\",VLOOKUP(N682,POA!$A$2:$F$25,5,0))","v":""},null,"",null,{"$f":"IF(ISERROR(F682/$Z$9),\"\",F682/$Z$9)","v":0},"MIPYME",null,"",null,""]
[null,62,null,{"$f":"IF(SUM(D684:D693)=0,\"\",SUM(D684:D693))","v":""},{"$f":"SUM(E684:E693)","v":0},{"$f":"SUM(F684:F693)","v":0},{"$f":"SUM(G684:G693)","v":0},{"$f":"SUM(H684:H693)","v":0},{"$f":"+F683-H683","v":0},{"$f":"SUM(J684:J693)","v":0},{"$f":"SUM(K684:K693)","v":0},1,{"$f":"IF(ISERROR(VLOOKUP(L683,POA!$A$2:$C$25,3,0)),\"\",VLOOKUP(L683,POA!$A$2:$C$25,3,0))","v":3}," ",{"$f":"+SUM(O684:O693)","v":0},{"$f":"IF(ISERROR(VLOOKUP(L683,POA!$A$2:$C$25,2,0)),\"\",VLOOKUP(L683,POA!$A$2:$C$25,2,0))","v":4167150295},{"$f":"SUM(E683/G683)","v":{"$error":"#DIV/0!"}},{"$f":"IF(Q683=0,\"\",IF(Q683>=$R$9,\"HABIL\",\"NO HABIL\"))","v":{"$error":"#DIV/0!"}},{"$f":"SUM(H683/F683)","v":{"$error":"#DIV/0!"}},{"$f":"IF(S683=0,\"\",IF(S683<=$T$9,\"HABIL\",\"NO HABIL\"))","v":{"$error":"#DIV/0!"}},{"$f":"+SUM(U684:U693)","v":0},{"$f":"SUM(J683/K683)","v":{"$error":"#DIV/0!"}},{"$f":"IF(V683=0,\"\",IF(V683>=$W$9,\"HABIL\",\"NO HABIL\"))","v":{"$error":"#DIV/0!"}},{"$f":"IF(R683=0,\"\",IF(R683=\"NO HABIL\",\"NO HABIL\",IF(T683=\"NO HABIL\",\"NO HABIL\",IF(W683=\"NO HABIL\",\"NO HABIL\",IF(W683=\"NO HABIL\",\"NO HABIL\",\"HABIL\")))))","v":{"$error":"#DIV/0!"}},null,null,{"$f":"SUM(J683/I683)","v":{"$error":"#DIV/0!"}},{"$f":"IF(AA683=0,\"\",IF(AA683>=$AB$9,\"HABIL\",\"NO HABIL\"))","v":{"$error":"#DIV/0!"}},{"$f":"SUM(J683/F683)","v":{"$error":"#DIV/0!"}},{"$f":"IF(AC683=0,\"\",IF(AC683>=$AD$9,\"HABIL\",\"NO HABIL\"))","v":{"$error":"#DIV/0!"}},{"$f":"IF(AB683=0,\"\",IF(AB683=\"NO HABIL\",\"NO HABIL\",IF(AD683=\"NO HABIL\",\"NO HABIL\",IF(AD683=\"NO HABIL\",\"NO HABIL\",\"HABIL\"))))","v":{"$error":"#DIV/0!"}}]
[null,{"$f":"IF(C684=\"\",\"\",B683+0.1)","v":""},null,null,null,null,null,null,{"$f":"IF(ISERROR(F684-H684),\"\",F684-H684)","v":0},null,null,null,{"$f":"IF(ISERROR(VLOOKUP(L684,POA!$A$2:$C$25,3,0)),\"\",VLOOKUP(L684,POA!$A$2:$C$25,3,0))","v":""}," ",{"$f":"IF(ISERROR(VLOOKUP(N684,POA!$A$2:$F$25,4,0)),\"\",VLOOKUP(N684,POA!$A$2:$F$25,4,0))","v":""},{"$f":"IF(ISERROR(VLOOKUP(L684,POA!$A$2:$C$25,2,0)),\"\",VLOOKUP(L684,POA!$A$2:$C$25,2,0))","v":""},null,{"$f":"IF(Q684=0,\"\",IF(Q683>=$R$9,\"HABIL\",\"NO HABIL\"))","v":""},null,{"$f":"IF(S684=0,\"\",IF(S684<=$T$9,\"HABIL\",\"NO HABIL\"))","v":""},{"$f":"IF(ISERROR(VLOOKUP(N684,POA!$A$2:$F$25,5,0)),\"\",VLOOKUP(N684,POA!$A$2:$F$25,5,0))","v":""},null,{"$f":"IF(V684=0,\"\",IF(V684>=$W$9,\"HABIL\",\"NO HABIL\"))","v":""},null,{"$f":"IF(ISERROR(F684/$Z$9),\"\",F684/$Z$9)","v":0},{"$f":"+IF(Y684<$Z$10,\"MIPYME\",\"NO CUMPLE\")","v":"MIPYME"},null,{"$f":"IF(AA684=0,\"\",IF(AA684>=$AB$9,\"HABIL\",\"NO HABIL\"))","v":""},null,{"$f":"IF(AC684=0,\"\",IF(AC684>=$AD$9,\"HABIL\",\"NO HABIL\"))","v":""}]
[null,"",null,null,null,null,null,null,0,null,null,null,{"$f":"IF(ISERROR(VLOOKUP(L685,POA!$A$2:$C$25,3,0)),\"\",VLOOKUP(L685,POA!$A$2:$C$25,3,0))","v":""}," ",{"$f":"IF(ISERROR(VLOOKUP(N685,POA!$A$2:$F$25,4,0)),\"\",VLOOKUP(N685,POA!$A$2:$F$25,4,0))","v":""},{"$f":"IF(ISERROR(VLOOKUP(L685,POA!$A$2:$C$25,2,0)),\"\",VLOOKUP(L685,POA!$A$2:$C$25,2,0))","v":""},null,{"$f":"IF(Q685=0,\"\",IF(Q683>=$R$9,\"HABIL\",\"NO HABIL\"))","v":""},null,"",{"$f":"IF(ISERROR(VLOOKUP(N685,POA!$A$2:$F$25,5,0)),\"\",VLOOKUP(N685,POA!$A$2:$F$25,5,0))","v":""},null,"",null,{"$f":"IF(ISERROR(F685/$Z$9),\"\",F685/$Z$9)","v":0},{"$f":"+IF(Y685<$Z$10,\"MIPYME\",\"NO CUMPLE\")","v":"MIPYME"},null,"",null,""]
[null,"",null,null,null,null,null,null,0,null,null,null,{"$f":"IF(ISERROR(VLOOKUP(L686,POA!$A$2:$C$25,3,0)),\"\",VLOOKUP(L686,POA!$A$2:$C$25,3,0))","v":""},null,{"$f":"IF(ISERROR(VLOOKUP(N686,POA!$A$2:$F$25,4,0)),\"\",VLOOKUP(N686,POA!$A$2:$F$25,4,0))","v":""},{"$f":"IF(ISERROR(VLOOKUP(L686,POA!$A$2:$C$25,2,0)),\"\",VLOOKUP(L686,POA!$A$2:$C$25,2,0))","v":""},null,{"$f":"IF(Q686=0,\"\",IF(Q683>=$R$9,\"HABIL\",\"NO HABIL\"))","v":""},null,"",{"$f":"IF(ISERROR(VLOOKUP(N686,POA!$A$2:$F$25,5,0)),\"\",VLOOKUP(N686,POA!$A$2:$F$25,5,0))","v":""},null,"",null,0,"MIPYME",null,"",null,""]
[null,"",null,null,{"$f":"IF(ISERROR(VLOOKUP(C687,#REF!,2,0)),\"\",VLOOKUP(C687,#REF!,2,0))","v":""},null,{"$f":"IF(ISERROR(VLOOKUP(C687,#REF!,4,0)),\"\",VLOOKUP(C687,#REF!,4,0))","v":""},null,0,null,null,null,{"$f":"IF(ISERROR(VLOOKUP(L687,POA!$A$2:$C$25,3,0)),\"\",VLOOKUP(L687,POA!$A$2:$C$25,3,0))","v":""},null,{"$f":"IF(ISERROR(VLOOKUP(N687,POA!$A$2:$F$25,4,0)),\"\",VLOOKUP(N687,POA!$A$2:$F$25,4,0))","v":""},{"$f":"IF(ISERROR(VLOOKUP(L687,POA!$A$2:$C$25,2,0)),\"\",VLOOKUP(L687,POA!$A$2:$C$25,2,0))","v":""},null,{"$f":"IF(L687=0,\"\",IF(Q683>=$R$9,\"HABIL\",\"NO HABIL\"))","v":""},null,"",{"$f":"IF(ISERROR(VLOOKUP(N687,POA!$A$2:$F$25,5,0)),\"\",VLOOKUP(N687,POA!$A$2:$F$25,5,0))","v":""},null,"",null,0,"MIPYME",null,"",null,""]
[null,"",null,null,{"$f":"IF(ISERROR(VLOOKUP(C688,#REF!,2,0)),\"\",VLOOKUP(C688,#REF!,2,0))","v":""},null,{"$f":"IF(ISERROR(VLOOKUP(C688,#REF!,4,0)),\"\",VLOOKUP(C688,#REF!,4,0))","v":""},null,0,null,null,null,{"$f":"IF(ISERROR(VLOOKUP(L688,POA!$A$2:$C$25,3,0)),\"\",VLOOKUP(L688,POA!$A$2:$C$25,3,0))","v":""},null,{"$f":"IF(ISERROR(VLOOKUP(N688,POA!$A$2:$F$25,4,0)),\"\",VLOOKUP(N688,POA!$A$2:$F$25,4,0))","v":""},{"$f":"IF(ISERROR(VLOOKUP(L688,POA!$A$2:$C$25,2,0)),\"\",VLOOKUP(L688,POA!$A$2:$C$25,2,0))","v":""},null,{"$f":"IF(L688=0,\"\",IF(Q683>=$R$9,\"HABIL\",\"NO HABIL\"))","v":""},null,"",{"$f":"IF(ISERROR(VLOOKUP(N688,POA!$A$2:$F$25,5,0)),\"\",VLOOKUP(N688,POA!$A$2:$F$25,5,0))","v":""},null,"",null,0,"MIPYME",null,"",null,""]
[null,"",null,null,{"$f":"IF(ISERROR(VLOOKUP(C689,#REF!,2,0)),\"\",VLOOKUP(C689,#REF!,2,0))","v":""},null,{"$f":"IF(ISERROR(VLOOKUP(C689,#REF!,4,0)),\"\",VLOOKUP(C689,#REF!,4,0))","v":""},null,0,null,null,null,{"$f":"IF(ISERROR(VLOOKUP(L689,POA!$A$2:$C$25,3,0)),\"\",VLOOKUP(L689,POA!$A$2:$C$25,3,0))","v":""},null,{"$f":"IF(ISERROR(VLOOKUP(N689,POA!$A$2:$F$25,4,0)),\"\",VLOOKUP(N689,POA!$A$2:$F$25,4,0))","v":""},{"$f":"IF(ISERROR(VLOOKUP(L689,POA!$A$2:$C$25,2,0)),\"\",VLOOKUP(L689,POA!$A$2:$C$25,2,0))","v":""},null,{"$f":"IF(L689=0,\"\",IF(Q683>=$R$9,\"HABIL\",\"NO HABIL\"))","v":""},null,"",{"$f":"IF(ISERROR(VLOOKUP(N689,POA!$A$2:$F$25,5,0)),\"\",VLOOKUP(N689,POA!$A$2:$F$25,5,0))","v":""},null,"",null,0,"MIPYME",null,"",null,""]
[null,{"$f":"IF(C690=\"\",\"\",B689+0.1)","v":""},null,null,{"$f":"IF(ISERROR(VLOOKUP(C690,#REF!,2,0)),\"\",VLOOKUP(C690,#REF!,2,0))","v":""},null,{"$f":"IF(ISERROR(VLOOKUP(C690,#REF!,4,0)),\"\",VLOOKUP(C690,#REF!,4,0))","v":""},null,{"$f":"IF(ISERROR(F690-H690),\"\",F690-H690)","v":0},null,null,null,{"$f":"IF(ISERROR(VLOOKUP(L690,POA!$A$2:$C$25,3,0)),\"\",VLOOKUP(L690,POA!$A$2:$C$25,3,0))","v":""},null,{"$f":"IF(ISERROR(VLOOKUP(N690,POA!$A$2:$F$25,4,0)),\"\",VLOOKUP(N690,POA!$A$2:$F$25,4,0))","v":""},{"$f":"IF(ISERROR(VLOOKUP(L690,POA!$A$2:$C$25,2,0)),\"\",VLOOKUP(L690,POA!$A$2:$C$25,2,0))","v":""},null,{"$f":"IF(L690=0,\"\",IF(Q683>=$R$9,\"HABIL\",\"NO HABIL\"))","v":""},null,"",{"$f":"IF(ISERROR(VLOOKUP(N690,POA!$A$2:$F$25,5,0)),\"\",VLOOKUP(N690,POA!$A$2:$F$25,5,0))","v":""},null,"",null,0,"MIPYME",null,"",null,""]
[null,{"$f":"IF(C691=\"\",\"\",B690+0.1)","v":""},null,null,{"$f":"IF(ISERROR(VLOOKUP(C691,#REF!,2,0)),\"\",VLOOKUP(C691,#REF!,2,0))","v":""},null,{"$f":"IF(ISERROR(VLOOKUP(C691,#REF!,4,0)),\"\",VLOOKUP(C691,#REF!,4,0))","v":""},null,{"$f":"IF(ISERROR(F691-H691),\"\",F691-H691)","v":0},null,null,null,{"$f":"IF(ISERROR(VLOOKUP(L691,POA!$A$2:$C$25,3,0)),\"\",VLOOKUP(L691,POA!$A$2:$C$25,3,0))","v":""},null,{"$f":"IF(ISERROR(VLOOKUP(N691,POA!$A$2:$F$25,4,0)),\"\",VLOOKUP(N691,POA!$A$2:$F$25,4,0))","v":""},{"$f":"IF(ISERROR(VLOOKUP(L691,POA!$A$2:$C$25,2,0)),\"\",VLOOKUP(L691,POA!$A$2:$C$25,2,0))","v":""},null,{"$f":"IF(L691=0,\"\",IF(Q683>=$R$9,\"HABIL\",\"NO HABIL\"))","v":""},null,"",{"$f":"IF(ISERROR(VLOOKUP(N691,POA!$A$2:$F$25,5,0)),\"\",VLOOKUP(N691,POA!$A$2:$F$25,5,0))","v":""},null,"",null,0,"MIPYME",null,"",null,""]
[null,{"$f":"IF(C692=\"\",\"\",B691+0.1)","v":""},null,null,{"$f":"IF(ISERROR(VLOOKUP(C692,#REF!,2,0)),\"\",VLOOKUP(C692,#REF!,2,0))","v":""},null,{"$f":"IF(ISERROR(VLOOKUP(C692,#REF!,4,0)),\"\",VLOOKUP(C692,#REF!,4,0))","v":""},null,{"$f":"IF(ISERROR(F692-H692),\"\",F692-H692)","v":0},null,null,null,{"$f":"IF(ISERROR(VLOOKUP(L692,POA!$A$2:$C$25,3,0)),\"\",VLOOKUP(L692,POA!$A$2:$C$25,3,0))","v":""},null,{"$f":"IF(ISERROR(VLOOKUP(N692,POA!$A$2:$F$25,4,0)),\"\",VLOOKUP(N692,POA!$A$2:$F$25,4,0))","v":""},{"$f":"IF(ISERROR(VLOOKUP(L692,POA!$A$2:$C$25,2,0)),\"\",VLOOKUP(L692,POA!$A$2:$C$25,2,0))","v":""},null,{"$f":"IF(L692=0,\"\",IF(Q683>=$R$9,\"HABIL\",\"NO HABIL\"))","v":""},null,"",{"$f":"IF(ISERROR(VLOOKUP(N692,POA!$A$2:$F$25,5,0)),\"\",VLOOKUP(N692,POA!$A$2:$F$25,5,0))","v":""},null,"",null,0,"MIPYME",null,"",null,""]
[null,{"$f":"IF(C693=\"\",\"\",B692+0.1)","v":""},null,null,{"$f":"IF(ISERROR(VLOOKUP(C693,#REF!,2,0)),\"\",VLOOKUP(C693,#REF!,2,0))","v":""},null,{"$f":"IF(ISERROR(VLOOKUP(C693,#REF!,4,0)),\"\",VLOOKUP(C693,#REF!,4,0))","v":""},null,{"$f":"IF(ISERROR(F693-H693),\"\",F693-H693)","v":0},null,null,null,{"$f":"IF(ISERROR(VLOOKUP(L693,POA!$A$2:$C$25,3,0)),\"\",VLOOKUP(L693,POA!$A$2:$C$25,3,0))","v":""},null,{"$f":"IF(ISERROR(VLOOKUP(N693,POA!$A$2:$F$25,4,0)),\"\",VLOOKUP(N693,POA!$A$2:$F$25,4,0))","v":""},{"$f":"IF(ISERROR(VLOOKUP(L693,POA!$A$2:$C$25,2,0)),\"\",VLOOKUP(L693,POA!$A$2:$C$25,2,0))","v":""},null,{"$f":"IF(L693=0,\"\",IF(Q683>=$R$9,\"HABIL\",\"NO HABIL\"))","v":""},null,"",{"$f":"IF(ISERROR(VLOOKUP(N693,POA!$A$2:$F$25,5,0)),\"\",VLOOKUP(N693,POA!$A$2:$F$25,5,0))","v":""},null,"",null,{"$f":"IF(ISERROR(F693/$Z$9),\"\",F693/$Z$9)","v":0},"MIPYME",null,"",null,""]
[null,63,null,{"$f":"IF(SUM(D695:D704)=0,\"\",SUM(D695:D704))","v":""},{"$f":"SUM(E695:E704)","v":0},{"$f":"SUM(F695:F704)","v":0},{"$f":"SUM(G695:G704)","v":0},{"$f":"SUM(H695:H704)","v":0},{"$f":"+F694-H694","v":0},{"$f":"SUM(J695:J704)","v":0},{"$f":"SUM(K695:K704)","v":0},1,{"$f":"IF(ISERROR(VLOOKUP(L694,POA!$A$2:$C$25,3,0)),\"\",VLOOKUP(L694,POA!$A$2:$C$25,3,0))","v":3}," ",{"$f":"+SUM(O695:O704)","v":0},{"$f":"IF(ISERROR(VLOOKUP(L694,POA!$A$2:$C$25,2,0)),\"\",VLOOKUP(L694,POA!$A$2:$C$25,2,0))","v":4167150295},{"$f":"SUM(E694/G694)","v":{"$error":"#DIV/0!"}},{"$f":"IF(Q694=0,\"\",IF(Q694>=$R$9,\"HABIL\",\"NO HABIL\"))","v":{"$error":"#DIV/0!"}},{"$f":"SUM(H694/F694)","v":{"$error":"#DIV/0!"}},{"$f":"IF(S694=0,\"\",IF(S694<=$T$9,\"HABIL\",\"NO HABIL\"))","v":{"$error":"#DIV/0!"}},{"$f":"+SUM(U695:U704)","v":0},{"$f":"SUM(J694/K694)","v":{"$error":"#DIV/0!"}},{"$f":"IF(V694=0,\"\",IF(V694>=$W$9,\"HABIL\",\"NO HABIL\"))","v":{"$error":"#DIV/0!"}},{"$f":"IF(R694=0,\"\",IF(R694=\"NO HABIL\",\"NO HABIL\",IF(T694=\"NO HABIL\",\"NO HABIL\",IF(W694=\"NO HABIL\",\"NO HABIL\",IF(W694=\"NO HABIL\",\"NO HABIL\",\"HABIL\")))))","v":{"$error":"#DIV/0!"}},null,null,{"$f":"SUM(J694/I694)","v":{"$error":"#DIV/0!"}},{"$f":"IF(AA694=0,\"\",IF(AA694>=$AB$9,\"HABIL\",\"NO HABIL\"))","v":{"$error":"#DIV/0!"}},{"$f":"SUM(J694/F694)","v":{"$error":"#DIV/0!"}},{"$f":"IF(AC694=0,\"\",IF(AC694>=$AD$9,\"HABIL\",\"NO HABIL\"))","v":{"$error":"#DIV/0!"}},{"$f":"IF(AB694=0,\"\",IF(AB694=\"NO HABIL\",\"NO HABIL\",IF(AD694=\"NO HABIL\",\"NO HABIL\",IF(AD694=\"NO HABIL\",\"NO HABIL\",\"HABIL\"))))","v":{"$error":"#DIV/0!"}}]
[null,{"$f":"IF(C695=\"\",\"\",B694+0.1)","v":""},null,null,null,null,null,null,{"$f":"IF(ISERROR(F695-H695),\"\",F695-H695)","v":0},null,null,null,{"$f":"IF(ISERROR(VLOOKUP(L695,POA!$A$2:$C$25,3,0)),\"\",VLOOKUP(L695,POA!$A$2:$C$25,3,0))","v":""}," ",{"$f":"IF(ISERROR(VLOOKUP(N695,POA!$A$2:$F$25,4,0)),\"\",VLOOKUP(N695,POA!$A$2:$F$25,4,0))","v":""},{"$f":"IF(ISERROR(VLOOKUP(L695,POA!$A$2:$C$25,2,0)),\"\",VLOOKUP(L695,POA!$A$2:$C$25,2,0))","v":""},null,{"$f":"IF(Q695=0,\"\",IF(Q694>=$R$9,\"HABIL\",\"NO HABIL\"))","v":""},null,{"$f":"IF(S695=0,\"\",IF(S695<=$T$9,\"HABIL\",\"NO HABIL\"))","v":""},{"$f":"IF(ISERROR(VLOOKUP(N695,POA!$A$2:$F$25,5,0)),\"\",VLOOKUP(N695,POA!$A$2:$F$25,5,0))","v":""},null,{"$f":"IF(V695=0,\"\",IF(V695>=$W$9,\"HABIL\",\"NO HABIL\"))","v":""},null,{"$f":"IF(ISERROR(F695/$Z$9),\"\",F695/$Z$9)","v":0},{"$f":"+IF(Y695<$Z$10,\"MIPYME\",\"NO CUMPLE\")","v":"MIPYME"},null,{"$f":"IF(AA695=0,\"\",IF(AA695>=$AB$9,\"HABIL\",\"NO HABIL\"))","v":""},null,{"$f":"IF(AC695=0,\"\",IF(AC695>=$AD$9,\"HABIL\",\"NO HABIL\"))","v":""}]
[null,"",null,null,null,null,null,null,0,null,null,null,{"$f":"IF(ISERROR(VLOOKUP(L696,POA!$A$2:$C$25,3,0)),\"\",VLOOKUP(L696,POA!$A$2:$C$25,3,0))","v":""}," ",{"$f":"IF(ISERROR(VLOOKUP(N696,POA!$A$2:$F$25,4,0)),\"\",VLOOKUP(N696,POA!$A$2:$F$25,4,0))","v":""},{"$f":"IF(ISERROR(VLOOKUP(L696,POA!$A$2:$C$25,2,0)),\"\",VLOOKUP(L696,POA!$A$2:$C$25,2,0))","v":""},null,{"$f":"IF(Q696=0,\"\",IF(Q694>=$R$9,\"HABIL\",\"NO HABIL\"))","v":""},null,"",{"$f":"IF(ISERROR(VLOOKUP(N696,POA!$A$2:$F$25,5,0)),\"\",VLOOKUP(N696,POA!$A$2:$F$25,5,0))","v":""},null,"",null,{"$f":"IF(ISERROR(F696/$Z$9),\"\",F696/$Z$9)","v":0},{"$f":"+IF(Y696<$Z$10,\"MIPYME\",\"NO CUMPLE\")","v":"MIPYME"},null,"",null,""]
[null,"",null,null,null,null,null,null,0,null,null,null,{"$f":"IF(ISERROR(VLOOKUP(L697,POA!$A$2:$C$25,3,0)),\"\",VLOOKUP(L697,POA!$A$2:$C$25,3,0))","v":""},null,{"$f":"IF(ISERROR(VLOOKUP(N697,POA!$A$2:$F$25,4,0)),\"\",VLOOKUP(N697,POA!$A$2:$F$25,4,0))","v":""},{"$f":"IF(ISERROR(VLOOKUP(L697,POA!$A$2:$C$25,2,0)),\"\",VLOOKUP(L697,POA!$A$2:$C$25,2,0))","v":""},null,{"$f":"IF(Q697=0,\"\",IF(Q694>=$R$9,\"HABIL\",\"NO HABIL\"))","v":""},null,"",{"$f":"IF(ISERROR(VLOOKUP(N697,POA!$A$2:$F$25,5,0)),\"\",VLOOKUP(N697,POA!$A$2:$F$25,5,0))","v":""},null,"",null,0,"MIPYME",null,"",null,""]
[null,"",null,null,{"$f":"IF(ISERROR(VLOOKUP(C698,#REF!,2,0)),\"\",VLOOKUP(C698,#REF!,2,0))","v":""},null,{"$f":"IF(ISERROR(VLOOKUP(C698,#REF!,4,0)),\"\",VLOOKUP(C698,#REF!,4,0))","v":""},null,0,null,null,null,{"$f":"IF(ISERROR(VLOOKUP(L698,POA!$A$2:$C$25,3,0)),\"\",VLOOKUP(L698,POA!$A$2:$C$25,3,0))","v":""},null,{"$f":"IF(ISERROR(VLOOKUP(N698,POA!$A$2:$F$25,4,0)),\"\",VLOOKUP(N698,POA!$A$2:$F$25,4,0))","v":""},{"$f":"IF(ISERROR(VLOOKUP(L698,POA!$A$2:$C$25,2,0)),\"\",VLOOKUP(L698,POA!$A$2:$C$25,2,0))","v":""},null,{"$f":"IF(L698=0,\"\",IF(Q694>=$R$9,\"HABIL\",\"NO HABIL\"))","v":""},null,"",{"$f":"IF(ISERROR(VLOOKUP(N698,POA!$A$2:$F$25,5,0)),\"\",VLOOKUP(N698,POA!$A$2:$F$25,5,0))","v":""},null,"",null,0,"MIPYME",null,"",null,""]
[null,"",null,null,{"$f":"IF(ISERROR(VLOOKUP(C699,#REF!,2,0)),\"\",VLOOKUP(C699,#REF!,2,0))","v":""},null,{"$f":"IF(ISERROR(VLOOKUP(C699,#REF!,4,0)),\"\",VLOOKUP(C699,#REF!,4,0))","v":""},null,0,null,null,null,{"$f":"IF(ISERROR(VLOOKUP(L699,POA!$A$2:$C$25,3,0)),\"\",VLOOKUP(L699,POA!$A$2:$C$25,3,0))","v":""},null,{"$f":"IF(ISERROR(VLOOKUP(N699,POA!$A$2:$F$25,4,0)),\"\",VLOOKUP(N699,POA!$A$2:$F$25,4,0))","v":""},{"$f":"IF(ISERROR(VLOOKUP(L699,POA!$A$2:$C$25,2,0)),\"\",VLOOKUP(L699,POA!$A$2:$C$25,2,0))","v":""},null,{"$f":"IF(L699=0,\"\",IF(Q694>=$R$9,\"HABIL\",\"NO HABIL\"))","v":""},null,"",{"$f":"IF(ISERROR(VLOOKUP(N699,POA!$A$2:$F$25,5,0)),\"\",VLOOKUP(N699,POA!$A$2:$F$25,5,0))","v":""},null,"",null,0,"MIPYME",null,"",null,""]
[null,"",null,null,{"$f":"IF(ISERROR(VLOOKUP(C700,#REF!,2,0)),\"\",VLOOKUP(C700,#REF!,2,0))","v":""},null,{"$f":"IF(ISERROR(VLOOKUP(C700,#REF!,4,0)),\"\",VLOOKUP(C700,#REF!,4,0))","v":""},null,0,null,null,null,{"$f":"IF(ISERROR(VLOOKUP(L700,POA!$A$2:$C$25,3,0)),\"\",VLOOKUP(L700,POA!$A$2:$C$25,3,0))","v":""},null,{"$f":"IF(ISERROR(VLOOKUP(N700,POA!$A$2:$F$25,4,0)),\"\",VLOOKUP(N700,POA!$A$2:$F$25,4,0))","v":""},{"$f":"IF(ISERROR(VLOOKUP(L700,POA!$A$2:$C$25,2,0)),\"\",VLOOKUP(L700,POA!$A$2:$C$25,2,0))","v":""},null,{"$f":"IF(L700=0,\"\",IF(Q694>=$R$9,\"HABIL\",\"NO HABIL\"))","v":""},null,"",{"$f":"IF(ISERROR(VLOOKUP(N700,POA!$A$2:$F$25,5,0)),\"\",VLOOKUP(N700,POA!$A$2:$F$25,5,0))","v":""},null,"",null,0,"MIPYME",null,"",null,""]
[null,{"$f":"IF(C701=\"\",\"\",B700+0.1)","v":""},null,null,{"$f":"IF(ISERROR(VLOOKUP(C701,#REF!,2,0)),\"\",VLOOKUP(C701,#REF!,2,0))","v":""},null,{"$f":"IF(ISERROR(VLOOKUP(C701,#REF!,4,0)),\"\",VLOOKUP(C701,#REF!,4,0))","v":""},null,{"$f":"IF(ISERROR(F701-H701),\"\",F701-H701)","v":0},null,null,null,{"$f":"IF(ISERROR(VLOOKUP(L701,POA!$A$2:$C$25,3,0)),\"\",VLOOKUP(L701,POA!$A$2:$C$25,3,0))","v":""},null,{"$f":"IF(ISERROR(VLOOKUP(N701,POA!$A$2:$F$25,4,0)),\"\",VLOOKUP(N701,POA!$A$2:$F$25,4,0))","v":""},{"$f":"IF(ISERROR(VLOOKUP(L701,POA!$A$2:$C$25,2,0)),\"\",VLOOKUP(L701,POA!$A$2:$C$25,2,0))","v":""},null,{"$f":"IF(L701=0,\"\",IF(Q694>=$R$9,\"HABIL\",\"NO HABIL\"))","v":""},null,"",{"$f":"IF(ISERROR(VLOOKUP(N701,POA!$A$2:$F$25,5,0)),\"\",VLOOKUP(N701,POA!$A$2:$F$25,5,0))","v":""},null,"",null,0,"MIPYME",null,"",null,""]
[null,{"$f":"IF(C702=\"\",\"\",B701+0.1)","v":""},null,null,{"$f":"IF(ISERROR(VLOOKUP(C702,#REF!,2,0)),\"\",VLOOKUP(C702,#REF!,2,0))","v":""},null,{"$f":"IF(ISERROR(VLOOKUP(C702,#REF!,4,0)),\"\",VLOOKUP(C702,#REF!,4,0))","v":""},null,{"$f":"IF(ISERROR(F702-H702),\"\",F702-H702)","v":0},null,null,null,{"$f":"IF(ISERROR(VLOOKUP(L702,POA!$A$2:$C$25,3,0)),\"\",VLOOKUP(L702,POA!$A$2:$C$25,3,0))","v":""},null,{"$f":"IF(ISERROR(VLOOKUP(N702,POA!$A$2:$F$25,4,0)),\"\",VLOOKUP(N702,POA!$A$2:$F$25,4,0))","v":""},{"$f":"IF(ISERROR(VLOOKUP(L702,POA!$A$2:$C$25,2,0)),\"\",VLOOKUP(L702,POA!$A$2:$C$25,2,0))","v":""},null,{"$f":"IF(L702=0,\"\",IF(Q694>=$R$9,\"HABIL\",\"NO HABIL\"))","v":""},null,"",{"$f":"IF(ISERROR(VLOOKUP(N702,POA!$A$2:$F$25,5,0)),\"\",VLOOKUP(N702,POA!$A$2:$F$25,5,0))","v":""},null,"",null,0,"MIPYME",null,"",null,""]
[null,{"$f":"IF(C703=\"\",\"\",B702+0.1)","v":""},null,null,{"$f":"IF(ISERROR(VLOOKUP(C703,#REF!,2,0)),\"\",VLOOKUP(C703,#REF!,2,0))","v":""},null,{"$f":"IF(ISERROR(VLOOKUP(C703,#REF!,4,0)),\"\",VLOOKUP(C703,#REF!,4,0))","v":""},null,{"$f":"IF(ISERROR(F703-H703),\"\",F703-H703)","v":0},null,null,null,{"$f":"IF(ISERROR(VLOOKUP(L703,POA!$A$2:$C$25,3,0)),\"\",VLOOKUP(L703,POA!$A$2:$C$25,3,0))","v":""},null,{"$f":"IF(ISERROR(VLOOKUP(N703,POA!$A$2:$F$25,4,0)),\"\",VLOOKUP(N703,POA!$A$2:$F$25,4,0))","v":""},{"$f":"IF(ISERROR(VLOOKUP(L703,POA!$A$2:$C$25,2,0)),\"\",VLOOKUP(L703,POA!$A$2:$C$25,2,0))","v":""},null,{"$f":"IF(L703=0,\"\",IF(Q694>=$R$9,\"HABIL\",\"NO HABIL\"))","v":""},null,"",{"$f":"IF(ISERROR(VLOOKUP(N703,POA!$A$2:$F$25,5,0)),\"\",VLOOKUP(N703,POA!$A$2:$F$25,5,0))","v":""},null,"",null,0,"MIPYME",null,"",null,""]
[null,{"$f":"IF(C704=\"\",\"\",B703+0.1)","v":""},null,null,{"$f":"IF(ISERROR(VLOOKUP(C704,#REF!,2,0)),\"\",VLOOKUP(C704,#REF!,2,0))","v":""},null,{"$f":"IF(ISERROR(VLOOKUP(C704,#REF!,4,0)),\"\",VLOOKUP(C704,#REF!,4,0))","v":""},null,{"$f":"IF(ISERROR(F704-H704),\"\",F704-H704)","v":0},null,null,null,{"$f":"IF(ISERROR(VLOOKUP(L704,POA!$A$2:$C$25,3,0)),\"\",VLOOKUP(L704,POA!$A$2:$C$25,3,0))","v":""},null,{"$f":"IF(ISERROR(VLOOKUP(N704,POA!$A$2:$F$25,4,0)),\"\",VLOOKUP(N704,POA!$A$2:$F$25,4,0))","v":""},{"$f":"IF(ISERROR(VLOOKUP(L704,POA!$A$2:$C$25,2,0)),\"\",VLOOKUP(L704,POA!$A$2:$C$25,2,0))","v":""},null,{"$f":"IF(L704=0,\"\",IF(Q694>=$R$9,\"HABIL\",\"NO HABIL\"))","v":""},null,"",{"$f":"IF(ISERROR(VLOOKUP(N704,POA!$A$2:$F$25,5,0)),\"\",VLOOKUP(N704,POA!$A$2:$F$25,5,0))","v":""},null,"",null,{"$f":"IF(ISERROR(F704/$Z$9),\"\",F704/$Z$9)","v":0},"MIPYME",null,"",null,""]
[null,64,null,{"$f":"IF(SUM(D706:D715)=0,\"\",SUM(D706:D715))","v":""},{"$f":"SUM(E706:E715)","v":0},{"$f":"SUM(F706:F715)","v":0},{"$f":"SUM(G706:G715)","v":0},{"$f":"SUM(H706:H715)","v":0},{"$f":"+F705-H705","v":0},{"$f":"SUM(J706:J715)","v":0},{"$f":"SUM(K706:K715)","v":0},1,{"$f":"IF(ISERROR(VLOOKUP(L705,POA!$A$2:$C$25,3,0)),\"\",VLOOKUP(L705,POA!$A$2:$C$25,3,0))","v":3}," ",{"$f":"+SUM(O706:O715)","v":0},{"$f":"IF(ISERROR(VLOOKUP(L705,POA!$A$2:$C$25,2,0)),\"\",VLOOKUP(L705,POA!$A$2:$C$25,2,0))","v":4167150295},{"$f":"SUM(E705/G705)","v":{"$error":"#DIV/0!"}},{"$f":"IF(Q705=0,\"\",IF(Q705>=$R$9,\"HABIL\",\"NO HABIL\"))","v":{"$error":"#DIV/0!"}},{"$f":"SUM(H705/F705)","v":{"$error":"#DIV/0!"}},{"$f":"IF(S705=0,\"\",IF(S705<=$T$9,\"HABIL\",\"NO HABIL\"))","v":{"$error":"#DIV/0!"}},{"$f":"+SUM(U706:U715)","v":0},{"$f":"SUM(J705/K705)","v":{"$error":"#DIV/0!"}},{"$f":"IF(V705=0,\"\",IF(V705>=$W$9,\"HABIL\",\"NO HABIL\"))","v":{"$error":"#DIV/0!"}},{"$f":"IF(R705=0,\"\",IF(R705=\"NO HABIL\",\"NO HABIL\",IF(T705=\"NO HABIL\",\"NO HABIL\",IF(W705=\"NO HABIL\",\"NO HABIL\",IF(W705=\"NO HABIL\",\"NO HABIL\",\"HABIL\")))))","v":{"$error":"#DIV/0!"}},null,null,{"$f":"SUM(J705/I705)","v":{"$error":"#DIV/0!"}},{"$f":"IF(AA705=0,\"\",IF(AA705>=$AB$9,\"HABIL\",\"NO HABIL\"))","v":{"$error":"#DIV/0!"}},{"$f":"SUM(J705/F705)","v":{"$error":"#DIV/0!"}},{"$f":"IF(AC705=0,\"\",IF(AC705>=$AD$9,\"HABIL\",\"NO HABIL\"))","v":{"$error":"#DIV/0!"}},{"$f":"IF(AB705=0,\"\",IF(AB705=\"NO HABIL\",\"NO HABIL\",IF(AD705=\"NO HABIL\",\"NO HABIL\",IF(AD705=\"NO HABIL\",\"NO HABIL\",\"HABIL\"))))","v":{"$error":"#DIV/0!"}}]
[null,{"$f":"IF(C706=\"\",\"\",B705+0.1)","v":""},null,null,null,null,null,null,{"$f":"IF(ISERROR(F706-H706),\"\",F706-H706)","v":0},null,null,null,{"$f":"IF(ISERROR(VLOOKUP(L706,POA!$A$2:$C$25,3,0)),\"\",VLOOKUP(L706,POA!$A$2:$C$25,3,0))","v":""}," ",{"$f":"IF(ISERROR(VLOOKUP(N706,POA!$A$2:$F$25,4,0)),\"\",VLOOKUP(N706,POA!$A$2:$F$25,4,0))","v":""},{"$f":"IF(ISERROR(VLOOKUP(L706,POA!$A$2:$C$25,2,0)),\"\",VLOOKUP(L706,POA!$A$2:$C$25,2,0))","v":""},null,{"$f":"IF(Q706=0,\"\",IF(Q705>=$R$9,\"HABIL\",\"NO HABIL\"))","v":""},null,{"$f":"IF(S706=0,\"\",IF(S706<=$T$9,\"HABIL\",\"NO HABIL\"))","v":""},{"$f":"IF(ISERROR(VLOOKUP(N706,POA!$A$2:$F$25,5,0)),\"\",VLOOKUP(N706,POA!$A$2:$F$25,5,0))","v":""},null,{"$f":"IF(V706=0,\"\",IF(V706>=$W$9,\"HABIL\",\"NO HABIL\"))","v":""},null,{"$f":"IF(ISERROR(F706/$Z$9),\"\",F706/$Z$9)","v":0},{"$f":"+IF(Y706<$Z$10,\"MIPYME\",\"NO CUMPLE\")","v":"MIPYME"},null,{"$f":"IF(AA706=0,\"\",IF(AA706>=$AB$9,\"HABIL\",\"NO HABIL\"))","v":""},null,{"$f":"IF(AC706=0,\"\",IF(AC706>=$AD$9,\"HABIL\",\"NO HABIL\"))","v":""}]
[null,"",null,null,null,null,null,null,0,null,null,null,{"$f":"IF(ISERROR(VLOOKUP(L707,POA!$A$2:$C$25,3,0)),\"\",VLOOKUP(L707,POA!$A$2:$C$25,3,0))","v":""}," ",{"$f":"IF(ISERROR(VLOOKUP(N707,POA!$A$2:$F$25,4,0)),\"\",VLOOKUP(N707,POA!$A$2:$F$25,4,0))","v":""},{"$f":"IF(ISERROR(VLOOKUP(L707,POA!$A$2:$C$25,2,0)),\"\",VLOOKUP(L707,POA!$A$2:$C$25,2,0))","v":""},null,{"$f":"IF(Q707=0,\"\",IF(Q705>=$R$9,\"HABIL\",\"NO HABIL\"))","v":""},null,"",{"$f":"IF(ISERROR(VLOOKUP(N707,POA!$A$2:$F$25,5,0)),\"\",VLOOKUP(N707,POA!$A$2:$F$25,5,0))","v":""},null,"",null,{"$f":"IF(ISERROR(F707/$Z$9),\"\",F707/$Z$9)","v":0},{"$f":"+IF(Y707<$Z$10,\"MIPYME\",\"NO CUMPLE\")","v":"MIPYME"},null,"",null,""]
[null,"",null,null,null,null,null,null,0,null,null,null,{"$f":"IF(ISERROR(VLOOKUP(L708,POA!$A$2:$C$25,3,0)),\"\",VLOOKUP(L708,POA!$A$2:$C$25,3,0))","v":""},null,{"$f":"IF(ISERROR(VLOOKUP(N708,POA!$A$2:$F$25,4,0)),\"\",VLOOKUP(N708,POA!$A$2:$F$25,4,0))","v":""},{"$f":"IF(ISERROR(VLOOKUP(L708,POA!$A$2:$C$25,2,0)),\"\",VLOOKUP(L708,POA!$A$2:$C$25,2,0))","v":""},null,{"$f":"IF(Q708=0,\"\",IF(Q705>=$R$9,\"HABIL\",\"NO HABIL\"))","v":""},null,"",{"$f":"IF(ISERROR(VLOOKUP(N708,POA!$A$2:$F$25,5,0)),\"\",VLOOKUP(N708,POA!$A$2:$F$25,5,0))","v":""},null,"",null,0,"MIPYME",null,"",null,""]
[null,"",null,null,{"$f":"IF(ISERROR(VLOOKUP(C709,#REF!,2,0)),\"\",VLOOKUP(C709,#REF!,2,0))","v":""},null,{"$f":"IF(ISERROR(VLOOKUP(C709,#REF!,4,0)),\"\",VLOOKUP(C709,#REF!,4,0))","v":""},null,0,null,null,null,{"$f":"IF(ISERROR(VLOOKUP(L709,POA!$A$2:$C$25,3,0)),\"\",VLOOKUP(L709,POA!$A$2:$C$25,3,0))","v":""},null,{"$f":"IF(ISERROR(VLOOKUP(N709,POA!$A$2:$F$25,4,0)),\"\",VLOOKUP(N709,POA!$A$2:$F$25,4,0))","v":""},{"$f":"IF(ISERROR(VLOOKUP(L709,POA!$A$2:$C$25,2,0)),\"\",VLOOKUP(L709,POA!$A$2:$C$25,2,0))","v":""},null,{"$f":"IF(L709=0,\"\",IF(Q705>=$R$9,\"HABIL\",\"NO HABIL\"))","v":""},null,"",{"$f":"IF(ISERROR(VLOOKUP(N709,POA!$A$2:$F$25,5,0)),\"\",VLOOKUP(N709,POA!$A$2:$F$25,5,0))","v":""},null,"",null,0,"MIPYME",null,"",null,""]
[null,"",null,null,{"$f":"IF(ISERROR(VLOOKUP(C710,#REF!,2,0)),\"\",VLOOKUP(C710,#REF!,2,0))","v":""},null,{"$f":"IF(ISERROR(VLOOKUP(C710,#REF!,4,0)),\"\",VLOOKUP(C710,#REF!,4,0))","v":""},null,0,null,null,null,{"$f":"IF(ISERROR(VLOOKUP(L710,POA!$A$2:$C$25,3,0)),\"\",VLOOKUP(L710,POA!$A$2:$C$25,3,0))","v":""},null,{"$f":"IF(ISERROR(VLOOKUP(N710,POA!$A$2:$F$25,4,0)),\"\",VLOOKUP(N710,POA!$A$2:$F$25,4,0))","v":""},{"$f":"IF(ISERROR(VLOOKUP(L710,POA!$A$2:$C$25,2,0)),\"\",VLOOKUP(L710,POA!$A$2:$C$25,2,0))","v":""},null,{"$f":"IF(L710=0,\"\",IF(Q705>=$R$9,\"HABIL\",\"NO HABIL\"))","v":""},null,"",{"$f":"IF(ISERROR(VLOOKUP(N710,POA!$A$2:$F$25,5,0)),\"\",VLOOKUP(N710,POA!$A$2:$F$25,5,0))","v":""},null,"",null,0,"MIPYME",null,"",null,""]
[null,"",null,null,{"$f":"IF(ISERROR(VLOOKUP(C711,#REF!,2,0)),\"\",VLOOKUP(C711,#REF!,2,0))","v":""},null,{"$f":"IF(ISERROR(VLOOKUP(C711,#REF!,4,0)),\"\",VLOOKUP(C711,#REF!,4,0))","v":""},null,0,null,null,null,{"$f":"IF(ISERROR(VLOOKUP(L711,POA!$A$2:$C$25,3,0)),\"\",VLOOKUP(L711,POA!$A$2:$C$25,3,0))","v":""},null,{"$f":"IF(ISERROR(VLOOKUP(N711,POA!$A$2:$F$25,4,0)),\"\",VLOOKUP(N711,POA!$A$2:$F$25,4,0))","v":""},{"$f":"IF(ISERROR(VLOOKUP(L711,POA!$A$2:$C$25,2,0)),\"\",VLOOKUP(L711,POA!$A$2:$C$25,2,0))","v":""},null,{"$f":"IF(L711=0,\"\",IF(Q705>=$R$9,\"HABIL\",\"NO HABIL\"))","v":""},null,"",{"$f":"IF(ISERROR(VLOOKUP(N711,POA!$A$2:$F$25,5,0)),\"\",VLOOKUP(N711,POA!$A$2:$F$25,5,0))","v":""},null,"",null,0,"MIPYME",null,"",null,""]
[null,{"$f":"IF(C712=\"\",\"\",B711+0.1)","v":""},null,null,{"$f":"IF(ISERROR(VLOOKUP(C712,#REF!,2,0)),\"\",VLOOKUP(C712,#REF!,2,0))","v":""},null,{"$f":"IF(ISERROR(VLOOKUP(C712,#REF!,4,0)),\"\",VLOOKUP(C712,#REF!,4,0))","v":""},null,{"$f":"IF(ISERROR(F712-H712),\"\",F712-H712)","v":0},null,null,null,{"$f":"IF(ISERROR(VLOOKUP(L712,POA!$A$2:$C$25,3,0)),\"\",VLOOKUP(L712,POA!$A$2:$C$25,3,0))","v":""},null,{"$f":"IF(ISERROR(VLOOKUP(N712,POA!$A$2:$F$25,4,0)),\"\",VLOOKUP(N712,POA!$A$2:$F$25,4,0))","v":""},{"$f":"IF(ISERROR(VLOOKUP(L712,POA!$A$2:$C$25,2,0)),\"\",VLOOKUP(L712,POA!$A$2:$C$25,2,0))","v":""},null,{"$f":"IF(L712=0,\"\",IF(Q705>=$R$9,\"HABIL\",\"NO HABIL\"))","v":""},null,"",{"$f":"IF(ISERROR(VLOOKUP(N712,POA!$A$2:$F$25,5,0)),\"\",VLOOKUP(N712,POA!$A$2:$F$25,5,0))","v":""},null,"",null,0,"MIPYME",null,"",null,""]
[null,{"$f":"IF(C713=\"\",\"\",B712+0.1)","v":""},null,null,{"$f":"IF(ISERROR(VLOOKUP(C713,#REF!,2,0)),\"\",VLOOKUP(C713,#REF!,2,0))","v":""},null,{"$f":"IF(ISERROR(VLOOKUP(C713,#REF!,4,0)),\"\",VLOOKUP(C713,#REF!,4,0))","v":""},null,{"$f":"IF(ISERROR(F713-H713),\"\",F713-H713)","v":0},null,null,null,{"$f":"IF(ISERROR(VLOOKUP(L713,POA!$A$2:$C$25,3,0)),\"\",VLOOKUP(L713,POA!$A$2:$C$25,3,0))","v":""},null,{"$f":"IF(ISERROR(VLOOKUP(N713,POA!$A$2:$F$25,4,0)),\"\",VLOOKUP(N713,POA!$A$2:$F$25,4,0))","v":""},{"$f":"IF(ISERROR(VLOOKUP(L713,POA!$A$2:$C$25,2,0)),\"\",VLOOKUP(L713,POA!$A$2:$C$25,2,0))","v":""},null,{"$f":"IF(L713=0,\"\",IF(Q705>=$R$9,\"HABIL\",\"NO HABIL\"))","v":""},null,"",{"$f":"IF(ISERROR(VLOOKUP(N713,POA!$A$2:$F$25,5,0)),\"\",VLOOKUP(N713,POA!$A$2:$F$25,5,0))","v":""},null,"",null,0,"MIPYME",null,"",null,""]
[null,{"$f":"IF(C714=\"\",\"\",B713+0.1)","v":""},null,null,{"$f":"IF(ISERROR(VLOOKUP(C714,#REF!,2,0)),\"\",VLOOKUP(C714,#REF!,2,0))","v":""},null,{"$f":"IF(ISERROR(VLOOKUP(C714,#REF!,4,0)),\"\",VLOOKUP(C714,#REF!,4,0))","v":""},null,{"$f":"IF(ISERROR(F714-H714),\"\",F714-H714)","v":0},null,null,null,{"$f":"IF(ISERROR(VLOOKUP(L714,POA!$A$2:$C$25,3,0)),\"\",VLOOKUP(L714,POA!$A$2:$C$25,3,0))","v":""},null,{"$f":"IF(ISERROR(VLOOKUP(N714,POA!$A$2:$F$25,4,0)),\"\",VLOOKUP(N714,POA!$A$2:$F$25,4,0))","v":""},{"$f":"IF(ISERROR(VLOOKUP(L714,POA!$A$2:$C$25,2,0)),\"\",VLOOKUP(L714,POA!$A$2:$C$25,2,0))","v":""},null,{"$f":"IF(L714=0,\"\",IF(Q705>=$R$9,\"HABIL\",\"NO HABIL\"))","v":""},null,"",{"$f":"IF(ISERROR(VLOOKUP(N714,POA!$A$2:$F$25,5,0)),\"\",VLOOKUP(N714,POA!$A$2:$F$25,5,0))","v":""},null,"",null,0,"MIPYME",null,"",null,""]
[null,{"$f":"IF(C715=\"\",\"\",B714+0.1)","v":""},null,null,{"$f":"IF(ISERROR(VLOOKUP(C715,#REF!,2,0)),\"\",VLOOKUP(C715,#REF!,2,0))","v":""},null,{"$f":"IF(ISERROR(VLOOKUP(C715,#REF!,4,0)),\"\",VLOOKUP(C715,#REF!,4,0))","v":""},null,{"$f":"IF(ISERROR(F715-H715),\"\",F715-H715)","v":0},null,null,null,{"$f":"IF(ISERROR(VLOOKUP(L715,POA!$A$2:$C$25,3,0)),\"\",VLOOKUP(L715,POA!$A$2:$C$25,3,0))","v":""},null,{"$f":"IF(ISERROR(VLOOKUP(N715,POA!$A$2:$F$25,4,0)),\"\",VLOOKUP(N715,POA!$A$2:$F$25,4,0))","v":""},{"$f":"IF(ISERROR(VLOOKUP(L715,POA!$A$2:$C$25,2,0)),\"\",VLOOKUP(L715,POA!$A$2:$C$25,2,0))","v":""},null,{"$f":"IF(L715=0,\"\",IF(Q705>=$R$9,\"HABIL\",\"NO HABIL\"))","v":""},null,"",{"$f":"IF(ISERROR(VLOOKUP(N715,POA!$A$2:$F$25,5,0)),\"\",VLOOKUP(N715,POA!$A$2:$F$25,5,0))","v":""},null,"",null,{"$f":"IF(ISERROR(F715/$Z$9),\"\",F715/$Z$9)","v":0},"MIPYME",null,"",null,""]
[null,65,null,{"$f":"IF(SUM(D717:D726)=0,\"\",SUM(D717:D726))","v":""},{"$f":"SUM(E717:E726)","v":0},{"$f":"SUM(F717:F726)","v":0},{"$f":"SUM(G717:G726)","v":0},{"$f":"SUM(H717:H726)","v":0},{"$f":"+F716-H716","v":0},{"$f":"SUM(J717:J726)","v":0},{"$f":"SUM(K717:K726)","v":0},1,{"$f":"IF(ISERROR(VLOOKUP(L716,POA!$A$2:$C$25,3,0)),\"\",VLOOKUP(L716,POA!$A$2:$C$25,3,0))","v":3}," ",{"$f":"+SUM(O717:O726)","v":0},{"$f":"IF(ISERROR(VLOOKUP(L716,POA!$A$2:$C$25,2,0)),\"\",VLOOKUP(L716,POA!$A$2:$C$25,2,0))","v":4167150295},{"$f":"SUM(E716/G716)","v":{"$error":"#DIV/0!"}},{"$f":"IF(Q716=0,\"\",IF(Q716>=$R$9,\"HABIL\",\"NO HABIL\"))","v":{"$error":"#DIV/0!"}},{"$f":"SUM(H716/F716)","v":{"$error":"#DIV/0!"}},{"$f":"IF(S716=0,\"\",IF(S716<=$T$9,\"HABIL\",\"NO HABIL\"))","v":{"$error":"#DIV/0!"}},{"$f":"+SUM(U717:U726)","v":0},{"$f":"SUM(J716/K716)","v":{"$error":"#DIV/0!"}},{"$f":"IF(V716=0,\"\",IF(V716>=$W$9,\"HABIL\",\"NO HABIL\"))","v":{"$error":"#DIV/0!"}},{"$f":"IF(R716=0,\"\",IF(R716=\"NO HABIL\",\"NO HABIL\",IF(T716=\"NO HABIL\",\"NO HABIL\",IF(W716=\"NO HABIL\",\"NO HABIL\",IF(W716=\"NO HABIL\",\"NO HABIL\",\"HABIL\")))))","v":{"$error":"#DIV/0!"}},null,null,{"$f":"SUM(J716/I716)","v":{"$error":"#DIV/0!"}},{"$f":"IF(AA716=0,\"\",IF(AA716>=$AB$9,\"HABIL\",\"NO HABIL\"))","v":{"$error":"#DIV/0!"}},{"$f":"SUM(J716/F716)","v":{"$error":"#DIV/0!"}},{"$f":"IF(AC716=0,\"\",IF(AC716>=$AD$9,\"HABIL\",\"NO HABIL\"))","v":{"$error":"#DIV/0!"}},{"$f":"IF(AB716=0,\"\",IF(AB716=\"NO HABIL\",\"NO HABIL\",IF(AD716=\"NO HABIL\",\"NO HABIL\",IF(AD716=\"NO HABIL\",\"NO HABIL\",\"HABIL\"))))","v":{"$error":"#DIV/0!"}}]
[null,{"$f":"IF(C717=\"\",\"\",B716+0.1)","v":""},null,null,null,null,null,null,{"$f":"IF(ISERROR(F717-H717),\"\",F717-H717)","v":0},null,null,null,{"$f":"IF(ISERROR(VLOOKUP(L717,POA!$A$2:$C$25,3,0)),\"\",VLOOKUP(L717,POA!$A$2:$C$25,3,0))","v":""}," ",{"$f":"IF(ISERROR(VLOOKUP(N717,POA!$A$2:$F$25,4,0)),\"\",VLOOKUP(N717,POA!$A$2:$F$25,4,0))","v":""},{"$f":"IF(ISERROR(VLOOKUP(L717,POA!$A$2:$C$25,2,0)),\"\",VLOOKUP(L717,POA!$A$2:$C$25,2,0))","v":""},null,{"$f":"IF(Q717=0,\"\",IF(Q716>=$R$9,\"HABIL\",\"NO HABIL\"))","v":""},null,{"$f":"IF(S717=0,\"\",IF(S717<=$T$9,\"HABIL\",\"NO HABIL\"))","v":""},{"$f":"IF(ISERROR(VLOOKUP(N717,POA!$A$2:$F$25,5,0)),\"\",VLOOKUP(N717,POA!$A$2:$F$25,5,0))","v":""},null,{"$f":"IF(V717=0,\"\",IF(V717>=$W$9,\"HABIL\",\"NO HABIL\"))","v":""},null,{"$f":"IF(ISERROR(F717/$Z$9),\"\",F717/$Z$9)","v":0},{"$f":"+IF(Y717<$Z$10,\"MIPYME\",\"NO CUMPLE\")","v":"MIPYME"},null,{"$f":"IF(AA717=0,\"\",IF(AA717>=$AB$9,\"HABIL\",\"NO HABIL\"))","v":""},null,{"$f":"IF(AC717=0,\"\",IF(AC717>=$AD$9,\"HABIL\",\"NO HABIL\"))","v":""}]
[null,"",null,null,null,null,null,null,0,null,null,null,{"$f":"IF(ISERROR(VLOOKUP(L718,POA!$A$2:$C$25,3,0)),\"\",VLOOKUP(L718,POA!$A$2:$C$25,3,0))","v":""}," ",{"$f":"IF(ISERROR(VLOOKUP(N718,POA!$A$2:$F$25,4,0)),\"\",VLOOKUP(N718,POA!$A$2:$F$25,4,0))","v":""},{"$f":"IF(ISERROR(VLOOKUP(L718,POA!$A$2:$C$25,2,0)),\"\",VLOOKUP(L718,POA!$A$2:$C$25,2,0))","v":""},null,{"$f":"IF(Q718=0,\"\",IF(Q716>=$R$9,\"HABIL\",\"NO HABIL\"))","v":""},null,"",{"$f":"IF(ISERROR(VLOOKUP(N718,POA!$A$2:$F$25,5,0)),\"\",VLOOKUP(N718,POA!$A$2:$F$25,5,0))","v":""},null,"",null,{"$f":"IF(ISERROR(F718/$Z$9),\"\",F718/$Z$9)","v":0},{"$f":"+IF(Y718<$Z$10,\"MIPYME\",\"NO CUMPLE\")","v":"MIPYME"},null,"",null,""]
[null,"",null,null,null,null,null,null,0,null,null,null,{"$f":"IF(ISERROR(VLOOKUP(L719,POA!$A$2:$C$25,3,0)),\"\",VLOOKUP(L719,POA!$A$2:$C$25,3,0))","v":""},null,{"$f":"IF(ISERROR(VLOOKUP(N719,POA!$A$2:$F$25,4,0)),\"\",VLOOKUP(N719,POA!$A$2:$F$25,4,0))","v":""},{"$f":"IF(ISERROR(VLOOKUP(L719,POA!$A$2:$C$25,2,0)),\"\",VLOOKUP(L719,POA!$A$2:$C$25,2,0))","v":""},null,{"$f":"IF(Q719=0,\"\",IF(Q716>=$R$9,\"HABIL\",\"NO HABIL\"))","v":""},null,"",{"$f":"IF(ISERROR(VLOOKUP(N719,POA!$A$2:$F$25,5,0)),\"\",VLOOKUP(N719,POA!$A$2:$F$25,5,0))","v":""},null,"",null,0,"MIPYME",null,"",null,""]
[null,"",null,null,{"$f":"IF(ISERROR(VLOOKUP(C720,#REF!,2,0)),\"\",VLOOKUP(C720,#REF!,2,0))","v":""},null,{"$f":"IF(ISERROR(VLOOKUP(C720,#REF!,4,0)),\"\",VLOOKUP(C720,#REF!,4,0))","v":""},null,0,null,null,null,{"$f":"IF(ISERROR(VLOOKUP(L720,POA!$A$2:$C$25,3,0)),\"\",VLOOKUP(L720,POA!$A$2:$C$25,3,0))","v":""},null,{"$f":"IF(ISERROR(VLOOKUP(N720,POA!$A$2:$F$25,4,0)),\"\",VLOOKUP(N720,POA!$A$2:$F$25,4,0))","v":""},{"$f":"IF(ISERROR(VLOOKUP(L720,POA!$A$2:$C$25,2,0)),\"\",VLOOKUP(L720,POA!$A$2:$C$25,2,0))","v":""},null,{"$f":"IF(L720=0,\"\",IF(Q716>=$R$9,\"HABIL\",\"NO HABIL\"))","v":""},null,"",{"$f":"IF(ISERROR(VLOOKUP(N720,POA!$A$2:$F$25,5,0)),\"\",VLOOKUP(N720,POA!$A$2:$F$25,5,0))","v":""},null,"",null,0,"MIPYME",null,"",null,""]
[null,"",null,null,{"$f":"IF(ISERROR(VLOOKUP(C721,#REF!,2,0)),\"\",VLOOKUP(C721,#REF!,2,0))","v":""},null,{"$f":"IF(ISERROR(VLOOKUP(C721,#REF!,4,0)),\"\",VLOOKUP(C721,#REF!,4,0))","v":""},null,0,null,null,null,{"$f":"IF(ISERROR(VLOOKUP(L721,POA!$A$2:$C$25,3,0)),\"\",VLOOKUP(L721,POA!$A$2:$C$25,3,0))","v":""},null,{"$f":"IF(ISERROR(VLOOKUP(N721,POA!$A$2:$F$25,4,0)),\"\",VLOOKUP(N721,POA!$A$2:$F$25,4,0))","v":""},{"$f":"IF(ISERROR(VLOOKUP(L721,POA!$A$2:$C$25,2,0)),\"\",VLOOKUP(L721,POA!$A$2:$C$25,2,0))","v":""},null,{"$f":"IF(L721=0,\"\",IF(Q716>=$R$9,\"HABIL\",\"NO HABIL\"))","v":""},null,"",{"$f":"IF(ISERROR(VLOOKUP(N721,POA!$A$2:$F$25,5,0)),\"\",VLOOKUP(N721,POA!$A$2:$F$25,5,0))","v":""},null,"",null,0,"MIPYME",null,"",null,""]
[null,"",null,null,{"$f":"IF(ISERROR(VLOOKUP(C722,#REF!,2,0)),\"\",VLOOKUP(C722,#REF!,2,0))","v":""},null,{"$f":"IF(ISERROR(VLOOKUP(C722,#REF!,4,0)),\"\",VLOOKUP(C722,#REF!,4,0))","v":""},null,0,null,null,null,{"$f":"IF(ISERROR(VLOOKUP(L722,POA!$A$2:$C$25,3,0)),\"\",VLOOKUP(L722,POA!$A$2:$C$25,3,0))","v":""},null,{"$f":"IF(ISERROR(VLOOKUP(N722,POA!$A$2:$F$25,4,0)),\"\",VLOOKUP(N722,POA!$A$2:$F$25,4,0))","v":""},{"$f":"IF(ISERROR(VLOOKUP(L722,POA!$A$2:$C$25,2,0)),\"\",VLOOKUP(L722,POA!$A$2:$C$25,2,0))","v":""},null,{"$f":"IF(L722=0,\"\",IF(Q716>=$R$9,\"HABIL\",\"NO HABIL\"))","v":""},null,"",{"$f":"IF(ISERROR(VLOOKUP(N722,POA!$A$2:$F$25,5,0)),\"\",VLOOKUP(N722,POA!$A$2:$F$25,5,0))","v":""},null,"",null,0,"MIPYME",null,"",null,""]
[null,{"$f":"IF(C723=\"\",\"\",B722+0.1)","v":""},null,null,{"$f":"IF(ISERROR(VLOOKUP(C723,#REF!,2,0)),\"\",VLOOKUP(C723,#REF!,2,0))","v":""},null,{"$f":"IF(ISERROR(VLOOKUP(C723,#REF!,4,0)),\"\",VLOOKUP(C723,#REF!,4,0))","v":""},null,{"$f":"IF(ISERROR(F723-H723),\"\",F723-H723)","v":0},null,null,null,{"$f":"IF(ISERROR(VLOOKUP(L723,POA!$A$2:$C$25,3,0)),\"\",VLOOKUP(L723,POA!$A$2:$C$25,3,0))","v":""},null,{"$f":"IF(ISERROR(VLOOKUP(N723,POA!$A$2:$F$25,4,0)),\"\",VLOOKUP(N723,POA!$A$2:$F$25,4,0))","v":""},{"$f":"IF(ISERROR(VLOOKUP(L723,POA!$A$2:$C$25,2,0)),\"\",VLOOKUP(L723,POA!$A$2:$C$25,2,0))","v":""},null,{"$f":"IF(L723=0,\"\",IF(Q716>=$R$9,\"HABIL\",\"NO HABIL\"))","v":""},null,"",{"$f":"IF(ISERROR(VLOOKUP(N723,POA!$A$2:$F$25,5,0)),\"\",VLOOKUP(N723,POA!$A$2:$F$25,5,0))","v":""},null,"",null,0,"MIPYME",null,"",null,""]
[null,{"$f":"IF(C724=\"\",\"\",B723+0.1)","v":""},null,null,{"$f":"IF(ISERROR(VLOOKUP(C724,#REF!,2,0)),\"\",VLOOKUP(C724,#REF!,2,0))","v":""},null,{"$f":"IF(ISERROR(VLOOKUP(C724,#REF!,4,0)),\"\",VLOOKUP(C724,#REF!,4,0))","v":""},null,{"$f":"IF(ISERROR(F724-H724),\"\",F724-H724)","v":0},null,null,null,{"$f":"IF(ISERROR(VLOOKUP(L724,POA!$A$2:$C$25,3,0)),\"\",VLOOKUP(L724,POA!$A$2:$C$25,3,0))","v":""},null,{"$f":"IF(ISERROR(VLOOKUP(N724,POA!$A$2:$F$25,4,0)),\"\",VLOOKUP(N724,POA!$A$2:$F$25,4,0))","v":""},{"$f":"IF(ISERROR(VLOOKUP(L724,POA!$A$2:$C$25,2,0)),\"\",VLOOKUP(L724,POA!$A$2:$C$25,2,0))","v":""},null,{"$f":"IF(L724=0,\"\",IF(Q716>=$R$9,\"HABIL\",\"NO HABIL\"))","v":""},null,"",{"$f":"IF(ISERROR(VLOOKUP(N724,POA!$A$2:$F$25,5,0)),\"\",VLOOKUP(N724,POA!$A$2:$F$25,5,0))","v":""},null,"",null,0,"MIPYME",null,"",null,""]
[null,{"$f":"IF(C725=\"\",\"\",B724+0.1)","v":""},null,null,{"$f":"IF(ISERROR(VLOOKUP(C725,#REF!,2,0)),\"\",VLOOKUP(C725,#REF!,2,0))","v":""},null,{"$f":"IF(ISERROR(VLOOKUP(C725,#REF!,4,0)),\"\",VLOOKUP(C725,#REF!,4,0))","v":""},null,{"$f":"IF(ISERROR(F725-H725),\"\",F725-H725)","v":0},null,null,null,{"$f":"IF(ISERROR(VLOOKUP(L725,POA!$A$2:$C$25,3,0)),\"\",VLOOKUP(L725,POA!$A$2:$C$25,3,0))","v":""},null,{"$f":"IF(ISERROR(VLOOKUP(N725,POA!$A$2:$F$25,4,0)),\"\",VLOOKUP(N725,POA!$A$2:$F$25,4,0))","v":""},{"$f":"IF(ISERROR(VLOOKUP(L725,POA!$A$2:$C$25,2,0)),\"\",VLOOKUP(L725,POA!$A$2:$C$25,2,0))","v":""},null,{"$f":"IF(L725=0,\"\",IF(Q716>=$R$9,\"HABIL\",\"NO HABIL\"))","v":""},null,"",{"$f":"IF(ISERROR(VLOOKUP(N725,POA!$A$2:$F$25,5,0)),\"\",VLOOKUP(N725,POA!$A$2:$F$25,5,0))","v":""},null,"",null,0,"MIPYME",null,"",null,""]
[null,{"$f":"IF(C726=\"\",\"\",B725+0.1)","v":""},null,null,{"$f":"IF(ISERROR(VLOOKUP(C726,#REF!,2,0)),\"\",VLOOKUP(C726,#REF!,2,0))","v":""},null,{"$f":"IF(ISERROR(VLOOKUP(C726,#REF!,4,0)),\"\",VLOOKUP(C726,#REF!,4,0))","v":""},null,{"$f":"IF(ISERROR(F726-H726),\"\",F726-H726)","v":0},null,null,null,{"$f":"IF(ISERROR(VLOOKUP(L726,POA!$A$2:$C$25,3,0)),\"\",VLOOKUP(L726,POA!$A$2:$C$25,3,0))","v":""},null,{"$f":"IF(ISERROR(VLOOKUP(N726,POA!$A$2:$F$25,4,0)),\"\",VLOOKUP(N726,POA!$A$2:$F$25,4,0))","v":""},{"$f":"IF(ISERROR(VLOOKUP(L726,POA!$A$2:$C$25,2,0)),\"\",VLOOKUP(L726,POA!$A$2:$C$25,2,0))","v":""},null,{"$f":"IF(L726=0,\"\",IF(Q716>=$R$9,\"HABIL\",\"NO HABIL\"))","v":""},null,"",{"$f":"IF(ISERROR(VLOOKUP(N726,POA!$A$2:$F$25,5,0)),\"\",VLOOKUP(N726,POA!$A$2:$F$25,5,0))","v":""},null,"",null,{"$f":"IF(ISERROR(F726/$Z$9),\"\",F726/$Z$9)","v":0},"MIPYME",null,"",null,""]
[null,66,null,{"$f":"IF(SUM(D728:D737)=0,\"\",SUM(D728:D737))","v":""},{"$f":"SUM(E728:E737)","v":0},{"$f":"SUM(F728:F737)","v":0},{"$f":"SUM(G728:G737)","v":0},{"$f":"SUM(H728:H737)","v":0},{"$f":"+F727-H727","v":0},{"$f":"SUM(J728:J737)","v":0},{"$f":"SUM(K728:K737)","v":0},1,{"$f":"IF(ISERROR(VLOOKUP(L727,POA!$A$2:$C$25,3,0)),\"\",VLOOKUP(L727,POA!$A$2:$C$25,3,0))","v":3}," ",{"$f":"+SUM(O728:O737)","v":0},{"$f":"IF(ISERROR(VLOOKUP(L727,POA!$A$2:$C$25,2,0)),\"\",VLOOKUP(L727,POA!$A$2:$C$25,2,0))","v":4167150295},{"$f":"SUM(E727/G727)","v":{"$error":"#DIV/0!"}},{"$f":"IF(Q727=0,\"\",IF(Q727>=$R$9,\"HABIL\",\"NO HABIL\"))","v":{"$error":"#DIV/0!"}},{"$f":"SUM(H727/F727)","v":{"$error":"#DIV/0!"}},{"$f":"IF(S727=0,\"\",IF(S727<=$T$9,\"HABIL\",\"NO HABIL\"))","v":{"$error":"#DIV/0!"}},{"$f":"+SUM(U728:U737)","v":0},{"$f":"SUM(J727/K727)","v":{"$error":"#DIV/0!"}},{"$f":"IF(V727=0,\"\",IF(V727>=$W$9,\"HABIL\",\"NO HABIL\"))","v":{"$error":"#DIV/0!"}},{"$f":"IF(R727=0,\"\",IF(R727=\"NO HABIL\",\"NO HABIL\",IF(T727=\"NO HABIL\",\"NO HABIL\",IF(W727=\"NO HABIL\",\"NO HABIL\",IF(W727=\"NO HABIL\",\"NO HABIL\",\"HABIL\")))))","v":{"$error":"#DIV/0!"}},null,null,{"$f":"SUM(J727/I727)","v":{"$error":"#DIV/0!"}},{"$f":"IF(AA727=0,\"\",IF(AA727>=$AB$9,\"HABIL\",\"NO HABIL\"))","v":{"$error":"#DIV/0!"}},{"$f":"SUM(J727/F727)","v":{"$error":"#DIV/0!"}},{"$f":"IF(AC727=0,\"\",IF(AC727>=$AD$9,\"HABIL\",\"NO HABIL\"))","v":{"$error":"#DIV/0!"}},{"$f":"IF(AB727=0,\"\",IF(AB727=\"NO HABIL\",\"NO HABIL\",IF(AD727=\"NO HABIL\",\"NO HABIL\",IF(AD727=\"NO HABIL\",\"NO HABIL\",\"HABIL\"))))","v":{"$error":"#DIV/0!"}}]
[null,{"$f":"IF(C728=\"\",\"\",B727+0.1)","v":""},null,null,null,null,null,null,{"$f":"IF(ISERROR(F728-H728),\"\",F728-H728)","v":0},null,null,null,{"$f":"IF(ISERROR(VLOOKUP(L728,POA!$A$2:$C$25,3,0)),\"\",VLOOKUP(L728,POA!$A$2:$C$25,3,0))","v":""}," ",{"$f":"IF(ISERROR(VLOOKUP(N728,POA!$A$2:$F$25,4,0)),\"\",VLOOKUP(N728,POA!$A$2:$F$25,4,0))","v":""},{"$f":"IF(ISERROR(VLOOKUP(L728,POA!$A$2:$C$25,2,0)),\"\",VLOOKUP(L728,POA!$A$2:$C$25,2,0))","v":""},null,{"$f":"IF(Q728=0,\"\",IF(Q727>=$R$9,\"HABIL\",\"NO HABIL\"))","v":""},null,{"$f":"IF(S728=0,\"\",IF(S728<=$T$9,\"HABIL\",\"NO HABIL\"))","v":""},{"$f":"IF(ISERROR(VLOOKUP(N728,POA!$A$2:$F$25,5,0)),\"\",VLOOKUP(N728,POA!$A$2:$F$25,5,0))","v":""},null,{"$f":"IF(V728=0,\"\",IF(V728>=$W$9,\"HABIL\",\"NO HABIL\"))","v":""},null,{"$f":"IF(ISERROR(F728/$Z$9),\"\",F728/$Z$9)","v":0},{"$f":"+IF(Y728<$Z$10,\"MIPYME\",\"NO CUMPLE\")","v":"MIPYME"},null,{"$f":"IF(AA728=0,\"\",IF(AA728>=$AB$9,\"HABIL\",\"NO HABIL\"))","v":""},null,{"$f":"IF(AC728=0,\"\",IF(AC728>=$AD$9,\"HABIL\",\"NO HABIL\"))","v":""}]
[null,"",null,null,null,null,null,null,0,null,null,null,{"$f":"IF(ISERROR(VLOOKUP(L729,POA!$A$2:$C$25,3,0)),\"\",VLOOKUP(L729,POA!$A$2:$C$25,3,0))","v":""}," ",{"$f":"IF(ISERROR(VLOOKUP(N729,POA!$A$2:$F$25,4,0)),\"\",VLOOKUP(N729,POA!$A$2:$F$25,4,0))","v":""},{"$f":"IF(ISERROR(VLOOKUP(L729,POA!$A$2:$C$25,2,0)),\"\",VLOOKUP(L729,POA!$A$2:$C$25,2,0))","v":""},null,{"$f":"IF(Q729=0,\"\",IF(Q727>=$R$9,\"HABIL\",\"NO HABIL\"))","v":""},null,"",{"$f":"IF(ISERROR(VLOOKUP(N729,POA!$A$2:$F$25,5,0)),\"\",VLOOKUP(N729,POA!$A$2:$F$25,5,0))","v":""},null,"",null,{"$f":"IF(ISERROR(F729/$Z$9),\"\",F729/$Z$9)","v":0},{"$f":"+IF(Y729<$Z$10,\"MIPYME\",\"NO CUMPLE\")","v":"MIPYME"},null,"",null,""]
[null,"",null,null,null,null,null,null,0,null,null,null,{"$f":"IF(ISERROR(VLOOKUP(L730,POA!$A$2:$C$25,3,0)),\"\",VLOOKUP(L730,POA!$A$2:$C$25,3,0))","v":""},null,{"$f":"IF(ISERROR(VLOOKUP(N730,POA!$A$2:$F$25,4,0)),\"\",VLOOKUP(N730,POA!$A$2:$F$25,4,0))","v":""},{"$f":"IF(ISERROR(VLOOKUP(L730,POA!$A$2:$C$25,2,0)),\"\",VLOOKUP(L730,POA!$A$2:$C$25,2,0))","v":""},null,{"$f":"IF(Q730=0,\"\",IF(Q727>=$R$9,\"HABIL\",\"NO HABIL\"))","v":""},null,"",{"$f":"IF(ISERROR(VLOOKUP(N730,POA!$A$2:$F$25,5,0)),\"\",VLOOKUP(N730,POA!$A$2:$F$25,5,0))","v":""},null,"",null,0,"MIPYME",null,"",null,""]
[null,"",null,null,{"$f":"IF(ISERROR(VLOOKUP(C731,#REF!,2,0)),\"\",VLOOKUP(C731,#REF!,2,0))","v":""},null,{"$f":"IF(ISERROR(VLOOKUP(C731,#REF!,4,0)),\"\",VLOOKUP(C731,#REF!,4,0))","v":""},null,0,null,null,null,{"$f":"IF(ISERROR(VLOOKUP(L731,POA!$A$2:$C$25,3,0)),\"\",VLOOKUP(L731,POA!$A$2:$C$25,3,0))","v":""},null,{"$f":"IF(ISERROR(VLOOKUP(N731,POA!$A$2:$F$25,4,0)),\"\",VLOOKUP(N731,POA!$A$2:$F$25,4,0))","v":""},{"$f":"IF(ISERROR(VLOOKUP(L731,POA!$A$2:$C$25,2,0)),\"\",VLOOKUP(L731,POA!$A$2:$C$25,2,0))","v":""},null,{"$f":"IF(L731=0,\"\",IF(Q727>=$R$9,\"HABIL\",\"NO HABIL\"))","v":""},null,"",{"$f":"IF(ISERROR(VLOOKUP(N731,POA!$A$2:$F$25,5,0)),\"\",VLOOKUP(N731,POA!$A$2:$F$25,5,0))","v":""},null,"",null,0,"MIPYME",null,"",null,""]
[null,"",null,null,{"$f":"IF(ISERROR(VLOOKUP(C732,#REF!,2,0)),\"\",VLOOKUP(C732,#REF!,2,0))","v":""},null,{"$f":"IF(ISERROR(VLOOKUP(C732,#REF!,4,0)),\"\",VLOOKUP(C732,#REF!,4,0))","v":""},null,0,null,null,null,{"$f":"IF(ISERROR(VLOOKUP(L732,POA!$A$2:$C$25,3,0)),\"\",VLOOKUP(L732,POA!$A$2:$C$25,3,0))","v":""},null,{"$f":"IF(ISERROR(VLOOKUP(N732,POA!$A$2:$F$25,4,0)),\"\",VLOOKUP(N732,POA!$A$2:$F$25,4,0))","v":""},{"$f":"IF(ISERROR(VLOOKUP(L732,POA!$A$2:$C$25,2,0)),\"\",VLOOKUP(L732,POA!$A$2:$C$25,2,0))","v":""},null,{"$f":"IF(L732=0,\"\",IF(Q727>=$R$9,\"HABIL\",\"NO HABIL\"))","v":""},null,"",{"$f":"IF(ISERROR(VLOOKUP(N732,POA!$A$2:$F$25,5,0)),\"\",VLOOKUP(N732,POA!$A$2:$F$25,5,0))","v":""},null,"",null,0,"MIPYME",null,"",null,""]
[null,"",null,null,{"$f":"IF(ISERROR(VLOOKUP(C733,#REF!,2,0)),\"\",VLOOKUP(C733,#REF!,2,0))","v":""},null,{"$f":"IF(ISERROR(VLOOKUP(C733,#REF!,4,0)),\"\",VLOOKUP(C733,#REF!,4,0))","v":""},null,0,null,null,null,{"$f":"IF(ISERROR(VLOOKUP(L733,POA!$A$2:$C$25,3,0)),\"\",VLOOKUP(L733,POA!$A$2:$C$25,3,0))","v":""},null,{"$f":"IF(ISERROR(VLOOKUP(N733,POA!$A$2:$F$25,4,0)),\"\",VLOOKUP(N733,POA!$A$2:$F$25,4,0))","v":""},{"$f":"IF(ISERROR(VLOOKUP(L733,POA!$A$2:$C$25,2,0)),\"\",VLOOKUP(L733,POA!$A$2:$C$25,2,0))","v":""},null,{"$f":"IF(L733=0,\"\",IF(Q727>=$R$9,\"HABIL\",\"NO HABIL\"))","v":""},null,"",{"$f":"IF(ISERROR(VLOOKUP(N733,POA!$A$2:$F$25,5,0)),\"\",VLOOKUP(N733,POA!$A$2:$F$25,5,0))","v":""},null,"",null,0,"MIPYME",null,"",null,""]
[null,{"$f":"IF(C734=\"\",\"\",B733+0.1)","v":""},null,null,{"$f":"IF(ISERROR(VLOOKUP(C734,#REF!,2,0)),\"\",VLOOKUP(C734,#REF!,2,0))","v":""},null,{"$f":"IF(ISERROR(VLOOKUP(C734,#REF!,4,0)),\"\",VLOOKUP(C734,#REF!,4,0))","v":""},null,{"$f":"IF(ISERROR(F734-H734),\"\",F734-H734)","v":0},null,null,null,{"$f":"IF(ISERROR(VLOOKUP(L734,POA!$A$2:$C$25,3,0)),\"\",VLOOKUP(L734,POA!$A$2:$C$25,3,0))","v":""},null,{"$f":"IF(ISERROR(VLOOKUP(N734,POA!$A$2:$F$25,4,0)),\"\",VLOOKUP(N734,POA!$A$2:$F$25,4,0))","v":""},{"$f":"IF(ISERROR(VLOOKUP(L734,POA!$A$2:$C$25,2,0)),\"\",VLOOKUP(L734,POA!$A$2:$C$25,2,0))","v":""},null,{"$f":"IF(L734=0,\"\",IF(Q727>=$R$9,\"HABIL\",\"NO HABIL\"))","v":""},null,"",{"$f":"IF(ISERROR(VLOOKUP(N734,POA!$A$2:$F$25,5,0)),\"\",VLOOKUP(N734,POA!$A$2:$F$25,5,0))","v":""},null,"",null,0,"MIPYME",null,"",null,""]
[null,{"$f":"IF(C735=\"\",\"\",B734+0.1)","v":""},null,null,{"$f":"IF(ISERROR(VLOOKUP(C735,#REF!,2,0)),\"\",VLOOKUP(C735,#REF!,2,0))","v":""},null,{"$f":"IF(ISERROR(VLOOKUP(C735,#REF!,4,0)),\"\",VLOOKUP(C735,#REF!,4,0))","v":""},null,{"$f":"IF(ISERROR(F735-H735),\"\",F735-H735)","v":0},null,null,null,{"$f":"IF(ISERROR(VLOOKUP(L735,POA!$A$2:$C$25,3,0)),\"\",VLOOKUP(L735,POA!$A$2:$C$25,3,0))","v":""},null,{"$f":"IF(ISERROR(VLOOKUP(N735,POA!$A$2:$F$25,4,0)),\"\",VLOOKUP(N735,POA!$A$2:$F$25,4,0))","v":""},{"$f":"IF(ISERROR(VLOOKUP(L735,POA!$A$2:$C$25,2,0)),\"\",VLOOKUP(L735,POA!$A$2:$C$25,2,0))","v":""},null,{"$f":"IF(L735=0,\"\",IF(Q727>=$R$9,\"HABIL\",\"NO HABIL\"))","v":""},null,"",{"$f":"IF(ISERROR(VLOOKUP(N735,POA!$A$2:$F$25,5,0)),\"\",VLOOKUP(N735,POA!$A$2:$F$25,5,0))","v":""},null,"",null,0,"MIPYME",null,"",null,""]
[null,{"$f":"IF(C736=\"\",\"\",B735+0.1)","v":""},null,null,{"$f":"IF(ISERROR(VLOOKUP(C736,#REF!,2,0)),\"\",VLOOKUP(C736,#REF!,2,0))","v":""},null,{"$f":"IF(ISERROR(VLOOKUP(C736,#REF!,4,0)),\"\",VLOOKUP(C736,#REF!,4,0))","v":""},null,{"$f":"IF(ISERROR(F736-H736),\"\",F736-H736)","v":0},null,null,null,{"$f":"IF(ISERROR(VLOOKUP(L736,POA!$A$2:$C$25,3,0)),\"\",VLOOKUP(L736,POA!$A$2:$C$25,3,0))","v":""},null,{"$f":"IF(ISERROR(VLOOKUP(N736,POA!$A$2:$F$25,4,0)),\"\",VLOOKUP(N736,POA!$A$2:$F$25,4,0))","v":""},{"$f":"IF(ISERROR(VLOOKUP(L736,POA!$A$2:$C$25,2,0)),\"\",VLOOKUP(L736,POA!$A$2:$C$25,2,0))","v":""},null,{"$f":"IF(L736=0,\"\",IF(Q727>=$R$9,\"HABIL\",\"NO HABIL\"))","v":""},null,"",{"$f":"IF(ISERROR(VLOOKUP(N736,POA!$A$2:$F$25,5,0)),\"\",VLOOKUP(N736,POA!$A$2:$F$25,5,0))","v":""},null,"",null,0,"MIPYME",null,"",null,""]
[null,{"$f":"IF(C737=\"\",\"\",B736+0.1)","v":""},null,null,{"$f":"IF(ISERROR(VLOOKUP(C737,#REF!,2,0)),\"\",VLOOKUP(C737,#REF!,2,0))","v":""},null,{"$f":"IF(ISERROR(VLOOKUP(C737,#REF!,4,0)),\"\",VLOOKUP(C737,#REF!,4,0))","v":""},null,{"$f":"IF(ISERROR(F737-H737),\"\",F737-H737)","v":0},null,null,null,{"$f":"IF(ISERROR(VLOOKUP(L737,POA!$A$2:$C$25,3,0)),\"\",VLOOKUP(L737,POA!$A$2:$C$25,3,0))","v":""},null,{"$f":"IF(ISERROR(VLOOKUP(N737,POA!$A$2:$F$25,4,0)),\"\",VLOOKUP(N737,POA!$A$2:$F$25,4,0))","v":""},{"$f":"IF(ISERROR(VLOOKUP(L737,POA!$A$2:$C$25,2,0)),\"\",VLOOKUP(L737,POA!$A$2:$C$25,2,0))","v":""},null,{"$f":"IF(L737=0,\"\",IF(Q727>=$R$9,\"HABIL\",\"NO HABIL\"))","v":""},null,"",{"$f":"IF(ISERROR(VLOOKUP(N737,POA!$A$2:$F$25,5,0)),\"\",VLOOKUP(N737,POA!$A$2:$F$25,5,0))","v":""},null,"",null,{"$f":"IF(ISERROR(F737/$Z$9),\"\",F737/$Z$9)","v":0},"MIPYME",null,"",null,""]
[null,67,null,{"$f":"IF(SUM(D739:D748)=0,\"\",SUM(D739:D748))","v":""},{"$f":"SUM(E739:E748)","v":0},{"$f":"SUM(F739:F748)","v":0},{"$f":"SUM(G739:G748)","v":0},{"$f":"SUM(H739:H748)","v":0},{"$f":"+F738-H738","v":0},{"$f":"SUM(J739:J748)","v":0},{"$f":"SUM(K739:K748)","v":0},1,{"$f":"IF(ISERROR(VLOOKUP(L738,POA!$A$2:$C$25,3,0)),\"\",VLOOKUP(L738,POA!$A$2:$C$25,3,0))","v":3}," ",{"$f":"+SUM(O739:O748)","v":0},{"$f":"IF(ISERROR(VLOOKUP(L738,POA!$A$2:$C$25,2,0)),\"\",VLOOKUP(L738,POA!$A$2:$C$25,2,0))","v":4167150295},{"$f":"SUM(E738/G738)","v":{"$error":"#DIV/0!"}},{"$f":"IF(Q738=0,\"\",IF(Q738>=$R$9,\"HABIL\",\"NO HABIL\"))","v":{"$error":"#DIV/0!"}},{"$f":"SUM(H738/F738)","v":{"$error":"#DIV/0!"}},{"$f":"IF(S738=0,\"\",IF(S738<=$T$9,\"HABIL\",\"NO HABIL\"))","v":{"$error":"#DIV/0!"}},{"$f":"+SUM(U739:U748)","v":0},{"$f":"SUM(J738/K738)","v":{"$error":"#DIV/0!"}},{"$f":"IF(V738=0,\"\",IF(V738>=$W$9,\"HABIL\",\"NO HABIL\"))","v":{"$error":"#DIV/0!"}},{"$f":"IF(R738=0,\"\",IF(R738=\"NO HABIL\",\"NO HABIL\",IF(T738=\"NO HABIL\",\"NO HABIL\",IF(W738=\"NO HABIL\",\"NO HABIL\",IF(W738=\"NO HABIL\",\"NO HABIL\",\"HABIL\")))))","v":{"$error":"#DIV/0!"}},null,null,{"$f":"SUM(J738/I738)","v":{"$error":"#DIV/0!"}},{"$f":"IF(AA738=0,\"\",IF(AA738>=$AB$9,\"HABIL\",\"NO HABIL\"))","v":{"$error":"#DIV/0!"}},{"$f":"SUM(J738/F738)","v":{"$error":"#DIV/0!"}},{"$f":"IF(AC738=0,\"\",IF(AC738>=$AD$9,\"HABIL\",\"NO HABIL\"))","v":{"$error":"#DIV/0!"}},{"$f":"IF(AB738=0,\"\",IF(AB738=\"NO HABIL\",\"NO HABIL\",IF(AD738=\"NO HABIL\",\"NO HABIL\",IF(AD738=\"NO HABIL\",\"NO HABIL\",\"HABIL\"))))","v":{"$error":"#DIV/0!"}}]
[null,{"$f":"IF(C739=\"\",\"\",B738+0.1)","v":""},null,null,null,null,null,null,{"$f":"IF(ISERROR(F739-H739),\"\",F739-H739)","v":0},null,null,null,{"$f":"IF(ISERROR(VLOOKUP(L739,POA!$A$2:$C$25,3,0)),\"\",VLOOKUP(L739,POA!$A$2:$C$25,3,0))","v":""}," ",{"$f":"IF(ISERROR(VLOOKUP(N739,POA!$A$2:$F$25,4,0)),\"\",VLOOKUP(N739,POA!$A$2:$F$25,4,0))","v":""},{"$f":"IF(ISERROR(VLOOKUP(L739,POA!$A$2:$C$25,2,0)),\"\",VLOOKUP(L739,POA!$A$2:$C$25,2,0))","v":""},null,{"$f":"IF(Q739=0,\"\",IF(Q738>=$R$9,\"HABIL\",\"NO HABIL\"))","v":""},null,{"$f":"IF(S739=0,\"\",IF(S739<=$T$9,\"HABIL\",\"NO HABIL\"))","v":""},{"$f":"IF(ISERROR(VLOOKUP(N739,POA!$A$2:$F$25,5,0)),\"\",VLOOKUP(N739,POA!$A$2:$F$25,5,0))","v":""},null,{"$f":"IF(V739=0,\"\",IF(V739>=$W$9,\"HABIL\",\"NO HABIL\"))","v":""},null,{"$f":"IF(ISERROR(F739/$Z$9),\"\",F739/$Z$9)","v":0},{"$f":"+IF(Y739<$Z$10,\"MIPYME\",\"NO CUMPLE\")","v":"MIPYME"},null,{"$f":"IF(AA739=0,\"\",IF(AA739>=$AB$9,\"HABIL\",\"NO HABIL\"))","v":""},null,{"$f":"IF(AC739=0,\"\",IF(AC739>=$AD$9,\"HABIL\",\"NO HABIL\"))","v":""}]
[null,"",null,null,null,null,null,null,0,null,null,null,{"$f":"IF(ISERROR(VLOOKUP(L740,POA!$A$2:$C$25,3,0)),\"\",VLOOKUP(L740,POA!$A$2:$C$25,3,0))","v":""}," ",{"$f":"IF(ISERROR(VLOOKUP(N740,POA!$A$2:$F$25,4,0)),\"\",VLOOKUP(N740,POA!$A$2:$F$25,4,0))","v":""},{"$f":"IF(ISERROR(VLOOKUP(L740,POA!$A$2:$C$25,2,0)),\"\",VLOOKUP(L740,POA!$A$2:$C$25,2,0))","v":""},null,{"$f":"IF(Q740=0,\"\",IF(Q738>=$R$9,\"HABIL\",\"NO HABIL\"))","v":""},null,"",{"$f":"IF(ISERROR(VLOOKUP(N740,POA!$A$2:$F$25,5,0)),\"\",VLOOKUP(N740,POA!$A$2:$F$25,5,0))","v":""},null,"",null,{"$f":"IF(ISERROR(F740/$Z$9),\"\",F740/$Z$9)","v":0},{"$f":"+IF(Y740<$Z$10,\"MIPYME\",\"NO CUMPLE\")","v":"MIPYME"},null,"",null,""]
[null,"",null,null,null,null,null,null,0,null,null,null,{"$f":"IF(ISERROR(VLOOKUP(L741,POA!$A$2:$C$25,3,0)),\"\",VLOOKUP(L741,POA!$A$2:$C$25,3,0))","v":""},null,{"$f":"IF(ISERROR(VLOOKUP(N741,POA!$A$2:$F$25,4,0)),\"\",VLOOKUP(N741,POA!$A$2:$F$25,4,0))","v":""},{"$f":"IF(ISERROR(VLOOKUP(L741,POA!$A$2:$C$25,2,0)),\"\",VLOOKUP(L741,POA!$A$2:$C$25,2,0))","v":""},null,{"$f":"IF(Q741=0,\"\",IF(Q738>=$R$9,\"HABIL\",\"NO HABIL\"))","v":""},null,"",{"$f":"IF(ISERROR(VLOOKUP(N741,POA!$A$2:$F$25,5,0)),\"\",VLOOKUP(N741,POA!$A$2:$F$25,5,0))","v":""},null,"",null,0,"MIPYME",null,"",null,""]
[null,"",null,null,{"$f":"IF(ISERROR(VLOOKUP(C742,#REF!,2,0)),\"\",VLOOKUP(C742,#REF!,2,0))","v":""},null,{"$f":"IF(ISERROR(VLOOKUP(C742,#REF!,4,0)),\"\",VLOOKUP(C742,#REF!,4,0))","v":""},null,0,null,null,null,{"$f":"IF(ISERROR(VLOOKUP(L742,POA!$A$2:$C$25,3,0)),\"\",VLOOKUP(L742,POA!$A$2:$C$25,3,0))","v":""},null,{"$f":"IF(ISERROR(VLOOKUP(N742,POA!$A$2:$F$25,4,0)),\"\",VLOOKUP(N742,POA!$A$2:$F$25,4,0))","v":""},{"$f":"IF(ISERROR(VLOOKUP(L742,POA!$A$2:$C$25,2,0)),\"\",VLOOKUP(L742,POA!$A$2:$C$25,2,0))","v":""},null,{"$f":"IF(L742=0,\"\",IF(Q738>=$R$9,\"HABIL\",\"NO HABIL\"))","v":""},null,"",{"$f":"IF(ISERROR(VLOOKUP(N742,POA!$A$2:$F$25,5,0)),\"\",VLOOKUP(N742,POA!$A$2:$F$25,5,0))","v":""},null,"",null,0,"MIPYME",null,"",null,""]
[null,"",null,null,{"$f":"IF(ISERROR(VLOOKUP(C743,#REF!,2,0)),\"\",VLOOKUP(C743,#REF!,2,0))","v":""},null,{"$f":"IF(ISERROR(VLOOKUP(C743,#REF!,4,0)),\"\",VLOOKUP(C743,#REF!,4,0))","v":""},null,0,null,null,null,{"$f":"IF(ISERROR(VLOOKUP(L743,POA!$A$2:$C$25,3,0)),\"\",VLOOKUP(L743,POA!$A$2:$C$25,3,0))","v":""},null,{"$f":"IF(ISERROR(VLOOKUP(N743,POA!$A$2:$F$25,4,0)),\"\",VLOOKUP(N743,POA!$A$2:$F$25,4,0))","v":""},{"$f":"IF(ISERROR(VLOOKUP(L743,POA!$A$2:$C$25,2,0)),\"\",VLOOKUP(L743,POA!$A$2:$C$25,2,0))","v":""},null,{"$f":"IF(L743=0,\"\",IF(Q738>=$R$9,\"HABIL\",\"NO HABIL\"))","v":""},null,"",{"$f":"IF(ISERROR(VLOOKUP(N743,POA!$A$2:$F$25,5,0)),\"\",VLOOKUP(N743,POA!$A$2:$F$25,5,0))","v":""},null,"",null,0,"MIPYME",null,"",null,""]
[null,"",null,null,{"$f":"IF(ISERROR(VLOOKUP(C744,#REF!,2,0)),\"\",VLOOKUP(C744,#REF!,2,0))","v":""},null,{"$f":"IF(ISERROR(VLOOKUP(C744,#REF!,4,0)),\"\",VLOOKUP(C744,#REF!,4,0))","v":""},null,0,null,null,null,{"$f":"IF(ISERROR(VLOOKUP(L744,POA!$A$2:$C$25,3,0)),\"\",VLOOKUP(L744,POA!$A$2:$C$25,3,0))","v":""},null,{"$f":"IF(ISERROR(VLOOKUP(N744,POA!$A$2:$F$25,4,0)),\"\",VLOOKUP(N744,POA!$A$2:$F$25,4,0))","v":""},{"$f":"IF(ISERROR(VLOOKUP(L744,POA!$A$2:$C$25,2,0)),\"\",VLOOKUP(L744,POA!$A$2:$C$25,2,0))","v":""},null,{"$f":"IF(L744=0,\"\",IF(Q738>=$R$9,\"HABIL\",\"NO HABIL\"))","v":""},null,"",{"$f":"IF(ISERROR(VLOOKUP(N744,POA!$A$2:$F$25,5,0)),\"\",VLOOKUP(N744,POA!$A$2:$F$25,5,0))","v":""},null,"",null,0,"MIPYME",null,"",null,""]
[null,{"$f":"IF(C745=\"\",\"\",B744+0.1)","v":""},null,null,{"$f":"IF(ISERROR(VLOOKUP(C745,#REF!,2,0)),\"\",VLOOKUP(C745,#REF!,2,0))","v":""},null,{"$f":"IF(ISERROR(VLOOKUP(C745,#REF!,4,0)),\"\",VLOOKUP(C745,#REF!,4,0))","v":""},null,{"$f":"IF(ISERROR(F745-H745),\"\",F745-H745)","v":0},null,null,null,{"$f":"IF(ISERROR(VLOOKUP(L745,POA!$A$2:$C$25,3,0)),\"\",VLOOKUP(L745,POA!$A$2:$C$25,3,0))","v":""},null,{"$f":"IF(ISERROR(VLOOKUP(N745,POA!$A$2:$F$25,4,0)),\"\",VLOOKUP(N745,POA!$A$2:$F$25,4,0))","v":""},{"$f":"IF(ISERROR(VLOOKUP(L745,POA!$A$2:$C$25,2,0)),\"\",VLOOKUP(L745,POA!$A$2:$C$25,2,0))","v":""},null,{"$f":"IF(L745=0,\"\",IF(Q738>=$R$9,\"HABIL\",\"NO HABIL\"))","v":""},null,"",{"$f":"IF(ISERROR(VLOOKUP(N745,POA!$A$2:$F$25,5,0)),\"\",VLOOKUP(N745,POA!$A$2:$F$25,5,0))","v":""},null,"",null,0,"MIPYME",null,"",null,""]
[null,{"$f":"IF(C746=\"\",\"\",B745+0.1)","v":""},null,null,{"$f":"IF(ISERROR(VLOOKUP(C746,#REF!,2,0)),\"\",VLOOKUP(C746,#REF!,2,0))","v":""},null,{"$f":"IF(ISERROR(VLOOKUP(C746,#REF!,4,0)),\"\",VLOOKUP(C746,#REF!,4,0))","v":""},null,{"$f":"IF(ISERROR(F746-H746),\"\",F746-H746)","v":0},null,null,null,{"$f":"IF(ISERROR(VLOOKUP(L746,POA!$A$2:$C$25,3,0)),\"\",VLOOKUP(L746,POA!$A$2:$C$25,3,0))","v":""},null,{"$f":"IF(ISERROR(VLOOKUP(N746,POA!$A$2:$F$25,4,0)),\"\",VLOOKUP(N746,POA!$A$2:$F$25,4,0))","v":""},{"$f":"IF(ISERROR(VLOOKUP(L746,POA!$A$2:$C$25,2,0)),\"\",VLOOKUP(L746,POA!$A$2:$C$25,2,0))","v":""},null,{"$f":"IF(L746=0,\"\",IF(Q738>=$R$9,\"HABIL\",\"NO HABIL\"))","v":""},null,"",{"$f":"IF(ISERROR(VLOOKUP(N746,POA!$A$2:$F$25,5,0)),\"\",VLOOKUP(N746,POA!$A$2:$F$25,5,0))","v":""},null,"",null,0,"MIPYME",null,"",null,""]
[null,{"$f":"IF(C747=\"\",\"\",B746+0.1)","v":""},null,null,{"$f":"IF(ISERROR(VLOOKUP(C747,#REF!,2,0)),\"\",VLOOKUP(C747,#REF!,2,0))","v":""},null,{"$f":"IF(ISERROR(VLOOKUP(C747,#REF!,4,0)),\"\",VLOOKUP(C747,#REF!,4,0))","v":""},null,{"$f":"IF(ISERROR(F747-H747),\"\",F747-H747)","v":0},null,null,null,{"$f":"IF(ISERROR(VLOOKUP(L747,POA!$A$2:$C$25,3,0)),\"\",VLOOKUP(L747,POA!$A$2:$C$25,3,0))","v":""},null,{"$f":"IF(ISERROR(VLOOKUP(N747,POA!$A$2:$F$25,4,0)),\"\",VLOOKUP(N747,POA!$A$2:$F$25,4,0))","v":""},{"$f":"IF(ISERROR(VLOOKUP(L747,POA!$A$2:$C$25,2,0)),\"\",VLOOKUP(L747,POA!$A$2:$C$25,2,0))","v":""},null,{"$f":"IF(L747=0,\"\",IF(Q738>=$R$9,\"HABIL\",\"NO HABIL\"))","v":""},null,"",{"$f":"IF(ISERROR(VLOOKUP(N747,POA!$A$2:$F$25,5,0)),\"\",VLOOKUP(N747,POA!$A$2:$F$25,5,0))","v":""},null,"",null,0,"MIPYME",null,"",null,""]
[null,{"$f":"IF(C748=\"\",\"\",B747+0.1)","v":""},null,null,{"$f":"IF(ISERROR(VLOOKUP(C748,#REF!,2,0)),\"\",VLOOKUP(C748,#REF!,2,0))","v":""},null,{"$f":"IF(ISERROR(VLOOKUP(C748,#REF!,4,0)),\"\",VLOOKUP(C748,#REF!,4,0))","v":""},null,{"$f":"IF(ISERROR(F748-H748),\"\",F748-H748)","v":0},null,null,null,{"$f":"IF(ISERROR(VLOOKUP(L748,POA!$A$2:$C$25,3,0)),\"\",VLOOKUP(L748,POA!$A$2:$C$25,3,0))","v":""},null,{"$f":"IF(ISERROR(VLOOKUP(N748,POA!$A$2:$F$25,4,0)),\"\",VLOOKUP(N748,POA!$A$2:$F$25,4,0))","v":""},{"$f":"IF(ISERROR(VLOOKUP(L748,POA!$A$2:$C$25,2,0)),\"\",VLOOKUP(L748,POA!$A$2:$C$25,2,0))","v":""},null,{"$f":"IF(L748=0,\"\",IF(Q738>=$R$9,\"HABIL\",\"NO HABIL\"))","v":""},null,"",{"$f":"IF(ISERROR(VLOOKUP(N748,POA!$A$2:$F$25,5,0)),\"\",VLOOKUP(N748,POA!$A$2:$F$25,5,0))","v":""},null,"",null,{"$f":"IF(ISERROR(F748/$Z$9),\"\",F748/$Z$9)","v":0},"MIPYME",null,"",null,""]
[null,68,null,{"$f":"IF(SUM(D750:D759)=0,\"\",SUM(D750:D759))","v":""},{"$f":"SUM(E750:E759)","v":0},{"$f":"SUM(F750:F759)","v":0},{"$f":"SUM(G750:G759)","v":0},{"$f":"SUM(H750:H759)","v":0},{"$f":"+F749-H749","v":0},{"$f":"SUM(J750:J759)","v":0},{"$f":"SUM(K750:K759)","v":0},1,{"$f":"IF(ISERROR(VLOOKUP(L749,POA!$A$2:$C$25,3,0)),\"\",VLOOKUP(L749,POA!$A$2:$C$25,3,0))","v":3}," ",{"$f":"+SUM(O750:O759)","v":0},{"$f":"IF(ISERROR(VLOOKUP(L749,POA!$A$2:$C$25,2,0)),\"\",VLOOKUP(L749,POA!$A$2:$C$25,2,0))","v":4167150295},{"$f":"SUM(E749/G749)","v":{"$error":"#DIV/0!"}},{"$f":"IF(Q749=0,\"\",IF(Q749>=$R$9,\"HABIL\",\"NO HABIL\"))","v":{"$error":"#DIV/0!"}},{"$f":"SUM(H749/F749)","v":{"$error":"#DIV/0!"}},{"$f":"IF(S749=0,\"\",IF(S749<=$T$9,\"HABIL\",\"NO HABIL\"))","v":{"$error":"#DIV/0!"}},{"$f":"+SUM(U750:U759)","v":0},{"$f":"SUM(J749/K749)","v":{"$error":"#DIV/0!"}},{"$f":"IF(V749=0,\"\",IF(V749>=$W$9,\"HABIL\",\"NO HABIL\"))","v":{"$error":"#DIV/0!"}},{"$f":"IF(R749=0,\"\",IF(R749=\"NO HABIL\",\"NO HABIL\",IF(T749=\"NO HABIL\",\"NO HABIL\",IF(W749=\"NO HABIL\",\"NO HABIL\",IF(W749=\"NO HABIL\",\"NO HABIL\",\"HABIL\")))))","v":{"$error":"#DIV/0!"}},null,null,{"$f":"SUM(J749/I749)","v":{"$error":"#DIV/0!"}},{"$f":"IF(AA749=0,\"\",IF(AA749>=$AB$9,\"HABIL\",\"NO HABIL\"))","v":{"$error":"#DIV/0!"}},{"$f":"SUM(J749/F749)","v":{"$error":"#DIV/0!"}},{"$f":"IF(AC749=0,\"\",IF(AC749>=$AD$9,\"HABIL\",\"NO HABIL\"))","v":{"$error":"#DIV/0!"}},{"$f":"IF(AB749=0,\"\",IF(AB749=\"NO HABIL\",\"NO HABIL\",IF(AD749=\"NO HABIL\",\"NO HABIL\",IF(AD749=\"NO HABIL\",\"NO HABIL\",\"HABIL\"))))","v":{"$error":"#DIV/0!"}}]
[null,{"$f":"IF(C750=\"\",\"\",B749+0.1)","v":""},null,null,null,null,null,null,{"$f":"IF(ISERROR(F750-H750),\"\",F750-H750)","v":0},null,null,null,{"$f":"IF(ISERROR(VLOOKUP(L750,POA!$A$2:$C$25,3,0)),\"\",VLOOKUP(L750,POA!$A$2:$C$25,3,0))","v":""}," ",{"$f":"IF(ISERROR(VLOOKUP(N750,POA!$A$2:$F$25,4,0)),\"\",VLOOKUP(N750,POA!$A$2:$F$25,4,0))","v":""},{"$f":"IF(ISERROR(VLOOKUP(L750,POA!$A$2:$C$25,2,0)),\"\",VLOOKUP(L750,POA!$A$2:$C$25,2,0))","v":""},null,{"$f":"IF(Q750=0,\"\",IF(Q749>=$R$9,\"HABIL\",\"NO HABIL\"))","v":""},null,{"$f":"IF(S750=0,\"\",IF(S750<=$T$9,\"HABIL\",\"NO HABIL\"))","v":""},{"$f":"IF(ISERROR(VLOOKUP(N750,POA!$A$2:$F$25,5,0)),\"\",VLOOKUP(N750,POA!$A$2:$F$25,5,0))","v":""},null,{"$f":"IF(V750=0,\"\",IF(V750>=$W$9,\"HABIL\",\"NO HABIL\"))","v":""},null,{"$f":"IF(ISERROR(F750/$Z$9),\"\",F750/$Z$9)","v":0},{"$f":"+IF(Y750<$Z$10,\"MIPYME\",\"NO CUMPLE\")","v":"MIPYME"},null,{"$f":"IF(AA750=0,\"\",IF(AA750>=$AB$9,\"HABIL\",\"NO HABIL\"))","v":""},null,{"$f":"IF(AC750=0,\"\",IF(AC750>=$AD$9,\"HABIL\",\"NO HABIL\"))","v":""}]
[null,"",null,null,null,null,null,null,0,null,null,null,{"$f":"IF(ISERROR(VLOOKUP(L751,POA!$A$2:$C$25,3,0)),\"\",VLOOKUP(L751,POA!$A$2:$C$25,3,0))","v":""}," ",{"$f":"IF(ISERROR(VLOOKUP(N751,POA!$A$2:$F$25,4,0)),\"\",VLOOKUP(N751,POA!$A$2:$F$25,4,0))","v":""},{"$f":"IF(ISERROR(VLOOKUP(L751,POA!$A$2:$C$25,2,0)),\"\",VLOOKUP(L751,POA!$A$2:$C$25,2,0))","v":""},null,{"$f":"IF(Q751=0,\"\",IF(Q749>=$R$9,\"HABIL\",\"NO HABIL\"))","v":""},null,"",{"$f":"IF(ISERROR(VLOOKUP(N751,POA!$A$2:$F$25,5,0)),\"\",VLOOKUP(N751,POA!$A$2:$F$25,5,0))","v":""},null,"",null,{"$f":"IF(ISERROR(F751/$Z$9),\"\",F751/$Z$9)","v":0},{"$f":"+IF(Y751<$Z$10,\"MIPYME\",\"NO CUMPLE\")","v":"MIPYME"},null,"",null,""]
[null,"",null,null,null,null,null,null,0,null,null,null,{"$f":"IF(ISERROR(VLOOKUP(L752,POA!$A$2:$C$25,3,0)),\"\",VLOOKUP(L752,POA!$A$2:$C$25,3,0))","v":""},null,{"$f":"IF(ISERROR(VLOOKUP(N752,POA!$A$2:$F$25,4,0)),\"\",VLOOKUP(N752,POA!$A$2:$F$25,4,0))","v":""},{"$f":"IF(ISERROR(VLOOKUP(L752,POA!$A$2:$C$25,2,0)),\"\",VLOOKUP(L752,POA!$A$2:$C$25,2,0))","v":""},null,{"$f":"IF(Q752=0,\"\",IF(Q749>=$R$9,\"HABIL\",\"NO HABIL\"))","v":""},null,"",{"$f":"IF(ISERROR(VLOOKUP(N752,POA!$A$2:$F$25,5,0)),\"\",VLOOKUP(N752,POA!$A$2:$F$25,5,0))","v":""},null,"",null,0,"MIPYME",null,"",null,""]
[null,"",null,null,{"$f":"IF(ISERROR(VLOOKUP(C753,#REF!,2,0)),\"\",VLOOKUP(C753,#REF!,2,0))","v":""},null,{"$f":"IF(ISERROR(VLOOKUP(C753,#REF!,4,0)),\"\",VLOOKUP(C753,#REF!,4,0))","v":""},null,0,null,null,null,{"$f":"IF(ISERROR(VLOOKUP(L753,POA!$A$2:$C$25,3,0)),\"\",VLOOKUP(L753,POA!$A$2:$C$25,3,0))","v":""},null,{"$f":"IF(ISERROR(VLOOKUP(N753,POA!$A$2:$F$25,4,0)),\"\",VLOOKUP(N753,POA!$A$2:$F$25,4,0))","v":""},{"$f":"IF(ISERROR(VLOOKUP(L753,POA!$A$2:$C$25,2,0)),\"\",VLOOKUP(L753,POA!$A$2:$C$25,2,0))","v":""},null,{"$f":"IF(L753=0,\"\",IF(Q749>=$R$9,\"HABIL\",\"NO HABIL\"))","v":""},null,"",{"$f":"IF(ISERROR(VLOOKUP(N753,POA!$A$2:$F$25,5,0)),\"\",VLOOKUP(N753,POA!$A$2:$F$25,5,0))","v":""},null,"",null,0,"MIPYME",null,"",null,""]
[null,"",null,null,{"$f":"IF(ISERROR(VLOOKUP(C754,#REF!,2,0)),\"\",VLOOKUP(C754,#REF!,2,0))","v":""},null,{"$f":"IF(ISERROR(VLOOKUP(C754,#REF!,4,0)),\"\",VLOOKUP(C754,#REF!,4,0))","v":""},null,0,null,null,null,{"$f":"IF(ISERROR(VLOOKUP(L754,POA!$A$2:$C$25,3,0)),\"\",VLOOKUP(L754,POA!$A$2:$C$25,3,0))","v":""},null,{"$f":"IF(ISERROR(VLOOKUP(N754,POA!$A$2:$F$25,4,0)),\"\",VLOOKUP(N754,POA!$A$2:$F$25,4,0))","v":""},{"$f":"IF(ISERROR(VLOOKUP(L754,POA!$A$2:$C$25,2,0)),\"\",VLOOKUP(L754,POA!$A$2:$C$25,2,0))","v":""},null,{"$f":"IF(L754=0,\"\",IF(Q749>=$R$9,\"HABIL\",\"NO HABIL\"))","v":""},null,"",{"$f":"IF(ISERROR(VLOOKUP(N754,POA!$A$2:$F$25,5,0)),\"\",VLOOKUP(N754,POA!$A$2:$F$25,5,0))","v":""},null,"",null,0,"MIPYME",null,"",null,""]
[null,"",null,null,{"$f":"IF(ISERROR(VLOOKUP(C755,#REF!,2,0)),\"\",VLOOKUP(C755,#REF!,2,0))","v":""},null,{"$f":"IF(ISERROR(VLOOKUP(C755,#REF!,4,0)),\"\",VLOOKUP(C755,#REF!,4,0))","v":""},null,0,null,null,null,{"$f":"IF(ISERROR(VLOOKUP(L755,POA!$A$2:$C$25,3,0)),\"\",VLOOKUP(L755,POA!$A$2:$C$25,3,0))","v":""},null,{"$f":"IF(ISERROR(VLOOKUP(N755,POA!$A$2:$F$25,4,0)),\"\",VLOOKUP(N755,POA!$A$2:$F$25,4,0))","v":""},{"$f":"IF(ISERROR(VLOOKUP(L755,POA!$A$2:$C$25,2,0)),\"\",VLOOKUP(L755,POA!$A$2:$C$25,2,0))","v":""},null,{"$f":"IF(L755=0,\"\",IF(Q749>=$R$9,\"HABIL\",\"NO HABIL\"))","v":""},null,"",{"$f":"IF(ISERROR(VLOOKUP(N755,POA!$A$2:$F$25,5,0)),\"\",VLOOKUP(N755,POA!$A$2:$F$25,5,0))","v":""},null,"",null,0,"MIPYME",null,"",null,""]
[null,{"$f":"IF(C756=\"\",\"\",B755+0.1)","v":""},null,null,{"$f":"IF(ISERROR(VLOOKUP(C756,#REF!,2,0)),\"\",VLOOKUP(C756,#REF!,2,0))","v":""},null,{"$f":"IF(ISERROR(VLOOKUP(C756,#REF!,4,0)),\"\",VLOOKUP(C756,#REF!,4,0))","v":""},null,{"$f":"IF(ISERROR(F756-H756),\"\",F756-H756)","v":0},null,null,null,{"$f":"IF(ISERROR(VLOOKUP(L756,POA!$A$2:$C$25,3,0)),\"\",VLOOKUP(L756,POA!$A$2:$C$25,3,0))","v":""},null,{"$f":"IF(ISERROR(VLOOKUP(N756,POA!$A$2:$F$25,4,0)),\"\",VLOOKUP(N756,POA!$A$2:$F$25,4,0))","v":""},{"$f":"IF(ISERROR(VLOOKUP(L756,POA!$A$2:$C$25,2,0)),\"\",VLOOKUP(L756,POA!$A$2:$C$25,2,0))","v":""},null,{"$f":"IF(L756=0,\"\",IF(Q749>=$R$9,\"HABIL\",\"NO HABIL\"))","v":""},null,"",{"$f":"IF(ISERROR(VLOOKUP(N756,POA!$A$2:$F$25,5,0)),\"\",VLOOKUP(N756,POA!$A$2:$F$25,5,0))","v":""},null,"",null,0,"MIPYME",null,"",null,""]
[null,{"$f":"IF(C757=\"\",\"\",B756+0.1)","v":""},null,null,{"$f":"IF(ISERROR(VLOOKUP(C757,#REF!,2,0)),\"\",VLOOKUP(C757,#REF!,2,0))","v":""},null,{"$f":"IF(ISERROR(VLOOKUP(C757,#REF!,4,0)),\"\",VLOOKUP(C757,#REF!,4,0))","v":""},null,{"$f":"IF(ISERROR(F757-H757),\"\",F757-H757)","v":0},null,null,null,{"$f":"IF(ISERROR(VLOOKUP(L757,POA!$A$2:$C$25,3,0)),\"\",VLOOKUP(L757,POA!$A$2:$C$25,3,0))","v":""},null,{"$f":"IF(ISERROR(VLOOKUP(N757,POA!$A$2:$F$25,4,0)),\"\",VLOOKUP(N757,POA!$A$2:$F$25,4,0))","v":""},{"$f":"IF(ISERROR(VLOOKUP(L757,POA!$A$2:$C$25,2,0)),\"\",VLOOKUP(L757,POA!$A$2:$C$25,2,0))","v":""},null,{"$f":"IF(L757=0,\"\",IF(Q749>=$R$9,\"HABIL\",\"NO HABIL\"))","v":""},null,"",{"$f":"IF(ISERROR(VLOOKUP(N757,POA!$A$2:$F$25,5,0)),\"\",VLOOKUP(N757,POA!$A$2:$F$25,5,0))","v":""},null,"",null,0,"MIPYME",null,"",null,""]
[null,{"$f":"IF(C758=\"\",\"\",B757+0.1)","v":""},null,null,{"$f":"IF(ISERROR(VLOOKUP(C758,#REF!,2,0)),\"\",VLOOKUP(C758,#REF!,2,0))","v":""},null,{"$f":"IF(ISERROR(VLOOKUP(C758,#REF!,4,0)),\"\",VLOOKUP(C758,#REF!,4,0))","v":""},null,{"$f":"IF(ISERROR(F758-H758),\"\",F758-H758)","v":0},null,null,null,{"$f":"IF(ISERROR(VLOOKUP(L758,POA!$A$2:$C$25,3,0)),\"\",VLOOKUP(L758,POA!$A$2:$C$25,3,0))","v":""},null,{"$f":"IF(ISERROR(VLOOKUP(N758,POA!$A$2:$F$25,4,0)),\"\",VLOOKUP(N758,POA!$A$2:$F$25,4,0))","v":""},{"$f":"IF(ISERROR(VLOOKUP(L758,POA!$A$2:$C$25,2,0)),\"\",VLOOKUP(L758,POA!$A$2:$C$25,2,0))","v":""},null,{"$f":"IF(L758=0,\"\",IF(Q749>=$R$9,\"HABIL\",\"NO HABIL\"))","v":""},null,"",{"$f":"IF(ISERROR(VLOOKUP(N758,POA!$A$2:$F$25,5,0)),\"\",VLOOKUP(N758,POA!$A$2:$F$25,5,0))","v":""},null,"",null,0,"MIPYME",null,"",null,""]
[null,{"$f":"IF(C759=\"\",\"\",B758+0.1)","v":""},null,null,{"$f":"IF(ISERROR(VLOOKUP(C759,#REF!,2,0)),\"\",VLOOKUP(C759,#REF!,2,0))","v":""},null,{"$f":"IF(ISERROR(VLOOKUP(C759,#REF!,4,0)),\"\",VLOOKUP(C759,#REF!,4,0))","v":""},null,{"$f":"IF(ISERROR(F759-H759),\"\",F759-H759)","v":0},null,null,null,{"$f":"IF(ISERROR(VLOOKUP(L759,POA!$A$2:$C$25,3,0)),\"\",VLOOKUP(L759,POA!$A$2:$C$25,3,0))","v":""},null,{"$f":"IF(ISERROR(VLOOKUP(N759,POA!$A$2:$F$25,4,0)),\"\",VLOOKUP(N759,POA!$A$2:$F$25,4,0))","v":""},{"$f":"IF(ISERROR(VLOOKUP(L759,POA!$A$2:$C$25,2,0)),\"\",VLOOKUP(L759,POA!$A$2:$C$25,2,0))","v":""},null,{"$f":"IF(L759=0,\"\",IF(Q749>=$R$9,\"HABIL\",\"NO HABIL\"))","v":""},null,"",{"$f":"IF(ISERROR(VLOOKUP(N759,POA!$A$2:$F$25,5,0)),\"\",VLOOKUP(N759,POA!$A$2:$F$25,5,0))","v":""},null,"",null,{"$f":"IF(ISERROR(F759/$Z$9),\"\",F759/$Z$9)","v":0},"MIPYME",null,"",null,""]
[null,69,null,{"$f":"IF(SUM(D761:D770)=0,\"\",SUM(D761:D770))","v":""},{"$f":"SUM(E761:E770)","v":0},{"$f":"SUM(F761:F770)","v":0},{"$f":"SUM(G761:G770)","v":0},{"$f":"SUM(H761:H770)","v":0},{"$f":"+F760-H760","v":0},{"$f":"SUM(J761:J770)","v":0},{"$f":"SUM(K761:K770)","v":0},1,{"$f":"IF(ISERROR(VLOOKUP(L760,POA!$A$2:$C$25,3,0)),\"\",VLOOKUP(L760,POA!$A$2:$C$25,3,0))","v":3}," ",{"$f":"+SUM(O761:O770)","v":0},{"$f":"IF(ISERROR(VLOOKUP(L760,POA!$A$2:$C$25,2,0)),\"\",VLOOKUP(L760,POA!$A$2:$C$25,2,0))","v":4167150295},{"$f":"SUM(E760/G760)","v":{"$error":"#DIV/0!"}},{"$f":"IF(Q760=0,\"\",IF(Q760>=$R$9,\"HABIL\",\"NO HABIL\"))","v":{"$error":"#DIV/0!"}},{"$f":"SUM(H760/F760)","v":{"$error":"#DIV/0!"}},{"$f":"IF(S760=0,\"\",IF(S760<=$T$9,\"HABIL\",\"NO HABIL\"))","v":{"$error":"#DIV/0!"}},{"$f":"+SUM(U761:U770)","v":0},{"$f":"SUM(J760/K760)","v":{"$error":"#DIV/0!"}},{"$f":"IF(V760=0,\"\",IF(V760>=$W$9,\"HABIL\",\"NO HABIL\"))","v":{"$error":"#DIV/0!"}},{"$f":"IF(R760=0,\"\",IF(R760=\"NO HABIL\",\"NO HABIL\",IF(T760=\"NO HABIL\",\"NO HABIL\",IF(W760=\"NO HABIL\",\"NO HABIL\",IF(W760=\"NO HABIL\",\"NO HABIL\",\"HABIL\")))))","v":{"$error":"#DIV/0!"}},null,null,{"$f":"SUM(J760/I760)","v":{"$error":"#DIV/0!"}},{"$f":"IF(AA760=0,\"\",IF(AA760>=$AB$9,\"HABIL\",\"NO HABIL\"))","v":{"$error":"#DIV/0!"}},{"$f":"SUM(J760/F760)","v":{"$error":"#DIV/0!"}},{"$f":"IF(AC760=0,\"\",IF(AC760>=$AD$9,\"HABIL\",\"NO HABIL\"))","v":{"$error":"#DIV/0!"}},{"$f":"IF(AB760=0,\"\",IF(AB760=\"NO HABIL\",\"NO HABIL\",IF(AD760=\"NO HABIL\",\"NO HABIL\",IF(AD760=\"NO HABIL\",\"NO HABIL\",\"HABIL\"))))","v":{"$error":"#DIV/0!"}}]
[null,{"$f":"IF(C761=\"\",\"\",B760+0.1)","v":""},null,null,null,null,null,null,{"$f":"IF(ISERROR(F761-H761),\"\",F761-H761)","v":0},null,null,null,{"$f":"IF(ISERROR(VLOOKUP(L761,POA!$A$2:$C$25,3,0)),\"\",VLOOKUP(L761,POA!$A$2:$C$25,3,0))","v":""}," ",{"$f":"IF(ISERROR(VLOOKUP(N761,POA!$A$2:$F$25,4,0)),\"\",VLOOKUP(N761,POA!$A$2:$F$25,4,0))","v":""},{"$f":"IF(ISERROR(VLOOKUP(L761,POA!$A$2:$C$25,2,0)),\"\",VLOOKUP(L761,POA!$A$2:$C$25,2,0))","v":""},null,{"$f":"IF(Q761=0,\"\",IF(Q760>=$R$9,\"HABIL\",\"NO HABIL\"))","v":""},null,{"$f":"IF(S761=0,\"\",IF(S761<=$T$9,\"HABIL\",\"NO HABIL\"))","v":""},{"$f":"IF(ISERROR(VLOOKUP(N761,POA!$A$2:$F$25,5,0)),\"\",VLOOKUP(N761,POA!$A$2:$F$25,5,0))","v":""},null,{"$f":"IF(V761=0,\"\",IF(V761>=$W$9,\"HABIL\",\"NO HABIL\"))","v":""},null,{"$f":"IF(ISERROR(F761/$Z$9),\"\",F761/$Z$9)","v":0},{"$f":"+IF(Y761<$Z$10,\"MIPYME\",\"NO CUMPLE\")","v":"MIPYME"},null,{"$f":"IF(AA761=0,\"\",IF(AA761>=$AB$9,\"HABIL\",\"NO HABIL\"))","v":""},null,{"$f":"IF(AC761=0,\"\",IF(AC761>=$AD$9,\"HABIL\",\"NO HABIL\"))","v":""}]
[null,"",null,null,null,null,null,null,0,null,null,null,{"$f":"IF(ISERROR(VLOOKUP(L762,POA!$A$2:$C$25,3,0)),\"\",VLOOKUP(L762,POA!$A$2:$C$25,3,0))","v":""}," ",{"$f":"IF(ISERROR(VLOOKUP(N762,POA!$A$2:$F$25,4,0)),\"\",VLOOKUP(N762,POA!$A$2:$F$25,4,0))","v":""},{"$f":"IF(ISERROR(VLOOKUP(L762,POA!$A$2:$C$25,2,0)),\"\",VLOOKUP(L762,POA!$A$2:$C$25,2,0))","v":""},null,{"$f":"IF(Q762=0,\"\",IF(Q760>=$R$9,\"HABIL\",\"NO HABIL\"))","v":""},null,"",{"$f":"IF(ISERROR(VLOOKUP(N762,POA!$A$2:$F$25,5,0)),\"\",VLOOKUP(N762,POA!$A$2:$F$25,5,0))","v":""},null,"",null,{"$f":"IF(ISERROR(F762/$Z$9),\"\",F762/$Z$9)","v":0},{"$f":"+IF(Y762<$Z$10,\"MIPYME\",\"NO CUMPLE\")","v":"MIPYME"},null,"",null,""]
[null,"",null,null,null,null,null,null,0,null,null,null,{"$f":"IF(ISERROR(VLOOKUP(L763,POA!$A$2:$C$25,3,0)),\"\",VLOOKUP(L763,POA!$A$2:$C$25,3,0))","v":""},null,{"$f":"IF(ISERROR(VLOOKUP(N763,POA!$A$2:$F$25,4,0)),\"\",VLOOKUP(N763,POA!$A$2:$F$25,4,0))","v":""},{"$f":"IF(ISERROR(VLOOKUP(L763,POA!$A$2:$C$25,2,0)),\"\",VLOOKUP(L763,POA!$A$2:$C$25,2,0))","v":""},null,{"$f":"IF(Q763=0,\"\",IF(Q760>=$R$9,\"HABIL\",\"NO HABIL\"))","v":""},null,"",{"$f":"IF(ISERROR(VLOOKUP(N763,POA!$A$2:$F$25,5,0)),\"\",VLOOKUP(N763,POA!$A$2:$F$25,5,0))","v":""},null,"",null,0,"MIPYME",null,"",null,""]
[null,"",null,null,{"$f":"IF(ISERROR(VLOOKUP(C764,#REF!,2,0)),\"\",VLOOKUP(C764,#REF!,2,0))","v":""},null,{"$f":"IF(ISERROR(VLOOKUP(C764,#REF!,4,0)),\"\",VLOOKUP(C764,#REF!,4,0))","v":""},null,0,null,null,null,{"$f":"IF(ISERROR(VLOOKUP(L764,POA!$A$2:$C$25,3,0)),\"\",VLOOKUP(L764,POA!$A$2:$C$25,3,0))","v":""},null,{"$f":"IF(ISERROR(VLOOKUP(N764,POA!$A$2:$F$25,4,0)),\"\",VLOOKUP(N764,POA!$A$2:$F$25,4,0))","v":""},{"$f":"IF(ISERROR(VLOOKUP(L764,POA!$A$2:$C$25,2,0)),\"\",VLOOKUP(L764,POA!$A$2:$C$25,2,0))","v":""},null,{"$f":"IF(L764=0,\"\",IF(Q760>=$R$9,\"HABIL\",\"NO HABIL\"))","v":""},null,"",{"$f":"IF(ISERROR(VLOOKUP(N764,POA!$A$2:$F$25,5,0)),\"\",VLOOKUP(N764,POA!$A$2:$F$25,5,0))","v":""},null,"",null,0,"MIPYME",null,"",null,""]
[null,"",null,null,{"$f":"IF(ISERROR(VLOOKUP(C765,#REF!,2,0)),\"\",VLOOKUP(C765,#REF!,2,0))","v":""},null,{"$f":"IF(ISERROR(VLOOKUP(C765,#REF!,4,0)),\"\",VLOOKUP(C765,#REF!,4,0))","v":""},null,0,null,null,null,{"$f":"IF(ISERROR(VLOOKUP(L765,POA!$A$2:$C$25,3,0)),\"\",VLOOKUP(L765,POA!$A$2:$C$25,3,0))","v":""},null,{"$f":"IF(ISERROR(VLOOKUP(N765,POA!$A$2:$F$25,4,0)),\"\",VLOOKUP(N765,POA!$A$2:$F$25,4,0))","v":""},{"$f":"IF(ISERROR(VLOOKUP(L765,POA!$A$2:$C$25,2,0)),\"\",VLOOKUP(L765,POA!$A$2:$C$25,2,0))","v":""},null,{"$f":"IF(L765=0,\"\",IF(Q760>=$R$9,\"HABIL\",\"NO HABIL\"))","v":""},null,"",{"$f":"IF(ISERROR(VLOOKUP(N765,POA!$A$2:$F$25,5,0)),\"\",VLOOKUP(N765,POA!$A$2:$F$25,5,0))","v":""},null,"",null,0,"MIPYME",null,"",null,""]
[null,"",null,null,{"$f":"IF(ISERROR(VLOOKUP(C766,#REF!,2,0)),\"\",VLOOKUP(C766,#REF!,2,0))","v":""},null,{"$f":"IF(ISERROR(VLOOKUP(C766,#REF!,4,0)),\"\",VLOOKUP(C766,#REF!,4,0))","v":""},null,0,null,null,null,{"$f":"IF(ISERROR(VLOOKUP(L766,POA!$A$2:$C$25,3,0)),\"\",VLOOKUP(L766,POA!$A$2:$C$25,3,0))","v":""},null,{"$f":"IF(ISERROR(VLOOKUP(N766,POA!$A$2:$F$25,4,0)),\"\",VLOOKUP(N766,POA!$A$2:$F$25,4,0))","v":""},{"$f":"IF(ISERROR(VLOOKUP(L766,POA!$A$2:$C$25,2,0)),\"\",VLOOKUP(L766,POA!$A$2:$C$25,2,0))","v":""},null,{"$f":"IF(L766=0,\"\",IF(Q760>=$R$9,\"HABIL\",\"NO HABIL\"))","v":""},null,"",{"$f":"IF(ISERROR(VLOOKUP(N766,POA!$A$2:$F$25,5,0)),\"\",VLOOKUP(N766,POA!$A$2:$F$25,5,0))","v":""},null,"",null,0,"MIPYME",null,"",null,""]
[null,{"$f":"IF(C767=\"\",\"\",B766+0.1)","v":""},null,null,{"$f":"IF(ISERROR(VLOOKUP(C767,#REF!,2,0)),\"\",VLOOKUP(C767,#REF!,2,0))","v":""},null,{"$f":"IF(ISERROR(VLOOKUP(C767,#REF!,4,0)),\"\",VLOOKUP(C767,#REF!,4,0))","v":""},null,{"$f":"IF(ISERROR(F767-H767),\"\",F767-H767)","v":0},null,null,null,{"$f":"IF(ISERROR(VLOOKUP(L767,POA!$A$2:$C$25,3,0)),\"\",VLOOKUP(L767,POA!$A$2:$C$25,3,0))","v":""},null,{"$f":"IF(ISERROR(VLOOKUP(N767,POA!$A$2:$F$25,4,0)),\"\",VLOOKUP(N767,POA!$A$2:$F$25,4,0))","v":""},{"$f":"IF(ISERROR(VLOOKUP(L767,POA!$A$2:$C$25,2,0)),\"\",VLOOKUP(L767,POA!$A$2:$C$25,2,0))","v":""},null,{"$f":"IF(L767=0,\"\",IF(Q760>=$R$9,\"HABIL\",\"NO HABIL\"))","v":""},null,"",{"$f":"IF(ISERROR(VLOOKUP(N767,POA!$A$2:$F$25,5,0)),\"\",VLOOKUP(N767,POA!$A$2:$F$25,5,0))","v":""},null,"",null,0,"MIPYME",null,"",null,""]
[null,{"$f":"IF(C768=\"\",\"\",B767+0.1)","v":""},null,null,{"$f":"IF(ISERROR(VLOOKUP(C768,#REF!,2,0)),\"\",VLOOKUP(C768,#REF!,2,0))","v":""},null,{"$f":"IF(ISERROR(VLOOKUP(C768,#REF!,4,0)),\"\",VLOOKUP(C768,#REF!,4,0))","v":""},null,{"$f":"IF(ISERROR(F768-H768),\"\",F768-H768)","v":0},null,null,null,{"$f":"IF(ISERROR(VLOOKUP(L768,POA!$A$2:$C$25,3,0)),\"\",VLOOKUP(L768,POA!$A$2:$C$25,3,0))","v":""},null,{"$f":"IF(ISERROR(VLOOKUP(N768,POA!$A$2:$F$25,4,0)),\"\",VLOOKUP(N768,POA!$A$2:$F$25,4,0))","v":""},{"$f":"IF(ISERROR(VLOOKUP(L768,POA!$A$2:$C$25,2,0)),\"\",VLOOKUP(L768,POA!$A$2:$C$25,2,0))","v":""},null,{"$f":"IF(L768=0,\"\",IF(Q760>=$R$9,\"HABIL\",\"NO HABIL\"))","v":""},null,"",{"$f":"IF(ISERROR(VLOOKUP(N768,POA!$A$2:$F$25,5,0)),\"\",VLOOKUP(N768,POA!$A$2:$F$25,5,0))","v":""},null,"",null,0,"MIPYME",null,"",null,""]
[null,{"$f":"IF(C769=\"\",\"\",B768+0.1)","v":""},null,null,{"$f":"IF(ISERROR(VLOOKUP(C769,#REF!,2,0)),\"\",VLOOKUP(C769,#REF!,2,0))","v":""},null,{"$f":"IF(ISERROR(VLOOKUP(C769,#REF!,4,0)),\"\",VLOOKUP(C769,#REF!,4,0))","v":""},null,{"$f":"IF(ISERROR(F769-H769),\"\",F769-H769)","v":0},null,null,null,{"$f":"IF(ISERROR(VLOOKUP(L769,POA!$A$2:$C$25,3,0)),\"\",VLOOKUP(L769,POA!$A$2:$C$25,3,0))","v":""},null,{"$f":"IF(ISERROR(VLOOKUP(N769,POA!$A$2:$F$25,4,0)),\"\",VLOOKUP(N769,POA!$A$2:$F$25,4,0))","v":""},{"$f":"IF(ISERROR(VLOOKUP(L769,POA!$A$2:$C$25,2,0)),\"\",VLOOKUP(L769,POA!$A$2:$C$25,2,0))","v":""},null,{"$f":"IF(L769=0,\"\",IF(Q760>=$R$9,\"HABIL\",\"NO HABIL\"))","v":""},null,"",{"$f":"IF(ISERROR(VLOOKUP(N769,POA!$A$2:$F$25,5,0)),\"\",VLOOKUP(N769,POA!$A$2:$F$25,5,0))","v":""},null,"",null,0,"MIPYME",null,"",null,""]
[null,{"$f":"IF(C770=\"\",\"\",B769+0.1)","v":""},null,null,{"$f":"IF(ISERROR(VLOOKUP(C770,#REF!,2,0)),\"\",VLOOKUP(C770,#REF!,2,0))","v":""},null,{"$f":"IF(ISERROR(VLOOKUP(C770,#REF!,4,0)),\"\",VLOOKUP(C770,#REF!,4,0))","v":""},null,{"$f":"IF(ISERROR(F770-H770),\"\",F770-H770)","v":0},null,null,null,{"$f":"IF(ISERROR(VLOOKUP(L770,POA!$A$2:$C$25,3,0)),\"\",VLOOKUP(L770,POA!$A$2:$C$25,3,0))","v":""},null,{"$f":"IF(ISERROR(VLOOKUP(N770,POA!$A$2:$F$25,4,0)),\"\",VLOOKUP(N770,POA!$A$2:$F$25,4,0))","v":""},{"$f":"IF(ISERROR(VLOOKUP(L770,POA!$A$2:$C$25,2,0)),\"\",VLOOKUP(L770,POA!$A$2:$C$25,2,0))","v":""},null,{"$f":"IF(L770=0,\"\",IF(Q760>=$R$9,\"HABIL\",\"NO HABIL\"))","v":""},null,"",{"$f":"IF(ISERROR(VLOOKUP(N770,POA!$A$2:$F$25,5,0)),\"\",VLOOKUP(N770,POA!$A$2:$F$25,5,0))","v":""},null,"",null,{"$f":"IF(ISERROR(F770/$Z$9),\"\",F770/$Z$9)","v":0},"MIPYME",null,"",null,""]
[null,70,null,{"$f":"IF(SUM(D772:D781)=0,\"\",SUM(D772:D781))","v":""},{"$f":"SUM(E772:E781)","v":0},{"$f":"SUM(F772:F781)","v":0},{"$f":"SUM(G772:G781)","v":0},{"$f":"SUM(H772:H781)","v":0},{"$f":"+F771-H771","v":0},{"$f":"SUM(J772:J781)","v":0},{"$f":"SUM(K772:K781)","v":0},1,{"$f":"IF(ISERROR(VLOOKUP(L771,POA!$A$2:$C$25,3,0)),\"\",VLOOKUP(L771,POA!$A$2:$C$25,3,0))","v":3}," ",{"$f":"+SUM(O772:O781)","v":0},{"$f":"IF(ISERROR(VLOOKUP(L771,POA!$A$2:$C$25,2,0)),\"\",VLOOKUP(L771,POA!$A$2:$C$25,2,0))","v":4167150295},{"$f":"SUM(E771/G771)","v":{"$error":"#DIV/0!"}},{"$f":"IF(Q771=0,\"\",IF(Q771>=$R$9,\"HABIL\",\"NO HABIL\"))","v":{"$error":"#DIV/0!"}},{"$f":"SUM(H771/F771)","v":{"$error":"#DIV/0!"}},{"$f":"IF(S771=0,\"\",IF(S771<=$T$9,\"HABIL\",\"NO HABIL\"))","v":{"$error":"#DIV/0!"}},{"$f":"+SUM(U772:U781)","v":0},{"$f":"SUM(J771/K771)","v":{"$error":"#DIV/0!"}},{"$f":"IF(V771=0,\"\",IF(V771>=$W$9,\"HABIL\",\"NO HABIL\"))","v":{"$error":"#DIV/0!"}},{"$f":"IF(R771=0,\"\",IF(R771=\"NO HABIL\",\"NO HABIL\",IF(T771=\"NO HABIL\",\"NO HABIL\",IF(W771=\"NO HABIL\",\"NO HABIL\",IF(W771=\"NO HABIL\",\"NO HABIL\",\"HABIL\")))))","v":{"$error":"#DIV/0!"}},null,null,{"$f":"SUM(J771/I771)","v":{"$error":"#DIV/0!"}},{"$f":"IF(AA771=0,\"\",IF(AA771>=$AB$9,\"HABIL\",\"NO HABIL\"))","v":{"$error":"#DIV/0!"}},{"$f":"SUM(J771/F771)","v":{"$error":"#DIV/0!"}},{"$f":"IF(AC771=0,\"\",IF(AC771>=$AD$9,\"HABIL\",\"NO HABIL\"))","v":{"$error":"#DIV/0!"}},{"$f":"IF(AB771=0,\"\",IF(AB771=\"NO HABIL\",\"NO HABIL\",IF(AD771=\"NO HABIL\",\"NO HABIL\",IF(AD771=\"NO HABIL\",\"NO HABIL\",\"HABIL\"))))","v":{"$error":"#DIV/0!"}}]
[null,{"$f":"IF(C772=\"\",\"\",B771+0.1)","v":""},null,null,null,null,null,null,{"$f":"IF(ISERROR(F772-H772),\"\",F772-H772)","v":0},null,null,null,{"$f":"IF(ISERROR(VLOOKUP(L772,POA!$A$2:$C$25,3,0)),\"\",VLOOKUP(L772,POA!$A$2:$C$25,3,0))","v":""}," ",{"$f":"IF(ISERROR(VLOOKUP(N772,POA!$A$2:$F$25,4,0)),\"\",VLOOKUP(N772,POA!$A$2:$F$25,4,0))","v":""},{"$f":"IF(ISERROR(VLOOKUP(L772,POA!$A$2:$C$25,2,0)),\"\",VLOOKUP(L772,POA!$A$2:$C$25,2,0))","v":""},null,{"$f":"IF(Q772=0,\"\",IF(Q771>=$R$9,\"HABIL\",\"NO HABIL\"))","v":""},null,{"$f":"IF(S772=0,\"\",IF(S772<=$T$9,\"HABIL\",\"NO HABIL\"))","v":""},{"$f":"IF(ISERROR(VLOOKUP(N772,POA!$A$2:$F$25,5,0)),\"\",VLOOKUP(N772,POA!$A$2:$F$25,5,0))","v":""},null,{"$f":"IF(V772=0,\"\",IF(V772>=$W$9,\"HABIL\",\"NO HABIL\"))","v":""},null,{"$f":"IF(ISERROR(F772/$Z$9),\"\",F772/$Z$9)","v":0},{"$f":"+IF(Y772<$Z$10,\"MIPYME\",\"NO CUMPLE\")","v":"MIPYME"},null,{"$f":"IF(AA772=0,\"\",IF(AA772>=$AB$9,\"HABIL\",\"NO HABIL\"))","v":""},null,{"$f":"IF(AC772=0,\"\",IF(AC772>=$AD$9,\"HABIL\",\"NO HABIL\"))","v":""}]
[null,"",null,null,null,null,null,null,0,null,null,null,{"$f":"IF(ISERROR(VLOOKUP(L773,POA!$A$2:$C$25,3,0)),\"\",VLOOKUP(L773,POA!$A$2:$C$25,3,0))","v":""}," ",{"$f":"IF(ISERROR(VLOOKUP(N773,POA!$A$2:$F$25,4,0)),\"\",VLOOKUP(N773,POA!$A$2:$F$25,4,0))","v":""},{"$f":"IF(ISERROR(VLOOKUP(L773,POA!$A$2:$C$25,2,0)),\"\",VLOOKUP(L773,POA!$A$2:$C$25,2,0))","v":""},null,{"$f":"IF(Q773=0,\"\",IF(Q771>=$R$9,\"HABIL\",\"NO HABIL\"))","v":""},null,"",{"$f":"IF(ISERROR(VLOOKUP(N773,POA!$A$2:$F$25,5,0)),\"\",VLOOKUP(N773,POA!$A$2:$F$25,5,0))","v":""},null,"",null,{"$f":"IF(ISERROR(F773/$Z$9),\"\",F773/$Z$9)","v":0},{"$f":"+IF(Y773<$Z$10,\"MIPYME\",\"NO CUMPLE\")","v":"MIPYME"},null,"",null,""]
[null,"",null,null,null,null,null,null,0,null,null,null,{"$f":"IF(ISERROR(VLOOKUP(L774,POA!$A$2:$C$25,3,0)),\"\",VLOOKUP(L774,POA!$A$2:$C$25,3,0))","v":""},null,{"$f":"IF(ISERROR(VLOOKUP(N774,POA!$A$2:$F$25,4,0)),\"\",VLOOKUP(N774,POA!$A$2:$F$25,4,0))","v":""},{"$f":"IF(ISERROR(VLOOKUP(L774,POA!$A$2:$C$25,2,0)),\"\",VLOOKUP(L774,POA!$A$2:$C$25,2,0))","v":""},null,{"$f":"IF(Q774=0,\"\",IF(Q771>=$R$9,\"HABIL\",\"NO HABIL\"))","v":""},null,"",{"$f":"IF(ISERROR(VLOOKUP(N774,POA!$A$2:$F$25,5,0)),\"\",VLOOKUP(N774,POA!$A$2:$F$25,5,0))","v":""},null,"",null,0,"MIPYME",null,"",null,""]
[null,"",null,null,{"$f":"IF(ISERROR(VLOOKUP(C775,#REF!,2,0)),\"\",VLOOKUP(C775,#REF!,2,0))","v":""},null,{"$f":"IF(ISERROR(VLOOKUP(C775,#REF!,4,0)),\"\",VLOOKUP(C775,#REF!,4,0))","v":""},null,0,null,null,null,{"$f":"IF(ISERROR(VLOOKUP(L775,POA!$A$2:$C$25,3,0)),\"\",VLOOKUP(L775,POA!$A$2:$C$25,3,0))","v":""},null,{"$f":"IF(ISERROR(VLOOKUP(N775,POA!$A$2:$F$25,4,0)),\"\",VLOOKUP(N775,POA!$A$2:$F$25,4,0))","v":""},{"$f":"IF(ISERROR(VLOOKUP(L775,POA!$A$2:$C$25,2,0)),\"\",VLOOKUP(L775,POA!$A$2:$C$25,2,0))","v":""},null,{"$f":"IF(L775=0,\"\",IF(Q771>=$R$9,\"HABIL\",\"NO HABIL\"))","v":""},null,"",{"$f":"IF(ISERROR(VLOOKUP(N775,POA!$A$2:$F$25,5,0)),\"\",VLOOKUP(N775,POA!$A$2:$F$25,5,0))","v":""},null,"",null,0,"MIPYME",null,"",null,""]
[null,"",null,null,{"$f":"IF(ISERROR(VLOOKUP(C776,#REF!,2,0)),\"\",VLOOKUP(C776,#REF!,2,0))","v":""},null,{"$f":"IF(ISERROR(VLOOKUP(C776,#REF!,4,0)),\"\",VLOOKUP(C776,#REF!,4,0))","v":""},null,0,null,null,null,{"$f":"IF(ISERROR(VLOOKUP(L776,POA!$A$2:$C$25,3,0)),\"\",VLOOKUP(L776,POA!$A$2:$C$25,3,0))","v":""},null,{"$f":"IF(ISERROR(VLOOKUP(N776,POA!$A$2:$F$25,4,0)),\"\",VLOOKUP(N776,POA!$A$2:$F$25,4,0))","v":""},{"$f":"IF(ISERROR(VLOOKUP(L776,POA!$A$2:$C$25,2,0)),\"\",VLOOKUP(L776,POA!$A$2:$C$25,2,0))","v":""},null,{"$f":"IF(L776=0,\"\",IF(Q771>=$R$9,\"HABIL\",\"NO HABIL\"))","v":""},null,"",{"$f":"IF(ISERROR(VLOOKUP(N776,POA!$A$2:$F$25,5,0)),\"\",VLOOKUP(N776,POA!$A$2:$F$25,5,0))","v":""},null,"",null,0,"MIPYME",null,"",null,""]
[null,"",null,null,{"$f":"IF(ISERROR(VLOOKUP(C777,#REF!,2,0)),\"\",VLOOKUP(C777,#REF!,2,0))","v":""},null,{"$f":"IF(ISERROR(VLOOKUP(C777,#REF!,4,0)),\"\",VLOOKUP(C777,#REF!,4,0))","v":""},null,0,null,null,null,{"$f":"IF(ISERROR(VLOOKUP(L777,POA!$A$2:$C$25,3,0)),\"\",VLOOKUP(L777,POA!$A$2:$C$25,3,0))","v":""},null,{"$f":"IF(ISERROR(VLOOKUP(N777,POA!$A$2:$F$25,4,0)),\"\",VLOOKUP(N777,POA!$A$2:$F$25,4,0))","v":""},{"$f":"IF(ISERROR(VLOOKUP(L777,POA!$A$2:$C$25,2,0)),\"\",VLOOKUP(L777,POA!$A$2:$C$25,2,0))","v":""},null,{"$f":"IF(L777=0,\"\",IF(Q771>=$R$9,\"HABIL\",\"NO HABIL\"))","v":""},null,"",{"$f":"IF(ISERROR(VLOOKUP(N777,POA!$A$2:$F$25,5,0)),\"\",VLOOKUP(N777,POA!$A$2:$F$25,5,0))","v":""},null,"",null,0,"MIPYME",null,"",null,""]
[null,{"$f":"IF(C778=\"\",\"\",B777+0.1)","v":""},null,null,{"$f":"IF(ISERROR(VLOOKUP(C778,#REF!,2,0)),\"\",VLOOKUP(C778,#REF!,2,0))","v":""},null,{"$f":"IF(ISERROR(VLOOKUP(C778,#REF!,4,0)),\"\",VLOOKUP(C778,#REF!,4,0))","v":""},null,{"$f":"IF(ISERROR(F778-H778),\"\",F778-H778)","v":0},null,null,null,{"$f":"IF(ISERROR(VLOOKUP(L778,POA!$A$2:$C$25,3,0)),\"\",VLOOKUP(L778,POA!$A$2:$C$25,3,0))","v":""},null,{"$f":"IF(ISERROR(VLOOKUP(N778,POA!$A$2:$F$25,4,0)),\"\",VLOOKUP(N778,POA!$A$2:$F$25,4,0))","v":""},{"$f":"IF(ISERROR(VLOOKUP(L778,POA!$A$2:$C$25,2,0)),\"\",VLOOKUP(L778,POA!$A$2:$C$25,2,0))","v":""},null,{"$f":"IF(L778=0,\"\",IF(Q771>=$R$9,\"HABIL\",\"NO HABIL\"))","v":""},null,"",{"$f":"IF(ISERROR(VLOOKUP(N778,POA!$A$2:$F$25,5,0)),\"\",VLOOKUP(N778,POA!$A$2:$F$25,5,0))","v":""},null,"",null,0,"MIPYME",null,"",null,""]
[null,{"$f":"IF(C779=\"\",\"\",B778+0.1)","v":""},null,null,{"$f":"IF(ISERROR(VLOOKUP(C779,#REF!,2,0)),\"\",VLOOKUP(C779,#REF!,2,0))","v":""},null,{"$f":"IF(ISERROR(VLOOKUP(C779,#REF!,4,0)),\"\",VLOOKUP(C779,#REF!,4,0))","v":""},null,{"$f":"IF(ISERROR(F779-H779),\"\",F779-H779)","v":0},null,null,null,{"$f":"IF(ISERROR(VLOOKUP(L779,POA!$A$2:$C$25,3,0)),\"\",VLOOKUP(L779,POA!$A$2:$C$25,3,0))","v":""},null,{"$f":"IF(ISERROR(VLOOKUP(N779,POA!$A$2:$F$25,4,0)),\"\",VLOOKUP(N779,POA!$A$2:$F$25,4,0))","v":""},{"$f":"IF(ISERROR(VLOOKUP(L779,POA!$A$2:$C$25,2,0)),\"\",VLOOKUP(L779,POA!$A$2:$C$25,2,0))","v":""},null,{"$f":"IF(L779=0,\"\",IF(Q771>=$R$9,\"HABIL\",\"NO HABIL\"))","v":""},null,"",{"$f":"IF(ISERROR(VLOOKUP(N779,POA!$A$2:$F$25,5,0)),\"\",VLOOKUP(N779,POA!$A$2:$F$25,5,0))","v":""},null,"",null,0,"MIPYME",null,"",null,""]
[null,{"$f":"IF(C780=\"\",\"\",B779+0.1)","v":""},null,null,{"$f":"IF(ISERROR(VLOOKUP(C780,#REF!,2,0)),\"\",VLOOKUP(C780,#REF!,2,0))","v":""},null,{"$f":"IF(ISERROR(VLOOKUP(C780,#REF!,4,0)),\"\",VLOOKUP(C780,#REF!,4,0))","v":""},null,{"$f":"IF(ISERROR(F780-H780),\"\",F780-H780)","v":0},null,null,null,{"$f":"IF(ISERROR(VLOOKUP(L780,POA!$A$2:$C$25,3,0)),\"\",VLOOKUP(L780,POA!$A$2:$C$25,3,0))","v":""},null,{"$f":"IF(ISERROR(VLOOKUP(N780,POA!$A$2:$F$25,4,0)),\"\",VLOOKUP(N780,POA!$A$2:$F$25,4,0))","v":""},{"$f":"IF(ISERROR(VLOOKUP(L780,POA!$A$2:$C$25,2,0)),\"\",VLOOKUP(L780,POA!$A$2:$C$25,2,0))","v":""},null,{"$f":"IF(L780=0,\"\",IF(Q771>=$R$9,\"HABIL\",\"NO HABIL\"))","v":""},null,"",{"$f":"IF(ISERROR(VLOOKUP(N780,POA!$A$2:$F$25,5,0)),\"\",VLOOKUP(N780,POA!$A$2:$F$25,5,0))","v":""},null,"",null,0,"MIPYME",null,"",null,""]
[null,{"$f":"IF(C781=\"\",\"\",B780+0.1)","v":""},null,null,{"$f":"IF(ISERROR(VLOOKUP(C781,#REF!,2,0)),\"\",VLOOKUP(C781,#REF!,2,0))","v":""},null,{"$f":"IF(ISERROR(VLOOKUP(C781,#REF!,4,0)),\"\",VLOOKUP(C781,#REF!,4,0))","v":""},null,{"$f":"IF(ISERROR(F781-H781),\"\",F781-H781)","v":0},null,null,null,{"$f":"IF(ISERROR(VLOOKUP(L781,POA!$A$2:$C$25,3,0)),\"\",VLOOKUP(L781,POA!$A$2:$C$25,3,0))","v":""},null,{"$f":"IF(ISERROR(VLOOKUP(N781,POA!$A$2:$F$25,4,0)),\"\",VLOOKUP(N781,POA!$A$2:$F$25,4,0))","v":""},{"$f":"IF(ISERROR(VLOOKUP(L781,POA!$A$2:$C$25,2,0)),\"\",VLOOKUP(L781,POA!$A$2:$C$25,2,0))","v":""},null,{"$f":"IF(L781=0,\"\",IF(Q771>=$R$9,\"HABIL\",\"NO HABIL\"))","v":""},null,"",{"$f":"IF(ISERROR(VLOOKUP(N781,POA!$A$2:$F$25,5,0)),\"\",VLOOKUP(N781,POA!$A$2:$F$25,5,0))","v":""},null,"",null,{"$f":"IF(ISERROR(F781/$Z$9),\"\",F781/$Z$9)","v":0},"MIPYME",null,"",null,""]

{"sheet":"Puntaje Exp","index":5,"n_rows":778,"n_cols":9,"rows_kept":778,"cut":false,"hidden":false,"merged":[[6,7,6,8],[1,2,1,8],[2,2,2,8],[3,2,3,8],[4,2,4,8],[6,2,7,2],[6,3,7,3],[6,4,7,4],[6,5,7,5],[6,6,7,6]]}
[]
[null,null,"INSTITUTO NACIONAL DE VIAS"]
[null,null,"DIRECCIÓN DE CONTRATACIÓN"]
[null,null,{"$f":"'Capacidad Financiera'!B4","v":"LICITACIÓN PÚBLICA No. LP-DO-SRN-XXX-2014"}]
[null,null,"PUNTAJE POR EXPERIENCIA"]
[]
[null,null,"OFERTA","PROPONENTE","Porcentaje de Participación para este Proceso\n\n(A)","VALOR TOTAL DE LOS CONTRATOS EJECUTADOS\n\n(B)","PRESUPUESTO OFICIAL ESTIMADO (POE)  \n\n(C)","PUNTAJE POR EXPERIENCIA"]
[null,null,null,null,null,null,null,"RESULTADO   \n\nB / (C * A)","Rangos:\nMayor a 0 y Menor o Igual a 3 = 60 Puntos \nMayor a 3 y Menor o Igual a 6 = 80 Puntos\nMayor a 6 y Menor o Igual a 10 = 100 Puntos\nMayor a 10 y Mayores = 120 Puntos"]
["Módulo",null,{"$f":"+'Capacidad Financiera'!B12","v":1},{"$f":"IF(ISERROR(VLOOKUP(C9,'Capacidad Financiera'!$B$12:$X$62720,2,0)),\"\",VLOOKUP(C9,'Capacidad Financiera'!$B$12:$X$3580,2,0))","v":"CONVIAL S.A.S."},{"$f":"IF(ISERROR(VLOOKUP(C9,'Capacidad Financiera'!$B$12:$X$62720,3,0)),\"\",VLOOKUP(C9,'Capacidad Financiera'!$B$12:$X$62720,3,0))","v":1},null,{"$f":"IF(OR(D9=\"\",E9=\"\",F9=\"\"),\"\",IF(C10=\"\",IF(C9<>\"\",IF(ISERROR(VLOOKUP($A$10,POA!$A$2:$D$25,2,0)),\"\",VLOOKUP($A$10,POA!$A$2:$D$25,2,0)),\"\"),\"\"))","v":""},{"$f":"IF(OR(D9=\"\",E9=\"\",F9=\"\"),\"\",IF(C10=\"\",IF(C9<>\"\",F9/G9,\"\"),\"\"))","v":""},{"$f":"IF(C10=\"\",IF(F9=\"\",\"\",IF(AND(H9>0,H9<=Experiencia1),Puntajes!$D$4,IF(AND(H9>Experiencia1,H9<=Experiencia2),Puntajes!$D$5,IF(AND(H9>Experiencia2,H9<=Experiencia3),Puntajes!$D$6,IF(H9>Experiencia3,Puntajes!$D$7,0))))),\"\")","v":""}]
[1,null,{"$f":"+'Capacidad Financiera'!B13","v":1.1000000000000001},{"$f":"IF(ISERROR(VLOOKUP(C10,'Capacidad Financiera'!$B$12:$X$62720,2,0)),\"\",VLOOKUP(C10,'Capacidad Financiera'!$B$12:$X$3580,2,0))","v":"CONVIAL S.A.S."},{"$f":"IF(ISERROR(VLOOKUP(C10,'Capacidad Financiera'!$B$12:$X$62720,3,0)),\"\",VLOOKUP(C10,'Capacidad Financiera'!$B$12:$X$62720,3,0))","v":1},62343031828,{"$f":"IF(OR(D10=\"\",E10=\"\",F10=\"\"),\"\",IF(C10<>\"\",IF(ISERROR(VLOOKUP($A$10,POA!$A$2:$D$25,2,0)),\"\",VLOOKUP($A$10,POA!$A$2:$D$25,2,0)),\"\"))","v":4167150295},{"$f":"IF(OR(D10=\"\",E10=\"\",F10=\"\"),\"\",IF(C10<>\"\",F10/(G10*E10),\"\"))","v":14.960591150936638},{"$f":"IF(OR(D10=\"\",E10=\"\",F10=\"\"),\"\",IF(AND(H10>0,H10<=Experiencia1),Puntajes!$D$4,IF(AND(H10>Experiencia1,H10<=Experiencia2),Puntajes!$D$5,IF(AND(H10>Experiencia2,H10<=Experiencia3),Puntajes!$D$6,IF(H10>Experiencia3,Puntajes!$D$7,0)))))","v":120}]
[null,null,{"$f":"+'Capacidad Financiera'!B14","v":""},{"$f":"IF(ISERROR(VLOOKUP(C11,'Capacidad Financiera'!$B$12:$X$62720,2,0)),\"\",VLOOKUP(C11,'Capacidad Financiera'!$B$12:$X$3580,2,0))","v":0},{"$f":"IF(ISERROR(VLOOKUP(C11,'Capacidad Financiera'!$B$12:$X$62720,3,0)),\"\",VLOOKUP(C11,'Capacidad Financiera'!$B$12:$X$62720,3,0))","v":0},null,{"$f":"IF(OR(D11=\"\",E11=\"\",F11=\"\"),\"\",IF(C11<>\"\",IF(ISERROR(VLOOKUP($A$10,POA!$A$2:$D$25,2,0)),\"\",VLOOKUP($A$10,POA!$A$2:$D$25,2,0)),\"\"))","v":""},{"$f":"IF(OR(D11=\"\",E11=\"\",F11=\"\"),\"\",IF(C11<>\"\",F11/(G11*E11),\"\"))","v":""},{"$f":"IF(OR(D11=\"\",E11=\"\",F11=\"\"),\"\",IF(AND(H11>0,H11<=Experiencia1),Puntajes!$D$4,IF(AND(H11>Experiencia1,H11<=Experiencia2),Puntajes!$D$5,IF(AND(H11>Experiencia2,H11<=Experiencia3),Puntajes!$D$6,IF(H11>Experiencia3,Puntajes!$D$7,0)))))","v":""}]
[null,null,{"$f":"+'Capacidad Financiera'!B15","v":""},{"$f":"IF(ISERROR(VLOOKUP(C12,'Capacidad Financiera'!$B$12:$X$62720,2,0)),\"\",VLOOKUP(C12,'Capacidad Financiera'!$B$12:$X$3580,2,0))","v":0},{"$f":"IF(ISERROR(VLOOKUP(C12,'Capacidad Financiera'!$B$12:$X$62720,3,0)),\"\",VLOOKUP(C12,'Capacidad Financiera'!$B$12:$X$62720,3,0))","v":0},null,{"$f":"IF(OR(D12=\"\",E12=\"\",F12=\"\"),\"\",IF(C12<>\"\",IF(ISERROR(VLOOKUP($A$10,POA!$A$2:$D$25,2,0)),\"\",VLOOKUP($A$10,POA!$A$2:$D$25,2,0)),\"\"))","v":""},"",{"$f":"IF(OR(D12=\"\",E12=\"\",F12=\"\"),\"\",IF(AND(H12>0,H12<=Experiencia1),Puntajes!$D$4,IF(AND(H12>Experiencia1,H12<=Experiencia2),Puntajes!$D$5,IF(AND(H12>Experiencia2,H12<=Experiencia3),Puntajes!$D$6,IF(H12>Experiencia3,Puntajes!$D$7,0)))))","v":""}]
[null,null,{"$f":"+'Capacidad Financiera'!B16","v":""},{"$f":"IF(ISERROR(VLOOKUP(C13,'Capacidad Financiera'!$B$12:$X$62720,2,0)),\"\",VLOOKUP(C13,'Capacidad Financiera'!$B$12:$X$3580,2,0))","v":0},{"$f":"IF(ISERROR(VLOOKUP(C13,'Capacidad Financiera'!$B$12:$X$62720,3,0)),\"\",VLOOKUP(C13,'Capacidad Financiera'!$B$12:$X$62720,3,0))","v":0},null,{"$f":"IF(OR(D13=\"\",E13=\"\",F13=\"\"),\"\",IF(C13<>\"\",IF(ISERROR(VLOOKUP($A$10,POA!$A$2:$D$25,2,0)),\"\",VLOOKUP($A$10,POA!$A$2:$D$25,2,0)),\"\"))","v":""},"",{"$f":"IF(OR(D13=\"\",E13=\"\",F13=\"\"),\"\",IF(AND(H13>0,H13<=Experiencia1),Puntajes!$D$4,IF(AND(H13>Experiencia1,H13<=Experiencia2),Puntajes!$D$5,IF(AND(H13>Experiencia2,H13<=Experiencia3),Puntajes!$D$6,IF(H13>Experiencia3,Puntajes!$D$7,0)))))","v":""}]
[null,null,{"$f":"+'Capacidad Financiera'!B17","v":""},{"$f":"IF(ISERROR(VLOOKUP(C14,'Capacidad Financiera'!$B$12:$X$62720,2,0)),\"\",VLOOKUP(C14,'Capacidad Financiera'!$B$12:$X$3580,2,0))","v":0},{"$f":"IF(ISERROR(VLOOKUP(C14,'Capacidad Financiera'!$B$12:$X$62720,3,0)),\"\",VLOOKUP(C14,'Capacidad Financiera'!$B$12:$X$62720,3,0))","v":0},null,{"$f":"IF(OR(D14=\"\",E14=\"\",F14=\"\"),\"\",IF(C14<>\"\",IF(ISERROR(VLOOKUP($A$10,POA!$A$2:$D$25,2,0)),\"\",VLOOKUP($A$10,POA!$A$2:$D$25,2,0)),\"\"))","v":""},"",{"$f":"IF(OR(D14=\"\",E14=\"\",F14=\"\"),\"\",IF(AND(H14>0,H14<=Experiencia1),Puntajes!$D$4,IF(AND(H14>Experiencia1,H14<=Experiencia2),Puntajes!$D$5,IF(AND(H14>Experiencia2,H14<=Experiencia3),Puntajes!$D$6,IF(H14>Experiencia3,Puntajes!$D$7,0)))))","v":""}]
[null,null,{"$f":"+'Capacidad Financiera'!B18","v":""},{"$f":"IF(ISERROR(VLOOKUP(C15,'Capacidad Financiera'!$B$12:$X$62720,2,0)),\"\",VLOOKUP(C15,'Capacidad Financiera'!$B$12:$X$3580,2,0))","v":0},{"$f":"IF(ISERROR(VLOOKUP(C15,'Capacidad Financiera'!$B$12:$X$62720,3,0)),\"\",VLOOKUP(C15,'Capacidad Financiera'!$B$12:$X$62720,3,0))","v":0},null,{"$f":"IF(OR(D15=\"\",E15=\"\",F15=\"\"),\"\",IF(C15<>\"\",IF(ISERROR(VLOOKUP($A$10,POA!$A$2:$D$25,2,0)),\"\",VLOOKUP($A$10,POA!$A$2:$D$25,2,0)),\"\"))","v":""},"",{"$f":"IF(OR(D15=\"\",E15=\"\",F15=\"\"),\"\",IF(AND(H15>0,H15<=Experiencia1),Puntajes!$D$4,IF(AND(H15>Experiencia1,H15<=Experiencia2),Puntajes!$D$5,IF(AND(H15>Experiencia2,H15<=Experiencia3),Puntajes!$D$6,IF(H15>Experiencia3,Puntajes!$D$7,0)))))","v":""}]
[null,null,{"$f":"+'Capacidad Financiera'!B19","v":""},{"$f":"IF(ISERROR(VLOOKUP(C16,'Capacidad Financiera'!$B$12:$X$62720,2,0)),\"\",VLOOKUP(C16,'Capacidad Financiera'!$B$12:$X$3580,2,0))","v":0},{"$f":"IF(ISERROR(VLOOKUP(C16,'Capacidad Financiera'!$B$12:$X$62720,3,0)),\"\",VLOOKUP(C16,'Capacidad Financiera'!$B$12:$X$62720,3,0))","v":0},null,{"$f":"IF(OR(D16=\"\",E16=\"\",F16=\"\"),\"\",IF(C16<>\"\",IF(ISERROR(VLOOKUP($A$10,POA!$A$2:$D$25,2,0)),\"\",VLOOKUP($A$10,POA!$A$2:$D$25,2,0)),\"\"))","v":""},"",{"$f":"IF(OR(D16=\"\",E16=\"\",F16=\"\"),\"\",IF(AND(H16>0,H16<=Experiencia1),Puntajes!$D$4,IF(AND(H16>Experiencia1,H16<=Experiencia2),Puntajes!$D$5,IF(AND(H16>Experiencia2,H16<=Experiencia3),Puntajes!$D$6,IF(H16>Experiencia3,Puntajes!$D$7,0)))))","v":""}]
[null,null,{"$f":"+'Capacidad Financiera'!B20","v":""},{"$f":"IF(ISERROR(VLOOKUP(C17,'Capacidad Financiera'!$B$12:$X$62720,2,0)),\"\",VLOOKUP(C17,'Capacidad Financiera'!$B$12:$X$3580,2,0))","v":0},{"$f":"IF(ISERROR(VLOOKUP(C17,'Capacidad Financiera'!$B$12:$X$62720,3,0)),\"\",VLOOKUP(C17,'Capacidad Financiera'!$B$12:$X$62720,3,0))","v":0},null,{"$f":"IF(OR(D17=\"\",E17=\"\",F17=\"\"),\"\",IF(C17<>\"\",IF(ISERROR(VLOOKUP($A$10,POA!$A$2:$D$25,2,0)),\"\",VLOOKUP($A$10,POA!$A$2:$D$25,2,0)),\"\"))","v":""},"",{"$f":"IF(OR(D17=\"\",E17=\"\",F17=\"\"),\"\",IF(AND(H17>0,H17<=Experiencia1),Puntajes!$D$4,IF(AND(H17>Experiencia1,H17<=Experiencia2),Puntajes!$D$5,IF(AND(H17>Experiencia2,H17<=Experiencia3),Puntajes!$D$6,IF(H17>Experiencia3,Puntajes!$D$7,0)))))","v":""}]
[null,null,{"$f":"+'Capacidad Financiera'!B21","v":""},{"$f":"IF(ISERROR(VLOOKUP(C18,'Capacidad Financiera'!$B$12:$X$62720,2,0)),\"\",VLOOKUP(C18,'Capacidad Financiera'!$B$12:$X$3580,2,0))","v":0},{"$f":"IF(ISERROR(VLOOKUP(C18,'Capacidad Financiera'!$B$12:$X$62720,3,0)),\"\",VLOOKUP(C18,'Capacidad Financiera'!$B$12:$X$62720,3,0))","v":0},null,{"$f":"IF(OR(D18=\"\",E18=\"\",F18=\"\"),\"\",IF(C18<>\"\",IF(ISERROR(VLOOKUP($A$10,POA!$A$2:$D$25,2,0)),\"\",VLOOKUP($A$10,POA!$A$2:$D$25,2,0)),\"\"))","v":""},"",{"$f":"IF(OR(D18=\"\",E18=\"\",F18=\"\"),\"\",IF(AND(H18>0,H18<=Experiencia1),Puntajes!$D$4,IF(AND(H18>Experiencia1,H18<=Experiencia2),Puntajes!$D$5,IF(AND(H18>Experiencia2,H18<=Experiencia3),Puntajes!$D$6,IF(H18>Experiencia3,Puntajes!$D$7,0)))))","v":""}]
[null,null,{"$f":"+'Capacidad Financiera'!B22","v":""},{"$f":"IF(ISERROR(VLOOKUP(C19,'Capacidad Financiera'!$B$12:$X$62720,2,0)),\"\",VLOOKUP(C19,'Capacidad Financiera'!$B$12:$X$3580,2,0))","v":0},{"$f":"IF(ISERROR(VLOOKUP(C19,'Capacidad Financiera'!$B$12:$X$62720,3,0)),\"\",VLOOKUP(C19,'Capacidad Financiera'!$B$12:$X$62720,3,0))","v":0},null,{"$f":"IF(OR(D19=\"\",E19=\"\",F19=\"\"),\"\",IF(C19<>\"\",IF(ISERROR(VLOOKUP($A$10,POA!$A$2:$D$25,2,0)),\"\",VLOOKUP($A$10,POA!$A$2:$D$25,2,0)),\"\"))","v":""},"",{"$f":"IF(OR(D19=\"\",E19=\"\",F19=\"\"),\"\",IF(AND(H19>0,H19<=Experiencia1),Puntajes!$D$4,IF(AND(H19>Experiencia1,H19<=Experiencia2),Puntajes!$D$5,IF(AND(H19>Experiencia2,H19<=Experiencia3),Puntajes!$D$6,IF(H19>Experiencia3,Puntajes!$D$7,0)))))","v":""}]
[null,null,2,{"$f":"IF(ISERROR(VLOOKUP(C20,'Capacidad Financiera'!$B$12:$X$62720,2,0)),\"\",VLOOKUP(C20,'Capacidad Financiera'!$B$12:$X$3580,2,0))","v":"CONSORCIO VIC DROMOS"},{"$f":"IF(ISERROR(VLOOKUP(C20,'Capacidad Financiera'!$B$12:$X$62720,3,0)),\"\",VLOOKUP(C20,'Capacidad Financiera'!$B$12:$X$62720,3,0))","v":1},null,{"$f":"IF(OR(D20=\"\",E20=\"\",F20=\"\"),\"\",IF(C21=\"\",IF(C20<>\"\",IF(ISERROR(VLOOKUP($A$10,POA!$A$2:$D$25,2,0)),\"\",VLOOKUP($A$10,POA!$A$2:$D$25,2,0)),\"\"),\"\"))","v":""},{"$f":"IF(OR(D20=\"\",E20=\"\",F20=\"\"),\"\",IF(C21=\"\",IF(C20<>\"\",F20/G20,\"\"),\"\"))","v":""},{"$f":"IF(C21=\"\",IF(F20=\"\",\"\",IF(AND(H20>0,H20<=Experiencia1),Puntajes!$D$4,IF(AND(H20>Experiencia1,H20<=Experiencia2),Puntajes!$D$5,IF(AND(H20>Experiencia2,H20<=Experiencia3),Puntajes!$D$6,IF(H20>Experiencia3,Puntajes!$D$7,0))))),\"\")","v":""}]
[null,null,{"$f":"+'Capacidad Financiera'!B24","v":2.1},{"$f":"IF(ISERROR(VLOOKUP(C21,'Capacidad Financiera'!$B$12:$X$62720,2,0)),\"\",VLOOKUP(C21,'Capacidad Financiera'!$B$12:$X$3580,2,0))","v":"VIC S.A.S."},{"$f":"IF(ISERROR(VLOOKUP(C21,'Capacidad Financiera'!$B$12:$X$62720,3,0)),\"\",VLOOKUP(C21,'Capacidad Financiera'!$B$12:$X$62720,3,0))","v":0.5},44528953299.599998,{"$f":"IF(OR(D21=\"\",E21=\"\",F21=\"\"),\"\",IF(C21<>\"\",IF(ISERROR(VLOOKUP($A$10,POA!$A$2:$D$25,2,0)),\"\",VLOOKUP($A$10,POA!$A$2:$D$25,2,0)),\"\"))","v":4167150295},{"$f":"IF(OR(D21=\"\",E21=\"\",F21=\"\"),\"\",IF(C21<>\"\",F21/(G21*E21),\"\"))","v":21.371416986341259},{"$f":"IF(OR(D21=\"\",E21=\"\",F21=\"\"),\"\",IF(AND(H21>0,H21<=Experiencia1),Puntajes!$D$4,IF(AND(H21>Experiencia1,H21<=Experiencia2),Puntajes!$D$5,IF(AND(H21>Experiencia2,H21<=Experiencia3),Puntajes!$D$6,IF(H21>Experiencia3,Puntajes!$D$7,0)))))","v":120}]
[null,null,{"$f":"+'Capacidad Financiera'!B25","v":2.2000000000000002},{"$f":"IF(ISERROR(VLOOKUP(C22,'Capacidad Financiera'!$B$12:$X$62720,2,0)),\"\",VLOOKUP(C22,'Capacidad Financiera'!$B$12:$X$3580,2,0))","v":"DROMOS PAVIMENTOS S.A."},{"$f":"IF(ISERROR(VLOOKUP(C22,'Capacidad Financiera'!$B$12:$X$62720,3,0)),\"\",VLOOKUP(C22,'Capacidad Financiera'!$B$12:$X$62720,3,0))","v":0.5},154587137360,{"$f":"IF(OR(D22=\"\",E22=\"\",F22=\"\"),\"\",IF(C22<>\"\",IF(ISERROR(VLOOKUP($A$10,POA!$A$2:$D$25,2,0)),\"\",VLOOKUP($A$10,POA!$A$2:$D$25,2,0)),\"\"))","v":4167150295},{"$f":"IF(OR(D22=\"\",E22=\"\",F22=\"\"),\"\",IF(C22<>\"\",F22/(G22*E22),\"\"))","v":74.193214267065457},{"$f":"IF(OR(D22=\"\",E22=\"\",F22=\"\"),\"\",IF(AND(H22>0,H22<=Experiencia1),Puntajes!$D$4,IF(AND(H22>Experiencia1,H22<=Experiencia2),Puntajes!$D$5,IF(AND(H22>Experiencia2,H22<=Experiencia3),Puntajes!$D$6,IF(H22>Experiencia3,Puntajes!$D$7,0)))))","v":120}]
[null,null,{"$f":"+'Capacidad Financiera'!B26","v":""},{"$f":"IF(ISERROR(VLOOKUP(C23,'Capacidad Financiera'!$B$12:$X$62720,2,0)),\"\",VLOOKUP(C23,'Capacidad Financiera'!$B$12:$X$3580,2,0))","v":0},{"$f":"IF(ISERROR(VLOOKUP(C23,'Capacidad Financiera'!$B$12:$X$62720,3,0)),\"\",VLOOKUP(C23,'Capacidad Financiera'!$B$12:$X$62720,3,0))","v":0},null,{"$f":"IF(OR(D23=\"\",E23=\"\",F23=\"\"),\"\",IF(C23<>\"\",IF(ISERROR(VLOOKUP($A$10,POA!$A$2:$D$25,2,0)),\"\",VLOOKUP($A$10,POA!$A$2:$D$25,2,0)),\"\"))","v":""},"",{"$f":"IF(OR(D23=\"\",E23=\"\",F23=\"\"),\"\",IF(AND(H23>0,H23<=Experiencia1),Puntajes!$D$4,IF(AND(H23>Experiencia1,H23<=Experiencia2),Puntajes!$D$5,IF(AND(H23>Experiencia2,H23<=Experiencia3),Puntajes!$D$6,IF(H23>Experiencia3,Puntajes!$D$7,0)))))","v":""}]
[null,null,{"$f":"+'Capacidad Financiera'!B27","v":""},{"$f":"IF(ISERROR(VLOOKUP(C24,'Capacidad Financiera'!$B$12:$X$62720,2,0)),\"\",VLOOKUP(C24,'Capacidad Financiera'!$B$12:$X$3580,2,0))","v":0},{"$f":"IF(ISERROR(VLOOKUP(C24,'Capacidad Financiera'!$B$12:$X$62720,3,0)),\"\",VLOOKUP(C24,'Capacidad Financiera'!$B$12:$X$62720,3,0))","v":0},null,{"$f":"IF(OR(D24=\"\",E24=\"\",F24=\"\"),\"\",IF(C24<>\"\",IF(ISERROR(VLOOKUP($A$10,POA!$A$2:$D$25,2,0)),\"\",VLOOKUP($A$10,POA!$A$2:$D$25,2,0)),\"\"))","v":""},"",{"$f":"IF(OR(D24=\"\",E24=\"\",F24=\"\"),\"\",IF(AND(H24>0,H24<=Experiencia1),Puntajes!$D$4,IF(AND(H24>Experiencia1,H24<=Experiencia2),Puntajes!$D$5,IF(AND(H24>Experiencia2,H24<=Experiencia3),Puntajes!$D$6,IF(H24>Experiencia3,Puntajes!$D$7,0)))))","v":""}]
[null,null,{"$f":"+'Capacidad Financiera'!B28","v":""},{"$f":"IF(ISERROR(VLOOKUP(C25,'Capacidad Financiera'!$B$12:$X$62720,2,0)),\"\",VLOOKUP(C25,'Capacidad Financiera'!$B$12:$X$3580,2,0))","v":0},{"$f":"IF(ISERROR(VLOOKUP(C25,'Capacidad Financiera'!$B$12:$X$62720,3,0)),\"\",VLOOKUP(C25,'Capacidad Financiera'!$B$12:$X$62720,3,0))","v":0},null,{"$f":"IF(OR(D25=\"\",E25=\"\",F25=\"\"),\"\",IF(C25<>\"\",IF(ISERROR(VLOOKUP($A$10,POA!$A$2:$D$25,2,0)),\"\",VLOOKUP($A$10,POA!$A$2:$D$25,2,0)),\"\"))","v":""},"",{"$f":"IF(OR(D25=\"\",E25=\"\",F25=\"\"),\"\",IF(AND(H25>0,H25<=Experiencia1),Puntajes!$D$4,IF(AND(H25>Experiencia1,H25<=Experiencia2),Puntajes!$D$5,IF(AND(H25>Experiencia2,H25<=Experiencia3),Puntajes!$D$6,IF(H25>Experiencia3,Puntajes!$D$7,0)))))","v":""}]
[null,null,{"$f":"+'Capacidad Financiera'!B29","v":""},{"$f":"IF(ISERROR(VLOOKUP(C26,'Capacidad Financiera'!$B$12:$X$62720,2,0)),\"\",VLOOKUP(C26,'Capacidad Financiera'!$B$12:$X$3580,2,0))","v":0},{"$f":"IF(ISERROR(VLOOKUP(C26,'Capacidad Financiera'!$B$12:$X$62720,3,0)),\"\",VLOOKUP(C26,'Capacidad Financiera'!$B$12:$X$62720,3,0))","v":0},null,{"$f":"IF(OR(D26=\"\",E26=\"\",F26=\"\"),\"\",IF(C26<>\"\",IF(ISERROR(VLOOKUP($A$10,POA!$A$2:$D$25,2,0)),\"\",VLOOKUP($A$10,POA!$A$2:$D$25,2,0)),\"\"))","v":""},"",{"$f":"IF(OR(D26=\"\",E26=\"\",F26=\"\"),\"\",IF(AND(H26>0,H26<=Experiencia1),Puntajes!$D$4,IF(AND(H26>Experiencia1,H26<=Experiencia2),Puntajes!$D$5,IF(AND(H26>Experiencia2,H26<=Experiencia3),Puntajes!$D$6,IF(H26>Experiencia3,Puntajes!$D$7,0)))))","v":""}]
[null,null,{"$f":"+'Capacidad Financiera'!B30","v":""},{"$f":"IF(ISERROR(VLOOKUP(C27,'Capacidad Financiera'!$B$12:$X$62720,2,0)),\"\",VLOOKUP(C27,'Capacidad Financiera'!$B$12:$X$3580,2,0))","v":0},{"$f":"IF(ISERROR(VLOOKUP(C27,'Capacidad Financiera'!$B$12:$X$62720,3,0)),\"\",VLOOKUP(C27,'Capacidad Financiera'!$B$12:$X$62720,3,0))","v":0},null,{"$f":"IF(OR(D27=\"\",E27=\"\",F27=\"\"),\"\",IF(C27<>\"\",IF(ISERROR(VLOOKUP($A$10,POA!$A$2:$D$25,2,0)),\"\",VLOOKUP($A$10,POA!$A$2:$D$25,2,0)),\"\"))","v":""},"",{"$f":"IF(OR(D27=\"\",E27=\"\",F27=\"\"),\"\",IF(AND(H27>0,H27<=Experiencia1),Puntajes!$D$4,IF(AND(H27>Experiencia1,H27<=Experiencia2),Puntajes!$D$5,IF(AND(H27>Experiencia2,H27<=Experiencia3),Puntajes!$D$6,IF(H27>Experiencia3,Puntajes!$D$7,0)))))","v":""}]
[null,null,{"$f":"+'Capacidad Financiera'!B31","v":""},{"$f":"IF(ISERROR(VLOOKUP(C28,'Capacidad Financiera'!$B$12:$X$62720,2,0)),\"\",VLOOKUP(C28,'Capacidad Financiera'!$B$12:$X$3580,2,0))","v":0},{"$f":"IF(ISERROR(VLOOKUP(C28,'Capacidad Financiera'!$B$12:$X$62720,3,0)),\"\",VLOOKUP(C28,'Capacidad Financiera'!$B$12:$X$62720,3,0))","v":0},null,{"$f":"IF(OR(D28=\"\",E28=\"\",F28=\"\"),\"\",IF(C28<>\"\",IF(ISERROR(VLOOKUP($A$10,POA!$A$2:$D$25,2,0)),\"\",VLOOKUP($A$10,POA!$A$2:$D$25,2,0)),\"\"))","v":""},"",{"$f":"IF(OR(D28=\"\",E28=\"\",F28=\"\"),\"\",IF(AND(H28>0,H28<=Experiencia1),Puntajes!$D$4,IF(AND(H28>Experiencia1,H28<=Experiencia2),Puntajes!$D$5,IF(AND(H28>Experiencia2,H28<=Experiencia3),Puntajes!$D$6,IF(H28>Experiencia3,Puntajes!$D$7,0)))))","v":""}]
[null,null,{"$f":"+'Capacidad Financiera'!B32","v":""},{"$f":"IF(ISERROR(VLOOKUP(C29,'Capacidad Financiera'!$B$12:$X$62720,2,0)),\"\",VLOOKUP(C29,'Capacidad Financiera'!$B$12:$X$3580,2,0))","v":0},{"$f":"IF(ISERROR(VLOOKUP(C29,'Capacidad Financiera'!$B$12:$X$62720,3,0)),\"\",VLOOKUP(C29,'Capacidad Financiera'!$B$12:$X$62720,3,0))","v":0},null,{"$f":"IF(OR(D29=\"\",E29=\"\",F29=\"\"),\"\",IF(C29<>\"\",IF(ISERROR(VLOOKUP($A$10,POA!$A$2:$D$25,2,0)),\"\",VLOOKUP($A$10,POA!$A$2:$D$25,2,0)),\"\"))","v":""},"",{"$f":"IF(OR(D29=\"\",E29=\"\",F29=\"\"),\"\",IF(AND(H29>0,H29<=Experiencia1),Puntajes!$D$4,IF(AND(H29>Experiencia1,H29<=Experiencia2),Puntajes!$D$5,IF(AND(H29>Experiencia2,H29<=Experiencia3),Puntajes!$D$6,IF(H29>Experiencia3,Puntajes!$D$7,0)))))","v":""}]
[null,null,{"$f":"+'Capacidad Financiera'!B33","v":""},{"$f":"IF(ISERROR(VLOOKUP(C30,'Capacidad Financiera'!$B$12:$X$62720,2,0)),\"\",VLOOKUP(C30,'Capacidad Financiera'!$B$12:$X$3580,2,0))","v":0},{"$f":"IF(ISERROR(VLOOKUP(C30,'Capacidad Financiera'!$B$12:$X$62720,3,0)),\"\",VLOOKUP(C30,'Capacidad Financiera'!$B$12:$X$62720,3,0))","v":0},null,{"$f":"IF(OR(D30=\"\",E30=\"\",F30=\"\"),\"\",IF(C30<>\"\",IF(ISERROR(VLOOKUP($A$10,POA!$A$2:$D$25,2,0)),\"\",VLOOKUP($A$10,POA!$A$2:$D$25,2,0)),\"\"))","v":""},"",{"$f":"IF(OR(D30=\"\",E30=\"\",F30=\"\"),\"\",IF(AND(H30>0,H30<=Experiencia1),Puntajes!$D$4,IF(AND(H30>Experiencia1,H30<=Experiencia2),Puntajes!$D$5,IF(AND(H30>Experiencia2,H30<=Experiencia3),Puntajes!$D$6,IF(H30>Experiencia3,Puntajes!$D$7,0)))))","v":""}]
[null,null,3,{"$f":"IF(ISERROR(VLOOKUP(C31,'Capacidad Financiera'!$B$12:$X$62720,2,0)),\"\",VLOOKUP(C31,'Capacidad Financiera'!$B$12:$X$3580,2,0))","v":"EQUIPOS CONSTRUCCIONES Y OBRAS S.A."},{"$f":"IF(ISERROR(VLOOKUP(C31,'Capacidad Financiera'!$B$12:$X$62720,3,0)),\"\",VLOOKUP(C31,'Capacidad Financiera'!$B$12:$X$62720,3,0))","v":1},null,{"$f":"IF(OR(D31=\"\",E31=\"\",F31=\"\"),\"\",IF(C32=\"\",IF(C31<>\"\",IF(ISERROR(VLOOKUP($A$10,POA!$A$2:$D$25,2,0)),\"\",VLOOKUP($A$10,POA!$A$2:$D$25,2,0)),\"\"),\"\"))","v":""},{"$f":"IF(OR(D31=\"\",E31=\"\",F31=\"\"),\"\",IF(C32=\"\",IF(C31<>\"\",F31/G31,\"\"),\"\"))","v":""},{"$f":"IF(C32=\"\",IF(F31=\"\",\"\",IF(AND(H31>0,H31<=Experiencia1),Puntajes!$D$4,IF(AND(H31>Experiencia1,H31<=Experiencia2),Puntajes!$D$5,IF(AND(H31>Experiencia2,H31<=Experiencia3),Puntajes!$D$6,IF(H31>Experiencia3,Puntajes!$D$7,0))))),\"\")","v":""}]
["req.nuevo anexo 1-a",null,{"$f":"+'Capacidad Financiera'!B35","v":3.1},{"$f":"IF(ISERROR(VLOOKUP(C32,'Capacidad Financiera'!$B$12:$X$62720,2,0)),\"\",VLOOKUP(C32,'Capacidad Financiera'!$B$12:$X$3580,2,0))","v":"EQUIPOS CONSTRUCCIONES Y OBRAS S.A."},{"$f":"IF(ISERROR(VLOOKUP(C32,'Capacidad Financiera'!$B$12:$X$62720,3,0)),\"\",VLOOKUP(C32,'Capacidad Financiera'!$B$12:$X$62720,3,0))","v":1},117103540400,{"$f":"IF(OR(D32=\"\",E32=\"\",F32=\"\"),\"\",IF(C32<>\"\",IF(ISERROR(VLOOKUP($A$10,POA!$A$2:$D$25,2,0)),\"\",VLOOKUP($A$10,POA!$A$2:$D$25,2,0)),\"\"))","v":4167150295},{"$f":"IF(OR(D32=\"\",E32=\"\",F32=\"\"),\"\",IF(C32<>\"\",F32/(G32*E32),\"\"))","v":28.101587922208598},{"$f":"IF(OR(D32=\"\",E32=\"\",F32=\"\"),\"\",IF(AND(H32>0,H32<=Experiencia1),Puntajes!$D$4,IF(AND(H32>Experiencia1,H32<=Experiencia2),Puntajes!$D$5,IF(AND(H32>Experiencia2,H32<=Experiencia3),Puntajes!$D$6,IF(H32>Experiencia3,Puntajes!$D$7,0)))))","v":120}]
[null,null,{"$f":"+'Capacidad Financiera'!B36","v":""},{"$f":"IF(ISERROR(VLOOKUP(C33,'Capacidad Financiera'!$B$12:$X$62720,2,0)),\"\",VLOOKUP(C33,'Capacidad Financiera'!$B$12:$X$3580,2,0))","v":0},{"$f":"IF(ISERROR(VLOOKUP(C33,'Capacidad Financiera'!$B$12:$X$62720,3,0)),\"\",VLOOKUP(C33,'Capacidad Financiera'!$B$12:$X$62720,3,0))","v":0},null,{"$f":"IF(OR(D33=\"\",E33=\"\",F33=\"\"),\"\",IF(C33<>\"\",IF(ISERROR(VLOOKUP($A$10,POA!$A$2:$D$25,2,0)),\"\",VLOOKUP($A$10,POA!$A$2:$D$25,2,0)),\"\"))","v":""},{"$f":"IF(OR(D33=\"\",E33=\"\",F33=\"\"),\"\",IF(C33<>\"\",F33/(G33*E33),\"\"))","v":""},{"$f":"IF(OR(D33=\"\",E33=\"\",F33=\"\"),\"\",IF(AND(H33>0,H33<=Experiencia1),Puntajes!$D$4,IF(AND(H33>Experiencia1,H33<=Experiencia2),Puntajes!$D$5,IF(AND(H33>Experiencia2,H33<=Experiencia3),Puntajes!$D$6,IF(H33>Experiencia3,Puntajes!$D$7,0)))))","v":""}]
[null,null,{"$f":"+'Capacidad Financiera'!B37","v":""},{"$f":"IF(ISERROR(VLOOKUP(C34,'Capacidad Financiera'!$B$12:$X$62720,2,0)),\"\",VLOOKUP(C34,'Capacidad Financiera'!$B$12:$X$3580,2,0))","v":0},{"$f":"IF(ISERROR(VLOOKUP(C34,'Capacidad Financiera'!$B$12:$X$62720,3,0)),\"\",VLOOKUP(C34,'Capacidad Financiera'!$B$12:$X$62720,3,0))","v":0},null,{"$f":"IF(OR(D34=\"\",E34=\"\",F34=\"\"),\"\",IF(C34<>\"\",IF(ISERROR(VLOOKUP($A$10,POA!$A$2:$D$25,2,0)),\"\",VLOOKUP($A$10,POA!$A$2:$D$25,2,0)),\"\"))","v":""},"",{"$f":"IF(OR(D34=\"\",E34=\"\",F34=\"\"),\"\",IF(AND(H34>0,H34<=Experiencia1),Puntajes!$D$4,IF(AND(H34>Experiencia1,H34<=Experiencia2),Puntajes!$D$5,IF(AND(H34>Experiencia2,H34<=Experiencia3),Puntajes!$D$6,IF(H34>Experiencia3,Puntajes!$D$7,0)))))","v":""}]
[null,null,{"$f":"+'Capacidad Financiera'!B38","v":""},{"$f":"IF(ISERROR(VLOOKUP(C35,'Capacidad Financiera'!$B$12:$X$62720,2,0)),\"\",VLOOKUP(C35,'Capacidad Financiera'!$B$12:$X$3580,2,0))","v":0},{"$f":"IF(ISERROR(VLOOKUP(C35,'Capacidad Financiera'!$B$12:$X$62720,3,0)),\"\",VLOOKUP(C35,'Capacidad Financiera'!$B$12:$X$62720,3,0))","v":0},null,{"$f":"IF(OR(D35=\"\",E35=\"\",F35=\"\"),\"\",IF(C35<>\"\",IF(ISERROR(VLOOKUP($A$10,POA!$A$2:$D$25,2,0)),\"\",VLOOKUP($A$10,POA!$A$2:$D$25,2,0)),\"\"))","v":""},"",{"$f":"IF(OR(D35=\"\",E35=\"\",F35=\"\"),\"\",IF(AND(H35>0,H35<=Experiencia1),Puntajes!$D$4,IF(AND(H35>Experiencia1,H35<=Experiencia2),Puntajes!$D$5,IF(AND(H35>Experiencia2,H35<=Experiencia3),Puntajes!$D$6,IF(H35>Experiencia3,Puntajes!$D$7,0)))))","v":""}]
[null,null,{"$f":"+'Capacidad Financiera'!B39","v":""},{"$f":"IF(ISERROR(VLOOKUP(C36,'Capacidad Financiera'!$B$12:$X$62720,2,0)),\"\",VLOOKUP(C36,'Capacidad Financiera'!$B$12:$X$3580,2,0))","v":0},{"$f":"IF(ISERROR(VLOOKUP(C36,'Capacidad Financiera'!$B$12:$X$62720,3,0)),\"\",VLOOKUP(C36,'Capacidad Financiera'!$B$12:$X$62720,3,0))","v":0},null,{"$f":"IF(OR(D36=\"\",E36=\"\",F36=\"\"),\"\",IF(C36<>\"\",IF(ISERROR(VLOOKUP($A$10,POA!$A$2:$D$25,2,0)),\"\",VLOOKUP($A$10,POA!$A$2:$D$25,2,0)),\"\"))","v":""},"",{"$f":"IF(OR(D36=\"\",E36=\"\",F36=\"\"),\"\",IF(AND(H36>0,H36<=Experiencia1),Puntajes!$D$4,IF(AND(H36>Experiencia1,H36<=Experiencia2),Puntajes!$D$5,IF(AND(H36>Experiencia2,H36<=Experiencia3),Puntajes!$D$6,IF(H36>Experiencia3,Puntajes!$D$7,0)))))","v":""}]
[null,null,{"$f":"+'Capacidad Financiera'!B40","v":""},{"$f":"IF(ISERROR(VLOOKUP(C37,'Capacidad Financiera'!$B$12:$X$62720,2,0)),\"\",VLOOKUP(C37,'Capacidad Financiera'!$B$12:$X$3580,2,0))","v":0},{"$f":"IF(ISERROR(VLOOKUP(C37,'Capacidad Financiera'!$B$12:$X$62720,3,0)),\"\",VLOOKUP(C37,'Capacidad Financiera'!$B$12:$X$62720,3,0))","v":0},null,{"$f":"IF(OR(D37=\"\",E37=\"\",F37=\"\"),\"\",IF(C37<>\"\",IF(ISERROR(VLOOKUP($A$10,POA!$A$2:$D$25,2,0)),\"\",VLOOKUP($A$10,POA!$A$2:$D$25,2,0)),\"\"))","v":""},"",{"$f":"IF(OR(D37=\"\",E37=\"\",F37=\"\"),\"\",IF(AND(H37>0,H37<=Experiencia1),Puntajes!$D$4,IF(AND(H37>Experiencia1,H37<=Experiencia2),Puntajes!$D$5,IF(AND(H37>Experiencia2,H37<=Experiencia3),Puntajes!$D$6,IF(H37>Experiencia3,Puntajes!$D$7,0)))))","v":""}]
[null,null,{"$f":"+'Capacidad Financiera'!B41","v":""},{"$f":"IF(ISERROR(VLOOKUP(C38,'Capacidad Financiera'!$B$12:$X$62720,2,0)),\"\",VLOOKUP(C38,'Capacidad Financiera'!$B$12:$X$3580,2,0))","v":0},{"$f":"IF(ISERROR(VLOOKUP(C38,'Capacidad Financiera'!$B$12:$X$62720,3,0)),\"\",VLOOKUP(C38,'Capacidad Financiera'!$B$12:$X$62720,3,0))","v":0},null,{"$f":"IF(OR(D38=\"\",E38=\"\",F38=\"\"),\"\",IF(C38<>\"\",IF(ISERROR(VLOOKUP($A$10,POA!$A$2:$D$25,2,0)),\"\",VLOOKUP($A$10,POA!$A$2:$D$25,2,0)),\"\"))","v":""},"",{"$f":"IF(OR(D38=\"\",E38=\"\",F38=\"\"),\"\",IF(AND(H38>0,H38<=Experiencia1),Puntajes!$D$4,IF(AND(H38>Experiencia1,H38<=Experiencia2),Puntajes!$D$5,IF(AND(H38>Experiencia2,H38<=Experiencia3),Puntajes!$D$6,IF(H38>Experiencia3,Puntajes!$D$7,0)))))","v":""}]
[null,null,{"$f":"+'Capacidad Financiera'!B42","v":""},{"$f":"IF(ISERROR(VLOOKUP(C39,'Capacidad Financiera'!$B$12:$X$62720,2,0)),\"\",VLOOKUP(C39,'Capacidad Financiera'!$B$12:$X$3580,2,0))","v":0},{"$f":"IF(ISERROR(VLOOKUP(C39,'Capacidad Financiera'!$B$12:$X$62720,3,0)),\"\",VLOOKUP(C39,'Capacidad Financiera'!$B$12:$X$62720,3,0))","v":0},null,{"$f":"IF(OR(D39=\"\",E39=\"\",F39=\"\"),\"\",IF(C39<>\"\",IF(ISERROR(VLOOKUP($A$10,POA!$A$2:$D$25,2,0)),\"\",VLOOKUP($A$10,POA!$A$2:$D$25,2,0)),\"\"))","v":""},"",{"$f":"IF(OR(D39=\"\",E39=\"\",F39=\"\"),\"\",IF(AND(H39>0,H39<=Experiencia1),Puntajes!$D$4,IF(AND(H39>Experiencia1,H39<=Experiencia2),Puntajes!$D$5,IF(AND(H39>Experiencia2,H39<=Experiencia3),Puntajes!$D$6,IF(H39>Experiencia3,Puntajes!$D$7,0)))))","v":""}]
[null,null,{"$f":"+'Capacidad Financiera'!B43","v":""},{"$f":"IF(ISERROR(VLOOKUP(C40,'Capacidad Financiera'!$B$12:$X$62720,2,0)),\"\",VLOOKUP(C40,'Capacidad Financiera'!$B$12:$X$3580,2,0))","v":0},{"$f":"IF(ISERROR(VLOOKUP(C40,'Capacidad Financiera'!$B$12:$X$62720,3,0)),\"\",VLOOKUP(C40,'Capacidad Financiera'!$B$12:$X$62720,3,0))","v":0},null,{"$f":"IF(OR(D40=\"\",E40=\"\",F40=\"\"),\"\",IF(C40<>\"\",IF(ISERROR(VLOOKUP($A$10,POA!$A$2:$D$25,2,0)),\"\",VLOOKUP($A$10,POA!$A$2:$D$25,2,0)),\"\"))","v":""},"",{"$f":"IF(OR(D40=\"\",E40=\"\",F40=\"\"),\"\",IF(AND(H40>0,H40<=Experiencia1),Puntajes!$D$4,IF(AND(H40>Experiencia1,H40<=Experiencia2),Puntajes!$D$5,IF(AND(H40>Experiencia2,H40<=Experiencia3),Puntajes!$D$6,IF(H40>Experiencia3,Puntajes!$D$7,0)))))","v":""}]
[null,null,{"$f":"+'Capacidad Financiera'!B44","v":""},{"$f":"IF(ISERROR(VLOOKUP(C41,'Capacidad Financiera'!$B$12:$X$62720,2,0)),\"\",VLOOKUP(C41,'Capacidad Financiera'!$B$12:$X$3580,2,0))","v":0},{"$f":"IF(ISERROR(VLOOKUP(C41,'Capacidad Financiera'!$B$12:$X$62720,3,0)),\"\",VLOOKUP(C41,'Capacidad Financiera'!$B$12:$X$62720,3,0))","v":0},null,{"$f":"IF(OR(D41=\"\",E41=\"\",F41=\"\"),\"\",IF(C41<>\"\",IF(ISERROR(VLOOKUP($A$10,POA!$A$2:$D$25,2,0)),\"\",VLOOKUP($A$10,POA!$A$2:$D$25,2,0)),\"\"))","v":""},"",{"$f":"IF(OR(D41=\"\",E41=\"\",F41=\"\"),\"\",IF(AND(H41>0,H41<=Experiencia1),Puntajes!$D$4,IF(AND(H41>Experiencia1,H41<=Experiencia2),Puntajes!$D$5,IF(AND(H41>Experiencia2,H41<=Experiencia3),Puntajes!$D$6,IF(H41>Experiencia3,Puntajes!$D$7,0)))))","v":""}]
[null,null,4,{"$f":"IF(ISERROR(VLOOKUP(C42,'Capacidad Financiera'!$B$12:$X$62720,2,0)),\"\",VLOOKUP(C42,'Capacidad Financiera'!$B$12:$X$3580,2,0))","v":"CONSORCIO IPV"},{"$f":"IF(ISERROR(VLOOKUP(C42,'Capacidad Financiera'!$B$12:$X$62720,3,0)),\"\",VLOOKUP(C42,'Capacidad Financiera'!$B$12:$X$62720,3,0))","v":1},null,{"$f":"IF(OR(D42=\"\",E42=\"\",F42=\"\"),\"\",IF(C43=\"\",IF(C42<>\"\",IF(ISERROR(VLOOKUP($A$10,POA!$A$2:$D$25,2,0)),\"\",VLOOKUP($A$10,POA!$A$2:$D$25,2,0)),\"\"),\"\"))","v":""},{"$f":"IF(OR(D42=\"\",E42=\"\",F42=\"\"),\"\",IF(C43=\"\",IF(C42<>\"\",F42/G42,\"\"),\"\"))","v":""},{"$f":"IF(C43=\"\",IF(F42=\"\",\"\",IF(AND(H42>0,H42<=Experiencia1),Puntajes!$D$4,IF(AND(H42>Experiencia1,H42<=Experiencia2),Puntajes!$D$5,IF(AND(H42>Experiencia2,H42<=Experiencia3),Puntajes!$D$6,IF(H42>Experiencia3,Puntajes!$D$7,0))))),\"\")","v":""}]
[null,null,{"$f":"+'Capacidad Financiera'!B46","v":4.0999999999999996},{"$f":"IF(ISERROR(VLOOKUP(C43,'Capacidad Financiera'!$B$12:$X$62720,2,0)),\"\",VLOOKUP(C43,'Capacidad Financiera'!$B$12:$X$3580,2,0))","v":"INGENIERIA DE PUENTES Y VIAS S.A.S."},{"$f":"IF(ISERROR(VLOOKUP(C43,'Capacidad Financiera'!$B$12:$X$62720,3,0)),\"\",VLOOKUP(C43,'Capacidad Financiera'!$B$12:$X$62720,3,0))","v":0.3},23970956033.639999,{"$f":"IF(OR(D43=\"\",E43=\"\",F43=\"\"),\"\",IF(C43<>\"\",IF(ISERROR(VLOOKUP($A$10,POA!$A$2:$D$25,2,0)),\"\",VLOOKUP($A$10,POA!$A$2:$D$25,2,0)),\"\"))","v":4167150295},{"$f":"IF(OR(D43=\"\",E43=\"\",F43=\"\"),\"\",IF(C43<>\"\",F43/(G43*E43),\"\"))","v":19.174539222804778},{"$f":"IF(OR(D43=\"\",E43=\"\",F43=\"\"),\"\",IF(AND(H43>0,H43<=Experiencia1),Puntajes!$D$4,IF(AND(H43>Experiencia1,H43<=Experiencia2),Puntajes!$D$5,IF(AND(H43>Experiencia2,H43<=Experiencia3),Puntajes!$D$6,IF(H43>Experiencia3,Puntajes!$D$7,0)))))","v":120}]
[null,null,{"$f":"+'Capacidad Financiera'!B47","v":4.1999999999999993},{"$f":"IF(ISERROR(VLOOKUP(C44,'Capacidad Financiera'!$B$12:$X$62720,2,0)),\"\",VLOOKUP(C44,'Capacidad Financiera'!$B$12:$X$3580,2,0))","v":"RENAN CARDOZO CARDOZO"},{"$f":"IF(ISERROR(VLOOKUP(C44,'Capacidad Financiera'!$B$12:$X$62720,3,0)),\"\",VLOOKUP(C44,'Capacidad Financiera'!$B$12:$X$62720,3,0))","v":0.2},23254578156.040001,{"$f":"IF(OR(D44=\"\",E44=\"\",F44=\"\"),\"\",IF(C44<>\"\",IF(ISERROR(VLOOKUP($A$10,POA!$A$2:$D$25,2,0)),\"\",VLOOKUP($A$10,POA!$A$2:$D$25,2,0)),\"\"))","v":4167150295},{"$f":"IF(OR(D44=\"\",E44=\"\",F44=\"\"),\"\",IF(C44<>\"\",F44/(G44*E44),\"\"))","v":27.902255150170916},{"$f":"IF(OR(D44=\"\",E44=\"\",F44=\"\"),\"\",IF(AND(H44>0,H44<=Experiencia1),Puntajes!$D$4,IF(AND(H44>Experiencia1,H44<=Experiencia2),Puntajes!$D$5,IF(AND(H44>Experiencia2,H44<=Experiencia3),Puntajes!$D$6,IF(H44>Experiencia3,Puntajes!$D$7,0)))))","v":120}]
[null,null,{"$f":"+'Capacidad Financiera'!B48","v":4.2999999999999989},{"$f":"IF(ISERROR(VLOOKUP(C45,'Capacidad Financiera'!$B$12:$X$62720,2,0)),\"\",VLOOKUP(C45,'Capacidad Financiera'!$B$12:$X$3580,2,0))","v":"OMAR CARDOZO CARDOZO"},{"$f":"IF(ISERROR(VLOOKUP(C45,'Capacidad Financiera'!$B$12:$X$62720,3,0)),\"\",VLOOKUP(C45,'Capacidad Financiera'!$B$12:$X$62720,3,0))","v":0.2},1201911233.5999999,{"$f":"IF(OR(D45=\"\",E45=\"\",F45=\"\"),\"\",IF(C45<>\"\",IF(ISERROR(VLOOKUP($A$10,POA!$A$2:$D$25,2,0)),\"\",VLOOKUP($A$10,POA!$A$2:$D$25,2,0)),\"\"))","v":4167150295},1.442126091590848,{"$f":"IF(OR(D45=\"\",E45=\"\",F45=\"\"),\"\",IF(AND(H45>0,H45<=Experiencia1),Puntajes!$D$4,IF(AND(H45>Experiencia1,H45<=Experiencia2),Puntajes!$D$5,IF(AND(H45>Experiencia2,H45<=Experiencia3),Puntajes!$D$6,IF(H45>Experiencia3,Puntajes!$D$7,0)))))","v":60}]
[null,null,{"$f":"+'Capacidad Financiera'!B49","v":4.3999999999999986},{"$f":"IF(ISERROR(VLOOKUP(C46,'Capacidad Financiera'!$B$12:$X$62720,2,0)),\"\",VLOOKUP(C46,'Capacidad Financiera'!$B$12:$X$3580,2,0))","v":"LUIS MORENO RUBIO"},{"$f":"IF(ISERROR(VLOOKUP(C46,'Capacidad Financiera'!$B$12:$X$62720,3,0)),\"\",VLOOKUP(C46,'Capacidad Financiera'!$B$12:$X$62720,3,0))","v":0.3},22072687148.509998,{"$f":"IF(OR(D46=\"\",E46=\"\",F46=\"\"),\"\",IF(C46<>\"\",IF(ISERROR(VLOOKUP($A$10,POA!$A$2:$D$25,2,0)),\"\",VLOOKUP($A$10,POA!$A$2:$D$25,2,0)),\"\"))","v":4167150295},17.656100361114206,{"$f":"IF(OR(D46=\"\",E46=\"\",F46=\"\"),\"\",IF(AND(H46>0,H46<=Experiencia1),Puntajes!$D$4,IF(AND(H46>Experiencia1,H46<=Experiencia2),Puntajes!$D$5,IF(AND(H46>Experiencia2,H46<=Experiencia3),Puntajes!$D$6,IF(H46>Experiencia3,Puntajes!$D$7,0)))))","v":120}]
[null,null,{"$f":"+'Capacidad Financiera'!B50","v":""},{"$f":"IF(ISERROR(VLOOKUP(C47,'Capacidad Financiera'!$B$12:$X$62720,2,0)),\"\",VLOOKUP(C47,'Capacidad Financiera'!$B$12:$X$3580,2,0))","v":0},{"$f":"IF(ISERROR(VLOOKUP(C47,'Capacidad Financiera'!$B$12:$X$62720,3,0)),\"\",VLOOKUP(C47,'Capacidad Financiera'!$B$12:$X$62720,3,0))","v":0},null,{"$f":"IF(OR(D47=\"\",E47=\"\",F47=\"\"),\"\",IF(C47<>\"\",IF(ISERROR(VLOOKUP($A$10,POA!$A$2:$D$25,2,0)),\"\",VLOOKUP($A$10,POA!$A$2:$D$25,2,0)),\"\"))","v":""},"",{"$f":"IF(OR(D47=\"\",E47=\"\",F47=\"\"),\"\",IF(AND(H47>0,H47<=Experiencia1),Puntajes!$D$4,IF(AND(H47>Experiencia1,H47<=Experiencia2),Puntajes!$D$5,IF(AND(H47>Experiencia2,H47<=Experiencia3),Puntajes!$D$6,IF(H47>Experiencia3,Puntajes!$D$7,0)))))","v":""}]
[null,null,{"$f":"+'Capacidad Financiera'!B51","v":""},{"$f":"IF(ISERROR(VLOOKUP(C48,'Capacidad Financiera'!$B$12:$X$62720,2,0)),\"\",VLOOKUP(C48,'Capacidad Financiera'!$B$12:$X$3580,2,0))","v":0},{"$f":"IF(ISERROR(VLOOKUP(C48,'Capacidad Financiera'!$B$12:$X$62720,3,0)),\"\",VLOOKUP(C48,'Capacidad Financiera'!$B$12:$X$62720,3,0))","v":0},null,{"$f":"IF(OR(D48=\"\",E48=\"\",F48=\"\"),\"\",IF(C48<>\"\",IF(ISERROR(VLOOKUP($A$10,POA!$A$2:$D$25,2,0)),\"\",VLOOKUP($A$10,POA!$A$2:$D$25,2,0)),\"\"))","v":""},"",{"$f":"IF(OR(D48=\"\",E48=\"\",F48=\"\"),\"\",IF(AND(H48>0,H48<=Experiencia1),Puntajes!$D$4,IF(AND(H48>Experiencia1,H48<=Experiencia2),Puntajes!$D$5,IF(AND(H48>Experiencia2,H48<=Experiencia3),Puntajes!$D$6,IF(H48>Experiencia3,Puntajes!$D$7,0)))))","v":""}]
[null,null,{"$f":"+'Capacidad Financiera'!B52","v":""},{"$f":"IF(ISERROR(VLOOKUP(C49,'Capacidad Financiera'!$B$12:$X$62720,2,0)),\"\",VLOOKUP(C49,'Capacidad Financiera'!$B$12:$X$3580,2,0))","v":0},{"$f":"IF(ISERROR(VLOOKUP(C49,'Capacidad Financiera'!$B$12:$X$62720,3,0)),\"\",VLOOKUP(C49,'Capacidad Financiera'!$B$12:$X$62720,3,0))","v":0},null,{"$f":"IF(OR(D49=\"\",E49=\"\",F49=\"\"),\"\",IF(C49<>\"\",IF(ISERROR(VLOOKUP($A$10,POA!$A$2:$D$25,2,0)),\"\",VLOOKUP($A$10,POA!$A$2:$D$25,2,0)),\"\"))","v":""},"",{"$f":"IF(OR(D49=\"\",E49=\"\",F49=\"\"),\"\",IF(AND(H49>0,H49<=Experiencia1),Puntajes!$D$4,IF(AND(H49>Experiencia1,H49<=Experiencia2),Puntajes!$D$5,IF(AND(H49>Experiencia2,H49<=Experiencia3),Puntajes!$D$6,IF(H49>Experiencia3,Puntajes!$D$7,0)))))","v":""}]
[null,null,{"$f":"+'Capacidad Financiera'!B53","v":""},{"$f":"IF(ISERROR(VLOOKUP(C50,'Capacidad Financiera'!$B$12:$X$62720,2,0)),\"\",VLOOKUP(C50,'Capacidad Financiera'!$B$12:$X$3580,2,0))","v":0},{"$f":"IF(ISERROR(VLOOKUP(C50,'Capacidad Financiera'!$B$12:$X$62720,3,0)),\"\",VLOOKUP(C50,'Capacidad Financiera'!$B$12:$X$62720,3,0))","v":0},null,{"$f":"IF(OR(D50=\"\",E50=\"\",F50=\"\"),\"\",IF(C50<>\"\",IF(ISERROR(VLOOKUP($A$10,POA!$A$2:$D$25,2,0)),\"\",VLOOKUP($A$10,POA!$A$2:$D$25,2,0)),\"\"))","v":""},"",{"$f":"IF(OR(D50=\"\",E50=\"\",F50=\"\"),\"\",IF(AND(H50>0,H50<=Experiencia1),Puntajes!$D$4,IF(AND(H50>Experiencia1,H50<=Experiencia2),Puntajes!$D$5,IF(AND(H50>Experiencia2,H50<=Experiencia3),Puntajes!$D$6,IF(H50>Experiencia3,Puntajes!$D$7,0)))))","v":""}]
[null,null,{"$f":"+'Capacidad Financiera'!B54","v":""},{"$f":"IF(ISERROR(VLOOKUP(C51,'Capacidad Financiera'!$B$12:$X$62720,2,0)),\"\",VLOOKUP(C51,'Capacidad Financiera'!$B$12:$X$3580,2,0))","v":0},{"$f":"IF(ISERROR(VLOOKUP(C51,'Capacidad Financiera'!$B$12:$X$62720,3,0)),\"\",VLOOKUP(C51,'Capacidad Financiera'!$B$12:$X$62720,3,0))","v":0},null,{"$f":"IF(OR(D51=\"\",E51=\"\",F51=\"\"),\"\",IF(C51<>\"\",IF(ISERROR(VLOOKUP($A$10,POA!$A$2:$D$25,2,0)),\"\",VLOOKUP($A$10,POA!$A$2:$D$25,2,0)),\"\"))","v":""},"",{"$f":"IF(OR(D51=\"\",E51=\"\",F51=\"\"),\"\",IF(AND(H51>0,H51<=Experiencia1),Puntajes!$D$4,IF(AND(H51>Experiencia1,H51<=Experiencia2),Puntajes!$D$5,IF(AND(H51>Experiencia2,H51<=Experiencia3),Puntajes!$D$6,IF(H51>Experiencia3,Puntajes!$D$7,0)))))","v":""}]
[null,null,{"$f":"+'Capacidad Financiera'!B55","v":""},{"$f":"IF(ISERROR(VLOOKUP(C52,'Capacidad Financiera'!$B$12:$X$62720,2,0)),\"\",VLOOKUP(C52,'Capacidad Financiera'!$B$12:$X$3580,2,0))","v":0},{"$f":"IF(ISERROR(VLOOKUP(C52,'Capacidad Financiera'!$B$12:$X$62720,3,0)),\"\",VLOOKUP(C52,'Capacidad Financiera'!$B$12:$X$62720,3,0))","v":0},null,{"$f":"IF(OR(D52=\"\",E52=\"\",F52=\"\"),\"\",IF(C52<>\"\",IF(ISERROR(VLOOKUP($A$10,POA!$A$2:$D$25,2,0)),\"\",VLOOKUP($A$10,POA!$A$2:$D$25,2,0)),\"\"))","v":""},"",{"$f":"IF(OR(D52=\"\",E52=\"\",F52=\"\"),\"\",IF(AND(H52>0,H52<=Experiencia1),Puntajes!$D$4,IF(AND(H52>Experiencia1,H52<=Experiencia2),Puntajes!$D$5,IF(AND(H52>Experiencia2,H52<=Experiencia3),Puntajes!$D$6,IF(H52>Experiencia3,Puntajes!$D$7,0)))))","v":""}]
[null,null,5,{"$f":"IF(ISERROR(VLOOKUP(C53,'Capacidad Financiera'!$B$12:$X$62720,2,0)),\"\",VLOOKUP(C53,'Capacidad Financiera'!$B$12:$X$3580,2,0))","v":"CONSORCIO VIAS COLOMBIA"},{"$f":"IF(ISERROR(VLOOKUP(C53,'Capacidad Financiera'!$B$12:$X$62720,3,0)),\"\",VLOOKUP(C53,'Capacidad Financiera'!$B$12:$X$62720,3,0))","v":1},null,{"$f":"IF(OR(D53=\"\",E53=\"\",F53=\"\"),\"\",IF(C54=\"\",IF(C53<>\"\",IF(ISERROR(VLOOKUP($A$10,POA!$A$2:$D$25,2,0)),\"\",VLOOKUP($A$10,POA!$A$2:$D$25,2,0)),\"\"),\"\"))","v":""},{"$f":"IF(OR(D53=\"\",E53=\"\",F53=\"\"),\"\",IF(C54=\"\",IF(C53<>\"\",F53/G53,\"\"),\"\"))","v":""},{"$f":"IF(C54=\"\",IF(F53=\"\",\"\",IF(AND(H53>0,H53<=Experiencia1),Puntajes!$D$4,IF(AND(H53>Experiencia1,H53<=Experiencia2),Puntajes!$D$5,IF(AND(H53>Experiencia2,H53<=Experiencia3),Puntajes!$D$6,IF(H53>Experiencia3,Puntajes!$D$7,0))))),\"\")","v":""}]
[null,null,{"$f":"+'Capacidad Financiera'!B57","v":5.0999999999999996},{"$f":"IF(ISERROR(VLOOKUP(C54,'Capacidad Financiera'!$B$12:$X$62720,2,0)),\"\",VLOOKUP(C54,'Capacidad Financiera'!$B$12:$X$3580,2,0))","v":"JV INGENIERIA Y CONSTRUCCIONES S.A.S."},{"$f":"IF(ISERROR(VLOOKUP(C54,'Capacidad Financiera'!$B$12:$X$62720,3,0)),\"\",VLOOKUP(C54,'Capacidad Financiera'!$B$12:$X$62720,3,0))","v":0.6},16071327272,{"$f":"IF(OR(D54=\"\",E54=\"\",F54=\"\"),\"\",IF(C54<>\"\",IF(ISERROR(VLOOKUP($A$10,POA!$A$2:$D$25,2,0)),\"\",VLOOKUP($A$10,POA!$A$2:$D$25,2,0)),\"\"))","v":4167150295},{"$f":"IF(OR(D54=\"\",E54=\"\",F54=\"\"),\"\",IF(C54<>\"\",F54/(G54*E54),\"\"))","v":6.4277848306724756},{"$f":"IF(OR(D54=\"\",E54=\"\",F54=\"\"),\"\",IF(AND(H54>0,H54<=Experiencia1),Puntajes!$D$4,IF(AND(H54>Experiencia1,H54<=Experiencia2),Puntajes!$D$5,IF(AND(H54>Experiencia2,H54<=Experiencia3),Puntajes!$D$6,IF(H54>Experiencia3,Puntajes!$D$7,0)))))","v":100}]
[null,null,{"$f":"+'Capacidad Financiera'!B58","v":5.1999999999999993},{"$f":"IF(ISERROR(VLOOKUP(C55,'Capacidad Financiera'!$B$12:$X$62720,2,0)),\"\",VLOOKUP(C55,'Capacidad Financiera'!$B$12:$X$3580,2,0))","v":"EXCAVACIONES JOBEPA SL SUCURSAL COLOMBIA"},{"$f":"IF(ISERROR(VLOOKUP(C55,'Capacidad Financiera'!$B$12:$X$62720,3,0)),\"\",VLOOKUP(C55,'Capacidad Financiera'!$B$12:$X$62720,3,0))","v":0.2},14660461816,{"$f":"IF(OR(D55=\"\",E55=\"\",F55=\"\"),\"\",IF(C55<>\"\",IF(ISERROR(VLOOKUP($A$10,POA!$A$2:$D$25,2,0)),\"\",VLOOKUP($A$10,POA!$A$2:$D$25,2,0)),\"\"))","v":4167150295},{"$f":"IF(OR(D55=\"\",E55=\"\",F55=\"\"),\"\",IF(C55<>\"\",F55/(G55*E55),\"\"))","v":17.590512434349336},{"$f":"IF(OR(D55=\"\",E55=\"\",F55=\"\"),\"\",IF(AND(H55>0,H55<=Experiencia1),Puntajes!$D$4,IF(AND(H55>Experiencia1,H55<=Experiencia2),Puntajes!$D$5,IF(AND(H55>Experiencia2,H55<=Experiencia3),Puntajes!$D$6,IF(H55>Experiencia3,Puntajes!$D$7,0)))))","v":120}]
[null,null,{"$f":"+'Capacidad Financiera'!B59","v":5.2999999999999989},{"$f":"IF(ISERROR(VLOOKUP(C56,'Capacidad Financiera'!$B$12:$X$62720,2,0)),\"\",VLOOKUP(C56,'Capacidad Financiera'!$B$12:$X$3580,2,0))","v":"VIALOBRA SL SUCURSAL COLOMBIA"},{"$f":"IF(ISERROR(VLOOKUP(C56,'Capacidad Financiera'!$B$12:$X$62720,3,0)),\"\",VLOOKUP(C56,'Capacidad Financiera'!$B$12:$X$62720,3,0))","v":0.2},93244264010.740005,{"$f":"IF(OR(D56=\"\",E56=\"\",F56=\"\"),\"\",IF(C56<>\"\",IF(ISERROR(VLOOKUP($A$10,POA!$A$2:$D$25,2,0)),\"\",VLOOKUP($A$10,POA!$A$2:$D$25,2,0)),\"\"))","v":4167150295},111.88013079660234,{"$f":"IF(OR(D56=\"\",E56=\"\",F56=\"\"),\"\",IF(AND(H56>0,H56<=Experiencia1),Puntajes!$D$4,IF(AND(H56>Experiencia1,H56<=Experiencia2),Puntajes!$D$5,IF(AND(H56>Experiencia2,H56<=Experiencia3),Puntajes!$D$6,IF(H56>Experiencia3,Puntajes!$D$7,0)))))","v":120}]
[null,null,{"$f":"+'Capacidad Financiera'!B60","v":""},{"$f":"IF(ISERROR(VLOOKUP(C57,'Capacidad Financiera'!$B$12:$X$62720,2,0)),\"\",VLOOKUP(C57,'Capacidad Financiera'!$B$12:$X$3580,2,0))","v":0},{"$f":"IF(ISERROR(VLOOKUP(C57,'Capacidad Financiera'!$B$12:$X$62720,3,0)),\"\",VLOOKUP(C57,'Capacidad Financiera'!$B$12:$X$62720,3,0))","v":0},null,{"$f":"IF(OR(D57=\"\",E57=\"\",F57=\"\"),\"\",IF(C57<>\"\",IF(ISERROR(VLOOKUP($A$10,POA!$A$2:$D$25,2,0)),\"\",VLOOKUP($A$10,POA!$A$2:$D$25,2,0)),\"\"))","v":""},"",{"$f":"IF(OR(D57=\"\",E57=\"\",F57=\"\"),\"\",IF(AND(H57>0,H57<=Experiencia1),Puntajes!$D$4,IF(AND(H57>Experiencia1,H57<=Experiencia2),Puntajes!$D$5,IF(AND(H57>Experiencia2,H57<=Experiencia3),Puntajes!$D$6,IF(H57>Experiencia3,Puntajes!$D$7,0)))))","v":""}]
[null,null,{"$f":"+'Capacidad Financiera'!B61","v":""},{"$f":"IF(ISERROR(VLOOKUP(C58,'Capacidad Financiera'!$B$12:$X$62720,2,0)),\"\",VLOOKUP(C58,'Capacidad Financiera'!$B$12:$X$3580,2,0))","v":0},{"$f":"IF(ISERROR(VLOOKUP(C58,'Capacidad Financiera'!$B$12:$X$62720,3,0)),\"\",VLOOKUP(C58,'Capacidad Financiera'!$B$12:$X$62720,3,0))","v":0},null,{"$f":"IF(OR(D58=\"\",E58=\"\",F58=\"\"),\"\",IF(C58<>\"\",IF(ISERROR(VLOOKUP($A$10,POA!$A$2:$D$25,2,0)),\"\",VLOOKUP($A$10,POA!$A$2:$D$25,2,0)),\"\"))","v":""},"",{"$f":"IF(OR(D58=\"\",E58=\"\",F58=\"\"),\"\",IF(AND(H58>0,H58<=Experiencia1),Puntajes!$D$4,IF(AND(H58>Experiencia1,H58<=Experiencia2),Puntajes!$D$5,IF(AND(H58>Experiencia2,H58<=Experiencia3),Puntajes!$D$6,IF(H58>Experiencia3,Puntajes!$D$7,0)))))","v":""}]
[null,null,{"$f":"+'Capacidad Financiera'!B62","v":""},{"$f":"IF(ISERROR(VLOOKUP(C59,'Capacidad Financiera'!$B$12:$X$62720,2,0)),\"\",VLOOKUP(C59,'Capacidad Financiera'!$B$12:$X$3580,2,0))","v":0},{"$f":"IF(ISERROR(VLOOKUP(C59,'Capacidad Financiera'!$B$12:$X$62720,3,0)),\"\",VLOOKUP(C59,'Capacidad Financiera'!$B$12:$X$62720,3,0))","v":0},null,{"$f":"IF(OR(D59=\"\",E59=\"\",F59=\"\"),\"\",IF(C59<>\"\",IF(ISERROR(VLOOKUP($A$10,POA!$A$2:$D$25,2,0)),\"\",VLOOKUP($A$10,POA!$A$2:$D$25,2,0)),\"\"))","v":""},"",{"$f":"IF(OR(D59=\"\",E59=\"\",F59=\"\"),\"\",IF(AND(H59>0,H59<=Experiencia1),Puntajes!$D$4,IF(AND(H59>Experiencia1,H59<=Experiencia2),Puntajes!$D$5,IF(AND(H59>Experiencia2,H59<=Experiencia3),Puntajes!$D$6,IF(H59>Experiencia3,Puntajes!$D$7,0)))))","v":""}]
[null,null,{"$f":"+'Capacidad Financiera'!B63","v":""},{"$f":"IF(ISERROR(VLOOKUP(C60,'Capacidad Financiera'!$B$12:$X$62720,2,0)),\"\",VLOOKUP(C60,'Capacidad Financiera'!$B$12:$X$3580,2,0))","v":0},{"$f":"IF(ISERROR(VLOOKUP(C60,'Capacidad Financiera'!$B$12:$X$62720,3,0)),\"\",VLOOKUP(C60,'Capacidad Financiera'!$B$12:$X$62720,3,0))","v":0},null,{"$f":"IF(OR(D60=\"\",E60=\"\",F60=\"\"),\"\",IF(C60<>\"\",IF(ISERROR(VLOOKUP($A$10,POA!$A$2:$D$25,2,0)),\"\",VLOOKUP($A$10,POA!$A$2:$D$25,2,0)),\"\"))","v":""},"",{"$f":"IF(OR(D60=\"\",E60=\"\",F60=\"\"),\"\",IF(AND(H60>0,H60<=Experiencia1),Puntajes!$D$4,IF(AND(H60>Experiencia1,H60<=Experiencia2),Puntajes!$D$5,IF(AND(H60>Experiencia2,H60<=Experiencia3),Puntajes!$D$6,IF(H60>Experiencia3,Puntajes!$D$7,0)))))","v":""}]
[null,null,{"$f":"+'Capacidad Financiera'!B64","v":""},{"$f":"IF(ISERROR(VLOOKUP(C61,'Capacidad Financiera'!$B$12:$X$62720,2,0)),\"\",VLOOKUP(C61,'Capacidad Financiera'!$B$12:$X$3580,2,0))","v":0},{"$f":"IF(ISERROR(VLOOKUP(C61,'Capacidad Financiera'!$B$12:$X$62720,3,0)),\"\",VLOOKUP(C61,'Capacidad Financiera'!$B$12:$X$62720,3,0))","v":0},null,{"$f":"IF(OR(D61=\"\",E61=\"\",F61=\"\"),\"\",IF(C61<>\"\",IF(ISERROR(VLOOKUP($A$10,POA!$A$2:$D$25,2,0)),\"\",VLOOKUP($A$10,POA!$A$2:$D$25,2,0)),\"\"))","v":""},"",{"$f":"IF(OR(D61=\"\",E61=\"\",F61=\"\"),\"\",IF(AND(H61>0,H61<=Experiencia1),Puntajes!$D$4,IF(AND(H61>Experiencia1,H61<=Experiencia2),Puntajes!$D$5,IF(AND(H61>Experiencia2,H61<=Experiencia3),Puntajes!$D$6,IF(H61>Experiencia3,Puntajes!$D$7,0)))))","v":""}]
[null,null,{"$f":"+'Capacidad Financiera'!B65","v":""},{"$f":"IF(ISERROR(VLOOKUP(C62,'Capacidad Financiera'!$B$12:$X$62720,2,0)),\"\",VLOOKUP(C62,'Capacidad Financiera'!$B$12:$X$3580,2,0))","v":0},{"$f":"IF(ISERROR(VLOOKUP(C62,'Capacidad Financiera'!$B$12:$X$62720,3,0)),\"\",VLOOKUP(C62,'Capacidad Financiera'!$B$12:$X$62720,3,0))","v":0},null,{"$f":"IF(OR(D62=\"\",E62=\"\",F62=\"\"),\"\",IF(C62<>\"\",IF(ISERROR(VLOOKUP($A$10,POA!$A$2:$D$25,2,0)),\"\",VLOOKUP($A$10,POA!$A$2:$D$25,2,0)),\"\"))","v":""},"",{"$f":"IF(OR(D62=\"\",E62=\"\",F62=\"\"),\"\",IF(AND(H62>0,H62<=Experiencia1),Puntajes!$D$4,IF(AND(H62>Experiencia1,H62<=Experiencia2),Puntajes!$D$5,IF(AND(H62>Experiencia2,H62<=Experiencia3),Puntajes!$D$6,IF(H62>Experiencia3,Puntajes!$D$7,0)))))","v":""}]
[null,null,{"$f":"+'Capacidad Financiera'!B66","v":""},{"$f":"IF(ISERROR(VLOOKUP(C63,'Capacidad Financiera'!$B$12:$X$62720,2,0)),\"\",VLOOKUP(C63,'Capacidad Financiera'!$B$12:$X$3580,2,0))","v":0},{"$f":"IF(ISERROR(VLOOKUP(C63,'Capacidad Financiera'!$B$12:$X$62720,3,0)),\"\",VLOOKUP(C63,'Capacidad Financiera'!$B$12:$X$62720,3,0))","v":0},null,{"$f":"IF(OR(D63=\"\",E63=\"\",F63=\"\"),\"\",IF(C63<>\"\",IF(ISERROR(VLOOKUP($A$10,POA!$A$2:$D$25,2,0)),\"\",VLOOKUP($A$10,POA!$A$2:$D$25,2,0)),\"\"))","v":""},"",{"$f":"IF(OR(D63=\"\",E63=\"\",F63=\"\"),\"\",IF(AND(H63>0,H63<=Experiencia1),Puntajes!$D$4,IF(AND(H63>Experiencia1,H63<=Experiencia2),Puntajes!$D$5,IF(AND(H63>Experiencia2,H63<=Experiencia3),Puntajes!$D$6,IF(H63>Experiencia3,Puntajes!$D$7,0)))))","v":""}]
[null,null,6,{"$f":"IF(ISERROR(VLOOKUP(C64,'Capacidad Financiera'!$B$12:$X$62720,2,0)),\"\",VLOOKUP(C64,'Capacidad Financiera'!$B$12:$X$3580,2,0))","v":"CONSORCIO SALITRE BRICEÑO"},{"$f":"IF(ISERROR(VLOOKUP(C64,'Capacidad Financiera'!$B$12:$X$62720,3,0)),\"\",VLOOKUP(C64,'Capacidad Financiera'!$B$12:$X$62720,3,0))","v":1},null,{"$f":"IF(OR(D64=\"\",E64=\"\",F64=\"\"),\"\",IF(C65=\"\",IF(C64<>\"\",IF(ISERROR(VLOOKUP($A$10,POA!$A$2:$D$25,2,0)),\"\",VLOOKUP($A$10,POA!$A$2:$D$25,2,0)),\"\"),\"\"))","v":""},{"$f":"IF(OR(D64=\"\",E64=\"\",F64=\"\"),\"\",IF(C65=\"\",IF(C64<>\"\",F64/G64,\"\"),\"\"))","v":""},{"$f":"IF(C65=\"\",IF(F64=\"\",\"\",IF(AND(H64>0,H64<=Experiencia1),Puntajes!$D$4,IF(AND(H64>Experiencia1,H64<=Experiencia2),Puntajes!$D$5,IF(AND(H64>Experiencia2,H64<=Experiencia3),Puntajes!$D$6,IF(H64>Experiencia3,Puntajes!$D$7,0))))),\"\")","v":""}]
["req anexo 1a",null,{"$f":"+'Capacidad Financiera'!B68","v":6.1},{"$f":"IF(ISERROR(VLOOKUP(C65,'Capacidad Financiera'!$B$12:$X$62720,2,0)),\"\",VLOOKUP(C65,'Capacidad Financiera'!$B$12:$X$3580,2,0))","v":"GEOCING S.A.S."},{"$f":"IF(ISERROR(VLOOKUP(C65,'Capacidad Financiera'!$B$12:$X$62720,3,0)),\"\",VLOOKUP(C65,'Capacidad Financiera'!$B$12:$X$62720,3,0))","v":0.5},null,{"$f":"IF(OR(D65=\"\",E65=\"\",F65=\"\"),\"\",IF(C65<>\"\",IF(ISERROR(VLOOKUP($A$10,POA!$A$2:$D$25,2,0)),\"\",VLOOKUP($A$10,POA!$A$2:$D$25,2,0)),\"\"))","v":""},{"$f":"IF(OR(D65=\"\",E65=\"\",F65=\"\"),\"\",IF(C65<>\"\",F65/(G65*E65),\"\"))","v":""},{"$f":"IF(OR(D65=\"\",E65=\"\",F65=\"\"),\"\",IF(AND(H65>0,H65<=Experiencia1),Puntajes!$D$4,IF(AND(H65>Experiencia1,H65<=Experiencia2),Puntajes!$D$5,IF(AND(H65>Experiencia2,H65<=Experiencia3),Puntajes!$D$6,IF(H65>Experiencia3,Puntajes!$D$7,0)))))","v":""}]
["req anexo 1a",null,{"$f":"+'Capacidad Financiera'!B69","v":6.1999999999999993},{"$f":"IF(ISERROR(VLOOKUP(C66,'Capacidad Financiera'!$B$12:$X$62720,2,0)),\"\",VLOOKUP(C66,'Capacidad Financiera'!$B$12:$X$3580,2,0))","v":"URBAMED INFRAESTRUCTURAS SLU"},{"$f":"IF(ISERROR(VLOOKUP(C66,'Capacidad Financiera'!$B$12:$X$62720,3,0)),\"\",VLOOKUP(C66,'Capacidad Financiera'!$B$12:$X$62720,3,0))","v":0.5},null,{"$f":"IF(OR(D66=\"\",E66=\"\",F66=\"\"),\"\",IF(C66<>\"\",IF(ISERROR(VLOOKUP($A$10,POA!$A$2:$D$25,2,0)),\"\",VLOOKUP($A$10,POA!$A$2:$D$25,2,0)),\"\"))","v":""},{"$f":"IF(OR(D66=\"\",E66=\"\",F66=\"\"),\"\",IF(C66<>\"\",F66/(G66*E66),\"\"))","v":""},{"$f":"IF(OR(D66=\"\",E66=\"\",F66=\"\"),\"\",IF(AND(H66>0,H66<=Experiencia1),Puntajes!$D$4,IF(AND(H66>Experiencia1,H66<=Experiencia2),Puntajes!$D$5,IF(AND(H66>Experiencia2,H66<=Experiencia3),Puntajes!$D$6,IF(H66>Experiencia3,Puntajes!$D$7,0)))))","v":""}]
[null,null,{"$f":"+'Capacidad Financiera'!B70","v":""},{"$f":"IF(ISERROR(VLOOKUP(C67,'Capacidad Financiera'!$B$12:$X$62720,2,0)),\"\",VLOOKUP(C67,'Capacidad Financiera'!$B$12:$X$3580,2,0))","v":0},{"$f":"IF(ISERROR(VLOOKUP(C67,'Capacidad Financiera'!$B$12:$X$62720,3,0)),\"\",VLOOKUP(C67,'Capacidad Financiera'!$B$12:$X$62720,3,0))","v":0},null,{"$f":"IF(OR(D67=\"\",E67=\"\",F67=\"\"),\"\",IF(C67<>\"\",IF(ISERROR(VLOOKUP($A$10,POA!$A$2:$D$25,2,0)),\"\",VLOOKUP($A$10,POA!$A$2:$D$25,2,0)),\"\"))","v":""},"",{"$f":"IF(OR(D67=\"\",E67=\"\",F67=\"\"),\"\",IF(AND(H67>0,H67<=Experiencia1),Puntajes!$D$4,IF(AND(H67>Experiencia1,H67<=Experiencia2),Puntajes!$D$5,IF(AND(H67>Experiencia2,H67<=Experiencia3),Puntajes!$D$6,IF(H67>Experiencia3,Puntajes!$D$7,0)))))","v":""}]
[null,null,{"$f":"+'Capacidad Financiera'!B71","v":""},{"$f":"IF(ISERROR(VLOOKUP(C68,'Capacidad Financiera'!$B$12:$X$62720,2,0)),\"\",VLOOKUP(C68,'Capacidad Financiera'!$B$12:$X$3580,2,0))","v":0},{"$f":"IF(ISERROR(VLOOKUP(C68,'Capacidad Financiera'!$B$12:$X$62720,3,0)),\"\",VLOOKUP(C68,'Capacidad Financiera'!$B$12:$X$62720,3,0))","v":0},null,{"$f":"IF(OR(D68=\"\",E68=\"\",F68=\"\"),\"\",IF(C68<>\"\",IF(ISERROR(VLOOKUP($A$10,POA!$A$2:$D$25,2,0)),\"\",VLOOKUP($A$10,POA!$A$2:$D$25,2,0)),\"\"))","v":""},"",{"$f":"IF(OR(D68=\"\",E68=\"\",F68=\"\"),\"\",IF(AND(H68>0,H68<=Experiencia1),Puntajes!$D$4,IF(AND(H68>Experiencia1,H68<=Experiencia2),Puntajes!$D$5,IF(AND(H68>Experiencia2,H68<=Experiencia3),Puntajes!$D$6,IF(H68>Experiencia3,Puntajes!$D$7,0)))))","v":""}]
[null,null,{"$f":"+'Capacidad Financiera'!B72","v":""},{"$f":"IF(ISERROR(VLOOKUP(C69,'Capacidad Financiera'!$B$12:$X$62720,2,0)),\"\",VLOOKUP(C69,'Capacidad Financiera'!$B$12:$X$3580,2,0))","v":0},{"$f":"IF(ISERROR(VLOOKUP(C69,'Capacidad Financiera'!$B$12:$X$62720,3,0)),\"\",VLOOKUP(C69,'Capacidad Financiera'!$B$12:$X$62720,3,0))","v":0},null,{"$f":"IF(OR(D69=\"\",E69=\"\",F69=\"\"),\"\",IF(C69<>\"\",IF(ISERROR(VLOOKUP($A$10,POA!$A$2:$D$25,2,0)),\"\",VLOOKUP($A$10,POA!$A$2:$D$25,2,0)),\"\"))","v":""},"",{"$f":"IF(OR(D69=\"\",E69=\"\",F69=\"\"),\"\",IF(AND(H69>0,H69<=Experiencia1),Puntajes!$D$4,IF(AND(H69>Experiencia1,H69<=Experiencia2),Puntajes!$D$5,IF(AND(H69>Experiencia2,H69<=Experiencia3),Puntajes!$D$6,IF(H69>Experiencia3,Puntajes!$D$7,0)))))","v":""}]
[null,null,{"$f":"+'Capacidad Financiera'!B73","v":""},{"$f":"IF(ISERROR(VLOOKUP(C70,'Capacidad Financiera'!$B$12:$X$62720,2,0)),\"\",VLOOKUP(C70,'Capacidad Financiera'!$B$12:$X$3580,2,0))","v":0},{"$f":"IF(ISERROR(VLOOKUP(C70,'Capacidad Financiera'!$B$12:$X$62720,3,0)),\"\",VLOOKUP(C70,'Capacidad Financiera'!$B$12:$X$62720,3,0))","v":0},null,{"$f":"IF(OR(D70=\"\",E70=\"\",F70=\"\"),\"\",IF(C70<>\"\",IF(ISERROR(VLOOKUP($A$10,POA!$A$2:$D$25,2,0)),\"\",VLOOKUP($A$10,POA!$A$2:$D$25,2,0)),\"\"))","v":""},"",{"$f":"IF(OR(D70=\"\",E70=\"\",F70=\"\"),\"\",IF(AND(H70>0,H70<=Experiencia1),Puntajes!$D$4,IF(AND(H70>Experiencia1,H70<=Experiencia2),Puntajes!$D$5,IF(AND(H70>Experiencia2,H70<=Experiencia3),Puntajes!$D$6,IF(H70>Experiencia3,Puntajes!$D$7,0)))))","v":""}]
[null,null,{"$f":"+'Capacidad Financiera'!B74","v":""},{"$f":"IF(ISERROR(VLOOKUP(C71,'Capacidad Financiera'!$B$12:$X$62720,2,0)),\"\",VLOOKUP(C71,'Capacidad Financiera'!$B$12:$X$3580,2,0))","v":0},{"$f":"IF(ISERROR(VLOOKUP(C71,'Capacidad Financiera'!$B$12:$X$62720,3,0)),\"\",VLOOKUP(C71,'Capacidad Financiera'!$B$12:$X$62720,3,0))","v":0},null,{"$f":"IF(OR(D71=\"\",E71=\"\",F71=\"\"),\"\",IF(C71<>\"\",IF(ISERROR(VLOOKUP($A$10,POA!$A$2:$D$25,2,0)),\"\",VLOOKUP($A$10,POA!$A$2:$D$25,2,0)),\"\"))","v":""},"",{"$f":"IF(OR(D71=\"\",E71=\"\",F71=\"\"),\"\",IF(AND(H71>0,H71<=Experiencia1),Puntajes!$D$4,IF(AND(H71>Experiencia1,H71<=Experiencia2),Puntajes!$D$5,IF(AND(H71>Experiencia2,H71<=Experiencia3),Puntajes!$D$6,IF(H71>Experiencia3,Puntajes!$D$7,0)))))","v":""}]
[null,null,{"$f":"+'Capacidad Financiera'!B75","v":""},{"$f":"IF(ISERROR(VLOOKUP(C72,'Capacidad Financiera'!$B$12:$X$62720,2,0)),\"\",VLOOKUP(C72,'Capacidad Financiera'!$B$12:$X$3580,2,0))","v":0},{"$f":"IF(ISERROR(VLOOKUP(C72,'Capacidad Financiera'!$B$12:$X$62720,3,0)),\"\",VLOOKUP(C72,'Capacidad Financiera'!$B$12:$X$62720,3,0))","v":0},null,{"$f":"IF(OR(D72=\"\",E72=\"\",F72=\"\"),\"\",IF(C72<>\"\",IF(ISERROR(VLOOKUP($A$10,POA!$A$2:$D$25,2,0)),\"\",VLOOKUP($A$10,POA!$A$2:$D$25,2,0)),\"\"))","v":""},"",{"$f":"IF(OR(D72=\"\",E72=\"\",F72=\"\"),\"\",IF(AND(H72>0,H72<=Experiencia1),Puntajes!$D$4,IF(AND(H72>Experiencia1,H72<=Experiencia2),Puntajes!$D$5,IF(AND(H72>Experiencia2,H72<=Experiencia3),Puntajes!$D$6,IF(H72>Experiencia3,Puntajes!$D$7,0)))))","v":""}]
[null,null,{"$f":"+'Capacidad Financiera'!B76","v":""},{"$f":"IF(ISERROR(VLOOKUP(C73,'Capacidad Financiera'!$B$12:$X$62720,2,0)),\"\",VLOOKUP(C73,'Capacidad Financiera'!$B$12:$X$3580,2,0))","v":0},{"$f":"IF(ISERROR(VLOOKUP(C73,'Capacidad Financiera'!$B$12:$X$62720,3,0)),\"\",VLOOKUP(C73,'Capacidad Financiera'!$B$12:$X$62720,3,0))","v":0},null,{"$f":"IF(OR(D73=\"\",E73=\"\",F73=\"\"),\"\",IF(C73<>\"\",IF(ISERROR(VLOOKUP($A$10,POA!$A$2:$D$25,2,0)),\"\",VLOOKUP($A$10,POA!$A$2:$D$25,2,0)),\"\"))","v":""},"",{"$f":"IF(OR(D73=\"\",E73=\"\",F73=\"\"),\"\",IF(AND(H73>0,H73<=Experiencia1),Puntajes!$D$4,IF(AND(H73>Experiencia1,H73<=Experiencia2),Puntajes!$D$5,IF(AND(H73>Experiencia2,H73<=Experiencia3),Puntajes!$D$6,IF(H73>Experiencia3,Puntajes!$D$7,0)))))","v":""}]
[null,null,{"$f":"+'Capacidad Financiera'!B77","v":""},{"$f":"IF(ISERROR(VLOOKUP(C74,'Capacidad Financiera'!$B$12:$X$62720,2,0)),\"\",VLOOKUP(C74,'Capacidad Financiera'!$B$12:$X$3580,2,0))","v":0},{"$f":"IF(ISERROR(VLOOKUP(C74,'Capacidad Financiera'!$B$12:$X$62720,3,0)),\"\",VLOOKUP(C74,'Capacidad Financiera'!$B$12:$X$62720,3,0))","v":0},null,{"$f":"IF(OR(D74=\"\",E74=\"\",F74=\"\"),\"\",IF(C74<>\"\",IF(ISERROR(VLOOKUP($A$10,POA!$A$2:$D$25,2,0)),\"\",VLOOKUP($A$10,POA!$A$2:$D$25,2,0)),\"\"))","v":""},"",{"$f":"IF(OR(D74=\"\",E74=\"\",F74=\"\"),\"\",IF(AND(H74>0,H74<=Experiencia1),Puntajes!$D$4,IF(AND(H74>Experiencia1,H74<=Experiencia2),Puntajes!$D$5,IF(AND(H74>Experiencia2,H74<=Experiencia3),Puntajes!$D$6,IF(H74>Experiencia3,Puntajes!$D$7,0)))))","v":""}]
[null,null,7,{"$f":"IF(ISERROR(VLOOKUP(C75,'Capacidad Financiera'!$B$12:$X$62720,2,0)),\"\",VLOOKUP(C75,'Capacidad Financiera'!$B$12:$X$3580,2,0))","v":"CONSORCIO AC - AINCOL"},{"$f":"IF(ISERROR(VLOOKUP(C75,'Capacidad Financiera'!$B$12:$X$62720,3,0)),\"\",VLOOKUP(C75,'Capacidad Financiera'!$B$12:$X$62720,3,0))","v":1},null,{"$f":"IF(OR(D75=\"\",E75=\"\",F75=\"\"),\"\",IF(C76=\"\",IF(C75<>\"\",IF(ISERROR(VLOOKUP($A$10,POA!$A$2:$D$25,2,0)),\"\",VLOOKUP($A$10,POA!$A$2:$D$25,2,0)),\"\"),\"\"))","v":""},{"$f":"IF(OR(D75=\"\",E75=\"\",F75=\"\"),\"\",IF(C76=\"\",IF(C75<>\"\",F75/G75,\"\"),\"\"))","v":""},{"$f":"IF(C76=\"\",IF(F75=\"\",\"\",IF(AND(H75>0,H75<=Experiencia1),Puntajes!$D$4,IF(AND(H75>Experiencia1,H75<=Experiencia2),Puntajes!$D$5,IF(AND(H75>Experiencia2,H75<=Experiencia3),Puntajes!$D$6,IF(H75>Experiencia3,Puntajes!$D$7,0))))),\"\")","v":""}]
["req anexo 1a",null,{"$f":"+'Capacidad Financiera'!B79","v":7.1},{"$f":"IF(ISERROR(VLOOKUP(C76,'Capacidad Financiera'!$B$12:$X$62720,2,0)),\"\",VLOOKUP(C76,'Capacidad Financiera'!$B$12:$X$3580,2,0))","v":"AINCOL S.A.S."},{"$f":"IF(ISERROR(VLOOKUP(C76,'Capacidad Financiera'!$B$12:$X$62720,3,0)),\"\",VLOOKUP(C76,'Capacidad Financiera'!$B$12:$X$62720,3,0))","v":0.3},null,{"$f":"IF(OR(D76=\"\",E76=\"\",F76=\"\"),\"\",IF(C76<>\"\",IF(ISERROR(VLOOKUP($A$10,POA!$A$2:$D$25,2,0)),\"\",VLOOKUP($A$10,POA!$A$2:$D$25,2,0)),\"\"))","v":""},{"$f":"IF(OR(D76=\"\",E76=\"\",F76=\"\"),\"\",IF(C76<>\"\",F76/(G76*E76),\"\"))","v":""},{"$f":"IF(OR(D76=\"\",E76=\"\",F76=\"\"),\"\",IF(AND(H76>0,H76<=Experiencia1),Puntajes!$D$4,IF(AND(H76>Experiencia1,H76<=Experiencia2),Puntajes!$D$5,IF(AND(H76>Experiencia2,H76<=Experiencia3),Puntajes!$D$6,IF(H76>Experiencia3,Puntajes!$D$7,0)))))","v":""}]
["req anexo 1a",null,{"$f":"+'Capacidad Financiera'!B80","v":7.1999999999999993},{"$f":"IF(ISERROR(VLOOKUP(C77,'Capacidad Financiera'!$B$12:$X$62720,2,0)),\"\",VLOOKUP(C77,'Capacidad Financiera'!$B$12:$X$3580,2,0))","v":"AC INGENIERIA Y CONSTRUCCIONES S.A.S."},{"$f":"IF(ISERROR(VLOOKUP(C77,'Capacidad Financiera'!$B$12:$X$62720,3,0)),\"\",VLOOKUP(C77,'Capacidad Financiera'!$B$12:$X$62720,3,0))","v":0.7},null,{"$f":"IF(OR(D77=\"\",E77=\"\",F77=\"\"),\"\",IF(C77<>\"\",IF(ISERROR(VLOOKUP($A$10,POA!$A$2:$D$25,2,0)),\"\",VLOOKUP($A$10,POA!$A$2:$D$25,2,0)),\"\"))","v":""},{"$f":"IF(OR(D77=\"\",E77=\"\",F77=\"\"),\"\",IF(C77<>\"\",F77/(G77*E77),\"\"))","v":""},{"$f":"IF(OR(D77=\"\",E77=\"\",F77=\"\"),\"\",IF(AND(H77>0,H77<=Experiencia1),Puntajes!$D$4,IF(AND(H77>Experiencia1,H77<=Experiencia2),Puntajes!$D$5,IF(AND(H77>Experiencia2,H77<=Experiencia3),Puntajes!$D$6,IF(H77>Experiencia3,Puntajes!$D$7,0)))))","v":""}]
[null,null,{"$f":"+'Capacidad Financiera'!B81","v":""},{"$f":"IF(ISERROR(VLOOKUP(C78,'Capacidad Financiera'!$B$12:$X$62720,2,0)),\"\",VLOOKUP(C78,'Capacidad Financiera'!$B$12:$X$3580,2,0))","v":0},{"$f":"IF(ISERROR(VLOOKUP(C78,'Capacidad Financiera'!$B$12:$X$62720,3,0)),\"\",VLOOKUP(C78,'Capacidad Financiera'!$B$12:$X$62720,3,0))","v":0},null,{"$f":"IF(OR(D78=\"\",E78=\"\",F78=\"\"),\"\",IF(C78<>\"\",IF(ISERROR(VLOOKUP($A$10,POA!$A$2:$D$25,2,0)),\"\",VLOOKUP($A$10,POA!$A$2:$D$25,2,0)),\"\"))","v":""},"",{"$f":"IF(OR(D78=\"\",E78=\"\",F78=\"\"),\"\",IF(AND(H78>0,H78<=Experiencia1),Puntajes!$D$4,IF(AND(H78>Experiencia1,H78<=Experiencia2),Puntajes!$D$5,IF(AND(H78>Experiencia2,H78<=Experiencia3),Puntajes!$D$6,IF(H78>Experiencia3,Puntajes!$D$7,0)))))","v":""}]
[null,null,{"$f":"+'Capacidad Financiera'!B82","v":""},{"$f":"IF(ISERROR(VLOOKUP(C79,'Capacidad Financiera'!$B$12:$X$62720,2,0)),\"\",VLOOKUP(C79,'Capacidad Financiera'!$B$12:$X$3580,2,0))","v":0},{"$f":"IF(ISERROR(VLOOKUP(C79,'Capacidad Financiera'!$B$12:$X$62720,3,0)),\"\",VLOOKUP(C79,'Capacidad Financiera'!$B$12:$X$62720,3,0))","v":0},null,{"$f":"IF(OR(D79=\"\",E79=\"\",F79=\"\"),\"\",IF(C79<>\"\",IF(ISERROR(VLOOKUP($A$10,POA!$A$2:$D$25,2,0)),\"\",VLOOKUP($A$10,POA!$A$2:$D$25,2,0)),\"\"))","v":""},"",{"$f":"IF(OR(D79=\"\",E79=\"\",F79=\"\"),\"\",IF(AND(H79>0,H79<=Experiencia1),Puntajes!$D$4,IF(AND(H79>Experiencia1,H79<=Experiencia2),Puntajes!$D$5,IF(AND(H79>Experiencia2,H79<=Experiencia3),Puntajes!$D$6,IF(H79>Experiencia3,Puntajes!$D$7,0)))))","v":""}]
[null,null,{"$f":"+'Capacidad Financiera'!B83","v":""},{"$f":"IF(ISERROR(VLOOKUP(C80,'Capacidad Financiera'!$B$12:$X$62720,2,0)),\"\",VLOOKUP(C80,'Capacidad Financiera'!$B$12:$X$3580,2,0))","v":0},{"$f":"IF(ISERROR(VLOOKUP(C80,'Capacidad Financiera'!$B$12:$X$62720,3,0)),\"\",VLOOKUP(C80,'Capacidad Financiera'!$B$12:$X$62720,3,0))","v":0},null,{"$f":"IF(OR(D80=\"\",E80=\"\",F80=\"\"),\"\",IF(C80<>\"\",IF(ISERROR(VLOOKUP($A$10,POA!$A$2:$D$25,2,0)),\"\",VLOOKUP($A$10,POA!$A$2:$D$25,2,0)),\"\"))","v":""},"",{"$f":"IF(OR(D80=\"\",E80=\"\",F80=\"\"),\"\",IF(AND(H80>0,H80<=Experiencia1),Puntajes!$D$4,IF(AND(H80>Experiencia1,H80<=Experiencia2),Puntajes!$D$5,IF(AND(H80>Experiencia2,H80<=Experiencia3),Puntajes!$D$6,IF(H80>Experiencia3,Puntajes!$D$7,0)))))","v":""}]
[null,null,{"$f":"+'Capacidad Financiera'!B84","v":""},{"$f":"IF(ISERROR(VLOOKUP(C81,'Capacidad Financiera'!$B$12:$X$62720,2,0)),\"\",VLOOKUP(C81,'Capacidad Financiera'!$B$12:$X$3580,2,0))","v":0},{"$f":"IF(ISERROR(VLOOKUP(C81,'Capacidad Financiera'!$B$12:$X$62720,3,0)),\"\",VLOOKUP(C81,'Capacidad Financiera'!$B$12:$X$62720,3,0))","v":0},null,{"$f":"IF(OR(D81=\"\",E81=\"\",F81=\"\"),\"\",IF(C81<>\"\",IF(ISERROR(VLOOKUP($A$10,POA!$A$2:$D$25,2,0)),\"\",VLOOKUP($A$10,POA!$A$2:$D$25,2,0)),\"\"))","v":""},"",{"$f":"IF(OR(D81=\"\",E81=\"\",F81=\"\"),\"\",IF(AND(H81>0,H81<=Experiencia1),Puntajes!$D$4,IF(AND(H81>Experiencia1,H81<=Experiencia2),Puntajes!$D$5,IF(AND(H81>Experiencia2,H81<=Experiencia3),Puntajes!$D$6,IF(H81>Experiencia3,Puntajes!$D$7,0)))))","v":""}]
[null,null,{"$f":"+'Capacidad Financiera'!B85","v":""},{"$f":"IF(ISERROR(VLOOKUP(C82,'Capacidad Financiera'!$B$12:$X$62720,2,0)),\"\",VLOOKUP(C82,'Capacidad Financiera'!$B$12:$X$3580,2,0))","v":0},{"$f":"IF(ISERROR(VLOOKUP(C82,'Capacidad Financiera'!$B$12:$X$62720,3,0)),\"\",VLOOKUP(C82,'Capacidad Financiera'!$B$12:$X$62720,3,0))","v":0},null,{"$f":"IF(OR(D82=\"\",E82=\"\",F82=\"\"),\"\",IF(C82<>\"\",IF(ISERROR(VLOOKUP($A$10,POA!$A$2:$D$25,2,0)),\"\",VLOOKUP($A$10,POA!$A$2:$D$25,2,0)),\"\"))","v":""},"",{"$f":"IF(OR(D82=\"\",E82=\"\",F82=\"\"),\"\",IF(AND(H82>0,H82<=Experiencia1),Puntajes!$D$4,IF(AND(H82>Experiencia1,H82<=Experiencia2),Puntajes!$D$5,IF(AND(H82>Experiencia2,H82<=Experiencia3),Puntajes!$D$6,IF(H82>Experiencia3,Puntajes!$D$7,0)))))","v":""}]
[null,null,{"$f":"+'Capacidad Financiera'!B86","v":""},{"$f":"IF(ISERROR(VLOOKUP(C83,'Capacidad Financiera'!$B$12:$X$62720,2,0)),\"\",VLOOKUP(C83,'Capacidad Financiera'!$B$12:$X$3580,2,0))","v":0},{"$f":"IF(ISERROR(VLOOKUP(C83,'Capacidad Financiera'!$B$12:$X$62720,3,0)),\"\",VLOOKUP(C83,'Capacidad Financiera'!$B$12:$X$62720,3,0))","v":0},null,{"$f":"IF(OR(D83=\"\",E83=\"\",F83=\"\"),\"\",IF(C83<>\"\",IF(ISERROR(VLOOKUP($A$10,POA!$A$2:$D$25,2,0)),\"\",VLOOKUP($A$10,POA!$A$2:$D$25,2,0)),\"\"))","v":""},"",{"$f":"IF(OR(D83=\"\",E83=\"\",F83=\"\"),\"\",IF(AND(H83>0,H83<=Experiencia1),Puntajes!$D$4,IF(AND(H83>Experiencia1,H83<=Experiencia2),Puntajes!$D$5,IF(AND(H83>Experiencia2,H83<=Experiencia3),Puntajes!$D$6,IF(H83>Experiencia3,Puntajes!$D$7,0)))))","v":""}]
[null,null,{"$f":"+'Capacidad Financiera'!B87","v":""},{"$f":"IF(ISERROR(VLOOKUP(C84,'Capacidad Financiera'!$B$12:$X$62720,2,0)),\"\",VLOOKUP(C84,'Capacidad Financiera'!$B$12:$X$3580,2,0))","v":0},{"$f":"IF(ISERROR(VLOOKUP(C84,'Capacidad Financiera'!$B$12:$X$62720,3,0)),\"\",VLOOKUP(C84,'Capacidad Financiera'!$B$12:$X$62720,3,0))","v":0},null,{"$f":"IF(OR(D84=\"\",E84=\"\",F84=\"\"),\"\",IF(C84<>\"\",IF(ISERROR(VLOOKUP($A$10,POA!$A$2:$D$25,2,0)),\"\",VLOOKUP($A$10,POA!$A$2:$D$25,2,0)),\"\"))","v":""},"",{"$f":"IF(OR(D84=\"\",E84=\"\",F84=\"\"),\"\",IF(AND(H84>0,H84<=Experiencia1),Puntajes!$D$4,IF(AND(H84>Experiencia1,H84<=Experiencia2),Puntajes!$D$5,IF(AND(H84>Experiencia2,H84<=Experiencia3),Puntajes!$D$6,IF(H84>Experiencia3,Puntajes!$D$7,0)))))","v":""}]
[null,null,{"$f":"+'Capacidad Financiera'!B88","v":""},{"$f":"IF(ISERROR(VLOOKUP(C85,'Capacidad Financiera'!$B$12:$X$62720,2,0)),\"\",VLOOKUP(C85,'Capacidad Financiera'!$B$12:$X$3580,2,0))","v":0},{"$f":"IF(ISERROR(VLOOKUP(C85,'Capacidad Financiera'!$B$12:$X$62720,3,0)),\"\",VLOOKUP(C85,'Capacidad Financiera'!$B$12:$X$62720,3,0))","v":0},null,{"$f":"IF(OR(D85=\"\",E85=\"\",F85=\"\"),\"\",IF(C85<>\"\",IF(ISERROR(VLOOKUP($A$10,POA!$A$2:$D$25,2,0)),\"\",VLOOKUP($A$10,POA!$A$2:$D$25,2,0)),\"\"))","v":""},"",{"$f":"IF(OR(D85=\"\",E85=\"\",F85=\"\"),\"\",IF(AND(H85>0,H85<=Experiencia1),Puntajes!$D$4,IF(AND(H85>Experiencia1,H85<=Experiencia2),Puntajes!$D$5,IF(AND(H85>Experiencia2,H85<=Experiencia3),Puntajes!$D$6,IF(H85>Experiencia3,Puntajes!$D$7,0)))))","v":""}]
[null,null,8,{"$f":"IF(ISERROR(VLOOKUP(C86,'Capacidad Financiera'!$B$12:$X$62720,2,0)),\"\",VLOOKUP(C86,'Capacidad Financiera'!$B$12:$X$3580,2,0))","v":"CONSULTORIA Y CONSTRUCCION LTDA."},{"$f":"IF(ISERROR(VLOOKUP(C86,'Capacidad Financiera'!$B$12:$X$62720,3,0)),\"\",VLOOKUP(C86,'Capacidad Financiera'!$B$12:$X$62720,3,0))","v":1},null,{"$f":"IF(OR(D86=\"\",E86=\"\",F86=\"\"),\"\",IF(C87=\"\",IF(C86<>\"\",IF(ISERROR(VLOOKUP($A$10,POA!$A$2:$D$25,2,0)),\"\",VLOOKUP($A$10,POA!$A$2:$D$25,2,0)),\"\"),\"\"))","v":""},{"$f":"IF(OR(D86=\"\",E86=\"\",F86=\"\"),\"\",IF(C87=\"\",IF(C86<>\"\",F86/G86,\"\"),\"\"))","v":""},{"$f":"IF(C87=\"\",IF(F86=\"\",\"\",IF(AND(H86>0,H86<=Experiencia1),Puntajes!$D$4,IF(AND(H86>Experiencia1,H86<=Experiencia2),Puntajes!$D$5,IF(AND(H86>Experiencia2,H86<=Experiencia3),Puntajes!$D$6,IF(H86>Experiencia3,Puntajes!$D$7,0))))),\"\")","v":""}]
[null,null,{"$f":"+'Capacidad Financiera'!B90","v":8.1},{"$f":"IF(ISERROR(VLOOKUP(C87,'Capacidad Financiera'!$B$12:$X$62720,2,0)),\"\",VLOOKUP(C87,'Capacidad Financiera'!$B$12:$X$3580,2,0))","v":"CONSULTORIA Y CONSTRUCCION LTDA."},{"$f":"IF(ISERROR(VLOOKUP(C87,'Capacidad Financiera'!$B$12:$X$62720,3,0)),\"\",VLOOKUP(C87,'Capacidad Financiera'!$B$12:$X$62720,3,0))","v":1},88987888836,{"$f":"IF(OR(D87=\"\",E87=\"\",F87=\"\"),\"\",IF(C87<>\"\",IF(ISERROR(VLOOKUP($A$10,POA!$A$2:$D$25,2,0)),\"\",VLOOKUP($A$10,POA!$A$2:$D$25,2,0)),\"\"))","v":4167150295},{"$f":"IF(OR(D87=\"\",E87=\"\",F87=\"\"),\"\",IF(C87<>\"\",F87/(G87*E87),\"\"))","v":21.354614673431165},{"$f":"IF(OR(D87=\"\",E87=\"\",F87=\"\"),\"\",IF(AND(H87>0,H87<=Experiencia1),Puntajes!$D$4,IF(AND(H87>Experiencia1,H87<=Experiencia2),Puntajes!$D$5,IF(AND(H87>Experiencia2,H87<=Experiencia3),Puntajes!$D$6,IF(H87>Experiencia3,Puntajes!$D$7,0)))))","v":120}]
[null,null,{"$f":"+'Capacidad Financiera'!B91","v":""},{"$f":"IF(ISERROR(VLOOKUP(C88,'Capacidad Financiera'!$B$12:$X$62720,2,0)),\"\",VLOOKUP(C88,'Capacidad Financiera'!$B$12:$X$3580,2,0))","v":0},{"$f":"IF(ISERROR(VLOOKUP(C88,'Capacidad Financiera'!$B$12:$X$62720,3,0)),\"\",VLOOKUP(C88,'Capacidad Financiera'!$B$12:$X$62720,3,0))","v":0},null,{"$f":"IF(OR(D88=\"\",E88=\"\",F88=\"\"),\"\",IF(C88<>\"\",IF(ISERROR(VLOOKUP($A$10,POA!$A$2:$D$25,2,0)),\"\",VLOOKUP($A$10,POA!$A$2:$D$25,2,0)),\"\"))","v":""},{"$f":"IF(OR(D88=\"\",E88=\"\",F88=\"\"),\"\",IF(C88<>\"\",F88/(G88*E88),\"\"))","v":""},{"$f":"IF(OR(D88=\"\",E88=\"\",F88=\"\"),\"\",IF(AND(H88>0,H88<=Experiencia1),Puntajes!$D$4,IF(AND(H88>Experiencia1,H88<=Experiencia2),Puntajes!$D$5,IF(AND(H88>Experiencia2,H88<=Experiencia3),Puntajes!$D$6,IF(H88>Experiencia3,Puntajes!$D$7,0)))))","v":""}]
[null,null,{"$f":"+'Capacidad Financiera'!B92","v":""},{"$f":"IF(ISERROR(VLOOKUP(C89,'Capacidad Financiera'!$B$12:$X$62720,2,0)),\"\",VLOOKUP(C89,'Capacidad Financiera'!$B$12:$X$3580,2,0))","v":0},{"$f":"IF(ISERROR(VLOOKUP(C89,'Capacidad Financiera'!$B$12:$X$62720,3,0)),\"\",VLOOKUP(C89,'Capacidad Financiera'!$B$12:$X$62720,3,0))","v":0},null,{"$f":"IF(OR(D89=\"\",E89=\"\",F89=\"\"),\"\",IF(C89<>\"\",IF(ISERROR(VLOOKUP($A$10,POA!$A$2:$D$25,2,0)),\"\",VLOOKUP($A$10,POA!$A$2:$D$25,2,0)),\"\"))","v":""},"",{"$f":"IF(OR(D89=\"\",E89=\"\",F89=\"\"),\"\",IF(AND(H89>0,H89<=Experiencia1),Puntajes!$D$4,IF(AND(H89>Experiencia1,H89<=Experiencia2),Puntajes!$D$5,IF(AND(H89>Experiencia2,H89<=Experiencia3),Puntajes!$D$6,IF(H89>Experiencia3,Puntajes!$D$7,0)))))","v":""}]
[null,null,{"$f":"+'Capacidad Financiera'!B93","v":""},{"$f":"IF(ISERROR(VLOOKUP(C90,'Capacidad Financiera'!$B$12:$X$62720,2,0)),\"\",VLOOKUP(C90,'Capacidad Financiera'!$B$12:$X$3580,2,0))","v":0},{"$f":"IF(ISERROR(VLOOKUP(C90,'Capacidad Financiera'!$B$12:$X$62720,3,0)),\"\",VLOOKUP(C90,'Capacidad Financiera'!$B$12:$X$62720,3,0))","v":0},null,{"$f":"IF(OR(D90=\"\",E90=\"\",F90=\"\"),\"\",IF(C90<>\"\",IF(ISERROR(VLOOKUP($A$10,POA!$A$2:$D$25,2,0)),\"\",VLOOKUP($A$10,POA!$A$2:$D$25,2,0)),\"\"))","v":""},"",{"$f":"IF(OR(D90=\"\",E90=\"\",F90=\"\"),\"\",IF(AND(H90>0,H90<=Experiencia1),Puntajes!$D$4,IF(AND(H90>Experiencia1,H90<=Experiencia2),Puntajes!$D$5,IF(AND(H90>Experiencia2,H90<=Experiencia3),Puntajes!$D$6,IF(H90>Experiencia3,Puntajes!$D$7,0)))))","v":""}]
[null,null,{"$f":"+'Capacidad Financiera'!B94","v":""},{"$f":"IF(ISERROR(VLOOKUP(C91,'Capacidad Financiera'!$B$12:$X$62720,2,0)),\"\",VLOOKUP(C91,'Capacidad Financiera'!$B$12:$X$3580,2,0))","v":0},{"$f":"IF(ISERROR(VLOOKUP(C91,'Capacidad Financiera'!$B$12:$X$62720,3,0)),\"\",VLOOKUP(C91,'Capacidad Financiera'!$B$12:$X$62720,3,0))","v":0},null,{"$f":"IF(OR(D91=\"\",E91=\"\",F91=\"\"),\"\",IF(C91<>\"\",IF(ISERROR(VLOOKUP($A$10,POA!$A$2:$D$25,2,0)),\"\",VLOOKUP($A$10,POA!$A$2:$D$25,2,0)),\"\"))","v":""},"",{"$f":"IF(OR(D91=\"\",E91=\"\",F91=\"\"),\"\",IF(AND(H91>0,H91<=Experiencia1),Puntajes!$D$4,IF(AND(H91>Experiencia1,H91<=Experiencia2),Puntajes!$D$5,IF(AND(H91>Experiencia2,H91<=Experiencia3),Puntajes!$D$6,IF(H91>Experiencia3,Puntajes!$D$7,0)))))","v":""}]
[null,null,{"$f":"+'Capacidad Financiera'!B95","v":""},{"$f":"IF(ISERROR(VLOOKUP(C92,'Capacidad Financiera'!$B$12:$X$62720,2,0)),\"\",VLOOKUP(C92,'Capacidad Financiera'!$B$12:$X$3580,2,0))","v":0},{"$f":"IF(ISERROR(VLOOKUP(C92,'Capacidad Financiera'!$B$12:$X$62720,3,0)),\"\",VLOOKUP(C92,'Capacidad Financiera'!$B$12:$X$62720,3,0))","v":0},null,{"$f":"IF(OR(D92=\"\",E92=\"\",F92=\"\"),\"\",IF(C92<>\"\",IF(ISERROR(VLOOKUP($A$10,POA!$A$2:$D$25,2,0)),\"\",VLOOKUP($A$10,POA!$A$2:$D$25,2,0)),\"\"))","v":""},"",{"$f":"IF(OR(D92=\"\",E92=\"\",F92=\"\"),\"\",IF(AND(H92>0,H92<=Experiencia1),Puntajes!$D$4,IF(AND(H92>Experiencia1,H92<=Experiencia2),Puntajes!$D$5,IF(AND(H92>Experiencia2,H92<=Experiencia3),Puntajes!$D$6,IF(H92>Experiencia3,Puntajes!$D$7,0)))))","v":""}]
[null,null,{"$f":"+'Capacidad Financiera'!B96","v":""},{"$f":"IF(ISERROR(VLOOKUP(C93,'Capacidad Financiera'!$B$12:$X$62720,2,0)),\"\",VLOOKUP(C93,'Capacidad Financiera'!$B$12:$X$3580,2,0))","v":0},{"$f":"IF(ISERROR(VLOOKUP(C93,'Capacidad Financiera'!$B$12:$X$62720,3,0)),\"\",VLOOKUP(C93,'Capacidad Financiera'!$B$12:$X$62720,3,0))","v":0},null,{"$f":"IF(OR(D93=\"\",E93=\"\",F93=\"\"),\"\",IF(C93<>\"\",IF(ISERROR(VLOOKUP($A$10,POA!$A$2:$D$25,2,0)),\"\",VLOOKUP($A$10,POA!$A$2:$D$25,2,0)),\"\"))","v":""},"",{"$f":"IF(OR(D93=\"\",E93=\"\",F93=\"\"),\"\",IF(AND(H93>0,H93<=Experiencia1),Puntajes!$D$4,IF(AND(H93>Experiencia1,H93<=Experiencia2),Puntajes!$D$5,IF(AND(H93>Experiencia2,H93<=Experiencia3),Puntajes!$D$6,IF(H93>Experiencia3,Puntajes!$D$7,0)))))","v":""}]
[null,null,{"$f":"+'Capacidad Financiera'!B97","v":""},{"$f":"IF(ISERROR(VLOOKUP(C94,'Capacidad Financiera'!$B$12:$X$62720,2,0)),\"\",VLOOKUP(C94,'Capacidad Financiera'!$B$12:$X$3580,2,0))","v":0},{"$f":"IF(ISERROR(VLOOKUP(C94,'Capacidad Financiera'!$B$12:$X$62720,3,0)),\"\",VLOOKUP(C94,'Capacidad Financiera'!$B$12:$X$62720,3,0))","v":0},null,{"$f":"IF(OR(D94=\"\",E94=\"\",F94=\"\"),\"\",IF(C94<>\"\",IF(ISERROR(VLOOKUP($A$10,POA!$A$2:$D$25,2,0)),\"\",VLOOKUP($A$10,POA!$A$2:$D$25,2,0)),\"\"))","v":""},"",{"$f":"IF(OR(D94=\"\",E94=\"\",F94=\"\"),\"\",IF(AND(H94>0,H94<=Experiencia1),Puntajes!$D$4,IF(AND(H94>Experiencia1,H94<=Experiencia2),Puntajes!$D$5,IF(AND(H94>Experiencia2,H94<=Experiencia3),Puntajes!$D$6,IF(H94>Experiencia3,Puntajes!$D$7,0)))))","v":""}]
[null,null,{"$f":"+'Capacidad Financiera'!B98","v":""},{"$f":"IF(ISERROR(VLOOKUP(C95,'Capacidad Financiera'!$B$12:$X$62720,2,0)),\"\",VLOOKUP(C95,'Capacidad Financiera'!$B$12:$X$3580,2,0))","v":0},{"$f":"IF(ISERROR(VLOOKUP(C95,'Capacidad Financiera'!$B$12:$X$62720,3,0)),\"\",VLOOKUP(C95,'Capacidad Financiera'!$B$12:$X$62720,3,0))","v":0},null,{"$f":"IF(OR(D95=\"\",E95=\"\",F95=\"\"),\"\",IF(C95<>\"\",IF(ISERROR(VLOOKUP($A$10,POA!$A$2:$D$25,2,0)),\"\",VLOOKUP($A$10,POA!$A$2:$D$25,2,0)),\"\"))","v":""},"",{"$f":"IF(OR(D95=\"\",E95=\"\",F95=\"\"),\"\",IF(AND(H95>0,H95<=Experiencia1),Puntajes!$D$4,IF(AND(H95>Experiencia1,H95<=Experiencia2),Puntajes!$D$5,IF(AND(H95>Experiencia2,H95<=Experiencia3),Puntajes!$D$6,IF(H95>Experiencia3,Puntajes!$D$7,0)))))","v":""}]
[null,null,{"$f":"+'Capacidad Financiera'!B99","v":""},{"$f":"IF(ISERROR(VLOOKUP(C96,'Capacidad Financiera'!$B$12:$X$62720,2,0)),\"\",VLOOKUP(C96,'Capacidad Financiera'!$B$12:$X$3580,2,0))","v":0},{"$f":"IF(ISERROR(VLOOKUP(C96,'Capacidad Financiera'!$B$12:$X$62720,3,0)),\"\",VLOOKUP(C96,'Capacidad Financiera'!$B$12:$X$62720,3,0))","v":0},null,{"$f":"IF(OR(D96=\"\",E96=\"\",F96=\"\"),\"\",IF(C96<>\"\",IF(ISERROR(VLOOKUP($A$10,POA!$A$2:$D$25,2,0)),\"\",VLOOKUP($A$10,POA!$A$2:$D$25,2,0)),\"\"))","v":""},"",{"$f":"IF(OR(D96=\"\",E96=\"\",F96=\"\"),\"\",IF(AND(H96>0,H96<=Experiencia1),Puntajes!$D$4,IF(AND(H96>Experiencia1,H96<=Experiencia2),Puntajes!$D$5,IF(AND(H96>Experiencia2,H96<=Experiencia3),Puntajes!$D$6,IF(H96>Experiencia3,Puntajes!$D$7,0)))))","v":""}]
[null,null,9,{"$f":"IF(ISERROR(VLOOKUP(C97,'Capacidad Financiera'!$B$12:$X$62720,2,0)),\"\",VLOOKUP(C97,'Capacidad Financiera'!$B$12:$X$3580,2,0))","v":"CONSORCIO INFRAESTRUCUTRA VIAL"},{"$f":"IF(ISERROR(VLOOKUP(C97,'Capacidad Financiera'!$B$12:$X$62720,3,0)),\"\",VLOOKUP(C97,'Capacidad Financiera'!$B$12:$X$62720,3,0))","v":1},null,{"$f":"IF(OR(D97=\"\",E97=\"\",F97=\"\"),\"\",IF(C98=\"\",IF(C97<>\"\",IF(ISERROR(VLOOKUP($A$10,POA!$A$2:$D$25,2,0)),\"\",VLOOKUP($A$10,POA!$A$2:$D$25,2,0)),\"\"),\"\"))","v":""},{"$f":"IF(OR(D97=\"\",E97=\"\",F97=\"\"),\"\",IF(C98=\"\",IF(C97<>\"\",F97/G97,\"\"),\"\"))","v":""},{"$f":"IF(C98=\"\",IF(F97=\"\",\"\",IF(AND(H97>0,H97<=Experiencia1),Puntajes!$D$4,IF(AND(H97>Experiencia1,H97<=Experiencia2),Puntajes!$D$5,IF(AND(H97>Experiencia2,H97<=Experiencia3),Puntajes!$D$6,IF(H97>Experiencia3,Puntajes!$D$7,0))))),\"\")","v":""}]
[null,null,{"$f":"+'Capacidad Financiera'!B101","v":9.1},{"$f":"IF(ISERROR(VLOOKUP(C98,'Capacidad Financiera'!$B$12:$X$62720,2,0)),\"\",VLOOKUP(C98,'Capacidad Financiera'!$B$12:$X$3580,2,0))","v":"VNF S.A.S"},{"$f":"IF(ISERROR(VLOOKUP(C98,'Capacidad Financiera'!$B$12:$X$62720,3,0)),\"\",VLOOKUP(C98,'Capacidad Financiera'!$B$12:$X$62720,3,0))","v":0.8},7397992756,{"$f":"IF(OR(D98=\"\",E98=\"\",F98=\"\"),\"\",IF(C98<>\"\",IF(ISERROR(VLOOKUP($A$10,POA!$A$2:$D$25,2,0)),\"\",VLOOKUP($A$10,POA!$A$2:$D$25,2,0)),\"\"))","v":4167150295},{"$f":"IF(OR(D98=\"\",E98=\"\",F98=\"\"),\"\",IF(C98<>\"\",F98/(G98*E98),\"\"))","v":2.219140249415938},{"$f":"IF(OR(D98=\"\",E98=\"\",F98=\"\"),\"\",IF(AND(H98>0,H98<=Experiencia1),Puntajes!$D$4,IF(AND(H98>Experiencia1,H98<=Experiencia2),Puntajes!$D$5,IF(AND(H98>Experiencia2,H98<=Experiencia3),Puntajes!$D$6,IF(H98>Experiencia3,Puntajes!$D$7,0)))))","v":60}]
[null,null,{"$f":"+'Capacidad Financiera'!B102","v":9.1999999999999993},{"$f":"IF(ISERROR(VLOOKUP(C99,'Capacidad Financiera'!$B$12:$X$62720,2,0)),\"\",VLOOKUP(C99,'Capacidad Financiera'!$B$12:$X$3580,2,0))","v":"HORACIO VEGA CARDENAS"},{"$f":"IF(ISERROR(VLOOKUP(C99,'Capacidad Financiera'!$B$12:$X$62720,3,0)),\"\",VLOOKUP(C99,'Capacidad Financiera'!$B$12:$X$62720,3,0))","v":0.2},116452267500.8,{"$f":"IF(OR(D99=\"\",E99=\"\",F99=\"\"),\"\",IF(C99<>\"\",IF(ISERROR(VLOOKUP($A$10,POA!$A$2:$D$25,2,0)),\"\",VLOOKUP($A$10,POA!$A$2:$D$25,2,0)),\"\"))","v":4167150295},{"$f":"IF(OR(D99=\"\",E99=\"\",F99=\"\"),\"\",IF(C99<>\"\",F99/(G99*E99),\"\"))","v":139.72650283399486},{"$f":"IF(OR(D99=\"\",E99=\"\",F99=\"\"),\"\",IF(AND(H99>0,H99<=Experiencia1),Puntajes!$D$4,IF(AND(H99>Experiencia1,H99<=Experiencia2),Puntajes!$D$5,IF(AND(H99>Experiencia2,H99<=Experiencia3),Puntajes!$D$6,IF(H99>Experiencia3,Puntajes!$D$7,0)))))","v":120}]
[null,null,{"$f":"+'Capacidad Financiera'!B103","v":""},{"$f":"IF(ISERROR(VLOOKUP(C100,'Capacidad Financiera'!$B$12:$X$62720,2,0)),\"\",VLOOKUP(C100,'Capacidad Financiera'!$B$12:$X$3580,2,0))","v":0},{"$f":"IF(ISERROR(VLOOKUP(C100,'Capacidad Financiera'!$B$12:$X$62720,3,0)),\"\",VLOOKUP(C100,'Capacidad Financiera'!$B$12:$X$62720,3,0))","v":0},null,{"$f":"IF(OR(D100=\"\",E100=\"\",F100=\"\"),\"\",IF(C100<>\"\",IF(ISERROR(VLOOKUP($A$10,POA!$A$2:$D$25,2,0)),\"\",VLOOKUP($A$10,POA!$A$2:$D$25,2,0)),\"\"))","v":""},"",{"$f":"IF(OR(D100=\"\",E100=\"\",F100=\"\"),\"\",IF(AND(H100>0,H100<=Experiencia1),Puntajes!$D$4,IF(AND(H100>Experiencia1,H100<=Experiencia2),Puntajes!$D$5,IF(AND(H100>Experiencia2,H100<=Experiencia3),Puntajes!$D$6,IF(H100>Experiencia3,Puntajes!$D$7,0)))))","v":""}]
[null,null,{"$f":"+'Capacidad Financiera'!B104","v":""},{"$f":"IF(ISERROR(VLOOKUP(C101,'Capacidad Financiera'!$B$12:$X$62720,2,0)),\"\",VLOOKUP(C101,'Capacidad Financiera'!$B$12:$X$3580,2,0))","v":0},{"$f":"IF(ISERROR(VLOOKUP(C101,'Capacidad Financiera'!$B$12:$X$62720,3,0)),\"\",VLOOKUP(C101,'Capacidad Financiera'!$B$12:$X$62720,3,0))","v":0},null,{"$f":"IF(OR(D101=\"\",E101=\"\",F101=\"\"),\"\",IF(C101<>\"\",IF(ISERROR(VLOOKUP($A$10,POA!$A$2:$D$25,2,0)),\"\",VLOOKUP($A$10,POA!$A$2:$D$25,2,0)),\"\"))","v":""},"",{"$f":"IF(OR(D101=\"\",E101=\"\",F101=\"\"),\"\",IF(AND(H101>0,H101<=Experiencia1),Puntajes!$D$4,IF(AND(H101>Experiencia1,H101<=Experiencia2),Puntajes!$D$5,IF(AND(H101>Experiencia2,H101<=Experiencia3),Puntajes!$D$6,IF(H101>Experiencia3,Puntajes!$D$7,0)))))","v":""}]
[null,null,{"$f":"+'Capacidad Financiera'!B105","v":""},{"$f":"IF(ISERROR(VLOOKUP(C102,'Capacidad Financiera'!$B$12:$X$62720,2,0)),\"\",VLOOKUP(C102,'Capacidad Financiera'!$B$12:$X$3580,2,0))","v":0},{"$f":"IF(ISERROR(VLOOKUP(C102,'Capacidad Financiera'!$B$12:$X$62720,3,0)),\"\",VLOOKUP(C102,'Capacidad Financiera'!$B$12:$X$62720,3,0))","v":0},null,{"$f":"IF(OR(D102=\"\",E102=\"\",F102=\"\"),\"\",IF(C102<>\"\",IF(ISERROR(VLOOKUP($A$10,POA!$A$2:$D$25,2,0)),\"\",VLOOKUP($A$10,POA!$A$2:$D$25,2,0)),\"\"))","v":""},"",{"$f":"IF(OR(D102=\"\",E102=\"\",F102=\"\"),\"\",IF(AND(H102>0,H102<=Experiencia1),Puntajes!$D$4,IF(AND(H102>Experiencia1,H102<=Experiencia2),Puntajes!$D$5,IF(AND(H102>Experiencia2,H102<=Experiencia3),Puntajes!$D$6,IF(H102>Experiencia3,Puntajes!$D$7,0)))))","v":""}]
[null,null,{"$f":"+'Capacidad Financiera'!B106","v":""},{"$f":"IF(ISERROR(VLOOKUP(C103,'Capacidad Financiera'!$B$12:$X$62720,2,0)),\"\",VLOOKUP(C103,'Capacidad Financiera'!$B$12:$X$3580,2,0))","v":0},{"$f":"IF(ISERROR(VLOOKUP(C103,'Capacidad Financiera'!$B$12:$X$62720,3,0)),\"\",VLOOKUP(C103,'Capacidad Financiera'!$B$12:$X$62720,3,0))","v":0},null,{"$f":"IF(OR(D103=\"\",E103=\"\",F103=\"\"),\"\",IF(C103<>\"\",IF(ISERROR(VLOOKUP($A$10,POA!$A$2:$D$25,2,0)),\"\",VLOOKUP($A$10,POA!$A$2:$D$25,2,0)),\"\"))","v":""},"",{"$f":"IF(OR(D103=\"\",E103=\"\",F103=\"\"),\"\",IF(AND(H103>0,H103<=Experiencia1),Puntajes!$D$4,IF(AND(H103>Experiencia1,H103<=Experiencia2),Puntajes!$D$5,IF(AND(H103>Experiencia2,H103<=Experiencia3),Puntajes!$D$6,IF(H103>Experiencia3,Puntajes!$D$7,0)))))","v":""}]
[null,null,{"$f":"+'Capacidad Financiera'!B107","v":""},{"$f":"IF(ISERROR(VLOOKUP(C104,'Capacidad Financiera'!$B$12:$X$62720,2,0)),\"\",VLOOKUP(C104,'Capacidad Financiera'!$B$12:$X$3580,2,0))","v":0},{"$f":"IF(ISERROR(VLOOKUP(C104,'Capacidad Financiera'!$B$12:$X$62720,3,0)),\"\",VLOOKUP(C104,'Capacidad Financiera'!$B$12:$X$62720,3,0))","v":0},null,{"$f":"IF(OR(D104=\"\",E104=\"\",F104=\"\"),\"\",IF(C104<>\"\",IF(ISERROR(VLOOKUP($A$10,POA!$A$2:$D$25,2,0)),\"\",VLOOKUP($A$10,POA!$A$2:$D$25,2,0)),\"\"))","v":""},"",{"$f":"IF(OR(D104=\"\",E104=\"\",F104=\"\"),\"\",IF(AND(H104>0,H104<=Experiencia1),Puntajes!$D$4,IF(AND(H104>Experiencia1,H104<=Experiencia2),Puntajes!$D$5,IF(AND(H104>Experiencia2,H104<=Experiencia3),Puntajes!$D$6,IF(H104>Experiencia3,Puntajes!$D$7,0)))))","v":""}]
[null,null,{"$f":"+'Capacidad Financiera'!B108","v":""},{"$f":"IF(ISERROR(VLOOKUP(C105,'Capacidad Financiera'!$B$12:$X$62720,2,0)),\"\",VLOOKUP(C105,'Capacidad Financiera'!$B$12:$X$3580,2,0))","v":0},{"$f":"IF(ISERROR(VLOOKUP(C105,'Capacidad Financiera'!$B$12:$X$62720,3,0)),\"\",VLOOKUP(C105,'Capacidad Financiera'!$B$12:$X$62720,3,0))","v":0},null,{"$f":"IF(OR(D105=\"\",E105=\"\",F105=\"\"),\"\",IF(C105<>\"\",IF(ISERROR(VLOOKUP($A$10,POA!$A$2:$D$25,2,0)),\"\",VLOOKUP($A$10,POA!$A$2:$D$25,2,0)),\"\"))","v":""},"",{"$f":"IF(OR(D105=\"\",E105=\"\",F105=\"\"),\"\",IF(AND(H105>0,H105<=Experiencia1),Puntajes!$D$4,IF(AND(H105>Experiencia1,H105<=Experiencia2),Puntajes!$D$5,IF(AND(H105>Experiencia2,H105<=Experiencia3),Puntajes!$D$6,IF(H105>Experiencia3,Puntajes!$D$7,0)))))","v":""}]
[null,null,{"$f":"+'Capacidad Financiera'!B109","v":""},{"$f":"IF(ISERROR(VLOOKUP(C106,'Capacidad Financiera'!$B$12:$X$62720,2,0)),\"\",VLOOKUP(C106,'Capacidad Financiera'!$B$12:$X$3580,2,0))","v":0},{"$f":"IF(ISERROR(VLOOKUP(C106,'Capacidad Financiera'!$B$12:$X$62720,3,0)),\"\",VLOOKUP(C106,'Capacidad Financiera'!$B$12:$X$62720,3,0))","v":0},null,{"$f":"IF(OR(D106=\"\",E106=\"\",F106=\"\"),\"\",IF(C106<>\"\",IF(ISERROR(VLOOKUP($A$10,POA!$A$2:$D$25,2,0)),\"\",VLOOKUP($A$10,POA!$A$2:$D$25,2,0)),\"\"))","v":""},"",{"$f":"IF(OR(D106=\"\",E106=\"\",F106=\"\"),\"\",IF(AND(H106>0,H106<=Experiencia1),Puntajes!$D$4,IF(AND(H106>Experiencia1,H106<=Experiencia2),Puntajes!$D$5,IF(AND(H106>Experiencia2,H106<=Experiencia3),Puntajes!$D$6,IF(H106>Experiencia3,Puntajes!$D$7,0)))))","v":""}]
[null,null,{"$f":"+'Capacidad Financiera'!B110","v":""},{"$f":"IF(ISERROR(VLOOKUP(C107,'Capacidad Financiera'!$B$12:$X$62720,2,0)),\"\",VLOOKUP(C107,'Capacidad Financiera'!$B$12:$X$3580,2,0))","v":0},{"$f":"IF(ISERROR(VLOOKUP(C107,'Capacidad Financiera'!$B$12:$X$62720,3,0)),\"\",VLOOKUP(C107,'Capacidad Financiera'!$B$12:$X$62720,3,0))","v":0},null,{"$f":"IF(OR(D107=\"\",E107=\"\",F107=\"\"),\"\",IF(C107<>\"\",IF(ISERROR(VLOOKUP($A$10,POA!$A$2:$D$25,2,0)),\"\",VLOOKUP($A$10,POA!$A$2:$D$25,2,0)),\"\"))","v":""},"",{"$f":"IF(OR(D107=\"\",E107=\"\",F107=\"\"),\"\",IF(AND(H107>0,H107<=Experiencia1),Puntajes!$D$4,IF(AND(H107>Experiencia1,H107<=Experiencia2),Puntajes!$D$5,IF(AND(H107>Experiencia2,H107<=Experiencia3),Puntajes!$D$6,IF(H107>Experiencia3,Puntajes!$D$7,0)))))","v":""}]
[null,null,10,{"$f":"IF(ISERROR(VLOOKUP(C108,'Capacidad Financiera'!$B$12:$X$62720,2,0)),\"\",VLOOKUP(C108,'Capacidad Financiera'!$B$12:$X$3580,2,0))","v":"CONSORCIO AM 034"},{"$f":"IF(ISERROR(VLOOKUP(C108,'Capacidad Financiera'!$B$12:$X$62720,3,0)),\"\",VLOOKUP(C108,'Capacidad Financiera'!$B$12:$X$62720,3,0))","v":1},null,{"$f":"IF(OR(D108=\"\",E108=\"\",F108=\"\"),\"\",IF(C109=\"\",IF(C108<>\"\",IF(ISERROR(VLOOKUP($A$10,POA!$A$2:$D$25,2,0)),\"\",VLOOKUP($A$10,POA!$A$2:$D$25,2,0)),\"\"),\"\"))","v":""},{"$f":"IF(OR(D108=\"\",E108=\"\",F108=\"\"),\"\",IF(C109=\"\",IF(C108<>\"\",F108/G108,\"\"),\"\"))","v":""},{"$f":"IF(C109=\"\",IF(F108=\"\",\"\",IF(AND(H108>0,H108<=Experiencia1),Puntajes!$D$4,IF(AND(H108>Experiencia1,H108<=Experiencia2),Puntajes!$D$5,IF(AND(H108>Experiencia2,H108<=Experiencia3),Puntajes!$D$6,IF(H108>Experiencia3,Puntajes!$D$7,0))))),\"\")","v":""}]
[null,null,{"$f":"+'Capacidad Financiera'!B112","v":10.1},{"$f":"IF(ISERROR(VLOOKUP(C109,'Capacidad Financiera'!$B$12:$X$62720,2,0)),\"\",VLOOKUP(C109,'Capacidad Financiera'!$B$12:$X$3580,2,0))","v":"ROGELIO ARDILA TORRES"},{"$f":"IF(ISERROR(VLOOKUP(C109,'Capacidad Financiera'!$B$12:$X$62720,3,0)),\"\",VLOOKUP(C109,'Capacidad Financiera'!$B$12:$X$62720,3,0))","v":0.5},31960014609.599998,{"$f":"IF(OR(D109=\"\",E109=\"\",F109=\"\"),\"\",IF(C109<>\"\",IF(ISERROR(VLOOKUP($A$10,POA!$A$2:$D$25,2,0)),\"\",VLOOKUP($A$10,POA!$A$2:$D$25,2,0)),\"\"))","v":4167150295},{"$f":"IF(OR(D109=\"\",E109=\"\",F109=\"\"),\"\",IF(C109<>\"\",F109/(G109*E109),\"\"))","v":15.339026599519372},{"$f":"IF(OR(D109=\"\",E109=\"\",F109=\"\"),\"\",IF(AND(H109>0,H109<=Experiencia1),Puntajes!$D$4,IF(AND(H109>Experiencia1,H109<=Experiencia2),Puntajes!$D$5,IF(AND(H109>Experiencia2,H109<=Experiencia3),Puntajes!$D$6,IF(H109>Experiencia3,Puntajes!$D$7,0)))))","v":120}]
[null,null,{"$f":"+'Capacidad Financiera'!B113","v":10.199999999999999},{"$f":"IF(ISERROR(VLOOKUP(C110,'Capacidad Financiera'!$B$12:$X$62720,2,0)),\"\",VLOOKUP(C110,'Capacidad Financiera'!$B$12:$X$3580,2,0))","v":"PAVIMENTACIONES MORALES SL"},{"$f":"IF(ISERROR(VLOOKUP(C110,'Capacidad Financiera'!$B$12:$X$62720,3,0)),\"\",VLOOKUP(C110,'Capacidad Financiera'!$B$12:$X$62720,3,0))","v":0.5},267365806862,{"$f":"IF(OR(D110=\"\",E110=\"\",F110=\"\"),\"\",IF(C110<>\"\",IF(ISERROR(VLOOKUP($A$10,POA!$A$2:$D$25,2,0)),\"\",VLOOKUP($A$10,POA!$A$2:$D$25,2,0)),\"\"))","v":4167150295},{"$f":"IF(OR(D110=\"\",E110=\"\",F110=\"\"),\"\",IF(C110<>\"\",F110/(G110*E110),\"\"))","v":128.32069300826598},{"$f":"IF(OR(D110=\"\",E110=\"\",F110=\"\"),\"\",IF(AND(H110>0,H110<=Experiencia1),Puntajes!$D$4,IF(AND(H110>Experiencia1,H110<=Experiencia2),Puntajes!$D$5,IF(AND(H110>Experiencia2,H110<=Experiencia3),Puntajes!$D$6,IF(H110>Experiencia3,Puntajes!$D$7,0)))))","v":120}]
[null,null,{"$f":"+'Capacidad Financiera'!B114","v":""},{"$f":"IF(ISERROR(VLOOKUP(C111,'Capacidad Financiera'!$B$12:$X$62720,2,0)),\"\",VLOOKUP(C111,'Capacidad Financiera'!$B$12:$X$3580,2,0))","v":0},{"$f":"IF(ISERROR(VLOOKUP(C111,'Capacidad Financiera'!$B$12:$X$62720,3,0)),\"\",VLOOKUP(C111,'Capacidad Financiera'!$B$12:$X$62720,3,0))","v":0},null,{"$f":"IF(OR(D111=\"\",E111=\"\",F111=\"\"),\"\",IF(C111<>\"\",IF(ISERROR(VLOOKUP($A$10,POA!$A$2:$D$25,2,0)),\"\",VLOOKUP($A$10,POA!$A$2:$D$25,2,0)),\"\"))","v":""},"",{"$f":"IF(OR(D111=\"\",E111=\"\",F111=\"\"),\"\",IF(AND(H111>0,H111<=Experiencia1),Puntajes!$D$4,IF(AND(H111>Experiencia1,H111<=Experiencia2),Puntajes!$D$5,IF(AND(H111>Experiencia2,H111<=Experiencia3),Puntajes!$D$6,IF(H111>Experiencia3,Puntajes!$D$7,0)))))","v":""}]
[null,null,{"$f":"+'Capacidad Financiera'!B115","v":""},{"$f":"IF(ISERROR(VLOOKUP(C112,'Capacidad Financiera'!$B$12:$X$62720,2,0)),\"\",VLOOKUP(C112,'Capacidad Financiera'!$B$12:$X$3580,2,0))","v":0},{"$f":"IF(ISERROR(VLOOKUP(C112,'Capacidad Financiera'!$B$12:$X$62720,3,0)),\"\",VLOOKUP(C112,'Capacidad Financiera'!$B$12:$X$62720,3,0))","v":0},null,{"$f":"IF(OR(D112=\"\",E112=\"\",F112=\"\"),\"\",IF(C112<>\"\",IF(ISERROR(VLOOKUP($A$10,POA!$A$2:$D$25,2,0)),\"\",VLOOKUP($A$10,POA!$A$2:$D$25,2,0)),\"\"))","v":""},"",{"$f":"IF(OR(D112=\"\",E112=\"\",F112=\"\"),\"\",IF(AND(H112>0,H112<=Experiencia1),Puntajes!$D$4,IF(AND(H112>Experiencia1,H112<=Experiencia2),Puntajes!$D$5,IF(AND(H112>Experiencia2,H112<=Experiencia3),Puntajes!$D$6,IF(H112>Experiencia3,Puntajes!$D$7,0)))))","v":""}]
[null,null,{"$f":"+'Capacidad Financiera'!B116","v":""},{"$f":"IF(ISERROR(VLOOKUP(C113,'Capacidad Financiera'!$B$12:$X$62720,2,0)),\"\",VLOOKUP(C113,'Capacidad Financiera'!$B$12:$X$3580,2,0))","v":0},{"$f":"IF(ISERROR(VLOOKUP(C113,'Capacidad Financiera'!$B$12:$X$62720,3,0)),\"\",VLOOKUP(C113,'Capacidad Financiera'!$B$12:$X$62720,3,0))","v":0},null,{"$f":"IF(OR(D113=\"\",E113=\"\",F113=\"\"),\"\",IF(C113<>\"\",IF(ISERROR(VLOOKUP($A$10,POA!$A$2:$D$25,2,0)),\"\",VLOOKUP($A$10,POA!$A$2:$D$25,2,0)),\"\"))","v":""},"",{"$f":"IF(OR(D113=\"\",E113=\"\",F113=\"\"),\"\",IF(AND(H113>0,H113<=Experiencia1),Puntajes!$D$4,IF(AND(H113>Experiencia1,H113<=Experiencia2),Puntajes!$D$5,IF(AND(H113>Experiencia2,H113<=Experiencia3),Puntajes!$D$6,IF(H113>Experiencia3,Puntajes!$D$7,0)))))","v":""}]
[null,null,{"$f":"+'Capacidad Financiera'!B117","v":""},{"$f":"IF(ISERROR(VLOOKUP(C114,'Capacidad Financiera'!$B$12:$X$62720,2,0)),\"\",VLOOKUP(C114,'Capacidad Financiera'!$B$12:$X$3580,2,0))","v":0},{"$f":"IF(ISERROR(VLOOKUP(C114,'Capacidad Financiera'!$B$12:$X$62720,3,0)),\"\",VLOOKUP(C114,'Capacidad Financiera'!$B$12:$X$62720,3,0))","v":0},null,{"$f":"IF(OR(D114=\"\",E114=\"\",F114=\"\"),\"\",IF(C114<>\"\",IF(ISERROR(VLOOKUP($A$10,POA!$A$2:$D$25,2,0)),\"\",VLOOKUP($A$10,POA!$A$2:$D$25,2,0)),\"\"))","v":""},"",{"$f":"IF(OR(D114=\"\",E114=\"\",F114=\"\"),\"\",IF(AND(H114>0,H114<=Experiencia1),Puntajes!$D$4,IF(AND(H114>Experiencia1,H114<=Experiencia2),Puntajes!$D$5,IF(AND(H114>Experiencia2,H114<=Experiencia3),Puntajes!$D$6,IF(H114>Experiencia3,Puntajes!$D$7,0)))))","v":""}]
[null,null,{"$f":"+'Capacidad Financiera'!B118","v":""},{"$f":"IF(ISERROR(VLOOKUP(C115,'Capacidad Financiera'!$B$12:$X$62720,2,0)),\"\",VLOOKUP(C115,'Capacidad Financiera'!$B$12:$X$3580,2,0))","v":0},{"$f":"IF(ISERROR(VLOOKUP(C115,'Capacidad Financiera'!$B$12:$X$62720,3,0)),\"\",VLOOKUP(C115,'Capacidad Financiera'!$B$12:$X$62720,3,0))","v":0},null,{"$f":"IF(OR(D115=\"\",E115=\"\",F115=\"\"),\"\",IF(C115<>\"\",IF(ISERROR(VLOOKUP($A$10,POA!$A$2:$D$25,2,0)),\"\",VLOOKUP($A$10,POA!$A$2:$D$25,2,0)),\"\"))","v":""},"",{"$f":"IF(OR(D115=\"\",E115=\"\",F115=\"\"),\"\",IF(AND(H115>0,H115<=Experiencia1),Puntajes!$D$4,IF(AND(H115>Experiencia1,H115<=Experiencia2),Puntajes!$D$5,IF(AND(H115>Experiencia2,H115<=Experiencia3),Puntajes!$D$6,IF(H115>Experiencia3,Puntajes!$D$7,0)))))","v":""}]
[null,null,{"$f":"+'Capacidad Financiera'!B119","v":""},{"$f":"IF(ISERROR(VLOOKUP(C116,'Capacidad Financiera'!$B$12:$X$62720,2,0)),\"\",VLOOKUP(C116,'Capacidad Financiera'!$B$12:$X$3580,2,0))","v":0},{"$f":"IF(ISERROR(VLOOKUP(C116,'Capacidad Financiera'!$B$12:$X$62720,3,0)),\"\",VLOOKUP(C116,'Capacidad Financiera'!$B$12:$X$62720,3,0))","v":0},null,{"$f":"IF(OR(D116=\"\",E116=\"\",F116=\"\"),\"\",IF(C116<>\"\",IF(ISERROR(VLOOKUP($A$10,POA!$A$2:$D$25,2,0)),\"\",VLOOKUP($A$10,POA!$A$2:$D$25,2,0)),\"\"))","v":""},"",{"$f":"IF(OR(D116=\"\",E116=\"\",F116=\"\"),\"\",IF(AND(H116>0,H116<=Experiencia1),Puntajes!$D$4,IF(AND(H116>Experiencia1,H116<=Experiencia2),Puntajes!$D$5,IF(AND(H116>Experiencia2,H116<=Experiencia3),Puntajes!$D$6,IF(H116>Experiencia3,Puntajes!$D$7,0)))))","v":""}]
[null,null,{"$f":"+'Capacidad Financiera'!B120","v":""},{"$f":"IF(ISERROR(VLOOKUP(C117,'Capacidad Financiera'!$B$12:$X$62720,2,0)),\"\",VLOOKUP(C117,'Capacidad Financiera'!$B$12:$X$3580,2,0))","v":0},{"$f":"IF(ISERROR(VLOOKUP(C117,'Capacidad Financiera'!$B$12:$X$62720,3,0)),\"\",VLOOKUP(C117,'Capacidad Financiera'!$B$12:$X$62720,3,0))","v":0},null,{"$f":"IF(OR(D117=\"\",E117=\"\",F117=\"\"),\"\",IF(C117<>\"\",IF(ISERROR(VLOOKUP($A$10,POA!$A$2:$D$25,2,0)),\"\",VLOOKUP($A$10,POA!$A$2:$D$25,2,0)),\"\"))","v":""},"",{"$f":"IF(OR(D117=\"\",E117=\"\",F117=\"\"),\"\",IF(AND(H117>0,H117<=Experiencia1),Puntajes!$D$4,IF(AND(H117>Experiencia1,H117<=Experiencia2),Puntajes!$D$5,IF(AND(H117>Experiencia2,H117<=Experiencia3),Puntajes!$D$6,IF(H117>Experiencia3,Puntajes!$D$7,0)))))","v":""}]
[null,null,{"$f":"+'Capacidad Financiera'!B121","v":""},{"$f":"IF(ISERROR(VLOOKUP(C118,'Capacidad Financiera'!$B$12:$X$62720,2,0)),\"\",VLOOKUP(C118,'Capacidad Financiera'!$B$12:$X$3580,2,0))","v":0},{"$f":"IF(ISERROR(VLOOKUP(C118,'Capacidad Financiera'!$B$12:$X$62720,3,0)),\"\",VLOOKUP(C118,'Capacidad Financiera'!$B$12:$X$62720,3,0))","v":0},null,{"$f":"IF(OR(D118=\"\",E118=\"\",F118=\"\"),\"\",IF(C118<>\"\",IF(ISERROR(VLOOKUP($A$10,POA!$A$2:$D$25,2,0)),\"\",VLOOKUP($A$10,POA!$A$2:$D$25,2,0)),\"\"))","v":""},"",{"$f":"IF(OR(D118=\"\",E118=\"\",F118=\"\"),\"\",IF(AND(H118>0,H118<=Experiencia1),Puntajes!$D$4,IF(AND(H118>Experiencia1,H118<=Experiencia2),Puntajes!$D$5,IF(AND(H118>Experiencia2,H118<=Experiencia3),Puntajes!$D$6,IF(H118>Experiencia3,Puntajes!$D$7,0)))))","v":""}]
[null,null,11,{"$f":"IF(ISERROR(VLOOKUP(C119,'Capacidad Financiera'!$B$12:$X$62720,2,0)),\"\",VLOOKUP(C119,'Capacidad Financiera'!$B$12:$X$3580,2,0))","v":"CONSORCIO INTERVIAS CUNDINAMARCA 2014"},{"$f":"IF(ISERROR(VLOOKUP(C119,'Capacidad Financiera'!$B$12:$X$62720,3,0)),\"\",VLOOKUP(C119,'Capacidad Financiera'!$B$12:$X$62720,3,0))","v":1},null,{"$f":"IF(OR(D119=\"\",E119=\"\",F119=\"\"),\"\",IF(C120=\"\",IF(C119<>\"\",IF(ISERROR(VLOOKUP($A$10,POA!$A$2:$D$25,2,0)),\"\",VLOOKUP($A$10,POA!$A$2:$D$25,2,0)),\"\"),\"\"))","v":""},{"$f":"IF(OR(D119=\"\",E119=\"\",F119=\"\"),\"\",IF(C120=\"\",IF(C119<>\"\",F119/G119,\"\"),\"\"))","v":""},{"$f":"IF(C120=\"\",IF(F119=\"\",\"\",IF(AND(H119>0,H119<=Experiencia1),Puntajes!$D$4,IF(AND(H119>Experiencia1,H119<=Experiencia2),Puntajes!$D$5,IF(AND(H119>Experiencia2,H119<=Experiencia3),Puntajes!$D$6,IF(H119>Experiencia3,Puntajes!$D$7,0))))),\"\")","v":""}]
[null,null,{"$f":"+'Capacidad Financiera'!B123","v":11.1},{"$f":"IF(ISERROR(VLOOKUP(C120,'Capacidad Financiera'!$B$12:$X$62720,2,0)),\"\",VLOOKUP(C120,'Capacidad Financiera'!$B$12:$X$3580,2,0))","v":"MBM INGENIERIA S.A.S."},{"$f":"IF(ISERROR(VLOOKUP(C120,'Capacidad Financiera'!$B$12:$X$62720,3,0)),\"\",VLOOKUP(C120,'Capacidad Financiera'!$B$12:$X$62720,3,0))","v":0.4},668447472,{"$f":"IF(OR(D120=\"\",E120=\"\",F120=\"\"),\"\",IF(C120<>\"\",IF(ISERROR(VLOOKUP($A$10,POA!$A$2:$D$25,2,0)),\"\",VLOOKUP($A$10,POA!$A$2:$D$25,2,0)),\"\"))","v":4167150295},{"$f":"IF(OR(D120=\"\",E120=\"\",F120=\"\"),\"\",IF(C120<>\"\",F120/(G120*E120),\"\"))","v":0.40102193626304039},{"$f":"IF(OR(D120=\"\",E120=\"\",F120=\"\"),\"\",IF(AND(H120>0,H120<=Experiencia1),Puntajes!$D$4,IF(AND(H120>Experiencia1,H120<=Experiencia2),Puntajes!$D$5,IF(AND(H120>Experiencia2,H120<=Experiencia3),Puntajes!$D$6,IF(H120>Experiencia3,Puntajes!$D$7,0)))))","v":60}]
[null,null,{"$f":"+'Capacidad Financiera'!B124","v":11.2},{"$f":"IF(ISERROR(VLOOKUP(C121,'Capacidad Financiera'!$B$12:$X$62720,2,0)),\"\",VLOOKUP(C121,'Capacidad Financiera'!$B$12:$X$3580,2,0))","v":"GUEVARA BAQUERO CIA LTDA."},{"$f":"IF(ISERROR(VLOOKUP(C121,'Capacidad Financiera'!$B$12:$X$62720,3,0)),\"\",VLOOKUP(C121,'Capacidad Financiera'!$B$12:$X$62720,3,0))","v":0.4},50275811924.800003,{"$f":"IF(OR(D121=\"\",E121=\"\",F121=\"\"),\"\",IF(C121<>\"\",IF(ISERROR(VLOOKUP($A$10,POA!$A$2:$D$25,2,0)),\"\",VLOOKUP($A$10,POA!$A$2:$D$25,2,0)),\"\"))","v":4167150295},{"$f":"IF(OR(D121=\"\",E121=\"\",F121=\"\"),\"\",IF(C121<>\"\",F121/(G121*E121),\"\"))","v":30.161986229008811},{"$f":"IF(OR(D121=\"\",E121=\"\",F121=\"\"),\"\",IF(AND(H121>0,H121<=Experiencia1),Puntajes!$D$4,IF(AND(H121>Experiencia1,H121<=Experiencia2),Puntajes!$D$5,IF(AND(H121>Experiencia2,H121<=Experiencia3),Puntajes!$D$6,IF(H121>Experiencia3,Puntajes!$D$7,0)))))","v":120}]
[null,null,{"$f":"+'Capacidad Financiera'!B125","v":11.299999999999999},{"$f":"IF(ISERROR(VLOOKUP(C122,'Capacidad Financiera'!$B$12:$X$62720,2,0)),\"\",VLOOKUP(C122,'Capacidad Financiera'!$B$12:$X$3580,2,0))","v":"VIGA INGENIERIA S.A.S."},{"$f":"IF(ISERROR(VLOOKUP(C122,'Capacidad Financiera'!$B$12:$X$62720,3,0)),\"\",VLOOKUP(C122,'Capacidad Financiera'!$B$12:$X$62720,3,0))","v":0.2},844421424,{"$f":"IF(OR(D122=\"\",E122=\"\",F122=\"\"),\"\",IF(C122<>\"\",IF(ISERROR(VLOOKUP($A$10,POA!$A$2:$D$25,2,0)),\"\",VLOOKUP($A$10,POA!$A$2:$D$25,2,0)),\"\"))","v":4167150295},1.0131881072458415,{"$f":"IF(OR(D122=\"\",E122=\"\",F122=\"\"),\"\",IF(AND(H122>0,H122<=Experiencia1),Puntajes!$D$4,IF(AND(H122>Experiencia1,H122<=Experiencia2),Puntajes!$D$5,IF(AND(H122>Experiencia2,H122<=Experiencia3),Puntajes!$D$6,IF(H122>Experiencia3,Puntajes!$D$7,0)))))","v":60}]
[null,null,{"$f":"+'Capacidad Financiera'!B126","v":""},{"$f":"IF(ISERROR(VLOOKUP(C123,'Capacidad Financiera'!$B$12:$X$62720,2,0)),\"\",VLOOKUP(C123,'Capacidad Financiera'!$B$12:$X$3580,2,0))","v":0},{"$f":"IF(ISERROR(VLOOKUP(C123,'Capacidad Financiera'!$B$12:$X$62720,3,0)),\"\",VLOOKUP(C123,'Capacidad Financiera'!$B$12:$X$62720,3,0))","v":0},null,{"$f":"IF(OR(D123=\"\",E123=\"\",F123=\"\"),\"\",IF(C123<>\"\",IF(ISERROR(VLOOKUP($A$10,POA!$A$2:$D$25,2,0)),\"\",VLOOKUP($A$10,POA!$A$2:$D$25,2,0)),\"\"))","v":""},"",{"$f":"IF(OR(D123=\"\",E123=\"\",F123=\"\"),\"\",IF(AND(H123>0,H123<=Experiencia1),Puntajes!$D$4,IF(AND(H123>Experiencia1,H123<=Experiencia2),Puntajes!$D$5,IF(AND(H123>Experiencia2,H123<=Experiencia3),Puntajes!$D$6,IF(H123>Experiencia3,Puntajes!$D$7,0)))))","v":""}]
[null,null,{"$f":"+'Capacidad Financiera'!B127","v":""},{"$f":"IF(ISERROR(VLOOKUP(C124,'Capacidad Financiera'!$B$12:$X$62720,2,0)),\"\",VLOOKUP(C124,'Capacidad Financiera'!$B$12:$X$3580,2,0))","v":0},{"$f":"IF(ISERROR(VLOOKUP(C124,'Capacidad Financiera'!$B$12:$X$62720,3,0)),\"\",VLOOKUP(C124,'Capacidad Financiera'!$B$12:$X$62720,3,0))","v":0},null,{"$f":"IF(OR(D124=\"\",E124=\"\",F124=\"\"),\"\",IF(C124<>\"\",IF(ISERROR(VLOOKUP($A$10,POA!$A$2:$D$25,2,0)),\"\",VLOOKUP($A$10,POA!$A$2:$D$25,2,0)),\"\"))","v":""},"",{"$f":"IF(OR(D124=\"\",E124=\"\",F124=\"\"),\"\",IF(AND(H124>0,H124<=Experiencia1),Puntajes!$D$4,IF(AND(H124>Experiencia1,H124<=Experiencia2),Puntajes!$D$5,IF(AND(H124>Experiencia2,H124<=Experiencia3),Puntajes!$D$6,IF(H124>Experiencia3,Puntajes!$D$7,0)))))","v":""}]
[null,null,{"$f":"+'Capacidad Financiera'!B128","v":""},{"$f":"IF(ISERROR(VLOOKUP(C125,'Capacidad Financiera'!$B$12:$X$62720,2,0)),\"\",VLOOKUP(C125,'Capacidad Financiera'!$B$12:$X$3580,2,0))","v":0},{"$f":"IF(ISERROR(VLOOKUP(C125,'Capacidad Financiera'!$B$12:$X$62720,3,0)),\"\",VLOOKUP(C125,'Capacidad Financiera'!$B$12:$X$62720,3,0))","v":0},null,{"$f":"IF(OR(D125=\"\",E125=\"\",F125=\"\"),\"\",IF(C125<>\"\",IF(ISERROR(VLOOKUP($A$10,POA!$A$2:$D$25,2,0)),\"\",VLOOKUP($A$10,POA!$A$2:$D$25,2,0)),\"\"))","v":""},"",{"$f":"IF(OR(D125=\"\",E125=\"\",F125=\"\"),\"\",IF(AND(H125>0,H125<=Experiencia1),Puntajes!$D$4,IF(AND(H125>Experiencia1,H125<=Experiencia2),Puntajes!$D$5,IF(AND(H125>Experiencia2,H125<=Experiencia3),Puntajes!$D$6,IF(H125>Experiencia3,Puntajes!$D$7,0)))))","v":""}]
[null,null,{"$f":"+'Capacidad Financiera'!B129","v":""},{"$f":"IF(ISERROR(VLOOKUP(C126,'Capacidad Financiera'!$B$12:$X$62720,2,0)),\"\",VLOOKUP(C126,'Capacidad Financiera'!$B$12:$X$3580,2,0))","v":0},{"$f":"IF(ISERROR(VLOOKUP(C126,'Capacidad Financiera'!$B$12:$X$62720,3,0)),\"\",VLOOKUP(C126,'Capacidad Financiera'!$B$12:$X$62720,3,0))","v":0},null,{"$f":"IF(OR(D126=\"\",E126=\"\",F126=\"\"),\"\",IF(C126<>\"\",IF(ISERROR(VLOOKUP($A$10,POA!$A$2:$D$25,2,0)),\"\",VLOOKUP($A$10,POA!$A$2:$D$25,2,0)),\"\"))","v":""},"",{"$f":"IF(OR(D126=\"\",E126=\"\",F126=\"\"),\"\",IF(AND(H126>0,H126<=Experiencia1),Puntajes!$D$4,IF(AND(H126>Experiencia1,H126<=Experiencia2),Puntajes!$D$5,IF(AND(H126>Experiencia2,H126<=Experiencia3),Puntajes!$D$6,IF(H126>Experiencia3,Puntajes!$D$7,0)))))","v":""}]
[null,null,{"$f":"+'Capacidad Financiera'!B130","v":""},{"$f":"IF(ISERROR(VLOOKUP(C127,'Capacidad Financiera'!$B$12:$X$62720,2,0)),\"\",VLOOKUP(C127,'Capacidad Financiera'!$B$12:$X$3580,2,0))","v":0},{"$f":"IF(ISERROR(VLOOKUP(C127,'Capacidad Financiera'!$B$12:$X$62720,3,0)),\"\",VLOOKUP(C127,'Capacidad Financiera'!$B$12:$X$62720,3,0))","v":0},null,{"$f":"IF(OR(D127=\"\",E127=\"\",F127=\"\"),\"\",IF(C127<>\"\",IF(ISERROR(VLOOKUP($A$10,POA!$A$2:$D$25,2,0)),\"\",VLOOKUP($A$10,POA!$A$2:$D$25,2,0)),\"\"))","v":""},"",{"$f":"IF(OR(D127=\"\",E127=\"\",F127=\"\"),\"\",IF(AND(H127>0,H127<=Experiencia1),Puntajes!$D$4,IF(AND(H127>Experiencia1,H127<=Experiencia2),Puntajes!$D$5,IF(AND(H127>Experiencia2,H127<=Experiencia3),Puntajes!$D$6,IF(H127>Experiencia3,Puntajes!$D$7,0)))))","v":""}]
[null,null,{"$f":"+'Capacidad Financiera'!B131","v":""},{"$f":"IF(ISERROR(VLOOKUP(C128,'Capacidad Financiera'!$B$12:$X$62720,2,0)),\"\",VLOOKUP(C128,'Capacidad Financiera'!$B$12:$X$3580,2,0))","v":0},{"$f":"IF(ISERROR(VLOOKUP(C128,'Capacidad Financiera'!$B$12:$X$62720,3,0)),\"\",VLOOKUP(C128,'Capacidad Financiera'!$B$12:$X$62720,3,0))","v":0},null,{"$f":"IF(OR(D128=\"\",E128=\"\",F128=\"\"),\"\",IF(C128<>\"\",IF(ISERROR(VLOOKUP($A$10,POA!$A$2:$D$25,2,0)),\"\",VLOOKUP($A$10,POA!$A$2:$D$25,2,0)),\"\"))","v":""},"",{"$f":"IF(OR(D128=\"\",E128=\"\",F128=\"\"),\"\",IF(AND(H128>0,H128<=Experiencia1),Puntajes!$D$4,IF(AND(H128>Experiencia1,H128<=Experiencia2),Puntajes!$D$5,IF(AND(H128>Experiencia2,H128<=Experiencia3),Puntajes!$D$6,IF(H128>Experiencia3,Puntajes!$D$7,0)))))","v":""}]
[null,null,{"$f":"+'Capacidad Financiera'!B132","v":""},{"$f":"IF(ISERROR(VLOOKUP(C129,'Capacidad Financiera'!$B$12:$X$62720,2,0)),\"\",VLOOKUP(C129,'Capacidad Financiera'!$B$12:$X$3580,2,0))","v":0},{"$f":"IF(ISERROR(VLOOKUP(C129,'Capacidad Financiera'!$B$12:$X$62720,3,0)),\"\",VLOOKUP(C129,'Capacidad Financiera'!$B$12:$X$62720,3,0))","v":0},null,{"$f":"IF(OR(D129=\"\",E129=\"\",F129=\"\"),\"\",IF(C129<>\"\",IF(ISERROR(VLOOKUP($A$10,POA!$A$2:$D$25,2,0)),\"\",VLOOKUP($A$10,POA!$A$2:$D$25,2,0)),\"\"))","v":""},"",{"$f":"IF(OR(D129=\"\",E129=\"\",F129=\"\"),\"\",IF(AND(H129>0,H129<=Experiencia1),Puntajes!$D$4,IF(AND(H129>Experiencia1,H129<=Experiencia2),Puntajes!$D$5,IF(AND(H129>Experiencia2,H129<=Experiencia3),Puntajes!$D$6,IF(H129>Experiencia3,Puntajes!$D$7,0)))))","v":""}]
[null,null,12,{"$f":"IF(ISERROR(VLOOKUP(C130,'Capacidad Financiera'!$B$12:$X$62720,2,0)),\"\",VLOOKUP(C130,'Capacidad Financiera'!$B$12:$X$3580,2,0))","v":"UNION TEMPORALSANTA MONICA"},{"$f":"IF(ISERROR(VLOOKUP(C130,'Capacidad Financiera'!$B$12:$X$62720,3,0)),\"\",VLOOKUP(C130,'Capacidad Financiera'!$B$12:$X$62720,3,0))","v":1},null,{"$f":"IF(OR(D130=\"\",E130=\"\",F130=\"\"),\"\",IF(C131=\"\",IF(C130<>\"\",IF(ISERROR(VLOOKUP($A$10,POA!$A$2:$D$25,2,0)),\"\",VLOOKUP($A$10,POA!$A$2:$D$25,2,0)),\"\"),\"\"))","v":""},{"$f":"IF(OR(D130=\"\",E130=\"\",F130=\"\"),\"\",IF(C131=\"\",IF(C130<>\"\",F130/G130,\"\"),\"\"))","v":""},{"$f":"IF(C131=\"\",IF(F130=\"\",\"\",IF(AND(H130>0,H130<=Experiencia1),Puntajes!$D$4,IF(AND(H130>Experiencia1,H130<=Experiencia2),Puntajes!$D$5,IF(AND(H130>Experiencia2,H130<=Experiencia3),Puntajes!$D$6,IF(H130>Experiencia3,Puntajes!$D$7,0))))),\"\")","v":""}]
[null,null,{"$f":"+'Capacidad Financiera'!B134","v":12.1},{"$f":"IF(ISERROR(VLOOKUP(C131,'Capacidad Financiera'!$B$12:$X$62720,2,0)),\"\",VLOOKUP(C131,'Capacidad Financiera'!$B$12:$X$3580,2,0))","v":"EQUIPOS Y CONSTRUCCIONES VAREGO S.A.S."},{"$f":"IF(ISERROR(VLOOKUP(C131,'Capacidad Financiera'!$B$12:$X$62720,3,0)),\"\",VLOOKUP(C131,'Capacidad Financiera'!$B$12:$X$62720,3,0))","v":0.3},69605582362.009995,{"$f":"IF(OR(D131=\"\",E131=\"\",F131=\"\"),\"\",IF(C131<>\"\",IF(ISERROR(VLOOKUP($A$10,POA!$A$2:$D$25,2,0)),\"\",VLOOKUP($A$10,POA!$A$2:$D$25,2,0)),\"\"))","v":4167150295},{"$f":"IF(OR(D131=\"\",E131=\"\",F131=\"\"),\"\",IF(C131<>\"\",F131/(G131*E131),\"\"))","v":55.678003299222652},{"$f":"IF(OR(D131=\"\",E131=\"\",F131=\"\"),\"\",IF(AND(H131>0,H131<=Experiencia1),Puntajes!$D$4,IF(AND(H131>Experiencia1,H131<=Experiencia2),Puntajes!$D$5,IF(AND(H131>Experiencia2,H131<=Experiencia3),Puntajes!$D$6,IF(H131>Experiencia3,Puntajes!$D$7,0)))))","v":120}]
[null,null,{"$f":"+'Capacidad Financiera'!B135","v":12.2},{"$f":"IF(ISERROR(VLOOKUP(C132,'Capacidad Financiera'!$B$12:$X$62720,2,0)),\"\",VLOOKUP(C132,'Capacidad Financiera'!$B$12:$X$3580,2,0))","v":"VAREGO S.A.S."},{"$f":"IF(ISERROR(VLOOKUP(C132,'Capacidad Financiera'!$B$12:$X$62720,3,0)),\"\",VLOOKUP(C132,'Capacidad Financiera'!$B$12:$X$62720,3,0))","v":0.3},627785312,{"$f":"IF(OR(D132=\"\",E132=\"\",F132=\"\"),\"\",IF(C132<>\"\",IF(ISERROR(VLOOKUP($A$10,POA!$A$2:$D$25,2,0)),\"\",VLOOKUP($A$10,POA!$A$2:$D$25,2,0)),\"\"))","v":4167150295},{"$f":"IF(OR(D132=\"\",E132=\"\",F132=\"\"),\"\",IF(C132<>\"\",F132/(G132*E132),\"\"))","v":0.5021699623307363},{"$f":"IF(OR(D132=\"\",E132=\"\",F132=\"\"),\"\",IF(AND(H132>0,H132<=Experiencia1),Puntajes!$D$4,IF(AND(H132>Experiencia1,H132<=Experiencia2),Puntajes!$D$5,IF(AND(H132>Experiencia2,H132<=Experiencia3),Puntajes!$D$6,IF(H132>Experiencia3,Puntajes!$D$7,0)))))","v":60}]
[null,null,{"$f":"+'Capacidad Financiera'!B136","v":12.299999999999999},{"$f":"IF(ISERROR(VLOOKUP(C133,'Capacidad Financiera'!$B$12:$X$62720,2,0)),\"\",VLOOKUP(C133,'Capacidad Financiera'!$B$12:$X$3580,2,0))","v":"INCIVIAS LTDA."},{"$f":"IF(ISERROR(VLOOKUP(C133,'Capacidad Financiera'!$B$12:$X$62720,3,0)),\"\",VLOOKUP(C133,'Capacidad Financiera'!$B$12:$X$62720,3,0))","v":0.4},20612332479.200001,{"$f":"IF(OR(D133=\"\",E133=\"\",F133=\"\"),\"\",IF(C133<>\"\",IF(ISERROR(VLOOKUP($A$10,POA!$A$2:$D$25,2,0)),\"\",VLOOKUP($A$10,POA!$A$2:$D$25,2,0)),\"\"))","v":4167150295},12.365964160167158,{"$f":"IF(OR(D133=\"\",E133=\"\",F133=\"\"),\"\",IF(AND(H133>0,H133<=Experiencia1),Puntajes!$D$4,IF(AND(H133>Experiencia1,H133<=Experiencia2),Puntajes!$D$5,IF(AND(H133>Experiencia2,H133<=Experiencia3),Puntajes!$D$6,IF(H133>Experiencia3,Puntajes!$D$7,0)))))","v":120}]
[null,null,{"$f":"+'Capacidad Financiera'!B137","v":""},{"$f":"IF(ISERROR(VLOOKUP(C134,'Capacidad Financiera'!$B$12:$X$62720,2,0)),\"\",VLOOKUP(C134,'Capacidad Financiera'!$B$12:$X$3580,2,0))","v":0},{"$f":"IF(ISERROR(VLOOKUP(C134,'Capacidad Financiera'!$B$12:$X$62720,3,0)),\"\",VLOOKUP(C134,'Capacidad Financiera'!$B$12:$X$62720,3,0))","v":0},null,{"$f":"IF(OR(D134=\"\",E134=\"\",F134=\"\"),\"\",IF(C134<>\"\",IF(ISERROR(VLOOKUP($A$10,POA!$A$2:$D$25,2,0)),\"\",VLOOKUP($A$10,POA!$A$2:$D$25,2,0)),\"\"))","v":""},"",{"$f":"IF(OR(D134=\"\",E134=\"\",F134=\"\"),\"\",IF(AND(H134>0,H134<=Experiencia1),Puntajes!$D$4,IF(AND(H134>Experiencia1,H134<=Experiencia2),Puntajes!$D$5,IF(AND(H134>Experiencia2,H134<=Experiencia3),Puntajes!$D$6,IF(H134>Experiencia3,Puntajes!$D$7,0)))))","v":""}]
[null,null,{"$f":"+'Capacidad Financiera'!B138","v":""},{"$f":"IF(ISERROR(VLOOKUP(C135,'Capacidad Financiera'!$B$12:$X$62720,2,0)),\"\",VLOOKUP(C135,'Capacidad Financiera'!$B$12:$X$3580,2,0))","v":0},{"$f":"IF(ISERROR(VLOOKUP(C135,'Capacidad Financiera'!$B$12:$X$62720,3,0)),\"\",VLOOKUP(C135,'Capacidad Financiera'!$B$12:$X$62720,3,0))","v":0},null,{"$f":"IF(OR(D135=\"\",E135=\"\",F135=\"\"),\"\",IF(C135<>\"\",IF(ISERROR(VLOOKUP($A$10,POA!$A$2:$D$25,2,0)),\"\",VLOOKUP($A$10,POA!$A$2:$D$25,2,0)),\"\"))","v":""},"",{"$f":"IF(OR(D135=\"\",E135=\"\",F135=\"\"),\"\",IF(AND(H135>0,H135<=Experiencia1),Puntajes!$D$4,IF(AND(H135>Experiencia1,H135<=Experiencia2),Puntajes!$D$5,IF(AND(H135>Experiencia2,H135<=Experiencia3),Puntajes!$D$6,IF(H135>Experiencia3,Puntajes!$D$7,0)))))","v":""}]
[null,null,{"$f":"+'Capacidad Financiera'!B139","v":""},{"$f":"IF(ISERROR(VLOOKUP(C136,'Capacidad Financiera'!$B$12:$X$62720,2,0)),\"\",VLOOKUP(C136,'Capacidad Financiera'!$B$12:$X$3580,2,0))","v":0},{"$f":"IF(ISERROR(VLOOKUP(C136,'Capacidad Financiera'!$B$12:$X$62720,3,0)),\"\",VLOOKUP(C136,'Capacidad Financiera'!$B$12:$X$62720,3,0))","v":0},null,{"$f":"IF(OR(D136=\"\",E136=\"\",F136=\"\"),\"\",IF(C136<>\"\",IF(ISERROR(VLOOKUP($A$10,POA!$A$2:$D$25,2,0)),\"\",VLOOKUP($A$10,POA!$A$2:$D$25,2,0)),\"\"))","v":""},"",{"$f":"IF(OR(D136=\"\",E136=\"\",F136=\"\"),\"\",IF(AND(H136>0,H136<=Experiencia1),Puntajes!$D$4,IF(AND(H136>Experiencia1,H136<=Experiencia2),Puntajes!$D$5,IF(AND(H136>Experiencia2,H136<=Experiencia3),Puntajes!$D$6,IF(H136>Experiencia3,Puntajes!$D$7,0)))))","v":""}]
[null,null,{"$f":"+'Capacidad Financiera'!B140","v":""},{"$f":"IF(ISERROR(VLOOKUP(C137,'Capacidad Financiera'!$B$12:$X$62720,2,0)),\"\",VLOOKUP(C137,'Capacidad Financiera'!$B$12:$X$3580,2,0))","v":0},{"$f":"IF(ISERROR(VLOOKUP(C137,'Capacidad Financiera'!$B$12:$X$62720,3,0)),\"\",VLOOKUP(C137,'Capacidad Financiera'!$B$12:$X$62720,3,0))","v":0},null,{"$f":"IF(OR(D137=\"\",E137=\"\",F137=\"\"),\"\",IF(C137<>\"\",IF(ISERROR(VLOOKUP($A$10,POA!$A$2:$D$25,2,0)),\"\",VLOOKUP($A$10,POA!$A$2:$D$25,2,0)),\"\"))","v":""},"",{"$f":"IF(OR(D137=\"\",E137=\"\",F137=\"\"),\"\",IF(AND(H137>0,H137<=Experiencia1),Puntajes!$D$4,IF(AND(H137>Experiencia1,H137<=Experiencia2),Puntajes!$D$5,IF(AND(H137>Experiencia2,H137<=Experiencia3),Puntajes!$D$6,IF(H137>Experiencia3,Puntajes!$D$7,0)))))","v":""}]
[null,null,{"$f":"+'Capacidad Financiera'!B141","v":""},{"$f":"IF(ISERROR(VLOOKUP(C138,'Capacidad Financiera'!$B$12:$X$62720,2,0)),\"\",VLOOKUP(C138,'Capacidad Financiera'!$B$12:$X$3580,2,0))","v":0},{"$f":"IF(ISERROR(VLOOKUP(C138,'Capacidad Financiera'!$B$12:$X$62720,3,0)),\"\",VLOOKUP(C138,'Capacidad Financiera'!$B$12:$X$62720,3,0))","v":0},null,{"$f":"IF(OR(D138=\"\",E138=\"\",F138=\"\"),\"\",IF(C138<>\"\",IF(ISERROR(VLOOKUP($A$10,POA!$A$2:$D$25,2,0)),\"\",VLOOKUP($A$10,POA!$A$2:$D$25,2,0)),\"\"))","v":""},"",{"$f":"IF(OR(D138=\"\",E138=\"\",F138=\"\"),\"\",IF(AND(H138>0,H138<=Experiencia1),Puntajes!$D$4,IF(AND(H138>Experiencia1,H138<=Experiencia2),Puntajes!$D$5,IF(AND(H138>Experiencia2,H138<=Experiencia3),Puntajes!$D$6,IF(H138>Experiencia3,Puntajes!$D$7,0)))))","v":""}]
[null,null,{"$f":"+'Capacidad Financiera'!B142","v":""},{"$f":"IF(ISERROR(VLOOKUP(C139,'Capacidad Financiera'!$B$12:$X$62720,2,0)),\"\",VLOOKUP(C139,'Capacidad Financiera'!$B$12:$X$3580,2,0))","v":0},{"$f":"IF(ISERROR(VLOOKUP(C139,'Capacidad Financiera'!$B$12:$X$62720,3,0)),\"\",VLOOKUP(C139,'Capacidad Financiera'!$B$12:$X$62720,3,0))","v":0},null,{"$f":"IF(OR(D139=\"\",E139=\"\",F139=\"\"),\"\",IF(C139<>\"\",IF(ISERROR(VLOOKUP($A$10,POA!$A$2:$D$25,2,0)),\"\",VLOOKUP($A$10,POA!$A$2:$D$25,2,0)),\"\"))","v":""},"",{"$f":"IF(OR(D139=\"\",E139=\"\",F139=\"\"),\"\",IF(AND(H139>0,H139<=Experiencia1),Puntajes!$D$4,IF(AND(H139>Experiencia1,H139<=Experiencia2),Puntajes!$D$5,IF(AND(H139>Experiencia2,H139<=Experiencia3),Puntajes!$D$6,IF(H139>Experiencia3,Puntajes!$D$7,0)))))","v":""}]
[null,null,{"$f":"+'Capacidad Financiera'!B143","v":""},{"$f":"IF(ISERROR(VLOOKUP(C140,'Capacidad Financiera'!$B$12:$X$62720,2,0)),\"\",VLOOKUP(C140,'Capacidad Financiera'!$B$12:$X$3580,2,0))","v":0},{"$f":"IF(ISERROR(VLOOKUP(C140,'Capacidad Financiera'!$B$12:$X$62720,3,0)),\"\",VLOOKUP(C140,'Capacidad Financiera'!$B$12:$X$62720,3,0))","v":0},null,{"$f":"IF(OR(D140=\"\",E140=\"\",F140=\"\"),\"\",IF(C140<>\"\",IF(ISERROR(VLOOKUP($A$10,POA!$A$2:$D$25,2,0)),\"\",VLOOKUP($A$10,POA!$A$2:$D$25,2,0)),\"\"))","v":""},"",{"$f":"IF(OR(D140=\"\",E140=\"\",F140=\"\"),\"\",IF(AND(H140>0,H140<=Experiencia1),Puntajes!$D$4,IF(AND(H140>Experiencia1,H140<=Experiencia2),Puntajes!$D$5,IF(AND(H140>Experiencia2,H140<=Experiencia3),Puntajes!$D$6,IF(H140>Experiencia3,Puntajes!$D$7,0)))))","v":""}]
[null,null,13,{"$f":"IF(ISERROR(VLOOKUP(C141,'Capacidad Financiera'!$B$12:$X$62720,2,0)),\"\",VLOOKUP(C141,'Capacidad Financiera'!$B$12:$X$3580,2,0))","v":"CONSORCIO HD"},{"$f":"IF(ISERROR(VLOOKUP(C141,'Capacidad Financiera'!$B$12:$X$62720,3,0)),\"\",VLOOKUP(C141,'Capacidad Financiera'!$B$12:$X$62720,3,0))","v":1},null,{"$f":"IF(OR(D141=\"\",E141=\"\",F141=\"\"),\"\",IF(C142=\"\",IF(C141<>\"\",IF(ISERROR(VLOOKUP($A$10,POA!$A$2:$D$25,2,0)),\"\",VLOOKUP($A$10,POA!$A$2:$D$25,2,0)),\"\"),\"\"))","v":""},{"$f":"IF(OR(D141=\"\",E141=\"\",F141=\"\"),\"\",IF(C142=\"\",IF(C141<>\"\",F141/G141,\"\"),\"\"))","v":""},{"$f":"IF(C142=\"\",IF(F141=\"\",\"\",IF(AND(H141>0,H141<=Experiencia1),Puntajes!$D$4,IF(AND(H141>Experiencia1,H141<=Experiencia2),Puntajes!$D$5,IF(AND(H141>Experiencia2,H141<=Experiencia3),Puntajes!$D$6,IF(H141>Experiencia3,Puntajes!$D$7,0))))),\"\")","v":""}]
[null,null,{"$f":"+'Capacidad Financiera'!B145","v":13.1},{"$f":"IF(ISERROR(VLOOKUP(C142,'Capacidad Financiera'!$B$12:$X$62720,2,0)),\"\",VLOOKUP(C142,'Capacidad Financiera'!$B$12:$X$3580,2,0))","v":"OLMEDA S.A.S"},{"$f":"IF(ISERROR(VLOOKUP(C142,'Capacidad Financiera'!$B$12:$X$62720,3,0)),\"\",VLOOKUP(C142,'Capacidad Financiera'!$B$12:$X$62720,3,0))","v":0.33},6843014948,{"$f":"IF(OR(D142=\"\",E142=\"\",F142=\"\"),\"\",IF(C142<>\"\",IF(ISERROR(VLOOKUP($A$10,POA!$A$2:$D$25,2,0)),\"\",VLOOKUP($A$10,POA!$A$2:$D$25,2,0)),\"\"))","v":4167150295},{"$f":"IF(OR(D142=\"\",E142=\"\",F142=\"\"),\"\",IF(C142<>\"\",F142/(G142*E142),\"\"))","v":4.9761605570632126},{"$f":"IF(OR(D142=\"\",E142=\"\",F142=\"\"),\"\",IF(AND(H142>0,H142<=Experiencia1),Puntajes!$D$4,IF(AND(H142>Experiencia1,H142<=Experiencia2),Puntajes!$D$5,IF(AND(H142>Experiencia2,H142<=Experiencia3),Puntajes!$D$6,IF(H142>Experiencia3,Puntajes!$D$7,0)))))","v":80}]
[null,null,{"$f":"+'Capacidad Financiera'!B146","v":13.2},{"$f":"IF(ISERROR(VLOOKUP(C143,'Capacidad Financiera'!$B$12:$X$62720,2,0)),\"\",VLOOKUP(C143,'Capacidad Financiera'!$B$12:$X$3580,2,0))","v":"HD CONSTRUCCIONES S.A.S."},{"$f":"IF(ISERROR(VLOOKUP(C143,'Capacidad Financiera'!$B$12:$X$62720,3,0)),\"\",VLOOKUP(C143,'Capacidad Financiera'!$B$12:$X$62720,3,0))","v":0.33},16973146960,{"$f":"IF(OR(D143=\"\",E143=\"\",F143=\"\"),\"\",IF(C143<>\"\",IF(ISERROR(VLOOKUP($A$10,POA!$A$2:$D$25,2,0)),\"\",VLOOKUP($A$10,POA!$A$2:$D$25,2,0)),\"\"))","v":4167150295},{"$f":"IF(OR(D143=\"\",E143=\"\",F143=\"\"),\"\",IF(C143<>\"\",F143/(G143*E143),\"\"))","v":12.342674255924974},{"$f":"IF(OR(D143=\"\",E143=\"\",F143=\"\"),\"\",IF(AND(H143>0,H143<=Experiencia1),Puntajes!$D$4,IF(AND(H143>Experiencia1,H143<=Experiencia2),Puntajes!$D$5,IF(AND(H143>Experiencia2,H143<=Experiencia3),Puntajes!$D$6,IF(H143>Experiencia3,Puntajes!$D$7,0)))))","v":120}]
[null,null,{"$f":"+'Capacidad Financiera'!B147","v":13.299999999999999},{"$f":"IF(ISERROR(VLOOKUP(C144,'Capacidad Financiera'!$B$12:$X$62720,2,0)),\"\",VLOOKUP(C144,'Capacidad Financiera'!$B$12:$X$3580,2,0))","v":"HECTOR GIRALDO JARAMILLO"},{"$f":"IF(ISERROR(VLOOKUP(C144,'Capacidad Financiera'!$B$12:$X$62720,3,0)),\"\",VLOOKUP(C144,'Capacidad Financiera'!$B$12:$X$62720,3,0))","v":0.34},17978957920,{"$f":"IF(OR(D144=\"\",E144=\"\",F144=\"\"),\"\",IF(C144<>\"\",IF(ISERROR(VLOOKUP($A$10,POA!$A$2:$D$25,2,0)),\"\",VLOOKUP($A$10,POA!$A$2:$D$25,2,0)),\"\"))","v":4167150295},12.689556233056383,{"$f":"IF(OR(D144=\"\",E144=\"\",F144=\"\"),\"\",IF(AND(H144>0,H144<=Experiencia1),Puntajes!$D$4,IF(AND(H144>Experiencia1,H144<=Experiencia2),Puntajes!$D$5,IF(AND(H144>Experiencia2,H144<=Experiencia3),Puntajes!$D$6,IF(H144>Experiencia3,Puntajes!$D$7,0)))))","v":120}]
[null,null,{"$f":"+'Capacidad Financiera'!B148","v":""},{"$f":"IF(ISERROR(VLOOKUP(C145,'Capacidad Financiera'!$B$12:$X$62720,2,0)),\"\",VLOOKUP(C145,'Capacidad Financiera'!$B$12:$X$3580,2,0))","v":0},{"$f":"IF(ISERROR(VLOOKUP(C145,'Capacidad Financiera'!$B$12:$X$62720,3,0)),\"\",VLOOKUP(C145,'Capacidad Financiera'!$B$12:$X$62720,3,0))","v":0},null,{"$f":"IF(OR(D145=\"\",E145=\"\",F145=\"\"),\"\",IF(C145<>\"\",IF(ISERROR(VLOOKUP($A$10,POA!$A$2:$D$25,2,0)),\"\",VLOOKUP($A$10,POA!$A$2:$D$25,2,0)),\"\"))","v":""},"",{"$f":"IF(OR(D145=\"\",E145=\"\",F145=\"\"),\"\",IF(AND(H145>0,H145<=Experiencia1),Puntajes!$D$4,IF(AND(H145>Experiencia1,H145<=Experiencia2),Puntajes!$D$5,IF(AND(H145>Experiencia2,H145<=Experiencia3),Puntajes!$D$6,IF(H145>Experiencia3,Puntajes!$D$7,0)))))","v":""}]
[null,null,{"$f":"+'Capacidad Financiera'!B149","v":""},{"$f":"IF(ISERROR(VLOOKUP(C146,'Capacidad Financiera'!$B$12:$X$62720,2,0)),\"\",VLOOKUP(C146,'Capacidad Financiera'!$B$12:$X$3580,2,0))","v":0},{"$f":"IF(ISERROR(VLOOKUP(C146,'Capacidad Financiera'!$B$12:$X$62720,3,0)),\"\",VLOOKUP(C146,'Capacidad Financiera'!$B$12:$X$62720,3,0))","v":0},null,{"$f":"IF(OR(D146=\"\",E146=\"\",F146=\"\"),\"\",IF(C146<>\"\",IF(ISERROR(VLOOKUP($A$10,POA!$A$2:$D$25,2,0)),\"\",VLOOKUP($A$10,POA!$A$2:$D$25,2,0)),\"\"))","v":""},"",{"$f":"IF(OR(D146=\"\",E146=\"\",F146=\"\"),\"\",IF(AND(H146>0,H146<=Experiencia1),Puntajes!$D$4,IF(AND(H146>Experiencia1,H146<=Experiencia2),Puntajes!$D$5,IF(AND(H146>Experiencia2,H146<=Experiencia3),Puntajes!$D$6,IF(H146>Experiencia3,Puntajes!$D$7,0)))))","v":""}]
[null,null,{"$f":"+'Capacidad Financiera'!B150","v":""},{"$f":"IF(ISERROR(VLOOKUP(C147,'Capacidad Financiera'!$B$12:$X$62720,2,0)),\"\",VLOOKUP(C147,'Capacidad Financiera'!$B$12:$X$3580,2,0))","v":0},{"$f":"IF(ISERROR(VLOOKUP(C147,'Capacidad Financiera'!$B$12:$X$62720,3,0)),\"\",VLOOKUP(C147,'Capacidad Financiera'!$B$12:$X$62720,3,0))","v":0},null,{"$f":"IF(OR(D147=\"\",E147=\"\",F147=\"\"),\"\",IF(C147<>\"\",IF(ISERROR(VLOOKUP($A$10,POA!$A$2:$D$25,2,0)),\"\",VLOOKUP($A$10,POA!$A$2:$D$25,2,0)),\"\"))","v":""},"",{"$f":"IF(OR(D147=\"\",E147=\"\",F147=\"\"),\"\",IF(AND(H147>0,H147<=Experiencia1),Puntajes!$D$4,IF(AND(H147>Experiencia1,H147<=Experiencia2),Puntajes!$D$5,IF(AND(H147>Experiencia2,H147<=Experiencia3),Puntajes!$D$6,IF(H147>Experiencia3,Puntajes!$D$7,0)))))","v":""}]
[null,null,{"$f":"+'Capacidad Financiera'!B151","v":""},{"$f":"IF(ISERROR(VLOOKUP(C148,'Capacidad Financiera'!$B$12:$X$62720,2,0)),\"\",VLOOKUP(C148,'Capacidad Financiera'!$B$12:$X$3580,2,0))","v":0},{"$f":"IF(ISERROR(VLOOKUP(C148,'Capacidad Financiera'!$B$12:$X$62720,3,0)),\"\",VLOOKUP(C148,'Capacidad Financiera'!$B$12:$X$62720,3,0))","v":0},null,{"$f":"IF(OR(D148=\"\",E148=\"\",F148=\"\"),\"\",IF(C148<>\"\",IF(ISERROR(VLOOKUP($A$10,POA!$A$2:$D$25,2,0)),\"\",VLOOKUP($A$10,POA!$A$2:$D$25,2,0)),\"\"))","v":""},"",{"$f":"IF(OR(D148=\"\",E148=\"\",F148=\"\"),\"\",IF(AND(H148>0,H148<=Experiencia1),Puntajes!$D$4,IF(AND(H148>Experiencia1,H148<=Experiencia2),Puntajes!$D$5,IF(AND(H148>Experiencia2,H148<=Experiencia3),Puntajes!$D$6,IF(H148>Experiencia3,Puntajes!$D$7,0)))))","v":""}]
[null,null,{"$f":"+'Capacidad Financiera'!B152","v":""},{"$f":"IF(ISERROR(VLOOKUP(C149,'Capacidad Financiera'!$B$12:$X$62720,2,0)),\"\",VLOOKUP(C149,'Capacidad Financiera'!$B$12:$X$3580,2,0))","v":0},{"$f":"IF(ISERROR(VLOOKUP(C149,'Capacidad Financiera'!$B$12:$X$62720,3,0)),\"\",VLOOKUP(C149,'Capacidad Financiera'!$B$12:$X$62720,3,0))","v":0},null,{"$f":"IF(OR(D149=\"\",E149=\"\",F149=\"\"),\"\",IF(C149<>\"\",IF(ISERROR(VLOOKUP($A$10,POA!$A$2:$D$25,2,0)),\"\",VLOOKUP($A$10,POA!$A$2:$D$25,2,0)),\"\"))","v":""},"",{"$f":"IF(OR(D149=\"\",E149=\"\",F149=\"\"),\"\",IF(AND(H149>0,H149<=Experiencia1),Puntajes!$D$4,IF(AND(H149>Experiencia1,H149<=Experiencia2),Puntajes!$D$5,IF(AND(H149>Experiencia2,H149<=Experiencia3),Puntajes!$D$6,IF(H149>Experiencia3,Puntajes!$D$7,0)))))","v":""}]
[null,null,{"$f":"+'Capacidad Financiera'!B153","v":""},{"$f":"IF(ISERROR(VLOOKUP(C150,'Capacidad Financiera'!$B$12:$X$62720,2,0)),\"\",VLOOKUP(C150,'Capacidad Financiera'!$B$12:$X$3580,2,0))","v":0},{"$f":"IF(ISERROR(VLOOKUP(C150,'Capacidad Financiera'!$B$12:$X$62720,3,0)),\"\",VLOOKUP(C150,'Capacidad Financiera'!$B$12:$X$62720,3,0))","v":0},null,{"$f":"IF(OR(D150=\"\",E150=\"\",F150=\"\"),\"\",IF(C150<>\"\",IF(ISERROR(VLOOKUP($A$10,POA!$A$2:$D$25,2,0)),\"\",VLOOKUP($A$10,POA!$A$2:$D$25,2,0)),\"\"))","v":""},"",{"$f":"IF(OR(D150=\"\",E150=\"\",F150=\"\"),\"\",IF(AND(H150>0,H150<=Experiencia1),Puntajes!$D$4,IF(AND(H150>Experiencia1,H150<=Experiencia2),Puntajes!$D$5,IF(AND(H150>Experiencia2,H150<=Experiencia3),Puntajes!$D$6,IF(H150>Experiencia3,Puntajes!$D$7,0)))))","v":""}]
[null,null,{"$f":"+'Capacidad Financiera'!B154","v":""},{"$f":"IF(ISERROR(VLOOKUP(C151,'Capacidad Financiera'!$B$12:$X$62720,2,0)),\"\",VLOOKUP(C151,'Capacidad Financiera'!$B$12:$X$3580,2,0))","v":0},{"$f":"IF(ISERROR(VLOOKUP(C151,'Capacidad Financiera'!$B$12:$X$62720,3,0)),\"\",VLOOKUP(C151,'Capacidad Financiera'!$B$12:$X$62720,3,0))","v":0},null,{"$f":"IF(OR(D151=\"\",E151=\"\",F151=\"\"),\"\",IF(C151<>\"\",IF(ISERROR(VLOOKUP($A$10,POA!$A$2:$D$25,2,0)),\"\",VLOOKUP($A$10,POA!$A$2:$D$25,2,0)),\"\"))","v":""},"",{"$f":"IF(OR(D151=\"\",E151=\"\",F151=\"\"),\"\",IF(AND(H151>0,H151<=Experiencia1),Puntajes!$D$4,IF(AND(H151>Experiencia1,H151<=Experiencia2),Puntajes!$D$5,IF(AND(H151>Experiencia2,H151<=Experiencia3),Puntajes!$D$6,IF(H151>Experiencia3,Puntajes!$D$7,0)))))","v":""}]
[null,null,14,{"$f":"IF(ISERROR(VLOOKUP(C152,'Capacidad Financiera'!$B$12:$X$62720,2,0)),\"\",VLOOKUP(C152,'Capacidad Financiera'!$B$12:$X$3580,2,0))","v":"CONSORCIO CONXIE 034-14"},{"$f":"IF(ISERROR(VLOOKUP(C152,'Capacidad Financiera'!$B$12:$X$62720,3,0)),\"\",VLOOKUP(C152,'Capacidad Financiera'!$B$12:$X$62720,3,0))","v":1},null,{"$f":"IF(OR(D152=\"\",E152=\"\",F152=\"\"),\"\",IF(C153=\"\",IF(C152<>\"\",IF(ISERROR(VLOOKUP($A$10,POA!$A$2:$D$25,2,0)),\"\",VLOOKUP($A$10,POA!$A$2:$D$25,2,0)),\"\"),\"\"))","v":""},{"$f":"IF(OR(D152=\"\",E152=\"\",F152=\"\"),\"\",IF(C153=\"\",IF(C152<>\"\",F152/G152,\"\"),\"\"))","v":""},{"$f":"IF(C153=\"\",IF(F152=\"\",\"\",IF(AND(H152>0,H152<=Experiencia1),Puntajes!$D$4,IF(AND(H152>Experiencia1,H152<=Experiencia2),Puntajes!$D$5,IF(AND(H152>Experiencia2,H152<=Experiencia3),Puntajes!$D$6,IF(H152>Experiencia3,Puntajes!$D$7,0))))),\"\")","v":""}]
[null,null,{"$f":"+'Capacidad Financiera'!B156","v":14.1},{"$f":"IF(ISERROR(VLOOKUP(C153,'Capacidad Financiera'!$B$12:$X$62720,2,0)),\"\",VLOOKUP(C153,'Capacidad Financiera'!$B$12:$X$3580,2,0))","v":"CONCREARMADO LTDA."},{"$f":"IF(ISERROR(VLOOKUP(C153,'Capacidad Financiera'!$B$12:$X$62720,3,0)),\"\",VLOOKUP(C153,'Capacidad Financiera'!$B$12:$X$62720,3,0))","v":0.5},45220146910.400002,{"$f":"IF(OR(D153=\"\",E153=\"\",F153=\"\"),\"\",IF(C153<>\"\",IF(ISERROR(VLOOKUP($A$10,POA!$A$2:$D$25,2,0)),\"\",VLOOKUP($A$10,POA!$A$2:$D$25,2,0)),\"\"))","v":4167150295},{"$f":"IF(OR(D153=\"\",E153=\"\",F153=\"\"),\"\",IF(C153<>\"\",F153/(G153*E153),\"\"))","v":21.703151414844758},{"$f":"IF(OR(D153=\"\",E153=\"\",F153=\"\"),\"\",IF(AND(H153>0,H153<=Experiencia1),Puntajes!$D$4,IF(AND(H153>Experiencia1,H153<=Experiencia2),Puntajes!$D$5,IF(AND(H153>Experiencia2,H153<=Experiencia3),Puntajes!$D$6,IF(H153>Experiencia3,Puntajes!$D$7,0)))))","v":120}]
[null,null,{"$f":"+'Capacidad Financiera'!B157","v":14.2},{"$f":"IF(ISERROR(VLOOKUP(C154,'Capacidad Financiera'!$B$12:$X$62720,2,0)),\"\",VLOOKUP(C154,'Capacidad Financiera'!$B$12:$X$3580,2,0))","v":"JAIME VARGAS GALINDO"},{"$f":"IF(ISERROR(VLOOKUP(C154,'Capacidad Financiera'!$B$12:$X$62720,3,0)),\"\",VLOOKUP(C154,'Capacidad Financiera'!$B$12:$X$62720,3,0))","v":0.5},30357723118.799999,{"$f":"IF(OR(D154=\"\",E154=\"\",F154=\"\"),\"\",IF(C154<>\"\",IF(ISERROR(VLOOKUP($A$10,POA!$A$2:$D$25,2,0)),\"\",VLOOKUP($A$10,POA!$A$2:$D$25,2,0)),\"\"))","v":4167150295},{"$f":"IF(OR(D154=\"\",E154=\"\",F154=\"\"),\"\",IF(C154<>\"\",F154/(G154*E154),\"\"))","v":14.570015943617411},{"$f":"IF(OR(D154=\"\",E154=\"\",F154=\"\"),\"\",IF(AND(H154>0,H154<=Experiencia1),Puntajes!$D$4,IF(AND(H154>Experiencia1,H154<=Experiencia2),Puntajes!$D$5,IF(AND(H154>Experiencia2,H154<=Experiencia3),Puntajes!$D$6,IF(H154>Experiencia3,Puntajes!$D$7,0)))))","v":120}]
[null,null,{"$f":"+'Capacidad Financiera'!B158","v":""},{"$f":"IF(ISERROR(VLOOKUP(C155,'Capacidad Financiera'!$B$12:$X$62720,2,0)),\"\",VLOOKUP(C155,'Capacidad Financiera'!$B$12:$X$3580,2,0))","v":0},{"$f":"IF(ISERROR(VLOOKUP(C155,'Capacidad Financiera'!$B$12:$X$62720,3,0)),\"\",VLOOKUP(C155,'Capacidad Financiera'!$B$12:$X$62720,3,0))","v":0},null,{"$f":"IF(OR(D155=\"\",E155=\"\",F155=\"\"),\"\",IF(C155<>\"\",IF(ISERROR(VLOOKUP($A$10,POA!$A$2:$D$25,2,0)),\"\",VLOOKUP($A$10,POA!$A$2:$D$25,2,0)),\"\"))","v":""},"",{"$f":"IF(OR(D155=\"\",E155=\"\",F155=\"\"),\"\",IF(AND(H155>0,H155<=Experiencia1),Puntajes!$D$4,IF(AND(H155>Experiencia1,H155<=Experiencia2),Puntajes!$D$5,IF(AND(H155>Experiencia2,H155<=Experiencia3),Puntajes!$D$6,IF(H155>Experiencia3,Puntajes!$D$7,0)))))","v":""}]
[null,null,{"$f":"+'Capacidad Financiera'!B159","v":""},{"$f":"IF(ISERROR(VLOOKUP(C156,'Capacidad Financiera'!$B$12:$X$62720,2,0)),\"\",VLOOKUP(C156,'Capacidad Financiera'!$B$12:$X$3580,2,0))","v":0},{"$f":"IF(ISERROR(VLOOKUP(C156,'Capacidad Financiera'!$B$12:$X$62720,3,0)),\"\",VLOOKUP(C156,'Capacidad Financiera'!$B$12:$X$62720,3,0))","v":0},null,{"$f":"IF(OR(D156=\"\",E156=\"\",F156=\"\"),\"\",IF(C156<>\"\",IF(ISERROR(VLOOKUP($A$10,POA!$A$2:$D$25,2,0)),\"\",VLOOKUP($A$10,POA!$A$2:$D$25,2,0)),\"\"))","v":""},"",{"$f":"IF(OR(D156=\"\",E156=\"\",F156=\"\"),\"\",IF(AND(H156>0,H156<=Experiencia1),Puntajes!$D$4,IF(AND(H156>Experiencia1,H156<=Experiencia2),Puntajes!$D$5,IF(AND(H156>Experiencia2,H156<=Experiencia3),Puntajes!$D$6,IF(H156>Experiencia3,Puntajes!$D$7,0)))))","v":""}]
[null,null,{"$f":"+'Capacidad Financiera'!B160","v":""},{"$f":"IF(ISERROR(VLOOKUP(C157,'Capacidad Financiera'!$B$12:$X$62720,2,0)),\"\",VLOOKUP(C157,'Capacidad Financiera'!$B$12:$X$3580,2,0))","v":0},{"$f":"IF(ISERROR(VLOOKUP(C157,'Capacidad Financiera'!$B$12:$X$62720,3,0)),\"\",VLOOKUP(C157,'Capacidad Financiera'!$B$12:$X$62720,3,0))","v":0},null,{"$f":"IF(OR(D157=\"\",E157=\"\",F157=\"\"),\"\",IF(C157<>\"\",IF(ISERROR(VLOOKUP($A$10,POA!$A$2:$D$25,2,0)),\"\",VLOOKUP($A$10,POA!$A$2:$D$25,2,0)),\"\"))","v":""},"",{"$f":"IF(OR(D157=\"\",E157=\"\",F157=\"\"),\"\",IF(AND(H157>0,H157<=Experiencia1),Puntajes!$D$4,IF(AND(H157>Experiencia1,H157<=Experiencia2),Puntajes!$D$5,IF(AND(H157>Experiencia2,H157<=Experiencia3),Puntajes!$D$6,IF(H157>Experiencia3,Puntajes!$D$7,0)))))","v":""}]
[null,null,{"$f":"+'Capacidad Financiera'!B161","v":""},{"$f":"IF(ISERROR(VLOOKUP(C158,'Capacidad Financiera'!$B$12:$X$62720,2,0)),\"\",VLOOKUP(C158,'Capacidad Financiera'!$B$12:$X$3580,2,0))","v":0},{"$f":"IF(ISERROR(VLOOKUP(C158,'Capacidad Financiera'!$B$12:$X$62720,3,0)),\"\",VLOOKUP(C158,'Capacidad Financiera'!$B$12:$X$62720,3,0))","v":0},null,{"$f":"IF(OR(D158=\"\",E158=\"\",F158=\"\"),\"\",IF(C158<>\"\",IF(ISERROR(VLOOKUP($A$10,POA!$A$2:$D$25,2,0)),\"\",VLOOKUP($A$10,POA!$A$2:$D$25,2,0)),\"\"))","v":""},"",{"$f":"IF(OR(D158=\"\",E158=\"\",F158=\"\"),\"\",IF(AND(H158>0,H158<=Experiencia1),Puntajes!$D$4,IF(AND(H158>Experiencia1,H158<=Experiencia2),Puntajes!$D$5,IF(AND(H158>Experiencia2,H158<=Experiencia3),Puntajes!$D$6,IF(H158>Experiencia3,Puntajes!$D$7,0)))))","v":""}]
[null,null,{"$f":"+'Capacidad Financiera'!B162","v":""},{"$f":"IF(ISERROR(VLOOKUP(C159,'Capacidad Financiera'!$B$12:$X$62720,2,0)),\"\",VLOOKUP(C159,'Capacidad Financiera'!$B$12:$X$3580,2,0))","v":0},{"$f":"IF(ISERROR(VLOOKUP(C159,'Capacidad Financiera'!$B$12:$X$62720,3,0)),\"\",VLOOKUP(C159,'Capacidad Financiera'!$B$12:$X$62720,3,0))","v":0},null,{"$f":"IF(OR(D159=\"\",E159=\"\",F159=\"\"),\"\",IF(C159<>\"\",IF(ISERROR(VLOOKUP($A$10,POA!$A$2:$D$25,2,0)),\"\",VLOOKUP($A$10,POA!$A$2:$D$25,2,0)),\"\"))","v":""},"",{"$f":"IF(OR(D159=\"\",E159=\"\",F159=\"\"),\"\",IF(AND(H159>0,H159<=Experiencia1),Puntajes!$D$4,IF(AND(H159>Experiencia1,H159<=Experiencia2),Puntajes!$D$5,IF(AND(H159>Experiencia2,H159<=Experiencia3),Puntajes!$D$6,IF(H159>Experiencia3,Puntajes!$D$7,0)))))","v":""}]
[null,null,{"$f":"+'Capacidad Financiera'!B163","v":""},{"$f":"IF(ISERROR(VLOOKUP(C160,'Capacidad Financiera'!$B$12:$X$62720,2,0)),\"\",VLOOKUP(C160,'Capacidad Financiera'!$B$12:$X$3580,2,0))","v":0},{"$f":"IF(ISERROR(VLOOKUP(C160,'Capacidad Financiera'!$B$12:$X$62720,3,0)),\"\",VLOOKUP(C160,'Capacidad Financiera'!$B$12:$X$62720,3,0))","v":0},null,{"$f":"IF(OR(D160=\"\",E160=\"\",F160=\"\"),\"\",IF(C160<>\"\",IF(ISERROR(VLOOKUP($A$10,POA!$A$2:$D$25,2,0)),\"\",VLOOKUP($A$10,POA!$A$2:$D$25,2,0)),\"\"))","v":""},"",{"$f":"IF(OR(D160=\"\",E160=\"\",F160=\"\"),\"\",IF(AND(H160>0,H160<=Experiencia1),Puntajes!$D$4,IF(AND(H160>Experiencia1,H160<=Experiencia2),Puntajes!$D$5,IF(AND(H160>Experiencia2,H160<=Experiencia3),Puntajes!$D$6,IF(H160>Experiencia3,Puntajes!$D$7,0)))))","v":""}]
[null,null,{"$f":"+'Capacidad Financiera'!B164","v":""},{"$f":"IF(ISERROR(VLOOKUP(C161,'Capacidad Financiera'!$B$12:$X$62720,2,0)),\"\",VLOOKUP(C161,'Capacidad Financiera'!$B$12:$X$3580,2,0))","v":0},{"$f":"IF(ISERROR(VLOOKUP(C161,'Capacidad Financiera'!$B$12:$X$62720,3,0)),\"\",VLOOKUP(C161,'Capacidad Financiera'!$B$12:$X$62720,3,0))","v":0},null,{"$f":"IF(OR(D161=\"\",E161=\"\",F161=\"\"),\"\",IF(C161<>\"\",IF(ISERROR(VLOOKUP($A$10,POA!$A$2:$D$25,2,0)),\"\",VLOOKUP($A$10,POA!$A$2:$D$25,2,0)),\"\"))","v":""},"",{"$f":"IF(OR(D161=\"\",E161=\"\",F161=\"\"),\"\",IF(AND(H161>0,H161<=Experiencia1),Puntajes!$D$4,IF(AND(H161>Experiencia1,H161<=Experiencia2),Puntajes!$D$5,IF(AND(H161>Experiencia2,H161<=Experiencia3),Puntajes!$D$6,IF(H161>Experiencia3,Puntajes!$D$7,0)))))","v":""}]
[null,null,{"$f":"+'Capacidad Financiera'!B165","v":""},{"$f":"IF(ISERROR(VLOOKUP(C162,'Capacidad Financiera'!$B$12:$X$62720,2,0)),\"\",VLOOKUP(C162,'Capacidad Financiera'!$B$12:$X$3580,2,0))","v":0},{"$f":"IF(ISERROR(VLOOKUP(C162,'Capacidad Financiera'!$B$12:$X$62720,3,0)),\"\",VLOOKUP(C162,'Capacidad Financiera'!$B$12:$X$62720,3,0))","v":0},null,{"$f":"IF(OR(D162=\"\",E162=\"\",F162=\"\"),\"\",IF(C162<>\"\",IF(ISERROR(VLOOKUP($A$10,POA!$A$2:$D$25,2,0)),\"\",VLOOKUP($A$10,POA!$A$2:$D$25,2,0)),\"\"))","v":""},"",{"$f":"IF(OR(D162=\"\",E162=\"\",F162=\"\"),\"\",IF(AND(H162>0,H162<=Experiencia1),Puntajes!$D$4,IF(AND(H162>Experiencia1,H162<=Experiencia2),Puntajes!$D$5,IF(AND(H162>Experiencia2,H162<=Experiencia3),Puntajes!$D$6,IF(H162>Experiencia3,Puntajes!$D$7,0)))))","v":""}]
[null,null,15,{"$f":"IF(ISERROR(VLOOKUP(C163,'Capacidad Financiera'!$B$12:$X$62720,2,0)),\"\",VLOOKUP(C163,'Capacidad Financiera'!$B$12:$X$3580,2,0))","v":"CONSORCIO BP LA CALERA"},{"$f":"IF(ISERROR(VLOOKUP(C163,'Capacidad Financiera'!$B$12:$X$62720,3,0)),\"\",VLOOKUP(C163,'Capacidad Financiera'!$B$12:$X$62720,3,0))","v":1},null,{"$f":"IF(OR(D163=\"\",E163=\"\",F163=\"\"),\"\",IF(C164=\"\",IF(C163<>\"\",IF(ISERROR(VLOOKUP($A$10,POA!$A$2:$D$25,2,0)),\"\",VLOOKUP($A$10,POA!$A$2:$D$25,2,0)),\"\"),\"\"))","v":""},{"$f":"IF(OR(D163=\"\",E163=\"\",F163=\"\"),\"\",IF(C164=\"\",IF(C163<>\"\",F163/G163,\"\"),\"\"))","v":""},{"$f":"IF(C164=\"\",IF(F163=\"\",\"\",IF(AND(H163>0,H163<=Experiencia1),Puntajes!$D$4,IF(AND(H163>Experiencia1,H163<=Experiencia2),Puntajes!$D$5,IF(AND(H163>Experiencia2,H163<=Experiencia3),Puntajes!$D$6,IF(H163>Experiencia3,Puntajes!$D$7,0))))),\"\")","v":""}]
[null,null,{"$f":"+'Capacidad Financiera'!B167","v":15.1},{"$f":"IF(ISERROR(VLOOKUP(C164,'Capacidad Financiera'!$B$12:$X$62720,2,0)),\"\",VLOOKUP(C164,'Capacidad Financiera'!$B$12:$X$3580,2,0))","v":"PEDRO NAVARRO RODRIGUEZ"},{"$f":"IF(ISERROR(VLOOKUP(C164,'Capacidad Financiera'!$B$12:$X$62720,3,0)),\"\",VLOOKUP(C164,'Capacidad Financiera'!$B$12:$X$62720,3,0))","v":0.25},19160967056,{"$f":"IF(OR(D164=\"\",E164=\"\",F164=\"\"),\"\",IF(C164<>\"\",IF(ISERROR(VLOOKUP($A$10,POA!$A$2:$D$25,2,0)),\"\",VLOOKUP($A$10,POA!$A$2:$D$25,2,0)),\"\"))","v":4167150295},{"$f":"IF(OR(D164=\"\",E164=\"\",F164=\"\"),\"\",IF(C164<>\"\",F164/(G164*E164),\"\"))","v":18.392393553926279},{"$f":"IF(OR(D164=\"\",E164=\"\",F164=\"\"),\"\",IF(AND(H164>0,H164<=Experiencia1),Puntajes!$D$4,IF(AND(H164>Experiencia1,H164<=Experiencia2),Puntajes!$D$5,IF(AND(H164>Experiencia2,H164<=Experiencia3),Puntajes!$D$6,IF(H164>Experiencia3,Puntajes!$D$7,0)))))","v":120}]
[null,null,{"$f":"+'Capacidad Financiera'!B168","v":15.2},{"$f":"IF(ISERROR(VLOOKUP(C165,'Capacidad Financiera'!$B$12:$X$62720,2,0)),\"\",VLOOKUP(C165,'Capacidad Financiera'!$B$12:$X$3580,2,0))","v":"PAVIOBRAS S.A.S."},{"$f":"IF(ISERROR(VLOOKUP(C165,'Capacidad Financiera'!$B$12:$X$62720,3,0)),\"\",VLOOKUP(C165,'Capacidad Financiera'!$B$12:$X$62720,3,0))","v":0.25},22008312480,{"$f":"IF(OR(D165=\"\",E165=\"\",F165=\"\"),\"\",IF(C165<>\"\",IF(ISERROR(VLOOKUP($A$10,POA!$A$2:$D$25,2,0)),\"\",VLOOKUP($A$10,POA!$A$2:$D$25,2,0)),\"\"))","v":4167150295},{"$f":"IF(OR(D165=\"\",E165=\"\",F165=\"\"),\"\",IF(C165<>\"\",F165/(G165*E165),\"\"))","v":21.125527923873452},{"$f":"IF(OR(D165=\"\",E165=\"\",F165=\"\"),\"\",IF(AND(H165>0,H165<=Experiencia1),Puntajes!$D$4,IF(AND(H165>Experiencia1,H165<=Experiencia2),Puntajes!$D$5,IF(AND(H165>Experiencia2,H165<=Experiencia3),Puntajes!$D$6,IF(H165>Experiencia3,Puntajes!$D$7,0)))))","v":120}]
[null,null,{"$f":"+'Capacidad Financiera'!B169","v":15.299999999999999},{"$f":"IF(ISERROR(VLOOKUP(C166,'Capacidad Financiera'!$B$12:$X$62720,2,0)),\"\",VLOOKUP(C166,'Capacidad Financiera'!$B$12:$X$3580,2,0))","v":"BALLEN B Y CIA S.A.S."},{"$f":"IF(ISERROR(VLOOKUP(C166,'Capacidad Financiera'!$B$12:$X$62720,3,0)),\"\",VLOOKUP(C166,'Capacidad Financiera'!$B$12:$X$62720,3,0))","v":0.5},26045907580,{"$f":"IF(OR(D166=\"\",E166=\"\",F166=\"\"),\"\",IF(C166<>\"\",IF(ISERROR(VLOOKUP($A$10,POA!$A$2:$D$25,2,0)),\"\",VLOOKUP($A$10,POA!$A$2:$D$25,2,0)),\"\"))","v":4167150295},12.500584685535083,{"$f":"IF(OR(D166=\"\",E166=\"\",F166=\"\"),\"\",IF(AND(H166>0,H166<=Experiencia1),Puntajes!$D$4,IF(AND(H166>Experiencia1,H166<=Experiencia2),Puntajes!$D$5,IF(AND(H166>Experiencia2,H166<=Experiencia3),Puntajes!$D$6,IF(H166>Experiencia3,Puntajes!$D$7,0)))))","v":120}]
[null,null,{"$f":"+'Capacidad Financiera'!B170","v":""},{"$f":"IF(ISERROR(VLOOKUP(C167,'Capacidad Financiera'!$B$12:$X$62720,2,0)),\"\",VLOOKUP(C167,'Capacidad Financiera'!$B$12:$X$3580,2,0))","v":0},{"$f":"IF(ISERROR(VLOOKUP(C167,'Capacidad Financiera'!$B$12:$X$62720,3,0)),\"\",VLOOKUP(C167,'Capacidad Financiera'!$B$12:$X$62720,3,0))","v":0},null,{"$f":"IF(OR(D167=\"\",E167=\"\",F167=\"\"),\"\",IF(C167<>\"\",IF(ISERROR(VLOOKUP($A$10,POA!$A$2:$D$25,2,0)),\"\",VLOOKUP($A$10,POA!$A$2:$D$25,2,0)),\"\"))","v":""},"",{"$f":"IF(OR(D167=\"\",E167=\"\",F167=\"\"),\"\",IF(AND(H167>0,H167<=Experiencia1),Puntajes!$D$4,IF(AND(H167>Experiencia1,H167<=Experiencia2),Puntajes!$D$5,IF(AND(H167>Experiencia2,H167<=Experiencia3),Puntajes!$D$6,IF(H167>Experiencia3,Puntajes!$D$7,0)))))","v":""}]
[null,null,{"$f":"+'Capacidad Financiera'!B171","v":""},{"$f":"IF(ISERROR(VLOOKUP(C168,'Capacidad Financiera'!$B$12:$X$62720,2,0)),\"\",VLOOKUP(C168,'Capacidad Financiera'!$B$12:$X$3580,2,0))","v":0},{"$f":"IF(ISERROR(VLOOKUP(C168,'Capacidad Financiera'!$B$12:$X$62720,3,0)),\"\",VLOOKUP(C168,'Capacidad Financiera'!$B$12:$X$62720,3,0))","v":0},null,{"$f":"IF(OR(D168=\"\",E168=\"\",F168=\"\"),\"\",IF(C168<>\"\",IF(ISERROR(VLOOKUP($A$10,POA!$A$2:$D$25,2,0)),\"\",VLOOKUP($A$10,POA!$A$2:$D$25,2,0)),\"\"))","v":""},"",{"$f":"IF(OR(D168=\"\",E168=\"\",F168=\"\"),\"\",IF(AND(H168>0,H168<=Experiencia1),Puntajes!$D$4,IF(AND(H168>Experiencia1,H168<=Experiencia2),Puntajes!$D$5,IF(AND(H168>Experiencia2,H168<=Experiencia3),Puntajes!$D$6,IF(H168>Experiencia3,Puntajes!$D$7,0)))))","v":""}]
[null,null,{"$f":"+'Capacidad Financiera'!B172","v":""},{"$f":"IF(ISERROR(VLOOKUP(C169,'Capacidad Financiera'!$B$12:$X$62720,2,0)),\"\",VLOOKUP(C169,'Capacidad Financiera'!$B$12:$X$3580,2,0))","v":0},{"$f":"IF(ISERROR(VLOOKUP(C169,'Capacidad Financiera'!$B$12:$X$62720,3,0)),\"\",VLOOKUP(C169,'Capacidad Financiera'!$B$12:$X$62720,3,0))","v":0},null,{"$f":"IF(OR(D169=\"\",E169=\"\",F169=\"\"),\"\",IF(C169<>\"\",IF(ISERROR(VLOOKUP($A$10,POA!$A$2:$D$25,2,0)),\"\",VLOOKUP($A$10,POA!$A$2:$D$25,2,0)),\"\"))","v":""},"",{"$f":"IF(OR(D169=\"\",E169=\"\",F169=\"\"),\"\",IF(AND(H169>0,H169<=Experiencia1),Puntajes!$D$4,IF(AND(H169>Experiencia1,H169<=Experiencia2),Puntajes!$D$5,IF(AND(H169>Experiencia2,H169<=Experiencia3),Puntajes!$D$6,IF(H169>Experiencia3,Puntajes!$D$7,0)))))","v":""}]
[null,null,{"$f":"+'Capacidad Financiera'!B173","v":""},{"$f":"IF(ISERROR(VLOOKUP(C170,'Capacidad Financiera'!$B$12:$X$62720,2,0)),\"\",VLOOKUP(C170,'Capacidad Financiera'!$B$12:$X$3580,2,0))","v":0},{"$f":"IF(ISERROR(VLOOKUP(C170,'Capacidad Financiera'!$B$12:$X$62720,3,0)),\"\",VLOOKUP(C170,'Capacidad Financiera'!$B$12:$X$62720,3,0))","v":0},null,{"$f":"IF(OR(D170=\"\",E170=\"\",F170=\"\"),\"\",IF(C170<>\"\",IF(ISERROR(VLOOKUP($A$10,POA!$A$2:$D$25,2,0)),\"\",VLOOKUP($A$10,POA!$A$2:$D$25,2,0)),\"\"))","v":""},"",{"$f":"IF(OR(D170=\"\",E170=\"\",F170=\"\"),\"\",IF(AND(H170>0,H170<=Experiencia1),Puntajes!$D$4,IF(AND(H170>Experiencia1,H170<=Experiencia2),Puntajes!$D$5,IF(AND(H170>Experiencia2,H170<=Experiencia3),Puntajes!$D$6,IF(H170>Experiencia3,Puntajes!$D$7,0)))))","v":""}]
[null,null,{"$f":"+'Capacidad Financiera'!B174","v":""},{"$f":"IF(ISERROR(VLOOKUP(C171,'Capacidad Financiera'!$B$12:$X$62720,2,0)),\"\",VLOOKUP(C171,'Capacidad Financiera'!$B$12:$X$3580,2,0))","v":0},{"$f":"IF(ISERROR(VLOOKUP(C171,'Capacidad Financiera'!$B$12:$X$62720,3,0)),\"\",VLOOKUP(C171,'Capacidad Financiera'!$B$12:$X$62720,3,0))","v":0},null,{"$f":"IF(OR(D171=\"\",E171=\"\",F171=\"\"),\"\",IF(C171<>\"\",IF(ISERROR(VLOOKUP($A$10,POA!$A$2:$D$25,2,0)),\"\",VLOOKUP($A$10,POA!$A$2:$D$25,2,0)),\"\"))","v":""},"",{"$f":"IF(OR(D171=\"\",E171=\"\",F171=\"\"),\"\",IF(AND(H171>0,H171<=Experiencia1),Puntajes!$D$4,IF(AND(H171>Experiencia1,H171<=Experiencia2),Puntajes!$D$5,IF(AND(H171>Experiencia2,H171<=Experiencia3),Puntajes!$D$6,IF(H171>Experiencia3,Puntajes!$D$7,0)))))","v":""}]
[null,null,{"$f":"+'Capacidad Financiera'!B175","v":""},{"$f":"IF(ISERROR(VLOOKUP(C172,'Capacidad Financiera'!$B$12:$X$62720,2,0)),\"\",VLOOKUP(C172,'Capacidad Financiera'!$B$12:$X$3580,2,0))","v":0},{"$f":"IF(ISERROR(VLOOKUP(C172,'Capacidad Financiera'!$B$12:$X$62720,3,0)),\"\",VLOOKUP(C172,'Capacidad Financiera'!$B$12:$X$62720,3,0))","v":0},null,{"$f":"IF(OR(D172=\"\",E172=\"\",F172=\"\"),\"\",IF(C172<>\"\",IF(ISERROR(VLOOKUP($A$10,POA!$A$2:$D$25,2,0)),\"\",VLOOKUP($A$10,POA!$A$2:$D$25,2,0)),\"\"))","v":""},"",{"$f":"IF(OR(D172=\"\",E172=\"\",F172=\"\"),\"\",IF(AND(H172>0,H172<=Experiencia1),Puntajes!$D$4,IF(AND(H172>Experiencia1,H172<=Experiencia2),Puntajes!$D$5,IF(AND(H172>Experiencia2,H172<=Experiencia3),Puntajes!$D$6,IF(H172>Experiencia3,Puntajes!$D$7,0)))))","v":""}]
[null,null,{"$f":"+'Capacidad Financiera'!B176","v":""},{"$f":"IF(ISERROR(VLOOKUP(C173,'Capacidad Financiera'!$B$12:$X$62720,2,0)),\"\",VLOOKUP(C173,'Capacidad Financiera'!$B$12:$X$3580,2,0))","v":0},{"$f":"IF(ISERROR(VLOOKUP(C173,'Capacidad Financiera'!$B$12:$X$62720,3,0)),\"\",VLOOKUP(C173,'Capacidad Financiera'!$B$12:$X$62720,3,0))","v":0},null,{"$f":"IF(OR(D173=\"\",E173=\"\",F173=\"\"),\"\",IF(C173<>\"\",IF(ISERROR(VLOOKUP($A$10,POA!$A$2:$D$25,2,0)),\"\",VLOOKUP($A$10,POA!$A$2:$D$25,2,0)),\"\"))","v":""},"",{"$f":"IF(OR(D173=\"\",E173=\"\",F173=\"\"),\"\",IF(AND(H173>0,H173<=Experiencia1),Puntajes!$D$4,IF(AND(H173>Experiencia1,H173<=Experiencia2),Puntajes!$D$5,IF(AND(H173>Experiencia2,H173<=Experiencia3),Puntajes!$D$6,IF(H173>Experiencia3,Puntajes!$D$7,0)))))","v":""}]
[null,null,16,{"$f":"IF(ISERROR(VLOOKUP(C174,'Capacidad Financiera'!$B$12:$X$62720,2,0)),\"\",VLOOKUP(C174,'Capacidad Financiera'!$B$12:$X$3580,2,0))","v":"CONSORCIO SAN PABLO"},{"$f":"IF(ISERROR(VLOOKUP(C174,'Capacidad Financiera'!$B$12:$X$62720,3,0)),\"\",VLOOKUP(C174,'Capacidad Financiera'!$B$12:$X$62720,3,0))","v":1},null,{"$f":"IF(OR(D174=\"\",E174=\"\",F174=\"\"),\"\",IF(C175=\"\",IF(C174<>\"\",IF(ISERROR(VLOOKUP($A$10,POA!$A$2:$D$25,2,0)),\"\",VLOOKUP($A$10,POA!$A$2:$D$25,2,0)),\"\"),\"\"))","v":""},{"$f":"IF(OR(D174=\"\",E174=\"\",F174=\"\"),\"\",IF(C175=\"\",IF(C174<>\"\",F174/G174,\"\"),\"\"))","v":""},{"$f":"IF(C175=\"\",IF(F174=\"\",\"\",IF(AND(H174>0,H174<=Experiencia1),Puntajes!$D$4,IF(AND(H174>Experiencia1,H174<=Experiencia2),Puntajes!$D$5,IF(AND(H174>Experiencia2,H174<=Experiencia3),Puntajes!$D$6,IF(H174>Experiencia3,Puntajes!$D$7,0))))),\"\")","v":""}]
[null,null,{"$f":"+'Capacidad Financiera'!B178","v":16.100000000000001},{"$f":"IF(ISERROR(VLOOKUP(C175,'Capacidad Financiera'!$B$12:$X$62720,2,0)),\"\",VLOOKUP(C175,'Capacidad Financiera'!$B$12:$X$3580,2,0))","v":"ALCA INGENIERIA S.A.S."},{"$f":"IF(ISERROR(VLOOKUP(C175,'Capacidad Financiera'!$B$12:$X$62720,3,0)),\"\",VLOOKUP(C175,'Capacidad Financiera'!$B$12:$X$62720,3,0))","v":0.6},18553507588,{"$f":"IF(OR(D175=\"\",E175=\"\",F175=\"\"),\"\",IF(C175<>\"\",IF(ISERROR(VLOOKUP($A$10,POA!$A$2:$D$25,2,0)),\"\",VLOOKUP($A$10,POA!$A$2:$D$25,2,0)),\"\"))","v":4167150295},{"$f":"IF(OR(D175=\"\",E175=\"\",F175=\"\"),\"\",IF(C175<>\"\",F175/(G175*E175),\"\"))","v":7.4205417269853156},{"$f":"IF(OR(D175=\"\",E175=\"\",F175=\"\"),\"\",IF(AND(H175>0,H175<=Experiencia1),Puntajes!$D$4,IF(AND(H175>Experiencia1,H175<=Experiencia2),Puntajes!$D$5,IF(AND(H175>Experiencia2,H175<=Experiencia3),Puntajes!$D$6,IF(H175>Experiencia3,Puntajes!$D$7,0)))))","v":100}]
[null,null,{"$f":"+'Capacidad Financiera'!B179","v":16.200000000000003},{"$f":"IF(ISERROR(VLOOKUP(C176,'Capacidad Financiera'!$B$12:$X$62720,2,0)),\"\",VLOOKUP(C176,'Capacidad Financiera'!$B$12:$X$3580,2,0))","v":"TORRESCAMARA Y CIA DE OBRAS S.A. SUCURSAL COLOMBIA"},{"$f":"IF(ISERROR(VLOOKUP(C176,'Capacidad Financiera'!$B$12:$X$62720,3,0)),\"\",VLOOKUP(C176,'Capacidad Financiera'!$B$12:$X$62720,3,0))","v":0.4},257264362493.60001,{"$f":"IF(OR(D176=\"\",E176=\"\",F176=\"\"),\"\",IF(C176<>\"\",IF(ISERROR(VLOOKUP($A$10,POA!$A$2:$D$25,2,0)),\"\",VLOOKUP($A$10,POA!$A$2:$D$25,2,0)),\"\"))","v":4167150295},{"$f":"IF(OR(D176=\"\",E176=\"\",F176=\"\"),\"\",IF(C176<>\"\",F176/(G176*E176),\"\"))","v":154.34070304728473},{"$f":"IF(OR(D176=\"\",E176=\"\",F176=\"\"),\"\",IF(AND(H176>0,H176<=Experiencia1),Puntajes!$D$4,IF(AND(H176>Experiencia1,H176<=Experiencia2),Puntajes!$D$5,IF(AND(H176>Experiencia2,H176<=Experiencia3),Puntajes!$D$6,IF(H176>Experiencia3,Puntajes!$D$7,0)))))","v":120}]
[null,null,{"$f":"+'Capacidad Financiera'!B180","v":""},{"$f":"IF(ISERROR(VLOOKUP(C177,'Capacidad Financiera'!$B$12:$X$62720,2,0)),\"\",VLOOKUP(C177,'Capacidad Financiera'!$B$12:$X$3580,2,0))","v":0},{"$f":"IF(ISERROR(VLOOKUP(C177,'Capacidad Financiera'!$B$12:$X$62720,3,0)),\"\",VLOOKUP(C177,'Capacidad Financiera'!$B$12:$X$62720,3,0))","v":0},null,{"$f":"IF(OR(D177=\"\",E177=\"\",F177=\"\"),\"\",IF(C177<>\"\",IF(ISERROR(VLOOKUP($A$10,POA!$A$2:$D$25,2,0)),\"\",VLOOKUP($A$10,POA!$A$2:$D$25,2,0)),\"\"))","v":""},"",{"$f":"IF(OR(D177=\"\",E177=\"\",F177=\"\"),\"\",IF(AND(H177>0,H177<=Experiencia1),Puntajes!$D$4,IF(AND(H177>Experiencia1,H177<=Experiencia2),Puntajes!$D$5,IF(AND(H177>Experiencia2,H177<=Experiencia3),Puntajes!$D$6,IF(H177>Experiencia3,Puntajes!$D$7,0)))))","v":""}]
[null,null,{"$f":"+'Capacidad Financiera'!B181","v":""},{"$f":"IF(ISERROR(VLOOKUP(C178,'Capacidad Financiera'!$B$12:$X$62720,2,0)),\"\",VLOOKUP(C178,'Capacidad Financiera'!$B$12:$X$3580,2,0))","v":0},{"$f":"IF(ISERROR(VLOOKUP(C178,'Capacidad Financiera'!$B$12:$X$62720,3,0)),\"\",VLOOKUP(C178,'Capacidad Financiera'!$B$12:$X$62720,3,0))","v":0},null,{"$f":"IF(OR(D178=\"\",E178=\"\",F178=\"\"),\"\",IF(C178<>\"\",IF(ISERROR(VLOOKUP($A$10,POA!$A$2:$D$25,2,0)),\"\",VLOOKUP($A$10,POA!$A$2:$D$25,2,0)),\"\"))","v":""},"",{"$f":"IF(OR(D178=\"\",E178=\"\",F178=\"\"),\"\",IF(AND(H178>0,H178<=Experiencia1),Puntajes!$D$4,IF(AND(H178>Experiencia1,H178<=Experiencia2),Puntajes!$D$5,IF(AND(H178>Experiencia2,H178<=Experiencia3),Puntajes!$D$6,IF(H178>Experiencia3,Puntajes!$D$7,0)))))","v":""}]
[null,null,{"$f":"+'Capacidad Financiera'!B182","v":""},{"$f":"IF(ISERROR(VLOOKUP(C179,'Capacidad Financiera'!$B$12:$X$62720,2,0)),\"\",VLOOKUP(C179,'Capacidad Financiera'!$B$12:$X$3580,2,0))","v":0},{"$f":"IF(ISERROR(VLOOKUP(C179,'Capacidad Financiera'!$B$12:$X$62720,3,0)),\"\",VLOOKUP(C179,'Capacidad Financiera'!$B$12:$X$62720,3,0))","v":0},null,{"$f":"IF(OR(D179=\"\",E179=\"\",F179=\"\"),\"\",IF(C179<>\"\",IF(ISERROR(VLOOKUP($A$10,POA!$A$2:$D$25,2,0)),\"\",VLOOKUP($A$10,POA!$A$2:$D$25,2,0)),\"\"))","v":""},"",{"$f":"IF(OR(D179=\"\",E179=\"\",F179=\"\"),\"\",IF(AND(H179>0,H179<=Experiencia1),Puntajes!$D$4,IF(AND(H179>Experiencia1,H179<=Experiencia2),Puntajes!$D$5,IF(AND(H179>Experiencia2,H179<=Experiencia3),Puntajes!$D$6,IF(H179>Experiencia3,Puntajes!$D$7,0)))))","v":""}]
[null,null,{"$f":"+'Capacidad Financiera'!B183","v":""},{"$f":"IF(ISERROR(VLOOKUP(C180,'Capacidad Financiera'!$B$12:$X$62720,2,0)),\"\",VLOOKUP(C180,'Capacidad Financiera'!$B$12:$X$3580,2,0))","v":0},{"$f":"IF(ISERROR(VLOOKUP(C180,'Capacidad Financiera'!$B$12:$X$62720,3,0)),\"\",VLOOKUP(C180,'Capacidad Financiera'!$B$12:$X$62720,3,0))","v":0},null,{"$f":"IF(OR(D180=\"\",E180=\"\",F180=\"\"),\"\",IF(C180<>\"\",IF(ISERROR(VLOOKUP($A$10,POA!$A$2:$D$25,2,0)),\"\",VLOOKUP($A$10,POA!$A$2:$D$25,2,0)),\"\"))","v":""},"",{"$f":"IF(OR(D180=\"\",E180=\"\",F180=\"\"),\"\",IF(AND(H180>0,H180<=Experiencia1),Puntajes!$D$4,IF(AND(H180>Experiencia1,H180<=Experiencia2),Puntajes!$D$5,IF(AND(H180>Experiencia2,H180<=Experiencia3),Puntajes!$D$6,IF(H180>Experiencia3,Puntajes!$D$7,0)))))","v":""}]
[null,null,{"$f":"+'Capacidad Financiera'!B184","v":""},{"$f":"IF(ISERROR(VLOOKUP(C181,'Capacidad Financiera'!$B$12:$X$62720,2,0)),\"\",VLOOKUP(C181,'Capacidad Financiera'!$B$12:$X$3580,2,0))","v":0},{"$f":"IF(ISERROR(VLOOKUP(C181,'Capacidad Financiera'!$B$12:$X$62720,3,0)),\"\",VLOOKUP(C181,'Capacidad Financiera'!$B$12:$X$62720,3,0))","v":0},null,{"$f":"IF(OR(D181=\"\",E181=\"\",F181=\"\"),\"\",IF(C181<>\"\",IF(ISERROR(VLOOKUP($A$10,POA!$A$2:$D$25,2,0)),\"\",VLOOKUP($A$10,POA!$A$2:$D$25,2,0)),\"\"))","v":""},"",{"$f":"IF(OR(D181=\"\",E181=\"\",F181=\"\"),\"\",IF(AND(H181>0,H181<=Experiencia1),Puntajes!$D$4,IF(AND(H181>Experiencia1,H181<=Experiencia2),Puntajes!$D$5,IF(AND(H181>Experiencia2,H181<=Experiencia3),Puntajes!$D$6,IF(H181>Experiencia3,Puntajes!$D$7,0)))))","v":""}]
[null,null,{"$f":"+'Capacidad Financiera'!B185","v":""},{"$f":"IF(ISERROR(VLOOKUP(C182,'Capacidad Financiera'!$B$12:$X$62720,2,0)),\"\",VLOOKUP(C182,'Capacidad Financiera'!$B$12:$X$3580,2,0))","v":0},{"$f":"IF(ISERROR(VLOOKUP(C182,'Capacidad Financiera'!$B$12:$X$62720,3,0)),\"\",VLOOKUP(C182,'Capacidad Financiera'!$B$12:$X$62720,3,0))","v":0},null,{"$f":"IF(OR(D182=\"\",E182=\"\",F182=\"\"),\"\",IF(C182<>\"\",IF(ISERROR(VLOOKUP($A$10,POA!$A$2:$D$25,2,0)),\"\",VLOOKUP($A$10,POA!$A$2:$D$25,2,0)),\"\"))","v":""},"",{"$f":"IF(OR(D182=\"\",E182=\"\",F182=\"\"),\"\",IF(AND(H182>0,H182<=Experiencia1),Puntajes!$D$4,IF(AND(H182>Experiencia1,H182<=Experiencia2),Puntajes!$D$5,IF(AND(H182>Experiencia2,H182<=Experiencia3),Puntajes!$D$6,IF(H182>Experiencia3,Puntajes!$D$7,0)))))","v":""}]
[null,null,{"$f":"+'Capacidad Financiera'!B186","v":""},{"$f":"IF(ISERROR(VLOOKUP(C183,'Capacidad Financiera'!$B$12:$X$62720,2,0)),\"\",VLOOKUP(C183,'Capacidad Financiera'!$B$12:$X$3580,2,0))","v":0},{"$f":"IF(ISERROR(VLOOKUP(C183,'Capacidad Financiera'!$B$12:$X$62720,3,0)),\"\",VLOOKUP(C183,'Capacidad Financiera'!$B$12:$X$62720,3,0))","v":0},null,{"$f":"IF(OR(D183=\"\",E183=\"\",F183=\"\"),\"\",IF(C183<>\"\",IF(ISERROR(VLOOKUP($A$10,POA!$A$2:$D$25,2,0)),\"\",VLOOKUP($A$10,POA!$A$2:$D$25,2,0)),\"\"))","v":""},"",{"$f":"IF(OR(D183=\"\",E183=\"\",F183=\"\"),\"\",IF(AND(H183>0,H183<=Experiencia1),Puntajes!$D$4,IF(AND(H183>Experiencia1,H183<=Experiencia2),Puntajes!$D$5,IF(AND(H183>Experiencia2,H183<=Experiencia3),Puntajes!$D$6,IF(H183>Experiencia3,Puntajes!$D$7,0)))))","v":""}]
[null,null,{"$f":"+'Capacidad Financiera'!B187","v":""},{"$f":"IF(ISERROR(VLOOKUP(C184,'Capacidad Financiera'!$B$12:$X$62720,2,0)),\"\",VLOOKUP(C184,'Capacidad Financiera'!$B$12:$X$3580,2,0))","v":0},{"$f":"IF(ISERROR(VLOOKUP(C184,'Capacidad Financiera'!$B$12:$X$62720,3,0)),\"\",VLOOKUP(C184,'Capacidad Financiera'!$B$12:$X$62720,3,0))","v":0},null,{"$f":"IF(OR(D184=\"\",E184=\"\",F184=\"\"),\"\",IF(C184<>\"\",IF(ISERROR(VLOOKUP($A$10,POA!$A$2:$D$25,2,0)),\"\",VLOOKUP($A$10,POA!$A$2:$D$25,2,0)),\"\"))","v":""},"",{"$f":"IF(OR(D184=\"\",E184=\"\",F184=\"\"),\"\",IF(AND(H184>0,H184<=Experiencia1),Puntajes!$D$4,IF(AND(H184>Experiencia1,H184<=Experiencia2),Puntajes!$D$5,IF(AND(H184>Experiencia2,H184<=Experiencia3),Puntajes!$D$6,IF(H184>Experiencia3,Puntajes!$D$7,0)))))","v":""}]
[null,null,17,{"$f":"IF(ISERROR(VLOOKUP(C185,'Capacidad Financiera'!$B$12:$X$62720,2,0)),\"\",VLOOKUP(C185,'Capacidad Financiera'!$B$12:$X$3580,2,0))","v":"CONSORCIO LA CALERA CUNDINAMARCA"},{"$f":"IF(ISERROR(VLOOKUP(C185,'Capacidad Financiera'!$B$12:$X$62720,3,0)),\"\",VLOOKUP(C185,'Capacidad Financiera'!$B$12:$X$62720,3,0))","v":1},null,{"$f":"IF(OR(D185=\"\",E185=\"\",F185=\"\"),\"\",IF(C186=\"\",IF(C185<>\"\",IF(ISERROR(VLOOKUP($A$10,POA!$A$2:$D$25,2,0)),\"\",VLOOKUP($A$10,POA!$A$2:$D$25,2,0)),\"\"),\"\"))","v":""},{"$f":"IF(OR(D185=\"\",E185=\"\",F185=\"\"),\"\",IF(C186=\"\",IF(C185<>\"\",F185/G185,\"\"),\"\"))","v":""},{"$f":"IF(C186=\"\",IF(F185=\"\",\"\",IF(AND(H185>0,H185<=Experiencia1),Puntajes!$D$4,IF(AND(H185>Experiencia1,H185<=Experiencia2),Puntajes!$D$5,IF(AND(H185>Experiencia2,H185<=Experiencia3),Puntajes!$D$6,IF(H185>Experiencia3,Puntajes!$D$7,0))))),\"\")","v":""}]
[null,null,{"$f":"+'Capacidad Financiera'!B189","v":17.100000000000001},{"$f":"IF(ISERROR(VLOOKUP(C186,'Capacidad Financiera'!$B$12:$X$62720,2,0)),\"\",VLOOKUP(C186,'Capacidad Financiera'!$B$12:$X$3580,2,0))","v":"JUAN SILVA RODRIGUEZ"},{"$f":"IF(ISERROR(VLOOKUP(C186,'Capacidad Financiera'!$B$12:$X$62720,3,0)),\"\",VLOOKUP(C186,'Capacidad Financiera'!$B$12:$X$62720,3,0))","v":0.5},21801726685.200001,{"$f":"IF(OR(D186=\"\",E186=\"\",F186=\"\"),\"\",IF(C186<>\"\",IF(ISERROR(VLOOKUP($A$10,POA!$A$2:$D$25,2,0)),\"\",VLOOKUP($A$10,POA!$A$2:$D$25,2,0)),\"\"))","v":4167150295},{"$f":"IF(OR(D186=\"\",E186=\"\",F186=\"\"),\"\",IF(C186<>\"\",F186/(G186*E186),\"\"))","v":10.463614288814606},{"$f":"IF(OR(D186=\"\",E186=\"\",F186=\"\"),\"\",IF(AND(H186>0,H186<=Experiencia1),Puntajes!$D$4,IF(AND(H186>Experiencia1,H186<=Experiencia2),Puntajes!$D$5,IF(AND(H186>Experiencia2,H186<=Experiencia3),Puntajes!$D$6,IF(H186>Experiencia3,Puntajes!$D$7,0)))))","v":120}]
[null,null,{"$f":"+'Capacidad Financiera'!B190","v":17.200000000000003},{"$f":"IF(ISERROR(VLOOKUP(C187,'Capacidad Financiera'!$B$12:$X$62720,2,0)),\"\",VLOOKUP(C187,'Capacidad Financiera'!$B$12:$X$3580,2,0))","v":"FERNANDO JIMENEZ ROA"},{"$f":"IF(ISERROR(VLOOKUP(C187,'Capacidad Financiera'!$B$12:$X$62720,3,0)),\"\",VLOOKUP(C187,'Capacidad Financiera'!$B$12:$X$62720,3,0))","v":0.5},24087874333.599998,{"$f":"IF(OR(D187=\"\",E187=\"\",F187=\"\"),\"\",IF(C187<>\"\",IF(ISERROR(VLOOKUP($A$10,POA!$A$2:$D$25,2,0)),\"\",VLOOKUP($A$10,POA!$A$2:$D$25,2,0)),\"\"))","v":4167150295},{"$f":"IF(OR(D187=\"\",E187=\"\",F187=\"\"),\"\",IF(C187<>\"\",F187/(G187*E187),\"\"))","v":11.560837804435367},{"$f":"IF(OR(D187=\"\",E187=\"\",F187=\"\"),\"\",IF(AND(H187>0,H187<=Experiencia1),Puntajes!$D$4,IF(AND(H187>Experiencia1,H187<=Experiencia2),Puntajes!$D$5,IF(AND(H187>Experiencia2,H187<=Experiencia3),Puntajes!$D$6,IF(H187>Experiencia3,Puntajes!$D$7,0)))))","v":120}]
[null,null,{"$f":"+'Capacidad Financiera'!B191","v":""},{"$f":"IF(ISERROR(VLOOKUP(C188,'Capacidad Financiera'!$B$12:$X$62720,2,0)),\"\",VLOOKUP(C188,'Capacidad Financiera'!$B$12:$X$3580,2,0))","v":0},{"$f":"IF(ISERROR(VLOOKUP(C188,'Capacidad Financiera'!$B$12:$X$62720,3,0)),\"\",VLOOKUP(C188,'Capacidad Financiera'!$B$12:$X$62720,3,0))","v":0},null,{"$f":"IF(OR(D188=\"\",E188=\"\",F188=\"\"),\"\",IF(C188<>\"\",IF(ISERROR(VLOOKUP($A$10,POA!$A$2:$D$25,2,0)),\"\",VLOOKUP($A$10,POA!$A$2:$D$25,2,0)),\"\"))","v":""},"",{"$f":"IF(OR(D188=\"\",E188=\"\",F188=\"\"),\"\",IF(AND(H188>0,H188<=Experiencia1),Puntajes!$D$4,IF(AND(H188>Experiencia1,H188<=Experiencia2),Puntajes!$D$5,IF(AND(H188>Experiencia2,H188<=Experiencia3),Puntajes!$D$6,IF(H188>Experiencia3,Puntajes!$D$7,0)))))","v":""}]
[null,null,{"$f":"+'Capacidad Financiera'!B192","v":""},{"$f":"IF(ISERROR(VLOOKUP(C189,'Capacidad Financiera'!$B$12:$X$62720,2,0)),\"\",VLOOKUP(C189,'Capacidad Financiera'!$B$12:$X$3580,2,0))","v":0},{"$f":"IF(ISERROR(VLOOKUP(C189,'Capacidad Financiera'!$B$12:$X$62720,3,0)),\"\",VLOOKUP(C189,'Capacidad Financiera'!$B$12:$X$62720,3,0))","v":0},null,{"$f":"IF(OR(D189=\"\",E189=\"\",F189=\"\"),\"\",IF(C189<>\"\",IF(ISERROR(VLOOKUP($A$10,POA!$A$2:$D$25,2,0)),\"\",VLOOKUP($A$10,POA!$A$2:$D$25,2,0)),\"\"))","v":""},"",{"$f":"IF(OR(D189=\"\",E189=\"\",F189=\"\"),\"\",IF(AND(H189>0,H189<=Experiencia1),Puntajes!$D$4,IF(AND(H189>Experiencia1,H189<=Experiencia2),Puntajes!$D$5,IF(AND(H189>Experiencia2,H189<=Experiencia3),Puntajes!$D$6,IF(H189>Experiencia3,Puntajes!$D$7,0)))))","v":""}]
[null,null,{"$f":"+'Capacidad Financiera'!B193","v":""},{"$f":"IF(ISERROR(VLOOKUP(C190,'Capacidad Financiera'!$B$12:$X$62720,2,0)),\"\",VLOOKUP(C190,'Capacidad Financiera'!$B$12:$X$3580,2,0))","v":0},{"$f":"IF(ISERROR(VLOOKUP(C190,'Capacidad Financiera'!$B$12:$X$62720,3,0)),\"\",VLOOKUP(C190,'Capacidad Financiera'!$B$12:$X$62720,3,0))","v":0},null,{"$f":"IF(OR(D190=\"\",E190=\"\",F190=\"\"),\"\",IF(C190<>\"\",IF(ISERROR(VLOOKUP($A$10,POA!$A$2:$D$25,2,0)),\"\",VLOOKUP($A$10,POA!$A$2:$D$25,2,0)),\"\"))","v":""},"",{"$f":"IF(OR(D190=\"\",E190=\"\",F190=\"\"),\"\",IF(AND(H190>0,H190<=Experiencia1),Puntajes!$D$4,IF(AND(H190>Experiencia1,H190<=Experiencia2),Puntajes!$D$5,IF(AND(H190>Experiencia2,H190<=Experiencia3),Puntajes!$D$6,IF(H190>Experiencia3,Puntajes!$D$7,0)))))","v":""}]
[null,null,{"$f":"+'Capacidad Financiera'!B194","v":""},{"$f":"IF(ISERROR(VLOOKUP(C191,'Capacidad Financiera'!$B$12:$X$62720,2,0)),\"\",VLOOKUP(C191,'Capacidad Financiera'!$B$12:$X$3580,2,0))","v":0},{"$f":"IF(ISERROR(VLOOKUP(C191,'Capacidad Financiera'!$B$12:$X$62720,3,0)),\"\",VLOOKUP(C191,'Capacidad Financiera'!$B$12:$X$62720,3,0))","v":0},null,{"$f":"IF(OR(D191=\"\",E191=\"\",F191=\"\"),\"\",IF(C191<>\"\",IF(ISERROR(VLOOKUP($A$10,POA!$A$2:$D$25,2,0)),\"\",VLOOKUP($A$10,POA!$A$2:$D$25,2,0)),\"\"))","v":""},"",{"$f":"IF(OR(D191=\"\",E191=\"\",F191=\"\"),\"\",IF(AND(H191>0,H191<=Experiencia1),Puntajes!$D$4,IF(AND(H191>Experiencia1,H191<=Experiencia2),Puntajes!$D$5,IF(AND(H191>Experiencia2,H191<=Experiencia3),Puntajes!$D$6,IF(H191>Experiencia3,Puntajes!$D$7,0)))))","v":""}]
[null,null,{"$f":"+'Capacidad Financiera'!B195","v":""},{"$f":"IF(ISERROR(VLOOKUP(C192,'Capacidad Financiera'!$B$12:$X$62720,2,0)),\"\",VLOOKUP(C192,'Capacidad Financiera'!$B$12:$X$3580,2,0))","v":0},{"$f":"IF(ISERROR(VLOOKUP(C192,'Capacidad Financiera'!$B$12:$X$62720,3,0)),\"\",VLOOKUP(C192,'Capacidad Financiera'!$B$12:$X$62720,3,0))","v":0},null,{"$f":"IF(OR(D192=\"\",E192=\"\",F192=\"\"),\"\",IF(C192<>\"\",IF(ISERROR(VLOOKUP($A$10,POA!$A$2:$D$25,2,0)),\"\",VLOOKUP($A$10,POA!$A$2:$D$25,2,0)),\"\"))","v":""},"",{"$f":"IF(OR(D192=\"\",E192=\"\",F192=\"\"),\"\",IF(AND(H192>0,H192<=Experiencia1),Puntajes!$D$4,IF(AND(H192>Experiencia1,H192<=Experiencia2),Puntajes!$D$5,IF(AND(H192>Experiencia2,H192<=Experiencia3),Puntajes!$D$6,IF(H192>Experiencia3,Puntajes!$D$7,0)))))","v":""}]
[null,null,{"$f":"+'Capacidad Financiera'!B196","v":""},{"$f":"IF(ISERROR(VLOOKUP(C193,'Capacidad Financiera'!$B$12:$X$62720,2,0)),\"\",VLOOKUP(C193,'Capacidad Financiera'!$B$12:$X$3580,2,0))","v":0},{"$f":"IF(ISERROR(VLOOKUP(C193,'Capacidad Financiera'!$B$12:$X$62720,3,0)),\"\",VLOOKUP(C193,'Capacidad Financiera'!$B$12:$X$62720,3,0))","v":0},null,{"$f":"IF(OR(D193=\"\",E193=\"\",F193=\"\"),\"\",IF(C193<>\"\",IF(ISERROR(VLOOKUP($A$10,POA!$A$2:$D$25,2,0)),\"\",VLOOKUP($A$10,POA!$A$2:$D$25,2,0)),\"\"))","v":""},"",{"$f":"IF(OR(D193=\"\",E193=\"\",F193=\"\"),\"\",IF(AND(H193>0,H193<=Experiencia1),Puntajes!$D$4,IF(AND(H193>Experiencia1,H193<=Experiencia2),Puntajes!$D$5,IF(AND(H193>Experiencia2,H193<=Experiencia3),Puntajes!$D$6,IF(H193>Experiencia3,Puntajes!$D$7,0)))))","v":""}]
[null,null,{"$f":"+'Capacidad Financiera'!B197","v":""},{"$f":"IF(ISERROR(VLOOKUP(C194,'Capacidad Financiera'!$B$12:$X$62720,2,0)),\"\",VLOOKUP(C194,'Capacidad Financiera'!$B$12:$X$3580,2,0))","v":0},{"$f":"IF(ISERROR(VLOOKUP(C194,'Capacidad Financiera'!$B$12:$X$62720,3,0)),\"\",VLOOKUP(C194,'Capacidad Financiera'!$B$12:$X$62720,3,0))","v":0},null,{"$f":"IF(OR(D194=\"\",E194=\"\",F194=\"\"),\"\",IF(C194<>\"\",IF(ISERROR(VLOOKUP($A$10,POA!$A$2:$D$25,2,0)),\"\",VLOOKUP($A$10,POA!$A$2:$D$25,2,0)),\"\"))","v":""},"",{"$f":"IF(OR(D194=\"\",E194=\"\",F194=\"\"),\"\",IF(AND(H194>0,H194<=Experiencia1),Puntajes!$D$4,IF(AND(H194>Experiencia1,H194<=Experiencia2),Puntajes!$D$5,IF(AND(H194>Experiencia2,H194<=Experiencia3),Puntajes!$D$6,IF(H194>Experiencia3,Puntajes!$D$7,0)))))","v":""}]
[null,null,{"$f":"+'Capacidad Financiera'!B198","v":""},{"$f":"IF(ISERROR(VLOOKUP(C195,'Capacidad Financiera'!$B$12:$X$62720,2,0)),\"\",VLOOKUP(C195,'Capacidad Financiera'!$B$12:$X$3580,2,0))","v":0},{"$f":"IF(ISERROR(VLOOKUP(C195,'Capacidad Financiera'!$B$12:$X$62720,3,0)),\"\",VLOOKUP(C195,'Capacidad Financiera'!$B$12:$X$62720,3,0))","v":0},null,{"$f":"IF(OR(D195=\"\",E195=\"\",F195=\"\"),\"\",IF(C195<>\"\",IF(ISERROR(VLOOKUP($A$10,POA!$A$2:$D$25,2,0)),\"\",VLOOKUP($A$10,POA!$A$2:$D$25,2,0)),\"\"))","v":""},"",{"$f":"IF(OR(D195=\"\",E195=\"\",F195=\"\"),\"\",IF(AND(H195>0,H195<=Experiencia1),Puntajes!$D$4,IF(AND(H195>Experiencia1,H195<=Experiencia2),Puntajes!$D$5,IF(AND(H195>Experiencia2,H195<=Experiencia3),Puntajes!$D$6,IF(H195>Experiencia3,Puntajes!$D$7,0)))))","v":""}]
[null,null,18,{"$f":"IF(ISERROR(VLOOKUP(C196,'Capacidad Financiera'!$B$12:$X$62720,2,0)),\"\",VLOOKUP(C196,'Capacidad Financiera'!$B$12:$X$3580,2,0))","v":"CONSORCIO VIAS HN"},{"$f":"IF(ISERROR(VLOOKUP(C196,'Capacidad Financiera'!$B$12:$X$62720,3,0)),\"\",VLOOKUP(C196,'Capacidad Financiera'!$B$12:$X$62720,3,0))","v":1},null,{"$f":"IF(OR(D196=\"\",E196=\"\",F196=\"\"),\"\",IF(C197=\"\",IF(C196<>\"\",IF(ISERROR(VLOOKUP($A$10,POA!$A$2:$D$25,2,0)),\"\",VLOOKUP($A$10,POA!$A$2:$D$25,2,0)),\"\"),\"\"))","v":""},{"$f":"IF(OR(D196=\"\",E196=\"\",F196=\"\"),\"\",IF(C197=\"\",IF(C196<>\"\",F196/G196,\"\"),\"\"))","v":""},{"$f":"IF(C197=\"\",IF(F196=\"\",\"\",IF(AND(H196>0,H196<=Experiencia1),Puntajes!$D$4,IF(AND(H196>Experiencia1,H196<=Experiencia2),Puntajes!$D$5,IF(AND(H196>Experiencia2,H196<=Experiencia3),Puntajes!$D$6,IF(H196>Experiencia3,Puntajes!$D$7,0))))),\"\")","v":""}]
[null,null,{"$f":"+'Capacidad Financiera'!B200","v":18.100000000000001},{"$f":"IF(ISERROR(VLOOKUP(C197,'Capacidad Financiera'!$B$12:$X$62720,2,0)),\"\",VLOOKUP(C197,'Capacidad Financiera'!$B$12:$X$3580,2,0))","v":"LUIS FERNANDO HOYOS PEREZ"},{"$f":"IF(ISERROR(VLOOKUP(C197,'Capacidad Financiera'!$B$12:$X$62720,3,0)),\"\",VLOOKUP(C197,'Capacidad Financiera'!$B$12:$X$62720,3,0))","v":0.6},57481912334,{"$f":"IF(OR(D197=\"\",E197=\"\",F197=\"\"),\"\",IF(C197<>\"\",IF(ISERROR(VLOOKUP($A$10,POA!$A$2:$D$25,2,0)),\"\",VLOOKUP($A$10,POA!$A$2:$D$25,2,0)),\"\"))","v":4167150295},{"$f":"IF(OR(D197=\"\",E197=\"\",F197=\"\"),\"\",IF(C197<>\"\",F197/(G197*E197),\"\"))","v":22.990096454712425},{"$f":"IF(OR(D197=\"\",E197=\"\",F197=\"\"),\"\",IF(AND(H197>0,H197<=Experiencia1),Puntajes!$D$4,IF(AND(H197>Experiencia1,H197<=Experiencia2),Puntajes!$D$5,IF(AND(H197>Experiencia2,H197<=Experiencia3),Puntajes!$D$6,IF(H197>Experiencia3,Puntajes!$D$7,0)))))","v":120}]
[null,null,{"$f":"+'Capacidad Financiera'!B201","v":18.200000000000003},{"$f":"IF(ISERROR(VLOOKUP(C198,'Capacidad Financiera'!$B$12:$X$62720,2,0)),\"\",VLOOKUP(C198,'Capacidad Financiera'!$B$12:$X$3580,2,0))","v":"VICTOR RAUL NEIRA DELBASTO"},{"$f":"IF(ISERROR(VLOOKUP(C198,'Capacidad Financiera'!$B$12:$X$62720,3,0)),\"\",VLOOKUP(C198,'Capacidad Financiera'!$B$12:$X$62720,3,0))","v":0.4},12332984787.200001,{"$f":"IF(OR(D198=\"\",E198=\"\",F198=\"\"),\"\",IF(C198<>\"\",IF(ISERROR(VLOOKUP($A$10,POA!$A$2:$D$25,2,0)),\"\",VLOOKUP($A$10,POA!$A$2:$D$25,2,0)),\"\"))","v":4167150295},{"$f":"IF(OR(D198=\"\",E198=\"\",F198=\"\"),\"\",IF(C198<>\"\",F198/(G198*E198),\"\"))","v":7.3989320723552163},{"$f":"IF(OR(D198=\"\",E198=\"\",F198=\"\"),\"\",IF(AND(H198>0,H198<=Experiencia1),Puntajes!$D$4,IF(AND(H198>Experiencia1,H198<=Experiencia2),Puntajes!$D$5,IF(AND(H198>Experiencia2,H198<=Experiencia3),Puntajes!$D$6,IF(H198>Experiencia3,Puntajes!$D$7,0)))))","v":100}]
[null,null,{"$f":"+'Capacidad Financiera'!B202","v":""},{"$f":"IF(ISERROR(VLOOKUP(C199,'Capacidad Financiera'!$B$12:$X$62720,2,0)),\"\",VLOOKUP(C199,'Capacidad Financiera'!$B$12:$X$3580,2,0))","v":0},{"$f":"IF(ISERROR(VLOOKUP(C199,'Capacidad Financiera'!$B$12:$X$62720,3,0)),\"\",VLOOKUP(C199,'Capacidad Financiera'!$B$12:$X$62720,3,0))","v":0},null,{"$f":"IF(OR(D199=\"\",E199=\"\",F199=\"\"),\"\",IF(C199<>\"\",IF(ISERROR(VLOOKUP($A$10,POA!$A$2:$D$25,2,0)),\"\",VLOOKUP($A$10,POA!$A$2:$D$25,2,0)),\"\"))","v":""},"",{"$f":"IF(OR(D199=\"\",E199=\"\",F199=\"\"),\"\",IF(AND(H199>0,H199<=Experiencia1),Puntajes!$D$4,IF(AND(H199>Experiencia1,H199<=Experiencia2),Puntajes!$D$5,IF(AND(H199>Experiencia2,H199<=Experiencia3),Puntajes!$D$6,IF(H199>Experiencia3,Puntajes!$D$7,0)))))","v":""}]
[null,null,{"$f":"+'Capacidad Financiera'!B203","v":""},{"$f":"IF(ISERROR(VLOOKUP(C200,'Capacidad Financiera'!$B$12:$X$62720,2,0)),\"\",VLOOKUP(C200,'Capacidad Financiera'!$B$12:$X$3580,2,0))","v":0},{"$f":"IF(ISERROR(VLOOKUP(C200,'Capacidad Financiera'!$B$12:$X$62720,3,0)),\"\",VLOOKUP(C200,'Capacidad Financiera'!$B$12:$X$62720,3,0))","v":0},null,{"$f":"IF(OR(D200=\"\",E200=\"\",F200=\"\"),\"\",IF(C200<>\"\",IF(ISERROR(VLOOKUP($A$10,POA!$A$2:$D$25,2,0)),\"\",VLOOKUP($A$10,POA!$A$2:$D$25,2,0)),\"\"))","v":""},"",{"$f":"IF(OR(D200=\"\",E200=\"\",F200=\"\"),\"\",IF(AND(H200>0,H200<=Experiencia1),Puntajes!$D$4,IF(AND(H200>Experiencia1,H200<=Experiencia2),Puntajes!$D$5,IF(AND(H200>Experiencia2,H200<=Experiencia3),Puntajes!$D$6,IF(H200>Experiencia3,Puntajes!$D$7,0)))))","v":""}]
[null,null,{"$f":"+'Capacidad Financiera'!B204","v":""},{"$f":"IF(ISERROR(VLOOKUP(C201,'Capacidad Financiera'!$B$12:$X$62720,2,0)),\"\",VLOOKUP(C201,'Capacidad Financiera'!$B$12:$X$3580,2,0))","v":0},{"$f":"IF(ISERROR(VLOOKUP(C201,'Capacidad Financiera'!$B$12:$X$62720,3,0)),\"\",VLOOKUP(C201,'Capacidad Financiera'!$B$12:$X$62720,3,0))","v":0},null,{"$f":"IF(OR(D201=\"\",E201=\"\",F201=\"\"),\"\",IF(C201<>\"\",IF(ISERROR(VLOOKUP($A$10,POA!$A$2:$D$25,2,0)),\"\",VLOOKUP($A$10,POA!$A$2:$D$25,2,0)),\"\"))","v":""},"",{"$f":"IF(OR(D201=\"\",E201=\"\",F201=\"\"),\"\",IF(AND(H201>0,H201<=Experiencia1),Puntajes!$D$4,IF(AND(H201>Experiencia1,H201<=Experiencia2),Puntajes!$D$5,IF(AND(H201>Experiencia2,H201<=Experiencia3),Puntajes!$D$6,IF(H201>Experiencia3,Puntajes!$D$7,0)))))","v":""}]
[null,null,{"$f":"+'Capacidad Financiera'!B205","v":""},{"$f":"IF(ISERROR(VLOOKUP(C202,'Capacidad Financiera'!$B$12:$X$62720,2,0)),\"\",VLOOKUP(C202,'Capacidad Financiera'!$B$12:$X$3580,2,0))","v":0},{"$f":"IF(ISERROR(VLOOKUP(C202,'Capacidad Financiera'!$B$12:$X$62720,3,0)),\"\",VLOOKUP(C202,'Capacidad Financiera'!$B$12:$X$62720,3,0))","v":0},null,{"$f":"IF(OR(D202=\"\",E202=\"\",F202=\"\"),\"\",IF(C202<>\"\",IF(ISERROR(VLOOKUP($A$10,POA!$A$2:$D$25,2,0)),\"\",VLOOKUP($A$10,POA!$A$2:$D$25,2,0)),\"\"))","v":""},"",{"$f":"IF(OR(D202=\"\",E202=\"\",F202=\"\"),\"\",IF(AND(H202>0,H202<=Experiencia1),Puntajes!$D$4,IF(AND(H202>Experiencia1,H202<=Experiencia2),Puntajes!$D$5,IF(AND(H202>Experiencia2,H202<=Experiencia3),Puntajes!$D$6,IF(H202>Experiencia3,Puntajes!$D$7,0)))))","v":""}]
[null,null,{"$f":"+'Capacidad Financiera'!B206","v":""},{"$f":"IF(ISERROR(VLOOKUP(C203,'Capacidad Financiera'!$B$12:$X$62720,2,0)),\"\",VLOOKUP(C203,'Capacidad Financiera'!$B$12:$X$3580,2,0))","v":0},{"$f":"IF(ISERROR(VLOOKUP(C203,'Capacidad Financiera'!$B$12:$X$62720,3,0)),\"\",VLOOKUP(C203,'Capacidad Financiera'!$B$12:$X$62720,3,0))","v":0},null,{"$f":"IF(OR(D203=\"\",E203=\"\",F203=\"\"),\"\",IF(C203<>\"\",IF(ISERROR(VLOOKUP($A$10,POA!$A$2:$D$25,2,0)),\"\",VLOOKUP($A$10,POA!$A$2:$D$25,2,0)),\"\"))","v":""},"",{"$f":"IF(OR(D203=\"\",E203=\"\",F203=\"\"),\"\",IF(AND(H203>0,H203<=Experiencia1),Puntajes!$D$4,IF(AND(H203>Experiencia1,H203<=Experiencia2),Puntajes!$D$5,IF(AND(H203>Experiencia2,H203<=Experiencia3),Puntajes!$D$6,IF(H203>Experiencia3,Puntajes!$D$7,0)))))","v":""}]
[null,null,{"$f":"+'Capacidad Financiera'!B207","v":""},{"$f":"IF(ISERROR(VLOOKUP(C204,'Capacidad Financiera'!$B$12:$X$62720,2,0)),\"\",VLOOKUP(C204,'Capacidad Financiera'!$B$12:$X$3580,2,0))","v":0},{"$f":"IF(ISERROR(VLOOKUP(C204,'Capacidad Financiera'!$B$12:$X$62720,3,0)),\"\",VLOOKUP(C204,'Capacidad Financiera'!$B$12:$X$62720,3,0))","v":0},null,{"$f":"IF(OR(D204=\"\",E204=\"\",F204=\"\"),\"\",IF(C204<>\"\",IF(ISERROR(VLOOKUP($A$10,POA!$A$2:$D$25,2,0)),\"\",VLOOKUP($A$10,POA!$A$2:$D$25,2,0)),\"\"))","v":""},"",{"$f":"IF(OR(D204=\"\",E204=\"\",F204=\"\"),\"\",IF(AND(H204>0,H204<=Experiencia1),Puntajes!$D$4,IF(AND(H204>Experiencia1,H204<=Experiencia2),Puntajes!$D$5,IF(AND(H204>Experiencia2,H204<=Experiencia3),Puntajes!$D$6,IF(H204>Experiencia3,Puntajes!$D$7,0)))))","v":""}]
[null,null,{"$f":"+'Capacidad Financiera'!B208","v":""},{"$f":"IF(ISERROR(VLOOKUP(C205,'Capacidad Financiera'!$B$12:$X$62720,2,0)),\"\",VLOOKUP(C205,'Capacidad Financiera'!$B$12:$X$3580,2,0))","v":0},{"$f":"IF(ISERROR(VLOOKUP(C205,'Capacidad Financiera'!$B$12:$X$62720,3,0)),\"\",VLOOKUP(C205,'Capacidad Financiera'!$B$12:$X$62720,3,0))","v":0},null,{"$f":"IF(OR(D205=\"\",E205=\"\",F205=\"\"),\"\",IF(C205<>\"\",IF(ISERROR(VLOOKUP($A$10,POA!$A$2:$D$25,2,0)),\"\",VLOOKUP($A$10,POA!$A$2:$D$25,2,0)),\"\"))","v":""},"",{"$f":"IF(OR(D205=\"\",E205=\"\",F205=\"\"),\"\",IF(AND(H205>0,H205<=Experiencia1),Puntajes!$D$4,IF(AND(H205>Experiencia1,H205<=Experiencia2),Puntajes!$D$5,IF(AND(H205>Experiencia2,H205<=Experiencia3),Puntajes!$D$6,IF(H205>Experiencia3,Puntajes!$D$7,0)))))","v":""}]
[null,null,{"$f":"+'Capacidad Financiera'!B209","v":""},{"$f":"IF(ISERROR(VLOOKUP(C206,'Capacidad Financiera'!$B$12:$X$62720,2,0)),\"\",VLOOKUP(C206,'Capacidad Financiera'!$B$12:$X$3580,2,0))","v":0},{"$f":"IF(ISERROR(VLOOKUP(C206,'Capacidad Financiera'!$B$12:$X$62720,3,0)),\"\",VLOOKUP(C206,'Capacidad Financiera'!$B$12:$X$62720,3,0))","v":0},null,{"$f":"IF(OR(D206=\"\",E206=\"\",F206=\"\"),\"\",IF(C206<>\"\",IF(ISERROR(VLOOKUP($A$10,POA!$A$2:$D$25,2,0)),\"\",VLOOKUP($A$10,POA!$A$2:$D$25,2,0)),\"\"))","v":""},"",{"$f":"IF(OR(D206=\"\",E206=\"\",F206=\"\"),\"\",IF(AND(H206>0,H206<=Experiencia1),Puntajes!$D$4,IF(AND(H206>Experiencia1,H206<=Experiencia2),Puntajes!$D$5,IF(AND(H206>Experiencia2,H206<=Experiencia3),Puntajes!$D$6,IF(H206>Experiencia3,Puntajes!$D$7,0)))))","v":""}]
[null,null,19,{"$f":"IF(ISERROR(VLOOKUP(C207,'Capacidad Financiera'!$B$12:$X$62720,2,0)),\"\",VLOOKUP(C207,'Capacidad Financiera'!$B$12:$X$3580,2,0))","v":"EXPLANAN S.A."},{"$f":"IF(ISERROR(VLOOKUP(C207,'Capacidad Financiera'!$B$12:$X$62720,3,0)),\"\",VLOOKUP(C207,'Capacidad Financiera'!$B$12:$X$62720,3,0))","v":1},null,{"$f":"IF(OR(D207=\"\",E207=\"\",F207=\"\"),\"\",IF(C208=\"\",IF(C207<>\"\",IF(ISERROR(VLOOKUP($A$10,POA!$A$2:$D$25,2,0)),\"\",VLOOKUP($A$10,POA!$A$2:$D$25,2,0)),\"\"),\"\"))","v":""},{"$f":"IF(OR(D207=\"\",E207=\"\",F207=\"\"),\"\",IF(C208=\"\",IF(C207<>\"\",F207/G207,\"\"),\"\"))","v":""},{"$f":"IF(C208=\"\",IF(F207=\"\",\"\",IF(AND(H207>0,H207<=Experiencia1),Puntajes!$D$4,IF(AND(H207>Experiencia1,H207<=Experiencia2),Puntajes!$D$5,IF(AND(H207>Experiencia2,H207<=Experiencia3),Puntajes!$D$6,IF(H207>Experiencia3,Puntajes!$D$7,0))))),\"\")","v":""}]
[null,null,{"$f":"+'Capacidad Financiera'!B211","v":19.100000000000001},{"$f":"IF(ISERROR(VLOOKUP(C208,'Capacidad Financiera'!$B$12:$X$62720,2,0)),\"\",VLOOKUP(C208,'Capacidad Financiera'!$B$12:$X$3580,2,0))","v":"EXPLANAN S.A."},{"$f":"IF(ISERROR(VLOOKUP(C208,'Capacidad Financiera'!$B$12:$X$62720,3,0)),\"\",VLOOKUP(C208,'Capacidad Financiera'!$B$12:$X$62720,3,0))","v":1},186289450229.34,{"$f":"IF(OR(D208=\"\",E208=\"\",F208=\"\"),\"\",IF(C208<>\"\",IF(ISERROR(VLOOKUP($A$10,POA!$A$2:$D$25,2,0)),\"\",VLOOKUP($A$10,POA!$A$2:$D$25,2,0)),\"\"))","v":4167150295},{"$f":"IF(OR(D208=\"\",E208=\"\",F208=\"\"),\"\",IF(C208<>\"\",F208/(G208*E208),\"\"))","v":44.704279193592178},{"$f":"IF(OR(D208=\"\",E208=\"\",F208=\"\"),\"\",IF(AND(H208>0,H208<=Experiencia1),Puntajes!$D$4,IF(AND(H208>Experiencia1,H208<=Experiencia2),Puntajes!$D$5,IF(AND(H208>Experiencia2,H208<=Experiencia3),Puntajes!$D$6,IF(H208>Experiencia3,Puntajes!$D$7,0)))))","v":120}]
[null,null,{"$f":"+'Capacidad Financiera'!B212","v":""},{"$f":"IF(ISERROR(VLOOKUP(C209,'Capacidad Financiera'!$B$12:$X$62720,2,0)),\"\",VLOOKUP(C209,'Capacidad Financiera'!$B$12:$X$3580,2,0))","v":0},{"$f":"IF(ISERROR(VLOOKUP(C209,'Capacidad Financiera'!$B$12:$X$62720,3,0)),\"\",VLOOKUP(C209,'Capacidad Financiera'!$B$12:$X$62720,3,0))","v":0},null,{"$f":"IF(OR(D209=\"\",E209=\"\",F209=\"\"),\"\",IF(C209<>\"\",IF(ISERROR(VLOOKUP($A$10,POA!$A$2:$D$25,2,0)),\"\",VLOOKUP($A$10,POA!$A$2:$D$25,2,0)),\"\"))","v":""},{"$f":"IF(OR(D209=\"\",E209=\"\",F209=\"\"),\"\",IF(C209<>\"\",F209/(G209*E209),\"\"))","v":""},{"$f":"IF(OR(D209=\"\",E209=\"\",F209=\"\"),\"\",IF(AND(H209>0,H209<=Experiencia1),Puntajes!$D$4,IF(AND(H209>Experiencia1,H209<=Experiencia2),Puntajes!$D$5,IF(AND(H209>Experiencia2,H209<=Experiencia3),Puntajes!$D$6,IF(H209>Experiencia3,Puntajes!$D$7,0)))))","v":""}]
[null,null,{"$f":"+'Capacidad Financiera'!B213","v":""},{"$f":"IF(ISERROR(VLOOKUP(C210,'Capacidad Financiera'!$B$12:$X$62720,2,0)),\"\",VLOOKUP(C210,'Capacidad Financiera'!$B$12:$X$3580,2,0))","v":0},{"$f":"IF(ISERROR(VLOOKUP(C210,'Capacidad Financiera'!$B$12:$X$62720,3,0)),\"\",VLOOKUP(C210,'Capacidad Financiera'!$B$12:$X$62720,3,0))","v":0},null,{"$f":"IF(OR(D210=\"\",E210=\"\",F210=\"\"),\"\",IF(C210<>\"\",IF(ISERROR(VLOOKUP($A$10,POA!$A$2:$D$25,2,0)),\"\",VLOOKUP($A$10,POA!$A$2:$D$25,2,0)),\"\"))","v":""},"",{"$f":"IF(OR(D210=\"\",E210=\"\",F210=\"\"),\"\",IF(AND(H210>0,H210<=Experiencia1),Puntajes!$D$4,IF(AND(H210>Experiencia1,H210<=Experiencia2),Puntajes!$D$5,IF(AND(H210>Experiencia2,H210<=Experiencia3),Puntajes!$D$6,IF(H210>Experiencia3,Puntajes!$D$7,0)))))","v":""}]
[null,null,{"$f":"+'Capacidad Financiera'!B214","v":""},{"$f":"IF(ISERROR(VLOOKUP(C211,'Capacidad Financiera'!$B$12:$X$62720,2,0)),\"\",VLOOKUP(C211,'Capacidad Financiera'!$B$12:$X$3580,2,0))","v":0},{"$f":"IF(ISERROR(VLOOKUP(C211,'Capacidad Financiera'!$B$12:$X$62720,3,0)),\"\",VLOOKUP(C211,'Capacidad Financiera'!$B$12:$X$62720,3,0))","v":0},null,{"$f":"IF(OR(D211=\"\",E211=\"\",F211=\"\"),\"\",IF(C211<>\"\",IF(ISERROR(VLOOKUP($A$10,POA!$A$2:$D$25,2,0)),\"\",VLOOKUP($A$10,POA!$A$2:$D$25,2,0)),\"\"))","v":""},"",{"$f":"IF(OR(D211=\"\",E211=\"\",F211=\"\"),\"\",IF(AND(H211>0,H211<=Experiencia1),Puntajes!$D$4,IF(AND(H211>Experiencia1,H211<=Experiencia2),Puntajes!$D$5,IF(AND(H211>Experiencia2,H211<=Experiencia3),Puntajes!$D$6,IF(H211>Experiencia3,Puntajes!$D$7,0)))))","v":""}]
[null,null,{"$f":"+'Capacidad Financiera'!B215","v":""},{"$f":"IF(ISERROR(VLOOKUP(C212,'Capacidad Financiera'!$B$12:$X$62720,2,0)),\"\",VLOOKUP(C212,'Capacidad Financiera'!$B$12:$X$3580,2,0))","v":0},{"$f":"IF(ISERROR(VLOOKUP(C212,'Capacidad Financiera'!$B$12:$X$62720,3,0)),\"\",VLOOKUP(C212,'Capacidad Financiera'!$B$12:$X$62720,3,0))","v":0},null,{"$f":"IF(OR(D212=\"\",E212=\"\",F212=\"\"),\"\",IF(C212<>\"\",IF(ISERROR(VLOOKUP($A$10,POA!$A$2:$D$25,2,0)),\"\",VLOOKUP($A$10,POA!$A$2:$D$25,2,0)),\"\"))","v":""},"",{"$f":"IF(OR(D212=\"\",E212=\"\",F212=\"\"),\"\",IF(AND(H212>0,H212<=Experiencia1),Puntajes!$D$4,IF(AND(H212>Experiencia1,H212<=Experiencia2),Puntajes!$D$5,IF(AND(H212>Experiencia2,H212<=Experiencia3),Puntajes!$D$6,IF(H212>Experiencia3,Puntajes!$D$7,0)))))","v":""}]
[null,null,{"$f":"+'Capacidad Financiera'!B216","v":""},{"$f":"IF(ISERROR(VLOOKUP(C213,'Capacidad Financiera'!$B$12:$X$62720,2,0)),\"\",VLOOKUP(C213,'Capacidad Financiera'!$B$12:$X$3580,2,0))","v":0},{"$f":"IF(ISERROR(VLOOKUP(C213,'Capacidad Financiera'!$B$12:$X$62720,3,0)),\"\",VLOOKUP(C213,'Capacidad Financiera'!$B$12:$X$62720,3,0))","v":0},null,{"$f":"IF(OR(D213=\"\",E213=\"\",F213=\"\"),\"\",IF(C213<>\"\",IF(ISERROR(VLOOKUP($A$10,POA!$A$2:$D$25,2,0)),\"\",VLOOKUP($A$10,POA!$A$2:$D$25,2,0)),\"\"))","v":""},"",{"$f":"IF(OR(D213=\"\",E213=\"\",F213=\"\"),\"\",IF(AND(H213>0,H213<=Experiencia1),Puntajes!$D$4,IF(AND(H213>Experiencia1,H213<=Experiencia2),Puntajes!$D$5,IF(AND(H213>Experiencia2,H213<=Experiencia3),Puntajes!$D$6,IF(H213>Experiencia3,Puntajes!$D$7,0)))))","v":""}]
[null,null,{"$f":"+'Capacidad Financiera'!B217","v":""},{"$f":"IF(ISERROR(VLOOKUP(C214,'Capacidad Financiera'!$B$12:$X$62720,2,0)),\"\",VLOOKUP(C214,'Capacidad Financiera'!$B$12:$X$3580,2,0))","v":0},{"$f":"IF(ISERROR(VLOOKUP(C214,'Capacidad Financiera'!$B$12:$X$62720,3,0)),\"\",VLOOKUP(C214,'Capacidad Financiera'!$B$12:$X$62720,3,0))","v":0},null,{"$f":"IF(OR(D214=\"\",E214=\"\",F214=\"\"),\"\",IF(C214<>\"\",IF(ISERROR(VLOOKUP($A$10,POA!$A$2:$D$25,2,0)),\"\",VLOOKUP($A$10,POA!$A$2:$D$25,2,0)),\"\"))","v":""},"",{"$f":"IF(OR(D214=\"\",E214=\"\",F214=\"\"),\"\",IF(AND(H214>0,H214<=Experiencia1),Puntajes!$D$4,IF(AND(H214>Experiencia1,H214<=Experiencia2),Puntajes!$D$5,IF(AND(H214>Experiencia2,H214<=Experiencia3),Puntajes!$D$6,IF(H214>Experiencia3,Puntajes!$D$7,0)))))","v":""}]
[null,null,{"$f":"+'Capacidad Financiera'!B218","v":""},{"$f":"IF(ISERROR(VLOOKUP(C215,'Capacidad Financiera'!$B$12:$X$62720,2,0)),\"\",VLOOKUP(C215,'Capacidad Financiera'!$B$12:$X$3580,2,0))","v":0},{"$f":"IF(ISERROR(VLOOKUP(C215,'Capacidad Financiera'!$B$12:$X$62720,3,0)),\"\",VLOOKUP(C215,'Capacidad Financiera'!$B$12:$X$62720,3,0))","v":0},null,{"$f":"IF(OR(D215=\"\",E215=\"\",F215=\"\"),\"\",IF(C215<>\"\",IF(ISERROR(VLOOKUP($A$10,POA!$A$2:$D$25,2,0)),\"\",VLOOKUP($A$10,POA!$A$2:$D$25,2,0)),\"\"))","v":""},"",{"$f":"IF(OR(D215=\"\",E215=\"\",F215=\"\"),\"\",IF(AND(H215>0,H215<=Experiencia1),Puntajes!$D$4,IF(AND(H215>Experiencia1,H215<=Experiencia2),Puntajes!$D$5,IF(AND(H215>Experiencia2,H215<=Experiencia3),Puntajes!$D$6,IF(H215>Experiencia3,Puntajes!$D$7,0)))))","v":""}]
[null,null,{"$f":"+'Capacidad Financiera'!B219","v":""},{"$f":"IF(ISERROR(VLOOKUP(C216,'Capacidad Financiera'!$B$12:$X$62720,2,0)),\"\",VLOOKUP(C216,'Capacidad Financiera'!$B$12:$X$3580,2,0))","v":0},{"$f":"IF(ISERROR(VLOOKUP(C216,'Capacidad Financiera'!$B$12:$X$62720,3,0)),\"\",VLOOKUP(C216,'Capacidad Financiera'!$B$12:$X$62720,3,0))","v":0},null,{"$f":"IF(OR(D216=\"\",E216=\"\",F216=\"\"),\"\",IF(C216<>\"\",IF(ISERROR(VLOOKUP($A$10,POA!$A$2:$D$25,2,0)),\"\",VLOOKUP($A$10,POA!$A$2:$D$25,2,0)),\"\"))","v":""},"",{"$f":"IF(OR(D216=\"\",E216=\"\",F216=\"\"),\"\",IF(AND(H216>0,H216<=Experiencia1),Puntajes!$D$4,IF(AND(H216>Experiencia1,H216<=Experiencia2),Puntajes!$D$5,IF(AND(H216>Experiencia2,H216<=Experiencia3),Puntajes!$D$6,IF(H216>Experiencia3,Puntajes!$D$7,0)))))","v":""}]
[null,null,{"$f":"+'Capacidad Financiera'!B220","v":""},{"$f":"IF(ISERROR(VLOOKUP(C217,'Capacidad Financiera'!$B$12:$X$62720,2,0)),\"\",VLOOKUP(C217,'Capacidad Financiera'!$B$12:$X$3580,2,0))","v":0},{"$f":"IF(ISERROR(VLOOKUP(C217,'Capacidad Financiera'!$B$12:$X$62720,3,0)),\"\",VLOOKUP(C217,'Capacidad Financiera'!$B$12:$X$62720,3,0))","v":0},null,{"$f":"IF(OR(D217=\"\",E217=\"\",F217=\"\"),\"\",IF(C217<>\"\",IF(ISERROR(VLOOKUP($A$10,POA!$A$2:$D$25,2,0)),\"\",VLOOKUP($A$10,POA!$A$2:$D$25,2,0)),\"\"))","v":""},"",{"$f":"IF(OR(D217=\"\",E217=\"\",F217=\"\"),\"\",IF(AND(H217>0,H217<=Experiencia1),Puntajes!$D$4,IF(AND(H217>Experiencia1,H217<=Experiencia2),Puntajes!$D$5,IF(AND(H217>Experiencia2,H217<=Experiencia3),Puntajes!$D$6,IF(H217>Experiencia3,Puntajes!$D$7,0)))))","v":""}]
[null,null,20,{"$f":"IF(ISERROR(VLOOKUP(C218,'Capacidad Financiera'!$B$12:$X$62720,2,0)),\"\",VLOOKUP(C218,'Capacidad Financiera'!$B$12:$X$3580,2,0))","v":"CONSORCIO VIAL LA CALERA"},{"$f":"IF(ISERROR(VLOOKUP(C218,'Capacidad Financiera'!$B$12:$X$62720,3,0)),\"\",VLOOKUP(C218,'Capacidad Financiera'!$B$12:$X$62720,3,0))","v":1},null,{"$f":"IF(OR(D218=\"\",E218=\"\",F218=\"\"),\"\",IF(C219=\"\",IF(C218<>\"\",IF(ISERROR(VLOOKUP($A$10,POA!$A$2:$D$25,2,0)),\"\",VLOOKUP($A$10,POA!$A$2:$D$25,2,0)),\"\"),\"\"))","v":""},{"$f":"IF(OR(D218=\"\",E218=\"\",F218=\"\"),\"\",IF(C219=\"\",IF(C218<>\"\",F218/G218,\"\"),\"\"))","v":""},{"$f":"IF(C219=\"\",IF(F218=\"\",\"\",IF(AND(H218>0,H218<=Experiencia1),Puntajes!$D$4,IF(AND(H218>Experiencia1,H218<=Experiencia2),Puntajes!$D$5,IF(AND(H218>Experiencia2,H218<=Experiencia3),Puntajes!$D$6,IF(H218>Experiencia3,Puntajes!$D$7,0))))),\"\")","v":""}]
[null,null,{"$f":"+'Capacidad Financiera'!B222","v":20.100000000000001},{"$f":"IF(ISERROR(VLOOKUP(C219,'Capacidad Financiera'!$B$12:$X$62720,2,0)),\"\",VLOOKUP(C219,'Capacidad Financiera'!$B$12:$X$3580,2,0))","v":"ARMANDO VALENCIA VALENCIA"},{"$f":"IF(ISERROR(VLOOKUP(C219,'Capacidad Financiera'!$B$12:$X$62720,3,0)),\"\",VLOOKUP(C219,'Capacidad Financiera'!$B$12:$X$62720,3,0))","v":0.6},42448606076.800003,{"$f":"IF(OR(D219=\"\",E219=\"\",F219=\"\"),\"\",IF(C219<>\"\",IF(ISERROR(VLOOKUP($A$10,POA!$A$2:$D$25,2,0)),\"\",VLOOKUP($A$10,POA!$A$2:$D$25,2,0)),\"\"))","v":4167150295},{"$f":"IF(OR(D219=\"\",E219=\"\",F219=\"\"),\"\",IF(C219<>\"\",F219/(G219*E219),\"\"))","v":16.977471841981323},{"$f":"IF(OR(D219=\"\",E219=\"\",F219=\"\"),\"\",IF(AND(H219>0,H219<=Experiencia1),Puntajes!$D$4,IF(AND(H219>Experiencia1,H219<=Experiencia2),Puntajes!$D$5,IF(AND(H219>Experiencia2,H219<=Experiencia3),Puntajes!$D$6,IF(H219>Experiencia3,Puntajes!$D$7,0)))))","v":120}]
["rup proc. Ad. Firm",null,{"$f":"+'Capacidad Financiera'!B223","v":20.200000000000003},{"$f":"IF(ISERROR(VLOOKUP(C220,'Capacidad Financiera'!$B$12:$X$62720,2,0)),\"\",VLOOKUP(C220,'Capacidad Financiera'!$B$12:$X$3580,2,0))","v":"OLGA VELEZ MESA"},{"$f":"IF(ISERROR(VLOOKUP(C220,'Capacidad Financiera'!$B$12:$X$62720,3,0)),\"\",VLOOKUP(C220,'Capacidad Financiera'!$B$12:$X$62720,3,0))","v":0.4},2401763980,{"$f":"IF(OR(D220=\"\",E220=\"\",F220=\"\"),\"\",IF(C220<>\"\",IF(ISERROR(VLOOKUP($A$10,POA!$A$2:$D$25,2,0)),\"\",VLOOKUP($A$10,POA!$A$2:$D$25,2,0)),\"\"))","v":4167150295},{"$f":"IF(OR(D220=\"\",E220=\"\",F220=\"\"),\"\",IF(C220<>\"\",F220/(G220*E220),\"\"))","v":1.4408911426123641},{"$f":"IF(OR(D220=\"\",E220=\"\",F220=\"\"),\"\",IF(AND(H220>0,H220<=Experiencia1),Puntajes!$D$4,IF(AND(H220>Experiencia1,H220<=Experiencia2),Puntajes!$D$5,IF(AND(H220>Experiencia2,H220<=Experiencia3),Puntajes!$D$6,IF(H220>Experiencia3,Puntajes!$D$7,0)))))","v":60}]
[null,null,{"$f":"+'Capacidad Financiera'!B224","v":""},{"$f":"IF(ISERROR(VLOOKUP(C221,'Capacidad Financiera'!$B$12:$X$62720,2,0)),\"\",VLOOKUP(C221,'Capacidad Financiera'!$B$12:$X$3580,2,0))","v":0},{"$f":"IF(ISERROR(VLOOKUP(C221,'Capacidad Financiera'!$B$12:$X$62720,3,0)),\"\",VLOOKUP(C221,'Capacidad Financiera'!$B$12:$X$62720,3,0))","v":0},null,{"$f":"IF(OR(D221=\"\",E221=\"\",F221=\"\"),\"\",IF(C221<>\"\",IF(ISERROR(VLOOKUP($A$10,POA!$A$2:$D$25,2,0)),\"\",VLOOKUP($A$10,POA!$A$2:$D$25,2,0)),\"\"))","v":""},"",{"$f":"IF(OR(D221=\"\",E221=\"\",F221=\"\"),\"\",IF(AND(H221>0,H221<=Experiencia1),Puntajes!$D$4,IF(AND(H221>Experiencia1,H221<=Experiencia2),Puntajes!$D$5,IF(AND(H221>Experiencia2,H221<=Experiencia3),Puntajes!$D$6,IF(H221>Experiencia3,Puntajes!$D$7,0)))))","v":""}]
[null,null,{"$f":"+'Capacidad Financiera'!B225","v":""},{"$f":"IF(ISERROR(VLOOKUP(C222,'Capacidad Financiera'!$B$12:$X$62720,2,0)),\"\",VLOOKUP(C222,'Capacidad Financiera'!$B$12:$X$3580,2,0))","v":0},{"$f":"IF(ISERROR(VLOOKUP(C222,'Capacidad Financiera'!$B$12:$X$62720,3,0)),\"\",VLOOKUP(C222,'Capacidad Financiera'!$B$12:$X$62720,3,0))","v":0},null,{"$f":"IF(OR(D222=\"\",E222=\"\",F222=\"\"),\"\",IF(C222<>\"\",IF(ISERROR(VLOOKUP($A$10,POA!$A$2:$D$25,2,0)),\"\",VLOOKUP($A$10,POA!$A$2:$D$25,2,0)),\"\"))","v":""},"",{"$f":"IF(OR(D222=\"\",E222=\"\",F222=\"\"),\"\",IF(AND(H222>0,H222<=Experiencia1),Puntajes!$D$4,IF(AND(H222>Experiencia1,H222<=Experiencia2),Puntajes!$D$5,IF(AND(H222>Experiencia2,H222<=Experiencia3),Puntajes!$D$6,IF(H222>Experiencia3,Puntajes!$D$7,0)))))","v":""}]
[null,null,{"$f":"+'Capacidad Financiera'!B226","v":""},{"$f":"IF(ISERROR(VLOOKUP(C223,'Capacidad Financiera'!$B$12:$X$62720,2,0)),\"\",VLOOKUP(C223,'Capacidad Financiera'!$B$12:$X$3580,2,0))","v":0},{"$f":"IF(ISERROR(VLOOKUP(C223,'Capacidad Financiera'!$B$12:$X$62720,3,0)),\"\",VLOOKUP(C223,'Capacidad Financiera'!$B$12:$X$62720,3,0))","v":0},null,{"$f":"IF(OR(D223=\"\",E223=\"\",F223=\"\"),\"\",IF(C223<>\"\",IF(ISERROR(VLOOKUP($A$10,POA!$A$2:$D$25,2,0)),\"\",VLOOKUP($A$10,POA!$A$2:$D$25,2,0)),\"\"))","v":""},"",{"$f":"IF(OR(D223=\"\",E223=\"\",F223=\"\"),\"\",IF(AND(H223>0,H223<=Experiencia1),Puntajes!$D$4,IF(AND(H223>Experiencia1,H223<=Experiencia2),Puntajes!$D$5,IF(AND(H223>Experiencia2,H223<=Experiencia3),Puntajes!$D$6,IF(H223>Experiencia3,Puntajes!$D$7,0)))))","v":""}]
[null,null,{"$f":"+'Capacidad Financiera'!B227","v":""},{"$f":"IF(ISERROR(VLOOKUP(C224,'Capacidad Financiera'!$B$12:$X$62720,2,0)),\"\",VLOOKUP(C224,'Capacidad Financiera'!$B$12:$X$3580,2,0))","v":0},{"$f":"IF(ISERROR(VLOOKUP(C224,'Capacidad Financiera'!$B$12:$X$62720,3,0)),\"\",VLOOKUP(C224,'Capacidad Financiera'!$B$12:$X$62720,3,0))","v":0},null,{"$f":"IF(OR(D224=\"\",E224=\"\",F224=\"\"),\"\",IF(C224<>\"\",IF(ISERROR(VLOOKUP($A$10,POA!$A$2:$D$25,2,0)),\"\",VLOOKUP($A$10,POA!$A$2:$D$25,2,0)),\"\"))","v":""},"",{"$f":"IF(OR(D224=\"\",E224=\"\",F224=\"\"),\"\",IF(AND(H224>0,H224<=Experiencia1),Puntajes!$D$4,IF(AND(H224>Experiencia1,H224<=Experiencia2),Puntajes!$D$5,IF(AND(H224>Experiencia2,H224<=Experiencia3),Puntajes!$D$6,IF(H224>Experiencia3,Puntajes!$D$7,0)))))","v":""}]
[null,null,{"$f":"+'Capacidad Financiera'!B228","v":""},{"$f":"IF(ISERROR(VLOOKUP(C225,'Capacidad Financiera'!$B$12:$X$62720,2,0)),\"\",VLOOKUP(C225,'Capacidad Financiera'!$B$12:$X$3580,2,0))","v":0},{"$f":"IF(ISERROR(VLOOKUP(C225,'Capacidad Financiera'!$B$12:$X$62720,3,0)),\"\",VLOOKUP(C225,'Capacidad Financiera'!$B$12:$X$62720,3,0))","v":0},null,{"$f":"IF(OR(D225=\"\",E225=\"\",F225=\"\"),\"\",IF(C225<>\"\",IF(ISERROR(VLOOKUP($A$10,POA!$A$2:$D$25,2,0)),\"\",VLOOKUP($A$10,POA!$A$2:$D$25,2,0)),\"\"))","v":""},"",{"$f":"IF(OR(D225=\"\",E225=\"\",F225=\"\"),\"\",IF(AND(H225>0,H225<=Experiencia1),Puntajes!$D$4,IF(AND(H225>Experiencia1,H225<=Experiencia2),Puntajes!$D$5,IF(AND(H225>Experiencia2,H225<=Experiencia3),Puntajes!$D$6,IF(H225>Experiencia3,Puntajes!$D$7,0)))))","v":""}]
[null,null,{"$f":"+'Capacidad Financiera'!B229","v":""},{"$f":"IF(ISERROR(VLOOKUP(C226,'Capacidad Financiera'!$B$12:$X$62720,2,0)),\"\",VLOOKUP(C226,'Capacidad Financiera'!$B$12:$X$3580,2,0))","v":0},{"$f":"IF(ISERROR(VLOOKUP(C226,'Capacidad Financiera'!$B$12:$X$62720,3,0)),\"\",VLOOKUP(C226,'Capacidad Financiera'!$B$12:$X$62720,3,0))","v":0},null,{"$f":"IF(OR(D226=\"\",E226=\"\",F226=\"\"),\"\",IF(C226<>\"\",IF(ISERROR(VLOOKUP($A$10,POA!$A$2:$D$25,2,0)),\"\",VLOOKUP($A$10,POA!$A$2:$D$25,2,0)),\"\"))","v":""},"",{"$f":"IF(OR(D226=\"\",E226=\"\",F226=\"\"),\"\",IF(AND(H226>0,H226<=Experiencia1),Puntajes!$D$4,IF(AND(H226>Experiencia1,H226<=Experiencia2),Puntajes!$D$5,IF(AND(H226>Experiencia2,H226<=Experiencia3),Puntajes!$D$6,IF(H226>Experiencia3,Puntajes!$D$7,0)))))","v":""}]
[null,null,{"$f":"+'Capacidad Financiera'!B230","v":""},{"$f":"IF(ISERROR(VLOOKUP(C227,'Capacidad Financiera'!$B$12:$X$62720,2,0)),\"\",VLOOKUP(C227,'Capacidad Financiera'!$B$12:$X$3580,2,0))","v":0},{"$f":"IF(ISERROR(VLOOKUP(C227,'Capacidad Financiera'!$B$12:$X$62720,3,0)),\"\",VLOOKUP(C227,'Capacidad Financiera'!$B$12:$X$62720,3,0))","v":0},null,{"$f":"IF(OR(D227=\"\",E227=\"\",F227=\"\"),\"\",IF(C227<>\"\",IF(ISERROR(VLOOKUP($A$10,POA!$A$2:$D$25,2,0)),\"\",VLOOKUP($A$10,POA!$A$2:$D$25,2,0)),\"\"))","v":""},"",{"$f":"IF(OR(D227=\"\",E227=\"\",F227=\"\"),\"\",IF(AND(H227>0,H227<=Experiencia1),Puntajes!$D$4,IF(AND(H227>Experiencia1,H227<=Experiencia2),Puntajes!$D$5,IF(AND(H227>Experiencia2,H227<=Experiencia3),Puntajes!$D$6,IF(H227>Experiencia3,Puntajes!$D$7,0)))))","v":""}]
[null,null,{"$f":"+'Capacidad Financiera'!B231","v":""},{"$f":"IF(ISERROR(VLOOKUP(C228,'Capacidad Financiera'!$B$12:$X$62720,2,0)),\"\",VLOOKUP(C228,'Capacidad Financiera'!$B$12:$X$3580,2,0))","v":0},{"$f":"IF(ISERROR(VLOOKUP(C228,'Capacidad Financiera'!$B$12:$X$62720,3,0)),\"\",VLOOKUP(C228,'Capacidad Financiera'!$B$12:$X$62720,3,0))","v":0},null,{"$f":"IF(OR(D228=\"\",E228=\"\",F228=\"\"),\"\",IF(C228<>\"\",IF(ISERROR(VLOOKUP($A$10,POA!$A$2:$D$25,2,0)),\"\",VLOOKUP($A$10,POA!$A$2:$D$25,2,0)),\"\"))","v":""},"",{"$f":"IF(OR(D228=\"\",E228=\"\",F228=\"\"),\"\",IF(AND(H228>0,H228<=Experiencia1),Puntajes!$D$4,IF(AND(H228>Experiencia1,H228<=Experiencia2),Puntajes!$D$5,IF(AND(H228>Experiencia2,H228<=Experiencia3),Puntajes!$D$6,IF(H228>Experiencia3,Puntajes!$D$7,0)))))","v":""}]
[null,null,21,{"$f":"IF(ISERROR(VLOOKUP(C229,'Capacidad Financiera'!$B$12:$X$62720,2,0)),\"\",VLOOKUP(C229,'Capacidad Financiera'!$B$12:$X$3580,2,0))","v":"CONSORCIO VIAL COLOMBIA 2014"},{"$f":"IF(ISERROR(VLOOKUP(C229,'Capacidad Financiera'!$B$12:$X$62720,3,0)),\"\",VLOOKUP(C229,'Capacidad Financiera'!$B$12:$X$62720,3,0))","v":1},null,{"$f":"IF(OR(D229=\"\",E229=\"\",F229=\"\"),\"\",IF(C230=\"\",IF(C229<>\"\",IF(ISERROR(VLOOKUP($A$10,POA!$A$2:$D$25,2,0)),\"\",VLOOKUP($A$10,POA!$A$2:$D$25,2,0)),\"\"),\"\"))","v":""},{"$f":"IF(OR(D229=\"\",E229=\"\",F229=\"\"),\"\",IF(C230=\"\",IF(C229<>\"\",F229/G229,\"\"),\"\"))","v":""},{"$f":"IF(C230=\"\",IF(F229=\"\",\"\",IF(AND(H229>0,H229<=Experiencia1),Puntajes!$D$4,IF(AND(H229>Experiencia1,H229<=Experiencia2),Puntajes!$D$5,IF(AND(H229>Experiencia2,H229<=Experiencia3),Puntajes!$D$6,IF(H229>Experiencia3,Puntajes!$D$7,0))))),\"\")","v":""}]
[null,null,{"$f":"+'Capacidad Financiera'!B233","v":21.1},{"$f":"IF(ISERROR(VLOOKUP(C230,'Capacidad Financiera'!$B$12:$X$62720,2,0)),\"\",VLOOKUP(C230,'Capacidad Financiera'!$B$12:$X$3580,2,0))","v":"SARIA S.A.S."},{"$f":"IF(ISERROR(VLOOKUP(C230,'Capacidad Financiera'!$B$12:$X$62720,3,0)),\"\",VLOOKUP(C230,'Capacidad Financiera'!$B$12:$X$62720,3,0))","v":0.5},25168733128,{"$f":"IF(OR(D230=\"\",E230=\"\",F230=\"\"),\"\",IF(C230<>\"\",IF(ISERROR(VLOOKUP($A$10,POA!$A$2:$D$25,2,0)),\"\",VLOOKUP($A$10,POA!$A$2:$D$25,2,0)),\"\"))","v":4167150295},{"$f":"IF(OR(D230=\"\",E230=\"\",F230=\"\"),\"\",IF(C230<>\"\",F230/(G230*E230),\"\"))","v":12.079589813786642},{"$f":"IF(OR(D230=\"\",E230=\"\",F230=\"\"),\"\",IF(AND(H230>0,H230<=Experiencia1),Puntajes!$D$4,IF(AND(H230>Experiencia1,H230<=Experiencia2),Puntajes!$D$5,IF(AND(H230>Experiencia2,H230<=Experiencia3),Puntajes!$D$6,IF(H230>Experiencia3,Puntajes!$D$7,0)))))","v":120}]
[null,null,{"$f":"+'Capacidad Financiera'!B234","v":21.200000000000003},{"$f":"IF(ISERROR(VLOOKUP(C231,'Capacidad Financiera'!$B$12:$X$62720,2,0)),\"\",VLOOKUP(C231,'Capacidad Financiera'!$B$12:$X$3580,2,0))","v":"TRAINCO S.A."},{"$f":"IF(ISERROR(VLOOKUP(C231,'Capacidad Financiera'!$B$12:$X$62720,3,0)),\"\",VLOOKUP(C231,'Capacidad Financiera'!$B$12:$X$62720,3,0))","v":0.5},169341484309.54001,{"$f":"IF(OR(D231=\"\",E231=\"\",F231=\"\"),\"\",IF(C231<>\"\",IF(ISERROR(VLOOKUP($A$10,POA!$A$2:$D$25,2,0)),\"\",VLOOKUP($A$10,POA!$A$2:$D$25,2,0)),\"\"))","v":4167150295},{"$f":"IF(OR(D231=\"\",E231=\"\",F231=\"\"),\"\",IF(C231<>\"\",F231/(G231*E231),\"\"))","v":81.274478874796628},{"$f":"IF(OR(D231=\"\",E231=\"\",F231=\"\"),\"\",IF(AND(H231>0,H231<=Experiencia1),Puntajes!$D$4,IF(AND(H231>Experiencia1,H231<=Experiencia2),Puntajes!$D$5,IF(AND(H231>Experiencia2,H231<=Experiencia3),Puntajes!$D$6,IF(H231>Experiencia3,Puntajes!$D$7,0)))))","v":120}]
[null,null,{"$f":"+'Capacidad Financiera'!B235","v":""},{"$f":"IF(ISERROR(VLOOKUP(C232,'Capacidad Financiera'!$B$12:$X$62720,2,0)),\"\",VLOOKUP(C232,'Capacidad Financiera'!$B$12:$X$3580,2,0))","v":0},{"$f":"IF(ISERROR(VLOOKUP(C232,'Capacidad Financiera'!$B$12:$X$62720,3,0)),\"\",VLOOKUP(C232,'Capacidad Financiera'!$B$12:$X$62720,3,0))","v":0},null,{"$f":"IF(OR(D232=\"\",E232=\"\",F232=\"\"),\"\",IF(C232<>\"\",IF(ISERROR(VLOOKUP($A$10,POA!$A$2:$D$25,2,0)),\"\",VLOOKUP($A$10,POA!$A$2:$D$25,2,0)),\"\"))","v":""},"",{"$f":"IF(OR(D232=\"\",E232=\"\",F232=\"\"),\"\",IF(AND(H232>0,H232<=Experiencia1),Puntajes!$D$4,IF(AND(H232>Experiencia1,H232<=Experiencia2),Puntajes!$D$5,IF(AND(H232>Experiencia2,H232<=Experiencia3),Puntajes!$D$6,IF(H232>Experiencia3,Puntajes!$D$7,0)))))","v":""}]
[null,null,{"$f":"+'Capacidad Financiera'!B236","v":""},{"$f":"IF(ISERROR(VLOOKUP(C233,'Capacidad Financiera'!$B$12:$X$62720,2,0)),\"\",VLOOKUP(C233,'Capacidad Financiera'!$B$12:$X$3580,2,0))","v":0},{"$f":"IF(ISERROR(VLOOKUP(C233,'Capacidad Financiera'!$B$12:$X$62720,3,0)),\"\",VLOOKUP(C233,'Capacidad Financiera'!$B$12:$X$62720,3,0))","v":0},null,{"$f":"IF(OR(D233=\"\",E233=\"\",F233=\"\"),\"\",IF(C233<>\"\",IF(ISERROR(VLOOKUP($A$10,POA!$A$2:$D$25,2,0)),\"\",VLOOKUP($A$10,POA!$A$2:$D$25,2,0)),\"\"))","v":""},"",{"$f":"IF(OR(D233=\"\",E233=\"\",F233=\"\"),\"\",IF(AND(H233>0,H233<=Experiencia1),Puntajes!$D$4,IF(AND(H233>Experiencia1,H233<=Experiencia2),Puntajes!$D$5,IF(AND(H233>Experiencia2,H233<=Experiencia3),Puntajes!$D$6,IF(H233>Experiencia3,Puntajes!$D$7,0)))))","v":""}]
[null,null,{"$f":"+'Capacidad Financiera'!B237","v":""},{"$f":"IF(ISERROR(VLOOKUP(C234,'Capacidad Financiera'!$B$12:$X$62720,2,0)),\"\",VLOOKUP(C234,'Capacidad Financiera'!$B$12:$X$3580,2,0))","v":0},{"$f":"IF(ISERROR(VLOOKUP(C234,'Capacidad Financiera'!$B$12:$X$62720,3,0)),\"\",VLOOKUP(C234,'Capacidad Financiera'!$B$12:$X$62720,3,0))","v":0},null,{"$f":"IF(OR(D234=\"\",E234=\"\",F234=\"\"),\"\",IF(C234<>\"\",IF(ISERROR(VLOOKUP($A$10,POA!$A$2:$D$25,2,0)),\"\",VLOOKUP($A$10,POA!$A$2:$D$25,2,0)),\"\"))","v":""},"",{"$f":"IF(OR(D234=\"\",E234=\"\",F234=\"\"),\"\",IF(AND(H234>0,H234<=Experiencia1),Puntajes!$D$4,IF(AND(H234>Experiencia1,H234<=Experiencia2),Puntajes!$D$5,IF(AND(H234>Experiencia2,H234<=Experiencia3),Puntajes!$D$6,IF(H234>Experiencia3,Puntajes!$D$7,0)))))","v":""}]
[null,null,{"$f":"+'Capacidad Financiera'!B238","v":""},{"$f":"IF(ISERROR(VLOOKUP(C235,'Capacidad Financiera'!$B$12:$X$62720,2,0)),\"\",VLOOKUP(C235,'Capacidad Financiera'!$B$12:$X$3580,2,0))","v":0},{"$f":"IF(ISERROR(VLOOKUP(C235,'Capacidad Financiera'!$B$12:$X$62720,3,0)),\"\",VLOOKUP(C235,'Capacidad Financiera'!$B$12:$X$62720,3,0))","v":0},null,{"$f":"IF(OR(D235=\"\",E235=\"\",F235=\"\"),\"\",IF(C235<>\"\",IF(ISERROR(VLOOKUP($A$10,POA!$A$2:$D$25,2,0)),\"\",VLOOKUP($A$10,POA!$A$2:$D$25,2,0)),\"\"))","v":""},"",{"$f":"IF(OR(D235=\"\",E235=\"\",F235=\"\"),\"\",IF(AND(H235>0,H235<=Experiencia1),Puntajes!$D$4,IF(AND(H235>Experiencia1,H235<=Experiencia2),Puntajes!$D$5,IF(AND(H235>Experiencia2,H235<=Experiencia3),Puntajes!$D$6,IF(H235>Experiencia3,Puntajes!$D$7,0)))))","v":""}]
[null,null,{"$f":"+'Capacidad Financiera'!B239","v":""},{"$f":"IF(ISERROR(VLOOKUP(C236,'Capacidad Financiera'!$B$12:$X$62720,2,0)),\"\",VLOOKUP(C236,'Capacidad Financiera'!$B$12:$X$3580,2,0))","v":0},{"$f":"IF(ISERROR(VLOOKUP(C236,'Capacidad Financiera'!$B$12:$X$62720,3,0)),\"\",VLOOKUP(C236,'Capacidad Financiera'!$B$12:$X$62720,3,0))","v":0},null,{"$f":"IF(OR(D236=\"\",E236=\"\",F236=\"\"),\"\",IF(C236<>\"\",IF(ISERROR(VLOOKUP($A$10,POA!$A$2:$D$25,2,0)),\"\",VLOOKUP($A$10,POA!$A$2:$D$25,2,0)),\"\"))","v":""},"",{"$f":"IF(OR(D236=\"\",E236=\"\",F236=\"\"),\"\",IF(AND(H236>0,H236<=Experiencia1),Puntajes!$D$4,IF(AND(H236>Experiencia1,H236<=Experiencia2),Puntajes!$D$5,IF(AND(H236>Experiencia2,H236<=Experiencia3),Puntajes!$D$6,IF(H236>Experiencia3,Puntajes!$D$7,0)))))","v":""}]
[null,null,{"$f":"+'Capacidad Financiera'!B240","v":""},{"$f":"IF(ISERROR(VLOOKUP(C237,'Capacidad Financiera'!$B$12:$X$62720,2,0)),\"\",VLOOKUP(C237,'Capacidad Financiera'!$B$12:$X$3580,2,0))","v":0},{"$f":"IF(ISERROR(VLOOKUP(C237,'Capacidad Financiera'!$B$12:$X$62720,3,0)),\"\",VLOOKUP(C237,'Capacidad Financiera'!$B$12:$X$62720,3,0))","v":0},null,{"$f":"IF(OR(D237=\"\",E237=\"\",F237=\"\"),\"\",IF(C237<>\"\",IF(ISERROR(VLOOKUP($A$10,POA!$A$2:$D$25,2,0)),\"\",VLOOKUP($A$10,POA!$A$2:$D$25,2,0)),\"\"))","v":""},"",{"$f":"IF(OR(D237=\"\",E237=\"\",F237=\"\"),\"\",IF(AND(H237>0,H237<=Experiencia1),Puntajes!$D$4,IF(AND(H237>Experiencia1,H237<=Experiencia2),Puntajes!$D$5,IF(AND(H237>Experiencia2,H237<=Experiencia3),Puntajes!$D$6,IF(H237>Experiencia3,Puntajes!$D$7,0)))))","v":""}]
[null,null,{"$f":"+'Capacidad Financiera'!B241","v":""},{"$f":"IF(ISERROR(VLOOKUP(C238,'Capacidad Financiera'!$B$12:$X$62720,2,0)),\"\",VLOOKUP(C238,'Capacidad Financiera'!$B$12:$X$3580,2,0))","v":0},{"$f":"IF(ISERROR(VLOOKUP(C238,'Capacidad Financiera'!$B$12:$X$62720,3,0)),\"\",VLOOKUP(C238,'Capacidad Financiera'!$B$12:$X$62720,3,0))","v":0},null,{"$f":"IF(OR(D238=\"\",E238=\"\",F238=\"\"),\"\",IF(C238<>\"\",IF(ISERROR(VLOOKUP($A$10,POA!$A$2:$D$25,2,0)),\"\",VLOOKUP($A$10,POA!$A$2:$D$25,2,0)),\"\"))","v":""},"",{"$f":"IF(OR(D238=\"\",E238=\"\",F238=\"\"),\"\",IF(AND(H238>0,H238<=Experiencia1),Puntajes!$D$4,IF(AND(H238>Experiencia1,H238<=Experiencia2),Puntajes!$D$5,IF(AND(H238>Experiencia2,H238<=Experiencia3),Puntajes!$D$6,IF(H238>Experiencia3,Puntajes!$D$7,0)))))","v":""}]
[null,null,{"$f":"+'Capacidad Financiera'!B242","v":""},{"$f":"IF(ISERROR(VLOOKUP(C239,'Capacidad Financiera'!$B$12:$X$62720,2,0)),\"\",VLOOKUP(C239,'Capacidad Financiera'!$B$12:$X$3580,2,0))","v":0},{"$f":"IF(ISERROR(VLOOKUP(C239,'Capacidad Financiera'!$B$12:$X$62720,3,0)),\"\",VLOOKUP(C239,'Capacidad Financiera'!$B$12:$X$62720,3,0))","v":0},null,{"$f":"IF(OR(D239=\"\",E239=\"\",F239=\"\"),\"\",IF(C239<>\"\",IF(ISERROR(VLOOKUP($A$10,POA!$A$2:$D$25,2,0)),\"\",VLOOKUP($A$10,POA!$A$2:$D$25,2,0)),\"\"))","v":""},"",{"$f":"IF(OR(D239=\"\",E239=\"\",F239=\"\"),\"\",IF(AND(H239>0,H239<=Experiencia1),Puntajes!$D$4,IF(AND(H239>Experiencia1,H239<=Experiencia2),Puntajes!$D$5,IF(AND(H239>Experiencia2,H239<=Experiencia3),Puntajes!$D$6,IF(H239>Experiencia3,Puntajes!$D$7,0)))))","v":""}]
[null,null,22,{"$f":"IF(ISERROR(VLOOKUP(C240,'Capacidad Financiera'!$B$12:$X$62720,2,0)),\"\",VLOOKUP(C240,'Capacidad Financiera'!$B$12:$X$3580,2,0))","v":"INGENIERIA Y CONSTRUCCIONES S.A.S"},{"$f":"IF(ISERROR(VLOOKUP(C240,'Capacidad Financiera'!$B$12:$X$62720,3,0)),\"\",VLOOKUP(C240,'Capacidad Financiera'!$B$12:$X$62720,3,0))","v":1},null,{"$f":"IF(OR(D240=\"\",E240=\"\",F240=\"\"),\"\",IF(C241=\"\",IF(C240<>\"\",IF(ISERROR(VLOOKUP($A$10,POA!$A$2:$D$25,2,0)),\"\",VLOOKUP($A$10,POA!$A$2:$D$25,2,0)),\"\"),\"\"))","v":""},{"$f":"IF(OR(D240=\"\",E240=\"\",F240=\"\"),\"\",IF(C241=\"\",IF(C240<>\"\",F240/G240,\"\"),\"\"))","v":""},{"$f":"IF(C241=\"\",IF(F240=\"\",\"\",IF(AND(H240>0,H240<=Experiencia1),Puntajes!$D$4,IF(AND(H240>Experiencia1,H240<=Experiencia2),Puntajes!$D$5,IF(AND(H240>Experiencia2,H240<=Experiencia3),Puntajes!$D$6,IF(H240>Experiencia3,Puntajes!$D$7,0))))),\"\")","v":""}]
[null,null,{"$f":"+'Capacidad Financiera'!B244","v":22.1},{"$f":"IF(ISERROR(VLOOKUP(C241,'Capacidad Financiera'!$B$12:$X$62720,2,0)),\"\",VLOOKUP(C241,'Capacidad Financiera'!$B$12:$X$3580,2,0))","v":"INGENIERIA Y CONSTRUCCIONES S.A.S"},{"$f":"IF(ISERROR(VLOOKUP(C241,'Capacidad Financiera'!$B$12:$X$62720,3,0)),\"\",VLOOKUP(C241,'Capacidad Financiera'!$B$12:$X$62720,3,0))","v":1},50228871123.199997,{"$f":"IF(OR(D241=\"\",E241=\"\",F241=\"\"),\"\",IF(C241<>\"\",IF(ISERROR(VLOOKUP($A$10,POA!$A$2:$D$25,2,0)),\"\",VLOOKUP($A$10,POA!$A$2:$D$25,2,0)),\"\"))","v":4167150295},{"$f":"IF(OR(D241=\"\",E241=\"\",F241=\"\"),\"\",IF(C241<>\"\",F241/(G241*E241),\"\"))","v":12.053530006697297},{"$f":"IF(OR(D241=\"\",E241=\"\",F241=\"\"),\"\",IF(AND(H241>0,H241<=Experiencia1),Puntajes!$D$4,IF(AND(H241>Experiencia1,H241<=Experiencia2),Puntajes!$D$5,IF(AND(H241>Experiencia2,H241<=Experiencia3),Puntajes!$D$6,IF(H241>Experiencia3,Puntajes!$D$7,0)))))","v":120}]
[null,null,{"$f":"+'Capacidad Financiera'!B245","v":""},{"$f":"IF(ISERROR(VLOOKUP(C242,'Capacidad Financiera'!$B$12:$X$62720,2,0)),\"\",VLOOKUP(C242,'Capacidad Financiera'!$B$12:$X$3580,2,0))","v":0},{"$f":"IF(ISERROR(VLOOKUP(C242,'Capacidad Financiera'!$B$12:$X$62720,3,0)),\"\",VLOOKUP(C242,'Capacidad Financiera'!$B$12:$X$62720,3,0))","v":0},null,{"$f":"IF(OR(D242=\"\",E242=\"\",F242=\"\"),\"\",IF(C242<>\"\",IF(ISERROR(VLOOKUP($A$10,POA!$A$2:$D$25,2,0)),\"\",VLOOKUP($A$10,POA!$A$2:$D$25,2,0)),\"\"))","v":""},{"$f":"IF(OR(D242=\"\",E242=\"\",F242=\"\"),\"\",IF(C242<>\"\",F242/(G242*E242),\"\"))","v":""},{"$f":"IF(OR(D242=\"\",E242=\"\",F242=\"\"),\"\",IF(AND(H242>0,H242<=Experiencia1),Puntajes!$D$4,IF(AND(H242>Experiencia1,H242<=Experiencia2),Puntajes!$D$5,IF(AND(H242>Experiencia2,H242<=Experiencia3),Puntajes!$D$6,IF(H242>Experiencia3,Puntajes!$D$7,0)))))","v":""}]
[null,null,{"$f":"+'Capacidad Financiera'!B246","v":""},{"$f":"IF(ISERROR(VLOOKUP(C243,'Capacidad Financiera'!$B$12:$X$62720,2,0)),\"\",VLOOKUP(C243,'Capacidad Financiera'!$B$12:$X$3580,2,0))","v":0},{"$f":"IF(ISERROR(VLOOKUP(C243,'Capacidad Financiera'!$B$12:$X$62720,3,0)),\"\",VLOOKUP(C243,'Capacidad Financiera'!$B$12:$X$62720,3,0))","v":0},null,{"$f":"IF(OR(D243=\"\",E243=\"\",F243=\"\"),\"\",IF(C243<>\"\",IF(ISERROR(VLOOKUP($A$10,POA!$A$2:$D$25,2,0)),\"\",VLOOKUP($A$10,POA!$A$2:$D$25,2,0)),\"\"))","v":""},"",{"$f":"IF(OR(D243=\"\",E243=\"\",F243=\"\"),\"\",IF(AND(H243>0,H243<=Experiencia1),Puntajes!$D$4,IF(AND(H243>Experiencia1,H243<=Experiencia2),Puntajes!$D$5,IF(AND(H243>Experiencia2,H243<=Experiencia3),Puntajes!$D$6,IF(H243>Experiencia3,Puntajes!$D$7,0)))))","v":""}]
[null,null,{"$f":"+'Capacidad Financiera'!B247","v":""},{"$f":"IF(ISERROR(VLOOKUP(C244,'Capacidad Financiera'!$B$12:$X$62720,2,0)),\"\",VLOOKUP(C244,'Capacidad Financiera'!$B$12:$X$3580,2,0))","v":0},{"$f":"IF(ISERROR(VLOOKUP(C244,'Capacidad Financiera'!$B$12:$X$62720,3,0)),\"\",VLOOKUP(C244,'Capacidad Financiera'!$B$12:$X$62720,3,0))","v":0},null,{"$f":"IF(OR(D244=\"\",E244=\"\",F244=\"\"),\"\",IF(C244<>\"\",IF(ISERROR(VLOOKUP($A$10,POA!$A$2:$D$25,2,0)),\"\",VLOOKUP($A$10,POA!$A$2:$D$25,2,0)),\"\"))","v":""},"",{"$f":"IF(OR(D244=\"\",E244=\"\",F244=\"\"),\"\",IF(AND(H244>0,H244<=Experiencia1),Puntajes!$D$4,IF(AND(H244>Experiencia1,H244<=Experiencia2),Puntajes!$D$5,IF(AND(H244>Experiencia2,H244<=Experiencia3),Puntajes!$D$6,IF(H244>Experiencia3,Puntajes!$D$7,0)))))","v":""}]
[null,null,{"$f":"+'Capacidad Financiera'!B248","v":""},{"$f":"IF(ISERROR(VLOOKUP(C245,'Capacidad Financiera'!$B$12:$X$62720,2,0)),\"\",VLOOKUP(C245,'Capacidad Financiera'!$B$12:$X$3580,2,0))","v":0},{"$f":"IF(ISERROR(VLOOKUP(C245,'Capacidad Financiera'!$B$12:$X$62720,3,0)),\"\",VLOOKUP(C245,'Capacidad Financiera'!$B$12:$X$62720,3,0))","v":0},null,{"$f":"IF(OR(D245=\"\",E245=\"\",F245=\"\"),\"\",IF(C245<>\"\",IF(ISERROR(VLOOKUP($A$10,POA!$A$2:$D$25,2,0)),\"\",VLOOKUP($A$10,POA!$A$2:$D$25,2,0)),\"\"))","v":""},"",{"$f":"IF(OR(D245=\"\",E245=\"\",F245=\"\"),\"\",IF(AND(H245>0,H245<=Experiencia1),Puntajes!$D$4,IF(AND(H245>Experiencia1,H245<=Experiencia2),Puntajes!$D$5,IF(AND(H245>Experiencia2,H245<=Experiencia3),Puntajes!$D$6,IF(H245>Experiencia3,Puntajes!$D$7,0)))))","v":""}]
[null,null,{"$f":"+'Capacidad Financiera'!B249","v":""},{"$f":"IF(ISERROR(VLOOKUP(C246,'Capacidad Financiera'!$B$12:$X$62720,2,0)),\"\",VLOOKUP(C246,'Capacidad Financiera'!$B$12:$X$3580,2,0))","v":0},{"$f":"IF(ISERROR(VLOOKUP(C246,'Capacidad Financiera'!$B$12:$X$62720,3,0)),\"\",VLOOKUP(C246,'Capacidad Financiera'!$B$12:$X$62720,3,0))","v":0},null,{"$f":"IF(OR(D246=\"\",E246=\"\",F246=\"\"),\"\",IF(C246<>\"\",IF(ISERROR(VLOOKUP($A$10,POA!$A$2:$D$25,2,0)),\"\",VLOOKUP($A$10,POA!$A$2:$D$25,2,0)),\"\"))","v":""},"",{"$f":"IF(OR(D246=\"\",E246=\"\",F246=\"\"),\"\",IF(AND(H246>0,H246<=Experiencia1),Puntajes!$D$4,IF(AND(H246>Experiencia1,H246<=Experiencia2),Puntajes!$D$5,IF(AND(H246>Experiencia2,H246<=Experiencia3),Puntajes!$D$6,IF(H246>Experiencia3,Puntajes!$D$7,0)))))","v":""}]
[null,null,{"$f":"+'Capacidad Financiera'!B250","v":""},{"$f":"IF(ISERROR(VLOOKUP(C247,'Capacidad Financiera'!$B$12:$X$62720,2,0)),\"\",VLOOKUP(C247,'Capacidad Financiera'!$B$12:$X$3580,2,0))","v":0},{"$f":"IF(ISERROR(VLOOKUP(C247,'Capacidad Financiera'!$B$12:$X$62720,3,0)),\"\",VLOOKUP(C247,'Capacidad Financiera'!$B$12:$X$62720,3,0))","v":0},null,{"$f":"IF(OR(D247=\"\",E247=\"\",F247=\"\"),\"\",IF(C247<>\"\",IF(ISERROR(VLOOKUP($A$10,POA!$A$2:$D$25,2,0)),\"\",VLOOKUP($A$10,POA!$A$2:$D$25,2,0)),\"\"))","v":""},"",{"$f":"IF(OR(D247=\"\",E247=\"\",F247=\"\"),\"\",IF(AND(H247>0,H247<=Experiencia1),Puntajes!$D$4,IF(AND(H247>Experiencia1,H247<=Experiencia2),Puntajes!$D$5,IF(AND(H247>Experiencia2,H247<=Experiencia3),Puntajes!$D$6,IF(H247>Experiencia3,Puntajes!$D$7,0)))))","v":""}]
[null,null,{"$f":"+'Capacidad Financiera'!B251","v":""},{"$f":"IF(ISERROR(VLOOKUP(C248,'Capacidad Financiera'!$B$12:$X$62720,2,0)),\"\",VLOOKUP(C248,'Capacidad Financiera'!$B$12:$X$3580,2,0))","v":0},{"$f":"IF(ISERROR(VLOOKUP(C248,'Capacidad Financiera'!$B$12:$X$62720,3,0)),\"\",VLOOKUP(C248,'Capacidad Financiera'!$B$12:$X$62720,3,0))","v":0},null,{"$f":"IF(OR(D248=\"\",E248=\"\",F248=\"\"),\"\",IF(C248<>\"\",IF(ISERROR(VLOOKUP($A$10,POA!$A$2:$D$25,2,0)),\"\",VLOOKUP($A$10,POA!$A$2:$D$25,2,0)),\"\"))","v":""},"",{"$f":"IF(OR(D248=\"\",E248=\"\",F248=\"\"),\"\",IF(AND(H248>0,H248<=Experiencia1),Puntajes!$D$4,IF(AND(H248>Experiencia1,H248<=Experiencia2),Puntajes!$D$5,IF(AND(H248>Experiencia2,H248<=Experiencia3),Puntajes!$D$6,IF(H248>Experiencia3,Puntajes!$D$7,0)))))","v":""}]
[null,null,{"$f":"+'Capacidad Financiera'!B252","v":""},{"$f":"IF(ISERROR(VLOOKUP(C249,'Capacidad Financiera'!$B$12:$X$62720,2,0)),\"\",VLOOKUP(C249,'Capacidad Financiera'!$B$12:$X$3580,2,0))","v":0},{"$f":"IF(ISERROR(VLOOKUP(C249,'Capacidad Financiera'!$B$12:$X$62720,3,0)),\"\",VLOOKUP(C249,'Capacidad Financiera'!$B$12:$X$62720,3,0))","v":0},null,{"$f":"IF(OR(D249=\"\",E249=\"\",F249=\"\"),\"\",IF(C249<>\"\",IF(ISERROR(VLOOKUP($A$10,POA!$A$2:$D$25,2,0)),\"\",VLOOKUP($A$10,POA!$A$2:$D$25,2,0)),\"\"))","v":""},"",{"$f":"IF(OR(D249=\"\",E249=\"\",F249=\"\"),\"\",IF(AND(H249>0,H249<=Experiencia1),Puntajes!$D$4,IF(AND(H249>Experiencia1,H249<=Experiencia2),Puntajes!$D$5,IF(AND(H249>Experiencia2,H249<=Experiencia3),Puntajes!$D$6,IF(H249>Experiencia3,Puntajes!$D$7,0)))))","v":""}]
[null,null,{"$f":"+'Capacidad Financiera'!B253","v":""},{"$f":"IF(ISERROR(VLOOKUP(C250,'Capacidad Financiera'!$B$12:$X$62720,2,0)),\"\",VLOOKUP(C250,'Capacidad Financiera'!$B$12:$X$3580,2,0))","v":0},{"$f":"IF(ISERROR(VLOOKUP(C250,'Capacidad Financiera'!$B$12:$X$62720,3,0)),\"\",VLOOKUP(C250,'Capacidad Financiera'!$B$12:$X$62720,3,0))","v":0},null,{"$f":"IF(OR(D250=\"\",E250=\"\",F250=\"\"),\"\",IF(C250<>\"\",IF(ISERROR(VLOOKUP($A$10,POA!$A$2:$D$25,2,0)),\"\",VLOOKUP($A$10,POA!$A$2:$D$25,2,0)),\"\"))","v":""},"",{"$f":"IF(OR(D250=\"\",E250=\"\",F250=\"\"),\"\",IF(AND(H250>0,H250<=Experiencia1),Puntajes!$D$4,IF(AND(H250>Experiencia1,H250<=Experiencia2),Puntajes!$D$5,IF(AND(H250>Experiencia2,H250<=Experiencia3),Puntajes!$D$6,IF(H250>Experiencia3,Puntajes!$D$7,0)))))","v":""}]
[null,null,23,{"$f":"IF(ISERROR(VLOOKUP(C251,'Capacidad Financiera'!$B$12:$X$62720,2,0)),\"\",VLOOKUP(C251,'Capacidad Financiera'!$B$12:$X$3580,2,0))","v":"CONSORCIO VIAL SUCRE 2014"},{"$f":"IF(ISERROR(VLOOKUP(C251,'Capacidad Financiera'!$B$12:$X$62720,3,0)),\"\",VLOOKUP(C251,'Capacidad Financiera'!$B$12:$X$62720,3,0))","v":1},null,{"$f":"IF(OR(D251=\"\",E251=\"\",F251=\"\"),\"\",IF(C252=\"\",IF(C251<>\"\",IF(ISERROR(VLOOKUP($A$10,POA!$A$2:$D$25,2,0)),\"\",VLOOKUP($A$10,POA!$A$2:$D$25,2,0)),\"\"),\"\"))","v":""},{"$f":"IF(OR(D251=\"\",E251=\"\",F251=\"\"),\"\",IF(C252=\"\",IF(C251<>\"\",F251/G251,\"\"),\"\"))","v":""},{"$f":"IF(C252=\"\",IF(F251=\"\",\"\",IF(AND(H251>0,H251<=Experiencia1),Puntajes!$D$4,IF(AND(H251>Experiencia1,H251<=Experiencia2),Puntajes!$D$5,IF(AND(H251>Experiencia2,H251<=Experiencia3),Puntajes!$D$6,IF(H251>Experiencia3,Puntajes!$D$7,0))))),\"\")","v":""}]
[null,null,{"$f":"+'Capacidad Financiera'!B255","v":23.1},{"$f":"IF(ISERROR(VLOOKUP(C252,'Capacidad Financiera'!$B$12:$X$62720,2,0)),\"\",VLOOKUP(C252,'Capacidad Financiera'!$B$12:$X$3580,2,0))","v":"PROVIAS S.A.S."},{"$f":"IF(ISERROR(VLOOKUP(C252,'Capacidad Financiera'!$B$12:$X$62720,3,0)),\"\",VLOOKUP(C252,'Capacidad Financiera'!$B$12:$X$62720,3,0))","v":0.75},155046613296.76001,{"$f":"IF(OR(D252=\"\",E252=\"\",F252=\"\"),\"\",IF(C252<>\"\",IF(ISERROR(VLOOKUP($A$10,POA!$A$2:$D$25,2,0)),\"\",VLOOKUP($A$10,POA!$A$2:$D$25,2,0)),\"\"))","v":4167150295},{"$f":"IF(OR(D252=\"\",E252=\"\",F252=\"\"),\"\",IF(C252<>\"\",F252/(G252*E252),\"\"))","v":49.609158080297497},{"$f":"IF(OR(D252=\"\",E252=\"\",F252=\"\"),\"\",IF(AND(H252>0,H252<=Experiencia1),Puntajes!$D$4,IF(AND(H252>Experiencia1,H252<=Experiencia2),Puntajes!$D$5,IF(AND(H252>Experiencia2,H252<=Experiencia3),Puntajes!$D$6,IF(H252>Experiencia3,Puntajes!$D$7,0)))))","v":120}]
[null,null,{"$f":"+'Capacidad Financiera'!B256","v":23.200000000000003},{"$f":"IF(ISERROR(VLOOKUP(C253,'Capacidad Financiera'!$B$12:$X$62720,2,0)),\"\",VLOOKUP(C253,'Capacidad Financiera'!$B$12:$X$3580,2,0))","v":"ICG PROYECTOS S.A.S."},{"$f":"IF(ISERROR(VLOOKUP(C253,'Capacidad Financiera'!$B$12:$X$62720,3,0)),\"\",VLOOKUP(C253,'Capacidad Financiera'!$B$12:$X$62720,3,0))","v":0.25},5484553536,{"$f":"IF(OR(D253=\"\",E253=\"\",F253=\"\"),\"\",IF(C253<>\"\",IF(ISERROR(VLOOKUP($A$10,POA!$A$2:$D$25,2,0)),\"\",VLOOKUP($A$10,POA!$A$2:$D$25,2,0)),\"\"))","v":4167150295},{"$f":"IF(OR(D253=\"\",E253=\"\",F253=\"\"),\"\",IF(C253<>\"\",F253/(G253*E253),\"\"))","v":5.2645603328305199},{"$f":"IF(OR(D253=\"\",E253=\"\",F253=\"\"),\"\",IF(AND(H253>0,H253<=Experiencia1),Puntajes!$D$4,IF(AND(H253>Experiencia1,H253<=Experiencia2),Puntajes!$D$5,IF(AND(H253>Experiencia2,H253<=Experiencia3),Puntajes!$D$6,IF(H253>Experiencia3,Puntajes!$D$7,0)))))","v":80}]
[null,null,{"$f":"+'Capacidad Financiera'!B257","v":""},{"$f":"IF(ISERROR(VLOOKUP(C254,'Capacidad Financiera'!$B$12:$X$62720,2,0)),\"\",VLOOKUP(C254,'Capacidad Financiera'!$B$12:$X$3580,2,0))","v":0},{"$f":"IF(ISERROR(VLOOKUP(C254,'Capacidad Financiera'!$B$12:$X$62720,3,0)),\"\",VLOOKUP(C254,'Capacidad Financiera'!$B$12:$X$62720,3,0))","v":0},null,{"$f":"IF(OR(D254=\"\",E254=\"\",F254=\"\"),\"\",IF(C254<>\"\",IF(ISERROR(VLOOKUP($A$10,POA!$A$2:$D$25,2,0)),\"\",VLOOKUP($A$10,POA!$A$2:$D$25,2,0)),\"\"))","v":""},"",{"$f":"IF(OR(D254=\"\",E254=\"\",F254=\"\"),\"\",IF(AND(H254>0,H254<=Experiencia1),Puntajes!$D$4,IF(AND(H254>Experiencia1,H254<=Experiencia2),Puntajes!$D$5,IF(AND(H254>Experiencia2,H254<=Experiencia3),Puntajes!$D$6,IF(H254>Experiencia3,Puntajes!$D$7,0)))))","v":""}]
[null,null,{"$f":"+'Capacidad Financiera'!B258","v":""},{"$f":"IF(ISERROR(VLOOKUP(C255,'Capacidad Financiera'!$B$12:$X$62720,2,0)),\"\",VLOOKUP(C255,'Capacidad Financiera'!$B$12:$X$3580,2,0))","v":0},{"$f":"IF(ISERROR(VLOOKUP(C255,'Capacidad Financiera'!$B$12:$X$62720,3,0)),\"\",VLOOKUP(C255,'Capacidad Financiera'!$B$12:$X$62720,3,0))","v":0},null,{"$f":"IF(OR(D255=\"\",E255=\"\",F255=\"\"),\"\",IF(C255<>\"\",IF(ISERROR(VLOOKUP($A$10,POA!$A$2:$D$25,2,0)),\"\",VLOOKUP($A$10,POA!$A$2:$D$25,2,0)),\"\"))","v":""},"",{"$f":"IF(OR(D255=\"\",E255=\"\",F255=\"\"),\"\",IF(AND(H255>0,H255<=Experiencia1),Puntajes!$D$4,IF(AND(H255>Experiencia1,H255<=Experiencia2),Puntajes!$D$5,IF(AND(H255>Experiencia2,H255<=Experiencia3),Puntajes!$D$6,IF(H255>Experiencia3,Puntajes!$D$7,0)))))","v":""}]
[null,null,{"$f":"+'Capacidad Financiera'!B259","v":""},{"$f":"IF(ISERROR(VLOOKUP(C256,'Capacidad Financiera'!$B$12:$X$62720,2,0)),\"\",VLOOKUP(C256,'Capacidad Financiera'!$B$12:$X$3580,2,0))","v":0},{"$f":"IF(ISERROR(VLOOKUP(C256,'Capacidad Financiera'!$B$12:$X$62720,3,0)),\"\",VLOOKUP(C256,'Capacidad Financiera'!$B$12:$X$62720,3,0))","v":0},null,{"$f":"IF(OR(D256=\"\",E256=\"\",F256=\"\"),\"\",IF(C256<>\"\",IF(ISERROR(VLOOKUP($A$10,POA!$A$2:$D$25,2,0)),\"\",VLOOKUP($A$10,POA!$A$2:$D$25,2,0)),\"\"))","v":""},"",{"$f":"IF(OR(D256=\"\",E256=\"\",F256=\"\"),\"\",IF(AND(H256>0,H256<=Experiencia1),Puntajes!$D$4,IF(AND(H256>Experiencia1,H256<=Experiencia2),Puntajes!$D$5,IF(AND(H256>Experiencia2,H256<=Experiencia3),Puntajes!$D$6,IF(H256>Experiencia3,Puntajes!$D$7,0)))))","v":""}]
[null,null,{"$f":"+'Capacidad Financiera'!B260","v":""},{"$f":"IF(ISERROR(VLOOKUP(C257,'Capacidad Financiera'!$B$12:$X$62720,2,0)),\"\",VLOOKUP(C257,'Capacidad Financiera'!$B$12:$X$3580,2,0))","v":0},{"$f":"IF(ISERROR(VLOOKUP(C257,'Capacidad Financiera'!$B$12:$X$62720,3,0)),\"\",VLOOKUP(C257,'Capacidad Financiera'!$B$12:$X$62720,3,0))","v":0},null,{"$f":"IF(OR(D257=\"\",E257=\"\",F257=\"\"),\"\",IF(C257<>\"\",IF(ISERROR(VLOOKUP($A$10,POA!$A$2:$D$25,2,0)),\"\",VLOOKUP($A$10,POA!$A$2:$D$25,2,0)),\"\"))","v":""},"",{"$f":"IF(OR(D257=\"\",E257=\"\",F257=\"\"),\"\",IF(AND(H257>0,H257<=Experiencia1),Puntajes!$D$4,IF(AND(H257>Experiencia1,H257<=Experiencia2),Puntajes!$D$5,IF(AND(H257>Experiencia2,H257<=Experiencia3),Puntajes!$D$6,IF(H257>Experiencia3,Puntajes!$D$7,0)))))","v":""}]
[null,null,{"$f":"+'Capacidad Financiera'!B261","v":""},{"$f":"IF(ISERROR(VLOOKUP(C258,'Capacidad Financiera'!$B$12:$X$62720,2,0)),\"\",VLOOKUP(C258,'Capacidad Financiera'!$B$12:$X$3580,2,0))","v":0},{"$f":"IF(ISERROR(VLOOKUP(C258,'Capacidad Financiera'!$B$12:$X$62720,3,0)),\"\",VLOOKUP(C258,'Capacidad Financiera'!$B$12:$X$62720,3,0))","v":0},null,{"$f":"IF(OR(D258=\"\",E258=\"\",F258=\"\"),\"\",IF(C258<>\"\",IF(ISERROR(VLOOKUP($A$10,POA!$A$2:$D$25,2,0)),\"\",VLOOKUP($A$10,POA!$A$2:$D$25,2,0)),\"\"))","v":""},"",{"$f":"IF(OR(D258=\"\",E258=\"\",F258=\"\"),\"\",IF(AND(H258>0,H258<=Experiencia1),Puntajes!$D$4,IF(AND(H258>Experiencia1,H258<=Experiencia2),Puntajes!$D$5,IF(AND(H258>Experiencia2,H258<=Experiencia3),Puntajes!$D$6,IF(H258>Experiencia3,Puntajes!$D$7,0)))))","v":""}]
[null,null,{"$f":"+'Capacidad Financiera'!B262","v":""},{"$f":"IF(ISERROR(VLOOKUP(C259,'Capacidad Financiera'!$B$12:$X$62720,2,0)),\"\",VLOOKUP(C259,'Capacidad Financiera'!$B$12:$X$3580,2,0))","v":0},{"$f":"IF(ISERROR(VLOOKUP(C259,'Capacidad Financiera'!$B$12:$X$62720,3,0)),\"\",VLOOKUP(C259,'Capacidad Financiera'!$B$12:$X$62720,3,0))","v":0},null,{"$f":"IF(OR(D259=\"\",E259=\"\",F259=\"\"),\"\",IF(C259<>\"\",IF(ISERROR(VLOOKUP($A$10,POA!$A$2:$D$25,2,0)),\"\",VLOOKUP($A$10,POA!$A$2:$D$25,2,0)),\"\"))","v":""},"",{"$f":"IF(OR(D259=\"\",E259=\"\",F259=\"\"),\"\",IF(AND(H259>0,H259<=Experiencia1),Puntajes!$D$4,IF(AND(H259>Experiencia1,H259<=Experiencia2),Puntajes!$D$5,IF(AND(H259>Experiencia2,H259<=Experiencia3),Puntajes!$D$6,IF(H259>Experiencia3,Puntajes!$D$7,0)))))","v":""}]
[null,null,{"$f":"+'Capacidad Financiera'!B263","v":""},{"$f":"IF(ISERROR(VLOOKUP(C260,'Capacidad Financiera'!$B$12:$X$62720,2,0)),\"\",VLOOKUP(C260,'Capacidad Financiera'!$B$12:$X$3580,2,0))","v":0},{"$f":"IF(ISERROR(VLOOKUP(C260,'Capacidad Financiera'!$B$12:$X$62720,3,0)),\"\",VLOOKUP(C260,'Capacidad Financiera'!$B$12:$X$62720,3,0))","v":0},null,{"$f":"IF(OR(D260=\"\",E260=\"\",F260=\"\"),\"\",IF(C260<>\"\",IF(ISERROR(VLOOKUP($A$10,POA!$A$2:$D$25,2,0)),\"\",VLOOKUP($A$10,POA!$A$2:$D$25,2,0)),\"\"))","v":""},"",{"$f":"IF(OR(D260=\"\",E260=\"\",F260=\"\"),\"\",IF(AND(H260>0,H260<=Experiencia1),Puntajes!$D$4,IF(AND(H260>Experiencia1,H260<=Experiencia2),Puntajes!$D$5,IF(AND(H260>Experiencia2,H260<=Experiencia3),Puntajes!$D$6,IF(H260>Experiencia3,Puntajes!$D$7,0)))))","v":""}]
[null,null,{"$f":"+'Capacidad Financiera'!B264","v":""},{"$f":"IF(ISERROR(VLOOKUP(C261,'Capacidad Financiera'!$B$12:$X$62720,2,0)),\"\",VLOOKUP(C261,'Capacidad Financiera'!$B$12:$X$3580,2,0))","v":0},{"$f":"IF(ISERROR(VLOOKUP(C261,'Capacidad Financiera'!$B$12:$X$62720,3,0)),\"\",VLOOKUP(C261,'Capacidad Financiera'!$B$12:$X$62720,3,0))","v":0},null,{"$f":"IF(OR(D261=\"\",E261=\"\",F261=\"\"),\"\",IF(C261<>\"\",IF(ISERROR(VLOOKUP($A$10,POA!$A$2:$D$25,2,0)),\"\",VLOOKUP($A$10,POA!$A$2:$D$25,2,0)),\"\"))","v":""},"",{"$f":"IF(OR(D261=\"\",E261=\"\",F261=\"\"),\"\",IF(AND(H261>0,H261<=Experiencia1),Puntajes!$D$4,IF(AND(H261>Experiencia1,H261<=Experiencia2),Puntajes!$D$5,IF(AND(H261>Experiencia2,H261<=Experiencia3),Puntajes!$D$6,IF(H261>Experiencia3,Puntajes!$D$7,0)))))","v":""}]
[null,null,24,{"$f":"IF(ISERROR(VLOOKUP(C262,'Capacidad Financiera'!$B$12:$X$62720,2,0)),\"\",VLOOKUP(C262,'Capacidad Financiera'!$B$12:$X$3580,2,0))","v":"INGENIERIA Y VIAS S.A.S."},{"$f":"IF(ISERROR(VLOOKUP(C262,'Capacidad Financiera'!$B$12:$X$62720,3,0)),\"\",VLOOKUP(C262,'Capacidad Financiera'!$B$12:$X$62720,3,0))","v":1},null,{"$f":"IF(OR(D262=\"\",E262=\"\",F262=\"\"),\"\",IF(C263=\"\",IF(C262<>\"\",IF(ISERROR(VLOOKUP($A$10,POA!$A$2:$D$25,2,0)),\"\",VLOOKUP($A$10,POA!$A$2:$D$25,2,0)),\"\"),\"\"))","v":""},{"$f":"IF(OR(D262=\"\",E262=\"\",F262=\"\"),\"\",IF(C263=\"\",IF(C262<>\"\",F262/G262,\"\"),\"\"))","v":""},{"$f":"IF(C263=\"\",IF(F262=\"\",\"\",IF(AND(H262>0,H262<=Experiencia1),Puntajes!$D$4,IF(AND(H262>Experiencia1,H262<=Experiencia2),Puntajes!$D$5,IF(AND(H262>Experiencia2,H262<=Experiencia3),Puntajes!$D$6,IF(H262>Experiencia3,Puntajes!$D$7,0))))),\"\")","v":""}]
[null,null,{"$f":"+'Capacidad Financiera'!B266","v":24.1},{"$f":"IF(ISERROR(VLOOKUP(C263,'Capacidad Financiera'!$B$12:$X$62720,2,0)),\"\",VLOOKUP(C263,'Capacidad Financiera'!$B$12:$X$3580,2,0))","v":"INGENIERIA Y VIAS S.A.S."},{"$f":"IF(ISERROR(VLOOKUP(C263,'Capacidad Financiera'!$B$12:$X$62720,3,0)),\"\",VLOOKUP(C263,'Capacidad Financiera'!$B$12:$X$62720,3,0))","v":1},156610976306.39999,{"$f":"IF(OR(D263=\"\",E263=\"\",F263=\"\"),\"\",IF(C263<>\"\",IF(ISERROR(VLOOKUP($A$10,POA!$A$2:$D$25,2,0)),\"\",VLOOKUP($A$10,POA!$A$2:$D$25,2,0)),\"\"))","v":4167150295},{"$f":"IF(OR(D263=\"\",E263=\"\",F263=\"\"),\"\",IF(C263<>\"\",F263/(G263*E263),\"\"))","v":37.582272109146473},{"$f":"IF(OR(D263=\"\",E263=\"\",F263=\"\"),\"\",IF(AND(H263>0,H263<=Experiencia1),Puntajes!$D$4,IF(AND(H263>Experiencia1,H263<=Experiencia2),Puntajes!$D$5,IF(AND(H263>Experiencia2,H263<=Experiencia3),Puntajes!$D$6,IF(H263>Experiencia3,Puntajes!$D$7,0)))))","v":120}]
[null,null,{"$f":"+'Capacidad Financiera'!B267","v":""},{"$f":"IF(ISERROR(VLOOKUP(C264,'Capacidad Financiera'!$B$12:$X$62720,2,0)),\"\",VLOOKUP(C264,'Capacidad Financiera'!$B$12:$X$3580,2,0))","v":0},{"$f":"IF(ISERROR(VLOOKUP(C264,'Capacidad Financiera'!$B$12:$X$62720,3,0)),\"\",VLOOKUP(C264,'Capacidad Financiera'!$B$12:$X$62720,3,0))","v":0},null,{"$f":"IF(OR(D264=\"\",E264=\"\",F264=\"\"),\"\",IF(C264<>\"\",IF(ISERROR(VLOOKUP($A$10,POA!$A$2:$D$25,2,0)),\"\",VLOOKUP($A$10,POA!$A$2:$D$25,2,0)),\"\"))","v":""},{"$f":"IF(OR(D264=\"\",E264=\"\",F264=\"\"),\"\",IF(C264<>\"\",F264/(G264*E264),\"\"))","v":""},{"$f":"IF(OR(D264=\"\",E264=\"\",F264=\"\"),\"\",IF(AND(H264>0,H264<=Experiencia1),Puntajes!$D$4,IF(AND(H264>Experiencia1,H264<=Experiencia2),Puntajes!$D$5,IF(AND(H264>Experiencia2,H264<=Experiencia3),Puntajes!$D$6,IF(H264>Experiencia3,Puntajes!$D$7,0)))))","v":""}]
[null,null,{"$f":"+'Capacidad Financiera'!B268","v":""},{"$f":"IF(ISERROR(VLOOKUP(C265,'Capacidad Financiera'!$B$12:$X$62720,2,0)),\"\",VLOOKUP(C265,'Capacidad Financiera'!$B$12:$X$3580,2,0))","v":0},{"$f":"IF(ISERROR(VLOOKUP(C265,'Capacidad Financiera'!$B$12:$X$62720,3,0)),\"\",VLOOKUP(C265,'Capacidad Financiera'!$B$12:$X$62720,3,0))","v":0},null,{"$f":"IF(OR(D265=\"\",E265=\"\",F265=\"\"),\"\",IF(C265<>\"\",IF(ISERROR(VLOOKUP($A$10,POA!$A$2:$D$25,2,0)),\"\",VLOOKUP($A$10,POA!$A$2:$D$25,2,0)),\"\"))","v":""},"",{"$f":"IF(OR(D265=\"\",E265=\"\",F265=\"\"),\"\",IF(AND(H265>0,H265<=Experiencia1),Puntajes!$D$4,IF(AND(H265>Experiencia1,H265<=Experiencia2),Puntajes!$D$5,IF(AND(H265>Experiencia2,H265<=Experiencia3),Puntajes!$D$6,IF(H265>Experiencia3,Puntajes!$D$7,0)))))","v":""}]
[null,null,{"$f":"+'Capacidad Financiera'!B269","v":""},{"$f":"IF(ISERROR(VLOOKUP(C266,'Capacidad Financiera'!$B$12:$X$62720,2,0)),\"\",VLOOKUP(C266,'Capacidad Financiera'!$B$12:$X$3580,2,0))","v":0},{"$f":"IF(ISERROR(VLOOKUP(C266,'Capacidad Financiera'!$B$12:$X$62720,3,0)),\"\",VLOOKUP(C266,'Capacidad Financiera'!$B$12:$X$62720,3,0))","v":0},null,{"$f":"IF(OR(D266=\"\",E266=\"\",F266=\"\"),\"\",IF(C266<>\"\",IF(ISERROR(VLOOKUP($A$10,POA!$A$2:$D$25,2,0)),\"\",VLOOKUP($A$10,POA!$A$2:$D$25,2,0)),\"\"))","v":""},"",{"$f":"IF(OR(D266=\"\",E266=\"\",F266=\"\"),\"\",IF(AND(H266>0,H266<=Experiencia1),Puntajes!$D$4,IF(AND(H266>Experiencia1,H266<=Experiencia2),Puntajes!$D$5,IF(AND(H266>Experiencia2,H266<=Experiencia3),Puntajes!$D$6,IF(H266>Experiencia3,Puntajes!$D$7,0)))))","v":""}]
[null,null,{"$f":"+'Capacidad Financiera'!B270","v":""},{"$f":"IF(ISERROR(VLOOKUP(C267,'Capacidad Financiera'!$B$12:$X$62720,2,0)),\"\",VLOOKUP(C267,'Capacidad Financiera'!$B$12:$X$3580,2,0))","v":0},{"$f":"IF(ISERROR(VLOOKUP(C267,'Capacidad Financiera'!$B$12:$X$62720,3,0)),\"\",VLOOKUP(C267,'Capacidad Financiera'!$B$12:$X$62720,3,0))","v":0},null,{"$f":"IF(OR(D267=\"\",E267=\"\",F267=\"\"),\"\",IF(C267<>\"\",IF(ISERROR(VLOOKUP($A$10,POA!$A$2:$D$25,2,0)),\"\",VLOOKUP($A$10,POA!$A$2:$D$25,2,0)),\"\"))","v":""},"",{"$f":"IF(OR(D267=\"\",E267=\"\",F267=\"\"),\"\",IF(AND(H267>0,H267<=Experiencia1),Puntajes!$D$4,IF(AND(H267>Experiencia1,H267<=Experiencia2),Puntajes!$D$5,IF(AND(H267>Experiencia2,H267<=Experiencia3),Puntajes!$D$6,IF(H267>Experiencia3,Puntajes!$D$7,0)))))","v":""}]
[null,null,{"$f":"+'Capacidad Financiera'!B271","v":""},{"$f":"IF(ISERROR(VLOOKUP(C268,'Capacidad Financiera'!$B$12:$X$62720,2,0)),\"\",VLOOKUP(C268,'Capacidad Financiera'!$B$12:$X$3580,2,0))","v":0},{"$f":"IF(ISERROR(VLOOKUP(C268,'Capacidad Financiera'!$B$12:$X$62720,3,0)),\"\",VLOOKUP(C268,'Capacidad Financiera'!$B$12:$X$62720,3,0))","v":0},null,{"$f":"IF(OR(D268=\"\",E268=\"\",F268=\"\"),\"\",IF(C268<>\"\",IF(ISERROR(VLOOKUP($A$10,POA!$A$2:$D$25,2,0)),\"\",VLOOKUP($A$10,POA!$A$2:$D$25,2,0)),\"\"))","v":""},"",{"$f":"IF(OR(D268=\"\",E268=\"\",F268=\"\"),\"\",IF(AND(H268>0,H268<=Experiencia1),Puntajes!$D$4,IF(AND(H268>Experiencia1,H268<=Experiencia2),Puntajes!$D$5,IF(AND(H268>Experiencia2,H268<=Experiencia3),Puntajes!$D$6,IF(H268>Experiencia3,Puntajes!$D$7,0)))))","v":""}]
[null,null,{"$f":"+'Capacidad Financiera'!B272","v":""},{"$f":"IF(ISERROR(VLOOKUP(C269,'Capacidad Financiera'!$B$12:$X$62720,2,0)),\"\",VLOOKUP(C269,'Capacidad Financiera'!$B$12:$X$3580,2,0))","v":0},{"$f":"IF(ISERROR(VLOOKUP(C269,'Capacidad Financiera'!$B$12:$X$62720,3,0)),\"\",VLOOKUP(C269,'Capacidad Financiera'!$B$12:$X$62720,3,0))","v":0},null,{"$f":"IF(OR(D269=\"\",E269=\"\",F269=\"\"),\"\",IF(C269<>\"\",IF(ISERROR(VLOOKUP($A$10,POA!$A$2:$D$25,2,0)),\"\",VLOOKUP($A$10,POA!$A$2:$D$25,2,0)),\"\"))","v":""},"",{"$f":"IF(OR(D269=\"\",E269=\"\",F269=\"\"),\"\",IF(AND(H269>0,H269<=Experiencia1),Puntajes!$D$4,IF(AND(H269>Experiencia1,H269<=Experiencia2),Puntajes!$D$5,IF(AND(H269>Experiencia2,H269<=Experiencia3),Puntajes!$D$6,IF(H269>Experiencia3,Puntajes!$D$7,0)))))","v":""}]
[null,null,{"$f":"+'Capacidad Financiera'!B273","v":""},{"$f":"IF(ISERROR(VLOOKUP(C270,'Capacidad Financiera'!$B$12:$X$62720,2,0)),\"\",VLOOKUP(C270,'Capacidad Financiera'!$B$12:$X$3580,2,0))","v":0},{"$f":"IF(ISERROR(VLOOKUP(C270,'Capacidad Financiera'!$B$12:$X$62720,3,0)),\"\",VLOOKUP(C270,'Capacidad Financiera'!$B$12:$X$62720,3,0))","v":0},null,{"$f":"IF(OR(D270=\"\",E270=\"\",F270=\"\"),\"\",IF(C270<>\"\",IF(ISERROR(VLOOKUP($A$10,POA!$A$2:$D$25,2,0)),\"\",VLOOKUP($A$10,POA!$A$2:$D$25,2,0)),\"\"))","v":""},"",{"$f":"IF(OR(D270=\"\",E270=\"\",F270=\"\"),\"\",IF(AND(H270>0,H270<=Experiencia1),Puntajes!$D$4,IF(AND(H270>Experiencia1,H270<=Experiencia2),Puntajes!$D$5,IF(AND(H270>Experiencia2,H270<=Experiencia3),Puntajes!$D$6,IF(H270>Experiencia3,Puntajes!$D$7,0)))))","v":""}]
[null,null,{"$f":"+'Capacidad Financiera'!B274","v":""},{"$f":"IF(ISERROR(VLOOKUP(C271,'Capacidad Financiera'!$B$12:$X$62720,2,0)),\"\",VLOOKUP(C271,'Capacidad Financiera'!$B$12:$X$3580,2,0))","v":0},{"$f":"IF(ISERROR(VLOOKUP(C271,'Capacidad Financiera'!$B$12:$X$62720,3,0)),\"\",VLOOKUP(C271,'Capacidad Financiera'!$B$12:$X$62720,3,0))","v":0},null,{"$f":"IF(OR(D271=\"\",E271=\"\",F271=\"\"),\"\",IF(C271<>\"\",IF(ISERROR(VLOOKUP($A$10,POA!$A$2:$D$25,2,0)),\"\",VLOOKUP($A$10,POA!$A$2:$D$25,2,0)),\"\"))","v":""},"",{"$f":"IF(OR(D271=\"\",E271=\"\",F271=\"\"),\"\",IF(AND(H271>0,H271<=Experiencia1),Puntajes!$D$4,IF(AND(H271>Experiencia1,H271<=Experiencia2),Puntajes!$D$5,IF(AND(H271>Experiencia2,H271<=Experiencia3),Puntajes!$D$6,IF(H271>Experiencia3,Puntajes!$D$7,0)))))","v":""}]
[null,null,{"$f":"+'Capacidad Financiera'!B275","v":""},{"$f":"IF(ISERROR(VLOOKUP(C272,'Capacidad Financiera'!$B$12:$X$62720,2,0)),\"\",VLOOKUP(C272,'Capacidad Financiera'!$B$12:$X$3580,2,0))","v":0},{"$f":"IF(ISERROR(VLOOKUP(C272,'Capacidad Financiera'!$B$12:$X$62720,3,0)),\"\",VLOOKUP(C272,'Capacidad Financiera'!$B$12:$X$62720,3,0))","v":0},null,{"$f":"IF(OR(D272=\"\",E272=\"\",F272=\"\"),\"\",IF(C272<>\"\",IF(ISERROR(VLOOKUP($A$10,POA!$A$2:$D$25,2,0)),\"\",VLOOKUP($A$10,POA!$A$2:$D$25,2,0)),\"\"))","v":""},"",{"$f":"IF(OR(D272=\"\",E272=\"\",F272=\"\"),\"\",IF(AND(H272>0,H272<=Experiencia1),Puntajes!$D$4,IF(AND(H272>Experiencia1,H272<=Experiencia2),Puntajes!$D$5,IF(AND(H272>Experiencia2,H272<=Experiencia3),Puntajes!$D$6,IF(H272>Experiencia3,Puntajes!$D$7,0)))))","v":""}]
[null,null,25,{"$f":"IF(ISERROR(VLOOKUP(C273,'Capacidad Financiera'!$B$12:$X$62720,2,0)),\"\",VLOOKUP(C273,'Capacidad Financiera'!$B$12:$X$3580,2,0))","v":"GUSTAVO VELANDIA POVEDA"},{"$f":"IF(ISERROR(VLOOKUP(C273,'Capacidad Financiera'!$B$12:$X$62720,3,0)),\"\",VLOOKUP(C273,'Capacidad Financiera'!$B$12:$X$62720,3,0))","v":1},null,{"$f":"IF(OR(D273=\"\",E273=\"\",F273=\"\"),\"\",IF(C274=\"\",IF(C273<>\"\",IF(ISERROR(VLOOKUP($A$10,POA!$A$2:$D$25,2,0)),\"\",VLOOKUP($A$10,POA!$A$2:$D$25,2,0)),\"\"),\"\"))","v":""},{"$f":"IF(OR(D273=\"\",E273=\"\",F273=\"\"),\"\",IF(C274=\"\",IF(C273<>\"\",F273/G273,\"\"),\"\"))","v":""},{"$f":"IF(C274=\"\",IF(F273=\"\",\"\",IF(AND(H273>0,H273<=Experiencia1),Puntajes!$D$4,IF(AND(H273>Experiencia1,H273<=Experiencia2),Puntajes!$D$5,IF(AND(H273>Experiencia2,H273<=Experiencia3),Puntajes!$D$6,IF(H273>Experiencia3,Puntajes!$D$7,0))))),\"\")","v":""}]
[null,null,{"$f":"+'Capacidad Financiera'!B277","v":25.1},{"$f":"IF(ISERROR(VLOOKUP(C274,'Capacidad Financiera'!$B$12:$X$62720,2,0)),\"\",VLOOKUP(C274,'Capacidad Financiera'!$B$12:$X$3580,2,0))","v":"GUSTAVO VELANDIA POVEDA"},{"$f":"IF(ISERROR(VLOOKUP(C274,'Capacidad Financiera'!$B$12:$X$62720,3,0)),\"\",VLOOKUP(C274,'Capacidad Financiera'!$B$12:$X$62720,3,0))","v":1},88531590455,{"$f":"IF(OR(D274=\"\",E274=\"\",F274=\"\"),\"\",IF(C274<>\"\",IF(ISERROR(VLOOKUP($A$10,POA!$A$2:$D$25,2,0)),\"\",VLOOKUP($A$10,POA!$A$2:$D$25,2,0)),\"\"))","v":4167150295},{"$f":"IF(OR(D274=\"\",E274=\"\",F274=\"\"),\"\",IF(C274<>\"\",F274/(G274*E274),\"\"))","v":21.245115771616295},{"$f":"IF(OR(D274=\"\",E274=\"\",F274=\"\"),\"\",IF(AND(H274>0,H274<=Experiencia1),Puntajes!$D$4,IF(AND(H274>Experiencia1,H274<=Experiencia2),Puntajes!$D$5,IF(AND(H274>Experiencia2,H274<=Experiencia3),Puntajes!$D$6,IF(H274>Experiencia3,Puntajes!$D$7,0)))))","v":120}]
[null,null,{"$f":"+'Capacidad Financiera'!B278","v":""},{"$f":"IF(ISERROR(VLOOKUP(C275,'Capacidad Financiera'!$B$12:$X$62720,2,0)),\"\",VLOOKUP(C275,'Capacidad Financiera'!$B$12:$X$3580,2,0))","v":0},{"$f":"IF(ISERROR(VLOOKUP(C275,'Capacidad Financiera'!$B$12:$X$62720,3,0)),\"\",VLOOKUP(C275,'Capacidad Financiera'!$B$12:$X$62720,3,0))","v":0},null,{"$f":"IF(OR(D275=\"\",E275=\"\",F275=\"\"),\"\",IF(C275<>\"\",IF(ISERROR(VLOOKUP($A$10,POA!$A$2:$D$25,2,0)),\"\",VLOOKUP($A$10,POA!$A$2:$D$25,2,0)),\"\"))","v":""},{"$f":"IF(OR(D275=\"\",E275=\"\",F275=\"\"),\"\",IF(C275<>\"\",F275/(G275*E275),\"\"))","v":""},{"$f":"IF(OR(D275=\"\",E275=\"\",F275=\"\"),\"\",IF(AND(H275>0,H275<=Experiencia1),Puntajes!$D$4,IF(AND(H275>Experiencia1,H275<=Experiencia2),Puntajes!$D$5,IF(AND(H275>Experiencia2,H275<=Experiencia3),Puntajes!$D$6,IF(H275>Experiencia3,Puntajes!$D$7,0)))))","v":""}]
[null,null,{"$f":"+'Capacidad Financiera'!B279","v":""},{"$f":"IF(ISERROR(VLOOKUP(C276,'Capacidad Financiera'!$B$12:$X$62720,2,0)),\"\",VLOOKUP(C276,'Capacidad Financiera'!$B$12:$X$3580,2,0))","v":0},{"$f":"IF(ISERROR(VLOOKUP(C276,'Capacidad Financiera'!$B$12:$X$62720,3,0)),\"\",VLOOKUP(C276,'Capacidad Financiera'!$B$12:$X$62720,3,0))","v":0},null,{"$f":"IF(OR(D276=\"\",E276=\"\",F276=\"\"),\"\",IF(C276<>\"\",IF(ISERROR(VLOOKUP($A$10,POA!$A$2:$D$25,2,0)),\"\",VLOOKUP($A$10,POA!$A$2:$D$25,2,0)),\"\"))","v":""},"",{"$f":"IF(OR(D276=\"\",E276=\"\",F276=\"\"),\"\",IF(AND(H276>0,H276<=Experiencia1),Puntajes!$D$4,IF(AND(H276>Experiencia1,H276<=Experiencia2),Puntajes!$D$5,IF(AND(H276>Experiencia2,H276<=Experiencia3),Puntajes!$D$6,IF(H276>Experiencia3,Puntajes!$D$7,0)))))","v":""}]
[null,null,{"$f":"+'Capacidad Financiera'!B280","v":""},{"$f":"IF(ISERROR(VLOOKUP(C277,'Capacidad Financiera'!$B$12:$X$62720,2,0)),\"\",VLOOKUP(C277,'Capacidad Financiera'!$B$12:$X$3580,2,0))","v":0},{"$f":"IF(ISERROR(VLOOKUP(C277,'Capacidad Financiera'!$B$12:$X$62720,3,0)),\"\",VLOOKUP(C277,'Capacidad Financiera'!$B$12:$X$62720,3,0))","v":0},null,{"$f":"IF(OR(D277=\"\",E277=\"\",F277=\"\"),\"\",IF(C277<>\"\",IF(ISERROR(VLOOKUP($A$10,POA!$A$2:$D$25,2,0)),\"\",VLOOKUP($A$10,POA!$A$2:$D$25,2,0)),\"\"))","v":""},"",{"$f":"IF(OR(D277=\"\",E277=\"\",F277=\"\"),\"\",IF(AND(H277>0,H277<=Experiencia1),Puntajes!$D$4,IF(AND(H277>Experiencia1,H277<=Experiencia2),Puntajes!$D$5,IF(AND(H277>Experiencia2,H277<=Experiencia3),Puntajes!$D$6,IF(H277>Experiencia3,Puntajes!$D$7,0)))))","v":""}]
[null,null,{"$f":"+'Capacidad Financiera'!B281","v":""},{"$f":"IF(ISERROR(VLOOKUP(C278,'Capacidad Financiera'!$B$12:$X$62720,2,0)),\"\",VLOOKUP(C278,'Capacidad Financiera'!$B$12:$X$3580,2,0))","v":0},{"$f":"IF(ISERROR(VLOOKUP(C278,'Capacidad Financiera'!$B$12:$X$62720,3,0)),\"\",VLOOKUP(C278,'Capacidad Financiera'!$B$12:$X$62720,3,0))","v":0},null,{"$f":"IF(OR(D278=\"\",E278=\"\",F278=\"\"),\"\",IF(C278<>\"\",IF(ISERROR(VLOOKUP($A$10,POA!$A$2:$D$25,2,0)),\"\",VLOOKUP($A$10,POA!$A$2:$D$25,2,0)),\"\"))","v":""},"",{"$f":"IF(OR(D278=\"\",E278=\"\",F278=\"\"),\"\",IF(AND(H278>0,H278<=Experiencia1),Puntajes!$D$4,IF(AND(H278>Experiencia1,H278<=Experiencia2),Puntajes!$D$5,IF(AND(H278>Experiencia2,H278<=Experiencia3),Puntajes!$D$6,IF(H278>Experiencia3,Puntajes!$D$7,0)))))","v":""}]
[null,null,{"$f":"+'Capacidad Financiera'!B282","v":""},{"$f":"IF(ISERROR(VLOOKUP(C279,'Capacidad Financiera'!$B$12:$X$62720,2,0)),\"\",VLOOKUP(C279,'Capacidad Financiera'!$B$12:$X$3580,2,0))","v":0},{"$f":"IF(ISERROR(VLOOKUP(C279,'Capacidad Financiera'!$B$12:$X$62720,3,0)),\"\",VLOOKUP(C279,'Capacidad Financiera'!$B$12:$X$62720,3,0))","v":0},null,{"$f":"IF(OR(D279=\"\",E279=\"\",F279=\"\"),\"\",IF(C279<>\"\",IF(ISERROR(VLOOKUP($A$10,POA!$A$2:$D$25,2,0)),\"\",VLOOKUP($A$10,POA!$A$2:$D$25,2,0)),\"\"))","v":""},"",{"$f":"IF(OR(D279=\"\",E279=\"\",F279=\"\"),\"\",IF(AND(H279>0,H279<=Experiencia1),Puntajes!$D$4,IF(AND(H279>Experiencia1,H279<=Experiencia2),Puntajes!$D$5,IF(AND(H279>Experiencia2,H279<=Experiencia3),Puntajes!$D$6,IF(H279>Experiencia3,Puntajes!$D$7,0)))))","v":""}]
[null,null,{"$f":"+'Capacidad Financiera'!B283","v":""},{"$f":"IF(ISERROR(VLOOKUP(C280,'Capacidad Financiera'!$B$12:$X$62720,2,0)),\"\",VLOOKUP(C280,'Capacidad Financiera'!$B$12:$X$3580,2,0))","v":0},{"$f":"IF(ISERROR(VLOOKUP(C280,'Capacidad Financiera'!$B$12:$X$62720,3,0)),\"\",VLOOKUP(C280,'Capacidad Financiera'!$B$12:$X$62720,3,0))","v":0},null,{"$f":"IF(OR(D280=\"\",E280=\"\",F280=\"\"),\"\",IF(C280<>\"\",IF(ISERROR(VLOOKUP($A$10,POA!$A$2:$D$25,2,0)),\"\",VLOOKUP($A$10,POA!$A$2:$D$25,2,0)),\"\"))","v":""},"",{"$f":"IF(OR(D280=\"\",E280=\"\",F280=\"\"),\"\",IF(AND(H280>0,H280<=Experiencia1),Puntajes!$D$4,IF(AND(H280>Experiencia1,H280<=Experiencia2),Puntajes!$D$5,IF(AND(H280>Experiencia2,H280<=Experiencia3),Puntajes!$D$6,IF(H280>Experiencia3,Puntajes!$D$7,0)))))","v":""}]
[null,null,{"$f":"+'Capacidad Financiera'!B284","v":""},{"$f":"IF(ISERROR(VLOOKUP(C281,'Capacidad Financiera'!$B$12:$X$62720,2,0)),\"\",VLOOKUP(C281,'Capacidad Financiera'!$B$12:$X$3580,2,0))","v":0},{"$f":"IF(ISERROR(VLOOKUP(C281,'Capacidad Financiera'!$B$12:$X$62720,3,0)),\"\",VLOOKUP(C281,'Capacidad Financiera'!$B$12:$X$62720,3,0))","v":0},null,{"$f":"IF(OR(D281=\"\",E281=\"\",F281=\"\"),\"\",IF(C281<>\"\",IF(ISERROR(VLOOKUP($A$10,POA!$A$2:$D$25,2,0)),\"\",VLOOKUP($A$10,POA!$A$2:$D$25,2,0)),\"\"))","v":""},"",{"$f":"IF(OR(D281=\"\",E281=\"\",F281=\"\"),\"\",IF(AND(H281>0,H281<=Experiencia1),Puntajes!$D$4,IF(AND(H281>Experiencia1,H281<=Experiencia2),Puntajes!$D$5,IF(AND(H281>Experiencia2,H281<=Experiencia3),Puntajes!$D$6,IF(H281>Experiencia3,Puntajes!$D$7,0)))))","v":""}]
[null,null,{"$f":"+'Capacidad Financiera'!B285","v":""},{"$f":"IF(ISERROR(VLOOKUP(C282,'Capacidad Financiera'!$B$12:$X$62720,2,0)),\"\",VLOOKUP(C282,'Capacidad Financiera'!$B$12:$X$3580,2,0))","v":0},{"$f":"IF(ISERROR(VLOOKUP(C282,'Capacidad Financiera'!$B$12:$X$62720,3,0)),\"\",VLOOKUP(C282,'Capacidad Financiera'!$B$12:$X$62720,3,0))","v":0},null,{"$f":"IF(OR(D282=\"\",E282=\"\",F282=\"\"),\"\",IF(C282<>\"\",IF(ISERROR(VLOOKUP($A$10,POA!$A$2:$D$25,2,0)),\"\",VLOOKUP($A$10,POA!$A$2:$D$25,2,0)),\"\"))","v":""},"",{"$f":"IF(OR(D282=\"\",E282=\"\",F282=\"\"),\"\",IF(AND(H282>0,H282<=Experiencia1),Puntajes!$D$4,IF(AND(H282>Experiencia1,H282<=Experiencia2),Puntajes!$D$5,IF(AND(H282>Experiencia2,H282<=Experiencia3),Puntajes!$D$6,IF(H282>Experiencia3,Puntajes!$D$7,0)))))","v":""}]
[null,null,{"$f":"+'Capacidad Financiera'!B286","v":""},{"$f":"IF(ISERROR(VLOOKUP(C283,'Capacidad Financiera'!$B$12:$X$62720,2,0)),\"\",VLOOKUP(C283,'Capacidad Financiera'!$B$12:$X$3580,2,0))","v":0},{"$f":"IF(ISERROR(VLOOKUP(C283,'Capacidad Financiera'!$B$12:$X$62720,3,0)),\"\",VLOOKUP(C283,'Capacidad Financiera'!$B$12:$X$62720,3,0))","v":0},null,{"$f":"IF(OR(D283=\"\",E283=\"\",F283=\"\"),\"\",IF(C283<>\"\",IF(ISERROR(VLOOKUP($A$10,POA!$A$2:$D$25,2,0)),\"\",VLOOKUP($A$10,POA!$A$2:$D$25,2,0)),\"\"))","v":""},"",{"$f":"IF(OR(D283=\"\",E283=\"\",F283=\"\"),\"\",IF(AND(H283>0,H283<=Experiencia1),Puntajes!$D$4,IF(AND(H283>Experiencia1,H283<=Experiencia2),Puntajes!$D$5,IF(AND(H283>Experiencia2,H283<=Experiencia3),Puntajes!$D$6,IF(H283>Experiencia3,Puntajes!$D$7,0)))))","v":""}]
[null,null,26,{"$f":"IF(ISERROR(VLOOKUP(C284,'Capacidad Financiera'!$B$12:$X$62720,2,0)),\"\",VLOOKUP(C284,'Capacidad Financiera'!$B$12:$X$3580,2,0))","v":"UNION TEMPORAL MACROVIAS"},{"$f":"IF(ISERROR(VLOOKUP(C284,'Capacidad Financiera'!$B$12:$X$62720,3,0)),\"\",VLOOKUP(C284,'Capacidad Financiera'!$B$12:$X$62720,3,0))","v":1},null,{"$f":"IF(OR(D284=\"\",E284=\"\",F284=\"\"),\"\",IF(C285=\"\",IF(C284<>\"\",IF(ISERROR(VLOOKUP($A$10,POA!$A$2:$D$25,2,0)),\"\",VLOOKUP($A$10,POA!$A$2:$D$25,2,0)),\"\"),\"\"))","v":""},{"$f":"IF(OR(D284=\"\",E284=\"\",F284=\"\"),\"\",IF(C285=\"\",IF(C284<>\"\",F284/G284,\"\"),\"\"))","v":""},{"$f":"IF(C285=\"\",IF(F284=\"\",\"\",IF(AND(H284>0,H284<=Experiencia1),Puntajes!$D$4,IF(AND(H284>Experiencia1,H284<=Experiencia2),Puntajes!$D$5,IF(AND(H284>Experiencia2,H284<=Experiencia3),Puntajes!$D$6,IF(H284>Experiencia3,Puntajes!$D$7,0))))),\"\")","v":""}]
[null,null,{"$f":"+'Capacidad Financiera'!B288","v":26.1},{"$f":"IF(ISERROR(VLOOKUP(C285,'Capacidad Financiera'!$B$12:$X$62720,2,0)),\"\",VLOOKUP(C285,'Capacidad Financiera'!$B$12:$X$3580,2,0))","v":"SIBEL INGENIERIA S.A.S."},{"$f":"IF(ISERROR(VLOOKUP(C285,'Capacidad Financiera'!$B$12:$X$62720,3,0)),\"\",VLOOKUP(C285,'Capacidad Financiera'!$B$12:$X$62720,3,0))","v":0.34},3632048112,{"$f":"IF(OR(D285=\"\",E285=\"\",F285=\"\"),\"\",IF(C285<>\"\",IF(ISERROR(VLOOKUP($A$10,POA!$A$2:$D$25,2,0)),\"\",VLOOKUP($A$10,POA!$A$2:$D$25,2,0)),\"\"))","v":4167150295},{"$f":"IF(OR(D285=\"\",E285=\"\",F285=\"\"),\"\",IF(C285<>\"\",F285/(G285*E285),\"\"))","v":2.5635011196683566},{"$f":"IF(OR(D285=\"\",E285=\"\",F285=\"\"),\"\",IF(AND(H285>0,H285<=Experiencia1),Puntajes!$D$4,IF(AND(H285>Experiencia1,H285<=Experiencia2),Puntajes!$D$5,IF(AND(H285>Experiencia2,H285<=Experiencia3),Puntajes!$D$6,IF(H285>Experiencia3,Puntajes!$D$7,0)))))","v":60}]
[null,null,{"$f":"+'Capacidad Financiera'!B289","v":26.200000000000003},{"$f":"IF(ISERROR(VLOOKUP(C286,'Capacidad Financiera'!$B$12:$X$62720,2,0)),\"\",VLOOKUP(C286,'Capacidad Financiera'!$B$12:$X$3580,2,0))","v":"MILTON RIVERA RINCON"},{"$f":"IF(ISERROR(VLOOKUP(C286,'Capacidad Financiera'!$B$12:$X$62720,3,0)),\"\",VLOOKUP(C286,'Capacidad Financiera'!$B$12:$X$62720,3,0))","v":0.33},40307109119.199997,{"$f":"IF(OR(D286=\"\",E286=\"\",F286=\"\"),\"\",IF(C286<>\"\",IF(ISERROR(VLOOKUP($A$10,POA!$A$2:$D$25,2,0)),\"\",VLOOKUP($A$10,POA!$A$2:$D$25,2,0)),\"\"))","v":4167150295},{"$f":"IF(OR(D286=\"\",E286=\"\",F286=\"\"),\"\",IF(C286<>\"\",F286/(G286*E286),\"\"))","v":29.310859042742216},{"$f":"IF(OR(D286=\"\",E286=\"\",F286=\"\"),\"\",IF(AND(H286>0,H286<=Experiencia1),Puntajes!$D$4,IF(AND(H286>Experiencia1,H286<=Experiencia2),Puntajes!$D$5,IF(AND(H286>Experiencia2,H286<=Experiencia3),Puntajes!$D$6,IF(H286>Experiencia3,Puntajes!$D$7,0)))))","v":120}]
[null,null,{"$f":"+'Capacidad Financiera'!B290","v":26.300000000000004},{"$f":"IF(ISERROR(VLOOKUP(C287,'Capacidad Financiera'!$B$12:$X$62720,2,0)),\"\",VLOOKUP(C287,'Capacidad Financiera'!$B$12:$X$3580,2,0))","v":"YEBRAIL CADENA LOZANO"},{"$f":"IF(ISERROR(VLOOKUP(C287,'Capacidad Financiera'!$B$12:$X$62720,3,0)),\"\",VLOOKUP(C287,'Capacidad Financiera'!$B$12:$X$62720,3,0))","v":0.33},7076377985.6000004,{"$f":"IF(OR(D287=\"\",E287=\"\",F287=\"\"),\"\",IF(C287<>\"\",IF(ISERROR(VLOOKUP($A$10,POA!$A$2:$D$25,2,0)),\"\",VLOOKUP($A$10,POA!$A$2:$D$25,2,0)),\"\"))","v":4167150295},5.1458594327789493,{"$f":"IF(OR(D287=\"\",E287=\"\",F287=\"\"),\"\",IF(AND(H287>0,H287<=Experiencia1),Puntajes!$D$4,IF(AND(H287>Experiencia1,H287<=Experiencia2),Puntajes!$D$5,IF(AND(H287>Experiencia2,H287<=Experiencia3),Puntajes!$D$6,IF(H287>Experiencia3,Puntajes!$D$7,0)))))","v":80}]
[null,null,{"$f":"+'Capacidad Financiera'!B291","v":""},{"$f":"IF(ISERROR(VLOOKUP(C288,'Capacidad Financiera'!$B$12:$X$62720,2,0)),\"\",VLOOKUP(C288,'Capacidad Financiera'!$B$12:$X$3580,2,0))","v":0},{"$f":"IF(ISERROR(VLOOKUP(C288,'Capacidad Financiera'!$B$12:$X$62720,3,0)),\"\",VLOOKUP(C288,'Capacidad Financiera'!$B$12:$X$62720,3,0))","v":0},null,{"$f":"IF(OR(D288=\"\",E288=\"\",F288=\"\"),\"\",IF(C288<>\"\",IF(ISERROR(VLOOKUP($A$10,POA!$A$2:$D$25,2,0)),\"\",VLOOKUP($A$10,POA!$A$2:$D$25,2,0)),\"\"))","v":""},"",{"$f":"IF(OR(D288=\"\",E288=\"\",F288=\"\"),\"\",IF(AND(H288>0,H288<=Experiencia1),Puntajes!$D$4,IF(AND(H288>Experiencia1,H288<=Experiencia2),Puntajes!$D$5,IF(AND(H288>Experiencia2,H288<=Experiencia3),Puntajes!$D$6,IF(H288>Experiencia3,Puntajes!$D$7,0)))))","v":""}]
[null,null,{"$f":"+'Capacidad Financiera'!B292","v":""},{"$f":"IF(ISERROR(VLOOKUP(C289,'Capacidad Financiera'!$B$12:$X$62720,2,0)),\"\",VLOOKUP(C289,'Capacidad Financiera'!$B$12:$X$3580,2,0))","v":0},{"$f":"IF(ISERROR(VLOOKUP(C289,'Capacidad Financiera'!$B$12:$X$62720,3,0)),\"\",VLOOKUP(C289,'Capacidad Financiera'!$B$12:$X$62720,3,0))","v":0},null,{"$f":"IF(OR(D289=\"\",E289=\"\",F289=\"\"),\"\",IF(C289<>\"\",IF(ISERROR(VLOOKUP($A$10,POA!$A$2:$D$25,2,0)),\"\",VLOOKUP($A$10,POA!$A$2:$D$25,2,0)),\"\"))","v":""},"",{"$f":"IF(OR(D289=\"\",E289=\"\",F289=\"\"),\"\",IF(AND(H289>0,H289<=Experiencia1),Puntajes!$D$4,IF(AND(H289>Experiencia1,H289<=Experiencia2),Puntajes!$D$5,IF(AND(H289>Experiencia2,H289<=Experiencia3),Puntajes!$D$6,IF(H289>Experiencia3,Puntajes!$D$7,0)))))","v":""}]
[null,null,{"$f":"+'Capacidad Financiera'!B293","v":""},{"$f":"IF(ISERROR(VLOOKUP(C290,'Capacidad Financiera'!$B$12:$X$62720,2,0)),\"\",VLOOKUP(C290,'Capacidad Financiera'!$B$12:$X$3580,2,0))","v":0},{"$f":"IF(ISERROR(VLOOKUP(C290,'Capacidad Financiera'!$B$12:$X$62720,3,0)),\"\",VLOOKUP(C290,'Capacidad Financiera'!$B$12:$X$62720,3,0))","v":0},null,{"$f":"IF(OR(D290=\"\",E290=\"\",F290=\"\"),\"\",IF(C290<>\"\",IF(ISERROR(VLOOKUP($A$10,POA!$A$2:$D$25,2,0)),\"\",VLOOKUP($A$10,POA!$A$2:$D$25,2,0)),\"\"))","v":""},"",{"$f":"IF(OR(D290=\"\",E290=\"\",F290=\"\"),\"\",IF(AND(H290>0,H290<=Experiencia1),Puntajes!$D$4,IF(AND(H290>Experiencia1,H290<=Experiencia2),Puntajes!$D$5,IF(AND(H290>Experiencia2,H290<=Experiencia3),Puntajes!$D$6,IF(H290>Experiencia3,Puntajes!$D$7,0)))))","v":""}]
[null,null,{"$f":"+'Capacidad Financiera'!B294","v":""},{"$f":"IF(ISERROR(VLOOKUP(C291,'Capacidad Financiera'!$B$12:$X$62720,2,0)),\"\",VLOOKUP(C291,'Capacidad Financiera'!$B$12:$X$3580,2,0))","v":0},{"$f":"IF(ISERROR(VLOOKUP(C291,'Capacidad Financiera'!$B$12:$X$62720,3,0)),\"\",VLOOKUP(C291,'Capacidad Financiera'!$B$12:$X$62720,3,0))","v":0},null,{"$f":"IF(OR(D291=\"\",E291=\"\",F291=\"\"),\"\",IF(C291<>\"\",IF(ISERROR(VLOOKUP($A$10,POA!$A$2:$D$25,2,0)),\"\",VLOOKUP($A$10,POA!$A$2:$D$25,2,0)),\"\"))","v":""},"",{"$f":"IF(OR(D291=\"\",E291=\"\",F291=\"\"),\"\",IF(AND(H291>0,H291<=Experiencia1),Puntajes!$D$4,IF(AND(H291>Experiencia1,H291<=Experiencia2),Puntajes!$D$5,IF(AND(H291>Experiencia2,H291<=Experiencia3),Puntajes!$D$6,IF(H291>Experiencia3,Puntajes!$D$7,0)))))","v":""}]
[null,null,{"$f":"+'Capacidad Financiera'!B295","v":""},{"$f":"IF(ISERROR(VLOOKUP(C292,'Capacidad Financiera'!$B$12:$X$62720,2,0)),\"\",VLOOKUP(C292,'Capacidad Financiera'!$B$12:$X$3580,2,0))","v":0},{"$f":"IF(ISERROR(VLOOKUP(C292,'Capacidad Financiera'!$B$12:$X$62720,3,0)),\"\",VLOOKUP(C292,'Capacidad Financiera'!$B$12:$X$62720,3,0))","v":0},null,{"$f":"IF(OR(D292=\"\",E292=\"\",F292=\"\"),\"\",IF(C292<>\"\",IF(ISERROR(VLOOKUP($A$10,POA!$A$2:$D$25,2,0)),\"\",VLOOKUP($A$10,POA!$A$2:$D$25,2,0)),\"\"))","v":""},"",{"$f":"IF(OR(D292=\"\",E292=\"\",F292=\"\"),\"\",IF(AND(H292>0,H292<=Experiencia1),Puntajes!$D$4,IF(AND(H292>Experiencia1,H292<=Experiencia2),Puntajes!$D$5,IF(AND(H292>Experiencia2,H292<=Experiencia3),Puntajes!$D$6,IF(H292>Experiencia3,Puntajes!$D$7,0)))))","v":""}]
[null,null,{"$f":"+'Capacidad Financiera'!B296","v":""},{"$f":"IF(ISERROR(VLOOKUP(C293,'Capacidad Financiera'!$B$12:$X$62720,2,0)),\"\",VLOOKUP(C293,'Capacidad Financiera'!$B$12:$X$3580,2,0))","v":0},{"$f":"IF(ISERROR(VLOOKUP(C293,'Capacidad Financiera'!$B$12:$X$62720,3,0)),\"\",VLOOKUP(C293,'Capacidad Financiera'!$B$12:$X$62720,3,0))","v":0},null,{"$f":"IF(OR(D293=\"\",E293=\"\",F293=\"\"),\"\",IF(C293<>\"\",IF(ISERROR(VLOOKUP($A$10,POA!$A$2:$D$25,2,0)),\"\",VLOOKUP($A$10,POA!$A$2:$D$25,2,0)),\"\"))","v":""},"",{"$f":"IF(OR(D293=\"\",E293=\"\",F293=\"\"),\"\",IF(AND(H293>0,H293<=Experiencia1),Puntajes!$D$4,IF(AND(H293>Experiencia1,H293<=Experiencia2),Puntajes!$D$5,IF(AND(H293>Experiencia2,H293<=Experiencia3),Puntajes!$D$6,IF(H293>Experiencia3,Puntajes!$D$7,0)))))","v":""}]
[null,null,{"$f":"+'Capacidad Financiera'!B297","v":""},{"$f":"IF(ISERROR(VLOOKUP(C294,'Capacidad Financiera'!$B$12:$X$62720,2,0)),\"\",VLOOKUP(C294,'Capacidad Financiera'!$B$12:$X$3580,2,0))","v":0},{"$f":"IF(ISERROR(VLOOKUP(C294,'Capacidad Financiera'!$B$12:$X$62720,3,0)),\"\",VLOOKUP(C294,'Capacidad Financiera'!$B$12:$X$62720,3,0))","v":0},null,{"$f":"IF(OR(D294=\"\",E294=\"\",F294=\"\"),\"\",IF(C294<>\"\",IF(ISERROR(VLOOKUP($A$10,POA!$A$2:$D$25,2,0)),\"\",VLOOKUP($A$10,POA!$A$2:$D$25,2,0)),\"\"))","v":""},"",{"$f":"IF(OR(D294=\"\",E294=\"\",F294=\"\"),\"\",IF(AND(H294>0,H294<=Experiencia1),Puntajes!$D$4,IF(AND(H294>Experiencia1,H294<=Experiencia2),Puntajes!$D$5,IF(AND(H294>Experiencia2,H294<=Experiencia3),Puntajes!$D$6,IF(H294>Experiencia3,Puntajes!$D$7,0)))))","v":""}]
[null,null,27,{"$f":"IF(ISERROR(VLOOKUP(C295,'Capacidad Financiera'!$B$12:$X$62720,2,0)),\"\",VLOOKUP(C295,'Capacidad Financiera'!$B$12:$X$3580,2,0))","v":"CONSORCIO LOS PATIOS 2014"},{"$f":"IF(ISERROR(VLOOKUP(C295,'Capacidad Financiera'!$B$12:$X$62720,3,0)),\"\",VLOOKUP(C295,'Capacidad Financiera'!$B$12:$X$62720,3,0))","v":1},null,{"$f":"IF(OR(D295=\"\",E295=\"\",F295=\"\"),\"\",IF(C296=\"\",IF(C295<>\"\",IF(ISERROR(VLOOKUP($A$10,POA!$A$2:$D$25,2,0)),\"\",VLOOKUP($A$10,POA!$A$2:$D$25,2,0)),\"\"),\"\"))","v":""},{"$f":"IF(OR(D295=\"\",E295=\"\",F295=\"\"),\"\",IF(C296=\"\",IF(C295<>\"\",F295/G295,\"\"),\"\"))","v":""},{"$f":"IF(C296=\"\",IF(F295=\"\",\"\",IF(AND(H295>0,H295<=Experiencia1),Puntajes!$D$4,IF(AND(H295>Experiencia1,H295<=Experiencia2),Puntajes!$D$5,IF(AND(H295>Experiencia2,H295<=Experiencia3),Puntajes!$D$6,IF(H295>Experiencia3,Puntajes!$D$7,0))))),\"\")","v":""}]
[null,null,{"$f":"+'Capacidad Financiera'!B299","v":27.1},{"$f":"IF(ISERROR(VLOOKUP(C296,'Capacidad Financiera'!$B$12:$X$62720,2,0)),\"\",VLOOKUP(C296,'Capacidad Financiera'!$B$12:$X$3580,2,0))","v":"S Y M INGENIERIA S.A.S."},{"$f":"IF(ISERROR(VLOOKUP(C296,'Capacidad Financiera'!$B$12:$X$62720,3,0)),\"\",VLOOKUP(C296,'Capacidad Financiera'!$B$12:$X$62720,3,0))","v":0.4},98575244460,{"$f":"IF(OR(D296=\"\",E296=\"\",F296=\"\"),\"\",IF(C296<>\"\",IF(ISERROR(VLOOKUP($A$10,POA!$A$2:$D$25,2,0)),\"\",VLOOKUP($A$10,POA!$A$2:$D$25,2,0)),\"\"))","v":4167150295},{"$f":"IF(OR(D296=\"\",E296=\"\",F296=\"\"),\"\",IF(C296<>\"\",F296/(G296*E296),\"\"))","v":59.138282448245604},{"$f":"IF(OR(D296=\"\",E296=\"\",F296=\"\"),\"\",IF(AND(H296>0,H296<=Experiencia1),Puntajes!$D$4,IF(AND(H296>Experiencia1,H296<=Experiencia2),Puntajes!$D$5,IF(AND(H296>Experiencia2,H296<=Experiencia3),Puntajes!$D$6,IF(H296>Experiencia3,Puntajes!$D$7,0)))))","v":120}]
[null,null,{"$f":"+'Capacidad Financiera'!B300","v":27.200000000000003},{"$f":"IF(ISERROR(VLOOKUP(C297,'Capacidad Financiera'!$B$12:$X$62720,2,0)),\"\",VLOOKUP(C297,'Capacidad Financiera'!$B$12:$X$3580,2,0))","v":"MACIAS MORA Y CIA. S. EN C.S."},{"$f":"IF(ISERROR(VLOOKUP(C297,'Capacidad Financiera'!$B$12:$X$62720,3,0)),\"\",VLOOKUP(C297,'Capacidad Financiera'!$B$12:$X$62720,3,0))","v":0.4},3233190144.8000002,{"$f":"IF(OR(D297=\"\",E297=\"\",F297=\"\"),\"\",IF(C297<>\"\",IF(ISERROR(VLOOKUP($A$10,POA!$A$2:$D$25,2,0)),\"\",VLOOKUP($A$10,POA!$A$2:$D$25,2,0)),\"\"))","v":4167150295},{"$f":"IF(OR(D297=\"\",E297=\"\",F297=\"\"),\"\",IF(C297<>\"\",F297/(G297*E297),\"\"))","v":1.9396889456323294},{"$f":"IF(OR(D297=\"\",E297=\"\",F297=\"\"),\"\",IF(AND(H297>0,H297<=Experiencia1),Puntajes!$D$4,IF(AND(H297>Experiencia1,H297<=Experiencia2),Puntajes!$D$5,IF(AND(H297>Experiencia2,H297<=Experiencia3),Puntajes!$D$6,IF(H297>Experiencia3,Puntajes!$D$7,0)))))","v":60}]
[null,null,{"$f":"+'Capacidad Financiera'!B301","v":27.300000000000004},{"$f":"IF(ISERROR(VLOOKUP(C298,'Capacidad Financiera'!$B$12:$X$62720,2,0)),\"\",VLOOKUP(C298,'Capacidad Financiera'!$B$12:$X$3580,2,0))","v":"ESTEBAN MACIAS VARGAS"},{"$f":"IF(ISERROR(VLOOKUP(C298,'Capacidad Financiera'!$B$12:$X$62720,3,0)),\"\",VLOOKUP(C298,'Capacidad Financiera'!$B$12:$X$62720,3,0))","v":0.2},5595207895.1999998,{"$f":"IF(OR(D298=\"\",E298=\"\",F298=\"\"),\"\",IF(C298<>\"\",IF(ISERROR(VLOOKUP($A$10,POA!$A$2:$D$25,2,0)),\"\",VLOOKUP($A$10,POA!$A$2:$D$25,2,0)),\"\"))","v":4167150295},6.7134702363788872,{"$f":"IF(OR(D298=\"\",E298=\"\",F298=\"\"),\"\",IF(AND(H298>0,H298<=Experiencia1),Puntajes!$D$4,IF(AND(H298>Experiencia1,H298<=Experiencia2),Puntajes!$D$5,IF(AND(H298>Experiencia2,H298<=Experiencia3),Puntajes!$D$6,IF(H298>Experiencia3,Puntajes!$D$7,0)))))","v":100}]
[null,null,{"$f":"+'Capacidad Financiera'!B302","v":""},{"$f":"IF(ISERROR(VLOOKUP(C299,'Capacidad Financiera'!$B$12:$X$62720,2,0)),\"\",VLOOKUP(C299,'Capacidad Financiera'!$B$12:$X$3580,2,0))","v":0},{"$f":"IF(ISERROR(VLOOKUP(C299,'Capacidad Financiera'!$B$12:$X$62720,3,0)),\"\",VLOOKUP(C299,'Capacidad Financiera'!$B$12:$X$62720,3,0))","v":0},null,{"$f":"IF(OR(D299=\"\",E299=\"\",F299=\"\"),\"\",IF(C299<>\"\",IF(ISERROR(VLOOKUP($A$10,POA!$A$2:$D$25,2,0)),\"\",VLOOKUP($A$10,POA!$A$2:$D$25,2,0)),\"\"))","v":""},"",{"$f":"IF(OR(D299=\"\",E299=\"\",F299=\"\"),\"\",IF(AND(H299>0,H299<=Experiencia1),Puntajes!$D$4,IF(AND(H299>Experiencia1,H299<=Experiencia2),Puntajes!$D$5,IF(AND(H299>Experiencia2,H299<=Experiencia3),Puntajes!$D$6,IF(H299>Experiencia3,Puntajes!$D$7,0)))))","v":""}]
[null,null,{"$f":"+'Capacidad Financiera'!B303","v":""},{"$f":"IF(ISERROR(VLOOKUP(C300,'Capacidad Financiera'!$B$12:$X$62720,2,0)),\"\",VLOOKUP(C300,'Capacidad Financiera'!$B$12:$X$3580,2,0))","v":0},{"$f":"IF(ISERROR(VLOOKUP(C300,'Capacidad Financiera'!$B$12:$X$62720,3,0)),\"\",VLOOKUP(C300,'Capacidad Financiera'!$B$12:$X$62720,3,0))","v":0},null,{"$f":"IF(OR(D300=\"\",E300=\"\",F300=\"\"),\"\",IF(C300<>\"\",IF(ISERROR(VLOOKUP($A$10,POA!$A$2:$D$25,2,0)),\"\",VLOOKUP($A$10,POA!$A$2:$D$25,2,0)),\"\"))","v":""},"",{"$f":"IF(OR(D300=\"\",E300=\"\",F300=\"\"),\"\",IF(AND(H300>0,H300<=Experiencia1),Puntajes!$D$4,IF(AND(H300>Experiencia1,H300<=Experiencia2),Puntajes!$D$5,IF(AND(H300>Experiencia2,H300<=Experiencia3),Puntajes!$D$6,IF(H300>Experiencia3,Puntajes!$D$7,0)))))","v":""}]
[null,null,{"$f":"+'Capacidad Financiera'!B304","v":""},{"$f":"IF(ISERROR(VLOOKUP(C301,'Capacidad Financiera'!$B$12:$X$62720,2,0)),\"\",VLOOKUP(C301,'Capacidad Financiera'!$B$12:$X$3580,2,0))","v":0},{"$f":"IF(ISERROR(VLOOKUP(C301,'Capacidad Financiera'!$B$12:$X$62720,3,0)),\"\",VLOOKUP(C301,'Capacidad Financiera'!$B$12:$X$62720,3,0))","v":0},null,{"$f":"IF(OR(D301=\"\",E301=\"\",F301=\"\"),\"\",IF(C301<>\"\",IF(ISERROR(VLOOKUP($A$10,POA!$A$2:$D$25,2,0)),\"\",VLOOKUP($A$10,POA!$A$2:$D$25,2,0)),\"\"))","v":""},"",{"$f":"IF(OR(D301=\"\",E301=\"\",F301=\"\"),\"\",IF(AND(H301>0,H301<=Experiencia1),Puntajes!$D$4,IF(AND(H301>Experiencia1,H301<=Experiencia2),Puntajes!$D$5,IF(AND(H301>Experiencia2,H301<=Experiencia3),Puntajes!$D$6,IF(H301>Experiencia3,Puntajes!$D$7,0)))))","v":""}]
[null,null,{"$f":"+'Capacidad Financiera'!B305","v":""},{"$f":"IF(ISERROR(VLOOKUP(C302,'Capacidad Financiera'!$B$12:$X$62720,2,0)),\"\",VLOOKUP(C302,'Capacidad Financiera'!$B$12:$X$3580,2,0))","v":0},{"$f":"IF(ISERROR(VLOOKUP(C302,'Capacidad Financiera'!$B$12:$X$62720,3,0)),\"\",VLOOKUP(C302,'Capacidad Financiera'!$B$12:$X$62720,3,0))","v":0},null,{"$f":"IF(OR(D302=\"\",E302=\"\",F302=\"\"),\"\",IF(C302<>\"\",IF(ISERROR(VLOOKUP($A$10,POA!$A$2:$D$25,2,0)),\"\",VLOOKUP($A$10,POA!$A$2:$D$25,2,0)),\"\"))","v":""},"",{"$f":"IF(OR(D302=\"\",E302=\"\",F302=\"\"),\"\",IF(AND(H302>0,H302<=Experiencia1),Puntajes!$D$4,IF(AND(H302>Experiencia1,H302<=Experiencia2),Puntajes!$D$5,IF(AND(H302>Experiencia2,H302<=Experiencia3),Puntajes!$D$6,IF(H302>Experiencia3,Puntajes!$D$7,0)))))","v":""}]
[null,null,{"$f":"+'Capacidad Financiera'!B306","v":""},{"$f":"IF(ISERROR(VLOOKUP(C303,'Capacidad Financiera'!$B$12:$X$62720,2,0)),\"\",VLOOKUP(C303,'Capacidad Financiera'!$B$12:$X$3580,2,0))","v":0},{"$f":"IF(ISERROR(VLOOKUP(C303,'Capacidad Financiera'!$B$12:$X$62720,3,0)),\"\",VLOOKUP(C303,'Capacidad Financiera'!$B$12:$X$62720,3,0))","v":0},null,{"$f":"IF(OR(D303=\"\",E303=\"\",F303=\"\"),\"\",IF(C303<>\"\",IF(ISERROR(VLOOKUP($A$10,POA!$A$2:$D$25,2,0)),\"\",VLOOKUP($A$10,POA!$A$2:$D$25,2,0)),\"\"))","v":""},"",{"$f":"IF(OR(D303=\"\",E303=\"\",F303=\"\"),\"\",IF(AND(H303>0,H303<=Experiencia1),Puntajes!$D$4,IF(AND(H303>Experiencia1,H303<=Experiencia2),Puntajes!$D$5,IF(AND(H303>Experiencia2,H303<=Experiencia3),Puntajes!$D$6,IF(H303>Experiencia3,Puntajes!$D$7,0)))))","v":""}]
[null,null,{"$f":"+'Capacidad Financiera'!B307","v":""},{"$f":"IF(ISERROR(VLOOKUP(C304,'Capacidad Financiera'!$B$12:$X$62720,2,0)),\"\",VLOOKUP(C304,'Capacidad Financiera'!$B$12:$X$3580,2,0))","v":0},{"$f":"IF(ISERROR(VLOOKUP(C304,'Capacidad Financiera'!$B$12:$X$62720,3,0)),\"\",VLOOKUP(C304,'Capacidad Financiera'!$B$12:$X$62720,3,0))","v":0},null,{"$f":"IF(OR(D304=\"\",E304=\"\",F304=\"\"),\"\",IF(C304<>\"\",IF(ISERROR(VLOOKUP($A$10,POA!$A$2:$D$25,2,0)),\"\",VLOOKUP($A$10,POA!$A$2:$D$25,2,0)),\"\"))","v":""},"",{"$f":"IF(OR(D304=\"\",E304=\"\",F304=\"\"),\"\",IF(AND(H304>0,H304<=Experiencia1),Puntajes!$D$4,IF(AND(H304>Experiencia1,H304<=Experiencia2),Puntajes!$D$5,IF(AND(H304>Experiencia2,H304<=Experiencia3),Puntajes!$D$6,IF(H304>Experiencia3,Puntajes!$D$7,0)))))","v":""}]
[null,null,{"$f":"+'Capacidad Financiera'!B308","v":""},{"$f":"IF(ISERROR(VLOOKUP(C305,'Capacidad Financiera'!$B$12:$X$62720,2,0)),\"\",VLOOKUP(C305,'Capacidad Financiera'!$B$12:$X$3580,2,0))","v":0},{"$f":"IF(ISERROR(VLOOKUP(C305,'Capacidad Financiera'!$B$12:$X$62720,3,0)),\"\",VLOOKUP(C305,'Capacidad Financiera'!$B$12:$X$62720,3,0))","v":0},null,{"$f":"IF(OR(D305=\"\",E305=\"\",F305=\"\"),\"\",IF(C305<>\"\",IF(ISERROR(VLOOKUP($A$10,POA!$A$2:$D$25,2,0)),\"\",VLOOKUP($A$10,POA!$A$2:$D$25,2,0)),\"\"))","v":""},"",{"$f":"IF(OR(D305=\"\",E305=\"\",F305=\"\"),\"\",IF(AND(H305>0,H305<=Experiencia1),Puntajes!$D$4,IF(AND(H305>Experiencia1,H305<=Experiencia2),Puntajes!$D$5,IF(AND(H305>Experiencia2,H305<=Experiencia3),Puntajes!$D$6,IF(H305>Experiencia3,Puntajes!$D$7,0)))))","v":""}]
[null,null,28,{"$f":"IF(ISERROR(VLOOKUP(C306,'Capacidad Financiera'!$B$12:$X$62720,2,0)),\"\",VLOOKUP(C306,'Capacidad Financiera'!$B$12:$X$3580,2,0))","v":"SOFAN INGENIERIA S.A.S."},{"$f":"IF(ISERROR(VLOOKUP(C306,'Capacidad Financiera'!$B$12:$X$62720,3,0)),\"\",VLOOKUP(C306,'Capacidad Financiera'!$B$12:$X$62720,3,0))","v":1},null,{"$f":"IF(OR(D306=\"\",E306=\"\",F306=\"\"),\"\",IF(C307=\"\",IF(C306<>\"\",IF(ISERROR(VLOOKUP($A$10,POA!$A$2:$D$25,2,0)),\"\",VLOOKUP($A$10,POA!$A$2:$D$25,2,0)),\"\"),\"\"))","v":""},{"$f":"IF(OR(D306=\"\",E306=\"\",F306=\"\"),\"\",IF(C307=\"\",IF(C306<>\"\",F306/G306,\"\"),\"\"))","v":""},{"$f":"IF(C307=\"\",IF(F306=\"\",\"\",IF(AND(H306>0,H306<=Experiencia1),Puntajes!$D$4,IF(AND(H306>Experiencia1,H306<=Experiencia2),Puntajes!$D$5,IF(AND(H306>Experiencia2,H306<=Experiencia3),Puntajes!$D$6,IF(H306>Experiencia3,Puntajes!$D$7,0))))),\"\")","v":""}]
[null,null,{"$f":"+'Capacidad Financiera'!B310","v":28.1},{"$f":"IF(ISERROR(VLOOKUP(C307,'Capacidad Financiera'!$B$12:$X$62720,2,0)),\"\",VLOOKUP(C307,'Capacidad Financiera'!$B$12:$X$3580,2,0))","v":"SOFAN INGENIERIA S.A.S."},{"$f":"IF(ISERROR(VLOOKUP(C307,'Capacidad Financiera'!$B$12:$X$62720,3,0)),\"\",VLOOKUP(C307,'Capacidad Financiera'!$B$12:$X$62720,3,0))","v":1},63516127012.800003,{"$f":"IF(OR(D307=\"\",E307=\"\",F307=\"\"),\"\",IF(C307<>\"\",IF(ISERROR(VLOOKUP($A$10,POA!$A$2:$D$25,2,0)),\"\",VLOOKUP($A$10,POA!$A$2:$D$25,2,0)),\"\"))","v":4167150295},{"$f":"IF(OR(D307=\"\",E307=\"\",F307=\"\"),\"\",IF(C307<>\"\",F307/(G307*E307),\"\"))","v":15.242101320178087},{"$f":"IF(OR(D307=\"\",E307=\"\",F307=\"\"),\"\",IF(AND(H307>0,H307<=Experiencia1),Puntajes!$D$4,IF(AND(H307>Experiencia1,H307<=Experiencia2),Puntajes!$D$5,IF(AND(H307>Experiencia2,H307<=Experiencia3),Puntajes!$D$6,IF(H307>Experiencia3,Puntajes!$D$7,0)))))","v":120}]
[null,null,{"$f":"+'Capacidad Financiera'!B311","v":""},{"$f":"IF(ISERROR(VLOOKUP(C308,'Capacidad Financiera'!$B$12:$X$62720,2,0)),\"\",VLOOKUP(C308,'Capacidad Financiera'!$B$12:$X$3580,2,0))","v":0},{"$f":"IF(ISERROR(VLOOKUP(C308,'Capacidad Financiera'!$B$12:$X$62720,3,0)),\"\",VLOOKUP(C308,'Capacidad Financiera'!$B$12:$X$62720,3,0))","v":0},null,{"$f":"IF(OR(D308=\"\",E308=\"\",F308=\"\"),\"\",IF(C308<>\"\",IF(ISERROR(VLOOKUP($A$10,POA!$A$2:$D$25,2,0)),\"\",VLOOKUP($A$10,POA!$A$2:$D$25,2,0)),\"\"))","v":""},{"$f":"IF(OR(D308=\"\",E308=\"\",F308=\"\"),\"\",IF(C308<>\"\",F308/(G308*E308),\"\"))","v":""},{"$f":"IF(OR(D308=\"\",E308=\"\",F308=\"\"),\"\",IF(AND(H308>0,H308<=Experiencia1),Puntajes!$D$4,IF(AND(H308>Experiencia1,H308<=Experiencia2),Puntajes!$D$5,IF(AND(H308>Experiencia2,H308<=Experiencia3),Puntajes!$D$6,IF(H308>Experiencia3,Puntajes!$D$7,0)))))","v":""}]
[null,null,{"$f":"+'Capacidad Financiera'!B312","v":""},{"$f":"IF(ISERROR(VLOOKUP(C309,'Capacidad Financiera'!$B$12:$X$62720,2,0)),\"\",VLOOKUP(C309,'Capacidad Financiera'!$B$12:$X$3580,2,0))","v":0},{"$f":"IF(ISERROR(VLOOKUP(C309,'Capacidad Financiera'!$B$12:$X$62720,3,0)),\"\",VLOOKUP(C309,'Capacidad Financiera'!$B$12:$X$62720,3,0))","v":0},null,{"$f":"IF(OR(D309=\"\",E309=\"\",F309=\"\"),\"\",IF(C309<>\"\",IF(ISERROR(VLOOKUP($A$10,POA!$A$2:$D$25,2,0)),\"\",VLOOKUP($A$10,POA!$A$2:$D$25,2,0)),\"\"))","v":""},"",{"$f":"IF(OR(D309=\"\",E309=\"\",F309=\"\"),\"\",IF(AND(H309>0,H309<=Experiencia1),Puntajes!$D$4,IF(AND(H309>Experiencia1,H309<=Experiencia2),Puntajes!$D$5,IF(AND(H309>Experiencia2,H309<=Experiencia3),Puntajes!$D$6,IF(H309>Experiencia3,Puntajes!$D$7,0)))))","v":""}]
[null,null,{"$f":"+'Capacidad Financiera'!B313","v":""},{"$f":"IF(ISERROR(VLOOKUP(C310,'Capacidad Financiera'!$B$12:$X$62720,2,0)),\"\",VLOOKUP(C310,'Capacidad Financiera'!$B$12:$X$3580,2,0))","v":0},{"$f":"IF(ISERROR(VLOOKUP(C310,'Capacidad Financiera'!$B$12:$X$62720,3,0)),\"\",VLOOKUP(C310,'Capacidad Financiera'!$B$12:$X$62720,3,0))","v":0},null,{"$f":"IF(OR(D310=\"\",E310=\"\",F310=\"\"),\"\",IF(C310<>\"\",IF(ISERROR(VLOOKUP($A$10,POA!$A$2:$D$25,2,0)),\"\",VLOOKUP($A$10,POA!$A$2:$D$25,2,0)),\"\"))","v":""},"",{"$f":"IF(OR(D310=\"\",E310=\"\",F310=\"\"),\"\",IF(AND(H310>0,H310<=Experiencia1),Puntajes!$D$4,IF(AND(H310>Experiencia1,H310<=Experiencia2),Puntajes!$D$5,IF(AND(H310>Experiencia2,H310<=Experiencia3),Puntajes!$D$6,IF(H310>Experiencia3,Puntajes!$D$7,0)))))","v":""}]
[null,null,{"$f":"+'Capacidad Financiera'!B314","v":""},{"$f":"IF(ISERROR(VLOOKUP(C311,'Capacidad Financiera'!$B$12:$X$62720,2,0)),\"\",VLOOKUP(C311,'Capacidad Financiera'!$B$12:$X$3580,2,0))","v":0},{"$f":"IF(ISERROR(VLOOKUP(C311,'Capacidad Financiera'!$B$12:$X$62720,3,0)),\"\",VLOOKUP(C311,'Capacidad Financiera'!$B$12:$X$62720,3,0))","v":0},null,{"$f":"IF(OR(D311=\"\",E311=\"\",F311=\"\"),\"\",IF(C311<>\"\",IF(ISERROR(VLOOKUP($A$10,POA!$A$2:$D$25,2,0)),\"\",VLOOKUP($A$10,POA!$A$2:$D$25,2,0)),\"\"))","v":""},"",{"$f":"IF(OR(D311=\"\",E311=\"\",F311=\"\"),\"\",IF(AND(H311>0,H311<=Experiencia1),Puntajes!$D$4,IF(AND(H311>Experiencia1,H311<=Experiencia2),Puntajes!$D$5,IF(AND(H311>Experiencia2,H311<=Experiencia3),Puntajes!$D$6,IF(H311>Experiencia3,Puntajes!$D$7,0)))))","v":""}]
[null,null,{"$f":"+'Capacidad Financiera'!B315","v":""},{"$f":"IF(ISERROR(VLOOKUP(C312,'Capacidad Financiera'!$B$12:$X$62720,2,0)),\"\",VLOOKUP(C312,'Capacidad Financiera'!$B$12:$X$3580,2,0))","v":0},{"$f":"IF(ISERROR(VLOOKUP(C312,'Capacidad Financiera'!$B$12:$X$62720,3,0)),\"\",VLOOKUP(C312,'Capacidad Financiera'!$B$12:$X$62720,3,0))","v":0},null,{"$f":"IF(OR(D312=\"\",E312=\"\",F312=\"\"),\"\",IF(C312<>\"\",IF(ISERROR(VLOOKUP($A$10,POA!$A$2:$D$25,2,0)),\"\",VLOOKUP($A$10,POA!$A$2:$D$25,2,0)),\"\"))","v":""},"",{"$f":"IF(OR(D312=\"\",E312=\"\",F312=\"\"),\"\",IF(AND(H312>0,H312<=Experiencia1),Puntajes!$D$4,IF(AND(H312>Experiencia1,H312<=Experiencia2),Puntajes!$D$5,IF(AND(H312>Experiencia2,H312<=Experiencia3),Puntajes!$D$6,IF(H312>Experiencia3,Puntajes!$D$7,0)))))","v":""}]
[null,null,{"$f":"+'Capacidad Financiera'!B316","v":""},{"$f":"IF(ISERROR(VLOOKUP(C313,'Capacidad Financiera'!$B$12:$X$62720,2,0)),\"\",VLOOKUP(C313,'Capacidad Financiera'!$B$12:$X$3580,2,0))","v":0},{"$f":"IF(ISERROR(VLOOKUP(C313,'Capacidad Financiera'!$B$12:$X$62720,3,0)),\"\",VLOOKUP(C313,'Capacidad Financiera'!$B$12:$X$62720,3,0))","v":0},null,{"$f":"IF(OR(D313=\"\",E313=\"\",F313=\"\"),\"\",IF(C313<>\"\",IF(ISERROR(VLOOKUP($A$10,POA!$A$2:$D$25,2,0)),\"\",VLOOKUP($A$10,POA!$A$2:$D$25,2,0)),\"\"))","v":""},"",{"$f":"IF(OR(D313=\"\",E313=\"\",F313=\"\"),\"\",IF(AND(H313>0,H313<=Experiencia1),Puntajes!$D$4,IF(AND(H313>Experiencia1,H313<=Experiencia2),Puntajes!$D$5,IF(AND(H313>Experiencia2,H313<=Experiencia3),Puntajes!$D$6,IF(H313>Experiencia3,Puntajes!$D$7,0)))))","v":""}]
[null,null,{"$f":"+'Capacidad Financiera'!B317","v":""},{"$f":"IF(ISERROR(VLOOKUP(C314,'Capacidad Financiera'!$B$12:$X$62720,2,0)),\"\",VLOOKUP(C314,'Capacidad Financiera'!$B$12:$X$3580,2,0))","v":0},{"$f":"IF(ISERROR(VLOOKUP(C314,'Capacidad Financiera'!$B$12:$X$62720,3,0)),\"\",VLOOKUP(C314,'Capacidad Financiera'!$B$12:$X$62720,3,0))","v":0},null,{"$f":"IF(OR(D314=\"\",E314=\"\",F314=\"\"),\"\",IF(C314<>\"\",IF(ISERROR(VLOOKUP($A$10,POA!$A$2:$D$25,2,0)),\"\",VLOOKUP($A$10,POA!$A$2:$D$25,2,0)),\"\"))","v":""},"",{"$f":"IF(OR(D314=\"\",E314=\"\",F314=\"\"),\"\",IF(AND(H314>0,H314<=Experiencia1),Puntajes!$D$4,IF(AND(H314>Experiencia1,H314<=Experiencia2),Puntajes!$D$5,IF(AND(H314>Experiencia2,H314<=Experiencia3),Puntajes!$D$6,IF(H314>Experiencia3,Puntajes!$D$7,0)))))","v":""}]
[null,null,{"$f":"+'Capacidad Financiera'!B318","v":""},{"$f":"IF(ISERROR(VLOOKUP(C315,'Capacidad Financiera'!$B$12:$X$62720,2,0)),\"\",VLOOKUP(C315,'Capacidad Financiera'!$B$12:$X$3580,2,0))","v":0},{"$f":"IF(ISERROR(VLOOKUP(C315,'Capacidad Financiera'!$B$12:$X$62720,3,0)),\"\",VLOOKUP(C315,'Capacidad Financiera'!$B$12:$X$62720,3,0))","v":0},null,{"$f":"IF(OR(D315=\"\",E315=\"\",F315=\"\"),\"\",IF(C315<>\"\",IF(ISERROR(VLOOKUP($A$10,POA!$A$2:$D$25,2,0)),\"\",VLOOKUP($A$10,POA!$A$2:$D$25,2,0)),\"\"))","v":""},"",{"$f":"IF(OR(D315=\"\",E315=\"\",F315=\"\"),\"\",IF(AND(H315>0,H315<=Experiencia1),Puntajes!$D$4,IF(AND(H315>Experiencia1,H315<=Experiencia2),Puntajes!$D$5,IF(AND(H315>Experiencia2,H315<=Experiencia3),Puntajes!$D$6,IF(H315>Experiencia3,Puntajes!$D$7,0)))))","v":""}]
[null,null,{"$f":"+'Capacidad Financiera'!B319","v":""},{"$f":"IF(ISERROR(VLOOKUP(C316,'Capacidad Financiera'!$B$12:$X$62720,2,0)),\"\",VLOOKUP(C316,'Capacidad Financiera'!$B$12:$X$3580,2,0))","v":0},{"$f":"IF(ISERROR(VLOOKUP(C316,'Capacidad Financiera'!$B$12:$X$62720,3,0)),\"\",VLOOKUP(C316,'Capacidad Financiera'!$B$12:$X$62720,3,0))","v":0},null,{"$f":"IF(OR(D316=\"\",E316=\"\",F316=\"\"),\"\",IF(C316<>\"\",IF(ISERROR(VLOOKUP($A$10,POA!$A$2:$D$25,2,0)),\"\",VLOOKUP($A$10,POA!$A$2:$D$25,2,0)),\"\"))","v":""},"",{"$f":"IF(OR(D316=\"\",E316=\"\",F316=\"\"),\"\",IF(AND(H316>0,H316<=Experiencia1),Puntajes!$D$4,IF(AND(H316>Experiencia1,H316<=Experiencia2),Puntajes!$D$5,IF(AND(H316>Experiencia2,H316<=Experiencia3),Puntajes!$D$6,IF(H316>Experiencia3,Puntajes!$D$7,0)))))","v":""}]
[null,null,29,{"$f":"IF(ISERROR(VLOOKUP(C317,'Capacidad Financiera'!$B$12:$X$62720,2,0)),\"\",VLOOKUP(C317,'Capacidad Financiera'!$B$12:$X$3580,2,0))","v":"CARMELO JOAQUIN ROSALES AMELL"},{"$f":"IF(ISERROR(VLOOKUP(C317,'Capacidad Financiera'!$B$12:$X$62720,3,0)),\"\",VLOOKUP(C317,'Capacidad Financiera'!$B$12:$X$62720,3,0))","v":1},null,{"$f":"IF(OR(D317=\"\",E317=\"\",F317=\"\"),\"\",IF(C318=\"\",IF(C317<>\"\",IF(ISERROR(VLOOKUP($A$10,POA!$A$2:$D$25,2,0)),\"\",VLOOKUP($A$10,POA!$A$2:$D$25,2,0)),\"\"),\"\"))","v":""},{"$f":"IF(OR(D317=\"\",E317=\"\",F317=\"\"),\"\",IF(C318=\"\",IF(C317<>\"\",F317/G317,\"\"),\"\"))","v":""},{"$f":"IF(C318=\"\",IF(F317=\"\",\"\",IF(AND(H317>0,H317<=Experiencia1),Puntajes!$D$4,IF(AND(H317>Experiencia1,H317<=Experiencia2),Puntajes!$D$5,IF(AND(H317>Experiencia2,H317<=Experiencia3),Puntajes!$D$6,IF(H317>Experiencia3,Puntajes!$D$7,0))))),\"\")","v":""}]
[null,null,{"$f":"+'Capacidad Financiera'!B321","v":29.1},{"$f":"IF(ISERROR(VLOOKUP(C318,'Capacidad Financiera'!$B$12:$X$62720,2,0)),\"\",VLOOKUP(C318,'Capacidad Financiera'!$B$12:$X$3580,2,0))","v":"CARMELO JOAQUIN ROSALES AMELL"},{"$f":"IF(ISERROR(VLOOKUP(C318,'Capacidad Financiera'!$B$12:$X$62720,3,0)),\"\",VLOOKUP(C318,'Capacidad Financiera'!$B$12:$X$62720,3,0))","v":1},84124620118,{"$f":"IF(OR(D318=\"\",E318=\"\",F318=\"\"),\"\",IF(C318<>\"\",IF(ISERROR(VLOOKUP($A$10,POA!$A$2:$D$25,2,0)),\"\",VLOOKUP($A$10,POA!$A$2:$D$25,2,0)),\"\"))","v":4167150295},{"$f":"IF(OR(D318=\"\",E318=\"\",F318=\"\"),\"\",IF(C318<>\"\",F318/(G318*E318),\"\"))","v":20.187565641425948},{"$f":"IF(OR(D318=\"\",E318=\"\",F318=\"\"),\"\",IF(AND(H318>0,H318<=Experiencia1),Puntajes!$D$4,IF(AND(H318>Experiencia1,H318<=Experiencia2),Puntajes!$D$5,IF(AND(H318>Experiencia2,H318<=Experiencia3),Puntajes!$D$6,IF(H318>Experiencia3,Puntajes!$D$7,0)))))","v":120}]
[null,null,{"$f":"+'Capacidad Financiera'!B322","v":""},{"$f":"IF(ISERROR(VLOOKUP(C319,'Capacidad Financiera'!$B$12:$X$62720,2,0)),\"\",VLOOKUP(C319,'Capacidad Financiera'!$B$12:$X$3580,2,0))","v":0},{"$f":"IF(ISERROR(VLOOKUP(C319,'Capacidad Financiera'!$B$12:$X$62720,3,0)),\"\",VLOOKUP(C319,'Capacidad Financiera'!$B$12:$X$62720,3,0))","v":0},null,{"$f":"IF(OR(D319=\"\",E319=\"\",F319=\"\"),\"\",IF(C319<>\"\",IF(ISERROR(VLOOKUP($A$10,POA!$A$2:$D$25,2,0)),\"\",VLOOKUP($A$10,POA!$A$2:$D$25,2,0)),\"\"))","v":""},{"$f":"IF(OR(D319=\"\",E319=\"\",F319=\"\"),\"\",IF(C319<>\"\",F319/(G319*E319),\"\"))","v":""},{"$f":"IF(OR(D319=\"\",E319=\"\",F319=\"\"),\"\",IF(AND(H319>0,H319<=Experiencia1),Puntajes!$D$4,IF(AND(H319>Experiencia1,H319<=Experiencia2),Puntajes!$D$5,IF(AND(H319>Experiencia2,H319<=Experiencia3),Puntajes!$D$6,IF(H319>Experiencia3,Puntajes!$D$7,0)))))","v":""}]
[null,null,{"$f":"+'Capacidad Financiera'!B323","v":""},{"$f":"IF(ISERROR(VLOOKUP(C320,'Capacidad Financiera'!$B$12:$X$62720,2,0)),\"\",VLOOKUP(C320,'Capacidad Financiera'!$B$12:$X$3580,2,0))","v":0},{"$f":"IF(ISERROR(VLOOKUP(C320,'Capacidad Financiera'!$B$12:$X$62720,3,0)),\"\",VLOOKUP(C320,'Capacidad Financiera'!$B$12:$X$62720,3,0))","v":0},null,{"$f":"IF(OR(D320=\"\",E320=\"\",F320=\"\"),\"\",IF(C320<>\"\",IF(ISERROR(VLOOKUP($A$10,POA!$A$2:$D$25,2,0)),\"\",VLOOKUP($A$10,POA!$A$2:$D$25,2,0)),\"\"))","v":""},"",{"$f":"IF(OR(D320=\"\",E320=\"\",F320=\"\"),\"\",IF(AND(H320>0,H320<=Experiencia1),Puntajes!$D$4,IF(AND(H320>Experiencia1,H320<=Experiencia2),Puntajes!$D$5,IF(AND(H320>Experiencia2,H320<=Experiencia3),Puntajes!$D$6,IF(H320>Experiencia3,Puntajes!$D$7,0)))))","v":""}]
[null,null,{"$f":"+'Capacidad Financiera'!B324","v":""},{"$f":"IF(ISERROR(VLOOKUP(C321,'Capacidad Financiera'!$B$12:$X$62720,2,0)),\"\",VLOOKUP(C321,'Capacidad Financiera'!$B$12:$X$3580,2,0))","v":0},{"$f":"IF(ISERROR(VLOOKUP(C321,'Capacidad Financiera'!$B$12:$X$62720,3,0)),\"\",VLOOKUP(C321,'Capacidad Financiera'!$B$12:$X$62720,3,0))","v":0},null,{"$f":"IF(OR(D321=\"\",E321=\"\",F321=\"\"),\"\",IF(C321<>\"\",IF(ISERROR(VLOOKUP($A$10,POA!$A$2:$D$25,2,0)),\"\",VLOOKUP($A$10,POA!$A$2:$D$25,2,0)),\"\"))","v":""},"",{"$f":"IF(OR(D321=\"\",E321=\"\",F321=\"\"),\"\",IF(AND(H321>0,H321<=Experiencia1),Puntajes!$D$4,IF(AND(H321>Experiencia1,H321<=Experiencia2),Puntajes!$D$5,IF(AND(H321>Experiencia2,H321<=Experiencia3),Puntajes!$D$6,IF(H321>Experiencia3,Puntajes!$D$7,0)))))","v":""}]
[null,null,{"$f":"+'Capacidad Financiera'!B325","v":""},{"$f":"IF(ISERROR(VLOOKUP(C322,'Capacidad Financiera'!$B$12:$X$62720,2,0)),\"\",VLOOKUP(C322,'Capacidad Financiera'!$B$12:$X$3580,2,0))","v":0},{"$f":"IF(ISERROR(VLOOKUP(C322,'Capacidad Financiera'!$B$12:$X$62720,3,0)),\"\",VLOOKUP(C322,'Capacidad Financiera'!$B$12:$X$62720,3,0))","v":0},null,{"$f":"IF(OR(D322=\"\",E322=\"\",F322=\"\"),\"\",IF(C322<>\"\",IF(ISERROR(VLOOKUP($A$10,POA!$A$2:$D$25,2,0)),\"\",VLOOKUP($A$10,POA!$A$2:$D$25,2,0)),\"\"))","v":""},"",{"$f":"IF(OR(D322=\"\",E322=\"\",F322=\"\"),\"\",IF(AND(H322>0,H322<=Experiencia1),Puntajes!$D$4,IF(AND(H322>Experiencia1,H322<=Experiencia2),Puntajes!$D$5,IF(AND(H322>Experiencia2,H322<=Experiencia3),Puntajes!$D$6,IF(H322>Experiencia3,Puntajes!$D$7,0)))))","v":""}]
[null,null,{"$f":"+'Capacidad Financiera'!B326","v":""},{"$f":"IF(ISERROR(VLOOKUP(C323,'Capacidad Financiera'!$B$12:$X$62720,2,0)),\"\",VLOOKUP(C323,'Capacidad Financiera'!$B$12:$X$3580,2,0))","v":0},{"$f":"IF(ISERROR(VLOOKUP(C323,'Capacidad Financiera'!$B$12:$X$62720,3,0)),\"\",VLOOKUP(C323,'Capacidad Financiera'!$B$12:$X$62720,3,0))","v":0},null,{"$f":"IF(OR(D323=\"\",E323=\"\",F323=\"\"),\"\",IF(C323<>\"\",IF(ISERROR(VLOOKUP($A$10,POA!$A$2:$D$25,2,0)),\"\",VLOOKUP($A$10,POA!$A$2:$D$25,2,0)),\"\"))","v":""},"",{"$f":"IF(OR(D323=\"\",E323=\"\",F323=\"\"),\"\",IF(AND(H323>0,H323<=Experiencia1),Puntajes!$D$4,IF(AND(H323>Experiencia1,H323<=Experiencia2),Puntajes!$D$5,IF(AND(H323>Experiencia2,H323<=Experiencia3),Puntajes!$D$6,IF(H323>Experiencia3,Puntajes!$D$7,0)))))","v":""}]
[null,null,{"$f":"+'Capacidad Financiera'!B327","v":""},{"$f":"IF(ISERROR(VLOOKUP(C324,'Capacidad Financiera'!$B$12:$X$62720,2,0)),\"\",VLOOKUP(C324,'Capacidad Financiera'!$B$12:$X$3580,2,0))","v":0},{"$f":"IF(ISERROR(VLOOKUP(C324,'Capacidad Financiera'!$B$12:$X$62720,3,0)),\"\",VLOOKUP(C324,'Capacidad Financiera'!$B$12:$X$62720,3,0))","v":0},null,{"$f":"IF(OR(D324=\"\",E324=\"\",F324=\"\"),\"\",IF(C324<>\"\",IF(ISERROR(VLOOKUP($A$10,POA!$A$2:$D$25,2,0)),\"\",VLOOKUP($A$10,POA!$A$2:$D$25,2,0)),\"\"))","v":""},"",{"$f":"IF(OR(D324=\"\",E324=\"\",F324=\"\"),\"\",IF(AND(H324>0,H324<=Experiencia1),Puntajes!$D$4,IF(AND(H324>Experiencia1,H324<=Experiencia2),Puntajes!$D$5,IF(AND(H324>Experiencia2,H324<=Experiencia3),Puntajes!$D$6,IF(H324>Experiencia3,Puntajes!$D$7,0)))))","v":""}]
[null,null,{"$f":"+'Capacidad Financiera'!B328","v":""},{"$f":"IF(ISERROR(VLOOKUP(C325,'Capacidad Financiera'!$B$12:$X$62720,2,0)),\"\",VLOOKUP(C325,'Capacidad Financiera'!$B$12:$X$3580,2,0))","v":0},{"$f":"IF(ISERROR(VLOOKUP(C325,'Capacidad Financiera'!$B$12:$X$62720,3,0)),\"\",VLOOKUP(C325,'Capacidad Financiera'!$B$12:$X$62720,3,0))","v":0},null,{"$f":"IF(OR(D325=\"\",E325=\"\",F325=\"\"),\"\",IF(C325<>\"\",IF(ISERROR(VLOOKUP($A$10,POA!$A$2:$D$25,2,0)),\"\",VLOOKUP($A$10,POA!$A$2:$D$25,2,0)),\"\"))","v":""},"",{"$f":"IF(OR(D325=\"\",E325=\"\",F325=\"\"),\"\",IF(AND(H325>0,H325<=Experiencia1),Puntajes!$D$4,IF(AND(H325>Experiencia1,H325<=Experiencia2),Puntajes!$D$5,IF(AND(H325>Experiencia2,H325<=Experiencia3),Puntajes!$D$6,IF(H325>Experiencia3,Puntajes!$D$7,0)))))","v":""}]
[null,null,{"$f":"+'Capacidad Financiera'!B329","v":""},{"$f":"IF(ISERROR(VLOOKUP(C326,'Capacidad Financiera'!$B$12:$X$62720,2,0)),\"\",VLOOKUP(C326,'Capacidad Financiera'!$B$12:$X$3580,2,0))","v":0},{"$f":"IF(ISERROR(VLOOKUP(C326,'Capacidad Financiera'!$B$12:$X$62720,3,0)),\"\",VLOOKUP(C326,'Capacidad Financiera'!$B$12:$X$62720,3,0))","v":0},null,{"$f":"IF(OR(D326=\"\",E326=\"\",F326=\"\"),\"\",IF(C326<>\"\",IF(ISERROR(VLOOKUP($A$10,POA!$A$2:$D$25,2,0)),\"\",VLOOKUP($A$10,POA!$A$2:$D$25,2,0)),\"\"))","v":""},"",{"$f":"IF(OR(D326=\"\",E326=\"\",F326=\"\"),\"\",IF(AND(H326>0,H326<=Experiencia1),Puntajes!$D$4,IF(AND(H326>Experiencia1,H326<=Experiencia2),Puntajes!$D$5,IF(AND(H326>Experiencia2,H326<=Experiencia3),Puntajes!$D$6,IF(H326>Experiencia3,Puntajes!$D$7,0)))))","v":""}]
[null,null,{"$f":"+'Capacidad Financiera'!B330","v":""},{"$f":"IF(ISERROR(VLOOKUP(C327,'Capacidad Financiera'!$B$12:$X$62720,2,0)),\"\",VLOOKUP(C327,'Capacidad Financiera'!$B$12:$X$3580,2,0))","v":0},{"$f":"IF(ISERROR(VLOOKUP(C327,'Capacidad Financiera'!$B$12:$X$62720,3,0)),\"\",VLOOKUP(C327,'Capacidad Financiera'!$B$12:$X$62720,3,0))","v":0},null,{"$f":"IF(OR(D327=\"\",E327=\"\",F327=\"\"),\"\",IF(C327<>\"\",IF(ISERROR(VLOOKUP($A$10,POA!$A$2:$D$25,2,0)),\"\",VLOOKUP($A$10,POA!$A$2:$D$25,2,0)),\"\"))","v":""},"",{"$f":"IF(OR(D327=\"\",E327=\"\",F327=\"\"),\"\",IF(AND(H327>0,H327<=Experiencia1),Puntajes!$D$4,IF(AND(H327>Experiencia1,H327<=Experiencia2),Puntajes!$D$5,IF(AND(H327>Experiencia2,H327<=Experiencia3),Puntajes!$D$6,IF(H327>Experiencia3,Puntajes!$D$7,0)))))","v":""}]
[null,null,30,{"$f":"IF(ISERROR(VLOOKUP(C328,'Capacidad Financiera'!$B$12:$X$62720,2,0)),\"\",VLOOKUP(C328,'Capacidad Financiera'!$B$12:$X$3580,2,0))","v":"CONSORCIO MP - ML"},{"$f":"IF(ISERROR(VLOOKUP(C328,'Capacidad Financiera'!$B$12:$X$62720,3,0)),\"\",VLOOKUP(C328,'Capacidad Financiera'!$B$12:$X$62720,3,0))","v":1},null,{"$f":"IF(OR(D328=\"\",E328=\"\",F328=\"\"),\"\",IF(C329=\"\",IF(C328<>\"\",IF(ISERROR(VLOOKUP($A$10,POA!$A$2:$D$25,2,0)),\"\",VLOOKUP($A$10,POA!$A$2:$D$25,2,0)),\"\"),\"\"))","v":""},{"$f":"IF(OR(D328=\"\",E328=\"\",F328=\"\"),\"\",IF(C329=\"\",IF(C328<>\"\",F328/G328,\"\"),\"\"))","v":""},{"$f":"IF(C329=\"\",IF(F328=\"\",\"\",IF(AND(H328>0,H328<=Experiencia1),Puntajes!$D$4,IF(AND(H328>Experiencia1,H328<=Experiencia2),Puntajes!$D$5,IF(AND(H328>Experiencia2,H328<=Experiencia3),Puntajes!$D$6,IF(H328>Experiencia3,Puntajes!$D$7,0))))),\"\")","v":""}]
[null,null,{"$f":"+'Capacidad Financiera'!B332","v":30.1},{"$f":"IF(ISERROR(VLOOKUP(C329,'Capacidad Financiera'!$B$12:$X$62720,2,0)),\"\",VLOOKUP(C329,'Capacidad Financiera'!$B$12:$X$3580,2,0))","v":"CONSTRUCTORA MP S.A."},{"$f":"IF(ISERROR(VLOOKUP(C329,'Capacidad Financiera'!$B$12:$X$62720,3,0)),\"\",VLOOKUP(C329,'Capacidad Financiera'!$B$12:$X$62720,3,0))","v":0.5},141756774297.60001,{"$f":"IF(OR(D329=\"\",E329=\"\",F329=\"\"),\"\",IF(C329<>\"\",IF(ISERROR(VLOOKUP($A$10,POA!$A$2:$D$25,2,0)),\"\",VLOOKUP($A$10,POA!$A$2:$D$25,2,0)),\"\"))","v":4167150295},{"$f":"IF(OR(D329=\"\",E329=\"\",F329=\"\"),\"\",IF(C329<>\"\",F329/(G329*E329),\"\"))","v":68.035354744794489},{"$f":"IF(OR(D329=\"\",E329=\"\",F329=\"\"),\"\",IF(AND(H329>0,H329<=Experiencia1),Puntajes!$D$4,IF(AND(H329>Experiencia1,H329<=Experiencia2),Puntajes!$D$5,IF(AND(H329>Experiencia2,H329<=Experiencia3),Puntajes!$D$6,IF(H329>Experiencia3,Puntajes!$D$7,0)))))","v":120}]
[null,null,{"$f":"+'Capacidad Financiera'!B333","v":30.200000000000003},{"$f":"IF(ISERROR(VLOOKUP(C330,'Capacidad Financiera'!$B$12:$X$62720,2,0)),\"\",VLOOKUP(C330,'Capacidad Financiera'!$B$12:$X$3580,2,0))","v":"ML INGENIEROS S.A."},{"$f":"IF(ISERROR(VLOOKUP(C330,'Capacidad Financiera'!$B$12:$X$62720,3,0)),\"\",VLOOKUP(C330,'Capacidad Financiera'!$B$12:$X$62720,3,0))","v":0.5},7340078715,{"$f":"IF(OR(D330=\"\",E330=\"\",F330=\"\"),\"\",IF(C330<>\"\",IF(ISERROR(VLOOKUP($A$10,POA!$A$2:$D$25,2,0)),\"\",VLOOKUP($A$10,POA!$A$2:$D$25,2,0)),\"\"))","v":4167150295},{"$f":"IF(OR(D330=\"\",E330=\"\",F330=\"\"),\"\",IF(C330<>\"\",F330/(G330*E330),\"\"))","v":3.5228288856329817},{"$f":"IF(OR(D330=\"\",E330=\"\",F330=\"\"),\"\",IF(AND(H330>0,H330<=Experiencia1),Puntajes!$D$4,IF(AND(H330>Experiencia1,H330<=Experiencia2),Puntajes!$D$5,IF(AND(H330>Experiencia2,H330<=Experiencia3),Puntajes!$D$6,IF(H330>Experiencia3,Puntajes!$D$7,0)))))","v":80}]
[null,null,{"$f":"+'Capacidad Financiera'!B334","v":""},{"$f":"IF(ISERROR(VLOOKUP(C331,'Capacidad Financiera'!$B$12:$X$62720,2,0)),\"\",VLOOKUP(C331,'Capacidad Financiera'!$B$12:$X$3580,2,0))","v":0},{"$f":"IF(ISERROR(VLOOKUP(C331,'Capacidad Financiera'!$B$12:$X$62720,3,0)),\"\",VLOOKUP(C331,'Capacidad Financiera'!$B$12:$X$62720,3,0))","v":0},null,{"$f":"IF(OR(D331=\"\",E331=\"\",F331=\"\"),\"\",IF(C331<>\"\",IF(ISERROR(VLOOKUP($A$10,POA!$A$2:$D$25,2,0)),\"\",VLOOKUP($A$10,POA!$A$2:$D$25,2,0)),\"\"))","v":""},"",{"$f":"IF(OR(D331=\"\",E331=\"\",F331=\"\"),\"\",IF(AND(H331>0,H331<=Experiencia1),Puntajes!$D$4,IF(AND(H331>Experiencia1,H331<=Experiencia2),Puntajes!$D$5,IF(AND(H331>Experiencia2,H331<=Experiencia3),Puntajes!$D$6,IF(H331>Experiencia3,Puntajes!$D$7,0)))))","v":""}]
[null,null,{"$f":"+'Capacidad Financiera'!B335","v":""},{"$f":"IF(ISERROR(VLOOKUP(C332,'Capacidad Financiera'!$B$12:$X$62720,2,0)),\"\",VLOOKUP(C332,'Capacidad Financiera'!$B$12:$X$3580,2,0))","v":0},{"$f":"IF(ISERROR(VLOOKUP(C332,'Capacidad Financiera'!$B$12:$X$62720,3,0)),\"\",VLOOKUP(C332,'Capacidad Financiera'!$B$12:$X$62720,3,0))","v":0},null,{"$f":"IF(OR(D332=\"\",E332=\"\",F332=\"\"),\"\",IF(C332<>\"\",IF(ISERROR(VLOOKUP($A$10,POA!$A$2:$D$25,2,0)),\"\",VLOOKUP($A$10,POA!$A$2:$D$25,2,0)),\"\"))","v":""},"",{"$f":"IF(OR(D332=\"\",E332=\"\",F332=\"\"),\"\",IF(AND(H332>0,H332<=Experiencia1),Puntajes!$D$4,IF(AND(H332>Experiencia1,H332<=Experiencia2),Puntajes!$D$5,IF(AND(H332>Experiencia2,H332<=Experiencia3),Puntajes!$D$6,IF(H332>Experiencia3,Puntajes!$D$7,0)))))","v":""}]
[null,null,{"$f":"+'Capacidad Financiera'!B336","v":""},{"$f":"IF(ISERROR(VLOOKUP(C333,'Capacidad Financiera'!$B$12:$X$62720,2,0)),\"\",VLOOKUP(C333,'Capacidad Financiera'!$B$12:$X$3580,2,0))","v":0},{"$f":"IF(ISERROR(VLOOKUP(C333,'Capacidad Financiera'!$B$12:$X$62720,3,0)),\"\",VLOOKUP(C333,'Capacidad Financiera'!$B$12:$X$62720,3,0))","v":0},null,{"$f":"IF(OR(D333=\"\",E333=\"\",F333=\"\"),\"\",IF(C333<>\"\",IF(ISERROR(VLOOKUP($A$10,POA!$A$2:$D$25,2,0)),\"\",VLOOKUP($A$10,POA!$A$2:$D$25,2,0)),\"\"))","v":""},"",{"$f":"IF(OR(D333=\"\",E333=\"\",F333=\"\"),\"\",IF(AND(H333>0,H333<=Experiencia1),Puntajes!$D$4,IF(AND(H333>Experiencia1,H333<=Experiencia2),Puntajes!$D$5,IF(AND(H333>Experiencia2,H333<=Experiencia3),Puntajes!$D$6,IF(H333>Experiencia3,Puntajes!$D$7,0)))))","v":""}]
[null,null,{"$f":"+'Capacidad Financiera'!B337","v":""},{"$f":"IF(ISERROR(VLOOKUP(C334,'Capacidad Financiera'!$B$12:$X$62720,2,0)),\"\",VLOOKUP(C334,'Capacidad Financiera'!$B$12:$X$3580,2,0))","v":0},{"$f":"IF(ISERROR(VLOOKUP(C334,'Capacidad Financiera'!$B$12:$X$62720,3,0)),\"\",VLOOKUP(C334,'Capacidad Financiera'!$B$12:$X$62720,3,0))","v":0},null,{"$f":"IF(OR(D334=\"\",E334=\"\",F334=\"\"),\"\",IF(C334<>\"\",IF(ISERROR(VLOOKUP($A$10,POA!$A$2:$D$25,2,0)),\"\",VLOOKUP($A$10,POA!$A$2:$D$25,2,0)),\"\"))","v":""},"",{"$f":"IF(OR(D334=\"\",E334=\"\",F334=\"\"),\"\",IF(AND(H334>0,H334<=Experiencia1),Puntajes!$D$4,IF(AND(H334>Experiencia1,H334<=Experiencia2),Puntajes!$D$5,IF(AND(H334>Experiencia2,H334<=Experiencia3),Puntajes!$D$6,IF(H334>Experiencia3,Puntajes!$D$7,0)))))","v":""}]
[null,null,{"$f":"+'Capacidad Financiera'!B338","v":""},{"$f":"IF(ISERROR(VLOOKUP(C335,'Capacidad Financiera'!$B$12:$X$62720,2,0)),\"\",VLOOKUP(C335,'Capacidad Financiera'!$B$12:$X$3580,2,0))","v":0},{"$f":"IF(ISERROR(VLOOKUP(C335,'Capacidad Financiera'!$B$12:$X$62720,3,0)),\"\",VLOOKUP(C335,'Capacidad Financiera'!$B$12:$X$62720,3,0))","v":0},null,{"$f":"IF(OR(D335=\"\",E335=\"\",F335=\"\"),\"\",IF(C335<>\"\",IF(ISERROR(VLOOKUP($A$10,POA!$A$2:$D$25,2,0)),\"\",VLOOKUP($A$10,POA!$A$2:$D$25,2,0)),\"\"))","v":""},"",{"$f":"IF(OR(D335=\"\",E335=\"\",F335=\"\"),\"\",IF(AND(H335>0,H335<=Experiencia1),Puntajes!$D$4,IF(AND(H335>Experiencia1,H335<=Experiencia2),Puntajes!$D$5,IF(AND(H335>Experiencia2,H335<=Experiencia3),Puntajes!$D$6,IF(H335>Experiencia3,Puntajes!$D$7,0)))))","v":""}]
[null,null,{"$f":"+'Capacidad Financiera'!B339","v":""},{"$f":"IF(ISERROR(VLOOKUP(C336,'Capacidad Financiera'!$B$12:$X$62720,2,0)),\"\",VLOOKUP(C336,'Capacidad Financiera'!$B$12:$X$3580,2,0))","v":0},{"$f":"IF(ISERROR(VLOOKUP(C336,'Capacidad Financiera'!$B$12:$X$62720,3,0)),\"\",VLOOKUP(C336,'Capacidad Financiera'!$B$12:$X$62720,3,0))","v":0},null,{"$f":"IF(OR(D336=\"\",E336=\"\",F336=\"\"),\"\",IF(C336<>\"\",IF(ISERROR(VLOOKUP($A$10,POA!$A$2:$D$25,2,0)),\"\",VLOOKUP($A$10,POA!$A$2:$D$25,2,0)),\"\"))","v":""},"",{"$f":"IF(OR(D336=\"\",E336=\"\",F336=\"\"),\"\",IF(AND(H336>0,H336<=Experiencia1),Puntajes!$D$4,IF(AND(H336>Experiencia1,H336<=Experiencia2),Puntajes!$D$5,IF(AND(H336>Experiencia2,H336<=Experiencia3),Puntajes!$D$6,IF(H336>Experiencia3,Puntajes!$D$7,0)))))","v":""}]
[null,null,{"$f":"+'Capacidad Financiera'!B340","v":""},{"$f":"IF(ISERROR(VLOOKUP(C337,'Capacidad Financiera'!$B$12:$X$62720,2,0)),\"\",VLOOKUP(C337,'Capacidad Financiera'!$B$12:$X$3580,2,0))","v":0},{"$f":"IF(ISERROR(VLOOKUP(C337,'Capacidad Financiera'!$B$12:$X$62720,3,0)),\"\",VLOOKUP(C337,'Capacidad Financiera'!$B$12:$X$62720,3,0))","v":0},null,{"$f":"IF(OR(D337=\"\",E337=\"\",F337=\"\"),\"\",IF(C337<>\"\",IF(ISERROR(VLOOKUP($A$10,POA!$A$2:$D$25,2,0)),\"\",VLOOKUP($A$10,POA!$A$2:$D$25,2,0)),\"\"))","v":""},"",{"$f":"IF(OR(D337=\"\",E337=\"\",F337=\"\"),\"\",IF(AND(H337>0,H337<=Experiencia1),Puntajes!$D$4,IF(AND(H337>Experiencia1,H337<=Experiencia2),Puntajes!$D$5,IF(AND(H337>Experiencia2,H337<=Experiencia3),Puntajes!$D$6,IF(H337>Experiencia3,Puntajes!$D$7,0)))))","v":""}]
[null,null,{"$f":"+'Capacidad Financiera'!B341","v":""},{"$f":"IF(ISERROR(VLOOKUP(C338,'Capacidad Financiera'!$B$12:$X$62720,2,0)),\"\",VLOOKUP(C338,'Capacidad Financiera'!$B$12:$X$3580,2,0))","v":0},{"$f":"IF(ISERROR(VLOOKUP(C338,'Capacidad Financiera'!$B$12:$X$62720,3,0)),\"\",VLOOKUP(C338,'Capacidad Financiera'!$B$12:$X$62720,3,0))","v":0},null,{"$f":"IF(OR(D338=\"\",E338=\"\",F338=\"\"),\"\",IF(C338<>\"\",IF(ISERROR(VLOOKUP($A$10,POA!$A$2:$D$25,2,0)),\"\",VLOOKUP($A$10,POA!$A$2:$D$25,2,0)),\"\"))","v":""},"",{"$f":"IF(OR(D338=\"\",E338=\"\",F338=\"\"),\"\",IF(AND(H338>0,H338<=Experiencia1),Puntajes!$D$4,IF(AND(H338>Experiencia1,H338<=Experiencia2),Puntajes!$D$5,IF(AND(H338>Experiencia2,H338<=Experiencia3),Puntajes!$D$6,IF(H338>Experiencia3,Puntajes!$D$7,0)))))","v":""}]
[null,null,31,{"$f":"IF(ISERROR(VLOOKUP(C339,'Capacidad Financiera'!$B$12:$X$62720,2,0)),\"\",VLOOKUP(C339,'Capacidad Financiera'!$B$12:$X$3580,2,0))","v":"LATINCO S.A."},{"$f":"IF(ISERROR(VLOOKUP(C339,'Capacidad Financiera'!$B$12:$X$62720,3,0)),\"\",VLOOKUP(C339,'Capacidad Financiera'!$B$12:$X$62720,3,0))","v":1},null,{"$f":"IF(OR(D339=\"\",E339=\"\",F339=\"\"),\"\",IF(C340=\"\",IF(C339<>\"\",IF(ISERROR(VLOOKUP($A$10,POA!$A$2:$D$25,2,0)),\"\",VLOOKUP($A$10,POA!$A$2:$D$25,2,0)),\"\"),\"\"))","v":""},{"$f":"IF(OR(D339=\"\",E339=\"\",F339=\"\"),\"\",IF(C340=\"\",IF(C339<>\"\",F339/G339,\"\"),\"\"))","v":""},{"$f":"IF(C340=\"\",IF(F339=\"\",\"\",IF(AND(H339>0,H339<=Experiencia1),Puntajes!$D$4,IF(AND(H339>Experiencia1,H339<=Experiencia2),Puntajes!$D$5,IF(AND(H339>Experiencia2,H339<=Experiencia3),Puntajes!$D$6,IF(H339>Experiencia3,Puntajes!$D$7,0))))),\"\")","v":""}]
[null,null,{"$f":"+'Capacidad Financiera'!B343","v":31.1},{"$f":"IF(ISERROR(VLOOKUP(C340,'Capacidad Financiera'!$B$12:$X$62720,2,0)),\"\",VLOOKUP(C340,'Capacidad Financiera'!$B$12:$X$3580,2,0))","v":"LATINCO S.A."},{"$f":"IF(ISERROR(VLOOKUP(C340,'Capacidad Financiera'!$B$12:$X$62720,3,0)),\"\",VLOOKUP(C340,'Capacidad Financiera'!$B$12:$X$62720,3,0))","v":1},181870744809.60001,{"$f":"IF(OR(D340=\"\",E340=\"\",F340=\"\"),\"\",IF(C340<>\"\",IF(ISERROR(VLOOKUP($A$10,POA!$A$2:$D$25,2,0)),\"\",VLOOKUP($A$10,POA!$A$2:$D$25,2,0)),\"\"))","v":4167150295},{"$f":"IF(OR(D340=\"\",E340=\"\",F340=\"\"),\"\",IF(C340<>\"\",F340/(G340*E340),\"\"))","v":43.643912970410398},{"$f":"IF(OR(D340=\"\",E340=\"\",F340=\"\"),\"\",IF(AND(H340>0,H340<=Experiencia1),Puntajes!$D$4,IF(AND(H340>Experiencia1,H340<=Experiencia2),Puntajes!$D$5,IF(AND(H340>Experiencia2,H340<=Experiencia3),Puntajes!$D$6,IF(H340>Experiencia3,Puntajes!$D$7,0)))))","v":120}]
[null,null,{"$f":"+'Capacidad Financiera'!B344","v":""},{"$f":"IF(ISERROR(VLOOKUP(C341,'Capacidad Financiera'!$B$12:$X$62720,2,0)),\"\",VLOOKUP(C341,'Capacidad Financiera'!$B$12:$X$3580,2,0))","v":0},{"$f":"IF(ISERROR(VLOOKUP(C341,'Capacidad Financiera'!$B$12:$X$62720,3,0)),\"\",VLOOKUP(C341,'Capacidad Financiera'!$B$12:$X$62720,3,0))","v":0},null,{"$f":"IF(OR(D341=\"\",E341=\"\",F341=\"\"),\"\",IF(C341<>\"\",IF(ISERROR(VLOOKUP($A$10,POA!$A$2:$D$25,2,0)),\"\",VLOOKUP($A$10,POA!$A$2:$D$25,2,0)),\"\"))","v":""},{"$f":"IF(OR(D341=\"\",E341=\"\",F341=\"\"),\"\",IF(C341<>\"\",F341/(G341*E341),\"\"))","v":""},{"$f":"IF(OR(D341=\"\",E341=\"\",F341=\"\"),\"\",IF(AND(H341>0,H341<=Experiencia1),Puntajes!$D$4,IF(AND(H341>Experiencia1,H341<=Experiencia2),Puntajes!$D$5,IF(AND(H341>Experiencia2,H341<=Experiencia3),Puntajes!$D$6,IF(H341>Experiencia3,Puntajes!$D$7,0)))))","v":""}]
[null,null,{"$f":"+'Capacidad Financiera'!B345","v":""},{"$f":"IF(ISERROR(VLOOKUP(C342,'Capacidad Financiera'!$B$12:$X$62720,2,0)),\"\",VLOOKUP(C342,'Capacidad Financiera'!$B$12:$X$3580,2,0))","v":0},{"$f":"IF(ISERROR(VLOOKUP(C342,'Capacidad Financiera'!$B$12:$X$62720,3,0)),\"\",VLOOKUP(C342,'Capacidad Financiera'!$B$12:$X$62720,3,0))","v":0},null,{"$f":"IF(OR(D342=\"\",E342=\"\",F342=\"\"),\"\",IF(C342<>\"\",IF(ISERROR(VLOOKUP($A$10,POA!$A$2:$D$25,2,0)),\"\",VLOOKUP($A$10,POA!$A$2:$D$25,2,0)),\"\"))","v":""},"",{"$f":"IF(OR(D342=\"\",E342=\"\",F342=\"\"),\"\",IF(AND(H342>0,H342<=Experiencia1),Puntajes!$D$4,IF(AND(H342>Experiencia1,H342<=Experiencia2),Puntajes!$D$5,IF(AND(H342>Experiencia2,H342<=Experiencia3),Puntajes!$D$6,IF(H342>Experiencia3,Puntajes!$D$7,0)))))","v":""}]
[null,null,{"$f":"+'Capacidad Financiera'!B346","v":""},{"$f":"IF(ISERROR(VLOOKUP(C343,'Capacidad Financiera'!$B$12:$X$62720,2,0)),\"\",VLOOKUP(C343,'Capacidad Financiera'!$B$12:$X$3580,2,0))","v":0},{"$f":"IF(ISERROR(VLOOKUP(C343,'Capacidad Financiera'!$B$12:$X$62720,3,0)),\"\",VLOOKUP(C343,'Capacidad Financiera'!$B$12:$X$62720,3,0))","v":0},null,{"$f":"IF(OR(D343=\"\",E343=\"\",F343=\"\"),\"\",IF(C343<>\"\",IF(ISERROR(VLOOKUP($A$10,POA!$A$2:$D$25,2,0)),\"\",VLOOKUP($A$10,POA!$A$2:$D$25,2,0)),\"\"))","v":""},"",{"$f":"IF(OR(D343=\"\",E343=\"\",F343=\"\"),\"\",IF(AND(H343>0,H343<=Experiencia1),Puntajes!$D$4,IF(AND(H343>Experiencia1,H343<=Experiencia2),Puntajes!$D$5,IF(AND(H343>Experiencia2,H343<=Experiencia3),Puntajes!$D$6,IF(H343>Experiencia3,Puntajes!$D$7,0)))))","v":""}]
[null,null,{"$f":"+'Capacidad Financiera'!B347","v":""},{"$f":"IF(ISERROR(VLOOKUP(C344,'Capacidad Financiera'!$B$12:$X$62720,2,0)),\"\",VLOOKUP(C344,'Capacidad Financiera'!$B$12:$X$3580,2,0))","v":0},{"$f":"IF(ISERROR(VLOOKUP(C344,'Capacidad Financiera'!$B$12:$X$62720,3,0)),\"\",VLOOKUP(C344,'Capacidad Financiera'!$B$12:$X$62720,3,0))","v":0},null,{"$f":"IF(OR(D344=\"\",E344=\"\",F344=\"\"),\"\",IF(C344<>\"\",IF(ISERROR(VLOOKUP($A$10,POA!$A$2:$D$25,2,0)),\"\",VLOOKUP($A$10,POA!$A$2:$D$25,2,0)),\"\"))","v":""},"",{"$f":"IF(OR(D344=\"\",E344=\"\",F344=\"\"),\"\",IF(AND(H344>0,H344<=Experiencia1),Puntajes!$D$4,IF(AND(H344>Experiencia1,H344<=Experiencia2),Puntajes!$D$5,IF(AND(H344>Experiencia2,H344<=Experiencia3),Puntajes!$D$6,IF(H344>Experiencia3,Puntajes!$D$7,0)))))","v":""}]
[null,null,{"$f":"+'Capacidad Financiera'!B348","v":""},{"$f":"IF(ISERROR(VLOOKUP(C345,'Capacidad Financiera'!$B$12:$X$62720,2,0)),\"\",VLOOKUP(C345,'Capacidad Financiera'!$B$12:$X$3580,2,0))","v":0},{"$f":"IF(ISERROR(VLOOKUP(C345,'Capacidad Financiera'!$B$12:$X$62720,3,0)),\"\",VLOOKUP(C345,'Capacidad Financiera'!$B$12:$X$62720,3,0))","v":0},null,{"$f":"IF(OR(D345=\"\",E345=\"\",F345=\"\"),\"\",IF(C345<>\"\",IF(ISERROR(VLOOKUP($A$10,POA!$A$2:$D$25,2,0)),\"\",VLOOKUP($A$10,POA!$A$2:$D$25,2,0)),\"\"))","v":""},"",{"$f":"IF(OR(D345=\"\",E345=\"\",F345=\"\"),\"\",IF(AND(H345>0,H345<=Experiencia1),Puntajes!$D$4,IF(AND(H345>Experiencia1,H345<=Experiencia2),Puntajes!$D$5,IF(AND(H345>Experiencia2,H345<=Experiencia3),Puntajes!$D$6,IF(H345>Experiencia3,Puntajes!$D$7,0)))))","v":""}]
[null,null,{"$f":"+'Capacidad Financiera'!B349","v":""},{"$f":"IF(ISERROR(VLOOKUP(C346,'Capacidad Financiera'!$B$12:$X$62720,2,0)),\"\",VLOOKUP(C346,'Capacidad Financiera'!$B$12:$X$3580,2,0))","v":0},{"$f":"IF(ISERROR(VLOOKUP(C346,'Capacidad Financiera'!$B$12:$X$62720,3,0)),\"\",VLOOKUP(C346,'Capacidad Financiera'!$B$12:$X$62720,3,0))","v":0},null,{"$f":"IF(OR(D346=\"\",E346=\"\",F346=\"\"),\"\",IF(C346<>\"\",IF(ISERROR(VLOOKUP($A$10,POA!$A$2:$D$25,2,0)),\"\",VLOOKUP($A$10,POA!$A$2:$D$25,2,0)),\"\"))","v":""},"",{"$f":"IF(OR(D346=\"\",E346=\"\",F346=\"\"),\"\",IF(AND(H346>0,H346<=Experiencia1),Puntajes!$D$4,IF(AND(H346>Experiencia1,H346<=Experiencia2),Puntajes!$D$5,IF(AND(H346>Experiencia2,H346<=Experiencia3),Puntajes!$D$6,IF(H346>Experiencia3,Puntajes!$D$7,0)))))","v":""}]
[null,null,{"$f":"+'Capacidad Financiera'!B350","v":""},{"$f":"IF(ISERROR(VLOOKUP(C347,'Capacidad Financiera'!$B$12:$X$62720,2,0)),\"\",VLOOKUP(C347,'Capacidad Financiera'!$B$12:$X$3580,2,0))","v":0},{"$f":"IF(ISERROR(VLOOKUP(C347,'Capacidad Financiera'!$B$12:$X$62720,3,0)),\"\",VLOOKUP(C347,'Capacidad Financiera'!$B$12:$X$62720,3,0))","v":0},null,{"$f":"IF(OR(D347=\"\",E347=\"\",F347=\"\"),\"\",IF(C347<>\"\",IF(ISERROR(VLOOKUP($A$10,POA!$A$2:$D$25,2,0)),\"\",VLOOKUP($A$10,POA!$A$2:$D$25,2,0)),\"\"))","v":""},"",{"$f":"IF(OR(D347=\"\",E347=\"\",F347=\"\"),\"\",IF(AND(H347>0,H347<=Experiencia1),Puntajes!$D$4,IF(AND(H347>Experiencia1,H347<=Experiencia2),Puntajes!$D$5,IF(AND(H347>Experiencia2,H347<=Experiencia3),Puntajes!$D$6,IF(H347>Experiencia3,Puntajes!$D$7,0)))))","v":""}]
[null,null,{"$f":"+'Capacidad Financiera'!B351","v":""},{"$f":"IF(ISERROR(VLOOKUP(C348,'Capacidad Financiera'!$B$12:$X$62720,2,0)),\"\",VLOOKUP(C348,'Capacidad Financiera'!$B$12:$X$3580,2,0))","v":0},{"$f":"IF(ISERROR(VLOOKUP(C348,'Capacidad Financiera'!$B$12:$X$62720,3,0)),\"\",VLOOKUP(C348,'Capacidad Financiera'!$B$12:$X$62720,3,0))","v":0},null,{"$f":"IF(OR(D348=\"\",E348=\"\",F348=\"\"),\"\",IF(C348<>\"\",IF(ISERROR(VLOOKUP($A$10,POA!$A$2:$D$25,2,0)),\"\",VLOOKUP($A$10,POA!$A$2:$D$25,2,0)),\"\"))","v":""},"",{"$f":"IF(OR(D348=\"\",E348=\"\",F348=\"\"),\"\",IF(AND(H348>0,H348<=Experiencia1),Puntajes!$D$4,IF(AND(H348>Experiencia1,H348<=Experiencia2),Puntajes!$D$5,IF(AND(H348>Experiencia2,H348<=Experiencia3),Puntajes!$D$6,IF(H348>Experiencia3,Puntajes!$D$7,0)))))","v":""}]
[null,null,{"$f":"+'Capacidad Financiera'!B352","v":""},{"$f":"IF(ISERROR(VLOOKUP(C349,'Capacidad Financiera'!$B$12:$X$62720,2,0)),\"\",VLOOKUP(C349,'Capacidad Financiera'!$B$12:$X$3580,2,0))","v":0},{"$f":"IF(ISERROR(VLOOKUP(C349,'Capacidad Financiera'!$B$12:$X$62720,3,0)),\"\",VLOOKUP(C349,'Capacidad Financiera'!$B$12:$X$62720,3,0))","v":0},null,{"$f":"IF(OR(D349=\"\",E349=\"\",F349=\"\"),\"\",IF(C349<>\"\",IF(ISERROR(VLOOKUP($A$10,POA!$A$2:$D$25,2,0)),\"\",VLOOKUP($A$10,POA!$A$2:$D$25,2,0)),\"\"))","v":""},"",{"$f":"IF(OR(D349=\"\",E349=\"\",F349=\"\"),\"\",IF(AND(H349>0,H349<=Experiencia1),Puntajes!$D$4,IF(AND(H349>Experiencia1,H349<=Experiencia2),Puntajes!$D$5,IF(AND(H349>Experiencia2,H349<=Experiencia3),Puntajes!$D$6,IF(H349>Experiencia3,Puntajes!$D$7,0)))))","v":""}]
[null,null,32,{"$f":"IF(ISERROR(VLOOKUP(C350,'Capacidad Financiera'!$B$12:$X$62720,2,0)),\"\",VLOOKUP(C350,'Capacidad Financiera'!$B$12:$X$3580,2,0))","v":"ICEIN S.A.S."},{"$f":"IF(ISERROR(VLOOKUP(C350,'Capacidad Financiera'!$B$12:$X$62720,3,0)),\"\",VLOOKUP(C350,'Capacidad Financiera'!$B$12:$X$62720,3,0))","v":1},null,{"$f":"IF(OR(D350=\"\",E350=\"\",F350=\"\"),\"\",IF(C351=\"\",IF(C350<>\"\",IF(ISERROR(VLOOKUP($A$10,POA!$A$2:$D$25,2,0)),\"\",VLOOKUP($A$10,POA!$A$2:$D$25,2,0)),\"\"),\"\"))","v":""},{"$f":"IF(OR(D350=\"\",E350=\"\",F350=\"\"),\"\",IF(C351=\"\",IF(C350<>\"\",F350/G350,\"\"),\"\"))","v":""},{"$f":"IF(C351=\"\",IF(F350=\"\",\"\",IF(AND(H350>0,H350<=Experiencia1),Puntajes!$D$4,IF(AND(H350>Experiencia1,H350<=Experiencia2),Puntajes!$D$5,IF(AND(H350>Experiencia2,H350<=Experiencia3),Puntajes!$D$6,IF(H350>Experiencia3,Puntajes!$D$7,0))))),\"\")","v":""}]
[null,null,{"$f":"+'Capacidad Financiera'!B354","v":32.1},{"$f":"IF(ISERROR(VLOOKUP(C351,'Capacidad Financiera'!$B$12:$X$62720,2,0)),\"\",VLOOKUP(C351,'Capacidad Financiera'!$B$12:$X$3580,2,0))","v":"ICEIN S.A.S."},{"$f":"IF(ISERROR(VLOOKUP(C351,'Capacidad Financiera'!$B$12:$X$62720,3,0)),\"\",VLOOKUP(C351,'Capacidad Financiera'!$B$12:$X$62720,3,0))","v":1},559372632347.76001,{"$f":"IF(OR(D351=\"\",E351=\"\",F351=\"\"),\"\",IF(C351<>\"\",IF(ISERROR(VLOOKUP($A$10,POA!$A$2:$D$25,2,0)),\"\",VLOOKUP($A$10,POA!$A$2:$D$25,2,0)),\"\"))","v":4167150295},{"$f":"IF(OR(D351=\"\",E351=\"\",F351=\"\"),\"\",IF(C351<>\"\",F351/(G351*E351),\"\"))","v":134.23385113297431},{"$f":"IF(OR(D351=\"\",E351=\"\",F351=\"\"),\"\",IF(AND(H351>0,H351<=Experiencia1),Puntajes!$D$4,IF(AND(H351>Experiencia1,H351<=Experiencia2),Puntajes!$D$5,IF(AND(H351>Experiencia2,H351<=Experiencia3),Puntajes!$D$6,IF(H351>Experiencia3,Puntajes!$D$7,0)))))","v":120}]
[null,null,{"$f":"+'Capacidad Financiera'!B355","v":""},{"$f":"IF(ISERROR(VLOOKUP(C352,'Capacidad Financiera'!$B$12:$X$62720,2,0)),\"\",VLOOKUP(C352,'Capacidad Financiera'!$B$12:$X$3580,2,0))","v":0},{"$f":"IF(ISERROR(VLOOKUP(C352,'Capacidad Financiera'!$B$12:$X$62720,3,0)),\"\",VLOOKUP(C352,'Capacidad Financiera'!$B$12:$X$62720,3,0))","v":0},null,{"$f":"IF(OR(D352=\"\",E352=\"\",F352=\"\"),\"\",IF(C352<>\"\",IF(ISERROR(VLOOKUP($A$10,POA!$A$2:$D$25,2,0)),\"\",VLOOKUP($A$10,POA!$A$2:$D$25,2,0)),\"\"))","v":""},{"$f":"IF(OR(D352=\"\",E352=\"\",F352=\"\"),\"\",IF(C352<>\"\",F352/(G352*E352),\"\"))","v":""},{"$f":"IF(OR(D352=\"\",E352=\"\",F352=\"\"),\"\",IF(AND(H352>0,H352<=Experiencia1),Puntajes!$D$4,IF(AND(H352>Experiencia1,H352<=Experiencia2),Puntajes!$D$5,IF(AND(H352>Experiencia2,H352<=Experiencia3),Puntajes!$D$6,IF(H352>Experiencia3,Puntajes!$D$7,0)))))","v":""}]
[null,null,{"$f":"+'Capacidad Financiera'!B356","v":""},{"$f":"IF(ISERROR(VLOOKUP(C353,'Capacidad Financiera'!$B$12:$X$62720,2,0)),\"\",VLOOKUP(C353,'Capacidad Financiera'!$B$12:$X$3580,2,0))","v":0},{"$f":"IF(ISERROR(VLOOKUP(C353,'Capacidad Financiera'!$B$12:$X$62720,3,0)),\"\",VLOOKUP(C353,'Capacidad Financiera'!$B$12:$X$62720,3,0))","v":0},null,{"$f":"IF(OR(D353=\"\",E353=\"\",F353=\"\"),\"\",IF(C353<>\"\",IF(ISERROR(VLOOKUP($A$10,POA!$A$2:$D$25,2,0)),\"\",VLOOKUP($A$10,POA!$A$2:$D$25,2,0)),\"\"))","v":""},"",{"$f":"IF(OR(D353=\"\",E353=\"\",F353=\"\"),\"\",IF(AND(H353>0,H353<=Experiencia1),Puntajes!$D$4,IF(AND(H353>Experiencia1,H353<=Experiencia2),Puntajes!$D$5,IF(AND(H353>Experiencia2,H353<=Experiencia3),Puntajes!$D$6,IF(H353>Experiencia3,Puntajes!$D$7,0)))))","v":""}]
[null,null,{"$f":"+'Capacidad Financiera'!B357","v":""},{"$f":"IF(ISERROR(VLOOKUP(C354,'Capacidad Financiera'!$B$12:$X$62720,2,0)),\"\",VLOOKUP(C354,'Capacidad Financiera'!$B$12:$X$3580,2,0))","v":0},{"$f":"IF(ISERROR(VLOOKUP(C354,'Capacidad Financiera'!$B$12:$X$62720,3,0)),\"\",VLOOKUP(C354,'Capacidad Financiera'!$B$12:$X$62720,3,0))","v":0},null,{"$f":"IF(OR(D354=\"\",E354=\"\",F354=\"\"),\"\",IF(C354<>\"\",IF(ISERROR(VLOOKUP($A$10,POA!$A$2:$D$25,2,0)),\"\",VLOOKUP($A$10,POA!$A$2:$D$25,2,0)),\"\"))","v":""},"",{"$f":"IF(OR(D354=\"\",E354=\"\",F354=\"\"),\"\",IF(AND(H354>0,H354<=Experiencia1),Puntajes!$D$4,IF(AND(H354>Experiencia1,H354<=Experiencia2),Puntajes!$D$5,IF(AND(H354>Experiencia2,H354<=Experiencia3),Puntajes!$D$6,IF(H354>Experiencia3,Puntajes!$D$7,0)))))","v":""}]
[null,null,{"$f":"+'Capacidad Financiera'!B358","v":""},{"$f":"IF(ISERROR(VLOOKUP(C355,'Capacidad Financiera'!$B$12:$X$62720,2,0)),\"\",VLOOKUP(C355,'Capacidad Financiera'!$B$12:$X$3580,2,0))","v":0},{"$f":"IF(ISERROR(VLOOKUP(C355,'Capacidad Financiera'!$B$12:$X$62720,3,0)),\"\",VLOOKUP(C355,'Capacidad Financiera'!$B$12:$X$62720,3,0))","v":0},null,{"$f":"IF(OR(D355=\"\",E355=\"\",F355=\"\"),\"\",IF(C355<>\"\",IF(ISERROR(VLOOKUP($A$10,POA!$A$2:$D$25,2,0)),\"\",VLOOKUP($A$10,POA!$A$2:$D$25,2,0)),\"\"))","v":""},"",{"$f":"IF(OR(D355=\"\",E355=\"\",F355=\"\"),\"\",IF(AND(H355>0,H355<=Experiencia1),Puntajes!$D$4,IF(AND(H355>Experiencia1,H355<=Experiencia2),Puntajes!$D$5,IF(AND(H355>Experiencia2,H355<=Experiencia3),Puntajes!$D$6,IF(H355>Experiencia3,Puntajes!$D$7,0)))))","v":""}]
[null,null,{"$f":"+'Capacidad Financiera'!B359","v":""},{"$f":"IF(ISERROR(VLOOKUP(C356,'Capacidad Financiera'!$B$12:$X$62720,2,0)),\"\",VLOOKUP(C356,'Capacidad Financiera'!$B$12:$X$3580,2,0))","v":0},{"$f":"IF(ISERROR(VLOOKUP(C356,'Capacidad Financiera'!$B$12:$X$62720,3,0)),\"\",VLOOKUP(C356,'Capacidad Financiera'!$B$12:$X$62720,3,0))","v":0},null,{"$f":"IF(OR(D356=\"\",E356=\"\",F356=\"\"),\"\",IF(C356<>\"\",IF(ISERROR(VLOOKUP($A$10,POA!$A$2:$D$25,2,0)),\"\",VLOOKUP($A$10,POA!$A$2:$D$25,2,0)),\"\"))","v":""},"",{"$f":"IF(OR(D356=\"\",E356=\"\",F356=\"\"),\"\",IF(AND(H356>0,H356<=Experiencia1),Puntajes!$D$4,IF(AND(H356>Experiencia1,H356<=Experiencia2),Puntajes!$D$5,IF(AND(H356>Experiencia2,H356<=Experiencia3),Puntajes!$D$6,IF(H356>Experiencia3,Puntajes!$D$7,0)))))","v":""}]
[null,null,{"$f":"+'Capacidad Financiera'!B360","v":""},{"$f":"IF(ISERROR(VLOOKUP(C357,'Capacidad Financiera'!$B$12:$X$62720,2,0)),\"\",VLOOKUP(C357,'Capacidad Financiera'!$B$12:$X$3580,2,0))","v":0},{"$f":"IF(ISERROR(VLOOKUP(C357,'Capacidad Financiera'!$B$12:$X$62720,3,0)),\"\",VLOOKUP(C357,'Capacidad Financiera'!$B$12:$X$62720,3,0))","v":0},null,{"$f":"IF(OR(D357=\"\",E357=\"\",F357=\"\"),\"\",IF(C357<>\"\",IF(ISERROR(VLOOKUP($A$10,POA!$A$2:$D$25,2,0)),\"\",VLOOKUP($A$10,POA!$A$2:$D$25,2,0)),\"\"))","v":""},"",{"$f":"IF(OR(D357=\"\",E357=\"\",F357=\"\"),\"\",IF(AND(H357>0,H357<=Experiencia1),Puntajes!$D$4,IF(AND(H357>Experiencia1,H357<=Experiencia2),Puntajes!$D$5,IF(AND(H357>Experiencia2,H357<=Experiencia3),Puntajes!$D$6,IF(H357>Experiencia3,Puntajes!$D$7,0)))))","v":""}]
[null,null,{"$f":"+'Capacidad Financiera'!B361","v":""},{"$f":"IF(ISERROR(VLOOKUP(C358,'Capacidad Financiera'!$B$12:$X$62720,2,0)),\"\",VLOOKUP(C358,'Capacidad Financiera'!$B$12:$X$3580,2,0))","v":0},{"$f":"IF(ISERROR(VLOOKUP(C358,'Capacidad Financiera'!$B$12:$X$62720,3,0)),\"\",VLOOKUP(C358,'Capacidad Financiera'!$B$12:$X$62720,3,0))","v":0},null,{"$f":"IF(OR(D358=\"\",E358=\"\",F358=\"\"),\"\",IF(C358<>\"\",IF(ISERROR(VLOOKUP($A$10,POA!$A$2:$D$25,2,0)),\"\",VLOOKUP($A$10,POA!$A$2:$D$25,2,0)),\"\"))","v":""},"",{"$f":"IF(OR(D358=\"\",E358=\"\",F358=\"\"),\"\",IF(AND(H358>0,H358<=Experiencia1),Puntajes!$D$4,IF(AND(H358>Experiencia1,H358<=Experiencia2),Puntajes!$D$5,IF(AND(H358>Experiencia2,H358<=Experiencia3),Puntajes!$D$6,IF(H358>Experiencia3,Puntajes!$D$7,0)))))","v":""}]
[null,null,{"$f":"+'Capacidad Financiera'!B362","v":""},{"$f":"IF(ISERROR(VLOOKUP(C359,'Capacidad Financiera'!$B$12:$X$62720,2,0)),\"\",VLOOKUP(C359,'Capacidad Financiera'!$B$12:$X$3580,2,0))","v":0},{"$f":"IF(ISERROR(VLOOKUP(C359,'Capacidad Financiera'!$B$12:$X$62720,3,0)),\"\",VLOOKUP(C359,'Capacidad Financiera'!$B$12:$X$62720,3,0))","v":0},null,{"$f":"IF(OR(D359=\"\",E359=\"\",F359=\"\"),\"\",IF(C359<>\"\",IF(ISERROR(VLOOKUP($A$10,POA!$A$2:$D$25,2,0)),\"\",VLOOKUP($A$10,POA!$A$2:$D$25,2,0)),\"\"))","v":""},"",{"$f":"IF(OR(D359=\"\",E359=\"\",F359=\"\"),\"\",IF(AND(H359>0,H359<=Experiencia1),Puntajes!$D$4,IF(AND(H359>Experiencia1,H359<=Experiencia2),Puntajes!$D$5,IF(AND(H359>Experiencia2,H359<=Experiencia3),Puntajes!$D$6,IF(H359>Experiencia3,Puntajes!$D$7,0)))))","v":""}]
[null,null,{"$f":"+'Capacidad Financiera'!B363","v":""},{"$f":"IF(ISERROR(VLOOKUP(C360,'Capacidad Financiera'!$B$12:$X$62720,2,0)),\"\",VLOOKUP(C360,'Capacidad Financiera'!$B$12:$X$3580,2,0))","v":0},{"$f":"IF(ISERROR(VLOOKUP(C360,'Capacidad Financiera'!$B$12:$X$62720,3,0)),\"\",VLOOKUP(C360,'Capacidad Financiera'!$B$12:$X$62720,3,0))","v":0},null,{"$f":"IF(OR(D360=\"\",E360=\"\",F360=\"\"),\"\",IF(C360<>\"\",IF(ISERROR(VLOOKUP($A$10,POA!$A$2:$D$25,2,0)),\"\",VLOOKUP($A$10,POA!$A$2:$D$25,2,0)),\"\"))","v":""},"",{"$f":"IF(OR(D360=\"\",E360=\"\",F360=\"\"),\"\",IF(AND(H360>0,H360<=Experiencia1),Puntajes!$D$4,IF(AND(H360>Experiencia1,H360<=Experiencia2),Puntajes!$D$5,IF(AND(H360>Experiencia2,H360<=Experiencia3),Puntajes!$D$6,IF(H360>Experiencia3,Puntajes!$D$7,0)))))","v":""}]
[null,null,33,{"$f":"IF(ISERROR(VLOOKUP(C361,'Capacidad Financiera'!$B$12:$X$62720,2,0)),\"\",VLOOKUP(C361,'Capacidad Financiera'!$B$12:$X$3580,2,0))","v":"CONSTRUCCIONES E INVERSIONES BETA S.A.S."},{"$f":"IF(ISERROR(VLOOKUP(C361,'Capacidad Financiera'!$B$12:$X$62720,3,0)),\"\",VLOOKUP(C361,'Capacidad Financiera'!$B$12:$X$62720,3,0))","v":1},null,{"$f":"IF(OR(D361=\"\",E361=\"\",F361=\"\"),\"\",IF(C362=\"\",IF(C361<>\"\",IF(ISERROR(VLOOKUP($A$10,POA!$A$2:$D$25,2,0)),\"\",VLOOKUP($A$10,POA!$A$2:$D$25,2,0)),\"\"),\"\"))","v":""},{"$f":"IF(OR(D361=\"\",E361=\"\",F361=\"\"),\"\",IF(C362=\"\",IF(C361<>\"\",F361/G361,\"\"),\"\"))","v":""},{"$f":"IF(C362=\"\",IF(F361=\"\",\"\",IF(AND(H361>0,H361<=Experiencia1),Puntajes!$D$4,IF(AND(H361>Experiencia1,H361<=Experiencia2),Puntajes!$D$5,IF(AND(H361>Experiencia2,H361<=Experiencia3),Puntajes!$D$6,IF(H361>Experiencia3,Puntajes!$D$7,0))))),\"\")","v":""}]
[null,null,{"$f":"+'Capacidad Financiera'!B365","v":33.1},{"$f":"IF(ISERROR(VLOOKUP(C362,'Capacidad Financiera'!$B$12:$X$62720,2,0)),\"\",VLOOKUP(C362,'Capacidad Financiera'!$B$12:$X$3580,2,0))","v":"CONSTRUCCIONES E INVERSIONES BETA S.A.S."},{"$f":"IF(ISERROR(VLOOKUP(C362,'Capacidad Financiera'!$B$12:$X$62720,3,0)),\"\",VLOOKUP(C362,'Capacidad Financiera'!$B$12:$X$62720,3,0))","v":1},293547462214.17999,{"$f":"IF(OR(D362=\"\",E362=\"\",F362=\"\"),\"\",IF(C362<>\"\",IF(ISERROR(VLOOKUP($A$10,POA!$A$2:$D$25,2,0)),\"\",VLOOKUP($A$10,POA!$A$2:$D$25,2,0)),\"\"))","v":4167150295},{"$f":"IF(OR(D362=\"\",E362=\"\",F362=\"\"),\"\",IF(C362<>\"\",F362/(G362*E362),\"\"))","v":70.443214531137997},{"$f":"IF(OR(D362=\"\",E362=\"\",F362=\"\"),\"\",IF(AND(H362>0,H362<=Experiencia1),Puntajes!$D$4,IF(AND(H362>Experiencia1,H362<=Experiencia2),Puntajes!$D$5,IF(AND(H362>Experiencia2,H362<=Experiencia3),Puntajes!$D$6,IF(H362>Experiencia3,Puntajes!$D$7,0)))))","v":120}]
[null,null,{"$f":"+'Capacidad Financiera'!B366","v":""},{"$f":"IF(ISERROR(VLOOKUP(C363,'Capacidad Financiera'!$B$12:$X$62720,2,0)),\"\",VLOOKUP(C363,'Capacidad Financiera'!$B$12:$X$3580,2,0))","v":0},{"$f":"IF(ISERROR(VLOOKUP(C363,'Capacidad Financiera'!$B$12:$X$62720,3,0)),\"\",VLOOKUP(C363,'Capacidad Financiera'!$B$12:$X$62720,3,0))","v":0},null,{"$f":"IF(OR(D363=\"\",E363=\"\",F363=\"\"),\"\",IF(C363<>\"\",IF(ISERROR(VLOOKUP($A$10,POA!$A$2:$D$25,2,0)),\"\",VLOOKUP($A$10,POA!$A$2:$D$25,2,0)),\"\"))","v":""},{"$f":"IF(OR(D363=\"\",E363=\"\",F363=\"\"),\"\",IF(C363<>\"\",F363/(G363*E363),\"\"))","v":""},{"$f":"IF(OR(D363=\"\",E363=\"\",F363=\"\"),\"\",IF(AND(H363>0,H363<=Experiencia1),Puntajes!$D$4,IF(AND(H363>Experiencia1,H363<=Experiencia2),Puntajes!$D$5,IF(AND(H363>Experiencia2,H363<=Experiencia3),Puntajes!$D$6,IF(H363>Experiencia3,Puntajes!$D$7,0)))))","v":""}]
[null,null,{"$f":"+'Capacidad Financiera'!B367","v":""},{"$f":"IF(ISERROR(VLOOKUP(C364,'Capacidad Financiera'!$B$12:$X$62720,2,0)),\"\",VLOOKUP(C364,'Capacidad Financiera'!$B$12:$X$3580,2,0))","v":0},{"$f":"IF(ISERROR(VLOOKUP(C364,'Capacidad Financiera'!$B$12:$X$62720,3,0)),\"\",VLOOKUP(C364,'Capacidad Financiera'!$B$12:$X$62720,3,0))","v":0},null,{"$f":"IF(OR(D364=\"\",E364=\"\",F364=\"\"),\"\",IF(C364<>\"\",IF(ISERROR(VLOOKUP($A$10,POA!$A$2:$D$25,2,0)),\"\",VLOOKUP($A$10,POA!$A$2:$D$25,2,0)),\"\"))","v":""},"",{"$f":"IF(OR(D364=\"\",E364=\"\",F364=\"\"),\"\",IF(AND(H364>0,H364<=Experiencia1),Puntajes!$D$4,IF(AND(H364>Experiencia1,H364<=Experiencia2),Puntajes!$D$5,IF(AND(H364>Experiencia2,H364<=Experiencia3),Puntajes!$D$6,IF(H364>Experiencia3,Puntajes!$D$7,0)))))","v":""}]
[null,null,{"$f":"+'Capacidad Financiera'!B368","v":""},{"$f":"IF(ISERROR(VLOOKUP(C365,'Capacidad Financiera'!$B$12:$X$62720,2,0)),\"\",VLOOKUP(C365,'Capacidad Financiera'!$B$12:$X$3580,2,0))","v":0},{"$f":"IF(ISERROR(VLOOKUP(C365,'Capacidad Financiera'!$B$12:$X$62720,3,0)),\"\",VLOOKUP(C365,'Capacidad Financiera'!$B$12:$X$62720,3,0))","v":0},null,{"$f":"IF(OR(D365=\"\",E365=\"\",F365=\"\"),\"\",IF(C365<>\"\",IF(ISERROR(VLOOKUP($A$10,POA!$A$2:$D$25,2,0)),\"\",VLOOKUP($A$10,POA!$A$2:$D$25,2,0)),\"\"))","v":""},"",{"$f":"IF(OR(D365=\"\",E365=\"\",F365=\"\"),\"\",IF(AND(H365>0,H365<=Experiencia1),Puntajes!$D$4,IF(AND(H365>Experiencia1,H365<=Experiencia2),Puntajes!$D$5,IF(AND(H365>Experiencia2,H365<=Experiencia3),Puntajes!$D$6,IF(H365>Experiencia3,Puntajes!$D$7,0)))))","v":""}]
[null,null,{"$f":"+'Capacidad Financiera'!B369","v":""},{"$f":"IF(ISERROR(VLOOKUP(C366,'Capacidad Financiera'!$B$12:$X$62720,2,0)),\"\",VLOOKUP(C366,'Capacidad Financiera'!$B$12:$X$3580,2,0))","v":0},{"$f":"IF(ISERROR(VLOOKUP(C366,'Capacidad Financiera'!$B$12:$X$62720,3,0)),\"\",VLOOKUP(C366,'Capacidad Financiera'!$B$12:$X$62720,3,0))","v":0},null,{"$f":"IF(OR(D366=\"\",E366=\"\",F366=\"\"),\"\",IF(C366<>\"\",IF(ISERROR(VLOOKUP($A$10,POA!$A$2:$D$25,2,0)),\"\",VLOOKUP($A$10,POA!$A$2:$D$25,2,0)),\"\"))","v":""},"",{"$f":"IF(OR(D366=\"\",E366=\"\",F366=\"\"),\"\",IF(AND(H366>0,H366<=Experiencia1),Puntajes!$D$4,IF(AND(H366>Experiencia1,H366<=Experiencia2),Puntajes!$D$5,IF(AND(H366>Experiencia2,H366<=Experiencia3),Puntajes!$D$6,IF(H366>Experiencia3,Puntajes!$D$7,0)))))","v":""}]
[null,null,{"$f":"+'Capacidad Financiera'!B370","v":""},{"$f":"IF(ISERROR(VLOOKUP(C367,'Capacidad Financiera'!$B$12:$X$62720,2,0)),\"\",VLOOKUP(C367,'Capacidad Financiera'!$B$12:$X$3580,2,0))","v":0},{"$f":"IF(ISERROR(VLOOKUP(C367,'Capacidad Financiera'!$B$12:$X$62720,3,0)),\"\",VLOOKUP(C367,'Capacidad Financiera'!$B$12:$X$62720,3,0))","v":0},null,{"$f":"IF(OR(D367=\"\",E367=\"\",F367=\"\"),\"\",IF(C367<>\"\",IF(ISERROR(VLOOKUP($A$10,POA!$A$2:$D$25,2,0)),\"\",VLOOKUP($A$10,POA!$A$2:$D$25,2,0)),\"\"))","v":""},"",{"$f":"IF(OR(D367=\"\",E367=\"\",F367=\"\"),\"\",IF(AND(H367>0,H367<=Experiencia1),Puntajes!$D$4,IF(AND(H367>Experiencia1,H367<=Experiencia2),Puntajes!$D$5,IF(AND(H367>Experiencia2,H367<=Experiencia3),Puntajes!$D$6,IF(H367>Experiencia3,Puntajes!$D$7,0)))))","v":""}]
[null,null,{"$f":"+'Capacidad Financiera'!B371","v":""},{"$f":"IF(ISERROR(VLOOKUP(C368,'Capacidad Financiera'!$B$12:$X$62720,2,0)),\"\",VLOOKUP(C368,'Capacidad Financiera'!$B$12:$X$3580,2,0))","v":0},{"$f":"IF(ISERROR(VLOOKUP(C368,'Capacidad Financiera'!$B$12:$X$62720,3,0)),\"\",VLOOKUP(C368,'Capacidad Financiera'!$B$12:$X$62720,3,0))","v":0},null,{"$f":"IF(OR(D368=\"\",E368=\"\",F368=\"\"),\"\",IF(C368<>\"\",IF(ISERROR(VLOOKUP($A$10,POA!$A$2:$D$25,2,0)),\"\",VLOOKUP($A$10,POA!$A$2:$D$25,2,0)),\"\"))","v":""},"",{"$f":"IF(OR(D368=\"\",E368=\"\",F368=\"\"),\"\",IF(AND(H368>0,H368<=Experiencia1),Puntajes!$D$4,IF(AND(H368>Experiencia1,H368<=Experiencia2),Puntajes!$D$5,IF(AND(H368>Experiencia2,H368<=Experiencia3),Puntajes!$D$6,IF(H368>Experiencia3,Puntajes!$D$7,0)))))","v":""}]
[null,null,{"$f":"+'Capacidad Financiera'!B372","v":""},{"$f":"IF(ISERROR(VLOOKUP(C369,'Capacidad Financiera'!$B$12:$X$62720,2,0)),\"\",VLOOKUP(C369,'Capacidad Financiera'!$B$12:$X$3580,2,0))","v":0},{"$f":"IF(ISERROR(VLOOKUP(C369,'Capacidad Financiera'!$B$12:$X$62720,3,0)),\"\",VLOOKUP(C369,'Capacidad Financiera'!$B$12:$X$62720,3,0))","v":0},null,{"$f":"IF(OR(D369=\"\",E369=\"\",F369=\"\"),\"\",IF(C369<>\"\",IF(ISERROR(VLOOKUP($A$10,POA!$A$2:$D$25,2,0)),\"\",VLOOKUP($A$10,POA!$A$2:$D$25,2,0)),\"\"))","v":""},"",{"$f":"IF(OR(D369=\"\",E369=\"\",F369=\"\"),\"\",IF(AND(H369>0,H369<=Experiencia1),Puntajes!$D$4,IF(AND(H369>Experiencia1,H369<=Experiencia2),Puntajes!$D$5,IF(AND(H369>Experiencia2,H369<=Experiencia3),Puntajes!$D$6,IF(H369>Experiencia3,Puntajes!$D$7,0)))))","v":""}]
[null,null,{"$f":"+'Capacidad Financiera'!B373","v":""},{"$f":"IF(ISERROR(VLOOKUP(C370,'Capacidad Financiera'!$B$12:$X$62720,2,0)),\"\",VLOOKUP(C370,'Capacidad Financiera'!$B$12:$X$3580,2,0))","v":0},{"$f":"IF(ISERROR(VLOOKUP(C370,'Capacidad Financiera'!$B$12:$X$62720,3,0)),\"\",VLOOKUP(C370,'Capacidad Financiera'!$B$12:$X$62720,3,0))","v":0},null,{"$f":"IF(OR(D370=\"\",E370=\"\",F370=\"\"),\"\",IF(C370<>\"\",IF(ISERROR(VLOOKUP($A$10,POA!$A$2:$D$25,2,0)),\"\",VLOOKUP($A$10,POA!$A$2:$D$25,2,0)),\"\"))","v":""},"",{"$f":"IF(OR(D370=\"\",E370=\"\",F370=\"\"),\"\",IF(AND(H370>0,H370<=Experiencia1),Puntajes!$D$4,IF(AND(H370>Experiencia1,H370<=Experiencia2),Puntajes!$D$5,IF(AND(H370>Experiencia2,H370<=Experiencia3),Puntajes!$D$6,IF(H370>Experiencia3,Puntajes!$D$7,0)))))","v":""}]
[null,null,{"$f":"+'Capacidad Financiera'!B374","v":""},{"$f":"IF(ISERROR(VLOOKUP(C371,'Capacidad Financiera'!$B$12:$X$62720,2,0)),\"\",VLOOKUP(C371,'Capacidad Financiera'!$B$12:$X$3580,2,0))","v":0},{"$f":"IF(ISERROR(VLOOKUP(C371,'Capacidad Financiera'!$B$12:$X$62720,3,0)),\"\",VLOOKUP(C371,'Capacidad Financiera'!$B$12:$X$62720,3,0))","v":0},null,{"$f":"IF(OR(D371=\"\",E371=\"\",F371=\"\"),\"\",IF(C371<>\"\",IF(ISERROR(VLOOKUP($A$10,POA!$A$2:$D$25,2,0)),\"\",VLOOKUP($A$10,POA!$A$2:$D$25,2,0)),\"\"))","v":""},"",{"$f":"IF(OR(D371=\"\",E371=\"\",F371=\"\"),\"\",IF(AND(H371>0,H371<=Experiencia1),Puntajes!$D$4,IF(AND(H371>Experiencia1,H371<=Experiencia2),Puntajes!$D$5,IF(AND(H371>Experiencia2,H371<=Experiencia3),Puntajes!$D$6,IF(H371>Experiencia3,Puntajes!$D$7,0)))))","v":""}]
[null,null,34,{"$f":"IF(ISERROR(VLOOKUP(C372,'Capacidad Financiera'!$B$12:$X$62720,2,0)),\"\",VLOOKUP(C372,'Capacidad Financiera'!$B$12:$X$3580,2,0))","v":"CI GRODCO S EN CA INGENIEROS CIVILES"},{"$f":"IF(ISERROR(VLOOKUP(C372,'Capacidad Financiera'!$B$12:$X$62720,3,0)),\"\",VLOOKUP(C372,'Capacidad Financiera'!$B$12:$X$62720,3,0))","v":1},null,{"$f":"IF(OR(D372=\"\",E372=\"\",F372=\"\"),\"\",IF(C373=\"\",IF(C372<>\"\",IF(ISERROR(VLOOKUP($A$10,POA!$A$2:$D$25,2,0)),\"\",VLOOKUP($A$10,POA!$A$2:$D$25,2,0)),\"\"),\"\"))","v":""},{"$f":"IF(OR(D372=\"\",E372=\"\",F372=\"\"),\"\",IF(C373=\"\",IF(C372<>\"\",F372/G372,\"\"),\"\"))","v":""},{"$f":"IF(C373=\"\",IF(F372=\"\",\"\",IF(AND(H372>0,H372<=Experiencia1),Puntajes!$D$4,IF(AND(H372>Experiencia1,H372<=Experiencia2),Puntajes!$D$5,IF(AND(H372>Experiencia2,H372<=Experiencia3),Puntajes!$D$6,IF(H372>Experiencia3,Puntajes!$D$7,0))))),\"\")","v":""}]
[null,null,{"$f":"+'Capacidad Financiera'!B376","v":34.1},{"$f":"IF(ISERROR(VLOOKUP(C373,'Capacidad Financiera'!$B$12:$X$62720,2,0)),\"\",VLOOKUP(C373,'Capacidad Financiera'!$B$12:$X$3580,2,0))","v":"CI GRODCO S EN CA INGENIEROS CIVILES"},{"$f":"IF(ISERROR(VLOOKUP(C373,'Capacidad Financiera'!$B$12:$X$62720,3,0)),\"\",VLOOKUP(C373,'Capacidad Financiera'!$B$12:$X$62720,3,0))","v":1},929325382524,{"$f":"IF(OR(D373=\"\",E373=\"\",F373=\"\"),\"\",IF(C373<>\"\",IF(ISERROR(VLOOKUP($A$10,POA!$A$2:$D$25,2,0)),\"\",VLOOKUP($A$10,POA!$A$2:$D$25,2,0)),\"\"))","v":4167150295},{"$f":"IF(OR(D373=\"\",E373=\"\",F373=\"\"),\"\",IF(C373<>\"\",F373/(G373*E373),\"\"))","v":223.01220660053011},{"$f":"IF(OR(D373=\"\",E373=\"\",F373=\"\"),\"\",IF(AND(H373>0,H373<=Experiencia1),Puntajes!$D$4,IF(AND(H373>Experiencia1,H373<=Experiencia2),Puntajes!$D$5,IF(AND(H373>Experiencia2,H373<=Experiencia3),Puntajes!$D$6,IF(H373>Experiencia3,Puntajes!$D$7,0)))))","v":120}]
[null,null,{"$f":"+'Capacidad Financiera'!B377","v":""},{"$f":"IF(ISERROR(VLOOKUP(C374,'Capacidad Financiera'!$B$12:$X$62720,2,0)),\"\",VLOOKUP(C374,'Capacidad Financiera'!$B$12:$X$3580,2,0))","v":0},{"$f":"IF(ISERROR(VLOOKUP(C374,'Capacidad Financiera'!$B$12:$X$62720,3,0)),\"\",VLOOKUP(C374,'Capacidad Financiera'!$B$12:$X$62720,3,0))","v":0},null,{"$f":"IF(OR(D374=\"\",E374=\"\",F374=\"\"),\"\",IF(C374<>\"\",IF(ISERROR(VLOOKUP($A$10,POA!$A$2:$D$25,2,0)),\"\",VLOOKUP($A$10,POA!$A$2:$D$25,2,0)),\"\"))","v":""},{"$f":"IF(OR(D374=\"\",E374=\"\",F374=\"\"),\"\",IF(C374<>\"\",F374/(G374*E374),\"\"))","v":""},{"$f":"IF(OR(D374=\"\",E374=\"\",F374=\"\"),\"\",IF(AND(H374>0,H374<=Experiencia1),Puntajes!$D$4,IF(AND(H374>Experiencia1,H374<=Experiencia2),Puntajes!$D$5,IF(AND(H374>Experiencia2,H374<=Experiencia3),Puntajes!$D$6,IF(H374>Experiencia3,Puntajes!$D$7,0)))))","v":""}]
[null,null,{"$f":"+'Capacidad Financiera'!B378","v":""},{"$f":"IF(ISERROR(VLOOKUP(C375,'Capacidad Financiera'!$B$12:$X$62720,2,0)),\"\",VLOOKUP(C375,'Capacidad Financiera'!$B$12:$X$3580,2,0))","v":0},{"$f":"IF(ISERROR(VLOOKUP(C375,'Capacidad Financiera'!$B$12:$X$62720,3,0)),\"\",VLOOKUP(C375,'Capacidad Financiera'!$B$12:$X$62720,3,0))","v":0},null,{"$f":"IF(OR(D375=\"\",E375=\"\",F375=\"\"),\"\",IF(C375<>\"\",IF(ISERROR(VLOOKUP($A$10,POA!$A$2:$D$25,2,0)),\"\",VLOOKUP($A$10,POA!$A$2:$D$25,2,0)),\"\"))","v":""},"",{"$f":"IF(OR(D375=\"\",E375=\"\",F375=\"\"),\"\",IF(AND(H375>0,H375<=Experiencia1),Puntajes!$D$4,IF(AND(H375>Experiencia1,H375<=Experiencia2),Puntajes!$D$5,IF(AND(H375>Experiencia2,H375<=Experiencia3),Puntajes!$D$6,IF(H375>Experiencia3,Puntajes!$D$7,0)))))","v":""}]
[null,null,{"$f":"+'Capacidad Financiera'!B379","v":""},{"$f":"IF(ISERROR(VLOOKUP(C376,'Capacidad Financiera'!$B$12:$X$62720,2,0)),\"\",VLOOKUP(C376,'Capacidad Financiera'!$B$12:$X$3580,2,0))","v":0},{"$f":"IF(ISERROR(VLOOKUP(C376,'Capacidad Financiera'!$B$12:$X$62720,3,0)),\"\",VLOOKUP(C376,'Capacidad Financiera'!$B$12:$X$62720,3,0))","v":0},null,{"$f":"IF(OR(D376=\"\",E376=\"\",F376=\"\"),\"\",IF(C376<>\"\",IF(ISERROR(VLOOKUP($A$10,POA!$A$2:$D$25,2,0)),\"\",VLOOKUP($A$10,POA!$A$2:$D$25,2,0)),\"\"))","v":""},"",{"$f":"IF(OR(D376=\"\",E376=\"\",F376=\"\"),\"\",IF(AND(H376>0,H376<=Experiencia1),Puntajes!$D$4,IF(AND(H376>Experiencia1,H376<=Experiencia2),Puntajes!$D$5,IF(AND(H376>Experiencia2,H376<=Experiencia3),Puntajes!$D$6,IF(H376>Experiencia3,Puntajes!$D$7,0)))))","v":""}]
[null,null,{"$f":"+'Capacidad Financiera'!B380","v":""},{"$f":"IF(ISERROR(VLOOKUP(C377,'Capacidad Financiera'!$B$12:$X$62720,2,0)),\"\",VLOOKUP(C377,'Capacidad Financiera'!$B$12:$X$3580,2,0))","v":0},{"$f":"IF(ISERROR(VLOOKUP(C377,'Capacidad Financiera'!$B$12:$X$62720,3,0)),\"\",VLOOKUP(C377,'Capacidad Financiera'!$B$12:$X$62720,3,0))","v":0},null,{"$f":"IF(OR(D377=\"\",E377=\"\",F377=\"\"),\"\",IF(C377<>\"\",IF(ISERROR(VLOOKUP($A$10,POA!$A$2:$D$25,2,0)),\"\",VLOOKUP($A$10,POA!$A$2:$D$25,2,0)),\"\"))","v":""},"",{"$f":"IF(OR(D377=\"\",E377=\"\",F377=\"\"),\"\",IF(AND(H377>0,H377<=Experiencia1),Puntajes!$D$4,IF(AND(H377>Experiencia1,H377<=Experiencia2),Puntajes!$D$5,IF(AND(H377>Experiencia2,H377<=Experiencia3),Puntajes!$D$6,IF(H377>Experiencia3,Puntajes!$D$7,0)))))","v":""}]
[null,null,{"$f":"+'Capacidad Financiera'!B381","v":""},{"$f":"IF(ISERROR(VLOOKUP(C378,'Capacidad Financiera'!$B$12:$X$62720,2,0)),\"\",VLOOKUP(C378,'Capacidad Financiera'!$B$12:$X$3580,2,0))","v":0},{"$f":"IF(ISERROR(VLOOKUP(C378,'Capacidad Financiera'!$B$12:$X$62720,3,0)),\"\",VLOOKUP(C378,'Capacidad Financiera'!$B$12:$X$62720,3,0))","v":0},null,{"$f":"IF(OR(D378=\"\",E378=\"\",F378=\"\"),\"\",IF(C378<>\"\",IF(ISERROR(VLOOKUP($A$10,POA!$A$2:$D$25,2,0)),\"\",VLOOKUP($A$10,POA!$A$2:$D$25,2,0)),\"\"))","v":""},"",{"$f":"IF(OR(D378=\"\",E378=\"\",F378=\"\"),\"\",IF(AND(H378>0,H378<=Experiencia1),Puntajes!$D$4,IF(AND(H378>Experiencia1,H378<=Experiencia2),Puntajes!$D$5,IF(AND(H378>Experiencia2,H378<=Experiencia3),Puntajes!$D$6,IF(H378>Experiencia3,Puntajes!$D$7,0)))))","v":""}]
[null,null,{"$f":"+'Capacidad Financiera'!B382","v":""},{"$f":"IF(ISERROR(VLOOKUP(C379,'Capacidad Financiera'!$B$12:$X$62720,2,0)),\"\",VLOOKUP(C379,'Capacidad Financiera'!$B$12:$X$3580,2,0))","v":0},{"$f":"IF(ISERROR(VLOOKUP(C379,'Capacidad Financiera'!$B$12:$X$62720,3,0)),\"\",VLOOKUP(C379,'Capacidad Financiera'!$B$12:$X$62720,3,0))","v":0},null,{"$f":"IF(OR(D379=\"\",E379=\"\",F379=\"\"),\"\",IF(C379<>\"\",IF(ISERROR(VLOOKUP($A$10,POA!$A$2:$D$25,2,0)),\"\",VLOOKUP($A$10,POA!$A$2:$D$25,2,0)),\"\"))","v":""},"",{"$f":"IF(OR(D379=\"\",E379=\"\",F379=\"\"),\"\",IF(AND(H379>0,H379<=Experiencia1),Puntajes!$D$4,IF(AND(H379>Experiencia1,H379<=Experiencia2),Puntajes!$D$5,IF(AND(H379>Experiencia2,H379<=Experiencia3),Puntajes!$D$6,IF(H379>Experiencia3,Puntajes!$D$7,0)))))","v":""}]
[null,null,{"$f":"+'Capacidad Financiera'!B383","v":""},{"$f":"IF(ISERROR(VLOOKUP(C380,'Capacidad Financiera'!$B$12:$X$62720,2,0)),\"\",VLOOKUP(C380,'Capacidad Financiera'!$B$12:$X$3580,2,0))","v":0},{"$f":"IF(ISERROR(VLOOKUP(C380,'Capacidad Financiera'!$B$12:$X$62720,3,0)),\"\",VLOOKUP(C380,'Capacidad Financiera'!$B$12:$X$62720,3,0))","v":0},null,{"$f":"IF(OR(D380=\"\",E380=\"\",F380=\"\"),\"\",IF(C380<>\"\",IF(ISERROR(VLOOKUP($A$10,POA!$A$2:$D$25,2,0)),\"\",VLOOKUP($A$10,POA!$A$2:$D$25,2,0)),\"\"))","v":""},"",{"$f":"IF(OR(D380=\"\",E380=\"\",F380=\"\"),\"\",IF(AND(H380>0,H380<=Experiencia1),Puntajes!$D$4,IF(AND(H380>Experiencia1,H380<=Experiencia2),Puntajes!$D$5,IF(AND(H380>Experiencia2,H380<=Experiencia3),Puntajes!$D$6,IF(H380>Experiencia3,Puntajes!$D$7,0)))))","v":""}]
[null,null,{"$f":"+'Capacidad Financiera'!B384","v":""},{"$f":"IF(ISERROR(VLOOKUP(C381,'Capacidad Financiera'!$B$12:$X$62720,2,0)),\"\",VLOOKUP(C381,'Capacidad Financiera'!$B$12:$X$3580,2,0))","v":0},{"$f":"IF(ISERROR(VLOOKUP(C381,'Capacidad Financiera'!$B$12:$X$62720,3,0)),\"\",VLOOKUP(C381,'Capacidad Financiera'!$B$12:$X$62720,3,0))","v":0},null,{"$f":"IF(OR(D381=\"\",E381=\"\",F381=\"\"),\"\",IF(C381<>\"\",IF(ISERROR(VLOOKUP($A$10,POA!$A$2:$D$25,2,0)),\"\",VLOOKUP($A$10,POA!$A$2:$D$25,2,0)),\"\"))","v":""},"",{"$f":"IF(OR(D381=\"\",E381=\"\",F381=\"\"),\"\",IF(AND(H381>0,H381<=Experiencia1),Puntajes!$D$4,IF(AND(H381>Experiencia1,H381<=Experiencia2),Puntajes!$D$5,IF(AND(H381>Experiencia2,H381<=Experiencia3),Puntajes!$D$6,IF(H381>Experiencia3,Puntajes!$D$7,0)))))","v":""}]
[null,null,{"$f":"+'Capacidad Financiera'!B385","v":""},{"$f":"IF(ISERROR(VLOOKUP(C382,'Capacidad Financiera'!$B$12:$X$62720,2,0)),\"\",VLOOKUP(C382,'Capacidad Financiera'!$B$12:$X$3580,2,0))","v":0},{"$f":"IF(ISERROR(VLOOKUP(C382,'Capacidad Financiera'!$B$12:$X$62720,3,0)),\"\",VLOOKUP(C382,'Capacidad Financiera'!$B$12:$X$62720,3,0))","v":0},null,{"$f":"IF(OR(D382=\"\",E382=\"\",F382=\"\"),\"\",IF(C382<>\"\",IF(ISERROR(VLOOKUP($A$10,POA!$A$2:$D$25,2,0)),\"\",VLOOKUP($A$10,POA!$A$2:$D$25,2,0)),\"\"))","v":""},"",{"$f":"IF(OR(D382=\"\",E382=\"\",F382=\"\"),\"\",IF(AND(H382>0,H382<=Experiencia1),Puntajes!$D$4,IF(AND(H382>Experiencia1,H382<=Experiencia2),Puntajes!$D$5,IF(AND(H382>Experiencia2,H382<=Experiencia3),Puntajes!$D$6,IF(H382>Experiencia3,Puntajes!$D$7,0)))))","v":""}]
[null,null,35,{"$f":"IF(ISERROR(VLOOKUP(C383,'Capacidad Financiera'!$B$12:$X$62720,2,0)),\"\",VLOOKUP(C383,'Capacidad Financiera'!$B$12:$X$3580,2,0))","v":"MUVEK S.A.S"},{"$f":"IF(ISERROR(VLOOKUP(C383,'Capacidad Financiera'!$B$12:$X$62720,3,0)),\"\",VLOOKUP(C383,'Capacidad Financiera'!$B$12:$X$62720,3,0))","v":1},null,{"$f":"IF(OR(D383=\"\",E383=\"\",F383=\"\"),\"\",IF(C384=\"\",IF(C383<>\"\",IF(ISERROR(VLOOKUP($A$10,POA!$A$2:$D$25,2,0)),\"\",VLOOKUP($A$10,POA!$A$2:$D$25,2,0)),\"\"),\"\"))","v":""},{"$f":"IF(OR(D383=\"\",E383=\"\",F383=\"\"),\"\",IF(C384=\"\",IF(C383<>\"\",F383/G383,\"\"),\"\"))","v":""},{"$f":"IF(C384=\"\",IF(F383=\"\",\"\",IF(AND(H383>0,H383<=Experiencia1),Puntajes!$D$4,IF(AND(H383>Experiencia1,H383<=Experiencia2),Puntajes!$D$5,IF(AND(H383>Experiencia2,H383<=Experiencia3),Puntajes!$D$6,IF(H383>Experiencia3,Puntajes!$D$7,0))))),\"\")","v":""}]
[null,null,{"$f":"+'Capacidad Financiera'!B387","v":35.1},{"$f":"IF(ISERROR(VLOOKUP(C384,'Capacidad Financiera'!$B$12:$X$62720,2,0)),\"\",VLOOKUP(C384,'Capacidad Financiera'!$B$12:$X$3580,2,0))","v":"MUVEK S.A.S"},{"$f":"IF(ISERROR(VLOOKUP(C384,'Capacidad Financiera'!$B$12:$X$62720,3,0)),\"\",VLOOKUP(C384,'Capacidad Financiera'!$B$12:$X$62720,3,0))","v":1},15793867320,{"$f":"IF(OR(D384=\"\",E384=\"\",F384=\"\"),\"\",IF(C384<>\"\",IF(ISERROR(VLOOKUP($A$10,POA!$A$2:$D$25,2,0)),\"\",VLOOKUP($A$10,POA!$A$2:$D$25,2,0)),\"\"))","v":4167150295},{"$f":"IF(OR(D384=\"\",E384=\"\",F384=\"\"),\"\",IF(C384<>\"\",F384/(G384*E384),\"\"))","v":3.7900882382261183},{"$f":"IF(OR(D384=\"\",E384=\"\",F384=\"\"),\"\",IF(AND(H384>0,H384<=Experiencia1),Puntajes!$D$4,IF(AND(H384>Experiencia1,H384<=Experiencia2),Puntajes!$D$5,IF(AND(H384>Experiencia2,H384<=Experiencia3),Puntajes!$D$6,IF(H384>Experiencia3,Puntajes!$D$7,0)))))","v":80}]
[null,null,{"$f":"+'Capacidad Financiera'!B388","v":""},{"$f":"IF(ISERROR(VLOOKUP(C385,'Capacidad Financiera'!$B$12:$X$62720,2,0)),\"\",VLOOKUP(C385,'Capacidad Financiera'!$B$12:$X$3580,2,0))","v":0},{"$f":"IF(ISERROR(VLOOKUP(C385,'Capacidad Financiera'!$B$12:$X$62720,3,0)),\"\",VLOOKUP(C385,'Capacidad Financiera'!$B$12:$X$62720,3,0))","v":0},null,{"$f":"IF(OR(D385=\"\",E385=\"\",F385=\"\"),\"\",IF(C385<>\"\",IF(ISERROR(VLOOKUP($A$10,POA!$A$2:$D$25,2,0)),\"\",VLOOKUP($A$10,POA!$A$2:$D$25,2,0)),\"\"))","v":""},{"$f":"IF(OR(D385=\"\",E385=\"\",F385=\"\"),\"\",IF(C385<>\"\",F385/(G385*E385),\"\"))","v":""},{"$f":"IF(OR(D385=\"\",E385=\"\",F385=\"\"),\"\",IF(AND(H385>0,H385<=Experiencia1),Puntajes!$D$4,IF(AND(H385>Experiencia1,H385<=Experiencia2),Puntajes!$D$5,IF(AND(H385>Experiencia2,H385<=Experiencia3),Puntajes!$D$6,IF(H385>Experiencia3,Puntajes!$D$7,0)))))","v":""}]
[null,null,{"$f":"+'Capacidad Financiera'!B389","v":""},{"$f":"IF(ISERROR(VLOOKUP(C386,'Capacidad Financiera'!$B$12:$X$62720,2,0)),\"\",VLOOKUP(C386,'Capacidad Financiera'!$B$12:$X$3580,2,0))","v":0},{"$f":"IF(ISERROR(VLOOKUP(C386,'Capacidad Financiera'!$B$12:$X$62720,3,0)),\"\",VLOOKUP(C386,'Capacidad Financiera'!$B$12:$X$62720,3,0))","v":0},null,{"$f":"IF(OR(D386=\"\",E386=\"\",F386=\"\"),\"\",IF(C386<>\"\",IF(ISERROR(VLOOKUP($A$10,POA!$A$2:$D$25,2,0)),\"\",VLOOKUP($A$10,POA!$A$2:$D$25,2,0)),\"\"))","v":""},"",{"$f":"IF(OR(D386=\"\",E386=\"\",F386=\"\"),\"\",IF(AND(H386>0,H386<=Experiencia1),Puntajes!$D$4,IF(AND(H386>Experiencia1,H386<=Experiencia2),Puntajes!$D$5,IF(AND(H386>Experiencia2,H386<=Experiencia3),Puntajes!$D$6,IF(H386>Experiencia3,Puntajes!$D$7,0)))))","v":""}]
[null,null,{"$f":"+'Capacidad Financiera'!B390","v":""},{"$f":"IF(ISERROR(VLOOKUP(C387,'Capacidad Financiera'!$B$12:$X$62720,2,0)),\"\",VLOOKUP(C387,'Capacidad Financiera'!$B$12:$X$3580,2,0))","v":0},{"$f":"IF(ISERROR(VLOOKUP(C387,'Capacidad Financiera'!$B$12:$X$62720,3,0)),\"\",VLOOKUP(C387,'Capacidad Financiera'!$B$12:$X$62720,3,0))","v":0},null,{"$f":"IF(OR(D387=\"\",E387=\"\",F387=\"\"),\"\",IF(C387<>\"\",IF(ISERROR(VLOOKUP($A$10,POA!$A$2:$D$25,2,0)),\"\",VLOOKUP($A$10,POA!$A$2:$D$25,2,0)),\"\"))","v":""},"",{"$f":"IF(OR(D387=\"\",E387=\"\",F387=\"\"),\"\",IF(AND(H387>0,H387<=Experiencia1),Puntajes!$D$4,IF(AND(H387>Experiencia1,H387<=Experiencia2),Puntajes!$D$5,IF(AND(H387>Experiencia2,H387<=Experiencia3),Puntajes!$D$6,IF(H387>Experiencia3,Puntajes!$D$7,0)))))","v":""}]
[null,null,{"$f":"+'Capacidad Financiera'!B391","v":""},{"$f":"IF(ISERROR(VLOOKUP(C388,'Capacidad Financiera'!$B$12:$X$62720,2,0)),\"\",VLOOKUP(C388,'Capacidad Financiera'!$B$12:$X$3580,2,0))","v":0},{"$f":"IF(ISERROR(VLOOKUP(C388,'Capacidad Financiera'!$B$12:$X$62720,3,0)),\"\",VLOOKUP(C388,'Capacidad Financiera'!$B$12:$X$62720,3,0))","v":0},null,{"$f":"IF(OR(D388=\"\",E388=\"\",F388=\"\"),\"\",IF(C388<>\"\",IF(ISERROR(VLOOKUP($A$10,POA!$A$2:$D$25,2,0)),\"\",VLOOKUP($A$10,POA!$A$2:$D$25,2,0)),\"\"))","v":""},"",{"$f":"IF(OR(D388=\"\",E388=\"\",F388=\"\"),\"\",IF(AND(H388>0,H388<=Experiencia1),Puntajes!$D$4,IF(AND(H388>Experiencia1,H388<=Experiencia2),Puntajes!$D$5,IF(AND(H388>Experiencia2,H388<=Experiencia3),Puntajes!$D$6,IF(H388>Experiencia3,Puntajes!$D$7,0)))))","v":""}]
[null,null,{"$f":"+'Capacidad Financiera'!B392","v":""},{"$f":"IF(ISERROR(VLOOKUP(C389,'Capacidad Financiera'!$B$12:$X$62720,2,0)),\"\",VLOOKUP(C389,'Capacidad Financiera'!$B$12:$X$3580,2,0))","v":0},{"$f":"IF(ISERROR(VLOOKUP(C389,'Capacidad Financiera'!$B$12:$X$62720,3,0)),\"\",VLOOKUP(C389,'Capacidad Financiera'!$B$12:$X$62720,3,0))","v":0},null,{"$f":"IF(OR(D389=\"\",E389=\"\",F389=\"\"),\"\",IF(C389<>\"\",IF(ISERROR(VLOOKUP($A$10,POA!$A$2:$D$25,2,0)),\"\",VLOOKUP($A$10,POA!$A$2:$D$25,2,0)),\"\"))","v":""},"",{"$f":"IF(OR(D389=\"\",E389=\"\",F389=\"\"),\"\",IF(AND(H389>0,H389<=Experiencia1),Puntajes!$D$4,IF(AND(H389>Experiencia1,H389<=Experiencia2),Puntajes!$D$5,IF(AND(H389>Experiencia2,H389<=Experiencia3),Puntajes!$D$6,IF(H389>Experiencia3,Puntajes!$D$7,0)))))","v":""}]
[null,null,{"$f":"+'Capacidad Financiera'!B393","v":""},{"$f":"IF(ISERROR(VLOOKUP(C390,'Capacidad Financiera'!$B$12:$X$62720,2,0)),\"\",VLOOKUP(C390,'Capacidad Financiera'!$B$12:$X$3580,2,0))","v":0},{"$f":"IF(ISERROR(VLOOKUP(C390,'Capacidad Financiera'!$B$12:$X$62720,3,0)),\"\",VLOOKUP(C390,'Capacidad Financiera'!$B$12:$X$62720,3,0))","v":0},null,{"$f":"IF(OR(D390=\"\",E390=\"\",F390=\"\"),\"\",IF(C390<>\"\",IF(ISERROR(VLOOKUP($A$10,POA!$A$2:$D$25,2,0)),\"\",VLOOKUP($A$10,POA!$A$2:$D$25,2,0)),\"\"))","v":""},"",{"$f":"IF(OR(D390=\"\",E390=\"\",F390=\"\"),\"\",IF(AND(H390>0,H390<=Experiencia1),Puntajes!$D$4,IF(AND(H390>Experiencia1,H390<=Experiencia2),Puntajes!$D$5,IF(AND(H390>Experiencia2,H390<=Experiencia3),Puntajes!$D$6,IF(H390>Experiencia3,Puntajes!$D$7,0)))))","v":""}]
[null,null,{"$f":"+'Capacidad Financiera'!B394","v":""},{"$f":"IF(ISERROR(VLOOKUP(C391,'Capacidad Financiera'!$B$12:$X$62720,2,0)),\"\",VLOOKUP(C391,'Capacidad Financiera'!$B$12:$X$3580,2,0))","v":0},{"$f":"IF(ISERROR(VLOOKUP(C391,'Capacidad Financiera'!$B$12:$X$62720,3,0)),\"\",VLOOKUP(C391,'Capacidad Financiera'!$B$12:$X$62720,3,0))","v":0},null,{"$f":"IF(OR(D391=\"\",E391=\"\",F391=\"\"),\"\",IF(C391<>\"\",IF(ISERROR(VLOOKUP($A$10,POA!$A$2:$D$25,2,0)),\"\",VLOOKUP($A$10,POA!$A$2:$D$25,2,0)),\"\"))","v":""},"",{"$f":"IF(OR(D391=\"\",E391=\"\",F391=\"\"),\"\",IF(AND(H391>0,H391<=Experiencia1),Puntajes!$D$4,IF(AND(H391>Experiencia1,H391<=Experiencia2),Puntajes!$D$5,IF(AND(H391>Experiencia2,H391<=Experiencia3),Puntajes!$D$6,IF(H391>Experiencia3,Puntajes!$D$7,0)))))","v":""}]
[null,null,{"$f":"+'Capacidad Financiera'!B395","v":""},{"$f":"IF(ISERROR(VLOOKUP(C392,'Capacidad Financiera'!$B$12:$X$62720,2,0)),\"\",VLOOKUP(C392,'Capacidad Financiera'!$B$12:$X$3580,2,0))","v":0},{"$f":"IF(ISERROR(VLOOKUP(C392,'Capacidad Financiera'!$B$12:$X$62720,3,0)),\"\",VLOOKUP(C392,'Capacidad Financiera'!$B$12:$X$62720,3,0))","v":0},null,{"$f":"IF(OR(D392=\"\",E392=\"\",F392=\"\"),\"\",IF(C392<>\"\",IF(ISERROR(VLOOKUP($A$10,POA!$A$2:$D$25,2,0)),\"\",VLOOKUP($A$10,POA!$A$2:$D$25,2,0)),\"\"))","v":""},"",{"$f":"IF(OR(D392=\"\",E392=\"\",F392=\"\"),\"\",IF(AND(H392>0,H392<=Experiencia1),Puntajes!$D$4,IF(AND(H392>Experiencia1,H392<=Experiencia2),Puntajes!$D$5,IF(AND(H392>Experiencia2,H392<=Experiencia3),Puntajes!$D$6,IF(H392>Experiencia3,Puntajes!$D$7,0)))))","v":""}]
[null,null,{"$f":"+'Capacidad Financiera'!B396","v":""},{"$f":"IF(ISERROR(VLOOKUP(C393,'Capacidad Financiera'!$B$12:$X$62720,2,0)),\"\",VLOOKUP(C393,'Capacidad Financiera'!$B$12:$X$3580,2,0))","v":0},{"$f":"IF(ISERROR(VLOOKUP(C393,'Capacidad Financiera'!$B$12:$X$62720,3,0)),\"\",VLOOKUP(C393,'Capacidad Financiera'!$B$12:$X$62720,3,0))","v":0},null,{"$f":"IF(OR(D393=\"\",E393=\"\",F393=\"\"),\"\",IF(C393<>\"\",IF(ISERROR(VLOOKUP($A$10,POA!$A$2:$D$25,2,0)),\"\",VLOOKUP($A$10,POA!$A$2:$D$25,2,0)),\"\"))","v":""},"",{"$f":"IF(OR(D393=\"\",E393=\"\",F393=\"\"),\"\",IF(AND(H393>0,H393<=Experiencia1),Puntajes!$D$4,IF(AND(H393>Experiencia1,H393<=Experiencia2),Puntajes!$D$5,IF(AND(H393>Experiencia2,H393<=Experiencia3),Puntajes!$D$6,IF(H393>Experiencia3,Puntajes!$D$7,0)))))","v":""}]
[null,null,36,{"$f":"IF(ISERROR(VLOOKUP(C394,'Capacidad Financiera'!$B$12:$X$62720,2,0)),\"\",VLOOKUP(C394,'Capacidad Financiera'!$B$12:$X$3580,2,0))","v":"CONSORCIO SUCRE VIAL"},{"$f":"IF(ISERROR(VLOOKUP(C394,'Capacidad Financiera'!$B$12:$X$62720,3,0)),\"\",VLOOKUP(C394,'Capacidad Financiera'!$B$12:$X$62720,3,0))","v":1},null,{"$f":"IF(OR(D394=\"\",E394=\"\",F394=\"\"),\"\",IF(C395=\"\",IF(C394<>\"\",IF(ISERROR(VLOOKUP($A$10,POA!$A$2:$D$25,2,0)),\"\",VLOOKUP($A$10,POA!$A$2:$D$25,2,0)),\"\"),\"\"))","v":""},{"$f":"IF(OR(D394=\"\",E394=\"\",F394=\"\"),\"\",IF(C395=\"\",IF(C394<>\"\",F394/G394,\"\"),\"\"))","v":""},{"$f":"IF(C395=\"\",IF(F394=\"\",\"\",IF(AND(H394>0,H394<=Experiencia1),Puntajes!$D$4,IF(AND(H394>Experiencia1,H394<=Experiencia2),Puntajes!$D$5,IF(AND(H394>Experiencia2,H394<=Experiencia3),Puntajes!$D$6,IF(H394>Experiencia3,Puntajes!$D$7,0))))),\"\")","v":""}]
[null,null,{"$f":"+'Capacidad Financiera'!B398","v":36.1},{"$f":"IF(ISERROR(VLOOKUP(C395,'Capacidad Financiera'!$B$12:$X$62720,2,0)),\"\",VLOOKUP(C395,'Capacidad Financiera'!$B$12:$X$3580,2,0))","v":"CROMAS S.A."},{"$f":"IF(ISERROR(VLOOKUP(C395,'Capacidad Financiera'!$B$12:$X$62720,3,0)),\"\",VLOOKUP(C395,'Capacidad Financiera'!$B$12:$X$62720,3,0))","v":0.7},234414098072,{"$f":"IF(OR(D395=\"\",E395=\"\",F395=\"\"),\"\",IF(C395<>\"\",IF(ISERROR(VLOOKUP($A$10,POA!$A$2:$D$25,2,0)),\"\",VLOOKUP($A$10,POA!$A$2:$D$25,2,0)),\"\"))","v":4167150295},{"$f":"IF(OR(D395=\"\",E395=\"\",F395=\"\"),\"\",IF(C395<>\"\",F395/(G395*E395),\"\"))","v":80.361220319268568},{"$f":"IF(OR(D395=\"\",E395=\"\",F395=\"\"),\"\",IF(AND(H395>0,H395<=Experiencia1),Puntajes!$D$4,IF(AND(H395>Experiencia1,H395<=Experiencia2),Puntajes!$D$5,IF(AND(H395>Experiencia2,H395<=Experiencia3),Puntajes!$D$6,IF(H395>Experiencia3,Puntajes!$D$7,0)))))","v":120}]
[null,null,{"$f":"+'Capacidad Financiera'!B399","v":36.200000000000003},{"$f":"IF(ISERROR(VLOOKUP(C396,'Capacidad Financiera'!$B$12:$X$62720,2,0)),\"\",VLOOKUP(C396,'Capacidad Financiera'!$B$12:$X$3580,2,0))","v":"OSCAR ANDRADE LARA"},{"$f":"IF(ISERROR(VLOOKUP(C396,'Capacidad Financiera'!$B$12:$X$62720,3,0)),\"\",VLOOKUP(C396,'Capacidad Financiera'!$B$12:$X$62720,3,0))","v":0.3},15547703248,{"$f":"IF(OR(D396=\"\",E396=\"\",F396=\"\"),\"\",IF(C396<>\"\",IF(ISERROR(VLOOKUP($A$10,POA!$A$2:$D$25,2,0)),\"\",VLOOKUP($A$10,POA!$A$2:$D$25,2,0)),\"\"))","v":4167150295},{"$f":"IF(OR(D396=\"\",E396=\"\",F396=\"\"),\"\",IF(C396<>\"\",F396/(G396*E396),\"\"))","v":12.436719058469508},{"$f":"IF(OR(D396=\"\",E396=\"\",F396=\"\"),\"\",IF(AND(H396>0,H396<=Experiencia1),Puntajes!$D$4,IF(AND(H396>Experiencia1,H396<=Experiencia2),Puntajes!$D$5,IF(AND(H396>Experiencia2,H396<=Experiencia3),Puntajes!$D$6,IF(H396>Experiencia3,Puntajes!$D$7,0)))))","v":120}]
[null,null,{"$f":"+'Capacidad Financiera'!B400","v":""},{"$f":"IF(ISERROR(VLOOKUP(C397,'Capacidad Financiera'!$B$12:$X$62720,2,0)),\"\",VLOOKUP(C397,'Capacidad Financiera'!$B$12:$X$3580,2,0))","v":0},{"$f":"IF(ISERROR(VLOOKUP(C397,'Capacidad Financiera'!$B$12:$X$62720,3,0)),\"\",VLOOKUP(C397,'Capacidad Financiera'!$B$12:$X$62720,3,0))","v":0},null,{"$f":"IF(OR(D397=\"\",E397=\"\",F397=\"\"),\"\",IF(C397<>\"\",IF(ISERROR(VLOOKUP($A$10,POA!$A$2:$D$25,2,0)),\"\",VLOOKUP($A$10,POA!$A$2:$D$25,2,0)),\"\"))","v":""},"",{"$f":"IF(OR(D397=\"\",E397=\"\",F397=\"\"),\"\",IF(AND(H397>0,H397<=Experiencia1),Puntajes!$D$4,IF(AND(H397>Experiencia1,H397<=Experiencia2),Puntajes!$D$5,IF(AND(H397>Experiencia2,H397<=Experiencia3),Puntajes!$D$6,IF(H397>Experiencia3,Puntajes!$D$7,0)))))","v":""}]
[null,null,{"$f":"+'Capacidad Financiera'!B401","v":""},{"$f":"IF(ISERROR(VLOOKUP(C398,'Capacidad Financiera'!$B$12:$X$62720,2,0)),\"\",VLOOKUP(C398,'Capacidad Financiera'!$B$12:$X$3580,2,0))","v":0},{"$f":"IF(ISERROR(VLOOKUP(C398,'Capacidad Financiera'!$B$12:$X$62720,3,0)),\"\",VLOOKUP(C398,'Capacidad Financiera'!$B$12:$X$62720,3,0))","v":0},null,{"$f":"IF(OR(D398=\"\",E398=\"\",F398=\"\"),\"\",IF(C398<>\"\",IF(ISERROR(VLOOKUP($A$10,POA!$A$2:$D$25,2,0)),\"\",VLOOKUP($A$10,POA!$A$2:$D$25,2,0)),\"\"))","v":""},"",{"$f":"IF(OR(D398=\"\",E398=\"\",F398=\"\"),\"\",IF(AND(H398>0,H398<=Experiencia1),Puntajes!$D$4,IF(AND(H398>Experiencia1,H398<=Experiencia2),Puntajes!$D$5,IF(AND(H398>Experiencia2,H398<=Experiencia3),Puntajes!$D$6,IF(H398>Experiencia3,Puntajes!$D$7,0)))))","v":""}]
[null,null,{"$f":"+'Capacidad Financiera'!B402","v":""},{"$f":"IF(ISERROR(VLOOKUP(C399,'Capacidad Financiera'!$B$12:$X$62720,2,0)),\"\",VLOOKUP(C399,'Capacidad Financiera'!$B$12:$X$3580,2,0))","v":0},{"$f":"IF(ISERROR(VLOOKUP(C399,'Capacidad Financiera'!$B$12:$X$62720,3,0)),\"\",VLOOKUP(C399,'Capacidad Financiera'!$B$12:$X$62720,3,0))","v":0},null,{"$f":"IF(OR(D399=\"\",E399=\"\",F399=\"\"),\"\",IF(C399<>\"\",IF(ISERROR(VLOOKUP($A$10,POA!$A$2:$D$25,2,0)),\"\",VLOOKUP($A$10,POA!$A$2:$D$25,2,0)),\"\"))","v":""},"",{"$f":"IF(OR(D399=\"\",E399=\"\",F399=\"\"),\"\",IF(AND(H399>0,H399<=Experiencia1),Puntajes!$D$4,IF(AND(H399>Experiencia1,H399<=Experiencia2),Puntajes!$D$5,IF(AND(H399>Experiencia2,H399<=Experiencia3),Puntajes!$D$6,IF(H399>Experiencia3,Puntajes!$D$7,0)))))","v":""}]
[null,null,{"$f":"+'Capacidad Financiera'!B403","v":""},{"$f":"IF(ISERROR(VLOOKUP(C400,'Capacidad Financiera'!$B$12:$X$62720,2,0)),\"\",VLOOKUP(C400,'Capacidad Financiera'!$B$12:$X$3580,2,0))","v":0},{"$f":"IF(ISERROR(VLOOKUP(C400,'Capacidad Financiera'!$B$12:$X$62720,3,0)),\"\",VLOOKUP(C400,'Capacidad Financiera'!$B$12:$X$62720,3,0))","v":0},null,{"$f":"IF(OR(D400=\"\",E400=\"\",F400=\"\"),\"\",IF(C400<>\"\",IF(ISERROR(VLOOKUP($A$10,POA!$A$2:$D$25,2,0)),\"\",VLOOKUP($A$10,POA!$A$2:$D$25,2,0)),\"\"))","v":""},"",{"$f":"IF(OR(D400=\"\",E400=\"\",F400=\"\"),\"\",IF(AND(H400>0,H400<=Experiencia1),Puntajes!$D$4,IF(AND(H400>Experiencia1,H400<=Experiencia2),Puntajes!$D$5,IF(AND(H400>Experiencia2,H400<=Experiencia3),Puntajes!$D$6,IF(H400>Experiencia3,Puntajes!$D$7,0)))))","v":""}]
[null,null,{"$f":"+'Capacidad Financiera'!B404","v":""},{"$f":"IF(ISERROR(VLOOKUP(C401,'Capacidad Financiera'!$B$12:$X$62720,2,0)),\"\",VLOOKUP(C401,'Capacidad Financiera'!$B$12:$X$3580,2,0))","v":0},{"$f":"IF(ISERROR(VLOOKUP(C401,'Capacidad Financiera'!$B$12:$X$62720,3,0)),\"\",VLOOKUP(C401,'Capacidad Financiera'!$B$12:$X$62720,3,0))","v":0},null,{"$f":"IF(OR(D401=\"\",E401=\"\",F401=\"\"),\"\",IF(C401<>\"\",IF(ISERROR(VLOOKUP($A$10,POA!$A$2:$D$25,2,0)),\"\",VLOOKUP($A$10,POA!$A$2:$D$25,2,0)),\"\"))","v":""},"",{"$f":"IF(OR(D401=\"\",E401=\"\",F401=\"\"),\"\",IF(AND(H401>0,H401<=Experiencia1),Puntajes!$D$4,IF(AND(H401>Experiencia1,H401<=Experiencia2),Puntajes!$D$5,IF(AND(H401>Experiencia2,H401<=Experiencia3),Puntajes!$D$6,IF(H401>Experiencia3,Puntajes!$D$7,0)))))","v":""}]
[null,null,{"$f":"+'Capacidad Financiera'!B405","v":""},{"$f":"IF(ISERROR(VLOOKUP(C402,'Capacidad Financiera'!$B$12:$X$62720,2,0)),\"\",VLOOKUP(C402,'Capacidad Financiera'!$B$12:$X$3580,2,0))","v":0},{"$f":"IF(ISERROR(VLOOKUP(C402,'Capacidad Financiera'!$B$12:$X$62720,3,0)),\"\",VLOOKUP(C402,'Capacidad Financiera'!$B$12:$X$62720,3,0))","v":0},null,{"$f":"IF(OR(D402=\"\",E402=\"\",F402=\"\"),\"\",IF(C402<>\"\",IF(ISERROR(VLOOKUP($A$10,POA!$A$2:$D$25,2,0)),\"\",VLOOKUP($A$10,POA!$A$2:$D$25,2,0)),\"\"))","v":""},"",{"$f":"IF(OR(D402=\"\",E402=\"\",F402=\"\"),\"\",IF(AND(H402>0,H402<=Experiencia1),Puntajes!$D$4,IF(AND(H402>Experiencia1,H402<=Experiencia2),Puntajes!$D$5,IF(AND(H402>Experiencia2,H402<=Experiencia3),Puntajes!$D$6,IF(H402>Experiencia3,Puntajes!$D$7,0)))))","v":""}]
[null,null,{"$f":"+'Capacidad Financiera'!B406","v":""},{"$f":"IF(ISERROR(VLOOKUP(C403,'Capacidad Financiera'!$B$12:$X$62720,2,0)),\"\",VLOOKUP(C403,'Capacidad Financiera'!$B$12:$X$3580,2,0))","v":0},{"$f":"IF(ISERROR(VLOOKUP(C403,'Capacidad Financiera'!$B$12:$X$62720,3,0)),\"\",VLOOKUP(C403,'Capacidad Financiera'!$B$12:$X$62720,3,0))","v":0},null,{"$f":"IF(OR(D403=\"\",E403=\"\",F403=\"\"),\"\",IF(C403<>\"\",IF(ISERROR(VLOOKUP($A$10,POA!$A$2:$D$25,2,0)),\"\",VLOOKUP($A$10,POA!$A$2:$D$25,2,0)),\"\"))","v":""},"",{"$f":"IF(OR(D403=\"\",E403=\"\",F403=\"\"),\"\",IF(AND(H403>0,H403<=Experiencia1),Puntajes!$D$4,IF(AND(H403>Experiencia1,H403<=Experiencia2),Puntajes!$D$5,IF(AND(H403>Experiencia2,H403<=Experiencia3),Puntajes!$D$6,IF(H403>Experiencia3,Puntajes!$D$7,0)))))","v":""}]
[null,null,{"$f":"+'Capacidad Financiera'!B407","v":""},{"$f":"IF(ISERROR(VLOOKUP(C404,'Capacidad Financiera'!$B$12:$X$62720,2,0)),\"\",VLOOKUP(C404,'Capacidad Financiera'!$B$12:$X$3580,2,0))","v":0},{"$f":"IF(ISERROR(VLOOKUP(C404,'Capacidad Financiera'!$B$12:$X$62720,3,0)),\"\",VLOOKUP(C404,'Capacidad Financiera'!$B$12:$X$62720,3,0))","v":0},null,{"$f":"IF(OR(D404=\"\",E404=\"\",F404=\"\"),\"\",IF(C404<>\"\",IF(ISERROR(VLOOKUP($A$10,POA!$A$2:$D$25,2,0)),\"\",VLOOKUP($A$10,POA!$A$2:$D$25,2,0)),\"\"))","v":""},"",{"$f":"IF(OR(D404=\"\",E404=\"\",F404=\"\"),\"\",IF(AND(H404>0,H404<=Experiencia1),Puntajes!$D$4,IF(AND(H404>Experiencia1,H404<=Experiencia2),Puntajes!$D$5,IF(AND(H404>Experiencia2,H404<=Experiencia3),Puntajes!$D$6,IF(H404>Experiencia3,Puntajes!$D$7,0)))))","v":""}]
[null,null,37,{"$f":"IF(ISERROR(VLOOKUP(C405,'Capacidad Financiera'!$B$12:$X$62720,2,0)),\"\",VLOOKUP(C405,'Capacidad Financiera'!$B$12:$X$3580,2,0))","v":"CONSORCIO SALITRE "},{"$f":"IF(ISERROR(VLOOKUP(C405,'Capacidad Financiera'!$B$12:$X$62720,3,0)),\"\",VLOOKUP(C405,'Capacidad Financiera'!$B$12:$X$62720,3,0))","v":1},null,{"$f":"IF(OR(D405=\"\",E405=\"\",F405=\"\"),\"\",IF(C406=\"\",IF(C405<>\"\",IF(ISERROR(VLOOKUP($A$10,POA!$A$2:$D$25,2,0)),\"\",VLOOKUP($A$10,POA!$A$2:$D$25,2,0)),\"\"),\"\"))","v":""},{"$f":"IF(OR(D405=\"\",E405=\"\",F405=\"\"),\"\",IF(C406=\"\",IF(C405<>\"\",F405/G405,\"\"),\"\"))","v":""},{"$f":"IF(C406=\"\",IF(F405=\"\",\"\",IF(AND(H405>0,H405<=Experiencia1),Puntajes!$D$4,IF(AND(H405>Experiencia1,H405<=Experiencia2),Puntajes!$D$5,IF(AND(H405>Experiencia2,H405<=Experiencia3),Puntajes!$D$6,IF(H405>Experiencia3,Puntajes!$D$7,0))))),\"\")","v":""}]
[null,null,{"$f":"+'Capacidad Financiera'!B409","v":37.1},{"$f":"IF(ISERROR(VLOOKUP(C406,'Capacidad Financiera'!$B$12:$X$62720,2,0)),\"\",VLOOKUP(C406,'Capacidad Financiera'!$B$12:$X$3580,2,0))","v":"CONSTRUCTORA CRD S.A."},{"$f":"IF(ISERROR(VLOOKUP(C406,'Capacidad Financiera'!$B$12:$X$62720,3,0)),\"\",VLOOKUP(C406,'Capacidad Financiera'!$B$12:$X$62720,3,0))","v":0.8},167172414640,{"$f":"IF(OR(D406=\"\",E406=\"\",F406=\"\"),\"\",IF(C406<>\"\",IF(ISERROR(VLOOKUP($A$10,POA!$A$2:$D$25,2,0)),\"\",VLOOKUP($A$10,POA!$A$2:$D$25,2,0)),\"\"))","v":4167150295},{"$f":"IF(OR(D406=\"\",E406=\"\",F406=\"\"),\"\",IF(C406<>\"\",F406/(G406*E406),\"\"))","v":50.145903916815655},{"$f":"IF(OR(D406=\"\",E406=\"\",F406=\"\"),\"\",IF(AND(H406>0,H406<=Experiencia1),Puntajes!$D$4,IF(AND(H406>Experiencia1,H406<=Experiencia2),Puntajes!$D$5,IF(AND(H406>Experiencia2,H406<=Experiencia3),Puntajes!$D$6,IF(H406>Experiencia3,Puntajes!$D$7,0)))))","v":120}]
[null,null,{"$f":"+'Capacidad Financiera'!B410","v":37.200000000000003},{"$f":"IF(ISERROR(VLOOKUP(C407,'Capacidad Financiera'!$B$12:$X$62720,2,0)),\"\",VLOOKUP(C407,'Capacidad Financiera'!$B$12:$X$3580,2,0))","v":"CONSTRUCTORA S&L S.A.S."},{"$f":"IF(ISERROR(VLOOKUP(C407,'Capacidad Financiera'!$B$12:$X$62720,3,0)),\"\",VLOOKUP(C407,'Capacidad Financiera'!$B$12:$X$62720,3,0))","v":0.2},16371546144.799999,{"$f":"IF(OR(D407=\"\",E407=\"\",F407=\"\"),\"\",IF(C407<>\"\",IF(ISERROR(VLOOKUP($A$10,POA!$A$2:$D$25,2,0)),\"\",VLOOKUP($A$10,POA!$A$2:$D$25,2,0)),\"\"))","v":4167150295},{"$f":"IF(OR(D407=\"\",E407=\"\",F407=\"\"),\"\",IF(C407<>\"\",F407/(G407*E407),\"\"))","v":19.643575328256787},{"$f":"IF(OR(D407=\"\",E407=\"\",F407=\"\"),\"\",IF(AND(H407>0,H407<=Experiencia1),Puntajes!$D$4,IF(AND(H407>Experiencia1,H407<=Experiencia2),Puntajes!$D$5,IF(AND(H407>Experiencia2,H407<=Experiencia3),Puntajes!$D$6,IF(H407>Experiencia3,Puntajes!$D$7,0)))))","v":120}]
[null,null,{"$f":"+'Capacidad Financiera'!B411","v":""},{"$f":"IF(ISERROR(VLOOKUP(C408,'Capacidad Financiera'!$B$12:$X$62720,2,0)),\"\",VLOOKUP(C408,'Capacidad Financiera'!$B$12:$X$3580,2,0))","v":0},{"$f":"IF(ISERROR(VLOOKUP(C408,'Capacidad Financiera'!$B$12:$X$62720,3,0)),\"\",VLOOKUP(C408,'Capacidad Financiera'!$B$12:$X$62720,3,0))","v":0},null,{"$f":"IF(OR(D408=\"\",E408=\"\",F408=\"\"),\"\",IF(C408<>\"\",IF(ISERROR(VLOOKUP($A$10,POA!$A$2:$D$25,2,0)),\"\",VLOOKUP($A$10,POA!$A$2:$D$25,2,0)),\"\"))","v":""},"",{"$f":"IF(OR(D408=\"\",E408=\"\",F408=\"\"),\"\",IF(AND(H408>0,H408<=Experiencia1),Puntajes!$D$4,IF(AND(H408>Experiencia1,H408<=Experiencia2),Puntajes!$D$5,IF(AND(H408>Experiencia2,H408<=Experiencia3),Puntajes!$D$6,IF(H408>Experiencia3,Puntajes!$D$7,0)))))","v":""}]
[null,null,{"$f":"+'Capacidad Financiera'!B412","v":""},{"$f":"IF(ISERROR(VLOOKUP(C409,'Capacidad Financiera'!$B$12:$X$62720,2,0)),\"\",VLOOKUP(C409,'Capacidad Financiera'!$B$12:$X$3580,2,0))","v":0},{"$f":"IF(ISERROR(VLOOKUP(C409,'Capacidad Financiera'!$B$12:$X$62720,3,0)),\"\",VLOOKUP(C409,'Capacidad Financiera'!$B$12:$X$62720,3,0))","v":0},null,{"$f":"IF(OR(D409=\"\",E409=\"\",F409=\"\"),\"\",IF(C409<>\"\",IF(ISERROR(VLOOKUP($A$10,POA!$A$2:$D$25,2,0)),\"\",VLOOKUP($A$10,POA!$A$2:$D$25,2,0)),\"\"))","v":""},"",{"$f":"IF(OR(D409=\"\",E409=\"\",F409=\"\"),\"\",IF(AND(H409>0,H409<=Experiencia1),Puntajes!$D$4,IF(AND(H409>Experiencia1,H409<=Experiencia2),Puntajes!$D$5,IF(AND(H409>Experiencia2,H409<=Experiencia3),Puntajes!$D$6,IF(H409>Experiencia3,Puntajes!$D$7,0)))))","v":""}]
[null,null,{"$f":"+'Capacidad Financiera'!B413","v":""},{"$f":"IF(ISERROR(VLOOKUP(C410,'Capacidad Financiera'!$B$12:$X$62720,2,0)),\"\",VLOOKUP(C410,'Capacidad Financiera'!$B$12:$X$3580,2,0))","v":0},{"$f":"IF(ISERROR(VLOOKUP(C410,'Capacidad Financiera'!$B$12:$X$62720,3,0)),\"\",VLOOKUP(C410,'Capacidad Financiera'!$B$12:$X$62720,3,0))","v":0},null,{"$f":"IF(OR(D410=\"\",E410=\"\",F410=\"\"),\"\",IF(C410<>\"\",IF(ISERROR(VLOOKUP($A$10,POA!$A$2:$D$25,2,0)),\"\",VLOOKUP($A$10,POA!$A$2:$D$25,2,0)),\"\"))","v":""},"",{"$f":"IF(OR(D410=\"\",E410=\"\",F410=\"\"),\"\",IF(AND(H410>0,H410<=Experiencia1),Puntajes!$D$4,IF(AND(H410>Experiencia1,H410<=Experiencia2),Puntajes!$D$5,IF(AND(H410>Experiencia2,H410<=Experiencia3),Puntajes!$D$6,IF(H410>Experiencia3,Puntajes!$D$7,0)))))","v":""}]
[null,null,{"$f":"+'Capacidad Financiera'!B414","v":""},{"$f":"IF(ISERROR(VLOOKUP(C411,'Capacidad Financiera'!$B$12:$X$62720,2,0)),\"\",VLOOKUP(C411,'Capacidad Financiera'!$B$12:$X$3580,2,0))","v":0},{"$f":"IF(ISERROR(VLOOKUP(C411,'Capacidad Financiera'!$B$12:$X$62720,3,0)),\"\",VLOOKUP(C411,'Capacidad Financiera'!$B$12:$X$62720,3,0))","v":0},null,{"$f":"IF(OR(D411=\"\",E411=\"\",F411=\"\"),\"\",IF(C411<>\"\",IF(ISERROR(VLOOKUP($A$10,POA!$A$2:$D$25,2,0)),\"\",VLOOKUP($A$10,POA!$A$2:$D$25,2,0)),\"\"))","v":""},"",{"$f":"IF(OR(D411=\"\",E411=\"\",F411=\"\"),\"\",IF(AND(H411>0,H411<=Experiencia1),Puntajes!$D$4,IF(AND(H411>Experiencia1,H411<=Experiencia2),Puntajes!$D$5,IF(AND(H411>Experiencia2,H411<=Experiencia3),Puntajes!$D$6,IF(H411>Experiencia3,Puntajes!$D$7,0)))))","v":""}]
[null,null,{"$f":"+'Capacidad Financiera'!B415","v":""},{"$f":"IF(ISERROR(VLOOKUP(C412,'Capacidad Financiera'!$B$12:$X$62720,2,0)),\"\",VLOOKUP(C412,'Capacidad Financiera'!$B$12:$X$3580,2,0))","v":0},{"$f":"IF(ISERROR(VLOOKUP(C412,'Capacidad Financiera'!$B$12:$X$62720,3,0)),\"\",VLOOKUP(C412,'Capacidad Financiera'!$B$12:$X$62720,3,0))","v":0},null,{"$f":"IF(OR(D412=\"\",E412=\"\",F412=\"\"),\"\",IF(C412<>\"\",IF(ISERROR(VLOOKUP($A$10,POA!$A$2:$D$25,2,0)),\"\",VLOOKUP($A$10,POA!$A$2:$D$25,2,0)),\"\"))","v":""},"",{"$f":"IF(OR(D412=\"\",E412=\"\",F412=\"\"),\"\",IF(AND(H412>0,H412<=Experiencia1),Puntajes!$D$4,IF(AND(H412>Experiencia1,H412<=Experiencia2),Puntajes!$D$5,IF(AND(H412>Experiencia2,H412<=Experiencia3),Puntajes!$D$6,IF(H412>Experiencia3,Puntajes!$D$7,0)))))","v":""}]
[null,null,{"$f":"+'Capacidad Financiera'!B416","v":""},{"$f":"IF(ISERROR(VLOOKUP(C413,'Capacidad Financiera'!$B$12:$X$62720,2,0)),\"\",VLOOKUP(C413,'Capacidad Financiera'!$B$12:$X$3580,2,0))","v":0},{"$f":"IF(ISERROR(VLOOKUP(C413,'Capacidad Financiera'!$B$12:$X$62720,3,0)),\"\",VLOOKUP(C413,'Capacidad Financiera'!$B$12:$X$62720,3,0))","v":0},null,{"$f":"IF(OR(D413=\"\",E413=\"\",F413=\"\"),\"\",IF(C413<>\"\",IF(ISERROR(VLOOKUP($A$10,POA!$A$2:$D$25,2,0)),\"\",VLOOKUP($A$10,POA!$A$2:$D$25,2,0)),\"\"))","v":""},"",{"$f":"IF(OR(D413=\"\",E413=\"\",F413=\"\"),\"\",IF(AND(H413>0,H413<=Experiencia1),Puntajes!$D$4,IF(AND(H413>Experiencia1,H413<=Experiencia2),Puntajes!$D$5,IF(AND(H413>Experiencia2,H413<=Experiencia3),Puntajes!$D$6,IF(H413>Experiencia3,Puntajes!$D$7,0)))))","v":""}]
[null,null,{"$f":"+'Capacidad Financiera'!B417","v":""},{"$f":"IF(ISERROR(VLOOKUP(C414,'Capacidad Financiera'!$B$12:$X$62720,2,0)),\"\",VLOOKUP(C414,'Capacidad Financiera'!$B$12:$X$3580,2,0))","v":0},{"$f":"IF(ISERROR(VLOOKUP(C414,'Capacidad Financiera'!$B$12:$X$62720,3,0)),\"\",VLOOKUP(C414,'Capacidad Financiera'!$B$12:$X$62720,3,0))","v":0},null,{"$f":"IF(OR(D414=\"\",E414=\"\",F414=\"\"),\"\",IF(C414<>\"\",IF(ISERROR(VLOOKUP($A$10,POA!$A$2:$D$25,2,0)),\"\",VLOOKUP($A$10,POA!$A$2:$D$25,2,0)),\"\"))","v":""},"",{"$f":"IF(OR(D414=\"\",E414=\"\",F414=\"\"),\"\",IF(AND(H414>0,H414<=Experiencia1),Puntajes!$D$4,IF(AND(H414>Experiencia1,H414<=Experiencia2),Puntajes!$D$5,IF(AND(H414>Experiencia2,H414<=Experiencia3),Puntajes!$D$6,IF(H414>Experiencia3,Puntajes!$D$7,0)))))","v":""}]
[null,null,{"$f":"+'Capacidad Financiera'!B418","v":""},{"$f":"IF(ISERROR(VLOOKUP(C415,'Capacidad Financiera'!$B$12:$X$62720,2,0)),\"\",VLOOKUP(C415,'Capacidad Financiera'!$B$12:$X$3580,2,0))","v":0},{"$f":"IF(ISERROR(VLOOKUP(C415,'Capacidad Financiera'!$B$12:$X$62720,3,0)),\"\",VLOOKUP(C415,'Capacidad Financiera'!$B$12:$X$62720,3,0))","v":0},null,{"$f":"IF(OR(D415=\"\",E415=\"\",F415=\"\"),\"\",IF(C415<>\"\",IF(ISERROR(VLOOKUP($A$10,POA!$A$2:$D$25,2,0)),\"\",VLOOKUP($A$10,POA!$A$2:$D$25,2,0)),\"\"))","v":""},"",{"$f":"IF(OR(D415=\"\",E415=\"\",F415=\"\"),\"\",IF(AND(H415>0,H415<=Experiencia1),Puntajes!$D$4,IF(AND(H415>Experiencia1,H415<=Experiencia2),Puntajes!$D$5,IF(AND(H415>Experiencia2,H415<=Experiencia3),Puntajes!$D$6,IF(H415>Experiencia3,Puntajes!$D$7,0)))))","v":""}]
[null,null,38,{"$f":"IF(ISERROR(VLOOKUP(C416,'Capacidad Financiera'!$B$12:$X$62720,2,0)),\"\",VLOOKUP(C416,'Capacidad Financiera'!$B$12:$X$3580,2,0))","v":"CONSORCIO PATIOS 444"},{"$f":"IF(ISERROR(VLOOKUP(C416,'Capacidad Financiera'!$B$12:$X$62720,3,0)),\"\",VLOOKUP(C416,'Capacidad Financiera'!$B$12:$X$62720,3,0))","v":1},null,{"$f":"IF(OR(D416=\"\",E416=\"\",F416=\"\"),\"\",IF(C417=\"\",IF(C416<>\"\",IF(ISERROR(VLOOKUP($A$10,POA!$A$2:$D$25,2,0)),\"\",VLOOKUP($A$10,POA!$A$2:$D$25,2,0)),\"\"),\"\"))","v":""},{"$f":"IF(OR(D416=\"\",E416=\"\",F416=\"\"),\"\",IF(C417=\"\",IF(C416<>\"\",F416/G416,\"\"),\"\"))","v":""},{"$f":"IF(C417=\"\",IF(F416=\"\",\"\",IF(AND(H416>0,H416<=Experiencia1),Puntajes!$D$4,IF(AND(H416>Experiencia1,H416<=Experiencia2),Puntajes!$D$5,IF(AND(H416>Experiencia2,H416<=Experiencia3),Puntajes!$D$6,IF(H416>Experiencia3,Puntajes!$D$7,0))))),\"\")","v":""}]
["falta anexo 1a",null,{"$f":"+'Capacidad Financiera'!B420","v":38.1},{"$f":"IF(ISERROR(VLOOKUP(C417,'Capacidad Financiera'!$B$12:$X$62720,2,0)),\"\",VLOOKUP(C417,'Capacidad Financiera'!$B$12:$X$3580,2,0))","v":"CONSTRUSOCIAL S.A.S."},{"$f":"IF(ISERROR(VLOOKUP(C417,'Capacidad Financiera'!$B$12:$X$62720,3,0)),\"\",VLOOKUP(C417,'Capacidad Financiera'!$B$12:$X$62720,3,0))","v":0.3},null,{"$f":"IF(OR(D417=\"\",E417=\"\",F417=\"\"),\"\",IF(C417<>\"\",IF(ISERROR(VLOOKUP($A$10,POA!$A$2:$D$25,2,0)),\"\",VLOOKUP($A$10,POA!$A$2:$D$25,2,0)),\"\"))","v":""},{"$f":"IF(OR(D417=\"\",E417=\"\",F417=\"\"),\"\",IF(C417<>\"\",F417/(G417*E417),\"\"))","v":""},{"$f":"IF(OR(D417=\"\",E417=\"\",F417=\"\"),\"\",IF(AND(H417>0,H417<=Experiencia1),Puntajes!$D$4,IF(AND(H417>Experiencia1,H417<=Experiencia2),Puntajes!$D$5,IF(AND(H417>Experiencia2,H417<=Experiencia3),Puntajes!$D$6,IF(H417>Experiencia3,Puntajes!$D$7,0)))))","v":""}]
["falta anexo 1a",null,{"$f":"+'Capacidad Financiera'!B421","v":38.200000000000003},{"$f":"IF(ISERROR(VLOOKUP(C418,'Capacidad Financiera'!$B$12:$X$62720,2,0)),\"\",VLOOKUP(C418,'Capacidad Financiera'!$B$12:$X$3580,2,0))","v":"CORPOANDINA S.A.S."},{"$f":"IF(ISERROR(VLOOKUP(C418,'Capacidad Financiera'!$B$12:$X$62720,3,0)),\"\",VLOOKUP(C418,'Capacidad Financiera'!$B$12:$X$62720,3,0))","v":0.3},null,{"$f":"IF(OR(D418=\"\",E418=\"\",F418=\"\"),\"\",IF(C418<>\"\",IF(ISERROR(VLOOKUP($A$10,POA!$A$2:$D$25,2,0)),\"\",VLOOKUP($A$10,POA!$A$2:$D$25,2,0)),\"\"))","v":""},{"$f":"IF(OR(D418=\"\",E418=\"\",F418=\"\"),\"\",IF(C418<>\"\",F418/(G418*E418),\"\"))","v":""},{"$f":"IF(OR(D418=\"\",E418=\"\",F418=\"\"),\"\",IF(AND(H418>0,H418<=Experiencia1),Puntajes!$D$4,IF(AND(H418>Experiencia1,H418<=Experiencia2),Puntajes!$D$5,IF(AND(H418>Experiencia2,H418<=Experiencia3),Puntajes!$D$6,IF(H418>Experiencia3,Puntajes!$D$7,0)))))","v":""}]
["falta anexo 1a",null,{"$f":"+'Capacidad Financiera'!B422","v":38.300000000000004},{"$f":"IF(ISERROR(VLOOKUP(C419,'Capacidad Financiera'!$B$12:$X$62720,2,0)),\"\",VLOOKUP(C419,'Capacidad Financiera'!$B$12:$X$3580,2,0))","v":"R&U CONSTRUCTORES S.A.S."},{"$f":"IF(ISERROR(VLOOKUP(C419,'Capacidad Financiera'!$B$12:$X$62720,3,0)),\"\",VLOOKUP(C419,'Capacidad Financiera'!$B$12:$X$62720,3,0))","v":0.4},null,{"$f":"IF(OR(D419=\"\",E419=\"\",F419=\"\"),\"\",IF(C419<>\"\",IF(ISERROR(VLOOKUP($A$10,POA!$A$2:$D$25,2,0)),\"\",VLOOKUP($A$10,POA!$A$2:$D$25,2,0)),\"\"))","v":""},"",{"$f":"IF(OR(D419=\"\",E419=\"\",F419=\"\"),\"\",IF(AND(H419>0,H419<=Experiencia1),Puntajes!$D$4,IF(AND(H419>Experiencia1,H419<=Experiencia2),Puntajes!$D$5,IF(AND(H419>Experiencia2,H419<=Experiencia3),Puntajes!$D$6,IF(H419>Experiencia3,Puntajes!$D$7,0)))))","v":""}]
[null,null,{"$f":"+'Capacidad Financiera'!B423","v":""},{"$f":"IF(ISERROR(VLOOKUP(C420,'Capacidad Financiera'!$B$12:$X$62720,2,0)),\"\",VLOOKUP(C420,'Capacidad Financiera'!$B$12:$X$3580,2,0))","v":0},{"$f":"IF(ISERROR(VLOOKUP(C420,'Capacidad Financiera'!$B$12:$X$62720,3,0)),\"\",VLOOKUP(C420,'Capacidad Financiera'!$B$12:$X$62720,3,0))","v":0},null,{"$f":"IF(OR(D420=\"\",E420=\"\",F420=\"\"),\"\",IF(C420<>\"\",IF(ISERROR(VLOOKUP($A$10,POA!$A$2:$D$25,2,0)),\"\",VLOOKUP($A$10,POA!$A$2:$D$25,2,0)),\"\"))","v":""},"",{"$f":"IF(OR(D420=\"\",E420=\"\",F420=\"\"),\"\",IF(AND(H420>0,H420<=Experiencia1),Puntajes!$D$4,IF(AND(H420>Experiencia1,H420<=Experiencia2),Puntajes!$D$5,IF(AND(H420>Experiencia2,H420<=Experiencia3),Puntajes!$D$6,IF(H420>Experiencia3,Puntajes!$D$7,0)))))","v":""}]
[null,null,{"$f":"+'Capacidad Financiera'!B424","v":""},{"$f":"IF(ISERROR(VLOOKUP(C421,'Capacidad Financiera'!$B$12:$X$62720,2,0)),\"\",VLOOKUP(C421,'Capacidad Financiera'!$B$12:$X$3580,2,0))","v":0},{"$f":"IF(ISERROR(VLOOKUP(C421,'Capacidad Financiera'!$B$12:$X$62720,3,0)),\"\",VLOOKUP(C421,'Capacidad Financiera'!$B$12:$X$62720,3,0))","v":0},null,{"$f":"IF(OR(D421=\"\",E421=\"\",F421=\"\"),\"\",IF(C421<>\"\",IF(ISERROR(VLOOKUP($A$10,POA!$A$2:$D$25,2,0)),\"\",VLOOKUP($A$10,POA!$A$2:$D$25,2,0)),\"\"))","v":""},"",{"$f":"IF(OR(D421=\"\",E421=\"\",F421=\"\"),\"\",IF(AND(H421>0,H421<=Experiencia1),Puntajes!$D$4,IF(AND(H421>Experiencia1,H421<=Experiencia2),Puntajes!$D$5,IF(AND(H421>Experiencia2,H421<=Experiencia3),Puntajes!$D$6,IF(H421>Experiencia3,Puntajes!$D$7,0)))))","v":""}]
[null,null,{"$f":"+'Capacidad Financiera'!B425","v":""},{"$f":"IF(ISERROR(VLOOKUP(C422,'Capacidad Financiera'!$B$12:$X$62720,2,0)),\"\",VLOOKUP(C422,'Capacidad Financiera'!$B$12:$X$3580,2,0))","v":0},{"$f":"IF(ISERROR(VLOOKUP(C422,'Capacidad Financiera'!$B$12:$X$62720,3,0)),\"\",VLOOKUP(C422,'Capacidad Financiera'!$B$12:$X$62720,3,0))","v":0},null,{"$f":"IF(OR(D422=\"\",E422=\"\",F422=\"\"),\"\",IF(C422<>\"\",IF(ISERROR(VLOOKUP($A$10,POA!$A$2:$D$25,2,0)),\"\",VLOOKUP($A$10,POA!$A$2:$D$25,2,0)),\"\"))","v":""},"",{"$f":"IF(OR(D422=\"\",E422=\"\",F422=\"\"),\"\",IF(AND(H422>0,H422<=Experiencia1),Puntajes!$D$4,IF(AND(H422>Experiencia1,H422<=Experiencia2),Puntajes!$D$5,IF(AND(H422>Experiencia2,H422<=Experiencia3),Puntajes!$D$6,IF(H422>Experiencia3,Puntajes!$D$7,0)))))","v":""}]
[null,null,{"$f":"+'Capacidad Financiera'!B426","v":""},{"$f":"IF(ISERROR(VLOOKUP(C423,'Capacidad Financiera'!$B$12:$X$62720,2,0)),\"\",VLOOKUP(C423,'Capacidad Financiera'!$B$12:$X$3580,2,0))","v":0},{"$f":"IF(ISERROR(VLOOKUP(C423,'Capacidad Financiera'!$B$12:$X$62720,3,0)),\"\",VLOOKUP(C423,'Capacidad Financiera'!$B$12:$X$62720,3,0))","v":0},null,{"$f":"IF(OR(D423=\"\",E423=\"\",F423=\"\"),\"\",IF(C423<>\"\",IF(ISERROR(VLOOKUP($A$10,POA!$A$2:$D$25,2,0)),\"\",VLOOKUP($A$10,POA!$A$2:$D$25,2,0)),\"\"))","v":""},"",{"$f":"IF(OR(D423=\"\",E423=\"\",F423=\"\"),\"\",IF(AND(H423>0,H423<=Experiencia1),Puntajes!$D$4,IF(AND(H423>Experiencia1,H423<=Experiencia2),Puntajes!$D$5,IF(AND(H423>Experiencia2,H423<=Experiencia3),Puntajes!$D$6,IF(H423>Experiencia3,Puntajes!$D$7,0)))))","v":""}]
[null,null,{"$f":"+'Capacidad Financiera'!B427","v":""},{"$f":"IF(ISERROR(VLOOKUP(C424,'Capacidad Financiera'!$B$12:$X$62720,2,0)),\"\",VLOOKUP(C424,'Capacidad Financiera'!$B$12:$X$3580,2,0))","v":0},{"$f":"IF(ISERROR(VLOOKUP(C424,'Capacidad Financiera'!$B$12:$X$62720,3,0)),\"\",VLOOKUP(C424,'Capacidad Financiera'!$B$12:$X$62720,3,0))","v":0},null,{"$f":"IF(OR(D424=\"\",E424=\"\",F424=\"\"),\"\",IF(C424<>\"\",IF(ISERROR(VLOOKUP($A$10,POA!$A$2:$D$25,2,0)),\"\",VLOOKUP($A$10,POA!$A$2:$D$25,2,0)),\"\"))","v":""},"",{"$f":"IF(OR(D424=\"\",E424=\"\",F424=\"\"),\"\",IF(AND(H424>0,H424<=Experiencia1),Puntajes!$D$4,IF(AND(H424>Experiencia1,H424<=Experiencia2),Puntajes!$D$5,IF(AND(H424>Experiencia2,H424<=Experiencia3),Puntajes!$D$6,IF(H424>Experiencia3,Puntajes!$D$7,0)))))","v":""}]
[null,null,{"$f":"+'Capacidad Financiera'!B428","v":""},{"$f":"IF(ISERROR(VLOOKUP(C425,'Capacidad Financiera'!$B$12:$X$62720,2,0)),\"\",VLOOKUP(C425,'Capacidad Financiera'!$B$12:$X$3580,2,0))","v":0},{"$f":"IF(ISERROR(VLOOKUP(C425,'Capacidad Financiera'!$B$12:$X$62720,3,0)),\"\",VLOOKUP(C425,'Capacidad Financiera'!$B$12:$X$62720,3,0))","v":0},null,{"$f":"IF(OR(D425=\"\",E425=\"\",F425=\"\"),\"\",IF(C425<>\"\",IF(ISERROR(VLOOKUP($A$10,POA!$A$2:$D$25,2,0)),\"\",VLOOKUP($A$10,POA!$A$2:$D$25,2,0)),\"\"))","v":""},"",{"$f":"IF(OR(D425=\"\",E425=\"\",F425=\"\"),\"\",IF(AND(H425>0,H425<=Experiencia1),Puntajes!$D$4,IF(AND(H425>Experiencia1,H425<=Experiencia2),Puntajes!$D$5,IF(AND(H425>Experiencia2,H425<=Experiencia3),Puntajes!$D$6,IF(H425>Experiencia3,Puntajes!$D$7,0)))))","v":""}]
[null,null,{"$f":"+'Capacidad Financiera'!B429","v":""},{"$f":"IF(ISERROR(VLOOKUP(C426,'Capacidad Financiera'!$B$12:$X$62720,2,0)),\"\",VLOOKUP(C426,'Capacidad Financiera'!$B$12:$X$3580,2,0))","v":0},{"$f":"IF(ISERROR(VLOOKUP(C426,'Capacidad Financiera'!$B$12:$X$62720,3,0)),\"\",VLOOKUP(C426,'Capacidad Financiera'!$B$12:$X$62720,3,0))","v":0},null,{"$f":"IF(OR(D426=\"\",E426=\"\",F426=\"\"),\"\",IF(C426<>\"\",IF(ISERROR(VLOOKUP($A$10,POA!$A$2:$D$25,2,0)),\"\",VLOOKUP($A$10,POA!$A$2:$D$25,2,0)),\"\"))","v":""},"",{"$f":"IF(OR(D426=\"\",E426=\"\",F426=\"\"),\"\",IF(AND(H426>0,H426<=Experiencia1),Puntajes!$D$4,IF(AND(H426>Experiencia1,H426<=Experiencia2),Puntajes!$D$5,IF(AND(H426>Experiencia2,H426<=Experiencia3),Puntajes!$D$6,IF(H426>Experiencia3,Puntajes!$D$7,0)))))","v":""}]
[null,null,39,{"$f":"IF(ISERROR(VLOOKUP(C427,'Capacidad Financiera'!$B$12:$X$62720,2,0)),\"\",VLOOKUP(C427,'Capacidad Financiera'!$B$12:$X$3580,2,0))","v":"VIAS S.A."},{"$f":"IF(ISERROR(VLOOKUP(C427,'Capacidad Financiera'!$B$12:$X$62720,3,0)),\"\",VLOOKUP(C427,'Capacidad Financiera'!$B$12:$X$62720,3,0))","v":1},null,{"$f":"IF(OR(D427=\"\",E427=\"\",F427=\"\"),\"\",IF(C428=\"\",IF(C427<>\"\",IF(ISERROR(VLOOKUP($A$10,POA!$A$2:$D$25,2,0)),\"\",VLOOKUP($A$10,POA!$A$2:$D$25,2,0)),\"\"),\"\"))","v":""},{"$f":"IF(OR(D427=\"\",E427=\"\",F427=\"\"),\"\",IF(C428=\"\",IF(C427<>\"\",F427/G427,\"\"),\"\"))","v":""},{"$f":"IF(C428=\"\",IF(F427=\"\",\"\",IF(AND(H427>0,H427<=Experiencia1),Puntajes!$D$4,IF(AND(H427>Experiencia1,H427<=Experiencia2),Puntajes!$D$5,IF(AND(H427>Experiencia2,H427<=Experiencia3),Puntajes!$D$6,IF(H427>Experiencia3,Puntajes!$D$7,0))))),\"\")","v":""}]
[null,null,{"$f":"+'Capacidad Financiera'!B431","v":39.1},{"$f":"IF(ISERROR(VLOOKUP(C428,'Capacidad Financiera'!$B$12:$X$62720,2,0)),\"\",VLOOKUP(C428,'Capacidad Financiera'!$B$12:$X$3580,2,0))","v":"VIAS S.A."},{"$f":"IF(ISERROR(VLOOKUP(C428,'Capacidad Financiera'!$B$12:$X$62720,3,0)),\"\",VLOOKUP(C428,'Capacidad Financiera'!$B$12:$X$62720,3,0))","v":1},159723207305.20001,{"$f":"IF(OR(D428=\"\",E428=\"\",F428=\"\"),\"\",IF(C428<>\"\",IF(ISERROR(VLOOKUP($A$10,POA!$A$2:$D$25,2,0)),\"\",VLOOKUP($A$10,POA!$A$2:$D$25,2,0)),\"\"))","v":4167150295},{"$f":"IF(OR(D428=\"\",E428=\"\",F428=\"\"),\"\",IF(C428<>\"\",F428/(G428*E428),\"\"))","v":38.329120861526306},{"$f":"IF(OR(D428=\"\",E428=\"\",F428=\"\"),\"\",IF(AND(H428>0,H428<=Experiencia1),Puntajes!$D$4,IF(AND(H428>Experiencia1,H428<=Experiencia2),Puntajes!$D$5,IF(AND(H428>Experiencia2,H428<=Experiencia3),Puntajes!$D$6,IF(H428>Experiencia3,Puntajes!$D$7,0)))))","v":120}]
[null,null,{"$f":"+'Capacidad Financiera'!B432","v":""},{"$f":"IF(ISERROR(VLOOKUP(C429,'Capacidad Financiera'!$B$12:$X$62720,2,0)),\"\",VLOOKUP(C429,'Capacidad Financiera'!$B$12:$X$3580,2,0))","v":0},{"$f":"IF(ISERROR(VLOOKUP(C429,'Capacidad Financiera'!$B$12:$X$62720,3,0)),\"\",VLOOKUP(C429,'Capacidad Financiera'!$B$12:$X$62720,3,0))","v":0},null,{"$f":"IF(OR(D429=\"\",E429=\"\",F429=\"\"),\"\",IF(C429<>\"\",IF(ISERROR(VLOOKUP($A$10,POA!$A$2:$D$25,2,0)),\"\",VLOOKUP($A$10,POA!$A$2:$D$25,2,0)),\"\"))","v":""},{"$f":"IF(OR(D429=\"\",E429=\"\",F429=\"\"),\"\",IF(C429<>\"\",F429/(G429*E429),\"\"))","v":""},{"$f":"IF(OR(D429=\"\",E429=\"\",F429=\"\"),\"\",IF(AND(H429>0,H429<=Experiencia1),Puntajes!$D$4,IF(AND(H429>Experiencia1,H429<=Experiencia2),Puntajes!$D$5,IF(AND(H429>Experiencia2,H429<=Experiencia3),Puntajes!$D$6,IF(H429>Experiencia3,Puntajes!$D$7,0)))))","v":""}]
[null,null,{"$f":"+'Capacidad Financiera'!B433","v":""},{"$f":"IF(ISERROR(VLOOKUP(C430,'Capacidad Financiera'!$B$12:$X$62720,2,0)),\"\",VLOOKUP(C430,'Capacidad Financiera'!$B$12:$X$3580,2,0))","v":0},{"$f":"IF(ISERROR(VLOOKUP(C430,'Capacidad Financiera'!$B$12:$X$62720,3,0)),\"\",VLOOKUP(C430,'Capacidad Financiera'!$B$12:$X$62720,3,0))","v":0},null,{"$f":"IF(OR(D430=\"\",E430=\"\",F430=\"\"),\"\",IF(C430<>\"\",IF(ISERROR(VLOOKUP($A$10,POA!$A$2:$D$25,2,0)),\"\",VLOOKUP($A$10,POA!$A$2:$D$25,2,0)),\"\"))","v":""},"",{"$f":"IF(OR(D430=\"\",E430=\"\",F430=\"\"),\"\",IF(AND(H430>0,H430<=Experiencia1),Puntajes!$D$4,IF(AND(H430>Experiencia1,H430<=Experiencia2),Puntajes!$D$5,IF(AND(H430>Experiencia2,H430<=Experiencia3),Puntajes!$D$6,IF(H430>Experiencia3,Puntajes!$D$7,0)))))","v":""}]
[null,null,{"$f":"+'Capacidad Financiera'!B434","v":""},{"$f":"IF(ISERROR(VLOOKUP(C431,'Capacidad Financiera'!$B$12:$X$62720,2,0)),\"\",VLOOKUP(C431,'Capacidad Financiera'!$B$12:$X$3580,2,0))","v":0},{"$f":"IF(ISERROR(VLOOKUP(C431,'Capacidad Financiera'!$B$12:$X$62720,3,0)),\"\",VLOOKUP(C431,'Capacidad Financiera'!$B$12:$X$62720,3,0))","v":0},null,{"$f":"IF(OR(D431=\"\",E431=\"\",F431=\"\"),\"\",IF(C431<>\"\",IF(ISERROR(VLOOKUP($A$10,POA!$A$2:$D$25,2,0)),\"\",VLOOKUP($A$10,POA!$A$2:$D$25,2,0)),\"\"))","v":""},"",{"$f":"IF(OR(D431=\"\",E431=\"\",F431=\"\"),\"\",IF(AND(H431>0,H431<=Experiencia1),Puntajes!$D$4,IF(AND(H431>Experiencia1,H431<=Experiencia2),Puntajes!$D$5,IF(AND(H431>Experiencia2,H431<=Experiencia3),Puntajes!$D$6,IF(H431>Experiencia3,Puntajes!$D$7,0)))))","v":""}]
[null,null,{"$f":"+'Capacidad Financiera'!B435","v":""},{"$f":"IF(ISERROR(VLOOKUP(C432,'Capacidad Financiera'!$B$12:$X$62720,2,0)),\"\",VLOOKUP(C432,'Capacidad Financiera'!$B$12:$X$3580,2,0))","v":0},{"$f":"IF(ISERROR(VLOOKUP(C432,'Capacidad Financiera'!$B$12:$X$62720,3,0)),\"\",VLOOKUP(C432,'Capacidad Financiera'!$B$12:$X$62720,3,0))","v":0},null,{"$f":"IF(OR(D432=\"\",E432=\"\",F432=\"\"),\"\",IF(C432<>\"\",IF(ISERROR(VLOOKUP($A$10,POA!$A$2:$D$25,2,0)),\"\",VLOOKUP($A$10,POA!$A$2:$D$25,2,0)),\"\"))","v":""},"",{"$f":"IF(OR(D432=\"\",E432=\"\",F432=\"\"),\"\",IF(AND(H432>0,H432<=Experiencia1),Puntajes!$D$4,IF(AND(H432>Experiencia1,H432<=Experiencia2),Puntajes!$D$5,IF(AND(H432>Experiencia2,H432<=Experiencia3),Puntajes!$D$6,IF(H432>Experiencia3,Puntajes!$D$7,0)))))","v":""}]
[null,null,{"$f":"+'Capacidad Financiera'!B436","v":""},{"$f":"IF(ISERROR(VLOOKUP(C433,'Capacidad Financiera'!$B$12:$X$62720,2,0)),\"\",VLOOKUP(C433,'Capacidad Financiera'!$B$12:$X$3580,2,0))","v":0},{"$f":"IF(ISERROR(VLOOKUP(C433,'Capacidad Financiera'!$B$12:$X$62720,3,0)),\"\",VLOOKUP(C433,'Capacidad Financiera'!$B$12:$X$62720,3,0))","v":0},null,{"$f":"IF(OR(D433=\"\",E433=\"\",F433=\"\"),\"\",IF(C433<>\"\",IF(ISERROR(VLOOKUP($A$10,POA!$A$2:$D$25,2,0)),\"\",VLOOKUP($A$10,POA!$A$2:$D$25,2,0)),\"\"))","v":""},"",{"$f":"IF(OR(D433=\"\",E433=\"\",F433=\"\"),\"\",IF(AND(H433>0,H433<=Experiencia1),Puntajes!$D$4,IF(AND(H433>Experiencia1,H433<=Experiencia2),Puntajes!$D$5,IF(AND(H433>Experiencia2,H433<=Experiencia3),Puntajes!$D$6,IF(H433>Experiencia3,Puntajes!$D$7,0)))))","v":""}]
[null,null,{"$f":"+'Capacidad Financiera'!B437","v":""},{"$f":"IF(ISERROR(VLOOKUP(C434,'Capacidad Financiera'!$B$12:$X$62720,2,0)),\"\",VLOOKUP(C434,'Capacidad Financiera'!$B$12:$X$3580,2,0))","v":0},{"$f":"IF(ISERROR(VLOOKUP(C434,'Capacidad Financiera'!$B$12:$X$62720,3,0)),\"\",VLOOKUP(C434,'Capacidad Financiera'!$B$12:$X$62720,3,0))","v":0},null,{"$f":"IF(OR(D434=\"\",E434=\"\",F434=\"\"),\"\",IF(C434<>\"\",IF(ISERROR(VLOOKUP($A$10,POA!$A$2:$D$25,2,0)),\"\",VLOOKUP($A$10,POA!$A$2:$D$25,2,0)),\"\"))","v":""},"",{"$f":"IF(OR(D434=\"\",E434=\"\",F434=\"\"),\"\",IF(AND(H434>0,H434<=Experiencia1),Puntajes!$D$4,IF(AND(H434>Experiencia1,H434<=Experiencia2),Puntajes!$D$5,IF(AND(H434>Experiencia2,H434<=Experiencia3),Puntajes!$D$6,IF(H434>Experiencia3,Puntajes!$D$7,0)))))","v":""}]
[null,null,{"$f":"+'Capacidad Financiera'!B438","v":""},{"$f":"IF(ISERROR(VLOOKUP(C435,'Capacidad Financiera'!$B$12:$X$62720,2,0)),\"\",VLOOKUP(C435,'Capacidad Financiera'!$B$12:$X$3580,2,0))","v":0},{"$f":"IF(ISERROR(VLOOKUP(C435,'Capacidad Financiera'!$B$12:$X$62720,3,0)),\"\",VLOOKUP(C435,'Capacidad Financiera'!$B$12:$X$62720,3,0))","v":0},null,{"$f":"IF(OR(D435=\"\",E435=\"\",F435=\"\"),\"\",IF(C435<>\"\",IF(ISERROR(VLOOKUP($A$10,POA!$A$2:$D$25,2,0)),\"\",VLOOKUP($A$10,POA!$A$2:$D$25,2,0)),\"\"))","v":""},"",{"$f":"IF(OR(D435=\"\",E435=\"\",F435=\"\"),\"\",IF(AND(H435>0,H435<=Experiencia1),Puntajes!$D$4,IF(AND(H435>Experiencia1,H435<=Experiencia2),Puntajes!$D$5,IF(AND(H435>Experiencia2,H435<=Experiencia3),Puntajes!$D$6,IF(H435>Experiencia3,Puntajes!$D$7,0)))))","v":""}]
[null,null,{"$f":"+'Capacidad Financiera'!B439","v":""},{"$f":"IF(ISERROR(VLOOKUP(C436,'Capacidad Financiera'!$B$12:$X$62720,2,0)),\"\",VLOOKUP(C436,'Capacidad Financiera'!$B$12:$X$3580,2,0))","v":0},{"$f":"IF(ISERROR(VLOOKUP(C436,'Capacidad Financiera'!$B$12:$X$62720,3,0)),\"\",VLOOKUP(C436,'Capacidad Financiera'!$B$12:$X$62720,3,0))","v":0},null,{"$f":"IF(OR(D436=\"\",E436=\"\",F436=\"\"),\"\",IF(C436<>\"\",IF(ISERROR(VLOOKUP($A$10,POA!$A$2:$D$25,2,0)),\"\",VLOOKUP($A$10,POA!$A$2:$D$25,2,0)),\"\"))","v":""},"",{"$f":"IF(OR(D436=\"\",E436=\"\",F436=\"\"),\"\",IF(AND(H436>0,H436<=Experiencia1),Puntajes!$D$4,IF(AND(H436>Experiencia1,H436<=Experiencia2),Puntajes!$D$5,IF(AND(H436>Experiencia2,H436<=Experiencia3),Puntajes!$D$6,IF(H436>Experiencia3,Puntajes!$D$7,0)))))","v":""}]
[null,null,{"$f":"+'Capacidad Financiera'!B440","v":""},{"$f":"IF(ISERROR(VLOOKUP(C437,'Capacidad Financiera'!$B$12:$X$62720,2,0)),\"\",VLOOKUP(C437,'Capacidad Financiera'!$B$12:$X$3580,2,0))","v":0},{"$f":"IF(ISERROR(VLOOKUP(C437,'Capacidad Financiera'!$B$12:$X$62720,3,0)),\"\",VLOOKUP(C437,'Capacidad Financiera'!$B$12:$X$62720,3,0))","v":0},null,{"$f":"IF(OR(D437=\"\",E437=\"\",F437=\"\"),\"\",IF(C437<>\"\",IF(ISERROR(VLOOKUP($A$10,POA!$A$2:$D$25,2,0)),\"\",VLOOKUP($A$10,POA!$A$2:$D$25,2,0)),\"\"))","v":""},"",{"$f":"IF(OR(D437=\"\",E437=\"\",F437=\"\"),\"\",IF(AND(H437>0,H437<=Experiencia1),Puntajes!$D$4,IF(AND(H437>Experiencia1,H437<=Experiencia2),Puntajes!$D$5,IF(AND(H437>Experiencia2,H437<=Experiencia3),Puntajes!$D$6,IF(H437>Experiencia3,Puntajes!$D$7,0)))))","v":""}]
[null,null,40,{"$f":"IF(ISERROR(VLOOKUP(C438,'Capacidad Financiera'!$B$12:$X$62720,2,0)),\"\",VLOOKUP(C438,'Capacidad Financiera'!$B$12:$X$3580,2,0))","v":"CONSTRUCCIONES Y TRACTORES S.A."},{"$f":"IF(ISERROR(VLOOKUP(C438,'Capacidad Financiera'!$B$12:$X$62720,3,0)),\"\",VLOOKUP(C438,'Capacidad Financiera'!$B$12:$X$62720,3,0))","v":1},null,{"$f":"IF(OR(D438=\"\",E438=\"\",F438=\"\"),\"\",IF(C439=\"\",IF(C438<>\"\",IF(ISERROR(VLOOKUP($A$10,POA!$A$2:$D$25,2,0)),\"\",VLOOKUP($A$10,POA!$A$2:$D$25,2,0)),\"\"),\"\"))","v":""},{"$f":"IF(OR(D438=\"\",E438=\"\",F438=\"\"),\"\",IF(C439=\"\",IF(C438<>\"\",F438/G438,\"\"),\"\"))","v":""},{"$f":"IF(C439=\"\",IF(F438=\"\",\"\",IF(AND(H438>0,H438<=Experiencia1),Puntajes!$D$4,IF(AND(H438>Experiencia1,H438<=Experiencia2),Puntajes!$D$5,IF(AND(H438>Experiencia2,H438<=Experiencia3),Puntajes!$D$6,IF(H438>Experiencia3,Puntajes!$D$7,0))))),\"\")","v":""}]
[null,null,{"$f":"+'Capacidad Financiera'!B442","v":40.1},{"$f":"IF(ISERROR(VLOOKUP(C439,'Capacidad Financiera'!$B$12:$X$62720,2,0)),\"\",VLOOKUP(C439,'Capacidad Financiera'!$B$12:$X$3580,2,0))","v":"CONSTRUCCIONES Y TRACTORES S.A."},{"$f":"IF(ISERROR(VLOOKUP(C439,'Capacidad Financiera'!$B$12:$X$62720,3,0)),\"\",VLOOKUP(C439,'Capacidad Financiera'!$B$12:$X$62720,3,0))","v":1},406301846566,{"$f":"IF(OR(D439=\"\",E439=\"\",F439=\"\"),\"\",IF(C439<>\"\",IF(ISERROR(VLOOKUP($A$10,POA!$A$2:$D$25,2,0)),\"\",VLOOKUP($A$10,POA!$A$2:$D$25,2,0)),\"\"))","v":4167150295},{"$f":"IF(OR(D439=\"\",E439=\"\",F439=\"\"),\"\",IF(C439<>\"\",F439/(G439*E439),\"\"))","v":97.501126142127788},{"$f":"IF(OR(D439=\"\",E439=\"\",F439=\"\"),\"\",IF(AND(H439>0,H439<=Experiencia1),Puntajes!$D$4,IF(AND(H439>Experiencia1,H439<=Experiencia2),Puntajes!$D$5,IF(AND(H439>Experiencia2,H439<=Experiencia3),Puntajes!$D$6,IF(H439>Experiencia3,Puntajes!$D$7,0)))))","v":120}]
[null,null,{"$f":"+'Capacidad Financiera'!B443","v":""},{"$f":"IF(ISERROR(VLOOKUP(C440,'Capacidad Financiera'!$B$12:$X$62720,2,0)),\"\",VLOOKUP(C440,'Capacidad Financiera'!$B$12:$X$3580,2,0))","v":0},{"$f":"IF(ISERROR(VLOOKUP(C440,'Capacidad Financiera'!$B$12:$X$62720,3,0)),\"\",VLOOKUP(C440,'Capacidad Financiera'!$B$12:$X$62720,3,0))","v":0},null,{"$f":"IF(OR(D440=\"\",E440=\"\",F440=\"\"),\"\",IF(C440<>\"\",IF(ISERROR(VLOOKUP($A$10,POA!$A$2:$D$25,2,0)),\"\",VLOOKUP($A$10,POA!$A$2:$D$25,2,0)),\"\"))","v":""},{"$f":"IF(OR(D440=\"\",E440=\"\",F440=\"\"),\"\",IF(C440<>\"\",F440/(G440*E440),\"\"))","v":""},{"$f":"IF(OR(D440=\"\",E440=\"\",F440=\"\"),\"\",IF(AND(H440>0,H440<=Experiencia1),Puntajes!$D$4,IF(AND(H440>Experiencia1,H440<=Experiencia2),Puntajes!$D$5,IF(AND(H440>Experiencia2,H440<=Experiencia3),Puntajes!$D$6,IF(H440>Experiencia3,Puntajes!$D$7,0)))))","v":""}]
[null,null,{"$f":"+'Capacidad Financiera'!B444","v":""},{"$f":"IF(ISERROR(VLOOKUP(C441,'Capacidad Financiera'!$B$12:$X$62720,2,0)),\"\",VLOOKUP(C441,'Capacidad Financiera'!$B$12:$X$3580,2,0))","v":0},{"$f":"IF(ISERROR(VLOOKUP(C441,'Capacidad Financiera'!$B$12:$X$62720,3,0)),\"\",VLOOKUP(C441,'Capacidad Financiera'!$B$12:$X$62720,3,0))","v":0},null,{"$f":"IF(OR(D441=\"\",E441=\"\",F441=\"\"),\"\",IF(C441<>\"\",IF(ISERROR(VLOOKUP($A$10,POA!$A$2:$D$25,2,0)),\"\",VLOOKUP($A$10,POA!$A$2:$D$25,2,0)),\"\"))","v":""},"",{"$f":"IF(OR(D441=\"\",E441=\"\",F441=\"\"),\"\",IF(AND(H441>0,H441<=Experiencia1),Puntajes!$D$4,IF(AND(H441>Experiencia1,H441<=Experiencia2),Puntajes!$D$5,IF(AND(H441>Experiencia2,H441<=Experiencia3),Puntajes!$D$6,IF(H441>Experiencia3,Puntajes!$D$7,0)))))","v":""}]
[null,null,{"$f":"+'Capacidad Financiera'!B445","v":""},{"$f":"IF(ISERROR(VLOOKUP(C442,'Capacidad Financiera'!$B$12:$X$62720,2,0)),\"\",VLOOKUP(C442,'Capacidad Financiera'!$B$12:$X$3580,2,0))","v":0},{"$f":"IF(ISERROR(VLOOKUP(C442,'Capacidad Financiera'!$B$12:$X$62720,3,0)),\"\",VLOOKUP(C442,'Capacidad Financiera'!$B$12:$X$62720,3,0))","v":0},null,{"$f":"IF(OR(D442=\"\",E442=\"\",F442=\"\"),\"\",IF(C442<>\"\",IF(ISERROR(VLOOKUP($A$10,POA!$A$2:$D$25,2,0)),\"\",VLOOKUP($A$10,POA!$A$2:$D$25,2,0)),\"\"))","v":""},"",{"$f":"IF(OR(D442=\"\",E442=\"\",F442=\"\"),\"\",IF(AND(H442>0,H442<=Experiencia1),Puntajes!$D$4,IF(AND(H442>Experiencia1,H442<=Experiencia2),Puntajes!$D$5,IF(AND(H442>Experiencia2,H442<=Experiencia3),Puntajes!$D$6,IF(H442>Experiencia3,Puntajes!$D$7,0)))))","v":""}]
[null,null,{"$f":"+'Capacidad Financiera'!B446","v":""},{"$f":"IF(ISERROR(VLOOKUP(C443,'Capacidad Financiera'!$B$12:$X$62720,2,0)),\"\",VLOOKUP(C443,'Capacidad Financiera'!$B$12:$X$3580,2,0))","v":0},{"$f":"IF(ISERROR(VLOOKUP(C443,'Capacidad Financiera'!$B$12:$X$62720,3,0)),\"\",VLOOKUP(C443,'Capacidad Financiera'!$B$12:$X$62720,3,0))","v":0},null,{"$f":"IF(OR(D443=\"\",E443=\"\",F443=\"\"),\"\",IF(C443<>\"\",IF(ISERROR(VLOOKUP($A$10,POA!$A$2:$D$25,2,0)),\"\",VLOOKUP($A$10,POA!$A$2:$D$25,2,0)),\"\"))","v":""},"",{"$f":"IF(OR(D443=\"\",E443=\"\",F443=\"\"),\"\",IF(AND(H443>0,H443<=Experiencia1),Puntajes!$D$4,IF(AND(H443>Experiencia1,H443<=Experiencia2),Puntajes!$D$5,IF(AND(H443>Experiencia2,H443<=Experiencia3),Puntajes!$D$6,IF(H443>Experiencia3,Puntajes!$D$7,0)))))","v":""}]
[null,null,{"$f":"+'Capacidad Financiera'!B447","v":""},{"$f":"IF(ISERROR(VLOOKUP(C444,'Capacidad Financiera'!$B$12:$X$62720,2,0)),\"\",VLOOKUP(C444,'Capacidad Financiera'!$B$12:$X$3580,2,0))","v":0},{"$f":"IF(ISERROR(VLOOKUP(C444,'Capacidad Financiera'!$B$12:$X$62720,3,0)),\"\",VLOOKUP(C444,'Capacidad Financiera'!$B$12:$X$62720,3,0))","v":0},null,{"$f":"IF(OR(D444=\"\",E444=\"\",F444=\"\"),\"\",IF(C444<>\"\",IF(ISERROR(VLOOKUP($A$10,POA!$A$2:$D$25,2,0)),\"\",VLOOKUP($A$10,POA!$A$2:$D$25,2,0)),\"\"))","v":""},"",{"$f":"IF(OR(D444=\"\",E444=\"\",F444=\"\"),\"\",IF(AND(H444>0,H444<=Experiencia1),Puntajes!$D$4,IF(AND(H444>Experiencia1,H444<=Experiencia2),Puntajes!$D$5,IF(AND(H444>Experiencia2,H444<=Experiencia3),Puntajes!$D$6,IF(H444>Experiencia3,Puntajes!$D$7,0)))))","v":""}]
[null,null,{"$f":"+'Capacidad Financiera'!B448","v":""},{"$f":"IF(ISERROR(VLOOKUP(C445,'Capacidad Financiera'!$B$12:$X$62720,2,0)),\"\",VLOOKUP(C445,'Capacidad Financiera'!$B$12:$X$3580,2,0))","v":0},{"$f":"IF(ISERROR(VLOOKUP(C445,'Capacidad Financiera'!$B$12:$X$62720,3,0)),\"\",VLOOKUP(C445,'Capacidad Financiera'!$B$12:$X$62720,3,0))","v":0},null,{"$f":"IF(OR(D445=\"\",E445=\"\",F445=\"\"),\"\",IF(C445<>\"\",IF(ISERROR(VLOOKUP($A$10,POA!$A$2:$D$25,2,0)),\"\",VLOOKUP($A$10,POA!$A$2:$D$25,2,0)),\"\"))","v":""},"",{"$f":"IF(OR(D445=\"\",E445=\"\",F445=\"\"),\"\",IF(AND(H445>0,H445<=Experiencia1),Puntajes!$D$4,IF(AND(H445>Experiencia1,H445<=Experiencia2),Puntajes!$D$5,IF(AND(H445>Experiencia2,H445<=Experiencia3),Puntajes!$D$6,IF(H445>Experiencia3,Puntajes!$D$7,0)))))","v":""}]
[null,null,{"$f":"+'Capacidad Financiera'!B449","v":""},{"$f":"IF(ISERROR(VLOOKUP(C446,'Capacidad Financiera'!$B$12:$X$62720,2,0)),\"\",VLOOKUP(C446,'Capacidad Financiera'!$B$12:$X$3580,2,0))","v":0},{"$f":"IF(ISERROR(VLOOKUP(C446,'Capacidad Financiera'!$B$12:$X$62720,3,0)),\"\",VLOOKUP(C446,'Capacidad Financiera'!$B$12:$X$62720,3,0))","v":0},null,{"$f":"IF(OR(D446=\"\",E446=\"\",F446=\"\"),\"\",IF(C446<>\"\",IF(ISERROR(VLOOKUP($A$10,POA!$A$2:$D$25,2,0)),\"\",VLOOKUP($A$10,POA!$A$2:$D$25,2,0)),\"\"))","v":""},"",{"$f":"IF(OR(D446=\"\",E446=\"\",F446=\"\"),\"\",IF(AND(H446>0,H446<=Experiencia1),Puntajes!$D$4,IF(AND(H446>Experiencia1,H446<=Experiencia2),Puntajes!$D$5,IF(AND(H446>Experiencia2,H446<=Experiencia3),Puntajes!$D$6,IF(H446>Experiencia3,Puntajes!$D$7,0)))))","v":""}]
[null,null,{"$f":"+'Capacidad Financiera'!B450","v":""},{"$f":"IF(ISERROR(VLOOKUP(C447,'Capacidad Financiera'!$B$12:$X$62720,2,0)),\"\",VLOOKUP(C447,'Capacidad Financiera'!$B$12:$X$3580,2,0))","v":0},{"$f":"IF(ISERROR(VLOOKUP(C447,'Capacidad Financiera'!$B$12:$X$62720,3,0)),\"\",VLOOKUP(C447,'Capacidad Financiera'!$B$12:$X$62720,3,0))","v":0},null,{"$f":"IF(OR(D447=\"\",E447=\"\",F447=\"\"),\"\",IF(C447<>\"\",IF(ISERROR(VLOOKUP($A$10,POA!$A$2:$D$25,2,0)),\"\",VLOOKUP($A$10,POA!$A$2:$D$25,2,0)),\"\"))","v":""},"",{"$f":"IF(OR(D447=\"\",E447=\"\",F447=\"\"),\"\",IF(AND(H447>0,H447<=Experiencia1),Puntajes!$D$4,IF(AND(H447>Experiencia1,H447<=Experiencia2),Puntajes!$D$5,IF(AND(H447>Experiencia2,H447<=Experiencia3),Puntajes!$D$6,IF(H447>Experiencia3,Puntajes!$D$7,0)))))","v":""}]
[null,null,{"$f":"+'Capacidad Financiera'!B451","v":""},{"$f":"IF(ISERROR(VLOOKUP(C448,'Capacidad Financiera'!$B$12:$X$62720,2,0)),\"\",VLOOKUP(C448,'Capacidad Financiera'!$B$12:$X$3580,2,0))","v":0},{"$f":"IF(ISERROR(VLOOKUP(C448,'Capacidad Financiera'!$B$12:$X$62720,3,0)),\"\",VLOOKUP(C448,'Capacidad Financiera'!$B$12:$X$62720,3,0))","v":0},null,{"$f":"IF(OR(D448=\"\",E448=\"\",F448=\"\"),\"\",IF(C448<>\"\",IF(ISERROR(VLOOKUP($A$10,POA!$A$2:$D$25,2,0)),\"\",VLOOKUP($A$10,POA!$A$2:$D$25,2,0)),\"\"))","v":""},"",{"$f":"IF(OR(D448=\"\",E448=\"\",F448=\"\"),\"\",IF(AND(H448>0,H448<=Experiencia1),Puntajes!$D$4,IF(AND(H448>Experiencia1,H448<=Experiencia2),Puntajes!$D$5,IF(AND(H448>Experiencia2,H448<=Experiencia3),Puntajes!$D$6,IF(H448>Experiencia3,Puntajes!$D$7,0)))))","v":""}]
[null,null,41,{"$f":"IF(ISERROR(VLOOKUP(C449,'Capacidad Financiera'!$B$12:$X$62720,2,0)),\"\",VLOOKUP(C449,'Capacidad Financiera'!$B$12:$X$3580,2,0))","v":"RICARDO ORTIGOZA GONZALEZ"},{"$f":"IF(ISERROR(VLOOKUP(C449,'Capacidad Financiera'!$B$12:$X$62720,3,0)),\"\",VLOOKUP(C449,'Capacidad Financiera'!$B$12:$X$62720,3,0))","v":1},null,{"$f":"IF(OR(D449=\"\",E449=\"\",F449=\"\"),\"\",IF(C450=\"\",IF(C449<>\"\",IF(ISERROR(VLOOKUP($A$10,POA!$A$2:$D$25,2,0)),\"\",VLOOKUP($A$10,POA!$A$2:$D$25,2,0)),\"\"),\"\"))","v":""},{"$f":"IF(OR(D449=\"\",E449=\"\",F449=\"\"),\"\",IF(C450=\"\",IF(C449<>\"\",F449/G449,\"\"),\"\"))","v":""},{"$f":"IF(C450=\"\",IF(F449=\"\",\"\",IF(AND(H449>0,H449<=Experiencia1),Puntajes!$D$4,IF(AND(H449>Experiencia1,H449<=Experiencia2),Puntajes!$D$5,IF(AND(H449>Experiencia2,H449<=Experiencia3),Puntajes!$D$6,IF(H449>Experiencia3,Puntajes!$D$7,0))))),\"\")","v":""}]
[null,null,{"$f":"+'Capacidad Financiera'!B453","v":41.1},{"$f":"IF(ISERROR(VLOOKUP(C450,'Capacidad Financiera'!$B$12:$X$62720,2,0)),\"\",VLOOKUP(C450,'Capacidad Financiera'!$B$12:$X$3580,2,0))","v":"RICARDO ORTIGOZA GONZALEZ"},{"$f":"IF(ISERROR(VLOOKUP(C450,'Capacidad Financiera'!$B$12:$X$62720,3,0)),\"\",VLOOKUP(C450,'Capacidad Financiera'!$B$12:$X$62720,3,0))","v":1},33885115264,{"$f":"IF(OR(D450=\"\",E450=\"\",F450=\"\"),\"\",IF(C450<>\"\",IF(ISERROR(VLOOKUP($A$10,POA!$A$2:$D$25,2,0)),\"\",VLOOKUP($A$10,POA!$A$2:$D$25,2,0)),\"\"))","v":4167150295},{"$f":"IF(OR(D450=\"\",E450=\"\",F450=\"\"),\"\",IF(C450<>\"\",F450/(G450*E450),\"\"))","v":8.1314838355260228},{"$f":"IF(OR(D450=\"\",E450=\"\",F450=\"\"),\"\",IF(AND(H450>0,H450<=Experiencia1),Puntajes!$D$4,IF(AND(H450>Experiencia1,H450<=Experiencia2),Puntajes!$D$5,IF(AND(H450>Experiencia2,H450<=Experiencia3),Puntajes!$D$6,IF(H450>Experiencia3,Puntajes!$D$7,0)))))","v":100}]
[null,null,{"$f":"+'Capacidad Financiera'!B454","v":""},{"$f":"IF(ISERROR(VLOOKUP(C451,'Capacidad Financiera'!$B$12:$X$62720,2,0)),\"\",VLOOKUP(C451,'Capacidad Financiera'!$B$12:$X$3580,2,0))","v":0},{"$f":"IF(ISERROR(VLOOKUP(C451,'Capacidad Financiera'!$B$12:$X$62720,3,0)),\"\",VLOOKUP(C451,'Capacidad Financiera'!$B$12:$X$62720,3,0))","v":0},null,{"$f":"IF(OR(D451=\"\",E451=\"\",F451=\"\"),\"\",IF(C451<>\"\",IF(ISERROR(VLOOKUP($A$10,POA!$A$2:$D$25,2,0)),\"\",VLOOKUP($A$10,POA!$A$2:$D$25,2,0)),\"\"))","v":""},{"$f":"IF(OR(D451=\"\",E451=\"\",F451=\"\"),\"\",IF(C451<>\"\",F451/(G451*E451),\"\"))","v":""},{"$f":"IF(OR(D451=\"\",E451=\"\",F451=\"\"),\"\",IF(AND(H451>0,H451<=Experiencia1),Puntajes!$D$4,IF(AND(H451>Experiencia1,H451<=Experiencia2),Puntajes!$D$5,IF(AND(H451>Experiencia2,H451<=Experiencia3),Puntajes!$D$6,IF(H451>Experiencia3,Puntajes!$D$7,0)))))","v":""}]
[null,null,{"$f":"+'Capacidad Financiera'!B455","v":""},{"$f":"IF(ISERROR(VLOOKUP(C452,'Capacidad Financiera'!$B$12:$X$62720,2,0)),\"\",VLOOKUP(C452,'Capacidad Financiera'!$B$12:$X$3580,2,0))","v":0},{"$f":"IF(ISERROR(VLOOKUP(C452,'Capacidad Financiera'!$B$12:$X$62720,3,0)),\"\",VLOOKUP(C452,'Capacidad Financiera'!$B$12:$X$62720,3,0))","v":0},null,{"$f":"IF(OR(D452=\"\",E452=\"\",F452=\"\"),\"\",IF(C452<>\"\",IF(ISERROR(VLOOKUP($A$10,POA!$A$2:$D$25,2,0)),\"\",VLOOKUP($A$10,POA!$A$2:$D$25,2,0)),\"\"))","v":""},"",{"$f":"IF(OR(D452=\"\",E452=\"\",F452=\"\"),\"\",IF(AND(H452>0,H452<=Experiencia1),Puntajes!$D$4,IF(AND(H452>Experiencia1,H452<=Experiencia2),Puntajes!$D$5,IF(AND(H452>Experiencia2,H452<=Experiencia3),Puntajes!$D$6,IF(H452>Experiencia3,Puntajes!$D$7,0)))))","v":""}]
[null,null,{"$f":"+'Capacidad Financiera'!B456","v":""},{"$f":"IF(ISERROR(VLOOKUP(C453,'Capacidad Financiera'!$B$12:$X$62720,2,0)),\"\",VLOOKUP(C453,'Capacidad Financiera'!$B$12:$X$3580,2,0))","v":0},{"$f":"IF(ISERROR(VLOOKUP(C453,'Capacidad Financiera'!$B$12:$X$62720,3,0)),\"\",VLOOKUP(C453,'Capacidad Financiera'!$B$12:$X$62720,3,0))","v":0},null,{"$f":"IF(OR(D453=\"\",E453=\"\",F453=\"\"),\"\",IF(C453<>\"\",IF(ISERROR(VLOOKUP($A$10,POA!$A$2:$D$25,2,0)),\"\",VLOOKUP($A$10,POA!$A$2:$D$25,2,0)),\"\"))","v":""},"",{"$f":"IF(OR(D453=\"\",E453=\"\",F453=\"\"),\"\",IF(AND(H453>0,H453<=Experiencia1),Puntajes!$D$4,IF(AND(H453>Experiencia1,H453<=Experiencia2),Puntajes!$D$5,IF(AND(H453>Experiencia2,H453<=Experiencia3),Puntajes!$D$6,IF(H453>Experiencia3,Puntajes!$D$7,0)))))","v":""}]
[null,null,{"$f":"+'Capacidad Financiera'!B457","v":""},{"$f":"IF(ISERROR(VLOOKUP(C454,'Capacidad Financiera'!$B$12:$X$62720,2,0)),\"\",VLOOKUP(C454,'Capacidad Financiera'!$B$12:$X$3580,2,0))","v":0},{"$f":"IF(ISERROR(VLOOKUP(C454,'Capacidad Financiera'!$B$12:$X$62720,3,0)),\"\",VLOOKUP(C454,'Capacidad Financiera'!$B$12:$X$62720,3,0))","v":0},null,{"$f":"IF(OR(D454=\"\",E454=\"\",F454=\"\"),\"\",IF(C454<>\"\",IF(ISERROR(VLOOKUP($A$10,POA!$A$2:$D$25,2,0)),\"\",VLOOKUP($A$10,POA!$A$2:$D$25,2,0)),\"\"))","v":""},"",{"$f":"IF(OR(D454=\"\",E454=\"\",F454=\"\"),\"\",IF(AND(H454>0,H454<=Experiencia1),Puntajes!$D$4,IF(AND(H454>Experiencia1,H454<=Experiencia2),Puntajes!$D$5,IF(AND(H454>Experiencia2,H454<=Experiencia3),Puntajes!$D$6,IF(H454>Experiencia3,Puntajes!$D$7,0)))))","v":""}]
[null,null,{"$f":"+'Capacidad Financiera'!B458","v":""},{"$f":"IF(ISERROR(VLOOKUP(C455,'Capacidad Financiera'!$B$12:$X$62720,2,0)),\"\",VLOOKUP(C455,'Capacidad Financiera'!$B$12:$X$3580,2,0))","v":0},{"$f":"IF(ISERROR(VLOOKUP(C455,'Capacidad Financiera'!$B$12:$X$62720,3,0)),\"\",VLOOKUP(C455,'Capacidad Financiera'!$B$12:$X$62720,3,0))","v":0},null,{"$f":"IF(OR(D455=\"\",E455=\"\",F455=\"\"),\"\",IF(C455<>\"\",IF(ISERROR(VLOOKUP($A$10,POA!$A$2:$D$25,2,0)),\"\",VLOOKUP($A$10,POA!$A$2:$D$25,2,0)),\"\"))","v":""},"",{"$f":"IF(OR(D455=\"\",E455=\"\",F455=\"\"),\"\",IF(AND(H455>0,H455<=Experiencia1),Puntajes!$D$4,IF(AND(H455>Experiencia1,H455<=Experiencia2),Puntajes!$D$5,IF(AND(H455>Experiencia2,H455<=Experiencia3),Puntajes!$D$6,IF(H455>Experiencia3,Puntajes!$D$7,0)))))","v":""}]
[null,null,{"$f":"+'Capacidad Financiera'!B459","v":""},{"$f":"IF(ISERROR(VLOOKUP(C456,'Capacidad Financiera'!$B$12:$X$62720,2,0)),\"\",VLOOKUP(C456,'Capacidad Financiera'!$B$12:$X$3580,2,0))","v":0},{"$f":"IF(ISERROR(VLOOKUP(C456,'Capacidad Financiera'!$B$12:$X$62720,3,0)),\"\",VLOOKUP(C456,'Capacidad Financiera'!$B$12:$X$62720,3,0))","v":0},null,{"$f":"IF(OR(D456=\"\",E456=\"\",F456=\"\"),\"\",IF(C456<>\"\",IF(ISERROR(VLOOKUP($A$10,POA!$A$2:$D$25,2,0)),\"\",VLOOKUP($A$10,POA!$A$2:$D$25,2,0)),\"\"))","v":""},"",{"$f":"IF(OR(D456=\"\",E456=\"\",F456=\"\"),\"\",IF(AND(H456>0,H456<=Experiencia1),Puntajes!$D$4,IF(AND(H456>Experiencia1,H456<=Experiencia2),Puntajes!$D$5,IF(AND(H456>Experiencia2,H456<=Experiencia3),Puntajes!$D$6,IF(H456>Experiencia3,Puntajes!$D$7,0)))))","v":""}]
[null,null,{"$f":"+'Capacidad Financiera'!B460","v":""},{"$f":"IF(ISERROR(VLOOKUP(C457,'Capacidad Financiera'!$B$12:$X$62720,2,0)),\"\",VLOOKUP(C457,'Capacidad Financiera'!$B$12:$X$3580,2,0))","v":0},{"$f":"IF(ISERROR(VLOOKUP(C457,'Capacidad Financiera'!$B$12:$X$62720,3,0)),\"\",VLOOKUP(C457,'Capacidad Financiera'!$B$12:$X$62720,3,0))","v":0},null,{"$f":"IF(OR(D457=\"\",E457=\"\",F457=\"\"),\"\",IF(C457<>\"\",IF(ISERROR(VLOOKUP($A$10,POA!$A$2:$D$25,2,0)),\"\",VLOOKUP($A$10,POA!$A$2:$D$25,2,0)),\"\"))","v":""},"",{"$f":"IF(OR(D457=\"\",E457=\"\",F457=\"\"),\"\",IF(AND(H457>0,H457<=Experiencia1),Puntajes!$D$4,IF(AND(H457>Experiencia1,H457<=Experiencia2),Puntajes!$D$5,IF(AND(H457>Experiencia2,H457<=Experiencia3),Puntajes!$D$6,IF(H457>Experiencia3,Puntajes!$D$7,0)))))","v":""}]
[null,null,{"$f":"+'Capacidad Financiera'!B461","v":""},{"$f":"IF(ISERROR(VLOOKUP(C458,'Capacidad Financiera'!$B$12:$X$62720,2,0)),\"\",VLOOKUP(C458,'Capacidad Financiera'!$B$12:$X$3580,2,0))","v":0},{"$f":"IF(ISERROR(VLOOKUP(C458,'Capacidad Financiera'!$B$12:$X$62720,3,0)),\"\",VLOOKUP(C458,'Capacidad Financiera'!$B$12:$X$62720,3,0))","v":0},null,{"$f":"IF(OR(D458=\"\",E458=\"\",F458=\"\"),\"\",IF(C458<>\"\",IF(ISERROR(VLOOKUP($A$10,POA!$A$2:$D$25,2,0)),\"\",VLOOKUP($A$10,POA!$A$2:$D$25,2,0)),\"\"))","v":""},"",{"$f":"IF(OR(D458=\"\",E458=\"\",F458=\"\"),\"\",IF(AND(H458>0,H458<=Experiencia1),Puntajes!$D$4,IF(AND(H458>Experiencia1,H458<=Experiencia2),Puntajes!$D$5,IF(AND(H458>Experiencia2,H458<=Experiencia3),Puntajes!$D$6,IF(H458>Experiencia3,Puntajes!$D$7,0)))))","v":""}]
[null,null,{"$f":"+'Capacidad Financiera'!B462","v":""},{"$f":"IF(ISERROR(VLOOKUP(C459,'Capacidad Financiera'!$B$12:$X$62720,2,0)),\"\",VLOOKUP(C459,'Capacidad Financiera'!$B$12:$X$3580,2,0))","v":0},{"$f":"IF(ISERROR(VLOOKUP(C459,'Capacidad Financiera'!$B$12:$X$62720,3,0)),\"\",VLOOKUP(C459,'Capacidad Financiera'!$B$12:$X$62720,3,0))","v":0},null,{"$f":"IF(OR(D459=\"\",E459=\"\",F459=\"\"),\"\",IF(C459<>\"\",IF(ISERROR(VLOOKUP($A$10,POA!$A$2:$D$25,2,0)),\"\",VLOOKUP($A$10,POA!$A$2:$D$25,2,0)),\"\"))","v":""},"",{"$f":"IF(OR(D459=\"\",E459=\"\",F459=\"\"),\"\",IF(AND(H459>0,H459<=Experiencia1),Puntajes!$D$4,IF(AND(H459>Experiencia1,H459<=Experiencia2),Puntajes!$D$5,IF(AND(H459>Experiencia2,H459<=Experiencia3),Puntajes!$D$6,IF(H459>Experiencia3,Puntajes!$D$7,0)))))","v":""}]
[null,null,42,{"$f":"IF(ISERROR(VLOOKUP(C460,'Capacidad Financiera'!$B$12:$X$62720,2,0)),\"\",VLOOKUP(C460,'Capacidad Financiera'!$B$12:$X$3580,2,0))","v":"CONSORCIO VIALES CUNDINAMARCA"},{"$f":"IF(ISERROR(VLOOKUP(C460,'Capacidad Financiera'!$B$12:$X$62720,3,0)),\"\",VLOOKUP(C460,'Capacidad Financiera'!$B$12:$X$62720,3,0))","v":1},null,{"$f":"IF(OR(D460=\"\",E460=\"\",F460=\"\"),\"\",IF(C461=\"\",IF(C460<>\"\",IF(ISERROR(VLOOKUP($A$10,POA!$A$2:$D$25,2,0)),\"\",VLOOKUP($A$10,POA!$A$2:$D$25,2,0)),\"\"),\"\"))","v":""},{"$f":"IF(OR(D460=\"\",E460=\"\",F460=\"\"),\"\",IF(C461=\"\",IF(C460<>\"\",F460/G460,\"\"),\"\"))","v":""},{"$f":"IF(C461=\"\",IF(F460=\"\",\"\",IF(AND(H460>0,H460<=Experiencia1),Puntajes!$D$4,IF(AND(H460>Experiencia1,H460<=Experiencia2),Puntajes!$D$5,IF(AND(H460>Experiencia2,H460<=Experiencia3),Puntajes!$D$6,IF(H460>Experiencia3,Puntajes!$D$7,0))))),\"\")","v":""}]
[null,null,{"$f":"+'Capacidad Financiera'!B464","v":42.1},{"$f":"IF(ISERROR(VLOOKUP(C461,'Capacidad Financiera'!$B$12:$X$62720,2,0)),\"\",VLOOKUP(C461,'Capacidad Financiera'!$B$12:$X$3580,2,0))","v":"OLT CONSTRUCTORES S.A.S."},{"$f":"IF(ISERROR(VLOOKUP(C461,'Capacidad Financiera'!$B$12:$X$62720,3,0)),\"\",VLOOKUP(C461,'Capacidad Financiera'!$B$12:$X$62720,3,0))","v":0.6},null,{"$f":"IF(OR(D461=\"\",E461=\"\",F461=\"\"),\"\",IF(C461<>\"\",IF(ISERROR(VLOOKUP($A$10,POA!$A$2:$D$25,2,0)),\"\",VLOOKUP($A$10,POA!$A$2:$D$25,2,0)),\"\"))","v":""},{"$f":"IF(OR(D461=\"\",E461=\"\",F461=\"\"),\"\",IF(C461<>\"\",F461/(G461*E461),\"\"))","v":""},{"$f":"IF(OR(D461=\"\",E461=\"\",F461=\"\"),\"\",IF(AND(H461>0,H461<=Experiencia1),Puntajes!$D$4,IF(AND(H461>Experiencia1,H461<=Experiencia2),Puntajes!$D$5,IF(AND(H461>Experiencia2,H461<=Experiencia3),Puntajes!$D$6,IF(H461>Experiencia3,Puntajes!$D$7,0)))))","v":""}]
[null,null,{"$f":"+'Capacidad Financiera'!B465","v":42.2},{"$f":"IF(ISERROR(VLOOKUP(C462,'Capacidad Financiera'!$B$12:$X$62720,2,0)),\"\",VLOOKUP(C462,'Capacidad Financiera'!$B$12:$X$3580,2,0))","v":"CONSTRUCCIONES MAJA S.A.S."},{"$f":"IF(ISERROR(VLOOKUP(C462,'Capacidad Financiera'!$B$12:$X$62720,3,0)),\"\",VLOOKUP(C462,'Capacidad Financiera'!$B$12:$X$62720,3,0))","v":0.4},8178180472,{"$f":"IF(OR(D462=\"\",E462=\"\",F462=\"\"),\"\",IF(C462<>\"\",IF(ISERROR(VLOOKUP($A$10,POA!$A$2:$D$25,2,0)),\"\",VLOOKUP($A$10,POA!$A$2:$D$25,2,0)),\"\"))","v":4167150295},{"$f":"IF(OR(D462=\"\",E462=\"\",F462=\"\"),\"\",IF(C462<>\"\",F462/(G462*E462),\"\"))","v":4.9063388005303512},{"$f":"IF(OR(D462=\"\",E462=\"\",F462=\"\"),\"\",IF(AND(H462>0,H462<=Experiencia1),Puntajes!$D$4,IF(AND(H462>Experiencia1,H462<=Experiencia2),Puntajes!$D$5,IF(AND(H462>Experiencia2,H462<=Experiencia3),Puntajes!$D$6,IF(H462>Experiencia3,Puntajes!$D$7,0)))))","v":80}]
[null,null,{"$f":"+'Capacidad Financiera'!B466","v":""},{"$f":"IF(ISERROR(VLOOKUP(C463,'Capacidad Financiera'!$B$12:$X$62720,2,0)),\"\",VLOOKUP(C463,'Capacidad Financiera'!$B$12:$X$3580,2,0))","v":0},{"$f":"IF(ISERROR(VLOOKUP(C463,'Capacidad Financiera'!$B$12:$X$62720,3,0)),\"\",VLOOKUP(C463,'Capacidad Financiera'!$B$12:$X$62720,3,0))","v":0},null,{"$f":"IF(OR(D463=\"\",E463=\"\",F463=\"\"),\"\",IF(C463<>\"\",IF(ISERROR(VLOOKUP($A$10,POA!$A$2:$D$25,2,0)),\"\",VLOOKUP($A$10,POA!$A$2:$D$25,2,0)),\"\"))","v":""},"",{"$f":"IF(OR(D463=\"\",E463=\"\",F463=\"\"),\"\",IF(AND(H463>0,H463<=Experiencia1),Puntajes!$D$4,IF(AND(H463>Experiencia1,H463<=Experiencia2),Puntajes!$D$5,IF(AND(H463>Experiencia2,H463<=Experiencia3),Puntajes!$D$6,IF(H463>Experiencia3,Puntajes!$D$7,0)))))","v":""}]
[null,null,{"$f":"+'Capacidad Financiera'!B467","v":""},{"$f":"IF(ISERROR(VLOOKUP(C464,'Capacidad Financiera'!$B$12:$X$62720,2,0)),\"\",VLOOKUP(C464,'Capacidad Financiera'!$B$12:$X$3580,2,0))","v":0},{"$f":"IF(ISERROR(VLOOKUP(C464,'Capacidad Financiera'!$B$12:$X$62720,3,0)),\"\",VLOOKUP(C464,'Capacidad Financiera'!$B$12:$X$62720,3,0))","v":0},null,{"$f":"IF(OR(D464=\"\",E464=\"\",F464=\"\"),\"\",IF(C464<>\"\",IF(ISERROR(VLOOKUP($A$10,POA!$A$2:$D$25,2,0)),\"\",VLOOKUP($A$10,POA!$A$2:$D$25,2,0)),\"\"))","v":""},"",{"$f":"IF(OR(D464=\"\",E464=\"\",F464=\"\"),\"\",IF(AND(H464>0,H464<=Experiencia1),Puntajes!$D$4,IF(AND(H464>Experiencia1,H464<=Experiencia2),Puntajes!$D$5,IF(AND(H464>Experiencia2,H464<=Experiencia3),Puntajes!$D$6,IF(H464>Experiencia3,Puntajes!$D$7,0)))))","v":""}]
[null,null,{"$f":"+'Capacidad Financiera'!B468","v":""},{"$f":"IF(ISERROR(VLOOKUP(C465,'Capacidad Financiera'!$B$12:$X$62720,2,0)),\"\",VLOOKUP(C465,'Capacidad Financiera'!$B$12:$X$3580,2,0))","v":0},{"$f":"IF(ISERROR(VLOOKUP(C465,'Capacidad Financiera'!$B$12:$X$62720,3,0)),\"\",VLOOKUP(C465,'Capacidad Financiera'!$B$12:$X$62720,3,0))","v":0},null,{"$f":"IF(OR(D465=\"\",E465=\"\",F465=\"\"),\"\",IF(C465<>\"\",IF(ISERROR(VLOOKUP($A$10,POA!$A$2:$D$25,2,0)),\"\",VLOOKUP($A$10,POA!$A$2:$D$25,2,0)),\"\"))","v":""},"",{"$f":"IF(OR(D465=\"\",E465=\"\",F465=\"\"),\"\",IF(AND(H465>0,H465<=Experiencia1),Puntajes!$D$4,IF(AND(H465>Experiencia1,H465<=Experiencia2),Puntajes!$D$5,IF(AND(H465>Experiencia2,H465<=Experiencia3),Puntajes!$D$6,IF(H465>Experiencia3,Puntajes!$D$7,0)))))","v":""}]
[null,null,{"$f":"+'Capacidad Financiera'!B469","v":""},{"$f":"IF(ISERROR(VLOOKUP(C466,'Capacidad Financiera'!$B$12:$X$62720,2,0)),\"\",VLOOKUP(C466,'Capacidad Financiera'!$B$12:$X$3580,2,0))","v":0},{"$f":"IF(ISERROR(VLOOKUP(C466,'Capacidad Financiera'!$B$12:$X$62720,3,0)),\"\",VLOOKUP(C466,'Capacidad Financiera'!$B$12:$X$62720,3,0))","v":0},null,{"$f":"IF(OR(D466=\"\",E466=\"\",F466=\"\"),\"\",IF(C466<>\"\",IF(ISERROR(VLOOKUP($A$10,POA!$A$2:$D$25,2,0)),\"\",VLOOKUP($A$10,POA!$A$2:$D$25,2,0)),\"\"))","v":""},"",{"$f":"IF(OR(D466=\"\",E466=\"\",F466=\"\"),\"\",IF(AND(H466>0,H466<=Experiencia1),Puntajes!$D$4,IF(AND(H466>Experiencia1,H466<=Experiencia2),Puntajes!$D$5,IF(AND(H466>Experiencia2,H466<=Experiencia3),Puntajes!$D$6,IF(H466>Experiencia3,Puntajes!$D$7,0)))))","v":""}]
[null,null,{"$f":"+'Capacidad Financiera'!B470","v":""},{"$f":"IF(ISERROR(VLOOKUP(C467,'Capacidad Financiera'!$B$12:$X$62720,2,0)),\"\",VLOOKUP(C467,'Capacidad Financiera'!$B$12:$X$3580,2,0))","v":0},{"$f":"IF(ISERROR(VLOOKUP(C467,'Capacidad Financiera'!$B$12:$X$62720,3,0)),\"\",VLOOKUP(C467,'Capacidad Financiera'!$B$12:$X$62720,3,0))","v":0},null,{"$f":"IF(OR(D467=\"\",E467=\"\",F467=\"\"),\"\",IF(C467<>\"\",IF(ISERROR(VLOOKUP($A$10,POA!$A$2:$D$25,2,0)),\"\",VLOOKUP($A$10,POA!$A$2:$D$25,2,0)),\"\"))","v":""},"",{"$f":"IF(OR(D467=\"\",E467=\"\",F467=\"\"),\"\",IF(AND(H467>0,H467<=Experiencia1),Puntajes!$D$4,IF(AND(H467>Experiencia1,H467<=Experiencia2),Puntajes!$D$5,IF(AND(H467>Experiencia2,H467<=Experiencia3),Puntajes!$D$6,IF(H467>Experiencia3,Puntajes!$D$7,0)))))","v":""}]
[null,null,{"$f":"+'Capacidad Financiera'!B471","v":""},{"$f":"IF(ISERROR(VLOOKUP(C468,'Capacidad Financiera'!$B$12:$X$62720,2,0)),\"\",VLOOKUP(C468,'Capacidad Financiera'!$B$12:$X$3580,2,0))","v":0},{"$f":"IF(ISERROR(VLOOKUP(C468,'Capacidad Financiera'!$B$12:$X$62720,3,0)),\"\",VLOOKUP(C468,'Capacidad Financiera'!$B$12:$X$62720,3,0))","v":0},null,{"$f":"IF(OR(D468=\"\",E468=\"\",F468=\"\"),\"\",IF(C468<>\"\",IF(ISERROR(VLOOKUP($A$10,POA!$A$2:$D$25,2,0)),\"\",VLOOKUP($A$10,POA!$A$2:$D$25,2,0)),\"\"))","v":""},"",{"$f":"IF(OR(D468=\"\",E468=\"\",F468=\"\"),\"\",IF(AND(H468>0,H468<=Experiencia1),Puntajes!$D$4,IF(AND(H468>Experiencia1,H468<=Experiencia2),Puntajes!$D$5,IF(AND(H468>Experiencia2,H468<=Experiencia3),Puntajes!$D$6,IF(H468>Experiencia3,Puntajes!$D$7,0)))))","v":""}]
[null,null,{"$f":"+'Capacidad Financiera'!B472","v":""},{"$f":"IF(ISERROR(VLOOKUP(C469,'Capacidad Financiera'!$B$12:$X$62720,2,0)),\"\",VLOOKUP(C469,'Capacidad Financiera'!$B$12:$X$3580,2,0))","v":0},{"$f":"IF(ISERROR(VLOOKUP(C469,'Capacidad Financiera'!$B$12:$X$62720,3,0)),\"\",VLOOKUP(C469,'Capacidad Financiera'!$B$12:$X$62720,3,0))","v":0},null,{"$f":"IF(OR(D469=\"\",E469=\"\",F469=\"\"),\"\",IF(C469<>\"\",IF(ISERROR(VLOOKUP($A$10,POA!$A$2:$D$25,2,0)),\"\",VLOOKUP($A$10,POA!$A$2:$D$25,2,0)),\"\"))","v":""},"",{"$f":"IF(OR(D469=\"\",E469=\"\",F469=\"\"),\"\",IF(AND(H469>0,H469<=Experiencia1),Puntajes!$D$4,IF(AND(H469>Experiencia1,H469<=Experiencia2),Puntajes!$D$5,IF(AND(H469>Experiencia2,H469<=Experiencia3),Puntajes!$D$6,IF(H469>Experiencia3,Puntajes!$D$7,0)))))","v":""}]
[null,null,{"$f":"+'Capacidad Financiera'!B473","v":""},{"$f":"IF(ISERROR(VLOOKUP(C470,'Capacidad Financiera'!$B$12:$X$62720,2,0)),\"\",VLOOKUP(C470,'Capacidad Financiera'!$B$12:$X$3580,2,0))","v":0},{"$f":"IF(ISERROR(VLOOKUP(C470,'Capacidad Financiera'!$B$12:$X$62720,3,0)),\"\",VLOOKUP(C470,'Capacidad Financiera'!$B$12:$X$62720,3,0))","v":0},null,{"$f":"IF(OR(D470=\"\",E470=\"\",F470=\"\"),\"\",IF(C470<>\"\",IF(ISERROR(VLOOKUP($A$10,POA!$A$2:$D$25,2,0)),\"\",VLOOKUP($A$10,POA!$A$2:$D$25,2,0)),\"\"))","v":""},"",{"$f":"IF(OR(D470=\"\",E470=\"\",F470=\"\"),\"\",IF(AND(H470>0,H470<=Experiencia1),Puntajes!$D$4,IF(AND(H470>Experiencia1,H470<=Experiencia2),Puntajes!$D$5,IF(AND(H470>Experiencia2,H470<=Experiencia3),Puntajes!$D$6,IF(H470>Experiencia3,Puntajes!$D$7,0)))))","v":""}]
[null,null,43,{"$f":"IF(ISERROR(VLOOKUP(C471,'Capacidad Financiera'!$B$12:$X$62720,2,0)),\"\",VLOOKUP(C471,'Capacidad Financiera'!$B$12:$X$3580,2,0))","v":"CONSORCIO LA CALERA 034"},{"$f":"IF(ISERROR(VLOOKUP(C471,'Capacidad Financiera'!$B$12:$X$62720,3,0)),\"\",VLOOKUP(C471,'Capacidad Financiera'!$B$12:$X$62720,3,0))","v":0.99999999999999989},null,{"$f":"IF(OR(D471=\"\",E471=\"\",F471=\"\"),\"\",IF(C472=\"\",IF(C471<>\"\",IF(ISERROR(VLOOKUP($A$10,POA!$A$2:$D$25,2,0)),\"\",VLOOKUP($A$10,POA!$A$2:$D$25,2,0)),\"\"),\"\"))","v":""},{"$f":"IF(OR(D471=\"\",E471=\"\",F471=\"\"),\"\",IF(C472=\"\",IF(C471<>\"\",F471/G471,\"\"),\"\"))","v":""},{"$f":"IF(C472=\"\",IF(F471=\"\",\"\",IF(AND(H471>0,H471<=Experiencia1),Puntajes!$D$4,IF(AND(H471>Experiencia1,H471<=Experiencia2),Puntajes!$D$5,IF(AND(H471>Experiencia2,H471<=Experiencia3),Puntajes!$D$6,IF(H471>Experiencia3,Puntajes!$D$7,0))))),\"\")","v":""}]
[null,null,{"$f":"+'Capacidad Financiera'!B475","v":43.1},{"$f":"IF(ISERROR(VLOOKUP(C472,'Capacidad Financiera'!$B$12:$X$62720,2,0)),\"\",VLOOKUP(C472,'Capacidad Financiera'!$B$12:$X$3580,2,0))","v":"JULIO ECHEVERRY SARMIENTO"},{"$f":"IF(ISERROR(VLOOKUP(C472,'Capacidad Financiera'!$B$12:$X$62720,3,0)),\"\",VLOOKUP(C472,'Capacidad Financiera'!$B$12:$X$62720,3,0))","v":0.35},1798473600,{"$f":"IF(OR(D472=\"\",E472=\"\",F472=\"\"),\"\",IF(C472<>\"\",IF(ISERROR(VLOOKUP($A$10,POA!$A$2:$D$25,2,0)),\"\",VLOOKUP($A$10,POA!$A$2:$D$25,2,0)),\"\"))","v":4167150295},{"$f":"IF(OR(D472=\"\",E472=\"\",F472=\"\"),\"\",IF(C472<>\"\",F472/(G472*E472),\"\"))","v":1.233095913570835},{"$f":"IF(OR(D472=\"\",E472=\"\",F472=\"\"),\"\",IF(AND(H472>0,H472<=Experiencia1),Puntajes!$D$4,IF(AND(H472>Experiencia1,H472<=Experiencia2),Puntajes!$D$5,IF(AND(H472>Experiencia2,H472<=Experiencia3),Puntajes!$D$6,IF(H472>Experiencia3,Puntajes!$D$7,0)))))","v":60}]
["rup ilegible",null,{"$f":"+'Capacidad Financiera'!B476","v":43.2},{"$f":"IF(ISERROR(VLOOKUP(C473,'Capacidad Financiera'!$B$12:$X$62720,2,0)),\"\",VLOOKUP(C473,'Capacidad Financiera'!$B$12:$X$3580,2,0))","v":"FRANKLIN PIRAGUA ROA"},{"$f":"IF(ISERROR(VLOOKUP(C473,'Capacidad Financiera'!$B$12:$X$62720,3,0)),\"\",VLOOKUP(C473,'Capacidad Financiera'!$B$12:$X$62720,3,0))","v":0.3},null,{"$f":"IF(OR(D473=\"\",E473=\"\",F473=\"\"),\"\",IF(C473<>\"\",IF(ISERROR(VLOOKUP($A$10,POA!$A$2:$D$25,2,0)),\"\",VLOOKUP($A$10,POA!$A$2:$D$25,2,0)),\"\"))","v":""},{"$f":"IF(OR(D473=\"\",E473=\"\",F473=\"\"),\"\",IF(C473<>\"\",F473/(G473*E473),\"\"))","v":""},{"$f":"IF(OR(D473=\"\",E473=\"\",F473=\"\"),\"\",IF(AND(H473>0,H473<=Experiencia1),Puntajes!$D$4,IF(AND(H473>Experiencia1,H473<=Experiencia2),Puntajes!$D$5,IF(AND(H473>Experiencia2,H473<=Experiencia3),Puntajes!$D$6,IF(H473>Experiencia3,Puntajes!$D$7,0)))))","v":""}]
["rup ilegible",null,{"$f":"+'Capacidad Financiera'!B477","v":43.300000000000004},{"$f":"IF(ISERROR(VLOOKUP(C474,'Capacidad Financiera'!$B$12:$X$62720,2,0)),\"\",VLOOKUP(C474,'Capacidad Financiera'!$B$12:$X$3580,2,0))","v":"CARLOS ARANGO SALAZAR"},{"$f":"IF(ISERROR(VLOOKUP(C474,'Capacidad Financiera'!$B$12:$X$62720,3,0)),\"\",VLOOKUP(C474,'Capacidad Financiera'!$B$12:$X$62720,3,0))","v":0.35},null,{"$f":"IF(OR(D474=\"\",E474=\"\",F474=\"\"),\"\",IF(C474<>\"\",IF(ISERROR(VLOOKUP($A$10,POA!$A$2:$D$25,2,0)),\"\",VLOOKUP($A$10,POA!$A$2:$D$25,2,0)),\"\"))","v":""},"",{"$f":"IF(OR(D474=\"\",E474=\"\",F474=\"\"),\"\",IF(AND(H474>0,H474<=Experiencia1),Puntajes!$D$4,IF(AND(H474>Experiencia1,H474<=Experiencia2),Puntajes!$D$5,IF(AND(H474>Experiencia2,H474<=Experiencia3),Puntajes!$D$6,IF(H474>Experiencia3,Puntajes!$D$7,0)))))","v":""}]
[null,null,{"$f":"+'Capacidad Financiera'!B478","v":""},{"$f":"IF(ISERROR(VLOOKUP(C475,'Capacidad Financiera'!$B$12:$X$62720,2,0)),\"\",VLOOKUP(C475,'Capacidad Financiera'!$B$12:$X$3580,2,0))","v":0},{"$f":"IF(ISERROR(VLOOKUP(C475,'Capacidad Financiera'!$B$12:$X$62720,3,0)),\"\",VLOOKUP(C475,'Capacidad Financiera'!$B$12:$X$62720,3,0))","v":0},null,{"$f":"IF(OR(D475=\"\",E475=\"\",F475=\"\"),\"\",IF(C475<>\"\",IF(ISERROR(VLOOKUP($A$10,POA!$A$2:$D$25,2,0)),\"\",VLOOKUP($A$10,POA!$A$2:$D$25,2,0)),\"\"))","v":""},"",{"$f":"IF(OR(D475=\"\",E475=\"\",F475=\"\"),\"\",IF(AND(H475>0,H475<=Experiencia1),Puntajes!$D$4,IF(AND(H475>Experiencia1,H475<=Experiencia2),Puntajes!$D$5,IF(AND(H475>Experiencia2,H475<=Experiencia3),Puntajes!$D$6,IF(H475>Experiencia3,Puntajes!$D$7,0)))))","v":""}]
[null,null,{"$f":"+'Capacidad Financiera'!B479","v":""},{"$f":"IF(ISERROR(VLOOKUP(C476,'Capacidad Financiera'!$B$12:$X$62720,2,0)),\"\",VLOOKUP(C476,'Capacidad Financiera'!$B$12:$X$3580,2,0))","v":0},{"$f":"IF(ISERROR(VLOOKUP(C476,'Capacidad Financiera'!$B$12:$X$62720,3,0)),\"\",VLOOKUP(C476,'Capacidad Financiera'!$B$12:$X$62720,3,0))","v":0},null,{"$f":"IF(OR(D476=\"\",E476=\"\",F476=\"\"),\"\",IF(C476<>\"\",IF(ISERROR(VLOOKUP($A$10,POA!$A$2:$D$25,2,0)),\"\",VLOOKUP($A$10,POA!$A$2:$D$25,2,0)),\"\"))","v":""},"",{"$f":"IF(OR(D476=\"\",E476=\"\",F476=\"\"),\"\",IF(AND(H476>0,H476<=Experiencia1),Puntajes!$D$4,IF(AND(H476>Experiencia1,H476<=Experiencia2),Puntajes!$D$5,IF(AND(H476>Experiencia2,H476<=Experiencia3),Puntajes!$D$6,IF(H476>Experiencia3,Puntajes!$D$7,0)))))","v":""}]
[null,null,{"$f":"+'Capacidad Financiera'!B480","v":""},{"$f":"IF(ISERROR(VLOOKUP(C477,'Capacidad Financiera'!$B$12:$X$62720,2,0)),\"\",VLOOKUP(C477,'Capacidad Financiera'!$B$12:$X$3580,2,0))","v":0},{"$f":"IF(ISERROR(VLOOKUP(C477,'Capacidad Financiera'!$B$12:$X$62720,3,0)),\"\",VLOOKUP(C477,'Capacidad Financiera'!$B$12:$X$62720,3,0))","v":0},null,{"$f":"IF(OR(D477=\"\",E477=\"\",F477=\"\"),\"\",IF(C477<>\"\",IF(ISERROR(VLOOKUP($A$10,POA!$A$2:$D$25,2,0)),\"\",VLOOKUP($A$10,POA!$A$2:$D$25,2,0)),\"\"))","v":""},"",{"$f":"IF(OR(D477=\"\",E477=\"\",F477=\"\"),\"\",IF(AND(H477>0,H477<=Experiencia1),Puntajes!$D$4,IF(AND(H477>Experiencia1,H477<=Experiencia2),Puntajes!$D$5,IF(AND(H477>Experiencia2,H477<=Experiencia3),Puntajes!$D$6,IF(H477>Experiencia3,Puntajes!$D$7,0)))))","v":""}]
[null,null,{"$f":"+'Capacidad Financiera'!B481","v":""},{"$f":"IF(ISERROR(VLOOKUP(C478,'Capacidad Financiera'!$B$12:$X$62720,2,0)),\"\",VLOOKUP(C478,'Capacidad Financiera'!$B$12:$X$3580,2,0))","v":0},{"$f":"IF(ISERROR(VLOOKUP(C478,'Capacidad Financiera'!$B$12:$X$62720,3,0)),\"\",VLOOKUP(C478,'Capacidad Financiera'!$B$12:$X$62720,3,0))","v":0},null,{"$f":"IF(OR(D478=\"\",E478=\"\",F478=\"\"),\"\",IF(C478<>\"\",IF(ISERROR(VLOOKUP($A$10,POA!$A$2:$D$25,2,0)),\"\",VLOOKUP($A$10,POA!$A$2:$D$25,2,0)),\"\"))","v":""},"",{"$f":"IF(OR(D478=\"\",E478=\"\",F478=\"\"),\"\",IF(AND(H478>0,H478<=Experiencia1),Puntajes!$D$4,IF(AND(H478>Experiencia1,H478<=Experiencia2),Puntajes!$D$5,IF(AND(H478>Experiencia2,H478<=Experiencia3),Puntajes!$D$6,IF(H478>Experiencia3,Puntajes!$D$7,0)))))","v":""}]
[null,null,{"$f":"+'Capacidad Financiera'!B482","v":""},{"$f":"IF(ISERROR(VLOOKUP(C479,'Capacidad Financiera'!$B$12:$X$62720,2,0)),\"\",VLOOKUP(C479,'Capacidad Financiera'!$B$12:$X$3580,2,0))","v":0},{"$f":"IF(ISERROR(VLOOKUP(C479,'Capacidad Financiera'!$B$12:$X$62720,3,0)),\"\",VLOOKUP(C479,'Capacidad Financiera'!$B$12:$X$62720,3,0))","v":0},null,{"$f":"IF(OR(D479=\"\",E479=\"\",F479=\"\"),\"\",IF(C479<>\"\",IF(ISERROR(VLOOKUP($A$10,POA!$A$2:$D$25,2,0)),\"\",VLOOKUP($A$10,POA!$A$2:$D$25,2,0)),\"\"))","v":""},"",{"$f":"IF(OR(D479=\"\",E479=\"\",F479=\"\"),\"\",IF(AND(H479>0,H479<=Experiencia1),Puntajes!$D$4,IF(AND(H479>Experiencia1,H479<=Experiencia2),Puntajes!$D$5,IF(AND(H479>Experiencia2,H479<=Experiencia3),Puntajes!$D$6,IF(H479>Experiencia3,Puntajes!$D$7,0)))))","v":""}]
[null,null,{"$f":"+'Capacidad Financiera'!B483","v":""},{"$f":"IF(ISERROR(VLOOKUP(C480,'Capacidad Financiera'!$B$12:$X$62720,2,0)),\"\",VLOOKUP(C480,'Capacidad Financiera'!$B$12:$X$3580,2,0))","v":0},{"$f":"IF(ISERROR(VLOOKUP(C480,'Capacidad Financiera'!$B$12:$X$62720,3,0)),\"\",VLOOKUP(C480,'Capacidad Financiera'!$B$12:$X$62720,3,0))","v":0},null,{"$f":"IF(OR(D480=\"\",E480=\"\",F480=\"\"),\"\",IF(C480<>\"\",IF(ISERROR(VLOOKUP($A$10,POA!$A$2:$D$25,2,0)),\"\",VLOOKUP($A$10,POA!$A$2:$D$25,2,0)),\"\"))","v":""},"",{"$f":"IF(OR(D480=\"\",E480=\"\",F480=\"\"),\"\",IF(AND(H480>0,H480<=Experiencia1),Puntajes!$D$4,IF(AND(H480>Experiencia1,H480<=Experiencia2),Puntajes!$D$5,IF(AND(H480>Experiencia2,H480<=Experiencia3),Puntajes!$D$6,IF(H480>Experiencia3,Puntajes!$D$7,0)))))","v":""}]
[null,null,{"$f":"+'Capacidad Financiera'!B484","v":""},{"$f":"IF(ISERROR(VLOOKUP(C481,'Capacidad Financiera'!$B$12:$X$62720,2,0)),\"\",VLOOKUP(C481,'Capacidad Financiera'!$B$12:$X$3580,2,0))","v":0},{"$f":"IF(ISERROR(VLOOKUP(C481,'Capacidad Financiera'!$B$12:$X$62720,3,0)),\"\",VLOOKUP(C481,'Capacidad Financiera'!$B$12:$X$62720,3,0))","v":0},null,{"$f":"IF(OR(D481=\"\",E481=\"\",F481=\"\"),\"\",IF(C481<>\"\",IF(ISERROR(VLOOKUP($A$10,POA!$A$2:$D$25,2,0)),\"\",VLOOKUP($A$10,POA!$A$2:$D$25,2,0)),\"\"))","v":""},"",{"$f":"IF(OR(D481=\"\",E481=\"\",F481=\"\"),\"\",IF(AND(H481>0,H481<=Experiencia1),Puntajes!$D$4,IF(AND(H481>Experiencia1,H481<=Experiencia2),Puntajes!$D$5,IF(AND(H481>Experiencia2,H481<=Experiencia3),Puntajes!$D$6,IF(H481>Experiencia3,Puntajes!$D$7,0)))))","v":""}]
[null,null,44,{"$f":"IF(ISERROR(VLOOKUP(C482,'Capacidad Financiera'!$B$12:$X$62720,2,0)),\"\",VLOOKUP(C482,'Capacidad Financiera'!$B$12:$X$3580,2,0))","v":"CONCRETOS Y ASFALTOS S.A."},{"$f":"IF(ISERROR(VLOOKUP(C482,'Capacidad Financiera'!$B$12:$X$62720,3,0)),\"\",VLOOKUP(C482,'Capacidad Financiera'!$B$12:$X$62720,3,0))","v":1},null,{"$f":"IF(OR(D482=\"\",E482=\"\",F482=\"\"),\"\",IF(C483=\"\",IF(C482<>\"\",IF(ISERROR(VLOOKUP($A$10,POA!$A$2:$D$25,2,0)),\"\",VLOOKUP($A$10,POA!$A$2:$D$25,2,0)),\"\"),\"\"))","v":""},{"$f":"IF(OR(D482=\"\",E482=\"\",F482=\"\"),\"\",IF(C483=\"\",IF(C482<>\"\",F482/G482,\"\"),\"\"))","v":""},{"$f":"IF(C483=\"\",IF(F482=\"\",\"\",IF(AND(H482>0,H482<=Experiencia1),Puntajes!$D$4,IF(AND(H482>Experiencia1,H482<=Experiencia2),Puntajes!$D$5,IF(AND(H482>Experiencia2,H482<=Experiencia3),Puntajes!$D$6,IF(H482>Experiencia3,Puntajes!$D$7,0))))),\"\")","v":""}]
[null,null,{"$f":"+'Capacidad Financiera'!B486","v":44.1},{"$f":"IF(ISERROR(VLOOKUP(C483,'Capacidad Financiera'!$B$12:$X$62720,2,0)),\"\",VLOOKUP(C483,'Capacidad Financiera'!$B$12:$X$3580,2,0))","v":"CONCRETOS Y ASFALTOS S.A."},{"$f":"IF(ISERROR(VLOOKUP(C483,'Capacidad Financiera'!$B$12:$X$62720,3,0)),\"\",VLOOKUP(C483,'Capacidad Financiera'!$B$12:$X$62720,3,0))","v":1},144879667609.60001,{"$f":"IF(OR(D483=\"\",E483=\"\",F483=\"\"),\"\",IF(C483<>\"\",IF(ISERROR(VLOOKUP($A$10,POA!$A$2:$D$25,2,0)),\"\",VLOOKUP($A$10,POA!$A$2:$D$25,2,0)),\"\"))","v":4167150295},{"$f":"IF(OR(D483=\"\",E483=\"\",F483=\"\"),\"\",IF(C483<>\"\",F483/(G483*E483),\"\"))","v":34.767084782959579},{"$f":"IF(OR(D483=\"\",E483=\"\",F483=\"\"),\"\",IF(AND(H483>0,H483<=Experiencia1),Puntajes!$D$4,IF(AND(H483>Experiencia1,H483<=Experiencia2),Puntajes!$D$5,IF(AND(H483>Experiencia2,H483<=Experiencia3),Puntajes!$D$6,IF(H483>Experiencia3,Puntajes!$D$7,0)))))","v":120}]
[null,null,{"$f":"+'Capacidad Financiera'!B487","v":""},{"$f":"IF(ISERROR(VLOOKUP(C484,'Capacidad Financiera'!$B$12:$X$62720,2,0)),\"\",VLOOKUP(C484,'Capacidad Financiera'!$B$12:$X$3580,2,0))","v":0},{"$f":"IF(ISERROR(VLOOKUP(C484,'Capacidad Financiera'!$B$12:$X$62720,3,0)),\"\",VLOOKUP(C484,'Capacidad Financiera'!$B$12:$X$62720,3,0))","v":0},null,{"$f":"IF(OR(D484=\"\",E484=\"\",F484=\"\"),\"\",IF(C484<>\"\",IF(ISERROR(VLOOKUP($A$10,POA!$A$2:$D$25,2,0)),\"\",VLOOKUP($A$10,POA!$A$2:$D$25,2,0)),\"\"))","v":""},{"$f":"IF(OR(D484=\"\",E484=\"\",F484=\"\"),\"\",IF(C484<>\"\",F484/(G484*E484),\"\"))","v":""},{"$f":"IF(OR(D484=\"\",E484=\"\",F484=\"\"),\"\",IF(AND(H484>0,H484<=Experiencia1),Puntajes!$D$4,IF(AND(H484>Experiencia1,H484<=Experiencia2),Puntajes!$D$5,IF(AND(H484>Experiencia2,H484<=Experiencia3),Puntajes!$D$6,IF(H484>Experiencia3,Puntajes!$D$7,0)))))","v":""}]
[null,null,{"$f":"+'Capacidad Financiera'!B488","v":""},{"$f":"IF(ISERROR(VLOOKUP(C485,'Capacidad Financiera'!$B$12:$X$62720,2,0)),\"\",VLOOKUP(C485,'Capacidad Financiera'!$B$12:$X$3580,2,0))","v":0},{"$f":"IF(ISERROR(VLOOKUP(C485,'Capacidad Financiera'!$B$12:$X$62720,3,0)),\"\",VLOOKUP(C485,'Capacidad Financiera'!$B$12:$X$62720,3,0))","v":0},null,{"$f":"IF(OR(D485=\"\",E485=\"\",F485=\"\"),\"\",IF(C485<>\"\",IF(ISERROR(VLOOKUP($A$10,POA!$A$2:$D$25,2,0)),\"\",VLOOKUP($A$10,POA!$A$2:$D$25,2,0)),\"\"))","v":""},"",{"$f":"IF(OR(D485=\"\",E485=\"\",F485=\"\"),\"\",IF(AND(H485>0,H485<=Experiencia1),Puntajes!$D$4,IF(AND(H485>Experiencia1,H485<=Experiencia2),Puntajes!$D$5,IF(AND(H485>Experiencia2,H485<=Experiencia3),Puntajes!$D$6,IF(H485>Experiencia3,Puntajes!$D$7,0)))))","v":""}]
[null,null,{"$f":"+'Capacidad Financiera'!B489","v":""},{"$f":"IF(ISERROR(VLOOKUP(C486,'Capacidad Financiera'!$B$12:$X$62720,2,0)),\"\",VLOOKUP(C486,'Capacidad Financiera'!$B$12:$X$3580,2,0))","v":0},{"$f":"IF(ISERROR(VLOOKUP(C486,'Capacidad Financiera'!$B$12:$X$62720,3,0)),\"\",VLOOKUP(C486,'Capacidad Financiera'!$B$12:$X$62720,3,0))","v":0},null,{"$f":"IF(OR(D486=\"\",E486=\"\",F486=\"\"),\"\",IF(C486<>\"\",IF(ISERROR(VLOOKUP($A$10,POA!$A$2:$D$25,2,0)),\"\",VLOOKUP($A$10,POA!$A$2:$D$25,2,0)),\"\"))","v":""},"",{"$f":"IF(OR(D486=\"\",E486=\"\",F486=\"\"),\"\",IF(AND(H486>0,H486<=Experiencia1),Puntajes!$D$4,IF(AND(H486>Experiencia1,H486<=Experiencia2),Puntajes!$D$5,IF(AND(H486>Experiencia2,H486<=Experiencia3),Puntajes!$D$6,IF(H486>Experiencia3,Puntajes!$D$7,0)))))","v":""}]
[null,null,{"$f":"+'Capacidad Financiera'!B490","v":""},{"$f":"IF(ISERROR(VLOOKUP(C487,'Capacidad Financiera'!$B$12:$X$62720,2,0)),\"\",VLOOKUP(C487,'Capacidad Financiera'!$B$12:$X$3580,2,0))","v":0},{"$f":"IF(ISERROR(VLOOKUP(C487,'Capacidad Financiera'!$B$12:$X$62720,3,0)),\"\",VLOOKUP(C487,'Capacidad Financiera'!$B$12:$X$62720,3,0))","v":0},null,{"$f":"IF(OR(D487=\"\",E487=\"\",F487=\"\"),\"\",IF(C487<>\"\",IF(ISERROR(VLOOKUP($A$10,POA!$A$2:$D$25,2,0)),\"\",VLOOKUP($A$10,POA!$A$2:$D$25,2,0)),\"\"))","v":""},"",{"$f":"IF(OR(D487=\"\",E487=\"\",F487=\"\"),\"\",IF(AND(H487>0,H487<=Experiencia1),Puntajes!$D$4,IF(AND(H487>Experiencia1,H487<=Experiencia2),Puntajes!$D$5,IF(AND(H487>Experiencia2,H487<=Experiencia3),Puntajes!$D$6,IF(H487>Experiencia3,Puntajes!$D$7,0)))))","v":""}]
[null,null,{"$f":"+'Capacidad Financiera'!B491","v":""},{"$f":"IF(ISERROR(VLOOKUP(C488,'Capacidad Financiera'!$B$12:$X$62720,2,0)),\"\",VLOOKUP(C488,'Capacidad Financiera'!$B$12:$X$3580,2,0))","v":0},{"$f":"IF(ISERROR(VLOOKUP(C488,'Capacidad Financiera'!$B$12:$X$62720,3,0)),\"\",VLOOKUP(C488,'Capacidad Financiera'!$B$12:$X$62720,3,0))","v":0},null,{"$f":"IF(OR(D488=\"\",E488=\"\",F488=\"\"),\"\",IF(C488<>\"\",IF(ISERROR(VLOOKUP($A$10,POA!$A$2:$D$25,2,0)),\"\",VLOOKUP($A$10,POA!$A$2:$D$25,2,0)),\"\"))","v":""},"",{"$f":"IF(OR(D488=\"\",E488=\"\",F488=\"\"),\"\",IF(AND(H488>0,H488<=Experiencia1),Puntajes!$D$4,IF(AND(H488>Experiencia1,H488<=Experiencia2),Puntajes!$D$5,IF(AND(H488>Experiencia2,H488<=Experiencia3),Puntajes!$D$6,IF(H488>Experiencia3,Puntajes!$D$7,0)))))","v":""}]
[null,null,{"$f":"+'Capacidad Financiera'!B492","v":""},{"$f":"IF(ISERROR(VLOOKUP(C489,'Capacidad Financiera'!$B$12:$X$62720,2,0)),\"\",VLOOKUP(C489,'Capacidad Financiera'!$B$12:$X$3580,2,0))","v":0},{"$f":"IF(ISERROR(VLOOKUP(C489,'Capacidad Financiera'!$B$12:$X$62720,3,0)),\"\",VLOOKUP(C489,'Capacidad Financiera'!$B$12:$X$62720,3,0))","v":0},null,{"$f":"IF(OR(D489=\"\",E489=\"\",F489=\"\"),\"\",IF(C489<>\"\",IF(ISERROR(VLOOKUP($A$10,POA!$A$2:$D$25,2,0)),\"\",VLOOKUP($A$10,POA!$A$2:$D$25,2,0)),\"\"))","v":""},"",{"$f":"IF(OR(D489=\"\",E489=\"\",F489=\"\"),\"\",IF(AND(H489>0,H489<=Experiencia1),Puntajes!$D$4,IF(AND(H489>Experiencia1,H489<=Experiencia2),Puntajes!$D$5,IF(AND(H489>Experiencia2,H489<=Experiencia3),Puntajes!$D$6,IF(H489>Experiencia3,Puntajes!$D$7,0)))))","v":""}]
[null,null,{"$f":"+'Capacidad Financiera'!B493","v":""},{"$f":"IF(ISERROR(VLOOKUP(C490,'Capacidad Financiera'!$B$12:$X$62720,2,0)),\"\",VLOOKUP(C490,'Capacidad Financiera'!$B$12:$X$3580,2,0))","v":0},{"$f":"IF(ISERROR(VLOOKUP(C490,'Capacidad Financiera'!$B$12:$X$62720,3,0)),\"\",VLOOKUP(C490,'Capacidad Financiera'!$B$12:$X$62720,3,0))","v":0},null,{"$f":"IF(OR(D490=\"\",E490=\"\",F490=\"\"),\"\",IF(C490<>\"\",IF(ISERROR(VLOOKUP($A$10,POA!$A$2:$D$25,2,0)),\"\",VLOOKUP($A$10,POA!$A$2:$D$25,2,0)),\"\"))","v":""},"",{"$f":"IF(OR(D490=\"\",E490=\"\",F490=\"\"),\"\",IF(AND(H490>0,H490<=Experiencia1),Puntajes!$D$4,IF(AND(H490>Experiencia1,H490<=Experiencia2),Puntajes!$D$5,IF(AND(H490>Experiencia2,H490<=Experiencia3),Puntajes!$D$6,IF(H490>Experiencia3,Puntajes!$D$7,0)))))","v":""}]
[null,null,{"$f":"+'Capacidad Financiera'!B494","v":""},{"$f":"IF(ISERROR(VLOOKUP(C491,'Capacidad Financiera'!$B$12:$X$62720,2,0)),\"\",VLOOKUP(C491,'Capacidad Financiera'!$B$12:$X$3580,2,0))","v":0},{"$f":"IF(ISERROR(VLOOKUP(C491,'Capacidad Financiera'!$B$12:$X$62720,3,0)),\"\",VLOOKUP(C491,'Capacidad Financiera'!$B$12:$X$62720,3,0))","v":0},null,{"$f":"IF(OR(D491=\"\",E491=\"\",F491=\"\"),\"\",IF(C491<>\"\",IF(ISERROR(VLOOKUP($A$10,POA!$A$2:$D$25,2,0)),\"\",VLOOKUP($A$10,POA!$A$2:$D$25,2,0)),\"\"))","v":""},"",{"$f":"IF(OR(D491=\"\",E491=\"\",F491=\"\"),\"\",IF(AND(H491>0,H491<=Experiencia1),Puntajes!$D$4,IF(AND(H491>Experiencia1,H491<=Experiencia2),Puntajes!$D$5,IF(AND(H491>Experiencia2,H491<=Experiencia3),Puntajes!$D$6,IF(H491>Experiencia3,Puntajes!$D$7,0)))))","v":""}]
[null,null,{"$f":"+'Capacidad Financiera'!B495","v":""},{"$f":"IF(ISERROR(VLOOKUP(C492,'Capacidad Financiera'!$B$12:$X$62720,2,0)),\"\",VLOOKUP(C492,'Capacidad Financiera'!$B$12:$X$3580,2,0))","v":0},{"$f":"IF(ISERROR(VLOOKUP(C492,'Capacidad Financiera'!$B$12:$X$62720,3,0)),\"\",VLOOKUP(C492,'Capacidad Financiera'!$B$12:$X$62720,3,0))","v":0},null,{"$f":"IF(OR(D492=\"\",E492=\"\",F492=\"\"),\"\",IF(C492<>\"\",IF(ISERROR(VLOOKUP($A$10,POA!$A$2:$D$25,2,0)),\"\",VLOOKUP($A$10,POA!$A$2:$D$25,2,0)),\"\"))","v":""},"",{"$f":"IF(OR(D492=\"\",E492=\"\",F492=\"\"),\"\",IF(AND(H492>0,H492<=Experiencia1),Puntajes!$D$4,IF(AND(H492>Experiencia1,H492<=Experiencia2),Puntajes!$D$5,IF(AND(H492>Experiencia2,H492<=Experiencia3),Puntajes!$D$6,IF(H492>Experiencia3,Puntajes!$D$7,0)))))","v":""}]
[null,null,45,{"$f":"IF(ISERROR(VLOOKUP(C493,'Capacidad Financiera'!$B$12:$X$62720,2,0)),\"\",VLOOKUP(C493,'Capacidad Financiera'!$B$12:$X$3580,2,0))","v":"CONSORCIO INFRAESTRUCTURA GUASCA"},{"$f":"IF(ISERROR(VLOOKUP(C493,'Capacidad Financiera'!$B$12:$X$62720,3,0)),\"\",VLOOKUP(C493,'Capacidad Financiera'!$B$12:$X$62720,3,0))","v":1},null,{"$f":"IF(OR(D493=\"\",E493=\"\",F493=\"\"),\"\",IF(C494=\"\",IF(C493<>\"\",IF(ISERROR(VLOOKUP($A$10,POA!$A$2:$D$25,2,0)),\"\",VLOOKUP($A$10,POA!$A$2:$D$25,2,0)),\"\"),\"\"))","v":""},{"$f":"IF(OR(D493=\"\",E493=\"\",F493=\"\"),\"\",IF(C494=\"\",IF(C493<>\"\",F493/G493,\"\"),\"\"))","v":""},{"$f":"IF(C494=\"\",IF(F493=\"\",\"\",IF(AND(H493>0,H493<=Experiencia1),Puntajes!$D$4,IF(AND(H493>Experiencia1,H493<=Experiencia2),Puntajes!$D$5,IF(AND(H493>Experiencia2,H493<=Experiencia3),Puntajes!$D$6,IF(H493>Experiencia3,Puntajes!$D$7,0))))),\"\")","v":""}]
[null,null,{"$f":"+'Capacidad Financiera'!B497","v":45.1},{"$f":"IF(ISERROR(VLOOKUP(C494,'Capacidad Financiera'!$B$12:$X$62720,2,0)),\"\",VLOOKUP(C494,'Capacidad Financiera'!$B$12:$X$3580,2,0))","v":"INFRAESTRUCTURA NACIONAL LTDA."},{"$f":"IF(ISERROR(VLOOKUP(C494,'Capacidad Financiera'!$B$12:$X$62720,3,0)),\"\",VLOOKUP(C494,'Capacidad Financiera'!$B$12:$X$62720,3,0))","v":0.3},14537601663.200001,{"$f":"IF(OR(D494=\"\",E494=\"\",F494=\"\"),\"\",IF(C494<>\"\",IF(ISERROR(VLOOKUP($A$10,POA!$A$2:$D$25,2,0)),\"\",VLOOKUP($A$10,POA!$A$2:$D$25,2,0)),\"\"))","v":4167150295},{"$f":"IF(OR(D494=\"\",E494=\"\",F494=\"\"),\"\",IF(C494<>\"\",F494/(G494*E494),\"\"))","v":11.628731574383176},{"$f":"IF(OR(D494=\"\",E494=\"\",F494=\"\"),\"\",IF(AND(H494>0,H494<=Experiencia1),Puntajes!$D$4,IF(AND(H494>Experiencia1,H494<=Experiencia2),Puntajes!$D$5,IF(AND(H494>Experiencia2,H494<=Experiencia3),Puntajes!$D$6,IF(H494>Experiencia3,Puntajes!$D$7,0)))))","v":120}]
[null,null,{"$f":"+'Capacidad Financiera'!B498","v":45.2},{"$f":"IF(ISERROR(VLOOKUP(C495,'Capacidad Financiera'!$B$12:$X$62720,2,0)),\"\",VLOOKUP(C495,'Capacidad Financiera'!$B$12:$X$3580,2,0))","v":"RB DE COLOMBIA S.A."},{"$f":"IF(ISERROR(VLOOKUP(C495,'Capacidad Financiera'!$B$12:$X$62720,3,0)),\"\",VLOOKUP(C495,'Capacidad Financiera'!$B$12:$X$62720,3,0))","v":0.3},42357885724,{"$f":"IF(OR(D495=\"\",E495=\"\",F495=\"\"),\"\",IF(C495<>\"\",IF(ISERROR(VLOOKUP($A$10,POA!$A$2:$D$25,2,0)),\"\",VLOOKUP($A$10,POA!$A$2:$D$25,2,0)),\"\"))","v":4167150295},{"$f":"IF(OR(D495=\"\",E495=\"\",F495=\"\"),\"\",IF(C495<>\"\",F495/(G495*E495),\"\"))","v":33.882375824732122},{"$f":"IF(OR(D495=\"\",E495=\"\",F495=\"\"),\"\",IF(AND(H495>0,H495<=Experiencia1),Puntajes!$D$4,IF(AND(H495>Experiencia1,H495<=Experiencia2),Puntajes!$D$5,IF(AND(H495>Experiencia2,H495<=Experiencia3),Puntajes!$D$6,IF(H495>Experiencia3,Puntajes!$D$7,0)))))","v":120}]
[null,null,{"$f":"+'Capacidad Financiera'!B499","v":45.300000000000004},{"$f":"IF(ISERROR(VLOOKUP(C496,'Capacidad Financiera'!$B$12:$X$62720,2,0)),\"\",VLOOKUP(C496,'Capacidad Financiera'!$B$12:$X$3580,2,0))","v":"YAMIL MONTENEGRO CALDERON"},{"$f":"IF(ISERROR(VLOOKUP(C496,'Capacidad Financiera'!$B$12:$X$62720,3,0)),\"\",VLOOKUP(C496,'Capacidad Financiera'!$B$12:$X$62720,3,0))","v":0.4},62793312982.400002,{"$f":"IF(OR(D496=\"\",E496=\"\",F496=\"\"),\"\",IF(C496<>\"\",IF(ISERROR(VLOOKUP($A$10,POA!$A$2:$D$25,2,0)),\"\",VLOOKUP($A$10,POA!$A$2:$D$25,2,0)),\"\"))","v":4167150295},37.671615214924714,{"$f":"IF(OR(D496=\"\",E496=\"\",F496=\"\"),\"\",IF(AND(H496>0,H496<=Experiencia1),Puntajes!$D$4,IF(AND(H496>Experiencia1,H496<=Experiencia2),Puntajes!$D$5,IF(AND(H496>Experiencia2,H496<=Experiencia3),Puntajes!$D$6,IF(H496>Experiencia3,Puntajes!$D$7,0)))))","v":120}]
[null,null,{"$f":"+'Capacidad Financiera'!B500","v":""},{"$f":"IF(ISERROR(VLOOKUP(C497,'Capacidad Financiera'!$B$12:$X$62720,2,0)),\"\",VLOOKUP(C497,'Capacidad Financiera'!$B$12:$X$3580,2,0))","v":0},{"$f":"IF(ISERROR(VLOOKUP(C497,'Capacidad Financiera'!$B$12:$X$62720,3,0)),\"\",VLOOKUP(C497,'Capacidad Financiera'!$B$12:$X$62720,3,0))","v":0},null,{"$f":"IF(OR(D497=\"\",E497=\"\",F497=\"\"),\"\",IF(C497<>\"\",IF(ISERROR(VLOOKUP($A$10,POA!$A$2:$D$25,2,0)),\"\",VLOOKUP($A$10,POA!$A$2:$D$25,2,0)),\"\"))","v":""},"",{"$f":"IF(OR(D497=\"\",E497=\"\",F497=\"\"),\"\",IF(AND(H497>0,H497<=Experiencia1),Puntajes!$D$4,IF(AND(H497>Experiencia1,H497<=Experiencia2),Puntajes!$D$5,IF(AND(H497>Experiencia2,H497<=Experiencia3),Puntajes!$D$6,IF(H497>Experiencia3,Puntajes!$D$7,0)))))","v":""}]
[null,null,{"$f":"+'Capacidad Financiera'!B501","v":""},{"$f":"IF(ISERROR(VLOOKUP(C498,'Capacidad Financiera'!$B$12:$X$62720,2,0)),\"\",VLOOKUP(C498,'Capacidad Financiera'!$B$12:$X$3580,2,0))","v":0},{"$f":"IF(ISERROR(VLOOKUP(C498,'Capacidad Financiera'!$B$12:$X$62720,3,0)),\"\",VLOOKUP(C498,'Capacidad Financiera'!$B$12:$X$62720,3,0))","v":0},null,{"$f":"IF(OR(D498=\"\",E498=\"\",F498=\"\"),\"\",IF(C498<>\"\",IF(ISERROR(VLOOKUP($A$10,POA!$A$2:$D$25,2,0)),\"\",VLOOKUP($A$10,POA!$A$2:$D$25,2,0)),\"\"))","v":""},"",{"$f":"IF(OR(D498=\"\",E498=\"\",F498=\"\"),\"\",IF(AND(H498>0,H498<=Experiencia1),Puntajes!$D$4,IF(AND(H498>Experiencia1,H498<=Experiencia2),Puntajes!$D$5,IF(AND(H498>Experiencia2,H498<=Experiencia3),Puntajes!$D$6,IF(H498>Experiencia3,Puntajes!$D$7,0)))))","v":""}]
[null,null,{"$f":"+'Capacidad Financiera'!B502","v":""},{"$f":"IF(ISERROR(VLOOKUP(C499,'Capacidad Financiera'!$B$12:$X$62720,2,0)),\"\",VLOOKUP(C499,'Capacidad Financiera'!$B$12:$X$3580,2,0))","v":0},{"$f":"IF(ISERROR(VLOOKUP(C499,'Capacidad Financiera'!$B$12:$X$62720,3,0)),\"\",VLOOKUP(C499,'Capacidad Financiera'!$B$12:$X$62720,3,0))","v":0},null,{"$f":"IF(OR(D499=\"\",E499=\"\",F499=\"\"),\"\",IF(C499<>\"\",IF(ISERROR(VLOOKUP($A$10,POA!$A$2:$D$25,2,0)),\"\",VLOOKUP($A$10,POA!$A$2:$D$25,2,0)),\"\"))","v":""},"",{"$f":"IF(OR(D499=\"\",E499=\"\",F499=\"\"),\"\",IF(AND(H499>0,H499<=Experiencia1),Puntajes!$D$4,IF(AND(H499>Experiencia1,H499<=Experiencia2),Puntajes!$D$5,IF(AND(H499>Experiencia2,H499<=Experiencia3),Puntajes!$D$6,IF(H499>Experiencia3,Puntajes!$D$7,0)))))","v":""}]
[null,null,{"$f":"+'Capacidad Financiera'!B503","v":""},{"$f":"IF(ISERROR(VLOOKUP(C500,'Capacidad Financiera'!$B$12:$X$62720,2,0)),\"\",VLOOKUP(C500,'Capacidad Financiera'!$B$12:$X$3580,2,0))","v":0},{"$f":"IF(ISERROR(VLOOKUP(C500,'Capacidad Financiera'!$B$12:$X$62720,3,0)),\"\",VLOOKUP(C500,'Capacidad Financiera'!$B$12:$X$62720,3,0))","v":0},null,{"$f":"IF(OR(D500=\"\",E500=\"\",F500=\"\"),\"\",IF(C500<>\"\",IF(ISERROR(VLOOKUP($A$10,POA!$A$2:$D$25,2,0)),\"\",VLOOKUP($A$10,POA!$A$2:$D$25,2,0)),\"\"))","v":""},"",{"$f":"IF(OR(D500=\"\",E500=\"\",F500=\"\"),\"\",IF(AND(H500>0,H500<=Experiencia1),Puntajes!$D$4,IF(AND(H500>Experiencia1,H500<=Experiencia2),Puntajes!$D$5,IF(AND(H500>Experiencia2,H500<=Experiencia3),Puntajes!$D$6,IF(H500>Experiencia3,Puntajes!$D$7,0)))))","v":""}]
[null,null,{"$f":"+'Capacidad Financiera'!B504","v":""},{"$f":"IF(ISERROR(VLOOKUP(C501,'Capacidad Financiera'!$B$12:$X$62720,2,0)),\"\",VLOOKUP(C501,'Capacidad Financiera'!$B$12:$X$3580,2,0))","v":0},{"$f":"IF(ISERROR(VLOOKUP(C501,'Capacidad Financiera'!$B$12:$X$62720,3,0)),\"\",VLOOKUP(C501,'Capacidad Financiera'!$B$12:$X$62720,3,0))","v":0},null,{"$f":"IF(OR(D501=\"\",E501=\"\",F501=\"\"),\"\",IF(C501<>\"\",IF(ISERROR(VLOOKUP($A$10,POA!$A$2:$D$25,2,0)),\"\",VLOOKUP($A$10,POA!$A$2:$D$25,2,0)),\"\"))","v":""},"",{"$f":"IF(OR(D501=\"\",E501=\"\",F501=\"\"),\"\",IF(AND(H501>0,H501<=Experiencia1),Puntajes!$D$4,IF(AND(H501>Experiencia1,H501<=Experiencia2),Puntajes!$D$5,IF(AND(H501>Experiencia2,H501<=Experiencia3),Puntajes!$D$6,IF(H501>Experiencia3,Puntajes!$D$7,0)))))","v":""}]
[null,null,{"$f":"+'Capacidad Financiera'!B505","v":""},{"$f":"IF(ISERROR(VLOOKUP(C502,'Capacidad Financiera'!$B$12:$X$62720,2,0)),\"\",VLOOKUP(C502,'Capacidad Financiera'!$B$12:$X$3580,2,0))","v":0},{"$f":"IF(ISERROR(VLOOKUP(C502,'Capacidad Financiera'!$B$12:$X$62720,3,0)),\"\",VLOOKUP(C502,'Capacidad Financiera'!$B$12:$X$62720,3,0))","v":0},null,{"$f":"IF(OR(D502=\"\",E502=\"\",F502=\"\"),\"\",IF(C502<>\"\",IF(ISERROR(VLOOKUP($A$10,POA!$A$2:$D$25,2,0)),\"\",VLOOKUP($A$10,POA!$A$2:$D$25,2,0)),\"\"))","v":""},"",{"$f":"IF(OR(D502=\"\",E502=\"\",F502=\"\"),\"\",IF(AND(H502>0,H502<=Experiencia1),Puntajes!$D$4,IF(AND(H502>Experiencia1,H502<=Experiencia2),Puntajes!$D$5,IF(AND(H502>Experiencia2,H502<=Experiencia3),Puntajes!$D$6,IF(H502>Experiencia3,Puntajes!$D$7,0)))))","v":""}]
[null,null,{"$f":"+'Capacidad Financiera'!B506","v":""},{"$f":"IF(ISERROR(VLOOKUP(C503,'Capacidad Financiera'!$B$12:$X$62720,2,0)),\"\",VLOOKUP(C503,'Capacidad Financiera'!$B$12:$X$3580,2,0))","v":0},{"$f":"IF(ISERROR(VLOOKUP(C503,'Capacidad Financiera'!$B$12:$X$62720,3,0)),\"\",VLOOKUP(C503,'Capacidad Financiera'!$B$12:$X$62720,3,0))","v":0},null,{"$f":"IF(OR(D503=\"\",E503=\"\",F503=\"\"),\"\",IF(C503<>\"\",IF(ISERROR(VLOOKUP($A$10,POA!$A$2:$D$25,2,0)),\"\",VLOOKUP($A$10,POA!$A$2:$D$25,2,0)),\"\"))","v":""},"",{"$f":"IF(OR(D503=\"\",E503=\"\",F503=\"\"),\"\",IF(AND(H503>0,H503<=Experiencia1),Puntajes!$D$4,IF(AND(H503>Experiencia1,H503<=Experiencia2),Puntajes!$D$5,IF(AND(H503>Experiencia2,H503<=Experiencia3),Puntajes!$D$6,IF(H503>Experiencia3,Puntajes!$D$7,0)))))","v":""}]
[null,null,46,{"$f":"IF(ISERROR(VLOOKUP(C504,'Capacidad Financiera'!$B$12:$X$62720,2,0)),\"\",VLOOKUP(C504,'Capacidad Financiera'!$B$12:$X$3580,2,0))","v":"RG INGENIERIA LTDA."},{"$f":"IF(ISERROR(VLOOKUP(C504,'Capacidad Financiera'!$B$12:$X$62720,3,0)),\"\",VLOOKUP(C504,'Capacidad Financiera'!$B$12:$X$62720,3,0))","v":1},null,{"$f":"IF(OR(D504=\"\",E504=\"\",F504=\"\"),\"\",IF(C505=\"\",IF(C504<>\"\",IF(ISERROR(VLOOKUP($A$10,POA!$A$2:$D$25,2,0)),\"\",VLOOKUP($A$10,POA!$A$2:$D$25,2,0)),\"\"),\"\"))","v":""},{"$f":"IF(OR(D504=\"\",E504=\"\",F504=\"\"),\"\",IF(C505=\"\",IF(C504<>\"\",F504/G504,\"\"),\"\"))","v":""},{"$f":"IF(C505=\"\",IF(F504=\"\",\"\",IF(AND(H504>0,H504<=Experiencia1),Puntajes!$D$4,IF(AND(H504>Experiencia1,H504<=Experiencia2),Puntajes!$D$5,IF(AND(H504>Experiencia2,H504<=Experiencia3),Puntajes!$D$6,IF(H504>Experiencia3,Puntajes!$D$7,0))))),\"\")","v":""}]
[null,null,{"$f":"+'Capacidad Financiera'!B508","v":46.1},{"$f":"IF(ISERROR(VLOOKUP(C505,'Capacidad Financiera'!$B$12:$X$62720,2,0)),\"\",VLOOKUP(C505,'Capacidad Financiera'!$B$12:$X$3580,2,0))","v":"RG INGENIERIA LTDA."},{"$f":"IF(ISERROR(VLOOKUP(C505,'Capacidad Financiera'!$B$12:$X$62720,3,0)),\"\",VLOOKUP(C505,'Capacidad Financiera'!$B$12:$X$62720,3,0))","v":1},116153437831.2,{"$f":"IF(OR(D505=\"\",E505=\"\",F505=\"\"),\"\",IF(C505<>\"\",IF(ISERROR(VLOOKUP($A$10,POA!$A$2:$D$25,2,0)),\"\",VLOOKUP($A$10,POA!$A$2:$D$25,2,0)),\"\"))","v":4167150295},{"$f":"IF(OR(D505=\"\",E505=\"\",F505=\"\"),\"\",IF(C505<>\"\",F505/(G505*E505),\"\"))","v":27.873589769624566},{"$f":"IF(OR(D505=\"\",E505=\"\",F505=\"\"),\"\",IF(AND(H505>0,H505<=Experiencia1),Puntajes!$D$4,IF(AND(H505>Experiencia1,H505<=Experiencia2),Puntajes!$D$5,IF(AND(H505>Experiencia2,H505<=Experiencia3),Puntajes!$D$6,IF(H505>Experiencia3,Puntajes!$D$7,0)))))","v":120}]
[null,null,{"$f":"+'Capacidad Financiera'!B509","v":""},{"$f":"IF(ISERROR(VLOOKUP(C506,'Capacidad Financiera'!$B$12:$X$62720,2,0)),\"\",VLOOKUP(C506,'Capacidad Financiera'!$B$12:$X$3580,2,0))","v":0},{"$f":"IF(ISERROR(VLOOKUP(C506,'Capacidad Financiera'!$B$12:$X$62720,3,0)),\"\",VLOOKUP(C506,'Capacidad Financiera'!$B$12:$X$62720,3,0))","v":0},null,{"$f":"IF(OR(D506=\"\",E506=\"\",F506=\"\"),\"\",IF(C506<>\"\",IF(ISERROR(VLOOKUP($A$10,POA!$A$2:$D$25,2,0)),\"\",VLOOKUP($A$10,POA!$A$2:$D$25,2,0)),\"\"))","v":""},{"$f":"IF(OR(D506=\"\",E506=\"\",F506=\"\"),\"\",IF(C506<>\"\",F506/(G506*E506),\"\"))","v":""},{"$f":"IF(OR(D506=\"\",E506=\"\",F506=\"\"),\"\",IF(AND(H506>0,H506<=Experiencia1),Puntajes!$D$4,IF(AND(H506>Experiencia1,H506<=Experiencia2),Puntajes!$D$5,IF(AND(H506>Experiencia2,H506<=Experiencia3),Puntajes!$D$6,IF(H506>Experiencia3,Puntajes!$D$7,0)))))","v":""}]
[null,null,{"$f":"+'Capacidad Financiera'!B510","v":""},{"$f":"IF(ISERROR(VLOOKUP(C507,'Capacidad Financiera'!$B$12:$X$62720,2,0)),\"\",VLOOKUP(C507,'Capacidad Financiera'!$B$12:$X$3580,2,0))","v":0},{"$f":"IF(ISERROR(VLOOKUP(C507,'Capacidad Financiera'!$B$12:$X$62720,3,0)),\"\",VLOOKUP(C507,'Capacidad Financiera'!$B$12:$X$62720,3,0))","v":0},null,{"$f":"IF(OR(D507=\"\",E507=\"\",F507=\"\"),\"\",IF(C507<>\"\",IF(ISERROR(VLOOKUP($A$10,POA!$A$2:$D$25,2,0)),\"\",VLOOKUP($A$10,POA!$A$2:$D$25,2,0)),\"\"))","v":""},"",{"$f":"IF(OR(D507=\"\",E507=\"\",F507=\"\"),\"\",IF(AND(H507>0,H507<=Experiencia1),Puntajes!$D$4,IF(AND(H507>Experiencia1,H507<=Experiencia2),Puntajes!$D$5,IF(AND(H507>Experiencia2,H507<=Experiencia3),Puntajes!$D$6,IF(H507>Experiencia3,Puntajes!$D$7,0)))))","v":""}]
[null,null,{"$f":"+'Capacidad Financiera'!B511","v":""},{"$f":"IF(ISERROR(VLOOKUP(C508,'Capacidad Financiera'!$B$12:$X$62720,2,0)),\"\",VLOOKUP(C508,'Capacidad Financiera'!$B$12:$X$3580,2,0))","v":0},{"$f":"IF(ISERROR(VLOOKUP(C508,'Capacidad Financiera'!$B$12:$X$62720,3,0)),\"\",VLOOKUP(C508,'Capacidad Financiera'!$B$12:$X$62720,3,0))","v":0},null,{"$f":"IF(OR(D508=\"\",E508=\"\",F508=\"\"),\"\",IF(C508<>\"\",IF(ISERROR(VLOOKUP($A$10,POA!$A$2:$D$25,2,0)),\"\",VLOOKUP($A$10,POA!$A$2:$D$25,2,0)),\"\"))","v":""},"",{"$f":"IF(OR(D508=\"\",E508=\"\",F508=\"\"),\"\",IF(AND(H508>0,H508<=Experiencia1),Puntajes!$D$4,IF(AND(H508>Experiencia1,H508<=Experiencia2),Puntajes!$D$5,IF(AND(H508>Experiencia2,H508<=Experiencia3),Puntajes!$D$6,IF(H508>Experiencia3,Puntajes!$D$7,0)))))","v":""}]
[null,null,{"$f":"+'Capacidad Financiera'!B512","v":""},{"$f":"IF(ISERROR(VLOOKUP(C509,'Capacidad Financiera'!$B$12:$X$62720,2,0)),\"\",VLOOKUP(C509,'Capacidad Financiera'!$B$12:$X$3580,2,0))","v":0},{"$f":"IF(ISERROR(VLOOKUP(C509,'Capacidad Financiera'!$B$12:$X$62720,3,0)),\"\",VLOOKUP(C509,'Capacidad Financiera'!$B$12:$X$62720,3,0))","v":0},null,{"$f":"IF(OR(D509=\"\",E509=\"\",F509=\"\"),\"\",IF(C509<>\"\",IF(ISERROR(VLOOKUP($A$10,POA!$A$2:$D$25,2,0)),\"\",VLOOKUP($A$10,POA!$A$2:$D$25,2,0)),\"\"))","v":""},"",{"$f":"IF(OR(D509=\"\",E509=\"\",F509=\"\"),\"\",IF(AND(H509>0,H509<=Experiencia1),Puntajes!$D$4,IF(AND(H509>Experiencia1,H509<=Experiencia2),Puntajes!$D$5,IF(AND(H509>Experiencia2,H509<=Experiencia3),Puntajes!$D$6,IF(H509>Experiencia3,Puntajes!$D$7,0)))))","v":""}]
[null,null,{"$f":"+'Capacidad Financiera'!B513","v":""},{"$f":"IF(ISERROR(VLOOKUP(C510,'Capacidad Financiera'!$B$12:$X$62720,2,0)),\"\",VLOOKUP(C510,'Capacidad Financiera'!$B$12:$X$3580,2,0))","v":0},{"$f":"IF(ISERROR(VLOOKUP(C510,'Capacidad Financiera'!$B$12:$X$62720,3,0)),\"\",VLOOKUP(C510,'Capacidad Financiera'!$B$12:$X$62720,3,0))","v":0},null,{"$f":"IF(OR(D510=\"\",E510=\"\",F510=\"\"),\"\",IF(C510<>\"\",IF(ISERROR(VLOOKUP($A$10,POA!$A$2:$D$25,2,0)),\"\",VLOOKUP($A$10,POA!$A$2:$D$25,2,0)),\"\"))","v":""},"",{"$f":"IF(OR(D510=\"\",E510=\"\",F510=\"\"),\"\",IF(AND(H510>0,H510<=Experiencia1),Puntajes!$D$4,IF(AND(H510>Experiencia1,H510<=Experiencia2),Puntajes!$D$5,IF(AND(H510>Experiencia2,H510<=Experiencia3),Puntajes!$D$6,IF(H510>Experiencia3,Puntajes!$D$7,0)))))","v":""}]
[null,null,{"$f":"+'Capacidad Financiera'!B514","v":""},{"$f":"IF(ISERROR(VLOOKUP(C511,'Capacidad Financiera'!$B$12:$X$62720,2,0)),\"\",VLOOKUP(C511,'Capacidad Financiera'!$B$12:$X$3580,2,0))","v":0},{"$f":"IF(ISERROR(VLOOKUP(C511,'Capacidad Financiera'!$B$12:$X$62720,3,0)),\"\",VLOOKUP(C511,'Capacidad Financiera'!$B$12:$X$62720,3,0))","v":0},null,{"$f":"IF(OR(D511=\"\",E511=\"\",F511=\"\"),\"\",IF(C511<>\"\",IF(ISERROR(VLOOKUP($A$10,POA!$A$2:$D$25,2,0)),\"\",VLOOKUP($A$10,POA!$A$2:$D$25,2,0)),\"\"))","v":""},"",{"$f":"IF(OR(D511=\"\",E511=\"\",F511=\"\"),\"\",IF(AND(H511>0,H511<=Experiencia1),Puntajes!$D$4,IF(AND(H511>Experiencia1,H511<=Experiencia2),Puntajes!$D$5,IF(AND(H511>Experiencia2,H511<=Experiencia3),Puntajes!$D$6,IF(H511>Experiencia3,Puntajes!$D$7,0)))))","v":""}]
[null,null,{"$f":"+'Capacidad Financiera'!B515","v":""},{"$f":"IF(ISERROR(VLOOKUP(C512,'Capacidad Financiera'!$B$12:$X$62720,2,0)),\"\",VLOOKUP(C512,'Capacidad Financiera'!$B$12:$X$3580,2,0))","v":0},{"$f":"IF(ISERROR(VLOOKUP(C512,'Capacidad Financiera'!$B$12:$X$62720,3,0)),\"\",VLOOKUP(C512,'Capacidad Financiera'!$B$12:$X$62720,3,0))","v":0},null,{"$f":"IF(OR(D512=\"\",E512=\"\",F512=\"\"),\"\",IF(C512<>\"\",IF(ISERROR(VLOOKUP($A$10,POA!$A$2:$D$25,2,0)),\"\",VLOOKUP($A$10,POA!$A$2:$D$25,2,0)),\"\"))","v":""},"",{"$f":"IF(OR(D512=\"\",E512=\"\",F512=\"\"),\"\",IF(AND(H512>0,H512<=Experiencia1),Puntajes!$D$4,IF(AND(H512>Experiencia1,H512<=Experiencia2),Puntajes!$D$5,IF(AND(H512>Experiencia2,H512<=Experiencia3),Puntajes!$D$6,IF(H512>Experiencia3,Puntajes!$D$7,0)))))","v":""}]
[null,null,{"$f":"+'Capacidad Financiera'!B516","v":""},{"$f":"IF(ISERROR(VLOOKUP(C513,'Capacidad Financiera'!$B$12:$X$62720,2,0)),\"\",VLOOKUP(C513,'Capacidad Financiera'!$B$12:$X$3580,2,0))","v":0},{"$f":"IF(ISERROR(VLOOKUP(C513,'Capacidad Financiera'!$B$12:$X$62720,3,0)),\"\",VLOOKUP(C513,'Capacidad Financiera'!$B$12:$X$62720,3,0))","v":0},null,{"$f":"IF(OR(D513=\"\",E513=\"\",F513=\"\"),\"\",IF(C513<>\"\",IF(ISERROR(VLOOKUP($A$10,POA!$A$2:$D$25,2,0)),\"\",VLOOKUP($A$10,POA!$A$2:$D$25,2,0)),\"\"))","v":""},"",{"$f":"IF(OR(D513=\"\",E513=\"\",F513=\"\"),\"\",IF(AND(H513>0,H513<=Experiencia1),Puntajes!$D$4,IF(AND(H513>Experiencia1,H513<=Experiencia2),Puntajes!$D$5,IF(AND(H513>Experiencia2,H513<=Experiencia3),Puntajes!$D$6,IF(H513>Experiencia3,Puntajes!$D$7,0)))))","v":""}]
[null,null,{"$f":"+'Capacidad Financiera'!B517","v":""},{"$f":"IF(ISERROR(VLOOKUP(C514,'Capacidad Financiera'!$B$12:$X$62720,2,0)),\"\",VLOOKUP(C514,'Capacidad Financiera'!$B$12:$X$3580,2,0))","v":0},{"$f":"IF(ISERROR(VLOOKUP(C514,'Capacidad Financiera'!$B$12:$X$62720,3,0)),\"\",VLOOKUP(C514,'Capacidad Financiera'!$B$12:$X$62720,3,0))","v":0},null,{"$f":"IF(OR(D514=\"\",E514=\"\",F514=\"\"),\"\",IF(C514<>\"\",IF(ISERROR(VLOOKUP($A$10,POA!$A$2:$D$25,2,0)),\"\",VLOOKUP($A$10,POA!$A$2:$D$25,2,0)),\"\"))","v":""},"",{"$f":"IF(OR(D514=\"\",E514=\"\",F514=\"\"),\"\",IF(AND(H514>0,H514<=Experiencia1),Puntajes!$D$4,IF(AND(H514>Experiencia1,H514<=Experiencia2),Puntajes!$D$5,IF(AND(H514>Experiencia2,H514<=Experiencia3),Puntajes!$D$6,IF(H514>Experiencia3,Puntajes!$D$7,0)))))","v":""}]
[null,null,47,{"$f":"IF(ISERROR(VLOOKUP(C515,'Capacidad Financiera'!$B$12:$X$62720,2,0)),\"\",VLOOKUP(C515,'Capacidad Financiera'!$B$12:$X$3580,2,0))","v":"CONSORCIO GAMA 034"},{"$f":"IF(ISERROR(VLOOKUP(C515,'Capacidad Financiera'!$B$12:$X$62720,3,0)),\"\",VLOOKUP(C515,'Capacidad Financiera'!$B$12:$X$62720,3,0))","v":1},null,{"$f":"IF(OR(D515=\"\",E515=\"\",F515=\"\"),\"\",IF(C516=\"\",IF(C515<>\"\",IF(ISERROR(VLOOKUP($A$10,POA!$A$2:$D$25,2,0)),\"\",VLOOKUP($A$10,POA!$A$2:$D$25,2,0)),\"\"),\"\"))","v":""},{"$f":"IF(OR(D515=\"\",E515=\"\",F515=\"\"),\"\",IF(C516=\"\",IF(C515<>\"\",F515/G515,\"\"),\"\"))","v":""},{"$f":"IF(C516=\"\",IF(F515=\"\",\"\",IF(AND(H515>0,H515<=Experiencia1),Puntajes!$D$4,IF(AND(H515>Experiencia1,H515<=Experiencia2),Puntajes!$D$5,IF(AND(H515>Experiencia2,H515<=Experiencia3),Puntajes!$D$6,IF(H515>Experiencia3,Puntajes!$D$7,0))))),\"\")","v":""}]
[null,null,{"$f":"+'Capacidad Financiera'!B519","v":47.1},{"$f":"IF(ISERROR(VLOOKUP(C516,'Capacidad Financiera'!$B$12:$X$62720,2,0)),\"\",VLOOKUP(C516,'Capacidad Financiera'!$B$12:$X$3580,2,0))","v":"GAMA INGENIEROS ARQUITECTOS S.A.S."},{"$f":"IF(ISERROR(VLOOKUP(C516,'Capacidad Financiera'!$B$12:$X$62720,3,0)),\"\",VLOOKUP(C516,'Capacidad Financiera'!$B$12:$X$62720,3,0))","v":0.8},null,{"$f":"IF(OR(D516=\"\",E516=\"\",F516=\"\"),\"\",IF(C516<>\"\",IF(ISERROR(VLOOKUP($A$10,POA!$A$2:$D$25,2,0)),\"\",VLOOKUP($A$10,POA!$A$2:$D$25,2,0)),\"\"))","v":""},{"$f":"IF(OR(D516=\"\",E516=\"\",F516=\"\"),\"\",IF(C516<>\"\",F516/(G516*E516),\"\"))","v":""},{"$f":"IF(OR(D516=\"\",E516=\"\",F516=\"\"),\"\",IF(AND(H516>0,H516<=Experiencia1),Puntajes!$D$4,IF(AND(H516>Experiencia1,H516<=Experiencia2),Puntajes!$D$5,IF(AND(H516>Experiencia2,H516<=Experiencia3),Puntajes!$D$6,IF(H516>Experiencia3,Puntajes!$D$7,0)))))","v":""}]
[null,null,{"$f":"+'Capacidad Financiera'!B520","v":47.2},{"$f":"IF(ISERROR(VLOOKUP(C517,'Capacidad Financiera'!$B$12:$X$62720,2,0)),\"\",VLOOKUP(C517,'Capacidad Financiera'!$B$12:$X$3580,2,0))","v":"JOSE GALAN GOMEZ"},{"$f":"IF(ISERROR(VLOOKUP(C517,'Capacidad Financiera'!$B$12:$X$62720,3,0)),\"\",VLOOKUP(C517,'Capacidad Financiera'!$B$12:$X$62720,3,0))","v":0.2},null,{"$f":"IF(OR(D517=\"\",E517=\"\",F517=\"\"),\"\",IF(C517<>\"\",IF(ISERROR(VLOOKUP($A$10,POA!$A$2:$D$25,2,0)),\"\",VLOOKUP($A$10,POA!$A$2:$D$25,2,0)),\"\"))","v":""},{"$f":"IF(OR(D517=\"\",E517=\"\",F517=\"\"),\"\",IF(C517<>\"\",F517/(G517*E517),\"\"))","v":""},{"$f":"IF(OR(D517=\"\",E517=\"\",F517=\"\"),\"\",IF(AND(H517>0,H517<=Experiencia1),Puntajes!$D$4,IF(AND(H517>Experiencia1,H517<=Experiencia2),Puntajes!$D$5,IF(AND(H517>Experiencia2,H517<=Experiencia3),Puntajes!$D$6,IF(H517>Experiencia3,Puntajes!$D$7,0)))))","v":""}]
[null,null,{"$f":"+'Capacidad Financiera'!B521","v":""},{"$f":"IF(ISERROR(VLOOKUP(C518,'Capacidad Financiera'!$B$12:$X$62720,2,0)),\"\",VLOOKUP(C518,'Capacidad Financiera'!$B$12:$X$3580,2,0))","v":0},{"$f":"IF(ISERROR(VLOOKUP(C518,'Capacidad Financiera'!$B$12:$X$62720,3,0)),\"\",VLOOKUP(C518,'Capacidad Financiera'!$B$12:$X$62720,3,0))","v":0},null,{"$f":"IF(OR(D518=\"\",E518=\"\",F518=\"\"),\"\",IF(C518<>\"\",IF(ISERROR(VLOOKUP($A$10,POA!$A$2:$D$25,2,0)),\"\",VLOOKUP($A$10,POA!$A$2:$D$25,2,0)),\"\"))","v":""},"",{"$f":"IF(OR(D518=\"\",E518=\"\",F518=\"\"),\"\",IF(AND(H518>0,H518<=Experiencia1),Puntajes!$D$4,IF(AND(H518>Experiencia1,H518<=Experiencia2),Puntajes!$D$5,IF(AND(H518>Experiencia2,H518<=Experiencia3),Puntajes!$D$6,IF(H518>Experiencia3,Puntajes!$D$7,0)))))","v":""}]
[null,null,{"$f":"+'Capacidad Financiera'!B522","v":""},{"$f":"IF(ISERROR(VLOOKUP(C519,'Capacidad Financiera'!$B$12:$X$62720,2,0)),\"\",VLOOKUP(C519,'Capacidad Financiera'!$B$12:$X$3580,2,0))","v":0},{"$f":"IF(ISERROR(VLOOKUP(C519,'Capacidad Financiera'!$B$12:$X$62720,3,0)),\"\",VLOOKUP(C519,'Capacidad Financiera'!$B$12:$X$62720,3,0))","v":0},null,{"$f":"IF(OR(D519=\"\",E519=\"\",F519=\"\"),\"\",IF(C519<>\"\",IF(ISERROR(VLOOKUP($A$10,POA!$A$2:$D$25,2,0)),\"\",VLOOKUP($A$10,POA!$A$2:$D$25,2,0)),\"\"))","v":""},"",{"$f":"IF(OR(D519=\"\",E519=\"\",F519=\"\"),\"\",IF(AND(H519>0,H519<=Experiencia1),Puntajes!$D$4,IF(AND(H519>Experiencia1,H519<=Experiencia2),Puntajes!$D$5,IF(AND(H519>Experiencia2,H519<=Experiencia3),Puntajes!$D$6,IF(H519>Experiencia3,Puntajes!$D$7,0)))))","v":""}]
[null,null,{"$f":"+'Capacidad Financiera'!B523","v":""},{"$f":"IF(ISERROR(VLOOKUP(C520,'Capacidad Financiera'!$B$12:$X$62720,2,0)),\"\",VLOOKUP(C520,'Capacidad Financiera'!$B$12:$X$3580,2,0))","v":0},{"$f":"IF(ISERROR(VLOOKUP(C520,'Capacidad Financiera'!$B$12:$X$62720,3,0)),\"\",VLOOKUP(C520,'Capacidad Financiera'!$B$12:$X$62720,3,0))","v":0},null,{"$f":"IF(OR(D520=\"\",E520=\"\",F520=\"\"),\"\",IF(C520<>\"\",IF(ISERROR(VLOOKUP($A$10,POA!$A$2:$D$25,2,0)),\"\",VLOOKUP($A$10,POA!$A$2:$D$25,2,0)),\"\"))","v":""},"",{"$f":"IF(OR(D520=\"\",E520=\"\",F520=\"\"),\"\",IF(AND(H520>0,H520<=Experiencia1),Puntajes!$D$4,IF(AND(H520>Experiencia1,H520<=Experiencia2),Puntajes!$D$5,IF(AND(H520>Experiencia2,H520<=Experiencia3),Puntajes!$D$6,IF(H520>Experiencia3,Puntajes!$D$7,0)))))","v":""}]
[null,null,{"$f":"+'Capacidad Financiera'!B524","v":""},{"$f":"IF(ISERROR(VLOOKUP(C521,'Capacidad Financiera'!$B$12:$X$62720,2,0)),\"\",VLOOKUP(C521,'Capacidad Financiera'!$B$12:$X$3580,2,0))","v":0},{"$f":"IF(ISERROR(VLOOKUP(C521,'Capacidad Financiera'!$B$12:$X$62720,3,0)),\"\",VLOOKUP(C521,'Capacidad Financiera'!$B$12:$X$62720,3,0))","v":0},null,{"$f":"IF(OR(D521=\"\",E521=\"\",F521=\"\"),\"\",IF(C521<>\"\",IF(ISERROR(VLOOKUP($A$10,POA!$A$2:$D$25,2,0)),\"\",VLOOKUP($A$10,POA!$A$2:$D$25,2,0)),\"\"))","v":""},"",{"$f":"IF(OR(D521=\"\",E521=\"\",F521=\"\"),\"\",IF(AND(H521>0,H521<=Experiencia1),Puntajes!$D$4,IF(AND(H521>Experiencia1,H521<=Experiencia2),Puntajes!$D$5,IF(AND(H521>Experiencia2,H521<=Experiencia3),Puntajes!$D$6,IF(H521>Experiencia3,Puntajes!$D$7,0)))))","v":""}]
[null,null,{"$f":"+'Capacidad Financiera'!B525","v":""},{"$f":"IF(ISERROR(VLOOKUP(C522,'Capacidad Financiera'!$B$12:$X$62720,2,0)),\"\",VLOOKUP(C522,'Capacidad Financiera'!$B$12:$X$3580,2,0))","v":0},{"$f":"IF(ISERROR(VLOOKUP(C522,'Capacidad Financiera'!$B$12:$X$62720,3,0)),\"\",VLOOKUP(C522,'Capacidad Financiera'!$B$12:$X$62720,3,0))","v":0},null,{"$f":"IF(OR(D522=\"\",E522=\"\",F522=\"\"),\"\",IF(C522<>\"\",IF(ISERROR(VLOOKUP($A$10,POA!$A$2:$D$25,2,0)),\"\",VLOOKUP($A$10,POA!$A$2:$D$25,2,0)),\"\"))","v":""},"",{"$f":"IF(OR(D522=\"\",E522=\"\",F522=\"\"),\"\",IF(AND(H522>0,H522<=Experiencia1),Puntajes!$D$4,IF(AND(H522>Experiencia1,H522<=Experiencia2),Puntajes!$D$5,IF(AND(H522>Experiencia2,H522<=Experiencia3),Puntajes!$D$6,IF(H522>Experiencia3,Puntajes!$D$7,0)))))","v":""}]
[null,null,{"$f":"+'Capacidad Financiera'!B526","v":""},{"$f":"IF(ISERROR(VLOOKUP(C523,'Capacidad Financiera'!$B$12:$X$62720,2,0)),\"\",VLOOKUP(C523,'Capacidad Financiera'!$B$12:$X$3580,2,0))","v":0},{"$f":"IF(ISERROR(VLOOKUP(C523,'Capacidad Financiera'!$B$12:$X$62720,3,0)),\"\",VLOOKUP(C523,'Capacidad Financiera'!$B$12:$X$62720,3,0))","v":0},null,{"$f":"IF(OR(D523=\"\",E523=\"\",F523=\"\"),\"\",IF(C523<>\"\",IF(ISERROR(VLOOKUP($A$10,POA!$A$2:$D$25,2,0)),\"\",VLOOKUP($A$10,POA!$A$2:$D$25,2,0)),\"\"))","v":""},"",{"$f":"IF(OR(D523=\"\",E523=\"\",F523=\"\"),\"\",IF(AND(H523>0,H523<=Experiencia1),Puntajes!$D$4,IF(AND(H523>Experiencia1,H523<=Experiencia2),Puntajes!$D$5,IF(AND(H523>Experiencia2,H523<=Experiencia3),Puntajes!$D$6,IF(H523>Experiencia3,Puntajes!$D$7,0)))))","v":""}]
[null,null,{"$f":"+'Capacidad Financiera'!B527","v":""},{"$f":"IF(ISERROR(VLOOKUP(C524,'Capacidad Financiera'!$B$12:$X$62720,2,0)),\"\",VLOOKUP(C524,'Capacidad Financiera'!$B$12:$X$3580,2,0))","v":0},{"$f":"IF(ISERROR(VLOOKUP(C524,'Capacidad Financiera'!$B$12:$X$62720,3,0)),\"\",VLOOKUP(C524,'Capacidad Financiera'!$B$12:$X$62720,3,0))","v":0},null,{"$f":"IF(OR(D524=\"\",E524=\"\",F524=\"\"),\"\",IF(C524<>\"\",IF(ISERROR(VLOOKUP($A$10,POA!$A$2:$D$25,2,0)),\"\",VLOOKUP($A$10,POA!$A$2:$D$25,2,0)),\"\"))","v":""},"",{"$f":"IF(OR(D524=\"\",E524=\"\",F524=\"\"),\"\",IF(AND(H524>0,H524<=Experiencia1),Puntajes!$D$4,IF(AND(H524>Experiencia1,H524<=Experiencia2),Puntajes!$D$5,IF(AND(H524>Experiencia2,H524<=Experiencia3),Puntajes!$D$6,IF(H524>Experiencia3,Puntajes!$D$7,0)))))","v":""}]
[null,null,{"$f":"+'Capacidad Financiera'!B528","v":""},{"$f":"IF(ISERROR(VLOOKUP(C525,'Capacidad Financiera'!$B$12:$X$62720,2,0)),\"\",VLOOKUP(C525,'Capacidad Financiera'!$B$12:$X$3580,2,0))","v":0},{"$f":"IF(ISERROR(VLOOKUP(C525,'Capacidad Financiera'!$B$12:$X$62720,3,0)),\"\",VLOOKUP(C525,'Capacidad Financiera'!$B$12:$X$62720,3,0))","v":0},null,{"$f":"IF(OR(D525=\"\",E525=\"\",F525=\"\"),\"\",IF(C525<>\"\",IF(ISERROR(VLOOKUP($A$10,POA!$A$2:$D$25,2,0)),\"\",VLOOKUP($A$10,POA!$A$2:$D$25,2,0)),\"\"))","v":""},"",{"$f":"IF(OR(D525=\"\",E525=\"\",F525=\"\"),\"\",IF(AND(H525>0,H525<=Experiencia1),Puntajes!$D$4,IF(AND(H525>Experiencia1,H525<=Experiencia2),Puntajes!$D$5,IF(AND(H525>Experiencia2,H525<=Experiencia3),Puntajes!$D$6,IF(H525>Experiencia3,Puntajes!$D$7,0)))))","v":""}]
[null,null,48,{"$f":"IF(ISERROR(VLOOKUP(C526,'Capacidad Financiera'!$B$12:$X$62720,2,0)),\"\",VLOOKUP(C526,'Capacidad Financiera'!$B$12:$X$3580,2,0))","v":0},{"$f":"IF(ISERROR(VLOOKUP(C526,'Capacidad Financiera'!$B$12:$X$62720,3,0)),\"\",VLOOKUP(C526,'Capacidad Financiera'!$B$12:$X$62720,3,0))","v":""},null,{"$f":"IF(OR(D526=\"\",E526=\"\",F526=\"\"),\"\",IF(C527=\"\",IF(C526<>\"\",IF(ISERROR(VLOOKUP($A$10,POA!$A$2:$D$25,2,0)),\"\",VLOOKUP($A$10,POA!$A$2:$D$25,2,0)),\"\"),\"\"))","v":""},{"$f":"IF(OR(D526=\"\",E526=\"\",F526=\"\"),\"\",IF(C527=\"\",IF(C526<>\"\",F526/G526,\"\"),\"\"))","v":""},{"$f":"IF(C527=\"\",IF(F526=\"\",\"\",IF(AND(H526>0,H526<=Experiencia1),Puntajes!$D$4,IF(AND(H526>Experiencia1,H526<=Experiencia2),Puntajes!$D$5,IF(AND(H526>Experiencia2,H526<=Experiencia3),Puntajes!$D$6,IF(H526>Experiencia3,Puntajes!$D$7,0))))),\"\")","v":""}]
[null,null,{"$f":"+'Capacidad Financiera'!B530","v":""},{"$f":"IF(ISERROR(VLOOKUP(C527,'Capacidad Financiera'!$B$12:$X$62720,2,0)),\"\",VLOOKUP(C527,'Capacidad Financiera'!$B$12:$X$3580,2,0))","v":0},{"$f":"IF(ISERROR(VLOOKUP(C527,'Capacidad Financiera'!$B$12:$X$62720,3,0)),\"\",VLOOKUP(C527,'Capacidad Financiera'!$B$12:$X$62720,3,0))","v":0},null,{"$f":"IF(OR(D527=\"\",E527=\"\",F527=\"\"),\"\",IF(C527<>\"\",IF(ISERROR(VLOOKUP($A$10,POA!$A$2:$D$25,2,0)),\"\",VLOOKUP($A$10,POA!$A$2:$D$25,2,0)),\"\"))","v":""},{"$f":"IF(OR(D527=\"\",E527=\"\",F527=\"\"),\"\",IF(C527<>\"\",F527/(G527*E527),\"\"))","v":""},{"$f":"IF(OR(D527=\"\",E527=\"\",F527=\"\"),\"\",IF(AND(H527>0,H527<=Experiencia1),Puntajes!$D$4,IF(AND(H527>Experiencia1,H527<=Experiencia2),Puntajes!$D$5,IF(AND(H527>Experiencia2,H527<=Experiencia3),Puntajes!$D$6,IF(H527>Experiencia3,Puntajes!$D$7,0)))))","v":""}]
[null,null,{"$f":"+'Capacidad Financiera'!B531","v":""},{"$f":"IF(ISERROR(VLOOKUP(C528,'Capacidad Financiera'!$B$12:$X$62720,2,0)),\"\",VLOOKUP(C528,'Capacidad Financiera'!$B$12:$X$3580,2,0))","v":0},{"$f":"IF(ISERROR(VLOOKUP(C528,'Capacidad Financiera'!$B$12:$X$62720,3,0)),\"\",VLOOKUP(C528,'Capacidad Financiera'!$B$12:$X$62720,3,0))","v":0},null,{"$f":"IF(OR(D528=\"\",E528=\"\",F528=\"\"),\"\",IF(C528<>\"\",IF(ISERROR(VLOOKUP($A$10,POA!$A$2:$D$25,2,0)),\"\",VLOOKUP($A$10,POA!$A$2:$D$25,2,0)),\"\"))","v":""},{"$f":"IF(OR(D528=\"\",E528=\"\",F528=\"\"),\"\",IF(C528<>\"\",F528/(G528*E528),\"\"))","v":""},{"$f":"IF(OR(D528=\"\",E528=\"\",F528=\"\"),\"\",IF(AND(H528>0,H528<=Experiencia1),Puntajes!$D$4,IF(AND(H528>Experiencia1,H528<=Experiencia2),Puntajes!$D$5,IF(AND(H528>Experiencia2,H528<=Experiencia3),Puntajes!$D$6,IF(H528>Experiencia3,Puntajes!$D$7,0)))))","v":""}]
[null,null,{"$f":"+'Capacidad Financiera'!B532","v":""},{"$f":"IF(ISERROR(VLOOKUP(C529,'Capacidad Financiera'!$B$12:$X$62720,2,0)),\"\",VLOOKUP(C529,'Capacidad Financiera'!$B$12:$X$3580,2,0))","v":0},{"$f":"IF(ISERROR(VLOOKUP(C529,'Capacidad Financiera'!$B$12:$X$62720,3,0)),\"\",VLOOKUP(C529,'Capacidad Financiera'!$B$12:$X$62720,3,0))","v":0},null,{"$f":"IF(OR(D529=\"\",E529=\"\",F529=\"\"),\"\",IF(C529<>\"\",IF(ISERROR(VLOOKUP($A$10,POA!$A$2:$D$25,2,0)),\"\",VLOOKUP($A$10,POA!$A$2:$D$25,2,0)),\"\"))","v":""},"",{"$f":"IF(OR(D529=\"\",E529=\"\",F529=\"\"),\"\",IF(AND(H529>0,H529<=Experiencia1),Puntajes!$D$4,IF(AND(H529>Experiencia1,H529<=Experiencia2),Puntajes!$D$5,IF(AND(H529>Experiencia2,H529<=Experiencia3),Puntajes!$D$6,IF(H529>Experiencia3,Puntajes!$D$7,0)))))","v":""}]
[null,null,{"$f":"+'Capacidad Financiera'!B533","v":""},{"$f":"IF(ISERROR(VLOOKUP(C530,'Capacidad Financiera'!$B$12:$X$62720,2,0)),\"\",VLOOKUP(C530,'Capacidad Financiera'!$B$12:$X$3580,2,0))","v":0},{"$f":"IF(ISERROR(VLOOKUP(C530,'Capacidad Financiera'!$B$12:$X$62720,3,0)),\"\",VLOOKUP(C530,'Capacidad Financiera'!$B$12:$X$62720,3,0))","v":0},null,{"$f":"IF(OR(D530=\"\",E530=\"\",F530=\"\"),\"\",IF(C530<>\"\",IF(ISERROR(VLOOKUP($A$10,POA!$A$2:$D$25,2,0)),\"\",VLOOKUP($A$10,POA!$A$2:$D$25,2,0)),\"\"))","v":""},"",{"$f":"IF(OR(D530=\"\",E530=\"\",F530=\"\"),\"\",IF(AND(H530>0,H530<=Experiencia1),Puntajes!$D$4,IF(AND(H530>Experiencia1,H530<=Experiencia2),Puntajes!$D$5,IF(AND(H530>Experiencia2,H530<=Experiencia3),Puntajes!$D$6,IF(H530>Experiencia3,Puntajes!$D$7,0)))))","v":""}]
[null,null,{"$f":"+'Capacidad Financiera'!B534","v":""},{"$f":"IF(ISERROR(VLOOKUP(C531,'Capacidad Financiera'!$B$12:$X$62720,2,0)),\"\",VLOOKUP(C531,'Capacidad Financiera'!$B$12:$X$3580,2,0))","v":0},{"$f":"IF(ISERROR(VLOOKUP(C531,'Capacidad Financiera'!$B$12:$X$62720,3,0)),\"\",VLOOKUP(C531,'Capacidad Financiera'!$B$12:$X$62720,3,0))","v":0},null,{"$f":"IF(OR(D531=\"\",E531=\"\",F531=\"\"),\"\",IF(C531<>\"\",IF(ISERROR(VLOOKUP($A$10,POA!$A$2:$D$25,2,0)),\"\",VLOOKUP($A$10,POA!$A$2:$D$25,2,0)),\"\"))","v":""},"",{"$f":"IF(OR(D531=\"\",E531=\"\",F531=\"\"),\"\",IF(AND(H531>0,H531<=Experiencia1),Puntajes!$D$4,IF(AND(H531>Experiencia1,H531<=Experiencia2),Puntajes!$D$5,IF(AND(H531>Experiencia2,H531<=Experiencia3),Puntajes!$D$6,IF(H531>Experiencia3,Puntajes!$D$7,0)))))","v":""}]
[null,null,{"$f":"+'Capacidad Financiera'!B535","v":""},{"$f":"IF(ISERROR(VLOOKUP(C532,'Capacidad Financiera'!$B$12:$X$62720,2,0)),\"\",VLOOKUP(C532,'Capacidad Financiera'!$B$12:$X$3580,2,0))","v":0},{"$f":"IF(ISERROR(VLOOKUP(C532,'Capacidad Financiera'!$B$12:$X$62720,3,0)),\"\",VLOOKUP(C532,'Capacidad Financiera'!$B$12:$X$62720,3,0))","v":0},null,{"$f":"IF(OR(D532=\"\",E532=\"\",F532=\"\"),\"\",IF(C532<>\"\",IF(ISERROR(VLOOKUP($A$10,POA!$A$2:$D$25,2,0)),\"\",VLOOKUP($A$10,POA!$A$2:$D$25,2,0)),\"\"))","v":""},"",{"$f":"IF(OR(D532=\"\",E532=\"\",F532=\"\"),\"\",IF(AND(H532>0,H532<=Experiencia1),Puntajes!$D$4,IF(AND(H532>Experiencia1,H532<=Experiencia2),Puntajes!$D$5,IF(AND(H532>Experiencia2,H532<=Experiencia3),Puntajes!$D$6,IF(H532>Experiencia3,Puntajes!$D$7,0)))))","v":""}]
[null,null,{"$f":"+'Capacidad Financiera'!B536","v":""},{"$f":"IF(ISERROR(VLOOKUP(C533,'Capacidad Financiera'!$B$12:$X$62720,2,0)),\"\",VLOOKUP(C533,'Capacidad Financiera'!$B$12:$X$3580,2,0))","v":0},{"$f":"IF(ISERROR(VLOOKUP(C533,'Capacidad Financiera'!$B$12:$X$62720,3,0)),\"\",VLOOKUP(C533,'Capacidad Financiera'!$B$12:$X$62720,3,0))","v":0},null,{"$f":"IF(OR(D533=\"\",E533=\"\",F533=\"\"),\"\",IF(C533<>\"\",IF(ISERROR(VLOOKUP($A$10,POA!$A$2:$D$25,2,0)),\"\",VLOOKUP($A$10,POA!$A$2:$D$25,2,0)),\"\"))","v":""},"",{"$f":"IF(OR(D533=\"\",E533=\"\",F533=\"\"),\"\",IF(AND(H533>0,H533<=Experiencia1),Puntajes!$D$4,IF(AND(H533>Experiencia1,H533<=Experiencia2),Puntajes!$D$5,IF(AND(H533>Experiencia2,H533<=Experiencia3),Puntajes!$D$6,IF(H533>Experiencia3,Puntajes!$D$7,0)))))","v":""}]
[null,null,{"$f":"+'Capacidad Financiera'!B537","v":""},{"$f":"IF(ISERROR(VLOOKUP(C534,'Capacidad Financiera'!$B$12:$X$62720,2,0)),\"\",VLOOKUP(C534,'Capacidad Financiera'!$B$12:$X$3580,2,0))","v":0},{"$f":"IF(ISERROR(VLOOKUP(C534,'Capacidad Financiera'!$B$12:$X$62720,3,0)),\"\",VLOOKUP(C534,'Capacidad Financiera'!$B$12:$X$62720,3,0))","v":0},null,{"$f":"IF(OR(D534=\"\",E534=\"\",F534=\"\"),\"\",IF(C534<>\"\",IF(ISERROR(VLOOKUP($A$10,POA!$A$2:$D$25,2,0)),\"\",VLOOKUP($A$10,POA!$A$2:$D$25,2,0)),\"\"))","v":""},"",{"$f":"IF(OR(D534=\"\",E534=\"\",F534=\"\"),\"\",IF(AND(H534>0,H534<=Experiencia1),Puntajes!$D$4,IF(AND(H534>Experiencia1,H534<=Experiencia2),Puntajes!$D$5,IF(AND(H534>Experiencia2,H534<=Experiencia3),Puntajes!$D$6,IF(H534>Experiencia3,Puntajes!$D$7,0)))))","v":""}]
[null,null,{"$f":"+'Capacidad Financiera'!B538","v":""},{"$f":"IF(ISERROR(VLOOKUP(C535,'Capacidad Financiera'!$B$12:$X$62720,2,0)),\"\",VLOOKUP(C535,'Capacidad Financiera'!$B$12:$X$3580,2,0))","v":0},{"$f":"IF(ISERROR(VLOOKUP(C535,'Capacidad Financiera'!$B$12:$X$62720,3,0)),\"\",VLOOKUP(C535,'Capacidad Financiera'!$B$12:$X$62720,3,0))","v":0},null,{"$f":"IF(OR(D535=\"\",E535=\"\",F535=\"\"),\"\",IF(C535<>\"\",IF(ISERROR(VLOOKUP($A$10,POA!$A$2:$D$25,2,0)),\"\",VLOOKUP($A$10,POA!$A$2:$D$25,2,0)),\"\"))","v":""},"",{"$f":"IF(OR(D535=\"\",E535=\"\",F535=\"\"),\"\",IF(AND(H535>0,H535<=Experiencia1),Puntajes!$D$4,IF(AND(H535>Experiencia1,H535<=Experiencia2),Puntajes!$D$5,IF(AND(H535>Experiencia2,H535<=Experiencia3),Puntajes!$D$6,IF(H535>Experiencia3,Puntajes!$D$7,0)))))","v":""}]
[null,null,{"$f":"+'Capacidad Financiera'!B539","v":""},{"$f":"IF(ISERROR(VLOOKUP(C536,'Capacidad Financiera'!$B$12:$X$62720,2,0)),\"\",VLOOKUP(C536,'Capacidad Financiera'!$B$12:$X$3580,2,0))","v":0},{"$f":"IF(ISERROR(VLOOKUP(C536,'Capacidad Financiera'!$B$12:$X$62720,3,0)),\"\",VLOOKUP(C536,'Capacidad Financiera'!$B$12:$X$62720,3,0))","v":0},null,{"$f":"IF(OR(D536=\"\",E536=\"\",F536=\"\"),\"\",IF(C536<>\"\",IF(ISERROR(VLOOKUP($A$10,POA!$A$2:$D$25,2,0)),\"\",VLOOKUP($A$10,POA!$A$2:$D$25,2,0)),\"\"))","v":""},"",{"$f":"IF(OR(D536=\"\",E536=\"\",F536=\"\"),\"\",IF(AND(H536>0,H536<=Experiencia1),Puntajes!$D$4,IF(AND(H536>Experiencia1,H536<=Experiencia2),Puntajes!$D$5,IF(AND(H536>Experiencia2,H536<=Experiencia3),Puntajes!$D$6,IF(H536>Experiencia3,Puntajes!$D$7,0)))))","v":""}]
[null,null,49,{"$f":"IF(ISERROR(VLOOKUP(C537,'Capacidad Financiera'!$B$12:$X$62720,2,0)),\"\",VLOOKUP(C537,'Capacidad Financiera'!$B$12:$X$3580,2,0))","v":0},{"$f":"IF(ISERROR(VLOOKUP(C537,'Capacidad Financiera'!$B$12:$X$62720,3,0)),\"\",VLOOKUP(C537,'Capacidad Financiera'!$B$12:$X$62720,3,0))","v":""},null,{"$f":"IF(OR(D537=\"\",E537=\"\",F537=\"\"),\"\",IF(C538=\"\",IF(C537<>\"\",IF(ISERROR(VLOOKUP($A$10,POA!$A$2:$D$25,2,0)),\"\",VLOOKUP($A$10,POA!$A$2:$D$25,2,0)),\"\"),\"\"))","v":""},{"$f":"IF(OR(D537=\"\",E537=\"\",F537=\"\"),\"\",IF(C538=\"\",IF(C537<>\"\",F537/G537,\"\"),\"\"))","v":""},{"$f":"IF(C538=\"\",IF(F537=\"\",\"\",IF(AND(H537>0,H537<=Experiencia1),Puntajes!$D$4,IF(AND(H537>Experiencia1,H537<=Experiencia2),Puntajes!$D$5,IF(AND(H537>Experiencia2,H537<=Experiencia3),Puntajes!$D$6,IF(H537>Experiencia3,Puntajes!$D$7,0))))),\"\")","v":""}]
[null,null,{"$f":"+'Capacidad Financiera'!B541","v":""},{"$f":"IF(ISERROR(VLOOKUP(C538,'Capacidad Financiera'!$B$12:$X$62720,2,0)),\"\",VLOOKUP(C538,'Capacidad Financiera'!$B$12:$X$3580,2,0))","v":0},{"$f":"IF(ISERROR(VLOOKUP(C538,'Capacidad Financiera'!$B$12:$X$62720,3,0)),\"\",VLOOKUP(C538,'Capacidad Financiera'!$B$12:$X$62720,3,0))","v":0},null,{"$f":"IF(OR(D538=\"\",E538=\"\",F538=\"\"),\"\",IF(C538<>\"\",IF(ISERROR(VLOOKUP($A$10,POA!$A$2:$D$25,2,0)),\"\",VLOOKUP($A$10,POA!$A$2:$D$25,2,0)),\"\"))","v":""},{"$f":"IF(OR(D538=\"\",E538=\"\",F538=\"\"),\"\",IF(C538<>\"\",F538/(G538*E538),\"\"))","v":""},{"$f":"IF(OR(D538=\"\",E538=\"\",F538=\"\"),\"\",IF(AND(H538>0,H538<=Experiencia1),Puntajes!$D$4,IF(AND(H538>Experiencia1,H538<=Experiencia2),Puntajes!$D$5,IF(AND(H538>Experiencia2,H538<=Experiencia3),Puntajes!$D$6,IF(H538>Experiencia3,Puntajes!$D$7,0)))))","v":""}]
[null,null,{"$f":"+'Capacidad Financiera'!B542","v":""},{"$f":"IF(ISERROR(VLOOKUP(C539,'Capacidad Financiera'!$B$12:$X$62720,2,0)),\"\",VLOOKUP(C539,'Capacidad Financiera'!$B$12:$X$3580,2,0))","v":0},{"$f":"IF(ISERROR(VLOOKUP(C539,'Capacidad Financiera'!$B$12:$X$62720,3,0)),\"\",VLOOKUP(C539,'Capacidad Financiera'!$B$12:$X$62720,3,0))","v":0},null,{"$f":"IF(OR(D539=\"\",E539=\"\",F539=\"\"),\"\",IF(C539<>\"\",IF(ISERROR(VLOOKUP($A$10,POA!$A$2:$D$25,2,0)),\"\",VLOOKUP($A$10,POA!$A$2:$D$25,2,0)),\"\"))","v":""},{"$f":"IF(OR(D539=\"\",E539=\"\",F539=\"\"),\"\",IF(C539<>\"\",F539/(G539*E539),\"\"))","v":""},{"$f":"IF(OR(D539=\"\",E539=\"\",F539=\"\"),\"\",IF(AND(H539>0,H539<=Experiencia1),Puntajes!$D$4,IF(AND(H539>Experiencia1,H539<=Experiencia2),Puntajes!$D$5,IF(AND(H539>Experiencia2,H539<=Experiencia3),Puntajes!$D$6,IF(H539>Experiencia3,Puntajes!$D$7,0)))))","v":""}]
[null,null,{"$f":"+'Capacidad Financiera'!B543","v":""},{"$f":"IF(ISERROR(VLOOKUP(C540,'Capacidad Financiera'!$B$12:$X$62720,2,0)),\"\",VLOOKUP(C540,'Capacidad Financiera'!$B$12:$X$3580,2,0))","v":0},{"$f":"IF(ISERROR(VLOOKUP(C540,'Capacidad Financiera'!$B$12:$X$62720,3,0)),\"\",VLOOKUP(C540,'Capacidad Financiera'!$B$12:$X$62720,3,0))","v":0},null,{"$f":"IF(OR(D540=\"\",E540=\"\",F540=\"\"),\"\",IF(C540<>\"\",IF(ISERROR(VLOOKUP($A$10,POA!$A$2:$D$25,2,0)),\"\",VLOOKUP($A$10,POA!$A$2:$D$25,2,0)),\"\"))","v":""},"",{"$f":"IF(OR(D540=\"\",E540=\"\",F540=\"\"),\"\",IF(AND(H540>0,H540<=Experiencia1),Puntajes!$D$4,IF(AND(H540>Experiencia1,H540<=Experiencia2),Puntajes!$D$5,IF(AND(H540>Experiencia2,H540<=Experiencia3),Puntajes!$D$6,IF(H540>Experiencia3,Puntajes!$D$7,0)))))","v":""}]
[null,null,{"$f":"+'Capacidad Financiera'!B544","v":""},{"$f":"IF(ISERROR(VLOOKUP(C541,'Capacidad Financiera'!$B$12:$X$62720,2,0)),\"\",VLOOKUP(C541,'Capacidad Financiera'!$B$12:$X$3580,2,0))","v":0},{"$f":"IF(ISERROR(VLOOKUP(C541,'Capacidad Financiera'!$B$12:$X$62720,3,0)),\"\",VLOOKUP(C541,'Capacidad Financiera'!$B$12:$X$62720,3,0))","v":0},null,{"$f":"IF(OR(D541=\"\",E541=\"\",F541=\"\"),\"\",IF(C541<>\"\",IF(ISERROR(VLOOKUP($A$10,POA!$A$2:$D$25,2,0)),\"\",VLOOKUP($A$10,POA!$A$2:$D$25,2,0)),\"\"))","v":""},"",{"$f":"IF(OR(D541=\"\",E541=\"\",F541=\"\"),\"\",IF(AND(H541>0,H541<=Experiencia1),Puntajes!$D$4,IF(AND(H541>Experiencia1,H541<=Experiencia2),Puntajes!$D$5,IF(AND(H541>Experiencia2,H541<=Experiencia3),Puntajes!$D$6,IF(H541>Experiencia3,Puntajes!$D$7,0)))))","v":""}]
[null,null,{"$f":"+'Capacidad Financiera'!B545","v":""},{"$f":"IF(ISERROR(VLOOKUP(C542,'Capacidad Financiera'!$B$12:$X$62720,2,0)),\"\",VLOOKUP(C542,'Capacidad Financiera'!$B$12:$X$3580,2,0))","v":0},{"$f":"IF(ISERROR(VLOOKUP(C542,'Capacidad Financiera'!$B$12:$X$62720,3,0)),\"\",VLOOKUP(C542,'Capacidad Financiera'!$B$12:$X$62720,3,0))","v":0},null,{"$f":"IF(OR(D542=\"\",E542=\"\",F542=\"\"),\"\",IF(C542<>\"\",IF(ISERROR(VLOOKUP($A$10,POA!$A$2:$D$25,2,0)),\"\",VLOOKUP($A$10,POA!$A$2:$D$25,2,0)),\"\"))","v":""},"",{"$f":"IF(OR(D542=\"\",E542=\"\",F542=\"\"),\"\",IF(AND(H542>0,H542<=Experiencia1),Puntajes!$D$4,IF(AND(H542>Experiencia1,H542<=Experiencia2),Puntajes!$D$5,IF(AND(H542>Experiencia2,H542<=Experiencia3),Puntajes!$D$6,IF(H542>Experiencia3,Puntajes!$D$7,0)))))","v":""}]
[null,null,{"$f":"+'Capacidad Financiera'!B546","v":""},{"$f":"IF(ISERROR(VLOOKUP(C543,'Capacidad Financiera'!$B$12:$X$62720,2,0)),\"\",VLOOKUP(C543,'Capacidad Financiera'!$B$12:$X$3580,2,0))","v":0},{"$f":"IF(ISERROR(VLOOKUP(C543,'Capacidad Financiera'!$B$12:$X$62720,3,0)),\"\",VLOOKUP(C543,'Capacidad Financiera'!$B$12:$X$62720,3,0))","v":0},null,{"$f":"IF(OR(D543=\"\",E543=\"\",F543=\"\"),\"\",IF(C543<>\"\",IF(ISERROR(VLOOKUP($A$10,POA!$A$2:$D$25,2,0)),\"\",VLOOKUP($A$10,POA!$A$2:$D$25,2,0)),\"\"))","v":""},"",{"$f":"IF(OR(D543=\"\",E543=\"\",F543=\"\"),\"\",IF(AND(H543>0,H543<=Experiencia1),Puntajes!$D$4,IF(AND(H543>Experiencia1,H543<=Experiencia2),Puntajes!$D$5,IF(AND(H543>Experiencia2,H543<=Experiencia3),Puntajes!$D$6,IF(H543>Experiencia3,Puntajes!$D$7,0)))))","v":""}]
[null,null,{"$f":"+'Capacidad Financiera'!B547","v":""},{"$f":"IF(ISERROR(VLOOKUP(C544,'Capacidad Financiera'!$B$12:$X$62720,2,0)),\"\",VLOOKUP(C544,'Capacidad Financiera'!$B$12:$X$3580,2,0))","v":0},{"$f":"IF(ISERROR(VLOOKUP(C544,'Capacidad Financiera'!$B$12:$X$62720,3,0)),\"\",VLOOKUP(C544,'Capacidad Financiera'!$B$12:$X$62720,3,0))","v":0},null,{"$f":"IF(OR(D544=\"\",E544=\"\",F544=\"\"),\"\",IF(C544<>\"\",IF(ISERROR(VLOOKUP($A$10,POA!$A$2:$D$25,2,0)),\"\",VLOOKUP($A$10,POA!$A$2:$D$25,2,0)),\"\"))","v":""},"",{"$f":"IF(OR(D544=\"\",E544=\"\",F544=\"\"),\"\",IF(AND(H544>0,H544<=Experiencia1),Puntajes!$D$4,IF(AND(H544>Experiencia1,H544<=Experiencia2),Puntajes!$D$5,IF(AND(H544>Experiencia2,H544<=Experiencia3),Puntajes!$D$6,IF(H544>Experiencia3,Puntajes!$D$7,0)))))","v":""}]
[null,null,{"$f":"+'Capacidad Financiera'!B548","v":""},{"$f":"IF(ISERROR(VLOOKUP(C545,'Capacidad Financiera'!$B$12:$X$62720,2,0)),\"\",VLOOKUP(C545,'Capacidad Financiera'!$B$12:$X$3580,2,0))","v":0},{"$f":"IF(ISERROR(VLOOKUP(C545,'Capacidad Financiera'!$B$12:$X$62720,3,0)),\"\",VLOOKUP(C545,'Capacidad Financiera'!$B$12:$X$62720,3,0))","v":0},null,{"$f":"IF(OR(D545=\"\",E545=\"\",F545=\"\"),\"\",IF(C545<>\"\",IF(ISERROR(VLOOKUP($A$10,POA!$A$2:$D$25,2,0)),\"\",VLOOKUP($A$10,POA!$A$2:$D$25,2,0)),\"\"))","v":""},"",{"$f":"IF(OR(D545=\"\",E545=\"\",F545=\"\"),\"\",IF(AND(H545>0,H545<=Experiencia1),Puntajes!$D$4,IF(AND(H545>Experiencia1,H545<=Experiencia2),Puntajes!$D$5,IF(AND(H545>Experiencia2,H545<=Experiencia3),Puntajes!$D$6,IF(H545>Experiencia3,Puntajes!$D$7,0)))))","v":""}]
[null,null,{"$f":"+'Capacidad Financiera'!B549","v":""},{"$f":"IF(ISERROR(VLOOKUP(C546,'Capacidad Financiera'!$B$12:$X$62720,2,0)),\"\",VLOOKUP(C546,'Capacidad Financiera'!$B$12:$X$3580,2,0))","v":0},{"$f":"IF(ISERROR(VLOOKUP(C546,'Capacidad Financiera'!$B$12:$X$62720,3,0)),\"\",VLOOKUP(C546,'Capacidad Financiera'!$B$12:$X$62720,3,0))","v":0},null,{"$f":"IF(OR(D546=\"\",E546=\"\",F546=\"\"),\"\",IF(C546<>\"\",IF(ISERROR(VLOOKUP($A$10,POA!$A$2:$D$25,2,0)),\"\",VLOOKUP($A$10,POA!$A$2:$D$25,2,0)),\"\"))","v":""},"",{"$f":"IF(OR(D546=\"\",E546=\"\",F546=\"\"),\"\",IF(AND(H546>0,H546<=Experiencia1),Puntajes!$D$4,IF(AND(H546>Experiencia1,H546<=Experiencia2),Puntajes!$D$5,IF(AND(H546>Experiencia2,H546<=Experiencia3),Puntajes!$D$6,IF(H546>Experiencia3,Puntajes!$D$7,0)))))","v":""}]
[null,null,{"$f":"+'Capacidad Financiera'!B550","v":""},{"$f":"IF(ISERROR(VLOOKUP(C547,'Capacidad Financiera'!$B$12:$X$62720,2,0)),\"\",VLOOKUP(C547,'Capacidad Financiera'!$B$12:$X$3580,2,0))","v":0},{"$f":"IF(ISERROR(VLOOKUP(C547,'Capacidad Financiera'!$B$12:$X$62720,3,0)),\"\",VLOOKUP(C547,'Capacidad Financiera'!$B$12:$X$62720,3,0))","v":0},null,{"$f":"IF(OR(D547=\"\",E547=\"\",F547=\"\"),\"\",IF(C547<>\"\",IF(ISERROR(VLOOKUP($A$10,POA!$A$2:$D$25,2,0)),\"\",VLOOKUP($A$10,POA!$A$2:$D$25,2,0)),\"\"))","v":""},"",{"$f":"IF(OR(D547=\"\",E547=\"\",F547=\"\"),\"\",IF(AND(H547>0,H547<=Experiencia1),Puntajes!$D$4,IF(AND(H547>Experiencia1,H547<=Experiencia2),Puntajes!$D$5,IF(AND(H547>Experiencia2,H547<=Experiencia3),Puntajes!$D$6,IF(H547>Experiencia3,Puntajes!$D$7,0)))))","v":""}]
[null,null,50,{"$f":"IF(ISERROR(VLOOKUP(C548,'Capacidad Financiera'!$B$12:$X$62720,2,0)),\"\",VLOOKUP(C548,'Capacidad Financiera'!$B$12:$X$3580,2,0))","v":0},{"$f":"IF(ISERROR(VLOOKUP(C548,'Capacidad Financiera'!$B$12:$X$62720,3,0)),\"\",VLOOKUP(C548,'Capacidad Financiera'!$B$12:$X$62720,3,0))","v":""},null,{"$f":"IF(OR(D548=\"\",E548=\"\",F548=\"\"),\"\",IF(C549=\"\",IF(C548<>\"\",IF(ISERROR(VLOOKUP($A$10,POA!$A$2:$D$25,2,0)),\"\",VLOOKUP($A$10,POA!$A$2:$D$25,2,0)),\"\"),\"\"))","v":""},{"$f":"IF(OR(D548=\"\",E548=\"\",F548=\"\"),\"\",IF(C549=\"\",IF(C548<>\"\",F548/G548,\"\"),\"\"))","v":""},{"$f":"IF(C549=\"\",IF(F548=\"\",\"\",IF(AND(H548>0,H548<=Experiencia1),Puntajes!$D$4,IF(AND(H548>Experiencia1,H548<=Experiencia2),Puntajes!$D$5,IF(AND(H548>Experiencia2,H548<=Experiencia3),Puntajes!$D$6,IF(H548>Experiencia3,Puntajes!$D$7,0))))),\"\")","v":""}]
[null,null,{"$f":"+'Capacidad Financiera'!B552","v":""},{"$f":"IF(ISERROR(VLOOKUP(C549,'Capacidad Financiera'!$B$12:$X$62720,2,0)),\"\",VLOOKUP(C549,'Capacidad Financiera'!$B$12:$X$3580,2,0))","v":0},{"$f":"IF(ISERROR(VLOOKUP(C549,'Capacidad Financiera'!$B$12:$X$62720,3,0)),\"\",VLOOKUP(C549,'Capacidad Financiera'!$B$12:$X$62720,3,0))","v":0},null,{"$f":"IF(OR(D549=\"\",E549=\"\",F549=\"\"),\"\",IF(C549<>\"\",IF(ISERROR(VLOOKUP($A$10,POA!$A$2:$D$25,2,0)),\"\",VLOOKUP($A$10,POA!$A$2:$D$25,2,0)),\"\"))","v":""},{"$f":"IF(OR(D549=\"\",E549=\"\",F549=\"\"),\"\",IF(C549<>\"\",F549/(G549*E549),\"\"))","v":""},{"$f":"IF(OR(D549=\"\",E549=\"\",F549=\"\"),\"\",IF(AND(H549>0,H549<=Experiencia1),Puntajes!$D$4,IF(AND(H549>Experiencia1,H549<=Experiencia2),Puntajes!$D$5,IF(AND(H549>Experiencia2,H549<=Experiencia3),Puntajes!$D$6,IF(H549>Experiencia3,Puntajes!$D$7,0)))))","v":""}]
[null,null,{"$f":"+'Capacidad Financiera'!B553","v":""},{"$f":"IF(ISERROR(VLOOKUP(C550,'Capacidad Financiera'!$B$12:$X$62720,2,0)),\"\",VLOOKUP(C550,'Capacidad Financiera'!$B$12:$X$3580,2,0))","v":0},{"$f":"IF(ISERROR(VLOOKUP(C550,'Capacidad Financiera'!$B$12:$X$62720,3,0)),\"\",VLOOKUP(C550,'Capacidad Financiera'!$B$12:$X$62720,3,0))","v":0},null,{"$f":"IF(OR(D550=\"\",E550=\"\",F550=\"\"),\"\",IF(C550<>\"\",IF(ISERROR(VLOOKUP($A$10,POA!$A$2:$D$25,2,0)),\"\",VLOOKUP($A$10,POA!$A$2:$D$25,2,0)),\"\"))","v":""},{"$f":"IF(OR(D550=\"\",E550=\"\",F550=\"\"),\"\",IF(C550<>\"\",F550/(G550*E550),\"\"))","v":""},{"$f":"IF(OR(D550=\"\",E550=\"\",F550=\"\"),\"\",IF(AND(H550>0,H550<=Experiencia1),Puntajes!$D$4,IF(AND(H550>Experiencia1,H550<=Experiencia2),Puntajes!$D$5,IF(AND(H550>Experiencia2,H550<=Experiencia3),Puntajes!$D$6,IF(H550>Experiencia3,Puntajes!$D$7,0)))))","v":""}]
[null,null,{"$f":"+'Capacidad Financiera'!B554","v":""},{"$f":"IF(ISERROR(VLOOKUP(C551,'Capacidad Financiera'!$B$12:$X$62720,2,0)),\"\",VLOOKUP(C551,'Capacidad Financiera'!$B$12:$X$3580,2,0))","v":0},{"$f":"IF(ISERROR(VLOOKUP(C551,'Capacidad Financiera'!$B$12:$X$62720,3,0)),\"\",VLOOKUP(C551,'Capacidad Financiera'!$B$12:$X$62720,3,0))","v":0},null,{"$f":"IF(OR(D551=\"\",E551=\"\",F551=\"\"),\"\",IF(C551<>\"\",IF(ISERROR(VLOOKUP($A$10,POA!$A$2:$D$25,2,0)),\"\",VLOOKUP($A$10,POA!$A$2:$D$25,2,0)),\"\"))","v":""},"",{"$f":"IF(OR(D551=\"\",E551=\"\",F551=\"\"),\"\",IF(AND(H551>0,H551<=Experiencia1),Puntajes!$D$4,IF(AND(H551>Experiencia1,H551<=Experiencia2),Puntajes!$D$5,IF(AND(H551>Experiencia2,H551<=Experiencia3),Puntajes!$D$6,IF(H551>Experiencia3,Puntajes!$D$7,0)))))","v":""}]
[null,null,{"$f":"+'Capacidad Financiera'!B555","v":""},{"$f":"IF(ISERROR(VLOOKUP(C552,'Capacidad Financiera'!$B$12:$X$62720,2,0)),\"\",VLOOKUP(C552,'Capacidad Financiera'!$B$12:$X$3580,2,0))","v":0},{"$f":"IF(ISERROR(VLOOKUP(C552,'Capacidad Financiera'!$B$12:$X$62720,3,0)),\"\",VLOOKUP(C552,'Capacidad Financiera'!$B$12:$X$62720,3,0))","v":0},null,{"$f":"IF(OR(D552=\"\",E552=\"\",F552=\"\"),\"\",IF(C552<>\"\",IF(ISERROR(VLOOKUP($A$10,POA!$A$2:$D$25,2,0)),\"\",VLOOKUP($A$10,POA!$A$2:$D$25,2,0)),\"\"))","v":""},"",{"$f":"IF(OR(D552=\"\",E552=\"\",F552=\"\"),\"\",IF(AND(H552>0,H552<=Experiencia1),Puntajes!$D$4,IF(AND(H552>Experiencia1,H552<=Experiencia2),Puntajes!$D$5,IF(AND(H552>Experiencia2,H552<=Experiencia3),Puntajes!$D$6,IF(H552>Experiencia3,Puntajes!$D$7,0)))))","v":""}]
[null,null,{"$f":"+'Capacidad Financiera'!B556","v":""},{"$f":"IF(ISERROR(VLOOKUP(C553,'Capacidad Financiera'!$B$12:$X$62720,2,0)),\"\",VLOOKUP(C553,'Capacidad Financiera'!$B$12:$X$3580,2,0))","v":0},{"$f":"IF(ISERROR(VLOOKUP(C553,'Capacidad Financiera'!$B$12:$X$62720,3,0)),\"\",VLOOKUP(C553,'Capacidad Financiera'!$B$12:$X$62720,3,0))","v":0},null,{"$f":"IF(OR(D553=\"\",E553=\"\",F553=\"\"),\"\",IF(C553<>\"\",IF(ISERROR(VLOOKUP($A$10,POA!$A$2:$D$25,2,0)),\"\",VLOOKUP($A$10,POA!$A$2:$D$25,2,0)),\"\"))","v":""},"",{"$f":"IF(OR(D553=\"\",E553=\"\",F553=\"\"),\"\",IF(AND(H553>0,H553<=Experiencia1),Puntajes!$D$4,IF(AND(H553>Experiencia1,H553<=Experiencia2),Puntajes!$D$5,IF(AND(H553>Experiencia2,H553<=Experiencia3),Puntajes!$D$6,IF(H553>Experiencia3,Puntajes!$D$7,0)))))","v":""}]
[null,null,{"$f":"+'Capacidad Financiera'!B557","v":""},{"$f":"IF(ISERROR(VLOOKUP(C554,'Capacidad Financiera'!$B$12:$X$62720,2,0)),\"\",VLOOKUP(C554,'Capacidad Financiera'!$B$12:$X$3580,2,0))","v":0},{"$f":"IF(ISERROR(VLOOKUP(C554,'Capacidad Financiera'!$B$12:$X$62720,3,0)),\"\",VLOOKUP(C554,'Capacidad Financiera'!$B$12:$X$62720,3,0))","v":0},null,{"$f":"IF(OR(D554=\"\",E554=\"\",F554=\"\"),\"\",IF(C554<>\"\",IF(ISERROR(VLOOKUP($A$10,POA!$A$2:$D$25,2,0)),\"\",VLOOKUP($A$10,POA!$A$2:$D$25,2,0)),\"\"))","v":""},"",{"$f":"IF(OR(D554=\"\",E554=\"\",F554=\"\"),\"\",IF(AND(H554>0,H554<=Experiencia1),Puntajes!$D$4,IF(AND(H554>Experiencia1,H554<=Experiencia2),Puntajes!$D$5,IF(AND(H554>Experiencia2,H554<=Experiencia3),Puntajes!$D$6,IF(H554>Experiencia3,Puntajes!$D$7,0)))))","v":""}]
[null,null,{"$f":"+'Capacidad Financiera'!B558","v":""},{"$f":"IF(ISERROR(VLOOKUP(C555,'Capacidad Financiera'!$B$12:$X$62720,2,0)),\"\",VLOOKUP(C555,'Capacidad Financiera'!$B$12:$X$3580,2,0))","v":0},{"$f":"IF(ISERROR(VLOOKUP(C555,'Capacidad Financiera'!$B$12:$X$62720,3,0)),\"\",VLOOKUP(C555,'Capacidad Financiera'!$B$12:$X$62720,3,0))","v":0},null,{"$f":"IF(OR(D555=\"\",E555=\"\",F555=\"\"),\"\",IF(C555<>\"\",IF(ISERROR(VLOOKUP($A$10,POA!$A$2:$D$25,2,0)),\"\",VLOOKUP($A$10,POA!$A$2:$D$25,2,0)),\"\"))","v":""},"",{"$f":"IF(OR(D555=\"\",E555=\"\",F555=\"\"),\"\",IF(AND(H555>0,H555<=Experiencia1),Puntajes!$D$4,IF(AND(H555>Experiencia1,H555<=Experiencia2),Puntajes!$D$5,IF(AND(H555>Experiencia2,H555<=Experiencia3),Puntajes!$D$6,IF(H555>Experiencia3,Puntajes!$D$7,0)))))","v":""}]
[null,null,{"$f":"+'Capacidad Financiera'!B559","v":""},{"$f":"IF(ISERROR(VLOOKUP(C556,'Capacidad Financiera'!$B$12:$X$62720,2,0)),\"\",VLOOKUP(C556,'Capacidad Financiera'!$B$12:$X$3580,2,0))","v":0},{"$f":"IF(ISERROR(VLOOKUP(C556,'Capacidad Financiera'!$B$12:$X$62720,3,0)),\"\",VLOOKUP(C556,'Capacidad Financiera'!$B$12:$X$62720,3,0))","v":0},null,{"$f":"IF(OR(D556=\"\",E556=\"\",F556=\"\"),\"\",IF(C556<>\"\",IF(ISERROR(VLOOKUP($A$10,POA!$A$2:$D$25,2,0)),\"\",VLOOKUP($A$10,POA!$A$2:$D$25,2,0)),\"\"))","v":""},"",{"$f":"IF(OR(D556=\"\",E556=\"\",F556=\"\"),\"\",IF(AND(H556>0,H556<=Experiencia1),Puntajes!$D$4,IF(AND(H556>Experiencia1,H556<=Experiencia2),Puntajes!$D$5,IF(AND(H556>Experiencia2,H556<=Experiencia3),Puntajes!$D$6,IF(H556>Experiencia3,Puntajes!$D$7,0)))))","v":""}]
[null,null,{"$f":"+'Capacidad Financiera'!B560","v":""},{"$f":"IF(ISERROR(VLOOKUP(C557,'Capacidad Financiera'!$B$12:$X$62720,2,0)),\"\",VLOOKUP(C557,'Capacidad Financiera'!$B$12:$X$3580,2,0))","v":0},{"$f":"IF(ISERROR(VLOOKUP(C557,'Capacidad Financiera'!$B$12:$X$62720,3,0)),\"\",VLOOKUP(C557,'Capacidad Financiera'!$B$12:$X$62720,3,0))","v":0},null,{"$f":"IF(OR(D557=\"\",E557=\"\",F557=\"\"),\"\",IF(C557<>\"\",IF(ISERROR(VLOOKUP($A$10,POA!$A$2:$D$25,2,0)),\"\",VLOOKUP($A$10,POA!$A$2:$D$25,2,0)),\"\"))","v":""},"",{"$f":"IF(OR(D557=\"\",E557=\"\",F557=\"\"),\"\",IF(AND(H557>0,H557<=Experiencia1),Puntajes!$D$4,IF(AND(H557>Experiencia1,H557<=Experiencia2),Puntajes!$D$5,IF(AND(H557>Experiencia2,H557<=Experiencia3),Puntajes!$D$6,IF(H557>Experiencia3,Puntajes!$D$7,0)))))","v":""}]
[null,null,{"$f":"+'Capacidad Financiera'!B561","v":""},{"$f":"IF(ISERROR(VLOOKUP(C558,'Capacidad Financiera'!$B$12:$X$62720,2,0)),\"\",VLOOKUP(C558,'Capacidad Financiera'!$B$12:$X$3580,2,0))","v":0},{"$f":"IF(ISERROR(VLOOKUP(C558,'Capacidad Financiera'!$B$12:$X$62720,3,0)),\"\",VLOOKUP(C558,'Capacidad Financiera'!$B$12:$X$62720,3,0))","v":0},null,{"$f":"IF(OR(D558=\"\",E558=\"\",F558=\"\"),\"\",IF(C558<>\"\",IF(ISERROR(VLOOKUP($A$10,POA!$A$2:$D$25,2,0)),\"\",VLOOKUP($A$10,POA!$A$2:$D$25,2,0)),\"\"))","v":""},"",{"$f":"IF(OR(D558=\"\",E558=\"\",F558=\"\"),\"\",IF(AND(H558>0,H558<=Experiencia1),Puntajes!$D$4,IF(AND(H558>Experiencia1,H558<=Experiencia2),Puntajes!$D$5,IF(AND(H558>Experiencia2,H558<=Experiencia3),Puntajes!$D$6,IF(H558>Experiencia3,Puntajes!$D$7,0)))))","v":""}]
[null,null,51,{"$f":"IF(ISERROR(VLOOKUP(C559,'Capacidad Financiera'!$B$12:$X$62720,2,0)),\"\",VLOOKUP(C559,'Capacidad Financiera'!$B$12:$X$3580,2,0))","v":0},{"$f":"IF(ISERROR(VLOOKUP(C559,'Capacidad Financiera'!$B$12:$X$62720,3,0)),\"\",VLOOKUP(C559,'Capacidad Financiera'!$B$12:$X$62720,3,0))","v":""},null,{"$f":"IF(OR(D559=\"\",E559=\"\",F559=\"\"),\"\",IF(C560=\"\",IF(C559<>\"\",IF(ISERROR(VLOOKUP($A$10,POA!$A$2:$D$25,2,0)),\"\",VLOOKUP($A$10,POA!$A$2:$D$25,2,0)),\"\"),\"\"))","v":""},{"$f":"IF(OR(D559=\"\",E559=\"\",F559=\"\"),\"\",IF(C560=\"\",IF(C559<>\"\",F559/G559,\"\"),\"\"))","v":""},{"$f":"IF(C560=\"\",IF(F559=\"\",\"\",IF(AND(H559>0,H559<=Experiencia1),Puntajes!$D$4,IF(AND(H559>Experiencia1,H559<=Experiencia2),Puntajes!$D$5,IF(AND(H559>Experiencia2,H559<=Experiencia3),Puntajes!$D$6,IF(H559>Experiencia3,Puntajes!$D$7,0))))),\"\")","v":""}]
[null,null,{"$f":"+'Capacidad Financiera'!B563","v":""},{"$f":"IF(ISERROR(VLOOKUP(C560,'Capacidad Financiera'!$B$12:$X$62720,2,0)),\"\",VLOOKUP(C560,'Capacidad Financiera'!$B$12:$X$3580,2,0))","v":0},{"$f":"IF(ISERROR(VLOOKUP(C560,'Capacidad Financiera'!$B$12:$X$62720,3,0)),\"\",VLOOKUP(C560,'Capacidad Financiera'!$B$12:$X$62720,3,0))","v":0},null,{"$f":"IF(OR(D560=\"\",E560=\"\",F560=\"\"),\"\",IF(C560<>\"\",IF(ISERROR(VLOOKUP($A$10,POA!$A$2:$D$25,2,0)),\"\",VLOOKUP($A$10,POA!$A$2:$D$25,2,0)),\"\"))","v":""},{"$f":"IF(OR(D560=\"\",E560=\"\",F560=\"\"),\"\",IF(C560<>\"\",F560/(G560*E560),\"\"))","v":""},{"$f":"IF(OR(D560=\"\",E560=\"\",F560=\"\"),\"\",IF(AND(H560>0,H560<=Experiencia1),Puntajes!$D$4,IF(AND(H560>Experiencia1,H560<=Experiencia2),Puntajes!$D$5,IF(AND(H560>Experiencia2,H560<=Experiencia3),Puntajes!$D$6,IF(H560>Experiencia3,Puntajes!$D$7,0)))))","v":""}]
[null,null,{"$f":"+'Capacidad Financiera'!B564","v":""},{"$f":"IF(ISERROR(VLOOKUP(C561,'Capacidad Financiera'!$B$12:$X$62720,2,0)),\"\",VLOOKUP(C561,'Capacidad Financiera'!$B$12:$X$3580,2,0))","v":0},{"$f":"IF(ISERROR(VLOOKUP(C561,'Capacidad Financiera'!$B$12:$X$62720,3,0)),\"\",VLOOKUP(C561,'Capacidad Financiera'!$B$12:$X$62720,3,0))","v":0},null,{"$f":"IF(OR(D561=\"\",E561=\"\",F561=\"\"),\"\",IF(C561<>\"\",IF(ISERROR(VLOOKUP($A$10,POA!$A$2:$D$25,2,0)),\"\",VLOOKUP($A$10,POA!$A$2:$D$25,2,0)),\"\"))","v":""},{"$f":"IF(OR(D561=\"\",E561=\"\",F561=\"\"),\"\",IF(C561<>\"\",F561/(G561*E561),\"\"))","v":""},{"$f":"IF(OR(D561=\"\",E561=\"\",F561=\"\"),\"\",IF(AND(H561>0,H561<=Experiencia1),Puntajes!$D$4,IF(AND(H561>Experiencia1,H561<=Experiencia2),Puntajes!$D$5,IF(AND(H561>Experiencia2,H561<=Experiencia3),Puntajes!$D$6,IF(H561>Experiencia3,Puntajes!$D$7,0)))))","v":""}]
[null,null,{"$f":"+'Capacidad Financiera'!B565","v":""},{"$f":"IF(ISERROR(VLOOKUP(C562,'Capacidad Financiera'!$B$12:$X$62720,2,0)),\"\",VLOOKUP(C562,'Capacidad Financiera'!$B$12:$X$3580,2,0))","v":0},{"$f":"IF(ISERROR(VLOOKUP(C562,'Capacidad Financiera'!$B$12:$X$62720,3,0)),\"\",VLOOKUP(C562,'Capacidad Financiera'!$B$12:$X$62720,3,0))","v":0},null,{"$f":"IF(OR(D562=\"\",E562=\"\",F562=\"\"),\"\",IF(C562<>\"\",IF(ISERROR(VLOOKUP($A$10,POA!$A$2:$D$25,2,0)),\"\",VLOOKUP($A$10,POA!$A$2:$D$25,2,0)),\"\"))","v":""},"",{"$f":"IF(OR(D562=\"\",E562=\"\",F562=\"\"),\"\",IF(AND(H562>0,H562<=Experiencia1),Puntajes!$D$4,IF(AND(H562>Experiencia1,H562<=Experiencia2),Puntajes!$D$5,IF(AND(H562>Experiencia2,H562<=Experiencia3),Puntajes!$D$6,IF(H562>Experiencia3,Puntajes!$D$7,0)))))","v":""}]
[null,null,{"$f":"+'Capacidad Financiera'!B566","v":""},{"$f":"IF(ISERROR(VLOOKUP(C563,'Capacidad Financiera'!$B$12:$X$62720,2,0)),\"\",VLOOKUP(C563,'Capacidad Financiera'!$B$12:$X$3580,2,0))","v":0},{"$f":"IF(ISERROR(VLOOKUP(C563,'Capacidad Financiera'!$B$12:$X$62720,3,0)),\"\",VLOOKUP(C563,'Capacidad Financiera'!$B$12:$X$62720,3,0))","v":0},null,{"$f":"IF(OR(D563=\"\",E563=\"\",F563=\"\"),\"\",IF(C563<>\"\",IF(ISERROR(VLOOKUP($A$10,POA!$A$2:$D$25,2,0)),\"\",VLOOKUP($A$10,POA!$A$2:$D$25,2,0)),\"\"))","v":""},"",{"$f":"IF(OR(D563=\"\",E563=\"\",F563=\"\"),\"\",IF(AND(H563>0,H563<=Experiencia1),Puntajes!$D$4,IF(AND(H563>Experiencia1,H563<=Experiencia2),Puntajes!$D$5,IF(AND(H563>Experiencia2,H563<=Experiencia3),Puntajes!$D$6,IF(H563>Experiencia3,Puntajes!$D$7,0)))))","v":""}]
[null,null,{"$f":"+'Capacidad Financiera'!B567","v":""},{"$f":"IF(ISERROR(VLOOKUP(C564,'Capacidad Financiera'!$B$12:$X$62720,2,0)),\"\",VLOOKUP(C564,'Capacidad Financiera'!$B$12:$X$3580,2,0))","v":0},{"$f":"IF(ISERROR(VLOOKUP(C564,'Capacidad Financiera'!$B$12:$X$62720,3,0)),\"\",VLOOKUP(C564,'Capacidad Financiera'!$B$12:$X$62720,3,0))","v":0},null,{"$f":"IF(OR(D564=\"\",E564=\"\",F564=\"\"),\"\",IF(C564<>\"\",IF(ISERROR(VLOOKUP($A$10,POA!$A$2:$D$25,2,0)),\"\",VLOOKUP($A$10,POA!$A$2:$D$25,2,0)),\"\"))","v":""},"",{"$f":"IF(OR(D564=\"\",E564=\"\",F564=\"\"),\"\",IF(AND(H564>0,H564<=Experiencia1),Puntajes!$D$4,IF(AND(H564>Experiencia1,H564<=Experiencia2),Puntajes!$D$5,IF(AND(H564>Experiencia2,H564<=Experiencia3),Puntajes!$D$6,IF(H564>Experiencia3,Puntajes!$D$7,0)))))","v":""}]
[null,null,{"$f":"+'Capacidad Financiera'!B568","v":""},{"$f":"IF(ISERROR(VLOOKUP(C565,'Capacidad Financiera'!$B$12:$X$62720,2,0)),\"\",VLOOKUP(C565,'Capacidad Financiera'!$B$12:$X$3580,2,0))","v":0},{"$f":"IF(ISERROR(VLOOKUP(C565,'Capacidad Financiera'!$B$12:$X$62720,3,0)),\"\",VLOOKUP(C565,'Capacidad Financiera'!$B$12:$X$62720,3,0))","v":0},null,{"$f":"IF(OR(D565=\"\",E565=\"\",F565=\"\"),\"\",IF(C565<>\"\",IF(ISERROR(VLOOKUP($A$10,POA!$A$2:$D$25,2,0)),\"\",VLOOKUP($A$10,POA!$A$2:$D$25,2,0)),\"\"))","v":""},"",{"$f":"IF(OR(D565=\"\",E565=\"\",F565=\"\"),\"\",IF(AND(H565>0,H565<=Experiencia1),Puntajes!$D$4,IF(AND(H565>Experiencia1,H565<=Experiencia2),Puntajes!$D$5,IF(AND(H565>Experiencia2,H565<=Experiencia3),Puntajes!$D$6,IF(H565>Experiencia3,Puntajes!$D$7,0)))))","v":""}]
[null,null,{"$f":"+'Capacidad Financiera'!B569","v":""},{"$f":"IF(ISERROR(VLOOKUP(C566,'Capacidad Financiera'!$B$12:$X$62720,2,0)),\"\",VLOOKUP(C566,'Capacidad Financiera'!$B$12:$X$3580,2,0))","v":0},{"$f":"IF(ISERROR(VLOOKUP(C566,'Capacidad Financiera'!$B$12:$X$62720,3,0)),\"\",VLOOKUP(C566,'Capacidad Financiera'!$B$12:$X$62720,3,0))","v":0},null,{"$f":"IF(OR(D566=\"\",E566=\"\",F566=\"\"),\"\",IF(C566<>\"\",IF(ISERROR(VLOOKUP($A$10,POA!$A$2:$D$25,2,0)),\"\",VLOOKUP($A$10,POA!$A$2:$D$25,2,0)),\"\"))","v":""},"",{"$f":"IF(OR(D566=\"\",E566=\"\",F566=\"\"),\"\",IF(AND(H566>0,H566<=Experiencia1),Puntajes!$D$4,IF(AND(H566>Experiencia1,H566<=Experiencia2),Puntajes!$D$5,IF(AND(H566>Experiencia2,H566<=Experiencia3),Puntajes!$D$6,IF(H566>Experiencia3,Puntajes!$D$7,0)))))","v":""}]
[null,null,{"$f":"+'Capacidad Financiera'!B570","v":""},{"$f":"IF(ISERROR(VLOOKUP(C567,'Capacidad Financiera'!$B$12:$X$62720,2,0)),\"\",VLOOKUP(C567,'Capacidad Financiera'!$B$12:$X$3580,2,0))","v":0},{"$f":"IF(ISERROR(VLOOKUP(C567,'Capacidad Financiera'!$B$12:$X$62720,3,0)),\"\",VLOOKUP(C567,'Capacidad Financiera'!$B$12:$X$62720,3,0))","v":0},null,{"$f":"IF(OR(D567=\"\",E567=\"\",F567=\"\"),\"\",IF(C567<>\"\",IF(ISERROR(VLOOKUP($A$10,POA!$A$2:$D$25,2,0)),\"\",VLOOKUP($A$10,POA!$A$2:$D$25,2,0)),\"\"))","v":""},"",{"$f":"IF(OR(D567=\"\",E567=\"\",F567=\"\"),\"\",IF(AND(H567>0,H567<=Experiencia1),Puntajes!$D$4,IF(AND(H567>Experiencia1,H567<=Experiencia2),Puntajes!$D$5,IF(AND(H567>Experiencia2,H567<=Experiencia3),Puntajes!$D$6,IF(H567>Experiencia3,Puntajes!$D$7,0)))))","v":""}]
[null,null,{"$f":"+'Capacidad Financiera'!B571","v":""},{"$f":"IF(ISERROR(VLOOKUP(C568,'Capacidad Financiera'!$B$12:$X$62720,2,0)),\"\",VLOOKUP(C568,'Capacidad Financiera'!$B$12:$X$3580,2,0))","v":0},{"$f":"IF(ISERROR(VLOOKUP(C568,'Capacidad Financiera'!$B$12:$X$62720,3,0)),\"\",VLOOKUP(C568,'Capacidad Financiera'!$B$12:$X$62720,3,0))","v":0},null,{"$f":"IF(OR(D568=\"\",E568=\"\",F568=\"\"),\"\",IF(C568<>\"\",IF(ISERROR(VLOOKUP($A$10,POA!$A$2:$D$25,2,0)),\"\",VLOOKUP($A$10,POA!$A$2:$D$25,2,0)),\"\"))","v":""},"",{"$f":"IF(OR(D568=\"\",E568=\"\",F568=\"\"),\"\",IF(AND(H568>0,H568<=Experiencia1),Puntajes!$D$4,IF(AND(H568>Experiencia1,H568<=Experiencia2),Puntajes!$D$5,IF(AND(H568>Experiencia2,H568<=Experiencia3),Puntajes!$D$6,IF(H568>Experiencia3,Puntajes!$D$7,0)))))","v":""}]
[null,null,{"$f":"+'Capacidad Financiera'!B572","v":""},{"$f":"IF(ISERROR(VLOOKUP(C569,'Capacidad Financiera'!$B$12:$X$62720,2,0)),\"\",VLOOKUP(C569,'Capacidad Financiera'!$B$12:$X$3580,2,0))","v":0},{"$f":"IF(ISERROR(VLOOKUP(C569,'Capacidad Financiera'!$B$12:$X$62720,3,0)),\"\",VLOOKUP(C569,'Capacidad Financiera'!$B$12:$X$62720,3,0))","v":0},null,{"$f":"IF(OR(D569=\"\",E569=\"\",F569=\"\"),\"\",IF(C569<>\"\",IF(ISERROR(VLOOKUP($A$10,POA!$A$2:$D$25,2,0)),\"\",VLOOKUP($A$10,POA!$A$2:$D$25,2,0)),\"\"))","v":""},"",{"$f":"IF(OR(D569=\"\",E569=\"\",F569=\"\"),\"\",IF(AND(H569>0,H569<=Experiencia1),Puntajes!$D$4,IF(AND(H569>Experiencia1,H569<=Experiencia2),Puntajes!$D$5,IF(AND(H569>Experiencia2,H569<=Experiencia3),Puntajes!$D$6,IF(H569>Experiencia3,Puntajes!$D$7,0)))))","v":""}]
[null,null,52,{"$f":"IF(ISERROR(VLOOKUP(C570,'Capacidad Financiera'!$B$12:$X$62720,2,0)),\"\",VLOOKUP(C570,'Capacidad Financiera'!$B$12:$X$3580,2,0))","v":0},{"$f":"IF(ISERROR(VLOOKUP(C570,'Capacidad Financiera'!$B$12:$X$62720,3,0)),\"\",VLOOKUP(C570,'Capacidad Financiera'!$B$12:$X$62720,3,0))","v":""},null,{"$f":"IF(OR(D570=\"\",E570=\"\",F570=\"\"),\"\",IF(C571=\"\",IF(C570<>\"\",IF(ISERROR(VLOOKUP($A$10,POA!$A$2:$D$25,2,0)),\"\",VLOOKUP($A$10,POA!$A$2:$D$25,2,0)),\"\"),\"\"))","v":""},{"$f":"IF(OR(D570=\"\",E570=\"\",F570=\"\"),\"\",IF(C571=\"\",IF(C570<>\"\",F570/G570,\"\"),\"\"))","v":""},{"$f":"IF(C571=\"\",IF(F570=\"\",\"\",IF(AND(H570>0,H570<=Experiencia1),Puntajes!$D$4,IF(AND(H570>Experiencia1,H570<=Experiencia2),Puntajes!$D$5,IF(AND(H570>Experiencia2,H570<=Experiencia3),Puntajes!$D$6,IF(H570>Experiencia3,Puntajes!$D$7,0))))),\"\")","v":""}]
[null,null,{"$f":"+'Capacidad Financiera'!B574","v":""},{"$f":"IF(ISERROR(VLOOKUP(C571,'Capacidad Financiera'!$B$12:$X$62720,2,0)),\"\",VLOOKUP(C571,'Capacidad Financiera'!$B$12:$X$3580,2,0))","v":0},{"$f":"IF(ISERROR(VLOOKUP(C571,'Capacidad Financiera'!$B$12:$X$62720,3,0)),\"\",VLOOKUP(C571,'Capacidad Financiera'!$B$12:$X$62720,3,0))","v":0},null,{"$f":"IF(OR(D571=\"\",E571=\"\",F571=\"\"),\"\",IF(C571<>\"\",IF(ISERROR(VLOOKUP($A$10,POA!$A$2:$D$25,2,0)),\"\",VLOOKUP($A$10,POA!$A$2:$D$25,2,0)),\"\"))","v":""},{"$f":"IF(OR(D571=\"\",E571=\"\",F571=\"\"),\"\",IF(C571<>\"\",F571/(G571*E571),\"\"))","v":""},{"$f":"IF(OR(D571=\"\",E571=\"\",F571=\"\"),\"\",IF(AND(H571>0,H571<=Experiencia1),Puntajes!$D$4,IF(AND(H571>Experiencia1,H571<=Experiencia2),Puntajes!$D$5,IF(AND(H571>Experiencia2,H571<=Experiencia3),Puntajes!$D$6,IF(H571>Experiencia3,Puntajes!$D$7,0)))))","v":""}]
[null,null,{"$f":"+'Capacidad Financiera'!B575","v":""},{"$f":"IF(ISERROR(VLOOKUP(C572,'Capacidad Financiera'!$B$12:$X$62720,2,0)),\"\",VLOOKUP(C572,'Capacidad Financiera'!$B$12:$X$3580,2,0))","v":0},{"$f":"IF(ISERROR(VLOOKUP(C572,'Capacidad Financiera'!$B$12:$X$62720,3,0)),\"\",VLOOKUP(C572,'Capacidad Financiera'!$B$12:$X$62720,3,0))","v":0},null,{"$f":"IF(OR(D572=\"\",E572=\"\",F572=\"\"),\"\",IF(C572<>\"\",IF(ISERROR(VLOOKUP($A$10,POA!$A$2:$D$25,2,0)),\"\",VLOOKUP($A$10,POA!$A$2:$D$25,2,0)),\"\"))","v":""},{"$f":"IF(OR(D572=\"\",E572=\"\",F572=\"\"),\"\",IF(C572<>\"\",F572/(G572*E572),\"\"))","v":""},{"$f":"IF(OR(D572=\"\",E572=\"\",F572=\"\"),\"\",IF(AND(H572>0,H572<=Experiencia1),Puntajes!$D$4,IF(AND(H572>Experiencia1,H572<=Experiencia2),Puntajes!$D$5,IF(AND(H572>Experiencia2,H572<=Experiencia3),Puntajes!$D$6,IF(H572>Experiencia3,Puntajes!$D$7,0)))))","v":""}]
[null,null,{"$f":"+'Capacidad Financiera'!B576","v":""},{"$f":"IF(ISERROR(VLOOKUP(C573,'Capacidad Financiera'!$B$12:$X$62720,2,0)),\"\",VLOOKUP(C573,'Capacidad Financiera'!$B$12:$X$3580,2,0))","v":0},{"$f":"IF(ISERROR(VLOOKUP(C573,'Capacidad Financiera'!$B$12:$X$62720,3,0)),\"\",VLOOKUP(C573,'Capacidad Financiera'!$B$12:$X$62720,3,0))","v":0},null,{"$f":"IF(OR(D573=\"\",E573=\"\",F573=\"\"),\"\",IF(C573<>\"\",IF(ISERROR(VLOOKUP($A$10,POA!$A$2:$D$25,2,0)),\"\",VLOOKUP($A$10,POA!$A$2:$D$25,2,0)),\"\"))","v":""},"",{"$f":"IF(OR(D573=\"\",E573=\"\",F573=\"\"),\"\",IF(AND(H573>0,H573<=Experiencia1),Puntajes!$D$4,IF(AND(H573>Experiencia1,H573<=Experiencia2),Puntajes!$D$5,IF(AND(H573>Experiencia2,H573<=Experiencia3),Puntajes!$D$6,IF(H573>Experiencia3,Puntajes!$D$7,0)))))","v":""}]
[null,null,{"$f":"+'Capacidad Financiera'!B577","v":""},{"$f":"IF(ISERROR(VLOOKUP(C574,'Capacidad Financiera'!$B$12:$X$62720,2,0)),\"\",VLOOKUP(C574,'Capacidad Financiera'!$B$12:$X$3580,2,0))","v":0},{"$f":"IF(ISERROR(VLOOKUP(C574,'Capacidad Financiera'!$B$12:$X$62720,3,0)),\"\",VLOOKUP(C574,'Capacidad Financiera'!$B$12:$X$62720,3,0))","v":0},null,{"$f":"IF(OR(D574=\"\",E574=\"\",F574=\"\"),\"\",IF(C574<>\"\",IF(ISERROR(VLOOKUP($A$10,POA!$A$2:$D$25,2,0)),\"\",VLOOKUP($A$10,POA!$A$2:$D$25,2,0)),\"\"))","v":""},"",{"$f":"IF(OR(D574=\"\",E574=\"\",F574=\"\"),\"\",IF(AND(H574>0,H574<=Experiencia1),Puntajes!$D$4,IF(AND(H574>Experiencia1,H574<=Experiencia2),Puntajes!$D$5,IF(AND(H574>Experiencia2,H574<=Experiencia3),Puntajes!$D$6,IF(H574>Experiencia3,Puntajes!$D$7,0)))))","v":""}]
[null,null,{"$f":"+'Capacidad Financiera'!B578","v":""},{"$f":"IF(ISERROR(VLOOKUP(C575,'Capacidad Financiera'!$B$12:$X$62720,2,0)),\"\",VLOOKUP(C575,'Capacidad Financiera'!$B$12:$X$3580,2,0))","v":0},{"$f":"IF(ISERROR(VLOOKUP(C575,'Capacidad Financiera'!$B$12:$X$62720,3,0)),\"\",VLOOKUP(C575,'Capacidad Financiera'!$B$12:$X$62720,3,0))","v":0},null,{"$f":"IF(OR(D575=\"\",E575=\"\",F575=\"\"),\"\",IF(C575<>\"\",IF(ISERROR(VLOOKUP($A$10,POA!$A$2:$D$25,2,0)),\"\",VLOOKUP($A$10,POA!$A$2:$D$25,2,0)),\"\"))","v":""},"",{"$f":"IF(OR(D575=\"\",E575=\"\",F575=\"\"),\"\",IF(AND(H575>0,H575<=Experiencia1),Puntajes!$D$4,IF(AND(H575>Experiencia1,H575<=Experiencia2),Puntajes!$D$5,IF(AND(H575>Experiencia2,H575<=Experiencia3),Puntajes!$D$6,IF(H575>Experiencia3,Puntajes!$D$7,0)))))","v":""}]
[null,null,{"$f":"+'Capacidad Financiera'!B579","v":""},{"$f":"IF(ISERROR(VLOOKUP(C576,'Capacidad Financiera'!$B$12:$X$62720,2,0)),\"\",VLOOKUP(C576,'Capacidad Financiera'!$B$12:$X$3580,2,0))","v":0},{"$f":"IF(ISERROR(VLOOKUP(C576,'Capacidad Financiera'!$B$12:$X$62720,3,0)),\"\",VLOOKUP(C576,'Capacidad Financiera'!$B$12:$X$62720,3,0))","v":0},null,{"$f":"IF(OR(D576=\"\",E576=\"\",F576=\"\"),\"\",IF(C576<>\"\",IF(ISERROR(VLOOKUP($A$10,POA!$A$2:$D$25,2,0)),\"\",VLOOKUP($A$10,POA!$A$2:$D$25,2,0)),\"\"))","v":""},"",{"$f":"IF(OR(D576=\"\",E576=\"\",F576=\"\"),\"\",IF(AND(H576>0,H576<=Experiencia1),Puntajes!$D$4,IF(AND(H576>Experiencia1,H576<=Experiencia2),Puntajes!$D$5,IF(AND(H576>Experiencia2,H576<=Experiencia3),Puntajes!$D$6,IF(H576>Experiencia3,Puntajes!$D$7,0)))))","v":""}]
[null,null,{"$f":"+'Capacidad Financiera'!B580","v":""},{"$f":"IF(ISERROR(VLOOKUP(C577,'Capacidad Financiera'!$B$12:$X$62720,2,0)),\"\",VLOOKUP(C577,'Capacidad Financiera'!$B$12:$X$3580,2,0))","v":0},{"$f":"IF(ISERROR(VLOOKUP(C577,'Capacidad Financiera'!$B$12:$X$62720,3,0)),\"\",VLOOKUP(C577,'Capacidad Financiera'!$B$12:$X$62720,3,0))","v":0},null,{"$f":"IF(OR(D577=\"\",E577=\"\",F577=\"\"),\"\",IF(C577<>\"\",IF(ISERROR(VLOOKUP($A$10,POA!$A$2:$D$25,2,0)),\"\",VLOOKUP($A$10,POA!$A$2:$D$25,2,0)),\"\"))","v":""},"",{"$f":"IF(OR(D577=\"\",E577=\"\",F577=\"\"),\"\",IF(AND(H577>0,H577<=Experiencia1),Puntajes!$D$4,IF(AND(H577>Experiencia1,H577<=Experiencia2),Puntajes!$D$5,IF(AND(H577>Experiencia2,H577<=Experiencia3),Puntajes!$D$6,IF(H577>Experiencia3,Puntajes!$D$7,0)))))","v":""}]
[null,null,{"$f":"+'Capacidad Financiera'!B581","v":""},{"$f":"IF(ISERROR(VLOOKUP(C578,'Capacidad Financiera'!$B$12:$X$62720,2,0)),\"\",VLOOKUP(C578,'Capacidad Financiera'!$B$12:$X$3580,2,0))","v":0},{"$f":"IF(ISERROR(VLOOKUP(C578,'Capacidad Financiera'!$B$12:$X$62720,3,0)),\"\",VLOOKUP(C578,'Capacidad Financiera'!$B$12:$X$62720,3,0))","v":0},null,{"$f":"IF(OR(D578=\"\",E578=\"\",F578=\"\"),\"\",IF(C578<>\"\",IF(ISERROR(VLOOKUP($A$10,POA!$A$2:$D$25,2,0)),\"\",VLOOKUP($A$10,POA!$A$2:$D$25,2,0)),\"\"))","v":""},"",{"$f":"IF(OR(D578=\"\",E578=\"\",F578=\"\"),\"\",IF(AND(H578>0,H578<=Experiencia1),Puntajes!$D$4,IF(AND(H578>Experiencia1,H578<=Experiencia2),Puntajes!$D$5,IF(AND(H578>Experiencia2,H578<=Experiencia3),Puntajes!$D$6,IF(H578>Experiencia3,Puntajes!$D$7,0)))))","v":""}]
[null,null,{"$f":"+'Capacidad Financiera'!B582","v":""},{"$f":"IF(ISERROR(VLOOKUP(C579,'Capacidad Financiera'!$B$12:$X$62720,2,0)),\"\",VLOOKUP(C579,'Capacidad Financiera'!$B$12:$X$3580,2,0))","v":0},{"$f":"IF(ISERROR(VLOOKUP(C579,'Capacidad Financiera'!$B$12:$X$62720,3,0)),\"\",VLOOKUP(C579,'Capacidad Financiera'!$B$12:$X$62720,3,0))","v":0},null,{"$f":"IF(OR(D579=\"\",E579=\"\",F579=\"\"),\"\",IF(C579<>\"\",IF(ISERROR(VLOOKUP($A$10,POA!$A$2:$D$25,2,0)),\"\",VLOOKUP($A$10,POA!$A$2:$D$25,2,0)),\"\"))","v":""},"",{"$f":"IF(OR(D579=\"\",E579=\"\",F579=\"\"),\"\",IF(AND(H579>0,H579<=Experiencia1),Puntajes!$D$4,IF(AND(H579>Experiencia1,H579<=Experiencia2),Puntajes!$D$5,IF(AND(H579>Experiencia2,H579<=Experiencia3),Puntajes!$D$6,IF(H579>Experiencia3,Puntajes!$D$7,0)))))","v":""}]
[null,null,{"$f":"+'Capacidad Financiera'!B583","v":""},{"$f":"IF(ISERROR(VLOOKUP(C580,'Capacidad Financiera'!$B$12:$X$62720,2,0)),\"\",VLOOKUP(C580,'Capacidad Financiera'!$B$12:$X$3580,2,0))","v":0},{"$f":"IF(ISERROR(VLOOKUP(C580,'Capacidad Financiera'!$B$12:$X$62720,3,0)),\"\",VLOOKUP(C580,'Capacidad Financiera'!$B$12:$X$62720,3,0))","v":0},null,{"$f":"IF(OR(D580=\"\",E580=\"\",F580=\"\"),\"\",IF(C580<>\"\",IF(ISERROR(VLOOKUP($A$10,POA!$A$2:$D$25,2,0)),\"\",VLOOKUP($A$10,POA!$A$2:$D$25,2,0)),\"\"))","v":""},"",{"$f":"IF(OR(D580=\"\",E580=\"\",F580=\"\"),\"\",IF(AND(H580>0,H580<=Experiencia1),Puntajes!$D$4,IF(AND(H580>Experiencia1,H580<=Experiencia2),Puntajes!$D$5,IF(AND(H580>Experiencia2,H580<=Experiencia3),Puntajes!$D$6,IF(H580>Experiencia3,Puntajes!$D$7,0)))))","v":""}]
[null,null,53,{"$f":"IF(ISERROR(VLOOKUP(C581,'Capacidad Financiera'!$B$12:$X$62720,2,0)),\"\",VLOOKUP(C581,'Capacidad Financiera'!$B$12:$X$3580,2,0))","v":0},{"$f":"IF(ISERROR(VLOOKUP(C581,'Capacidad Financiera'!$B$12:$X$62720,3,0)),\"\",VLOOKUP(C581,'Capacidad Financiera'!$B$12:$X$62720,3,0))","v":""},null,{"$f":"IF(OR(D581=\"\",E581=\"\",F581=\"\"),\"\",IF(C582=\"\",IF(C581<>\"\",IF(ISERROR(VLOOKUP($A$10,POA!$A$2:$D$25,2,0)),\"\",VLOOKUP($A$10,POA!$A$2:$D$25,2,0)),\"\"),\"\"))","v":""},{"$f":"IF(OR(D581=\"\",E581=\"\",F581=\"\"),\"\",IF(C582=\"\",IF(C581<>\"\",F581/G581,\"\"),\"\"))","v":""},{"$f":"IF(C582=\"\",IF(F581=\"\",\"\",IF(AND(H581>0,H581<=Experiencia1),Puntajes!$D$4,IF(AND(H581>Experiencia1,H581<=Experiencia2),Puntajes!$D$5,IF(AND(H581>Experiencia2,H581<=Experiencia3),Puntajes!$D$6,IF(H581>Experiencia3,Puntajes!$D$7,0))))),\"\")","v":""}]
[null,null,{"$f":"+'Capacidad Financiera'!B585","v":""},{"$f":"IF(ISERROR(VLOOKUP(C582,'Capacidad Financiera'!$B$12:$X$62720,2,0)),\"\",VLOOKUP(C582,'Capacidad Financiera'!$B$12:$X$3580,2,0))","v":0},{"$f":"IF(ISERROR(VLOOKUP(C582,'Capacidad Financiera'!$B$12:$X$62720,3,0)),\"\",VLOOKUP(C582,'Capacidad Financiera'!$B$12:$X$62720,3,0))","v":0},null,{"$f":"IF(OR(D582=\"\",E582=\"\",F582=\"\"),\"\",IF(C582<>\"\",IF(ISERROR(VLOOKUP($A$10,POA!$A$2:$D$25,2,0)),\"\",VLOOKUP($A$10,POA!$A$2:$D$25,2,0)),\"\"))","v":""},{"$f":"IF(OR(D582=\"\",E582=\"\",F582=\"\"),\"\",IF(C582<>\"\",F582/(G582*E582),\"\"))","v":""},{"$f":"IF(OR(D582=\"\",E582=\"\",F582=\"\"),\"\",IF(AND(H582>0,H582<=Experiencia1),Puntajes!$D$4,IF(AND(H582>Experiencia1,H582<=Experiencia2),Puntajes!$D$5,IF(AND(H582>Experiencia2,H582<=Experiencia3),Puntajes!$D$6,IF(H582>Experiencia3,Puntajes!$D$7,0)))))","v":""}]
[null,null,{"$f":"+'Capacidad Financiera'!B586","v":""},{"$f":"IF(ISERROR(VLOOKUP(C583,'Capacidad Financiera'!$B$12:$X$62720,2,0)),\"\",VLOOKUP(C583,'Capacidad Financiera'!$B$12:$X$3580,2,0))","v":0},{"$f":"IF(ISERROR(VLOOKUP(C583,'Capacidad Financiera'!$B$12:$X$62720,3,0)),\"\",VLOOKUP(C583,'Capacidad Financiera'!$B$12:$X$62720,3,0))","v":0},null,{"$f":"IF(OR(D583=\"\",E583=\"\",F583=\"\"),\"\",IF(C583<>\"\",IF(ISERROR(VLOOKUP($A$10,POA!$A$2:$D$25,2,0)),\"\",VLOOKUP($A$10,POA!$A$2:$D$25,2,0)),\"\"))","v":""},{"$f":"IF(OR(D583=\"\",E583=\"\",F583=\"\"),\"\",IF(C583<>\"\",F583/(G583*E583),\"\"))","v":""},{"$f":"IF(OR(D583=\"\",E583=\"\",F583=\"\"),\"\",IF(AND(H583>0,H583<=Experiencia1),Puntajes!$D$4,IF(AND(H583>Experiencia1,H583<=Experiencia2),Puntajes!$D$5,IF(AND(H583>Experiencia2,H583<=Experiencia3),Puntajes!$D$6,IF(H583>Experiencia3,Puntajes!$D$7,0)))))","v":""}]
[null,null,{"$f":"+'Capacidad Financiera'!B587","v":""},{"$f":"IF(ISERROR(VLOOKUP(C584,'Capacidad Financiera'!$B$12:$X$62720,2,0)),\"\",VLOOKUP(C584,'Capacidad Financiera'!$B$12:$X$3580,2,0))","v":0},{"$f":"IF(ISERROR(VLOOKUP(C584,'Capacidad Financiera'!$B$12:$X$62720,3,0)),\"\",VLOOKUP(C584,'Capacidad Financiera'!$B$12:$X$62720,3,0))","v":0},null,{"$f":"IF(OR(D584=\"\",E584=\"\",F584=\"\"),\"\",IF(C584<>\"\",IF(ISERROR(VLOOKUP($A$10,POA!$A$2:$D$25,2,0)),\"\",VLOOKUP($A$10,POA!$A$2:$D$25,2,0)),\"\"))","v":""},"",{"$f":"IF(OR(D584=\"\",E584=\"\",F584=\"\"),\"\",IF(AND(H584>0,H584<=Experiencia1),Puntajes!$D$4,IF(AND(H584>Experiencia1,H584<=Experiencia2),Puntajes!$D$5,IF(AND(H584>Experiencia2,H584<=Experiencia3),Puntajes!$D$6,IF(H584>Experiencia3,Puntajes!$D$7,0)))))","v":""}]
[null,null,{"$f":"+'Capacidad Financiera'!B588","v":""},{"$f":"IF(ISERROR(VLOOKUP(C585,'Capacidad Financiera'!$B$12:$X$62720,2,0)),\"\",VLOOKUP(C585,'Capacidad Financiera'!$B$12:$X$3580,2,0))","v":0},{"$f":"IF(ISERROR(VLOOKUP(C585,'Capacidad Financiera'!$B$12:$X$62720,3,0)),\"\",VLOOKUP(C585,'Capacidad Financiera'!$B$12:$X$62720,3,0))","v":0},null,{"$f":"IF(OR(D585=\"\",E585=\"\",F585=\"\"),\"\",IF(C585<>\"\",IF(ISERROR(VLOOKUP($A$10,POA!$A$2:$D$25,2,0)),\"\",VLOOKUP($A$10,POA!$A$2:$D$25,2,0)),\"\"))","v":""},"",{"$f":"IF(OR(D585=\"\",E585=\"\",F585=\"\"),\"\",IF(AND(H585>0,H585<=Experiencia1),Puntajes!$D$4,IF(AND(H585>Experiencia1,H585<=Experiencia2),Puntajes!$D$5,IF(AND(H585>Experiencia2,H585<=Experiencia3),Puntajes!$D$6,IF(H585>Experiencia3,Puntajes!$D$7,0)))))","v":""}]
[null,null,{"$f":"+'Capacidad Financiera'!B589","v":""},{"$f":"IF(ISERROR(VLOOKUP(C586,'Capacidad Financiera'!$B$12:$X$62720,2,0)),\"\",VLOOKUP(C586,'Capacidad Financiera'!$B$12:$X$3580,2,0))","v":0},{"$f":"IF(ISERROR(VLOOKUP(C586,'Capacidad Financiera'!$B$12:$X$62720,3,0)),\"\",VLOOKUP(C586,'Capacidad Financiera'!$B$12:$X$62720,3,0))","v":0},null,{"$f":"IF(OR(D586=\"\",E586=\"\",F586=\"\"),\"\",IF(C586<>\"\",IF(ISERROR(VLOOKUP($A$10,POA!$A$2:$D$25,2,0)),\"\",VLOOKUP($A$10,POA!$A$2:$D$25,2,0)),\"\"))","v":""},"",{"$f":"IF(OR(D586=\"\",E586=\"\",F586=\"\"),\"\",IF(AND(H586>0,H586<=Experiencia1),Puntajes!$D$4,IF(AND(H586>Experiencia1,H586<=Experiencia2),Puntajes!$D$5,IF(AND(H586>Experiencia2,H586<=Experiencia3),Puntajes!$D$6,IF(H586>Experiencia3,Puntajes!$D$7,0)))))","v":""}]
[null,null,{"$f":"+'Capacidad Financiera'!B590","v":""},{"$f":"IF(ISERROR(VLOOKUP(C587,'Capacidad Financiera'!$B$12:$X$62720,2,0)),\"\",VLOOKUP(C587,'Capacidad Financiera'!$B$12:$X$3580,2,0))","v":0},{"$f":"IF(ISERROR(VLOOKUP(C587,'Capacidad Financiera'!$B$12:$X$62720,3,0)),\"\",VLOOKUP(C587,'Capacidad Financiera'!$B$12:$X$62720,3,0))","v":0},null,{"$f":"IF(OR(D587=\"\",E587=\"\",F587=\"\"),\"\",IF(C587<>\"\",IF(ISERROR(VLOOKUP($A$10,POA!$A$2:$D$25,2,0)),\"\",VLOOKUP($A$10,POA!$A$2:$D$25,2,0)),\"\"))","v":""},"",{"$f":"IF(OR(D587=\"\",E587=\"\",F587=\"\"),\"\",IF(AND(H587>0,H587<=Experiencia1),Puntajes!$D$4,IF(AND(H587>Experiencia1,H587<=Experiencia2),Puntajes!$D$5,IF(AND(H587>Experiencia2,H587<=Experiencia3),Puntajes!$D$6,IF(H587>Experiencia3,Puntajes!$D$7,0)))))","v":""}]
[null,null,{"$f":"+'Capacidad Financiera'!B591","v":""},{"$f":"IF(ISERROR(VLOOKUP(C588,'Capacidad Financiera'!$B$12:$X$62720,2,0)),\"\",VLOOKUP(C588,'Capacidad Financiera'!$B$12:$X$3580,2,0))","v":0},{"$f":"IF(ISERROR(VLOOKUP(C588,'Capacidad Financiera'!$B$12:$X$62720,3,0)),\"\",VLOOKUP(C588,'Capacidad Financiera'!$B$12:$X$62720,3,0))","v":0},null,{"$f":"IF(OR(D588=\"\",E588=\"\",F588=\"\"),\"\",IF(C588<>\"\",IF(ISERROR(VLOOKUP($A$10,POA!$A$2:$D$25,2,0)),\"\",VLOOKUP($A$10,POA!$A$2:$D$25,2,0)),\"\"))","v":""},"",{"$f":"IF(OR(D588=\"\",E588=\"\",F588=\"\"),\"\",IF(AND(H588>0,H588<=Experiencia1),Puntajes!$D$4,IF(AND(H588>Experiencia1,H588<=Experiencia2),Puntajes!$D$5,IF(AND(H588>Experiencia2,H588<=Experiencia3),Puntajes!$D$6,IF(H588>Experiencia3,Puntajes!$D$7,0)))))","v":""}]
[null,null,{"$f":"+'Capacidad Financiera'!B592","v":""},{"$f":"IF(ISERROR(VLOOKUP(C589,'Capacidad Financiera'!$B$12:$X$62720,2,0)),\"\",VLOOKUP(C589,'Capacidad Financiera'!$B$12:$X$3580,2,0))","v":0},{"$f":"IF(ISERROR(VLOOKUP(C589,'Capacidad Financiera'!$B$12:$X$62720,3,0)),\"\",VLOOKUP(C589,'Capacidad Financiera'!$B$12:$X$62720,3,0))","v":0},null,{"$f":"IF(OR(D589=\"\",E589=\"\",F589=\"\"),\"\",IF(C589<>\"\",IF(ISERROR(VLOOKUP($A$10,POA!$A$2:$D$25,2,0)),\"\",VLOOKUP($A$10,POA!$A$2:$D$25,2,0)),\"\"))","v":""},"",{"$f":"IF(OR(D589=\"\",E589=\"\",F589=\"\"),\"\",IF(AND(H589>0,H589<=Experiencia1),Puntajes!$D$4,IF(AND(H589>Experiencia1,H589<=Experiencia2),Puntajes!$D$5,IF(AND(H589>Experiencia2,H589<=Experiencia3),Puntajes!$D$6,IF(H589>Experiencia3,Puntajes!$D$7,0)))))","v":""}]
[null,null,{"$f":"+'Capacidad Financiera'!B593","v":""},{"$f":"IF(ISERROR(VLOOKUP(C590,'Capacidad Financiera'!$B$12:$X$62720,2,0)),\"\",VLOOKUP(C590,'Capacidad Financiera'!$B$12:$X$3580,2,0))","v":0},{"$f":"IF(ISERROR(VLOOKUP(C590,'Capacidad Financiera'!$B$12:$X$62720,3,0)),\"\",VLOOKUP(C590,'Capacidad Financiera'!$B$12:$X$62720,3,0))","v":0},null,{"$f":"IF(OR(D590=\"\",E590=\"\",F590=\"\"),\"\",IF(C590<>\"\",IF(ISERROR(VLOOKUP($A$10,POA!$A$2:$D$25,2,0)),\"\",VLOOKUP($A$10,POA!$A$2:$D$25,2,0)),\"\"))","v":""},"",{"$f":"IF(OR(D590=\"\",E590=\"\",F590=\"\"),\"\",IF(AND(H590>0,H590<=Experiencia1),Puntajes!$D$4,IF(AND(H590>Experiencia1,H590<=Experiencia2),Puntajes!$D$5,IF(AND(H590>Experiencia2,H590<=Experiencia3),Puntajes!$D$6,IF(H590>Experiencia3,Puntajes!$D$7,0)))))","v":""}]
[null,null,{"$f":"+'Capacidad Financiera'!B594","v":""},{"$f":"IF(ISERROR(VLOOKUP(C591,'Capacidad Financiera'!$B$12:$X$62720,2,0)),\"\",VLOOKUP(C591,'Capacidad Financiera'!$B$12:$X$3580,2,0))","v":0},{"$f":"IF(ISERROR(VLOOKUP(C591,'Capacidad Financiera'!$B$12:$X$62720,3,0)),\"\",VLOOKUP(C591,'Capacidad Financiera'!$B$12:$X$62720,3,0))","v":0},null,{"$f":"IF(OR(D591=\"\",E591=\"\",F591=\"\"),\"\",IF(C591<>\"\",IF(ISERROR(VLOOKUP($A$10,POA!$A$2:$D$25,2,0)),\"\",VLOOKUP($A$10,POA!$A$2:$D$25,2,0)),\"\"))","v":""},"",{"$f":"IF(OR(D591=\"\",E591=\"\",F591=\"\"),\"\",IF(AND(H591>0,H591<=Experiencia1),Puntajes!$D$4,IF(AND(H591>Experiencia1,H591<=Experiencia2),Puntajes!$D$5,IF(AND(H591>Experiencia2,H591<=Experiencia3),Puntajes!$D$6,IF(H591>Experiencia3,Puntajes!$D$7,0)))))","v":""}]
[null,null,54,{"$f":"IF(ISERROR(VLOOKUP(C592,'Capacidad Financiera'!$B$12:$X$62720,2,0)),\"\",VLOOKUP(C592,'Capacidad Financiera'!$B$12:$X$3580,2,0))","v":0},{"$f":"IF(ISERROR(VLOOKUP(C592,'Capacidad Financiera'!$B$12:$X$62720,3,0)),\"\",VLOOKUP(C592,'Capacidad Financiera'!$B$12:$X$62720,3,0))","v":""},null,{"$f":"IF(OR(D592=\"\",E592=\"\",F592=\"\"),\"\",IF(C593=\"\",IF(C592<>\"\",IF(ISERROR(VLOOKUP($A$10,POA!$A$2:$D$25,2,0)),\"\",VLOOKUP($A$10,POA!$A$2:$D$25,2,0)),\"\"),\"\"))","v":""},{"$f":"IF(OR(D592=\"\",E592=\"\",F592=\"\"),\"\",IF(C593=\"\",IF(C592<>\"\",F592/G592,\"\"),\"\"))","v":""},{"$f":"IF(C593=\"\",IF(F592=\"\",\"\",IF(AND(H592>0,H592<=Experiencia1),Puntajes!$D$4,IF(AND(H592>Experiencia1,H592<=Experiencia2),Puntajes!$D$5,IF(AND(H592>Experiencia2,H592<=Experiencia3),Puntajes!$D$6,IF(H592>Experiencia3,Puntajes!$D$7,0))))),\"\")","v":""}]
[null,null,{"$f":"+'Capacidad Financiera'!B596","v":""},{"$f":"IF(ISERROR(VLOOKUP(C593,'Capacidad Financiera'!$B$12:$X$62720,2,0)),\"\",VLOOKUP(C593,'Capacidad Financiera'!$B$12:$X$3580,2,0))","v":0},{"$f":"IF(ISERROR(VLOOKUP(C593,'Capacidad Financiera'!$B$12:$X$62720,3,0)),\"\",VLOOKUP(C593,'Capacidad Financiera'!$B$12:$X$62720,3,0))","v":0},null,{"$f":"IF(OR(D593=\"\",E593=\"\",F593=\"\"),\"\",IF(C593<>\"\",IF(ISERROR(VLOOKUP($A$10,POA!$A$2:$D$25,2,0)),\"\",VLOOKUP($A$10,POA!$A$2:$D$25,2,0)),\"\"))","v":""},{"$f":"IF(OR(D593=\"\",E593=\"\",F593=\"\"),\"\",IF(C593<>\"\",F593/(G593*E593),\"\"))","v":""},{"$f":"IF(OR(D593=\"\",E593=\"\",F593=\"\"),\"\",IF(AND(H593>0,H593<=Experiencia1),Puntajes!$D$4,IF(AND(H593>Experiencia1,H593<=Experiencia2),Puntajes!$D$5,IF(AND(H593>Experiencia2,H593<=Experiencia3),Puntajes!$D$6,IF(H593>Experiencia3,Puntajes!$D$7,0)))))","v":""}]
[null,null,{"$f":"+'Capacidad Financiera'!B597","v":""},{"$f":"IF(ISERROR(VLOOKUP(C594,'Capacidad Financiera'!$B$12:$X$62720,2,0)),\"\",VLOOKUP(C594,'Capacidad Financiera'!$B$12:$X$3580,2,0))","v":0},{"$f":"IF(ISERROR(VLOOKUP(C594,'Capacidad Financiera'!$B$12:$X$62720,3,0)),\"\",VLOOKUP(C594,'Capacidad Financiera'!$B$12:$X$62720,3,0))","v":0},null,{"$f":"IF(OR(D594=\"\",E594=\"\",F594=\"\"),\"\",IF(C594<>\"\",IF(ISERROR(VLOOKUP($A$10,POA!$A$2:$D$25,2,0)),\"\",VLOOKUP($A$10,POA!$A$2:$D$25,2,0)),\"\"))","v":""},{"$f":"IF(OR(D594=\"\",E594=\"\",F594=\"\"),\"\",IF(C594<>\"\",F594/(G594*E594),\"\"))","v":""},{"$f":"IF(OR(D594=\"\",E594=\"\",F594=\"\"),\"\",IF(AND(H594>0,H594<=Experiencia1),Puntajes!$D$4,IF(AND(H594>Experiencia1,H594<=Experiencia2),Puntajes!$D$5,IF(AND(H594>Experiencia2,H594<=Experiencia3),Puntajes!$D$6,IF(H594>Experiencia3,Puntajes!$D$7,0)))))","v":""}]
[null,null,{"$f":"+'Capacidad Financiera'!B598","v":""},{"$f":"IF(ISERROR(VLOOKUP(C595,'Capacidad Financiera'!$B$12:$X$62720,2,0)),\"\",VLOOKUP(C595,'Capacidad Financiera'!$B$12:$X$3580,2,0))","v":0},{"$f":"IF(ISERROR(VLOOKUP(C595,'Capacidad Financiera'!$B$12:$X$62720,3,0)),\"\",VLOOKUP(C595,'Capacidad Financiera'!$B$12:$X$62720,3,0))","v":0},null,{"$f":"IF(OR(D595=\"\",E595=\"\",F595=\"\"),\"\",IF(C595<>\"\",IF(ISERROR(VLOOKUP($A$10,POA!$A$2:$D$25,2,0)),\"\",VLOOKUP($A$10,POA!$A$2:$D$25,2,0)),\"\"))","v":""},"",{"$f":"IF(OR(D595=\"\",E595=\"\",F595=\"\"),\"\",IF(AND(H595>0,H595<=Experiencia1),Puntajes!$D$4,IF(AND(H595>Experiencia1,H595<=Experiencia2),Puntajes!$D$5,IF(AND(H595>Experiencia2,H595<=Experiencia3),Puntajes!$D$6,IF(H595>Experiencia3,Puntajes!$D$7,0)))))","v":""}]
[null,null,{"$f":"+'Capacidad Financiera'!B599","v":""},{"$f":"IF(ISERROR(VLOOKUP(C596,'Capacidad Financiera'!$B$12:$X$62720,2,0)),\"\",VLOOKUP(C596,'Capacidad Financiera'!$B$12:$X$3580,2,0))","v":0},{"$f":"IF(ISERROR(VLOOKUP(C596,'Capacidad Financiera'!$B$12:$X$62720,3,0)),\"\",VLOOKUP(C596,'Capacidad Financiera'!$B$12:$X$62720,3,0))","v":0},null,{"$f":"IF(OR(D596=\"\",E596=\"\",F596=\"\"),\"\",IF(C596<>\"\",IF(ISERROR(VLOOKUP($A$10,POA!$A$2:$D$25,2,0)),\"\",VLOOKUP($A$10,POA!$A$2:$D$25,2,0)),\"\"))","v":""},"",{"$f":"IF(OR(D596=\"\",E596=\"\",F596=\"\"),\"\",IF(AND(H596>0,H596<=Experiencia1),Puntajes!$D$4,IF(AND(H596>Experiencia1,H596<=Experiencia2),Puntajes!$D$5,IF(AND(H596>Experiencia2,H596<=Experiencia3),Puntajes!$D$6,IF(H596>Experiencia3,Puntajes!$D$7,0)))))","v":""}]
[null,null,{"$f":"+'Capacidad Financiera'!B600","v":""},{"$f":"IF(ISERROR(VLOOKUP(C597,'Capacidad Financiera'!$B$12:$X$62720,2,0)),\"\",VLOOKUP(C597,'Capacidad Financiera'!$B$12:$X$3580,2,0))","v":0},{"$f":"IF(ISERROR(VLOOKUP(C597,'Capacidad Financiera'!$B$12:$X$62720,3,0)),\"\",VLOOKUP(C597,'Capacidad Financiera'!$B$12:$X$62720,3,0))","v":0},null,{"$f":"IF(OR(D597=\"\",E597=\"\",F597=\"\"),\"\",IF(C597<>\"\",IF(ISERROR(VLOOKUP($A$10,POA!$A$2:$D$25,2,0)),\"\",VLOOKUP($A$10,POA!$A$2:$D$25,2,0)),\"\"))","v":""},"",{"$f":"IF(OR(D597=\"\",E597=\"\",F597=\"\"),\"\",IF(AND(H597>0,H597<=Experiencia1),Puntajes!$D$4,IF(AND(H597>Experiencia1,H597<=Experiencia2),Puntajes!$D$5,IF(AND(H597>Experiencia2,H597<=Experiencia3),Puntajes!$D$6,IF(H597>Experiencia3,Puntajes!$D$7,0)))))","v":""}]
[null,null,{"$f":"+'Capacidad Financiera'!B601","v":""},{"$f":"IF(ISERROR(VLOOKUP(C598,'Capacidad Financiera'!$B$12:$X$62720,2,0)),\"\",VLOOKUP(C598,'Capacidad Financiera'!$B$12:$X$3580,2,0))","v":0},{"$f":"IF(ISERROR(VLOOKUP(C598,'Capacidad Financiera'!$B$12:$X$62720,3,0)),\"\",VLOOKUP(C598,'Capacidad Financiera'!$B$12:$X$62720,3,0))","v":0},null,{"$f":"IF(OR(D598=\"\",E598=\"\",F598=\"\"),\"\",IF(C598<>\"\",IF(ISERROR(VLOOKUP($A$10,POA!$A$2:$D$25,2,0)),\"\",VLOOKUP($A$10,POA!$A$2:$D$25,2,0)),\"\"))","v":""},"",{"$f":"IF(OR(D598=\"\",E598=\"\",F598=\"\"),\"\",IF(AND(H598>0,H598<=Experiencia1),Puntajes!$D$4,IF(AND(H598>Experiencia1,H598<=Experiencia2),Puntajes!$D$5,IF(AND(H598>Experiencia2,H598<=Experiencia3),Puntajes!$D$6,IF(H598>Experiencia3,Puntajes!$D$7,0)))))","v":""}]
[null,null,{"$f":"+'Capacidad Financiera'!B602","v":""},{"$f":"IF(ISERROR(VLOOKUP(C599,'Capacidad Financiera'!$B$12:$X$62720,2,0)),\"\",VLOOKUP(C599,'Capacidad Financiera'!$B$12:$X$3580,2,0))","v":0},{"$f":"IF(ISERROR(VLOOKUP(C599,'Capacidad Financiera'!$B$12:$X$62720,3,0)),\"\",VLOOKUP(C599,'Capacidad Financiera'!$B$12:$X$62720,3,0))","v":0},null,{"$f":"IF(OR(D599=\"\",E599=\"\",F599=\"\"),\"\",IF(C599<>\"\",IF(ISERROR(VLOOKUP($A$10,POA!$A$2:$D$25,2,0)),\"\",VLOOKUP($A$10,POA!$A$2:$D$25,2,0)),\"\"))","v":""},"",{"$f":"IF(OR(D599=\"\",E599=\"\",F599=\"\"),\"\",IF(AND(H599>0,H599<=Experiencia1),Puntajes!$D$4,IF(AND(H599>Experiencia1,H599<=Experiencia2),Puntajes!$D$5,IF(AND(H599>Experiencia2,H599<=Experiencia3),Puntajes!$D$6,IF(H599>Experiencia3,Puntajes!$D$7,0)))))","v":""}]
[null,null,{"$f":"+'Capacidad Financiera'!B603","v":""},{"$f":"IF(ISERROR(VLOOKUP(C600,'Capacidad Financiera'!$B$12:$X$62720,2,0)),\"\",VLOOKUP(C600,'Capacidad Financiera'!$B$12:$X$3580,2,0))","v":0},{"$f":"IF(ISERROR(VLOOKUP(C600,'Capacidad Financiera'!$B$12:$X$62720,3,0)),\"\",VLOOKUP(C600,'Capacidad Financiera'!$B$12:$X$62720,3,0))","v":0},null,{"$f":"IF(OR(D600=\"\",E600=\"\",F600=\"\"),\"\",IF(C600<>\"\",IF(ISERROR(VLOOKUP($A$10,POA!$A$2:$D$25,2,0)),\"\",VLOOKUP($A$10,POA!$A$2:$D$25,2,0)),\"\"))","v":""},"",{"$f":"IF(OR(D600=\"\",E600=\"\",F600=\"\"),\"\",IF(AND(H600>0,H600<=Experiencia1),Puntajes!$D$4,IF(AND(H600>Experiencia1,H600<=Experiencia2),Puntajes!$D$5,IF(AND(H600>Experiencia2,H600<=Experiencia3),Puntajes!$D$6,IF(H600>Experiencia3,Puntajes!$D$7,0)))))","v":""}]
[null,null,{"$f":"+'Capacidad Financiera'!B604","v":""},{"$f":"IF(ISERROR(VLOOKUP(C601,'Capacidad Financiera'!$B$12:$X$62720,2,0)),\"\",VLOOKUP(C601,'Capacidad Financiera'!$B$12:$X$3580,2,0))","v":0},{"$f":"IF(ISERROR(VLOOKUP(C601,'Capacidad Financiera'!$B$12:$X$62720,3,0)),\"\",VLOOKUP(C601,'Capacidad Financiera'!$B$12:$X$62720,3,0))","v":0},null,{"$f":"IF(OR(D601=\"\",E601=\"\",F601=\"\"),\"\",IF(C601<>\"\",IF(ISERROR(VLOOKUP($A$10,POA!$A$2:$D$25,2,0)),\"\",VLOOKUP($A$10,POA!$A$2:$D$25,2,0)),\"\"))","v":""},"",{"$f":"IF(OR(D601=\"\",E601=\"\",F601=\"\"),\"\",IF(AND(H601>0,H601<=Experiencia1),Puntajes!$D$4,IF(AND(H601>Experiencia1,H601<=Experiencia2),Puntajes!$D$5,IF(AND(H601>Experiencia2,H601<=Experiencia3),Puntajes!$D$6,IF(H601>Experiencia3,Puntajes!$D$7,0)))))","v":""}]
[null,null,{"$f":"+'Capacidad Financiera'!B605","v":""},{"$f":"IF(ISERROR(VLOOKUP(C602,'Capacidad Financiera'!$B$12:$X$62720,2,0)),\"\",VLOOKUP(C602,'Capacidad Financiera'!$B$12:$X$3580,2,0))","v":0},{"$f":"IF(ISERROR(VLOOKUP(C602,'Capacidad Financiera'!$B$12:$X$62720,3,0)),\"\",VLOOKUP(C602,'Capacidad Financiera'!$B$12:$X$62720,3,0))","v":0},null,{"$f":"IF(OR(D602=\"\",E602=\"\",F602=\"\"),\"\",IF(C602<>\"\",IF(ISERROR(VLOOKUP($A$10,POA!$A$2:$D$25,2,0)),\"\",VLOOKUP($A$10,POA!$A$2:$D$25,2,0)),\"\"))","v":""},"",{"$f":"IF(OR(D602=\"\",E602=\"\",F602=\"\"),\"\",IF(AND(H602>0,H602<=Experiencia1),Puntajes!$D$4,IF(AND(H602>Experiencia1,H602<=Experiencia2),Puntajes!$D$5,IF(AND(H602>Experiencia2,H602<=Experiencia3),Puntajes!$D$6,IF(H602>Experiencia3,Puntajes!$D$7,0)))))","v":""}]
[null,null,55,{"$f":"IF(ISERROR(VLOOKUP(C603,'Capacidad Financiera'!$B$12:$X$62720,2,0)),\"\",VLOOKUP(C603,'Capacidad Financiera'!$B$12:$X$3580,2,0))","v":0},{"$f":"IF(ISERROR(VLOOKUP(C603,'Capacidad Financiera'!$B$12:$X$62720,3,0)),\"\",VLOOKUP(C603,'Capacidad Financiera'!$B$12:$X$62720,3,0))","v":""},null,{"$f":"IF(OR(D603=\"\",E603=\"\",F603=\"\"),\"\",IF(C604=\"\",IF(C603<>\"\",IF(ISERROR(VLOOKUP($A$10,POA!$A$2:$D$25,2,0)),\"\",VLOOKUP($A$10,POA!$A$2:$D$25,2,0)),\"\"),\"\"))","v":""},{"$f":"IF(OR(D603=\"\",E603=\"\",F603=\"\"),\"\",IF(C604=\"\",IF(C603<>\"\",F603/G603,\"\"),\"\"))","v":""},{"$f":"IF(C604=\"\",IF(F603=\"\",\"\",IF(AND(H603>0,H603<=Experiencia1),Puntajes!$D$4,IF(AND(H603>Experiencia1,H603<=Experiencia2),Puntajes!$D$5,IF(AND(H603>Experiencia2,H603<=Experiencia3),Puntajes!$D$6,IF(H603>Experiencia3,Puntajes!$D$7,0))))),\"\")","v":""}]
[null,null,{"$f":"+'Capacidad Financiera'!B607","v":""},{"$f":"IF(ISERROR(VLOOKUP(C604,'Capacidad Financiera'!$B$12:$X$62720,2,0)),\"\",VLOOKUP(C604,'Capacidad Financiera'!$B$12:$X$3580,2,0))","v":0},{"$f":"IF(ISERROR(VLOOKUP(C604,'Capacidad Financiera'!$B$12:$X$62720,3,0)),\"\",VLOOKUP(C604,'Capacidad Financiera'!$B$12:$X$62720,3,0))","v":0},null,{"$f":"IF(OR(D604=\"\",E604=\"\",F604=\"\"),\"\",IF(C604<>\"\",IF(ISERROR(VLOOKUP($A$10,POA!$A$2:$D$25,2,0)),\"\",VLOOKUP($A$10,POA!$A$2:$D$25,2,0)),\"\"))","v":""},{"$f":"IF(OR(D604=\"\",E604=\"\",F604=\"\"),\"\",IF(C604<>\"\",F604/(G604*E604),\"\"))","v":""},{"$f":"IF(OR(D604=\"\",E604=\"\",F604=\"\"),\"\",IF(AND(H604>0,H604<=Experiencia1),Puntajes!$D$4,IF(AND(H604>Experiencia1,H604<=Experiencia2),Puntajes!$D$5,IF(AND(H604>Experiencia2,H604<=Experiencia3),Puntajes!$D$6,IF(H604>Experiencia3,Puntajes!$D$7,0)))))","v":""}]
[null,null,{"$f":"+'Capacidad Financiera'!B608","v":""},{"$f":"IF(ISERROR(VLOOKUP(C605,'Capacidad Financiera'!$B$12:$X$62720,2,0)),\"\",VLOOKUP(C605,'Capacidad Financiera'!$B$12:$X$3580,2,0))","v":0},{"$f":"IF(ISERROR(VLOOKUP(C605,'Capacidad Financiera'!$B$12:$X$62720,3,0)),\"\",VLOOKUP(C605,'Capacidad Financiera'!$B$12:$X$62720,3,0))","v":0},null,{"$f":"IF(OR(D605=\"\",E605=\"\",F605=\"\"),\"\",IF(C605<>\"\",IF(ISERROR(VLOOKUP($A$10,POA!$A$2:$D$25,2,0)),\"\",VLOOKUP($A$10,POA!$A$2:$D$25,2,0)),\"\"))","v":""},{"$f":"IF(OR(D605=\"\",E605=\"\",F605=\"\"),\"\",IF(C605<>\"\",F605/(G605*E605),\"\"))","v":""},{"$f":"IF(OR(D605=\"\",E605=\"\",F605=\"\"),\"\",IF(AND(H605>0,H605<=Experiencia1),Puntajes!$D$4,IF(AND(H605>Experiencia1,H605<=Experiencia2),Puntajes!$D$5,IF(AND(H605>Experiencia2,H605<=Experiencia3),Puntajes!$D$6,IF(H605>Experiencia3,Puntajes!$D$7,0)))))","v":""}]
[null,null,{"$f":"+'Capacidad Financiera'!B609","v":""},{"$f":"IF(ISERROR(VLOOKUP(C606,'Capacidad Financiera'!$B$12:$X$62720,2,0)),\"\",VLOOKUP(C606,'Capacidad Financiera'!$B$12:$X$3580,2,0))","v":0},{"$f":"IF(ISERROR(VLOOKUP(C606,'Capacidad Financiera'!$B$12:$X$62720,3,0)),\"\",VLOOKUP(C606,'Capacidad Financiera'!$B$12:$X$62720,3,0))","v":0},null,{"$f":"IF(OR(D606=\"\",E606=\"\",F606=\"\"),\"\",IF(C606<>\"\",IF(ISERROR(VLOOKUP($A$10,POA!$A$2:$D$25,2,0)),\"\",VLOOKUP($A$10,POA!$A$2:$D$25,2,0)),\"\"))","v":""},"",{"$f":"IF(OR(D606=\"\",E606=\"\",F606=\"\"),\"\",IF(AND(H606>0,H606<=Experiencia1),Puntajes!$D$4,IF(AND(H606>Experiencia1,H606<=Experiencia2),Puntajes!$D$5,IF(AND(H606>Experiencia2,H606<=Experiencia3),Puntajes!$D$6,IF(H606>Experiencia3,Puntajes!$D$7,0)))))","v":""}]
[null,null,{"$f":"+'Capacidad Financiera'!B610","v":""},{"$f":"IF(ISERROR(VLOOKUP(C607,'Capacidad Financiera'!$B$12:$X$62720,2,0)),\"\",VLOOKUP(C607,'Capacidad Financiera'!$B$12:$X$3580,2,0))","v":0},{"$f":"IF(ISERROR(VLOOKUP(C607,'Capacidad Financiera'!$B$12:$X$62720,3,0)),\"\",VLOOKUP(C607,'Capacidad Financiera'!$B$12:$X$62720,3,0))","v":0},null,{"$f":"IF(OR(D607=\"\",E607=\"\",F607=\"\"),\"\",IF(C607<>\"\",IF(ISERROR(VLOOKUP($A$10,POA!$A$2:$D$25,2,0)),\"\",VLOOKUP($A$10,POA!$A$2:$D$25,2,0)),\"\"))","v":""},"",{"$f":"IF(OR(D607=\"\",E607=\"\",F607=\"\"),\"\",IF(AND(H607>0,H607<=Experiencia1),Puntajes!$D$4,IF(AND(H607>Experiencia1,H607<=Experiencia2),Puntajes!$D$5,IF(AND(H607>Experiencia2,H607<=Experiencia3),Puntajes!$D$6,IF(H607>Experiencia3,Puntajes!$D$7,0)))))","v":""}]
[null,null,{"$f":"+'Capacidad Financiera'!B611","v":""},{"$f":"IF(ISERROR(VLOOKUP(C608,'Capacidad Financiera'!$B$12:$X$62720,2,0)),\"\",VLOOKUP(C608,'Capacidad Financiera'!$B$12:$X$3580,2,0))","v":0},{"$f":"IF(ISERROR(VLOOKUP(C608,'Capacidad Financiera'!$B$12:$X$62720,3,0)),\"\",VLOOKUP(C608,'Capacidad Financiera'!$B$12:$X$62720,3,0))","v":0},null,{"$f":"IF(OR(D608=\"\",E608=\"\",F608=\"\"),\"\",IF(C608<>\"\",IF(ISERROR(VLOOKUP($A$10,POA!$A$2:$D$25,2,0)),\"\",VLOOKUP($A$10,POA!$A$2:$D$25,2,0)),\"\"))","v":""},"",{"$f":"IF(OR(D608=\"\",E608=\"\",F608=\"\"),\"\",IF(AND(H608>0,H608<=Experiencia1),Puntajes!$D$4,IF(AND(H608>Experiencia1,H608<=Experiencia2),Puntajes!$D$5,IF(AND(H608>Experiencia2,H608<=Experiencia3),Puntajes!$D$6,IF(H608>Experiencia3,Puntajes!$D$7,0)))))","v":""}]
[null,null,{"$f":"+'Capacidad Financiera'!B612","v":""},{"$f":"IF(ISERROR(VLOOKUP(C609,'Capacidad Financiera'!$B$12:$X$62720,2,0)),\"\",VLOOKUP(C609,'Capacidad Financiera'!$B$12:$X$3580,2,0))","v":0},{"$f":"IF(ISERROR(VLOOKUP(C609,'Capacidad Financiera'!$B$12:$X$62720,3,0)),\"\",VLOOKUP(C609,'Capacidad Financiera'!$B$12:$X$62720,3,0))","v":0},null,{"$f":"IF(OR(D609=\"\",E609=\"\",F609=\"\"),\"\",IF(C609<>\"\",IF(ISERROR(VLOOKUP($A$10,POA!$A$2:$D$25,2,0)),\"\",VLOOKUP($A$10,POA!$A$2:$D$25,2,0)),\"\"))","v":""},"",{"$f":"IF(OR(D609=\"\",E609=\"\",F609=\"\"),\"\",IF(AND(H609>0,H609<=Experiencia1),Puntajes!$D$4,IF(AND(H609>Experiencia1,H609<=Experiencia2),Puntajes!$D$5,IF(AND(H609>Experiencia2,H609<=Experiencia3),Puntajes!$D$6,IF(H609>Experiencia3,Puntajes!$D$7,0)))))","v":""}]
[null,null,{"$f":"+'Capacidad Financiera'!B613","v":""},{"$f":"IF(ISERROR(VLOOKUP(C610,'Capacidad Financiera'!$B$12:$X$62720,2,0)),\"\",VLOOKUP(C610,'Capacidad Financiera'!$B$12:$X$3580,2,0))","v":0},{"$f":"IF(ISERROR(VLOOKUP(C610,'Capacidad Financiera'!$B$12:$X$62720,3,0)),\"\",VLOOKUP(C610,'Capacidad Financiera'!$B$12:$X$62720,3,0))","v":0},null,{"$f":"IF(OR(D610=\"\",E610=\"\",F610=\"\"),\"\",IF(C610<>\"\",IF(ISERROR(VLOOKUP($A$10,POA!$A$2:$D$25,2,0)),\"\",VLOOKUP($A$10,POA!$A$2:$D$25,2,0)),\"\"))","v":""},"",{"$f":"IF(OR(D610=\"\",E610=\"\",F610=\"\"),\"\",IF(AND(H610>0,H610<=Experiencia1),Puntajes!$D$4,IF(AND(H610>Experiencia1,H610<=Experiencia2),Puntajes!$D$5,IF(AND(H610>Experiencia2,H610<=Experiencia3),Puntajes!$D$6,IF(H610>Experiencia3,Puntajes!$D$7,0)))))","v":""}]
[null,null,{"$f":"+'Capacidad Financiera'!B614","v":""},{"$f":"IF(ISERROR(VLOOKUP(C611,'Capacidad Financiera'!$B$12:$X$62720,2,0)),\"\",VLOOKUP(C611,'Capacidad Financiera'!$B$12:$X$3580,2,0))","v":0},{"$f":"IF(ISERROR(VLOOKUP(C611,'Capacidad Financiera'!$B$12:$X$62720,3,0)),\"\",VLOOKUP(C611,'Capacidad Financiera'!$B$12:$X$62720,3,0))","v":0},null,{"$f":"IF(OR(D611=\"\",E611=\"\",F611=\"\"),\"\",IF(C611<>\"\",IF(ISERROR(VLOOKUP($A$10,POA!$A$2:$D$25,2,0)),\"\",VLOOKUP($A$10,POA!$A$2:$D$25,2,0)),\"\"))","v":""},"",{"$f":"IF(OR(D611=\"\",E611=\"\",F611=\"\"),\"\",IF(AND(H611>0,H611<=Experiencia1),Puntajes!$D$4,IF(AND(H611>Experiencia1,H611<=Experiencia2),Puntajes!$D$5,IF(AND(H611>Experiencia2,H611<=Experiencia3),Puntajes!$D$6,IF(H611>Experiencia3,Puntajes!$D$7,0)))))","v":""}]
[null,null,{"$f":"+'Capacidad Financiera'!B615","v":""},{"$f":"IF(ISERROR(VLOOKUP(C612,'Capacidad Financiera'!$B$12:$X$62720,2,0)),\"\",VLOOKUP(C612,'Capacidad Financiera'!$B$12:$X$3580,2,0))","v":0},{"$f":"IF(ISERROR(VLOOKUP(C612,'Capacidad Financiera'!$B$12:$X$62720,3,0)),\"\",VLOOKUP(C612,'Capacidad Financiera'!$B$12:$X$62720,3,0))","v":0},null,{"$f":"IF(OR(D612=\"\",E612=\"\",F612=\"\"),\"\",IF(C612<>\"\",IF(ISERROR(VLOOKUP($A$10,POA!$A$2:$D$25,2,0)),\"\",VLOOKUP($A$10,POA!$A$2:$D$25,2,0)),\"\"))","v":""},"",{"$f":"IF(OR(D612=\"\",E612=\"\",F612=\"\"),\"\",IF(AND(H612>0,H612<=Experiencia1),Puntajes!$D$4,IF(AND(H612>Experiencia1,H612<=Experiencia2),Puntajes!$D$5,IF(AND(H612>Experiencia2,H612<=Experiencia3),Puntajes!$D$6,IF(H612>Experiencia3,Puntajes!$D$7,0)))))","v":""}]
[null,null,{"$f":"+'Capacidad Financiera'!B616","v":""},{"$f":"IF(ISERROR(VLOOKUP(C613,'Capacidad Financiera'!$B$12:$X$62720,2,0)),\"\",VLOOKUP(C613,'Capacidad Financiera'!$B$12:$X$3580,2,0))","v":0},{"$f":"IF(ISERROR(VLOOKUP(C613,'Capacidad Financiera'!$B$12:$X$62720,3,0)),\"\",VLOOKUP(C613,'Capacidad Financiera'!$B$12:$X$62720,3,0))","v":0},null,{"$f":"IF(OR(D613=\"\",E613=\"\",F613=\"\"),\"\",IF(C613<>\"\",IF(ISERROR(VLOOKUP($A$10,POA!$A$2:$D$25,2,0)),\"\",VLOOKUP($A$10,POA!$A$2:$D$25,2,0)),\"\"))","v":""},"",{"$f":"IF(OR(D613=\"\",E613=\"\",F613=\"\"),\"\",IF(AND(H613>0,H613<=Experiencia1),Puntajes!$D$4,IF(AND(H613>Experiencia1,H613<=Experiencia2),Puntajes!$D$5,IF(AND(H613>Experiencia2,H613<=Experiencia3),Puntajes!$D$6,IF(H613>Experiencia3,Puntajes!$D$7,0)))))","v":""}]
[null,null,56,{"$f":"IF(ISERROR(VLOOKUP(C614,'Capacidad Financiera'!$B$12:$X$62720,2,0)),\"\",VLOOKUP(C614,'Capacidad Financiera'!$B$12:$X$3580,2,0))","v":0},{"$f":"IF(ISERROR(VLOOKUP(C614,'Capacidad Financiera'!$B$12:$X$62720,3,0)),\"\",VLOOKUP(C614,'Capacidad Financiera'!$B$12:$X$62720,3,0))","v":""},null,{"$f":"IF(OR(D614=\"\",E614=\"\",F614=\"\"),\"\",IF(C615=\"\",IF(C614<>\"\",IF(ISERROR(VLOOKUP($A$10,POA!$A$2:$D$25,2,0)),\"\",VLOOKUP($A$10,POA!$A$2:$D$25,2,0)),\"\"),\"\"))","v":""},{"$f":"IF(OR(D614=\"\",E614=\"\",F614=\"\"),\"\",IF(C615=\"\",IF(C614<>\"\",F614/G614,\"\"),\"\"))","v":""},{"$f":"IF(C615=\"\",IF(F614=\"\",\"\",IF(AND(H614>0,H614<=Experiencia1),Puntajes!$D$4,IF(AND(H614>Experiencia1,H614<=Experiencia2),Puntajes!$D$5,IF(AND(H614>Experiencia2,H614<=Experiencia3),Puntajes!$D$6,IF(H614>Experiencia3,Puntajes!$D$7,0))))),\"\")","v":""}]
[null,null,{"$f":"+'Capacidad Financiera'!B618","v":""},{"$f":"IF(ISERROR(VLOOKUP(C615,'Capacidad Financiera'!$B$12:$X$62720,2,0)),\"\",VLOOKUP(C615,'Capacidad Financiera'!$B$12:$X$3580,2,0))","v":0},{"$f":"IF(ISERROR(VLOOKUP(C615,'Capacidad Financiera'!$B$12:$X$62720,3,0)),\"\",VLOOKUP(C615,'Capacidad Financiera'!$B$12:$X$62720,3,0))","v":0},null,{"$f":"IF(OR(D615=\"\",E615=\"\",F615=\"\"),\"\",IF(C615<>\"\",IF(ISERROR(VLOOKUP($A$10,POA!$A$2:$D$25,2,0)),\"\",VLOOKUP($A$10,POA!$A$2:$D$25,2,0)),\"\"))","v":""},{"$f":"IF(OR(D615=\"\",E615=\"\",F615=\"\"),\"\",IF(C615<>\"\",F615/(G615*E615),\"\"))","v":""},{"$f":"IF(OR(D615=\"\",E615=\"\",F615=\"\"),\"\",IF(AND(H615>0,H615<=Experiencia1),Puntajes!$D$4,IF(AND(H615>Experiencia1,H615<=Experiencia2),Puntajes!$D$5,IF(AND(H615>Experiencia2,H615<=Experiencia3),Puntajes!$D$6,IF(H615>Experiencia3,Puntajes!$D$7,0)))))","v":""}]
[null,null,{"$f":"+'Capacidad Financiera'!B619","v":""},{"$f":"IF(ISERROR(VLOOKUP(C616,'Capacidad Financiera'!$B$12:$X$62720,2,0)),\"\",VLOOKUP(C616,'Capacidad Financiera'!$B$12:$X$3580,2,0))","v":0},{"$f":"IF(ISERROR(VLOOKUP(C616,'Capacidad Financiera'!$B$12:$X$62720,3,0)),\"\",VLOOKUP(C616,'Capacidad Financiera'!$B$12:$X$62720,3,0))","v":0},null,{"$f":"IF(OR(D616=\"\",E616=\"\",F616=\"\"),\"\",IF(C616<>\"\",IF(ISERROR(VLOOKUP($A$10,POA!$A$2:$D$25,2,0)),\"\",VLOOKUP($A$10,POA!$A$2:$D$25,2,0)),\"\"))","v":""},{"$f":"IF(OR(D616=\"\",E616=\"\",F616=\"\"),\"\",IF(C616<>\"\",F616/(G616*E616),\"\"))","v":""},{"$f":"IF(OR(D616=\"\",E616=\"\",F616=\"\"),\"\",IF(AND(H616>0,H616<=Experiencia1),Puntajes!$D$4,IF(AND(H616>Experiencia1,H616<=Experiencia2),Puntajes!$D$5,IF(AND(H616>Experiencia2,H616<=Experiencia3),Puntajes!$D$6,IF(H616>Experiencia3,Puntajes!$D$7,0)))))","v":""}]
[null,null,{"$f":"+'Capacidad Financiera'!B620","v":""},{"$f":"IF(ISERROR(VLOOKUP(C617,'Capacidad Financiera'!$B$12:$X$62720,2,0)),\"\",VLOOKUP(C617,'Capacidad Financiera'!$B$12:$X$3580,2,0))","v":0},{"$f":"IF(ISERROR(VLOOKUP(C617,'Capacidad Financiera'!$B$12:$X$62720,3,0)),\"\",VLOOKUP(C617,'Capacidad Financiera'!$B$12:$X$62720,3,0))","v":0},null,{"$f":"IF(OR(D617=\"\",E617=\"\",F617=\"\"),\"\",IF(C617<>\"\",IF(ISERROR(VLOOKUP($A$10,POA!$A$2:$D$25,2,0)),\"\",VLOOKUP($A$10,POA!$A$2:$D$25,2,0)),\"\"))","v":""},"",{"$f":"IF(OR(D617=\"\",E617=\"\",F617=\"\"),\"\",IF(AND(H617>0,H617<=Experiencia1),Puntajes!$D$4,IF(AND(H617>Experiencia1,H617<=Experiencia2),Puntajes!$D$5,IF(AND(H617>Experiencia2,H617<=Experiencia3),Puntajes!$D$6,IF(H617>Experiencia3,Puntajes!$D$7,0)))))","v":""}]
[null,null,{"$f":"+'Capacidad Financiera'!B621","v":""},{"$f":"IF(ISERROR(VLOOKUP(C618,'Capacidad Financiera'!$B$12:$X$62720,2,0)),\"\",VLOOKUP(C618,'Capacidad Financiera'!$B$12:$X$3580,2,0))","v":0},{"$f":"IF(ISERROR(VLOOKUP(C618,'Capacidad Financiera'!$B$12:$X$62720,3,0)),\"\",VLOOKUP(C618,'Capacidad Financiera'!$B$12:$X$62720,3,0))","v":0},null,{"$f":"IF(OR(D618=\"\",E618=\"\",F618=\"\"),\"\",IF(C618<>\"\",IF(ISERROR(VLOOKUP($A$10,POA!$A$2:$D$25,2,0)),\"\",VLOOKUP($A$10,POA!$A$2:$D$25,2,0)),\"\"))","v":""},"",{"$f":"IF(OR(D618=\"\",E618=\"\",F618=\"\"),\"\",IF(AND(H618>0,H618<=Experiencia1),Puntajes!$D$4,IF(AND(H618>Experiencia1,H618<=Experiencia2),Puntajes!$D$5,IF(AND(H618>Experiencia2,H618<=Experiencia3),Puntajes!$D$6,IF(H618>Experiencia3,Puntajes!$D$7,0)))))","v":""}]
[null,null,{"$f":"+'Capacidad Financiera'!B622","v":""},{"$f":"IF(ISERROR(VLOOKUP(C619,'Capacidad Financiera'!$B$12:$X$62720,2,0)),\"\",VLOOKUP(C619,'Capacidad Financiera'!$B$12:$X$3580,2,0))","v":0},{"$f":"IF(ISERROR(VLOOKUP(C619,'Capacidad Financiera'!$B$12:$X$62720,3,0)),\"\",VLOOKUP(C619,'Capacidad Financiera'!$B$12:$X$62720,3,0))","v":0},null,{"$f":"IF(OR(D619=\"\",E619=\"\",F619=\"\"),\"\",IF(C619<>\"\",IF(ISERROR(VLOOKUP($A$10,POA!$A$2:$D$25,2,0)),\"\",VLOOKUP($A$10,POA!$A$2:$D$25,2,0)),\"\"))","v":""},"",{"$f":"IF(OR(D619=\"\",E619=\"\",F619=\"\"),\"\",IF(AND(H619>0,H619<=Experiencia1),Puntajes!$D$4,IF(AND(H619>Experiencia1,H619<=Experiencia2),Puntajes!$D$5,IF(AND(H619>Experiencia2,H619<=Experiencia3),Puntajes!$D$6,IF(H619>Experiencia3,Puntajes!$D$7,0)))))","v":""}]
[null,null,{"$f":"+'Capacidad Financiera'!B623","v":""},{"$f":"IF(ISERROR(VLOOKUP(C620,'Capacidad Financiera'!$B$12:$X$62720,2,0)),\"\",VLOOKUP(C620,'Capacidad Financiera'!$B$12:$X$3580,2,0))","v":0},{"$f":"IF(ISERROR(VLOOKUP(C620,'Capacidad Financiera'!$B$12:$X$62720,3,0)),\"\",VLOOKUP(C620,'Capacidad Financiera'!$B$12:$X$62720,3,0))","v":0},null,{"$f":"IF(OR(D620=\"\",E620=\"\",F620=\"\"),\"\",IF(C620<>\"\",IF(ISERROR(VLOOKUP($A$10,POA!$A$2:$D$25,2,0)),\"\",VLOOKUP($A$10,POA!$A$2:$D$25,2,0)),\"\"))","v":""},"",{"$f":"IF(OR(D620=\"\",E620=\"\",F620=\"\"),\"\",IF(AND(H620>0,H620<=Experiencia1),Puntajes!$D$4,IF(AND(H620>Experiencia1,H620<=Experiencia2),Puntajes!$D$5,IF(AND(H620>Experiencia2,H620<=Experiencia3),Puntajes!$D$6,IF(H620>Experiencia3,Puntajes!$D$7,0)))))","v":""}]
[null,null,{"$f":"+'Capacidad Financiera'!B624","v":""},{"$f":"IF(ISERROR(VLOOKUP(C621,'Capacidad Financiera'!$B$12:$X$62720,2,0)),\"\",VLOOKUP(C621,'Capacidad Financiera'!$B$12:$X$3580,2,0))","v":0},{"$f":"IF(ISERROR(VLOOKUP(C621,'Capacidad Financiera'!$B$12:$X$62720,3,0)),\"\",VLOOKUP(C621,'Capacidad Financiera'!$B$12:$X$62720,3,0))","v":0},null,{"$f":"IF(OR(D621=\"\",E621=\"\",F621=\"\"),\"\",IF(C621<>\"\",IF(ISERROR(VLOOKUP($A$10,POA!$A$2:$D$25,2,0)),\"\",VLOOKUP($A$10,POA!$A$2:$D$25,2,0)),\"\"))","v":""},"",{"$f":"IF(OR(D621=\"\",E621=\"\",F621=\"\"),\"\",IF(AND(H621>0,H621<=Experiencia1),Puntajes!$D$4,IF(AND(H621>Experiencia1,H621<=Experiencia2),Puntajes!$D$5,IF(AND(H621>Experiencia2,H621<=Experiencia3),Puntajes!$D$6,IF(H621>Experiencia3,Puntajes!$D$7,0)))))","v":""}]
[null,null,{"$f":"+'Capacidad Financiera'!B625","v":""},{"$f":"IF(ISERROR(VLOOKUP(C622,'Capacidad Financiera'!$B$12:$X$62720,2,0)),\"\",VLOOKUP(C622,'Capacidad Financiera'!$B$12:$X$3580,2,0))","v":0},{"$f":"IF(ISERROR(VLOOKUP(C622,'Capacidad Financiera'!$B$12:$X$62720,3,0)),\"\",VLOOKUP(C622,'Capacidad Financiera'!$B$12:$X$62720,3,0))","v":0},null,{"$f":"IF(OR(D622=\"\",E622=\"\",F622=\"\"),\"\",IF(C622<>\"\",IF(ISERROR(VLOOKUP($A$10,POA!$A$2:$D$25,2,0)),\"\",VLOOKUP($A$10,POA!$A$2:$D$25,2,0)),\"\"))","v":""},"",{"$f":"IF(OR(D622=\"\",E622=\"\",F622=\"\"),\"\",IF(AND(H622>0,H622<=Experiencia1),Puntajes!$D$4,IF(AND(H622>Experiencia1,H622<=Experiencia2),Puntajes!$D$5,IF(AND(H622>Experiencia2,H622<=Experiencia3),Puntajes!$D$6,IF(H622>Experiencia3,Puntajes!$D$7,0)))))","v":""}]
[null,null,{"$f":"+'Capacidad Financiera'!B626","v":""},{"$f":"IF(ISERROR(VLOOKUP(C623,'Capacidad Financiera'!$B$12:$X$62720,2,0)),\"\",VLOOKUP(C623,'Capacidad Financiera'!$B$12:$X$3580,2,0))","v":0},{"$f":"IF(ISERROR(VLOOKUP(C623,'Capacidad Financiera'!$B$12:$X$62720,3,0)),\"\",VLOOKUP(C623,'Capacidad Financiera'!$B$12:$X$62720,3,0))","v":0},null,{"$f":"IF(OR(D623=\"\",E623=\"\",F623=\"\"),\"\",IF(C623<>\"\",IF(ISERROR(VLOOKUP($A$10,POA!$A$2:$D$25,2,0)),\"\",VLOOKUP($A$10,POA!$A$2:$D$25,2,0)),\"\"))","v":""},"",{"$f":"IF(OR(D623=\"\",E623=\"\",F623=\"\"),\"\",IF(AND(H623>0,H623<=Experiencia1),Puntajes!$D$4,IF(AND(H623>Experiencia1,H623<=Experiencia2),Puntajes!$D$5,IF(AND(H623>Experiencia2,H623<=Experiencia3),Puntajes!$D$6,IF(H623>Experiencia3,Puntajes!$D$7,0)))))","v":""}]
[null,null,{"$f":"+'Capacidad Financiera'!B627","v":""},{"$f":"IF(ISERROR(VLOOKUP(C624,'Capacidad Financiera'!$B$12:$X$62720,2,0)),\"\",VLOOKUP(C624,'Capacidad Financiera'!$B$12:$X$3580,2,0))","v":0},{"$f":"IF(ISERROR(VLOOKUP(C624,'Capacidad Financiera'!$B$12:$X$62720,3,0)),\"\",VLOOKUP(C624,'Capacidad Financiera'!$B$12:$X$62720,3,0))","v":0},null,{"$f":"IF(OR(D624=\"\",E624=\"\",F624=\"\"),\"\",IF(C624<>\"\",IF(ISERROR(VLOOKUP($A$10,POA!$A$2:$D$25,2,0)),\"\",VLOOKUP($A$10,POA!$A$2:$D$25,2,0)),\"\"))","v":""},"",{"$f":"IF(OR(D624=\"\",E624=\"\",F624=\"\"),\"\",IF(AND(H624>0,H624<=Experiencia1),Puntajes!$D$4,IF(AND(H624>Experiencia1,H624<=Experiencia2),Puntajes!$D$5,IF(AND(H624>Experiencia2,H624<=Experiencia3),Puntajes!$D$6,IF(H624>Experiencia3,Puntajes!$D$7,0)))))","v":""}]
[null,null,57,{"$f":"IF(ISERROR(VLOOKUP(C625,'Capacidad Financiera'!$B$12:$X$62720,2,0)),\"\",VLOOKUP(C625,'Capacidad Financiera'!$B$12:$X$3580,2,0))","v":0},{"$f":"IF(ISERROR(VLOOKUP(C625,'Capacidad Financiera'!$B$12:$X$62720,3,0)),\"\",VLOOKUP(C625,'Capacidad Financiera'!$B$12:$X$62720,3,0))","v":""},null,{"$f":"IF(OR(D625=\"\",E625=\"\",F625=\"\"),\"\",IF(C626=\"\",IF(C625<>\"\",IF(ISERROR(VLOOKUP($A$10,POA!$A$2:$D$25,2,0)),\"\",VLOOKUP($A$10,POA!$A$2:$D$25,2,0)),\"\"),\"\"))","v":""},{"$f":"IF(OR(D625=\"\",E625=\"\",F625=\"\"),\"\",IF(C626=\"\",IF(C625<>\"\",F625/G625,\"\"),\"\"))","v":""},{"$f":"IF(C626=\"\",IF(F625=\"\",\"\",IF(AND(H625>0,H625<=Experiencia1),Puntajes!$D$4,IF(AND(H625>Experiencia1,H625<=Experiencia2),Puntajes!$D$5,IF(AND(H625>Experiencia2,H625<=Experiencia3),Puntajes!$D$6,IF(H625>Experiencia3,Puntajes!$D$7,0))))),\"\")","v":""}]
[null,null,{"$f":"+'Capacidad Financiera'!B629","v":""},{"$f":"IF(ISERROR(VLOOKUP(C626,'Capacidad Financiera'!$B$12:$X$62720,2,0)),\"\",VLOOKUP(C626,'Capacidad Financiera'!$B$12:$X$3580,2,0))","v":0},{"$f":"IF(ISERROR(VLOOKUP(C626,'Capacidad Financiera'!$B$12:$X$62720,3,0)),\"\",VLOOKUP(C626,'Capacidad Financiera'!$B$12:$X$62720,3,0))","v":0},null,{"$f":"IF(OR(D626=\"\",E626=\"\",F626=\"\"),\"\",IF(C626<>\"\",IF(ISERROR(VLOOKUP($A$10,POA!$A$2:$D$25,2,0)),\"\",VLOOKUP($A$10,POA!$A$2:$D$25,2,0)),\"\"))","v":""},{"$f":"IF(OR(D626=\"\",E626=\"\",F626=\"\"),\"\",IF(C626<>\"\",F626/(G626*E626),\"\"))","v":""},{"$f":"IF(OR(D626=\"\",E626=\"\",F626=\"\"),\"\",IF(AND(H626>0,H626<=Experiencia1),Puntajes!$D$4,IF(AND(H626>Experiencia1,H626<=Experiencia2),Puntajes!$D$5,IF(AND(H626>Experiencia2,H626<=Experiencia3),Puntajes!$D$6,IF(H626>Experiencia3,Puntajes!$D$7,0)))))","v":""}]
[null,null,{"$f":"+'Capacidad Financiera'!B630","v":""},{"$f":"IF(ISERROR(VLOOKUP(C627,'Capacidad Financiera'!$B$12:$X$62720,2,0)),\"\",VLOOKUP(C627,'Capacidad Financiera'!$B$12:$X$3580,2,0))","v":0},{"$f":"IF(ISERROR(VLOOKUP(C627,'Capacidad Financiera'!$B$12:$X$62720,3,0)),\"\",VLOOKUP(C627,'Capacidad Financiera'!$B$12:$X$62720,3,0))","v":0},null,{"$f":"IF(OR(D627=\"\",E627=\"\",F627=\"\"),\"\",IF(C627<>\"\",IF(ISERROR(VLOOKUP($A$10,POA!$A$2:$D$25,2,0)),\"\",VLOOKUP($A$10,POA!$A$2:$D$25,2,0)),\"\"))","v":""},{"$f":"IF(OR(D627=\"\",E627=\"\",F627=\"\"),\"\",IF(C627<>\"\",F627/(G627*E627),\"\"))","v":""},{"$f":"IF(OR(D627=\"\",E627=\"\",F627=\"\"),\"\",IF(AND(H627>0,H627<=Experiencia1),Puntajes!$D$4,IF(AND(H627>Experiencia1,H627<=Experiencia2),Puntajes!$D$5,IF(AND(H627>Experiencia2,H627<=Experiencia3),Puntajes!$D$6,IF(H627>Experiencia3,Puntajes!$D$7,0)))))","v":""}]
[null,null,{"$f":"+'Capacidad Financiera'!B631","v":""},{"$f":"IF(ISERROR(VLOOKUP(C628,'Capacidad Financiera'!$B$12:$X$62720,2,0)),\"\",VLOOKUP(C628,'Capacidad Financiera'!$B$12:$X$3580,2,0))","v":0},{"$f":"IF(ISERROR(VLOOKUP(C628,'Capacidad Financiera'!$B$12:$X$62720,3,0)),\"\",VLOOKUP(C628,'Capacidad Financiera'!$B$12:$X$62720,3,0))","v":0},null,{"$f":"IF(OR(D628=\"\",E628=\"\",F628=\"\"),\"\",IF(C628<>\"\",IF(ISERROR(VLOOKUP($A$10,POA!$A$2:$D$25,2,0)),\"\",VLOOKUP($A$10,POA!$A$2:$D$25,2,0)),\"\"))","v":""},"",{"$f":"IF(OR(D628=\"\",E628=\"\",F628=\"\"),\"\",IF(AND(H628>0,H628<=Experiencia1),Puntajes!$D$4,IF(AND(H628>Experiencia1,H628<=Experiencia2),Puntajes!$D$5,IF(AND(H628>Experiencia2,H628<=Experiencia3),Puntajes!$D$6,IF(H628>Experiencia3,Puntajes!$D$7,0)))))","v":""}]
[null,null,{"$f":"+'Capacidad Financiera'!B632","v":""},{"$f":"IF(ISERROR(VLOOKUP(C629,'Capacidad Financiera'!$B$12:$X$62720,2,0)),\"\",VLOOKUP(C629,'Capacidad Financiera'!$B$12:$X$3580,2,0))","v":0},{"$f":"IF(ISERROR(VLOOKUP(C629,'Capacidad Financiera'!$B$12:$X$62720,3,0)),\"\",VLOOKUP(C629,'Capacidad Financiera'!$B$12:$X$62720,3,0))","v":0},null,{"$f":"IF(OR(D629=\"\",E629=\"\",F629=\"\"),\"\",IF(C629<>\"\",IF(ISERROR(VLOOKUP($A$10,POA!$A$2:$D$25,2,0)),\"\",VLOOKUP($A$10,POA!$A$2:$D$25,2,0)),\"\"))","v":""},"",{"$f":"IF(OR(D629=\"\",E629=\"\",F629=\"\"),\"\",IF(AND(H629>0,H629<=Experiencia1),Puntajes!$D$4,IF(AND(H629>Experiencia1,H629<=Experiencia2),Puntajes!$D$5,IF(AND(H629>Experiencia2,H629<=Experiencia3),Puntajes!$D$6,IF(H629>Experiencia3,Puntajes!$D$7,0)))))","v":""}]
[null,null,{"$f":"+'Capacidad Financiera'!B633","v":""},{"$f":"IF(ISERROR(VLOOKUP(C630,'Capacidad Financiera'!$B$12:$X$62720,2,0)),\"\",VLOOKUP(C630,'Capacidad Financiera'!$B$12:$X$3580,2,0))","v":0},{"$f":"IF(ISERROR(VLOOKUP(C630,'Capacidad Financiera'!$B$12:$X$62720,3,0)),\"\",VLOOKUP(C630,'Capacidad Financiera'!$B$12:$X$62720,3,0))","v":0},null,{"$f":"IF(OR(D630=\"\",E630=\"\",F630=\"\"),\"\",IF(C630<>\"\",IF(ISERROR(VLOOKUP($A$10,POA!$A$2:$D$25,2,0)),\"\",VLOOKUP($A$10,POA!$A$2:$D$25,2,0)),\"\"))","v":""},"",{"$f":"IF(OR(D630=\"\",E630=\"\",F630=\"\"),\"\",IF(AND(H630>0,H630<=Experiencia1),Puntajes!$D$4,IF(AND(H630>Experiencia1,H630<=Experiencia2),Puntajes!$D$5,IF(AND(H630>Experiencia2,H630<=Experiencia3),Puntajes!$D$6,IF(H630>Experiencia3,Puntajes!$D$7,0)))))","v":""}]
[null,null,{"$f":"+'Capacidad Financiera'!B634","v":""},{"$f":"IF(ISERROR(VLOOKUP(C631,'Capacidad Financiera'!$B$12:$X$62720,2,0)),\"\",VLOOKUP(C631,'Capacidad Financiera'!$B$12:$X$3580,2,0))","v":0},{"$f":"IF(ISERROR(VLOOKUP(C631,'Capacidad Financiera'!$B$12:$X$62720,3,0)),\"\",VLOOKUP(C631,'Capacidad Financiera'!$B$12:$X$62720,3,0))","v":0},null,{"$f":"IF(OR(D631=\"\",E631=\"\",F631=\"\"),\"\",IF(C631<>\"\",IF(ISERROR(VLOOKUP($A$10,POA!$A$2:$D$25,2,0)),\"\",VLOOKUP($A$10,POA!$A$2:$D$25,2,0)),\"\"))","v":""},"",{"$f":"IF(OR(D631=\"\",E631=\"\",F631=\"\"),\"\",IF(AND(H631>0,H631<=Experiencia1),Puntajes!$D$4,IF(AND(H631>Experiencia1,H631<=Experiencia2),Puntajes!$D$5,IF(AND(H631>Experiencia2,H631<=Experiencia3),Puntajes!$D$6,IF(H631>Experiencia3,Puntajes!$D$7,0)))))","v":""}]
[null,null,{"$f":"+'Capacidad Financiera'!B635","v":""},{"$f":"IF(ISERROR(VLOOKUP(C632,'Capacidad Financiera'!$B$12:$X$62720,2,0)),\"\",VLOOKUP(C632,'Capacidad Financiera'!$B$12:$X$3580,2,0))","v":0},{"$f":"IF(ISERROR(VLOOKUP(C632,'Capacidad Financiera'!$B$12:$X$62720,3,0)),\"\",VLOOKUP(C632,'Capacidad Financiera'!$B$12:$X$62720,3,0))","v":0},null,{"$f":"IF(OR(D632=\"\",E632=\"\",F632=\"\"),\"\",IF(C632<>\"\",IF(ISERROR(VLOOKUP($A$10,POA!$A$2:$D$25,2,0)),\"\",VLOOKUP($A$10,POA!$A$2:$D$25,2,0)),\"\"))","v":""},"",{"$f":"IF(OR(D632=\"\",E632=\"\",F632=\"\"),\"\",IF(AND(H632>0,H632<=Experiencia1),Puntajes!$D$4,IF(AND(H632>Experiencia1,H632<=Experiencia2),Puntajes!$D$5,IF(AND(H632>Experiencia2,H632<=Experiencia3),Puntajes!$D$6,IF(H632>Experiencia3,Puntajes!$D$7,0)))))","v":""}]
[null,null,{"$f":"+'Capacidad Financiera'!B636","v":""},{"$f":"IF(ISERROR(VLOOKUP(C633,'Capacidad Financiera'!$B$12:$X$62720,2,0)),\"\",VLOOKUP(C633,'Capacidad Financiera'!$B$12:$X$3580,2,0))","v":0},{"$f":"IF(ISERROR(VLOOKUP(C633,'Capacidad Financiera'!$B$12:$X$62720,3,0)),\"\",VLOOKUP(C633,'Capacidad Financiera'!$B$12:$X$62720,3,0))","v":0},null,{"$f":"IF(OR(D633=\"\",E633=\"\",F633=\"\"),\"\",IF(C633<>\"\",IF(ISERROR(VLOOKUP($A$10,POA!$A$2:$D$25,2,0)),\"\",VLOOKUP($A$10,POA!$A$2:$D$25,2,0)),\"\"))","v":""},"",{"$f":"IF(OR(D633=\"\",E633=\"\",F633=\"\"),\"\",IF(AND(H633>0,H633<=Experiencia1),Puntajes!$D$4,IF(AND(H633>Experiencia1,H633<=Experiencia2),Puntajes!$D$5,IF(AND(H633>Experiencia2,H633<=Experiencia3),Puntajes!$D$6,IF(H633>Experiencia3,Puntajes!$D$7,0)))))","v":""}]
[null,null,{"$f":"+'Capacidad Financiera'!B637","v":""},{"$f":"IF(ISERROR(VLOOKUP(C634,'Capacidad Financiera'!$B$12:$X$62720,2,0)),\"\",VLOOKUP(C634,'Capacidad Financiera'!$B$12:$X$3580,2,0))","v":0},{"$f":"IF(ISERROR(VLOOKUP(C634,'Capacidad Financiera'!$B$12:$X$62720,3,0)),\"\",VLOOKUP(C634,'Capacidad Financiera'!$B$12:$X$62720,3,0))","v":0},null,{"$f":"IF(OR(D634=\"\",E634=\"\",F634=\"\"),\"\",IF(C634<>\"\",IF(ISERROR(VLOOKUP($A$10,POA!$A$2:$D$25,2,0)),\"\",VLOOKUP($A$10,POA!$A$2:$D$25,2,0)),\"\"))","v":""},"",{"$f":"IF(OR(D634=\"\",E634=\"\",F634=\"\"),\"\",IF(AND(H634>0,H634<=Experiencia1),Puntajes!$D$4,IF(AND(H634>Experiencia1,H634<=Experiencia2),Puntajes!$D$5,IF(AND(H634>Experiencia2,H634<=Experiencia3),Puntajes!$D$6,IF(H634>Experiencia3,Puntajes!$D$7,0)))))","v":""}]
[null,null,{"$f":"+'Capacidad Financiera'!B638","v":""},{"$f":"IF(ISERROR(VLOOKUP(C635,'Capacidad Financiera'!$B$12:$X$62720,2,0)),\"\",VLOOKUP(C635,'Capacidad Financiera'!$B$12:$X$3580,2,0))","v":0},{"$f":"IF(ISERROR(VLOOKUP(C635,'Capacidad Financiera'!$B$12:$X$62720,3,0)),\"\",VLOOKUP(C635,'Capacidad Financiera'!$B$12:$X$62720,3,0))","v":0},null,{"$f":"IF(OR(D635=\"\",E635=\"\",F635=\"\"),\"\",IF(C635<>\"\",IF(ISERROR(VLOOKUP($A$10,POA!$A$2:$D$25,2,0)),\"\",VLOOKUP($A$10,POA!$A$2:$D$25,2,0)),\"\"))","v":""},"",{"$f":"IF(OR(D635=\"\",E635=\"\",F635=\"\"),\"\",IF(AND(H635>0,H635<=Experiencia1),Puntajes!$D$4,IF(AND(H635>Experiencia1,H635<=Experiencia2),Puntajes!$D$5,IF(AND(H635>Experiencia2,H635<=Experiencia3),Puntajes!$D$6,IF(H635>Experiencia3,Puntajes!$D$7,0)))))","v":""}]
[null,null,58,{"$f":"IF(ISERROR(VLOOKUP(C636,'Capacidad Financiera'!$B$12:$X$62720,2,0)),\"\",VLOOKUP(C636,'Capacidad Financiera'!$B$12:$X$3580,2,0))","v":0},{"$f":"IF(ISERROR(VLOOKUP(C636,'Capacidad Financiera'!$B$12:$X$62720,3,0)),\"\",VLOOKUP(C636,'Capacidad Financiera'!$B$12:$X$62720,3,0))","v":""},null,{"$f":"IF(OR(D636=\"\",E636=\"\",F636=\"\"),\"\",IF(C637=\"\",IF(C636<>\"\",IF(ISERROR(VLOOKUP($A$10,POA!$A$2:$D$25,2,0)),\"\",VLOOKUP($A$10,POA!$A$2:$D$25,2,0)),\"\"),\"\"))","v":""},{"$f":"IF(OR(D636=\"\",E636=\"\",F636=\"\"),\"\",IF(C637=\"\",IF(C636<>\"\",F636/G636,\"\"),\"\"))","v":""},{"$f":"IF(C637=\"\",IF(F636=\"\",\"\",IF(AND(H636>0,H636<=Experiencia1),Puntajes!$D$4,IF(AND(H636>Experiencia1,H636<=Experiencia2),Puntajes!$D$5,IF(AND(H636>Experiencia2,H636<=Experiencia3),Puntajes!$D$6,IF(H636>Experiencia3,Puntajes!$D$7,0))))),\"\")","v":""}]
[null,null,{"$f":"+'Capacidad Financiera'!B640","v":""},{"$f":"IF(ISERROR(VLOOKUP(C637,'Capacidad Financiera'!$B$12:$X$62720,2,0)),\"\",VLOOKUP(C637,'Capacidad Financiera'!$B$12:$X$3580,2,0))","v":0},{"$f":"IF(ISERROR(VLOOKUP(C637,'Capacidad Financiera'!$B$12:$X$62720,3,0)),\"\",VLOOKUP(C637,'Capacidad Financiera'!$B$12:$X$62720,3,0))","v":0},null,{"$f":"IF(OR(D637=\"\",E637=\"\",F637=\"\"),\"\",IF(C637<>\"\",IF(ISERROR(VLOOKUP($A$10,POA!$A$2:$D$25,2,0)),\"\",VLOOKUP($A$10,POA!$A$2:$D$25,2,0)),\"\"))","v":""},{"$f":"IF(OR(D637=\"\",E637=\"\",F637=\"\"),\"\",IF(C637<>\"\",F637/(G637*E637),\"\"))","v":""},{"$f":"IF(OR(D637=\"\",E637=\"\",F637=\"\"),\"\",IF(AND(H637>0,H637<=Experiencia1),Puntajes!$D$4,IF(AND(H637>Experiencia1,H637<=Experiencia2),Puntajes!$D$5,IF(AND(H637>Experiencia2,H637<=Experiencia3),Puntajes!$D$6,IF(H637>Experiencia3,Puntajes!$D$7,0)))))","v":""}]
[null,null,{"$f":"+'Capacidad Financiera'!B641","v":""},{"$f":"IF(ISERROR(VLOOKUP(C638,'Capacidad Financiera'!$B$12:$X$62720,2,0)),\"\",VLOOKUP(C638,'Capacidad Financiera'!$B$12:$X$3580,2,0))","v":0},{"$f":"IF(ISERROR(VLOOKUP(C638,'Capacidad Financiera'!$B$12:$X$62720,3,0)),\"\",VLOOKUP(C638,'Capacidad Financiera'!$B$12:$X$62720,3,0))","v":0},null,{"$f":"IF(OR(D638=\"\",E638=\"\",F638=\"\"),\"\",IF(C638<>\"\",IF(ISERROR(VLOOKUP($A$10,POA!$A$2:$D$25,2,0)),\"\",VLOOKUP($A$10,POA!$A$2:$D$25,2,0)),\"\"))","v":""},{"$f":"IF(OR(D638=\"\",E638=\"\",F638=\"\"),\"\",IF(C638<>\"\",F638/(G638*E638),\"\"))","v":""},{"$f":"IF(OR(D638=\"\",E638=\"\",F638=\"\"),\"\",IF(AND(H638>0,H638<=Experiencia1),Puntajes!$D$4,IF(AND(H638>Experiencia1,H638<=Experiencia2),Puntajes!$D$5,IF(AND(H638>Experiencia2,H638<=Experiencia3),Puntajes!$D$6,IF(H638>Experiencia3,Puntajes!$D$7,0)))))","v":""}]
[null,null,{"$f":"+'Capacidad Financiera'!B642","v":""},{"$f":"IF(ISERROR(VLOOKUP(C639,'Capacidad Financiera'!$B$12:$X$62720,2,0)),\"\",VLOOKUP(C639,'Capacidad Financiera'!$B$12:$X$3580,2,0))","v":0},{"$f":"IF(ISERROR(VLOOKUP(C639,'Capacidad Financiera'!$B$12:$X$62720,3,0)),\"\",VLOOKUP(C639,'Capacidad Financiera'!$B$12:$X$62720,3,0))","v":0},null,{"$f":"IF(OR(D639=\"\",E639=\"\",F639=\"\"),\"\",IF(C639<>\"\",IF(ISERROR(VLOOKUP($A$10,POA!$A$2:$D$25,2,0)),\"\",VLOOKUP($A$10,POA!$A$2:$D$25,2,0)),\"\"))","v":""},"",{"$f":"IF(OR(D639=\"\",E639=\"\",F639=\"\"),\"\",IF(AND(H639>0,H639<=Experiencia1),Puntajes!$D$4,IF(AND(H639>Experiencia1,H639<=Experiencia2),Puntajes!$D$5,IF(AND(H639>Experiencia2,H639<=Experiencia3),Puntajes!$D$6,IF(H639>Experiencia3,Puntajes!$D$7,0)))))","v":""}]
[null,null,{"$f":"+'Capacidad Financiera'!B643","v":""},{"$f":"IF(ISERROR(VLOOKUP(C640,'Capacidad Financiera'!$B$12:$X$62720,2,0)),\"\",VLOOKUP(C640,'Capacidad Financiera'!$B$12:$X$3580,2,0))","v":0},{"$f":"IF(ISERROR(VLOOKUP(C640,'Capacidad Financiera'!$B$12:$X$62720,3,0)),\"\",VLOOKUP(C640,'Capacidad Financiera'!$B$12:$X$62720,3,0))","v":0},null,{"$f":"IF(OR(D640=\"\",E640=\"\",F640=\"\"),\"\",IF(C640<>\"\",IF(ISERROR(VLOOKUP($A$10,POA!$A$2:$D$25,2,0)),\"\",VLOOKUP($A$10,POA!$A$2:$D$25,2,0)),\"\"))","v":""},"",{"$f":"IF(OR(D640=\"\",E640=\"\",F640=\"\"),\"\",IF(AND(H640>0,H640<=Experiencia1),Puntajes!$D$4,IF(AND(H640>Experiencia1,H640<=Experiencia2),Puntajes!$D$5,IF(AND(H640>Experiencia2,H640<=Experiencia3),Puntajes!$D$6,IF(H640>Experiencia3,Puntajes!$D$7,0)))))","v":""}]
[null,null,{"$f":"+'Capacidad Financiera'!B644","v":""},{"$f":"IF(ISERROR(VLOOKUP(C641,'Capacidad Financiera'!$B$12:$X$62720,2,0)),\"\",VLOOKUP(C641,'Capacidad Financiera'!$B$12:$X$3580,2,0))","v":0},{"$f":"IF(ISERROR(VLOOKUP(C641,'Capacidad Financiera'!$B$12:$X$62720,3,0)),\"\",VLOOKUP(C641,'Capacidad Financiera'!$B$12:$X$62720,3,0))","v":0},null,{"$f":"IF(OR(D641=\"\",E641=\"\",F641=\"\"),\"\",IF(C641<>\"\",IF(ISERROR(VLOOKUP($A$10,POA!$A$2:$D$25,2,0)),\"\",VLOOKUP($A$10,POA!$A$2:$D$25,2,0)),\"\"))","v":""},"",{"$f":"IF(OR(D641=\"\",E641=\"\",F641=\"\"),\"\",IF(AND(H641>0,H641<=Experiencia1),Puntajes!$D$4,IF(AND(H641>Experiencia1,H641<=Experiencia2),Puntajes!$D$5,IF(AND(H641>Experiencia2,H641<=Experiencia3),Puntajes!$D$6,IF(H641>Experiencia3,Puntajes!$D$7,0)))))","v":""}]
[null,null,{"$f":"+'Capacidad Financiera'!B645","v":""},{"$f":"IF(ISERROR(VLOOKUP(C642,'Capacidad Financiera'!$B$12:$X$62720,2,0)),\"\",VLOOKUP(C642,'Capacidad Financiera'!$B$12:$X$3580,2,0))","v":0},{"$f":"IF(ISERROR(VLOOKUP(C642,'Capacidad Financiera'!$B$12:$X$62720,3,0)),\"\",VLOOKUP(C642,'Capacidad Financiera'!$B$12:$X$62720,3,0))","v":0},null,{"$f":"IF(OR(D642=\"\",E642=\"\",F642=\"\"),\"\",IF(C642<>\"\",IF(ISERROR(VLOOKUP($A$10,POA!$A$2:$D$25,2,0)),\"\",VLOOKUP($A$10,POA!$A$2:$D$25,2,0)),\"\"))","v":""},"",{"$f":"IF(OR(D642=\"\",E642=\"\",F642=\"\"),\"\",IF(AND(H642>0,H642<=Experiencia1),Puntajes!$D$4,IF(AND(H642>Experiencia1,H642<=Experiencia2),Puntajes!$D$5,IF(AND(H642>Experiencia2,H642<=Experiencia3),Puntajes!$D$6,IF(H642>Experiencia3,Puntajes!$D$7,0)))))","v":""}]
[null,null,{"$f":"+'Capacidad Financiera'!B646","v":""},{"$f":"IF(ISERROR(VLOOKUP(C643,'Capacidad Financiera'!$B$12:$X$62720,2,0)),\"\",VLOOKUP(C643,'Capacidad Financiera'!$B$12:$X$3580,2,0))","v":0},{"$f":"IF(ISERROR(VLOOKUP(C643,'Capacidad Financiera'!$B$12:$X$62720,3,0)),\"\",VLOOKUP(C643,'Capacidad Financiera'!$B$12:$X$62720,3,0))","v":0},null,{"$f":"IF(OR(D643=\"\",E643=\"\",F643=\"\"),\"\",IF(C643<>\"\",IF(ISERROR(VLOOKUP($A$10,POA!$A$2:$D$25,2,0)),\"\",VLOOKUP($A$10,POA!$A$2:$D$25,2,0)),\"\"))","v":""},"",{"$f":"IF(OR(D643=\"\",E643=\"\",F643=\"\"),\"\",IF(AND(H643>0,H643<=Experiencia1),Puntajes!$D$4,IF(AND(H643>Experiencia1,H643<=Experiencia2),Puntajes!$D$5,IF(AND(H643>Experiencia2,H643<=Experiencia3),Puntajes!$D$6,IF(H643>Experiencia3,Puntajes!$D$7,0)))))","v":""}]
[null,null,{"$f":"+'Capacidad Financiera'!B647","v":""},{"$f":"IF(ISERROR(VLOOKUP(C644,'Capacidad Financiera'!$B$12:$X$62720,2,0)),\"\",VLOOKUP(C644,'Capacidad Financiera'!$B$12:$X$3580,2,0))","v":0},{"$f":"IF(ISERROR(VLOOKUP(C644,'Capacidad Financiera'!$B$12:$X$62720,3,0)),\"\",VLOOKUP(C644,'Capacidad Financiera'!$B$12:$X$62720,3,0))","v":0},null,{"$f":"IF(OR(D644=\"\",E644=\"\",F644=\"\"),\"\",IF(C644<>\"\",IF(ISERROR(VLOOKUP($A$10,POA!$A$2:$D$25,2,0)),\"\",VLOOKUP($A$10,POA!$A$2:$D$25,2,0)),\"\"))","v":""},"",{"$f":"IF(OR(D644=\"\",E644=\"\",F644=\"\"),\"\",IF(AND(H644>0,H644<=Experiencia1),Puntajes!$D$4,IF(AND(H644>Experiencia1,H644<=Experiencia2),Puntajes!$D$5,IF(AND(H644>Experiencia2,H644<=Experiencia3),Puntajes!$D$6,IF(H644>Experiencia3,Puntajes!$D$7,0)))))","v":""}]
[null,null,{"$f":"+'Capacidad Financiera'!B648","v":""},{"$f":"IF(ISERROR(VLOOKUP(C645,'Capacidad Financiera'!$B$12:$X$62720,2,0)),\"\",VLOOKUP(C645,'Capacidad Financiera'!$B$12:$X$3580,2,0))","v":0},{"$f":"IF(ISERROR(VLOOKUP(C645,'Capacidad Financiera'!$B$12:$X$62720,3,0)),\"\",VLOOKUP(C645,'Capacidad Financiera'!$B$12:$X$62720,3,0))","v":0},null,{"$f":"IF(OR(D645=\"\",E645=\"\",F645=\"\"),\"\",IF(C645<>\"\",IF(ISERROR(VLOOKUP($A$10,POA!$A$2:$D$25,2,0)),\"\",VLOOKUP($A$10,POA!$A$2:$D$25,2,0)),\"\"))","v":""},"",{"$f":"IF(OR(D645=\"\",E645=\"\",F645=\"\"),\"\",IF(AND(H645>0,H645<=Experiencia1),Puntajes!$D$4,IF(AND(H645>Experiencia1,H645<=Experiencia2),Puntajes!$D$5,IF(AND(H645>Experiencia2,H645<=Experiencia3),Puntajes!$D$6,IF(H645>Experiencia3,Puntajes!$D$7,0)))))","v":""}]
[null,null,{"$f":"+'Capacidad Financiera'!B649","v":""},{"$f":"IF(ISERROR(VLOOKUP(C646,'Capacidad Financiera'!$B$12:$X$62720,2,0)),\"\",VLOOKUP(C646,'Capacidad Financiera'!$B$12:$X$3580,2,0))","v":0},{"$f":"IF(ISERROR(VLOOKUP(C646,'Capacidad Financiera'!$B$12:$X$62720,3,0)),\"\",VLOOKUP(C646,'Capacidad Financiera'!$B$12:$X$62720,3,0))","v":0},null,{"$f":"IF(OR(D646=\"\",E646=\"\",F646=\"\"),\"\",IF(C646<>\"\",IF(ISERROR(VLOOKUP($A$10,POA!$A$2:$D$25,2,0)),\"\",VLOOKUP($A$10,POA!$A$2:$D$25,2,0)),\"\"))","v":""},"",{"$f":"IF(OR(D646=\"\",E646=\"\",F646=\"\"),\"\",IF(AND(H646>0,H646<=Experiencia1),Puntajes!$D$4,IF(AND(H646>Experiencia1,H646<=Experiencia2),Puntajes!$D$5,IF(AND(H646>Experiencia2,H646<=Experiencia3),Puntajes!$D$6,IF(H646>Experiencia3,Puntajes!$D$7,0)))))","v":""}]
[null,null,59,{"$f":"IF(ISERROR(VLOOKUP(C647,'Capacidad Financiera'!$B$12:$X$62720,2,0)),\"\",VLOOKUP(C647,'Capacidad Financiera'!$B$12:$X$3580,2,0))","v":0},{"$f":"IF(ISERROR(VLOOKUP(C647,'Capacidad Financiera'!$B$12:$X$62720,3,0)),\"\",VLOOKUP(C647,'Capacidad Financiera'!$B$12:$X$62720,3,0))","v":""},null,{"$f":"IF(OR(D647=\"\",E647=\"\",F647=\"\"),\"\",IF(C648=\"\",IF(C647<>\"\",IF(ISERROR(VLOOKUP($A$10,POA!$A$2:$D$25,2,0)),\"\",VLOOKUP($A$10,POA!$A$2:$D$25,2,0)),\"\"),\"\"))","v":""},{"$f":"IF(OR(D647=\"\",E647=\"\",F647=\"\"),\"\",IF(C648=\"\",IF(C647<>\"\",F647/G647,\"\"),\"\"))","v":""},{"$f":"IF(C648=\"\",IF(F647=\"\",\"\",IF(AND(H647>0,H647<=Experiencia1),Puntajes!$D$4,IF(AND(H647>Experiencia1,H647<=Experiencia2),Puntajes!$D$5,IF(AND(H647>Experiencia2,H647<=Experiencia3),Puntajes!$D$6,IF(H647>Experiencia3,Puntajes!$D$7,0))))),\"\")","v":""}]
[null,null,{"$f":"+'Capacidad Financiera'!B651","v":""},{"$f":"IF(ISERROR(VLOOKUP(C648,'Capacidad Financiera'!$B$12:$X$62720,2,0)),\"\",VLOOKUP(C648,'Capacidad Financiera'!$B$12:$X$3580,2,0))","v":0},{"$f":"IF(ISERROR(VLOOKUP(C648,'Capacidad Financiera'!$B$12:$X$62720,3,0)),\"\",VLOOKUP(C648,'Capacidad Financiera'!$B$12:$X$62720,3,0))","v":0},null,{"$f":"IF(OR(D648=\"\",E648=\"\",F648=\"\"),\"\",IF(C648<>\"\",IF(ISERROR(VLOOKUP($A$10,POA!$A$2:$D$25,2,0)),\"\",VLOOKUP($A$10,POA!$A$2:$D$25,2,0)),\"\"))","v":""},{"$f":"IF(OR(D648=\"\",E648=\"\",F648=\"\"),\"\",IF(C648<>\"\",F648/(G648*E648),\"\"))","v":""},{"$f":"IF(OR(D648=\"\",E648=\"\",F648=\"\"),\"\",IF(AND(H648>0,H648<=Experiencia1),Puntajes!$D$4,IF(AND(H648>Experiencia1,H648<=Experiencia2),Puntajes!$D$5,IF(AND(H648>Experiencia2,H648<=Experiencia3),Puntajes!$D$6,IF(H648>Experiencia3,Puntajes!$D$7,0)))))","v":""}]
[null,null,{"$f":"+'Capacidad Financiera'!B652","v":""},{"$f":"IF(ISERROR(VLOOKUP(C649,'Capacidad Financiera'!$B$12:$X$62720,2,0)),\"\",VLOOKUP(C649,'Capacidad Financiera'!$B$12:$X$3580,2,0))","v":0},{"$f":"IF(ISERROR(VLOOKUP(C649,'Capacidad Financiera'!$B$12:$X$62720,3,0)),\"\",VLOOKUP(C649,'Capacidad Financiera'!$B$12:$X$62720,3,0))","v":0},null,{"$f":"IF(OR(D649=\"\",E649=\"\",F649=\"\"),\"\",IF(C649<>\"\",IF(ISERROR(VLOOKUP($A$10,POA!$A$2:$D$25,2,0)),\"\",VLOOKUP($A$10,POA!$A$2:$D$25,2,0)),\"\"))","v":""},{"$f":"IF(OR(D649=\"\",E649=\"\",F649=\"\"),\"\",IF(C649<>\"\",F649/(G649*E649),\"\"))","v":""},{"$f":"IF(OR(D649=\"\",E649=\"\",F649=\"\"),\"\",IF(AND(H649>0,H649<=Experiencia1),Puntajes!$D$4,IF(AND(H649>Experiencia1,H649<=Experiencia2),Puntajes!$D$5,IF(AND(H649>Experiencia2,H649<=Experiencia3),Puntajes!$D$6,IF(H649>Experiencia3,Puntajes!$D$7,0)))))","v":""}]
[null,null,{"$f":"+'Capacidad Financiera'!B653","v":""},{"$f":"IF(ISERROR(VLOOKUP(C650,'Capacidad Financiera'!$B$12:$X$62720,2,0)),\"\",VLOOKUP(C650,'Capacidad Financiera'!$B$12:$X$3580,2,0))","v":0},{"$f":"IF(ISERROR(VLOOKUP(C650,'Capacidad Financiera'!$B$12:$X$62720,3,0)),\"\",VLOOKUP(C650,'Capacidad Financiera'!$B$12:$X$62720,3,0))","v":0},null,{"$f":"IF(OR(D650=\"\",E650=\"\",F650=\"\"),\"\",IF(C650<>\"\",IF(ISERROR(VLOOKUP($A$10,POA!$A$2:$D$25,2,0)),\"\",VLOOKUP($A$10,POA!$A$2:$D$25,2,0)),\"\"))","v":""},"",{"$f":"IF(OR(D650=\"\",E650=\"\",F650=\"\"),\"\",IF(AND(H650>0,H650<=Experiencia1),Puntajes!$D$4,IF(AND(H650>Experiencia1,H650<=Experiencia2),Puntajes!$D$5,IF(AND(H650>Experiencia2,H650<=Experiencia3),Puntajes!$D$6,IF(H650>Experiencia3,Puntajes!$D$7,0)))))","v":""}]
[null,null,{"$f":"+'Capacidad Financiera'!B654","v":""},{"$f":"IF(ISERROR(VLOOKUP(C651,'Capacidad Financiera'!$B$12:$X$62720,2,0)),\"\",VLOOKUP(C651,'Capacidad Financiera'!$B$12:$X$3580,2,0))","v":0},{"$f":"IF(ISERROR(VLOOKUP(C651,'Capacidad Financiera'!$B$12:$X$62720,3,0)),\"\",VLOOKUP(C651,'Capacidad Financiera'!$B$12:$X$62720,3,0))","v":0},null,{"$f":"IF(OR(D651=\"\",E651=\"\",F651=\"\"),\"\",IF(C651<>\"\",IF(ISERROR(VLOOKUP($A$10,POA!$A$2:$D$25,2,0)),\"\",VLOOKUP($A$10,POA!$A$2:$D$25,2,0)),\"\"))","v":""},"",{"$f":"IF(OR(D651=\"\",E651=\"\",F651=\"\"),\"\",IF(AND(H651>0,H651<=Experiencia1),Puntajes!$D$4,IF(AND(H651>Experiencia1,H651<=Experiencia2),Puntajes!$D$5,IF(AND(H651>Experiencia2,H651<=Experiencia3),Puntajes!$D$6,IF(H651>Experiencia3,Puntajes!$D$7,0)))))","v":""}]
[null,null,{"$f":"+'Capacidad Financiera'!B655","v":""},{"$f":"IF(ISERROR(VLOOKUP(C652,'Capacidad Financiera'!$B$12:$X$62720,2,0)),\"\",VLOOKUP(C652,'Capacidad Financiera'!$B$12:$X$3580,2,0))","v":0},{"$f":"IF(ISERROR(VLOOKUP(C652,'Capacidad Financiera'!$B$12:$X$62720,3,0)),\"\",VLOOKUP(C652,'Capacidad Financiera'!$B$12:$X$62720,3,0))","v":0},null,{"$f":"IF(OR(D652=\"\",E652=\"\",F652=\"\"),\"\",IF(C652<>\"\",IF(ISERROR(VLOOKUP($A$10,POA!$A$2:$D$25,2,0)),\"\",VLOOKUP($A$10,POA!$A$2:$D$25,2,0)),\"\"))","v":""},"",{"$f":"IF(OR(D652=\"\",E652=\"\",F652=\"\"),\"\",IF(AND(H652>0,H652<=Experiencia1),Puntajes!$D$4,IF(AND(H652>Experiencia1,H652<=Experiencia2),Puntajes!$D$5,IF(AND(H652>Experiencia2,H652<=Experiencia3),Puntajes!$D$6,IF(H652>Experiencia3,Puntajes!$D$7,0)))))","v":""}]
[null,null,{"$f":"+'Capacidad Financiera'!B656","v":""},{"$f":"IF(ISERROR(VLOOKUP(C653,'Capacidad Financiera'!$B$12:$X$62720,2,0)),\"\",VLOOKUP(C653,'Capacidad Financiera'!$B$12:$X$3580,2,0))","v":0},{"$f":"IF(ISERROR(VLOOKUP(C653,'Capacidad Financiera'!$B$12:$X$62720,3,0)),\"\",VLOOKUP(C653,'Capacidad Financiera'!$B$12:$X$62720,3,0))","v":0},null,{"$f":"IF(OR(D653=\"\",E653=\"\",F653=\"\"),\"\",IF(C653<>\"\",IF(ISERROR(VLOOKUP($A$10,POA!$A$2:$D$25,2,0)),\"\",VLOOKUP($A$10,POA!$A$2:$D$25,2,0)),\"\"))","v":""},"",{"$f":"IF(OR(D653=\"\",E653=\"\",F653=\"\"),\"\",IF(AND(H653>0,H653<=Experiencia1),Puntajes!$D$4,IF(AND(H653>Experiencia1,H653<=Experiencia2),Puntajes!$D$5,IF(AND(H653>Experiencia2,H653<=Experiencia3),Puntajes!$D$6,IF(H653>Experiencia3,Puntajes!$D$7,0)))))","v":""}]
[null,null,{"$f":"+'Capacidad Financiera'!B657","v":""},{"$f":"IF(ISERROR(VLOOKUP(C654,'Capacidad Financiera'!$B$12:$X$62720,2,0)),\"\",VLOOKUP(C654,'Capacidad Financiera'!$B$12:$X$3580,2,0))","v":0},{"$f":"IF(ISERROR(VLOOKUP(C654,'Capacidad Financiera'!$B$12:$X$62720,3,0)),\"\",VLOOKUP(C654,'Capacidad Financiera'!$B$12:$X$62720,3,0))","v":0},null,{"$f":"IF(OR(D654=\"\",E654=\"\",F654=\"\"),\"\",IF(C654<>\"\",IF(ISERROR(VLOOKUP($A$10,POA!$A$2:$D$25,2,0)),\"\",VLOOKUP($A$10,POA!$A$2:$D$25,2,0)),\"\"))","v":""},"",{"$f":"IF(OR(D654=\"\",E654=\"\",F654=\"\"),\"\",IF(AND(H654>0,H654<=Experiencia1),Puntajes!$D$4,IF(AND(H654>Experiencia1,H654<=Experiencia2),Puntajes!$D$5,IF(AND(H654>Experiencia2,H654<=Experiencia3),Puntajes!$D$6,IF(H654>Experiencia3,Puntajes!$D$7,0)))))","v":""}]
[null,null,{"$f":"+'Capacidad Financiera'!B658","v":""},{"$f":"IF(ISERROR(VLOOKUP(C655,'Capacidad Financiera'!$B$12:$X$62720,2,0)),\"\",VLOOKUP(C655,'Capacidad Financiera'!$B$12:$X$3580,2,0))","v":0},{"$f":"IF(ISERROR(VLOOKUP(C655,'Capacidad Financiera'!$B$12:$X$62720,3,0)),\"\",VLOOKUP(C655,'Capacidad Financiera'!$B$12:$X$62720,3,0))","v":0},null,{"$f":"IF(OR(D655=\"\",E655=\"\",F655=\"\"),\"\",IF(C655<>\"\",IF(ISERROR(VLOOKUP($A$10,POA!$A$2:$D$25,2,0)),\"\",VLOOKUP($A$10,POA!$A$2:$D$25,2,0)),\"\"))","v":""},"",{"$f":"IF(OR(D655=\"\",E655=\"\",F655=\"\"),\"\",IF(AND(H655>0,H655<=Experiencia1),Puntajes!$D$4,IF(AND(H655>Experiencia1,H655<=Experiencia2),Puntajes!$D$5,IF(AND(H655>Experiencia2,H655<=Experiencia3),Puntajes!$D$6,IF(H655>Experiencia3,Puntajes!$D$7,0)))))","v":""}]
[null,null,{"$f":"+'Capacidad Financiera'!B659","v":""},{"$f":"IF(ISERROR(VLOOKUP(C656,'Capacidad Financiera'!$B$12:$X$62720,2,0)),\"\",VLOOKUP(C656,'Capacidad Financiera'!$B$12:$X$3580,2,0))","v":0},{"$f":"IF(ISERROR(VLOOKUP(C656,'Capacidad Financiera'!$B$12:$X$62720,3,0)),\"\",VLOOKUP(C656,'Capacidad Financiera'!$B$12:$X$62720,3,0))","v":0},null,{"$f":"IF(OR(D656=\"\",E656=\"\",F656=\"\"),\"\",IF(C656<>\"\",IF(ISERROR(VLOOKUP($A$10,POA!$A$2:$D$25,2,0)),\"\",VLOOKUP($A$10,POA!$A$2:$D$25,2,0)),\"\"))","v":""},"",{"$f":"IF(OR(D656=\"\",E656=\"\",F656=\"\"),\"\",IF(AND(H656>0,H656<=Experiencia1),Puntajes!$D$4,IF(AND(H656>Experiencia1,H656<=Experiencia2),Puntajes!$D$5,IF(AND(H656>Experiencia2,H656<=Experiencia3),Puntajes!$D$6,IF(H656>Experiencia3,Puntajes!$D$7,0)))))","v":""}]
[null,null,{"$f":"+'Capacidad Financiera'!B660","v":""},{"$f":"IF(ISERROR(VLOOKUP(C657,'Capacidad Financiera'!$B$12:$X$62720,2,0)),\"\",VLOOKUP(C657,'Capacidad Financiera'!$B$12:$X$3580,2,0))","v":0},{"$f":"IF(ISERROR(VLOOKUP(C657,'Capacidad Financiera'!$B$12:$X$62720,3,0)),\"\",VLOOKUP(C657,'Capacidad Financiera'!$B$12:$X$62720,3,0))","v":0},null,{"$f":"IF(OR(D657=\"\",E657=\"\",F657=\"\"),\"\",IF(C657<>\"\",IF(ISERROR(VLOOKUP($A$10,POA!$A$2:$D$25,2,0)),\"\",VLOOKUP($A$10,POA!$A$2:$D$25,2,0)),\"\"))","v":""},"",{"$f":"IF(OR(D657=\"\",E657=\"\",F657=\"\"),\"\",IF(AND(H657>0,H657<=Experiencia1),Puntajes!$D$4,IF(AND(H657>Experiencia1,H657<=Experiencia2),Puntajes!$D$5,IF(AND(H657>Experiencia2,H657<=Experiencia3),Puntajes!$D$6,IF(H657>Experiencia3,Puntajes!$D$7,0)))))","v":""}]
[null,null,60,{"$f":"IF(ISERROR(VLOOKUP(C658,'Capacidad Financiera'!$B$12:$X$62720,2,0)),\"\",VLOOKUP(C658,'Capacidad Financiera'!$B$12:$X$3580,2,0))","v":0},{"$f":"IF(ISERROR(VLOOKUP(C658,'Capacidad Financiera'!$B$12:$X$62720,3,0)),\"\",VLOOKUP(C658,'Capacidad Financiera'!$B$12:$X$62720,3,0))","v":""},null,{"$f":"IF(OR(D658=\"\",E658=\"\",F658=\"\"),\"\",IF(C659=\"\",IF(C658<>\"\",IF(ISERROR(VLOOKUP($A$10,POA!$A$2:$D$25,2,0)),\"\",VLOOKUP($A$10,POA!$A$2:$D$25,2,0)),\"\"),\"\"))","v":""},{"$f":"IF(OR(D658=\"\",E658=\"\",F658=\"\"),\"\",IF(C659=\"\",IF(C658<>\"\",F658/G658,\"\"),\"\"))","v":""},{"$f":"IF(C659=\"\",IF(F658=\"\",\"\",IF(AND(H658>0,H658<=Experiencia1),Puntajes!$D$4,IF(AND(H658>Experiencia1,H658<=Experiencia2),Puntajes!$D$5,IF(AND(H658>Experiencia2,H658<=Experiencia3),Puntajes!$D$6,IF(H658>Experiencia3,Puntajes!$D$7,0))))),\"\")","v":""}]
[null,null,{"$f":"+'Capacidad Financiera'!B662","v":""},{"$f":"IF(ISERROR(VLOOKUP(C659,'Capacidad Financiera'!$B$12:$X$62720,2,0)),\"\",VLOOKUP(C659,'Capacidad Financiera'!$B$12:$X$3580,2,0))","v":0},{"$f":"IF(ISERROR(VLOOKUP(C659,'Capacidad Financiera'!$B$12:$X$62720,3,0)),\"\",VLOOKUP(C659,'Capacidad Financiera'!$B$12:$X$62720,3,0))","v":0},null,{"$f":"IF(OR(D659=\"\",E659=\"\",F659=\"\"),\"\",IF(C659<>\"\",IF(ISERROR(VLOOKUP($A$10,POA!$A$2:$D$25,2,0)),\"\",VLOOKUP($A$10,POA!$A$2:$D$25,2,0)),\"\"))","v":""},{"$f":"IF(OR(D659=\"\",E659=\"\",F659=\"\"),\"\",IF(C659<>\"\",F659/(G659*E659),\"\"))","v":""},{"$f":"IF(OR(D659=\"\",E659=\"\",F659=\"\"),\"\",IF(AND(H659>0,H659<=Experiencia1),Puntajes!$D$4,IF(AND(H659>Experiencia1,H659<=Experiencia2),Puntajes!$D$5,IF(AND(H659>Experiencia2,H659<=Experiencia3),Puntajes!$D$6,IF(H659>Experiencia3,Puntajes!$D$7,0)))))","v":""}]
[null,null,{"$f":"+'Capacidad Financiera'!B663","v":""},{"$f":"IF(ISERROR(VLOOKUP(C660,'Capacidad Financiera'!$B$12:$X$62720,2,0)),\"\",VLOOKUP(C660,'Capacidad Financiera'!$B$12:$X$3580,2,0))","v":0},{"$f":"IF(ISERROR(VLOOKUP(C660,'Capacidad Financiera'!$B$12:$X$62720,3,0)),\"\",VLOOKUP(C660,'Capacidad Financiera'!$B$12:$X$62720,3,0))","v":0},null,{"$f":"IF(OR(D660=\"\",E660=\"\",F660=\"\"),\"\",IF(C660<>\"\",IF(ISERROR(VLOOKUP($A$10,POA!$A$2:$D$25,2,0)),\"\",VLOOKUP($A$10,POA!$A$2:$D$25,2,0)),\"\"))","v":""},{"$f":"IF(OR(D660=\"\",E660=\"\",F660=\"\"),\"\",IF(C660<>\"\",F660/(G660*E660),\"\"))","v":""},{"$f":"IF(OR(D660=\"\",E660=\"\",F660=\"\"),\"\",IF(AND(H660>0,H660<=Experiencia1),Puntajes!$D$4,IF(AND(H660>Experiencia1,H660<=Experiencia2),Puntajes!$D$5,IF(AND(H660>Experiencia2,H660<=Experiencia3),Puntajes!$D$6,IF(H660>Experiencia3,Puntajes!$D$7,0)))))","v":""}]
[null,null,{"$f":"+'Capacidad Financiera'!B664","v":""},{"$f":"IF(ISERROR(VLOOKUP(C661,'Capacidad Financiera'!$B$12:$X$62720,2,0)),\"\",VLOOKUP(C661,'Capacidad Financiera'!$B$12:$X$3580,2,0))","v":0},{"$f":"IF(ISERROR(VLOOKUP(C661,'Capacidad Financiera'!$B$12:$X$62720,3,0)),\"\",VLOOKUP(C661,'Capacidad Financiera'!$B$12:$X$62720,3,0))","v":0},null,{"$f":"IF(OR(D661=\"\",E661=\"\",F661=\"\"),\"\",IF(C661<>\"\",IF(ISERROR(VLOOKUP($A$10,POA!$A$2:$D$25,2,0)),\"\",VLOOKUP($A$10,POA!$A$2:$D$25,2,0)),\"\"))","v":""},"",{"$f":"IF(OR(D661=\"\",E661=\"\",F661=\"\"),\"\",IF(AND(H661>0,H661<=Experiencia1),Puntajes!$D$4,IF(AND(H661>Experiencia1,H661<=Experiencia2),Puntajes!$D$5,IF(AND(H661>Experiencia2,H661<=Experiencia3),Puntajes!$D$6,IF(H661>Experiencia3,Puntajes!$D$7,0)))))","v":""}]
[null,null,{"$f":"+'Capacidad Financiera'!B665","v":""},{"$f":"IF(ISERROR(VLOOKUP(C662,'Capacidad Financiera'!$B$12:$X$62720,2,0)),\"\",VLOOKUP(C662,'Capacidad Financiera'!$B$12:$X$3580,2,0))","v":0},{"$f":"IF(ISERROR(VLOOKUP(C662,'Capacidad Financiera'!$B$12:$X$62720,3,0)),\"\",VLOOKUP(C662,'Capacidad Financiera'!$B$12:$X$62720,3,0))","v":0},null,{"$f":"IF(OR(D662=\"\",E662=\"\",F662=\"\"),\"\",IF(C662<>\"\",IF(ISERROR(VLOOKUP($A$10,POA!$A$2:$D$25,2,0)),\"\",VLOOKUP($A$10,POA!$A$2:$D$25,2,0)),\"\"))","v":""},"",{"$f":"IF(OR(D662=\"\",E662=\"\",F662=\"\"),\"\",IF(AND(H662>0,H662<=Experiencia1),Puntajes!$D$4,IF(AND(H662>Experiencia1,H662<=Experiencia2),Puntajes!$D$5,IF(AND(H662>Experiencia2,H662<=Experiencia3),Puntajes!$D$6,IF(H662>Experiencia3,Puntajes!$D$7,0)))))","v":""}]
[null,null,{"$f":"+'Capacidad Financiera'!B666","v":""},{"$f":"IF(ISERROR(VLOOKUP(C663,'Capacidad Financiera'!$B$12:$X$62720,2,0)),\"\",VLOOKUP(C663,'Capacidad Financiera'!$B$12:$X$3580,2,0))","v":0},{"$f":"IF(ISERROR(VLOOKUP(C663,'Capacidad Financiera'!$B$12:$X$62720,3,0)),\"\",VLOOKUP(C663,'Capacidad Financiera'!$B$12:$X$62720,3,0))","v":0},null,{"$f":"IF(OR(D663=\"\",E663=\"\",F663=\"\"),\"\",IF(C663<>\"\",IF(ISERROR(VLOOKUP($A$10,POA!$A$2:$D$25,2,0)),\"\",VLOOKUP($A$10,POA!$A$2:$D$25,2,0)),\"\"))","v":""},"",{"$f":"IF(OR(D663=\"\",E663=\"\",F663=\"\"),\"\",IF(AND(H663>0,H663<=Experiencia1),Puntajes!$D$4,IF(AND(H663>Experiencia1,H663<=Experiencia2),Puntajes!$D$5,IF(AND(H663>Experiencia2,H663<=Experiencia3),Puntajes!$D$6,IF(H663>Experiencia3,Puntajes!$D$7,0)))))","v":""}]
[null,null,{"$f":"+'Capacidad Financiera'!B667","v":""},{"$f":"IF(ISERROR(VLOOKUP(C664,'Capacidad Financiera'!$B$12:$X$62720,2,0)),\"\",VLOOKUP(C664,'Capacidad Financiera'!$B$12:$X$3580,2,0))","v":0},{"$f":"IF(ISERROR(VLOOKUP(C664,'Capacidad Financiera'!$B$12:$X$62720,3,0)),\"\",VLOOKUP(C664,'Capacidad Financiera'!$B$12:$X$62720,3,0))","v":0},null,{"$f":"IF(OR(D664=\"\",E664=\"\",F664=\"\"),\"\",IF(C664<>\"\",IF(ISERROR(VLOOKUP($A$10,POA!$A$2:$D$25,2,0)),\"\",VLOOKUP($A$10,POA!$A$2:$D$25,2,0)),\"\"))","v":""},"",{"$f":"IF(OR(D664=\"\",E664=\"\",F664=\"\"),\"\",IF(AND(H664>0,H664<=Experiencia1),Puntajes!$D$4,IF(AND(H664>Experiencia1,H664<=Experiencia2),Puntajes!$D$5,IF(AND(H664>Experiencia2,H664<=Experiencia3),Puntajes!$D$6,IF(H664>Experiencia3,Puntajes!$D$7,0)))))","v":""}]
[null,null,{"$f":"+'Capacidad Financiera'!B668","v":""},{"$f":"IF(ISERROR(VLOOKUP(C665,'Capacidad Financiera'!$B$12:$X$62720,2,0)),\"\",VLOOKUP(C665,'Capacidad Financiera'!$B$12:$X$3580,2,0))","v":0},{"$f":"IF(ISERROR(VLOOKUP(C665,'Capacidad Financiera'!$B$12:$X$62720,3,0)),\"\",VLOOKUP(C665,'Capacidad Financiera'!$B$12:$X$62720,3,0))","v":0},null,{"$f":"IF(OR(D665=\"\",E665=\"\",F665=\"\"),\"\",IF(C665<>\"\",IF(ISERROR(VLOOKUP($A$10,POA!$A$2:$D$25,2,0)),\"\",VLOOKUP($A$10,POA!$A$2:$D$25,2,0)),\"\"))","v":""},"",{"$f":"IF(OR(D665=\"\",E665=\"\",F665=\"\"),\"\",IF(AND(H665>0,H665<=Experiencia1),Puntajes!$D$4,IF(AND(H665>Experiencia1,H665<=Experiencia2),Puntajes!$D$5,IF(AND(H665>Experiencia2,H665<=Experiencia3),Puntajes!$D$6,IF(H665>Experiencia3,Puntajes!$D$7,0)))))","v":""}]
[null,null,{"$f":"+'Capacidad Financiera'!B669","v":""},{"$f":"IF(ISERROR(VLOOKUP(C666,'Capacidad Financiera'!$B$12:$X$62720,2,0)),\"\",VLOOKUP(C666,'Capacidad Financiera'!$B$12:$X$3580,2,0))","v":0},{"$f":"IF(ISERROR(VLOOKUP(C666,'Capacidad Financiera'!$B$12:$X$62720,3,0)),\"\",VLOOKUP(C666,'Capacidad Financiera'!$B$12:$X$62720,3,0))","v":0},null,{"$f":"IF(OR(D666=\"\",E666=\"\",F666=\"\"),\"\",IF(C666<>\"\",IF(ISERROR(VLOOKUP($A$10,POA!$A$2:$D$25,2,0)),\"\",VLOOKUP($A$10,POA!$A$2:$D$25,2,0)),\"\"))","v":""},"",{"$f":"IF(OR(D666=\"\",E666=\"\",F666=\"\"),\"\",IF(AND(H666>0,H666<=Experiencia1),Puntajes!$D$4,IF(AND(H666>Experiencia1,H666<=Experiencia2),Puntajes!$D$5,IF(AND(H666>Experiencia2,H666<=Experiencia3),Puntajes!$D$6,IF(H666>Experiencia3,Puntajes!$D$7,0)))))","v":""}]
[null,null,{"$f":"+'Capacidad Financiera'!B670","v":""},{"$f":"IF(ISERROR(VLOOKUP(C667,'Capacidad Financiera'!$B$12:$X$62720,2,0)),\"\",VLOOKUP(C667,'Capacidad Financiera'!$B$12:$X$3580,2,0))","v":0},{"$f":"IF(ISERROR(VLOOKUP(C667,'Capacidad Financiera'!$B$12:$X$62720,3,0)),\"\",VLOOKUP(C667,'Capacidad Financiera'!$B$12:$X$62720,3,0))","v":0},null,{"$f":"IF(OR(D667=\"\",E667=\"\",F667=\"\"),\"\",IF(C667<>\"\",IF(ISERROR(VLOOKUP($A$10,POA!$A$2:$D$25,2,0)),\"\",VLOOKUP($A$10,POA!$A$2:$D$25,2,0)),\"\"))","v":""},"",{"$f":"IF(OR(D667=\"\",E667=\"\",F667=\"\"),\"\",IF(AND(H667>0,H667<=Experiencia1),Puntajes!$D$4,IF(AND(H667>Experiencia1,H667<=Experiencia2),Puntajes!$D$5,IF(AND(H667>Experiencia2,H667<=Experiencia3),Puntajes!$D$6,IF(H667>Experiencia3,Puntajes!$D$7,0)))))","v":""}]
[null,null,{"$f":"+'Capacidad Financiera'!B671","v":""},{"$f":"IF(ISERROR(VLOOKUP(C668,'Capacidad Financiera'!$B$12:$X$62720,2,0)),\"\",VLOOKUP(C668,'Capacidad Financiera'!$B$12:$X$3580,2,0))","v":0},{"$f":"IF(ISERROR(VLOOKUP(C668,'Capacidad Financiera'!$B$12:$X$62720,3,0)),\"\",VLOOKUP(C668,'Capacidad Financiera'!$B$12:$X$62720,3,0))","v":0},null,{"$f":"IF(OR(D668=\"\",E668=\"\",F668=\"\"),\"\",IF(C668<>\"\",IF(ISERROR(VLOOKUP($A$10,POA!$A$2:$D$25,2,0)),\"\",VLOOKUP($A$10,POA!$A$2:$D$25,2,0)),\"\"))","v":""},"",{"$f":"IF(OR(D668=\"\",E668=\"\",F668=\"\"),\"\",IF(AND(H668>0,H668<=Experiencia1),Puntajes!$D$4,IF(AND(H668>Experiencia1,H668<=Experiencia2),Puntajes!$D$5,IF(AND(H668>Experiencia2,H668<=Experiencia3),Puntajes!$D$6,IF(H668>Experiencia3,Puntajes!$D$7,0)))))","v":""}]
[null,null,61,{"$f":"IF(ISERROR(VLOOKUP(C669,'Capacidad Financiera'!$B$12:$X$62720,2,0)),\"\",VLOOKUP(C669,'Capacidad Financiera'!$B$12:$X$3580,2,0))","v":0},{"$f":"IF(ISERROR(VLOOKUP(C669,'Capacidad Financiera'!$B$12:$X$62720,3,0)),\"\",VLOOKUP(C669,'Capacidad Financiera'!$B$12:$X$62720,3,0))","v":""},null,{"$f":"IF(OR(D669=\"\",E669=\"\",F669=\"\"),\"\",IF(C670=\"\",IF(C669<>\"\",IF(ISERROR(VLOOKUP($A$10,POA!$A$2:$D$25,2,0)),\"\",VLOOKUP($A$10,POA!$A$2:$D$25,2,0)),\"\"),\"\"))","v":""},{"$f":"IF(OR(D669=\"\",E669=\"\",F669=\"\"),\"\",IF(C670=\"\",IF(C669<>\"\",F669/G669,\"\"),\"\"))","v":""},{"$f":"IF(C670=\"\",IF(F669=\"\",\"\",IF(AND(H669>0,H669<=Experiencia1),Puntajes!$D$4,IF(AND(H669>Experiencia1,H669<=Experiencia2),Puntajes!$D$5,IF(AND(H669>Experiencia2,H669<=Experiencia3),Puntajes!$D$6,IF(H669>Experiencia3,Puntajes!$D$7,0))))),\"\")","v":""}]
[null,null,{"$f":"+'Capacidad Financiera'!B673","v":""},{"$f":"IF(ISERROR(VLOOKUP(C670,'Capacidad Financiera'!$B$12:$X$62720,2,0)),\"\",VLOOKUP(C670,'Capacidad Financiera'!$B$12:$X$3580,2,0))","v":0},{"$f":"IF(ISERROR(VLOOKUP(C670,'Capacidad Financiera'!$B$12:$X$62720,3,0)),\"\",VLOOKUP(C670,'Capacidad Financiera'!$B$12:$X$62720,3,0))","v":0},null,{"$f":"IF(OR(D670=\"\",E670=\"\",F670=\"\"),\"\",IF(C670<>\"\",IF(ISERROR(VLOOKUP($A$10,POA!$A$2:$D$25,2,0)),\"\",VLOOKUP($A$10,POA!$A$2:$D$25,2,0)),\"\"))","v":""},{"$f":"IF(OR(D670=\"\",E670=\"\",F670=\"\"),\"\",IF(C670<>\"\",F670/(G670*E670),\"\"))","v":""},{"$f":"IF(OR(D670=\"\",E670=\"\",F670=\"\"),\"\",IF(AND(H670>0,H670<=Experiencia1),Puntajes!$D$4,IF(AND(H670>Experiencia1,H670<=Experiencia2),Puntajes!$D$5,IF(AND(H670>Experiencia2,H670<=Experiencia3),Puntajes!$D$6,IF(H670>Experiencia3,Puntajes!$D$7,0)))))","v":""}]
[null,null,{"$f":"+'Capacidad Financiera'!B674","v":""},{"$f":"IF(ISERROR(VLOOKUP(C671,'Capacidad Financiera'!$B$12:$X$62720,2,0)),\"\",VLOOKUP(C671,'Capacidad Financiera'!$B$12:$X$3580,2,0))","v":0},{"$f":"IF(ISERROR(VLOOKUP(C671,'Capacidad Financiera'!$B$12:$X$62720,3,0)),\"\",VLOOKUP(C671,'Capacidad Financiera'!$B$12:$X$62720,3,0))","v":0},null,{"$f":"IF(OR(D671=\"\",E671=\"\",F671=\"\"),\"\",IF(C671<>\"\",IF(ISERROR(VLOOKUP($A$10,POA!$A$2:$D$25,2,0)),\"\",VLOOKUP($A$10,POA!$A$2:$D$25,2,0)),\"\"))","v":""},{"$f":"IF(OR(D671=\"\",E671=\"\",F671=\"\"),\"\",IF(C671<>\"\",F671/(G671*E671),\"\"))","v":""},{"$f":"IF(OR(D671=\"\",E671=\"\",F671=\"\"),\"\",IF(AND(H671>0,H671<=Experiencia1),Puntajes!$D$4,IF(AND(H671>Experiencia1,H671<=Experiencia2),Puntajes!$D$5,IF(AND(H671>Experiencia2,H671<=Experiencia3),Puntajes!$D$6,IF(H671>Experiencia3,Puntajes!$D$7,0)))))","v":""}]
[null,null,{"$f":"+'Capacidad Financiera'!B675","v":""},{"$f":"IF(ISERROR(VLOOKUP(C672,'Capacidad Financiera'!$B$12:$X$62720,2,0)),\"\",VLOOKUP(C672,'Capacidad Financiera'!$B$12:$X$3580,2,0))","v":0},{"$f":"IF(ISERROR(VLOOKUP(C672,'Capacidad Financiera'!$B$12:$X$62720,3,0)),\"\",VLOOKUP(C672,'Capacidad Financiera'!$B$12:$X$62720,3,0))","v":0},null,{"$f":"IF(OR(D672=\"\",E672=\"\",F672=\"\"),\"\",IF(C672<>\"\",IF(ISERROR(VLOOKUP($A$10,POA!$A$2:$D$25,2,0)),\"\",VLOOKUP($A$10,POA!$A$2:$D$25,2,0)),\"\"))","v":""},"",{"$f":"IF(OR(D672=\"\",E672=\"\",F672=\"\"),\"\",IF(AND(H672>0,H672<=Experiencia1),Puntajes!$D$4,IF(AND(H672>Experiencia1,H672<=Experiencia2),Puntajes!$D$5,IF(AND(H672>Experiencia2,H672<=Experiencia3),Puntajes!$D$6,IF(H672>Experiencia3,Puntajes!$D$7,0)))))","v":""}]
[null,null,{"$f":"+'Capacidad Financiera'!B676","v":""},{"$f":"IF(ISERROR(VLOOKUP(C673,'Capacidad Financiera'!$B$12:$X$62720,2,0)),\"\",VLOOKUP(C673,'Capacidad Financiera'!$B$12:$X$3580,2,0))","v":0},{"$f":"IF(ISERROR(VLOOKUP(C673,'Capacidad Financiera'!$B$12:$X$62720,3,0)),\"\",VLOOKUP(C673,'Capacidad Financiera'!$B$12:$X$62720,3,0))","v":0},null,{"$f":"IF(OR(D673=\"\",E673=\"\",F673=\"\"),\"\",IF(C673<>\"\",IF(ISERROR(VLOOKUP($A$10,POA!$A$2:$D$25,2,0)),\"\",VLOOKUP($A$10,POA!$A$2:$D$25,2,0)),\"\"))","v":""},"",{"$f":"IF(OR(D673=\"\",E673=\"\",F673=\"\"),\"\",IF(AND(H673>0,H673<=Experiencia1),Puntajes!$D$4,IF(AND(H673>Experiencia1,H673<=Experiencia2),Puntajes!$D$5,IF(AND(H673>Experiencia2,H673<=Experiencia3),Puntajes!$D$6,IF(H673>Experiencia3,Puntajes!$D$7,0)))))","v":""}]
[null,null,{"$f":"+'Capacidad Financiera'!B677","v":""},{"$f":"IF(ISERROR(VLOOKUP(C674,'Capacidad Financiera'!$B$12:$X$62720,2,0)),\"\",VLOOKUP(C674,'Capacidad Financiera'!$B$12:$X$3580,2,0))","v":0},{"$f":"IF(ISERROR(VLOOKUP(C674,'Capacidad Financiera'!$B$12:$X$62720,3,0)),\"\",VLOOKUP(C674,'Capacidad Financiera'!$B$12:$X$62720,3,0))","v":0},null,{"$f":"IF(OR(D674=\"\",E674=\"\",F674=\"\"),\"\",IF(C674<>\"\",IF(ISERROR(VLOOKUP($A$10,POA!$A$2:$D$25,2,0)),\"\",VLOOKUP($A$10,POA!$A$2:$D$25,2,0)),\"\"))","v":""},"",{"$f":"IF(OR(D674=\"\",E674=\"\",F674=\"\"),\"\",IF(AND(H674>0,H674<=Experiencia1),Puntajes!$D$4,IF(AND(H674>Experiencia1,H674<=Experiencia2),Puntajes!$D$5,IF(AND(H674>Experiencia2,H674<=Experiencia3),Puntajes!$D$6,IF(H674>Experiencia3,Puntajes!$D$7,0)))))","v":""}]
[null,null,{"$f":"+'Capacidad Financiera'!B678","v":""},{"$f":"IF(ISERROR(VLOOKUP(C675,'Capacidad Financiera'!$B$12:$X$62720,2,0)),\"\",VLOOKUP(C675,'Capacidad Financiera'!$B$12:$X$3580,2,0))","v":0},{"$f":"IF(ISERROR(VLOOKUP(C675,'Capacidad Financiera'!$B$12:$X$62720,3,0)),\"\",VLOOKUP(C675,'Capacidad Financiera'!$B$12:$X$62720,3,0))","v":0},null,{"$f":"IF(OR(D675=\"\",E675=\"\",F675=\"\"),\"\",IF(C675<>\"\",IF(ISERROR(VLOOKUP($A$10,POA!$A$2:$D$25,2,0)),\"\",VLOOKUP($A$10,POA!$A$2:$D$25,2,0)),\"\"))","v":""},"",{"$f":"IF(OR(D675=\"\",E675=\"\",F675=\"\"),\"\",IF(AND(H675>0,H675<=Experiencia1),Puntajes!$D$4,IF(AND(H675>Experiencia1,H675<=Experiencia2),Puntajes!$D$5,IF(AND(H675>Experiencia2,H675<=Experiencia3),Puntajes!$D$6,IF(H675>Experiencia3,Puntajes!$D$7,0)))))","v":""}]
[null,null,{"$f":"+'Capacidad Financiera'!B679","v":""},{"$f":"IF(ISERROR(VLOOKUP(C676,'Capacidad Financiera'!$B$12:$X$62720,2,0)),\"\",VLOOKUP(C676,'Capacidad Financiera'!$B$12:$X$3580,2,0))","v":0},{"$f":"IF(ISERROR(VLOOKUP(C676,'Capacidad Financiera'!$B$12:$X$62720,3,0)),\"\",VLOOKUP(C676,'Capacidad Financiera'!$B$12:$X$62720,3,0))","v":0},null,{"$f":"IF(OR(D676=\"\",E676=\"\",F676=\"\"),\"\",IF(C676<>\"\",IF(ISERROR(VLOOKUP($A$10,POA!$A$2:$D$25,2,0)),\"\",VLOOKUP($A$10,POA!$A$2:$D$25,2,0)),\"\"))","v":""},"",{"$f":"IF(OR(D676=\"\",E676=\"\",F676=\"\"),\"\",IF(AND(H676>0,H676<=Experiencia1),Puntajes!$D$4,IF(AND(H676>Experiencia1,H676<=Experiencia2),Puntajes!$D$5,IF(AND(H676>Experiencia2,H676<=Experiencia3),Puntajes!$D$6,IF(H676>Experiencia3,Puntajes!$D$7,0)))))","v":""}]
[null,null,{"$f":"+'Capacidad Financiera'!B680","v":""},{"$f":"IF(ISERROR(VLOOKUP(C677,'Capacidad Financiera'!$B$12:$X$62720,2,0)),\"\",VLOOKUP(C677,'Capacidad Financiera'!$B$12:$X$3580,2,0))","v":0},{"$f":"IF(ISERROR(VLOOKUP(C677,'Capacidad Financiera'!$B$12:$X$62720,3,0)),\"\",VLOOKUP(C677,'Capacidad Financiera'!$B$12:$X$62720,3,0))","v":0},null,{"$f":"IF(OR(D677=\"\",E677=\"\",F677=\"\"),\"\",IF(C677<>\"\",IF(ISERROR(VLOOKUP($A$10,POA!$A$2:$D$25,2,0)),\"\",VLOOKUP($A$10,POA!$A$2:$D$25,2,0)),\"\"))","v":""},"",{"$f":"IF(OR(D677=\"\",E677=\"\",F677=\"\"),\"\",IF(AND(H677>0,H677<=Experiencia1),Puntajes!$D$4,IF(AND(H677>Experiencia1,H677<=Experiencia2),Puntajes!$D$5,IF(AND(H677>Experiencia2,H677<=Experiencia3),Puntajes!$D$6,IF(H677>Experiencia3,Puntajes!$D$7,0)))))","v":""}]
[null,null,{"$f":"+'Capacidad Financiera'!B681","v":""},{"$f":"IF(ISERROR(VLOOKUP(C678,'Capacidad Financiera'!$B$12:$X$62720,2,0)),\"\",VLOOKUP(C678,'Capacidad Financiera'!$B$12:$X$3580,2,0))","v":0},{"$f":"IF(ISERROR(VLOOKUP(C678,'Capacidad Financiera'!$B$12:$X$62720,3,0)),\"\",VLOOKUP(C678,'Capacidad Financiera'!$B$12:$X$62720,3,0))","v":0},null,{"$f":"IF(OR(D678=\"\",E678=\"\",F678=\"\"),\"\",IF(C678<>\"\",IF(ISERROR(VLOOKUP($A$10,POA!$A$2:$D$25,2,0)),\"\",VLOOKUP($A$10,POA!$A$2:$D$25,2,0)),\"\"))","v":""},"",{"$f":"IF(OR(D678=\"\",E678=\"\",F678=\"\"),\"\",IF(AND(H678>0,H678<=Experiencia1),Puntajes!$D$4,IF(AND(H678>Experiencia1,H678<=Experiencia2),Puntajes!$D$5,IF(AND(H678>Experiencia2,H678<=Experiencia3),Puntajes!$D$6,IF(H678>Experiencia3,Puntajes!$D$7,0)))))","v":""}]
[null,null,{"$f":"+'Capacidad Financiera'!B682","v":""},{"$f":"IF(ISERROR(VLOOKUP(C679,'Capacidad Financiera'!$B$12:$X$62720,2,0)),\"\",VLOOKUP(C679,'Capacidad Financiera'!$B$12:$X$3580,2,0))","v":0},{"$f":"IF(ISERROR(VLOOKUP(C679,'Capacidad Financiera'!$B$12:$X$62720,3,0)),\"\",VLOOKUP(C679,'Capacidad Financiera'!$B$12:$X$62720,3,0))","v":0},null,{"$f":"IF(OR(D679=\"\",E679=\"\",F679=\"\"),\"\",IF(C679<>\"\",IF(ISERROR(VLOOKUP($A$10,POA!$A$2:$D$25,2,0)),\"\",VLOOKUP($A$10,POA!$A$2:$D$25,2,0)),\"\"))","v":""},"",{"$f":"IF(OR(D679=\"\",E679=\"\",F679=\"\"),\"\",IF(AND(H679>0,H679<=Experiencia1),Puntajes!$D$4,IF(AND(H679>Experiencia1,H679<=Experiencia2),Puntajes!$D$5,IF(AND(H679>Experiencia2,H679<=Experiencia3),Puntajes!$D$6,IF(H679>Experiencia3,Puntajes!$D$7,0)))))","v":""}]
[null,null,62,{"$f":"IF(ISERROR(VLOOKUP(C680,'Capacidad Financiera'!$B$12:$X$62720,2,0)),\"\",VLOOKUP(C680,'Capacidad Financiera'!$B$12:$X$3580,2,0))","v":0},{"$f":"IF(ISERROR(VLOOKUP(C680,'Capacidad Financiera'!$B$12:$X$62720,3,0)),\"\",VLOOKUP(C680,'Capacidad Financiera'!$B$12:$X$62720,3,0))","v":""},null,{"$f":"IF(OR(D680=\"\",E680=\"\",F680=\"\"),\"\",IF(C681=\"\",IF(C680<>\"\",IF(ISERROR(VLOOKUP($A$10,POA!$A$2:$D$25,2,0)),\"\",VLOOKUP($A$10,POA!$A$2:$D$25,2,0)),\"\"),\"\"))","v":""},{"$f":"IF(OR(D680=\"\",E680=\"\",F680=\"\"),\"\",IF(C681=\"\",IF(C680<>\"\",F680/G680,\"\"),\"\"))","v":""},{"$f":"IF(C681=\"\",IF(F680=\"\",\"\",IF(AND(H680>0,H680<=Experiencia1),Puntajes!$D$4,IF(AND(H680>Experiencia1,H680<=Experiencia2),Puntajes!$D$5,IF(AND(H680>Experiencia2,H680<=Experiencia3),Puntajes!$D$6,IF(H680>Experiencia3,Puntajes!$D$7,0))))),\"\")","v":""}]
[null,null,{"$f":"+'Capacidad Financiera'!B684","v":""},{"$f":"IF(ISERROR(VLOOKUP(C681,'Capacidad Financiera'!$B$12:$X$62720,2,0)),\"\",VLOOKUP(C681,'Capacidad Financiera'!$B$12:$X$3580,2,0))","v":0},{"$f":"IF(ISERROR(VLOOKUP(C681,'Capacidad Financiera'!$B$12:$X$62720,3,0)),\"\",VLOOKUP(C681,'Capacidad Financiera'!$B$12:$X$62720,3,0))","v":0},null,{"$f":"IF(OR(D681=\"\",E681=\"\",F681=\"\"),\"\",IF(C681<>\"\",IF(ISERROR(VLOOKUP($A$10,POA!$A$2:$D$25,2,0)),\"\",VLOOKUP($A$10,POA!$A$2:$D$25,2,0)),\"\"))","v":""},{"$f":"IF(OR(D681=\"\",E681=\"\",F681=\"\"),\"\",IF(C681<>\"\",F681/(G681*E681),\"\"))","v":""},{"$f":"IF(OR(D681=\"\",E681=\"\",F681=\"\"),\"\",IF(AND(H681>0,H681<=Experiencia1),Puntajes!$D$4,IF(AND(H681>Experiencia1,H681<=Experiencia2),Puntajes!$D$5,IF(AND(H681>Experiencia2,H681<=Experiencia3),Puntajes!$D$6,IF(H681>Experiencia3,Puntajes!$D$7,0)))))","v":""}]
[null,null,{"$f":"+'Capacidad Financiera'!B685","v":""},{"$f":"IF(ISERROR(VLOOKUP(C682,'Capacidad Financiera'!$B$12:$X$62720,2,0)),\"\",VLOOKUP(C682,'Capacidad Financiera'!$B$12:$X$3580,2,0))","v":0},{"$f":"IF(ISERROR(VLOOKUP(C682,'Capacidad Financiera'!$B$12:$X$62720,3,0)),\"\",VLOOKUP(C682,'Capacidad Financiera'!$B$12:$X$62720,3,0))","v":0},null,{"$f":"IF(OR(D682=\"\",E682=\"\",F682=\"\"),\"\",IF(C682<>\"\",IF(ISERROR(VLOOKUP($A$10,POA!$A$2:$D$25,2,0)),\"\",VLOOKUP($A$10,POA!$A$2:$D$25,2,0)),\"\"))","v":""},{"$f":"IF(OR(D682=\"\",E682=\"\",F682=\"\"),\"\",IF(C682<>\"\",F682/(G682*E682),\"\"))","v":""},{"$f":"IF(OR(D682=\"\",E682=\"\",F682=\"\"),\"\",IF(AND(H682>0,H682<=Experiencia1),Puntajes!$D$4,IF(AND(H682>Experiencia1,H682<=Experiencia2),Puntajes!$D$5,IF(AND(H682>Experiencia2,H682<=Experiencia3),Puntajes!$D$6,IF(H682>Experiencia3,Puntajes!$D$7,0)))))","v":""}]
[null,null,{"$f":"+'Capacidad Financiera'!B686","v":""},{"$f":"IF(ISERROR(VLOOKUP(C683,'Capacidad Financiera'!$B$12:$X$62720,2,0)),\"\",VLOOKUP(C683,'Capacidad Financiera'!$B$12:$X$3580,2,0))","v":0},{"$f":"IF(ISERROR(VLOOKUP(C683,'Capacidad Financiera'!$B$12:$X$62720,3,0)),\"\",VLOOKUP(C683,'Capacidad Financiera'!$B$12:$X$62720,3,0))","v":0},null,{"$f":"IF(OR(D683=\"\",E683=\"\",F683=\"\"),\"\",IF(C683<>\"\",IF(ISERROR(VLOOKUP($A$10,POA!$A$2:$D$25,2,0)),\"\",VLOOKUP($A$10,POA!$A$2:$D$25,2,0)),\"\"))","v":""},"",{"$f":"IF(OR(D683=\"\",E683=\"\",F683=\"\"),\"\",IF(AND(H683>0,H683<=Experiencia1),Puntajes!$D$4,IF(AND(H683>Experiencia1,H683<=Experiencia2),Puntajes!$D$5,IF(AND(H683>Experiencia2,H683<=Experiencia3),Puntajes!$D$6,IF(H683>Experiencia3,Puntajes!$D$7,0)))))","v":""}]
[null,null,{"$f":"+'Capacidad Financiera'!B687","v":""},{"$f":"IF(ISERROR(VLOOKUP(C684,'Capacidad Financiera'!$B$12:$X$62720,2,0)),\"\",VLOOKUP(C684,'Capacidad Financiera'!$B$12:$X$3580,2,0))","v":0},{"$f":"IF(ISERROR(VLOOKUP(C684,'Capacidad Financiera'!$B$12:$X$62720,3,0)),\"\",VLOOKUP(C684,'Capacidad Financiera'!$B$12:$X$62720,3,0))","v":0},null,{"$f":"IF(OR(D684=\"\",E684=\"\",F684=\"\"),\"\",IF(C684<>\"\",IF(ISERROR(VLOOKUP($A$10,POA!$A$2:$D$25,2,0)),\"\",VLOOKUP($A$10,POA!$A$2:$D$25,2,0)),\"\"))","v":""},"",{"$f":"IF(OR(D684=\"\",E684=\"\",F684=\"\"),\"\",IF(AND(H684>0,H684<=Experiencia1),Puntajes!$D$4,IF(AND(H684>Experiencia1,H684<=Experiencia2),Puntajes!$D$5,IF(AND(H684>Experiencia2,H684<=Experiencia3),Puntajes!$D$6,IF(H684>Experiencia3,Puntajes!$D$7,0)))))","v":""}]
[null,null,{"$f":"+'Capacidad Financiera'!B688","v":""},{"$f":"IF(ISERROR(VLOOKUP(C685,'Capacidad Financiera'!$B$12:$X$62720,2,0)),\"\",VLOOKUP(C685,'Capacidad Financiera'!$B$12:$X$3580,2,0))","v":0},{"$f":"IF(ISERROR(VLOOKUP(C685,'Capacidad Financiera'!$B$12:$X$62720,3,0)),\"\",VLOOKUP(C685,'Capacidad Financiera'!$B$12:$X$62720,3,0))","v":0},null,{"$f":"IF(OR(D685=\"\",E685=\"\",F685=\"\"),\"\",IF(C685<>\"\",IF(ISERROR(VLOOKUP($A$10,POA!$A$2:$D$25,2,0)),\"\",VLOOKUP($A$10,POA!$A$2:$D$25,2,0)),\"\"))","v":""},"",{"$f":"IF(OR(D685=\"\",E685=\"\",F685=\"\"),\"\",IF(AND(H685>0,H685<=Experiencia1),Puntajes!$D$4,IF(AND(H685>Experiencia1,H685<=Experiencia2),Puntajes!$D$5,IF(AND(H685>Experiencia2,H685<=Experiencia3),Puntajes!$D$6,IF(H685>Experiencia3,Puntajes!$D$7,0)))))","v":""}]
[null,null,{"$f":"+'Capacidad Financiera'!B689","v":""},{"$f":"IF(ISERROR(VLOOKUP(C686,'Capacidad Financiera'!$B$12:$X$62720,2,0)),\"\",VLOOKUP(C686,'Capacidad Financiera'!$B$12:$X$3580,2,0))","v":0},{"$f":"IF(ISERROR(VLOOKUP(C686,'Capacidad Financiera'!$B$12:$X$62720,3,0)),\"\",VLOOKUP(C686,'Capacidad Financiera'!$B$12:$X$62720,3,0))","v":0},null,{"$f":"IF(OR(D686=\"\",E686=\"\",F686=\"\"),\"\",IF(C686<>\"\",IF(ISERROR(VLOOKUP($A$10,POA!$A$2:$D$25,2,0)),\"\",VLOOKUP($A$10,POA!$A$2:$D$25,2,0)),\"\"))","v":""},"",{"$f":"IF(OR(D686=\"\",E686=\"\",F686=\"\"),\"\",IF(AND(H686>0,H686<=Experiencia1),Puntajes!$D$4,IF(AND(H686>Experiencia1,H686<=Experiencia2),Puntajes!$D$5,IF(AND(H686>Experiencia2,H686<=Experiencia3),Puntajes!$D$6,IF(H686>Experiencia3,Puntajes!$D$7,0)))))","v":""}]
[null,null,{"$f":"+'Capacidad Financiera'!B690","v":""},{"$f":"IF(ISERROR(VLOOKUP(C687,'Capacidad Financiera'!$B$12:$X$62720,2,0)),\"\",VLOOKUP(C687,'Capacidad Financiera'!$B$12:$X$3580,2,0))","v":0},{"$f":"IF(ISERROR(VLOOKUP(C687,'Capacidad Financiera'!$B$12:$X$62720,3,0)),\"\",VLOOKUP(C687,'Capacidad Financiera'!$B$12:$X$62720,3,0))","v":0},null,{"$f":"IF(OR(D687=\"\",E687=\"\",F687=\"\"),\"\",IF(C687<>\"\",IF(ISERROR(VLOOKUP($A$10,POA!$A$2:$D$25,2,0)),\"\",VLOOKUP($A$10,POA!$A$2:$D$25,2,0)),\"\"))","v":""},"",{"$f":"IF(OR(D687=\"\",E687=\"\",F687=\"\"),\"\",IF(AND(H687>0,H687<=Experiencia1),Puntajes!$D$4,IF(AND(H687>Experiencia1,H687<=Experiencia2),Puntajes!$D$5,IF(AND(H687>Experiencia2,H687<=Experiencia3),Puntajes!$D$6,IF(H687>Experiencia3,Puntajes!$D$7,0)))))","v":""}]
[null,null,{"$f":"+'Capacidad Financiera'!B691","v":""},{"$f":"IF(ISERROR(VLOOKUP(C688,'Capacidad Financiera'!$B$12:$X$62720,2,0)),\"\",VLOOKUP(C688,'Capacidad Financiera'!$B$12:$X$3580,2,0))","v":0},{"$f":"IF(ISERROR(VLOOKUP(C688,'Capacidad Financiera'!$B$12:$X$62720,3,0)),\"\",VLOOKUP(C688,'Capacidad Financiera'!$B$12:$X$62720,3,0))","v":0},null,{"$f":"IF(OR(D688=\"\",E688=\"\",F688=\"\"),\"\",IF(C688<>\"\",IF(ISERROR(VLOOKUP($A$10,POA!$A$2:$D$25,2,0)),\"\",VLOOKUP($A$10,POA!$A$2:$D$25,2,0)),\"\"))","v":""},"",{"$f":"IF(OR(D688=\"\",E688=\"\",F688=\"\"),\"\",IF(AND(H688>0,H688<=Experiencia1),Puntajes!$D$4,IF(AND(H688>Experiencia1,H688<=Experiencia2),Puntajes!$D$5,IF(AND(H688>Experiencia2,H688<=Experiencia3),Puntajes!$D$6,IF(H688>Experiencia3,Puntajes!$D$7,0)))))","v":""}]
[null,null,{"$f":"+'Capacidad Financiera'!B692","v":""},{"$f":"IF(ISERROR(VLOOKUP(C689,'Capacidad Financiera'!$B$12:$X$62720,2,0)),\"\",VLOOKUP(C689,'Capacidad Financiera'!$B$12:$X$3580,2,0))","v":0},{"$f":"IF(ISERROR(VLOOKUP(C689,'Capacidad Financiera'!$B$12:$X$62720,3,0)),\"\",VLOOKUP(C689,'Capacidad Financiera'!$B$12:$X$62720,3,0))","v":0},null,{"$f":"IF(OR(D689=\"\",E689=\"\",F689=\"\"),\"\",IF(C689<>\"\",IF(ISERROR(VLOOKUP($A$10,POA!$A$2:$D$25,2,0)),\"\",VLOOKUP($A$10,POA!$A$2:$D$25,2,0)),\"\"))","v":""},"",{"$f":"IF(OR(D689=\"\",E689=\"\",F689=\"\"),\"\",IF(AND(H689>0,H689<=Experiencia1),Puntajes!$D$4,IF(AND(H689>Experiencia1,H689<=Experiencia2),Puntajes!$D$5,IF(AND(H689>Experiencia2,H689<=Experiencia3),Puntajes!$D$6,IF(H689>Experiencia3,Puntajes!$D$7,0)))))","v":""}]
[null,null,{"$f":"+'Capacidad Financiera'!B693","v":""},{"$f":"IF(ISERROR(VLOOKUP(C690,'Capacidad Financiera'!$B$12:$X$62720,2,0)),\"\",VLOOKUP(C690,'Capacidad Financiera'!$B$12:$X$3580,2,0))","v":0},{"$f":"IF(ISERROR(VLOOKUP(C690,'Capacidad Financiera'!$B$12:$X$62720,3,0)),\"\",VLOOKUP(C690,'Capacidad Financiera'!$B$12:$X$62720,3,0))","v":0},null,{"$f":"IF(OR(D690=\"\",E690=\"\",F690=\"\"),\"\",IF(C690<>\"\",IF(ISERROR(VLOOKUP($A$10,POA!$A$2:$D$25,2,0)),\"\",VLOOKUP($A$10,POA!$A$2:$D$25,2,0)),\"\"))","v":""},"",{"$f":"IF(OR(D690=\"\",E690=\"\",F690=\"\"),\"\",IF(AND(H690>0,H690<=Experiencia1),Puntajes!$D$4,IF(AND(H690>Experiencia1,H690<=Experiencia2),Puntajes!$D$5,IF(AND(H690>Experiencia2,H690<=Experiencia3),Puntajes!$D$6,IF(H690>Experiencia3,Puntajes!$D$7,0)))))","v":""}]
[null,null,63,{"$f":"IF(ISERROR(VLOOKUP(C691,'Capacidad Financiera'!$B$12:$X$62720,2,0)),\"\",VLOOKUP(C691,'Capacidad Financiera'!$B$12:$X$3580,2,0))","v":0},{"$f":"IF(ISERROR(VLOOKUP(C691,'Capacidad Financiera'!$B$12:$X$62720,3,0)),\"\",VLOOKUP(C691,'Capacidad Financiera'!$B$12:$X$62720,3,0))","v":""},null,{"$f":"IF(OR(D691=\"\",E691=\"\",F691=\"\"),\"\",IF(C692=\"\",IF(C691<>\"\",IF(ISERROR(VLOOKUP($A$10,POA!$A$2:$D$25,2,0)),\"\",VLOOKUP($A$10,POA!$A$2:$D$25,2,0)),\"\"),\"\"))","v":""},{"$f":"IF(OR(D691=\"\",E691=\"\",F691=\"\"),\"\",IF(C692=\"\",IF(C691<>\"\",F691/G691,\"\"),\"\"))","v":""},{"$f":"IF(C692=\"\",IF(F691=\"\",\"\",IF(AND(H691>0,H691<=Experiencia1),Puntajes!$D$4,IF(AND(H691>Experiencia1,H691<=Experiencia2),Puntajes!$D$5,IF(AND(H691>Experiencia2,H691<=Experiencia3),Puntajes!$D$6,IF(H691>Experiencia3,Puntajes!$D$7,0))))),\"\")","v":""}]
[null,null,{"$f":"+'Capacidad Financiera'!B695","v":""},{"$f":"IF(ISERROR(VLOOKUP(C692,'Capacidad Financiera'!$B$12:$X$62720,2,0)),\"\",VLOOKUP(C692,'Capacidad Financiera'!$B$12:$X$3580,2,0))","v":0},{"$f":"IF(ISERROR(VLOOKUP(C692,'Capacidad Financiera'!$B$12:$X$62720,3,0)),\"\",VLOOKUP(C692,'Capacidad Financiera'!$B$12:$X$62720,3,0))","v":0},null,{"$f":"IF(OR(D692=\"\",E692=\"\",F692=\"\"),\"\",IF(C692<>\"\",IF(ISERROR(VLOOKUP($A$10,POA!$A$2:$D$25,2,0)),\"\",VLOOKUP($A$10,POA!$A$2:$D$25,2,0)),\"\"))","v":""},{"$f":"IF(OR(D692=\"\",E692=\"\",F692=\"\"),\"\",IF(C692<>\"\",F692/(G692*E692),\"\"))","v":""},{"$f":"IF(OR(D692=\"\",E692=\"\",F692=\"\"),\"\",IF(AND(H692>0,H692<=Experiencia1),Puntajes!$D$4,IF(AND(H692>Experiencia1,H692<=Experiencia2),Puntajes!$D$5,IF(AND(H692>Experiencia2,H692<=Experiencia3),Puntajes!$D$6,IF(H692>Experiencia3,Puntajes!$D$7,0)))))","v":""}]
[null,null,{"$f":"+'Capacidad Financiera'!B696","v":""},{"$f":"IF(ISERROR(VLOOKUP(C693,'Capacidad Financiera'!$B$12:$X$62720,2,0)),\"\",VLOOKUP(C693,'Capacidad Financiera'!$B$12:$X$3580,2,0))","v":0},{"$f":"IF(ISERROR(VLOOKUP(C693,'Capacidad Financiera'!$B$12:$X$62720,3,0)),\"\",VLOOKUP(C693,'Capacidad Financiera'!$B$12:$X$62720,3,0))","v":0},null,{"$f":"IF(OR(D693=\"\",E693=\"\",F693=\"\"),\"\",IF(C693<>\"\",IF(ISERROR(VLOOKUP($A$10,POA!$A$2:$D$25,2,0)),\"\",VLOOKUP($A$10,POA!$A$2:$D$25,2,0)),\"\"))","v":""},{"$f":"IF(OR(D693=\"\",E693=\"\",F693=\"\"),\"\",IF(C693<>\"\",F693/(G693*E693),\"\"))","v":""},{"$f":"IF(OR(D693=\"\",E693=\"\",F693=\"\"),\"\",IF(AND(H693>0,H693<=Experiencia1),Puntajes!$D$4,IF(AND(H693>Experiencia1,H693<=Experiencia2),Puntajes!$D$5,IF(AND(H693>Experiencia2,H693<=Experiencia3),Puntajes!$D$6,IF(H693>Experiencia3,Puntajes!$D$7,0)))))","v":""}]
[null,null,{"$f":"+'Capacidad Financiera'!B697","v":""},{"$f":"IF(ISERROR(VLOOKUP(C694,'Capacidad Financiera'!$B$12:$X$62720,2,0)),\"\",VLOOKUP(C694,'Capacidad Financiera'!$B$12:$X$3580,2,0))","v":0},{"$f":"IF(ISERROR(VLOOKUP(C694,'Capacidad Financiera'!$B$12:$X$62720,3,0)),\"\",VLOOKUP(C694,'Capacidad Financiera'!$B$12:$X$62720,3,0))","v":0},null,{"$f":"IF(OR(D694=\"\",E694=\"\",F694=\"\"),\"\",IF(C694<>\"\",IF(ISERROR(VLOOKUP($A$10,POA!$A$2:$D$25,2,0)),\"\",VLOOKUP($A$10,POA!$A$2:$D$25,2,0)),\"\"))","v":""},"",{"$f":"IF(OR(D694=\"\",E694=\"\",F694=\"\"),\"\",IF(AND(H694>0,H694<=Experiencia1),Puntajes!$D$4,IF(AND(H694>Experiencia1,H694<=Experiencia2),Puntajes!$D$5,IF(AND(H694>Experiencia2,H694<=Experiencia3),Puntajes!$D$6,IF(H694>Experiencia3,Puntajes!$D$7,0)))))","v":""}]
[null,null,{"$f":"+'Capacidad Financiera'!B698","v":""},{"$f":"IF(ISERROR(VLOOKUP(C695,'Capacidad Financiera'!$B$12:$X$62720,2,0)),\"\",VLOOKUP(C695,'Capacidad Financiera'!$B$12:$X$3580,2,0))","v":0},{"$f":"IF(ISERROR(VLOOKUP(C695,'Capacidad Financiera'!$B$12:$X$62720,3,0)),\"\",VLOOKUP(C695,'Capacidad Financiera'!$B$12:$X$62720,3,0))","v":0},null,{"$f":"IF(OR(D695=\"\",E695=\"\",F695=\"\"),\"\",IF(C695<>\"\",IF(ISERROR(VLOOKUP($A$10,POA!$A$2:$D$25,2,0)),\"\",VLOOKUP($A$10,POA!$A$2:$D$25,2,0)),\"\"))","v":""},"",{"$f":"IF(OR(D695=\"\",E695=\"\",F695=\"\"),\"\",IF(AND(H695>0,H695<=Experiencia1),Puntajes!$D$4,IF(AND(H695>Experiencia1,H695<=Experiencia2),Puntajes!$D$5,IF(AND(H695>Experiencia2,H695<=Experiencia3),Puntajes!$D$6,IF(H695>Experiencia3,Puntajes!$D$7,0)))))","v":""}]
[null,null,{"$f":"+'Capacidad Financiera'!B699","v":""},{"$f":"IF(ISERROR(VLOOKUP(C696,'Capacidad Financiera'!$B$12:$X$62720,2,0)),\"\",VLOOKUP(C696,'Capacidad Financiera'!$B$12:$X$3580,2,0))","v":0},{"$f":"IF(ISERROR(VLOOKUP(C696,'Capacidad Financiera'!$B$12:$X$62720,3,0)),\"\",VLOOKUP(C696,'Capacidad Financiera'!$B$12:$X$62720,3,0))","v":0},null,{"$f":"IF(OR(D696=\"\",E696=\"\",F696=\"\"),\"\",IF(C696<>\"\",IF(ISERROR(VLOOKUP($A$10,POA!$A$2:$D$25,2,0)),\"\",VLOOKUP($A$10,POA!$A$2:$D$25,2,0)),\"\"))","v":""},"",{"$f":"IF(OR(D696=\"\",E696=\"\",F696=\"\"),\"\",IF(AND(H696>0,H696<=Experiencia1),Puntajes!$D$4,IF(AND(H696>Experiencia1,H696<=Experiencia2),Puntajes!$D$5,IF(AND(H696>Experiencia2,H696<=Experiencia3),Puntajes!$D$6,IF(H696>Experiencia3,Puntajes!$D$7,0)))))","v":""}]
[null,null,{"$f":"+'Capacidad Financiera'!B700","v":""},{"$f":"IF(ISERROR(VLOOKUP(C697,'Capacidad Financiera'!$B$12:$X$62720,2,0)),\"\",VLOOKUP(C697,'Capacidad Financiera'!$B$12:$X$3580,2,0))","v":0},{"$f":"IF(ISERROR(VLOOKUP(C697,'Capacidad Financiera'!$B$12:$X$62720,3,0)),\"\",VLOOKUP(C697,'Capacidad Financiera'!$B$12:$X$62720,3,0))","v":0},null,{"$f":"IF(OR(D697=\"\",E697=\"\",F697=\"\"),\"\",IF(C697<>\"\",IF(ISERROR(VLOOKUP($A$10,POA!$A$2:$D$25,2,0)),\"\",VLOOKUP($A$10,POA!$A$2:$D$25,2,0)),\"\"))","v":""},"",{"$f":"IF(OR(D697=\"\",E697=\"\",F697=\"\"),\"\",IF(AND(H697>0,H697<=Experiencia1),Puntajes!$D$4,IF(AND(H697>Experiencia1,H697<=Experiencia2),Puntajes!$D$5,IF(AND(H697>Experiencia2,H697<=Experiencia3),Puntajes!$D$6,IF(H697>Experiencia3,Puntajes!$D$7,0)))))","v":""}]
[null,null,{"$f":"+'Capacidad Financiera'!B701","v":""},{"$f":"IF(ISERROR(VLOOKUP(C698,'Capacidad Financiera'!$B$12:$X$62720,2,0)),\"\",VLOOKUP(C698,'Capacidad Financiera'!$B$12:$X$3580,2,0))","v":0},{"$f":"IF(ISERROR(VLOOKUP(C698,'Capacidad Financiera'!$B$12:$X$62720,3,0)),\"\",VLOOKUP(C698,'Capacidad Financiera'!$B$12:$X$62720,3,0))","v":0},null,{"$f":"IF(OR(D698=\"\",E698=\"\",F698=\"\"),\"\",IF(C698<>\"\",IF(ISERROR(VLOOKUP($A$10,POA!$A$2:$D$25,2,0)),\"\",VLOOKUP($A$10,POA!$A$2:$D$25,2,0)),\"\"))","v":""},"",{"$f":"IF(OR(D698=\"\",E698=\"\",F698=\"\"),\"\",IF(AND(H698>0,H698<=Experiencia1),Puntajes!$D$4,IF(AND(H698>Experiencia1,H698<=Experiencia2),Puntajes!$D$5,IF(AND(H698>Experiencia2,H698<=Experiencia3),Puntajes!$D$6,IF(H698>Experiencia3,Puntajes!$D$7,0)))))","v":""}]
[null,null,{"$f":"+'Capacidad Financiera'!B702","v":""},{"$f":"IF(ISERROR(VLOOKUP(C699,'Capacidad Financiera'!$B$12:$X$62720,2,0)),\"\",VLOOKUP(C699,'Capacidad Financiera'!$B$12:$X$3580,2,0))","v":0},{"$f":"IF(ISERROR(VLOOKUP(C699,'Capacidad Financiera'!$B$12:$X$62720,3,0)),\"\",VLOOKUP(C699,'Capacidad Financiera'!$B$12:$X$62720,3,0))","v":0},null,{"$f":"IF(OR(D699=\"\",E699=\"\",F699=\"\"),\"\",IF(C699<>\"\",IF(ISERROR(VLOOKUP($A$10,POA!$A$2:$D$25,2,0)),\"\",VLOOKUP($A$10,POA!$A$2:$D$25,2,0)),\"\"))","v":""},"",{"$f":"IF(OR(D699=\"\",E699=\"\",F699=\"\"),\"\",IF(AND(H699>0,H699<=Experiencia1),Puntajes!$D$4,IF(AND(H699>Experiencia1,H699<=Experiencia2),Puntajes!$D$5,IF(AND(H699>Experiencia2,H699<=Experiencia3),Puntajes!$D$6,IF(H699>Experiencia3,Puntajes!$D$7,0)))))","v":""}]
[null,null,{"$f":"+'Capacidad Financiera'!B703","v":""},{"$f":"IF(ISERROR(VLOOKUP(C700,'Capacidad Financiera'!$B$12:$X$62720,2,0)),\"\",VLOOKUP(C700,'Capacidad Financiera'!$B$12:$X$3580,2,0))","v":0},{"$f":"IF(ISERROR(VLOOKUP(C700,'Capacidad Financiera'!$B$12:$X$62720,3,0)),\"\",VLOOKUP(C700,'Capacidad Financiera'!$B$12:$X$62720,3,0))","v":0},null,{"$f":"IF(OR(D700=\"\",E700=\"\",F700=\"\"),\"\",IF(C700<>\"\",IF(ISERROR(VLOOKUP($A$10,POA!$A$2:$D$25,2,0)),\"\",VLOOKUP($A$10,POA!$A$2:$D$25,2,0)),\"\"))","v":""},"",{"$f":"IF(OR(D700=\"\",E700=\"\",F700=\"\"),\"\",IF(AND(H700>0,H700<=Experiencia1),Puntajes!$D$4,IF(AND(H700>Experiencia1,H700<=Experiencia2),Puntajes!$D$5,IF(AND(H700>Experiencia2,H700<=Experiencia3),Puntajes!$D$6,IF(H700>Experiencia3,Puntajes!$D$7,0)))))","v":""}]
[null,null,{"$f":"+'Capacidad Financiera'!B704","v":""},{"$f":"IF(ISERROR(VLOOKUP(C701,'Capacidad Financiera'!$B$12:$X$62720,2,0)),\"\",VLOOKUP(C701,'Capacidad Financiera'!$B$12:$X$3580,2,0))","v":0},{"$f":"IF(ISERROR(VLOOKUP(C701,'Capacidad Financiera'!$B$12:$X$62720,3,0)),\"\",VLOOKUP(C701,'Capacidad Financiera'!$B$12:$X$62720,3,0))","v":0},null,{"$f":"IF(OR(D701=\"\",E701=\"\",F701=\"\"),\"\",IF(C701<>\"\",IF(ISERROR(VLOOKUP($A$10,POA!$A$2:$D$25,2,0)),\"\",VLOOKUP($A$10,POA!$A$2:$D$25,2,0)),\"\"))","v":""},"",{"$f":"IF(OR(D701=\"\",E701=\"\",F701=\"\"),\"\",IF(AND(H701>0,H701<=Experiencia1),Puntajes!$D$4,IF(AND(H701>Experiencia1,H701<=Experiencia2),Puntajes!$D$5,IF(AND(H701>Experiencia2,H701<=Experiencia3),Puntajes!$D$6,IF(H701>Experiencia3,Puntajes!$D$7,0)))))","v":""}]
[null,null,64,{"$f":"IF(ISERROR(VLOOKUP(C702,'Capacidad Financiera'!$B$12:$X$62720,2,0)),\"\",VLOOKUP(C702,'Capacidad Financiera'!$B$12:$X$3580,2,0))","v":0},{"$f":"IF(ISERROR(VLOOKUP(C702,'Capacidad Financiera'!$B$12:$X$62720,3,0)),\"\",VLOOKUP(C702,'Capacidad Financiera'!$B$12:$X$62720,3,0))","v":""},null,{"$f":"IF(OR(D702=\"\",E702=\"\",F702=\"\"),\"\",IF(C703=\"\",IF(C702<>\"\",IF(ISERROR(VLOOKUP($A$10,POA!$A$2:$D$25,2,0)),\"\",VLOOKUP($A$10,POA!$A$2:$D$25,2,0)),\"\"),\"\"))","v":""},{"$f":"IF(OR(D702=\"\",E702=\"\",F702=\"\"),\"\",IF(C703=\"\",IF(C702<>\"\",F702/G702,\"\"),\"\"))","v":""},{"$f":"IF(C703=\"\",IF(F702=\"\",\"\",IF(AND(H702>0,H702<=Experiencia1),Puntajes!$D$4,IF(AND(H702>Experiencia1,H702<=Experiencia2),Puntajes!$D$5,IF(AND(H702>Experiencia2,H702<=Experiencia3),Puntajes!$D$6,IF(H702>Experiencia3,Puntajes!$D$7,0))))),\"\")","v":""}]
[null,null,{"$f":"+'Capacidad Financiera'!B706","v":""},{"$f":"IF(ISERROR(VLOOKUP(C703,'Capacidad Financiera'!$B$12:$X$62720,2,0)),\"\",VLOOKUP(C703,'Capacidad Financiera'!$B$12:$X$3580,2,0))","v":0},{"$f":"IF(ISERROR(VLOOKUP(C703,'Capacidad Financiera'!$B$12:$X$62720,3,0)),\"\",VLOOKUP(C703,'Capacidad Financiera'!$B$12:$X$62720,3,0))","v":0},null,{"$f":"IF(OR(D703=\"\",E703=\"\",F703=\"\"),\"\",IF(C703<>\"\",IF(ISERROR(VLOOKUP($A$10,POA!$A$2:$D$25,2,0)),\"\",VLOOKUP($A$10,POA!$A$2:$D$25,2,0)),\"\"))","v":""},{"$f":"IF(OR(D703=\"\",E703=\"\",F703=\"\"),\"\",IF(C703<>\"\",F703/(G703*E703),\"\"))","v":""},{"$f":"IF(OR(D703=\"\",E703=\"\",F703=\"\"),\"\",IF(AND(H703>0,H703<=Experiencia1),Puntajes!$D$4,IF(AND(H703>Experiencia1,H703<=Experiencia2),Puntajes!$D$5,IF(AND(H703>Experiencia2,H703<=Experiencia3),Puntajes!$D$6,IF(H703>Experiencia3,Puntajes!$D$7,0)))))","v":""}]
[null,null,{"$f":"+'Capacidad Financiera'!B707","v":""},{"$f":"IF(ISERROR(VLOOKUP(C704,'Capacidad Financiera'!$B$12:$X$62720,2,0)),\"\",VLOOKUP(C704,'Capacidad Financiera'!$B$12:$X$3580,2,0))","v":0},{"$f":"IF(ISERROR(VLOOKUP(C704,'Capacidad Financiera'!$B$12:$X$62720,3,0)),\"\",VLOOKUP(C704,'Capacidad Financiera'!$B$12:$X$62720,3,0))","v":0},null,{"$f":"IF(OR(D704=\"\",E704=\"\",F704=\"\"),\"\",IF(C704<>\"\",IF(ISERROR(VLOOKUP($A$10,POA!$A$2:$D$25,2,0)),\"\",VLOOKUP($A$10,POA!$A$2:$D$25,2,0)),\"\"))","v":""},{"$f":"IF(OR(D704=\"\",E704=\"\",F704=\"\"),\"\",IF(C704<>\"\",F704/(G704*E704),\"\"))","v":""},{"$f":"IF(OR(D704=\"\",E704=\"\",F704=\"\"),\"\",IF(AND(H704>0,H704<=Experiencia1),Puntajes!$D$4,IF(AND(H704>Experiencia1,H704<=Experiencia2),Puntajes!$D$5,IF(AND(H704>Experiencia2,H704<=Experiencia3),Puntajes!$D$6,IF(H704>Experiencia3,Puntajes!$D$7,0)))))","v":""}]
[null,null,{"$f":"+'Capacidad Financiera'!B708","v":""},{"$f":"IF(ISERROR(VLOOKUP(C705,'Capacidad Financiera'!$B$12:$X$62720,2,0)),\"\",VLOOKUP(C705,'Capacidad Financiera'!$B$12:$X$3580,2,0))","v":0},{"$f":"IF(ISERROR(VLOOKUP(C705,'Capacidad Financiera'!$B$12:$X$62720,3,0)),\"\",VLOOKUP(C705,'Capacidad Financiera'!$B$12:$X$62720,3,0))","v":0},null,{"$f":"IF(OR(D705=\"\",E705=\"\",F705=\"\"),\"\",IF(C705<>\"\",IF(ISERROR(VLOOKUP($A$10,POA!$A$2:$D$25,2,0)),\"\",VLOOKUP($A$10,POA!$A$2:$D$25,2,0)),\"\"))","v":""},"",{"$f":"IF(OR(D705=\"\",E705=\"\",F705=\"\"),\"\",IF(AND(H705>0,H705<=Experiencia1),Puntajes!$D$4,IF(AND(H705>Experiencia1,H705<=Experiencia2),Puntajes!$D$5,IF(AND(H705>Experiencia2,H705<=Experiencia3),Puntajes!$D$6,IF(H705>Experiencia3,Puntajes!$D$7,0)))))","v":""}]
[null,null,{"$f":"+'Capacidad Financiera'!B709","v":""},{"$f":"IF(ISERROR(VLOOKUP(C706,'Capacidad Financiera'!$B$12:$X$62720,2,0)),\"\",VLOOKUP(C706,'Capacidad Financiera'!$B$12:$X$3580,2,0))","v":0},{"$f":"IF(ISERROR(VLOOKUP(C706,'Capacidad Financiera'!$B$12:$X$62720,3,0)),\"\",VLOOKUP(C706,'Capacidad Financiera'!$B$12:$X$62720,3,0))","v":0},null,{"$f":"IF(OR(D706=\"\",E706=\"\",F706=\"\"),\"\",IF(C706<>\"\",IF(ISERROR(VLOOKUP($A$10,POA!$A$2:$D$25,2,0)),\"\",VLOOKUP($A$10,POA!$A$2:$D$25,2,0)),\"\"))","v":""},"",{"$f":"IF(OR(D706=\"\",E706=\"\",F706=\"\"),\"\",IF(AND(H706>0,H706<=Experiencia1),Puntajes!$D$4,IF(AND(H706>Experiencia1,H706<=Experiencia2),Puntajes!$D$5,IF(AND(H706>Experiencia2,H706<=Experiencia3),Puntajes!$D$6,IF(H706>Experiencia3,Puntajes!$D$7,0)))))","v":""}]
[null,null,{"$f":"+'Capacidad Financiera'!B710","v":""},{"$f":"IF(ISERROR(VLOOKUP(C707,'Capacidad Financiera'!$B$12:$X$62720,2,0)),\"\",VLOOKUP(C707,'Capacidad Financiera'!$B$12:$X$3580,2,0))","v":0},{"$f":"IF(ISERROR(VLOOKUP(C707,'Capacidad Financiera'!$B$12:$X$62720,3,0)),\"\",VLOOKUP(C707,'Capacidad Financiera'!$B$12:$X$62720,3,0))","v":0},null,{"$f":"IF(OR(D707=\"\",E707=\"\",F707=\"\"),\"\",IF(C707<>\"\",IF(ISERROR(VLOOKUP($A$10,POA!$A$2:$D$25,2,0)),\"\",VLOOKUP($A$10,POA!$A$2:$D$25,2,0)),\"\"))","v":""},"",{"$f":"IF(OR(D707=\"\",E707=\"\",F707=\"\"),\"\",IF(AND(H707>0,H707<=Experiencia1),Puntajes!$D$4,IF(AND(H707>Experiencia1,H707<=Experiencia2),Puntajes!$D$5,IF(AND(H707>Experiencia2,H707<=Experiencia3),Puntajes!$D$6,IF(H707>Experiencia3,Puntajes!$D$7,0)))))","v":""}]
[null,null,{"$f":"+'Capacidad Financiera'!B711","v":""},{"$f":"IF(ISERROR(VLOOKUP(C708,'Capacidad Financiera'!$B$12:$X$62720,2,0)),\"\",VLOOKUP(C708,'Capacidad Financiera'!$B$12:$X$3580,2,0))","v":0},{"$f":"IF(ISERROR(VLOOKUP(C708,'Capacidad Financiera'!$B$12:$X$62720,3,0)),\"\",VLOOKUP(C708,'Capacidad Financiera'!$B$12:$X$62720,3,0))","v":0},null,{"$f":"IF(OR(D708=\"\",E708=\"\",F708=\"\"),\"\",IF(C708<>\"\",IF(ISERROR(VLOOKUP($A$10,POA!$A$2:$D$25,2,0)),\"\",VLOOKUP($A$10,POA!$A$2:$D$25,2,0)),\"\"))","v":""},"",{"$f":"IF(OR(D708=\"\",E708=\"\",F708=\"\"),\"\",IF(AND(H708>0,H708<=Experiencia1),Puntajes!$D$4,IF(AND(H708>Experiencia1,H708<=Experiencia2),Puntajes!$D$5,IF(AND(H708>Experiencia2,H708<=Experiencia3),Puntajes!$D$6,IF(H708>Experiencia3,Puntajes!$D$7,0)))))","v":""}]
[null,null,{"$f":"+'Capacidad Financiera'!B712","v":""},{"$f":"IF(ISERROR(VLOOKUP(C709,'Capacidad Financiera'!$B$12:$X$62720,2,0)),\"\",VLOOKUP(C709,'Capacidad Financiera'!$B$12:$X$3580,2,0))","v":0},{"$f":"IF(ISERROR(VLOOKUP(C709,'Capacidad Financiera'!$B$12:$X$62720,3,0)),\"\",VLOOKUP(C709,'Capacidad Financiera'!$B$12:$X$62720,3,0))","v":0},null,{"$f":"IF(OR(D709=\"\",E709=\"\",F709=\"\"),\"\",IF(C709<>\"\",IF(ISERROR(VLOOKUP($A$10,POA!$A$2:$D$25,2,0)),\"\",VLOOKUP($A$10,POA!$A$2:$D$25,2,0)),\"\"))","v":""},"",{"$f":"IF(OR(D709=\"\",E709=\"\",F709=\"\"),\"\",IF(AND(H709>0,H709<=Experiencia1),Puntajes!$D$4,IF(AND(H709>Experiencia1,H709<=Experiencia2),Puntajes!$D$5,IF(AND(H709>Experiencia2,H709<=Experiencia3),Puntajes!$D$6,IF(H709>Experiencia3,Puntajes!$D$7,0)))))","v":""}]
[null,null,{"$f":"+'Capacidad Financiera'!B713","v":""},{"$f":"IF(ISERROR(VLOOKUP(C710,'Capacidad Financiera'!$B$12:$X$62720,2,0)),\"\",VLOOKUP(C710,'Capacidad Financiera'!$B$12:$X$3580,2,0))","v":0},{"$f":"IF(ISERROR(VLOOKUP(C710,'Capacidad Financiera'!$B$12:$X$62720,3,0)),\"\",VLOOKUP(C710,'Capacidad Financiera'!$B$12:$X$62720,3,0))","v":0},null,{"$f":"IF(OR(D710=\"\",E710=\"\",F710=\"\"),\"\",IF(C710<>\"\",IF(ISERROR(VLOOKUP($A$10,POA!$A$2:$D$25,2,0)),\"\",VLOOKUP($A$10,POA!$A$2:$D$25,2,0)),\"\"))","v":""},"",{"$f":"IF(OR(D710=\"\",E710=\"\",F710=\"\"),\"\",IF(AND(H710>0,H710<=Experiencia1),Puntajes!$D$4,IF(AND(H710>Experiencia1,H710<=Experiencia2),Puntajes!$D$5,IF(AND(H710>Experiencia2,H710<=Experiencia3),Puntajes!$D$6,IF(H710>Experiencia3,Puntajes!$D$7,0)))))","v":""}]
[null,null,{"$f":"+'Capacidad Financiera'!B714","v":""},{"$f":"IF(ISERROR(VLOOKUP(C711,'Capacidad Financiera'!$B$12:$X$62720,2,0)),\"\",VLOOKUP(C711,'Capacidad Financiera'!$B$12:$X$3580,2,0))","v":0},{"$f":"IF(ISERROR(VLOOKUP(C711,'Capacidad Financiera'!$B$12:$X$62720,3,0)),\"\",VLOOKUP(C711,'Capacidad Financiera'!$B$12:$X$62720,3,0))","v":0},null,{"$f":"IF(OR(D711=\"\",E711=\"\",F711=\"\"),\"\",IF(C711<>\"\",IF(ISERROR(VLOOKUP($A$10,POA!$A$2:$D$25,2,0)),\"\",VLOOKUP($A$10,POA!$A$2:$D$25,2,0)),\"\"))","v":""},"",{"$f":"IF(OR(D711=\"\",E711=\"\",F711=\"\"),\"\",IF(AND(H711>0,H711<=Experiencia1),Puntajes!$D$4,IF(AND(H711>Experiencia1,H711<=Experiencia2),Puntajes!$D$5,IF(AND(H711>Experiencia2,H711<=Experiencia3),Puntajes!$D$6,IF(H711>Experiencia3,Puntajes!$D$7,0)))))","v":""}]
[null,null,{"$f":"+'Capacidad Financiera'!B715","v":""},{"$f":"IF(ISERROR(VLOOKUP(C712,'Capacidad Financiera'!$B$12:$X$62720,2,0)),\"\",VLOOKUP(C712,'Capacidad Financiera'!$B$12:$X$3580,2,0))","v":0},{"$f":"IF(ISERROR(VLOOKUP(C712,'Capacidad Financiera'!$B$12:$X$62720,3,0)),\"\",VLOOKUP(C712,'Capacidad Financiera'!$B$12:$X$62720,3,0))","v":0},null,{"$f":"IF(OR(D712=\"\",E712=\"\",F712=\"\"),\"\",IF(C712<>\"\",IF(ISERROR(VLOOKUP($A$10,POA!$A$2:$D$25,2,0)),\"\",VLOOKUP($A$10,POA!$A$2:$D$25,2,0)),\"\"))","v":""},"",{"$f":"IF(OR(D712=\"\",E712=\"\",F712=\"\"),\"\",IF(AND(H712>0,H712<=Experiencia1),Puntajes!$D$4,IF(AND(H712>Experiencia1,H712<=Experiencia2),Puntajes!$D$5,IF(AND(H712>Experiencia2,H712<=Experiencia3),Puntajes!$D$6,IF(H712>Experiencia3,Puntajes!$D$7,0)))))","v":""}]
[null,null,65,{"$f":"IF(ISERROR(VLOOKUP(C713,'Capacidad Financiera'!$B$12:$X$62720,2,0)),\"\",VLOOKUP(C713,'Capacidad Financiera'!$B$12:$X$3580,2,0))","v":0},{"$f":"IF(ISERROR(VLOOKUP(C713,'Capacidad Financiera'!$B$12:$X$62720,3,0)),\"\",VLOOKUP(C713,'Capacidad Financiera'!$B$12:$X$62720,3,0))","v":""},null,{"$f":"IF(OR(D713=\"\",E713=\"\",F713=\"\"),\"\",IF(C714=\"\",IF(C713<>\"\",IF(ISERROR(VLOOKUP($A$10,POA!$A$2:$D$25,2,0)),\"\",VLOOKUP($A$10,POA!$A$2:$D$25,2,0)),\"\"),\"\"))","v":""},{"$f":"IF(OR(D713=\"\",E713=\"\",F713=\"\"),\"\",IF(C714=\"\",IF(C713<>\"\",F713/G713,\"\"),\"\"))","v":""},{"$f":"IF(C714=\"\",IF(F713=\"\",\"\",IF(AND(H713>0,H713<=Experiencia1),Puntajes!$D$4,IF(AND(H713>Experiencia1,H713<=Experiencia2),Puntajes!$D$5,IF(AND(H713>Experiencia2,H713<=Experiencia3),Puntajes!$D$6,IF(H713>Experiencia3,Puntajes!$D$7,0))))),\"\")","v":""}]
[null,null,{"$f":"+'Capacidad Financiera'!B717","v":""},{"$f":"IF(ISERROR(VLOOKUP(C714,'Capacidad Financiera'!$B$12:$X$62720,2,0)),\"\",VLOOKUP(C714,'Capacidad Financiera'!$B$12:$X$3580,2,0))","v":0},{"$f":"IF(ISERROR(VLOOKUP(C714,'Capacidad Financiera'!$B$12:$X$62720,3,0)),\"\",VLOOKUP(C714,'Capacidad Financiera'!$B$12:$X$62720,3,0))","v":0},null,{"$f":"IF(OR(D714=\"\",E714=\"\",F714=\"\"),\"\",IF(C714<>\"\",IF(ISERROR(VLOOKUP($A$10,POA!$A$2:$D$25,2,0)),\"\",VLOOKUP($A$10,POA!$A$2:$D$25,2,0)),\"\"))","v":""},{"$f":"IF(OR(D714=\"\",E714=\"\",F714=\"\"),\"\",IF(C714<>\"\",F714/(G714*E714),\"\"))","v":""},{"$f":"IF(OR(D714=\"\",E714=\"\",F714=\"\"),\"\",IF(AND(H714>0,H714<=Experiencia1),Puntajes!$D$4,IF(AND(H714>Experiencia1,H714<=Experiencia2),Puntajes!$D$5,IF(AND(H714>Experiencia2,H714<=Experiencia3),Puntajes!$D$6,IF(H714>Experiencia3,Puntajes!$D$7,0)))))","v":""}]
[null,null,{"$f":"+'Capacidad Financiera'!B718","v":""},{"$f":"IF(ISERROR(VLOOKUP(C715,'Capacidad Financiera'!$B$12:$X$62720,2,0)),\"\",VLOOKUP(C715,'Capacidad Financiera'!$B$12:$X$3580,2,0))","v":0},{"$f":"IF(ISERROR(VLOOKUP(C715,'Capacidad Financiera'!$B$12:$X$62720,3,0)),\"\",VLOOKUP(C715,'Capacidad Financiera'!$B$12:$X$62720,3,0))","v":0},null,{"$f":"IF(OR(D715=\"\",E715=\"\",F715=\"\"),\"\",IF(C715<>\"\",IF(ISERROR(VLOOKUP($A$10,POA!$A$2:$D$25,2,0)),\"\",VLOOKUP($A$10,POA!$A$2:$D$25,2,0)),\"\"))","v":""},{"$f":"IF(OR(D715=\"\",E715=\"\",F715=\"\"),\"\",IF(C715<>\"\",F715/(G715*E715),\"\"))","v":""},{"$f":"IF(OR(D715=\"\",E715=\"\",F715=\"\"),\"\",IF(AND(H715>0,H715<=Experiencia1),Puntajes!$D$4,IF(AND(H715>Experiencia1,H715<=Experiencia2),Puntajes!$D$5,IF(AND(H715>Experiencia2,H715<=Experiencia3),Puntajes!$D$6,IF(H715>Experiencia3,Puntajes!$D$7,0)))))","v":""}]
[null,null,{"$f":"+'Capacidad Financiera'!B719","v":""},{"$f":"IF(ISERROR(VLOOKUP(C716,'Capacidad Financiera'!$B$12:$X$62720,2,0)),\"\",VLOOKUP(C716,'Capacidad Financiera'!$B$12:$X$3580,2,0))","v":0},{"$f":"IF(ISERROR(VLOOKUP(C716,'Capacidad Financiera'!$B$12:$X$62720,3,0)),\"\",VLOOKUP(C716,'Capacidad Financiera'!$B$12:$X$62720,3,0))","v":0},null,{"$f":"IF(OR(D716=\"\",E716=\"\",F716=\"\"),\"\",IF(C716<>\"\",IF(ISERROR(VLOOKUP($A$10,POA!$A$2:$D$25,2,0)),\"\",VLOOKUP($A$10,POA!$A$2:$D$25,2,0)),\"\"))","v":""},"",{"$f":"IF(OR(D716=\"\",E716=\"\",F716=\"\"),\"\",IF(AND(H716>0,H716<=Experiencia1),Puntajes!$D$4,IF(AND(H716>Experiencia1,H716<=Experiencia2),Puntajes!$D$5,IF(AND(H716>Experiencia2,H716<=Experiencia3),Puntajes!$D$6,IF(H716>Experiencia3,Puntajes!$D$7,0)))))","v":""}]
[null,null,{"$f":"+'Capacidad Financiera'!B720","v":""},{"$f":"IF(ISERROR(VLOOKUP(C717,'Capacidad Financiera'!$B$12:$X$62720,2,0)),\"\",VLOOKUP(C717,'Capacidad Financiera'!$B$12:$X$3580,2,0))","v":0},{"$f":"IF(ISERROR(VLOOKUP(C717,'Capacidad Financiera'!$B$12:$X$62720,3,0)),\"\",VLOOKUP(C717,'Capacidad Financiera'!$B$12:$X$62720,3,0))","v":0},null,{"$f":"IF(OR(D717=\"\",E717=\"\",F717=\"\"),\"\",IF(C717<>\"\",IF(ISERROR(VLOOKUP($A$10,POA!$A$2:$D$25,2,0)),\"\",VLOOKUP($A$10,POA!$A$2:$D$25,2,0)),\"\"))","v":""},"",{"$f":"IF(OR(D717=\"\",E717=\"\",F717=\"\"),\"\",IF(AND(H717>0,H717<=Experiencia1),Puntajes!$D$4,IF(AND(H717>Experiencia1,H717<=Experiencia2),Puntajes!$D$5,IF(AND(H717>Experiencia2,H717<=Experiencia3),Puntajes!$D$6,IF(H717>Experiencia3,Puntajes!$D$7,0)))))","v":""}]
[null,null,{"$f":"+'Capacidad Financiera'!B721","v":""},{"$f":"IF(ISERROR(VLOOKUP(C718,'Capacidad Financiera'!$B$12:$X$62720,2,0)),\"\",VLOOKUP(C718,'Capacidad Financiera'!$B$12:$X$3580,2,0))","v":0},{"$f":"IF(ISERROR(VLOOKUP(C718,'Capacidad Financiera'!$B$12:$X$62720,3,0)),\"\",VLOOKUP(C718,'Capacidad Financiera'!$B$12:$X$62720,3,0))","v":0},null,{"$f":"IF(OR(D718=\"\",E718=\"\",F718=\"\"),\"\",IF(C718<>\"\",IF(ISERROR(VLOOKUP($A$10,POA!$A$2:$D$25,2,0)),\"\",VLOOKUP($A$10,POA!$A$2:$D$25,2,0)),\"\"))","v":""},"",{"$f":"IF(OR(D718=\"\",E718=\"\",F718=\"\"),\"\",IF(AND(H718>0,H718<=Experiencia1),Puntajes!$D$4,IF(AND(H718>Experiencia1,H718<=Experiencia2),Puntajes!$D$5,IF(AND(H718>Experiencia2,H718<=Experiencia3),Puntajes!$D$6,IF(H718>Experiencia3,Puntajes!$D$7,0)))))","v":""}]
[null,null,{"$f":"+'Capacidad Financiera'!B722","v":""},{"$f":"IF(ISERROR(VLOOKUP(C719,'Capacidad Financiera'!$B$12:$X$62720,2,0)),\"\",VLOOKUP(C719,'Capacidad Financiera'!$B$12:$X$3580,2,0))","v":0},{"$f":"IF(ISERROR(VLOOKUP(C719,'Capacidad Financiera'!$B$12:$X$62720,3,0)),\"\",VLOOKUP(C719,'Capacidad Financiera'!$B$12:$X$62720,3,0))","v":0},null,{"$f":"IF(OR(D719=\"\",E719=\"\",F719=\"\"),\"\",IF(C719<>\"\",IF(ISERROR(VLOOKUP($A$10,POA!$A$2:$D$25,2,0)),\"\",VLOOKUP($A$10,POA!$A$2:$D$25,2,0)),\"\"))","v":""},"",{"$f":"IF(OR(D719=\"\",E719=\"\",F719=\"\"),\"\",IF(AND(H719>0,H719<=Experiencia1),Puntajes!$D$4,IF(AND(H719>Experiencia1,H719<=Experiencia2),Puntajes!$D$5,IF(AND(H719>Experiencia2,H719<=Experiencia3),Puntajes!$D$6,IF(H719>Experiencia3,Puntajes!$D$7,0)))))","v":""}]
[null,null,{"$f":"+'Capacidad Financiera'!B723","v":""},{"$f":"IF(ISERROR(VLOOKUP(C720,'Capacidad Financiera'!$B$12:$X$62720,2,0)),\"\",VLOOKUP(C720,'Capacidad Financiera'!$B$12:$X$3580,2,0))","v":0},{"$f":"IF(ISERROR(VLOOKUP(C720,'Capacidad Financiera'!$B$12:$X$62720,3,0)),\"\",VLOOKUP(C720,'Capacidad Financiera'!$B$12:$X$62720,3,0))","v":0},null,{"$f":"IF(OR(D720=\"\",E720=\"\",F720=\"\"),\"\",IF(C720<>\"\",IF(ISERROR(VLOOKUP($A$10,POA!$A$2:$D$25,2,0)),\"\",VLOOKUP($A$10,POA!$A$2:$D$25,2,0)),\"\"))","v":""},"",{"$f":"IF(OR(D720=\"\",E720=\"\",F720=\"\"),\"\",IF(AND(H720>0,H720<=Experiencia1),Puntajes!$D$4,IF(AND(H720>Experiencia1,H720<=Experiencia2),Puntajes!$D$5,IF(AND(H720>Experiencia2,H720<=Experiencia3),Puntajes!$D$6,IF(H720>Experiencia3,Puntajes!$D$7,0)))))","v":""}]
[null,null,{"$f":"+'Capacidad Financiera'!B724","v":""},{"$f":"IF(ISERROR(VLOOKUP(C721,'Capacidad Financiera'!$B$12:$X$62720,2,0)),\"\",VLOOKUP(C721,'Capacidad Financiera'!$B$12:$X$3580,2,0))","v":0},{"$f":"IF(ISERROR(VLOOKUP(C721,'Capacidad Financiera'!$B$12:$X$62720,3,0)),\"\",VLOOKUP(C721,'Capacidad Financiera'!$B$12:$X$62720,3,0))","v":0},null,{"$f":"IF(OR(D721=\"\",E721=\"\",F721=\"\"),\"\",IF(C721<>\"\",IF(ISERROR(VLOOKUP($A$10,POA!$A$2:$D$25,2,0)),\"\",VLOOKUP($A$10,POA!$A$2:$D$25,2,0)),\"\"))","v":""},"",{"$f":"IF(OR(D721=\"\",E721=\"\",F721=\"\"),\"\",IF(AND(H721>0,H721<=Experiencia1),Puntajes!$D$4,IF(AND(H721>Experiencia1,H721<=Experiencia2),Puntajes!$D$5,IF(AND(H721>Experiencia2,H721<=Experiencia3),Puntajes!$D$6,IF(H721>Experiencia3,Puntajes!$D$7,0)))))","v":""}]
[null,null,{"$f":"+'Capacidad Financiera'!B725","v":""},{"$f":"IF(ISERROR(VLOOKUP(C722,'Capacidad Financiera'!$B$12:$X$62720,2,0)),\"\",VLOOKUP(C722,'Capacidad Financiera'!$B$12:$X$3580,2,0))","v":0},{"$f":"IF(ISERROR(VLOOKUP(C722,'Capacidad Financiera'!$B$12:$X$62720,3,0)),\"\",VLOOKUP(C722,'Capacidad Financiera'!$B$12:$X$62720,3,0))","v":0},null,{"$f":"IF(OR(D722=\"\",E722=\"\",F722=\"\"),\"\",IF(C722<>\"\",IF(ISERROR(VLOOKUP($A$10,POA!$A$2:$D$25,2,0)),\"\",VLOOKUP($A$10,POA!$A$2:$D$25,2,0)),\"\"))","v":""},"",{"$f":"IF(OR(D722=\"\",E722=\"\",F722=\"\"),\"\",IF(AND(H722>0,H722<=Experiencia1),Puntajes!$D$4,IF(AND(H722>Experiencia1,H722<=Experiencia2),Puntajes!$D$5,IF(AND(H722>Experiencia2,H722<=Experiencia3),Puntajes!$D$6,IF(H722>Experiencia3,Puntajes!$D$7,0)))))","v":""}]
[null,null,{"$f":"+'Capacidad Financiera'!B726","v":""},{"$f":"IF(ISERROR(VLOOKUP(C723,'Capacidad Financiera'!$B$12:$X$62720,2,0)),\"\",VLOOKUP(C723,'Capacidad Financiera'!$B$12:$X$3580,2,0))","v":0},{"$f":"IF(ISERROR(VLOOKUP(C723,'Capacidad Financiera'!$B$12:$X$62720,3,0)),\"\",VLOOKUP(C723,'Capacidad Financiera'!$B$12:$X$62720,3,0))","v":0},null,{"$f":"IF(OR(D723=\"\",E723=\"\",F723=\"\"),\"\",IF(C723<>\"\",IF(ISERROR(VLOOKUP($A$10,POA!$A$2:$D$25,2,0)),\"\",VLOOKUP($A$10,POA!$A$2:$D$25,2,0)),\"\"))","v":""},"",{"$f":"IF(OR(D723=\"\",E723=\"\",F723=\"\"),\"\",IF(AND(H723>0,H723<=Experiencia1),Puntajes!$D$4,IF(AND(H723>Experiencia1,H723<=Experiencia2),Puntajes!$D$5,IF(AND(H723>Experiencia2,H723<=Experiencia3),Puntajes!$D$6,IF(H723>Experiencia3,Puntajes!$D$7,0)))))","v":""}]
[null,null,66,{"$f":"IF(ISERROR(VLOOKUP(C724,'Capacidad Financiera'!$B$12:$X$62720,2,0)),\"\",VLOOKUP(C724,'Capacidad Financiera'!$B$12:$X$3580,2,0))","v":0},{"$f":"IF(ISERROR(VLOOKUP(C724,'Capacidad Financiera'!$B$12:$X$62720,3,0)),\"\",VLOOKUP(C724,'Capacidad Financiera'!$B$12:$X$62720,3,0))","v":""},null,{"$f":"IF(OR(D724=\"\",E724=\"\",F724=\"\"),\"\",IF(C725=\"\",IF(C724<>\"\",IF(ISERROR(VLOOKUP($A$10,POA!$A$2:$D$25,2,0)),\"\",VLOOKUP($A$10,POA!$A$2:$D$25,2,0)),\"\"),\"\"))","v":""},{"$f":"IF(OR(D724=\"\",E724=\"\",F724=\"\"),\"\",IF(C725=\"\",IF(C724<>\"\",F724/G724,\"\"),\"\"))","v":""},{"$f":"IF(C725=\"\",IF(F724=\"\",\"\",IF(AND(H724>0,H724<=Experiencia1),Puntajes!$D$4,IF(AND(H724>Experiencia1,H724<=Experiencia2),Puntajes!$D$5,IF(AND(H724>Experiencia2,H724<=Experiencia3),Puntajes!$D$6,IF(H724>Experiencia3,Puntajes!$D$7,0))))),\"\")","v":""}]
[null,null,{"$f":"+'Capacidad Financiera'!B728","v":""},{"$f":"IF(ISERROR(VLOOKUP(C725,'Capacidad Financiera'!$B$12:$X$62720,2,0)),\"\",VLOOKUP(C725,'Capacidad Financiera'!$B$12:$X$3580,2,0))","v":0},{"$f":"IF(ISERROR(VLOOKUP(C725,'Capacidad Financiera'!$B$12:$X$62720,3,0)),\"\",VLOOKUP(C725,'Capacidad Financiera'!$B$12:$X$62720,3,0))","v":0},null,{"$f":"IF(OR(D725=\"\",E725=\"\",F725=\"\"),\"\",IF(C725<>\"\",IF(ISERROR(VLOOKUP($A$10,POA!$A$2:$D$25,2,0)),\"\",VLOOKUP($A$10,POA!$A$2:$D$25,2,0)),\"\"))","v":""},{"$f":"IF(OR(D725=\"\",E725=\"\",F725=\"\"),\"\",IF(C725<>\"\",F725/(G725*E725),\"\"))","v":""},{"$f":"IF(OR(D725=\"\",E725=\"\",F725=\"\"),\"\",IF(AND(H725>0,H725<=Experiencia1),Puntajes!$D$4,IF(AND(H725>Experiencia1,H725<=Experiencia2),Puntajes!$D$5,IF(AND(H725>Experiencia2,H725<=Experiencia3),Puntajes!$D$6,IF(H725>Experiencia3,Puntajes!$D$7,0)))))","v":""}]
[null,null,{"$f":"+'Capacidad Financiera'!B729","v":""},{"$f":"IF(ISERROR(VLOOKUP(C726,'Capacidad Financiera'!$B$12:$X$62720,2,0)),\"\",VLOOKUP(C726,'Capacidad Financiera'!$B$12:$X$3580,2,0))","v":0},{"$f":"IF(ISERROR(VLOOKUP(C726,'Capacidad Financiera'!$B$12:$X$62720,3,0)),\"\",VLOOKUP(C726,'Capacidad Financiera'!$B$12:$X$62720,3,0))","v":0},null,{"$f":"IF(OR(D726=\"\",E726=\"\",F726=\"\"),\"\",IF(C726<>\"\",IF(ISERROR(VLOOKUP($A$10,POA!$A$2:$D$25,2,0)),\"\",VLOOKUP($A$10,POA!$A$2:$D$25,2,0)),\"\"))","v":""},{"$f":"IF(OR(D726=\"\",E726=\"\",F726=\"\"),\"\",IF(C726<>\"\",F726/(G726*E726),\"\"))","v":""},{"$f":"IF(OR(D726=\"\",E726=\"\",F726=\"\"),\"\",IF(AND(H726>0,H726<=Experiencia1),Puntajes!$D$4,IF(AND(H726>Experiencia1,H726<=Experiencia2),Puntajes!$D$5,IF(AND(H726>Experiencia2,H726<=Experiencia3),Puntajes!$D$6,IF(H726>Experiencia3,Puntajes!$D$7,0)))))","v":""}]
[null,null,{"$f":"+'Capacidad Financiera'!B730","v":""},{"$f":"IF(ISERROR(VLOOKUP(C727,'Capacidad Financiera'!$B$12:$X$62720,2,0)),\"\",VLOOKUP(C727,'Capacidad Financiera'!$B$12:$X$3580,2,0))","v":0},{"$f":"IF(ISERROR(VLOOKUP(C727,'Capacidad Financiera'!$B$12:$X$62720,3,0)),\"\",VLOOKUP(C727,'Capacidad Financiera'!$B$12:$X$62720,3,0))","v":0},null,{"$f":"IF(OR(D727=\"\",E727=\"\",F727=\"\"),\"\",IF(C727<>\"\",IF(ISERROR(VLOOKUP($A$10,POA!$A$2:$D$25,2,0)),\"\",VLOOKUP($A$10,POA!$A$2:$D$25,2,0)),\"\"))","v":""},"",{"$f":"IF(OR(D727=\"\",E727=\"\",F727=\"\"),\"\",IF(AND(H727>0,H727<=Experiencia1),Puntajes!$D$4,IF(AND(H727>Experiencia1,H727<=Experiencia2),Puntajes!$D$5,IF(AND(H727>Experiencia2,H727<=Experiencia3),Puntajes!$D$6,IF(H727>Experiencia3,Puntajes!$D$7,0)))))","v":""}]
[null,null,{"$f":"+'Capacidad Financiera'!B731","v":""},{"$f":"IF(ISERROR(VLOOKUP(C728,'Capacidad Financiera'!$B$12:$X$62720,2,0)),\"\",VLOOKUP(C728,'Capacidad Financiera'!$B$12:$X$3580,2,0))","v":0},{"$f":"IF(ISERROR(VLOOKUP(C728,'Capacidad Financiera'!$B$12:$X$62720,3,0)),\"\",VLOOKUP(C728,'Capacidad Financiera'!$B$12:$X$62720,3,0))","v":0},null,{"$f":"IF(OR(D728=\"\",E728=\"\",F728=\"\"),\"\",IF(C728<>\"\",IF(ISERROR(VLOOKUP($A$10,POA!$A$2:$D$25,2,0)),\"\",VLOOKUP($A$10,POA!$A$2:$D$25,2,0)),\"\"))","v":""},"",{"$f":"IF(OR(D728=\"\",E728=\"\",F728=\"\"),\"\",IF(AND(H728>0,H728<=Experiencia1),Puntajes!$D$4,IF(AND(H728>Experiencia1,H728<=Experiencia2),Puntajes!$D$5,IF(AND(H728>Experiencia2,H728<=Experiencia3),Puntajes!$D$6,IF(H728>Experiencia3,Puntajes!$D$7,0)))))","v":""}]
[null,null,{"$f":"+'Capacidad Financiera'!B732","v":""},{"$f":"IF(ISERROR(VLOOKUP(C729,'Capacidad Financiera'!$B$12:$X$62720,2,0)),\"\",VLOOKUP(C729,'Capacidad Financiera'!$B$12:$X$3580,2,0))","v":0},{"$f":"IF(ISERROR(VLOOKUP(C729,'Capacidad Financiera'!$B$12:$X$62720,3,0)),\"\",VLOOKUP(C729,'Capacidad Financiera'!$B$12:$X$62720,3,0))","v":0},null,{"$f":"IF(OR(D729=\"\",E729=\"\",F729=\"\"),\"\",IF(C729<>\"\",IF(ISERROR(VLOOKUP($A$10,POA!$A$2:$D$25,2,0)),\"\",VLOOKUP($A$10,POA!$A$2:$D$25,2,0)),\"\"))","v":""},"",{"$f":"IF(OR(D729=\"\",E729=\"\",F729=\"\"),\"\",IF(AND(H729>0,H729<=Experiencia1),Puntajes!$D$4,IF(AND(H729>Experiencia1,H729<=Experiencia2),Puntajes!$D$5,IF(AND(H729>Experiencia2,H729<=Experiencia3),Puntajes!$D$6,IF(H729>Experiencia3,Puntajes!$D$7,0)))))","v":""}]
[null,null,{"$f":"+'Capacidad Financiera'!B733","v":""},{"$f":"IF(ISERROR(VLOOKUP(C730,'Capacidad Financiera'!$B$12:$X$62720,2,0)),\"\",VLOOKUP(C730,'Capacidad Financiera'!$B$12:$X$3580,2,0))","v":0},{"$f":"IF(ISERROR(VLOOKUP(C730,'Capacidad Financiera'!$B$12:$X$62720,3,0)),\"\",VLOOKUP(C730,'Capacidad Financiera'!$B$12:$X$62720,3,0))","v":0},null,{"$f":"IF(OR(D730=\"\",E730=\"\",F730=\"\"),\"\",IF(C730<>\"\",IF(ISERROR(VLOOKUP($A$10,POA!$A$2:$D$25,2,0)),\"\",VLOOKUP($A$10,POA!$A$2:$D$25,2,0)),\"\"))","v":""},"",{"$f":"IF(OR(D730=\"\",E730=\"\",F730=\"\"),\"\",IF(AND(H730>0,H730<=Experiencia1),Puntajes!$D$4,IF(AND(H730>Experiencia1,H730<=Experiencia2),Puntajes!$D$5,IF(AND(H730>Experiencia2,H730<=Experiencia3),Puntajes!$D$6,IF(H730>Experiencia3,Puntajes!$D$7,0)))))","v":""}]
[null,null,{"$f":"+'Capacidad Financiera'!B734","v":""},{"$f":"IF(ISERROR(VLOOKUP(C731,'Capacidad Financiera'!$B$12:$X$62720,2,0)),\"\",VLOOKUP(C731,'Capacidad Financiera'!$B$12:$X$3580,2,0))","v":0},{"$f":"IF(ISERROR(VLOOKUP(C731,'Capacidad Financiera'!$B$12:$X$62720,3,0)),\"\",VLOOKUP(C731,'Capacidad Financiera'!$B$12:$X$62720,3,0))","v":0},null,{"$f":"IF(OR(D731=\"\",E731=\"\",F731=\"\"),\"\",IF(C731<>\"\",IF(ISERROR(VLOOKUP($A$10,POA!$A$2:$D$25,2,0)),\"\",VLOOKUP($A$10,POA!$A$2:$D$25,2,0)),\"\"))","v":""},"",{"$f":"IF(OR(D731=\"\",E731=\"\",F731=\"\"),\"\",IF(AND(H731>0,H731<=Experiencia1),Puntajes!$D$4,IF(AND(H731>Experiencia1,H731<=Experiencia2),Puntajes!$D$5,IF(AND(H731>Experiencia2,H731<=Experiencia3),Puntajes!$D$6,IF(H731>Experiencia3,Puntajes!$D$7,0)))))","v":""}]
[null,null,{"$f":"+'Capacidad Financiera'!B735","v":""},{"$f":"IF(ISERROR(VLOOKUP(C732,'Capacidad Financiera'!$B$12:$X$62720,2,0)),\"\",VLOOKUP(C732,'Capacidad Financiera'!$B$12:$X$3580,2,0))","v":0},{"$f":"IF(ISERROR(VLOOKUP(C732,'Capacidad Financiera'!$B$12:$X$62720,3,0)),\"\",VLOOKUP(C732,'Capacidad Financiera'!$B$12:$X$62720,3,0))","v":0},null,{"$f":"IF(OR(D732=\"\",E732=\"\",F732=\"\"),\"\",IF(C732<>\"\",IF(ISERROR(VLOOKUP($A$10,POA!$A$2:$D$25,2,0)),\"\",VLOOKUP($A$10,POA!$A$2:$D$25,2,0)),\"\"))","v":""},"",{"$f":"IF(OR(D732=\"\",E732=\"\",F732=\"\"),\"\",IF(AND(H732>0,H732<=Experiencia1),Puntajes!$D$4,IF(AND(H732>Experiencia1,H732<=Experiencia2),Puntajes!$D$5,IF(AND(H732>Experiencia2,H732<=Experiencia3),Puntajes!$D$6,IF(H732>Experiencia3,Puntajes!$D$7,0)))))","v":""}]
[null,null,{"$f":"+'Capacidad Financiera'!B736","v":""},{"$f":"IF(ISERROR(VLOOKUP(C733,'Capacidad Financiera'!$B$12:$X$62720,2,0)),\"\",VLOOKUP(C733,'Capacidad Financiera'!$B$12:$X$3580,2,0))","v":0},{"$f":"IF(ISERROR(VLOOKUP(C733,'Capacidad Financiera'!$B$12:$X$62720,3,0)),\"\",VLOOKUP(C733,'Capacidad Financiera'!$B$12:$X$62720,3,0))","v":0},null,{"$f":"IF(OR(D733=\"\",E733=\"\",F733=\"\"),\"\",IF(C733<>\"\",IF(ISERROR(VLOOKUP($A$10,POA!$A$2:$D$25,2,0)),\"\",VLOOKUP($A$10,POA!$A$2:$D$25,2,0)),\"\"))","v":""},"",{"$f":"IF(OR(D733=\"\",E733=\"\",F733=\"\"),\"\",IF(AND(H733>0,H733<=Experiencia1),Puntajes!$D$4,IF(AND(H733>Experiencia1,H733<=Experiencia2),Puntajes!$D$5,IF(AND(H733>Experiencia2,H733<=Experiencia3),Puntajes!$D$6,IF(H733>Experiencia3,Puntajes!$D$7,0)))))","v":""}]
[null,null,{"$f":"+'Capacidad Financiera'!B737","v":""},{"$f":"IF(ISERROR(VLOOKUP(C734,'Capacidad Financiera'!$B$12:$X$62720,2,0)),\"\",VLOOKUP(C734,'Capacidad Financiera'!$B$12:$X$3580,2,0))","v":0},{"$f":"IF(ISERROR(VLOOKUP(C734,'Capacidad Financiera'!$B$12:$X$62720,3,0)),\"\",VLOOKUP(C734,'Capacidad Financiera'!$B$12:$X$62720,3,0))","v":0},null,{"$f":"IF(OR(D734=\"\",E734=\"\",F734=\"\"),\"\",IF(C734<>\"\",IF(ISERROR(VLOOKUP($A$10,POA!$A$2:$D$25,2,0)),\"\",VLOOKUP($A$10,POA!$A$2:$D$25,2,0)),\"\"))","v":""},"",{"$f":"IF(OR(D734=\"\",E734=\"\",F734=\"\"),\"\",IF(AND(H734>0,H734<=Experiencia1),Puntajes!$D$4,IF(AND(H734>Experiencia1,H734<=Experiencia2),Puntajes!$D$5,IF(AND(H734>Experiencia2,H734<=Experiencia3),Puntajes!$D$6,IF(H734>Experiencia3,Puntajes!$D$7,0)))))","v":""}]
[null,null,67,{"$f":"IF(ISERROR(VLOOKUP(C735,'Capacidad Financiera'!$B$12:$X$62720,2,0)),\"\",VLOOKUP(C735,'Capacidad Financiera'!$B$12:$X$3580,2,0))","v":0},{"$f":"IF(ISERROR(VLOOKUP(C735,'Capacidad Financiera'!$B$12:$X$62720,3,0)),\"\",VLOOKUP(C735,'Capacidad Financiera'!$B$12:$X$62720,3,0))","v":""},null,{"$f":"IF(OR(D735=\"\",E735=\"\",F735=\"\"),\"\",IF(C736=\"\",IF(C735<>\"\",IF(ISERROR(VLOOKUP($A$10,POA!$A$2:$D$25,2,0)),\"\",VLOOKUP($A$10,POA!$A$2:$D$25,2,0)),\"\"),\"\"))","v":""},{"$f":"IF(OR(D735=\"\",E735=\"\",F735=\"\"),\"\",IF(C736=\"\",IF(C735<>\"\",F735/G735,\"\"),\"\"))","v":""},{"$f":"IF(C736=\"\",IF(F735=\"\",\"\",IF(AND(H735>0,H735<=Experiencia1),Puntajes!$D$4,IF(AND(H735>Experiencia1,H735<=Experiencia2),Puntajes!$D$5,IF(AND(H735>Experiencia2,H735<=Experiencia3),Puntajes!$D$6,IF(H735>Experiencia3,Puntajes!$D$7,0))))),\"\")","v":""}]
[null,null,{"$f":"+'Capacidad Financiera'!B739","v":""},{"$f":"IF(ISERROR(VLOOKUP(C736,'Capacidad Financiera'!$B$12:$X$62720,2,0)),\"\",VLOOKUP(C736,'Capacidad Financiera'!$B$12:$X$3580,2,0))","v":0},{"$f":"IF(ISERROR(VLOOKUP(C736,'Capacidad Financiera'!$B$12:$X$62720,3,0)),\"\",VLOOKUP(C736,'Capacidad Financiera'!$B$12:$X$62720,3,0))","v":0},null,{"$f":"IF(OR(D736=\"\",E736=\"\",F736=\"\"),\"\",IF(C736<>\"\",IF(ISERROR(VLOOKUP($A$10,POA!$A$2:$D$25,2,0)),\"\",VLOOKUP($A$10,POA!$A$2:$D$25,2,0)),\"\"))","v":""},{"$f":"IF(OR(D736=\"\",E736=\"\",F736=\"\"),\"\",IF(C736<>\"\",F736/(G736*E736),\"\"))","v":""},{"$f":"IF(OR(D736=\"\",E736=\"\",F736=\"\"),\"\",IF(AND(H736>0,H736<=Experiencia1),Puntajes!$D$4,IF(AND(H736>Experiencia1,H736<=Experiencia2),Puntajes!$D$5,IF(AND(H736>Experiencia2,H736<=Experiencia3),Puntajes!$D$6,IF(H736>Experiencia3,Puntajes!$D$7,0)))))","v":""}]
[null,null,{"$f":"+'Capacidad Financiera'!B740","v":""},{"$f":"IF(ISERROR(VLOOKUP(C737,'Capacidad Financiera'!$B$12:$X$62720,2,0)),\"\",VLOOKUP(C737,'Capacidad Financiera'!$B$12:$X$3580,2,0))","v":0},{"$f":"IF(ISERROR(VLOOKUP(C737,'Capacidad Financiera'!$B$12:$X$62720,3,0)),\"\",VLOOKUP(C737,'Capacidad Financiera'!$B$12:$X$62720,3,0))","v":0},null,{"$f":"IF(OR(D737=\"\",E737=\"\",F737=\"\"),\"\",IF(C737<>\"\",IF(ISERROR(VLOOKUP($A$10,POA!$A$2:$D$25,2,0)),\"\",VLOOKUP($A$10,POA!$A$2:$D$25,2,0)),\"\"))","v":""},{"$f":"IF(OR(D737=\"\",E737=\"\",F737=\"\"),\"\",IF(C737<>\"\",F737/(G737*E737),\"\"))","v":""},{"$f":"IF(OR(D737=\"\",E737=\"\",F737=\"\"),\"\",IF(AND(H737>0,H737<=Experiencia1),Puntajes!$D$4,IF(AND(H737>Experiencia1,H737<=Experiencia2),Puntajes!$D$5,IF(AND(H737>Experiencia2,H737<=Experiencia3),Puntajes!$D$6,IF(H737>Experiencia3,Puntajes!$D$7,0)))))","v":""}]
[null,null,{"$f":"+'Capacidad Financiera'!B741","v":""},{"$f":"IF(ISERROR(VLOOKUP(C738,'Capacidad Financiera'!$B$12:$X$62720,2,0)),\"\",VLOOKUP(C738,'Capacidad Financiera'!$B$12:$X$3580,2,0))","v":0},{"$f":"IF(ISERROR(VLOOKUP(C738,'Capacidad Financiera'!$B$12:$X$62720,3,0)),\"\",VLOOKUP(C738,'Capacidad Financiera'!$B$12:$X$62720,3,0))","v":0},null,{"$f":"IF(OR(D738=\"\",E738=\"\",F738=\"\"),\"\",IF(C738<>\"\",IF(ISERROR(VLOOKUP($A$10,POA!$A$2:$D$25,2,0)),\"\",VLOOKUP($A$10,POA!$A$2:$D$25,2,0)),\"\"))","v":""},"",{"$f":"IF(OR(D738=\"\",E738=\"\",F738=\"\"),\"\",IF(AND(H738>0,H738<=Experiencia1),Puntajes!$D$4,IF(AND(H738>Experiencia1,H738<=Experiencia2),Puntajes!$D$5,IF(AND(H738>Experiencia2,H738<=Experiencia3),Puntajes!$D$6,IF(H738>Experiencia3,Puntajes!$D$7,0)))))","v":""}]
[null,null,{"$f":"+'Capacidad Financiera'!B742","v":""},{"$f":"IF(ISERROR(VLOOKUP(C739,'Capacidad Financiera'!$B$12:$X$62720,2,0)),\"\",VLOOKUP(C739,'Capacidad Financiera'!$B$12:$X$3580,2,0))","v":0},{"$f":"IF(ISERROR(VLOOKUP(C739,'Capacidad Financiera'!$B$12:$X$62720,3,0)),\"\",VLOOKUP(C739,'Capacidad Financiera'!$B$12:$X$62720,3,0))","v":0},null,{"$f":"IF(OR(D739=\"\",E739=\"\",F739=\"\"),\"\",IF(C739<>\"\",IF(ISERROR(VLOOKUP($A$10,POA!$A$2:$D$25,2,0)),\"\",VLOOKUP($A$10,POA!$A$2:$D$25,2,0)),\"\"))","v":""},"",{"$f":"IF(OR(D739=\"\",E739=\"\",F739=\"\"),\"\",IF(AND(H739>0,H739<=Experiencia1),Puntajes!$D$4,IF(AND(H739>Experiencia1,H739<=Experiencia2),Puntajes!$D$5,IF(AND(H739>Experiencia2,H739<=Experiencia3),Puntajes!$D$6,IF(H739>Experiencia3,Puntajes!$D$7,0)))))","v":""}]
[null,null,{"$f":"+'Capacidad Financiera'!B743","v":""},{"$f":"IF(ISERROR(VLOOKUP(C740,'Capacidad Financiera'!$B$12:$X$62720,2,0)),\"\",VLOOKUP(C740,'Capacidad Financiera'!$B$12:$X$3580,2,0))","v":0},{"$f":"IF(ISERROR(VLOOKUP(C740,'Capacidad Financiera'!$B$12:$X$62720,3,0)),\"\",VLOOKUP(C740,'Capacidad Financiera'!$B$12:$X$62720,3,0))","v":0},null,{"$f":"IF(OR(D740=\"\",E740=\"\",F740=\"\"),\"\",IF(C740<>\"\",IF(ISERROR(VLOOKUP($A$10,POA!$A$2:$D$25,2,0)),\"\",VLOOKUP($A$10,POA!$A$2:$D$25,2,0)),\"\"))","v":""},"",{"$f":"IF(OR(D740=\"\",E740=\"\",F740=\"\"),\"\",IF(AND(H740>0,H740<=Experiencia1),Puntajes!$D$4,IF(AND(H740>Experiencia1,H740<=Experiencia2),Puntajes!$D$5,IF(AND(H740>Experiencia2,H740<=Experiencia3),Puntajes!$D$6,IF(H740>Experiencia3,Puntajes!$D$7,0)))))","v":""}]
[null,null,{"$f":"+'Capacidad Financiera'!B744","v":""},{"$f":"IF(ISERROR(VLOOKUP(C741,'Capacidad Financiera'!$B$12:$X$62720,2,0)),\"\",VLOOKUP(C741,'Capacidad Financiera'!$B$12:$X$3580,2,0))","v":0},{"$f":"IF(ISERROR(VLOOKUP(C741,'Capacidad Financiera'!$B$12:$X$62720,3,0)),\"\",VLOOKUP(C741,'Capacidad Financiera'!$B$12:$X$62720,3,0))","v":0},null,{"$f":"IF(OR(D741=\"\",E741=\"\",F741=\"\"),\"\",IF(C741<>\"\",IF(ISERROR(VLOOKUP($A$10,POA!$A$2:$D$25,2,0)),\"\",VLOOKUP($A$10,POA!$A$2:$D$25,2,0)),\"\"))","v":""},"",{"$f":"IF(OR(D741=\"\",E741=\"\",F741=\"\"),\"\",IF(AND(H741>0,H741<=Experiencia1),Puntajes!$D$4,IF(AND(H741>Experiencia1,H741<=Experiencia2),Puntajes!$D$5,IF(AND(H741>Experiencia2,H741<=Experiencia3),Puntajes!$D$6,IF(H741>Experiencia3,Puntajes!$D$7,0)))))","v":""}]
[null,null,{"$f":"+'Capacidad Financiera'!B745","v":""},{"$f":"IF(ISERROR(VLOOKUP(C742,'Capacidad Financiera'!$B$12:$X$62720,2,0)),\"\",VLOOKUP(C742,'Capacidad Financiera'!$B$12:$X$3580,2,0))","v":0},{"$f":"IF(ISERROR(VLOOKUP(C742,'Capacidad Financiera'!$B$12:$X$62720,3,0)),\"\",VLOOKUP(C742,'Capacidad Financiera'!$B$12:$X$62720,3,0))","v":0},null,{"$f":"IF(OR(D742=\"\",E742=\"\",F742=\"\"),\"\",IF(C742<>\"\",IF(ISERROR(VLOOKUP($A$10,POA!$A$2:$D$25,2,0)),\"\",VLOOKUP($A$10,POA!$A$2:$D$25,2,0)),\"\"))","v":""},"",{"$f":"IF(OR(D742=\"\",E742=\"\",F742=\"\"),\"\",IF(AND(H742>0,H742<=Experiencia1),Puntajes!$D$4,IF(AND(H742>Experiencia1,H742<=Experiencia2),Puntajes!$D$5,IF(AND(H742>Experiencia2,H742<=Experiencia3),Puntajes!$D$6,IF(H742>Experiencia3,Puntajes!$D$7,0)))))","v":""}]
[null,null,{"$f":"+'Capacidad Financiera'!B746","v":""},{"$f":"IF(ISERROR(VLOOKUP(C743,'Capacidad Financiera'!$B$12:$X$62720,2,0)),\"\",VLOOKUP(C743,'Capacidad Financiera'!$B$12:$X$3580,2,0))","v":0},{"$f":"IF(ISERROR(VLOOKUP(C743,'Capacidad Financiera'!$B$12:$X$62720,3,0)),\"\",VLOOKUP(C743,'Capacidad Financiera'!$B$12:$X$62720,3,0))","v":0},null,{"$f":"IF(OR(D743=\"\",E743=\"\",F743=\"\"),\"\",IF(C743<>\"\",IF(ISERROR(VLOOKUP($A$10,POA!$A$2:$D$25,2,0)),\"\",VLOOKUP($A$10,POA!$A$2:$D$25,2,0)),\"\"))","v":""},"",{"$f":"IF(OR(D743=\"\",E743=\"\",F743=\"\"),\"\",IF(AND(H743>0,H743<=Experiencia1),Puntajes!$D$4,IF(AND(H743>Experiencia1,H743<=Experiencia2),Puntajes!$D$5,IF(AND(H743>Experiencia2,H743<=Experiencia3),Puntajes!$D$6,IF(H743>Experiencia3,Puntajes!$D$7,0)))))","v":""}]
[null,null,{"$f":"+'Capacidad Financiera'!B747","v":""},{"$f":"IF(ISERROR(VLOOKUP(C744,'Capacidad Financiera'!$B$12:$X$62720,2,0)),\"\",VLOOKUP(C744,'Capacidad Financiera'!$B$12:$X$3580,2,0))","v":0},{"$f":"IF(ISERROR(VLOOKUP(C744,'Capacidad Financiera'!$B$12:$X$62720,3,0)),\"\",VLOOKUP(C744,'Capacidad Financiera'!$B$12:$X$62720,3,0))","v":0},null,{"$f":"IF(OR(D744=\"\",E744=\"\",F744=\"\"),\"\",IF(C744<>\"\",IF(ISERROR(VLOOKUP($A$10,POA!$A$2:$D$25,2,0)),\"\",VLOOKUP($A$10,POA!$A$2:$D$25,2,0)),\"\"))","v":""},"",{"$f":"IF(OR(D744=\"\",E744=\"\",F744=\"\"),\"\",IF(AND(H744>0,H744<=Experiencia1),Puntajes!$D$4,IF(AND(H744>Experiencia1,H744<=Experiencia2),Puntajes!$D$5,IF(AND(H744>Experiencia2,H744<=Experiencia3),Puntajes!$D$6,IF(H744>Experiencia3,Puntajes!$D$7,0)))))","v":""}]
[null,null,{"$f":"+'Capacidad Financiera'!B748","v":""},{"$f":"IF(ISERROR(VLOOKUP(C745,'Capacidad Financiera'!$B$12:$X$62720,2,0)),\"\",VLOOKUP(C745,'Capacidad Financiera'!$B$12:$X$3580,2,0))","v":0},{"$f":"IF(ISERROR(VLOOKUP(C745,'Capacidad Financiera'!$B$12:$X$62720,3,0)),\"\",VLOOKUP(C745,'Capacidad Financiera'!$B$12:$X$62720,3,0))","v":0},null,{"$f":"IF(OR(D745=\"\",E745=\"\",F745=\"\"),\"\",IF(C745<>\"\",IF(ISERROR(VLOOKUP($A$10,POA!$A$2:$D$25,2,0)),\"\",VLOOKUP($A$10,POA!$A$2:$D$25,2,0)),\"\"))","v":""},"",{"$f":"IF(OR(D745=\"\",E745=\"\",F745=\"\"),\"\",IF(AND(H745>0,H745<=Experiencia1),Puntajes!$D$4,IF(AND(H745>Experiencia1,H745<=Experiencia2),Puntajes!$D$5,IF(AND(H745>Experiencia2,H745<=Experiencia3),Puntajes!$D$6,IF(H745>Experiencia3,Puntajes!$D$7,0)))))","v":""}]
[null,null,68,{"$f":"IF(ISERROR(VLOOKUP(C746,'Capacidad Financiera'!$B$12:$X$62720,2,0)),\"\",VLOOKUP(C746,'Capacidad Financiera'!$B$12:$X$3580,2,0))","v":0},{"$f":"IF(ISERROR(VLOOKUP(C746,'Capacidad Financiera'!$B$12:$X$62720,3,0)),\"\",VLOOKUP(C746,'Capacidad Financiera'!$B$12:$X$62720,3,0))","v":""},null,{"$f":"IF(OR(D746=\"\",E746=\"\",F746=\"\"),\"\",IF(C747=\"\",IF(C746<>\"\",IF(ISERROR(VLOOKUP($A$10,POA!$A$2:$D$25,2,0)),\"\",VLOOKUP($A$10,POA!$A$2:$D$25,2,0)),\"\"),\"\"))","v":""},{"$f":"IF(OR(D746=\"\",E746=\"\",F746=\"\"),\"\",IF(C747=\"\",IF(C746<>\"\",F746/G746,\"\"),\"\"))","v":""},{"$f":"IF(C747=\"\",IF(F746=\"\",\"\",IF(AND(H746>0,H746<=Experiencia1),Puntajes!$D$4,IF(AND(H746>Experiencia1,H746<=Experiencia2),Puntajes!$D$5,IF(AND(H746>Experiencia2,H746<=Experiencia3),Puntajes!$D$6,IF(H746>Experiencia3,Puntajes!$D$7,0))))),\"\")","v":""}]
[null,null,{"$f":"+'Capacidad Financiera'!B750","v":""},{"$f":"IF(ISERROR(VLOOKUP(C747,'Capacidad Financiera'!$B$12:$X$62720,2,0)),\"\",VLOOKUP(C747,'Capacidad Financiera'!$B$12:$X$3580,2,0))","v":0},{"$f":"IF(ISERROR(VLOOKUP(C747,'Capacidad Financiera'!$B$12:$X$62720,3,0)),\"\",VLOOKUP(C747,'Capacidad Financiera'!$B$12:$X$62720,3,0))","v":0},null,{"$f":"IF(OR(D747=\"\",E747=\"\",F747=\"\"),\"\",IF(C747<>\"\",IF(ISERROR(VLOOKUP($A$10,POA!$A$2:$D$25,2,0)),\"\",VLOOKUP($A$10,POA!$A$2:$D$25,2,0)),\"\"))","v":""},{"$f":"IF(OR(D747=\"\",E747=\"\",F747=\"\"),\"\",IF(C747<>\"\",F747/(G747*E747),\"\"))","v":""},{"$f":"IF(OR(D747=\"\",E747=\"\",F747=\"\"),\"\",IF(AND(H747>0,H747<=Experiencia1),Puntajes!$D$4,IF(AND(H747>Experiencia1,H747<=Experiencia2),Puntajes!$D$5,IF(AND(H747>Experiencia2,H747<=Experiencia3),Puntajes!$D$6,IF(H747>Experiencia3,Puntajes!$D$7,0)))))","v":""}]
[null,null,{"$f":"+'Capacidad Financiera'!B751","v":""},{"$f":"IF(ISERROR(VLOOKUP(C748,'Capacidad Financiera'!$B$12:$X$62720,2,0)),\"\",VLOOKUP(C748,'Capacidad Financiera'!$B$12:$X$3580,2,0))","v":0},{"$f":"IF(ISERROR(VLOOKUP(C748,'Capacidad Financiera'!$B$12:$X$62720,3,0)),\"\",VLOOKUP(C748,'Capacidad Financiera'!$B$12:$X$62720,3,0))","v":0},null,{"$f":"IF(OR(D748=\"\",E748=\"\",F748=\"\"),\"\",IF(C748<>\"\",IF(ISERROR(VLOOKUP($A$10,POA!$A$2:$D$25,2,0)),\"\",VLOOKUP($A$10,POA!$A$2:$D$25,2,0)),\"\"))","v":""},{"$f":"IF(OR(D748=\"\",E748=\"\",F748=\"\"),\"\",IF(C748<>\"\",F748/(G748*E748),\"\"))","v":""},{"$f":"IF(OR(D748=\"\",E748=\"\",F748=\"\"),\"\",IF(AND(H748>0,H748<=Experiencia1),Puntajes!$D$4,IF(AND(H748>Experiencia1,H748<=Experiencia2),Puntajes!$D$5,IF(AND(H748>Experiencia2,H748<=Experiencia3),Puntajes!$D$6,IF(H748>Experiencia3,Puntajes!$D$7,0)))))","v":""}]
[null,null,{"$f":"+'Capacidad Financiera'!B752","v":""},{"$f":"IF(ISERROR(VLOOKUP(C749,'Capacidad Financiera'!$B$12:$X$62720,2,0)),\"\",VLOOKUP(C749,'Capacidad Financiera'!$B$12:$X$3580,2,0))","v":0},{"$f":"IF(ISERROR(VLOOKUP(C749,'Capacidad Financiera'!$B$12:$X$62720,3,0)),\"\",VLOOKUP(C749,'Capacidad Financiera'!$B$12:$X$62720,3,0))","v":0},null,{"$f":"IF(OR(D749=\"\",E749=\"\",F749=\"\"),\"\",IF(C749<>\"\",IF(ISERROR(VLOOKUP($A$10,POA!$A$2:$D$25,2,0)),\"\",VLOOKUP($A$10,POA!$A$2:$D$25,2,0)),\"\"))","v":""},"",{"$f":"IF(OR(D749=\"\",E749=\"\",F749=\"\"),\"\",IF(AND(H749>0,H749<=Experiencia1),Puntajes!$D$4,IF(AND(H749>Experiencia1,H749<=Experiencia2),Puntajes!$D$5,IF(AND(H749>Experiencia2,H749<=Experiencia3),Puntajes!$D$6,IF(H749>Experiencia3,Puntajes!$D$7,0)))))","v":""}]
[null,null,{"$f":"+'Capacidad Financiera'!B753","v":""},{"$f":"IF(ISERROR(VLOOKUP(C750,'Capacidad Financiera'!$B$12:$X$62720,2,0)),\"\",VLOOKUP(C750,'Capacidad Financiera'!$B$12:$X$3580,2,0))","v":0},{"$f":"IF(ISERROR(VLOOKUP(C750,'Capacidad Financiera'!$B$12:$X$62720,3,0)),\"\",VLOOKUP(C750,'Capacidad Financiera'!$B$12:$X$62720,3,0))","v":0},null,{"$f":"IF(OR(D750=\"\",E750=\"\",F750=\"\"),\"\",IF(C750<>\"\",IF(ISERROR(VLOOKUP($A$10,POA!$A$2:$D$25,2,0)),\"\",VLOOKUP($A$10,POA!$A$2:$D$25,2,0)),\"\"))","v":""},"",{"$f":"IF(OR(D750=\"\",E750=\"\",F750=\"\"),\"\",IF(AND(H750>0,H750<=Experiencia1),Puntajes!$D$4,IF(AND(H750>Experiencia1,H750<=Experiencia2),Puntajes!$D$5,IF(AND(H750>Experiencia2,H750<=Experiencia3),Puntajes!$D$6,IF(H750>Experiencia3,Puntajes!$D$7,0)))))","v":""}]
[null,null,{"$f":"+'Capacidad Financiera'!B754","v":""},{"$f":"IF(ISERROR(VLOOKUP(C751,'Capacidad Financiera'!$B$12:$X$62720,2,0)),\"\",VLOOKUP(C751,'Capacidad Financiera'!$B$12:$X$3580,2,0))","v":0},{"$f":"IF(ISERROR(VLOOKUP(C751,'Capacidad Financiera'!$B$12:$X$62720,3,0)),\"\",VLOOKUP(C751,'Capacidad Financiera'!$B$12:$X$62720,3,0))","v":0},null,{"$f":"IF(OR(D751=\"\",E751=\"\",F751=\"\"),\"\",IF(C751<>\"\",IF(ISERROR(VLOOKUP($A$10,POA!$A$2:$D$25,2,0)),\"\",VLOOKUP($A$10,POA!$A$2:$D$25,2,0)),\"\"))","v":""},"",{"$f":"IF(OR(D751=\"\",E751=\"\",F751=\"\"),\"\",IF(AND(H751>0,H751<=Experiencia1),Puntajes!$D$4,IF(AND(H751>Experiencia1,H751<=Experiencia2),Puntajes!$D$5,IF(AND(H751>Experiencia2,H751<=Experiencia3),Puntajes!$D$6,IF(H751>Experiencia3,Puntajes!$D$7,0)))))","v":""}]
[null,null,{"$f":"+'Capacidad Financiera'!B755","v":""},{"$f":"IF(ISERROR(VLOOKUP(C752,'Capacidad Financiera'!$B$12:$X$62720,2,0)),\"\",VLOOKUP(C752,'Capacidad Financiera'!$B$12:$X$3580,2,0))","v":0},{"$f":"IF(ISERROR(VLOOKUP(C752,'Capacidad Financiera'!$B$12:$X$62720,3,0)),\"\",VLOOKUP(C752,'Capacidad Financiera'!$B$12:$X$62720,3,0))","v":0},null,{"$f":"IF(OR(D752=\"\",E752=\"\",F752=\"\"),\"\",IF(C752<>\"\",IF(ISERROR(VLOOKUP($A$10,POA!$A$2:$D$25,2,0)),\"\",VLOOKUP($A$10,POA!$A$2:$D$25,2,0)),\"\"))","v":""},"",{"$f":"IF(OR(D752=\"\",E752=\"\",F752=\"\"),\"\",IF(AND(H752>0,H752<=Experiencia1),Puntajes!$D$4,IF(AND(H752>Experiencia1,H752<=Experiencia2),Puntajes!$D$5,IF(AND(H752>Experiencia2,H752<=Experiencia3),Puntajes!$D$6,IF(H752>Experiencia3,Puntajes!$D$7,0)))))","v":""}]
[null,null,{"$f":"+'Capacidad Financiera'!B756","v":""},{"$f":"IF(ISERROR(VLOOKUP(C753,'Capacidad Financiera'!$B$12:$X$62720,2,0)),\"\",VLOOKUP(C753,'Capacidad Financiera'!$B$12:$X$3580,2,0))","v":0},{"$f":"IF(ISERROR(VLOOKUP(C753,'Capacidad Financiera'!$B$12:$X$62720,3,0)),\"\",VLOOKUP(C753,'Capacidad Financiera'!$B$12:$X$62720,3,0))","v":0},null,{"$f":"IF(OR(D753=\"\",E753=\"\",F753=\"\"),\"\",IF(C753<>\"\",IF(ISERROR(VLOOKUP($A$10,POA!$A$2:$D$25,2,0)),\"\",VLOOKUP($A$10,POA!$A$2:$D$25,2,0)),\"\"))","v":""},"",{"$f":"IF(OR(D753=\"\",E753=\"\",F753=\"\"),\"\",IF(AND(H753>0,H753<=Experiencia1),Puntajes!$D$4,IF(AND(H753>Experiencia1,H753<=Experiencia2),Puntajes!$D$5,IF(AND(H753>Experiencia2,H753<=Experiencia3),Puntajes!$D$6,IF(H753>Experiencia3,Puntajes!$D$7,0)))))","v":""}]
[null,null,{"$f":"+'Capacidad Financiera'!B757","v":""},{"$f":"IF(ISERROR(VLOOKUP(C754,'Capacidad Financiera'!$B$12:$X$62720,2,0)),\"\",VLOOKUP(C754,'Capacidad Financiera'!$B$12:$X$3580,2,0))","v":0},{"$f":"IF(ISERROR(VLOOKUP(C754,'Capacidad Financiera'!$B$12:$X$62720,3,0)),\"\",VLOOKUP(C754,'Capacidad Financiera'!$B$12:$X$62720,3,0))","v":0},null,{"$f":"IF(OR(D754=\"\",E754=\"\",F754=\"\"),\"\",IF(C754<>\"\",IF(ISERROR(VLOOKUP($A$10,POA!$A$2:$D$25,2,0)),\"\",VLOOKUP($A$10,POA!$A$2:$D$25,2,0)),\"\"))","v":""},"",{"$f":"IF(OR(D754=\"\",E754=\"\",F754=\"\"),\"\",IF(AND(H754>0,H754<=Experiencia1),Puntajes!$D$4,IF(AND(H754>Experiencia1,H754<=Experiencia2),Puntajes!$D$5,IF(AND(H754>Experiencia2,H754<=Experiencia3),Puntajes!$D$6,IF(H754>Experiencia3,Puntajes!$D$7,0)))))","v":""}]
[null,null,{"$f":"+'Capacidad Financiera'!B758","v":""},{"$f":"IF(ISERROR(VLOOKUP(C755,'Capacidad Financiera'!$B$12:$X$62720,2,0)),\"\",VLOOKUP(C755,'Capacidad Financiera'!$B$12:$X$3580,2,0))","v":0},{"$f":"IF(ISERROR(VLOOKUP(C755,'Capacidad Financiera'!$B$12:$X$62720,3,0)),\"\",VLOOKUP(C755,'Capacidad Financiera'!$B$12:$X$62720,3,0))","v":0},null,{"$f":"IF(OR(D755=\"\",E755=\"\",F755=\"\"),\"\",IF(C755<>\"\",IF(ISERROR(VLOOKUP($A$10,POA!$A$2:$D$25,2,0)),\"\",VLOOKUP($A$10,POA!$A$2:$D$25,2,0)),\"\"))","v":""},"",{"$f":"IF(OR(D755=\"\",E755=\"\",F755=\"\"),\"\",IF(AND(H755>0,H755<=Experiencia1),Puntajes!$D$4,IF(AND(H755>Experiencia1,H755<=Experiencia2),Puntajes!$D$5,IF(AND(H755>Experiencia2,H755<=Experiencia3),Puntajes!$D$6,IF(H755>Experiencia3,Puntajes!$D$7,0)))))","v":""}]
[null,null,{"$f":"+'Capacidad Financiera'!B759","v":""},{"$f":"IF(ISERROR(VLOOKUP(C756,'Capacidad Financiera'!$B$12:$X$62720,2,0)),\"\",VLOOKUP(C756,'Capacidad Financiera'!$B$12:$X$3580,2,0))","v":0},{"$f":"IF(ISERROR(VLOOKUP(C756,'Capacidad Financiera'!$B$12:$X$62720,3,0)),\"\",VLOOKUP(C756,'Capacidad Financiera'!$B$12:$X$62720,3,0))","v":0},null,{"$f":"IF(OR(D756=\"\",E756=\"\",F756=\"\"),\"\",IF(C756<>\"\",IF(ISERROR(VLOOKUP($A$10,POA!$A$2:$D$25,2,0)),\"\",VLOOKUP($A$10,POA!$A$2:$D$25,2,0)),\"\"))","v":""},"",{"$f":"IF(OR(D756=\"\",E756=\"\",F756=\"\"),\"\",IF(AND(H756>0,H756<=Experiencia1),Puntajes!$D$4,IF(AND(H756>Experiencia1,H756<=Experiencia2),Puntajes!$D$5,IF(AND(H756>Experiencia2,H756<=Experiencia3),Puntajes!$D$6,IF(H756>Experiencia3,Puntajes!$D$7,0)))))","v":""}]
[null,null,69,{"$f":"IF(ISERROR(VLOOKUP(C757,'Capacidad Financiera'!$B$12:$X$62720,2,0)),\"\",VLOOKUP(C757,'Capacidad Financiera'!$B$12:$X$3580,2,0))","v":0},{"$f":"IF(ISERROR(VLOOKUP(C757,'Capacidad Financiera'!$B$12:$X$62720,3,0)),\"\",VLOOKUP(C757,'Capacidad Financiera'!$B$12:$X$62720,3,0))","v":""},null,{"$f":"IF(OR(D757=\"\",E757=\"\",F757=\"\"),\"\",IF(C758=\"\",IF(C757<>\"\",IF(ISERROR(VLOOKUP($A$10,POA!$A$2:$D$25,2,0)),\"\",VLOOKUP($A$10,POA!$A$2:$D$25,2,0)),\"\"),\"\"))","v":""},{"$f":"IF(OR(D757=\"\",E757=\"\",F757=\"\"),\"\",IF(C758=\"\",IF(C757<>\"\",F757/G757,\"\"),\"\"))","v":""},{"$f":"IF(C758=\"\",IF(F757=\"\",\"\",IF(AND(H757>0,H757<=Experiencia1),Puntajes!$D$4,IF(AND(H757>Experiencia1,H757<=Experiencia2),Puntajes!$D$5,IF(AND(H757>Experiencia2,H757<=Experiencia3),Puntajes!$D$6,IF(H757>Experiencia3,Puntajes!$D$7,0))))),\"\")","v":""}]
[null,null,{"$f":"+'Capacidad Financiera'!B761","v":""},{"$f":"IF(ISERROR(VLOOKUP(C758,'Capacidad Financiera'!$B$12:$X$62720,2,0)),\"\",VLOOKUP(C758,'Capacidad Financiera'!$B$12:$X$3580,2,0))","v":0},{"$f":"IF(ISERROR(VLOOKUP(C758,'Capacidad Financiera'!$B$12:$X$62720,3,0)),\"\",VLOOKUP(C758,'Capacidad Financiera'!$B$12:$X$62720,3,0))","v":0},null,{"$f":"IF(OR(D758=\"\",E758=\"\",F758=\"\"),\"\",IF(C758<>\"\",IF(ISERROR(VLOOKUP($A$10,POA!$A$2:$D$25,2,0)),\"\",VLOOKUP($A$10,POA!$A$2:$D$25,2,0)),\"\"))","v":""},{"$f":"IF(OR(D758=\"\",E758=\"\",F758=\"\"),\"\",IF(C758<>\"\",F758/(G758*E758),\"\"))","v":""},{"$f":"IF(OR(D758=\"\",E758=\"\",F758=\"\"),\"\",IF(AND(H758>0,H758<=Experiencia1),Puntajes!$D$4,IF(AND(H758>Experiencia1,H758<=Experiencia2),Puntajes!$D$5,IF(AND(H758>Experiencia2,H758<=Experiencia3),Puntajes!$D$6,IF(H758>Experiencia3,Puntajes!$D$7,0)))))","v":""}]
[null,null,{"$f":"+'Capacidad Financiera'!B762","v":""},{"$f":"IF(ISERROR(VLOOKUP(C759,'Capacidad Financiera'!$B$12:$X$62720,2,0)),\"\",VLOOKUP(C759,'Capacidad Financiera'!$B$12:$X$3580,2,0))","v":0},{"$f":"IF(ISERROR(VLOOKUP(C759,'Capacidad Financiera'!$B$12:$X$62720,3,0)),\"\",VLOOKUP(C759,'Capacidad Financiera'!$B$12:$X$62720,3,0))","v":0},null,{"$f":"IF(OR(D759=\"\",E759=\"\",F759=\"\"),\"\",IF(C759<>\"\",IF(ISERROR(VLOOKUP($A$10,POA!$A$2:$D$25,2,0)),\"\",VLOOKUP($A$10,POA!$A$2:$D$25,2,0)),\"\"))","v":""},{"$f":"IF(OR(D759=\"\",E759=\"\",F759=\"\"),\"\",IF(C759<>\"\",F759/(G759*E759),\"\"))","v":""},{"$f":"IF(OR(D759=\"\",E759=\"\",F759=\"\"),\"\",IF(AND(H759>0,H759<=Experiencia1),Puntajes!$D$4,IF(AND(H759>Experiencia1,H759<=Experiencia2),Puntajes!$D$5,IF(AND(H759>Experiencia2,H759<=Experiencia3),Puntajes!$D$6,IF(H759>Experiencia3,Puntajes!$D$7,0)))))","v":""}]
[null,null,{"$f":"+'Capacidad Financiera'!B763","v":""},{"$f":"IF(ISERROR(VLOOKUP(C760,'Capacidad Financiera'!$B$12:$X$62720,2,0)),\"\",VLOOKUP(C760,'Capacidad Financiera'!$B$12:$X$3580,2,0))","v":0},{"$f":"IF(ISERROR(VLOOKUP(C760,'Capacidad Financiera'!$B$12:$X$62720,3,0)),\"\",VLOOKUP(C760,'Capacidad Financiera'!$B$12:$X$62720,3,0))","v":0},null,{"$f":"IF(OR(D760=\"\",E760=\"\",F760=\"\"),\"\",IF(C760<>\"\",IF(ISERROR(VLOOKUP($A$10,POA!$A$2:$D$25,2,0)),\"\",VLOOKUP($A$10,POA!$A$2:$D$25,2,0)),\"\"))","v":""},"",{"$f":"IF(OR(D760=\"\",E760=\"\",F760=\"\"),\"\",IF(AND(H760>0,H760<=Experiencia1),Puntajes!$D$4,IF(AND(H760>Experiencia1,H760<=Experiencia2),Puntajes!$D$5,IF(AND(H760>Experiencia2,H760<=Experiencia3),Puntajes!$D$6,IF(H760>Experiencia3,Puntajes!$D$7,0)))))","v":""}]
[null,null,{"$f":"+'Capacidad Financiera'!B764","v":""},{"$f":"IF(ISERROR(VLOOKUP(C761,'Capacidad Financiera'!$B$12:$X$62720,2,0)),\"\",VLOOKUP(C761,'Capacidad Financiera'!$B$12:$X$3580,2,0))","v":0},{"$f":"IF(ISERROR(VLOOKUP(C761,'Capacidad Financiera'!$B$12:$X$62720,3,0)),\"\",VLOOKUP(C761,'Capacidad Financiera'!$B$12:$X$62720,3,0))","v":0},null,{"$f":"IF(OR(D761=\"\",E761=\"\",F761=\"\"),\"\",IF(C761<>\"\",IF(ISERROR(VLOOKUP($A$10,POA!$A$2:$D$25,2,0)),\"\",VLOOKUP($A$10,POA!$A$2:$D$25,2,0)),\"\"))","v":""},"",{"$f":"IF(OR(D761=\"\",E761=\"\",F761=\"\"),\"\",IF(AND(H761>0,H761<=Experiencia1),Puntajes!$D$4,IF(AND(H761>Experiencia1,H761<=Experiencia2),Puntajes!$D$5,IF(AND(H761>Experiencia2,H761<=Experiencia3),Puntajes!$D$6,IF(H761>Experiencia3,Puntajes!$D$7,0)))))","v":""}]
[null,null,{"$f":"+'Capacidad Financiera'!B765","v":""},{"$f":"IF(ISERROR(VLOOKUP(C762,'Capacidad Financiera'!$B$12:$X$62720,2,0)),\"\",VLOOKUP(C762,'Capacidad Financiera'!$B$12:$X$3580,2,0))","v":0},{"$f":"IF(ISERROR(VLOOKUP(C762,'Capacidad Financiera'!$B$12:$X$62720,3,0)),\"\",VLOOKUP(C762,'Capacidad Financiera'!$B$12:$X$62720,3,0))","v":0},null,{"$f":"IF(OR(D762=\"\",E762=\"\",F762=\"\"),\"\",IF(C762<>\"\",IF(ISERROR(VLOOKUP($A$10,POA!$A$2:$D$25,2,0)),\"\",VLOOKUP($A$10,POA!$A$2:$D$25,2,0)),\"\"))","v":""},"",{"$f":"IF(OR(D762=\"\",E762=\"\",F762=\"\"),\"\",IF(AND(H762>0,H762<=Experiencia1),Puntajes!$D$4,IF(AND(H762>Experiencia1,H762<=Experiencia2),Puntajes!$D$5,IF(AND(H762>Experiencia2,H762<=Experiencia3),Puntajes!$D$6,IF(H762>Experiencia3,Puntajes!$D$7,0)))))","v":""}]
[null,null,{"$f":"+'Capacidad Financiera'!B766","v":""},{"$f":"IF(ISERROR(VLOOKUP(C763,'Capacidad Financiera'!$B$12:$X$62720,2,0)),\"\",VLOOKUP(C763,'Capacidad Financiera'!$B$12:$X$3580,2,0))","v":0},{"$f":"IF(ISERROR(VLOOKUP(C763,'Capacidad Financiera'!$B$12:$X$62720,3,0)),\"\",VLOOKUP(C763,'Capacidad Financiera'!$B$12:$X$62720,3,0))","v":0},null,{"$f":"IF(OR(D763=\"\",E763=\"\",F763=\"\"),\"\",IF(C763<>\"\",IF(ISERROR(VLOOKUP($A$10,POA!$A$2:$D$25,2,0)),\"\",VLOOKUP($A$10,POA!$A$2:$D$25,2,0)),\"\"))","v":""},"",{"$f":"IF(OR(D763=\"\",E763=\"\",F763=\"\"),\"\",IF(AND(H763>0,H763<=Experiencia1),Puntajes!$D$4,IF(AND(H763>Experiencia1,H763<=Experiencia2),Puntajes!$D$5,IF(AND(H763>Experiencia2,H763<=Experiencia3),Puntajes!$D$6,IF(H763>Experiencia3,Puntajes!$D$7,0)))))","v":""}]
[null,null,{"$f":"+'Capacidad Financiera'!B767","v":""},{"$f":"IF(ISERROR(VLOOKUP(C764,'Capacidad Financiera'!$B$12:$X$62720,2,0)),\"\",VLOOKUP(C764,'Capacidad Financiera'!$B$12:$X$3580,2,0))","v":0},{"$f":"IF(ISERROR(VLOOKUP(C764,'Capacidad Financiera'!$B$12:$X$62720,3,0)),\"\",VLOOKUP(C764,'Capacidad Financiera'!$B$12:$X$62720,3,0))","v":0},null,{"$f":"IF(OR(D764=\"\",E764=\"\",F764=\"\"),\"\",IF(C764<>\"\",IF(ISERROR(VLOOKUP($A$10,POA!$A$2:$D$25,2,0)),\"\",VLOOKUP($A$10,POA!$A$2:$D$25,2,0)),\"\"))","v":""},"",{"$f":"IF(OR(D764=\"\",E764=\"\",F764=\"\"),\"\",IF(AND(H764>0,H764<=Experiencia1),Puntajes!$D$4,IF(AND(H764>Experiencia1,H764<=Experiencia2),Puntajes!$D$5,IF(AND(H764>Experiencia2,H764<=Experiencia3),Puntajes!$D$6,IF(H764>Experiencia3,Puntajes!$D$7,0)))))","v":""}]
[null,null,{"$f":"+'Capacidad Financiera'!B768","v":""},{"$f":"IF(ISERROR(VLOOKUP(C765,'Capacidad Financiera'!$B$12:$X$62720,2,0)),\"\",VLOOKUP(C765,'Capacidad Financiera'!$B$12:$X$3580,2,0))","v":0},{"$f":"IF(ISERROR(VLOOKUP(C765,'Capacidad Financiera'!$B$12:$X$62720,3,0)),\"\",VLOOKUP(C765,'Capacidad Financiera'!$B$12:$X$62720,3,0))","v":0},null,{"$f":"IF(OR(D765=\"\",E765=\"\",F765=\"\"),\"\",IF(C765<>\"\",IF(ISERROR(VLOOKUP($A$10,POA!$A$2:$D$25,2,0)),\"\",VLOOKUP($A$10,POA!$A$2:$D$25,2,0)),\"\"))","v":""},"",{"$f":"IF(OR(D765=\"\",E765=\"\",F765=\"\"),\"\",IF(AND(H765>0,H765<=Experiencia1),Puntajes!$D$4,IF(AND(H765>Experiencia1,H765<=Experiencia2),Puntajes!$D$5,IF(AND(H765>Experiencia2,H765<=Experiencia3),Puntajes!$D$6,IF(H765>Experiencia3,Puntajes!$D$7,0)))))","v":""}]
[null,null,{"$f":"+'Capacidad Financiera'!B769","v":""},{"$f":"IF(ISERROR(VLOOKUP(C766,'Capacidad Financiera'!$B$12:$X$62720,2,0)),\"\",VLOOKUP(C766,'Capacidad Financiera'!$B$12:$X$3580,2,0))","v":0},{"$f":"IF(ISERROR(VLOOKUP(C766,'Capacidad Financiera'!$B$12:$X$62720,3,0)),\"\",VLOOKUP(C766,'Capacidad Financiera'!$B$12:$X$62720,3,0))","v":0},null,{"$f":"IF(OR(D766=\"\",E766=\"\",F766=\"\"),\"\",IF(C766<>\"\",IF(ISERROR(VLOOKUP($A$10,POA!$A$2:$D$25,2,0)),\"\",VLOOKUP($A$10,POA!$A$2:$D$25,2,0)),\"\"))","v":""},"",{"$f":"IF(OR(D766=\"\",E766=\"\",F766=\"\"),\"\",IF(AND(H766>0,H766<=Experiencia1),Puntajes!$D$4,IF(AND(H766>Experiencia1,H766<=Experiencia2),Puntajes!$D$5,IF(AND(H766>Experiencia2,H766<=Experiencia3),Puntajes!$D$6,IF(H766>Experiencia3,Puntajes!$D$7,0)))))","v":""}]
[null,null,{"$f":"+'Capacidad Financiera'!B770","v":""},{"$f":"IF(ISERROR(VLOOKUP(C767,'Capacidad Financiera'!$B$12:$X$62720,2,0)),\"\",VLOOKUP(C767,'Capacidad Financiera'!$B$12:$X$3580,2,0))","v":0},{"$f":"IF(ISERROR(VLOOKUP(C767,'Capacidad Financiera'!$B$12:$X$62720,3,0)),\"\",VLOOKUP(C767,'Capacidad Financiera'!$B$12:$X$62720,3,0))","v":0},null,{"$f":"IF(OR(D767=\"\",E767=\"\",F767=\"\"),\"\",IF(C767<>\"\",IF(ISERROR(VLOOKUP($A$10,POA!$A$2:$D$25,2,0)),\"\",VLOOKUP($A$10,POA!$A$2:$D$25,2,0)),\"\"))","v":""},"",{"$f":"IF(OR(D767=\"\",E767=\"\",F767=\"\"),\"\",IF(AND(H767>0,H767<=Experiencia1),Puntajes!$D$4,IF(AND(H767>Experiencia1,H767<=Experiencia2),Puntajes!$D$5,IF(AND(H767>Experiencia2,H767<=Experiencia3),Puntajes!$D$6,IF(H767>Experiencia3,Puntajes!$D$7,0)))))","v":""}]
[null,null,70,{"$f":"IF(ISERROR(VLOOKUP(C768,'Capacidad Financiera'!$B$12:$X$62720,2,0)),\"\",VLOOKUP(C768,'Capacidad Financiera'!$B$12:$X$3580,2,0))","v":0},{"$f":"IF(ISERROR(VLOOKUP(C768,'Capacidad Financiera'!$B$12:$X$62720,3,0)),\"\",VLOOKUP(C768,'Capacidad Financiera'!$B$12:$X$62720,3,0))","v":""},null,{"$f":"IF(OR(D768=\"\",E768=\"\",F768=\"\"),\"\",IF(C769=\"\",IF(C768<>\"\",IF(ISERROR(VLOOKUP($A$10,POA!$A$2:$D$25,2,0)),\"\",VLOOKUP($A$10,POA!$A$2:$D$25,2,0)),\"\"),\"\"))","v":""},{"$f":"IF(OR(D768=\"\",E768=\"\",F768=\"\"),\"\",IF(C769=\"\",IF(C768<>\"\",F768/G768,\"\"),\"\"))","v":""},{"$f":"IF(C769=\"\",IF(F768=\"\",\"\",IF(AND(H768>0,H768<=Experiencia1),Puntajes!$D$4,IF(AND(H768>Experiencia1,H768<=Experiencia2),Puntajes!$D$5,IF(AND(H768>Experiencia2,H768<=Experiencia3),Puntajes!$D$6,IF(H768>Experiencia3,Puntajes!$D$7,0))))),\"\")","v":""}]
[null,null,{"$f":"+'Capacidad Financiera'!B772","v":""},{"$f":"IF(ISERROR(VLOOKUP(C769,'Capacidad Financiera'!$B$12:$X$62720,2,0)),\"\",VLOOKUP(C769,'Capacidad Financiera'!$B$12:$X$3580,2,0))","v":0},{"$f":"IF(ISERROR(VLOOKUP(C769,'Capacidad Financiera'!$B$12:$X$62720,3,0)),\"\",VLOOKUP(C769,'Capacidad Financiera'!$B$12:$X$62720,3,0))","v":0},null,{"$f":"IF(OR(D769=\"\",E769=\"\",F769=\"\"),\"\",IF(C769<>\"\",IF(ISERROR(VLOOKUP($A$10,POA!$A$2:$D$25,2,0)),\"\",VLOOKUP($A$10,POA!$A$2:$D$25,2,0)),\"\"))","v":""},{"$f":"IF(OR(D769=\"\",E769=\"\",F769=\"\"),\"\",IF(C769<>\"\",F769/(G769*E769),\"\"))","v":""},{"$f":"IF(OR(D769=\"\",E769=\"\",F769=\"\"),\"\",IF(AND(H769>0,H769<=Experiencia1),Puntajes!$D$4,IF(AND(H769>Experiencia1,H769<=Experiencia2),Puntajes!$D$5,IF(AND(H769>Experiencia2,H769<=Experiencia3),Puntajes!$D$6,IF(H769>Experiencia3,Puntajes!$D$7,0)))))","v":""}]
[null,null,{"$f":"+'Capacidad Financiera'!B773","v":""},{"$f":"IF(ISERROR(VLOOKUP(C770,'Capacidad Financiera'!$B$12:$X$62720,2,0)),\"\",VLOOKUP(C770,'Capacidad Financiera'!$B$12:$X$3580,2,0))","v":0},{"$f":"IF(ISERROR(VLOOKUP(C770,'Capacidad Financiera'!$B$12:$X$62720,3,0)),\"\",VLOOKUP(C770,'Capacidad Financiera'!$B$12:$X$62720,3,0))","v":0},null,{"$f":"IF(OR(D770=\"\",E770=\"\",F770=\"\"),\"\",IF(C770<>\"\",IF(ISERROR(VLOOKUP($A$10,POA!$A$2:$D$25,2,0)),\"\",VLOOKUP($A$10,POA!$A$2:$D$25,2,0)),\"\"))","v":""},{"$f":"IF(OR(D770=\"\",E770=\"\",F770=\"\"),\"\",IF(C770<>\"\",F770/(G770*E770),\"\"))","v":""},{"$f":"IF(OR(D770=\"\",E770=\"\",F770=\"\"),\"\",IF(AND(H770>0,H770<=Experiencia1),Puntajes!$D$4,IF(AND(H770>Experiencia1,H770<=Experiencia2),Puntajes!$D$5,IF(AND(H770>Experiencia2,H770<=Experiencia3),Puntajes!$D$6,IF(H770>Experiencia3,Puntajes!$D$7,0)))))","v":""}]
[null,null,{"$f":"+'Capacidad Financiera'!B774","v":""},{"$f":"IF(ISERROR(VLOOKUP(C771,'Capacidad Financiera'!$B$12:$X$62720,2,0)),\"\",VLOOKUP(C771,'Capacidad Financiera'!$B$12:$X$3580,2,0))","v":0},{"$f":"IF(ISERROR(VLOOKUP(C771,'Capacidad Financiera'!$B$12:$X$62720,3,0)),\"\",VLOOKUP(C771,'Capacidad Financiera'!$B$12:$X$62720,3,0))","v":0},null,{"$f":"IF(OR(D771=\"\",E771=\"\",F771=\"\"),\"\",IF(C771<>\"\",IF(ISERROR(VLOOKUP($A$10,POA!$A$2:$D$25,2,0)),\"\",VLOOKUP($A$10,POA!$A$2:$D$25,2,0)),\"\"))","v":""},"",{"$f":"IF(OR(D771=\"\",E771=\"\",F771=\"\"),\"\",IF(AND(H771>0,H771<=Experiencia1),Puntajes!$D$4,IF(AND(H771>Experiencia1,H771<=Experiencia2),Puntajes!$D$5,IF(AND(H771>Experiencia2,H771<=Experiencia3),Puntajes!$D$6,IF(H771>Experiencia3,Puntajes!$D$7,0)))))","v":""}]
[null,null,{"$f":"+'Capacidad Financiera'!B775","v":""},{"$f":"IF(ISERROR(VLOOKUP(C772,'Capacidad Financiera'!$B$12:$X$62720,2,0)),\"\",VLOOKUP(C772,'Capacidad Financiera'!$B$12:$X$3580,2,0))","v":0},{"$f":"IF(ISERROR(VLOOKUP(C772,'Capacidad Financiera'!$B$12:$X$62720,3,0)),\"\",VLOOKUP(C772,'Capacidad Financiera'!$B$12:$X$62720,3,0))","v":0},null,{"$f":"IF(OR(D772=\"\",E772=\"\",F772=\"\"),\"\",IF(C772<>\"\",IF(ISERROR(VLOOKUP($A$10,POA!$A$2:$D$25,2,0)),\"\",VLOOKUP($A$10,POA!$A$2:$D$25,2,0)),\"\"))","v":""},"",{"$f":"IF(OR(D772=\"\",E772=\"\",F772=\"\"),\"\",IF(AND(H772>0,H772<=Experiencia1),Puntajes!$D$4,IF(AND(H772>Experiencia1,H772<=Experiencia2),Puntajes!$D$5,IF(AND(H772>Experiencia2,H772<=Experiencia3),Puntajes!$D$6,IF(H772>Experiencia3,Puntajes!$D$7,0)))))","v":""}]
[null,null,{"$f":"+'Capacidad Financiera'!B776","v":""},{"$f":"IF(ISERROR(VLOOKUP(C773,'Capacidad Financiera'!$B$12:$X$62720,2,0)),\"\",VLOOKUP(C773,'Capacidad Financiera'!$B$12:$X$3580,2,0))","v":0},{"$f":"IF(ISERROR(VLOOKUP(C773,'Capacidad Financiera'!$B$12:$X$62720,3,0)),\"\",VLOOKUP(C773,'Capacidad Financiera'!$B$12:$X$62720,3,0))","v":0},null,{"$f":"IF(OR(D773=\"\",E773=\"\",F773=\"\"),\"\",IF(C773<>\"\",IF(ISERROR(VLOOKUP($A$10,POA!$A$2:$D$25,2,0)),\"\",VLOOKUP($A$10,POA!$A$2:$D$25,2,0)),\"\"))","v":""},"",{"$f":"IF(OR(D773=\"\",E773=\"\",F773=\"\"),\"\",IF(AND(H773>0,H773<=Experiencia1),Puntajes!$D$4,IF(AND(H773>Experiencia1,H773<=Experiencia2),Puntajes!$D$5,IF(AND(H773>Experiencia2,H773<=Experiencia3),Puntajes!$D$6,IF(H773>Experiencia3,Puntajes!$D$7,0)))))","v":""}]
[null,null,{"$f":"+'Capacidad Financiera'!B777","v":""},{"$f":"IF(ISERROR(VLOOKUP(C774,'Capacidad Financiera'!$B$12:$X$62720,2,0)),\"\",VLOOKUP(C774,'Capacidad Financiera'!$B$12:$X$3580,2,0))","v":0},{"$f":"IF(ISERROR(VLOOKUP(C774,'Capacidad Financiera'!$B$12:$X$62720,3,0)),\"\",VLOOKUP(C774,'Capacidad Financiera'!$B$12:$X$62720,3,0))","v":0},null,{"$f":"IF(OR(D774=\"\",E774=\"\",F774=\"\"),\"\",IF(C774<>\"\",IF(ISERROR(VLOOKUP($A$10,POA!$A$2:$D$25,2,0)),\"\",VLOOKUP($A$10,POA!$A$2:$D$25,2,0)),\"\"))","v":""},"",{"$f":"IF(OR(D774=\"\",E774=\"\",F774=\"\"),\"\",IF(AND(H774>0,H774<=Experiencia1),Puntajes!$D$4,IF(AND(H774>Experiencia1,H774<=Experiencia2),Puntajes!$D$5,IF(AND(H774>Experiencia2,H774<=Experiencia3),Puntajes!$D$6,IF(H774>Experiencia3,Puntajes!$D$7,0)))))","v":""}]
[null,null,{"$f":"+'Capacidad Financiera'!B778","v":""},{"$f":"IF(ISERROR(VLOOKUP(C775,'Capacidad Financiera'!$B$12:$X$62720,2,0)),\"\",VLOOKUP(C775,'Capacidad Financiera'!$B$12:$X$3580,2,0))","v":0},{"$f":"IF(ISERROR(VLOOKUP(C775,'Capacidad Financiera'!$B$12:$X$62720,3,0)),\"\",VLOOKUP(C775,'Capacidad Financiera'!$B$12:$X$62720,3,0))","v":0},null,{"$f":"IF(OR(D775=\"\",E775=\"\",F775=\"\"),\"\",IF(C775<>\"\",IF(ISERROR(VLOOKUP($A$10,POA!$A$2:$D$25,2,0)),\"\",VLOOKUP($A$10,POA!$A$2:$D$25,2,0)),\"\"))","v":""},"",{"$f":"IF(OR(D775=\"\",E775=\"\",F775=\"\"),\"\",IF(AND(H775>0,H775<=Experiencia1),Puntajes!$D$4,IF(AND(H775>Experiencia1,H775<=Experiencia2),Puntajes!$D$5,IF(AND(H775>Experiencia2,H775<=Experiencia3),Puntajes!$D$6,IF(H775>Experiencia3,Puntajes!$D$7,0)))))","v":""}]
[null,null,{"$f":"+'Capacidad Financiera'!B779","v":""},{"$f":"IF(ISERROR(VLOOKUP(C776,'Capacidad Financiera'!$B$12:$X$62720,2,0)),\"\",VLOOKUP(C776,'Capacidad Financiera'!$B$12:$X$3580,2,0))","v":0},{"$f":"IF(ISERROR(VLOOKUP(C776,'Capacidad Financiera'!$B$12:$X$62720,3,0)),\"\",VLOOKUP(C776,'Capacidad Financiera'!$B$12:$X$62720,3,0))","v":0},null,{"$f":"IF(OR(D776=\"\",E776=\"\",F776=\"\"),\"\",IF(C776<>\"\",IF(ISERROR(VLOOKUP($A$10,POA!$A$2:$D$25,2,0)),\"\",VLOOKUP($A$10,POA!$A$2:$D$25,2,0)),\"\"))","v":""},"",{"$f":"IF(OR(D776=\"\",E776=\"\",F776=\"\"),\"\",IF(AND(H776>0,H776<=Experiencia1),Puntajes!$D$4,IF(AND(H776>Experiencia1,H776<=Experiencia2),Puntajes!$D$5,IF(AND(H776>Experiencia2,H776<=Experiencia3),Puntajes!$D$6,IF(H776>Experiencia3,Puntajes!$D$7,0)))))","v":""}]
[null,null,{"$f":"+'Capacidad Financiera'!B780","v":""},{"$f":"IF(ISERROR(VLOOKUP(C777,'Capacidad Financiera'!$B$12:$X$62720,2,0)),\"\",VLOOKUP(C777,'Capacidad Financiera'!$B$12:$X$3580,2,0))","v":0},{"$f":"IF(ISERROR(VLOOKUP(C777,'Capacidad Financiera'!$B$12:$X$62720,3,0)),\"\",VLOOKUP(C777,'Capacidad Financiera'!$B$12:$X$62720,3,0))","v":0},null,{"$f":"IF(OR(D777=\"\",E777=\"\",F777=\"\"),\"\",IF(C777<>\"\",IF(ISERROR(VLOOKUP($A$10,POA!$A$2:$D$25,2,0)),\"\",VLOOKUP($A$10,POA!$A$2:$D$25,2,0)),\"\"))","v":""},"",{"$f":"IF(OR(D777=\"\",E777=\"\",F777=\"\"),\"\",IF(AND(H777>0,H777<=Experiencia1),Puntajes!$D$4,IF(AND(H777>Experiencia1,H777<=Experiencia2),Puntajes!$D$5,IF(AND(H777>Experiencia2,H777<=Experiencia3),Puntajes!$D$6,IF(H777>Experiencia3,Puntajes!$D$7,0)))))","v":""}]
[null,null,{"$f":"+'Capacidad Financiera'!B781","v":""},{"$f":"IF(ISERROR(VLOOKUP(C778,'Capacidad Financiera'!$B$12:$X$62720,2,0)),\"\",VLOOKUP(C778,'Capacidad Financiera'!$B$12:$X$3580,2,0))","v":0},{"$f":"IF(ISERROR(VLOOKUP(C778,'Capacidad Financiera'!$B$12:$X$62720,3,0)),\"\",VLOOKUP(C778,'Capacidad Financiera'!$B$12:$X$62720,3,0))","v":0},null,{"$f":"IF(OR(D778=\"\",E778=\"\",F778=\"\"),\"\",IF(C778<>\"\",IF(ISERROR(VLOOKUP($A$10,POA!$A$2:$D$25,2,0)),\"\",VLOOKUP($A$10,POA!$A$2:$D$25,2,0)),\"\"))","v":""},"",{"$f":"IF(OR(D778=\"\",E778=\"\",F778=\"\"),\"\",IF(AND(H778>0,H778<=Experiencia1),Puntajes!$D$4,IF(AND(H778>Experiencia1,H778<=Experiencia2),Puntajes!$D$5,IF(AND(H778>Experiencia2,H778<=Experiencia3),Puntajes!$D$6,IF(H778>Experiencia3,Puntajes!$D$7,0)))))","v":""}]

{"sheet":"Puntaje CT","index":6,"n_rows":778,"n_cols":6,"rows_kept":778,"cut":false,"hidden":false,"merged":[[1,2,1,5],[2,2,2,5],[3,2,3,5],[4,2,4,5],[6,2,7,2],[6,3,7,3]]}
[]
[null,null,"INSTITUTO NACIONAL DE VIAS"]
[null,null,"DIRECCIÓN DE CONTRATACIÓN"]
[null,null,{"$f":"'Capacidad Financiera'!B4","v":"LICITACIÓN PÚBLICA No. LP-DO-SRN-XXX-2014"}]
[null,null,"PUNTAJE POR CAPACIDAD TÉCNICA"]
[]
[null,null,"OFERTA","PROPONENTE","PROFESIONALES VINCULADOS","PUNTAJE POR CAPACIDAD TÉCNICA"]
[null,null,null,null,"Numeros de Socios y Profesionales de la Arquitectura , Ingenierìa y Geologìa vinculados mediante relaciòn laboral o contractual en actividades relacionadas directamente a la construcciòn","Rangos: \nDesde 1 hasta 5 = 20 Puntos\nDesde 6 hasta 10 = 30 Puntos\nDesde 11 hasta mayores = 40 Puntos"]
[null,null,{"$f":"+'Capacidad Financiera'!B12","v":1},{"$f":"IF(ISERROR(VLOOKUP(C9,'Capacidad Financiera'!$B$12:$X$62720,2,0)),\"\",VLOOKUP(C9,'Capacidad Financiera'!$B$12:$X$3580,2,0))","v":"CONVIAL S.A.S."},null,{"$f":"IF(C10=\"\",IF(E9=\"\",\"\",IF(AND(E9>0,E9<=CapTecnica1),Puntajes!$H$4,IF(AND(E9>CapTecnica1,E9<=CapTecnica2),Puntajes!$H$5,IF(E9>CapTecnica2,Puntajes!$H$6,0)))),\"\")","v":""}]
[null,null,{"$f":"+'Capacidad Financiera'!B13","v":1.1000000000000001},{"$f":"IF(ISERROR(VLOOKUP(C10,'Capacidad Financiera'!$B$12:$X$62720,2,0)),\"\",VLOOKUP(C10,'Capacidad Financiera'!$B$12:$X$3580,2,0))","v":"CONVIAL S.A.S."},7,{"$f":"IF(OR(D10=\"\",E10=\"\"),\"\",IF(AND(E10>0,E10<=CapTecnica1),Puntajes!$H$4,IF(AND(E10>CapTecnica1,E10<=CapTecnica2),Puntajes!$H$5,IF(E10>CapTecnica2,Puntajes!$H$6,0))))","v":30}]
[null,null,{"$f":"+'Capacidad Financiera'!B14","v":""},{"$f":"IF(ISERROR(VLOOKUP(C11,'Capacidad Financiera'!$B$12:$X$62720,2,0)),\"\",VLOOKUP(C11,'Capacidad Financiera'!$B$12:$X$3580,2,0))","v":0},null,{"$f":"IF(OR(D11=\"\",E11=\"\"),\"\",IF(AND(E11>0,E11<=CapTecnica1),Puntajes!$H$4,IF(AND(E11>CapTecnica1,E11<=CapTecnica2),Puntajes!$H$5,IF(E11>CapTecnica2,Puntajes!$H$6,0))))","v":""}]
[null,null,{"$f":"+'Capacidad Financiera'!B15","v":""},{"$f":"IF(ISERROR(VLOOKUP(C12,'Capacidad Financiera'!$B$12:$X$62720,2,0)),\"\",VLOOKUP(C12,'Capacidad Financiera'!$B$12:$X$3580,2,0))","v":0},null,{"$f":"IF(OR(D12=\"\",E12=\"\"),\"\",IF(AND(E12>0,E12<=CapTecnica1),Puntajes!$H$4,IF(AND(E12>CapTecnica1,E12<=CapTecnica2),Puntajes!$H$5,IF(E12>CapTecnica2,Puntajes!$H$6,0))))","v":""}]
[null,null,{"$f":"+'Capacidad Financiera'!B16","v":""},{"$f":"IF(ISERROR(VLOOKUP(C13,'Capacidad Financiera'!$B$12:$X$62720,2,0)),\"\",VLOOKUP(C13,'Capacidad Financiera'!$B$12:$X$3580,2,0))","v":0},null,{"$f":"IF(OR(D13=\"\",E13=\"\"),\"\",IF(AND(E13>0,E13<=CapTecnica1),Puntajes!$H$4,IF(AND(E13>CapTecnica1,E13<=CapTecnica2),Puntajes!$H$5,IF(E13>CapTecnica2,Puntajes!$H$6,0))))","v":""}]
[null,null,{"$f":"+'Capacidad Financiera'!B17","v":""},{"$f":"IF(ISERROR(VLOOKUP(C14,'Capacidad Financiera'!$B$12:$X$62720,2,0)),\"\",VLOOKUP(C14,'Capacidad Financiera'!$B$12:$X$3580,2,0))","v":0},null,{"$f":"IF(OR(D14=\"\",E14=\"\"),\"\",IF(AND(E14>0,E14<=CapTecnica1),Puntajes!$H$4,IF(AND(E14>CapTecnica1,E14<=CapTecnica2),Puntajes!$H$5,IF(E14>CapTecnica2,Puntajes!$H$6,0))))","v":""}]
[null,null,{"$f":"+'Capacidad Financiera'!B18","v":""},{"$f":"IF(ISERROR(VLOOKUP(C15,'Capacidad Financiera'!$B$12:$X$62720,2,0)),\"\",VLOOKUP(C15,'Capacidad Financiera'!$B$12:$X$3580,2,0))","v":0},null,{"$f":"IF(OR(D15=\"\",E15=\"\"),\"\",IF(AND(E15>0,E15<=CapTecnica1),Puntajes!$H$4,IF(AND(E15>CapTecnica1,E15<=CapTecnica2),Puntajes!$H$5,IF(E15>CapTecnica2,Puntajes!$H$6,0))))","v":""}]
[null,null,{"$f":"+'Capacidad Financiera'!B19","v":""},{"$f":"IF(ISERROR(VLOOKUP(C16,'Capacidad Financiera'!$B$12:$X$62720,2,0)),\"\",VLOOKUP(C16,'Capacidad Financiera'!$B$12:$X$3580,2,0))","v":0},null,{"$f":"IF(OR(D16=\"\",E16=\"\"),\"\",IF(AND(E16>0,E16<=CapTecnica1),Puntajes!$H$4,IF(AND(E16>CapTecnica1,E16<=CapTecnica2),Puntajes!$H$5,IF(E16>CapTecnica2,Puntajes!$H$6,0))))","v":""}]
[null,null,{"$f":"+'Capacidad Financiera'!B20","v":""},{"$f":"IF(ISERROR(VLOOKUP(C17,'Capacidad Financiera'!$B$12:$X$62720,2,0)),\"\",VLOOKUP(C17,'Capacidad Financiera'!$B$12:$X$3580,2,0))","v":0},null,{"$f":"IF(OR(D17=\"\",E17=\"\"),\"\",IF(AND(E17>0,E17<=CapTecnica1),Puntajes!$H$4,IF(AND(E17>CapTecnica1,E17<=CapTecnica2),Puntajes!$H$5,IF(E17>CapTecnica2,Puntajes!$H$6,0))))","v":""}]
[null,null,{"$f":"+'Capacidad Financiera'!B21","v":""},{"$f":"IF(ISERROR(VLOOKUP(C18,'Capacidad Financiera'!$B$12:$X$62720,2,0)),\"\",VLOOKUP(C18,'Capacidad Financiera'!$B$12:$X$3580,2,0))","v":0},null,{"$f":"IF(OR(D18=\"\",E18=\"\"),\"\",IF(AND(E18>0,E18<=CapTecnica1),Puntajes!$H$4,IF(AND(E18>CapTecnica1,E18<=CapTecnica2),Puntajes!$H$5,IF(E18>CapTecnica2,Puntajes!$H$6,0))))","v":""}]
[null,null,{"$f":"+'Capacidad Financiera'!B22","v":""},{"$f":"IF(ISERROR(VLOOKUP(C19,'Capacidad Financiera'!$B$12:$X$62720,2,0)),\"\",VLOOKUP(C19,'Capacidad Financiera'!$B$12:$X$3580,2,0))","v":0},null,{"$f":"IF(OR(D19=\"\",E19=\"\"),\"\",IF(AND(E19>0,E19<=CapTecnica1),Puntajes!$H$4,IF(AND(E19>CapTecnica1,E19<=CapTecnica2),Puntajes!$H$5,IF(E19>CapTecnica2,Puntajes!$H$6,0))))","v":""}]
[null,null,2,{"$f":"IF(ISERROR(VLOOKUP(C20,'Capacidad Financiera'!$B$12:$X$62720,2,0)),\"\",VLOOKUP(C20,'Capacidad Financiera'!$B$12:$X$3580,2,0))","v":"CONSORCIO VIC DROMOS"},null,{"$f":"IF(C21=\"\",IF(E20=\"\",\"\",IF(AND(E20>0,E20<=CapTecnica1),Puntajes!$H$4,IF(AND(E20>CapTecnica1,E20<=CapTecnica2),Puntajes!$H$5,IF(E20>CapTecnica2,Puntajes!$H$6,0)))),\"\")","v":""}]
[null,null,{"$f":"+'Capacidad Financiera'!B24","v":2.1},{"$f":"IF(ISERROR(VLOOKUP(C21,'Capacidad Financiera'!$B$12:$X$62720,2,0)),\"\",VLOOKUP(C21,'Capacidad Financiera'!$B$12:$X$3580,2,0))","v":"VIC S.A.S."},4,{"$f":"IF(OR(D21=\"\",E21=\"\"),\"\",IF(AND(E21>0,E21<=CapTecnica1),Puntajes!$H$4,IF(AND(E21>CapTecnica1,E21<=CapTecnica2),Puntajes!$H$5,IF(E21>CapTecnica2,Puntajes!$H$6,0))))","v":20}]
[null,null,{"$f":"+'Capacidad Financiera'!B25","v":2.2000000000000002},{"$f":"IF(ISERROR(VLOOKUP(C22,'Capacidad Financiera'!$B$12:$X$62720,2,0)),\"\",VLOOKUP(C22,'Capacidad Financiera'!$B$12:$X$3580,2,0))","v":"DROMOS PAVIMENTOS S.A."},9,{"$f":"IF(OR(D22=\"\",E22=\"\"),\"\",IF(AND(E22>0,E22<=CapTecnica1),Puntajes!$H$4,IF(AND(E22>CapTecnica1,E22<=CapTecnica2),Puntajes!$H$5,IF(E22>CapTecnica2,Puntajes!$H$6,0))))","v":30}]
[null,null,{"$f":"+'Capacidad Financiera'!B26","v":""},{"$f":"IF(ISERROR(VLOOKUP(C23,'Capacidad Financiera'!$B$12:$X$62720,2,0)),\"\",VLOOKUP(C23,'Capacidad Financiera'!$B$12:$X$3580,2,0))","v":0},null,{"$f":"IF(OR(D23=\"\",E23=\"\"),\"\",IF(AND(E23>0,E23<=CapTecnica1),Puntajes!$H$4,IF(AND(E23>CapTecnica1,E23<=CapTecnica2),Puntajes!$H$5,IF(E23>CapTecnica2,Puntajes!$H$6,0))))","v":""}]
[null,null,{"$f":"+'Capacidad Financiera'!B27","v":""},{"$f":"IF(ISERROR(VLOOKUP(C24,'Capacidad Financiera'!$B$12:$X$62720,2,0)),\"\",VLOOKUP(C24,'Capacidad Financiera'!$B$12:$X$3580,2,0))","v":0},null,{"$f":"IF(OR(D24=\"\",E24=\"\"),\"\",IF(AND(E24>0,E24<=CapTecnica1),Puntajes!$H$4,IF(AND(E24>CapTecnica1,E24<=CapTecnica2),Puntajes!$H$5,IF(E24>CapTecnica2,Puntajes!$H$6,0))))","v":""}]
[null,null,{"$f":"+'Capacidad Financiera'!B28","v":""},{"$f":"IF(ISERROR(VLOOKUP(C25,'Capacidad Financiera'!$B$12:$X$62720,2,0)),\"\",VLOOKUP(C25,'Capacidad Financiera'!$B$12:$X$3580,2,0))","v":0},null,{"$f":"IF(OR(D25=\"\",E25=\"\"),\"\",IF(AND(E25>0,E25<=CapTecnica1),Puntajes!$H$4,IF(AND(E25>CapTecnica1,E25<=CapTecnica2),Puntajes!$H$5,IF(E25>CapTecnica2,Puntajes!$H$6,0))))","v":""}]
[null,null,{"$f":"+'Capacidad Financiera'!B29","v":""},{"$f":"IF(ISERROR(VLOOKUP(C26,'Capacidad Financiera'!$B$12:$X$62720,2,0)),\"\",VLOOKUP(C26,'Capacidad Financiera'!$B$12:$X$3580,2,0))","v":0},null,{"$f":"IF(OR(D26=\"\",E26=\"\"),\"\",IF(AND(E26>0,E26<=CapTecnica1),Puntajes!$H$4,IF(AND(E26>CapTecnica1,E26<=CapTecnica2),Puntajes!$H$5,IF(E26>CapTecnica2,Puntajes!$H$6,0))))","v":""}]
[null,null,{"$f":"+'Capacidad Financiera'!B30","v":""},{"$f":"IF(ISERROR(VLOOKUP(C27,'Capacidad Financiera'!$B$12:$X$62720,2,0)),\"\",VLOOKUP(C27,'Capacidad Financiera'!$B$12:$X$3580,2,0))","v":0},null,{"$f":"IF(OR(D27=\"\",E27=\"\"),\"\",IF(AND(E27>0,E27<=CapTecnica1),Puntajes!$H$4,IF(AND(E27>CapTecnica1,E27<=CapTecnica2),Puntajes!$H$5,IF(E27>CapTecnica2,Puntajes!$H$6,0))))","v":""}]
[null,null,{"$f":"+'Capacidad Financiera'!B31","v":""},{"$f":"IF(ISERROR(VLOOKUP(C28,'Capacidad Financiera'!$B$12:$X$62720,2,0)),\"\",VLOOKUP(C28,'Capacidad Financiera'!$B$12:$X$3580,2,0))","v":0},null,{"$f":"IF(OR(D28=\"\",E28=\"\"),\"\",IF(AND(E28>0,E28<=CapTecnica1),Puntajes!$H$4,IF(AND(E28>CapTecnica1,E28<=CapTecnica2),Puntajes!$H$5,IF(E28>CapTecnica2,Puntajes!$H$6,0))))","v":""}]
[null,null,{"$f":"+'Capacidad Financiera'!B32","v":""},{"$f":"IF(ISERROR(VLOOKUP(C29,'Capacidad Financiera'!$B$12:$X$62720,2,0)),\"\",VLOOKUP(C29,'Capacidad Financiera'!$B$12:$X$3580,2,0))","v":0},null,{"$f":"IF(OR(D29=\"\",E29=\"\"),\"\",IF(AND(E29>0,E29<=CapTecnica1),Puntajes!$H$4,IF(AND(E29>CapTecnica1,E29<=CapTecnica2),Puntajes!$H$5,IF(E29>CapTecnica2,Puntajes!$H$6,0))))","v":""}]
[null,null,{"$f":"+'Capacidad Financiera'!B33","v":""},{"$f":"IF(ISERROR(VLOOKUP(C30,'Capacidad Financiera'!$B$12:$X$62720,2,0)),\"\",VLOOKUP(C30,'Capacidad Financiera'!$B$12:$X$3580,2,0))","v":0},null,{"$f":"IF(OR(D30=\"\",E30=\"\"),\"\",IF(AND(E30>0,E30<=CapTecnica1),Puntajes!$H$4,IF(AND(E30>CapTecnica1,E30<=CapTecnica2),Puntajes!$H$5,IF(E30>CapTecnica2,Puntajes!$H$6,0))))","v":""}]
[null,null,3,{"$f":"IF(ISERROR(VLOOKUP(C31,'Capacidad Financiera'!$B$12:$X$62720,2,0)),\"\",VLOOKUP(C31,'Capacidad Financiera'!$B$12:$X$3580,2,0))","v":"EQUIPOS CONSTRUCCIONES Y OBRAS S.A."},null,{"$f":"IF(C32=\"\",IF(E31=\"\",\"\",IF(AND(E31>0,E31<=CapTecnica1),Puntajes!$H$4,IF(AND(E31>CapTecnica1,E31<=CapTecnica2),Puntajes!$H$5,IF(E31>CapTecnica2,Puntajes!$H$6,0)))),\"\")","v":""}]
[null,null,{"$f":"+'Capacidad Financiera'!B35","v":3.1},{"$f":"IF(ISERROR(VLOOKUP(C32,'Capacidad Financiera'!$B$12:$X$62720,2,0)),\"\",VLOOKUP(C32,'Capacidad Financiera'!$B$12:$X$3580,2,0))","v":"EQUIPOS CONSTRUCCIONES Y OBRAS S.A."},5,{"$f":"IF(OR(D32=\"\",E32=\"\"),\"\",IF(AND(E32>0,E32<=CapTecnica1),Puntajes!$H$4,IF(AND(E32>CapTecnica1,E32<=CapTecnica2),Puntajes!$H$5,IF(E32>CapTecnica2,Puntajes!$H$6,0))))","v":20}]
[null,null,{"$f":"+'Capacidad Financiera'!B36","v":""},{"$f":"IF(ISERROR(VLOOKUP(C33,'Capacidad Financiera'!$B$12:$X$62720,2,0)),\"\",VLOOKUP(C33,'Capacidad Financiera'!$B$12:$X$3580,2,0))","v":0},null,{"$f":"IF(OR(D33=\"\",E33=\"\"),\"\",IF(AND(E33>0,E33<=CapTecnica1),Puntajes!$H$4,IF(AND(E33>CapTecnica1,E33<=CapTecnica2),Puntajes!$H$5,IF(E33>CapTecnica2,Puntajes!$H$6,0))))","v":""}]
[null,null,{"$f":"+'Capacidad Financiera'!B37","v":""},{"$f":"IF(ISERROR(VLOOKUP(C34,'Capacidad Financiera'!$B$12:$X$62720,2,0)),\"\",VLOOKUP(C34,'Capacidad Financiera'!$B$12:$X$3580,2,0))","v":0},null,{"$f":"IF(OR(D34=\"\",E34=\"\"),\"\",IF(AND(E34>0,E34<=CapTecnica1),Puntajes!$H$4,IF(AND(E34>CapTecnica1,E34<=CapTecnica2),Puntajes!$H$5,IF(E34>CapTecnica2,Puntajes!$H$6,0))))","v":""}]
[null,null,{"$f":"+'Capacidad Financiera'!B38","v":""},{"$f":"IF(ISERROR(VLOOKUP(C35,'Capacidad Financiera'!$B$12:$X$62720,2,0)),\"\",VLOOKUP(C35,'Capacidad Financiera'!$B$12:$X$3580,2,0))","v":0},null,{"$f":"IF(OR(D35=\"\",E35=\"\"),\"\",IF(AND(E35>0,E35<=CapTecnica1),Puntajes!$H$4,IF(AND(E35>CapTecnica1,E35<=CapTecnica2),Puntajes!$H$5,IF(E35>CapTecnica2,Puntajes!$H$6,0))))","v":""}]
[null,null,{"$f":"+'Capacidad Financiera'!B39","v":""},{"$f":"IF(ISERROR(VLOOKUP(C36,'Capacidad Financiera'!$B$12:$X$62720,2,0)),\"\",VLOOKUP(C36,'Capacidad Financiera'!$B$12:$X$3580,2,0))","v":0},null,{"$f":"IF(OR(D36=\"\",E36=\"\"),\"\",IF(AND(E36>0,E36<=CapTecnica1),Puntajes!$H$4,IF(AND(E36>CapTecnica1,E36<=CapTecnica2),Puntajes!$H$5,IF(E36>CapTecnica2,Puntajes!$H$6,0))))","v":""}]
[null,null,{"$f":"+'Capacidad Financiera'!B40","v":""},{"$f":"IF(ISERROR(VLOOKUP(C37,'Capacidad Financiera'!$B$12:$X$62720,2,0)),\"\",VLOOKUP(C37,'Capacidad Financiera'!$B$12:$X$3580,2,0))","v":0},null,{"$f":"IF(OR(D37=\"\",E37=\"\"),\"\",IF(AND(E37>0,E37<=CapTecnica1),Puntajes!$H$4,IF(AND(E37>CapTecnica1,E37<=CapTecnica2),Puntajes!$H$5,IF(E37>CapTecnica2,Puntajes!$H$6,0))))","v":""}]
[null,null,{"$f":"+'Capacidad Financiera'!B41","v":""},{"$f":"IF(ISERROR(VLOOKUP(C38,'Capacidad Financiera'!$B$12:$X$62720,2,0)),\"\",VLOOKUP(C38,'Capacidad Financiera'!$B$12:$X$3580,2,0))","v":0},null,{"$f":"IF(OR(D38=\"\",E38=\"\"),\"\",IF(AND(E38>0,E38<=CapTecnica1),Puntajes!$H$4,IF(AND(E38>CapTecnica1,E38<=CapTecnica2),Puntajes!$H$5,IF(E38>CapTecnica2,Puntajes!$H$6,0))))","v":""}]
[null,null,{"$f":"+'Capacidad Financiera'!B42","v":""},{"$f":"IF(ISERROR(VLOOKUP(C39,'Capacidad Financiera'!$B$12:$X$62720,2,0)),\"\",VLOOKUP(C39,'Capacidad Financiera'!$B$12:$X$3580,2,0))","v":0},null,{"$f":"IF(OR(D39=\"\",E39=\"\"),\"\",IF(AND(E39>0,E39<=CapTecnica1),Puntajes!$H$4,IF(AND(E39>CapTecnica1,E39<=CapTecnica2),Puntajes!$H$5,IF(E39>CapTecnica2,Puntajes!$H$6,0))))","v":""}]
[null,null,{"$f":"+'Capacidad Financiera'!B43","v":""},{"$f":"IF(ISERROR(VLOOKUP(C40,'Capacidad Financiera'!$B$12:$X$62720,2,0)),\"\",VLOOKUP(C40,'Capacidad Financiera'!$B$12:$X$3580,2,0))","v":0},null,{"$f":"IF(OR(D40=\"\",E40=\"\"),\"\",IF(AND(E40>0,E40<=CapTecnica1),Puntajes!$H$4,IF(AND(E40>CapTecnica1,E40<=CapTecnica2),Puntajes!$H$5,IF(E40>CapTecnica2,Puntajes!$H$6,0))))","v":""}]
[null,null,{"$f":"+'Capacidad Financiera'!B44","v":""},{"$f":"IF(ISERROR(VLOOKUP(C41,'Capacidad Financiera'!$B$12:$X$62720,2,0)),\"\",VLOOKUP(C41,'Capacidad Financiera'!$B$12:$X$3580,2,0))","v":0},null,{"$f":"IF(OR(D41=\"\",E41=\"\"),\"\",IF(AND(E41>0,E41<=CapTecnica1),Puntajes!$H$4,IF(AND(E41>CapTecnica1,E41<=CapTecnica2),Puntajes!$H$5,IF(E41>CapTecnica2,Puntajes!$H$6,0))))","v":""}]
[null,null,4,{"$f":"IF(ISERROR(VLOOKUP(C42,'Capacidad Financiera'!$B$12:$X$62720,2,0)),\"\",VLOOKUP(C42,'Capacidad Financiera'!$B$12:$X$3580,2,0))","v":"CONSORCIO IPV"},null,{"$f":"IF(C43=\"\",IF(E42=\"\",\"\",IF(AND(E42>0,E42<=CapTecnica1),Puntajes!$H$4,IF(AND(E42>CapTecnica1,E42<=CapTecnica2),Puntajes!$H$5,IF(E42>CapTecnica2,Puntajes!$H$6,0)))),\"\")","v":""}]
[null,null,{"$f":"+'Capacidad Financiera'!B46","v":4.0999999999999996},{"$f":"IF(ISERROR(VLOOKUP(C43,'Capacidad Financiera'!$B$12:$X$62720,2,0)),\"\",VLOOKUP(C43,'Capacidad Financiera'!$B$12:$X$3580,2,0))","v":"INGENIERIA DE PUENTES Y VIAS S.A.S."},11,{"$f":"IF(OR(D43=\"\",E43=\"\"),\"\",IF(AND(E43>0,E43<=CapTecnica1),Puntajes!$H$4,IF(AND(E43>CapTecnica1,E43<=CapTecnica2),Puntajes!$H$5,IF(E43>CapTecnica2,Puntajes!$H$6,0))))","v":40}]
[null,null,{"$f":"+'Capacidad Financiera'!B47","v":4.1999999999999993},{"$f":"IF(ISERROR(VLOOKUP(C44,'Capacidad Financiera'!$B$12:$X$62720,2,0)),\"\",VLOOKUP(C44,'Capacidad Financiera'!$B$12:$X$3580,2,0))","v":"RENAN CARDOZO CARDOZO"},1,{"$f":"IF(OR(D44=\"\",E44=\"\"),\"\",IF(AND(E44>0,E44<=CapTecnica1),Puntajes!$H$4,IF(AND(E44>CapTecnica1,E44<=CapTecnica2),Puntajes!$H$5,IF(E44>CapTecnica2,Puntajes!$H$6,0))))","v":20}]
[null,null,{"$f":"+'Capacidad Financiera'!B48","v":4.2999999999999989},{"$f":"IF(ISERROR(VLOOKUP(C45,'Capacidad Financiera'!$B$12:$X$62720,2,0)),\"\",VLOOKUP(C45,'Capacidad Financiera'!$B$12:$X$3580,2,0))","v":"OMAR CARDOZO CARDOZO"},1,{"$f":"IF(OR(D45=\"\",E45=\"\"),\"\",IF(AND(E45>0,E45<=CapTecnica1),Puntajes!$H$4,IF(AND(E45>CapTecnica1,E45<=CapTecnica2),Puntajes!$H$5,IF(E45>CapTecnica2,Puntajes!$H$6,0))))","v":20}]
[null,null,{"$f":"+'Capacidad Financiera'!B49","v":4.3999999999999986},{"$f":"IF(ISERROR(VLOOKUP(C46,'Capacidad Financiera'!$B$12:$X$62720,2,0)),\"\",VLOOKUP(C46,'Capacidad Financiera'!$B$12:$X$3580,2,0))","v":"LUIS MORENO RUBIO"},1,{"$f":"IF(OR(D46=\"\",E46=\"\"),\"\",IF(AND(E46>0,E46<=CapTecnica1),Puntajes!$H$4,IF(AND(E46>CapTecnica1,E46<=CapTecnica2),Puntajes!$H$5,IF(E46>CapTecnica2,Puntajes!$H$6,0))))","v":20}]
[null,null,{"$f":"+'Capacidad Financiera'!B50","v":""},{"$f":"IF(ISERROR(VLOOKUP(C47,'Capacidad Financiera'!$B$12:$X$62720,2,0)),\"\",VLOOKUP(C47,'Capacidad Financiera'!$B$12:$X$3580,2,0))","v":0},null,{"$f":"IF(OR(D47=\"\",E47=\"\"),\"\",IF(AND(E47>0,E47<=CapTecnica1),Puntajes!$H$4,IF(AND(E47>CapTecnica1,E47<=CapTecnica2),Puntajes!$H$5,IF(E47>CapTecnica2,Puntajes!$H$6,0))))","v":""}]
[null,null,{"$f":"+'Capacidad Financiera'!B51","v":""},{"$f":"IF(ISERROR(VLOOKUP(C48,'Capacidad Financiera'!$B$12:$X$62720,2,0)),\"\",VLOOKUP(C48,'Capacidad Financiera'!$B$12:$X$3580,2,0))","v":0},null,{"$f":"IF(OR(D48=\"\",E48=\"\"),\"\",IF(AND(E48>0,E48<=CapTecnica1),Puntajes!$H$4,IF(AND(E48>CapTecnica1,E48<=CapTecnica2),Puntajes!$H$5,IF(E48>CapTecnica2,Puntajes!$H$6,0))))","v":""}]
[null,null,{"$f":"+'Capacidad Financiera'!B52","v":""},{"$f":"IF(ISERROR(VLOOKUP(C49,'Capacidad Financiera'!$B$12:$X$62720,2,0)),\"\",VLOOKUP(C49,'Capacidad Financiera'!$B$12:$X$3580,2,0))","v":0},null,{"$f":"IF(OR(D49=\"\",E49=\"\"),\"\",IF(AND(E49>0,E49<=CapTecnica1),Puntajes!$H$4,IF(AND(E49>CapTecnica1,E49<=CapTecnica2),Puntajes!$H$5,IF(E49>CapTecnica2,Puntajes!$H$6,0))))","v":""}]
[null,null,{"$f":"+'Capacidad Financiera'!B53","v":""},{"$f":"IF(ISERROR(VLOOKUP(C50,'Capacidad Financiera'!$B$12:$X$62720,2,0)),\"\",VLOOKUP(C50,'Capacidad Financiera'!$B$12:$X$3580,2,0))","v":0},null,{"$f":"IF(OR(D50=\"\",E50=\"\"),\"\",IF(AND(E50>0,E50<=CapTecnica1),Puntajes!$H$4,IF(AND(E50>CapTecnica1,E50<=CapTecnica2),Puntajes!$H$5,IF(E50>CapTecnica2,Puntajes!$H$6,0))))","v":""}]
[null,null,{"$f":"+'Capacidad Financiera'!B54","v":""},{"$f":"IF(ISERROR(VLOOKUP(C51,'Capacidad Financiera'!$B$12:$X$62720,2,0)),\"\",VLOOKUP(C51,'Capacidad Financiera'!$B$12:$X$3580,2,0))","v":0},null,{"$f":"IF(OR(D51=\"\",E51=\"\"),\"\",IF(AND(E51>0,E51<=CapTecnica1),Puntajes!$H$4,IF(AND(E51>CapTecnica1,E51<=CapTecnica2),Puntajes!$H$5,IF(E51>CapTecnica2,Puntajes!$H$6,0))))","v":""}]
[null,null,{"$f":"+'Capacidad Financiera'!B55","v":""},{"$f":"IF(ISERROR(VLOOKUP(C52,'Capacidad Financiera'!$B$12:$X$62720,2,0)),\"\",VLOOKUP(C52,'Capacidad Financiera'!$B$12:$X$3580,2,0))","v":0},null,{"$f":"IF(OR(D52=\"\",E52=\"\"),\"\",IF(AND(E52>0,E52<=CapTecnica1),Puntajes!$H$4,IF(AND(E52>CapTecnica1,E52<=CapTecnica2),Puntajes!$H$5,IF(E52>CapTecnica2,Puntajes!$H$6,0))))","v":""}]
[null,null,5,{"$f":"IF(ISERROR(VLOOKUP(C53,'Capacidad Financiera'!$B$12:$X$62720,2,0)),\"\",VLOOKUP(C53,'Capacidad Financiera'!$B$12:$X$3580,2,0))","v":"CONSORCIO VIAS COLOMBIA"},null,{"$f":"IF(C54=\"\",IF(E53=\"\",\"\",IF(AND(E53>0,E53<=CapTecnica1),Puntajes!$H$4,IF(AND(E53>CapTecnica1,E53<=CapTecnica2),Puntajes!$H$5,IF(E53>CapTecnica2,Puntajes!$H$6,0)))),\"\")","v":""}]
[null,null,{"$f":"+'Capacidad Financiera'!B57","v":5.0999999999999996},{"$f":"IF(ISERROR(VLOOKUP(C54,'Capacidad Financiera'!$B$12:$X$62720,2,0)),\"\",VLOOKUP(C54,'Capacidad Financiera'!$B$12:$X$3580,2,0))","v":"JV INGENIERIA Y CONSTRUCCIONES S.A.S."},9,{"$f":"IF(OR(D54=\"\",E54=\"\"),\"\",IF(AND(E54>0,E54<=CapTecnica1),Puntajes!$H$4,IF(AND(E54>CapTecnica1,E54<=CapTecnica2),Puntajes!$H$5,IF(E54>CapTecnica2,Puntajes!$H$6,0))))","v":30}]
[null,null,{"$f":"+'Capacidad Financiera'!B58","v":5.1999999999999993},{"$f":"IF(ISERROR(VLOOKUP(C55,'Capacidad Financiera'!$B$12:$X$62720,2,0)),\"\",VLOOKUP(C55,'Capacidad Financiera'!$B$12:$X$3580,2,0))","v":"EXCAVACIONES JOBEPA SL SUCURSAL COLOMBIA"},2,{"$f":"IF(OR(D55=\"\",E55=\"\"),\"\",IF(AND(E55>0,E55<=CapTecnica1),Puntajes!$H$4,IF(AND(E55>CapTecnica1,E55<=CapTecnica2),Puntajes!$H$5,IF(E55>CapTecnica2,Puntajes!$H$6,0))))","v":20}]
[null,null,{"$f":"+'Capacidad Financiera'!B59","v":5.2999999999999989},{"$f":"IF(ISERROR(VLOOKUP(C56,'Capacidad Financiera'!$B$12:$X$62720,2,0)),\"\",VLOOKUP(C56,'Capacidad Financiera'!$B$12:$X$3580,2,0))","v":"VIALOBRA SL SUCURSAL COLOMBIA"},3,{"$f":"IF(OR(D56=\"\",E56=\"\"),\"\",IF(AND(E56>0,E56<=CapTecnica1),Puntajes!$H$4,IF(AND(E56>CapTecnica1,E56<=CapTecnica2),Puntajes!$H$5,IF(E56>CapTecnica2,Puntajes!$H$6,0))))","v":20}]
[null,null,{"$f":"+'Capacidad Financiera'!B60","v":""},{"$f":"IF(ISERROR(VLOOKUP(C57,'Capacidad Financiera'!$B$12:$X$62720,2,0)),\"\",VLOOKUP(C57,'Capacidad Financiera'!$B$12:$X$3580,2,0))","v":0},null,{"$f":"IF(OR(D57=\"\",E57=\"\"),\"\",IF(AND(E57>0,E57<=CapTecnica1),Puntajes!$H$4,IF(AND(E57>CapTecnica1,E57<=CapTecnica2),Puntajes!$H$5,IF(E57>CapTecnica2,Puntajes!$H$6,0))))","v":""}]
[null,null,{"$f":"+'Capacidad Financiera'!B61","v":""},{"$f":"IF(ISERROR(VLOOKUP(C58,'Capacidad Financiera'!$B$12:$X$62720,2,0)),\"\",VLOOKUP(C58,'Capacidad Financiera'!$B$12:$X$3580,2,0))","v":0},null,{"$f":"IF(OR(D58=\"\",E58=\"\"),\"\",IF(AND(E58>0,E58<=CapTecnica1),Puntajes!$H$4,IF(AND(E58>CapTecnica1,E58<=CapTecnica2),Puntajes!$H$5,IF(E58>CapTecnica2,Puntajes!$H$6,0))))","v":""}]
[null,null,{"$f":"+'Capacidad Financiera'!B62","v":""},{"$f":"IF(ISERROR(VLOOKUP(C59,'Capacidad Financiera'!$B$12:$X$62720,2,0)),\"\",VLOOKUP(C59,'Capacidad Financiera'!$B$12:$X$3580,2,0))","v":0},null,{"$f":"IF(OR(D59=\"\",E59=\"\"),\"\",IF(AND(E59>0,E59<=CapTecnica1),Puntajes!$H$4,IF(AND(E59>CapTecnica1,E59<=CapTecnica2),Puntajes!$H$5,IF(E59>CapTecnica2,Puntajes!$H$6,0))))","v":""}]
[null,null,{"$f":"+'Capacidad Financiera'!B63","v":""},{"$f":"IF(ISERROR(VLOOKUP(C60,'Capacidad Financiera'!$B$12:$X$62720,2,0)),\"\",VLOOKUP(C60,'Capacidad Financiera'!$B$12:$X$3580,2,0))","v":0},null,{"$f":"IF(OR(D60=\"\",E60=\"\"),\"\",IF(AND(E60>0,E60<=CapTecnica1),Puntajes!$H$4,IF(AND(E60>CapTecnica1,E60<=CapTecnica2),Puntajes!$H$5,IF(E60>CapTecnica2,Puntajes!$H$6,0))))","v":""}]
[null,null,{"$f":"+'Capacidad Financiera'!B64","v":""},{"$f":"IF(ISERROR(VLOOKUP(C61,'Capacidad Financiera'!$B$12:$X$62720,2,0)),\"\",VLOOKUP(C61,'Capacidad Financiera'!$B$12:$X$3580,2,0))","v":0},null,{"$f":"IF(OR(D61=\"\",E61=\"\"),\"\",IF(AND(E61>0,E61<=CapTecnica1),Puntajes!$H$4,IF(AND(E61>CapTecnica1,E61<=CapTecnica2),Puntajes!$H$5,IF(E61>CapTecnica2,Puntajes!$H$6,0))))","v":""}]
[null,null,{"$f":"+'Capacidad Financiera'!B65","v":""},{"$f":"IF(ISERROR(VLOOKUP(C62,'Capacidad Financiera'!$B$12:$X$62720,2,0)),\"\",VLOOKUP(C62,'Capacidad Financiera'!$B$12:$X$3580,2,0))","v":0},null,{"$f":"IF(OR(D62=\"\",E62=\"\"),\"\",IF(AND(E62>0,E62<=CapTecnica1),Puntajes!$H$4,IF(AND(E62>CapTecnica1,E62<=CapTecnica2),Puntajes!$H$5,IF(E62>CapTecnica2,Puntajes!$H$6,0))))","v":""}]
[null,null,{"$f":"+'Capacidad Financiera'!B66","v":""},{"$f":"IF(ISERROR(VLOOKUP(C63,'Capacidad Financiera'!$B$12:$X$62720,2,0)),\"\",VLOOKUP(C63,'Capacidad Financiera'!$B$12:$X$3580,2,0))","v":0},null,{"$f":"IF(OR(D63=\"\",E63=\"\"),\"\",IF(AND(E63>0,E63<=CapTecnica1),Puntajes!$H$4,IF(AND(E63>CapTecnica1,E63<=CapTecnica2),Puntajes!$H$5,IF(E63>CapTecnica2,Puntajes!$H$6,0))))","v":""}]
[null,null,6,{"$f":"IF(ISERROR(VLOOKUP(C64,'Capacidad Financiera'!$B$12:$X$62720,2,0)),\"\",VLOOKUP(C64,'Capacidad Financiera'!$B$12:$X$3580,2,0))","v":"CONSORCIO SALITRE BRICEÑO"},null,{"$f":"IF(C65=\"\",IF(E64=\"\",\"\",IF(AND(E64>0,E64<=CapTecnica1),Puntajes!$H$4,IF(AND(E64>CapTecnica1,E64<=CapTecnica2),Puntajes!$H$5,IF(E64>CapTecnica2,Puntajes!$H$6,0)))),\"\")","v":""}]
[null,null,{"$f":"+'Capacidad Financiera'!B68","v":6.1},{"$f":"IF(ISERROR(VLOOKUP(C65,'Capacidad Financiera'!$B$12:$X$62720,2,0)),\"\",VLOOKUP(C65,'Capacidad Financiera'!$B$12:$X$3580,2,0))","v":"GEOCING S.A.S."},12,{"$f":"IF(OR(D65=\"\",E65=\"\"),\"\",IF(AND(E65>0,E65<=CapTecnica1),Puntajes!$H$4,IF(AND(E65>CapTecnica1,E65<=CapTecnica2),Puntajes!$H$5,IF(E65>CapTecnica2,Puntajes!$H$6,0))))","v":40}]
[null,null,{"$f":"+'Capacidad Financiera'!B69","v":6.1999999999999993},{"$f":"IF(ISERROR(VLOOKUP(C66,'Capacidad Financiera'!$B$12:$X$62720,2,0)),\"\",VLOOKUP(C66,'Capacidad Financiera'!$B$12:$X$3580,2,0))","v":"URBAMED INFRAESTRUCTURAS SLU"},1,{"$f":"IF(OR(D66=\"\",E66=\"\"),\"\",IF(AND(E66>0,E66<=CapTecnica1),Puntajes!$H$4,IF(AND(E66>CapTecnica1,E66<=CapTecnica2),Puntajes!$H$5,IF(E66>CapTecnica2,Puntajes!$H$6,0))))","v":20}]
[null,null,{"$f":"+'Capacidad Financiera'!B70","v":""},{"$f":"IF(ISERROR(VLOOKUP(C67,'Capacidad Financiera'!$B$12:$X$62720,2,0)),\"\",VLOOKUP(C67,'Capacidad Financiera'!$B$12:$X$3580,2,0))","v":0},null,{"$f":"IF(OR(D67=\"\",E67=\"\"),\"\",IF(AND(E67>0,E67<=CapTecnica1),Puntajes!$H$4,IF(AND(E67>CapTecnica1,E67<=CapTecnica2),Puntajes!$H$5,IF(E67>CapTecnica2,Puntajes!$H$6,0))))","v":""}]
[null,null,{"$f":"+'Capacidad Financiera'!B71","v":""},{"$f":"IF(ISERROR(VLOOKUP(C68,'Capacidad Financiera'!$B$12:$X$62720,2,0)),\"\",VLOOKUP(C68,'Capacidad Financiera'!$B$12:$X$3580,2,0))","v":0},null,{"$f":"IF(OR(D68=\"\",E68=\"\"),\"\",IF(AND(E68>0,E68<=CapTecnica1),Puntajes!$H$4,IF(AND(E68>CapTecnica1,E68<=CapTecnica2),Puntajes!$H$5,IF(E68>CapTecnica2,Puntajes!$H$6,0))))","v":""}]
[null,null,{"$f":"+'Capacidad Financiera'!B72","v":""},{"$f":"IF(ISERROR(VLOOKUP(C69,'Capacidad Financiera'!$B$12:$X$62720,2,0)),\"\",VLOOKUP(C69,'Capacidad Financiera'!$B$12:$X$3580,2,0))","v":0},null,{"$f":"IF(OR(D69=\"\",E69=\"\"),\"\",IF(AND(E69>0,E69<=CapTecnica1),Puntajes!$H$4,IF(AND(E69>CapTecnica1,E69<=CapTecnica2),Puntajes!$H$5,IF(E69>CapTecnica2,Puntajes!$H$6,0))))","v":""}]
[null,null,{"$f":"+'Capacidad Financiera'!B73","v":""},{"$f":"IF(ISERROR(VLOOKUP(C70,'Capacidad Financiera'!$B$12:$X$62720,2,0)),\"\",VLOOKUP(C70,'Capacidad Financiera'!$B$12:$X$3580,2,0))","v":0},null,{"$f":"IF(OR(D70=\"\",E70=\"\"),\"\",IF(AND(E70>0,E70<=CapTecnica1),Puntajes!$H$4,IF(AND(E70>CapTecnica1,E70<=CapTecnica2),Puntajes!$H$5,IF(E70>CapTecnica2,Puntajes!$H$6,0))))","v":""}]
[null,null,{"$f":"+'Capacidad Financiera'!B74","v":""},{"$f":"IF(ISERROR(VLOOKUP(C71,'Capacidad Financiera'!$B$12:$X$62720,2,0)),\"\",VLOOKUP(C71,'Capacidad Financiera'!$B$12:$X$3580,2,0))","v":0},null,{"$f":"IF(OR(D71=\"\",E71=\"\"),\"\",IF(AND(E71>0,E71<=CapTecnica1),Puntajes!$H$4,IF(AND(E71>CapTecnica1,E71<=CapTecnica2),Puntajes!$H$5,IF(E71>CapTecnica2,Puntajes!$H$6,0))))","v":""}]
[null,null,{"$f":"+'Capacidad Financiera'!B75","v":""},{"$f":"IF(ISERROR(VLOOKUP(C72,'Capacidad Financiera'!$B$12:$X$62720,2,0)),\"\",VLOOKUP(C72,'Capacidad Financiera'!$B$12:$X$3580,2,0))","v":0},null,{"$f":"IF(OR(D72=\"\",E72=\"\"),\"\",IF(AND(E72>0,E72<=CapTecnica1),Puntajes!$H$4,IF(AND(E72>CapTecnica1,E72<=CapTecnica2),Puntajes!$H$5,IF(E72>CapTecnica2,Puntajes!$H$6,0))))","v":""}]
[null,null,{"$f":"+'Capacidad Financiera'!B76","v":""},{"$f":"IF(ISERROR(VLOOKUP(C73,'Capacidad Financiera'!$B$12:$X$62720,2,0)),\"\",VLOOKUP(C73,'Capacidad Financiera'!$B$12:$X$3580,2,0))","v":0},null,{"$f":"IF(OR(D73=\"\",E73=\"\"),\"\",IF(AND(E73>0,E73<=CapTecnica1),Puntajes!$H$4,IF(AND(E73>CapTecnica1,E73<=CapTecnica2),Puntajes!$H$5,IF(E73>CapTecnica2,Puntajes!$H$6,0))))","v":""}]
[null,null,{"$f":"+'Capacidad Financiera'!B77","v":""},{"$f":"IF(ISERROR(VLOOKUP(C74,'Capacidad Financiera'!$B$12:$X$62720,2,0)),\"\",VLOOKUP(C74,'Capacidad Financiera'!$B$12:$X$3580,2,0))","v":0},null,{"$f":"IF(OR(D74=\"\",E74=\"\"),\"\",IF(AND(E74>0,E74<=CapTecnica1),Puntajes!$H$4,IF(AND(E74>CapTecnica1,E74<=CapTecnica2),Puntajes!$H$5,IF(E74>CapTecnica2,Puntajes!$H$6,0))))","v":""}]
[null,null,7,{"$f":"IF(ISERROR(VLOOKUP(C75,'Capacidad Financiera'!$B$12:$X$62720,2,0)),\"\",VLOOKUP(C75,'Capacidad Financiera'!$B$12:$X$3580,2,0))","v":"CONSORCIO AC - AINCOL"},null,{"$f":"IF(C76=\"\",IF(E75=\"\",\"\",IF(AND(E75>0,E75<=CapTecnica1),Puntajes!$H$4,IF(AND(E75>CapTecnica1,E75<=CapTecnica2),Puntajes!$H$5,IF(E75>CapTecnica2,Puntajes!$H$6,0)))),\"\")","v":""}]
[null,null,{"$f":"+'Capacidad Financiera'!B79","v":7.1},{"$f":"IF(ISERROR(VLOOKUP(C76,'Capacidad Financiera'!$B$12:$X$62720,2,0)),\"\",VLOOKUP(C76,'Capacidad Financiera'!$B$12:$X$3580,2,0))","v":"AINCOL S.A.S."},4,{"$f":"IF(OR(D76=\"\",E76=\"\"),\"\",IF(AND(E76>0,E76<=CapTecnica1),Puntajes!$H$4,IF(AND(E76>CapTecnica1,E76<=CapTecnica2),Puntajes!$H$5,IF(E76>CapTecnica2,Puntajes!$H$6,0))))","v":20}]
[null,null,{"$f":"+'Capacidad Financiera'!B80","v":7.1999999999999993},{"$f":"IF(ISERROR(VLOOKUP(C77,'Capacidad Financiera'!$B$12:$X$62720,2,0)),\"\",VLOOKUP(C77,'Capacidad Financiera'!$B$12:$X$3580,2,0))","v":"AC INGENIERIA Y CONSTRUCCIONES S.A.S."},7,{"$f":"IF(OR(D77=\"\",E77=\"\"),\"\",IF(AND(E77>0,E77<=CapTecnica1),Puntajes!$H$4,IF(AND(E77>CapTecnica1,E77<=CapTecnica2),Puntajes!$H$5,IF(E77>CapTecnica2,Puntajes!$H$6,0))))","v":30}]
[null,null,{"$f":"+'Capacidad Financiera'!B81","v":""},{"$f":"IF(ISERROR(VLOOKUP(C78,'Capacidad Financiera'!$B$12:$X$62720,2,0)),\"\",VLOOKUP(C78,'Capacidad Financiera'!$B$12:$X$3580,2,0))","v":0},null,{"$f":"IF(OR(D78=\"\",E78=\"\"),\"\",IF(AND(E78>0,E78<=CapTecnica1),Puntajes!$H$4,IF(AND(E78>CapTecnica1,E78<=CapTecnica2),Puntajes!$H$5,IF(E78>CapTecnica2,Puntajes!$H$6,0))))","v":""}]
[null,null,{"$f":"+'Capacidad Financiera'!B82","v":""},{"$f":"IF(ISERROR(VLOOKUP(C79,'Capacidad Financiera'!$B$12:$X$62720,2,0)),\"\",VLOOKUP(C79,'Capacidad Financiera'!$B$12:$X$3580,2,0))","v":0},null,{"$f":"IF(OR(D79=\"\",E79=\"\"),\"\",IF(AND(E79>0,E79<=CapTecnica1),Puntajes!$H$4,IF(AND(E79>CapTecnica1,E79<=CapTecnica2),Puntajes!$H$5,IF(E79>CapTecnica2,Puntajes!$H$6,0))))","v":""}]
[null,null,{"$f":"+'Capacidad Financiera'!B83","v":""},{"$f":"IF(ISERROR(VLOOKUP(C80,'Capacidad Financiera'!$B$12:$X$62720,2,0)),\"\",VLOOKUP(C80,'Capacidad Financiera'!$B$12:$X$3580,2,0))","v":0},null,{"$f":"IF(OR(D80=\"\",E80=\"\"),\"\",IF(AND(E80>0,E80<=CapTecnica1),Puntajes!$H$4,IF(AND(E80>CapTecnica1,E80<=CapTecnica2),Puntajes!$H$5,IF(E80>CapTecnica2,Puntajes!$H$6,0))))","v":""}]
[null,null,{"$f":"+'Capacidad Financiera'!B84","v":""},{"$f":"IF(ISERROR(VLOOKUP(C81,'Capacidad Financiera'!$B$12:$X$62720,2,0)),\"\",VLOOKUP(C81,'Capacidad Financiera'!$B$12:$X$3580,2,0))","v":0},null,{"$f":"IF(OR(D81=\"\",E81=\"\"),\"\",IF(AND(E81>0,E81<=CapTecnica1),Puntajes!$H$4,IF(AND(E81>CapTecnica1,E81<=CapTecnica2),Puntajes!$H$5,IF(E81>CapTecnica2,Puntajes!$H$6,0))))","v":""}]
[null,null,{"$f":"+'Capacidad Financiera'!B85","v":""},{"$f":"IF(ISERROR(VLOOKUP(C82,'Capacidad Financiera'!$B$12:$X$62720,2,0)),\"\",VLOOKUP(C82,'Capacidad Financiera'!$B$12:$X$3580,2,0))","v":0},null,{"$f":"IF(OR(D82=\"\",E82=\"\"),\"\",IF(AND(E82>0,E82<=CapTecnica1),Puntajes!$H$4,IF(AND(E82>CapTecnica1,E82<=CapTecnica2),Puntajes!$H$5,IF(E82>CapTecnica2,Puntajes!$H$6,0))))","v":""}]
[null,null,{"$f":"+'Capacidad Financiera'!B86","v":""},{"$f":"IF(ISERROR(VLOOKUP(C83,'Capacidad Financiera'!$B$12:$X$62720,2,0)),\"\",VLOOKUP(C83,'Capacidad Financiera'!$B$12:$X$3580,2,0))","v":0},null,{"$f":"IF(OR(D83=\"\",E83=\"\"),\"\",IF(AND(E83>0,E83<=CapTecnica1),Puntajes!$H$4,IF(AND(E83>CapTecnica1,E83<=CapTecnica2),Puntajes!$H$5,IF(E83>CapTecnica2,Puntajes!$H$6,0))))","v":""}]
[null,null,{"$f":"+'Capacidad Financiera'!B87","v":""},{"$f":"IF(ISERROR(VLOOKUP(C84,'Capacidad Financiera'!$B$12:$X$62720,2,0)),\"\",VLOOKUP(C84,'Capacidad Financiera'!$B$12:$X$3580,2,0))","v":0},null,{"$f":"IF(OR(D84=\"\",E84=\"\"),\"\",IF(AND(E84>0,E84<=CapTecnica1),Puntajes!$H$4,IF(AND(E84>CapTecnica1,E84<=CapTecnica2),Puntajes!$H$5,IF(E84>CapTecnica2,Puntajes!$H$6,0))))","v":""}]
[null,null,{"$f":"+'Capacidad Financiera'!B88","v":""},{"$f":"IF(ISERROR(VLOOKUP(C85,'Capacidad Financiera'!$B$12:$X$62720,2,0)),\"\",VLOOKUP(C85,'Capacidad Financiera'!$B$12:$X$3580,2,0))","v":0},null,{"$f":"IF(OR(D85=\"\",E85=\"\"),\"\",IF(AND(E85>0,E85<=CapTecnica1),Puntajes!$H$4,IF(AND(E85>CapTecnica1,E85<=CapTecnica2),Puntajes!$H$5,IF(E85>CapTecnica2,Puntajes!$H$6,0))))","v":""}]
[null,null,8,{"$f":"IF(ISERROR(VLOOKUP(C86,'Capacidad Financiera'!$B$12:$X$62720,2,0)),\"\",VLOOKUP(C86,'Capacidad Financiera'!$B$12:$X$3580,2,0))","v":"CONSULTORIA Y CONSTRUCCION LTDA."},null,{"$f":"IF(C87=\"\",IF(E86=\"\",\"\",IF(AND(E86>0,E86<=CapTecnica1),Puntajes!$H$4,IF(AND(E86>CapTecnica1,E86<=CapTecnica2),Puntajes!$H$5,IF(E86>CapTecnica2,Puntajes!$H$6,0)))),\"\")","v":""}]
[null,null,{"$f":"+'Capacidad Financiera'!B90","v":8.1},{"$f":"IF(ISERROR(VLOOKUP(C87,'Capacidad Financiera'!$B$12:$X$62720,2,0)),\"\",VLOOKUP(C87,'Capacidad Financiera'!$B$12:$X$3580,2,0))","v":"CONSULTORIA Y CONSTRUCCION LTDA."},12,{"$f":"IF(OR(D87=\"\",E87=\"\"),\"\",IF(AND(E87>0,E87<=CapTecnica1),Puntajes!$H$4,IF(AND(E87>CapTecnica1,E87<=CapTecnica2),Puntajes!$H$5,IF(E87>CapTecnica2,Puntajes!$H$6,0))))","v":40}]
[null,null,{"$f":"+'Capacidad Financiera'!B91","v":""},{"$f":"IF(ISERROR(VLOOKUP(C88,'Capacidad Financiera'!$B$12:$X$62720,2,0)),\"\",VLOOKUP(C88,'Capacidad Financiera'!$B$12:$X$3580,2,0))","v":0},null,{"$f":"IF(OR(D88=\"\",E88=\"\"),\"\",IF(AND(E88>0,E88<=CapTecnica1),Puntajes!$H$4,IF(AND(E88>CapTecnica1,E88<=CapTecnica2),Puntajes!$H$5,IF(E88>CapTecnica2,Puntajes!$H$6,0))))","v":""}]
[null,null,{"$f":"+'Capacidad Financiera'!B92","v":""},{"$f":"IF(ISERROR(VLOOKUP(C89,'Capacidad Financiera'!$B$12:$X$62720,2,0)),\"\",VLOOKUP(C89,'Capacidad Financiera'!$B$12:$X$3580,2,0))","v":0},null,{"$f":"IF(OR(D89=\"\",E89=\"\"),\"\",IF(AND(E89>0,E89<=CapTecnica1),Puntajes!$H$4,IF(AND(E89>CapTecnica1,E89<=CapTecnica2),Puntajes!$H$5,IF(E89>CapTecnica2,Puntajes!$H$6,0))))","v":""}]
[null,null,{"$f":"+'Capacidad Financiera'!B93","v":""},{"$f":"IF(ISERROR(VLOOKUP(C90,'Capacidad Financiera'!$B$12:$X$62720,2,0)),\"\",VLOOKUP(C90,'Capacidad Financiera'!$B$12:$X$3580,2,0))","v":0},null,{"$f":"IF(OR(D90=\"\",E90=\"\"),\"\",IF(AND(E90>0,E90<=CapTecnica1),Puntajes!$H$4,IF(AND(E90>CapTecnica1,E90<=CapTecnica2),Puntajes!$H$5,IF(E90>CapTecnica2,Puntajes!$H$6,0))))","v":""}]
[null,null,{"$f":"+'Capacidad Financiera'!B94","v":""},{"$f":"IF(ISERROR(VLOOKUP(C91,'Capacidad Financiera'!$B$12:$X$62720,2,0)),\"\",VLOOKUP(C91,'Capacidad Financiera'!$B$12:$X$3580,2,0))","v":0},null,{"$f":"IF(OR(D91=\"\",E91=\"\"),\"\",IF(AND(E91>0,E91<=CapTecnica1),Puntajes!$H$4,IF(AND(E91>CapTecnica1,E91<=CapTecnica2),Puntajes!$H$5,IF(E91>CapTecnica2,Puntajes!$H$6,0))))","v":""}]
[null,null,{"$f":"+'Capacidad Financiera'!B95","v":""},{"$f":"IF(ISERROR(VLOOKUP(C92,'Capacidad Financiera'!$B$12:$X$62720,2,0)),\"\",VLOOKUP(C92,'Capacidad Financiera'!$B$12:$X$3580,2,0))","v":0},null,{"$f":"IF(OR(D92=\"\",E92=\"\"),\"\",IF(AND(E92>0,E92<=CapTecnica1),Puntajes!$H$4,IF(AND(E92>CapTecnica1,E92<=CapTecnica2),Puntajes!$H$5,IF(E92>CapTecnica2,Puntajes!$H$6,0))))","v":""}]
[null,null,{"$f":"+'Capacidad Financiera'!B96","v":""},{"$f":"IF(ISERROR(VLOOKUP(C93,'Capacidad Financiera'!$B$12:$X$62720,2,0)),\"\",VLOOKUP(C93,'Capacidad Financiera'!$B$12:$X$3580,2,0))","v":0},null,{"$f":"IF(OR(D93=\"\",E93=\"\"),\"\",IF(AND(E93>0,E93<=CapTecnica1),Puntajes!$H$4,IF(AND(E93>CapTecnica1,E93<=CapTecnica2),Puntajes!$H$5,IF(E93>CapTecnica2,Puntajes!$H$6,0))))","v":""}]
[null,null,{"$f":"+'Capacidad Financiera'!B97","v":""},{"$f":"IF(ISERROR(VLOOKUP(C94,'Capacidad Financiera'!$B$12:$X$62720,2,0)),\"\",VLOOKUP(C94,'Capacidad Financiera'!$B$12:$X$3580,2,0))","v":0},null,{"$f":"IF(OR(D94=\"\",E94=\"\"),\"\",IF(AND(E94>0,E94<=CapTecnica1),Puntajes!$H$4,IF(AND(E94>CapTecnica1,E94<=CapTecnica2),Puntajes!$H$5,IF(E94>CapTecnica2,Puntajes!$H$6,0))))","v":""}]
[null,null,{"$f":"+'Capacidad Financiera'!B98","v":""},{"$f":"IF(ISERROR(VLOOKUP(C95,'Capacidad Financiera'!$B$12:$X$62720,2,0)),\"\",VLOOKUP(C95,'Capacidad Financiera'!$B$12:$X$3580,2,0))","v":0},null,{"$f":"IF(OR(D95=\"\",E95=\"\"),\"\",IF(AND(E95>0,E95<=CapTecnica1),Puntajes!$H$4,IF(AND(E95>CapTecnica1,E95<=CapTecnica2),Puntajes!$H$5,IF(E95>CapTecnica2,Puntajes!$H$6,0))))","v":""}]
[null,null,{"$f":"+'Capacidad Financiera'!B99","v":""},{"$f":"IF(ISERROR(VLOOKUP(C96,'Capacidad Financiera'!$B$12:$X$62720,2,0)),\"\",VLOOKUP(C96,'Capacidad Financiera'!$B$12:$X$3580,2,0))","v":0},null,{"$f":"IF(OR(D96=\"\",E96=\"\"),\"\",IF(AND(E96>0,E96<=CapTecnica1),Puntajes!$H$4,IF(AND(E96>CapTecnica1,E96<=CapTecnica2),Puntajes!$H$5,IF(E96>CapTecnica2,Puntajes!$H$6,0))))","v":""}]
[null,null,9,{"$f":"IF(ISERROR(VLOOKUP(C97,'Capacidad Financiera'!$B$12:$X$62720,2,0)),\"\",VLOOKUP(C97,'Capacidad Financiera'!$B$12:$X$3580,2,0))","v":"CONSORCIO INFRAESTRUCUTRA VIAL"},null,{"$f":"IF(C98=\"\",IF(E97=\"\",\"\",IF(AND(E97>0,E97<=CapTecnica1),Puntajes!$H$4,IF(AND(E97>CapTecnica1,E97<=CapTecnica2),Puntajes!$H$5,IF(E97>CapTecnica2,Puntajes!$H$6,0)))),\"\")","v":""}]
[null,null,{"$f":"+'Capacidad Financiera'!B101","v":9.1},{"$f":"IF(ISERROR(VLOOKUP(C98,'Capacidad Financiera'!$B$12:$X$62720,2,0)),\"\",VLOOKUP(C98,'Capacidad Financiera'!$B$12:$X$3580,2,0))","v":"VNF S.A.S"},1,{"$f":"IF(OR(D98=\"\",E98=\"\"),\"\",IF(AND(E98>0,E98<=CapTecnica1),Puntajes!$H$4,IF(AND(E98>CapTecnica1,E98<=CapTecnica2),Puntajes!$H$5,IF(E98>CapTecnica2,Puntajes!$H$6,0))))","v":20}]
[null,null,{"$f":"+'Capacidad Financiera'!B102","v":9.1999999999999993},{"$f":"IF(ISERROR(VLOOKUP(C99,'Capacidad Financiera'!$B$12:$X$62720,2,0)),\"\",VLOOKUP(C99,'Capacidad Financiera'!$B$12:$X$3580,2,0))","v":"HORACIO VEGA CARDENAS"},1,{"$f":"IF(OR(D99=\"\",E99=\"\"),\"\",IF(AND(E99>0,E99<=CapTecnica1),Puntajes!$H$4,IF(AND(E99>CapTecnica1,E99<=CapTecnica2),Puntajes!$H$5,IF(E99>CapTecnica2,Puntajes!$H$6,0))))","v":20}]
[null,null,{"$f":"+'Capacidad Financiera'!B103","v":""},{"$f":"IF(ISERROR(VLOOKUP(C100,'Capacidad Financiera'!$B$12:$X$62720,2,0)),\"\",VLOOKUP(C100,'Capacidad Financiera'!$B$12:$X$3580,2,0))","v":0},null,{"$f":"IF(OR(D100=\"\",E100=\"\"),\"\",IF(AND(E100>0,E100<=CapTecnica1),Puntajes!$H$4,IF(AND(E100>CapTecnica1,E100<=CapTecnica2),Puntajes!$H$5,IF(E100>CapTecnica2,Puntajes!$H$6,0))))","v":""}]
[null,null,{"$f":"+'Capacidad Financiera'!B104","v":""},{"$f":"IF(ISERROR(VLOOKUP(C101,'Capacidad Financiera'!$B$12:$X$62720,2,0)),\"\",VLOOKUP(C101,'Capacidad Financiera'!$B$12:$X$3580,2,0))","v":0},null,{"$f":"IF(OR(D101=\"\",E101=\"\"),\"\",IF(AND(E101>0,E101<=CapTecnica1),Puntajes!$H$4,IF(AND(E101>CapTecnica1,E101<=CapTecnica2),Puntajes!$H$5,IF(E101>CapTecnica2,Puntajes!$H$6,0))))","v":""}]
[null,null,{"$f":"+'Capacidad Financiera'!B105","v":""},{"$f":"IF(ISERROR(VLOOKUP(C102,'Capacidad Financiera'!$B$12:$X$62720,2,0)),\"\",VLOOKUP(C102,'Capacidad Financiera'!$B$12:$X$3580,2,0))","v":0},null,{"$f":"IF(OR(D102=\"\",E102=\"\"),\"\",IF(AND(E102>0,E102<=CapTecnica1),Puntajes!$H$4,IF(AND(E102>CapTecnica1,E102<=CapTecnica2),Puntajes!$H$5,IF(E102>CapTecnica2,Puntajes!$H$6,0))))","v":""}]
[null,null,{"$f":"+'Capacidad Financiera'!B106","v":""},{"$f":"IF(ISERROR(VLOOKUP(C103,'Capacidad Financiera'!$B$12:$X$62720,2,0)),\"\",VLOOKUP(C103,'Capacidad Financiera'!$B$12:$X$3580,2,0))","v":0},null,{"$f":"IF(OR(D103=\"\",E103=\"\"),\"\",IF(AND(E103>0,E103<=CapTecnica1),Puntajes!$H$4,IF(AND(E103>CapTecnica1,E103<=CapTecnica2),Puntajes!$H$5,IF(E103>CapTecnica2,Puntajes!$H$6,0))))","v":""}]
[null,null,{"$f":"+'Capacidad Financiera'!B107","v":""},{"$f":"IF(ISERROR(VLOOKUP(C104,'Capacidad Financiera'!$B$12:$X$62720,2,0)),\"\",VLOOKUP(C104,'Capacidad Financiera'!$B$12:$X$3580,2,0))","v":0},null,{"$f":"IF(OR(D104=\"\",E104=\"\"),\"\",IF(AND(E104>0,E104<=CapTecnica1),Puntajes!$H$4,IF(AND(E104>CapTecnica1,E104<=CapTecnica2),Puntajes!$H$5,IF(E104>CapTecnica2,Puntajes!$H$6,0))))","v":""}]
[null,null,{"$f":"+'Capacidad Financiera'!B108","v":""},{"$f":"IF(ISERROR(VLOOKUP(C105,'Capacidad Financiera'!$B$12:$X$62720,2,0)),\"\",VLOOKUP(C105,'Capacidad Financiera'!$B$12:$X$3580,2,0))","v":0},null,{"$f":"IF(OR(D105=\"\",E105=\"\"),\"\",IF(AND(E105>0,E105<=CapTecnica1),Puntajes!$H$4,IF(AND(E105>CapTecnica1,E105<=CapTecnica2),Puntajes!$H$5,IF(E105>CapTecnica2,Puntajes!$H$6,0))))","v":""}]
[null,null,{"$f":"+'Capacidad Financiera'!B109","v":""},{"$f":"IF(ISERROR(VLOOKUP(C106,'Capacidad Financiera'!$B$12:$X$62720,2,0)),\"\",VLOOKUP(C106,'Capacidad Financiera'!$B$12:$X$3580,2,0))","v":0},null,{"$f":"IF(OR(D106=\"\",E106=\"\"),\"\",IF(AND(E106>0,E106<=CapTecnica1),Puntajes!$H$4,IF(AND(E106>CapTecnica1,E106<=CapTecnica2),Puntajes!$H$5,IF(E106>CapTecnica2,Puntajes!$H$6,0))))","v":""}]
[null,null,{"$f":"+'Capacidad Financiera'!B110","v":""},{"$f":"IF(ISERROR(VLOOKUP(C107,'Capacidad Financiera'!$B$12:$X$62720,2,0)),\"\",VLOOKUP(C107,'Capacidad Financiera'!$B$12:$X$3580,2,0))","v":0},null,{"$f":"IF(OR(D107=\"\",E107=\"\"),\"\",IF(AND(E107>0,E107<=CapTecnica1),Puntajes!$H$4,IF(AND(E107>CapTecnica1,E107<=CapTecnica2),Puntajes!$H$5,IF(E107>CapTecnica2,Puntajes!$H$6,0))))","v":""}]
[null,null,10,{"$f":"IF(ISERROR(VLOOKUP(C108,'Capacidad Financiera'!$B$12:$X$62720,2,0)),\"\",VLOOKUP(C108,'Capacidad Financiera'!$B$12:$X$3580,2,0))","v":"CONSORCIO AM 034"},null,{"$f":"IF(C109=\"\",IF(E108=\"\",\"\",IF(AND(E108>0,E108<=CapTecnica1),Puntajes!$H$4,IF(AND(E108>CapTecnica1,E108<=CapTecnica2),Puntajes!$H$5,IF(E108>CapTecnica2,Puntajes!$H$6,0)))),\"\")","v":""}]
[null,null,{"$f":"+'Capacidad Financiera'!B112","v":10.1},{"$f":"IF(ISERROR(VLOOKUP(C109,'Capacidad Financiera'!$B$12:$X$62720,2,0)),\"\",VLOOKUP(C109,'Capacidad Financiera'!$B$12:$X$3580,2,0))","v":"ROGELIO ARDILA TORRES"},12,{"$f":"IF(OR(D109=\"\",E109=\"\"),\"\",IF(AND(E109>0,E109<=CapTecnica1),Puntajes!$H$4,IF(AND(E109>CapTecnica1,E109<=CapTecnica2),Puntajes!$H$5,IF(E109>CapTecnica2,Puntajes!$H$6,0))))","v":40}]
[null,null,{"$f":"+'Capacidad Financiera'!B113","v":10.199999999999999},{"$f":"IF(ISERROR(VLOOKUP(C110,'Capacidad Financiera'!$B$12:$X$62720,2,0)),\"\",VLOOKUP(C110,'Capacidad Financiera'!$B$12:$X$3580,2,0))","v":"PAVIMENTACIONES MORALES SL"},3,{"$f":"IF(OR(D110=\"\",E110=\"\"),\"\",IF(AND(E110>0,E110<=CapTecnica1),Puntajes!$H$4,IF(AND(E110>CapTecnica1,E110<=CapTecnica2),Puntajes!$H$5,IF(E110>CapTecnica2,Puntajes!$H$6,0))))","v":20}]
[null,null,{"$f":"+'Capacidad Financiera'!B114","v":""},{"$f":"IF(ISERROR(VLOOKUP(C111,'Capacidad Financiera'!$B$12:$X$62720,2,0)),\"\",VLOOKUP(C111,'Capacidad Financiera'!$B$12:$X$3580,2,0))","v":0},null,{"$f":"IF(OR(D111=\"\",E111=\"\"),\"\",IF(AND(E111>0,E111<=CapTecnica1),Puntajes!$H$4,IF(AND(E111>CapTecnica1,E111<=CapTecnica2),Puntajes!$H$5,IF(E111>CapTecnica2,Puntajes!$H$6,0))))","v":""}]
[null,null,{"$f":"+'Capacidad Financiera'!B115","v":""},{"$f":"IF(ISERROR(VLOOKUP(C112,'Capacidad Financiera'!$B$12:$X$62720,2,0)),\"\",VLOOKUP(C112,'Capacidad Financiera'!$B$12:$X$3580,2,0))","v":0},null,{"$f":"IF(OR(D112=\"\",E112=\"\"),\"\",IF(AND(E112>0,E112<=CapTecnica1),Puntajes!$H$4,IF(AND(E112>CapTecnica1,E112<=CapTecnica2),Puntajes!$H$5,IF(E112>CapTecnica2,Puntajes!$H$6,0))))","v":""}]
[null,null,{"$f":"+'Capacidad Financiera'!B116","v":""},{"$f":"IF(ISERROR(VLOOKUP(C113,'Capacidad Financiera'!$B$12:$X$62720,2,0)),\"\",VLOOKUP(C113,'Capacidad Financiera'!$B$12:$X$3580,2,0))","v":0},null,{"$f":"IF(OR(D113=\"\",E113=\"\"),\"\",IF(AND(E113>0,E113<=CapTecnica1),Puntajes!$H$4,IF(AND(E113>CapTecnica1,E113<=CapTecnica2),Puntajes!$H$5,IF(E113>CapTecnica2,Puntajes!$H$6,0))))","v":""}]
[null,null,{"$f":"+'Capacidad Financiera'!B117","v":""},{"$f":"IF(ISERROR(VLOOKUP(C114,'Capacidad Financiera'!$B$12:$X$62720,2,0)),\"\",VLOOKUP(C114,'Capacidad Financiera'!$B$12:$X$3580,2,0))","v":0},null,{"$f":"IF(OR(D114=\"\",E114=\"\"),\"\",IF(AND(E114>0,E114<=CapTecnica1),Puntajes!$H$4,IF(AND(E114>CapTecnica1,E114<=CapTecnica2),Puntajes!$H$5,IF(E114>CapTecnica2,Puntajes!$H$6,0))))","v":""}]
[null,null,{"$f":"+'Capacidad Financiera'!B118","v":""},{"$f":"IF(ISERROR(VLOOKUP(C115,'Capacidad Financiera'!$B$12:$X$62720,2,0)),\"\",VLOOKUP(C115,'Capacidad Financiera'!$B$12:$X$3580,2,0))","v":0},null,{"$f":"IF(OR(D115=\"\",E115=\"\"),\"\",IF(AND(E115>0,E115<=CapTecnica1),Puntajes!$H$4,IF(AND(E115>CapTecnica1,E115<=CapTecnica2),Puntajes!$H$5,IF(E115>CapTecnica2,Puntajes!$H$6,0))))","v":""}]
[null,null,{"$f":"+'Capacidad Financiera'!B119","v":""},{"$f":"IF(ISERROR(VLOOKUP(C116,'Capacidad Financiera'!$B$12:$X$62720,2,0)),\"\",VLOOKUP(C116,'Capacidad Financiera'!$B$12:$X$3580,2,0))","v":0},null,{"$f":"IF(OR(D116=\"\",E116=\"\"),\"\",IF(AND(E116>0,E116<=CapTecnica1),Puntajes!$H$4,IF(AND(E116>CapTecnica1,E116<=CapTecnica2),Puntajes!$H$5,IF(E116>CapTecnica2,Puntajes!$H$6,0))))","v":""}]
[null,null,{"$f":"+'Capacidad Financiera'!B120","v":""},{"$f":"IF(ISERROR(VLOOKUP(C117,'Capacidad Financiera'!$B$12:$X$62720,2,0)),\"\",VLOOKUP(C117,'Capacidad Financiera'!$B$12:$X$3580,2,0))","v":0},null,{"$f":"IF(OR(D117=\"\",E117=\"\"),\"\",IF(AND(E117>0,E117<=CapTecnica1),Puntajes!$H$4,IF(AND(E117>CapTecnica1,E117<=CapTecnica2),Puntajes!$H$5,IF(E117>CapTecnica2,Puntajes!$H$6,0))))","v":""}]
[null,null,{"$f":"+'Capacidad Financiera'!B121","v":""},{"$f":"IF(ISERROR(VLOOKUP(C118,'Capacidad Financiera'!$B$12:$X$62720,2,0)),\"\",VLOOKUP(C118,'Capacidad Financiera'!$B$12:$X$3580,2,0))","v":0},null,{"$f":"IF(OR(D118=\"\",E118=\"\"),\"\",IF(AND(E118>0,E118<=CapTecnica1),Puntajes!$H$4,IF(AND(E118>CapTecnica1,E118<=CapTecnica2),Puntajes!$H$5,IF(E118>CapTecnica2,Puntajes!$H$6,0))))","v":""}]
[null,null,11,{"$f":"IF(ISERROR(VLOOKUP(C119,'Capacidad Financiera'!$B$12:$X$62720,2,0)),\"\",VLOOKUP(C119,'Capacidad Financiera'!$B$12:$X$3580,2,0))","v":"CONSORCIO INTERVIAS CUNDINAMARCA 2014"},null,{"$f":"IF(C120=\"\",IF(E119=\"\",\"\",IF(AND(E119>0,E119<=CapTecnica1),Puntajes!$H$4,IF(AND(E119>CapTecnica1,E119<=CapTecnica2),Puntajes!$H$5,IF(E119>CapTecnica2,Puntajes!$H$6,0)))),\"\")","v":""}]
[null,null,{"$f":"+'Capacidad Financiera'!B123","v":11.1},{"$f":"IF(ISERROR(VLOOKUP(C120,'Capacidad Financiera'!$B$12:$X$62720,2,0)),\"\",VLOOKUP(C120,'Capacidad Financiera'!$B$12:$X$3580,2,0))","v":"MBM INGENIERIA S.A.S."},3,{"$f":"IF(OR(D120=\"\",E120=\"\"),\"\",IF(AND(E120>0,E120<=CapTecnica1),Puntajes!$H$4,IF(AND(E120>CapTecnica1,E120<=CapTecnica2),Puntajes!$H$5,IF(E120>CapTecnica2,Puntajes!$H$6,0))))","v":20}]
[null,null,{"$f":"+'Capacidad Financiera'!B124","v":11.2},{"$f":"IF(ISERROR(VLOOKUP(C121,'Capacidad Financiera'!$B$12:$X$62720,2,0)),\"\",VLOOKUP(C121,'Capacidad Financiera'!$B$12:$X$3580,2,0))","v":"GUEVARA BAQUERO CIA LTDA."},4,{"$f":"IF(OR(D121=\"\",E121=\"\"),\"\",IF(AND(E121>0,E121<=CapTecnica1),Puntajes!$H$4,IF(AND(E121>CapTecnica1,E121<=CapTecnica2),Puntajes!$H$5,IF(E121>CapTecnica2,Puntajes!$H$6,0))))","v":20}]
[null,null,{"$f":"+'Capacidad Financiera'!B125","v":11.299999999999999},{"$f":"IF(ISERROR(VLOOKUP(C122,'Capacidad Financiera'!$B$12:$X$62720,2,0)),\"\",VLOOKUP(C122,'Capacidad Financiera'!$B$12:$X$3580,2,0))","v":"VIGA INGENIERIA S.A.S."},3,{"$f":"IF(OR(D122=\"\",E122=\"\"),\"\",IF(AND(E122>0,E122<=CapTecnica1),Puntajes!$H$4,IF(AND(E122>CapTecnica1,E122<=CapTecnica2),Puntajes!$H$5,IF(E122>CapTecnica2,Puntajes!$H$6,0))))","v":20}]
[null,null,{"$f":"+'Capacidad Financiera'!B126","v":""},{"$f":"IF(ISERROR(VLOOKUP(C123,'Capacidad Financiera'!$B$12:$X$62720,2,0)),\"\",VLOOKUP(C123,'Capacidad Financiera'!$B$12:$X$3580,2,0))","v":0},null,{"$f":"IF(OR(D123=\"\",E123=\"\"),\"\",IF(AND(E123>0,E123<=CapTecnica1),Puntajes!$H$4,IF(AND(E123>CapTecnica1,E123<=CapTecnica2),Puntajes!$H$5,IF(E123>CapTecnica2,Puntajes!$H$6,0))))","v":""}]
[null,null,{"$f":"+'Capacidad Financiera'!B127","v":""},{"$f":"IF(ISERROR(VLOOKUP(C124,'Capacidad Financiera'!$B$12:$X$62720,2,0)),\"\",VLOOKUP(C124,'Capacidad Financiera'!$B$12:$X$3580,2,0))","v":0},null,{"$f":"IF(OR(D124=\"\",E124=\"\"),\"\",IF(AND(E124>0,E124<=CapTecnica1),Puntajes!$H$4,IF(AND(E124>CapTecnica1,E124<=CapTecnica2),Puntajes!$H$5,IF(E124>CapTecnica2,Puntajes!$H$6,0))))","v":""}]
[null,null,{"$f":"+'Capacidad Financiera'!B128","v":""},{"$f":"IF(ISERROR(VLOOKUP(C125,'Capacidad Financiera'!$B$12:$X$62720,2,0)),\"\",VLOOKUP(C125,'Capacidad Financiera'!$B$12:$X$3580,2,0))","v":0},null,{"$f":"IF(OR(D125=\"\",E125=\"\"),\"\",IF(AND(E125>0,E125<=CapTecnica1),Puntajes!$H$4,IF(AND(E125>CapTecnica1,E125<=CapTecnica2),Puntajes!$H$5,IF(E125>CapTecnica2,Puntajes!$H$6,0))))","v":""}]
[null,null,{"$f":"+'Capacidad Financiera'!B129","v":""},{"$f":"IF(ISERROR(VLOOKUP(C126,'Capacidad Financiera'!$B$12:$X$62720,2,0)),\"\",VLOOKUP(C126,'Capacidad Financiera'!$B$12:$X$3580,2,0))","v":0},null,{"$f":"IF(OR(D126=\"\",E126=\"\"),\"\",IF(AND(E126>0,E126<=CapTecnica1),Puntajes!$H$4,IF(AND(E126>CapTecnica1,E126<=CapTecnica2),Puntajes!$H$5,IF(E126>CapTecnica2,Puntajes!$H$6,0))))","v":""}]
[null,null,{"$f":"+'Capacidad Financiera'!B130","v":""},{"$f":"IF(ISERROR(VLOOKUP(C127,'Capacidad Financiera'!$B$12:$X$62720,2,0)),\"\",VLOOKUP(C127,'Capacidad Financiera'!$B$12:$X$3580,2,0))","v":0},null,{"$f":"IF(OR(D127=\"\",E127=\"\"),\"\",IF(AND(E127>0,E127<=CapTecnica1),Puntajes!$H$4,IF(AND(E127>CapTecnica1,E127<=CapTecnica2),Puntajes!$H$5,IF(E127>CapTecnica2,Puntajes!$H$6,0))))","v":""}]
[null,null,{"$f":"+'Capacidad Financiera'!B131","v":""},{"$f":"IF(ISERROR(VLOOKUP(C128,'Capacidad Financiera'!$B$12:$X$62720,2,0)),\"\",VLOOKUP(C128,'Capacidad Financiera'!$B$12:$X$3580,2,0))","v":0},null,{"$f":"IF(OR(D128=\"\",E128=\"\"),\"\",IF(AND(E128>0,E128<=CapTecnica1),Puntajes!$H$4,IF(AND(E128>CapTecnica1,E128<=CapTecnica2),Puntajes!$H$5,IF(E128>CapTecnica2,Puntajes!$H$6,0))))","v":""}]
[null,null,{"$f":"+'Capacidad Financiera'!B132","v":""},{"$f":"IF(ISERROR(VLOOKUP(C129,'Capacidad Financiera'!$B$12:$X$62720,2,0)),\"\",VLOOKUP(C129,'Capacidad Financiera'!$B$12:$X$3580,2,0))","v":0},null,{"$f":"IF(OR(D129=\"\",E129=\"\"),\"\",IF(AND(E129>0,E129<=CapTecnica1),Puntajes!$H$4,IF(AND(E129>CapTecnica1,E129<=CapTecnica2),Puntajes!$H$5,IF(E129>CapTecnica2,Puntajes!$H$6,0))))","v":""}]
[null,null,12,{"$f":"IF(ISERROR(VLOOKUP(C130,'Capacidad Financiera'!$B$12:$X$62720,2,0)),\"\",VLOOKUP(C130,'Capacidad Financiera'!$B$12:$X$3580,2,0))","v":"UNION TEMPORALSANTA MONICA"},null,{"$f":"IF(C131=\"\",IF(E130=\"\",\"\",IF(AND(E130>0,E130<=CapTecnica1),Puntajes!$H$4,IF(AND(E130>CapTecnica1,E130<=CapTecnica2),Puntajes!$H$5,IF(E130>CapTecnica2,Puntajes!$H$6,0)))),\"\")","v":""}]
[null,null,{"$f":"+'Capacidad Financiera'!B134","v":12.1},{"$f":"IF(ISERROR(VLOOKUP(C131,'Capacidad Financiera'!$B$12:$X$62720,2,0)),\"\",VLOOKUP(C131,'Capacidad Financiera'!$B$12:$X$3580,2,0))","v":"EQUIPOS Y CONSTRUCCIONES VAREGO S.A.S."},2,{"$f":"IF(OR(D131=\"\",E131=\"\"),\"\",IF(AND(E131>0,E131<=CapTecnica1),Puntajes!$H$4,IF(AND(E131>CapTecnica1,E131<=CapTecnica2),Puntajes!$H$5,IF(E131>CapTecnica2,Puntajes!$H$6,0))))","v":20}]
[null,null,{"$f":"+'Capacidad Financiera'!B135","v":12.2},{"$f":"IF(ISERROR(VLOOKUP(C132,'Capacidad Financiera'!$B$12:$X$62720,2,0)),\"\",VLOOKUP(C132,'Capacidad Financiera'!$B$12:$X$3580,2,0))","v":"VAREGO S.A.S."},0,{"$f":"IF(OR(D132=\"\",E132=\"\"),\"\",IF(AND(E132>0,E132<=CapTecnica1),Puntajes!$H$4,IF(AND(E132>CapTecnica1,E132<=CapTecnica2),Puntajes!$H$5,IF(E132>CapTecnica2,Puntajes!$H$6,0))))","v":0}]
[null,null,{"$f":"+'Capacidad Financiera'!B136","v":12.299999999999999},{"$f":"IF(ISERROR(VLOOKUP(C133,'Capacidad Financiera'!$B$12:$X$62720,2,0)),\"\",VLOOKUP(C133,'Capacidad Financiera'!$B$12:$X$3580,2,0))","v":"INCIVIAS LTDA."},2,{"$f":"IF(OR(D133=\"\",E133=\"\"),\"\",IF(AND(E133>0,E133<=CapTecnica1),Puntajes!$H$4,IF(AND(E133>CapTecnica1,E133<=CapTecnica2),Puntajes!$H$5,IF(E133>CapTecnica2,Puntajes!$H$6,0))))","v":20}]
[null,null,{"$f":"+'Capacidad Financiera'!B137","v":""},{"$f":"IF(ISERROR(VLOOKUP(C134,'Capacidad Financiera'!$B$12:$X$62720,2,0)),\"\",VLOOKUP(C134,'Capacidad Financiera'!$B$12:$X$3580,2,0))","v":0},null,{"$f":"IF(OR(D134=\"\",E134=\"\"),\"\",IF(AND(E134>0,E134<=CapTecnica1),Puntajes!$H$4,IF(AND(E134>CapTecnica1,E134<=CapTecnica2),Puntajes!$H$5,IF(E134>CapTecnica2,Puntajes!$H$6,0))))","v":""}]
[null,null,{"$f":"+'Capacidad Financiera'!B138","v":""},{"$f":"IF(ISERROR(VLOOKUP(C135,'Capacidad Financiera'!$B$12:$X$62720,2,0)),\"\",VLOOKUP(C135,'Capacidad Financiera'!$B$12:$X$3580,2,0))","v":0},null,{"$f":"IF(OR(D135=\"\",E135=\"\"),\"\",IF(AND(E135>0,E135<=CapTecnica1),Puntajes!$H$4,IF(AND(E135>CapTecnica1,E135<=CapTecnica2),Puntajes!$H$5,IF(E135>CapTecnica2,Puntajes!$H$6,0))))","v":""}]
[null,null,{"$f":"+'Capacidad Financiera'!B139","v":""},{"$f":"IF(ISERROR(VLOOKUP(C136,'Capacidad Financiera'!$B$12:$X$62720,2,0)),\"\",VLOOKUP(C136,'Capacidad Financiera'!$B$12:$X$3580,2,0))","v":0},null,{"$f":"IF(OR(D136=\"\",E136=\"\"),\"\",IF(AND(E136>0,E136<=CapTecnica1),Puntajes!$H$4,IF(AND(E136>CapTecnica1,E136<=CapTecnica2),Puntajes!$H$5,IF(E136>CapTecnica2,Puntajes!$H$6,0))))","v":""}]
[null,null,{"$f":"+'Capacidad Financiera'!B140","v":""},{"$f":"IF(ISERROR(VLOOKUP(C137,'Capacidad Financiera'!$B$12:$X$62720,2,0)),\"\",VLOOKUP(C137,'Capacidad Financiera'!$B$12:$X$3580,2,0))","v":0},null,{"$f":"IF(OR(D137=\"\",E137=\"\"),\"\",IF(AND(E137>0,E137<=CapTecnica1),Puntajes!$H$4,IF(AND(E137>CapTecnica1,E137<=CapTecnica2),Puntajes!$H$5,IF(E137>CapTecnica2,Puntajes!$H$6,0))))","v":""}]
[null,null,{"$f":"+'Capacidad Financiera'!B141","v":""},{"$f":"IF(ISERROR(VLOOKUP(C138,'Capacidad Financiera'!$B$12:$X$62720,2,0)),\"\",VLOOKUP(C138,'Capacidad Financiera'!$B$12:$X$3580,2,0))","v":0},null,{"$f":"IF(OR(D138=\"\",E138=\"\"),\"\",IF(AND(E138>0,E138<=CapTecnica1),Puntajes!$H$4,IF(AND(E138>CapTecnica1,E138<=CapTecnica2),Puntajes!$H$5,IF(E138>CapTecnica2,Puntajes!$H$6,0))))","v":""}]
[null,null,{"$f":"+'Capacidad Financiera'!B142","v":""},{"$f":"IF(ISERROR(VLOOKUP(C139,'Capacidad Financiera'!$B$12:$X$62720,2,0)),\"\",VLOOKUP(C139,'Capacidad Financiera'!$B$12:$X$3580,2,0))","v":0},null,{"$f":"IF(OR(D139=\"\",E139=\"\"),\"\",IF(AND(E139>0,E139<=CapTecnica1),Puntajes!$H$4,IF(AND(E139>CapTecnica1,E139<=CapTecnica2),Puntajes!$H$5,IF(E139>CapTecnica2,Puntajes!$H$6,0))))","v":""}]
[null,null,{"$f":"+'Capacidad Financiera'!B143","v":""},{"$f":"IF(ISERROR(VLOOKUP(C140,'Capacidad Financiera'!$B$12:$X$62720,2,0)),\"\",VLOOKUP(C140,'Capacidad Financiera'!$B$12:$X$3580,2,0))","v":0},null,{"$f":"IF(OR(D140=\"\",E140=\"\"),\"\",IF(AND(E140>0,E140<=CapTecnica1),Puntajes!$H$4,IF(AND(E140>CapTecnica1,E140<=CapTecnica2),Puntajes!$H$5,IF(E140>CapTecnica2,Puntajes!$H$6,0))))","v":""}]
[null,null,13,{"$f":"IF(ISERROR(VLOOKUP(C141,'Capacidad Financiera'!$B$12:$X$62720,2,0)),\"\",VLOOKUP(C141,'Capacidad Financiera'!$B$12:$X$3580,2,0))","v":"CONSORCIO HD"},null,{"$f":"IF(C142=\"\",IF(E141=\"\",\"\",IF(AND(E141>0,E141<=CapTecnica1),Puntajes!$H$4,IF(AND(E141>CapTecnica1,E141<=CapTecnica2),Puntajes!$H$5,IF(E141>CapTecnica2,Puntajes!$H$6,0)))),\"\")","v":""}]
[null,null,{"$f":"+'Capacidad Financiera'!B145","v":13.1},{"$f":"IF(ISERROR(VLOOKUP(C142,'Capacidad Financiera'!$B$12:$X$62720,2,0)),\"\",VLOOKUP(C142,'Capacidad Financiera'!$B$12:$X$3580,2,0))","v":"OLMEDA S.A.S"},7,{"$f":"IF(OR(D142=\"\",E142=\"\"),\"\",IF(AND(E142>0,E142<=CapTecnica1),Puntajes!$H$4,IF(AND(E142>CapTecnica1,E142<=CapTecnica2),Puntajes!$H$5,IF(E142>CapTecnica2,Puntajes!$H$6,0))))","v":30}]
[null,null,{"$f":"+'Capacidad Financiera'!B146","v":13.2},{"$f":"IF(ISERROR(VLOOKUP(C143,'Capacidad Financiera'!$B$12:$X$62720,2,0)),\"\",VLOOKUP(C143,'Capacidad Financiera'!$B$12:$X$3580,2,0))","v":"HD CONSTRUCCIONES S.A.S."},1,{"$f":"IF(OR(D143=\"\",E143=\"\"),\"\",IF(AND(E143>0,E143<=CapTecnica1),Puntajes!$H$4,IF(AND(E143>CapTecnica1,E143<=CapTecnica2),Puntajes!$H$5,IF(E143>CapTecnica2,Puntajes!$H$6,0))))","v":20}]
[null,null,{"$f":"+'Capacidad Financiera'!B147","v":13.299999999999999},{"$f":"IF(ISERROR(VLOOKUP(C144,'Capacidad Financiera'!$B$12:$X$62720,2,0)),\"\",VLOOKUP(C144,'Capacidad Financiera'!$B$12:$X$3580,2,0))","v":"HECTOR GIRALDO JARAMILLO"},1,{"$f":"IF(OR(D144=\"\",E144=\"\"),\"\",IF(AND(E144>0,E144<=CapTecnica1),Puntajes!$H$4,IF(AND(E144>CapTecnica1,E144<=CapTecnica2),Puntajes!$H$5,IF(E144>CapTecnica2,Puntajes!$H$6,0))))","v":20}]
[null,null,{"$f":"+'Capacidad Financiera'!B148","v":""},{"$f":"IF(ISERROR(VLOOKUP(C145,'Capacidad Financiera'!$B$12:$X$62720,2,0)),\"\",VLOOKUP(C145,'Capacidad Financiera'!$B$12:$X$3580,2,0))","v":0},null,{"$f":"IF(OR(D145=\"\",E145=\"\"),\"\",IF(AND(E145>0,E145<=CapTecnica1),Puntajes!$H$4,IF(AND(E145>CapTecnica1,E145<=CapTecnica2),Puntajes!$H$5,IF(E145>CapTecnica2,Puntajes!$H$6,0))))","v":""}]
[null,null,{"$f":"+'Capacidad Financiera'!B149","v":""},{"$f":"IF(ISERROR(VLOOKUP(C146,'Capacidad Financiera'!$B$12:$X$62720,2,0)),\"\",VLOOKUP(C146,'Capacidad Financiera'!$B$12:$X$3580,2,0))","v":0},null,{"$f":"IF(OR(D146=\"\",E146=\"\"),\"\",IF(AND(E146>0,E146<=CapTecnica1),Puntajes!$H$4,IF(AND(E146>CapTecnica1,E146<=CapTecnica2),Puntajes!$H$5,IF(E146>CapTecnica2,Puntajes!$H$6,0))))","v":""}]
[null,null,{"$f":"+'Capacidad Financiera'!B150","v":""},{"$f":"IF(ISERROR(VLOOKUP(C147,'Capacidad Financiera'!$B$12:$X$62720,2,0)),\"\",VLOOKUP(C147,'Capacidad Financiera'!$B$12:$X$3580,2,0))","v":0},null,{"$f":"IF(OR(D147=\"\",E147=\"\"),\"\",IF(AND(E147>0,E147<=CapTecnica1),Puntajes!$H$4,IF(AND(E147>CapTecnica1,E147<=CapTecnica2),Puntajes!$H$5,IF(E147>CapTecnica2,Puntajes!$H$6,0))))","v":""}]
[null,null,{"$f":"+'Capacidad Financiera'!B151","v":""},{"$f":"IF(ISERROR(VLOOKUP(C148,'Capacidad Financiera'!$B$12:$X$62720,2,0)),\"\",VLOOKUP(C148,'Capacidad Financiera'!$B$12:$X$3580,2,0))","v":0},null,{"$f":"IF(OR(D148=\"\",E148=\"\"),\"\",IF(AND(E148>0,E148<=CapTecnica1),Puntajes!$H$4,IF(AND(E148>CapTecnica1,E148<=CapTecnica2),Puntajes!$H$5,IF(E148>CapTecnica2,Puntajes!$H$6,0))))","v":""}]
[null,null,{"$f":"+'Capacidad Financiera'!B152","v":""},{"$f":"IF(ISERROR(VLOOKUP(C149,'Capacidad Financiera'!$B$12:$X$62720,2,0)),\"\",VLOOKUP(C149,'Capacidad Financiera'!$B$12:$X$3580,2,0))","v":0},null,{"$f":"IF(OR(D149=\"\",E149=\"\"),\"\",IF(AND(E149>0,E149<=CapTecnica1),Puntajes!$H$4,IF(AND(E149>CapTecnica1,E149<=CapTecnica2),Puntajes!$H$5,IF(E149>CapTecnica2,Puntajes!$H$6,0))))","v":""}]
[null,null,{"$f":"+'Capacidad Financiera'!B153","v":""},{"$f":"IF(ISERROR(VLOOKUP(C150,'Capacidad Financiera'!$B$12:$X$62720,2,0)),\"\",VLOOKUP(C150,'Capacidad Financiera'!$B$12:$X$3580,2,0))","v":0},null,{"$f":"IF(OR(D150=\"\",E150=\"\"),\"\",IF(AND(E150>0,E150<=CapTecnica1),Puntajes!$H$4,IF(AND(E150>CapTecnica1,E150<=CapTecnica2),Puntajes!$H$5,IF(E150>CapTecnica2,Puntajes!$H$6,0))))","v":""}]
[null,null,{"$f":"+'Capacidad Financiera'!B154","v":""},{"$f":"IF(ISERROR(VLOOKUP(C151,'Capacidad Financiera'!$B$12:$X$62720,2,0)),\"\",VLOOKUP(C151,'Capacidad Financiera'!$B$12:$X$3580,2,0))","v":0},null,{"$f":"IF(OR(D151=\"\",E151=\"\"),\"\",IF(AND(E151>0,E151<=CapTecnica1),Puntajes!$H$4,IF(AND(E151>CapTecnica1,E151<=CapTecnica2),Puntajes!$H$5,IF(E151>CapTecnica2,Puntajes!$H$6,0))))","v":""}]
[null,null,14,{"$f":"IF(ISERROR(VLOOKUP(C152,'Capacidad Financiera'!$B$12:$X$62720,2,0)),\"\",VLOOKUP(C152,'Capacidad Financiera'!$B$12:$X$3580,2,0))","v":"CONSORCIO CONXIE 034-14"},null,{"$f":"IF(C153=\"\",IF(E152=\"\",\"\",IF(AND(E152>0,E152<=CapTecnica1),Puntajes!$H$4,IF(AND(E152>CapTecnica1,E152<=CapTecnica2),Puntajes!$H$5,IF(E152>CapTecnica2,Puntajes!$H$6,0)))),\"\")","v":""}]
[null,null,{"$f":"+'Capacidad Financiera'!B156","v":14.1},{"$f":"IF(ISERROR(VLOOKUP(C153,'Capacidad Financiera'!$B$12:$X$62720,2,0)),\"\",VLOOKUP(C153,'Capacidad Financiera'!$B$12:$X$3580,2,0))","v":"CONCREARMADO LTDA."},3,{"$f":"IF(OR(D153=\"\",E153=\"\"),\"\",IF(AND(E153>0,E153<=CapTecnica1),Puntajes!$H$4,IF(AND(E153>CapTecnica1,E153<=CapTecnica2),Puntajes!$H$5,IF(E153>CapTecnica2,Puntajes!$H$6,0))))","v":20}]
[null,null,{"$f":"+'Capacidad Financiera'!B157","v":14.2},{"$f":"IF(ISERROR(VLOOKUP(C154,'Capacidad Financiera'!$B$12:$X$62720,2,0)),\"\",VLOOKUP(C154,'Capacidad Financiera'!$B$12:$X$3580,2,0))","v":"JAIME VARGAS GALINDO"},1,{"$f":"IF(OR(D154=\"\",E154=\"\"),\"\",IF(AND(E154>0,E154<=CapTecnica1),Puntajes!$H$4,IF(AND(E154>CapTecnica1,E154<=CapTecnica2),Puntajes!$H$5,IF(E154>CapTecnica2,Puntajes!$H$6,0))))","v":20}]
[null,null,{"$f":"+'Capacidad Financiera'!B158","v":""},{"$f":"IF(ISERROR(VLOOKUP(C155,'Capacidad Financiera'!$B$12:$X$62720,2,0)),\"\",VLOOKUP(C155,'Capacidad Financiera'!$B$12:$X$3580,2,0))","v":0},null,{"$f":"IF(OR(D155=\"\",E155=\"\"),\"\",IF(AND(E155>0,E155<=CapTecnica1),Puntajes!$H$4,IF(AND(E155>CapTecnica1,E155<=CapTecnica2),Puntajes!$H$5,IF(E155>CapTecnica2,Puntajes!$H$6,0))))","v":""}]
[null,null,{"$f":"+'Capacidad Financiera'!B159","v":""},{"$f":"IF(ISERROR(VLOOKUP(C156,'Capacidad Financiera'!$B$12:$X$62720,2,0)),\"\",VLOOKUP(C156,'Capacidad Financiera'!$B$12:$X$3580,2,0))","v":0},null,{"$f":"IF(OR(D156=\"\",E156=\"\"),\"\",IF(AND(E156>0,E156<=CapTecnica1),Puntajes!$H$4,IF(AND(E156>CapTecnica1,E156<=CapTecnica2),Puntajes!$H$5,IF(E156>CapTecnica2,Puntajes!$H$6,0))))","v":""}]
[null,null,{"$f":"+'Capacidad Financiera'!B160","v":""},{"$f":"IF(ISERROR(VLOOKUP(C157,'Capacidad Financiera'!$B$12:$X$62720,2,0)),\"\",VLOOKUP(C157,'Capacidad Financiera'!$B$12:$X$3580,2,0))","v":0},null,{"$f":"IF(OR(D157=\"\",E157=\"\"),\"\",IF(AND(E157>0,E157<=CapTecnica1),Puntajes!$H$4,IF(AND(E157>CapTecnica1,E157<=CapTecnica2),Puntajes!$H$5,IF(E157>CapTecnica2,Puntajes!$H$6,0))))","v":""}]
[null,null,{"$f":"+'Capacidad Financiera'!B161","v":""},{"$f":"IF(ISERROR(VLOOKUP(C158,'Capacidad Financiera'!$B$12:$X$62720,2,0)),\"\",VLOOKUP(C158,'Capacidad Financiera'!$B$12:$X$3580,2,0))","v":0},null,{"$f":"IF(OR(D158=\"\",E158=\"\"),\"\",IF(AND(E158>0,E158<=CapTecnica1),Puntajes!$H$4,IF(AND(E158>CapTecnica1,E158<=CapTecnica2),Puntajes!$H$5,IF(E158>CapTecnica2,Puntajes!$H$6,0))))","v":""}]
[null,null,{"$f":"+'Capacidad Financiera'!B162","v":""},{"$f":"IF(ISERROR(VLOOKUP(C159,'Capacidad Financiera'!$B$12:$X$62720,2,0)),\"\",VLOOKUP(C159,'Capacidad Financiera'!$B$12:$X$3580,2,0))","v":0},null,{"$f":"IF(OR(D159=\"\",E159=\"\"),\"\",IF(AND(E159>0,E159<=CapTecnica1),Puntajes!$H$4,IF(AND(E159>CapTecnica1,E159<=CapTecnica2),Puntajes!$H$5,IF(E159>CapTecnica2,Puntajes!$H$6,0))))","v":""}]
[null,null,{"$f":"+'Capacidad Financiera'!B163","v":""},{"$f":"IF(ISERROR(VLOOKUP(C160,'Capacidad Financiera'!$B$12:$X$62720,2,0)),\"\",VLOOKUP(C160,'Capacidad Financiera'!$B$12:$X$3580,2,0))","v":0},null,{"$f":"IF(OR(D160=\"\",E160=\"\"),\"\",IF(AND(E160>0,E160<=CapTecnica1),Puntajes!$H$4,IF(AND(E160>CapTecnica1,E160<=CapTecnica2),Puntajes!$H$5,IF(E160>CapTecnica2,Puntajes!$H$6,0))))","v":""}]
[null,null,{"$f":"+'Capacidad Financiera'!B164","v":""},{"$f":"IF(ISERROR(VLOOKUP(C161,'Capacidad Financiera'!$B$12:$X$62720,2,0)),\"\",VLOOKUP(C161,'Capacidad Financiera'!$B$12:$X$3580,2,0))","v":0},null,{"$f":"IF(OR(D161=\"\",E161=\"\"),\"\",IF(AND(E161>0,E161<=CapTecnica1),Puntajes!$H$4,IF(AND(E161>CapTecnica1,E161<=CapTecnica2),Puntajes!$H$5,IF(E161>CapTecnica2,Puntajes!$H$6,0))))","v":""}]
[null,null,{"$f":"+'Capacidad Financiera'!B165","v":""},{"$f":"IF(ISERROR(VLOOKUP(C162,'Capacidad Financiera'!$B$12:$X$62720,2,0)),\"\",VLOOKUP(C162,'Capacidad Financiera'!$B$12:$X$3580,2,0))","v":0},null,{"$f":"IF(OR(D162=\"\",E162=\"\"),\"\",IF(AND(E162>0,E162<=CapTecnica1),Puntajes!$H$4,IF(AND(E162>CapTecnica1,E162<=CapTecnica2),Puntajes!$H$5,IF(E162>CapTecnica2,Puntajes!$H$6,0))))","v":""}]
[null,null,15,{"$f":"IF(ISERROR(VLOOKUP(C163,'Capacidad Financiera'!$B$12:$X$62720,2,0)),\"\",VLOOKUP(C163,'Capacidad Financiera'!$B$12:$X$3580,2,0))","v":"CONSORCIO BP LA CALERA"},null,{"$f":"IF(C164=\"\",IF(E163=\"\",\"\",IF(AND(E163>0,E163<=CapTecnica1),Puntajes!$H$4,IF(AND(E163>CapTecnica1,E163<=CapTecnica2),Puntajes!$H$5,IF(E163>CapTecnica2,Puntajes!$H$6,0)))),\"\")","v":""}]
[null,null,{"$f":"+'Capacidad Financiera'!B167","v":15.1},{"$f":"IF(ISERROR(VLOOKUP(C164,'Capacidad Financiera'!$B$12:$X$62720,2,0)),\"\",VLOOKUP(C164,'Capacidad Financiera'!$B$12:$X$3580,2,0))","v":"PEDRO NAVARRO RODRIGUEZ"},10,{"$f":"IF(OR(D164=\"\",E164=\"\"),\"\",IF(AND(E164>0,E164<=CapTecnica1),Puntajes!$H$4,IF(AND(E164>CapTecnica1,E164<=CapTecnica2),Puntajes!$H$5,IF(E164>CapTecnica2,Puntajes!$H$6,0))))","v":30}]
[null,null,{"$f":"+'Capacidad Financiera'!B168","v":15.2},{"$f":"IF(ISERROR(VLOOKUP(C165,'Capacidad Financiera'!$B$12:$X$62720,2,0)),\"\",VLOOKUP(C165,'Capacidad Financiera'!$B$12:$X$3580,2,0))","v":"PAVIOBRAS S.A.S."},4,{"$f":"IF(OR(D165=\"\",E165=\"\"),\"\",IF(AND(E165>0,E165<=CapTecnica1),Puntajes!$H$4,IF(AND(E165>CapTecnica1,E165<=CapTecnica2),Puntajes!$H$5,IF(E165>CapTecnica2,Puntajes!$H$6,0))))","v":20}]
[null,null,{"$f":"+'Capacidad Financiera'!B169","v":15.299999999999999},{"$f":"IF(ISERROR(VLOOKUP(C166,'Capacidad Financiera'!$B$12:$X$62720,2,0)),\"\",VLOOKUP(C166,'Capacidad Financiera'!$B$12:$X$3580,2,0))","v":"BALLEN B Y CIA S.A.S."},11,{"$f":"IF(OR(D166=\"\",E166=\"\"),\"\",IF(AND(E166>0,E166<=CapTecnica1),Puntajes!$H$4,IF(AND(E166>CapTecnica1,E166<=CapTecnica2),Puntajes!$H$5,IF(E166>CapTecnica2,Puntajes!$H$6,0))))","v":40}]
[null,null,{"$f":"+'Capacidad Financiera'!B170","v":""},{"$f":"IF(ISERROR(VLOOKUP(C167,'Capacidad Financiera'!$B$12:$X$62720,2,0)),\"\",VLOOKUP(C167,'Capacidad Financiera'!$B$12:$X$3580,2,0))","v":0},null,{"$f":"IF(OR(D167=\"\",E167=\"\"),\"\",IF(AND(E167>0,E167<=CapTecnica1),Puntajes!$H$4,IF(AND(E167>CapTecnica1,E167<=CapTecnica2),Puntajes!$H$5,IF(E167>CapTecnica2,Puntajes!$H$6,0))))","v":""}]
[null,null,{"$f":"+'Capacidad Financiera'!B171","v":""},{"$f":"IF(ISERROR(VLOOKUP(C168,'Capacidad Financiera'!$B$12:$X$62720,2,0)),\"\",VLOOKUP(C168,'Capacidad Financiera'!$B$12:$X$3580,2,0))","v":0},null,{"$f":"IF(OR(D168=\"\",E168=\"\"),\"\",IF(AND(E168>0,E168<=CapTecnica1),Puntajes!$H$4,IF(AND(E168>CapTecnica1,E168<=CapTecnica2),Puntajes!$H$5,IF(E168>CapTecnica2,Puntajes!$H$6,0))))","v":""}]
[null,null,{"$f":"+'Capacidad Financiera'!B172","v":""},{"$f":"IF(ISERROR(VLOOKUP(C169,'Capacidad Financiera'!$B$12:$X$62720,2,0)),\"\",VLOOKUP(C169,'Capacidad Financiera'!$B$12:$X$3580,2,0))","v":0},null,{"$f":"IF(OR(D169=\"\",E169=\"\"),\"\",IF(AND(E169>0,E169<=CapTecnica1),Puntajes!$H$4,IF(AND(E169>CapTecnica1,E169<=CapTecnica2),Puntajes!$H$5,IF(E169>CapTecnica2,Puntajes!$H$6,0))))","v":""}]
[null,null,{"$f":"+'Capacidad Financiera'!B173","v":""},{"$f":"IF(ISERROR(VLOOKUP(C170,'Capacidad Financiera'!$B$12:$X$62720,2,0)),\"\",VLOOKUP(C170,'Capacidad Financiera'!$B$12:$X$3580,2,0))","v":0},null,{"$f":"IF(OR(D170=\"\",E170=\"\"),\"\",IF(AND(E170>0,E170<=CapTecnica1),Puntajes!$H$4,IF(AND(E170>CapTecnica1,E170<=CapTecnica2),Puntajes!$H$5,IF(E170>CapTecnica2,Puntajes!$H$6,0))))","v":""}]
[null,null,{"$f":"+'Capacidad Financiera'!B174","v":""},{"$f":"IF(ISERROR(VLOOKUP(C171,'Capacidad Financiera'!$B$12:$X$62720,2,0)),\"\",VLOOKUP(C171,'Capacidad Financiera'!$B$12:$X$3580,2,0))","v":0},null,{"$f":"IF(OR(D171=\"\",E171=\"\"),\"\",IF(AND(E171>0,E171<=CapTecnica1),Puntajes!$H$4,IF(AND(E171>CapTecnica1,E171<=CapTecnica2),Puntajes!$H$5,IF(E171>CapTecnica2,Puntajes!$H$6,0))))","v":""}]
[null,null,{"$f":"+'Capacidad Financiera'!B175","v":""},{"$f":"IF(ISERROR(VLOOKUP(C172,'Capacidad Financiera'!$B$12:$X$62720,2,0)),\"\",VLOOKUP(C172,'Capacidad Financiera'!$B$12:$X$3580,2,0))","v":0},null,{"$f":"IF(OR(D172=\"\",E172=\"\"),\"\",IF(AND(E172>0,E172<=CapTecnica1),Puntajes!$H$4,IF(AND(E172>CapTecnica1,E172<=CapTecnica2),Puntajes!$H$5,IF(E172>CapTecnica2,Puntajes!$H$6,0))))","v":""}]
[null,null,{"$f":"+'Capacidad Financiera'!B176","v":""},{"$f":"IF(ISERROR(VLOOKUP(C173,'Capacidad Financiera'!$B$12:$X$62720,2,0)),\"\",VLOOKUP(C173,'Capacidad Financiera'!$B$12:$X$3580,2,0))","v":0},null,{"$f":"IF(OR(D173=\"\",E173=\"\"),\"\",IF(AND(E173>0,E173<=CapTecnica1),Puntajes!$H$4,IF(AND(E173>CapTecnica1,E173<=CapTecnica2),Puntajes!$H$5,IF(E173>CapTecnica2,Puntajes!$H$6,0))))","v":""}]
[null,null,16,{"$f":"IF(ISERROR(VLOOKUP(C174,'Capacidad Financiera'!$B$12:$X$62720,2,0)),\"\",VLOOKUP(C174,'Capacidad Financiera'!$B$12:$X$3580,2,0))","v":"CONSORCIO SAN PABLO"},null,{"$f":"IF(C175=\"\",IF(E174=\"\",\"\",IF(AND(E174>0,E174<=CapTecnica1),Puntajes!$H$4,IF(AND(E174>CapTecnica1,E174<=CapTecnica2),Puntajes!$H$5,IF(E174>CapTecnica2,Puntajes!$H$6,0)))),\"\")","v":""}]
[null,null,{"$f":"+'Capacidad Financiera'!B178","v":16.100000000000001},{"$f":"IF(ISERROR(VLOOKUP(C175,'Capacidad Financiera'!$B$12:$X$62720,2,0)),\"\",VLOOKUP(C175,'Capacidad Financiera'!$B$12:$X$3580,2,0))","v":"ALCA INGENIERIA S.A.S."},11,{"$f":"IF(OR(D175=\"\",E175=\"\"),\"\",IF(AND(E175>0,E175<=CapTecnica1),Puntajes!$H$4,IF(AND(E175>CapTecnica1,E175<=CapTecnica2),Puntajes!$H$5,IF(E175>CapTecnica2,Puntajes!$H$6,0))))","v":40}]
[null,null,{"$f":"+'Capacidad Financiera'!B179","v":16.200000000000003},{"$f":"IF(ISERROR(VLOOKUP(C176,'Capacidad Financiera'!$B$12:$X$62720,2,0)),\"\",VLOOKUP(C176,'Capacidad Financiera'!$B$12:$X$3580,2,0))","v":"TORRESCAMARA Y CIA DE OBRAS S.A. SUCURSAL COLOMBIA"},11,{"$f":"IF(OR(D176=\"\",E176=\"\"),\"\",IF(AND(E176>0,E176<=CapTecnica1),Puntajes!$H$4,IF(AND(E176>CapTecnica1,E176<=CapTecnica2),Puntajes!$H$5,IF(E176>CapTecnica2,Puntajes!$H$6,0))))","v":40}]
[null,null,{"$f":"+'Capacidad Financiera'!B180","v":""},{"$f":"IF(ISERROR(VLOOKUP(C177,'Capacidad Financiera'!$B$12:$X$62720,2,0)),\"\",VLOOKUP(C177,'Capacidad Financiera'!$B$12:$X$3580,2,0))","v":0},null,{"$f":"IF(OR(D177=\"\",E177=\"\"),\"\",IF(AND(E177>0,E177<=CapTecnica1),Puntajes!$H$4,IF(AND(E177>CapTecnica1,E177<=CapTecnica2),Puntajes!$H$5,IF(E177>CapTecnica2,Puntajes!$H$6,0))))","v":""}]
[null,null,{"$f":"+'Capacidad Financiera'!B181","v":""},{"$f":"IF(ISERROR(VLOOKUP(C178,'Capacidad Financiera'!$B$12:$X$62720,2,0)),\"\",VLOOKUP(C178,'Capacidad Financiera'!$B$12:$X$3580,2,0))","v":0},null,{"$f":"IF(OR(D178=\"\",E178=\"\"),\"\",IF(AND(E178>0,E178<=CapTecnica1),Puntajes!$H$4,IF(AND(E178>CapTecnica1,E178<=CapTecnica2),Puntajes!$H$5,IF(E178>CapTecnica2,Puntajes!$H$6,0))))","v":""}]
[null,null,{"$f":"+'Capacidad Financiera'!B182","v":""},{"$f":"IF(ISERROR(VLOOKUP(C179,'Capacidad Financiera'!$B$12:$X$62720,2,0)),\"\",VLOOKUP(C179,'Capacidad Financiera'!$B$12:$X$3580,2,0))","v":0},null,{"$f":"IF(OR(D179=\"\",E179=\"\"),\"\",IF(AND(E179>0,E179<=CapTecnica1),Puntajes!$H$4,IF(AND(E179>CapTecnica1,E179<=CapTecnica2),Puntajes!$H$5,IF(E179>CapTecnica2,Puntajes!$H$6,0))))","v":""}]
[null,null,{"$f":"+'Capacidad Financiera'!B183","v":""},{"$f":"IF(ISERROR(VLOOKUP(C180,'Capacidad Financiera'!$B$12:$X$62720,2,0)),\"\",VLOOKUP(C180,'Capacidad Financiera'!$B$12:$X$3580,2,0))","v":0},null,{"$f":"IF(OR(D180=\"\",E180=\"\"),\"\",IF(AND(E180>0,E180<=CapTecnica1),Puntajes!$H$4,IF(AND(E180>CapTecnica1,E180<=CapTecnica2),Puntajes!$H$5,IF(E180>CapTecnica2,Puntajes!$H$6,0))))","v":""}]
[null,null,{"$f":"+'Capacidad Financiera'!B184","v":""},{"$f":"IF(ISERROR(VLOOKUP(C181,'Capacidad Financiera'!$B$12:$X$62720,2,0)),\"\",VLOOKUP(C181,'Capacidad Financiera'!$B$12:$X$3580,2,0))","v":0},null,{"$f":"IF(OR(D181=\"\",E181=\"\"),\"\",IF(AND(E181>0,E181<=CapTecnica1),Puntajes!$H$4,IF(AND(E181>CapTecnica1,E181<=CapTecnica2),Puntajes!$H$5,IF(E181>CapTecnica2,Puntajes!$H$6,0))))","v":""}]
[null,null,{"$f":"+'Capacidad Financiera'!B185","v":""},{"$f":"IF(ISERROR(VLOOKUP(C182,'Capacidad Financiera'!$B$12:$X$62720,2,0)),\"\",VLOOKUP(C182,'Capacidad Financiera'!$B$12:$X$3580,2,0))","v":0},null,{"$f":"IF(OR(D182=\"\",E182=\"\"),\"\",IF(AND(E182>0,E182<=CapTecnica1),Puntajes!$H$4,IF(AND(E182>CapTecnica1,E182<=CapTecnica2),Puntajes!$H$5,IF(E182>CapTecnica2,Puntajes!$H$6,0))))","v":""}]
[null,null,{"$f":"+'Capacidad Financiera'!B186","v":""},{"$f":"IF(ISERROR(VLOOKUP(C183,'Capacidad Financiera'!$B$12:$X$62720,2,0)),\"\",VLOOKUP(C183,'Capacidad Financiera'!$B$12:$X$3580,2,0))","v":0},null,{"$f":"IF(OR(D183=\"\",E183=\"\"),\"\",IF(AND(E183>0,E183<=CapTecnica1),Puntajes!$H$4,IF(AND(E183>CapTecnica1,E183<=CapTecnica2),Puntajes!$H$5,IF(E183>CapTecnica2,Puntajes!$H$6,0))))","v":""}]
[null,null,{"$f":"+'Capacidad Financiera'!B187","v":""},{"$f":"IF(ISERROR(VLOOKUP(C184,'Capacidad Financiera'!$B$12:$X$62720,2,0)),\"\",VLOOKUP(C184,'Capacidad Financiera'!$B$12:$X$3580,2,0))","v":0},null,{"$f":"IF(OR(D184=\"\",E184=\"\"),\"\",IF(AND(E184>0,E184<=CapTecnica1),Puntajes!$H$4,IF(AND(E184>CapTecnica1,E184<=CapTecnica2),Puntajes!$H$5,IF(E184>CapTecnica2,Puntajes!$H$6,0))))","v":""}]
[null,null,17,{"$f":"IF(ISERROR(VLOOKUP(C185,'Capacidad Financiera'!$B$12:$X$62720,2,0)),\"\",VLOOKUP(C185,'Capacidad Financiera'!$B$12:$X$3580,2,0))","v":"CONSORCIO LA CALERA CUNDINAMARCA"},null,{"$f":"IF(C186=\"\",IF(E185=\"\",\"\",IF(AND(E185>0,E185<=CapTecnica1),Puntajes!$H$4,IF(AND(E185>CapTecnica1,E185<=CapTecnica2),Puntajes!$H$5,IF(E185>CapTecnica2,Puntajes!$H$6,0)))),\"\")","v":""}]
[null,null,{"$f":"+'Capacidad Financiera'!B189","v":17.100000000000001},{"$f":"IF(ISERROR(VLOOKUP(C186,'Capacidad Financiera'!$B$12:$X$62720,2,0)),\"\",VLOOKUP(C186,'Capacidad Financiera'!$B$12:$X$3580,2,0))","v":"JUAN SILVA RODRIGUEZ"},2,{"$f":"IF(OR(D186=\"\",E186=\"\"),\"\",IF(AND(E186>0,E186<=CapTecnica1),Puntajes!$H$4,IF(AND(E186>CapTecnica1,E186<=CapTecnica2),Puntajes!$H$5,IF(E186>CapTecnica2,Puntajes!$H$6,0))))","v":20}]
[null,null,{"$f":"+'Capacidad Financiera'!B190","v":17.200000000000003},{"$f":"IF(ISERROR(VLOOKUP(C187,'Capacidad Financiera'!$B$12:$X$62720,2,0)),\"\",VLOOKUP(C187,'Capacidad Financiera'!$B$12:$X$3580,2,0))","v":"FERNANDO JIMENEZ ROA"},2,{"$f":"IF(OR(D187=\"\",E187=\"\"),\"\",IF(AND(E187>0,E187<=CapTecnica1),Puntajes!$H$4,IF(AND(E187>CapTecnica1,E187<=CapTecnica2),Puntajes!$H$5,IF(E187>CapTecnica2,Puntajes!$H$6,0))))","v":20}]
[null,null,{"$f":"+'Capacidad Financiera'!B191","v":""},{"$f":"IF(ISERROR(VLOOKUP(C188,'Capacidad Financiera'!$B$12:$X$62720,2,0)),\"\",VLOOKUP(C188,'Capacidad Financiera'!$B$12:$X$3580,2,0))","v":0},null,{"$f":"IF(OR(D188=\"\",E188=\"\"),\"\",IF(AND(E188>0,E188<=CapTecnica1),Puntajes!$H$4,IF(AND(E188>CapTecnica1,E188<=CapTecnica2),Puntajes!$H$5,IF(E188>CapTecnica2,Puntajes!$H$6,0))))","v":""}]
[null,null,{"$f":"+'Capacidad Financiera'!B192","v":""},{"$f":"IF(ISERROR(VLOOKUP(C189,'Capacidad Financiera'!$B$12:$X$62720,2,0)),\"\",VLOOKUP(C189,'Capacidad Financiera'!$B$12:$X$3580,2,0))","v":0},null,{"$f":"IF(OR(D189=\"\",E189=\"\"),\"\",IF(AND(E189>0,E189<=CapTecnica1),Puntajes!$H$4,IF(AND(E189>CapTecnica1,E189<=CapTecnica2),Puntajes!$H$5,IF(E189>CapTecnica2,Puntajes!$H$6,0))))","v":""}]
[null,null,{"$f":"+'Capacidad Financiera'!B193","v":""},{"$f":"IF(ISERROR(VLOOKUP(C190,'Capacidad Financiera'!$B$12:$X$62720,2,0)),\"\",VLOOKUP(C190,'Capacidad Financiera'!$B$12:$X$3580,2,0))","v":0},null,{"$f":"IF(OR(D190=\"\",E190=\"\"),\"\",IF(AND(E190>0,E190<=CapTecnica1),Puntajes!$H$4,IF(AND(E190>CapTecnica1,E190<=CapTecnica2),Puntajes!$H$5,IF(E190>CapTecnica2,Puntajes!$H$6,0))))","v":""}]
[null,null,{"$f":"+'Capacidad Financiera'!B194","v":""},{"$f":"IF(ISERROR(VLOOKUP(C191,'Capacidad Financiera'!$B$12:$X$62720,2,0)),\"\",VLOOKUP(C191,'Capacidad Financiera'!$B$12:$X$3580,2,0))","v":0},null,{"$f":"IF(OR(D191=\"\",E191=\"\"),\"\",IF(AND(E191>0,E191<=CapTecnica1),Puntajes!$H$4,IF(AND(E191>CapTecnica1,E191<=CapTecnica2),Puntajes!$H$5,IF(E191>CapTecnica2,Puntajes!$H$6,0))))","v":""}]
[null,null,{"$f":"+'Capacidad Financiera'!B195","v":""},{"$f":"IF(ISERROR(VLOOKUP(C192,'Capacidad Financiera'!$B$12:$X$62720,2,0)),\"\",VLOOKUP(C192,'Capacidad Financiera'!$B$12:$X$3580,2,0))","v":0},null,{"$f":"IF(OR(D192=\"\",E192=\"\"),\"\",IF(AND(E192>0,E192<=CapTecnica1),Puntajes!$H$4,IF(AND(E192>CapTecnica1,E192<=CapTecnica2),Puntajes!$H$5,IF(E192>CapTecnica2,Puntajes!$H$6,0))))","v":""}]
[null,null,{"$f":"+'Capacidad Financiera'!B196","v":""},{"$f":"IF(ISERROR(VLOOKUP(C193,'Capacidad Financiera'!$B$12:$X$62720,2,0)),\"\",VLOOKUP(C193,'Capacidad Financiera'!$B$12:$X$3580,2,0))","v":0},null,{"$f":"IF(OR(D193=\"\",E193=\"\"),\"\",IF(AND(E193>0,E193<=CapTecnica1),Puntajes!$H$4,IF(AND(E193>CapTecnica1,E193<=CapTecnica2),Puntajes!$H$5,IF(E193>CapTecnica2,Puntajes!$H$6,0))))","v":""}]
[null,null,{"$f":"+'Capacidad Financiera'!B197","v":""},{"$f":"IF(ISERROR(VLOOKUP(C194,'Capacidad Financiera'!$B$12:$X$62720,2,0)),\"\",VLOOKUP(C194,'Capacidad Financiera'!$B$12:$X$3580,2,0))","v":0},null,{"$f":"IF(OR(D194=\"\",E194=\"\"),\"\",IF(AND(E194>0,E194<=CapTecnica1),Puntajes!$H$4,IF(AND(E194>CapTecnica1,E194<=CapTecnica2),Puntajes!$H$5,IF(E194>CapTecnica2,Puntajes!$H$6,0))))","v":""}]
[null,null,{"$f":"+'Capacidad Financiera'!B198","v":""},{"$f":"IF(ISERROR(VLOOKUP(C195,'Capacidad Financiera'!$B$12:$X$62720,2,0)),\"\",VLOOKUP(C195,'Capacidad Financiera'!$B$12:$X$3580,2,0))","v":0},null,{"$f":"IF(OR(D195=\"\",E195=\"\"),\"\",IF(AND(E195>0,E195<=CapTecnica1),Puntajes!$H$4,IF(AND(E195>CapTecnica1,E195<=CapTecnica2),Puntajes!$H$5,IF(E195>CapTecnica2,Puntajes!$H$6,0))))","v":""}]
[null,null,18,{"$f":"IF(ISERROR(VLOOKUP(C196,'Capacidad Financiera'!$B$12:$X$62720,2,0)),\"\",VLOOKUP(C196,'Capacidad Financiera'!$B$12:$X$3580,2,0))","v":"CONSORCIO VIAS HN"},null,{"$f":"IF(C197=\"\",IF(E196=\"\",\"\",IF(AND(E196>0,E196<=CapTecnica1),Puntajes!$H$4,IF(AND(E196>CapTecnica1,E196<=CapTecnica2),Puntajes!$H$5,IF(E196>CapTecnica2,Puntajes!$H$6,0)))),\"\")","v":""}]
[null,null,{"$f":"+'Capacidad Financiera'!B200","v":18.100000000000001},{"$f":"IF(ISERROR(VLOOKUP(C197,'Capacidad Financiera'!$B$12:$X$62720,2,0)),\"\",VLOOKUP(C197,'Capacidad Financiera'!$B$12:$X$3580,2,0))","v":"LUIS FERNANDO HOYOS PEREZ"},1,{"$f":"IF(OR(D197=\"\",E197=\"\"),\"\",IF(AND(E197>0,E197<=CapTecnica1),Puntajes!$H$4,IF(AND(E197>CapTecnica1,E197<=CapTecnica2),Puntajes!$H$5,IF(E197>CapTecnica2,Puntajes!$H$6,0))))","v":20}]
[null,null,{"$f":"+'Capacidad Financiera'!B201","v":18.200000000000003},{"$f":"IF(ISERROR(VLOOKUP(C198,'Capacidad Financiera'!$B$12:$X$62720,2,0)),\"\",VLOOKUP(C198,'Capacidad Financiera'!$B$12:$X$3580,2,0))","v":"VICTOR RAUL NEIRA DELBASTO"},1,{"$f":"IF(OR(D198=\"\",E198=\"\"),\"\",IF(AND(E198>0,E198<=CapTecnica1),Puntajes!$H$4,IF(AND(E198>CapTecnica1,E198<=CapTecnica2),Puntajes!$H$5,IF(E198>CapTecnica2,Puntajes!$H$6,0))))","v":20}]
[null,null,{"$f":"+'Capacidad Financiera'!B202","v":""},{"$f":"IF(ISERROR(VLOOKUP(C199,'Capacidad Financiera'!$B$12:$X$62720,2,0)),\"\",VLOOKUP(C199,'Capacidad Financiera'!$B$12:$X$3580,2,0))","v":0},null,{"$f":"IF(OR(D199=\"\",E199=\"\"),\"\",IF(AND(E199>0,E199<=CapTecnica1),Puntajes!$H$4,IF(AND(E199>CapTecnica1,E199<=CapTecnica2),Puntajes!$H$5,IF(E199>CapTecnica2,Puntajes!$H$6,0))))","v":""}]
[null,null,{"$f":"+'Capacidad Financiera'!B203","v":""},{"$f":"IF(ISERROR(VLOOKUP(C200,'Capacidad Financiera'!$B$12:$X$62720,2,0)),\"\",VLOOKUP(C200,'Capacidad Financiera'!$B$12:$X$3580,2,0))","v":0},null,{"$f":"IF(OR(D200=\"\",E200=\"\"),\"\",IF(AND(E200>0,E200<=CapTecnica1),Puntajes!$H$4,IF(AND(E200>CapTecnica1,E200<=CapTecnica2),Puntajes!$H$5,IF(E200>CapTecnica2,Puntajes!$H$6,0))))","v":""}]
[null,null,{"$f":"+'Capacidad Financiera'!B204","v":""},{"$f":"IF(ISERROR(VLOOKUP(C201,'Capacidad Financiera'!$B$12:$X$62720,2,0)),\"\",VLOOKUP(C201,'Capacidad Financiera'!$B$12:$X$3580,2,0))","v":0},null,{"$f":"IF(OR(D201=\"\",E201=\"\"),\"\",IF(AND(E201>0,E201<=CapTecnica1),Puntajes!$H$4,IF(AND(E201>CapTecnica1,E201<=CapTecnica2),Puntajes!$H$5,IF(E201>CapTecnica2,Puntajes!$H$6,0))))","v":""}]
[null,null,{"$f":"+'Capacidad Financiera'!B205","v":""},{"$f":"IF(ISERROR(VLOOKUP(C202,'Capacidad Financiera'!$B$12:$X$62720,2,0)),\"\",VLOOKUP(C202,'Capacidad Financiera'!$B$12:$X$3580,2,0))","v":0},null,{"$f":"IF(OR(D202=\"\",E202=\"\"),\"\",IF(AND(E202>0,E202<=CapTecnica1),Puntajes!$H$4,IF(AND(E202>CapTecnica1,E202<=CapTecnica2),Puntajes!$H$5,IF(E202>CapTecnica2,Puntajes!$H$6,0))))","v":""}]
[null,null,{"$f":"+'Capacidad Financiera'!B206","v":""},{"$f":"IF(ISERROR(VLOOKUP(C203,'Capacidad Financiera'!$B$12:$X$62720,2,0)),\"\",VLOOKUP(C203,'Capacidad Financiera'!$B$12:$X$3580,2,0))","v":0},null,{"$f":"IF(OR(D203=\"\",E203=\"\"),\"\",IF(AND(E203>0,E203<=CapTecnica1),Puntajes!$H$4,IF(AND(E203>CapTecnica1,E203<=CapTecnica2),Puntajes!$H$5,IF(E203>CapTecnica2,Puntajes!$H$6,0))))","v":""}]
[null,null,{"$f":"+'Capacidad Financiera'!B207","v":""},{"$f":"IF(ISERROR(VLOOKUP(C204,'Capacidad Financiera'!$B$12:$X$62720,2,0)),\"\",VLOOKUP(C204,'Capacidad Financiera'!$B$12:$X$3580,2,0))","v":0},null,{"$f":"IF(OR(D204=\"\",E204=\"\"),\"\",IF(AND(E204>0,E204<=CapTecnica1),Puntajes!$H$4,IF(AND(E204>CapTecnica1,E204<=CapTecnica2),Puntajes!$H$5,IF(E204>CapTecnica2,Puntajes!$H$6,0))))","v":""}]
[null,null,{"$f":"+'Capacidad Financiera'!B208","v":""},{"$f":"IF(ISERROR(VLOOKUP(C205,'Capacidad Financiera'!$B$12:$X$62720,2,0)),\"\",VLOOKUP(C205,'Capacidad Financiera'!$B$12:$X$3580,2,0))","v":0},null,{"$f":"IF(OR(D205=\"\",E205=\"\"),\"\",IF(AND(E205>0,E205<=CapTecnica1),Puntajes!$H$4,IF(AND(E205>CapTecnica1,E205<=CapTecnica2),Puntajes!$H$5,IF(E205>CapTecnica2,Puntajes!$H$6,0))))","v":""}]
[null,null,{"$f":"+'Capacidad Financiera'!B209","v":""},{"$f":"IF(ISERROR(VLOOKUP(C206,'Capacidad Financiera'!$B$12:$X$62720,2,0)),\"\",VLOOKUP(C206,'Capacidad Financiera'!$B$12:$X$3580,2,0))","v":0},null,{"$f":"IF(OR(D206=\"\",E206=\"\"),\"\",IF(AND(E206>0,E206<=CapTecnica1),Puntajes!$H$4,IF(AND(E206>CapTecnica1,E206<=CapTecnica2),Puntajes!$H$5,IF(E206>CapTecnica2,Puntajes!$H$6,0))))","v":""}]
[null,null,19,{"$f":"IF(ISERROR(VLOOKUP(C207,'Capacidad Financiera'!$B$12:$X$62720,2,0)),\"\",VLOOKUP(C207,'Capacidad Financiera'!$B$12:$X$3580,2,0))","v":"EXPLANAN S.A."},null,{"$f":"IF(C208=\"\",IF(E207=\"\",\"\",IF(AND(E207>0,E207<=CapTecnica1),Puntajes!$H$4,IF(AND(E207>CapTecnica1,E207<=CapTecnica2),Puntajes!$H$5,IF(E207>CapTecnica2,Puntajes!$H$6,0)))),\"\")","v":""}]
[null,null,{"$f":"+'Capacidad Financiera'!B211","v":19.100000000000001},{"$f":"IF(ISERROR(VLOOKUP(C208,'Capacidad Financiera'!$B$12:$X$62720,2,0)),\"\",VLOOKUP(C208,'Capacidad Financiera'!$B$12:$X$3580,2,0))","v":"EXPLANAN S.A."},13,{"$f":"IF(OR(D208=\"\",E208=\"\"),\"\",IF(AND(E208>0,E208<=CapTecnica1),Puntajes!$H$4,IF(AND(E208>CapTecnica1,E208<=CapTecnica2),Puntajes!$H$5,IF(E208>CapTecnica2,Puntajes!$H$6,0))))","v":40}]
[null,null,{"$f":"+'Capacidad Financiera'!B212","v":""},{"$f":"IF(ISERROR(VLOOKUP(C209,'Capacidad Financiera'!$B$12:$X$62720,2,0)),\"\",VLOOKUP(C209,'Capacidad Financiera'!$B$12:$X$3580,2,0))","v":0},null,{"$f":"IF(OR(D209=\"\",E209=\"\"),\"\",IF(AND(E209>0,E209<=CapTecnica1),Puntajes!$H$4,IF(AND(E209>CapTecnica1,E209<=CapTecnica2),Puntajes!$H$5,IF(E209>CapTecnica2,Puntajes!$H$6,0))))","v":""}]
[null,null,{"$f":"+'Capacidad Financiera'!B213","v":""},{"$f":"IF(ISERROR(VLOOKUP(C210,'Capacidad Financiera'!$B$12:$X$62720,2,0)),\"\",VLOOKUP(C210,'Capacidad Financiera'!$B$12:$X$3580,2,0))","v":0},null,{"$f":"IF(OR(D210=\"\",E210=\"\"),\"\",IF(AND(E210>0,E210<=CapTecnica1),Puntajes!$H$4,IF(AND(E210>CapTecnica1,E210<=CapTecnica2),Puntajes!$H$5,IF(E210>CapTecnica2,Puntajes!$H$6,0))))","v":""}]
[null,null,{"$f":"+'Capacidad Financiera'!B214","v":""},{"$f":"IF(ISERROR(VLOOKUP(C211,'Capacidad Financiera'!$B$12:$X$62720,2,0)),\"\",VLOOKUP(C211,'Capacidad Financiera'!$B$12:$X$3580,2,0))","v":0},null,{"$f":"IF(OR(D211=\"\",E211=\"\"),\"\",IF(AND(E211>0,E211<=CapTecnica1),Puntajes!$H$4,IF(AND(E211>CapTecnica1,E211<=CapTecnica2),Puntajes!$H$5,IF(E211>CapTecnica2,Puntajes!$H$6,0))))","v":""}]
[null,null,{"$f":"+'Capacidad Financiera'!B215","v":""},{"$f":"IF(ISERROR(VLOOKUP(C212,'Capacidad Financiera'!$B$12:$X$62720,2,0)),\"\",VLOOKUP(C212,'Capacidad Financiera'!$B$12:$X$3580,2,0))","v":0},null,{"$f":"IF(OR(D212=\"\",E212=\"\"),\"\",IF(AND(E212>0,E212<=CapTecnica1),Puntajes!$H$4,IF(AND(E212>CapTecnica1,E212<=CapTecnica2),Puntajes!$H$5,IF(E212>CapTecnica2,Puntajes!$H$6,0))))","v":""}]
[null,null,{"$f":"+'Capacidad Financiera'!B216","v":""},{"$f":"IF(ISERROR(VLOOKUP(C213,'Capacidad Financiera'!$B$12:$X$62720,2,0)),\"\",VLOOKUP(C213,'Capacidad Financiera'!$B$12:$X$3580,2,0))","v":0},null,{"$f":"IF(OR(D213=\"\",E213=\"\"),\"\",IF(AND(E213>0,E213<=CapTecnica1),Puntajes!$H$4,IF(AND(E213>CapTecnica1,E213<=CapTecnica2),Puntajes!$H$5,IF(E213>CapTecnica2,Puntajes!$H$6,0))))","v":""}]
[null,null,{"$f":"+'Capacidad Financiera'!B217","v":""},{"$f":"IF(ISERROR(VLOOKUP(C214,'Capacidad Financiera'!$B$12:$X$62720,2,0)),\"\",VLOOKUP(C214,'Capacidad Financiera'!$B$12:$X$3580,2,0))","v":0},null,{"$f":"IF(OR(D214=\"\",E214=\"\"),\"\",IF(AND(E214>0,E214<=CapTecnica1),Puntajes!$H$4,IF(AND(E214>CapTecnica1,E214<=CapTecnica2),Puntajes!$H$5,IF(E214>CapTecnica2,Puntajes!$H$6,0))))","v":""}]
[null,null,{"$f":"+'Capacidad Financiera'!B218","v":""},{"$f":"IF(ISERROR(VLOOKUP(C215,'Capacidad Financiera'!$B$12:$X$62720,2,0)),\"\",VLOOKUP(C215,'Capacidad Financiera'!$B$12:$X$3580,2,0))","v":0},null,{"$f":"IF(OR(D215=\"\",E215=\"\"),\"\",IF(AND(E215>0,E215<=CapTecnica1),Puntajes!$H$4,IF(AND(E215>CapTecnica1,E215<=CapTecnica2),Puntajes!$H$5,IF(E215>CapTecnica2,Puntajes!$H$6,0))))","v":""}]
[null,null,{"$f":"+'Capacidad Financiera'!B219","v":""},{"$f":"IF(ISERROR(VLOOKUP(C216,'Capacidad Financiera'!$B$12:$X$62720,2,0)),\"\",VLOOKUP(C216,'Capacidad Financiera'!$B$12:$X$3580,2,0))","v":0},null,{"$f":"IF(OR(D216=\"\",E216=\"\"),\"\",IF(AND(E216>0,E216<=CapTecnica1),Puntajes!$H$4,IF(AND(E216>CapTecnica1,E216<=CapTecnica2),Puntajes!$H$5,IF(E216>CapTecnica2,Puntajes!$H$6,0))))","v":""}]
[null,null,{"$f":"+'Capacidad Financiera'!B220","v":""},{"$f":"IF(ISERROR(VLOOKUP(C217,'Capacidad Financiera'!$B$12:$X$62720,2,0)),\"\",VLOOKUP(C217,'Capacidad Financiera'!$B$12:$X$3580,2,0))","v":0},null,{"$f":"IF(OR(D217=\"\",E217=\"\"),\"\",IF(AND(E217>0,E217<=CapTecnica1),Puntajes!$H$4,IF(AND(E217>CapTecnica1,E217<=CapTecnica2),Puntajes!$H$5,IF(E217>CapTecnica2,Puntajes!$H$6,0))))","v":""}]
[null,null,20,{"$f":"IF(ISERROR(VLOOKUP(C218,'Capacidad Financiera'!$B$12:$X$62720,2,0)),\"\",VLOOKUP(C218,'Capacidad Financiera'!$B$12:$X$3580,2,0))","v":"CONSORCIO VIAL LA CALERA"},null,{"$f":"IF(C219=\"\",IF(E218=\"\",\"\",IF(AND(E218>0,E218<=CapTecnica1),Puntajes!$H$4,IF(AND(E218>CapTecnica1,E218<=CapTecnica2),Puntajes!$H$5,IF(E218>CapTecnica2,Puntajes!$H$6,0)))),\"\")","v":""}]
[null,null,{"$f":"+'Capacidad Financiera'!B222","v":20.100000000000001},{"$f":"IF(ISERROR(VLOOKUP(C219,'Capacidad Financiera'!$B$12:$X$62720,2,0)),\"\",VLOOKUP(C219,'Capacidad Financiera'!$B$12:$X$3580,2,0))","v":"ARMANDO VALENCIA VALENCIA"},2,{"$f":"IF(OR(D219=\"\",E219=\"\"),\"\",IF(AND(E219>0,E219<=CapTecnica1),Puntajes!$H$4,IF(AND(E219>CapTecnica1,E219<=CapTecnica2),Puntajes!$H$5,IF(E219>CapTecnica2,Puntajes!$H$6,0))))","v":20}]
[null,null,{"$f":"+'Capacidad Financiera'!B223","v":20.200000000000003},{"$f":"IF(ISERROR(VLOOKUP(C220,'Capacidad Financiera'!$B$12:$X$62720,2,0)),\"\",VLOOKUP(C220,'Capacidad Financiera'!$B$12:$X$3580,2,0))","v":"OLGA VELEZ MESA"},1,{"$f":"IF(OR(D220=\"\",E220=\"\"),\"\",IF(AND(E220>0,E220<=CapTecnica1),Puntajes!$H$4,IF(AND(E220>CapTecnica1,E220<=CapTecnica2),Puntajes!$H$5,IF(E220>CapTecnica2,Puntajes!$H$6,0))))","v":20}]
[null,null,{"$f":"+'Capacidad Financiera'!B224","v":""},{"$f":"IF(ISERROR(VLOOKUP(C221,'Capacidad Financiera'!$B$12:$X$62720,2,0)),\"\",VLOOKUP(C221,'Capacidad Financiera'!$B$12:$X$3580,2,0))","v":0},null,{"$f":"IF(OR(D221=\"\",E221=\"\"),\"\",IF(AND(E221>0,E221<=CapTecnica1),Puntajes!$H$4,IF(AND(E221>CapTecnica1,E221<=CapTecnica2),Puntajes!$H$5,IF(E221>CapTecnica2,Puntajes!$H$6,0))))","v":""}]
[null,null,{"$f":"+'Capacidad Financiera'!B225","v":""},{"$f":"IF(ISERROR(VLOOKUP(C222,'Capacidad Financiera'!$B$12:$X$62720,2,0)),\"\",VLOOKUP(C222,'Capacidad Financiera'!$B$12:$X$3580,2,0))","v":0},null,{"$f":"IF(OR(D222=\"\",E222=\"\"),\"\",IF(AND(E222>0,E222<=CapTecnica1),Puntajes!$H$4,IF(AND(E222>CapTecnica1,E222<=CapTecnica2),Puntajes!$H$5,IF(E222>CapTecnica2,Puntajes!$H$6,0))))","v":""}]
[null,null,{"$f":"+'Capacidad Financiera'!B226","v":""},{"$f":"IF(ISERROR(VLOOKUP(C223,'Capacidad Financiera'!$B$12:$X$62720,2,0)),\"\",VLOOKUP(C223,'Capacidad Financiera'!$B$12:$X$3580,2,0))","v":0},null,{"$f":"IF(OR(D223=\"\",E223=\"\"),\"\",IF(AND(E223>0,E223<=CapTecnica1),Puntajes!$H$4,IF(AND(E223>CapTecnica1,E223<=CapTecnica2),Puntajes!$H$5,IF(E223>CapTecnica2,Puntajes!$H$6,0))))","v":""}]
[null,null,{"$f":"+'Capacidad Financiera'!B227","v":""},{"$f":"IF(ISERROR(VLOOKUP(C224,'Capacidad Financiera'!$B$12:$X$62720,2,0)),\"\",VLOOKUP(C224,'Capacidad Financiera'!$B$12:$X$3580,2,0))","v":0},null,{"$f":"IF(OR(D224=\"\",E224=\"\"),\"\",IF(AND(E224>0,E224<=CapTecnica1),Puntajes!$H$4,IF(AND(E224>CapTecnica1,E224<=CapTecnica2),Puntajes!$H$5,IF(E224>CapTecnica2,Puntajes!$H$6,0))))","v":""}]
[null,null,{"$f":"+'Capacidad Financiera'!B228","v":""},{"$f":"IF(ISERROR(VLOOKUP(C225,'Capacidad Financiera'!$B$12:$X$62720,2,0)),\"\",VLOOKUP(C225,'Capacidad Financiera'!$B$12:$X$3580,2,0))","v":0},null,{"$f":"IF(OR(D225=\"\",E225=\"\"),\"\",IF(AND(E225>0,E225<=CapTecnica1),Puntajes!$H$4,IF(AND(E225>CapTecnica1,E225<=CapTecnica2),Puntajes!$H$5,IF(E225>CapTecnica2,Puntajes!$H$6,0))))","v":""}]
[null,null,{"$f":"+'Capacidad Financiera'!B229","v":""},{"$f":"IF(ISERROR(VLOOKUP(C226,'Capacidad Financiera'!$B$12:$X$62720,2,0)),\"\",VLOOKUP(C226,'Capacidad Financiera'!$B$12:$X$3580,2,0))","v":0},null,{"$f":"IF(OR(D226=\"\",E226=\"\"),\"\",IF(AND(E226>0,E226<=CapTecnica1),Puntajes!$H$4,IF(AND(E226>CapTecnica1,E226<=CapTecnica2),Puntajes!$H$5,IF(E226>CapTecnica2,Puntajes!$H$6,0))))","v":""}]
[null,null,{"$f":"+'Capacidad Financiera'!B230","v":""},{"$f":"IF(ISERROR(VLOOKUP(C227,'Capacidad Financiera'!$B$12:$X$62720,2,0)),\"\",VLOOKUP(C227,'Capacidad Financiera'!$B$12:$X$3580,2,0))","v":0},null,{"$f":"IF(OR(D227=\"\",E227=\"\"),\"\",IF(AND(E227>0,E227<=CapTecnica1),Puntajes!$H$4,IF(AND(E227>CapTecnica1,E227<=CapTecnica2),Puntajes!$H$5,IF(E227>CapTecnica2,Puntajes!$H$6,0))))","v":""}]
[null,null,{"$f":"+'Capacidad Financiera'!B231","v":""},{"$f":"IF(ISERROR(VLOOKUP(C228,'Capacidad Financiera'!$B$12:$X$62720,2,0)),\"\",VLOOKUP(C228,'Capacidad Financiera'!$B$12:$X$3580,2,0))","v":0},null,{"$f":"IF(OR(D228=\"\",E228=\"\"),\"\",IF(AND(E228>0,E228<=CapTecnica1),Puntajes!$H$4,IF(AND(E228>CapTecnica1,E228<=CapTecnica2),Puntajes!$H$5,IF(E228>CapTecnica2,Puntajes!$H$6,0))))","v":""}]
[null,null,21,{"$f":"IF(ISERROR(VLOOKUP(C229,'Capacidad Financiera'!$B$12:$X$62720,2,0)),\"\",VLOOKUP(C229,'Capacidad Financiera'!$B$12:$X$3580,2,0))","v":"CONSORCIO VIAL COLOMBIA 2014"},null,{"$f":"IF(C230=\"\",IF(E229=\"\",\"\",IF(AND(E229>0,E229<=CapTecnica1),Puntajes!$H$4,IF(AND(E229>CapTecnica1,E229<=CapTecnica2),Puntajes!$H$5,IF(E229>CapTecnica2,Puntajes!$H$6,0)))),\"\")","v":""}]
[null,null,{"$f":"+'Capacidad Financiera'!B233","v":21.1},{"$f":"IF(ISERROR(VLOOKUP(C230,'Capacidad Financiera'!$B$12:$X$62720,2,0)),\"\",VLOOKUP(C230,'Capacidad Financiera'!$B$12:$X$3580,2,0))","v":"SARIA S.A.S."},4,{"$f":"IF(OR(D230=\"\",E230=\"\"),\"\",IF(AND(E230>0,E230<=CapTecnica1),Puntajes!$H$4,IF(AND(E230>CapTecnica1,E230<=CapTecnica2),Puntajes!$H$5,IF(E230>CapTecnica2,Puntajes!$H$6,0))))","v":20}]
[null,null,{"$f":"+'Capacidad Financiera'!B234","v":21.200000000000003},{"$f":"IF(ISERROR(VLOOKUP(C231,'Capacidad Financiera'!$B$12:$X$62720,2,0)),\"\",VLOOKUP(C231,'Capacidad Financiera'!$B$12:$X$3580,2,0))","v":"TRAINCO S.A."},7,{"$f":"IF(OR(D231=\"\",E231=\"\"),\"\",IF(AND(E231>0,E231<=CapTecnica1),Puntajes!$H$4,IF(AND(E231>CapTecnica1,E231<=CapTecnica2),Puntajes!$H$5,IF(E231>CapTecnica2,Puntajes!$H$6,0))))","v":30}]
[null,null,{"$f":"+'Capacidad Financiera'!B235","v":""},{"$f":"IF(ISERROR(VLOOKUP(C232,'Capacidad Financiera'!$B$12:$X$62720,2,0)),\"\",VLOOKUP(C232,'Capacidad Financiera'!$B$12:$X$3580,2,0))","v":0},null,{"$f":"IF(OR(D232=\"\",E232=\"\"),\"\",IF(AND(E232>0,E232<=CapTecnica1),Puntajes!$H$4,IF(AND(E232>CapTecnica1,E232<=CapTecnica2),Puntajes!$H$5,IF(E232>CapTecnica2,Puntajes!$H$6,0))))","v":""}]
[null,null,{"$f":"+'Capacidad Financiera'!B236","v":""},{"$f":"IF(ISERROR(VLOOKUP(C233,'Capacidad Financiera'!$B$12:$X$62720,2,0)),\"\",VLOOKUP(C233,'Capacidad Financiera'!$B$12:$X$3580,2,0))","v":0},null,{"$f":"IF(OR(D233=\"\",E233=\"\"),\"\",IF(AND(E233>0,E233<=CapTecnica1),Puntajes!$H$4,IF(AND(E233>CapTecnica1,E233<=CapTecnica2),Puntajes!$H$5,IF(E233>CapTecnica2,Puntajes!$H$6,0))))","v":""}]
[null,null,{"$f":"+'Capacidad Financiera'!B237","v":""},{"$f":"IF(ISERROR(VLOOKUP(C234,'Capacidad Financiera'!$B$12:$X$62720,2,0)),\"\",VLOOKUP(C234,'Capacidad Financiera'!$B$12:$X$3580,2,0))","v":0},null,{"$f":"IF(OR(D234=\"\",E234=\"\"),\"\",IF(AND(E234>0,E234<=CapTecnica1),Puntajes!$H$4,IF(AND(E234>CapTecnica1,E234<=CapTecnica2),Puntajes!$H$5,IF(E234>CapTecnica2,Puntajes!$H$6,0))))","v":""}]
[null,null,{"$f":"+'Capacidad Financiera'!B238","v":""},{"$f":"IF(ISERROR(VLOOKUP(C235,'Capacidad Financiera'!$B$12:$X$62720,2,0)),\"\",VLOOKUP(C235,'Capacidad Financiera'!$B$12:$X$3580,2,0))","v":0},null,{"$f":"IF(OR(D235=\"\",E235=\"\"),\"\",IF(AND(E235>0,E235<=CapTecnica1),Puntajes!$H$4,IF(AND(E235>CapTecnica1,E235<=CapTecnica2),Puntajes!$H$5,IF(E235>CapTecnica2,Puntajes!$H$6,0))))","v":""}]
[null,null,{"$f":"+'Capacidad Financiera'!B239","v":""},{"$f":"IF(ISERROR(VLOOKUP(C236,'Capacidad Financiera'!$B$12:$X$62720,2,0)),\"\",VLOOKUP(C236,'Capacidad Financiera'!$B$12:$X$3580,2,0))","v":0},null,{"$f":"IF(OR(D236=\"\",E236=\"\"),\"\",IF(AND(E236>0,E236<=CapTecnica1),Puntajes!$H$4,IF(AND(E236>CapTecnica1,E236<=CapTecnica2),Puntajes!$H$5,IF(E236>CapTecnica2,Puntajes!$H$6,0))))","v":""}]
[null,null,{"$f":"+'Capacidad Financiera'!B240","v":""},{"$f":"IF(ISERROR(VLOOKUP(C237,'Capacidad Financiera'!$B$12:$X$62720,2,0)),\"\",VLOOKUP(C237,'Capacidad Financiera'!$B$12:$X$3580,2,0))","v":0},null,{"$f":"IF(OR(D237=\"\",E237=\"\"),\"\",IF(AND(E237>0,E237<=CapTecnica1),Puntajes!$H$4,IF(AND(E237>CapTecnica1,E237<=CapTecnica2),Puntajes!$H$5,IF(E237>CapTecnica2,Puntajes!$H$6,0))))","v":""}]
[null,null,{"$f":"+'Capacidad Financiera'!B241","v":""},{"$f":"IF(ISERROR(VLOOKUP(C238,'Capacidad Financiera'!$B$12:$X$62720,2,0)),\"\",VLOOKUP(C238,'Capacidad Financiera'!$B$12:$X$3580,2,0))","v":0},null,{"$f":"IF(OR(D238=\"\",E238=\"\"),\"\",IF(AND(E238>0,E238<=CapTecnica1),Puntajes!$H$4,IF(AND(E238>CapTecnica1,E238<=CapTecnica2),Puntajes!$H$5,IF(E238>CapTecnica2,Puntajes!$H$6,0))))","v":""}]
[null,null,{"$f":"+'Capacidad Financiera'!B242","v":""},{"$f":"IF(ISERROR(VLOOKUP(C239,'Capacidad Financiera'!$B$12:$X$62720,2,0)),\"\",VLOOKUP(C239,'Capacidad Financiera'!$B$12:$X$3580,2,0))","v":0},null,{"$f":"IF(OR(D239=\"\",E239=\"\"),\"\",IF(AND(E239>0,E239<=CapTecnica1),Puntajes!$H$4,IF(AND(E239>CapTecnica1,E239<=CapTecnica2),Puntajes!$H$5,IF(E239>CapTecnica2,Puntajes!$H$6,0))))","v":""}]
[null,null,22,{"$f":"IF(ISERROR(VLOOKUP(C240,'Capacidad Financiera'!$B$12:$X$62720,2,0)),\"\",VLOOKUP(C240,'Capacidad Financiera'!$B$12:$X$3580,2,0))","v":"INGENIERIA Y CONSTRUCCIONES S.A.S"},null,{"$f":"IF(C241=\"\",IF(E240=\"\",\"\",IF(AND(E240>0,E240<=CapTecnica1),Puntajes!$H$4,IF(AND(E240>CapTecnica1,E240<=CapTecnica2),Puntajes!$H$5,IF(E240>CapTecnica2,Puntajes!$H$6,0)))),\"\")","v":""}]
[null,null,{"$f":"+'Capacidad Financiera'!B244","v":22.1},{"$f":"IF(ISERROR(VLOOKUP(C241,'Capacidad Financiera'!$B$12:$X$62720,2,0)),\"\",VLOOKUP(C241,'Capacidad Financiera'!$B$12:$X$3580,2,0))","v":"INGENIERIA Y CONSTRUCCIONES S.A.S"},14,{"$f":"IF(OR(D241=\"\",E241=\"\"),\"\",IF(AND(E241>0,E241<=CapTecnica1),Puntajes!$H$4,IF(AND(E241>CapTecnica1,E241<=CapTecnica2),Puntajes!$H$5,IF(E241>CapTecnica2,Puntajes!$H$6,0))))","v":40}]
[null,null,{"$f":"+'Capacidad Financiera'!B245","v":""},{"$f":"IF(ISERROR(VLOOKUP(C242,'Capacidad Financiera'!$B$12:$X$62720,2,0)),\"\",VLOOKUP(C242,'Capacidad Financiera'!$B$12:$X$3580,2,0))","v":0},null,{"$f":"IF(OR(D242=\"\",E242=\"\"),\"\",IF(AND(E242>0,E242<=CapTecnica1),Puntajes!$H$4,IF(AND(E242>CapTecnica1,E242<=CapTecnica2),Puntajes!$H$5,IF(E242>CapTecnica2,Puntajes!$H$6,0))))","v":""}]
[null,null,{"$f":"+'Capacidad Financiera'!B246","v":""},{"$f":"IF(ISERROR(VLOOKUP(C243,'Capacidad Financiera'!$B$12:$X$62720,2,0)),\"\",VLOOKUP(C243,'Capacidad Financiera'!$B$12:$X$3580,2,0))","v":0},null,{"$f":"IF(OR(D243=\"\",E243=\"\"),\"\",IF(AND(E243>0,E243<=CapTecnica1),Puntajes!$H$4,IF(AND(E243>CapTecnica1,E243<=CapTecnica2),Puntajes!$H$5,IF(E243>CapTecnica2,Puntajes!$H$6,0))))","v":""}]
[null,null,{"$f":"+'Capacidad Financiera'!B247","v":""},{"$f":"IF(ISERROR(VLOOKUP(C244,'Capacidad Financiera'!$B$12:$X$62720,2,0)),\"\",VLOOKUP(C244,'Capacidad Financiera'!$B$12:$X$3580,2,0))","v":0},null,{"$f":"IF(OR(D244=\"\",E244=\"\"),\"\",IF(AND(E244>0,E244<=CapTecnica1),Puntajes!$H$4,IF(AND(E244>CapTecnica1,E244<=CapTecnica2),Puntajes!$H$5,IF(E244>CapTecnica2,Puntajes!$H$6,0))))","v":""}]
[null,null,{"$f":"+'Capacidad Financiera'!B248","v":""},{"$f":"IF(ISERROR(VLOOKUP(C245,'Capacidad Financiera'!$B$12:$X$62720,2,0)),\"\",VLOOKUP(C245,'Capacidad Financiera'!$B$12:$X$3580,2,0))","v":0},null,{"$f":"IF(OR(D245=\"\",E245=\"\"),\"\",IF(AND(E245>0,E245<=CapTecnica1),Puntajes!$H$4,IF(AND(E245>CapTecnica1,E245<=CapTecnica2),Puntajes!$H$5,IF(E245>CapTecnica2,Puntajes!$H$6,0))))","v":""}]
[null,null,{"$f":"+'Capacidad Financiera'!B249","v":""},{"$f":"IF(ISERROR(VLOOKUP(C246,'Capacidad Financiera'!$B$12:$X$62720,2,0)),\"\",VLOOKUP(C246,'Capacidad Financiera'!$B$12:$X$3580,2,0))","v":0},null,{"$f":"IF(OR(D246=\"\",E246=\"\"),\"\",IF(AND(E246>0,E246<=CapTecnica1),Puntajes!$H$4,IF(AND(E246>CapTecnica1,E246<=CapTecnica2),Puntajes!$H$5,IF(E246>CapTecnica2,Puntajes!$H$6,0))))","v":""}]
[null,null,{"$f":"+'Capacidad Financiera'!B250","v":""},{"$f":"IF(ISERROR(VLOOKUP(C247,'Capacidad Financiera'!$B$12:$X$62720,2,0)),\"\",VLOOKUP(C247,'Capacidad Financiera'!$B$12:$X$3580,2,0))","v":0},null,{"$f":"IF(OR(D247=\"\",E247=\"\"),\"\",IF(AND(E247>0,E247<=CapTecnica1),Puntajes!$H$4,IF(AND(E247>CapTecnica1,E247<=CapTecnica2),Puntajes!$H$5,IF(E247>CapTecnica2,Puntajes!$H$6,0))))","v":""}]
[null,null,{"$f":"+'Capacidad Financiera'!B251","v":""},{"$f":"IF(ISERROR(VLOOKUP(C248,'Capacidad Financiera'!$B$12:$X$62720,2,0)),\"\",VLOOKUP(C248,'Capacidad Financiera'!$B$12:$X$3580,2,0))","v":0},null,{"$f":"IF(OR(D248=\"\",E248=\"\"),\"\",IF(AND(E248>0,E248<=CapTecnica1),Puntajes!$H$4,IF(AND(E248>CapTecnica1,E248<=CapTecnica2),Puntajes!$H$5,IF(E248>CapTecnica2,Puntajes!$H$6,0))))","v":""}]
[null,null,{"$f":"+'Capacidad Financiera'!B252","v":""},{"$f":"IF(ISERROR(VLOOKUP(C249,'Capacidad Financiera'!$B$12:$X$62720,2,0)),\"\",VLOOKUP(C249,'Capacidad Financiera'!$B$12:$X$3580,2,0))","v":0},null,{"$f":"IF(OR(D249=\"\",E249=\"\"),\"\",IF(AND(E249>0,E249<=CapTecnica1),Puntajes!$H$4,IF(AND(E249>CapTecnica1,E249<=CapTecnica2),Puntajes!$H$5,IF(E249>CapTecnica2,Puntajes!$H$6,0))))","v":""}]
[null,null,{"$f":"+'Capacidad Financiera'!B253","v":""},{"$f":"IF(ISERROR(VLOOKUP(C250,'Capacidad Financiera'!$B$12:$X$62720,2,0)),\"\",VLOOKUP(C250,'Capacidad Financiera'!$B$12:$X$3580,2,0))","v":0},null,{"$f":"IF(OR(D250=\"\",E250=\"\"),\"\",IF(AND(E250>0,E250<=CapTecnica1),Puntajes!$H$4,IF(AND(E250>CapTecnica1,E250<=CapTecnica2),Puntajes!$H$5,IF(E250>CapTecnica2,Puntajes!$H$6,0))))","v":""}]
[null,null,23,{"$f":"IF(ISERROR(VLOOKUP(C251,'Capacidad Financiera'!$B$12:$X$62720,2,0)),\"\",VLOOKUP(C251,'Capacidad Financiera'!$B$12:$X$3580,2,0))","v":"CONSORCIO VIAL SUCRE 2014"},null,{"$f":"IF(C252=\"\",IF(E251=\"\",\"\",IF(AND(E251>0,E251<=CapTecnica1),Puntajes!$H$4,IF(AND(E251>CapTecnica1,E251<=CapTecnica2),Puntajes!$H$5,IF(E251>CapTecnica2,Puntajes!$H$6,0)))),\"\")","v":""}]
[null,null,{"$f":"+'Capacidad Financiera'!B255","v":23.1},{"$f":"IF(ISERROR(VLOOKUP(C252,'Capacidad Financiera'!$B$12:$X$62720,2,0)),\"\",VLOOKUP(C252,'Capacidad Financiera'!$B$12:$X$3580,2,0))","v":"PROVIAS S.A.S."},11,{"$f":"IF(OR(D252=\"\",E252=\"\"),\"\",IF(AND(E252>0,E252<=CapTecnica1),Puntajes!$H$4,IF(AND(E252>CapTecnica1,E252<=CapTecnica2),Puntajes!$H$5,IF(E252>CapTecnica2,Puntajes!$H$6,0))))","v":40}]
[null,null,{"$f":"+'Capacidad Financiera'!B256","v":23.200000000000003},{"$f":"IF(ISERROR(VLOOKUP(C253,'Capacidad Financiera'!$B$12:$X$62720,2,0)),\"\",VLOOKUP(C253,'Capacidad Financiera'!$B$12:$X$3580,2,0))","v":"ICG PROYECTOS S.A.S."},2,{"$f":"IF(OR(D253=\"\",E253=\"\"),\"\",IF(AND(E253>0,E253<=CapTecnica1),Puntajes!$H$4,IF(AND(E253>CapTecnica1,E253<=CapTecnica2),Puntajes!$H$5,IF(E253>CapTecnica2,Puntajes!$H$6,0))))","v":20}]
[null,null,{"$f":"+'Capacidad Financiera'!B257","v":""},{"$f":"IF(ISERROR(VLOOKUP(C254,'Capacidad Financiera'!$B$12:$X$62720,2,0)),\"\",VLOOKUP(C254,'Capacidad Financiera'!$B$12:$X$3580,2,0))","v":0},null,{"$f":"IF(OR(D254=\"\",E254=\"\"),\"\",IF(AND(E254>0,E254<=CapTecnica1),Puntajes!$H$4,IF(AND(E254>CapTecnica1,E254<=CapTecnica2),Puntajes!$H$5,IF(E254>CapTecnica2,Puntajes!$H$6,0))))","v":""}]
[null,null,{"$f":"+'Capacidad Financiera'!B258","v":""},{"$f":"IF(ISERROR(VLOOKUP(C255,'Capacidad Financiera'!$B$12:$X$62720,2,0)),\"\",VLOOKUP(C255,'Capacidad Financiera'!$B$12:$X$3580,2,0))","v":0},null,{"$f":"IF(OR(D255=\"\",E255=\"\"),\"\",IF(AND(E255>0,E255<=CapTecnica1),Puntajes!$H$4,IF(AND(E255>CapTecnica1,E255<=CapTecnica2),Puntajes!$H$5,IF(E255>CapTecnica2,Puntajes!$H$6,0))))","v":""}]
[null,null,{"$f":"+'Capacidad Financiera'!B259","v":""},{"$f":"IF(ISERROR(VLOOKUP(C256,'Capacidad Financiera'!$B$12:$X$62720,2,0)),\"\",VLOOKUP(C256,'Capacidad Financiera'!$B$12:$X$3580,2,0))","v":0},null,{"$f":"IF(OR(D256=\"\",E256=\"\"),\"\",IF(AND(E256>0,E256<=CapTecnica1),Puntajes!$H$4,IF(AND(E256>CapTecnica1,E256<=CapTecnica2),Puntajes!$H$5,IF(E256>CapTecnica2,Puntajes!$H$6,0))))","v":""}]
[null,null,{"$f":"+'Capacidad Financiera'!B260","v":""},{"$f":"IF(ISERROR(VLOOKUP(C257,'Capacidad Financiera'!$B$12:$X$62720,2,0)),\"\",VLOOKUP(C257,'Capacidad Financiera'!$B$12:$X$3580,2,0))","v":0},null,{"$f":"IF(OR(D257=\"\",E257=\"\"),\"\",IF(AND(E257>0,E257<=CapTecnica1),Puntajes!$H$4,IF(AND(E257>CapTecnica1,E257<=CapTecnica2),Puntajes!$H$5,IF(E257>CapTecnica2,Puntajes!$H$6,0))))","v":""}]
[null,null,{"$f":"+'Capacidad Financiera'!B261","v":""},{"$f":"IF(ISERROR(VLOOKUP(C258,'Capacidad Financiera'!$B$12:$X$62720,2,0)),\"\",VLOOKUP(C258,'Capacidad Financiera'!$B$12:$X$3580,2,0))","v":0},null,{"$f":"IF(OR(D258=\"\",E258=\"\"),\"\",IF(AND(E258>0,E258<=CapTecnica1),Puntajes!$H$4,IF(AND(E258>CapTecnica1,E258<=CapTecnica2),Puntajes!$H$5,IF(E258>CapTecnica2,Puntajes!$H$6,0))))","v":""}]
[null,null,{"$f":"+'Capacidad Financiera'!B262","v":""},{"$f":"IF(ISERROR(VLOOKUP(C259,'Capacidad Financiera'!$B$12:$X$62720,2,0)),\"\",VLOOKUP(C259,'Capacidad Financiera'!$B$12:$X$3580,2,0))","v":0},null,{"$f":"IF(OR(D259=\"\",E259=\"\"),\"\",IF(AND(E259>0,E259<=CapTecnica1),Puntajes!$H$4,IF(AND(E259>CapTecnica1,E259<=CapTecnica2),Puntajes!$H$5,IF(E259>CapTecnica2,Puntajes!$H$6,0))))","v":""}]
[null,null,{"$f":"+'Capacidad Financiera'!B263","v":""},{"$f":"IF(ISERROR(VLOOKUP(C260,'Capacidad Financiera'!$B$12:$X$62720,2,0)),\"\",VLOOKUP(C260,'Capacidad Financiera'!$B$12:$X$3580,2,0))","v":0},null,{"$f":"IF(OR(D260=\"\",E260=\"\"),\"\",IF(AND(E260>0,E260<=CapTecnica1),Puntajes!$H$4,IF(AND(E260>CapTecnica1,E260<=CapTecnica2),Puntajes!$H$5,IF(E260>CapTecnica2,Puntajes!$H$6,0))))","v":""}]
[null,null,{"$f":"+'Capacidad Financiera'!B264","v":""},{"$f":"IF(ISERROR(VLOOKUP(C261,'Capacidad Financiera'!$B$12:$X$62720,2,0)),\"\",VLOOKUP(C261,'Capacidad Financiera'!$B$12:$X$3580,2,0))","v":0},null,{"$f":"IF(OR(D261=\"\",E261=\"\"),\"\",IF(AND(E261>0,E261<=CapTecnica1),Puntajes!$H$4,IF(AND(E261>CapTecnica1,E261<=CapTecnica2),Puntajes!$H$5,IF(E261>CapTecnica2,Puntajes!$H$6,0))))","v":""}]
[null,null,24,{"$f":"IF(ISERROR(VLOOKUP(C262,'Capacidad Financiera'!$B$12:$X$62720,2,0)),\"\",VLOOKUP(C262,'Capacidad Financiera'!$B$12:$X$3580,2,0))","v":"INGENIERIA Y VIAS S.A.S."},null,{"$f":"IF(C263=\"\",IF(E262=\"\",\"\",IF(AND(E262>0,E262<=CapTecnica1),Puntajes!$H$4,IF(AND(E262>CapTecnica1,E262<=CapTecnica2),Puntajes!$H$5,IF(E262>CapTecnica2,Puntajes!$H$6,0)))),\"\")","v":""}]
[null,null,{"$f":"+'Capacidad Financiera'!B266","v":24.1},{"$f":"IF(ISERROR(VLOOKUP(C263,'Capacidad Financiera'!$B$12:$X$62720,2,0)),\"\",VLOOKUP(C263,'Capacidad Financiera'!$B$12:$X$3580,2,0))","v":"INGENIERIA Y VIAS S.A.S."},7,{"$f":"IF(OR(D263=\"\",E263=\"\"),\"\",IF(AND(E263>0,E263<=CapTecnica1),Puntajes!$H$4,IF(AND(E263>CapTecnica1,E263<=CapTecnica2),Puntajes!$H$5,IF(E263>CapTecnica2,Puntajes!$H$6,0))))","v":30}]
[null,null,{"$f":"+'Capacidad Financiera'!B267","v":""},{"$f":"IF(ISERROR(VLOOKUP(C264,'Capacidad Financiera'!$B$12:$X$62720,2,0)),\"\",VLOOKUP(C264,'Capacidad Financiera'!$B$12:$X$3580,2,0))","v":0},null,{"$f":"IF(OR(D264=\"\",E264=\"\"),\"\",IF(AND(E264>0,E264<=CapTecnica1),Puntajes!$H$4,IF(AND(E264>CapTecnica1,E264<=CapTecnica2),Puntajes!$H$5,IF(E264>CapTecnica2,Puntajes!$H$6,0))))","v":""}]
[null,null,{"$f":"+'Capacidad Financiera'!B268","v":""},{"$f":"IF(ISERROR(VLOOKUP(C265,'Capacidad Financiera'!$B$12:$X$62720,2,0)),\"\",VLOOKUP(C265,'Capacidad Financiera'!$B$12:$X$3580,2,0))","v":0},null,{"$f":"IF(OR(D265=\"\",E265=\"\"),\"\",IF(AND(E265>0,E265<=CapTecnica1),Puntajes!$H$4,IF(AND(E265>CapTecnica1,E265<=CapTecnica2),Puntajes!$H$5,IF(E265>CapTecnica2,Puntajes!$H$6,0))))","v":""}]
[null,null,{"$f":"+'Capacidad Financiera'!B269","v":""},{"$f":"IF(ISERROR(VLOOKUP(C266,'Capacidad Financiera'!$B$12:$X$62720,2,0)),\"\",VLOOKUP(C266,'Capacidad Financiera'!$B$12:$X$3580,2,0))","v":0},null,{"$f":"IF(OR(D266=\"\",E266=\"\"),\"\",IF(AND(E266>0,E266<=CapTecnica1),Puntajes!$H$4,IF(AND(E266>CapTecnica1,E266<=CapTecnica2),Puntajes!$H$5,IF(E266>CapTecnica2,Puntajes!$H$6,0))))","v":""}]
[null,null,{"$f":"+'Capacidad Financiera'!B270","v":""},{"$f":"IF(ISERROR(VLOOKUP(C267,'Capacidad Financiera'!$B$12:$X$62720,2,0)),\"\",VLOOKUP(C267,'Capacidad Financiera'!$B$12:$X$3580,2,0))","v":0},null,{"$f":"IF(OR(D267=\"\",E267=\"\"),\"\",IF(AND(E267>0,E267<=CapTecnica1),Puntajes!$H$4,IF(AND(E267>CapTecnica1,E267<=CapTecnica2),Puntajes!$H$5,IF(E267>CapTecnica2,Puntajes!$H$6,0))))","v":""}]
[null,null,{"$f":"+'Capacidad Financiera'!B271","v":""},{"$f":"IF(ISERROR(VLOOKUP(C268,'Capacidad Financiera'!$B$12:$X$62720,2,0)),\"\",VLOOKUP(C268,'Capacidad Financiera'!$B$12:$X$3580,2,0))","v":0},null,{"$f":"IF(OR(D268=\"\",E268=\"\"),\"\",IF(AND(E268>0,E268<=CapTecnica1),Puntajes!$H$4,IF(AND(E268>CapTecnica1,E268<=CapTecnica2),Puntajes!$H$5,IF(E268>CapTecnica2,Puntajes!$H$6,0))))","v":""}]
[null,null,{"$f":"+'Capacidad Financiera'!B272","v":""},{"$f":"IF(ISERROR(VLOOKUP(C269,'Capacidad Financiera'!$B$12:$X$62720,2,0)),\"\",VLOOKUP(C269,'Capacidad Financiera'!$B$12:$X$3580,2,0))","v":0},null,{"$f":"IF(OR(D269=\"\",E269=\"\"),\"\",IF(AND(E269>0,E269<=CapTecnica1),Puntajes!$H$4,IF(AND(E269>CapTecnica1,E269<=CapTecnica2),Puntajes!$H$5,IF(E269>CapTecnica2,Puntajes!$H$6,0))))","v":""}]
[null,null,{"$f":"+'Capacidad Financiera'!B273","v":""},{"$f":"IF(ISERROR(VLOOKUP(C270,'Capacidad Financiera'!$B$12:$X$62720,2,0)),\"\",VLOOKUP(C270,'Capacidad Financiera'!$B$12:$X$3580,2,0))","v":0},null,{"$f":"IF(OR(D270=\"\",E270=\"\"),\"\",IF(AND(E270>0,E270<=CapTecnica1),Puntajes!$H$4,IF(AND(E270>CapTecnica1,E270<=CapTecnica2),Puntajes!$H$5,IF(E270>CapTecnica2,Puntajes!$H$6,0))))","v":""}]
[null,null,{"$f":"+'Capacidad Financiera'!B274","v":""},{"$f":"IF(ISERROR(VLOOKUP(C271,'Capacidad Financiera'!$B$12:$X$62720,2,0)),\"\",VLOOKUP(C271,'Capacidad Financiera'!$B$12:$X$3580,2,0))","v":0},null,{"$f":"IF(OR(D271=\"\",E271=\"\"),\"\",IF(AND(E271>0,E271<=CapTecnica1),Puntajes!$H$4,IF(AND(E271>CapTecnica1,E271<=CapTecnica2),Puntajes!$H$5,IF(E271>CapTecnica2,Puntajes!$H$6,0))))","v":""}]
[null,null,{"$f":"+'Capacidad Financiera'!B275","v":""},{"$f":"IF(ISERROR(VLOOKUP(C272,'Capacidad Financiera'!$B$12:$X$62720,2,0)),\"\",VLOOKUP(C272,'Capacidad Financiera'!$B$12:$X$3580,2,0))","v":0},null,{"$f":"IF(OR(D272=\"\",E272=\"\"),\"\",IF(AND(E272>0,E272<=CapTecnica1),Puntajes!$H$4,IF(AND(E272>CapTecnica1,E272<=CapTecnica2),Puntajes!$H$5,IF(E272>CapTecnica2,Puntajes!$H$6,0))))","v":""}]
[null,null,25,{"$f":"IF(ISERROR(VLOOKUP(C273,'Capacidad Financiera'!$B$12:$X$62720,2,0)),\"\",VLOOKUP(C273,'Capacidad Financiera'!$B$12:$X$3580,2,0))","v":"GUSTAVO VELANDIA POVEDA"},null,{"$f":"IF(C274=\"\",IF(E273=\"\",\"\",IF(AND(E273>0,E273<=CapTecnica1),Puntajes!$H$4,IF(AND(E273>CapTecnica1,E273<=CapTecnica2),Puntajes!$H$5,IF(E273>CapTecnica2,Puntajes!$H$6,0)))),\"\")","v":""}]
[null,null,{"$f":"+'Capacidad Financiera'!B277","v":25.1},{"$f":"IF(ISERROR(VLOOKUP(C274,'Capacidad Financiera'!$B$12:$X$62720,2,0)),\"\",VLOOKUP(C274,'Capacidad Financiera'!$B$12:$X$3580,2,0))","v":"GUSTAVO VELANDIA POVEDA"},4,{"$f":"IF(OR(D274=\"\",E274=\"\"),\"\",IF(AND(E274>0,E274<=CapTecnica1),Puntajes!$H$4,IF(AND(E274>CapTecnica1,E274<=CapTecnica2),Puntajes!$H$5,IF(E274>CapTecnica2,Puntajes!$H$6,0))))","v":20}]
[null,null,{"$f":"+'Capacidad Financiera'!B278","v":""},{"$f":"IF(ISERROR(VLOOKUP(C275,'Capacidad Financiera'!$B$12:$X$62720,2,0)),\"\",VLOOKUP(C275,'Capacidad Financiera'!$B$12:$X$3580,2,0))","v":0},null,{"$f":"IF(OR(D275=\"\",E275=\"\"),\"\",IF(AND(E275>0,E275<=CapTecnica1),Puntajes!$H$4,IF(AND(E275>CapTecnica1,E275<=CapTecnica2),Puntajes!$H$5,IF(E275>CapTecnica2,Puntajes!$H$6,0))))","v":""}]
[null,null,{"$f":"+'Capacidad Financiera'!B279","v":""},{"$f":"IF(ISERROR(VLOOKUP(C276,'Capacidad Financiera'!$B$12:$X$62720,2,0)),\"\",VLOOKUP(C276,'Capacidad Financiera'!$B$12:$X$3580,2,0))","v":0},null,{"$f":"IF(OR(D276=\"\",E276=\"\"),\"\",IF(AND(E276>0,E276<=CapTecnica1),Puntajes!$H$4,IF(AND(E276>CapTecnica1,E276<=CapTecnica2),Puntajes!$H$5,IF(E276>CapTecnica2,Puntajes!$H$6,0))))","v":""}]
[null,null,{"$f":"+'Capacidad Financiera'!B280","v":""},{"$f":"IF(ISERROR(VLOOKUP(C277,'Capacidad Financiera'!$B$12:$X$62720,2,0)),\"\",VLOOKUP(C277,'Capacidad Financiera'!$B$12:$X$3580,2,0))","v":0},null,{"$f":"IF(OR(D277=\"\",E277=\"\"),\"\",IF(AND(E277>0,E277<=CapTecnica1),Puntajes!$H$4,IF(AND(E277>CapTecnica1,E277<=CapTecnica2),Puntajes!$H$5,IF(E277>CapTecnica2,Puntajes!$H$6,0))))","v":""}]
[null,null,{"$f":"+'Capacidad Financiera'!B281","v":""},{"$f":"IF(ISERROR(VLOOKUP(C278,'Capacidad Financiera'!$B$12:$X$62720,2,0)),\"\",VLOOKUP(C278,'Capacidad Financiera'!$B$12:$X$3580,2,0))","v":0},null,{"$f":"IF(OR(D278=\"\",E278=\"\"),\"\",IF(AND(E278>0,E278<=CapTecnica1),Puntajes!$H$4,IF(AND(E278>CapTecnica1,E278<=CapTecnica2),Puntajes!$H$5,IF(E278>CapTecnica2,Puntajes!$H$6,0))))","v":""}]
[null,null,{"$f":"+'Capacidad Financiera'!B282","v":""},{"$f":"IF(ISERROR(VLOOKUP(C279,'Capacidad Financiera'!$B$12:$X$62720,2,0)),\"\",VLOOKUP(C279,'Capacidad Financiera'!$B$12:$X$3580,2,0))","v":0},null,{"$f":"IF(OR(D279=\"\",E279=\"\"),\"\",IF(AND(E279>0,E279<=CapTecnica1),Puntajes!$H$4,IF(AND(E279>CapTecnica1,E279<=CapTecnica2),Puntajes!$H$5,IF(E279>CapTecnica2,Puntajes!$H$6,0))))","v":""}]
[null,null,{"$f":"+'Capacidad Financiera'!B283","v":""},{"$f":"IF(ISERROR(VLOOKUP(C280,'Capacidad Financiera'!$B$12:$X$62720,2,0)),\"\",VLOOKUP(C280,'Capacidad Financiera'!$B$12:$X$3580,2,0))","v":0},null,{"$f":"IF(OR(D280=\"\",E280=\"\"),\"\",IF(AND(E280>0,E280<=CapTecnica1),Puntajes!$H$4,IF(AND(E280>CapTecnica1,E280<=CapTecnica2),Puntajes!$H$5,IF(E280>CapTecnica2,Puntajes!$H$6,0))))","v":""}]
[null,null,{"$f":"+'Capacidad Financiera'!B284","v":""},{"$f":"IF(ISERROR(VLOOKUP(C281,'Capacidad Financiera'!$B$12:$X$62720,2,0)),\"\",VLOOKUP(C281,'Capacidad Financiera'!$B$12:$X$3580,2,0))","v":0},null,{"$f":"IF(OR(D281=\"\",E281=\"\"),\"\",IF(AND(E281>0,E281<=CapTecnica1),Puntajes!$H$4,IF(AND(E281>CapTecnica1,E281<=CapTecnica2),Puntajes!$H$5,IF(E281>CapTecnica2,Puntajes!$H$6,0))))","v":""}]
[null,null,{"$f":"+'Capacidad Financiera'!B285","v":""},{"$f":"IF(ISERROR(VLOOKUP(C282,'Capacidad Financiera'!$B$12:$X$62720,2,0)),\"\",VLOOKUP(C282,'Capacidad Financiera'!$B$12:$X$3580,2,0))","v":0},null,{"$f":"IF(OR(D282=\"\",E282=\"\"),\"\",IF(AND(E282>0,E282<=CapTecnica1),Puntajes!$H$4,IF(AND(E282>CapTecnica1,E282<=CapTecnica2),Puntajes!$H$5,IF(E282>CapTecnica2,Puntajes!$H$6,0))))","v":""}]
[null,null,{"$f":"+'Capacidad Financiera'!B286","v":""},{"$f":"IF(ISERROR(VLOOKUP(C283,'Capacidad Financiera'!$B$12:$X$62720,2,0)),\"\",VLOOKUP(C283,'Capacidad Financiera'!$B$12:$X$3580,2,0))","v":0},null,{"$f":"IF(OR(D283=\"\",E283=\"\"),\"\",IF(AND(E283>0,E283<=CapTecnica1),Puntajes!$H$4,IF(AND(E283>CapTecnica1,E283<=CapTecnica2),Puntajes!$H$5,IF(E283>CapTecnica2,Puntajes!$H$6,0))))","v":""}]
[null,null,26,{"$f":"IF(ISERROR(VLOOKUP(C284,'Capacidad Financiera'!$B$12:$X$62720,2,0)),\"\",VLOOKUP(C284,'Capacidad Financiera'!$B$12:$X$3580,2,0))","v":"UNION TEMPORAL MACROVIAS"},null,{"$f":"IF(C285=\"\",IF(E284=\"\",\"\",IF(AND(E284>0,E284<=CapTecnica1),Puntajes!$H$4,IF(AND(E284>CapTecnica1,E284<=CapTecnica2),Puntajes!$H$5,IF(E284>CapTecnica2,Puntajes!$H$6,0)))),\"\")","v":""}]
[null,null,{"$f":"+'Capacidad Financiera'!B288","v":26.1},{"$f":"IF(ISERROR(VLOOKUP(C285,'Capacidad Financiera'!$B$12:$X$62720,2,0)),\"\",VLOOKUP(C285,'Capacidad Financiera'!$B$12:$X$3580,2,0))","v":"SIBEL INGENIERIA S.A.S."},7,{"$f":"IF(OR(D285=\"\",E285=\"\"),\"\",IF(AND(E285>0,E285<=CapTecnica1),Puntajes!$H$4,IF(AND(E285>CapTecnica1,E285<=CapTecnica2),Puntajes!$H$5,IF(E285>CapTecnica2,Puntajes!$H$6,0))))","v":30}]
[null,null,{"$f":"+'Capacidad Financiera'!B289","v":26.200000000000003},{"$f":"IF(ISERROR(VLOOKUP(C286,'Capacidad Financiera'!$B$12:$X$62720,2,0)),\"\",VLOOKUP(C286,'Capacidad Financiera'!$B$12:$X$3580,2,0))","v":"MILTON RIVERA RINCON"},11,{"$f":"IF(OR(D286=\"\",E286=\"\"),\"\",IF(AND(E286>0,E286<=CapTecnica1),Puntajes!$H$4,IF(AND(E286>CapTecnica1,E286<=CapTecnica2),Puntajes!$H$5,IF(E286>CapTecnica2,Puntajes!$H$6,0))))","v":40}]
[null,null,{"$f":"+'Capacidad Financiera'!B290","v":26.300000000000004},{"$f":"IF(ISERROR(VLOOKUP(C287,'Capacidad Financiera'!$B$12:$X$62720,2,0)),\"\",VLOOKUP(C287,'Capacidad Financiera'!$B$12:$X$3580,2,0))","v":"YEBRAIL CADENA LOZANO"},1,{"$f":"IF(OR(D287=\"\",E287=\"\"),\"\",IF(AND(E287>0,E287<=CapTecnica1),Puntajes!$H$4,IF(AND(E287>CapTecnica1,E287<=CapTecnica2),Puntajes!$H$5,IF(E287>CapTecnica2,Puntajes!$H$6,0))))","v":20}]
[null,null,{"$f":"+'Capacidad Financiera'!B291","v":""},{"$f":"IF(ISERROR(VLOOKUP(C288,'Capacidad Financiera'!$B$12:$X$62720,2,0)),\"\",VLOOKUP(C288,'Capacidad Financiera'!$B$12:$X$3580,2,0))","v":0},null,{"$f":"IF(OR(D288=\"\",E288=\"\"),\"\",IF(AND(E288>0,E288<=CapTecnica1),Puntajes!$H$4,IF(AND(E288>CapTecnica1,E288<=CapTecnica2),Puntajes!$H$5,IF(E288>CapTecnica2,Puntajes!$H$6,0))))","v":""}]
[null,null,{"$f":"+'Capacidad Financiera'!B292","v":""},{"$f":"IF(ISERROR(VLOOKUP(C289,'Capacidad Financiera'!$B$12:$X$62720,2,0)),\"\",VLOOKUP(C289,'Capacidad Financiera'!$B$12:$X$3580,2,0))","v":0},null,{"$f":"IF(OR(D289=\"\",E289=\"\"),\"\",IF(AND(E289>0,E289<=CapTecnica1),Puntajes!$H$4,IF(AND(E289>CapTecnica1,E289<=CapTecnica2),Puntajes!$H$5,IF(E289>CapTecnica2,Puntajes!$H$6,0))))","v":""}]
[null,null,{"$f":"+'Capacidad Financiera'!B293","v":""},{"$f":"IF(ISERROR(VLOOKUP(C290,'Capacidad Financiera'!$B$12:$X$62720,2,0)),\"\",VLOOKUP(C290,'Capacidad Financiera'!$B$12:$X$3580,2,0))","v":0},null,{"$f":"IF(OR(D290=\"\",E290=\"\"),\"\",IF(AND(E290>0,E290<=CapTecnica1),Puntajes!$H$4,IF(AND(E290>CapTecnica1,E290<=CapTecnica2),Puntajes!$H$5,IF(E290>CapTecnica2,Puntajes!$H$6,0))))","v":""}]
[null,null,{"$f":"+'Capacidad Financiera'!B294","v":""},{"$f":"IF(ISERROR(VLOOKUP(C291,'Capacidad Financiera'!$B$12:$X$62720,2,0)),\"\",VLOOKUP(C291,'Capacidad Financiera'!$B$12:$X$3580,2,0))","v":0},null,{"$f":"IF(OR(D291=\"\",E291=\"\"),\"\",IF(AND(E291>0,E291<=CapTecnica1),Puntajes!$H$4,IF(AND(E291>CapTecnica1,E291<=CapTecnica2),Puntajes!$H$5,IF(E291>CapTecnica2,Puntajes!$H$6,0))))","v":""}]
[null,null,{"$f":"+'Capacidad Financiera'!B295","v":""},{"$f":"IF(ISERROR(VLOOKUP(C292,'Capacidad Financiera'!$B$12:$X$62720,2,0)),\"\",VLOOKUP(C292,'Capacidad Financiera'!$B$12:$X$3580,2,0))","v":0},null,{"$f":"IF(OR(D292=\"\",E292=\"\"),\"\",IF(AND(E292>0,E292<=CapTecnica1),Puntajes!$H$4,IF(AND(E292>CapTecnica1,E292<=CapTecnica2),Puntajes!$H$5,IF(E292>CapTecnica2,Puntajes!$H$6,0))))","v":""}]
[null,null,{"$f":"+'Capacidad Financiera'!B296","v":""},{"$f":"IF(ISERROR(VLOOKUP(C293,'Capacidad Financiera'!$B$12:$X$62720,2,0)),\"\",VLOOKUP(C293,'Capacidad Financiera'!$B$12:$X$3580,2,0))","v":0},null,{"$f":"IF(OR(D293=\"\",E293=\"\"),\"\",IF(AND(E293>0,E293<=CapTecnica1),Puntajes!$H$4,IF(AND(E293>CapTecnica1,E293<=CapTecnica2),Puntajes!$H$5,IF(E293>CapTecnica2,Puntajes!$H$6,0))))","v":""}]
[null,null,{"$f":"+'Capacidad Financiera'!B297","v":""},{"$f":"IF(ISERROR(VLOOKUP(C294,'Capacidad Financiera'!$B$12:$X$62720,2,0)),\"\",VLOOKUP(C294,'Capacidad Financiera'!$B$12:$X$3580,2,0))","v":0},null,{"$f":"IF(OR(D294=\"\",E294=\"\"),\"\",IF(AND(E294>0,E294<=CapTecnica1),Puntajes!$H$4,IF(AND(E294>CapTecnica1,E294<=CapTecnica2),Puntajes!$H$5,IF(E294>CapTecnica2,Puntajes!$H$6,0))))","v":""}]
[null,null,27,{"$f":"IF(ISERROR(VLOOKUP(C295,'Capacidad Financiera'!$B$12:$X$62720,2,0)),\"\",VLOOKUP(C295,'Capacidad Financiera'!$B$12:$X$3580,2,0))","v":"CONSORCIO LOS PATIOS 2014"},null,{"$f":"IF(C296=\"\",IF(E295=\"\",\"\",IF(AND(E295>0,E295<=CapTecnica1),Puntajes!$H$4,IF(AND(E295>CapTecnica1,E295<=CapTecnica2),Puntajes!$H$5,IF(E295>CapTecnica2,Puntajes!$H$6,0)))),\"\")","v":""}]
[null,null,{"$f":"+'Capacidad Financiera'!B299","v":27.1},{"$f":"IF(ISERROR(VLOOKUP(C296,'Capacidad Financiera'!$B$12:$X$62720,2,0)),\"\",VLOOKUP(C296,'Capacidad Financiera'!$B$12:$X$3580,2,0))","v":"S Y M INGENIERIA S.A.S."},11,{"$f":"IF(OR(D296=\"\",E296=\"\"),\"\",IF(AND(E296>0,E296<=CapTecnica1),Puntajes!$H$4,IF(AND(E296>CapTecnica1,E296<=CapTecnica2),Puntajes!$H$5,IF(E296>CapTecnica2,Puntajes!$H$6,0))))","v":40}]
[null,null,{"$f":"+'Capacidad Financiera'!B300","v":27.200000000000003},{"$f":"IF(ISERROR(VLOOKUP(C297,'Capacidad Financiera'!$B$12:$X$62720,2,0)),\"\",VLOOKUP(C297,'Capacidad Financiera'!$B$12:$X$3580,2,0))","v":"MACIAS MORA Y CIA. S. EN C.S."},3,{"$f":"IF(OR(D297=\"\",E297=\"\"),\"\",IF(AND(E297>0,E297<=CapTecnica1),Puntajes!$H$4,IF(AND(E297>CapTecnica1,E297<=CapTecnica2),Puntajes!$H$5,IF(E297>CapTecnica2,Puntajes!$H$6,0))))","v":20}]
[null,null,{"$f":"+'Capacidad Financiera'!B301","v":27.300000000000004},{"$f":"IF(ISERROR(VLOOKUP(C298,'Capacidad Financiera'!$B$12:$X$62720,2,0)),\"\",VLOOKUP(C298,'Capacidad Financiera'!$B$12:$X$3580,2,0))","v":"ESTEBAN MACIAS VARGAS"},0,{"$f":"IF(OR(D298=\"\",E298=\"\"),\"\",IF(AND(E298>0,E298<=CapTecnica1),Puntajes!$H$4,IF(AND(E298>CapTecnica1,E298<=CapTecnica2),Puntajes!$H$5,IF(E298>CapTecnica2,Puntajes!$H$6,0))))","v":0}]
[null,null,{"$f":"+'Capacidad Financiera'!B302","v":""},{"$f":"IF(ISERROR(VLOOKUP(C299,'Capacidad Financiera'!$B$12:$X$62720,2,0)),\"\",VLOOKUP(C299,'Capacidad Financiera'!$B$12:$X$3580,2,0))","v":0},null,{"$f":"IF(OR(D299=\"\",E299=\"\"),\"\",IF(AND(E299>0,E299<=CapTecnica1),Puntajes!$H$4,IF(AND(E299>CapTecnica1,E299<=CapTecnica2),Puntajes!$H$5,IF(E299>CapTecnica2,Puntajes!$H$6,0))))","v":""}]
[null,null,{"$f":"+'Capacidad Financiera'!B303","v":""},{"$f":"IF(ISERROR(VLOOKUP(C300,'Capacidad Financiera'!$B$12:$X$62720,2,0)),\"\",VLOOKUP(C300,'Capacidad Financiera'!$B$12:$X$3580,2,0))","v":0},null,{"$f":"IF(OR(D300=\"\",E300=\"\"),\"\",IF(AND(E300>0,E300<=CapTecnica1),Puntajes!$H$4,IF(AND(E300>CapTecnica1,E300<=CapTecnica2),Puntajes!$H$5,IF(E300>CapTecnica2,Puntajes!$H$6,0))))","v":""}]
[null,null,{"$f":"+'Capacidad Financiera'!B304","v":""},{"$f":"IF(ISERROR(VLOOKUP(C301,'Capacidad Financiera'!$B$12:$X$62720,2,0)),\"\",VLOOKUP(C301,'Capacidad Financiera'!$B$12:$X$3580,2,0))","v":0},null,{"$f":"IF(OR(D301=\"\",E301=\"\"),\"\",IF(AND(E301>0,E301<=CapTecnica1),Puntajes!$H$4,IF(AND(E301>CapTecnica1,E301<=CapTecnica2),Puntajes!$H$5,IF(E301>CapTecnica2,Puntajes!$H$6,0))))","v":""}]
[null,null,{"$f":"+'Capacidad Financiera'!B305","v":""},{"$f":"IF(ISERROR(VLOOKUP(C302,'Capacidad Financiera'!$B$12:$X$62720,2,0)),\"\",VLOOKUP(C302,'Capacidad Financiera'!$B$12:$X$3580,2,0))","v":0},null,{"$f":"IF(OR(D302=\"\",E302=\"\"),\"\",IF(AND(E302>0,E302<=CapTecnica1),Puntajes!$H$4,IF(AND(E302>CapTecnica1,E302<=CapTecnica2),Puntajes!$H$5,IF(E302>CapTecnica2,Puntajes!$H$6,0))))","v":""}]
[null,null,{"$f":"+'Capacidad Financiera'!B306","v":""},{"$f":"IF(ISERROR(VLOOKUP(C303,'Capacidad Financiera'!$B$12:$X$62720,2,0)),\"\",VLOOKUP(C303,'Capacidad Financiera'!$B$12:$X$3580,2,0))","v":0},null,{"$f":"IF(OR(D303=\"\",E303=\"\"),\"\",IF(AND(E303>0,E303<=CapTecnica1),Puntajes!$H$4,IF(AND(E303>CapTecnica1,E303<=CapTecnica2),Puntajes!$H$5,IF(E303>CapTecnica2,Puntajes!$H$6,0))))","v":""}]
[null,null,{"$f":"+'Capacidad Financiera'!B307","v":""},{"$f":"IF(ISERROR(VLOOKUP(C304,'Capacidad Financiera'!$B$12:$X$62720,2,0)),\"\",VLOOKUP(C304,'Capacidad Financiera'!$B$12:$X$3580,2,0))","v":0},null,{"$f":"IF(OR(D304=\"\",E304=\"\"),\"\",IF(AND(E304>0,E304<=CapTecnica1),Puntajes!$H$4,IF(AND(E304>CapTecnica1,E304<=CapTecnica2),Puntajes!$H$5,IF(E304>CapTecnica2,Puntajes!$H$6,0))))","v":""}]
[null,null,{"$f":"+'Capacidad Financiera'!B308","v":""},{"$f":"IF(ISERROR(VLOOKUP(C305,'Capacidad Financiera'!$B$12:$X$62720,2,0)),\"\",VLOOKUP(C305,'Capacidad Financiera'!$B$12:$X$3580,2,0))","v":0},null,{"$f":"IF(OR(D305=\"\",E305=\"\"),\"\",IF(AND(E305>0,E305<=CapTecnica1),Puntajes!$H$4,IF(AND(E305>CapTecnica1,E305<=CapTecnica2),Puntajes!$H$5,IF(E305>CapTecnica2,Puntajes!$H$6,0))))","v":""}]
[null,null,28,{"$f":"IF(ISERROR(VLOOKUP(C306,'Capacidad Financiera'!$B$12:$X$62720,2,0)),\"\",VLOOKUP(C306,'Capacidad Financiera'!$B$12:$X$3580,2,0))","v":"SOFAN INGENIERIA S.A.S."},null,{"$f":"IF(C307=\"\",IF(E306=\"\",\"\",IF(AND(E306>0,E306<=CapTecnica1),Puntajes!$H$4,IF(AND(E306>CapTecnica1,E306<=CapTecnica2),Puntajes!$H$5,IF(E306>CapTecnica2,Puntajes!$H$6,0)))),\"\")","v":""}]
[null,null,{"$f":"+'Capacidad Financiera'!B310","v":28.1},{"$f":"IF(ISERROR(VLOOKUP(C307,'Capacidad Financiera'!$B$12:$X$62720,2,0)),\"\",VLOOKUP(C307,'Capacidad Financiera'!$B$12:$X$3580,2,0))","v":"SOFAN INGENIERIA S.A.S."},11,{"$f":"IF(OR(D307=\"\",E307=\"\"),\"\",IF(AND(E307>0,E307<=CapTecnica1),Puntajes!$H$4,IF(AND(E307>CapTecnica1,E307<=CapTecnica2),Puntajes!$H$5,IF(E307>CapTecnica2,Puntajes!$H$6,0))))","v":40}]
[null,null,{"$f":"+'Capacidad Financiera'!B311","v":""},{"$f":"IF(ISERROR(VLOOKUP(C308,'Capacidad Financiera'!$B$12:$X$62720,2,0)),\"\",VLOOKUP(C308,'Capacidad Financiera'!$B$12:$X$3580,2,0))","v":0},null,{"$f":"IF(OR(D308=\"\",E308=\"\"),\"\",IF(AND(E308>0,E308<=CapTecnica1),Puntajes!$H$4,IF(AND(E308>CapTecnica1,E308<=CapTecnica2),Puntajes!$H$5,IF(E308>CapTecnica2,Puntajes!$H$6,0))))","v":""}]
[null,null,{"$f":"+'Capacidad Financiera'!B312","v":""},{"$f":"IF(ISERROR(VLOOKUP(C309,'Capacidad Financiera'!$B$12:$X$62720,2,0)),\"\",VLOOKUP(C309,'Capacidad Financiera'!$B$12:$X$3580,2,0))","v":0},null,{"$f":"IF(OR(D309=\"\",E309=\"\"),\"\",IF(AND(E309>0,E309<=CapTecnica1),Puntajes!$H$4,IF(AND(E309>CapTecnica1,E309<=CapTecnica2),Puntajes!$H$5,IF(E309>CapTecnica2,Puntajes!$H$6,0))))","v":""}]
[null,null,{"$f":"+'Capacidad Financiera'!B313","v":""},{"$f":"IF(ISERROR(VLOOKUP(C310,'Capacidad Financiera'!$B$12:$X$62720,2,0)),\"\",VLOOKUP(C310,'Capacidad Financiera'!$B$12:$X$3580,2,0))","v":0},null,{"$f":"IF(OR(D310=\"\",E310=\"\"),\"\",IF(AND(E310>0,E310<=CapTecnica1),Puntajes!$H$4,IF(AND(E310>CapTecnica1,E310<=CapTecnica2),Puntajes!$H$5,IF(E310>CapTecnica2,Puntajes!$H$6,0))))","v":""}]
[null,null,{"$f":"+'Capacidad Financiera'!B314","v":""},{"$f":"IF(ISERROR(VLOOKUP(C311,'Capacidad Financiera'!$B$12:$X$62720,2,0)),\"\",VLOOKUP(C311,'Capacidad Financiera'!$B$12:$X$3580,2,0))","v":0},null,{"$f":"IF(OR(D311=\"\",E311=\"\"),\"\",IF(AND(E311>0,E311<=CapTecnica1),Puntajes!$H$4,IF(AND(E311>CapTecnica1,E311<=CapTecnica2),Puntajes!$H$5,IF(E311>CapTecnica2,Puntajes!$H$6,0))))","v":""}]
[null,null,{"$f":"+'Capacidad Financiera'!B315","v":""},{"$f":"IF(ISERROR(VLOOKUP(C312,'Capacidad Financiera'!$B$12:$X$62720,2,0)),\"\",VLOOKUP(C312,'Capacidad Financiera'!$B$12:$X$3580,2,0))","v":0},null,{"$f":"IF(OR(D312=\"\",E312=\"\"),\"\",IF(AND(E312>0,E312<=CapTecnica1),Puntajes!$H$4,IF(AND(E312>CapTecnica1,E312<=CapTecnica2),Puntajes!$H$5,IF(E312>CapTecnica2,Puntajes!$H$6,0))))","v":""}]
[null,null,{"$f":"+'Capacidad Financiera'!B316","v":""},{"$f":"IF(ISERROR(VLOOKUP(C313,'Capacidad Financiera'!$B$12:$X$62720,2,0)),\"\",VLOOKUP(C313,'Capacidad Financiera'!$B$12:$X$3580,2,0))","v":0},null,{"$f":"IF(OR(D313=\"\",E313=\"\"),\"\",IF(AND(E313>0,E313<=CapTecnica1),Puntajes!$H$4,IF(AND(E313>CapTecnica1,E313<=CapTecnica2),Puntajes!$H$5,IF(E313>CapTecnica2,Puntajes!$H$6,0))))","v":""}]
[null,null,{"$f":"+'Capacidad Financiera'!B317","v":""},{"$f":"IF(ISERROR(VLOOKUP(C314,'Capacidad Financiera'!$B$12:$X$62720,2,0)),\"\",VLOOKUP(C314,'Capacidad Financiera'!$B$12:$X$3580,2,0))","v":0},null,{"$f":"IF(OR(D314=\"\",E314=\"\"),\"\",IF(AND(E314>0,E314<=CapTecnica1),Puntajes!$H$4,IF(AND(E314>CapTecnica1,E314<=CapTecnica2),Puntajes!$H$5,IF(E314>CapTecnica2,Puntajes!$H$6,0))))","v":""}]
[null,null,{"$f":"+'Capacidad Financiera'!B318","v":""},{"$f":"IF(ISERROR(VLOOKUP(C315,'Capacidad Financiera'!$B$12:$X$62720,2,0)),\"\",VLOOKUP(C315,'Capacidad Financiera'!$B$12:$X$3580,2,0))","v":0},null,{"$f":"IF(OR(D315=\"\",E315=\"\"),\"\",IF(AND(E315>0,E315<=CapTecnica1),Puntajes!$H$4,IF(AND(E315>CapTecnica1,E315<=CapTecnica2),Puntajes!$H$5,IF(E315>CapTecnica2,Puntajes!$H$6,0))))","v":""}]
[null,null,{"$f":"+'Capacidad Financiera'!B319","v":""},{"$f":"IF(ISERROR(VLOOKUP(C316,'Capacidad Financiera'!$B$12:$X$62720,2,0)),\"\",VLOOKUP(C316,'Capacidad Financiera'!$B$12:$X$3580,2,0))","v":0},null,{"$f":"IF(OR(D316=\"\",E316=\"\"),\"\",IF(AND(E316>0,E316<=CapTecnica1),Puntajes!$H$4,IF(AND(E316>CapTecnica1,E316<=CapTecnica2),Puntajes!$H$5,IF(E316>CapTecnica2,Puntajes!$H$6,0))))","v":""}]
[null,null,29,{"$f":"IF(ISERROR(VLOOKUP(C317,'Capacidad Financiera'!$B$12:$X$62720,2,0)),\"\",VLOOKUP(C317,'Capacidad Financiera'!$B$12:$X$3580,2,0))","v":"CARMELO JOAQUIN ROSALES AMELL"},null,{"$f":"IF(C318=\"\",IF(E317=\"\",\"\",IF(AND(E317>0,E317<=CapTecnica1),Puntajes!$H$4,IF(AND(E317>CapTecnica1,E317<=CapTecnica2),Puntajes!$H$5,IF(E317>CapTecnica2,Puntajes!$H$6,0)))),\"\")","v":""}]
[null,null,{"$f":"+'Capacidad Financiera'!B321","v":29.1},{"$f":"IF(ISERROR(VLOOKUP(C318,'Capacidad Financiera'!$B$12:$X$62720,2,0)),\"\",VLOOKUP(C318,'Capacidad Financiera'!$B$12:$X$3580,2,0))","v":"CARMELO JOAQUIN ROSALES AMELL"},7,{"$f":"IF(OR(D318=\"\",E318=\"\"),\"\",IF(AND(E318>0,E318<=CapTecnica1),Puntajes!$H$4,IF(AND(E318>CapTecnica1,E318<=CapTecnica2),Puntajes!$H$5,IF(E318>CapTecnica2,Puntajes!$H$6,0))))","v":30}]
[null,null,{"$f":"+'Capacidad Financiera'!B322","v":""},{"$f":"IF(ISERROR(VLOOKUP(C319,'Capacidad Financiera'!$B$12:$X$62720,2,0)),\"\",VLOOKUP(C319,'Capacidad Financiera'!$B$12:$X$3580,2,0))","v":0},null,{"$f":"IF(OR(D319=\"\",E319=\"\"),\"\",IF(AND(E319>0,E319<=CapTecnica1),Puntajes!$H$4,IF(AND(E319>CapTecnica1,E319<=CapTecnica2),Puntajes!$H$5,IF(E319>CapTecnica2,Puntajes!$H$6,0))))","v":""}]
[null,null,{"$f":"+'Capacidad Financiera'!B323","v":""},{"$f":"IF(ISERROR(VLOOKUP(C320,'Capacidad Financiera'!$B$12:$X$62720,2,0)),\"\",VLOOKUP(C320,'Capacidad Financiera'!$B$12:$X$3580,2,0))","v":0},null,{"$f":"IF(OR(D320=\"\",E320=\"\"),\"\",IF(AND(E320>0,E320<=CapTecnica1),Puntajes!$H$4,IF(AND(E320>CapTecnica1,E320<=CapTecnica2),Puntajes!$H$5,IF(E320>CapTecnica2,Puntajes!$H$6,0))))","v":""}]
[null,null,{"$f":"+'Capacidad Financiera'!B324","v":""},{"$f":"IF(ISERROR(VLOOKUP(C321,'Capacidad Financiera'!$B$12:$X$62720,2,0)),\"\",VLOOKUP(C321,'Capacidad Financiera'!$B$12:$X$3580,2,0))","v":0},null,{"$f":"IF(OR(D321=\"\",E321=\"\"),\"\",IF(AND(E321>0,E321<=CapTecnica1),Puntajes!$H$4,IF(AND(E321>CapTecnica1,E321<=CapTecnica2),Puntajes!$H$5,IF(E321>CapTecnica2,Puntajes!$H$6,0))))","v":""}]
[null,null,{"$f":"+'Capacidad Financiera'!B325","v":""},{"$f":"IF(ISERROR(VLOOKUP(C322,'Capacidad Financiera'!$B$12:$X$62720,2,0)),\"\",VLOOKUP(C322,'Capacidad Financiera'!$B$12:$X$3580,2,0))","v":0},null,{"$f":"IF(OR(D322=\"\",E322=\"\"),\"\",IF(AND(E322>0,E322<=CapTecnica1),Puntajes!$H$4,IF(AND(E322>CapTecnica1,E322<=CapTecnica2),Puntajes!$H$5,IF(E322>CapTecnica2,Puntajes!$H$6,0))))","v":""}]
[null,null,{"$f":"+'Capacidad Financiera'!B326","v":""},{"$f":"IF(ISERROR(VLOOKUP(C323,'Capacidad Financiera'!$B$12:$X$62720,2,0)),\"\",VLOOKUP(C323,'Capacidad Financiera'!$B$12:$X$3580,2,0))","v":0},null,{"$f":"IF(OR(D323=\"\",E323=\"\"),\"\",IF(AND(E323>0,E323<=CapTecnica1),Puntajes!$H$4,IF(AND(E323>CapTecnica1,E323<=CapTecnica2),Puntajes!$H$5,IF(E323>CapTecnica2,Puntajes!$H$6,0))))","v":""}]
[null,null,{"$f":"+'Capacidad Financiera'!B327","v":""},{"$f":"IF(ISERROR(VLOOKUP(C324,'Capacidad Financiera'!$B$12:$X$62720,2,0)),\"\",VLOOKUP(C324,'Capacidad Financiera'!$B$12:$X$3580,2,0))","v":0},null,{"$f":"IF(OR(D324=\"\",E324=\"\"),\"\",IF(AND(E324>0,E324<=CapTecnica1),Puntajes!$H$4,IF(AND(E324>CapTecnica1,E324<=CapTecnica2),Puntajes!$H$5,IF(E324>CapTecnica2,Puntajes!$H$6,0))))","v":""}]
[null,null,{"$f":"+'Capacidad Financiera'!B328","v":""},{"$f":"IF(ISERROR(VLOOKUP(C325,'Capacidad Financiera'!$B$12:$X$62720,2,0)),\"\",VLOOKUP(C325,'Capacidad Financiera'!$B$12:$X$3580,2,0))","v":0},null,{"$f":"IF(OR(D325=\"\",E325=\"\"),\"\",IF(AND(E325>0,E325<=CapTecnica1),Puntajes!$H$4,IF(AND(E325>CapTecnica1,E325<=CapTecnica2),Puntajes!$H$5,IF(E325>CapTecnica2,Puntajes!$H$6,0))))","v":""}]
[null,null,{"$f":"+'Capacidad Financiera'!B329","v":""},{"$f":"IF(ISERROR(VLOOKUP(C326,'Capacidad Financiera'!$B$12:$X$62720,2,0)),\"\",VLOOKUP(C326,'Capacidad Financiera'!$B$12:$X$3580,2,0))","v":0},null,{"$f":"IF(OR(D326=\"\",E326=\"\"),\"\",IF(AND(E326>0,E326<=CapTecnica1),Puntajes!$H$4,IF(AND(E326>CapTecnica1,E326<=CapTecnica2),Puntajes!$H$5,IF(E326>CapTecnica2,Puntajes!$H$6,0))))","v":""}]
[null,null,{"$f":"+'Capacidad Financiera'!B330","v":""},{"$f":"IF(ISERROR(VLOOKUP(C327,'Capacidad Financiera'!$B$12:$X$62720,2,0)),\"\",VLOOKUP(C327,'Capacidad Financiera'!$B$12:$X$3580,2,0))","v":0},null,{"$f":"IF(OR(D327=\"\",E327=\"\"),\"\",IF(AND(E327>0,E327<=CapTecnica1),Puntajes!$H$4,IF(AND(E327>CapTecnica1,E327<=CapTecnica2),Puntajes!$H$5,IF(E327>CapTecnica2,Puntajes!$H$6,0))))","v":""}]
[null,null,30,{"$f":"IF(ISERROR(VLOOKUP(C328,'Capacidad Financiera'!$B$12:$X$62720,2,0)),\"\",VLOOKUP(C328,'Capacidad Financiera'!$B$12:$X$3580,2,0))","v":"CONSORCIO MP - ML"},null,{"$f":"IF(C329=\"\",IF(E328=\"\",\"\",IF(AND(E328>0,E328<=CapTecnica1),Puntajes!$H$4,IF(AND(E328>CapTecnica1,E328<=CapTecnica2),Puntajes!$H$5,IF(E328>CapTecnica2,Puntajes!$H$6,0)))),\"\")","v":""}]
[null,null,{"$f":"+'Capacidad Financiera'!B332","v":30.1},{"$f":"IF(ISERROR(VLOOKUP(C329,'Capacidad Financiera'!$B$12:$X$62720,2,0)),\"\",VLOOKUP(C329,'Capacidad Financiera'!$B$12:$X$3580,2,0))","v":"CONSTRUCTORA MP S.A."},2,{"$f":"IF(OR(D329=\"\",E329=\"\"),\"\",IF(AND(E329>0,E329<=CapTecnica1),Puntajes!$H$4,IF(AND(E329>CapTecnica1,E329<=CapTecnica2),Puntajes!$H$5,IF(E329>CapTecnica2,Puntajes!$H$6,0))))","v":20}]
[null,null,{"$f":"+'Capacidad Financiera'!B333","v":30.200000000000003},{"$f":"IF(ISERROR(VLOOKUP(C330,'Capacidad Financiera'!$B$12:$X$62720,2,0)),\"\",VLOOKUP(C330,'Capacidad Financiera'!$B$12:$X$3580,2,0))","v":"ML INGENIEROS S.A."},2,{"$f":"IF(OR(D330=\"\",E330=\"\"),\"\",IF(AND(E330>0,E330<=CapTecnica1),Puntajes!$H$4,IF(AND(E330>CapTecnica1,E330<=CapTecnica2),Puntajes!$H$5,IF(E330>CapTecnica2,Puntajes!$H$6,0))))","v":20}]
[null,null,{"$f":"+'Capacidad Financiera'!B334","v":""},{"$f":"IF(ISERROR(VLOOKUP(C331,'Capacidad Financiera'!$B$12:$X$62720,2,0)),\"\",VLOOKUP(C331,'Capacidad Financiera'!$B$12:$X$3580,2,0))","v":0},null,{"$f":"IF(OR(D331=\"\",E331=\"\"),\"\",IF(AND(E331>0,E331<=CapTecnica1),Puntajes!$H$4,IF(AND(E331>CapTecnica1,E331<=CapTecnica2),Puntajes!$H$5,IF(E331>CapTecnica2,Puntajes!$H$6,0))))","v":""}]
[null,null,{"$f":"+'Capacidad Financiera'!B335","v":""},{"$f":"IF(ISERROR(VLOOKUP(C332,'Capacidad Financiera'!$B$12:$X$62720,2,0)),\"\",VLOOKUP(C332,'Capacidad Financiera'!$B$12:$X$3580,2,0))","v":0},null,{"$f":"IF(OR(D332=\"\",E332=\"\"),\"\",IF(AND(E332>0,E332<=CapTecnica1),Puntajes!$H$4,IF(AND(E332>CapTecnica1,E332<=CapTecnica2),Puntajes!$H$5,IF(E332>CapTecnica2,Puntajes!$H$6,0))))","v":""}]
[null,null,{"$f":"+'Capacidad Financiera'!B336","v":""},{"$f":"IF(ISERROR(VLOOKUP(C333,'Capacidad Financiera'!$B$12:$X$62720,2,0)),\"\",VLOOKUP(C333,'Capacidad Financiera'!$B$12:$X$3580,2,0))","v":0},null,{"$f":"IF(OR(D333=\"\",E333=\"\"),\"\",IF(AND(E333>0,E333<=CapTecnica1),Puntajes!$H$4,IF(AND(E333>CapTecnica1,E333<=CapTecnica2),Puntajes!$H$5,IF(E333>CapTecnica2,Puntajes!$H$6,0))))","v":""}]
[null,null,{"$f":"+'Capacidad Financiera'!B337","v":""},{"$f":"IF(ISERROR(VLOOKUP(C334,'Capacidad Financiera'!$B$12:$X$62720,2,0)),\"\",VLOOKUP(C334,'Capacidad Financiera'!$B$12:$X$3580,2,0))","v":0},null,{"$f":"IF(OR(D334=\"\",E334=\"\"),\"\",IF(AND(E334>0,E334<=CapTecnica1),Puntajes!$H$4,IF(AND(E334>CapTecnica1,E334<=CapTecnica2),Puntajes!$H$5,IF(E334>CapTecnica2,Puntajes!$H$6,0))))","v":""}]
[null,null,{"$f":"+'Capacidad Financiera'!B338","v":""},{"$f":"IF(ISERROR(VLOOKUP(C335,'Capacidad Financiera'!$B$12:$X$62720,2,0)),\"\",VLOOKUP(C335,'Capacidad Financiera'!$B$12:$X$3580,2,0))","v":0},null,{"$f":"IF(OR(D335=\"\",E335=\"\"),\"\",IF(AND(E335>0,E335<=CapTecnica1),Puntajes!$H$4,IF(AND(E335>CapTecnica1,E335<=CapTecnica2),Puntajes!$H$5,IF(E335>CapTecnica2,Puntajes!$H$6,0))))","v":""}]
[null,null,{"$f":"+'Capacidad Financiera'!B339","v":""},{"$f":"IF(ISERROR(VLOOKUP(C336,'Capacidad Financiera'!$B$12:$X$62720,2,0)),\"\",VLOOKUP(C336,'Capacidad Financiera'!$B$12:$X$3580,2,0))","v":0},null,{"$f":"IF(OR(D336=\"\",E336=\"\"),\"\",IF(AND(E336>0,E336<=CapTecnica1),Puntajes!$H$4,IF(AND(E336>CapTecnica1,E336<=CapTecnica2),Puntajes!$H$5,IF(E336>CapTecnica2,Puntajes!$H$6,0))))","v":""}]
[null,null,{"$f":"+'Capacidad Financiera'!B340","v":""},{"$f":"IF(ISERROR(VLOOKUP(C337,'Capacidad Financiera'!$B$12:$X$62720,2,0)),\"\",VLOOKUP(C337,'Capacidad Financiera'!$B$12:$X$3580,2,0))","v":0},null,{"$f":"IF(OR(D337=\"\",E337=\"\"),\"\",IF(AND(E337>0,E337<=CapTecnica1),Puntajes!$H$4,IF(AND(E337>CapTecnica1,E337<=CapTecnica2),Puntajes!$H$5,IF(E337>CapTecnica2,Puntajes!$H$6,0))))","v":""}]
[null,null,{"$f":"+'Capacidad Financiera'!B341","v":""},{"$f":"IF(ISERROR(VLOOKUP(C338,'Capacidad Financiera'!$B$12:$X$62720,2,0)),\"\",VLOOKUP(C338,'Capacidad Financiera'!$B$12:$X$3580,2,0))","v":0},null,{"$f":"IF(OR(D338=\"\",E338=\"\"),\"\",IF(AND(E338>0,E338<=CapTecnica1),Puntajes!$H$4,IF(AND(E338>CapTecnica1,E338<=CapTecnica2),Puntajes!$H$5,IF(E338>CapTecnica2,Puntajes!$H$6,0))))","v":""}]
[null,null,31,{"$f":"IF(ISERROR(VLOOKUP(C339,'Capacidad Financiera'!$B$12:$X$62720,2,0)),\"\",VLOOKUP(C339,'Capacidad Financiera'!$B$12:$X$3580,2,0))","v":"LATINCO S.A."},null,{"$f":"IF(C340=\"\",IF(E339=\"\",\"\",IF(AND(E339>0,E339<=CapTecnica1),Puntajes!$H$4,IF(AND(E339>CapTecnica1,E339<=CapTecnica2),Puntajes!$H$5,IF(E339>CapTecnica2,Puntajes!$H$6,0)))),\"\")","v":""}]
[null,null,{"$f":"+'Capacidad Financiera'!B343","v":31.1},{"$f":"IF(ISERROR(VLOOKUP(C340,'Capacidad Financiera'!$B$12:$X$62720,2,0)),\"\",VLOOKUP(C340,'Capacidad Financiera'!$B$12:$X$3580,2,0))","v":"LATINCO S.A."},13,{"$f":"IF(OR(D340=\"\",E340=\"\"),\"\",IF(AND(E340>0,E340<=CapTecnica1),Puntajes!$H$4,IF(AND(E340>CapTecnica1,E340<=CapTecnica2),Puntajes!$H$5,IF(E340>CapTecnica2,Puntajes!$H$6,0))))","v":40}]
[null,null,{"$f":"+'Capacidad Financiera'!B344","v":""},{"$f":"IF(ISERROR(VLOOKUP(C341,'Capacidad Financiera'!$B$12:$X$62720,2,0)),\"\",VLOOKUP(C341,'Capacidad Financiera'!$B$12:$X$3580,2,0))","v":0},null,{"$f":"IF(OR(D341=\"\",E341=\"\"),\"\",IF(AND(E341>0,E341<=CapTecnica1),Puntajes!$H$4,IF(AND(E341>CapTecnica1,E341<=CapTecnica2),Puntajes!$H$5,IF(E341>CapTecnica2,Puntajes!$H$6,0))))","v":""}]
[null,null,{"$f":"+'Capacidad Financiera'!B345","v":""},{"$f":"IF(ISERROR(VLOOKUP(C342,'Capacidad Financiera'!$B$12:$X$62720,2,0)),\"\",VLOOKUP(C342,'Capacidad Financiera'!$B$12:$X$3580,2,0))","v":0},null,{"$f":"IF(OR(D342=\"\",E342=\"\"),\"\",IF(AND(E342>0,E342<=CapTecnica1),Puntajes!$H$4,IF(AND(E342>CapTecnica1,E342<=CapTecnica2),Puntajes!$H$5,IF(E342>CapTecnica2,Puntajes!$H$6,0))))","v":""}]
[null,null,{"$f":"+'Capacidad Financiera'!B346","v":""},{"$f":"IF(ISERROR(VLOOKUP(C343,'Capacidad Financiera'!$B$12:$X$62720,2,0)),\"\",VLOOKUP(C343,'Capacidad Financiera'!$B$12:$X$3580,2,0))","v":0},null,{"$f":"IF(OR(D343=\"\",E343=\"\"),\"\",IF(AND(E343>0,E343<=CapTecnica1),Puntajes!$H$4,IF(AND(E343>CapTecnica1,E343<=CapTecnica2),Puntajes!$H$5,IF(E343>CapTecnica2,Puntajes!$H$6,0))))","v":""}]
[null,null,{"$f":"+'Capacidad Financiera'!B347","v":""},{"$f":"IF(ISERROR(VLOOKUP(C344,'Capacidad Financiera'!$B$12:$X$62720,2,0)),\"\",VLOOKUP(C344,'Capacidad Financiera'!$B$12:$X$3580,2,0))","v":0},null,{"$f":"IF(OR(D344=\"\",E344=\"\"),\"\",IF(AND(E344>0,E344<=CapTecnica1),Puntajes!$H$4,IF(AND(E344>CapTecnica1,E344<=CapTecnica2),Puntajes!$H$5,IF(E344>CapTecnica2,Puntajes!$H$6,0))))","v":""}]
[null,null,{"$f":"+'Capacidad Financiera'!B348","v":""},{"$f":"IF(ISERROR(VLOOKUP(C345,'Capacidad Financiera'!$B$12:$X$62720,2,0)),\"\",VLOOKUP(C345,'Capacidad Financiera'!$B$12:$X$3580,2,0))","v":0},null,{"$f":"IF(OR(D345=\"\",E345=\"\"),\"\",IF(AND(E345>0,E345<=CapTecnica1),Puntajes!$H$4,IF(AND(E345>CapTecnica1,E345<=CapTecnica2),Puntajes!$H$5,IF(E345>CapTecnica2,Puntajes!$H$6,0))))","v":""}]
[null,null,{"$f":"+'Capacidad Financiera'!B349","v":""},{"$f":"IF(ISERROR(VLOOKUP(C346,'Capacidad Financiera'!$B$12:$X$62720,2,0)),\"\",VLOOKUP(C346,'Capacidad Financiera'!$B$12:$X$3580,2,0))","v":0},null,{"$f":"IF(OR(D346=\"\",E346=\"\"),\"\",IF(AND(E346>0,E346<=CapTecnica1),Puntajes!$H$4,IF(AND(E346>CapTecnica1,E346<=CapTecnica2),Puntajes!$H$5,IF(E346>CapTecnica2,Puntajes!$H$6,0))))","v":""}]
[null,null,{"$f":"+'Capacidad Financiera'!B350","v":""},{"$f":"IF(ISERROR(VLOOKUP(C347,'Capacidad Financiera'!$B$12:$X$62720,2,0)),\"\",VLOOKUP(C347,'Capacidad Financiera'!$B$12:$X$3580,2,0))","v":0},null,{"$f":"IF(OR(D347=\"\",E347=\"\"),\"\",IF(AND(E347>0,E347<=CapTecnica1),Puntajes!$H$4,IF(AND(E347>CapTecnica1,E347<=CapTecnica2),Puntajes!$H$5,IF(E347>CapTecnica2,Puntajes!$H$6,0))))","v":""}]
[null,null,{"$f":"+'Capacidad Financiera'!B351","v":""},{"$f":"IF(ISERROR(VLOOKUP(C348,'Capacidad Financiera'!$B$12:$X$62720,2,0)),\"\",VLOOKUP(C348,'Capacidad Financiera'!$B$12:$X$3580,2,0))","v":0},null,{"$f":"IF(OR(D348=\"\",E348=\"\"),\"\",IF(AND(E348>0,E348<=CapTecnica1),Puntajes!$H$4,IF(AND(E348>CapTecnica1,E348<=CapTecnica2),Puntajes!$H$5,IF(E348>CapTecnica2,Puntajes!$H$6,0))))","v":""}]
[null,null,{"$f":"+'Capacidad Financiera'!B352","v":""},{"$f":"IF(ISERROR(VLOOKUP(C349,'Capacidad Financiera'!$B$12:$X$62720,2,0)),\"\",VLOOKUP(C349,'Capacidad Financiera'!$B$12:$X$3580,2,0))","v":0},null,{"$f":"IF(OR(D349=\"\",E349=\"\"),\"\",IF(AND(E349>0,E349<=CapTecnica1),Puntajes!$H$4,IF(AND(E349>CapTecnica1,E349<=CapTecnica2),Puntajes!$H$5,IF(E349>CapTecnica2,Puntajes!$H$6,0))))","v":""}]
[null,null,32,{"$f":"IF(ISERROR(VLOOKUP(C350,'Capacidad Financiera'!$B$12:$X$62720,2,0)),\"\",VLOOKUP(C350,'Capacidad Financiera'!$B$12:$X$3580,2,0))","v":"ICEIN S.A.S."},null,{"$f":"IF(C351=\"\",IF(E350=\"\",\"\",IF(AND(E350>0,E350<=CapTecnica1),Puntajes!$H$4,IF(AND(E350>CapTecnica1,E350<=CapTecnica2),Puntajes!$H$5,IF(E350>CapTecnica2,Puntajes!$H$6,0)))),\"\")","v":""}]
[null,null,{"$f":"+'Capacidad Financiera'!B354","v":32.1},{"$f":"IF(ISERROR(VLOOKUP(C351,'Capacidad Financiera'!$B$12:$X$62720,2,0)),\"\",VLOOKUP(C351,'Capacidad Financiera'!$B$12:$X$3580,2,0))","v":"ICEIN S.A.S."},2,{"$f":"IF(OR(D351=\"\",E351=\"\"),\"\",IF(AND(E351>0,E351<=CapTecnica1),Puntajes!$H$4,IF(AND(E351>CapTecnica1,E351<=CapTecnica2),Puntajes!$H$5,IF(E351>CapTecnica2,Puntajes!$H$6,0))))","v":20}]
[null,null,{"$f":"+'Capacidad Financiera'!B355","v":""},{"$f":"IF(ISERROR(VLOOKUP(C352,'Capacidad Financiera'!$B$12:$X$62720,2,0)),\"\",VLOOKUP(C352,'Capacidad Financiera'!$B$12:$X$3580,2,0))","v":0},null,{"$f":"IF(OR(D352=\"\",E352=\"\"),\"\",IF(AND(E352>0,E352<=CapTecnica1),Puntajes!$H$4,IF(AND(E352>CapTecnica1,E352<=CapTecnica2),Puntajes!$H$5,IF(E352>CapTecnica2,Puntajes!$H$6,0))))","v":""}]
[null,null,{"$f":"+'Capacidad Financiera'!B356","v":""},{"$f":"IF(ISERROR(VLOOKUP(C353,'Capacidad Financiera'!$B$12:$X$62720,2,0)),\"\",VLOOKUP(C353,'Capacidad Financiera'!$B$12:$X$3580,2,0))","v":0},null,{"$f":"IF(OR(D353=\"\",E353=\"\"),\"\",IF(AND(E353>0,E353<=CapTecnica1),Puntajes!$H$4,IF(AND(E353>CapTecnica1,E353<=CapTecnica2),Puntajes!$H$5,IF(E353>CapTecnica2,Puntajes!$H$6,0))))","v":""}]
[null,null,{"$f":"+'Capacidad Financiera'!B357","v":""},{"$f":"IF(ISERROR(VLOOKUP(C354,'Capacidad Financiera'!$B$12:$X$62720,2,0)),\"\",VLOOKUP(C354,'Capacidad Financiera'!$B$12:$X$3580,2,0))","v":0},null,{"$f":"IF(OR(D354=\"\",E354=\"\"),\"\",IF(AND(E354>0,E354<=CapTecnica1),Puntajes!$H$4,IF(AND(E354>CapTecnica1,E354<=CapTecnica2),Puntajes!$H$5,IF(E354>CapTecnica2,Puntajes!$H$6,0))))","v":""}]
[null,null,{"$f":"+'Capacidad Financiera'!B358","v":""},{"$f":"IF(ISERROR(VLOOKUP(C355,'Capacidad Financiera'!$B$12:$X$62720,2,0)),\"\",VLOOKUP(C355,'Capacidad Financiera'!$B$12:$X$3580,2,0))","v":0},null,{"$f":"IF(OR(D355=\"\",E355=\"\"),\"\",IF(AND(E355>0,E355<=CapTecnica1),Puntajes!$H$4,IF(AND(E355>CapTecnica1,E355<=CapTecnica2),Puntajes!$H$5,IF(E355>CapTecnica2,Puntajes!$H$6,0))))","v":""}]
[null,null,{"$f":"+'Capacidad Financiera'!B359","v":""},{"$f":"IF(ISERROR(VLOOKUP(C356,'Capacidad Financiera'!$B$12:$X$62720,2,0)),\"\",VLOOKUP(C356,'Capacidad Financiera'!$B$12:$X$3580,2,0))","v":0},null,{"$f":"IF(OR(D356=\"\",E356=\"\"),\"\",IF(AND(E356>0,E356<=CapTecnica1),Puntajes!$H$4,IF(AND(E356>CapTecnica1,E356<=CapTecnica2),Puntajes!$H$5,IF(E356>CapTecnica2,Puntajes!$H$6,0))))","v":""}]
[null,null,{"$f":"+'Capacidad Financiera'!B360","v":""},{"$f":"IF(ISERROR(VLOOKUP(C357,'Capacidad Financiera'!$B$12:$X$62720,2,0)),\"\",VLOOKUP(C357,'Capacidad Financiera'!$B$12:$X$3580,2,0))","v":0},null,{"$f":"IF(OR(D357=\"\",E357=\"\"),\"\",IF(AND(E357>0,E357<=CapTecnica1),Puntajes!$H$4,IF(AND(E357>CapTecnica1,E357<=CapTecnica2),Puntajes!$H$5,IF(E357>CapTecnica2,Puntajes!$H$6,0))))","v":""}]
[null,null,{"$f":"+'Capacidad Financiera'!B361","v":""},{"$f":"IF(ISERROR(VLOOKUP(C358,'Capacidad Financiera'!$B$12:$X$62720,2,0)),\"\",VLOOKUP(C358,'Capacidad Financiera'!$B$12:$X$3580,2,0))","v":0},null,{"$f":"IF(OR(D358=\"\",E358=\"\"),\"\",IF(AND(E358>0,E358<=CapTecnica1),Puntajes!$H$4,IF(AND(E358>CapTecnica1,E358<=CapTecnica2),Puntajes!$H$5,IF(E358>CapTecnica2,Puntajes!$H$6,0))))","v":""}]
[null,null,{"$f":"+'Capacidad Financiera'!B362","v":""},{"$f":"IF(ISERROR(VLOOKUP(C359,'Capacidad Financiera'!$B$12:$X$62720,2,0)),\"\",VLOOKUP(C359,'Capacidad Financiera'!$B$12:$X$3580,2,0))","v":0},null,{"$f":"IF(OR(D359=\"\",E359=\"\"),\"\",IF(AND(E359>0,E359<=CapTecnica1),Puntajes!$H$4,IF(AND(E359>CapTecnica1,E359<=CapTecnica2),Puntajes!$H$5,IF(E359>CapTecnica2,Puntajes!$H$6,0))))","v":""}]
[null,null,{"$f":"+'Capacidad Financiera'!B363","v":""},{"$f":"IF(ISERROR(VLOOKUP(C360,'Capacidad Financiera'!$B$12:$X$62720,2,0)),\"\",VLOOKUP(C360,'Capacidad Financiera'!$B$12:$X$3580,2,0))","v":0},null,{"$f":"IF(OR(D360=\"\",E360=\"\"),\"\",IF(AND(E360>0,E360<=CapTecnica1),Puntajes!$H$4,IF(AND(E360>CapTecnica1,E360<=CapTecnica2),Puntajes!$H$5,IF(E360>CapTecnica2,Puntajes!$H$6,0))))","v":""}]
[null,null,33,{"$f":"IF(ISERROR(VLOOKUP(C361,'Capacidad Financiera'!$B$12:$X$62720,2,0)),\"\",VLOOKUP(C361,'Capacidad Financiera'!$B$12:$X$3580,2,0))","v":"CONSTRUCCIONES E INVERSIONES BETA S.A.S."},null,{"$f":"IF(C362=\"\",IF(E361=\"\",\"\",IF(AND(E361>0,E361<=CapTecnica1),Puntajes!$H$4,IF(AND(E361>CapTecnica1,E361<=CapTecnica2),Puntajes!$H$5,IF(E361>CapTecnica2,Puntajes!$H$6,0)))),\"\")","v":""}]
[null,null,{"$f":"+'Capacidad Financiera'!B365","v":33.1},{"$f":"IF(ISERROR(VLOOKUP(C362,'Capacidad Financiera'!$B$12:$X$62720,2,0)),\"\",VLOOKUP(C362,'Capacidad Financiera'!$B$12:$X$3580,2,0))","v":"CONSTRUCCIONES E INVERSIONES BETA S.A.S."},32,{"$f":"IF(OR(D362=\"\",E362=\"\"),\"\",IF(AND(E362>0,E362<=CapTecnica1),Puntajes!$H$4,IF(AND(E362>CapTecnica1,E362<=CapTecnica2),Puntajes!$H$5,IF(E362>CapTecnica2,Puntajes!$H$6,0))))","v":40}]
[null,null,{"$f":"+'Capacidad Financiera'!B366","v":""},{"$f":"IF(ISERROR(VLOOKUP(C363,'Capacidad Financiera'!$B$12:$X$62720,2,0)),\"\",VLOOKUP(C363,'Capacidad Financiera'!$B$12:$X$3580,2,0))","v":0},null,{"$f":"IF(OR(D363=\"\",E363=\"\"),\"\",IF(AND(E363>0,E363<=CapTecnica1),Puntajes!$H$4,IF(AND(E363>CapTecnica1,E363<=CapTecnica2),Puntajes!$H$5,IF(E363>CapTecnica2,Puntajes!$H$6,0))))","v":""}]
[null,null,{"$f":"+'Capacidad Financiera'!B367","v":""},{"$f":"IF(ISERROR(VLOOKUP(C364,'Capacidad Financiera'!$B$12:$X$62720,2,0)),\"\",VLOOKUP(C364,'Capacidad Financiera'!$B$12:$X$3580,2,0))","v":0},null,{"$f":"IF(OR(D364=\"\",E364=\"\"),\"\",IF(AND(E364>0,E364<=CapTecnica1),Puntajes!$H$4,IF(AND(E364>CapTecnica1,E364<=CapTecnica2),Puntajes!$H$5,IF(E364>CapTecnica2,Puntajes!$H$6,0))))","v":""}]
[null,null,{"$f":"+'Capacidad Financiera'!B368","v":""},{"$f":"IF(ISERROR(VLOOKUP(C365,'Capacidad Financiera'!$B$12:$X$62720,2,0)),\"\",VLOOKUP(C365,'Capacidad Financiera'!$B$12:$X$3580,2,0))","v":0},null,{"$f":"IF(OR(D365=\"\",E365=\"\"),\"\",IF(AND(E365>0,E365<=CapTecnica1),Puntajes!$H$4,IF(AND(E365>CapTecnica1,E365<=CapTecnica2),Puntajes!$H$5,IF(E365>CapTecnica2,Puntajes!$H$6,0))))","v":""}]
[null,null,{"$f":"+'Capacidad Financiera'!B369","v":""},{"$f":"IF(ISERROR(VLOOKUP(C366,'Capacidad Financiera'!$B$12:$X$62720,2,0)),\"\",VLOOKUP(C366,'Capacidad Financiera'!$B$12:$X$3580,2,0))","v":0},null,{"$f":"IF(OR(D366=\"\",E366=\"\"),\"\",IF(AND(E366>0,E366<=CapTecnica1),Puntajes!$H$4,IF(AND(E366>CapTecnica1,E366<=CapTecnica2),Puntajes!$H$5,IF(E366>CapTecnica2,Puntajes!$H$6,0))))","v":""}]
[null,null,{"$f":"+'Capacidad Financiera'!B370","v":""},{"$f":"IF(ISERROR(VLOOKUP(C367,'Capacidad Financiera'!$B$12:$X$62720,2,0)),\"\",VLOOKUP(C367,'Capacidad Financiera'!$B$12:$X$3580,2,0))","v":0},null,{"$f":"IF(OR(D367=\"\",E367=\"\"),\"\",IF(AND(E367>0,E367<=CapTecnica1),Puntajes!$H$4,IF(AND(E367>CapTecnica1,E367<=CapTecnica2),Puntajes!$H$5,IF(E367>CapTecnica2,Puntajes!$H$6,0))))","v":""}]
[null,null,{"$f":"+'Capacidad Financiera'!B371","v":""},{"$f":"IF(ISERROR(VLOOKUP(C368,'Capacidad Financiera'!$B$12:$X$62720,2,0)),\"\",VLOOKUP(C368,'Capacidad Financiera'!$B$12:$X$3580,2,0))","v":0},null,{"$f":"IF(OR(D368=\"\",E368=\"\"),\"\",IF(AND(E368>0,E368<=CapTecnica1),Puntajes!$H$4,IF(AND(E368>CapTecnica1,E368<=CapTecnica2),Puntajes!$H$5,IF(E368>CapTecnica2,Puntajes!$H$6,0))))","v":""}]
[null,null,{"$f":"+'Capacidad Financiera'!B372","v":""},{"$f":"IF(ISERROR(VLOOKUP(C369,'Capacidad Financiera'!$B$12:$X$62720,2,0)),\"\",VLOOKUP(C369,'Capacidad Financiera'!$B$12:$X$3580,2,0))","v":0},null,{"$f":"IF(OR(D369=\"\",E369=\"\"),\"\",IF(AND(E369>0,E369<=CapTecnica1),Puntajes!$H$4,IF(AND(E369>CapTecnica1,E369<=CapTecnica2),Puntajes!$H$5,IF(E369>CapTecnica2,Puntajes!$H$6,0))))","v":""}]
[null,null,{"$f":"+'Capacidad Financiera'!B373","v":""},{"$f":"IF(ISERROR(VLOOKUP(C370,'Capacidad Financiera'!$B$12:$X$62720,2,0)),\"\",VLOOKUP(C370,'Capacidad Financiera'!$B$12:$X$3580,2,0))","v":0},null,{"$f":"IF(OR(D370=\"\",E370=\"\"),\"\",IF(AND(E370>0,E370<=CapTecnica1),Puntajes!$H$4,IF(AND(E370>CapTecnica1,E370<=CapTecnica2),Puntajes!$H$5,IF(E370>CapTecnica2,Puntajes!$H$6,0))))","v":""}]
[null,null,{"$f":"+'Capacidad Financiera'!B374","v":""},{"$f":"IF(ISERROR(VLOOKUP(C371,'Capacidad Financiera'!$B$12:$X$62720,2,0)),\"\",VLOOKUP(C371,'Capacidad Financiera'!$B$12:$X$3580,2,0))","v":0},null,{"$f":"IF(OR(D371=\"\",E371=\"\"),\"\",IF(AND(E371>0,E371<=CapTecnica1),Puntajes!$H$4,IF(AND(E371>CapTecnica1,E371<=CapTecnica2),Puntajes!$H$5,IF(E371>CapTecnica2,Puntajes!$H$6,0))))","v":""}]
[null,null,34,{"$f":"IF(ISERROR(VLOOKUP(C372,'Capacidad Financiera'!$B$12:$X$62720,2,0)),\"\",VLOOKUP(C372,'Capacidad Financiera'!$B$12:$X$3580,2,0))","v":"CI GRODCO S EN CA INGENIEROS CIVILES"},null,{"$f":"IF(C373=\"\",IF(E372=\"\",\"\",IF(AND(E372>0,E372<=CapTecnica1),Puntajes!$H$4,IF(AND(E372>CapTecnica1,E372<=CapTecnica2),Puntajes!$H$5,IF(E372>CapTecnica2,Puntajes!$H$6,0)))),\"\")","v":""}]
[null,null,{"$f":"+'Capacidad Financiera'!B376","v":34.1},{"$f":"IF(ISERROR(VLOOKUP(C373,'Capacidad Financiera'!$B$12:$X$62720,2,0)),\"\",VLOOKUP(C373,'Capacidad Financiera'!$B$12:$X$3580,2,0))","v":"CI GRODCO S EN CA INGENIEROS CIVILES"},32,{"$f":"IF(OR(D373=\"\",E373=\"\"),\"\",IF(AND(E373>0,E373<=CapTecnica1),Puntajes!$H$4,IF(AND(E373>CapTecnica1,E373<=CapTecnica2),Puntajes!$H$5,IF(E373>CapTecnica2,Puntajes!$H$6,0))))","v":40}]
[null,null,{"$f":"+'Capacidad Financiera'!B377","v":""},{"$f":"IF(ISERROR(VLOOKUP(C374,'Capacidad Financiera'!$B$12:$X$62720,2,0)),\"\",VLOOKUP(C374,'Capacidad Financiera'!$B$12:$X$3580,2,0))","v":0},null,{"$f":"IF(OR(D374=\"\",E374=\"\"),\"\",IF(AND(E374>0,E374<=CapTecnica1),Puntajes!$H$4,IF(AND(E374>CapTecnica1,E374<=CapTecnica2),Puntajes!$H$5,IF(E374>CapTecnica2,Puntajes!$H$6,0))))","v":""}]
[null,null,{"$f":"+'Capacidad Financiera'!B378","v":""},{"$f":"IF(ISERROR(VLOOKUP(C375,'Capacidad Financiera'!$B$12:$X$62720,2,0)),\"\",VLOOKUP(C375,'Capacidad Financiera'!$B$12:$X$3580,2,0))","v":0},null,{"$f":"IF(OR(D375=\"\",E375=\"\"),\"\",IF(AND(E375>0,E375<=CapTecnica1),Puntajes!$H$4,IF(AND(E375>CapTecnica1,E375<=CapTecnica2),Puntajes!$H$5,IF(E375>CapTecnica2,Puntajes!$H$6,0))))","v":""}]
[null,null,{"$f":"+'Capacidad Financiera'!B379","v":""},{"$f":"IF(ISERROR(VLOOKUP(C376,'Capacidad Financiera'!$B$12:$X$62720,2,0)),\"\",VLOOKUP(C376,'Capacidad Financiera'!$B$12:$X$3580,2,0))","v":0},null,{"$f":"IF(OR(D376=\"\",E376=\"\"),\"\",IF(AND(E376>0,E376<=CapTecnica1),Puntajes!$H$4,IF(AND(E376>CapTecnica1,E376<=CapTecnica2),Puntajes!$H$5,IF(E376>CapTecnica2,Puntajes!$H$6,0))))","v":""}]
[null,null,{"$f":"+'Capacidad Financiera'!B380","v":""},{"$f":"IF(ISERROR(VLOOKUP(C377,'Capacidad Financiera'!$B$12:$X$62720,2,0)),\"\",VLOOKUP(C377,'Capacidad Financiera'!$B$12:$X$3580,2,0))","v":0},null,{"$f":"IF(OR(D377=\"\",E377=\"\"),\"\",IF(AND(E377>0,E377<=CapTecnica1),Puntajes!$H$4,IF(AND(E377>CapTecnica1,E377<=CapTecnica2),Puntajes!$H$5,IF(E377>CapTecnica2,Puntajes!$H$6,0))))","v":""}]
[null,null,{"$f":"+'Capacidad Financiera'!B381","v":""},{"$f":"IF(ISERROR(VLOOKUP(C378,'Capacidad Financiera'!$B$12:$X$62720,2,0)),\"\",VLOOKUP(C378,'Capacidad Financiera'!$B$12:$X$3580,2,0))","v":0},null,{"$f":"IF(OR(D378=\"\",E378=\"\"),\"\",IF(AND(E378>0,E378<=CapTecnica1),Puntajes!$H$4,IF(AND(E378>CapTecnica1,E378<=CapTecnica2),Puntajes!$H$5,IF(E378>CapTecnica2,Puntajes!$H$6,0))))","v":""}]
[null,null,{"$f":"+'Capacidad Financiera'!B382","v":""},{"$f":"IF(ISERROR(VLOOKUP(C379,'Capacidad Financiera'!$B$12:$X$62720,2,0)),\"\",VLOOKUP(C379,'Capacidad Financiera'!$B$12:$X$3580,2,0))","v":0},null,{"$f":"IF(OR(D379=\"\",E379=\"\"),\"\",IF(AND(E379>0,E379<=CapTecnica1),Puntajes!$H$4,IF(AND(E379>CapTecnica1,E379<=CapTecnica2),Puntajes!$H$5,IF(E379>CapTecnica2,Puntajes!$H$6,0))))","v":""}]
[null,null,{"$f":"+'Capacidad Financiera'!B383","v":""},{"$f":"IF(ISERROR(VLOOKUP(C380,'Capacidad Financiera'!$B$12:$X$62720,2,0)),\"\",VLOOKUP(C380,'Capacidad Financiera'!$B$12:$X$3580,2,0))","v":0},null,{"$f":"IF(OR(D380=\"\",E380=\"\"),\"\",IF(AND(E380>0,E380<=CapTecnica1),Puntajes!$H$4,IF(AND(E380>CapTecnica1,E380<=CapTecnica2),Puntajes!$H$5,IF(E380>CapTecnica2,Puntajes!$H$6,0))))","v":""}]
[null,null,{"$f":"+'Capacidad Financiera'!B384","v":""},{"$f":"IF(ISERROR(VLOOKUP(C381,'Capacidad Financiera'!$B$12:$X$62720,2,0)),\"\",VLOOKUP(C381,'Capacidad Financiera'!$B$12:$X$3580,2,0))","v":0},null,{"$f":"IF(OR(D381=\"\",E381=\"\"),\"\",IF(AND(E381>0,E381<=CapTecnica1),Puntajes!$H$4,IF(AND(E381>CapTecnica1,E381<=CapTecnica2),Puntajes!$H$5,IF(E381>CapTecnica2,Puntajes!$H$6,0))))","v":""}]
[null,null,{"$f":"+'Capacidad Financiera'!B385","v":""},{"$f":"IF(ISERROR(VLOOKUP(C382,'Capacidad Financiera'!$B$12:$X$62720,2,0)),\"\",VLOOKUP(C382,'Capacidad Financiera'!$B$12:$X$3580,2,0))","v":0},null,{"$f":"IF(OR(D382=\"\",E382=\"\"),\"\",IF(AND(E382>0,E382<=CapTecnica1),Puntajes!$H$4,IF(AND(E382>CapTecnica1,E382<=CapTecnica2),Puntajes!$H$5,IF(E382>CapTecnica2,Puntajes!$H$6,0))))","v":""}]
[null,null,35,{"$f":"IF(ISERROR(VLOOKUP(C383,'Capacidad Financiera'!$B$12:$X$62720,2,0)),\"\",VLOOKUP(C383,'Capacidad Financiera'!$B$12:$X$3580,2,0))","v":"MUVEK S.A.S"},null,{"$f":"IF(C384=\"\",IF(E383=\"\",\"\",IF(AND(E383>0,E383<=CapTecnica1),Puntajes!$H$4,IF(AND(E383>CapTecnica1,E383<=CapTecnica2),Puntajes!$H$5,IF(E383>CapTecnica2,Puntajes!$H$6,0)))),\"\")","v":""}]
[null,null,{"$f":"+'Capacidad Financiera'!B387","v":35.1},{"$f":"IF(ISERROR(VLOOKUP(C384,'Capacidad Financiera'!$B$12:$X$62720,2,0)),\"\",VLOOKUP(C384,'Capacidad Financiera'!$B$12:$X$3580,2,0))","v":"MUVEK S.A.S"},2,{"$f":"IF(OR(D384=\"\",E384=\"\"),\"\",IF(AND(E384>0,E384<=CapTecnica1),Puntajes!$H$4,IF(AND(E384>CapTecnica1,E384<=CapTecnica2),Puntajes!$H$5,IF(E384>CapTecnica2,Puntajes!$H$6,0))))","v":20}]
[null,null,{"$f":"+'Capacidad Financiera'!B388","v":""},{"$f":"IF(ISERROR(VLOOKUP(C385,'Capacidad Financiera'!$B$12:$X$62720,2,0)),\"\",VLOOKUP(C385,'Capacidad Financiera'!$B$12:$X$3580,2,0))","v":0},null,{"$f":"IF(OR(D385=\"\",E385=\"\"),\"\",IF(AND(E385>0,E385<=CapTecnica1),Puntajes!$H$4,IF(AND(E385>CapTecnica1,E385<=CapTecnica2),Puntajes!$H$5,IF(E385>CapTecnica2,Puntajes!$H$6,0))))","v":""}]
[null,null,{"$f":"+'Capacidad Financiera'!B389","v":""},{"$f":"IF(ISERROR(VLOOKUP(C386,'Capacidad Financiera'!$B$12:$X$62720,2,0)),\"\",VLOOKUP(C386,'Capacidad Financiera'!$B$12:$X$3580,2,0))","v":0},null,{"$f":"IF(OR(D386=\"\",E386=\"\"),\"\",IF(AND(E386>0,E386<=CapTecnica1),Puntajes!$H$4,IF(AND(E386>CapTecnica1,E386<=CapTecnica2),Puntajes!$H$5,IF(E386>CapTecnica2,Puntajes!$H$6,0))))","v":""}]
[null,null,{"$f":"+'Capacidad Financiera'!B390","v":""},{"$f":"IF(ISERROR(VLOOKUP(C387,'Capacidad Financiera'!$B$12:$X$62720,2,0)),\"\",VLOOKUP(C387,'Capacidad Financiera'!$B$12:$X$3580,2,0))","v":0},null,{"$f":"IF(OR(D387=\"\",E387=\"\"),\"\",IF(AND(E387>0,E387<=CapTecnica1),Puntajes!$H$4,IF(AND(E387>CapTecnica1,E387<=CapTecnica2),Puntajes!$H$5,IF(E387>CapTecnica2,Puntajes!$H$6,0))))","v":""}]
[null,null,{"$f":"+'Capacidad Financiera'!B391","v":""},{"$f":"IF(ISERROR(VLOOKUP(C388,'Capacidad Financiera'!$B$12:$X$62720,2,0)),\"\",VLOOKUP(C388,'Capacidad Financiera'!$B$12:$X$3580,2,0))","v":0},null,{"$f":"IF(OR(D388=\"\",E388=\"\"),\"\",IF(AND(E388>0,E388<=CapTecnica1),Puntajes!$H$4,IF(AND(E388>CapTecnica1,E388<=CapTecnica2),Puntajes!$H$5,IF(E388>CapTecnica2,Puntajes!$H$6,0))))","v":""}]
[null,null,{"$f":"+'Capacidad Financiera'!B392","v":""},{"$f":"IF(ISERROR(VLOOKUP(C389,'Capacidad Financiera'!$B$12:$X$62720,2,0)),\"\",VLOOKUP(C389,'Capacidad Financiera'!$B$12:$X$3580,2,0))","v":0},null,{"$f":"IF(OR(D389=\"\",E389=\"\"),\"\",IF(AND(E389>0,E389<=CapTecnica1),Puntajes!$H$4,IF(AND(E389>CapTecnica1,E389<=CapTecnica2),Puntajes!$H$5,IF(E389>CapTecnica2,Puntajes!$H$6,0))))","v":""}]
[null,null,{"$f":"+'Capacidad Financiera'!B393","v":""},{"$f":"IF(ISERROR(VLOOKUP(C390,'Capacidad Financiera'!$B$12:$X$62720,2,0)),\"\",VLOOKUP(C390,'Capacidad Financiera'!$B$12:$X$3580,2,0))","v":0},null,{"$f":"IF(OR(D390=\"\",E390=\"\"),\"\",IF(AND(E390>0,E390<=CapTecnica1),Puntajes!$H$4,IF(AND(E390>CapTecnica1,E390<=CapTecnica2),Puntajes!$H$5,IF(E390>CapTecnica2,Puntajes!$H$6,0))))","v":""}]
[null,null,{"$f":"+'Capacidad Financiera'!B394","v":""},{"$f":"IF(ISERROR(VLOOKUP(C391,'Capacidad Financiera'!$B$12:$X$62720,2,0)),\"\",VLOOKUP(C391,'Capacidad Financiera'!$B$12:$X$3580,2,0))","v":0},null,{"$f":"IF(OR(D391=\"\",E391=\"\"),\"\",IF(AND(E391>0,E391<=CapTecnica1),Puntajes!$H$4,IF(AND(E391>CapTecnica1,E391<=CapTecnica2),Puntajes!$H$5,IF(E391>CapTecnica2,Puntajes!$H$6,0))))","v":""}]
[null,null,{"$f":"+'Capacidad Financiera'!B395","v":""},{"$f":"IF(ISERROR(VLOOKUP(C392,'Capacidad Financiera'!$B$12:$X$62720,2,0)),\"\",VLOOKUP(C392,'Capacidad Financiera'!$B$12:$X$3580,2,0))","v":0},null,{"$f":"IF(OR(D392=\"\",E392=\"\"),\"\",IF(AND(E392>0,E392<=CapTecnica1),Puntajes!$H$4,IF(AND(E392>CapTecnica1,E392<=CapTecnica2),Puntajes!$H$5,IF(E392>CapTecnica2,Puntajes!$H$6,0))))","v":""}]
[null,null,{"$f":"+'Capacidad Financiera'!B396","v":""},{"$f":"IF(ISERROR(VLOOKUP(C393,'Capacidad Financiera'!$B$12:$X$62720,2,0)),\"\",VLOOKUP(C393,'Capacidad Financiera'!$B$12:$X$3580,2,0))","v":0},null,{"$f":"IF(OR(D393=\"\",E393=\"\"),\"\",IF(AND(E393>0,E393<=CapTecnica1),Puntajes!$H$4,IF(AND(E393>CapTecnica1,E393<=CapTecnica2),Puntajes!$H$5,IF(E393>CapTecnica2,Puntajes!$H$6,0))))","v":""}]
[null,null,36,{"$f":"IF(ISERROR(VLOOKUP(C394,'Capacidad Financiera'!$B$12:$X$62720,2,0)),\"\",VLOOKUP(C394,'Capacidad Financiera'!$B$12:$X$3580,2,0))","v":"CONSORCIO SUCRE VIAL"},null,{"$f":"IF(C395=\"\",IF(E394=\"\",\"\",IF(AND(E394>0,E394<=CapTecnica1),Puntajes!$H$4,IF(AND(E394>CapTecnica1,E394<=CapTecnica2),Puntajes!$H$5,IF(E394>CapTecnica2,Puntajes!$H$6,0)))),\"\")","v":""}]
[null,null,{"$f":"+'Capacidad Financiera'!B398","v":36.1},{"$f":"IF(ISERROR(VLOOKUP(C395,'Capacidad Financiera'!$B$12:$X$62720,2,0)),\"\",VLOOKUP(C395,'Capacidad Financiera'!$B$12:$X$3580,2,0))","v":"CROMAS S.A."},4,{"$f":"IF(OR(D395=\"\",E395=\"\"),\"\",IF(AND(E395>0,E395<=CapTecnica1),Puntajes!$H$4,IF(AND(E395>CapTecnica1,E395<=CapTecnica2),Puntajes!$H$5,IF(E395>CapTecnica2,Puntajes!$H$6,0))))","v":20}]
[null,null,{"$f":"+'Capacidad Financiera'!B399","v":36.200000000000003},{"$f":"IF(ISERROR(VLOOKUP(C396,'Capacidad Financiera'!$B$12:$X$62720,2,0)),\"\",VLOOKUP(C396,'Capacidad Financiera'!$B$12:$X$3580,2,0))","v":"OSCAR ANDRADE LARA"},5,{"$f":"IF(OR(D396=\"\",E396=\"\"),\"\",IF(AND(E396>0,E396<=CapTecnica1),Puntajes!$H$4,IF(AND(E396>CapTecnica1,E396<=CapTecnica2),Puntajes!$H$5,IF(E396>CapTecnica2,Puntajes!$H$6,0))))","v":20}]
[null,null,{"$f":"+'Capacidad Financiera'!B400","v":""},{"$f":"IF(ISERROR(VLOOKUP(C397,'Capacidad Financiera'!$B$12:$X$62720,2,0)),\"\",VLOOKUP(C397,'Capacidad Financiera'!$B$12:$X$3580,2,0))","v":0},null,{"$f":"IF(OR(D397=\"\",E397=\"\"),\"\",IF(AND(E397>0,E397<=CapTecnica1),Puntajes!$H$4,IF(AND(E397>CapTecnica1,E397<=CapTecnica2),Puntajes!$H$5,IF(E397>CapTecnica2,Puntajes!$H$6,0))))","v":""}]
[null,null,{"$f":"+'Capacidad Financiera'!B401","v":""},{"$f":"IF(ISERROR(VLOOKUP(C398,'Capacidad Financiera'!$B$12:$X$62720,2,0)),\"\",VLOOKUP(C398,'Capacidad Financiera'!$B$12:$X$3580,2,0))","v":0},null,{"$f":"IF(OR(D398=\"\",E398=\"\"),\"\",IF(AND(E398>0,E398<=CapTecnica1),Puntajes!$H$4,IF(AND(E398>CapTecnica1,E398<=CapTecnica2),Puntajes!$H$5,IF(E398>CapTecnica2,Puntajes!$H$6,0))))","v":""}]
[null,null,{"$f":"+'Capacidad Financiera'!B402","v":""},{"$f":"IF(ISERROR(VLOOKUP(C399,'Capacidad Financiera'!$B$12:$X$62720,2,0)),\"\",VLOOKUP(C399,'Capacidad Financiera'!$B$12:$X$3580,2,0))","v":0},null,{"$f":"IF(OR(D399=\"\",E399=\"\"),\"\",IF(AND(E399>0,E399<=CapTecnica1),Puntajes!$H$4,IF(AND(E399>CapTecnica1,E399<=CapTecnica2),Puntajes!$H$5,IF(E399>CapTecnica2,Puntajes!$H$6,0))))","v":""}]
[null,null,{"$f":"+'Capacidad Financiera'!B403","v":""},{"$f":"IF(ISERROR(VLOOKUP(C400,'Capacidad Financiera'!$B$12:$X$62720,2,0)),\"\",VLOOKUP(C400,'Capacidad Financiera'!$B$12:$X$3580,2,0))","v":0},null,{"$f":"IF(OR(D400=\"\",E400=\"\"),\"\",IF(AND(E400>0,E400<=CapTecnica1),Puntajes!$H$4,IF(AND(E400>CapTecnica1,E400<=CapTecnica2),Puntajes!$H$5,IF(E400>CapTecnica2,Puntajes!$H$6,0))))","v":""}]
[null,null,{"$f":"+'Capacidad Financiera'!B404","v":""},{"$f":"IF(ISERROR(VLOOKUP(C401,'Capacidad Financiera'!$B$12:$X$62720,2,0)),\"\",VLOOKUP(C401,'Capacidad Financiera'!$B$12:$X$3580,2,0))","v":0},null,{"$f":"IF(OR(D401=\"\",E401=\"\"),\"\",IF(AND(E401>0,E401<=CapTecnica1),Puntajes!$H$4,IF(AND(E401>CapTecnica1,E401<=CapTecnica2),Puntajes!$H$5,IF(E401>CapTecnica2,Puntajes!$H$6,0))))","v":""}]
[null,null,{"$f":"+'Capacidad Financiera'!B405","v":""},{"$f":"IF(ISERROR(VLOOKUP(C402,'Capacidad Financiera'!$B$12:$X$62720,2,0)),\"\",VLOOKUP(C402,'Capacidad Financiera'!$B$12:$X$3580,2,0))","v":0},null,{"$f":"IF(OR(D402=\"\",E402=\"\"),\"\",IF(AND(E402>0,E402<=CapTecnica1),Puntajes!$H$4,IF(AND(E402>CapTecnica1,E402<=CapTecnica2),Puntajes!$H$5,IF(E402>CapTecnica2,Puntajes!$H$6,0))))","v":""}]
[null,null,{"$f":"+'Capacidad Financiera'!B406","v":""},{"$f":"IF(ISERROR(VLOOKUP(C403,'Capacidad Financiera'!$B$12:$X$62720,2,0)),\"\",VLOOKUP(C403,'Capacidad Financiera'!$B$12:$X$3580,2,0))","v":0},null,{"$f":"IF(OR(D403=\"\",E403=\"\"),\"\",IF(AND(E403>0,E403<=CapTecnica1),Puntajes!$H$4,IF(AND(E403>CapTecnica1,E403<=CapTecnica2),Puntajes!$H$5,IF(E403>CapTecnica2,Puntajes!$H$6,0))))","v":""}]
[null,null,{"$f":"+'Capacidad Financiera'!B407","v":""},{"$f":"IF(ISERROR(VLOOKUP(C404,'Capacidad Financiera'!$B$12:$X$62720,2,0)),\"\",VLOOKUP(C404,'Capacidad Financiera'!$B$12:$X$3580,2,0))","v":0},null,{"$f":"IF(OR(D404=\"\",E404=\"\"),\"\",IF(AND(E404>0,E404<=CapTecnica1),Puntajes!$H$4,IF(AND(E404>CapTecnica1,E404<=CapTecnica2),Puntajes!$H$5,IF(E404>CapTecnica2,Puntajes!$H$6,0))))","v":""}]
[null,null,37,{"$f":"IF(ISERROR(VLOOKUP(C405,'Capacidad Financiera'!$B$12:$X$62720,2,0)),\"\",VLOOKUP(C405,'Capacidad Financiera'!$B$12:$X$3580,2,0))","v":"CONSORCIO SALITRE "},null,{"$f":"IF(C406=\"\",IF(E405=\"\",\"\",IF(AND(E405>0,E405<=CapTecnica1),Puntajes!$H$4,IF(AND(E405>CapTecnica1,E405<=CapTecnica2),Puntajes!$H$5,IF(E405>CapTecnica2,Puntajes!$H$6,0)))),\"\")","v":""}]
[null,null,{"$f":"+'Capacidad Financiera'!B409","v":37.1},{"$f":"IF(ISERROR(VLOOKUP(C406,'Capacidad Financiera'!$B$12:$X$62720,2,0)),\"\",VLOOKUP(C406,'Capacidad Financiera'!$B$12:$X$3580,2,0))","v":"CONSTRUCTORA CRD S.A."},2,{"$f":"IF(OR(D406=\"\",E406=\"\"),\"\",IF(AND(E406>0,E406<=CapTecnica1),Puntajes!$H$4,IF(AND(E406>CapTecnica1,E406<=CapTecnica2),Puntajes!$H$5,IF(E406>CapTecnica2,Puntajes!$H$6,0))))","v":20}]
[null,null,{"$f":"+'Capacidad Financiera'!B410","v":37.200000000000003},{"$f":"IF(ISERROR(VLOOKUP(C407,'Capacidad Financiera'!$B$12:$X$62720,2,0)),\"\",VLOOKUP(C407,'Capacidad Financiera'!$B$12:$X$3580,2,0))","v":"CONSTRUCTORA S&L S.A.S."},0,{"$f":"IF(OR(D407=\"\",E407=\"\"),\"\",IF(AND(E407>0,E407<=CapTecnica1),Puntajes!$H$4,IF(AND(E407>CapTecnica1,E407<=CapTecnica2),Puntajes!$H$5,IF(E407>CapTecnica2,Puntajes!$H$6,0))))","v":0}]
[null,null,{"$f":"+'Capacidad Financiera'!B411","v":""},{"$f":"IF(ISERROR(VLOOKUP(C408,'Capacidad Financiera'!$B$12:$X$62720,2,0)),\"\",VLOOKUP(C408,'Capacidad Financiera'!$B$12:$X$3580,2,0))","v":0},null,{"$f":"IF(OR(D408=\"\",E408=\"\"),\"\",IF(AND(E408>0,E408<=CapTecnica1),Puntajes!$H$4,IF(AND(E408>CapTecnica1,E408<=CapTecnica2),Puntajes!$H$5,IF(E408>CapTecnica2,Puntajes!$H$6,0))))","v":""}]
[null,null,{"$f":"+'Capacidad Financiera'!B412","v":""},{"$f":"IF(ISERROR(VLOOKUP(C409,'Capacidad Financiera'!$B$12:$X$62720,2,0)),\"\",VLOOKUP(C409,'Capacidad Financiera'!$B$12:$X$3580,2,0))","v":0},null,{"$f":"IF(OR(D409=\"\",E409=\"\"),\"\",IF(AND(E409>0,E409<=CapTecnica1),Puntajes!$H$4,IF(AND(E409>CapTecnica1,E409<=CapTecnica2),Puntajes!$H$5,IF(E409>CapTecnica2,Puntajes!$H$6,0))))","v":""}]
[null,null,{"$f":"+'Capacidad Financiera'!B413","v":""},{"$f":"IF(ISERROR(VLOOKUP(C410,'Capacidad Financiera'!$B$12:$X$62720,2,0)),\"\",VLOOKUP(C410,'Capacidad Financiera'!$B$12:$X$3580,2,0))","v":0},null,{"$f":"IF(OR(D410=\"\",E410=\"\"),\"\",IF(AND(E410>0,E410<=CapTecnica1),Puntajes!$H$4,IF(AND(E410>CapTecnica1,E410<=CapTecnica2),Puntajes!$H$5,IF(E410>CapTecnica2,Puntajes!$H$6,0))))","v":""}]
[null,null,{"$f":"+'Capacidad Financiera'!B414","v":""},{"$f":"IF(ISERROR(VLOOKUP(C411,'Capacidad Financiera'!$B$12:$X$62720,2,0)),\"\",VLOOKUP(C411,'Capacidad Financiera'!$B$12:$X$3580,2,0))","v":0},null,{"$f":"IF(OR(D411=\"\",E411=\"\"),\"\",IF(AND(E411>0,E411<=CapTecnica1),Puntajes!$H$4,IF(AND(E411>CapTecnica1,E411<=CapTecnica2),Puntajes!$H$5,IF(E411>CapTecnica2,Puntajes!$H$6,0))))","v":""}]
[null,null,{"$f":"+'Capacidad Financiera'!B415","v":""},{"$f":"IF(ISERROR(VLOOKUP(C412,'Capacidad Financiera'!$B$12:$X$62720,2,0)),\"\",VLOOKUP(C412,'Capacidad Financiera'!$B$12:$X$3580,2,0))","v":0},null,{"$f":"IF(OR(D412=\"\",E412=\"\"),\"\",IF(AND(E412>0,E412<=CapTecnica1),Puntajes!$H$4,IF(AND(E412>CapTecnica1,E412<=CapTecnica2),Puntajes!$H$5,IF(E412>CapTecnica2,Puntajes!$H$6,0))))","v":""}]
[null,null,{"$f":"+'Capacidad Financiera'!B416","v":""},{"$f":"IF(ISERROR(VLOOKUP(C413,'Capacidad Financiera'!$B$12:$X$62720,2,0)),\"\",VLOOKUP(C413,'Capacidad Financiera'!$B$12:$X$3580,2,0))","v":0},null,{"$f":"IF(OR(D413=\"\",E413=\"\"),\"\",IF(AND(E413>0,E413<=CapTecnica1),Puntajes!$H$4,IF(AND(E413>CapTecnica1,E413<=CapTecnica2),Puntajes!$H$5,IF(E413>CapTecnica2,Puntajes!$H$6,0))))","v":""}]
[null,null,{"$f":"+'Capacidad Financiera'!B417","v":""},{"$f":"IF(ISERROR(VLOOKUP(C414,'Capacidad Financiera'!$B$12:$X$62720,2,0)),\"\",VLOOKUP(C414,'Capacidad Financiera'!$B$12:$X$3580,2,0))","v":0},null,{"$f":"IF(OR(D414=\"\",E414=\"\"),\"\",IF(AND(E414>0,E414<=CapTecnica1),Puntajes!$H$4,IF(AND(E414>CapTecnica1,E414<=CapTecnica2),Puntajes!$H$5,IF(E414>CapTecnica2,Puntajes!$H$6,0))))","v":""}]
[null,null,{"$f":"+'Capacidad Financiera'!B418","v":""},{"$f":"IF(ISERROR(VLOOKUP(C415,'Capacidad Financiera'!$B$12:$X$62720,2,0)),\"\",VLOOKUP(C415,'Capacidad Financiera'!$B$12:$X$3580,2,0))","v":0},null,{"$f":"IF(OR(D415=\"\",E415=\"\"),\"\",IF(AND(E415>0,E415<=CapTecnica1),Puntajes!$H$4,IF(AND(E415>CapTecnica1,E415<=CapTecnica2),Puntajes!$H$5,IF(E415>CapTecnica2,Puntajes!$H$6,0))))","v":""}]
[null,null,38,{"$f":"IF(ISERROR(VLOOKUP(C416,'Capacidad Financiera'!$B$12:$X$62720,2,0)),\"\",VLOOKUP(C416,'Capacidad Financiera'!$B$12:$X$3580,2,0))","v":"CONSORCIO PATIOS 444"},null,{"$f":"IF(C417=\"\",IF(E416=\"\",\"\",IF(AND(E416>0,E416<=CapTecnica1),Puntajes!$H$4,IF(AND(E416>CapTecnica1,E416<=CapTecnica2),Puntajes!$H$5,IF(E416>CapTecnica2,Puntajes!$H$6,0)))),\"\")","v":""}]
[null,null,{"$f":"+'Capacidad Financiera'!B420","v":38.1},{"$f":"IF(ISERROR(VLOOKUP(C417,'Capacidad Financiera'!$B$12:$X$62720,2,0)),\"\",VLOOKUP(C417,'Capacidad Financiera'!$B$12:$X$3580,2,0))","v":"CONSTRUSOCIAL S.A.S."},4,{"$f":"IF(OR(D417=\"\",E417=\"\"),\"\",IF(AND(E417>0,E417<=CapTecnica1),Puntajes!$H$4,IF(AND(E417>CapTecnica1,E417<=CapTecnica2),Puntajes!$H$5,IF(E417>CapTecnica2,Puntajes!$H$6,0))))","v":20}]
[null,null,{"$f":"+'Capacidad Financiera'!B421","v":38.200000000000003},{"$f":"IF(ISERROR(VLOOKUP(C418,'Capacidad Financiera'!$B$12:$X$62720,2,0)),\"\",VLOOKUP(C418,'Capacidad Financiera'!$B$12:$X$3580,2,0))","v":"CORPOANDINA S.A.S."},2,{"$f":"IF(OR(D418=\"\",E418=\"\"),\"\",IF(AND(E418>0,E418<=CapTecnica1),Puntajes!$H$4,IF(AND(E418>CapTecnica1,E418<=CapTecnica2),Puntajes!$H$5,IF(E418>CapTecnica2,Puntajes!$H$6,0))))","v":20}]
[null,null,{"$f":"+'Capacidad Financiera'!B422","v":38.300000000000004},{"$f":"IF(ISERROR(VLOOKUP(C419,'Capacidad Financiera'!$B$12:$X$62720,2,0)),\"\",VLOOKUP(C419,'Capacidad Financiera'!$B$12:$X$3580,2,0))","v":"R&U CONSTRUCTORES S.A.S."},6,{"$f":"IF(OR(D419=\"\",E419=\"\"),\"\",IF(AND(E419>0,E419<=CapTecnica1),Puntajes!$H$4,IF(AND(E419>CapTecnica1,E419<=CapTecnica2),Puntajes!$H$5,IF(E419>CapTecnica2,Puntajes!$H$6,0))))","v":30}]
[null,null,{"$f":"+'Capacidad Financiera'!B423","v":""},{"$f":"IF(ISERROR(VLOOKUP(C420,'Capacidad Financiera'!$B$12:$X$62720,2,0)),\"\",VLOOKUP(C420,'Capacidad Financiera'!$B$12:$X$3580,2,0))","v":0},null,{"$f":"IF(OR(D420=\"\",E420=\"\"),\"\",IF(AND(E420>0,E420<=CapTecnica1),Puntajes!$H$4,IF(AND(E420>CapTecnica1,E420<=CapTecnica2),Puntajes!$H$5,IF(E420>CapTecnica2,Puntajes!$H$6,0))))","v":""}]
[null,null,{"$f":"+'Capacidad Financiera'!B424","v":""},{"$f":"IF(ISERROR(VLOOKUP(C421,'Capacidad Financiera'!$B$12:$X$62720,2,0)),\"\",VLOOKUP(C421,'Capacidad Financiera'!$B$12:$X$3580,2,0))","v":0},null,{"$f":"IF(OR(D421=\"\",E421=\"\"),\"\",IF(AND(E421>0,E421<=CapTecnica1),Puntajes!$H$4,IF(AND(E421>CapTecnica1,E421<=CapTecnica2),Puntajes!$H$5,IF(E421>CapTecnica2,Puntajes!$H$6,0))))","v":""}]
[null,null,{"$f":"+'Capacidad Financiera'!B425","v":""},{"$f":"IF(ISERROR(VLOOKUP(C422,'Capacidad Financiera'!$B$12:$X$62720,2,0)),\"\",VLOOKUP(C422,'Capacidad Financiera'!$B$12:$X$3580,2,0))","v":0},null,{"$f":"IF(OR(D422=\"\",E422=\"\"),\"\",IF(AND(E422>0,E422<=CapTecnica1),Puntajes!$H$4,IF(AND(E422>CapTecnica1,E422<=CapTecnica2),Puntajes!$H$5,IF(E422>CapTecnica2,Puntajes!$H$6,0))))","v":""}]
[null,null,{"$f":"+'Capacidad Financiera'!B426","v":""},{"$f":"IF(ISERROR(VLOOKUP(C423,'Capacidad Financiera'!$B$12:$X$62720,2,0)),\"\",VLOOKUP(C423,'Capacidad Financiera'!$B$12:$X$3580,2,0))","v":0},null,{"$f":"IF(OR(D423=\"\",E423=\"\"),\"\",IF(AND(E423>0,E423<=CapTecnica1),Puntajes!$H$4,IF(AND(E423>CapTecnica1,E423<=CapTecnica2),Puntajes!$H$5,IF(E423>CapTecnica2,Puntajes!$H$6,0))))","v":""}]
[null,null,{"$f":"+'Capacidad Financiera'!B427","v":""},{"$f":"IF(ISERROR(VLOOKUP(C424,'Capacidad Financiera'!$B$12:$X$62720,2,0)),\"\",VLOOKUP(C424,'Capacidad Financiera'!$B$12:$X$3580,2,0))","v":0},null,{"$f":"IF(OR(D424=\"\",E424=\"\"),\"\",IF(AND(E424>0,E424<=CapTecnica1),Puntajes!$H$4,IF(AND(E424>CapTecnica1,E424<=CapTecnica2),Puntajes!$H$5,IF(E424>CapTecnica2,Puntajes!$H$6,0))))","v":""}]
[null,null,{"$f":"+'Capacidad Financiera'!B428","v":""},{"$f":"IF(ISERROR(VLOOKUP(C425,'Capacidad Financiera'!$B$12:$X$62720,2,0)),\"\",VLOOKUP(C425,'Capacidad Financiera'!$B$12:$X$3580,2,0))","v":0},null,{"$f":"IF(OR(D425=\"\",E425=\"\"),\"\",IF(AND(E425>0,E425<=CapTecnica1),Puntajes!$H$4,IF(AND(E425>CapTecnica1,E425<=CapTecnica2),Puntajes!$H$5,IF(E425>CapTecnica2,Puntajes!$H$6,0))))","v":""}]
[null,null,{"$f":"+'Capacidad Financiera'!B429","v":""},{"$f":"IF(ISERROR(VLOOKUP(C426,'Capacidad Financiera'!$B$12:$X$62720,2,0)),\"\",VLOOKUP(C426,'Capacidad Financiera'!$B$12:$X$3580,2,0))","v":0},null,{"$f":"IF(OR(D426=\"\",E426=\"\"),\"\",IF(AND(E426>0,E426<=CapTecnica1),Puntajes!$H$4,IF(AND(E426>CapTecnica1,E426<=CapTecnica2),Puntajes!$H$5,IF(E426>CapTecnica2,Puntajes!$H$6,0))))","v":""}]
[null,null,39,{"$f":"IF(ISERROR(VLOOKUP(C427,'Capacidad Financiera'!$B$12:$X$62720,2,0)),\"\",VLOOKUP(C427,'Capacidad Financiera'!$B$12:$X$3580,2,0))","v":"VIAS S.A."},null,{"$f":"IF(C428=\"\",IF(E427=\"\",\"\",IF(AND(E427>0,E427<=CapTecnica1),Puntajes!$H$4,IF(AND(E427>CapTecnica1,E427<=CapTecnica2),Puntajes!$H$5,IF(E427>CapTecnica2,Puntajes!$H$6,0)))),\"\")","v":""}]
[null,null,{"$f":"+'Capacidad Financiera'!B431","v":39.1},{"$f":"IF(ISERROR(VLOOKUP(C428,'Capacidad Financiera'!$B$12:$X$62720,2,0)),\"\",VLOOKUP(C428,'Capacidad Financiera'!$B$12:$X$3580,2,0))","v":"VIAS S.A."},9,{"$f":"IF(OR(D428=\"\",E428=\"\"),\"\",IF(AND(E428>0,E428<=CapTecnica1),Puntajes!$H$4,IF(AND(E428>CapTecnica1,E428<=CapTecnica2),Puntajes!$H$5,IF(E428>CapTecnica2,Puntajes!$H$6,0))))","v":30}]
[null,null,{"$f":"+'Capacidad Financiera'!B432","v":""},{"$f":"IF(ISERROR(VLOOKUP(C429,'Capacidad Financiera'!$B$12:$X$62720,2,0)),\"\",VLOOKUP(C429,'Capacidad Financiera'!$B$12:$X$3580,2,0))","v":0},null,{"$f":"IF(OR(D429=\"\",E429=\"\"),\"\",IF(AND(E429>0,E429<=CapTecnica1),Puntajes!$H$4,IF(AND(E429>CapTecnica1,E429<=CapTecnica2),Puntajes!$H$5,IF(E429>CapTecnica2,Puntajes!$H$6,0))))","v":""}]
[null,null,{"$f":"+'Capacidad Financiera'!B433","v":""},{"$f":"IF(ISERROR(VLOOKUP(C430,'Capacidad Financiera'!$B$12:$X$62720,2,0)),\"\",VLOOKUP(C430,'Capacidad Financiera'!$B$12:$X$3580,2,0))","v":0},null,{"$f":"IF(OR(D430=\"\",E430=\"\"),\"\",IF(AND(E430>0,E430<=CapTecnica1),Puntajes!$H$4,IF(AND(E430>CapTecnica1,E430<=CapTecnica2),Puntajes!$H$5,IF(E430>CapTecnica2,Puntajes!$H$6,0))))","v":""}]
[null,null,{"$f":"+'Capacidad Financiera'!B434","v":""},{"$f":"IF(ISERROR(VLOOKUP(C431,'Capacidad Financiera'!$B$12:$X$62720,2,0)),\"\",VLOOKUP(C431,'Capacidad Financiera'!$B$12:$X$3580,2,0))","v":0},null,{"$f":"IF(OR(D431=\"\",E431=\"\"),\"\",IF(AND(E431>0,E431<=CapTecnica1),Puntajes!$H$4,IF(AND(E431>CapTecnica1,E431<=CapTecnica2),Puntajes!$H$5,IF(E431>CapTecnica2,Puntajes!$H$6,0))))","v":""}]
[null,null,{"$f":"+'Capacidad Financiera'!B435","v":""},{"$f":"IF(ISERROR(VLOOKUP(C432,'Capacidad Financiera'!$B$12:$X$62720,2,0)),\"\",VLOOKUP(C432,'Capacidad Financiera'!$B$12:$X$3580,2,0))","v":0},null,{"$f":"IF(OR(D432=\"\",E432=\"\"),\"\",IF(AND(E432>0,E432<=CapTecnica1),Puntajes!$H$4,IF(AND(E432>CapTecnica1,E432<=CapTecnica2),Puntajes!$H$5,IF(E432>CapTecnica2,Puntajes!$H$6,0))))","v":""}]
[null,null,{"$f":"+'Capacidad Financiera'!B436","v":""},{"$f":"IF(ISERROR(VLOOKUP(C433,'Capacidad Financiera'!$B$12:$X$62720,2,0)),\"\",VLOOKUP(C433,'Capacidad Financiera'!$B$12:$X$3580,2,0))","v":0},null,{"$f":"IF(OR(D433=\"\",E433=\"\"),\"\",IF(AND(E433>0,E433<=CapTecnica1),Puntajes!$H$4,IF(AND(E433>CapTecnica1,E433<=CapTecnica2),Puntajes!$H$5,IF(E433>CapTecnica2,Puntajes!$H$6,0))))","v":""}]
[null,null,{"$f":"+'Capacidad Financiera'!B437","v":""},{"$f":"IF(ISERROR(VLOOKUP(C434,'Capacidad Financiera'!$B$12:$X$62720,2,0)),\"\",VLOOKUP(C434,'Capacidad Financiera'!$B$12:$X$3580,2,0))","v":0},null,{"$f":"IF(OR(D434=\"\",E434=\"\"),\"\",IF(AND(E434>0,E434<=CapTecnica1),Puntajes!$H$4,IF(AND(E434>CapTecnica1,E434<=CapTecnica2),Puntajes!$H$5,IF(E434>CapTecnica2,Puntajes!$H$6,0))))","v":""}]
[null,null,{"$f":"+'Capacidad Financiera'!B438","v":""},{"$f":"IF(ISERROR(VLOOKUP(C435,'Capacidad Financiera'!$B$12:$X$62720,2,0)),\"\",VLOOKUP(C435,'Capacidad Financiera'!$B$12:$X$3580,2,0))","v":0},null,{"$f":"IF(OR(D435=\"\",E435=\"\"),\"\",IF(AND(E435>0,E435<=CapTecnica1),Puntajes!$H$4,IF(AND(E435>CapTecnica1,E435<=CapTecnica2),Puntajes!$H$5,IF(E435>CapTecnica2,Puntajes!$H$6,0))))","v":""}]
[null,null,{"$f":"+'Capacidad Financiera'!B439","v":""},{"$f":"IF(ISERROR(VLOOKUP(C436,'Capacidad Financiera'!$B$12:$X$62720,2,0)),\"\",VLOOKUP(C436,'Capacidad Financiera'!$B$12:$X$3580,2,0))","v":0},null,{"$f":"IF(OR(D436=\"\",E436=\"\"),\"\",IF(AND(E436>0,E436<=CapTecnica1),Puntajes!$H$4,IF(AND(E436>CapTecnica1,E436<=CapTecnica2),Puntajes!$H$5,IF(E436>CapTecnica2,Puntajes!$H$6,0))))","v":""}]
[null,null,{"$f":"+'Capacidad Financiera'!B440","v":""},{"$f":"IF(ISERROR(VLOOKUP(C437,'Capacidad Financiera'!$B$12:$X$62720,2,0)),\"\",VLOOKUP(C437,'Capacidad Financiera'!$B$12:$X$3580,2,0))","v":0},null,{"$f":"IF(OR(D437=\"\",E437=\"\"),\"\",IF(AND(E437>0,E437<=CapTecnica1),Puntajes!$H$4,IF(AND(E437>CapTecnica1,E437<=CapTecnica2),Puntajes!$H$5,IF(E437>CapTecnica2,Puntajes!$H$6,0))))","v":""}]
[null,null,40,{"$f":"IF(ISERROR(VLOOKUP(C438,'Capacidad Financiera'!$B$12:$X$62720,2,0)),\"\",VLOOKUP(C438,'Capacidad Financiera'!$B$12:$X$3580,2,0))","v":"CONSTRUCCIONES Y TRACTORES S.A."},null,{"$f":"IF(C439=\"\",IF(E438=\"\",\"\",IF(AND(E438>0,E438<=CapTecnica1),Puntajes!$H$4,IF(AND(E438>CapTecnica1,E438<=CapTecnica2),Puntajes!$H$5,IF(E438>CapTecnica2,Puntajes!$H$6,0)))),\"\")","v":""}]
[null,null,{"$f":"+'Capacidad Financiera'!B442","v":40.1},{"$f":"IF(ISERROR(VLOOKUP(C439,'Capacidad Financiera'!$B$12:$X$62720,2,0)),\"\",VLOOKUP(C439,'Capacidad Financiera'!$B$12:$X$3580,2,0))","v":"CONSTRUCCIONES Y TRACTORES S.A."},7,{"$f":"IF(OR(D439=\"\",E439=\"\"),\"\",IF(AND(E439>0,E439<=CapTecnica1),Puntajes!$H$4,IF(AND(E439>CapTecnica1,E439<=CapTecnica2),Puntajes!$H$5,IF(E439>CapTecnica2,Puntajes!$H$6,0))))","v":30}]
[null,null,{"$f":"+'Capacidad Financiera'!B443","v":""},{"$f":"IF(ISERROR(VLOOKUP(C440,'Capacidad Financiera'!$B$12:$X$62720,2,0)),\"\",VLOOKUP(C440,'Capacidad Financiera'!$B$12:$X$3580,2,0))","v":0},null,{"$f":"IF(OR(D440=\"\",E440=\"\"),\"\",IF(AND(E440>0,E440<=CapTecnica1),Puntajes!$H$4,IF(AND(E440>CapTecnica1,E440<=CapTecnica2),Puntajes!$H$5,IF(E440>CapTecnica2,Puntajes!$H$6,0))))","v":""}]
[null,null,{"$f":"+'Capacidad Financiera'!B444","v":""},{"$f":"IF(ISERROR(VLOOKUP(C441,'Capacidad Financiera'!$B$12:$X$62720,2,0)),\"\",VLOOKUP(C441,'Capacidad Financiera'!$B$12:$X$3580,2,0))","v":0},null,{"$f":"IF(OR(D441=\"\",E441=\"\"),\"\",IF(AND(E441>0,E441<=CapTecnica1),Puntajes!$H$4,IF(AND(E441>CapTecnica1,E441<=CapTecnica2),Puntajes!$H$5,IF(E441>CapTecnica2,Puntajes!$H$6,0))))","v":""}]
[null,null,{"$f":"+'Capacidad Financiera'!B445","v":""},{"$f":"IF(ISERROR(VLOOKUP(C442,'Capacidad Financiera'!$B$12:$X$62720,2,0)),\"\",VLOOKUP(C442,'Capacidad Financiera'!$B$12:$X$3580,2,0))","v":0},null,{"$f":"IF(OR(D442=\"\",E442=\"\"),\"\",IF(AND(E442>0,E442<=CapTecnica1),Puntajes!$H$4,IF(AND(E442>CapTecnica1,E442<=CapTecnica2),Puntajes!$H$5,IF(E442>CapTecnica2,Puntajes!$H$6,0))))","v":""}]
[null,null,{"$f":"+'Capacidad Financiera'!B446","v":""},{"$f":"IF(ISERROR(VLOOKUP(C443,'Capacidad Financiera'!$B$12:$X$62720,2,0)),\"\",VLOOKUP(C443,'Capacidad Financiera'!$B$12:$X$3580,2,0))","v":0},null,{"$f":"IF(OR(D443=\"\",E443=\"\"),\"\",IF(AND(E443>0,E443<=CapTecnica1),Puntajes!$H$4,IF(AND(E443>CapTecnica1,E443<=CapTecnica2),Puntajes!$H$5,IF(E443>CapTecnica2,Puntajes!$H$6,0))))","v":""}]
[null,null,{"$f":"+'Capacidad Financiera'!B447","v":""},{"$f":"IF(ISERROR(VLOOKUP(C444,'Capacidad Financiera'!$B$12:$X$62720,2,0)),\"\",VLOOKUP(C444,'Capacidad Financiera'!$B$12:$X$3580,2,0))","v":0},null,{"$f":"IF(OR(D444=\"\",E444=\"\"),\"\",IF(AND(E444>0,E444<=CapTecnica1),Puntajes!$H$4,IF(AND(E444>CapTecnica1,E444<=CapTecnica2),Puntajes!$H$5,IF(E444>CapTecnica2,Puntajes!$H$6,0))))","v":""}]
[null,null,{"$f":"+'Capacidad Financiera'!B448","v":""},{"$f":"IF(ISERROR(VLOOKUP(C445,'Capacidad Financiera'!$B$12:$X$62720,2,0)),\"\",VLOOKUP(C445,'Capacidad Financiera'!$B$12:$X$3580,2,0))","v":0},null,{"$f":"IF(OR(D445=\"\",E445=\"\"),\"\",IF(AND(E445>0,E445<=CapTecnica1),Puntajes!$H$4,IF(AND(E445>CapTecnica1,E445<=CapTecnica2),Puntajes!$H$5,IF(E445>CapTecnica2,Puntajes!$H$6,0))))","v":""}]
[null,null,{"$f":"+'Capacidad Financiera'!B449","v":""},{"$f":"IF(ISERROR(VLOOKUP(C446,'Capacidad Financiera'!$B$12:$X$62720,2,0)),\"\",VLOOKUP(C446,'Capacidad Financiera'!$B$12:$X$3580,2,0))","v":0},null,{"$f":"IF(OR(D446=\"\",E446=\"\"),\"\",IF(AND(E446>0,E446<=CapTecnica1),Puntajes!$H$4,IF(AND(E446>CapTecnica1,E446<=CapTecnica2),Puntajes!$H$5,IF(E446>CapTecnica2,Puntajes!$H$6,0))))","v":""}]
[null,null,{"$f":"+'Capacidad Financiera'!B450","v":""},{"$f":"IF(ISERROR(VLOOKUP(C447,'Capacidad Financiera'!$B$12:$X$62720,2,0)),\"\",VLOOKUP(C447,'Capacidad Financiera'!$B$12:$X$3580,2,0))","v":0},null,{"$f":"IF(OR(D447=\"\",E447=\"\"),\"\",IF(AND(E447>0,E447<=CapTecnica1),Puntajes!$H$4,IF(AND(E447>CapTecnica1,E447<=CapTecnica2),Puntajes!$H$5,IF(E447>CapTecnica2,Puntajes!$H$6,0))))","v":""}]
[null,null,{"$f":"+'Capacidad Financiera'!B451","v":""},{"$f":"IF(ISERROR(VLOOKUP(C448,'Capacidad Financiera'!$B$12:$X$62720,2,0)),\"\",VLOOKUP(C448,'Capacidad Financiera'!$B$12:$X$3580,2,0))","v":0},null,{"$f":"IF(OR(D448=\"\",E448=\"\"),\"\",IF(AND(E448>0,E448<=CapTecnica1),Puntajes!$H$4,IF(AND(E448>CapTecnica1,E448<=CapTecnica2),Puntajes!$H$5,IF(E448>CapTecnica2,Puntajes!$H$6,0))))","v":""}]
[null,null,41,{"$f":"IF(ISERROR(VLOOKUP(C449,'Capacidad Financiera'!$B$12:$X$62720,2,0)),\"\",VLOOKUP(C449,'Capacidad Financiera'!$B$12:$X$3580,2,0))","v":"RICARDO ORTIGOZA GONZALEZ"},null,{"$f":"IF(C450=\"\",IF(E449=\"\",\"\",IF(AND(E449>0,E449<=CapTecnica1),Puntajes!$H$4,IF(AND(E449>CapTecnica1,E449<=CapTecnica2),Puntajes!$H$5,IF(E449>CapTecnica2,Puntajes!$H$6,0)))),\"\")","v":""}]
[null,null,{"$f":"+'Capacidad Financiera'!B453","v":41.1},{"$f":"IF(ISERROR(VLOOKUP(C450,'Capacidad Financiera'!$B$12:$X$62720,2,0)),\"\",VLOOKUP(C450,'Capacidad Financiera'!$B$12:$X$3580,2,0))","v":"RICARDO ORTIGOZA GONZALEZ"},3,{"$f":"IF(OR(D450=\"\",E450=\"\"),\"\",IF(AND(E450>0,E450<=CapTecnica1),Puntajes!$H$4,IF(AND(E450>CapTecnica1,E450<=CapTecnica2),Puntajes!$H$5,IF(E450>CapTecnica2,Puntajes!$H$6,0))))","v":20}]
[null,null,{"$f":"+'Capacidad Financiera'!B454","v":""},{"$f":"IF(ISERROR(VLOOKUP(C451,'Capacidad Financiera'!$B$12:$X$62720,2,0)),\"\",VLOOKUP(C451,'Capacidad Financiera'!$B$12:$X$3580,2,0))","v":0},null,{"$f":"IF(OR(D451=\"\",E451=\"\"),\"\",IF(AND(E451>0,E451<=CapTecnica1),Puntajes!$H$4,IF(AND(E451>CapTecnica1,E451<=CapTecnica2),Puntajes!$H$5,IF(E451>CapTecnica2,Puntajes!$H$6,0))))","v":""}]
[null,null,{"$f":"+'Capacidad Financiera'!B455","v":""},{"$f":"IF(ISERROR(VLOOKUP(C452,'Capacidad Financiera'!$B$12:$X$62720,2,0)),\"\",VLOOKUP(C452,'Capacidad Financiera'!$B$12:$X$3580,2,0))","v":0},null,{"$f":"IF(OR(D452=\"\",E452=\"\"),\"\",IF(AND(E452>0,E452<=CapTecnica1),Puntajes!$H$4,IF(AND(E452>CapTecnica1,E452<=CapTecnica2),Puntajes!$H$5,IF(E452>CapTecnica2,Puntajes!$H$6,0))))","v":""}]
[null,null,{"$f":"+'Capacidad Financiera'!B456","v":""},{"$f":"IF(ISERROR(VLOOKUP(C453,'Capacidad Financiera'!$B$12:$X$62720,2,0)),\"\",VLOOKUP(C453,'Capacidad Financiera'!$B$12:$X$3580,2,0))","v":0},null,{"$f":"IF(OR(D453=\"\",E453=\"\"),\"\",IF(AND(E453>0,E453<=CapTecnica1),Puntajes!$H$4,IF(AND(E453>CapTecnica1,E453<=CapTecnica2),Puntajes!$H$5,IF(E453>CapTecnica2,Puntajes!$H$6,0))))","v":""}]
[null,null,{"$f":"+'Capacidad Financiera'!B457","v":""},{"$f":"IF(ISERROR(VLOOKUP(C454,'Capacidad Financiera'!$B$12:$X$62720,2,0)),\"\",VLOOKUP(C454,'Capacidad Financiera'!$B$12:$X$3580,2,0))","v":0},null,{"$f":"IF(OR(D454=\"\",E454=\"\"),\"\",IF(AND(E454>0,E454<=CapTecnica1),Puntajes!$H$4,IF(AND(E454>CapTecnica1,E454<=CapTecnica2),Puntajes!$H$5,IF(E454>CapTecnica2,Puntajes!$H$6,0))))","v":""}]
[null,null,{"$f":"+'Capacidad Financiera'!B458","v":""},{"$f":"IF(ISERROR(VLOOKUP(C455,'Capacidad Financiera'!$B$12:$X$62720,2,0)),\"\",VLOOKUP(C455,'Capacidad Financiera'!$B$12:$X$3580,2,0))","v":0},null,{"$f":"IF(OR(D455=\"\",E455=\"\"),\"\",IF(AND(E455>0,E455<=CapTecnica1),Puntajes!$H$4,IF(AND(E455>CapTecnica1,E455<=CapTecnica2),Puntajes!$H$5,IF(E455>CapTecnica2,Puntajes!$H$6,0))))","v":""}]
[null,null,{"$f":"+'Capacidad Financiera'!B459","v":""},{"$f":"IF(ISERROR(VLOOKUP(C456,'Capacidad Financiera'!$B$12:$X$62720,2,0)),\"\",VLOOKUP(C456,'Capacidad Financiera'!$B$12:$X$3580,2,0))","v":0},null,{"$f":"IF(OR(D456=\"\",E456=\"\"),\"\",IF(AND(E456>0,E456<=CapTecnica1),Puntajes!$H$4,IF(AND(E456>CapTecnica1,E456<=CapTecnica2),Puntajes!$H$5,IF(E456>CapTecnica2,Puntajes!$H$6,0))))","v":""}]
[null,null,{"$f":"+'Capacidad Financiera'!B460","v":""},{"$f":"IF(ISERROR(VLOOKUP(C457,'Capacidad Financiera'!$B$12:$X$62720,2,0)),\"\",VLOOKUP(C457,'Capacidad Financiera'!$B$12:$X$3580,2,0))","v":0},null,{"$f":"IF(OR(D457=\"\",E457=\"\"),\"\",IF(AND(E457>0,E457<=CapTecnica1),Puntajes!$H$4,IF(AND(E457>CapTecnica1,E457<=CapTecnica2),Puntajes!$H$5,IF(E457>CapTecnica2,Puntajes!$H$6,0))))","v":""}]
[null,null,{"$f":"+'Capacidad Financiera'!B461","v":""},{"$f":"IF(ISERROR(VLOOKUP(C458,'Capacidad Financiera'!$B$12:$X$62720,2,0)),\"\",VLOOKUP(C458,'Capacidad Financiera'!$B$12:$X$3580,2,0))","v":0},null,{"$f":"IF(OR(D458=\"\",E458=\"\"),\"\",IF(AND(E458>0,E458<=CapTecnica1),Puntajes!$H$4,IF(AND(E458>CapTecnica1,E458<=CapTecnica2),Puntajes!$H$5,IF(E458>CapTecnica2,Puntajes!$H$6,0))))","v":""}]
[null,null,{"$f":"+'Capacidad Financiera'!B462","v":""},{"$f":"IF(ISERROR(VLOOKUP(C459,'Capacidad Financiera'!$B$12:$X$62720,2,0)),\"\",VLOOKUP(C459,'Capacidad Financiera'!$B$12:$X$3580,2,0))","v":0},null,{"$f":"IF(OR(D459=\"\",E459=\"\"),\"\",IF(AND(E459>0,E459<=CapTecnica1),Puntajes!$H$4,IF(AND(E459>CapTecnica1,E459<=CapTecnica2),Puntajes!$H$5,IF(E459>CapTecnica2,Puntajes!$H$6,0))))","v":""}]
[null,null,42,{"$f":"IF(ISERROR(VLOOKUP(C460,'Capacidad Financiera'!$B$12:$X$62720,2,0)),\"\",VLOOKUP(C460,'Capacidad Financiera'!$B$12:$X$3580,2,0))","v":"CONSORCIO VIALES CUNDINAMARCA"},null,{"$f":"IF(C461=\"\",IF(E460=\"\",\"\",IF(AND(E460>0,E460<=CapTecnica1),Puntajes!$H$4,IF(AND(E460>CapTecnica1,E460<=CapTecnica2),Puntajes!$H$5,IF(E460>CapTecnica2,Puntajes!$H$6,0)))),\"\")","v":""}]
["falta anexo 2",null,{"$f":"+'Capacidad Financiera'!B464","v":42.1},{"$f":"IF(ISERROR(VLOOKUP(C461,'Capacidad Financiera'!$B$12:$X$62720,2,0)),\"\",VLOOKUP(C461,'Capacidad Financiera'!$B$12:$X$3580,2,0))","v":"OLT CONSTRUCTORES S.A.S."},null,{"$f":"IF(OR(D461=\"\",E461=\"\"),\"\",IF(AND(E461>0,E461<=CapTecnica1),Puntajes!$H$4,IF(AND(E461>CapTecnica1,E461<=CapTecnica2),Puntajes!$H$5,IF(E461>CapTecnica2,Puntajes!$H$6,0))))","v":""}]
["falta anexo 2",null,{"$f":"+'Capacidad Financiera'!B465","v":42.2},{"$f":"IF(ISERROR(VLOOKUP(C462,'Capacidad Financiera'!$B$12:$X$62720,2,0)),\"\",VLOOKUP(C462,'Capacidad Financiera'!$B$12:$X$3580,2,0))","v":"CONSTRUCCIONES MAJA S.A.S."},null,{"$f":"IF(OR(D462=\"\",E462=\"\"),\"\",IF(AND(E462>0,E462<=CapTecnica1),Puntajes!$H$4,IF(AND(E462>CapTecnica1,E462<=CapTecnica2),Puntajes!$H$5,IF(E462>CapTecnica2,Puntajes!$H$6,0))))","v":""}]
[null,null,{"$f":"+'Capacidad Financiera'!B466","v":""},{"$f":"IF(ISERROR(VLOOKUP(C463,'Capacidad Financiera'!$B$12:$X$62720,2,0)),\"\",VLOOKUP(C463,'Capacidad Financiera'!$B$12:$X$3580,2,0))","v":0},null,{"$f":"IF(OR(D463=\"\",E463=\"\"),\"\",IF(AND(E463>0,E463<=CapTecnica1),Puntajes!$H$4,IF(AND(E463>CapTecnica1,E463<=CapTecnica2),Puntajes!$H$5,IF(E463>CapTecnica2,Puntajes!$H$6,0))))","v":""}]
[null,null,{"$f":"+'Capacidad Financiera'!B467","v":""},{"$f":"IF(ISERROR(VLOOKUP(C464,'Capacidad Financiera'!$B$12:$X$62720,2,0)),\"\",VLOOKUP(C464,'Capacidad Financiera'!$B$12:$X$3580,2,0))","v":0},null,{"$f":"IF(OR(D464=\"\",E464=\"\"),\"\",IF(AND(E464>0,E464<=CapTecnica1),Puntajes!$H$4,IF(AND(E464>CapTecnica1,E464<=CapTecnica2),Puntajes!$H$5,IF(E464>CapTecnica2,Puntajes!$H$6,0))))","v":""}]
[null,null,{"$f":"+'Capacidad Financiera'!B468","v":""},{"$f":"IF(ISERROR(VLOOKUP(C465,'Capacidad Financiera'!$B$12:$X$62720,2,0)),\"\",VLOOKUP(C465,'Capacidad Financiera'!$B$12:$X$3580,2,0))","v":0},null,{"$f":"IF(OR(D465=\"\",E465=\"\"),\"\",IF(AND(E465>0,E465<=CapTecnica1),Puntajes!$H$4,IF(AND(E465>CapTecnica1,E465<=CapTecnica2),Puntajes!$H$5,IF(E465>CapTecnica2,Puntajes!$H$6,0))))","v":""}]
[null,null,{"$f":"+'Capacidad Financiera'!B469","v":""},{"$f":"IF(ISERROR(VLOOKUP(C466,'Capacidad Financiera'!$B$12:$X$62720,2,0)),\"\",VLOOKUP(C466,'Capacidad Financiera'!$B$12:$X$3580,2,0))","v":0},null,{"$f":"IF(OR(D466=\"\",E466=\"\"),\"\",IF(AND(E466>0,E466<=CapTecnica1),Puntajes!$H$4,IF(AND(E466>CapTecnica1,E466<=CapTecnica2),Puntajes!$H$5,IF(E466>CapTecnica2,Puntajes!$H$6,0))))","v":""}]
[null,null,{"$f":"+'Capacidad Financiera'!B470","v":""},{"$f":"IF(ISERROR(VLOOKUP(C467,'Capacidad Financiera'!$B$12:$X$62720,2,0)),\"\",VLOOKUP(C467,'Capacidad Financiera'!$B$12:$X$3580,2,0))","v":0},null,{"$f":"IF(OR(D467=\"\",E467=\"\"),\"\",IF(AND(E467>0,E467<=CapTecnica1),Puntajes!$H$4,IF(AND(E467>CapTecnica1,E467<=CapTecnica2),Puntajes!$H$5,IF(E467>CapTecnica2,Puntajes!$H$6,0))))","v":""}]
[null,null,{"$f":"+'Capacidad Financiera'!B471","v":""},{"$f":"IF(ISERROR(VLOOKUP(C468,'Capacidad Financiera'!$B$12:$X$62720,2,0)),\"\",VLOOKUP(C468,'Capacidad Financiera'!$B$12:$X$3580,2,0))","v":0},null,{"$f":"IF(OR(D468=\"\",E468=\"\"),\"\",IF(AND(E468>0,E468<=CapTecnica1),Puntajes!$H$4,IF(AND(E468>CapTecnica1,E468<=CapTecnica2),Puntajes!$H$5,IF(E468>CapTecnica2,Puntajes!$H$6,0))))","v":""}]
[null,null,{"$f":"+'Capacidad Financiera'!B472","v":""},{"$f":"IF(ISERROR(VLOOKUP(C469,'Capacidad Financiera'!$B$12:$X$62720,2,0)),\"\",VLOOKUP(C469,'Capacidad Financiera'!$B$12:$X$3580,2,0))","v":0},null,{"$f":"IF(OR(D469=\"\",E469=\"\"),\"\",IF(AND(E469>0,E469<=CapTecnica1),Puntajes!$H$4,IF(AND(E469>CapTecnica1,E469<=CapTecnica2),Puntajes!$H$5,IF(E469>CapTecnica2,Puntajes!$H$6,0))))","v":""}]
[null,null,{"$f":"+'Capacidad Financiera'!B473","v":""},{"$f":"IF(ISERROR(VLOOKUP(C470,'Capacidad Financiera'!$B$12:$X$62720,2,0)),\"\",VLOOKUP(C470,'Capacidad Financiera'!$B$12:$X$3580,2,0))","v":0},null,{"$f":"IF(OR(D470=\"\",E470=\"\"),\"\",IF(AND(E470>0,E470<=CapTecnica1),Puntajes!$H$4,IF(AND(E470>CapTecnica1,E470<=CapTecnica2),Puntajes!$H$5,IF(E470>CapTecnica2,Puntajes!$H$6,0))))","v":""}]
[null,null,43,{"$f":"IF(ISERROR(VLOOKUP(C471,'Capacidad Financiera'!$B$12:$X$62720,2,0)),\"\",VLOOKUP(C471,'Capacidad Financiera'!$B$12:$X$3580,2,0))","v":"CONSORCIO LA CALERA 034"},null,{"$f":"IF(C472=\"\",IF(E471=\"\",\"\",IF(AND(E471>0,E471<=CapTecnica1),Puntajes!$H$4,IF(AND(E471>CapTecnica1,E471<=CapTecnica2),Puntajes!$H$5,IF(E471>CapTecnica2,Puntajes!$H$6,0)))),\"\")","v":""}]
[null,null,{"$f":"+'Capacidad Financiera'!B475","v":43.1},{"$f":"IF(ISERROR(VLOOKUP(C472,'Capacidad Financiera'!$B$12:$X$62720,2,0)),\"\",VLOOKUP(C472,'Capacidad Financiera'!$B$12:$X$3580,2,0))","v":"JULIO ECHEVERRY SARMIENTO"},1,{"$f":"IF(OR(D472=\"\",E472=\"\"),\"\",IF(AND(E472>0,E472<=CapTecnica1),Puntajes!$H$4,IF(AND(E472>CapTecnica1,E472<=CapTecnica2),Puntajes!$H$5,IF(E472>CapTecnica2,Puntajes!$H$6,0))))","v":20}]
[null,null,{"$f":"+'Capacidad Financiera'!B476","v":43.2},{"$f":"IF(ISERROR(VLOOKUP(C473,'Capacidad Financiera'!$B$12:$X$62720,2,0)),\"\",VLOOKUP(C473,'Capacidad Financiera'!$B$12:$X$3580,2,0))","v":"FRANKLIN PIRAGUA ROA"},1,{"$f":"IF(OR(D473=\"\",E473=\"\"),\"\",IF(AND(E473>0,E473<=CapTecnica1),Puntajes!$H$4,IF(AND(E473>CapTecnica1,E473<=CapTecnica2),Puntajes!$H$5,IF(E473>CapTecnica2,Puntajes!$H$6,0))))","v":20}]
[null,null,{"$f":"+'Capacidad Financiera'!B477","v":43.300000000000004},{"$f":"IF(ISERROR(VLOOKUP(C474,'Capacidad Financiera'!$B$12:$X$62720,2,0)),\"\",VLOOKUP(C474,'Capacidad Financiera'!$B$12:$X$3580,2,0))","v":"CARLOS ARANGO SALAZAR"},10,{"$f":"IF(OR(D474=\"\",E474=\"\"),\"\",IF(AND(E474>0,E474<=CapTecnica1),Puntajes!$H$4,IF(AND(E474>CapTecnica1,E474<=CapTecnica2),Puntajes!$H$5,IF(E474>CapTecnica2,Puntajes!$H$6,0))))","v":30}]
[null,null,{"$f":"+'Capacidad Financiera'!B478","v":""},{"$f":"IF(ISERROR(VLOOKUP(C475,'Capacidad Financiera'!$B$12:$X$62720,2,0)),\"\",VLOOKUP(C475,'Capacidad Financiera'!$B$12:$X$3580,2,0))","v":0},null,{"$f":"IF(OR(D475=\"\",E475=\"\"),\"\",IF(AND(E475>0,E475<=CapTecnica1),Puntajes!$H$4,IF(AND(E475>CapTecnica1,E475<=CapTecnica2),Puntajes!$H$5,IF(E475>CapTecnica2,Puntajes!$H$6,0))))","v":""}]
[null,null,{"$f":"+'Capacidad Financiera'!B479","v":""},{"$f":"IF(ISERROR(VLOOKUP(C476,'Capacidad Financiera'!$B$12:$X$62720,2,0)),\"\",VLOOKUP(C476,'Capacidad Financiera'!$B$12:$X$3580,2,0))","v":0},null,{"$f":"IF(OR(D476=\"\",E476=\"\"),\"\",IF(AND(E476>0,E476<=CapTecnica1),Puntajes!$H$4,IF(AND(E476>CapTecnica1,E476<=CapTecnica2),Puntajes!$H$5,IF(E476>CapTecnica2,Puntajes!$H$6,0))))","v":""}]
[null,null,{"$f":"+'Capacidad Financiera'!B480","v":""},{"$f":"IF(ISERROR(VLOOKUP(C477,'Capacidad Financiera'!$B$12:$X$62720,2,0)),\"\",VLOOKUP(C477,'Capacidad Financiera'!$B$12:$X$3580,2,0))","v":0},null,{"$f":"IF(OR(D477=\"\",E477=\"\"),\"\",IF(AND(E477>0,E477<=CapTecnica1),Puntajes!$H$4,IF(AND(E477>CapTecnica1,E477<=CapTecnica2),Puntajes!$H$5,IF(E477>CapTecnica2,Puntajes!$H$6,0))))","v":""}]
[null,null,{"$f":"+'Capacidad Financiera'!B481","v":""},{"$f":"IF(ISERROR(VLOOKUP(C478,'Capacidad Financiera'!$B$12:$X$62720,2,0)),\"\",VLOOKUP(C478,'Capacidad Financiera'!$B$12:$X$3580,2,0))","v":0},null,{"$f":"IF(OR(D478=\"\",E478=\"\"),\"\",IF(AND(E478>0,E478<=CapTecnica1),Puntajes!$H$4,IF(AND(E478>CapTecnica1,E478<=CapTecnica2),Puntajes!$H$5,IF(E478>CapTecnica2,Puntajes!$H$6,0))))","v":""}]
[null,null,{"$f":"+'Capacidad Financiera'!B482","v":""},{"$f":"IF(ISERROR(VLOOKUP(C479,'Capacidad Financiera'!$B$12:$X$62720,2,0)),\"\",VLOOKUP(C479,'Capacidad Financiera'!$B$12:$X$3580,2,0))","v":0},null,{"$f":"IF(OR(D479=\"\",E479=\"\"),\"\",IF(AND(E479>0,E479<=CapTecnica1),Puntajes!$H$4,IF(AND(E479>CapTecnica1,E479<=CapTecnica2),Puntajes!$H$5,IF(E479>CapTecnica2,Puntajes!$H$6,0))))","v":""}]
[null,null,{"$f":"+'Capacidad Financiera'!B483","v":""},{"$f":"IF(ISERROR(VLOOKUP(C480,'Capacidad Financiera'!$B$12:$X$62720,2,0)),\"\",VLOOKUP(C480,'Capacidad Financiera'!$B$12:$X$3580,2,0))","v":0},null,{"$f":"IF(OR(D480=\"\",E480=\"\"),\"\",IF(AND(E480>0,E480<=CapTecnica1),Puntajes!$H$4,IF(AND(E480>CapTecnica1,E480<=CapTecnica2),Puntajes!$H$5,IF(E480>CapTecnica2,Puntajes!$H$6,0))))","v":""}]
[null,null,{"$f":"+'Capacidad Financiera'!B484","v":""},{"$f":"IF(ISERROR(VLOOKUP(C481,'Capacidad Financiera'!$B$12:$X$62720,2,0)),\"\",VLOOKUP(C481,'Capacidad Financiera'!$B$12:$X$3580,2,0))","v":0},null,{"$f":"IF(OR(D481=\"\",E481=\"\"),\"\",IF(AND(E481>0,E481<=CapTecnica1),Puntajes!$H$4,IF(AND(E481>CapTecnica1,E481<=CapTecnica2),Puntajes!$H$5,IF(E481>CapTecnica2,Puntajes!$H$6,0))))","v":""}]
[null,null,44,{"$f":"IF(ISERROR(VLOOKUP(C482,'Capacidad Financiera'!$B$12:$X$62720,2,0)),\"\",VLOOKUP(C482,'Capacidad Financiera'!$B$12:$X$3580,2,0))","v":"CONCRETOS Y ASFALTOS S.A."},null,{"$f":"IF(C483=\"\",IF(E482=\"\",\"\",IF(AND(E482>0,E482<=CapTecnica1),Puntajes!$H$4,IF(AND(E482>CapTecnica1,E482<=CapTecnica2),Puntajes!$H$5,IF(E482>CapTecnica2,Puntajes!$H$6,0)))),\"\")","v":""}]
[null,null,{"$f":"+'Capacidad Financiera'!B486","v":44.1},{"$f":"IF(ISERROR(VLOOKUP(C483,'Capacidad Financiera'!$B$12:$X$62720,2,0)),\"\",VLOOKUP(C483,'Capacidad Financiera'!$B$12:$X$3580,2,0))","v":"CONCRETOS Y ASFALTOS S.A."},21,{"$f":"IF(OR(D483=\"\",E483=\"\"),\"\",IF(AND(E483>0,E483<=CapTecnica1),Puntajes!$H$4,IF(AND(E483>CapTecnica1,E483<=CapTecnica2),Puntajes!$H$5,IF(E483>CapTecnica2,Puntajes!$H$6,0))))","v":40}]
[null,null,{"$f":"+'Capacidad Financiera'!B487","v":""},{"$f":"IF(ISERROR(VLOOKUP(C484,'Capacidad Financiera'!$B$12:$X$62720,2,0)),\"\",VLOOKUP(C484,'Capacidad Financiera'!$B$12:$X$3580,2,0))","v":0},null,{"$f":"IF(OR(D484=\"\",E484=\"\"),\"\",IF(AND(E484>0,E484<=CapTecnica1),Puntajes!$H$4,IF(AND(E484>CapTecnica1,E484<=CapTecnica2),Puntajes!$H$5,IF(E484>CapTecnica2,Puntajes!$H$6,0))))","v":""}]
[null,null,{"$f":"+'Capacidad Financiera'!B488","v":""},{"$f":"IF(ISERROR(VLOOKUP(C485,'Capacidad Financiera'!$B$12:$X$62720,2,0)),\"\",VLOOKUP(C485,'Capacidad Financiera'!$B$12:$X$3580,2,0))","v":0},null,{"$f":"IF(OR(D485=\"\",E485=\"\"),\"\",IF(AND(E485>0,E485<=CapTecnica1),Puntajes!$H$4,IF(AND(E485>CapTecnica1,E485<=CapTecnica2),Puntajes!$H$5,IF(E485>CapTecnica2,Puntajes!$H$6,0))))","v":""}]
[null,null,{"$f":"+'Capacidad Financiera'!B489","v":""},{"$f":"IF(ISERROR(VLOOKUP(C486,'Capacidad Financiera'!$B$12:$X$62720,2,0)),\"\",VLOOKUP(C486,'Capacidad Financiera'!$B$12:$X$3580,2,0))","v":0},null,{"$f":"IF(OR(D486=\"\",E486=\"\"),\"\",IF(AND(E486>0,E486<=CapTecnica1),Puntajes!$H$4,IF(AND(E486>CapTecnica1,E486<=CapTecnica2),Puntajes!$H$5,IF(E486>CapTecnica2,Puntajes!$H$6,0))))","v":""}]
[null,null,{"$f":"+'Capacidad Financiera'!B490","v":""},{"$f":"IF(ISERROR(VLOOKUP(C487,'Capacidad Financiera'!$B$12:$X$62720,2,0)),\"\",VLOOKUP(C487,'Capacidad Financiera'!$B$12:$X$3580,2,0))","v":0},null,{"$f":"IF(OR(D487=\"\",E487=\"\"),\"\",IF(AND(E487>0,E487<=CapTecnica1),Puntajes!$H$4,IF(AND(E487>CapTecnica1,E487<=CapTecnica2),Puntajes!$H$5,IF(E487>CapTecnica2,Puntajes!$H$6,0))))","v":""}]
[null,null,{"$f":"+'Capacidad Financiera'!B491","v":""},{"$f":"IF(ISERROR(VLOOKUP(C488,'Capacidad Financiera'!$B$12:$X$62720,2,0)),\"\",VLOOKUP(C488,'Capacidad Financiera'!$B$12:$X$3580,2,0))","v":0},null,{"$f":"IF(OR(D488=\"\",E488=\"\"),\"\",IF(AND(E488>0,E488<=CapTecnica1),Puntajes!$H$4,IF(AND(E488>CapTecnica1,E488<=CapTecnica2),Puntajes!$H$5,IF(E488>CapTecnica2,Puntajes!$H$6,0))))","v":""}]
[null,null,{"$f":"+'Capacidad Financiera'!B492","v":""},{"$f":"IF(ISERROR(VLOOKUP(C489,'Capacidad Financiera'!$B$12:$X$62720,2,0)),\"\",VLOOKUP(C489,'Capacidad Financiera'!$B$12:$X$3580,2,0))","v":0},null,{"$f":"IF(OR(D489=\"\",E489=\"\"),\"\",IF(AND(E489>0,E489<=CapTecnica1),Puntajes!$H$4,IF(AND(E489>CapTecnica1,E489<=CapTecnica2),Puntajes!$H$5,IF(E489>CapTecnica2,Puntajes!$H$6,0))))","v":""}]
[null,null,{"$f":"+'Capacidad Financiera'!B493","v":""},{"$f":"IF(ISERROR(VLOOKUP(C490,'Capacidad Financiera'!$B$12:$X$62720,2,0)),\"\",VLOOKUP(C490,'Capacidad Financiera'!$B$12:$X$3580,2,0))","v":0},null,{"$f":"IF(OR(D490=\"\",E490=\"\"),\"\",IF(AND(E490>0,E490<=CapTecnica1),Puntajes!$H$4,IF(AND(E490>CapTecnica1,E490<=CapTecnica2),Puntajes!$H$5,IF(E490>CapTecnica2,Puntajes!$H$6,0))))","v":""}]
[null,null,{"$f":"+'Capacidad Financiera'!B494","v":""},{"$f":"IF(ISERROR(VLOOKUP(C491,'Capacidad Financiera'!$B$12:$X$62720,2,0)),\"\",VLOOKUP(C491,'Capacidad Financiera'!$B$12:$X$3580,2,0))","v":0},null,{"$f":"IF(OR(D491=\"\",E491=\"\"),\"\",IF(AND(E491>0,E491<=CapTecnica1),Puntajes!$H$4,IF(AND(E491>CapTecnica1,E491<=CapTecnica2),Puntajes!$H$5,IF(E491>CapTecnica2,Puntajes!$H$6,0))))","v":""}]
[null,null,{"$f":"+'Capacidad Financiera'!B495","v":""},{"$f":"IF(ISERROR(VLOOKUP(C492,'Capacidad Financiera'!$B$12:$X$62720,2,0)),\"\",VLOOKUP(C492,'Capacidad Financiera'!$B$12:$X$3580,2,0))","v":0},null,{"$f":"IF(OR(D492=\"\",E492=\"\"),\"\",IF(AND(E492>0,E492<=CapTecnica1),Puntajes!$H$4,IF(AND(E492>CapTecnica1,E492<=CapTecnica2),Puntajes!$H$5,IF(E492>CapTecnica2,Puntajes!$H$6,0))))","v":""}]
[null,null,45,{"$f":"IF(ISERROR(VLOOKUP(C493,'Capacidad Financiera'!$B$12:$X$62720,2,0)),\"\",VLOOKUP(C493,'Capacidad Financiera'!$B$12:$X$3580,2,0))","v":"CONSORCIO INFRAESTRUCTURA GUASCA"},null,{"$f":"IF(C494=\"\",IF(E493=\"\",\"\",IF(AND(E493>0,E493<=CapTecnica1),Puntajes!$H$4,IF(AND(E493>CapTecnica1,E493<=CapTecnica2),Puntajes!$H$5,IF(E493>CapTecnica2,Puntajes!$H$6,0)))),\"\")","v":""}]
[null,null,{"$f":"+'Capacidad Financiera'!B497","v":45.1},{"$f":"IF(ISERROR(VLOOKUP(C494,'Capacidad Financiera'!$B$12:$X$62720,2,0)),\"\",VLOOKUP(C494,'Capacidad Financiera'!$B$12:$X$3580,2,0))","v":"INFRAESTRUCTURA NACIONAL LTDA."},1,{"$f":"IF(OR(D494=\"\",E494=\"\"),\"\",IF(AND(E494>0,E494<=CapTecnica1),Puntajes!$H$4,IF(AND(E494>CapTecnica1,E494<=CapTecnica2),Puntajes!$H$5,IF(E494>CapTecnica2,Puntajes!$H$6,0))))","v":20}]
[null,null,{"$f":"+'Capacidad Financiera'!B498","v":45.2},{"$f":"IF(ISERROR(VLOOKUP(C495,'Capacidad Financiera'!$B$12:$X$62720,2,0)),\"\",VLOOKUP(C495,'Capacidad Financiera'!$B$12:$X$3580,2,0))","v":"RB DE COLOMBIA S.A."},6,{"$f":"IF(OR(D495=\"\",E495=\"\"),\"\",IF(AND(E495>0,E495<=CapTecnica1),Puntajes!$H$4,IF(AND(E495>CapTecnica1,E495<=CapTecnica2),Puntajes!$H$5,IF(E495>CapTecnica2,Puntajes!$H$6,0))))","v":30}]
[null,null,{"$f":"+'Capacidad Financiera'!B499","v":45.300000000000004},{"$f":"IF(ISERROR(VLOOKUP(C496,'Capacidad Financiera'!$B$12:$X$62720,2,0)),\"\",VLOOKUP(C496,'Capacidad Financiera'!$B$12:$X$3580,2,0))","v":"YAMIL MONTENEGRO CALDERON"},18,{"$f":"IF(OR(D496=\"\",E496=\"\"),\"\",IF(AND(E496>0,E496<=CapTecnica1),Puntajes!$H$4,IF(AND(E496>CapTecnica1,E496<=CapTecnica2),Puntajes!$H$5,IF(E496>CapTecnica2,Puntajes!$H$6,0))))","v":40}]
[null,null,{"$f":"+'Capacidad Financiera'!B500","v":""},{"$f":"IF(ISERROR(VLOOKUP(C497,'Capacidad Financiera'!$B$12:$X$62720,2,0)),\"\",VLOOKUP(C497,'Capacidad Financiera'!$B$12:$X$3580,2,0))","v":0},null,{"$f":"IF(OR(D497=\"\",E497=\"\"),\"\",IF(AND(E497>0,E497<=CapTecnica1),Puntajes!$H$4,IF(AND(E497>CapTecnica1,E497<=CapTecnica2),Puntajes!$H$5,IF(E497>CapTecnica2,Puntajes!$H$6,0))))","v":""}]
[null,null,{"$f":"+'Capacidad Financiera'!B501","v":""},{"$f":"IF(ISERROR(VLOOKUP(C498,'Capacidad Financiera'!$B$12:$X$62720,2,0)),\"\",VLOOKUP(C498,'Capacidad Financiera'!$B$12:$X$3580,2,0))","v":0},null,{"$f":"IF(OR(D498=\"\",E498=\"\"),\"\",IF(AND(E498>0,E498<=CapTecnica1),Puntajes!$H$4,IF(AND(E498>CapTecnica1,E498<=CapTecnica2),Puntajes!$H$5,IF(E498>CapTecnica2,Puntajes!$H$6,0))))","v":""}]
[null,null,{"$f":"+'Capacidad Financiera'!B502","v":""},{"$f":"IF(ISERROR(VLOOKUP(C499,'Capacidad Financiera'!$B$12:$X$62720,2,0)),\"\",VLOOKUP(C499,'Capacidad Financiera'!$B$12:$X$3580,2,0))","v":0},null,{"$f":"IF(OR(D499=\"\",E499=\"\"),\"\",IF(AND(E499>0,E499<=CapTecnica1),Puntajes!$H$4,IF(AND(E499>CapTecnica1,E499<=CapTecnica2),Puntajes!$H$5,IF(E499>CapTecnica2,Puntajes!$H$6,0))))","v":""}]
[null,null,{"$f":"+'Capacidad Financiera'!B503","v":""},{"$f":"IF(ISERROR(VLOOKUP(C500,'Capacidad Financiera'!$B$12:$X$62720,2,0)),\"\",VLOOKUP(C500,'Capacidad Financiera'!$B$12:$X$3580,2,0))","v":0},null,{"$f":"IF(OR(D500=\"\",E500=\"\"),\"\",IF(AND(E500>0,E500<=CapTecnica1),Puntajes!$H$4,IF(AND(E500>CapTecnica1,E500<=CapTecnica2),Puntajes!$H$5,IF(E500>CapTecnica2,Puntajes!$H$6,0))))","v":""}]
[null,null,{"$f":"+'Capacidad Financiera'!B504","v":""},{"$f":"IF(ISERROR(VLOOKUP(C501,'Capacidad Financiera'!$B$12:$X$62720,2,0)),\"\",VLOOKUP(C501,'Capacidad Financiera'!$B$12:$X$3580,2,0))","v":0},null,{"$f":"IF(OR(D501=\"\",E501=\"\"),\"\",IF(AND(E501>0,E501<=CapTecnica1),Puntajes!$H$4,IF(AND(E501>CapTecnica1,E501<=CapTecnica2),Puntajes!$H$5,IF(E501>CapTecnica2,Puntajes!$H$6,0))))","v":""}]
[null,null,{"$f":"+'Capacidad Financiera'!B505","v":""},{"$f":"IF(ISERROR(VLOOKUP(C502,'Capacidad Financiera'!$B$12:$X$62720,2,0)),\"\",VLOOKUP(C502,'Capacidad Financiera'!$B$12:$X$3580,2,0))","v":0},null,{"$f":"IF(OR(D502=\"\",E502=\"\"),\"\",IF(AND(E502>0,E502<=CapTecnica1),Puntajes!$H$4,IF(AND(E502>CapTecnica1,E502<=CapTecnica2),Puntajes!$H$5,IF(E502>CapTecnica2,Puntajes!$H$6,0))))","v":""}]
[null,null,{"$f":"+'Capacidad Financiera'!B506","v":""},{"$f":"IF(ISERROR(VLOOKUP(C503,'Capacidad Financiera'!$B$12:$X$62720,2,0)),\"\",VLOOKUP(C503,'Capacidad Financiera'!$B$12:$X$3580,2,0))","v":0},null,{"$f":"IF(OR(D503=\"\",E503=\"\"),\"\",IF(AND(E503>0,E503<=CapTecnica1),Puntajes!$H$4,IF(AND(E503>CapTecnica1,E503<=CapTecnica2),Puntajes!$H$5,IF(E503>CapTecnica2,Puntajes!$H$6,0))))","v":""}]
[null,null,46,{"$f":"IF(ISERROR(VLOOKUP(C504,'Capacidad Financiera'!$B$12:$X$62720,2,0)),\"\",VLOOKUP(C504,'Capacidad Financiera'!$B$12:$X$3580,2,0))","v":"RG INGENIERIA LTDA."},null,{"$f":"IF(C505=\"\",IF(E504=\"\",\"\",IF(AND(E504>0,E504<=CapTecnica1),Puntajes!$H$4,IF(AND(E504>CapTecnica1,E504<=CapTecnica2),Puntajes!$H$5,IF(E504>CapTecnica2,Puntajes!$H$6,0)))),\"\")","v":""}]
[null,null,{"$f":"+'Capacidad Financiera'!B508","v":46.1},{"$f":"IF(ISERROR(VLOOKUP(C505,'Capacidad Financiera'!$B$12:$X$62720,2,0)),\"\",VLOOKUP(C505,'Capacidad Financiera'!$B$12:$X$3580,2,0))","v":"RG INGENIERIA LTDA."},1,{"$f":"IF(OR(D505=\"\",E505=\"\"),\"\",IF(AND(E505>0,E505<=CapTecnica1),Puntajes!$H$4,IF(AND(E505>CapTecnica1,E505<=CapTecnica2),Puntajes!$H$5,IF(E505>CapTecnica2,Puntajes!$H$6,0))))","v":20}]
[null,null,{"$f":"+'Capacidad Financiera'!B509","v":""},{"$f":"IF(ISERROR(VLOOKUP(C506,'Capacidad Financiera'!$B$12:$X$62720,2,0)),\"\",VLOOKUP(C506,'Capacidad Financiera'!$B$12:$X$3580,2,0))","v":0},null,{"$f":"IF(OR(D506=\"\",E506=\"\"),\"\",IF(AND(E506>0,E506<=CapTecnica1),Puntajes!$H$4,IF(AND(E506>CapTecnica1,E506<=CapTecnica2),Puntajes!$H$5,IF(E506>CapTecnica2,Puntajes!$H$6,0))))","v":""}]
[null,null,{"$f":"+'Capacidad Financiera'!B510","v":""},{"$f":"IF(ISERROR(VLOOKUP(C507,'Capacidad Financiera'!$B$12:$X$62720,2,0)),\"\",VLOOKUP(C507,'Capacidad Financiera'!$B$12:$X$3580,2,0))","v":0},null,{"$f":"IF(OR(D507=\"\",E507=\"\"),\"\",IF(AND(E507>0,E507<=CapTecnica1),Puntajes!$H$4,IF(AND(E507>CapTecnica1,E507<=CapTecnica2),Puntajes!$H$5,IF(E507>CapTecnica2,Puntajes!$H$6,0))))","v":""}]
[null,null,{"$f":"+'Capacidad Financiera'!B511","v":""},{"$f":"IF(ISERROR(VLOOKUP(C508,'Capacidad Financiera'!$B$12:$X$62720,2,0)),\"\",VLOOKUP(C508,'Capacidad Financiera'!$B$12:$X$3580,2,0))","v":0},null,{"$f":"IF(OR(D508=\"\",E508=\"\"),\"\",IF(AND(E508>0,E508<=CapTecnica1),Puntajes!$H$4,IF(AND(E508>CapTecnica1,E508<=CapTecnica2),Puntajes!$H$5,IF(E508>CapTecnica2,Puntajes!$H$6,0))))","v":""}]
[null,null,{"$f":"+'Capacidad Financiera'!B512","v":""},{"$f":"IF(ISERROR(VLOOKUP(C509,'Capacidad Financiera'!$B$12:$X$62720,2,0)),\"\",VLOOKUP(C509,'Capacidad Financiera'!$B$12:$X$3580,2,0))","v":0},null,{"$f":"IF(OR(D509=\"\",E509=\"\"),\"\",IF(AND(E509>0,E509<=CapTecnica1),Puntajes!$H$4,IF(AND(E509>CapTecnica1,E509<=CapTecnica2),Puntajes!$H$5,IF(E509>CapTecnica2,Puntajes!$H$6,0))))","v":""}]
[null,null,{"$f":"+'Capacidad Financiera'!B513","v":""},{"$f":"IF(ISERROR(VLOOKUP(C510,'Capacidad Financiera'!$B$12:$X$62720,2,0)),\"\",VLOOKUP(C510,'Capacidad Financiera'!$B$12:$X$3580,2,0))","v":0},null,{"$f":"IF(OR(D510=\"\",E510=\"\"),\"\",IF(AND(E510>0,E510<=CapTecnica1),Puntajes!$H$4,IF(AND(E510>CapTecnica1,E510<=CapTecnica2),Puntajes!$H$5,IF(E510>CapTecnica2,Puntajes!$H$6,0))))","v":""}]
[null,null,{"$f":"+'Capacidad Financiera'!B514","v":""},{"$f":"IF(ISERROR(VLOOKUP(C511,'Capacidad Financiera'!$B$12:$X$62720,2,0)),\"\",VLOOKUP(C511,'Capacidad Financiera'!$B$12:$X$3580,2,0))","v":0},null,{"$f":"IF(OR(D511=\"\",E511=\"\"),\"\",IF(AND(E511>0,E511<=CapTecnica1),Puntajes!$H$4,IF(AND(E511>CapTecnica1,E511<=CapTecnica2),Puntajes!$H$5,IF(E511>CapTecnica2,Puntajes!$H$6,0))))","v":""}]
[null,null,{"$f":"+'Capacidad Financiera'!B515","v":""},{"$f":"IF(ISERROR(VLOOKUP(C512,'Capacidad Financiera'!$B$12:$X$62720,2,0)),\"\",VLOOKUP(C512,'Capacidad Financiera'!$B$12:$X$3580,2,0))","v":0},null,{"$f":"IF(OR(D512=\"\",E512=\"\"),\"\",IF(AND(E512>0,E512<=CapTecnica1),Puntajes!$H$4,IF(AND(E512>CapTecnica1,E512<=CapTecnica2),Puntajes!$H$5,IF(E512>CapTecnica2,Puntajes!$H$6,0))))","v":""}]
[null,null,{"$f":"+'Capacidad Financiera'!B516","v":""},{"$f":"IF(ISERROR(VLOOKUP(C513,'Capacidad Financiera'!$B$12:$X$62720,2,0)),\"\",VLOOKUP(C513,'Capacidad Financiera'!$B$12:$X$3580,2,0))","v":0},null,{"$f":"IF(OR(D513=\"\",E513=\"\"),\"\",IF(AND(E513>0,E513<=CapTecnica1),Puntajes!$H$4,IF(AND(E513>CapTecnica1,E513<=CapTecnica2),Puntajes!$H$5,IF(E513>CapTecnica2,Puntajes!$H$6,0))))","v":""}]
[null,null,{"$f":"+'Capacidad Financiera'!B517","v":""},{"$f":"IF(ISERROR(VLOOKUP(C514,'Capacidad Financiera'!$B$12:$X$62720,2,0)),\"\",VLOOKUP(C514,'Capacidad Financiera'!$B$12:$X$3580,2,0))","v":0},null,{"$f":"IF(OR(D514=\"\",E514=\"\"),\"\",IF(AND(E514>0,E514<=CapTecnica1),Puntajes!$H$4,IF(AND(E514>CapTecnica1,E514<=CapTecnica2),Puntajes!$H$5,IF(E514>CapTecnica2,Puntajes!$H$6,0))))","v":""}]
[null,null,47,{"$f":"IF(ISERROR(VLOOKUP(C515,'Capacidad Financiera'!$B$12:$X$62720,2,0)),\"\",VLOOKUP(C515,'Capacidad Financiera'!$B$12:$X$3580,2,0))","v":"CONSORCIO GAMA 034"},null,{"$f":"IF(C516=\"\",IF(E515=\"\",\"\",IF(AND(E515>0,E515<=CapTecnica1),Puntajes!$H$4,IF(AND(E515>CapTecnica1,E515<=CapTecnica2),Puntajes!$H$5,IF(E515>CapTecnica2,Puntajes!$H$6,0)))),\"\")","v":""}]
[null,null,{"$f":"+'Capacidad Financiera'!B519","v":47.1},{"$f":"IF(ISERROR(VLOOKUP(C516,'Capacidad Financiera'!$B$12:$X$62720,2,0)),\"\",VLOOKUP(C516,'Capacidad Financiera'!$B$12:$X$3580,2,0))","v":"GAMA INGENIEROS ARQUITECTOS S.A.S."},null,{"$f":"IF(OR(D516=\"\",E516=\"\"),\"\",IF(AND(E516>0,E516<=CapTecnica1),Puntajes!$H$4,IF(AND(E516>CapTecnica1,E516<=CapTecnica2),Puntajes!$H$5,IF(E516>CapTecnica2,Puntajes!$H$6,0))))","v":""}]
[null,null,{"$f":"+'Capacidad Financiera'!B520","v":47.2},{"$f":"IF(ISERROR(VLOOKUP(C517,'Capacidad Financiera'!$B$12:$X$62720,2,0)),\"\",VLOOKUP(C517,'Capacidad Financiera'!$B$12:$X$3580,2,0))","v":"JOSE GALAN GOMEZ"},null,{"$f":"IF(OR(D517=\"\",E517=\"\"),\"\",IF(AND(E517>0,E517<=CapTecnica1),Puntajes!$H$4,IF(AND(E517>CapTecnica1,E517<=CapTecnica2),Puntajes!$H$5,IF(E517>CapTecnica2,Puntajes!$H$6,0))))","v":""}]
[null,null,{"$f":"+'Capacidad Financiera'!B521","v":""},{"$f":"IF(ISERROR(VLOOKUP(C518,'Capacidad Financiera'!$B$12:$X$62720,2,0)),\"\",VLOOKUP(C518,'Capacidad Financiera'!$B$12:$X$3580,2,0))","v":0},null,{"$f":"IF(OR(D518=\"\",E518=\"\"),\"\",IF(AND(E518>0,E518<=CapTecnica1),Puntajes!$H$4,IF(AND(E518>CapTecnica1,E518<=CapTecnica2),Puntajes!$H$5,IF(E518>CapTecnica2,Puntajes!$H$6,0))))","v":""}]
[null,null,{"$f":"+'Capacidad Financiera'!B522","v":""},{"$f":"IF(ISERROR(VLOOKUP(C519,'Capacidad Financiera'!$B$12:$X$62720,2,0)),\"\",VLOOKUP(C519,'Capacidad Financiera'!$B$12:$X$3580,2,0))","v":0},null,{"$f":"IF(OR(D519=\"\",E519=\"\"),\"\",IF(AND(E519>0,E519<=CapTecnica1),Puntajes!$H$4,IF(AND(E519>CapTecnica1,E519<=CapTecnica2),Puntajes!$H$5,IF(E519>CapTecnica2,Puntajes!$H$6,0))))","v":""}]
[null,null,{"$f":"+'Capacidad Financiera'!B523","v":""},{"$f":"IF(ISERROR(VLOOKUP(C520,'Capacidad Financiera'!$B$12:$X$62720,2,0)),\"\",VLOOKUP(C520,'Capacidad Financiera'!$B$12:$X$3580,2,0))","v":0},null,{"$f":"IF(OR(D520=\"\",E520=\"\"),\"\",IF(AND(E520>0,E520<=CapTecnica1),Puntajes!$H$4,IF(AND(E520>CapTecnica1,E520<=CapTecnica2),Puntajes!$H$5,IF(E520>CapTecnica2,Puntajes!$H$6,0))))","v":""}]
[null,null,{"$f":"+'Capacidad Financiera'!B524","v":""},{"$f":"IF(ISERROR(VLOOKUP(C521,'Capacidad Financiera'!$B$12:$X$62720,2,0)),\"\",VLOOKUP(C521,'Capacidad Financiera'!$B$12:$X$3580,2,0))","v":0},null,{"$f":"IF(OR(D521=\"\",E521=\"\"),\"\",IF(AND(E521>0,E521<=CapTecnica1),Puntajes!$H$4,IF(AND(E521>CapTecnica1,E521<=CapTecnica2),Puntajes!$H$5,IF(E521>CapTecnica2,Puntajes!$H$6,0))))","v":""}]
[null,null,{"$f":"+'Capacidad Financiera'!B525","v":""},{"$f":"IF(ISERROR(VLOOKUP(C522,'Capacidad Financiera'!$B$12:$X$62720,2,0)),\"\",VLOOKUP(C522,'Capacidad Financiera'!$B$12:$X$3580,2,0))","v":0},null,{"$f":"IF(OR(D522=\"\",E522=\"\"),\"\",IF(AND(E522>0,E522<=CapTecnica1),Puntajes!$H$4,IF(AND(E522>CapTecnica1,E522<=CapTecnica2),Puntajes!$H$5,IF(E522>CapTecnica2,Puntajes!$H$6,0))))","v":""}]
[null,null,{"$f":"+'Capacidad Financiera'!B526","v":""},{"$f":"IF(ISERROR(VLOOKUP(C523,'Capacidad Financiera'!$B$12:$X$62720,2,0)),\"\",VLOOKUP(C523,'Capacidad Financiera'!$B$12:$X$3580,2,0))","v":0},null,{"$f":"IF(OR(D523=\"\",E523=\"\"),\"\",IF(AND(E523>0,E523<=CapTecnica1),Puntajes!$H$4,IF(AND(E523>CapTecnica1,E523<=CapTecnica2),Puntajes!$H$5,IF(E523>CapTecnica2,Puntajes!$H$6,0))))","v":""}]
[null,null,{"$f":"+'Capacidad Financiera'!B527","v":""},{"$f":"IF(ISERROR(VLOOKUP(C524,'Capacidad Financiera'!$B$12:$X$62720,2,0)),\"\",VLOOKUP(C524,'Capacidad Financiera'!$B$12:$X$3580,2,0))","v":0},null,{"$f":"IF(OR(D524=\"\",E524=\"\"),\"\",IF(AND(E524>0,E524<=CapTecnica1),Puntajes!$H$4,IF(AND(E524>CapTecnica1,E524<=CapTecnica2),Puntajes!$H$5,IF(E524>CapTecnica2,Puntajes!$H$6,0))))","v":""}]
[null,null,{"$f":"+'Capacidad Financiera'!B528","v":""},{"$f":"IF(ISERROR(VLOOKUP(C525,'Capacidad Financiera'!$B$12:$X$62720,2,0)),\"\",VLOOKUP(C525,'Capacidad Financiera'!$B$12:$X$3580,2,0))","v":0},null,{"$f":"IF(OR(D525=\"\",E525=\"\"),\"\",IF(AND(E525>0,E525<=CapTecnica1),Puntajes!$H$4,IF(AND(E525>CapTecnica1,E525<=CapTecnica2),Puntajes!$H$5,IF(E525>CapTecnica2,Puntajes!$H$6,0))))","v":""}]
[null,null,48,{"$f":"IF(ISERROR(VLOOKUP(C526,'Capacidad Financiera'!$B$12:$X$62720,2,0)),\"\",VLOOKUP(C526,'Capacidad Financiera'!$B$12:$X$3580,2,0))","v":0},null,{"$f":"IF(C527=\"\",IF(E526=\"\",\"\",IF(AND(E526>0,E526<=CapTecnica1),Puntajes!$H$4,IF(AND(E526>CapTecnica1,E526<=CapTecnica2),Puntajes!$H$5,IF(E526>CapTecnica2,Puntajes!$H$6,0)))),\"\")","v":""}]
[null,null,{"$f":"+'Capacidad Financiera'!B530","v":""},{"$f":"IF(ISERROR(VLOOKUP(C527,'Capacidad Financiera'!$B$12:$X$62720,2,0)),\"\",VLOOKUP(C527,'Capacidad Financiera'!$B$12:$X$3580,2,0))","v":0},null,{"$f":"IF(OR(D527=\"\",E527=\"\"),\"\",IF(AND(E527>0,E527<=CapTecnica1),Puntajes!$H$4,IF(AND(E527>CapTecnica1,E527<=CapTecnica2),Puntajes!$H$5,IF(E527>CapTecnica2,Puntajes!$H$6,0))))","v":""}]
[null,null,{"$f":"+'Capacidad Financiera'!B531","v":""},{"$f":"IF(ISERROR(VLOOKUP(C528,'Capacidad Financiera'!$B$12:$X$62720,2,0)),\"\",VLOOKUP(C528,'Capacidad Financiera'!$B$12:$X$3580,2,0))","v":0},null,{"$f":"IF(OR(D528=\"\",E528=\"\"),\"\",IF(AND(E528>0,E528<=CapTecnica1),Puntajes!$H$4,IF(AND(E528>CapTecnica1,E528<=CapTecnica2),Puntajes!$H$5,IF(E528>CapTecnica2,Puntajes!$H$6,0))))","v":""}]
[null,null,{"$f":"+'Capacidad Financiera'!B532","v":""},{"$f":"IF(ISERROR(VLOOKUP(C529,'Capacidad Financiera'!$B$12:$X$62720,2,0)),\"\",VLOOKUP(C529,'Capacidad Financiera'!$B$12:$X$3580,2,0))","v":0},null,{"$f":"IF(OR(D529=\"\",E529=\"\"),\"\",IF(AND(E529>0,E529<=CapTecnica1),Puntajes!$H$4,IF(AND(E529>CapTecnica1,E529<=CapTecnica2),Puntajes!$H$5,IF(E529>CapTecnica2,Puntajes!$H$6,0))))","v":""}]
[null,null,{"$f":"+'Capacidad Financiera'!B533","v":""},{"$f":"IF(ISERROR(VLOOKUP(C530,'Capacidad Financiera'!$B$12:$X$62720,2,0)),\"\",VLOOKUP(C530,'Capacidad Financiera'!$B$12:$X$3580,2,0))","v":0},null,{"$f":"IF(OR(D530=\"\",E530=\"\"),\"\",IF(AND(E530>0,E530<=CapTecnica1),Puntajes!$H$4,IF(AND(E530>CapTecnica1,E530<=CapTecnica2),Puntajes!$H$5,IF(E530>CapTecnica2,Puntajes!$H$6,0))))","v":""}]
[null,null,{"$f":"+'Capacidad Financiera'!B534","v":""},{"$f":"IF(ISERROR(VLOOKUP(C531,'Capacidad Financiera'!$B$12:$X$62720,2,0)),\"\",VLOOKUP(C531,'Capacidad Financiera'!$B$12:$X$3580,2,0))","v":0},null,{"$f":"IF(OR(D531=\"\",E531=\"\"),\"\",IF(AND(E531>0,E531<=CapTecnica1),Puntajes!$H$4,IF(AND(E531>CapTecnica1,E531<=CapTecnica2),Puntajes!$H$5,IF(E531>CapTecnica2,Puntajes!$H$6,0))))","v":""}]
[null,null,{"$f":"+'Capacidad Financiera'!B535","v":""},{"$f":"IF(ISERROR(VLOOKUP(C532,'Capacidad Financiera'!$B$12:$X$62720,2,0)),\"\",VLOOKUP(C532,'Capacidad Financiera'!$B$12:$X$3580,2,0))","v":0},null,{"$f":"IF(OR(D532=\"\",E532=\"\"),\"\",IF(AND(E532>0,E532<=CapTecnica1),Puntajes!$H$4,IF(AND(E532>CapTecnica1,E532<=CapTecnica2),Puntajes!$H$5,IF(E532>CapTecnica2,Puntajes!$H$6,0))))","v":""}]
[null,null,{"$f":"+'Capacidad Financiera'!B536","v":""},{"$f":"IF(ISERROR(VLOOKUP(C533,'Capacidad Financiera'!$B$12:$X$62720,2,0)),\"\",VLOOKUP(C533,'Capacidad Financiera'!$B$12:$X$3580,2,0))","v":0},null,{"$f":"IF(OR(D533=\"\",E533=\"\"),\"\",IF(AND(E533>0,E533<=CapTecnica1),Puntajes!$H$4,IF(AND(E533>CapTecnica1,E533<=CapTecnica2),Puntajes!$H$5,IF(E533>CapTecnica2,Puntajes!$H$6,0))))","v":""}]
[null,null,{"$f":"+'Capacidad Financiera'!B537","v":""},{"$f":"IF(ISERROR(VLOOKUP(C534,'Capacidad Financiera'!$B$12:$X$62720,2,0)),\"\",VLOOKUP(C534,'Capacidad Financiera'!$B$12:$X$3580,2,0))","v":0},null,{"$f":"IF(OR(D534=\"\",E534=\"\"),\"\",IF(AND(E534>0,E534<=CapTecnica1),Puntajes!$H$4,IF(AND(E534>CapTecnica1,E534<=CapTecnica2),Puntajes!$H$5,IF(E534>CapTecnica2,Puntajes!$H$6,0))))","v":""}]
[null,null,{"$f":"+'Capacidad Financiera'!B538","v":""},{"$f":"IF(ISERROR(VLOOKUP(C535,'Capacidad Financiera'!$B$12:$X$62720,2,0)),\"\",VLOOKUP(C535,'Capacidad Financiera'!$B$12:$X$3580,2,0))","v":0},null,{"$f":"IF(OR(D535=\"\",E535=\"\"),\"\",IF(AND(E535>0,E535<=CapTecnica1),Puntajes!$H$4,IF(AND(E535>CapTecnica1,E535<=CapTecnica2),Puntajes!$H$5,IF(E535>CapTecnica2,Puntajes!$H$6,0))))","v":""}]
[null,null,{"$f":"+'Capacidad Financiera'!B539","v":""},{"$f":"IF(ISERROR(VLOOKUP(C536,'Capacidad Financiera'!$B$12:$X$62720,2,0)),\"\",VLOOKUP(C536,'Capacidad Financiera'!$B$12:$X$3580,2,0))","v":0},null,{"$f":"IF(OR(D536=\"\",E536=\"\"),\"\",IF(AND(E536>0,E536<=CapTecnica1),Puntajes!$H$4,IF(AND(E536>CapTecnica1,E536<=CapTecnica2),Puntajes!$H$5,IF(E536>CapTecnica2,Puntajes!$H$6,0))))","v":""}]
[null,null,49,{"$f":"IF(ISERROR(VLOOKUP(C537,'Capacidad Financiera'!$B$12:$X$62720,2,0)),\"\",VLOOKUP(C537,'Capacidad Financiera'!$B$12:$X$3580,2,0))","v":0},null,{"$f":"IF(C538=\"\",IF(E537=\"\",\"\",IF(AND(E537>0,E537<=CapTecnica1),Puntajes!$H$4,IF(AND(E537>CapTecnica1,E537<=CapTecnica2),Puntajes!$H$5,IF(E537>CapTecnica2,Puntajes!$H$6,0)))),\"\")","v":""}]
[null,null,{"$f":"+'Capacidad Financiera'!B541","v":""},{"$f":"IF(ISERROR(VLOOKUP(C538,'Capacidad Financiera'!$B$12:$X$62720,2,0)),\"\",VLOOKUP(C538,'Capacidad Financiera'!$B$12:$X$3580,2,0))","v":0},null,{"$f":"IF(OR(D538=\"\",E538=\"\"),\"\",IF(AND(E538>0,E538<=CapTecnica1),Puntajes!$H$4,IF(AND(E538>CapTecnica1,E538<=CapTecnica2),Puntajes!$H$5,IF(E538>CapTecnica2,Puntajes!$H$6,0))))","v":""}]
[null,null,{"$f":"+'Capacidad Financiera'!B542","v":""},{"$f":"IF(ISERROR(VLOOKUP(C539,'Capacidad Financiera'!$B$12:$X$62720,2,0)),\"\",VLOOKUP(C539,'Capacidad Financiera'!$B$12:$X$3580,2,0))","v":0},null,{"$f":"IF(OR(D539=\"\",E539=\"\"),\"\",IF(AND(E539>0,E539<=CapTecnica1),Puntajes!$H$4,IF(AND(E539>CapTecnica1,E539<=CapTecnica2),Puntajes!$H$5,IF(E539>CapTecnica2,Puntajes!$H$6,0))))","v":""}]
[null,null,{"$f":"+'Capacidad Financiera'!B543","v":""},{"$f":"IF(ISERROR(VLOOKUP(C540,'Capacidad Financiera'!$B$12:$X$62720,2,0)),\"\",VLOOKUP(C540,'Capacidad Financiera'!$B$12:$X$3580,2,0))","v":0},null,{"$f":"IF(OR(D540=\"\",E540=\"\"),\"\",IF(AND(E540>0,E540<=CapTecnica1),Puntajes!$H$4,IF(AND(E540>CapTecnica1,E540<=CapTecnica2),Puntajes!$H$5,IF(E540>CapTecnica2,Puntajes!$H$6,0))))","v":""}]
[null,null,{"$f":"+'Capacidad Financiera'!B544","v":""},{"$f":"IF(ISERROR(VLOOKUP(C541,'Capacidad Financiera'!$B$12:$X$62720,2,0)),\"\",VLOOKUP(C541,'Capacidad Financiera'!$B$12:$X$3580,2,0))","v":0},null,{"$f":"IF(OR(D541=\"\",E541=\"\"),\"\",IF(AND(E541>0,E541<=CapTecnica1),Puntajes!$H$4,IF(AND(E541>CapTecnica1,E541<=CapTecnica2),Puntajes!$H$5,IF(E541>CapTecnica2,Puntajes!$H$6,0))))","v":""}]
[null,null,{"$f":"+'Capacidad Financiera'!B545","v":""},{"$f":"IF(ISERROR(VLOOKUP(C542,'Capacidad Financiera'!$B$12:$X$62720,2,0)),\"\",VLOOKUP(C542,'Capacidad Financiera'!$B$12:$X$3580,2,0))","v":0},null,{"$f":"IF(OR(D542=\"\",E542=\"\"),\"\",IF(AND(E542>0,E542<=CapTecnica1),Puntajes!$H$4,IF(AND(E542>CapTecnica1,E542<=CapTecnica2),Puntajes!$H$5,IF(E542>CapTecnica2,Puntajes!$H$6,0))))","v":""}]
[null,null,{"$f":"+'Capacidad Financiera'!B546","v":""},{"$f":"IF(ISERROR(VLOOKUP(C543,'Capacidad Financiera'!$B$12:$X$62720,2,0)),\"\",VLOOKUP(C543,'Capacidad Financiera'!$B$12:$X$3580,2,0))","v":0},null,{"$f":"IF(OR(D543=\"\",E543=\"\"),\"\",IF(AND(E543>0,E543<=CapTecnica1),Puntajes!$H$4,IF(AND(E543>CapTecnica1,E543<=CapTecnica2),Puntajes!$H$5,IF(E543>CapTecnica2,Puntajes!$H$6,0))))","v":""}]
[null,null,{"$f":"+'Capacidad Financiera'!B547","v":""},{"$f":"IF(ISERROR(VLOOKUP(C544,'Capacidad Financiera'!$B$12:$X$62720,2,0)),\"\",VLOOKUP(C544,'Capacidad Financiera'!$B$12:$X$3580,2,0))","v":0},null,{"$f":"IF(OR(D544=\"\",E544=\"\"),\"\",IF(AND(E544>0,E544<=CapTecnica1),Puntajes!$H$4,IF(AND(E544>CapTecnica1,E544<=CapTecnica2),Puntajes!$H$5,IF(E544>CapTecnica2,Puntajes!$H$6,0))))","v":""}]
[null,null,{"$f":"+'Capacidad Financiera'!B548","v":""},{"$f":"IF(ISERROR(VLOOKUP(C545,'Capacidad Financiera'!$B$12:$X$62720,2,0)),\"\",VLOOKUP(C545,'Capacidad Financiera'!$B$12:$X$3580,2,0))","v":0},null,{"$f":"IF(OR(D545=\"\",E545=\"\"),\"\",IF(AND(E545>0,E545<=CapTecnica1),Puntajes!$H$4,IF(AND(E545>CapTecnica1,E545<=CapTecnica2),Puntajes!$H$5,IF(E545>CapTecnica2,Puntajes!$H$6,0))))","v":""}]
[null,null,{"$f":"+'Capacidad Financiera'!B549","v":""},{"$f":"IF(ISERROR(VLOOKUP(C546,'Capacidad Financiera'!$B$12:$X$62720,2,0)),\"\",VLOOKUP(C546,'Capacidad Financiera'!$B$12:$X$3580,2,0))","v":0},null,{"$f":"IF(OR(D546=\"\",E546=\"\"),\"\",IF(AND(E546>0,E546<=CapTecnica1),Puntajes!$H$4,IF(AND(E546>CapTecnica1,E546<=CapTecnica2),Puntajes!$H$5,IF(E546>CapTecnica2,Puntajes!$H$6,0))))","v":""}]
[null,null,{"$f":"+'Capacidad Financiera'!B550","v":""},{"$f":"IF(ISERROR(VLOOKUP(C547,'Capacidad Financiera'!$B$12:$X$62720,2,0)),\"\",VLOOKUP(C547,'Capacidad Financiera'!$B$12:$X$3580,2,0))","v":0},null,{"$f":"IF(OR(D547=\"\",E547=\"\"),\"\",IF(AND(E547>0,E547<=CapTecnica1),Puntajes!$H$4,IF(AND(E547>CapTecnica1,E547<=CapTecnica2),Puntajes!$H$5,IF(E547>CapTecnica2,Puntajes!$H$6,0))))","v":""}]
[null,null,50,{"$f":"IF(ISERROR(VLOOKUP(C548,'Capacidad Financiera'!$B$12:$X$62720,2,0)),\"\",VLOOKUP(C548,'Capacidad Financiera'!$B$12:$X$3580,2,0))","v":0},null,{"$f":"IF(C549=\"\",IF(E548=\"\",\"\",IF(AND(E548>0,E548<=CapTecnica1),Puntajes!$H$4,IF(AND(E548>CapTecnica1,E548<=CapTecnica2),Puntajes!$H$5,IF(E548>CapTecnica2,Puntajes!$H$6,0)))),\"\")","v":""}]
[null,null,{"$f":"+'Capacidad Financiera'!B552","v":""},{"$f":"IF(ISERROR(VLOOKUP(C549,'Capacidad Financiera'!$B$12:$X$62720,2,0)),\"\",VLOOKUP(C549,'Capacidad Financiera'!$B$12:$X$3580,2,0))","v":0},null,{"$f":"IF(OR(D549=\"\",E549=\"\"),\"\",IF(AND(E549>0,E549<=CapTecnica1),Puntajes!$H$4,IF(AND(E549>CapTecnica1,E549<=CapTecnica2),Puntajes!$H$5,IF(E549>CapTecnica2,Puntajes!$H$6,0))))","v":""}]
[null,null,{"$f":"+'Capacidad Financiera'!B553","v":""},{"$f":"IF(ISERROR(VLOOKUP(C550,'Capacidad Financiera'!$B$12:$X$62720,2,0)),\"\",VLOOKUP(C550,'Capacidad Financiera'!$B$12:$X$3580,2,0))","v":0},null,{"$f":"IF(OR(D550=\"\",E550=\"\"),\"\",IF(AND(E550>0,E550<=CapTecnica1),Puntajes!$H$4,IF(AND(E550>CapTecnica1,E550<=CapTecnica2),Puntajes!$H$5,IF(E550>CapTecnica2,Puntajes!$H$6,0))))","v":""}]
[null,null,{"$f":"+'Capacidad Financiera'!B554","v":""},{"$f":"IF(ISERROR(VLOOKUP(C551,'Capacidad Financiera'!$B$12:$X$62720,2,0)),\"\",VLOOKUP(C551,'Capacidad Financiera'!$B$12:$X$3580,2,0))","v":0},null,{"$f":"IF(OR(D551=\"\",E551=\"\"),\"\",IF(AND(E551>0,E551<=CapTecnica1),Puntajes!$H$4,IF(AND(E551>CapTecnica1,E551<=CapTecnica2),Puntajes!$H$5,IF(E551>CapTecnica2,Puntajes!$H$6,0))))","v":""}]
[null,null,{"$f":"+'Capacidad Financiera'!B555","v":""},{"$f":"IF(ISERROR(VLOOKUP(C552,'Capacidad Financiera'!$B$12:$X$62720,2,0)),\"\",VLOOKUP(C552,'Capacidad Financiera'!$B$12:$X$3580,2,0))","v":0},null,{"$f":"IF(OR(D552=\"\",E552=\"\"),\"\",IF(AND(E552>0,E552<=CapTecnica1),Puntajes!$H$4,IF(AND(E552>CapTecnica1,E552<=CapTecnica2),Puntajes!$H$5,IF(E552>CapTecnica2,Puntajes!$H$6,0))))","v":""}]
[null,null,{"$f":"+'Capacidad Financiera'!B556","v":""},{"$f":"IF(ISERROR(VLOOKUP(C553,'Capacidad Financiera'!$B$12:$X$62720,2,0)),\"\",VLOOKUP(C553,'Capacidad Financiera'!$B$12:$X$3580,2,0))","v":0},null,{"$f":"IF(OR(D553=\"\",E553=\"\"),\"\",IF(AND(E553>0,E553<=CapTecnica1),Puntajes!$H$4,IF(AND(E553>CapTecnica1,E553<=CapTecnica2),Puntajes!$H$5,IF(E553>CapTecnica2,Puntajes!$H$6,0))))","v":""}]
[null,null,{"$f":"+'Capacidad Financiera'!B557","v":""},{"$f":"IF(ISERROR(VLOOKUP(C554,'Capacidad Financiera'!$B$12:$X$62720,2,0)),\"\",VLOOKUP(C554,'Capacidad Financiera'!$B$12:$X$3580,2,0))","v":0},null,{"$f":"IF(OR(D554=\"\",E554=\"\"),\"\",IF(AND(E554>0,E554<=CapTecnica1),Puntajes!$H$4,IF(AND(E554>CapTecnica1,E554<=CapTecnica2),Puntajes!$H$5,IF(E554>CapTecnica2,Puntajes!$H$6,0))))","v":""}]
[null,null,{"$f":"+'Capacidad Financiera'!B558","v":""},{"$f":"IF(ISERROR(VLOOKUP(C555,'Capacidad Financiera'!$B$12:$X$62720,2,0)),\"\",VLOOKUP(C555,'Capacidad Financiera'!$B$12:$X$3580,2,0))","v":0},null,{"$f":"IF(OR(D555=\"\",E555=\"\"),\"\",IF(AND(E555>0,E555<=CapTecnica1),Puntajes!$H$4,IF(AND(E555>CapTecnica1,E555<=CapTecnica2),Puntajes!$H$5,IF(E555>CapTecnica2,Puntajes!$H$6,0))))","v":""}]
[null,null,{"$f":"+'Capacidad Financiera'!B559","v":""},{"$f":"IF(ISERROR(VLOOKUP(C556,'Capacidad Financiera'!$B$12:$X$62720,2,0)),\"\",VLOOKUP(C556,'Capacidad Financiera'!$B$12:$X$3580,2,0))","v":0},null,{"$f":"IF(OR(D556=\"\",E556=\"\"),\"\",IF(AND(E556>0,E556<=CapTecnica1),Puntajes!$H$4,IF(AND(E556>CapTecnica1,E556<=CapTecnica2),Puntajes!$H$5,IF(E556>CapTecnica2,Puntajes!$H$6,0))))","v":""}]
[null,null,{"$f":"+'Capacidad Financiera'!B560","v":""},{"$f":"IF(ISERROR(VLOOKUP(C557,'Capacidad Financiera'!$B$12:$X$62720,2,0)),\"\",VLOOKUP(C557,'Capacidad Financiera'!$B$12:$X$3580,2,0))","v":0},null,{"$f":"IF(OR(D557=\"\",E557=\"\"),\"\",IF(AND(E557>0,E557<=CapTecnica1),Puntajes!$H$4,IF(AND(E557>CapTecnica1,E557<=CapTecnica2),Puntajes!$H$5,IF(E557>CapTecnica2,Puntajes!$H$6,0))))","v":""}]
[null,null,{"$f":"+'Capacidad Financiera'!B561","v":""},{"$f":"IF(ISERROR(VLOOKUP(C558,'Capacidad Financiera'!$B$12:$X$62720,2,0)),\"\",VLOOKUP(C558,'Capacidad Financiera'!$B$12:$X$3580,2,0))","v":0},null,{"$f":"IF(OR(D558=\"\",E558=\"\"),\"\",IF(AND(E558>0,E558<=CapTecnica1),Puntajes!$H$4,IF(AND(E558>CapTecnica1,E558<=CapTecnica2),Puntajes!$H$5,IF(E558>CapTecnica2,Puntajes!$H$6,0))))","v":""}]
[null,null,51,{"$f":"IF(ISERROR(VLOOKUP(C559,'Capacidad Financiera'!$B$12:$X$62720,2,0)),\"\",VLOOKUP(C559,'Capacidad Financiera'!$B$12:$X$3580,2,0))","v":0},null,{"$f":"IF(C560=\"\",IF(E559=\"\",\"\",IF(AND(E559>0,E559<=CapTecnica1),Puntajes!$H$4,IF(AND(E559>CapTecnica1,E559<=CapTecnica2),Puntajes!$H$5,IF(E559>CapTecnica2,Puntajes!$H$6,0)))),\"\")","v":""}]
[null,null,{"$f":"+'Capacidad Financiera'!B563","v":""},{"$f":"IF(ISERROR(VLOOKUP(C560,'Capacidad Financiera'!$B$12:$X$62720,2,0)),\"\",VLOOKUP(C560,'Capacidad Financiera'!$B$12:$X$3580,2,0))","v":0},null,{"$f":"IF(OR(D560=\"\",E560=\"\"),\"\",IF(AND(E560>0,E560<=CapTecnica1),Puntajes!$H$4,IF(AND(E560>CapTecnica1,E560<=CapTecnica2),Puntajes!$H$5,IF(E560>CapTecnica2,Puntajes!$H$6,0))))","v":""}]
[null,null,{"$f":"+'Capacidad Financiera'!B564","v":""},{"$f":"IF(ISERROR(VLOOKUP(C561,'Capacidad Financiera'!$B$12:$X$62720,2,0)),\"\",VLOOKUP(C561,'Capacidad Financiera'!$B$12:$X$3580,2,0))","v":0},null,{"$f":"IF(OR(D561=\"\",E561=\"\"),\"\",IF(AND(E561>0,E561<=CapTecnica1),Puntajes!$H$4,IF(AND(E561>CapTecnica1,E561<=CapTecnica2),Puntajes!$H$5,IF(E561>CapTecnica2,Puntajes!$H$6,0))))","v":""}]
[null,null,{"$f":"+'Capacidad Financiera'!B565","v":""},{"$f":"IF(ISERROR(VLOOKUP(C562,'Capacidad Financiera'!$B$12:$X$62720,2,0)),\"\",VLOOKUP(C562,'Capacidad Financiera'!$B$12:$X$3580,2,0))","v":0},null,{"$f":"IF(OR(D562=\"\",E562=\"\"),\"\",IF(AND(E562>0,E562<=CapTecnica1),Puntajes!$H$4,IF(AND(E562>CapTecnica1,E562<=CapTecnica2),Puntajes!$H$5,IF(E562>CapTecnica2,Puntajes!$H$6,0))))","v":""}]
[null,null,{"$f":"+'Capacidad Financiera'!B566","v":""},{"$f":"IF(ISERROR(VLOOKUP(C563,'Capacidad Financiera'!$B$12:$X$62720,2,0)),\"\",VLOOKUP(C563,'Capacidad Financiera'!$B$12:$X$3580,2,0))","v":0},null,{"$f":"IF(OR(D563=\"\",E563=\"\"),\"\",IF(AND(E563>0,E563<=CapTecnica1),Puntajes!$H$4,IF(AND(E563>CapTecnica1,E563<=CapTecnica2),Puntajes!$H$5,IF(E563>CapTecnica2,Puntajes!$H$6,0))))","v":""}]
[null,null,{"$f":"+'Capacidad Financiera'!B567","v":""},{"$f":"IF(ISERROR(VLOOKUP(C564,'Capacidad Financiera'!$B$12:$X$62720,2,0)),\"\",VLOOKUP(C564,'Capacidad Financiera'!$B$12:$X$3580,2,0))","v":0},null,{"$f":"IF(OR(D564=\"\",E564=\"\"),\"\",IF(AND(E564>0,E564<=CapTecnica1),Puntajes!$H$4,IF(AND(E564>CapTecnica1,E564<=CapTecnica2),Puntajes!$H$5,IF(E564>CapTecnica2,Puntajes!$H$6,0))))","v":""}]
[null,null,{"$f":"+'Capacidad Financiera'!B568","v":""},{"$f":"IF(ISERROR(VLOOKUP(C565,'Capacidad Financiera'!$B$12:$X$62720,2,0)),\"\",VLOOKUP(C565,'Capacidad Financiera'!$B$12:$X$3580,2,0))","v":0},null,{"$f":"IF(OR(D565=\"\",E565=\"\"),\"\",IF(AND(E565>0,E565<=CapTecnica1),Puntajes!$H$4,IF(AND(E565>CapTecnica1,E565<=CapTecnica2),Puntajes!$H$5,IF(E565>CapTecnica2,Puntajes!$H$6,0))))","v":""}]
[null,null,{"$f":"+'Capacidad Financiera'!B569","v":""},{"$f":"IF(ISERROR(VLOOKUP(C566,'Capacidad Financiera'!$B$12:$X$62720,2,0)),\"\",VLOOKUP(C566,'Capacidad Financiera'!$B$12:$X$3580,2,0))","v":0},null,{"$f":"IF(OR(D566=\"\",E566=\"\"),\"\",IF(AND(E566>0,E566<=CapTecnica1),Puntajes!$H$4,IF(AND(E566>CapTecnica1,E566<=CapTecnica2),Puntajes!$H$5,IF(E566>CapTecnica2,Puntajes!$H$6,0))))","v":""}]
[null,null,{"$f":"+'Capacidad Financiera'!B570","v":""},{"$f":"IF(ISERROR(VLOOKUP(C567,'Capacidad Financiera'!$B$12:$X$62720,2,0)),\"\",VLOOKUP(C567,'Capacidad Financiera'!$B$12:$X$3580,2,0))","v":0},null,{"$f":"IF(OR(D567=\"\",E567=\"\"),\"\",IF(AND(E567>0,E567<=CapTecnica1),Puntajes!$H$4,IF(AND(E567>CapTecnica1,E567<=CapTecnica2),Puntajes!$H$5,IF(E567>CapTecnica2,Puntajes!$H$6,0))))","v":""}]
[null,null,{"$f":"+'Capacidad Financiera'!B571","v":""},{"$f":"IF(ISERROR(VLOOKUP(C568,'Capacidad Financiera'!$B$12:$X$62720,2,0)),\"\",VLOOKUP(C568,'Capacidad Financiera'!$B$12:$X$3580,2,0))","v":0},null,{"$f":"IF(OR(D568=\"\",E568=\"\"),\"\",IF(AND(E568>0,E568<=CapTecnica1),Puntajes!$H$4,IF(AND(E568>CapTecnica1,E568<=CapTecnica2),Puntajes!$H$5,IF(E568>CapTecnica2,Puntajes!$H$6,0))))","v":""}]
[null,null,{"$f":"+'Capacidad Financiera'!B572","v":""},{"$f":"IF(ISERROR(VLOOKUP(C569,'Capacidad Financiera'!$B$12:$X$62720,2,0)),\"\",VLOOKUP(C569,'Capacidad Financiera'!$B$12:$X$3580,2,0))","v":0},null,{"$f":"IF(OR(D569=\"\",E569=\"\"),\"\",IF(AND(E569>0,E569<=CapTecnica1),Puntajes!$H$4,IF(AND(E569>CapTecnica1,E569<=CapTecnica2),Puntajes!$H$5,IF(E569>CapTecnica2,Puntajes!$H$6,0))))","v":""}]
[null,null,52,{"$f":"IF(ISERROR(VLOOKUP(C570,'Capacidad Financiera'!$B$12:$X$62720,2,0)),\"\",VLOOKUP(C570,'Capacidad Financiera'!$B$12:$X$3580,2,0))","v":0},null,{"$f":"IF(C571=\"\",IF(E570=\"\",\"\",IF(AND(E570>0,E570<=CapTecnica1),Puntajes!$H$4,IF(AND(E570>CapTecnica1,E570<=CapTecnica2),Puntajes!$H$5,IF(E570>CapTecnica2,Puntajes!$H$6,0)))),\"\")","v":""}]
[null,null,{"$f":"+'Capacidad Financiera'!B574","v":""},{"$f":"IF(ISERROR(VLOOKUP(C571,'Capacidad Financiera'!$B$12:$X$62720,2,0)),\"\",VLOOKUP(C571,'Capacidad Financiera'!$B$12:$X$3580,2,0))","v":0},null,{"$f":"IF(OR(D571=\"\",E571=\"\"),\"\",IF(AND(E571>0,E571<=CapTecnica1),Puntajes!$H$4,IF(AND(E571>CapTecnica1,E571<=CapTecnica2),Puntajes!$H$5,IF(E571>CapTecnica2,Puntajes!$H$6,0))))","v":""}]
[null,null,{"$f":"+'Capacidad Financiera'!B575","v":""},{"$f":"IF(ISERROR(VLOOKUP(C572,'Capacidad Financiera'!$B$12:$X$62720,2,0)),\"\",VLOOKUP(C572,'Capacidad Financiera'!$B$12:$X$3580,2,0))","v":0},null,{"$f":"IF(OR(D572=\"\",E572=\"\"),\"\",IF(AND(E572>0,E572<=CapTecnica1),Puntajes!$H$4,IF(AND(E572>CapTecnica1,E572<=CapTecnica2),Puntajes!$H$5,IF(E572>CapTecnica2,Puntajes!$H$6,0))))","v":""}]
[null,null,{"$f":"+'Capacidad Financiera'!B576","v":""},{"$f":"IF(ISERROR(VLOOKUP(C573,'Capacidad Financiera'!$B$12:$X$62720,2,0)),\"\",VLOOKUP(C573,'Capacidad Financiera'!$B$12:$X$3580,2,0))","v":0},null,{"$f":"IF(OR(D573=\"\",E573=\"\"),\"\",IF(AND(E573>0,E573<=CapTecnica1),Puntajes!$H$4,IF(AND(E573>CapTecnica1,E573<=CapTecnica2),Puntajes!$H$5,IF(E573>CapTecnica2,Puntajes!$H$6,0))))","v":""}]
[null,null,{"$f":"+'Capacidad Financiera'!B577","v":""},{"$f":"IF(ISERROR(VLOOKUP(C574,'Capacidad Financiera'!$B$12:$X$62720,2,0)),\"\",VLOOKUP(C574,'Capacidad Financiera'!$B$12:$X$3580,2,0))","v":0},null,{"$f":"IF(OR(D574=\"\",E574=\"\"),\"\",IF(AND(E574>0,E574<=CapTecnica1),Puntajes!$H$4,IF(AND(E574>CapTecnica1,E574<=CapTecnica2),Puntajes!$H$5,IF(E574>CapTecnica2,Puntajes!$H$6,0))))","v":""}]
[null,null,{"$f":"+'Capacidad Financiera'!B578","v":""},{"$f":"IF(ISERROR(VLOOKUP(C575,'Capacidad Financiera'!$B$12:$X$62720,2,0)),\"\",VLOOKUP(C575,'Capacidad Financiera'!$B$12:$X$3580,2,0))","v":0},null,{"$f":"IF(OR(D575=\"\",E575=\"\"),\"\",IF(AND(E575>0,E575<=CapTecnica1),Puntajes!$H$4,IF(AND(E575>CapTecnica1,E575<=CapTecnica2),Puntajes!$H$5,IF(E575>CapTecnica2,Puntajes!$H$6,0))))","v":""}]
[null,null,{"$f":"+'Capacidad Financiera'!B579","v":""},{"$f":"IF(ISERROR(VLOOKUP(C576,'Capacidad Financiera'!$B$12:$X$62720,2,0)),\"\",VLOOKUP(C576,'Capacidad Financiera'!$B$12:$X$3580,2,0))","v":0},null,{"$f":"IF(OR(D576=\"\",E576=\"\"),\"\",IF(AND(E576>0,E576<=CapTecnica1),Puntajes!$H$4,IF(AND(E576>CapTecnica1,E576<=CapTecnica2),Puntajes!$H$5,IF(E576>CapTecnica2,Puntajes!$H$6,0))))","v":""}]
[null,null,{"$f":"+'Capacidad Financiera'!B580","v":""},{"$f":"IF(ISERROR(VLOOKUP(C577,'Capacidad Financiera'!$B$12:$X$62720,2,0)),\"\",VLOOKUP(C577,'Capacidad Financiera'!$B$12:$X$3580,2,0))","v":0},null,{"$f":"IF(OR(D577=\"\",E577=\"\"),\"\",IF(AND(E577>0,E577<=CapTecnica1),Puntajes!$H$4,IF(AND(E577>CapTecnica1,E577<=CapTecnica2),Puntajes!$H$5,IF(E577>CapTecnica2,Puntajes!$H$6,0))))","v":""}]
[null,null,{"$f":"+'Capacidad Financiera'!B581","v":""},{"$f":"IF(ISERROR(VLOOKUP(C578,'Capacidad Financiera'!$B$12:$X$62720,2,0)),\"\",VLOOKUP(C578,'Capacidad Financiera'!$B$12:$X$3580,2,0))","v":0},null,{"$f":"IF(OR(D578=\"\",E578=\"\"),\"\",IF(AND(E578>0,E578<=CapTecnica1),Puntajes!$H$4,IF(AND(E578>CapTecnica1,E578<=CapTecnica2),Puntajes!$H$5,IF(E578>CapTecnica2,Puntajes!$H$6,0))))","v":""}]
[null,null,{"$f":"+'Capacidad Financiera'!B582","v":""},{"$f":"IF(ISERROR(VLOOKUP(C579,'Capacidad Financiera'!$B$12:$X$62720,2,0)),\"\",VLOOKUP(C579,'Capacidad Financiera'!$B$12:$X$3580,2,0))","v":0},null,{"$f":"IF(OR(D579=\"\",E579=\"\"),\"\",IF(AND(E579>0,E579<=CapTecnica1),Puntajes!$H$4,IF(AND(E579>CapTecnica1,E579<=CapTecnica2),Puntajes!$H$5,IF(E579>CapTecnica2,Puntajes!$H$6,0))))","v":""}]
[null,null,{"$f":"+'Capacidad Financiera'!B583","v":""},{"$f":"IF(ISERROR(VLOOKUP(C580,'Capacidad Financiera'!$B$12:$X$62720,2,0)),\"\",VLOOKUP(C580,'Capacidad Financiera'!$B$12:$X$3580,2,0))","v":0},null,{"$f":"IF(OR(D580=\"\",E580=\"\"),\"\",IF(AND(E580>0,E580<=CapTecnica1),Puntajes!$H$4,IF(AND(E580>CapTecnica1,E580<=CapTecnica2),Puntajes!$H$5,IF(E580>CapTecnica2,Puntajes!$H$6,0))))","v":""}]
[null,null,53,{"$f":"IF(ISERROR(VLOOKUP(C581,'Capacidad Financiera'!$B$12:$X$62720,2,0)),\"\",VLOOKUP(C581,'Capacidad Financiera'!$B$12:$X$3580,2,0))","v":0},null,{"$f":"IF(C582=\"\",IF(E581=\"\",\"\",IF(AND(E581>0,E581<=CapTecnica1),Puntajes!$H$4,IF(AND(E581>CapTecnica1,E581<=CapTecnica2),Puntajes!$H$5,IF(E581>CapTecnica2,Puntajes!$H$6,0)))),\"\")","v":""}]
[null,null,{"$f":"+'Capacidad Financiera'!B585","v":""},{"$f":"IF(ISERROR(VLOOKUP(C582,'Capacidad Financiera'!$B$12:$X$62720,2,0)),\"\",VLOOKUP(C582,'Capacidad Financiera'!$B$12:$X$3580,2,0))","v":0},null,{"$f":"IF(OR(D582=\"\",E582=\"\"),\"\",IF(AND(E582>0,E582<=CapTecnica1),Puntajes!$H$4,IF(AND(E582>CapTecnica1,E582<=CapTecnica2),Puntajes!$H$5,IF(E582>CapTecnica2,Puntajes!$H$6,0))))","v":""}]
[null,null,{"$f":"+'Capacidad Financiera'!B586","v":""},{"$f":"IF(ISERROR(VLOOKUP(C583,'Capacidad Financiera'!$B$12:$X$62720,2,0)),\"\",VLOOKUP(C583,'Capacidad Financiera'!$B$12:$X$3580,2,0))","v":0},null,{"$f":"IF(OR(D583=\"\",E583=\"\"),\"\",IF(AND(E583>0,E583<=CapTecnica1),Puntajes!$H$4,IF(AND(E583>CapTecnica1,E583<=CapTecnica2),Puntajes!$H$5,IF(E583>CapTecnica2,Puntajes!$H$6,0))))","v":""}]
[null,null,{"$f":"+'Capacidad Financiera'!B587","v":""},{"$f":"IF(ISERROR(VLOOKUP(C584,'Capacidad Financiera'!$B$12:$X$62720,2,0)),\"\",VLOOKUP(C584,'Capacidad Financiera'!$B$12:$X$3580,2,0))","v":0},null,{"$f":"IF(OR(D584=\"\",E584=\"\"),\"\",IF(AND(E584>0,E584<=CapTecnica1),Puntajes!$H$4,IF(AND(E584>CapTecnica1,E584<=CapTecnica2),Puntajes!$H$5,IF(E584>CapTecnica2,Puntajes!$H$6,0))))","v":""}]
[null,null,{"$f":"+'Capacidad Financiera'!B588","v":""},{"$f":"IF(ISERROR(VLOOKUP(C585,'Capacidad Financiera'!$B$12:$X$62720,2,0)),\"\",VLOOKUP(C585,'Capacidad Financiera'!$B$12:$X$3580,2,0))","v":0},null,{"$f":"IF(OR(D585=\"\",E585=\"\"),\"\",IF(AND(E585>0,E585<=CapTecnica1),Puntajes!$H$4,IF(AND(E585>CapTecnica1,E585<=CapTecnica2),Puntajes!$H$5,IF(E585>CapTecnica2,Puntajes!$H$6,0))))","v":""}]
[null,null,{"$f":"+'Capacidad Financiera'!B589","v":""},{"$f":"IF(ISERROR(VLOOKUP(C586,'Capacidad Financiera'!$B$12:$X$62720,2,0)),\"\",VLOOKUP(C586,'Capacidad Financiera'!$B$12:$X$3580,2,0))","v":0},null,{"$f":"IF(OR(D586=\"\",E586=\"\"),\"\",IF(AND(E586>0,E586<=CapTecnica1),Puntajes!$H$4,IF(AND(E586>CapTecnica1,E586<=CapTecnica2),Puntajes!$H$5,IF(E586>CapTecnica2,Puntajes!$H$6,0))))","v":""}]
[null,null,{"$f":"+'Capacidad Financiera'!B590","v":""},{"$f":"IF(ISERROR(VLOOKUP(C587,'Capacidad Financiera'!$B$12:$X$62720,2,0)),\"\",VLOOKUP(C587,'Capacidad Financiera'!$B$12:$X$3580,2,0))","v":0},null,{"$f":"IF(OR(D587=\"\",E587=\"\"),\"\",IF(AND(E587>0,E587<=CapTecnica1),Puntajes!$H$4,IF(AND(E587>CapTecnica1,E587<=CapTecnica2),Puntajes!$H$5,IF(E587>CapTecnica2,Puntajes!$H$6,0))))","v":""}]
[null,null,{"$f":"+'Capacidad Financiera'!B591","v":""},{"$f":"IF(ISERROR(VLOOKUP(C588,'Capacidad Financiera'!$B$12:$X$62720,2,0)),\"\",VLOOKUP(C588,'Capacidad Financiera'!$B$12:$X$3580,2,0))","v":0},null,{"$f":"IF(OR(D588=\"\",E588=\"\"),\"\",IF(AND(E588>0,E588<=CapTecnica1),Puntajes!$H$4,IF(AND(E588>CapTecnica1,E588<=CapTecnica2),Puntajes!$H$5,IF(E588>CapTecnica2,Puntajes!$H$6,0))))","v":""}]
[null,null,{"$f":"+'Capacidad Financiera'!B592","v":""},{"$f":"IF(ISERROR(VLOOKUP(C589,'Capacidad Financiera'!$B$12:$X$62720,2,0)),\"\",VLOOKUP(C589,'Capacidad Financiera'!$B$12:$X$3580,2,0))","v":0},null,{"$f":"IF(OR(D589=\"\",E589=\"\"),\"\",IF(AND(E589>0,E589<=CapTecnica1),Puntajes!$H$4,IF(AND(E589>CapTecnica1,E589<=CapTecnica2),Puntajes!$H$5,IF(E589>CapTecnica2,Puntajes!$H$6,0))))","v":""}]
[null,null,{"$f":"+'Capacidad Financiera'!B593","v":""},{"$f":"IF(ISERROR(VLOOKUP(C590,'Capacidad Financiera'!$B$12:$X$62720,2,0)),\"\",VLOOKUP(C590,'Capacidad Financiera'!$B$12:$X$3580,2,0))","v":0},null,{"$f":"IF(OR(D590=\"\",E590=\"\"),\"\",IF(AND(E590>0,E590<=CapTecnica1),Puntajes!$H$4,IF(AND(E590>CapTecnica1,E590<=CapTecnica2),Puntajes!$H$5,IF(E590>CapTecnica2,Puntajes!$H$6,0))))","v":""}]
[null,null,{"$f":"+'Capacidad Financiera'!B594","v":""},{"$f":"IF(ISERROR(VLOOKUP(C591,'Capacidad Financiera'!$B$12:$X$62720,2,0)),\"\",VLOOKUP(C591,'Capacidad Financiera'!$B$12:$X$3580,2,0))","v":0},null,{"$f":"IF(OR(D591=\"\",E591=\"\"),\"\",IF(AND(E591>0,E591<=CapTecnica1),Puntajes!$H$4,IF(AND(E591>CapTecnica1,E591<=CapTecnica2),Puntajes!$H$5,IF(E591>CapTecnica2,Puntajes!$H$6,0))))","v":""}]
[null,null,54,{"$f":"IF(ISERROR(VLOOKUP(C592,'Capacidad Financiera'!$B$12:$X$62720,2,0)),\"\",VLOOKUP(C592,'Capacidad Financiera'!$B$12:$X$3580,2,0))","v":0},null,{"$f":"IF(C593=\"\",IF(E592=\"\",\"\",IF(AND(E592>0,E592<=CapTecnica1),Puntajes!$H$4,IF(AND(E592>CapTecnica1,E592<=CapTecnica2),Puntajes!$H$5,IF(E592>CapTecnica2,Puntajes!$H$6,0)))),\"\")","v":""}]
[null,null,{"$f":"+'Capacidad Financiera'!B596","v":""},{"$f":"IF(ISERROR(VLOOKUP(C593,'Capacidad Financiera'!$B$12:$X$62720,2,0)),\"\",VLOOKUP(C593,'Capacidad Financiera'!$B$12:$X$3580,2,0))","v":0},null,{"$f":"IF(OR(D593=\"\",E593=\"\"),\"\",IF(AND(E593>0,E593<=CapTecnica1),Puntajes!$H$4,IF(AND(E593>CapTecnica1,E593<=CapTecnica2),Puntajes!$H$5,IF(E593>CapTecnica2,Puntajes!$H$6,0))))","v":""}]
[null,null,{"$f":"+'Capacidad Financiera'!B597","v":""},{"$f":"IF(ISERROR(VLOOKUP(C594,'Capacidad Financiera'!$B$12:$X$62720,2,0)),\"\",VLOOKUP(C594,'Capacidad Financiera'!$B$12:$X$3580,2,0))","v":0},null,{"$f":"IF(OR(D594=\"\",E594=\"\"),\"\",IF(AND(E594>0,E594<=CapTecnica1),Puntajes!$H$4,IF(AND(E594>CapTecnica1,E594<=CapTecnica2),Puntajes!$H$5,IF(E594>CapTecnica2,Puntajes!$H$6,0))))","v":""}]
[null,null,{"$f":"+'Capacidad Financiera'!B598","v":""},{"$f":"IF(ISERROR(VLOOKUP(C595,'Capacidad Financiera'!$B$12:$X$62720,2,0)),\"\",VLOOKUP(C595,'Capacidad Financiera'!$B$12:$X$3580,2,0))","v":0},null,{"$f":"IF(OR(D595=\"\",E595=\"\"),\"\",IF(AND(E595>0,E595<=CapTecnica1),Puntajes!$H$4,IF(AND(E595>CapTecnica1,E595<=CapTecnica2),Puntajes!$H$5,IF(E595>CapTecnica2,Puntajes!$H$6,0))))","v":""}]
[null,null,{"$f":"+'Capacidad Financiera'!B599","v":""},{"$f":"IF(ISERROR(VLOOKUP(C596,'Capacidad Financiera'!$B$12:$X$62720,2,0)),\"\",VLOOKUP(C596,'Capacidad Financiera'!$B$12:$X$3580,2,0))","v":0},null,{"$f":"IF(OR(D596=\"\",E596=\"\"),\"\",IF(AND(E596>0,E596<=CapTecnica1),Puntajes!$H$4,IF(AND(E596>CapTecnica1,E596<=CapTecnica2),Puntajes!$H$5,IF(E596>CapTecnica2,Puntajes!$H$6,0))))","v":""}]
[null,null,{"$f":"+'Capacidad Financiera'!B600","v":""},{"$f":"IF(ISERROR(VLOOKUP(C597,'Capacidad Financiera'!$B$12:$X$62720,2,0)),\"\",VLOOKUP(C597,'Capacidad Financiera'!$B$12:$X$3580,2,0))","v":0},null,{"$f":"IF(OR(D597=\"\",E597=\"\"),\"\",IF(AND(E597>0,E597<=CapTecnica1),Puntajes!$H$4,IF(AND(E597>CapTecnica1,E597<=CapTecnica2),Puntajes!$H$5,IF(E597>CapTecnica2,Puntajes!$H$6,0))))","v":""}]
[null,null,{"$f":"+'Capacidad Financiera'!B601","v":""},{"$f":"IF(ISERROR(VLOOKUP(C598,'Capacidad Financiera'!$B$12:$X$62720,2,0)),\"\",VLOOKUP(C598,'Capacidad Financiera'!$B$12:$X$3580,2,0))","v":0},null,{"$f":"IF(OR(D598=\"\",E598=\"\"),\"\",IF(AND(E598>0,E598<=CapTecnica1),Puntajes!$H$4,IF(AND(E598>CapTecnica1,E598<=CapTecnica2),Puntajes!$H$5,IF(E598>CapTecnica2,Puntajes!$H$6,0))))","v":""}]
[null,null,{"$f":"+'Capacidad Financiera'!B602","v":""},{"$f":"IF(ISERROR(VLOOKUP(C599,'Capacidad Financiera'!$B$12:$X$62720,2,0)),\"\",VLOOKUP(C599,'Capacidad Financiera'!$B$12:$X$3580,2,0))","v":0},null,{"$f":"IF(OR(D599=\"\",E599=\"\"),\"\",IF(AND(E599>0,E599<=CapTecnica1),Puntajes!$H$4,IF(AND(E599>CapTecnica1,E599<=CapTecnica2),Puntajes!$H$5,IF(E599>CapTecnica2,Puntajes!$H$6,0))))","v":""}]
[null,null,{"$f":"+'Capacidad Financiera'!B603","v":""},{"$f":"IF(ISERROR(VLOOKUP(C600,'Capacidad Financiera'!$B$12:$X$62720,2,0)),\"\",VLOOKUP(C600,'Capacidad Financiera'!$B$12:$X$3580,2,0))","v":0},null,{"$f":"IF(OR(D600=\"\",E600=\"\"),\"\",IF(AND(E600>0,E600<=CapTecnica1),Puntajes!$H$4,IF(AND(E600>CapTecnica1,E600<=CapTecnica2),Puntajes!$H$5,IF(E600>CapTecnica2,Puntajes!$H$6,0))))","v":""}]
[null,null,{"$f":"+'Capacidad Financiera'!B604","v":""},{"$f":"IF(ISERROR(VLOOKUP(C601,'Capacidad Financiera'!$B$12:$X$62720,2,0)),\"\",VLOOKUP(C601,'Capacidad Financiera'!$B$12:$X$3580,2,0))","v":0},null,{"$f":"IF(OR(D601=\"\",E601=\"\"),\"\",IF(AND(E601>0,E601<=CapTecnica1),Puntajes!$H$4,IF(AND(E601>CapTecnica1,E601<=CapTecnica2),Puntajes!$H$5,IF(E601>CapTecnica2,Puntajes!$H$6,0))))","v":""}]
[null,null,{"$f":"+'Capacidad Financiera'!B605","v":""},{"$f":"IF(ISERROR(VLOOKUP(C602,'Capacidad Financiera'!$B$12:$X$62720,2,0)),\"\",VLOOKUP(C602,'Capacidad Financiera'!$B$12:$X$3580,2,0))","v":0},null,{"$f":"IF(OR(D602=\"\",E602=\"\"),\"\",IF(AND(E602>0,E602<=CapTecnica1),Puntajes!$H$4,IF(AND(E602>CapTecnica1,E602<=CapTecnica2),Puntajes!$H$5,IF(E602>CapTecnica2,Puntajes!$H$6,0))))","v":""}]
[null,null,55,{"$f":"IF(ISERROR(VLOOKUP(C603,'Capacidad Financiera'!$B$12:$X$62720,2,0)),\"\",VLOOKUP(C603,'Capacidad Financiera'!$B$12:$X$3580,2,0))","v":0},null,{"$f":"IF(C604=\"\",IF(E603=\"\",\"\",IF(AND(E603>0,E603<=CapTecnica1),Puntajes!$H$4,IF(AND(E603>CapTecnica1,E603<=CapTecnica2),Puntajes!$H$5,IF(E603>CapTecnica2,Puntajes!$H$6,0)))),\"\")","v":""}]
[null,null,{"$f":"+'Capacidad Financiera'!B607","v":""},{"$f":"IF(ISERROR(VLOOKUP(C604,'Capacidad Financiera'!$B$12:$X$62720,2,0)),\"\",VLOOKUP(C604,'Capacidad Financiera'!$B$12:$X$3580,2,0))","v":0},null,{"$f":"IF(OR(D604=\"\",E604=\"\"),\"\",IF(AND(E604>0,E604<=CapTecnica1),Puntajes!$H$4,IF(AND(E604>CapTecnica1,E604<=CapTecnica2),Puntajes!$H$5,IF(E604>CapTecnica2,Puntajes!$H$6,0))))","v":""}]
[null,null,{"$f":"+'Capacidad Financiera'!B608","v":""},{"$f":"IF(ISERROR(VLOOKUP(C605,'Capacidad Financiera'!$B$12:$X$62720,2,0)),\"\",VLOOKUP(C605,'Capacidad Financiera'!$B$12:$X$3580,2,0))","v":0},null,{"$f":"IF(OR(D605=\"\",E605=\"\"),\"\",IF(AND(E605>0,E605<=CapTecnica1),Puntajes!$H$4,IF(AND(E605>CapTecnica1,E605<=CapTecnica2),Puntajes!$H$5,IF(E605>CapTecnica2,Puntajes!$H$6,0))))","v":""}]
[null,null,{"$f":"+'Capacidad Financiera'!B609","v":""},{"$f":"IF(ISERROR(VLOOKUP(C606,'Capacidad Financiera'!$B$12:$X$62720,2,0)),\"\",VLOOKUP(C606,'Capacidad Financiera'!$B$12:$X$3580,2,0))","v":0},null,{"$f":"IF(OR(D606=\"\",E606=\"\"),\"\",IF(AND(E606>0,E606<=CapTecnica1),Puntajes!$H$4,IF(AND(E606>CapTecnica1,E606<=CapTecnica2),Puntajes!$H$5,IF(E606>CapTecnica2,Puntajes!$H$6,0))))","v":""}]
[null,null,{"$f":"+'Capacidad Financiera'!B610","v":""},{"$f":"IF(ISERROR(VLOOKUP(C607,'Capacidad Financiera'!$B$12:$X$62720,2,0)),\"\",VLOOKUP(C607,'Capacidad Financiera'!$B$12:$X$3580,2,0))","v":0},null,{"$f":"IF(OR(D607=\"\",E607=\"\"),\"\",IF(AND(E607>0,E607<=CapTecnica1),Puntajes!$H$4,IF(AND(E607>CapTecnica1,E607<=CapTecnica2),Puntajes!$H$5,IF(E607>CapTecnica2,Puntajes!$H$6,0))))","v":""}]
[null,null,{"$f":"+'Capacidad Financiera'!B611","v":""},{"$f":"IF(ISERROR(VLOOKUP(C608,'Capacidad Financiera'!$B$12:$X$62720,2,0)),\"\",VLOOKUP(C608,'Capacidad Financiera'!$B$12:$X$3580,2,0))","v":0},null,{"$f":"IF(OR(D608=\"\",E608=\"\"),\"\",IF(AND(E608>0,E608<=CapTecnica1),Puntajes!$H$4,IF(AND(E608>CapTecnica1,E608<=CapTecnica2),Puntajes!$H$5,IF(E608>CapTecnica2,Puntajes!$H$6,0))))","v":""}]
[null,null,{"$f":"+'Capacidad Financiera'!B612","v":""},{"$f":"IF(ISERROR(VLOOKUP(C609,'Capacidad Financiera'!$B$12:$X$62720,2,0)),\"\",VLOOKUP(C609,'Capacidad Financiera'!$B$12:$X$3580,2,0))","v":0},null,{"$f":"IF(OR(D609=\"\",E609=\"\"),\"\",IF(AND(E609>0,E609<=CapTecnica1),Puntajes!$H$4,IF(AND(E609>CapTecnica1,E609<=CapTecnica2),Puntajes!$H$5,IF(E609>CapTecnica2,Puntajes!$H$6,0))))","v":""}]
[null,null,{"$f":"+'Capacidad Financiera'!B613","v":""},{"$f":"IF(ISERROR(VLOOKUP(C610,'Capacidad Financiera'!$B$12:$X$62720,2,0)),\"\",VLOOKUP(C610,'Capacidad Financiera'!$B$12:$X$3580,2,0))","v":0},null,{"$f":"IF(OR(D610=\"\",E610=\"\"),\"\",IF(AND(E610>0,E610<=CapTecnica1),Puntajes!$H$4,IF(AND(E610>CapTecnica1,E610<=CapTecnica2),Puntajes!$H$5,IF(E610>CapTecnica2,Puntajes!$H$6,0))))","v":""}]
[null,null,{"$f":"+'Capacidad Financiera'!B614","v":""},{"$f":"IF(ISERROR(VLOOKUP(C611,'Capacidad Financiera'!$B$12:$X$62720,2,0)),\"\",VLOOKUP(C611,'Capacidad Financiera'!$B$12:$X$3580,2,0))","v":0},null,{"$f":"IF(OR(D611=\"\",E611=\"\"),\"\",IF(AND(E611>0,E611<=CapTecnica1),Puntajes!$H$4,IF(AND(E611>CapTecnica1,E611<=CapTecnica2),Puntajes!$H$5,IF(E611>CapTecnica2,Puntajes!$H$6,0))))","v":""}]
[null,null,{"$f":"+'Capacidad Financiera'!B615","v":""},{"$f":"IF(ISERROR(VLOOKUP(C612,'Capacidad Financiera'!$B$12:$X$62720,2,0)),\"\",VLOOKUP(C612,'Capacidad Financiera'!$B$12:$X$3580,2,0))","v":0},null,{"$f":"IF(OR(D612=\"\",E612=\"\"),\"\",IF(AND(E612>0,E612<=CapTecnica1),Puntajes!$H$4,IF(AND(E612>CapTecnica1,E612<=CapTecnica2),Puntajes!$H$5,IF(E612>CapTecnica2,Puntajes!$H$6,0))))","v":""}]
[null,null,{"$f":"+'Capacidad Financiera'!B616","v":""},{"$f":"IF(ISERROR(VLOOKUP(C613,'Capacidad Financiera'!$B$12:$X$62720,2,0)),\"\",VLOOKUP(C613,'Capacidad Financiera'!$B$12:$X$3580,2,0))","v":0},null,{"$f":"IF(OR(D613=\"\",E613=\"\"),\"\",IF(AND(E613>0,E613<=CapTecnica1),Puntajes!$H$4,IF(AND(E613>CapTecnica1,E613<=CapTecnica2),Puntajes!$H$5,IF(E613>CapTecnica2,Puntajes!$H$6,0))))","v":""}]
[null,null,56,{"$f":"IF(ISERROR(VLOOKUP(C614,'Capacidad Financiera'!$B$12:$X$62720,2,0)),\"\",VLOOKUP(C614,'Capacidad Financiera'!$B$12:$X$3580,2,0))","v":0},null,{"$f":"IF(C615=\"\",IF(E614=\"\",\"\",IF(AND(E614>0,E614<=CapTecnica1),Puntajes!$H$4,IF(AND(E614>CapTecnica1,E614<=CapTecnica2),Puntajes!$H$5,IF(E614>CapTecnica2,Puntajes!$H$6,0)))),\"\")","v":""}]
[null,null,{"$f":"+'Capacidad Financiera'!B618","v":""},{"$f":"IF(ISERROR(VLOOKUP(C615,'Capacidad Financiera'!$B$12:$X$62720,2,0)),\"\",VLOOKUP(C615,'Capacidad Financiera'!$B$12:$X$3580,2,0))","v":0},null,{"$f":"IF(OR(D615=\"\",E615=\"\"),\"\",IF(AND(E615>0,E615<=CapTecnica1),Puntajes!$H$4,IF(AND(E615>CapTecnica1,E615<=CapTecnica2),Puntajes!$H$5,IF(E615>CapTecnica2,Puntajes!$H$6,0))))","v":""}]
[null,null,{"$f":"+'Capacidad Financiera'!B619","v":""},{"$f":"IF(ISERROR(VLOOKUP(C616,'Capacidad Financiera'!$B$12:$X$62720,2,0)),\"\",VLOOKUP(C616,'Capacidad Financiera'!$B$12:$X$3580,2,0))","v":0},null,{"$f":"IF(OR(D616=\"\",E616=\"\"),\"\",IF(AND(E616>0,E616<=CapTecnica1),Puntajes!$H$4,IF(AND(E616>CapTecnica1,E616<=CapTecnica2),Puntajes!$H$5,IF(E616>CapTecnica2,Puntajes!$H$6,0))))","v":""}]
[null,null,{"$f":"+'Capacidad Financiera'!B620","v":""},{"$f":"IF(ISERROR(VLOOKUP(C617,'Capacidad Financiera'!$B$12:$X$62720,2,0)),\"\",VLOOKUP(C617,'Capacidad Financiera'!$B$12:$X$3580,2,0))","v":0},null,{"$f":"IF(OR(D617=\"\",E617=\"\"),\"\",IF(AND(E617>0,E617<=CapTecnica1),Puntajes!$H$4,IF(AND(E617>CapTecnica1,E617<=CapTecnica2),Puntajes!$H$5,IF(E617>CapTecnica2,Puntajes!$H$6,0))))","v":""}]
[null,null,{"$f":"+'Capacidad Financiera'!B621","v":""},{"$f":"IF(ISERROR(VLOOKUP(C618,'Capacidad Financiera'!$B$12:$X$62720,2,0)),\"\",VLOOKUP(C618,'Capacidad Financiera'!$B$12:$X$3580,2,0))","v":0},null,{"$f":"IF(OR(D618=\"\",E618=\"\"),\"\",IF(AND(E618>0,E618<=CapTecnica1),Puntajes!$H$4,IF(AND(E618>CapTecnica1,E618<=CapTecnica2),Puntajes!$H$5,IF(E618>CapTecnica2,Puntajes!$H$6,0))))","v":""}]
[null,null,{"$f":"+'Capacidad Financiera'!B622","v":""},{"$f":"IF(ISERROR(VLOOKUP(C619,'Capacidad Financiera'!$B$12:$X$62720,2,0)),\"\",VLOOKUP(C619,'Capacidad Financiera'!$B$12:$X$3580,2,0))","v":0},null,{"$f":"IF(OR(D619=\"\",E619=\"\"),\"\",IF(AND(E619>0,E619<=CapTecnica1),Puntajes!$H$4,IF(AND(E619>CapTecnica1,E619<=CapTecnica2),Puntajes!$H$5,IF(E619>CapTecnica2,Puntajes!$H$6,0))))","v":""}]
[null,null,{"$f":"+'Capacidad Financiera'!B623","v":""},{"$f":"IF(ISERROR(VLOOKUP(C620,'Capacidad Financiera'!$B$12:$X$62720,2,0)),\"\",VLOOKUP(C620,'Capacidad Financiera'!$B$12:$X$3580,2,0))","v":0},null,{"$f":"IF(OR(D620=\"\",E620=\"\"),\"\",IF(AND(E620>0,E620<=CapTecnica1),Puntajes!$H$4,IF(AND(E620>CapTecnica1,E620<=CapTecnica2),Puntajes!$H$5,IF(E620>CapTecnica2,Puntajes!$H$6,0))))","v":""}]
[null,null,{"$f":"+'Capacidad Financiera'!B624","v":""},{"$f":"IF(ISERROR(VLOOKUP(C621,'Capacidad Financiera'!$B$12:$X$62720,2,0)),\"\",VLOOKUP(C621,'Capacidad Financiera'!$B$12:$X$3580,2,0))","v":0},null,{"$f":"IF(OR(D621=\"\",E621=\"\"),\"\",IF(AND(E621>0,E621<=CapTecnica1),Puntajes!$H$4,IF(AND(E621>CapTecnica1,E621<=CapTecnica2),Puntajes!$H$5,IF(E621>CapTecnica2,Puntajes!$H$6,0))))","v":""}]
[null,null,{"$f":"+'Capacidad Financiera'!B625","v":""},{"$f":"IF(ISERROR(VLOOKUP(C622,'Capacidad Financiera'!$B$12:$X$62720,2,0)),\"\",VLOOKUP(C622,'Capacidad Financiera'!$B$12:$X$3580,2,0))","v":0},null,{"$f":"IF(OR(D622=\"\",E622=\"\"),\"\",IF(AND(E622>0,E622<=CapTecnica1),Puntajes!$H$4,IF(AND(E622>CapTecnica1,E622<=CapTecnica2),Puntajes!$H$5,IF(E622>CapTecnica2,Puntajes!$H$6,0))))","v":""}]
[null,null,{"$f":"+'Capacidad Financiera'!B626","v":""},{"$f":"IF(ISERROR(VLOOKUP(C623,'Capacidad Financiera'!$B$12:$X$62720,2,0)),\"\",VLOOKUP(C623,'Capacidad Financiera'!$B$12:$X$3580,2,0))","v":0},null,{"$f":"IF(OR(D623=\"\",E623=\"\"),\"\",IF(AND(E623>0,E623<=CapTecnica1),Puntajes!$H$4,IF(AND(E623>CapTecnica1,E623<=CapTecnica2),Puntajes!$H$5,IF(E623>CapTecnica2,Puntajes!$H$6,0))))","v":""}]
[null,null,{"$f":"+'Capacidad Financiera'!B627","v":""},{"$f":"IF(ISERROR(VLOOKUP(C624,'Capacidad Financiera'!$B$12:$X$62720,2,0)),\"\",VLOOKUP(C624,'Capacidad Financiera'!$B$12:$X$3580,2,0))","v":0},null,{"$f":"IF(OR(D624=\"\",E624=\"\"),\"\",IF(AND(E624>0,E624<=CapTecnica1),Puntajes!$H$4,IF(AND(E624>CapTecnica1,E624<=CapTecnica2),Puntajes!$H$5,IF(E624>CapTecnica2,Puntajes!$H$6,0))))","v":""}]
[null,null,57,{"$f":"IF(ISERROR(VLOOKUP(C625,'Capacidad Financiera'!$B$12:$X$62720,2,0)),\"\",VLOOKUP(C625,'Capacidad Financiera'!$B$12:$X$3580,2,0))","v":0},null,{"$f":"IF(C626=\"\",IF(E625=\"\",\"\",IF(AND(E625>0,E625<=CapTecnica1),Puntajes!$H$4,IF(AND(E625>CapTecnica1,E625<=CapTecnica2),Puntajes!$H$5,IF(E625>CapTecnica2,Puntajes!$H$6,0)))),\"\")","v":""}]
[null,null,{"$f":"+'Capacidad Financiera'!B629","v":""},{"$f":"IF(ISERROR(VLOOKUP(C626,'Capacidad Financiera'!$B$12:$X$62720,2,0)),\"\",VLOOKUP(C626,'Capacidad Financiera'!$B$12:$X$3580,2,0))","v":0},null,{"$f":"IF(OR(D626=\"\",E626=\"\"),\"\",IF(AND(E626>0,E626<=CapTecnica1),Puntajes!$H$4,IF(AND(E626>CapTecnica1,E626<=CapTecnica2),Puntajes!$H$5,IF(E626>CapTecnica2,Puntajes!$H$6,0))))","v":""}]
[null,null,{"$f":"+'Capacidad Financiera'!B630","v":""},{"$f":"IF(ISERROR(VLOOKUP(C627,'Capacidad Financiera'!$B$12:$X$62720,2,0)),\"\",VLOOKUP(C627,'Capacidad Financiera'!$B$12:$X$3580,2,0))","v":0},null,{"$f":"IF(OR(D627=\"\",E627=\"\"),\"\",IF(AND(E627>0,E627<=CapTecnica1),Puntajes!$H$4,IF(AND(E627>CapTecnica1,E627<=CapTecnica2),Puntajes!$H$5,IF(E627>CapTecnica2,Puntajes!$H$6,0))))","v":""}]
[null,null,{"$f":"+'Capacidad Financiera'!B631","v":""},{"$f":"IF(ISERROR(VLOOKUP(C628,'Capacidad Financiera'!$B$12:$X$62720,2,0)),\"\",VLOOKUP(C628,'Capacidad Financiera'!$B$12:$X$3580,2,0))","v":0},null,{"$f":"IF(OR(D628=\"\",E628=\"\"),\"\",IF(AND(E628>0,E628<=CapTecnica1),Puntajes!$H$4,IF(AND(E628>CapTecnica1,E628<=CapTecnica2),Puntajes!$H$5,IF(E628>CapTecnica2,Puntajes!$H$6,0))))","v":""}]
[null,null,{"$f":"+'Capacidad Financiera'!B632","v":""},{"$f":"IF(ISERROR(VLOOKUP(C629,'Capacidad Financiera'!$B$12:$X$62720,2,0)),\"\",VLOOKUP(C629,'Capacidad Financiera'!$B$12:$X$3580,2,0))","v":0},null,{"$f":"IF(OR(D629=\"\",E629=\"\"),\"\",IF(AND(E629>0,E629<=CapTecnica1),Puntajes!$H$4,IF(AND(E629>CapTecnica1,E629<=CapTecnica2),Puntajes!$H$5,IF(E629>CapTecnica2,Puntajes!$H$6,0))))","v":""}]
[null,null,{"$f":"+'Capacidad Financiera'!B633","v":""},{"$f":"IF(ISERROR(VLOOKUP(C630,'Capacidad Financiera'!$B$12:$X$62720,2,0)),\"\",VLOOKUP(C630,'Capacidad Financiera'!$B$12:$X$3580,2,0))","v":0},null,{"$f":"IF(OR(D630=\"\",E630=\"\"),\"\",IF(AND(E630>0,E630<=CapTecnica1),Puntajes!$H$4,IF(AND(E630>CapTecnica1,E630<=CapTecnica2),Puntajes!$H$5,IF(E630>CapTecnica2,Puntajes!$H$6,0))))","v":""}]
[null,null,{"$f":"+'Capacidad Financiera'!B634","v":""},{"$f":"IF(ISERROR(VLOOKUP(C631,'Capacidad Financiera'!$B$12:$X$62720,2,0)),\"\",VLOOKUP(C631,'Capacidad Financiera'!$B$12:$X$3580,2,0))","v":0},null,{"$f":"IF(OR(D631=\"\",E631=\"\"),\"\",IF(AND(E631>0,E631<=CapTecnica1),Puntajes!$H$4,IF(AND(E631>CapTecnica1,E631<=CapTecnica2),Puntajes!$H$5,IF(E631>CapTecnica2,Puntajes!$H$6,0))))","v":""}]
[null,null,{"$f":"+'Capacidad Financiera'!B635","v":""},{"$f":"IF(ISERROR(VLOOKUP(C632,'Capacidad Financiera'!$B$12:$X$62720,2,0)),\"\",VLOOKUP(C632,'Capacidad Financiera'!$B$12:$X$3580,2,0))","v":0},null,{"$f":"IF(OR(D632=\"\",E632=\"\"),\"\",IF(AND(E632>0,E632<=CapTecnica1),Puntajes!$H$4,IF(AND(E632>CapTecnica1,E632<=CapTecnica2),Puntajes!$H$5,IF(E632>CapTecnica2,Puntajes!$H$6,0))))","v":""}]
[null,null,{"$f":"+'Capacidad Financiera'!B636","v":""},{"$f":"IF(ISERROR(VLOOKUP(C633,'Capacidad Financiera'!$B$12:$X$62720,2,0)),\"\",VLOOKUP(C633,'Capacidad Financiera'!$B$12:$X$3580,2,0))","v":0},null,{"$f":"IF(OR(D633=\"\",E633=\"\"),\"\",IF(AND(E633>0,E633<=CapTecnica1),Puntajes!$H$4,IF(AND(E633>CapTecnica1,E633<=CapTecnica2),Puntajes!$H$5,IF(E633>CapTecnica2,Puntajes!$H$6,0))))","v":""}]
[null,null,{"$f":"+'Capacidad Financiera'!B637","v":""},{"$f":"IF(ISERROR(VLOOKUP(C634,'Capacidad Financiera'!$B$12:$X$62720,2,0)),\"\",VLOOKUP(C634,'Capacidad Financiera'!$B$12:$X$3580,2,0))","v":0},null,{"$f":"IF(OR(D634=\"\",E634=\"\"),\"\",IF(AND(E634>0,E634<=CapTecnica1),Puntajes!$H$4,IF(AND(E634>CapTecnica1,E634<=CapTecnica2),Puntajes!$H$5,IF(E634>CapTecnica2,Puntajes!$H$6,0))))","v":""}]
[null,null,{"$f":"+'Capacidad Financiera'!B638","v":""},{"$f":"IF(ISERROR(VLOOKUP(C635,'Capacidad Financiera'!$B$12:$X$62720,2,0)),\"\",VLOOKUP(C635,'Capacidad Financiera'!$B$12:$X$3580,2,0))","v":0},null,{"$f":"IF(OR(D635=\"\",E635=\"\"),\"\",IF(AND(E635>0,E635<=CapTecnica1),Puntajes!$H$4,IF(AND(E635>CapTecnica1,E635<=CapTecnica2),Puntajes!$H$5,IF(E635>CapTecnica2,Puntajes!$H$6,0))))","v":""}]
[null,null,58,{"$f":"IF(ISERROR(VLOOKUP(C636,'Capacidad Financiera'!$B$12:$X$62720,2,0)),\"\",VLOOKUP(C636,'Capacidad Financiera'!$B$12:$X$3580,2,0))","v":0},null,{"$f":"IF(C637=\"\",IF(E636=\"\",\"\",IF(AND(E636>0,E636<=CapTecnica1),Puntajes!$H$4,IF(AND(E636>CapTecnica1,E636<=CapTecnica2),Puntajes!$H$5,IF(E636>CapTecnica2,Puntajes!$H$6,0)))),\"\")","v":""}]
[null,null,{"$f":"+'Capacidad Financiera'!B640","v":""},{"$f":"IF(ISERROR(VLOOKUP(C637,'Capacidad Financiera'!$B$12:$X$62720,2,0)),\"\",VLOOKUP(C637,'Capacidad Financiera'!$B$12:$X$3580,2,0))","v":0},null,{"$f":"IF(OR(D637=\"\",E637=\"\"),\"\",IF(AND(E637>0,E637<=CapTecnica1),Puntajes!$H$4,IF(AND(E637>CapTecnica1,E637<=CapTecnica2),Puntajes!$H$5,IF(E637>CapTecnica2,Puntajes!$H$6,0))))","v":""}]
[null,null,{"$f":"+'Capacidad Financiera'!B641","v":""},{"$f":"IF(ISERROR(VLOOKUP(C638,'Capacidad Financiera'!$B$12:$X$62720,2,0)),\"\",VLOOKUP(C638,'Capacidad Financiera'!$B$12:$X$3580,2,0))","v":0},null,{"$f":"IF(OR(D638=\"\",E638=\"\"),\"\",IF(AND(E638>0,E638<=CapTecnica1),Puntajes!$H$4,IF(AND(E638>CapTecnica1,E638<=CapTecnica2),Puntajes!$H$5,IF(E638>CapTecnica2,Puntajes!$H$6,0))))","v":""}]
[null,null,{"$f":"+'Capacidad Financiera'!B642","v":""},{"$f":"IF(ISERROR(VLOOKUP(C639,'Capacidad Financiera'!$B$12:$X$62720,2,0)),\"\",VLOOKUP(C639,'Capacidad Financiera'!$B$12:$X$3580,2,0))","v":0},null,{"$f":"IF(OR(D639=\"\",E639=\"\"),\"\",IF(AND(E639>0,E639<=CapTecnica1),Puntajes!$H$4,IF(AND(E639>CapTecnica1,E639<=CapTecnica2),Puntajes!$H$5,IF(E639>CapTecnica2,Puntajes!$H$6,0))))","v":""}]
[null,null,{"$f":"+'Capacidad Financiera'!B643","v":""},{"$f":"IF(ISERROR(VLOOKUP(C640,'Capacidad Financiera'!$B$12:$X$62720,2,0)),\"\",VLOOKUP(C640,'Capacidad Financiera'!$B$12:$X$3580,2,0))","v":0},null,{"$f":"IF(OR(D640=\"\",E640=\"\"),\"\",IF(AND(E640>0,E640<=CapTecnica1),Puntajes!$H$4,IF(AND(E640>CapTecnica1,E640<=CapTecnica2),Puntajes!$H$5,IF(E640>CapTecnica2,Puntajes!$H$6,0))))","v":""}]
[null,null,{"$f":"+'Capacidad Financiera'!B644","v":""},{"$f":"IF(ISERROR(VLOOKUP(C641,'Capacidad Financiera'!$B$12:$X$62720,2,0)),\"\",VLOOKUP(C641,'Capacidad Financiera'!$B$12:$X$3580,2,0))","v":0},null,{"$f":"IF(OR(D641=\"\",E641=\"\"),\"\",IF(AND(E641>0,E641<=CapTecnica1),Puntajes!$H$4,IF(AND(E641>CapTecnica1,E641<=CapTecnica2),Puntajes!$H$5,IF(E641>CapTecnica2,Puntajes!$H$6,0))))","v":""}]
[null,null,{"$f":"+'Capacidad Financiera'!B645","v":""},{"$f":"IF(ISERROR(VLOOKUP(C642,'Capacidad Financiera'!$B$12:$X$62720,2,0)),\"\",VLOOKUP(C642,'Capacidad Financiera'!$B$12:$X$3580,2,0))","v":0},null,{"$f":"IF(OR(D642=\"\",E642=\"\"),\"\",IF(AND(E642>0,E642<=CapTecnica1),Puntajes!$H$4,IF(AND(E642>CapTecnica1,E642<=CapTecnica2),Puntajes!$H$5,IF(E642>CapTecnica2,Puntajes!$H$6,0))))","v":""}]
[null,null,{"$f":"+'Capacidad Financiera'!B646","v":""},{"$f":"IF(ISERROR(VLOOKUP(C643,'Capacidad Financiera'!$B$12:$X$62720,2,0)),\"\",VLOOKUP(C643,'Capacidad Financiera'!$B$12:$X$3580,2,0))","v":0},null,{"$f":"IF(OR(D643=\"\",E643=\"\"),\"\",IF(AND(E643>0,E643<=CapTecnica1),Puntajes!$H$4,IF(AND(E643>CapTecnica1,E643<=CapTecnica2),Puntajes!$H$5,IF(E643>CapTecnica2,Puntajes!$H$6,0))))","v":""}]
[null,null,{"$f":"+'Capacidad Financiera'!B647","v":""},{"$f":"IF(ISERROR(VLOOKUP(C644,'Capacidad Financiera'!$B$12:$X$62720,2,0)),\"\",VLOOKUP(C644,'Capacidad Financiera'!$B$12:$X$3580,2,0))","v":0},null,{"$f":"IF(OR(D644=\"\",E644=\"\"),\"\",IF(AND(E644>0,E644<=CapTecnica1),Puntajes!$H$4,IF(AND(E644>CapTecnica1,E644<=CapTecnica2),Puntajes!$H$5,IF(E644>CapTecnica2,Puntajes!$H$6,0))))","v":""}]
[null,null,{"$f":"+'Capacidad Financiera'!B648","v":""},{"$f":"IF(ISERROR(VLOOKUP(C645,'Capacidad Financiera'!$B$12:$X$62720,2,0)),\"\",VLOOKUP(C645,'Capacidad Financiera'!$B$12:$X$3580,2,0))","v":0},null,{"$f":"IF(OR(D645=\"\",E645=\"\"),\"\",IF(AND(E645>0,E645<=CapTecnica1),Puntajes!$H$4,IF(AND(E645>CapTecnica1,E645<=CapTecnica2),Puntajes!$H$5,IF(E645>CapTecnica2,Puntajes!$H$6,0))))","v":""}]
[null,null,{"$f":"+'Capacidad Financiera'!B649","v":""},{"$f":"IF(ISERROR(VLOOKUP(C646,'Capacidad Financiera'!$B$12:$X$62720,2,0)),\"\",VLOOKUP(C646,'Capacidad Financiera'!$B$12:$X$3580,2,0))","v":0},null,{"$f":"IF(OR(D646=\"\",E646=\"\"),\"\",IF(AND(E646>0,E646<=CapTecnica1),Puntajes!$H$4,IF(AND(E646>CapTecnica1,E646<=CapTecnica2),Puntajes!$H$5,IF(E646>CapTecnica2,Puntajes!$H$6,0))))","v":""}]
[null,null,59,{"$f":"IF(ISERROR(VLOOKUP(C647,'Capacidad Financiera'!$B$12:$X$62720,2,0)),\"\",VLOOKUP(C647,'Capacidad Financiera'!$B$12:$X$3580,2,0))","v":0},null,{"$f":"IF(C648=\"\",IF(E647=\"\",\"\",IF(AND(E647>0,E647<=CapTecnica1),Puntajes!$H$4,IF(AND(E647>CapTecnica1,E647<=CapTecnica2),Puntajes!$H$5,IF(E647>CapTecnica2,Puntajes!$H$6,0)))),\"\")","v":""}]
[null,null,{"$f":"+'Capacidad Financiera'!B651","v":""},{"$f":"IF(ISERROR(VLOOKUP(C648,'Capacidad Financiera'!$B$12:$X$62720,2,0)),\"\",VLOOKUP(C648,'Capacidad Financiera'!$B$12:$X$3580,2,0))","v":0},null,{"$f":"IF(OR(D648=\"\",E648=\"\"),\"\",IF(AND(E648>0,E648<=CapTecnica1),Puntajes!$H$4,IF(AND(E648>CapTecnica1,E648<=CapTecnica2),Puntajes!$H$5,IF(E648>CapTecnica2,Puntajes!$H$6,0))))","v":""}]
[null,null,{"$f":"+'Capacidad Financiera'!B652","v":""},{"$f":"IF(ISERROR(VLOOKUP(C649,'Capacidad Financiera'!$B$12:$X$62720,2,0)),\"\",VLOOKUP(C649,'Capacidad Financiera'!$B$12:$X$3580,2,0))","v":0},null,{"$f":"IF(OR(D649=\"\",E649=\"\"),\"\",IF(AND(E649>0,E649<=CapTecnica1),Puntajes!$H$4,IF(AND(E649>CapTecnica1,E649<=CapTecnica2),Puntajes!$H$5,IF(E649>CapTecnica2,Puntajes!$H$6,0))))","v":""}]
[null,null,{"$f":"+'Capacidad Financiera'!B653","v":""},{"$f":"IF(ISERROR(VLOOKUP(C650,'Capacidad Financiera'!$B$12:$X$62720,2,0)),\"\",VLOOKUP(C650,'Capacidad Financiera'!$B$12:$X$3580,2,0))","v":0},null,{"$f":"IF(OR(D650=\"\",E650=\"\"),\"\",IF(AND(E650>0,E650<=CapTecnica1),Puntajes!$H$4,IF(AND(E650>CapTecnica1,E650<=CapTecnica2),Puntajes!$H$5,IF(E650>CapTecnica2,Puntajes!$H$6,0))))","v":""}]
[null,null,{"$f":"+'Capacidad Financiera'!B654","v":""},{"$f":"IF(ISERROR(VLOOKUP(C651,'Capacidad Financiera'!$B$12:$X$62720,2,0)),\"\",VLOOKUP(C651,'Capacidad Financiera'!$B$12:$X$3580,2,0))","v":0},null,{"$f":"IF(OR(D651=\"\",E651=\"\"),\"\",IF(AND(E651>0,E651<=CapTecnica1),Puntajes!$H$4,IF(AND(E651>CapTecnica1,E651<=CapTecnica2),Puntajes!$H$5,IF(E651>CapTecnica2,Puntajes!$H$6,0))))","v":""}]
[null,null,{"$f":"+'Capacidad Financiera'!B655","v":""},{"$f":"IF(ISERROR(VLOOKUP(C652,'Capacidad Financiera'!$B$12:$X$62720,2,0)),\"\",VLOOKUP(C652,'Capacidad Financiera'!$B$12:$X$3580,2,0))","v":0},null,{"$f":"IF(OR(D652=\"\",E652=\"\"),\"\",IF(AND(E652>0,E652<=CapTecnica1),Puntajes!$H$4,IF(AND(E652>CapTecnica1,E652<=CapTecnica2),Puntajes!$H$5,IF(E652>CapTecnica2,Puntajes!$H$6,0))))","v":""}]
[null,null,{"$f":"+'Capacidad Financiera'!B656","v":""},{"$f":"IF(ISERROR(VLOOKUP(C653,'Capacidad Financiera'!$B$12:$X$62720,2,0)),\"\",VLOOKUP(C653,'Capacidad Financiera'!$B$12:$X$3580,2,0))","v":0},null,{"$f":"IF(OR(D653=\"\",E653=\"\"),\"\",IF(AND(E653>0,E653<=CapTecnica1),Puntajes!$H$4,IF(AND(E653>CapTecnica1,E653<=CapTecnica2),Puntajes!$H$5,IF(E653>CapTecnica2,Puntajes!$H$6,0))))","v":""}]
[null,null,{"$f":"+'Capacidad Financiera'!B657","v":""},{"$f":"IF(ISERROR(VLOOKUP(C654,'Capacidad Financiera'!$B$12:$X$62720,2,0)),\"\",VLOOKUP(C654,'Capacidad Financiera'!$B$12:$X$3580,2,0))","v":0},null,{"$f":"IF(OR(D654=\"\",E654=\"\"),\"\",IF(AND(E654>0,E654<=CapTecnica1),Puntajes!$H$4,IF(AND(E654>CapTecnica1,E654<=CapTecnica2),Puntajes!$H$5,IF(E654>CapTecnica2,Puntajes!$H$6,0))))","v":""}]
[null,null,{"$f":"+'Capacidad Financiera'!B658","v":""},{"$f":"IF(ISERROR(VLOOKUP(C655,'Capacidad Financiera'!$B$12:$X$62720,2,0)),\"\",VLOOKUP(C655,'Capacidad Financiera'!$B$12:$X$3580,2,0))","v":0},null,{"$f":"IF(OR(D655=\"\",E655=\"\"),\"\",IF(AND(E655>0,E655<=CapTecnica1),Puntajes!$H$4,IF(AND(E655>CapTecnica1,E655<=CapTecnica2),Puntajes!$H$5,IF(E655>CapTecnica2,Puntajes!$H$6,0))))","v":""}]
[null,null,{"$f":"+'Capacidad Financiera'!B659","v":""},{"$f":"IF(ISERROR(VLOOKUP(C656,'Capacidad Financiera'!$B$12:$X$62720,2,0)),\"\",VLOOKUP(C656,'Capacidad Financiera'!$B$12:$X$3580,2,0))","v":0},null,{"$f":"IF(OR(D656=\"\",E656=\"\"),\"\",IF(AND(E656>0,E656<=CapTecnica1),Puntajes!$H$4,IF(AND(E656>CapTecnica1,E656<=CapTecnica2),Puntajes!$H$5,IF(E656>CapTecnica2,Puntajes!$H$6,0))))","v":""}]
[null,null,{"$f":"+'Capacidad Financiera'!B660","v":""},{"$f":"IF(ISERROR(VLOOKUP(C657,'Capacidad Financiera'!$B$12:$X$62720,2,0)),\"\",VLOOKUP(C657,'Capacidad Financiera'!$B$12:$X$3580,2,0))","v":0},null,{"$f":"IF(OR(D657=\"\",E657=\"\"),\"\",IF(AND(E657>0,E657<=CapTecnica1),Puntajes!$H$4,IF(AND(E657>CapTecnica1,E657<=CapTecnica2),Puntajes!$H$5,IF(E657>CapTecnica2,Puntajes!$H$6,0))))","v":""}]
[null,null,60,{"$f":"IF(ISERROR(VLOOKUP(C658,'Capacidad Financiera'!$B$12:$X$62720,2,0)),\"\",VLOOKUP(C658,'Capacidad Financiera'!$B$12:$X$3580,2,0))","v":0},null,{"$f":"IF(C659=\"\",IF(E658=\"\",\"\",IF(AND(E658>0,E658<=CapTecnica1),Puntajes!$H$4,IF(AND(E658>CapTecnica1,E658<=CapTecnica2),Puntajes!$H$5,IF(E658>CapTecnica2,Puntajes!$H$6,0)))),\"\")","v":""}]
[null,null,{"$f":"+'Capacidad Financiera'!B662","v":""},{"$f":"IF(ISERROR(VLOOKUP(C659,'Capacidad Financiera'!$B$12:$X$62720,2,0)),\"\",VLOOKUP(C659,'Capacidad Financiera'!$B$12:$X$3580,2,0))","v":0},null,{"$f":"IF(OR(D659=\"\",E659=\"\"),\"\",IF(AND(E659>0,E659<=CapTecnica1),Puntajes!$H$4,IF(AND(E659>CapTecnica1,E659<=CapTecnica2),Puntajes!$H$5,IF(E659>CapTecnica2,Puntajes!$H$6,0))))","v":""}]
[null,null,{"$f":"+'Capacidad Financiera'!B663","v":""},{"$f":"IF(ISERROR(VLOOKUP(C660,'Capacidad Financiera'!$B$12:$X$62720,2,0)),\"\",VLOOKUP(C660,'Capacidad Financiera'!$B$12:$X$3580,2,0))","v":0},null,{"$f":"IF(OR(D660=\"\",E660=\"\"),\"\",IF(AND(E660>0,E660<=CapTecnica1),Puntajes!$H$4,IF(AND(E660>CapTecnica1,E660<=CapTecnica2),Puntajes!$H$5,IF(E660>CapTecnica2,Puntajes!$H$6,0))))","v":""}]
[null,null,{"$f":"+'Capacidad Financiera'!B664","v":""},{"$f":"IF(ISERROR(VLOOKUP(C661,'Capacidad Financiera'!$B$12:$X$62720,2,0)),\"\",VLOOKUP(C661,'Capacidad Financiera'!$B$12:$X$3580,2,0))","v":0},null,{"$f":"IF(OR(D661=\"\",E661=\"\"),\"\",IF(AND(E661>0,E661<=CapTecnica1),Puntajes!$H$4,IF(AND(E661>CapTecnica1,E661<=CapTecnica2),Puntajes!$H$5,IF(E661>CapTecnica2,Puntajes!$H$6,0))))","v":""}]
[null,null,{"$f":"+'Capacidad Financiera'!B665","v":""},{"$f":"IF(ISERROR(VLOOKUP(C662,'Capacidad Financiera'!$B$12:$X$62720,2,0)),\"\",VLOOKUP(C662,'Capacidad Financiera'!$B$12:$X$3580,2,0))","v":0},null,{"$f":"IF(OR(D662=\"\",E662=\"\"),\"\",IF(AND(E662>0,E662<=CapTecnica1),Puntajes!$H$4,IF(AND(E662>CapTecnica1,E662<=CapTecnica2),Puntajes!$H$5,IF(E662>CapTecnica2,Puntajes!$H$6,0))))","v":""}]
[null,null,{"$f":"+'Capacidad Financiera'!B666","v":""},{"$f":"IF(ISERROR(VLOOKUP(C663,'Capacidad Financiera'!$B$12:$X$62720,2,0)),\"\",VLOOKUP(C663,'Capacidad Financiera'!$B$12:$X$3580,2,0))","v":0},null,{"$f":"IF(OR(D663=\"\",E663=\"\"),\"\",IF(AND(E663>0,E663<=CapTecnica1),Puntajes!$H$4,IF(AND(E663>CapTecnica1,E663<=CapTecnica2),Puntajes!$H$5,IF(E663>CapTecnica2,Puntajes!$H$6,0))))","v":""}]
[null,null,{"$f":"+'Capacidad Financiera'!B667","v":""},{"$f":"IF(ISERROR(VLOOKUP(C664,'Capacidad Financiera'!$B$12:$X$62720,2,0)),\"\",VLOOKUP(C664,'Capacidad Financiera'!$B$12:$X$3580,2,0))","v":0},null,{"$f":"IF(OR(D664=\"\",E664=\"\"),\"\",IF(AND(E664>0,E664<=CapTecnica1),Puntajes!$H$4,IF(AND(E664>CapTecnica1,E664<=CapTecnica2),Puntajes!$H$5,IF(E664>CapTecnica2,Puntajes!$H$6,0))))","v":""}]
[null,null,{"$f":"+'Capacidad Financiera'!B668","v":""},{"$f":"IF(ISERROR(VLOOKUP(C665,'Capacidad Financiera'!$B$12:$X$62720,2,0)),\"\",VLOOKUP(C665,'Capacidad Financiera'!$B$12:$X$3580,2,0))","v":0},null,{"$f":"IF(OR(D665=\"\",E665=\"\"),\"\",IF(AND(E665>0,E665<=CapTecnica1),Puntajes!$H$4,IF(AND(E665>CapTecnica1,E665<=CapTecnica2),Puntajes!$H$5,IF(E665>CapTecnica2,Puntajes!$H$6,0))))","v":""}]
[null,null,{"$f":"+'Capacidad Financiera'!B669","v":""},{"$f":"IF(ISERROR(VLOOKUP(C666,'Capacidad Financiera'!$B$12:$X$62720,2,0)),\"\",VLOOKUP(C666,'Capacidad Financiera'!$B$12:$X$3580,2,0))","v":0},null,{"$f":"IF(OR(D666=\"\",E666=\"\"),\"\",IF(AND(E666>0,E666<=CapTecnica1),Puntajes!$H$4,IF(AND(E666>CapTecnica1,E666<=CapTecnica2),Puntajes!$H$5,IF(E666>CapTecnica2,Puntajes!$H$6,0))))","v":""}]
[null,null,{"$f":"+'Capacidad Financiera'!B670","v":""},{"$f":"IF(ISERROR(VLOOKUP(C667,'Capacidad Financiera'!$B$12:$X$62720,2,0)),\"\",VLOOKUP(C667,'Capacidad Financiera'!$B$12:$X$3580,2,0))","v":0},null,{"$f":"IF(OR(D667=\"\",E667=\"\"),\"\",IF(AND(E667>0,E667<=CapTecnica1),Puntajes!$H$4,IF(AND(E667>CapTecnica1,E667<=CapTecnica2),Puntajes!$H$5,IF(E667>CapTecnica2,Puntajes!$H$6,0))))","v":""}]
[null,null,{"$f":"+'Capacidad Financiera'!B671","v":""},{"$f":"IF(ISERROR(VLOOKUP(C668,'Capacidad Financiera'!$B$12:$X$62720,2,0)),\"\",VLOOKUP(C668,'Capacidad Financiera'!$B$12:$X$3580,2,0))","v":0},null,{"$f":"IF(OR(D668=\"\",E668=\"\"),\"\",IF(AND(E668>0,E668<=CapTecnica1),Puntajes!$H$4,IF(AND(E668>CapTecnica1,E668<=CapTecnica2),Puntajes!$H$5,IF(E668>CapTecnica2,Puntajes!$H$6,0))))","v":""}]
[null,null,61,{"$f":"IF(ISERROR(VLOOKUP(C669,'Capacidad Financiera'!$B$12:$X$62720,2,0)),\"\",VLOOKUP(C669,'Capacidad Financiera'!$B$12:$X$3580,2,0))","v":0},null,{"$f":"IF(C670=\"\",IF(E669=\"\",\"\",IF(AND(E669>0,E669<=CapTecnica1),Puntajes!$H$4,IF(AND(E669>CapTecnica1,E669<=CapTecnica2),Puntajes!$H$5,IF(E669>CapTecnica2,Puntajes!$H$6,0)))),\"\")","v":""}]
[null,null,{"$f":"+'Capacidad Financiera'!B673","v":""},{"$f":"IF(ISERROR(VLOOKUP(C670,'Capacidad Financiera'!$B$12:$X$62720,2,0)),\"\",VLOOKUP(C670,'Capacidad Financiera'!$B$12:$X$3580,2,0))","v":0},null,{"$f":"IF(OR(D670=\"\",E670=\"\"),\"\",IF(AND(E670>0,E670<=CapTecnica1),Puntajes!$H$4,IF(AND(E670>CapTecnica1,E670<=CapTecnica2),Puntajes!$H$5,IF(E670>CapTecnica2,Puntajes!$H$6,0))))","v":""}]
[null,null,{"$f":"+'Capacidad Financiera'!B674","v":""},{"$f":"IF(ISERROR(VLOOKUP(C671,'Capacidad Financiera'!$B$12:$X$62720,2,0)),\"\",VLOOKUP(C671,'Capacidad Financiera'!$B$12:$X$3580,2,0))","v":0},null,{"$f":"IF(OR(D671=\"\",E671=\"\"),\"\",IF(AND(E671>0,E671<=CapTecnica1),Puntajes!$H$4,IF(AND(E671>CapTecnica1,E671<=CapTecnica2),Puntajes!$H$5,IF(E671>CapTecnica2,Puntajes!$H$6,0))))","v":""}]
[null,null,{"$f":"+'Capacidad Financiera'!B675","v":""},{"$f":"IF(ISERROR(VLOOKUP(C672,'Capacidad Financiera'!$B$12:$X$62720,2,0)),\"\",VLOOKUP(C672,'Capacidad Financiera'!$B$12:$X$3580,2,0))","v":0},null,{"$f":"IF(OR(D672=\"\",E672=\"\"),\"\",IF(AND(E672>0,E672<=CapTecnica1),Puntajes!$H$4,IF(AND(E672>CapTecnica1,E672<=CapTecnica2),Puntajes!$H$5,IF(E672>CapTecnica2,Puntajes!$H$6,0))))","v":""}]
[null,null,{"$f":"+'Capacidad Financiera'!B676","v":""},{"$f":"IF(ISERROR(VLOOKUP(C673,'Capacidad Financiera'!$B$12:$X$62720,2,0)),\"\",VLOOKUP(C673,'Capacidad Financiera'!$B$12:$X$3580,2,0))","v":0},null,{"$f":"IF(OR(D673=\"\",E673=\"\"),\"\",IF(AND(E673>0,E673<=CapTecnica1),Puntajes!$H$4,IF(AND(E673>CapTecnica1,E673<=CapTecnica2),Puntajes!$H$5,IF(E673>CapTecnica2,Puntajes!$H$6,0))))","v":""}]
[null,null,{"$f":"+'Capacidad Financiera'!B677","v":""},{"$f":"IF(ISERROR(VLOOKUP(C674,'Capacidad Financiera'!$B$12:$X$62720,2,0)),\"\",VLOOKUP(C674,'Capacidad Financiera'!$B$12:$X$3580,2,0))","v":0},null,{"$f":"IF(OR(D674=\"\",E674=\"\"),\"\",IF(AND(E674>0,E674<=CapTecnica1),Puntajes!$H$4,IF(AND(E674>CapTecnica1,E674<=CapTecnica2),Puntajes!$H$5,IF(E674>CapTecnica2,Puntajes!$H$6,0))))","v":""}]
[null,null,{"$f":"+'Capacidad Financiera'!B678","v":""},{"$f":"IF(ISERROR(VLOOKUP(C675,'Capacidad Financiera'!$B$12:$X$62720,2,0)),\"\",VLOOKUP(C675,'Capacidad Financiera'!$B$12:$X$3580,2,0))","v":0},null,{"$f":"IF(OR(D675=\"\",E675=\"\"),\"\",IF(AND(E675>0,E675<=CapTecnica1),Puntajes!$H$4,IF(AND(E675>CapTecnica1,E675<=CapTecnica2),Puntajes!$H$5,IF(E675>CapTecnica2,Puntajes!$H$6,0))))","v":""}]
[null,null,{"$f":"+'Capacidad Financiera'!B679","v":""},{"$f":"IF(ISERROR(VLOOKUP(C676,'Capacidad Financiera'!$B$12:$X$62720,2,0)),\"\",VLOOKUP(C676,'Capacidad Financiera'!$B$12:$X$3580,2,0))","v":0},null,{"$f":"IF(OR(D676=\"\",E676=\"\"),\"\",IF(AND(E676>0,E676<=CapTecnica1),Puntajes!$H$4,IF(AND(E676>CapTecnica1,E676<=CapTecnica2),Puntajes!$H$5,IF(E676>CapTecnica2,Puntajes!$H$6,0))))","v":""}]
[null,null,{"$f":"+'Capacidad Financiera'!B680","v":""},{"$f":"IF(ISERROR(VLOOKUP(C677,'Capacidad Financiera'!$B$12:$X$62720,2,0)),\"\",VLOOKUP(C677,'Capacidad Financiera'!$B$12:$X$3580,2,0))","v":0},null,{"$f":"IF(OR(D677=\"\",E677=\"\"),\"\",IF(AND(E677>0,E677<=CapTecnica1),Puntajes!$H$4,IF(AND(E677>CapTecnica1,E677<=CapTecnica2),Puntajes!$H$5,IF(E677>CapTecnica2,Puntajes!$H$6,0))))","v":""}]
[null,null,{"$f":"+'Capacidad Financiera'!B681","v":""},{"$f":"IF(ISERROR(VLOOKUP(C678,'Capacidad Financiera'!$B$12:$X$62720,2,0)),\"\",VLOOKUP(C678,'Capacidad Financiera'!$B$12:$X$3580,2,0))","v":0},null,{"$f":"IF(OR(D678=\"\",E678=\"\"),\"\",IF(AND(E678>0,E678<=CapTecnica1),Puntajes!$H$4,IF(AND(E678>CapTecnica1,E678<=CapTecnica2),Puntajes!$H$5,IF(E678>CapTecnica2,Puntajes!$H$6,0))))","v":""}]
[null,null,{"$f":"+'Capacidad Financiera'!B682","v":""},{"$f":"IF(ISERROR(VLOOKUP(C679,'Capacidad Financiera'!$B$12:$X$62720,2,0)),\"\",VLOOKUP(C679,'Capacidad Financiera'!$B$12:$X$3580,2,0))","v":0},null,{"$f":"IF(OR(D679=\"\",E679=\"\"),\"\",IF(AND(E679>0,E679<=CapTecnica1),Puntajes!$H$4,IF(AND(E679>CapTecnica1,E679<=CapTecnica2),Puntajes!$H$5,IF(E679>CapTecnica2,Puntajes!$H$6,0))))","v":""}]
[null,null,62,{"$f":"IF(ISERROR(VLOOKUP(C680,'Capacidad Financiera'!$B$12:$X$62720,2,0)),\"\",VLOOKUP(C680,'Capacidad Financiera'!$B$12:$X$3580,2,0))","v":0},null,{"$f":"IF(C681=\"\",IF(E680=\"\",\"\",IF(AND(E680>0,E680<=CapTecnica1),Puntajes!$H$4,IF(AND(E680>CapTecnica1,E680<=CapTecnica2),Puntajes!$H$5,IF(E680>CapTecnica2,Puntajes!$H$6,0)))),\"\")","v":""}]
[null,null,{"$f":"+'Capacidad Financiera'!B684","v":""},{"$f":"IF(ISERROR(VLOOKUP(C681,'Capacidad Financiera'!$B$12:$X$62720,2,0)),\"\",VLOOKUP(C681,'Capacidad Financiera'!$B$12:$X$3580,2,0))","v":0},null,{"$f":"IF(OR(D681=\"\",E681=\"\"),\"\",IF(AND(E681>0,E681<=CapTecnica1),Puntajes!$H$4,IF(AND(E681>CapTecnica1,E681<=CapTecnica2),Puntajes!$H$5,IF(E681>CapTecnica2,Puntajes!$H$6,0))))","v":""}]
[null,null,{"$f":"+'Capacidad Financiera'!B685","v":""},{"$f":"IF(ISERROR(VLOOKUP(C682,'Capacidad Financiera'!$B$12:$X$62720,2,0)),\"\",VLOOKUP(C682,'Capacidad Financiera'!$B$12:$X$3580,2,0))","v":0},null,{"$f":"IF(OR(D682=\"\",E682=\"\"),\"\",IF(AND(E682>0,E682<=CapTecnica1),Puntajes!$H$4,IF(AND(E682>CapTecnica1,E682<=CapTecnica2),Puntajes!$H$5,IF(E682>CapTecnica2,Puntajes!$H$6,0))))","v":""}]
[null,null,{"$f":"+'Capacidad Financiera'!B686","v":""},{"$f":"IF(ISERROR(VLOOKUP(C683,'Capacidad Financiera'!$B$12:$X$62720,2,0)),\"\",VLOOKUP(C683,'Capacidad Financiera'!$B$12:$X$3580,2,0))","v":0},null,{"$f":"IF(OR(D683=\"\",E683=\"\"),\"\",IF(AND(E683>0,E683<=CapTecnica1),Puntajes!$H$4,IF(AND(E683>CapTecnica1,E683<=CapTecnica2),Puntajes!$H$5,IF(E683>CapTecnica2,Puntajes!$H$6,0))))","v":""}]
[null,null,{"$f":"+'Capacidad Financiera'!B687","v":""},{"$f":"IF(ISERROR(VLOOKUP(C684,'Capacidad Financiera'!$B$12:$X$62720,2,0)),\"\",VLOOKUP(C684,'Capacidad Financiera'!$B$12:$X$3580,2,0))","v":0},null,{"$f":"IF(OR(D684=\"\",E684=\"\"),\"\",IF(AND(E684>0,E684<=CapTecnica1),Puntajes!$H$4,IF(AND(E684>CapTecnica1,E684<=CapTecnica2),Puntajes!$H$5,IF(E684>CapTecnica2,Puntajes!$H$6,0))))","v":""}]
[null,null,{"$f":"+'Capacidad Financiera'!B688","v":""},{"$f":"IF(ISERROR(VLOOKUP(C685,'Capacidad Financiera'!$B$12:$X$62720,2,0)),\"\",VLOOKUP(C685,'Capacidad Financiera'!$B$12:$X$3580,2,0))","v":0},null,{"$f":"IF(OR(D685=\"\",E685=\"\"),\"\",IF(AND(E685>0,E685<=CapTecnica1),Puntajes!$H$4,IF(AND(E685>CapTecnica1,E685<=CapTecnica2),Puntajes!$H$5,IF(E685>CapTecnica2,Puntajes!$H$6,0))))","v":""}]
[null,null,{"$f":"+'Capacidad Financiera'!B689","v":""},{"$f":"IF(ISERROR(VLOOKUP(C686,'Capacidad Financiera'!$B$12:$X$62720,2,0)),\"\",VLOOKUP(C686,'Capacidad Financiera'!$B$12:$X$3580,2,0))","v":0},null,{"$f":"IF(OR(D686=\"\",E686=\"\"),\"\",IF(AND(E686>0,E686<=CapTecnica1),Puntajes!$H$4,IF(AND(E686>CapTecnica1,E686<=CapTecnica2),Puntajes!$H$5,IF(E686>CapTecnica2,Puntajes!$H$6,0))))","v":""}]
[null,null,{"$f":"+'Capacidad Financiera'!B690","v":""},{"$f":"IF(ISERROR(VLOOKUP(C687,'Capacidad Financiera'!$B$12:$X$62720,2,0)),\"\",VLOOKUP(C687,'Capacidad Financiera'!$B$12:$X$3580,2,0))","v":0},null,{"$f":"IF(OR(D687=\"\",E687=\"\"),\"\",IF(AND(E687>0,E687<=CapTecnica1),Puntajes!$H$4,IF(AND(E687>CapTecnica1,E687<=CapTecnica2),Puntajes!$H$5,IF(E687>CapTecnica2,Puntajes!$H$6,0))))","v":""}]
[null,null,{"$f":"+'Capacidad Financiera'!B691","v":""},{"$f":"IF(ISERROR(VLOOKUP(C688,'Capacidad Financiera'!$B$12:$X$62720,2,0)),\"\",VLOOKUP(C688,'Capacidad Financiera'!$B$12:$X$3580,2,0))","v":0},null,{"$f":"IF(OR(D688=\"\",E688=\"\"),\"\",IF(AND(E688>0,E688<=CapTecnica1),Puntajes!$H$4,IF(AND(E688>CapTecnica1,E688<=CapTecnica2),Puntajes!$H$5,IF(E688>CapTecnica2,Puntajes!$H$6,0))))","v":""}]
[null,null,{"$f":"+'Capacidad Financiera'!B692","v":""},{"$f":"IF(ISERROR(VLOOKUP(C689,'Capacidad Financiera'!$B$12:$X$62720,2,0)),\"\",VLOOKUP(C689,'Capacidad Financiera'!$B$12:$X$3580,2,0))","v":0},null,{"$f":"IF(OR(D689=\"\",E689=\"\"),\"\",IF(AND(E689>0,E689<=CapTecnica1),Puntajes!$H$4,IF(AND(E689>CapTecnica1,E689<=CapTecnica2),Puntajes!$H$5,IF(E689>CapTecnica2,Puntajes!$H$6,0))))","v":""}]
[null,null,{"$f":"+'Capacidad Financiera'!B693","v":""},{"$f":"IF(ISERROR(VLOOKUP(C690,'Capacidad Financiera'!$B$12:$X$62720,2,0)),\"\",VLOOKUP(C690,'Capacidad Financiera'!$B$12:$X$3580,2,0))","v":0},null,{"$f":"IF(OR(D690=\"\",E690=\"\"),\"\",IF(AND(E690>0,E690<=CapTecnica1),Puntajes!$H$4,IF(AND(E690>CapTecnica1,E690<=CapTecnica2),Puntajes!$H$5,IF(E690>CapTecnica2,Puntajes!$H$6,0))))","v":""}]
[null,null,63,{"$f":"IF(ISERROR(VLOOKUP(C691,'Capacidad Financiera'!$B$12:$X$62720,2,0)),\"\",VLOOKUP(C691,'Capacidad Financiera'!$B$12:$X$3580,2,0))","v":0},null,{"$f":"IF(C692=\"\",IF(E691=\"\",\"\",IF(AND(E691>0,E691<=CapTecnica1),Puntajes!$H$4,IF(AND(E691>CapTecnica1,E691<=CapTecnica2),Puntajes!$H$5,IF(E691>CapTecnica2,Puntajes!$H$6,0)))),\"\")","v":""}]
[null,null,{"$f":"+'Capacidad Financiera'!B695","v":""},{"$f":"IF(ISERROR(VLOOKUP(C692,'Capacidad Financiera'!$B$12:$X$62720,2,0)),\"\",VLOOKUP(C692,'Capacidad Financiera'!$B$12:$X$3580,2,0))","v":0},null,{"$f":"IF(OR(D692=\"\",E692=\"\"),\"\",IF(AND(E692>0,E692<=CapTecnica1),Puntajes!$H$4,IF(AND(E692>CapTecnica1,E692<=CapTecnica2),Puntajes!$H$5,IF(E692>CapTecnica2,Puntajes!$H$6,0))))","v":""}]
[null,null,{"$f":"+'Capacidad Financiera'!B696","v":""},{"$f":"IF(ISERROR(VLOOKUP(C693,'Capacidad Financiera'!$B$12:$X$62720,2,0)),\"\",VLOOKUP(C693,'Capacidad Financiera'!$B$12:$X$3580,2,0))","v":0},null,{"$f":"IF(OR(D693=\"\",E693=\"\"),\"\",IF(AND(E693>0,E693<=CapTecnica1),Puntajes!$H$4,IF(AND(E693>CapTecnica1,E693<=CapTecnica2),Puntajes!$H$5,IF(E693>CapTecnica2,Puntajes!$H$6,0))))","v":""}]
[null,null,{"$f":"+'Capacidad Financiera'!B697","v":""},{"$f":"IF(ISERROR(VLOOKUP(C694,'Capacidad Financiera'!$B$12:$X$62720,2,0)),\"\",VLOOKUP(C694,'Capacidad Financiera'!$B$12:$X$3580,2,0))","v":0},null,{"$f":"IF(OR(D694=\"\",E694=\"\"),\"\",IF(AND(E694>0,E694<=CapTecnica1),Puntajes!$H$4,IF(AND(E694>CapTecnica1,E694<=CapTecnica2),Puntajes!$H$5,IF(E694>CapTecnica2,Puntajes!$H$6,0))))","v":""}]
[null,null,{"$f":"+'Capacidad Financiera'!B698","v":""},{"$f":"IF(ISERROR(VLOOKUP(C695,'Capacidad Financiera'!$B$12:$X$62720,2,0)),\"\",VLOOKUP(C695,'Capacidad Financiera'!$B$12:$X$3580,2,0))","v":0},null,{"$f":"IF(OR(D695=\"\",E695=\"\"),\"\",IF(AND(E695>0,E695<=CapTecnica1),Puntajes!$H$4,IF(AND(E695>CapTecnica1,E695<=CapTecnica2),Puntajes!$H$5,IF(E695>CapTecnica2,Puntajes!$H$6,0))))","v":""}]
[null,null,{"$f":"+'Capacidad Financiera'!B699","v":""},{"$f":"IF(ISERROR(VLOOKUP(C696,'Capacidad Financiera'!$B$12:$X$62720,2,0)),\"\",VLOOKUP(C696,'Capacidad Financiera'!$B$12:$X$3580,2,0))","v":0},null,{"$f":"IF(OR(D696=\"\",E696=\"\"),\"\",IF(AND(E696>0,E696<=CapTecnica1),Puntajes!$H$4,IF(AND(E696>CapTecnica1,E696<=CapTecnica2),Puntajes!$H$5,IF(E696>CapTecnica2,Puntajes!$H$6,0))))","v":""}]
[null,null,{"$f":"+'Capacidad Financiera'!B700","v":""},{"$f":"IF(ISERROR(VLOOKUP(C697,'Capacidad Financiera'!$B$12:$X$62720,2,0)),\"\",VLOOKUP(C697,'Capacidad Financiera'!$B$12:$X$3580,2,0))","v":0},null,{"$f":"IF(OR(D697=\"\",E697=\"\"),\"\",IF(AND(E697>0,E697<=CapTecnica1),Puntajes!$H$4,IF(AND(E697>CapTecnica1,E697<=CapTecnica2),Puntajes!$H$5,IF(E697>CapTecnica2,Puntajes!$H$6,0))))","v":""}]
[null,null,{"$f":"+'Capacidad Financiera'!B701","v":""},{"$f":"IF(ISERROR(VLOOKUP(C698,'Capacidad Financiera'!$B$12:$X$62720,2,0)),\"\",VLOOKUP(C698,'Capacidad Financiera'!$B$12:$X$3580,2,0))","v":0},null,{"$f":"IF(OR(D698=\"\",E698=\"\"),\"\",IF(AND(E698>0,E698<=CapTecnica1),Puntajes!$H$4,IF(AND(E698>CapTecnica1,E698<=CapTecnica2),Puntajes!$H$5,IF(E698>CapTecnica2,Puntajes!$H$6,0))))","v":""}]
[null,null,{"$f":"+'Capacidad Financiera'!B702","v":""},{"$f":"IF(ISERROR(VLOOKUP(C699,'Capacidad Financiera'!$B$12:$X$62720,2,0)),\"\",VLOOKUP(C699,'Capacidad Financiera'!$B$12:$X$3580,2,0))","v":0},null,{"$f":"IF(OR(D699=\"\",E699=\"\"),\"\",IF(AND(E699>0,E699<=CapTecnica1),Puntajes!$H$4,IF(AND(E699>CapTecnica1,E699<=CapTecnica2),Puntajes!$H$5,IF(E699>CapTecnica2,Puntajes!$H$6,0))))","v":""}]
[null,null,{"$f":"+'Capacidad Financiera'!B703","v":""},{"$f":"IF(ISERROR(VLOOKUP(C700,'Capacidad Financiera'!$B$12:$X$62720,2,0)),\"\",VLOOKUP(C700,'Capacidad Financiera'!$B$12:$X$3580,2,0))","v":0},null,{"$f":"IF(OR(D700=\"\",E700=\"\"),\"\",IF(AND(E700>0,E700<=CapTecnica1),Puntajes!$H$4,IF(AND(E700>CapTecnica1,E700<=CapTecnica2),Puntajes!$H$5,IF(E700>CapTecnica2,Puntajes!$H$6,0))))","v":""}]
[null,null,{"$f":"+'Capacidad Financiera'!B704","v":""},{"$f":"IF(ISERROR(VLOOKUP(C701,'Capacidad Financiera'!$B$12:$X$62720,2,0)),\"\",VLOOKUP(C701,'Capacidad Financiera'!$B$12:$X$3580,2,0))","v":0},null,{"$f":"IF(OR(D701=\"\",E701=\"\"),\"\",IF(AND(E701>0,E701<=CapTecnica1),Puntajes!$H$4,IF(AND(E701>CapTecnica1,E701<=CapTecnica2),Puntajes!$H$5,IF(E701>CapTecnica2,Puntajes!$H$6,0))))","v":""}]
[null,null,64,{"$f":"IF(ISERROR(VLOOKUP(C702,'Capacidad Financiera'!$B$12:$X$62720,2,0)),\"\",VLOOKUP(C702,'Capacidad Financiera'!$B$12:$X$3580,2,0))","v":0},null,{"$f":"IF(C703=\"\",IF(E702=\"\",\"\",IF(AND(E702>0,E702<=CapTecnica1),Puntajes!$H$4,IF(AND(E702>CapTecnica1,E702<=CapTecnica2),Puntajes!$H$5,IF(E702>CapTecnica2,Puntajes!$H$6,0)))),\"\")","v":""}]
[null,null,{"$f":"+'Capacidad Financiera'!B706","v":""},{"$f":"IF(ISERROR(VLOOKUP(C703,'Capacidad Financiera'!$B$12:$X$62720,2,0)),\"\",VLOOKUP(C703,'Capacidad Financiera'!$B$12:$X$3580,2,0))","v":0},null,{"$f":"IF(OR(D703=\"\",E703=\"\"),\"\",IF(AND(E703>0,E703<=CapTecnica1),Puntajes!$H$4,IF(AND(E703>CapTecnica1,E703<=CapTecnica2),Puntajes!$H$5,IF(E703>CapTecnica2,Puntajes!$H$6,0))))","v":""}]
[null,null,{"$f":"+'Capacidad Financiera'!B707","v":""},{"$f":"IF(ISERROR(VLOOKUP(C704,'Capacidad Financiera'!$B$12:$X$62720,2,0)),\"\",VLOOKUP(C704,'Capacidad Financiera'!$B$12:$X$3580,2,0))","v":0},null,{"$f":"IF(OR(D704=\"\",E704=\"\"),\"\",IF(AND(E704>0,E704<=CapTecnica1),Puntajes!$H$4,IF(AND(E704>CapTecnica1,E704<=CapTecnica2),Puntajes!$H$5,IF(E704>CapTecnica2,Puntajes!$H$6,0))))","v":""}]
[null,null,{"$f":"+'Capacidad Financiera'!B708","v":""},{"$f":"IF(ISERROR(VLOOKUP(C705,'Capacidad Financiera'!$B$12:$X$62720,2,0)),\"\",VLOOKUP(C705,'Capacidad Financiera'!$B$12:$X$3580,2,0))","v":0},null,{"$f":"IF(OR(D705=\"\",E705=\"\"),\"\",IF(AND(E705>0,E705<=CapTecnica1),Puntajes!$H$4,IF(AND(E705>CapTecnica1,E705<=CapTecnica2),Puntajes!$H$5,IF(E705>CapTecnica2,Puntajes!$H$6,0))))","v":""}]
[null,null,{"$f":"+'Capacidad Financiera'!B709","v":""},{"$f":"IF(ISERROR(VLOOKUP(C706,'Capacidad Financiera'!$B$12:$X$62720,2,0)),\"\",VLOOKUP(C706,'Capacidad Financiera'!$B$12:$X$3580,2,0))","v":0},null,{"$f":"IF(OR(D706=\"\",E706=\"\"),\"\",IF(AND(E706>0,E706<=CapTecnica1),Puntajes!$H$4,IF(AND(E706>CapTecnica1,E706<=CapTecnica2),Puntajes!$H$5,IF(E706>CapTecnica2,Puntajes!$H$6,0))))","v":""}]
[null,null,{"$f":"+'Capacidad Financiera'!B710","v":""},{"$f":"IF(ISERROR(VLOOKUP(C707,'Capacidad Financiera'!$B$12:$X$62720,2,0)),\"\",VLOOKUP(C707,'Capacidad Financiera'!$B$12:$X$3580,2,0))","v":0},null,{"$f":"IF(OR(D707=\"\",E707=\"\"),\"\",IF(AND(E707>0,E707<=CapTecnica1),Puntajes!$H$4,IF(AND(E707>CapTecnica1,E707<=CapTecnica2),Puntajes!$H$5,IF(E707>CapTecnica2,Puntajes!$H$6,0))))","v":""}]
[null,null,{"$f":"+'Capacidad Financiera'!B711","v":""},{"$f":"IF(ISERROR(VLOOKUP(C708,'Capacidad Financiera'!$B$12:$X$62720,2,0)),\"\",VLOOKUP(C708,'Capacidad Financiera'!$B$12:$X$3580,2,0))","v":0},null,{"$f":"IF(OR(D708=\"\",E708=\"\"),\"\",IF(AND(E708>0,E708<=CapTecnica1),Puntajes!$H$4,IF(AND(E708>CapTecnica1,E708<=CapTecnica2),Puntajes!$H$5,IF(E708>CapTecnica2,Puntajes!$H$6,0))))","v":""}]
[null,null,{"$f":"+'Capacidad Financiera'!B712","v":""},{"$f":"IF(ISERROR(VLOOKUP(C709,'Capacidad Financiera'!$B$12:$X$62720,2,0)),\"\",VLOOKUP(C709,'Capacidad Financiera'!$B$12:$X$3580,2,0))","v":0},null,{"$f":"IF(OR(D709=\"\",E709=\"\"),\"\",IF(AND(E709>0,E709<=CapTecnica1),Puntajes!$H$4,IF(AND(E709>CapTecnica1,E709<=CapTecnica2),Puntajes!$H$5,IF(E709>CapTecnica2,Puntajes!$H$6,0))))","v":""}]
[null,null,{"$f":"+'Capacidad Financiera'!B713","v":""},{"$f":"IF(ISERROR(VLOOKUP(C710,'Capacidad Financiera'!$B$12:$X$62720,2,0)),\"\",VLOOKUP(C710,'Capacidad Financiera'!$B$12:$X$3580,2,0))","v":0},null,{"$f":"IF(OR(D710=\"\",E710=\"\"),\"\",IF(AND(E710>0,E710<=CapTecnica1),Puntajes!$H$4,IF(AND(E710>CapTecnica1,E710<=CapTecnica2),Puntajes!$H$5,IF(E710>CapTecnica2,Puntajes!$H$6,0))))","v":""}]
[null,null,{"$f":"+'Capacidad Financiera'!B714","v":""},{"$f":"IF(ISERROR(VLOOKUP(C711,'Capacidad Financiera'!$B$12:$X$62720,2,0)),\"\",VLOOKUP(C711,'Capacidad Financiera'!$B$12:$X$3580,2,0))","v":0},null,{"$f":"IF(OR(D711=\"\",E711=\"\"),\"\",IF(AND(E711>0,E711<=CapTecnica1),Puntajes!$H$4,IF(AND(E711>CapTecnica1,E711<=CapTecnica2),Puntajes!$H$5,IF(E711>CapTecnica2,Puntajes!$H$6,0))))","v":""}]
[null,null,{"$f":"+'Capacidad Financiera'!B715","v":""},{"$f":"IF(ISERROR(VLOOKUP(C712,'Capacidad Financiera'!$B$12:$X$62720,2,0)),\"\",VLOOKUP(C712,'Capacidad Financiera'!$B$12:$X$3580,2,0))","v":0},null,{"$f":"IF(OR(D712=\"\",E712=\"\"),\"\",IF(AND(E712>0,E712<=CapTecnica1),Puntajes!$H$4,IF(AND(E712>CapTecnica1,E712<=CapTecnica2),Puntajes!$H$5,IF(E712>CapTecnica2,Puntajes!$H$6,0))))","v":""}]
[null,null,65,{"$f":"IF(ISERROR(VLOOKUP(C713,'Capacidad Financiera'!$B$12:$X$62720,2,0)),\"\",VLOOKUP(C713,'Capacidad Financiera'!$B$12:$X$3580,2,0))","v":0},null,{"$f":"IF(C714=\"\",IF(E713=\"\",\"\",IF(AND(E713>0,E713<=CapTecnica1),Puntajes!$H$4,IF(AND(E713>CapTecnica1,E713<=CapTecnica2),Puntajes!$H$5,IF(E713>CapTecnica2,Puntajes!$H$6,0)))),\"\")","v":""}]
[null,null,{"$f":"+'Capacidad Financiera'!B717","v":""},{"$f":"IF(ISERROR(VLOOKUP(C714,'Capacidad Financiera'!$B$12:$X$62720,2,0)),\"\",VLOOKUP(C714,'Capacidad Financiera'!$B$12:$X$3580,2,0))","v":0},null,{"$f":"IF(OR(D714=\"\",E714=\"\"),\"\",IF(AND(E714>0,E714<=CapTecnica1),Puntajes!$H$4,IF(AND(E714>CapTecnica1,E714<=CapTecnica2),Puntajes!$H$5,IF(E714>CapTecnica2,Puntajes!$H$6,0))))","v":""}]
[null,null,{"$f":"+'Capacidad Financiera'!B718","v":""},{"$f":"IF(ISERROR(VLOOKUP(C715,'Capacidad Financiera'!$B$12:$X$62720,2,0)),\"\",VLOOKUP(C715,'Capacidad Financiera'!$B$12:$X$3580,2,0))","v":0},null,{"$f":"IF(OR(D715=\"\",E715=\"\"),\"\",IF(AND(E715>0,E715<=CapTecnica1),Puntajes!$H$4,IF(AND(E715>CapTecnica1,E715<=CapTecnica2),Puntajes!$H$5,IF(E715>CapTecnica2,Puntajes!$H$6,0))))","v":""}]
[null,null,{"$f":"+'Capacidad Financiera'!B719","v":""},{"$f":"IF(ISERROR(VLOOKUP(C716,'Capacidad Financiera'!$B$12:$X$62720,2,0)),\"\",VLOOKUP(C716,'Capacidad Financiera'!$B$12:$X$3580,2,0))","v":0},null,{"$f":"IF(OR(D716=\"\",E716=\"\"),\"\",IF(AND(E716>0,E716<=CapTecnica1),Puntajes!$H$4,IF(AND(E716>CapTecnica1,E716<=CapTecnica2),Puntajes!$H$5,IF(E716>CapTecnica2,Puntajes!$H$6,0))))","v":""}]
[null,null,{"$f":"+'Capacidad Financiera'!B720","v":""},{"$f":"IF(ISERROR(VLOOKUP(C717,'Capacidad Financiera'!$B$12:$X$62720,2,0)),\"\",VLOOKUP(C717,'Capacidad Financiera'!$B$12:$X$3580,2,0))","v":0},null,{"$f":"IF(OR(D717=\"\",E717=\"\"),\"\",IF(AND(E717>0,E717<=CapTecnica1),Puntajes!$H$4,IF(AND(E717>CapTecnica1,E717<=CapTecnica2),Puntajes!$H$5,IF(E717>CapTecnica2,Puntajes!$H$6,0))))","v":""}]
[null,null,{"$f":"+'Capacidad Financiera'!B721","v":""},{"$f":"IF(ISERROR(VLOOKUP(C718,'Capacidad Financiera'!$B$12:$X$62720,2,0)),\"\",VLOOKUP(C718,'Capacidad Financiera'!$B$12:$X$3580,2,0))","v":0},null,{"$f":"IF(OR(D718=\"\",E718=\"\"),\"\",IF(AND(E718>0,E718<=CapTecnica1),Puntajes!$H$4,IF(AND(E718>CapTecnica1,E718<=CapTecnica2),Puntajes!$H$5,IF(E718>CapTecnica2,Puntajes!$H$6,0))))","v":""}]
[null,null,{"$f":"+'Capacidad Financiera'!B722","v":""},{"$f":"IF(ISERROR(VLOOKUP(C719,'Capacidad Financiera'!$B$12:$X$62720,2,0)),\"\",VLOOKUP(C719,'Capacidad Financiera'!$B$12:$X$3580,2,0))","v":0},null,{"$f":"IF(OR(D719=\"\",E719=\"\"),\"\",IF(AND(E719>0,E719<=CapTecnica1),Puntajes!$H$4,IF(AND(E719>CapTecnica1,E719<=CapTecnica2),Puntajes!$H$5,IF(E719>CapTecnica2,Puntajes!$H$6,0))))","v":""}]
[null,null,{"$f":"+'Capacidad Financiera'!B723","v":""},{"$f":"IF(ISERROR(VLOOKUP(C720,'Capacidad Financiera'!$B$12:$X$62720,2,0)),\"\",VLOOKUP(C720,'Capacidad Financiera'!$B$12:$X$3580,2,0))","v":0},null,{"$f":"IF(OR(D720=\"\",E720=\"\"),\"\",IF(AND(E720>0,E720<=CapTecnica1),Puntajes!$H$4,IF(AND(E720>CapTecnica1,E720<=CapTecnica2),Puntajes!$H$5,IF(E720>CapTecnica2,Puntajes!$H$6,0))))","v":""}]
[null,null,{"$f":"+'Capacidad Financiera'!B724","v":""},{"$f":"IF(ISERROR(VLOOKUP(C721,'Capacidad Financiera'!$B$12:$X$62720,2,0)),\"\",VLOOKUP(C721,'Capacidad Financiera'!$B$12:$X$3580,2,0))","v":0},null,{"$f":"IF(OR(D721=\"\",E721=\"\"),\"\",IF(AND(E721>0,E721<=CapTecnica1),Puntajes!$H$4,IF(AND(E721>CapTecnica1,E721<=CapTecnica2),Puntajes!$H$5,IF(E721>CapTecnica2,Puntajes!$H$6,0))))","v":""}]
[null,null,{"$f":"+'Capacidad Financiera'!B725","v":""},{"$f":"IF(ISERROR(VLOOKUP(C722,'Capacidad Financiera'!$B$12:$X$62720,2,0)),\"\",VLOOKUP(C722,'Capacidad Financiera'!$B$12:$X$3580,2,0))","v":0},null,{"$f":"IF(OR(D722=\"\",E722=\"\"),\"\",IF(AND(E722>0,E722<=CapTecnica1),Puntajes!$H$4,IF(AND(E722>CapTecnica1,E722<=CapTecnica2),Puntajes!$H$5,IF(E722>CapTecnica2,Puntajes!$H$6,0))))","v":""}]
[null,null,{"$f":"+'Capacidad Financiera'!B726","v":""},{"$f":"IF(ISERROR(VLOOKUP(C723,'Capacidad Financiera'!$B$12:$X$62720,2,0)),\"\",VLOOKUP(C723,'Capacidad Financiera'!$B$12:$X$3580,2,0))","v":0},null,{"$f":"IF(OR(D723=\"\",E723=\"\"),\"\",IF(AND(E723>0,E723<=CapTecnica1),Puntajes!$H$4,IF(AND(E723>CapTecnica1,E723<=CapTecnica2),Puntajes!$H$5,IF(E723>CapTecnica2,Puntajes!$H$6,0))))","v":""}]
[null,null,66,{"$f":"IF(ISERROR(VLOOKUP(C724,'Capacidad Financiera'!$B$12:$X$62720,2,0)),\"\",VLOOKUP(C724,'Capacidad Financiera'!$B$12:$X$3580,2,0))","v":0},null,{"$f":"IF(C725=\"\",IF(E724=\"\",\"\",IF(AND(E724>0,E724<=CapTecnica1),Puntajes!$H$4,IF(AND(E724>CapTecnica1,E724<=CapTecnica2),Puntajes!$H$5,IF(E724>CapTecnica2,Puntajes!$H$6,0)))),\"\")","v":""}]
[null,null,{"$f":"+'Capacidad Financiera'!B728","v":""},{"$f":"IF(ISERROR(VLOOKUP(C725,'Capacidad Financiera'!$B$12:$X$62720,2,0)),\"\",VLOOKUP(C725,'Capacidad Financiera'!$B$12:$X$3580,2,0))","v":0},null,{"$f":"IF(OR(D725=\"\",E725=\"\"),\"\",IF(AND(E725>0,E725<=CapTecnica1),Puntajes!$H$4,IF(AND(E725>CapTecnica1,E725<=CapTecnica2),Puntajes!$H$5,IF(E725>CapTecnica2,Puntajes!$H$6,0))))","v":""}]
[null,null,{"$f":"+'Capacidad Financiera'!B729","v":""},{"$f":"IF(ISERROR(VLOOKUP(C726,'Capacidad Financiera'!$B$12:$X$62720,2,0)),\"\",VLOOKUP(C726,'Capacidad Financiera'!$B$12:$X$3580,2,0))","v":0},null,{"$f":"IF(OR(D726=\"\",E726=\"\"),\"\",IF(AND(E726>0,E726<=CapTecnica1),Puntajes!$H$4,IF(AND(E726>CapTecnica1,E726<=CapTecnica2),Puntajes!$H$5,IF(E726>CapTecnica2,Puntajes!$H$6,0))))","v":""}]
[null,null,{"$f":"+'Capacidad Financiera'!B730","v":""},{"$f":"IF(ISERROR(VLOOKUP(C727,'Capacidad Financiera'!$B$12:$X$62720,2,0)),\"\",VLOOKUP(C727,'Capacidad Financiera'!$B$12:$X$3580,2,0))","v":0},null,{"$f":"IF(OR(D727=\"\",E727=\"\"),\"\",IF(AND(E727>0,E727<=CapTecnica1),Puntajes!$H$4,IF(AND(E727>CapTecnica1,E727<=CapTecnica2),Puntajes!$H$5,IF(E727>CapTecnica2,Puntajes!$H$6,0))))","v":""}]
[null,null,{"$f":"+'Capacidad Financiera'!B731","v":""},{"$f":"IF(ISERROR(VLOOKUP(C728,'Capacidad Financiera'!$B$12:$X$62720,2,0)),\"\",VLOOKUP(C728,'Capacidad Financiera'!$B$12:$X$3580,2,0))","v":0},null,{"$f":"IF(OR(D728=\"\",E728=\"\"),\"\",IF(AND(E728>0,E728<=CapTecnica1),Puntajes!$H$4,IF(AND(E728>CapTecnica1,E728<=CapTecnica2),Puntajes!$H$5,IF(E728>CapTecnica2,Puntajes!$H$6,0))))","v":""}]
[null,null,{"$f":"+'Capacidad Financiera'!B732","v":""},{"$f":"IF(ISERROR(VLOOKUP(C729,'Capacidad Financiera'!$B$12:$X$62720,2,0)),\"\",VLOOKUP(C729,'Capacidad Financiera'!$B$12:$X$3580,2,0))","v":0},null,{"$f":"IF(OR(D729=\"\",E729=\"\"),\"\",IF(AND(E729>0,E729<=CapTecnica1),Puntajes!$H$4,IF(AND(E729>CapTecnica1,E729<=CapTecnica2),Puntajes!$H$5,IF(E729>CapTecnica2,Puntajes!$H$6,0))))","v":""}]
[null,null,{"$f":"+'Capacidad Financiera'!B733","v":""},{"$f":"IF(ISERROR(VLOOKUP(C730,'Capacidad Financiera'!$B$12:$X$62720,2,0)),\"\",VLOOKUP(C730,'Capacidad Financiera'!$B$12:$X$3580,2,0))","v":0},null,{"$f":"IF(OR(D730=\"\",E730=\"\"),\"\",IF(AND(E730>0,E730<=CapTecnica1),Puntajes!$H$4,IF(AND(E730>CapTecnica1,E730<=CapTecnica2),Puntajes!$H$5,IF(E730>CapTecnica2,Puntajes!$H$6,0))))","v":""}]
[null,null,{"$f":"+'Capacidad Financiera'!B734","v":""},{"$f":"IF(ISERROR(VLOOKUP(C731,'Capacidad Financiera'!$B$12:$X$62720,2,0)),\"\",VLOOKUP(C731,'Capacidad Financiera'!$B$12:$X$3580,2,0))","v":0},null,{"$f":"IF(OR(D731=\"\",E731=\"\"),\"\",IF(AND(E731>0,E731<=CapTecnica1),Puntajes!$H$4,IF(AND(E731>CapTecnica1,E731<=CapTecnica2),Puntajes!$H$5,IF(E731>CapTecnica2,Puntajes!$H$6,0))))","v":""}]
[null,null,{"$f":"+'Capacidad Financiera'!B735","v":""},{"$f":"IF(ISERROR(VLOOKUP(C732,'Capacidad Financiera'!$B$12:$X$62720,2,0)),\"\",VLOOKUP(C732,'Capacidad Financiera'!$B$12:$X$3580,2,0))","v":0},null,{"$f":"IF(OR(D732=\"\",E732=\"\"),\"\",IF(AND(E732>0,E732<=CapTecnica1),Puntajes!$H$4,IF(AND(E732>CapTecnica1,E732<=CapTecnica2),Puntajes!$H$5,IF(E732>CapTecnica2,Puntajes!$H$6,0))))","v":""}]
[null,null,{"$f":"+'Capacidad Financiera'!B736","v":""},{"$f":"IF(ISERROR(VLOOKUP(C733,'Capacidad Financiera'!$B$12:$X$62720,2,0)),\"\",VLOOKUP(C733,'Capacidad Financiera'!$B$12:$X$3580,2,0))","v":0},null,{"$f":"IF(OR(D733=\"\",E733=\"\"),\"\",IF(AND(E733>0,E733<=CapTecnica1),Puntajes!$H$4,IF(AND(E733>CapTecnica1,E733<=CapTecnica2),Puntajes!$H$5,IF(E733>CapTecnica2,Puntajes!$H$6,0))))","v":""}]
[null,null,{"$f":"+'Capacidad Financiera'!B737","v":""},{"$f":"IF(ISERROR(VLOOKUP(C734,'Capacidad Financiera'!$B$12:$X$62720,2,0)),\"\",VLOOKUP(C734,'Capacidad Financiera'!$B$12:$X$3580,2,0))","v":0},null,{"$f":"IF(OR(D734=\"\",E734=\"\"),\"\",IF(AND(E734>0,E734<=CapTecnica1),Puntajes!$H$4,IF(AND(E734>CapTecnica1,E734<=CapTecnica2),Puntajes!$H$5,IF(E734>CapTecnica2,Puntajes!$H$6,0))))","v":""}]
[null,null,67,{"$f":"IF(ISERROR(VLOOKUP(C735,'Capacidad Financiera'!$B$12:$X$62720,2,0)),\"\",VLOOKUP(C735,'Capacidad Financiera'!$B$12:$X$3580,2,0))","v":0},null,{"$f":"IF(C736=\"\",IF(E735=\"\",\"\",IF(AND(E735>0,E735<=CapTecnica1),Puntajes!$H$4,IF(AND(E735>CapTecnica1,E735<=CapTecnica2),Puntajes!$H$5,IF(E735>CapTecnica2,Puntajes!$H$6,0)))),\"\")","v":""}]
[null,null,{"$f":"+'Capacidad Financiera'!B739","v":""},{"$f":"IF(ISERROR(VLOOKUP(C736,'Capacidad Financiera'!$B$12:$X$62720,2,0)),\"\",VLOOKUP(C736,'Capacidad Financiera'!$B$12:$X$3580,2,0))","v":0},null,{"$f":"IF(OR(D736=\"\",E736=\"\"),\"\",IF(AND(E736>0,E736<=CapTecnica1),Puntajes!$H$4,IF(AND(E736>CapTecnica1,E736<=CapTecnica2),Puntajes!$H$5,IF(E736>CapTecnica2,Puntajes!$H$6,0))))","v":""}]
[null,null,{"$f":"+'Capacidad Financiera'!B740","v":""},{"$f":"IF(ISERROR(VLOOKUP(C737,'Capacidad Financiera'!$B$12:$X$62720,2,0)),\"\",VLOOKUP(C737,'Capacidad Financiera'!$B$12:$X$3580,2,0))","v":0},null,{"$f":"IF(OR(D737=\"\",E737=\"\"),\"\",IF(AND(E737>0,E737<=CapTecnica1),Puntajes!$H$4,IF(AND(E737>CapTecnica1,E737<=CapTecnica2),Puntajes!$H$5,IF(E737>CapTecnica2,Puntajes!$H$6,0))))","v":""}]
[null,null,{"$f":"+'Capacidad Financiera'!B741","v":""},{"$f":"IF(ISERROR(VLOOKUP(C738,'Capacidad Financiera'!$B$12:$X$62720,2,0)),\"\",VLOOKUP(C738,'Capacidad Financiera'!$B$12:$X$3580,2,0))","v":0},null,{"$f":"IF(OR(D738=\"\",E738=\"\"),\"\",IF(AND(E738>0,E738<=CapTecnica1),Puntajes!$H$4,IF(AND(E738>CapTecnica1,E738<=CapTecnica2),Puntajes!$H$5,IF(E738>CapTecnica2,Puntajes!$H$6,0))))","v":""}]
[null,null,{"$f":"+'Capacidad Financiera'!B742","v":""},{"$f":"IF(ISERROR(VLOOKUP(C739,'Capacidad Financiera'!$B$12:$X$62720,2,0)),\"\",VLOOKUP(C739,'Capacidad Financiera'!$B$12:$X$3580,2,0))","v":0},null,{"$f":"IF(OR(D739=\"\",E739=\"\"),\"\",IF(AND(E739>0,E739<=CapTecnica1),Puntajes!$H$4,IF(AND(E739>CapTecnica1,E739<=CapTecnica2),Puntajes!$H$5,IF(E739>CapTecnica2,Puntajes!$H$6,0))))","v":""}]
[null,null,{"$f":"+'Capacidad Financiera'!B743","v":""},{"$f":"IF(ISERROR(VLOOKUP(C740,'Capacidad Financiera'!$B$12:$X$62720,2,0)),\"\",VLOOKUP(C740,'Capacidad Financiera'!$B$12:$X$3580,2,0))","v":0},null,{"$f":"IF(OR(D740=\"\",E740=\"\"),\"\",IF(AND(E740>0,E740<=CapTecnica1),Puntajes!$H$4,IF(AND(E740>CapTecnica1,E740<=CapTecnica2),Puntajes!$H$5,IF(E740>CapTecnica2,Puntajes!$H$6,0))))","v":""}]
[null,null,{"$f":"+'Capacidad Financiera'!B744","v":""},{"$f":"IF(ISERROR(VLOOKUP(C741,'Capacidad Financiera'!$B$12:$X$62720,2,0)),\"\",VLOOKUP(C741,'Capacidad Financiera'!$B$12:$X$3580,2,0))","v":0},null,{"$f":"IF(OR(D741=\"\",E741=\"\"),\"\",IF(AND(E741>0,E741<=CapTecnica1),Puntajes!$H$4,IF(AND(E741>CapTecnica1,E741<=CapTecnica2),Puntajes!$H$5,IF(E741>CapTecnica2,Puntajes!$H$6,0))))","v":""}]
[null,null,{"$f":"+'Capacidad Financiera'!B745","v":""},{"$f":"IF(ISERROR(VLOOKUP(C742,'Capacidad Financiera'!$B$12:$X$62720,2,0)),\"\",VLOOKUP(C742,'Capacidad Financiera'!$B$12:$X$3580,2,0))","v":0},null,{"$f":"IF(OR(D742=\"\",E742=\"\"),\"\",IF(AND(E742>0,E742<=CapTecnica1),Puntajes!$H$4,IF(AND(E742>CapTecnica1,E742<=CapTecnica2),Puntajes!$H$5,IF(E742>CapTecnica2,Puntajes!$H$6,0))))","v":""}]
[null,null,{"$f":"+'Capacidad Financiera'!B746","v":""},{"$f":"IF(ISERROR(VLOOKUP(C743,'Capacidad Financiera'!$B$12:$X$62720,2,0)),\"\",VLOOKUP(C743,'Capacidad Financiera'!$B$12:$X$3580,2,0))","v":0},null,{"$f":"IF(OR(D743=\"\",E743=\"\"),\"\",IF(AND(E743>0,E743<=CapTecnica1),Puntajes!$H$4,IF(AND(E743>CapTecnica1,E743<=CapTecnica2),Puntajes!$H$5,IF(E743>CapTecnica2,Puntajes!$H$6,0))))","v":""}]
[null,null,{"$f":"+'Capacidad Financiera'!B747","v":""},{"$f":"IF(ISERROR(VLOOKUP(C744,'Capacidad Financiera'!$B$12:$X$62720,2,0)),\"\",VLOOKUP(C744,'Capacidad Financiera'!$B$12:$X$3580,2,0))","v":0},null,{"$f":"IF(OR(D744=\"\",E744=\"\"),\"\",IF(AND(E744>0,E744<=CapTecnica1),Puntajes!$H$4,IF(AND(E744>CapTecnica1,E744<=CapTecnica2),Puntajes!$H$5,IF(E744>CapTecnica2,Puntajes!$H$6,0))))","v":""}]
[null,null,{"$f":"+'Capacidad Financiera'!B748","v":""},{"$f":"IF(ISERROR(VLOOKUP(C745,'Capacidad Financiera'!$B$12:$X$62720,2,0)),\"\",VLOOKUP(C745,'Capacidad Financiera'!$B$12:$X$3580,2,0))","v":0},null,{"$f":"IF(OR(D745=\"\",E745=\"\"),\"\",IF(AND(E745>0,E745<=CapTecnica1),Puntajes!$H$4,IF(AND(E745>CapTecnica1,E745<=CapTecnica2),Puntajes!$H$5,IF(E745>CapTecnica2,Puntajes!$H$6,0))))","v":""}]
[null,null,68,{"$f":"IF(ISERROR(VLOOKUP(C746,'Capacidad Financiera'!$B$12:$X$62720,2,0)),\"\",VLOOKUP(C746,'Capacidad Financiera'!$B$12:$X$3580,2,0))","v":0},null,{"$f":"IF(C747=\"\",IF(E746=\"\",\"\",IF(AND(E746>0,E746<=CapTecnica1),Puntajes!$H$4,IF(AND(E746>CapTecnica1,E746<=CapTecnica2),Puntajes!$H$5,IF(E746>CapTecnica2,Puntajes!$H$6,0)))),\"\")","v":""}]
[null,null,{"$f":"+'Capacidad Financiera'!B750","v":""},{"$f":"IF(ISERROR(VLOOKUP(C747,'Capacidad Financiera'!$B$12:$X$62720,2,0)),\"\",VLOOKUP(C747,'Capacidad Financiera'!$B$12:$X$3580,2,0))","v":0},null,{"$f":"IF(OR(D747=\"\",E747=\"\"),\"\",IF(AND(E747>0,E747<=CapTecnica1),Puntajes!$H$4,IF(AND(E747>CapTecnica1,E747<=CapTecnica2),Puntajes!$H$5,IF(E747>CapTecnica2,Puntajes!$H$6,0))))","v":""}]
[null,null,{"$f":"+'Capacidad Financiera'!B751","v":""},{"$f":"IF(ISERROR(VLOOKUP(C748,'Capacidad Financiera'!$B$12:$X$62720,2,0)),\"\",VLOOKUP(C748,'Capacidad Financiera'!$B$12:$X$3580,2,0))","v":0},null,{"$f":"IF(OR(D748=\"\",E748=\"\"),\"\",IF(AND(E748>0,E748<=CapTecnica1),Puntajes!$H$4,IF(AND(E748>CapTecnica1,E748<=CapTecnica2),Puntajes!$H$5,IF(E748>CapTecnica2,Puntajes!$H$6,0))))","v":""}]
[null,null,{"$f":"+'Capacidad Financiera'!B752","v":""},{"$f":"IF(ISERROR(VLOOKUP(C749,'Capacidad Financiera'!$B$12:$X$62720,2,0)),\"\",VLOOKUP(C749,'Capacidad Financiera'!$B$12:$X$3580,2,0))","v":0},null,{"$f":"IF(OR(D749=\"\",E749=\"\"),\"\",IF(AND(E749>0,E749<=CapTecnica1),Puntajes!$H$4,IF(AND(E749>CapTecnica1,E749<=CapTecnica2),Puntajes!$H$5,IF(E749>CapTecnica2,Puntajes!$H$6,0))))","v":""}]
[null,null,{"$f":"+'Capacidad Financiera'!B753","v":""},{"$f":"IF(ISERROR(VLOOKUP(C750,'Capacidad Financiera'!$B$12:$X$62720,2,0)),\"\",VLOOKUP(C750,'Capacidad Financiera'!$B$12:$X$3580,2,0))","v":0},null,{"$f":"IF(OR(D750=\"\",E750=\"\"),\"\",IF(AND(E750>0,E750<=CapTecnica1),Puntajes!$H$4,IF(AND(E750>CapTecnica1,E750<=CapTecnica2),Puntajes!$H$5,IF(E750>CapTecnica2,Puntajes!$H$6,0))))","v":""}]
[null,null,{"$f":"+'Capacidad Financiera'!B754","v":""},{"$f":"IF(ISERROR(VLOOKUP(C751,'Capacidad Financiera'!$B$12:$X$62720,2,0)),\"\",VLOOKUP(C751,'Capacidad Financiera'!$B$12:$X$3580,2,0))","v":0},null,{"$f":"IF(OR(D751=\"\",E751=\"\"),\"\",IF(AND(E751>0,E751<=CapTecnica1),Puntajes!$H$4,IF(AND(E751>CapTecnica1,E751<=CapTecnica2),Puntajes!$H$5,IF(E751>CapTecnica2,Puntajes!$H$6,0))))","v":""}]
[null,null,{"$f":"+'Capacidad Financiera'!B755","v":""},{"$f":"IF(ISERROR(VLOOKUP(C752,'Capacidad Financiera'!$B$12:$X$62720,2,0)),\"\",VLOOKUP(C752,'Capacidad Financiera'!$B$12:$X$3580,2,0))","v":0},null,{"$f":"IF(OR(D752=\"\",E752=\"\"),\"\",IF(AND(E752>0,E752<=CapTecnica1),Puntajes!$H$4,IF(AND(E752>CapTecnica1,E752<=CapTecnica2),Puntajes!$H$5,IF(E752>CapTecnica2,Puntajes!$H$6,0))))","v":""}]
[null,null,{"$f":"+'Capacidad Financiera'!B756","v":""},{"$f":"IF(ISERROR(VLOOKUP(C753,'Capacidad Financiera'!$B$12:$X$62720,2,0)),\"\",VLOOKUP(C753,'Capacidad Financiera'!$B$12:$X$3580,2,0))","v":0},null,{"$f":"IF(OR(D753=\"\",E753=\"\"),\"\",IF(AND(E753>0,E753<=CapTecnica1),Puntajes!$H$4,IF(AND(E753>CapTecnica1,E753<=CapTecnica2),Puntajes!$H$5,IF(E753>CapTecnica2,Puntajes!$H$6,0))))","v":""}]
[null,null,{"$f":"+'Capacidad Financiera'!B757","v":""},{"$f":"IF(ISERROR(VLOOKUP(C754,'Capacidad Financiera'!$B$12:$X$62720,2,0)),\"\",VLOOKUP(C754,'Capacidad Financiera'!$B$12:$X$3580,2,0))","v":0},null,{"$f":"IF(OR(D754=\"\",E754=\"\"),\"\",IF(AND(E754>0,E754<=CapTecnica1),Puntajes!$H$4,IF(AND(E754>CapTecnica1,E754<=CapTecnica2),Puntajes!$H$5,IF(E754>CapTecnica2,Puntajes!$H$6,0))))","v":""}]
[null,null,{"$f":"+'Capacidad Financiera'!B758","v":""},{"$f":"IF(ISERROR(VLOOKUP(C755,'Capacidad Financiera'!$B$12:$X$62720,2,0)),\"\",VLOOKUP(C755,'Capacidad Financiera'!$B$12:$X$3580,2,0))","v":0},null,{"$f":"IF(OR(D755=\"\",E755=\"\"),\"\",IF(AND(E755>0,E755<=CapTecnica1),Puntajes!$H$4,IF(AND(E755>CapTecnica1,E755<=CapTecnica2),Puntajes!$H$5,IF(E755>CapTecnica2,Puntajes!$H$6,0))))","v":""}]
[null,null,{"$f":"+'Capacidad Financiera'!B759","v":""},{"$f":"IF(ISERROR(VLOOKUP(C756,'Capacidad Financiera'!$B$12:$X$62720,2,0)),\"\",VLOOKUP(C756,'Capacidad Financiera'!$B$12:$X$3580,2,0))","v":0},null,{"$f":"IF(OR(D756=\"\",E756=\"\"),\"\",IF(AND(E756>0,E756<=CapTecnica1),Puntajes!$H$4,IF(AND(E756>CapTecnica1,E756<=CapTecnica2),Puntajes!$H$5,IF(E756>CapTecnica2,Puntajes!$H$6,0))))","v":""}]
[null,null,69,{"$f":"IF(ISERROR(VLOOKUP(C757,'Capacidad Financiera'!$B$12:$X$62720,2,0)),\"\",VLOOKUP(C757,'Capacidad Financiera'!$B$12:$X$3580,2,0))","v":0},null,{"$f":"IF(C758=\"\",IF(E757=\"\",\"\",IF(AND(E757>0,E757<=CapTecnica1),Puntajes!$H$4,IF(AND(E757>CapTecnica1,E757<=CapTecnica2),Puntajes!$H$5,IF(E757>CapTecnica2,Puntajes!$H$6,0)))),\"\")","v":""}]
[null,null,{"$f":"+'Capacidad Financiera'!B761","v":""},{"$f":"IF(ISERROR(VLOOKUP(C758,'Capacidad Financiera'!$B$12:$X$62720,2,0)),\"\",VLOOKUP(C758,'Capacidad Financiera'!$B$12:$X$3580,2,0))","v":0},null,{"$f":"IF(OR(D758=\"\",E758=\"\"),\"\",IF(AND(E758>0,E758<=CapTecnica1),Puntajes!$H$4,IF(AND(E758>CapTecnica1,E758<=CapTecnica2),Puntajes!$H$5,IF(E758>CapTecnica2,Puntajes!$H$6,0))))","v":""}]
[null,null,{"$f":"+'Capacidad Financiera'!B762","v":""},{"$f":"IF(ISERROR(VLOOKUP(C759,'Capacidad Financiera'!$B$12:$X$62720,2,0)),\"\",VLOOKUP(C759,'Capacidad Financiera'!$B$12:$X$3580,2,0))","v":0},null,{"$f":"IF(OR(D759=\"\",E759=\"\"),\"\",IF(AND(E759>0,E759<=CapTecnica1),Puntajes!$H$4,IF(AND(E759>CapTecnica1,E759<=CapTecnica2),Puntajes!$H$5,IF(E759>CapTecnica2,Puntajes!$H$6,0))))","v":""}]
[null,null,{"$f":"+'Capacidad Financiera'!B763","v":""},{"$f":"IF(ISERROR(VLOOKUP(C760,'Capacidad Financiera'!$B$12:$X$62720,2,0)),\"\",VLOOKUP(C760,'Capacidad Financiera'!$B$12:$X$3580,2,0))","v":0},null,{"$f":"IF(OR(D760=\"\",E760=\"\"),\"\",IF(AND(E760>0,E760<=CapTecnica1),Puntajes!$H$4,IF(AND(E760>CapTecnica1,E760<=CapTecnica2),Puntajes!$H$5,IF(E760>CapTecnica2,Puntajes!$H$6,0))))","v":""}]
[null,null,{"$f":"+'Capacidad Financiera'!B764","v":""},{"$f":"IF(ISERROR(VLOOKUP(C761,'Capacidad Financiera'!$B$12:$X$62720,2,0)),\"\",VLOOKUP(C761,'Capacidad Financiera'!$B$12:$X$3580,2,0))","v":0},null,{"$f":"IF(OR(D761=\"\",E761=\"\"),\"\",IF(AND(E761>0,E761<=CapTecnica1),Puntajes!$H$4,IF(AND(E761>CapTecnica1,E761<=CapTecnica2),Puntajes!$H$5,IF(E761>CapTecnica2,Puntajes!$H$6,0))))","v":""}]
[null,null,{"$f":"+'Capacidad Financiera'!B765","v":""},{"$f":"IF(ISERROR(VLOOKUP(C762,'Capacidad Financiera'!$B$12:$X$62720,2,0)),\"\",VLOOKUP(C762,'Capacidad Financiera'!$B$12:$X$3580,2,0))","v":0},null,{"$f":"IF(OR(D762=\"\",E762=\"\"),\"\",IF(AND(E762>0,E762<=CapTecnica1),Puntajes!$H$4,IF(AND(E762>CapTecnica1,E762<=CapTecnica2),Puntajes!$H$5,IF(E762>CapTecnica2,Puntajes!$H$6,0))))","v":""}]
[null,null,{"$f":"+'Capacidad Financiera'!B766","v":""},{"$f":"IF(ISERROR(VLOOKUP(C763,'Capacidad Financiera'!$B$12:$X$62720,2,0)),\"\",VLOOKUP(C763,'Capacidad Financiera'!$B$12:$X$3580,2,0))","v":0},null,{"$f":"IF(OR(D763=\"\",E763=\"\"),\"\",IF(AND(E763>0,E763<=CapTecnica1),Puntajes!$H$4,IF(AND(E763>CapTecnica1,E763<=CapTecnica2),Puntajes!$H$5,IF(E763>CapTecnica2,Puntajes!$H$6,0))))","v":""}]
[null,null,{"$f":"+'Capacidad Financiera'!B767","v":""},{"$f":"IF(ISERROR(VLOOKUP(C764,'Capacidad Financiera'!$B$12:$X$62720,2,0)),\"\",VLOOKUP(C764,'Capacidad Financiera'!$B$12:$X$3580,2,0))","v":0},null,{"$f":"IF(OR(D764=\"\",E764=\"\"),\"\",IF(AND(E764>0,E764<=CapTecnica1),Puntajes!$H$4,IF(AND(E764>CapTecnica1,E764<=CapTecnica2),Puntajes!$H$5,IF(E764>CapTecnica2,Puntajes!$H$6,0))))","v":""}]
[null,null,{"$f":"+'Capacidad Financiera'!B768","v":""},{"$f":"IF(ISERROR(VLOOKUP(C765,'Capacidad Financiera'!$B$12:$X$62720,2,0)),\"\",VLOOKUP(C765,'Capacidad Financiera'!$B$12:$X$3580,2,0))","v":0},null,{"$f":"IF(OR(D765=\"\",E765=\"\"),\"\",IF(AND(E765>0,E765<=CapTecnica1),Puntajes!$H$4,IF(AND(E765>CapTecnica1,E765<=CapTecnica2),Puntajes!$H$5,IF(E765>CapTecnica2,Puntajes!$H$6,0))))","v":""}]
[null,null,{"$f":"+'Capacidad Financiera'!B769","v":""},{"$f":"IF(ISERROR(VLOOKUP(C766,'Capacidad Financiera'!$B$12:$X$62720,2,0)),\"\",VLOOKUP(C766,'Capacidad Financiera'!$B$12:$X$3580,2,0))","v":0},null,{"$f":"IF(OR(D766=\"\",E766=\"\"),\"\",IF(AND(E766>0,E766<=CapTecnica1),Puntajes!$H$4,IF(AND(E766>CapTecnica1,E766<=CapTecnica2),Puntajes!$H$5,IF(E766>CapTecnica2,Puntajes!$H$6,0))))","v":""}]
[null,null,{"$f":"+'Capacidad Financiera'!B770","v":""},{"$f":"IF(ISERROR(VLOOKUP(C767,'Capacidad Financiera'!$B$12:$X$62720,2,0)),\"\",VLOOKUP(C767,'Capacidad Financiera'!$B$12:$X$3580,2,0))","v":0},null,{"$f":"IF(OR(D767=\"\",E767=\"\"),\"\",IF(AND(E767>0,E767<=CapTecnica1),Puntajes!$H$4,IF(AND(E767>CapTecnica1,E767<=CapTecnica2),Puntajes!$H$5,IF(E767>CapTecnica2,Puntajes!$H$6,0))))","v":""}]
[null,null,70,{"$f":"IF(ISERROR(VLOOKUP(C768,'Capacidad Financiera'!$B$12:$X$62720,2,0)),\"\",VLOOKUP(C768,'Capacidad Financiera'!$B$12:$X$3580,2,0))","v":0},null,{"$f":"IF(C769=\"\",IF(E768=\"\",\"\",IF(AND(E768>0,E768<=CapTecnica1),Puntajes!$H$4,IF(AND(E768>CapTecnica1,E768<=CapTecnica2),Puntajes!$H$5,IF(E768>CapTecnica2,Puntajes!$H$6,0)))),\"\")","v":""}]
[null,null,{"$f":"+'Capacidad Financiera'!B772","v":""},{"$f":"IF(ISERROR(VLOOKUP(C769,'Capacidad Financiera'!$B$12:$X$62720,2,0)),\"\",VLOOKUP(C769,'Capacidad Financiera'!$B$12:$X$3580,2,0))","v":0},null,{"$f":"IF(OR(D769=\"\",E769=\"\"),\"\",IF(AND(E769>0,E769<=CapTecnica1),Puntajes!$H$4,IF(AND(E769>CapTecnica1,E769<=CapTecnica2),Puntajes!$H$5,IF(E769>CapTecnica2,Puntajes!$H$6,0))))","v":""}]
[null,null,{"$f":"+'Capacidad Financiera'!B773","v":""},{"$f":"IF(ISERROR(VLOOKUP(C770,'Capacidad Financiera'!$B$12:$X$62720,2,0)),\"\",VLOOKUP(C770,'Capacidad Financiera'!$B$12:$X$3580,2,0))","v":0},null,{"$f":"IF(OR(D770=\"\",E770=\"\"),\"\",IF(AND(E770>0,E770<=CapTecnica1),Puntajes!$H$4,IF(AND(E770>CapTecnica1,E770<=CapTecnica2),Puntajes!$H$5,IF(E770>CapTecnica2,Puntajes!$H$6,0))))","v":""}]
[null,null,{"$f":"+'Capacidad Financiera'!B774","v":""},{"$f":"IF(ISERROR(VLOOKUP(C771,'Capacidad Financiera'!$B$12:$X$62720,2,0)),\"\",VLOOKUP(C771,'Capacidad Financiera'!$B$12:$X$3580,2,0))","v":0},null,{"$f":"IF(OR(D771=\"\",E771=\"\"),\"\",IF(AND(E771>0,E771<=CapTecnica1),Puntajes!$H$4,IF(AND(E771>CapTecnica1,E771<=CapTecnica2),Puntajes!$H$5,IF(E771>CapTecnica2,Puntajes!$H$6,0))))","v":""}]
[null,null,{"$f":"+'Capacidad Financiera'!B775","v":""},{"$f":"IF(ISERROR(VLOOKUP(C772,'Capacidad Financiera'!$B$12:$X$62720,2,0)),\"\",VLOOKUP(C772,'Capacidad Financiera'!$B$12:$X$3580,2,0))","v":0},null,{"$f":"IF(OR(D772=\"\",E772=\"\"),\"\",IF(AND(E772>0,E772<=CapTecnica1),Puntajes!$H$4,IF(AND(E772>CapTecnica1,E772<=CapTecnica2),Puntajes!$H$5,IF(E772>CapTecnica2,Puntajes!$H$6,0))))","v":""}]
[null,null,{"$f":"+'Capacidad Financiera'!B776","v":""},{"$f":"IF(ISERROR(VLOOKUP(C773,'Capacidad Financiera'!$B$12:$X$62720,2,0)),\"\",VLOOKUP(C773,'Capacidad Financiera'!$B$12:$X$3580,2,0))","v":0},null,{"$f":"IF(OR(D773=\"\",E773=\"\"),\"\",IF(AND(E773>0,E773<=CapTecnica1),Puntajes!$H$4,IF(AND(E773>CapTecnica1,E773<=CapTecnica2),Puntajes!$H$5,IF(E773>CapTecnica2,Puntajes!$H$6,0))))","v":""}]
[null,null,{"$f":"+'Capacidad Financiera'!B777","v":""},{"$f":"IF(ISERROR(VLOOKUP(C774,'Capacidad Financiera'!$B$12:$X$62720,2,0)),\"\",VLOOKUP(C774,'Capacidad Financiera'!$B$12:$X$3580,2,0))","v":0},null,{"$f":"IF(OR(D774=\"\",E774=\"\"),\"\",IF(AND(E774>0,E774<=CapTecnica1),Puntajes!$H$4,IF(AND(E774>CapTecnica1,E774<=CapTecnica2),Puntajes!$H$5,IF(E774>CapTecnica2,Puntajes!$H$6,0))))","v":""}]
[null,null,{"$f":"+'Capacidad Financiera'!B778","v":""},{"$f":"IF(ISERROR(VLOOKUP(C775,'Capacidad Financiera'!$B$12:$X$62720,2,0)),\"\",VLOOKUP(C775,'Capacidad Financiera'!$B$12:$X$3580,2,0))","v":0},null,{"$f":"IF(OR(D775=\"\",E775=\"\"),\"\",IF(AND(E775>0,E775<=CapTecnica1),Puntajes!$H$4,IF(AND(E775>CapTecnica1,E775<=CapTecnica2),Puntajes!$H$5,IF(E775>CapTecnica2,Puntajes!$H$6,0))))","v":""}]
[null,null,{"$f":"+'Capacidad Financiera'!B779","v":""},{"$f":"IF(ISERROR(VLOOKUP(C776,'Capacidad Financiera'!$B$12:$X$62720,2,0)),\"\",VLOOKUP(C776,'Capacidad Financiera'!$B$12:$X$3580,2,0))","v":0},null,{"$f":"IF(OR(D776=\"\",E776=\"\"),\"\",IF(AND(E776>0,E776<=CapTecnica1),Puntajes!$H$4,IF(AND(E776>CapTecnica1,E776<=CapTecnica2),Puntajes!$H$5,IF(E776>CapTecnica2,Puntajes!$H$6,0))))","v":""}]
[null,null,{"$f":"+'Capacidad Financiera'!B780","v":""},{"$f":"IF(ISERROR(VLOOKUP(C777,'Capacidad Financiera'!$B$12:$X$62720,2,0)),\"\",VLOOKUP(C777,'Capacidad Financiera'!$B$12:$X$3580,2,0))","v":0},null,{"$f":"IF(OR(D777=\"\",E777=\"\"),\"\",IF(AND(E777>0,E777<=CapTecnica1),Puntajes!$H$4,IF(AND(E777>CapTecnica1,E777<=CapTecnica2),Puntajes!$H$5,IF(E777>CapTecnica2,Puntajes!$H$6,0))))","v":""}]
[null,null,{"$f":"+'Capacidad Financiera'!B781","v":""},{"$f":"IF(ISERROR(VLOOKUP(C778,'Capacidad Financiera'!$B$12:$X$62720,2,0)),\"\",VLOOKUP(C778,'Capacidad Financiera'!$B$12:$X$3580,2,0))","v":0},null,{"$f":"IF(OR(D778=\"\",E778=\"\"),\"\",IF(AND(E778>0,E778<=CapTecnica1),Puntajes!$H$4,IF(AND(E778>CapTecnica1,E778<=CapTecnica2),Puntajes!$H$5,IF(E778>CapTecnica2,Puntajes!$H$6,0))))","v":""}]

{"sheet":"Puntaje CF","index":7,"n_rows":778,"n_cols":8,"rows_kept":778,"cut":false,"hidden":false,"merged":[[6,4,7,4],[6,5,7,5],[6,6,7,6],[1,2,1,7],[2,2,2,7],[3,2,3,7],[4,2,4,7],[6,2,7,2],[6,3,7,3]]}
[]
[null,null,"INSTITUTO NACIONAL DE VIAS"]
[null,null,"DIRECCIÓN DE CONTRATACIÓN"]
[null,null,{"$f":"'Capacidad Financiera'!B4","v":"LICITACIÓN PÚBLICA No. LP-DO-SRN-XXX-2014"}]
[null,null,"PUNTAJE POR CAPACIDAD FINANCIERA"]
[]
[null,null,"OFERTA","PROPONENTE","ACTIVOS CORRIENTES\n\n(A)","PASIVOS CORRIENTES\n\n(B)","ÍNDICE DE LIQUIDEZ\n\n(A) / (B) = (C) ","PUNTAJE POR CAPACIDAD FINANCIERA"]
[null,null,null,null,null,null,null,"Rangos:\nMayor a 0 y Menor o Igual a 0,5 = 20 Puntos\nMayor a 0,5 y Menor o Igual a 0,75 = 25 Puntos\nMayor a 0,75 y Menor o Igual a 1,00 = 30 Puntos\nMayor a 1,00 y Menor o Igual a 1,5 = 35 Puntos\nMayor a 1,5 y Mayores =  40 Puntos"]
[null,null,{"$f":"+'Capacidad Financiera'!B12","v":1},{"$f":"IF(ISERROR(VLOOKUP(C9,'Capacidad Financiera'!$B$12:$X$62720,2,0)),\"\",VLOOKUP(C9,'Capacidad Financiera'!$B$12:$X$3580,2,0))","v":"CONVIAL S.A.S."},{"$f":"IF(C10=\"\",IF(C9<>\"\",IF(ISERROR(VLOOKUP(D9,'Capacidad Financiera'!$C$12:$H$22,3,0)),\"\",VLOOKUP(D9,'Capacidad Financiera'!$C$12:$H$22,3,0))),\"\")","v":""},{"$f":"IF(C10=\"\",IF(C9<>\"\",IF(ISERROR(VLOOKUP(D9,'Capacidad Financiera'!$C$12:$H$22,5,0)),\"\",VLOOKUP(D9,'Capacidad Financiera'!$C$12:$H$22,5,0))),\"\")","v":""},{"$f":"IF(OR(D9=\"\",E9=\"\",F9=\"\"),\"\",IF(OR(E9=0,F9=0),0,E9/F9))","v":""},{"$f":"IF(C10=\"\",IF(AND(E9=\"\",F9=\"\"),\"\",IF(AND(G9>0,G9<=CapFinanciera1),Puntajes!$D$12,IF(AND(G9>CapFinanciera1,G9<=CapFinanciera2),Puntajes!$D$13,IF(AND(G9>CapFinanciera2,G9<=CapFinanciera3),Puntajes!$D$14,IF(AND(G9>CapFinanciera3,G9<=CapFinanciera4),Puntajes!$D$15,IF(G9>CapFinanciera4,Puntajes!$D$16,0)))))),\"\")","v":""}]
[null,null,{"$f":"+'Capacidad Financiera'!B13","v":1.1000000000000001},{"$f":"IF(ISERROR(VLOOKUP(C10,'Capacidad Financiera'!$B$12:$X$62720,2,0)),\"\",VLOOKUP(C10,'Capacidad Financiera'!$B$12:$X$3580,2,0))","v":"CONVIAL S.A.S."},{"$f":"IF(OR(C10=\"\",D10=\"\"),\"\",IF(ISERROR(VLOOKUP(D10,'Capacidad Financiera'!$C$13:$X$62720,3,0)),\"\",VLOOKUP(D10,'Capacidad Financiera'!$C$13:$X$62720,3,0)))","v":6053046144},{"$f":"IF(OR(C10=\"\",D10=\"\"),\"\",IF(ISERROR(VLOOKUP(D10,'Capacidad Financiera'!$C$13:$X$62720,5,0)),\"\",VLOOKUP(D10,'Capacidad Financiera'!$C$13:$X$62720,5,0)))","v":2192379442},{"$f":"IF(OR(D10=\"\",E10=\"\",F10=\"\"),\"\",IF(OR(E10=0,F10=0),0,E10/F10))","v":2.7609482318800178},{"$f":"IF(OR(D10=\"\",E10=\"\",F10=\"\"),\"\",IF(AND(G10>0,G10<=CapFinanciera1),Puntajes!$D$12,IF(AND(G10>CapFinanciera1,G10<=CapFinanciera2),Puntajes!$D$13,IF(AND(G10>CapFinanciera2,G10<=CapFinanciera3),Puntajes!$D$14,IF(AND(G10>CapFinanciera3,G10<=CapFinanciera4),Puntajes!$D$15,IF(G10>CapFinanciera4,Puntajes!$D$16,0))))))","v":40}]
[null,null,{"$f":"+'Capacidad Financiera'!B14","v":""},{"$f":"IF(ISERROR(VLOOKUP(C11,'Capacidad Financiera'!$B$12:$X$62720,2,0)),\"\",VLOOKUP(C11,'Capacidad Financiera'!$B$12:$X$3580,2,0))","v":0},{"$f":"IF(OR(C11=\"\",D11=\"\"),\"\",IF(ISERROR(VLOOKUP(D11,'Capacidad Financiera'!$C$13:$X$62720,3,0)),\"\",VLOOKUP(D11,'Capacidad Financiera'!$C$13:$X$62720,3,0)))","v":""},{"$f":"IF(OR(C11=\"\",D11=\"\"),\"\",IF(ISERROR(VLOOKUP(D11,'Capacidad Financiera'!$C$13:$X$62720,5,0)),\"\",VLOOKUP(D11,'Capacidad Financiera'!$C$13:$X$62720,5,0)))","v":""},"",{"$f":"IF(OR(D11=\"\",E11=\"\",F11=\"\"),\"\",IF(AND(G11>0,G11<=CapFinanciera1),Puntajes!$D$12,IF(AND(G11>CapFinanciera1,G11<=CapFinanciera2),Puntajes!$D$13,IF(AND(G11>CapFinanciera2,G11<=CapFinanciera3),Puntajes!$D$14,IF(AND(G11>CapFinanciera3,G11<=CapFinanciera4),Puntajes!$D$15,IF(G11>CapFinanciera4,Puntajes!$D$16,0))))))","v":""}]
[null,null,{"$f":"+'Capacidad Financiera'!B15","v":""},{"$f":"IF(ISERROR(VLOOKUP(C12,'Capacidad Financiera'!$B$12:$X$62720,2,0)),\"\",VLOOKUP(C12,'Capacidad Financiera'!$B$12:$X$3580,2,0))","v":0},{"$f":"IF(OR(C12=\"\",D12=\"\"),\"\",IF(ISERROR(VLOOKUP(D12,'Capacidad Financiera'!$C$13:$X$62720,3,0)),\"\",VLOOKUP(D12,'Capacidad Financiera'!$C$13:$X$62720,3,0)))","v":""},{"$f":"IF(OR(C12=\"\",D12=\"\"),\"\",IF(ISERROR(VLOOKUP(D12,'Capacidad Financiera'!$C$13:$X$62720,5,0)),\"\",VLOOKUP(D12,'Capacidad Financiera'!$C$13:$X$62720,5,0)))","v":""},"",{"$f":"IF(OR(D12=\"\",E12=\"\",F12=\"\"),\"\",IF(AND(G12>0,G12<=CapFinanciera1),Puntajes!$D$12,IF(AND(G12>CapFinanciera1,G12<=CapFinanciera2),Puntajes!$D$13,IF(AND(G12>CapFinanciera2,G12<=CapFinanciera3),Puntajes!$D$14,IF(AND(G12>CapFinanciera3,G12<=CapFinanciera4),Puntajes!$D$15,IF(G12>CapFinanciera4,Puntajes!$D$16,0))))))","v":""}]
[null,null,{"$f":"+'Capacidad Financiera'!B16","v":""},{"$f":"IF(ISERROR(VLOOKUP(C13,'Capacidad Financiera'!$B$12:$X$62720,2,0)),\"\",VLOOKUP(C13,'Capacidad Financiera'!$B$12:$X$3580,2,0))","v":0},{"$f":"IF(OR(C13=\"\",D13=\"\"),\"\",IF(ISERROR(VLOOKUP(D13,'Capacidad Financiera'!$C$13:$X$62720,3,0)),\"\",VLOOKUP(D13,'Capacidad Financiera'!$C$13:$X$62720,3,0)))","v":""},{"$f":"IF(OR(C13=\"\",D13=\"\"),\"\",IF(ISERROR(VLOOKUP(D13,'Capacidad Financiera'!$C$13:$X$62720,5,0)),\"\",VLOOKUP(D13,'Capacidad Financiera'!$C$13:$X$62720,5,0)))","v":""},"",{"$f":"IF(OR(D13=\"\",E13=\"\",F13=\"\"),\"\",IF(AND(G13>0,G13<=CapFinanciera1),Puntajes!$D$12,IF(AND(G13>CapFinanciera1,G13<=CapFinanciera2),Puntajes!$D$13,IF(AND(G13>CapFinanciera2,G13<=CapFinanciera3),Puntajes!$D$14,IF(AND(G13>CapFinanciera3,G13<=CapFinanciera4),Puntajes!$D$15,IF(G13>CapFinanciera4,Puntajes!$D$16,0))))))","v":""}]
[null,null,{"$f":"+'Capacidad Financiera'!B17","v":""},{"$f":"IF(ISERROR(VLOOKUP(C14,'Capacidad Financiera'!$B$12:$X$62720,2,0)),\"\",VLOOKUP(C14,'Capacidad Financiera'!$B$12:$X$3580,2,0))","v":0},{"$f":"IF(OR(C14=\"\",D14=\"\"),\"\",IF(ISERROR(VLOOKUP(D14,'Capacidad Financiera'!$C$13:$X$62720,3,0)),\"\",VLOOKUP(D14,'Capacidad Financiera'!$C$13:$X$62720,3,0)))","v":""},{"$f":"IF(OR(C14=\"\",D14=\"\"),\"\",IF(ISERROR(VLOOKUP(D14,'Capacidad Financiera'!$C$13:$X$62720,5,0)),\"\",VLOOKUP(D14,'Capacidad Financiera'!$C$13:$X$62720,5,0)))","v":""},"",{"$f":"IF(OR(D14=\"\",E14=\"\",F14=\"\"),\"\",IF(AND(G14>0,G14<=CapFinanciera1),Puntajes!$D$12,IF(AND(G14>CapFinanciera1,G14<=CapFinanciera2),Puntajes!$D$13,IF(AND(G14>CapFinanciera2,G14<=CapFinanciera3),Puntajes!$D$14,IF(AND(G14>CapFinanciera3,G14<=CapFinanciera4),Puntajes!$D$15,IF(G14>CapFinanciera4,Puntajes!$D$16,0))))))","v":""}]
[null,null,{"$f":"+'Capacidad Financiera'!B18","v":""},{"$f":"IF(ISERROR(VLOOKUP(C15,'Capacidad Financiera'!$B$12:$X$62720,2,0)),\"\",VLOOKUP(C15,'Capacidad Financiera'!$B$12:$X$3580,2,0))","v":0},{"$f":"IF(OR(C15=\"\",D15=\"\"),\"\",IF(ISERROR(VLOOKUP(D15,'Capacidad Financiera'!$C$13:$X$62720,3,0)),\"\",VLOOKUP(D15,'Capacidad Financiera'!$C$13:$X$62720,3,0)))","v":""},{"$f":"IF(OR(C15=\"\",D15=\"\"),\"\",IF(ISERROR(VLOOKUP(D15,'Capacidad Financiera'!$C$13:$X$62720,5,0)),\"\",VLOOKUP(D15,'Capacidad Financiera'!$C$13:$X$62720,5,0)))","v":""},"",{"$f":"IF(OR(D15=\"\",E15=\"\",F15=\"\"),\"\",IF(AND(G15>0,G15<=CapFinanciera1),Puntajes!$D$12,IF(AND(G15>CapFinanciera1,G15<=CapFinanciera2),Puntajes!$D$13,IF(AND(G15>CapFinanciera2,G15<=CapFinanciera3),Puntajes!$D$14,IF(AND(G15>CapFinanciera3,G15<=CapFinanciera4),Puntajes!$D$15,IF(G15>CapFinanciera4,Puntajes!$D$16,0))))))","v":""}]
[null,null,{"$f":"+'Capacidad Financiera'!B19","v":""},{"$f":"IF(ISERROR(VLOOKUP(C16,'Capacidad Financiera'!$B$12:$X$62720,2,0)),\"\",VLOOKUP(C16,'Capacidad Financiera'!$B$12:$X$3580,2,0))","v":0},{"$f":"IF(OR(C16=\"\",D16=\"\"),\"\",IF(ISERROR(VLOOKUP(D16,'Capacidad Financiera'!$C$13:$X$62720,3,0)),\"\",VLOOKUP(D16,'Capacidad Financiera'!$C$13:$X$62720,3,0)))","v":""},{"$f":"IF(OR(C16=\"\",D16=\"\"),\"\",IF(ISERROR(VLOOKUP(D16,'Capacidad Financiera'!$C$13:$X$62720,5,0)),\"\",VLOOKUP(D16,'Capacidad Financiera'!$C$13:$X$62720,5,0)))","v":""},"",{"$f":"IF(OR(D16=\"\",E16=\"\",F16=\"\"),\"\",IF(AND(G16>0,G16<=CapFinanciera1),Puntajes!$D$12,IF(AND(G16>CapFinanciera1,G16<=CapFinanciera2),Puntajes!$D$13,IF(AND(G16>CapFinanciera2,G16<=CapFinanciera3),Puntajes!$D$14,IF(AND(G16>CapFinanciera3,G16<=CapFinanciera4),Puntajes!$D$15,IF(G16>CapFinanciera4,Puntajes!$D$16,0))))))","v":""}]
[null,null,{"$f":"+'Capacidad Financiera'!B20","v":""},{"$f":"IF(ISERROR(VLOOKUP(C17,'Capacidad Financiera'!$B$12:$X$62720,2,0)),\"\",VLOOKUP(C17,'Capacidad Financiera'!$B$12:$X$3580,2,0))","v":0},{"$f":"IF(OR(C17=\"\",D17=\"\"),\"\",IF(ISERROR(VLOOKUP(D17,'Capacidad Financiera'!$C$13:$X$62720,3,0)),\"\",VLOOKUP(D17,'Capacidad Financiera'!$C$13:$X$62720,3,0)))","v":""},{"$f":"IF(OR(C17=\"\",D17=\"\"),\"\",IF(ISERROR(VLOOKUP(D17,'Capacidad Financiera'!$C$13:$X$62720,5,0)),\"\",VLOOKUP(D17,'Capacidad Financiera'!$C$13:$X$62720,5,0)))","v":""},"",{"$f":"IF(OR(D17=\"\",E17=\"\",F17=\"\"),\"\",IF(AND(G17>0,G17<=CapFinanciera1),Puntajes!$D$12,IF(AND(G17>CapFinanciera1,G17<=CapFinanciera2),Puntajes!$D$13,IF(AND(G17>CapFinanciera2,G17<=CapFinanciera3),Puntajes!$D$14,IF(AND(G17>CapFinanciera3,G17<=CapFinanciera4),Puntajes!$D$15,IF(G17>CapFinanciera4,Puntajes!$D$16,0))))))","v":""}]
[null,null,{"$f":"+'Capacidad Financiera'!B21","v":""},{"$f":"IF(ISERROR(VLOOKUP(C18,'Capacidad Financiera'!$B$12:$X$62720,2,0)),\"\",VLOOKUP(C18,'Capacidad Financiera'!$B$12:$X$3580,2,0))","v":0},{"$f":"IF(OR(C18=\"\",D18=\"\"),\"\",IF(ISERROR(VLOOKUP(D18,'Capacidad Financiera'!$C$13:$X$62720,3,0)),\"\",VLOOKUP(D18,'Capacidad Financiera'!$C$13:$X$62720,3,0)))","v":""},{"$f":"IF(OR(C18=\"\",D18=\"\"),\"\",IF(ISERROR(VLOOKUP(D18,'Capacidad Financiera'!$C$13:$X$62720,5,0)),\"\",VLOOKUP(D18,'Capacidad Financiera'!$C$13:$X$62720,5,0)))","v":""},"",{"$f":"IF(OR(D18=\"\",E18=\"\",F18=\"\"),\"\",IF(AND(G18>0,G18<=CapFinanciera1),Puntajes!$D$12,IF(AND(G18>CapFinanciera1,G18<=CapFinanciera2),Puntajes!$D$13,IF(AND(G18>CapFinanciera2,G18<=CapFinanciera3),Puntajes!$D$14,IF(AND(G18>CapFinanciera3,G18<=CapFinanciera4),Puntajes!$D$15,IF(G18>CapFinanciera4,Puntajes!$D$16,0))))))","v":""}]
[null,null,{"$f":"+'Capacidad Financiera'!B22","v":""},{"$f":"IF(ISERROR(VLOOKUP(C19,'Capacidad Financiera'!$B$12:$X$62720,2,0)),\"\",VLOOKUP(C19,'Capacidad Financiera'!$B$12:$X$3580,2,0))","v":0},{"$f":"IF(OR(C19=\"\",D19=\"\"),\"\",IF(ISERROR(VLOOKUP(D19,'Capacidad Financiera'!$C$13:$X$62720,3,0)),\"\",VLOOKUP(D19,'Capacidad Financiera'!$C$13:$X$62720,3,0)))","v":""},{"$f":"IF(OR(C19=\"\",D19=\"\"),\"\",IF(ISERROR(VLOOKUP(D19,'Capacidad Financiera'!$C$13:$X$62720,5,0)),\"\",VLOOKUP(D19,'Capacidad Financiera'!$C$13:$X$62720,5,0)))","v":""},"",{"$f":"IF(OR(D19=\"\",E19=\"\",F19=\"\"),\"\",IF(AND(G19>0,G19<=CapFinanciera1),Puntajes!$D$12,IF(AND(G19>CapFinanciera1,G19<=CapFinanciera2),Puntajes!$D$13,IF(AND(G19>CapFinanciera2,G19<=CapFinanciera3),Puntajes!$D$14,IF(AND(G19>CapFinanciera3,G19<=CapFinanciera4),Puntajes!$D$15,IF(G19>CapFinanciera4,Puntajes!$D$16,0))))))","v":""}]
[null,null,2,{"$f":"IF(ISERROR(VLOOKUP(C20,'Capacidad Financiera'!$B$12:$X$62720,2,0)),\"\",VLOOKUP(C20,'Capacidad Financiera'!$B$12:$X$3580,2,0))","v":"CONSORCIO VIC DROMOS"},{"$f":"IF(C21=\"\",IF(C20<>\"\",IF(ISERROR(VLOOKUP(D20,'Capacidad Financiera'!$C$12:$H$22,3,0)),\"\",VLOOKUP(D20,'Capacidad Financiera'!$C$12:$H$22,3,0))),\"\")","v":""},{"$f":"IF(C21=\"\",IF(C20<>\"\",IF(ISERROR(VLOOKUP(D20,'Capacidad Financiera'!$C$12:$H$22,5,0)),\"\",VLOOKUP(D20,'Capacidad Financiera'!$C$12:$H$22,5,0))),\"\")","v":""},{"$f":"IF(OR(D20=\"\",E20=\"\",F20=\"\"),\"\",IF(OR(E20=0,F20=0),0,E20/F20))","v":""},{"$f":"IF(C21=\"\",IF(AND(E20=\"\",F20=\"\"),\"\",IF(AND(G20>0,G20<=CapFinanciera1),Puntajes!$D$12,IF(AND(G20>CapFinanciera1,G20<=CapFinanciera2),Puntajes!$D$13,IF(AND(G20>CapFinanciera2,G20<=CapFinanciera3),Puntajes!$D$14,IF(AND(G20>CapFinanciera3,G20<=CapFinanciera4),Puntajes!$D$15,IF(G20>CapFinanciera4,Puntajes!$D$16,0)))))),\"\")","v":""}]
[null,null,{"$f":"+'Capacidad Financiera'!B24","v":2.1},{"$f":"IF(ISERROR(VLOOKUP(C21,'Capacidad Financiera'!$B$12:$X$62720,2,0)),\"\",VLOOKUP(C21,'Capacidad Financiera'!$B$12:$X$3580,2,0))","v":"VIC S.A.S."},{"$f":"IF(OR(C21=\"\",D21=\"\"),\"\",IF(ISERROR(VLOOKUP(D21,'Capacidad Financiera'!$C$13:$X$62720,3,0)),\"\",VLOOKUP(D21,'Capacidad Financiera'!$C$13:$X$62720,3,0)))","v":1893054765},{"$f":"IF(OR(C21=\"\",D21=\"\"),\"\",IF(ISERROR(VLOOKUP(D21,'Capacidad Financiera'!$C$13:$X$62720,5,0)),\"\",VLOOKUP(D21,'Capacidad Financiera'!$C$13:$X$62720,5,0)))","v":934408738},{"$f":"IF(OR(D21=\"\",E21=\"\",F21=\"\"),\"\",IF(OR(E21=0,F21=0),0,E21/F21))","v":2.0259386369308547},{"$f":"IF(OR(D21=\"\",E21=\"\",F21=\"\"),\"\",IF(AND(G21>0,G21<=CapFinanciera1),Puntajes!$D$12,IF(AND(G21>CapFinanciera1,G21<=CapFinanciera2),Puntajes!$D$13,IF(AND(G21>CapFinanciera2,G21<=CapFinanciera3),Puntajes!$D$14,IF(AND(G21>CapFinanciera3,G21<=CapFinanciera4),Puntajes!$D$15,IF(G21>CapFinanciera4,Puntajes!$D$16,0))))))","v":40}]
[null,null,{"$f":"+'Capacidad Financiera'!B25","v":2.2000000000000002},{"$f":"IF(ISERROR(VLOOKUP(C22,'Capacidad Financiera'!$B$12:$X$62720,2,0)),\"\",VLOOKUP(C22,'Capacidad Financiera'!$B$12:$X$3580,2,0))","v":"DROMOS PAVIMENTOS S.A."},{"$f":"IF(OR(C22=\"\",D22=\"\"),\"\",IF(ISERROR(VLOOKUP(D22,'Capacidad Financiera'!$C$13:$X$62720,3,0)),\"\",VLOOKUP(D22,'Capacidad Financiera'!$C$13:$X$62720,3,0)))","v":17417243383},{"$f":"IF(OR(C22=\"\",D22=\"\"),\"\",IF(ISERROR(VLOOKUP(D22,'Capacidad Financiera'!$C$13:$X$62720,5,0)),\"\",VLOOKUP(D22,'Capacidad Financiera'!$C$13:$X$62720,5,0)))","v":11218390310},1.5525617224669375,{"$f":"IF(OR(D22=\"\",E22=\"\",F22=\"\"),\"\",IF(AND(G22>0,G22<=CapFinanciera1),Puntajes!$D$12,IF(AND(G22>CapFinanciera1,G22<=CapFinanciera2),Puntajes!$D$13,IF(AND(G22>CapFinanciera2,G22<=CapFinanciera3),Puntajes!$D$14,IF(AND(G22>CapFinanciera3,G22<=CapFinanciera4),Puntajes!$D$15,IF(G22>CapFinanciera4,Puntajes!$D$16,0))))))","v":40}]
[null,null,{"$f":"+'Capacidad Financiera'!B26","v":""},{"$f":"IF(ISERROR(VLOOKUP(C23,'Capacidad Financiera'!$B$12:$X$62720,2,0)),\"\",VLOOKUP(C23,'Capacidad Financiera'!$B$12:$X$3580,2,0))","v":0},{"$f":"IF(OR(C23=\"\",D23=\"\"),\"\",IF(ISERROR(VLOOKUP(D23,'Capacidad Financiera'!$C$13:$X$62720,3,0)),\"\",VLOOKUP(D23,'Capacidad Financiera'!$C$13:$X$62720,3,0)))","v":""},{"$f":"IF(OR(C23=\"\",D23=\"\"),\"\",IF(ISERROR(VLOOKUP(D23,'Capacidad Financiera'!$C$13:$X$62720,5,0)),\"\",VLOOKUP(D23,'Capacidad Financiera'!$C$13:$X$62720,5,0)))","v":""},"",{"$f":"IF(OR(D23=\"\",E23=\"\",F23=\"\"),\"\",IF(AND(G23>0,G23<=CapFinanciera1),Puntajes!$D$12,IF(AND(G23>CapFinanciera1,G23<=CapFinanciera2),Puntajes!$D$13,IF(AND(G23>CapFinanciera2,G23<=CapFinanciera3),Puntajes!$D$14,IF(AND(G23>CapFinanciera3,G23<=CapFinanciera4),Puntajes!$D$15,IF(G23>CapFinanciera4,Puntajes!$D$16,0))))))","v":""}]
[null,null,{"$f":"+'Capacidad Financiera'!B27","v":""},{"$f":"IF(ISERROR(VLOOKUP(C24,'Capacidad Financiera'!$B$12:$X$62720,2,0)),\"\",VLOOKUP(C24,'Capacidad Financiera'!$B$12:$X$3580,2,0))","v":0},{"$f":"IF(OR(C24=\"\",D24=\"\"),\"\",IF(ISERROR(VLOOKUP(D24,'Capacidad Financiera'!$C$13:$X$62720,3,0)),\"\",VLOOKUP(D24,'Capacidad Financiera'!$C$13:$X$62720,3,0)))","v":""},{"$f":"IF(OR(C24=\"\",D24=\"\"),\"\",IF(ISERROR(VLOOKUP(D24,'Capacidad Financiera'!$C$13:$X$62720,5,0)),\"\",VLOOKUP(D24,'Capacidad Financiera'!$C$13:$X$62720,5,0)))","v":""},"",{"$f":"IF(OR(D24=\"\",E24=\"\",F24=\"\"),\"\",IF(AND(G24>0,G24<=CapFinanciera1),Puntajes!$D$12,IF(AND(G24>CapFinanciera1,G24<=CapFinanciera2),Puntajes!$D$13,IF(AND(G24>CapFinanciera2,G24<=CapFinanciera3),Puntajes!$D$14,IF(AND(G24>CapFinanciera3,G24<=CapFinanciera4),Puntajes!$D$15,IF(G24>CapFinanciera4,Puntajes!$D$16,0))))))","v":""}]
[null,null,{"$f":"+'Capacidad Financiera'!B28","v":""},{"$f":"IF(ISERROR(VLOOKUP(C25,'Capacidad Financiera'!$B$12:$X$62720,2,0)),\"\",VLOOKUP(C25,'Capacidad Financiera'!$B$12:$X$3580,2,0))","v":0},{"$f":"IF(OR(C25=\"\",D25=\"\"),\"\",IF(ISERROR(VLOOKUP(D25,'Capacidad Financiera'!$C$13:$X$62720,3,0)),\"\",VLOOKUP(D25,'Capacidad Financiera'!$C$13:$X$62720,3,0)))","v":""},{"$f":"IF(OR(C25=\"\",D25=\"\"),\"\",IF(ISERROR(VLOOKUP(D25,'Capacidad Financiera'!$C$13:$X$62720,5,0)),\"\",VLOOKUP(D25,'Capacidad Financiera'!$C$13:$X$62720,5,0)))","v":""},"",{"$f":"IF(OR(D25=\"\",E25=\"\",F25=\"\"),\"\",IF(AND(G25>0,G25<=CapFinanciera1),Puntajes!$D$12,IF(AND(G25>CapFinanciera1,G25<=CapFinanciera2),Puntajes!$D$13,IF(AND(G25>CapFinanciera2,G25<=CapFinanciera3),Puntajes!$D$14,IF(AND(G25>CapFinanciera3,G25<=CapFinanciera4),Puntajes!$D$15,IF(G25>CapFinanciera4,Puntajes!$D$16,0))))))","v":""}]
[null,null,{"$f":"+'Capacidad Financiera'!B29","v":""},{"$f":"IF(ISERROR(VLOOKUP(C26,'Capacidad Financiera'!$B$12:$X$62720,2,0)),\"\",VLOOKUP(C26,'Capacidad Financiera'!$B$12:$X$3580,2,0))","v":0},{"$f":"IF(OR(C26=\"\",D26=\"\"),\"\",IF(ISERROR(VLOOKUP(D26,'Capacidad Financiera'!$C$13:$X$62720,3,0)),\"\",VLOOKUP(D26,'Capacidad Financiera'!$C$13:$X$62720,3,0)))","v":""},{"$f":"IF(OR(C26=\"\",D26=\"\"),\"\",IF(ISERROR(VLOOKUP(D26,'Capacidad Financiera'!$C$13:$X$62720,5,0)),\"\",VLOOKUP(D26,'Capacidad Financiera'!$C$13:$X$62720,5,0)))","v":""},"",{"$f":"IF(OR(D26=\"\",E26=\"\",F26=\"\"),\"\",IF(AND(G26>0,G26<=CapFinanciera1),Puntajes!$D$12,IF(AND(G26>CapFinanciera1,G26<=CapFinanciera2),Puntajes!$D$13,IF(AND(G26>CapFinanciera2,G26<=CapFinanciera3),Puntajes!$D$14,IF(AND(G26>CapFinanciera3,G26<=CapFinanciera4),Puntajes!$D$15,IF(G26>CapFinanciera4,Puntajes!$D$16,0))))))","v":""}]
[null,null,{"$f":"+'Capacidad Financiera'!B30","v":""},{"$f":"IF(ISERROR(VLOOKUP(C27,'Capacidad Financiera'!$B$12:$X$62720,2,0)),\"\",VLOOKUP(C27,'Capacidad Financiera'!$B$12:$X$3580,2,0))","v":0},{"$f":"IF(OR(C27=\"\",D27=\"\"),\"\",IF(ISERROR(VLOOKUP(D27,'Capacidad Financiera'!$C$13:$X$62720,3,0)),\"\",VLOOKUP(D27,'Capacidad Financiera'!$C$13:$X$62720,3,0)))","v":""},{"$f":"IF(OR(C27=\"\",D27=\"\"),\"\",IF(ISERROR(VLOOKUP(D27,'Capacidad Financiera'!$C$13:$X$62720,5,0)),\"\",VLOOKUP(D27,'Capacidad Financiera'!$C$13:$X$62720,5,0)))","v":""},"",{"$f":"IF(OR(D27=\"\",E27=\"\",F27=\"\"),\"\",IF(AND(G27>0,G27<=CapFinanciera1),Puntajes!$D$12,IF(AND(G27>CapFinanciera1,G27<=CapFinanciera2),Puntajes!$D$13,IF(AND(G27>CapFinanciera2,G27<=CapFinanciera3),Puntajes!$D$14,IF(AND(G27>CapFinanciera3,G27<=CapFinanciera4),Puntajes!$D$15,IF(G27>CapFinanciera4,Puntajes!$D$16,0))))))","v":""}]
[null,null,{"$f":"+'Capacidad Financiera'!B31","v":""},{"$f":"IF(ISERROR(VLOOKUP(C28,'Capacidad Financiera'!$B$12:$X$62720,2,0)),\"\",VLOOKUP(C28,'Capacidad Financiera'!$B$12:$X$3580,2,0))","v":0},{"$f":"IF(OR(C28=\"\",D28=\"\"),\"\",IF(ISERROR(VLOOKUP(D28,'Capacidad Financiera'!$C$13:$X$62720,3,0)),\"\",VLOOKUP(D28,'Capacidad Financiera'!$C$13:$X$62720,3,0)))","v":""},{"$f":"IF(OR(C28=\"\",D28=\"\"),\"\",IF(ISERROR(VLOOKUP(D28,'Capacidad Financiera'!$C$13:$X$62720,5,0)),\"\",VLOOKUP(D28,'Capacidad Financiera'!$C$13:$X$62720,5,0)))","v":""},"",{"$f":"IF(OR(D28=\"\",E28=\"\",F28=\"\"),\"\",IF(AND(G28>0,G28<=CapFinanciera1),Puntajes!$D$12,IF(AND(G28>CapFinanciera1,G28<=CapFinanciera2),Puntajes!$D$13,IF(AND(G28>CapFinanciera2,G28<=CapFinanciera3),Puntajes!$D$14,IF(AND(G28>CapFinanciera3,G28<=CapFinanciera4),Puntajes!$D$15,IF(G28>CapFinanciera4,Puntajes!$D$16,0))))))","v":""}]
[null,null,{"$f":"+'Capacidad Financiera'!B32","v":""},{"$f":"IF(ISERROR(VLOOKUP(C29,'Capacidad Financiera'!$B$12:$X$62720,2,0)),\"\",VLOOKUP(C29,'Capacidad Financiera'!$B$12:$X$3580,2,0))","v":0},{"$f":"IF(OR(C29=\"\",D29=\"\"),\"\",IF(ISERROR(VLOOKUP(D29,'Capacidad Financiera'!$C$13:$X$62720,3,0)),\"\",VLOOKUP(D29,'Capacidad Financiera'!$C$13:$X$62720,3,0)))","v":""},{"$f":"IF(OR(C29=\"\",D29=\"\"),\"\",IF(ISERROR(VLOOKUP(D29,'Capacidad Financiera'!$C$13:$X$62720,5,0)),\"\",VLOOKUP(D29,'Capacidad Financiera'!$C$13:$X$62720,5,0)))","v":""},"",{"$f":"IF(OR(D29=\"\",E29=\"\",F29=\"\"),\"\",IF(AND(G29>0,G29<=CapFinanciera1),Puntajes!$D$12,IF(AND(G29>CapFinanciera1,G29<=CapFinanciera2),Puntajes!$D$13,IF(AND(G29>CapFinanciera2,G29<=CapFinanciera3),Puntajes!$D$14,IF(AND(G29>CapFinanciera3,G29<=CapFinanciera4),Puntajes!$D$15,IF(G29>CapFinanciera4,Puntajes!$D$16,0))))))","v":""}]
[null,null,{"$f":"+'Capacidad Financiera'!B33","v":""},{"$f":"IF(ISERROR(VLOOKUP(C30,'Capacidad Financiera'!$B$12:$X$62720,2,0)),\"\",VLOOKUP(C30,'Capacidad Financiera'!$B$12:$X$3580,2,0))","v":0},{"$f":"IF(OR(C30=\"\",D30=\"\"),\"\",IF(ISERROR(VLOOKUP(D30,'Capacidad Financiera'!$C$13:$X$62720,3,0)),\"\",VLOOKUP(D30,'Capacidad Financiera'!$C$13:$X$62720,3,0)))","v":""},{"$f":"IF(OR(C30=\"\",D30=\"\"),\"\",IF(ISERROR(VLOOKUP(D30,'Capacidad Financiera'!$C$13:$X$62720,5,0)),\"\",VLOOKUP(D30,'Capacidad Financiera'!$C$13:$X$62720,5,0)))","v":""},"",{"$f":"IF(OR(D30=\"\",E30=\"\",F30=\"\"),\"\",IF(AND(G30>0,G30<=CapFinanciera1),Puntajes!$D$12,IF(AND(G30>CapFinanciera1,G30<=CapFinanciera2),Puntajes!$D$13,IF(AND(G30>CapFinanciera2,G30<=CapFinanciera3),Puntajes!$D$14,IF(AND(G30>CapFinanciera3,G30<=CapFinanciera4),Puntajes!$D$15,IF(G30>CapFinanciera4,Puntajes!$D$16,0))))))","v":""}]
[null,null,3,{"$f":"IF(ISERROR(VLOOKUP(C31,'Capacidad Financiera'!$B$12:$X$62720,2,0)),\"\",VLOOKUP(C31,'Capacidad Financiera'!$B$12:$X$3580,2,0))","v":"EQUIPOS CONSTRUCCIONES Y OBRAS S.A."},{"$f":"IF(C32=\"\",IF(C31<>\"\",IF(ISERROR(VLOOKUP(D31,'Capacidad Financiera'!$C$12:$H$22,3,0)),\"\",VLOOKUP(D31,'Capacidad Financiera'!$C$12:$H$22,3,0))),\"\")","v":""},{"$f":"IF(C32=\"\",IF(C31<>\"\",IF(ISERROR(VLOOKUP(D31,'Capacidad Financiera'!$C$12:$H$22,5,0)),\"\",VLOOKUP(D31,'Capacidad Financiera'!$C$12:$H$22,5,0))),\"\")","v":""},{"$f":"IF(OR(D31=\"\",E31=\"\",F31=\"\"),\"\",IF(OR(E31=0,F31=0),0,E31/F31))","v":""},{"$f":"IF(C32=\"\",IF(AND(E31=\"\",F31=\"\"),\"\",IF(AND(G31>0,G31<=CapFinanciera1),Puntajes!$D$12,IF(AND(G31>CapFinanciera1,G31<=CapFinanciera2),Puntajes!$D$13,IF(AND(G31>CapFinanciera2,G31<=CapFinanciera3),Puntajes!$D$14,IF(AND(G31>CapFinanciera3,G31<=CapFinanciera4),Puntajes!$D$15,IF(G31>CapFinanciera4,Puntajes!$D$16,0)))))),\"\")","v":""}]
[null,null,{"$f":"+'Capacidad Financiera'!B35","v":3.1},{"$f":"IF(ISERROR(VLOOKUP(C32,'Capacidad Financiera'!$B$12:$X$62720,2,0)),\"\",VLOOKUP(C32,'Capacidad Financiera'!$B$12:$X$3580,2,0))","v":"EQUIPOS CONSTRUCCIONES Y OBRAS S.A."},{"$f":"IF(OR(C32=\"\",D32=\"\"),\"\",IF(ISERROR(VLOOKUP(D32,'Capacidad Financiera'!$C$13:$X$62720,3,0)),\"\",VLOOKUP(D32,'Capacidad Financiera'!$C$13:$X$62720,3,0)))","v":8410906369.0600004},{"$f":"IF(OR(C32=\"\",D32=\"\"),\"\",IF(ISERROR(VLOOKUP(D32,'Capacidad Financiera'!$C$13:$X$62720,5,0)),\"\",VLOOKUP(D32,'Capacidad Financiera'!$C$13:$X$62720,5,0)))","v":2808408841.8800001},{"$f":"IF(OR(D32=\"\",E32=\"\",F32=\"\"),\"\",IF(OR(E32=0,F32=0),0,E32/F32))","v":2.9949009715514165},{"$f":"IF(OR(D32=\"\",E32=\"\",F32=\"\"),\"\",IF(AND(G32>0,G32<=CapFinanciera1),Puntajes!$D$12,IF(AND(G32>CapFinanciera1,G32<=CapFinanciera2),Puntajes!$D$13,IF(AND(G32>CapFinanciera2,G32<=CapFinanciera3),Puntajes!$D$14,IF(AND(G32>CapFinanciera3,G32<=CapFinanciera4),Puntajes!$D$15,IF(G32>CapFinanciera4,Puntajes!$D$16,0))))))","v":40}]
[null,null,{"$f":"+'Capacidad Financiera'!B36","v":""},{"$f":"IF(ISERROR(VLOOKUP(C33,'Capacidad Financiera'!$B$12:$X$62720,2,0)),\"\",VLOOKUP(C33,'Capacidad Financiera'!$B$12:$X$3580,2,0))","v":0},{"$f":"IF(OR(C33=\"\",D33=\"\"),\"\",IF(ISERROR(VLOOKUP(D33,'Capacidad Financiera'!$C$13:$X$62720,3,0)),\"\",VLOOKUP(D33,'Capacidad Financiera'!$C$13:$X$62720,3,0)))","v":""},{"$f":"IF(OR(C33=\"\",D33=\"\"),\"\",IF(ISERROR(VLOOKUP(D33,'Capacidad Financiera'!$C$13:$X$62720,5,0)),\"\",VLOOKUP(D33,'Capacidad Financiera'!$C$13:$X$62720,5,0)))","v":""},"",{"$f":"IF(OR(D33=\"\",E33=\"\",F33=\"\"),\"\",IF(AND(G33>0,G33<=CapFinanciera1),Puntajes!$D$12,IF(AND(G33>CapFinanciera1,G33<=CapFinanciera2),Puntajes!$D$13,IF(AND(G33>CapFinanciera2,G33<=CapFinanciera3),Puntajes!$D$14,IF(AND(G33>CapFinanciera3,G33<=CapFinanciera4),Puntajes!$D$15,IF(G33>CapFinanciera4,Puntajes!$D$16,0))))))","v":""}]
[null,null,{"$f":"+'Capacidad Financiera'!B37","v":""},{"$f":"IF(ISERROR(VLOOKUP(C34,'Capacidad Financiera'!$B$12:$X$62720,2,0)),\"\",VLOOKUP(C34,'Capacidad Financiera'!$B$12:$X$3580,2,0))","v":0},{"$f":"IF(OR(C34=\"\",D34=\"\"),\"\",IF(ISERROR(VLOOKUP(D34,'Capacidad Financiera'!$C$13:$X$62720,3,0)),\"\",VLOOKUP(D34,'Capacidad Financiera'!$C$13:$X$62720,3,0)))","v":""},{"$f":"IF(OR(C34=\"\",D34=\"\"),\"\",IF(ISERROR(VLOOKUP(D34,'Capacidad Financiera'!$C$13:$X$62720,5,0)),\"\",VLOOKUP(D34,'Capacidad Financiera'!$C$13:$X$62720,5,0)))","v":""},"",{"$f":"IF(OR(D34=\"\",E34=\"\",F34=\"\"),\"\",IF(AND(G34>0,G34<=CapFinanciera1),Puntajes!$D$12,IF(AND(G34>CapFinanciera1,G34<=CapFinanciera2),Puntajes!$D$13,IF(AND(G34>CapFinanciera2,G34<=CapFinanciera3),Puntajes!$D$14,IF(AND(G34>CapFinanciera3,G34<=CapFinanciera4),Puntajes!$D$15,IF(G34>CapFinanciera4,Puntajes!$D$16,0))))))","v":""}]
[null,null,{"$f":"+'Capacidad Financiera'!B38","v":""},{"$f":"IF(ISERROR(VLOOKUP(C35,'Capacidad Financiera'!$B$12:$X$62720,2,0)),\"\",VLOOKUP(C35,'Capacidad Financiera'!$B$12:$X$3580,2,0))","v":0},{"$f":"IF(OR(C35=\"\",D35=\"\"),\"\",IF(ISERROR(VLOOKUP(D35,'Capacidad Financiera'!$C$13:$X$62720,3,0)),\"\",VLOOKUP(D35,'Capacidad Financiera'!$C$13:$X$62720,3,0)))","v":""},{"$f":"IF(OR(C35=\"\",D35=\"\"),\"\",IF(ISERROR(VLOOKUP(D35,'Capacidad Financiera'!$C$13:$X$62720,5,0)),\"\",VLOOKUP(D35,'Capacidad Financiera'!$C$13:$X$62720,5,0)))","v":""},"",{"$f":"IF(OR(D35=\"\",E35=\"\",F35=\"\"),\"\",IF(AND(G35>0,G35<=CapFinanciera1),Puntajes!$D$12,IF(AND(G35>CapFinanciera1,G35<=CapFinanciera2),Puntajes!$D$13,IF(AND(G35>CapFinanciera2,G35<=CapFinanciera3),Puntajes!$D$14,IF(AND(G35>CapFinanciera3,G35<=CapFinanciera4),Puntajes!$D$15,IF(G35>CapFinanciera4,Puntajes!$D$16,0))))))","v":""}]
[null,null,{"$f":"+'Capacidad Financiera'!B39","v":""},{"$f":"IF(ISERROR(VLOOKUP(C36,'Capacidad Financiera'!$B$12:$X$62720,2,0)),\"\",VLOOKUP(C36,'Capacidad Financiera'!$B$12:$X$3580,2,0))","v":0},{"$f":"IF(OR(C36=\"\",D36=\"\"),\"\",IF(ISERROR(VLOOKUP(D36,'Capacidad Financiera'!$C$13:$X$62720,3,0)),\"\",VLOOKUP(D36,'Capacidad Financiera'!$C$13:$X$62720,3,0)))","v":""},{"$f":"IF(OR(C36=\"\",D36=\"\"),\"\",IF(ISERROR(VLOOKUP(D36,'Capacidad Financiera'!$C$13:$X$62720,5,0)),\"\",VLOOKUP(D36,'Capacidad Financiera'!$C$13:$X$62720,5,0)))","v":""},"",{"$f":"IF(OR(D36=\"\",E36=\"\",F36=\"\"),\"\",IF(AND(G36>0,G36<=CapFinanciera1),Puntajes!$D$12,IF(AND(G36>CapFinanciera1,G36<=CapFinanciera2),Puntajes!$D$13,IF(AND(G36>CapFinanciera2,G36<=CapFinanciera3),Puntajes!$D$14,IF(AND(G36>CapFinanciera3,G36<=CapFinanciera4),Puntajes!$D$15,IF(G36>CapFinanciera4,Puntajes!$D$16,0))))))","v":""}]
[null,null,{"$f":"+'Capacidad Financiera'!B40","v":""},{"$f":"IF(ISERROR(VLOOKUP(C37,'Capacidad Financiera'!$B$12:$X$62720,2,0)),\"\",VLOOKUP(C37,'Capacidad Financiera'!$B$12:$X$3580,2,0))","v":0},{"$f":"IF(OR(C37=\"\",D37=\"\"),\"\",IF(ISERROR(VLOOKUP(D37,'Capacidad Financiera'!$C$13:$X$62720,3,0)),\"\",VLOOKUP(D37,'Capacidad Financiera'!$C$13:$X$62720,3,0)))","v":""},{"$f":"IF(OR(C37=\"\",D37=\"\"),\"\",IF(ISERROR(VLOOKUP(D37,'Capacidad Financiera'!$C$13:$X$62720,5,0)),\"\",VLOOKUP(D37,'Capacidad Financiera'!$C$13:$X$62720,5,0)))","v":""},"",{"$f":"IF(OR(D37=\"\",E37=\"\",F37=\"\"),\"\",IF(AND(G37>0,G37<=CapFinanciera1),Puntajes!$D$12,IF(AND(G37>CapFinanciera1,G37<=CapFinanciera2),Puntajes!$D$13,IF(AND(G37>CapFinanciera2,G37<=CapFinanciera3),Puntajes!$D$14,IF(AND(G37>CapFinanciera3,G37<=CapFinanciera4),Puntajes!$D$15,IF(G37>CapFinanciera4,Puntajes!$D$16,0))))))","v":""}]
[null,null,{"$f":"+'Capacidad Financiera'!B41","v":""},{"$f":"IF(ISERROR(VLOOKUP(C38,'Capacidad Financiera'!$B$12:$X$62720,2,0)),\"\",VLOOKUP(C38,'Capacidad Financiera'!$B$12:$X$3580,2,0))","v":0},{"$f":"IF(OR(C38=\"\",D38=\"\"),\"\",IF(ISERROR(VLOOKUP(D38,'Capacidad Financiera'!$C$13:$X$62720,3,0)),\"\",VLOOKUP(D38,'Capacidad Financiera'!$C$13:$X$62720,3,0)))","v":""},{"$f":"IF(OR(C38=\"\",D38=\"\"),\"\",IF(ISERROR(VLOOKUP(D38,'Capacidad Financiera'!$C$13:$X$62720,5,0)),\"\",VLOOKUP(D38,'Capacidad Financiera'!$C$13:$X$62720,5,0)))","v":""},"",{"$f":"IF(OR(D38=\"\",E38=\"\",F38=\"\"),\"\",IF(AND(G38>0,G38<=CapFinanciera1),Puntajes!$D$12,IF(AND(G38>CapFinanciera1,G38<=CapFinanciera2),Puntajes!$D$13,IF(AND(G38>CapFinanciera2,G38<=CapFinanciera3),Puntajes!$D$14,IF(AND(G38>CapFinanciera3,G38<=CapFinanciera4),Puntajes!$D$15,IF(G38>CapFinanciera4,Puntajes!$D$16,0))))))","v":""}]
[null,null,{"$f":"+'Capacidad Financiera'!B42","v":""},{"$f":"IF(ISERROR(VLOOKUP(C39,'Capacidad Financiera'!$B$12:$X$62720,2,0)),\"\",VLOOKUP(C39,'Capacidad Financiera'!$B$12:$X$3580,2,0))","v":0},{"$f":"IF(OR(C39=\"\",D39=\"\"),\"\",IF(ISERROR(VLOOKUP(D39,'Capacidad Financiera'!$C$13:$X$62720,3,0)),\"\",VLOOKUP(D39,'Capacidad Financiera'!$C$13:$X$62720,3,0)))","v":""},{"$f":"IF(OR(C39=\"\",D39=\"\"),\"\",IF(ISERROR(VLOOKUP(D39,'Capacidad Financiera'!$C$13:$X$62720,5,0)),\"\",VLOOKUP(D39,'Capacidad Financiera'!$C$13:$X$62720,5,0)))","v":""},"",{"$f":"IF(OR(D39=\"\",E39=\"\",F39=\"\"),\"\",IF(AND(G39>0,G39<=CapFinanciera1),Puntajes!$D$12,IF(AND(G39>CapFinanciera1,G39<=CapFinanciera2),Puntajes!$D$13,IF(AND(G39>CapFinanciera2,G39<=CapFinanciera3),Puntajes!$D$14,IF(AND(G39>CapFinanciera3,G39<=CapFinanciera4),Puntajes!$D$15,IF(G39>CapFinanciera4,Puntajes!$D$16,0))))))","v":""}]
[null,null,{"$f":"+'Capacidad Financiera'!B43","v":""},{"$f":"IF(ISERROR(VLOOKUP(C40,'Capacidad Financiera'!$B$12:$X$62720,2,0)),\"\",VLOOKUP(C40,'Capacidad Financiera'!$B$12:$X$3580,2,0))","v":0},{"$f":"IF(OR(C40=\"\",D40=\"\"),\"\",IF(ISERROR(VLOOKUP(D40,'Capacidad Financiera'!$C$13:$X$62720,3,0)),\"\",VLOOKUP(D40,'Capacidad Financiera'!$C$13:$X$62720,3,0)))","v":""},{"$f":"IF(OR(C40=\"\",D40=\"\"),\"\",IF(ISERROR(VLOOKUP(D40,'Capacidad Financiera'!$C$13:$X$62720,5,0)),\"\",VLOOKUP(D40,'Capacidad Financiera'!$C$13:$X$62720,5,0)))","v":""},"",{"$f":"IF(OR(D40=\"\",E40=\"\",F40=\"\"),\"\",IF(AND(G40>0,G40<=CapFinanciera1),Puntajes!$D$12,IF(AND(G40>CapFinanciera1,G40<=CapFinanciera2),Puntajes!$D$13,IF(AND(G40>CapFinanciera2,G40<=CapFinanciera3),Puntajes!$D$14,IF(AND(G40>CapFinanciera3,G40<=CapFinanciera4),Puntajes!$D$15,IF(G40>CapFinanciera4,Puntajes!$D$16,0))))))","v":""}]
[null,null,{"$f":"+'Capacidad Financiera'!B44","v":""},{"$f":"IF(ISERROR(VLOOKUP(C41,'Capacidad Financiera'!$B$12:$X$62720,2,0)),\"\",VLOOKUP(C41,'Capacidad Financiera'!$B$12:$X$3580,2,0))","v":0},{"$f":"IF(OR(C41=\"\",D41=\"\"),\"\",IF(ISERROR(VLOOKUP(D41,'Capacidad Financiera'!$C$13:$X$62720,3,0)),\"\",VLOOKUP(D41,'Capacidad Financiera'!$C$13:$X$62720,3,0)))","v":""},{"$f":"IF(OR(C41=\"\",D41=\"\"),\"\",IF(ISERROR(VLOOKUP(D41,'Capacidad Financiera'!$C$13:$X$62720,5,0)),\"\",VLOOKUP(D41,'Capacidad Financiera'!$C$13:$X$62720,5,0)))","v":""},"",{"$f":"IF(OR(D41=\"\",E41=\"\",F41=\"\"),\"\",IF(AND(G41>0,G41<=CapFinanciera1),Puntajes!$D$12,IF(AND(G41>CapFinanciera1,G41<=CapFinanciera2),Puntajes!$D$13,IF(AND(G41>CapFinanciera2,G41<=CapFinanciera3),Puntajes!$D$14,IF(AND(G41>CapFinanciera3,G41<=CapFinanciera4),Puntajes!$D$15,IF(G41>CapFinanciera4,Puntajes!$D$16,0))))))","v":""}]
[null,null,4,{"$f":"IF(ISERROR(VLOOKUP(C42,'Capacidad Financiera'!$B$12:$X$62720,2,0)),\"\",VLOOKUP(C42,'Capacidad Financiera'!$B$12:$X$3580,2,0))","v":"CONSORCIO IPV"},{"$f":"IF(C43=\"\",IF(C42<>\"\",IF(ISERROR(VLOOKUP(D42,'Capacidad Financiera'!$C$12:$H$22,3,0)),\"\",VLOOKUP(D42,'Capacidad Financiera'!$C$12:$H$22,3,0))),\"\")","v":""},{"$f":"IF(C43=\"\",IF(C42<>\"\",IF(ISERROR(VLOOKUP(D42,'Capacidad Financiera'!$C$12:$H$22,5,0)),\"\",VLOOKUP(D42,'Capacidad Financiera'!$C$12:$H$22,5,0))),\"\")","v":""},{"$f":"IF(OR(D42=\"\",E42=\"\",F42=\"\"),\"\",IF(OR(E42=0,F42=0),0,E42/F42))","v":""},{"$f":"IF(C43=\"\",IF(AND(E42=\"\",F42=\"\"),\"\",IF(AND(G42>0,G42<=CapFinanciera1),Puntajes!$D$12,IF(AND(G42>CapFinanciera1,G42<=CapFinanciera2),Puntajes!$D$13,IF(AND(G42>CapFinanciera2,G42<=CapFinanciera3),Puntajes!$D$14,IF(AND(G42>CapFinanciera3,G42<=CapFinanciera4),Puntajes!$D$15,IF(G42>CapFinanciera4,Puntajes!$D$16,0)))))),\"\")","v":""}]
[null,null,{"$f":"+'Capacidad Financiera'!B46","v":4.0999999999999996},{"$f":"IF(ISERROR(VLOOKUP(C43,'Capacidad Financiera'!$B$12:$X$62720,2,0)),\"\",VLOOKUP(C43,'Capacidad Financiera'!$B$12:$X$3580,2,0))","v":"INGENIERIA DE PUENTES Y VIAS S.A.S."},{"$f":"IF(OR(C43=\"\",D43=\"\"),\"\",IF(ISERROR(VLOOKUP(D43,'Capacidad Financiera'!$C$13:$X$62720,3,0)),\"\",VLOOKUP(D43,'Capacidad Financiera'!$C$13:$X$62720,3,0)))","v":2356947366},{"$f":"IF(OR(C43=\"\",D43=\"\"),\"\",IF(ISERROR(VLOOKUP(D43,'Capacidad Financiera'!$C$13:$X$62720,5,0)),\"\",VLOOKUP(D43,'Capacidad Financiera'!$C$13:$X$62720,5,0)))","v":75460790},{"$f":"IF(OR(D43=\"\",E43=\"\",F43=\"\"),\"\",IF(OR(E43=0,F43=0),0,E43/F43))","v":31.234066937279611},{"$f":"IF(OR(D43=\"\",E43=\"\",F43=\"\"),\"\",IF(AND(G43>0,G43<=CapFinanciera1),Puntajes!$D$12,IF(AND(G43>CapFinanciera1,G43<=CapFinanciera2),Puntajes!$D$13,IF(AND(G43>CapFinanciera2,G43<=CapFinanciera3),Puntajes!$D$14,IF(AND(G43>CapFinanciera3,G43<=CapFinanciera4),Puntajes!$D$15,IF(G43>CapFinanciera4,Puntajes!$D$16,0))))))","v":40}]
[null,null,{"$f":"+'Capacidad Financiera'!B47","v":4.1999999999999993},{"$f":"IF(ISERROR(VLOOKUP(C44,'Capacidad Financiera'!$B$12:$X$62720,2,0)),\"\",VLOOKUP(C44,'Capacidad Financiera'!$B$12:$X$3580,2,0))","v":"RENAN CARDOZO CARDOZO"},{"$f":"IF(OR(C44=\"\",D44=\"\"),\"\",IF(ISERROR(VLOOKUP(D44,'Capacidad Financiera'!$C$13:$X$62720,3,0)),\"\",VLOOKUP(D44,'Capacidad Financiera'!$C$13:$X$62720,3,0)))","v":1404885338},{"$f":"IF(OR(C44=\"\",D44=\"\"),\"\",IF(ISERROR(VLOOKUP(D44,'Capacidad Financiera'!$C$13:$X$62720,5,0)),\"\",VLOOKUP(D44,'Capacidad Financiera'!$C$13:$X$62720,5,0)))","v":25000000},56.195413520000002,{"$f":"IF(OR(D44=\"\",E44=\"\",F44=\"\"),\"\",IF(AND(G44>0,G44<=CapFinanciera1),Puntajes!$D$12,IF(AND(G44>CapFinanciera1,G44<=CapFinanciera2),Puntajes!$D$13,IF(AND(G44>CapFinanciera2,G44<=CapFinanciera3),Puntajes!$D$14,IF(AND(G44>CapFinanciera3,G44<=CapFinanciera4),Puntajes!$D$15,IF(G44>CapFinanciera4,Puntajes!$D$16,0))))))","v":40}]
[null,null,{"$f":"+'Capacidad Financiera'!B48","v":4.2999999999999989},{"$f":"IF(ISERROR(VLOOKUP(C45,'Capacidad Financiera'!$B$12:$X$62720,2,0)),\"\",VLOOKUP(C45,'Capacidad Financiera'!$B$12:$X$3580,2,0))","v":"OMAR CARDOZO CARDOZO"},{"$f":"IF(OR(C45=\"\",D45=\"\"),\"\",IF(ISERROR(VLOOKUP(D45,'Capacidad Financiera'!$C$13:$X$62720,3,0)),\"\",VLOOKUP(D45,'Capacidad Financiera'!$C$13:$X$62720,3,0)))","v":1012017040},{"$f":"IF(OR(C45=\"\",D45=\"\"),\"\",IF(ISERROR(VLOOKUP(D45,'Capacidad Financiera'!$C$13:$X$62720,5,0)),\"\",VLOOKUP(D45,'Capacidad Financiera'!$C$13:$X$62720,5,0)))","v":7610751},132.97203390309315,{"$f":"IF(OR(D45=\"\",E45=\"\",F45=\"\"),\"\",IF(AND(G45>0,G45<=CapFinanciera1),Puntajes!$D$12,IF(AND(G45>CapFinanciera1,G45<=CapFinanciera2),Puntajes!$D$13,IF(AND(G45>CapFinanciera2,G45<=CapFinanciera3),Puntajes!$D$14,IF(AND(G45>CapFinanciera3,G45<=CapFinanciera4),Puntajes!$D$15,IF(G45>CapFinanciera4,Puntajes!$D$16,0))))))","v":40}]
[null,null,{"$f":"+'Capacidad Financiera'!B49","v":4.3999999999999986},{"$f":"IF(ISERROR(VLOOKUP(C46,'Capacidad Financiera'!$B$12:$X$62720,2,0)),\"\",VLOOKUP(C46,'Capacidad Financiera'!$B$12:$X$3580,2,0))","v":"LUIS MORENO RUBIO"},{"$f":"IF(OR(C46=\"\",D46=\"\"),\"\",IF(ISERROR(VLOOKUP(D46,'Capacidad Financiera'!$C$13:$X$62720,3,0)),\"\",VLOOKUP(D46,'Capacidad Financiera'!$C$13:$X$62720,3,0)))","v":353556808},{"$f":"IF(OR(C46=\"\",D46=\"\"),\"\",IF(ISERROR(VLOOKUP(D46,'Capacidad Financiera'!$C$13:$X$62720,5,0)),\"\",VLOOKUP(D46,'Capacidad Financiera'!$C$13:$X$62720,5,0)))","v":605892},583.53107154410361,{"$f":"IF(OR(D46=\"\",E46=\"\",F46=\"\"),\"\",IF(AND(G46>0,G46<=CapFinanciera1),Puntajes!$D$12,IF(AND(G46>CapFinanciera1,G46<=CapFinanciera2),Puntajes!$D$13,IF(AND(G46>CapFinanciera2,G46<=CapFinanciera3),Puntajes!$D$14,IF(AND(G46>CapFinanciera3,G46<=CapFinanciera4),Puntajes!$D$15,IF(G46>CapFinanciera4,Puntajes!$D$16,0))))))","v":40}]
[null,null,{"$f":"+'Capacidad Financiera'!B50","v":""},{"$f":"IF(ISERROR(VLOOKUP(C47,'Capacidad Financiera'!$B$12:$X$62720,2,0)),\"\",VLOOKUP(C47,'Capacidad Financiera'!$B$12:$X$3580,2,0))","v":0},{"$f":"IF(OR(C47=\"\",D47=\"\"),\"\",IF(ISERROR(VLOOKUP(D47,'Capacidad Financiera'!$C$13:$X$62720,3,0)),\"\",VLOOKUP(D47,'Capacidad Financiera'!$C$13:$X$62720,3,0)))","v":""},{"$f":"IF(OR(C47=\"\",D47=\"\"),\"\",IF(ISERROR(VLOOKUP(D47,'Capacidad Financiera'!$C$13:$X$62720,5,0)),\"\",VLOOKUP(D47,'Capacidad Financiera'!$C$13:$X$62720,5,0)))","v":""},"",{"$f":"IF(OR(D47=\"\",E47=\"\",F47=\"\"),\"\",IF(AND(G47>0,G47<=CapFinanciera1),Puntajes!$D$12,IF(AND(G47>CapFinanciera1,G47<=CapFinanciera2),Puntajes!$D$13,IF(AND(G47>CapFinanciera2,G47<=CapFinanciera3),Puntajes!$D$14,IF(AND(G47>CapFinanciera3,G47<=CapFinanciera4),Puntajes!$D$15,IF(G47>CapFinanciera4,Puntajes!$D$16,0))))))","v":""}]
[null,null,{"$f":"+'Capacidad Financiera'!B51","v":""},{"$f":"IF(ISERROR(VLOOKUP(C48,'Capacidad Financiera'!$B$12:$X$62720,2,0)),\"\",VLOOKUP(C48,'Capacidad Financiera'!$B$12:$X$3580,2,0))","v":0},{"$f":"IF(OR(C48=\"\",D48=\"\"),\"\",IF(ISERROR(VLOOKUP(D48,'Capacidad Financiera'!$C$13:$X$62720,3,0)),\"\",VLOOKUP(D48,'Capacidad Financiera'!$C$13:$X$62720,3,0)))","v":""},{"$f":"IF(OR(C48=\"\",D48=\"\"),\"\",IF(ISERROR(VLOOKUP(D48,'Capacidad Financiera'!$C$13:$X$62720,5,0)),\"\",VLOOKUP(D48,'Capacidad Financiera'!$C$13:$X$62720,5,0)))","v":""},"",{"$f":"IF(OR(D48=\"\",E48=\"\",F48=\"\"),\"\",IF(AND(G48>0,G48<=CapFinanciera1),Puntajes!$D$12,IF(AND(G48>CapFinanciera1,G48<=CapFinanciera2),Puntajes!$D$13,IF(AND(G48>CapFinanciera2,G48<=CapFinanciera3),Puntajes!$D$14,IF(AND(G48>CapFinanciera3,G48<=CapFinanciera4),Puntajes!$D$15,IF(G48>CapFinanciera4,Puntajes!$D$16,0))))))","v":""}]
[null,null,{"$f":"+'Capacidad Financiera'!B52","v":""},{"$f":"IF(ISERROR(VLOOKUP(C49,'Capacidad Financiera'!$B$12:$X$62720,2,0)),\"\",VLOOKUP(C49,'Capacidad Financiera'!$B$12:$X$3580,2,0))","v":0},{"$f":"IF(OR(C49=\"\",D49=\"\"),\"\",IF(ISERROR(VLOOKUP(D49,'Capacidad Financiera'!$C$13:$X$62720,3,0)),\"\",VLOOKUP(D49,'Capacidad Financiera'!$C$13:$X$62720,3,0)))","v":""},{"$f":"IF(OR(C49=\"\",D49=\"\"),\"\",IF(ISERROR(VLOOKUP(D49,'Capacidad Financiera'!$C$13:$X$62720,5,0)),\"\",VLOOKUP(D49,'Capacidad Financiera'!$C$13:$X$62720,5,0)))","v":""},"",{"$f":"IF(OR(D49=\"\",E49=\"\",F49=\"\"),\"\",IF(AND(G49>0,G49<=CapFinanciera1),Puntajes!$D$12,IF(AND(G49>CapFinanciera1,G49<=CapFinanciera2),Puntajes!$D$13,IF(AND(G49>CapFinanciera2,G49<=CapFinanciera3),Puntajes!$D$14,IF(AND(G49>CapFinanciera3,G49<=CapFinanciera4),Puntajes!$D$15,IF(G49>CapFinanciera4,Puntajes!$D$16,0))))))","v":""}]
[null,null,{"$f":"+'Capacidad Financiera'!B53","v":""},{"$f":"IF(ISERROR(VLOOKUP(C50,'Capacidad Financiera'!$B$12:$X$62720,2,0)),\"\",VLOOKUP(C50,'Capacidad Financiera'!$B$12:$X$3580,2,0))","v":0},{"$f":"IF(OR(C50=\"\",D50=\"\"),\"\",IF(ISERROR(VLOOKUP(D50,'Capacidad Financiera'!$C$13:$X$62720,3,0)),\"\",VLOOKUP(D50,'Capacidad Financiera'!$C$13:$X$62720,3,0)))","v":""},{"$f":"IF(OR(C50=\"\",D50=\"\"),\"\",IF(ISERROR(VLOOKUP(D50,'Capacidad Financiera'!$C$13:$X$62720,5,0)),\"\",VLOOKUP(D50,'Capacidad Financiera'!$C$13:$X$62720,5,0)))","v":""},"",{"$f":"IF(OR(D50=\"\",E50=\"\",F50=\"\"),\"\",IF(AND(G50>0,G50<=CapFinanciera1),Puntajes!$D$12,IF(AND(G50>CapFinanciera1,G50<=CapFinanciera2),Puntajes!$D$13,IF(AND(G50>CapFinanciera2,G50<=CapFinanciera3),Puntajes!$D$14,IF(AND(G50>CapFinanciera3,G50<=CapFinanciera4),Puntajes!$D$15,IF(G50>CapFinanciera4,Puntajes!$D$16,0))))))","v":""}]
[null,null,{"$f":"+'Capacidad Financiera'!B54","v":""},{"$f":"IF(ISERROR(VLOOKUP(C51,'Capacidad Financiera'!$B$12:$X$62720,2,0)),\"\",VLOOKUP(C51,'Capacidad Financiera'!$B$12:$X$3580,2,0))","v":0},{"$f":"IF(OR(C51=\"\",D51=\"\"),\"\",IF(ISERROR(VLOOKUP(D51,'Capacidad Financiera'!$C$13:$X$62720,3,0)),\"\",VLOOKUP(D51,'Capacidad Financiera'!$C$13:$X$62720,3,0)))","v":""},{"$f":"IF(OR(C51=\"\",D51=\"\"),\"\",IF(ISERROR(VLOOKUP(D51,'Capacidad Financiera'!$C$13:$X$62720,5,0)),\"\",VLOOKUP(D51,'Capacidad Financiera'!$C$13:$X$62720,5,0)))","v":""},"",{"$f":"IF(OR(D51=\"\",E51=\"\",F51=\"\"),\"\",IF(AND(G51>0,G51<=CapFinanciera1),Puntajes!$D$12,IF(AND(G51>CapFinanciera1,G51<=CapFinanciera2),Puntajes!$D$13,IF(AND(G51>CapFinanciera2,G51<=CapFinanciera3),Puntajes!$D$14,IF(AND(G51>CapFinanciera3,G51<=CapFinanciera4),Puntajes!$D$15,IF(G51>CapFinanciera4,Puntajes!$D$16,0))))))","v":""}]
[null,null,{"$f":"+'Capacidad Financiera'!B55","v":""},{"$f":"IF(ISERROR(VLOOKUP(C52,'Capacidad Financiera'!$B$12:$X$62720,2,0)),\"\",VLOOKUP(C52,'Capacidad Financiera'!$B$12:$X$3580,2,0))","v":0},{"$f":"IF(OR(C52=\"\",D52=\"\"),\"\",IF(ISERROR(VLOOKUP(D52,'Capacidad Financiera'!$C$13:$X$62720,3,0)),\"\",VLOOKUP(D52,'Capacidad Financiera'!$C$13:$X$62720,3,0)))","v":""},{"$f":"IF(OR(C52=\"\",D52=\"\"),\"\",IF(ISERROR(VLOOKUP(D52,'Capacidad Financiera'!$C$13:$X$62720,5,0)),\"\",VLOOKUP(D52,'Capacidad Financiera'!$C$13:$X$62720,5,0)))","v":""},"",{"$f":"IF(OR(D52=\"\",E52=\"\",F52=\"\"),\"\",IF(AND(G52>0,G52<=CapFinanciera1),Puntajes!$D$12,IF(AND(G52>CapFinanciera1,G52<=CapFinanciera2),Puntajes!$D$13,IF(AND(G52>CapFinanciera2,G52<=CapFinanciera3),Puntajes!$D$14,IF(AND(G52>CapFinanciera3,G52<=CapFinanciera4),Puntajes!$D$15,IF(G52>CapFinanciera4,Puntajes!$D$16,0))))))","v":""}]
[null,null,5,{"$f":"IF(ISERROR(VLOOKUP(C53,'Capacidad Financiera'!$B$12:$X$62720,2,0)),\"\",VLOOKUP(C53,'Capacidad Financiera'!$B$12:$X$3580,2,0))","v":"CONSORCIO VIAS COLOMBIA"},{"$f":"IF(C54=\"\",IF(C53<>\"\",IF(ISERROR(VLOOKUP(D53,'Capacidad Financiera'!$C$12:$H$22,3,0)),\"\",VLOOKUP(D53,'Capacidad Financiera'!$C$12:$H$22,3,0))),\"\")","v":""},{"$f":"IF(C54=\"\",IF(C53<>\"\",IF(ISERROR(VLOOKUP(D53,'Capacidad Financiera'!$C$12:$H$22,5,0)),\"\",VLOOKUP(D53,'Capacidad Financiera'!$C$12:$H$22,5,0))),\"\")","v":""},{"$f":"IF(OR(D53=\"\",E53=\"\",F53=\"\"),\"\",IF(OR(E53=0,F53=0),0,E53/F53))","v":""},{"$f":"IF(C54=\"\",IF(AND(E53=\"\",F53=\"\"),\"\",IF(AND(G53>0,G53<=CapFinanciera1),Puntajes!$D$12,IF(AND(G53>CapFinanciera1,G53<=CapFinanciera2),Puntajes!$D$13,IF(AND(G53>CapFinanciera2,G53<=CapFinanciera3),Puntajes!$D$14,IF(AND(G53>CapFinanciera3,G53<=CapFinanciera4),Puntajes!$D$15,IF(G53>CapFinanciera4,Puntajes!$D$16,0)))))),\"\")","v":""}]
[null,null,{"$f":"+'Capacidad Financiera'!B57","v":5.0999999999999996},{"$f":"IF(ISERROR(VLOOKUP(C54,'Capacidad Financiera'!$B$12:$X$62720,2,0)),\"\",VLOOKUP(C54,'Capacidad Financiera'!$B$12:$X$3580,2,0))","v":"JV INGENIERIA Y CONSTRUCCIONES S.A.S."},{"$f":"IF(OR(C54=\"\",D54=\"\"),\"\",IF(ISERROR(VLOOKUP(D54,'Capacidad Financiera'!$C$13:$X$62720,3,0)),\"\",VLOOKUP(D54,'Capacidad Financiera'!$C$13:$X$62720,3,0)))","v":3957725352},{"$f":"IF(OR(C54=\"\",D54=\"\"),\"\",IF(ISERROR(VLOOKUP(D54,'Capacidad Financiera'!$C$13:$X$62720,5,0)),\"\",VLOOKUP(D54,'Capacidad Financiera'!$C$13:$X$62720,5,0)))","v":659861429},{"$f":"IF(OR(D54=\"\",E54=\"\",F54=\"\"),\"\",IF(OR(E54=0,F54=0),0,E54/F54))","v":5.997812840792669},{"$f":"IF(OR(D54=\"\",E54=\"\",F54=\"\"),\"\",IF(AND(G54>0,G54<=CapFinanciera1),Puntajes!$D$12,IF(AND(G54>CapFinanciera1,G54<=CapFinanciera2),Puntajes!$D$13,IF(AND(G54>CapFinanciera2,G54<=CapFinanciera3),Puntajes!$D$14,IF(AND(G54>CapFinanciera3,G54<=CapFinanciera4),Puntajes!$D$15,IF(G54>CapFinanciera4,Puntajes!$D$16,0))))))","v":40}]
[null,null,{"$f":"+'Capacidad Financiera'!B58","v":5.1999999999999993},{"$f":"IF(ISERROR(VLOOKUP(C55,'Capacidad Financiera'!$B$12:$X$62720,2,0)),\"\",VLOOKUP(C55,'Capacidad Financiera'!$B$12:$X$3580,2,0))","v":"EXCAVACIONES JOBEPA SL SUCURSAL COLOMBIA"},{"$f":"IF(OR(C55=\"\",D55=\"\"),\"\",IF(ISERROR(VLOOKUP(D55,'Capacidad Financiera'!$C$13:$X$62720,3,0)),\"\",VLOOKUP(D55,'Capacidad Financiera'!$C$13:$X$62720,3,0)))","v":43457818842.730003},{"$f":"IF(OR(C55=\"\",D55=\"\"),\"\",IF(ISERROR(VLOOKUP(D55,'Capacidad Financiera'!$C$13:$X$62720,5,0)),\"\",VLOOKUP(D55,'Capacidad Financiera'!$C$13:$X$62720,5,0)))","v":16688970523.41},2.6039843968668248,{"$f":"IF(OR(D55=\"\",E55=\"\",F55=\"\"),\"\",IF(AND(G55>0,G55<=CapFinanciera1),Puntajes!$D$12,IF(AND(G55>CapFinanciera1,G55<=CapFinanciera2),Puntajes!$D$13,IF(AND(G55>CapFinanciera2,G55<=CapFinanciera3),Puntajes!$D$14,IF(AND(G55>CapFinanciera3,G55<=CapFinanciera4),Puntajes!$D$15,IF(G55>CapFinanciera4,Puntajes!$D$16,0))))))","v":40}]
[null,null,{"$f":"+'Capacidad Financiera'!B59","v":5.2999999999999989},{"$f":"IF(ISERROR(VLOOKUP(C56,'Capacidad Financiera'!$B$12:$X$62720,2,0)),\"\",VLOOKUP(C56,'Capacidad Financiera'!$B$12:$X$3580,2,0))","v":"VIALOBRA SL SUCURSAL COLOMBIA"},{"$f":"IF(OR(C56=\"\",D56=\"\"),\"\",IF(ISERROR(VLOOKUP(D56,'Capacidad Financiera'!$C$13:$X$62720,3,0)),\"\",VLOOKUP(D56,'Capacidad Financiera'!$C$13:$X$62720,3,0)))","v":12002186224.790001},{"$f":"IF(OR(C56=\"\",D56=\"\"),\"\",IF(ISERROR(VLOOKUP(D56,'Capacidad Financiera'!$C$13:$X$62720,5,0)),\"\",VLOOKUP(D56,'Capacidad Financiera'!$C$13:$X$62720,5,0)))","v":7255201628.2700005},1.6542870673674051,{"$f":"IF(OR(D56=\"\",E56=\"\",F56=\"\"),\"\",IF(AND(G56>0,G56<=CapFinanciera1),Puntajes!$D$12,IF(AND(G56>CapFinanciera1,G56<=CapFinanciera2),Puntajes!$D$13,IF(AND(G56>CapFinanciera2,G56<=CapFinanciera3),Puntajes!$D$14,IF(AND(G56>CapFinanciera3,G56<=CapFinanciera4),Puntajes!$D$15,IF(G56>CapFinanciera4,Puntajes!$D$16,0))))))","v":40}]
[null,null,{"$f":"+'Capacidad Financiera'!B60","v":""},{"$f":"IF(ISERROR(VLOOKUP(C57,'Capacidad Financiera'!$B$12:$X$62720,2,0)),\"\",VLOOKUP(C57,'Capacidad Financiera'!$B$12:$X$3580,2,0))","v":0},{"$f":"IF(OR(C57=\"\",D57=\"\"),\"\",IF(ISERROR(VLOOKUP(D57,'Capacidad Financiera'!$C$13:$X$62720,3,0)),\"\",VLOOKUP(D57,'Capacidad Financiera'!$C$13:$X$62720,3,0)))","v":""},{"$f":"IF(OR(C57=\"\",D57=\"\"),\"\",IF(ISERROR(VLOOKUP(D57,'Capacidad Financiera'!$C$13:$X$62720,5,0)),\"\",VLOOKUP(D57,'Capacidad Financiera'!$C$13:$X$62720,5,0)))","v":""},"",{"$f":"IF(OR(D57=\"\",E57=\"\",F57=\"\"),\"\",IF(AND(G57>0,G57<=CapFinanciera1),Puntajes!$D$12,IF(AND(G57>CapFinanciera1,G57<=CapFinanciera2),Puntajes!$D$13,IF(AND(G57>CapFinanciera2,G57<=CapFinanciera3),Puntajes!$D$14,IF(AND(G57>CapFinanciera3,G57<=CapFinanciera4),Puntajes!$D$15,IF(G57>CapFinanciera4,Puntajes!$D$16,0))))))","v":""}]
[null,null,{"$f":"+'Capacidad Financiera'!B61","v":""},{"$f":"IF(ISERROR(VLOOKUP(C58,'Capacidad Financiera'!$B$12:$X$62720,2,0)),\"\",VLOOKUP(C58,'Capacidad Financiera'!$B$12:$X$3580,2,0))","v":0},{"$f":"IF(OR(C58=\"\",D58=\"\"),\"\",IF(ISERROR(VLOOKUP(D58,'Capacidad Financiera'!$C$13:$X$62720,3,0)),\"\",VLOOKUP(D58,'Capacidad Financiera'!$C$13:$X$62720,3,0)))","v":""},{"$f":"IF(OR(C58=\"\",D58=\"\"),\"\",IF(ISERROR(VLOOKUP(D58,'Capacidad Financiera'!$C$13:$X$62720,5,0)),\"\",VLOOKUP(D58,'Capacidad Financiera'!$C$13:$X$62720,5,0)))","v":""},"",{"$f":"IF(OR(D58=\"\",E58=\"\",F58=\"\"),\"\",IF(AND(G58>0,G58<=CapFinanciera1),Puntajes!$D$12,IF(AND(G58>CapFinanciera1,G58<=CapFinanciera2),Puntajes!$D$13,IF(AND(G58>CapFinanciera2,G58<=CapFinanciera3),Puntajes!$D$14,IF(AND(G58>CapFinanciera3,G58<=CapFinanciera4),Puntajes!$D$15,IF(G58>CapFinanciera4,Puntajes!$D$16,0))))))","v":""}]
[null,null,{"$f":"+'Capacidad Financiera'!B62","v":""},{"$f":"IF(ISERROR(VLOOKUP(C59,'Capacidad Financiera'!$B$12:$X$62720,2,0)),\"\",VLOOKUP(C59,'Capacidad Financiera'!$B$12:$X$3580,2,0))","v":0},{"$f":"IF(OR(C59=\"\",D59=\"\"),\"\",IF(ISERROR(VLOOKUP(D59,'Capacidad Financiera'!$C$13:$X$62720,3,0)),\"\",VLOOKUP(D59,'Capacidad Financiera'!$C$13:$X$62720,3,0)))","v":""},{"$f":"IF(OR(C59=\"\",D59=\"\"),\"\",IF(ISERROR(VLOOKUP(D59,'Capacidad Financiera'!$C$13:$X$62720,5,0)),\"\",VLOOKUP(D59,'Capacidad Financiera'!$C$13:$X$62720,5,0)))","v":""},"",{"$f":"IF(OR(D59=\"\",E59=\"\",F59=\"\"),\"\",IF(AND(G59>0,G59<=CapFinanciera1),Puntajes!$D$12,IF(AND(G59>CapFinanciera1,G59<=CapFinanciera2),Puntajes!$D$13,IF(AND(G59>CapFinanciera2,G59<=CapFinanciera3),Puntajes!$D$14,IF(AND(G59>CapFinanciera3,G59<=CapFinanciera4),Puntajes!$D$15,IF(G59>CapFinanciera4,Puntajes!$D$16,0))))))","v":""}]
[null,null,{"$f":"+'Capacidad Financiera'!B63","v":""},{"$f":"IF(ISERROR(VLOOKUP(C60,'Capacidad Financiera'!$B$12:$X$62720,2,0)),\"\",VLOOKUP(C60,'Capacidad Financiera'!$B$12:$X$3580,2,0))","v":0},{"$f":"IF(OR(C60=\"\",D60=\"\"),\"\",IF(ISERROR(VLOOKUP(D60,'Capacidad Financiera'!$C$13:$X$62720,3,0)),\"\",VLOOKUP(D60,'Capacidad Financiera'!$C$13:$X$62720,3,0)))","v":""},{"$f":"IF(OR(C60=\"\",D60=\"\"),\"\",IF(ISERROR(VLOOKUP(D60,'Capacidad Financiera'!$C$13:$X$62720,5,0)),\"\",VLOOKUP(D60,'Capacidad Financiera'!$C$13:$X$62720,5,0)))","v":""},"",{"$f":"IF(OR(D60=\"\",E60=\"\",F60=\"\"),\"\",IF(AND(G60>0,G60<=CapFinanciera1),Puntajes!$D$12,IF(AND(G60>CapFinanciera1,G60<=CapFinanciera2),Puntajes!$D$13,IF(AND(G60>CapFinanciera2,G60<=CapFinanciera3),Puntajes!$D$14,IF(AND(G60>CapFinanciera3,G60<=CapFinanciera4),Puntajes!$D$15,IF(G60>CapFinanciera4,Puntajes!$D$16,0))))))","v":""}]
[null,null,{"$f":"+'Capacidad Financiera'!B64","v":""},{"$f":"IF(ISERROR(VLOOKUP(C61,'Capacidad Financiera'!$B$12:$X$62720,2,0)),\"\",VLOOKUP(C61,'Capacidad Financiera'!$B$12:$X$3580,2,0))","v":0},{"$f":"IF(OR(C61=\"\",D61=\"\"),\"\",IF(ISERROR(VLOOKUP(D61,'Capacidad Financiera'!$C$13:$X$62720,3,0)),\"\",VLOOKUP(D61,'Capacidad Financiera'!$C$13:$X$62720,3,0)))","v":""},{"$f":"IF(OR(C61=\"\",D61=\"\"),\"\",IF(ISERROR(VLOOKUP(D61,'Capacidad Financiera'!$C$13:$X$62720,5,0)),\"\",VLOOKUP(D61,'Capacidad Financiera'!$C$13:$X$62720,5,0)))","v":""},"",{"$f":"IF(OR(D61=\"\",E61=\"\",F61=\"\"),\"\",IF(AND(G61>0,G61<=CapFinanciera1),Puntajes!$D$12,IF(AND(G61>CapFinanciera1,G61<=CapFinanciera2),Puntajes!$D$13,IF(AND(G61>CapFinanciera2,G61<=CapFinanciera3),Puntajes!$D$14,IF(AND(G61>CapFinanciera3,G61<=CapFinanciera4),Puntajes!$D$15,IF(G61>CapFinanciera4,Puntajes!$D$16,0))))))","v":""}]
[null,null,{"$f":"+'Capacidad Financiera'!B65","v":""},{"$f":"IF(ISERROR(VLOOKUP(C62,'Capacidad Financiera'!$B$12:$X$62720,2,0)),\"\",VLOOKUP(C62,'Capacidad Financiera'!$B$12:$X$3580,2,0))","v":0},{"$f":"IF(OR(C62=\"\",D62=\"\"),\"\",IF(ISERROR(VLOOKUP(D62,'Capacidad Financiera'!$C$13:$X$62720,3,0)),\"\",VLOOKUP(D62,'Capacidad Financiera'!$C$13:$X$62720,3,0)))","v":""},{"$f":"IF(OR(C62=\"\",D62=\"\"),\"\",IF(ISERROR(VLOOKUP(D62,'Capacidad Financiera'!$C$13:$X$62720,5,0)),\"\",VLOOKUP(D62,'Capacidad Financiera'!$C$13:$X$62720,5,0)))","v":""},"",{"$f":"IF(OR(D62=\"\",E62=\"\",F62=\"\"),\"\",IF(AND(G62>0,G62<=CapFinanciera1),Puntajes!$D$12,IF(AND(G62>CapFinanciera1,G62<=CapFinanciera2),Puntajes!$D$13,IF(AND(G62>CapFinanciera2,G62<=CapFinanciera3),Puntajes!$D$14,IF(AND(G62>CapFinanciera3,G62<=CapFinanciera4),Puntajes!$D$15,IF(G62>CapFinanciera4,Puntajes!$D$16,0))))))","v":""}]
[null,null,{"$f":"+'Capacidad Financiera'!B66","v":""},{"$f":"IF(ISERROR(VLOOKUP(C63,'Capacidad Financiera'!$B$12:$X$62720,2,0)),\"\",VLOOKUP(C63,'Capacidad Financiera'!$B$12:$X$3580,2,0))","v":0},{"$f":"IF(OR(C63=\"\",D63=\"\"),\"\",IF(ISERROR(VLOOKUP(D63,'Capacidad Financiera'!$C$13:$X$62720,3,0)),\"\",VLOOKUP(D63,'Capacidad Financiera'!$C$13:$X$62720,3,0)))","v":""},{"$f":"IF(OR(C63=\"\",D63=\"\"),\"\",IF(ISERROR(VLOOKUP(D63,'Capacidad Financiera'!$C$13:$X$62720,5,0)),\"\",VLOOKUP(D63,'Capacidad Financiera'!$C$13:$X$62720,5,0)))","v":""},"",{"$f":"IF(OR(D63=\"\",E63=\"\",F63=\"\"),\"\",IF(AND(G63>0,G63<=CapFinanciera1),Puntajes!$D$12,IF(AND(G63>CapFinanciera1,G63<=CapFinanciera2),Puntajes!$D$13,IF(AND(G63>CapFinanciera2,G63<=CapFinanciera3),Puntajes!$D$14,IF(AND(G63>CapFinanciera3,G63<=CapFinanciera4),Puntajes!$D$15,IF(G63>CapFinanciera4,Puntajes!$D$16,0))))))","v":""}]
[null,null,6,{"$f":"IF(ISERROR(VLOOKUP(C64,'Capacidad Financiera'!$B$12:$X$62720,2,0)),\"\",VLOOKUP(C64,'Capacidad Financiera'!$B$12:$X$3580,2,0))","v":"CONSORCIO SALITRE BRICEÑO"},{"$f":"IF(C65=\"\",IF(C64<>\"\",IF(ISERROR(VLOOKUP(D64,'Capacidad Financiera'!$C$12:$H$22,3,0)),\"\",VLOOKUP(D64,'Capacidad Financiera'!$C$12:$H$22,3,0))),\"\")","v":""},{"$f":"IF(C65=\"\",IF(C64<>\"\",IF(ISERROR(VLOOKUP(D64,'Capacidad Financiera'!$C$12:$H$22,5,0)),\"\",VLOOKUP(D64,'Capacidad Financiera'!$C$12:$H$22,5,0))),\"\")","v":""},{"$f":"IF(OR(D64=\"\",E64=\"\",F64=\"\"),\"\",IF(OR(E64=0,F64=0),0,E64/F64))","v":""},{"$f":"IF(C65=\"\",IF(AND(E64=\"\",F64=\"\"),\"\",IF(AND(G64>0,G64<=CapFinanciera1),Puntajes!$D$12,IF(AND(G64>CapFinanciera1,G64<=CapFinanciera2),Puntajes!$D$13,IF(AND(G64>CapFinanciera2,G64<=CapFinanciera3),Puntajes!$D$14,IF(AND(G64>CapFinanciera3,G64<=CapFinanciera4),Puntajes!$D$15,IF(G64>CapFinanciera4,Puntajes!$D$16,0)))))),\"\")","v":""}]
[null,null,{"$f":"+'Capacidad Financiera'!B68","v":6.1},{"$f":"IF(ISERROR(VLOOKUP(C65,'Capacidad Financiera'!$B$12:$X$62720,2,0)),\"\",VLOOKUP(C65,'Capacidad Financiera'!$B$12:$X$3580,2,0))","v":"GEOCING S.A.S."},{"$f":"IF(OR(C65=\"\",D65=\"\"),\"\",IF(ISERROR(VLOOKUP(D65,'Capacidad Financiera'!$C$13:$X$62720,3,0)),\"\",VLOOKUP(D65,'Capacidad Financiera'!$C$13:$X$62720,3,0)))","v":3391878042},{"$f":"IF(OR(C65=\"\",D65=\"\"),\"\",IF(ISERROR(VLOOKUP(D65,'Capacidad Financiera'!$C$13:$X$62720,5,0)),\"\",VLOOKUP(D65,'Capacidad Financiera'!$C$13:$X$62720,5,0)))","v":1976694597},{"$f":"IF(OR(D65=\"\",E65=\"\",F65=\"\"),\"\",IF(OR(E65=0,F65=0),0,E65/F65))","v":1.7159342910876585},{"$f":"IF(OR(D65=\"\",E65=\"\",F65=\"\"),\"\",IF(AND(G65>0,G65<=CapFinanciera1),Puntajes!$D$12,IF(AND(G65>CapFinanciera1,G65<=CapFinanciera2),Puntajes!$D$13,IF(AND(G65>CapFinanciera2,G65<=CapFinanciera3),Puntajes!$D$14,IF(AND(G65>CapFinanciera3,G65<=CapFinanciera4),Puntajes!$D$15,IF(G65>CapFinanciera4,Puntajes!$D$16,0))))))","v":40}]
[null,null,{"$f":"+'Capacidad Financiera'!B69","v":6.1999999999999993},{"$f":"IF(ISERROR(VLOOKUP(C66,'Capacidad Financiera'!$B$12:$X$62720,2,0)),\"\",VLOOKUP(C66,'Capacidad Financiera'!$B$12:$X$3580,2,0))","v":"URBAMED INFRAESTRUCTURAS SLU"},{"$f":"IF(OR(C66=\"\",D66=\"\"),\"\",IF(ISERROR(VLOOKUP(D66,'Capacidad Financiera'!$C$13:$X$62720,3,0)),\"\",VLOOKUP(D66,'Capacidad Financiera'!$C$13:$X$62720,3,0)))","v":9865092848},{"$f":"IF(OR(C66=\"\",D66=\"\"),\"\",IF(ISERROR(VLOOKUP(D66,'Capacidad Financiera'!$C$13:$X$62720,5,0)),\"\",VLOOKUP(D66,'Capacidad Financiera'!$C$13:$X$62720,5,0)))","v":8750249606},1.1274070217649057,{"$f":"IF(OR(D66=\"\",E66=\"\",F66=\"\"),\"\",IF(AND(G66>0,G66<=CapFinanciera1),Puntajes!$D$12,IF(AND(G66>CapFinanciera1,G66<=CapFinanciera2),Puntajes!$D$13,IF(AND(G66>CapFinanciera2,G66<=CapFinanciera3),Puntajes!$D$14,IF(AND(G66>CapFinanciera3,G66<=CapFinanciera4),Puntajes!$D$15,IF(G66>CapFinanciera4,Puntajes!$D$16,0))))))","v":35}]
[null,null,{"$f":"+'Capacidad Financiera'!B70","v":""},{"$f":"IF(ISERROR(VLOOKUP(C67,'Capacidad Financiera'!$B$12:$X$62720,2,0)),\"\",VLOOKUP(C67,'Capacidad Financiera'!$B$12:$X$3580,2,0))","v":0},{"$f":"IF(OR(C67=\"\",D67=\"\"),\"\",IF(ISERROR(VLOOKUP(D67,'Capacidad Financiera'!$C$13:$X$62720,3,0)),\"\",VLOOKUP(D67,'Capacidad Financiera'!$C$13:$X$62720,3,0)))","v":""},{"$f":"IF(OR(C67=\"\",D67=\"\"),\"\",IF(ISERROR(VLOOKUP(D67,'Capacidad Financiera'!$C$13:$X$62720,5,0)),\"\",VLOOKUP(D67,'Capacidad Financiera'!$C$13:$X$62720,5,0)))","v":""},"",{"$f":"IF(OR(D67=\"\",E67=\"\",F67=\"\"),\"\",IF(AND(G67>0,G67<=CapFinanciera1),Puntajes!$D$12,IF(AND(G67>CapFinanciera1,G67<=CapFinanciera2),Puntajes!$D$13,IF(AND(G67>CapFinanciera2,G67<=CapFinanciera3),Puntajes!$D$14,IF(AND(G67>CapFinanciera3,G67<=CapFinanciera4),Puntajes!$D$15,IF(G67>CapFinanciera4,Puntajes!$D$16,0))))))","v":""}]
[null,null,{"$f":"+'Capacidad Financiera'!B71","v":""},{"$f":"IF(ISERROR(VLOOKUP(C68,'Capacidad Financiera'!$B$12:$X$62720,2,0)),\"\",VLOOKUP(C68,'Capacidad Financiera'!$B$12:$X$3580,2,0))","v":0},{"$f":"IF(OR(C68=\"\",D68=\"\"),\"\",IF(ISERROR(VLOOKUP(D68,'Capacidad Financiera'!$C$13:$X$62720,3,0)),\"\",VLOOKUP(D68,'Capacidad Financiera'!$C$13:$X$62720,3,0)))","v":""},{"$f":"IF(OR(C68=\"\",D68=\"\"),\"\",IF(ISERROR(VLOOKUP(D68,'Capacidad Financiera'!$C$13:$X$62720,5,0)),\"\",VLOOKUP(D68,'Capacidad Financiera'!$C$13:$X$62720,5,0)))","v":""},"",{"$f":"IF(OR(D68=\"\",E68=\"\",F68=\"\"),\"\",IF(AND(G68>0,G68<=CapFinanciera1),Puntajes!$D$12,IF(AND(G68>CapFinanciera1,G68<=CapFinanciera2),Puntajes!$D$13,IF(AND(G68>CapFinanciera2,G68<=CapFinanciera3),Puntajes!$D$14,IF(AND(G68>CapFinanciera3,G68<=CapFinanciera4),Puntajes!$D$15,IF(G68>CapFinanciera4,Puntajes!$D$16,0))))))","v":""}]
[null,null,{"$f":"+'Capacidad Financiera'!B72","v":""},{"$f":"IF(ISERROR(VLOOKUP(C69,'Capacidad Financiera'!$B$12:$X$62720,2,0)),\"\",VLOOKUP(C69,'Capacidad Financiera'!$B$12:$X$3580,2,0))","v":0},{"$f":"IF(OR(C69=\"\",D69=\"\"),\"\",IF(ISERROR(VLOOKUP(D69,'Capacidad Financiera'!$C$13:$X$62720,3,0)),\"\",VLOOKUP(D69,'Capacidad Financiera'!$C$13:$X$62720,3,0)))","v":""},{"$f":"IF(OR(C69=\"\",D69=\"\"),\"\",IF(ISERROR(VLOOKUP(D69,'Capacidad Financiera'!$C$13:$X$62720,5,0)),\"\",VLOOKUP(D69,'Capacidad Financiera'!$C$13:$X$62720,5,0)))","v":""},"",{"$f":"IF(OR(D69=\"\",E69=\"\",F69=\"\"),\"\",IF(AND(G69>0,G69<=CapFinanciera1),Puntajes!$D$12,IF(AND(G69>CapFinanciera1,G69<=CapFinanciera2),Puntajes!$D$13,IF(AND(G69>CapFinanciera2,G69<=CapFinanciera3),Puntajes!$D$14,IF(AND(G69>CapFinanciera3,G69<=CapFinanciera4),Puntajes!$D$15,IF(G69>CapFinanciera4,Puntajes!$D$16,0))))))","v":""}]
[null,null,{"$f":"+'Capacidad Financiera'!B73","v":""},{"$f":"IF(ISERROR(VLOOKUP(C70,'Capacidad Financiera'!$B$12:$X$62720,2,0)),\"\",VLOOKUP(C70,'Capacidad Financiera'!$B$12:$X$3580,2,0))","v":0},{"$f":"IF(OR(C70=\"\",D70=\"\"),\"\",IF(ISERROR(VLOOKUP(D70,'Capacidad Financiera'!$C$13:$X$62720,3,0)),\"\",VLOOKUP(D70,'Capacidad Financiera'!$C$13:$X$62720,3,0)))","v":""},{"$f":"IF(OR(C70=\"\",D70=\"\"),\"\",IF(ISERROR(VLOOKUP(D70,'Capacidad Financiera'!$C$13:$X$62720,5,0)),\"\",VLOOKUP(D70,'Capacidad Financiera'!$C$13:$X$62720,5,0)))","v":""},"",{"$f":"IF(OR(D70=\"\",E70=\"\",F70=\"\"),\"\",IF(AND(G70>0,G70<=CapFinanciera1),Puntajes!$D$12,IF(AND(G70>CapFinanciera1,G70<=CapFinanciera2),Puntajes!$D$13,IF(AND(G70>CapFinanciera2,G70<=CapFinanciera3),Puntajes!$D$14,IF(AND(G70>CapFinanciera3,G70<=CapFinanciera4),Puntajes!$D$15,IF(G70>CapFinanciera4,Puntajes!$D$16,0))))))","v":""}]
[null,null,{"$f":"+'Capacidad Financiera'!B74","v":""},{"$f":"IF(ISERROR(VLOOKUP(C71,'Capacidad Financiera'!$B$12:$X$62720,2,0)),\"\",VLOOKUP(C71,'Capacidad Financiera'!$B$12:$X$3580,2,0))","v":0},{"$f":"IF(OR(C71=\"\",D71=\"\"),\"\",IF(ISERROR(VLOOKUP(D71,'Capacidad Financiera'!$C$13:$X$62720,3,0)),\"\",VLOOKUP(D71,'Capacidad Financiera'!$C$13:$X$62720,3,0)))","v":""},{"$f":"IF(OR(C71=\"\",D71=\"\"),\"\",IF(ISERROR(VLOOKUP(D71,'Capacidad Financiera'!$C$13:$X$62720,5,0)),\"\",VLOOKUP(D71,'Capacidad Financiera'!$C$13:$X$62720,5,0)))","v":""},"",{"$f":"IF(OR(D71=\"\",E71=\"\",F71=\"\"),\"\",IF(AND(G71>0,G71<=CapFinanciera1),Puntajes!$D$12,IF(AND(G71>CapFinanciera1,G71<=CapFinanciera2),Puntajes!$D$13,IF(AND(G71>CapFinanciera2,G71<=CapFinanciera3),Puntajes!$D$14,IF(AND(G71>CapFinanciera3,G71<=CapFinanciera4),Puntajes!$D$15,IF(G71>CapFinanciera4,Puntajes!$D$16,0))))))","v":""}]
[null,null,{"$f":"+'Capacidad Financiera'!B75","v":""},{"$f":"IF(ISERROR(VLOOKUP(C72,'Capacidad Financiera'!$B$12:$X$62720,2,0)),\"\",VLOOKUP(C72,'Capacidad Financiera'!$B$12:$X$3580,2,0))","v":0},{"$f":"IF(OR(C72=\"\",D72=\"\"),\"\",IF(ISERROR(VLOOKUP(D72,'Capacidad Financiera'!$C$13:$X$62720,3,0)),\"\",VLOOKUP(D72,'Capacidad Financiera'!$C$13:$X$62720,3,0)))","v":""},{"$f":"IF(OR(C72=\"\",D72=\"\"),\"\",IF(ISERROR(VLOOKUP(D72,'Capacidad Financiera'!$C$13:$X$62720,5,0)),\"\",VLOOKUP(D72,'Capacidad Financiera'!$C$13:$X$62720,5,0)))","v":""},"",{"$f":"IF(OR(D72=\"\",E72=\"\",F72=\"\"),\"\",IF(AND(G72>0,G72<=CapFinanciera1),Puntajes!$D$12,IF(AND(G72>CapFinanciera1,G72<=CapFinanciera2),Puntajes!$D$13,IF(AND(G72>CapFinanciera2,G72<=CapFinanciera3),Puntajes!$D$14,IF(AND(G72>CapFinanciera3,G72<=CapFinanciera4),Puntajes!$D$15,IF(G72>CapFinanciera4,Puntajes!$D$16,0))))))","v":""}]
[null,null,{"$f":"+'Capacidad Financiera'!B76","v":""},{"$f":"IF(ISERROR(VLOOKUP(C73,'Capacidad Financiera'!$B$12:$X$62720,2,0)),\"\",VLOOKUP(C73,'Capacidad Financiera'!$B$12:$X$3580,2,0))","v":0},{"$f":"IF(OR(C73=\"\",D73=\"\"),\"\",IF(ISERROR(VLOOKUP(D73,'Capacidad Financiera'!$C$13:$X$62720,3,0)),\"\",VLOOKUP(D73,'Capacidad Financiera'!$C$13:$X$62720,3,0)))","v":""},{"$f":"IF(OR(C73=\"\",D73=\"\"),\"\",IF(ISERROR(VLOOKUP(D73,'Capacidad Financiera'!$C$13:$X$62720,5,0)),\"\",VLOOKUP(D73,'Capacidad Financiera'!$C$13:$X$62720,5,0)))","v":""},"",{"$f":"IF(OR(D73=\"\",E73=\"\",F73=\"\"),\"\",IF(AND(G73>0,G73<=CapFinanciera1),Puntajes!$D$12,IF(AND(G73>CapFinanciera1,G73<=CapFinanciera2),Puntajes!$D$13,IF(AND(G73>CapFinanciera2,G73<=CapFinanciera3),Puntajes!$D$14,IF(AND(G73>CapFinanciera3,G73<=CapFinanciera4),Puntajes!$D$15,IF(G73>CapFinanciera4,Puntajes!$D$16,0))))))","v":""}]
[null,null,{"$f":"+'Capacidad Financiera'!B77","v":""},{"$f":"IF(ISERROR(VLOOKUP(C74,'Capacidad Financiera'!$B$12:$X$62720,2,0)),\"\",VLOOKUP(C74,'Capacidad Financiera'!$B$12:$X$3580,2,0))","v":0},{"$f":"IF(OR(C74=\"\",D74=\"\"),\"\",IF(ISERROR(VLOOKUP(D74,'Capacidad Financiera'!$C$13:$X$62720,3,0)),\"\",VLOOKUP(D74,'Capacidad Financiera'!$C$13:$X$62720,3,0)))","v":""},{"$f":"IF(OR(C74=\"\",D74=\"\"),\"\",IF(ISERROR(VLOOKUP(D74,'Capacidad Financiera'!$C$13:$X$62720,5,0)),\"\",VLOOKUP(D74,'Capacidad Financiera'!$C$13:$X$62720,5,0)))","v":""},"",{"$f":"IF(OR(D74=\"\",E74=\"\",F74=\"\"),\"\",IF(AND(G74>0,G74<=CapFinanciera1),Puntajes!$D$12,IF(AND(G74>CapFinanciera1,G74<=CapFinanciera2),Puntajes!$D$13,IF(AND(G74>CapFinanciera2,G74<=CapFinanciera3),Puntajes!$D$14,IF(AND(G74>CapFinanciera3,G74<=CapFinanciera4),Puntajes!$D$15,IF(G74>CapFinanciera4,Puntajes!$D$16,0))))))","v":""}]
[null,null,7,{"$f":"IF(ISERROR(VLOOKUP(C75,'Capacidad Financiera'!$B$12:$X$62720,2,0)),\"\",VLOOKUP(C75,'Capacidad Financiera'!$B$12:$X$3580,2,0))","v":"CONSORCIO AC - AINCOL"},{"$f":"IF(C76=\"\",IF(C75<>\"\",IF(ISERROR(VLOOKUP(D75,'Capacidad Financiera'!$C$12:$H$22,3,0)),\"\",VLOOKUP(D75,'Capacidad Financiera'!$C$12:$H$22,3,0))),\"\")","v":""},{"$f":"IF(C76=\"\",IF(C75<>\"\",IF(ISERROR(VLOOKUP(D75,'Capacidad Financiera'!$C$12:$H$22,5,0)),\"\",VLOOKUP(D75,'Capacidad Financiera'!$C$12:$H$22,5,0))),\"\")","v":""},{"$f":"IF(OR(D75=\"\",E75=\"\",F75=\"\"),\"\",IF(OR(E75=0,F75=0),0,E75/F75))","v":""},{"$f":"IF(C76=\"\",IF(AND(E75=\"\",F75=\"\"),\"\",IF(AND(G75>0,G75<=CapFinanciera1),Puntajes!$D$12,IF(AND(G75>CapFinanciera1,G75<=CapFinanciera2),Puntajes!$D$13,IF(AND(G75>CapFinanciera2,G75<=CapFinanciera3),Puntajes!$D$14,IF(AND(G75>CapFinanciera3,G75<=CapFinanciera4),Puntajes!$D$15,IF(G75>CapFinanciera4,Puntajes!$D$16,0)))))),\"\")","v":""}]
[null,null,{"$f":"+'Capacidad Financiera'!B79","v":7.1},{"$f":"IF(ISERROR(VLOOKUP(C76,'Capacidad Financiera'!$B$12:$X$62720,2,0)),\"\",VLOOKUP(C76,'Capacidad Financiera'!$B$12:$X$3580,2,0))","v":"AINCOL S.A.S."},{"$f":"IF(OR(C76=\"\",D76=\"\"),\"\",IF(ISERROR(VLOOKUP(D76,'Capacidad Financiera'!$C$13:$X$62720,3,0)),\"\",VLOOKUP(D76,'Capacidad Financiera'!$C$13:$X$62720,3,0)))","v":10748663079},{"$f":"IF(OR(C76=\"\",D76=\"\"),\"\",IF(ISERROR(VLOOKUP(D76,'Capacidad Financiera'!$C$13:$X$62720,5,0)),\"\",VLOOKUP(D76,'Capacidad Financiera'!$C$13:$X$62720,5,0)))","v":235415000},{"$f":"IF(OR(D76=\"\",E76=\"\",F76=\"\"),\"\",IF(OR(E76=0,F76=0),0,E76/F76))","v":45.658361102733473},{"$f":"IF(OR(D76=\"\",E76=\"\",F76=\"\"),\"\",IF(AND(G76>0,G76<=CapFinanciera1),Puntajes!$D$12,IF(AND(G76>CapFinanciera1,G76<=CapFinanciera2),Puntajes!$D$13,IF(AND(G76>CapFinanciera2,G76<=CapFinanciera3),Puntajes!$D$14,IF(AND(G76>CapFinanciera3,G76<=CapFinanciera4),Puntajes!$D$15,IF(G76>CapFinanciera4,Puntajes!$D$16,0))))))","v":40}]
[null,null,{"$f":"+'Capacidad Financiera'!B80","v":7.1999999999999993},{"$f":"IF(ISERROR(VLOOKUP(C77,'Capacidad Financiera'!$B$12:$X$62720,2,0)),\"\",VLOOKUP(C77,'Capacidad Financiera'!$B$12:$X$3580,2,0))","v":"AC INGENIERIA Y CONSTRUCCIONES S.A.S."},{"$f":"IF(OR(C77=\"\",D77=\"\"),\"\",IF(ISERROR(VLOOKUP(D77,'Capacidad Financiera'!$C$13:$X$62720,3,0)),\"\",VLOOKUP(D77,'Capacidad Financiera'!$C$13:$X$62720,3,0)))","v":2895043210},{"$f":"IF(OR(C77=\"\",D77=\"\"),\"\",IF(ISERROR(VLOOKUP(D77,'Capacidad Financiera'!$C$13:$X$62720,5,0)),\"\",VLOOKUP(D77,'Capacidad Financiera'!$C$13:$X$62720,5,0)))","v":52961786},54.662869752919583,{"$f":"IF(OR(D77=\"\",E77=\"\",F77=\"\"),\"\",IF(AND(G77>0,G77<=CapFinanciera1),Puntajes!$D$12,IF(AND(G77>CapFinanciera1,G77<=CapFinanciera2),Puntajes!$D$13,IF(AND(G77>CapFinanciera2,G77<=CapFinanciera3),Puntajes!$D$14,IF(AND(G77>CapFinanciera3,G77<=CapFinanciera4),Puntajes!$D$15,IF(G77>CapFinanciera4,Puntajes!$D$16,0))))))","v":40}]
[null,null,{"$f":"+'Capacidad Financiera'!B81","v":""},{"$f":"IF(ISERROR(VLOOKUP(C78,'Capacidad Financiera'!$B$12:$X$62720,2,0)),\"\",VLOOKUP(C78,'Capacidad Financiera'!$B$12:$X$3580,2,0))","v":0},{"$f":"IF(OR(C78=\"\",D78=\"\"),\"\",IF(ISERROR(VLOOKUP(D78,'Capacidad Financiera'!$C$13:$X$62720,3,0)),\"\",VLOOKUP(D78,'Capacidad Financiera'!$C$13:$X$62720,3,0)))","v":""},{"$f":"IF(OR(C78=\"\",D78=\"\"),\"\",IF(ISERROR(VLOOKUP(D78,'Capacidad Financiera'!$C$13:$X$62720,5,0)),\"\",VLOOKUP(D78,'Capacidad Financiera'!$C$13:$X$62720,5,0)))","v":""},"",{"$f":"IF(OR(D78=\"\",E78=\"\",F78=\"\"),\"\",IF(AND(G78>0,G78<=CapFinanciera1),Puntajes!$D$12,IF(AND(G78>CapFinanciera1,G78<=CapFinanciera2),Puntajes!$D$13,IF(AND(G78>CapFinanciera2,G78<=CapFinanciera3),Puntajes!$D$14,IF(AND(G78>CapFinanciera3,G78<=CapFinanciera4),Puntajes!$D$15,IF(G78>CapFinanciera4,Puntajes!$D$16,0))))))","v":""}]
[null,null,{"$f":"+'Capacidad Financiera'!B82","v":""},{"$f":"IF(ISERROR(VLOOKUP(C79,'Capacidad Financiera'!$B$12:$X$62720,2,0)),\"\",VLOOKUP(C79,'Capacidad Financiera'!$B$12:$X$3580,2,0))","v":0},{"$f":"IF(OR(C79=\"\",D79=\"\"),\"\",IF(ISERROR(VLOOKUP(D79,'Capacidad Financiera'!$C$13:$X$62720,3,0)),\"\",VLOOKUP(D79,'Capacidad Financiera'!$C$13:$X$62720,3,0)))","v":""},{"$f":"IF(OR(C79=\"\",D79=\"\"),\"\",IF(ISERROR(VLOOKUP(D79,'Capacidad Financiera'!$C$13:$X$62720,5,0)),\"\",VLOOKUP(D79,'Capacidad Financiera'!$C$13:$X$62720,5,0)))","v":""},"",{"$f":"IF(OR(D79=\"\",E79=\"\",F79=\"\"),\"\",IF(AND(G79>0,G79<=CapFinanciera1),Puntajes!$D$12,IF(AND(G79>CapFinanciera1,G79<=CapFinanciera2),Puntajes!$D$13,IF(AND(G79>CapFinanciera2,G79<=CapFinanciera3),Puntajes!$D$14,IF(AND(G79>CapFinanciera3,G79<=CapFinanciera4),Puntajes!$D$15,IF(G79>CapFinanciera4,Puntajes!$D$16,0))))))","v":""}]
[null,null,{"$f":"+'Capacidad Financiera'!B83","v":""},{"$f":"IF(ISERROR(VLOOKUP(C80,'Capacidad Financiera'!$B$12:$X$62720,2,0)),\"\",VLOOKUP(C80,'Capacidad Financiera'!$B$12:$X$3580,2,0))","v":0},{"$f":"IF(OR(C80=\"\",D80=\"\"),\"\",IF(ISERROR(VLOOKUP(D80,'Capacidad Financiera'!$C$13:$X$62720,3,0)),\"\",VLOOKUP(D80,'Capacidad Financiera'!$C$13:$X$62720,3,0)))","v":""},{"$f":"IF(OR(C80=\"\",D80=\"\"),\"\",IF(ISERROR(VLOOKUP(D80,'Capacidad Financiera'!$C$13:$X$62720,5,0)),\"\",VLOOKUP(D80,'Capacidad Financiera'!$C$13:$X$62720,5,0)))","v":""},"",{"$f":"IF(OR(D80=\"\",E80=\"\",F80=\"\"),\"\",IF(AND(G80>0,G80<=CapFinanciera1),Puntajes!$D$12,IF(AND(G80>CapFinanciera1,G80<=CapFinanciera2),Puntajes!$D$13,IF(AND(G80>CapFinanciera2,G80<=CapFinanciera3),Puntajes!$D$14,IF(AND(G80>CapFinanciera3,G80<=CapFinanciera4),Puntajes!$D$15,IF(G80>CapFinanciera4,Puntajes!$D$16,0))))))","v":""}]
[null,null,{"$f":"+'Capacidad Financiera'!B84","v":""},{"$f":"IF(ISERROR(VLOOKUP(C81,'Capacidad Financiera'!$B$12:$X$62720,2,0)),\"\",VLOOKUP(C81,'Capacidad Financiera'!$B$12:$X$3580,2,0))","v":0},{"$f":"IF(OR(C81=\"\",D81=\"\"),\"\",IF(ISERROR(VLOOKUP(D81,'Capacidad Financiera'!$C$13:$X$62720,3,0)),\"\",VLOOKUP(D81,'Capacidad Financiera'!$C$13:$X$62720,3,0)))","v":""},{"$f":"IF(OR(C81=\"\",D81=\"\"),\"\",IF(ISERROR(VLOOKUP(D81,'Capacidad Financiera'!$C$13:$X$62720,5,0)),\"\",VLOOKUP(D81,'Capacidad Financiera'!$C$13:$X$62720,5,0)))","v":""},"",{"$f":"IF(OR(D81=\"\",E81=\"\",F81=\"\"),\"\",IF(AND(G81>0,G81<=CapFinanciera1),Puntajes!$D$12,IF(AND(G81>CapFinanciera1,G81<=CapFinanciera2),Puntajes!$D$13,IF(AND(G81>CapFinanciera2,G81<=CapFinanciera3),Puntajes!$D$14,IF(AND(G81>CapFinanciera3,G81<=CapFinanciera4),Puntajes!$D$15,IF(G81>CapFinanciera4,Puntajes!$D$16,0))))))","v":""}]
[null,null,{"$f":"+'Capacidad Financiera'!B85","v":""},{"$f":"IF(ISERROR(VLOOKUP(C82,'Capacidad Financiera'!$B$12:$X$62720,2,0)),\"\",VLOOKUP(C82,'Capacidad Financiera'!$B$12:$X$3580,2,0))","v":0},{"$f":"IF(OR(C82=\"\",D82=\"\"),\"\",IF(ISERROR(VLOOKUP(D82,'Capacidad Financiera'!$C$13:$X$62720,3,0)),\"\",VLOOKUP(D82,'Capacidad Financiera'!$C$13:$X$62720,3,0)))","v":""},{"$f":"IF(OR(C82=\"\",D82=\"\"),\"\",IF(ISERROR(VLOOKUP(D82,'Capacidad Financiera'!$C$13:$X$62720,5,0)),\"\",VLOOKUP(D82,'Capacidad Financiera'!$C$13:$X$62720,5,0)))","v":""},"",{"$f":"IF(OR(D82=\"\",E82=\"\",F82=\"\"),\"\",IF(AND(G82>0,G82<=CapFinanciera1),Puntajes!$D$12,IF(AND(G82>CapFinanciera1,G82<=CapFinanciera2),Puntajes!$D$13,IF(AND(G82>CapFinanciera2,G82<=CapFinanciera3),Puntajes!$D$14,IF(AND(G82>CapFinanciera3,G82<=CapFinanciera4),Puntajes!$D$15,IF(G82>CapFinanciera4,Puntajes!$D$16,0))))))","v":""}]
[null,null,{"$f":"+'Capacidad Financiera'!B86","v":""},{"$f":"IF(ISERROR(VLOOKUP(C83,'Capacidad Financiera'!$B$12:$X$62720,2,0)),\"\",VLOOKUP(C83,'Capacidad Financiera'!$B$12:$X$3580,2,0))","v":0},{"$f":"IF(OR(C83=\"\",D83=\"\"),\"\",IF(ISERROR(VLOOKUP(D83,'Capacidad Financiera'!$C$13:$X$62720,3,0)),\"\",VLOOKUP(D83,'Capacidad Financiera'!$C$13:$X$62720,3,0)))","v":""},{"$f":"IF(OR(C83=\"\",D83=\"\"),\"\",IF(ISERROR(VLOOKUP(D83,'Capacidad Financiera'!$C$13:$X$62720,5,0)),\"\",VLOOKUP(D83,'Capacidad Financiera'!$C$13:$X$62720,5,0)))","v":""},"",{"$f":"IF(OR(D83=\"\",E83=\"\",F83=\"\"),\"\",IF(AND(G83>0,G83<=CapFinanciera1),Puntajes!$D$12,IF(AND(G83>CapFinanciera1,G83<=CapFinanciera2),Puntajes!$D$13,IF(AND(G83>CapFinanciera2,G83<=CapFinanciera3),Puntajes!$D$14,IF(AND(G83>CapFinanciera3,G83<=CapFinanciera4),Puntajes!$D$15,IF(G83>CapFinanciera4,Puntajes!$D$16,0))))))","v":""}]
[null,null,{"$f":"+'Capacidad Financiera'!B87","v":""},{"$f":"IF(ISERROR(VLOOKUP(C84,'Capacidad Financiera'!$B$12:$X$62720,2,0)),\"\",VLOOKUP(C84,'Capacidad Financiera'!$B$12:$X$3580,2,0))","v":0},{"$f":"IF(OR(C84=\"\",D84=\"\"),\"\",IF(ISERROR(VLOOKUP(D84,'Capacidad Financiera'!$C$13:$X$62720,3,0)),\"\",VLOOKUP(D84,'Capacidad Financiera'!$C$13:$X$62720,3,0)))","v":""},{"$f":"IF(OR(C84=\"\",D84=\"\"),\"\",IF(ISERROR(VLOOKUP(D84,'Capacidad Financiera'!$C$13:$X$62720,5,0)),\"\",VLOOKUP(D84,'Capacidad Financiera'!$C$13:$X$62720,5,0)))","v":""},"",{"$f":"IF(OR(D84=\"\",E84=\"\",F84=\"\"),\"\",IF(AND(G84>0,G84<=CapFinanciera1),Puntajes!$D$12,IF(AND(G84>CapFinanciera1,G84<=CapFinanciera2),Puntajes!$D$13,IF(AND(G84>CapFinanciera2,G84<=CapFinanciera3),Puntajes!$D$14,IF(AND(G84>CapFinanciera3,G84<=CapFinanciera4),Puntajes!$D$15,IF(G84>CapFinanciera4,Puntajes!$D$16,0))))))","v":""}]
[null,null,{"$f":"+'Capacidad Financiera'!B88","v":""},{"$f":"IF(ISERROR(VLOOKUP(C85,'Capacidad Financiera'!$B$12:$X$62720,2,0)),\"\",VLOOKUP(C85,'Capacidad Financiera'!$B$12:$X$3580,2,0))","v":0},{"$f":"IF(OR(C85=\"\",D85=\"\"),\"\",IF(ISERROR(VLOOKUP(D85,'Capacidad Financiera'!$C$13:$X$62720,3,0)),\"\",VLOOKUP(D85,'Capacidad Financiera'!$C$13:$X$62720,3,0)))","v":""},{"$f":"IF(OR(C85=\"\",D85=\"\"),\"\",IF(ISERROR(VLOOKUP(D85,'Capacidad Financiera'!$C$13:$X$62720,5,0)),\"\",VLOOKUP(D85,'Capacidad Financiera'!$C$13:$X$62720,5,0)))","v":""},"",{"$f":"IF(OR(D85=\"\",E85=\"\",F85=\"\"),\"\",IF(AND(G85>0,G85<=CapFinanciera1),Puntajes!$D$12,IF(AND(G85>CapFinanciera1,G85<=CapFinanciera2),Puntajes!$D$13,IF(AND(G85>CapFinanciera2,G85<=CapFinanciera3),Puntajes!$D$14,IF(AND(G85>CapFinanciera3,G85<=CapFinanciera4),Puntajes!$D$15,IF(G85>CapFinanciera4,Puntajes!$D$16,0))))))","v":""}]
[null,null,8,{"$f":"IF(ISERROR(VLOOKUP(C86,'Capacidad Financiera'!$B$12:$X$62720,2,0)),\"\",VLOOKUP(C86,'Capacidad Financiera'!$B$12:$X$3580,2,0))","v":"CONSULTORIA Y CONSTRUCCION LTDA."},{"$f":"IF(C87=\"\",IF(C86<>\"\",IF(ISERROR(VLOOKUP(D86,'Capacidad Financiera'!$C$12:$H$22,3,0)),\"\",VLOOKUP(D86,'Capacidad Financiera'!$C$12:$H$22,3,0))),\"\")","v":""},{"$f":"IF(C87=\"\",IF(C86<>\"\",IF(ISERROR(VLOOKUP(D86,'Capacidad Financiera'!$C$12:$H$22,5,0)),\"\",VLOOKUP(D86,'Capacidad Financiera'!$C$12:$H$22,5,0))),\"\")","v":""},{"$f":"IF(OR(D86=\"\",E86=\"\",F86=\"\"),\"\",IF(OR(E86=0,F86=0),0,E86/F86))","v":""},{"$f":"IF(C87=\"\",IF(AND(E86=\"\",F86=\"\"),\"\",IF(AND(G86>0,G86<=CapFinanciera1),Puntajes!$D$12,IF(AND(G86>CapFinanciera1,G86<=CapFinanciera2),Puntajes!$D$13,IF(AND(G86>CapFinanciera2,G86<=CapFinanciera3),Puntajes!$D$14,IF(AND(G86>CapFinanciera3,G86<=CapFinanciera4),Puntajes!$D$15,IF(G86>CapFinanciera4,Puntajes!$D$16,0)))))),\"\")","v":""}]
[null,null,{"$f":"+'Capacidad Financiera'!B90","v":8.1},{"$f":"IF(ISERROR(VLOOKUP(C87,'Capacidad Financiera'!$B$12:$X$62720,2,0)),\"\",VLOOKUP(C87,'Capacidad Financiera'!$B$12:$X$3580,2,0))","v":"CONSULTORIA Y CONSTRUCCION LTDA."},{"$f":"IF(OR(C87=\"\",D87=\"\"),\"\",IF(ISERROR(VLOOKUP(D87,'Capacidad Financiera'!$C$13:$X$62720,3,0)),\"\",VLOOKUP(D87,'Capacidad Financiera'!$C$13:$X$62720,3,0)))","v":9298906000},{"$f":"IF(OR(C87=\"\",D87=\"\"),\"\",IF(ISERROR(VLOOKUP(D87,'Capacidad Financiera'!$C$13:$X$62720,5,0)),\"\",VLOOKUP(D87,'Capacidad Financiera'!$C$13:$X$62720,5,0)))","v":2275741000},{"$f":"IF(OR(D87=\"\",E87=\"\",F87=\"\"),\"\",IF(OR(E87=0,F87=0),0,E87/F87))","v":4.086100307548179},{"$f":"IF(OR(D87=\"\",E87=\"\",F87=\"\"),\"\",IF(AND(G87>0,G87<=CapFinanciera1),Puntajes!$D$12,IF(AND(G87>CapFinanciera1,G87<=CapFinanciera2),Puntajes!$D$13,IF(AND(G87>CapFinanciera2,G87<=CapFinanciera3),Puntajes!$D$14,IF(AND(G87>CapFinanciera3,G87<=CapFinanciera4),Puntajes!$D$15,IF(G87>CapFinanciera4,Puntajes!$D$16,0))))))","v":40}]
[null,null,{"$f":"+'Capacidad Financiera'!B91","v":""},{"$f":"IF(ISERROR(VLOOKUP(C88,'Capacidad Financiera'!$B$12:$X$62720,2,0)),\"\",VLOOKUP(C88,'Capacidad Financiera'!$B$12:$X$3580,2,0))","v":0},{"$f":"IF(OR(C88=\"\",D88=\"\"),\"\",IF(ISERROR(VLOOKUP(D88,'Capacidad Financiera'!$C$13:$X$62720,3,0)),\"\",VLOOKUP(D88,'Capacidad Financiera'!$C$13:$X$62720,3,0)))","v":""},{"$f":"IF(OR(C88=\"\",D88=\"\"),\"\",IF(ISERROR(VLOOKUP(D88,'Capacidad Financiera'!$C$13:$X$62720,5,0)),\"\",VLOOKUP(D88,'Capacidad Financiera'!$C$13:$X$62720,5,0)))","v":""},"",{"$f":"IF(OR(D88=\"\",E88=\"\",F88=\"\"),\"\",IF(AND(G88>0,G88<=CapFinanciera1),Puntajes!$D$12,IF(AND(G88>CapFinanciera1,G88<=CapFinanciera2),Puntajes!$D$13,IF(AND(G88>CapFinanciera2,G88<=CapFinanciera3),Puntajes!$D$14,IF(AND(G88>CapFinanciera3,G88<=CapFinanciera4),Puntajes!$D$15,IF(G88>CapFinanciera4,Puntajes!$D$16,0))))))","v":""}]
[null,null,{"$f":"+'Capacidad Financiera'!B92","v":""},{"$f":"IF(ISERROR(VLOOKUP(C89,'Capacidad Financiera'!$B$12:$X$62720,2,0)),\"\",VLOOKUP(C89,'Capacidad Financiera'!$B$12:$X$3580,2,0))","v":0},{"$f":"IF(OR(C89=\"\",D89=\"\"),\"\",IF(ISERROR(VLOOKUP(D89,'Capacidad Financiera'!$C$13:$X$62720,3,0)),\"\",VLOOKUP(D89,'Capacidad Financiera'!$C$13:$X$62720,3,0)))","v":""},{"$f":"IF(OR(C89=\"\",D89=\"\"),\"\",IF(ISERROR(VLOOKUP(D89,'Capacidad Financiera'!$C$13:$X$62720,5,0)),\"\",VLOOKUP(D89,'Capacidad Financiera'!$C$13:$X$62720,5,0)))","v":""},"",{"$f":"IF(OR(D89=\"\",E89=\"\",F89=\"\"),\"\",IF(AND(G89>0,G89<=CapFinanciera1),Puntajes!$D$12,IF(AND(G89>CapFinanciera1,G89<=CapFinanciera2),Puntajes!$D$13,IF(AND(G89>CapFinanciera2,G89<=CapFinanciera3),Puntajes!$D$14,IF(AND(G89>CapFinanciera3,G89<=CapFinanciera4),Puntajes!$D$15,IF(G89>CapFinanciera4,Puntajes!$D$16,0))))))","v":""}]
[null,null,{"$f":"+'Capacidad Financiera'!B93","v":""},{"$f":"IF(ISERROR(VLOOKUP(C90,'Capacidad Financiera'!$B$12:$X$62720,2,0)),\"\",VLOOKUP(C90,'Capacidad Financiera'!$B$12:$X$3580,2,0))","v":0},{"$f":"IF(OR(C90=\"\",D90=\"\"),\"\",IF(ISERROR(VLOOKUP(D90,'Capacidad Financiera'!$C$13:$X$62720,3,0)),\"\",VLOOKUP(D90,'Capacidad Financiera'!$C$13:$X$62720,3,0)))","v":""},{"$f":"IF(OR(C90=\"\",D90=\"\"),\"\",IF(ISERROR(VLOOKUP(D90,'Capacidad Financiera'!$C$13:$X$62720,5,0)),\"\",VLOOKUP(D90,'Capacidad Financiera'!$C$13:$X$62720,5,0)))","v":""},"",{"$f":"IF(OR(D90=\"\",E90=\"\",F90=\"\"),\"\",IF(AND(G90>0,G90<=CapFinanciera1),Puntajes!$D$12,IF(AND(G90>CapFinanciera1,G90<=CapFinanciera2),Puntajes!$D$13,IF(AND(G90>CapFinanciera2,G90<=CapFinanciera3),Puntajes!$D$14,IF(AND(G90>CapFinanciera3,G90<=CapFinanciera4),Puntajes!$D$15,IF(G90>CapFinanciera4,Puntajes!$D$16,0))))))","v":""}]
[null,null,{"$f":"+'Capacidad Financiera'!B94","v":""},{"$f":"IF(ISERROR(VLOOKUP(C91,'Capacidad Financiera'!$B$12:$X$62720,2,0)),\"\",VLOOKUP(C91,'Capacidad Financiera'!$B$12:$X$3580,2,0))","v":0},{"$f":"IF(OR(C91=\"\",D91=\"\"),\"\",IF(ISERROR(VLOOKUP(D91,'Capacidad Financiera'!$C$13:$X$62720,3,0)),\"\",VLOOKUP(D91,'Capacidad Financiera'!$C$13:$X$62720,3,0)))","v":""},{"$f":"IF(OR(C91=\"\",D91=\"\"),\"\",IF(ISERROR(VLOOKUP(D91,'Capacidad Financiera'!$C$13:$X$62720,5,0)),\"\",VLOOKUP(D91,'Capacidad Financiera'!$C$13:$X$62720,5,0)))","v":""},"",{"$f":"IF(OR(D91=\"\",E91=\"\",F91=\"\"),\"\",IF(AND(G91>0,G91<=CapFinanciera1),Puntajes!$D$12,IF(AND(G91>CapFinanciera1,G91<=CapFinanciera2),Puntajes!$D$13,IF(AND(G91>CapFinanciera2,G91<=CapFinanciera3),Puntajes!$D$14,IF(AND(G91>CapFinanciera3,G91<=CapFinanciera4),Puntajes!$D$15,IF(G91>CapFinanciera4,Puntajes!$D$16,0))))))","v":""}]
[null,null,{"$f":"+'Capacidad Financiera'!B95","v":""},{"$f":"IF(ISERROR(VLOOKUP(C92,'Capacidad Financiera'!$B$12:$X$62720,2,0)),\"\",VLOOKUP(C92,'Capacidad Financiera'!$B$12:$X$3580,2,0))","v":0},{"$f":"IF(OR(C92=\"\",D92=\"\"),\"\",IF(ISERROR(VLOOKUP(D92,'Capacidad Financiera'!$C$13:$X$62720,3,0)),\"\",VLOOKUP(D92,'Capacidad Financiera'!$C$13:$X$62720,3,0)))","v":""},{"$f":"IF(OR(C92=\"\",D92=\"\"),\"\",IF(ISERROR(VLOOKUP(D92,'Capacidad Financiera'!$C$13:$X$62720,5,0)),\"\",VLOOKUP(D92,'Capacidad Financiera'!$C$13:$X$62720,5,0)))","v":""},"",{"$f":"IF(OR(D92=\"\",E92=\"\",F92=\"\"),\"\",IF(AND(G92>0,G92<=CapFinanciera1),Puntajes!$D$12,IF(AND(G92>CapFinanciera1,G92<=CapFinanciera2),Puntajes!$D$13,IF(AND(G92>CapFinanciera2,G92<=CapFinanciera3),Puntajes!$D$14,IF(AND(G92>CapFinanciera3,G92<=CapFinanciera4),Puntajes!$D$15,IF(G92>CapFinanciera4,Puntajes!$D$16,0))))))","v":""}]
[null,null,{"$f":"+'Capacidad Financiera'!B96","v":""},{"$f":"IF(ISERROR(VLOOKUP(C93,'Capacidad Financiera'!$B$12:$X$62720,2,0)),\"\",VLOOKUP(C93,'Capacidad Financiera'!$B$12:$X$3580,2,0))","v":0},{"$f":"IF(OR(C93=\"\",D93=\"\"),\"\",IF(ISERROR(VLOOKUP(D93,'Capacidad Financiera'!$C$13:$X$62720,3,0)),\"\",VLOOKUP(D93,'Capacidad Financiera'!$C$13:$X$62720,3,0)))","v":""},{"$f":"IF(OR(C93=\"\",D93=\"\"),\"\",IF(ISERROR(VLOOKUP(D93,'Capacidad Financiera'!$C$13:$X$62720,5,0)),\"\",VLOOKUP(D93,'Capacidad Financiera'!$C$13:$X$62720,5,0)))","v":""},"",{"$f":"IF(OR(D93=\"\",E93=\"\",F93=\"\"),\"\",IF(AND(G93>0,G93<=CapFinanciera1),Puntajes!$D$12,IF(AND(G93>CapFinanciera1,G93<=CapFinanciera2),Puntajes!$D$13,IF(AND(G93>CapFinanciera2,G93<=CapFinanciera3),Puntajes!$D$14,IF(AND(G93>CapFinanciera3,G93<=CapFinanciera4),Puntajes!$D$15,IF(G93>CapFinanciera4,Puntajes!$D$16,0))))))","v":""}]
[null,null,{"$f":"+'Capacidad Financiera'!B97","v":""},{"$f":"IF(ISERROR(VLOOKUP(C94,'Capacidad Financiera'!$B$12:$X$62720,2,0)),\"\",VLOOKUP(C94,'Capacidad Financiera'!$B$12:$X$3580,2,0))","v":0},{"$f":"IF(OR(C94=\"\",D94=\"\"),\"\",IF(ISERROR(VLOOKUP(D94,'Capacidad Financiera'!$C$13:$X$62720,3,0)),\"\",VLOOKUP(D94,'Capacidad Financiera'!$C$13:$X$62720,3,0)))","v":""},{"$f":"IF(OR(C94=\"\",D94=\"\"),\"\",IF(ISERROR(VLOOKUP(D94,'Capacidad Financiera'!$C$13:$X$62720,5,0)),\"\",VLOOKUP(D94,'Capacidad Financiera'!$C$13:$X$62720,5,0)))","v":""},"",{"$f":"IF(OR(D94=\"\",E94=\"\",F94=\"\"),\"\",IF(AND(G94>0,G94<=CapFinanciera1),Puntajes!$D$12,IF(AND(G94>CapFinanciera1,G94<=CapFinanciera2),Puntajes!$D$13,IF(AND(G94>CapFinanciera2,G94<=CapFinanciera3),Puntajes!$D$14,IF(AND(G94>CapFinanciera3,G94<=CapFinanciera4),Puntajes!$D$15,IF(G94>CapFinanciera4,Puntajes!$D$16,0))))))","v":""}]
[null,null,{"$f":"+'Capacidad Financiera'!B98","v":""},{"$f":"IF(ISERROR(VLOOKUP(C95,'Capacidad Financiera'!$B$12:$X$62720,2,0)),\"\",VLOOKUP(C95,'Capacidad Financiera'!$B$12:$X$3580,2,0))","v":0},{"$f":"IF(OR(C95=\"\",D95=\"\"),\"\",IF(ISERROR(VLOOKUP(D95,'Capacidad Financiera'!$C$13:$X$62720,3,0)),\"\",VLOOKUP(D95,'Capacidad Financiera'!$C$13:$X$62720,3,0)))","v":""},{"$f":"IF(OR(C95=\"\",D95=\"\"),\"\",IF(ISERROR(VLOOKUP(D95,'Capacidad Financiera'!$C$13:$X$62720,5,0)),\"\",VLOOKUP(D95,'Capacidad Financiera'!$C$13:$X$62720,5,0)))","v":""},"",{"$f":"IF(OR(D95=\"\",E95=\"\",F95=\"\"),\"\",IF(AND(G95>0,G95<=CapFinanciera1),Puntajes!$D$12,IF(AND(G95>CapFinanciera1,G95<=CapFinanciera2),Puntajes!$D$13,IF(AND(G95>CapFinanciera2,G95<=CapFinanciera3),Puntajes!$D$14,IF(AND(G95>CapFinanciera3,G95<=CapFinanciera4),Puntajes!$D$15,IF(G95>CapFinanciera4,Puntajes!$D$16,0))))))","v":""}]
[null,null,{"$f":"+'Capacidad Financiera'!B99","v":""},{"$f":"IF(ISERROR(VLOOKUP(C96,'Capacidad Financiera'!$B$12:$X$62720,2,0)),\"\",VLOOKUP(C96,'Capacidad Financiera'!$B$12:$X$3580,2,0))","v":0},{"$f":"IF(OR(C96=\"\",D96=\"\"),\"\",IF(ISERROR(VLOOKUP(D96,'Capacidad Financiera'!$C$13:$X$62720,3,0)),\"\",VLOOKUP(D96,'Capacidad Financiera'!$C$13:$X$62720,3,0)))","v":""},{"$f":"IF(OR(C96=\"\",D96=\"\"),\"\",IF(ISERROR(VLOOKUP(D96,'Capacidad Financiera'!$C$13:$X$62720,5,0)),\"\",VLOOKUP(D96,'Capacidad Financiera'!$C$13:$X$62720,5,0)))","v":""},"",{"$f":"IF(OR(D96=\"\",E96=\"\",F96=\"\"),\"\",IF(AND(G96>0,G96<=CapFinanciera1),Puntajes!$D$12,IF(AND(G96>CapFinanciera1,G96<=CapFinanciera2),Puntajes!$D$13,IF(AND(G96>CapFinanciera2,G96<=CapFinanciera3),Puntajes!$D$14,IF(AND(G96>CapFinanciera3,G96<=CapFinanciera4),Puntajes!$D$15,IF(G96>CapFinanciera4,Puntajes!$D$16,0))))))","v":""}]
[null,null,9,{"$f":"IF(ISERROR(VLOOKUP(C97,'Capacidad Financiera'!$B$12:$X$62720,2,0)),\"\",VLOOKUP(C97,'Capacidad Financiera'!$B$12:$X$3580,2,0))","v":"CONSORCIO INFRAESTRUCUTRA VIAL"},{"$f":"IF(C98=\"\",IF(C97<>\"\",IF(ISERROR(VLOOKUP(D97,'Capacidad Financiera'!$C$12:$H$22,3,0)),\"\",VLOOKUP(D97,'Capacidad Financiera'!$C$12:$H$22,3,0))),\"\")","v":""},{"$f":"IF(C98=\"\",IF(C97<>\"\",IF(ISERROR(VLOOKUP(D97,'Capacidad Financiera'!$C$12:$H$22,5,0)),\"\",VLOOKUP(D97,'Capacidad Financiera'!$C$12:$H$22,5,0))),\"\")","v":""},{"$f":"IF(OR(D97=\"\",E97=\"\",F97=\"\"),\"\",IF(OR(E97=0,F97=0),0,E97/F97))","v":""},{"$f":"IF(C98=\"\",IF(AND(E97=\"\",F97=\"\"),\"\",IF(AND(G97>0,G97<=CapFinanciera1),Puntajes!$D$12,IF(AND(G97>CapFinanciera1,G97<=CapFinanciera2),Puntajes!$D$13,IF(AND(G97>CapFinanciera2,G97<=CapFinanciera3),Puntajes!$D$14,IF(AND(G97>CapFinanciera3,G97<=CapFinanciera4),Puntajes!$D$15,IF(G97>CapFinanciera4,Puntajes!$D$16,0)))))),\"\")","v":""}]
[null,null,{"$f":"+'Capacidad Financiera'!B101","v":9.1},{"$f":"IF(ISERROR(VLOOKUP(C98,'Capacidad Financiera'!$B$12:$X$62720,2,0)),\"\",VLOOKUP(C98,'Capacidad Financiera'!$B$12:$X$3580,2,0))","v":"VNF S.A.S"},{"$f":"IF(OR(C98=\"\",D98=\"\"),\"\",IF(ISERROR(VLOOKUP(D98,'Capacidad Financiera'!$C$13:$X$62720,3,0)),\"\",VLOOKUP(D98,'Capacidad Financiera'!$C$13:$X$62720,3,0)))","v":7530553117},{"$f":"IF(OR(C98=\"\",D98=\"\"),\"\",IF(ISERROR(VLOOKUP(D98,'Capacidad Financiera'!$C$13:$X$62720,5,0)),\"\",VLOOKUP(D98,'Capacidad Financiera'!$C$13:$X$62720,5,0)))","v":1727553118},{"$f":"IF(OR(D98=\"\",E98=\"\",F98=\"\"),\"\",IF(OR(E98=0,F98=0),0,E98/F98))","v":4.3590862929402556},{"$f":"IF(OR(D98=\"\",E98=\"\",F98=\"\"),\"\",IF(AND(G98>0,G98<=CapFinanciera1),Puntajes!$D$12,IF(AND(G98>CapFinanciera1,G98<=CapFinanciera2),Puntajes!$D$13,IF(AND(G98>CapFinanciera2,G98<=CapFinanciera3),Puntajes!$D$14,IF(AND(G98>CapFinanciera3,G98<=CapFinanciera4),Puntajes!$D$15,IF(G98>CapFinanciera4,Puntajes!$D$16,0))))))","v":40}]
[null,null,{"$f":"+'Capacidad Financiera'!B102","v":9.1999999999999993},{"$f":"IF(ISERROR(VLOOKUP(C99,'Capacidad Financiera'!$B$12:$X$62720,2,0)),\"\",VLOOKUP(C99,'Capacidad Financiera'!$B$12:$X$3580,2,0))","v":"HORACIO VEGA CARDENAS"},{"$f":"IF(OR(C99=\"\",D99=\"\"),\"\",IF(ISERROR(VLOOKUP(D99,'Capacidad Financiera'!$C$13:$X$62720,3,0)),\"\",VLOOKUP(D99,'Capacidad Financiera'!$C$13:$X$62720,3,0)))","v":6246520000},{"$f":"IF(OR(C99=\"\",D99=\"\"),\"\",IF(ISERROR(VLOOKUP(D99,'Capacidad Financiera'!$C$13:$X$62720,5,0)),\"\",VLOOKUP(D99,'Capacidad Financiera'!$C$13:$X$62720,5,0)))","v":86113000},72.538641087872918,{"$f":"IF(OR(D99=\"\",E99=\"\",F99=\"\"),\"\",IF(AND(G99>0,G99<=CapFinanciera1),Puntajes!$D$12,IF(AND(G99>CapFinanciera1,G99<=CapFinanciera2),Puntajes!$D$13,IF(AND(G99>CapFinanciera2,G99<=CapFinanciera3),Puntajes!$D$14,IF(AND(G99>CapFinanciera3,G99<=CapFinanciera4),Puntajes!$D$15,IF(G99>CapFinanciera4,Puntajes!$D$16,0))))))","v":40}]
[null,null,{"$f":"+'Capacidad Financiera'!B103","v":""},{"$f":"IF(ISERROR(VLOOKUP(C100,'Capacidad Financiera'!$B$12:$X$62720,2,0)),\"\",VLOOKUP(C100,'Capacidad Financiera'!$B$12:$X$3580,2,0))","v":0},{"$f":"IF(OR(C100=\"\",D100=\"\"),\"\",IF(ISERROR(VLOOKUP(D100,'Capacidad Financiera'!$C$13:$X$62720,3,0)),\"\",VLOOKUP(D100,'Capacidad Financiera'!$C$13:$X$62720,3,0)))","v":""},{"$f":"IF(OR(C100=\"\",D100=\"\"),\"\",IF(ISERROR(VLOOKUP(D100,'Capacidad Financiera'!$C$13:$X$62720,5,0)),\"\",VLOOKUP(D100,'Capacidad Financiera'!$C$13:$X$62720,5,0)))","v":""},"",{"$f":"IF(OR(D100=\"\",E100=\"\",F100=\"\"),\"\",IF(AND(G100>0,G100<=CapFinanciera1),Puntajes!$D$12,IF(AND(G100>CapFinanciera1,G100<=CapFinanciera2),Puntajes!$D$13,IF(AND(G100>CapFinanciera2,G100<=CapFinanciera3),Puntajes!$D$14,IF(AND(G100>CapFinanciera3,G100<=CapFinanciera4),Puntajes!$D$15,IF(G100>CapFinanciera4,Puntajes!$D$16,0))))))","v":""}]
[null,null,{"$f":"+'Capacidad Financiera'!B104","v":""},{"$f":"IF(ISERROR(VLOOKUP(C101,'Capacidad Financiera'!$B$12:$X$62720,2,0)),\"\",VLOOKUP(C101,'Capacidad Financiera'!$B$12:$X$3580,2,0))","v":0},{"$f":"IF(OR(C101=\"\",D101=\"\"),\"\",IF(ISERROR(VLOOKUP(D101,'Capacidad Financiera'!$C$13:$X$62720,3,0)),\"\",VLOOKUP(D101,'Capacidad Financiera'!$C$13:$X$62720,3,0)))","v":""},{"$f":"IF(OR(C101=\"\",D101=\"\"),\"\",IF(ISERROR(VLOOKUP(D101,'Capacidad Financiera'!$C$13:$X$62720,5,0)),\"\",VLOOKUP(D101,'Capacidad Financiera'!$C$13:$X$62720,5,0)))","v":""},"",{"$f":"IF(OR(D101=\"\",E101=\"\",F101=\"\"),\"\",IF(AND(G101>0,G101<=CapFinanciera1),Puntajes!$D$12,IF(AND(G101>CapFinanciera1,G101<=CapFinanciera2),Puntajes!$D$13,IF(AND(G101>CapFinanciera2,G101<=CapFinanciera3),Puntajes!$D$14,IF(AND(G101>CapFinanciera3,G101<=CapFinanciera4),Puntajes!$D$15,IF(G101>CapFinanciera4,Puntajes!$D$16,0))))))","v":""}]
[null,null,{"$f":"+'Capacidad Financiera'!B105","v":""},{"$f":"IF(ISERROR(VLOOKUP(C102,'Capacidad Financiera'!$B$12:$X$62720,2,0)),\"\",VLOOKUP(C102,'Capacidad Financiera'!$B$12:$X$3580,2,0))","v":0},{"$f":"IF(OR(C102=\"\",D102=\"\"),\"\",IF(ISERROR(VLOOKUP(D102,'Capacidad Financiera'!$C$13:$X$62720,3,0)),\"\",VLOOKUP(D102,'Capacidad Financiera'!$C$13:$X$62720,3,0)))","v":""},{"$f":"IF(OR(C102=\"\",D102=\"\"),\"\",IF(ISERROR(VLOOKUP(D102,'Capacidad Financiera'!$C$13:$X$62720,5,0)),\"\",VLOOKUP(D102,'Capacidad Financiera'!$C$13:$X$62720,5,0)))","v":""},"",{"$f":"IF(OR(D102=\"\",E102=\"\",F102=\"\"),\"\",IF(AND(G102>0,G102<=CapFinanciera1),Puntajes!$D$12,IF(AND(G102>CapFinanciera1,G102<=CapFinanciera2),Puntajes!$D$13,IF(AND(G102>CapFinanciera2,G102<=CapFinanciera3),Puntajes!$D$14,IF(AND(G102>CapFinanciera3,G102<=CapFinanciera4),Puntajes!$D$15,IF(G102>CapFinanciera4,Puntajes!$D$16,0))))))","v":""}]
[null,null,{"$f":"+'Capacidad Financiera'!B106","v":""},{"$f":"IF(ISERROR(VLOOKUP(C103,'Capacidad Financiera'!$B$12:$X$62720,2,0)),\"\",VLOOKUP(C103,'Capacidad Financiera'!$B$12:$X$3580,2,0))","v":0},{"$f":"IF(OR(C103=\"\",D103=\"\"),\"\",IF(ISERROR(VLOOKUP(D103,'Capacidad Financiera'!$C$13:$X$62720,3,0)),\"\",VLOOKUP(D103,'Capacidad Financiera'!$C$13:$X$62720,3,0)))","v":""},{"$f":"IF(OR(C103=\"\",D103=\"\"),\"\",IF(ISERROR(VLOOKUP(D103,'Capacidad Financiera'!$C$13:$X$62720,5,0)),\"\",VLOOKUP(D103,'Capacidad Financiera'!$C$13:$X$62720,5,0)))","v":""},"",{"$f":"IF(OR(D103=\"\",E103=\"\",F103=\"\"),\"\",IF(AND(G103>0,G103<=CapFinanciera1),Puntajes!$D$12,IF(AND(G103>CapFinanciera1,G103<=CapFinanciera2),Puntajes!$D$13,IF(AND(G103>CapFinanciera2,G103<=CapFinanciera3),Puntajes!$D$14,IF(AND(G103>CapFinanciera3,G103<=CapFinanciera4),Puntajes!$D$15,IF(G103>CapFinanciera4,Puntajes!$D$16,0))))))","v":""}]
[null,null,{"$f":"+'Capacidad Financiera'!B107","v":""},{"$f":"IF(ISERROR(VLOOKUP(C104,'Capacidad Financiera'!$B$12:$X$62720,2,0)),\"\",VLOOKUP(C104,'Capacidad Financiera'!$B$12:$X$3580,2,0))","v":0},{"$f":"IF(OR(C104=\"\",D104=\"\"),\"\",IF(ISERROR(VLOOKUP(D104,'Capacidad Financiera'!$C$13:$X$62720,3,0)),\"\",VLOOKUP(D104,'Capacidad Financiera'!$C$13:$X$62720,3,0)))","v":""},{"$f":"IF(OR(C104=\"\",D104=\"\"),\"\",IF(ISERROR(VLOOKUP(D104,'Capacidad Financiera'!$C$13:$X$62720,5,0)),\"\",VLOOKUP(D104,'Capacidad Financiera'!$C$13:$X$62720,5,0)))","v":""},"",{"$f":"IF(OR(D104=\"\",E104=\"\",F104=\"\"),\"\",IF(AND(G104>0,G104<=CapFinanciera1),Puntajes!$D$12,IF(AND(G104>CapFinanciera1,G104<=CapFinanciera2),Puntajes!$D$13,IF(AND(G104>CapFinanciera2,G104<=CapFinanciera3),Puntajes!$D$14,IF(AND(G104>CapFinanciera3,G104<=CapFinanciera4),Puntajes!$D$15,IF(G104>CapFinanciera4,Puntajes!$D$16,0))))))","v":""}]
[null,null,{"$f":"+'Capacidad Financiera'!B108","v":""},{"$f":"IF(ISERROR(VLOOKUP(C105,'Capacidad Financiera'!$B$12:$X$62720,2,0)),\"\",VLOOKUP(C105,'Capacidad Financiera'!$B$12:$X$3580,2,0))","v":0},{"$f":"IF(OR(C105=\"\",D105=\"\"),\"\",IF(ISERROR(VLOOKUP(D105,'Capacidad Financiera'!$C$13:$X$62720,3,0)),\"\",VLOOKUP(D105,'Capacidad Financiera'!$C$13:$X$62720,3,0)))","v":""},{"$f":"IF(OR(C105=\"\",D105=\"\"),\"\",IF(ISERROR(VLOOKUP(D105,'Capacidad Financiera'!$C$13:$X$62720,5,0)),\"\",VLOOKUP(D105,'Capacidad Financiera'!$C$13:$X$62720,5,0)))","v":""},"",{"$f":"IF(OR(D105=\"\",E105=\"\",F105=\"\"),\"\",IF(AND(G105>0,G105<=CapFinanciera1),Puntajes!$D$12,IF(AND(G105>CapFinanciera1,G105<=CapFinanciera2),Puntajes!$D$13,IF(AND(G105>CapFinanciera2,G105<=CapFinanciera3),Puntajes!$D$14,IF(AND(G105>CapFinanciera3,G105<=CapFinanciera4),Puntajes!$D$15,IF(G105>CapFinanciera4,Puntajes!$D$16,0))))))","v":""}]
[null,null,{"$f":"+'Capacidad Financiera'!B109","v":""},{"$f":"IF(ISERROR(VLOOKUP(C106,'Capacidad Financiera'!$B$12:$X$62720,2,0)),\"\",VLOOKUP(C106,'Capacidad Financiera'!$B$12:$X$3580,2,0))","v":0},{"$f":"IF(OR(C106=\"\",D106=\"\"),\"\",IF(ISERROR(VLOOKUP(D106,'Capacidad Financiera'!$C$13:$X$62720,3,0)),\"\",VLOOKUP(D106,'Capacidad Financiera'!$C$13:$X$62720,3,0)))","v":""},{"$f":"IF(OR(C106=\"\",D106=\"\"),\"\",IF(ISERROR(VLOOKUP(D106,'Capacidad Financiera'!$C$13:$X$62720,5,0)),\"\",VLOOKUP(D106,'Capacidad Financiera'!$C$13:$X$62720,5,0)))","v":""},"",{"$f":"IF(OR(D106=\"\",E106=\"\",F106=\"\"),\"\",IF(AND(G106>0,G106<=CapFinanciera1),Puntajes!$D$12,IF(AND(G106>CapFinanciera1,G106<=CapFinanciera2),Puntajes!$D$13,IF(AND(G106>CapFinanciera2,G106<=CapFinanciera3),Puntajes!$D$14,IF(AND(G106>CapFinanciera3,G106<=CapFinanciera4),Puntajes!$D$15,IF(G106>CapFinanciera4,Puntajes!$D$16,0))))))","v":""}]
[null,null,{"$f":"+'Capacidad Financiera'!B110","v":""},{"$f":"IF(ISERROR(VLOOKUP(C107,'Capacidad Financiera'!$B$12:$X$62720,2,0)),\"\",VLOOKUP(C107,'Capacidad Financiera'!$B$12:$X$3580,2,0))","v":0},{"$f":"IF(OR(C107=\"\",D107=\"\"),\"\",IF(ISERROR(VLOOKUP(D107,'Capacidad Financiera'!$C$13:$X$62720,3,0)),\"\",VLOOKUP(D107,'Capacidad Financiera'!$C$13:$X$62720,3,0)))","v":""},{"$f":"IF(OR(C107=\"\",D107=\"\"),\"\",IF(ISERROR(VLOOKUP(D107,'Capacidad Financiera'!$C$13:$X$62720,5,0)),\"\",VLOOKUP(D107,'Capacidad Financiera'!$C$13:$X$62720,5,0)))","v":""},"",{"$f":"IF(OR(D107=\"\",E107=\"\",F107=\"\"),\"\",IF(AND(G107>0,G107<=CapFinanciera1),Puntajes!$D$12,IF(AND(G107>CapFinanciera1,G107<=CapFinanciera2),Puntajes!$D$13,IF(AND(G107>CapFinanciera2,G107<=CapFinanciera3),Puntajes!$D$14,IF(AND(G107>CapFinanciera3,G107<=CapFinanciera4),Puntajes!$D$15,IF(G107>CapFinanciera4,Puntajes!$D$16,0))))))","v":""}]
[null,null,10,{"$f":"IF(ISERROR(VLOOKUP(C108,'Capacidad Financiera'!$B$12:$X$62720,2,0)),\"\",VLOOKUP(C108,'Capacidad Financiera'!$B$12:$X$3580,2,0))","v":"CONSORCIO AM 034"},{"$f":"IF(C109=\"\",IF(C108<>\"\",IF(ISERROR(VLOOKUP(D108,'Capacidad Financiera'!$C$12:$H$22,3,0)),\"\",VLOOKUP(D108,'Capacidad Financiera'!$C$12:$H$22,3,0))),\"\")","v":""},{"$f":"IF(C109=\"\",IF(C108<>\"\",IF(ISERROR(VLOOKUP(D108,'Capacidad Financiera'!$C$12:$H$22,5,0)),\"\",VLOOKUP(D108,'Capacidad Financiera'!$C$12:$H$22,5,0))),\"\")","v":""},{"$f":"IF(OR(D108=\"\",E108=\"\",F108=\"\"),\"\",IF(OR(E108=0,F108=0),0,E108/F108))","v":""},{"$f":"IF(C109=\"\",IF(AND(E108=\"\",F108=\"\"),\"\",IF(AND(G108>0,G108<=CapFinanciera1),Puntajes!$D$12,IF(AND(G108>CapFinanciera1,G108<=CapFinanciera2),Puntajes!$D$13,IF(AND(G108>CapFinanciera2,G108<=CapFinanciera3),Puntajes!$D$14,IF(AND(G108>CapFinanciera3,G108<=CapFinanciera4),Puntajes!$D$15,IF(G108>CapFinanciera4,Puntajes!$D$16,0)))))),\"\")","v":""}]
[null,null,{"$f":"+'Capacidad Financiera'!B112","v":10.1},{"$f":"IF(ISERROR(VLOOKUP(C109,'Capacidad Financiera'!$B$12:$X$62720,2,0)),\"\",VLOOKUP(C109,'Capacidad Financiera'!$B$12:$X$3580,2,0))","v":"ROGELIO ARDILA TORRES"},{"$f":"IF(OR(C109=\"\",D109=\"\"),\"\",IF(ISERROR(VLOOKUP(D109,'Capacidad Financiera'!$C$13:$X$62720,3,0)),\"\",VLOOKUP(D109,'Capacidad Financiera'!$C$13:$X$62720,3,0)))","v":4279139508},{"$f":"IF(OR(C109=\"\",D109=\"\"),\"\",IF(ISERROR(VLOOKUP(D109,'Capacidad Financiera'!$C$13:$X$62720,5,0)),\"\",VLOOKUP(D109,'Capacidad Financiera'!$C$13:$X$62720,5,0)))","v":471458818},{"$f":"IF(OR(D109=\"\",E109=\"\",F109=\"\"),\"\",IF(OR(E109=0,F109=0),0,E109/F109))","v":9.0763802576707775},{"$f":"IF(OR(D109=\"\",E109=\"\",F109=\"\"),\"\",IF(AND(G109>0,G109<=CapFinanciera1),Puntajes!$D$12,IF(AND(G109>CapFinanciera1,G109<=CapFinanciera2),Puntajes!$D$13,IF(AND(G109>CapFinanciera2,G109<=CapFinanciera3),Puntajes!$D$14,IF(AND(G109>CapFinanciera3,G109<=CapFinanciera4),Puntajes!$D$15,IF(G109>CapFinanciera4,Puntajes!$D$16,0))))))","v":40}]
[null,null,{"$f":"+'Capacidad Financiera'!B113","v":10.199999999999999},{"$f":"IF(ISERROR(VLOOKUP(C110,'Capacidad Financiera'!$B$12:$X$62720,2,0)),\"\",VLOOKUP(C110,'Capacidad Financiera'!$B$12:$X$3580,2,0))","v":"PAVIMENTACIONES MORALES SL"},{"$f":"IF(OR(C110=\"\",D110=\"\"),\"\",IF(ISERROR(VLOOKUP(D110,'Capacidad Financiera'!$C$13:$X$62720,3,0)),\"\",VLOOKUP(D110,'Capacidad Financiera'!$C$13:$X$62720,3,0)))","v":22314154687.650002},{"$f":"IF(OR(C110=\"\",D110=\"\"),\"\",IF(ISERROR(VLOOKUP(D110,'Capacidad Financiera'!$C$13:$X$62720,5,0)),\"\",VLOOKUP(D110,'Capacidad Financiera'!$C$13:$X$62720,5,0)))","v":17866509694.279999},1.2489375412139914,{"$f":"IF(OR(D110=\"\",E110=\"\",F110=\"\"),\"\",IF(AND(G110>0,G110<=CapFinanciera1),Puntajes!$D$12,IF(AND(G110>CapFinanciera1,G110<=CapFinanciera2),Puntajes!$D$13,IF(AND(G110>CapFinanciera2,G110<=CapFinanciera3),Puntajes!$D$14,IF(AND(G110>CapFinanciera3,G110<=CapFinanciera4),Puntajes!$D$15,IF(G110>CapFinanciera4,Puntajes!$D$16,0))))))","v":35}]
[null,null,{"$f":"+'Capacidad Financiera'!B114","v":""},{"$f":"IF(ISERROR(VLOOKUP(C111,'Capacidad Financiera'!$B$12:$X$62720,2,0)),\"\",VLOOKUP(C111,'Capacidad Financiera'!$B$12:$X$3580,2,0))","v":0},{"$f":"IF(OR(C111=\"\",D111=\"\"),\"\",IF(ISERROR(VLOOKUP(D111,'Capacidad Financiera'!$C$13:$X$62720,3,0)),\"\",VLOOKUP(D111,'Capacidad Financiera'!$C$13:$X$62720,3,0)))","v":""},{"$f":"IF(OR(C111=\"\",D111=\"\"),\"\",IF(ISERROR(VLOOKUP(D111,'Capacidad Financiera'!$C$13:$X$62720,5,0)),\"\",VLOOKUP(D111,'Capacidad Financiera'!$C$13:$X$62720,5,0)))","v":""},"",{"$f":"IF(OR(D111=\"\",E111=\"\",F111=\"\"),\"\",IF(AND(G111>0,G111<=CapFinanciera1),Puntajes!$D$12,IF(AND(G111>CapFinanciera1,G111<=CapFinanciera2),Puntajes!$D$13,IF(AND(G111>CapFinanciera2,G111<=CapFinanciera3),Puntajes!$D$14,IF(AND(G111>CapFinanciera3,G111<=CapFinanciera4),Puntajes!$D$15,IF(G111>CapFinanciera4,Puntajes!$D$16,0))))))","v":""}]
[null,null,{"$f":"+'Capacidad Financiera'!B115","v":""},{"$f":"IF(ISERROR(VLOOKUP(C112,'Capacidad Financiera'!$B$12:$X$62720,2,0)),\"\",VLOOKUP(C112,'Capacidad Financiera'!$B$12:$X$3580,2,0))","v":0},{"$f":"IF(OR(C112=\"\",D112=\"\"),\"\",IF(ISERROR(VLOOKUP(D112,'Capacidad Financiera'!$C$13:$X$62720,3,0)),\"\",VLOOKUP(D112,'Capacidad Financiera'!$C$13:$X$62720,3,0)))","v":""},{"$f":"IF(OR(C112=\"\",D112=\"\"),\"\",IF(ISERROR(VLOOKUP(D112,'Capacidad Financiera'!$C$13:$X$62720,5,0)),\"\",VLOOKUP(D112,'Capacidad Financiera'!$C$13:$X$62720,5,0)))","v":""},"",{"$f":"IF(OR(D112=\"\",E112=\"\",F112=\"\"),\"\",IF(AND(G112>0,G112<=CapFinanciera1),Puntajes!$D$12,IF(AND(G112>CapFinanciera1,G112<=CapFinanciera2),Puntajes!$D$13,IF(AND(G112>CapFinanciera2,G112<=CapFinanciera3),Puntajes!$D$14,IF(AND(G112>CapFinanciera3,G112<=CapFinanciera4),Puntajes!$D$15,IF(G112>CapFinanciera4,Puntajes!$D$16,0))))))","v":""}]
[null,null,{"$f":"+'Capacidad Financiera'!B116","v":""},{"$f":"IF(ISERROR(VLOOKUP(C113,'Capacidad Financiera'!$B$12:$X$62720,2,0)),\"\",VLOOKUP(C113,'Capacidad Financiera'!$B$12:$X$3580,2,0))","v":0},{"$f":"IF(OR(C113=\"\",D113=\"\"),\"\",IF(ISERROR(VLOOKUP(D113,'Capacidad Financiera'!$C$13:$X$62720,3,0)),\"\",VLOOKUP(D113,'Capacidad Financiera'!$C$13:$X$62720,3,0)))","v":""},{"$f":"IF(OR(C113=\"\",D113=\"\"),\"\",IF(ISERROR(VLOOKUP(D113,'Capacidad Financiera'!$C$13:$X$62720,5,0)),\"\",VLOOKUP(D113,'Capacidad Financiera'!$C$13:$X$62720,5,0)))","v":""},"",{"$f":"IF(OR(D113=\"\",E113=\"\",F113=\"\"),\"\",IF(AND(G113>0,G113<=CapFinanciera1),Puntajes!$D$12,IF(AND(G113>CapFinanciera1,G113<=CapFinanciera2),Puntajes!$D$13,IF(AND(G113>CapFinanciera2,G113<=CapFinanciera3),Puntajes!$D$14,IF(AND(G113>CapFinanciera3,G113<=CapFinanciera4),Puntajes!$D$15,IF(G113>CapFinanciera4,Puntajes!$D$16,0))))))","v":""}]
[null,null,{"$f":"+'Capacidad Financiera'!B117","v":""},{"$f":"IF(ISERROR(VLOOKUP(C114,'Capacidad Financiera'!$B$12:$X$62720,2,0)),\"\",VLOOKUP(C114,'Capacidad Financiera'!$B$12:$X$3580,2,0))","v":0},{"$f":"IF(OR(C114=\"\",D114=\"\"),\"\",IF(ISERROR(VLOOKUP(D114,'Capacidad Financiera'!$C$13:$X$62720,3,0)),\"\",VLOOKUP(D114,'Capacidad Financiera'!$C$13:$X$62720,3,0)))","v":""},{"$f":"IF(OR(C114=\"\",D114=\"\"),\"\",IF(ISERROR(VLOOKUP(D114,'Capacidad Financiera'!$C$13:$X$62720,5,0)),\"\",VLOOKUP(D114,'Capacidad Financiera'!$C$13:$X$62720,5,0)))","v":""},"",{"$f":"IF(OR(D114=\"\",E114=\"\",F114=\"\"),\"\",IF(AND(G114>0,G114<=CapFinanciera1),Puntajes!$D$12,IF(AND(G114>CapFinanciera1,G114<=CapFinanciera2),Puntajes!$D$13,IF(AND(G114>CapFinanciera2,G114<=CapFinanciera3),Puntajes!$D$14,IF(AND(G114>CapFinanciera3,G114<=CapFinanciera4),Puntajes!$D$15,IF(G114>CapFinanciera4,Puntajes!$D$16,0))))))","v":""}]
[null,null,{"$f":"+'Capacidad Financiera'!B118","v":""},{"$f":"IF(ISERROR(VLOOKUP(C115,'Capacidad Financiera'!$B$12:$X$62720,2,0)),\"\",VLOOKUP(C115,'Capacidad Financiera'!$B$12:$X$3580,2,0))","v":0},{"$f":"IF(OR(C115=\"\",D115=\"\"),\"\",IF(ISERROR(VLOOKUP(D115,'Capacidad Financiera'!$C$13:$X$62720,3,0)),\"\",VLOOKUP(D115,'Capacidad Financiera'!$C$13:$X$62720,3,0)))","v":""},{"$f":"IF(OR(C115=\"\",D115=\"\"),\"\",IF(ISERROR(VLOOKUP(D115,'Capacidad Financiera'!$C$13:$X$62720,5,0)),\"\",VLOOKUP(D115,'Capacidad Financiera'!$C$13:$X$62720,5,0)))","v":""},"",{"$f":"IF(OR(D115=\"\",E115=\"\",F115=\"\"),\"\",IF(AND(G115>0,G115<=CapFinanciera1),Puntajes!$D$12,IF(AND(G115>CapFinanciera1,G115<=CapFinanciera2),Puntajes!$D$13,IF(AND(G115>CapFinanciera2,G115<=CapFinanciera3),Puntajes!$D$14,IF(AND(G115>CapFinanciera3,G115<=CapFinanciera4),Puntajes!$D$15,IF(G115>CapFinanciera4,Puntajes!$D$16,0))))))","v":""}]
[null,null,{"$f":"+'Capacidad Financiera'!B119","v":""},{"$f":"IF(ISERROR(VLOOKUP(C116,'Capacidad Financiera'!$B$12:$X$62720,2,0)),\"\",VLOOKUP(C116,'Capacidad Financiera'!$B$12:$X$3580,2,0))","v":0},{"$f":"IF(OR(C116=\"\",D116=\"\"),\"\",IF(ISERROR(VLOOKUP(D116,'Capacidad Financiera'!$C$13:$X$62720,3,0)),\"\",VLOOKUP(D116,'Capacidad Financiera'!$C$13:$X$62720,3,0)))","v":""},{"$f":"IF(OR(C116=\"\",D116=\"\"),\"\",IF(ISERROR(VLOOKUP(D116,'Capacidad Financiera'!$C$13:$X$62720,5,0)),\"\",VLOOKUP(D116,'Capacidad Financiera'!$C$13:$X$62720,5,0)))","v":""},"",{"$f":"IF(OR(D116=\"\",E116=\"\",F116=\"\"),\"\",IF(AND(G116>0,G116<=CapFinanciera1),Puntajes!$D$12,IF(AND(G116>CapFinanciera1,G116<=CapFinanciera2),Puntajes!$D$13,IF(AND(G116>CapFinanciera2,G116<=CapFinanciera3),Puntajes!$D$14,IF(AND(G116>CapFinanciera3,G116<=CapFinanciera4),Puntajes!$D$15,IF(G116>CapFinanciera4,Puntajes!$D$16,0))))))","v":""}]
[null,null,{"$f":"+'Capacidad Financiera'!B120","v":""},{"$f":"IF(ISERROR(VLOOKUP(C117,'Capacidad Financiera'!$B$12:$X$62720,2,0)),\"\",VLOOKUP(C117,'Capacidad Financiera'!$B$12:$X$3580,2,0))","v":0},{"$f":"IF(OR(C117=\"\",D117=\"\"),\"\",IF(ISERROR(VLOOKUP(D117,'Capacidad Financiera'!$C$13:$X$62720,3,0)),\"\",VLOOKUP(D117,'Capacidad Financiera'!$C$13:$X$62720,3,0)))","v":""},{"$f":"IF(OR(C117=\"\",D117=\"\"),\"\",IF(ISERROR(VLOOKUP(D117,'Capacidad Financiera'!$C$13:$X$62720,5,0)),\"\",VLOOKUP(D117,'Capacidad Financiera'!$C$13:$X$62720,5,0)))","v":""},"",{"$f":"IF(OR(D117=\"\",E117=\"\",F117=\"\"),\"\",IF(AND(G117>0,G117<=CapFinanciera1),Puntajes!$D$12,IF(AND(G117>CapFinanciera1,G117<=CapFinanciera2),Puntajes!$D$13,IF(AND(G117>CapFinanciera2,G117<=CapFinanciera3),Puntajes!$D$14,IF(AND(G117>CapFinanciera3,G117<=CapFinanciera4),Puntajes!$D$15,IF(G117>CapFinanciera4,Puntajes!$D$16,0))))))","v":""}]
[null,null,{"$f":"+'Capacidad Financiera'!B121","v":""},{"$f":"IF(ISERROR(VLOOKUP(C118,'Capacidad Financiera'!$B$12:$X$62720,2,0)),\"\",VLOOKUP(C118,'Capacidad Financiera'!$B$12:$X$3580,2,0))","v":0},{"$f":"IF(OR(C118=\"\",D118=\"\"),\"\",IF(ISERROR(VLOOKUP(D118,'Capacidad Financiera'!$C$13:$X$62720,3,0)),\"\",VLOOKUP(D118,'Capacidad Financiera'!$C$13:$X$62720,3,0)))","v":""},{"$f":"IF(OR(C118=\"\",D118=\"\"),\"\",IF(ISERROR(VLOOKUP(D118,'Capacidad Financiera'!$C$13:$X$62720,5,0)),\"\",VLOOKUP(D118,'Capacidad Financiera'!$C$13:$X$62720,5,0)))","v":""},"",{"$f":"IF(OR(D118=\"\",E118=\"\",F118=\"\"),\"\",IF(AND(G118>0,G118<=CapFinanciera1),Puntajes!$D$12,IF(AND(G118>CapFinanciera1,G118<=CapFinanciera2),Puntajes!$D$13,IF(AND(G118>CapFinanciera2,G118<=CapFinanciera3),Puntajes!$D$14,IF(AND(G118>CapFinanciera3,G118<=CapFinanciera4),Puntajes!$D$15,IF(G118>CapFinanciera4,Puntajes!$D$16,0))))))","v":""}]
[null,null,11,{"$f":"IF(ISERROR(VLOOKUP(C119,'Capacidad Financiera'!$B$12:$X$62720,2,0)),\"\",VLOOKUP(C119,'Capacidad Financiera'!$B$12:$X$3580,2,0))","v":"CONSORCIO INTERVIAS CUNDINAMARCA 2014"},{"$f":"IF(C120=\"\",IF(C119<>\"\",IF(ISERROR(VLOOKUP(D119,'Capacidad Financiera'!$C$12:$H$22,3,0)),\"\",VLOOKUP(D119,'Capacidad Financiera'!$C$12:$H$22,3,0))),\"\")","v":""},{"$f":"IF(C120=\"\",IF(C119<>\"\",IF(ISERROR(VLOOKUP(D119,'Capacidad Financiera'!$C$12:$H$22,5,0)),\"\",VLOOKUP(D119,'Capacidad Financiera'!$C$12:$H$22,5,0))),\"\")","v":""},{"$f":"IF(OR(D119=\"\",E119=\"\",F119=\"\"),\"\",IF(OR(E119=0,F119=0),0,E119/F119))","v":""},{"$f":"IF(C120=\"\",IF(AND(E119=\"\",F119=\"\"),\"\",IF(AND(G119>0,G119<=CapFinanciera1),Puntajes!$D$12,IF(AND(G119>CapFinanciera1,G119<=CapFinanciera2),Puntajes!$D$13,IF(AND(G119>CapFinanciera2,G119<=CapFinanciera3),Puntajes!$D$14,IF(AND(G119>CapFinanciera3,G119<=CapFinanciera4),Puntajes!$D$15,IF(G119>CapFinanciera4,Puntajes!$D$16,0)))))),\"\")","v":""}]
[null,null,{"$f":"+'Capacidad Financiera'!B123","v":11.1},{"$f":"IF(ISERROR(VLOOKUP(C120,'Capacidad Financiera'!$B$12:$X$62720,2,0)),\"\",VLOOKUP(C120,'Capacidad Financiera'!$B$12:$X$3580,2,0))","v":"MBM INGENIERIA S.A.S."},{"$f":"IF(OR(C120=\"\",D120=\"\"),\"\",IF(ISERROR(VLOOKUP(D120,'Capacidad Financiera'!$C$13:$X$62720,3,0)),\"\",VLOOKUP(D120,'Capacidad Financiera'!$C$13:$X$62720,3,0)))","v":1420521431},{"$f":"IF(OR(C120=\"\",D120=\"\"),\"\",IF(ISERROR(VLOOKUP(D120,'Capacidad Financiera'!$C$13:$X$62720,5,0)),\"\",VLOOKUP(D120,'Capacidad Financiera'!$C$13:$X$62720,5,0)))","v":197338257},{"$f":"IF(OR(D120=\"\",E120=\"\",F120=\"\"),\"\",IF(OR(E120=0,F120=0),0,E120/F120))","v":7.1984087251768925},{"$f":"IF(OR(D120=\"\",E120=\"\",F120=\"\"),\"\",IF(AND(G120>0,G120<=CapFinanciera1),Puntajes!$D$12,IF(AND(G120>CapFinanciera1,G120<=CapFinanciera2),Puntajes!$D$13,IF(AND(G120>CapFinanciera2,G120<=CapFinanciera3),Puntajes!$D$14,IF(AND(G120>CapFinanciera3,G120<=CapFinanciera4),Puntajes!$D$15,IF(G120>CapFinanciera4,Puntajes!$D$16,0))))))","v":40}]
[null,null,{"$f":"+'Capacidad Financiera'!B124","v":11.2},{"$f":"IF(ISERROR(VLOOKUP(C121,'Capacidad Financiera'!$B$12:$X$62720,2,0)),\"\",VLOOKUP(C121,'Capacidad Financiera'!$B$12:$X$3580,2,0))","v":"GUEVARA BAQUERO CIA LTDA."},{"$f":"IF(OR(C121=\"\",D121=\"\"),\"\",IF(ISERROR(VLOOKUP(D121,'Capacidad Financiera'!$C$13:$X$62720,3,0)),\"\",VLOOKUP(D121,'Capacidad Financiera'!$C$13:$X$62720,3,0)))","v":510173286},{"$f":"IF(OR(C121=\"\",D121=\"\"),\"\",IF(ISERROR(VLOOKUP(D121,'Capacidad Financiera'!$C$13:$X$62720,5,0)),\"\",VLOOKUP(D121,'Capacidad Financiera'!$C$13:$X$62720,5,0)))","v":32638151},15.631194487702444,{"$f":"IF(OR(D121=\"\",E121=\"\",F121=\"\"),\"\",IF(AND(G121>0,G121<=CapFinanciera1),Puntajes!$D$12,IF(AND(G121>CapFinanciera1,G121<=CapFinanciera2),Puntajes!$D$13,IF(AND(G121>CapFinanciera2,G121<=CapFinanciera3),Puntajes!$D$14,IF(AND(G121>CapFinanciera3,G121<=CapFinanciera4),Puntajes!$D$15,IF(G121>CapFinanciera4,Puntajes!$D$16,0))))))","v":40}]
[null,null,{"$f":"+'Capacidad Financiera'!B125","v":11.299999999999999},{"$f":"IF(ISERROR(VLOOKUP(C122,'Capacidad Financiera'!$B$12:$X$62720,2,0)),\"\",VLOOKUP(C122,'Capacidad Financiera'!$B$12:$X$3580,2,0))","v":"VIGA INGENIERIA S.A.S."},{"$f":"IF(OR(C122=\"\",D122=\"\"),\"\",IF(ISERROR(VLOOKUP(D122,'Capacidad Financiera'!$C$13:$X$62720,3,0)),\"\",VLOOKUP(D122,'Capacidad Financiera'!$C$13:$X$62720,3,0)))","v":455458845},{"$f":"IF(OR(C122=\"\",D122=\"\"),\"\",IF(ISERROR(VLOOKUP(D122,'Capacidad Financiera'!$C$13:$X$62720,5,0)),\"\",VLOOKUP(D122,'Capacidad Financiera'!$C$13:$X$62720,5,0)))","v":75768343},6.0112023962303098,{"$f":"IF(OR(D122=\"\",E122=\"\",F122=\"\"),\"\",IF(AND(G122>0,G122<=CapFinanciera1),Puntajes!$D$12,IF(AND(G122>CapFinanciera1,G122<=CapFinanciera2),Puntajes!$D$13,IF(AND(G122>CapFinanciera2,G122<=CapFinanciera3),Puntajes!$D$14,IF(AND(G122>CapFinanciera3,G122<=CapFinanciera4),Puntajes!$D$15,IF(G122>CapFinanciera4,Puntajes!$D$16,0))))))","v":40}]
[null,null,{"$f":"+'Capacidad Financiera'!B126","v":""},{"$f":"IF(ISERROR(VLOOKUP(C123,'Capacidad Financiera'!$B$12:$X$62720,2,0)),\"\",VLOOKUP(C123,'Capacidad Financiera'!$B$12:$X$3580,2,0))","v":0},{"$f":"IF(OR(C123=\"\",D123=\"\"),\"\",IF(ISERROR(VLOOKUP(D123,'Capacidad Financiera'!$C$13:$X$62720,3,0)),\"\",VLOOKUP(D123,'Capacidad Financiera'!$C$13:$X$62720,3,0)))","v":""},{"$f":"IF(OR(C123=\"\",D123=\"\"),\"\",IF(ISERROR(VLOOKUP(D123,'Capacidad Financiera'!$C$13:$X$62720,5,0)),\"\",VLOOKUP(D123,'Capacidad Financiera'!$C$13:$X$62720,5,0)))","v":""},"",{"$f":"IF(OR(D123=\"\",E123=\"\",F123=\"\"),\"\",IF(AND(G123>0,G123<=CapFinanciera1),Puntajes!$D$12,IF(AND(G123>CapFinanciera1,G123<=CapFinanciera2),Puntajes!$D$13,IF(AND(G123>CapFinanciera2,G123<=CapFinanciera3),Puntajes!$D$14,IF(AND(G123>CapFinanciera3,G123<=CapFinanciera4),Puntajes!$D$15,IF(G123>CapFinanciera4,Puntajes!$D$16,0))))))","v":""}]
[null,null,{"$f":"+'Capacidad Financiera'!B127","v":""},{"$f":"IF(ISERROR(VLOOKUP(C124,'Capacidad Financiera'!$B$12:$X$62720,2,0)),\"\",VLOOKUP(C124,'Capacidad Financiera'!$B$12:$X$3580,2,0))","v":0},{"$f":"IF(OR(C124=\"\",D124=\"\"),\"\",IF(ISERROR(VLOOKUP(D124,'Capacidad Financiera'!$C$13:$X$62720,3,0)),\"\",VLOOKUP(D124,'Capacidad Financiera'!$C$13:$X$62720,3,0)))","v":""},{"$f":"IF(OR(C124=\"\",D124=\"\"),\"\",IF(ISERROR(VLOOKUP(D124,'Capacidad Financiera'!$C$13:$X$62720,5,0)),\"\",VLOOKUP(D124,'Capacidad Financiera'!$C$13:$X$62720,5,0)))","v":""},"",{"$f":"IF(OR(D124=\"\",E124=\"\",F124=\"\"),\"\",IF(AND(G124>0,G124<=CapFinanciera1),Puntajes!$D$12,IF(AND(G124>CapFinanciera1,G124<=CapFinanciera2),Puntajes!$D$13,IF(AND(G124>CapFinanciera2,G124<=CapFinanciera3),Puntajes!$D$14,IF(AND(G124>CapFinanciera3,G124<=CapFinanciera4),Puntajes!$D$15,IF(G124>CapFinanciera4,Puntajes!$D$16,0))))))","v":""}]
[null,null,{"$f":"+'Capacidad Financiera'!B128","v":""},{"$f":"IF(ISERROR(VLOOKUP(C125,'Capacidad Financiera'!$B$12:$X$62720,2,0)),\"\",VLOOKUP(C125,'Capacidad Financiera'!$B$12:$X$3580,2,0))","v":0},{"$f":"IF(OR(C125=\"\",D125=\"\"),\"\",IF(ISERROR(VLOOKUP(D125,'Capacidad Financiera'!$C$13:$X$62720,3,0)),\"\",VLOOKUP(D125,'Capacidad Financiera'!$C$13:$X$62720,3,0)))","v":""},{"$f":"IF(OR(C125=\"\",D125=\"\"),\"\",IF(ISERROR(VLOOKUP(D125,'Capacidad Financiera'!$C$13:$X$62720,5,0)),\"\",VLOOKUP(D125,'Capacidad Financiera'!$C$13:$X$62720,5,0)))","v":""},"",{"$f":"IF(OR(D125=\"\",E125=\"\",F125=\"\"),\"\",IF(AND(G125>0,G125<=CapFinanciera1),Puntajes!$D$12,IF(AND(G125>CapFinanciera1,G125<=CapFinanciera2),Puntajes!$D$13,IF(AND(G125>CapFinanciera2,G125<=CapFinanciera3),Puntajes!$D$14,IF(AND(G125>CapFinanciera3,G125<=CapFinanciera4),Puntajes!$D$15,IF(G125>CapFinanciera4,Puntajes!$D$16,0))))))","v":""}]
[null,null,{"$f":"+'Capacidad Financiera'!B129","v":""},{"$f":"IF(ISERROR(VLOOKUP(C126,'Capacidad Financiera'!$B$12:$X$62720,2,0)),\"\",VLOOKUP(C126,'Capacidad Financiera'!$B$12:$X$3580,2,0))","v":0},{"$f":"IF(OR(C126=\"\",D126=\"\"),\"\",IF(ISERROR(VLOOKUP(D126,'Capacidad Financiera'!$C$13:$X$62720,3,0)),\"\",VLOOKUP(D126,'Capacidad Financiera'!$C$13:$X$62720,3,0)))","v":""},{"$f":"IF(OR(C126=\"\",D126=\"\"),\"\",IF(ISERROR(VLOOKUP(D126,'Capacidad Financiera'!$C$13:$X$62720,5,0)),\"\",VLOOKUP(D126,'Capacidad Financiera'!$C$13:$X$62720,5,0)))","v":""},"",{"$f":"IF(OR(D126=\"\",E126=\"\",F126=\"\"),\"\",IF(AND(G126>0,G126<=CapFinanciera1),Puntajes!$D$12,IF(AND(G126>CapFinanciera1,G126<=CapFinanciera2),Puntajes!$D$13,IF(AND(G126>CapFinanciera2,G126<=CapFinanciera3),Puntajes!$D$14,IF(AND(G126>CapFinanciera3,G126<=CapFinanciera4),Puntajes!$D$15,IF(G126>CapFinanciera4,Puntajes!$D$16,0))))))","v":""}]
[null,null,{"$f":"+'Capacidad Financiera'!B130","v":""},{"$f":"IF(ISERROR(VLOOKUP(C127,'Capacidad Financiera'!$B$12:$X$62720,2,0)),\"\",VLOOKUP(C127,'Capacidad Financiera'!$B$12:$X$3580,2,0))","v":0},{"$f":"IF(OR(C127=\"\",D127=\"\"),\"\",IF(ISERROR(VLOOKUP(D127,'Capacidad Financiera'!$C$13:$X$62720,3,0)),\"\",VLOOKUP(D127,'Capacidad Financiera'!$C$13:$X$62720,3,0)))","v":""},{"$f":"IF(OR(C127=\"\",D127=\"\"),\"\",IF(ISERROR(VLOOKUP(D127,'Capacidad Financiera'!$C$13:$X$62720,5,0)),\"\",VLOOKUP(D127,'Capacidad Financiera'!$C$13:$X$62720,5,0)))","v":""},"",{"$f":"IF(OR(D127=\"\",E127=\"\",F127=\"\"),\"\",IF(AND(G127>0,G127<=CapFinanciera1),Puntajes!$D$12,IF(AND(G127>CapFinanciera1,G127<=CapFinanciera2),Puntajes!$D$13,IF(AND(G127>CapFinanciera2,G127<=CapFinanciera3),Puntajes!$D$14,IF(AND(G127>CapFinanciera3,G127<=CapFinanciera4),Puntajes!$D$15,IF(G127>CapFinanciera4,Puntajes!$D$16,0))))))","v":""}]
[null,null,{"$f":"+'Capacidad Financiera'!B131","v":""},{"$f":"IF(ISERROR(VLOOKUP(C128,'Capacidad Financiera'!$B$12:$X$62720,2,0)),\"\",VLOOKUP(C128,'Capacidad Financiera'!$B$12:$X$3580,2,0))","v":0},{"$f":"IF(OR(C128=\"\",D128=\"\"),\"\",IF(ISERROR(VLOOKUP(D128,'Capacidad Financiera'!$C$13:$X$62720,3,0)),\"\",VLOOKUP(D128,'Capacidad Financiera'!$C$13:$X$62720,3,0)))","v":""},{"$f":"IF(OR(C128=\"\",D128=\"\"),\"\",IF(ISERROR(VLOOKUP(D128,'Capacidad Financiera'!$C$13:$X$62720,5,0)),\"\",VLOOKUP(D128,'Capacidad Financiera'!$C$13:$X$62720,5,0)))","v":""},"",{"$f":"IF(OR(D128=\"\",E128=\"\",F128=\"\"),\"\",IF(AND(G128>0,G128<=CapFinanciera1),Puntajes!$D$12,IF(AND(G128>CapFinanciera1,G128<=CapFinanciera2),Puntajes!$D$13,IF(AND(G128>CapFinanciera2,G128<=CapFinanciera3),Puntajes!$D$14,IF(AND(G128>CapFinanciera3,G128<=CapFinanciera4),Puntajes!$D$15,IF(G128>CapFinanciera4,Puntajes!$D$16,0))))))","v":""}]
[null,null,{"$f":"+'Capacidad Financiera'!B132","v":""},{"$f":"IF(ISERROR(VLOOKUP(C129,'Capacidad Financiera'!$B$12:$X$62720,2,0)),\"\",VLOOKUP(C129,'Capacidad Financiera'!$B$12:$X$3580,2,0))","v":0},{"$f":"IF(OR(C129=\"\",D129=\"\"),\"\",IF(ISERROR(VLOOKUP(D129,'Capacidad Financiera'!$C$13:$X$62720,3,0)),\"\",VLOOKUP(D129,'Capacidad Financiera'!$C$13:$X$62720,3,0)))","v":""},{"$f":"IF(OR(C129=\"\",D129=\"\"),\"\",IF(ISERROR(VLOOKUP(D129,'Capacidad Financiera'!$C$13:$X$62720,5,0)),\"\",VLOOKUP(D129,'Capacidad Financiera'!$C$13:$X$62720,5,0)))","v":""},"",{"$f":"IF(OR(D129=\"\",E129=\"\",F129=\"\"),\"\",IF(AND(G129>0,G129<=CapFinanciera1),Puntajes!$D$12,IF(AND(G129>CapFinanciera1,G129<=CapFinanciera2),Puntajes!$D$13,IF(AND(G129>CapFinanciera2,G129<=CapFinanciera3),Puntajes!$D$14,IF(AND(G129>CapFinanciera3,G129<=CapFinanciera4),Puntajes!$D$15,IF(G129>CapFinanciera4,Puntajes!$D$16,0))))))","v":""}]
[null,null,12,{"$f":"IF(ISERROR(VLOOKUP(C130,'Capacidad Financiera'!$B$12:$X$62720,2,0)),\"\",VLOOKUP(C130,'Capacidad Financiera'!$B$12:$X$3580,2,0))","v":"UNION TEMPORALSANTA MONICA"},{"$f":"IF(C131=\"\",IF(C130<>\"\",IF(ISERROR(VLOOKUP(D130,'Capacidad Financiera'!$C$12:$H$22,3,0)),\"\",VLOOKUP(D130,'Capacidad Financiera'!$C$12:$H$22,3,0))),\"\")","v":""},{"$f":"IF(C131=\"\",IF(C130<>\"\",IF(ISERROR(VLOOKUP(D130,'Capacidad Financiera'!$C$12:$H$22,5,0)),\"\",VLOOKUP(D130,'Capacidad Financiera'!$C$12:$H$22,5,0))),\"\")","v":""},{"$f":"IF(OR(D130=\"\",E130=\"\",F130=\"\"),\"\",IF(OR(E130=0,F130=0),0,E130/F130))","v":""},{"$f":"IF(C131=\"\",IF(AND(E130=\"\",F130=\"\"),\"\",IF(AND(G130>0,G130<=CapFinanciera1),Puntajes!$D$12,IF(AND(G130>CapFinanciera1,G130<=CapFinanciera2),Puntajes!$D$13,IF(AND(G130>CapFinanciera2,G130<=CapFinanciera3),Puntajes!$D$14,IF(AND(G130>CapFinanciera3,G130<=CapFinanciera4),Puntajes!$D$15,IF(G130>CapFinanciera4,Puntajes!$D$16,0)))))),\"\")","v":""}]
[null,null,{"$f":"+'Capacidad Financiera'!B134","v":12.1},{"$f":"IF(ISERROR(VLOOKUP(C131,'Capacidad Financiera'!$B$12:$X$62720,2,0)),\"\",VLOOKUP(C131,'Capacidad Financiera'!$B$12:$X$3580,2,0))","v":"EQUIPOS Y CONSTRUCCIONES VAREGO S.A.S."},{"$f":"IF(OR(C131=\"\",D131=\"\"),\"\",IF(ISERROR(VLOOKUP(D131,'Capacidad Financiera'!$C$13:$X$62720,3,0)),\"\",VLOOKUP(D131,'Capacidad Financiera'!$C$13:$X$62720,3,0)))","v":1817327762},{"$f":"IF(OR(C131=\"\",D131=\"\"),\"\",IF(ISERROR(VLOOKUP(D131,'Capacidad Financiera'!$C$13:$X$62720,5,0)),\"\",VLOOKUP(D131,'Capacidad Financiera'!$C$13:$X$62720,5,0)))","v":109193747},{"$f":"IF(OR(D131=\"\",E131=\"\",F131=\"\"),\"\",IF(OR(E131=0,F131=0),0,E131/F131))","v":16.643148641103046},{"$f":"IF(OR(D131=\"\",E131=\"\",F131=\"\"),\"\",IF(AND(G131>0,G131<=CapFinanciera1),Puntajes!$D$12,IF(AND(G131>CapFinanciera1,G131<=CapFinanciera2),Puntajes!$D$13,IF(AND(G131>CapFinanciera2,G131<=CapFinanciera3),Puntajes!$D$14,IF(AND(G131>CapFinanciera3,G131<=CapFinanciera4),Puntajes!$D$15,IF(G131>CapFinanciera4,Puntajes!$D$16,0))))))","v":40}]
[null,null,{"$f":"+'Capacidad Financiera'!B135","v":12.2},{"$f":"IF(ISERROR(VLOOKUP(C132,'Capacidad Financiera'!$B$12:$X$62720,2,0)),\"\",VLOOKUP(C132,'Capacidad Financiera'!$B$12:$X$3580,2,0))","v":"VAREGO S.A.S."},{"$f":"IF(OR(C132=\"\",D132=\"\"),\"\",IF(ISERROR(VLOOKUP(D132,'Capacidad Financiera'!$C$13:$X$62720,3,0)),\"\",VLOOKUP(D132,'Capacidad Financiera'!$C$13:$X$62720,3,0)))","v":870339760},{"$f":"IF(OR(C132=\"\",D132=\"\"),\"\",IF(ISERROR(VLOOKUP(D132,'Capacidad Financiera'!$C$13:$X$62720,5,0)),\"\",VLOOKUP(D132,'Capacidad Financiera'!$C$13:$X$62720,5,0)))","v":99005026},8.7908644153075617,{"$f":"IF(OR(D132=\"\",E132=\"\",F132=\"\"),\"\",IF(AND(G132>0,G132<=CapFinanciera1),Puntajes!$D$12,IF(AND(G132>CapFinanciera1,G132<=CapFinanciera2),Puntajes!$D$13,IF(AND(G132>CapFinanciera2,G132<=CapFinanciera3),Puntajes!$D$14,IF(AND(G132>CapFinanciera3,G132<=CapFinanciera4),Puntajes!$D$15,IF(G132>CapFinanciera4,Puntajes!$D$16,0))))))","v":40}]
[null,null,{"$f":"+'Capacidad Financiera'!B136","v":12.299999999999999},{"$f":"IF(ISERROR(VLOOKUP(C133,'Capacidad Financiera'!$B$12:$X$62720,2,0)),\"\",VLOOKUP(C133,'Capacidad Financiera'!$B$12:$X$3580,2,0))","v":"INCIVIAS LTDA."},{"$f":"IF(OR(C133=\"\",D133=\"\"),\"\",IF(ISERROR(VLOOKUP(D133,'Capacidad Financiera'!$C$13:$X$62720,3,0)),\"\",VLOOKUP(D133,'Capacidad Financiera'!$C$13:$X$62720,3,0)))","v":1838757727},{"$f":"IF(OR(C133=\"\",D133=\"\"),\"\",IF(ISERROR(VLOOKUP(D133,'Capacidad Financiera'!$C$13:$X$62720,5,0)),\"\",VLOOKUP(D133,'Capacidad Financiera'!$C$13:$X$62720,5,0)))","v":59702156},30.798849659633731,{"$f":"IF(OR(D133=\"\",E133=\"\",F133=\"\"),\"\",IF(AND(G133>0,G133<=CapFinanciera1),Puntajes!$D$12,IF(AND(G133>CapFinanciera1,G133<=CapFinanciera2),Puntajes!$D$13,IF(AND(G133>CapFinanciera2,G133<=CapFinanciera3),Puntajes!$D$14,IF(AND(G133>CapFinanciera3,G133<=CapFinanciera4),Puntajes!$D$15,IF(G133>CapFinanciera4,Puntajes!$D$16,0))))))","v":40}]
[null,null,{"$f":"+'Capacidad Financiera'!B137","v":""},{"$f":"IF(ISERROR(VLOOKUP(C134,'Capacidad Financiera'!$B$12:$X$62720,2,0)),\"\",VLOOKUP(C134,'Capacidad Financiera'!$B$12:$X$3580,2,0))","v":0},{"$f":"IF(OR(C134=\"\",D134=\"\"),\"\",IF(ISERROR(VLOOKUP(D134,'Capacidad Financiera'!$C$13:$X$62720,3,0)),\"\",VLOOKUP(D134,'Capacidad Financiera'!$C$13:$X$62720,3,0)))","v":""},{"$f":"IF(OR(C134=\"\",D134=\"\"),\"\",IF(ISERROR(VLOOKUP(D134,'Capacidad Financiera'!$C$13:$X$62720,5,0)),\"\",VLOOKUP(D134,'Capacidad Financiera'!$C$13:$X$62720,5,0)))","v":""},"",{"$f":"IF(OR(D134=\"\",E134=\"\",F134=\"\"),\"\",IF(AND(G134>0,G134<=CapFinanciera1),Puntajes!$D$12,IF(AND(G134>CapFinanciera1,G134<=CapFinanciera2),Puntajes!$D$13,IF(AND(G134>CapFinanciera2,G134<=CapFinanciera3),Puntajes!$D$14,IF(AND(G134>CapFinanciera3,G134<=CapFinanciera4),Puntajes!$D$15,IF(G134>CapFinanciera4,Puntajes!$D$16,0))))))","v":""}]
[null,null,{"$f":"+'Capacidad Financiera'!B138","v":""},{"$f":"IF(ISERROR(VLOOKUP(C135,'Capacidad Financiera'!$B$12:$X$62720,2,0)),\"\",VLOOKUP(C135,'Capacidad Financiera'!$B$12:$X$3580,2,0))","v":0},{"$f":"IF(OR(C135=\"\",D135=\"\"),\"\",IF(ISERROR(VLOOKUP(D135,'Capacidad Financiera'!$C$13:$X$62720,3,0)),\"\",VLOOKUP(D135,'Capacidad Financiera'!$C$13:$X$62720,3,0)))","v":""},{"$f":"IF(OR(C135=\"\",D135=\"\"),\"\",IF(ISERROR(VLOOKUP(D135,'Capacidad Financiera'!$C$13:$X$62720,5,0)),\"\",VLOOKUP(D135,'Capacidad Financiera'!$C$13:$X$62720,5,0)))","v":""},"",{"$f":"IF(OR(D135=\"\",E135=\"\",F135=\"\"),\"\",IF(AND(G135>0,G135<=CapFinanciera1),Puntajes!$D$12,IF(AND(G135>CapFinanciera1,G135<=CapFinanciera2),Puntajes!$D$13,IF(AND(G135>CapFinanciera2,G135<=CapFinanciera3),Puntajes!$D$14,IF(AND(G135>CapFinanciera3,G135<=CapFinanciera4),Puntajes!$D$15,IF(G135>CapFinanciera4,Puntajes!$D$16,0))))))","v":""}]
[null,null,{"$f":"+'Capacidad Financiera'!B139","v":""},{"$f":"IF(ISERROR(VLOOKUP(C136,'Capacidad Financiera'!$B$12:$X$62720,2,0)),\"\",VLOOKUP(C136,'Capacidad Financiera'!$B$12:$X$3580,2,0))","v":0},{"$f":"IF(OR(C136=\"\",D136=\"\"),\"\",IF(ISERROR(VLOOKUP(D136,'Capacidad Financiera'!$C$13:$X$62720,3,0)),\"\",VLOOKUP(D136,'Capacidad Financiera'!$C$13:$X$62720,3,0)))","v":""},{"$f":"IF(OR(C136=\"\",D136=\"\"),\"\",IF(ISERROR(VLOOKUP(D136,'Capacidad Financiera'!$C$13:$X$62720,5,0)),\"\",VLOOKUP(D136,'Capacidad Financiera'!$C$13:$X$62720,5,0)))","v":""},"",{"$f":"IF(OR(D136=\"\",E136=\"\",F136=\"\"),\"\",IF(AND(G136>0,G136<=CapFinanciera1),Puntajes!$D$12,IF(AND(G136>CapFinanciera1,G136<=CapFinanciera2),Puntajes!$D$13,IF(AND(G136>CapFinanciera2,G136<=CapFinanciera3),Puntajes!$D$14,IF(AND(G136>CapFinanciera3,G136<=CapFinanciera4),Puntajes!$D$15,IF(G136>CapFinanciera4,Puntajes!$D$16,0))))))","v":""}]
[null,null,{"$f":"+'Capacidad Financiera'!B140","v":""},{"$f":"IF(ISERROR(VLOOKUP(C137,'Capacidad Financiera'!$B$12:$X$62720,2,0)),\"\",VLOOKUP(C137,'Capacidad Financiera'!$B$12:$X$3580,2,0))","v":0},{"$f":"IF(OR(C137=\"\",D137=\"\"),\"\",IF(ISERROR(VLOOKUP(D137,'Capacidad Financiera'!$C$13:$X$62720,3,0)),\"\",VLOOKUP(D137,'Capacidad Financiera'!$C$13:$X$62720,3,0)))","v":""},{"$f":"IF(OR(C137=\"\",D137=\"\"),\"\",IF(ISERROR(VLOOKUP(D137,'Capacidad Financiera'!$C$13:$X$62720,5,0)),\"\",VLOOKUP(D137,'Capacidad Financiera'!$C$13:$X$62720,5,0)))","v":""},"",{"$f":"IF(OR(D137=\"\",E137=\"\",F137=\"\"),\"\",IF(AND(G137>0,G137<=CapFinanciera1),Puntajes!$D$12,IF(AND(G137>CapFinanciera1,G137<=CapFinanciera2),Puntajes!$D$13,IF(AND(G137>CapFinanciera2,G137<=CapFinanciera3),Puntajes!$D$14,IF(AND(G137>CapFinanciera3,G137<=CapFinanciera4),Puntajes!$D$15,IF(G137>CapFinanciera4,Puntajes!$D$16,0))))))","v":""}]
[null,null,{"$f":"+'Capacidad Financiera'!B141","v":""},{"$f":"IF(ISERROR(VLOOKUP(C138,'Capacidad Financiera'!$B$12:$X$62720,2,0)),\"\",VLOOKUP(C138,'Capacidad Financiera'!$B$12:$X$3580,2,0))","v":0},{"$f":"IF(OR(C138=\"\",D138=\"\"),\"\",IF(ISERROR(VLOOKUP(D138,'Capacidad Financiera'!$C$13:$X$62720,3,0)),\"\",VLOOKUP(D138,'Capacidad Financiera'!$C$13:$X$62720,3,0)))","v":""},{"$f":"IF(OR(C138=\"\",D138=\"\"),\"\",IF(ISERROR(VLOOKUP(D138,'Capacidad Financiera'!$C$13:$X$62720,5,0)),\"\",VLOOKUP(D138,'Capacidad Financiera'!$C$13:$X$62720,5,0)))","v":""},"",{"$f":"IF(OR(D138=\"\",E138=\"\",F138=\"\"),\"\",IF(AND(G138>0,G138<=CapFinanciera1),Puntajes!$D$12,IF(AND(G138>CapFinanciera1,G138<=CapFinanciera2),Puntajes!$D$13,IF(AND(G138>CapFinanciera2,G138<=CapFinanciera3),Puntajes!$D$14,IF(AND(G138>CapFinanciera3,G138<=CapFinanciera4),Puntajes!$D$15,IF(G138>CapFinanciera4,Puntajes!$D$16,0))))))","v":""}]
[null,null,{"$f":"+'Capacidad Financiera'!B142","v":""},{"$f":"IF(ISERROR(VLOOKUP(C139,'Capacidad Financiera'!$B$12:$X$62720,2,0)),\"\",VLOOKUP(C139,'Capacidad Financiera'!$B$12:$X$3580,2,0))","v":0},{"$f":"IF(OR(C139=\"\",D139=\"\"),\"\",IF(ISERROR(VLOOKUP(D139,'Capacidad Financiera'!$C$13:$X$62720,3,0)),\"\",VLOOKUP(D139,'Capacidad Financiera'!$C$13:$X$62720,3,0)))","v":""},{"$f":"IF(OR(C139=\"\",D139=\"\"),\"\",IF(ISERROR(VLOOKUP(D139,'Capacidad Financiera'!$C$13:$X$62720,5,0)),\"\",VLOOKUP(D139,'Capacidad Financiera'!$C$13:$X$62720,5,0)))","v":""},"",{"$f":"IF(OR(D139=\"\",E139=\"\",F139=\"\"),\"\",IF(AND(G139>0,G139<=CapFinanciera1),Puntajes!$D$12,IF(AND(G139>CapFinanciera1,G139<=CapFinanciera2),Puntajes!$D$13,IF(AND(G139>CapFinanciera2,G139<=CapFinanciera3),Puntajes!$D$14,IF(AND(G139>CapFinanciera3,G139<=CapFinanciera4),Puntajes!$D$15,IF(G139>CapFinanciera4,Puntajes!$D$16,0))))))","v":""}]
[null,null,{"$f":"+'Capacidad Financiera'!B143","v":""},{"$f":"IF(ISERROR(VLOOKUP(C140,'Capacidad Financiera'!$B$12:$X$62720,2,0)),\"\",VLOOKUP(C140,'Capacidad Financiera'!$B$12:$X$3580,2,0))","v":0},{"$f":"IF(OR(C140=\"\",D140=\"\"),\"\",IF(ISERROR(VLOOKUP(D140,'Capacidad Financiera'!$C$13:$X$62720,3,0)),\"\",VLOOKUP(D140,'Capacidad Financiera'!$C$13:$X$62720,3,0)))","v":""},{"$f":"IF(OR(C140=\"\",D140=\"\"),\"\",IF(ISERROR(VLOOKUP(D140,'Capacidad Financiera'!$C$13:$X$62720,5,0)),\"\",VLOOKUP(D140,'Capacidad Financiera'!$C$13:$X$62720,5,0)))","v":""},"",{"$f":"IF(OR(D140=\"\",E140=\"\",F140=\"\"),\"\",IF(AND(G140>0,G140<=CapFinanciera1),Puntajes!$D$12,IF(AND(G140>CapFinanciera1,G140<=CapFinanciera2),Puntajes!$D$13,IF(AND(G140>CapFinanciera2,G140<=CapFinanciera3),Puntajes!$D$14,IF(AND(G140>CapFinanciera3,G140<=CapFinanciera4),Puntajes!$D$15,IF(G140>CapFinanciera4,Puntajes!$D$16,0))))))","v":""}]
[null,null,13,{"$f":"IF(ISERROR(VLOOKUP(C141,'Capacidad Financiera'!$B$12:$X$62720,2,0)),\"\",VLOOKUP(C141,'Capacidad Financiera'!$B$12:$X$3580,2,0))","v":"CONSORCIO HD"},{"$f":"IF(C142=\"\",IF(C141<>\"\",IF(ISERROR(VLOOKUP(D141,'Capacidad Financiera'!$C$12:$H$22,3,0)),\"\",VLOOKUP(D141,'Capacidad Financiera'!$C$12:$H$22,3,0))),\"\")","v":""},{"$f":"IF(C142=\"\",IF(C141<>\"\",IF(ISERROR(VLOOKUP(D141,'Capacidad Financiera'!$C$12:$H$22,5,0)),\"\",VLOOKUP(D141,'Capacidad Financiera'!$C$12:$H$22,5,0))),\"\")","v":""},{"$f":"IF(OR(D141=\"\",E141=\"\",F141=\"\"),\"\",IF(OR(E141=0,F141=0),0,E141/F141))","v":""},{"$f":"IF(C142=\"\",IF(AND(E141=\"\",F141=\"\"),\"\",IF(AND(G141>0,G141<=CapFinanciera1),Puntajes!$D$12,IF(AND(G141>CapFinanciera1,G141<=CapFinanciera2),Puntajes!$D$13,IF(AND(G141>CapFinanciera2,G141<=CapFinanciera3),Puntajes!$D$14,IF(AND(G141>CapFinanciera3,G141<=CapFinanciera4),Puntajes!$D$15,IF(G141>CapFinanciera4,Puntajes!$D$16,0)))))),\"\")","v":""}]
[null,null,{"$f":"+'Capacidad Financiera'!B145","v":13.1},{"$f":"IF(ISERROR(VLOOKUP(C142,'Capacidad Financiera'!$B$12:$X$62720,2,0)),\"\",VLOOKUP(C142,'Capacidad Financiera'!$B$12:$X$3580,2,0))","v":"OLMEDA S.A.S"},{"$f":"IF(OR(C142=\"\",D142=\"\"),\"\",IF(ISERROR(VLOOKUP(D142,'Capacidad Financiera'!$C$13:$X$62720,3,0)),\"\",VLOOKUP(D142,'Capacidad Financiera'!$C$13:$X$62720,3,0)))","v":2438502512},{"$f":"IF(OR(C142=\"\",D142=\"\"),\"\",IF(ISERROR(VLOOKUP(D142,'Capacidad Financiera'!$C$13:$X$62720,5,0)),\"\",VLOOKUP(D142,'Capacidad Financiera'!$C$13:$X$62720,5,0)))","v":410044353},{"$f":"IF(OR(D142=\"\",E142=\"\",F142=\"\"),\"\",IF(OR(E142=0,F142=0),0,E142/F142))","v":5.9469237758287088},{"$f":"IF(OR(D142=\"\",E142=\"\",F142=\"\"),\"\",IF(AND(G142>0,G142<=CapFinanciera1),Puntajes!$D$12,IF(AND(G142>CapFinanciera1,G142<=CapFinanciera2),Puntajes!$D$13,IF(AND(G142>CapFinanciera2,G142<=CapFinanciera3),Puntajes!$D$14,IF(AND(G142>CapFinanciera3,G142<=CapFinanciera4),Puntajes!$D$15,IF(G142>CapFinanciera4,Puntajes!$D$16,0))))))","v":40}]
[null,null,{"$f":"+'Capacidad Financiera'!B146","v":13.2},{"$f":"IF(ISERROR(VLOOKUP(C143,'Capacidad Financiera'!$B$12:$X$62720,2,0)),\"\",VLOOKUP(C143,'Capacidad Financiera'!$B$12:$X$3580,2,0))","v":"HD CONSTRUCCIONES S.A.S."},{"$f":"IF(OR(C143=\"\",D143=\"\"),\"\",IF(ISERROR(VLOOKUP(D143,'Capacidad Financiera'!$C$13:$X$62720,3,0)),\"\",VLOOKUP(D143,'Capacidad Financiera'!$C$13:$X$62720,3,0)))","v":50000000},{"$f":"IF(OR(C143=\"\",D143=\"\"),\"\",IF(ISERROR(VLOOKUP(D143,'Capacidad Financiera'!$C$13:$X$62720,5,0)),\"\",VLOOKUP(D143,'Capacidad Financiera'!$C$13:$X$62720,5,0)))","v":0},0,{"$f":"IF(OR(D143=\"\",E143=\"\",F143=\"\"),\"\",IF(AND(G143>0,G143<=CapFinanciera1),Puntajes!$D$12,IF(AND(G143>CapFinanciera1,G143<=CapFinanciera2),Puntajes!$D$13,IF(AND(G143>CapFinanciera2,G143<=CapFinanciera3),Puntajes!$D$14,IF(AND(G143>CapFinanciera3,G143<=CapFinanciera4),Puntajes!$D$15,IF(G143>CapFinanciera4,Puntajes!$D$16,0))))))","v":0}]
[null,null,{"$f":"+'Capacidad Financiera'!B147","v":13.299999999999999},{"$f":"IF(ISERROR(VLOOKUP(C144,'Capacidad Financiera'!$B$12:$X$62720,2,0)),\"\",VLOOKUP(C144,'Capacidad Financiera'!$B$12:$X$3580,2,0))","v":"HECTOR GIRALDO JARAMILLO"},{"$f":"IF(OR(C144=\"\",D144=\"\"),\"\",IF(ISERROR(VLOOKUP(D144,'Capacidad Financiera'!$C$13:$X$62720,3,0)),\"\",VLOOKUP(D144,'Capacidad Financiera'!$C$13:$X$62720,3,0)))","v":695668088},{"$f":"IF(OR(C144=\"\",D144=\"\"),\"\",IF(ISERROR(VLOOKUP(D144,'Capacidad Financiera'!$C$13:$X$62720,5,0)),\"\",VLOOKUP(D144,'Capacidad Financiera'!$C$13:$X$62720,5,0)))","v":147013047},4.7320159822277539,{"$f":"IF(OR(D144=\"\",E144=\"\",F144=\"\"),\"\",IF(AND(G144>0,G144<=CapFinanciera1),Puntajes!$D$12,IF(AND(G144>CapFinanciera1,G144<=CapFinanciera2),Puntajes!$D$13,IF(AND(G144>CapFinanciera2,G144<=CapFinanciera3),Puntajes!$D$14,IF(AND(G144>CapFinanciera3,G144<=CapFinanciera4),Puntajes!$D$15,IF(G144>CapFinanciera4,Puntajes!$D$16,0))))))","v":40}]
[null,null,{"$f":"+'Capacidad Financiera'!B148","v":""},{"$f":"IF(ISERROR(VLOOKUP(C145,'Capacidad Financiera'!$B$12:$X$62720,2,0)),\"\",VLOOKUP(C145,'Capacidad Financiera'!$B$12:$X$3580,2,0))","v":0},{"$f":"IF(OR(C145=\"\",D145=\"\"),\"\",IF(ISERROR(VLOOKUP(D145,'Capacidad Financiera'!$C$13:$X$62720,3,0)),\"\",VLOOKUP(D145,'Capacidad Financiera'!$C$13:$X$62720,3,0)))","v":""},{"$f":"IF(OR(C145=\"\",D145=\"\"),\"\",IF(ISERROR(VLOOKUP(D145,'Capacidad Financiera'!$C$13:$X$62720,5,0)),\"\",VLOOKUP(D145,'Capacidad Financiera'!$C$13:$X$62720,5,0)))","v":""},"",{"$f":"IF(OR(D145=\"\",E145=\"\",F145=\"\"),\"\",IF(AND(G145>0,G145<=CapFinanciera1),Puntajes!$D$12,IF(AND(G145>CapFinanciera1,G145<=CapFinanciera2),Puntajes!$D$13,IF(AND(G145>CapFinanciera2,G145<=CapFinanciera3),Puntajes!$D$14,IF(AND(G145>CapFinanciera3,G145<=CapFinanciera4),Puntajes!$D$15,IF(G145>CapFinanciera4,Puntajes!$D$16,0))))))","v":""}]
[null,null,{"$f":"+'Capacidad Financiera'!B149","v":""},{"$f":"IF(ISERROR(VLOOKUP(C146,'Capacidad Financiera'!$B$12:$X$62720,2,0)),\"\",VLOOKUP(C146,'Capacidad Financiera'!$B$12:$X$3580,2,0))","v":0},{"$f":"IF(OR(C146=\"\",D146=\"\"),\"\",IF(ISERROR(VLOOKUP(D146,'Capacidad Financiera'!$C$13:$X$62720,3,0)),\"\",VLOOKUP(D146,'Capacidad Financiera'!$C$13:$X$62720,3,0)))","v":""},{"$f":"IF(OR(C146=\"\",D146=\"\"),\"\",IF(ISERROR(VLOOKUP(D146,'Capacidad Financiera'!$C$13:$X$62720,5,0)),\"\",VLOOKUP(D146,'Capacidad Financiera'!$C$13:$X$62720,5,0)))","v":""},"",{"$f":"IF(OR(D146=\"\",E146=\"\",F146=\"\"),\"\",IF(AND(G146>0,G146<=CapFinanciera1),Puntajes!$D$12,IF(AND(G146>CapFinanciera1,G146<=CapFinanciera2),Puntajes!$D$13,IF(AND(G146>CapFinanciera2,G146<=CapFinanciera3),Puntajes!$D$14,IF(AND(G146>CapFinanciera3,G146<=CapFinanciera4),Puntajes!$D$15,IF(G146>CapFinanciera4,Puntajes!$D$16,0))))))","v":""}]
[null,null,{"$f":"+'Capacidad Financiera'!B150","v":""},{"$f":"IF(ISERROR(VLOOKUP(C147,'Capacidad Financiera'!$B$12:$X$62720,2,0)),\"\",VLOOKUP(C147,'Capacidad Financiera'!$B$12:$X$3580,2,0))","v":0},{"$f":"IF(OR(C147=\"\",D147=\"\"),\"\",IF(ISERROR(VLOOKUP(D147,'Capacidad Financiera'!$C$13:$X$62720,3,0)),\"\",VLOOKUP(D147,'Capacidad Financiera'!$C$13:$X$62720,3,0)))","v":""},{"$f":"IF(OR(C147=\"\",D147=\"\"),\"\",IF(ISERROR(VLOOKUP(D147,'Capacidad Financiera'!$C$13:$X$62720,5,0)),\"\",VLOOKUP(D147,'Capacidad Financiera'!$C$13:$X$62720,5,0)))","v":""},"",{"$f":"IF(OR(D147=\"\",E147=\"\",F147=\"\"),\"\",IF(AND(G147>0,G147<=CapFinanciera1),Puntajes!$D$12,IF(AND(G147>CapFinanciera1,G147<=CapFinanciera2),Puntajes!$D$13,IF(AND(G147>CapFinanciera2,G147<=CapFinanciera3),Puntajes!$D$14,IF(AND(G147>CapFinanciera3,G147<=CapFinanciera4),Puntajes!$D$15,IF(G147>CapFinanciera4,Puntajes!$D$16,0))))))","v":""}]
[null,null,{"$f":"+'Capacidad Financiera'!B151","v":""},{"$f":"IF(ISERROR(VLOOKUP(C148,'Capacidad Financiera'!$B$12:$X$62720,2,0)),\"\",VLOOKUP(C148,'Capacidad Financiera'!$B$12:$X$3580,2,0))","v":0},{"$f":"IF(OR(C148=\"\",D148=\"\"),\"\",IF(ISERROR(VLOOKUP(D148,'Capacidad Financiera'!$C$13:$X$62720,3,0)),\"\",VLOOKUP(D148,'Capacidad Financiera'!$C$13:$X$62720,3,0)))","v":""},{"$f":"IF(OR(C148=\"\",D148=\"\"),\"\",IF(ISERROR(VLOOKUP(D148,'Capacidad Financiera'!$C$13:$X$62720,5,0)),\"\",VLOOKUP(D148,'Capacidad Financiera'!$C$13:$X$62720,5,0)))","v":""},"",{"$f":"IF(OR(D148=\"\",E148=\"\",F148=\"\"),\"\",IF(AND(G148>0,G148<=CapFinanciera1),Puntajes!$D$12,IF(AND(G148>CapFinanciera1,G148<=CapFinanciera2),Puntajes!$D$13,IF(AND(G148>CapFinanciera2,G148<=CapFinanciera3),Puntajes!$D$14,IF(AND(G148>CapFinanciera3,G148<=CapFinanciera4),Puntajes!$D$15,IF(G148>CapFinanciera4,Puntajes!$D$16,0))))))","v":""}]
[null,null,{"$f":"+'Capacidad Financiera'!B152","v":""},{"$f":"IF(ISERROR(VLOOKUP(C149,'Capacidad Financiera'!$B$12:$X$62720,2,0)),\"\",VLOOKUP(C149,'Capacidad Financiera'!$B$12:$X$3580,2,0))","v":0},{"$f":"IF(OR(C149=\"\",D149=\"\"),\"\",IF(ISERROR(VLOOKUP(D149,'Capacidad Financiera'!$C$13:$X$62720,3,0)),\"\",VLOOKUP(D149,'Capacidad Financiera'!$C$13:$X$62720,3,0)))","v":""},{"$f":"IF(OR(C149=\"\",D149=\"\"),\"\",IF(ISERROR(VLOOKUP(D149,'Capacidad Financiera'!$C$13:$X$62720,5,0)),\"\",VLOOKUP(D149,'Capacidad Financiera'!$C$13:$X$62720,5,0)))","v":""},"",{"$f":"IF(OR(D149=\"\",E149=\"\",F149=\"\"),\"\",IF(AND(G149>0,G149<=CapFinanciera1),Puntajes!$D$12,IF(AND(G149>CapFinanciera1,G149<=CapFinanciera2),Puntajes!$D$13,IF(AND(G149>CapFinanciera2,G149<=CapFinanciera3),Puntajes!$D$14,IF(AND(G149>CapFinanciera3,G149<=CapFinanciera4),Puntajes!$D$15,IF(G149>CapFinanciera4,Puntajes!$D$16,0))))))","v":""}]
[null,null,{"$f":"+'Capacidad Financiera'!B153","v":""},{"$f":"IF(ISERROR(VLOOKUP(C150,'Capacidad Financiera'!$B$12:$X$62720,2,0)),\"\",VLOOKUP(C150,'Capacidad Financiera'!$B$12:$X$3580,2,0))","v":0},{"$f":"IF(OR(C150=\"\",D150=\"\"),\"\",IF(ISERROR(VLOOKUP(D150,'Capacidad Financiera'!$C$13:$X$62720,3,0)),\"\",VLOOKUP(D150,'Capacidad Financiera'!$C$13:$X$62720,3,0)))","v":""},{"$f":"IF(OR(C150=\"\",D150=\"\"),\"\",IF(ISERROR(VLOOKUP(D150,'Capacidad Financiera'!$C$13:$X$62720,5,0)),\"\",VLOOKUP(D150,'Capacidad Financiera'!$C$13:$X$62720,5,0)))","v":""},"",{"$f":"IF(OR(D150=\"\",E150=\"\",F150=\"\"),\"\",IF(AND(G150>0,G150<=CapFinanciera1),Puntajes!$D$12,IF(AND(G150>CapFinanciera1,G150<=CapFinanciera2),Puntajes!$D$13,IF(AND(G150>CapFinanciera2,G150<=CapFinanciera3),Puntajes!$D$14,IF(AND(G150>CapFinanciera3,G150<=CapFinanciera4),Puntajes!$D$15,IF(G150>CapFinanciera4,Puntajes!$D$16,0))))))","v":""}]
[null,null,{"$f":"+'Capacidad Financiera'!B154","v":""},{"$f":"IF(ISERROR(VLOOKUP(C151,'Capacidad Financiera'!$B$12:$X$62720,2,0)),\"\",VLOOKUP(C151,'Capacidad Financiera'!$B$12:$X$3580,2,0))","v":0},{"$f":"IF(OR(C151=\"\",D151=\"\"),\"\",IF(ISERROR(VLOOKUP(D151,'Capacidad Financiera'!$C$13:$X$62720,3,0)),\"\",VLOOKUP(D151,'Capacidad Financiera'!$C$13:$X$62720,3,0)))","v":""},{"$f":"IF(OR(C151=\"\",D151=\"\"),\"\",IF(ISERROR(VLOOKUP(D151,'Capacidad Financiera'!$C$13:$X$62720,5,0)),\"\",VLOOKUP(D151,'Capacidad Financiera'!$C$13:$X$62720,5,0)))","v":""},"",{"$f":"IF(OR(D151=\"\",E151=\"\",F151=\"\"),\"\",IF(AND(G151>0,G151<=CapFinanciera1),Puntajes!$D$12,IF(AND(G151>CapFinanciera1,G151<=CapFinanciera2),Puntajes!$D$13,IF(AND(G151>CapFinanciera2,G151<=CapFinanciera3),Puntajes!$D$14,IF(AND(G151>CapFinanciera3,G151<=CapFinanciera4),Puntajes!$D$15,IF(G151>CapFinanciera4,Puntajes!$D$16,0))))))","v":""}]
[null,null,14,{"$f":"IF(ISERROR(VLOOKUP(C152,'Capacidad Financiera'!$B$12:$X$62720,2,0)),\"\",VLOOKUP(C152,'Capacidad Financiera'!$B$12:$X$3580,2,0))","v":"CONSORCIO CONXIE 034-14"},{"$f":"IF(C153=\"\",IF(C152<>\"\",IF(ISERROR(VLOOKUP(D152,'Capacidad Financiera'!$C$12:$H$22,3,0)),\"\",VLOOKUP(D152,'Capacidad Financiera'!$C$12:$H$22,3,0))),\"\")","v":""},{"$f":"IF(C153=\"\",IF(C152<>\"\",IF(ISERROR(VLOOKUP(D152,'Capacidad Financiera'!$C$12:$H$22,5,0)),\"\",VLOOKUP(D152,'Capacidad Financiera'!$C$12:$H$22,5,0))),\"\")","v":""},{"$f":"IF(OR(D152=\"\",E152=\"\",F152=\"\"),\"\",IF(OR(E152=0,F152=0),0,E152/F152))","v":""},{"$f":"IF(C153=\"\",IF(AND(E152=\"\",F152=\"\"),\"\",IF(AND(G152>0,G152<=CapFinanciera1),Puntajes!$D$12,IF(AND(G152>CapFinanciera1,G152<=CapFinanciera2),Puntajes!$D$13,IF(AND(G152>CapFinanciera2,G152<=CapFinanciera3),Puntajes!$D$14,IF(AND(G152>CapFinanciera3,G152<=CapFinanciera4),Puntajes!$D$15,IF(G152>CapFinanciera4,Puntajes!$D$16,0)))))),\"\")","v":""}]
[null,null,{"$f":"+'Capacidad Financiera'!B156","v":14.1},{"$f":"IF(ISERROR(VLOOKUP(C153,'Capacidad Financiera'!$B$12:$X$62720,2,0)),\"\",VLOOKUP(C153,'Capacidad Financiera'!$B$12:$X$3580,2,0))","v":"CONCREARMADO LTDA."},{"$f":"IF(OR(C153=\"\",D153=\"\"),\"\",IF(ISERROR(VLOOKUP(D153,'Capacidad Financiera'!$C$13:$X$62720,3,0)),\"\",VLOOKUP(D153,'Capacidad Financiera'!$C$13:$X$62720,3,0)))","v":3252320445},{"$f":"IF(OR(C153=\"\",D153=\"\"),\"\",IF(ISERROR(VLOOKUP(D153,'Capacidad Financiera'!$C$13:$X$62720,5,0)),\"\",VLOOKUP(D153,'Capacidad Financiera'!$C$13:$X$62720,5,0)))","v":962999030},{"$f":"IF(OR(D153=\"\",E153=\"\",F153=\"\"),\"\",IF(OR(E153=0,F153=0),0,E153/F153))","v":3.3772831993402943},{"$f":"IF(OR(D153=\"\",E153=\"\",F153=\"\"),\"\",IF(AND(G153>0,G153<=CapFinanciera1),Puntajes!$D$12,IF(AND(G153>CapFinanciera1,G153<=CapFinanciera2),Puntajes!$D$13,IF(AND(G153>CapFinanciera2,G153<=CapFinanciera3),Puntajes!$D$14,IF(AND(G153>CapFinanciera3,G153<=CapFinanciera4),Puntajes!$D$15,IF(G153>CapFinanciera4,Puntajes!$D$16,0))))))","v":40}]
[null,null,{"$f":"+'Capacidad Financiera'!B157","v":14.2},{"$f":"IF(ISERROR(VLOOKUP(C154,'Capacidad Financiera'!$B$12:$X$62720,2,0)),\"\",VLOOKUP(C154,'Capacidad Financiera'!$B$12:$X$3580,2,0))","v":"JAIME VARGAS GALINDO"},{"$f":"IF(OR(C154=\"\",D154=\"\"),\"\",IF(ISERROR(VLOOKUP(D154,'Capacidad Financiera'!$C$13:$X$62720,3,0)),\"\",VLOOKUP(D154,'Capacidad Financiera'!$C$13:$X$62720,3,0)))","v":7597218000},{"$f":"IF(OR(C154=\"\",D154=\"\"),\"\",IF(ISERROR(VLOOKUP(D154,'Capacidad Financiera'!$C$13:$X$62720,5,0)),\"\",VLOOKUP(D154,'Capacidad Financiera'!$C$13:$X$62720,5,0)))","v":1021520000},7.437170099459629,{"$f":"IF(OR(D154=\"\",E154=\"\",F154=\"\"),\"\",IF(AND(G154>0,G154<=CapFinanciera1),Puntajes!$D$12,IF(AND(G154>CapFinanciera1,G154<=CapFinanciera2),Puntajes!$D$13,IF(AND(G154>CapFinanciera2,G154<=CapFinanciera3),Puntajes!$D$14,IF(AND(G154>CapFinanciera3,G154<=CapFinanciera4),Puntajes!$D$15,IF(G154>CapFinanciera4,Puntajes!$D$16,0))))))","v":40}]
[null,null,{"$f":"+'Capacidad Financiera'!B158","v":""},{"$f":"IF(ISERROR(VLOOKUP(C155,'Capacidad Financiera'!$B$12:$X$62720,2,0)),\"\",VLOOKUP(C155,'Capacidad Financiera'!$B$12:$X$3580,2,0))","v":0},{"$f":"IF(OR(C155=\"\",D155=\"\"),\"\",IF(ISERROR(VLOOKUP(D155,'Capacidad Financiera'!$C$13:$X$62720,3,0)),\"\",VLOOKUP(D155,'Capacidad Financiera'!$C$13:$X$62720,3,0)))","v":""},{"$f":"IF(OR(C155=\"\",D155=\"\"),\"\",IF(ISERROR(VLOOKUP(D155,'Capacidad Financiera'!$C$13:$X$62720,5,0)),\"\",VLOOKUP(D155,'Capacidad Financiera'!$C$13:$X$62720,5,0)))","v":""},"",{"$f":"IF(OR(D155=\"\",E155=\"\",F155=\"\"),\"\",IF(AND(G155>0,G155<=CapFinanciera1),Puntajes!$D$12,IF(AND(G155>CapFinanciera1,G155<=CapFinanciera2),Puntajes!$D$13,IF(AND(G155>CapFinanciera2,G155<=CapFinanciera3),Puntajes!$D$14,IF(AND(G155>CapFinanciera3,G155<=CapFinanciera4),Puntajes!$D$15,IF(G155>CapFinanciera4,Puntajes!$D$16,0))))))","v":""}]
[null,null,{"$f":"+'Capacidad Financiera'!B159","v":""},{"$f":"IF(ISERROR(VLOOKUP(C156,'Capacidad Financiera'!$B$12:$X$62720,2,0)),\"\",VLOOKUP(C156,'Capacidad Financiera'!$B$12:$X$3580,2,0))","v":0},{"$f":"IF(OR(C156=\"\",D156=\"\"),\"\",IF(ISERROR(VLOOKUP(D156,'Capacidad Financiera'!$C$13:$X$62720,3,0)),\"\",VLOOKUP(D156,'Capacidad Financiera'!$C$13:$X$62720,3,0)))","v":""},{"$f":"IF(OR(C156=\"\",D156=\"\"),\"\",IF(ISERROR(VLOOKUP(D156,'Capacidad Financiera'!$C$13:$X$62720,5,0)),\"\",VLOOKUP(D156,'Capacidad Financiera'!$C$13:$X$62720,5,0)))","v":""},"",{"$f":"IF(OR(D156=\"\",E156=\"\",F156=\"\"),\"\",IF(AND(G156>0,G156<=CapFinanciera1),Puntajes!$D$12,IF(AND(G156>CapFinanciera1,G156<=CapFinanciera2),Puntajes!$D$13,IF(AND(G156>CapFinanciera2,G156<=CapFinanciera3),Puntajes!$D$14,IF(AND(G156>CapFinanciera3,G156<=CapFinanciera4),Puntajes!$D$15,IF(G156>CapFinanciera4,Puntajes!$D$16,0))))))","v":""}]
[null,null,{"$f":"+'Capacidad Financiera'!B160","v":""},{"$f":"IF(ISERROR(VLOOKUP(C157,'Capacidad Financiera'!$B$12:$X$62720,2,0)),\"\",VLOOKUP(C157,'Capacidad Financiera'!$B$12:$X$3580,2,0))","v":0},{"$f":"IF(OR(C157=\"\",D157=\"\"),\"\",IF(ISERROR(VLOOKUP(D157,'Capacidad Financiera'!$C$13:$X$62720,3,0)),\"\",VLOOKUP(D157,'Capacidad Financiera'!$C$13:$X$62720,3,0)))","v":""},{"$f":"IF(OR(C157=\"\",D157=\"\"),\"\",IF(ISERROR(VLOOKUP(D157,'Capacidad Financiera'!$C$13:$X$62720,5,0)),\"\",VLOOKUP(D157,'Capacidad Financiera'!$C$13:$X$62720,5,0)))","v":""},"",{"$f":"IF(OR(D157=\"\",E157=\"\",F157=\"\"),\"\",IF(AND(G157>0,G157<=CapFinanciera1),Puntajes!$D$12,IF(AND(G157>CapFinanciera1,G157<=CapFinanciera2),Puntajes!$D$13,IF(AND(G157>CapFinanciera2,G157<=CapFinanciera3),Puntajes!$D$14,IF(AND(G157>CapFinanciera3,G157<=CapFinanciera4),Puntajes!$D$15,IF(G157>CapFinanciera4,Puntajes!$D$16,0))))))","v":""}]
[null,null,{"$f":"+'Capacidad Financiera'!B161","v":""},{"$f":"IF(ISERROR(VLOOKUP(C158,'Capacidad Financiera'!$B$12:$X$62720,2,0)),\"\",VLOOKUP(C158,'Capacidad Financiera'!$B$12:$X$3580,2,0))","v":0},{"$f":"IF(OR(C158=\"\",D158=\"\"),\"\",IF(ISERROR(VLOOKUP(D158,'Capacidad Financiera'!$C$13:$X$62720,3,0)),\"\",VLOOKUP(D158,'Capacidad Financiera'!$C$13:$X$62720,3,0)))","v":""},{"$f":"IF(OR(C158=\"\",D158=\"\"),\"\",IF(ISERROR(VLOOKUP(D158,'Capacidad Financiera'!$C$13:$X$62720,5,0)),\"\",VLOOKUP(D158,'Capacidad Financiera'!$C$13:$X$62720,5,0)))","v":""},"",{"$f":"IF(OR(D158=\"\",E158=\"\",F158=\"\"),\"\",IF(AND(G158>0,G158<=CapFinanciera1),Puntajes!$D$12,IF(AND(G158>CapFinanciera1,G158<=CapFinanciera2),Puntajes!$D$13,IF(AND(G158>CapFinanciera2,G158<=CapFinanciera3),Puntajes!$D$14,IF(AND(G158>CapFinanciera3,G158<=CapFinanciera4),Puntajes!$D$15,IF(G158>CapFinanciera4,Puntajes!$D$16,0))))))","v":""}]
[null,null,{"$f":"+'Capacidad Financiera'!B162","v":""},{"$f":"IF(ISERROR(VLOOKUP(C159,'Capacidad Financiera'!$B$12:$X$62720,2,0)),\"\",VLOOKUP(C159,'Capacidad Financiera'!$B$12:$X$3580,2,0))","v":0},{"$f":"IF(OR(C159=\"\",D159=\"\"),\"\",IF(ISERROR(VLOOKUP(D159,'Capacidad Financiera'!$C$13:$X$62720,3,0)),\"\",VLOOKUP(D159,'Capacidad Financiera'!$C$13:$X$62720,3,0)))","v":""},{"$f":"IF(OR(C159=\"\",D159=\"\"),\"\",IF(ISERROR(VLOOKUP(D159,'Capacidad Financiera'!$C$13:$X$62720,5,0)),\"\",VLOOKUP(D159,'Capacidad Financiera'!$C$13:$X$62720,5,0)))","v":""},"",{"$f":"IF(OR(D159=\"\",E159=\"\",F159=\"\"),\"\",IF(AND(G159>0,G159<=CapFinanciera1),Puntajes!$D$12,IF(AND(G159>CapFinanciera1,G159<=CapFinanciera2),Puntajes!$D$13,IF(AND(G159>CapFinanciera2,G159<=CapFinanciera3),Puntajes!$D$14,IF(AND(G159>CapFinanciera3,G159<=CapFinanciera4),Puntajes!$D$15,IF(G159>CapFinanciera4,Puntajes!$D$16,0))))))","v":""}]
[null,null,{"$f":"+'Capacidad Financiera'!B163","v":""},{"$f":"IF(ISERROR(VLOOKUP(C160,'Capacidad Financiera'!$B$12:$X$62720,2,0)),\"\",VLOOKUP(C160,'Capacidad Financiera'!$B$12:$X$3580,2,0))","v":0},{"$f":"IF(OR(C160=\"\",D160=\"\"),\"\",IF(ISERROR(VLOOKUP(D160,'Capacidad Financiera'!$C$13:$X$62720,3,0)),\"\",VLOOKUP(D160,'Capacidad Financiera'!$C$13:$X$62720,3,0)))","v":""},{"$f":"IF(OR(C160=\"\",D160=\"\"),\"\",IF(ISERROR(VLOOKUP(D160,'Capacidad Financiera'!$C$13:$X$62720,5,0)),\"\",VLOOKUP(D160,'Capacidad Financiera'!$C$13:$X$62720,5,0)))","v":""},"",{"$f":"IF(OR(D160=\"\",E160=\"\",F160=\"\"),\"\",IF(AND(G160>0,G160<=CapFinanciera1),Puntajes!$D$12,IF(AND(G160>CapFinanciera1,G160<=CapFinanciera2),Puntajes!$D$13,IF(AND(G160>CapFinanciera2,G160<=CapFinanciera3),Puntajes!$D$14,IF(AND(G160>CapFinanciera3,G160<=CapFinanciera4),Puntajes!$D$15,IF(G160>CapFinanciera4,Puntajes!$D$16,0))))))","v":""}]
[null,null,{"$f":"+'Capacidad Financiera'!B164","v":""},{"$f":"IF(ISERROR(VLOOKUP(C161,'Capacidad Financiera'!$B$12:$X$62720,2,0)),\"\",VLOOKUP(C161,'Capacidad Financiera'!$B$12:$X$3580,2,0))","v":0},{"$f":"IF(OR(C161=\"\",D161=\"\"),\"\",IF(ISERROR(VLOOKUP(D161,'Capacidad Financiera'!$C$13:$X$62720,3,0)),\"\",VLOOKUP(D161,'Capacidad Financiera'!$C$13:$X$62720,3,0)))","v":""},{"$f":"IF(OR(C161=\"\",D161=\"\"),\"\",IF(ISERROR(VLOOKUP(D161,'Capacidad Financiera'!$C$13:$X$62720,5,0)),\"\",VLOOKUP(D161,'Capacidad Financiera'!$C$13:$X$62720,5,0)))","v":""},"",{"$f":"IF(OR(D161=\"\",E161=\"\",F161=\"\"),\"\",IF(AND(G161>0,G161<=CapFinanciera1),Puntajes!$D$12,IF(AND(G161>CapFinanciera1,G161<=CapFinanciera2),Puntajes!$D$13,IF(AND(G161>CapFinanciera2,G161<=CapFinanciera3),Puntajes!$D$14,IF(AND(G161>CapFinanciera3,G161<=CapFinanciera4),Puntajes!$D$15,IF(G161>CapFinanciera4,Puntajes!$D$16,0))))))","v":""}]
[null,null,{"$f":"+'Capacidad Financiera'!B165","v":""},{"$f":"IF(ISERROR(VLOOKUP(C162,'Capacidad Financiera'!$B$12:$X$62720,2,0)),\"\",VLOOKUP(C162,'Capacidad Financiera'!$B$12:$X$3580,2,0))","v":0},{"$f":"IF(OR(C162=\"\",D162=\"\"),\"\",IF(ISERROR(VLOOKUP(D162,'Capacidad Financiera'!$C$13:$X$62720,3,0)),\"\",VLOOKUP(D162,'Capacidad Financiera'!$C$13:$X$62720,3,0)))","v":""},{"$f":"IF(OR(C162=\"\",D162=\"\"),\"\",IF(ISERROR(VLOOKUP(D162,'Capacidad Financiera'!$C$13:$X$62720,5,0)),\"\",VLOOKUP(D162,'Capacidad Financiera'!$C$13:$X$62720,5,0)))","v":""},"",{"$f":"IF(OR(D162=\"\",E162=\"\",F162=\"\"),\"\",IF(AND(G162>0,G162<=CapFinanciera1),Puntajes!$D$12,IF(AND(G162>CapFinanciera1,G162<=CapFinanciera2),Puntajes!$D$13,IF(AND(G162>CapFinanciera2,G162<=CapFinanciera3),Puntajes!$D$14,IF(AND(G162>CapFinanciera3,G162<=CapFinanciera4),Puntajes!$D$15,IF(G162>CapFinanciera4,Puntajes!$D$16,0))))))","v":""}]
[null,null,15,{"$f":"IF(ISERROR(VLOOKUP(C163,'Capacidad Financiera'!$B$12:$X$62720,2,0)),\"\",VLOOKUP(C163,'Capacidad Financiera'!$B$12:$X$3580,2,0))","v":"CONSORCIO BP LA CALERA"},{"$f":"IF(C164=\"\",IF(C163<>\"\",IF(ISERROR(VLOOKUP(D163,'Capacidad Financiera'!$C$12:$H$22,3,0)),\"\",VLOOKUP(D163,'Capacidad Financiera'!$C$12:$H$22,3,0))),\"\")","v":""},{"$f":"IF(C164=\"\",IF(C163<>\"\",IF(ISERROR(VLOOKUP(D163,'Capacidad Financiera'!$C$12:$H$22,5,0)),\"\",VLOOKUP(D163,'Capacidad Financiera'!$C$12:$H$22,5,0))),\"\")","v":""},{"$f":"IF(OR(D163=\"\",E163=\"\",F163=\"\"),\"\",IF(OR(E163=0,F163=0),0,E163/F163))","v":""},{"$f":"IF(C164=\"\",IF(AND(E163=\"\",F163=\"\"),\"\",IF(AND(G163>0,G163<=CapFinanciera1),Puntajes!$D$12,IF(AND(G163>CapFinanciera1,G163<=CapFinanciera2),Puntajes!$D$13,IF(AND(G163>CapFinanciera2,G163<=CapFinanciera3),Puntajes!$D$14,IF(AND(G163>CapFinanciera3,G163<=CapFinanciera4),Puntajes!$D$15,IF(G163>CapFinanciera4,Puntajes!$D$16,0)))))),\"\")","v":""}]
[null,null,{"$f":"+'Capacidad Financiera'!B167","v":15.1},{"$f":"IF(ISERROR(VLOOKUP(C164,'Capacidad Financiera'!$B$12:$X$62720,2,0)),\"\",VLOOKUP(C164,'Capacidad Financiera'!$B$12:$X$3580,2,0))","v":"PEDRO NAVARRO RODRIGUEZ"},{"$f":"IF(OR(C164=\"\",D164=\"\"),\"\",IF(ISERROR(VLOOKUP(D164,'Capacidad Financiera'!$C$13:$X$62720,3,0)),\"\",VLOOKUP(D164,'Capacidad Financiera'!$C$13:$X$62720,3,0)))","v":309959284},{"$f":"IF(OR(C164=\"\",D164=\"\"),\"\",IF(ISERROR(VLOOKUP(D164,'Capacidad Financiera'!$C$13:$X$62720,5,0)),\"\",VLOOKUP(D164,'Capacidad Financiera'!$C$13:$X$62720,5,0)))","v":31948000},{"$f":"IF(OR(D164=\"\",E164=\"\",F164=\"\"),\"\",IF(OR(E164=0,F164=0),0,E164/F164))","v":9.7019933642168521},{"$f":"IF(OR(D164=\"\",E164=\"\",F164=\"\"),\"\",IF(AND(G164>0,G164<=CapFinanciera1),Puntajes!$D$12,IF(AND(G164>CapFinanciera1,G164<=CapFinanciera2),Puntajes!$D$13,IF(AND(G164>CapFinanciera2,G164<=CapFinanciera3),Puntajes!$D$14,IF(AND(G164>CapFinanciera3,G164<=CapFinanciera4),Puntajes!$D$15,IF(G164>CapFinanciera4,Puntajes!$D$16,0))))))","v":40}]
[null,null,{"$f":"+'Capacidad Financiera'!B168","v":15.2},{"$f":"IF(ISERROR(VLOOKUP(C165,'Capacidad Financiera'!$B$12:$X$62720,2,0)),\"\",VLOOKUP(C165,'Capacidad Financiera'!$B$12:$X$3580,2,0))","v":"PAVIOBRAS S.A.S."},{"$f":"IF(OR(C165=\"\",D165=\"\"),\"\",IF(ISERROR(VLOOKUP(D165,'Capacidad Financiera'!$C$13:$X$62720,3,0)),\"\",VLOOKUP(D165,'Capacidad Financiera'!$C$13:$X$62720,3,0)))","v":1433877421},{"$f":"IF(OR(C165=\"\",D165=\"\"),\"\",IF(ISERROR(VLOOKUP(D165,'Capacidad Financiera'!$C$13:$X$62720,5,0)),\"\",VLOOKUP(D165,'Capacidad Financiera'!$C$13:$X$62720,5,0)))","v":480788162},2.9823475998978526,{"$f":"IF(OR(D165=\"\",E165=\"\",F165=\"\"),\"\",IF(AND(G165>0,G165<=CapFinanciera1),Puntajes!$D$12,IF(AND(G165>CapFinanciera1,G165<=CapFinanciera2),Puntajes!$D$13,IF(AND(G165>CapFinanciera2,G165<=CapFinanciera3),Puntajes!$D$14,IF(AND(G165>CapFinanciera3,G165<=CapFinanciera4),Puntajes!$D$15,IF(G165>CapFinanciera4,Puntajes!$D$16,0))))))","v":40}]
[null,null,{"$f":"+'Capacidad Financiera'!B169","v":15.299999999999999},{"$f":"IF(ISERROR(VLOOKUP(C166,'Capacidad Financiera'!$B$12:$X$62720,2,0)),\"\",VLOOKUP(C166,'Capacidad Financiera'!$B$12:$X$3580,2,0))","v":"BALLEN B Y CIA S.A.S."},{"$f":"IF(OR(C166=\"\",D166=\"\"),\"\",IF(ISERROR(VLOOKUP(D166,'Capacidad Financiera'!$C$13:$X$62720,3,0)),\"\",VLOOKUP(D166,'Capacidad Financiera'!$C$13:$X$62720,3,0)))","v":2082044691},{"$f":"IF(OR(C166=\"\",D166=\"\"),\"\",IF(ISERROR(VLOOKUP(D166,'Capacidad Financiera'!$C$13:$X$62720,5,0)),\"\",VLOOKUP(D166,'Capacidad Financiera'!$C$13:$X$62720,5,0)))","v":454968809},4.5762361063305335,{"$f":"IF(OR(D166=\"\",E166=\"\",F166=\"\"),\"\",IF(AND(G166>0,G166<=CapFinanciera1),Puntajes!$D$12,IF(AND(G166>CapFinanciera1,G166<=CapFinanciera2),Puntajes!$D$13,IF(AND(G166>CapFinanciera2,G166<=CapFinanciera3),Puntajes!$D$14,IF(AND(G166>CapFinanciera3,G166<=CapFinanciera4),Puntajes!$D$15,IF(G166>CapFinanciera4,Puntajes!$D$16,0))))))","v":40}]
[null,null,{"$f":"+'Capacidad Financiera'!B170","v":""},{"$f":"IF(ISERROR(VLOOKUP(C167,'Capacidad Financiera'!$B$12:$X$62720,2,0)),\"\",VLOOKUP(C167,'Capacidad Financiera'!$B$12:$X$3580,2,0))","v":0},{"$f":"IF(OR(C167=\"\",D167=\"\"),\"\",IF(ISERROR(VLOOKUP(D167,'Capacidad Financiera'!$C$13:$X$62720,3,0)),\"\",VLOOKUP(D167,'Capacidad Financiera'!$C$13:$X$62720,3,0)))","v":""},{"$f":"IF(OR(C167=\"\",D167=\"\"),\"\",IF(ISERROR(VLOOKUP(D167,'Capacidad Financiera'!$C$13:$X$62720,5,0)),\"\",VLOOKUP(D167,'Capacidad Financiera'!$C$13:$X$62720,5,0)))","v":""},"",{"$f":"IF(OR(D167=\"\",E167=\"\",F167=\"\"),\"\",IF(AND(G167>0,G167<=CapFinanciera1),Puntajes!$D$12,IF(AND(G167>CapFinanciera1,G167<=CapFinanciera2),Puntajes!$D$13,IF(AND(G167>CapFinanciera2,G167<=CapFinanciera3),Puntajes!$D$14,IF(AND(G167>CapFinanciera3,G167<=CapFinanciera4),Puntajes!$D$15,IF(G167>CapFinanciera4,Puntajes!$D$16,0))))))","v":""}]
[null,null,{"$f":"+'Capacidad Financiera'!B171","v":""},{"$f":"IF(ISERROR(VLOOKUP(C168,'Capacidad Financiera'!$B$12:$X$62720,2,0)),\"\",VLOOKUP(C168,'Capacidad Financiera'!$B$12:$X$3580,2,0))","v":0},{"$f":"IF(OR(C168=\"\",D168=\"\"),\"\",IF(ISERROR(VLOOKUP(D168,'Capacidad Financiera'!$C$13:$X$62720,3,0)),\"\",VLOOKUP(D168,'Capacidad Financiera'!$C$13:$X$62720,3,0)))","v":""},{"$f":"IF(OR(C168=\"\",D168=\"\"),\"\",IF(ISERROR(VLOOKUP(D168,'Capacidad Financiera'!$C$13:$X$62720,5,0)),\"\",VLOOKUP(D168,'Capacidad Financiera'!$C$13:$X$62720,5,0)))","v":""},"",{"$f":"IF(OR(D168=\"\",E168=\"\",F168=\"\"),\"\",IF(AND(G168>0,G168<=CapFinanciera1),Puntajes!$D$12,IF(AND(G168>CapFinanciera1,G168<=CapFinanciera2),Puntajes!$D$13,IF(AND(G168>CapFinanciera2,G168<=CapFinanciera3),Puntajes!$D$14,IF(AND(G168>CapFinanciera3,G168<=CapFinanciera4),Puntajes!$D$15,IF(G168>CapFinanciera4,Puntajes!$D$16,0))))))","v":""}]
[null,null,{"$f":"+'Capacidad Financiera'!B172","v":""},{"$f":"IF(ISERROR(VLOOKUP(C169,'Capacidad Financiera'!$B$12:$X$62720,2,0)),\"\",VLOOKUP(C169,'Capacidad Financiera'!$B$12:$X$3580,2,0))","v":0},{"$f":"IF(OR(C169=\"\",D169=\"\"),\"\",IF(ISERROR(VLOOKUP(D169,'Capacidad Financiera'!$C$13:$X$62720,3,0)),\"\",VLOOKUP(D169,'Capacidad Financiera'!$C$13:$X$62720,3,0)))","v":""},{"$f":"IF(OR(C169=\"\",D169=\"\"),\"\",IF(ISERROR(VLOOKUP(D169,'Capacidad Financiera'!$C$13:$X$62720,5,0)),\"\",VLOOKUP(D169,'Capacidad Financiera'!$C$13:$X$62720,5,0)))","v":""},"",{"$f":"IF(OR(D169=\"\",E169=\"\",F169=\"\"),\"\",IF(AND(G169>0,G169<=CapFinanciera1),Puntajes!$D$12,IF(AND(G169>CapFinanciera1,G169<=CapFinanciera2),Puntajes!$D$13,IF(AND(G169>CapFinanciera2,G169<=CapFinanciera3),Puntajes!$D$14,IF(AND(G169>CapFinanciera3,G169<=CapFinanciera4),Puntajes!$D$15,IF(G169>CapFinanciera4,Puntajes!$D$16,0))))))","v":""}]
[null,null,{"$f":"+'Capacidad Financiera'!B173","v":""},{"$f":"IF(ISERROR(VLOOKUP(C170,'Capacidad Financiera'!$B$12:$X$62720,2,0)),\"\",VLOOKUP(C170,'Capacidad Financiera'!$B$12:$X$3580,2,0))","v":0},{"$f":"IF(OR(C170=\"\",D170=\"\"),\"\",IF(ISERROR(VLOOKUP(D170,'Capacidad Financiera'!$C$13:$X$62720,3,0)),\"\",VLOOKUP(D170,'Capacidad Financiera'!$C$13:$X$62720,3,0)))","v":""},{"$f":"IF(OR(C170=\"\",D170=\"\"),\"\",IF(ISERROR(VLOOKUP(D170,'Capacidad Financiera'!$C$13:$X$62720,5,0)),\"\",VLOOKUP(D170,'Capacidad Financiera'!$C$13:$X$62720,5,0)))","v":""},"",{"$f":"IF(OR(D170=\"\",E170=\"\",F170=\"\"),\"\",IF(AND(G170>0,G170<=CapFinanciera1),Puntajes!$D$12,IF(AND(G170>CapFinanciera1,G170<=CapFinanciera2),Puntajes!$D$13,IF(AND(G170>CapFinanciera2,G170<=CapFinanciera3),Puntajes!$D$14,IF(AND(G170>CapFinanciera3,G170<=CapFinanciera4),Puntajes!$D$15,IF(G170>CapFinanciera4,Puntajes!$D$16,0))))))","v":""}]
[null,null,{"$f":"+'Capacidad Financiera'!B174","v":""},{"$f":"IF(ISERROR(VLOOKUP(C171,'Capacidad Financiera'!$B$12:$X$62720,2,0)),\"\",VLOOKUP(C171,'Capacidad Financiera'!$B$12:$X$3580,2,0))","v":0},{"$f":"IF(OR(C171=\"\",D171=\"\"),\"\",IF(ISERROR(VLOOKUP(D171,'Capacidad Financiera'!$C$13:$X$62720,3,0)),\"\",VLOOKUP(D171,'Capacidad Financiera'!$C$13:$X$62720,3,0)))","v":""},{"$f":"IF(OR(C171=\"\",D171=\"\"),\"\",IF(ISERROR(VLOOKUP(D171,'Capacidad Financiera'!$C$13:$X$62720,5,0)),\"\",VLOOKUP(D171,'Capacidad Financiera'!$C$13:$X$62720,5,0)))","v":""},"",{"$f":"IF(OR(D171=\"\",E171=\"\",F171=\"\"),\"\",IF(AND(G171>0,G171<=CapFinanciera1),Puntajes!$D$12,IF(AND(G171>CapFinanciera1,G171<=CapFinanciera2),Puntajes!$D$13,IF(AND(G171>CapFinanciera2,G171<=CapFinanciera3),Puntajes!$D$14,IF(AND(G171>CapFinanciera3,G171<=CapFinanciera4),Puntajes!$D$15,IF(G171>CapFinanciera4,Puntajes!$D$16,0))))))","v":""}]
[null,null,{"$f":"+'Capacidad Financiera'!B175","v":""},{"$f":"IF(ISERROR(VLOOKUP(C172,'Capacidad Financiera'!$B$12:$X$62720,2,0)),\"\",VLOOKUP(C172,'Capacidad Financiera'!$B$12:$X$3580,2,0))","v":0},{"$f":"IF(OR(C172=\"\",D172=\"\"),\"\",IF(ISERROR(VLOOKUP(D172,'Capacidad Financiera'!$C$13:$X$62720,3,0)),\"\",VLOOKUP(D172,'Capacidad Financiera'!$C$13:$X$62720,3,0)))","v":""},{"$f":"IF(OR(C172=\"\",D172=\"\"),\"\",IF(ISERROR(VLOOKUP(D172,'Capacidad Financiera'!$C$13:$X$62720,5,0)),\"\",VLOOKUP(D172,'Capacidad Financiera'!$C$13:$X$62720,5,0)))","v":""},"",{"$f":"IF(OR(D172=\"\",E172=\"\",F172=\"\"),\"\",IF(AND(G172>0,G172<=CapFinanciera1),Puntajes!$D$12,IF(AND(G172>CapFinanciera1,G172<=CapFinanciera2),Puntajes!$D$13,IF(AND(G172>CapFinanciera2,G172<=CapFinanciera3),Puntajes!$D$14,IF(AND(G172>CapFinanciera3,G172<=CapFinanciera4),Puntajes!$D$15,IF(G172>CapFinanciera4,Puntajes!$D$16,0))))))","v":""}]
[null,null,{"$f":"+'Capacidad Financiera'!B176","v":""},{"$f":"IF(ISERROR(VLOOKUP(C173,'Capacidad Financiera'!$B$12:$X$62720,2,0)),\"\",VLOOKUP(C173,'Capacidad Financiera'!$B$12:$X$3580,2,0))","v":0},{"$f":"IF(OR(C173=\"\",D173=\"\"),\"\",IF(ISERROR(VLOOKUP(D173,'Capacidad Financiera'!$C$13:$X$62720,3,0)),\"\",VLOOKUP(D173,'Capacidad Financiera'!$C$13:$X$62720,3,0)))","v":""},{"$f":"IF(OR(C173=\"\",D173=\"\"),\"\",IF(ISERROR(VLOOKUP(D173,'Capacidad Financiera'!$C$13:$X$62720,5,0)),\"\",VLOOKUP(D173,'Capacidad Financiera'!$C$13:$X$62720,5,0)))","v":""},"",{"$f":"IF(OR(D173=\"\",E173=\"\",F173=\"\"),\"\",IF(AND(G173>0,G173<=CapFinanciera1),Puntajes!$D$12,IF(AND(G173>CapFinanciera1,G173<=CapFinanciera2),Puntajes!$D$13,IF(AND(G173>CapFinanciera2,G173<=CapFinanciera3),Puntajes!$D$14,IF(AND(G173>CapFinanciera3,G173<=CapFinanciera4),Puntajes!$D$15,IF(G173>CapFinanciera4,Puntajes!$D$16,0))))))","v":""}]
[null,null,16,{"$f":"IF(ISERROR(VLOOKUP(C174,'Capacidad Financiera'!$B$12:$X$62720,2,0)),\"\",VLOOKUP(C174,'Capacidad Financiera'!$B$12:$X$3580,2,0))","v":"CONSORCIO SAN PABLO"},{"$f":"IF(C175=\"\",IF(C174<>\"\",IF(ISERROR(VLOOKUP(D174,'Capacidad Financiera'!$C$12:$H$22,3,0)),\"\",VLOOKUP(D174,'Capacidad Financiera'!$C$12:$H$22,3,0))),\"\")","v":""},{"$f":"IF(C175=\"\",IF(C174<>\"\",IF(ISERROR(VLOOKUP(D174,'Capacidad Financiera'!$C$12:$H$22,5,0)),\"\",VLOOKUP(D174,'Capacidad Financiera'!$C$12:$H$22,5,0))),\"\")","v":""},{"$f":"IF(OR(D174=\"\",E174=\"\",F174=\"\"),\"\",IF(OR(E174=0,F174=0),0,E174/F174))","v":""},{"$f":"IF(C175=\"\",IF(AND(E174=\"\",F174=\"\"),\"\",IF(AND(G174>0,G174<=CapFinanciera1),Puntajes!$D$12,IF(AND(G174>CapFinanciera1,G174<=CapFinanciera2),Puntajes!$D$13,IF(AND(G174>CapFinanciera2,G174<=CapFinanciera3),Puntajes!$D$14,IF(AND(G174>CapFinanciera3,G174<=CapFinanciera4),Puntajes!$D$15,IF(G174>CapFinanciera4,Puntajes!$D$16,0)))))),\"\")","v":""}]
[null,null,{"$f":"+'Capacidad Financiera'!B178","v":16.100000000000001},{"$f":"IF(ISERROR(VLOOKUP(C175,'Capacidad Financiera'!$B$12:$X$62720,2,0)),\"\",VLOOKUP(C175,'Capacidad Financiera'!$B$12:$X$3580,2,0))","v":"ALCA INGENIERIA S.A.S."},{"$f":"IF(OR(C175=\"\",D175=\"\"),\"\",IF(ISERROR(VLOOKUP(D175,'Capacidad Financiera'!$C$13:$X$62720,3,0)),\"\",VLOOKUP(D175,'Capacidad Financiera'!$C$13:$X$62720,3,0)))","v":16669734107},{"$f":"IF(OR(C175=\"\",D175=\"\"),\"\",IF(ISERROR(VLOOKUP(D175,'Capacidad Financiera'!$C$13:$X$62720,5,0)),\"\",VLOOKUP(D175,'Capacidad Financiera'!$C$13:$X$62720,5,0)))","v":8282217822},{"$f":"IF(OR(D175=\"\",E175=\"\",F175=\"\"),\"\",IF(OR(E175=0,F175=0),0,E175/F175))","v":2.0127138002480804},{"$f":"IF(OR(D175=\"\",E175=\"\",F175=\"\"),\"\",IF(AND(G175>0,G175<=CapFinanciera1),Puntajes!$D$12,IF(AND(G175>CapFinanciera1,G175<=CapFinanciera2),Puntajes!$D$13,IF(AND(G175>CapFinanciera2,G175<=CapFinanciera3),Puntajes!$D$14,IF(AND(G175>CapFinanciera3,G175<=CapFinanciera4),Puntajes!$D$15,IF(G175>CapFinanciera4,Puntajes!$D$16,0))))))","v":40}]
[null,null,{"$f":"+'Capacidad Financiera'!B179","v":16.200000000000003},{"$f":"IF(ISERROR(VLOOKUP(C176,'Capacidad Financiera'!$B$12:$X$62720,2,0)),\"\",VLOOKUP(C176,'Capacidad Financiera'!$B$12:$X$3580,2,0))","v":"TORRESCAMARA Y CIA DE OBRAS S.A. SUCURSAL COLOMBIA"},{"$f":"IF(OR(C176=\"\",D176=\"\"),\"\",IF(ISERROR(VLOOKUP(D176,'Capacidad Financiera'!$C$13:$X$62720,3,0)),\"\",VLOOKUP(D176,'Capacidad Financiera'!$C$13:$X$62720,3,0)))","v":97809137508},{"$f":"IF(OR(C176=\"\",D176=\"\"),\"\",IF(ISERROR(VLOOKUP(D176,'Capacidad Financiera'!$C$13:$X$62720,5,0)),\"\",VLOOKUP(D176,'Capacidad Financiera'!$C$13:$X$62720,5,0)))","v":44468760423},2.1995022253287604,{"$f":"IF(OR(D176=\"\",E176=\"\",F176=\"\"),\"\",IF(AND(G176>0,G176<=CapFinanciera1),Puntajes!$D$12,IF(AND(G176>CapFinanciera1,G176<=CapFinanciera2),Puntajes!$D$13,IF(AND(G176>CapFinanciera2,G176<=CapFinanciera3),Puntajes!$D$14,IF(AND(G176>CapFinanciera3,G176<=CapFinanciera4),Puntajes!$D$15,IF(G176>CapFinanciera4,Puntajes!$D$16,0))))))","v":40}]
[null,null,{"$f":"+'Capacidad Financiera'!B180","v":""},{"$f":"IF(ISERROR(VLOOKUP(C177,'Capacidad Financiera'!$B$12:$X$62720,2,0)),\"\",VLOOKUP(C177,'Capacidad Financiera'!$B$12:$X$3580,2,0))","v":0},{"$f":"IF(OR(C177=\"\",D177=\"\"),\"\",IF(ISERROR(VLOOKUP(D177,'Capacidad Financiera'!$C$13:$X$62720,3,0)),\"\",VLOOKUP(D177,'Capacidad Financiera'!$C$13:$X$62720,3,0)))","v":""},{"$f":"IF(OR(C177=\"\",D177=\"\"),\"\",IF(ISERROR(VLOOKUP(D177,'Capacidad Financiera'!$C$13:$X$62720,5,0)),\"\",VLOOKUP(D177,'Capacidad Financiera'!$C$13:$X$62720,5,0)))","v":""},"",{"$f":"IF(OR(D177=\"\",E177=\"\",F177=\"\"),\"\",IF(AND(G177>0,G177<=CapFinanciera1),Puntajes!$D$12,IF(AND(G177>CapFinanciera1,G177<=CapFinanciera2),Puntajes!$D$13,IF(AND(G177>CapFinanciera2,G177<=CapFinanciera3),Puntajes!$D$14,IF(AND(G177>CapFinanciera3,G177<=CapFinanciera4),Puntajes!$D$15,IF(G177>CapFinanciera4,Puntajes!$D$16,0))))))","v":""}]
[null,null,{"$f":"+'Capacidad Financiera'!B181","v":""},{"$f":"IF(ISERROR(VLOOKUP(C178,'Capacidad Financiera'!$B$12:$X$62720,2,0)),\"\",VLOOKUP(C178,'Capacidad Financiera'!$B$12:$X$3580,2,0))","v":0},{"$f":"IF(OR(C178=\"\",D178=\"\"),\"\",IF(ISERROR(VLOOKUP(D178,'Capacidad Financiera'!$C$13:$X$62720,3,0)),\"\",VLOOKUP(D178,'Capacidad Financiera'!$C$13:$X$62720,3,0)))","v":""},{"$f":"IF(OR(C178=\"\",D178=\"\"),\"\",IF(ISERROR(VLOOKUP(D178,'Capacidad Financiera'!$C$13:$X$62720,5,0)),\"\",VLOOKUP(D178,'Capacidad Financiera'!$C$13:$X$62720,5,0)))","v":""},"",{"$f":"IF(OR(D178=\"\",E178=\"\",F178=\"\"),\"\",IF(AND(G178>0,G178<=CapFinanciera1),Puntajes!$D$12,IF(AND(G178>CapFinanciera1,G178<=CapFinanciera2),Puntajes!$D$13,IF(AND(G178>CapFinanciera2,G178<=CapFinanciera3),Puntajes!$D$14,IF(AND(G178>CapFinanciera3,G178<=CapFinanciera4),Puntajes!$D$15,IF(G178>CapFinanciera4,Puntajes!$D$16,0))))))","v":""}]
[null,null,{"$f":"+'Capacidad Financiera'!B182","v":""},{"$f":"IF(ISERROR(VLOOKUP(C179,'Capacidad Financiera'!$B$12:$X$62720,2,0)),\"\",VLOOKUP(C179,'Capacidad Financiera'!$B$12:$X$3580,2,0))","v":0},{"$f":"IF(OR(C179=\"\",D179=\"\"),\"\",IF(ISERROR(VLOOKUP(D179,'Capacidad Financiera'!$C$13:$X$62720,3,0)),\"\",VLOOKUP(D179,'Capacidad Financiera'!$C$13:$X$62720,3,0)))","v":""},{"$f":"IF(OR(C179=\"\",D179=\"\"),\"\",IF(ISERROR(VLOOKUP(D179,'Capacidad Financiera'!$C$13:$X$62720,5,0)),\"\",VLOOKUP(D179,'Capacidad Financiera'!$C$13:$X$62720,5,0)))","v":""},"",{"$f":"IF(OR(D179=\"\",E179=\"\",F179=\"\"),\"\",IF(AND(G179>0,G179<=CapFinanciera1),Puntajes!$D$12,IF(AND(G179>CapFinanciera1,G179<=CapFinanciera2),Puntajes!$D$13,IF(AND(G179>CapFinanciera2,G179<=CapFinanciera3),Puntajes!$D$14,IF(AND(G179>CapFinanciera3,G179<=CapFinanciera4),Puntajes!$D$15,IF(G179>CapFinanciera4,Puntajes!$D$16,0))))))","v":""}]
[null,null,{"$f":"+'Capacidad Financiera'!B183","v":""},{"$f":"IF(ISERROR(VLOOKUP(C180,'Capacidad Financiera'!$B$12:$X$62720,2,0)),\"\",VLOOKUP(C180,'Capacidad Financiera'!$B$12:$X$3580,2,0))","v":0},{"$f":"IF(OR(C180=\"\",D180=\"\"),\"\",IF(ISERROR(VLOOKUP(D180,'Capacidad Financiera'!$C$13:$X$62720,3,0)),\"\",VLOOKUP(D180,'Capacidad Financiera'!$C$13:$X$62720,3,0)))","v":""},{"$f":"IF(OR(C180=\"\",D180=\"\"),\"\",IF(ISERROR(VLOOKUP(D180,'Capacidad Financiera'!$C$13:$X$62720,5,0)),\"\",VLOOKUP(D180,'Capacidad Financiera'!$C$13:$X$62720,5,0)))","v":""},"",{"$f":"IF(OR(D180=\"\",E180=\"\",F180=\"\"),\"\",IF(AND(G180>0,G180<=CapFinanciera1),Puntajes!$D$12,IF(AND(G180>CapFinanciera1,G180<=CapFinanciera2),Puntajes!$D$13,IF(AND(G180>CapFinanciera2,G180<=CapFinanciera3),Puntajes!$D$14,IF(AND(G180>CapFinanciera3,G180<=CapFinanciera4),Puntajes!$D$15,IF(G180>CapFinanciera4,Puntajes!$D$16,0))))))","v":""}]
[null,null,{"$f":"+'Capacidad Financiera'!B184","v":""},{"$f":"IF(ISERROR(VLOOKUP(C181,'Capacidad Financiera'!$B$12:$X$62720,2,0)),\"\",VLOOKUP(C181,'Capacidad Financiera'!$B$12:$X$3580,2,0))","v":0},{"$f":"IF(OR(C181=\"\",D181=\"\"),\"\",IF(ISERROR(VLOOKUP(D181,'Capacidad Financiera'!$C$13:$X$62720,3,0)),\"\",VLOOKUP(D181,'Capacidad Financiera'!$C$13:$X$62720,3,0)))","v":""},{"$f":"IF(OR(C181=\"\",D181=\"\"),\"\",IF(ISERROR(VLOOKUP(D181,'Capacidad Financiera'!$C$13:$X$62720,5,0)),\"\",VLOOKUP(D181,'Capacidad Financiera'!$C$13:$X$62720,5,0)))","v":""},"",{"$f":"IF(OR(D181=\"\",E181=\"\",F181=\"\"),\"\",IF(AND(G181>0,G181<=CapFinanciera1),Puntajes!$D$12,IF(AND(G181>CapFinanciera1,G181<=CapFinanciera2),Puntajes!$D$13,IF(AND(G181>CapFinanciera2,G181<=CapFinanciera3),Puntajes!$D$14,IF(AND(G181>CapFinanciera3,G181<=CapFinanciera4),Puntajes!$D$15,IF(G181>CapFinanciera4,Puntajes!$D$16,0))))))","v":""}]
[null,null,{"$f":"+'Capacidad Financiera'!B185","v":""},{"$f":"IF(ISERROR(VLOOKUP(C182,'Capacidad Financiera'!$B$12:$X$62720,2,0)),\"\",VLOOKUP(C182,'Capacidad Financiera'!$B$12:$X$3580,2,0))","v":0},{"$f":"IF(OR(C182=\"\",D182=\"\"),\"\",IF(ISERROR(VLOOKUP(D182,'Capacidad Financiera'!$C$13:$X$62720,3,0)),\"\",VLOOKUP(D182,'Capacidad Financiera'!$C$13:$X$62720,3,0)))","v":""},{"$f":"IF(OR(C182=\"\",D182=\"\"),\"\",IF(ISERROR(VLOOKUP(D182,'Capacidad Financiera'!$C$13:$X$62720,5,0)),\"\",VLOOKUP(D182,'Capacidad Financiera'!$C$13:$X$62720,5,0)))","v":""},"",{"$f":"IF(OR(D182=\"\",E182=\"\",F182=\"\"),\"\",IF(AND(G182>0,G182<=CapFinanciera1),Puntajes!$D$12,IF(AND(G182>CapFinanciera1,G182<=CapFinanciera2),Puntajes!$D$13,IF(AND(G182>CapFinanciera2,G182<=CapFinanciera3),Puntajes!$D$14,IF(AND(G182>CapFinanciera3,G182<=CapFinanciera4),Puntajes!$D$15,IF(G182>CapFinanciera4,Puntajes!$D$16,0))))))","v":""}]
[null,null,{"$f":"+'Capacidad Financiera'!B186","v":""},{"$f":"IF(ISERROR(VLOOKUP(C183,'Capacidad Financiera'!$B$12:$X$62720,2,0)),\"\",VLOOKUP(C183,'Capacidad Financiera'!$B$12:$X$3580,2,0))","v":0},{"$f":"IF(OR(C183=\"\",D183=\"\"),\"\",IF(ISERROR(VLOOKUP(D183,'Capacidad Financiera'!$C$13:$X$62720,3,0)),\"\",VLOOKUP(D183,'Capacidad Financiera'!$C$13:$X$62720,3,0)))","v":""},{"$f":"IF(OR(C183=\"\",D183=\"\"),\"\",IF(ISERROR(VLOOKUP(D183,'Capacidad Financiera'!$C$13:$X$62720,5,0)),\"\",VLOOKUP(D183,'Capacidad Financiera'!$C$13:$X$62720,5,0)))","v":""},"",{"$f":"IF(OR(D183=\"\",E183=\"\",F183=\"\"),\"\",IF(AND(G183>0,G183<=CapFinanciera1),Puntajes!$D$12,IF(AND(G183>CapFinanciera1,G183<=CapFinanciera2),Puntajes!$D$13,IF(AND(G183>CapFinanciera2,G183<=CapFinanciera3),Puntajes!$D$14,IF(AND(G183>CapFinanciera3,G183<=CapFinanciera4),Puntajes!$D$15,IF(G183>CapFinanciera4,Puntajes!$D$16,0))))))","v":""}]
[null,null,{"$f":"+'Capacidad Financiera'!B187","v":""},{"$f":"IF(ISERROR(VLOOKUP(C184,'Capacidad Financiera'!$B$12:$X$62720,2,0)),\"\",VLOOKUP(C184,'Capacidad Financiera'!$B$12:$X$3580,2,0))","v":0},{"$f":"IF(OR(C184=\"\",D184=\"\"),\"\",IF(ISERROR(VLOOKUP(D184,'Capacidad Financiera'!$C$13:$X$62720,3,0)),\"\",VLOOKUP(D184,'Capacidad Financiera'!$C$13:$X$62720,3,0)))","v":""},{"$f":"IF(OR(C184=\"\",D184=\"\"),\"\",IF(ISERROR(VLOOKUP(D184,'Capacidad Financiera'!$C$13:$X$62720,5,0)),\"\",VLOOKUP(D184,'Capacidad Financiera'!$C$13:$X$62720,5,0)))","v":""},"",{"$f":"IF(OR(D184=\"\",E184=\"\",F184=\"\"),\"\",IF(AND(G184>0,G184<=CapFinanciera1),Puntajes!$D$12,IF(AND(G184>CapFinanciera1,G184<=CapFinanciera2),Puntajes!$D$13,IF(AND(G184>CapFinanciera2,G184<=CapFinanciera3),Puntajes!$D$14,IF(AND(G184>CapFinanciera3,G184<=CapFinanciera4),Puntajes!$D$15,IF(G184>CapFinanciera4,Puntajes!$D$16,0))))))","v":""}]
[null,null,17,{"$f":"IF(ISERROR(VLOOKUP(C185,'Capacidad Financiera'!$B$12:$X$62720,2,0)),\"\",VLOOKUP(C185,'Capacidad Financiera'!$B$12:$X$3580,2,0))","v":"CONSORCIO LA CALERA CUNDINAMARCA"},{"$f":"IF(C186=\"\",IF(C185<>\"\",IF(ISERROR(VLOOKUP(D185,'Capacidad Financiera'!$C$12:$H$22,3,0)),\"\",VLOOKUP(D185,'Capacidad Financiera'!$C$12:$H$22,3,0))),\"\")","v":""},{"$f":"IF(C186=\"\",IF(C185<>\"\",IF(ISERROR(VLOOKUP(D185,'Capacidad Financiera'!$C$12:$H$22,5,0)),\"\",VLOOKUP(D185,'Capacidad Financiera'!$C$12:$H$22,5,0))),\"\")","v":""},{"$f":"IF(OR(D185=\"\",E185=\"\",F185=\"\"),\"\",IF(OR(E185=0,F185=0),0,E185/F185))","v":""},{"$f":"IF(C186=\"\",IF(AND(E185=\"\",F185=\"\"),\"\",IF(AND(G185>0,G185<=CapFinanciera1),Puntajes!$D$12,IF(AND(G185>CapFinanciera1,G185<=CapFinanciera2),Puntajes!$D$13,IF(AND(G185>CapFinanciera2,G185<=CapFinanciera3),Puntajes!$D$14,IF(AND(G185>CapFinanciera3,G185<=CapFinanciera4),Puntajes!$D$15,IF(G185>CapFinanciera4,Puntajes!$D$16,0)))))),\"\")","v":""}]
[null,null,{"$f":"+'Capacidad Financiera'!B189","v":17.100000000000001},{"$f":"IF(ISERROR(VLOOKUP(C186,'Capacidad Financiera'!$B$12:$X$62720,2,0)),\"\",VLOOKUP(C186,'Capacidad Financiera'!$B$12:$X$3580,2,0))","v":"JUAN SILVA RODRIGUEZ"},{"$f":"IF(OR(C186=\"\",D186=\"\"),\"\",IF(ISERROR(VLOOKUP(D186,'Capacidad Financiera'!$C$13:$X$62720,3,0)),\"\",VLOOKUP(D186,'Capacidad Financiera'!$C$13:$X$62720,3,0)))","v":3946319652},{"$f":"IF(OR(C186=\"\",D186=\"\"),\"\",IF(ISERROR(VLOOKUP(D186,'Capacidad Financiera'!$C$13:$X$62720,5,0)),\"\",VLOOKUP(D186,'Capacidad Financiera'!$C$13:$X$62720,5,0)))","v":209147914},{"$f":"IF(OR(D186=\"\",E186=\"\",F186=\"\"),\"\",IF(OR(E186=0,F186=0),0,E186/F186))","v":18.868558507353796},{"$f":"IF(OR(D186=\"\",E186=\"\",F186=\"\"),\"\",IF(AND(G186>0,G186<=CapFinanciera1),Puntajes!$D$12,IF(AND(G186>CapFinanciera1,G186<=CapFinanciera2),Puntajes!$D$13,IF(AND(G186>CapFinanciera2,G186<=CapFinanciera3),Puntajes!$D$14,IF(AND(G186>CapFinanciera3,G186<=CapFinanciera4),Puntajes!$D$15,IF(G186>CapFinanciera4,Puntajes!$D$16,0))))))","v":40}]
[null,null,{"$f":"+'Capacidad Financiera'!B190","v":17.200000000000003},{"$f":"IF(ISERROR(VLOOKUP(C187,'Capacidad Financiera'!$B$12:$X$62720,2,0)),\"\",VLOOKUP(C187,'Capacidad Financiera'!$B$12:$X$3580,2,0))","v":"FERNANDO JIMENEZ ROA"},{"$f":"IF(OR(C187=\"\",D187=\"\"),\"\",IF(ISERROR(VLOOKUP(D187,'Capacidad Financiera'!$C$13:$X$62720,3,0)),\"\",VLOOKUP(D187,'Capacidad Financiera'!$C$13:$X$62720,3,0)))","v":3787227107},{"$f":"IF(OR(C187=\"\",D187=\"\"),\"\",IF(ISERROR(VLOOKUP(D187,'Capacidad Financiera'!$C$13:$X$62720,5,0)),\"\",VLOOKUP(D187,'Capacidad Financiera'!$C$13:$X$62720,5,0)))","v":453290634},8.3549643935506506,{"$f":"IF(OR(D187=\"\",E187=\"\",F187=\"\"),\"\",IF(AND(G187>0,G187<=CapFinanciera1),Puntajes!$D$12,IF(AND(G187>CapFinanciera1,G187<=CapFinanciera2),Puntajes!$D$13,IF(AND(G187>CapFinanciera2,G187<=CapFinanciera3),Puntajes!$D$14,IF(AND(G187>CapFinanciera3,G187<=CapFinanciera4),Puntajes!$D$15,IF(G187>CapFinanciera4,Puntajes!$D$16,0))))))","v":40}]
[null,null,{"$f":"+'Capacidad Financiera'!B191","v":""},{"$f":"IF(ISERROR(VLOOKUP(C188,'Capacidad Financiera'!$B$12:$X$62720,2,0)),\"\",VLOOKUP(C188,'Capacidad Financiera'!$B$12:$X$3580,2,0))","v":0},{"$f":"IF(OR(C188=\"\",D188=\"\"),\"\",IF(ISERROR(VLOOKUP(D188,'Capacidad Financiera'!$C$13:$X$62720,3,0)),\"\",VLOOKUP(D188,'Capacidad Financiera'!$C$13:$X$62720,3,0)))","v":""},{"$f":"IF(OR(C188=\"\",D188=\"\"),\"\",IF(ISERROR(VLOOKUP(D188,'Capacidad Financiera'!$C$13:$X$62720,5,0)),\"\",VLOOKUP(D188,'Capacidad Financiera'!$C$13:$X$62720,5,0)))","v":""},"",{"$f":"IF(OR(D188=\"\",E188=\"\",F188=\"\"),\"\",IF(AND(G188>0,G188<=CapFinanciera1),Puntajes!$D$12,IF(AND(G188>CapFinanciera1,G188<=CapFinanciera2),Puntajes!$D$13,IF(AND(G188>CapFinanciera2,G188<=CapFinanciera3),Puntajes!$D$14,IF(AND(G188>CapFinanciera3,G188<=CapFinanciera4),Puntajes!$D$15,IF(G188>CapFinanciera4,Puntajes!$D$16,0))))))","v":""}]
[null,null,{"$f":"+'Capacidad Financiera'!B192","v":""},{"$f":"IF(ISERROR(VLOOKUP(C189,'Capacidad Financiera'!$B$12:$X$62720,2,0)),\"\",VLOOKUP(C189,'Capacidad Financiera'!$B$12:$X$3580,2,0))","v":0},{"$f":"IF(OR(C189=\"\",D189=\"\"),\"\",IF(ISERROR(VLOOKUP(D189,'Capacidad Financiera'!$C$13:$X$62720,3,0)),\"\",VLOOKUP(D189,'Capacidad Financiera'!$C$13:$X$62720,3,0)))","v":""},{"$f":"IF(OR(C189=\"\",D189=\"\"),\"\",IF(ISERROR(VLOOKUP(D189,'Capacidad Financiera'!$C$13:$X$62720,5,0)),\"\",VLOOKUP(D189,'Capacidad Financiera'!$C$13:$X$62720,5,0)))","v":""},"",{"$f":"IF(OR(D189=\"\",E189=\"\",F189=\"\"),\"\",IF(AND(G189>0,G189<=CapFinanciera1),Puntajes!$D$12,IF(AND(G189>CapFinanciera1,G189<=CapFinanciera2),Puntajes!$D$13,IF(AND(G189>CapFinanciera2,G189<=CapFinanciera3),Puntajes!$D$14,IF(AND(G189>CapFinanciera3,G189<=CapFinanciera4),Puntajes!$D$15,IF(G189>CapFinanciera4,Puntajes!$D$16,0))))))","v":""}]
[null,null,{"$f":"+'Capacidad Financiera'!B193","v":""},{"$f":"IF(ISERROR(VLOOKUP(C190,'Capacidad Financiera'!$B$12:$X$62720,2,0)),\"\",VLOOKUP(C190,'Capacidad Financiera'!$B$12:$X$3580,2,0))","v":0},{"$f":"IF(OR(C190=\"\",D190=\"\"),\"\",IF(ISERROR(VLOOKUP(D190,'Capacidad Financiera'!$C$13:$X$62720,3,0)),\"\",VLOOKUP(D190,'Capacidad Financiera'!$C$13:$X$62720,3,0)))","v":""},{"$f":"IF(OR(C190=\"\",D190=\"\"),\"\",IF(ISERROR(VLOOKUP(D190,'Capacidad Financiera'!$C$13:$X$62720,5,0)),\"\",VLOOKUP(D190,'Capacidad Financiera'!$C$13:$X$62720,5,0)))","v":""},"",{"$f":"IF(OR(D190=\"\",E190=\"\",F190=\"\"),\"\",IF(AND(G190>0,G190<=CapFinanciera1),Puntajes!$D$12,IF(AND(G190>CapFinanciera1,G190<=CapFinanciera2),Puntajes!$D$13,IF(AND(G190>CapFinanciera2,G190<=CapFinanciera3),Puntajes!$D$14,IF(AND(G190>CapFinanciera3,G190<=CapFinanciera4),Puntajes!$D$15,IF(G190>CapFinanciera4,Puntajes!$D$16,0))))))","v":""}]
[null,null,{"$f":"+'Capacidad Financiera'!B194","v":""},{"$f":"IF(ISERROR(VLOOKUP(C191,'Capacidad Financiera'!$B$12:$X$62720,2,0)),\"\",VLOOKUP(C191,'Capacidad Financiera'!$B$12:$X$3580,2,0))","v":0},{"$f":"IF(OR(C191=\"\",D191=\"\"),\"\",IF(ISERROR(VLOOKUP(D191,'Capacidad Financiera'!$C$13:$X$62720,3,0)),\"\",VLOOKUP(D191,'Capacidad Financiera'!$C$13:$X$62720,3,0)))","v":""},{"$f":"IF(OR(C191=\"\",D191=\"\"),\"\",IF(ISERROR(VLOOKUP(D191,'Capacidad Financiera'!$C$13:$X$62720,5,0)),\"\",VLOOKUP(D191,'Capacidad Financiera'!$C$13:$X$62720,5,0)))","v":""},"",{"$f":"IF(OR(D191=\"\",E191=\"\",F191=\"\"),\"\",IF(AND(G191>0,G191<=CapFinanciera1),Puntajes!$D$12,IF(AND(G191>CapFinanciera1,G191<=CapFinanciera2),Puntajes!$D$13,IF(AND(G191>CapFinanciera2,G191<=CapFinanciera3),Puntajes!$D$14,IF(AND(G191>CapFinanciera3,G191<=CapFinanciera4),Puntajes!$D$15,IF(G191>CapFinanciera4,Puntajes!$D$16,0))))))","v":""}]
[null,null,{"$f":"+'Capacidad Financiera'!B195","v":""},{"$f":"IF(ISERROR(VLOOKUP(C192,'Capacidad Financiera'!$B$12:$X$62720,2,0)),\"\",VLOOKUP(C192,'Capacidad Financiera'!$B$12:$X$3580,2,0))","v":0},{"$f":"IF(OR(C192=\"\",D192=\"\"),\"\",IF(ISERROR(VLOOKUP(D192,'Capacidad Financiera'!$C$13:$X$62720,3,0)),\"\",VLOOKUP(D192,'Capacidad Financiera'!$C$13:$X$62720,3,0)))","v":""},{"$f":"IF(OR(C192=\"\",D192=\"\"),\"\",IF(ISERROR(VLOOKUP(D192,'Capacidad Financiera'!$C$13:$X$62720,5,0)),\"\",VLOOKUP(D192,'Capacidad Financiera'!$C$13:$X$62720,5,0)))","v":""},"",{"$f":"IF(OR(D192=\"\",E192=\"\",F192=\"\"),\"\",IF(AND(G192>0,G192<=CapFinanciera1),Puntajes!$D$12,IF(AND(G192>CapFinanciera1,G192<=CapFinanciera2),Puntajes!$D$13,IF(AND(G192>CapFinanciera2,G192<=CapFinanciera3),Puntajes!$D$14,IF(AND(G192>CapFinanciera3,G192<=CapFinanciera4),Puntajes!$D$15,IF(G192>CapFinanciera4,Puntajes!$D$16,0))))))","v":""}]
[null,null,{"$f":"+'Capacidad Financiera'!B196","v":""},{"$f":"IF(ISERROR(VLOOKUP(C193,'Capacidad Financiera'!$B$12:$X$62720,2,0)),\"\",VLOOKUP(C193,'Capacidad Financiera'!$B$12:$X$3580,2,0))","v":0},{"$f":"IF(OR(C193=\"\",D193=\"\"),\"\",IF(ISERROR(VLOOKUP(D193,'Capacidad Financiera'!$C$13:$X$62720,3,0)),\"\",VLOOKUP(D193,'Capacidad Financiera'!$C$13:$X$62720,3,0)))","v":""},{"$f":"IF(OR(C193=\"\",D193=\"\"),\"\",IF(ISERROR(VLOOKUP(D193,'Capacidad Financiera'!$C$13:$X$62720,5,0)),\"\",VLOOKUP(D193,'Capacidad Financiera'!$C$13:$X$62720,5,0)))","v":""},"",{"$f":"IF(OR(D193=\"\",E193=\"\",F193=\"\"),\"\",IF(AND(G193>0,G193<=CapFinanciera1),Puntajes!$D$12,IF(AND(G193>CapFinanciera1,G193<=CapFinanciera2),Puntajes!$D$13,IF(AND(G193>CapFinanciera2,G193<=CapFinanciera3),Puntajes!$D$14,IF(AND(G193>CapFinanciera3,G193<=CapFinanciera4),Puntajes!$D$15,IF(G193>CapFinanciera4,Puntajes!$D$16,0))))))","v":""}]
[null,null,{"$f":"+'Capacidad Financiera'!B197","v":""},{"$f":"IF(ISERROR(VLOOKUP(C194,'Capacidad Financiera'!$B$12:$X$62720,2,0)),\"\",VLOOKUP(C194,'Capacidad Financiera'!$B$12:$X$3580,2,0))","v":0},{"$f":"IF(OR(C194=\"\",D194=\"\"),\"\",IF(ISERROR(VLOOKUP(D194,'Capacidad Financiera'!$C$13:$X$62720,3,0)),\"\",VLOOKUP(D194,'Capacidad Financiera'!$C$13:$X$62720,3,0)))","v":""},{"$f":"IF(OR(C194=\"\",D194=\"\"),\"\",IF(ISERROR(VLOOKUP(D194,'Capacidad Financiera'!$C$13:$X$62720,5,0)),\"\",VLOOKUP(D194,'Capacidad Financiera'!$C$13:$X$62720,5,0)))","v":""},"",{"$f":"IF(OR(D194=\"\",E194=\"\",F194=\"\"),\"\",IF(AND(G194>0,G194<=CapFinanciera1),Puntajes!$D$12,IF(AND(G194>CapFinanciera1,G194<=CapFinanciera2),Puntajes!$D$13,IF(AND(G194>CapFinanciera2,G194<=CapFinanciera3),Puntajes!$D$14,IF(AND(G194>CapFinanciera3,G194<=CapFinanciera4),Puntajes!$D$15,IF(G194>CapFinanciera4,Puntajes!$D$16,0))))))","v":""}]
[null,null,{"$f":"+'Capacidad Financiera'!B198","v":""},{"$f":"IF(ISERROR(VLOOKUP(C195,'Capacidad Financiera'!$B$12:$X$62720,2,0)),\"\",VLOOKUP(C195,'Capacidad Financiera'!$B$12:$X$3580,2,0))","v":0},{"$f":"IF(OR(C195=\"\",D195=\"\"),\"\",IF(ISERROR(VLOOKUP(D195,'Capacidad Financiera'!$C$13:$X$62720,3,0)),\"\",VLOOKUP(D195,'Capacidad Financiera'!$C$13:$X$62720,3,0)))","v":""},{"$f":"IF(OR(C195=\"\",D195=\"\"),\"\",IF(ISERROR(VLOOKUP(D195,'Capacidad Financiera'!$C$13:$X$62720,5,0)),\"\",VLOOKUP(D195,'Capacidad Financiera'!$C$13:$X$62720,5,0)))","v":""},"",{"$f":"IF(OR(D195=\"\",E195=\"\",F195=\"\"),\"\",IF(AND(G195>0,G195<=CapFinanciera1),Puntajes!$D$12,IF(AND(G195>CapFinanciera1,G195<=CapFinanciera2),Puntajes!$D$13,IF(AND(G195>CapFinanciera2,G195<=CapFinanciera3),Puntajes!$D$14,IF(AND(G195>CapFinanciera3,G195<=CapFinanciera4),Puntajes!$D$15,IF(G195>CapFinanciera4,Puntajes!$D$16,0))))))","v":""}]
[null,null,18,{"$f":"IF(ISERROR(VLOOKUP(C196,'Capacidad Financiera'!$B$12:$X$62720,2,0)),\"\",VLOOKUP(C196,'Capacidad Financiera'!$B$12:$X$3580,2,0))","v":"CONSORCIO VIAS HN"},{"$f":"IF(C197=\"\",IF(C196<>\"\",IF(ISERROR(VLOOKUP(D196,'Capacidad Financiera'!$C$12:$H$22,3,0)),\"\",VLOOKUP(D196,'Capacidad Financiera'!$C$12:$H$22,3,0))),\"\")","v":""},{"$f":"IF(C197=\"\",IF(C196<>\"\",IF(ISERROR(VLOOKUP(D196,'Capacidad Financiera'!$C$12:$H$22,5,0)),\"\",VLOOKUP(D196,'Capacidad Financiera'!$C$12:$H$22,5,0))),\"\")","v":""},{"$f":"IF(OR(D196=\"\",E196=\"\",F196=\"\"),\"\",IF(OR(E196=0,F196=0),0,E196/F196))","v":""},{"$f":"IF(C197=\"\",IF(AND(E196=\"\",F196=\"\"),\"\",IF(AND(G196>0,G196<=CapFinanciera1),Puntajes!$D$12,IF(AND(G196>CapFinanciera1,G196<=CapFinanciera2),Puntajes!$D$13,IF(AND(G196>CapFinanciera2,G196<=CapFinanciera3),Puntajes!$D$14,IF(AND(G196>CapFinanciera3,G196<=CapFinanciera4),Puntajes!$D$15,IF(G196>CapFinanciera4,Puntajes!$D$16,0)))))),\"\")","v":""}]
[null,null,{"$f":"+'Capacidad Financiera'!B200","v":18.100000000000001},{"$f":"IF(ISERROR(VLOOKUP(C197,'Capacidad Financiera'!$B$12:$X$62720,2,0)),\"\",VLOOKUP(C197,'Capacidad Financiera'!$B$12:$X$3580,2,0))","v":"LUIS FERNANDO HOYOS PEREZ"},{"$f":"IF(OR(C197=\"\",D197=\"\"),\"\",IF(ISERROR(VLOOKUP(D197,'Capacidad Financiera'!$C$13:$X$62720,3,0)),\"\",VLOOKUP(D197,'Capacidad Financiera'!$C$13:$X$62720,3,0)))","v":2255677333},{"$f":"IF(OR(C197=\"\",D197=\"\"),\"\",IF(ISERROR(VLOOKUP(D197,'Capacidad Financiera'!$C$13:$X$62720,5,0)),\"\",VLOOKUP(D197,'Capacidad Financiera'!$C$13:$X$62720,5,0)))","v":139077085},{"$f":"IF(OR(D197=\"\",E197=\"\",F197=\"\"),\"\",IF(OR(E197=0,F197=0),0,E197/F197))","v":16.218899993482033},{"$f":"IF(OR(D197=\"\",E197=\"\",F197=\"\"),\"\",IF(AND(G197>0,G197<=CapFinanciera1),Puntajes!$D$12,IF(AND(G197>CapFinanciera1,G197<=CapFinanciera2),Puntajes!$D$13,IF(AND(G197>CapFinanciera2,G197<=CapFinanciera3),Puntajes!$D$14,IF(AND(G197>CapFinanciera3,G197<=CapFinanciera4),Puntajes!$D$15,IF(G197>CapFinanciera4,Puntajes!$D$16,0))))))","v":40}]
[null,null,{"$f":"+'Capacidad Financiera'!B201","v":18.200000000000003},{"$f":"IF(ISERROR(VLOOKUP(C198,'Capacidad Financiera'!$B$12:$X$62720,2,0)),\"\",VLOOKUP(C198,'Capacidad Financiera'!$B$12:$X$3580,2,0))","v":"VICTOR RAUL NEIRA DELBASTO"},{"$f":"IF(OR(C198=\"\",D198=\"\"),\"\",IF(ISERROR(VLOOKUP(D198,'Capacidad Financiera'!$C$13:$X$62720,3,0)),\"\",VLOOKUP(D198,'Capacidad Financiera'!$C$13:$X$62720,3,0)))","v":801766071},{"$f":"IF(OR(C198=\"\",D198=\"\"),\"\",IF(ISERROR(VLOOKUP(D198,'Capacidad Financiera'!$C$13:$X$62720,5,0)),\"\",VLOOKUP(D198,'Capacidad Financiera'!$C$13:$X$62720,5,0)))","v":32404362},24.742535310523934,{"$f":"IF(OR(D198=\"\",E198=\"\",F198=\"\"),\"\",IF(AND(G198>0,G198<=CapFinanciera1),Puntajes!$D$12,IF(AND(G198>CapFinanciera1,G198<=CapFinanciera2),Puntajes!$D$13,IF(AND(G198>CapFinanciera2,G198<=CapFinanciera3),Puntajes!$D$14,IF(AND(G198>CapFinanciera3,G198<=CapFinanciera4),Puntajes!$D$15,IF(G198>CapFinanciera4,Puntajes!$D$16,0))))))","v":40}]
[null,null,{"$f":"+'Capacidad Financiera'!B202","v":""},{"$f":"IF(ISERROR(VLOOKUP(C199,'Capacidad Financiera'!$B$12:$X$62720,2,0)),\"\",VLOOKUP(C199,'Capacidad Financiera'!$B$12:$X$3580,2,0))","v":0},{"$f":"IF(OR(C199=\"\",D199=\"\"),\"\",IF(ISERROR(VLOOKUP(D199,'Capacidad Financiera'!$C$13:$X$62720,3,0)),\"\",VLOOKUP(D199,'Capacidad Financiera'!$C$13:$X$62720,3,0)))","v":""},{"$f":"IF(OR(C199=\"\",D199=\"\"),\"\",IF(ISERROR(VLOOKUP(D199,'Capacidad Financiera'!$C$13:$X$62720,5,0)),\"\",VLOOKUP(D199,'Capacidad Financiera'!$C$13:$X$62720,5,0)))","v":""},"",{"$f":"IF(OR(D199=\"\",E199=\"\",F199=\"\"),\"\",IF(AND(G199>0,G199<=CapFinanciera1),Puntajes!$D$12,IF(AND(G199>CapFinanciera1,G199<=CapFinanciera2),Puntajes!$D$13,IF(AND(G199>CapFinanciera2,G199<=CapFinanciera3),Puntajes!$D$14,IF(AND(G199>CapFinanciera3,G199<=CapFinanciera4),Puntajes!$D$15,IF(G199>CapFinanciera4,Puntajes!$D$16,0))))))","v":""}]
[null,null,{"$f":"+'Capacidad Financiera'!B203","v":""},{"$f":"IF(ISERROR(VLOOKUP(C200,'Capacidad Financiera'!$B$12:$X$62720,2,0)),\"\",VLOOKUP(C200,'Capacidad Financiera'!$B$12:$X$3580,2,0))","v":0},{"$f":"IF(OR(C200=\"\",D200=\"\"),\"\",IF(ISERROR(VLOOKUP(D200,'Capacidad Financiera'!$C$13:$X$62720,3,0)),\"\",VLOOKUP(D200,'Capacidad Financiera'!$C$13:$X$62720,3,0)))","v":""},{"$f":"IF(OR(C200=\"\",D200=\"\"),\"\",IF(ISERROR(VLOOKUP(D200,'Capacidad Financiera'!$C$13:$X$62720,5,0)),\"\",VLOOKUP(D200,'Capacidad Financiera'!$C$13:$X$62720,5,0)))","v":""},"",{"$f":"IF(OR(D200=\"\",E200=\"\",F200=\"\"),\"\",IF(AND(G200>0,G200<=CapFinanciera1),Puntajes!$D$12,IF(AND(G200>CapFinanciera1,G200<=CapFinanciera2),Puntajes!$D$13,IF(AND(G200>CapFinanciera2,G200<=CapFinanciera3),Puntajes!$D$14,IF(AND(G200>CapFinanciera3,G200<=CapFinanciera4),Puntajes!$D$15,IF(G200>CapFinanciera4,Puntajes!$D$16,0))))))","v":""}]
[null,null,{"$f":"+'Capacidad Financiera'!B204","v":""},{"$f":"IF(ISERROR(VLOOKUP(C201,'Capacidad Financiera'!$B$12:$X$62720,2,0)),\"\",VLOOKUP(C201,'Capacidad Financiera'!$B$12:$X$3580,2,0))","v":0},{"$f":"IF(OR(C201=\"\",D201=\"\"),\"\",IF(ISERROR(VLOOKUP(D201,'Capacidad Financiera'!$C$13:$X$62720,3,0)),\"\",VLOOKUP(D201,'Capacidad Financiera'!$C$13:$X$62720,3,0)))","v":""},{"$f":"IF(OR(C201=\"\",D201=\"\"),\"\",IF(ISERROR(VLOOKUP(D201,'Capacidad Financiera'!$C$13:$X$62720,5,0)),\"\",VLOOKUP(D201,'Capacidad Financiera'!$C$13:$X$62720,5,0)))","v":""},"",{"$f":"IF(OR(D201=\"\",E201=\"\",F201=\"\"),\"\",IF(AND(G201>0,G201<=CapFinanciera1),Puntajes!$D$12,IF(AND(G201>CapFinanciera1,G201<=CapFinanciera2),Puntajes!$D$13,IF(AND(G201>CapFinanciera2,G201<=CapFinanciera3),Puntajes!$D$14,IF(AND(G201>CapFinanciera3,G201<=CapFinanciera4),Puntajes!$D$15,IF(G201>CapFinanciera4,Puntajes!$D$16,0))))))","v":""}]
[null,null,{"$f":"+'Capacidad Financiera'!B205","v":""},{"$f":"IF(ISERROR(VLOOKUP(C202,'Capacidad Financiera'!$B$12:$X$62720,2,0)),\"\",VLOOKUP(C202,'Capacidad Financiera'!$B$12:$X$3580,2,0))","v":0},{"$f":"IF(OR(C202=\"\",D202=\"\"),\"\",IF(ISERROR(VLOOKUP(D202,'Capacidad Financiera'!$C$13:$X$62720,3,0)),\"\",VLOOKUP(D202,'Capacidad Financiera'!$C$13:$X$62720,3,0)))","v":""},{"$f":"IF(OR(C202=\"\",D202=\"\"),\"\",IF(ISERROR(VLOOKUP(D202,'Capacidad Financiera'!$C$13:$X$62720,5,0)),\"\",VLOOKUP(D202,'Capacidad Financiera'!$C$13:$X$62720,5,0)))","v":""},"",{"$f":"IF(OR(D202=\"\",E202=\"\",F202=\"\"),\"\",IF(AND(G202>0,G202<=CapFinanciera1),Puntajes!$D$12,IF(AND(G202>CapFinanciera1,G202<=CapFinanciera2),Puntajes!$D$13,IF(AND(G202>CapFinanciera2,G202<=CapFinanciera3),Puntajes!$D$14,IF(AND(G202>CapFinanciera3,G202<=CapFinanciera4),Puntajes!$D$15,IF(G202>CapFinanciera4,Puntajes!$D$16,0))))))","v":""}]
[null,null,{"$f":"+'Capacidad Financiera'!B206","v":""},{"$f":"IF(ISERROR(VLOOKUP(C203,'Capacidad Financiera'!$B$12:$X$62720,2,0)),\"\",VLOOKUP(C203,'Capacidad Financiera'!$B$12:$X$3580,2,0))","v":0},{"$f":"IF(OR(C203=\"\",D203=\"\"),\"\",IF(ISERROR(VLOOKUP(D203,'Capacidad Financiera'!$C$13:$X$62720,3,0)),\"\",VLOOKUP(D203,'Capacidad Financiera'!$C$13:$X$62720,3,0)))","v":""},{"$f":"IF(OR(C203=\"\",D203=\"\"),\"\",IF(ISERROR(VLOOKUP(D203,'Capacidad Financiera'!$C$13:$X$62720,5,0)),\"\",VLOOKUP(D203,'Capacidad Financiera'!$C$13:$X$62720,5,0)))","v":""},"",{"$f":"IF(OR(D203=\"\",E203=\"\",F203=\"\"),\"\",IF(AND(G203>0,G203<=CapFinanciera1),Puntajes!$D$12,IF(AND(G203>CapFinanciera1,G203<=CapFinanciera2),Puntajes!$D$13,IF(AND(G203>CapFinanciera2,G203<=CapFinanciera3),Puntajes!$D$14,IF(AND(G203>CapFinanciera3,G203<=CapFinanciera4),Puntajes!$D$15,IF(G203>CapFinanciera4,Puntajes!$D$16,0))))))","v":""}]
[null,null,{"$f":"+'Capacidad Financiera'!B207","v":""},{"$f":"IF(ISERROR(VLOOKUP(C204,'Capacidad Financiera'!$B$12:$X$62720,2,0)),\"\",VLOOKUP(C204,'Capacidad Financiera'!$B$12:$X$3580,2,0))","v":0},{"$f":"IF(OR(C204=\"\",D204=\"\"),\"\",IF(ISERROR(VLOOKUP(D204,'Capacidad Financiera'!$C$13:$X$62720,3,0)),\"\",VLOOKUP(D204,'Capacidad Financiera'!$C$13:$X$62720,3,0)))","v":""},{"$f":"IF(OR(C204=\"\",D204=\"\"),\"\",IF(ISERROR(VLOOKUP(D204,'Capacidad Financiera'!$C$13:$X$62720,5,0)),\"\",VLOOKUP(D204,'Capacidad Financiera'!$C$13:$X$62720,5,0)))","v":""},"",{"$f":"IF(OR(D204=\"\",E204=\"\",F204=\"\"),\"\",IF(AND(G204>0,G204<=CapFinanciera1),Puntajes!$D$12,IF(AND(G204>CapFinanciera1,G204<=CapFinanciera2),Puntajes!$D$13,IF(AND(G204>CapFinanciera2,G204<=CapFinanciera3),Puntajes!$D$14,IF(AND(G204>CapFinanciera3,G204<=CapFinanciera4),Puntajes!$D$15,IF(G204>CapFinanciera4,Puntajes!$D$16,0))))))","v":""}]
[null,null,{"$f":"+'Capacidad Financiera'!B208","v":""},{"$f":"IF(ISERROR(VLOOKUP(C205,'Capacidad Financiera'!$B$12:$X$62720,2,0)),\"\",VLOOKUP(C205,'Capacidad Financiera'!$B$12:$X$3580,2,0))","v":0},{"$f":"IF(OR(C205=\"\",D205=\"\"),\"\",IF(ISERROR(VLOOKUP(D205,'Capacidad Financiera'!$C$13:$X$62720,3,0)),\"\",VLOOKUP(D205,'Capacidad Financiera'!$C$13:$X$62720,3,0)))","v":""},{"$f":"IF(OR(C205=\"\",D205=\"\"),\"\",IF(ISERROR(VLOOKUP(D205,'Capacidad Financiera'!$C$13:$X$62720,5,0)),\"\",VLOOKUP(D205,'Capacidad Financiera'!$C$13:$X$62720,5,0)))","v":""},"",{"$f":"IF(OR(D205=\"\",E205=\"\",F205=\"\"),\"\",IF(AND(G205>0,G205<=CapFinanciera1),Puntajes!$D$12,IF(AND(G205>CapFinanciera1,G205<=CapFinanciera2),Puntajes!$D$13,IF(AND(G205>CapFinanciera2,G205<=CapFinanciera3),Puntajes!$D$14,IF(AND(G205>CapFinanciera3,G205<=CapFinanciera4),Puntajes!$D$15,IF(G205>CapFinanciera4,Puntajes!$D$16,0))))))","v":""}]
[null,null,{"$f":"+'Capacidad Financiera'!B209","v":""},{"$f":"IF(ISERROR(VLOOKUP(C206,'Capacidad Financiera'!$B$12:$X$62720,2,0)),\"\",VLOOKUP(C206,'Capacidad Financiera'!$B$12:$X$3580,2,0))","v":0},{"$f":"IF(OR(C206=\"\",D206=\"\"),\"\",IF(ISERROR(VLOOKUP(D206,'Capacidad Financiera'!$C$13:$X$62720,3,0)),\"\",VLOOKUP(D206,'Capacidad Financiera'!$C$13:$X$62720,3,0)))","v":""},{"$f":"IF(OR(C206=\"\",D206=\"\"),\"\",IF(ISERROR(VLOOKUP(D206,'Capacidad Financiera'!$C$13:$X$62720,5,0)),\"\",VLOOKUP(D206,'Capacidad Financiera'!$C$13:$X$62720,5,0)))","v":""},"",{"$f":"IF(OR(D206=\"\",E206=\"\",F206=\"\"),\"\",IF(AND(G206>0,G206<=CapFinanciera1),Puntajes!$D$12,IF(AND(G206>CapFinanciera1,G206<=CapFinanciera2),Puntajes!$D$13,IF(AND(G206>CapFinanciera2,G206<=CapFinanciera3),Puntajes!$D$14,IF(AND(G206>CapFinanciera3,G206<=CapFinanciera4),Puntajes!$D$15,IF(G206>CapFinanciera4,Puntajes!$D$16,0))))))","v":""}]
[null,null,19,{"$f":"IF(ISERROR(VLOOKUP(C207,'Capacidad Financiera'!$B$12:$X$62720,2,0)),\"\",VLOOKUP(C207,'Capacidad Financiera'!$B$12:$X$3580,2,0))","v":"EXPLANAN S.A."},{"$f":"IF(C208=\"\",IF(C207<>\"\",IF(ISERROR(VLOOKUP(D207,'Capacidad Financiera'!$C$12:$H$22,3,0)),\"\",VLOOKUP(D207,'Capacidad Financiera'!$C$12:$H$22,3,0))),\"\")","v":""},{"$f":"IF(C208=\"\",IF(C207<>\"\",IF(ISERROR(VLOOKUP(D207,'Capacidad Financiera'!$C$12:$H$22,5,0)),\"\",VLOOKUP(D207,'Capacidad Financiera'!$C$12:$H$22,5,0))),\"\")","v":""},{"$f":"IF(OR(D207=\"\",E207=\"\",F207=\"\"),\"\",IF(OR(E207=0,F207=0),0,E207/F207))","v":""},{"$f":"IF(C208=\"\",IF(AND(E207=\"\",F207=\"\"),\"\",IF(AND(G207>0,G207<=CapFinanciera1),Puntajes!$D$12,IF(AND(G207>CapFinanciera1,G207<=CapFinanciera2),Puntajes!$D$13,IF(AND(G207>CapFinanciera2,G207<=CapFinanciera3),Puntajes!$D$14,IF(AND(G207>CapFinanciera3,G207<=CapFinanciera4),Puntajes!$D$15,IF(G207>CapFinanciera4,Puntajes!$D$16,0)))))),\"\")","v":""}]
[null,null,{"$f":"+'Capacidad Financiera'!B211","v":19.100000000000001},{"$f":"IF(ISERROR(VLOOKUP(C208,'Capacidad Financiera'!$B$12:$X$62720,2,0)),\"\",VLOOKUP(C208,'Capacidad Financiera'!$B$12:$X$3580,2,0))","v":"EXPLANAN S.A."},{"$f":"IF(OR(C208=\"\",D208=\"\"),\"\",IF(ISERROR(VLOOKUP(D208,'Capacidad Financiera'!$C$13:$X$62720,3,0)),\"\",VLOOKUP(D208,'Capacidad Financiera'!$C$13:$X$62720,3,0)))","v":21479698000},{"$f":"IF(OR(C208=\"\",D208=\"\"),\"\",IF(ISERROR(VLOOKUP(D208,'Capacidad Financiera'!$C$13:$X$62720,5,0)),\"\",VLOOKUP(D208,'Capacidad Financiera'!$C$13:$X$62720,5,0)))","v":9926421000},{"$f":"IF(OR(D208=\"\",E208=\"\",F208=\"\"),\"\",IF(OR(E208=0,F208=0),0,E208/F208))","v":2.1638914972475982},{"$f":"IF(OR(D208=\"\",E208=\"\",F208=\"\"),\"\",IF(AND(G208>0,G208<=CapFinanciera1),Puntajes!$D$12,IF(AND(G208>CapFinanciera1,G208<=CapFinanciera2),Puntajes!$D$13,IF(AND(G208>CapFinanciera2,G208<=CapFinanciera3),Puntajes!$D$14,IF(AND(G208>CapFinanciera3,G208<=CapFinanciera4),Puntajes!$D$15,IF(G208>CapFinanciera4,Puntajes!$D$16,0))))))","v":40}]
[null,null,{"$f":"+'Capacidad Financiera'!B212","v":""},{"$f":"IF(ISERROR(VLOOKUP(C209,'Capacidad Financiera'!$B$12:$X$62720,2,0)),\"\",VLOOKUP(C209,'Capacidad Financiera'!$B$12:$X$3580,2,0))","v":0},{"$f":"IF(OR(C209=\"\",D209=\"\"),\"\",IF(ISERROR(VLOOKUP(D209,'Capacidad Financiera'!$C$13:$X$62720,3,0)),\"\",VLOOKUP(D209,'Capacidad Financiera'!$C$13:$X$62720,3,0)))","v":""},{"$f":"IF(OR(C209=\"\",D209=\"\"),\"\",IF(ISERROR(VLOOKUP(D209,'Capacidad Financiera'!$C$13:$X$62720,5,0)),\"\",VLOOKUP(D209,'Capacidad Financiera'!$C$13:$X$62720,5,0)))","v":""},"",{"$f":"IF(OR(D209=\"\",E209=\"\",F209=\"\"),\"\",IF(AND(G209>0,G209<=CapFinanciera1),Puntajes!$D$12,IF(AND(G209>CapFinanciera1,G209<=CapFinanciera2),Puntajes!$D$13,IF(AND(G209>CapFinanciera2,G209<=CapFinanciera3),Puntajes!$D$14,IF(AND(G209>CapFinanciera3,G209<=CapFinanciera4),Puntajes!$D$15,IF(G209>CapFinanciera4,Puntajes!$D$16,0))))))","v":""}]
[null,null,{"$f":"+'Capacidad Financiera'!B213","v":""},{"$f":"IF(ISERROR(VLOOKUP(C210,'Capacidad Financiera'!$B$12:$X$62720,2,0)),\"\",VLOOKUP(C210,'Capacidad Financiera'!$B$12:$X$3580,2,0))","v":0},{"$f":"IF(OR(C210=\"\",D210=\"\"),\"\",IF(ISERROR(VLOOKUP(D210,'Capacidad Financiera'!$C$13:$X$62720,3,0)),\"\",VLOOKUP(D210,'Capacidad Financiera'!$C$13:$X$62720,3,0)))","v":""},{"$f":"IF(OR(C210=\"\",D210=\"\"),\"\",IF(ISERROR(VLOOKUP(D210,'Capacidad Financiera'!$C$13:$X$62720,5,0)),\"\",VLOOKUP(D210,'Capacidad Financiera'!$C$13:$X$62720,5,0)))","v":""},"",{"$f":"IF(OR(D210=\"\",E210=\"\",F210=\"\"),\"\",IF(AND(G210>0,G210<=CapFinanciera1),Puntajes!$D$12,IF(AND(G210>CapFinanciera1,G210<=CapFinanciera2),Puntajes!$D$13,IF(AND(G210>CapFinanciera2,G210<=CapFinanciera3),Puntajes!$D$14,IF(AND(G210>CapFinanciera3,G210<=CapFinanciera4),Puntajes!$D$15,IF(G210>CapFinanciera4,Puntajes!$D$16,0))))))","v":""}]
[null,null,{"$f":"+'Capacidad Financiera'!B214","v":""},{"$f":"IF(ISERROR(VLOOKUP(C211,'Capacidad Financiera'!$B$12:$X$62720,2,0)),\"\",VLOOKUP(C211,'Capacidad Financiera'!$B$12:$X$3580,2,0))","v":0},{"$f":"IF(OR(C211=\"\",D211=\"\"),\"\",IF(ISERROR(VLOOKUP(D211,'Capacidad Financiera'!$C$13:$X$62720,3,0)),\"\",VLOOKUP(D211,'Capacidad Financiera'!$C$13:$X$62720,3,0)))","v":""},{"$f":"IF(OR(C211=\"\",D211=\"\"),\"\",IF(ISERROR(VLOOKUP(D211,'Capacidad Financiera'!$C$13:$X$62720,5,0)),\"\",VLOOKUP(D211,'Capacidad Financiera'!$C$13:$X$62720,5,0)))","v":""},"",{"$f":"IF(OR(D211=\"\",E211=\"\",F211=\"\"),\"\",IF(AND(G211>0,G211<=CapFinanciera1),Puntajes!$D$12,IF(AND(G211>CapFinanciera1,G211<=CapFinanciera2),Puntajes!$D$13,IF(AND(G211>CapFinanciera2,G211<=CapFinanciera3),Puntajes!$D$14,IF(AND(G211>CapFinanciera3,G211<=CapFinanciera4),Puntajes!$D$15,IF(G211>CapFinanciera4,Puntajes!$D$16,0))))))","v":""}]
[null,null,{"$f":"+'Capacidad Financiera'!B215","v":""},{"$f":"IF(ISERROR(VLOOKUP(C212,'Capacidad Financiera'!$B$12:$X$62720,2,0)),\"\",VLOOKUP(C212,'Capacidad Financiera'!$B$12:$X$3580,2,0))","v":0},{"$f":"IF(OR(C212=\"\",D212=\"\"),\"\",IF(ISERROR(VLOOKUP(D212,'Capacidad Financiera'!$C$13:$X$62720,3,0)),\"\",VLOOKUP(D212,'Capacidad Financiera'!$C$13:$X$62720,3,0)))","v":""},{"$f":"IF(OR(C212=\"\",D212=\"\"),\"\",IF(ISERROR(VLOOKUP(D212,'Capacidad Financiera'!$C$13:$X$62720,5,0)),\"\",VLOOKUP(D212,'Capacidad Financiera'!$C$13:$X$62720,5,0)))","v":""},"",{"$f":"IF(OR(D212=\"\",E212=\"\",F212=\"\"),\"\",IF(AND(G212>0,G212<=CapFinanciera1),Puntajes!$D$12,IF(AND(G212>CapFinanciera1,G212<=CapFinanciera2),Puntajes!$D$13,IF(AND(G212>CapFinanciera2,G212<=CapFinanciera3),Puntajes!$D$14,IF(AND(G212>CapFinanciera3,G212<=CapFinanciera4),Puntajes!$D$15,IF(G212>CapFinanciera4,Puntajes!$D$16,0))))))","v":""}]
[null,null,{"$f":"+'Capacidad Financiera'!B216","v":""},{"$f":"IF(ISERROR(VLOOKUP(C213,'Capacidad Financiera'!$B$12:$X$62720,2,0)),\"\",VLOOKUP(C213,'Capacidad Financiera'!$B$12:$X$3580,2,0))","v":0},{"$f":"IF(OR(C213=\"\",D213=\"\"),\"\",IF(ISERROR(VLOOKUP(D213,'Capacidad Financiera'!$C$13:$X$62720,3,0)),\"\",VLOOKUP(D213,'Capacidad Financiera'!$C$13:$X$62720,3,0)))","v":""},{"$f":"IF(OR(C213=\"\",D213=\"\"),\"\",IF(ISERROR(VLOOKUP(D213,'Capacidad Financiera'!$C$13:$X$62720,5,0)),\"\",VLOOKUP(D213,'Capacidad Financiera'!$C$13:$X$62720,5,0)))","v":""},"",{"$f":"IF(OR(D213=\"\",E213=\"\",F213=\"\"),\"\",IF(AND(G213>0,G213<=CapFinanciera1),Puntajes!$D$12,IF(AND(G213>CapFinanciera1,G213<=CapFinanciera2),Puntajes!$D$13,IF(AND(G213>CapFinanciera2,G213<=CapFinanciera3),Puntajes!$D$14,IF(AND(G213>CapFinanciera3,G213<=CapFinanciera4),Puntajes!$D$15,IF(G213>CapFinanciera4,Puntajes!$D$16,0))))))","v":""}]
[null,null,{"$f":"+'Capacidad Financiera'!B217","v":""},{"$f":"IF(ISERROR(VLOOKUP(C214,'Capacidad Financiera'!$B$12:$X$62720,2,0)),\"\",VLOOKUP(C214,'Capacidad Financiera'!$B$12:$X$3580,2,0))","v":0},{"$f":"IF(OR(C214=\"\",D214=\"\"),\"\",IF(ISERROR(VLOOKUP(D214,'Capacidad Financiera'!$C$13:$X$62720,3,0)),\"\",VLOOKUP(D214,'Capacidad Financiera'!$C$13:$X$62720,3,0)))","v":""},{"$f":"IF(OR(C214=\"\",D214=\"\"),\"\",IF(ISERROR(VLOOKUP(D214,'Capacidad Financiera'!$C$13:$X$62720,5,0)),\"\",VLOOKUP(D214,'Capacidad Financiera'!$C$13:$X$62720,5,0)))","v":""},"",{"$f":"IF(OR(D214=\"\",E214=\"\",F214=\"\"),\"\",IF(AND(G214>0,G214<=CapFinanciera1),Puntajes!$D$12,IF(AND(G214>CapFinanciera1,G214<=CapFinanciera2),Puntajes!$D$13,IF(AND(G214>CapFinanciera2,G214<=CapFinanciera3),Puntajes!$D$14,IF(AND(G214>CapFinanciera3,G214<=CapFinanciera4),Puntajes!$D$15,IF(G214>CapFinanciera4,Puntajes!$D$16,0))))))","v":""}]
[null,null,{"$f":"+'Capacidad Financiera'!B218","v":""},{"$f":"IF(ISERROR(VLOOKUP(C215,'Capacidad Financiera'!$B$12:$X$62720,2,0)),\"\",VLOOKUP(C215,'Capacidad Financiera'!$B$12:$X$3580,2,0))","v":0},{"$f":"IF(OR(C215=\"\",D215=\"\"),\"\",IF(ISERROR(VLOOKUP(D215,'Capacidad Financiera'!$C$13:$X$62720,3,0)),\"\",VLOOKUP(D215,'Capacidad Financiera'!$C$13:$X$62720,3,0)))","v":""},{"$f":"IF(OR(C215=\"\",D215=\"\"),\"\",IF(ISERROR(VLOOKUP(D215,'Capacidad Financiera'!$C$13:$X$62720,5,0)),\"\",VLOOKUP(D215,'Capacidad Financiera'!$C$13:$X$62720,5,0)))","v":""},"",{"$f":"IF(OR(D215=\"\",E215=\"\",F215=\"\"),\"\",IF(AND(G215>0,G215<=CapFinanciera1),Puntajes!$D$12,IF(AND(G215>CapFinanciera1,G215<=CapFinanciera2),Puntajes!$D$13,IF(AND(G215>CapFinanciera2,G215<=CapFinanciera3),Puntajes!$D$14,IF(AND(G215>CapFinanciera3,G215<=CapFinanciera4),Puntajes!$D$15,IF(G215>CapFinanciera4,Puntajes!$D$16,0))))))","v":""}]
[null,null,{"$f":"+'Capacidad Financiera'!B219","v":""},{"$f":"IF(ISERROR(VLOOKUP(C216,'Capacidad Financiera'!$B$12:$X$62720,2,0)),\"\",VLOOKUP(C216,'Capacidad Financiera'!$B$12:$X$3580,2,0))","v":0},{"$f":"IF(OR(C216=\"\",D216=\"\"),\"\",IF(ISERROR(VLOOKUP(D216,'Capacidad Financiera'!$C$13:$X$62720,3,0)),\"\",VLOOKUP(D216,'Capacidad Financiera'!$C$13:$X$62720,3,0)))","v":""},{"$f":"IF(OR(C216=\"\",D216=\"\"),\"\",IF(ISERROR(VLOOKUP(D216,'Capacidad Financiera'!$C$13:$X$62720,5,0)),\"\",VLOOKUP(D216,'Capacidad Financiera'!$C$13:$X$62720,5,0)))","v":""},"",{"$f":"IF(OR(D216=\"\",E216=\"\",F216=\"\"),\"\",IF(AND(G216>0,G216<=CapFinanciera1),Puntajes!$D$12,IF(AND(G216>CapFinanciera1,G216<=CapFinanciera2),Puntajes!$D$13,IF(AND(G216>CapFinanciera2,G216<=CapFinanciera3),Puntajes!$D$14,IF(AND(G216>CapFinanciera3,G216<=CapFinanciera4),Puntajes!$D$15,IF(G216>CapFinanciera4,Puntajes!$D$16,0))))))","v":""}]
[null,null,{"$f":"+'Capacidad Financiera'!B220","v":""},{"$f":"IF(ISERROR(VLOOKUP(C217,'Capacidad Financiera'!$B$12:$X$62720,2,0)),\"\",VLOOKUP(C217,'Capacidad Financiera'!$B$12:$X$3580,2,0))","v":0},{"$f":"IF(OR(C217=\"\",D217=\"\"),\"\",IF(ISERROR(VLOOKUP(D217,'Capacidad Financiera'!$C$13:$X$62720,3,0)),\"\",VLOOKUP(D217,'Capacidad Financiera'!$C$13:$X$62720,3,0)))","v":""},{"$f":"IF(OR(C217=\"\",D217=\"\"),\"\",IF(ISERROR(VLOOKUP(D217,'Capacidad Financiera'!$C$13:$X$62720,5,0)),\"\",VLOOKUP(D217,'Capacidad Financiera'!$C$13:$X$62720,5,0)))","v":""},"",{"$f":"IF(OR(D217=\"\",E217=\"\",F217=\"\"),\"\",IF(AND(G217>0,G217<=CapFinanciera1),Puntajes!$D$12,IF(AND(G217>CapFinanciera1,G217<=CapFinanciera2),Puntajes!$D$13,IF(AND(G217>CapFinanciera2,G217<=CapFinanciera3),Puntajes!$D$14,IF(AND(G217>CapFinanciera3,G217<=CapFinanciera4),Puntajes!$D$15,IF(G217>CapFinanciera4,Puntajes!$D$16,0))))))","v":""}]
[null,null,20,{"$f":"IF(ISERROR(VLOOKUP(C218,'Capacidad Financiera'!$B$12:$X$62720,2,0)),\"\",VLOOKUP(C218,'Capacidad Financiera'!$B$12:$X$3580,2,0))","v":"CONSORCIO VIAL LA CALERA"},{"$f":"IF(C219=\"\",IF(C218<>\"\",IF(ISERROR(VLOOKUP(D218,'Capacidad Financiera'!$C$12:$H$22,3,0)),\"\",VLOOKUP(D218,'Capacidad Financiera'!$C$12:$H$22,3,0))),\"\")","v":""},{"$f":"IF(C219=\"\",IF(C218<>\"\",IF(ISERROR(VLOOKUP(D218,'Capacidad Financiera'!$C$12:$H$22,5,0)),\"\",VLOOKUP(D218,'Capacidad Financiera'!$C$12:$H$22,5,0))),\"\")","v":""},{"$f":"IF(OR(D218=\"\",E218=\"\",F218=\"\"),\"\",IF(OR(E218=0,F218=0),0,E218/F218))","v":""},{"$f":"IF(C219=\"\",IF(AND(E218=\"\",F218=\"\"),\"\",IF(AND(G218>0,G218<=CapFinanciera1),Puntajes!$D$12,IF(AND(G218>CapFinanciera1,G218<=CapFinanciera2),Puntajes!$D$13,IF(AND(G218>CapFinanciera2,G218<=CapFinanciera3),Puntajes!$D$14,IF(AND(G218>CapFinanciera3,G218<=CapFinanciera4),Puntajes!$D$15,IF(G218>CapFinanciera4,Puntajes!$D$16,0)))))),\"\")","v":""}]
[null,null,{"$f":"+'Capacidad Financiera'!B222","v":20.100000000000001},{"$f":"IF(ISERROR(VLOOKUP(C219,'Capacidad Financiera'!$B$12:$X$62720,2,0)),\"\",VLOOKUP(C219,'Capacidad Financiera'!$B$12:$X$3580,2,0))","v":"ARMANDO VALENCIA VALENCIA"},{"$f":"IF(OR(C219=\"\",D219=\"\"),\"\",IF(ISERROR(VLOOKUP(D219,'Capacidad Financiera'!$C$13:$X$62720,3,0)),\"\",VLOOKUP(D219,'Capacidad Financiera'!$C$13:$X$62720,3,0)))","v":5590151157},{"$f":"IF(OR(C219=\"\",D219=\"\"),\"\",IF(ISERROR(VLOOKUP(D219,'Capacidad Financiera'!$C$13:$X$62720,5,0)),\"\",VLOOKUP(D219,'Capacidad Financiera'!$C$13:$X$62720,5,0)))","v":1292864654},{"$f":"IF(OR(D219=\"\",E219=\"\",F219=\"\"),\"\",IF(OR(E219=0,F219=0),0,E219/F219))","v":4.3238487027273935},{"$f":"IF(OR(D219=\"\",E219=\"\",F219=\"\"),\"\",IF(AND(G219>0,G219<=CapFinanciera1),Puntajes!$D$12,IF(AND(G219>CapFinanciera1,G219<=CapFinanciera2),Puntajes!$D$13,IF(AND(G219>CapFinanciera2,G219<=CapFinanciera3),Puntajes!$D$14,IF(AND(G219>CapFinanciera3,G219<=CapFinanciera4),Puntajes!$D$15,IF(G219>CapFinanciera4,Puntajes!$D$16,0))))))","v":40}]
[null,null,{"$f":"+'Capacidad Financiera'!B223","v":20.200000000000003},{"$f":"IF(ISERROR(VLOOKUP(C220,'Capacidad Financiera'!$B$12:$X$62720,2,0)),\"\",VLOOKUP(C220,'Capacidad Financiera'!$B$12:$X$3580,2,0))","v":"OLGA VELEZ MESA"},{"$f":"IF(OR(C220=\"\",D220=\"\"),\"\",IF(ISERROR(VLOOKUP(D220,'Capacidad Financiera'!$C$13:$X$62720,3,0)),\"\",VLOOKUP(D220,'Capacidad Financiera'!$C$13:$X$62720,3,0)))","v":1365990840},{"$f":"IF(OR(C220=\"\",D220=\"\"),\"\",IF(ISERROR(VLOOKUP(D220,'Capacidad Financiera'!$C$13:$X$62720,5,0)),\"\",VLOOKUP(D220,'Capacidad Financiera'!$C$13:$X$62720,5,0)))","v":670148580},2.0383402737345202,{"$f":"IF(OR(D220=\"\",E220=\"\",F220=\"\"),\"\",IF(AND(G220>0,G220<=CapFinanciera1),Puntajes!$D$12,IF(AND(G220>CapFinanciera1,G220<=CapFinanciera2),Puntajes!$D$13,IF(AND(G220>CapFinanciera2,G220<=CapFinanciera3),Puntajes!$D$14,IF(AND(G220>CapFinanciera3,G220<=CapFinanciera4),Puntajes!$D$15,IF(G220>CapFinanciera4,Puntajes!$D$16,0))))))","v":40}]
[null,null,{"$f":"+'Capacidad Financiera'!B224","v":""},{"$f":"IF(ISERROR(VLOOKUP(C221,'Capacidad Financiera'!$B$12:$X$62720,2,0)),\"\",VLOOKUP(C221,'Capacidad Financiera'!$B$12:$X$3580,2,0))","v":0},{"$f":"IF(OR(C221=\"\",D221=\"\"),\"\",IF(ISERROR(VLOOKUP(D221,'Capacidad Financiera'!$C$13:$X$62720,3,0)),\"\",VLOOKUP(D221,'Capacidad Financiera'!$C$13:$X$62720,3,0)))","v":""},{"$f":"IF(OR(C221=\"\",D221=\"\"),\"\",IF(ISERROR(VLOOKUP(D221,'Capacidad Financiera'!$C$13:$X$62720,5,0)),\"\",VLOOKUP(D221,'Capacidad Financiera'!$C$13:$X$62720,5,0)))","v":""},"",{"$f":"IF(OR(D221=\"\",E221=\"\",F221=\"\"),\"\",IF(AND(G221>0,G221<=CapFinanciera1),Puntajes!$D$12,IF(AND(G221>CapFinanciera1,G221<=CapFinanciera2),Puntajes!$D$13,IF(AND(G221>CapFinanciera2,G221<=CapFinanciera3),Puntajes!$D$14,IF(AND(G221>CapFinanciera3,G221<=CapFinanciera4),Puntajes!$D$15,IF(G221>CapFinanciera4,Puntajes!$D$16,0))))))","v":""}]
[null,null,{"$f":"+'Capacidad Financiera'!B225","v":""},{"$f":"IF(ISERROR(VLOOKUP(C222,'Capacidad Financiera'!$B$12:$X$62720,2,0)),\"\",VLOOKUP(C222,'Capacidad Financiera'!$B$12:$X$3580,2,0))","v":0},{"$f":"IF(OR(C222=\"\",D222=\"\"),\"\",IF(ISERROR(VLOOKUP(D222,'Capacidad Financiera'!$C$13:$X$62720,3,0)),\"\",VLOOKUP(D222,'Capacidad Financiera'!$C$13:$X$62720,3,0)))","v":""},{"$f":"IF(OR(C222=\"\",D222=\"\"),\"\",IF(ISERROR(VLOOKUP(D222,'Capacidad Financiera'!$C$13:$X$62720,5,0)),\"\",VLOOKUP(D222,'Capacidad Financiera'!$C$13:$X$62720,5,0)))","v":""},"",{"$f":"IF(OR(D222=\"\",E222=\"\",F222=\"\"),\"\",IF(AND(G222>0,G222<=CapFinanciera1),Puntajes!$D$12,IF(AND(G222>CapFinanciera1,G222<=CapFinanciera2),Puntajes!$D$13,IF(AND(G222>CapFinanciera2,G222<=CapFinanciera3),Puntajes!$D$14,IF(AND(G222>CapFinanciera3,G222<=CapFinanciera4),Puntajes!$D$15,IF(G222>CapFinanciera4,Puntajes!$D$16,0))))))","v":""}]
[null,null,{"$f":"+'Capacidad Financiera'!B226","v":""},{"$f":"IF(ISERROR(VLOOKUP(C223,'Capacidad Financiera'!$B$12:$X$62720,2,0)),\"\",VLOOKUP(C223,'Capacidad Financiera'!$B$12:$X$3580,2,0))","v":0},{"$f":"IF(OR(C223=\"\",D223=\"\"),\"\",IF(ISERROR(VLOOKUP(D223,'Capacidad Financiera'!$C$13:$X$62720,3,0)),\"\",VLOOKUP(D223,'Capacidad Financiera'!$C$13:$X$62720,3,0)))","v":""},{"$f":"IF(OR(C223=\"\",D223=\"\"),\"\",IF(ISERROR(VLOOKUP(D223,'Capacidad Financiera'!$C$13:$X$62720,5,0)),\"\",VLOOKUP(D223,'Capacidad Financiera'!$C$13:$X$62720,5,0)))","v":""},"",{"$f":"IF(OR(D223=\"\",E223=\"\",F223=\"\"),\"\",IF(AND(G223>0,G223<=CapFinanciera1),Puntajes!$D$12,IF(AND(G223>CapFinanciera1,G223<=CapFinanciera2),Puntajes!$D$13,IF(AND(G223>CapFinanciera2,G223<=CapFinanciera3),Puntajes!$D$14,IF(AND(G223>CapFinanciera3,G223<=CapFinanciera4),Puntajes!$D$15,IF(G223>CapFinanciera4,Puntajes!$D$16,0))))))","v":""}]
[null,null,{"$f":"+'Capacidad Financiera'!B227","v":""},{"$f":"IF(ISERROR(VLOOKUP(C224,'Capacidad Financiera'!$B$12:$X$62720,2,0)),\"\",VLOOKUP(C224,'Capacidad Financiera'!$B$12:$X$3580,2,0))","v":0},{"$f":"IF(OR(C224=\"\",D224=\"\"),\"\",IF(ISERROR(VLOOKUP(D224,'Capacidad Financiera'!$C$13:$X$62720,3,0)),\"\",VLOOKUP(D224,'Capacidad Financiera'!$C$13:$X$62720,3,0)))","v":""},{"$f":"IF(OR(C224=\"\",D224=\"\"),\"\",IF(ISERROR(VLOOKUP(D224,'Capacidad Financiera'!$C$13:$X$62720,5,0)),\"\",VLOOKUP(D224,'Capacidad Financiera'!$C$13:$X$62720,5,0)))","v":""},"",{"$f":"IF(OR(D224=\"\",E224=\"\",F224=\"\"),\"\",IF(AND(G224>0,G224<=CapFinanciera1),Puntajes!$D$12,IF(AND(G224>CapFinanciera1,G224<=CapFinanciera2),Puntajes!$D$13,IF(AND(G224>CapFinanciera2,G224<=CapFinanciera3),Puntajes!$D$14,IF(AND(G224>CapFinanciera3,G224<=CapFinanciera4),Puntajes!$D$15,IF(G224>CapFinanciera4,Puntajes!$D$16,0))))))","v":""}]
[null,null,{"$f":"+'Capacidad Financiera'!B228","v":""},{"$f":"IF(ISERROR(VLOOKUP(C225,'Capacidad Financiera'!$B$12:$X$62720,2,0)),\"\",VLOOKUP(C225,'Capacidad Financiera'!$B$12:$X$3580,2,0))","v":0},{"$f":"IF(OR(C225=\"\",D225=\"\"),\"\",IF(ISERROR(VLOOKUP(D225,'Capacidad Financiera'!$C$13:$X$62720,3,0)),\"\",VLOOKUP(D225,'Capacidad Financiera'!$C$13:$X$62720,3,0)))","v":""},{"$f":"IF(OR(C225=\"\",D225=\"\"),\"\",IF(ISERROR(VLOOKUP(D225,'Capacidad Financiera'!$C$13:$X$62720,5,0)),\"\",VLOOKUP(D225,'Capacidad Financiera'!$C$13:$X$62720,5,0)))","v":""},"",{"$f":"IF(OR(D225=\"\",E225=\"\",F225=\"\"),\"\",IF(AND(G225>0,G225<=CapFinanciera1),Puntajes!$D$12,IF(AND(G225>CapFinanciera1,G225<=CapFinanciera2),Puntajes!$D$13,IF(AND(G225>CapFinanciera2,G225<=CapFinanciera3),Puntajes!$D$14,IF(AND(G225>CapFinanciera3,G225<=CapFinanciera4),Puntajes!$D$15,IF(G225>CapFinanciera4,Puntajes!$D$16,0))))))","v":""}]
[null,null,{"$f":"+'Capacidad Financiera'!B229","v":""},{"$f":"IF(ISERROR(VLOOKUP(C226,'Capacidad Financiera'!$B$12:$X$62720,2,0)),\"\",VLOOKUP(C226,'Capacidad Financiera'!$B$12:$X$3580,2,0))","v":0},{"$f":"IF(OR(C226=\"\",D226=\"\"),\"\",IF(ISERROR(VLOOKUP(D226,'Capacidad Financiera'!$C$13:$X$62720,3,0)),\"\",VLOOKUP(D226,'Capacidad Financiera'!$C$13:$X$62720,3,0)))","v":""},{"$f":"IF(OR(C226=\"\",D226=\"\"),\"\",IF(ISERROR(VLOOKUP(D226,'Capacidad Financiera'!$C$13:$X$62720,5,0)),\"\",VLOOKUP(D226,'Capacidad Financiera'!$C$13:$X$62720,5,0)))","v":""},"",{"$f":"IF(OR(D226=\"\",E226=\"\",F226=\"\"),\"\",IF(AND(G226>0,G226<=CapFinanciera1),Puntajes!$D$12,IF(AND(G226>CapFinanciera1,G226<=CapFinanciera2),Puntajes!$D$13,IF(AND(G226>CapFinanciera2,G226<=CapFinanciera3),Puntajes!$D$14,IF(AND(G226>CapFinanciera3,G226<=CapFinanciera4),Puntajes!$D$15,IF(G226>CapFinanciera4,Puntajes!$D$16,0))))))","v":""}]
[null,null,{"$f":"+'Capacidad Financiera'!B230","v":""},{"$f":"IF(ISERROR(VLOOKUP(C227,'Capacidad Financiera'!$B$12:$X$62720,2,0)),\"\",VLOOKUP(C227,'Capacidad Financiera'!$B$12:$X$3580,2,0))","v":0},{"$f":"IF(OR(C227=\"\",D227=\"\"),\"\",IF(ISERROR(VLOOKUP(D227,'Capacidad Financiera'!$C$13:$X$62720,3,0)),\"\",VLOOKUP(D227,'Capacidad Financiera'!$C$13:$X$62720,3,0)))","v":""},{"$f":"IF(OR(C227=\"\",D227=\"\"),\"\",IF(ISERROR(VLOOKUP(D227,'Capacidad Financiera'!$C$13:$X$62720,5,0)),\"\",VLOOKUP(D227,'Capacidad Financiera'!$C$13:$X$62720,5,0)))","v":""},"",{"$f":"IF(OR(D227=\"\",E227=\"\",F227=\"\"),\"\",IF(AND(G227>0,G227<=CapFinanciera1),Puntajes!$D$12,IF(AND(G227>CapFinanciera1,G227<=CapFinanciera2),Puntajes!$D$13,IF(AND(G227>CapFinanciera2,G227<=CapFinanciera3),Puntajes!$D$14,IF(AND(G227>CapFinanciera3,G227<=CapFinanciera4),Puntajes!$D$15,IF(G227>CapFinanciera4,Puntajes!$D$16,0))))))","v":""}]
[null,null,{"$f":"+'Capacidad Financiera'!B231","v":""},{"$f":"IF(ISERROR(VLOOKUP(C228,'Capacidad Financiera'!$B$12:$X$62720,2,0)),\"\",VLOOKUP(C228,'Capacidad Financiera'!$B$12:$X$3580,2,0))","v":0},{"$f":"IF(OR(C228=\"\",D228=\"\"),\"\",IF(ISERROR(VLOOKUP(D228,'Capacidad Financiera'!$C$13:$X$62720,3,0)),\"\",VLOOKUP(D228,'Capacidad Financiera'!$C$13:$X$62720,3,0)))","v":""},{"$f":"IF(OR(C228=\"\",D228=\"\"),\"\",IF(ISERROR(VLOOKUP(D228,'Capacidad Financiera'!$C$13:$X$62720,5,0)),\"\",VLOOKUP(D228,'Capacidad Financiera'!$C$13:$X$62720,5,0)))","v":""},"",{"$f":"IF(OR(D228=\"\",E228=\"\",F228=\"\"),\"\",IF(AND(G228>0,G228<=CapFinanciera1),Puntajes!$D$12,IF(AND(G228>CapFinanciera1,G228<=CapFinanciera2),Puntajes!$D$13,IF(AND(G228>CapFinanciera2,G228<=CapFinanciera3),Puntajes!$D$14,IF(AND(G228>CapFinanciera3,G228<=CapFinanciera4),Puntajes!$D$15,IF(G228>CapFinanciera4,Puntajes!$D$16,0))))))","v":""}]
[null,null,21,{"$f":"IF(ISERROR(VLOOKUP(C229,'Capacidad Financiera'!$B$12:$X$62720,2,0)),\"\",VLOOKUP(C229,'Capacidad Financiera'!$B$12:$X$3580,2,0))","v":"CONSORCIO VIAL COLOMBIA 2014"},{"$f":"IF(C230=\"\",IF(C229<>\"\",IF(ISERROR(VLOOKUP(D229,'Capacidad Financiera'!$C$12:$H$22,3,0)),\"\",VLOOKUP(D229,'Capacidad Financiera'!$C$12:$H$22,3,0))),\"\")","v":""},{"$f":"IF(C230=\"\",IF(C229<>\"\",IF(ISERROR(VLOOKUP(D229,'Capacidad Financiera'!$C$12:$H$22,5,0)),\"\",VLOOKUP(D229,'Capacidad Financiera'!$C$12:$H$22,5,0))),\"\")","v":""},{"$f":"IF(OR(D229=\"\",E229=\"\",F229=\"\"),\"\",IF(OR(E229=0,F229=0),0,E229/F229))","v":""},{"$f":"IF(C230=\"\",IF(AND(E229=\"\",F229=\"\"),\"\",IF(AND(G229>0,G229<=CapFinanciera1),Puntajes!$D$12,IF(AND(G229>CapFinanciera1,G229<=CapFinanciera2),Puntajes!$D$13,IF(AND(G229>CapFinanciera2,G229<=CapFinanciera3),Puntajes!$D$14,IF(AND(G229>CapFinanciera3,G229<=CapFinanciera4),Puntajes!$D$15,IF(G229>CapFinanciera4,Puntajes!$D$16,0)))))),\"\")","v":""}]
[null,null,{"$f":"+'Capacidad Financiera'!B233","v":21.1},{"$f":"IF(ISERROR(VLOOKUP(C230,'Capacidad Financiera'!$B$12:$X$62720,2,0)),\"\",VLOOKUP(C230,'Capacidad Financiera'!$B$12:$X$3580,2,0))","v":"SARIA S.A.S."},{"$f":"IF(OR(C230=\"\",D230=\"\"),\"\",IF(ISERROR(VLOOKUP(D230,'Capacidad Financiera'!$C$13:$X$62720,3,0)),\"\",VLOOKUP(D230,'Capacidad Financiera'!$C$13:$X$62720,3,0)))","v":5034888897},{"$f":"IF(OR(C230=\"\",D230=\"\"),\"\",IF(ISERROR(VLOOKUP(D230,'Capacidad Financiera'!$C$13:$X$62720,5,0)),\"\",VLOOKUP(D230,'Capacidad Financiera'!$C$13:$X$62720,5,0)))","v":601425869},{"$f":"IF(OR(D230=\"\",E230=\"\",F230=\"\"),\"\",IF(OR(E230=0,F230=0),0,E230/F230))","v":8.3715868513796838},{"$f":"IF(OR(D230=\"\",E230=\"\",F230=\"\"),\"\",IF(AND(G230>0,G230<=CapFinanciera1),Puntajes!$D$12,IF(AND(G230>CapFinanciera1,G230<=CapFinanciera2),Puntajes!$D$13,IF(AND(G230>CapFinanciera2,G230<=CapFinanciera3),Puntajes!$D$14,IF(AND(G230>CapFinanciera3,G230<=CapFinanciera4),Puntajes!$D$15,IF(G230>CapFinanciera4,Puntajes!$D$16,0))))))","v":40}]
[null,null,{"$f":"+'Capacidad Financiera'!B234","v":21.200000000000003},{"$f":"IF(ISERROR(VLOOKUP(C231,'Capacidad Financiera'!$B$12:$X$62720,2,0)),\"\",VLOOKUP(C231,'Capacidad Financiera'!$B$12:$X$3580,2,0))","v":"TRAINCO S.A."},{"$f":"IF(OR(C231=\"\",D231=\"\"),\"\",IF(ISERROR(VLOOKUP(D231,'Capacidad Financiera'!$C$13:$X$62720,3,0)),\"\",VLOOKUP(D231,'Capacidad Financiera'!$C$13:$X$62720,3,0)))","v":4246798835},{"$f":"IF(OR(C231=\"\",D231=\"\"),\"\",IF(ISERROR(VLOOKUP(D231,'Capacidad Financiera'!$C$13:$X$62720,5,0)),\"\",VLOOKUP(D231,'Capacidad Financiera'!$C$13:$X$62720,5,0)))","v":267229983},15.89192495289722,{"$f":"IF(OR(D231=\"\",E231=\"\",F231=\"\"),\"\",IF(AND(G231>0,G231<=CapFinanciera1),Puntajes!$D$12,IF(AND(G231>CapFinanciera1,G231<=CapFinanciera2),Puntajes!$D$13,IF(AND(G231>CapFinanciera2,G231<=CapFinanciera3),Puntajes!$D$14,IF(AND(G231>CapFinanciera3,G231<=CapFinanciera4),Puntajes!$D$15,IF(G231>CapFinanciera4,Puntajes!$D$16,0))))))","v":40}]
[null,null,{"$f":"+'Capacidad Financiera'!B235","v":""},{"$f":"IF(ISERROR(VLOOKUP(C232,'Capacidad Financiera'!$B$12:$X$62720,2,0)),\"\",VLOOKUP(C232,'Capacidad Financiera'!$B$12:$X$3580,2,0))","v":0},{"$f":"IF(OR(C232=\"\",D232=\"\"),\"\",IF(ISERROR(VLOOKUP(D232,'Capacidad Financiera'!$C$13:$X$62720,3,0)),\"\",VLOOKUP(D232,'Capacidad Financiera'!$C$13:$X$62720,3,0)))","v":""},{"$f":"IF(OR(C232=\"\",D232=\"\"),\"\",IF(ISERROR(VLOOKUP(D232,'Capacidad Financiera'!$C$13:$X$62720,5,0)),\"\",VLOOKUP(D232,'Capacidad Financiera'!$C$13:$X$62720,5,0)))","v":""},"",{"$f":"IF(OR(D232=\"\",E232=\"\",F232=\"\"),\"\",IF(AND(G232>0,G232<=CapFinanciera1),Puntajes!$D$12,IF(AND(G232>CapFinanciera1,G232<=CapFinanciera2),Puntajes!$D$13,IF(AND(G232>CapFinanciera2,G232<=CapFinanciera3),Puntajes!$D$14,IF(AND(G232>CapFinanciera3,G232<=CapFinanciera4),Puntajes!$D$15,IF(G232>CapFinanciera4,Puntajes!$D$16,0))))))","v":""}]
[null,null,{"$f":"+'Capacidad Financiera'!B236","v":""},{"$f":"IF(ISERROR(VLOOKUP(C233,'Capacidad Financiera'!$B$12:$X$62720,2,0)),\"\",VLOOKUP(C233,'Capacidad Financiera'!$B$12:$X$3580,2,0))","v":0},{"$f":"IF(OR(C233=\"\",D233=\"\"),\"\",IF(ISERROR(VLOOKUP(D233,'Capacidad Financiera'!$C$13:$X$62720,3,0)),\"\",VLOOKUP(D233,'Capacidad Financiera'!$C$13:$X$62720,3,0)))","v":""},{"$f":"IF(OR(C233=\"\",D233=\"\"),\"\",IF(ISERROR(VLOOKUP(D233,'Capacidad Financiera'!$C$13:$X$62720,5,0)),\"\",VLOOKUP(D233,'Capacidad Financiera'!$C$13:$X$62720,5,0)))","v":""},"",{"$f":"IF(OR(D233=\"\",E233=\"\",F233=\"\"),\"\",IF(AND(G233>0,G233<=CapFinanciera1),Puntajes!$D$12,IF(AND(G233>CapFinanciera1,G233<=CapFinanciera2),Puntajes!$D$13,IF(AND(G233>CapFinanciera2,G233<=CapFinanciera3),Puntajes!$D$14,IF(AND(G233>CapFinanciera3,G233<=CapFinanciera4),Puntajes!$D$15,IF(G233>CapFinanciera4,Puntajes!$D$16,0))))))","v":""}]
[null,null,{"$f":"+'Capacidad Financiera'!B237","v":""},{"$f":"IF(ISERROR(VLOOKUP(C234,'Capacidad Financiera'!$B$12:$X$62720,2,0)),\"\",VLOOKUP(C234,'Capacidad Financiera'!$B$12:$X$3580,2,0))","v":0},{"$f":"IF(OR(C234=\"\",D234=\"\"),\"\",IF(ISERROR(VLOOKUP(D234,'Capacidad Financiera'!$C$13:$X$62720,3,0)),\"\",VLOOKUP(D234,'Capacidad Financiera'!$C$13:$X$62720,3,0)))","v":""},{"$f":"IF(OR(C234=\"\",D234=\"\"),\"\",IF(ISERROR(VLOOKUP(D234,'Capacidad Financiera'!$C$13:$X$62720,5,0)),\"\",VLOOKUP(D234,'Capacidad Financiera'!$C$13:$X$62720,5,0)))","v":""},"",{"$f":"IF(OR(D234=\"\",E234=\"\",F234=\"\"),\"\",IF(AND(G234>0,G234<=CapFinanciera1),Puntajes!$D$12,IF(AND(G234>CapFinanciera1,G234<=CapFinanciera2),Puntajes!$D$13,IF(AND(G234>CapFinanciera2,G234<=CapFinanciera3),Puntajes!$D$14,IF(AND(G234>CapFinanciera3,G234<=CapFinanciera4),Puntajes!$D$15,IF(G234>CapFinanciera4,Puntajes!$D$16,0))))))","v":""}]
[null,null,{"$f":"+'Capacidad Financiera'!B238","v":""},{"$f":"IF(ISERROR(VLOOKUP(C235,'Capacidad Financiera'!$B$12:$X$62720,2,0)),\"\",VLOOKUP(C235,'Capacidad Financiera'!$B$12:$X$3580,2,0))","v":0},{"$f":"IF(OR(C235=\"\",D235=\"\"),\"\",IF(ISERROR(VLOOKUP(D235,'Capacidad Financiera'!$C$13:$X$62720,3,0)),\"\",VLOOKUP(D235,'Capacidad Financiera'!$C$13:$X$62720,3,0)))","v":""},{"$f":"IF(OR(C235=\"\",D235=\"\"),\"\",IF(ISERROR(VLOOKUP(D235,'Capacidad Financiera'!$C$13:$X$62720,5,0)),\"\",VLOOKUP(D235,'Capacidad Financiera'!$C$13:$X$62720,5,0)))","v":""},"",{"$f":"IF(OR(D235=\"\",E235=\"\",F235=\"\"),\"\",IF(AND(G235>0,G235<=CapFinanciera1),Puntajes!$D$12,IF(AND(G235>CapFinanciera1,G235<=CapFinanciera2),Puntajes!$D$13,IF(AND(G235>CapFinanciera2,G235<=CapFinanciera3),Puntajes!$D$14,IF(AND(G235>CapFinanciera3,G235<=CapFinanciera4),Puntajes!$D$15,IF(G235>CapFinanciera4,Puntajes!$D$16,0))))))","v":""}]
[null,null,{"$f":"+'Capacidad Financiera'!B239","v":""},{"$f":"IF(ISERROR(VLOOKUP(C236,'Capacidad Financiera'!$B$12:$X$62720,2,0)),\"\",VLOOKUP(C236,'Capacidad Financiera'!$B$12:$X$3580,2,0))","v":0},{"$f":"IF(OR(C236=\"\",D236=\"\"),\"\",IF(ISERROR(VLOOKUP(D236,'Capacidad Financiera'!$C$13:$X$62720,3,0)),\"\",VLOOKUP(D236,'Capacidad Financiera'!$C$13:$X$62720,3,0)))","v":""},{"$f":"IF(OR(C236=\"\",D236=\"\"),\"\",IF(ISERROR(VLOOKUP(D236,'Capacidad Financiera'!$C$13:$X$62720,5,0)),\"\",VLOOKUP(D236,'Capacidad Financiera'!$C$13:$X$62720,5,0)))","v":""},"",{"$f":"IF(OR(D236=\"\",E236=\"\",F236=\"\"),\"\",IF(AND(G236>0,G236<=CapFinanciera1),Puntajes!$D$12,IF(AND(G236>CapFinanciera1,G236<=CapFinanciera2),Puntajes!$D$13,IF(AND(G236>CapFinanciera2,G236<=CapFinanciera3),Puntajes!$D$14,IF(AND(G236>CapFinanciera3,G236<=CapFinanciera4),Puntajes!$D$15,IF(G236>CapFinanciera4,Puntajes!$D$16,0))))))","v":""}]
[null,null,{"$f":"+'Capacidad Financiera'!B240","v":""},{"$f":"IF(ISERROR(VLOOKUP(C237,'Capacidad Financiera'!$B$12:$X$62720,2,0)),\"\",VLOOKUP(C237,'Capacidad Financiera'!$B$12:$X$3580,2,0))","v":0},{"$f":"IF(OR(C237=\"\",D237=\"\"),\"\",IF(ISERROR(VLOOKUP(D237,'Capacidad Financiera'!$C$13:$X$62720,3,0)),\"\",VLOOKUP(D237,'Capacidad Financiera'!$C$13:$X$62720,3,0)))","v":""},{"$f":"IF(OR(C237=\"\",D237=\"\"),\"\",IF(ISERROR(VLOOKUP(D237,'Capacidad Financiera'!$C$13:$X$62720,5,0)),\"\",VLOOKUP(D237,'Capacidad Financiera'!$C$13:$X$62720,5,0)))","v":""},"",{"$f":"IF(OR(D237=\"\",E237=\"\",F237=\"\"),\"\",IF(AND(G237>0,G237<=CapFinanciera1),Puntajes!$D$12,IF(AND(G237>CapFinanciera1,G237<=CapFinanciera2),Puntajes!$D$13,IF(AND(G237>CapFinanciera2,G237<=CapFinanciera3),Puntajes!$D$14,IF(AND(G237>CapFinanciera3,G237<=CapFinanciera4),Puntajes!$D$15,IF(G237>CapFinanciera4,Puntajes!$D$16,0))))))","v":""}]
[null,null,{"$f":"+'Capacidad Financiera'!B241","v":""},{"$f":"IF(ISERROR(VLOOKUP(C238,'Capacidad Financiera'!$B$12:$X$62720,2,0)),\"\",VLOOKUP(C238,'Capacidad Financiera'!$B$12:$X$3580,2,0))","v":0},{"$f":"IF(OR(C238=\"\",D238=\"\"),\"\",IF(ISERROR(VLOOKUP(D238,'Capacidad Financiera'!$C$13:$X$62720,3,0)),\"\",VLOOKUP(D238,'Capacidad Financiera'!$C$13:$X$62720,3,0)))","v":""},{"$f":"IF(OR(C238=\"\",D238=\"\"),\"\",IF(ISERROR(VLOOKUP(D238,'Capacidad Financiera'!$C$13:$X$62720,5,0)),\"\",VLOOKUP(D238,'Capacidad Financiera'!$C$13:$X$62720,5,0)))","v":""},"",{"$f":"IF(OR(D238=\"\",E238=\"\",F238=\"\"),\"\",IF(AND(G238>0,G238<=CapFinanciera1),Puntajes!$D$12,IF(AND(G238>CapFinanciera1,G238<=CapFinanciera2),Puntajes!$D$13,IF(AND(G238>CapFinanciera2,G238<=CapFinanciera3),Puntajes!$D$14,IF(AND(G238>CapFinanciera3,G238<=CapFinanciera4),Puntajes!$D$15,IF(G238>CapFinanciera4,Puntajes!$D$16,0))))))","v":""}]
[null,null,{"$f":"+'Capacidad Financiera'!B242","v":""},{"$f":"IF(ISERROR(VLOOKUP(C239,'Capacidad Financiera'!$B$12:$X$62720,2,0)),\"\",VLOOKUP(C239,'Capacidad Financiera'!$B$12:$X$3580,2,0))","v":0},{"$f":"IF(OR(C239=\"\",D239=\"\"),\"\",IF(ISERROR(VLOOKUP(D239,'Capacidad Financiera'!$C$13:$X$62720,3,0)),\"\",VLOOKUP(D239,'Capacidad Financiera'!$C$13:$X$62720,3,0)))","v":""},{"$f":"IF(OR(C239=\"\",D239=\"\"),\"\",IF(ISERROR(VLOOKUP(D239,'Capacidad Financiera'!$C$13:$X$62720,5,0)),\"\",VLOOKUP(D239,'Capacidad Financiera'!$C$13:$X$62720,5,0)))","v":""},"",{"$f":"IF(OR(D239=\"\",E239=\"\",F239=\"\"),\"\",IF(AND(G239>0,G239<=CapFinanciera1),Puntajes!$D$12,IF(AND(G239>CapFinanciera1,G239<=CapFinanciera2),Puntajes!$D$13,IF(AND(G239>CapFinanciera2,G239<=CapFinanciera3),Puntajes!$D$14,IF(AND(G239>CapFinanciera3,G239<=CapFinanciera4),Puntajes!$D$15,IF(G239>CapFinanciera4,Puntajes!$D$16,0))))))","v":""}]
[null,null,22,{"$f":"IF(ISERROR(VLOOKUP(C240,'Capacidad Financiera'!$B$12:$X$62720,2,0)),\"\",VLOOKUP(C240,'Capacidad Financiera'!$B$12:$X$3580,2,0))","v":"INGENIERIA Y CONSTRUCCIONES S.A.S"},{"$f":"IF(C241=\"\",IF(C240<>\"\",IF(ISERROR(VLOOKUP(D240,'Capacidad Financiera'!$C$12:$H$22,3,0)),\"\",VLOOKUP(D240,'Capacidad Financiera'!$C$12:$H$22,3,0))),\"\")","v":""},{"$f":"IF(C241=\"\",IF(C240<>\"\",IF(ISERROR(VLOOKUP(D240,'Capacidad Financiera'!$C$12:$H$22,5,0)),\"\",VLOOKUP(D240,'Capacidad Financiera'!$C$12:$H$22,5,0))),\"\")","v":""},{"$f":"IF(OR(D240=\"\",E240=\"\",F240=\"\"),\"\",IF(OR(E240=0,F240=0),0,E240/F240))","v":""},{"$f":"IF(C241=\"\",IF(AND(E240=\"\",F240=\"\"),\"\",IF(AND(G240>0,G240<=CapFinanciera1),Puntajes!$D$12,IF(AND(G240>CapFinanciera1,G240<=CapFinanciera2),Puntajes!$D$13,IF(AND(G240>CapFinanciera2,G240<=CapFinanciera3),Puntajes!$D$14,IF(AND(G240>CapFinanciera3,G240<=CapFinanciera4),Puntajes!$D$15,IF(G240>CapFinanciera4,Puntajes!$D$16,0)))))),\"\")","v":""}]
[null,null,{"$f":"+'Capacidad Financiera'!B244","v":22.1},{"$f":"IF(ISERROR(VLOOKUP(C241,'Capacidad Financiera'!$B$12:$X$62720,2,0)),\"\",VLOOKUP(C241,'Capacidad Financiera'!$B$12:$X$3580,2,0))","v":"INGENIERIA Y CONSTRUCCIONES S.A.S"},{"$f":"IF(OR(C241=\"\",D241=\"\"),\"\",IF(ISERROR(VLOOKUP(D241,'Capacidad Financiera'!$C$13:$X$62720,3,0)),\"\",VLOOKUP(D241,'Capacidad Financiera'!$C$13:$X$62720,3,0)))","v":12881582000},{"$f":"IF(OR(C241=\"\",D241=\"\"),\"\",IF(ISERROR(VLOOKUP(D241,'Capacidad Financiera'!$C$13:$X$62720,5,0)),\"\",VLOOKUP(D241,'Capacidad Financiera'!$C$13:$X$62720,5,0)))","v":3570063000},{"$f":"IF(OR(D241=\"\",E241=\"\",F241=\"\"),\"\",IF(OR(E241=0,F241=0),0,E241/F241))","v":3.6082225999933333},{"$f":"IF(OR(D241=\"\",E241=\"\",F241=\"\"),\"\",IF(AND(G241>0,G241<=CapFinanciera1),Puntajes!$D$12,IF(AND(G241>CapFinanciera1,G241<=CapFinanciera2),Puntajes!$D$13,IF(AND(G241>CapFinanciera2,G241<=CapFinanciera3),Puntajes!$D$14,IF(AND(G241>CapFinanciera3,G241<=CapFinanciera4),Puntajes!$D$15,IF(G241>CapFinanciera4,Puntajes!$D$16,0))))))","v":40}]
[null,null,{"$f":"+'Capacidad Financiera'!B245","v":""},{"$f":"IF(ISERROR(VLOOKUP(C242,'Capacidad Financiera'!$B$12:$X$62720,2,0)),\"\",VLOOKUP(C242,'Capacidad Financiera'!$B$12:$X$3580,2,0))","v":0},{"$f":"IF(OR(C242=\"\",D242=\"\"),\"\",IF(ISERROR(VLOOKUP(D242,'Capacidad Financiera'!$C$13:$X$62720,3,0)),\"\",VLOOKUP(D242,'Capacidad Financiera'!$C$13:$X$62720,3,0)))","v":""},{"$f":"IF(OR(C242=\"\",D242=\"\"),\"\",IF(ISERROR(VLOOKUP(D242,'Capacidad Financiera'!$C$13:$X$62720,5,0)),\"\",VLOOKUP(D242,'Capacidad Financiera'!$C$13:$X$62720,5,0)))","v":""},"",{"$f":"IF(OR(D242=\"\",E242=\"\",F242=\"\"),\"\",IF(AND(G242>0,G242<=CapFinanciera1),Puntajes!$D$12,IF(AND(G242>CapFinanciera1,G242<=CapFinanciera2),Puntajes!$D$13,IF(AND(G242>CapFinanciera2,G242<=CapFinanciera3),Puntajes!$D$14,IF(AND(G242>CapFinanciera3,G242<=CapFinanciera4),Puntajes!$D$15,IF(G242>CapFinanciera4,Puntajes!$D$16,0))))))","v":""}]
[null,null,{"$f":"+'Capacidad Financiera'!B246","v":""},{"$f":"IF(ISERROR(VLOOKUP(C243,'Capacidad Financiera'!$B$12:$X$62720,2,0)),\"\",VLOOKUP(C243,'Capacidad Financiera'!$B$12:$X$3580,2,0))","v":0},{"$f":"IF(OR(C243=\"\",D243=\"\"),\"\",IF(ISERROR(VLOOKUP(D243,'Capacidad Financiera'!$C$13:$X$62720,3,0)),\"\",VLOOKUP(D243,'Capacidad Financiera'!$C$13:$X$62720,3,0)))","v":""},{"$f":"IF(OR(C243=\"\",D243=\"\"),\"\",IF(ISERROR(VLOOKUP(D243,'Capacidad Financiera'!$C$13:$X$62720,5,0)),\"\",VLOOKUP(D243,'Capacidad Financiera'!$C$13:$X$62720,5,0)))","v":""},"",{"$f":"IF(OR(D243=\"\",E243=\"\",F243=\"\"),\"\",IF(AND(G243>0,G243<=CapFinanciera1),Puntajes!$D$12,IF(AND(G243>CapFinanciera1,G243<=CapFinanciera2),Puntajes!$D$13,IF(AND(G243>CapFinanciera2,G243<=CapFinanciera3),Puntajes!$D$14,IF(AND(G243>CapFinanciera3,G243<=CapFinanciera4),Puntajes!$D$15,IF(G243>CapFinanciera4,Puntajes!$D$16,0))))))","v":""}]
[null,null,{"$f":"+'Capacidad Financiera'!B247","v":""},{"$f":"IF(ISERROR(VLOOKUP(C244,'Capacidad Financiera'!$B$12:$X$62720,2,0)),\"\",VLOOKUP(C244,'Capacidad Financiera'!$B$12:$X$3580,2,0))","v":0},{"$f":"IF(OR(C244=\"\",D244=\"\"),\"\",IF(ISERROR(VLOOKUP(D244,'Capacidad Financiera'!$C$13:$X$62720,3,0)),\"\",VLOOKUP(D244,'Capacidad Financiera'!$C$13:$X$62720,3,0)))","v":""},{"$f":"IF(OR(C244=\"\",D244=\"\"),\"\",IF(ISERROR(VLOOKUP(D244,'Capacidad Financiera'!$C$13:$X$62720,5,0)),\"\",VLOOKUP(D244,'Capacidad Financiera'!$C$13:$X$62720,5,0)))","v":""},"",{"$f":"IF(OR(D244=\"\",E244=\"\",F244=\"\"),\"\",IF(AND(G244>0,G244<=CapFinanciera1),Puntajes!$D$12,IF(AND(G244>CapFinanciera1,G244<=CapFinanciera2),Puntajes!$D$13,IF(AND(G244>CapFinanciera2,G244<=CapFinanciera3),Puntajes!$D$14,IF(AND(G244>CapFinanciera3,G244<=CapFinanciera4),Puntajes!$D$15,IF(G244>CapFinanciera4,Puntajes!$D$16,0))))))","v":""}]
[null,null,{"$f":"+'Capacidad Financiera'!B248","v":""},{"$f":"IF(ISERROR(VLOOKUP(C245,'Capacidad Financiera'!$B$12:$X$62720,2,0)),\"\",VLOOKUP(C245,'Capacidad Financiera'!$B$12:$X$3580,2,0))","v":0},{"$f":"IF(OR(C245=\"\",D245=\"\"),\"\",IF(ISERROR(VLOOKUP(D245,'Capacidad Financiera'!$C$13:$X$62720,3,0)),\"\",VLOOKUP(D245,'Capacidad Financiera'!$C$13:$X$62720,3,0)))","v":""},{"$f":"IF(OR(C245=\"\",D245=\"\"),\"\",IF(ISERROR(VLOOKUP(D245,'Capacidad Financiera'!$C$13:$X$62720,5,0)),\"\",VLOOKUP(D245,'Capacidad Financiera'!$C$13:$X$62720,5,0)))","v":""},"",{"$f":"IF(OR(D245=\"\",E245=\"\",F245=\"\"),\"\",IF(AND(G245>0,G245<=CapFinanciera1),Puntajes!$D$12,IF(AND(G245>CapFinanciera1,G245<=CapFinanciera2),Puntajes!$D$13,IF(AND(G245>CapFinanciera2,G245<=CapFinanciera3),Puntajes!$D$14,IF(AND(G245>CapFinanciera3,G245<=CapFinanciera4),Puntajes!$D$15,IF(G245>CapFinanciera4,Puntajes!$D$16,0))))))","v":""}]
[null,null,{"$f":"+'Capacidad Financiera'!B249","v":""},{"$f":"IF(ISERROR(VLOOKUP(C246,'Capacidad Financiera'!$B$12:$X$62720,2,0)),\"\",VLOOKUP(C246,'Capacidad Financiera'!$B$12:$X$3580,2,0))","v":0},{"$f":"IF(OR(C246=\"\",D246=\"\"),\"\",IF(ISERROR(VLOOKUP(D246,'Capacidad Financiera'!$C$13:$X$62720,3,0)),\"\",VLOOKUP(D246,'Capacidad Financiera'!$C$13:$X$62720,3,0)))","v":""},{"$f":"IF(OR(C246=\"\",D246=\"\"),\"\",IF(ISERROR(VLOOKUP(D246,'Capacidad Financiera'!$C$13:$X$62720,5,0)),\"\",VLOOKUP(D246,'Capacidad Financiera'!$C$13:$X$62720,5,0)))","v":""},"",{"$f":"IF(OR(D246=\"\",E246=\"\",F246=\"\"),\"\",IF(AND(G246>0,G246<=CapFinanciera1),Puntajes!$D$12,IF(AND(G246>CapFinanciera1,G246<=CapFinanciera2),Puntajes!$D$13,IF(AND(G246>CapFinanciera2,G246<=CapFinanciera3),Puntajes!$D$14,IF(AND(G246>CapFinanciera3,G246<=CapFinanciera4),Puntajes!$D$15,IF(G246>CapFinanciera4,Puntajes!$D$16,0))))))","v":""}]
[null,null,{"$f":"+'Capacidad Financiera'!B250","v":""},{"$f":"IF(ISERROR(VLOOKUP(C247,'Capacidad Financiera'!$B$12:$X$62720,2,0)),\"\",VLOOKUP(C247,'Capacidad Financiera'!$B$12:$X$3580,2,0))","v":0},{"$f":"IF(OR(C247=\"\",D247=\"\"),\"\",IF(ISERROR(VLOOKUP(D247,'Capacidad Financiera'!$C$13:$X$62720,3,0)),\"\",VLOOKUP(D247,'Capacidad Financiera'!$C$13:$X$62720,3,0)))","v":""},{"$f":"IF(OR(C247=\"\",D247=\"\"),\"\",IF(ISERROR(VLOOKUP(D247,'Capacidad Financiera'!$C$13:$X$62720,5,0)),\"\",VLOOKUP(D247,'Capacidad Financiera'!$C$13:$X$62720,5,0)))","v":""},"",{"$f":"IF(OR(D247=\"\",E247=\"\",F247=\"\"),\"\",IF(AND(G247>0,G247<=CapFinanciera1),Puntajes!$D$12,IF(AND(G247>CapFinanciera1,G247<=CapFinanciera2),Puntajes!$D$13,IF(AND(G247>CapFinanciera2,G247<=CapFinanciera3),Puntajes!$D$14,IF(AND(G247>CapFinanciera3,G247<=CapFinanciera4),Puntajes!$D$15,IF(G247>CapFinanciera4,Puntajes!$D$16,0))))))","v":""}]
[null,null,{"$f":"+'Capacidad Financiera'!B251","v":""},{"$f":"IF(ISERROR(VLOOKUP(C248,'Capacidad Financiera'!$B$12:$X$62720,2,0)),\"\",VLOOKUP(C248,'Capacidad Financiera'!$B$12:$X$3580,2,0))","v":0},{"$f":"IF(OR(C248=\"\",D248=\"\"),\"\",IF(ISERROR(VLOOKUP(D248,'Capacidad Financiera'!$C$13:$X$62720,3,0)),\"\",VLOOKUP(D248,'Capacidad Financiera'!$C$13:$X$62720,3,0)))","v":""},{"$f":"IF(OR(C248=\"\",D248=\"\"),\"\",IF(ISERROR(VLOOKUP(D248,'Capacidad Financiera'!$C$13:$X$62720,5,0)),\"\",VLOOKUP(D248,'Capacidad Financiera'!$C$13:$X$62720,5,0)))","v":""},"",{"$f":"IF(OR(D248=\"\",E248=\"\",F248=\"\"),\"\",IF(AND(G248>0,G248<=CapFinanciera1),Puntajes!$D$12,IF(AND(G248>CapFinanciera1,G248<=CapFinanciera2),Puntajes!$D$13,IF(AND(G248>CapFinanciera2,G248<=CapFinanciera3),Puntajes!$D$14,IF(AND(G248>CapFinanciera3,G248<=CapFinanciera4),Puntajes!$D$15,IF(G248>CapFinanciera4,Puntajes!$D$16,0))))))","v":""}]
[null,null,{"$f":"+'Capacidad Financiera'!B252","v":""},{"$f":"IF(ISERROR(VLOOKUP(C249,'Capacidad Financiera'!$B$12:$X$62720,2,0)),\"\",VLOOKUP(C249,'Capacidad Financiera'!$B$12:$X$3580,2,0))","v":0},{"$f":"IF(OR(C249=\"\",D249=\"\"),\"\",IF(ISERROR(VLOOKUP(D249,'Capacidad Financiera'!$C$13:$X$62720,3,0)),\"\",VLOOKUP(D249,'Capacidad Financiera'!$C$13:$X$62720,3,0)))","v":""},{"$f":"IF(OR(C249=\"\",D249=\"\"),\"\",IF(ISERROR(VLOOKUP(D249,'Capacidad Financiera'!$C$13:$X$62720,5,0)),\"\",VLOOKUP(D249,'Capacidad Financiera'!$C$13:$X$62720,5,0)))","v":""},"",{"$f":"IF(OR(D249=\"\",E249=\"\",F249=\"\"),\"\",IF(AND(G249>0,G249<=CapFinanciera1),Puntajes!$D$12,IF(AND(G249>CapFinanciera1,G249<=CapFinanciera2),Puntajes!$D$13,IF(AND(G249>CapFinanciera2,G249<=CapFinanciera3),Puntajes!$D$14,IF(AND(G249>CapFinanciera3,G249<=CapFinanciera4),Puntajes!$D$15,IF(G249>CapFinanciera4,Puntajes!$D$16,0))))))","v":""}]
[null,null,{"$f":"+'Capacidad Financiera'!B253","v":""},{"$f":"IF(ISERROR(VLOOKUP(C250,'Capacidad Financiera'!$B$12:$X$62720,2,0)),\"\",VLOOKUP(C250,'Capacidad Financiera'!$B$12:$X$3580,2,0))","v":0},{"$f":"IF(OR(C250=\"\",D250=\"\"),\"\",IF(ISERROR(VLOOKUP(D250,'Capacidad Financiera'!$C$13:$X$62720,3,0)),\"\",VLOOKUP(D250,'Capacidad Financiera'!$C$13:$X$62720,3,0)))","v":""},{"$f":"IF(OR(C250=\"\",D250=\"\"),\"\",IF(ISERROR(VLOOKUP(D250,'Capacidad Financiera'!$C$13:$X$62720,5,0)),\"\",VLOOKUP(D250,'Capacidad Financiera'!$C$13:$X$62720,5,0)))","v":""},"",{"$f":"IF(OR(D250=\"\",E250=\"\",F250=\"\"),\"\",IF(AND(G250>0,G250<=CapFinanciera1),Puntajes!$D$12,IF(AND(G250>CapFinanciera1,G250<=CapFinanciera2),Puntajes!$D$13,IF(AND(G250>CapFinanciera2,G250<=CapFinanciera3),Puntajes!$D$14,IF(AND(G250>CapFinanciera3,G250<=CapFinanciera4),Puntajes!$D$15,IF(G250>CapFinanciera4,Puntajes!$D$16,0))))))","v":""}]
[null,null,23,{"$f":"IF(ISERROR(VLOOKUP(C251,'Capacidad Financiera'!$B$12:$X$62720,2,0)),\"\",VLOOKUP(C251,'Capacidad Financiera'!$B$12:$X$3580,2,0))","v":"CONSORCIO VIAL SUCRE 2014"},{"$f":"IF(C252=\"\",IF(C251<>\"\",IF(ISERROR(VLOOKUP(D251,'Capacidad Financiera'!$C$12:$H$22,3,0)),\"\",VLOOKUP(D251,'Capacidad Financiera'!$C$12:$H$22,3,0))),\"\")","v":""},{"$f":"IF(C252=\"\",IF(C251<>\"\",IF(ISERROR(VLOOKUP(D251,'Capacidad Financiera'!$C$12:$H$22,5,0)),\"\",VLOOKUP(D251,'Capacidad Financiera'!$C$12:$H$22,5,0))),\"\")","v":""},{"$f":"IF(OR(D251=\"\",E251=\"\",F251=\"\"),\"\",IF(OR(E251=0,F251=0),0,E251/F251))","v":""},{"$f":"IF(C252=\"\",IF(AND(E251=\"\",F251=\"\"),\"\",IF(AND(G251>0,G251<=CapFinanciera1),Puntajes!$D$12,IF(AND(G251>CapFinanciera1,G251<=CapFinanciera2),Puntajes!$D$13,IF(AND(G251>CapFinanciera2,G251<=CapFinanciera3),Puntajes!$D$14,IF(AND(G251>CapFinanciera3,G251<=CapFinanciera4),Puntajes!$D$15,IF(G251>CapFinanciera4,Puntajes!$D$16,0)))))),\"\")","v":""}]
[null,null,{"$f":"+'Capacidad Financiera'!B255","v":23.1},{"$f":"IF(ISERROR(VLOOKUP(C252,'Capacidad Financiera'!$B$12:$X$62720,2,0)),\"\",VLOOKUP(C252,'Capacidad Financiera'!$B$12:$X$3580,2,0))","v":"PROVIAS S.A.S."},{"$f":"IF(OR(C252=\"\",D252=\"\"),\"\",IF(ISERROR(VLOOKUP(D252,'Capacidad Financiera'!$C$13:$X$62720,3,0)),\"\",VLOOKUP(D252,'Capacidad Financiera'!$C$13:$X$62720,3,0)))","v":8954360950},{"$f":"IF(OR(C252=\"\",D252=\"\"),\"\",IF(ISERROR(VLOOKUP(D252,'Capacidad Financiera'!$C$13:$X$62720,5,0)),\"\",VLOOKUP(D252,'Capacidad Financiera'!$C$13:$X$62720,5,0)))","v":1784423787},{"$f":"IF(OR(D252=\"\",E252=\"\",F252=\"\"),\"\",IF(OR(E252=0,F252=0),0,E252/F252))","v":5.0180685861928609},{"$f":"IF(OR(D252=\"\",E252=\"\",F252=\"\"),\"\",IF(AND(G252>0,G252<=CapFinanciera1),Puntajes!$D$12,IF(AND(G252>CapFinanciera1,G252<=CapFinanciera2),Puntajes!$D$13,IF(AND(G252>CapFinanciera2,G252<=CapFinanciera3),Puntajes!$D$14,IF(AND(G252>CapFinanciera3,G252<=CapFinanciera4),Puntajes!$D$15,IF(G252>CapFinanciera4,Puntajes!$D$16,0))))))","v":40}]
[null,null,{"$f":"+'Capacidad Financiera'!B256","v":23.200000000000003},{"$f":"IF(ISERROR(VLOOKUP(C253,'Capacidad Financiera'!$B$12:$X$62720,2,0)),\"\",VLOOKUP(C253,'Capacidad Financiera'!$B$12:$X$3580,2,0))","v":"ICG PROYECTOS S.A.S."},{"$f":"IF(OR(C253=\"\",D253=\"\"),\"\",IF(ISERROR(VLOOKUP(D253,'Capacidad Financiera'!$C$13:$X$62720,3,0)),\"\",VLOOKUP(D253,'Capacidad Financiera'!$C$13:$X$62720,3,0)))","v":1189883448},{"$f":"IF(OR(C253=\"\",D253=\"\"),\"\",IF(ISERROR(VLOOKUP(D253,'Capacidad Financiera'!$C$13:$X$62720,5,0)),\"\",VLOOKUP(D253,'Capacidad Financiera'!$C$13:$X$62720,5,0)))","v":127020382},9.3676576094693207,{"$f":"IF(OR(D253=\"\",E253=\"\",F253=\"\"),\"\",IF(AND(G253>0,G253<=CapFinanciera1),Puntajes!$D$12,IF(AND(G253>CapFinanciera1,G253<=CapFinanciera2),Puntajes!$D$13,IF(AND(G253>CapFinanciera2,G253<=CapFinanciera3),Puntajes!$D$14,IF(AND(G253>CapFinanciera3,G253<=CapFinanciera4),Puntajes!$D$15,IF(G253>CapFinanciera4,Puntajes!$D$16,0))))))","v":40}]
[null,null,{"$f":"+'Capacidad Financiera'!B257","v":""},{"$f":"IF(ISERROR(VLOOKUP(C254,'Capacidad Financiera'!$B$12:$X$62720,2,0)),\"\",VLOOKUP(C254,'Capacidad Financiera'!$B$12:$X$3580,2,0))","v":0},{"$f":"IF(OR(C254=\"\",D254=\"\"),\"\",IF(ISERROR(VLOOKUP(D254,'Capacidad Financiera'!$C$13:$X$62720,3,0)),\"\",VLOOKUP(D254,'Capacidad Financiera'!$C$13:$X$62720,3,0)))","v":""},{"$f":"IF(OR(C254=\"\",D254=\"\"),\"\",IF(ISERROR(VLOOKUP(D254,'Capacidad Financiera'!$C$13:$X$62720,5,0)),\"\",VLOOKUP(D254,'Capacidad Financiera'!$C$13:$X$62720,5,0)))","v":""},"",{"$f":"IF(OR(D254=\"\",E254=\"\",F254=\"\"),\"\",IF(AND(G254>0,G254<=CapFinanciera1),Puntajes!$D$12,IF(AND(G254>CapFinanciera1,G254<=CapFinanciera2),Puntajes!$D$13,IF(AND(G254>CapFinanciera2,G254<=CapFinanciera3),Puntajes!$D$14,IF(AND(G254>CapFinanciera3,G254<=CapFinanciera4),Puntajes!$D$15,IF(G254>CapFinanciera4,Puntajes!$D$16,0))))))","v":""}]
[null,null,{"$f":"+'Capacidad Financiera'!B258","v":""},{"$f":"IF(ISERROR(VLOOKUP(C255,'Capacidad Financiera'!$B$12:$X$62720,2,0)),\"\",VLOOKUP(C255,'Capacidad Financiera'!$B$12:$X$3580,2,0))","v":0},{"$f":"IF(OR(C255=\"\",D255=\"\"),\"\",IF(ISERROR(VLOOKUP(D255,'Capacidad Financiera'!$C$13:$X$62720,3,0)),\"\",VLOOKUP(D255,'Capacidad Financiera'!$C$13:$X$62720,3,0)))","v":""},{"$f":"IF(OR(C255=\"\",D255=\"\"),\"\",IF(ISERROR(VLOOKUP(D255,'Capacidad Financiera'!$C$13:$X$62720,5,0)),\"\",VLOOKUP(D255,'Capacidad Financiera'!$C$13:$X$62720,5,0)))","v":""},"",{"$f":"IF(OR(D255=\"\",E255=\"\",F255=\"\"),\"\",IF(AND(G255>0,G255<=CapFinanciera1),Puntajes!$D$12,IF(AND(G255>CapFinanciera1,G255<=CapFinanciera2),Puntajes!$D$13,IF(AND(G255>CapFinanciera2,G255<=CapFinanciera3),Puntajes!$D$14,IF(AND(G255>CapFinanciera3,G255<=CapFinanciera4),Puntajes!$D$15,IF(G255>CapFinanciera4,Puntajes!$D$16,0))))))","v":""}]
[null,null,{"$f":"+'Capacidad Financiera'!B259","v":""},{"$f":"IF(ISERROR(VLOOKUP(C256,'Capacidad Financiera'!$B$12:$X$62720,2,0)),\"\",VLOOKUP(C256,'Capacidad Financiera'!$B$12:$X$3580,2,0))","v":0},{"$f":"IF(OR(C256=\"\",D256=\"\"),\"\",IF(ISERROR(VLOOKUP(D256,'Capacidad Financiera'!$C$13:$X$62720,3,0)),\"\",VLOOKUP(D256,'Capacidad Financiera'!$C$13:$X$62720,3,0)))","v":""},{"$f":"IF(OR(C256=\"\",D256=\"\"),\"\",IF(ISERROR(VLOOKUP(D256,'Capacidad Financiera'!$C$13:$X$62720,5,0)),\"\",VLOOKUP(D256,'Capacidad Financiera'!$C$13:$X$62720,5,0)))","v":""},"",{"$f":"IF(OR(D256=\"\",E256=\"\",F256=\"\"),\"\",IF(AND(G256>0,G256<=CapFinanciera1),Puntajes!$D$12,IF(AND(G256>CapFinanciera1,G256<=CapFinanciera2),Puntajes!$D$13,IF(AND(G256>CapFinanciera2,G256<=CapFinanciera3),Puntajes!$D$14,IF(AND(G256>CapFinanciera3,G256<=CapFinanciera4),Puntajes!$D$15,IF(G256>CapFinanciera4,Puntajes!$D$16,0))))))","v":""}]
[null,null,{"$f":"+'Capacidad Financiera'!B260","v":""},{"$f":"IF(ISERROR(VLOOKUP(C257,'Capacidad Financiera'!$B$12:$X$62720,2,0)),\"\",VLOOKUP(C257,'Capacidad Financiera'!$B$12:$X$3580,2,0))","v":0},{"$f":"IF(OR(C257=\"\",D257=\"\"),\"\",IF(ISERROR(VLOOKUP(D257,'Capacidad Financiera'!$C$13:$X$62720,3,0)),\"\",VLOOKUP(D257,'Capacidad Financiera'!$C$13:$X$62720,3,0)))","v":""},{"$f":"IF(OR(C257=\"\",D257=\"\"),\"\",IF(ISERROR(VLOOKUP(D257,'Capacidad Financiera'!$C$13:$X$62720,5,0)),\"\",VLOOKUP(D257,'Capacidad Financiera'!$C$13:$X$62720,5,0)))","v":""},"",{"$f":"IF(OR(D257=\"\",E257=\"\",F257=\"\"),\"\",IF(AND(G257>0,G257<=CapFinanciera1),Puntajes!$D$12,IF(AND(G257>CapFinanciera1,G257<=CapFinanciera2),Puntajes!$D$13,IF(AND(G257>CapFinanciera2,G257<=CapFinanciera3),Puntajes!$D$14,IF(AND(G257>CapFinanciera3,G257<=CapFinanciera4),Puntajes!$D$15,IF(G257>CapFinanciera4,Puntajes!$D$16,0))))))","v":""}]
[null,null,{"$f":"+'Capacidad Financiera'!B261","v":""},{"$f":"IF(ISERROR(VLOOKUP(C258,'Capacidad Financiera'!$B$12:$X$62720,2,0)),\"\",VLOOKUP(C258,'Capacidad Financiera'!$B$12:$X$3580,2,0))","v":0},{"$f":"IF(OR(C258=\"\",D258=\"\"),\"\",IF(ISERROR(VLOOKUP(D258,'Capacidad Financiera'!$C$13:$X$62720,3,0)),\"\",VLOOKUP(D258,'Capacidad Financiera'!$C$13:$X$62720,3,0)))","v":""},{"$f":"IF(OR(C258=\"\",D258=\"\"),\"\",IF(ISERROR(VLOOKUP(D258,'Capacidad Financiera'!$C$13:$X$62720,5,0)),\"\",VLOOKUP(D258,'Capacidad Financiera'!$C$13:$X$62720,5,0)))","v":""},"",{"$f":"IF(OR(D258=\"\",E258=\"\",F258=\"\"),\"\",IF(AND(G258>0,G258<=CapFinanciera1),Puntajes!$D$12,IF(AND(G258>CapFinanciera1,G258<=CapFinanciera2),Puntajes!$D$13,IF(AND(G258>CapFinanciera2,G258<=CapFinanciera3),Puntajes!$D$14,IF(AND(G258>CapFinanciera3,G258<=CapFinanciera4),Puntajes!$D$15,IF(G258>CapFinanciera4,Puntajes!$D$16,0))))))","v":""}]
[null,null,{"$f":"+'Capacidad Financiera'!B262","v":""},{"$f":"IF(ISERROR(VLOOKUP(C259,'Capacidad Financiera'!$B$12:$X$62720,2,0)),\"\",VLOOKUP(C259,'Capacidad Financiera'!$B$12:$X$3580,2,0))","v":0},{"$f":"IF(OR(C259=\"\",D259=\"\"),\"\",IF(ISERROR(VLOOKUP(D259,'Capacidad Financiera'!$C$13:$X$62720,3,0)),\"\",VLOOKUP(D259,'Capacidad Financiera'!$C$13:$X$62720,3,0)))","v":""},{"$f":"IF(OR(C259=\"\",D259=\"\"),\"\",IF(ISERROR(VLOOKUP(D259,'Capacidad Financiera'!$C$13:$X$62720,5,0)),\"\",VLOOKUP(D259,'Capacidad Financiera'!$C$13:$X$62720,5,0)))","v":""},"",{"$f":"IF(OR(D259=\"\",E259=\"\",F259=\"\"),\"\",IF(AND(G259>0,G259<=CapFinanciera1),Puntajes!$D$12,IF(AND(G259>CapFinanciera1,G259<=CapFinanciera2),Puntajes!$D$13,IF(AND(G259>CapFinanciera2,G259<=CapFinanciera3),Puntajes!$D$14,IF(AND(G259>CapFinanciera3,G259<=CapFinanciera4),Puntajes!$D$15,IF(G259>CapFinanciera4,Puntajes!$D$16,0))))))","v":""}]
[null,null,{"$f":"+'Capacidad Financiera'!B263","v":""},{"$f":"IF(ISERROR(VLOOKUP(C260,'Capacidad Financiera'!$B$12:$X$62720,2,0)),\"\",VLOOKUP(C260,'Capacidad Financiera'!$B$12:$X$3580,2,0))","v":0},{"$f":"IF(OR(C260=\"\",D260=\"\"),\"\",IF(ISERROR(VLOOKUP(D260,'Capacidad Financiera'!$C$13:$X$62720,3,0)),\"\",VLOOKUP(D260,'Capacidad Financiera'!$C$13:$X$62720,3,0)))","v":""},{"$f":"IF(OR(C260=\"\",D260=\"\"),\"\",IF(ISERROR(VLOOKUP(D260,'Capacidad Financiera'!$C$13:$X$62720,5,0)),\"\",VLOOKUP(D260,'Capacidad Financiera'!$C$13:$X$62720,5,0)))","v":""},"",{"$f":"IF(OR(D260=\"\",E260=\"\",F260=\"\"),\"\",IF(AND(G260>0,G260<=CapFinanciera1),Puntajes!$D$12,IF(AND(G260>CapFinanciera1,G260<=CapFinanciera2),Puntajes!$D$13,IF(AND(G260>CapFinanciera2,G260<=CapFinanciera3),Puntajes!$D$14,IF(AND(G260>CapFinanciera3,G260<=CapFinanciera4),Puntajes!$D$15,IF(G260>CapFinanciera4,Puntajes!$D$16,0))))))","v":""}]
[null,null,{"$f":"+'Capacidad Financiera'!B264","v":""},{"$f":"IF(ISERROR(VLOOKUP(C261,'Capacidad Financiera'!$B$12:$X$62720,2,0)),\"\",VLOOKUP(C261,'Capacidad Financiera'!$B$12:$X$3580,2,0))","v":0},{"$f":"IF(OR(C261=\"\",D261=\"\"),\"\",IF(ISERROR(VLOOKUP(D261,'Capacidad Financiera'!$C$13:$X$62720,3,0)),\"\",VLOOKUP(D261,'Capacidad Financiera'!$C$13:$X$62720,3,0)))","v":""},{"$f":"IF(OR(C261=\"\",D261=\"\"),\"\",IF(ISERROR(VLOOKUP(D261,'Capacidad Financiera'!$C$13:$X$62720,5,0)),\"\",VLOOKUP(D261,'Capacidad Financiera'!$C$13:$X$62720,5,0)))","v":""},"",{"$f":"IF(OR(D261=\"\",E261=\"\",F261=\"\"),\"\",IF(AND(G261>0,G261<=CapFinanciera1),Puntajes!$D$12,IF(AND(G261>CapFinanciera1,G261<=CapFinanciera2),Puntajes!$D$13,IF(AND(G261>CapFinanciera2,G261<=CapFinanciera3),Puntajes!$D$14,IF(AND(G261>CapFinanciera3,G261<=CapFinanciera4),Puntajes!$D$15,IF(G261>CapFinanciera4,Puntajes!$D$16,0))))))","v":""}]
[null,null,24,{"$f":"IF(ISERROR(VLOOKUP(C262,'Capacidad Financiera'!$B$12:$X$62720,2,0)),\"\",VLOOKUP(C262,'Capacidad Financiera'!$B$12:$X$3580,2,0))","v":"INGENIERIA Y VIAS S.A.S."},{"$f":"IF(C263=\"\",IF(C262<>\"\",IF(ISERROR(VLOOKUP(D262,'Capacidad Financiera'!$C$12:$H$22,3,0)),\"\",VLOOKUP(D262,'Capacidad Financiera'!$C$12:$H$22,3,0))),\"\")","v":""},{"$f":"IF(C263=\"\",IF(C262<>\"\",IF(ISERROR(VLOOKUP(D262,'Capacidad Financiera'!$C$12:$H$22,5,0)),\"\",VLOOKUP(D262,'Capacidad Financiera'!$C$12:$H$22,5,0))),\"\")","v":""},{"$f":"IF(OR(D262=\"\",E262=\"\",F262=\"\"),\"\",IF(OR(E262=0,F262=0),0,E262/F262))","v":""},{"$f":"IF(C263=\"\",IF(AND(E262=\"\",F262=\"\"),\"\",IF(AND(G262>0,G262<=CapFinanciera1),Puntajes!$D$12,IF(AND(G262>CapFinanciera1,G262<=CapFinanciera2),Puntajes!$D$13,IF(AND(G262>CapFinanciera2,G262<=CapFinanciera3),Puntajes!$D$14,IF(AND(G262>CapFinanciera3,G262<=CapFinanciera4),Puntajes!$D$15,IF(G262>CapFinanciera4,Puntajes!$D$16,0)))))),\"\")","v":""}]
[null,null,{"$f":"+'Capacidad Financiera'!B266","v":24.1},{"$f":"IF(ISERROR(VLOOKUP(C263,'Capacidad Financiera'!$B$12:$X$62720,2,0)),\"\",VLOOKUP(C263,'Capacidad Financiera'!$B$12:$X$3580,2,0))","v":"INGENIERIA Y VIAS S.A.S."},{"$f":"IF(OR(C263=\"\",D263=\"\"),\"\",IF(ISERROR(VLOOKUP(D263,'Capacidad Financiera'!$C$13:$X$62720,3,0)),\"\",VLOOKUP(D263,'Capacidad Financiera'!$C$13:$X$62720,3,0)))","v":30110750000},{"$f":"IF(OR(C263=\"\",D263=\"\"),\"\",IF(ISERROR(VLOOKUP(D263,'Capacidad Financiera'!$C$13:$X$62720,5,0)),\"\",VLOOKUP(D263,'Capacidad Financiera'!$C$13:$X$62720,5,0)))","v":14747981000},{"$f":"IF(OR(D263=\"\",E263=\"\",F263=\"\"),\"\",IF(OR(E263=0,F263=0),0,E263/F263))","v":2.0416862484430918},{"$f":"IF(OR(D263=\"\",E263=\"\",F263=\"\"),\"\",IF(AND(G263>0,G263<=CapFinanciera1),Puntajes!$D$12,IF(AND(G263>CapFinanciera1,G263<=CapFinanciera2),Puntajes!$D$13,IF(AND(G263>CapFinanciera2,G263<=CapFinanciera3),Puntajes!$D$14,IF(AND(G263>CapFinanciera3,G263<=CapFinanciera4),Puntajes!$D$15,IF(G263>CapFinanciera4,Puntajes!$D$16,0))))))","v":40}]
[null,null,{"$f":"+'Capacidad Financiera'!B267","v":""},{"$f":"IF(ISERROR(VLOOKUP(C264,'Capacidad Financiera'!$B$12:$X$62720,2,0)),\"\",VLOOKUP(C264,'Capacidad Financiera'!$B$12:$X$3580,2,0))","v":0},{"$f":"IF(OR(C264=\"\",D264=\"\"),\"\",IF(ISERROR(VLOOKUP(D264,'Capacidad Financiera'!$C$13:$X$62720,3,0)),\"\",VLOOKUP(D264,'Capacidad Financiera'!$C$13:$X$62720,3,0)))","v":""},{"$f":"IF(OR(C264=\"\",D264=\"\"),\"\",IF(ISERROR(VLOOKUP(D264,'Capacidad Financiera'!$C$13:$X$62720,5,0)),\"\",VLOOKUP(D264,'Capacidad Financiera'!$C$13:$X$62720,5,0)))","v":""},"",{"$f":"IF(OR(D264=\"\",E264=\"\",F264=\"\"),\"\",IF(AND(G264>0,G264<=CapFinanciera1),Puntajes!$D$12,IF(AND(G264>CapFinanciera1,G264<=CapFinanciera2),Puntajes!$D$13,IF(AND(G264>CapFinanciera2,G264<=CapFinanciera3),Puntajes!$D$14,IF(AND(G264>CapFinanciera3,G264<=CapFinanciera4),Puntajes!$D$15,IF(G264>CapFinanciera4,Puntajes!$D$16,0))))))","v":""}]
[null,null,{"$f":"+'Capacidad Financiera'!B268","v":""},{"$f":"IF(ISERROR(VLOOKUP(C265,'Capacidad Financiera'!$B$12:$X$62720,2,0)),\"\",VLOOKUP(C265,'Capacidad Financiera'!$B$12:$X$3580,2,0))","v":0},{"$f":"IF(OR(C265=\"\",D265=\"\"),\"\",IF(ISERROR(VLOOKUP(D265,'Capacidad Financiera'!$C$13:$X$62720,3,0)),\"\",VLOOKUP(D265,'Capacidad Financiera'!$C$13:$X$62720,3,0)))","v":""},{"$f":"IF(OR(C265=\"\",D265=\"\"),\"\",IF(ISERROR(VLOOKUP(D265,'Capacidad Financiera'!$C$13:$X$62720,5,0)),\"\",VLOOKUP(D265,'Capacidad Financiera'!$C$13:$X$62720,5,0)))","v":""},"",{"$f":"IF(OR(D265=\"\",E265=\"\",F265=\"\"),\"\",IF(AND(G265>0,G265<=CapFinanciera1),Puntajes!$D$12,IF(AND(G265>CapFinanciera1,G265<=CapFinanciera2),Puntajes!$D$13,IF(AND(G265>CapFinanciera2,G265<=CapFinanciera3),Puntajes!$D$14,IF(AND(G265>CapFinanciera3,G265<=CapFinanciera4),Puntajes!$D$15,IF(G265>CapFinanciera4,Puntajes!$D$16,0))))))","v":""}]
[null,null,{"$f":"+'Capacidad Financiera'!B269","v":""},{"$f":"IF(ISERROR(VLOOKUP(C266,'Capacidad Financiera'!$B$12:$X$62720,2,0)),\"\",VLOOKUP(C266,'Capacidad Financiera'!$B$12:$X$3580,2,0))","v":0},{"$f":"IF(OR(C266=\"\",D266=\"\"),\"\",IF(ISERROR(VLOOKUP(D266,'Capacidad Financiera'!$C$13:$X$62720,3,0)),\"\",VLOOKUP(D266,'Capacidad Financiera'!$C$13:$X$62720,3,0)))","v":""},{"$f":"IF(OR(C266=\"\",D266=\"\"),\"\",IF(ISERROR(VLOOKUP(D266,'Capacidad Financiera'!$C$13:$X$62720,5,0)),\"\",VLOOKUP(D266,'Capacidad Financiera'!$C$13:$X$62720,5,0)))","v":""},"",{"$f":"IF(OR(D266=\"\",E266=\"\",F266=\"\"),\"\",IF(AND(G266>0,G266<=CapFinanciera1),Puntajes!$D$12,IF(AND(G266>CapFinanciera1,G266<=CapFinanciera2),Puntajes!$D$13,IF(AND(G266>CapFinanciera2,G266<=CapFinanciera3),Puntajes!$D$14,IF(AND(G266>CapFinanciera3,G266<=CapFinanciera4),Puntajes!$D$15,IF(G266>CapFinanciera4,Puntajes!$D$16,0))))))","v":""}]
[null,null,{"$f":"+'Capacidad Financiera'!B270","v":""},{"$f":"IF(ISERROR(VLOOKUP(C267,'Capacidad Financiera'!$B$12:$X$62720,2,0)),\"\",VLOOKUP(C267,'Capacidad Financiera'!$B$12:$X$3580,2,0))","v":0},{"$f":"IF(OR(C267=\"\",D267=\"\"),\"\",IF(ISERROR(VLOOKUP(D267,'Capacidad Financiera'!$C$13:$X$62720,3,0)),\"\",VLOOKUP(D267,'Capacidad Financiera'!$C$13:$X$62720,3,0)))","v":""},{"$f":"IF(OR(C267=\"\",D267=\"\"),\"\",IF(ISERROR(VLOOKUP(D267,'Capacidad Financiera'!$C$13:$X$62720,5,0)),\"\",VLOOKUP(D267,'Capacidad Financiera'!$C$13:$X$62720,5,0)))","v":""},"",{"$f":"IF(OR(D267=\"\",E267=\"\",F267=\"\"),\"\",IF(AND(G267>0,G267<=CapFinanciera1),Puntajes!$D$12,IF(AND(G267>CapFinanciera1,G267<=CapFinanciera2),Puntajes!$D$13,IF(AND(G267>CapFinanciera2,G267<=CapFinanciera3),Puntajes!$D$14,IF(AND(G267>CapFinanciera3,G267<=CapFinanciera4),Puntajes!$D$15,IF(G267>CapFinanciera4,Puntajes!$D$16,0))))))","v":""}]
[null,null,{"$f":"+'Capacidad Financiera'!B271","v":""},{"$f":"IF(ISERROR(VLOOKUP(C268,'Capacidad Financiera'!$B$12:$X$62720,2,0)),\"\",VLOOKUP(C268,'Capacidad Financiera'!$B$12:$X$3580,2,0))","v":0},{"$f":"IF(OR(C268=\"\",D268=\"\"),\"\",IF(ISERROR(VLOOKUP(D268,'Capacidad Financiera'!$C$13:$X$62720,3,0)),\"\",VLOOKUP(D268,'Capacidad Financiera'!$C$13:$X$62720,3,0)))","v":""},{"$f":"IF(OR(C268=\"\",D268=\"\"),\"\",IF(ISERROR(VLOOKUP(D268,'Capacidad Financiera'!$C$13:$X$62720,5,0)),\"\",VLOOKUP(D268,'Capacidad Financiera'!$C$13:$X$62720,5,0)))","v":""},"",{"$f":"IF(OR(D268=\"\",E268=\"\",F268=\"\"),\"\",IF(AND(G268>0,G268<=CapFinanciera1),Puntajes!$D$12,IF(AND(G268>CapFinanciera1,G268<=CapFinanciera2),Puntajes!$D$13,IF(AND(G268>CapFinanciera2,G268<=CapFinanciera3),Puntajes!$D$14,IF(AND(G268>CapFinanciera3,G268<=CapFinanciera4),Puntajes!$D$15,IF(G268>CapFinanciera4,Puntajes!$D$16,0))))))","v":""}]
[null,null,{"$f":"+'Capacidad Financiera'!B272","v":""},{"$f":"IF(ISERROR(VLOOKUP(C269,'Capacidad Financiera'!$B$12:$X$62720,2,0)),\"\",VLOOKUP(C269,'Capacidad Financiera'!$B$12:$X$3580,2,0))","v":0},{"$f":"IF(OR(C269=\"\",D269=\"\"),\"\",IF(ISERROR(VLOOKUP(D269,'Capacidad Financiera'!$C$13:$X$62720,3,0)),\"\",VLOOKUP(D269,'Capacidad Financiera'!$C$13:$X$62720,3,0)))","v":""},{"$f":"IF(OR(C269=\"\",D269=\"\"),\"\",IF(ISERROR(VLOOKUP(D269,'Capacidad Financiera'!$C$13:$X$62720,5,0)),\"\",VLOOKUP(D269,'Capacidad Financiera'!$C$13:$X$62720,5,0)))","v":""},"",{"$f":"IF(OR(D269=\"\",E269=\"\",F269=\"\"),\"\",IF(AND(G269>0,G269<=CapFinanciera1),Puntajes!$D$12,IF(AND(G269>CapFinanciera1,G269<=CapFinanciera2),Puntajes!$D$13,IF(AND(G269>CapFinanciera2,G269<=CapFinanciera3),Puntajes!$D$14,IF(AND(G269>CapFinanciera3,G269<=CapFinanciera4),Puntajes!$D$15,IF(G269>CapFinanciera4,Puntajes!$D$16,0))))))","v":""}]
[null,null,{"$f":"+'Capacidad Financiera'!B273","v":""},{"$f":"IF(ISERROR(VLOOKUP(C270,'Capacidad Financiera'!$B$12:$X$62720,2,0)),\"\",VLOOKUP(C270,'Capacidad Financiera'!$B$12:$X$3580,2,0))","v":0},{"$f":"IF(OR(C270=\"\",D270=\"\"),\"\",IF(ISERROR(VLOOKUP(D270,'Capacidad Financiera'!$C$13:$X$62720,3,0)),\"\",VLOOKUP(D270,'Capacidad Financiera'!$C$13:$X$62720,3,0)))","v":""},{"$f":"IF(OR(C270=\"\",D270=\"\"),\"\",IF(ISERROR(VLOOKUP(D270,'Capacidad Financiera'!$C$13:$X$62720,5,0)),\"\",VLOOKUP(D270,'Capacidad Financiera'!$C$13:$X$62720,5,0)))","v":""},"",{"$f":"IF(OR(D270=\"\",E270=\"\",F270=\"\"),\"\",IF(AND(G270>0,G270<=CapFinanciera1),Puntajes!$D$12,IF(AND(G270>CapFinanciera1,G270<=CapFinanciera2),Puntajes!$D$13,IF(AND(G270>CapFinanciera2,G270<=CapFinanciera3),Puntajes!$D$14,IF(AND(G270>CapFinanciera3,G270<=CapFinanciera4),Puntajes!$D$15,IF(G270>CapFinanciera4,Puntajes!$D$16,0))))))","v":""}]
[null,null,{"$f":"+'Capacidad Financiera'!B274","v":""},{"$f":"IF(ISERROR(VLOOKUP(C271,'Capacidad Financiera'!$B$12:$X$62720,2,0)),\"\",VLOOKUP(C271,'Capacidad Financiera'!$B$12:$X$3580,2,0))","v":0},{"$f":"IF(OR(C271=\"\",D271=\"\"),\"\",IF(ISERROR(VLOOKUP(D271,'Capacidad Financiera'!$C$13:$X$62720,3,0)),\"\",VLOOKUP(D271,'Capacidad Financiera'!$C$13:$X$62720,3,0)))","v":""},{"$f":"IF(OR(C271=\"\",D271=\"\"),\"\",IF(ISERROR(VLOOKUP(D271,'Capacidad Financiera'!$C$13:$X$62720,5,0)),\"\",VLOOKUP(D271,'Capacidad Financiera'!$C$13:$X$62720,5,0)))","v":""},"",{"$f":"IF(OR(D271=\"\",E271=\"\",F271=\"\"),\"\",IF(AND(G271>0,G271<=CapFinanciera1),Puntajes!$D$12,IF(AND(G271>CapFinanciera1,G271<=CapFinanciera2),Puntajes!$D$13,IF(AND(G271>CapFinanciera2,G271<=CapFinanciera3),Puntajes!$D$14,IF(AND(G271>CapFinanciera3,G271<=CapFinanciera4),Puntajes!$D$15,IF(G271>CapFinanciera4,Puntajes!$D$16,0))))))","v":""}]
[null,null,{"$f":"+'Capacidad Financiera'!B275","v":""},{"$f":"IF(ISERROR(VLOOKUP(C272,'Capacidad Financiera'!$B$12:$X$62720,2,0)),\"\",VLOOKUP(C272,'Capacidad Financiera'!$B$12:$X$3580,2,0))","v":0},{"$f":"IF(OR(C272=\"\",D272=\"\"),\"\",IF(ISERROR(VLOOKUP(D272,'Capacidad Financiera'!$C$13:$X$62720,3,0)),\"\",VLOOKUP(D272,'Capacidad Financiera'!$C$13:$X$62720,3,0)))","v":""},{"$f":"IF(OR(C272=\"\",D272=\"\"),\"\",IF(ISERROR(VLOOKUP(D272,'Capacidad Financiera'!$C$13:$X$62720,5,0)),\"\",VLOOKUP(D272,'Capacidad Financiera'!$C$13:$X$62720,5,0)))","v":""},"",{"$f":"IF(OR(D272=\"\",E272=\"\",F272=\"\"),\"\",IF(AND(G272>0,G272<=CapFinanciera1),Puntajes!$D$12,IF(AND(G272>CapFinanciera1,G272<=CapFinanciera2),Puntajes!$D$13,IF(AND(G272>CapFinanciera2,G272<=CapFinanciera3),Puntajes!$D$14,IF(AND(G272>CapFinanciera3,G272<=CapFinanciera4),Puntajes!$D$15,IF(G272>CapFinanciera4,Puntajes!$D$16,0))))))","v":""}]
[null,null,25,{"$f":"IF(ISERROR(VLOOKUP(C273,'Capacidad Financiera'!$B$12:$X$62720,2,0)),\"\",VLOOKUP(C273,'Capacidad Financiera'!$B$12:$X$3580,2,0))","v":"GUSTAVO VELANDIA POVEDA"},{"$f":"IF(C274=\"\",IF(C273<>\"\",IF(ISERROR(VLOOKUP(D273,'Capacidad Financiera'!$C$12:$H$22,3,0)),\"\",VLOOKUP(D273,'Capacidad Financiera'!$C$12:$H$22,3,0))),\"\")","v":""},{"$f":"IF(C274=\"\",IF(C273<>\"\",IF(ISERROR(VLOOKUP(D273,'Capacidad Financiera'!$C$12:$H$22,5,0)),\"\",VLOOKUP(D273,'Capacidad Financiera'!$C$12:$H$22,5,0))),\"\")","v":""},{"$f":"IF(OR(D273=\"\",E273=\"\",F273=\"\"),\"\",IF(OR(E273=0,F273=0),0,E273/F273))","v":""},{"$f":"IF(C274=\"\",IF(AND(E273=\"\",F273=\"\"),\"\",IF(AND(G273>0,G273<=CapFinanciera1),Puntajes!$D$12,IF(AND(G273>CapFinanciera1,G273<=CapFinanciera2),Puntajes!$D$13,IF(AND(G273>CapFinanciera2,G273<=CapFinanciera3),Puntajes!$D$14,IF(AND(G273>CapFinanciera3,G273<=CapFinanciera4),Puntajes!$D$15,IF(G273>CapFinanciera4,Puntajes!$D$16,0)))))),\"\")","v":""}]
[null,null,{"$f":"+'Capacidad Financiera'!B277","v":25.1},{"$f":"IF(ISERROR(VLOOKUP(C274,'Capacidad Financiera'!$B$12:$X$62720,2,0)),\"\",VLOOKUP(C274,'Capacidad Financiera'!$B$12:$X$3580,2,0))","v":"GUSTAVO VELANDIA POVEDA"},{"$f":"IF(OR(C274=\"\",D274=\"\"),\"\",IF(ISERROR(VLOOKUP(D274,'Capacidad Financiera'!$C$13:$X$62720,3,0)),\"\",VLOOKUP(D274,'Capacidad Financiera'!$C$13:$X$62720,3,0)))","v":8644309114},{"$f":"IF(OR(C274=\"\",D274=\"\"),\"\",IF(ISERROR(VLOOKUP(D274,'Capacidad Financiera'!$C$13:$X$62720,5,0)),\"\",VLOOKUP(D274,'Capacidad Financiera'!$C$13:$X$62720,5,0)))","v":2884657125},{"$f":"IF(OR(D274=\"\",E274=\"\",F274=\"\"),\"\",IF(OR(E274=0,F274=0),0,E274/F274))","v":2.9966504646544432},{"$f":"IF(OR(D274=\"\",E274=\"\",F274=\"\"),\"\",IF(AND(G274>0,G274<=CapFinanciera1),Puntajes!$D$12,IF(AND(G274>CapFinanciera1,G274<=CapFinanciera2),Puntajes!$D$13,IF(AND(G274>CapFinanciera2,G274<=CapFinanciera3),Puntajes!$D$14,IF(AND(G274>CapFinanciera3,G274<=CapFinanciera4),Puntajes!$D$15,IF(G274>CapFinanciera4,Puntajes!$D$16,0))))))","v":40}]
[null,null,{"$f":"+'Capacidad Financiera'!B278","v":""},{"$f":"IF(ISERROR(VLOOKUP(C275,'Capacidad Financiera'!$B$12:$X$62720,2,0)),\"\",VLOOKUP(C275,'Capacidad Financiera'!$B$12:$X$3580,2,0))","v":0},{"$f":"IF(OR(C275=\"\",D275=\"\"),\"\",IF(ISERROR(VLOOKUP(D275,'Capacidad Financiera'!$C$13:$X$62720,3,0)),\"\",VLOOKUP(D275,'Capacidad Financiera'!$C$13:$X$62720,3,0)))","v":""},{"$f":"IF(OR(C275=\"\",D275=\"\"),\"\",IF(ISERROR(VLOOKUP(D275,'Capacidad Financiera'!$C$13:$X$62720,5,0)),\"\",VLOOKUP(D275,'Capacidad Financiera'!$C$13:$X$62720,5,0)))","v":""},"",{"$f":"IF(OR(D275=\"\",E275=\"\",F275=\"\"),\"\",IF(AND(G275>0,G275<=CapFinanciera1),Puntajes!$D$12,IF(AND(G275>CapFinanciera1,G275<=CapFinanciera2),Puntajes!$D$13,IF(AND(G275>CapFinanciera2,G275<=CapFinanciera3),Puntajes!$D$14,IF(AND(G275>CapFinanciera3,G275<=CapFinanciera4),Puntajes!$D$15,IF(G275>CapFinanciera4,Puntajes!$D$16,0))))))","v":""}]
[null,null,{"$f":"+'Capacidad Financiera'!B279","v":""},{"$f":"IF(ISERROR(VLOOKUP(C276,'Capacidad Financiera'!$B$12:$X$62720,2,0)),\"\",VLOOKUP(C276,'Capacidad Financiera'!$B$12:$X$3580,2,0))","v":0},{"$f":"IF(OR(C276=\"\",D276=\"\"),\"\",IF(ISERROR(VLOOKUP(D276,'Capacidad Financiera'!$C$13:$X$62720,3,0)),\"\",VLOOKUP(D276,'Capacidad Financiera'!$C$13:$X$62720,3,0)))","v":""},{"$f":"IF(OR(C276=\"\",D276=\"\"),\"\",IF(ISERROR(VLOOKUP(D276,'Capacidad Financiera'!$C$13:$X$62720,5,0)),\"\",VLOOKUP(D276,'Capacidad Financiera'!$C$13:$X$62720,5,0)))","v":""},"",{"$f":"IF(OR(D276=\"\",E276=\"\",F276=\"\"),\"\",IF(AND(G276>0,G276<=CapFinanciera1),Puntajes!$D$12,IF(AND(G276>CapFinanciera1,G276<=CapFinanciera2),Puntajes!$D$13,IF(AND(G276>CapFinanciera2,G276<=CapFinanciera3),Puntajes!$D$14,IF(AND(G276>CapFinanciera3,G276<=CapFinanciera4),Puntajes!$D$15,IF(G276>CapFinanciera4,Puntajes!$D$16,0))))))","v":""}]
[null,null,{"$f":"+'Capacidad Financiera'!B280","v":""},{"$f":"IF(ISERROR(VLOOKUP(C277,'Capacidad Financiera'!$B$12:$X$62720,2,0)),\"\",VLOOKUP(C277,'Capacidad Financiera'!$B$12:$X$3580,2,0))","v":0},{"$f":"IF(OR(C277=\"\",D277=\"\"),\"\",IF(ISERROR(VLOOKUP(D277,'Capacidad Financiera'!$C$13:$X$62720,3,0)),\"\",VLOOKUP(D277,'Capacidad Financiera'!$C$13:$X$62720,3,0)))","v":""},{"$f":"IF(OR(C277=\"\",D277=\"\"),\"\",IF(ISERROR(VLOOKUP(D277,'Capacidad Financiera'!$C$13:$X$62720,5,0)),\"\",VLOOKUP(D277,'Capacidad Financiera'!$C$13:$X$62720,5,0)))","v":""},"",{"$f":"IF(OR(D277=\"\",E277=\"\",F277=\"\"),\"\",IF(AND(G277>0,G277<=CapFinanciera1),Puntajes!$D$12,IF(AND(G277>CapFinanciera1,G277<=CapFinanciera2),Puntajes!$D$13,IF(AND(G277>CapFinanciera2,G277<=CapFinanciera3),Puntajes!$D$14,IF(AND(G277>CapFinanciera3,G277<=CapFinanciera4),Puntajes!$D$15,IF(G277>CapFinanciera4,Puntajes!$D$16,0))))))","v":""}]
[null,null,{"$f":"+'Capacidad Financiera'!B281","v":""},{"$f":"IF(ISERROR(VLOOKUP(C278,'Capacidad Financiera'!$B$12:$X$62720,2,0)),\"\",VLOOKUP(C278,'Capacidad Financiera'!$B$12:$X$3580,2,0))","v":0},{"$f":"IF(OR(C278=\"\",D278=\"\"),\"\",IF(ISERROR(VLOOKUP(D278,'Capacidad Financiera'!$C$13:$X$62720,3,0)),\"\",VLOOKUP(D278,'Capacidad Financiera'!$C$13:$X$62720,3,0)))","v":""},{"$f":"IF(OR(C278=\"\",D278=\"\"),\"\",IF(ISERROR(VLOOKUP(D278,'Capacidad Financiera'!$C$13:$X$62720,5,0)),\"\",VLOOKUP(D278,'Capacidad Financiera'!$C$13:$X$62720,5,0)))","v":""},"",{"$f":"IF(OR(D278=\"\",E278=\"\",F278=\"\"),\"\",IF(AND(G278>0,G278<=CapFinanciera1),Puntajes!$D$12,IF(AND(G278>CapFinanciera1,G278<=CapFinanciera2),Puntajes!$D$13,IF(AND(G278>CapFinanciera2,G278<=CapFinanciera3),Puntajes!$D$14,IF(AND(G278>CapFinanciera3,G278<=CapFinanciera4),Puntajes!$D$15,IF(G278>CapFinanciera4,Puntajes!$D$16,0))))))","v":""}]
[null,null,{"$f":"+'Capacidad Financiera'!B282","v":""},{"$f":"IF(ISERROR(VLOOKUP(C279,'Capacidad Financiera'!$B$12:$X$62720,2,0)),\"\",VLOOKUP(C279,'Capacidad Financiera'!$B$12:$X$3580,2,0))","v":0},{"$f":"IF(OR(C279=\"\",D279=\"\"),\"\",IF(ISERROR(VLOOKUP(D279,'Capacidad Financiera'!$C$13:$X$62720,3,0)),\"\",VLOOKUP(D279,'Capacidad Financiera'!$C$13:$X$62720,3,0)))","v":""},{"$f":"IF(OR(C279=\"\",D279=\"\"),\"\",IF(ISERROR(VLOOKUP(D279,'Capacidad Financiera'!$C$13:$X$62720,5,0)),\"\",VLOOKUP(D279,'Capacidad Financiera'!$C$13:$X$62720,5,0)))","v":""},"",{"$f":"IF(OR(D279=\"\",E279=\"\",F279=\"\"),\"\",IF(AND(G279>0,G279<=CapFinanciera1),Puntajes!$D$12,IF(AND(G279>CapFinanciera1,G279<=CapFinanciera2),Puntajes!$D$13,IF(AND(G279>CapFinanciera2,G279<=CapFinanciera3),Puntajes!$D$14,IF(AND(G279>CapFinanciera3,G279<=CapFinanciera4),Puntajes!$D$15,IF(G279>CapFinanciera4,Puntajes!$D$16,0))))))","v":""}]
[null,null,{"$f":"+'Capacidad Financiera'!B283","v":""},{"$f":"IF(ISERROR(VLOOKUP(C280,'Capacidad Financiera'!$B$12:$X$62720,2,0)),\"\",VLOOKUP(C280,'Capacidad Financiera'!$B$12:$X$3580,2,0))","v":0},{"$f":"IF(OR(C280=\"\",D280=\"\"),\"\",IF(ISERROR(VLOOKUP(D280,'Capacidad Financiera'!$C$13:$X$62720,3,0)),\"\",VLOOKUP(D280,'Capacidad Financiera'!$C$13:$X$62720,3,0)))","v":""},{"$f":"IF(OR(C280=\"\",D280=\"\"),\"\",IF(ISERROR(VLOOKUP(D280,'Capacidad Financiera'!$C$13:$X$62720,5,0)),\"\",VLOOKUP(D280,'Capacidad Financiera'!$C$13:$X$62720,5,0)))","v":""},"",{"$f":"IF(OR(D280=\"\",E280=\"\",F280=\"\"),\"\",IF(AND(G280>0,G280<=CapFinanciera1),Puntajes!$D$12,IF(AND(G280>CapFinanciera1,G280<=CapFinanciera2),Puntajes!$D$13,IF(AND(G280>CapFinanciera2,G280<=CapFinanciera3),Puntajes!$D$14,IF(AND(G280>CapFinanciera3,G280<=CapFinanciera4),Puntajes!$D$15,IF(G280>CapFinanciera4,Puntajes!$D$16,0))))))","v":""}]
[null,null,{"$f":"+'Capacidad Financiera'!B284","v":""},{"$f":"IF(ISERROR(VLOOKUP(C281,'Capacidad Financiera'!$B$12:$X$62720,2,0)),\"\",VLOOKUP(C281,'Capacidad Financiera'!$B$12:$X$3580,2,0))","v":0},{"$f":"IF(OR(C281=\"\",D281=\"\"),\"\",IF(ISERROR(VLOOKUP(D281,'Capacidad Financiera'!$C$13:$X$62720,3,0)),\"\",VLOOKUP(D281,'Capacidad Financiera'!$C$13:$X$62720,3,0)))","v":""},{"$f":"IF(OR(C281=\"\",D281=\"\"),\"\",IF(ISERROR(VLOOKUP(D281,'Capacidad Financiera'!$C$13:$X$62720,5,0)),\"\",VLOOKUP(D281,'Capacidad Financiera'!$C$13:$X$62720,5,0)))","v":""},"",{"$f":"IF(OR(D281=\"\",E281=\"\",F281=\"\"),\"\",IF(AND(G281>0,G281<=CapFinanciera1),Puntajes!$D$12,IF(AND(G281>CapFinanciera1,G281<=CapFinanciera2),Puntajes!$D$13,IF(AND(G281>CapFinanciera2,G281<=CapFinanciera3),Puntajes!$D$14,IF(AND(G281>CapFinanciera3,G281<=CapFinanciera4),Puntajes!$D$15,IF(G281>CapFinanciera4,Puntajes!$D$16,0))))))","v":""}]
[null,null,{"$f":"+'Capacidad Financiera'!B285","v":""},{"$f":"IF(ISERROR(VLOOKUP(C282,'Capacidad Financiera'!$B$12:$X$62720,2,0)),\"\",VLOOKUP(C282,'Capacidad Financiera'!$B$12:$X$3580,2,0))","v":0},{"$f":"IF(OR(C282=\"\",D282=\"\"),\"\",IF(ISERROR(VLOOKUP(D282,'Capacidad Financiera'!$C$13:$X$62720,3,0)),\"\",VLOOKUP(D282,'Capacidad Financiera'!$C$13:$X$62720,3,0)))","v":""},{"$f":"IF(OR(C282=\"\",D282=\"\"),\"\",IF(ISERROR(VLOOKUP(D282,'Capacidad Financiera'!$C$13:$X$62720,5,0)),\"\",VLOOKUP(D282,'Capacidad Financiera'!$C$13:$X$62720,5,0)))","v":""},"",{"$f":"IF(OR(D282=\"\",E282=\"\",F282=\"\"),\"\",IF(AND(G282>0,G282<=CapFinanciera1),Puntajes!$D$12,IF(AND(G282>CapFinanciera1,G282<=CapFinanciera2),Puntajes!$D$13,IF(AND(G282>CapFinanciera2,G282<=CapFinanciera3),Puntajes!$D$14,IF(AND(G282>CapFinanciera3,G282<=CapFinanciera4),Puntajes!$D$15,IF(G282>CapFinanciera4,Puntajes!$D$16,0))))))","v":""}]
[null,null,{"$f":"+'Capacidad Financiera'!B286","v":""},{"$f":"IF(ISERROR(VLOOKUP(C283,'Capacidad Financiera'!$B$12:$X$62720,2,0)),\"\",VLOOKUP(C283,'Capacidad Financiera'!$B$12:$X$3580,2,0))","v":0},{"$f":"IF(OR(C283=\"\",D283=\"\"),\"\",IF(ISERROR(VLOOKUP(D283,'Capacidad Financiera'!$C$13:$X$62720,3,0)),\"\",VLOOKUP(D283,'Capacidad Financiera'!$C$13:$X$62720,3,0)))","v":""},{"$f":"IF(OR(C283=\"\",D283=\"\"),\"\",IF(ISERROR(VLOOKUP(D283,'Capacidad Financiera'!$C$13:$X$62720,5,0)),\"\",VLOOKUP(D283,'Capacidad Financiera'!$C$13:$X$62720,5,0)))","v":""},"",{"$f":"IF(OR(D283=\"\",E283=\"\",F283=\"\"),\"\",IF(AND(G283>0,G283<=CapFinanciera1),Puntajes!$D$12,IF(AND(G283>CapFinanciera1,G283<=CapFinanciera2),Puntajes!$D$13,IF(AND(G283>CapFinanciera2,G283<=CapFinanciera3),Puntajes!$D$14,IF(AND(G283>CapFinanciera3,G283<=CapFinanciera4),Puntajes!$D$15,IF(G283>CapFinanciera4,Puntajes!$D$16,0))))))","v":""}]
[null,null,26,{"$f":"IF(ISERROR(VLOOKUP(C284,'Capacidad Financiera'!$B$12:$X$62720,2,0)),\"\",VLOOKUP(C284,'Capacidad Financiera'!$B$12:$X$3580,2,0))","v":"UNION TEMPORAL MACROVIAS"},{"$f":"IF(C285=\"\",IF(C284<>\"\",IF(ISERROR(VLOOKUP(D284,'Capacidad Financiera'!$C$12:$H$22,3,0)),\"\",VLOOKUP(D284,'Capacidad Financiera'!$C$12:$H$22,3,0))),\"\")","v":""},{"$f":"IF(C285=\"\",IF(C284<>\"\",IF(ISERROR(VLOOKUP(D284,'Capacidad Financiera'!$C$12:$H$22,5,0)),\"\",VLOOKUP(D284,'Capacidad Financiera'!$C$12:$H$22,5,0))),\"\")","v":""},{"$f":"IF(OR(D284=\"\",E284=\"\",F284=\"\"),\"\",IF(OR(E284=0,F284=0),0,E284/F284))","v":""},{"$f":"IF(C285=\"\",IF(AND(E284=\"\",F284=\"\"),\"\",IF(AND(G284>0,G284<=CapFinanciera1),Puntajes!$D$12,IF(AND(G284>CapFinanciera1,G284<=CapFinanciera2),Puntajes!$D$13,IF(AND(G284>CapFinanciera2,G284<=CapFinanciera3),Puntajes!$D$14,IF(AND(G284>CapFinanciera3,G284<=CapFinanciera4),Puntajes!$D$15,IF(G284>CapFinanciera4,Puntajes!$D$16,0)))))),\"\")","v":""}]
[null,null,{"$f":"+'Capacidad Financiera'!B288","v":26.1},{"$f":"IF(ISERROR(VLOOKUP(C285,'Capacidad Financiera'!$B$12:$X$62720,2,0)),\"\",VLOOKUP(C285,'Capacidad Financiera'!$B$12:$X$3580,2,0))","v":"SIBEL INGENIERIA S.A.S."},{"$f":"IF(OR(C285=\"\",D285=\"\"),\"\",IF(ISERROR(VLOOKUP(D285,'Capacidad Financiera'!$C$13:$X$62720,3,0)),\"\",VLOOKUP(D285,'Capacidad Financiera'!$C$13:$X$62720,3,0)))","v":517223834},{"$f":"IF(OR(C285=\"\",D285=\"\"),\"\",IF(ISERROR(VLOOKUP(D285,'Capacidad Financiera'!$C$13:$X$62720,5,0)),\"\",VLOOKUP(D285,'Capacidad Financiera'!$C$13:$X$62720,5,0)))","v":14757283},{"$f":"IF(OR(D285=\"\",E285=\"\",F285=\"\"),\"\",IF(OR(E285=0,F285=0),0,E285/F285))","v":35.048716894566567},{"$f":"IF(OR(D285=\"\",E285=\"\",F285=\"\"),\"\",IF(AND(G285>0,G285<=CapFinanciera1),Puntajes!$D$12,IF(AND(G285>CapFinanciera1,G285<=CapFinanciera2),Puntajes!$D$13,IF(AND(G285>CapFinanciera2,G285<=CapFinanciera3),Puntajes!$D$14,IF(AND(G285>CapFinanciera3,G285<=CapFinanciera4),Puntajes!$D$15,IF(G285>CapFinanciera4,Puntajes!$D$16,0))))))","v":40}]
[null,null,{"$f":"+'Capacidad Financiera'!B289","v":26.200000000000003},{"$f":"IF(ISERROR(VLOOKUP(C286,'Capacidad Financiera'!$B$12:$X$62720,2,0)),\"\",VLOOKUP(C286,'Capacidad Financiera'!$B$12:$X$3580,2,0))","v":"MILTON RIVERA RINCON"},{"$f":"IF(OR(C286=\"\",D286=\"\"),\"\",IF(ISERROR(VLOOKUP(D286,'Capacidad Financiera'!$C$13:$X$62720,3,0)),\"\",VLOOKUP(D286,'Capacidad Financiera'!$C$13:$X$62720,3,0)))","v":7919607295},{"$f":"IF(OR(C286=\"\",D286=\"\"),\"\",IF(ISERROR(VLOOKUP(D286,'Capacidad Financiera'!$C$13:$X$62720,5,0)),\"\",VLOOKUP(D286,'Capacidad Financiera'!$C$13:$X$62720,5,0)))","v":880018349},8.999366097308501,{"$f":"IF(OR(D286=\"\",E286=\"\",F286=\"\"),\"\",IF(AND(G286>0,G286<=CapFinanciera1),Puntajes!$D$12,IF(AND(G286>CapFinanciera1,G286<=CapFinanciera2),Puntajes!$D$13,IF(AND(G286>CapFinanciera2,G286<=CapFinanciera3),Puntajes!$D$14,IF(AND(G286>CapFinanciera3,G286<=CapFinanciera4),Puntajes!$D$15,IF(G286>CapFinanciera4,Puntajes!$D$16,0))))))","v":40}]
[null,null,{"$f":"+'Capacidad Financiera'!B290","v":26.300000000000004},{"$f":"IF(ISERROR(VLOOKUP(C287,'Capacidad Financiera'!$B$12:$X$62720,2,0)),\"\",VLOOKUP(C287,'Capacidad Financiera'!$B$12:$X$3580,2,0))","v":"YEBRAIL CADENA LOZANO"},{"$f":"IF(OR(C287=\"\",D287=\"\"),\"\",IF(ISERROR(VLOOKUP(D287,'Capacidad Financiera'!$C$13:$X$62720,3,0)),\"\",VLOOKUP(D287,'Capacidad Financiera'!$C$13:$X$62720,3,0)))","v":1779986928},{"$f":"IF(OR(C287=\"\",D287=\"\"),\"\",IF(ISERROR(VLOOKUP(D287,'Capacidad Financiera'!$C$13:$X$62720,5,0)),\"\",VLOOKUP(D287,'Capacidad Financiera'!$C$13:$X$62720,5,0)))","v":24948322},71.34695984764025,{"$f":"IF(OR(D287=\"\",E287=\"\",F287=\"\"),\"\",IF(AND(G287>0,G287<=CapFinanciera1),Puntajes!$D$12,IF(AND(G287>CapFinanciera1,G287<=CapFinanciera2),Puntajes!$D$13,IF(AND(G287>CapFinanciera2,G287<=CapFinanciera3),Puntajes!$D$14,IF(AND(G287>CapFinanciera3,G287<=CapFinanciera4),Puntajes!$D$15,IF(G287>CapFinanciera4,Puntajes!$D$16,0))))))","v":40}]
[null,null,{"$f":"+'Capacidad Financiera'!B291","v":""},{"$f":"IF(ISERROR(VLOOKUP(C288,'Capacidad Financiera'!$B$12:$X$62720,2,0)),\"\",VLOOKUP(C288,'Capacidad Financiera'!$B$12:$X$3580,2,0))","v":0},{"$f":"IF(OR(C288=\"\",D288=\"\"),\"\",IF(ISERROR(VLOOKUP(D288,'Capacidad Financiera'!$C$13:$X$62720,3,0)),\"\",VLOOKUP(D288,'Capacidad Financiera'!$C$13:$X$62720,3,0)))","v":""},{"$f":"IF(OR(C288=\"\",D288=\"\"),\"\",IF(ISERROR(VLOOKUP(D288,'Capacidad Financiera'!$C$13:$X$62720,5,0)),\"\",VLOOKUP(D288,'Capacidad Financiera'!$C$13:$X$62720,5,0)))","v":""},"",{"$f":"IF(OR(D288=\"\",E288=\"\",F288=\"\"),\"\",IF(AND(G288>0,G288<=CapFinanciera1),Puntajes!$D$12,IF(AND(G288>CapFinanciera1,G288<=CapFinanciera2),Puntajes!$D$13,IF(AND(G288>CapFinanciera2,G288<=CapFinanciera3),Puntajes!$D$14,IF(AND(G288>CapFinanciera3,G288<=CapFinanciera4),Puntajes!$D$15,IF(G288>CapFinanciera4,Puntajes!$D$16,0))))))","v":""}]
[null,null,{"$f":"+'Capacidad Financiera'!B292","v":""},{"$f":"IF(ISERROR(VLOOKUP(C289,'Capacidad Financiera'!$B$12:$X$62720,2,0)),\"\",VLOOKUP(C289,'Capacidad Financiera'!$B$12:$X$3580,2,0))","v":0},{"$f":"IF(OR(C289=\"\",D289=\"\"),\"\",IF(ISERROR(VLOOKUP(D289,'Capacidad Financiera'!$C$13:$X$62720,3,0)),\"\",VLOOKUP(D289,'Capacidad Financiera'!$C$13:$X$62720,3,0)))","v":""},{"$f":"IF(OR(C289=\"\",D289=\"\"),\"\",IF(ISERROR(VLOOKUP(D289,'Capacidad Financiera'!$C$13:$X$62720,5,0)),\"\",VLOOKUP(D289,'Capacidad Financiera'!$C$13:$X$62720,5,0)))","v":""},"",{"$f":"IF(OR(D289=\"\",E289=\"\",F289=\"\"),\"\",IF(AND(G289>0,G289<=CapFinanciera1),Puntajes!$D$12,IF(AND(G289>CapFinanciera1,G289<=CapFinanciera2),Puntajes!$D$13,IF(AND(G289>CapFinanciera2,G289<=CapFinanciera3),Puntajes!$D$14,IF(AND(G289>CapFinanciera3,G289<=CapFinanciera4),Puntajes!$D$15,IF(G289>CapFinanciera4,Puntajes!$D$16,0))))))","v":""}]
[null,null,{"$f":"+'Capacidad Financiera'!B293","v":""},{"$f":"IF(ISERROR(VLOOKUP(C290,'Capacidad Financiera'!$B$12:$X$62720,2,0)),\"\",VLOOKUP(C290,'Capacidad Financiera'!$B$12:$X$3580,2,0))","v":0},{"$f":"IF(OR(C290=\"\",D290=\"\"),\"\",IF(ISERROR(VLOOKUP(D290,'Capacidad Financiera'!$C$13:$X$62720,3,0)),\"\",VLOOKUP(D290,'Capacidad Financiera'!$C$13:$X$62720,3,0)))","v":""},{"$f":"IF(OR(C290=\"\",D290=\"\"),\"\",IF(ISERROR(VLOOKUP(D290,'Capacidad Financiera'!$C$13:$X$62720,5,0)),\"\",VLOOKUP(D290,'Capacidad Financiera'!$C$13:$X$62720,5,0)))","v":""},"",{"$f":"IF(OR(D290=\"\",E290=\"\",F290=\"\"),\"\",IF(AND(G290>0,G290<=CapFinanciera1),Puntajes!$D$12,IF(AND(G290>CapFinanciera1,G290<=CapFinanciera2),Puntajes!$D$13,IF(AND(G290>CapFinanciera2,G290<=CapFinanciera3),Puntajes!$D$14,IF(AND(G290>CapFinanciera3,G290<=CapFinanciera4),Puntajes!$D$15,IF(G290>CapFinanciera4,Puntajes!$D$16,0))))))","v":""}]
[null,null,{"$f":"+'Capacidad Financiera'!B294","v":""},{"$f":"IF(ISERROR(VLOOKUP(C291,'Capacidad Financiera'!$B$12:$X$62720,2,0)),\"\",VLOOKUP(C291,'Capacidad Financiera'!$B$12:$X$3580,2,0))","v":0},{"$f":"IF(OR(C291=\"\",D291=\"\"),\"\",IF(ISERROR(VLOOKUP(D291,'Capacidad Financiera'!$C$13:$X$62720,3,0)),\"\",VLOOKUP(D291,'Capacidad Financiera'!$C$13:$X$62720,3,0)))","v":""},{"$f":"IF(OR(C291=\"\",D291=\"\"),\"\",IF(ISERROR(VLOOKUP(D291,'Capacidad Financiera'!$C$13:$X$62720,5,0)),\"\",VLOOKUP(D291,'Capacidad Financiera'!$C$13:$X$62720,5,0)))","v":""},"",{"$f":"IF(OR(D291=\"\",E291=\"\",F291=\"\"),\"\",IF(AND(G291>0,G291<=CapFinanciera1),Puntajes!$D$12,IF(AND(G291>CapFinanciera1,G291<=CapFinanciera2),Puntajes!$D$13,IF(AND(G291>CapFinanciera2,G291<=CapFinanciera3),Puntajes!$D$14,IF(AND(G291>CapFinanciera3,G291<=CapFinanciera4),Puntajes!$D$15,IF(G291>CapFinanciera4,Puntajes!$D$16,0))))))","v":""}]
[null,null,{"$f":"+'Capacidad Financiera'!B295","v":""},{"$f":"IF(ISERROR(VLOOKUP(C292,'Capacidad Financiera'!$B$12:$X$62720,2,0)),\"\",VLOOKUP(C292,'Capacidad Financiera'!$B$12:$X$3580,2,0))","v":0},{"$f":"IF(OR(C292=\"\",D292=\"\"),\"\",IF(ISERROR(VLOOKUP(D292,'Capacidad Financiera'!$C$13:$X$62720,3,0)),\"\",VLOOKUP(D292,'Capacidad Financiera'!$C$13:$X$62720,3,0)))","v":""},{"$f":"IF(OR(C292=\"\",D292=\"\"),\"\",IF(ISERROR(VLOOKUP(D292,'Capacidad Financiera'!$C$13:$X$62720,5,0)),\"\",VLOOKUP(D292,'Capacidad Financiera'!$C$13:$X$62720,5,0)))","v":""},"",{"$f":"IF(OR(D292=\"\",E292=\"\",F292=\"\"),\"\",IF(AND(G292>0,G292<=CapFinanciera1),Puntajes!$D$12,IF(AND(G292>CapFinanciera1,G292<=CapFinanciera2),Puntajes!$D$13,IF(AND(G292>CapFinanciera2,G292<=CapFinanciera3),Puntajes!$D$14,IF(AND(G292>CapFinanciera3,G292<=CapFinanciera4),Puntajes!$D$15,IF(G292>CapFinanciera4,Puntajes!$D$16,0))))))","v":""}]
[null,null,{"$f":"+'Capacidad Financiera'!B296","v":""},{"$f":"IF(ISERROR(VLOOKUP(C293,'Capacidad Financiera'!$B$12:$X$62720,2,0)),\"\",VLOOKUP(C293,'Capacidad Financiera'!$B$12:$X$3580,2,0))","v":0},{"$f":"IF(OR(C293=\"\",D293=\"\"),\"\",IF(ISERROR(VLOOKUP(D293,'Capacidad Financiera'!$C$13:$X$62720,3,0)),\"\",VLOOKUP(D293,'Capacidad Financiera'!$C$13:$X$62720,3,0)))","v":""},{"$f":"IF(OR(C293=\"\",D293=\"\"),\"\",IF(ISERROR(VLOOKUP(D293,'Capacidad Financiera'!$C$13:$X$62720,5,0)),\"\",VLOOKUP(D293,'Capacidad Financiera'!$C$13:$X$62720,5,0)))","v":""},"",{"$f":"IF(OR(D293=\"\",E293=\"\",F293=\"\"),\"\",IF(AND(G293>0,G293<=CapFinanciera1),Puntajes!$D$12,IF(AND(G293>CapFinanciera1,G293<=CapFinanciera2),Puntajes!$D$13,IF(AND(G293>CapFinanciera2,G293<=CapFinanciera3),Puntajes!$D$14,IF(AND(G293>CapFinanciera3,G293<=CapFinanciera4),Puntajes!$D$15,IF(G293>CapFinanciera4,Puntajes!$D$16,0))))))","v":""}]
[null,null,{"$f":"+'Capacidad Financiera'!B297","v":""},{"$f":"IF(ISERROR(VLOOKUP(C294,'Capacidad Financiera'!$B$12:$X$62720,2,0)),\"\",VLOOKUP(C294,'Capacidad Financiera'!$B$12:$X$3580,2,0))","v":0},{"$f":"IF(OR(C294=\"\",D294=\"\"),\"\",IF(ISERROR(VLOOKUP(D294,'Capacidad Financiera'!$C$13:$X$62720,3,0)),\"\",VLOOKUP(D294,'Capacidad Financiera'!$C$13:$X$62720,3,0)))","v":""},{"$f":"IF(OR(C294=\"\",D294=\"\"),\"\",IF(ISERROR(VLOOKUP(D294,'Capacidad Financiera'!$C$13:$X$62720,5,0)),\"\",VLOOKUP(D294,'Capacidad Financiera'!$C$13:$X$62720,5,0)))","v":""},"",{"$f":"IF(OR(D294=\"\",E294=\"\",F294=\"\"),\"\",IF(AND(G294>0,G294<=CapFinanciera1),Puntajes!$D$12,IF(AND(G294>CapFinanciera1,G294<=CapFinanciera2),Puntajes!$D$13,IF(AND(G294>CapFinanciera2,G294<=CapFinanciera3),Puntajes!$D$14,IF(AND(G294>CapFinanciera3,G294<=CapFinanciera4),Puntajes!$D$15,IF(G294>CapFinanciera4,Puntajes!$D$16,0))))))","v":""}]
[null,null,27,{"$f":"IF(ISERROR(VLOOKUP(C295,'Capacidad Financiera'!$B$12:$X$62720,2,0)),\"\",VLOOKUP(C295,'Capacidad Financiera'!$B$12:$X$3580,2,0))","v":"CONSORCIO LOS PATIOS 2014"},{"$f":"IF(C296=\"\",IF(C295<>\"\",IF(ISERROR(VLOOKUP(D295,'Capacidad Financiera'!$C$12:$H$22,3,0)),\"\",VLOOKUP(D295,'Capacidad Financiera'!$C$12:$H$22,3,0))),\"\")","v":""},{"$f":"IF(C296=\"\",IF(C295<>\"\",IF(ISERROR(VLOOKUP(D295,'Capacidad Financiera'!$C$12:$H$22,5,0)),\"\",VLOOKUP(D295,'Capacidad Financiera'!$C$12:$H$22,5,0))),\"\")","v":""},{"$f":"IF(OR(D295=\"\",E295=\"\",F295=\"\"),\"\",IF(OR(E295=0,F295=0),0,E295/F295))","v":""},{"$f":"IF(C296=\"\",IF(AND(E295=\"\",F295=\"\"),\"\",IF(AND(G295>0,G295<=CapFinanciera1),Puntajes!$D$12,IF(AND(G295>CapFinanciera1,G295<=CapFinanciera2),Puntajes!$D$13,IF(AND(G295>CapFinanciera2,G295<=CapFinanciera3),Puntajes!$D$14,IF(AND(G295>CapFinanciera3,G295<=CapFinanciera4),Puntajes!$D$15,IF(G295>CapFinanciera4,Puntajes!$D$16,0)))))),\"\")","v":""}]
[null,null,{"$f":"+'Capacidad Financiera'!B299","v":27.1},{"$f":"IF(ISERROR(VLOOKUP(C296,'Capacidad Financiera'!$B$12:$X$62720,2,0)),\"\",VLOOKUP(C296,'Capacidad Financiera'!$B$12:$X$3580,2,0))","v":"S Y M INGENIERIA S.A.S."},{"$f":"IF(OR(C296=\"\",D296=\"\"),\"\",IF(ISERROR(VLOOKUP(D296,'Capacidad Financiera'!$C$13:$X$62720,3,0)),\"\",VLOOKUP(D296,'Capacidad Financiera'!$C$13:$X$62720,3,0)))","v":1946412532},{"$f":"IF(OR(C296=\"\",D296=\"\"),\"\",IF(ISERROR(VLOOKUP(D296,'Capacidad Financiera'!$C$13:$X$62720,5,0)),\"\",VLOOKUP(D296,'Capacidad Financiera'!$C$13:$X$62720,5,0)))","v":48037506},{"$f":"IF(OR(D296=\"\",E296=\"\",F296=\"\"),\"\",IF(OR(E296=0,F296=0),0,E296/F296))","v":40.518600861585114},{"$f":"IF(OR(D296=\"\",E296=\"\",F296=\"\"),\"\",IF(AND(G296>0,G296<=CapFinanciera1),Puntajes!$D$12,IF(AND(G296>CapFinanciera1,G296<=CapFinanciera2),Puntajes!$D$13,IF(AND(G296>CapFinanciera2,G296<=CapFinanciera3),Puntajes!$D$14,IF(AND(G296>CapFinanciera3,G296<=CapFinanciera4),Puntajes!$D$15,IF(G296>CapFinanciera4,Puntajes!$D$16,0))))))","v":40}]
[null,null,{"$f":"+'Capacidad Financiera'!B300","v":27.200000000000003},{"$f":"IF(ISERROR(VLOOKUP(C297,'Capacidad Financiera'!$B$12:$X$62720,2,0)),\"\",VLOOKUP(C297,'Capacidad Financiera'!$B$12:$X$3580,2,0))","v":"MACIAS MORA Y CIA. S. EN C.S."},{"$f":"IF(OR(C297=\"\",D297=\"\"),\"\",IF(ISERROR(VLOOKUP(D297,'Capacidad Financiera'!$C$13:$X$62720,3,0)),\"\",VLOOKUP(D297,'Capacidad Financiera'!$C$13:$X$62720,3,0)))","v":420106867},{"$f":"IF(OR(C297=\"\",D297=\"\"),\"\",IF(ISERROR(VLOOKUP(D297,'Capacidad Financiera'!$C$13:$X$62720,5,0)),\"\",VLOOKUP(D297,'Capacidad Financiera'!$C$13:$X$62720,5,0)))","v":32844949},12.790607986634413,{"$f":"IF(OR(D297=\"\",E297=\"\",F297=\"\"),\"\",IF(AND(G297>0,G297<=CapFinanciera1),Puntajes!$D$12,IF(AND(G297>CapFinanciera1,G297<=CapFinanciera2),Puntajes!$D$13,IF(AND(G297>CapFinanciera2,G297<=CapFinanciera3),Puntajes!$D$14,IF(AND(G297>CapFinanciera3,G297<=CapFinanciera4),Puntajes!$D$15,IF(G297>CapFinanciera4,Puntajes!$D$16,0))))))","v":40}]
[null,null,{"$f":"+'Capacidad Financiera'!B301","v":27.300000000000004},{"$f":"IF(ISERROR(VLOOKUP(C298,'Capacidad Financiera'!$B$12:$X$62720,2,0)),\"\",VLOOKUP(C298,'Capacidad Financiera'!$B$12:$X$3580,2,0))","v":"ESTEBAN MACIAS VARGAS"},{"$f":"IF(OR(C298=\"\",D298=\"\"),\"\",IF(ISERROR(VLOOKUP(D298,'Capacidad Financiera'!$C$13:$X$62720,3,0)),\"\",VLOOKUP(D298,'Capacidad Financiera'!$C$13:$X$62720,3,0)))","v":221282696},{"$f":"IF(OR(C298=\"\",D298=\"\"),\"\",IF(ISERROR(VLOOKUP(D298,'Capacidad Financiera'!$C$13:$X$62720,5,0)),\"\",VLOOKUP(D298,'Capacidad Financiera'!$C$13:$X$62720,5,0)))","v":8788000},25.180097405553028,{"$f":"IF(OR(D298=\"\",E298=\"\",F298=\"\"),\"\",IF(AND(G298>0,G298<=CapFinanciera1),Puntajes!$D$12,IF(AND(G298>CapFinanciera1,G298<=CapFinanciera2),Puntajes!$D$13,IF(AND(G298>CapFinanciera2,G298<=CapFinanciera3),Puntajes!$D$14,IF(AND(G298>CapFinanciera3,G298<=CapFinanciera4),Puntajes!$D$15,IF(G298>CapFinanciera4,Puntajes!$D$16,0))))))","v":40}]
[null,null,{"$f":"+'Capacidad Financiera'!B302","v":""},{"$f":"IF(ISERROR(VLOOKUP(C299,'Capacidad Financiera'!$B$12:$X$62720,2,0)),\"\",VLOOKUP(C299,'Capacidad Financiera'!$B$12:$X$3580,2,0))","v":0},{"$f":"IF(OR(C299=\"\",D299=\"\"),\"\",IF(ISERROR(VLOOKUP(D299,'Capacidad Financiera'!$C$13:$X$62720,3,0)),\"\",VLOOKUP(D299,'Capacidad Financiera'!$C$13:$X$62720,3,0)))","v":""},{"$f":"IF(OR(C299=\"\",D299=\"\"),\"\",IF(ISERROR(VLOOKUP(D299,'Capacidad Financiera'!$C$13:$X$62720,5,0)),\"\",VLOOKUP(D299,'Capacidad Financiera'!$C$13:$X$62720,5,0)))","v":""},"",{"$f":"IF(OR(D299=\"\",E299=\"\",F299=\"\"),\"\",IF(AND(G299>0,G299<=CapFinanciera1),Puntajes!$D$12,IF(AND(G299>CapFinanciera1,G299<=CapFinanciera2),Puntajes!$D$13,IF(AND(G299>CapFinanciera2,G299<=CapFinanciera3),Puntajes!$D$14,IF(AND(G299>CapFinanciera3,G299<=CapFinanciera4),Puntajes!$D$15,IF(G299>CapFinanciera4,Puntajes!$D$16,0))))))","v":""}]
[null,null,{"$f":"+'Capacidad Financiera'!B303","v":""},{"$f":"IF(ISERROR(VLOOKUP(C300,'Capacidad Financiera'!$B$12:$X$62720,2,0)),\"\",VLOOKUP(C300,'Capacidad Financiera'!$B$12:$X$3580,2,0))","v":0},{"$f":"IF(OR(C300=\"\",D300=\"\"),\"\",IF(ISERROR(VLOOKUP(D300,'Capacidad Financiera'!$C$13:$X$62720,3,0)),\"\",VLOOKUP(D300,'Capacidad Financiera'!$C$13:$X$62720,3,0)))","v":""},{"$f":"IF(OR(C300=\"\",D300=\"\"),\"\",IF(ISERROR(VLOOKUP(D300,'Capacidad Financiera'!$C$13:$X$62720,5,0)),\"\",VLOOKUP(D300,'Capacidad Financiera'!$C$13:$X$62720,5,0)))","v":""},"",{"$f":"IF(OR(D300=\"\",E300=\"\",F300=\"\"),\"\",IF(AND(G300>0,G300<=CapFinanciera1),Puntajes!$D$12,IF(AND(G300>CapFinanciera1,G300<=CapFinanciera2),Puntajes!$D$13,IF(AND(G300>CapFinanciera2,G300<=CapFinanciera3),Puntajes!$D$14,IF(AND(G300>CapFinanciera3,G300<=CapFinanciera4),Puntajes!$D$15,IF(G300>CapFinanciera4,Puntajes!$D$16,0))))))","v":""}]
[null,null,{"$f":"+'Capacidad Financiera'!B304","v":""},{"$f":"IF(ISERROR(VLOOKUP(C301,'Capacidad Financiera'!$B$12:$X$62720,2,0)),\"\",VLOOKUP(C301,'Capacidad Financiera'!$B$12:$X$3580,2,0))","v":0},{"$f":"IF(OR(C301=\"\",D301=\"\"),\"\",IF(ISERROR(VLOOKUP(D301,'Capacidad Financiera'!$C$13:$X$62720,3,0)),\"\",VLOOKUP(D301,'Capacidad Financiera'!$C$13:$X$62720,3,0)))","v":""},{"$f":"IF(OR(C301=\"\",D301=\"\"),\"\",IF(ISERROR(VLOOKUP(D301,'Capacidad Financiera'!$C$13:$X$62720,5,0)),\"\",VLOOKUP(D301,'Capacidad Financiera'!$C$13:$X$62720,5,0)))","v":""},"",{"$f":"IF(OR(D301=\"\",E301=\"\",F301=\"\"),\"\",IF(AND(G301>0,G301<=CapFinanciera1),Puntajes!$D$12,IF(AND(G301>CapFinanciera1,G301<=CapFinanciera2),Puntajes!$D$13,IF(AND(G301>CapFinanciera2,G301<=CapFinanciera3),Puntajes!$D$14,IF(AND(G301>CapFinanciera3,G301<=CapFinanciera4),Puntajes!$D$15,IF(G301>CapFinanciera4,Puntajes!$D$16,0))))))","v":""}]
[null,null,{"$f":"+'Capacidad Financiera'!B305","v":""},{"$f":"IF(ISERROR(VLOOKUP(C302,'Capacidad Financiera'!$B$12:$X$62720,2,0)),\"\",VLOOKUP(C302,'Capacidad Financiera'!$B$12:$X$3580,2,0))","v":0},{"$f":"IF(OR(C302=\"\",D302=\"\"),\"\",IF(ISERROR(VLOOKUP(D302,'Capacidad Financiera'!$C$13:$X$62720,3,0)),\"\",VLOOKUP(D302,'Capacidad Financiera'!$C$13:$X$62720,3,0)))","v":""},{"$f":"IF(OR(C302=\"\",D302=\"\"),\"\",IF(ISERROR(VLOOKUP(D302,'Capacidad Financiera'!$C$13:$X$62720,5,0)),\"\",VLOOKUP(D302,'Capacidad Financiera'!$C$13:$X$62720,5,0)))","v":""},"",{"$f":"IF(OR(D302=\"\",E302=\"\",F302=\"\"),\"\",IF(AND(G302>0,G302<=CapFinanciera1),Puntajes!$D$12,IF(AND(G302>CapFinanciera1,G302<=CapFinanciera2),Puntajes!$D$13,IF(AND(G302>CapFinanciera2,G302<=CapFinanciera3),Puntajes!$D$14,IF(AND(G302>CapFinanciera3,G302<=CapFinanciera4),Puntajes!$D$15,IF(G302>CapFinanciera4,Puntajes!$D$16,0))))))","v":""}]
[null,null,{"$f":"+'Capacidad Financiera'!B306","v":""},{"$f":"IF(ISERROR(VLOOKUP(C303,'Capacidad Financiera'!$B$12:$X$62720,2,0)),\"\",VLOOKUP(C303,'Capacidad Financiera'!$B$12:$X$3580,2,0))","v":0},{"$f":"IF(OR(C303=\"\",D303=\"\"),\"\",IF(ISERROR(VLOOKUP(D303,'Capacidad Financiera'!$C$13:$X$62720,3,0)),\"\",VLOOKUP(D303,'Capacidad Financiera'!$C$13:$X$62720,3,0)))","v":""},{"$f":"IF(OR(C303=\"\",D303=\"\"),\"\",IF(ISERROR(VLOOKUP(D303,'Capacidad Financiera'!$C$13:$X$62720,5,0)),\"\",VLOOKUP(D303,'Capacidad Financiera'!$C$13:$X$62720,5,0)))","v":""},"",{"$f":"IF(OR(D303=\"\",E303=\"\",F303=\"\"),\"\",IF(AND(G303>0,G303<=CapFinanciera1),Puntajes!$D$12,IF(AND(G303>CapFinanciera1,G303<=CapFinanciera2),Puntajes!$D$13,IF(AND(G303>CapFinanciera2,G303<=CapFinanciera3),Puntajes!$D$14,IF(AND(G303>CapFinanciera3,G303<=CapFinanciera4),Puntajes!$D$15,IF(G303>CapFinanciera4,Puntajes!$D$16,0))))))","v":""}]
[null,null,{"$f":"+'Capacidad Financiera'!B307","v":""},{"$f":"IF(ISERROR(VLOOKUP(C304,'Capacidad Financiera'!$B$12:$X$62720,2,0)),\"\",VLOOKUP(C304,'Capacidad Financiera'!$B$12:$X$3580,2,0))","v":0},{"$f":"IF(OR(C304=\"\",D304=\"\"),\"\",IF(ISERROR(VLOOKUP(D304,'Capacidad Financiera'!$C$13:$X$62720,3,0)),\"\",VLOOKUP(D304,'Capacidad Financiera'!$C$13:$X$62720,3,0)))","v":""},{"$f":"IF(OR(C304=\"\",D304=\"\"),\"\",IF(ISERROR(VLOOKUP(D304,'Capacidad Financiera'!$C$13:$X$62720,5,0)),\"\",VLOOKUP(D304,'Capacidad Financiera'!$C$13:$X$62720,5,0)))","v":""},"",{"$f":"IF(OR(D304=\"\",E304=\"\",F304=\"\"),\"\",IF(AND(G304>0,G304<=CapFinanciera1),Puntajes!$D$12,IF(AND(G304>CapFinanciera1,G304<=CapFinanciera2),Puntajes!$D$13,IF(AND(G304>CapFinanciera2,G304<=CapFinanciera3),Puntajes!$D$14,IF(AND(G304>CapFinanciera3,G304<=CapFinanciera4),Puntajes!$D$15,IF(G304>CapFinanciera4,Puntajes!$D$16,0))))))","v":""}]
[null,null,{"$f":"+'Capacidad Financiera'!B308","v":""},{"$f":"IF(ISERROR(VLOOKUP(C305,'Capacidad Financiera'!$B$12:$X$62720,2,0)),\"\",VLOOKUP(C305,'Capacidad Financiera'!$B$12:$X$3580,2,0))","v":0},{"$f":"IF(OR(C305=\"\",D305=\"\"),\"\",IF(ISERROR(VLOOKUP(D305,'Capacidad Financiera'!$C$13:$X$62720,3,0)),\"\",VLOOKUP(D305,'Capacidad Financiera'!$C$13:$X$62720,3,0)))","v":""},{"$f":"IF(OR(C305=\"\",D305=\"\"),\"\",IF(ISERROR(VLOOKUP(D305,'Capacidad Financiera'!$C$13:$X$62720,5,0)),\"\",VLOOKUP(D305,'Capacidad Financiera'!$C$13:$X$62720,5,0)))","v":""},"",{"$f":"IF(OR(D305=\"\",E305=\"\",F305=\"\"),\"\",IF(AND(G305>0,G305<=CapFinanciera1),Puntajes!$D$12,IF(AND(G305>CapFinanciera1,G305<=CapFinanciera2),Puntajes!$D$13,IF(AND(G305>CapFinanciera2,G305<=CapFinanciera3),Puntajes!$D$14,IF(AND(G305>CapFinanciera3,G305<=CapFinanciera4),Puntajes!$D$15,IF(G305>CapFinanciera4,Puntajes!$D$16,0))))))","v":""}]
[null,null,28,{"$f":"IF(ISERROR(VLOOKUP(C306,'Capacidad Financiera'!$B$12:$X$62720,2,0)),\"\",VLOOKUP(C306,'Capacidad Financiera'!$B$12:$X$3580,2,0))","v":"SOFAN INGENIERIA S.A.S."},{"$f":"IF(C307=\"\",IF(C306<>\"\",IF(ISERROR(VLOOKUP(D306,'Capacidad Financiera'!$C$12:$H$22,3,0)),\"\",VLOOKUP(D306,'Capacidad Financiera'!$C$12:$H$22,3,0))),\"\")","v":""},{"$f":"IF(C307=\"\",IF(C306<>\"\",IF(ISERROR(VLOOKUP(D306,'Capacidad Financiera'!$C$12:$H$22,5,0)),\"\",VLOOKUP(D306,'Capacidad Financiera'!$C$12:$H$22,5,0))),\"\")","v":""},{"$f":"IF(OR(D306=\"\",E306=\"\",F306=\"\"),\"\",IF(OR(E306=0,F306=0),0,E306/F306))","v":""},{"$f":"IF(C307=\"\",IF(AND(E306=\"\",F306=\"\"),\"\",IF(AND(G306>0,G306<=CapFinanciera1),Puntajes!$D$12,IF(AND(G306>CapFinanciera1,G306<=CapFinanciera2),Puntajes!$D$13,IF(AND(G306>CapFinanciera2,G306<=CapFinanciera3),Puntajes!$D$14,IF(AND(G306>CapFinanciera3,G306<=CapFinanciera4),Puntajes!$D$15,IF(G306>CapFinanciera4,Puntajes!$D$16,0)))))),\"\")","v":""}]
[null,null,{"$f":"+'Capacidad Financiera'!B310","v":28.1},{"$f":"IF(ISERROR(VLOOKUP(C307,'Capacidad Financiera'!$B$12:$X$62720,2,0)),\"\",VLOOKUP(C307,'Capacidad Financiera'!$B$12:$X$3580,2,0))","v":"SOFAN INGENIERIA S.A.S."},{"$f":"IF(OR(C307=\"\",D307=\"\"),\"\",IF(ISERROR(VLOOKUP(D307,'Capacidad Financiera'!$C$13:$X$62720,3,0)),\"\",VLOOKUP(D307,'Capacidad Financiera'!$C$13:$X$62720,3,0)))","v":5803561978.6400003},{"$f":"IF(OR(C307=\"\",D307=\"\"),\"\",IF(ISERROR(VLOOKUP(D307,'Capacidad Financiera'!$C$13:$X$62720,5,0)),\"\",VLOOKUP(D307,'Capacidad Financiera'!$C$13:$X$62720,5,0)))","v":869346413.49000001},{"$f":"IF(OR(D307=\"\",E307=\"\",F307=\"\"),\"\",IF(OR(E307=0,F307=0),0,E307/F307))","v":6.675776064160134},{"$f":"IF(OR(D307=\"\",E307=\"\",F307=\"\"),\"\",IF(AND(G307>0,G307<=CapFinanciera1),Puntajes!$D$12,IF(AND(G307>CapFinanciera1,G307<=CapFinanciera2),Puntajes!$D$13,IF(AND(G307>CapFinanciera2,G307<=CapFinanciera3),Puntajes!$D$14,IF(AND(G307>CapFinanciera3,G307<=CapFinanciera4),Puntajes!$D$15,IF(G307>CapFinanciera4,Puntajes!$D$16,0))))))","v":40}]
[null,null,{"$f":"+'Capacidad Financiera'!B311","v":""},{"$f":"IF(ISERROR(VLOOKUP(C308,'Capacidad Financiera'!$B$12:$X$62720,2,0)),\"\",VLOOKUP(C308,'Capacidad Financiera'!$B$12:$X$3580,2,0))","v":0},{"$f":"IF(OR(C308=\"\",D308=\"\"),\"\",IF(ISERROR(VLOOKUP(D308,'Capacidad Financiera'!$C$13:$X$62720,3,0)),\"\",VLOOKUP(D308,'Capacidad Financiera'!$C$13:$X$62720,3,0)))","v":""},{"$f":"IF(OR(C308=\"\",D308=\"\"),\"\",IF(ISERROR(VLOOKUP(D308,'Capacidad Financiera'!$C$13:$X$62720,5,0)),\"\",VLOOKUP(D308,'Capacidad Financiera'!$C$13:$X$62720,5,0)))","v":""},"",{"$f":"IF(OR(D308=\"\",E308=\"\",F308=\"\"),\"\",IF(AND(G308>0,G308<=CapFinanciera1),Puntajes!$D$12,IF(AND(G308>CapFinanciera1,G308<=CapFinanciera2),Puntajes!$D$13,IF(AND(G308>CapFinanciera2,G308<=CapFinanciera3),Puntajes!$D$14,IF(AND(G308>CapFinanciera3,G308<=CapFinanciera4),Puntajes!$D$15,IF(G308>CapFinanciera4,Puntajes!$D$16,0))))))","v":""}]
[null,null,{"$f":"+'Capacidad Financiera'!B312","v":""},{"$f":"IF(ISERROR(VLOOKUP(C309,'Capacidad Financiera'!$B$12:$X$62720,2,0)),\"\",VLOOKUP(C309,'Capacidad Financiera'!$B$12:$X$3580,2,0))","v":0},{"$f":"IF(OR(C309=\"\",D309=\"\"),\"\",IF(ISERROR(VLOOKUP(D309,'Capacidad Financiera'!$C$13:$X$62720,3,0)),\"\",VLOOKUP(D309,'Capacidad Financiera'!$C$13:$X$62720,3,0)))","v":""},{"$f":"IF(OR(C309=\"\",D309=\"\"),\"\",IF(ISERROR(VLOOKUP(D309,'Capacidad Financiera'!$C$13:$X$62720,5,0)),\"\",VLOOKUP(D309,'Capacidad Financiera'!$C$13:$X$62720,5,0)))","v":""},"",{"$f":"IF(OR(D309=\"\",E309=\"\",F309=\"\"),\"\",IF(AND(G309>0,G309<=CapFinanciera1),Puntajes!$D$12,IF(AND(G309>CapFinanciera1,G309<=CapFinanciera2),Puntajes!$D$13,IF(AND(G309>CapFinanciera2,G309<=CapFinanciera3),Puntajes!$D$14,IF(AND(G309>CapFinanciera3,G309<=CapFinanciera4),Puntajes!$D$15,IF(G309>CapFinanciera4,Puntajes!$D$16,0))))))","v":""}]
[null,null,{"$f":"+'Capacidad Financiera'!B313","v":""},{"$f":"IF(ISERROR(VLOOKUP(C310,'Capacidad Financiera'!$B$12:$X$62720,2,0)),\"\",VLOOKUP(C310,'Capacidad Financiera'!$B$12:$X$3580,2,0))","v":0},{"$f":"IF(OR(C310=\"\",D310=\"\"),\"\",IF(ISERROR(VLOOKUP(D310,'Capacidad Financiera'!$C$13:$X$62720,3,0)),\"\",VLOOKUP(D310,'Capacidad Financiera'!$C$13:$X$62720,3,0)))","v":""},{"$f":"IF(OR(C310=\"\",D310=\"\"),\"\",IF(ISERROR(VLOOKUP(D310,'Capacidad Financiera'!$C$13:$X$62720,5,0)),\"\",VLOOKUP(D310,'Capacidad Financiera'!$C$13:$X$62720,5,0)))","v":""},"",{"$f":"IF(OR(D310=\"\",E310=\"\",F310=\"\"),\"\",IF(AND(G310>0,G310<=CapFinanciera1),Puntajes!$D$12,IF(AND(G310>CapFinanciera1,G310<=CapFinanciera2),Puntajes!$D$13,IF(AND(G310>CapFinanciera2,G310<=CapFinanciera3),Puntajes!$D$14,IF(AND(G310>CapFinanciera3,G310<=CapFinanciera4),Puntajes!$D$15,IF(G310>CapFinanciera4,Puntajes!$D$16,0))))))","v":""}]
[null,null,{"$f":"+'Capacidad Financiera'!B314","v":""},{"$f":"IF(ISERROR(VLOOKUP(C311,'Capacidad Financiera'!$B$12:$X$62720,2,0)),\"\",VLOOKUP(C311,'Capacidad Financiera'!$B$12:$X$3580,2,0))","v":0},{"$f":"IF(OR(C311=\"\",D311=\"\"),\"\",IF(ISERROR(VLOOKUP(D311,'Capacidad Financiera'!$C$13:$X$62720,3,0)),\"\",VLOOKUP(D311,'Capacidad Financiera'!$C$13:$X$62720,3,0)))","v":""},{"$f":"IF(OR(C311=\"\",D311=\"\"),\"\",IF(ISERROR(VLOOKUP(D311,'Capacidad Financiera'!$C$13:$X$62720,5,0)),\"\",VLOOKUP(D311,'Capacidad Financiera'!$C$13:$X$62720,5,0)))","v":""},"",{"$f":"IF(OR(D311=\"\",E311=\"\",F311=\"\"),\"\",IF(AND(G311>0,G311<=CapFinanciera1),Puntajes!$D$12,IF(AND(G311>CapFinanciera1,G311<=CapFinanciera2),Puntajes!$D$13,IF(AND(G311>CapFinanciera2,G311<=CapFinanciera3),Puntajes!$D$14,IF(AND(G311>CapFinanciera3,G311<=CapFinanciera4),Puntajes!$D$15,IF(G311>CapFinanciera4,Puntajes!$D$16,0))))))","v":""}]
[null,null,{"$f":"+'Capacidad Financiera'!B315","v":""},{"$f":"IF(ISERROR(VLOOKUP(C312,'Capacidad Financiera'!$B$12:$X$62720,2,0)),\"\",VLOOKUP(C312,'Capacidad Financiera'!$B$12:$X$3580,2,0))","v":0},{"$f":"IF(OR(C312=\"\",D312=\"\"),\"\",IF(ISERROR(VLOOKUP(D312,'Capacidad Financiera'!$C$13:$X$62720,3,0)),\"\",VLOOKUP(D312,'Capacidad Financiera'!$C$13:$X$62720,3,0)))","v":""},{"$f":"IF(OR(C312=\"\",D312=\"\"),\"\",IF(ISERROR(VLOOKUP(D312,'Capacidad Financiera'!$C$13:$X$62720,5,0)),\"\",VLOOKUP(D312,'Capacidad Financiera'!$C$13:$X$62720,5,0)))","v":""},"",{"$f":"IF(OR(D312=\"\",E312=\"\",F312=\"\"),\"\",IF(AND(G312>0,G312<=CapFinanciera1),Puntajes!$D$12,IF(AND(G312>CapFinanciera1,G312<=CapFinanciera2),Puntajes!$D$13,IF(AND(G312>CapFinanciera2,G312<=CapFinanciera3),Puntajes!$D$14,IF(AND(G312>CapFinanciera3,G312<=CapFinanciera4),Puntajes!$D$15,IF(G312>CapFinanciera4,Puntajes!$D$16,0))))))","v":""}]
[null,null,{"$f":"+'Capacidad Financiera'!B316","v":""},{"$f":"IF(ISERROR(VLOOKUP(C313,'Capacidad Financiera'!$B$12:$X$62720,2,0)),\"\",VLOOKUP(C313,'Capacidad Financiera'!$B$12:$X$3580,2,0))","v":0},{"$f":"IF(OR(C313=\"\",D313=\"\"),\"\",IF(ISERROR(VLOOKUP(D313,'Capacidad Financiera'!$C$13:$X$62720,3,0)),\"\",VLOOKUP(D313,'Capacidad Financiera'!$C$13:$X$62720,3,0)))","v":""},{"$f":"IF(OR(C313=\"\",D313=\"\"),\"\",IF(ISERROR(VLOOKUP(D313,'Capacidad Financiera'!$C$13:$X$62720,5,0)),\"\",VLOOKUP(D313,'Capacidad Financiera'!$C$13:$X$62720,5,0)))","v":""},"",{"$f":"IF(OR(D313=\"\",E313=\"\",F313=\"\"),\"\",IF(AND(G313>0,G313<=CapFinanciera1),Puntajes!$D$12,IF(AND(G313>CapFinanciera1,G313<=CapFinanciera2),Puntajes!$D$13,IF(AND(G313>CapFinanciera2,G313<=CapFinanciera3),Puntajes!$D$14,IF(AND(G313>CapFinanciera3,G313<=CapFinanciera4),Puntajes!$D$15,IF(G313>CapFinanciera4,Puntajes!$D$16,0))))))","v":""}]
[null,null,{"$f":"+'Capacidad Financiera'!B317","v":""},{"$f":"IF(ISERROR(VLOOKUP(C314,'Capacidad Financiera'!$B$12:$X$62720,2,0)),\"\",VLOOKUP(C314,'Capacidad Financiera'!$B$12:$X$3580,2,0))","v":0},{"$f":"IF(OR(C314=\"\",D314=\"\"),\"\",IF(ISERROR(VLOOKUP(D314,'Capacidad Financiera'!$C$13:$X$62720,3,0)),\"\",VLOOKUP(D314,'Capacidad Financiera'!$C$13:$X$62720,3,0)))","v":""},{"$f":"IF(OR(C314=\"\",D314=\"\"),\"\",IF(ISERROR(VLOOKUP(D314,'Capacidad Financiera'!$C$13:$X$62720,5,0)),\"\",VLOOKUP(D314,'Capacidad Financiera'!$C$13:$X$62720,5,0)))","v":""},"",{"$f":"IF(OR(D314=\"\",E314=\"\",F314=\"\"),\"\",IF(AND(G314>0,G314<=CapFinanciera1),Puntajes!$D$12,IF(AND(G314>CapFinanciera1,G314<=CapFinanciera2),Puntajes!$D$13,IF(AND(G314>CapFinanciera2,G314<=CapFinanciera3),Puntajes!$D$14,IF(AND(G314>CapFinanciera3,G314<=CapFinanciera4),Puntajes!$D$15,IF(G314>CapFinanciera4,Puntajes!$D$16,0))))))","v":""}]
[null,null,{"$f":"+'Capacidad Financiera'!B318","v":""},{"$f":"IF(ISERROR(VLOOKUP(C315,'Capacidad Financiera'!$B$12:$X$62720,2,0)),\"\",VLOOKUP(C315,'Capacidad Financiera'!$B$12:$X$3580,2,0))","v":0},{"$f":"IF(OR(C315=\"\",D315=\"\"),\"\",IF(ISERROR(VLOOKUP(D315,'Capacidad Financiera'!$C$13:$X$62720,3,0)),\"\",VLOOKUP(D315,'Capacidad Financiera'!$C$13:$X$62720,3,0)))","v":""},{"$f":"IF(OR(C315=\"\",D315=\"\"),\"\",IF(ISERROR(VLOOKUP(D315,'Capacidad Financiera'!$C$13:$X$62720,5,0)),\"\",VLOOKUP(D315,'Capacidad Financiera'!$C$13:$X$62720,5,0)))","v":""},"",{"$f":"IF(OR(D315=\"\",E315=\"\",F315=\"\"),\"\",IF(AND(G315>0,G315<=CapFinanciera1),Puntajes!$D$12,IF(AND(G315>CapFinanciera1,G315<=CapFinanciera2),Puntajes!$D$13,IF(AND(G315>CapFinanciera2,G315<=CapFinanciera3),Puntajes!$D$14,IF(AND(G315>CapFinanciera3,G315<=CapFinanciera4),Puntajes!$D$15,IF(G315>CapFinanciera4,Puntajes!$D$16,0))))))","v":""}]
[null,null,{"$f":"+'Capacidad Financiera'!B319","v":""},{"$f":"IF(ISERROR(VLOOKUP(C316,'Capacidad Financiera'!$B$12:$X$62720,2,0)),\"\",VLOOKUP(C316,'Capacidad Financiera'!$B$12:$X$3580,2,0))","v":0},{"$f":"IF(OR(C316=\"\",D316=\"\"),\"\",IF(ISERROR(VLOOKUP(D316,'Capacidad Financiera'!$C$13:$X$62720,3,0)),\"\",VLOOKUP(D316,'Capacidad Financiera'!$C$13:$X$62720,3,0)))","v":""},{"$f":"IF(OR(C316=\"\",D316=\"\"),\"\",IF(ISERROR(VLOOKUP(D316,'Capacidad Financiera'!$C$13:$X$62720,5,0)),\"\",VLOOKUP(D316,'Capacidad Financiera'!$C$13:$X$62720,5,0)))","v":""},"",{"$f":"IF(OR(D316=\"\",E316=\"\",F316=\"\"),\"\",IF(AND(G316>0,G316<=CapFinanciera1),Puntajes!$D$12,IF(AND(G316>CapFinanciera1,G316<=CapFinanciera2),Puntajes!$D$13,IF(AND(G316>CapFinanciera2,G316<=CapFinanciera3),Puntajes!$D$14,IF(AND(G316>CapFinanciera3,G316<=CapFinanciera4),Puntajes!$D$15,IF(G316>CapFinanciera4,Puntajes!$D$16,0))))))","v":""}]
[null,null,29,{"$f":"IF(ISERROR(VLOOKUP(C317,'Capacidad Financiera'!$B$12:$X$62720,2,0)),\"\",VLOOKUP(C317,'Capacidad Financiera'!$B$12:$X$3580,2,0))","v":"CARMELO JOAQUIN ROSALES AMELL"},{"$f":"IF(C318=\"\",IF(C317<>\"\",IF(ISERROR(VLOOKUP(D317,'Capacidad Financiera'!$C$12:$H$22,3,0)),\"\",VLOOKUP(D317,'Capacidad Financiera'!$C$12:$H$22,3,0))),\"\")","v":""},{"$f":"IF(C318=\"\",IF(C317<>\"\",IF(ISERROR(VLOOKUP(D317,'Capacidad Financiera'!$C$12:$H$22,5,0)),\"\",VLOOKUP(D317,'Capacidad Financiera'!$C$12:$H$22,5,0))),\"\")","v":""},{"$f":"IF(OR(D317=\"\",E317=\"\",F317=\"\"),\"\",IF(OR(E317=0,F317=0),0,E317/F317))","v":""},{"$f":"IF(C318=\"\",IF(AND(E317=\"\",F317=\"\"),\"\",IF(AND(G317>0,G317<=CapFinanciera1),Puntajes!$D$12,IF(AND(G317>CapFinanciera1,G317<=CapFinanciera2),Puntajes!$D$13,IF(AND(G317>CapFinanciera2,G317<=CapFinanciera3),Puntajes!$D$14,IF(AND(G317>CapFinanciera3,G317<=CapFinanciera4),Puntajes!$D$15,IF(G317>CapFinanciera4,Puntajes!$D$16,0)))))),\"\")","v":""}]
[null,null,{"$f":"+'Capacidad Financiera'!B321","v":29.1},{"$f":"IF(ISERROR(VLOOKUP(C318,'Capacidad Financiera'!$B$12:$X$62720,2,0)),\"\",VLOOKUP(C318,'Capacidad Financiera'!$B$12:$X$3580,2,0))","v":"CARMELO JOAQUIN ROSALES AMELL"},{"$f":"IF(OR(C318=\"\",D318=\"\"),\"\",IF(ISERROR(VLOOKUP(D318,'Capacidad Financiera'!$C$13:$X$62720,3,0)),\"\",VLOOKUP(D318,'Capacidad Financiera'!$C$13:$X$62720,3,0)))","v":4499612881},{"$f":"IF(OR(C318=\"\",D318=\"\"),\"\",IF(ISERROR(VLOOKUP(D318,'Capacidad Financiera'!$C$13:$X$62720,5,0)),\"\",VLOOKUP(D318,'Capacidad Financiera'!$C$13:$X$62720,5,0)))","v":1532903553},{"$f":"IF(OR(D318=\"\",E318=\"\",F318=\"\"),\"\",IF(OR(E318=0,F318=0),0,E318/F318))","v":2.9353528943121967},{"$f":"IF(OR(D318=\"\",E318=\"\",F318=\"\"),\"\",IF(AND(G318>0,G318<=CapFinanciera1),Puntajes!$D$12,IF(AND(G318>CapFinanciera1,G318<=CapFinanciera2),Puntajes!$D$13,IF(AND(G318>CapFinanciera2,G318<=CapFinanciera3),Puntajes!$D$14,IF(AND(G318>CapFinanciera3,G318<=CapFinanciera4),Puntajes!$D$15,IF(G318>CapFinanciera4,Puntajes!$D$16,0))))))","v":40}]
[null,null,{"$f":"+'Capacidad Financiera'!B322","v":""},{"$f":"IF(ISERROR(VLOOKUP(C319,'Capacidad Financiera'!$B$12:$X$62720,2,0)),\"\",VLOOKUP(C319,'Capacidad Financiera'!$B$12:$X$3580,2,0))","v":0},{"$f":"IF(OR(C319=\"\",D319=\"\"),\"\",IF(ISERROR(VLOOKUP(D319,'Capacidad Financiera'!$C$13:$X$62720,3,0)),\"\",VLOOKUP(D319,'Capacidad Financiera'!$C$13:$X$62720,3,0)))","v":""},{"$f":"IF(OR(C319=\"\",D319=\"\"),\"\",IF(ISERROR(VLOOKUP(D319,'Capacidad Financiera'!$C$13:$X$62720,5,0)),\"\",VLOOKUP(D319,'Capacidad Financiera'!$C$13:$X$62720,5,0)))","v":""},"",{"$f":"IF(OR(D319=\"\",E319=\"\",F319=\"\"),\"\",IF(AND(G319>0,G319<=CapFinanciera1),Puntajes!$D$12,IF(AND(G319>CapFinanciera1,G319<=CapFinanciera2),Puntajes!$D$13,IF(AND(G319>CapFinanciera2,G319<=CapFinanciera3),Puntajes!$D$14,IF(AND(G319>CapFinanciera3,G319<=CapFinanciera4),Puntajes!$D$15,IF(G319>CapFinanciera4,Puntajes!$D$16,0))))))","v":""}]
[null,null,{"$f":"+'Capacidad Financiera'!B323","v":""},{"$f":"IF(ISERROR(VLOOKUP(C320,'Capacidad Financiera'!$B$12:$X$62720,2,0)),\"\",VLOOKUP(C320,'Capacidad Financiera'!$B$12:$X$3580,2,0))","v":0},{"$f":"IF(OR(C320=\"\",D320=\"\"),\"\",IF(ISERROR(VLOOKUP(D320,'Capacidad Financiera'!$C$13:$X$62720,3,0)),\"\",VLOOKUP(D320,'Capacidad Financiera'!$C$13:$X$62720,3,0)))","v":""},{"$f":"IF(OR(C320=\"\",D320=\"\"),\"\",IF(ISERROR(VLOOKUP(D320,'Capacidad Financiera'!$C$13:$X$62720,5,0)),\"\",VLOOKUP(D320,'Capacidad Financiera'!$C$13:$X$62720,5,0)))","v":""},"",{"$f":"IF(OR(D320=\"\",E320=\"\",F320=\"\"),\"\",IF(AND(G320>0,G320<=CapFinanciera1),Puntajes!$D$12,IF(AND(G320>CapFinanciera1,G320<=CapFinanciera2),Puntajes!$D$13,IF(AND(G320>CapFinanciera2,G320<=CapFinanciera3),Puntajes!$D$14,IF(AND(G320>CapFinanciera3,G320<=CapFinanciera4),Puntajes!$D$15,IF(G320>CapFinanciera4,Puntajes!$D$16,0))))))","v":""}]
[null,null,{"$f":"+'Capacidad Financiera'!B324","v":""},{"$f":"IF(ISERROR(VLOOKUP(C321,'Capacidad Financiera'!$B$12:$X$62720,2,0)),\"\",VLOOKUP(C321,'Capacidad Financiera'!$B$12:$X$3580,2,0))","v":0},{"$f":"IF(OR(C321=\"\",D321=\"\"),\"\",IF(ISERROR(VLOOKUP(D321,'Capacidad Financiera'!$C$13:$X$62720,3,0)),\"\",VLOOKUP(D321,'Capacidad Financiera'!$C$13:$X$62720,3,0)))","v":""},{"$f":"IF(OR(C321=\"\",D321=\"\"),\"\",IF(ISERROR(VLOOKUP(D321,'Capacidad Financiera'!$C$13:$X$62720,5,0)),\"\",VLOOKUP(D321,'Capacidad Financiera'!$C$13:$X$62720,5,0)))","v":""},"",{"$f":"IF(OR(D321=\"\",E321=\"\",F321=\"\"),\"\",IF(AND(G321>0,G321<=CapFinanciera1),Puntajes!$D$12,IF(AND(G321>CapFinanciera1,G321<=CapFinanciera2),Puntajes!$D$13,IF(AND(G321>CapFinanciera2,G321<=CapFinanciera3),Puntajes!$D$14,IF(AND(G321>CapFinanciera3,G321<=CapFinanciera4),Puntajes!$D$15,IF(G321>CapFinanciera4,Puntajes!$D$16,0))))))","v":""}]
[null,null,{"$f":"+'Capacidad Financiera'!B325","v":""},{"$f":"IF(ISERROR(VLOOKUP(C322,'Capacidad Financiera'!$B$12:$X$62720,2,0)),\"\",VLOOKUP(C322,'Capacidad Financiera'!$B$12:$X$3580,2,0))","v":0},{"$f":"IF(OR(C322=\"\",D322=\"\"),\"\",IF(ISERROR(VLOOKUP(D322,'Capacidad Financiera'!$C$13:$X$62720,3,0)),\"\",VLOOKUP(D322,'Capacidad Financiera'!$C$13:$X$62720,3,0)))","v":""},{"$f":"IF(OR(C322=\"\",D322=\"\"),\"\",IF(ISERROR(VLOOKUP(D322,'Capacidad Financiera'!$C$13:$X$62720,5,0)),\"\",VLOOKUP(D322,'Capacidad Financiera'!$C$13:$X$62720,5,0)))","v":""},"",{"$f":"IF(OR(D322=\"\",E322=\"\",F322=\"\"),\"\",IF(AND(G322>0,G322<=CapFinanciera1),Puntajes!$D$12,IF(AND(G322>CapFinanciera1,G322<=CapFinanciera2),Puntajes!$D$13,IF(AND(G322>CapFinanciera2,G322<=CapFinanciera3),Puntajes!$D$14,IF(AND(G322>CapFinanciera3,G322<=CapFinanciera4),Puntajes!$D$15,IF(G322>CapFinanciera4,Puntajes!$D$16,0))))))","v":""}]
[null,null,{"$f":"+'Capacidad Financiera'!B326","v":""},{"$f":"IF(ISERROR(VLOOKUP(C323,'Capacidad Financiera'!$B$12:$X$62720,2,0)),\"\",VLOOKUP(C323,'Capacidad Financiera'!$B$12:$X$3580,2,0))","v":0},{"$f":"IF(OR(C323=\"\",D323=\"\"),\"\",IF(ISERROR(VLOOKUP(D323,'Capacidad Financiera'!$C$13:$X$62720,3,0)),\"\",VLOOKUP(D323,'Capacidad Financiera'!$C$13:$X$62720,3,0)))","v":""},{"$f":"IF(OR(C323=\"\",D323=\"\"),\"\",IF(ISERROR(VLOOKUP(D323,'Capacidad Financiera'!$C$13:$X$62720,5,0)),\"\",VLOOKUP(D323,'Capacidad Financiera'!$C$13:$X$62720,5,0)))","v":""},"",{"$f":"IF(OR(D323=\"\",E323=\"\",F323=\"\"),\"\",IF(AND(G323>0,G323<=CapFinanciera1),Puntajes!$D$12,IF(AND(G323>CapFinanciera1,G323<=CapFinanciera2),Puntajes!$D$13,IF(AND(G323>CapFinanciera2,G323<=CapFinanciera3),Puntajes!$D$14,IF(AND(G323>CapFinanciera3,G323<=CapFinanciera4),Puntajes!$D$15,IF(G323>CapFinanciera4,Puntajes!$D$16,0))))))","v":""}]
[null,null,{"$f":"+'Capacidad Financiera'!B327","v":""},{"$f":"IF(ISERROR(VLOOKUP(C324,'Capacidad Financiera'!$B$12:$X$62720,2,0)),\"\",VLOOKUP(C324,'Capacidad Financiera'!$B$12:$X$3580,2,0))","v":0},{"$f":"IF(OR(C324=\"\",D324=\"\"),\"\",IF(ISERROR(VLOOKUP(D324,'Capacidad Financiera'!$C$13:$X$62720,3,0)),\"\",VLOOKUP(D324,'Capacidad Financiera'!$C$13:$X$62720,3,0)))","v":""},{"$f":"IF(OR(C324=\"\",D324=\"\"),\"\",IF(ISERROR(VLOOKUP(D324,'Capacidad Financiera'!$C$13:$X$62720,5,0)),\"\",VLOOKUP(D324,'Capacidad Financiera'!$C$13:$X$62720,5,0)))","v":""},"",{"$f":"IF(OR(D324=\"\",E324=\"\",F324=\"\"),\"\",IF(AND(G324>0,G324<=CapFinanciera1),Puntajes!$D$12,IF(AND(G324>CapFinanciera1,G324<=CapFinanciera2),Puntajes!$D$13,IF(AND(G324>CapFinanciera2,G324<=CapFinanciera3),Puntajes!$D$14,IF(AND(G324>CapFinanciera3,G324<=CapFinanciera4),Puntajes!$D$15,IF(G324>CapFinanciera4,Puntajes!$D$16,0))))))","v":""}]
[null,null,{"$f":"+'Capacidad Financiera'!B328","v":""},{"$f":"IF(ISERROR(VLOOKUP(C325,'Capacidad Financiera'!$B$12:$X$62720,2,0)),\"\",VLOOKUP(C325,'Capacidad Financiera'!$B$12:$X$3580,2,0))","v":0},{"$f":"IF(OR(C325=\"\",D325=\"\"),\"\",IF(ISERROR(VLOOKUP(D325,'Capacidad Financiera'!$C$13:$X$62720,3,0)),\"\",VLOOKUP(D325,'Capacidad Financiera'!$C$13:$X$62720,3,0)))","v":""},{"$f":"IF(OR(C325=\"\",D325=\"\"),\"\",IF(ISERROR(VLOOKUP(D325,'Capacidad Financiera'!$C$13:$X$62720,5,0)),\"\",VLOOKUP(D325,'Capacidad Financiera'!$C$13:$X$62720,5,0)))","v":""},"",{"$f":"IF(OR(D325=\"\",E325=\"\",F325=\"\"),\"\",IF(AND(G325>0,G325<=CapFinanciera1),Puntajes!$D$12,IF(AND(G325>CapFinanciera1,G325<=CapFinanciera2),Puntajes!$D$13,IF(AND(G325>CapFinanciera2,G325<=CapFinanciera3),Puntajes!$D$14,IF(AND(G325>CapFinanciera3,G325<=CapFinanciera4),Puntajes!$D$15,IF(G325>CapFinanciera4,Puntajes!$D$16,0))))))","v":""}]
[null,null,{"$f":"+'Capacidad Financiera'!B329","v":""},{"$f":"IF(ISERROR(VLOOKUP(C326,'Capacidad Financiera'!$B$12:$X$62720,2,0)),\"\",VLOOKUP(C326,'Capacidad Financiera'!$B$12:$X$3580,2,0))","v":0},{"$f":"IF(OR(C326=\"\",D326=\"\"),\"\",IF(ISERROR(VLOOKUP(D326,'Capacidad Financiera'!$C$13:$X$62720,3,0)),\"\",VLOOKUP(D326,'Capacidad Financiera'!$C$13:$X$62720,3,0)))","v":""},{"$f":"IF(OR(C326=\"\",D326=\"\"),\"\",IF(ISERROR(VLOOKUP(D326,'Capacidad Financiera'!$C$13:$X$62720,5,0)),\"\",VLOOKUP(D326,'Capacidad Financiera'!$C$13:$X$62720,5,0)))","v":""},"",{"$f":"IF(OR(D326=\"\",E326=\"\",F326=\"\"),\"\",IF(AND(G326>0,G326<=CapFinanciera1),Puntajes!$D$12,IF(AND(G326>CapFinanciera1,G326<=CapFinanciera2),Puntajes!$D$13,IF(AND(G326>CapFinanciera2,G326<=CapFinanciera3),Puntajes!$D$14,IF(AND(G326>CapFinanciera3,G326<=CapFinanciera4),Puntajes!$D$15,IF(G326>CapFinanciera4,Puntajes!$D$16,0))))))","v":""}]
[null,null,{"$f":"+'Capacidad Financiera'!B330","v":""},{"$f":"IF(ISERROR(VLOOKUP(C327,'Capacidad Financiera'!$B$12:$X$62720,2,0)),\"\",VLOOKUP(C327,'Capacidad Financiera'!$B$12:$X$3580,2,0))","v":0},{"$f":"IF(OR(C327=\"\",D327=\"\"),\"\",IF(ISERROR(VLOOKUP(D327,'Capacidad Financiera'!$C$13:$X$62720,3,0)),\"\",VLOOKUP(D327,'Capacidad Financiera'!$C$13:$X$62720,3,0)))","v":""},{"$f":"IF(OR(C327=\"\",D327=\"\"),\"\",IF(ISERROR(VLOOKUP(D327,'Capacidad Financiera'!$C$13:$X$62720,5,0)),\"\",VLOOKUP(D327,'Capacidad Financiera'!$C$13:$X$62720,5,0)))","v":""},"",{"$f":"IF(OR(D327=\"\",E327=\"\",F327=\"\"),\"\",IF(AND(G327>0,G327<=CapFinanciera1),Puntajes!$D$12,IF(AND(G327>CapFinanciera1,G327<=CapFinanciera2),Puntajes!$D$13,IF(AND(G327>CapFinanciera2,G327<=CapFinanciera3),Puntajes!$D$14,IF(AND(G327>CapFinanciera3,G327<=CapFinanciera4),Puntajes!$D$15,IF(G327>CapFinanciera4,Puntajes!$D$16,0))))))","v":""}]
[null,null,30,{"$f":"IF(ISERROR(VLOOKUP(C328,'Capacidad Financiera'!$B$12:$X$62720,2,0)),\"\",VLOOKUP(C328,'Capacidad Financiera'!$B$12:$X$3580,2,0))","v":"CONSORCIO MP - ML"},{"$f":"IF(C329=\"\",IF(C328<>\"\",IF(ISERROR(VLOOKUP(D328,'Capacidad Financiera'!$C$12:$H$22,3,0)),\"\",VLOOKUP(D328,'Capacidad Financiera'!$C$12:$H$22,3,0))),\"\")","v":""},{"$f":"IF(C329=\"\",IF(C328<>\"\",IF(ISERROR(VLOOKUP(D328,'Capacidad Financiera'!$C$12:$H$22,5,0)),\"\",VLOOKUP(D328,'Capacidad Financiera'!$C$12:$H$22,5,0))),\"\")","v":""},{"$f":"IF(OR(D328=\"\",E328=\"\",F328=\"\"),\"\",IF(OR(E328=0,F328=0),0,E328/F328))","v":""},{"$f":"IF(C329=\"\",IF(AND(E328=\"\",F328=\"\"),\"\",IF(AND(G328>0,G328<=CapFinanciera1),Puntajes!$D$12,IF(AND(G328>CapFinanciera1,G328<=CapFinanciera2),Puntajes!$D$13,IF(AND(G328>CapFinanciera2,G328<=CapFinanciera3),Puntajes!$D$14,IF(AND(G328>CapFinanciera3,G328<=CapFinanciera4),Puntajes!$D$15,IF(G328>CapFinanciera4,Puntajes!$D$16,0)))))),\"\")","v":""}]
[null,null,{"$f":"+'Capacidad Financiera'!B332","v":30.1},{"$f":"IF(ISERROR(VLOOKUP(C329,'Capacidad Financiera'!$B$12:$X$62720,2,0)),\"\",VLOOKUP(C329,'Capacidad Financiera'!$B$12:$X$3580,2,0))","v":"CONSTRUCTORA MP S.A."},{"$f":"IF(OR(C329=\"\",D329=\"\"),\"\",IF(ISERROR(VLOOKUP(D329,'Capacidad Financiera'!$C$13:$X$62720,3,0)),\"\",VLOOKUP(D329,'Capacidad Financiera'!$C$13:$X$62720,3,0)))","v":8654821672},{"$f":"IF(OR(C329=\"\",D329=\"\"),\"\",IF(ISERROR(VLOOKUP(D329,'Capacidad Financiera'!$C$13:$X$62720,5,0)),\"\",VLOOKUP(D329,'Capacidad Financiera'!$C$13:$X$62720,5,0)))","v":895919298},{"$f":"IF(OR(D329=\"\",E329=\"\",F329=\"\"),\"\",IF(OR(E329=0,F329=0),0,E329/F329))","v":9.6602692801913506},{"$f":"IF(OR(D329=\"\",E329=\"\",F329=\"\"),\"\",IF(AND(G329>0,G329<=CapFinanciera1),Puntajes!$D$12,IF(AND(G329>CapFinanciera1,G329<=CapFinanciera2),Puntajes!$D$13,IF(AND(G329>CapFinanciera2,G329<=CapFinanciera3),Puntajes!$D$14,IF(AND(G329>CapFinanciera3,G329<=CapFinanciera4),Puntajes!$D$15,IF(G329>CapFinanciera4,Puntajes!$D$16,0))))))","v":40}]
[null,null,{"$f":"+'Capacidad Financiera'!B333","v":30.200000000000003},{"$f":"IF(ISERROR(VLOOKUP(C330,'Capacidad Financiera'!$B$12:$X$62720,2,0)),\"\",VLOOKUP(C330,'Capacidad Financiera'!$B$12:$X$3580,2,0))","v":"ML INGENIEROS S.A."},{"$f":"IF(OR(C330=\"\",D330=\"\"),\"\",IF(ISERROR(VLOOKUP(D330,'Capacidad Financiera'!$C$13:$X$62720,3,0)),\"\",VLOOKUP(D330,'Capacidad Financiera'!$C$13:$X$62720,3,0)))","v":3125589852},{"$f":"IF(OR(C330=\"\",D330=\"\"),\"\",IF(ISERROR(VLOOKUP(D330,'Capacidad Financiera'!$C$13:$X$62720,5,0)),\"\",VLOOKUP(D330,'Capacidad Financiera'!$C$13:$X$62720,5,0)))","v":540209244},5.7858873884801572,{"$f":"IF(OR(D330=\"\",E330=\"\",F330=\"\"),\"\",IF(AND(G330>0,G330<=CapFinanciera1),Puntajes!$D$12,IF(AND(G330>CapFinanciera1,G330<=CapFinanciera2),Puntajes!$D$13,IF(AND(G330>CapFinanciera2,G330<=CapFinanciera3),Puntajes!$D$14,IF(AND(G330>CapFinanciera3,G330<=CapFinanciera4),Puntajes!$D$15,IF(G330>CapFinanciera4,Puntajes!$D$16,0))))))","v":40}]
[null,null,{"$f":"+'Capacidad Financiera'!B334","v":""},{"$f":"IF(ISERROR(VLOOKUP(C331,'Capacidad Financiera'!$B$12:$X$62720,2,0)),\"\",VLOOKUP(C331,'Capacidad Financiera'!$B$12:$X$3580,2,0))","v":0},{"$f":"IF(OR(C331=\"\",D331=\"\"),\"\",IF(ISERROR(VLOOKUP(D331,'Capacidad Financiera'!$C$13:$X$62720,3,0)),\"\",VLOOKUP(D331,'Capacidad Financiera'!$C$13:$X$62720,3,0)))","v":""},{"$f":"IF(OR(C331=\"\",D331=\"\"),\"\",IF(ISERROR(VLOOKUP(D331,'Capacidad Financiera'!$C$13:$X$62720,5,0)),\"\",VLOOKUP(D331,'Capacidad Financiera'!$C$13:$X$62720,5,0)))","v":""},"",{"$f":"IF(OR(D331=\"\",E331=\"\",F331=\"\"),\"\",IF(AND(G331>0,G331<=CapFinanciera1),Puntajes!$D$12,IF(AND(G331>CapFinanciera1,G331<=CapFinanciera2),Puntajes!$D$13,IF(AND(G331>CapFinanciera2,G331<=CapFinanciera3),Puntajes!$D$14,IF(AND(G331>CapFinanciera3,G331<=CapFinanciera4),Puntajes!$D$15,IF(G331>CapFinanciera4,Puntajes!$D$16,0))))))","v":""}]
[null,null,{"$f":"+'Capacidad Financiera'!B335","v":""},{"$f":"IF(ISERROR(VLOOKUP(C332,'Capacidad Financiera'!$B$12:$X$62720,2,0)),\"\",VLOOKUP(C332,'Capacidad Financiera'!$B$12:$X$3580,2,0))","v":0},{"$f":"IF(OR(C332=\"\",D332=\"\"),\"\",IF(ISERROR(VLOOKUP(D332,'Capacidad Financiera'!$C$13:$X$62720,3,0)),\"\",VLOOKUP(D332,'Capacidad Financiera'!$C$13:$X$62720,3,0)))","v":""},{"$f":"IF(OR(C332=\"\",D332=\"\"),\"\",IF(ISERROR(VLOOKUP(D332,'Capacidad Financiera'!$C$13:$X$62720,5,0)),\"\",VLOOKUP(D332,'Capacidad Financiera'!$C$13:$X$62720,5,0)))","v":""},"",{"$f":"IF(OR(D332=\"\",E332=\"\",F332=\"\"),\"\",IF(AND(G332>0,G332<=CapFinanciera1),Puntajes!$D$12,IF(AND(G332>CapFinanciera1,G332<=CapFinanciera2),Puntajes!$D$13,IF(AND(G332>CapFinanciera2,G332<=CapFinanciera3),Puntajes!$D$14,IF(AND(G332>CapFinanciera3,G332<=CapFinanciera4),Puntajes!$D$15,IF(G332>CapFinanciera4,Puntajes!$D$16,0))))))","v":""}]
[null,null,{"$f":"+'Capacidad Financiera'!B336","v":""},{"$f":"IF(ISERROR(VLOOKUP(C333,'Capacidad Financiera'!$B$12:$X$62720,2,0)),\"\",VLOOKUP(C333,'Capacidad Financiera'!$B$12:$X$3580,2,0))","v":0},{"$f":"IF(OR(C333=\"\",D333=\"\"),\"\",IF(ISERROR(VLOOKUP(D333,'Capacidad Financiera'!$C$13:$X$62720,3,0)),\"\",VLOOKUP(D333,'Capacidad Financiera'!$C$13:$X$62720,3,0)))","v":""},{"$f":"IF(OR(C333=\"\",D333=\"\"),\"\",IF(ISERROR(VLOOKUP(D333,'Capacidad Financiera'!$C$13:$X$62720,5,0)),\"\",VLOOKUP(D333,'Capacidad Financiera'!$C$13:$X$62720,5,0)))","v":""},"",{"$f":"IF(OR(D333=\"\",E333=\"\",F333=\"\"),\"\",IF(AND(G333>0,G333<=CapFinanciera1),Puntajes!$D$12,IF(AND(G333>CapFinanciera1,G333<=CapFinanciera2),Puntajes!$D$13,IF(AND(G333>CapFinanciera2,G333<=CapFinanciera3),Puntajes!$D$14,IF(AND(G333>CapFinanciera3,G333<=CapFinanciera4),Puntajes!$D$15,IF(G333>CapFinanciera4,Puntajes!$D$16,0))))))","v":""}]
[null,null,{"$f":"+'Capacidad Financiera'!B337","v":""},{"$f":"IF(ISERROR(VLOOKUP(C334,'Capacidad Financiera'!$B$12:$X$62720,2,0)),\"\",VLOOKUP(C334,'Capacidad Financiera'!$B$12:$X$3580,2,0))","v":0},{"$f":"IF(OR(C334=\"\",D334=\"\"),\"\",IF(ISERROR(VLOOKUP(D334,'Capacidad Financiera'!$C$13:$X$62720,3,0)),\"\",VLOOKUP(D334,'Capacidad Financiera'!$C$13:$X$62720,3,0)))","v":""},{"$f":"IF(OR(C334=\"\",D334=\"\"),\"\",IF(ISERROR(VLOOKUP(D334,'Capacidad Financiera'!$C$13:$X$62720,5,0)),\"\",VLOOKUP(D334,'Capacidad Financiera'!$C$13:$X$62720,5,0)))","v":""},"",{"$f":"IF(OR(D334=\"\",E334=\"\",F334=\"\"),\"\",IF(AND(G334>0,G334<=CapFinanciera1),Puntajes!$D$12,IF(AND(G334>CapFinanciera1,G334<=CapFinanciera2),Puntajes!$D$13,IF(AND(G334>CapFinanciera2,G334<=CapFinanciera3),Puntajes!$D$14,IF(AND(G334>CapFinanciera3,G334<=CapFinanciera4),Puntajes!$D$15,IF(G334>CapFinanciera4,Puntajes!$D$16,0))))))","v":""}]
[null,null,{"$f":"+'Capacidad Financiera'!B338","v":""},{"$f":"IF(ISERROR(VLOOKUP(C335,'Capacidad Financiera'!$B$12:$X$62720,2,0)),\"\",VLOOKUP(C335,'Capacidad Financiera'!$B$12:$X$3580,2,0))","v":0},{"$f":"IF(OR(C335=\"\",D335=\"\"),\"\",IF(ISERROR(VLOOKUP(D335,'Capacidad Financiera'!$C$13:$X$62720,3,0)),\"\",VLOOKUP(D335,'Capacidad Financiera'!$C$13:$X$62720,3,0)))","v":""},{"$f":"IF(OR(C335=\"\",D335=\"\"),\"\",IF(ISERROR(VLOOKUP(D335,'Capacidad Financiera'!$C$13:$X$62720,5,0)),\"\",VLOOKUP(D335,'Capacidad Financiera'!$C$13:$X$62720,5,0)))","v":""},"",{"$f":"IF(OR(D335=\"\",E335=\"\",F335=\"\"),\"\",IF(AND(G335>0,G335<=CapFinanciera1),Puntajes!$D$12,IF(AND(G335>CapFinanciera1,G335<=CapFinanciera2),Puntajes!$D$13,IF(AND(G335>CapFinanciera2,G335<=CapFinanciera3),Puntajes!$D$14,IF(AND(G335>CapFinanciera3,G335<=CapFinanciera4),Puntajes!$D$15,IF(G335>CapFinanciera4,Puntajes!$D$16,0))))))","v":""}]
[null,null,{"$f":"+'Capacidad Financiera'!B339","v":""},{"$f":"IF(ISERROR(VLOOKUP(C336,'Capacidad Financiera'!$B$12:$X$62720,2,0)),\"\",VLOOKUP(C336,'Capacidad Financiera'!$B$12:$X$3580,2,0))","v":0},{"$f":"IF(OR(C336=\"\",D336=\"\"),\"\",IF(ISERROR(VLOOKUP(D336,'Capacidad Financiera'!$C$13:$X$62720,3,0)),\"\",VLOOKUP(D336,'Capacidad Financiera'!$C$13:$X$62720,3,0)))","v":""},{"$f":"IF(OR(C336=\"\",D336=\"\"),\"\",IF(ISERROR(VLOOKUP(D336,'Capacidad Financiera'!$C$13:$X$62720,5,0)),\"\",VLOOKUP(D336,'Capacidad Financiera'!$C$13:$X$62720,5,0)))","v":""},"",{"$f":"IF(OR(D336=\"\",E336=\"\",F336=\"\"),\"\",IF(AND(G336>0,G336<=CapFinanciera1),Puntajes!$D$12,IF(AND(G336>CapFinanciera1,G336<=CapFinanciera2),Puntajes!$D$13,IF(AND(G336>CapFinanciera2,G336<=CapFinanciera3),Puntajes!$D$14,IF(AND(G336>CapFinanciera3,G336<=CapFinanciera4),Puntajes!$D$15,IF(G336>CapFinanciera4,Puntajes!$D$16,0))))))","v":""}]
[null,null,{"$f":"+'Capacidad Financiera'!B340","v":""},{"$f":"IF(ISERROR(VLOOKUP(C337,'Capacidad Financiera'!$B$12:$X$62720,2,0)),\"\",VLOOKUP(C337,'Capacidad Financiera'!$B$12:$X$3580,2,0))","v":0},{"$f":"IF(OR(C337=\"\",D337=\"\"),\"\",IF(ISERROR(VLOOKUP(D337,'Capacidad Financiera'!$C$13:$X$62720,3,0)),\"\",VLOOKUP(D337,'Capacidad Financiera'!$C$13:$X$62720,3,0)))","v":""},{"$f":"IF(OR(C337=\"\",D337=\"\"),\"\",IF(ISERROR(VLOOKUP(D337,'Capacidad Financiera'!$C$13:$X$62720,5,0)),\"\",VLOOKUP(D337,'Capacidad Financiera'!$C$13:$X$62720,5,0)))","v":""},"",{"$f":"IF(OR(D337=\"\",E337=\"\",F337=\"\"),\"\",IF(AND(G337>0,G337<=CapFinanciera1),Puntajes!$D$12,IF(AND(G337>CapFinanciera1,G337<=CapFinanciera2),Puntajes!$D$13,IF(AND(G337>CapFinanciera2,G337<=CapFinanciera3),Puntajes!$D$14,IF(AND(G337>CapFinanciera3,G337<=CapFinanciera4),Puntajes!$D$15,IF(G337>CapFinanciera4,Puntajes!$D$16,0))))))","v":""}]
[null,null,{"$f":"+'Capacidad Financiera'!B341","v":""},{"$f":"IF(ISERROR(VLOOKUP(C338,'Capacidad Financiera'!$B$12:$X$62720,2,0)),\"\",VLOOKUP(C338,'Capacidad Financiera'!$B$12:$X$3580,2,0))","v":0},{"$f":"IF(OR(C338=\"\",D338=\"\"),\"\",IF(ISERROR(VLOOKUP(D338,'Capacidad Financiera'!$C$13:$X$62720,3,0)),\"\",VLOOKUP(D338,'Capacidad Financiera'!$C$13:$X$62720,3,0)))","v":""},{"$f":"IF(OR(C338=\"\",D338=\"\"),\"\",IF(ISERROR(VLOOKUP(D338,'Capacidad Financiera'!$C$13:$X$62720,5,0)),\"\",VLOOKUP(D338,'Capacidad Financiera'!$C$13:$X$62720,5,0)))","v":""},"",{"$f":"IF(OR(D338=\"\",E338=\"\",F338=\"\"),\"\",IF(AND(G338>0,G338<=CapFinanciera1),Puntajes!$D$12,IF(AND(G338>CapFinanciera1,G338<=CapFinanciera2),Puntajes!$D$13,IF(AND(G338>CapFinanciera2,G338<=CapFinanciera3),Puntajes!$D$14,IF(AND(G338>CapFinanciera3,G338<=CapFinanciera4),Puntajes!$D$15,IF(G338>CapFinanciera4,Puntajes!$D$16,0))))))","v":""}]
[null,null,31,{"$f":"IF(ISERROR(VLOOKUP(C339,'Capacidad Financiera'!$B$12:$X$62720,2,0)),\"\",VLOOKUP(C339,'Capacidad Financiera'!$B$12:$X$3580,2,0))","v":"LATINCO S.A."},{"$f":"IF(C340=\"\",IF(C339<>\"\",IF(ISERROR(VLOOKUP(D339,'Capacidad Financiera'!$C$12:$H$22,3,0)),\"\",VLOOKUP(D339,'Capacidad Financiera'!$C$12:$H$22,3,0))),\"\")","v":""},{"$f":"IF(C340=\"\",IF(C339<>\"\",IF(ISERROR(VLOOKUP(D339,'Capacidad Financiera'!$C$12:$H$22,5,0)),\"\",VLOOKUP(D339,'Capacidad Financiera'!$C$12:$H$22,5,0))),\"\")","v":""},{"$f":"IF(OR(D339=\"\",E339=\"\",F339=\"\"),\"\",IF(OR(E339=0,F339=0),0,E339/F339))","v":""},{"$f":"IF(C340=\"\",IF(AND(E339=\"\",F339=\"\"),\"\",IF(AND(G339>0,G339<=CapFinanciera1),Puntajes!$D$12,IF(AND(G339>CapFinanciera1,G339<=CapFinanciera2),Puntajes!$D$13,IF(AND(G339>CapFinanciera2,G339<=CapFinanciera3),Puntajes!$D$14,IF(AND(G339>CapFinanciera3,G339<=CapFinanciera4),Puntajes!$D$15,IF(G339>CapFinanciera4,Puntajes!$D$16,0)))))),\"\")","v":""}]
[null,null,{"$f":"+'Capacidad Financiera'!B343","v":31.1},{"$f":"IF(ISERROR(VLOOKUP(C340,'Capacidad Financiera'!$B$12:$X$62720,2,0)),\"\",VLOOKUP(C340,'Capacidad Financiera'!$B$12:$X$3580,2,0))","v":"LATINCO S.A."},{"$f":"IF(OR(C340=\"\",D340=\"\"),\"\",IF(ISERROR(VLOOKUP(D340,'Capacidad Financiera'!$C$13:$X$62720,3,0)),\"\",VLOOKUP(D340,'Capacidad Financiera'!$C$13:$X$62720,3,0)))","v":94052297000},{"$f":"IF(OR(C340=\"\",D340=\"\"),\"\",IF(ISERROR(VLOOKUP(D340,'Capacidad Financiera'!$C$13:$X$62720,5,0)),\"\",VLOOKUP(D340,'Capacidad Financiera'!$C$13:$X$62720,5,0)))","v":39328613000},{"$f":"IF(OR(D340=\"\",E340=\"\",F340=\"\"),\"\",IF(OR(E340=0,F340=0),0,E340/F340))","v":2.3914470871372964},{"$f":"IF(OR(D340=\"\",E340=\"\",F340=\"\"),\"\",IF(AND(G340>0,G340<=CapFinanciera1),Puntajes!$D$12,IF(AND(G340>CapFinanciera1,G340<=CapFinanciera2),Puntajes!$D$13,IF(AND(G340>CapFinanciera2,G340<=CapFinanciera3),Puntajes!$D$14,IF(AND(G340>CapFinanciera3,G340<=CapFinanciera4),Puntajes!$D$15,IF(G340>CapFinanciera4,Puntajes!$D$16,0))))))","v":40}]
[null,null,{"$f":"+'Capacidad Financiera'!B344","v":""},{"$f":"IF(ISERROR(VLOOKUP(C341,'Capacidad Financiera'!$B$12:$X$62720,2,0)),\"\",VLOOKUP(C341,'Capacidad Financiera'!$B$12:$X$3580,2,0))","v":0},{"$f":"IF(OR(C341=\"\",D341=\"\"),\"\",IF(ISERROR(VLOOKUP(D341,'Capacidad Financiera'!$C$13:$X$62720,3,0)),\"\",VLOOKUP(D341,'Capacidad Financiera'!$C$13:$X$62720,3,0)))","v":""},{"$f":"IF(OR(C341=\"\",D341=\"\"),\"\",IF(ISERROR(VLOOKUP(D341,'Capacidad Financiera'!$C$13:$X$62720,5,0)),\"\",VLOOKUP(D341,'Capacidad Financiera'!$C$13:$X$62720,5,0)))","v":""},"",{"$f":"IF(OR(D341=\"\",E341=\"\",F341=\"\"),\"\",IF(AND(G341>0,G341<=CapFinanciera1),Puntajes!$D$12,IF(AND(G341>CapFinanciera1,G341<=CapFinanciera2),Puntajes!$D$13,IF(AND(G341>CapFinanciera2,G341<=CapFinanciera3),Puntajes!$D$14,IF(AND(G341>CapFinanciera3,G341<=CapFinanciera4),Puntajes!$D$15,IF(G341>CapFinanciera4,Puntajes!$D$16,0))))))","v":""}]
[null,null,{"$f":"+'Capacidad Financiera'!B345","v":""},{"$f":"IF(ISERROR(VLOOKUP(C342,'Capacidad Financiera'!$B$12:$X$62720,2,0)),\"\",VLOOKUP(C342,'Capacidad Financiera'!$B$12:$X$3580,2,0))","v":0},{"$f":"IF(OR(C342=\"\",D342=\"\"),\"\",IF(ISERROR(VLOOKUP(D342,'Capacidad Financiera'!$C$13:$X$62720,3,0)),\"\",VLOOKUP(D342,'Capacidad Financiera'!$C$13:$X$62720,3,0)))","v":""},{"$f":"IF(OR(C342=\"\",D342=\"\"),\"\",IF(ISERROR(VLOOKUP(D342,'Capacidad Financiera'!$C$13:$X$62720,5,0)),\"\",VLOOKUP(D342,'Capacidad Financiera'!$C$13:$X$62720,5,0)))","v":""},"",{"$f":"IF(OR(D342=\"\",E342=\"\",F342=\"\"),\"\",IF(AND(G342>0,G342<=CapFinanciera1),Puntajes!$D$12,IF(AND(G342>CapFinanciera1,G342<=CapFinanciera2),Puntajes!$D$13,IF(AND(G342>CapFinanciera2,G342<=CapFinanciera3),Puntajes!$D$14,IF(AND(G342>CapFinanciera3,G342<=CapFinanciera4),Puntajes!$D$15,IF(G342>CapFinanciera4,Puntajes!$D$16,0))))))","v":""}]
[null,null,{"$f":"+'Capacidad Financiera'!B346","v":""},{"$f":"IF(ISERROR(VLOOKUP(C343,'Capacidad Financiera'!$B$12:$X$62720,2,0)),\"\",VLOOKUP(C343,'Capacidad Financiera'!$B$12:$X$3580,2,0))","v":0},{"$f":"IF(OR(C343=\"\",D343=\"\"),\"\",IF(ISERROR(VLOOKUP(D343,'Capacidad Financiera'!$C$13:$X$62720,3,0)),\"\",VLOOKUP(D343,'Capacidad Financiera'!$C$13:$X$62720,3,0)))","v":""},{"$f":"IF(OR(C343=\"\",D343=\"\"),\"\",IF(ISERROR(VLOOKUP(D343,'Capacidad Financiera'!$C$13:$X$62720,5,0)),\"\",VLOOKUP(D343,'Capacidad Financiera'!$C$13:$X$62720,5,0)))","v":""},"",{"$f":"IF(OR(D343=\"\",E343=\"\",F343=\"\"),\"\",IF(AND(G343>0,G343<=CapFinanciera1),Puntajes!$D$12,IF(AND(G343>CapFinanciera1,G343<=CapFinanciera2),Puntajes!$D$13,IF(AND(G343>CapFinanciera2,G343<=CapFinanciera3),Puntajes!$D$14,IF(AND(G343>CapFinanciera3,G343<=CapFinanciera4),Puntajes!$D$15,IF(G343>CapFinanciera4,Puntajes!$D$16,0))))))","v":""}]
[null,null,{"$f":"+'Capacidad Financiera'!B347","v":""},{"$f":"IF(ISERROR(VLOOKUP(C344,'Capacidad Financiera'!$B$12:$X$62720,2,0)),\"\",VLOOKUP(C344,'Capacidad Financiera'!$B$12:$X$3580,2,0))","v":0},{"$f":"IF(OR(C344=\"\",D344=\"\"),\"\",IF(ISERROR(VLOOKUP(D344,'Capacidad Financiera'!$C$13:$X$62720,3,0)),\"\",VLOOKUP(D344,'Capacidad Financiera'!$C$13:$X$62720,3,0)))","v":""},{"$f":"IF(OR(C344=\"\",D344=\"\"),\"\",IF(ISERROR(VLOOKUP(D344,'Capacidad Financiera'!$C$13:$X$62720,5,0)),\"\",VLOOKUP(D344,'Capacidad Financiera'!$C$13:$X$62720,5,0)))","v":""},"",{"$f":"IF(OR(D344=\"\",E344=\"\",F344=\"\"),\"\",IF(AND(G344>0,G344<=CapFinanciera1),Puntajes!$D$12,IF(AND(G344>CapFinanciera1,G344<=CapFinanciera2),Puntajes!$D$13,IF(AND(G344>CapFinanciera2,G344<=CapFinanciera3),Puntajes!$D$14,IF(AND(G344>CapFinanciera3,G344<=CapFinanciera4),Puntajes!$D$15,IF(G344>CapFinanciera4,Puntajes!$D$16,0))))))","v":""}]
[null,null,{"$f":"+'Capacidad Financiera'!B348","v":""},{"$f":"IF(ISERROR(VLOOKUP(C345,'Capacidad Financiera'!$B$12:$X$62720,2,0)),\"\",VLOOKUP(C345,'Capacidad Financiera'!$B$12:$X$3580,2,0))","v":0},{"$f":"IF(OR(C345=\"\",D345=\"\"),\"\",IF(ISERROR(VLOOKUP(D345,'Capacidad Financiera'!$C$13:$X$62720,3,0)),\"\",VLOOKUP(D345,'Capacidad Financiera'!$C$13:$X$62720,3,0)))","v":""},{"$f":"IF(OR(C345=\"\",D345=\"\"),\"\",IF(ISERROR(VLOOKUP(D345,'Capacidad Financiera'!$C$13:$X$62720,5,0)),\"\",VLOOKUP(D345,'Capacidad Financiera'!$C$13:$X$62720,5,0)))","v":""},"",{"$f":"IF(OR(D345=\"\",E345=\"\",F345=\"\"),\"\",IF(AND(G345>0,G345<=CapFinanciera1),Puntajes!$D$12,IF(AND(G345>CapFinanciera1,G345<=CapFinanciera2),Puntajes!$D$13,IF(AND(G345>CapFinanciera2,G345<=CapFinanciera3),Puntajes!$D$14,IF(AND(G345>CapFinanciera3,G345<=CapFinanciera4),Puntajes!$D$15,IF(G345>CapFinanciera4,Puntajes!$D$16,0))))))","v":""}]
[null,null,{"$f":"+'Capacidad Financiera'!B349","v":""},{"$f":"IF(ISERROR(VLOOKUP(C346,'Capacidad Financiera'!$B$12:$X$62720,2,0)),\"\",VLOOKUP(C346,'Capacidad Financiera'!$B$12:$X$3580,2,0))","v":0},{"$f":"IF(OR(C346=\"\",D346=\"\"),\"\",IF(ISERROR(VLOOKUP(D346,'Capacidad Financiera'!$C$13:$X$62720,3,0)),\"\",VLOOKUP(D346,'Capacidad Financiera'!$C$13:$X$62720,3,0)))","v":""},{"$f":"IF(OR(C346=\"\",D346=\"\"),\"\",IF(ISERROR(VLOOKUP(D346,'Capacidad Financiera'!$C$13:$X$62720,5,0)),\"\",VLOOKUP(D346,'Capacidad Financiera'!$C$13:$X$62720,5,0)))","v":""},"",{"$f":"IF(OR(D346=\"\",E346=\"\",F346=\"\"),\"\",IF(AND(G346>0,G346<=CapFinanciera1),Puntajes!$D$12,IF(AND(G346>CapFinanciera1,G346<=CapFinanciera2),Puntajes!$D$13,IF(AND(G346>CapFinanciera2,G346<=CapFinanciera3),Puntajes!$D$14,IF(AND(G346>CapFinanciera3,G346<=CapFinanciera4),Puntajes!$D$15,IF(G346>CapFinanciera4,Puntajes!$D$16,0))))))","v":""}]
[null,null,{"$f":"+'Capacidad Financiera'!B350","v":""},{"$f":"IF(ISERROR(VLOOKUP(C347,'Capacidad Financiera'!$B$12:$X$62720,2,0)),\"\",VLOOKUP(C347,'Capacidad Financiera'!$B$12:$X$3580,2,0))","v":0},{"$f":"IF(OR(C347=\"\",D347=\"\"),\"\",IF(ISERROR(VLOOKUP(D347,'Capacidad Financiera'!$C$13:$X$62720,3,0)),\"\",VLOOKUP(D347,'Capacidad Financiera'!$C$13:$X$62720,3,0)))","v":""},{"$f":"IF(OR(C347=\"\",D347=\"\"),\"\",IF(ISERROR(VLOOKUP(D347,'Capacidad Financiera'!$C$13:$X$62720,5,0)),\"\",VLOOKUP(D347,'Capacidad Financiera'!$C$13:$X$62720,5,0)))","v":""},"",{"$f":"IF(OR(D347=\"\",E347=\"\",F347=\"\"),\"\",IF(AND(G347>0,G347<=CapFinanciera1),Puntajes!$D$12,IF(AND(G347>CapFinanciera1,G347<=CapFinanciera2),Puntajes!$D$13,IF(AND(G347>CapFinanciera2,G347<=CapFinanciera3),Puntajes!$D$14,IF(AND(G347>CapFinanciera3,G347<=CapFinanciera4),Puntajes!$D$15,IF(G347>CapFinanciera4,Puntajes!$D$16,0))))))","v":""}]
[null,null,{"$f":"+'Capacidad Financiera'!B351","v":""},{"$f":"IF(ISERROR(VLOOKUP(C348,'Capacidad Financiera'!$B$12:$X$62720,2,0)),\"\",VLOOKUP(C348,'Capacidad Financiera'!$B$12:$X$3580,2,0))","v":0},{"$f":"IF(OR(C348=\"\",D348=\"\"),\"\",IF(ISERROR(VLOOKUP(D348,'Capacidad Financiera'!$C$13:$X$62720,3,0)),\"\",VLOOKUP(D348,'Capacidad Financiera'!$C$13:$X$62720,3,0)))","v":""},{"$f":"IF(OR(C348=\"\",D348=\"\"),\"\",IF(ISERROR(VLOOKUP(D348,'Capacidad Financiera'!$C$13:$X$62720,5,0)),\"\",VLOOKUP(D348,'Capacidad Financiera'!$C$13:$X$62720,5,0)))","v":""},"",{"$f":"IF(OR(D348=\"\",E348=\"\",F348=\"\"),\"\",IF(AND(G348>0,G348<=CapFinanciera1),Puntajes!$D$12,IF(AND(G348>CapFinanciera1,G348<=CapFinanciera2),Puntajes!$D$13,IF(AND(G348>CapFinanciera2,G348<=CapFinanciera3),Puntajes!$D$14,IF(AND(G348>CapFinanciera3,G348<=CapFinanciera4),Puntajes!$D$15,IF(G348>CapFinanciera4,Puntajes!$D$16,0))))))","v":""}]
[null,null,{"$f":"+'Capacidad Financiera'!B352","v":""},{"$f":"IF(ISERROR(VLOOKUP(C349,'Capacidad Financiera'!$B$12:$X$62720,2,0)),\"\",VLOOKUP(C349,'Capacidad Financiera'!$B$12:$X$3580,2,0))","v":0},{"$f":"IF(OR(C349=\"\",D349=\"\"),\"\",IF(ISERROR(VLOOKUP(D349,'Capacidad Financiera'!$C$13:$X$62720,3,0)),\"\",VLOOKUP(D349,'Capacidad Financiera'!$C$13:$X$62720,3,0)))","v":""},{"$f":"IF(OR(C349=\"\",D349=\"\"),\"\",IF(ISERROR(VLOOKUP(D349,'Capacidad Financiera'!$C$13:$X$62720,5,0)),\"\",VLOOKUP(D349,'Capacidad Financiera'!$C$13:$X$62720,5,0)))","v":""},"",{"$f":"IF(OR(D349=\"\",E349=\"\",F349=\"\"),\"\",IF(AND(G349>0,G349<=CapFinanciera1),Puntajes!$D$12,IF(AND(G349>CapFinanciera1,G349<=CapFinanciera2),Puntajes!$D$13,IF(AND(G349>CapFinanciera2,G349<=CapFinanciera3),Puntajes!$D$14,IF(AND(G349>CapFinanciera3,G349<=CapFinanciera4),Puntajes!$D$15,IF(G349>CapFinanciera4,Puntajes!$D$16,0))))))","v":""}]
[null,null,32,{"$f":"IF(ISERROR(VLOOKUP(C350,'Capacidad Financiera'!$B$12:$X$62720,2,0)),\"\",VLOOKUP(C350,'Capacidad Financiera'!$B$12:$X$3580,2,0))","v":"ICEIN S.A.S."},{"$f":"IF(C351=\"\",IF(C350<>\"\",IF(ISERROR(VLOOKUP(D350,'Capacidad Financiera'!$C$12:$H$22,3,0)),\"\",VLOOKUP(D350,'Capacidad Financiera'!$C$12:$H$22,3,0))),\"\")","v":""},{"$f":"IF(C351=\"\",IF(C350<>\"\",IF(ISERROR(VLOOKUP(D350,'Capacidad Financiera'!$C$12:$H$22,5,0)),\"\",VLOOKUP(D350,'Capacidad Financiera'!$C$12:$H$22,5,0))),\"\")","v":""},{"$f":"IF(OR(D350=\"\",E350=\"\",F350=\"\"),\"\",IF(OR(E350=0,F350=0),0,E350/F350))","v":""},{"$f":"IF(C351=\"\",IF(AND(E350=\"\",F350=\"\"),\"\",IF(AND(G350>0,G350<=CapFinanciera1),Puntajes!$D$12,IF(AND(G350>CapFinanciera1,G350<=CapFinanciera2),Puntajes!$D$13,IF(AND(G350>CapFinanciera2,G350<=CapFinanciera3),Puntajes!$D$14,IF(AND(G350>CapFinanciera3,G350<=CapFinanciera4),Puntajes!$D$15,IF(G350>CapFinanciera4,Puntajes!$D$16,0)))))),\"\")","v":""}]
[null,null,{"$f":"+'Capacidad Financiera'!B354","v":32.1},{"$f":"IF(ISERROR(VLOOKUP(C351,'Capacidad Financiera'!$B$12:$X$62720,2,0)),\"\",VLOOKUP(C351,'Capacidad Financiera'!$B$12:$X$3580,2,0))","v":"ICEIN S.A.S."},{"$f":"IF(OR(C351=\"\",D351=\"\"),\"\",IF(ISERROR(VLOOKUP(D351,'Capacidad Financiera'!$C$13:$X$62720,3,0)),\"\",VLOOKUP(D351,'Capacidad Financiera'!$C$13:$X$62720,3,0)))","v":275657318297},{"$f":"IF(OR(C351=\"\",D351=\"\"),\"\",IF(ISERROR(VLOOKUP(D351,'Capacidad Financiera'!$C$13:$X$62720,5,0)),\"\",VLOOKUP(D351,'Capacidad Financiera'!$C$13:$X$62720,5,0)))","v":49741116169},{"$f":"IF(OR(D351=\"\",E351=\"\",F351=\"\"),\"\",IF(OR(E351=0,F351=0),0,E351/F351))","v":5.5418402224917713},{"$f":"IF(OR(D351=\"\",E351=\"\",F351=\"\"),\"\",IF(AND(G351>0,G351<=CapFinanciera1),Puntajes!$D$12,IF(AND(G351>CapFinanciera1,G351<=CapFinanciera2),Puntajes!$D$13,IF(AND(G351>CapFinanciera2,G351<=CapFinanciera3),Puntajes!$D$14,IF(AND(G351>CapFinanciera3,G351<=CapFinanciera4),Puntajes!$D$15,IF(G351>CapFinanciera4,Puntajes!$D$16,0))))))","v":40}]
[null,null,{"$f":"+'Capacidad Financiera'!B355","v":""},{"$f":"IF(ISERROR(VLOOKUP(C352,'Capacidad Financiera'!$B$12:$X$62720,2,0)),\"\",VLOOKUP(C352,'Capacidad Financiera'!$B$12:$X$3580,2,0))","v":0},{"$f":"IF(OR(C352=\"\",D352=\"\"),\"\",IF(ISERROR(VLOOKUP(D352,'Capacidad Financiera'!$C$13:$X$62720,3,0)),\"\",VLOOKUP(D352,'Capacidad Financiera'!$C$13:$X$62720,3,0)))","v":""},{"$f":"IF(OR(C352=\"\",D352=\"\"),\"\",IF(ISERROR(VLOOKUP(D352,'Capacidad Financiera'!$C$13:$X$62720,5,0)),\"\",VLOOKUP(D352,'Capacidad Financiera'!$C$13:$X$62720,5,0)))","v":""},"",{"$f":"IF(OR(D352=\"\",E352=\"\",F352=\"\"),\"\",IF(AND(G352>0,G352<=CapFinanciera1),Puntajes!$D$12,IF(AND(G352>CapFinanciera1,G352<=CapFinanciera2),Puntajes!$D$13,IF(AND(G352>CapFinanciera2,G352<=CapFinanciera3),Puntajes!$D$14,IF(AND(G352>CapFinanciera3,G352<=CapFinanciera4),Puntajes!$D$15,IF(G352>CapFinanciera4,Puntajes!$D$16,0))))))","v":""}]
[null,null,{"$f":"+'Capacidad Financiera'!B356","v":""},{"$f":"IF(ISERROR(VLOOKUP(C353,'Capacidad Financiera'!$B$12:$X$62720,2,0)),\"\",VLOOKUP(C353,'Capacidad Financiera'!$B$12:$X$3580,2,0))","v":0},{"$f":"IF(OR(C353=\"\",D353=\"\"),\"\",IF(ISERROR(VLOOKUP(D353,'Capacidad Financiera'!$C$13:$X$62720,3,0)),\"\",VLOOKUP(D353,'Capacidad Financiera'!$C$13:$X$62720,3,0)))","v":""},{"$f":"IF(OR(C353=\"\",D353=\"\"),\"\",IF(ISERROR(VLOOKUP(D353,'Capacidad Financiera'!$C$13:$X$62720,5,0)),\"\",VLOOKUP(D353,'Capacidad Financiera'!$C$13:$X$62720,5,0)))","v":""},"",{"$f":"IF(OR(D353=\"\",E353=\"\",F353=\"\"),\"\",IF(AND(G353>0,G353<=CapFinanciera1),Puntajes!$D$12,IF(AND(G353>CapFinanciera1,G353<=CapFinanciera2),Puntajes!$D$13,IF(AND(G353>CapFinanciera2,G353<=CapFinanciera3),Puntajes!$D$14,IF(AND(G353>CapFinanciera3,G353<=CapFinanciera4),Puntajes!$D$15,IF(G353>CapFinanciera4,Puntajes!$D$16,0))))))","v":""}]
[null,null,{"$f":"+'Capacidad Financiera'!B357","v":""},{"$f":"IF(ISERROR(VLOOKUP(C354,'Capacidad Financiera'!$B$12:$X$62720,2,0)),\"\",VLOOKUP(C354,'Capacidad Financiera'!$B$12:$X$3580,2,0))","v":0},{"$f":"IF(OR(C354=\"\",D354=\"\"),\"\",IF(ISERROR(VLOOKUP(D354,'Capacidad Financiera'!$C$13:$X$62720,3,0)),\"\",VLOOKUP(D354,'Capacidad Financiera'!$C$13:$X$62720,3,0)))","v":""},{"$f":"IF(OR(C354=\"\",D354=\"\"),\"\",IF(ISERROR(VLOOKUP(D354,'Capacidad Financiera'!$C$13:$X$62720,5,0)),\"\",VLOOKUP(D354,'Capacidad Financiera'!$C$13:$X$62720,5,0)))","v":""},"",{"$f":"IF(OR(D354=\"\",E354=\"\",F354=\"\"),\"\",IF(AND(G354>0,G354<=CapFinanciera1),Puntajes!$D$12,IF(AND(G354>CapFinanciera1,G354<=CapFinanciera2),Puntajes!$D$13,IF(AND(G354>CapFinanciera2,G354<=CapFinanciera3),Puntajes!$D$14,IF(AND(G354>CapFinanciera3,G354<=CapFinanciera4),Puntajes!$D$15,IF(G354>CapFinanciera4,Puntajes!$D$16,0))))))","v":""}]
[null,null,{"$f":"+'Capacidad Financiera'!B358","v":""},{"$f":"IF(ISERROR(VLOOKUP(C355,'Capacidad Financiera'!$B$12:$X$62720,2,0)),\"\",VLOOKUP(C355,'Capacidad Financiera'!$B$12:$X$3580,2,0))","v":0},{"$f":"IF(OR(C355=\"\",D355=\"\"),\"\",IF(ISERROR(VLOOKUP(D355,'Capacidad Financiera'!$C$13:$X$62720,3,0)),\"\",VLOOKUP(D355,'Capacidad Financiera'!$C$13:$X$62720,3,0)))","v":""},{"$f":"IF(OR(C355=\"\",D355=\"\"),\"\",IF(ISERROR(VLOOKUP(D355,'Capacidad Financiera'!$C$13:$X$62720,5,0)),\"\",VLOOKUP(D355,'Capacidad Financiera'!$C$13:$X$62720,5,0)))","v":""},"",{"$f":"IF(OR(D355=\"\",E355=\"\",F355=\"\"),\"\",IF(AND(G355>0,G355<=CapFinanciera1),Puntajes!$D$12,IF(AND(G355>CapFinanciera1,G355<=CapFinanciera2),Puntajes!$D$13,IF(AND(G355>CapFinanciera2,G355<=CapFinanciera3),Puntajes!$D$14,IF(AND(G355>CapFinanciera3,G355<=CapFinanciera4),Puntajes!$D$15,IF(G355>CapFinanciera4,Puntajes!$D$16,0))))))","v":""}]
[null,null,{"$f":"+'Capacidad Financiera'!B359","v":""},{"$f":"IF(ISERROR(VLOOKUP(C356,'Capacidad Financiera'!$B$12:$X$62720,2,0)),\"\",VLOOKUP(C356,'Capacidad Financiera'!$B$12:$X$3580,2,0))","v":0},{"$f":"IF(OR(C356=\"\",D356=\"\"),\"\",IF(ISERROR(VLOOKUP(D356,'Capacidad Financiera'!$C$13:$X$62720,3,0)),\"\",VLOOKUP(D356,'Capacidad Financiera'!$C$13:$X$62720,3,0)))","v":""},{"$f":"IF(OR(C356=\"\",D356=\"\"),\"\",IF(ISERROR(VLOOKUP(D356,'Capacidad Financiera'!$C$13:$X$62720,5,0)),\"\",VLOOKUP(D356,'Capacidad Financiera'!$C$13:$X$62720,5,0)))","v":""},"",{"$f":"IF(OR(D356=\"\",E356=\"\",F356=\"\"),\"\",IF(AND(G356>0,G356<=CapFinanciera1),Puntajes!$D$12,IF(AND(G356>CapFinanciera1,G356<=CapFinanciera2),Puntajes!$D$13,IF(AND(G356>CapFinanciera2,G356<=CapFinanciera3),Puntajes!$D$14,IF(AND(G356>CapFinanciera3,G356<=CapFinanciera4),Puntajes!$D$15,IF(G356>CapFinanciera4,Puntajes!$D$16,0))))))","v":""}]
[null,null,{"$f":"+'Capacidad Financiera'!B360","v":""},{"$f":"IF(ISERROR(VLOOKUP(C357,'Capacidad Financiera'!$B$12:$X$62720,2,0)),\"\",VLOOKUP(C357,'Capacidad Financiera'!$B$12:$X$3580,2,0))","v":0},{"$f":"IF(OR(C357=\"\",D357=\"\"),\"\",IF(ISERROR(VLOOKUP(D357,'Capacidad Financiera'!$C$13:$X$62720,3,0)),\"\",VLOOKUP(D357,'Capacidad Financiera'!$C$13:$X$62720,3,0)))","v":""},{"$f":"IF(OR(C357=\"\",D357=\"\"),\"\",IF(ISERROR(VLOOKUP(D357,'Capacidad Financiera'!$C$13:$X$62720,5,0)),\"\",VLOOKUP(D357,'Capacidad Financiera'!$C$13:$X$62720,5,0)))","v":""},"",{"$f":"IF(OR(D357=\"\",E357=\"\",F357=\"\"),\"\",IF(AND(G357>0,G357<=CapFinanciera1),Puntajes!$D$12,IF(AND(G357>CapFinanciera1,G357<=CapFinanciera2),Puntajes!$D$13,IF(AND(G357>CapFinanciera2,G357<=CapFinanciera3),Puntajes!$D$14,IF(AND(G357>CapFinanciera3,G357<=CapFinanciera4),Puntajes!$D$15,IF(G357>CapFinanciera4,Puntajes!$D$16,0))))))","v":""}]
[null,null,{"$f":"+'Capacidad Financiera'!B361","v":""},{"$f":"IF(ISERROR(VLOOKUP(C358,'Capacidad Financiera'!$B$12:$X$62720,2,0)),\"\",VLOOKUP(C358,'Capacidad Financiera'!$B$12:$X$3580,2,0))","v":0},{"$f":"IF(OR(C358=\"\",D358=\"\"),\"\",IF(ISERROR(VLOOKUP(D358,'Capacidad Financiera'!$C$13:$X$62720,3,0)),\"\",VLOOKUP(D358,'Capacidad Financiera'!$C$13:$X$62720,3,0)))","v":""},{"$f":"IF(OR(C358=\"\",D358=\"\"),\"\",IF(ISERROR(VLOOKUP(D358,'Capacidad Financiera'!$C$13:$X$62720,5,0)),\"\",VLOOKUP(D358,'Capacidad Financiera'!$C$13:$X$62720,5,0)))","v":""},"",{"$f":"IF(OR(D358=\"\",E358=\"\",F358=\"\"),\"\",IF(AND(G358>0,G358<=CapFinanciera1),Puntajes!$D$12,IF(AND(G358>CapFinanciera1,G358<=CapFinanciera2),Puntajes!$D$13,IF(AND(G358>CapFinanciera2,G358<=CapFinanciera3),Puntajes!$D$14,IF(AND(G358>CapFinanciera3,G358<=CapFinanciera4),Puntajes!$D$15,IF(G358>CapFinanciera4,Puntajes!$D$16,0))))))","v":""}]
[null,null,{"$f":"+'Capacidad Financiera'!B362","v":""},{"$f":"IF(ISERROR(VLOOKUP(C359,'Capacidad Financiera'!$B$12:$X$62720,2,0)),\"\",VLOOKUP(C359,'Capacidad Financiera'!$B$12:$X$3580,2,0))","v":0},{"$f":"IF(OR(C359=\"\",D359=\"\"),\"\",IF(ISERROR(VLOOKUP(D359,'Capacidad Financiera'!$C$13:$X$62720,3,0)),\"\",VLOOKUP(D359,'Capacidad Financiera'!$C$13:$X$62720,3,0)))","v":""},{"$f":"IF(OR(C359=\"\",D359=\"\"),\"\",IF(ISERROR(VLOOKUP(D359,'Capacidad Financiera'!$C$13:$X$62720,5,0)),\"\",VLOOKUP(D359,'Capacidad Financiera'!$C$13:$X$62720,5,0)))","v":""},"",{"$f":"IF(OR(D359=\"\",E359=\"\",F359=\"\"),\"\",IF(AND(G359>0,G359<=CapFinanciera1),Puntajes!$D$12,IF(AND(G359>CapFinanciera1,G359<=CapFinanciera2),Puntajes!$D$13,IF(AND(G359>CapFinanciera2,G359<=CapFinanciera3),Puntajes!$D$14,IF(AND(G359>CapFinanciera3,G359<=CapFinanciera4),Puntajes!$D$15,IF(G359>CapFinanciera4,Puntajes!$D$16,0))))))","v":""}]
[null,null,{"$f":"+'Capacidad Financiera'!B363","v":""},{"$f":"IF(ISERROR(VLOOKUP(C360,'Capacidad Financiera'!$B$12:$X$62720,2,0)),\"\",VLOOKUP(C360,'Capacidad Financiera'!$B$12:$X$3580,2,0))","v":0},{"$f":"IF(OR(C360=\"\",D360=\"\"),\"\",IF(ISERROR(VLOOKUP(D360,'Capacidad Financiera'!$C$13:$X$62720,3,0)),\"\",VLOOKUP(D360,'Capacidad Financiera'!$C$13:$X$62720,3,0)))","v":""},{"$f":"IF(OR(C360=\"\",D360=\"\"),\"\",IF(ISERROR(VLOOKUP(D360,'Capacidad Financiera'!$C$13:$X$62720,5,0)),\"\",VLOOKUP(D360,'Capacidad Financiera'!$C$13:$X$62720,5,0)))","v":""},"",{"$f":"IF(OR(D360=\"\",E360=\"\",F360=\"\"),\"\",IF(AND(G360>0,G360<=CapFinanciera1),Puntajes!$D$12,IF(AND(G360>CapFinanciera1,G360<=CapFinanciera2),Puntajes!$D$13,IF(AND(G360>CapFinanciera2,G360<=CapFinanciera3),Puntajes!$D$14,IF(AND(G360>CapFinanciera3,G360<=CapFinanciera4),Puntajes!$D$15,IF(G360>CapFinanciera4,Puntajes!$D$16,0))))))","v":""}]
[null,null,33,{"$f":"IF(ISERROR(VLOOKUP(C361,'Capacidad Financiera'!$B$12:$X$62720,2,0)),\"\",VLOOKUP(C361,'Capacidad Financiera'!$B$12:$X$3580,2,0))","v":"CONSTRUCCIONES E INVERSIONES BETA S.A.S."},{"$f":"IF(C362=\"\",IF(C361<>\"\",IF(ISERROR(VLOOKUP(D361,'Capacidad Financiera'!$C$12:$H$22,3,0)),\"\",VLOOKUP(D361,'Capacidad Financiera'!$C$12:$H$22,3,0))),\"\")","v":""},{"$f":"IF(C362=\"\",IF(C361<>\"\",IF(ISERROR(VLOOKUP(D361,'Capacidad Financiera'!$C$12:$H$22,5,0)),\"\",VLOOKUP(D361,'Capacidad Financiera'!$C$12:$H$22,5,0))),\"\")","v":""},{"$f":"IF(OR(D361=\"\",E361=\"\",F361=\"\"),\"\",IF(OR(E361=0,F361=0),0,E361/F361))","v":""},{"$f":"IF(C362=\"\",IF(AND(E361=\"\",F361=\"\"),\"\",IF(AND(G361>0,G361<=CapFinanciera1),Puntajes!$D$12,IF(AND(G361>CapFinanciera1,G361<=CapFinanciera2),Puntajes!$D$13,IF(AND(G361>CapFinanciera2,G361<=CapFinanciera3),Puntajes!$D$14,IF(AND(G361>CapFinanciera3,G361<=CapFinanciera4),Puntajes!$D$15,IF(G361>CapFinanciera4,Puntajes!$D$16,0)))))),\"\")","v":""}]
[null,null,{"$f":"+'Capacidad Financiera'!B365","v":33.1},{"$f":"IF(ISERROR(VLOOKUP(C362,'Capacidad Financiera'!$B$12:$X$62720,2,0)),\"\",VLOOKUP(C362,'Capacidad Financiera'!$B$12:$X$3580,2,0))","v":"CONSTRUCCIONES E INVERSIONES BETA S.A.S."},{"$f":"IF(OR(C362=\"\",D362=\"\"),\"\",IF(ISERROR(VLOOKUP(D362,'Capacidad Financiera'!$C$13:$X$62720,3,0)),\"\",VLOOKUP(D362,'Capacidad Financiera'!$C$13:$X$62720,3,0)))","v":58291300967.5},{"$f":"IF(OR(C362=\"\",D362=\"\"),\"\",IF(ISERROR(VLOOKUP(D362,'Capacidad Financiera'!$C$13:$X$62720,5,0)),\"\",VLOOKUP(D362,'Capacidad Financiera'!$C$13:$X$62720,5,0)))","v":7049854058.8199997},{"$f":"IF(OR(D362=\"\",E362=\"\",F362=\"\"),\"\",IF(OR(E362=0,F362=0),0,E362/F362))","v":8.2684408047528812},{"$f":"IF(OR(D362=\"\",E362=\"\",F362=\"\"),\"\",IF(AND(G362>0,G362<=CapFinanciera1),Puntajes!$D$12,IF(AND(G362>CapFinanciera1,G362<=CapFinanciera2),Puntajes!$D$13,IF(AND(G362>CapFinanciera2,G362<=CapFinanciera3),Puntajes!$D$14,IF(AND(G362>CapFinanciera3,G362<=CapFinanciera4),Puntajes!$D$15,IF(G362>CapFinanciera4,Puntajes!$D$16,0))))))","v":40}]
[null,null,{"$f":"+'Capacidad Financiera'!B366","v":""},{"$f":"IF(ISERROR(VLOOKUP(C363,'Capacidad Financiera'!$B$12:$X$62720,2,0)),\"\",VLOOKUP(C363,'Capacidad Financiera'!$B$12:$X$3580,2,0))","v":0},{"$f":"IF(OR(C363=\"\",D363=\"\"),\"\",IF(ISERROR(VLOOKUP(D363,'Capacidad Financiera'!$C$13:$X$62720,3,0)),\"\",VLOOKUP(D363,'Capacidad Financiera'!$C$13:$X$62720,3,0)))","v":""},{"$f":"IF(OR(C363=\"\",D363=\"\"),\"\",IF(ISERROR(VLOOKUP(D363,'Capacidad Financiera'!$C$13:$X$62720,5,0)),\"\",VLOOKUP(D363,'Capacidad Financiera'!$C$13:$X$62720,5,0)))","v":""},"",{"$f":"IF(OR(D363=\"\",E363=\"\",F363=\"\"),\"\",IF(AND(G363>0,G363<=CapFinanciera1),Puntajes!$D$12,IF(AND(G363>CapFinanciera1,G363<=CapFinanciera2),Puntajes!$D$13,IF(AND(G363>CapFinanciera2,G363<=CapFinanciera3),Puntajes!$D$14,IF(AND(G363>CapFinanciera3,G363<=CapFinanciera4),Puntajes!$D$15,IF(G363>CapFinanciera4,Puntajes!$D$16,0))))))","v":""}]
[null,null,{"$f":"+'Capacidad Financiera'!B367","v":""},{"$f":"IF(ISERROR(VLOOKUP(C364,'Capacidad Financiera'!$B$12:$X$62720,2,0)),\"\",VLOOKUP(C364,'Capacidad Financiera'!$B$12:$X$3580,2,0))","v":0},{"$f":"IF(OR(C364=\"\",D364=\"\"),\"\",IF(ISERROR(VLOOKUP(D364,'Capacidad Financiera'!$C$13:$X$62720,3,0)),\"\",VLOOKUP(D364,'Capacidad Financiera'!$C$13:$X$62720,3,0)))","v":""},{"$f":"IF(OR(C364=\"\",D364=\"\"),\"\",IF(ISERROR(VLOOKUP(D364,'Capacidad Financiera'!$C$13:$X$62720,5,0)),\"\",VLOOKUP(D364,'Capacidad Financiera'!$C$13:$X$62720,5,0)))","v":""},"",{"$f":"IF(OR(D364=\"\",E364=\"\",F364=\"\"),\"\",IF(AND(G364>0,G364<=CapFinanciera1),Puntajes!$D$12,IF(AND(G364>CapFinanciera1,G364<=CapFinanciera2),Puntajes!$D$13,IF(AND(G364>CapFinanciera2,G364<=CapFinanciera3),Puntajes!$D$14,IF(AND(G364>CapFinanciera3,G364<=CapFinanciera4),Puntajes!$D$15,IF(G364>CapFinanciera4,Puntajes!$D$16,0))))))","v":""}]
[null,null,{"$f":"+'Capacidad Financiera'!B368","v":""},{"$f":"IF(ISERROR(VLOOKUP(C365,'Capacidad Financiera'!$B$12:$X$62720,2,0)),\"\",VLOOKUP(C365,'Capacidad Financiera'!$B$12:$X$3580,2,0))","v":0},{"$f":"IF(OR(C365=\"\",D365=\"\"),\"\",IF(ISERROR(VLOOKUP(D365,'Capacidad Financiera'!$C$13:$X$62720,3,0)),\"\",VLOOKUP(D365,'Capacidad Financiera'!$C$13:$X$62720,3,0)))","v":""},{"$f":"IF(OR(C365=\"\",D365=\"\"),\"\",IF(ISERROR(VLOOKUP(D365,'Capacidad Financiera'!$C$13:$X$62720,5,0)),\"\",VLOOKUP(D365,'Capacidad Financiera'!$C$13:$X$62720,5,0)))","v":""},"",{"$f":"IF(OR(D365=\"\",E365=\"\",F365=\"\"),\"\",IF(AND(G365>0,G365<=CapFinanciera1),Puntajes!$D$12,IF(AND(G365>CapFinanciera1,G365<=CapFinanciera2),Puntajes!$D$13,IF(AND(G365>CapFinanciera2,G365<=CapFinanciera3),Puntajes!$D$14,IF(AND(G365>CapFinanciera3,G365<=CapFinanciera4),Puntajes!$D$15,IF(G365>CapFinanciera4,Puntajes!$D$16,0))))))","v":""}]
[null,null,{"$f":"+'Capacidad Financiera'!B369","v":""},{"$f":"IF(ISERROR(VLOOKUP(C366,'Capacidad Financiera'!$B$12:$X$62720,2,0)),\"\",VLOOKUP(C366,'Capacidad Financiera'!$B$12:$X$3580,2,0))","v":0},{"$f":"IF(OR(C366=\"\",D366=\"\"),\"\",IF(ISERROR(VLOOKUP(D366,'Capacidad Financiera'!$C$13:$X$62720,3,0)),\"\",VLOOKUP(D366,'Capacidad Financiera'!$C$13:$X$62720,3,0)))","v":""},{"$f":"IF(OR(C366=\"\",D366=\"\"),\"\",IF(ISERROR(VLOOKUP(D366,'Capacidad Financiera'!$C$13:$X$62720,5,0)),\"\",VLOOKUP(D366,'Capacidad Financiera'!$C$13:$X$62720,5,0)))","v":""},"",{"$f":"IF(OR(D366=\"\",E366=\"\",F366=\"\"),\"\",IF(AND(G366>0,G366<=CapFinanciera1),Puntajes!$D$12,IF(AND(G366>CapFinanciera1,G366<=CapFinanciera2),Puntajes!$D$13,IF(AND(G366>CapFinanciera2,G366<=CapFinanciera3),Puntajes!$D$14,IF(AND(G366>CapFinanciera3,G366<=CapFinanciera4),Puntajes!$D$15,IF(G366>CapFinanciera4,Puntajes!$D$16,0))))))","v":""}]
[null,null,{"$f":"+'Capacidad Financiera'!B370","v":""},{"$f":"IF(ISERROR(VLOOKUP(C367,'Capacidad Financiera'!$B$12:$X$62720,2,0)),\"\",VLOOKUP(C367,'Capacidad Financiera'!$B$12:$X$3580,2,0))","v":0},{"$f":"IF(OR(C367=\"\",D367=\"\"),\"\",IF(ISERROR(VLOOKUP(D367,'Capacidad Financiera'!$C$13:$X$62720,3,0)),\"\",VLOOKUP(D367,'Capacidad Financiera'!$C$13:$X$62720,3,0)))","v":""},{"$f":"IF(OR(C367=\"\",D367=\"\"),\"\",IF(ISERROR(VLOOKUP(D367,'Capacidad Financiera'!$C$13:$X$62720,5,0)),\"\",VLOOKUP(D367,'Capacidad Financiera'!$C$13:$X$62720,5,0)))","v":""},"",{"$f":"IF(OR(D367=\"\",E367=\"\",F367=\"\"),\"\",IF(AND(G367>0,G367<=CapFinanciera1),Puntajes!$D$12,IF(AND(G367>CapFinanciera1,G367<=CapFinanciera2),Puntajes!$D$13,IF(AND(G367>CapFinanciera2,G367<=CapFinanciera3),Puntajes!$D$14,IF(AND(G367>CapFinanciera3,G367<=CapFinanciera4),Puntajes!$D$15,IF(G367>CapFinanciera4,Puntajes!$D$16,0))))))","v":""}]
[null,null,{"$f":"+'Capacidad Financiera'!B371","v":""},{"$f":"IF(ISERROR(VLOOKUP(C368,'Capacidad Financiera'!$B$12:$X$62720,2,0)),\"\",VLOOKUP(C368,'Capacidad Financiera'!$B$12:$X$3580,2,0))","v":0},{"$f":"IF(OR(C368=\"\",D368=\"\"),\"\",IF(ISERROR(VLOOKUP(D368,'Capacidad Financiera'!$C$13:$X$62720,3,0)),\"\",VLOOKUP(D368,'Capacidad Financiera'!$C$13:$X$62720,3,0)))","v":""},{"$f":"IF(OR(C368=\"\",D368=\"\"),\"\",IF(ISERROR(VLOOKUP(D368,'Capacidad Financiera'!$C$13:$X$62720,5,0)),\"\",VLOOKUP(D368,'Capacidad Financiera'!$C$13:$X$62720,5,0)))","v":""},"",{"$f":"IF(OR(D368=\"\",E368=\"\",F368=\"\"),\"\",IF(AND(G368>0,G368<=CapFinanciera1),Puntajes!$D$12,IF(AND(G368>CapFinanciera1,G368<=CapFinanciera2),Puntajes!$D$13,IF(AND(G368>CapFinanciera2,G368<=CapFinanciera3),Puntajes!$D$14,IF(AND(G368>CapFinanciera3,G368<=CapFinanciera4),Puntajes!$D$15,IF(G368>CapFinanciera4,Puntajes!$D$16,0))))))","v":""}]
[null,null,{"$f":"+'Capacidad Financiera'!B372","v":""},{"$f":"IF(ISERROR(VLOOKUP(C369,'Capacidad Financiera'!$B$12:$X$62720,2,0)),\"\",VLOOKUP(C369,'Capacidad Financiera'!$B$12:$X$3580,2,0))","v":0},{"$f":"IF(OR(C369=\"\",D369=\"\"),\"\",IF(ISERROR(VLOOKUP(D369,'Capacidad Financiera'!$C$13:$X$62720,3,0)),\"\",VLOOKUP(D369,'Capacidad Financiera'!$C$13:$X$62720,3,0)))","v":""},{"$f":"IF(OR(C369=\"\",D369=\"\"),\"\",IF(ISERROR(VLOOKUP(D369,'Capacidad Financiera'!$C$13:$X$62720,5,0)),\"\",VLOOKUP(D369,'Capacidad Financiera'!$C$13:$X$62720,5,0)))","v":""},"",{"$f":"IF(OR(D369=\"\",E369=\"\",F369=\"\"),\"\",IF(AND(G369>0,G369<=CapFinanciera1),Puntajes!$D$12,IF(AND(G369>CapFinanciera1,G369<=CapFinanciera2),Puntajes!$D$13,IF(AND(G369>CapFinanciera2,G369<=CapFinanciera3),Puntajes!$D$14,IF(AND(G369>CapFinanciera3,G369<=CapFinanciera4),Puntajes!$D$15,IF(G369>CapFinanciera4,Puntajes!$D$16,0))))))","v":""}]
[null,null,{"$f":"+'Capacidad Financiera'!B373","v":""},{"$f":"IF(ISERROR(VLOOKUP(C370,'Capacidad Financiera'!$B$12:$X$62720,2,0)),\"\",VLOOKUP(C370,'Capacidad Financiera'!$B$12:$X$3580,2,0))","v":0},{"$f":"IF(OR(C370=\"\",D370=\"\"),\"\",IF(ISERROR(VLOOKUP(D370,'Capacidad Financiera'!$C$13:$X$62720,3,0)),\"\",VLOOKUP(D370,'Capacidad Financiera'!$C$13:$X$62720,3,0)))","v":""},{"$f":"IF(OR(C370=\"\",D370=\"\"),\"\",IF(ISERROR(VLOOKUP(D370,'Capacidad Financiera'!$C$13:$X$62720,5,0)),\"\",VLOOKUP(D370,'Capacidad Financiera'!$C$13:$X$62720,5,0)))","v":""},"",{"$f":"IF(OR(D370=\"\",E370=\"\",F370=\"\"),\"\",IF(AND(G370>0,G370<=CapFinanciera1),Puntajes!$D$12,IF(AND(G370>CapFinanciera1,G370<=CapFinanciera2),Puntajes!$D$13,IF(AND(G370>CapFinanciera2,G370<=CapFinanciera3),Puntajes!$D$14,IF(AND(G370>CapFinanciera3,G370<=CapFinanciera4),Puntajes!$D$15,IF(G370>CapFinanciera4,Puntajes!$D$16,0))))))","v":""}]
[null,null,{"$f":"+'Capacidad Financiera'!B374","v":""},{"$f":"IF(ISERROR(VLOOKUP(C371,'Capacidad Financiera'!$B$12:$X$62720,2,0)),\"\",VLOOKUP(C371,'Capacidad Financiera'!$B$12:$X$3580,2,0))","v":0},{"$f":"IF(OR(C371=\"\",D371=\"\"),\"\",IF(ISERROR(VLOOKUP(D371,'Capacidad Financiera'!$C$13:$X$62720,3,0)),\"\",VLOOKUP(D371,'Capacidad Financiera'!$C$13:$X$62720,3,0)))","v":""},{"$f":"IF(OR(C371=\"\",D371=\"\"),\"\",IF(ISERROR(VLOOKUP(D371,'Capacidad Financiera'!$C$13:$X$62720,5,0)),\"\",VLOOKUP(D371,'Capacidad Financiera'!$C$13:$X$62720,5,0)))","v":""},"",{"$f":"IF(OR(D371=\"\",E371=\"\",F371=\"\"),\"\",IF(AND(G371>0,G371<=CapFinanciera1),Puntajes!$D$12,IF(AND(G371>CapFinanciera1,G371<=CapFinanciera2),Puntajes!$D$13,IF(AND(G371>CapFinanciera2,G371<=CapFinanciera3),Puntajes!$D$14,IF(AND(G371>CapFinanciera3,G371<=CapFinanciera4),Puntajes!$D$15,IF(G371>CapFinanciera4,Puntajes!$D$16,0))))))","v":""}]
[null,null,34,{"$f":"IF(ISERROR(VLOOKUP(C372,'Capacidad Financiera'!$B$12:$X$62720,2,0)),\"\",VLOOKUP(C372,'Capacidad Financiera'!$B$12:$X$3580,2,0))","v":"CI GRODCO S EN CA INGENIEROS CIVILES"},{"$f":"IF(C373=\"\",IF(C372<>\"\",IF(ISERROR(VLOOKUP(D372,'Capacidad Financiera'!$C$12:$H$22,3,0)),\"\",VLOOKUP(D372,'Capacidad Financiera'!$C$12:$H$22,3,0))),\"\")","v":""},{"$f":"IF(C373=\"\",IF(C372<>\"\",IF(ISERROR(VLOOKUP(D372,'Capacidad Financiera'!$C$12:$H$22,5,0)),\"\",VLOOKUP(D372,'Capacidad Financiera'!$C$12:$H$22,5,0))),\"\")","v":""},{"$f":"IF(OR(D372=\"\",E372=\"\",F372=\"\"),\"\",IF(OR(E372=0,F372=0),0,E372/F372))","v":""},{"$f":"IF(C373=\"\",IF(AND(E372=\"\",F372=\"\"),\"\",IF(AND(G372>0,G372<=CapFinanciera1),Puntajes!$D$12,IF(AND(G372>CapFinanciera1,G372<=CapFinanciera2),Puntajes!$D$13,IF(AND(G372>CapFinanciera2,G372<=CapFinanciera3),Puntajes!$D$14,IF(AND(G372>CapFinanciera3,G372<=CapFinanciera4),Puntajes!$D$15,IF(G372>CapFinanciera4,Puntajes!$D$16,0)))))),\"\")","v":""}]
[null,null,{"$f":"+'Capacidad Financiera'!B376","v":34.1},{"$f":"IF(ISERROR(VLOOKUP(C373,'Capacidad Financiera'!$B$12:$X$62720,2,0)),\"\",VLOOKUP(C373,'Capacidad Financiera'!$B$12:$X$3580,2,0))","v":"CI GRODCO S EN CA INGENIEROS CIVILES"},{"$f":"IF(OR(C373=\"\",D373=\"\"),\"\",IF(ISERROR(VLOOKUP(D373,'Capacidad Financiera'!$C$13:$X$62720,3,0)),\"\",VLOOKUP(D373,'Capacidad Financiera'!$C$13:$X$62720,3,0)))","v":206578272000},{"$f":"IF(OR(C373=\"\",D373=\"\"),\"\",IF(ISERROR(VLOOKUP(D373,'Capacidad Financiera'!$C$13:$X$62720,5,0)),\"\",VLOOKUP(D373,'Capacidad Financiera'!$C$13:$X$62720,5,0)))","v":80040795000},{"$f":"IF(OR(D373=\"\",E373=\"\",F373=\"\"),\"\",IF(OR(E373=0,F373=0),0,E373/F373))","v":2.5809122960360402},{"$f":"IF(OR(D373=\"\",E373=\"\",F373=\"\"),\"\",IF(AND(G373>0,G373<=CapFinanciera1),Puntajes!$D$12,IF(AND(G373>CapFinanciera1,G373<=CapFinanciera2),Puntajes!$D$13,IF(AND(G373>CapFinanciera2,G373<=CapFinanciera3),Puntajes!$D$14,IF(AND(G373>CapFinanciera3,G373<=CapFinanciera4),Puntajes!$D$15,IF(G373>CapFinanciera4,Puntajes!$D$16,0))))))","v":40}]
[null,null,{"$f":"+'Capacidad Financiera'!B377","v":""},{"$f":"IF(ISERROR(VLOOKUP(C374,'Capacidad Financiera'!$B$12:$X$62720,2,0)),\"\",VLOOKUP(C374,'Capacidad Financiera'!$B$12:$X$3580,2,0))","v":0},{"$f":"IF(OR(C374=\"\",D374=\"\"),\"\",IF(ISERROR(VLOOKUP(D374,'Capacidad Financiera'!$C$13:$X$62720,3,0)),\"\",VLOOKUP(D374,'Capacidad Financiera'!$C$13:$X$62720,3,0)))","v":""},{"$f":"IF(OR(C374=\"\",D374=\"\"),\"\",IF(ISERROR(VLOOKUP(D374,'Capacidad Financiera'!$C$13:$X$62720,5,0)),\"\",VLOOKUP(D374,'Capacidad Financiera'!$C$13:$X$62720,5,0)))","v":""},"",{"$f":"IF(OR(D374=\"\",E374=\"\",F374=\"\"),\"\",IF(AND(G374>0,G374<=CapFinanciera1),Puntajes!$D$12,IF(AND(G374>CapFinanciera1,G374<=CapFinanciera2),Puntajes!$D$13,IF(AND(G374>CapFinanciera2,G374<=CapFinanciera3),Puntajes!$D$14,IF(AND(G374>CapFinanciera3,G374<=CapFinanciera4),Puntajes!$D$15,IF(G374>CapFinanciera4,Puntajes!$D$16,0))))))","v":""}]
[null,null,{"$f":"+'Capacidad Financiera'!B378","v":""},{"$f":"IF(ISERROR(VLOOKUP(C375,'Capacidad Financiera'!$B$12:$X$62720,2,0)),\"\",VLOOKUP(C375,'Capacidad Financiera'!$B$12:$X$3580,2,0))","v":0},{"$f":"IF(OR(C375=\"\",D375=\"\"),\"\",IF(ISERROR(VLOOKUP(D375,'Capacidad Financiera'!$C$13:$X$62720,3,0)),\"\",VLOOKUP(D375,'Capacidad Financiera'!$C$13:$X$62720,3,0)))","v":""},{"$f":"IF(OR(C375=\"\",D375=\"\"),\"\",IF(ISERROR(VLOOKUP(D375,'Capacidad Financiera'!$C$13:$X$62720,5,0)),\"\",VLOOKUP(D375,'Capacidad Financiera'!$C$13:$X$62720,5,0)))","v":""},"",{"$f":"IF(OR(D375=\"\",E375=\"\",F375=\"\"),\"\",IF(AND(G375>0,G375<=CapFinanciera1),Puntajes!$D$12,IF(AND(G375>CapFinanciera1,G375<=CapFinanciera2),Puntajes!$D$13,IF(AND(G375>CapFinanciera2,G375<=CapFinanciera3),Puntajes!$D$14,IF(AND(G375>CapFinanciera3,G375<=CapFinanciera4),Puntajes!$D$15,IF(G375>CapFinanciera4,Puntajes!$D$16,0))))))","v":""}]
[null,null,{"$f":"+'Capacidad Financiera'!B379","v":""},{"$f":"IF(ISERROR(VLOOKUP(C376,'Capacidad Financiera'!$B$12:$X$62720,2,0)),\"\",VLOOKUP(C376,'Capacidad Financiera'!$B$12:$X$3580,2,0))","v":0},{"$f":"IF(OR(C376=\"\",D376=\"\"),\"\",IF(ISERROR(VLOOKUP(D376,'Capacidad Financiera'!$C$13:$X$62720,3,0)),\"\",VLOOKUP(D376,'Capacidad Financiera'!$C$13:$X$62720,3,0)))","v":""},{"$f":"IF(OR(C376=\"\",D376=\"\"),\"\",IF(ISERROR(VLOOKUP(D376,'Capacidad Financiera'!$C$13:$X$62720,5,0)),\"\",VLOOKUP(D376,'Capacidad Financiera'!$C$13:$X$62720,5,0)))","v":""},"",{"$f":"IF(OR(D376=\"\",E376=\"\",F376=\"\"),\"\",IF(AND(G376>0,G376<=CapFinanciera1),Puntajes!$D$12,IF(AND(G376>CapFinanciera1,G376<=CapFinanciera2),Puntajes!$D$13,IF(AND(G376>CapFinanciera2,G376<=CapFinanciera3),Puntajes!$D$14,IF(AND(G376>CapFinanciera3,G376<=CapFinanciera4),Puntajes!$D$15,IF(G376>CapFinanciera4,Puntajes!$D$16,0))))))","v":""}]
[null,null,{"$f":"+'Capacidad Financiera'!B380","v":""},{"$f":"IF(ISERROR(VLOOKUP(C377,'Capacidad Financiera'!$B$12:$X$62720,2,0)),\"\",VLOOKUP(C377,'Capacidad Financiera'!$B$12:$X$3580,2,0))","v":0},{"$f":"IF(OR(C377=\"\",D377=\"\"),\"\",IF(ISERROR(VLOOKUP(D377,'Capacidad Financiera'!$C$13:$X$62720,3,0)),\"\",VLOOKUP(D377,'Capacidad Financiera'!$C$13:$X$62720,3,0)))","v":""},{"$f":"IF(OR(C377=\"\",D377=\"\"),\"\",IF(ISERROR(VLOOKUP(D377,'Capacidad Financiera'!$C$13:$X$62720,5,0)),\"\",VLOOKUP(D377,'Capacidad Financiera'!$C$13:$X$62720,5,0)))","v":""},"",{"$f":"IF(OR(D377=\"\",E377=\"\",F377=\"\"),\"\",IF(AND(G377>0,G377<=CapFinanciera1),Puntajes!$D$12,IF(AND(G377>CapFinanciera1,G377<=CapFinanciera2),Puntajes!$D$13,IF(AND(G377>CapFinanciera2,G377<=CapFinanciera3),Puntajes!$D$14,IF(AND(G377>CapFinanciera3,G377<=CapFinanciera4),Puntajes!$D$15,IF(G377>CapFinanciera4,Puntajes!$D$16,0))))))","v":""}]
[null,null,{"$f":"+'Capacidad Financiera'!B381","v":""},{"$f":"IF(ISERROR(VLOOKUP(C378,'Capacidad Financiera'!$B$12:$X$62720,2,0)),\"\",VLOOKUP(C378,'Capacidad Financiera'!$B$12:$X$3580,2,0))","v":0},{"$f":"IF(OR(C378=\"\",D378=\"\"),\"\",IF(ISERROR(VLOOKUP(D378,'Capacidad Financiera'!$C$13:$X$62720,3,0)),\"\",VLOOKUP(D378,'Capacidad Financiera'!$C$13:$X$62720,3,0)))","v":""},{"$f":"IF(OR(C378=\"\",D378=\"\"),\"\",IF(ISERROR(VLOOKUP(D378,'Capacidad Financiera'!$C$13:$X$62720,5,0)),\"\",VLOOKUP(D378,'Capacidad Financiera'!$C$13:$X$62720,5,0)))","v":""},"",{"$f":"IF(OR(D378=\"\",E378=\"\",F378=\"\"),\"\",IF(AND(G378>0,G378<=CapFinanciera1),Puntajes!$D$12,IF(AND(G378>CapFinanciera1,G378<=CapFinanciera2),Puntajes!$D$13,IF(AND(G378>CapFinanciera2,G378<=CapFinanciera3),Puntajes!$D$14,IF(AND(G378>CapFinanciera3,G378<=CapFinanciera4),Puntajes!$D$15,IF(G378>CapFinanciera4,Puntajes!$D$16,0))))))","v":""}]
[null,null,{"$f":"+'Capacidad Financiera'!B382","v":""},{"$f":"IF(ISERROR(VLOOKUP(C379,'Capacidad Financiera'!$B$12:$X$62720,2,0)),\"\",VLOOKUP(C379,'Capacidad Financiera'!$B$12:$X$3580,2,0))","v":0},{"$f":"IF(OR(C379=\"\",D379=\"\"),\"\",IF(ISERROR(VLOOKUP(D379,'Capacidad Financiera'!$C$13:$X$62720,3,0)),\"\",VLOOKUP(D379,'Capacidad Financiera'!$C$13:$X$62720,3,0)))","v":""},{"$f":"IF(OR(C379=\"\",D379=\"\"),\"\",IF(ISERROR(VLOOKUP(D379,'Capacidad Financiera'!$C$13:$X$62720,5,0)),\"\",VLOOKUP(D379,'Capacidad Financiera'!$C$13:$X$62720,5,0)))","v":""},"",{"$f":"IF(OR(D379=\"\",E379=\"\",F379=\"\"),\"\",IF(AND(G379>0,G379<=CapFinanciera1),Puntajes!$D$12,IF(AND(G379>CapFinanciera1,G379<=CapFinanciera2),Puntajes!$D$13,IF(AND(G379>CapFinanciera2,G379<=CapFinanciera3),Puntajes!$D$14,IF(AND(G379>CapFinanciera3,G379<=CapFinanciera4),Puntajes!$D$15,IF(G379>CapFinanciera4,Puntajes!$D$16,0))))))","v":""}]
[null,null,{"$f":"+'Capacidad Financiera'!B383","v":""},{"$f":"IF(ISERROR(VLOOKUP(C380,'Capacidad Financiera'!$B$12:$X$62720,2,0)),\"\",VLOOKUP(C380,'Capacidad Financiera'!$B$12:$X$3580,2,0))","v":0},{"$f":"IF(OR(C380=\"\",D380=\"\"),\"\",IF(ISERROR(VLOOKUP(D380,'Capacidad Financiera'!$C$13:$X$62720,3,0)),\"\",VLOOKUP(D380,'Capacidad Financiera'!$C$13:$X$62720,3,0)))","v":""},{"$f":"IF(OR(C380=\"\",D380=\"\"),\"\",IF(ISERROR(VLOOKUP(D380,'Capacidad Financiera'!$C$13:$X$62720,5,0)),\"\",VLOOKUP(D380,'Capacidad Financiera'!$C$13:$X$62720,5,0)))","v":""},"",{"$f":"IF(OR(D380=\"\",E380=\"\",F380=\"\"),\"\",IF(AND(G380>0,G380<=CapFinanciera1),Puntajes!$D$12,IF(AND(G380>CapFinanciera1,G380<=CapFinanciera2),Puntajes!$D$13,IF(AND(G380>CapFinanciera2,G380<=CapFinanciera3),Puntajes!$D$14,IF(AND(G380>CapFinanciera3,G380<=CapFinanciera4),Puntajes!$D$15,IF(G380>CapFinanciera4,Puntajes!$D$16,0))))))","v":""}]
[null,null,{"$f":"+'Capacidad Financiera'!B384","v":""},{"$f":"IF(ISERROR(VLOOKUP(C381,'Capacidad Financiera'!$B$12:$X$62720,2,0)),\"\",VLOOKUP(C381,'Capacidad Financiera'!$B$12:$X$3580,2,0))","v":0},{"$f":"IF(OR(C381=\"\",D381=\"\"),\"\",IF(ISERROR(VLOOKUP(D381,'Capacidad Financiera'!$C$13:$X$62720,3,0)),\"\",VLOOKUP(D381,'Capacidad Financiera'!$C$13:$X$62720,3,0)))","v":""},{"$f":"IF(OR(C381=\"\",D381=\"\"),\"\",IF(ISERROR(VLOOKUP(D381,'Capacidad Financiera'!$C$13:$X$62720,5,0)),\"\",VLOOKUP(D381,'Capacidad Financiera'!$C$13:$X$62720,5,0)))","v":""},"",{"$f":"IF(OR(D381=\"\",E381=\"\",F381=\"\"),\"\",IF(AND(G381>0,G381<=CapFinanciera1),Puntajes!$D$12,IF(AND(G381>CapFinanciera1,G381<=CapFinanciera2),Puntajes!$D$13,IF(AND(G381>CapFinanciera2,G381<=CapFinanciera3),Puntajes!$D$14,IF(AND(G381>CapFinanciera3,G381<=CapFinanciera4),Puntajes!$D$15,IF(G381>CapFinanciera4,Puntajes!$D$16,0))))))","v":""}]
[null,null,{"$f":"+'Capacidad Financiera'!B385","v":""},{"$f":"IF(ISERROR(VLOOKUP(C382,'Capacidad Financiera'!$B$12:$X$62720,2,0)),\"\",VLOOKUP(C382,'Capacidad Financiera'!$B$12:$X$3580,2,0))","v":0},{"$f":"IF(OR(C382=\"\",D382=\"\"),\"\",IF(ISERROR(VLOOKUP(D382,'Capacidad Financiera'!$C$13:$X$62720,3,0)),\"\",VLOOKUP(D382,'Capacidad Financiera'!$C$13:$X$62720,3,0)))","v":""},{"$f":"IF(OR(C382=\"\",D382=\"\"),\"\",IF(ISERROR(VLOOKUP(D382,'Capacidad Financiera'!$C$13:$X$62720,5,0)),\"\",VLOOKUP(D382,'Capacidad Financiera'!$C$13:$X$62720,5,0)))","v":""},"",{"$f":"IF(OR(D382=\"\",E382=\"\",F382=\"\"),\"\",IF(AND(G382>0,G382<=CapFinanciera1),Puntajes!$D$12,IF(AND(G382>CapFinanciera1,G382<=CapFinanciera2),Puntajes!$D$13,IF(AND(G382>CapFinanciera2,G382<=CapFinanciera3),Puntajes!$D$14,IF(AND(G382>CapFinanciera3,G382<=CapFinanciera4),Puntajes!$D$15,IF(G382>CapFinanciera4,Puntajes!$D$16,0))))))","v":""}]
[null,null,35,{"$f":"IF(ISERROR(VLOOKUP(C383,'Capacidad Financiera'!$B$12:$X$62720,2,0)),\"\",VLOOKUP(C383,'Capacidad Financiera'!$B$12:$X$3580,2,0))","v":"MUVEK S.A.S"},{"$f":"IF(C384=\"\",IF(C383<>\"\",IF(ISERROR(VLOOKUP(D383,'Capacidad Financiera'!$C$12:$H$22,3,0)),\"\",VLOOKUP(D383,'Capacidad Financiera'!$C$12:$H$22,3,0))),\"\")","v":""},{"$f":"IF(C384=\"\",IF(C383<>\"\",IF(ISERROR(VLOOKUP(D383,'Capacidad Financiera'!$C$12:$H$22,5,0)),\"\",VLOOKUP(D383,'Capacidad Financiera'!$C$12:$H$22,5,0))),\"\")","v":""},{"$f":"IF(OR(D383=\"\",E383=\"\",F383=\"\"),\"\",IF(OR(E383=0,F383=0),0,E383/F383))","v":""},{"$f":"IF(C384=\"\",IF(AND(E383=\"\",F383=\"\"),\"\",IF(AND(G383>0,G383<=CapFinanciera1),Puntajes!$D$12,IF(AND(G383>CapFinanciera1,G383<=CapFinanciera2),Puntajes!$D$13,IF(AND(G383>CapFinanciera2,G383<=CapFinanciera3),Puntajes!$D$14,IF(AND(G383>CapFinanciera3,G383<=CapFinanciera4),Puntajes!$D$15,IF(G383>CapFinanciera4,Puntajes!$D$16,0)))))),\"\")","v":""}]
[null,null,{"$f":"+'Capacidad Financiera'!B387","v":35.1},{"$f":"IF(ISERROR(VLOOKUP(C384,'Capacidad Financiera'!$B$12:$X$62720,2,0)),\"\",VLOOKUP(C384,'Capacidad Financiera'!$B$12:$X$3580,2,0))","v":"MUVEK S.A.S"},{"$f":"IF(OR(C384=\"\",D384=\"\"),\"\",IF(ISERROR(VLOOKUP(D384,'Capacidad Financiera'!$C$13:$X$62720,3,0)),\"\",VLOOKUP(D384,'Capacidad Financiera'!$C$13:$X$62720,3,0)))","v":9581892867},{"$f":"IF(OR(C384=\"\",D384=\"\"),\"\",IF(ISERROR(VLOOKUP(D384,'Capacidad Financiera'!$C$13:$X$62720,5,0)),\"\",VLOOKUP(D384,'Capacidad Financiera'!$C$13:$X$62720,5,0)))","v":383855272},{"$f":"IF(OR(D384=\"\",E384=\"\",F384=\"\"),\"\",IF(OR(E384=0,F384=0),0,E384/F384))","v":24.962254177402571},{"$f":"IF(OR(D384=\"\",E384=\"\",F384=\"\"),\"\",IF(AND(G384>0,G384<=CapFinanciera1),Puntajes!$D$12,IF(AND(G384>CapFinanciera1,G384<=CapFinanciera2),Puntajes!$D$13,IF(AND(G384>CapFinanciera2,G384<=CapFinanciera3),Puntajes!$D$14,IF(AND(G384>CapFinanciera3,G384<=CapFinanciera4),Puntajes!$D$15,IF(G384>CapFinanciera4,Puntajes!$D$16,0))))))","v":40}]
[null,null,{"$f":"+'Capacidad Financiera'!B388","v":""},{"$f":"IF(ISERROR(VLOOKUP(C385,'Capacidad Financiera'!$B$12:$X$62720,2,0)),\"\",VLOOKUP(C385,'Capacidad Financiera'!$B$12:$X$3580,2,0))","v":0},{"$f":"IF(OR(C385=\"\",D385=\"\"),\"\",IF(ISERROR(VLOOKUP(D385,'Capacidad Financiera'!$C$13:$X$62720,3,0)),\"\",VLOOKUP(D385,'Capacidad Financiera'!$C$13:$X$62720,3,0)))","v":""},{"$f":"IF(OR(C385=\"\",D385=\"\"),\"\",IF(ISERROR(VLOOKUP(D385,'Capacidad Financiera'!$C$13:$X$62720,5,0)),\"\",VLOOKUP(D385,'Capacidad Financiera'!$C$13:$X$62720,5,0)))","v":""},"",{"$f":"IF(OR(D385=\"\",E385=\"\",F385=\"\"),\"\",IF(AND(G385>0,G385<=CapFinanciera1),Puntajes!$D$12,IF(AND(G385>CapFinanciera1,G385<=CapFinanciera2),Puntajes!$D$13,IF(AND(G385>CapFinanciera2,G385<=CapFinanciera3),Puntajes!$D$14,IF(AND(G385>CapFinanciera3,G385<=CapFinanciera4),Puntajes!$D$15,IF(G385>CapFinanciera4,Puntajes!$D$16,0))))))","v":""}]
[null,null,{"$f":"+'Capacidad Financiera'!B389","v":""},{"$f":"IF(ISERROR(VLOOKUP(C386,'Capacidad Financiera'!$B$12:$X$62720,2,0)),\"\",VLOOKUP(C386,'Capacidad Financiera'!$B$12:$X$3580,2,0))","v":0},{"$f":"IF(OR(C386=\"\",D386=\"\"),\"\",IF(ISERROR(VLOOKUP(D386,'Capacidad Financiera'!$C$13:$X$62720,3,0)),\"\",VLOOKUP(D386,'Capacidad Financiera'!$C$13:$X$62720,3,0)))","v":""},{"$f":"IF(OR(C386=\"\",D386=\"\"),\"\",IF(ISERROR(VLOOKUP(D386,'Capacidad Financiera'!$C$13:$X$62720,5,0)),\"\",VLOOKUP(D386,'Capacidad Financiera'!$C$13:$X$62720,5,0)))","v":""},"",{"$f":"IF(OR(D386=\"\",E386=\"\",F386=\"\"),\"\",IF(AND(G386>0,G386<=CapFinanciera1),Puntajes!$D$12,IF(AND(G386>CapFinanciera1,G386<=CapFinanciera2),Puntajes!$D$13,IF(AND(G386>CapFinanciera2,G386<=CapFinanciera3),Puntajes!$D$14,IF(AND(G386>CapFinanciera3,G386<=CapFinanciera4),Puntajes!$D$15,IF(G386>CapFinanciera4,Puntajes!$D$16,0))))))","v":""}]
[null,null,{"$f":"+'Capacidad Financiera'!B390","v":""},{"$f":"IF(ISERROR(VLOOKUP(C387,'Capacidad Financiera'!$B$12:$X$62720,2,0)),\"\",VLOOKUP(C387,'Capacidad Financiera'!$B$12:$X$3580,2,0))","v":0},{"$f":"IF(OR(C387=\"\",D387=\"\"),\"\",IF(ISERROR(VLOOKUP(D387,'Capacidad Financiera'!$C$13:$X$62720,3,0)),\"\",VLOOKUP(D387,'Capacidad Financiera'!$C$13:$X$62720,3,0)))","v":""},{"$f":"IF(OR(C387=\"\",D387=\"\"),\"\",IF(ISERROR(VLOOKUP(D387,'Capacidad Financiera'!$C$13:$X$62720,5,0)),\"\",VLOOKUP(D387,'Capacidad Financiera'!$C$13:$X$62720,5,0)))","v":""},"",{"$f":"IF(OR(D387=\"\",E387=\"\",F387=\"\"),\"\",IF(AND(G387>0,G387<=CapFinanciera1),Puntajes!$D$12,IF(AND(G387>CapFinanciera1,G387<=CapFinanciera2),Puntajes!$D$13,IF(AND(G387>CapFinanciera2,G387<=CapFinanciera3),Puntajes!$D$14,IF(AND(G387>CapFinanciera3,G387<=CapFinanciera4),Puntajes!$D$15,IF(G387>CapFinanciera4,Puntajes!$D$16,0))))))","v":""}]
[null,null,{"$f":"+'Capacidad Financiera'!B391","v":""},{"$f":"IF(ISERROR(VLOOKUP(C388,'Capacidad Financiera'!$B$12:$X$62720,2,0)),\"\",VLOOKUP(C388,'Capacidad Financiera'!$B$12:$X$3580,2,0))","v":0},{"$f":"IF(OR(C388=\"\",D388=\"\"),\"\",IF(ISERROR(VLOOKUP(D388,'Capacidad Financiera'!$C$13:$X$62720,3,0)),\"\",VLOOKUP(D388,'Capacidad Financiera'!$C$13:$X$62720,3,0)))","v":""},{"$f":"IF(OR(C388=\"\",D388=\"\"),\"\",IF(ISERROR(VLOOKUP(D388,'Capacidad Financiera'!$C$13:$X$62720,5,0)),\"\",VLOOKUP(D388,'Capacidad Financiera'!$C$13:$X$62720,5,0)))","v":""},"",{"$f":"IF(OR(D388=\"\",E388=\"\",F388=\"\"),\"\",IF(AND(G388>0,G388<=CapFinanciera1),Puntajes!$D$12,IF(AND(G388>CapFinanciera1,G388<=CapFinanciera2),Puntajes!$D$13,IF(AND(G388>CapFinanciera2,G388<=CapFinanciera3),Puntajes!$D$14,IF(AND(G388>CapFinanciera3,G388<=CapFinanciera4),Puntajes!$D$15,IF(G388>CapFinanciera4,Puntajes!$D$16,0))))))","v":""}]
[null,null,{"$f":"+'Capacidad Financiera'!B392","v":""},{"$f":"IF(ISERROR(VLOOKUP(C389,'Capacidad Financiera'!$B$12:$X$62720,2,0)),\"\",VLOOKUP(C389,'Capacidad Financiera'!$B$12:$X$3580,2,0))","v":0},{"$f":"IF(OR(C389=\"\",D389=\"\"),\"\",IF(ISERROR(VLOOKUP(D389,'Capacidad Financiera'!$C$13:$X$62720,3,0)),\"\",VLOOKUP(D389,'Capacidad Financiera'!$C$13:$X$62720,3,0)))","v":""},{"$f":"IF(OR(C389=\"\",D389=\"\"),\"\",IF(ISERROR(VLOOKUP(D389,'Capacidad Financiera'!$C$13:$X$62720,5,0)),\"\",VLOOKUP(D389,'Capacidad Financiera'!$C$13:$X$62720,5,0)))","v":""},"",{"$f":"IF(OR(D389=\"\",E389=\"\",F389=\"\"),\"\",IF(AND(G389>0,G389<=CapFinanciera1),Puntajes!$D$12,IF(AND(G389>CapFinanciera1,G389<=CapFinanciera2),Puntajes!$D$13,IF(AND(G389>CapFinanciera2,G389<=CapFinanciera3),Puntajes!$D$14,IF(AND(G389>CapFinanciera3,G389<=CapFinanciera4),Puntajes!$D$15,IF(G389>CapFinanciera4,Puntajes!$D$16,0))))))","v":""}]
[null,null,{"$f":"+'Capacidad Financiera'!B393","v":""},{"$f":"IF(ISERROR(VLOOKUP(C390,'Capacidad Financiera'!$B$12:$X$62720,2,0)),\"\",VLOOKUP(C390,'Capacidad Financiera'!$B$12:$X$3580,2,0))","v":0},{"$f":"IF(OR(C390=\"\",D390=\"\"),\"\",IF(ISERROR(VLOOKUP(D390,'Capacidad Financiera'!$C$13:$X$62720,3,0)),\"\",VLOOKUP(D390,'Capacidad Financiera'!$C$13:$X$62720,3,0)))","v":""},{"$f":"IF(OR(C390=\"\",D390=\"\"),\"\",IF(ISERROR(VLOOKUP(D390,'Capacidad Financiera'!$C$13:$X$62720,5,0)),\"\",VLOOKUP(D390,'Capacidad Financiera'!$C$13:$X$62720,5,0)))","v":""},"",{"$f":"IF(OR(D390=\"\",E390=\"\",F390=\"\"),\"\",IF(AND(G390>0,G390<=CapFinanciera1),Puntajes!$D$12,IF(AND(G390>CapFinanciera1,G390<=CapFinanciera2),Puntajes!$D$13,IF(AND(G390>CapFinanciera2,G390<=CapFinanciera3),Puntajes!$D$14,IF(AND(G390>CapFinanciera3,G390<=CapFinanciera4),Puntajes!$D$15,IF(G390>CapFinanciera4,Puntajes!$D$16,0))))))","v":""}]
[null,null,{"$f":"+'Capacidad Financiera'!B394","v":""},{"$f":"IF(ISERROR(VLOOKUP(C391,'Capacidad Financiera'!$B$12:$X$62720,2,0)),\"\",VLOOKUP(C391,'Capacidad Financiera'!$B$12:$X$3580,2,0))","v":0},{"$f":"IF(OR(C391=\"\",D391=\"\"),\"\",IF(ISERROR(VLOOKUP(D391,'Capacidad Financiera'!$C$13:$X$62720,3,0)),\"\",VLOOKUP(D391,'Capacidad Financiera'!$C$13:$X$62720,3,0)))","v":""},{"$f":"IF(OR(C391=\"\",D391=\"\"),\"\",IF(ISERROR(VLOOKUP(D391,'Capacidad Financiera'!$C$13:$X$62720,5,0)),\"\",VLOOKUP(D391,'Capacidad Financiera'!$C$13:$X$62720,5,0)))","v":""},"",{"$f":"IF(OR(D391=\"\",E391=\"\",F391=\"\"),\"\",IF(AND(G391>0,G391<=CapFinanciera1),Puntajes!$D$12,IF(AND(G391>CapFinanciera1,G391<=CapFinanciera2),Puntajes!$D$13,IF(AND(G391>CapFinanciera2,G391<=CapFinanciera3),Puntajes!$D$14,IF(AND(G391>CapFinanciera3,G391<=CapFinanciera4),Puntajes!$D$15,IF(G391>CapFinanciera4,Puntajes!$D$16,0))))))","v":""}]
[null,null,{"$f":"+'Capacidad Financiera'!B395","v":""},{"$f":"IF(ISERROR(VLOOKUP(C392,'Capacidad Financiera'!$B$12:$X$62720,2,0)),\"\",VLOOKUP(C392,'Capacidad Financiera'!$B$12:$X$3580,2,0))","v":0},{"$f":"IF(OR(C392=\"\",D392=\"\"),\"\",IF(ISERROR(VLOOKUP(D392,'Capacidad Financiera'!$C$13:$X$62720,3,0)),\"\",VLOOKUP(D392,'Capacidad Financiera'!$C$13:$X$62720,3,0)))","v":""},{"$f":"IF(OR(C392=\"\",D392=\"\"),\"\",IF(ISERROR(VLOOKUP(D392,'Capacidad Financiera'!$C$13:$X$62720,5,0)),\"\",VLOOKUP(D392,'Capacidad Financiera'!$C$13:$X$62720,5,0)))","v":""},"",{"$f":"IF(OR(D392=\"\",E392=\"\",F392=\"\"),\"\",IF(AND(G392>0,G392<=CapFinanciera1),Puntajes!$D$12,IF(AND(G392>CapFinanciera1,G392<=CapFinanciera2),Puntajes!$D$13,IF(AND(G392>CapFinanciera2,G392<=CapFinanciera3),Puntajes!$D$14,IF(AND(G392>CapFinanciera3,G392<=CapFinanciera4),Puntajes!$D$15,IF(G392>CapFinanciera4,Puntajes!$D$16,0))))))","v":""}]
[null,null,{"$f":"+'Capacidad Financiera'!B396","v":""},{"$f":"IF(ISERROR(VLOOKUP(C393,'Capacidad Financiera'!$B$12:$X$62720,2,0)),\"\",VLOOKUP(C393,'Capacidad Financiera'!$B$12:$X$3580,2,0))","v":0},{"$f":"IF(OR(C393=\"\",D393=\"\"),\"\",IF(ISERROR(VLOOKUP(D393,'Capacidad Financiera'!$C$13:$X$62720,3,0)),\"\",VLOOKUP(D393,'Capacidad Financiera'!$C$13:$X$62720,3,0)))","v":""},{"$f":"IF(OR(C393=\"\",D393=\"\"),\"\",IF(ISERROR(VLOOKUP(D393,'Capacidad Financiera'!$C$13:$X$62720,5,0)),\"\",VLOOKUP(D393,'Capacidad Financiera'!$C$13:$X$62720,5,0)))","v":""},"",{"$f":"IF(OR(D393=\"\",E393=\"\",F393=\"\"),\"\",IF(AND(G393>0,G393<=CapFinanciera1),Puntajes!$D$12,IF(AND(G393>CapFinanciera1,G393<=CapFinanciera2),Puntajes!$D$13,IF(AND(G393>CapFinanciera2,G393<=CapFinanciera3),Puntajes!$D$14,IF(AND(G393>CapFinanciera3,G393<=CapFinanciera4),Puntajes!$D$15,IF(G393>CapFinanciera4,Puntajes!$D$16,0))))))","v":""}]
[null,null,36,{"$f":"IF(ISERROR(VLOOKUP(C394,'Capacidad Financiera'!$B$12:$X$62720,2,0)),\"\",VLOOKUP(C394,'Capacidad Financiera'!$B$12:$X$3580,2,0))","v":"CONSORCIO SUCRE VIAL"},{"$f":"IF(C395=\"\",IF(C394<>\"\",IF(ISERROR(VLOOKUP(D394,'Capacidad Financiera'!$C$12:$H$22,3,0)),\"\",VLOOKUP(D394,'Capacidad Financiera'!$C$12:$H$22,3,0))),\"\")","v":""},{"$f":"IF(C395=\"\",IF(C394<>\"\",IF(ISERROR(VLOOKUP(D394,'Capacidad Financiera'!$C$12:$H$22,5,0)),\"\",VLOOKUP(D394,'Capacidad Financiera'!$C$12:$H$22,5,0))),\"\")","v":""},{"$f":"IF(OR(D394=\"\",E394=\"\",F394=\"\"),\"\",IF(OR(E394=0,F394=0),0,E394/F394))","v":""},{"$f":"IF(C395=\"\",IF(AND(E394=\"\",F394=\"\"),\"\",IF(AND(G394>0,G394<=CapFinanciera1),Puntajes!$D$12,IF(AND(G394>CapFinanciera1,G394<=CapFinanciera2),Puntajes!$D$13,IF(AND(G394>CapFinanciera2,G394<=CapFinanciera3),Puntajes!$D$14,IF(AND(G394>CapFinanciera3,G394<=CapFinanciera4),Puntajes!$D$15,IF(G394>CapFinanciera4,Puntajes!$D$16,0)))))),\"\")","v":""}]
[null,null,{"$f":"+'Capacidad Financiera'!B398","v":36.1},{"$f":"IF(ISERROR(VLOOKUP(C395,'Capacidad Financiera'!$B$12:$X$62720,2,0)),\"\",VLOOKUP(C395,'Capacidad Financiera'!$B$12:$X$3580,2,0))","v":"CROMAS S.A."},{"$f":"IF(OR(C395=\"\",D395=\"\"),\"\",IF(ISERROR(VLOOKUP(D395,'Capacidad Financiera'!$C$13:$X$62720,3,0)),\"\",VLOOKUP(D395,'Capacidad Financiera'!$C$13:$X$62720,3,0)))","v":36823961392},{"$f":"IF(OR(C395=\"\",D395=\"\"),\"\",IF(ISERROR(VLOOKUP(D395,'Capacidad Financiera'!$C$13:$X$62720,5,0)),\"\",VLOOKUP(D395,'Capacidad Financiera'!$C$13:$X$62720,5,0)))","v":654939547},{"$f":"IF(OR(D395=\"\",E395=\"\",F395=\"\"),\"\",IF(OR(E395=0,F395=0),0,E395/F395))","v":56.22497764973108},{"$f":"IF(OR(D395=\"\",E395=\"\",F395=\"\"),\"\",IF(AND(G395>0,G395<=CapFinanciera1),Puntajes!$D$12,IF(AND(G395>CapFinanciera1,G395<=CapFinanciera2),Puntajes!$D$13,IF(AND(G395>CapFinanciera2,G395<=CapFinanciera3),Puntajes!$D$14,IF(AND(G395>CapFinanciera3,G395<=CapFinanciera4),Puntajes!$D$15,IF(G395>CapFinanciera4,Puntajes!$D$16,0))))))","v":40}]
[null,null,{"$f":"+'Capacidad Financiera'!B399","v":36.200000000000003},{"$f":"IF(ISERROR(VLOOKUP(C396,'Capacidad Financiera'!$B$12:$X$62720,2,0)),\"\",VLOOKUP(C396,'Capacidad Financiera'!$B$12:$X$3580,2,0))","v":"OSCAR ANDRADE LARA"},{"$f":"IF(OR(C396=\"\",D396=\"\"),\"\",IF(ISERROR(VLOOKUP(D396,'Capacidad Financiera'!$C$13:$X$62720,3,0)),\"\",VLOOKUP(D396,'Capacidad Financiera'!$C$13:$X$62720,3,0)))","v":7655913248},{"$f":"IF(OR(C396=\"\",D396=\"\"),\"\",IF(ISERROR(VLOOKUP(D396,'Capacidad Financiera'!$C$13:$X$62720,5,0)),\"\",VLOOKUP(D396,'Capacidad Financiera'!$C$13:$X$62720,5,0)))","v":229930000},33.296713121384769,{"$f":"IF(OR(D396=\"\",E396=\"\",F396=\"\"),\"\",IF(AND(G396>0,G396<=CapFinanciera1),Puntajes!$D$12,IF(AND(G396>CapFinanciera1,G396<=CapFinanciera2),Puntajes!$D$13,IF(AND(G396>CapFinanciera2,G396<=CapFinanciera3),Puntajes!$D$14,IF(AND(G396>CapFinanciera3,G396<=CapFinanciera4),Puntajes!$D$15,IF(G396>CapFinanciera4,Puntajes!$D$16,0))))))","v":40}]
[null,null,{"$f":"+'Capacidad Financiera'!B400","v":""},{"$f":"IF(ISERROR(VLOOKUP(C397,'Capacidad Financiera'!$B$12:$X$62720,2,0)),\"\",VLOOKUP(C397,'Capacidad Financiera'!$B$12:$X$3580,2,0))","v":0},{"$f":"IF(OR(C397=\"\",D397=\"\"),\"\",IF(ISERROR(VLOOKUP(D397,'Capacidad Financiera'!$C$13:$X$62720,3,0)),\"\",VLOOKUP(D397,'Capacidad Financiera'!$C$13:$X$62720,3,0)))","v":""},{"$f":"IF(OR(C397=\"\",D397=\"\"),\"\",IF(ISERROR(VLOOKUP(D397,'Capacidad Financiera'!$C$13:$X$62720,5,0)),\"\",VLOOKUP(D397,'Capacidad Financiera'!$C$13:$X$62720,5,0)))","v":""},"",{"$f":"IF(OR(D397=\"\",E397=\"\",F397=\"\"),\"\",IF(AND(G397>0,G397<=CapFinanciera1),Puntajes!$D$12,IF(AND(G397>CapFinanciera1,G397<=CapFinanciera2),Puntajes!$D$13,IF(AND(G397>CapFinanciera2,G397<=CapFinanciera3),Puntajes!$D$14,IF(AND(G397>CapFinanciera3,G397<=CapFinanciera4),Puntajes!$D$15,IF(G397>CapFinanciera4,Puntajes!$D$16,0))))))","v":""}]
[null,null,{"$f":"+'Capacidad Financiera'!B401","v":""},{"$f":"IF(ISERROR(VLOOKUP(C398,'Capacidad Financiera'!$B$12:$X$62720,2,0)),\"\",VLOOKUP(C398,'Capacidad Financiera'!$B$12:$X$3580,2,0))","v":0},{"$f":"IF(OR(C398=\"\",D398=\"\"),\"\",IF(ISERROR(VLOOKUP(D398,'Capacidad Financiera'!$C$13:$X$62720,3,0)),\"\",VLOOKUP(D398,'Capacidad Financiera'!$C$13:$X$62720,3,0)))","v":""},{"$f":"IF(OR(C398=\"\",D398=\"\"),\"\",IF(ISERROR(VLOOKUP(D398,'Capacidad Financiera'!$C$13:$X$62720,5,0)),\"\",VLOOKUP(D398,'Capacidad Financiera'!$C$13:$X$62720,5,0)))","v":""},"",{"$f":"IF(OR(D398=\"\",E398=\"\",F398=\"\"),\"\",IF(AND(G398>0,G398<=CapFinanciera1),Puntajes!$D$12,IF(AND(G398>CapFinanciera1,G398<=CapFinanciera2),Puntajes!$D$13,IF(AND(G398>CapFinanciera2,G398<=CapFinanciera3),Puntajes!$D$14,IF(AND(G398>CapFinanciera3,G398<=CapFinanciera4),Puntajes!$D$15,IF(G398>CapFinanciera4,Puntajes!$D$16,0))))))","v":""}]
[null,null,{"$f":"+'Capacidad Financiera'!B402","v":""},{"$f":"IF(ISERROR(VLOOKUP(C399,'Capacidad Financiera'!$B$12:$X$62720,2,0)),\"\",VLOOKUP(C399,'Capacidad Financiera'!$B$12:$X$3580,2,0))","v":0},{"$f":"IF(OR(C399=\"\",D399=\"\"),\"\",IF(ISERROR(VLOOKUP(D399,'Capacidad Financiera'!$C$13:$X$62720,3,0)),\"\",VLOOKUP(D399,'Capacidad Financiera'!$C$13:$X$62720,3,0)))","v":""},{"$f":"IF(OR(C399=\"\",D399=\"\"),\"\",IF(ISERROR(VLOOKUP(D399,'Capacidad Financiera'!$C$13:$X$62720,5,0)),\"\",VLOOKUP(D399,'Capacidad Financiera'!$C$13:$X$62720,5,0)))","v":""},"",{"$f":"IF(OR(D399=\"\",E399=\"\",F399=\"\"),\"\",IF(AND(G399>0,G399<=CapFinanciera1),Puntajes!$D$12,IF(AND(G399>CapFinanciera1,G399<=CapFinanciera2),Puntajes!$D$13,IF(AND(G399>CapFinanciera2,G399<=CapFinanciera3),Puntajes!$D$14,IF(AND(G399>CapFinanciera3,G399<=CapFinanciera4),Puntajes!$D$15,IF(G399>CapFinanciera4,Puntajes!$D$16,0))))))","v":""}]
[null,null,{"$f":"+'Capacidad Financiera'!B403","v":""},{"$f":"IF(ISERROR(VLOOKUP(C400,'Capacidad Financiera'!$B$12:$X$62720,2,0)),\"\",VLOOKUP(C400,'Capacidad Financiera'!$B$12:$X$3580,2,0))","v":0},{"$f":"IF(OR(C400=\"\",D400=\"\"),\"\",IF(ISERROR(VLOOKUP(D400,'Capacidad Financiera'!$C$13:$X$62720,3,0)),\"\",VLOOKUP(D400,'Capacidad Financiera'!$C$13:$X$62720,3,0)))","v":""},{"$f":"IF(OR(C400=\"\",D400=\"\"),\"\",IF(ISERROR(VLOOKUP(D400,'Capacidad Financiera'!$C$13:$X$62720,5,0)),\"\",VLOOKUP(D400,'Capacidad Financiera'!$C$13:$X$62720,5,0)))","v":""},"",{"$f":"IF(OR(D400=\"\",E400=\"\",F400=\"\"),\"\",IF(AND(G400>0,G400<=CapFinanciera1),Puntajes!$D$12,IF(AND(G400>CapFinanciera1,G400<=CapFinanciera2),Puntajes!$D$13,IF(AND(G400>CapFinanciera2,G400<=CapFinanciera3),Puntajes!$D$14,IF(AND(G400>CapFinanciera3,G400<=CapFinanciera4),Puntajes!$D$15,IF(G400>CapFinanciera4,Puntajes!$D$16,0))))))","v":""}]
[null,null,{"$f":"+'Capacidad Financiera'!B404","v":""},{"$f":"IF(ISERROR(VLOOKUP(C401,'Capacidad Financiera'!$B$12:$X$62720,2,0)),\"\",VLOOKUP(C401,'Capacidad Financiera'!$B$12:$X$3580,2,0))","v":0},{"$f":"IF(OR(C401=\"\",D401=\"\"),\"\",IF(ISERROR(VLOOKUP(D401,'Capacidad Financiera'!$C$13:$X$62720,3,0)),\"\",VLOOKUP(D401,'Capacidad Financiera'!$C$13:$X$62720,3,0)))","v":""},{"$f":"IF(OR(C401=\"\",D401=\"\"),\"\",IF(ISERROR(VLOOKUP(D401,'Capacidad Financiera'!$C$13:$X$62720,5,0)),\"\",VLOOKUP(D401,'Capacidad Financiera'!$C$13:$X$62720,5,0)))","v":""},"",{"$f":"IF(OR(D401=\"\",E401=\"\",F401=\"\"),\"\",IF(AND(G401>0,G401<=CapFinanciera1),Puntajes!$D$12,IF(AND(G401>CapFinanciera1,G401<=CapFinanciera2),Puntajes!$D$13,IF(AND(G401>CapFinanciera2,G401<=CapFinanciera3),Puntajes!$D$14,IF(AND(G401>CapFinanciera3,G401<=CapFinanciera4),Puntajes!$D$15,IF(G401>CapFinanciera4,Puntajes!$D$16,0))))))","v":""}]
[null,null,{"$f":"+'Capacidad Financiera'!B405","v":""},{"$f":"IF(ISERROR(VLOOKUP(C402,'Capacidad Financiera'!$B$12:$X$62720,2,0)),\"\",VLOOKUP(C402,'Capacidad Financiera'!$B$12:$X$3580,2,0))","v":0},{"$f":"IF(OR(C402=\"\",D402=\"\"),\"\",IF(ISERROR(VLOOKUP(D402,'Capacidad Financiera'!$C$13:$X$62720,3,0)),\"\",VLOOKUP(D402,'Capacidad Financiera'!$C$13:$X$62720,3,0)))","v":""},{"$f":"IF(OR(C402=\"\",D402=\"\"),\"\",IF(ISERROR(VLOOKUP(D402,'Capacidad Financiera'!$C$13:$X$62720,5,0)),\"\",VLOOKUP(D402,'Capacidad Financiera'!$C$13:$X$62720,5,0)))","v":""},"",{"$f":"IF(OR(D402=\"\",E402=\"\",F402=\"\"),\"\",IF(AND(G402>0,G402<=CapFinanciera1),Puntajes!$D$12,IF(AND(G402>CapFinanciera1,G402<=CapFinanciera2),Puntajes!$D$13,IF(AND(G402>CapFinanciera2,G402<=CapFinanciera3),Puntajes!$D$14,IF(AND(G402>CapFinanciera3,G402<=CapFinanciera4),Puntajes!$D$15,IF(G402>CapFinanciera4,Puntajes!$D$16,0))))))","v":""}]
[null,null,{"$f":"+'Capacidad Financiera'!B406","v":""},{"$f":"IF(ISERROR(VLOOKUP(C403,'Capacidad Financiera'!$B$12:$X$62720,2,0)),\"\",VLOOKUP(C403,'Capacidad Financiera'!$B$12:$X$3580,2,0))","v":0},{"$f":"IF(OR(C403=\"\",D403=\"\"),\"\",IF(ISERROR(VLOOKUP(D403,'Capacidad Financiera'!$C$13:$X$62720,3,0)),\"\",VLOOKUP(D403,'Capacidad Financiera'!$C$13:$X$62720,3,0)))","v":""},{"$f":"IF(OR(C403=\"\",D403=\"\"),\"\",IF(ISERROR(VLOOKUP(D403,'Capacidad Financiera'!$C$13:$X$62720,5,0)),\"\",VLOOKUP(D403,'Capacidad Financiera'!$C$13:$X$62720,5,0)))","v":""},"",{"$f":"IF(OR(D403=\"\",E403=\"\",F403=\"\"),\"\",IF(AND(G403>0,G403<=CapFinanciera1),Puntajes!$D$12,IF(AND(G403>CapFinanciera1,G403<=CapFinanciera2),Puntajes!$D$13,IF(AND(G403>CapFinanciera2,G403<=CapFinanciera3),Puntajes!$D$14,IF(AND(G403>CapFinanciera3,G403<=CapFinanciera4),Puntajes!$D$15,IF(G403>CapFinanciera4,Puntajes!$D$16,0))))))","v":""}]
[null,null,{"$f":"+'Capacidad Financiera'!B407","v":""},{"$f":"IF(ISERROR(VLOOKUP(C404,'Capacidad Financiera'!$B$12:$X$62720,2,0)),\"\",VLOOKUP(C404,'Capacidad Financiera'!$B$12:$X$3580,2,0))","v":0},{"$f":"IF(OR(C404=\"\",D404=\"\"),\"\",IF(ISERROR(VLOOKUP(D404,'Capacidad Financiera'!$C$13:$X$62720,3,0)),\"\",VLOOKUP(D404,'Capacidad Financiera'!$C$13:$X$62720,3,0)))","v":""},{"$f":"IF(OR(C404=\"\",D404=\"\"),\"\",IF(ISERROR(VLOOKUP(D404,'Capacidad Financiera'!$C$13:$X$62720,5,0)),\"\",VLOOKUP(D404,'Capacidad Financiera'!$C$13:$X$62720,5,0)))","v":""},"",{"$f":"IF(OR(D404=\"\",E404=\"\",F404=\"\"),\"\",IF(AND(G404>0,G404<=CapFinanciera1),Puntajes!$D$12,IF(AND(G404>CapFinanciera1,G404<=CapFinanciera2),Puntajes!$D$13,IF(AND(G404>CapFinanciera2,G404<=CapFinanciera3),Puntajes!$D$14,IF(AND(G404>CapFinanciera3,G404<=CapFinanciera4),Puntajes!$D$15,IF(G404>CapFinanciera4,Puntajes!$D$16,0))))))","v":""}]
[null,null,37,{"$f":"IF(ISERROR(VLOOKUP(C405,'Capacidad Financiera'!$B$12:$X$62720,2,0)),\"\",VLOOKUP(C405,'Capacidad Financiera'!$B$12:$X$3580,2,0))","v":"CONSORCIO SALITRE "},{"$f":"IF(C406=\"\",IF(C405<>\"\",IF(ISERROR(VLOOKUP(D405,'Capacidad Financiera'!$C$12:$H$22,3,0)),\"\",VLOOKUP(D405,'Capacidad Financiera'!$C$12:$H$22,3,0))),\"\")","v":""},{"$f":"IF(C406=\"\",IF(C405<>\"\",IF(ISERROR(VLOOKUP(D405,'Capacidad Financiera'!$C$12:$H$22,5,0)),\"\",VLOOKUP(D405,'Capacidad Financiera'!$C$12:$H$22,5,0))),\"\")","v":""},{"$f":"IF(OR(D405=\"\",E405=\"\",F405=\"\"),\"\",IF(OR(E405=0,F405=0),0,E405/F405))","v":""},{"$f":"IF(C406=\"\",IF(AND(E405=\"\",F405=\"\"),\"\",IF(AND(G405>0,G405<=CapFinanciera1),Puntajes!$D$12,IF(AND(G405>CapFinanciera1,G405<=CapFinanciera2),Puntajes!$D$13,IF(AND(G405>CapFinanciera2,G405<=CapFinanciera3),Puntajes!$D$14,IF(AND(G405>CapFinanciera3,G405<=CapFinanciera4),Puntajes!$D$15,IF(G405>CapFinanciera4,Puntajes!$D$16,0)))))),\"\")","v":""}]
[null,null,{"$f":"+'Capacidad Financiera'!B409","v":37.1},{"$f":"IF(ISERROR(VLOOKUP(C406,'Capacidad Financiera'!$B$12:$X$62720,2,0)),\"\",VLOOKUP(C406,'Capacidad Financiera'!$B$12:$X$3580,2,0))","v":"CONSTRUCTORA CRD S.A."},{"$f":"IF(OR(C406=\"\",D406=\"\"),\"\",IF(ISERROR(VLOOKUP(D406,'Capacidad Financiera'!$C$13:$X$62720,3,0)),\"\",VLOOKUP(D406,'Capacidad Financiera'!$C$13:$X$62720,3,0)))","v":11878764442},{"$f":"IF(OR(C406=\"\",D406=\"\"),\"\",IF(ISERROR(VLOOKUP(D406,'Capacidad Financiera'!$C$13:$X$62720,5,0)),\"\",VLOOKUP(D406,'Capacidad Financiera'!$C$13:$X$62720,5,0)))","v":3616916990},{"$f":"IF(OR(D406=\"\",E406=\"\",F406=\"\"),\"\",IF(OR(E406=0,F406=0),0,E406/F406))","v":3.2842236841050645},{"$f":"IF(OR(D406=\"\",E406=\"\",F406=\"\"),\"\",IF(AND(G406>0,G406<=CapFinanciera1),Puntajes!$D$12,IF(AND(G406>CapFinanciera1,G406<=CapFinanciera2),Puntajes!$D$13,IF(AND(G406>CapFinanciera2,G406<=CapFinanciera3),Puntajes!$D$14,IF(AND(G406>CapFinanciera3,G406<=CapFinanciera4),Puntajes!$D$15,IF(G406>CapFinanciera4,Puntajes!$D$16,0))))))","v":40}]
[null,null,{"$f":"+'Capacidad Financiera'!B410","v":37.200000000000003},{"$f":"IF(ISERROR(VLOOKUP(C407,'Capacidad Financiera'!$B$12:$X$62720,2,0)),\"\",VLOOKUP(C407,'Capacidad Financiera'!$B$12:$X$3580,2,0))","v":"CONSTRUCTORA S&L S.A.S."},{"$f":"IF(OR(C407=\"\",D407=\"\"),\"\",IF(ISERROR(VLOOKUP(D407,'Capacidad Financiera'!$C$13:$X$62720,3,0)),\"\",VLOOKUP(D407,'Capacidad Financiera'!$C$13:$X$62720,3,0)))","v":15059846476},{"$f":"IF(OR(C407=\"\",D407=\"\"),\"\",IF(ISERROR(VLOOKUP(D407,'Capacidad Financiera'!$C$13:$X$62720,5,0)),\"\",VLOOKUP(D407,'Capacidad Financiera'!$C$13:$X$62720,5,0)))","v":14076339811},1.0698694886742814,{"$f":"IF(OR(D407=\"\",E407=\"\",F407=\"\"),\"\",IF(AND(G407>0,G407<=CapFinanciera1),Puntajes!$D$12,IF(AND(G407>CapFinanciera1,G407<=CapFinanciera2),Puntajes!$D$13,IF(AND(G407>CapFinanciera2,G407<=CapFinanciera3),Puntajes!$D$14,IF(AND(G407>CapFinanciera3,G407<=CapFinanciera4),Puntajes!$D$15,IF(G407>CapFinanciera4,Puntajes!$D$16,0))))))","v":35}]
[null,null,{"$f":"+'Capacidad Financiera'!B411","v":""},{"$f":"IF(ISERROR(VLOOKUP(C408,'Capacidad Financiera'!$B$12:$X$62720,2,0)),\"\",VLOOKUP(C408,'Capacidad Financiera'!$B$12:$X$3580,2,0))","v":0},{"$f":"IF(OR(C408=\"\",D408=\"\"),\"\",IF(ISERROR(VLOOKUP(D408,'Capacidad Financiera'!$C$13:$X$62720,3,0)),\"\",VLOOKUP(D408,'Capacidad Financiera'!$C$13:$X$62720,3,0)))","v":""},{"$f":"IF(OR(C408=\"\",D408=\"\"),\"\",IF(ISERROR(VLOOKUP(D408,'Capacidad Financiera'!$C$13:$X$62720,5,0)),\"\",VLOOKUP(D408,'Capacidad Financiera'!$C$13:$X$62720,5,0)))","v":""},"",{"$f":"IF(OR(D408=\"\",E408=\"\",F408=\"\"),\"\",IF(AND(G408>0,G408<=CapFinanciera1),Puntajes!$D$12,IF(AND(G408>CapFinanciera1,G408<=CapFinanciera2),Puntajes!$D$13,IF(AND(G408>CapFinanciera2,G408<=CapFinanciera3),Puntajes!$D$14,IF(AND(G408>CapFinanciera3,G408<=CapFinanciera4),Puntajes!$D$15,IF(G408>CapFinanciera4,Puntajes!$D$16,0))))))","v":""}]
[null,null,{"$f":"+'Capacidad Financiera'!B412","v":""},{"$f":"IF(ISERROR(VLOOKUP(C409,'Capacidad Financiera'!$B$12:$X$62720,2,0)),\"\",VLOOKUP(C409,'Capacidad Financiera'!$B$12:$X$3580,2,0))","v":0},{"$f":"IF(OR(C409=\"\",D409=\"\"),\"\",IF(ISERROR(VLOOKUP(D409,'Capacidad Financiera'!$C$13:$X$62720,3,0)),\"\",VLOOKUP(D409,'Capacidad Financiera'!$C$13:$X$62720,3,0)))","v":""},{"$f":"IF(OR(C409=\"\",D409=\"\"),\"\",IF(ISERROR(VLOOKUP(D409,'Capacidad Financiera'!$C$13:$X$62720,5,0)),\"\",VLOOKUP(D409,'Capacidad Financiera'!$C$13:$X$62720,5,0)))","v":""},"",{"$f":"IF(OR(D409=\"\",E409=\"\",F409=\"\"),\"\",IF(AND(G409>0,G409<=CapFinanciera1),Puntajes!$D$12,IF(AND(G409>CapFinanciera1,G409<=CapFinanciera2),Puntajes!$D$13,IF(AND(G409>CapFinanciera2,G409<=CapFinanciera3),Puntajes!$D$14,IF(AND(G409>CapFinanciera3,G409<=CapFinanciera4),Puntajes!$D$15,IF(G409>CapFinanciera4,Puntajes!$D$16,0))))))","v":""}]
[null,null,{"$f":"+'Capacidad Financiera'!B413","v":""},{"$f":"IF(ISERROR(VLOOKUP(C410,'Capacidad Financiera'!$B$12:$X$62720,2,0)),\"\",VLOOKUP(C410,'Capacidad Financiera'!$B$12:$X$3580,2,0))","v":0},{"$f":"IF(OR(C410=\"\",D410=\"\"),\"\",IF(ISERROR(VLOOKUP(D410,'Capacidad Financiera'!$C$13:$X$62720,3,0)),\"\",VLOOKUP(D410,'Capacidad Financiera'!$C$13:$X$62720,3,0)))","v":""},{"$f":"IF(OR(C410=\"\",D410=\"\"),\"\",IF(ISERROR(VLOOKUP(D410,'Capacidad Financiera'!$C$13:$X$62720,5,0)),\"\",VLOOKUP(D410,'Capacidad Financiera'!$C$13:$X$62720,5,0)))","v":""},"",{"$f":"IF(OR(D410=\"\",E410=\"\",F410=\"\"),\"\",IF(AND(G410>0,G410<=CapFinanciera1),Puntajes!$D$12,IF(AND(G410>CapFinanciera1,G410<=CapFinanciera2),Puntajes!$D$13,IF(AND(G410>CapFinanciera2,G410<=CapFinanciera3),Puntajes!$D$14,IF(AND(G410>CapFinanciera3,G410<=CapFinanciera4),Puntajes!$D$15,IF(G410>CapFinanciera4,Puntajes!$D$16,0))))))","v":""}]
[null,null,{"$f":"+'Capacidad Financiera'!B414","v":""},{"$f":"IF(ISERROR(VLOOKUP(C411,'Capacidad Financiera'!$B$12:$X$62720,2,0)),\"\",VLOOKUP(C411,'Capacidad Financiera'!$B$12:$X$3580,2,0))","v":0},{"$f":"IF(OR(C411=\"\",D411=\"\"),\"\",IF(ISERROR(VLOOKUP(D411,'Capacidad Financiera'!$C$13:$X$62720,3,0)),\"\",VLOOKUP(D411,'Capacidad Financiera'!$C$13:$X$62720,3,0)))","v":""},{"$f":"IF(OR(C411=\"\",D411=\"\"),\"\",IF(ISERROR(VLOOKUP(D411,'Capacidad Financiera'!$C$13:$X$62720,5,0)),\"\",VLOOKUP(D411,'Capacidad Financiera'!$C$13:$X$62720,5,0)))","v":""},"",{"$f":"IF(OR(D411=\"\",E411=\"\",F411=\"\"),\"\",IF(AND(G411>0,G411<=CapFinanciera1),Puntajes!$D$12,IF(AND(G411>CapFinanciera1,G411<=CapFinanciera2),Puntajes!$D$13,IF(AND(G411>CapFinanciera2,G411<=CapFinanciera3),Puntajes!$D$14,IF(AND(G411>CapFinanciera3,G411<=CapFinanciera4),Puntajes!$D$15,IF(G411>CapFinanciera4,Puntajes!$D$16,0))))))","v":""}]
[null,null,{"$f":"+'Capacidad Financiera'!B415","v":""},{"$f":"IF(ISERROR(VLOOKUP(C412,'Capacidad Financiera'!$B$12:$X$62720,2,0)),\"\",VLOOKUP(C412,'Capacidad Financiera'!$B$12:$X$3580,2,0))","v":0},{"$f":"IF(OR(C412=\"\",D412=\"\"),\"\",IF(ISERROR(VLOOKUP(D412,'Capacidad Financiera'!$C$13:$X$62720,3,0)),\"\",VLOOKUP(D412,'Capacidad Financiera'!$C$13:$X$62720,3,0)))","v":""},{"$f":"IF(OR(C412=\"\",D412=\"\"),\"\",IF(ISERROR(VLOOKUP(D412,'Capacidad Financiera'!$C$13:$X$62720,5,0)),\"\",VLOOKUP(D412,'Capacidad Financiera'!$C$13:$X$62720,5,0)))","v":""},"",{"$f":"IF(OR(D412=\"\",E412=\"\",F412=\"\"),\"\",IF(AND(G412>0,G412<=CapFinanciera1),Puntajes!$D$12,IF(AND(G412>CapFinanciera1,G412<=CapFinanciera2),Puntajes!$D$13,IF(AND(G412>CapFinanciera2,G412<=CapFinanciera3),Puntajes!$D$14,IF(AND(G412>CapFinanciera3,G412<=CapFinanciera4),Puntajes!$D$15,IF(G412>CapFinanciera4,Puntajes!$D$16,0))))))","v":""}]
[null,null,{"$f":"+'Capacidad Financiera'!B416","v":""},{"$f":"IF(ISERROR(VLOOKUP(C413,'Capacidad Financiera'!$B$12:$X$62720,2,0)),\"\",VLOOKUP(C413,'Capacidad Financiera'!$B$12:$X$3580,2,0))","v":0},{"$f":"IF(OR(C413=\"\",D413=\"\"),\"\",IF(ISERROR(VLOOKUP(D413,'Capacidad Financiera'!$C$13:$X$62720,3,0)),\"\",VLOOKUP(D413,'Capacidad Financiera'!$C$13:$X$62720,3,0)))","v":""},{"$f":"IF(OR(C413=\"\",D413=\"\"),\"\",IF(ISERROR(VLOOKUP(D413,'Capacidad Financiera'!$C$13:$X$62720,5,0)),\"\",VLOOKUP(D413,'Capacidad Financiera'!$C$13:$X$62720,5,0)))","v":""},"",{"$f":"IF(OR(D413=\"\",E413=\"\",F413=\"\"),\"\",IF(AND(G413>0,G413<=CapFinanciera1),Puntajes!$D$12,IF(AND(G413>CapFinanciera1,G413<=CapFinanciera2),Puntajes!$D$13,IF(AND(G413>CapFinanciera2,G413<=CapFinanciera3),Puntajes!$D$14,IF(AND(G413>CapFinanciera3,G413<=CapFinanciera4),Puntajes!$D$15,IF(G413>CapFinanciera4,Puntajes!$D$16,0))))))","v":""}]
[null,null,{"$f":"+'Capacidad Financiera'!B417","v":""},{"$f":"IF(ISERROR(VLOOKUP(C414,'Capacidad Financiera'!$B$12:$X$62720,2,0)),\"\",VLOOKUP(C414,'Capacidad Financiera'!$B$12:$X$3580,2,0))","v":0},{"$f":"IF(OR(C414=\"\",D414=\"\"),\"\",IF(ISERROR(VLOOKUP(D414,'Capacidad Financiera'!$C$13:$X$62720,3,0)),\"\",VLOOKUP(D414,'Capacidad Financiera'!$C$13:$X$62720,3,0)))","v":""},{"$f":"IF(OR(C414=\"\",D414=\"\"),\"\",IF(ISERROR(VLOOKUP(D414,'Capacidad Financiera'!$C$13:$X$62720,5,0)),\"\",VLOOKUP(D414,'Capacidad Financiera'!$C$13:$X$62720,5,0)))","v":""},"",{"$f":"IF(OR(D414=\"\",E414=\"\",F414=\"\"),\"\",IF(AND(G414>0,G414<=CapFinanciera1),Puntajes!$D$12,IF(AND(G414>CapFinanciera1,G414<=CapFinanciera2),Puntajes!$D$13,IF(AND(G414>CapFinanciera2,G414<=CapFinanciera3),Puntajes!$D$14,IF(AND(G414>CapFinanciera3,G414<=CapFinanciera4),Puntajes!$D$15,IF(G414>CapFinanciera4,Puntajes!$D$16,0))))))","v":""}]
[null,null,{"$f":"+'Capacidad Financiera'!B418","v":""},{"$f":"IF(ISERROR(VLOOKUP(C415,'Capacidad Financiera'!$B$12:$X$62720,2,0)),\"\",VLOOKUP(C415,'Capacidad Financiera'!$B$12:$X$3580,2,0))","v":0},{"$f":"IF(OR(C415=\"\",D415=\"\"),\"\",IF(ISERROR(VLOOKUP(D415,'Capacidad Financiera'!$C$13:$X$62720,3,0)),\"\",VLOOKUP(D415,'Capacidad Financiera'!$C$13:$X$62720,3,0)))","v":""},{"$f":"IF(OR(C415=\"\",D415=\"\"),\"\",IF(ISERROR(VLOOKUP(D415,'Capacidad Financiera'!$C$13:$X$62720,5,0)),\"\",VLOOKUP(D415,'Capacidad Financiera'!$C$13:$X$62720,5,0)))","v":""},"",{"$f":"IF(OR(D415=\"\",E415=\"\",F415=\"\"),\"\",IF(AND(G415>0,G415<=CapFinanciera1),Puntajes!$D$12,IF(AND(G415>CapFinanciera1,G415<=CapFinanciera2),Puntajes!$D$13,IF(AND(G415>CapFinanciera2,G415<=CapFinanciera3),Puntajes!$D$14,IF(AND(G415>CapFinanciera3,G415<=CapFinanciera4),Puntajes!$D$15,IF(G415>CapFinanciera4,Puntajes!$D$16,0))))))","v":""}]
[null,null,38,{"$f":"IF(ISERROR(VLOOKUP(C416,'Capacidad Financiera'!$B$12:$X$62720,2,0)),\"\",VLOOKUP(C416,'Capacidad Financiera'!$B$12:$X$3580,2,0))","v":"CONSORCIO PATIOS 444"},{"$f":"IF(C417=\"\",IF(C416<>\"\",IF(ISERROR(VLOOKUP(D416,'Capacidad Financiera'!$C$12:$H$22,3,0)),\"\",VLOOKUP(D416,'Capacidad Financiera'!$C$12:$H$22,3,0))),\"\")","v":""},{"$f":"IF(C417=\"\",IF(C416<>\"\",IF(ISERROR(VLOOKUP(D416,'Capacidad Financiera'!$C$12:$H$22,5,0)),\"\",VLOOKUP(D416,'Capacidad Financiera'!$C$12:$H$22,5,0))),\"\")","v":""},{"$f":"IF(OR(D416=\"\",E416=\"\",F416=\"\"),\"\",IF(OR(E416=0,F416=0),0,E416/F416))","v":""},{"$f":"IF(C417=\"\",IF(AND(E416=\"\",F416=\"\"),\"\",IF(AND(G416>0,G416<=CapFinanciera1),Puntajes!$D$12,IF(AND(G416>CapFinanciera1,G416<=CapFinanciera2),Puntajes!$D$13,IF(AND(G416>CapFinanciera2,G416<=CapFinanciera3),Puntajes!$D$14,IF(AND(G416>CapFinanciera3,G416<=CapFinanciera4),Puntajes!$D$15,IF(G416>CapFinanciera4,Puntajes!$D$16,0)))))),\"\")","v":""}]
[null,null,{"$f":"+'Capacidad Financiera'!B420","v":38.1},{"$f":"IF(ISERROR(VLOOKUP(C417,'Capacidad Financiera'!$B$12:$X$62720,2,0)),\"\",VLOOKUP(C417,'Capacidad Financiera'!$B$12:$X$3580,2,0))","v":"CONSTRUSOCIAL S.A.S."},{"$f":"IF(OR(C417=\"\",D417=\"\"),\"\",IF(ISERROR(VLOOKUP(D417,'Capacidad Financiera'!$C$13:$X$62720,3,0)),\"\",VLOOKUP(D417,'Capacidad Financiera'!$C$13:$X$62720,3,0)))","v":2537335136.4400001},{"$f":"IF(OR(C417=\"\",D417=\"\"),\"\",IF(ISERROR(VLOOKUP(D417,'Capacidad Financiera'!$C$13:$X$62720,5,0)),\"\",VLOOKUP(D417,'Capacidad Financiera'!$C$13:$X$62720,5,0)))","v":216259405.50999999},{"$f":"IF(OR(D417=\"\",E417=\"\",F417=\"\"),\"\",IF(OR(E417=0,F417=0),0,E417/F417))","v":11.732831367293628},{"$f":"IF(OR(D417=\"\",E417=\"\",F417=\"\"),\"\",IF(AND(G417>0,G417<=CapFinanciera1),Puntajes!$D$12,IF(AND(G417>CapFinanciera1,G417<=CapFinanciera2),Puntajes!$D$13,IF(AND(G417>CapFinanciera2,G417<=CapFinanciera3),Puntajes!$D$14,IF(AND(G417>CapFinanciera3,G417<=CapFinanciera4),Puntajes!$D$15,IF(G417>CapFinanciera4,Puntajes!$D$16,0))))))","v":40}]
[null,null,{"$f":"+'Capacidad Financiera'!B421","v":38.200000000000003},{"$f":"IF(ISERROR(VLOOKUP(C418,'Capacidad Financiera'!$B$12:$X$62720,2,0)),\"\",VLOOKUP(C418,'Capacidad Financiera'!$B$12:$X$3580,2,0))","v":"CORPOANDINA S.A.S."},{"$f":"IF(OR(C418=\"\",D418=\"\"),\"\",IF(ISERROR(VLOOKUP(D418,'Capacidad Financiera'!$C$13:$X$62720,3,0)),\"\",VLOOKUP(D418,'Capacidad Financiera'!$C$13:$X$62720,3,0)))","v":3648060567},{"$f":"IF(OR(C418=\"\",D418=\"\"),\"\",IF(ISERROR(VLOOKUP(D418,'Capacidad Financiera'!$C$13:$X$62720,5,0)),\"\",VLOOKUP(D418,'Capacidad Financiera'!$C$13:$X$62720,5,0)))","v":1644480731},2.2183662588625368,{"$f":"IF(OR(D418=\"\",E418=\"\",F418=\"\"),\"\",IF(AND(G418>0,G418<=CapFinanciera1),Puntajes!$D$12,IF(AND(G418>CapFinanciera1,G418<=CapFinanciera2),Puntajes!$D$13,IF(AND(G418>CapFinanciera2,G418<=CapFinanciera3),Puntajes!$D$14,IF(AND(G418>CapFinanciera3,G418<=CapFinanciera4),Puntajes!$D$15,IF(G418>CapFinanciera4,Puntajes!$D$16,0))))))","v":40}]
[null,null,{"$f":"+'Capacidad Financiera'!B422","v":38.300000000000004},{"$f":"IF(ISERROR(VLOOKUP(C419,'Capacidad Financiera'!$B$12:$X$62720,2,0)),\"\",VLOOKUP(C419,'Capacidad Financiera'!$B$12:$X$3580,2,0))","v":"R&U CONSTRUCTORES S.A.S."},{"$f":"IF(OR(C419=\"\",D419=\"\"),\"\",IF(ISERROR(VLOOKUP(D419,'Capacidad Financiera'!$C$13:$X$62720,3,0)),\"\",VLOOKUP(D419,'Capacidad Financiera'!$C$13:$X$62720,3,0)))","v":9609746267},{"$f":"IF(OR(C419=\"\",D419=\"\"),\"\",IF(ISERROR(VLOOKUP(D419,'Capacidad Financiera'!$C$13:$X$62720,5,0)),\"\",VLOOKUP(D419,'Capacidad Financiera'!$C$13:$X$62720,5,0)))","v":3522085971},2.7284246739359332,{"$f":"IF(OR(D419=\"\",E419=\"\",F419=\"\"),\"\",IF(AND(G419>0,G419<=CapFinanciera1),Puntajes!$D$12,IF(AND(G419>CapFinanciera1,G419<=CapFinanciera2),Puntajes!$D$13,IF(AND(G419>CapFinanciera2,G419<=CapFinanciera3),Puntajes!$D$14,IF(AND(G419>CapFinanciera3,G419<=CapFinanciera4),Puntajes!$D$15,IF(G419>CapFinanciera4,Puntajes!$D$16,0))))))","v":40}]
[null,null,{"$f":"+'Capacidad Financiera'!B423","v":""},{"$f":"IF(ISERROR(VLOOKUP(C420,'Capacidad Financiera'!$B$12:$X$62720,2,0)),\"\",VLOOKUP(C420,'Capacidad Financiera'!$B$12:$X$3580,2,0))","v":0},{"$f":"IF(OR(C420=\"\",D420=\"\"),\"\",IF(ISERROR(VLOOKUP(D420,'Capacidad Financiera'!$C$13:$X$62720,3,0)),\"\",VLOOKUP(D420,'Capacidad Financiera'!$C$13:$X$62720,3,0)))","v":""},{"$f":"IF(OR(C420=\"\",D420=\"\"),\"\",IF(ISERROR(VLOOKUP(D420,'Capacidad Financiera'!$C$13:$X$62720,5,0)),\"\",VLOOKUP(D420,'Capacidad Financiera'!$C$13:$X$62720,5,0)))","v":""},"",{"$f":"IF(OR(D420=\"\",E420=\"\",F420=\"\"),\"\",IF(AND(G420>0,G420<=CapFinanciera1),Puntajes!$D$12,IF(AND(G420>CapFinanciera1,G420<=CapFinanciera2),Puntajes!$D$13,IF(AND(G420>CapFinanciera2,G420<=CapFinanciera3),Puntajes!$D$14,IF(AND(G420>CapFinanciera3,G420<=CapFinanciera4),Puntajes!$D$15,IF(G420>CapFinanciera4,Puntajes!$D$16,0))))))","v":""}]
[null,null,{"$f":"+'Capacidad Financiera'!B424","v":""},{"$f":"IF(ISERROR(VLOOKUP(C421,'Capacidad Financiera'!$B$12:$X$62720,2,0)),\"\",VLOOKUP(C421,'Capacidad Financiera'!$B$12:$X$3580,2,0))","v":0},{"$f":"IF(OR(C421=\"\",D421=\"\"),\"\",IF(ISERROR(VLOOKUP(D421,'Capacidad Financiera'!$C$13:$X$62720,3,0)),\"\",VLOOKUP(D421,'Capacidad Financiera'!$C$13:$X$62720,3,0)))","v":""},{"$f":"IF(OR(C421=\"\",D421=\"\"),\"\",IF(ISERROR(VLOOKUP(D421,'Capacidad Financiera'!$C$13:$X$62720,5,0)),\"\",VLOOKUP(D421,'Capacidad Financiera'!$C$13:$X$62720,5,0)))","v":""},"",{"$f":"IF(OR(D421=\"\",E421=\"\",F421=\"\"),\"\",IF(AND(G421>0,G421<=CapFinanciera1),Puntajes!$D$12,IF(AND(G421>CapFinanciera1,G421<=CapFinanciera2),Puntajes!$D$13,IF(AND(G421>CapFinanciera2,G421<=CapFinanciera3),Puntajes!$D$14,IF(AND(G421>CapFinanciera3,G421<=CapFinanciera4),Puntajes!$D$15,IF(G421>CapFinanciera4,Puntajes!$D$16,0))))))","v":""}]
[null,null,{"$f":"+'Capacidad Financiera'!B425","v":""},{"$f":"IF(ISERROR(VLOOKUP(C422,'Capacidad Financiera'!$B$12:$X$62720,2,0)),\"\",VLOOKUP(C422,'Capacidad Financiera'!$B$12:$X$3580,2,0))","v":0},{"$f":"IF(OR(C422=\"\",D422=\"\"),\"\",IF(ISERROR(VLOOKUP(D422,'Capacidad Financiera'!$C$13:$X$62720,3,0)),\"\",VLOOKUP(D422,'Capacidad Financiera'!$C$13:$X$62720,3,0)))","v":""},{"$f":"IF(OR(C422=\"\",D422=\"\"),\"\",IF(ISERROR(VLOOKUP(D422,'Capacidad Financiera'!$C$13:$X$62720,5,0)),\"\",VLOOKUP(D422,'Capacidad Financiera'!$C$13:$X$62720,5,0)))","v":""},"",{"$f":"IF(OR(D422=\"\",E422=\"\",F422=\"\"),\"\",IF(AND(G422>0,G422<=CapFinanciera1),Puntajes!$D$12,IF(AND(G422>CapFinanciera1,G422<=CapFinanciera2),Puntajes!$D$13,IF(AND(G422>CapFinanciera2,G422<=CapFinanciera3),Puntajes!$D$14,IF(AND(G422>CapFinanciera3,G422<=CapFinanciera4),Puntajes!$D$15,IF(G422>CapFinanciera4,Puntajes!$D$16,0))))))","v":""}]
[null,null,{"$f":"+'Capacidad Financiera'!B426","v":""},{"$f":"IF(ISERROR(VLOOKUP(C423,'Capacidad Financiera'!$B$12:$X$62720,2,0)),\"\",VLOOKUP(C423,'Capacidad Financiera'!$B$12:$X$3580,2,0))","v":0},{"$f":"IF(OR(C423=\"\",D423=\"\"),\"\",IF(ISERROR(VLOOKUP(D423,'Capacidad Financiera'!$C$13:$X$62720,3,0)),\"\",VLOOKUP(D423,'Capacidad Financiera'!$C$13:$X$62720,3,0)))","v":""},{"$f":"IF(OR(C423=\"\",D423=\"\"),\"\",IF(ISERROR(VLOOKUP(D423,'Capacidad Financiera'!$C$13:$X$62720,5,0)),\"\",VLOOKUP(D423,'Capacidad Financiera'!$C$13:$X$62720,5,0)))","v":""},"",{"$f":"IF(OR(D423=\"\",E423=\"\",F423=\"\"),\"\",IF(AND(G423>0,G423<=CapFinanciera1),Puntajes!$D$12,IF(AND(G423>CapFinanciera1,G423<=CapFinanciera2),Puntajes!$D$13,IF(AND(G423>CapFinanciera2,G423<=CapFinanciera3),Puntajes!$D$14,IF(AND(G423>CapFinanciera3,G423<=CapFinanciera4),Puntajes!$D$15,IF(G423>CapFinanciera4,Puntajes!$D$16,0))))))","v":""}]
[null,null,{"$f":"+'Capacidad Financiera'!B427","v":""},{"$f":"IF(ISERROR(VLOOKUP(C424,'Capacidad Financiera'!$B$12:$X$62720,2,0)),\"\",VLOOKUP(C424,'Capacidad Financiera'!$B$12:$X$3580,2,0))","v":0},{"$f":"IF(OR(C424=\"\",D424=\"\"),\"\",IF(ISERROR(VLOOKUP(D424,'Capacidad Financiera'!$C$13:$X$62720,3,0)),\"\",VLOOKUP(D424,'Capacidad Financiera'!$C$13:$X$62720,3,0)))","v":""},{"$f":"IF(OR(C424=\"\",D424=\"\"),\"\",IF(ISERROR(VLOOKUP(D424,'Capacidad Financiera'!$C$13:$X$62720,5,0)),\"\",VLOOKUP(D424,'Capacidad Financiera'!$C$13:$X$62720,5,0)))","v":""},"",{"$f":"IF(OR(D424=\"\",E424=\"\",F424=\"\"),\"\",IF(AND(G424>0,G424<=CapFinanciera1),Puntajes!$D$12,IF(AND(G424>CapFinanciera1,G424<=CapFinanciera2),Puntajes!$D$13,IF(AND(G424>CapFinanciera2,G424<=CapFinanciera3),Puntajes!$D$14,IF(AND(G424>CapFinanciera3,G424<=CapFinanciera4),Puntajes!$D$15,IF(G424>CapFinanciera4,Puntajes!$D$16,0))))))","v":""}]
[null,null,{"$f":"+'Capacidad Financiera'!B428","v":""},{"$f":"IF(ISERROR(VLOOKUP(C425,'Capacidad Financiera'!$B$12:$X$62720,2,0)),\"\",VLOOKUP(C425,'Capacidad Financiera'!$B$12:$X$3580,2,0))","v":0},{"$f":"IF(OR(C425=\"\",D425=\"\"),\"\",IF(ISERROR(VLOOKUP(D425,'Capacidad Financiera'!$C$13:$X$62720,3,0)),\"\",VLOOKUP(D425,'Capacidad Financiera'!$C$13:$X$62720,3,0)))","v":""},{"$f":"IF(OR(C425=\"\",D425=\"\"),\"\",IF(ISERROR(VLOOKUP(D425,'Capacidad Financiera'!$C$13:$X$62720,5,0)),\"\",VLOOKUP(D425,'Capacidad Financiera'!$C$13:$X$62720,5,0)))","v":""},"",{"$f":"IF(OR(D425=\"\",E425=\"\",F425=\"\"),\"\",IF(AND(G425>0,G425<=CapFinanciera1),Puntajes!$D$12,IF(AND(G425>CapFinanciera1,G425<=CapFinanciera2),Puntajes!$D$13,IF(AND(G425>CapFinanciera2,G425<=CapFinanciera3),Puntajes!$D$14,IF(AND(G425>CapFinanciera3,G425<=CapFinanciera4),Puntajes!$D$15,IF(G425>CapFinanciera4,Puntajes!$D$16,0))))))","v":""}]
[null,null,{"$f":"+'Capacidad Financiera'!B429","v":""},{"$f":"IF(ISERROR(VLOOKUP(C426,'Capacidad Financiera'!$B$12:$X$62720,2,0)),\"\",VLOOKUP(C426,'Capacidad Financiera'!$B$12:$X$3580,2,0))","v":0},{"$f":"IF(OR(C426=\"\",D426=\"\"),\"\",IF(ISERROR(VLOOKUP(D426,'Capacidad Financiera'!$C$13:$X$62720,3,0)),\"\",VLOOKUP(D426,'Capacidad Financiera'!$C$13:$X$62720,3,0)))","v":""},{"$f":"IF(OR(C426=\"\",D426=\"\"),\"\",IF(ISERROR(VLOOKUP(D426,'Capacidad Financiera'!$C$13:$X$62720,5,0)),\"\",VLOOKUP(D426,'Capacidad Financiera'!$C$13:$X$62720,5,0)))","v":""},"",{"$f":"IF(OR(D426=\"\",E426=\"\",F426=\"\"),\"\",IF(AND(G426>0,G426<=CapFinanciera1),Puntajes!$D$12,IF(AND(G426>CapFinanciera1,G426<=CapFinanciera2),Puntajes!$D$13,IF(AND(G426>CapFinanciera2,G426<=CapFinanciera3),Puntajes!$D$14,IF(AND(G426>CapFinanciera3,G426<=CapFinanciera4),Puntajes!$D$15,IF(G426>CapFinanciera4,Puntajes!$D$16,0))))))","v":""}]
[null,null,39,{"$f":"IF(ISERROR(VLOOKUP(C427,'Capacidad Financiera'!$B$12:$X$62720,2,0)),\"\",VLOOKUP(C427,'Capacidad Financiera'!$B$12:$X$3580,2,0))","v":"VIAS S.A."},{"$f":"IF(C428=\"\",IF(C427<>\"\",IF(ISERROR(VLOOKUP(D427,'Capacidad Financiera'!$C$12:$H$22,3,0)),\"\",VLOOKUP(D427,'Capacidad Financiera'!$C$12:$H$22,3,0))),\"\")","v":""},{"$f":"IF(C428=\"\",IF(C427<>\"\",IF(ISERROR(VLOOKUP(D427,'Capacidad Financiera'!$C$12:$H$22,5,0)),\"\",VLOOKUP(D427,'Capacidad Financiera'!$C$12:$H$22,5,0))),\"\")","v":""},{"$f":"IF(OR(D427=\"\",E427=\"\",F427=\"\"),\"\",IF(OR(E427=0,F427=0),0,E427/F427))","v":""},{"$f":"IF(C428=\"\",IF(AND(E427=\"\",F427=\"\"),\"\",IF(AND(G427>0,G427<=CapFinanciera1),Puntajes!$D$12,IF(AND(G427>CapFinanciera1,G427<=CapFinanciera2),Puntajes!$D$13,IF(AND(G427>CapFinanciera2,G427<=CapFinanciera3),Puntajes!$D$14,IF(AND(G427>CapFinanciera3,G427<=CapFinanciera4),Puntajes!$D$15,IF(G427>CapFinanciera4,Puntajes!$D$16,0)))))),\"\")","v":""}]
[null,null,{"$f":"+'Capacidad Financiera'!B431","v":39.1},{"$f":"IF(ISERROR(VLOOKUP(C428,'Capacidad Financiera'!$B$12:$X$62720,2,0)),\"\",VLOOKUP(C428,'Capacidad Financiera'!$B$12:$X$3580,2,0))","v":"VIAS S.A."},{"$f":"IF(OR(C428=\"\",D428=\"\"),\"\",IF(ISERROR(VLOOKUP(D428,'Capacidad Financiera'!$C$13:$X$62720,3,0)),\"\",VLOOKUP(D428,'Capacidad Financiera'!$C$13:$X$62720,3,0)))","v":15462013000},{"$f":"IF(OR(C428=\"\",D428=\"\"),\"\",IF(ISERROR(VLOOKUP(D428,'Capacidad Financiera'!$C$13:$X$62720,5,0)),\"\",VLOOKUP(D428,'Capacidad Financiera'!$C$13:$X$62720,5,0)))","v":6057921000},{"$f":"IF(OR(D428=\"\",E428=\"\",F428=\"\"),\"\",IF(OR(E428=0,F428=0),0,E428/F428))","v":2.5523629311111851},{"$f":"IF(OR(D428=\"\",E428=\"\",F428=\"\"),\"\",IF(AND(G428>0,G428<=CapFinanciera1),Puntajes!$D$12,IF(AND(G428>CapFinanciera1,G428<=CapFinanciera2),Puntajes!$D$13,IF(AND(G428>CapFinanciera2,G428<=CapFinanciera3),Puntajes!$D$14,IF(AND(G428>CapFinanciera3,G428<=CapFinanciera4),Puntajes!$D$15,IF(G428>CapFinanciera4,Puntajes!$D$16,0))))))","v":40}]
[null,null,{"$f":"+'Capacidad Financiera'!B432","v":""},{"$f":"IF(ISERROR(VLOOKUP(C429,'Capacidad Financiera'!$B$12:$X$62720,2,0)),\"\",VLOOKUP(C429,'Capacidad Financiera'!$B$12:$X$3580,2,0))","v":0},{"$f":"IF(OR(C429=\"\",D429=\"\"),\"\",IF(ISERROR(VLOOKUP(D429,'Capacidad Financiera'!$C$13:$X$62720,3,0)),\"\",VLOOKUP(D429,'Capacidad Financiera'!$C$13:$X$62720,3,0)))","v":""},{"$f":"IF(OR(C429=\"\",D429=\"\"),\"\",IF(ISERROR(VLOOKUP(D429,'Capacidad Financiera'!$C$13:$X$62720,5,0)),\"\",VLOOKUP(D429,'Capacidad Financiera'!$C$13:$X$62720,5,0)))","v":""},"",{"$f":"IF(OR(D429=\"\",E429=\"\",F429=\"\"),\"\",IF(AND(G429>0,G429<=CapFinanciera1),Puntajes!$D$12,IF(AND(G429>CapFinanciera1,G429<=CapFinanciera2),Puntajes!$D$13,IF(AND(G429>CapFinanciera2,G429<=CapFinanciera3),Puntajes!$D$14,IF(AND(G429>CapFinanciera3,G429<=CapFinanciera4),Puntajes!$D$15,IF(G429>CapFinanciera4,Puntajes!$D$16,0))))))","v":""}]
[null,null,{"$f":"+'Capacidad Financiera'!B433","v":""},{"$f":"IF(ISERROR(VLOOKUP(C430,'Capacidad Financiera'!$B$12:$X$62720,2,0)),\"\",VLOOKUP(C430,'Capacidad Financiera'!$B$12:$X$3580,2,0))","v":0},{"$f":"IF(OR(C430=\"\",D430=\"\"),\"\",IF(ISERROR(VLOOKUP(D430,'Capacidad Financiera'!$C$13:$X$62720,3,0)),\"\",VLOOKUP(D430,'Capacidad Financiera'!$C$13:$X$62720,3,0)))","v":""},{"$f":"IF(OR(C430=\"\",D430=\"\"),\"\",IF(ISERROR(VLOOKUP(D430,'Capacidad Financiera'!$C$13:$X$62720,5,0)),\"\",VLOOKUP(D430,'Capacidad Financiera'!$C$13:$X$62720,5,0)))","v":""},"",{"$f":"IF(OR(D430=\"\",E430=\"\",F430=\"\"),\"\",IF(AND(G430>0,G430<=CapFinanciera1),Puntajes!$D$12,IF(AND(G430>CapFinanciera1,G430<=CapFinanciera2),Puntajes!$D$13,IF(AND(G430>CapFinanciera2,G430<=CapFinanciera3),Puntajes!$D$14,IF(AND(G430>CapFinanciera3,G430<=CapFinanciera4),Puntajes!$D$15,IF(G430>CapFinanciera4,Puntajes!$D$16,0))))))","v":""}]
[null,null,{"$f":"+'Capacidad Financiera'!B434","v":""},{"$f":"IF(ISERROR(VLOOKUP(C431,'Capacidad Financiera'!$B$12:$X$62720,2,0)),\"\",VLOOKUP(C431,'Capacidad Financiera'!$B$12:$X$3580,2,0))","v":0},{"$f":"IF(OR(C431=\"\",D431=\"\"),\"\",IF(ISERROR(VLOOKUP(D431,'Capacidad Financiera'!$C$13:$X$62720,3,0)),\"\",VLOOKUP(D431,'Capacidad Financiera'!$C$13:$X$62720,3,0)))","v":""},{"$f":"IF(OR(C431=\"\",D431=\"\"),\"\",IF(ISERROR(VLOOKUP(D431,'Capacidad Financiera'!$C$13:$X$62720,5,0)),\"\",VLOOKUP(D431,'Capacidad Financiera'!$C$13:$X$62720,5,0)))","v":""},"",{"$f":"IF(OR(D431=\"\",E431=\"\",F431=\"\"),\"\",IF(AND(G431>0,G431<=CapFinanciera1),Puntajes!$D$12,IF(AND(G431>CapFinanciera1,G431<=CapFinanciera2),Puntajes!$D$13,IF(AND(G431>CapFinanciera2,G431<=CapFinanciera3),Puntajes!$D$14,IF(AND(G431>CapFinanciera3,G431<=CapFinanciera4),Puntajes!$D$15,IF(G431>CapFinanciera4,Puntajes!$D$16,0))))))","v":""}]
[null,null,{"$f":"+'Capacidad Financiera'!B435","v":""},{"$f":"IF(ISERROR(VLOOKUP(C432,'Capacidad Financiera'!$B$12:$X$62720,2,0)),\"\",VLOOKUP(C432,'Capacidad Financiera'!$B$12:$X$3580,2,0))","v":0},{"$f":"IF(OR(C432=\"\",D432=\"\"),\"\",IF(ISERROR(VLOOKUP(D432,'Capacidad Financiera'!$C$13:$X$62720,3,0)),\"\",VLOOKUP(D432,'Capacidad Financiera'!$C$13:$X$62720,3,0)))","v":""},{"$f":"IF(OR(C432=\"\",D432=\"\"),\"\",IF(ISERROR(VLOOKUP(D432,'Capacidad Financiera'!$C$13:$X$62720,5,0)),\"\",VLOOKUP(D432,'Capacidad Financiera'!$C$13:$X$62720,5,0)))","v":""},"",{"$f":"IF(OR(D432=\"\",E432=\"\",F432=\"\"),\"\",IF(AND(G432>0,G432<=CapFinanciera1),Puntajes!$D$12,IF(AND(G432>CapFinanciera1,G432<=CapFinanciera2),Puntajes!$D$13,IF(AND(G432>CapFinanciera2,G432<=CapFinanciera3),Puntajes!$D$14,IF(AND(G432>CapFinanciera3,G432<=CapFinanciera4),Puntajes!$D$15,IF(G432>CapFinanciera4,Puntajes!$D$16,0))))))","v":""}]
[null,null,{"$f":"+'Capacidad Financiera'!B436","v":""},{"$f":"IF(ISERROR(VLOOKUP(C433,'Capacidad Financiera'!$B$12:$X$62720,2,0)),\"\",VLOOKUP(C433,'Capacidad Financiera'!$B$12:$X$3580,2,0))","v":0},{"$f":"IF(OR(C433=\"\",D433=\"\"),\"\",IF(ISERROR(VLOOKUP(D433,'Capacidad Financiera'!$C$13:$X$62720,3,0)),\"\",VLOOKUP(D433,'Capacidad Financiera'!$C$13:$X$62720,3,0)))","v":""},{"$f":"IF(OR(C433=\"\",D433=\"\"),\"\",IF(ISERROR(VLOOKUP(D433,'Capacidad Financiera'!$C$13:$X$62720,5,0)),\"\",VLOOKUP(D433,'Capacidad Financiera'!$C$13:$X$62720,5,0)))","v":""},"",{"$f":"IF(OR(D433=\"\",E433=\"\",F433=\"\"),\"\",IF(AND(G433>0,G433<=CapFinanciera1),Puntajes!$D$12,IF(AND(G433>CapFinanciera1,G433<=CapFinanciera2),Puntajes!$D$13,IF(AND(G433>CapFinanciera2,G433<=CapFinanciera3),Puntajes!$D$14,IF(AND(G433>CapFinanciera3,G433<=CapFinanciera4),Puntajes!$D$15,IF(G433>CapFinanciera4,Puntajes!$D$16,0))))))","v":""}]
[null,null,{"$f":"+'Capacidad Financiera'!B437","v":""},{"$f":"IF(ISERROR(VLOOKUP(C434,'Capacidad Financiera'!$B$12:$X$62720,2,0)),\"\",VLOOKUP(C434,'Capacidad Financiera'!$B$12:$X$3580,2,0))","v":0},{"$f":"IF(OR(C434=\"\",D434=\"\"),\"\",IF(ISERROR(VLOOKUP(D434,'Capacidad Financiera'!$C$13:$X$62720,3,0)),\"\",VLOOKUP(D434,'Capacidad Financiera'!$C$13:$X$62720,3,0)))","v":""},{"$f":"IF(OR(C434=\"\",D434=\"\"),\"\",IF(ISERROR(VLOOKUP(D434,'Capacidad Financiera'!$C$13:$X$62720,5,0)),\"\",VLOOKUP(D434,'Capacidad Financiera'!$C$13:$X$62720,5,0)))","v":""},"",{"$f":"IF(OR(D434=\"\",E434=\"\",F434=\"\"),\"\",IF(AND(G434>0,G434<=CapFinanciera1),Puntajes!$D$12,IF(AND(G434>CapFinanciera1,G434<=CapFinanciera2),Puntajes!$D$13,IF(AND(G434>CapFinanciera2,G434<=CapFinanciera3),Puntajes!$D$14,IF(AND(G434>CapFinanciera3,G434<=CapFinanciera4),Puntajes!$D$15,IF(G434>CapFinanciera4,Puntajes!$D$16,0))))))","v":""}]
[null,null,{"$f":"+'Capacidad Financiera'!B438","v":""},{"$f":"IF(ISERROR(VLOOKUP(C435,'Capacidad Financiera'!$B$12:$X$62720,2,0)),\"\",VLOOKUP(C435,'Capacidad Financiera'!$B$12:$X$3580,2,0))","v":0},{"$f":"IF(OR(C435=\"\",D435=\"\"),\"\",IF(ISERROR(VLOOKUP(D435,'Capacidad Financiera'!$C$13:$X$62720,3,0)),\"\",VLOOKUP(D435,'Capacidad Financiera'!$C$13:$X$62720,3,0)))","v":""},{"$f":"IF(OR(C435=\"\",D435=\"\"),\"\",IF(ISERROR(VLOOKUP(D435,'Capacidad Financiera'!$C$13:$X$62720,5,0)),\"\",VLOOKUP(D435,'Capacidad Financiera'!$C$13:$X$62720,5,0)))","v":""},"",{"$f":"IF(OR(D435=\"\",E435=\"\",F435=\"\"),\"\",IF(AND(G435>0,G435<=CapFinanciera1),Puntajes!$D$12,IF(AND(G435>CapFinanciera1,G435<=CapFinanciera2),Puntajes!$D$13,IF(AND(G435>CapFinanciera2,G435<=CapFinanciera3),Puntajes!$D$14,IF(AND(G435>CapFinanciera3,G435<=CapFinanciera4),Puntajes!$D$15,IF(G435>CapFinanciera4,Puntajes!$D$16,0))))))","v":""}]
[null,null,{"$f":"+'Capacidad Financiera'!B439","v":""},{"$f":"IF(ISERROR(VLOOKUP(C436,'Capacidad Financiera'!$B$12:$X$62720,2,0)),\"\",VLOOKUP(C436,'Capacidad Financiera'!$B$12:$X$3580,2,0))","v":0},{"$f":"IF(OR(C436=\"\",D436=\"\"),\"\",IF(ISERROR(VLOOKUP(D436,'Capacidad Financiera'!$C$13:$X$62720,3,0)),\"\",VLOOKUP(D436,'Capacidad Financiera'!$C$13:$X$62720,3,0)))","v":""},{"$f":"IF(OR(C436=\"\",D436=\"\"),\"\",IF(ISERROR(VLOOKUP(D436,'Capacidad Financiera'!$C$13:$X$62720,5,0)),\"\",VLOOKUP(D436,'Capacidad Financiera'!$C$13:$X$62720,5,0)))","v":""},"",{"$f":"IF(OR(D436=\"\",E436=\"\",F436=\"\"),\"\",IF(AND(G436>0,G436<=CapFinanciera1),Puntajes!$D$12,IF(AND(G436>CapFinanciera1,G436<=CapFinanciera2),Puntajes!$D$13,IF(AND(G436>CapFinanciera2,G436<=CapFinanciera3),Puntajes!$D$14,IF(AND(G436>CapFinanciera3,G436<=CapFinanciera4),Puntajes!$D$15,IF(G436>CapFinanciera4,Puntajes!$D$16,0))))))","v":""}]
[null,null,{"$f":"+'Capacidad Financiera'!B440","v":""},{"$f":"IF(ISERROR(VLOOKUP(C437,'Capacidad Financiera'!$B$12:$X$62720,2,0)),\"\",VLOOKUP(C437,'Capacidad Financiera'!$B$12:$X$3580,2,0))","v":0},{"$f":"IF(OR(C437=\"\",D437=\"\"),\"\",IF(ISERROR(VLOOKUP(D437,'Capacidad Financiera'!$C$13:$X$62720,3,0)),\"\",VLOOKUP(D437,'Capacidad Financiera'!$C$13:$X$62720,3,0)))","v":""},{"$f":"IF(OR(C437=\"\",D437=\"\"),\"\",IF(ISERROR(VLOOKUP(D437,'Capacidad Financiera'!$C$13:$X$62720,5,0)),\"\",VLOOKUP(D437,'Capacidad Financiera'!$C$13:$X$62720,5,0)))","v":""},"",{"$f":"IF(OR(D437=\"\",E437=\"\",F437=\"\"),\"\",IF(AND(G437>0,G437<=CapFinanciera1),Puntajes!$D$12,IF(AND(G437>CapFinanciera1,G437<=CapFinanciera2),Puntajes!$D$13,IF(AND(G437>CapFinanciera2,G437<=CapFinanciera3),Puntajes!$D$14,IF(AND(G437>CapFinanciera3,G437<=CapFinanciera4),Puntajes!$D$15,IF(G437>CapFinanciera4,Puntajes!$D$16,0))))))","v":""}]
[null,null,40,{"$f":"IF(ISERROR(VLOOKUP(C438,'Capacidad Financiera'!$B$12:$X$62720,2,0)),\"\",VLOOKUP(C438,'Capacidad Financiera'!$B$12:$X$3580,2,0))","v":"CONSTRUCCIONES Y TRACTORES S.A."},{"$f":"IF(C439=\"\",IF(C438<>\"\",IF(ISERROR(VLOOKUP(D438,'Capacidad Financiera'!$C$12:$H$22,3,0)),\"\",VLOOKUP(D438,'Capacidad Financiera'!$C$12:$H$22,3,0))),\"\")","v":""},{"$f":"IF(C439=\"\",IF(C438<>\"\",IF(ISERROR(VLOOKUP(D438,'Capacidad Financiera'!$C$12:$H$22,5,0)),\"\",VLOOKUP(D438,'Capacidad Financiera'!$C$12:$H$22,5,0))),\"\")","v":""},{"$f":"IF(OR(D438=\"\",E438=\"\",F438=\"\"),\"\",IF(OR(E438=0,F438=0),0,E438/F438))","v":""},{"$f":"IF(C439=\"\",IF(AND(E438=\"\",F438=\"\"),\"\",IF(AND(G438>0,G438<=CapFinanciera1),Puntajes!$D$12,IF(AND(G438>CapFinanciera1,G438<=CapFinanciera2),Puntajes!$D$13,IF(AND(G438>CapFinanciera2,G438<=CapFinanciera3),Puntajes!$D$14,IF(AND(G438>CapFinanciera3,G438<=CapFinanciera4),Puntajes!$D$15,IF(G438>CapFinanciera4,Puntajes!$D$16,0)))))),\"\")","v":""}]
[null,null,{"$f":"+'Capacidad Financiera'!B442","v":40.1},{"$f":"IF(ISERROR(VLOOKUP(C439,'Capacidad Financiera'!$B$12:$X$62720,2,0)),\"\",VLOOKUP(C439,'Capacidad Financiera'!$B$12:$X$3580,2,0))","v":"CONSTRUCCIONES Y TRACTORES S.A."},{"$f":"IF(OR(C439=\"\",D439=\"\"),\"\",IF(ISERROR(VLOOKUP(D439,'Capacidad Financiera'!$C$13:$X$62720,3,0)),\"\",VLOOKUP(D439,'Capacidad Financiera'!$C$13:$X$62720,3,0)))","v":16998858000},{"$f":"IF(OR(C439=\"\",D439=\"\"),\"\",IF(ISERROR(VLOOKUP(D439,'Capacidad Financiera'!$C$13:$X$62720,5,0)),\"\",VLOOKUP(D439,'Capacidad Financiera'!$C$13:$X$62720,5,0)))","v":1876142000},{"$f":"IF(OR(D439=\"\",E439=\"\",F439=\"\"),\"\",IF(OR(E439=0,F439=0),0,E439/F439))","v":9.0605391276353284},{"$f":"IF(OR(D439=\"\",E439=\"\",F439=\"\"),\"\",IF(AND(G439>0,G439<=CapFinanciera1),Puntajes!$D$12,IF(AND(G439>CapFinanciera1,G439<=CapFinanciera2),Puntajes!$D$13,IF(AND(G439>CapFinanciera2,G439<=CapFinanciera3),Puntajes!$D$14,IF(AND(G439>CapFinanciera3,G439<=CapFinanciera4),Puntajes!$D$15,IF(G439>CapFinanciera4,Puntajes!$D$16,0))))))","v":40}]
[null,null,{"$f":"+'Capacidad Financiera'!B443","v":""},{"$f":"IF(ISERROR(VLOOKUP(C440,'Capacidad Financiera'!$B$12:$X$62720,2,0)),\"\",VLOOKUP(C440,'Capacidad Financiera'!$B$12:$X$3580,2,0))","v":0},{"$f":"IF(OR(C440=\"\",D440=\"\"),\"\",IF(ISERROR(VLOOKUP(D440,'Capacidad Financiera'!$C$13:$X$62720,3,0)),\"\",VLOOKUP(D440,'Capacidad Financiera'!$C$13:$X$62720,3,0)))","v":""},{"$f":"IF(OR(C440=\"\",D440=\"\"),\"\",IF(ISERROR(VLOOKUP(D440,'Capacidad Financiera'!$C$13:$X$62720,5,0)),\"\",VLOOKUP(D440,'Capacidad Financiera'!$C$13:$X$62720,5,0)))","v":""},"",{"$f":"IF(OR(D440=\"\",E440=\"\",F440=\"\"),\"\",IF(AND(G440>0,G440<=CapFinanciera1),Puntajes!$D$12,IF(AND(G440>CapFinanciera1,G440<=CapFinanciera2),Puntajes!$D$13,IF(AND(G440>CapFinanciera2,G440<=CapFinanciera3),Puntajes!$D$14,IF(AND(G440>CapFinanciera3,G440<=CapFinanciera4),Puntajes!$D$15,IF(G440>CapFinanciera4,Puntajes!$D$16,0))))))","v":""}]
[null,null,{"$f":"+'Capacidad Financiera'!B444","v":""},{"$f":"IF(ISERROR(VLOOKUP(C441,'Capacidad Financiera'!$B$12:$X$62720,2,0)),\"\",VLOOKUP(C441,'Capacidad Financiera'!$B$12:$X$3580,2,0))","v":0},{"$f":"IF(OR(C441=\"\",D441=\"\"),\"\",IF(ISERROR(VLOOKUP(D441,'Capacidad Financiera'!$C$13:$X$62720,3,0)),\"\",VLOOKUP(D441,'Capacidad Financiera'!$C$13:$X$62720,3,0)))","v":""},{"$f":"IF(OR(C441=\"\",D441=\"\"),\"\",IF(ISERROR(VLOOKUP(D441,'Capacidad Financiera'!$C$13:$X$62720,5,0)),\"\",VLOOKUP(D441,'Capacidad Financiera'!$C$13:$X$62720,5,0)))","v":""},"",{"$f":"IF(OR(D441=\"\",E441=\"\",F441=\"\"),\"\",IF(AND(G441>0,G441<=CapFinanciera1),Puntajes!$D$12,IF(AND(G441>CapFinanciera1,G441<=CapFinanciera2),Puntajes!$D$13,IF(AND(G441>CapFinanciera2,G441<=CapFinanciera3),Puntajes!$D$14,IF(AND(G441>CapFinanciera3,G441<=CapFinanciera4),Puntajes!$D$15,IF(G441>CapFinanciera4,Puntajes!$D$16,0))))))","v":""}]
[null,null,{"$f":"+'Capacidad Financiera'!B445","v":""},{"$f":"IF(ISERROR(VLOOKUP(C442,'Capacidad Financiera'!$B$12:$X$62720,2,0)),\"\",VLOOKUP(C442,'Capacidad Financiera'!$B$12:$X$3580,2,0))","v":0},{"$f":"IF(OR(C442=\"\",D442=\"\"),\"\",IF(ISERROR(VLOOKUP(D442,'Capacidad Financiera'!$C$13:$X$62720,3,0)),\"\",VLOOKUP(D442,'Capacidad Financiera'!$C$13:$X$62720,3,0)))","v":""},{"$f":"IF(OR(C442=\"\",D442=\"\"),\"\",IF(ISERROR(VLOOKUP(D442,'Capacidad Financiera'!$C$13:$X$62720,5,0)),\"\",VLOOKUP(D442,'Capacidad Financiera'!$C$13:$X$62720,5,0)))","v":""},"",{"$f":"IF(OR(D442=\"\",E442=\"\",F442=\"\"),\"\",IF(AND(G442>0,G442<=CapFinanciera1),Puntajes!$D$12,IF(AND(G442>CapFinanciera1,G442<=CapFinanciera2),Puntajes!$D$13,IF(AND(G442>CapFinanciera2,G442<=CapFinanciera3),Puntajes!$D$14,IF(AND(G442>CapFinanciera3,G442<=CapFinanciera4),Puntajes!$D$15,IF(G442>CapFinanciera4,Puntajes!$D$16,0))))))","v":""}]
[null,null,{"$f":"+'Capacidad Financiera'!B446","v":""},{"$f":"IF(ISERROR(VLOOKUP(C443,'Capacidad Financiera'!$B$12:$X$62720,2,0)),\"\",VLOOKUP(C443,'Capacidad Financiera'!$B$12:$X$3580,2,0))","v":0},{"$f":"IF(OR(C443=\"\",D443=\"\"),\"\",IF(ISERROR(VLOOKUP(D443,'Capacidad Financiera'!$C$13:$X$62720,3,0)),\"\",VLOOKUP(D443,'Capacidad Financiera'!$C$13:$X$62720,3,0)))","v":""},{"$f":"IF(OR(C443=\"\",D443=\"\"),\"\",IF(ISERROR(VLOOKUP(D443,'Capacidad Financiera'!$C$13:$X$62720,5,0)),\"\",VLOOKUP(D443,'Capacidad Financiera'!$C$13:$X$62720,5,0)))","v":""},"",{"$f":"IF(OR(D443=\"\",E443=\"\",F443=\"\"),\"\",IF(AND(G443>0,G443<=CapFinanciera1),Puntajes!$D$12,IF(AND(G443>CapFinanciera1,G443<=CapFinanciera2),Puntajes!$D$13,IF(AND(G443>CapFinanciera2,G443<=CapFinanciera3),Puntajes!$D$14,IF(AND(G443>CapFinanciera3,G443<=CapFinanciera4),Puntajes!$D$15,IF(G443>CapFinanciera4,Puntajes!$D$16,0))))))","v":""}]
[null,null,{"$f":"+'Capacidad Financiera'!B447","v":""},{"$f":"IF(ISERROR(VLOOKUP(C444,'Capacidad Financiera'!$B$12:$X$62720,2,0)),\"\",VLOOKUP(C444,'Capacidad Financiera'!$B$12:$X$3580,2,0))","v":0},{"$f":"IF(OR(C444=\"\",D444=\"\"),\"\",IF(ISERROR(VLOOKUP(D444,'Capacidad Financiera'!$C$13:$X$62720,3,0)),\"\",VLOOKUP(D444,'Capacidad Financiera'!$C$13:$X$62720,3,0)))","v":""},{"$f":"IF(OR(C444=\"\",D444=\"\"),\"\",IF(ISERROR(VLOOKUP(D444,'Capacidad Financiera'!$C$13:$X$62720,5,0)),\"\",VLOOKUP(D444,'Capacidad Financiera'!$C$13:$X$62720,5,0)))","v":""},"",{"$f":"IF(OR(D444=\"\",E444=\"\",F444=\"\"),\"\",IF(AND(G444>0,G444<=CapFinanciera1),Puntajes!$D$12,IF(AND(G444>CapFinanciera1,G444<=CapFinanciera2),Puntajes!$D$13,IF(AND(G444>CapFinanciera2,G444<=CapFinanciera3),Puntajes!$D$14,IF(AND(G444>CapFinanciera3,G444<=CapFinanciera4),Puntajes!$D$15,IF(G444>CapFinanciera4,Puntajes!$D$16,0))))))","v":""}]
[null,null,{"$f":"+'Capacidad Financiera'!B448","v":""},{"$f":"IF(ISERROR(VLOOKUP(C445,'Capacidad Financiera'!$B$12:$X$62720,2,0)),\"\",VLOOKUP(C445,'Capacidad Financiera'!$B$12:$X$3580,2,0))","v":0},{"$f":"IF(OR(C445=\"\",D445=\"\"),\"\",IF(ISERROR(VLOOKUP(D445,'Capacidad Financiera'!$C$13:$X$62720,3,0)),\"\",VLOOKUP(D445,'Capacidad Financiera'!$C$13:$X$62720,3,0)))","v":""},{"$f":"IF(OR(C445=\"\",D445=\"\"),\"\",IF(ISERROR(VLOOKUP(D445,'Capacidad Financiera'!$C$13:$X$62720,5,0)),\"\",VLOOKUP(D445,'Capacidad Financiera'!$C$13:$X$62720,5,0)))","v":""},"",{"$f":"IF(OR(D445=\"\",E445=\"\",F445=\"\"),\"\",IF(AND(G445>0,G445<=CapFinanciera1),Puntajes!$D$12,IF(AND(G445>CapFinanciera1,G445<=CapFinanciera2),Puntajes!$D$13,IF(AND(G445>CapFinanciera2,G445<=CapFinanciera3),Puntajes!$D$14,IF(AND(G445>CapFinanciera3,G445<=CapFinanciera4),Puntajes!$D$15,IF(G445>CapFinanciera4,Puntajes!$D$16,0))))))","v":""}]
[null,null,{"$f":"+'Capacidad Financiera'!B449","v":""},{"$f":"IF(ISERROR(VLOOKUP(C446,'Capacidad Financiera'!$B$12:$X$62720,2,0)),\"\",VLOOKUP(C446,'Capacidad Financiera'!$B$12:$X$3580,2,0))","v":0},{"$f":"IF(OR(C446=\"\",D446=\"\"),\"\",IF(ISERROR(VLOOKUP(D446,'Capacidad Financiera'!$C$13:$X$62720,3,0)),\"\",VLOOKUP(D446,'Capacidad Financiera'!$C$13:$X$62720,3,0)))","v":""},{"$f":"IF(OR(C446=\"\",D446=\"\"),\"\",IF(ISERROR(VLOOKUP(D446,'Capacidad Financiera'!$C$13:$X$62720,5,0)),\"\",VLOOKUP(D446,'Capacidad Financiera'!$C$13:$X$62720,5,0)))","v":""},"",{"$f":"IF(OR(D446=\"\",E446=\"\",F446=\"\"),\"\",IF(AND(G446>0,G446<=CapFinanciera1),Puntajes!$D$12,IF(AND(G446>CapFinanciera1,G446<=CapFinanciera2),Puntajes!$D$13,IF(AND(G446>CapFinanciera2,G446<=CapFinanciera3),Puntajes!$D$14,IF(AND(G446>CapFinanciera3,G446<=CapFinanciera4),Puntajes!$D$15,IF(G446>CapFinanciera4,Puntajes!$D$16,0))))))","v":""}]
[null,null,{"$f":"+'Capacidad Financiera'!B450","v":""},{"$f":"IF(ISERROR(VLOOKUP(C447,'Capacidad Financiera'!$B$12:$X$62720,2,0)),\"\",VLOOKUP(C447,'Capacidad Financiera'!$B$12:$X$3580,2,0))","v":0},{"$f":"IF(OR(C447=\"\",D447=\"\"),\"\",IF(ISERROR(VLOOKUP(D447,'Capacidad Financiera'!$C$13:$X$62720,3,0)),\"\",VLOOKUP(D447,'Capacidad Financiera'!$C$13:$X$62720,3,0)))","v":""},{"$f":"IF(OR(C447=\"\",D447=\"\"),\"\",IF(ISERROR(VLOOKUP(D447,'Capacidad Financiera'!$C$13:$X$62720,5,0)),\"\",VLOOKUP(D447,'Capacidad Financiera'!$C$13:$X$62720,5,0)))","v":""},"",{"$f":"IF(OR(D447=\"\",E447=\"\",F447=\"\"),\"\",IF(AND(G447>0,G447<=CapFinanciera1),Puntajes!$D$12,IF(AND(G447>CapFinanciera1,G447<=CapFinanciera2),Puntajes!$D$13,IF(AND(G447>CapFinanciera2,G447<=CapFinanciera3),Puntajes!$D$14,IF(AND(G447>CapFinanciera3,G447<=CapFinanciera4),Puntajes!$D$15,IF(G447>CapFinanciera4,Puntajes!$D$16,0))))))","v":""}]
[null,null,{"$f":"+'Capacidad Financiera'!B451","v":""},{"$f":"IF(ISERROR(VLOOKUP(C448,'Capacidad Financiera'!$B$12:$X$62720,2,0)),\"\",VLOOKUP(C448,'Capacidad Financiera'!$B$12:$X$3580,2,0))","v":0},{"$f":"IF(OR(C448=\"\",D448=\"\"),\"\",IF(ISERROR(VLOOKUP(D448,'Capacidad Financiera'!$C$13:$X$62720,3,0)),\"\",VLOOKUP(D448,'Capacidad Financiera'!$C$13:$X$62720,3,0)))","v":""},{"$f":"IF(OR(C448=\"\",D448=\"\"),\"\",IF(ISERROR(VLOOKUP(D448,'Capacidad Financiera'!$C$13:$X$62720,5,0)),\"\",VLOOKUP(D448,'Capacidad Financiera'!$C$13:$X$62720,5,0)))","v":""},"",{"$f":"IF(OR(D448=\"\",E448=\"\",F448=\"\"),\"\",IF(AND(G448>0,G448<=CapFinanciera1),Puntajes!$D$12,IF(AND(G448>CapFinanciera1,G448<=CapFinanciera2),Puntajes!$D$13,IF(AND(G448>CapFinanciera2,G448<=CapFinanciera3),Puntajes!$D$14,IF(AND(G448>CapFinanciera3,G448<=CapFinanciera4),Puntajes!$D$15,IF(G448>CapFinanciera4,Puntajes!$D$16,0))))))","v":""}]
[null,null,41,{"$f":"IF(ISERROR(VLOOKUP(C449,'Capacidad Financiera'!$B$12:$X$62720,2,0)),\"\",VLOOKUP(C449,'Capacidad Financiera'!$B$12:$X$3580,2,0))","v":"RICARDO ORTIGOZA GONZALEZ"},{"$f":"IF(C450=\"\",IF(C449<>\"\",IF(ISERROR(VLOOKUP(D449,'Capacidad Financiera'!$C$12:$H$22,3,0)),\"\",VLOOKUP(D449,'Capacidad Financiera'!$C$12:$H$22,3,0))),\"\")","v":""},{"$f":"IF(C450=\"\",IF(C449<>\"\",IF(ISERROR(VLOOKUP(D449,'Capacidad Financiera'!$C$12:$H$22,5,0)),\"\",VLOOKUP(D449,'Capacidad Financiera'!$C$12:$H$22,5,0))),\"\")","v":""},{"$f":"IF(OR(D449=\"\",E449=\"\",F449=\"\"),\"\",IF(OR(E449=0,F449=0),0,E449/F449))","v":""},{"$f":"IF(C450=\"\",IF(AND(E449=\"\",F449=\"\"),\"\",IF(AND(G449>0,G449<=CapFinanciera1),Puntajes!$D$12,IF(AND(G449>CapFinanciera1,G449<=CapFinanciera2),Puntajes!$D$13,IF(AND(G449>CapFinanciera2,G449<=CapFinanciera3),Puntajes!$D$14,IF(AND(G449>CapFinanciera3,G449<=CapFinanciera4),Puntajes!$D$15,IF(G449>CapFinanciera4,Puntajes!$D$16,0)))))),\"\")","v":""}]
[null,null,{"$f":"+'Capacidad Financiera'!B453","v":41.1},{"$f":"IF(ISERROR(VLOOKUP(C450,'Capacidad Financiera'!$B$12:$X$62720,2,0)),\"\",VLOOKUP(C450,'Capacidad Financiera'!$B$12:$X$3580,2,0))","v":"RICARDO ORTIGOZA GONZALEZ"},{"$f":"IF(OR(C450=\"\",D450=\"\"),\"\",IF(ISERROR(VLOOKUP(D450,'Capacidad Financiera'!$C$13:$X$62720,3,0)),\"\",VLOOKUP(D450,'Capacidad Financiera'!$C$13:$X$62720,3,0)))","v":2764528966},{"$f":"IF(OR(C450=\"\",D450=\"\"),\"\",IF(ISERROR(VLOOKUP(D450,'Capacidad Financiera'!$C$13:$X$62720,5,0)),\"\",VLOOKUP(D450,'Capacidad Financiera'!$C$13:$X$62720,5,0)))","v":18620506},{"$f":"IF(OR(D450=\"\",E450=\"\",F450=\"\"),\"\",IF(OR(E450=0,F450=0),0,E450/F450))","v":148.46690879399304},{"$f":"IF(OR(D450=\"\",E450=\"\",F450=\"\"),\"\",IF(AND(G450>0,G450<=CapFinanciera1),Puntajes!$D$12,IF(AND(G450>CapFinanciera1,G450<=CapFinanciera2),Puntajes!$D$13,IF(AND(G450>CapFinanciera2,G450<=CapFinanciera3),Puntajes!$D$14,IF(AND(G450>CapFinanciera3,G450<=CapFinanciera4),Puntajes!$D$15,IF(G450>CapFinanciera4,Puntajes!$D$16,0))))))","v":40}]
[null,null,{"$f":"+'Capacidad Financiera'!B454","v":""},{"$f":"IF(ISERROR(VLOOKUP(C451,'Capacidad Financiera'!$B$12:$X$62720,2,0)),\"\",VLOOKUP(C451,'Capacidad Financiera'!$B$12:$X$3580,2,0))","v":0},{"$f":"IF(OR(C451=\"\",D451=\"\"),\"\",IF(ISERROR(VLOOKUP(D451,'Capacidad Financiera'!$C$13:$X$62720,3,0)),\"\",VLOOKUP(D451,'Capacidad Financiera'!$C$13:$X$62720,3,0)))","v":""},{"$f":"IF(OR(C451=\"\",D451=\"\"),\"\",IF(ISERROR(VLOOKUP(D451,'Capacidad Financiera'!$C$13:$X$62720,5,0)),\"\",VLOOKUP(D451,'Capacidad Financiera'!$C$13:$X$62720,5,0)))","v":""},"",{"$f":"IF(OR(D451=\"\",E451=\"\",F451=\"\"),\"\",IF(AND(G451>0,G451<=CapFinanciera1),Puntajes!$D$12,IF(AND(G451>CapFinanciera1,G451<=CapFinanciera2),Puntajes!$D$13,IF(AND(G451>CapFinanciera2,G451<=CapFinanciera3),Puntajes!$D$14,IF(AND(G451>CapFinanciera3,G451<=CapFinanciera4),Puntajes!$D$15,IF(G451>CapFinanciera4,Puntajes!$D$16,0))))))","v":""}]
[null,null,{"$f":"+'Capacidad Financiera'!B455","v":""},{"$f":"IF(ISERROR(VLOOKUP(C452,'Capacidad Financiera'!$B$12:$X$62720,2,0)),\"\",VLOOKUP(C452,'Capacidad Financiera'!$B$12:$X$3580,2,0))","v":0},{"$f":"IF(OR(C452=\"\",D452=\"\"),\"\",IF(ISERROR(VLOOKUP(D452,'Capacidad Financiera'!$C$13:$X$62720,3,0)),\"\",VLOOKUP(D452,'Capacidad Financiera'!$C$13:$X$62720,3,0)))","v":""},{"$f":"IF(OR(C452=\"\",D452=\"\"),\"\",IF(ISERROR(VLOOKUP(D452,'Capacidad Financiera'!$C$13:$X$62720,5,0)),\"\",VLOOKUP(D452,'Capacidad Financiera'!$C$13:$X$62720,5,0)))","v":""},"",{"$f":"IF(OR(D452=\"\",E452=\"\",F452=\"\"),\"\",IF(AND(G452>0,G452<=CapFinanciera1),Puntajes!$D$12,IF(AND(G452>CapFinanciera1,G452<=CapFinanciera2),Puntajes!$D$13,IF(AND(G452>CapFinanciera2,G452<=CapFinanciera3),Puntajes!$D$14,IF(AND(G452>CapFinanciera3,G452<=CapFinanciera4),Puntajes!$D$15,IF(G452>CapFinanciera4,Puntajes!$D$16,0))))))","v":""}]
[null,null,{"$f":"+'Capacidad Financiera'!B456","v":""},{"$f":"IF(ISERROR(VLOOKUP(C453,'Capacidad Financiera'!$B$12:$X$62720,2,0)),\"\",VLOOKUP(C453,'Capacidad Financiera'!$B$12:$X$3580,2,0))","v":0},{"$f":"IF(OR(C453=\"\",D453=\"\"),\"\",IF(ISERROR(VLOOKUP(D453,'Capacidad Financiera'!$C$13:$X$62720,3,0)),\"\",VLOOKUP(D453,'Capacidad Financiera'!$C$13:$X$62720,3,0)))","v":""},{"$f":"IF(OR(C453=\"\",D453=\"\"),\"\",IF(ISERROR(VLOOKUP(D453,'Capacidad Financiera'!$C$13:$X$62720,5,0)),\"\",VLOOKUP(D453,'Capacidad Financiera'!$C$13:$X$62720,5,0)))","v":""},"",{"$f":"IF(OR(D453=\"\",E453=\"\",F453=\"\"),\"\",IF(AND(G453>0,G453<=CapFinanciera1),Puntajes!$D$12,IF(AND(G453>CapFinanciera1,G453<=CapFinanciera2),Puntajes!$D$13,IF(AND(G453>CapFinanciera2,G453<=CapFinanciera3),Puntajes!$D$14,IF(AND(G453>CapFinanciera3,G453<=CapFinanciera4),Puntajes!$D$15,IF(G453>CapFinanciera4,Puntajes!$D$16,0))))))","v":""}]
[null,null,{"$f":"+'Capacidad Financiera'!B457","v":""},{"$f":"IF(ISERROR(VLOOKUP(C454,'Capacidad Financiera'!$B$12:$X$62720,2,0)),\"\",VLOOKUP(C454,'Capacidad Financiera'!$B$12:$X$3580,2,0))","v":0},{"$f":"IF(OR(C454=\"\",D454=\"\"),\"\",IF(ISERROR(VLOOKUP(D454,'Capacidad Financiera'!$C$13:$X$62720,3,0)),\"\",VLOOKUP(D454,'Capacidad Financiera'!$C$13:$X$62720,3,0)))","v":""},{"$f":"IF(OR(C454=\"\",D454=\"\"),\"\",IF(ISERROR(VLOOKUP(D454,'Capacidad Financiera'!$C$13:$X$62720,5,0)),\"\",VLOOKUP(D454,'Capacidad Financiera'!$C$13:$X$62720,5,0)))","v":""},"",{"$f":"IF(OR(D454=\"\",E454=\"\",F454=\"\"),\"\",IF(AND(G454>0,G454<=CapFinanciera1),Puntajes!$D$12,IF(AND(G454>CapFinanciera1,G454<=CapFinanciera2),Puntajes!$D$13,IF(AND(G454>CapFinanciera2,G454<=CapFinanciera3),Puntajes!$D$14,IF(AND(G454>CapFinanciera3,G454<=CapFinanciera4),Puntajes!$D$15,IF(G454>CapFinanciera4,Puntajes!$D$16,0))))))","v":""}]
[null,null,{"$f":"+'Capacidad Financiera'!B458","v":""},{"$f":"IF(ISERROR(VLOOKUP(C455,'Capacidad Financiera'!$B$12:$X$62720,2,0)),\"\",VLOOKUP(C455,'Capacidad Financiera'!$B$12:$X$3580,2,0))","v":0},{"$f":"IF(OR(C455=\"\",D455=\"\"),\"\",IF(ISERROR(VLOOKUP(D455,'Capacidad Financiera'!$C$13:$X$62720,3,0)),\"\",VLOOKUP(D455,'Capacidad Financiera'!$C$13:$X$62720,3,0)))","v":""},{"$f":"IF(OR(C455=\"\",D455=\"\"),\"\",IF(ISERROR(VLOOKUP(D455,'Capacidad Financiera'!$C$13:$X$62720,5,0)),\"\",VLOOKUP(D455,'Capacidad Financiera'!$C$13:$X$62720,5,0)))","v":""},"",{"$f":"IF(OR(D455=\"\",E455=\"\",F455=\"\"),\"\",IF(AND(G455>0,G455<=CapFinanciera1),Puntajes!$D$12,IF(AND(G455>CapFinanciera1,G455<=CapFinanciera2),Puntajes!$D$13,IF(AND(G455>CapFinanciera2,G455<=CapFinanciera3),Puntajes!$D$14,IF(AND(G455>CapFinanciera3,G455<=CapFinanciera4),Puntajes!$D$15,IF(G455>CapFinanciera4,Puntajes!$D$16,0))))))","v":""}]
[null,null,{"$f":"+'Capacidad Financiera'!B459","v":""},{"$f":"IF(ISERROR(VLOOKUP(C456,'Capacidad Financiera'!$B$12:$X$62720,2,0)),\"\",VLOOKUP(C456,'Capacidad Financiera'!$B$12:$X$3580,2,0))","v":0},{"$f":"IF(OR(C456=\"\",D456=\"\"),\"\",IF(ISERROR(VLOOKUP(D456,'Capacidad Financiera'!$C$13:$X$62720,3,0)),\"\",VLOOKUP(D456,'Capacidad Financiera'!$C$13:$X$62720,3,0)))","v":""},{"$f":"IF(OR(C456=\"\",D456=\"\"),\"\",IF(ISERROR(VLOOKUP(D456,'Capacidad Financiera'!$C$13:$X$62720,5,0)),\"\",VLOOKUP(D456,'Capacidad Financiera'!$C$13:$X$62720,5,0)))","v":""},"",{"$f":"IF(OR(D456=\"\",E456=\"\",F456=\"\"),\"\",IF(AND(G456>0,G456<=CapFinanciera1),Puntajes!$D$12,IF(AND(G456>CapFinanciera1,G456<=CapFinanciera2),Puntajes!$D$13,IF(AND(G456>CapFinanciera2,G456<=CapFinanciera3),Puntajes!$D$14,IF(AND(G456>CapFinanciera3,G456<=CapFinanciera4),Puntajes!$D$15,IF(G456>CapFinanciera4,Puntajes!$D$16,0))))))","v":""}]
[null,null,{"$f":"+'Capacidad Financiera'!B460","v":""},{"$f":"IF(ISERROR(VLOOKUP(C457,'Capacidad Financiera'!$B$12:$X$62720,2,0)),\"\",VLOOKUP(C457,'Capacidad Financiera'!$B$12:$X$3580,2,0))","v":0},{"$f":"IF(OR(C457=\"\",D457=\"\"),\"\",IF(ISERROR(VLOOKUP(D457,'Capacidad Financiera'!$C$13:$X$62720,3,0)),\"\",VLOOKUP(D457,'Capacidad Financiera'!$C$13:$X$62720,3,0)))","v":""},{"$f":"IF(OR(C457=\"\",D457=\"\"),\"\",IF(ISERROR(VLOOKUP(D457,'Capacidad Financiera'!$C$13:$X$62720,5,0)),\"\",VLOOKUP(D457,'Capacidad Financiera'!$C$13:$X$62720,5,0)))","v":""},"",{"$f":"IF(OR(D457=\"\",E457=\"\",F457=\"\"),\"\",IF(AND(G457>0,G457<=CapFinanciera1),Puntajes!$D$12,IF(AND(G457>CapFinanciera1,G457<=CapFinanciera2),Puntajes!$D$13,IF(AND(G457>CapFinanciera2,G457<=CapFinanciera3),Puntajes!$D$14,IF(AND(G457>CapFinanciera3,G457<=CapFinanciera4),Puntajes!$D$15,IF(G457>CapFinanciera4,Puntajes!$D$16,0))))))","v":""}]
[null,null,{"$f":"+'Capacidad Financiera'!B461","v":""},{"$f":"IF(ISERROR(VLOOKUP(C458,'Capacidad Financiera'!$B$12:$X$62720,2,0)),\"\",VLOOKUP(C458,'Capacidad Financiera'!$B$12:$X$3580,2,0))","v":0},{"$f":"IF(OR(C458=\"\",D458=\"\"),\"\",IF(ISERROR(VLOOKUP(D458,'Capacidad Financiera'!$C$13:$X$62720,3,0)),\"\",VLOOKUP(D458,'Capacidad Financiera'!$C$13:$X$62720,3,0)))","v":""},{"$f":"IF(OR(C458=\"\",D458=\"\"),\"\",IF(ISERROR(VLOOKUP(D458,'Capacidad Financiera'!$C$13:$X$62720,5,0)),\"\",VLOOKUP(D458,'Capacidad Financiera'!$C$13:$X$62720,5,0)))","v":""},"",{"$f":"IF(OR(D458=\"\",E458=\"\",F458=\"\"),\"\",IF(AND(G458>0,G458<=CapFinanciera1),Puntajes!$D$12,IF(AND(G458>CapFinanciera1,G458<=CapFinanciera2),Puntajes!$D$13,IF(AND(G458>CapFinanciera2,G458<=CapFinanciera3),Puntajes!$D$14,IF(AND(G458>CapFinanciera3,G458<=CapFinanciera4),Puntajes!$D$15,IF(G458>CapFinanciera4,Puntajes!$D$16,0))))))","v":""}]
[null,null,{"$f":"+'Capacidad Financiera'!B462","v":""},{"$f":"IF(ISERROR(VLOOKUP(C459,'Capacidad Financiera'!$B$12:$X$62720,2,0)),\"\",VLOOKUP(C459,'Capacidad Financiera'!$B$12:$X$3580,2,0))","v":0},{"$f":"IF(OR(C459=\"\",D459=\"\"),\"\",IF(ISERROR(VLOOKUP(D459,'Capacidad Financiera'!$C$13:$X$62720,3,0)),\"\",VLOOKUP(D459,'Capacidad Financiera'!$C$13:$X$62720,3,0)))","v":""},{"$f":"IF(OR(C459=\"\",D459=\"\"),\"\",IF(ISERROR(VLOOKUP(D459,'Capacidad Financiera'!$C$13:$X$62720,5,0)),\"\",VLOOKUP(D459,'Capacidad Financiera'!$C$13:$X$62720,5,0)))","v":""},"",{"$f":"IF(OR(D459=\"\",E459=\"\",F459=\"\"),\"\",IF(AND(G459>0,G459<=CapFinanciera1),Puntajes!$D$12,IF(AND(G459>CapFinanciera1,G459<=CapFinanciera2),Puntajes!$D$13,IF(AND(G459>CapFinanciera2,G459<=CapFinanciera3),Puntajes!$D$14,IF(AND(G459>CapFinanciera3,G459<=CapFinanciera4),Puntajes!$D$15,IF(G459>CapFinanciera4,Puntajes!$D$16,0))))))","v":""}]
[null,null,42,{"$f":"IF(ISERROR(VLOOKUP(C460,'Capacidad Financiera'!$B$12:$X$62720,2,0)),\"\",VLOOKUP(C460,'Capacidad Financiera'!$B$12:$X$3580,2,0))","v":"CONSORCIO VIALES CUNDINAMARCA"},{"$f":"IF(C461=\"\",IF(C460<>\"\",IF(ISERROR(VLOOKUP(D460,'Capacidad Financiera'!$C$12:$H$22,3,0)),\"\",VLOOKUP(D460,'Capacidad Financiera'!$C$12:$H$22,3,0))),\"\")","v":""},{"$f":"IF(C461=\"\",IF(C460<>\"\",IF(ISERROR(VLOOKUP(D460,'Capacidad Financiera'!$C$12:$H$22,5,0)),\"\",VLOOKUP(D460,'Capacidad Financiera'!$C$12:$H$22,5,0))),\"\")","v":""},{"$f":"IF(OR(D460=\"\",E460=\"\",F460=\"\"),\"\",IF(OR(E460=0,F460=0),0,E460/F460))","v":""},{"$f":"IF(C461=\"\",IF(AND(E460=\"\",F460=\"\"),\"\",IF(AND(G460>0,G460<=CapFinanciera1),Puntajes!$D$12,IF(AND(G460>CapFinanciera1,G460<=CapFinanciera2),Puntajes!$D$13,IF(AND(G460>CapFinanciera2,G460<=CapFinanciera3),Puntajes!$D$14,IF(AND(G460>CapFinanciera3,G460<=CapFinanciera4),Puntajes!$D$15,IF(G460>CapFinanciera4,Puntajes!$D$16,0)))))),\"\")","v":""}]
[null,null,{"$f":"+'Capacidad Financiera'!B464","v":42.1},{"$f":"IF(ISERROR(VLOOKUP(C461,'Capacidad Financiera'!$B$12:$X$62720,2,0)),\"\",VLOOKUP(C461,'Capacidad Financiera'!$B$12:$X$3580,2,0))","v":"OLT CONSTRUCTORES S.A.S."},{"$f":"IF(OR(C461=\"\",D461=\"\"),\"\",IF(ISERROR(VLOOKUP(D461,'Capacidad Financiera'!$C$13:$X$62720,3,0)),\"\",VLOOKUP(D461,'Capacidad Financiera'!$C$13:$X$62720,3,0)))","v":2775955694},{"$f":"IF(OR(C461=\"\",D461=\"\"),\"\",IF(ISERROR(VLOOKUP(D461,'Capacidad Financiera'!$C$13:$X$62720,5,0)),\"\",VLOOKUP(D461,'Capacidad Financiera'!$C$13:$X$62720,5,0)))","v":14956357},{"$f":"IF(OR(D461=\"\",E461=\"\",F461=\"\"),\"\",IF(OR(E461=0,F461=0),0,E461/F461))","v":185.60373318181695},{"$f":"IF(OR(D461=\"\",E461=\"\",F461=\"\"),\"\",IF(AND(G461>0,G461<=CapFinanciera1),Puntajes!$D$12,IF(AND(G461>CapFinanciera1,G461<=CapFinanciera2),Puntajes!$D$13,IF(AND(G461>CapFinanciera2,G461<=CapFinanciera3),Puntajes!$D$14,IF(AND(G461>CapFinanciera3,G461<=CapFinanciera4),Puntajes!$D$15,IF(G461>CapFinanciera4,Puntajes!$D$16,0))))))","v":40}]
[null,null,{"$f":"+'Capacidad Financiera'!B465","v":42.2},{"$f":"IF(ISERROR(VLOOKUP(C462,'Capacidad Financiera'!$B$12:$X$62720,2,0)),\"\",VLOOKUP(C462,'Capacidad Financiera'!$B$12:$X$3580,2,0))","v":"CONSTRUCCIONES MAJA S.A.S."},{"$f":"IF(OR(C462=\"\",D462=\"\"),\"\",IF(ISERROR(VLOOKUP(D462,'Capacidad Financiera'!$C$13:$X$62720,3,0)),\"\",VLOOKUP(D462,'Capacidad Financiera'!$C$13:$X$62720,3,0)))","v":11109162011},{"$f":"IF(OR(C462=\"\",D462=\"\"),\"\",IF(ISERROR(VLOOKUP(D462,'Capacidad Financiera'!$C$13:$X$62720,5,0)),\"\",VLOOKUP(D462,'Capacidad Financiera'!$C$13:$X$62720,5,0)))","v":1526472712},7.2776682633551069,{"$f":"IF(OR(D462=\"\",E462=\"\",F462=\"\"),\"\",IF(AND(G462>0,G462<=CapFinanciera1),Puntajes!$D$12,IF(AND(G462>CapFinanciera1,G462<=CapFinanciera2),Puntajes!$D$13,IF(AND(G462>CapFinanciera2,G462<=CapFinanciera3),Puntajes!$D$14,IF(AND(G462>CapFinanciera3,G462<=CapFinanciera4),Puntajes!$D$15,IF(G462>CapFinanciera4,Puntajes!$D$16,0))))))","v":40}]
[null,null,{"$f":"+'Capacidad Financiera'!B466","v":""},{"$f":"IF(ISERROR(VLOOKUP(C463,'Capacidad Financiera'!$B$12:$X$62720,2,0)),\"\",VLOOKUP(C463,'Capacidad Financiera'!$B$12:$X$3580,2,0))","v":0},{"$f":"IF(OR(C463=\"\",D463=\"\"),\"\",IF(ISERROR(VLOOKUP(D463,'Capacidad Financiera'!$C$13:$X$62720,3,0)),\"\",VLOOKUP(D463,'Capacidad Financiera'!$C$13:$X$62720,3,0)))","v":""},{"$f":"IF(OR(C463=\"\",D463=\"\"),\"\",IF(ISERROR(VLOOKUP(D463,'Capacidad Financiera'!$C$13:$X$62720,5,0)),\"\",VLOOKUP(D463,'Capacidad Financiera'!$C$13:$X$62720,5,0)))","v":""},"",{"$f":"IF(OR(D463=\"\",E463=\"\",F463=\"\"),\"\",IF(AND(G463>0,G463<=CapFinanciera1),Puntajes!$D$12,IF(AND(G463>CapFinanciera1,G463<=CapFinanciera2),Puntajes!$D$13,IF(AND(G463>CapFinanciera2,G463<=CapFinanciera3),Puntajes!$D$14,IF(AND(G463>CapFinanciera3,G463<=CapFinanciera4),Puntajes!$D$15,IF(G463>CapFinanciera4,Puntajes!$D$16,0))))))","v":""}]
[null,null,{"$f":"+'Capacidad Financiera'!B467","v":""},{"$f":"IF(ISERROR(VLOOKUP(C464,'Capacidad Financiera'!$B$12:$X$62720,2,0)),\"\",VLOOKUP(C464,'Capacidad Financiera'!$B$12:$X$3580,2,0))","v":0},{"$f":"IF(OR(C464=\"\",D464=\"\"),\"\",IF(ISERROR(VLOOKUP(D464,'Capacidad Financiera'!$C$13:$X$62720,3,0)),\"\",VLOOKUP(D464,'Capacidad Financiera'!$C$13:$X$62720,3,0)))","v":""},{"$f":"IF(OR(C464=\"\",D464=\"\"),\"\",IF(ISERROR(VLOOKUP(D464,'Capacidad Financiera'!$C$13:$X$62720,5,0)),\"\",VLOOKUP(D464,'Capacidad Financiera'!$C$13:$X$62720,5,0)))","v":""},"",{"$f":"IF(OR(D464=\"\",E464=\"\",F464=\"\"),\"\",IF(AND(G464>0,G464<=CapFinanciera1),Puntajes!$D$12,IF(AND(G464>CapFinanciera1,G464<=CapFinanciera2),Puntajes!$D$13,IF(AND(G464>CapFinanciera2,G464<=CapFinanciera3),Puntajes!$D$14,IF(AND(G464>CapFinanciera3,G464<=CapFinanciera4),Puntajes!$D$15,IF(G464>CapFinanciera4,Puntajes!$D$16,0))))))","v":""}]
[null,null,{"$f":"+'Capacidad Financiera'!B468","v":""},{"$f":"IF(ISERROR(VLOOKUP(C465,'Capacidad Financiera'!$B$12:$X$62720,2,0)),\"\",VLOOKUP(C465,'Capacidad Financiera'!$B$12:$X$3580,2,0))","v":0},{"$f":"IF(OR(C465=\"\",D465=\"\"),\"\",IF(ISERROR(VLOOKUP(D465,'Capacidad Financiera'!$C$13:$X$62720,3,0)),\"\",VLOOKUP(D465,'Capacidad Financiera'!$C$13:$X$62720,3,0)))","v":""},{"$f":"IF(OR(C465=\"\",D465=\"\"),\"\",IF(ISERROR(VLOOKUP(D465,'Capacidad Financiera'!$C$13:$X$62720,5,0)),\"\",VLOOKUP(D465,'Capacidad Financiera'!$C$13:$X$62720,5,0)))","v":""},"",{"$f":"IF(OR(D465=\"\",E465=\"\",F465=\"\"),\"\",IF(AND(G465>0,G465<=CapFinanciera1),Puntajes!$D$12,IF(AND(G465>CapFinanciera1,G465<=CapFinanciera2),Puntajes!$D$13,IF(AND(G465>CapFinanciera2,G465<=CapFinanciera3),Puntajes!$D$14,IF(AND(G465>CapFinanciera3,G465<=CapFinanciera4),Puntajes!$D$15,IF(G465>CapFinanciera4,Puntajes!$D$16,0))))))","v":""}]
[null,null,{"$f":"+'Capacidad Financiera'!B469","v":""},{"$f":"IF(ISERROR(VLOOKUP(C466,'Capacidad Financiera'!$B$12:$X$62720,2,0)),\"\",VLOOKUP(C466,'Capacidad Financiera'!$B$12:$X$3580,2,0))","v":0},{"$f":"IF(OR(C466=\"\",D466=\"\"),\"\",IF(ISERROR(VLOOKUP(D466,'Capacidad Financiera'!$C$13:$X$62720,3,0)),\"\",VLOOKUP(D466,'Capacidad Financiera'!$C$13:$X$62720,3,0)))","v":""},{"$f":"IF(OR(C466=\"\",D466=\"\"),\"\",IF(ISERROR(VLOOKUP(D466,'Capacidad Financiera'!$C$13:$X$62720,5,0)),\"\",VLOOKUP(D466,'Capacidad Financiera'!$C$13:$X$62720,5,0)))","v":""},"",{"$f":"IF(OR(D466=\"\",E466=\"\",F466=\"\"),\"\",IF(AND(G466>0,G466<=CapFinanciera1),Puntajes!$D$12,IF(AND(G466>CapFinanciera1,G466<=CapFinanciera2),Puntajes!$D$13,IF(AND(G466>CapFinanciera2,G466<=CapFinanciera3),Puntajes!$D$14,IF(AND(G466>CapFinanciera3,G466<=CapFinanciera4),Puntajes!$D$15,IF(G466>CapFinanciera4,Puntajes!$D$16,0))))))","v":""}]
[null,null,{"$f":"+'Capacidad Financiera'!B470","v":""},{"$f":"IF(ISERROR(VLOOKUP(C467,'Capacidad Financiera'!$B$12:$X$62720,2,0)),\"\",VLOOKUP(C467,'Capacidad Financiera'!$B$12:$X$3580,2,0))","v":0},{"$f":"IF(OR(C467=\"\",D467=\"\"),\"\",IF(ISERROR(VLOOKUP(D467,'Capacidad Financiera'!$C$13:$X$62720,3,0)),\"\",VLOOKUP(D467,'Capacidad Financiera'!$C$13:$X$62720,3,0)))","v":""},{"$f":"IF(OR(C467=\"\",D467=\"\"),\"\",IF(ISERROR(VLOOKUP(D467,'Capacidad Financiera'!$C$13:$X$62720,5,0)),\"\",VLOOKUP(D467,'Capacidad Financiera'!$C$13:$X$62720,5,0)))","v":""},"",{"$f":"IF(OR(D467=\"\",E467=\"\",F467=\"\"),\"\",IF(AND(G467>0,G467<=CapFinanciera1),Puntajes!$D$12,IF(AND(G467>CapFinanciera1,G467<=CapFinanciera2),Puntajes!$D$13,IF(AND(G467>CapFinanciera2,G467<=CapFinanciera3),Puntajes!$D$14,IF(AND(G467>CapFinanciera3,G467<=CapFinanciera4),Puntajes!$D$15,IF(G467>CapFinanciera4,Puntajes!$D$16,0))))))","v":""}]
[null,null,{"$f":"+'Capacidad Financiera'!B471","v":""},{"$f":"IF(ISERROR(VLOOKUP(C468,'Capacidad Financiera'!$B$12:$X$62720,2,0)),\"\",VLOOKUP(C468,'Capacidad Financiera'!$B$12:$X$3580,2,0))","v":0},{"$f":"IF(OR(C468=\"\",D468=\"\"),\"\",IF(ISERROR(VLOOKUP(D468,'Capacidad Financiera'!$C$13:$X$62720,3,0)),\"\",VLOOKUP(D468,'Capacidad Financiera'!$C$13:$X$62720,3,0)))","v":""},{"$f":"IF(OR(C468=\"\",D468=\"\"),\"\",IF(ISERROR(VLOOKUP(D468,'Capacidad Financiera'!$C$13:$X$62720,5,0)),\"\",VLOOKUP(D468,'Capacidad Financiera'!$C$13:$X$62720,5,0)))","v":""},"",{"$f":"IF(OR(D468=\"\",E468=\"\",F468=\"\"),\"\",IF(AND(G468>0,G468<=CapFinanciera1),Puntajes!$D$12,IF(AND(G468>CapFinanciera1,G468<=CapFinanciera2),Puntajes!$D$13,IF(AND(G468>CapFinanciera2,G468<=CapFinanciera3),Puntajes!$D$14,IF(AND(G468>CapFinanciera3,G468<=CapFinanciera4),Puntajes!$D$15,IF(G468>CapFinanciera4,Puntajes!$D$16,0))))))","v":""}]
[null,null,{"$f":"+'Capacidad Financiera'!B472","v":""},{"$f":"IF(ISERROR(VLOOKUP(C469,'Capacidad Financiera'!$B$12:$X$62720,2,0)),\"\",VLOOKUP(C469,'Capacidad Financiera'!$B$12:$X$3580,2,0))","v":0},{"$f":"IF(OR(C469=\"\",D469=\"\"),\"\",IF(ISERROR(VLOOKUP(D469,'Capacidad Financiera'!$C$13:$X$62720,3,0)),\"\",VLOOKUP(D469,'Capacidad Financiera'!$C$13:$X$62720,3,0)))","v":""},{"$f":"IF(OR(C469=\"\",D469=\"\"),\"\",IF(ISERROR(VLOOKUP(D469,'Capacidad Financiera'!$C$13:$X$62720,5,0)),\"\",VLOOKUP(D469,'Capacidad Financiera'!$C$13:$X$62720,5,0)))","v":""},"",{"$f":"IF(OR(D469=\"\",E469=\"\",F469=\"\"),\"\",IF(AND(G469>0,G469<=CapFinanciera1),Puntajes!$D$12,IF(AND(G469>CapFinanciera1,G469<=CapFinanciera2),Puntajes!$D$13,IF(AND(G469>CapFinanciera2,G469<=CapFinanciera3),Puntajes!$D$14,IF(AND(G469>CapFinanciera3,G469<=CapFinanciera4),Puntajes!$D$15,IF(G469>CapFinanciera4,Puntajes!$D$16,0))))))","v":""}]
[null,null,{"$f":"+'Capacidad Financiera'!B473","v":""},{"$f":"IF(ISERROR(VLOOKUP(C470,'Capacidad Financiera'!$B$12:$X$62720,2,0)),\"\",VLOOKUP(C470,'Capacidad Financiera'!$B$12:$X$3580,2,0))","v":0},{"$f":"IF(OR(C470=\"\",D470=\"\"),\"\",IF(ISERROR(VLOOKUP(D470,'Capacidad Financiera'!$C$13:$X$62720,3,0)),\"\",VLOOKUP(D470,'Capacidad Financiera'!$C$13:$X$62720,3,0)))","v":""},{"$f":"IF(OR(C470=\"\",D470=\"\"),\"\",IF(ISERROR(VLOOKUP(D470,'Capacidad Financiera'!$C$13:$X$62720,5,0)),\"\",VLOOKUP(D470,'Capacidad Financiera'!$C$13:$X$62720,5,0)))","v":""},"",{"$f":"IF(OR(D470=\"\",E470=\"\",F470=\"\"),\"\",IF(AND(G470>0,G470<=CapFinanciera1),Puntajes!$D$12,IF(AND(G470>CapFinanciera1,G470<=CapFinanciera2),Puntajes!$D$13,IF(AND(G470>CapFinanciera2,G470<=CapFinanciera3),Puntajes!$D$14,IF(AND(G470>CapFinanciera3,G470<=CapFinanciera4),Puntajes!$D$15,IF(G470>CapFinanciera4,Puntajes!$D$16,0))))))","v":""}]
[null,null,43,{"$f":"IF(ISERROR(VLOOKUP(C471,'Capacidad Financiera'!$B$12:$X$62720,2,0)),\"\",VLOOKUP(C471,'Capacidad Financiera'!$B$12:$X$3580,2,0))","v":"CONSORCIO LA CALERA 034"},{"$f":"IF(C472=\"\",IF(C471<>\"\",IF(ISERROR(VLOOKUP(D471,'Capacidad Financiera'!$C$12:$H$22,3,0)),\"\",VLOOKUP(D471,'Capacidad Financiera'!$C$12:$H$22,3,0))),\"\")","v":""},{"$f":"IF(C472=\"\",IF(C471<>\"\",IF(ISERROR(VLOOKUP(D471,'Capacidad Financiera'!$C$12:$H$22,5,0)),\"\",VLOOKUP(D471,'Capacidad Financiera'!$C$12:$H$22,5,0))),\"\")","v":""},{"$f":"IF(OR(D471=\"\",E471=\"\",F471=\"\"),\"\",IF(OR(E471=0,F471=0),0,E471/F471))","v":""},{"$f":"IF(C472=\"\",IF(AND(E471=\"\",F471=\"\"),\"\",IF(AND(G471>0,G471<=CapFinanciera1),Puntajes!$D$12,IF(AND(G471>CapFinanciera1,G471<=CapFinanciera2),Puntajes!$D$13,IF(AND(G471>CapFinanciera2,G471<=CapFinanciera3),Puntajes!$D$14,IF(AND(G471>CapFinanciera3,G471<=CapFinanciera4),Puntajes!$D$15,IF(G471>CapFinanciera4,Puntajes!$D$16,0)))))),\"\")","v":""}]
[null,null,{"$f":"+'Capacidad Financiera'!B475","v":43.1},{"$f":"IF(ISERROR(VLOOKUP(C472,'Capacidad Financiera'!$B$12:$X$62720,2,0)),\"\",VLOOKUP(C472,'Capacidad Financiera'!$B$12:$X$3580,2,0))","v":"JULIO ECHEVERRY SARMIENTO"},{"$f":"IF(OR(C472=\"\",D472=\"\"),\"\",IF(ISERROR(VLOOKUP(D472,'Capacidad Financiera'!$C$13:$X$62720,3,0)),\"\",VLOOKUP(D472,'Capacidad Financiera'!$C$13:$X$62720,3,0)))","v":270801826},{"$f":"IF(OR(C472=\"\",D472=\"\"),\"\",IF(ISERROR(VLOOKUP(D472,'Capacidad Financiera'!$C$13:$X$62720,5,0)),\"\",VLOOKUP(D472,'Capacidad Financiera'!$C$13:$X$62720,5,0)))","v":26843.82},{"$f":"IF(OR(D472=\"\",E472=\"\",F472=\"\"),\"\",IF(OR(E472=0,F472=0),0,E472/F472))","v":10088.051029994986},{"$f":"IF(OR(D472=\"\",E472=\"\",F472=\"\"),\"\",IF(AND(G472>0,G472<=CapFinanciera1),Puntajes!$D$12,IF(AND(G472>CapFinanciera1,G472<=CapFinanciera2),Puntajes!$D$13,IF(AND(G472>CapFinanciera2,G472<=CapFinanciera3),Puntajes!$D$14,IF(AND(G472>CapFinanciera3,G472<=CapFinanciera4),Puntajes!$D$15,IF(G472>CapFinanciera4,Puntajes!$D$16,0))))))","v":40}]
["rup incompleto",null,{"$f":"+'Capacidad Financiera'!B476","v":43.2},{"$f":"IF(ISERROR(VLOOKUP(C473,'Capacidad Financiera'!$B$12:$X$62720,2,0)),\"\",VLOOKUP(C473,'Capacidad Financiera'!$B$12:$X$3580,2,0))","v":"FRANKLIN PIRAGUA ROA"},{"$f":"IF(OR(C473=\"\",D473=\"\"),\"\",IF(ISERROR(VLOOKUP(D473,'Capacidad Financiera'!$C$13:$X$62720,3,0)),\"\",VLOOKUP(D473,'Capacidad Financiera'!$C$13:$X$62720,3,0)))","v":0},{"$f":"IF(OR(C473=\"\",D473=\"\"),\"\",IF(ISERROR(VLOOKUP(D473,'Capacidad Financiera'!$C$13:$X$62720,5,0)),\"\",VLOOKUP(D473,'Capacidad Financiera'!$C$13:$X$62720,5,0)))","v":0},0,{"$f":"IF(OR(D473=\"\",E473=\"\",F473=\"\"),\"\",IF(AND(G473>0,G473<=CapFinanciera1),Puntajes!$D$12,IF(AND(G473>CapFinanciera1,G473<=CapFinanciera2),Puntajes!$D$13,IF(AND(G473>CapFinanciera2,G473<=CapFinanciera3),Puntajes!$D$14,IF(AND(G473>CapFinanciera3,G473<=CapFinanciera4),Puntajes!$D$15,IF(G473>CapFinanciera4,Puntajes!$D$16,0))))))","v":0}]
["rup incompleto",null,{"$f":"+'Capacidad Financiera'!B477","v":43.300000000000004},{"$f":"IF(ISERROR(VLOOKUP(C474,'Capacidad Financiera'!$B$12:$X$62720,2,0)),\"\",VLOOKUP(C474,'Capacidad Financiera'!$B$12:$X$3580,2,0))","v":"CARLOS ARANGO SALAZAR"},{"$f":"IF(OR(C474=\"\",D474=\"\"),\"\",IF(ISERROR(VLOOKUP(D474,'Capacidad Financiera'!$C$13:$X$62720,3,0)),\"\",VLOOKUP(D474,'Capacidad Financiera'!$C$13:$X$62720,3,0)))","v":0},{"$f":"IF(OR(C474=\"\",D474=\"\"),\"\",IF(ISERROR(VLOOKUP(D474,'Capacidad Financiera'!$C$13:$X$62720,5,0)),\"\",VLOOKUP(D474,'Capacidad Financiera'!$C$13:$X$62720,5,0)))","v":0},0,{"$f":"IF(OR(D474=\"\",E474=\"\",F474=\"\"),\"\",IF(AND(G474>0,G474<=CapFinanciera1),Puntajes!$D$12,IF(AND(G474>CapFinanciera1,G474<=CapFinanciera2),Puntajes!$D$13,IF(AND(G474>CapFinanciera2,G474<=CapFinanciera3),Puntajes!$D$14,IF(AND(G474>CapFinanciera3,G474<=CapFinanciera4),Puntajes!$D$15,IF(G474>CapFinanciera4,Puntajes!$D$16,0))))))","v":0}]
[null,null,{"$f":"+'Capacidad Financiera'!B478","v":""},{"$f":"IF(ISERROR(VLOOKUP(C475,'Capacidad Financiera'!$B$12:$X$62720,2,0)),\"\",VLOOKUP(C475,'Capacidad Financiera'!$B$12:$X$3580,2,0))","v":0},{"$f":"IF(OR(C475=\"\",D475=\"\"),\"\",IF(ISERROR(VLOOKUP(D475,'Capacidad Financiera'!$C$13:$X$62720,3,0)),\"\",VLOOKUP(D475,'Capacidad Financiera'!$C$13:$X$62720,3,0)))","v":""},{"$f":"IF(OR(C475=\"\",D475=\"\"),\"\",IF(ISERROR(VLOOKUP(D475,'Capacidad Financiera'!$C$13:$X$62720,5,0)),\"\",VLOOKUP(D475,'Capacidad Financiera'!$C$13:$X$62720,5,0)))","v":""},"",{"$f":"IF(OR(D475=\"\",E475=\"\",F475=\"\"),\"\",IF(AND(G475>0,G475<=CapFinanciera1),Puntajes!$D$12,IF(AND(G475>CapFinanciera1,G475<=CapFinanciera2),Puntajes!$D$13,IF(AND(G475>CapFinanciera2,G475<=CapFinanciera3),Puntajes!$D$14,IF(AND(G475>CapFinanciera3,G475<=CapFinanciera4),Puntajes!$D$15,IF(G475>CapFinanciera4,Puntajes!$D$16,0))))))","v":""}]
[null,null,{"$f":"+'Capacidad Financiera'!B479","v":""},{"$f":"IF(ISERROR(VLOOKUP(C476,'Capacidad Financiera'!$B$12:$X$62720,2,0)),\"\",VLOOKUP(C476,'Capacidad Financiera'!$B$12:$X$3580,2,0))","v":0},{"$f":"IF(OR(C476=\"\",D476=\"\"),\"\",IF(ISERROR(VLOOKUP(D476,'Capacidad Financiera'!$C$13:$X$62720,3,0)),\"\",VLOOKUP(D476,'Capacidad Financiera'!$C$13:$X$62720,3,0)))","v":""},{"$f":"IF(OR(C476=\"\",D476=\"\"),\"\",IF(ISERROR(VLOOKUP(D476,'Capacidad Financiera'!$C$13:$X$62720,5,0)),\"\",VLOOKUP(D476,'Capacidad Financiera'!$C$13:$X$62720,5,0)))","v":""},"",{"$f":"IF(OR(D476=\"\",E476=\"\",F476=\"\"),\"\",IF(AND(G476>0,G476<=CapFinanciera1),Puntajes!$D$12,IF(AND(G476>CapFinanciera1,G476<=CapFinanciera2),Puntajes!$D$13,IF(AND(G476>CapFinanciera2,G476<=CapFinanciera3),Puntajes!$D$14,IF(AND(G476>CapFinanciera3,G476<=CapFinanciera4),Puntajes!$D$15,IF(G476>CapFinanciera4,Puntajes!$D$16,0))))))","v":""}]
[null,null,{"$f":"+'Capacidad Financiera'!B480","v":""},{"$f":"IF(ISERROR(VLOOKUP(C477,'Capacidad Financiera'!$B$12:$X$62720,2,0)),\"\",VLOOKUP(C477,'Capacidad Financiera'!$B$12:$X$3580,2,0))","v":0},{"$f":"IF(OR(C477=\"\",D477=\"\"),\"\",IF(ISERROR(VLOOKUP(D477,'Capacidad Financiera'!$C$13:$X$62720,3,0)),\"\",VLOOKUP(D477,'Capacidad Financiera'!$C$13:$X$62720,3,0)))","v":""},{"$f":"IF(OR(C477=\"\",D477=\"\"),\"\",IF(ISERROR(VLOOKUP(D477,'Capacidad Financiera'!$C$13:$X$62720,5,0)),\"\",VLOOKUP(D477,'Capacidad Financiera'!$C$13:$X$62720,5,0)))","v":""},"",{"$f":"IF(OR(D477=\"\",E477=\"\",F477=\"\"),\"\",IF(AND(G477>0,G477<=CapFinanciera1),Puntajes!$D$12,IF(AND(G477>CapFinanciera1,G477<=CapFinanciera2),Puntajes!$D$13,IF(AND(G477>CapFinanciera2,G477<=CapFinanciera3),Puntajes!$D$14,IF(AND(G477>CapFinanciera3,G477<=CapFinanciera4),Puntajes!$D$15,IF(G477>CapFinanciera4,Puntajes!$D$16,0))))))","v":""}]
[null,null,{"$f":"+'Capacidad Financiera'!B481","v":""},{"$f":"IF(ISERROR(VLOOKUP(C478,'Capacidad Financiera'!$B$12:$X$62720,2,0)),\"\",VLOOKUP(C478,'Capacidad Financiera'!$B$12:$X$3580,2,0))","v":0},{"$f":"IF(OR(C478=\"\",D478=\"\"),\"\",IF(ISERROR(VLOOKUP(D478,'Capacidad Financiera'!$C$13:$X$62720,3,0)),\"\",VLOOKUP(D478,'Capacidad Financiera'!$C$13:$X$62720,3,0)))","v":""},{"$f":"IF(OR(C478=\"\",D478=\"\"),\"\",IF(ISERROR(VLOOKUP(D478,'Capacidad Financiera'!$C$13:$X$62720,5,0)),\"\",VLOOKUP(D478,'Capacidad Financiera'!$C$13:$X$62720,5,0)))","v":""},"",{"$f":"IF(OR(D478=\"\",E478=\"\",F478=\"\"),\"\",IF(AND(G478>0,G478<=CapFinanciera1),Puntajes!$D$12,IF(AND(G478>CapFinanciera1,G478<=CapFinanciera2),Puntajes!$D$13,IF(AND(G478>CapFinanciera2,G478<=CapFinanciera3),Puntajes!$D$14,IF(AND(G478>CapFinanciera3,G478<=CapFinanciera4),Puntajes!$D$15,IF(G478>CapFinanciera4,Puntajes!$D$16,0))))))","v":""}]
[null,null,{"$f":"+'Capacidad Financiera'!B482","v":""},{"$f":"IF(ISERROR(VLOOKUP(C479,'Capacidad Financiera'!$B$12:$X$62720,2,0)),\"\",VLOOKUP(C479,'Capacidad Financiera'!$B$12:$X$3580,2,0))","v":0},{"$f":"IF(OR(C479=\"\",D479=\"\"),\"\",IF(ISERROR(VLOOKUP(D479,'Capacidad Financiera'!$C$13:$X$62720,3,0)),\"\",VLOOKUP(D479,'Capacidad Financiera'!$C$13:$X$62720,3,0)))","v":""},{"$f":"IF(OR(C479=\"\",D479=\"\"),\"\",IF(ISERROR(VLOOKUP(D479,'Capacidad Financiera'!$C$13:$X$62720,5,0)),\"\",VLOOKUP(D479,'Capacidad Financiera'!$C$13:$X$62720,5,0)))","v":""},"",{"$f":"IF(OR(D479=\"\",E479=\"\",F479=\"\"),\"\",IF(AND(G479>0,G479<=CapFinanciera1),Puntajes!$D$12,IF(AND(G479>CapFinanciera1,G479<=CapFinanciera2),Puntajes!$D$13,IF(AND(G479>CapFinanciera2,G479<=CapFinanciera3),Puntajes!$D$14,IF(AND(G479>CapFinanciera3,G479<=CapFinanciera4),Puntajes!$D$15,IF(G479>CapFinanciera4,Puntajes!$D$16,0))))))","v":""}]
[null,null,{"$f":"+'Capacidad Financiera'!B483","v":""},{"$f":"IF(ISERROR(VLOOKUP(C480,'Capacidad Financiera'!$B$12:$X$62720,2,0)),\"\",VLOOKUP(C480,'Capacidad Financiera'!$B$12:$X$3580,2,0))","v":0},{"$f":"IF(OR(C480=\"\",D480=\"\"),\"\",IF(ISERROR(VLOOKUP(D480,'Capacidad Financiera'!$C$13:$X$62720,3,0)),\"\",VLOOKUP(D480,'Capacidad Financiera'!$C$13:$X$62720,3,0)))","v":""},{"$f":"IF(OR(C480=\"\",D480=\"\"),\"\",IF(ISERROR(VLOOKUP(D480,'Capacidad Financiera'!$C$13:$X$62720,5,0)),\"\",VLOOKUP(D480,'Capacidad Financiera'!$C$13:$X$62720,5,0)))","v":""},"",{"$f":"IF(OR(D480=\"\",E480=\"\",F480=\"\"),\"\",IF(AND(G480>0,G480<=CapFinanciera1),Puntajes!$D$12,IF(AND(G480>CapFinanciera1,G480<=CapFinanciera2),Puntajes!$D$13,IF(AND(G480>CapFinanciera2,G480<=CapFinanciera3),Puntajes!$D$14,IF(AND(G480>CapFinanciera3,G480<=CapFinanciera4),Puntajes!$D$15,IF(G480>CapFinanciera4,Puntajes!$D$16,0))))))","v":""}]
[null,null,{"$f":"+'Capacidad Financiera'!B484","v":""},{"$f":"IF(ISERROR(VLOOKUP(C481,'Capacidad Financiera'!$B$12:$X$62720,2,0)),\"\",VLOOKUP(C481,'Capacidad Financiera'!$B$12:$X$3580,2,0))","v":0},{"$f":"IF(OR(C481=\"\",D481=\"\"),\"\",IF(ISERROR(VLOOKUP(D481,'Capacidad Financiera'!$C$13:$X$62720,3,0)),\"\",VLOOKUP(D481,'Capacidad Financiera'!$C$13:$X$62720,3,0)))","v":""},{"$f":"IF(OR(C481=\"\",D481=\"\"),\"\",IF(ISERROR(VLOOKUP(D481,'Capacidad Financiera'!$C$13:$X$62720,5,0)),\"\",VLOOKUP(D481,'Capacidad Financiera'!$C$13:$X$62720,5,0)))","v":""},"",{"$f":"IF(OR(D481=\"\",E481=\"\",F481=\"\"),\"\",IF(AND(G481>0,G481<=CapFinanciera1),Puntajes!$D$12,IF(AND(G481>CapFinanciera1,G481<=CapFinanciera2),Puntajes!$D$13,IF(AND(G481>CapFinanciera2,G481<=CapFinanciera3),Puntajes!$D$14,IF(AND(G481>CapFinanciera3,G481<=CapFinanciera4),Puntajes!$D$15,IF(G481>CapFinanciera4,Puntajes!$D$16,0))))))","v":""}]
[null,null,44,{"$f":"IF(ISERROR(VLOOKUP(C482,'Capacidad Financiera'!$B$12:$X$62720,2,0)),\"\",VLOOKUP(C482,'Capacidad Financiera'!$B$12:$X$3580,2,0))","v":"CONCRETOS Y ASFALTOS S.A."},{"$f":"IF(C483=\"\",IF(C482<>\"\",IF(ISERROR(VLOOKUP(D482,'Capacidad Financiera'!$C$12:$H$22,3,0)),\"\",VLOOKUP(D482,'Capacidad Financiera'!$C$12:$H$22,3,0))),\"\")","v":""},{"$f":"IF(C483=\"\",IF(C482<>\"\",IF(ISERROR(VLOOKUP(D482,'Capacidad Financiera'!$C$12:$H$22,5,0)),\"\",VLOOKUP(D482,'Capacidad Financiera'!$C$12:$H$22,5,0))),\"\")","v":""},{"$f":"IF(OR(D482=\"\",E482=\"\",F482=\"\"),\"\",IF(OR(E482=0,F482=0),0,E482/F482))","v":""},{"$f":"IF(C483=\"\",IF(AND(E482=\"\",F482=\"\"),\"\",IF(AND(G482>0,G482<=CapFinanciera1),Puntajes!$D$12,IF(AND(G482>CapFinanciera1,G482<=CapFinanciera2),Puntajes!$D$13,IF(AND(G482>CapFinanciera2,G482<=CapFinanciera3),Puntajes!$D$14,IF(AND(G482>CapFinanciera3,G482<=CapFinanciera4),Puntajes!$D$15,IF(G482>CapFinanciera4,Puntajes!$D$16,0)))))),\"\")","v":""}]
[null,null,{"$f":"+'Capacidad Financiera'!B486","v":44.1},{"$f":"IF(ISERROR(VLOOKUP(C483,'Capacidad Financiera'!$B$12:$X$62720,2,0)),\"\",VLOOKUP(C483,'Capacidad Financiera'!$B$12:$X$3580,2,0))","v":"CONCRETOS Y ASFALTOS S.A."},{"$f":"IF(OR(C483=\"\",D483=\"\"),\"\",IF(ISERROR(VLOOKUP(D483,'Capacidad Financiera'!$C$13:$X$62720,3,0)),\"\",VLOOKUP(D483,'Capacidad Financiera'!$C$13:$X$62720,3,0)))","v":54258671993},{"$f":"IF(OR(C483=\"\",D483=\"\"),\"\",IF(ISERROR(VLOOKUP(D483,'Capacidad Financiera'!$C$13:$X$62720,5,0)),\"\",VLOOKUP(D483,'Capacidad Financiera'!$C$13:$X$62720,5,0)))","v":25035712683},{"$f":"IF(OR(D483=\"\",E483=\"\",F483=\"\"),\"\",IF(OR(E483=0,F483=0),0,E483/F483))","v":2.1672509458795344},{"$f":"IF(OR(D483=\"\",E483=\"\",F483=\"\"),\"\",IF(AND(G483>0,G483<=CapFinanciera1),Puntajes!$D$12,IF(AND(G483>CapFinanciera1,G483<=CapFinanciera2),Puntajes!$D$13,IF(AND(G483>CapFinanciera2,G483<=CapFinanciera3),Puntajes!$D$14,IF(AND(G483>CapFinanciera3,G483<=CapFinanciera4),Puntajes!$D$15,IF(G483>CapFinanciera4,Puntajes!$D$16,0))))))","v":40}]
[null,null,{"$f":"+'Capacidad Financiera'!B487","v":""},{"$f":"IF(ISERROR(VLOOKUP(C484,'Capacidad Financiera'!$B$12:$X$62720,2,0)),\"\",VLOOKUP(C484,'Capacidad Financiera'!$B$12:$X$3580,2,0))","v":0},{"$f":"IF(OR(C484=\"\",D484=\"\"),\"\",IF(ISERROR(VLOOKUP(D484,'Capacidad Financiera'!$C$13:$X$62720,3,0)),\"\",VLOOKUP(D484,'Capacidad Financiera'!$C$13:$X$62720,3,0)))","v":""},{"$f":"IF(OR(C484=\"\",D484=\"\"),\"\",IF(ISERROR(VLOOKUP(D484,'Capacidad Financiera'!$C$13:$X$62720,5,0)),\"\",VLOOKUP(D484,'Capacidad Financiera'!$C$13:$X$62720,5,0)))","v":""},"",{"$f":"IF(OR(D484=\"\",E484=\"\",F484=\"\"),\"\",IF(AND(G484>0,G484<=CapFinanciera1),Puntajes!$D$12,IF(AND(G484>CapFinanciera1,G484<=CapFinanciera2),Puntajes!$D$13,IF(AND(G484>CapFinanciera2,G484<=CapFinanciera3),Puntajes!$D$14,IF(AND(G484>CapFinanciera3,G484<=CapFinanciera4),Puntajes!$D$15,IF(G484>CapFinanciera4,Puntajes!$D$16,0))))))","v":""}]
[null,null,{"$f":"+'Capacidad Financiera'!B488","v":""},{"$f":"IF(ISERROR(VLOOKUP(C485,'Capacidad Financiera'!$B$12:$X$62720,2,0)),\"\",VLOOKUP(C485,'Capacidad Financiera'!$B$12:$X$3580,2,0))","v":0},{"$f":"IF(OR(C485=\"\",D485=\"\"),\"\",IF(ISERROR(VLOOKUP(D485,'Capacidad Financiera'!$C$13:$X$62720,3,0)),\"\",VLOOKUP(D485,'Capacidad Financiera'!$C$13:$X$62720,3,0)))","v":""},{"$f":"IF(OR(C485=\"\",D485=\"\"),\"\",IF(ISERROR(VLOOKUP(D485,'Capacidad Financiera'!$C$13:$X$62720,5,0)),\"\",VLOOKUP(D485,'Capacidad Financiera'!$C$13:$X$62720,5,0)))","v":""},"",{"$f":"IF(OR(D485=\"\",E485=\"\",F485=\"\"),\"\",IF(AND(G485>0,G485<=CapFinanciera1),Puntajes!$D$12,IF(AND(G485>CapFinanciera1,G485<=CapFinanciera2),Puntajes!$D$13,IF(AND(G485>CapFinanciera2,G485<=CapFinanciera3),Puntajes!$D$14,IF(AND(G485>CapFinanciera3,G485<=CapFinanciera4),Puntajes!$D$15,IF(G485>CapFinanciera4,Puntajes!$D$16,0))))))","v":""}]
[null,null,{"$f":"+'Capacidad Financiera'!B489","v":""},{"$f":"IF(ISERROR(VLOOKUP(C486,'Capacidad Financiera'!$B$12:$X$62720,2,0)),\"\",VLOOKUP(C486,'Capacidad Financiera'!$B$12:$X$3580,2,0))","v":0},{"$f":"IF(OR(C486=\"\",D486=\"\"),\"\",IF(ISERROR(VLOOKUP(D486,'Capacidad Financiera'!$C$13:$X$62720,3,0)),\"\",VLOOKUP(D486,'Capacidad Financiera'!$C$13:$X$62720,3,0)))","v":""},{"$f":"IF(OR(C486=\"\",D486=\"\"),\"\",IF(ISERROR(VLOOKUP(D486,'Capacidad Financiera'!$C$13:$X$62720,5,0)),\"\",VLOOKUP(D486,'Capacidad Financiera'!$C$13:$X$62720,5,0)))","v":""},"",{"$f":"IF(OR(D486=\"\",E486=\"\",F486=\"\"),\"\",IF(AND(G486>0,G486<=CapFinanciera1),Puntajes!$D$12,IF(AND(G486>CapFinanciera1,G486<=CapFinanciera2),Puntajes!$D$13,IF(AND(G486>CapFinanciera2,G486<=CapFinanciera3),Puntajes!$D$14,IF(AND(G486>CapFinanciera3,G486<=CapFinanciera4),Puntajes!$D$15,IF(G486>CapFinanciera4,Puntajes!$D$16,0))))))","v":""}]
[null,null,{"$f":"+'Capacidad Financiera'!B490","v":""},{"$f":"IF(ISERROR(VLOOKUP(C487,'Capacidad Financiera'!$B$12:$X$62720,2,0)),\"\",VLOOKUP(C487,'Capacidad Financiera'!$B$12:$X$3580,2,0))","v":0},{"$f":"IF(OR(C487=\"\",D487=\"\"),\"\",IF(ISERROR(VLOOKUP(D487,'Capacidad Financiera'!$C$13:$X$62720,3,0)),\"\",VLOOKUP(D487,'Capacidad Financiera'!$C$13:$X$62720,3,0)))","v":""},{"$f":"IF(OR(C487=\"\",D487=\"\"),\"\",IF(ISERROR(VLOOKUP(D487,'Capacidad Financiera'!$C$13:$X$62720,5,0)),\"\",VLOOKUP(D487,'Capacidad Financiera'!$C$13:$X$62720,5,0)))","v":""},"",{"$f":"IF(OR(D487=\"\",E487=\"\",F487=\"\"),\"\",IF(AND(G487>0,G487<=CapFinanciera1),Puntajes!$D$12,IF(AND(G487>CapFinanciera1,G487<=CapFinanciera2),Puntajes!$D$13,IF(AND(G487>CapFinanciera2,G487<=CapFinanciera3),Puntajes!$D$14,IF(AND(G487>CapFinanciera3,G487<=CapFinanciera4),Puntajes!$D$15,IF(G487>CapFinanciera4,Puntajes!$D$16,0))))))","v":""}]
[null,null,{"$f":"+'Capacidad Financiera'!B491","v":""},{"$f":"IF(ISERROR(VLOOKUP(C488,'Capacidad Financiera'!$B$12:$X$62720,2,0)),\"\",VLOOKUP(C488,'Capacidad Financiera'!$B$12:$X$3580,2,0))","v":0},{"$f":"IF(OR(C488=\"\",D488=\"\"),\"\",IF(ISERROR(VLOOKUP(D488,'Capacidad Financiera'!$C$13:$X$62720,3,0)),\"\",VLOOKUP(D488,'Capacidad Financiera'!$C$13:$X$62720,3,0)))","v":""},{"$f":"IF(OR(C488=\"\",D488=\"\"),\"\",IF(ISERROR(VLOOKUP(D488,'Capacidad Financiera'!$C$13:$X$62720,5,0)),\"\",VLOOKUP(D488,'Capacidad Financiera'!$C$13:$X$62720,5,0)))","v":""},"",{"$f":"IF(OR(D488=\"\",E488=\"\",F488=\"\"),\"\",IF(AND(G488>0,G488<=CapFinanciera1),Puntajes!$D$12,IF(AND(G488>CapFinanciera1,G488<=CapFinanciera2),Puntajes!$D$13,IF(AND(G488>CapFinanciera2,G488<=CapFinanciera3),Puntajes!$D$14,IF(AND(G488>CapFinanciera3,G488<=CapFinanciera4),Puntajes!$D$15,IF(G488>CapFinanciera4,Puntajes!$D$16,0))))))","v":""}]
[null,null,{"$f":"+'Capacidad Financiera'!B492","v":""},{"$f":"IF(ISERROR(VLOOKUP(C489,'Capacidad Financiera'!$B$12:$X$62720,2,0)),\"\",VLOOKUP(C489,'Capacidad Financiera'!$B$12:$X$3580,2,0))","v":0},{"$f":"IF(OR(C489=\"\",D489=\"\"),\"\",IF(ISERROR(VLOOKUP(D489,'Capacidad Financiera'!$C$13:$X$62720,3,0)),\"\",VLOOKUP(D489,'Capacidad Financiera'!$C$13:$X$62720,3,0)))","v":""},{"$f":"IF(OR(C489=\"\",D489=\"\"),\"\",IF(ISERROR(VLOOKUP(D489,'Capacidad Financiera'!$C$13:$X$62720,5,0)),\"\",VLOOKUP(D489,'Capacidad Financiera'!$C$13:$X$62720,5,0)))","v":""},"",{"$f":"IF(OR(D489=\"\",E489=\"\",F489=\"\"),\"\",IF(AND(G489>0,G489<=CapFinanciera1),Puntajes!$D$12,IF(AND(G489>CapFinanciera1,G489<=CapFinanciera2),Puntajes!$D$13,IF(AND(G489>CapFinanciera2,G489<=CapFinanciera3),Puntajes!$D$14,IF(AND(G489>CapFinanciera3,G489<=CapFinanciera4),Puntajes!$D$15,IF(G489>CapFinanciera4,Puntajes!$D$16,0))))))","v":""}]
[null,null,{"$f":"+'Capacidad Financiera'!B493","v":""},{"$f":"IF(ISERROR(VLOOKUP(C490,'Capacidad Financiera'!$B$12:$X$62720,2,0)),\"\",VLOOKUP(C490,'Capacidad Financiera'!$B$12:$X$3580,2,0))","v":0},{"$f":"IF(OR(C490=\"\",D490=\"\"),\"\",IF(ISERROR(VLOOKUP(D490,'Capacidad Financiera'!$C$13:$X$62720,3,0)),\"\",VLOOKUP(D490,'Capacidad Financiera'!$C$13:$X$62720,3,0)))","v":""},{"$f":"IF(OR(C490=\"\",D490=\"\"),\"\",IF(ISERROR(VLOOKUP(D490,'Capacidad Financiera'!$C$13:$X$62720,5,0)),\"\",VLOOKUP(D490,'Capacidad Financiera'!$C$13:$X$62720,5,0)))","v":""},"",{"$f":"IF(OR(D490=\"\",E490=\"\",F490=\"\"),\"\",IF(AND(G490>0,G490<=CapFinanciera1),Puntajes!$D$12,IF(AND(G490>CapFinanciera1,G490<=CapFinanciera2),Puntajes!$D$13,IF(AND(G490>CapFinanciera2,G490<=CapFinanciera3),Puntajes!$D$14,IF(AND(G490>CapFinanciera3,G490<=CapFinanciera4),Puntajes!$D$15,IF(G490>CapFinanciera4,Puntajes!$D$16,0))))))","v":""}]
[null,null,{"$f":"+'Capacidad Financiera'!B494","v":""},{"$f":"IF(ISERROR(VLOOKUP(C491,'Capacidad Financiera'!$B$12:$X$62720,2,0)),\"\",VLOOKUP(C491,'Capacidad Financiera'!$B$12:$X$3580,2,0))","v":0},{"$f":"IF(OR(C491=\"\",D491=\"\"),\"\",IF(ISERROR(VLOOKUP(D491,'Capacidad Financiera'!$C$13:$X$62720,3,0)),\"\",VLOOKUP(D491,'Capacidad Financiera'!$C$13:$X$62720,3,0)))","v":""},{"$f":"IF(OR(C491=\"\",D491=\"\"),\"\",IF(ISERROR(VLOOKUP(D491,'Capacidad Financiera'!$C$13:$X$62720,5,0)),\"\",VLOOKUP(D491,'Capacidad Financiera'!$C$13:$X$62720,5,0)))","v":""},"",{"$f":"IF(OR(D491=\"\",E491=\"\",F491=\"\"),\"\",IF(AND(G491>0,G491<=CapFinanciera1),Puntajes!$D$12,IF(AND(G491>CapFinanciera1,G491<=CapFinanciera2),Puntajes!$D$13,IF(AND(G491>CapFinanciera2,G491<=CapFinanciera3),Puntajes!$D$14,IF(AND(G491>CapFinanciera3,G491<=CapFinanciera4),Puntajes!$D$15,IF(G491>CapFinanciera4,Puntajes!$D$16,0))))))","v":""}]
[null,null,{"$f":"+'Capacidad Financiera'!B495","v":""},{"$f":"IF(ISERROR(VLOOKUP(C492,'Capacidad Financiera'!$B$12:$X$62720,2,0)),\"\",VLOOKUP(C492,'Capacidad Financiera'!$B$12:$X$3580,2,0))","v":0},{"$f":"IF(OR(C492=\"\",D492=\"\"),\"\",IF(ISERROR(VLOOKUP(D492,'Capacidad Financiera'!$C$13:$X$62720,3,0)),\"\",VLOOKUP(D492,'Capacidad Financiera'!$C$13:$X$62720,3,0)))","v":""},{"$f":"IF(OR(C492=\"\",D492=\"\"),\"\",IF(ISERROR(VLOOKUP(D492,'Capacidad Financiera'!$C$13:$X$62720,5,0)),\"\",VLOOKUP(D492,'Capacidad Financiera'!$C$13:$X$62720,5,0)))","v":""},"",{"$f":"IF(OR(D492=\"\",E492=\"\",F492=\"\"),\"\",IF(AND(G492>0,G492<=CapFinanciera1),Puntajes!$D$12,IF(AND(G492>CapFinanciera1,G492<=CapFinanciera2),Puntajes!$D$13,IF(AND(G492>CapFinanciera2,G492<=CapFinanciera3),Puntajes!$D$14,IF(AND(G492>CapFinanciera3,G492<=CapFinanciera4),Puntajes!$D$15,IF(G492>CapFinanciera4,Puntajes!$D$16,0))))))","v":""}]
[null,null,45,{"$f":"IF(ISERROR(VLOOKUP(C493,'Capacidad Financiera'!$B$12:$X$62720,2,0)),\"\",VLOOKUP(C493,'Capacidad Financiera'!$B$12:$X$3580,2,0))","v":"CONSORCIO INFRAESTRUCTURA GUASCA"},{"$f":"IF(C494=\"\",IF(C493<>\"\",IF(ISERROR(VLOOKUP(D493,'Capacidad Financiera'!$C$12:$H$22,3,0)),\"\",VLOOKUP(D493,'Capacidad Financiera'!$C$12:$H$22,3,0))),\"\")","v":""},{"$f":"IF(C494=\"\",IF(C493<>\"\",IF(ISERROR(VLOOKUP(D493,'Capacidad Financiera'!$C$12:$H$22,5,0)),\"\",VLOOKUP(D493,'Capacidad Financiera'!$C$12:$H$22,5,0))),\"\")","v":""},{"$f":"IF(OR(D493=\"\",E493=\"\",F493=\"\"),\"\",IF(OR(E493=0,F493=0),0,E493/F493))","v":""},{"$f":"IF(C494=\"\",IF(AND(E493=\"\",F493=\"\"),\"\",IF(AND(G493>0,G493<=CapFinanciera1),Puntajes!$D$12,IF(AND(G493>CapFinanciera1,G493<=CapFinanciera2),Puntajes!$D$13,IF(AND(G493>CapFinanciera2,G493<=CapFinanciera3),Puntajes!$D$14,IF(AND(G493>CapFinanciera3,G493<=CapFinanciera4),Puntajes!$D$15,IF(G493>CapFinanciera4,Puntajes!$D$16,0)))))),\"\")","v":""}]
[null,null,{"$f":"+'Capacidad Financiera'!B497","v":45.1},{"$f":"IF(ISERROR(VLOOKUP(C494,'Capacidad Financiera'!$B$12:$X$62720,2,0)),\"\",VLOOKUP(C494,'Capacidad Financiera'!$B$12:$X$3580,2,0))","v":"INFRAESTRUCTURA NACIONAL LTDA."},{"$f":"IF(OR(C494=\"\",D494=\"\"),\"\",IF(ISERROR(VLOOKUP(D494,'Capacidad Financiera'!$C$13:$X$62720,3,0)),\"\",VLOOKUP(D494,'Capacidad Financiera'!$C$13:$X$62720,3,0)))","v":1537410811},{"$f":"IF(OR(C494=\"\",D494=\"\"),\"\",IF(ISERROR(VLOOKUP(D494,'Capacidad Financiera'!$C$13:$X$62720,5,0)),\"\",VLOOKUP(D494,'Capacidad Financiera'!$C$13:$X$62720,5,0)))","v":238652254},{"$f":"IF(OR(D494=\"\",E494=\"\",F494=\"\"),\"\",IF(OR(E494=0,F494=0),0,E494/F494))","v":6.4420544337284991},{"$f":"IF(OR(D494=\"\",E494=\"\",F494=\"\"),\"\",IF(AND(G494>0,G494<=CapFinanciera1),Puntajes!$D$12,IF(AND(G494>CapFinanciera1,G494<=CapFinanciera2),Puntajes!$D$13,IF(AND(G494>CapFinanciera2,G494<=CapFinanciera3),Puntajes!$D$14,IF(AND(G494>CapFinanciera3,G494<=CapFinanciera4),Puntajes!$D$15,IF(G494>CapFinanciera4,Puntajes!$D$16,0))))))","v":40}]
[null,null,{"$f":"+'Capacidad Financiera'!B498","v":45.2},{"$f":"IF(ISERROR(VLOOKUP(C495,'Capacidad Financiera'!$B$12:$X$62720,2,0)),\"\",VLOOKUP(C495,'Capacidad Financiera'!$B$12:$X$3580,2,0))","v":"RB DE COLOMBIA S.A."},{"$f":"IF(OR(C495=\"\",D495=\"\"),\"\",IF(ISERROR(VLOOKUP(D495,'Capacidad Financiera'!$C$13:$X$62720,3,0)),\"\",VLOOKUP(D495,'Capacidad Financiera'!$C$13:$X$62720,3,0)))","v":7055311908},{"$f":"IF(OR(C495=\"\",D495=\"\"),\"\",IF(ISERROR(VLOOKUP(D495,'Capacidad Financiera'!$C$13:$X$62720,5,0)),\"\",VLOOKUP(D495,'Capacidad Financiera'!$C$13:$X$62720,5,0)))","v":3503277862},2.0139173042848979,{"$f":"IF(OR(D495=\"\",E495=\"\",F495=\"\"),\"\",IF(AND(G495>0,G495<=CapFinanciera1),Puntajes!$D$12,IF(AND(G495>CapFinanciera1,G495<=CapFinanciera2),Puntajes!$D$13,IF(AND(G495>CapFinanciera2,G495<=CapFinanciera3),Puntajes!$D$14,IF(AND(G495>CapFinanciera3,G495<=CapFinanciera4),Puntajes!$D$15,IF(G495>CapFinanciera4,Puntajes!$D$16,0))))))","v":40}]
[null,null,{"$f":"+'Capacidad Financiera'!B499","v":45.300000000000004},{"$f":"IF(ISERROR(VLOOKUP(C496,'Capacidad Financiera'!$B$12:$X$62720,2,0)),\"\",VLOOKUP(C496,'Capacidad Financiera'!$B$12:$X$3580,2,0))","v":"YAMIL MONTENEGRO CALDERON"},{"$f":"IF(OR(C496=\"\",D496=\"\"),\"\",IF(ISERROR(VLOOKUP(D496,'Capacidad Financiera'!$C$13:$X$62720,3,0)),\"\",VLOOKUP(D496,'Capacidad Financiera'!$C$13:$X$62720,3,0)))","v":10360091186},{"$f":"IF(OR(C496=\"\",D496=\"\"),\"\",IF(ISERROR(VLOOKUP(D496,'Capacidad Financiera'!$C$13:$X$62720,5,0)),\"\",VLOOKUP(D496,'Capacidad Financiera'!$C$13:$X$62720,5,0)))","v":2625245154},3.9463328482731104,{"$f":"IF(OR(D496=\"\",E496=\"\",F496=\"\"),\"\",IF(AND(G496>0,G496<=CapFinanciera1),Puntajes!$D$12,IF(AND(G496>CapFinanciera1,G496<=CapFinanciera2),Puntajes!$D$13,IF(AND(G496>CapFinanciera2,G496<=CapFinanciera3),Puntajes!$D$14,IF(AND(G496>CapFinanciera3,G496<=CapFinanciera4),Puntajes!$D$15,IF(G496>CapFinanciera4,Puntajes!$D$16,0))))))","v":40}]
[null,null,{"$f":"+'Capacidad Financiera'!B500","v":""},{"$f":"IF(ISERROR(VLOOKUP(C497,'Capacidad Financiera'!$B$12:$X$62720,2,0)),\"\",VLOOKUP(C497,'Capacidad Financiera'!$B$12:$X$3580,2,0))","v":0},{"$f":"IF(OR(C497=\"\",D497=\"\"),\"\",IF(ISERROR(VLOOKUP(D497,'Capacidad Financiera'!$C$13:$X$62720,3,0)),\"\",VLOOKUP(D497,'Capacidad Financiera'!$C$13:$X$62720,3,0)))","v":""},{"$f":"IF(OR(C497=\"\",D497=\"\"),\"\",IF(ISERROR(VLOOKUP(D497,'Capacidad Financiera'!$C$13:$X$62720,5,0)),\"\",VLOOKUP(D497,'Capacidad Financiera'!$C$13:$X$62720,5,0)))","v":""},"",{"$f":"IF(OR(D497=\"\",E497=\"\",F497=\"\"),\"\",IF(AND(G497>0,G497<=CapFinanciera1),Puntajes!$D$12,IF(AND(G497>CapFinanciera1,G497<=CapFinanciera2),Puntajes!$D$13,IF(AND(G497>CapFinanciera2,G497<=CapFinanciera3),Puntajes!$D$14,IF(AND(G497>CapFinanciera3,G497<=CapFinanciera4),Puntajes!$D$15,IF(G497>CapFinanciera4,Puntajes!$D$16,0))))))","v":""}]
[null,null,{"$f":"+'Capacidad Financiera'!B501","v":""},{"$f":"IF(ISERROR(VLOOKUP(C498,'Capacidad Financiera'!$B$12:$X$62720,2,0)),\"\",VLOOKUP(C498,'Capacidad Financiera'!$B$12:$X$3580,2,0))","v":0},{"$f":"IF(OR(C498=\"\",D498=\"\"),\"\",IF(ISERROR(VLOOKUP(D498,'Capacidad Financiera'!$C$13:$X$62720,3,0)),\"\",VLOOKUP(D498,'Capacidad Financiera'!$C$13:$X$62720,3,0)))","v":""},{"$f":"IF(OR(C498=\"\",D498=\"\"),\"\",IF(ISERROR(VLOOKUP(D498,'Capacidad Financiera'!$C$13:$X$62720,5,0)),\"\",VLOOKUP(D498,'Capacidad Financiera'!$C$13:$X$62720,5,0)))","v":""},"",{"$f":"IF(OR(D498=\"\",E498=\"\",F498=\"\"),\"\",IF(AND(G498>0,G498<=CapFinanciera1),Puntajes!$D$12,IF(AND(G498>CapFinanciera1,G498<=CapFinanciera2),Puntajes!$D$13,IF(AND(G498>CapFinanciera2,G498<=CapFinanciera3),Puntajes!$D$14,IF(AND(G498>CapFinanciera3,G498<=CapFinanciera4),Puntajes!$D$15,IF(G498>CapFinanciera4,Puntajes!$D$16,0))))))","v":""}]
[null,null,{"$f":"+'Capacidad Financiera'!B502","v":""},{"$f":"IF(ISERROR(VLOOKUP(C499,'Capacidad Financiera'!$B$12:$X$62720,2,0)),\"\",VLOOKUP(C499,'Capacidad Financiera'!$B$12:$X$3580,2,0))","v":0},{"$f":"IF(OR(C499=\"\",D499=\"\"),\"\",IF(ISERROR(VLOOKUP(D499,'Capacidad Financiera'!$C$13:$X$62720,3,0)),\"\",VLOOKUP(D499,'Capacidad Financiera'!$C$13:$X$62720,3,0)))","v":""},{"$f":"IF(OR(C499=\"\",D499=\"\"),\"\",IF(ISERROR(VLOOKUP(D499,'Capacidad Financiera'!$C$13:$X$62720,5,0)),\"\",VLOOKUP(D499,'Capacidad Financiera'!$C$13:$X$62720,5,0)))","v":""},"",{"$f":"IF(OR(D499=\"\",E499=\"\",F499=\"\"),\"\",IF(AND(G499>0,G499<=CapFinanciera1),Puntajes!$D$12,IF(AND(G499>CapFinanciera1,G499<=CapFinanciera2),Puntajes!$D$13,IF(AND(G499>CapFinanciera2,G499<=CapFinanciera3),Puntajes!$D$14,IF(AND(G499>CapFinanciera3,G499<=CapFinanciera4),Puntajes!$D$15,IF(G499>CapFinanciera4,Puntajes!$D$16,0))))))","v":""}]
[null,null,{"$f":"+'Capacidad Financiera'!B503","v":""},{"$f":"IF(ISERROR(VLOOKUP(C500,'Capacidad Financiera'!$B$12:$X$62720,2,0)),\"\",VLOOKUP(C500,'Capacidad Financiera'!$B$12:$X$3580,2,0))","v":0},{"$f":"IF(OR(C500=\"\",D500=\"\"),\"\",IF(ISERROR(VLOOKUP(D500,'Capacidad Financiera'!$C$13:$X$62720,3,0)),\"\",VLOOKUP(D500,'Capacidad Financiera'!$C$13:$X$62720,3,0)))","v":""},{"$f":"IF(OR(C500=\"\",D500=\"\"),\"\",IF(ISERROR(VLOOKUP(D500,'Capacidad Financiera'!$C$13:$X$62720,5,0)),\"\",VLOOKUP(D500,'Capacidad Financiera'!$C$13:$X$62720,5,0)))","v":""},"",{"$f":"IF(OR(D500=\"\",E500=\"\",F500=\"\"),\"\",IF(AND(G500>0,G500<=CapFinanciera1),Puntajes!$D$12,IF(AND(G500>CapFinanciera1,G500<=CapFinanciera2),Puntajes!$D$13,IF(AND(G500>CapFinanciera2,G500<=CapFinanciera3),Puntajes!$D$14,IF(AND(G500>CapFinanciera3,G500<=CapFinanciera4),Puntajes!$D$15,IF(G500>CapFinanciera4,Puntajes!$D$16,0))))))","v":""}]
[null,null,{"$f":"+'Capacidad Financiera'!B504","v":""},{"$f":"IF(ISERROR(VLOOKUP(C501,'Capacidad Financiera'!$B$12:$X$62720,2,0)),\"\",VLOOKUP(C501,'Capacidad Financiera'!$B$12:$X$3580,2,0))","v":0},{"$f":"IF(OR(C501=\"\",D501=\"\"),\"\",IF(ISERROR(VLOOKUP(D501,'Capacidad Financiera'!$C$13:$X$62720,3,0)),\"\",VLOOKUP(D501,'Capacidad Financiera'!$C$13:$X$62720,3,0)))","v":""},{"$f":"IF(OR(C501=\"\",D501=\"\"),\"\",IF(ISERROR(VLOOKUP(D501,'Capacidad Financiera'!$C$13:$X$62720,5,0)),\"\",VLOOKUP(D501,'Capacidad Financiera'!$C$13:$X$62720,5,0)))","v":""},"",{"$f":"IF(OR(D501=\"\",E501=\"\",F501=\"\"),\"\",IF(AND(G501>0,G501<=CapFinanciera1),Puntajes!$D$12,IF(AND(G501>CapFinanciera1,G501<=CapFinanciera2),Puntajes!$D$13,IF(AND(G501>CapFinanciera2,G501<=CapFinanciera3),Puntajes!$D$14,IF(AND(G501>CapFinanciera3,G501<=CapFinanciera4),Puntajes!$D$15,IF(G501>CapFinanciera4,Puntajes!$D$16,0))))))","v":""}]
[null,null,{"$f":"+'Capacidad Financiera'!B505","v":""},{"$f":"IF(ISERROR(VLOOKUP(C502,'Capacidad Financiera'!$B$12:$X$62720,2,0)),\"\",VLOOKUP(C502,'Capacidad Financiera'!$B$12:$X$3580,2,0))","v":0},{"$f":"IF(OR(C502=\"\",D502=\"\"),\"\",IF(ISERROR(VLOOKUP(D502,'Capacidad Financiera'!$C$13:$X$62720,3,0)),\"\",VLOOKUP(D502,'Capacidad Financiera'!$C$13:$X$62720,3,0)))","v":""},{"$f":"IF(OR(C502=\"\",D502=\"\"),\"\",IF(ISERROR(VLOOKUP(D502,'Capacidad Financiera'!$C$13:$X$62720,5,0)),\"\",VLOOKUP(D502,'Capacidad Financiera'!$C$13:$X$62720,5,0)))","v":""},"",{"$f":"IF(OR(D502=\"\",E502=\"\",F502=\"\"),\"\",IF(AND(G502>0,G502<=CapFinanciera1),Puntajes!$D$12,IF(AND(G502>CapFinanciera1,G502<=CapFinanciera2),Puntajes!$D$13,IF(AND(G502>CapFinanciera2,G502<=CapFinanciera3),Puntajes!$D$14,IF(AND(G502>CapFinanciera3,G502<=CapFinanciera4),Puntajes!$D$15,IF(G502>CapFinanciera4,Puntajes!$D$16,0))))))","v":""}]
[null,null,{"$f":"+'Capacidad Financiera'!B506","v":""},{"$f":"IF(ISERROR(VLOOKUP(C503,'Capacidad Financiera'!$B$12:$X$62720,2,0)),\"\",VLOOKUP(C503,'Capacidad Financiera'!$B$12:$X$3580,2,0))","v":0},{"$f":"IF(OR(C503=\"\",D503=\"\"),\"\",IF(ISERROR(VLOOKUP(D503,'Capacidad Financiera'!$C$13:$X$62720,3,0)),\"\",VLOOKUP(D503,'Capacidad Financiera'!$C$13:$X$62720,3,0)))","v":""},{"$f":"IF(OR(C503=\"\",D503=\"\"),\"\",IF(ISERROR(VLOOKUP(D503,'Capacidad Financiera'!$C$13:$X$62720,5,0)),\"\",VLOOKUP(D503,'Capacidad Financiera'!$C$13:$X$62720,5,0)))","v":""},"",{"$f":"IF(OR(D503=\"\",E503=\"\",F503=\"\"),\"\",IF(AND(G503>0,G503<=CapFinanciera1),Puntajes!$D$12,IF(AND(G503>CapFinanciera1,G503<=CapFinanciera2),Puntajes!$D$13,IF(AND(G503>CapFinanciera2,G503<=CapFinanciera3),Puntajes!$D$14,IF(AND(G503>CapFinanciera3,G503<=CapFinanciera4),Puntajes!$D$15,IF(G503>CapFinanciera4,Puntajes!$D$16,0))))))","v":""}]
[null,null,46,{"$f":"IF(ISERROR(VLOOKUP(C504,'Capacidad Financiera'!$B$12:$X$62720,2,0)),\"\",VLOOKUP(C504,'Capacidad Financiera'!$B$12:$X$3580,2,0))","v":"RG INGENIERIA LTDA."},{"$f":"IF(C505=\"\",IF(C504<>\"\",IF(ISERROR(VLOOKUP(D504,'Capacidad Financiera'!$C$12:$H$22,3,0)),\"\",VLOOKUP(D504,'Capacidad Financiera'!$C$12:$H$22,3,0))),\"\")","v":""},{"$f":"IF(C505=\"\",IF(C504<>\"\",IF(ISERROR(VLOOKUP(D504,'Capacidad Financiera'!$C$12:$H$22,5,0)),\"\",VLOOKUP(D504,'Capacidad Financiera'!$C$12:$H$22,5,0))),\"\")","v":""},{"$f":"IF(OR(D504=\"\",E504=\"\",F504=\"\"),\"\",IF(OR(E504=0,F504=0),0,E504/F504))","v":""},{"$f":"IF(C505=\"\",IF(AND(E504=\"\",F504=\"\"),\"\",IF(AND(G504>0,G504<=CapFinanciera1),Puntajes!$D$12,IF(AND(G504>CapFinanciera1,G504<=CapFinanciera2),Puntajes!$D$13,IF(AND(G504>CapFinanciera2,G504<=CapFinanciera3),Puntajes!$D$14,IF(AND(G504>CapFinanciera3,G504<=CapFinanciera4),Puntajes!$D$15,IF(G504>CapFinanciera4,Puntajes!$D$16,0)))))),\"\")","v":""}]
[null,null,{"$f":"+'Capacidad Financiera'!B508","v":46.1},{"$f":"IF(ISERROR(VLOOKUP(C505,'Capacidad Financiera'!$B$12:$X$62720,2,0)),\"\",VLOOKUP(C505,'Capacidad Financiera'!$B$12:$X$3580,2,0))","v":"RG INGENIERIA LTDA."},{"$f":"IF(OR(C505=\"\",D505=\"\"),\"\",IF(ISERROR(VLOOKUP(D505,'Capacidad Financiera'!$C$13:$X$62720,3,0)),\"\",VLOOKUP(D505,'Capacidad Financiera'!$C$13:$X$62720,3,0)))","v":5855315545},{"$f":"IF(OR(C505=\"\",D505=\"\"),\"\",IF(ISERROR(VLOOKUP(D505,'Capacidad Financiera'!$C$13:$X$62720,5,0)),\"\",VLOOKUP(D505,'Capacidad Financiera'!$C$13:$X$62720,5,0)))","v":972351421},{"$f":"IF(OR(D505=\"\",E505=\"\",F505=\"\"),\"\",IF(OR(E505=0,F505=0),0,E505/F505))","v":6.0218100354892163},{"$f":"IF(OR(D505=\"\",E505=\"\",F505=\"\"),\"\",IF(AND(G505>0,G505<=CapFinanciera1),Puntajes!$D$12,IF(AND(G505>CapFinanciera1,G505<=CapFinanciera2),Puntajes!$D$13,IF(AND(G505>CapFinanciera2,G505<=CapFinanciera3),Puntajes!$D$14,IF(AND(G505>CapFinanciera3,G505<=CapFinanciera4),Puntajes!$D$15,IF(G505>CapFinanciera4,Puntajes!$D$16,0))))))","v":40}]
[null,null,{"$f":"+'Capacidad Financiera'!B509","v":""},{"$f":"IF(ISERROR(VLOOKUP(C506,'Capacidad Financiera'!$B$12:$X$62720,2,0)),\"\",VLOOKUP(C506,'Capacidad Financiera'!$B$12:$X$3580,2,0))","v":0},{"$f":"IF(OR(C506=\"\",D506=\"\"),\"\",IF(ISERROR(VLOOKUP(D506,'Capacidad Financiera'!$C$13:$X$62720,3,0)),\"\",VLOOKUP(D506,'Capacidad Financiera'!$C$13:$X$62720,3,0)))","v":""},{"$f":"IF(OR(C506=\"\",D506=\"\"),\"\",IF(ISERROR(VLOOKUP(D506,'Capacidad Financiera'!$C$13:$X$62720,5,0)),\"\",VLOOKUP(D506,'Capacidad Financiera'!$C$13:$X$62720,5,0)))","v":""},"",{"$f":"IF(OR(D506=\"\",E506=\"\",F506=\"\"),\"\",IF(AND(G506>0,G506<=CapFinanciera1),Puntajes!$D$12,IF(AND(G506>CapFinanciera1,G506<=CapFinanciera2),Puntajes!$D$13,IF(AND(G506>CapFinanciera2,G506<=CapFinanciera3),Puntajes!$D$14,IF(AND(G506>CapFinanciera3,G506<=CapFinanciera4),Puntajes!$D$15,IF(G506>CapFinanciera4,Puntajes!$D$16,0))))))","v":""}]
[null,null,{"$f":"+'Capacidad Financiera'!B510","v":""},{"$f":"IF(ISERROR(VLOOKUP(C507,'Capacidad Financiera'!$B$12:$X$62720,2,0)),\"\",VLOOKUP(C507,'Capacidad Financiera'!$B$12:$X$3580,2,0))","v":0},{"$f":"IF(OR(C507=\"\",D507=\"\"),\"\",IF(ISERROR(VLOOKUP(D507,'Capacidad Financiera'!$C$13:$X$62720,3,0)),\"\",VLOOKUP(D507,'Capacidad Financiera'!$C$13:$X$62720,3,0)))","v":""},{"$f":"IF(OR(C507=\"\",D507=\"\"),\"\",IF(ISERROR(VLOOKUP(D507,'Capacidad Financiera'!$C$13:$X$62720,5,0)),\"\",VLOOKUP(D507,'Capacidad Financiera'!$C$13:$X$62720,5,0)))","v":""},"",{"$f":"IF(OR(D507=\"\",E507=\"\",F507=\"\"),\"\",IF(AND(G507>0,G507<=CapFinanciera1),Puntajes!$D$12,IF(AND(G507>CapFinanciera1,G507<=CapFinanciera2),Puntajes!$D$13,IF(AND(G507>CapFinanciera2,G507<=CapFinanciera3),Puntajes!$D$14,IF(AND(G507>CapFinanciera3,G507<=CapFinanciera4),Puntajes!$D$15,IF(G507>CapFinanciera4,Puntajes!$D$16,0))))))","v":""}]
[null,null,{"$f":"+'Capacidad Financiera'!B511","v":""},{"$f":"IF(ISERROR(VLOOKUP(C508,'Capacidad Financiera'!$B$12:$X$62720,2,0)),\"\",VLOOKUP(C508,'Capacidad Financiera'!$B$12:$X$3580,2,0))","v":0},{"$f":"IF(OR(C508=\"\",D508=\"\"),\"\",IF(ISERROR(VLOOKUP(D508,'Capacidad Financiera'!$C$13:$X$62720,3,0)),\"\",VLOOKUP(D508,'Capacidad Financiera'!$C$13:$X$62720,3,0)))","v":""},{"$f":"IF(OR(C508=\"\",D508=\"\"),\"\",IF(ISERROR(VLOOKUP(D508,'Capacidad Financiera'!$C$13:$X$62720,5,0)),\"\",VLOOKUP(D508,'Capacidad Financiera'!$C$13:$X$62720,5,0)))","v":""},"",{"$f":"IF(OR(D508=\"\",E508=\"\",F508=\"\"),\"\",IF(AND(G508>0,G508<=CapFinanciera1),Puntajes!$D$12,IF(AND(G508>CapFinanciera1,G508<=CapFinanciera2),Puntajes!$D$13,IF(AND(G508>CapFinanciera2,G508<=CapFinanciera3),Puntajes!$D$14,IF(AND(G508>CapFinanciera3,G508<=CapFinanciera4),Puntajes!$D$15,IF(G508>CapFinanciera4,Puntajes!$D$16,0))))))","v":""}]
[null,null,{"$f":"+'Capacidad Financiera'!B512","v":""},{"$f":"IF(ISERROR(VLOOKUP(C509,'Capacidad Financiera'!$B$12:$X$62720,2,0)),\"\",VLOOKUP(C509,'Capacidad Financiera'!$B$12:$X$3580,2,0))","v":0},{"$f":"IF(OR(C509=\"\",D509=\"\"),\"\",IF(ISERROR(VLOOKUP(D509,'Capacidad Financiera'!$C$13:$X$62720,3,0)),\"\",VLOOKUP(D509,'Capacidad Financiera'!$C$13:$X$62720,3,0)))","v":""},{"$f":"IF(OR(C509=\"\",D509=\"\"),\"\",IF(ISERROR(VLOOKUP(D509,'Capacidad Financiera'!$C$13:$X$62720,5,0)),\"\",VLOOKUP(D509,'Capacidad Financiera'!$C$13:$X$62720,5,0)))","v":""},"",{"$f":"IF(OR(D509=\"\",E509=\"\",F509=\"\"),\"\",IF(AND(G509>0,G509<=CapFinanciera1),Puntajes!$D$12,IF(AND(G509>CapFinanciera1,G509<=CapFinanciera2),Puntajes!$D$13,IF(AND(G509>CapFinanciera2,G509<=CapFinanciera3),Puntajes!$D$14,IF(AND(G509>CapFinanciera3,G509<=CapFinanciera4),Puntajes!$D$15,IF(G509>CapFinanciera4,Puntajes!$D$16,0))))))","v":""}]
[null,null,{"$f":"+'Capacidad Financiera'!B513","v":""},{"$f":"IF(ISERROR(VLOOKUP(C510,'Capacidad Financiera'!$B$12:$X$62720,2,0)),\"\",VLOOKUP(C510,'Capacidad Financiera'!$B$12:$X$3580,2,0))","v":0},{"$f":"IF(OR(C510=\"\",D510=\"\"),\"\",IF(ISERROR(VLOOKUP(D510,'Capacidad Financiera'!$C$13:$X$62720,3,0)),\"\",VLOOKUP(D510,'Capacidad Financiera'!$C$13:$X$62720,3,0)))","v":""},{"$f":"IF(OR(C510=\"\",D510=\"\"),\"\",IF(ISERROR(VLOOKUP(D510,'Capacidad Financiera'!$C$13:$X$62720,5,0)),\"\",VLOOKUP(D510,'Capacidad Financiera'!$C$13:$X$62720,5,0)))","v":""},"",{"$f":"IF(OR(D510=\"\",E510=\"\",F510=\"\"),\"\",IF(AND(G510>0,G510<=CapFinanciera1),Puntajes!$D$12,IF(AND(G510>CapFinanciera1,G510<=CapFinanciera2),Puntajes!$D$13,IF(AND(G510>CapFinanciera2,G510<=CapFinanciera3),Puntajes!$D$14,IF(AND(G510>CapFinanciera3,G510<=CapFinanciera4),Puntajes!$D$15,IF(G510>CapFinanciera4,Puntajes!$D$16,0))))))","v":""}]
[null,null,{"$f":"+'Capacidad Financiera'!B514","v":""},{"$f":"IF(ISERROR(VLOOKUP(C511,'Capacidad Financiera'!$B$12:$X$62720,2,0)),\"\",VLOOKUP(C511,'Capacidad Financiera'!$B$12:$X$3580,2,0))","v":0},{"$f":"IF(OR(C511=\"\",D511=\"\"),\"\",IF(ISERROR(VLOOKUP(D511,'Capacidad Financiera'!$C$13:$X$62720,3,0)),\"\",VLOOKUP(D511,'Capacidad Financiera'!$C$13:$X$62720,3,0)))","v":""},{"$f":"IF(OR(C511=\"\",D511=\"\"),\"\",IF(ISERROR(VLOOKUP(D511,'Capacidad Financiera'!$C$13:$X$62720,5,0)),\"\",VLOOKUP(D511,'Capacidad Financiera'!$C$13:$X$62720,5,0)))","v":""},"",{"$f":"IF(OR(D511=\"\",E511=\"\",F511=\"\"),\"\",IF(AND(G511>0,G511<=CapFinanciera1),Puntajes!$D$12,IF(AND(G511>CapFinanciera1,G511<=CapFinanciera2),Puntajes!$D$13,IF(AND(G511>CapFinanciera2,G511<=CapFinanciera3),Puntajes!$D$14,IF(AND(G511>CapFinanciera3,G511<=CapFinanciera4),Puntajes!$D$15,IF(G511>CapFinanciera4,Puntajes!$D$16,0))))))","v":""}]
[null,null,{"$f":"+'Capacidad Financiera'!B515","v":""},{"$f":"IF(ISERROR(VLOOKUP(C512,'Capacidad Financiera'!$B$12:$X$62720,2,0)),\"\",VLOOKUP(C512,'Capacidad Financiera'!$B$12:$X$3580,2,0))","v":0},{"$f":"IF(OR(C512=\"\",D512=\"\"),\"\",IF(ISERROR(VLOOKUP(D512,'Capacidad Financiera'!$C$13:$X$62720,3,0)),\"\",VLOOKUP(D512,'Capacidad Financiera'!$C$13:$X$62720,3,0)))","v":""},{"$f":"IF(OR(C512=\"\",D512=\"\"),\"\",IF(ISERROR(VLOOKUP(D512,'Capacidad Financiera'!$C$13:$X$62720,5,0)),\"\",VLOOKUP(D512,'Capacidad Financiera'!$C$13:$X$62720,5,0)))","v":""},"",{"$f":"IF(OR(D512=\"\",E512=\"\",F512=\"\"),\"\",IF(AND(G512>0,G512<=CapFinanciera1),Puntajes!$D$12,IF(AND(G512>CapFinanciera1,G512<=CapFinanciera2),Puntajes!$D$13,IF(AND(G512>CapFinanciera2,G512<=CapFinanciera3),Puntajes!$D$14,IF(AND(G512>CapFinanciera3,G512<=CapFinanciera4),Puntajes!$D$15,IF(G512>CapFinanciera4,Puntajes!$D$16,0))))))","v":""}]
[null,null,{"$f":"+'Capacidad Financiera'!B516","v":""},{"$f":"IF(ISERROR(VLOOKUP(C513,'Capacidad Financiera'!$B$12:$X$62720,2,0)),\"\",VLOOKUP(C513,'Capacidad Financiera'!$B$12:$X$3580,2,0))","v":0},{"$f":"IF(OR(C513=\"\",D513=\"\"),\"\",IF(ISERROR(VLOOKUP(D513,'Capacidad Financiera'!$C$13:$X$62720,3,0)),\"\",VLOOKUP(D513,'Capacidad Financiera'!$C$13:$X$62720,3,0)))","v":""},{"$f":"IF(OR(C513=\"\",D513=\"\"),\"\",IF(ISERROR(VLOOKUP(D513,'Capacidad Financiera'!$C$13:$X$62720,5,0)),\"\",VLOOKUP(D513,'Capacidad Financiera'!$C$13:$X$62720,5,0)))","v":""},"",{"$f":"IF(OR(D513=\"\",E513=\"\",F513=\"\"),\"\",IF(AND(G513>0,G513<=CapFinanciera1),Puntajes!$D$12,IF(AND(G513>CapFinanciera1,G513<=CapFinanciera2),Puntajes!$D$13,IF(AND(G513>CapFinanciera2,G513<=CapFinanciera3),Puntajes!$D$14,IF(AND(G513>CapFinanciera3,G513<=CapFinanciera4),Puntajes!$D$15,IF(G513>CapFinanciera4,Puntajes!$D$16,0))))))","v":""}]
[null,null,{"$f":"+'Capacidad Financiera'!B517","v":""},{"$f":"IF(ISERROR(VLOOKUP(C514,'Capacidad Financiera'!$B$12:$X$62720,2,0)),\"\",VLOOKUP(C514,'Capacidad Financiera'!$B$12:$X$3580,2,0))","v":0},{"$f":"IF(OR(C514=\"\",D514=\"\"),\"\",IF(ISERROR(VLOOKUP(D514,'Capacidad Financiera'!$C$13:$X$62720,3,0)),\"\",VLOOKUP(D514,'Capacidad Financiera'!$C$13:$X$62720,3,0)))","v":""},{"$f":"IF(OR(C514=\"\",D514=\"\"),\"\",IF(ISERROR(VLOOKUP(D514,'Capacidad Financiera'!$C$13:$X$62720,5,0)),\"\",VLOOKUP(D514,'Capacidad Financiera'!$C$13:$X$62720,5,0)))","v":""},"",{"$f":"IF(OR(D514=\"\",E514=\"\",F514=\"\"),\"\",IF(AND(G514>0,G514<=CapFinanciera1),Puntajes!$D$12,IF(AND(G514>CapFinanciera1,G514<=CapFinanciera2),Puntajes!$D$13,IF(AND(G514>CapFinanciera2,G514<=CapFinanciera3),Puntajes!$D$14,IF(AND(G514>CapFinanciera3,G514<=CapFinanciera4),Puntajes!$D$15,IF(G514>CapFinanciera4,Puntajes!$D$16,0))))))","v":""}]
[null,null,47,{"$f":"IF(ISERROR(VLOOKUP(C515,'Capacidad Financiera'!$B$12:$X$62720,2,0)),\"\",VLOOKUP(C515,'Capacidad Financiera'!$B$12:$X$3580,2,0))","v":"CONSORCIO GAMA 034"},{"$f":"IF(C516=\"\",IF(C515<>\"\",IF(ISERROR(VLOOKUP(D515,'Capacidad Financiera'!$C$12:$H$22,3,0)),\"\",VLOOKUP(D515,'Capacidad Financiera'!$C$12:$H$22,3,0))),\"\")","v":""},{"$f":"IF(C516=\"\",IF(C515<>\"\",IF(ISERROR(VLOOKUP(D515,'Capacidad Financiera'!$C$12:$H$22,5,0)),\"\",VLOOKUP(D515,'Capacidad Financiera'!$C$12:$H$22,5,0))),\"\")","v":""},{"$f":"IF(OR(D515=\"\",E515=\"\",F515=\"\"),\"\",IF(OR(E515=0,F515=0),0,E515/F515))","v":""},{"$f":"IF(C516=\"\",IF(AND(E515=\"\",F515=\"\"),\"\",IF(AND(G515>0,G515<=CapFinanciera1),Puntajes!$D$12,IF(AND(G515>CapFinanciera1,G515<=CapFinanciera2),Puntajes!$D$13,IF(AND(G515>CapFinanciera2,G515<=CapFinanciera3),Puntajes!$D$14,IF(AND(G515>CapFinanciera3,G515<=CapFinanciera4),Puntajes!$D$15,IF(G515>CapFinanciera4,Puntajes!$D$16,0)))))),\"\")","v":""}]
[null,null,{"$f":"+'Capacidad Financiera'!B519","v":47.1},{"$f":"IF(ISERROR(VLOOKUP(C516,'Capacidad Financiera'!$B$12:$X$62720,2,0)),\"\",VLOOKUP(C516,'Capacidad Financiera'!$B$12:$X$3580,2,0))","v":"GAMA INGENIEROS ARQUITECTOS S.A.S."},{"$f":"IF(OR(C516=\"\",D516=\"\"),\"\",IF(ISERROR(VLOOKUP(D516,'Capacidad Financiera'!$C$13:$X$62720,3,0)),\"\",VLOOKUP(D516,'Capacidad Financiera'!$C$13:$X$62720,3,0)))","v":4948872434},{"$f":"IF(OR(C516=\"\",D516=\"\"),\"\",IF(ISERROR(VLOOKUP(D516,'Capacidad Financiera'!$C$13:$X$62720,5,0)),\"\",VLOOKUP(D516,'Capacidad Financiera'!$C$13:$X$62720,5,0)))","v":2757697241},{"$f":"IF(OR(D516=\"\",E516=\"\",F516=\"\"),\"\",IF(OR(E516=0,F516=0),0,E516/F516))","v":1.7945669888712776},{"$f":"IF(OR(D516=\"\",E516=\"\",F516=\"\"),\"\",IF(AND(G516>0,G516<=CapFinanciera1),Puntajes!$D$12,IF(AND(G516>CapFinanciera1,G516<=CapFinanciera2),Puntajes!$D$13,IF(AND(G516>CapFinanciera2,G516<=CapFinanciera3),Puntajes!$D$14,IF(AND(G516>CapFinanciera3,G516<=CapFinanciera4),Puntajes!$D$15,IF(G516>CapFinanciera4,Puntajes!$D$16,0))))))","v":40}]
[null,null,{"$f":"+'Capacidad Financiera'!B520","v":47.2},{"$f":"IF(ISERROR(VLOOKUP(C517,'Capacidad Financiera'!$B$12:$X$62720,2,0)),\"\",VLOOKUP(C517,'Capacidad Financiera'!$B$12:$X$3580,2,0))","v":"JOSE GALAN GOMEZ"},{"$f":"IF(OR(C517=\"\",D517=\"\"),\"\",IF(ISERROR(VLOOKUP(D517,'Capacidad Financiera'!$C$13:$X$62720,3,0)),\"\",VLOOKUP(D517,'Capacidad Financiera'!$C$13:$X$62720,3,0)))","v":6958011000},{"$f":"IF(OR(C517=\"\",D517=\"\"),\"\",IF(ISERROR(VLOOKUP(D517,'Capacidad Financiera'!$C$13:$X$62720,5,0)),\"\",VLOOKUP(D517,'Capacidad Financiera'!$C$13:$X$62720,5,0)))","v":103605000},67.159027073982912,{"$f":"IF(OR(D517=\"\",E517=\"\",F517=\"\"),\"\",IF(AND(G517>0,G517<=CapFinanciera1),Puntajes!$D$12,IF(AND(G517>CapFinanciera1,G517<=CapFinanciera2),Puntajes!$D$13,IF(AND(G517>CapFinanciera2,G517<=CapFinanciera3),Puntajes!$D$14,IF(AND(G517>CapFinanciera3,G517<=CapFinanciera4),Puntajes!$D$15,IF(G517>CapFinanciera4,Puntajes!$D$16,0))))))","v":40}]
[null,null,{"$f":"+'Capacidad Financiera'!B521","v":""},{"$f":"IF(ISERROR(VLOOKUP(C518,'Capacidad Financiera'!$B$12:$X$62720,2,0)),\"\",VLOOKUP(C518,'Capacidad Financiera'!$B$12:$X$3580,2,0))","v":0},{"$f":"IF(OR(C518=\"\",D518=\"\"),\"\",IF(ISERROR(VLOOKUP(D518,'Capacidad Financiera'!$C$13:$X$62720,3,0)),\"\",VLOOKUP(D518,'Capacidad Financiera'!$C$13:$X$62720,3,0)))","v":""},{"$f":"IF(OR(C518=\"\",D518=\"\"),\"\",IF(ISERROR(VLOOKUP(D518,'Capacidad Financiera'!$C$13:$X$62720,5,0)),\"\",VLOOKUP(D518,'Capacidad Financiera'!$C$13:$X$62720,5,0)))","v":""},"",{"$f":"IF(OR(D518=\"\",E518=\"\",F518=\"\"),\"\",IF(AND(G518>0,G518<=CapFinanciera1),Puntajes!$D$12,IF(AND(G518>CapFinanciera1,G518<=CapFinanciera2),Puntajes!$D$13,IF(AND(G518>CapFinanciera2,G518<=CapFinanciera3),Puntajes!$D$14,IF(AND(G518>CapFinanciera3,G518<=CapFinanciera4),Puntajes!$D$15,IF(G518>CapFinanciera4,Puntajes!$D$16,0))))))","v":""}]
[null,null,{"$f":"+'Capacidad Financiera'!B522","v":""},{"$f":"IF(ISERROR(VLOOKUP(C519,'Capacidad Financiera'!$B$12:$X$62720,2,0)),\"\",VLOOKUP(C519,'Capacidad Financiera'!$B$12:$X$3580,2,0))","v":0},{"$f":"IF(OR(C519=\"\",D519=\"\"),\"\",IF(ISERROR(VLOOKUP(D519,'Capacidad Financiera'!$C$13:$X$62720,3,0)),\"\",VLOOKUP(D519,'Capacidad Financiera'!$C$13:$X$62720,3,0)))","v":""},{"$f":"IF(OR(C519=\"\",D519=\"\"),\"\",IF(ISERROR(VLOOKUP(D519,'Capacidad Financiera'!$C$13:$X$62720,5,0)),\"\",VLOOKUP(D519,'Capacidad Financiera'!$C$13:$X$62720,5,0)))","v":""},"",{"$f":"IF(OR(D519=\"\",E519=\"\",F519=\"\"),\"\",IF(AND(G519>0,G519<=CapFinanciera1),Puntajes!$D$12,IF(AND(G519>CapFinanciera1,G519<=CapFinanciera2),Puntajes!$D$13,IF(AND(G519>CapFinanciera2,G519<=CapFinanciera3),Puntajes!$D$14,IF(AND(G519>CapFinanciera3,G519<=CapFinanciera4),Puntajes!$D$15,IF(G519>CapFinanciera4,Puntajes!$D$16,0))))))","v":""}]
[null,null,{"$f":"+'Capacidad Financiera'!B523","v":""},{"$f":"IF(ISERROR(VLOOKUP(C520,'Capacidad Financiera'!$B$12:$X$62720,2,0)),\"\",VLOOKUP(C520,'Capacidad Financiera'!$B$12:$X$3580,2,0))","v":0},{"$f":"IF(OR(C520=\"\",D520=\"\"),\"\",IF(ISERROR(VLOOKUP(D520,'Capacidad Financiera'!$C$13:$X$62720,3,0)),\"\",VLOOKUP(D520,'Capacidad Financiera'!$C$13:$X$62720,3,0)))","v":""},{"$f":"IF(OR(C520=\"\",D520=\"\"),\"\",IF(ISERROR(VLOOKUP(D520,'Capacidad Financiera'!$C$13:$X$62720,5,0)),\"\",VLOOKUP(D520,'Capacidad Financiera'!$C$13:$X$62720,5,0)))","v":""},"",{"$f":"IF(OR(D520=\"\",E520=\"\",F520=\"\"),\"\",IF(AND(G520>0,G520<=CapFinanciera1),Puntajes!$D$12,IF(AND(G520>CapFinanciera1,G520<=CapFinanciera2),Puntajes!$D$13,IF(AND(G520>CapFinanciera2,G520<=CapFinanciera3),Puntajes!$D$14,IF(AND(G520>CapFinanciera3,G520<=CapFinanciera4),Puntajes!$D$15,IF(G520>CapFinanciera4,Puntajes!$D$16,0))))))","v":""}]
[null,null,{"$f":"+'Capacidad Financiera'!B524","v":""},{"$f":"IF(ISERROR(VLOOKUP(C521,'Capacidad Financiera'!$B$12:$X$62720,2,0)),\"\",VLOOKUP(C521,'Capacidad Financiera'!$B$12:$X$3580,2,0))","v":0},{"$f":"IF(OR(C521=\"\",D521=\"\"),\"\",IF(ISERROR(VLOOKUP(D521,'Capacidad Financiera'!$C$13:$X$62720,3,0)),\"\",VLOOKUP(D521,'Capacidad Financiera'!$C$13:$X$62720,3,0)))","v":""},{"$f":"IF(OR(C521=\"\",D521=\"\"),\"\",IF(ISERROR(VLOOKUP(D521,'Capacidad Financiera'!$C$13:$X$62720,5,0)),\"\",VLOOKUP(D521,'Capacidad Financiera'!$C$13:$X$62720,5,0)))","v":""},"",{"$f":"IF(OR(D521=\"\",E521=\"\",F521=\"\"),\"\",IF(AND(G521>0,G521<=CapFinanciera1),Puntajes!$D$12,IF(AND(G521>CapFinanciera1,G521<=CapFinanciera2),Puntajes!$D$13,IF(AND(G521>CapFinanciera2,G521<=CapFinanciera3),Puntajes!$D$14,IF(AND(G521>CapFinanciera3,G521<=CapFinanciera4),Puntajes!$D$15,IF(G521>CapFinanciera4,Puntajes!$D$16,0))))))","v":""}]
[null,null,{"$f":"+'Capacidad Financiera'!B525","v":""},{"$f":"IF(ISERROR(VLOOKUP(C522,'Capacidad Financiera'!$B$12:$X$62720,2,0)),\"\",VLOOKUP(C522,'Capacidad Financiera'!$B$12:$X$3580,2,0))","v":0},{"$f":"IF(OR(C522=\"\",D522=\"\"),\"\",IF(ISERROR(VLOOKUP(D522,'Capacidad Financiera'!$C$13:$X$62720,3,0)),\"\",VLOOKUP(D522,'Capacidad Financiera'!$C$13:$X$62720,3,0)))","v":""},{"$f":"IF(OR(C522=\"\",D522=\"\"),\"\",IF(ISERROR(VLOOKUP(D522,'Capacidad Financiera'!$C$13:$X$62720,5,0)),\"\",VLOOKUP(D522,'Capacidad Financiera'!$C$13:$X$62720,5,0)))","v":""},"",{"$f":"IF(OR(D522=\"\",E522=\"\",F522=\"\"),\"\",IF(AND(G522>0,G522<=CapFinanciera1),Puntajes!$D$12,IF(AND(G522>CapFinanciera1,G522<=CapFinanciera2),Puntajes!$D$13,IF(AND(G522>CapFinanciera2,G522<=CapFinanciera3),Puntajes!$D$14,IF(AND(G522>CapFinanciera3,G522<=CapFinanciera4),Puntajes!$D$15,IF(G522>CapFinanciera4,Puntajes!$D$16,0))))))","v":""}]
[null,null,{"$f":"+'Capacidad Financiera'!B526","v":""},{"$f":"IF(ISERROR(VLOOKUP(C523,'Capacidad Financiera'!$B$12:$X$62720,2,0)),\"\",VLOOKUP(C523,'Capacidad Financiera'!$B$12:$X$3580,2,0))","v":0},{"$f":"IF(OR(C523=\"\",D523=\"\"),\"\",IF(ISERROR(VLOOKUP(D523,'Capacidad Financiera'!$C$13:$X$62720,3,0)),\"\",VLOOKUP(D523,'Capacidad Financiera'!$C$13:$X$62720,3,0)))","v":""},{"$f":"IF(OR(C523=\"\",D523=\"\"),\"\",IF(ISERROR(VLOOKUP(D523,'Capacidad Financiera'!$C$13:$X$62720,5,0)),\"\",VLOOKUP(D523,'Capacidad Financiera'!$C$13:$X$62720,5,0)))","v":""},"",{"$f":"IF(OR(D523=\"\",E523=\"\",F523=\"\"),\"\",IF(AND(G523>0,G523<=CapFinanciera1),Puntajes!$D$12,IF(AND(G523>CapFinanciera1,G523<=CapFinanciera2),Puntajes!$D$13,IF(AND(G523>CapFinanciera2,G523<=CapFinanciera3),Puntajes!$D$14,IF(AND(G523>CapFinanciera3,G523<=CapFinanciera4),Puntajes!$D$15,IF(G523>CapFinanciera4,Puntajes!$D$16,0))))))","v":""}]
[null,null,{"$f":"+'Capacidad Financiera'!B527","v":""},{"$f":"IF(ISERROR(VLOOKUP(C524,'Capacidad Financiera'!$B$12:$X$62720,2,0)),\"\",VLOOKUP(C524,'Capacidad Financiera'!$B$12:$X$3580,2,0))","v":0},{"$f":"IF(OR(C524=\"\",D524=\"\"),\"\",IF(ISERROR(VLOOKUP(D524,'Capacidad Financiera'!$C$13:$X$62720,3,0)),\"\",VLOOKUP(D524,'Capacidad Financiera'!$C$13:$X$62720,3,0)))","v":""},{"$f":"IF(OR(C524=\"\",D524=\"\"),\"\",IF(ISERROR(VLOOKUP(D524,'Capacidad Financiera'!$C$13:$X$62720,5,0)),\"\",VLOOKUP(D524,'Capacidad Financiera'!$C$13:$X$62720,5,0)))","v":""},"",{"$f":"IF(OR(D524=\"\",E524=\"\",F524=\"\"),\"\",IF(AND(G524>0,G524<=CapFinanciera1),Puntajes!$D$12,IF(AND(G524>CapFinanciera1,G524<=CapFinanciera2),Puntajes!$D$13,IF(AND(G524>CapFinanciera2,G524<=CapFinanciera3),Puntajes!$D$14,IF(AND(G524>CapFinanciera3,G524<=CapFinanciera4),Puntajes!$D$15,IF(G524>CapFinanciera4,Puntajes!$D$16,0))))))","v":""}]
[null,null,{"$f":"+'Capacidad Financiera'!B528","v":""},{"$f":"IF(ISERROR(VLOOKUP(C525,'Capacidad Financiera'!$B$12:$X$62720,2,0)),\"\",VLOOKUP(C525,'Capacidad Financiera'!$B$12:$X$3580,2,0))","v":0},{"$f":"IF(OR(C525=\"\",D525=\"\"),\"\",IF(ISERROR(VLOOKUP(D525,'Capacidad Financiera'!$C$13:$X$62720,3,0)),\"\",VLOOKUP(D525,'Capacidad Financiera'!$C$13:$X$62720,3,0)))","v":""},{"$f":"IF(OR(C525=\"\",D525=\"\"),\"\",IF(ISERROR(VLOOKUP(D525,'Capacidad Financiera'!$C$13:$X$62720,5,0)),\"\",VLOOKUP(D525,'Capacidad Financiera'!$C$13:$X$62720,5,0)))","v":""},"",{"$f":"IF(OR(D525=\"\",E525=\"\",F525=\"\"),\"\",IF(AND(G525>0,G525<=CapFinanciera1),Puntajes!$D$12,IF(AND(G525>CapFinanciera1,G525<=CapFinanciera2),Puntajes!$D$13,IF(AND(G525>CapFinanciera2,G525<=CapFinanciera3),Puntajes!$D$14,IF(AND(G525>CapFinanciera3,G525<=CapFinanciera4),Puntajes!$D$15,IF(G525>CapFinanciera4,Puntajes!$D$16,0))))))","v":""}]
[null,null,48,{"$f":"IF(ISERROR(VLOOKUP(C526,'Capacidad Financiera'!$B$12:$X$62720,2,0)),\"\",VLOOKUP(C526,'Capacidad Financiera'!$B$12:$X$3580,2,0))","v":0},{"$f":"IF(C527=\"\",IF(C526<>\"\",IF(ISERROR(VLOOKUP(D526,'Capacidad Financiera'!$C$12:$H$22,3,0)),\"\",VLOOKUP(D526,'Capacidad Financiera'!$C$12:$H$22,3,0))),\"\")","v":""},{"$f":"IF(C527=\"\",IF(C526<>\"\",IF(ISERROR(VLOOKUP(D526,'Capacidad Financiera'!$C$12:$H$22,5,0)),\"\",VLOOKUP(D526,'Capacidad Financiera'!$C$12:$H$22,5,0))),\"\")","v":""},{"$f":"IF(OR(D526=\"\",E526=\"\",F526=\"\"),\"\",IF(OR(E526=0,F526=0),0,E526/F526))","v":""},{"$f":"IF(C527=\"\",IF(AND(E526=\"\",F526=\"\"),\"\",IF(AND(G526>0,G526<=CapFinanciera1),Puntajes!$D$12,IF(AND(G526>CapFinanciera1,G526<=CapFinanciera2),Puntajes!$D$13,IF(AND(G526>CapFinanciera2,G526<=CapFinanciera3),Puntajes!$D$14,IF(AND(G526>CapFinanciera3,G526<=CapFinanciera4),Puntajes!$D$15,IF(G526>CapFinanciera4,Puntajes!$D$16,0)))))),\"\")","v":""}]
[null,null,{"$f":"+'Capacidad Financiera'!B530","v":""},{"$f":"IF(ISERROR(VLOOKUP(C527,'Capacidad Financiera'!$B$12:$X$62720,2,0)),\"\",VLOOKUP(C527,'Capacidad Financiera'!$B$12:$X$3580,2,0))","v":0},{"$f":"IF(OR(C527=\"\",D527=\"\"),\"\",IF(ISERROR(VLOOKUP(D527,'Capacidad Financiera'!$C$13:$X$62720,3,0)),\"\",VLOOKUP(D527,'Capacidad Financiera'!$C$13:$X$62720,3,0)))","v":""},{"$f":"IF(OR(C527=\"\",D527=\"\"),\"\",IF(ISERROR(VLOOKUP(D527,'Capacidad Financiera'!$C$13:$X$62720,5,0)),\"\",VLOOKUP(D527,'Capacidad Financiera'!$C$13:$X$62720,5,0)))","v":""},{"$f":"IF(OR(D527=\"\",E527=\"\",F527=\"\"),\"\",IF(OR(E527=0,F527=0),0,E527/F527))","v":""},{"$f":"IF(OR(D527=\"\",E527=\"\",F527=\"\"),\"\",IF(AND(G527>0,G527<=CapFinanciera1),Puntajes!$D$12,IF(AND(G527>CapFinanciera1,G527<=CapFinanciera2),Puntajes!$D$13,IF(AND(G527>CapFinanciera2,G527<=CapFinanciera3),Puntajes!$D$14,IF(AND(G527>CapFinanciera3,G527<=CapFinanciera4),Puntajes!$D$15,IF(G527>CapFinanciera4,Puntajes!$D$16,0))))))","v":""}]
[null,null,{"$f":"+'Capacidad Financiera'!B531","v":""},{"$f":"IF(ISERROR(VLOOKUP(C528,'Capacidad Financiera'!$B$12:$X$62720,2,0)),\"\",VLOOKUP(C528,'Capacidad Financiera'!$B$12:$X$3580,2,0))","v":0},{"$f":"IF(OR(C528=\"\",D528=\"\"),\"\",IF(ISERROR(VLOOKUP(D528,'Capacidad Financiera'!$C$13:$X$62720,3,0)),\"\",VLOOKUP(D528,'Capacidad Financiera'!$C$13:$X$62720,3,0)))","v":""},{"$f":"IF(OR(C528=\"\",D528=\"\"),\"\",IF(ISERROR(VLOOKUP(D528,'Capacidad Financiera'!$C$13:$X$62720,5,0)),\"\",VLOOKUP(D528,'Capacidad Financiera'!$C$13:$X$62720,5,0)))","v":""},"",{"$f":"IF(OR(D528=\"\",E528=\"\",F528=\"\"),\"\",IF(AND(G528>0,G528<=CapFinanciera1),Puntajes!$D$12,IF(AND(G528>CapFinanciera1,G528<=CapFinanciera2),Puntajes!$D$13,IF(AND(G528>CapFinanciera2,G528<=CapFinanciera3),Puntajes!$D$14,IF(AND(G528>CapFinanciera3,G528<=CapFinanciera4),Puntajes!$D$15,IF(G528>CapFinanciera4,Puntajes!$D$16,0))))))","v":""}]
[null,null,{"$f":"+'Capacidad Financiera'!B532","v":""},{"$f":"IF(ISERROR(VLOOKUP(C529,'Capacidad Financiera'!$B$12:$X$62720,2,0)),\"\",VLOOKUP(C529,'Capacidad Financiera'!$B$12:$X$3580,2,0))","v":0},{"$f":"IF(OR(C529=\"\",D529=\"\"),\"\",IF(ISERROR(VLOOKUP(D529,'Capacidad Financiera'!$C$13:$X$62720,3,0)),\"\",VLOOKUP(D529,'Capacidad Financiera'!$C$13:$X$62720,3,0)))","v":""},{"$f":"IF(OR(C529=\"\",D529=\"\"),\"\",IF(ISERROR(VLOOKUP(D529,'Capacidad Financiera'!$C$13:$X$62720,5,0)),\"\",VLOOKUP(D529,'Capacidad Financiera'!$C$13:$X$62720,5,0)))","v":""},"",{"$f":"IF(OR(D529=\"\",E529=\"\",F529=\"\"),\"\",IF(AND(G529>0,G529<=CapFinanciera1),Puntajes!$D$12,IF(AND(G529>CapFinanciera1,G529<=CapFinanciera2),Puntajes!$D$13,IF(AND(G529>CapFinanciera2,G529<=CapFinanciera3),Puntajes!$D$14,IF(AND(G529>CapFinanciera3,G529<=CapFinanciera4),Puntajes!$D$15,IF(G529>CapFinanciera4,Puntajes!$D$16,0))))))","v":""}]
[null,null,{"$f":"+'Capacidad Financiera'!B533","v":""},{"$f":"IF(ISERROR(VLOOKUP(C530,'Capacidad Financiera'!$B$12:$X$62720,2,0)),\"\",VLOOKUP(C530,'Capacidad Financiera'!$B$12:$X$3580,2,0))","v":0},{"$f":"IF(OR(C530=\"\",D530=\"\"),\"\",IF(ISERROR(VLOOKUP(D530,'Capacidad Financiera'!$C$13:$X$62720,3,0)),\"\",VLOOKUP(D530,'Capacidad Financiera'!$C$13:$X$62720,3,0)))","v":""},{"$f":"IF(OR(C530=\"\",D530=\"\"),\"\",IF(ISERROR(VLOOKUP(D530,'Capacidad Financiera'!$C$13:$X$62720,5,0)),\"\",VLOOKUP(D530,'Capacidad Financiera'!$C$13:$X$62720,5,0)))","v":""},"",{"$f":"IF(OR(D530=\"\",E530=\"\",F530=\"\"),\"\",IF(AND(G530>0,G530<=CapFinanciera1),Puntajes!$D$12,IF(AND(G530>CapFinanciera1,G530<=CapFinanciera2),Puntajes!$D$13,IF(AND(G530>CapFinanciera2,G530<=CapFinanciera3),Puntajes!$D$14,IF(AND(G530>CapFinanciera3,G530<=CapFinanciera4),Puntajes!$D$15,IF(G530>CapFinanciera4,Puntajes!$D$16,0))))))","v":""}]
[null,null,{"$f":"+'Capacidad Financiera'!B534","v":""},{"$f":"IF(ISERROR(VLOOKUP(C531,'Capacidad Financiera'!$B$12:$X$62720,2,0)),\"\",VLOOKUP(C531,'Capacidad Financiera'!$B$12:$X$3580,2,0))","v":0},{"$f":"IF(OR(C531=\"\",D531=\"\"),\"\",IF(ISERROR(VLOOKUP(D531,'Capacidad Financiera'!$C$13:$X$62720,3,0)),\"\",VLOOKUP(D531,'Capacidad Financiera'!$C$13:$X$62720,3,0)))","v":""},{"$f":"IF(OR(C531=\"\",D531=\"\"),\"\",IF(ISERROR(VLOOKUP(D531,'Capacidad Financiera'!$C$13:$X$62720,5,0)),\"\",VLOOKUP(D531,'Capacidad Financiera'!$C$13:$X$62720,5,0)))","v":""},"",{"$f":"IF(OR(D531=\"\",E531=\"\",F531=\"\"),\"\",IF(AND(G531>0,G531<=CapFinanciera1),Puntajes!$D$12,IF(AND(G531>CapFinanciera1,G531<=CapFinanciera2),Puntajes!$D$13,IF(AND(G531>CapFinanciera2,G531<=CapFinanciera3),Puntajes!$D$14,IF(AND(G531>CapFinanciera3,G531<=CapFinanciera4),Puntajes!$D$15,IF(G531>CapFinanciera4,Puntajes!$D$16,0))))))","v":""}]
[null,null,{"$f":"+'Capacidad Financiera'!B535","v":""},{"$f":"IF(ISERROR(VLOOKUP(C532,'Capacidad Financiera'!$B$12:$X$62720,2,0)),\"\",VLOOKUP(C532,'Capacidad Financiera'!$B$12:$X$3580,2,0))","v":0},{"$f":"IF(OR(C532=\"\",D532=\"\"),\"\",IF(ISERROR(VLOOKUP(D532,'Capacidad Financiera'!$C$13:$X$62720,3,0)),\"\",VLOOKUP(D532,'Capacidad Financiera'!$C$13:$X$62720,3,0)))","v":""},{"$f":"IF(OR(C532=\"\",D532=\"\"),\"\",IF(ISERROR(VLOOKUP(D532,'Capacidad Financiera'!$C$13:$X$62720,5,0)),\"\",VLOOKUP(D532,'Capacidad Financiera'!$C$13:$X$62720,5,0)))","v":""},"",{"$f":"IF(OR(D532=\"\",E532=\"\",F532=\"\"),\"\",IF(AND(G532>0,G532<=CapFinanciera1),Puntajes!$D$12,IF(AND(G532>CapFinanciera1,G532<=CapFinanciera2),Puntajes!$D$13,IF(AND(G532>CapFinanciera2,G532<=CapFinanciera3),Puntajes!$D$14,IF(AND(G532>CapFinanciera3,G532<=CapFinanciera4),Puntajes!$D$15,IF(G532>CapFinanciera4,Puntajes!$D$16,0))))))","v":""}]
[null,null,{"$f":"+'Capacidad Financiera'!B536","v":""},{"$f":"IF(ISERROR(VLOOKUP(C533,'Capacidad Financiera'!$B$12:$X$62720,2,0)),\"\",VLOOKUP(C533,'Capacidad Financiera'!$B$12:$X$3580,2,0))","v":0},{"$f":"IF(OR(C533=\"\",D533=\"\"),\"\",IF(ISERROR(VLOOKUP(D533,'Capacidad Financiera'!$C$13:$X$62720,3,0)),\"\",VLOOKUP(D533,'Capacidad Financiera'!$C$13:$X$62720,3,0)))","v":""},{"$f":"IF(OR(C533=\"\",D533=\"\"),\"\",IF(ISERROR(VLOOKUP(D533,'Capacidad Financiera'!$C$13:$X$62720,5,0)),\"\",VLOOKUP(D533,'Capacidad Financiera'!$C$13:$X$62720,5,0)))","v":""},"",{"$f":"IF(OR(D533=\"\",E533=\"\",F533=\"\"),\"\",IF(AND(G533>0,G533<=CapFinanciera1),Puntajes!$D$12,IF(AND(G533>CapFinanciera1,G533<=CapFinanciera2),Puntajes!$D$13,IF(AND(G533>CapFinanciera2,G533<=CapFinanciera3),Puntajes!$D$14,IF(AND(G533>CapFinanciera3,G533<=CapFinanciera4),Puntajes!$D$15,IF(G533>CapFinanciera4,Puntajes!$D$16,0))))))","v":""}]
[null,null,{"$f":"+'Capacidad Financiera'!B537","v":""},{"$f":"IF(ISERROR(VLOOKUP(C534,'Capacidad Financiera'!$B$12:$X$62720,2,0)),\"\",VLOOKUP(C534,'Capacidad Financiera'!$B$12:$X$3580,2,0))","v":0},{"$f":"IF(OR(C534=\"\",D534=\"\"),\"\",IF(ISERROR(VLOOKUP(D534,'Capacidad Financiera'!$C$13:$X$62720,3,0)),\"\",VLOOKUP(D534,'Capacidad Financiera'!$C$13:$X$62720,3,0)))","v":""},{"$f":"IF(OR(C534=\"\",D534=\"\"),\"\",IF(ISERROR(VLOOKUP(D534,'Capacidad Financiera'!$C$13:$X$62720,5,0)),\"\",VLOOKUP(D534,'Capacidad Financiera'!$C$13:$X$62720,5,0)))","v":""},"",{"$f":"IF(OR(D534=\"\",E534=\"\",F534=\"\"),\"\",IF(AND(G534>0,G534<=CapFinanciera1),Puntajes!$D$12,IF(AND(G534>CapFinanciera1,G534<=CapFinanciera2),Puntajes!$D$13,IF(AND(G534>CapFinanciera2,G534<=CapFinanciera3),Puntajes!$D$14,IF(AND(G534>CapFinanciera3,G534<=CapFinanciera4),Puntajes!$D$15,IF(G534>CapFinanciera4,Puntajes!$D$16,0))))))","v":""}]
[null,null,{"$f":"+'Capacidad Financiera'!B538","v":""},{"$f":"IF(ISERROR(VLOOKUP(C535,'Capacidad Financiera'!$B$12:$X$62720,2,0)),\"\",VLOOKUP(C535,'Capacidad Financiera'!$B$12:$X$3580,2,0))","v":0},{"$f":"IF(OR(C535=\"\",D535=\"\"),\"\",IF(ISERROR(VLOOKUP(D535,'Capacidad Financiera'!$C$13:$X$62720,3,0)),\"\",VLOOKUP(D535,'Capacidad Financiera'!$C$13:$X$62720,3,0)))","v":""},{"$f":"IF(OR(C535=\"\",D535=\"\"),\"\",IF(ISERROR(VLOOKUP(D535,'Capacidad Financiera'!$C$13:$X$62720,5,0)),\"\",VLOOKUP(D535,'Capacidad Financiera'!$C$13:$X$62720,5,0)))","v":""},"",{"$f":"IF(OR(D535=\"\",E535=\"\",F535=\"\"),\"\",IF(AND(G535>0,G535<=CapFinanciera1),Puntajes!$D$12,IF(AND(G535>CapFinanciera1,G535<=CapFinanciera2),Puntajes!$D$13,IF(AND(G535>CapFinanciera2,G535<=CapFinanciera3),Puntajes!$D$14,IF(AND(G535>CapFinanciera3,G535<=CapFinanciera4),Puntajes!$D$15,IF(G535>CapFinanciera4,Puntajes!$D$16,0))))))","v":""}]
[null,null,{"$f":"+'Capacidad Financiera'!B539","v":""},{"$f":"IF(ISERROR(VLOOKUP(C536,'Capacidad Financiera'!$B$12:$X$62720,2,0)),\"\",VLOOKUP(C536,'Capacidad Financiera'!$B$12:$X$3580,2,0))","v":0},{"$f":"IF(OR(C536=\"\",D536=\"\"),\"\",IF(ISERROR(VLOOKUP(D536,'Capacidad Financiera'!$C$13:$X$62720,3,0)),\"\",VLOOKUP(D536,'Capacidad Financiera'!$C$13:$X$62720,3,0)))","v":""},{"$f":"IF(OR(C536=\"\",D536=\"\"),\"\",IF(ISERROR(VLOOKUP(D536,'Capacidad Financiera'!$C$13:$X$62720,5,0)),\"\",VLOOKUP(D536,'Capacidad Financiera'!$C$13:$X$62720,5,0)))","v":""},"",{"$f":"IF(OR(D536=\"\",E536=\"\",F536=\"\"),\"\",IF(AND(G536>0,G536<=CapFinanciera1),Puntajes!$D$12,IF(AND(G536>CapFinanciera1,G536<=CapFinanciera2),Puntajes!$D$13,IF(AND(G536>CapFinanciera2,G536<=CapFinanciera3),Puntajes!$D$14,IF(AND(G536>CapFinanciera3,G536<=CapFinanciera4),Puntajes!$D$15,IF(G536>CapFinanciera4,Puntajes!$D$16,0))))))","v":""}]
[null,null,49,{"$f":"IF(ISERROR(VLOOKUP(C537,'Capacidad Financiera'!$B$12:$X$62720,2,0)),\"\",VLOOKUP(C537,'Capacidad Financiera'!$B$12:$X$3580,2,0))","v":0},{"$f":"IF(C538=\"\",IF(C537<>\"\",IF(ISERROR(VLOOKUP(D537,'Capacidad Financiera'!$C$12:$H$22,3,0)),\"\",VLOOKUP(D537,'Capacidad Financiera'!$C$12:$H$22,3,0))),\"\")","v":""},{"$f":"IF(C538=\"\",IF(C537<>\"\",IF(ISERROR(VLOOKUP(D537,'Capacidad Financiera'!$C$12:$H$22,5,0)),\"\",VLOOKUP(D537,'Capacidad Financiera'!$C$12:$H$22,5,0))),\"\")","v":""},{"$f":"IF(OR(D537=\"\",E537=\"\",F537=\"\"),\"\",IF(OR(E537=0,F537=0),0,E537/F537))","v":""},{"$f":"IF(C538=\"\",IF(AND(E537=\"\",F537=\"\"),\"\",IF(AND(G537>0,G537<=CapFinanciera1),Puntajes!$D$12,IF(AND(G537>CapFinanciera1,G537<=CapFinanciera2),Puntajes!$D$13,IF(AND(G537>CapFinanciera2,G537<=CapFinanciera3),Puntajes!$D$14,IF(AND(G537>CapFinanciera3,G537<=CapFinanciera4),Puntajes!$D$15,IF(G537>CapFinanciera4,Puntajes!$D$16,0)))))),\"\")","v":""}]
[null,null,{"$f":"+'Capacidad Financiera'!B541","v":""},{"$f":"IF(ISERROR(VLOOKUP(C538,'Capacidad Financiera'!$B$12:$X$62720,2,0)),\"\",VLOOKUP(C538,'Capacidad Financiera'!$B$12:$X$3580,2,0))","v":0},{"$f":"IF(OR(C538=\"\",D538=\"\"),\"\",IF(ISERROR(VLOOKUP(D538,'Capacidad Financiera'!$C$13:$X$62720,3,0)),\"\",VLOOKUP(D538,'Capacidad Financiera'!$C$13:$X$62720,3,0)))","v":""},{"$f":"IF(OR(C538=\"\",D538=\"\"),\"\",IF(ISERROR(VLOOKUP(D538,'Capacidad Financiera'!$C$13:$X$62720,5,0)),\"\",VLOOKUP(D538,'Capacidad Financiera'!$C$13:$X$62720,5,0)))","v":""},{"$f":"IF(OR(D538=\"\",E538=\"\",F538=\"\"),\"\",IF(OR(E538=0,F538=0),0,E538/F538))","v":""},{"$f":"IF(OR(D538=\"\",E538=\"\",F538=\"\"),\"\",IF(AND(G538>0,G538<=CapFinanciera1),Puntajes!$D$12,IF(AND(G538>CapFinanciera1,G538<=CapFinanciera2),Puntajes!$D$13,IF(AND(G538>CapFinanciera2,G538<=CapFinanciera3),Puntajes!$D$14,IF(AND(G538>CapFinanciera3,G538<=CapFinanciera4),Puntajes!$D$15,IF(G538>CapFinanciera4,Puntajes!$D$16,0))))))","v":""}]
[null,null,{"$f":"+'Capacidad Financiera'!B542","v":""},{"$f":"IF(ISERROR(VLOOKUP(C539,'Capacidad Financiera'!$B$12:$X$62720,2,0)),\"\",VLOOKUP(C539,'Capacidad Financiera'!$B$12:$X$3580,2,0))","v":0},{"$f":"IF(OR(C539=\"\",D539=\"\"),\"\",IF(ISERROR(VLOOKUP(D539,'Capacidad Financiera'!$C$13:$X$62720,3,0)),\"\",VLOOKUP(D539,'Capacidad Financiera'!$C$13:$X$62720,3,0)))","v":""},{"$f":"IF(OR(C539=\"\",D539=\"\"),\"\",IF(ISERROR(VLOOKUP(D539,'Capacidad Financiera'!$C$13:$X$62720,5,0)),\"\",VLOOKUP(D539,'Capacidad Financiera'!$C$13:$X$62720,5,0)))","v":""},"",{"$f":"IF(OR(D539=\"\",E539=\"\",F539=\"\"),\"\",IF(AND(G539>0,G539<=CapFinanciera1),Puntajes!$D$12,IF(AND(G539>CapFinanciera1,G539<=CapFinanciera2),Puntajes!$D$13,IF(AND(G539>CapFinanciera2,G539<=CapFinanciera3),Puntajes!$D$14,IF(AND(G539>CapFinanciera3,G539<=CapFinanciera4),Puntajes!$D$15,IF(G539>CapFinanciera4,Puntajes!$D$16,0))))))","v":""}]
[null,null,{"$f":"+'Capacidad Financiera'!B543","v":""},{"$f":"IF(ISERROR(VLOOKUP(C540,'Capacidad Financiera'!$B$12:$X$62720,2,0)),\"\",VLOOKUP(C540,'Capacidad Financiera'!$B$12:$X$3580,2,0))","v":0},{"$f":"IF(OR(C540=\"\",D540=\"\"),\"\",IF(ISERROR(VLOOKUP(D540,'Capacidad Financiera'!$C$13:$X$62720,3,0)),\"\",VLOOKUP(D540,'Capacidad Financiera'!$C$13:$X$62720,3,0)))","v":""},{"$f":"IF(OR(C540=\"\",D540=\"\"),\"\",IF(ISERROR(VLOOKUP(D540,'Capacidad Financiera'!$C$13:$X$62720,5,0)),\"\",VLOOKUP(D540,'Capacidad Financiera'!$C$13:$X$62720,5,0)))","v":""},"",{"$f":"IF(OR(D540=\"\",E540=\"\",F540=\"\"),\"\",IF(AND(G540>0,G540<=CapFinanciera1),Puntajes!$D$12,IF(AND(G540>CapFinanciera1,G540<=CapFinanciera2),Puntajes!$D$13,IF(AND(G540>CapFinanciera2,G540<=CapFinanciera3),Puntajes!$D$14,IF(AND(G540>CapFinanciera3,G540<=CapFinanciera4),Puntajes!$D$15,IF(G540>CapFinanciera4,Puntajes!$D$16,0))))))","v":""}]
[null,null,{"$f":"+'Capacidad Financiera'!B544","v":""},{"$f":"IF(ISERROR(VLOOKUP(C541,'Capacidad Financiera'!$B$12:$X$62720,2,0)),\"\",VLOOKUP(C541,'Capacidad Financiera'!$B$12:$X$3580,2,0))","v":0},{"$f":"IF(OR(C541=\"\",D541=\"\"),\"\",IF(ISERROR(VLOOKUP(D541,'Capacidad Financiera'!$C$13:$X$62720,3,0)),\"\",VLOOKUP(D541,'Capacidad Financiera'!$C$13:$X$62720,3,0)))","v":""},{"$f":"IF(OR(C541=\"\",D541=\"\"),\"\",IF(ISERROR(VLOOKUP(D541,'Capacidad Financiera'!$C$13:$X$62720,5,0)),\"\",VLOOKUP(D541,'Capacidad Financiera'!$C$13:$X$62720,5,0)))","v":""},"",{"$f":"IF(OR(D541=\"\",E541=\"\",F541=\"\"),\"\",IF(AND(G541>0,G541<=CapFinanciera1),Puntajes!$D$12,IF(AND(G541>CapFinanciera1,G541<=CapFinanciera2),Puntajes!$D$13,IF(AND(G541>CapFinanciera2,G541<=CapFinanciera3),Puntajes!$D$14,IF(AND(G541>CapFinanciera3,G541<=CapFinanciera4),Puntajes!$D$15,IF(G541>CapFinanciera4,Puntajes!$D$16,0))))))","v":""}]
[null,null,{"$f":"+'Capacidad Financiera'!B545","v":""},{"$f":"IF(ISERROR(VLOOKUP(C542,'Capacidad Financiera'!$B$12:$X$62720,2,0)),\"\",VLOOKUP(C542,'Capacidad Financiera'!$B$12:$X$3580,2,0))","v":0},{"$f":"IF(OR(C542=\"\",D542=\"\"),\"\",IF(ISERROR(VLOOKUP(D542,'Capacidad Financiera'!$C$13:$X$62720,3,0)),\"\",VLOOKUP(D542,'Capacidad Financiera'!$C$13:$X$62720,3,0)))","v":""},{"$f":"IF(OR(C542=\"\",D542=\"\"),\"\",IF(ISERROR(VLOOKUP(D542,'Capacidad Financiera'!$C$13:$X$62720,5,0)),\"\",VLOOKUP(D542,'Capacidad Financiera'!$C$13:$X$62720,5,0)))","v":""},"",{"$f":"IF(OR(D542=\"\",E542=\"\",F542=\"\"),\"\",IF(AND(G542>0,G542<=CapFinanciera1),Puntajes!$D$12,IF(AND(G542>CapFinanciera1,G542<=CapFinanciera2),Puntajes!$D$13,IF(AND(G542>CapFinanciera2,G542<=CapFinanciera3),Puntajes!$D$14,IF(AND(G542>CapFinanciera3,G542<=CapFinanciera4),Puntajes!$D$15,IF(G542>CapFinanciera4,Puntajes!$D$16,0))))))","v":""}]
[null,null,{"$f":"+'Capacidad Financiera'!B546","v":""},{"$f":"IF(ISERROR(VLOOKUP(C543,'Capacidad Financiera'!$B$12:$X$62720,2,0)),\"\",VLOOKUP(C543,'Capacidad Financiera'!$B$12:$X$3580,2,0))","v":0},{"$f":"IF(OR(C543=\"\",D543=\"\"),\"\",IF(ISERROR(VLOOKUP(D543,'Capacidad Financiera'!$C$13:$X$62720,3,0)),\"\",VLOOKUP(D543,'Capacidad Financiera'!$C$13:$X$62720,3,0)))","v":""},{"$f":"IF(OR(C543=\"\",D543=\"\"),\"\",IF(ISERROR(VLOOKUP(D543,'Capacidad Financiera'!$C$13:$X$62720,5,0)),\"\",VLOOKUP(D543,'Capacidad Financiera'!$C$13:$X$62720,5,0)))","v":""},"",{"$f":"IF(OR(D543=\"\",E543=\"\",F543=\"\"),\"\",IF(AND(G543>0,G543<=CapFinanciera1),Puntajes!$D$12,IF(AND(G543>CapFinanciera1,G543<=CapFinanciera2),Puntajes!$D$13,IF(AND(G543>CapFinanciera2,G543<=CapFinanciera3),Puntajes!$D$14,IF(AND(G543>CapFinanciera3,G543<=CapFinanciera4),Puntajes!$D$15,IF(G543>CapFinanciera4,Puntajes!$D$16,0))))))","v":""}]
[null,null,{"$f":"+'Capacidad Financiera'!B547","v":""},{"$f":"IF(ISERROR(VLOOKUP(C544,'Capacidad Financiera'!$B$12:$X$62720,2,0)),\"\",VLOOKUP(C544,'Capacidad Financiera'!$B$12:$X$3580,2,0))","v":0},{"$f":"IF(OR(C544=\"\",D544=\"\"),\"\",IF(ISERROR(VLOOKUP(D544,'Capacidad Financiera'!$C$13:$X$62720,3,0)),\"\",VLOOKUP(D544,'Capacidad Financiera'!$C$13:$X$62720,3,0)))","v":""},{"$f":"IF(OR(C544=\"\",D544=\"\"),\"\",IF(ISERROR(VLOOKUP(D544,'Capacidad Financiera'!$C$13:$X$62720,5,0)),\"\",VLOOKUP(D544,'Capacidad Financiera'!$C$13:$X$62720,5,0)))","v":""},"",{"$f":"IF(OR(D544=\"\",E544=\"\",F544=\"\"),\"\",IF(AND(G544>0,G544<=CapFinanciera1),Puntajes!$D$12,IF(AND(G544>CapFinanciera1,G544<=CapFinanciera2),Puntajes!$D$13,IF(AND(G544>CapFinanciera2,G544<=CapFinanciera3),Puntajes!$D$14,IF(AND(G544>CapFinanciera3,G544<=CapFinanciera4),Puntajes!$D$15,IF(G544>CapFinanciera4,Puntajes!$D$16,0))))))","v":""}]
[null,null,{"$f":"+'Capacidad Financiera'!B548","v":""},{"$f":"IF(ISERROR(VLOOKUP(C545,'Capacidad Financiera'!$B$12:$X$62720,2,0)),\"\",VLOOKUP(C545,'Capacidad Financiera'!$B$12:$X$3580,2,0))","v":0},{"$f":"IF(OR(C545=\"\",D545=\"\"),\"\",IF(ISERROR(VLOOKUP(D545,'Capacidad Financiera'!$C$13:$X$62720,3,0)),\"\",VLOOKUP(D545,'Capacidad Financiera'!$C$13:$X$62720,3,0)))","v":""},{"$f":"IF(OR(C545=\"\",D545=\"\"),\"\",IF(ISERROR(VLOOKUP(D545,'Capacidad Financiera'!$C$13:$X$62720,5,0)),\"\",VLOOKUP(D545,'Capacidad Financiera'!$C$13:$X$62720,5,0)))","v":""},"",{"$f":"IF(OR(D545=\"\",E545=\"\",F545=\"\"),\"\",IF(AND(G545>0,G545<=CapFinanciera1),Puntajes!$D$12,IF(AND(G545>CapFinanciera1,G545<=CapFinanciera2),Puntajes!$D$13,IF(AND(G545>CapFinanciera2,G545<=CapFinanciera3),Puntajes!$D$14,IF(AND(G545>CapFinanciera3,G545<=CapFinanciera4),Puntajes!$D$15,IF(G545>CapFinanciera4,Puntajes!$D$16,0))))))","v":""}]
[null,null,{"$f":"+'Capacidad Financiera'!B549","v":""},{"$f":"IF(ISERROR(VLOOKUP(C546,'Capacidad Financiera'!$B$12:$X$62720,2,0)),\"\",VLOOKUP(C546,'Capacidad Financiera'!$B$12:$X$3580,2,0))","v":0},{"$f":"IF(OR(C546=\"\",D546=\"\"),\"\",IF(ISERROR(VLOOKUP(D546,'Capacidad Financiera'!$C$13:$X$62720,3,0)),\"\",VLOOKUP(D546,'Capacidad Financiera'!$C$13:$X$62720,3,0)))","v":""},{"$f":"IF(OR(C546=\"\",D546=\"\"),\"\",IF(ISERROR(VLOOKUP(D546,'Capacidad Financiera'!$C$13:$X$62720,5,0)),\"\",VLOOKUP(D546,'Capacidad Financiera'!$C$13:$X$62720,5,0)))","v":""},"",{"$f":"IF(OR(D546=\"\",E546=\"\",F546=\"\"),\"\",IF(AND(G546>0,G546<=CapFinanciera1),Puntajes!$D$12,IF(AND(G546>CapFinanciera1,G546<=CapFinanciera2),Puntajes!$D$13,IF(AND(G546>CapFinanciera2,G546<=CapFinanciera3),Puntajes!$D$14,IF(AND(G546>CapFinanciera3,G546<=CapFinanciera4),Puntajes!$D$15,IF(G546>CapFinanciera4,Puntajes!$D$16,0))))))","v":""}]
[null,null,{"$f":"+'Capacidad Financiera'!B550","v":""},{"$f":"IF(ISERROR(VLOOKUP(C547,'Capacidad Financiera'!$B$12:$X$62720,2,0)),\"\",VLOOKUP(C547,'Capacidad Financiera'!$B$12:$X$3580,2,0))","v":0},{"$f":"IF(OR(C547=\"\",D547=\"\"),\"\",IF(ISERROR(VLOOKUP(D547,'Capacidad Financiera'!$C$13:$X$62720,3,0)),\"\",VLOOKUP(D547,'Capacidad Financiera'!$C$13:$X$62720,3,0)))","v":""},{"$f":"IF(OR(C547=\"\",D547=\"\"),\"\",IF(ISERROR(VLOOKUP(D547,'Capacidad Financiera'!$C$13:$X$62720,5,0)),\"\",VLOOKUP(D547,'Capacidad Financiera'!$C$13:$X$62720,5,0)))","v":""},"",{"$f":"IF(OR(D547=\"\",E547=\"\",F547=\"\"),\"\",IF(AND(G547>0,G547<=CapFinanciera1),Puntajes!$D$12,IF(AND(G547>CapFinanciera1,G547<=CapFinanciera2),Puntajes!$D$13,IF(AND(G547>CapFinanciera2,G547<=CapFinanciera3),Puntajes!$D$14,IF(AND(G547>CapFinanciera3,G547<=CapFinanciera4),Puntajes!$D$15,IF(G547>CapFinanciera4,Puntajes!$D$16,0))))))","v":""}]
[null,null,50,{"$f":"IF(ISERROR(VLOOKUP(C548,'Capacidad Financiera'!$B$12:$X$62720,2,0)),\"\",VLOOKUP(C548,'Capacidad Financiera'!$B$12:$X$3580,2,0))","v":0},{"$f":"IF(C549=\"\",IF(C548<>\"\",IF(ISERROR(VLOOKUP(D548,'Capacidad Financiera'!$C$12:$H$22,3,0)),\"\",VLOOKUP(D548,'Capacidad Financiera'!$C$12:$H$22,3,0))),\"\")","v":""},{"$f":"IF(C549=\"\",IF(C548<>\"\",IF(ISERROR(VLOOKUP(D548,'Capacidad Financiera'!$C$12:$H$22,5,0)),\"\",VLOOKUP(D548,'Capacidad Financiera'!$C$12:$H$22,5,0))),\"\")","v":""},{"$f":"IF(OR(D548=\"\",E548=\"\",F548=\"\"),\"\",IF(OR(E548=0,F548=0),0,E548/F548))","v":""},{"$f":"IF(C549=\"\",IF(AND(E548=\"\",F548=\"\"),\"\",IF(AND(G548>0,G548<=CapFinanciera1),Puntajes!$D$12,IF(AND(G548>CapFinanciera1,G548<=CapFinanciera2),Puntajes!$D$13,IF(AND(G548>CapFinanciera2,G548<=CapFinanciera3),Puntajes!$D$14,IF(AND(G548>CapFinanciera3,G548<=CapFinanciera4),Puntajes!$D$15,IF(G548>CapFinanciera4,Puntajes!$D$16,0)))))),\"\")","v":""}]
[null,null,{"$f":"+'Capacidad Financiera'!B552","v":""},{"$f":"IF(ISERROR(VLOOKUP(C549,'Capacidad Financiera'!$B$12:$X$62720,2,0)),\"\",VLOOKUP(C549,'Capacidad Financiera'!$B$12:$X$3580,2,0))","v":0},{"$f":"IF(OR(C549=\"\",D549=\"\"),\"\",IF(ISERROR(VLOOKUP(D549,'Capacidad Financiera'!$C$13:$X$62720,3,0)),\"\",VLOOKUP(D549,'Capacidad Financiera'!$C$13:$X$62720,3,0)))","v":""},{"$f":"IF(OR(C549=\"\",D549=\"\"),\"\",IF(ISERROR(VLOOKUP(D549,'Capacidad Financiera'!$C$13:$X$62720,5,0)),\"\",VLOOKUP(D549,'Capacidad Financiera'!$C$13:$X$62720,5,0)))","v":""},{"$f":"IF(OR(D549=\"\",E549=\"\",F549=\"\"),\"\",IF(OR(E549=0,F549=0),0,E549/F549))","v":""},{"$f":"IF(OR(D549=\"\",E549=\"\",F549=\"\"),\"\",IF(AND(G549>0,G549<=CapFinanciera1),Puntajes!$D$12,IF(AND(G549>CapFinanciera1,G549<=CapFinanciera2),Puntajes!$D$13,IF(AND(G549>CapFinanciera2,G549<=CapFinanciera3),Puntajes!$D$14,IF(AND(G549>CapFinanciera3,G549<=CapFinanciera4),Puntajes!$D$15,IF(G549>CapFinanciera4,Puntajes!$D$16,0))))))","v":""}]
[null,null,{"$f":"+'Capacidad Financiera'!B553","v":""},{"$f":"IF(ISERROR(VLOOKUP(C550,'Capacidad Financiera'!$B$12:$X$62720,2,0)),\"\",VLOOKUP(C550,'Capacidad Financiera'!$B$12:$X$3580,2,0))","v":0},{"$f":"IF(OR(C550=\"\",D550=\"\"),\"\",IF(ISERROR(VLOOKUP(D550,'Capacidad Financiera'!$C$13:$X$62720,3,0)),\"\",VLOOKUP(D550,'Capacidad Financiera'!$C$13:$X$62720,3,0)))","v":""},{"$f":"IF(OR(C550=\"\",D550=\"\"),\"\",IF(ISERROR(VLOOKUP(D550,'Capacidad Financiera'!$C$13:$X$62720,5,0)),\"\",VLOOKUP(D550,'Capacidad Financiera'!$C$13:$X$62720,5,0)))","v":""},"",{"$f":"IF(OR(D550=\"\",E550=\"\",F550=\"\"),\"\",IF(AND(G550>0,G550<=CapFinanciera1),Puntajes!$D$12,IF(AND(G550>CapFinanciera1,G550<=CapFinanciera2),Puntajes!$D$13,IF(AND(G550>CapFinanciera2,G550<=CapFinanciera3),Puntajes!$D$14,IF(AND(G550>CapFinanciera3,G550<=CapFinanciera4),Puntajes!$D$15,IF(G550>CapFinanciera4,Puntajes!$D$16,0))))))","v":""}]
[null,null,{"$f":"+'Capacidad Financiera'!B554","v":""},{"$f":"IF(ISERROR(VLOOKUP(C551,'Capacidad Financiera'!$B$12:$X$62720,2,0)),\"\",VLOOKUP(C551,'Capacidad Financiera'!$B$12:$X$3580,2,0))","v":0},{"$f":"IF(OR(C551=\"\",D551=\"\"),\"\",IF(ISERROR(VLOOKUP(D551,'Capacidad Financiera'!$C$13:$X$62720,3,0)),\"\",VLOOKUP(D551,'Capacidad Financiera'!$C$13:$X$62720,3,0)))","v":""},{"$f":"IF(OR(C551=\"\",D551=\"\"),\"\",IF(ISERROR(VLOOKUP(D551,'Capacidad Financiera'!$C$13:$X$62720,5,0)),\"\",VLOOKUP(D551,'Capacidad Financiera'!$C$13:$X$62720,5,0)))","v":""},"",{"$f":"IF(OR(D551=\"\",E551=\"\",F551=\"\"),\"\",IF(AND(G551>0,G551<=CapFinanciera1),Puntajes!$D$12,IF(AND(G551>CapFinanciera1,G551<=CapFinanciera2),Puntajes!$D$13,IF(AND(G551>CapFinanciera2,G551<=CapFinanciera3),Puntajes!$D$14,IF(AND(G551>CapFinanciera3,G551<=CapFinanciera4),Puntajes!$D$15,IF(G551>CapFinanciera4,Puntajes!$D$16,0))))))","v":""}]
[null,null,{"$f":"+'Capacidad Financiera'!B555","v":""},{"$f":"IF(ISERROR(VLOOKUP(C552,'Capacidad Financiera'!$B$12:$X$62720,2,0)),\"\",VLOOKUP(C552,'Capacidad Financiera'!$B$12:$X$3580,2,0))","v":0},{"$f":"IF(OR(C552=\"\",D552=\"\"),\"\",IF(ISERROR(VLOOKUP(D552,'Capacidad Financiera'!$C$13:$X$62720,3,0)),\"\",VLOOKUP(D552,'Capacidad Financiera'!$C$13:$X$62720,3,0)))","v":""},{"$f":"IF(OR(C552=\"\",D552=\"\"),\"\",IF(ISERROR(VLOOKUP(D552,'Capacidad Financiera'!$C$13:$X$62720,5,0)),\"\",VLOOKUP(D552,'Capacidad Financiera'!$C$13:$X$62720,5,0)))","v":""},"",{"$f":"IF(OR(D552=\"\",E552=\"\",F552=\"\"),\"\",IF(AND(G552>0,G552<=CapFinanciera1),Puntajes!$D$12,IF(AND(G552>CapFinanciera1,G552<=CapFinanciera2),Puntajes!$D$13,IF(AND(G552>CapFinanciera2,G552<=CapFinanciera3),Puntajes!$D$14,IF(AND(G552>CapFinanciera3,G552<=CapFinanciera4),Puntajes!$D$15,IF(G552>CapFinanciera4,Puntajes!$D$16,0))))))","v":""}]
[null,null,{"$f":"+'Capacidad Financiera'!B556","v":""},{"$f":"IF(ISERROR(VLOOKUP(C553,'Capacidad Financiera'!$B$12:$X$62720,2,0)),\"\",VLOOKUP(C553,'Capacidad Financiera'!$B$12:$X$3580,2,0))","v":0},{"$f":"IF(OR(C553=\"\",D553=\"\"),\"\",IF(ISERROR(VLOOKUP(D553,'Capacidad Financiera'!$C$13:$X$62720,3,0)),\"\",VLOOKUP(D553,'Capacidad Financiera'!$C$13:$X$62720,3,0)))","v":""},{"$f":"IF(OR(C553=\"\",D553=\"\"),\"\",IF(ISERROR(VLOOKUP(D553,'Capacidad Financiera'!$C$13:$X$62720,5,0)),\"\",VLOOKUP(D553,'Capacidad Financiera'!$C$13:$X$62720,5,0)))","v":""},"",{"$f":"IF(OR(D553=\"\",E553=\"\",F553=\"\"),\"\",IF(AND(G553>0,G553<=CapFinanciera1),Puntajes!$D$12,IF(AND(G553>CapFinanciera1,G553<=CapFinanciera2),Puntajes!$D$13,IF(AND(G553>CapFinanciera2,G553<=CapFinanciera3),Puntajes!$D$14,IF(AND(G553>CapFinanciera3,G553<=CapFinanciera4),Puntajes!$D$15,IF(G553>CapFinanciera4,Puntajes!$D$16,0))))))","v":""}]
[null,null,{"$f":"+'Capacidad Financiera'!B557","v":""},{"$f":"IF(ISERROR(VLOOKUP(C554,'Capacidad Financiera'!$B$12:$X$62720,2,0)),\"\",VLOOKUP(C554,'Capacidad Financiera'!$B$12:$X$3580,2,0))","v":0},{"$f":"IF(OR(C554=\"\",D554=\"\"),\"\",IF(ISERROR(VLOOKUP(D554,'Capacidad Financiera'!$C$13:$X$62720,3,0)),\"\",VLOOKUP(D554,'Capacidad Financiera'!$C$13:$X$62720,3,0)))","v":""},{"$f":"IF(OR(C554=\"\",D554=\"\"),\"\",IF(ISERROR(VLOOKUP(D554,'Capacidad Financiera'!$C$13:$X$62720,5,0)),\"\",VLOOKUP(D554,'Capacidad Financiera'!$C$13:$X$62720,5,0)))","v":""},"",{"$f":"IF(OR(D554=\"\",E554=\"\",F554=\"\"),\"\",IF(AND(G554>0,G554<=CapFinanciera1),Puntajes!$D$12,IF(AND(G554>CapFinanciera1,G554<=CapFinanciera2),Puntajes!$D$13,IF(AND(G554>CapFinanciera2,G554<=CapFinanciera3),Puntajes!$D$14,IF(AND(G554>CapFinanciera3,G554<=CapFinanciera4),Puntajes!$D$15,IF(G554>CapFinanciera4,Puntajes!$D$16,0))))))","v":""}]
[null,null,{"$f":"+'Capacidad Financiera'!B558","v":""},{"$f":"IF(ISERROR(VLOOKUP(C555,'Capacidad Financiera'!$B$12:$X$62720,2,0)),\"\",VLOOKUP(C555,'Capacidad Financiera'!$B$12:$X$3580,2,0))","v":0},{"$f":"IF(OR(C555=\"\",D555=\"\"),\"\",IF(ISERROR(VLOOKUP(D555,'Capacidad Financiera'!$C$13:$X$62720,3,0)),\"\",VLOOKUP(D555,'Capacidad Financiera'!$C$13:$X$62720,3,0)))","v":""},{"$f":"IF(OR(C555=\"\",D555=\"\"),\"\",IF(ISERROR(VLOOKUP(D555,'Capacidad Financiera'!$C$13:$X$62720,5,0)),\"\",VLOOKUP(D555,'Capacidad Financiera'!$C$13:$X$62720,5,0)))","v":""},"",{"$f":"IF(OR(D555=\"\",E555=\"\",F555=\"\"),\"\",IF(AND(G555>0,G555<=CapFinanciera1),Puntajes!$D$12,IF(AND(G555>CapFinanciera1,G555<=CapFinanciera2),Puntajes!$D$13,IF(AND(G555>CapFinanciera2,G555<=CapFinanciera3),Puntajes!$D$14,IF(AND(G555>CapFinanciera3,G555<=CapFinanciera4),Puntajes!$D$15,IF(G555>CapFinanciera4,Puntajes!$D$16,0))))))","v":""}]
[null,null,{"$f":"+'Capacidad Financiera'!B559","v":""},{"$f":"IF(ISERROR(VLOOKUP(C556,'Capacidad Financiera'!$B$12:$X$62720,2,0)),\"\",VLOOKUP(C556,'Capacidad Financiera'!$B$12:$X$3580,2,0))","v":0},{"$f":"IF(OR(C556=\"\",D556=\"\"),\"\",IF(ISERROR(VLOOKUP(D556,'Capacidad Financiera'!$C$13:$X$62720,3,0)),\"\",VLOOKUP(D556,'Capacidad Financiera'!$C$13:$X$62720,3,0)))","v":""},{"$f":"IF(OR(C556=\"\",D556=\"\"),\"\",IF(ISERROR(VLOOKUP(D556,'Capacidad Financiera'!$C$13:$X$62720,5,0)),\"\",VLOOKUP(D556,'Capacidad Financiera'!$C$13:$X$62720,5,0)))","v":""},"",{"$f":"IF(OR(D556=\"\",E556=\"\",F556=\"\"),\"\",IF(AND(G556>0,G556<=CapFinanciera1),Puntajes!$D$12,IF(AND(G556>CapFinanciera1,G556<=CapFinanciera2),Puntajes!$D$13,IF(AND(G556>CapFinanciera2,G556<=CapFinanciera3),Puntajes!$D$14,IF(AND(G556>CapFinanciera3,G556<=CapFinanciera4),Puntajes!$D$15,IF(G556>CapFinanciera4,Puntajes!$D$16,0))))))","v":""}]
[null,null,{"$f":"+'Capacidad Financiera'!B560","v":""},{"$f":"IF(ISERROR(VLOOKUP(C557,'Capacidad Financiera'!$B$12:$X$62720,2,0)),\"\",VLOOKUP(C557,'Capacidad Financiera'!$B$12:$X$3580,2,0))","v":0},{"$f":"IF(OR(C557=\"\",D557=\"\"),\"\",IF(ISERROR(VLOOKUP(D557,'Capacidad Financiera'!$C$13:$X$62720,3,0)),\"\",VLOOKUP(D557,'Capacidad Financiera'!$C$13:$X$62720,3,0)))","v":""},{"$f":"IF(OR(C557=\"\",D557=\"\"),\"\",IF(ISERROR(VLOOKUP(D557,'Capacidad Financiera'!$C$13:$X$62720,5,0)),\"\",VLOOKUP(D557,'Capacidad Financiera'!$C$13:$X$62720,5,0)))","v":""},"",{"$f":"IF(OR(D557=\"\",E557=\"\",F557=\"\"),\"\",IF(AND(G557>0,G557<=CapFinanciera1),Puntajes!$D$12,IF(AND(G557>CapFinanciera1,G557<=CapFinanciera2),Puntajes!$D$13,IF(AND(G557>CapFinanciera2,G557<=CapFinanciera3),Puntajes!$D$14,IF(AND(G557>CapFinanciera3,G557<=CapFinanciera4),Puntajes!$D$15,IF(G557>CapFinanciera4,Puntajes!$D$16,0))))))","v":""}]
[null,null,{"$f":"+'Capacidad Financiera'!B561","v":""},{"$f":"IF(ISERROR(VLOOKUP(C558,'Capacidad Financiera'!$B$12:$X$62720,2,0)),\"\",VLOOKUP(C558,'Capacidad Financiera'!$B$12:$X$3580,2,0))","v":0},{"$f":"IF(OR(C558=\"\",D558=\"\"),\"\",IF(ISERROR(VLOOKUP(D558,'Capacidad Financiera'!$C$13:$X$62720,3,0)),\"\",VLOOKUP(D558,'Capacidad Financiera'!$C$13:$X$62720,3,0)))","v":""},{"$f":"IF(OR(C558=\"\",D558=\"\"),\"\",IF(ISERROR(VLOOKUP(D558,'Capacidad Financiera'!$C$13:$X$62720,5,0)),\"\",VLOOKUP(D558,'Capacidad Financiera'!$C$13:$X$62720,5,0)))","v":""},"",{"$f":"IF(OR(D558=\"\",E558=\"\",F558=\"\"),\"\",IF(AND(G558>0,G558<=CapFinanciera1),Puntajes!$D$12,IF(AND(G558>CapFinanciera1,G558<=CapFinanciera2),Puntajes!$D$13,IF(AND(G558>CapFinanciera2,G558<=CapFinanciera3),Puntajes!$D$14,IF(AND(G558>CapFinanciera3,G558<=CapFinanciera4),Puntajes!$D$15,IF(G558>CapFinanciera4,Puntajes!$D$16,0))))))","v":""}]
[null,null,51,{"$f":"IF(ISERROR(VLOOKUP(C559,'Capacidad Financiera'!$B$12:$X$62720,2,0)),\"\",VLOOKUP(C559,'Capacidad Financiera'!$B$12:$X$3580,2,0))","v":0},{"$f":"IF(C560=\"\",IF(C559<>\"\",IF(ISERROR(VLOOKUP(D559,'Capacidad Financiera'!$C$12:$H$22,3,0)),\"\",VLOOKUP(D559,'Capacidad Financiera'!$C$12:$H$22,3,0))),\"\")","v":""},{"$f":"IF(C560=\"\",IF(C559<>\"\",IF(ISERROR(VLOOKUP(D559,'Capacidad Financiera'!$C$12:$H$22,5,0)),\"\",VLOOKUP(D559,'Capacidad Financiera'!$C$12:$H$22,5,0))),\"\")","v":""},{"$f":"IF(OR(D559=\"\",E559=\"\",F559=\"\"),\"\",IF(OR(E559=0,F559=0),0,E559/F559))","v":""},{"$f":"IF(C560=\"\",IF(AND(E559=\"\",F559=\"\"),\"\",IF(AND(G559>0,G559<=CapFinanciera1),Puntajes!$D$12,IF(AND(G559>CapFinanciera1,G559<=CapFinanciera2),Puntajes!$D$13,IF(AND(G559>CapFinanciera2,G559<=CapFinanciera3),Puntajes!$D$14,IF(AND(G559>CapFinanciera3,G559<=CapFinanciera4),Puntajes!$D$15,IF(G559>CapFinanciera4,Puntajes!$D$16,0)))))),\"\")","v":""}]
[null,null,{"$f":"+'Capacidad Financiera'!B563","v":""},{"$f":"IF(ISERROR(VLOOKUP(C560,'Capacidad Financiera'!$B$12:$X$62720,2,0)),\"\",VLOOKUP(C560,'Capacidad Financiera'!$B$12:$X$3580,2,0))","v":0},{"$f":"IF(OR(C560=\"\",D560=\"\"),\"\",IF(ISERROR(VLOOKUP(D560,'Capacidad Financiera'!$C$13:$X$62720,3,0)),\"\",VLOOKUP(D560,'Capacidad Financiera'!$C$13:$X$62720,3,0)))","v":""},{"$f":"IF(OR(C560=\"\",D560=\"\"),\"\",IF(ISERROR(VLOOKUP(D560,'Capacidad Financiera'!$C$13:$X$62720,5,0)),\"\",VLOOKUP(D560,'Capacidad Financiera'!$C$13:$X$62720,5,0)))","v":""},{"$f":"IF(OR(D560=\"\",E560=\"\",F560=\"\"),\"\",IF(OR(E560=0,F560=0),0,E560/F560))","v":""},{"$f":"IF(OR(D560=\"\",E560=\"\",F560=\"\"),\"\",IF(AND(G560>0,G560<=CapFinanciera1),Puntajes!$D$12,IF(AND(G560>CapFinanciera1,G560<=CapFinanciera2),Puntajes!$D$13,IF(AND(G560>CapFinanciera2,G560<=CapFinanciera3),Puntajes!$D$14,IF(AND(G560>CapFinanciera3,G560<=CapFinanciera4),Puntajes!$D$15,IF(G560>CapFinanciera4,Puntajes!$D$16,0))))))","v":""}]
[null,null,{"$f":"+'Capacidad Financiera'!B564","v":""},{"$f":"IF(ISERROR(VLOOKUP(C561,'Capacidad Financiera'!$B$12:$X$62720,2,0)),\"\",VLOOKUP(C561,'Capacidad Financiera'!$B$12:$X$3580,2,0))","v":0},{"$f":"IF(OR(C561=\"\",D561=\"\"),\"\",IF(ISERROR(VLOOKUP(D561,'Capacidad Financiera'!$C$13:$X$62720,3,0)),\"\",VLOOKUP(D561,'Capacidad Financiera'!$C$13:$X$62720,3,0)))","v":""},{"$f":"IF(OR(C561=\"\",D561=\"\"),\"\",IF(ISERROR(VLOOKUP(D561,'Capacidad Financiera'!$C$13:$X$62720,5,0)),\"\",VLOOKUP(D561,'Capacidad Financiera'!$C$13:$X$62720,5,0)))","v":""},"",{"$f":"IF(OR(D561=\"\",E561=\"\",F561=\"\"),\"\",IF(AND(G561>0,G561<=CapFinanciera1),Puntajes!$D$12,IF(AND(G561>CapFinanciera1,G561<=CapFinanciera2),Puntajes!$D$13,IF(AND(G561>CapFinanciera2,G561<=CapFinanciera3),Puntajes!$D$14,IF(AND(G561>CapFinanciera3,G561<=CapFinanciera4),Puntajes!$D$15,IF(G561>CapFinanciera4,Puntajes!$D$16,0))))))","v":""}]
[null,null,{"$f":"+'Capacidad Financiera'!B565","v":""},{"$f":"IF(ISERROR(VLOOKUP(C562,'Capacidad Financiera'!$B$12:$X$62720,2,0)),\"\",VLOOKUP(C562,'Capacidad Financiera'!$B$12:$X$3580,2,0))","v":0},{"$f":"IF(OR(C562=\"\",D562=\"\"),\"\",IF(ISERROR(VLOOKUP(D562,'Capacidad Financiera'!$C$13:$X$62720,3,0)),\"\",VLOOKUP(D562,'Capacidad Financiera'!$C$13:$X$62720,3,0)))","v":""},{"$f":"IF(OR(C562=\"\",D562=\"\"),\"\",IF(ISERROR(VLOOKUP(D562,'Capacidad Financiera'!$C$13:$X$62720,5,0)),\"\",VLOOKUP(D562,'Capacidad Financiera'!$C$13:$X$62720,5,0)))","v":""},"",{"$f":"IF(OR(D562=\"\",E562=\"\",F562=\"\"),\"\",IF(AND(G562>0,G562<=CapFinanciera1),Puntajes!$D$12,IF(AND(G562>CapFinanciera1,G562<=CapFinanciera2),Puntajes!$D$13,IF(AND(G562>CapFinanciera2,G562<=CapFinanciera3),Puntajes!$D$14,IF(AND(G562>CapFinanciera3,G562<=CapFinanciera4),Puntajes!$D$15,IF(G562>CapFinanciera4,Puntajes!$D$16,0))))))","v":""}]
[null,null,{"$f":"+'Capacidad Financiera'!B566","v":""},{"$f":"IF(ISERROR(VLOOKUP(C563,'Capacidad Financiera'!$B$12:$X$62720,2,0)),\"\",VLOOKUP(C563,'Capacidad Financiera'!$B$12:$X$3580,2,0))","v":0},{"$f":"IF(OR(C563=\"\",D563=\"\"),\"\",IF(ISERROR(VLOOKUP(D563,'Capacidad Financiera'!$C$13:$X$62720,3,0)),\"\",VLOOKUP(D563,'Capacidad Financiera'!$C$13:$X$62720,3,0)))","v":""},{"$f":"IF(OR(C563=\"\",D563=\"\"),\"\",IF(ISERROR(VLOOKUP(D563,'Capacidad Financiera'!$C$13:$X$62720,5,0)),\"\",VLOOKUP(D563,'Capacidad Financiera'!$C$13:$X$62720,5,0)))","v":""},"",{"$f":"IF(OR(D563=\"\",E563=\"\",F563=\"\"),\"\",IF(AND(G563>0,G563<=CapFinanciera1),Puntajes!$D$12,IF(AND(G563>CapFinanciera1,G563<=CapFinanciera2),Puntajes!$D$13,IF(AND(G563>CapFinanciera2,G563<=CapFinanciera3),Puntajes!$D$14,IF(AND(G563>CapFinanciera3,G563<=CapFinanciera4),Puntajes!$D$15,IF(G563>CapFinanciera4,Puntajes!$D$16,0))))))","v":""}]
[null,null,{"$f":"+'Capacidad Financiera'!B567","v":""},{"$f":"IF(ISERROR(VLOOKUP(C564,'Capacidad Financiera'!$B$12:$X$62720,2,0)),\"\",VLOOKUP(C564,'Capacidad Financiera'!$B$12:$X$3580,2,0))","v":0},{"$f":"IF(OR(C564=\"\",D564=\"\"),\"\",IF(ISERROR(VLOOKUP(D564,'Capacidad Financiera'!$C$13:$X$62720,3,0)),\"\",VLOOKUP(D564,'Capacidad Financiera'!$C$13:$X$62720,3,0)))","v":""},{"$f":"IF(OR(C564=\"\",D564=\"\"),\"\",IF(ISERROR(VLOOKUP(D564,'Capacidad Financiera'!$C$13:$X$62720,5,0)),\"\",VLOOKUP(D564,'Capacidad Financiera'!$C$13:$X$62720,5,0)))","v":""},"",{"$f":"IF(OR(D564=\"\",E564=\"\",F564=\"\"),\"\",IF(AND(G564>0,G564<=CapFinanciera1),Puntajes!$D$12,IF(AND(G564>CapFinanciera1,G564<=CapFinanciera2),Puntajes!$D$13,IF(AND(G564>CapFinanciera2,G564<=CapFinanciera3),Puntajes!$D$14,IF(AND(G564>CapFinanciera3,G564<=CapFinanciera4),Puntajes!$D$15,IF(G564>CapFinanciera4,Puntajes!$D$16,0))))))","v":""}]
[null,null,{"$f":"+'Capacidad Financiera'!B568","v":""},{"$f":"IF(ISERROR(VLOOKUP(C565,'Capacidad Financiera'!$B$12:$X$62720,2,0)),\"\",VLOOKUP(C565,'Capacidad Financiera'!$B$12:$X$3580,2,0))","v":0},{"$f":"IF(OR(C565=\"\",D565=\"\"),\"\",IF(ISERROR(VLOOKUP(D565,'Capacidad Financiera'!$C$13:$X$62720,3,0)),\"\",VLOOKUP(D565,'Capacidad Financiera'!$C$13:$X$62720,3,0)))","v":""},{"$f":"IF(OR(C565=\"\",D565=\"\"),\"\",IF(ISERROR(VLOOKUP(D565,'Capacidad Financiera'!$C$13:$X$62720,5,0)),\"\",VLOOKUP(D565,'Capacidad Financiera'!$C$13:$X$62720,5,0)))","v":""},"",{"$f":"IF(OR(D565=\"\",E565=\"\",F565=\"\"),\"\",IF(AND(G565>0,G565<=CapFinanciera1),Puntajes!$D$12,IF(AND(G565>CapFinanciera1,G565<=CapFinanciera2),Puntajes!$D$13,IF(AND(G565>CapFinanciera2,G565<=CapFinanciera3),Puntajes!$D$14,IF(AND(G565>CapFinanciera3,G565<=CapFinanciera4),Puntajes!$D$15,IF(G565>CapFinanciera4,Puntajes!$D$16,0))))))","v":""}]
[null,null,{"$f":"+'Capacidad Financiera'!B569","v":""},{"$f":"IF(ISERROR(VLOOKUP(C566,'Capacidad Financiera'!$B$12:$X$62720,2,0)),\"\",VLOOKUP(C566,'Capacidad Financiera'!$B$12:$X$3580,2,0))","v":0},{"$f":"IF(OR(C566=\"\",D566=\"\"),\"\",IF(ISERROR(VLOOKUP(D566,'Capacidad Financiera'!$C$13:$X$62720,3,0)),\"\",VLOOKUP(D566,'Capacidad Financiera'!$C$13:$X$62720,3,0)))","v":""},{"$f":"IF(OR(C566=\"\",D566=\"\"),\"\",IF(ISERROR(VLOOKUP(D566,'Capacidad Financiera'!$C$13:$X$62720,5,0)),\"\",VLOOKUP(D566,'Capacidad Financiera'!$C$13:$X$62720,5,0)))","v":""},"",{"$f":"IF(OR(D566=\"\",E566=\"\",F566=\"\"),\"\",IF(AND(G566>0,G566<=CapFinanciera1),Puntajes!$D$12,IF(AND(G566>CapFinanciera1,G566<=CapFinanciera2),Puntajes!$D$13,IF(AND(G566>CapFinanciera2,G566<=CapFinanciera3),Puntajes!$D$14,IF(AND(G566>CapFinanciera3,G566<=CapFinanciera4),Puntajes!$D$15,IF(G566>CapFinanciera4,Puntajes!$D$16,0))))))","v":""}]
[null,null,{"$f":"+'Capacidad Financiera'!B570","v":""},{"$f":"IF(ISERROR(VLOOKUP(C567,'Capacidad Financiera'!$B$12:$X$62720,2,0)),\"\",VLOOKUP(C567,'Capacidad Financiera'!$B$12:$X$3580,2,0))","v":0},{"$f":"IF(OR(C567=\"\",D567=\"\"),\"\",IF(ISERROR(VLOOKUP(D567,'Capacidad Financiera'!$C$13:$X$62720,3,0)),\"\",VLOOKUP(D567,'Capacidad Financiera'!$C$13:$X$62720,3,0)))","v":""},{"$f":"IF(OR(C567=\"\",D567=\"\"),\"\",IF(ISERROR(VLOOKUP(D567,'Capacidad Financiera'!$C$13:$X$62720,5,0)),\"\",VLOOKUP(D567,'Capacidad Financiera'!$C$13:$X$62720,5,0)))","v":""},"",{"$f":"IF(OR(D567=\"\",E567=\"\",F567=\"\"),\"\",IF(AND(G567>0,G567<=CapFinanciera1),Puntajes!$D$12,IF(AND(G567>CapFinanciera1,G567<=CapFinanciera2),Puntajes!$D$13,IF(AND(G567>CapFinanciera2,G567<=CapFinanciera3),Puntajes!$D$14,IF(AND(G567>CapFinanciera3,G567<=CapFinanciera4),Puntajes!$D$15,IF(G567>CapFinanciera4,Puntajes!$D$16,0))))))","v":""}]
[null,null,{"$f":"+'Capacidad Financiera'!B571","v":""},{"$f":"IF(ISERROR(VLOOKUP(C568,'Capacidad Financiera'!$B$12:$X$62720,2,0)),\"\",VLOOKUP(C568,'Capacidad Financiera'!$B$12:$X$3580,2,0))","v":0},{"$f":"IF(OR(C568=\"\",D568=\"\"),\"\",IF(ISERROR(VLOOKUP(D568,'Capacidad Financiera'!$C$13:$X$62720,3,0)),\"\",VLOOKUP(D568,'Capacidad Financiera'!$C$13:$X$62720,3,0)))","v":""},{"$f":"IF(OR(C568=\"\",D568=\"\"),\"\",IF(ISERROR(VLOOKUP(D568,'Capacidad Financiera'!$C$13:$X$62720,5,0)),\"\",VLOOKUP(D568,'Capacidad Financiera'!$C$13:$X$62720,5,0)))","v":""},"",{"$f":"IF(OR(D568=\"\",E568=\"\",F568=\"\"),\"\",IF(AND(G568>0,G568<=CapFinanciera1),Puntajes!$D$12,IF(AND(G568>CapFinanciera1,G568<=CapFinanciera2),Puntajes!$D$13,IF(AND(G568>CapFinanciera2,G568<=CapFinanciera3),Puntajes!$D$14,IF(AND(G568>CapFinanciera3,G568<=CapFinanciera4),Puntajes!$D$15,IF(G568>CapFinanciera4,Puntajes!$D$16,0))))))","v":""}]
[null,null,{"$f":"+'Capacidad Financiera'!B572","v":""},{"$f":"IF(ISERROR(VLOOKUP(C569,'Capacidad Financiera'!$B$12:$X$62720,2,0)),\"\",VLOOKUP(C569,'Capacidad Financiera'!$B$12:$X$3580,2,0))","v":0},{"$f":"IF(OR(C569=\"\",D569=\"\"),\"\",IF(ISERROR(VLOOKUP(D569,'Capacidad Financiera'!$C$13:$X$62720,3,0)),\"\",VLOOKUP(D569,'Capacidad Financiera'!$C$13:$X$62720,3,0)))","v":""},{"$f":"IF(OR(C569=\"\",D569=\"\"),\"\",IF(ISERROR(VLOOKUP(D569,'Capacidad Financiera'!$C$13:$X$62720,5,0)),\"\",VLOOKUP(D569,'Capacidad Financiera'!$C$13:$X$62720,5,0)))","v":""},"",{"$f":"IF(OR(D569=\"\",E569=\"\",F569=\"\"),\"\",IF(AND(G569>0,G569<=CapFinanciera1),Puntajes!$D$12,IF(AND(G569>CapFinanciera1,G569<=CapFinanciera2),Puntajes!$D$13,IF(AND(G569>CapFinanciera2,G569<=CapFinanciera3),Puntajes!$D$14,IF(AND(G569>CapFinanciera3,G569<=CapFinanciera4),Puntajes!$D$15,IF(G569>CapFinanciera4,Puntajes!$D$16,0))))))","v":""}]
[null,null,52,{"$f":"IF(ISERROR(VLOOKUP(C570,'Capacidad Financiera'!$B$12:$X$62720,2,0)),\"\",VLOOKUP(C570,'Capacidad Financiera'!$B$12:$X$3580,2,0))","v":0},{"$f":"IF(C571=\"\",IF(C570<>\"\",IF(ISERROR(VLOOKUP(D570,'Capacidad Financiera'!$C$12:$H$22,3,0)),\"\",VLOOKUP(D570,'Capacidad Financiera'!$C$12:$H$22,3,0))),\"\")","v":""},{"$f":"IF(C571=\"\",IF(C570<>\"\",IF(ISERROR(VLOOKUP(D570,'Capacidad Financiera'!$C$12:$H$22,5,0)),\"\",VLOOKUP(D570,'Capacidad Financiera'!$C$12:$H$22,5,0))),\"\")","v":""},{"$f":"IF(OR(D570=\"\",E570=\"\",F570=\"\"),\"\",IF(OR(E570=0,F570=0),0,E570/F570))","v":""},{"$f":"IF(C571=\"\",IF(AND(E570=\"\",F570=\"\"),\"\",IF(AND(G570>0,G570<=CapFinanciera1),Puntajes!$D$12,IF(AND(G570>CapFinanciera1,G570<=CapFinanciera2),Puntajes!$D$13,IF(AND(G570>CapFinanciera2,G570<=CapFinanciera3),Puntajes!$D$14,IF(AND(G570>CapFinanciera3,G570<=CapFinanciera4),Puntajes!$D$15,IF(G570>CapFinanciera4,Puntajes!$D$16,0)))))),\"\")","v":""}]
[null,null,{"$f":"+'Capacidad Financiera'!B574","v":""},{"$f":"IF(ISERROR(VLOOKUP(C571,'Capacidad Financiera'!$B$12:$X$62720,2,0)),\"\",VLOOKUP(C571,'Capacidad Financiera'!$B$12:$X$3580,2,0))","v":0},{"$f":"IF(OR(C571=\"\",D571=\"\"),\"\",IF(ISERROR(VLOOKUP(D571,'Capacidad Financiera'!$C$13:$X$62720,3,0)),\"\",VLOOKUP(D571,'Capacidad Financiera'!$C$13:$X$62720,3,0)))","v":""},{"$f":"IF(OR(C571=\"\",D571=\"\"),\"\",IF(ISERROR(VLOOKUP(D571,'Capacidad Financiera'!$C$13:$X$62720,5,0)),\"\",VLOOKUP(D571,'Capacidad Financiera'!$C$13:$X$62720,5,0)))","v":""},{"$f":"IF(OR(D571=\"\",E571=\"\",F571=\"\"),\"\",IF(OR(E571=0,F571=0),0,E571/F571))","v":""},{"$f":"IF(OR(D571=\"\",E571=\"\",F571=\"\"),\"\",IF(AND(G571>0,G571<=CapFinanciera1),Puntajes!$D$12,IF(AND(G571>CapFinanciera1,G571<=CapFinanciera2),Puntajes!$D$13,IF(AND(G571>CapFinanciera2,G571<=CapFinanciera3),Puntajes!$D$14,IF(AND(G571>CapFinanciera3,G571<=CapFinanciera4),Puntajes!$D$15,IF(G571>CapFinanciera4,Puntajes!$D$16,0))))))","v":""}]
[null,null,{"$f":"+'Capacidad Financiera'!B575","v":""},{"$f":"IF(ISERROR(VLOOKUP(C572,'Capacidad Financiera'!$B$12:$X$62720,2,0)),\"\",VLOOKUP(C572,'Capacidad Financiera'!$B$12:$X$3580,2,0))","v":0},{"$f":"IF(OR(C572=\"\",D572=\"\"),\"\",IF(ISERROR(VLOOKUP(D572,'Capacidad Financiera'!$C$13:$X$62720,3,0)),\"\",VLOOKUP(D572,'Capacidad Financiera'!$C$13:$X$62720,3,0)))","v":""},{"$f":"IF(OR(C572=\"\",D572=\"\"),\"\",IF(ISERROR(VLOOKUP(D572,'Capacidad Financiera'!$C$13:$X$62720,5,0)),\"\",VLOOKUP(D572,'Capacidad Financiera'!$C$13:$X$62720,5,0)))","v":""},"",{"$f":"IF(OR(D572=\"\",E572=\"\",F572=\"\"),\"\",IF(AND(G572>0,G572<=CapFinanciera1),Puntajes!$D$12,IF(AND(G572>CapFinanciera1,G572<=CapFinanciera2),Puntajes!$D$13,IF(AND(G572>CapFinanciera2,G572<=CapFinanciera3),Puntajes!$D$14,IF(AND(G572>CapFinanciera3,G572<=CapFinanciera4),Puntajes!$D$15,IF(G572>CapFinanciera4,Puntajes!$D$16,0))))))","v":""}]
[null,null,{"$f":"+'Capacidad Financiera'!B576","v":""},{"$f":"IF(ISERROR(VLOOKUP(C573,'Capacidad Financiera'!$B$12:$X$62720,2,0)),\"\",VLOOKUP(C573,'Capacidad Financiera'!$B$12:$X$3580,2,0))","v":0},{"$f":"IF(OR(C573=\"\",D573=\"\"),\"\",IF(ISERROR(VLOOKUP(D573,'Capacidad Financiera'!$C$13:$X$62720,3,0)),\"\",VLOOKUP(D573,'Capacidad Financiera'!$C$13:$X$62720,3,0)))","v":""},{"$f":"IF(OR(C573=\"\",D573=\"\"),\"\",IF(ISERROR(VLOOKUP(D573,'Capacidad Financiera'!$C$13:$X$62720,5,0)),\"\",VLOOKUP(D573,'Capacidad Financiera'!$C$13:$X$62720,5,0)))","v":""},"",{"$f":"IF(OR(D573=\"\",E573=\"\",F573=\"\"),\"\",IF(AND(G573>0,G573<=CapFinanciera1),Puntajes!$D$12,IF(AND(G573>CapFinanciera1,G573<=CapFinanciera2),Puntajes!$D$13,IF(AND(G573>CapFinanciera2,G573<=CapFinanciera3),Puntajes!$D$14,IF(AND(G573>CapFinanciera3,G573<=CapFinanciera4),Puntajes!$D$15,IF(G573>CapFinanciera4,Puntajes!$D$16,0))))))","v":""}]
[null,null,{"$f":"+'Capacidad Financiera'!B577","v":""},{"$f":"IF(ISERROR(VLOOKUP(C574,'Capacidad Financiera'!$B$12:$X$62720,2,0)),\"\",VLOOKUP(C574,'Capacidad Financiera'!$B$12:$X$3580,2,0))","v":0},{"$f":"IF(OR(C574=\"\",D574=\"\"),\"\",IF(ISERROR(VLOOKUP(D574,'Capacidad Financiera'!$C$13:$X$62720,3,0)),\"\",VLOOKUP(D574,'Capacidad Financiera'!$C$13:$X$62720,3,0)))","v":""},{"$f":"IF(OR(C574=\"\",D574=\"\"),\"\",IF(ISERROR(VLOOKUP(D574,'Capacidad Financiera'!$C$13:$X$62720,5,0)),\"\",VLOOKUP(D574,'Capacidad Financiera'!$C$13:$X$62720,5,0)))","v":""},"",{"$f":"IF(OR(D574=\"\",E574=\"\",F574=\"\"),\"\",IF(AND(G574>0,G574<=CapFinanciera1),Puntajes!$D$12,IF(AND(G574>CapFinanciera1,G574<=CapFinanciera2),Puntajes!$D$13,IF(AND(G574>CapFinanciera2,G574<=CapFinanciera3),Puntajes!$D$14,IF(AND(G574>CapFinanciera3,G574<=CapFinanciera4),Puntajes!$D$15,IF(G574>CapFinanciera4,Puntajes!$D$16,0))))))","v":""}]
[null,null,{"$f":"+'Capacidad Financiera'!B578","v":""},{"$f":"IF(ISERROR(VLOOKUP(C575,'Capacidad Financiera'!$B$12:$X$62720,2,0)),\"\",VLOOKUP(C575,'Capacidad Financiera'!$B$12:$X$3580,2,0))","v":0},{"$f":"IF(OR(C575=\"\",D575=\"\"),\"\",IF(ISERROR(VLOOKUP(D575,'Capacidad Financiera'!$C$13:$X$62720,3,0)),\"\",VLOOKUP(D575,'Capacidad Financiera'!$C$13:$X$62720,3,0)))","v":""},{"$f":"IF(OR(C575=\"\",D575=\"\"),\"\",IF(ISERROR(VLOOKUP(D575,'Capacidad Financiera'!$C$13:$X$62720,5,0)),\"\",VLOOKUP(D575,'Capacidad Financiera'!$C$13:$X$62720,5,0)))","v":""},"",{"$f":"IF(OR(D575=\"\",E575=\"\",F575=\"\"),\"\",IF(AND(G575>0,G575<=CapFinanciera1),Puntajes!$D$12,IF(AND(G575>CapFinanciera1,G575<=CapFinanciera2),Puntajes!$D$13,IF(AND(G575>CapFinanciera2,G575<=CapFinanciera3),Puntajes!$D$14,IF(AND(G575>CapFinanciera3,G575<=CapFinanciera4),Puntajes!$D$15,IF(G575>CapFinanciera4,Puntajes!$D$16,0))))))","v":""}]
[null,null,{"$f":"+'Capacidad Financiera'!B579","v":""},{"$f":"IF(ISERROR(VLOOKUP(C576,'Capacidad Financiera'!$B$12:$X$62720,2,0)),\"\",VLOOKUP(C576,'Capacidad Financiera'!$B$12:$X$3580,2,0))","v":0},{"$f":"IF(OR(C576=\"\",D576=\"\"),\"\",IF(ISERROR(VLOOKUP(D576,'Capacidad Financiera'!$C$13:$X$62720,3,0)),\"\",VLOOKUP(D576,'Capacidad Financiera'!$C$13:$X$62720,3,0)))","v":""},{"$f":"IF(OR(C576=\"\",D576=\"\"),\"\",IF(ISERROR(VLOOKUP(D576,'Capacidad Financiera'!$C$13:$X$62720,5,0)),\"\",VLOOKUP(D576,'Capacidad Financiera'!$C$13:$X$62720,5,0)))","v":""},"",{"$f":"IF(OR(D576=\"\",E576=\"\",F576=\"\"),\"\",IF(AND(G576>0,G576<=CapFinanciera1),Puntajes!$D$12,IF(AND(G576>CapFinanciera1,G576<=CapFinanciera2),Puntajes!$D$13,IF(AND(G576>CapFinanciera2,G576<=CapFinanciera3),Puntajes!$D$14,IF(AND(G576>CapFinanciera3,G576<=CapFinanciera4),Puntajes!$D$15,IF(G576>CapFinanciera4,Puntajes!$D$16,0))))))","v":""}]
[null,null,{"$f":"+'Capacidad Financiera'!B580","v":""},{"$f":"IF(ISERROR(VLOOKUP(C577,'Capacidad Financiera'!$B$12:$X$62720,2,0)),\"\",VLOOKUP(C577,'Capacidad Financiera'!$B$12:$X$3580,2,0))","v":0},{"$f":"IF(OR(C577=\"\",D577=\"\"),\"\",IF(ISERROR(VLOOKUP(D577,'Capacidad Financiera'!$C$13:$X$62720,3,0)),\"\",VLOOKUP(D577,'Capacidad Financiera'!$C$13:$X$62720,3,0)))","v":""},{"$f":"IF(OR(C577=\"\",D577=\"\"),\"\",IF(ISERROR(VLOOKUP(D577,'Capacidad Financiera'!$C$13:$X$62720,5,0)),\"\",VLOOKUP(D577,'Capacidad Financiera'!$C$13:$X$62720,5,0)))","v":""},"",{"$f":"IF(OR(D577=\"\",E577=\"\",F577=\"\"),\"\",IF(AND(G577>0,G577<=CapFinanciera1),Puntajes!$D$12,IF(AND(G577>CapFinanciera1,G577<=CapFinanciera2),Puntajes!$D$13,IF(AND(G577>CapFinanciera2,G577<=CapFinanciera3),Puntajes!$D$14,IF(AND(G577>CapFinanciera3,G577<=CapFinanciera4),Puntajes!$D$15,IF(G577>CapFinanciera4,Puntajes!$D$16,0))))))","v":""}]
[null,null,{"$f":"+'Capacidad Financiera'!B581","v":""},{"$f":"IF(ISERROR(VLOOKUP(C578,'Capacidad Financiera'!$B$12:$X$62720,2,0)),\"\",VLOOKUP(C578,'Capacidad Financiera'!$B$12:$X$3580,2,0))","v":0},{"$f":"IF(OR(C578=\"\",D578=\"\"),\"\",IF(ISERROR(VLOOKUP(D578,'Capacidad Financiera'!$C$13:$X$62720,3,0)),\"\",VLOOKUP(D578,'Capacidad Financiera'!$C$13:$X$62720,3,0)))","v":""},{"$f":"IF(OR(C578=\"\",D578=\"\"),\"\",IF(ISERROR(VLOOKUP(D578,'Capacidad Financiera'!$C$13:$X$62720,5,0)),\"\",VLOOKUP(D578,'Capacidad Financiera'!$C$13:$X$62720,5,0)))","v":""},"",{"$f":"IF(OR(D578=\"\",E578=\"\",F578=\"\"),\"\",IF(AND(G578>0,G578<=CapFinanciera1),Puntajes!$D$12,IF(AND(G578>CapFinanciera1,G578<=CapFinanciera2),Puntajes!$D$13,IF(AND(G578>CapFinanciera2,G578<=CapFinanciera3),Puntajes!$D$14,IF(AND(G578>CapFinanciera3,G578<=CapFinanciera4),Puntajes!$D$15,IF(G578>CapFinanciera4,Puntajes!$D$16,0))))))","v":""}]
[null,null,{"$f":"+'Capacidad Financiera'!B582","v":""},{"$f":"IF(ISERROR(VLOOKUP(C579,'Capacidad Financiera'!$B$12:$X$62720,2,0)),\"\",VLOOKUP(C579,'Capacidad Financiera'!$B$12:$X$3580,2,0))","v":0},{"$f":"IF(OR(C579=\"\",D579=\"\"),\"\",IF(ISERROR(VLOOKUP(D579,'Capacidad Financiera'!$C$13:$X$62720,3,0)),\"\",VLOOKUP(D579,'Capacidad Financiera'!$C$13:$X$62720,3,0)))","v":""},{"$f":"IF(OR(C579=\"\",D579=\"\"),\"\",IF(ISERROR(VLOOKUP(D579,'Capacidad Financiera'!$C$13:$X$62720,5,0)),\"\",VLOOKUP(D579,'Capacidad Financiera'!$C$13:$X$62720,5,0)))","v":""},"",{"$f":"IF(OR(D579=\"\",E579=\"\",F579=\"\"),\"\",IF(AND(G579>0,G579<=CapFinanciera1),Puntajes!$D$12,IF(AND(G579>CapFinanciera1,G579<=CapFinanciera2),Puntajes!$D$13,IF(AND(G579>CapFinanciera2,G579<=CapFinanciera3),Puntajes!$D$14,IF(AND(G579>CapFinanciera3,G579<=CapFinanciera4),Puntajes!$D$15,IF(G579>CapFinanciera4,Puntajes!$D$16,0))))))","v":""}]
[null,null,{"$f":"+'Capacidad Financiera'!B583","v":""},{"$f":"IF(ISERROR(VLOOKUP(C580,'Capacidad Financiera'!$B$12:$X$62720,2,0)),\"\",VLOOKUP(C580,'Capacidad Financiera'!$B$12:$X$3580,2,0))","v":0},{"$f":"IF(OR(C580=\"\",D580=\"\"),\"\",IF(ISERROR(VLOOKUP(D580,'Capacidad Financiera'!$C$13:$X$62720,3,0)),\"\",VLOOKUP(D580,'Capacidad Financiera'!$C$13:$X$62720,3,0)))","v":""},{"$f":"IF(OR(C580=\"\",D580=\"\"),\"\",IF(ISERROR(VLOOKUP(D580,'Capacidad Financiera'!$C$13:$X$62720,5,0)),\"\",VLOOKUP(D580,'Capacidad Financiera'!$C$13:$X$62720,5,0)))","v":""},"",{"$f":"IF(OR(D580=\"\",E580=\"\",F580=\"\"),\"\",IF(AND(G580>0,G580<=CapFinanciera1),Puntajes!$D$12,IF(AND(G580>CapFinanciera1,G580<=CapFinanciera2),Puntajes!$D$13,IF(AND(G580>CapFinanciera2,G580<=CapFinanciera3),Puntajes!$D$14,IF(AND(G580>CapFinanciera3,G580<=CapFinanciera4),Puntajes!$D$15,IF(G580>CapFinanciera4,Puntajes!$D$16,0))))))","v":""}]
[null,null,53,{"$f":"IF(ISERROR(VLOOKUP(C581,'Capacidad Financiera'!$B$12:$X$62720,2,0)),\"\",VLOOKUP(C581,'Capacidad Financiera'!$B$12:$X$3580,2,0))","v":0},{"$f":"IF(C582=\"\",IF(C581<>\"\",IF(ISERROR(VLOOKUP(D581,'Capacidad Financiera'!$C$12:$H$22,3,0)),\"\",VLOOKUP(D581,'Capacidad Financiera'!$C$12:$H$22,3,0))),\"\")","v":""},{"$f":"IF(C582=\"\",IF(C581<>\"\",IF(ISERROR(VLOOKUP(D581,'Capacidad Financiera'!$C$12:$H$22,5,0)),\"\",VLOOKUP(D581,'Capacidad Financiera'!$C$12:$H$22,5,0))),\"\")","v":""},{"$f":"IF(OR(D581=\"\",E581=\"\",F581=\"\"),\"\",IF(OR(E581=0,F581=0),0,E581/F581))","v":""},{"$f":"IF(C582=\"\",IF(AND(E581=\"\",F581=\"\"),\"\",IF(AND(G581>0,G581<=CapFinanciera1),Puntajes!$D$12,IF(AND(G581>CapFinanciera1,G581<=CapFinanciera2),Puntajes!$D$13,IF(AND(G581>CapFinanciera2,G581<=CapFinanciera3),Puntajes!$D$14,IF(AND(G581>CapFinanciera3,G581<=CapFinanciera4),Puntajes!$D$15,IF(G581>CapFinanciera4,Puntajes!$D$16,0)))))),\"\")","v":""}]
[null,null,{"$f":"+'Capacidad Financiera'!B585","v":""},{"$f":"IF(ISERROR(VLOOKUP(C582,'Capacidad Financiera'!$B$12:$X$62720,2,0)),\"\",VLOOKUP(C582,'Capacidad Financiera'!$B$12:$X$3580,2,0))","v":0},{"$f":"IF(OR(C582=\"\",D582=\"\"),\"\",IF(ISERROR(VLOOKUP(D582,'Capacidad Financiera'!$C$13:$X$62720,3,0)),\"\",VLOOKUP(D582,'Capacidad Financiera'!$C$13:$X$62720,3,0)))","v":""},{"$f":"IF(OR(C582=\"\",D582=\"\"),\"\",IF(ISERROR(VLOOKUP(D582,'Capacidad Financiera'!$C$13:$X$62720,5,0)),\"\",VLOOKUP(D582,'Capacidad Financiera'!$C$13:$X$62720,5,0)))","v":""},{"$f":"IF(OR(D582=\"\",E582=\"\",F582=\"\"),\"\",IF(OR(E582=0,F582=0),0,E582/F582))","v":""},{"$f":"IF(OR(D582=\"\",E582=\"\",F582=\"\"),\"\",IF(AND(G582>0,G582<=CapFinanciera1),Puntajes!$D$12,IF(AND(G582>CapFinanciera1,G582<=CapFinanciera2),Puntajes!$D$13,IF(AND(G582>CapFinanciera2,G582<=CapFinanciera3),Puntajes!$D$14,IF(AND(G582>CapFinanciera3,G582<=CapFinanciera4),Puntajes!$D$15,IF(G582>CapFinanciera4,Puntajes!$D$16,0))))))","v":""}]
[null,null,{"$f":"+'Capacidad Financiera'!B586","v":""},{"$f":"IF(ISERROR(VLOOKUP(C583,'Capacidad Financiera'!$B$12:$X$62720,2,0)),\"\",VLOOKUP(C583,'Capacidad Financiera'!$B$12:$X$3580,2,0))","v":0},{"$f":"IF(OR(C583=\"\",D583=\"\"),\"\",IF(ISERROR(VLOOKUP(D583,'Capacidad Financiera'!$C$13:$X$62720,3,0)),\"\",VLOOKUP(D583,'Capacidad Financiera'!$C$13:$X$62720,3,0)))","v":""},{"$f":"IF(OR(C583=\"\",D583=\"\"),\"\",IF(ISERROR(VLOOKUP(D583,'Capacidad Financiera'!$C$13:$X$62720,5,0)),\"\",VLOOKUP(D583,'Capacidad Financiera'!$C$13:$X$62720,5,0)))","v":""},"",{"$f":"IF(OR(D583=\"\",E583=\"\",F583=\"\"),\"\",IF(AND(G583>0,G583<=CapFinanciera1),Puntajes!$D$12,IF(AND(G583>CapFinanciera1,G583<=CapFinanciera2),Puntajes!$D$13,IF(AND(G583>CapFinanciera2,G583<=CapFinanciera3),Puntajes!$D$14,IF(AND(G583>CapFinanciera3,G583<=CapFinanciera4),Puntajes!$D$15,IF(G583>CapFinanciera4,Puntajes!$D$16,0))))))","v":""}]
[null,null,{"$f":"+'Capacidad Financiera'!B587","v":""},{"$f":"IF(ISERROR(VLOOKUP(C584,'Capacidad Financiera'!$B$12:$X$62720,2,0)),\"\",VLOOKUP(C584,'Capacidad Financiera'!$B$12:$X$3580,2,0))","v":0},{"$f":"IF(OR(C584=\"\",D584=\"\"),\"\",IF(ISERROR(VLOOKUP(D584,'Capacidad Financiera'!$C$13:$X$62720,3,0)),\"\",VLOOKUP(D584,'Capacidad Financiera'!$C$13:$X$62720,3,0)))","v":""},{"$f":"IF(OR(C584=\"\",D584=\"\"),\"\",IF(ISERROR(VLOOKUP(D584,'Capacidad Financiera'!$C$13:$X$62720,5,0)),\"\",VLOOKUP(D584,'Capacidad Financiera'!$C$13:$X$62720,5,0)))","v":""},"",{"$f":"IF(OR(D584=\"\",E584=\"\",F584=\"\"),\"\",IF(AND(G584>0,G584<=CapFinanciera1),Puntajes!$D$12,IF(AND(G584>CapFinanciera1,G584<=CapFinanciera2),Puntajes!$D$13,IF(AND(G584>CapFinanciera2,G584<=CapFinanciera3),Puntajes!$D$14,IF(AND(G584>CapFinanciera3,G584<=CapFinanciera4),Puntajes!$D$15,IF(G584>CapFinanciera4,Puntajes!$D$16,0))))))","v":""}]
[null,null,{"$f":"+'Capacidad Financiera'!B588","v":""},{"$f":"IF(ISERROR(VLOOKUP(C585,'Capacidad Financiera'!$B$12:$X$62720,2,0)),\"\",VLOOKUP(C585,'Capacidad Financiera'!$B$12:$X$3580,2,0))","v":0},{"$f":"IF(OR(C585=\"\",D585=\"\"),\"\",IF(ISERROR(VLOOKUP(D585,'Capacidad Financiera'!$C$13:$X$62720,3,0)),\"\",VLOOKUP(D585,'Capacidad Financiera'!$C$13:$X$62720,3,0)))","v":""},{"$f":"IF(OR(C585=\"\",D585=\"\"),\"\",IF(ISERROR(VLOOKUP(D585,'Capacidad Financiera'!$C$13:$X$62720,5,0)),\"\",VLOOKUP(D585,'Capacidad Financiera'!$C$13:$X$62720,5,0)))","v":""},"",{"$f":"IF(OR(D585=\"\",E585=\"\",F585=\"\"),\"\",IF(AND(G585>0,G585<=CapFinanciera1),Puntajes!$D$12,IF(AND(G585>CapFinanciera1,G585<=CapFinanciera2),Puntajes!$D$13,IF(AND(G585>CapFinanciera2,G585<=CapFinanciera3),Puntajes!$D$14,IF(AND(G585>CapFinanciera3,G585<=CapFinanciera4),Puntajes!$D$15,IF(G585>CapFinanciera4,Puntajes!$D$16,0))))))","v":""}]
[null,null,{"$f":"+'Capacidad Financiera'!B589","v":""},{"$f":"IF(ISERROR(VLOOKUP(C586,'Capacidad Financiera'!$B$12:$X$62720,2,0)),\"\",VLOOKUP(C586,'Capacidad Financiera'!$B$12:$X$3580,2,0))","v":0},{"$f":"IF(OR(C586=\"\",D586=\"\"),\"\",IF(ISERROR(VLOOKUP(D586,'Capacidad Financiera'!$C$13:$X$62720,3,0)),\"\",VLOOKUP(D586,'Capacidad Financiera'!$C$13:$X$62720,3,0)))","v":""},{"$f":"IF(OR(C586=\"\",D586=\"\"),\"\",IF(ISERROR(VLOOKUP(D586,'Capacidad Financiera'!$C$13:$X$62720,5,0)),\"\",VLOOKUP(D586,'Capacidad Financiera'!$C$13:$X$62720,5,0)))","v":""},"",{"$f":"IF(OR(D586=\"\",E586=\"\",F586=\"\"),\"\",IF(AND(G586>0,G586<=CapFinanciera1),Puntajes!$D$12,IF(AND(G586>CapFinanciera1,G586<=CapFinanciera2),Puntajes!$D$13,IF(AND(G586>CapFinanciera2,G586<=CapFinanciera3),Puntajes!$D$14,IF(AND(G586>CapFinanciera3,G586<=CapFinanciera4),Puntajes!$D$15,IF(G586>CapFinanciera4,Puntajes!$D$16,0))))))","v":""}]
[null,null,{"$f":"+'Capacidad Financiera'!B590","v":""},{"$f":"IF(ISERROR(VLOOKUP(C587,'Capacidad Financiera'!$B$12:$X$62720,2,0)),\"\",VLOOKUP(C587,'Capacidad Financiera'!$B$12:$X$3580,2,0))","v":0},{"$f":"IF(OR(C587=\"\",D587=\"\"),\"\",IF(ISERROR(VLOOKUP(D587,'Capacidad Financiera'!$C$13:$X$62720,3,0)),\"\",VLOOKUP(D587,'Capacidad Financiera'!$C$13:$X$62720,3,0)))","v":""},{"$f":"IF(OR(C587=\"\",D587=\"\"),\"\",IF(ISERROR(VLOOKUP(D587,'Capacidad Financiera'!$C$13:$X$62720,5,0)),\"\",VLOOKUP(D587,'Capacidad Financiera'!$C$13:$X$62720,5,0)))","v":""},"",{"$f":"IF(OR(D587=\"\",E587=\"\",F587=\"\"),\"\",IF(AND(G587>0,G587<=CapFinanciera1),Puntajes!$D$12,IF(AND(G587>CapFinanciera1,G587<=CapFinanciera2),Puntajes!$D$13,IF(AND(G587>CapFinanciera2,G587<=CapFinanciera3),Puntajes!$D$14,IF(AND(G587>CapFinanciera3,G587<=CapFinanciera4),Puntajes!$D$15,IF(G587>CapFinanciera4,Puntajes!$D$16,0))))))","v":""}]
[null,null,{"$f":"+'Capacidad Financiera'!B591","v":""},{"$f":"IF(ISERROR(VLOOKUP(C588,'Capacidad Financiera'!$B$12:$X$62720,2,0)),\"\",VLOOKUP(C588,'Capacidad Financiera'!$B$12:$X$3580,2,0))","v":0},{"$f":"IF(OR(C588=\"\",D588=\"\"),\"\",IF(ISERROR(VLOOKUP(D588,'Capacidad Financiera'!$C$13:$X$62720,3,0)),\"\",VLOOKUP(D588,'Capacidad Financiera'!$C$13:$X$62720,3,0)))","v":""},{"$f":"IF(OR(C588=\"\",D588=\"\"),\"\",IF(ISERROR(VLOOKUP(D588,'Capacidad Financiera'!$C$13:$X$62720,5,0)),\"\",VLOOKUP(D588,'Capacidad Financiera'!$C$13:$X$62720,5,0)))","v":""},"",{"$f":"IF(OR(D588=\"\",E588=\"\",F588=\"\"),\"\",IF(AND(G588>0,G588<=CapFinanciera1),Puntajes!$D$12,IF(AND(G588>CapFinanciera1,G588<=CapFinanciera2),Puntajes!$D$13,IF(AND(G588>CapFinanciera2,G588<=CapFinanciera3),Puntajes!$D$14,IF(AND(G588>CapFinanciera3,G588<=CapFinanciera4),Puntajes!$D$15,IF(G588>CapFinanciera4,Puntajes!$D$16,0))))))","v":""}]
[null,null,{"$f":"+'Capacidad Financiera'!B592","v":""},{"$f":"IF(ISERROR(VLOOKUP(C589,'Capacidad Financiera'!$B$12:$X$62720,2,0)),\"\",VLOOKUP(C589,'Capacidad Financiera'!$B$12:$X$3580,2,0))","v":0},{"$f":"IF(OR(C589=\"\",D589=\"\"),\"\",IF(ISERROR(VLOOKUP(D589,'Capacidad Financiera'!$C$13:$X$62720,3,0)),\"\",VLOOKUP(D589,'Capacidad Financiera'!$C$13:$X$62720,3,0)))","v":""},{"$f":"IF(OR(C589=\"\",D589=\"\"),\"\",IF(ISERROR(VLOOKUP(D589,'Capacidad Financiera'!$C$13:$X$62720,5,0)),\"\",VLOOKUP(D589,'Capacidad Financiera'!$C$13:$X$62720,5,0)))","v":""},"",{"$f":"IF(OR(D589=\"\",E589=\"\",F589=\"\"),\"\",IF(AND(G589>0,G589<=CapFinanciera1),Puntajes!$D$12,IF(AND(G589>CapFinanciera1,G589<=CapFinanciera2),Puntajes!$D$13,IF(AND(G589>CapFinanciera2,G589<=CapFinanciera3),Puntajes!$D$14,IF(AND(G589>CapFinanciera3,G589<=CapFinanciera4),Puntajes!$D$15,IF(G589>CapFinanciera4,Puntajes!$D$16,0))))))","v":""}]
[null,null,{"$f":"+'Capacidad Financiera'!B593","v":""},{"$f":"IF(ISERROR(VLOOKUP(C590,'Capacidad Financiera'!$B$12:$X$62720,2,0)),\"\",VLOOKUP(C590,'Capacidad Financiera'!$B$12:$X$3580,2,0))","v":0},{"$f":"IF(OR(C590=\"\",D590=\"\"),\"\",IF(ISERROR(VLOOKUP(D590,'Capacidad Financiera'!$C$13:$X$62720,3,0)),\"\",VLOOKUP(D590,'Capacidad Financiera'!$C$13:$X$62720,3,0)))","v":""},{"$f":"IF(OR(C590=\"\",D590=\"\"),\"\",IF(ISERROR(VLOOKUP(D590,'Capacidad Financiera'!$C$13:$X$62720,5,0)),\"\",VLOOKUP(D590,'Capacidad Financiera'!$C$13:$X$62720,5,0)))","v":""},"",{"$f":"IF(OR(D590=\"\",E590=\"\",F590=\"\"),\"\",IF(AND(G590>0,G590<=CapFinanciera1),Puntajes!$D$12,IF(AND(G590>CapFinanciera1,G590<=CapFinanciera2),Puntajes!$D$13,IF(AND(G590>CapFinanciera2,G590<=CapFinanciera3),Puntajes!$D$14,IF(AND(G590>CapFinanciera3,G590<=CapFinanciera4),Puntajes!$D$15,IF(G590>CapFinanciera4,Puntajes!$D$16,0))))))","v":""}]
[null,null,{"$f":"+'Capacidad Financiera'!B594","v":""},{"$f":"IF(ISERROR(VLOOKUP(C591,'Capacidad Financiera'!$B$12:$X$62720,2,0)),\"\",VLOOKUP(C591,'Capacidad Financiera'!$B$12:$X$3580,2,0))","v":0},{"$f":"IF(OR(C591=\"\",D591=\"\"),\"\",IF(ISERROR(VLOOKUP(D591,'Capacidad Financiera'!$C$13:$X$62720,3,0)),\"\",VLOOKUP(D591,'Capacidad Financiera'!$C$13:$X$62720,3,0)))","v":""},{"$f":"IF(OR(C591=\"\",D591=\"\"),\"\",IF(ISERROR(VLOOKUP(D591,'Capacidad Financiera'!$C$13:$X$62720,5,0)),\"\",VLOOKUP(D591,'Capacidad Financiera'!$C$13:$X$62720,5,0)))","v":""},"",{"$f":"IF(OR(D591=\"\",E591=\"\",F591=\"\"),\"\",IF(AND(G591>0,G591<=CapFinanciera1),Puntajes!$D$12,IF(AND(G591>CapFinanciera1,G591<=CapFinanciera2),Puntajes!$D$13,IF(AND(G591>CapFinanciera2,G591<=CapFinanciera3),Puntajes!$D$14,IF(AND(G591>CapFinanciera3,G591<=CapFinanciera4),Puntajes!$D$15,IF(G591>CapFinanciera4,Puntajes!$D$16,0))))))","v":""}]
[null,null,54,{"$f":"IF(ISERROR(VLOOKUP(C592,'Capacidad Financiera'!$B$12:$X$62720,2,0)),\"\",VLOOKUP(C592,'Capacidad Financiera'!$B$12:$X$3580,2,0))","v":0},{"$f":"IF(C593=\"\",IF(C592<>\"\",IF(ISERROR(VLOOKUP(D592,'Capacidad Financiera'!$C$12:$H$22,3,0)),\"\",VLOOKUP(D592,'Capacidad Financiera'!$C$12:$H$22,3,0))),\"\")","v":""},{"$f":"IF(C593=\"\",IF(C592<>\"\",IF(ISERROR(VLOOKUP(D592,'Capacidad Financiera'!$C$12:$H$22,5,0)),\"\",VLOOKUP(D592,'Capacidad Financiera'!$C$12:$H$22,5,0))),\"\")","v":""},{"$f":"IF(OR(D592=\"\",E592=\"\",F592=\"\"),\"\",IF(OR(E592=0,F592=0),0,E592/F592))","v":""},{"$f":"IF(C593=\"\",IF(AND(E592=\"\",F592=\"\"),\"\",IF(AND(G592>0,G592<=CapFinanciera1),Puntajes!$D$12,IF(AND(G592>CapFinanciera1,G592<=CapFinanciera2),Puntajes!$D$13,IF(AND(G592>CapFinanciera2,G592<=CapFinanciera3),Puntajes!$D$14,IF(AND(G592>CapFinanciera3,G592<=CapFinanciera4),Puntajes!$D$15,IF(G592>CapFinanciera4,Puntajes!$D$16,0)))))),\"\")","v":""}]
[null,null,{"$f":"+'Capacidad Financiera'!B596","v":""},{"$f":"IF(ISERROR(VLOOKUP(C593,'Capacidad Financiera'!$B$12:$X$62720,2,0)),\"\",VLOOKUP(C593,'Capacidad Financiera'!$B$12:$X$3580,2,0))","v":0},{"$f":"IF(OR(C593=\"\",D593=\"\"),\"\",IF(ISERROR(VLOOKUP(D593,'Capacidad Financiera'!$C$13:$X$62720,3,0)),\"\",VLOOKUP(D593,'Capacidad Financiera'!$C$13:$X$62720,3,0)))","v":""},{"$f":"IF(OR(C593=\"\",D593=\"\"),\"\",IF(ISERROR(VLOOKUP(D593,'Capacidad Financiera'!$C$13:$X$62720,5,0)),\"\",VLOOKUP(D593,'Capacidad Financiera'!$C$13:$X$62720,5,0)))","v":""},{"$f":"IF(OR(D593=\"\",E593=\"\",F593=\"\"),\"\",IF(OR(E593=0,F593=0),0,E593/F593))","v":""},{"$f":"IF(OR(D593=\"\",E593=\"\",F593=\"\"),\"\",IF(AND(G593>0,G593<=CapFinanciera1),Puntajes!$D$12,IF(AND(G593>CapFinanciera1,G593<=CapFinanciera2),Puntajes!$D$13,IF(AND(G593>CapFinanciera2,G593<=CapFinanciera3),Puntajes!$D$14,IF(AND(G593>CapFinanciera3,G593<=CapFinanciera4),Puntajes!$D$15,IF(G593>CapFinanciera4,Puntajes!$D$16,0))))))","v":""}]
[null,null,{"$f":"+'Capacidad Financiera'!B597","v":""},{"$f":"IF(ISERROR(VLOOKUP(C594,'Capacidad Financiera'!$B$12:$X$62720,2,0)),\"\",VLOOKUP(C594,'Capacidad Financiera'!$B$12:$X$3580,2,0))","v":0},{"$f":"IF(OR(C594=\"\",D594=\"\"),\"\",IF(ISERROR(VLOOKUP(D594,'Capacidad Financiera'!$C$13:$X$62720,3,0)),\"\",VLOOKUP(D594,'Capacidad Financiera'!$C$13:$X$62720,3,0)))","v":""},{"$f":"IF(OR(C594=\"\",D594=\"\"),\"\",IF(ISERROR(VLOOKUP(D594,'Capacidad Financiera'!$C$13:$X$62720,5,0)),\"\",VLOOKUP(D594,'Capacidad Financiera'!$C$13:$X$62720,5,0)))","v":""},"",{"$f":"IF(OR(D594=\"\",E594=\"\",F594=\"\"),\"\",IF(AND(G594>0,G594<=CapFinanciera1),Puntajes!$D$12,IF(AND(G594>CapFinanciera1,G594<=CapFinanciera2),Puntajes!$D$13,IF(AND(G594>CapFinanciera2,G594<=CapFinanciera3),Puntajes!$D$14,IF(AND(G594>CapFinanciera3,G594<=CapFinanciera4),Puntajes!$D$15,IF(G594>CapFinanciera4,Puntajes!$D$16,0))))))","v":""}]
[null,null,{"$f":"+'Capacidad Financiera'!B598","v":""},{"$f":"IF(ISERROR(VLOOKUP(C595,'Capacidad Financiera'!$B$12:$X$62720,2,0)),\"\",VLOOKUP(C595,'Capacidad Financiera'!$B$12:$X$3580,2,0))","v":0},{"$f":"IF(OR(C595=\"\",D595=\"\"),\"\",IF(ISERROR(VLOOKUP(D595,'Capacidad Financiera'!$C$13:$X$62720,3,0)),\"\",VLOOKUP(D595,'Capacidad Financiera'!$C$13:$X$62720,3,0)))","v":""},{"$f":"IF(OR(C595=\"\",D595=\"\"),\"\",IF(ISERROR(VLOOKUP(D595,'Capacidad Financiera'!$C$13:$X$62720,5,0)),\"\",VLOOKUP(D595,'Capacidad Financiera'!$C$13:$X$62720,5,0)))","v":""},"",{"$f":"IF(OR(D595=\"\",E595=\"\",F595=\"\"),\"\",IF(AND(G595>0,G595<=CapFinanciera1),Puntajes!$D$12,IF(AND(G595>CapFinanciera1,G595<=CapFinanciera2),Puntajes!$D$13,IF(AND(G595>CapFinanciera2,G595<=CapFinanciera3),Puntajes!$D$14,IF(AND(G595>CapFinanciera3,G595<=CapFinanciera4),Puntajes!$D$15,IF(G595>CapFinanciera4,Puntajes!$D$16,0))))))","v":""}]
[null,null,{"$f":"+'Capacidad Financiera'!B599","v":""},{"$f":"IF(ISERROR(VLOOKUP(C596,'Capacidad Financiera'!$B$12:$X$62720,2,0)),\"\",VLOOKUP(C596,'Capacidad Financiera'!$B$12:$X$3580,2,0))","v":0},{"$f":"IF(OR(C596=\"\",D596=\"\"),\"\",IF(ISERROR(VLOOKUP(D596,'Capacidad Financiera'!$C$13:$X$62720,3,0)),\"\",VLOOKUP(D596,'Capacidad Financiera'!$C$13:$X$62720,3,0)))","v":""},{"$f":"IF(OR(C596=\"\",D596=\"\"),\"\",IF(ISERROR(VLOOKUP(D596,'Capacidad Financiera'!$C$13:$X$62720,5,0)),\"\",VLOOKUP(D596,'Capacidad Financiera'!$C$13:$X$62720,5,0)))","v":""},"",{"$f":"IF(OR(D596=\"\",E596=\"\",F596=\"\"),\"\",IF(AND(G596>0,G596<=CapFinanciera1),Puntajes!$D$12,IF(AND(G596>CapFinanciera1,G596<=CapFinanciera2),Puntajes!$D$13,IF(AND(G596>CapFinanciera2,G596<=CapFinanciera3),Puntajes!$D$14,IF(AND(G596>CapFinanciera3,G596<=CapFinanciera4),Puntajes!$D$15,IF(G596>CapFinanciera4,Puntajes!$D$16,0))))))","v":""}]
[null,null,{"$f":"+'Capacidad Financiera'!B600","v":""},{"$f":"IF(ISERROR(VLOOKUP(C597,'Capacidad Financiera'!$B$12:$X$62720,2,0)),\"\",VLOOKUP(C597,'Capacidad Financiera'!$B$12:$X$3580,2,0))","v":0},{"$f":"IF(OR(C597=\"\",D597=\"\"),\"\",IF(ISERROR(VLOOKUP(D597,'Capacidad Financiera'!$C$13:$X$62720,3,0)),\"\",VLOOKUP(D597,'Capacidad Financiera'!$C$13:$X$62720,3,0)))","v":""},{"$f":"IF(OR(C597=\"\",D597=\"\"),\"\",IF(ISERROR(VLOOKUP(D597,'Capacidad Financiera'!$C$13:$X$62720,5,0)),\"\",VLOOKUP(D597,'Capacidad Financiera'!$C$13:$X$62720,5,0)))","v":""},"",{"$f":"IF(OR(D597=\"\",E597=\"\",F597=\"\"),\"\",IF(AND(G597>0,G597<=CapFinanciera1),Puntajes!$D$12,IF(AND(G597>CapFinanciera1,G597<=CapFinanciera2),Puntajes!$D$13,IF(AND(G597>CapFinanciera2,G597<=CapFinanciera3),Puntajes!$D$14,IF(AND(G597>CapFinanciera3,G597<=CapFinanciera4),Puntajes!$D$15,IF(G597>CapFinanciera4,Puntajes!$D$16,0))))))","v":""}]
[null,null,{"$f":"+'Capacidad Financiera'!B601","v":""},{"$f":"IF(ISERROR(VLOOKUP(C598,'Capacidad Financiera'!$B$12:$X$62720,2,0)),\"\",VLOOKUP(C598,'Capacidad Financiera'!$B$12:$X$3580,2,0))","v":0},{"$f":"IF(OR(C598=\"\",D598=\"\"),\"\",IF(ISERROR(VLOOKUP(D598,'Capacidad Financiera'!$C$13:$X$62720,3,0)),\"\",VLOOKUP(D598,'Capacidad Financiera'!$C$13:$X$62720,3,0)))","v":""},{"$f":"IF(OR(C598=\"\",D598=\"\"),\"\",IF(ISERROR(VLOOKUP(D598,'Capacidad Financiera'!$C$13:$X$62720,5,0)),\"\",VLOOKUP(D598,'Capacidad Financiera'!$C$13:$X$62720,5,0)))","v":""},"",{"$f":"IF(OR(D598=\"\",E598=\"\",F598=\"\"),\"\",IF(AND(G598>0,G598<=CapFinanciera1),Puntajes!$D$12,IF(AND(G598>CapFinanciera1,G598<=CapFinanciera2),Puntajes!$D$13,IF(AND(G598>CapFinanciera2,G598<=CapFinanciera3),Puntajes!$D$14,IF(AND(G598>CapFinanciera3,G598<=CapFinanciera4),Puntajes!$D$15,IF(G598>CapFinanciera4,Puntajes!$D$16,0))))))","v":""}]
[null,null,{"$f":"+'Capacidad Financiera'!B602","v":""},{"$f":"IF(ISERROR(VLOOKUP(C599,'Capacidad Financiera'!$B$12:$X$62720,2,0)),\"\",VLOOKUP(C599,'Capacidad Financiera'!$B$12:$X$3580,2,0))","v":0},{"$f":"IF(OR(C599=\"\",D599=\"\"),\"\",IF(ISERROR(VLOOKUP(D599,'Capacidad Financiera'!$C$13:$X$62720,3,0)),\"\",VLOOKUP(D599,'Capacidad Financiera'!$C$13:$X$62720,3,0)))","v":""},{"$f":"IF(OR(C599=\"\",D599=\"\"),\"\",IF(ISERROR(VLOOKUP(D599,'Capacidad Financiera'!$C$13:$X$62720,5,0)),\"\",VLOOKUP(D599,'Capacidad Financiera'!$C$13:$X$62720,5,0)))","v":""},"",{"$f":"IF(OR(D599=\"\",E599=\"\",F599=\"\"),\"\",IF(AND(G599>0,G599<=CapFinanciera1),Puntajes!$D$12,IF(AND(G599>CapFinanciera1,G599<=CapFinanciera2),Puntajes!$D$13,IF(AND(G599>CapFinanciera2,G599<=CapFinanciera3),Puntajes!$D$14,IF(AND(G599>CapFinanciera3,G599<=CapFinanciera4),Puntajes!$D$15,IF(G599>CapFinanciera4,Puntajes!$D$16,0))))))","v":""}]
[null,null,{"$f":"+'Capacidad Financiera'!B603","v":""},{"$f":"IF(ISERROR(VLOOKUP(C600,'Capacidad Financiera'!$B$12:$X$62720,2,0)),\"\",VLOOKUP(C600,'Capacidad Financiera'!$B$12:$X$3580,2,0))","v":0},{"$f":"IF(OR(C600=\"\",D600=\"\"),\"\",IF(ISERROR(VLOOKUP(D600,'Capacidad Financiera'!$C$13:$X$62720,3,0)),\"\",VLOOKUP(D600,'Capacidad Financiera'!$C$13:$X$62720,3,0)))","v":""},{"$f":"IF(OR(C600=\"\",D600=\"\"),\"\",IF(ISERROR(VLOOKUP(D600,'Capacidad Financiera'!$C$13:$X$62720,5,0)),\"\",VLOOKUP(D600,'Capacidad Financiera'!$C$13:$X$62720,5,0)))","v":""},"",{"$f":"IF(OR(D600=\"\",E600=\"\",F600=\"\"),\"\",IF(AND(G600>0,G600<=CapFinanciera1),Puntajes!$D$12,IF(AND(G600>CapFinanciera1,G600<=CapFinanciera2),Puntajes!$D$13,IF(AND(G600>CapFinanciera2,G600<=CapFinanciera3),Puntajes!$D$14,IF(AND(G600>CapFinanciera3,G600<=CapFinanciera4),Puntajes!$D$15,IF(G600>CapFinanciera4,Puntajes!$D$16,0))))))","v":""}]
[null,null,{"$f":"+'Capacidad Financiera'!B604","v":""},{"$f":"IF(ISERROR(VLOOKUP(C601,'Capacidad Financiera'!$B$12:$X$62720,2,0)),\"\",VLOOKUP(C601,'Capacidad Financiera'!$B$12:$X$3580,2,0))","v":0},{"$f":"IF(OR(C601=\"\",D601=\"\"),\"\",IF(ISERROR(VLOOKUP(D601,'Capacidad Financiera'!$C$13:$X$62720,3,0)),\"\",VLOOKUP(D601,'Capacidad Financiera'!$C$13:$X$62720,3,0)))","v":""},{"$f":"IF(OR(C601=\"\",D601=\"\"),\"\",IF(ISERROR(VLOOKUP(D601,'Capacidad Financiera'!$C$13:$X$62720,5,0)),\"\",VLOOKUP(D601,'Capacidad Financiera'!$C$13:$X$62720,5,0)))","v":""},"",{"$f":"IF(OR(D601=\"\",E601=\"\",F601=\"\"),\"\",IF(AND(G601>0,G601<=CapFinanciera1),Puntajes!$D$12,IF(AND(G601>CapFinanciera1,G601<=CapFinanciera2),Puntajes!$D$13,IF(AND(G601>CapFinanciera2,G601<=CapFinanciera3),Puntajes!$D$14,IF(AND(G601>CapFinanciera3,G601<=CapFinanciera4),Puntajes!$D$15,IF(G601>CapFinanciera4,Puntajes!$D$16,0))))))","v":""}]
[null,null,{"$f":"+'Capacidad Financiera'!B605","v":""},{"$f":"IF(ISERROR(VLOOKUP(C602,'Capacidad Financiera'!$B$12:$X$62720,2,0)),\"\",VLOOKUP(C602,'Capacidad Financiera'!$B$12:$X$3580,2,0))","v":0},{"$f":"IF(OR(C602=\"\",D602=\"\"),\"\",IF(ISERROR(VLOOKUP(D602,'Capacidad Financiera'!$C$13:$X$62720,3,0)),\"\",VLOOKUP(D602,'Capacidad Financiera'!$C$13:$X$62720,3,0)))","v":""},{"$f":"IF(OR(C602=\"\",D602=\"\"),\"\",IF(ISERROR(VLOOKUP(D602,'Capacidad Financiera'!$C$13:$X$62720,5,0)),\"\",VLOOKUP(D602,'Capacidad Financiera'!$C$13:$X$62720,5,0)))","v":""},"",{"$f":"IF(OR(D602=\"\",E602=\"\",F602=\"\"),\"\",IF(AND(G602>0,G602<=CapFinanciera1),Puntajes!$D$12,IF(AND(G602>CapFinanciera1,G602<=CapFinanciera2),Puntajes!$D$13,IF(AND(G602>CapFinanciera2,G602<=CapFinanciera3),Puntajes!$D$14,IF(AND(G602>CapFinanciera3,G602<=CapFinanciera4),Puntajes!$D$15,IF(G602>CapFinanciera4,Puntajes!$D$16,0))))))","v":""}]
[null,null,55,{"$f":"IF(ISERROR(VLOOKUP(C603,'Capacidad Financiera'!$B$12:$X$62720,2,0)),\"\",VLOOKUP(C603,'Capacidad Financiera'!$B$12:$X$3580,2,0))","v":0},{"$f":"IF(C604=\"\",IF(C603<>\"\",IF(ISERROR(VLOOKUP(D603,'Capacidad Financiera'!$C$12:$H$22,3,0)),\"\",VLOOKUP(D603,'Capacidad Financiera'!$C$12:$H$22,3,0))),\"\")","v":""},{"$f":"IF(C604=\"\",IF(C603<>\"\",IF(ISERROR(VLOOKUP(D603,'Capacidad Financiera'!$C$12:$H$22,5,0)),\"\",VLOOKUP(D603,'Capacidad Financiera'!$C$12:$H$22,5,0))),\"\")","v":""},{"$f":"IF(OR(D603=\"\",E603=\"\",F603=\"\"),\"\",IF(OR(E603=0,F603=0),0,E603/F603))","v":""},{"$f":"IF(C604=\"\",IF(AND(E603=\"\",F603=\"\"),\"\",IF(AND(G603>0,G603<=CapFinanciera1),Puntajes!$D$12,IF(AND(G603>CapFinanciera1,G603<=CapFinanciera2),Puntajes!$D$13,IF(AND(G603>CapFinanciera2,G603<=CapFinanciera3),Puntajes!$D$14,IF(AND(G603>CapFinanciera3,G603<=CapFinanciera4),Puntajes!$D$15,IF(G603>CapFinanciera4,Puntajes!$D$16,0)))))),\"\")","v":""}]
[null,null,{"$f":"+'Capacidad Financiera'!B607","v":""},{"$f":"IF(ISERROR(VLOOKUP(C604,'Capacidad Financiera'!$B$12:$X$62720,2,0)),\"\",VLOOKUP(C604,'Capacidad Financiera'!$B$12:$X$3580,2,0))","v":0},{"$f":"IF(OR(C604=\"\",D604=\"\"),\"\",IF(ISERROR(VLOOKUP(D604,'Capacidad Financiera'!$C$13:$X$62720,3,0)),\"\",VLOOKUP(D604,'Capacidad Financiera'!$C$13:$X$62720,3,0)))","v":""},{"$f":"IF(OR(C604=\"\",D604=\"\"),\"\",IF(ISERROR(VLOOKUP(D604,'Capacidad Financiera'!$C$13:$X$62720,5,0)),\"\",VLOOKUP(D604,'Capacidad Financiera'!$C$13:$X$62720,5,0)))","v":""},{"$f":"IF(OR(D604=\"\",E604=\"\",F604=\"\"),\"\",IF(OR(E604=0,F604=0),0,E604/F604))","v":""},{"$f":"IF(OR(D604=\"\",E604=\"\",F604=\"\"),\"\",IF(AND(G604>0,G604<=CapFinanciera1),Puntajes!$D$12,IF(AND(G604>CapFinanciera1,G604<=CapFinanciera2),Puntajes!$D$13,IF(AND(G604>CapFinanciera2,G604<=CapFinanciera3),Puntajes!$D$14,IF(AND(G604>CapFinanciera3,G604<=CapFinanciera4),Puntajes!$D$15,IF(G604>CapFinanciera4,Puntajes!$D$16,0))))))","v":""}]
[null,null,{"$f":"+'Capacidad Financiera'!B608","v":""},{"$f":"IF(ISERROR(VLOOKUP(C605,'Capacidad Financiera'!$B$12:$X$62720,2,0)),\"\",VLOOKUP(C605,'Capacidad Financiera'!$B$12:$X$3580,2,0))","v":0},{"$f":"IF(OR(C605=\"\",D605=\"\"),\"\",IF(ISERROR(VLOOKUP(D605,'Capacidad Financiera'!$C$13:$X$62720,3,0)),\"\",VLOOKUP(D605,'Capacidad Financiera'!$C$13:$X$62720,3,0)))","v":""},{"$f":"IF(OR(C605=\"\",D605=\"\"),\"\",IF(ISERROR(VLOOKUP(D605,'Capacidad Financiera'!$C$13:$X$62720,5,0)),\"\",VLOOKUP(D605,'Capacidad Financiera'!$C$13:$X$62720,5,0)))","v":""},"",{"$f":"IF(OR(D605=\"\",E605=\"\",F605=\"\"),\"\",IF(AND(G605>0,G605<=CapFinanciera1),Puntajes!$D$12,IF(AND(G605>CapFinanciera1,G605<=CapFinanciera2),Puntajes!$D$13,IF(AND(G605>CapFinanciera2,G605<=CapFinanciera3),Puntajes!$D$14,IF(AND(G605>CapFinanciera3,G605<=CapFinanciera4),Puntajes!$D$15,IF(G605>CapFinanciera4,Puntajes!$D$16,0))))))","v":""}]
[null,null,{"$f":"+'Capacidad Financiera'!B609","v":""},{"$f":"IF(ISERROR(VLOOKUP(C606,'Capacidad Financiera'!$B$12:$X$62720,2,0)),\"\",VLOOKUP(C606,'Capacidad Financiera'!$B$12:$X$3580,2,0))","v":0},{"$f":"IF(OR(C606=\"\",D606=\"\"),\"\",IF(ISERROR(VLOOKUP(D606,'Capacidad Financiera'!$C$13:$X$62720,3,0)),\"\",VLOOKUP(D606,'Capacidad Financiera'!$C$13:$X$62720,3,0)))","v":""},{"$f":"IF(OR(C606=\"\",D606=\"\"),\"\",IF(ISERROR(VLOOKUP(D606,'Capacidad Financiera'!$C$13:$X$62720,5,0)),\"\",VLOOKUP(D606,'Capacidad Financiera'!$C$13:$X$62720,5,0)))","v":""},"",{"$f":"IF(OR(D606=\"\",E606=\"\",F606=\"\"),\"\",IF(AND(G606>0,G606<=CapFinanciera1),Puntajes!$D$12,IF(AND(G606>CapFinanciera1,G606<=CapFinanciera2),Puntajes!$D$13,IF(AND(G606>CapFinanciera2,G606<=CapFinanciera3),Puntajes!$D$14,IF(AND(G606>CapFinanciera3,G606<=CapFinanciera4),Puntajes!$D$15,IF(G606>CapFinanciera4,Puntajes!$D$16,0))))))","v":""}]
[null,null,{"$f":"+'Capacidad Financiera'!B610","v":""},{"$f":"IF(ISERROR(VLOOKUP(C607,'Capacidad Financiera'!$B$12:$X$62720,2,0)),\"\",VLOOKUP(C607,'Capacidad Financiera'!$B$12:$X$3580,2,0))","v":0},{"$f":"IF(OR(C607=\"\",D607=\"\"),\"\",IF(ISERROR(VLOOKUP(D607,'Capacidad Financiera'!$C$13:$X$62720,3,0)),\"\",VLOOKUP(D607,'Capacidad Financiera'!$C$13:$X$62720,3,0)))","v":""},{"$f":"IF(OR(C607=\"\",D607=\"\"),\"\",IF(ISERROR(VLOOKUP(D607,'Capacidad Financiera'!$C$13:$X$62720,5,0)),\"\",VLOOKUP(D607,'Capacidad Financiera'!$C$13:$X$62720,5,0)))","v":""},"",{"$f":"IF(OR(D607=\"\",E607=\"\",F607=\"\"),\"\",IF(AND(G607>0,G607<=CapFinanciera1),Puntajes!$D$12,IF(AND(G607>CapFinanciera1,G607<=CapFinanciera2),Puntajes!$D$13,IF(AND(G607>CapFinanciera2,G607<=CapFinanciera3),Puntajes!$D$14,IF(AND(G607>CapFinanciera3,G607<=CapFinanciera4),Puntajes!$D$15,IF(G607>CapFinanciera4,Puntajes!$D$16,0))))))","v":""}]
[null,null,{"$f":"+'Capacidad Financiera'!B611","v":""},{"$f":"IF(ISERROR(VLOOKUP(C608,'Capacidad Financiera'!$B$12:$X$62720,2,0)),\"\",VLOOKUP(C608,'Capacidad Financiera'!$B$12:$X$3580,2,0))","v":0},{"$f":"IF(OR(C608=\"\",D608=\"\"),\"\",IF(ISERROR(VLOOKUP(D608,'Capacidad Financiera'!$C$13:$X$62720,3,0)),\"\",VLOOKUP(D608,'Capacidad Financiera'!$C$13:$X$62720,3,0)))","v":""},{"$f":"IF(OR(C608=\"\",D608=\"\"),\"\",IF(ISERROR(VLOOKUP(D608,'Capacidad Financiera'!$C$13:$X$62720,5,0)),\"\",VLOOKUP(D608,'Capacidad Financiera'!$C$13:$X$62720,5,0)))","v":""},"",{"$f":"IF(OR(D608=\"\",E608=\"\",F608=\"\"),\"\",IF(AND(G608>0,G608<=CapFinanciera1),Puntajes!$D$12,IF(AND(G608>CapFinanciera1,G608<=CapFinanciera2),Puntajes!$D$13,IF(AND(G608>CapFinanciera2,G608<=CapFinanciera3),Puntajes!$D$14,IF(AND(G608>CapFinanciera3,G608<=CapFinanciera4),Puntajes!$D$15,IF(G608>CapFinanciera4,Puntajes!$D$16,0))))))","v":""}]
[null,null,{"$f":"+'Capacidad Financiera'!B612","v":""},{"$f":"IF(ISERROR(VLOOKUP(C609,'Capacidad Financiera'!$B$12:$X$62720,2,0)),\"\",VLOOKUP(C609,'Capacidad Financiera'!$B$12:$X$3580,2,0))","v":0},{"$f":"IF(OR(C609=\"\",D609=\"\"),\"\",IF(ISERROR(VLOOKUP(D609,'Capacidad Financiera'!$C$13:$X$62720,3,0)),\"\",VLOOKUP(D609,'Capacidad Financiera'!$C$13:$X$62720,3,0)))","v":""},{"$f":"IF(OR(C609=\"\",D609=\"\"),\"\",IF(ISERROR(VLOOKUP(D609,'Capacidad Financiera'!$C$13:$X$62720,5,0)),\"\",VLOOKUP(D609,'Capacidad Financiera'!$C$13:$X$62720,5,0)))","v":""},"",{"$f":"IF(OR(D609=\"\",E609=\"\",F609=\"\"),\"\",IF(AND(G609>0,G609<=CapFinanciera1),Puntajes!$D$12,IF(AND(G609>CapFinanciera1,G609<=CapFinanciera2),Puntajes!$D$13,IF(AND(G609>CapFinanciera2,G609<=CapFinanciera3),Puntajes!$D$14,IF(AND(G609>CapFinanciera3,G609<=CapFinanciera4),Puntajes!$D$15,IF(G609>CapFinanciera4,Puntajes!$D$16,0))))))","v":""}]
[null,null,{"$f":"+'Capacidad Financiera'!B613","v":""},{"$f":"IF(ISERROR(VLOOKUP(C610,'Capacidad Financiera'!$B$12:$X$62720,2,0)),\"\",VLOOKUP(C610,'Capacidad Financiera'!$B$12:$X$3580,2,0))","v":0},{"$f":"IF(OR(C610=\"\",D610=\"\"),\"\",IF(ISERROR(VLOOKUP(D610,'Capacidad Financiera'!$C$13:$X$62720,3,0)),\"\",VLOOKUP(D610,'Capacidad Financiera'!$C$13:$X$62720,3,0)))","v":""},{"$f":"IF(OR(C610=\"\",D610=\"\"),\"\",IF(ISERROR(VLOOKUP(D610,'Capacidad Financiera'!$C$13:$X$62720,5,0)),\"\",VLOOKUP(D610,'Capacidad Financiera'!$C$13:$X$62720,5,0)))","v":""},"",{"$f":"IF(OR(D610=\"\",E610=\"\",F610=\"\"),\"\",IF(AND(G610>0,G610<=CapFinanciera1),Puntajes!$D$12,IF(AND(G610>CapFinanciera1,G610<=CapFinanciera2),Puntajes!$D$13,IF(AND(G610>CapFinanciera2,G610<=CapFinanciera3),Puntajes!$D$14,IF(AND(G610>CapFinanciera3,G610<=CapFinanciera4),Puntajes!$D$15,IF(G610>CapFinanciera4,Puntajes!$D$16,0))))))","v":""}]
[null,null,{"$f":"+'Capacidad Financiera'!B614","v":""},{"$f":"IF(ISERROR(VLOOKUP(C611,'Capacidad Financiera'!$B$12:$X$62720,2,0)),\"\",VLOOKUP(C611,'Capacidad Financiera'!$B$12:$X$3580,2,0))","v":0},{"$f":"IF(OR(C611=\"\",D611=\"\"),\"\",IF(ISERROR(VLOOKUP(D611,'Capacidad Financiera'!$C$13:$X$62720,3,0)),\"\",VLOOKUP(D611,'Capacidad Financiera'!$C$13:$X$62720,3,0)))","v":""},{"$f":"IF(OR(C611=\"\",D611=\"\"),\"\",IF(ISERROR(VLOOKUP(D611,'Capacidad Financiera'!$C$13:$X$62720,5,0)),\"\",VLOOKUP(D611,'Capacidad Financiera'!$C$13:$X$62720,5,0)))","v":""},"",{"$f":"IF(OR(D611=\"\",E611=\"\",F611=\"\"),\"\",IF(AND(G611>0,G611<=CapFinanciera1),Puntajes!$D$12,IF(AND(G611>CapFinanciera1,G611<=CapFinanciera2),Puntajes!$D$13,IF(AND(G611>CapFinanciera2,G611<=CapFinanciera3),Puntajes!$D$14,IF(AND(G611>CapFinanciera3,G611<=CapFinanciera4),Puntajes!$D$15,IF(G611>CapFinanciera4,Puntajes!$D$16,0))))))","v":""}]
[null,null,{"$f":"+'Capacidad Financiera'!B615","v":""},{"$f":"IF(ISERROR(VLOOKUP(C612,'Capacidad Financiera'!$B$12:$X$62720,2,0)),\"\",VLOOKUP(C612,'Capacidad Financiera'!$B$12:$X$3580,2,0))","v":0},{"$f":"IF(OR(C612=\"\",D612=\"\"),\"\",IF(ISERROR(VLOOKUP(D612,'Capacidad Financiera'!$C$13:$X$62720,3,0)),\"\",VLOOKUP(D612,'Capacidad Financiera'!$C$13:$X$62720,3,0)))","v":""},{"$f":"IF(OR(C612=\"\",D612=\"\"),\"\",IF(ISERROR(VLOOKUP(D612,'Capacidad Financiera'!$C$13:$X$62720,5,0)),\"\",VLOOKUP(D612,'Capacidad Financiera'!$C$13:$X$62720,5,0)))","v":""},"",{"$f":"IF(OR(D612=\"\",E612=\"\",F612=\"\"),\"\",IF(AND(G612>0,G612<=CapFinanciera1),Puntajes!$D$12,IF(AND(G612>CapFinanciera1,G612<=CapFinanciera2),Puntajes!$D$13,IF(AND(G612>CapFinanciera2,G612<=CapFinanciera3),Puntajes!$D$14,IF(AND(G612>CapFinanciera3,G612<=CapFinanciera4),Puntajes!$D$15,IF(G612>CapFinanciera4,Puntajes!$D$16,0))))))","v":""}]
[null,null,{"$f":"+'Capacidad Financiera'!B616","v":""},{"$f":"IF(ISERROR(VLOOKUP(C613,'Capacidad Financiera'!$B$12:$X$62720,2,0)),\"\",VLOOKUP(C613,'Capacidad Financiera'!$B$12:$X$3580,2,0))","v":0},{"$f":"IF(OR(C613=\"\",D613=\"\"),\"\",IF(ISERROR(VLOOKUP(D613,'Capacidad Financiera'!$C$13:$X$62720,3,0)),\"\",VLOOKUP(D613,'Capacidad Financiera'!$C$13:$X$62720,3,0)))","v":""},{"$f":"IF(OR(C613=\"\",D613=\"\"),\"\",IF(ISERROR(VLOOKUP(D613,'Capacidad Financiera'!$C$13:$X$62720,5,0)),\"\",VLOOKUP(D613,'Capacidad Financiera'!$C$13:$X$62720,5,0)))","v":""},"",{"$f":"IF(OR(D613=\"\",E613=\"\",F613=\"\"),\"\",IF(AND(G613>0,G613<=CapFinanciera1),Puntajes!$D$12,IF(AND(G613>CapFinanciera1,G613<=CapFinanciera2),Puntajes!$D$13,IF(AND(G613>CapFinanciera2,G613<=CapFinanciera3),Puntajes!$D$14,IF(AND(G613>CapFinanciera3,G613<=CapFinanciera4),Puntajes!$D$15,IF(G613>CapFinanciera4,Puntajes!$D$16,0))))))","v":""}]
[null,null,56,{"$f":"IF(ISERROR(VLOOKUP(C614,'Capacidad Financiera'!$B$12:$X$62720,2,0)),\"\",VLOOKUP(C614,'Capacidad Financiera'!$B$12:$X$3580,2,0))","v":0},{"$f":"IF(C615=\"\",IF(C614<>\"\",IF(ISERROR(VLOOKUP(D614,'Capacidad Financiera'!$C$12:$H$22,3,0)),\"\",VLOOKUP(D614,'Capacidad Financiera'!$C$12:$H$22,3,0))),\"\")","v":""},{"$f":"IF(C615=\"\",IF(C614<>\"\",IF(ISERROR(VLOOKUP(D614,'Capacidad Financiera'!$C$12:$H$22,5,0)),\"\",VLOOKUP(D614,'Capacidad Financiera'!$C$12:$H$22,5,0))),\"\")","v":""},{"$f":"IF(OR(D614=\"\",E614=\"\",F614=\"\"),\"\",IF(OR(E614=0,F614=0),0,E614/F614))","v":""},{"$f":"IF(C615=\"\",IF(AND(E614=\"\",F614=\"\"),\"\",IF(AND(G614>0,G614<=CapFinanciera1),Puntajes!$D$12,IF(AND(G614>CapFinanciera1,G614<=CapFinanciera2),Puntajes!$D$13,IF(AND(G614>CapFinanciera2,G614<=CapFinanciera3),Puntajes!$D$14,IF(AND(G614>CapFinanciera3,G614<=CapFinanciera4),Puntajes!$D$15,IF(G614>CapFinanciera4,Puntajes!$D$16,0)))))),\"\")","v":""}]
[null,null,{"$f":"+'Capacidad Financiera'!B618","v":""},{"$f":"IF(ISERROR(VLOOKUP(C615,'Capacidad Financiera'!$B$12:$X$62720,2,0)),\"\",VLOOKUP(C615,'Capacidad Financiera'!$B$12:$X$3580,2,0))","v":0},{"$f":"IF(OR(C615=\"\",D615=\"\"),\"\",IF(ISERROR(VLOOKUP(D615,'Capacidad Financiera'!$C$13:$X$62720,3,0)),\"\",VLOOKUP(D615,'Capacidad Financiera'!$C$13:$X$62720,3,0)))","v":""},{"$f":"IF(OR(C615=\"\",D615=\"\"),\"\",IF(ISERROR(VLOOKUP(D615,'Capacidad Financiera'!$C$13:$X$62720,5,0)),\"\",VLOOKUP(D615,'Capacidad Financiera'!$C$13:$X$62720,5,0)))","v":""},{"$f":"IF(OR(D615=\"\",E615=\"\",F615=\"\"),\"\",IF(OR(E615=0,F615=0),0,E615/F615))","v":""},{"$f":"IF(OR(D615=\"\",E615=\"\",F615=\"\"),\"\",IF(AND(G615>0,G615<=CapFinanciera1),Puntajes!$D$12,IF(AND(G615>CapFinanciera1,G615<=CapFinanciera2),Puntajes!$D$13,IF(AND(G615>CapFinanciera2,G615<=CapFinanciera3),Puntajes!$D$14,IF(AND(G615>CapFinanciera3,G615<=CapFinanciera4),Puntajes!$D$15,IF(G615>CapFinanciera4,Puntajes!$D$16,0))))))","v":""}]
[null,null,{"$f":"+'Capacidad Financiera'!B619","v":""},{"$f":"IF(ISERROR(VLOOKUP(C616,'Capacidad Financiera'!$B$12:$X$62720,2,0)),\"\",VLOOKUP(C616,'Capacidad Financiera'!$B$12:$X$3580,2,0))","v":0},{"$f":"IF(OR(C616=\"\",D616=\"\"),\"\",IF(ISERROR(VLOOKUP(D616,'Capacidad Financiera'!$C$13:$X$62720,3,0)),\"\",VLOOKUP(D616,'Capacidad Financiera'!$C$13:$X$62720,3,0)))","v":""},{"$f":"IF(OR(C616=\"\",D616=\"\"),\"\",IF(ISERROR(VLOOKUP(D616,'Capacidad Financiera'!$C$13:$X$62720,5,0)),\"\",VLOOKUP(D616,'Capacidad Financiera'!$C$13:$X$62720,5,0)))","v":""},"",{"$f":"IF(OR(D616=\"\",E616=\"\",F616=\"\"),\"\",IF(AND(G616>0,G616<=CapFinanciera1),Puntajes!$D$12,IF(AND(G616>CapFinanciera1,G616<=CapFinanciera2),Puntajes!$D$13,IF(AND(G616>CapFinanciera2,G616<=CapFinanciera3),Puntajes!$D$14,IF(AND(G616>CapFinanciera3,G616<=CapFinanciera4),Puntajes!$D$15,IF(G616>CapFinanciera4,Puntajes!$D$16,0))))))","v":""}]
[null,null,{"$f":"+'Capacidad Financiera'!B620","v":""},{"$f":"IF(ISERROR(VLOOKUP(C617,'Capacidad Financiera'!$B$12:$X$62720,2,0)),\"\",VLOOKUP(C617,'Capacidad Financiera'!$B$12:$X$3580,2,0))","v":0},{"$f":"IF(OR(C617=\"\",D617=\"\"),\"\",IF(ISERROR(VLOOKUP(D617,'Capacidad Financiera'!$C$13:$X$62720,3,0)),\"\",VLOOKUP(D617,'Capacidad Financiera'!$C$13:$X$62720,3,0)))","v":""},{"$f":"IF(OR(C617=\"\",D617=\"\"),\"\",IF(ISERROR(VLOOKUP(D617,'Capacidad Financiera'!$C$13:$X$62720,5,0)),\"\",VLOOKUP(D617,'Capacidad Financiera'!$C$13:$X$62720,5,0)))","v":""},"",{"$f":"IF(OR(D617=\"\",E617=\"\",F617=\"\"),\"\",IF(AND(G617>0,G617<=CapFinanciera1),Puntajes!$D$12,IF(AND(G617>CapFinanciera1,G617<=CapFinanciera2),Puntajes!$D$13,IF(AND(G617>CapFinanciera2,G617<=CapFinanciera3),Puntajes!$D$14,IF(AND(G617>CapFinanciera3,G617<=CapFinanciera4),Puntajes!$D$15,IF(G617>CapFinanciera4,Puntajes!$D$16,0))))))","v":""}]
[null,null,{"$f":"+'Capacidad Financiera'!B621","v":""},{"$f":"IF(ISERROR(VLOOKUP(C618,'Capacidad Financiera'!$B$12:$X$62720,2,0)),\"\",VLOOKUP(C618,'Capacidad Financiera'!$B$12:$X$3580,2,0))","v":0},{"$f":"IF(OR(C618=\"\",D618=\"\"),\"\",IF(ISERROR(VLOOKUP(D618,'Capacidad Financiera'!$C$13:$X$62720,3,0)),\"\",VLOOKUP(D618,'Capacidad Financiera'!$C$13:$X$62720,3,0)))","v":""},{"$f":"IF(OR(C618=\"\",D618=\"\"),\"\",IF(ISERROR(VLOOKUP(D618,'Capacidad Financiera'!$C$13:$X$62720,5,0)),\"\",VLOOKUP(D618,'Capacidad Financiera'!$C$13:$X$62720,5,0)))","v":""},"",{"$f":"IF(OR(D618=\"\",E618=\"\",F618=\"\"),\"\",IF(AND(G618>0,G618<=CapFinanciera1),Puntajes!$D$12,IF(AND(G618>CapFinanciera1,G618<=CapFinanciera2),Puntajes!$D$13,IF(AND(G618>CapFinanciera2,G618<=CapFinanciera3),Puntajes!$D$14,IF(AND(G618>CapFinanciera3,G618<=CapFinanciera4),Puntajes!$D$15,IF(G618>CapFinanciera4,Puntajes!$D$16,0))))))","v":""}]
[null,null,{"$f":"+'Capacidad Financiera'!B622","v":""},{"$f":"IF(ISERROR(VLOOKUP(C619,'Capacidad Financiera'!$B$12:$X$62720,2,0)),\"\",VLOOKUP(C619,'Capacidad Financiera'!$B$12:$X$3580,2,0))","v":0},{"$f":"IF(OR(C619=\"\",D619=\"\"),\"\",IF(ISERROR(VLOOKUP(D619,'Capacidad Financiera'!$C$13:$X$62720,3,0)),\"\",VLOOKUP(D619,'Capacidad Financiera'!$C$13:$X$62720,3,0)))","v":""},{"$f":"IF(OR(C619=\"\",D619=\"\"),\"\",IF(ISERROR(VLOOKUP(D619,'Capacidad Financiera'!$C$13:$X$62720,5,0)),\"\",VLOOKUP(D619,'Capacidad Financiera'!$C$13:$X$62720,5,0)))","v":""},"",{"$f":"IF(OR(D619=\"\",E619=\"\",F619=\"\"),\"\",IF(AND(G619>0,G619<=CapFinanciera1),Puntajes!$D$12,IF(AND(G619>CapFinanciera1,G619<=CapFinanciera2),Puntajes!$D$13,IF(AND(G619>CapFinanciera2,G619<=CapFinanciera3),Puntajes!$D$14,IF(AND(G619>CapFinanciera3,G619<=CapFinanciera4),Puntajes!$D$15,IF(G619>CapFinanciera4,Puntajes!$D$16,0))))))","v":""}]
[null,null,{"$f":"+'Capacidad Financiera'!B623","v":""},{"$f":"IF(ISERROR(VLOOKUP(C620,'Capacidad Financiera'!$B$12:$X$62720,2,0)),\"\",VLOOKUP(C620,'Capacidad Financiera'!$B$12:$X$3580,2,0))","v":0},{"$f":"IF(OR(C620=\"\",D620=\"\"),\"\",IF(ISERROR(VLOOKUP(D620,'Capacidad Financiera'!$C$13:$X$62720,3,0)),\"\",VLOOKUP(D620,'Capacidad Financiera'!$C$13:$X$62720,3,0)))","v":""},{"$f":"IF(OR(C620=\"\",D620=\"\"),\"\",IF(ISERROR(VLOOKUP(D620,'Capacidad Financiera'!$C$13:$X$62720,5,0)),\"\",VLOOKUP(D620,'Capacidad Financiera'!$C$13:$X$62720,5,0)))","v":""},"",{"$f":"IF(OR(D620=\"\",E620=\"\",F620=\"\"),\"\",IF(AND(G620>0,G620<=CapFinanciera1),Puntajes!$D$12,IF(AND(G620>CapFinanciera1,G620<=CapFinanciera2),Puntajes!$D$13,IF(AND(G620>CapFinanciera2,G620<=CapFinanciera3),Puntajes!$D$14,IF(AND(G620>CapFinanciera3,G620<=CapFinanciera4),Puntajes!$D$15,IF(G620>CapFinanciera4,Puntajes!$D$16,0))))))","v":""}]
[null,null,{"$f":"+'Capacidad Financiera'!B624","v":""},{"$f":"IF(ISERROR(VLOOKUP(C621,'Capacidad Financiera'!$B$12:$X$62720,2,0)),\"\",VLOOKUP(C621,'Capacidad Financiera'!$B$12:$X$3580,2,0))","v":0},{"$f":"IF(OR(C621=\"\",D621=\"\"),\"\",IF(ISERROR(VLOOKUP(D621,'Capacidad Financiera'!$C$13:$X$62720,3,0)),\"\",VLOOKUP(D621,'Capacidad Financiera'!$C$13:$X$62720,3,0)))","v":""},{"$f":"IF(OR(C621=\"\",D621=\"\"),\"\",IF(ISERROR(VLOOKUP(D621,'Capacidad Financiera'!$C$13:$X$62720,5,0)),\"\",VLOOKUP(D621,'Capacidad Financiera'!$C$13:$X$62720,5,0)))","v":""},"",{"$f":"IF(OR(D621=\"\",E621=\"\",F621=\"\"),\"\",IF(AND(G621>0,G621<=CapFinanciera1),Puntajes!$D$12,IF(AND(G621>CapFinanciera1,G621<=CapFinanciera2),Puntajes!$D$13,IF(AND(G621>CapFinanciera2,G621<=CapFinanciera3),Puntajes!$D$14,IF(AND(G621>CapFinanciera3,G621<=CapFinanciera4),Puntajes!$D$15,IF(G621>CapFinanciera4,Puntajes!$D$16,0))))))","v":""}]
[null,null,{"$f":"+'Capacidad Financiera'!B625","v":""},{"$f":"IF(ISERROR(VLOOKUP(C622,'Capacidad Financiera'!$B$12:$X$62720,2,0)),\"\",VLOOKUP(C622,'Capacidad Financiera'!$B$12:$X$3580,2,0))","v":0},{"$f":"IF(OR(C622=\"\",D622=\"\"),\"\",IF(ISERROR(VLOOKUP(D622,'Capacidad Financiera'!$C$13:$X$62720,3,0)),\"\",VLOOKUP(D622,'Capacidad Financiera'!$C$13:$X$62720,3,0)))","v":""},{"$f":"IF(OR(C622=\"\",D622=\"\"),\"\",IF(ISERROR(VLOOKUP(D622,'Capacidad Financiera'!$C$13:$X$62720,5,0)),\"\",VLOOKUP(D622,'Capacidad Financiera'!$C$13:$X$62720,5,0)))","v":""},"",{"$f":"IF(OR(D622=\"\",E622=\"\",F622=\"\"),\"\",IF(AND(G622>0,G622<=CapFinanciera1),Puntajes!$D$12,IF(AND(G622>CapFinanciera1,G622<=CapFinanciera2),Puntajes!$D$13,IF(AND(G622>CapFinanciera2,G622<=CapFinanciera3),Puntajes!$D$14,IF(AND(G622>CapFinanciera3,G622<=CapFinanciera4),Puntajes!$D$15,IF(G622>CapFinanciera4,Puntajes!$D$16,0))))))","v":""}]
[null,null,{"$f":"+'Capacidad Financiera'!B626","v":""},{"$f":"IF(ISERROR(VLOOKUP(C623,'Capacidad Financiera'!$B$12:$X$62720,2,0)),\"\",VLOOKUP(C623,'Capacidad Financiera'!$B$12:$X$3580,2,0))","v":0},{"$f":"IF(OR(C623=\"\",D623=\"\"),\"\",IF(ISERROR(VLOOKUP(D623,'Capacidad Financiera'!$C$13:$X$62720,3,0)),\"\",VLOOKUP(D623,'Capacidad Financiera'!$C$13:$X$62720,3,0)))","v":""},{"$f":"IF(OR(C623=\"\",D623=\"\"),\"\",IF(ISERROR(VLOOKUP(D623,'Capacidad Financiera'!$C$13:$X$62720,5,0)),\"\",VLOOKUP(D623,'Capacidad Financiera'!$C$13:$X$62720,5,0)))","v":""},"",{"$f":"IF(OR(D623=\"\",E623=\"\",F623=\"\"),\"\",IF(AND(G623>0,G623<=CapFinanciera1),Puntajes!$D$12,IF(AND(G623>CapFinanciera1,G623<=CapFinanciera2),Puntajes!$D$13,IF(AND(G623>CapFinanciera2,G623<=CapFinanciera3),Puntajes!$D$14,IF(AND(G623>CapFinanciera3,G623<=CapFinanciera4),Puntajes!$D$15,IF(G623>CapFinanciera4,Puntajes!$D$16,0))))))","v":""}]
[null,null,{"$f":"+'Capacidad Financiera'!B627","v":""},{"$f":"IF(ISERROR(VLOOKUP(C624,'Capacidad Financiera'!$B$12:$X$62720,2,0)),\"\",VLOOKUP(C624,'Capacidad Financiera'!$B$12:$X$3580,2,0))","v":0},{"$f":"IF(OR(C624=\"\",D624=\"\"),\"\",IF(ISERROR(VLOOKUP(D624,'Capacidad Financiera'!$C$13:$X$62720,3,0)),\"\",VLOOKUP(D624,'Capacidad Financiera'!$C$13:$X$62720,3,0)))","v":""},{"$f":"IF(OR(C624=\"\",D624=\"\"),\"\",IF(ISERROR(VLOOKUP(D624,'Capacidad Financiera'!$C$13:$X$62720,5,0)),\"\",VLOOKUP(D624,'Capacidad Financiera'!$C$13:$X$62720,5,0)))","v":""},"",{"$f":"IF(OR(D624=\"\",E624=\"\",F624=\"\"),\"\",IF(AND(G624>0,G624<=CapFinanciera1),Puntajes!$D$12,IF(AND(G624>CapFinanciera1,G624<=CapFinanciera2),Puntajes!$D$13,IF(AND(G624>CapFinanciera2,G624<=CapFinanciera3),Puntajes!$D$14,IF(AND(G624>CapFinanciera3,G624<=CapFinanciera4),Puntajes!$D$15,IF(G624>CapFinanciera4,Puntajes!$D$16,0))))))","v":""}]
[null,null,57,{"$f":"IF(ISERROR(VLOOKUP(C625,'Capacidad Financiera'!$B$12:$X$62720,2,0)),\"\",VLOOKUP(C625,'Capacidad Financiera'!$B$12:$X$3580,2,0))","v":0},{"$f":"IF(C626=\"\",IF(C625<>\"\",IF(ISERROR(VLOOKUP(D625,'Capacidad Financiera'!$C$12:$H$22,3,0)),\"\",VLOOKUP(D625,'Capacidad Financiera'!$C$12:$H$22,3,0))),\"\")","v":""},{"$f":"IF(C626=\"\",IF(C625<>\"\",IF(ISERROR(VLOOKUP(D625,'Capacidad Financiera'!$C$12:$H$22,5,0)),\"\",VLOOKUP(D625,'Capacidad Financiera'!$C$12:$H$22,5,0))),\"\")","v":""},{"$f":"IF(OR(D625=\"\",E625=\"\",F625=\"\"),\"\",IF(OR(E625=0,F625=0),0,E625/F625))","v":""},{"$f":"IF(C626=\"\",IF(AND(E625=\"\",F625=\"\"),\"\",IF(AND(G625>0,G625<=CapFinanciera1),Puntajes!$D$12,IF(AND(G625>CapFinanciera1,G625<=CapFinanciera2),Puntajes!$D$13,IF(AND(G625>CapFinanciera2,G625<=CapFinanciera3),Puntajes!$D$14,IF(AND(G625>CapFinanciera3,G625<=CapFinanciera4),Puntajes!$D$15,IF(G625>CapFinanciera4,Puntajes!$D$16,0)))))),\"\")","v":""}]
[null,null,{"$f":"+'Capacidad Financiera'!B629","v":""},{"$f":"IF(ISERROR(VLOOKUP(C626,'Capacidad Financiera'!$B$12:$X$62720,2,0)),\"\",VLOOKUP(C626,'Capacidad Financiera'!$B$12:$X$3580,2,0))","v":0},{"$f":"IF(OR(C626=\"\",D626=\"\"),\"\",IF(ISERROR(VLOOKUP(D626,'Capacidad Financiera'!$C$13:$X$62720,3,0)),\"\",VLOOKUP(D626,'Capacidad Financiera'!$C$13:$X$62720,3,0)))","v":""},{"$f":"IF(OR(C626=\"\",D626=\"\"),\"\",IF(ISERROR(VLOOKUP(D626,'Capacidad Financiera'!$C$13:$X$62720,5,0)),\"\",VLOOKUP(D626,'Capacidad Financiera'!$C$13:$X$62720,5,0)))","v":""},{"$f":"IF(OR(D626=\"\",E626=\"\",F626=\"\"),\"\",IF(OR(E626=0,F626=0),0,E626/F626))","v":""},{"$f":"IF(OR(D626=\"\",E626=\"\",F626=\"\"),\"\",IF(AND(G626>0,G626<=CapFinanciera1),Puntajes!$D$12,IF(AND(G626>CapFinanciera1,G626<=CapFinanciera2),Puntajes!$D$13,IF(AND(G626>CapFinanciera2,G626<=CapFinanciera3),Puntajes!$D$14,IF(AND(G626>CapFinanciera3,G626<=CapFinanciera4),Puntajes!$D$15,IF(G626>CapFinanciera4,Puntajes!$D$16,0))))))","v":""}]
[null,null,{"$f":"+'Capacidad Financiera'!B630","v":""},{"$f":"IF(ISERROR(VLOOKUP(C627,'Capacidad Financiera'!$B$12:$X$62720,2,0)),\"\",VLOOKUP(C627,'Capacidad Financiera'!$B$12:$X$3580,2,0))","v":0},{"$f":"IF(OR(C627=\"\",D627=\"\"),\"\",IF(ISERROR(VLOOKUP(D627,'Capacidad Financiera'!$C$13:$X$62720,3,0)),\"\",VLOOKUP(D627,'Capacidad Financiera'!$C$13:$X$62720,3,0)))","v":""},{"$f":"IF(OR(C627=\"\",D627=\"\"),\"\",IF(ISERROR(VLOOKUP(D627,'Capacidad Financiera'!$C$13:$X$62720,5,0)),\"\",VLOOKUP(D627,'Capacidad Financiera'!$C$13:$X$62720,5,0)))","v":""},"",{"$f":"IF(OR(D627=\"\",E627=\"\",F627=\"\"),\"\",IF(AND(G627>0,G627<=CapFinanciera1),Puntajes!$D$12,IF(AND(G627>CapFinanciera1,G627<=CapFinanciera2),Puntajes!$D$13,IF(AND(G627>CapFinanciera2,G627<=CapFinanciera3),Puntajes!$D$14,IF(AND(G627>CapFinanciera3,G627<=CapFinanciera4),Puntajes!$D$15,IF(G627>CapFinanciera4,Puntajes!$D$16,0))))))","v":""}]
[null,null,{"$f":"+'Capacidad Financiera'!B631","v":""},{"$f":"IF(ISERROR(VLOOKUP(C628,'Capacidad Financiera'!$B$12:$X$62720,2,0)),\"\",VLOOKUP(C628,'Capacidad Financiera'!$B$12:$X$3580,2,0))","v":0},{"$f":"IF(OR(C628=\"\",D628=\"\"),\"\",IF(ISERROR(VLOOKUP(D628,'Capacidad Financiera'!$C$13:$X$62720,3,0)),\"\",VLOOKUP(D628,'Capacidad Financiera'!$C$13:$X$62720,3,0)))","v":""},{"$f":"IF(OR(C628=\"\",D628=\"\"),\"\",IF(ISERROR(VLOOKUP(D628,'Capacidad Financiera'!$C$13:$X$62720,5,0)),\"\",VLOOKUP(D628,'Capacidad Financiera'!$C$13:$X$62720,5,0)))","v":""},"",{"$f":"IF(OR(D628=\"\",E628=\"\",F628=\"\"),\"\",IF(AND(G628>0,G628<=CapFinanciera1),Puntajes!$D$12,IF(AND(G628>CapFinanciera1,G628<=CapFinanciera2),Puntajes!$D$13,IF(AND(G628>CapFinanciera2,G628<=CapFinanciera3),Puntajes!$D$14,IF(AND(G628>CapFinanciera3,G628<=CapFinanciera4),Puntajes!$D$15,IF(G628>CapFinanciera4,Puntajes!$D$16,0))))))","v":""}]
[null,null,{"$f":"+'Capacidad Financiera'!B632","v":""},{"$f":"IF(ISERROR(VLOOKUP(C629,'Capacidad Financiera'!$B$12:$X$62720,2,0)),\"\",VLOOKUP(C629,'Capacidad Financiera'!$B$12:$X$3580,2,0))","v":0},{"$f":"IF(OR(C629=\"\",D629=\"\"),\"\",IF(ISERROR(VLOOKUP(D629,'Capacidad Financiera'!$C$13:$X$62720,3,0)),\"\",VLOOKUP(D629,'Capacidad Financiera'!$C$13:$X$62720,3,0)))","v":""},{"$f":"IF(OR(C629=\"\",D629=\"\"),\"\",IF(ISERROR(VLOOKUP(D629,'Capacidad Financiera'!$C$13:$X$62720,5,0)),\"\",VLOOKUP(D629,'Capacidad Financiera'!$C$13:$X$62720,5,0)))","v":""},"",{"$f":"IF(OR(D629=\"\",E629=\"\",F629=\"\"),\"\",IF(AND(G629>0,G629<=CapFinanciera1),Puntajes!$D$12,IF(AND(G629>CapFinanciera1,G629<=CapFinanciera2),Puntajes!$D$13,IF(AND(G629>CapFinanciera2,G629<=CapFinanciera3),Puntajes!$D$14,IF(AND(G629>CapFinanciera3,G629<=CapFinanciera4),Puntajes!$D$15,IF(G629>CapFinanciera4,Puntajes!$D$16,0))))))","v":""}]
[null,null,{"$f":"+'Capacidad Financiera'!B633","v":""},{"$f":"IF(ISERROR(VLOOKUP(C630,'Capacidad Financiera'!$B$12:$X$62720,2,0)),\"\",VLOOKUP(C630,'Capacidad Financiera'!$B$12:$X$3580,2,0))","v":0},{"$f":"IF(OR(C630=\"\",D630=\"\"),\"\",IF(ISERROR(VLOOKUP(D630,'Capacidad Financiera'!$C$13:$X$62720,3,0)),\"\",VLOOKUP(D630,'Capacidad Financiera'!$C$13:$X$62720,3,0)))","v":""},{"$f":"IF(OR(C630=\"\",D630=\"\"),\"\",IF(ISERROR(VLOOKUP(D630,'Capacidad Financiera'!$C$13:$X$62720,5,0)),\"\",VLOOKUP(D630,'Capacidad Financiera'!$C$13:$X$62720,5,0)))","v":""},"",{"$f":"IF(OR(D630=\"\",E630=\"\",F630=\"\"),\"\",IF(AND(G630>0,G630<=CapFinanciera1),Puntajes!$D$12,IF(AND(G630>CapFinanciera1,G630<=CapFinanciera2),Puntajes!$D$13,IF(AND(G630>CapFinanciera2,G630<=CapFinanciera3),Puntajes!$D$14,IF(AND(G630>CapFinanciera3,G630<=CapFinanciera4),Puntajes!$D$15,IF(G630>CapFinanciera4,Puntajes!$D$16,0))))))","v":""}]
[null,null,{"$f":"+'Capacidad Financiera'!B634","v":""},{"$f":"IF(ISERROR(VLOOKUP(C631,'Capacidad Financiera'!$B$12:$X$62720,2,0)),\"\",VLOOKUP(C631,'Capacidad Financiera'!$B$12:$X$3580,2,0))","v":0},{"$f":"IF(OR(C631=\"\",D631=\"\"),\"\",IF(ISERROR(VLOOKUP(D631,'Capacidad Financiera'!$C$13:$X$62720,3,0)),\"\",VLOOKUP(D631,'Capacidad Financiera'!$C$13:$X$62720,3,0)))","v":""},{"$f":"IF(OR(C631=\"\",D631=\"\"),\"\",IF(ISERROR(VLOOKUP(D631,'Capacidad Financiera'!$C$13:$X$62720,5,0)),\"\",VLOOKUP(D631,'Capacidad Financiera'!$C$13:$X$62720,5,0)))","v":""},"",{"$f":"IF(OR(D631=\"\",E631=\"\",F631=\"\"),\"\",IF(AND(G631>0,G631<=CapFinanciera1),Puntajes!$D$12,IF(AND(G631>CapFinanciera1,G631<=CapFinanciera2),Puntajes!$D$13,IF(AND(G631>CapFinanciera2,G631<=CapFinanciera3),Puntajes!$D$14,IF(AND(G631>CapFinanciera3,G631<=CapFinanciera4),Puntajes!$D$15,IF(G631>CapFinanciera4,Puntajes!$D$16,0))))))","v":""}]
[null,null,{"$f":"+'Capacidad Financiera'!B635","v":""},{"$f":"IF(ISERROR(VLOOKUP(C632,'Capacidad Financiera'!$B$12:$X$62720,2,0)),\"\",VLOOKUP(C632,'Capacidad Financiera'!$B$12:$X$3580,2,0))","v":0},{"$f":"IF(OR(C632=\"\",D632=\"\"),\"\",IF(ISERROR(VLOOKUP(D632,'Capacidad Financiera'!$C$13:$X$62720,3,0)),\"\",VLOOKUP(D632,'Capacidad Financiera'!$C$13:$X$62720,3,0)))","v":""},{"$f":"IF(OR(C632=\"\",D632=\"\"),\"\",IF(ISERROR(VLOOKUP(D632,'Capacidad Financiera'!$C$13:$X$62720,5,0)),\"\",VLOOKUP(D632,'Capacidad Financiera'!$C$13:$X$62720,5,0)))","v":""},"",{"$f":"IF(OR(D632=\"\",E632=\"\",F632=\"\"),\"\",IF(AND(G632>0,G632<=CapFinanciera1),Puntajes!$D$12,IF(AND(G632>CapFinanciera1,G632<=CapFinanciera2),Puntajes!$D$13,IF(AND(G632>CapFinanciera2,G632<=CapFinanciera3),Puntajes!$D$14,IF(AND(G632>CapFinanciera3,G632<=CapFinanciera4),Puntajes!$D$15,IF(G632>CapFinanciera4,Puntajes!$D$16,0))))))","v":""}]
[null,null,{"$f":"+'Capacidad Financiera'!B636","v":""},{"$f":"IF(ISERROR(VLOOKUP(C633,'Capacidad Financiera'!$B$12:$X$62720,2,0)),\"\",VLOOKUP(C633,'Capacidad Financiera'!$B$12:$X$3580,2,0))","v":0},{"$f":"IF(OR(C633=\"\",D633=\"\"),\"\",IF(ISERROR(VLOOKUP(D633,'Capacidad Financiera'!$C$13:$X$62720,3,0)),\"\",VLOOKUP(D633,'Capacidad Financiera'!$C$13:$X$62720,3,0)))","v":""},{"$f":"IF(OR(C633=\"\",D633=\"\"),\"\",IF(ISERROR(VLOOKUP(D633,'Capacidad Financiera'!$C$13:$X$62720,5,0)),\"\",VLOOKUP(D633,'Capacidad Financiera'!$C$13:$X$62720,5,0)))","v":""},"",{"$f":"IF(OR(D633=\"\",E633=\"\",F633=\"\"),\"\",IF(AND(G633>0,G633<=CapFinanciera1),Puntajes!$D$12,IF(AND(G633>CapFinanciera1,G633<=CapFinanciera2),Puntajes!$D$13,IF(AND(G633>CapFinanciera2,G633<=CapFinanciera3),Puntajes!$D$14,IF(AND(G633>CapFinanciera3,G633<=CapFinanciera4),Puntajes!$D$15,IF(G633>CapFinanciera4,Puntajes!$D$16,0))))))","v":""}]
[null,null,{"$f":"+'Capacidad Financiera'!B637","v":""},{"$f":"IF(ISERROR(VLOOKUP(C634,'Capacidad Financiera'!$B$12:$X$62720,2,0)),\"\",VLOOKUP(C634,'Capacidad Financiera'!$B$12:$X$3580,2,0))","v":0},{"$f":"IF(OR(C634=\"\",D634=\"\"),\"\",IF(ISERROR(VLOOKUP(D634,'Capacidad Financiera'!$C$13:$X$62720,3,0)),\"\",VLOOKUP(D634,'Capacidad Financiera'!$C$13:$X$62720,3,0)))","v":""},{"$f":"IF(OR(C634=\"\",D634=\"\"),\"\",IF(ISERROR(VLOOKUP(D634,'Capacidad Financiera'!$C$13:$X$62720,5,0)),\"\",VLOOKUP(D634,'Capacidad Financiera'!$C$13:$X$62720,5,0)))","v":""},"",{"$f":"IF(OR(D634=\"\",E634=\"\",F634=\"\"),\"\",IF(AND(G634>0,G634<=CapFinanciera1),Puntajes!$D$12,IF(AND(G634>CapFinanciera1,G634<=CapFinanciera2),Puntajes!$D$13,IF(AND(G634>CapFinanciera2,G634<=CapFinanciera3),Puntajes!$D$14,IF(AND(G634>CapFinanciera3,G634<=CapFinanciera4),Puntajes!$D$15,IF(G634>CapFinanciera4,Puntajes!$D$16,0))))))","v":""}]
[null,null,{"$f":"+'Capacidad Financiera'!B638","v":""},{"$f":"IF(ISERROR(VLOOKUP(C635,'Capacidad Financiera'!$B$12:$X$62720,2,0)),\"\",VLOOKUP(C635,'Capacidad Financiera'!$B$12:$X$3580,2,0))","v":0},{"$f":"IF(OR(C635=\"\",D635=\"\"),\"\",IF(ISERROR(VLOOKUP(D635,'Capacidad Financiera'!$C$13:$X$62720,3,0)),\"\",VLOOKUP(D635,'Capacidad Financiera'!$C$13:$X$62720,3,0)))","v":""},{"$f":"IF(OR(C635=\"\",D635=\"\"),\"\",IF(ISERROR(VLOOKUP(D635,'Capacidad Financiera'!$C$13:$X$62720,5,0)),\"\",VLOOKUP(D635,'Capacidad Financiera'!$C$13:$X$62720,5,0)))","v":""},"",{"$f":"IF(OR(D635=\"\",E635=\"\",F635=\"\"),\"\",IF(AND(G635>0,G635<=CapFinanciera1),Puntajes!$D$12,IF(AND(G635>CapFinanciera1,G635<=CapFinanciera2),Puntajes!$D$13,IF(AND(G635>CapFinanciera2,G635<=CapFinanciera3),Puntajes!$D$14,IF(AND(G635>CapFinanciera3,G635<=CapFinanciera4),Puntajes!$D$15,IF(G635>CapFinanciera4,Puntajes!$D$16,0))))))","v":""}]
[null,null,58,{"$f":"IF(ISERROR(VLOOKUP(C636,'Capacidad Financiera'!$B$12:$X$62720,2,0)),\"\",VLOOKUP(C636,'Capacidad Financiera'!$B$12:$X$3580,2,0))","v":0},{"$f":"IF(C637=\"\",IF(C636<>\"\",IF(ISERROR(VLOOKUP(D636,'Capacidad Financiera'!$C$12:$H$22,3,0)),\"\",VLOOKUP(D636,'Capacidad Financiera'!$C$12:$H$22,3,0))),\"\")","v":""},{"$f":"IF(C637=\"\",IF(C636<>\"\",IF(ISERROR(VLOOKUP(D636,'Capacidad Financiera'!$C$12:$H$22,5,0)),\"\",VLOOKUP(D636,'Capacidad Financiera'!$C$12:$H$22,5,0))),\"\")","v":""},{"$f":"IF(OR(D636=\"\",E636=\"\",F636=\"\"),\"\",IF(OR(E636=0,F636=0),0,E636/F636))","v":""},{"$f":"IF(C637=\"\",IF(AND(E636=\"\",F636=\"\"),\"\",IF(AND(G636>0,G636<=CapFinanciera1),Puntajes!$D$12,IF(AND(G636>CapFinanciera1,G636<=CapFinanciera2),Puntajes!$D$13,IF(AND(G636>CapFinanciera2,G636<=CapFinanciera3),Puntajes!$D$14,IF(AND(G636>CapFinanciera3,G636<=CapFinanciera4),Puntajes!$D$15,IF(G636>CapFinanciera4,Puntajes!$D$16,0)))))),\"\")","v":""}]
[null,null,{"$f":"+'Capacidad Financiera'!B640","v":""},{"$f":"IF(ISERROR(VLOOKUP(C637,'Capacidad Financiera'!$B$12:$X$62720,2,0)),\"\",VLOOKUP(C637,'Capacidad Financiera'!$B$12:$X$3580,2,0))","v":0},{"$f":"IF(OR(C637=\"\",D637=\"\"),\"\",IF(ISERROR(VLOOKUP(D637,'Capacidad Financiera'!$C$13:$X$62720,3,0)),\"\",VLOOKUP(D637,'Capacidad Financiera'!$C$13:$X$62720,3,0)))","v":""},{"$f":"IF(OR(C637=\"\",D637=\"\"),\"\",IF(ISERROR(VLOOKUP(D637,'Capacidad Financiera'!$C$13:$X$62720,5,0)),\"\",VLOOKUP(D637,'Capacidad Financiera'!$C$13:$X$62720,5,0)))","v":""},{"$f":"IF(OR(D637=\"\",E637=\"\",F637=\"\"),\"\",IF(OR(E637=0,F637=0),0,E637/F637))","v":""},{"$f":"IF(OR(D637=\"\",E637=\"\",F637=\"\"),\"\",IF(AND(G637>0,G637<=CapFinanciera1),Puntajes!$D$12,IF(AND(G637>CapFinanciera1,G637<=CapFinanciera2),Puntajes!$D$13,IF(AND(G637>CapFinanciera2,G637<=CapFinanciera3),Puntajes!$D$14,IF(AND(G637>CapFinanciera3,G637<=CapFinanciera4),Puntajes!$D$15,IF(G637>CapFinanciera4,Puntajes!$D$16,0))))))","v":""}]
[null,null,{"$f":"+'Capacidad Financiera'!B641","v":""},{"$f":"IF(ISERROR(VLOOKUP(C638,'Capacidad Financiera'!$B$12:$X$62720,2,0)),\"\",VLOOKUP(C638,'Capacidad Financiera'!$B$12:$X$3580,2,0))","v":0},{"$f":"IF(OR(C638=\"\",D638=\"\"),\"\",IF(ISERROR(VLOOKUP(D638,'Capacidad Financiera'!$C$13:$X$62720,3,0)),\"\",VLOOKUP(D638,'Capacidad Financiera'!$C$13:$X$62720,3,0)))","v":""},{"$f":"IF(OR(C638=\"\",D638=\"\"),\"\",IF(ISERROR(VLOOKUP(D638,'Capacidad Financiera'!$C$13:$X$62720,5,0)),\"\",VLOOKUP(D638,'Capacidad Financiera'!$C$13:$X$62720,5,0)))","v":""},"",{"$f":"IF(OR(D638=\"\",E638=\"\",F638=\"\"),\"\",IF(AND(G638>0,G638<=CapFinanciera1),Puntajes!$D$12,IF(AND(G638>CapFinanciera1,G638<=CapFinanciera2),Puntajes!$D$13,IF(AND(G638>CapFinanciera2,G638<=CapFinanciera3),Puntajes!$D$14,IF(AND(G638>CapFinanciera3,G638<=CapFinanciera4),Puntajes!$D$15,IF(G638>CapFinanciera4,Puntajes!$D$16,0))))))","v":""}]
[null,null,{"$f":"+'Capacidad Financiera'!B642","v":""},{"$f":"IF(ISERROR(VLOOKUP(C639,'Capacidad Financiera'!$B$12:$X$62720,2,0)),\"\",VLOOKUP(C639,'Capacidad Financiera'!$B$12:$X$3580,2,0))","v":0},{"$f":"IF(OR(C639=\"\",D639=\"\"),\"\",IF(ISERROR(VLOOKUP(D639,'Capacidad Financiera'!$C$13:$X$62720,3,0)),\"\",VLOOKUP(D639,'Capacidad Financiera'!$C$13:$X$62720,3,0)))","v":""},{"$f":"IF(OR(C639=\"\",D639=\"\"),\"\",IF(ISERROR(VLOOKUP(D639,'Capacidad Financiera'!$C$13:$X$62720,5,0)),\"\",VLOOKUP(D639,'Capacidad Financiera'!$C$13:$X$62720,5,0)))","v":""},"",{"$f":"IF(OR(D639=\"\",E639=\"\",F639=\"\"),\"\",IF(AND(G639>0,G639<=CapFinanciera1),Puntajes!$D$12,IF(AND(G639>CapFinanciera1,G639<=CapFinanciera2),Puntajes!$D$13,IF(AND(G639>CapFinanciera2,G639<=CapFinanciera3),Puntajes!$D$14,IF(AND(G639>CapFinanciera3,G639<=CapFinanciera4),Puntajes!$D$15,IF(G639>CapFinanciera4,Puntajes!$D$16,0))))))","v":""}]
[null,null,{"$f":"+'Capacidad Financiera'!B643","v":""},{"$f":"IF(ISERROR(VLOOKUP(C640,'Capacidad Financiera'!$B$12:$X$62720,2,0)),\"\",VLOOKUP(C640,'Capacidad Financiera'!$B$12:$X$3580,2,0))","v":0},{"$f":"IF(OR(C640=\"\",D640=\"\"),\"\",IF(ISERROR(VLOOKUP(D640,'Capacidad Financiera'!$C$13:$X$62720,3,0)),\"\",VLOOKUP(D640,'Capacidad Financiera'!$C$13:$X$62720,3,0)))","v":""},{"$f":"IF(OR(C640=\"\",D640=\"\"),\"\",IF(ISERROR(VLOOKUP(D640,'Capacidad Financiera'!$C$13:$X$62720,5,0)),\"\",VLOOKUP(D640,'Capacidad Financiera'!$C$13:$X$62720,5,0)))","v":""},"",{"$f":"IF(OR(D640=\"\",E640=\"\",F640=\"\"),\"\",IF(AND(G640>0,G640<=CapFinanciera1),Puntajes!$D$12,IF(AND(G640>CapFinanciera1,G640<=CapFinanciera2),Puntajes!$D$13,IF(AND(G640>CapFinanciera2,G640<=CapFinanciera3),Puntajes!$D$14,IF(AND(G640>CapFinanciera3,G640<=CapFinanciera4),Puntajes!$D$15,IF(G640>CapFinanciera4,Puntajes!$D$16,0))))))","v":""}]
[null,null,{"$f":"+'Capacidad Financiera'!B644","v":""},{"$f":"IF(ISERROR(VLOOKUP(C641,'Capacidad Financiera'!$B$12:$X$62720,2,0)),\"\",VLOOKUP(C641,'Capacidad Financiera'!$B$12:$X$3580,2,0))","v":0},{"$f":"IF(OR(C641=\"\",D641=\"\"),\"\",IF(ISERROR(VLOOKUP(D641,'Capacidad Financiera'!$C$13:$X$62720,3,0)),\"\",VLOOKUP(D641,'Capacidad Financiera'!$C$13:$X$62720,3,0)))","v":""},{"$f":"IF(OR(C641=\"\",D641=\"\"),\"\",IF(ISERROR(VLOOKUP(D641,'Capacidad Financiera'!$C$13:$X$62720,5,0)),\"\",VLOOKUP(D641,'Capacidad Financiera'!$C$13:$X$62720,5,0)))","v":""},"",{"$f":"IF(OR(D641=\"\",E641=\"\",F641=\"\"),\"\",IF(AND(G641>0,G641<=CapFinanciera1),Puntajes!$D$12,IF(AND(G641>CapFinanciera1,G641<=CapFinanciera2),Puntajes!$D$13,IF(AND(G641>CapFinanciera2,G641<=CapFinanciera3),Puntajes!$D$14,IF(AND(G641>CapFinanciera3,G641<=CapFinanciera4),Puntajes!$D$15,IF(G641>CapFinanciera4,Puntajes!$D$16,0))))))","v":""}]
[null,null,{"$f":"+'Capacidad Financiera'!B645","v":""},{"$f":"IF(ISERROR(VLOOKUP(C642,'Capacidad Financiera'!$B$12:$X$62720,2,0)),\"\",VLOOKUP(C642,'Capacidad Financiera'!$B$12:$X$3580,2,0))","v":0},{"$f":"IF(OR(C642=\"\",D642=\"\"),\"\",IF(ISERROR(VLOOKUP(D642,'Capacidad Financiera'!$C$13:$X$62720,3,0)),\"\",VLOOKUP(D642,'Capacidad Financiera'!$C$13:$X$62720,3,0)))","v":""},{"$f":"IF(OR(C642=\"\",D642=\"\"),\"\",IF(ISERROR(VLOOKUP(D642,'Capacidad Financiera'!$C$13:$X$62720,5,0)),\"\",VLOOKUP(D642,'Capacidad Financiera'!$C$13:$X$62720,5,0)))","v":""},"",{"$f":"IF(OR(D642=\"\",E642=\"\",F642=\"\"),\"\",IF(AND(G642>0,G642<=CapFinanciera1),Puntajes!$D$12,IF(AND(G642>CapFinanciera1,G642<=CapFinanciera2),Puntajes!$D$13,IF(AND(G642>CapFinanciera2,G642<=CapFinanciera3),Puntajes!$D$14,IF(AND(G642>CapFinanciera3,G642<=CapFinanciera4),Puntajes!$D$15,IF(G642>CapFinanciera4,Puntajes!$D$16,0))))))","v":""}]
[null,null,{"$f":"+'Capacidad Financiera'!B646","v":""},{"$f":"IF(ISERROR(VLOOKUP(C643,'Capacidad Financiera'!$B$12:$X$62720,2,0)),\"\",VLOOKUP(C643,'Capacidad Financiera'!$B$12:$X$3580,2,0))","v":0},{"$f":"IF(OR(C643=\"\",D643=\"\"),\"\",IF(ISERROR(VLOOKUP(D643,'Capacidad Financiera'!$C$13:$X$62720,3,0)),\"\",VLOOKUP(D643,'Capacidad Financiera'!$C$13:$X$62720,3,0)))","v":""},{"$f":"IF(OR(C643=\"\",D643=\"\"),\"\",IF(ISERROR(VLOOKUP(D643,'Capacidad Financiera'!$C$13:$X$62720,5,0)),\"\",VLOOKUP(D643,'Capacidad Financiera'!$C$13:$X$62720,5,0)))","v":""},"",{"$f":"IF(OR(D643=\"\",E643=\"\",F643=\"\"),\"\",IF(AND(G643>0,G643<=CapFinanciera1),Puntajes!$D$12,IF(AND(G643>CapFinanciera1,G643<=CapFinanciera2),Puntajes!$D$13,IF(AND(G643>CapFinanciera2,G643<=CapFinanciera3),Puntajes!$D$14,IF(AND(G643>CapFinanciera3,G643<=CapFinanciera4),Puntajes!$D$15,IF(G643>CapFinanciera4,Puntajes!$D$16,0))))))","v":""}]
[null,null,{"$f":"+'Capacidad Financiera'!B647","v":""},{"$f":"IF(ISERROR(VLOOKUP(C644,'Capacidad Financiera'!$B$12:$X$62720,2,0)),\"\",VLOOKUP(C644,'Capacidad Financiera'!$B$12:$X$3580,2,0))","v":0},{"$f":"IF(OR(C644=\"\",D644=\"\"),\"\",IF(ISERROR(VLOOKUP(D644,'Capacidad Financiera'!$C$13:$X$62720,3,0)),\"\",VLOOKUP(D644,'Capacidad Financiera'!$C$13:$X$62720,3,0)))","v":""},{"$f":"IF(OR(C644=\"\",D644=\"\"),\"\",IF(ISERROR(VLOOKUP(D644,'Capacidad Financiera'!$C$13:$X$62720,5,0)),\"\",VLOOKUP(D644,'Capacidad Financiera'!$C$13:$X$62720,5,0)))","v":""},"",{"$f":"IF(OR(D644=\"\",E644=\"\",F644=\"\"),\"\",IF(AND(G644>0,G644<=CapFinanciera1),Puntajes!$D$12,IF(AND(G644>CapFinanciera1,G644<=CapFinanciera2),Puntajes!$D$13,IF(AND(G644>CapFinanciera2,G644<=CapFinanciera3),Puntajes!$D$14,IF(AND(G644>CapFinanciera3,G644<=CapFinanciera4),Puntajes!$D$15,IF(G644>CapFinanciera4,Puntajes!$D$16,0))))))","v":""}]
[null,null,{"$f":"+'Capacidad Financiera'!B648","v":""},{"$f":"IF(ISERROR(VLOOKUP(C645,'Capacidad Financiera'!$B$12:$X$62720,2,0)),\"\",VLOOKUP(C645,'Capacidad Financiera'!$B$12:$X$3580,2,0))","v":0},{"$f":"IF(OR(C645=\"\",D645=\"\"),\"\",IF(ISERROR(VLOOKUP(D645,'Capacidad Financiera'!$C$13:$X$62720,3,0)),\"\",VLOOKUP(D645,'Capacidad Financiera'!$C$13:$X$62720,3,0)))","v":""},{"$f":"IF(OR(C645=\"\",D645=\"\"),\"\",IF(ISERROR(VLOOKUP(D645,'Capacidad Financiera'!$C$13:$X$62720,5,0)),\"\",VLOOKUP(D645,'Capacidad Financiera'!$C$13:$X$62720,5,0)))","v":""},"",{"$f":"IF(OR(D645=\"\",E645=\"\",F645=\"\"),\"\",IF(AND(G645>0,G645<=CapFinanciera1),Puntajes!$D$12,IF(AND(G645>CapFinanciera1,G645<=CapFinanciera2),Puntajes!$D$13,IF(AND(G645>CapFinanciera2,G645<=CapFinanciera3),Puntajes!$D$14,IF(AND(G645>CapFinanciera3,G645<=CapFinanciera4),Puntajes!$D$15,IF(G645>CapFinanciera4,Puntajes!$D$16,0))))))","v":""}]
[null,null,{"$f":"+'Capacidad Financiera'!B649","v":""},{"$f":"IF(ISERROR(VLOOKUP(C646,'Capacidad Financiera'!$B$12:$X$62720,2,0)),\"\",VLOOKUP(C646,'Capacidad Financiera'!$B$12:$X$3580,2,0))","v":0},{"$f":"IF(OR(C646=\"\",D646=\"\"),\"\",IF(ISERROR(VLOOKUP(D646,'Capacidad Financiera'!$C$13:$X$62720,3,0)),\"\",VLOOKUP(D646,'Capacidad Financiera'!$C$13:$X$62720,3,0)))","v":""},{"$f":"IF(OR(C646=\"\",D646=\"\"),\"\",IF(ISERROR(VLOOKUP(D646,'Capacidad Financiera'!$C$13:$X$62720,5,0)),\"\",VLOOKUP(D646,'Capacidad Financiera'!$C$13:$X$62720,5,0)))","v":""},"",{"$f":"IF(OR(D646=\"\",E646=\"\",F646=\"\"),\"\",IF(AND(G646>0,G646<=CapFinanciera1),Puntajes!$D$12,IF(AND(G646>CapFinanciera1,G646<=CapFinanciera2),Puntajes!$D$13,IF(AND(G646>CapFinanciera2,G646<=CapFinanciera3),Puntajes!$D$14,IF(AND(G646>CapFinanciera3,G646<=CapFinanciera4),Puntajes!$D$15,IF(G646>CapFinanciera4,Puntajes!$D$16,0))))))","v":""}]
[null,null,59,{"$f":"IF(ISERROR(VLOOKUP(C647,'Capacidad Financiera'!$B$12:$X$62720,2,0)),\"\",VLOOKUP(C647,'Capacidad Financiera'!$B$12:$X$3580,2,0))","v":0},{"$f":"IF(C648=\"\",IF(C647<>\"\",IF(ISERROR(VLOOKUP(D647,'Capacidad Financiera'!$C$12:$H$22,3,0)),\"\",VLOOKUP(D647,'Capacidad Financiera'!$C$12:$H$22,3,0))),\"\")","v":""},{"$f":"IF(C648=\"\",IF(C647<>\"\",IF(ISERROR(VLOOKUP(D647,'Capacidad Financiera'!$C$12:$H$22,5,0)),\"\",VLOOKUP(D647,'Capacidad Financiera'!$C$12:$H$22,5,0))),\"\")","v":""},{"$f":"IF(OR(D647=\"\",E647=\"\",F647=\"\"),\"\",IF(OR(E647=0,F647=0),0,E647/F647))","v":""},{"$f":"IF(C648=\"\",IF(AND(E647=\"\",F647=\"\"),\"\",IF(AND(G647>0,G647<=CapFinanciera1),Puntajes!$D$12,IF(AND(G647>CapFinanciera1,G647<=CapFinanciera2),Puntajes!$D$13,IF(AND(G647>CapFinanciera2,G647<=CapFinanciera3),Puntajes!$D$14,IF(AND(G647>CapFinanciera3,G647<=CapFinanciera4),Puntajes!$D$15,IF(G647>CapFinanciera4,Puntajes!$D$16,0)))))),\"\")","v":""}]
[null,null,{"$f":"+'Capacidad Financiera'!B651","v":""},{"$f":"IF(ISERROR(VLOOKUP(C648,'Capacidad Financiera'!$B$12:$X$62720,2,0)),\"\",VLOOKUP(C648,'Capacidad Financiera'!$B$12:$X$3580,2,0))","v":0},{"$f":"IF(OR(C648=\"\",D648=\"\"),\"\",IF(ISERROR(VLOOKUP(D648,'Capacidad Financiera'!$C$13:$X$62720,3,0)),\"\",VLOOKUP(D648,'Capacidad Financiera'!$C$13:$X$62720,3,0)))","v":""},{"$f":"IF(OR(C648=\"\",D648=\"\"),\"\",IF(ISERROR(VLOOKUP(D648,'Capacidad Financiera'!$C$13:$X$62720,5,0)),\"\",VLOOKUP(D648,'Capacidad Financiera'!$C$13:$X$62720,5,0)))","v":""},{"$f":"IF(OR(D648=\"\",E648=\"\",F648=\"\"),\"\",IF(OR(E648=0,F648=0),0,E648/F648))","v":""},{"$f":"IF(OR(D648=\"\",E648=\"\",F648=\"\"),\"\",IF(AND(G648>0,G648<=CapFinanciera1),Puntajes!$D$12,IF(AND(G648>CapFinanciera1,G648<=CapFinanciera2),Puntajes!$D$13,IF(AND(G648>CapFinanciera2,G648<=CapFinanciera3),Puntajes!$D$14,IF(AND(G648>CapFinanciera3,G648<=CapFinanciera4),Puntajes!$D$15,IF(G648>CapFinanciera4,Puntajes!$D$16,0))))))","v":""}]
[null,null,{"$f":"+'Capacidad Financiera'!B652","v":""},{"$f":"IF(ISERROR(VLOOKUP(C649,'Capacidad Financiera'!$B$12:$X$62720,2,0)),\"\",VLOOKUP(C649,'Capacidad Financiera'!$B$12:$X$3580,2,0))","v":0},{"$f":"IF(OR(C649=\"\",D649=\"\"),\"\",IF(ISERROR(VLOOKUP(D649,'Capacidad Financiera'!$C$13:$X$62720,3,0)),\"\",VLOOKUP(D649,'Capacidad Financiera'!$C$13:$X$62720,3,0)))","v":""},{"$f":"IF(OR(C649=\"\",D649=\"\"),\"\",IF(ISERROR(VLOOKUP(D649,'Capacidad Financiera'!$C$13:$X$62720,5,0)),\"\",VLOOKUP(D649,'Capacidad Financiera'!$C$13:$X$62720,5,0)))","v":""},"",{"$f":"IF(OR(D649=\"\",E649=\"\",F649=\"\"),\"\",IF(AND(G649>0,G649<=CapFinanciera1),Puntajes!$D$12,IF(AND(G649>CapFinanciera1,G649<=CapFinanciera2),Puntajes!$D$13,IF(AND(G649>CapFinanciera2,G649<=CapFinanciera3),Puntajes!$D$14,IF(AND(G649>CapFinanciera3,G649<=CapFinanciera4),Puntajes!$D$15,IF(G649>CapFinanciera4,Puntajes!$D$16,0))))))","v":""}]
[null,null,{"$f":"+'Capacidad Financiera'!B653","v":""},{"$f":"IF(ISERROR(VLOOKUP(C650,'Capacidad Financiera'!$B$12:$X$62720,2,0)),\"\",VLOOKUP(C650,'Capacidad Financiera'!$B$12:$X$3580,2,0))","v":0},{"$f":"IF(OR(C650=\"\",D650=\"\"),\"\",IF(ISERROR(VLOOKUP(D650,'Capacidad Financiera'!$C$13:$X$62720,3,0)),\"\",VLOOKUP(D650,'Capacidad Financiera'!$C$13:$X$62720,3,0)))","v":""},{"$f":"IF(OR(C650=\"\",D650=\"\"),\"\",IF(ISERROR(VLOOKUP(D650,'Capacidad Financiera'!$C$13:$X$62720,5,0)),\"\",VLOOKUP(D650,'Capacidad Financiera'!$C$13:$X$62720,5,0)))","v":""},"",{"$f":"IF(OR(D650=\"\",E650=\"\",F650=\"\"),\"\",IF(AND(G650>0,G650<=CapFinanciera1),Puntajes!$D$12,IF(AND(G650>CapFinanciera1,G650<=CapFinanciera2),Puntajes!$D$13,IF(AND(G650>CapFinanciera2,G650<=CapFinanciera3),Puntajes!$D$14,IF(AND(G650>CapFinanciera3,G650<=CapFinanciera4),Puntajes!$D$15,IF(G650>CapFinanciera4,Puntajes!$D$16,0))))))","v":""}]
[null,null,{"$f":"+'Capacidad Financiera'!B654","v":""},{"$f":"IF(ISERROR(VLOOKUP(C651,'Capacidad Financiera'!$B$12:$X$62720,2,0)),\"\",VLOOKUP(C651,'Capacidad Financiera'!$B$12:$X$3580,2,0))","v":0},{"$f":"IF(OR(C651=\"\",D651=\"\"),\"\",IF(ISERROR(VLOOKUP(D651,'Capacidad Financiera'!$C$13:$X$62720,3,0)),\"\",VLOOKUP(D651,'Capacidad Financiera'!$C$13:$X$62720,3,0)))","v":""},{"$f":"IF(OR(C651=\"\",D651=\"\"),\"\",IF(ISERROR(VLOOKUP(D651,'Capacidad Financiera'!$C$13:$X$62720,5,0)),\"\",VLOOKUP(D651,'Capacidad Financiera'!$C$13:$X$62720,5,0)))","v":""},"",{"$f":"IF(OR(D651=\"\",E651=\"\",F651=\"\"),\"\",IF(AND(G651>0,G651<=CapFinanciera1),Puntajes!$D$12,IF(AND(G651>CapFinanciera1,G651<=CapFinanciera2),Puntajes!$D$13,IF(AND(G651>CapFinanciera2,G651<=CapFinanciera3),Puntajes!$D$14,IF(AND(G651>CapFinanciera3,G651<=CapFinanciera4),Puntajes!$D$15,IF(G651>CapFinanciera4,Puntajes!$D$16,0))))))","v":""}]
[null,null,{"$f":"+'Capacidad Financiera'!B655","v":""},{"$f":"IF(ISERROR(VLOOKUP(C652,'Capacidad Financiera'!$B$12:$X$62720,2,0)),\"\",VLOOKUP(C652,'Capacidad Financiera'!$B$12:$X$3580,2,0))","v":0},{"$f":"IF(OR(C652=\"\",D652=\"\"),\"\",IF(ISERROR(VLOOKUP(D652,'Capacidad Financiera'!$C$13:$X$62720,3,0)),\"\",VLOOKUP(D652,'Capacidad Financiera'!$C$13:$X$62720,3,0)))","v":""},{"$f":"IF(OR(C652=\"\",D652=\"\"),\"\",IF(ISERROR(VLOOKUP(D652,'Capacidad Financiera'!$C$13:$X$62720,5,0)),\"\",VLOOKUP(D652,'Capacidad Financiera'!$C$13:$X$62720,5,0)))","v":""},"",{"$f":"IF(OR(D652=\"\",E652=\"\",F652=\"\"),\"\",IF(AND(G652>0,G652<=CapFinanciera1),Puntajes!$D$12,IF(AND(G652>CapFinanciera1,G652<=CapFinanciera2),Puntajes!$D$13,IF(AND(G652>CapFinanciera2,G652<=CapFinanciera3),Puntajes!$D$14,IF(AND(G652>CapFinanciera3,G652<=CapFinanciera4),Puntajes!$D$15,IF(G652>CapFinanciera4,Puntajes!$D$16,0))))))","v":""}]
[null,null,{"$f":"+'Capacidad Financiera'!B656","v":""},{"$f":"IF(ISERROR(VLOOKUP(C653,'Capacidad Financiera'!$B$12:$X$62720,2,0)),\"\",VLOOKUP(C653,'Capacidad Financiera'!$B$12:$X$3580,2,0))","v":0},{"$f":"IF(OR(C653=\"\",D653=\"\"),\"\",IF(ISERROR(VLOOKUP(D653,'Capacidad Financiera'!$C$13:$X$62720,3,0)),\"\",VLOOKUP(D653,'Capacidad Financiera'!$C$13:$X$62720,3,0)))","v":""},{"$f":"IF(OR(C653=\"\",D653=\"\"),\"\",IF(ISERROR(VLOOKUP(D653,'Capacidad Financiera'!$C$13:$X$62720,5,0)),\"\",VLOOKUP(D653,'Capacidad Financiera'!$C$13:$X$62720,5,0)))","v":""},"",{"$f":"IF(OR(D653=\"\",E653=\"\",F653=\"\"),\"\",IF(AND(G653>0,G653<=CapFinanciera1),Puntajes!$D$12,IF(AND(G653>CapFinanciera1,G653<=CapFinanciera2),Puntajes!$D$13,IF(AND(G653>CapFinanciera2,G653<=CapFinanciera3),Puntajes!$D$14,IF(AND(G653>CapFinanciera3,G653<=CapFinanciera4),Puntajes!$D$15,IF(G653>CapFinanciera4,Puntajes!$D$16,0))))))","v":""}]
[null,null,{"$f":"+'Capacidad Financiera'!B657","v":""},{"$f":"IF(ISERROR(VLOOKUP(C654,'Capacidad Financiera'!$B$12:$X$62720,2,0)),\"\",VLOOKUP(C654,'Capacidad Financiera'!$B$12:$X$3580,2,0))","v":0},{"$f":"IF(OR(C654=\"\",D654=\"\"),\"\",IF(ISERROR(VLOOKUP(D654,'Capacidad Financiera'!$C$13:$X$62720,3,0)),\"\",VLOOKUP(D654,'Capacidad Financiera'!$C$13:$X$62720,3,0)))","v":""},{"$f":"IF(OR(C654=\"\",D654=\"\"),\"\",IF(ISERROR(VLOOKUP(D654,'Capacidad Financiera'!$C$13:$X$62720,5,0)),\"\",VLOOKUP(D654,'Capacidad Financiera'!$C$13:$X$62720,5,0)))","v":""},"",{"$f":"IF(OR(D654=\"\",E654=\"\",F654=\"\"),\"\",IF(AND(G654>0,G654<=CapFinanciera1),Puntajes!$D$12,IF(AND(G654>CapFinanciera1,G654<=CapFinanciera2),Puntajes!$D$13,IF(AND(G654>CapFinanciera2,G654<=CapFinanciera3),Puntajes!$D$14,IF(AND(G654>CapFinanciera3,G654<=CapFinanciera4),Puntajes!$D$15,IF(G654>CapFinanciera4,Puntajes!$D$16,0))))))","v":""}]
[null,null,{"$f":"+'Capacidad Financiera'!B658","v":""},{"$f":"IF(ISERROR(VLOOKUP(C655,'Capacidad Financiera'!$B$12:$X$62720,2,0)),\"\",VLOOKUP(C655,'Capacidad Financiera'!$B$12:$X$3580,2,0))","v":0},{"$f":"IF(OR(C655=\"\",D655=\"\"),\"\",IF(ISERROR(VLOOKUP(D655,'Capacidad Financiera'!$C$13:$X$62720,3,0)),\"\",VLOOKUP(D655,'Capacidad Financiera'!$C$13:$X$62720,3,0)))","v":""},{"$f":"IF(OR(C655=\"\",D655=\"\"),\"\",IF(ISERROR(VLOOKUP(D655,'Capacidad Financiera'!$C$13:$X$62720,5,0)),\"\",VLOOKUP(D655,'Capacidad Financiera'!$C$13:$X$62720,5,0)))","v":""},"",{"$f":"IF(OR(D655=\"\",E655=\"\",F655=\"\"),\"\",IF(AND(G655>0,G655<=CapFinanciera1),Puntajes!$D$12,IF(AND(G655>CapFinanciera1,G655<=CapFinanciera2),Puntajes!$D$13,IF(AND(G655>CapFinanciera2,G655<=CapFinanciera3),Puntajes!$D$14,IF(AND(G655>CapFinanciera3,G655<=CapFinanciera4),Puntajes!$D$15,IF(G655>CapFinanciera4,Puntajes!$D$16,0))))))","v":""}]
[null,null,{"$f":"+'Capacidad Financiera'!B659","v":""},{"$f":"IF(ISERROR(VLOOKUP(C656,'Capacidad Financiera'!$B$12:$X$62720,2,0)),\"\",VLOOKUP(C656,'Capacidad Financiera'!$B$12:$X$3580,2,0))","v":0},{"$f":"IF(OR(C656=\"\",D656=\"\"),\"\",IF(ISERROR(VLOOKUP(D656,'Capacidad Financiera'!$C$13:$X$62720,3,0)),\"\",VLOOKUP(D656,'Capacidad Financiera'!$C$13:$X$62720,3,0)))","v":""},{"$f":"IF(OR(C656=\"\",D656=\"\"),\"\",IF(ISERROR(VLOOKUP(D656,'Capacidad Financiera'!$C$13:$X$62720,5,0)),\"\",VLOOKUP(D656,'Capacidad Financiera'!$C$13:$X$62720,5,0)))","v":""},"",{"$f":"IF(OR(D656=\"\",E656=\"\",F656=\"\"),\"\",IF(AND(G656>0,G656<=CapFinanciera1),Puntajes!$D$12,IF(AND(G656>CapFinanciera1,G656<=CapFinanciera2),Puntajes!$D$13,IF(AND(G656>CapFinanciera2,G656<=CapFinanciera3),Puntajes!$D$14,IF(AND(G656>CapFinanciera3,G656<=CapFinanciera4),Puntajes!$D$15,IF(G656>CapFinanciera4,Puntajes!$D$16,0))))))","v":""}]
[null,null,{"$f":"+'Capacidad Financiera'!B660","v":""},{"$f":"IF(ISERROR(VLOOKUP(C657,'Capacidad Financiera'!$B$12:$X$62720,2,0)),\"\",VLOOKUP(C657,'Capacidad Financiera'!$B$12:$X$3580,2,0))","v":0},{"$f":"IF(OR(C657=\"\",D657=\"\"),\"\",IF(ISERROR(VLOOKUP(D657,'Capacidad Financiera'!$C$13:$X$62720,3,0)),\"\",VLOOKUP(D657,'Capacidad Financiera'!$C$13:$X$62720,3,0)))","v":""},{"$f":"IF(OR(C657=\"\",D657=\"\"),\"\",IF(ISERROR(VLOOKUP(D657,'Capacidad Financiera'!$C$13:$X$62720,5,0)),\"\",VLOOKUP(D657,'Capacidad Financiera'!$C$13:$X$62720,5,0)))","v":""},"",{"$f":"IF(OR(D657=\"\",E657=\"\",F657=\"\"),\"\",IF(AND(G657>0,G657<=CapFinanciera1),Puntajes!$D$12,IF(AND(G657>CapFinanciera1,G657<=CapFinanciera2),Puntajes!$D$13,IF(AND(G657>CapFinanciera2,G657<=CapFinanciera3),Puntajes!$D$14,IF(AND(G657>CapFinanciera3,G657<=CapFinanciera4),Puntajes!$D$15,IF(G657>CapFinanciera4,Puntajes!$D$16,0))))))","v":""}]
[null,null,60,{"$f":"IF(ISERROR(VLOOKUP(C658,'Capacidad Financiera'!$B$12:$X$62720,2,0)),\"\",VLOOKUP(C658,'Capacidad Financiera'!$B$12:$X$3580,2,0))","v":0},{"$f":"IF(C659=\"\",IF(C658<>\"\",IF(ISERROR(VLOOKUP(D658,'Capacidad Financiera'!$C$12:$H$22,3,0)),\"\",VLOOKUP(D658,'Capacidad Financiera'!$C$12:$H$22,3,0))),\"\")","v":""},{"$f":"IF(C659=\"\",IF(C658<>\"\",IF(ISERROR(VLOOKUP(D658,'Capacidad Financiera'!$C$12:$H$22,5,0)),\"\",VLOOKUP(D658,'Capacidad Financiera'!$C$12:$H$22,5,0))),\"\")","v":""},{"$f":"IF(OR(D658=\"\",E658=\"\",F658=\"\"),\"\",IF(OR(E658=0,F658=0),0,E658/F658))","v":""},{"$f":"IF(C659=\"\",IF(AND(E658=\"\",F658=\"\"),\"\",IF(AND(G658>0,G658<=CapFinanciera1),Puntajes!$D$12,IF(AND(G658>CapFinanciera1,G658<=CapFinanciera2),Puntajes!$D$13,IF(AND(G658>CapFinanciera2,G658<=CapFinanciera3),Puntajes!$D$14,IF(AND(G658>CapFinanciera3,G658<=CapFinanciera4),Puntajes!$D$15,IF(G658>CapFinanciera4,Puntajes!$D$16,0)))))),\"\")","v":""}]
[null,null,{"$f":"+'Capacidad Financiera'!B662","v":""},{"$f":"IF(ISERROR(VLOOKUP(C659,'Capacidad Financiera'!$B$12:$X$62720,2,0)),\"\",VLOOKUP(C659,'Capacidad Financiera'!$B$12:$X$3580,2,0))","v":0},{"$f":"IF(OR(C659=\"\",D659=\"\"),\"\",IF(ISERROR(VLOOKUP(D659,'Capacidad Financiera'!$C$13:$X$62720,3,0)),\"\",VLOOKUP(D659,'Capacidad Financiera'!$C$13:$X$62720,3,0)))","v":""},{"$f":"IF(OR(C659=\"\",D659=\"\"),\"\",IF(ISERROR(VLOOKUP(D659,'Capacidad Financiera'!$C$13:$X$62720,5,0)),\"\",VLOOKUP(D659,'Capacidad Financiera'!$C$13:$X$62720,5,0)))","v":""},{"$f":"IF(OR(D659=\"\",E659=\"\",F659=\"\"),\"\",IF(OR(E659=0,F659=0),0,E659/F659))","v":""},{"$f":"IF(OR(D659=\"\",E659=\"\",F659=\"\"),\"\",IF(AND(G659>0,G659<=CapFinanciera1),Puntajes!$D$12,IF(AND(G659>CapFinanciera1,G659<=CapFinanciera2),Puntajes!$D$13,IF(AND(G659>CapFinanciera2,G659<=CapFinanciera3),Puntajes!$D$14,IF(AND(G659>CapFinanciera3,G659<=CapFinanciera4),Puntajes!$D$15,IF(G659>CapFinanciera4,Puntajes!$D$16,0))))))","v":""}]
[null,null,{"$f":"+'Capacidad Financiera'!B663","v":""},{"$f":"IF(ISERROR(VLOOKUP(C660,'Capacidad Financiera'!$B$12:$X$62720,2,0)),\"\",VLOOKUP(C660,'Capacidad Financiera'!$B$12:$X$3580,2,0))","v":0},{"$f":"IF(OR(C660=\"\",D660=\"\"),\"\",IF(ISERROR(VLOOKUP(D660,'Capacidad Financiera'!$C$13:$X$62720,3,0)),\"\",VLOOKUP(D660,'Capacidad Financiera'!$C$13:$X$62720,3,0)))","v":""},{"$f":"IF(OR(C660=\"\",D660=\"\"),\"\",IF(ISERROR(VLOOKUP(D660,'Capacidad Financiera'!$C$13:$X$62720,5,0)),\"\",VLOOKUP(D660,'Capacidad Financiera'!$C$13:$X$62720,5,0)))","v":""},"",{"$f":"IF(OR(D660=\"\",E660=\"\",F660=\"\"),\"\",IF(AND(G660>0,G660<=CapFinanciera1),Puntajes!$D$12,IF(AND(G660>CapFinanciera1,G660<=CapFinanciera2),Puntajes!$D$13,IF(AND(G660>CapFinanciera2,G660<=CapFinanciera3),Puntajes!$D$14,IF(AND(G660>CapFinanciera3,G660<=CapFinanciera4),Puntajes!$D$15,IF(G660>CapFinanciera4,Puntajes!$D$16,0))))))","v":""}]
[null,null,{"$f":"+'Capacidad Financiera'!B664","v":""},{"$f":"IF(ISERROR(VLOOKUP(C661,'Capacidad Financiera'!$B$12:$X$62720,2,0)),\"\",VLOOKUP(C661,'Capacidad Financiera'!$B$12:$X$3580,2,0))","v":0},{"$f":"IF(OR(C661=\"\",D661=\"\"),\"\",IF(ISERROR(VLOOKUP(D661,'Capacidad Financiera'!$C$13:$X$62720,3,0)),\"\",VLOOKUP(D661,'Capacidad Financiera'!$C$13:$X$62720,3,0)))","v":""},{"$f":"IF(OR(C661=\"\",D661=\"\"),\"\",IF(ISERROR(VLOOKUP(D661,'Capacidad Financiera'!$C$13:$X$62720,5,0)),\"\",VLOOKUP(D661,'Capacidad Financiera'!$C$13:$X$62720,5,0)))","v":""},"",{"$f":"IF(OR(D661=\"\",E661=\"\",F661=\"\"),\"\",IF(AND(G661>0,G661<=CapFinanciera1),Puntajes!$D$12,IF(AND(G661>CapFinanciera1,G661<=CapFinanciera2),Puntajes!$D$13,IF(AND(G661>CapFinanciera2,G661<=CapFinanciera3),Puntajes!$D$14,IF(AND(G661>CapFinanciera3,G661<=CapFinanciera4),Puntajes!$D$15,IF(G661>CapFinanciera4,Puntajes!$D$16,0))))))","v":""}]
[null,null,{"$f":"+'Capacidad Financiera'!B665","v":""},{"$f":"IF(ISERROR(VLOOKUP(C662,'Capacidad Financiera'!$B$12:$X$62720,2,0)),\"\",VLOOKUP(C662,'Capacidad Financiera'!$B$12:$X$3580,2,0))","v":0},{"$f":"IF(OR(C662=\"\",D662=\"\"),\"\",IF(ISERROR(VLOOKUP(D662,'Capacidad Financiera'!$C$13:$X$62720,3,0)),\"\",VLOOKUP(D662,'Capacidad Financiera'!$C$13:$X$62720,3,0)))","v":""},{"$f":"IF(OR(C662=\"\",D662=\"\"),\"\",IF(ISERROR(VLOOKUP(D662,'Capacidad Financiera'!$C$13:$X$62720,5,0)),\"\",VLOOKUP(D662,'Capacidad Financiera'!$C$13:$X$62720,5,0)))","v":""},"",{"$f":"IF(OR(D662=\"\",E662=\"\",F662=\"\"),\"\",IF(AND(G662>0,G662<=CapFinanciera1),Puntajes!$D$12,IF(AND(G662>CapFinanciera1,G662<=CapFinanciera2),Puntajes!$D$13,IF(AND(G662>CapFinanciera2,G662<=CapFinanciera3),Puntajes!$D$14,IF(AND(G662>CapFinanciera3,G662<=CapFinanciera4),Puntajes!$D$15,IF(G662>CapFinanciera4,Puntajes!$D$16,0))))))","v":""}]
[null,null,{"$f":"+'Capacidad Financiera'!B666","v":""},{"$f":"IF(ISERROR(VLOOKUP(C663,'Capacidad Financiera'!$B$12:$X$62720,2,0)),\"\",VLOOKUP(C663,'Capacidad Financiera'!$B$12:$X$3580,2,0))","v":0},{"$f":"IF(OR(C663=\"\",D663=\"\"),\"\",IF(ISERROR(VLOOKUP(D663,'Capacidad Financiera'!$C$13:$X$62720,3,0)),\"\",VLOOKUP(D663,'Capacidad Financiera'!$C$13:$X$62720,3,0)))","v":""},{"$f":"IF(OR(C663=\"\",D663=\"\"),\"\",IF(ISERROR(VLOOKUP(D663,'Capacidad Financiera'!$C$13:$X$62720,5,0)),\"\",VLOOKUP(D663,'Capacidad Financiera'!$C$13:$X$62720,5,0)))","v":""},"",{"$f":"IF(OR(D663=\"\",E663=\"\",F663=\"\"),\"\",IF(AND(G663>0,G663<=CapFinanciera1),Puntajes!$D$12,IF(AND(G663>CapFinanciera1,G663<=CapFinanciera2),Puntajes!$D$13,IF(AND(G663>CapFinanciera2,G663<=CapFinanciera3),Puntajes!$D$14,IF(AND(G663>CapFinanciera3,G663<=CapFinanciera4),Puntajes!$D$15,IF(G663>CapFinanciera4,Puntajes!$D$16,0))))))","v":""}]
[null,null,{"$f":"+'Capacidad Financiera'!B667","v":""},{"$f":"IF(ISERROR(VLOOKUP(C664,'Capacidad Financiera'!$B$12:$X$62720,2,0)),\"\",VLOOKUP(C664,'Capacidad Financiera'!$B$12:$X$3580,2,0))","v":0},{"$f":"IF(OR(C664=\"\",D664=\"\"),\"\",IF(ISERROR(VLOOKUP(D664,'Capacidad Financiera'!$C$13:$X$62720,3,0)),\"\",VLOOKUP(D664,'Capacidad Financiera'!$C$13:$X$62720,3,0)))","v":""},{"$f":"IF(OR(C664=\"\",D664=\"\"),\"\",IF(ISERROR(VLOOKUP(D664,'Capacidad Financiera'!$C$13:$X$62720,5,0)),\"\",VLOOKUP(D664,'Capacidad Financiera'!$C$13:$X$62720,5,0)))","v":""},"",{"$f":"IF(OR(D664=\"\",E664=\"\",F664=\"\"),\"\",IF(AND(G664>0,G664<=CapFinanciera1),Puntajes!$D$12,IF(AND(G664>CapFinanciera1,G664<=CapFinanciera2),Puntajes!$D$13,IF(AND(G664>CapFinanciera2,G664<=CapFinanciera3),Puntajes!$D$14,IF(AND(G664>CapFinanciera3,G664<=CapFinanciera4),Puntajes!$D$15,IF(G664>CapFinanciera4,Puntajes!$D$16,0))))))","v":""}]
[null,null,{"$f":"+'Capacidad Financiera'!B668","v":""},{"$f":"IF(ISERROR(VLOOKUP(C665,'Capacidad Financiera'!$B$12:$X$62720,2,0)),\"\",VLOOKUP(C665,'Capacidad Financiera'!$B$12:$X$3580,2,0))","v":0},{"$f":"IF(OR(C665=\"\",D665=\"\"),\"\",IF(ISERROR(VLOOKUP(D665,'Capacidad Financiera'!$C$13:$X$62720,3,0)),\"\",VLOOKUP(D665,'Capacidad Financiera'!$C$13:$X$62720,3,0)))","v":""},{"$f":"IF(OR(C665=\"\",D665=\"\"),\"\",IF(ISERROR(VLOOKUP(D665,'Capacidad Financiera'!$C$13:$X$62720,5,0)),\"\",VLOOKUP(D665,'Capacidad Financiera'!$C$13:$X$62720,5,0)))","v":""},"",{"$f":"IF(OR(D665=\"\",E665=\"\",F665=\"\"),\"\",IF(AND(G665>0,G665<=CapFinanciera1),Puntajes!$D$12,IF(AND(G665>CapFinanciera1,G665<=CapFinanciera2),Puntajes!$D$13,IF(AND(G665>CapFinanciera2,G665<=CapFinanciera3),Puntajes!$D$14,IF(AND(G665>CapFinanciera3,G665<=CapFinanciera4),Puntajes!$D$15,IF(G665>CapFinanciera4,Puntajes!$D$16,0))))))","v":""}]
[null,null,{"$f":"+'Capacidad Financiera'!B669","v":""},{"$f":"IF(ISERROR(VLOOKUP(C666,'Capacidad Financiera'!$B$12:$X$62720,2,0)),\"\",VLOOKUP(C666,'Capacidad Financiera'!$B$12:$X$3580,2,0))","v":0},{"$f":"IF(OR(C666=\"\",D666=\"\"),\"\",IF(ISERROR(VLOOKUP(D666,'Capacidad Financiera'!$C$13:$X$62720,3,0)),\"\",VLOOKUP(D666,'Capacidad Financiera'!$C$13:$X$62720,3,0)))","v":""},{"$f":"IF(OR(C666=\"\",D666=\"\"),\"\",IF(ISERROR(VLOOKUP(D666,'Capacidad Financiera'!$C$13:$X$62720,5,0)),\"\",VLOOKUP(D666,'Capacidad Financiera'!$C$13:$X$62720,5,0)))","v":""},"",{"$f":"IF(OR(D666=\"\",E666=\"\",F666=\"\"),\"\",IF(AND(G666>0,G666<=CapFinanciera1),Puntajes!$D$12,IF(AND(G666>CapFinanciera1,G666<=CapFinanciera2),Puntajes!$D$13,IF(AND(G666>CapFinanciera2,G666<=CapFinanciera3),Puntajes!$D$14,IF(AND(G666>CapFinanciera3,G666<=CapFinanciera4),Puntajes!$D$15,IF(G666>CapFinanciera4,Puntajes!$D$16,0))))))","v":""}]
[null,null,{"$f":"+'Capacidad Financiera'!B670","v":""},{"$f":"IF(ISERROR(VLOOKUP(C667,'Capacidad Financiera'!$B$12:$X$62720,2,0)),\"\",VLOOKUP(C667,'Capacidad Financiera'!$B$12:$X$3580,2,0))","v":0},{"$f":"IF(OR(C667=\"\",D667=\"\"),\"\",IF(ISERROR(VLOOKUP(D667,'Capacidad Financiera'!$C$13:$X$62720,3,0)),\"\",VLOOKUP(D667,'Capacidad Financiera'!$C$13:$X$62720,3,0)))","v":""},{"$f":"IF(OR(C667=\"\",D667=\"\"),\"\",IF(ISERROR(VLOOKUP(D667,'Capacidad Financiera'!$C$13:$X$62720,5,0)),\"\",VLOOKUP(D667,'Capacidad Financiera'!$C$13:$X$62720,5,0)))","v":""},"",{"$f":"IF(OR(D667=\"\",E667=\"\",F667=\"\"),\"\",IF(AND(G667>0,G667<=CapFinanciera1),Puntajes!$D$12,IF(AND(G667>CapFinanciera1,G667<=CapFinanciera2),Puntajes!$D$13,IF(AND(G667>CapFinanciera2,G667<=CapFinanciera3),Puntajes!$D$14,IF(AND(G667>CapFinanciera3,G667<=CapFinanciera4),Puntajes!$D$15,IF(G667>CapFinanciera4,Puntajes!$D$16,0))))))","v":""}]
[null,null,{"$f":"+'Capacidad Financiera'!B671","v":""},{"$f":"IF(ISERROR(VLOOKUP(C668,'Capacidad Financiera'!$B$12:$X$62720,2,0)),\"\",VLOOKUP(C668,'Capacidad Financiera'!$B$12:$X$3580,2,0))","v":0},{"$f":"IF(OR(C668=\"\",D668=\"\"),\"\",IF(ISERROR(VLOOKUP(D668,'Capacidad Financiera'!$C$13:$X$62720,3,0)),\"\",VLOOKUP(D668,'Capacidad Financiera'!$C$13:$X$62720,3,0)))","v":""},{"$f":"IF(OR(C668=\"\",D668=\"\"),\"\",IF(ISERROR(VLOOKUP(D668,'Capacidad Financiera'!$C$13:$X$62720,5,0)),\"\",VLOOKUP(D668,'Capacidad Financiera'!$C$13:$X$62720,5,0)))","v":""},"",{"$f":"IF(OR(D668=\"\",E668=\"\",F668=\"\"),\"\",IF(AND(G668>0,G668<=CapFinanciera1),Puntajes!$D$12,IF(AND(G668>CapFinanciera1,G668<=CapFinanciera2),Puntajes!$D$13,IF(AND(G668>CapFinanciera2,G668<=CapFinanciera3),Puntajes!$D$14,IF(AND(G668>CapFinanciera3,G668<=CapFinanciera4),Puntajes!$D$15,IF(G668>CapFinanciera4,Puntajes!$D$16,0))))))","v":""}]
[null,null,61,{"$f":"IF(ISERROR(VLOOKUP(C669,'Capacidad Financiera'!$B$12:$X$62720,2,0)),\"\",VLOOKUP(C669,'Capacidad Financiera'!$B$12:$X$3580,2,0))","v":0},{"$f":"IF(C670=\"\",IF(C669<>\"\",IF(ISERROR(VLOOKUP(D669,'Capacidad Financiera'!$C$12:$H$22,3,0)),\"\",VLOOKUP(D669,'Capacidad Financiera'!$C$12:$H$22,3,0))),\"\")","v":""},{"$f":"IF(C670=\"\",IF(C669<>\"\",IF(ISERROR(VLOOKUP(D669,'Capacidad Financiera'!$C$12:$H$22,5,0)),\"\",VLOOKUP(D669,'Capacidad Financiera'!$C$12:$H$22,5,0))),\"\")","v":""},{"$f":"IF(OR(D669=\"\",E669=\"\",F669=\"\"),\"\",IF(OR(E669=0,F669=0),0,E669/F669))","v":""},{"$f":"IF(C670=\"\",IF(AND(E669=\"\",F669=\"\"),\"\",IF(AND(G669>0,G669<=CapFinanciera1),Puntajes!$D$12,IF(AND(G669>CapFinanciera1,G669<=CapFinanciera2),Puntajes!$D$13,IF(AND(G669>CapFinanciera2,G669<=CapFinanciera3),Puntajes!$D$14,IF(AND(G669>CapFinanciera3,G669<=CapFinanciera4),Puntajes!$D$15,IF(G669>CapFinanciera4,Puntajes!$D$16,0)))))),\"\")","v":""}]
[null,null,{"$f":"+'Capacidad Financiera'!B673","v":""},{"$f":"IF(ISERROR(VLOOKUP(C670,'Capacidad Financiera'!$B$12:$X$62720,2,0)),\"\",VLOOKUP(C670,'Capacidad Financiera'!$B$12:$X$3580,2,0))","v":0},{"$f":"IF(OR(C670=\"\",D670=\"\"),\"\",IF(ISERROR(VLOOKUP(D670,'Capacidad Financiera'!$C$13:$X$62720,3,0)),\"\",VLOOKUP(D670,'Capacidad Financiera'!$C$13:$X$62720,3,0)))","v":""},{"$f":"IF(OR(C670=\"\",D670=\"\"),\"\",IF(ISERROR(VLOOKUP(D670,'Capacidad Financiera'!$C$13:$X$62720,5,0)),\"\",VLOOKUP(D670,'Capacidad Financiera'!$C$13:$X$62720,5,0)))","v":""},{"$f":"IF(OR(D670=\"\",E670=\"\",F670=\"\"),\"\",IF(OR(E670=0,F670=0),0,E670/F670))","v":""},{"$f":"IF(OR(D670=\"\",E670=\"\",F670=\"\"),\"\",IF(AND(G670>0,G670<=CapFinanciera1),Puntajes!$D$12,IF(AND(G670>CapFinanciera1,G670<=CapFinanciera2),Puntajes!$D$13,IF(AND(G670>CapFinanciera2,G670<=CapFinanciera3),Puntajes!$D$14,IF(AND(G670>CapFinanciera3,G670<=CapFinanciera4),Puntajes!$D$15,IF(G670>CapFinanciera4,Puntajes!$D$16,0))))))","v":""}]
[null,null,{"$f":"+'Capacidad Financiera'!B674","v":""},{"$f":"IF(ISERROR(VLOOKUP(C671,'Capacidad Financiera'!$B$12:$X$62720,2,0)),\"\",VLOOKUP(C671,'Capacidad Financiera'!$B$12:$X$3580,2,0))","v":0},{"$f":"IF(OR(C671=\"\",D671=\"\"),\"\",IF(ISERROR(VLOOKUP(D671,'Capacidad Financiera'!$C$13:$X$62720,3,0)),\"\",VLOOKUP(D671,'Capacidad Financiera'!$C$13:$X$62720,3,0)))","v":""},{"$f":"IF(OR(C671=\"\",D671=\"\"),\"\",IF(ISERROR(VLOOKUP(D671,'Capacidad Financiera'!$C$13:$X$62720,5,0)),\"\",VLOOKUP(D671,'Capacidad Financiera'!$C$13:$X$62720,5,0)))","v":""},"",{"$f":"IF(OR(D671=\"\",E671=\"\",F671=\"\"),\"\",IF(AND(G671>0,G671<=CapFinanciera1),Puntajes!$D$12,IF(AND(G671>CapFinanciera1,G671<=CapFinanciera2),Puntajes!$D$13,IF(AND(G671>CapFinanciera2,G671<=CapFinanciera3),Puntajes!$D$14,IF(AND(G671>CapFinanciera3,G671<=CapFinanciera4),Puntajes!$D$15,IF(G671>CapFinanciera4,Puntajes!$D$16,0))))))","v":""}]
[null,null,{"$f":"+'Capacidad Financiera'!B675","v":""},{"$f":"IF(ISERROR(VLOOKUP(C672,'Capacidad Financiera'!$B$12:$X$62720,2,0)),\"\",VLOOKUP(C672,'Capacidad Financiera'!$B$12:$X$3580,2,0))","v":0},{"$f":"IF(OR(C672=\"\",D672=\"\"),\"\",IF(ISERROR(VLOOKUP(D672,'Capacidad Financiera'!$C$13:$X$62720,3,0)),\"\",VLOOKUP(D672,'Capacidad Financiera'!$C$13:$X$62720,3,0)))","v":""},{"$f":"IF(OR(C672=\"\",D672=\"\"),\"\",IF(ISERROR(VLOOKUP(D672,'Capacidad Financiera'!$C$13:$X$62720,5,0)),\"\",VLOOKUP(D672,'Capacidad Financiera'!$C$13:$X$62720,5,0)))","v":""},"",{"$f":"IF(OR(D672=\"\",E672=\"\",F672=\"\"),\"\",IF(AND(G672>0,G672<=CapFinanciera1),Puntajes!$D$12,IF(AND(G672>CapFinanciera1,G672<=CapFinanciera2),Puntajes!$D$13,IF(AND(G672>CapFinanciera2,G672<=CapFinanciera3),Puntajes!$D$14,IF(AND(G672>CapFinanciera3,G672<=CapFinanciera4),Puntajes!$D$15,IF(G672>CapFinanciera4,Puntajes!$D$16,0))))))","v":""}]
[null,null,{"$f":"+'Capacidad Financiera'!B676","v":""},{"$f":"IF(ISERROR(VLOOKUP(C673,'Capacidad Financiera'!$B$12:$X$62720,2,0)),\"\",VLOOKUP(C673,'Capacidad Financiera'!$B$12:$X$3580,2,0))","v":0},{"$f":"IF(OR(C673=\"\",D673=\"\"),\"\",IF(ISERROR(VLOOKUP(D673,'Capacidad Financiera'!$C$13:$X$62720,3,0)),\"\",VLOOKUP(D673,'Capacidad Financiera'!$C$13:$X$62720,3,0)))","v":""},{"$f":"IF(OR(C673=\"\",D673=\"\"),\"\",IF(ISERROR(VLOOKUP(D673,'Capacidad Financiera'!$C$13:$X$62720,5,0)),\"\",VLOOKUP(D673,'Capacidad Financiera'!$C$13:$X$62720,5,0)))","v":""},"",{"$f":"IF(OR(D673=\"\",E673=\"\",F673=\"\"),\"\",IF(AND(G673>0,G673<=CapFinanciera1),Puntajes!$D$12,IF(AND(G673>CapFinanciera1,G673<=CapFinanciera2),Puntajes!$D$13,IF(AND(G673>CapFinanciera2,G673<=CapFinanciera3),Puntajes!$D$14,IF(AND(G673>CapFinanciera3,G673<=CapFinanciera4),Puntajes!$D$15,IF(G673>CapFinanciera4,Puntajes!$D$16,0))))))","v":""}]
[null,null,{"$f":"+'Capacidad Financiera'!B677","v":""},{"$f":"IF(ISERROR(VLOOKUP(C674,'Capacidad Financiera'!$B$12:$X$62720,2,0)),\"\",VLOOKUP(C674,'Capacidad Financiera'!$B$12:$X$3580,2,0))","v":0},{"$f":"IF(OR(C674=\"\",D674=\"\"),\"\",IF(ISERROR(VLOOKUP(D674,'Capacidad Financiera'!$C$13:$X$62720,3,0)),\"\",VLOOKUP(D674,'Capacidad Financiera'!$C$13:$X$62720,3,0)))","v":""},{"$f":"IF(OR(C674=\"\",D674=\"\"),\"\",IF(ISERROR(VLOOKUP(D674,'Capacidad Financiera'!$C$13:$X$62720,5,0)),\"\",VLOOKUP(D674,'Capacidad Financiera'!$C$13:$X$62720,5,0)))","v":""},"",{"$f":"IF(OR(D674=\"\",E674=\"\",F674=\"\"),\"\",IF(AND(G674>0,G674<=CapFinanciera1),Puntajes!$D$12,IF(AND(G674>CapFinanciera1,G674<=CapFinanciera2),Puntajes!$D$13,IF(AND(G674>CapFinanciera2,G674<=CapFinanciera3),Puntajes!$D$14,IF(AND(G674>CapFinanciera3,G674<=CapFinanciera4),Puntajes!$D$15,IF(G674>CapFinanciera4,Puntajes!$D$16,0))))))","v":""}]
[null,null,{"$f":"+'Capacidad Financiera'!B678","v":""},{"$f":"IF(ISERROR(VLOOKUP(C675,'Capacidad Financiera'!$B$12:$X$62720,2,0)),\"\",VLOOKUP(C675,'Capacidad Financiera'!$B$12:$X$3580,2,0))","v":0},{"$f":"IF(OR(C675=\"\",D675=\"\"),\"\",IF(ISERROR(VLOOKUP(D675,'Capacidad Financiera'!$C$13:$X$62720,3,0)),\"\",VLOOKUP(D675,'Capacidad Financiera'!$C$13:$X$62720,3,0)))","v":""},{"$f":"IF(OR(C675=\"\",D675=\"\"),\"\",IF(ISERROR(VLOOKUP(D675,'Capacidad Financiera'!$C$13:$X$62720,5,0)),\"\",VLOOKUP(D675,'Capacidad Financiera'!$C$13:$X$62720,5,0)))","v":""},"",{"$f":"IF(OR(D675=\"\",E675=\"\",F675=\"\"),\"\",IF(AND(G675>0,G675<=CapFinanciera1),Puntajes!$D$12,IF(AND(G675>CapFinanciera1,G675<=CapFinanciera2),Puntajes!$D$13,IF(AND(G675>CapFinanciera2,G675<=CapFinanciera3),Puntajes!$D$14,IF(AND(G675>CapFinanciera3,G675<=CapFinanciera4),Puntajes!$D$15,IF(G675>CapFinanciera4,Puntajes!$D$16,0))))))","v":""}]
[null,null,{"$f":"+'Capacidad Financiera'!B679","v":""},{"$f":"IF(ISERROR(VLOOKUP(C676,'Capacidad Financiera'!$B$12:$X$62720,2,0)),\"\",VLOOKUP(C676,'Capacidad Financiera'!$B$12:$X$3580,2,0))","v":0},{"$f":"IF(OR(C676=\"\",D676=\"\"),\"\",IF(ISERROR(VLOOKUP(D676,'Capacidad Financiera'!$C$13:$X$62720,3,0)),\"\",VLOOKUP(D676,'Capacidad Financiera'!$C$13:$X$62720,3,0)))","v":""},{"$f":"IF(OR(C676=\"\",D676=\"\"),\"\",IF(ISERROR(VLOOKUP(D676,'Capacidad Financiera'!$C$13:$X$62720,5,0)),\"\",VLOOKUP(D676,'Capacidad Financiera'!$C$13:$X$62720,5,0)))","v":""},"",{"$f":"IF(OR(D676=\"\",E676=\"\",F676=\"\"),\"\",IF(AND(G676>0,G676<=CapFinanciera1),Puntajes!$D$12,IF(AND(G676>CapFinanciera1,G676<=CapFinanciera2),Puntajes!$D$13,IF(AND(G676>CapFinanciera2,G676<=CapFinanciera3),Puntajes!$D$14,IF(AND(G676>CapFinanciera3,G676<=CapFinanciera4),Puntajes!$D$15,IF(G676>CapFinanciera4,Puntajes!$D$16,0))))))","v":""}]
[null,null,{"$f":"+'Capacidad Financiera'!B680","v":""},{"$f":"IF(ISERROR(VLOOKUP(C677,'Capacidad Financiera'!$B$12:$X$62720,2,0)),\"\",VLOOKUP(C677,'Capacidad Financiera'!$B$12:$X$3580,2,0))","v":0},{"$f":"IF(OR(C677=\"\",D677=\"\"),\"\",IF(ISERROR(VLOOKUP(D677,'Capacidad Financiera'!$C$13:$X$62720,3,0)),\"\",VLOOKUP(D677,'Capacidad Financiera'!$C$13:$X$62720,3,0)))","v":""},{"$f":"IF(OR(C677=\"\",D677=\"\"),\"\",IF(ISERROR(VLOOKUP(D677,'Capacidad Financiera'!$C$13:$X$62720,5,0)),\"\",VLOOKUP(D677,'Capacidad Financiera'!$C$13:$X$62720,5,0)))","v":""},"",{"$f":"IF(OR(D677=\"\",E677=\"\",F677=\"\"),\"\",IF(AND(G677>0,G677<=CapFinanciera1),Puntajes!$D$12,IF(AND(G677>CapFinanciera1,G677<=CapFinanciera2),Puntajes!$D$13,IF(AND(G677>CapFinanciera2,G677<=CapFinanciera3),Puntajes!$D$14,IF(AND(G677>CapFinanciera3,G677<=CapFinanciera4),Puntajes!$D$15,IF(G677>CapFinanciera4,Puntajes!$D$16,0))))))","v":""}]
[null,null,{"$f":"+'Capacidad Financiera'!B681","v":""},{"$f":"IF(ISERROR(VLOOKUP(C678,'Capacidad Financiera'!$B$12:$X$62720,2,0)),\"\",VLOOKUP(C678,'Capacidad Financiera'!$B$12:$X$3580,2,0))","v":0},{"$f":"IF(OR(C678=\"\",D678=\"\"),\"\",IF(ISERROR(VLOOKUP(D678,'Capacidad Financiera'!$C$13:$X$62720,3,0)),\"\",VLOOKUP(D678,'Capacidad Financiera'!$C$13:$X$62720,3,0)))","v":""},{"$f":"IF(OR(C678=\"\",D678=\"\"),\"\",IF(ISERROR(VLOOKUP(D678,'Capacidad Financiera'!$C$13:$X$62720,5,0)),\"\",VLOOKUP(D678,'Capacidad Financiera'!$C$13:$X$62720,5,0)))","v":""},"",{"$f":"IF(OR(D678=\"\",E678=\"\",F678=\"\"),\"\",IF(AND(G678>0,G678<=CapFinanciera1),Puntajes!$D$12,IF(AND(G678>CapFinanciera1,G678<=CapFinanciera2),Puntajes!$D$13,IF(AND(G678>CapFinanciera2,G678<=CapFinanciera3),Puntajes!$D$14,IF(AND(G678>CapFinanciera3,G678<=CapFinanciera4),Puntajes!$D$15,IF(G678>CapFinanciera4,Puntajes!$D$16,0))))))","v":""}]
[null,null,{"$f":"+'Capacidad Financiera'!B682","v":""},{"$f":"IF(ISERROR(VLOOKUP(C679,'Capacidad Financiera'!$B$12:$X$62720,2,0)),\"\",VLOOKUP(C679,'Capacidad Financiera'!$B$12:$X$3580,2,0))","v":0},{"$f":"IF(OR(C679=\"\",D679=\"\"),\"\",IF(ISERROR(VLOOKUP(D679,'Capacidad Financiera'!$C$13:$X$62720,3,0)),\"\",VLOOKUP(D679,'Capacidad Financiera'!$C$13:$X$62720,3,0)))","v":""},{"$f":"IF(OR(C679=\"\",D679=\"\"),\"\",IF(ISERROR(VLOOKUP(D679,'Capacidad Financiera'!$C$13:$X$62720,5,0)),\"\",VLOOKUP(D679,'Capacidad Financiera'!$C$13:$X$62720,5,0)))","v":""},"",{"$f":"IF(OR(D679=\"\",E679=\"\",F679=\"\"),\"\",IF(AND(G679>0,G679<=CapFinanciera1),Puntajes!$D$12,IF(AND(G679>CapFinanciera1,G679<=CapFinanciera2),Puntajes!$D$13,IF(AND(G679>CapFinanciera2,G679<=CapFinanciera3),Puntajes!$D$14,IF(AND(G679>CapFinanciera3,G679<=CapFinanciera4),Puntajes!$D$15,IF(G679>CapFinanciera4,Puntajes!$D$16,0))))))","v":""}]
[null,null,62,{"$f":"IF(ISERROR(VLOOKUP(C680,'Capacidad Financiera'!$B$12:$X$62720,2,0)),\"\",VLOOKUP(C680,'Capacidad Financiera'!$B$12:$X$3580,2,0))","v":0},{"$f":"IF(C681=\"\",IF(C680<>\"\",IF(ISERROR(VLOOKUP(D680,'Capacidad Financiera'!$C$12:$H$22,3,0)),\"\",VLOOKUP(D680,'Capacidad Financiera'!$C$12:$H$22,3,0))),\"\")","v":""},{"$f":"IF(C681=\"\",IF(C680<>\"\",IF(ISERROR(VLOOKUP(D680,'Capacidad Financiera'!$C$12:$H$22,5,0)),\"\",VLOOKUP(D680,'Capacidad Financiera'!$C$12:$H$22,5,0))),\"\")","v":""},{"$f":"IF(OR(D680=\"\",E680=\"\",F680=\"\"),\"\",IF(OR(E680=0,F680=0),0,E680/F680))","v":""},{"$f":"IF(C681=\"\",IF(AND(E680=\"\",F680=\"\"),\"\",IF(AND(G680>0,G680<=CapFinanciera1),Puntajes!$D$12,IF(AND(G680>CapFinanciera1,G680<=CapFinanciera2),Puntajes!$D$13,IF(AND(G680>CapFinanciera2,G680<=CapFinanciera3),Puntajes!$D$14,IF(AND(G680>CapFinanciera3,G680<=CapFinanciera4),Puntajes!$D$15,IF(G680>CapFinanciera4,Puntajes!$D$16,0)))))),\"\")","v":""}]
[null,null,{"$f":"+'Capacidad Financiera'!B684","v":""},{"$f":"IF(ISERROR(VLOOKUP(C681,'Capacidad Financiera'!$B$12:$X$62720,2,0)),\"\",VLOOKUP(C681,'Capacidad Financiera'!$B$12:$X$3580,2,0))","v":0},{"$f":"IF(OR(C681=\"\",D681=\"\"),\"\",IF(ISERROR(VLOOKUP(D681,'Capacidad Financiera'!$C$13:$X$62720,3,0)),\"\",VLOOKUP(D681,'Capacidad Financiera'!$C$13:$X$62720,3,0)))","v":""},{"$f":"IF(OR(C681=\"\",D681=\"\"),\"\",IF(ISERROR(VLOOKUP(D681,'Capacidad Financiera'!$C$13:$X$62720,5,0)),\"\",VLOOKUP(D681,'Capacidad Financiera'!$C$13:$X$62720,5,0)))","v":""},{"$f":"IF(OR(D681=\"\",E681=\"\",F681=\"\"),\"\",IF(OR(E681=0,F681=0),0,E681/F681))","v":""},{"$f":"IF(OR(D681=\"\",E681=\"\",F681=\"\"),\"\",IF(AND(G681>0,G681<=CapFinanciera1),Puntajes!$D$12,IF(AND(G681>CapFinanciera1,G681<=CapFinanciera2),Puntajes!$D$13,IF(AND(G681>CapFinanciera2,G681<=CapFinanciera3),Puntajes!$D$14,IF(AND(G681>CapFinanciera3,G681<=CapFinanciera4),Puntajes!$D$15,IF(G681>CapFinanciera4,Puntajes!$D$16,0))))))","v":""}]
[null,null,{"$f":"+'Capacidad Financiera'!B685","v":""},{"$f":"IF(ISERROR(VLOOKUP(C682,'Capacidad Financiera'!$B$12:$X$62720,2,0)),\"\",VLOOKUP(C682,'Capacidad Financiera'!$B$12:$X$3580,2,0))","v":0},{"$f":"IF(OR(C682=\"\",D682=\"\"),\"\",IF(ISERROR(VLOOKUP(D682,'Capacidad Financiera'!$C$13:$X$62720,3,0)),\"\",VLOOKUP(D682,'Capacidad Financiera'!$C$13:$X$62720,3,0)))","v":""},{"$f":"IF(OR(C682=\"\",D682=\"\"),\"\",IF(ISERROR(VLOOKUP(D682,'Capacidad Financiera'!$C$13:$X$62720,5,0)),\"\",VLOOKUP(D682,'Capacidad Financiera'!$C$13:$X$62720,5,0)))","v":""},"",{"$f":"IF(OR(D682=\"\",E682=\"\",F682=\"\"),\"\",IF(AND(G682>0,G682<=CapFinanciera1),Puntajes!$D$12,IF(AND(G682>CapFinanciera1,G682<=CapFinanciera2),Puntajes!$D$13,IF(AND(G682>CapFinanciera2,G682<=CapFinanciera3),Puntajes!$D$14,IF(AND(G682>CapFinanciera3,G682<=CapFinanciera4),Puntajes!$D$15,IF(G682>CapFinanciera4,Puntajes!$D$16,0))))))","v":""}]
[null,null,{"$f":"+'Capacidad Financiera'!B686","v":""},{"$f":"IF(ISERROR(VLOOKUP(C683,'Capacidad Financiera'!$B$12:$X$62720,2,0)),\"\",VLOOKUP(C683,'Capacidad Financiera'!$B$12:$X$3580,2,0))","v":0},{"$f":"IF(OR(C683=\"\",D683=\"\"),\"\",IF(ISERROR(VLOOKUP(D683,'Capacidad Financiera'!$C$13:$X$62720,3,0)),\"\",VLOOKUP(D683,'Capacidad Financiera'!$C$13:$X$62720,3,0)))","v":""},{"$f":"IF(OR(C683=\"\",D683=\"\"),\"\",IF(ISERROR(VLOOKUP(D683,'Capacidad Financiera'!$C$13:$X$62720,5,0)),\"\",VLOOKUP(D683,'Capacidad Financiera'!$C$13:$X$62720,5,0)))","v":""},"",{"$f":"IF(OR(D683=\"\",E683=\"\",F683=\"\"),\"\",IF(AND(G683>0,G683<=CapFinanciera1),Puntajes!$D$12,IF(AND(G683>CapFinanciera1,G683<=CapFinanciera2),Puntajes!$D$13,IF(AND(G683>CapFinanciera2,G683<=CapFinanciera3),Puntajes!$D$14,IF(AND(G683>CapFinanciera3,G683<=CapFinanciera4),Puntajes!$D$15,IF(G683>CapFinanciera4,Puntajes!$D$16,0))))))","v":""}]
[null,null,{"$f":"+'Capacidad Financiera'!B687","v":""},{"$f":"IF(ISERROR(VLOOKUP(C684,'Capacidad Financiera'!$B$12:$X$62720,2,0)),\"\",VLOOKUP(C684,'Capacidad Financiera'!$B$12:$X$3580,2,0))","v":0},{"$f":"IF(OR(C684=\"\",D684=\"\"),\"\",IF(ISERROR(VLOOKUP(D684,'Capacidad Financiera'!$C$13:$X$62720,3,0)),\"\",VLOOKUP(D684,'Capacidad Financiera'!$C$13:$X$62720,3,0)))","v":""},{"$f":"IF(OR(C684=\"\",D684=\"\"),\"\",IF(ISERROR(VLOOKUP(D684,'Capacidad Financiera'!$C$13:$X$62720,5,0)),\"\",VLOOKUP(D684,'Capacidad Financiera'!$C$13:$X$62720,5,0)))","v":""},"",{"$f":"IF(OR(D684=\"\",E684=\"\",F684=\"\"),\"\",IF(AND(G684>0,G684<=CapFinanciera1),Puntajes!$D$12,IF(AND(G684>CapFinanciera1,G684<=CapFinanciera2),Puntajes!$D$13,IF(AND(G684>CapFinanciera2,G684<=CapFinanciera3),Puntajes!$D$14,IF(AND(G684>CapFinanciera3,G684<=CapFinanciera4),Puntajes!$D$15,IF(G684>CapFinanciera4,Puntajes!$D$16,0))))))","v":""}]
[null,null,{"$f":"+'Capacidad Financiera'!B688","v":""},{"$f":"IF(ISERROR(VLOOKUP(C685,'Capacidad Financiera'!$B$12:$X$62720,2,0)),\"\",VLOOKUP(C685,'Capacidad Financiera'!$B$12:$X$3580,2,0))","v":0},{"$f":"IF(OR(C685=\"\",D685=\"\"),\"\",IF(ISERROR(VLOOKUP(D685,'Capacidad Financiera'!$C$13:$X$62720,3,0)),\"\",VLOOKUP(D685,'Capacidad Financiera'!$C$13:$X$62720,3,0)))","v":""},{"$f":"IF(OR(C685=\"\",D685=\"\"),\"\",IF(ISERROR(VLOOKUP(D685,'Capacidad Financiera'!$C$13:$X$62720,5,0)),\"\",VLOOKUP(D685,'Capacidad Financiera'!$C$13:$X$62720,5,0)))","v":""},"",{"$f":"IF(OR(D685=\"\",E685=\"\",F685=\"\"),\"\",IF(AND(G685>0,G685<=CapFinanciera1),Puntajes!$D$12,IF(AND(G685>CapFinanciera1,G685<=CapFinanciera2),Puntajes!$D$13,IF(AND(G685>CapFinanciera2,G685<=CapFinanciera3),Puntajes!$D$14,IF(AND(G685>CapFinanciera3,G685<=CapFinanciera4),Puntajes!$D$15,IF(G685>CapFinanciera4,Puntajes!$D$16,0))))))","v":""}]
[null,null,{"$f":"+'Capacidad Financiera'!B689","v":""},{"$f":"IF(ISERROR(VLOOKUP(C686,'Capacidad Financiera'!$B$12:$X$62720,2,0)),\"\",VLOOKUP(C686,'Capacidad Financiera'!$B$12:$X$3580,2,0))","v":0},{"$f":"IF(OR(C686=\"\",D686=\"\"),\"\",IF(ISERROR(VLOOKUP(D686,'Capacidad Financiera'!$C$13:$X$62720,3,0)),\"\",VLOOKUP(D686,'Capacidad Financiera'!$C$13:$X$62720,3,0)))","v":""},{"$f":"IF(OR(C686=\"\",D686=\"\"),\"\",IF(ISERROR(VLOOKUP(D686,'Capacidad Financiera'!$C$13:$X$62720,5,0)),\"\",VLOOKUP(D686,'Capacidad Financiera'!$C$13:$X$62720,5,0)))","v":""},"",{"$f":"IF(OR(D686=\"\",E686=\"\",F686=\"\"),\"\",IF(AND(G686>0,G686<=CapFinanciera1),Puntajes!$D$12,IF(AND(G686>CapFinanciera1,G686<=CapFinanciera2),Puntajes!$D$13,IF(AND(G686>CapFinanciera2,G686<=CapFinanciera3),Puntajes!$D$14,IF(AND(G686>CapFinanciera3,G686<=CapFinanciera4),Puntajes!$D$15,IF(G686>CapFinanciera4,Puntajes!$D$16,0))))))","v":""}]
[null,null,{"$f":"+'Capacidad Financiera'!B690","v":""},{"$f":"IF(ISERROR(VLOOKUP(C687,'Capacidad Financiera'!$B$12:$X$62720,2,0)),\"\",VLOOKUP(C687,'Capacidad Financiera'!$B$12:$X$3580,2,0))","v":0},{"$f":"IF(OR(C687=\"\",D687=\"\"),\"\",IF(ISERROR(VLOOKUP(D687,'Capacidad Financiera'!$C$13:$X$62720,3,0)),\"\",VLOOKUP(D687,'Capacidad Financiera'!$C$13:$X$62720,3,0)))","v":""},{"$f":"IF(OR(C687=\"\",D687=\"\"),\"\",IF(ISERROR(VLOOKUP(D687,'Capacidad Financiera'!$C$13:$X$62720,5,0)),\"\",VLOOKUP(D687,'Capacidad Financiera'!$C$13:$X$62720,5,0)))","v":""},"",{"$f":"IF(OR(D687=\"\",E687=\"\",F687=\"\"),\"\",IF(AND(G687>0,G687<=CapFinanciera1),Puntajes!$D$12,IF(AND(G687>CapFinanciera1,G687<=CapFinanciera2),Puntajes!$D$13,IF(AND(G687>CapFinanciera2,G687<=CapFinanciera3),Puntajes!$D$14,IF(AND(G687>CapFinanciera3,G687<=CapFinanciera4),Puntajes!$D$15,IF(G687>CapFinanciera4,Puntajes!$D$16,0))))))","v":""}]
[null,null,{"$f":"+'Capacidad Financiera'!B691","v":""},{"$f":"IF(ISERROR(VLOOKUP(C688,'Capacidad Financiera'!$B$12:$X$62720,2,0)),\"\",VLOOKUP(C688,'Capacidad Financiera'!$B$12:$X$3580,2,0))","v":0},{"$f":"IF(OR(C688=\"\",D688=\"\"),\"\",IF(ISERROR(VLOOKUP(D688,'Capacidad Financiera'!$C$13:$X$62720,3,0)),\"\",VLOOKUP(D688,'Capacidad Financiera'!$C$13:$X$62720,3,0)))","v":""},{"$f":"IF(OR(C688=\"\",D688=\"\"),\"\",IF(ISERROR(VLOOKUP(D688,'Capacidad Financiera'!$C$13:$X$62720,5,0)),\"\",VLOOKUP(D688,'Capacidad Financiera'!$C$13:$X$62720,5,0)))","v":""},"",{"$f":"IF(OR(D688=\"\",E688=\"\",F688=\"\"),\"\",IF(AND(G688>0,G688<=CapFinanciera1),Puntajes!$D$12,IF(AND(G688>CapFinanciera1,G688<=CapFinanciera2),Puntajes!$D$13,IF(AND(G688>CapFinanciera2,G688<=CapFinanciera3),Puntajes!$D$14,IF(AND(G688>CapFinanciera3,G688<=CapFinanciera4),Puntajes!$D$15,IF(G688>CapFinanciera4,Puntajes!$D$16,0))))))","v":""}]
[null,null,{"$f":"+'Capacidad Financiera'!B692","v":""},{"$f":"IF(ISERROR(VLOOKUP(C689,'Capacidad Financiera'!$B$12:$X$62720,2,0)),\"\",VLOOKUP(C689,'Capacidad Financiera'!$B$12:$X$3580,2,0))","v":0},{"$f":"IF(OR(C689=\"\",D689=\"\"),\"\",IF(ISERROR(VLOOKUP(D689,'Capacidad Financiera'!$C$13:$X$62720,3,0)),\"\",VLOOKUP(D689,'Capacidad Financiera'!$C$13:$X$62720,3,0)))","v":""},{"$f":"IF(OR(C689=\"\",D689=\"\"),\"\",IF(ISERROR(VLOOKUP(D689,'Capacidad Financiera'!$C$13:$X$62720,5,0)),\"\",VLOOKUP(D689,'Capacidad Financiera'!$C$13:$X$62720,5,0)))","v":""},"",{"$f":"IF(OR(D689=\"\",E689=\"\",F689=\"\"),\"\",IF(AND(G689>0,G689<=CapFinanciera1),Puntajes!$D$12,IF(AND(G689>CapFinanciera1,G689<=CapFinanciera2),Puntajes!$D$13,IF(AND(G689>CapFinanciera2,G689<=CapFinanciera3),Puntajes!$D$14,IF(AND(G689>CapFinanciera3,G689<=CapFinanciera4),Puntajes!$D$15,IF(G689>CapFinanciera4,Puntajes!$D$16,0))))))","v":""}]
[null,null,{"$f":"+'Capacidad Financiera'!B693","v":""},{"$f":"IF(ISERROR(VLOOKUP(C690,'Capacidad Financiera'!$B$12:$X$62720,2,0)),\"\",VLOOKUP(C690,'Capacidad Financiera'!$B$12:$X$3580,2,0))","v":0},{"$f":"IF(OR(C690=\"\",D690=\"\"),\"\",IF(ISERROR(VLOOKUP(D690,'Capacidad Financiera'!$C$13:$X$62720,3,0)),\"\",VLOOKUP(D690,'Capacidad Financiera'!$C$13:$X$62720,3,0)))","v":""},{"$f":"IF(OR(C690=\"\",D690=\"\"),\"\",IF(ISERROR(VLOOKUP(D690,'Capacidad Financiera'!$C$13:$X$62720,5,0)),\"\",VLOOKUP(D690,'Capacidad Financiera'!$C$13:$X$62720,5,0)))","v":""},"",{"$f":"IF(OR(D690=\"\",E690=\"\",F690=\"\"),\"\",IF(AND(G690>0,G690<=CapFinanciera1),Puntajes!$D$12,IF(AND(G690>CapFinanciera1,G690<=CapFinanciera2),Puntajes!$D$13,IF(AND(G690>CapFinanciera2,G690<=CapFinanciera3),Puntajes!$D$14,IF(AND(G690>CapFinanciera3,G690<=CapFinanciera4),Puntajes!$D$15,IF(G690>CapFinanciera4,Puntajes!$D$16,0))))))","v":""}]
[null,null,63,{"$f":"IF(ISERROR(VLOOKUP(C691,'Capacidad Financiera'!$B$12:$X$62720,2,0)),\"\",VLOOKUP(C691,'Capacidad Financiera'!$B$12:$X$3580,2,0))","v":0},{"$f":"IF(C692=\"\",IF(C691<>\"\",IF(ISERROR(VLOOKUP(D691,'Capacidad Financiera'!$C$12:$H$22,3,0)),\"\",VLOOKUP(D691,'Capacidad Financiera'!$C$12:$H$22,3,0))),\"\")","v":""},{"$f":"IF(C692=\"\",IF(C691<>\"\",IF(ISERROR(VLOOKUP(D691,'Capacidad Financiera'!$C$12:$H$22,5,0)),\"\",VLOOKUP(D691,'Capacidad Financiera'!$C$12:$H$22,5,0))),\"\")","v":""},{"$f":"IF(OR(D691=\"\",E691=\"\",F691=\"\"),\"\",IF(OR(E691=0,F691=0),0,E691/F691))","v":""},{"$f":"IF(C692=\"\",IF(AND(E691=\"\",F691=\"\"),\"\",IF(AND(G691>0,G691<=CapFinanciera1),Puntajes!$D$12,IF(AND(G691>CapFinanciera1,G691<=CapFinanciera2),Puntajes!$D$13,IF(AND(G691>CapFinanciera2,G691<=CapFinanciera3),Puntajes!$D$14,IF(AND(G691>CapFinanciera3,G691<=CapFinanciera4),Puntajes!$D$15,IF(G691>CapFinanciera4,Puntajes!$D$16,0)))))),\"\")","v":""}]
[null,null,{"$f":"+'Capacidad Financiera'!B695","v":""},{"$f":"IF(ISERROR(VLOOKUP(C692,'Capacidad Financiera'!$B$12:$X$62720,2,0)),\"\",VLOOKUP(C692,'Capacidad Financiera'!$B$12:$X$3580,2,0))","v":0},{"$f":"IF(OR(C692=\"\",D692=\"\"),\"\",IF(ISERROR(VLOOKUP(D692,'Capacidad Financiera'!$C$13:$X$62720,3,0)),\"\",VLOOKUP(D692,'Capacidad Financiera'!$C$13:$X$62720,3,0)))","v":""},{"$f":"IF(OR(C692=\"\",D692=\"\"),\"\",IF(ISERROR(VLOOKUP(D692,'Capacidad Financiera'!$C$13:$X$62720,5,0)),\"\",VLOOKUP(D692,'Capacidad Financiera'!$C$13:$X$62720,5,0)))","v":""},{"$f":"IF(OR(D692=\"\",E692=\"\",F692=\"\"),\"\",IF(OR(E692=0,F692=0),0,E692/F692))","v":""},{"$f":"IF(OR(D692=\"\",E692=\"\",F692=\"\"),\"\",IF(AND(G692>0,G692<=CapFinanciera1),Puntajes!$D$12,IF(AND(G692>CapFinanciera1,G692<=CapFinanciera2),Puntajes!$D$13,IF(AND(G692>CapFinanciera2,G692<=CapFinanciera3),Puntajes!$D$14,IF(AND(G692>CapFinanciera3,G692<=CapFinanciera4),Puntajes!$D$15,IF(G692>CapFinanciera4,Puntajes!$D$16,0))))))","v":""}]
[null,null,{"$f":"+'Capacidad Financiera'!B696","v":""},{"$f":"IF(ISERROR(VLOOKUP(C693,'Capacidad Financiera'!$B$12:$X$62720,2,0)),\"\",VLOOKUP(C693,'Capacidad Financiera'!$B$12:$X$3580,2,0))","v":0},{"$f":"IF(OR(C693=\"\",D693=\"\"),\"\",IF(ISERROR(VLOOKUP(D693,'Capacidad Financiera'!$C$13:$X$62720,3,0)),\"\",VLOOKUP(D693,'Capacidad Financiera'!$C$13:$X$62720,3,0)))","v":""},{"$f":"IF(OR(C693=\"\",D693=\"\"),\"\",IF(ISERROR(VLOOKUP(D693,'Capacidad Financiera'!$C$13:$X$62720,5,0)),\"\",VLOOKUP(D693,'Capacidad Financiera'!$C$13:$X$62720,5,0)))","v":""},"",{"$f":"IF(OR(D693=\"\",E693=\"\",F693=\"\"),\"\",IF(AND(G693>0,G693<=CapFinanciera1),Puntajes!$D$12,IF(AND(G693>CapFinanciera1,G693<=CapFinanciera2),Puntajes!$D$13,IF(AND(G693>CapFinanciera2,G693<=CapFinanciera3),Puntajes!$D$14,IF(AND(G693>CapFinanciera3,G693<=CapFinanciera4),Puntajes!$D$15,IF(G693>CapFinanciera4,Puntajes!$D$16,0))))))","v":""}]
[null,null,{"$f":"+'Capacidad Financiera'!B697","v":""},{"$f":"IF(ISERROR(VLOOKUP(C694,'Capacidad Financiera'!$B$12:$X$62720,2,0)),\"\",VLOOKUP(C694,'Capacidad Financiera'!$B$12:$X$3580,2,0))","v":0},{"$f":"IF(OR(C694=\"\",D694=\"\"),\"\",IF(ISERROR(VLOOKUP(D694,'Capacidad Financiera'!$C$13:$X$62720,3,0)),\"\",VLOOKUP(D694,'Capacidad Financiera'!$C$13:$X$62720,3,0)))","v":""},{"$f":"IF(OR(C694=\"\",D694=\"\"),\"\",IF(ISERROR(VLOOKUP(D694,'Capacidad Financiera'!$C$13:$X$62720,5,0)),\"\",VLOOKUP(D694,'Capacidad Financiera'!$C$13:$X$62720,5,0)))","v":""},"",{"$f":"IF(OR(D694=\"\",E694=\"\",F694=\"\"),\"\",IF(AND(G694>0,G694<=CapFinanciera1),Puntajes!$D$12,IF(AND(G694>CapFinanciera1,G694<=CapFinanciera2),Puntajes!$D$13,IF(AND(G694>CapFinanciera2,G694<=CapFinanciera3),Puntajes!$D$14,IF(AND(G694>CapFinanciera3,G694<=CapFinanciera4),Puntajes!$D$15,IF(G694>CapFinanciera4,Puntajes!$D$16,0))))))","v":""}]
[null,null,{"$f":"+'Capacidad Financiera'!B698","v":""},{"$f":"IF(ISERROR(VLOOKUP(C695,'Capacidad Financiera'!$B$12:$X$62720,2,0)),\"\",VLOOKUP(C695,'Capacidad Financiera'!$B$12:$X$3580,2,0))","v":0},{"$f":"IF(OR(C695=\"\",D695=\"\"),\"\",IF(ISERROR(VLOOKUP(D695,'Capacidad Financiera'!$C$13:$X$62720,3,0)),\"\",VLOOKUP(D695,'Capacidad Financiera'!$C$13:$X$62720,3,0)))","v":""},{"$f":"IF(OR(C695=\"\",D695=\"\"),\"\",IF(ISERROR(VLOOKUP(D695,'Capacidad Financiera'!$C$13:$X$62720,5,0)),\"\",VLOOKUP(D695,'Capacidad Financiera'!$C$13:$X$62720,5,0)))","v":""},"",{"$f":"IF(OR(D695=\"\",E695=\"\",F695=\"\"),\"\",IF(AND(G695>0,G695<=CapFinanciera1),Puntajes!$D$12,IF(AND(G695>CapFinanciera1,G695<=CapFinanciera2),Puntajes!$D$13,IF(AND(G695>CapFinanciera2,G695<=CapFinanciera3),Puntajes!$D$14,IF(AND(G695>CapFinanciera3,G695<=CapFinanciera4),Puntajes!$D$15,IF(G695>CapFinanciera4,Puntajes!$D$16,0))))))","v":""}]
[null,null,{"$f":"+'Capacidad Financiera'!B699","v":""},{"$f":"IF(ISERROR(VLOOKUP(C696,'Capacidad Financiera'!$B$12:$X$62720,2,0)),\"\",VLOOKUP(C696,'Capacidad Financiera'!$B$12:$X$3580,2,0))","v":0},{"$f":"IF(OR(C696=\"\",D696=\"\"),\"\",IF(ISERROR(VLOOKUP(D696,'Capacidad Financiera'!$C$13:$X$62720,3,0)),\"\",VLOOKUP(D696,'Capacidad Financiera'!$C$13:$X$62720,3,0)))","v":""},{"$f":"IF(OR(C696=\"\",D696=\"\"),\"\",IF(ISERROR(VLOOKUP(D696,'Capacidad Financiera'!$C$13:$X$62720,5,0)),\"\",VLOOKUP(D696,'Capacidad Financiera'!$C$13:$X$62720,5,0)))","v":""},"",{"$f":"IF(OR(D696=\"\",E696=\"\",F696=\"\"),\"\",IF(AND(G696>0,G696<=CapFinanciera1),Puntajes!$D$12,IF(AND(G696>CapFinanciera1,G696<=CapFinanciera2),Puntajes!$D$13,IF(AND(G696>CapFinanciera2,G696<=CapFinanciera3),Puntajes!$D$14,IF(AND(G696>CapFinanciera3,G696<=CapFinanciera4),Puntajes!$D$15,IF(G696>CapFinanciera4,Puntajes!$D$16,0))))))","v":""}]
[null,null,{"$f":"+'Capacidad Financiera'!B700","v":""},{"$f":"IF(ISERROR(VLOOKUP(C697,'Capacidad Financiera'!$B$12:$X$62720,2,0)),\"\",VLOOKUP(C697,'Capacidad Financiera'!$B$12:$X$3580,2,0))","v":0},{"$f":"IF(OR(C697=\"\",D697=\"\"),\"\",IF(ISERROR(VLOOKUP(D697,'Capacidad Financiera'!$C$13:$X$62720,3,0)),\"\",VLOOKUP(D697,'Capacidad Financiera'!$C$13:$X$62720,3,0)))","v":""},{"$f":"IF(OR(C697=\"\",D697=\"\"),\"\",IF(ISERROR(VLOOKUP(D697,'Capacidad Financiera'!$C$13:$X$62720,5,0)),\"\",VLOOKUP(D697,'Capacidad Financiera'!$C$13:$X$62720,5,0)))","v":""},"",{"$f":"IF(OR(D697=\"\",E697=\"\",F697=\"\"),\"\",IF(AND(G697>0,G697<=CapFinanciera1),Puntajes!$D$12,IF(AND(G697>CapFinanciera1,G697<=CapFinanciera2),Puntajes!$D$13,IF(AND(G697>CapFinanciera2,G697<=CapFinanciera3),Puntajes!$D$14,IF(AND(G697>CapFinanciera3,G697<=CapFinanciera4),Puntajes!$D$15,IF(G697>CapFinanciera4,Puntajes!$D$16,0))))))","v":""}]
[null,null,{"$f":"+'Capacidad Financiera'!B701","v":""},{"$f":"IF(ISERROR(VLOOKUP(C698,'Capacidad Financiera'!$B$12:$X$62720,2,0)),\"\",VLOOKUP(C698,'Capacidad Financiera'!$B$12:$X$3580,2,0))","v":0},{"$f":"IF(OR(C698=\"\",D698=\"\"),\"\",IF(ISERROR(VLOOKUP(D698,'Capacidad Financiera'!$C$13:$X$62720,3,0)),\"\",VLOOKUP(D698,'Capacidad Financiera'!$C$13:$X$62720,3,0)))","v":""},{"$f":"IF(OR(C698=\"\",D698=\"\"),\"\",IF(ISERROR(VLOOKUP(D698,'Capacidad Financiera'!$C$13:$X$62720,5,0)),\"\",VLOOKUP(D698,'Capacidad Financiera'!$C$13:$X$62720,5,0)))","v":""},"",{"$f":"IF(OR(D698=\"\",E698=\"\",F698=\"\"),\"\",IF(AND(G698>0,G698<=CapFinanciera1),Puntajes!$D$12,IF(AND(G698>CapFinanciera1,G698<=CapFinanciera2),Puntajes!$D$13,IF(AND(G698>CapFinanciera2,G698<=CapFinanciera3),Puntajes!$D$14,IF(AND(G698>CapFinanciera3,G698<=CapFinanciera4),Puntajes!$D$15,IF(G698>CapFinanciera4,Puntajes!$D$16,0))))))","v":""}]
[null,null,{"$f":"+'Capacidad Financiera'!B702","v":""},{"$f":"IF(ISERROR(VLOOKUP(C699,'Capacidad Financiera'!$B$12:$X$62720,2,0)),\"\",VLOOKUP(C699,'Capacidad Financiera'!$B$12:$X$3580,2,0))","v":0},{"$f":"IF(OR(C699=\"\",D699=\"\"),\"\",IF(ISERROR(VLOOKUP(D699,'Capacidad Financiera'!$C$13:$X$62720,3,0)),\"\",VLOOKUP(D699,'Capacidad Financiera'!$C$13:$X$62720,3,0)))","v":""},{"$f":"IF(OR(C699=\"\",D699=\"\"),\"\",IF(ISERROR(VLOOKUP(D699,'Capacidad Financiera'!$C$13:$X$62720,5,0)),\"\",VLOOKUP(D699,'Capacidad Financiera'!$C$13:$X$62720,5,0)))","v":""},"",{"$f":"IF(OR(D699=\"\",E699=\"\",F699=\"\"),\"\",IF(AND(G699>0,G699<=CapFinanciera1),Puntajes!$D$12,IF(AND(G699>CapFinanciera1,G699<=CapFinanciera2),Puntajes!$D$13,IF(AND(G699>CapFinanciera2,G699<=CapFinanciera3),Puntajes!$D$14,IF(AND(G699>CapFinanciera3,G699<=CapFinanciera4),Puntajes!$D$15,IF(G699>CapFinanciera4,Puntajes!$D$16,0))))))","v":""}]
[null,null,{"$f":"+'Capacidad Financiera'!B703","v":""},{"$f":"IF(ISERROR(VLOOKUP(C700,'Capacidad Financiera'!$B$12:$X$62720,2,0)),\"\",VLOOKUP(C700,'Capacidad Financiera'!$B$12:$X$3580,2,0))","v":0},{"$f":"IF(OR(C700=\"\",D700=\"\"),\"\",IF(ISERROR(VLOOKUP(D700,'Capacidad Financiera'!$C$13:$X$62720,3,0)),\"\",VLOOKUP(D700,'Capacidad Financiera'!$C$13:$X$62720,3,0)))","v":""},{"$f":"IF(OR(C700=\"\",D700=\"\"),\"\",IF(ISERROR(VLOOKUP(D700,'Capacidad Financiera'!$C$13:$X$62720,5,0)),\"\",VLOOKUP(D700,'Capacidad Financiera'!$C$13:$X$62720,5,0)))","v":""},"",{"$f":"IF(OR(D700=\"\",E700=\"\",F700=\"\"),\"\",IF(AND(G700>0,G700<=CapFinanciera1),Puntajes!$D$12,IF(AND(G700>CapFinanciera1,G700<=CapFinanciera2),Puntajes!$D$13,IF(AND(G700>CapFinanciera2,G700<=CapFinanciera3),Puntajes!$D$14,IF(AND(G700>CapFinanciera3,G700<=CapFinanciera4),Puntajes!$D$15,IF(G700>CapFinanciera4,Puntajes!$D$16,0))))))","v":""}]
[null,null,{"$f":"+'Capacidad Financiera'!B704","v":""},{"$f":"IF(ISERROR(VLOOKUP(C701,'Capacidad Financiera'!$B$12:$X$62720,2,0)),\"\",VLOOKUP(C701,'Capacidad Financiera'!$B$12:$X$3580,2,0))","v":0},{"$f":"IF(OR(C701=\"\",D701=\"\"),\"\",IF(ISERROR(VLOOKUP(D701,'Capacidad Financiera'!$C$13:$X$62720,3,0)),\"\",VLOOKUP(D701,'Capacidad Financiera'!$C$13:$X$62720,3,0)))","v":""},{"$f":"IF(OR(C701=\"\",D701=\"\"),\"\",IF(ISERROR(VLOOKUP(D701,'Capacidad Financiera'!$C$13:$X$62720,5,0)),\"\",VLOOKUP(D701,'Capacidad Financiera'!$C$13:$X$62720,5,0)))","v":""},"",{"$f":"IF(OR(D701=\"\",E701=\"\",F701=\"\"),\"\",IF(AND(G701>0,G701<=CapFinanciera1),Puntajes!$D$12,IF(AND(G701>CapFinanciera1,G701<=CapFinanciera2),Puntajes!$D$13,IF(AND(G701>CapFinanciera2,G701<=CapFinanciera3),Puntajes!$D$14,IF(AND(G701>CapFinanciera3,G701<=CapFinanciera4),Puntajes!$D$15,IF(G701>CapFinanciera4,Puntajes!$D$16,0))))))","v":""}]
[null,null,64,{"$f":"IF(ISERROR(VLOOKUP(C702,'Capacidad Financiera'!$B$12:$X$62720,2,0)),\"\",VLOOKUP(C702,'Capacidad Financiera'!$B$12:$X$3580,2,0))","v":0},{"$f":"IF(C703=\"\",IF(C702<>\"\",IF(ISERROR(VLOOKUP(D702,'Capacidad Financiera'!$C$12:$H$22,3,0)),\"\",VLOOKUP(D702,'Capacidad Financiera'!$C$12:$H$22,3,0))),\"\")","v":""},{"$f":"IF(C703=\"\",IF(C702<>\"\",IF(ISERROR(VLOOKUP(D702,'Capacidad Financiera'!$C$12:$H$22,5,0)),\"\",VLOOKUP(D702,'Capacidad Financiera'!$C$12:$H$22,5,0))),\"\")","v":""},{"$f":"IF(OR(D702=\"\",E702=\"\",F702=\"\"),\"\",IF(OR(E702=0,F702=0),0,E702/F702))","v":""},{"$f":"IF(C703=\"\",IF(AND(E702=\"\",F702=\"\"),\"\",IF(AND(G702>0,G702<=CapFinanciera1),Puntajes!$D$12,IF(AND(G702>CapFinanciera1,G702<=CapFinanciera2),Puntajes!$D$13,IF(AND(G702>CapFinanciera2,G702<=CapFinanciera3),Puntajes!$D$14,IF(AND(G702>CapFinanciera3,G702<=CapFinanciera4),Puntajes!$D$15,IF(G702>CapFinanciera4,Puntajes!$D$16,0)))))),\"\")","v":""}]
[null,null,{"$f":"+'Capacidad Financiera'!B706","v":""},{"$f":"IF(ISERROR(VLOOKUP(C703,'Capacidad Financiera'!$B$12:$X$62720,2,0)),\"\",VLOOKUP(C703,'Capacidad Financiera'!$B$12:$X$3580,2,0))","v":0},{"$f":"IF(OR(C703=\"\",D703=\"\"),\"\",IF(ISERROR(VLOOKUP(D703,'Capacidad Financiera'!$C$13:$X$62720,3,0)),\"\",VLOOKUP(D703,'Capacidad Financiera'!$C$13:$X$62720,3,0)))","v":""},{"$f":"IF(OR(C703=\"\",D703=\"\"),\"\",IF(ISERROR(VLOOKUP(D703,'Capacidad Financiera'!$C$13:$X$62720,5,0)),\"\",VLOOKUP(D703,'Capacidad Financiera'!$C$13:$X$62720,5,0)))","v":""},{"$f":"IF(OR(D703=\"\",E703=\"\",F703=\"\"),\"\",IF(OR(E703=0,F703=0),0,E703/F703))","v":""},{"$f":"IF(OR(D703=\"\",E703=\"\",F703=\"\"),\"\",IF(AND(G703>0,G703<=CapFinanciera1),Puntajes!$D$12,IF(AND(G703>CapFinanciera1,G703<=CapFinanciera2),Puntajes!$D$13,IF(AND(G703>CapFinanciera2,G703<=CapFinanciera3),Puntajes!$D$14,IF(AND(G703>CapFinanciera3,G703<=CapFinanciera4),Puntajes!$D$15,IF(G703>CapFinanciera4,Puntajes!$D$16,0))))))","v":""}]
[null,null,{"$f":"+'Capacidad Financiera'!B707","v":""},{"$f":"IF(ISERROR(VLOOKUP(C704,'Capacidad Financiera'!$B$12:$X$62720,2,0)),\"\",VLOOKUP(C704,'Capacidad Financiera'!$B$12:$X$3580,2,0))","v":0},{"$f":"IF(OR(C704=\"\",D704=\"\"),\"\",IF(ISERROR(VLOOKUP(D704,'Capacidad Financiera'!$C$13:$X$62720,3,0)),\"\",VLOOKUP(D704,'Capacidad Financiera'!$C$13:$X$62720,3,0)))","v":""},{"$f":"IF(OR(C704=\"\",D704=\"\"),\"\",IF(ISERROR(VLOOKUP(D704,'Capacidad Financiera'!$C$13:$X$62720,5,0)),\"\",VLOOKUP(D704,'Capacidad Financiera'!$C$13:$X$62720,5,0)))","v":""},"",{"$f":"IF(OR(D704=\"\",E704=\"\",F704=\"\"),\"\",IF(AND(G704>0,G704<=CapFinanciera1),Puntajes!$D$12,IF(AND(G704>CapFinanciera1,G704<=CapFinanciera2),Puntajes!$D$13,IF(AND(G704>CapFinanciera2,G704<=CapFinanciera3),Puntajes!$D$14,IF(AND(G704>CapFinanciera3,G704<=CapFinanciera4),Puntajes!$D$15,IF(G704>CapFinanciera4,Puntajes!$D$16,0))))))","v":""}]
[null,null,{"$f":"+'Capacidad Financiera'!B708","v":""},{"$f":"IF(ISERROR(VLOOKUP(C705,'Capacidad Financiera'!$B$12:$X$62720,2,0)),\"\",VLOOKUP(C705,'Capacidad Financiera'!$B$12:$X$3580,2,0))","v":0},{"$f":"IF(OR(C705=\"\",D705=\"\"),\"\",IF(ISERROR(VLOOKUP(D705,'Capacidad Financiera'!$C$13:$X$62720,3,0)),\"\",VLOOKUP(D705,'Capacidad Financiera'!$C$13:$X$62720,3,0)))","v":""},{"$f":"IF(OR(C705=\"\",D705=\"\"),\"\",IF(ISERROR(VLOOKUP(D705,'Capacidad Financiera'!$C$13:$X$62720,5,0)),\"\",VLOOKUP(D705,'Capacidad Financiera'!$C$13:$X$62720,5,0)))","v":""},"",{"$f":"IF(OR(D705=\"\",E705=\"\",F705=\"\"),\"\",IF(AND(G705>0,G705<=CapFinanciera1),Puntajes!$D$12,IF(AND(G705>CapFinanciera1,G705<=CapFinanciera2),Puntajes!$D$13,IF(AND(G705>CapFinanciera2,G705<=CapFinanciera3),Puntajes!$D$14,IF(AND(G705>CapFinanciera3,G705<=CapFinanciera4),Puntajes!$D$15,IF(G705>CapFinanciera4,Puntajes!$D$16,0))))))","v":""}]
[null,null,{"$f":"+'Capacidad Financiera'!B709","v":""},{"$f":"IF(ISERROR(VLOOKUP(C706,'Capacidad Financiera'!$B$12:$X$62720,2,0)),\"\",VLOOKUP(C706,'Capacidad Financiera'!$B$12:$X$3580,2,0))","v":0},{"$f":"IF(OR(C706=\"\",D706=\"\"),\"\",IF(ISERROR(VLOOKUP(D706,'Capacidad Financiera'!$C$13:$X$62720,3,0)),\"\",VLOOKUP(D706,'Capacidad Financiera'!$C$13:$X$62720,3,0)))","v":""},{"$f":"IF(OR(C706=\"\",D706=\"\"),\"\",IF(ISERROR(VLOOKUP(D706,'Capacidad Financiera'!$C$13:$X$62720,5,0)),\"\",VLOOKUP(D706,'Capacidad Financiera'!$C$13:$X$62720,5,0)))","v":""},"",{"$f":"IF(OR(D706=\"\",E706=\"\",F706=\"\"),\"\",IF(AND(G706>0,G706<=CapFinanciera1),Puntajes!$D$12,IF(AND(G706>CapFinanciera1,G706<=CapFinanciera2),Puntajes!$D$13,IF(AND(G706>CapFinanciera2,G706<=CapFinanciera3),Puntajes!$D$14,IF(AND(G706>CapFinanciera3,G706<=CapFinanciera4),Puntajes!$D$15,IF(G706>CapFinanciera4,Puntajes!$D$16,0))))))","v":""}]
[null,null,{"$f":"+'Capacidad Financiera'!B710","v":""},{"$f":"IF(ISERROR(VLOOKUP(C707,'Capacidad Financiera'!$B$12:$X$62720,2,0)),\"\",VLOOKUP(C707,'Capacidad Financiera'!$B$12:$X$3580,2,0))","v":0},{"$f":"IF(OR(C707=\"\",D707=\"\"),\"\",IF(ISERROR(VLOOKUP(D707,'Capacidad Financiera'!$C$13:$X$62720,3,0)),\"\",VLOOKUP(D707,'Capacidad Financiera'!$C$13:$X$62720,3,0)))","v":""},{"$f":"IF(OR(C707=\"\",D707=\"\"),\"\",IF(ISERROR(VLOOKUP(D707,'Capacidad Financiera'!$C$13:$X$62720,5,0)),\"\",VLOOKUP(D707,'Capacidad Financiera'!$C$13:$X$62720,5,0)))","v":""},"",{"$f":"IF(OR(D707=\"\",E707=\"\",F707=\"\"),\"\",IF(AND(G707>0,G707<=CapFinanciera1),Puntajes!$D$12,IF(AND(G707>CapFinanciera1,G707<=CapFinanciera2),Puntajes!$D$13,IF(AND(G707>CapFinanciera2,G707<=CapFinanciera3),Puntajes!$D$14,IF(AND(G707>CapFinanciera3,G707<=CapFinanciera4),Puntajes!$D$15,IF(G707>CapFinanciera4,Puntajes!$D$16,0))))))","v":""}]
[null,null,{"$f":"+'Capacidad Financiera'!B711","v":""},{"$f":"IF(ISERROR(VLOOKUP(C708,'Capacidad Financiera'!$B$12:$X$62720,2,0)),\"\",VLOOKUP(C708,'Capacidad Financiera'!$B$12:$X$3580,2,0))","v":0},{"$f":"IF(OR(C708=\"\",D708=\"\"),\"\",IF(ISERROR(VLOOKUP(D708,'Capacidad Financiera'!$C$13:$X$62720,3,0)),\"\",VLOOKUP(D708,'Capacidad Financiera'!$C$13:$X$62720,3,0)))","v":""},{"$f":"IF(OR(C708=\"\",D708=\"\"),\"\",IF(ISERROR(VLOOKUP(D708,'Capacidad Financiera'!$C$13:$X$62720,5,0)),\"\",VLOOKUP(D708,'Capacidad Financiera'!$C$13:$X$62720,5,0)))","v":""},"",{"$f":"IF(OR(D708=\"\",E708=\"\",F708=\"\"),\"\",IF(AND(G708>0,G708<=CapFinanciera1),Puntajes!$D$12,IF(AND(G708>CapFinanciera1,G708<=CapFinanciera2),Puntajes!$D$13,IF(AND(G708>CapFinanciera2,G708<=CapFinanciera3),Puntajes!$D$14,IF(AND(G708>CapFinanciera3,G708<=CapFinanciera4),Puntajes!$D$15,IF(G708>CapFinanciera4,Puntajes!$D$16,0))))))","v":""}]
[null,null,{"$f":"+'Capacidad Financiera'!B712","v":""},{"$f":"IF(ISERROR(VLOOKUP(C709,'Capacidad Financiera'!$B$12:$X$62720,2,0)),\"\",VLOOKUP(C709,'Capacidad Financiera'!$B$12:$X$3580,2,0))","v":0},{"$f":"IF(OR(C709=\"\",D709=\"\"),\"\",IF(ISERROR(VLOOKUP(D709,'Capacidad Financiera'!$C$13:$X$62720,3,0)),\"\",VLOOKUP(D709,'Capacidad Financiera'!$C$13:$X$62720,3,0)))","v":""},{"$f":"IF(OR(C709=\"\",D709=\"\"),\"\",IF(ISERROR(VLOOKUP(D709,'Capacidad Financiera'!$C$13:$X$62720,5,0)),\"\",VLOOKUP(D709,'Capacidad Financiera'!$C$13:$X$62720,5,0)))","v":""},"",{"$f":"IF(OR(D709=\"\",E709=\"\",F709=\"\"),\"\",IF(AND(G709>0,G709<=CapFinanciera1),Puntajes!$D$12,IF(AND(G709>CapFinanciera1,G709<=CapFinanciera2),Puntajes!$D$13,IF(AND(G709>CapFinanciera2,G709<=CapFinanciera3),Puntajes!$D$14,IF(AND(G709>CapFinanciera3,G709<=CapFinanciera4),Puntajes!$D$15,IF(G709>CapFinanciera4,Puntajes!$D$16,0))))))","v":""}]
[null,null,{"$f":"+'Capacidad Financiera'!B713","v":""},{"$f":"IF(ISERROR(VLOOKUP(C710,'Capacidad Financiera'!$B$12:$X$62720,2,0)),\"\",VLOOKUP(C710,'Capacidad Financiera'!$B$12:$X$3580,2,0))","v":0},{"$f":"IF(OR(C710=\"\",D710=\"\"),\"\",IF(ISERROR(VLOOKUP(D710,'Capacidad Financiera'!$C$13:$X$62720,3,0)),\"\",VLOOKUP(D710,'Capacidad Financiera'!$C$13:$X$62720,3,0)))","v":""},{"$f":"IF(OR(C710=\"\",D710=\"\"),\"\",IF(ISERROR(VLOOKUP(D710,'Capacidad Financiera'!$C$13:$X$62720,5,0)),\"\",VLOOKUP(D710,'Capacidad Financiera'!$C$13:$X$62720,5,0)))","v":""},"",{"$f":"IF(OR(D710=\"\",E710=\"\",F710=\"\"),\"\",IF(AND(G710>0,G710<=CapFinanciera1),Puntajes!$D$12,IF(AND(G710>CapFinanciera1,G710<=CapFinanciera2),Puntajes!$D$13,IF(AND(G710>CapFinanciera2,G710<=CapFinanciera3),Puntajes!$D$14,IF(AND(G710>CapFinanciera3,G710<=CapFinanciera4),Puntajes!$D$15,IF(G710>CapFinanciera4,Puntajes!$D$16,0))))))","v":""}]
[null,null,{"$f":"+'Capacidad Financiera'!B714","v":""},{"$f":"IF(ISERROR(VLOOKUP(C711,'Capacidad Financiera'!$B$12:$X$62720,2,0)),\"\",VLOOKUP(C711,'Capacidad Financiera'!$B$12:$X$3580,2,0))","v":0},{"$f":"IF(OR(C711=\"\",D711=\"\"),\"\",IF(ISERROR(VLOOKUP(D711,'Capacidad Financiera'!$C$13:$X$62720,3,0)),\"\",VLOOKUP(D711,'Capacidad Financiera'!$C$13:$X$62720,3,0)))","v":""},{"$f":"IF(OR(C711=\"\",D711=\"\"),\"\",IF(ISERROR(VLOOKUP(D711,'Capacidad Financiera'!$C$13:$X$62720,5,0)),\"\",VLOOKUP(D711,'Capacidad Financiera'!$C$13:$X$62720,5,0)))","v":""},"",{"$f":"IF(OR(D711=\"\",E711=\"\",F711=\"\"),\"\",IF(AND(G711>0,G711<=CapFinanciera1),Puntajes!$D$12,IF(AND(G711>CapFinanciera1,G711<=CapFinanciera2),Puntajes!$D$13,IF(AND(G711>CapFinanciera2,G711<=CapFinanciera3),Puntajes!$D$14,IF(AND(G711>CapFinanciera3,G711<=CapFinanciera4),Puntajes!$D$15,IF(G711>CapFinanciera4,Puntajes!$D$16,0))))))","v":""}]
[null,null,{"$f":"+'Capacidad Financiera'!B715","v":""},{"$f":"IF(ISERROR(VLOOKUP(C712,'Capacidad Financiera'!$B$12:$X$62720,2,0)),\"\",VLOOKUP(C712,'Capacidad Financiera'!$B$12:$X$3580,2,0))","v":0},{"$f":"IF(OR(C712=\"\",D712=\"\"),\"\",IF(ISERROR(VLOOKUP(D712,'Capacidad Financiera'!$C$13:$X$62720,3,0)),\"\",VLOOKUP(D712,'Capacidad Financiera'!$C$13:$X$62720,3,0)))","v":""},{"$f":"IF(OR(C712=\"\",D712=\"\"),\"\",IF(ISERROR(VLOOKUP(D712,'Capacidad Financiera'!$C$13:$X$62720,5,0)),\"\",VLOOKUP(D712,'Capacidad Financiera'!$C$13:$X$62720,5,0)))","v":""},"",{"$f":"IF(OR(D712=\"\",E712=\"\",F712=\"\"),\"\",IF(AND(G712>0,G712<=CapFinanciera1),Puntajes!$D$12,IF(AND(G712>CapFinanciera1,G712<=CapFinanciera2),Puntajes!$D$13,IF(AND(G712>CapFinanciera2,G712<=CapFinanciera3),Puntajes!$D$14,IF(AND(G712>CapFinanciera3,G712<=CapFinanciera4),Puntajes!$D$15,IF(G712>CapFinanciera4,Puntajes!$D$16,0))))))","v":""}]
[null,null,65,{"$f":"IF(ISERROR(VLOOKUP(C713,'Capacidad Financiera'!$B$12:$X$62720,2,0)),\"\",VLOOKUP(C713,'Capacidad Financiera'!$B$12:$X$3580,2,0))","v":0},{"$f":"IF(C714=\"\",IF(C713<>\"\",IF(ISERROR(VLOOKUP(D713,'Capacidad Financiera'!$C$12:$H$22,3,0)),\"\",VLOOKUP(D713,'Capacidad Financiera'!$C$12:$H$22,3,0))),\"\")","v":""},{"$f":"IF(C714=\"\",IF(C713<>\"\",IF(ISERROR(VLOOKUP(D713,'Capacidad Financiera'!$C$12:$H$22,5,0)),\"\",VLOOKUP(D713,'Capacidad Financiera'!$C$12:$H$22,5,0))),\"\")","v":""},{"$f":"IF(OR(D713=\"\",E713=\"\",F713=\"\"),\"\",IF(OR(E713=0,F713=0),0,E713/F713))","v":""},{"$f":"IF(C714=\"\",IF(AND(E713=\"\",F713=\"\"),\"\",IF(AND(G713>0,G713<=CapFinanciera1),Puntajes!$D$12,IF(AND(G713>CapFinanciera1,G713<=CapFinanciera2),Puntajes!$D$13,IF(AND(G713>CapFinanciera2,G713<=CapFinanciera3),Puntajes!$D$14,IF(AND(G713>CapFinanciera3,G713<=CapFinanciera4),Puntajes!$D$15,IF(G713>CapFinanciera4,Puntajes!$D$16,0)))))),\"\")","v":""}]
[null,null,{"$f":"+'Capacidad Financiera'!B717","v":""},{"$f":"IF(ISERROR(VLOOKUP(C714,'Capacidad Financiera'!$B$12:$X$62720,2,0)),\"\",VLOOKUP(C714,'Capacidad Financiera'!$B$12:$X$3580,2,0))","v":0},{"$f":"IF(OR(C714=\"\",D714=\"\"),\"\",IF(ISERROR(VLOOKUP(D714,'Capacidad Financiera'!$C$13:$X$62720,3,0)),\"\",VLOOKUP(D714,'Capacidad Financiera'!$C$13:$X$62720,3,0)))","v":""},{"$f":"IF(OR(C714=\"\",D714=\"\"),\"\",IF(ISERROR(VLOOKUP(D714,'Capacidad Financiera'!$C$13:$X$62720,5,0)),\"\",VLOOKUP(D714,'Capacidad Financiera'!$C$13:$X$62720,5,0)))","v":""},{"$f":"IF(OR(D714=\"\",E714=\"\",F714=\"\"),\"\",IF(OR(E714=0,F714=0),0,E714/F714))","v":""},{"$f":"IF(OR(D714=\"\",E714=\"\",F714=\"\"),\"\",IF(AND(G714>0,G714<=CapFinanciera1),Puntajes!$D$12,IF(AND(G714>CapFinanciera1,G714<=CapFinanciera2),Puntajes!$D$13,IF(AND(G714>CapFinanciera2,G714<=CapFinanciera3),Puntajes!$D$14,IF(AND(G714>CapFinanciera3,G714<=CapFinanciera4),Puntajes!$D$15,IF(G714>CapFinanciera4,Puntajes!$D$16,0))))))","v":""}]
[null,null,{"$f":"+'Capacidad Financiera'!B718","v":""},{"$f":"IF(ISERROR(VLOOKUP(C715,'Capacidad Financiera'!$B$12:$X$62720,2,0)),\"\",VLOOKUP(C715,'Capacidad Financiera'!$B$12:$X$3580,2,0))","v":0},{"$f":"IF(OR(C715=\"\",D715=\"\"),\"\",IF(ISERROR(VLOOKUP(D715,'Capacidad Financiera'!$C$13:$X$62720,3,0)),\"\",VLOOKUP(D715,'Capacidad Financiera'!$C$13:$X$62720,3,0)))","v":""},{"$f":"IF(OR(C715=\"\",D715=\"\"),\"\",IF(ISERROR(VLOOKUP(D715,'Capacidad Financiera'!$C$13:$X$62720,5,0)),\"\",VLOOKUP(D715,'Capacidad Financiera'!$C$13:$X$62720,5,0)))","v":""},"",{"$f":"IF(OR(D715=\"\",E715=\"\",F715=\"\"),\"\",IF(AND(G715>0,G715<=CapFinanciera1),Puntajes!$D$12,IF(AND(G715>CapFinanciera1,G715<=CapFinanciera2),Puntajes!$D$13,IF(AND(G715>CapFinanciera2,G715<=CapFinanciera3),Puntajes!$D$14,IF(AND(G715>CapFinanciera3,G715<=CapFinanciera4),Puntajes!$D$15,IF(G715>CapFinanciera4,Puntajes!$D$16,0))))))","v":""}]
[null,null,{"$f":"+'Capacidad Financiera'!B719","v":""},{"$f":"IF(ISERROR(VLOOKUP(C716,'Capacidad Financiera'!$B$12:$X$62720,2,0)),\"\",VLOOKUP(C716,'Capacidad Financiera'!$B$12:$X$3580,2,0))","v":0},{"$f":"IF(OR(C716=\"\",D716=\"\"),\"\",IF(ISERROR(VLOOKUP(D716,'Capacidad Financiera'!$C$13:$X$62720,3,0)),\"\",VLOOKUP(D716,'Capacidad Financiera'!$C$13:$X$62720,3,0)))","v":""},{"$f":"IF(OR(C716=\"\",D716=\"\"),\"\",IF(ISERROR(VLOOKUP(D716,'Capacidad Financiera'!$C$13:$X$62720,5,0)),\"\",VLOOKUP(D716,'Capacidad Financiera'!$C$13:$X$62720,5,0)))","v":""},"",{"$f":"IF(OR(D716=\"\",E716=\"\",F716=\"\"),\"\",IF(AND(G716>0,G716<=CapFinanciera1),Puntajes!$D$12,IF(AND(G716>CapFinanciera1,G716<=CapFinanciera2),Puntajes!$D$13,IF(AND(G716>CapFinanciera2,G716<=CapFinanciera3),Puntajes!$D$14,IF(AND(G716>CapFinanciera3,G716<=CapFinanciera4),Puntajes!$D$15,IF(G716>CapFinanciera4,Puntajes!$D$16,0))))))","v":""}]
[null,null,{"$f":"+'Capacidad Financiera'!B720","v":""},{"$f":"IF(ISERROR(VLOOKUP(C717,'Capacidad Financiera'!$B$12:$X$62720,2,0)),\"\",VLOOKUP(C717,'Capacidad Financiera'!$B$12:$X$3580,2,0))","v":0},{"$f":"IF(OR(C717=\"\",D717=\"\"),\"\",IF(ISERROR(VLOOKUP(D717,'Capacidad Financiera'!$C$13:$X$62720,3,0)),\"\",VLOOKUP(D717,'Capacidad Financiera'!$C$13:$X$62720,3,0)))","v":""},{"$f":"IF(OR(C717=\"\",D717=\"\"),\"\",IF(ISERROR(VLOOKUP(D717,'Capacidad Financiera'!$C$13:$X$62720,5,0)),\"\",VLOOKUP(D717,'Capacidad Financiera'!$C$13:$X$62720,5,0)))","v":""},"",{"$f":"IF(OR(D717=\"\",E717=\"\",F717=\"\"),\"\",IF(AND(G717>0,G717<=CapFinanciera1),Puntajes!$D$12,IF(AND(G717>CapFinanciera1,G717<=CapFinanciera2),Puntajes!$D$13,IF(AND(G717>CapFinanciera2,G717<=CapFinanciera3),Puntajes!$D$14,IF(AND(G717>CapFinanciera3,G717<=CapFinanciera4),Puntajes!$D$15,IF(G717>CapFinanciera4,Puntajes!$D$16,0))))))","v":""}]
[null,null,{"$f":"+'Capacidad Financiera'!B721","v":""},{"$f":"IF(ISERROR(VLOOKUP(C718,'Capacidad Financiera'!$B$12:$X$62720,2,0)),\"\",VLOOKUP(C718,'Capacidad Financiera'!$B$12:$X$3580,2,0))","v":0},{"$f":"IF(OR(C718=\"\",D718=\"\"),\"\",IF(ISERROR(VLOOKUP(D718,'Capacidad Financiera'!$C$13:$X$62720,3,0)),\"\",VLOOKUP(D718,'Capacidad Financiera'!$C$13:$X$62720,3,0)))","v":""},{"$f":"IF(OR(C718=\"\",D718=\"\"),\"\",IF(ISERROR(VLOOKUP(D718,'Capacidad Financiera'!$C$13:$X$62720,5,0)),\"\",VLOOKUP(D718,'Capacidad Financiera'!$C$13:$X$62720,5,0)))","v":""},"",{"$f":"IF(OR(D718=\"\",E718=\"\",F718=\"\"),\"\",IF(AND(G718>0,G718<=CapFinanciera1),Puntajes!$D$12,IF(AND(G718>CapFinanciera1,G718<=CapFinanciera2),Puntajes!$D$13,IF(AND(G718>CapFinanciera2,G718<=CapFinanciera3),Puntajes!$D$14,IF(AND(G718>CapFinanciera3,G718<=CapFinanciera4),Puntajes!$D$15,IF(G718>CapFinanciera4,Puntajes!$D$16,0))))))","v":""}]
[null,null,{"$f":"+'Capacidad Financiera'!B722","v":""},{"$f":"IF(ISERROR(VLOOKUP(C719,'Capacidad Financiera'!$B$12:$X$62720,2,0)),\"\",VLOOKUP(C719,'Capacidad Financiera'!$B$12:$X$3580,2,0))","v":0},{"$f":"IF(OR(C719=\"\",D719=\"\"),\"\",IF(ISERROR(VLOOKUP(D719,'Capacidad Financiera'!$C$13:$X$62720,3,0)),\"\",VLOOKUP(D719,'Capacidad Financiera'!$C$13:$X$62720,3,0)))","v":""},{"$f":"IF(OR(C719=\"\",D719=\"\"),\"\",IF(ISERROR(VLOOKUP(D719,'Capacidad Financiera'!$C$13:$X$62720,5,0)),\"\",VLOOKUP(D719,'Capacidad Financiera'!$C$13:$X$62720,5,0)))","v":""},"",{"$f":"IF(OR(D719=\"\",E719=\"\",F719=\"\"),\"\",IF(AND(G719>0,G719<=CapFinanciera1),Puntajes!$D$12,IF(AND(G719>CapFinanciera1,G719<=CapFinanciera2),Puntajes!$D$13,IF(AND(G719>CapFinanciera2,G719<=CapFinanciera3),Puntajes!$D$14,IF(AND(G719>CapFinanciera3,G719<=CapFinanciera4),Puntajes!$D$15,IF(G719>CapFinanciera4,Puntajes!$D$16,0))))))","v":""}]
[null,null,{"$f":"+'Capacidad Financiera'!B723","v":""},{"$f":"IF(ISERROR(VLOOKUP(C720,'Capacidad Financiera'!$B$12:$X$62720,2,0)),\"\",VLOOKUP(C720,'Capacidad Financiera'!$B$12:$X$3580,2,0))","v":0},{"$f":"IF(OR(C720=\"\",D720=\"\"),\"\",IF(ISERROR(VLOOKUP(D720,'Capacidad Financiera'!$C$13:$X$62720,3,0)),\"\",VLOOKUP(D720,'Capacidad Financiera'!$C$13:$X$62720,3,0)))","v":""},{"$f":"IF(OR(C720=\"\",D720=\"\"),\"\",IF(ISERROR(VLOOKUP(D720,'Capacidad Financiera'!$C$13:$X$62720,5,0)),\"\",VLOOKUP(D720,'Capacidad Financiera'!$C$13:$X$62720,5,0)))","v":""},"",{"$f":"IF(OR(D720=\"\",E720=\"\",F720=\"\"),\"\",IF(AND(G720>0,G720<=CapFinanciera1),Puntajes!$D$12,IF(AND(G720>CapFinanciera1,G720<=CapFinanciera2),Puntajes!$D$13,IF(AND(G720>CapFinanciera2,G720<=CapFinanciera3),Puntajes!$D$14,IF(AND(G720>CapFinanciera3,G720<=CapFinanciera4),Puntajes!$D$15,IF(G720>CapFinanciera4,Puntajes!$D$16,0))))))","v":""}]
[null,null,{"$f":"+'Capacidad Financiera'!B724","v":""},{"$f":"IF(ISERROR(VLOOKUP(C721,'Capacidad Financiera'!$B$12:$X$62720,2,0)),\"\",VLOOKUP(C721,'Capacidad Financiera'!$B$12:$X$3580,2,0))","v":0},{"$f":"IF(OR(C721=\"\",D721=\"\"),\"\",IF(ISERROR(VLOOKUP(D721,'Capacidad Financiera'!$C$13:$X$62720,3,0)),\"\",VLOOKUP(D721,'Capacidad Financiera'!$C$13:$X$62720,3,0)))","v":""},{"$f":"IF(OR(C721=\"\",D721=\"\"),\"\",IF(ISERROR(VLOOKUP(D721,'Capacidad Financiera'!$C$13:$X$62720,5,0)),\"\",VLOOKUP(D721,'Capacidad Financiera'!$C$13:$X$62720,5,0)))","v":""},"",{"$f":"IF(OR(D721=\"\",E721=\"\",F721=\"\"),\"\",IF(AND(G721>0,G721<=CapFinanciera1),Puntajes!$D$12,IF(AND(G721>CapFinanciera1,G721<=CapFinanciera2),Puntajes!$D$13,IF(AND(G721>CapFinanciera2,G721<=CapFinanciera3),Puntajes!$D$14,IF(AND(G721>CapFinanciera3,G721<=CapFinanciera4),Puntajes!$D$15,IF(G721>CapFinanciera4,Puntajes!$D$16,0))))))","v":""}]
[null,null,{"$f":"+'Capacidad Financiera'!B725","v":""},{"$f":"IF(ISERROR(VLOOKUP(C722,'Capacidad Financiera'!$B$12:$X$62720,2,0)),\"\",VLOOKUP(C722,'Capacidad Financiera'!$B$12:$X$3580,2,0))","v":0},{"$f":"IF(OR(C722=\"\",D722=\"\"),\"\",IF(ISERROR(VLOOKUP(D722,'Capacidad Financiera'!$C$13:$X$62720,3,0)),\"\",VLOOKUP(D722,'Capacidad Financiera'!$C$13:$X$62720,3,0)))","v":""},{"$f":"IF(OR(C722=\"\",D722=\"\"),\"\",IF(ISERROR(VLOOKUP(D722,'Capacidad Financiera'!$C$13:$X$62720,5,0)),\"\",VLOOKUP(D722,'Capacidad Financiera'!$C$13:$X$62720,5,0)))","v":""},"",{"$f":"IF(OR(D722=\"\",E722=\"\",F722=\"\"),\"\",IF(AND(G722>0,G722<=CapFinanciera1),Puntajes!$D$12,IF(AND(G722>CapFinanciera1,G722<=CapFinanciera2),Puntajes!$D$13,IF(AND(G722>CapFinanciera2,G722<=CapFinanciera3),Puntajes!$D$14,IF(AND(G722>CapFinanciera3,G722<=CapFinanciera4),Puntajes!$D$15,IF(G722>CapFinanciera4,Puntajes!$D$16,0))))))","v":""}]
[null,null,{"$f":"+'Capacidad Financiera'!B726","v":""},{"$f":"IF(ISERROR(VLOOKUP(C723,'Capacidad Financiera'!$B$12:$X$62720,2,0)),\"\",VLOOKUP(C723,'Capacidad Financiera'!$B$12:$X$3580,2,0))","v":0},{"$f":"IF(OR(C723=\"\",D723=\"\"),\"\",IF(ISERROR(VLOOKUP(D723,'Capacidad Financiera'!$C$13:$X$62720,3,0)),\"\",VLOOKUP(D723,'Capacidad Financiera'!$C$13:$X$62720,3,0)))","v":""},{"$f":"IF(OR(C723=\"\",D723=\"\"),\"\",IF(ISERROR(VLOOKUP(D723,'Capacidad Financiera'!$C$13:$X$62720,5,0)),\"\",VLOOKUP(D723,'Capacidad Financiera'!$C$13:$X$62720,5,0)))","v":""},"",{"$f":"IF(OR(D723=\"\",E723=\"\",F723=\"\"),\"\",IF(AND(G723>0,G723<=CapFinanciera1),Puntajes!$D$12,IF(AND(G723>CapFinanciera1,G723<=CapFinanciera2),Puntajes!$D$13,IF(AND(G723>CapFinanciera2,G723<=CapFinanciera3),Puntajes!$D$14,IF(AND(G723>CapFinanciera3,G723<=CapFinanciera4),Puntajes!$D$15,IF(G723>CapFinanciera4,Puntajes!$D$16,0))))))","v":""}]
[null,null,66,{"$f":"IF(ISERROR(VLOOKUP(C724,'Capacidad Financiera'!$B$12:$X$62720,2,0)),\"\",VLOOKUP(C724,'Capacidad Financiera'!$B$12:$X$3580,2,0))","v":0},{"$f":"IF(C725=\"\",IF(C724<>\"\",IF(ISERROR(VLOOKUP(D724,'Capacidad Financiera'!$C$12:$H$22,3,0)),\"\",VLOOKUP(D724,'Capacidad Financiera'!$C$12:$H$22,3,0))),\"\")","v":""},{"$f":"IF(C725=\"\",IF(C724<>\"\",IF(ISERROR(VLOOKUP(D724,'Capacidad Financiera'!$C$12:$H$22,5,0)),\"\",VLOOKUP(D724,'Capacidad Financiera'!$C$12:$H$22,5,0))),\"\")","v":""},{"$f":"IF(OR(D724=\"\",E724=\"\",F724=\"\"),\"\",IF(OR(E724=0,F724=0),0,E724/F724))","v":""},{"$f":"IF(C725=\"\",IF(AND(E724=\"\",F724=\"\"),\"\",IF(AND(G724>0,G724<=CapFinanciera1),Puntajes!$D$12,IF(AND(G724>CapFinanciera1,G724<=CapFinanciera2),Puntajes!$D$13,IF(AND(G724>CapFinanciera2,G724<=CapFinanciera3),Puntajes!$D$14,IF(AND(G724>CapFinanciera3,G724<=CapFinanciera4),Puntajes!$D$15,IF(G724>CapFinanciera4,Puntajes!$D$16,0)))))),\"\")","v":""}]
[null,null,{"$f":"+'Capacidad Financiera'!B728","v":""},{"$f":"IF(ISERROR(VLOOKUP(C725,'Capacidad Financiera'!$B$12:$X$62720,2,0)),\"\",VLOOKUP(C725,'Capacidad Financiera'!$B$12:$X$3580,2,0))","v":0},{"$f":"IF(OR(C725=\"\",D725=\"\"),\"\",IF(ISERROR(VLOOKUP(D725,'Capacidad Financiera'!$C$13:$X$62720,3,0)),\"\",VLOOKUP(D725,'Capacidad Financiera'!$C$13:$X$62720,3,0)))","v":""},{"$f":"IF(OR(C725=\"\",D725=\"\"),\"\",IF(ISERROR(VLOOKUP(D725,'Capacidad Financiera'!$C$13:$X$62720,5,0)),\"\",VLOOKUP(D725,'Capacidad Financiera'!$C$13:$X$62720,5,0)))","v":""},{"$f":"IF(OR(D725=\"\",E725=\"\",F725=\"\"),\"\",IF(OR(E725=0,F725=0),0,E725/F725))","v":""},{"$f":"IF(OR(D725=\"\",E725=\"\",F725=\"\"),\"\",IF(AND(G725>0,G725<=CapFinanciera1),Puntajes!$D$12,IF(AND(G725>CapFinanciera1,G725<=CapFinanciera2),Puntajes!$D$13,IF(AND(G725>CapFinanciera2,G725<=CapFinanciera3),Puntajes!$D$14,IF(AND(G725>CapFinanciera3,G725<=CapFinanciera4),Puntajes!$D$15,IF(G725>CapFinanciera4,Puntajes!$D$16,0))))))","v":""}]
[null,null,{"$f":"+'Capacidad Financiera'!B729","v":""},{"$f":"IF(ISERROR(VLOOKUP(C726,'Capacidad Financiera'!$B$12:$X$62720,2,0)),\"\",VLOOKUP(C726,'Capacidad Financiera'!$B$12:$X$3580,2,0))","v":0},{"$f":"IF(OR(C726=\"\",D726=\"\"),\"\",IF(ISERROR(VLOOKUP(D726,'Capacidad Financiera'!$C$13:$X$62720,3,0)),\"\",VLOOKUP(D726,'Capacidad Financiera'!$C$13:$X$62720,3,0)))","v":""},{"$f":"IF(OR(C726=\"\",D726=\"\"),\"\",IF(ISERROR(VLOOKUP(D726,'Capacidad Financiera'!$C$13:$X$62720,5,0)),\"\",VLOOKUP(D726,'Capacidad Financiera'!$C$13:$X$62720,5,0)))","v":""},"",{"$f":"IF(OR(D726=\"\",E726=\"\",F726=\"\"),\"\",IF(AND(G726>0,G726<=CapFinanciera1),Puntajes!$D$12,IF(AND(G726>CapFinanciera1,G726<=CapFinanciera2),Puntajes!$D$13,IF(AND(G726>CapFinanciera2,G726<=CapFinanciera3),Puntajes!$D$14,IF(AND(G726>CapFinanciera3,G726<=CapFinanciera4),Puntajes!$D$15,IF(G726>CapFinanciera4,Puntajes!$D$16,0))))))","v":""}]
[null,null,{"$f":"+'Capacidad Financiera'!B730","v":""},{"$f":"IF(ISERROR(VLOOKUP(C727,'Capacidad Financiera'!$B$12:$X$62720,2,0)),\"\",VLOOKUP(C727,'Capacidad Financiera'!$B$12:$X$3580,2,0))","v":0},{"$f":"IF(OR(C727=\"\",D727=\"\"),\"\",IF(ISERROR(VLOOKUP(D727,'Capacidad Financiera'!$C$13:$X$62720,3,0)),\"\",VLOOKUP(D727,'Capacidad Financiera'!$C$13:$X$62720,3,0)))","v":""},{"$f":"IF(OR(C727=\"\",D727=\"\"),\"\",IF(ISERROR(VLOOKUP(D727,'Capacidad Financiera'!$C$13:$X$62720,5,0)),\"\",VLOOKUP(D727,'Capacidad Financiera'!$C$13:$X$62720,5,0)))","v":""},"",{"$f":"IF(OR(D727=\"\",E727=\"\",F727=\"\"),\"\",IF(AND(G727>0,G727<=CapFinanciera1),Puntajes!$D$12,IF(AND(G727>CapFinanciera1,G727<=CapFinanciera2),Puntajes!$D$13,IF(AND(G727>CapFinanciera2,G727<=CapFinanciera3),Puntajes!$D$14,IF(AND(G727>CapFinanciera3,G727<=CapFinanciera4),Puntajes!$D$15,IF(G727>CapFinanciera4,Puntajes!$D$16,0))))))","v":""}]
[null,null,{"$f":"+'Capacidad Financiera'!B731","v":""},{"$f":"IF(ISERROR(VLOOKUP(C728,'Capacidad Financiera'!$B$12:$X$62720,2,0)),\"\",VLOOKUP(C728,'Capacidad Financiera'!$B$12:$X$3580,2,0))","v":0},{"$f":"IF(OR(C728=\"\",D728=\"\"),\"\",IF(ISERROR(VLOOKUP(D728,'Capacidad Financiera'!$C$13:$X$62720,3,0)),\"\",VLOOKUP(D728,'Capacidad Financiera'!$C$13:$X$62720,3,0)))","v":""},{"$f":"IF(OR(C728=\"\",D728=\"\"),\"\",IF(ISERROR(VLOOKUP(D728,'Capacidad Financiera'!$C$13:$X$62720,5,0)),\"\",VLOOKUP(D728,'Capacidad Financiera'!$C$13:$X$62720,5,0)))","v":""},"",{"$f":"IF(OR(D728=\"\",E728=\"\",F728=\"\"),\"\",IF(AND(G728>0,G728<=CapFinanciera1),Puntajes!$D$12,IF(AND(G728>CapFinanciera1,G728<=CapFinanciera2),Puntajes!$D$13,IF(AND(G728>CapFinanciera2,G728<=CapFinanciera3),Puntajes!$D$14,IF(AND(G728>CapFinanciera3,G728<=CapFinanciera4),Puntajes!$D$15,IF(G728>CapFinanciera4,Puntajes!$D$16,0))))))","v":""}]
[null,null,{"$f":"+'Capacidad Financiera'!B732","v":""},{"$f":"IF(ISERROR(VLOOKUP(C729,'Capacidad Financiera'!$B$12:$X$62720,2,0)),\"\",VLOOKUP(C729,'Capacidad Financiera'!$B$12:$X$3580,2,0))","v":0},{"$f":"IF(OR(C729=\"\",D729=\"\"),\"\",IF(ISERROR(VLOOKUP(D729,'Capacidad Financiera'!$C$13:$X$62720,3,0)),\"\",VLOOKUP(D729,'Capacidad Financiera'!$C$13:$X$62720,3,0)))","v":""},{"$f":"IF(OR(C729=\"\",D729=\"\"),\"\",IF(ISERROR(VLOOKUP(D729,'Capacidad Financiera'!$C$13:$X$62720,5,0)),\"\",VLOOKUP(D729,'Capacidad Financiera'!$C$13:$X$62720,5,0)))","v":""},"",{"$f":"IF(OR(D729=\"\",E729=\"\",F729=\"\"),\"\",IF(AND(G729>0,G729<=CapFinanciera1),Puntajes!$D$12,IF(AND(G729>CapFinanciera1,G729<=CapFinanciera2),Puntajes!$D$13,IF(AND(G729>CapFinanciera2,G729<=CapFinanciera3),Puntajes!$D$14,IF(AND(G729>CapFinanciera3,G729<=CapFinanciera4),Puntajes!$D$15,IF(G729>CapFinanciera4,Puntajes!$D$16,0))))))","v":""}]
[null,null,{"$f":"+'Capacidad Financiera'!B733","v":""},{"$f":"IF(ISERROR(VLOOKUP(C730,'Capacidad Financiera'!$B$12:$X$62720,2,0)),\"\",VLOOKUP(C730,'Capacidad Financiera'!$B$12:$X$3580,2,0))","v":0},{"$f":"IF(OR(C730=\"\",D730=\"\"),\"\",IF(ISERROR(VLOOKUP(D730,'Capacidad Financiera'!$C$13:$X$62720,3,0)),\"\",VLOOKUP(D730,'Capacidad Financiera'!$C$13:$X$62720,3,0)))","v":""},{"$f":"IF(OR(C730=\"\",D730=\"\"),\"\",IF(ISERROR(VLOOKUP(D730,'Capacidad Financiera'!$C$13:$X$62720,5,0)),\"\",VLOOKUP(D730,'Capacidad Financiera'!$C$13:$X$62720,5,0)))","v":""},"",{"$f":"IF(OR(D730=\"\",E730=\"\",F730=\"\"),\"\",IF(AND(G730>0,G730<=CapFinanciera1),Puntajes!$D$12,IF(AND(G730>CapFinanciera1,G730<=CapFinanciera2),Puntajes!$D$13,IF(AND(G730>CapFinanciera2,G730<=CapFinanciera3),Puntajes!$D$14,IF(AND(G730>CapFinanciera3,G730<=CapFinanciera4),Puntajes!$D$15,IF(G730>CapFinanciera4,Puntajes!$D$16,0))))))","v":""}]
[null,null,{"$f":"+'Capacidad Financiera'!B734","v":""},{"$f":"IF(ISERROR(VLOOKUP(C731,'Capacidad Financiera'!$B$12:$X$62720,2,0)),\"\",VLOOKUP(C731,'Capacidad Financiera'!$B$12:$X$3580,2,0))","v":0},{"$f":"IF(OR(C731=\"\",D731=\"\"),\"\",IF(ISERROR(VLOOKUP(D731,'Capacidad Financiera'!$C$13:$X$62720,3,0)),\"\",VLOOKUP(D731,'Capacidad Financiera'!$C$13:$X$62720,3,0)))","v":""},{"$f":"IF(OR(C731=\"\",D731=\"\"),\"\",IF(ISERROR(VLOOKUP(D731,'Capacidad Financiera'!$C$13:$X$62720,5,0)),\"\",VLOOKUP(D731,'Capacidad Financiera'!$C$13:$X$62720,5,0)))","v":""},"",{"$f":"IF(OR(D731=\"\",E731=\"\",F731=\"\"),\"\",IF(AND(G731>0,G731<=CapFinanciera1),Puntajes!$D$12,IF(AND(G731>CapFinanciera1,G731<=CapFinanciera2),Puntajes!$D$13,IF(AND(G731>CapFinanciera2,G731<=CapFinanciera3),Puntajes!$D$14,IF(AND(G731>CapFinanciera3,G731<=CapFinanciera4),Puntajes!$D$15,IF(G731>CapFinanciera4,Puntajes!$D$16,0))))))","v":""}]
[null,null,{"$f":"+'Capacidad Financiera'!B735","v":""},{"$f":"IF(ISERROR(VLOOKUP(C732,'Capacidad Financiera'!$B$12:$X$62720,2,0)),\"\",VLOOKUP(C732,'Capacidad Financiera'!$B$12:$X$3580,2,0))","v":0},{"$f":"IF(OR(C732=\"\",D732=\"\"),\"\",IF(ISERROR(VLOOKUP(D732,'Capacidad Financiera'!$C$13:$X$62720,3,0)),\"\",VLOOKUP(D732,'Capacidad Financiera'!$C$13:$X$62720,3,0)))","v":""},{"$f":"IF(OR(C732=\"\",D732=\"\"),\"\",IF(ISERROR(VLOOKUP(D732,'Capacidad Financiera'!$C$13:$X$62720,5,0)),\"\",VLOOKUP(D732,'Capacidad Financiera'!$C$13:$X$62720,5,0)))","v":""},"",{"$f":"IF(OR(D732=\"\",E732=\"\",F732=\"\"),\"\",IF(AND(G732>0,G732<=CapFinanciera1),Puntajes!$D$12,IF(AND(G732>CapFinanciera1,G732<=CapFinanciera2),Puntajes!$D$13,IF(AND(G732>CapFinanciera2,G732<=CapFinanciera3),Puntajes!$D$14,IF(AND(G732>CapFinanciera3,G732<=CapFinanciera4),Puntajes!$D$15,IF(G732>CapFinanciera4,Puntajes!$D$16,0))))))","v":""}]
[null,null,{"$f":"+'Capacidad Financiera'!B736","v":""},{"$f":"IF(ISERROR(VLOOKUP(C733,'Capacidad Financiera'!$B$12:$X$62720,2,0)),\"\",VLOOKUP(C733,'Capacidad Financiera'!$B$12:$X$3580,2,0))","v":0},{"$f":"IF(OR(C733=\"\",D733=\"\"),\"\",IF(ISERROR(VLOOKUP(D733,'Capacidad Financiera'!$C$13:$X$62720,3,0)),\"\",VLOOKUP(D733,'Capacidad Financiera'!$C$13:$X$62720,3,0)))","v":""},{"$f":"IF(OR(C733=\"\",D733=\"\"),\"\",IF(ISERROR(VLOOKUP(D733,'Capacidad Financiera'!$C$13:$X$62720,5,0)),\"\",VLOOKUP(D733,'Capacidad Financiera'!$C$13:$X$62720,5,0)))","v":""},"",{"$f":"IF(OR(D733=\"\",E733=\"\",F733=\"\"),\"\",IF(AND(G733>0,G733<=CapFinanciera1),Puntajes!$D$12,IF(AND(G733>CapFinanciera1,G733<=CapFinanciera2),Puntajes!$D$13,IF(AND(G733>CapFinanciera2,G733<=CapFinanciera3),Puntajes!$D$14,IF(AND(G733>CapFinanciera3,G733<=CapFinanciera4),Puntajes!$D$15,IF(G733>CapFinanciera4,Puntajes!$D$16,0))))))","v":""}]
[null,null,{"$f":"+'Capacidad Financiera'!B737","v":""},{"$f":"IF(ISERROR(VLOOKUP(C734,'Capacidad Financiera'!$B$12:$X$62720,2,0)),\"\",VLOOKUP(C734,'Capacidad Financiera'!$B$12:$X$3580,2,0))","v":0},{"$f":"IF(OR(C734=\"\",D734=\"\"),\"\",IF(ISERROR(VLOOKUP(D734,'Capacidad Financiera'!$C$13:$X$62720,3,0)),\"\",VLOOKUP(D734,'Capacidad Financiera'!$C$13:$X$62720,3,0)))","v":""},{"$f":"IF(OR(C734=\"\",D734=\"\"),\"\",IF(ISERROR(VLOOKUP(D734,'Capacidad Financiera'!$C$13:$X$62720,5,0)),\"\",VLOOKUP(D734,'Capacidad Financiera'!$C$13:$X$62720,5,0)))","v":""},"",{"$f":"IF(OR(D734=\"\",E734=\"\",F734=\"\"),\"\",IF(AND(G734>0,G734<=CapFinanciera1),Puntajes!$D$12,IF(AND(G734>CapFinanciera1,G734<=CapFinanciera2),Puntajes!$D$13,IF(AND(G734>CapFinanciera2,G734<=CapFinanciera3),Puntajes!$D$14,IF(AND(G734>CapFinanciera3,G734<=CapFinanciera4),Puntajes!$D$15,IF(G734>CapFinanciera4,Puntajes!$D$16,0))))))","v":""}]
[null,null,67,{"$f":"IF(ISERROR(VLOOKUP(C735,'Capacidad Financiera'!$B$12:$X$62720,2,0)),\"\",VLOOKUP(C735,'Capacidad Financiera'!$B$12:$X$3580,2,0))","v":0},{"$f":"IF(C736=\"\",IF(C735<>\"\",IF(ISERROR(VLOOKUP(D735,'Capacidad Financiera'!$C$12:$H$22,3,0)),\"\",VLOOKUP(D735,'Capacidad Financiera'!$C$12:$H$22,3,0))),\"\")","v":""},{"$f":"IF(C736=\"\",IF(C735<>\"\",IF(ISERROR(VLOOKUP(D735,'Capacidad Financiera'!$C$12:$H$22,5,0)),\"\",VLOOKUP(D735,'Capacidad Financiera'!$C$12:$H$22,5,0))),\"\")","v":""},{"$f":"IF(OR(D735=\"\",E735=\"\",F735=\"\"),\"\",IF(OR(E735=0,F735=0),0,E735/F735))","v":""},{"$f":"IF(C736=\"\",IF(AND(E735=\"\",F735=\"\"),\"\",IF(AND(G735>0,G735<=CapFinanciera1),Puntajes!$D$12,IF(AND(G735>CapFinanciera1,G735<=CapFinanciera2),Puntajes!$D$13,IF(AND(G735>CapFinanciera2,G735<=CapFinanciera3),Puntajes!$D$14,IF(AND(G735>CapFinanciera3,G735<=CapFinanciera4),Puntajes!$D$15,IF(G735>CapFinanciera4,Puntajes!$D$16,0)))))),\"\")","v":""}]
[null,null,{"$f":"+'Capacidad Financiera'!B739","v":""},{"$f":"IF(ISERROR(VLOOKUP(C736,'Capacidad Financiera'!$B$12:$X$62720,2,0)),\"\",VLOOKUP(C736,'Capacidad Financiera'!$B$12:$X$3580,2,0))","v":0},{"$f":"IF(OR(C736=\"\",D736=\"\"),\"\",IF(ISERROR(VLOOKUP(D736,'Capacidad Financiera'!$C$13:$X$62720,3,0)),\"\",VLOOKUP(D736,'Capacidad Financiera'!$C$13:$X$62720,3,0)))","v":""},{"$f":"IF(OR(C736=\"\",D736=\"\"),\"\",IF(ISERROR(VLOOKUP(D736,'Capacidad Financiera'!$C$13:$X$62720,5,0)),\"\",VLOOKUP(D736,'Capacidad Financiera'!$C$13:$X$62720,5,0)))","v":""},{"$f":"IF(OR(D736=\"\",E736=\"\",F736=\"\"),\"\",IF(OR(E736=0,F736=0),0,E736/F736))","v":""},{"$f":"IF(OR(D736=\"\",E736=\"\",F736=\"\"),\"\",IF(AND(G736>0,G736<=CapFinanciera1),Puntajes!$D$12,IF(AND(G736>CapFinanciera1,G736<=CapFinanciera2),Puntajes!$D$13,IF(AND(G736>CapFinanciera2,G736<=CapFinanciera3),Puntajes!$D$14,IF(AND(G736>CapFinanciera3,G736<=CapFinanciera4),Puntajes!$D$15,IF(G736>CapFinanciera4,Puntajes!$D$16,0))))))","v":""}]
[null,null,{"$f":"+'Capacidad Financiera'!B740","v":""},{"$f":"IF(ISERROR(VLOOKUP(C737,'Capacidad Financiera'!$B$12:$X$62720,2,0)),\"\",VLOOKUP(C737,'Capacidad Financiera'!$B$12:$X$3580,2,0))","v":0},{"$f":"IF(OR(C737=\"\",D737=\"\"),\"\",IF(ISERROR(VLOOKUP(D737,'Capacidad Financiera'!$C$13:$X$62720,3,0)),\"\",VLOOKUP(D737,'Capacidad Financiera'!$C$13:$X$62720,3,0)))","v":""},{"$f":"IF(OR(C737=\"\",D737=\"\"),\"\",IF(ISERROR(VLOOKUP(D737,'Capacidad Financiera'!$C$13:$X$62720,5,0)),\"\",VLOOKUP(D737,'Capacidad Financiera'!$C$13:$X$62720,5,0)))","v":""},"",{"$f":"IF(OR(D737=\"\",E737=\"\",F737=\"\"),\"\",IF(AND(G737>0,G737<=CapFinanciera1),Puntajes!$D$12,IF(AND(G737>CapFinanciera1,G737<=CapFinanciera2),Puntajes!$D$13,IF(AND(G737>CapFinanciera2,G737<=CapFinanciera3),Puntajes!$D$14,IF(AND(G737>CapFinanciera3,G737<=CapFinanciera4),Puntajes!$D$15,IF(G737>CapFinanciera4,Puntajes!$D$16,0))))))","v":""}]
[null,null,{"$f":"+'Capacidad Financiera'!B741","v":""},{"$f":"IF(ISERROR(VLOOKUP(C738,'Capacidad Financiera'!$B$12:$X$62720,2,0)),\"\",VLOOKUP(C738,'Capacidad Financiera'!$B$12:$X$3580,2,0))","v":0},{"$f":"IF(OR(C738=\"\",D738=\"\"),\"\",IF(ISERROR(VLOOKUP(D738,'Capacidad Financiera'!$C$13:$X$62720,3,0)),\"\",VLOOKUP(D738,'Capacidad Financiera'!$C$13:$X$62720,3,0)))","v":""},{"$f":"IF(OR(C738=\"\",D738=\"\"),\"\",IF(ISERROR(VLOOKUP(D738,'Capacidad Financiera'!$C$13:$X$62720,5,0)),\"\",VLOOKUP(D738,'Capacidad Financiera'!$C$13:$X$62720,5,0)))","v":""},"",{"$f":"IF(OR(D738=\"\",E738=\"\",F738=\"\"),\"\",IF(AND(G738>0,G738<=CapFinanciera1),Puntajes!$D$12,IF(AND(G738>CapFinanciera1,G738<=CapFinanciera2),Puntajes!$D$13,IF(AND(G738>CapFinanciera2,G738<=CapFinanciera3),Puntajes!$D$14,IF(AND(G738>CapFinanciera3,G738<=CapFinanciera4),Puntajes!$D$15,IF(G738>CapFinanciera4,Puntajes!$D$16,0))))))","v":""}]
[null,null,{"$f":"+'Capacidad Financiera'!B742","v":""},{"$f":"IF(ISERROR(VLOOKUP(C739,'Capacidad Financiera'!$B$12:$X$62720,2,0)),\"\",VLOOKUP(C739,'Capacidad Financiera'!$B$12:$X$3580,2,0))","v":0},{"$f":"IF(OR(C739=\"\",D739=\"\"),\"\",IF(ISERROR(VLOOKUP(D739,'Capacidad Financiera'!$C$13:$X$62720,3,0)),\"\",VLOOKUP(D739,'Capacidad Financiera'!$C$13:$X$62720,3,0)))","v":""},{"$f":"IF(OR(C739=\"\",D739=\"\"),\"\",IF(ISERROR(VLOOKUP(D739,'Capacidad Financiera'!$C$13:$X$62720,5,0)),\"\",VLOOKUP(D739,'Capacidad Financiera'!$C$13:$X$62720,5,0)))","v":""},"",{"$f":"IF(OR(D739=\"\",E739=\"\",F739=\"\"),\"\",IF(AND(G739>0,G739<=CapFinanciera1),Puntajes!$D$12,IF(AND(G739>CapFinanciera1,G739<=CapFinanciera2),Puntajes!$D$13,IF(AND(G739>CapFinanciera2,G739<=CapFinanciera3),Puntajes!$D$14,IF(AND(G739>CapFinanciera3,G739<=CapFinanciera4),Puntajes!$D$15,IF(G739>CapFinanciera4,Puntajes!$D$16,0))))))","v":""}]
[null,null,{"$f":"+'Capacidad Financiera'!B743","v":""},{"$f":"IF(ISERROR(VLOOKUP(C740,'Capacidad Financiera'!$B$12:$X$62720,2,0)),\"\",VLOOKUP(C740,'Capacidad Financiera'!$B$12:$X$3580,2,0))","v":0},{"$f":"IF(OR(C740=\"\",D740=\"\"),\"\",IF(ISERROR(VLOOKUP(D740,'Capacidad Financiera'!$C$13:$X$62720,3,0)),\"\",VLOOKUP(D740,'Capacidad Financiera'!$C$13:$X$62720,3,0)))","v":""},{"$f":"IF(OR(C740=\"\",D740=\"\"),\"\",IF(ISERROR(VLOOKUP(D740,'Capacidad Financiera'!$C$13:$X$62720,5,0)),\"\",VLOOKUP(D740,'Capacidad Financiera'!$C$13:$X$62720,5,0)))","v":""},"",{"$f":"IF(OR(D740=\"\",E740=\"\",F740=\"\"),\"\",IF(AND(G740>0,G740<=CapFinanciera1),Puntajes!$D$12,IF(AND(G740>CapFinanciera1,G740<=CapFinanciera2),Puntajes!$D$13,IF(AND(G740>CapFinanciera2,G740<=CapFinanciera3),Puntajes!$D$14,IF(AND(G740>CapFinanciera3,G740<=CapFinanciera4),Puntajes!$D$15,IF(G740>CapFinanciera4,Puntajes!$D$16,0))))))","v":""}]
[null,null,{"$f":"+'Capacidad Financiera'!B744","v":""},{"$f":"IF(ISERROR(VLOOKUP(C741,'Capacidad Financiera'!$B$12:$X$62720,2,0)),\"\",VLOOKUP(C741,'Capacidad Financiera'!$B$12:$X$3580,2,0))","v":0},{"$f":"IF(OR(C741=\"\",D741=\"\"),\"\",IF(ISERROR(VLOOKUP(D741,'Capacidad Financiera'!$C$13:$X$62720,3,0)),\"\",VLOOKUP(D741,'Capacidad Financiera'!$C$13:$X$62720,3,0)))","v":""},{"$f":"IF(OR(C741=\"\",D741=\"\"),\"\",IF(ISERROR(VLOOKUP(D741,'Capacidad Financiera'!$C$13:$X$62720,5,0)),\"\",VLOOKUP(D741,'Capacidad Financiera'!$C$13:$X$62720,5,0)))","v":""},"",{"$f":"IF(OR(D741=\"\",E741=\"\",F741=\"\"),\"\",IF(AND(G741>0,G741<=CapFinanciera1),Puntajes!$D$12,IF(AND(G741>CapFinanciera1,G741<=CapFinanciera2),Puntajes!$D$13,IF(AND(G741>CapFinanciera2,G741<=CapFinanciera3),Puntajes!$D$14,IF(AND(G741>CapFinanciera3,G741<=CapFinanciera4),Puntajes!$D$15,IF(G741>CapFinanciera4,Puntajes!$D$16,0))))))","v":""}]
[null,null,{"$f":"+'Capacidad Financiera'!B745","v":""},{"$f":"IF(ISERROR(VLOOKUP(C742,'Capacidad Financiera'!$B$12:$X$62720,2,0)),\"\",VLOOKUP(C742,'Capacidad Financiera'!$B$12:$X$3580,2,0))","v":0},{"$f":"IF(OR(C742=\"\",D742=\"\"),\"\",IF(ISERROR(VLOOKUP(D742,'Capacidad Financiera'!$C$13:$X$62720,3,0)),\"\",VLOOKUP(D742,'Capacidad Financiera'!$C$13:$X$62720,3,0)))","v":""},{"$f":"IF(OR(C742=\"\",D742=\"\"),\"\",IF(ISERROR(VLOOKUP(D742,'Capacidad Financiera'!$C$13:$X$62720,5,0)),\"\",VLOOKUP(D742,'Capacidad Financiera'!$C$13:$X$62720,5,0)))","v":""},"",{"$f":"IF(OR(D742=\"\",E742=\"\",F742=\"\"),\"\",IF(AND(G742>0,G742<=CapFinanciera1),Puntajes!$D$12,IF(AND(G742>CapFinanciera1,G742<=CapFinanciera2),Puntajes!$D$13,IF(AND(G742>CapFinanciera2,G742<=CapFinanciera3),Puntajes!$D$14,IF(AND(G742>CapFinanciera3,G742<=CapFinanciera4),Puntajes!$D$15,IF(G742>CapFinanciera4,Puntajes!$D$16,0))))))","v":""}]
[null,null,{"$f":"+'Capacidad Financiera'!B746","v":""},{"$f":"IF(ISERROR(VLOOKUP(C743,'Capacidad Financiera'!$B$12:$X$62720,2,0)),\"\",VLOOKUP(C743,'Capacidad Financiera'!$B$12:$X$3580,2,0))","v":0},{"$f":"IF(OR(C743=\"\",D743=\"\"),\"\",IF(ISERROR(VLOOKUP(D743,'Capacidad Financiera'!$C$13:$X$62720,3,0)),\"\",VLOOKUP(D743,'Capacidad Financiera'!$C$13:$X$62720,3,0)))","v":""},{"$f":"IF(OR(C743=\"\",D743=\"\"),\"\",IF(ISERROR(VLOOKUP(D743,'Capacidad Financiera'!$C$13:$X$62720,5,0)),\"\",VLOOKUP(D743,'Capacidad Financiera'!$C$13:$X$62720,5,0)))","v":""},"",{"$f":"IF(OR(D743=\"\",E743=\"\",F743=\"\"),\"\",IF(AND(G743>0,G743<=CapFinanciera1),Puntajes!$D$12,IF(AND(G743>CapFinanciera1,G743<=CapFinanciera2),Puntajes!$D$13,IF(AND(G743>CapFinanciera2,G743<=CapFinanciera3),Puntajes!$D$14,IF(AND(G743>CapFinanciera3,G743<=CapFinanciera4),Puntajes!$D$15,IF(G743>CapFinanciera4,Puntajes!$D$16,0))))))","v":""}]
[null,null,{"$f":"+'Capacidad Financiera'!B747","v":""},{"$f":"IF(ISERROR(VLOOKUP(C744,'Capacidad Financiera'!$B$12:$X$62720,2,0)),\"\",VLOOKUP(C744,'Capacidad Financiera'!$B$12:$X$3580,2,0))","v":0},{"$f":"IF(OR(C744=\"\",D744=\"\"),\"\",IF(ISERROR(VLOOKUP(D744,'Capacidad Financiera'!$C$13:$X$62720,3,0)),\"\",VLOOKUP(D744,'Capacidad Financiera'!$C$13:$X$62720,3,0)))","v":""},{"$f":"IF(OR(C744=\"\",D744=\"\"),\"\",IF(ISERROR(VLOOKUP(D744,'Capacidad Financiera'!$C$13:$X$62720,5,0)),\"\",VLOOKUP(D744,'Capacidad Financiera'!$C$13:$X$62720,5,0)))","v":""},"",{"$f":"IF(OR(D744=\"\",E744=\"\",F744=\"\"),\"\",IF(AND(G744>0,G744<=CapFinanciera1),Puntajes!$D$12,IF(AND(G744>CapFinanciera1,G744<=CapFinanciera2),Puntajes!$D$13,IF(AND(G744>CapFinanciera2,G744<=CapFinanciera3),Puntajes!$D$14,IF(AND(G744>CapFinanciera3,G744<=CapFinanciera4),Puntajes!$D$15,IF(G744>CapFinanciera4,Puntajes!$D$16,0))))))","v":""}]
[null,null,{"$f":"+'Capacidad Financiera'!B748","v":""},{"$f":"IF(ISERROR(VLOOKUP(C745,'Capacidad Financiera'!$B$12:$X$62720,2,0)),\"\",VLOOKUP(C745,'Capacidad Financiera'!$B$12:$X$3580,2,0))","v":0},{"$f":"IF(OR(C745=\"\",D745=\"\"),\"\",IF(ISERROR(VLOOKUP(D745,'Capacidad Financiera'!$C$13:$X$62720,3,0)),\"\",VLOOKUP(D745,'Capacidad Financiera'!$C$13:$X$62720,3,0)))","v":""},{"$f":"IF(OR(C745=\"\",D745=\"\"),\"\",IF(ISERROR(VLOOKUP(D745,'Capacidad Financiera'!$C$13:$X$62720,5,0)),\"\",VLOOKUP(D745,'Capacidad Financiera'!$C$13:$X$62720,5,0)))","v":""},"",{"$f":"IF(OR(D745=\"\",E745=\"\",F745=\"\"),\"\",IF(AND(G745>0,G745<=CapFinanciera1),Puntajes!$D$12,IF(AND(G745>CapFinanciera1,G745<=CapFinanciera2),Puntajes!$D$13,IF(AND(G745>CapFinanciera2,G745<=CapFinanciera3),Puntajes!$D$14,IF(AND(G745>CapFinanciera3,G745<=CapFinanciera4),Puntajes!$D$15,IF(G745>CapFinanciera4,Puntajes!$D$16,0))))))","v":""}]
[null,null,68,{"$f":"IF(ISERROR(VLOOKUP(C746,'Capacidad Financiera'!$B$12:$X$62720,2,0)),\"\",VLOOKUP(C746,'Capacidad Financiera'!$B$12:$X$3580,2,0))","v":0},{"$f":"IF(C747=\"\",IF(C746<>\"\",IF(ISERROR(VLOOKUP(D746,'Capacidad Financiera'!$C$12:$H$22,3,0)),\"\",VLOOKUP(D746,'Capacidad Financiera'!$C$12:$H$22,3,0))),\"\")","v":""},{"$f":"IF(C747=\"\",IF(C746<>\"\",IF(ISERROR(VLOOKUP(D746,'Capacidad Financiera'!$C$12:$H$22,5,0)),\"\",VLOOKUP(D746,'Capacidad Financiera'!$C$12:$H$22,5,0))),\"\")","v":""},{"$f":"IF(OR(D746=\"\",E746=\"\",F746=\"\"),\"\",IF(OR(E746=0,F746=0),0,E746/F746))","v":""},{"$f":"IF(C747=\"\",IF(AND(E746=\"\",F746=\"\"),\"\",IF(AND(G746>0,G746<=CapFinanciera1),Puntajes!$D$12,IF(AND(G746>CapFinanciera1,G746<=CapFinanciera2),Puntajes!$D$13,IF(AND(G746>CapFinanciera2,G746<=CapFinanciera3),Puntajes!$D$14,IF(AND(G746>CapFinanciera3,G746<=CapFinanciera4),Puntajes!$D$15,IF(G746>CapFinanciera4,Puntajes!$D$16,0)))))),\"\")","v":""}]
[null,null,{"$f":"+'Capacidad Financiera'!B750","v":""},{"$f":"IF(ISERROR(VLOOKUP(C747,'Capacidad Financiera'!$B$12:$X$62720,2,0)),\"\",VLOOKUP(C747,'Capacidad Financiera'!$B$12:$X$3580,2,0))","v":0},{"$f":"IF(OR(C747=\"\",D747=\"\"),\"\",IF(ISERROR(VLOOKUP(D747,'Capacidad Financiera'!$C$13:$X$62720,3,0)),\"\",VLOOKUP(D747,'Capacidad Financiera'!$C$13:$X$62720,3,0)))","v":""},{"$f":"IF(OR(C747=\"\",D747=\"\"),\"\",IF(ISERROR(VLOOKUP(D747,'Capacidad Financiera'!$C$13:$X$62720,5,0)),\"\",VLOOKUP(D747,'Capacidad Financiera'!$C$13:$X$62720,5,0)))","v":""},{"$f":"IF(OR(D747=\"\",E747=\"\",F747=\"\"),\"\",IF(OR(E747=0,F747=0),0,E747/F747))","v":""},{"$f":"IF(OR(D747=\"\",E747=\"\",F747=\"\"),\"\",IF(AND(G747>0,G747<=CapFinanciera1),Puntajes!$D$12,IF(AND(G747>CapFinanciera1,G747<=CapFinanciera2),Puntajes!$D$13,IF(AND(G747>CapFinanciera2,G747<=CapFinanciera3),Puntajes!$D$14,IF(AND(G747>CapFinanciera3,G747<=CapFinanciera4),Puntajes!$D$15,IF(G747>CapFinanciera4,Puntajes!$D$16,0))))))","v":""}]
[null,null,{"$f":"+'Capacidad Financiera'!B751","v":""},{"$f":"IF(ISERROR(VLOOKUP(C748,'Capacidad Financiera'!$B$12:$X$62720,2,0)),\"\",VLOOKUP(C748,'Capacidad Financiera'!$B$12:$X$3580,2,0))","v":0},{"$f":"IF(OR(C748=\"\",D748=\"\"),\"\",IF(ISERROR(VLOOKUP(D748,'Capacidad Financiera'!$C$13:$X$62720,3,0)),\"\",VLOOKUP(D748,'Capacidad Financiera'!$C$13:$X$62720,3,0)))","v":""},{"$f":"IF(OR(C748=\"\",D748=\"\"),\"\",IF(ISERROR(VLOOKUP(D748,'Capacidad Financiera'!$C$13:$X$62720,5,0)),\"\",VLOOKUP(D748,'Capacidad Financiera'!$C$13:$X$62720,5,0)))","v":""},"",{"$f":"IF(OR(D748=\"\",E748=\"\",F748=\"\"),\"\",IF(AND(G748>0,G748<=CapFinanciera1),Puntajes!$D$12,IF(AND(G748>CapFinanciera1,G748<=CapFinanciera2),Puntajes!$D$13,IF(AND(G748>CapFinanciera2,G748<=CapFinanciera3),Puntajes!$D$14,IF(AND(G748>CapFinanciera3,G748<=CapFinanciera4),Puntajes!$D$15,IF(G748>CapFinanciera4,Puntajes!$D$16,0))))))","v":""}]
[null,null,{"$f":"+'Capacidad Financiera'!B752","v":""},{"$f":"IF(ISERROR(VLOOKUP(C749,'Capacidad Financiera'!$B$12:$X$62720,2,0)),\"\",VLOOKUP(C749,'Capacidad Financiera'!$B$12:$X$3580,2,0))","v":0},{"$f":"IF(OR(C749=\"\",D749=\"\"),\"\",IF(ISERROR(VLOOKUP(D749,'Capacidad Financiera'!$C$13:$X$62720,3,0)),\"\",VLOOKUP(D749,'Capacidad Financiera'!$C$13:$X$62720,3,0)))","v":""},{"$f":"IF(OR(C749=\"\",D749=\"\"),\"\",IF(ISERROR(VLOOKUP(D749,'Capacidad Financiera'!$C$13:$X$62720,5,0)),\"\",VLOOKUP(D749,'Capacidad Financiera'!$C$13:$X$62720,5,0)))","v":""},"",{"$f":"IF(OR(D749=\"\",E749=\"\",F749=\"\"),\"\",IF(AND(G749>0,G749<=CapFinanciera1),Puntajes!$D$12,IF(AND(G749>CapFinanciera1,G749<=CapFinanciera2),Puntajes!$D$13,IF(AND(G749>CapFinanciera2,G749<=CapFinanciera3),Puntajes!$D$14,IF(AND(G749>CapFinanciera3,G749<=CapFinanciera4),Puntajes!$D$15,IF(G749>CapFinanciera4,Puntajes!$D$16,0))))))","v":""}]
[null,null,{"$f":"+'Capacidad Financiera'!B753","v":""},{"$f":"IF(ISERROR(VLOOKUP(C750,'Capacidad Financiera'!$B$12:$X$62720,2,0)),\"\",VLOOKUP(C750,'Capacidad Financiera'!$B$12:$X$3580,2,0))","v":0},{"$f":"IF(OR(C750=\"\",D750=\"\"),\"\",IF(ISERROR(VLOOKUP(D750,'Capacidad Financiera'!$C$13:$X$62720,3,0)),\"\",VLOOKUP(D750,'Capacidad Financiera'!$C$13:$X$62720,3,0)))","v":""},{"$f":"IF(OR(C750=\"\",D750=\"\"),\"\",IF(ISERROR(VLOOKUP(D750,'Capacidad Financiera'!$C$13:$X$62720,5,0)),\"\",VLOOKUP(D750,'Capacidad Financiera'!$C$13:$X$62720,5,0)))","v":""},"",{"$f":"IF(OR(D750=\"\",E750=\"\",F750=\"\"),\"\",IF(AND(G750>0,G750<=CapFinanciera1),Puntajes!$D$12,IF(AND(G750>CapFinanciera1,G750<=CapFinanciera2),Puntajes!$D$13,IF(AND(G750>CapFinanciera2,G750<=CapFinanciera3),Puntajes!$D$14,IF(AND(G750>CapFinanciera3,G750<=CapFinanciera4),Puntajes!$D$15,IF(G750>CapFinanciera4,Puntajes!$D$16,0))))))","v":""}]
[null,null,{"$f":"+'Capacidad Financiera'!B754","v":""},{"$f":"IF(ISERROR(VLOOKUP(C751,'Capacidad Financiera'!$B$12:$X$62720,2,0)),\"\",VLOOKUP(C751,'Capacidad Financiera'!$B$12:$X$3580,2,0))","v":0},{"$f":"IF(OR(C751=\"\",D751=\"\"),\"\",IF(ISERROR(VLOOKUP(D751,'Capacidad Financiera'!$C$13:$X$62720,3,0)),\"\",VLOOKUP(D751,'Capacidad Financiera'!$C$13:$X$62720,3,0)))","v":""},{"$f":"IF(OR(C751=\"\",D751=\"\"),\"\",IF(ISERROR(VLOOKUP(D751,'Capacidad Financiera'!$C$13:$X$62720,5,0)),\"\",VLOOKUP(D751,'Capacidad Financiera'!$C$13:$X$62720,5,0)))","v":""},"",{"$f":"IF(OR(D751=\"\",E751=\"\",F751=\"\"),\"\",IF(AND(G751>0,G751<=CapFinanciera1),Puntajes!$D$12,IF(AND(G751>CapFinanciera1,G751<=CapFinanciera2),Puntajes!$D$13,IF(AND(G751>CapFinanciera2,G751<=CapFinanciera3),Puntajes!$D$14,IF(AND(G751>CapFinanciera3,G751<=CapFinanciera4),Puntajes!$D$15,IF(G751>CapFinanciera4,Puntajes!$D$16,0))))))","v":""}]
[null,null,{"$f":"+'Capacidad Financiera'!B755","v":""},{"$f":"IF(ISERROR(VLOOKUP(C752,'Capacidad Financiera'!$B$12:$X$62720,2,0)),\"\",VLOOKUP(C752,'Capacidad Financiera'!$B$12:$X$3580,2,0))","v":0},{"$f":"IF(OR(C752=\"\",D752=\"\"),\"\",IF(ISERROR(VLOOKUP(D752,'Capacidad Financiera'!$C$13:$X$62720,3,0)),\"\",VLOOKUP(D752,'Capacidad Financiera'!$C$13:$X$62720,3,0)))","v":""},{"$f":"IF(OR(C752=\"\",D752=\"\"),\"\",IF(ISERROR(VLOOKUP(D752,'Capacidad Financiera'!$C$13:$X$62720,5,0)),\"\",VLOOKUP(D752,'Capacidad Financiera'!$C$13:$X$62720,5,0)))","v":""},"",{"$f":"IF(OR(D752=\"\",E752=\"\",F752=\"\"),\"\",IF(AND(G752>0,G752<=CapFinanciera1),Puntajes!$D$12,IF(AND(G752>CapFinanciera1,G752<=CapFinanciera2),Puntajes!$D$13,IF(AND(G752>CapFinanciera2,G752<=CapFinanciera3),Puntajes!$D$14,IF(AND(G752>CapFinanciera3,G752<=CapFinanciera4),Puntajes!$D$15,IF(G752>CapFinanciera4,Puntajes!$D$16,0))))))","v":""}]
[null,null,{"$f":"+'Capacidad Financiera'!B756","v":""},{"$f":"IF(ISERROR(VLOOKUP(C753,'Capacidad Financiera'!$B$12:$X$62720,2,0)),\"\",VLOOKUP(C753,'Capacidad Financiera'!$B$12:$X$3580,2,0))","v":0},{"$f":"IF(OR(C753=\"\",D753=\"\"),\"\",IF(ISERROR(VLOOKUP(D753,'Capacidad Financiera'!$C$13:$X$62720,3,0)),\"\",VLOOKUP(D753,'Capacidad Financiera'!$C$13:$X$62720,3,0)))","v":""},{"$f":"IF(OR(C753=\"\",D753=\"\"),\"\",IF(ISERROR(VLOOKUP(D753,'Capacidad Financiera'!$C$13:$X$62720,5,0)),\"\",VLOOKUP(D753,'Capacidad Financiera'!$C$13:$X$62720,5,0)))","v":""},"",{"$f":"IF(OR(D753=\"\",E753=\"\",F753=\"\"),\"\",IF(AND(G753>0,G753<=CapFinanciera1),Puntajes!$D$12,IF(AND(G753>CapFinanciera1,G753<=CapFinanciera2),Puntajes!$D$13,IF(AND(G753>CapFinanciera2,G753<=CapFinanciera3),Puntajes!$D$14,IF(AND(G753>CapFinanciera3,G753<=CapFinanciera4),Puntajes!$D$15,IF(G753>CapFinanciera4,Puntajes!$D$16,0))))))","v":""}]
[null,null,{"$f":"+'Capacidad Financiera'!B757","v":""},{"$f":"IF(ISERROR(VLOOKUP(C754,'Capacidad Financiera'!$B$12:$X$62720,2,0)),\"\",VLOOKUP(C754,'Capacidad Financiera'!$B$12:$X$3580,2,0))","v":0},{"$f":"IF(OR(C754=\"\",D754=\"\"),\"\",IF(ISERROR(VLOOKUP(D754,'Capacidad Financiera'!$C$13:$X$62720,3,0)),\"\",VLOOKUP(D754,'Capacidad Financiera'!$C$13:$X$62720,3,0)))","v":""},{"$f":"IF(OR(C754=\"\",D754=\"\"),\"\",IF(ISERROR(VLOOKUP(D754,'Capacidad Financiera'!$C$13:$X$62720,5,0)),\"\",VLOOKUP(D754,'Capacidad Financiera'!$C$13:$X$62720,5,0)))","v":""},"",{"$f":"IF(OR(D754=\"\",E754=\"\",F754=\"\"),\"\",IF(AND(G754>0,G754<=CapFinanciera1),Puntajes!$D$12,IF(AND(G754>CapFinanciera1,G754<=CapFinanciera2),Puntajes!$D$13,IF(AND(G754>CapFinanciera2,G754<=CapFinanciera3),Puntajes!$D$14,IF(AND(G754>CapFinanciera3,G754<=CapFinanciera4),Puntajes!$D$15,IF(G754>CapFinanciera4,Puntajes!$D$16,0))))))","v":""}]
[null,null,{"$f":"+'Capacidad Financiera'!B758","v":""},{"$f":"IF(ISERROR(VLOOKUP(C755,'Capacidad Financiera'!$B$12:$X$62720,2,0)),\"\",VLOOKUP(C755,'Capacidad Financiera'!$B$12:$X$3580,2,0))","v":0},{"$f":"IF(OR(C755=\"\",D755=\"\"),\"\",IF(ISERROR(VLOOKUP(D755,'Capacidad Financiera'!$C$13:$X$62720,3,0)),\"\",VLOOKUP(D755,'Capacidad Financiera'!$C$13:$X$62720,3,0)))","v":""},{"$f":"IF(OR(C755=\"\",D755=\"\"),\"\",IF(ISERROR(VLOOKUP(D755,'Capacidad Financiera'!$C$13:$X$62720,5,0)),\"\",VLOOKUP(D755,'Capacidad Financiera'!$C$13:$X$62720,5,0)))","v":""},"",{"$f":"IF(OR(D755=\"\",E755=\"\",F755=\"\"),\"\",IF(AND(G755>0,G755<=CapFinanciera1),Puntajes!$D$12,IF(AND(G755>CapFinanciera1,G755<=CapFinanciera2),Puntajes!$D$13,IF(AND(G755>CapFinanciera2,G755<=CapFinanciera3),Puntajes!$D$14,IF(AND(G755>CapFinanciera3,G755<=CapFinanciera4),Puntajes!$D$15,IF(G755>CapFinanciera4,Puntajes!$D$16,0))))))","v":""}]
[null,null,{"$f":"+'Capacidad Financiera'!B759","v":""},{"$f":"IF(ISERROR(VLOOKUP(C756,'Capacidad Financiera'!$B$12:$X$62720,2,0)),\"\",VLOOKUP(C756,'Capacidad Financiera'!$B$12:$X$3580,2,0))","v":0},{"$f":"IF(OR(C756=\"\",D756=\"\"),\"\",IF(ISERROR(VLOOKUP(D756,'Capacidad Financiera'!$C$13:$X$62720,3,0)),\"\",VLOOKUP(D756,'Capacidad Financiera'!$C$13:$X$62720,3,0)))","v":""},{"$f":"IF(OR(C756=\"\",D756=\"\"),\"\",IF(ISERROR(VLOOKUP(D756,'Capacidad Financiera'!$C$13:$X$62720,5,0)),\"\",VLOOKUP(D756,'Capacidad Financiera'!$C$13:$X$62720,5,0)))","v":""},"",{"$f":"IF(OR(D756=\"\",E756=\"\",F756=\"\"),\"\",IF(AND(G756>0,G756<=CapFinanciera1),Puntajes!$D$12,IF(AND(G756>CapFinanciera1,G756<=CapFinanciera2),Puntajes!$D$13,IF(AND(G756>CapFinanciera2,G756<=CapFinanciera3),Puntajes!$D$14,IF(AND(G756>CapFinanciera3,G756<=CapFinanciera4),Puntajes!$D$15,IF(G756>CapFinanciera4,Puntajes!$D$16,0))))))","v":""}]
[null,null,69,{"$f":"IF(ISERROR(VLOOKUP(C757,'Capacidad Financiera'!$B$12:$X$62720,2,0)),\"\",VLOOKUP(C757,'Capacidad Financiera'!$B$12:$X$3580,2,0))","v":0},{"$f":"IF(C758=\"\",IF(C757<>\"\",IF(ISERROR(VLOOKUP(D757,'Capacidad Financiera'!$C$12:$H$22,3,0)),\"\",VLOOKUP(D757,'Capacidad Financiera'!$C$12:$H$22,3,0))),\"\")","v":""},{"$f":"IF(C758=\"\",IF(C757<>\"\",IF(ISERROR(VLOOKUP(D757,'Capacidad Financiera'!$C$12:$H$22,5,0)),\"\",VLOOKUP(D757,'Capacidad Financiera'!$C$12:$H$22,5,0))),\"\")","v":""},{"$f":"IF(OR(D757=\"\",E757=\"\",F757=\"\"),\"\",IF(OR(E757=0,F757=0),0,E757/F757))","v":""},{"$f":"IF(C758=\"\",IF(AND(E757=\"\",F757=\"\"),\"\",IF(AND(G757>0,G757<=CapFinanciera1),Puntajes!$D$12,IF(AND(G757>CapFinanciera1,G757<=CapFinanciera2),Puntajes!$D$13,IF(AND(G757>CapFinanciera2,G757<=CapFinanciera3),Puntajes!$D$14,IF(AND(G757>CapFinanciera3,G757<=CapFinanciera4),Puntajes!$D$15,IF(G757>CapFinanciera4,Puntajes!$D$16,0)))))),\"\")","v":""}]
[null,null,{"$f":"+'Capacidad Financiera'!B761","v":""},{"$f":"IF(ISERROR(VLOOKUP(C758,'Capacidad Financiera'!$B$12:$X$62720,2,0)),\"\",VLOOKUP(C758,'Capacidad Financiera'!$B$12:$X$3580,2,0))","v":0},{"$f":"IF(OR(C758=\"\",D758=\"\"),\"\",IF(ISERROR(VLOOKUP(D758,'Capacidad Financiera'!$C$13:$X$62720,3,0)),\"\",VLOOKUP(D758,'Capacidad Financiera'!$C$13:$X$62720,3,0)))","v":""},{"$f":"IF(OR(C758=\"\",D758=\"\"),\"\",IF(ISERROR(VLOOKUP(D758,'Capacidad Financiera'!$C$13:$X$62720,5,0)),\"\",VLOOKUP(D758,'Capacidad Financiera'!$C$13:$X$62720,5,0)))","v":""},{"$f":"IF(OR(D758=\"\",E758=\"\",F758=\"\"),\"\",IF(OR(E758=0,F758=0),0,E758/F758))","v":""},{"$f":"IF(OR(D758=\"\",E758=\"\",F758=\"\"),\"\",IF(AND(G758>0,G758<=CapFinanciera1),Puntajes!$D$12,IF(AND(G758>CapFinanciera1,G758<=CapFinanciera2),Puntajes!$D$13,IF(AND(G758>CapFinanciera2,G758<=CapFinanciera3),Puntajes!$D$14,IF(AND(G758>CapFinanciera3,G758<=CapFinanciera4),Puntajes!$D$15,IF(G758>CapFinanciera4,Puntajes!$D$16,0))))))","v":""}]
[null,null,{"$f":"+'Capacidad Financiera'!B762","v":""},{"$f":"IF(ISERROR(VLOOKUP(C759,'Capacidad Financiera'!$B$12:$X$62720,2,0)),\"\",VLOOKUP(C759,'Capacidad Financiera'!$B$12:$X$3580,2,0))","v":0},{"$f":"IF(OR(C759=\"\",D759=\"\"),\"\",IF(ISERROR(VLOOKUP(D759,'Capacidad Financiera'!$C$13:$X$62720,3,0)),\"\",VLOOKUP(D759,'Capacidad Financiera'!$C$13:$X$62720,3,0)))","v":""},{"$f":"IF(OR(C759=\"\",D759=\"\"),\"\",IF(ISERROR(VLOOKUP(D759,'Capacidad Financiera'!$C$13:$X$62720,5,0)),\"\",VLOOKUP(D759,'Capacidad Financiera'!$C$13:$X$62720,5,0)))","v":""},"",{"$f":"IF(OR(D759=\"\",E759=\"\",F759=\"\"),\"\",IF(AND(G759>0,G759<=CapFinanciera1),Puntajes!$D$12,IF(AND(G759>CapFinanciera1,G759<=CapFinanciera2),Puntajes!$D$13,IF(AND(G759>CapFinanciera2,G759<=CapFinanciera3),Puntajes!$D$14,IF(AND(G759>CapFinanciera3,G759<=CapFinanciera4),Puntajes!$D$15,IF(G759>CapFinanciera4,Puntajes!$D$16,0))))))","v":""}]
[null,null,{"$f":"+'Capacidad Financiera'!B763","v":""},{"$f":"IF(ISERROR(VLOOKUP(C760,'Capacidad Financiera'!$B$12:$X$62720,2,0)),\"\",VLOOKUP(C760,'Capacidad Financiera'!$B$12:$X$3580,2,0))","v":0},{"$f":"IF(OR(C760=\"\",D760=\"\"),\"\",IF(ISERROR(VLOOKUP(D760,'Capacidad Financiera'!$C$13:$X$62720,3,0)),\"\",VLOOKUP(D760,'Capacidad Financiera'!$C$13:$X$62720,3,0)))","v":""},{"$f":"IF(OR(C760=\"\",D760=\"\"),\"\",IF(ISERROR(VLOOKUP(D760,'Capacidad Financiera'!$C$13:$X$62720,5,0)),\"\",VLOOKUP(D760,'Capacidad Financiera'!$C$13:$X$62720,5,0)))","v":""},"",{"$f":"IF(OR(D760=\"\",E760=\"\",F760=\"\"),\"\",IF(AND(G760>0,G760<=CapFinanciera1),Puntajes!$D$12,IF(AND(G760>CapFinanciera1,G760<=CapFinanciera2),Puntajes!$D$13,IF(AND(G760>CapFinanciera2,G760<=CapFinanciera3),Puntajes!$D$14,IF(AND(G760>CapFinanciera3,G760<=CapFinanciera4),Puntajes!$D$15,IF(G760>CapFinanciera4,Puntajes!$D$16,0))))))","v":""}]
[null,null,{"$f":"+'Capacidad Financiera'!B764","v":""},{"$f":"IF(ISERROR(VLOOKUP(C761,'Capacidad Financiera'!$B$12:$X$62720,2,0)),\"\",VLOOKUP(C761,'Capacidad Financiera'!$B$12:$X$3580,2,0))","v":0},{"$f":"IF(OR(C761=\"\",D761=\"\"),\"\",IF(ISERROR(VLOOKUP(D761,'Capacidad Financiera'!$C$13:$X$62720,3,0)),\"\",VLOOKUP(D761,'Capacidad Financiera'!$C$13:$X$62720,3,0)))","v":""},{"$f":"IF(OR(C761=\"\",D761=\"\"),\"\",IF(ISERROR(VLOOKUP(D761,'Capacidad Financiera'!$C$13:$X$62720,5,0)),\"\",VLOOKUP(D761,'Capacidad Financiera'!$C$13:$X$62720,5,0)))","v":""},"",{"$f":"IF(OR(D761=\"\",E761=\"\",F761=\"\"),\"\",IF(AND(G761>0,G761<=CapFinanciera1),Puntajes!$D$12,IF(AND(G761>CapFinanciera1,G761<=CapFinanciera2),Puntajes!$D$13,IF(AND(G761>CapFinanciera2,G761<=CapFinanciera3),Puntajes!$D$14,IF(AND(G761>CapFinanciera3,G761<=CapFinanciera4),Puntajes!$D$15,IF(G761>CapFinanciera4,Puntajes!$D$16,0))))))","v":""}]
[null,null,{"$f":"+'Capacidad Financiera'!B765","v":""},{"$f":"IF(ISERROR(VLOOKUP(C762,'Capacidad Financiera'!$B$12:$X$62720,2,0)),\"\",VLOOKUP(C762,'Capacidad Financiera'!$B$12:$X$3580,2,0))","v":0},{"$f":"IF(OR(C762=\"\",D762=\"\"),\"\",IF(ISERROR(VLOOKUP(D762,'Capacidad Financiera'!$C$13:$X$62720,3,0)),\"\",VLOOKUP(D762,'Capacidad Financiera'!$C$13:$X$62720,3,0)))","v":""},{"$f":"IF(OR(C762=\"\",D762=\"\"),\"\",IF(ISERROR(VLOOKUP(D762,'Capacidad Financiera'!$C$13:$X$62720,5,0)),\"\",VLOOKUP(D762,'Capacidad Financiera'!$C$13:$X$62720,5,0)))","v":""},"",{"$f":"IF(OR(D762=\"\",E762=\"\",F762=\"\"),\"\",IF(AND(G762>0,G762<=CapFinanciera1),Puntajes!$D$12,IF(AND(G762>CapFinanciera1,G762<=CapFinanciera2),Puntajes!$D$13,IF(AND(G762>CapFinanciera2,G762<=CapFinanciera3),Puntajes!$D$14,IF(AND(G762>CapFinanciera3,G762<=CapFinanciera4),Puntajes!$D$15,IF(G762>CapFinanciera4,Puntajes!$D$16,0))))))","v":""}]
[null,null,{"$f":"+'Capacidad Financiera'!B766","v":""},{"$f":"IF(ISERROR(VLOOKUP(C763,'Capacidad Financiera'!$B$12:$X$62720,2,0)),\"\",VLOOKUP(C763,'Capacidad Financiera'!$B$12:$X$3580,2,0))","v":0},{"$f":"IF(OR(C763=\"\",D763=\"\"),\"\",IF(ISERROR(VLOOKUP(D763,'Capacidad Financiera'!$C$13:$X$62720,3,0)),\"\",VLOOKUP(D763,'Capacidad Financiera'!$C$13:$X$62720,3,0)))","v":""},{"$f":"IF(OR(C763=\"\",D763=\"\"),\"\",IF(ISERROR(VLOOKUP(D763,'Capacidad Financiera'!$C$13:$X$62720,5,0)),\"\",VLOOKUP(D763,'Capacidad Financiera'!$C$13:$X$62720,5,0)))","v":""},"",{"$f":"IF(OR(D763=\"\",E763=\"\",F763=\"\"),\"\",IF(AND(G763>0,G763<=CapFinanciera1),Puntajes!$D$12,IF(AND(G763>CapFinanciera1,G763<=CapFinanciera2),Puntajes!$D$13,IF(AND(G763>CapFinanciera2,G763<=CapFinanciera3),Puntajes!$D$14,IF(AND(G763>CapFinanciera3,G763<=CapFinanciera4),Puntajes!$D$15,IF(G763>CapFinanciera4,Puntajes!$D$16,0))))))","v":""}]
[null,null,{"$f":"+'Capacidad Financiera'!B767","v":""},{"$f":"IF(ISERROR(VLOOKUP(C764,'Capacidad Financiera'!$B$12:$X$62720,2,0)),\"\",VLOOKUP(C764,'Capacidad Financiera'!$B$12:$X$3580,2,0))","v":0},{"$f":"IF(OR(C764=\"\",D764=\"\"),\"\",IF(ISERROR(VLOOKUP(D764,'Capacidad Financiera'!$C$13:$X$62720,3,0)),\"\",VLOOKUP(D764,'Capacidad Financiera'!$C$13:$X$62720,3,0)))","v":""},{"$f":"IF(OR(C764=\"\",D764=\"\"),\"\",IF(ISERROR(VLOOKUP(D764,'Capacidad Financiera'!$C$13:$X$62720,5,0)),\"\",VLOOKUP(D764,'Capacidad Financiera'!$C$13:$X$62720,5,0)))","v":""},"",{"$f":"IF(OR(D764=\"\",E764=\"\",F764=\"\"),\"\",IF(AND(G764>0,G764<=CapFinanciera1),Puntajes!$D$12,IF(AND(G764>CapFinanciera1,G764<=CapFinanciera2),Puntajes!$D$13,IF(AND(G764>CapFinanciera2,G764<=CapFinanciera3),Puntajes!$D$14,IF(AND(G764>CapFinanciera3,G764<=CapFinanciera4),Puntajes!$D$15,IF(G764>CapFinanciera4,Puntajes!$D$16,0))))))","v":""}]
[null,null,{"$f":"+'Capacidad Financiera'!B768","v":""},{"$f":"IF(ISERROR(VLOOKUP(C765,'Capacidad Financiera'!$B$12:$X$62720,2,0)),\"\",VLOOKUP(C765,'Capacidad Financiera'!$B$12:$X$3580,2,0))","v":0},{"$f":"IF(OR(C765=\"\",D765=\"\"),\"\",IF(ISERROR(VLOOKUP(D765,'Capacidad Financiera'!$C$13:$X$62720,3,0)),\"\",VLOOKUP(D765,'Capacidad Financiera'!$C$13:$X$62720,3,0)))","v":""},{"$f":"IF(OR(C765=\"\",D765=\"\"),\"\",IF(ISERROR(VLOOKUP(D765,'Capacidad Financiera'!$C$13:$X$62720,5,0)),\"\",VLOOKUP(D765,'Capacidad Financiera'!$C$13:$X$62720,5,0)))","v":""},"",{"$f":"IF(OR(D765=\"\",E765=\"\",F765=\"\"),\"\",IF(AND(G765>0,G765<=CapFinanciera1),Puntajes!$D$12,IF(AND(G765>CapFinanciera1,G765<=CapFinanciera2),Puntajes!$D$13,IF(AND(G765>CapFinanciera2,G765<=CapFinanciera3),Puntajes!$D$14,IF(AND(G765>CapFinanciera3,G765<=CapFinanciera4),Puntajes!$D$15,IF(G765>CapFinanciera4,Puntajes!$D$16,0))))))","v":""}]
[null,null,{"$f":"+'Capacidad Financiera'!B769","v":""},{"$f":"IF(ISERROR(VLOOKUP(C766,'Capacidad Financiera'!$B$12:$X$62720,2,0)),\"\",VLOOKUP(C766,'Capacidad Financiera'!$B$12:$X$3580,2,0))","v":0},{"$f":"IF(OR(C766=\"\",D766=\"\"),\"\",IF(ISERROR(VLOOKUP(D766,'Capacidad Financiera'!$C$13:$X$62720,3,0)),\"\",VLOOKUP(D766,'Capacidad Financiera'!$C$13:$X$62720,3,0)))","v":""},{"$f":"IF(OR(C766=\"\",D766=\"\"),\"\",IF(ISERROR(VLOOKUP(D766,'Capacidad Financiera'!$C$13:$X$62720,5,0)),\"\",VLOOKUP(D766,'Capacidad Financiera'!$C$13:$X$62720,5,0)))","v":""},"",{"$f":"IF(OR(D766=\"\",E766=\"\",F766=\"\"),\"\",IF(AND(G766>0,G766<=CapFinanciera1),Puntajes!$D$12,IF(AND(G766>CapFinanciera1,G766<=CapFinanciera2),Puntajes!$D$13,IF(AND(G766>CapFinanciera2,G766<=CapFinanciera3),Puntajes!$D$14,IF(AND(G766>CapFinanciera3,G766<=CapFinanciera4),Puntajes!$D$15,IF(G766>CapFinanciera4,Puntajes!$D$16,0))))))","v":""}]
[null,null,{"$f":"+'Capacidad Financiera'!B770","v":""},{"$f":"IF(ISERROR(VLOOKUP(C767,'Capacidad Financiera'!$B$12:$X$62720,2,0)),\"\",VLOOKUP(C767,'Capacidad Financiera'!$B$12:$X$3580,2,0))","v":0},{"$f":"IF(OR(C767=\"\",D767=\"\"),\"\",IF(ISERROR(VLOOKUP(D767,'Capacidad Financiera'!$C$13:$X$62720,3,0)),\"\",VLOOKUP(D767,'Capacidad Financiera'!$C$13:$X$62720,3,0)))","v":""},{"$f":"IF(OR(C767=\"\",D767=\"\"),\"\",IF(ISERROR(VLOOKUP(D767,'Capacidad Financiera'!$C$13:$X$62720,5,0)),\"\",VLOOKUP(D767,'Capacidad Financiera'!$C$13:$X$62720,5,0)))","v":""},"",{"$f":"IF(OR(D767=\"\",E767=\"\",F767=\"\"),\"\",IF(AND(G767>0,G767<=CapFinanciera1),Puntajes!$D$12,IF(AND(G767>CapFinanciera1,G767<=CapFinanciera2),Puntajes!$D$13,IF(AND(G767>CapFinanciera2,G767<=CapFinanciera3),Puntajes!$D$14,IF(AND(G767>CapFinanciera3,G767<=CapFinanciera4),Puntajes!$D$15,IF(G767>CapFinanciera4,Puntajes!$D$16,0))))))","v":""}]
[null,null,70,{"$f":"IF(ISERROR(VLOOKUP(C768,'Capacidad Financiera'!$B$12:$X$62720,2,0)),\"\",VLOOKUP(C768,'Capacidad Financiera'!$B$12:$X$3580,2,0))","v":0},{"$f":"IF(C769=\"\",IF(C768<>\"\",IF(ISERROR(VLOOKUP(D768,'Capacidad Financiera'!$C$12:$H$22,3,0)),\"\",VLOOKUP(D768,'Capacidad Financiera'!$C$12:$H$22,3,0))),\"\")","v":""},{"$f":"IF(C769=\"\",IF(C768<>\"\",IF(ISERROR(VLOOKUP(D768,'Capacidad Financiera'!$C$12:$H$22,5,0)),\"\",VLOOKUP(D768,'Capacidad Financiera'!$C$12:$H$22,5,0))),\"\")","v":""},{"$f":"IF(OR(D768=\"\",E768=\"\",F768=\"\"),\"\",IF(OR(E768=0,F768=0),0,E768/F768))","v":""},{"$f":"IF(C769=\"\",IF(AND(E768=\"\",F768=\"\"),\"\",IF(AND(G768>0,G768<=CapFinanciera1),Puntajes!$D$12,IF(AND(G768>CapFinanciera1,G768<=CapFinanciera2),Puntajes!$D$13,IF(AND(G768>CapFinanciera2,G768<=CapFinanciera3),Puntajes!$D$14,IF(AND(G768>CapFinanciera3,G768<=CapFinanciera4),Puntajes!$D$15,IF(G768>CapFinanciera4,Puntajes!$D$16,0)))))),\"\")","v":""}]
[null,null,{"$f":"+'Capacidad Financiera'!B772","v":""},{"$f":"IF(ISERROR(VLOOKUP(C769,'Capacidad Financiera'!$B$12:$X$62720,2,0)),\"\",VLOOKUP(C769,'Capacidad Financiera'!$B$12:$X$3580,2,0))","v":0},{"$f":"IF(OR(C769=\"\",D769=\"\"),\"\",IF(ISERROR(VLOOKUP(D769,'Capacidad Financiera'!$C$13:$X$62720,3,0)),\"\",VLOOKUP(D769,'Capacidad Financiera'!$C$13:$X$62720,3,0)))","v":""},{"$f":"IF(OR(C769=\"\",D769=\"\"),\"\",IF(ISERROR(VLOOKUP(D769,'Capacidad Financiera'!$C$13:$X$62720,5,0)),\"\",VLOOKUP(D769,'Capacidad Financiera'!$C$13:$X$62720,5,0)))","v":""},{"$f":"IF(OR(D769=\"\",E769=\"\",F769=\"\"),\"\",IF(OR(E769=0,F769=0),0,E769/F769))","v":""},{"$f":"IF(OR(D769=\"\",E769=\"\",F769=\"\"),\"\",IF(AND(G769>0,G769<=CapFinanciera1),Puntajes!$D$12,IF(AND(G769>CapFinanciera1,G769<=CapFinanciera2),Puntajes!$D$13,IF(AND(G769>CapFinanciera2,G769<=CapFinanciera3),Puntajes!$D$14,IF(AND(G769>CapFinanciera3,G769<=CapFinanciera4),Puntajes!$D$15,IF(G769>CapFinanciera4,Puntajes!$D$16,0))))))","v":""}]
[null,null,{"$f":"+'Capacidad Financiera'!B773","v":""},{"$f":"IF(ISERROR(VLOOKUP(C770,'Capacidad Financiera'!$B$12:$X$62720,2,0)),\"\",VLOOKUP(C770,'Capacidad Financiera'!$B$12:$X$3580,2,0))","v":0},{"$f":"IF(OR(C770=\"\",D770=\"\"),\"\",IF(ISERROR(VLOOKUP(D770,'Capacidad Financiera'!$C$13:$X$62720,3,0)),\"\",VLOOKUP(D770,'Capacidad Financiera'!$C$13:$X$62720,3,0)))","v":""},{"$f":"IF(OR(C770=\"\",D770=\"\"),\"\",IF(ISERROR(VLOOKUP(D770,'Capacidad Financiera'!$C$13:$X$62720,5,0)),\"\",VLOOKUP(D770,'Capacidad Financiera'!$C$13:$X$62720,5,0)))","v":""},"",{"$f":"IF(OR(D770=\"\",E770=\"\",F770=\"\"),\"\",IF(AND(G770>0,G770<=CapFinanciera1),Puntajes!$D$12,IF(AND(G770>CapFinanciera1,G770<=CapFinanciera2),Puntajes!$D$13,IF(AND(G770>CapFinanciera2,G770<=CapFinanciera3),Puntajes!$D$14,IF(AND(G770>CapFinanciera3,G770<=CapFinanciera4),Puntajes!$D$15,IF(G770>CapFinanciera4,Puntajes!$D$16,0))))))","v":""}]
[null,null,{"$f":"+'Capacidad Financiera'!B774","v":""},{"$f":"IF(ISERROR(VLOOKUP(C771,'Capacidad Financiera'!$B$12:$X$62720,2,0)),\"\",VLOOKUP(C771,'Capacidad Financiera'!$B$12:$X$3580,2,0))","v":0},{"$f":"IF(OR(C771=\"\",D771=\"\"),\"\",IF(ISERROR(VLOOKUP(D771,'Capacidad Financiera'!$C$13:$X$62720,3,0)),\"\",VLOOKUP(D771,'Capacidad Financiera'!$C$13:$X$62720,3,0)))","v":""},{"$f":"IF(OR(C771=\"\",D771=\"\"),\"\",IF(ISERROR(VLOOKUP(D771,'Capacidad Financiera'!$C$13:$X$62720,5,0)),\"\",VLOOKUP(D771,'Capacidad Financiera'!$C$13:$X$62720,5,0)))","v":""},"",{"$f":"IF(OR(D771=\"\",E771=\"\",F771=\"\"),\"\",IF(AND(G771>0,G771<=CapFinanciera1),Puntajes!$D$12,IF(AND(G771>CapFinanciera1,G771<=CapFinanciera2),Puntajes!$D$13,IF(AND(G771>CapFinanciera2,G771<=CapFinanciera3),Puntajes!$D$14,IF(AND(G771>CapFinanciera3,G771<=CapFinanciera4),Puntajes!$D$15,IF(G771>CapFinanciera4,Puntajes!$D$16,0))))))","v":""}]
[null,null,{"$f":"+'Capacidad Financiera'!B775","v":""},{"$f":"IF(ISERROR(VLOOKUP(C772,'Capacidad Financiera'!$B$12:$X$62720,2,0)),\"\",VLOOKUP(C772,'Capacidad Financiera'!$B$12:$X$3580,2,0))","v":0},{"$f":"IF(OR(C772=\"\",D772=\"\"),\"\",IF(ISERROR(VLOOKUP(D772,'Capacidad Financiera'!$C$13:$X$62720,3,0)),\"\",VLOOKUP(D772,'Capacidad Financiera'!$C$13:$X$62720,3,0)))","v":""},{"$f":"IF(OR(C772=\"\",D772=\"\"),\"\",IF(ISERROR(VLOOKUP(D772,'Capacidad Financiera'!$C$13:$X$62720,5,0)),\"\",VLOOKUP(D772,'Capacidad Financiera'!$C$13:$X$62720,5,0)))","v":""},"",{"$f":"IF(OR(D772=\"\",E772=\"\",F772=\"\"),\"\",IF(AND(G772>0,G772<=CapFinanciera1),Puntajes!$D$12,IF(AND(G772>CapFinanciera1,G772<=CapFinanciera2),Puntajes!$D$13,IF(AND(G772>CapFinanciera2,G772<=CapFinanciera3),Puntajes!$D$14,IF(AND(G772>CapFinanciera3,G772<=CapFinanciera4),Puntajes!$D$15,IF(G772>CapFinanciera4,Puntajes!$D$16,0))))))","v":""}]
[null,null,{"$f":"+'Capacidad Financiera'!B776","v":""},{"$f":"IF(ISERROR(VLOOKUP(C773,'Capacidad Financiera'!$B$12:$X$62720,2,0)),\"\",VLOOKUP(C773,'Capacidad Financiera'!$B$12:$X$3580,2,0))","v":0},{"$f":"IF(OR(C773=\"\",D773=\"\"),\"\",IF(ISERROR(VLOOKUP(D773,'Capacidad Financiera'!$C$13:$X$62720,3,0)),\"\",VLOOKUP(D773,'Capacidad Financiera'!$C$13:$X$62720,3,0)))","v":""},{"$f":"IF(OR(C773=\"\",D773=\"\"),\"\",IF(ISERROR(VLOOKUP(D773,'Capacidad Financiera'!$C$13:$X$62720,5,0)),\"\",VLOOKUP(D773,'Capacidad Financiera'!$C$13:$X$62720,5,0)))","v":""},"",{"$f":"IF(OR(D773=\"\",E773=\"\",F773=\"\"),\"\",IF(AND(G773>0,G773<=CapFinanciera1),Puntajes!$D$12,IF(AND(G773>CapFinanciera1,G773<=CapFinanciera2),Puntajes!$D$13,IF(AND(G773>CapFinanciera2,G773<=CapFinanciera3),Puntajes!$D$14,IF(AND(G773>CapFinanciera3,G773<=CapFinanciera4),Puntajes!$D$15,IF(G773>CapFinanciera4,Puntajes!$D$16,0))))))","v":""}]
[null,null,{"$f":"+'Capacidad Financiera'!B777","v":""},{"$f":"IF(ISERROR(VLOOKUP(C774,'Capacidad Financiera'!$B$12:$X$62720,2,0)),\"\",VLOOKUP(C774,'Capacidad Financiera'!$B$12:$X$3580,2,0))","v":0},{"$f":"IF(OR(C774=\"\",D774=\"\"),\"\",IF(ISERROR(VLOOKUP(D774,'Capacidad Financiera'!$C$13:$X$62720,3,0)),\"\",VLOOKUP(D774,'Capacidad Financiera'!$C$13:$X$62720,3,0)))","v":""},{"$f":"IF(OR(C774=\"\",D774=\"\"),\"\",IF(ISERROR(VLOOKUP(D774,'Capacidad Financiera'!$C$13:$X$62720,5,0)),\"\",VLOOKUP(D774,'Capacidad Financiera'!$C$13:$X$62720,5,0)))","v":""},"",{"$f":"IF(OR(D774=\"\",E774=\"\",F774=\"\"),\"\",IF(AND(G774>0,G774<=CapFinanciera1),Puntajes!$D$12,IF(AND(G774>CapFinanciera1,G774<=CapFinanciera2),Puntajes!$D$13,IF(AND(G774>CapFinanciera2,G774<=CapFinanciera3),Puntajes!$D$14,IF(AND(G774>CapFinanciera3,G774<=CapFinanciera4),Puntajes!$D$15,IF(G774>CapFinanciera4,Puntajes!$D$16,0))))))","v":""}]
[null,null,{"$f":"+'Capacidad Financiera'!B778","v":""},{"$f":"IF(ISERROR(VLOOKUP(C775,'Capacidad Financiera'!$B$12:$X$62720,2,0)),\"\",VLOOKUP(C775,'Capacidad Financiera'!$B$12:$X$3580,2,0))","v":0},{"$f":"IF(OR(C775=\"\",D775=\"\"),\"\",IF(ISERROR(VLOOKUP(D775,'Capacidad Financiera'!$C$13:$X$62720,3,0)),\"\",VLOOKUP(D775,'Capacidad Financiera'!$C$13:$X$62720,3,0)))","v":""},{"$f":"IF(OR(C775=\"\",D775=\"\"),\"\",IF(ISERROR(VLOOKUP(D775,'Capacidad Financiera'!$C$13:$X$62720,5,0)),\"\",VLOOKUP(D775,'Capacidad Financiera'!$C$13:$X$62720,5,0)))","v":""},"",{"$f":"IF(OR(D775=\"\",E775=\"\",F775=\"\"),\"\",IF(AND(G775>0,G775<=CapFinanciera1),Puntajes!$D$12,IF(AND(G775>CapFinanciera1,G775<=CapFinanciera2),Puntajes!$D$13,IF(AND(G775>CapFinanciera2,G775<=CapFinanciera3),Puntajes!$D$14,IF(AND(G775>CapFinanciera3,G775<=CapFinanciera4),Puntajes!$D$15,IF(G775>CapFinanciera4,Puntajes!$D$16,0))))))","v":""}]
[null,null,{"$f":"+'Capacidad Financiera'!B779","v":""},{"$f":"IF(ISERROR(VLOOKUP(C776,'Capacidad Financiera'!$B$12:$X$62720,2,0)),\"\",VLOOKUP(C776,'Capacidad Financiera'!$B$12:$X$3580,2,0))","v":0},{"$f":"IF(OR(C776=\"\",D776=\"\"),\"\",IF(ISERROR(VLOOKUP(D776,'Capacidad Financiera'!$C$13:$X$62720,3,0)),\"\",VLOOKUP(D776,'Capacidad Financiera'!$C$13:$X$62720,3,0)))","v":""},{"$f":"IF(OR(C776=\"\",D776=\"\"),\"\",IF(ISERROR(VLOOKUP(D776,'Capacidad Financiera'!$C$13:$X$62720,5,0)),\"\",VLOOKUP(D776,'Capacidad Financiera'!$C$13:$X$62720,5,0)))","v":""},"",{"$f":"IF(OR(D776=\"\",E776=\"\",F776=\"\"),\"\",IF(AND(G776>0,G776<=CapFinanciera1),Puntajes!$D$12,IF(AND(G776>CapFinanciera1,G776<=CapFinanciera2),Puntajes!$D$13,IF(AND(G776>CapFinanciera2,G776<=CapFinanciera3),Puntajes!$D$14,IF(AND(G776>CapFinanciera3,G776<=CapFinanciera4),Puntajes!$D$15,IF(G776>CapFinanciera4,Puntajes!$D$16,0))))))","v":""}]
[null,null,{"$f":"+'Capacidad Financiera'!B780","v":""},{"$f":"IF(ISERROR(VLOOKUP(C777,'Capacidad Financiera'!$B$12:$X$62720,2,0)),\"\",VLOOKUP(C777,'Capacidad Financiera'!$B$12:$X$3580,2,0))","v":0},{"$f":"IF(OR(C777=\"\",D777=\"\"),\"\",IF(ISERROR(VLOOKUP(D777,'Capacidad Financiera'!$C$13:$X$62720,3,0)),\"\",VLOOKUP(D777,'Capacidad Financiera'!$C$13:$X$62720,3,0)))","v":""},{"$f":"IF(OR(C777=\"\",D777=\"\"),\"\",IF(ISERROR(VLOOKUP(D777,'Capacidad Financiera'!$C$13:$X$62720,5,0)),\"\",VLOOKUP(D777,'Capacidad Financiera'!$C$13:$X$62720,5,0)))","v":""},"",{"$f":"IF(OR(D777=\"\",E777=\"\",F777=\"\"),\"\",IF(AND(G777>0,G777<=CapFinanciera1),Puntajes!$D$12,IF(AND(G777>CapFinanciera1,G777<=CapFinanciera2),Puntajes!$D$13,IF(AND(G777>CapFinanciera2,G777<=CapFinanciera3),Puntajes!$D$14,IF(AND(G777>CapFinanciera3,G777<=CapFinanciera4),Puntajes!$D$15,IF(G777>CapFinanciera4,Puntajes!$D$16,0))))))","v":""}]
[null,null,{"$f":"+'Capacidad Financiera'!B781","v":""},{"$f":"IF(ISERROR(VLOOKUP(C778,'Capacidad Financiera'!$B$12:$X$62720,2,0)),\"\",VLOOKUP(C778,'Capacidad Financiera'!$B$12:$X$3580,2,0))","v":0},{"$f":"IF(OR(C778=\"\",D778=\"\"),\"\",IF(ISERROR(VLOOKUP(D778,'Capacidad Financiera'!$C$13:$X$62720,3,0)),\"\",VLOOKUP(D778,'Capacidad Financiera'!$C$13:$X$62720,3,0)))","v":""},{"$f":"IF(OR(C778=\"\",D778=\"\"),\"\",IF(ISERROR(VLOOKUP(D778,'Capacidad Financiera'!$C$13:$X$62720,5,0)),\"\",VLOOKUP(D778,'Capacidad Financiera'!$C$13:$X$62720,5,0)))","v":""},"",{"$f":"IF(OR(D778=\"\",E778=\"\",F778=\"\"),\"\",IF(AND(G778>0,G778<=CapFinanciera1),Puntajes!$D$12,IF(AND(G778>CapFinanciera1,G778<=CapFinanciera2),Puntajes!$D$13,IF(AND(G778>CapFinanciera2,G778<=CapFinanciera3),Puntajes!$D$14,IF(AND(G778>CapFinanciera3,G778<=CapFinanciera4),Puntajes!$D$15,IF(G778>CapFinanciera4,Puntajes!$D$16,0))))))","v":""}]

{"sheet":"Saldo Ctos Ejecución","index":8,"n_rows":778,"n_cols":5,"rows_kept":778,"cut":false,"hidden":false,"merged":[[6,4,7,4],[1,2,1,4],[2,2,2,4],[3,2,3,4],[4,2,4,4],[6,2,7,2],[6,3,7,3]]}
[]
[null,null,"INSTITUTO NACIONAL DE VIAS"]
[null,null,"DIRECCIÓN DE CONTRATACIÓN"]
[null,null,{"$f":"'Capacidad Financiera'!B4","v":"LICITACIÓN PÚBLICA No. LP-DO-SRN-XXX-2014"}]
[null,null,"SALDOS CONTRATOS EN EJECUCIÓN"]
[]
[null,null,"OFERTA","PROPONENTE","TOTAL SALDOS CONTRATOS EN EJECUCION"]
[]
[null,null,{"$f":"+'Capacidad Financiera'!B12","v":1},{"$f":"IF(ISERROR(VLOOKUP(C9,'Capacidad Financiera'!$B$12:$X$62720,2,0)),\"\",VLOOKUP(C9,'Capacidad Financiera'!$B$12:$X$3580,2,0))","v":"CONVIAL S.A.S."}]
["req. dias negativos",null,{"$f":"+'Capacidad Financiera'!B13","v":1.1000000000000001},{"$f":"IF(ISERROR(VLOOKUP(C10,'Capacidad Financiera'!$B$12:$X$62720,2,0)),\"\",VLOOKUP(C10,'Capacidad Financiera'!$B$12:$X$3580,2,0))","v":"CONVIAL S.A.S."}]
[null,null,{"$f":"+'Capacidad Financiera'!B14","v":""},{"$f":"IF(ISERROR(VLOOKUP(C11,'Capacidad Financiera'!$B$12:$X$62720,2,0)),\"\",VLOOKUP(C11,'Capacidad Financiera'!$B$12:$X$3580,2,0))","v":0}]
[null,null,{"$f":"+'Capacidad Financiera'!B15","v":""},{"$f":"IF(ISERROR(VLOOKUP(C12,'Capacidad Financiera'!$B$12:$X$62720,2,0)),\"\",VLOOKUP(C12,'Capacidad Financiera'!$B$12:$X$3580,2,0))","v":0}]
[null,null,{"$f":"+'Capacidad Financiera'!B16","v":""},{"$f":"IF(ISERROR(VLOOKUP(C13,'Capacidad Financiera'!$B$12:$X$62720,2,0)),\"\",VLOOKUP(C13,'Capacidad Financiera'!$B$12:$X$3580,2,0))","v":0}]
[null,null,{"$f":"+'Capacidad Financiera'!B17","v":""},{"$f":"IF(ISERROR(VLOOKUP(C14,'Capacidad Financiera'!$B$12:$X$62720,2,0)),\"\",VLOOKUP(C14,'Capacidad Financiera'!$B$12:$X$3580,2,0))","v":0}]
[null,null,{"$f":"+'Capacidad Financiera'!B18","v":""},{"$f":"IF(ISERROR(VLOOKUP(C15,'Capacidad Financiera'!$B$12:$X$62720,2,0)),\"\",VLOOKUP(C15,'Capacidad Financiera'!$B$12:$X$3580,2,0))","v":0}]
[null,null,{"$f":"+'Capacidad Financiera'!B19","v":""},{"$f":"IF(ISERROR(VLOOKUP(C16,'Capacidad Financiera'!$B$12:$X$62720,2,0)),\"\",VLOOKUP(C16,'Capacidad Financiera'!$B$12:$X$3580,2,0))","v":0}]
[null,null,{"$f":"+'Capacidad Financiera'!B20","v":""},{"$f":"IF(ISERROR(VLOOKUP(C17,'Capacidad Financiera'!$B$12:$X$62720,2,0)),\"\",VLOOKUP(C17,'Capacidad Financiera'!$B$12:$X$3580,2,0))","v":0}]
[null,null,{"$f":"+'Capacidad Financiera'!B21","v":""},{"$f":"IF(ISERROR(VLOOKUP(C18,'Capacidad Financiera'!$B$12:$X$62720,2,0)),\"\",VLOOKUP(C18,'Capacidad Financiera'!$B$12:$X$3580,2,0))","v":0}]
[null,null,{"$f":"+'Capacidad Financiera'!B22","v":""},{"$f":"IF(ISERROR(VLOOKUP(C19,'Capacidad Financiera'!$B$12:$X$62720,2,0)),\"\",VLOOKUP(C19,'Capacidad Financiera'!$B$12:$X$3580,2,0))","v":0}]
[null,null,2,{"$f":"IF(ISERROR(VLOOKUP(C20,'Capacidad Financiera'!$B$12:$X$62720,2,0)),\"\",VLOOKUP(C20,'Capacidad Financiera'!$B$12:$X$3580,2,0))","v":"CONSORCIO VIC DROMOS"}]
[null,null,{"$f":"+'Capacidad Financiera'!B24","v":2.1},{"$f":"IF(ISERROR(VLOOKUP(C21,'Capacidad Financiera'!$B$12:$X$62720,2,0)),\"\",VLOOKUP(C21,'Capacidad Financiera'!$B$12:$X$3580,2,0))","v":"VIC S.A.S."},500767638]
[null,null,{"$f":"+'Capacidad Financiera'!B25","v":2.2000000000000002},{"$f":"IF(ISERROR(VLOOKUP(C22,'Capacidad Financiera'!$B$12:$X$62720,2,0)),\"\",VLOOKUP(C22,'Capacidad Financiera'!$B$12:$X$3580,2,0))","v":"DROMOS PAVIMENTOS S.A."},1052022674.9400001]
[null,null,{"$f":"+'Capacidad Financiera'!B26","v":""},{"$f":"IF(ISERROR(VLOOKUP(C23,'Capacidad Financiera'!$B$12:$X$62720,2,0)),\"\",VLOOKUP(C23,'Capacidad Financiera'!$B$12:$X$3580,2,0))","v":0}]
[null,null,{"$f":"+'Capacidad Financiera'!B27","v":""},{"$f":"IF(ISERROR(VLOOKUP(C24,'Capacidad Financiera'!$B$12:$X$62720,2,0)),\"\",VLOOKUP(C24,'Capacidad Financiera'!$B$12:$X$3580,2,0))","v":0}]
[null,null,{"$f":"+'Capacidad Financiera'!B28","v":""},{"$f":"IF(ISERROR(VLOOKUP(C25,'Capacidad Financiera'!$B$12:$X$62720,2,0)),\"\",VLOOKUP(C25,'Capacidad Financiera'!$B$12:$X$3580,2,0))","v":0}]
[null,null,{"$f":"+'Capacidad Financiera'!B29","v":""},{"$f":"IF(ISERROR(VLOOKUP(C26,'Capacidad Financiera'!$B$12:$X$62720,2,0)),\"\",VLOOKUP(C26,'Capacidad Financiera'!$B$12:$X$3580,2,0))","v":0}]
[null,null,{"$f":"+'Capacidad Financiera'!B30","v":""},{"$f":"IF(ISERROR(VLOOKUP(C27,'Capacidad Financiera'!$B$12:$X$62720,2,0)),\"\",VLOOKUP(C27,'Capacidad Financiera'!$B$12:$X$3580,2,0))","v":0}]
[null,null,{"$f":"+'Capacidad Financiera'!B31","v":""},{"$f":"IF(ISERROR(VLOOKUP(C28,'Capacidad Financiera'!$B$12:$X$62720,2,0)),\"\",VLOOKUP(C28,'Capacidad Financiera'!$B$12:$X$3580,2,0))","v":0}]
[null,null,{"$f":"+'Capacidad Financiera'!B32","v":""},{"$f":"IF(ISERROR(VLOOKUP(C29,'Capacidad Financiera'!$B$12:$X$62720,2,0)),\"\",VLOOKUP(C29,'Capacidad Financiera'!$B$12:$X$3580,2,0))","v":0}]
[null,null,{"$f":"+'Capacidad Financiera'!B33","v":""},{"$f":"IF(ISERROR(VLOOKUP(C30,'Capacidad Financiera'!$B$12:$X$62720,2,0)),\"\",VLOOKUP(C30,'Capacidad Financiera'!$B$12:$X$3580,2,0))","v":0}]
[null,null,3,{"$f":"IF(ISERROR(VLOOKUP(C31,'Capacidad Financiera'!$B$12:$X$62720,2,0)),\"\",VLOOKUP(C31,'Capacidad Financiera'!$B$12:$X$3580,2,0))","v":"EQUIPOS CONSTRUCCIONES Y OBRAS S.A."}]
[null,null,{"$f":"+'Capacidad Financiera'!B35","v":3.1},{"$f":"IF(ISERROR(VLOOKUP(C32,'Capacidad Financiera'!$B$12:$X$62720,2,0)),\"\",VLOOKUP(C32,'Capacidad Financiera'!$B$12:$X$3580,2,0))","v":"EQUIPOS CONSTRUCCIONES Y OBRAS S.A."},15321502991.57]
[null,null,{"$f":"+'Capacidad Financiera'!B36","v":""},{"$f":"IF(ISERROR(VLOOKUP(C33,'Capacidad Financiera'!$B$12:$X$62720,2,0)),\"\",VLOOKUP(C33,'Capacidad Financiera'!$B$12:$X$3580,2,0))","v":0}]
[null,null,{"$f":"+'Capacidad Financiera'!B37","v":""},{"$f":"IF(ISERROR(VLOOKUP(C34,'Capacidad Financiera'!$B$12:$X$62720,2,0)),\"\",VLOOKUP(C34,'Capacidad Financiera'!$B$12:$X$3580,2,0))","v":0}]
[null,null,{"$f":"+'Capacidad Financiera'!B38","v":""},{"$f":"IF(ISERROR(VLOOKUP(C35,'Capacidad Financiera'!$B$12:$X$62720,2,0)),\"\",VLOOKUP(C35,'Capacidad Financiera'!$B$12:$X$3580,2,0))","v":0}]
[null,null,{"$f":"+'Capacidad Financiera'!B39","v":""},{"$f":"IF(ISERROR(VLOOKUP(C36,'Capacidad Financiera'!$B$12:$X$62720,2,0)),\"\",VLOOKUP(C36,'Capacidad Financiera'!$B$12:$X$3580,2,0))","v":0}]
[null,null,{"$f":"+'Capacidad Financiera'!B40","v":""},{"$f":"IF(ISERROR(VLOOKUP(C37,'Capacidad Financiera'!$B$12:$X$62720,2,0)),\"\",VLOOKUP(C37,'Capacidad Financiera'!$B$12:$X$3580,2,0))","v":0}]
[null,null,{"$f":"+'Capacidad Financiera'!B41","v":""},{"$f":"IF(ISERROR(VLOOKUP(C38,'Capacidad Financiera'!$B$12:$X$62720,2,0)),\"\",VLOOKUP(C38,'Capacidad Financiera'!$B$12:$X$3580,2,0))","v":0}]
[null,null,{"$f":"+'Capacidad Financiera'!B42","v":""},{"$f":"IF(ISERROR(VLOOKUP(C39,'Capacidad Financiera'!$B$12:$X$62720,2,0)),\"\",VLOOKUP(C39,'Capacidad Financiera'!$B$12:$X$3580,2,0))","v":0}]
[null,null,{"$f":"+'Capacidad Financiera'!B43","v":""},{"$f":"IF(ISERROR(VLOOKUP(C40,'Capacidad Financiera'!$B$12:$X$62720,2,0)),\"\",VLOOKUP(C40,'Capacidad Financiera'!$B$12:$X$3580,2,0))","v":0}]
[null,null,{"$f":"+'Capacidad Financiera'!B44","v":""},{"$f":"IF(ISERROR(VLOOKUP(C41,'Capacidad Financiera'!$B$12:$X$62720,2,0)),\"\",VLOOKUP(C41,'Capacidad Financiera'!$B$12:$X$3580,2,0))","v":0}]
[null,null,4,{"$f":"IF(ISERROR(VLOOKUP(C42,'Capacidad Financiera'!$B$12:$X$62720,2,0)),\"\",VLOOKUP(C42,'Capacidad Financiera'!$B$12:$X$3580,2,0))","v":"CONSORCIO IPV"}]
[null,null,{"$f":"+'Capacidad Financiera'!B46","v":4.0999999999999996},{"$f":"IF(ISERROR(VLOOKUP(C43,'Capacidad Financiera'!$B$12:$X$62720,2,0)),\"\",VLOOKUP(C43,'Capacidad Financiera'!$B$12:$X$3580,2,0))","v":"INGENIERIA DE PUENTES Y VIAS S.A.S."},0]
[null,null,{"$f":"+'Capacidad Financiera'!B47","v":4.1999999999999993},{"$f":"IF(ISERROR(VLOOKUP(C44,'Capacidad Financiera'!$B$12:$X$62720,2,0)),\"\",VLOOKUP(C44,'Capacidad Financiera'!$B$12:$X$3580,2,0))","v":"RENAN CARDOZO CARDOZO"},0]
[null,null,{"$f":"+'Capacidad Financiera'!B48","v":4.2999999999999989},{"$f":"IF(ISERROR(VLOOKUP(C45,'Capacidad Financiera'!$B$12:$X$62720,2,0)),\"\",VLOOKUP(C45,'Capacidad Financiera'!$B$12:$X$3580,2,0))","v":"OMAR CARDOZO CARDOZO"},0]
[null,null,{"$f":"+'Capacidad Financiera'!B49","v":4.3999999999999986},{"$f":"IF(ISERROR(VLOOKUP(C46,'Capacidad Financiera'!$B$12:$X$62720,2,0)),\"\",VLOOKUP(C46,'Capacidad Financiera'!$B$12:$X$3580,2,0))","v":"LUIS MORENO RUBIO"},0]
[null,null,{"$f":"+'Capacidad Financiera'!B50","v":""},{"$f":"IF(ISERROR(VLOOKUP(C47,'Capacidad Financiera'!$B$12:$X$62720,2,0)),\"\",VLOOKUP(C47,'Capacidad Financiera'!$B$12:$X$3580,2,0))","v":0}]
[null,null,{"$f":"+'Capacidad Financiera'!B51","v":""},{"$f":"IF(ISERROR(VLOOKUP(C48,'Capacidad Financiera'!$B$12:$X$62720,2,0)),\"\",VLOOKUP(C48,'Capacidad Financiera'!$B$12:$X$3580,2,0))","v":0}]
[null,null,{"$f":"+'Capacidad Financiera'!B52","v":""},{"$f":"IF(ISERROR(VLOOKUP(C49,'Capacidad Financiera'!$B$12:$X$62720,2,0)),\"\",VLOOKUP(C49,'Capacidad Financiera'!$B$12:$X$3580,2,0))","v":0}]
[null,null,{"$f":"+'Capacidad Financiera'!B53","v":""},{"$f":"IF(ISERROR(VLOOKUP(C50,'Capacidad Financiera'!$B$12:$X$62720,2,0)),\"\",VLOOKUP(C50,'Capacidad Financiera'!$B$12:$X$3580,2,0))","v":0}]
[null,null,{"$f":"+'Capacidad Financiera'!B54","v":""},{"$f":"IF(ISERROR(VLOOKUP(C51,'Capacidad Financiera'!$B$12:$X$62720,2,0)),\"\",VLOOKUP(C51,'Capacidad Financiera'!$B$12:$X$3580,2,0))","v":0}]
[null,null,{"$f":"+'Capacidad Financiera'!B55","v":""},{"$f":"IF(ISERROR(VLOOKUP(C52,'Capacidad Financiera'!$B$12:$X$62720,2,0)),\"\",VLOOKUP(C52,'Capacidad Financiera'!$B$12:$X$3580,2,0))","v":0}]
[null,null,5,{"$f":"IF(ISERROR(VLOOKUP(C53,'Capacidad Financiera'!$B$12:$X$62720,2,0)),\"\",VLOOKUP(C53,'Capacidad Financiera'!$B$12:$X$3580,2,0))","v":"CONSORCIO VIAS COLOMBIA"}]
["req. dias negativos",null,{"$f":"+'Capacidad Financiera'!B57","v":5.0999999999999996},{"$f":"IF(ISERROR(VLOOKUP(C54,'Capacidad Financiera'!$B$12:$X$62720,2,0)),\"\",VLOOKUP(C54,'Capacidad Financiera'!$B$12:$X$3580,2,0))","v":"JV INGENIERIA Y CONSTRUCCIONES S.A.S."}]
["req. dias negativos",null,{"$f":"+'Capacidad Financiera'!B58","v":5.1999999999999993},{"$f":"IF(ISERROR(VLOOKUP(C55,'Capacidad Financiera'!$B$12:$X$62720,2,0)),\"\",VLOOKUP(C55,'Capacidad Financiera'!$B$12:$X$3580,2,0))","v":"EXCAVACIONES JOBEPA SL SUCURSAL COLOMBIA"}]
[null,null,{"$f":"+'Capacidad Financiera'!B59","v":5.2999999999999989},{"$f":"IF(ISERROR(VLOOKUP(C56,'Capacidad Financiera'!$B$12:$X$62720,2,0)),\"\",VLOOKUP(C56,'Capacidad Financiera'!$B$12:$X$3580,2,0))","v":"VIALOBRA SL SUCURSAL COLOMBIA"},0]
[null,null,{"$f":"+'Capacidad Financiera'!B60","v":""},{"$f":"IF(ISERROR(VLOOKUP(C57,'Capacidad Financiera'!$B$12:$X$62720,2,0)),\"\",VLOOKUP(C57,'Capacidad Financiera'!$B$12:$X$3580,2,0))","v":0}]
[null,null,{"$f":"+'Capacidad Financiera'!B61","v":""},{"$f":"IF(ISERROR(VLOOKUP(C58,'Capacidad Financiera'!$B$12:$X$62720,2,0)),\"\",VLOOKUP(C58,'Capacidad Financiera'!$B$12:$X$3580,2,0))","v":0}]
[null,null,{"$f":"+'Capacidad Financiera'!B62","v":""},{"$f":"IF(ISERROR(VLOOKUP(C59,'Capacidad Financiera'!$B$12:$X$62720,2,0)),\"\",VLOOKUP(C59,'Capacidad Financiera'!$B$12:$X$3580,2,0))","v":0}]
[null,null,{"$f":"+'Capacidad Financiera'!B63","v":""},{"$f":"IF(ISERROR(VLOOKUP(C60,'Capacidad Financiera'!$B$12:$X$62720,2,0)),\"\",VLOOKUP(C60,'Capacidad Financiera'!$B$12:$X$3580,2,0))","v":0}]
[null,null,{"$f":"+'Capacidad Financiera'!B64","v":""},{"$f":"IF(ISERROR(VLOOKUP(C61,'Capacidad Financiera'!$B$12:$X$62720,2,0)),\"\",VLOOKUP(C61,'Capacidad Financiera'!$B$12:$X$3580,2,0))","v":0}]
[null,null,{"$f":"+'Capacidad Financiera'!B65","v":""},{"$f":"IF(ISERROR(VLOOKUP(C62,'Capacidad Financiera'!$B$12:$X$62720,2,0)),\"\",VLOOKUP(C62,'Capacidad Financiera'!$B$12:$X$3580,2,0))","v":0}]
[null,null,{"$f":"+'Capacidad Financiera'!B66","v":""},{"$f":"IF(ISERROR(VLOOKUP(C63,'Capacidad Financiera'!$B$12:$X$62720,2,0)),\"\",VLOOKUP(C63,'Capacidad Financiera'!$B$12:$X$3580,2,0))","v":0}]
[null,null,6,{"$f":"IF(ISERROR(VLOOKUP(C64,'Capacidad Financiera'!$B$12:$X$62720,2,0)),\"\",VLOOKUP(C64,'Capacidad Financiera'!$B$12:$X$3580,2,0))","v":"CONSORCIO SALITRE BRICEÑO"}]
[null,null,{"$f":"+'Capacidad Financiera'!B68","v":6.1},{"$f":"IF(ISERROR(VLOOKUP(C65,'Capacidad Financiera'!$B$12:$X$62720,2,0)),\"\",VLOOKUP(C65,'Capacidad Financiera'!$B$12:$X$3580,2,0))","v":"GEOCING S.A.S."},782208478.72000003]
[null,null,{"$f":"+'Capacidad Financiera'!B69","v":6.1999999999999993},{"$f":"IF(ISERROR(VLOOKUP(C66,'Capacidad Financiera'!$B$12:$X$62720,2,0)),\"\",VLOOKUP(C66,'Capacidad Financiera'!$B$12:$X$3580,2,0))","v":"URBAMED INFRAESTRUCTURAS SLU"},371253702699.5]
[null,null,{"$f":"+'Capacidad Financiera'!B70","v":""},{"$f":"IF(ISERROR(VLOOKUP(C67,'Capacidad Financiera'!$B$12:$X$62720,2,0)),\"\",VLOOKUP(C67,'Capacidad Financiera'!$B$12:$X$3580,2,0))","v":0}]
[null,null,{"$f":"+'Capacidad Financiera'!B71","v":""},{"$f":"IF(ISERROR(VLOOKUP(C68,'Capacidad Financiera'!$B$12:$X$62720,2,0)),\"\",VLOOKUP(C68,'Capacidad Financiera'!$B$12:$X$3580,2,0))","v":0}]
[null,null,{"$f":"+'Capacidad Financiera'!B72","v":""},{"$f":"IF(ISERROR(VLOOKUP(C69,'Capacidad Financiera'!$B$12:$X$62720,2,0)),\"\",VLOOKUP(C69,'Capacidad Financiera'!$B$12:$X$3580,2,0))","v":0}]
[null,null,{"$f":"+'Capacidad Financiera'!B73","v":""},{"$f":"IF(ISERROR(VLOOKUP(C70,'Capacidad Financiera'!$B$12:$X$62720,2,0)),\"\",VLOOKUP(C70,'Capacidad Financiera'!$B$12:$X$3580,2,0))","v":0}]
[null,null,{"$f":"+'Capacidad Financiera'!B74","v":""},{"$f":"IF(ISERROR(VLOOKUP(C71,'Capacidad Financiera'!$B$12:$X$62720,2,0)),\"\",VLOOKUP(C71,'Capacidad Financiera'!$B$12:$X$3580,2,0))","v":0}]
[null,null,{"$f":"+'Capacidad Financiera'!B75","v":""},{"$f":"IF(ISERROR(VLOOKUP(C72,'Capacidad Financiera'!$B$12:$X$62720,2,0)),\"\",VLOOKUP(C72,'Capacidad Financiera'!$B$12:$X$3580,2,0))","v":0}]
[null,null,{"$f":"+'Capacidad Financiera'!B76","v":""},{"$f":"IF(ISERROR(VLOOKUP(C73,'Capacidad Financiera'!$B$12:$X$62720,2,0)),\"\",VLOOKUP(C73,'Capacidad Financiera'!$B$12:$X$3580,2,0))","v":0}]
[null,null,{"$f":"+'Capacidad Financiera'!B77","v":""},{"$f":"IF(ISERROR(VLOOKUP(C74,'Capacidad Financiera'!$B$12:$X$62720,2,0)),\"\",VLOOKUP(C74,'Capacidad Financiera'!$B$12:$X$3580,2,0))","v":0}]
[null,null,7,{"$f":"IF(ISERROR(VLOOKUP(C75,'Capacidad Financiera'!$B$12:$X$62720,2,0)),\"\",VLOOKUP(C75,'Capacidad Financiera'!$B$12:$X$3580,2,0))","v":"CONSORCIO AC - AINCOL"}]
[null,null,{"$f":"+'Capacidad Financiera'!B79","v":7.1},{"$f":"IF(ISERROR(VLOOKUP(C76,'Capacidad Financiera'!$B$12:$X$62720,2,0)),\"\",VLOOKUP(C76,'Capacidad Financiera'!$B$12:$X$3580,2,0))","v":"AINCOL S.A.S."},478800000]
[null,null,{"$f":"+'Capacidad Financiera'!B80","v":7.1999999999999993},{"$f":"IF(ISERROR(VLOOKUP(C77,'Capacidad Financiera'!$B$12:$X$62720,2,0)),\"\",VLOOKUP(C77,'Capacidad Financiera'!$B$12:$X$3580,2,0))","v":"AC INGENIERIA Y CONSTRUCCIONES S.A.S."},1090182463.6500001]
[null,null,{"$f":"+'Capacidad Financiera'!B81","v":""},{"$f":"IF(ISERROR(VLOOKUP(C78,'Capacidad Financiera'!$B$12:$X$62720,2,0)),\"\",VLOOKUP(C78,'Capacidad Financiera'!$B$12:$X$3580,2,0))","v":0}]
[null,null,{"$f":"+'Capacidad Financiera'!B82","v":""},{"$f":"IF(ISERROR(VLOOKUP(C79,'Capacidad Financiera'!$B$12:$X$62720,2,0)),\"\",VLOOKUP(C79,'Capacidad Financiera'!$B$12:$X$3580,2,0))","v":0}]
[null,null,{"$f":"+'Capacidad Financiera'!B83","v":""},{"$f":"IF(ISERROR(VLOOKUP(C80,'Capacidad Financiera'!$B$12:$X$62720,2,0)),\"\",VLOOKUP(C80,'Capacidad Financiera'!$B$12:$X$3580,2,0))","v":0}]
[null,null,{"$f":"+'Capacidad Financiera'!B84","v":""},{"$f":"IF(ISERROR(VLOOKUP(C81,'Capacidad Financiera'!$B$12:$X$62720,2,0)),\"\",VLOOKUP(C81,'Capacidad Financiera'!$B$12:$X$3580,2,0))","v":0}]
[null,null,{"$f":"+'Capacidad Financiera'!B85","v":""},{"$f":"IF(ISERROR(VLOOKUP(C82,'Capacidad Financiera'!$B$12:$X$62720,2,0)),\"\",VLOOKUP(C82,'Capacidad Financiera'!$B$12:$X$3580,2,0))","v":0}]
[null,null,{"$f":"+'Capacidad Financiera'!B86","v":""},{"$f":"IF(ISERROR(VLOOKUP(C83,'Capacidad Financiera'!$B$12:$X$62720,2,0)),\"\",VLOOKUP(C83,'Capacidad Financiera'!$B$12:$X$3580,2,0))","v":0}]
[null,null,{"$f":"+'Capacidad Financiera'!B87","v":""},{"$f":"IF(ISERROR(VLOOKUP(C84,'Capacidad Financiera'!$B$12:$X$62720,2,0)),\"\",VLOOKUP(C84,'Capacidad Financiera'!$B$12:$X$3580,2,0))","v":0}]
[null,null,{"$f":"+'Capacidad Financiera'!B88","v":""},{"$f":"IF(ISERROR(VLOOKUP(C85,'Capacidad Financiera'!$B$12:$X$62720,2,0)),\"\",VLOOKUP(C85,'Capacidad Financiera'!$B$12:$X$3580,2,0))","v":0}]
[null,null,8,{"$f":"IF(ISERROR(VLOOKUP(C86,'Capacidad Financiera'!$B$12:$X$62720,2,0)),\"\",VLOOKUP(C86,'Capacidad Financiera'!$B$12:$X$3580,2,0))","v":"CONSULTORIA Y CONSTRUCCION LTDA."}]
[null,null,{"$f":"+'Capacidad Financiera'!B90","v":8.1},{"$f":"IF(ISERROR(VLOOKUP(C87,'Capacidad Financiera'!$B$12:$X$62720,2,0)),\"\",VLOOKUP(C87,'Capacidad Financiera'!$B$12:$X$3580,2,0))","v":"CONSULTORIA Y CONSTRUCCION LTDA."},16472491914.08]
[null,null,{"$f":"+'Capacidad Financiera'!B91","v":""},{"$f":"IF(ISERROR(VLOOKUP(C88,'Capacidad Financiera'!$B$12:$X$62720,2,0)),\"\",VLOOKUP(C88,'Capacidad Financiera'!$B$12:$X$3580,2,0))","v":0}]
[null,null,{"$f":"+'Capacidad Financiera'!B92","v":""},{"$f":"IF(ISERROR(VLOOKUP(C89,'Capacidad Financiera'!$B$12:$X$62720,2,0)),\"\",VLOOKUP(C89,'Capacidad Financiera'!$B$12:$X$3580,2,0))","v":0}]
[null,null,{"$f":"+'Capacidad Financiera'!B93","v":""},{"$f":"IF(ISERROR(VLOOKUP(C90,'Capacidad Financiera'!$B$12:$X$62720,2,0)),\"\",VLOOKUP(C90,'Capacidad Financiera'!$B$12:$X$3580,2,0))","v":0}]
[null,null,{"$f":"+'Capacidad Financiera'!B94","v":""},{"$f":"IF(ISERROR(VLOOKUP(C91,'Capacidad Financiera'!$B$12:$X$62720,2,0)),\"\",VLOOKUP(C91,'Capacidad Financiera'!$B$12:$X$3580,2,0))","v":0}]
[null,null,{"$f":"+'Capacidad Financiera'!B95","v":""},{"$f":"IF(ISERROR(VLOOKUP(C92,'Capacidad Financiera'!$B$12:$X$62720,2,0)),\"\",VLOOKUP(C92,'Capacidad Financiera'!$B$12:$X$3580,2,0))","v":0}]
[null,null,{"$f":"+'Capacidad Financiera'!B96","v":""},{"$f":"IF(ISERROR(VLOOKUP(C93,'Capacidad Financiera'!$B$12:$X$62720,2,0)),\"\",VLOOKUP(C93,'Capacidad Financiera'!$B$12:$X$3580,2,0))","v":0}]
[null,null,{"$f":"+'Capacidad Financiera'!B97","v":""},{"$f":"IF(ISERROR(VLOOKUP(C94,'Capacidad Financiera'!$B$12:$X$62720,2,0)),\"\",VLOOKUP(C94,'Capacidad Financiera'!$B$12:$X$3580,2,0))","v":0}]
[null,null,{"$f":"+'Capacidad Financiera'!B98","v":""},{"$f":"IF(ISERROR(VLOOKUP(C95,'Capacidad Financiera'!$B$12:$X$62720,2,0)),\"\",VLOOKUP(C95,'Capacidad Financiera'!$B$12:$X$3580,2,0))","v":0}]
[null,null,{"$f":"+'Capacidad Financiera'!B99","v":""},{"$f":"IF(ISERROR(VLOOKUP(C96,'Capacidad Financiera'!$B$12:$X$62720,2,0)),\"\",VLOOKUP(C96,'Capacidad Financiera'!$B$12:$X$3580,2,0))","v":0}]
[null,null,9,{"$f":"IF(ISERROR(VLOOKUP(C97,'Capacidad Financiera'!$B$12:$X$62720,2,0)),\"\",VLOOKUP(C97,'Capacidad Financiera'!$B$12:$X$3580,2,0))","v":"CONSORCIO INFRAESTRUCUTRA VIAL"}]
[null,null,{"$f":"+'Capacidad Financiera'!B101","v":9.1},{"$f":"IF(ISERROR(VLOOKUP(C98,'Capacidad Financiera'!$B$12:$X$62720,2,0)),\"\",VLOOKUP(C98,'Capacidad Financiera'!$B$12:$X$3580,2,0))","v":"VNF S.A.S"},1970056401.3299999]
[null,null,{"$f":"+'Capacidad Financiera'!B102","v":9.1999999999999993},{"$f":"IF(ISERROR(VLOOKUP(C99,'Capacidad Financiera'!$B$12:$X$62720,2,0)),\"\",VLOOKUP(C99,'Capacidad Financiera'!$B$12:$X$3580,2,0))","v":"HORACIO VEGA CARDENAS"},4581840218.0699997]
[null,null,{"$f":"+'Capacidad Financiera'!B103","v":""},{"$f":"IF(ISERROR(VLOOKUP(C100,'Capacidad Financiera'!$B$12:$X$62720,2,0)),\"\",VLOOKUP(C100,'Capacidad Financiera'!$B$12:$X$3580,2,0))","v":0}]
[null,null,{"$f":"+'Capacidad Financiera'!B104","v":""},{"$f":"IF(ISERROR(VLOOKUP(C101,'Capacidad Financiera'!$B$12:$X$62720,2,0)),\"\",VLOOKUP(C101,'Capacidad Financiera'!$B$12:$X$3580,2,0))","v":0}]
[null,null,{"$f":"+'Capacidad Financiera'!B105","v":""},{"$f":"IF(ISERROR(VLOOKUP(C102,'Capacidad Financiera'!$B$12:$X$62720,2,0)),\"\",VLOOKUP(C102,'Capacidad Financiera'!$B$12:$X$3580,2,0))","v":0}]
[null,null,{"$f":"+'Capacidad Financiera'!B106","v":""},{"$f":"IF(ISERROR(VLOOKUP(C103,'Capacidad Financiera'!$B$12:$X$62720,2,0)),\"\",VLOOKUP(C103,'Capacidad Financiera'!$B$12:$X$3580,2,0))","v":0}]
[null,null,{"$f":"+'Capacidad Financiera'!B107","v":""},{"$f":"IF(ISERROR(VLOOKUP(C104,'Capacidad Financiera'!$B$12:$X$62720,2,0)),\"\",VLOOKUP(C104,'Capacidad Financiera'!$B$12:$X$3580,2,0))","v":0}]
[null,null,{"$f":"+'Capacidad Financiera'!B108","v":""},{"$f":"IF(ISERROR(VLOOKUP(C105,'Capacidad Financiera'!$B$12:$X$62720,2,0)),\"\",VLOOKUP(C105,'Capacidad Financiera'!$B$12:$X$3580,2,0))","v":0}]
[null,null,{"$f":"+'Capacidad Financiera'!B109","v":""},{"$f":"IF(ISERROR(VLOOKUP(C106,'Capacidad Financiera'!$B$12:$X$62720,2,0)),\"\",VLOOKUP(C106,'Capacidad Financiera'!$B$12:$X$3580,2,0))","v":0}]
[null,null,{"$f":"+'Capacidad Financiera'!B110","v":""},{"$f":"IF(ISERROR(VLOOKUP(C107,'Capacidad Financiera'!$B$12:$X$62720,2,0)),\"\",VLOOKUP(C107,'Capacidad Financiera'!$B$12:$X$3580,2,0))","v":0}]
[null,null,10,{"$f":"IF(ISERROR(VLOOKUP(C108,'Capacidad Financiera'!$B$12:$X$62720,2,0)),\"\",VLOOKUP(C108,'Capacidad Financiera'!$B$12:$X$3580,2,0))","v":"CONSORCIO AM 034"}]
["req dias neg",null,{"$f":"+'Capacidad Financiera'!B112","v":10.1},{"$f":"IF(ISERROR(VLOOKUP(C109,'Capacidad Financiera'!$B$12:$X$62720,2,0)),\"\",VLOOKUP(C109,'Capacidad Financiera'!$B$12:$X$3580,2,0))","v":"ROGELIO ARDILA TORRES"}]
["req dias neg",null,{"$f":"+'Capacidad Financiera'!B113","v":10.199999999999999},{"$f":"IF(ISERROR(VLOOKUP(C110,'Capacidad Financiera'!$B$12:$X$62720,2,0)),\"\",VLOOKUP(C110,'Capacidad Financiera'!$B$12:$X$3580,2,0))","v":"PAVIMENTACIONES MORALES SL"}]
[null,null,{"$f":"+'Capacidad Financiera'!B114","v":""},{"$f":"IF(ISERROR(VLOOKUP(C111,'Capacidad Financiera'!$B$12:$X$62720,2,0)),\"\",VLOOKUP(C111,'Capacidad Financiera'!$B$12:$X$3580,2,0))","v":0}]
[null,null,{"$f":"+'Capacidad Financiera'!B115","v":""},{"$f":"IF(ISERROR(VLOOKUP(C112,'Capacidad Financiera'!$B$12:$X$62720,2,0)),\"\",VLOOKUP(C112,'Capacidad Financiera'!$B$12:$X$3580,2,0))","v":0}]
[null,null,{"$f":"+'Capacidad Financiera'!B116","v":""},{"$f":"IF(ISERROR(VLOOKUP(C113,'Capacidad Financiera'!$B$12:$X$62720,2,0)),\"\",VLOOKUP(C113,'Capacidad Financiera'!$B$12:$X$3580,2,0))","v":0}]
[null,null,{"$f":"+'Capacidad Financiera'!B117","v":""},{"$f":"IF(ISERROR(VLOOKUP(C114,'Capacidad Financiera'!$B$12:$X$62720,2,0)),\"\",VLOOKUP(C114,'Capacidad Financiera'!$B$12:$X$3580,2,0))","v":0}]
[null,null,{"$f":"+'Capacidad Financiera'!B118","v":""},{"$f":"IF(ISERROR(VLOOKUP(C115,'Capacidad Financiera'!$B$12:$X$62720,2,0)),\"\",VLOOKUP(C115,'Capacidad Financiera'!$B$12:$X$3580,2,0))","v":0}]
[null,null,{"$f":"+'Capacidad Financiera'!B119","v":""},{"$f":"IF(ISERROR(VLOOKUP(C116,'Capacidad Financiera'!$B$12:$X$62720,2,0)),\"\",VLOOKUP(C116,'Capacidad Financiera'!$B$12:$X$3580,2,0))","v":0}]
[null,null,{"$f":"+'Capacidad Financiera'!B120","v":""},{"$f":"IF(ISERROR(VLOOKUP(C117,'Capacidad Financiera'!$B$12:$X$62720,2,0)),\"\",VLOOKUP(C117,'Capacidad Financiera'!$B$12:$X$3580,2,0))","v":0}]
[null,null,{"$f":"+'Capacidad Financiera'!B121","v":""},{"$f":"IF(ISERROR(VLOOKUP(C118,'Capacidad Financiera'!$B$12:$X$62720,2,0)),\"\",VLOOKUP(C118,'Capacidad Financiera'!$B$12:$X$3580,2,0))","v":0}]
[null,null,11,{"$f":"IF(ISERROR(VLOOKUP(C119,'Capacidad Financiera'!$B$12:$X$62720,2,0)),\"\",VLOOKUP(C119,'Capacidad Financiera'!$B$12:$X$3580,2,0))","v":"CONSORCIO INTERVIAS CUNDINAMARCA 2014"}]
[null,null,{"$f":"+'Capacidad Financiera'!B123","v":11.1},{"$f":"IF(ISERROR(VLOOKUP(C120,'Capacidad Financiera'!$B$12:$X$62720,2,0)),\"\",VLOOKUP(C120,'Capacidad Financiera'!$B$12:$X$3580,2,0))","v":"MBM INGENIERIA S.A.S."},0]
[null,null,{"$f":"+'Capacidad Financiera'!B124","v":11.2},{"$f":"IF(ISERROR(VLOOKUP(C121,'Capacidad Financiera'!$B$12:$X$62720,2,0)),\"\",VLOOKUP(C121,'Capacidad Financiera'!$B$12:$X$3580,2,0))","v":"GUEVARA BAQUERO CIA LTDA."},224767526.72]
[null,null,{"$f":"+'Capacidad Financiera'!B125","v":11.299999999999999},{"$f":"IF(ISERROR(VLOOKUP(C122,'Capacidad Financiera'!$B$12:$X$62720,2,0)),\"\",VLOOKUP(C122,'Capacidad Financiera'!$B$12:$X$3580,2,0))","v":"VIGA INGENIERIA S.A.S."},0]
[null,null,{"$f":"+'Capacidad Financiera'!B126","v":""},{"$f":"IF(ISERROR(VLOOKUP(C123,'Capacidad Financiera'!$B$12:$X$62720,2,0)),\"\",VLOOKUP(C123,'Capacidad Financiera'!$B$12:$X$3580,2,0))","v":0}]
[null,null,{"$f":"+'Capacidad Financiera'!B127","v":""},{"$f":"IF(ISERROR(VLOOKUP(C124,'Capacidad Financiera'!$B$12:$X$62720,2,0)),\"\",VLOOKUP(C124,'Capacidad Financiera'!$B$12:$X$3580,2,0))","v":0}]
[null,null,{"$f":"+'Capacidad Financiera'!B128","v":""},{"$f":"IF(ISERROR(VLOOKUP(C125,'Capacidad Financiera'!$B$12:$X$62720,2,0)),\"\",VLOOKUP(C125,'Capacidad Financiera'!$B$12:$X$3580,2,0))","v":0}]
[null,null,{"$f":"+'Capacidad Financiera'!B129","v":""},{"$f":"IF(ISERROR(VLOOKUP(C126,'Capacidad Financiera'!$B$12:$X$62720,2,0)),\"\",VLOOKUP(C126,'Capacidad Financiera'!$B$12:$X$3580,2,0))","v":0}]
[null,null,{"$f":"+'Capacidad Financiera'!B130","v":""},{"$f":"IF(ISERROR(VLOOKUP(C127,'Capacidad Financiera'!$B$12:$X$62720,2,0)),\"\",VLOOKUP(C127,'Capacidad Financiera'!$B$12:$X$3580,2,0))","v":0}]
[null,null,{"$f":"+'Capacidad Financiera'!B131","v":""},{"$f":"IF(ISERROR(VLOOKUP(C128,'Capacidad Financiera'!$B$12:$X$62720,2,0)),\"\",VLOOKUP(C128,'Capacidad Financiera'!$B$12:$X$3580,2,0))","v":0}]
[null,null,{"$f":"+'Capacidad Financiera'!B132","v":""},{"$f":"IF(ISERROR(VLOOKUP(C129,'Capacidad Financiera'!$B$12:$X$62720,2,0)),\"\",VLOOKUP(C129,'Capacidad Financiera'!$B$12:$X$3580,2,0))","v":0}]
[null,null,12,{"$f":"IF(ISERROR(VLOOKUP(C130,'Capacidad Financiera'!$B$12:$X$62720,2,0)),\"\",VLOOKUP(C130,'Capacidad Financiera'!$B$12:$X$3580,2,0))","v":"UNION TEMPORALSANTA MONICA"}]
[null,null,{"$f":"+'Capacidad Financiera'!B134","v":12.1},{"$f":"IF(ISERROR(VLOOKUP(C131,'Capacidad Financiera'!$B$12:$X$62720,2,0)),\"\",VLOOKUP(C131,'Capacidad Financiera'!$B$12:$X$3580,2,0))","v":"EQUIPOS Y CONSTRUCCIONES VAREGO S.A.S."},63000000]
[null,null,{"$f":"+'Capacidad Financiera'!B135","v":12.2},{"$f":"IF(ISERROR(VLOOKUP(C132,'Capacidad Financiera'!$B$12:$X$62720,2,0)),\"\",VLOOKUP(C132,'Capacidad Financiera'!$B$12:$X$3580,2,0))","v":"VAREGO S.A.S."},63000000]
[null,null,{"$f":"+'Capacidad Financiera'!B136","v":12.299999999999999},{"$f":"IF(ISERROR(VLOOKUP(C133,'Capacidad Financiera'!$B$12:$X$62720,2,0)),\"\",VLOOKUP(C133,'Capacidad Financiera'!$B$12:$X$3580,2,0))","v":"INCIVIAS LTDA."},0]
[null,null,{"$f":"+'Capacidad Financiera'!B137","v":""},{"$f":"IF(ISERROR(VLOOKUP(C134,'Capacidad Financiera'!$B$12:$X$62720,2,0)),\"\",VLOOKUP(C134,'Capacidad Financiera'!$B$12:$X$3580,2,0))","v":0}]
[null,null,{"$f":"+'Capacidad Financiera'!B138","v":""},{"$f":"IF(ISERROR(VLOOKUP(C135,'Capacidad Financiera'!$B$12:$X$62720,2,0)),\"\",VLOOKUP(C135,'Capacidad Financiera'!$B$12:$X$3580,2,0))","v":0}]
[null,null,{"$f":"+'Capacidad Financiera'!B139","v":""},{"$f":"IF(ISERROR(VLOOKUP(C136,'Capacidad Financiera'!$B$12:$X$62720,2,0)),\"\",VLOOKUP(C136,'Capacidad Financiera'!$B$12:$X$3580,2,0))","v":0}]
[null,null,{"$f":"+'Capacidad Financiera'!B140","v":""},{"$f":"IF(ISERROR(VLOOKUP(C137,'Capacidad Financiera'!$B$12:$X$62720,2,0)),\"\",VLOOKUP(C137,'Capacidad Financiera'!$B$12:$X$3580,2,0))","v":0}]
[null,null,{"$f":"+'Capacidad Financiera'!B141","v":""},{"$f":"IF(ISERROR(VLOOKUP(C138,'Capacidad Financiera'!$B$12:$X$62720,2,0)),\"\",VLOOKUP(C138,'Capacidad Financiera'!$B$12:$X$3580,2,0))","v":0}]
[null,null,{"$f":"+'Capacidad Financiera'!B142","v":""},{"$f":"IF(ISERROR(VLOOKUP(C139,'Capacidad Financiera'!$B$12:$X$62720,2,0)),\"\",VLOOKUP(C139,'Capacidad Financiera'!$B$12:$X$3580,2,0))","v":0}]
[null,null,{"$f":"+'Capacidad Financiera'!B143","v":""},{"$f":"IF(ISERROR(VLOOKUP(C140,'Capacidad Financiera'!$B$12:$X$62720,2,0)),\"\",VLOOKUP(C140,'Capacidad Financiera'!$B$12:$X$3580,2,0))","v":0}]
[null,null,13,{"$f":"IF(ISERROR(VLOOKUP(C141,'Capacidad Financiera'!$B$12:$X$62720,2,0)),\"\",VLOOKUP(C141,'Capacidad Financiera'!$B$12:$X$3580,2,0))","v":"CONSORCIO HD"}]
["falta anexo 3",null,{"$f":"+'Capacidad Financiera'!B145","v":13.1},{"$f":"IF(ISERROR(VLOOKUP(C142,'Capacidad Financiera'!$B$12:$X$62720,2,0)),\"\",VLOOKUP(C142,'Capacidad Financiera'!$B$12:$X$3580,2,0))","v":"OLMEDA S.A.S"}]
["falta anexo 3",null,{"$f":"+'Capacidad Financiera'!B146","v":13.2},{"$f":"IF(ISERROR(VLOOKUP(C143,'Capacidad Financiera'!$B$12:$X$62720,2,0)),\"\",VLOOKUP(C143,'Capacidad Financiera'!$B$12:$X$3580,2,0))","v":"HD CONSTRUCCIONES S.A.S."}]
["falta anexo 3",null,{"$f":"+'Capacidad Financiera'!B147","v":13.299999999999999},{"$f":"IF(ISERROR(VLOOKUP(C144,'Capacidad Financiera'!$B$12:$X$62720,2,0)),\"\",VLOOKUP(C144,'Capacidad Financiera'!$B$12:$X$3580,2,0))","v":"HECTOR GIRALDO JARAMILLO"}]
[null,null,{"$f":"+'Capacidad Financiera'!B148","v":""},{"$f":"IF(ISERROR(VLOOKUP(C145,'Capacidad Financiera'!$B$12:$X$62720,2,0)),\"\",VLOOKUP(C145,'Capacidad Financiera'!$B$12:$X$3580,2,0))","v":0}]
[null,null,{"$f":"+'Capacidad Financiera'!B149","v":""},{"$f":"IF(ISERROR(VLOOKUP(C146,'Capacidad Financiera'!$B$12:$X$62720,2,0)),\"\",VLOOKUP(C146,'Capacidad Financiera'!$B$12:$X$3580,2,0))","v":0}]
[null,null,{"$f":"+'Capacidad Financiera'!B150","v":""},{"$f":"IF(ISERROR(VLOOKUP(C147,'Capacidad Financiera'!$B$12:$X$62720,2,0)),\"\",VLOOKUP(C147,'Capacidad Financiera'!$B$12:$X$3580,2,0))","v":0}]
[null,null,{"$f":"+'Capacidad Financiera'!B151","v":""},{"$f":"IF(ISERROR(VLOOKUP(C148,'Capacidad Financiera'!$B$12:$X$62720,2,0)),\"\",VLOOKUP(C148,'Capacidad Financiera'!$B$12:$X$3580,2,0))","v":0}]
[null,null,{"$f":"+'Capacidad Financiera'!B152","v":""},{"$f":"IF(ISERROR(VLOOKUP(C149,'Capacidad Financiera'!$B$12:$X$62720,2,0)),\"\",VLOOKUP(C149,'Capacidad Financiera'!$B$12:$X$3580,2,0))","v":0}]
[null,null,{"$f":"+'Capacidad Financiera'!B153","v":""},{"$f":"IF(ISERROR(VLOOKUP(C150,'Capacidad Financiera'!$B$12:$X$62720,2,0)),\"\",VLOOKUP(C150,'Capacidad Financiera'!$B$12:$X$3580,2,0))","v":0}]
[null,null,{"$f":"+'Capacidad Financiera'!B154","v":""},{"$f":"IF(ISERROR(VLOOKUP(C151,'Capacidad Financiera'!$B$12:$X$62720,2,0)),\"\",VLOOKUP(C151,'Capacidad Financiera'!$B$12:$X$3580,2,0))","v":0}]
[null,null,14,{"$f":"IF(ISERROR(VLOOKUP(C152,'Capacidad Financiera'!$B$12:$X$62720,2,0)),\"\",VLOOKUP(C152,'Capacidad Financiera'!$B$12:$X$3580,2,0))","v":"CONSORCIO CONXIE 034-14"}]
[null,null,{"$f":"+'Capacidad Financiera'!B156","v":14.1},{"$f":"IF(ISERROR(VLOOKUP(C153,'Capacidad Financiera'!$B$12:$X$62720,2,0)),\"\",VLOOKUP(C153,'Capacidad Financiera'!$B$12:$X$3580,2,0))","v":"CONCREARMADO LTDA."},1054379485.25]
[null,null,{"$f":"+'Capacidad Financiera'!B157","v":14.2},{"$f":"IF(ISERROR(VLOOKUP(C154,'Capacidad Financiera'!$B$12:$X$62720,2,0)),\"\",VLOOKUP(C154,'Capacidad Financiera'!$B$12:$X$3580,2,0))","v":"JAIME VARGAS GALINDO"},0]
[null,null,{"$f":"+'Capacidad Financiera'!B158","v":""},{"$f":"IF(ISERROR(VLOOKUP(C155,'Capacidad Financiera'!$B$12:$X$62720,2,0)),\"\",VLOOKUP(C155,'Capacidad Financiera'!$B$12:$X$3580,2,0))","v":0}]
[null,null,{"$f":"+'Capacidad Financiera'!B159","v":""},{"$f":"IF(ISERROR(VLOOKUP(C156,'Capacidad Financiera'!$B$12:$X$62720,2,0)),\"\",VLOOKUP(C156,'Capacidad Financiera'!$B$12:$X$3580,2,0))","v":0}]
[null,null,{"$f":"+'Capacidad Financiera'!B160","v":""},{"$f":"IF(ISERROR(VLOOKUP(C157,'Capacidad Financiera'!$B$12:$X$62720,2,0)),\"\",VLOOKUP(C157,'Capacidad Financiera'!$B$12:$X$3580,2,0))","v":0}]
[null,null,{"$f":"+'Capacidad Financiera'!B161","v":""},{"$f":"IF(ISERROR(VLOOKUP(C158,'Capacidad Financiera'!$B$12:$X$62720,2,0)),\"\",VLOOKUP(C158,'Capacidad Financiera'!$B$12:$X$3580,2,0))","v":0}]
[null,null,{"$f":"+'Capacidad Financiera'!B162","v":""},{"$f":"IF(ISERROR(VLOOKUP(C159,'Capacidad Financiera'!$B$12:$X$62720,2,0)),\"\",VLOOKUP(C159,'Capacidad Financiera'!$B$12:$X$3580,2,0))","v":0}]
[null,null,{"$f":"+'Capacidad Financiera'!B163","v":""},{"$f":"IF(ISERROR(VLOOKUP(C160,'Capacidad Financiera'!$B$12:$X$62720,2,0)),\"\",VLOOKUP(C160,'Capacidad Financiera'!$B$12:$X$3580,2,0))","v":0}]
[null,null,{"$f":"+'Capacidad Financiera'!B164","v":""},{"$f":"IF(ISERROR(VLOOKUP(C161,'Capacidad Financiera'!$B$12:$X$62720,2,0)),\"\",VLOOKUP(C161,'Capacidad Financiera'!$B$12:$X$3580,2,0))","v":0}]
[null,null,{"$f":"+'Capacidad Financiera'!B165","v":""},{"$f":"IF(ISERROR(VLOOKUP(C162,'Capacidad Financiera'!$B$12:$X$62720,2,0)),\"\",VLOOKUP(C162,'Capacidad Financiera'!$B$12:$X$3580,2,0))","v":0}]
[null,null,15,{"$f":"IF(ISERROR(VLOOKUP(C163,'Capacidad Financiera'!$B$12:$X$62720,2,0)),\"\",VLOOKUP(C163,'Capacidad Financiera'!$B$12:$X$3580,2,0))","v":"CONSORCIO BP LA CALERA"}]
[null,null,{"$f":"+'Capacidad Financiera'!B167","v":15.1},{"$f":"IF(ISERROR(VLOOKUP(C164,'Capacidad Financiera'!$B$12:$X$62720,2,0)),\"\",VLOOKUP(C164,'Capacidad Financiera'!$B$12:$X$3580,2,0))","v":"PEDRO NAVARRO RODRIGUEZ"},601156731.42999995]
[null,null,{"$f":"+'Capacidad Financiera'!B168","v":15.2},{"$f":"IF(ISERROR(VLOOKUP(C165,'Capacidad Financiera'!$B$12:$X$62720,2,0)),\"\",VLOOKUP(C165,'Capacidad Financiera'!$B$12:$X$3580,2,0))","v":"PAVIOBRAS S.A.S."},376739913.50999999]
["req dias neg",null,{"$f":"+'Capacidad Financiera'!B169","v":15.299999999999999},{"$f":"IF(ISERROR(VLOOKUP(C166,'Capacidad Financiera'!$B$12:$X$62720,2,0)),\"\",VLOOKUP(C166,'Capacidad Financiera'!$B$12:$X$3580,2,0))","v":"BALLEN B Y CIA S.A.S."}]
[null,null,{"$f":"+'Capacidad Financiera'!B170","v":""},{"$f":"IF(ISERROR(VLOOKUP(C167,'Capacidad Financiera'!$B$12:$X$62720,2,0)),\"\",VLOOKUP(C167,'Capacidad Financiera'!$B$12:$X$3580,2,0))","v":0}]
[null,null,{"$f":"+'Capacidad Financiera'!B171","v":""},{"$f":"IF(ISERROR(VLOOKUP(C168,'Capacidad Financiera'!$B$12:$X$62720,2,0)),\"\",VLOOKUP(C168,'Capacidad Financiera'!$B$12:$X$3580,2,0))","v":0}]
[null,null,{"$f":"+'Capacidad Financiera'!B172","v":""},{"$f":"IF(ISERROR(VLOOKUP(C169,'Capacidad Financiera'!$B$12:$X$62720,2,0)),\"\",VLOOKUP(C169,'Capacidad Financiera'!$B$12:$X$3580,2,0))","v":0}]
[null,null,{"$f":"+'Capacidad Financiera'!B173","v":""},{"$f":"IF(ISERROR(VLOOKUP(C170,'Capacidad Financiera'!$B$12:$X$62720,2,0)),\"\",VLOOKUP(C170,'Capacidad Financiera'!$B$12:$X$3580,2,0))","v":0}]
[null,null,{"$f":"+'Capacidad Financiera'!B174","v":""},{"$f":"IF(ISERROR(VLOOKUP(C171,'Capacidad Financiera'!$B$12:$X$62720,2,0)),\"\",VLOOKUP(C171,'Capacidad Financiera'!$B$12:$X$3580,2,0))","v":0}]
[null,null,{"$f":"+'Capacidad Financiera'!B175","v":""},{"$f":"IF(ISERROR(VLOOKUP(C172,'Capacidad Financiera'!$B$12:$X$62720,2,0)),\"\",VLOOKUP(C172,'Capacidad Financiera'!$B$12:$X$3580,2,0))","v":0}]
[null,null,{"$f":"+'Capacidad Financiera'!B176","v":""},{"$f":"IF(ISERROR(VLOOKUP(C173,'Capacidad Financiera'!$B$12:$X$62720,2,0)),\"\",VLOOKUP(C173,'Capacidad Financiera'!$B$12:$X$3580,2,0))","v":0}]
[null,null,16,{"$f":"IF(ISERROR(VLOOKUP(C174,'Capacidad Financiera'!$B$12:$X$62720,2,0)),\"\",VLOOKUP(C174,'Capacidad Financiera'!$B$12:$X$3580,2,0))","v":"CONSORCIO SAN PABLO"}]
["req dias neg",null,{"$f":"+'Capacidad Financiera'!B178","v":16.100000000000001},{"$f":"IF(ISERROR(VLOOKUP(C175,'Capacidad Financiera'!$B$12:$X$62720,2,0)),\"\",VLOOKUP(C175,'Capacidad Financiera'!$B$12:$X$3580,2,0))","v":"ALCA INGENIERIA S.A.S."}]
["req dias neg",null,{"$f":"+'Capacidad Financiera'!B179","v":16.200000000000003},{"$f":"IF(ISERROR(VLOOKUP(C176,'Capacidad Financiera'!$B$12:$X$62720,2,0)),\"\",VLOOKUP(C176,'Capacidad Financiera'!$B$12:$X$3580,2,0))","v":"TORRESCAMARA Y CIA DE OBRAS S.A. SUCURSAL COLOMBIA"}]
[null,null,{"$f":"+'Capacidad Financiera'!B180","v":""},{"$f":"IF(ISERROR(VLOOKUP(C177,'Capacidad Financiera'!$B$12:$X$62720,2,0)),\"\",VLOOKUP(C177,'Capacidad Financiera'!$B$12:$X$3580,2,0))","v":0}]
[null,null,{"$f":"+'Capacidad Financiera'!B181","v":""},{"$f":"IF(ISERROR(VLOOKUP(C178,'Capacidad Financiera'!$B$12:$X$62720,2,0)),\"\",VLOOKUP(C178,'Capacidad Financiera'!$B$12:$X$3580,2,0))","v":0}]
[null,null,{"$f":"+'Capacidad Financiera'!B182","v":""},{"$f":"IF(ISERROR(VLOOKUP(C179,'Capacidad Financiera'!$B$12:$X$62720,2,0)),\"\",VLOOKUP(C179,'Capacidad Financiera'!$B$12:$X$3580,2,0))","v":0}]
[null,null,{"$f":"+'Capacidad Financiera'!B183","v":""},{"$f":"IF(ISERROR(VLOOKUP(C180,'Capacidad Financiera'!$B$12:$X$62720,2,0)),\"\",VLOOKUP(C180,'Capacidad Financiera'!$B$12:$X$3580,2,0))","v":0}]
[null,null,{"$f":"+'Capacidad Financiera'!B184","v":""},{"$f":"IF(ISERROR(VLOOKUP(C181,'Capacidad Financiera'!$B$12:$X$62720,2,0)),\"\",VLOOKUP(C181,'Capacidad Financiera'!$B$12:$X$3580,2,0))","v":0}]
[null,null,{"$f":"+'Capacidad Financiera'!B185","v":""},{"$f":"IF(ISERROR(VLOOKUP(C182,'Capacidad Financiera'!$B$12:$X$62720,2,0)),\"\",VLOOKUP(C182,'Capacidad Financiera'!$B$12:$X$3580,2,0))","v":0}]
[null,null,{"$f":"+'Capacidad Financiera'!B186","v":""},{"$f":"IF(ISERROR(VLOOKUP(C183,'Capacidad Financiera'!$B$12:$X$62720,2,0)),\"\",VLOOKUP(C183,'Capacidad Financiera'!$B$12:$X$3580,2,0))","v":0}]
[null,null,{"$f":"+'Capacidad Financiera'!B187","v":""},{"$f":"IF(ISERROR(VLOOKUP(C184,'Capacidad Financiera'!$B$12:$X$62720,2,0)),\"\",VLOOKUP(C184,'Capacidad Financiera'!$B$12:$X$3580,2,0))","v":0}]
[null,null,17,{"$f":"IF(ISERROR(VLOOKUP(C185,'Capacidad Financiera'!$B$12:$X$62720,2,0)),\"\",VLOOKUP(C185,'Capacidad Financiera'!$B$12:$X$3580,2,0))","v":"CONSORCIO LA CALERA CUNDINAMARCA"}]
["req dias neg",null,{"$f":"+'Capacidad Financiera'!B189","v":17.100000000000001},{"$f":"IF(ISERROR(VLOOKUP(C186,'Capacidad Financiera'!$B$12:$X$62720,2,0)),\"\",VLOOKUP(C186,'Capacidad Financiera'!$B$12:$X$3580,2,0))","v":"JUAN SILVA RODRIGUEZ"}]
["req dias neg",null,{"$f":"+'Capacidad Financiera'!B190","v":17.200000000000003},{"$f":"IF(ISERROR(VLOOKUP(C187,'Capacidad Financiera'!$B$12:$X$62720,2,0)),\"\",VLOOKUP(C187,'Capacidad Financiera'!$B$12:$X$3580,2,0))","v":"FERNANDO JIMENEZ ROA"}]
[null,null,{"$f":"+'Capacidad Financiera'!B191","v":""},{"$f":"IF(ISERROR(VLOOKUP(C188,'Capacidad Financiera'!$B$12:$X$62720,2,0)),\"\",VLOOKUP(C188,'Capacidad Financiera'!$B$12:$X$3580,2,0))","v":0}]
[null,null,{"$f":"+'Capacidad Financiera'!B192","v":""},{"$f":"IF(ISERROR(VLOOKUP(C189,'Capacidad Financiera'!$B$12:$X$62720,2,0)),\"\",VLOOKUP(C189,'Capacidad Financiera'!$B$12:$X$3580,2,0))","v":0}]
[null,null,{"$f":"+'Capacidad Financiera'!B193","v":""},{"$f":"IF(ISERROR(VLOOKUP(C190,'Capacidad Financiera'!$B$12:$X$62720,2,0)),\"\",VLOOKUP(C190,'Capacidad Financiera'!$B$12:$X$3580,2,0))","v":0}]
[null,null,{"$f":"+'Capacidad Financiera'!B194","v":""},{"$f":"IF(ISERROR(VLOOKUP(C191,'Capacidad Financiera'!$B$12:$X$62720,2,0)),\"\",VLOOKUP(C191,'Capacidad Financiera'!$B$12:$X$3580,2,0))","v":0}]
[null,null,{"$f":"+'Capacidad Financiera'!B195","v":""},{"$f":"IF(ISERROR(VLOOKUP(C192,'Capacidad Financiera'!$B$12:$X$62720,2,0)),\"\",VLOOKUP(C192,'Capacidad Financiera'!$B$12:$X$3580,2,0))","v":0}]
[null,null,{"$f":"+'Capacidad Financiera'!B196","v":""},{"$f":"IF(ISERROR(VLOOKUP(C193,'Capacidad Financiera'!$B$12:$X$62720,2,0)),\"\",VLOOKUP(C193,'Capacidad Financiera'!$B$12:$X$3580,2,0))","v":0}]
[null,null,{"$f":"+'Capacidad Financiera'!B197","v":""},{"$f":"IF(ISERROR(VLOOKUP(C194,'Capacidad Financiera'!$B$12:$X$62720,2,0)),\"\",VLOOKUP(C194,'Capacidad Financiera'!$B$12:$X$3580,2,0))","v":0}]
[null,null,{"$f":"+'Capacidad Financiera'!B198","v":""},{"$f":"IF(ISERROR(VLOOKUP(C195,'Capacidad Financiera'!$B$12:$X$62720,2,0)),\"\",VLOOKUP(C195,'Capacidad Financiera'!$B$12:$X$3580,2,0))","v":0}]
[null,null,18,{"$f":"IF(ISERROR(VLOOKUP(C196,'Capacidad Financiera'!$B$12:$X$62720,2,0)),\"\",VLOOKUP(C196,'Capacidad Financiera'!$B$12:$X$3580,2,0))","v":"CONSORCIO VIAS HN"}]
[null,null,{"$f":"+'Capacidad Financiera'!B200","v":18.100000000000001},{"$f":"IF(ISERROR(VLOOKUP(C197,'Capacidad Financiera'!$B$12:$X$62720,2,0)),\"\",VLOOKUP(C197,'Capacidad Financiera'!$B$12:$X$3580,2,0))","v":"LUIS FERNANDO HOYOS PEREZ"},937919119.70000005]
[null,null,{"$f":"+'Capacidad Financiera'!B201","v":18.200000000000003},{"$f":"IF(ISERROR(VLOOKUP(C198,'Capacidad Financiera'!$B$12:$X$62720,2,0)),\"\",VLOOKUP(C198,'Capacidad Financiera'!$B$12:$X$3580,2,0))","v":"VICTOR RAUL NEIRA DELBASTO"},478456512.72000003]
[null,null,{"$f":"+'Capacidad Financiera'!B202","v":""},{"$f":"IF(ISERROR(VLOOKUP(C199,'Capacidad Financiera'!$B$12:$X$62720,2,0)),\"\",VLOOKUP(C199,'Capacidad Financiera'!$B$12:$X$3580,2,0))","v":0}]
[null,null,{"$f":"+'Capacidad Financiera'!B203","v":""},{"$f":"IF(ISERROR(VLOOKUP(C200,'Capacidad Financiera'!$B$12:$X$62720,2,0)),\"\",VLOOKUP(C200,'Capacidad Financiera'!$B$12:$X$3580,2,0))","v":0}]
[null,null,{"$f":"+'Capacidad Financiera'!B204","v":""},{"$f":"IF(ISERROR(VLOOKUP(C201,'Capacidad Financiera'!$B$12:$X$62720,2,0)),\"\",VLOOKUP(C201,'Capacidad Financiera'!$B$12:$X$3580,2,0))","v":0}]
[null,null,{"$f":"+'Capacidad Financiera'!B205","v":""},{"$f":"IF(ISERROR(VLOOKUP(C202,'Capacidad Financiera'!$B$12:$X$62720,2,0)),\"\",VLOOKUP(C202,'Capacidad Financiera'!$B$12:$X$3580,2,0))","v":0}]
[null,null,{"$f":"+'Capacidad Financiera'!B206","v":""},{"$f":"IF(ISERROR(VLOOKUP(C203,'Capacidad Financiera'!$B$12:$X$62720,2,0)),\"\",VLOOKUP(C203,'Capacidad Financiera'!$B$12:$X$3580,2,0))","v":0}]
[null,null,{"$f":"+'Capacidad Financiera'!B207","v":""},{"$f":"IF(ISERROR(VLOOKUP(C204,'Capacidad Financiera'!$B$12:$X$62720,2,0)),\"\",VLOOKUP(C204,'Capacidad Financiera'!$B$12:$X$3580,2,0))","v":0}]
[null,null,{"$f":"+'Capacidad Financiera'!B208","v":""},{"$f":"IF(ISERROR(VLOOKUP(C205,'Capacidad Financiera'!$B$12:$X$62720,2,0)),\"\",VLOOKUP(C205,'Capacidad Financiera'!$B$12:$X$3580,2,0))","v":0}]
[null,null,{"$f":"+'Capacidad Financiera'!B209","v":""},{"$f":"IF(ISERROR(VLOOKUP(C206,'Capacidad Financiera'!$B$12:$X$62720,2,0)),\"\",VLOOKUP(C206,'Capacidad Financiera'!$B$12:$X$3580,2,0))","v":0}]
[null,null,19,{"$f":"IF(ISERROR(VLOOKUP(C207,'Capacidad Financiera'!$B$12:$X$62720,2,0)),\"\",VLOOKUP(C207,'Capacidad Financiera'!$B$12:$X$3580,2,0))","v":"EXPLANAN S.A."}]
["req dias neg",null,{"$f":"+'Capacidad Financiera'!B211","v":19.100000000000001},{"$f":"IF(ISERROR(VLOOKUP(C208,'Capacidad Financiera'!$B$12:$X$62720,2,0)),\"\",VLOOKUP(C208,'Capacidad Financiera'!$B$12:$X$3580,2,0))","v":"EXPLANAN S.A."}]
[null,null,{"$f":"+'Capacidad Financiera'!B212","v":""},{"$f":"IF(ISERROR(VLOOKUP(C209,'Capacidad Financiera'!$B$12:$X$62720,2,0)),\"\",VLOOKUP(C209,'Capacidad Financiera'!$B$12:$X$3580,2,0))","v":0}]
[null,null,{"$f":"+'Capacidad Financiera'!B213","v":""},{"$f":"IF(ISERROR(VLOOKUP(C210,'Capacidad Financiera'!$B$12:$X$62720,2,0)),\"\",VLOOKUP(C210,'Capacidad Financiera'!$B$12:$X$3580,2,0))","v":0}]
[null,null,{"$f":"+'Capacidad Financiera'!B214","v":""},{"$f":"IF(ISERROR(VLOOKUP(C211,'Capacidad Financiera'!$B$12:$X$62720,2,0)),\"\",VLOOKUP(C211,'Capacidad Financiera'!$B$12:$X$3580,2,0))","v":0}]
[null,null,{"$f":"+'Capacidad Financiera'!B215","v":""},{"$f":"IF(ISERROR(VLOOKUP(C212,'Capacidad Financiera'!$B$12:$X$62720,2,0)),\"\",VLOOKUP(C212,'Capacidad Financiera'!$B$12:$X$3580,2,0))","v":0}]
[null,null,{"$f":"+'Capacidad Financiera'!B216","v":""},{"$f":"IF(ISERROR(VLOOKUP(C213,'Capacidad Financiera'!$B$12:$X$62720,2,0)),\"\",VLOOKUP(C213,'Capacidad Financiera'!$B$12:$X$3580,2,0))","v":0}]
[null,null,{"$f":"+'Capacidad Financiera'!B217","v":""},{"$f":"IF(ISERROR(VLOOKUP(C214,'Capacidad Financiera'!$B$12:$X$62720,2,0)),\"\",VLOOKUP(C214,'Capacidad Financiera'!$B$12:$X$3580,2,0))","v":0}]
[null,null,{"$f":"+'Capacidad Financiera'!B218","v":""},{"$f":"IF(ISERROR(VLOOKUP(C215,'Capacidad Financiera'!$B$12:$X$62720,2,0)),\"\",VLOOKUP(C215,'Capacidad Financiera'!$B$12:$X$3580,2,0))","v":0}]
[null,null,{"$f":"+'Capacidad Financiera'!B219","v":""},{"$f":"IF(ISERROR(VLOOKUP(C216,'Capacidad Financiera'!$B$12:$X$62720,2,0)),\"\",VLOOKUP(C216,'Capacidad Financiera'!$B$12:$X$3580,2,0))","v":0}]
[null,null,{"$f":"+'Capacidad Financiera'!B220","v":""},{"$f":"IF(ISERROR(VLOOKUP(C217,'Capacidad Financiera'!$B$12:$X$62720,2,0)),\"\",VLOOKUP(C217,'Capacidad Financiera'!$B$12:$X$3580,2,0))","v":0}]
[null,null,20,{"$f":"IF(ISERROR(VLOOKUP(C218,'Capacidad Financiera'!$B$12:$X$62720,2,0)),\"\",VLOOKUP(C218,'Capacidad Financiera'!$B$12:$X$3580,2,0))","v":"CONSORCIO VIAL LA CALERA"}]
[null,null,{"$f":"+'Capacidad Financiera'!B222","v":20.100000000000001},{"$f":"IF(ISERROR(VLOOKUP(C219,'Capacidad Financiera'!$B$12:$X$62720,2,0)),\"\",VLOOKUP(C219,'Capacidad Financiera'!$B$12:$X$3580,2,0))","v":"ARMANDO VALENCIA VALENCIA"},0]
[null,null,{"$f":"+'Capacidad Financiera'!B223","v":20.200000000000003},{"$f":"IF(ISERROR(VLOOKUP(C220,'Capacidad Financiera'!$B$12:$X$62720,2,0)),\"\",VLOOKUP(C220,'Capacidad Financiera'!$B$12:$X$3580,2,0))","v":"OLGA VELEZ MESA"},0]
[null,null,{"$f":"+'Capacidad Financiera'!B224","v":""},{"$f":"IF(ISERROR(VLOOKUP(C221,'Capacidad Financiera'!$B$12:$X$62720,2,0)),\"\",VLOOKUP(C221,'Capacidad Financiera'!$B$12:$X$3580,2,0))","v":0}]
[null,null,{"$f":"+'Capacidad Financiera'!B225","v":""},{"$f":"IF(ISERROR(VLOOKUP(C222,'Capacidad Financiera'!$B$12:$X$62720,2,0)),\"\",VLOOKUP(C222,'Capacidad Financiera'!$B$12:$X$3580,2,0))","v":0}]
[null,null,{"$f":"+'Capacidad Financiera'!B226","v":""},{"$f":"IF(ISERROR(VLOOKUP(C223,'Capacidad Financiera'!$B$12:$X$62720,2,0)),\"\",VLOOKUP(C223,'Capacidad Financiera'!$B$12:$X$3580,2,0))","v":0}]
[null,null,{"$f":"+'Capacidad Financiera'!B227","v":""},{"$f":"IF(ISERROR(VLOOKUP(C224,'Capacidad Financiera'!$B$12:$X$62720,2,0)),\"\",VLOOKUP(C224,'Capacidad Financiera'!$B$12:$X$3580,2,0))","v":0}]
[null,null,{"$f":"+'Capacidad Financiera'!B228","v":""},{"$f":"IF(ISERROR(VLOOKUP(C225,'Capacidad Financiera'!$B$12:$X$62720,2,0)),\"\",VLOOKUP(C225,'Capacidad Financiera'!$B$12:$X$3580,2,0))","v":0}]
[null,null,{"$f":"+'Capacidad Financiera'!B229","v":""},{"$f":"IF(ISERROR(VLOOKUP(C226,'Capacidad Financiera'!$B$12:$X$62720,2,0)),\"\",VLOOKUP(C226,'Capacidad Financiera'!$B$12:$X$3580,2,0))","v":0}]
[null,null,{"$f":"+'Capacidad Financiera'!B230","v":""},{"$f":"IF(ISERROR(VLOOKUP(C227,'Capacidad Financiera'!$B$12:$X$62720,2,0)),\"\",VLOOKUP(C227,'Capacidad Financiera'!$B$12:$X$3580,2,0))","v":0}]
[null,null,{"$f":"+'Capacidad Financiera'!B231","v":""},{"$f":"IF(ISERROR(VLOOKUP(C228,'Capacidad Financiera'!$B$12:$X$62720,2,0)),\"\",VLOOKUP(C228,'Capacidad Financiera'!$B$12:$X$3580,2,0))","v":0}]
[null,null,21,{"$f":"IF(ISERROR(VLOOKUP(C229,'Capacidad Financiera'!$B$12:$X$62720,2,0)),\"\",VLOOKUP(C229,'Capacidad Financiera'!$B$12:$X$3580,2,0))","v":"CONSORCIO VIAL COLOMBIA 2014"}]
["req dias neg",null,{"$f":"+'Capacidad Financiera'!B233","v":21.1},{"$f":"IF(ISERROR(VLOOKUP(C230,'Capacidad Financiera'!$B$12:$X$62720,2,0)),\"\",VLOOKUP(C230,'Capacidad Financiera'!$B$12:$X$3580,2,0))","v":"SARIA S.A.S."}]
["req dias neg",null,{"$f":"+'Capacidad Financiera'!B234","v":21.200000000000003},{"$f":"IF(ISERROR(VLOOKUP(C231,'Capacidad Financiera'!$B$12:$X$62720,2,0)),\"\",VLOOKUP(C231,'Capacidad Financiera'!$B$12:$X$3580,2,0))","v":"TRAINCO S.A."}]
[null,null,{"$f":"+'Capacidad Financiera'!B235","v":""},{"$f":"IF(ISERROR(VLOOKUP(C232,'Capacidad Financiera'!$B$12:$X$62720,2,0)),\"\",VLOOKUP(C232,'Capacidad Financiera'!$B$12:$X$3580,2,0))","v":0}]
[null,null,{"$f":"+'Capacidad Financiera'!B236","v":""},{"$f":"IF(ISERROR(VLOOKUP(C233,'Capacidad Financiera'!$B$12:$X$62720,2,0)),\"\",VLOOKUP(C233,'Capacidad Financiera'!$B$12:$X$3580,2,0))","v":0}]
[null,null,{"$f":"+'Capacidad Financiera'!B237","v":""},{"$f":"IF(ISERROR(VLOOKUP(C234,'Capacidad Financiera'!$B$12:$X$62720,2,0)),\"\",VLOOKUP(C234,'Capacidad Financiera'!$B$12:$X$3580,2,0))","v":0}]
[null,null,{"$f":"+'Capacidad Financiera'!B238","v":""},{"$f":"IF(ISERROR(VLOOKUP(C235,'Capacidad Financiera'!$B$12:$X$62720,2,0)),\"\",VLOOKUP(C235,'Capacidad Financiera'!$B$12:$X$3580,2,0))","v":0}]
[null,null,{"$f":"+'Capacidad Financiera'!B239","v":""},{"$f":"IF(ISERROR(VLOOKUP(C236,'Capacidad Financiera'!$B$12:$X$62720,2,0)),\"\",VLOOKUP(C236,'Capacidad Financiera'!$B$12:$X$3580,2,0))","v":0}]
[null,null,{"$f":"+'Capacidad Financiera'!B240","v":""},{"$f":"IF(ISERROR(VLOOKUP(C237,'Capacidad Financiera'!$B$12:$X$62720,2,0)),\"\",VLOOKUP(C237,'Capacidad Financiera'!$B$12:$X$3580,2,0))","v":0}]
[null,null,{"$f":"+'Capacidad Financiera'!B241","v":""},{"$f":"IF(ISERROR(VLOOKUP(C238,'Capacidad Financiera'!$B$12:$X$62720,2,0)),\"\",VLOOKUP(C238,'Capacidad Financiera'!$B$12:$X$3580,2,0))","v":0}]
[null,null,{"$f":"+'Capacidad Financiera'!B242","v":""},{"$f":"IF(ISERROR(VLOOKUP(C239,'Capacidad Financiera'!$B$12:$X$62720,2,0)),\"\",VLOOKUP(C239,'Capacidad Financiera'!$B$12:$X$3580,2,0))","v":0}]
[null,null,22,{"$f":"IF(ISERROR(VLOOKUP(C240,'Capacidad Financiera'!$B$12:$X$62720,2,0)),\"\",VLOOKUP(C240,'Capacidad Financiera'!$B$12:$X$3580,2,0))","v":"INGENIERIA Y CONSTRUCCIONES S.A.S"}]
["req dias neg",null,{"$f":"+'Capacidad Financiera'!B244","v":22.1},{"$f":"IF(ISERROR(VLOOKUP(C241,'Capacidad Financiera'!$B$12:$X$62720,2,0)),\"\",VLOOKUP(C241,'Capacidad Financiera'!$B$12:$X$3580,2,0))","v":"INGENIERIA Y CONSTRUCCIONES S.A.S"}]
[null,null,{"$f":"+'Capacidad Financiera'!B245","v":""},{"$f":"IF(ISERROR(VLOOKUP(C242,'Capacidad Financiera'!$B$12:$X$62720,2,0)),\"\",VLOOKUP(C242,'Capacidad Financiera'!$B$12:$X$3580,2,0))","v":0}]
[null,null,{"$f":"+'Capacidad Financiera'!B246","v":""},{"$f":"IF(ISERROR(VLOOKUP(C243,'Capacidad Financiera'!$B$12:$X$62720,2,0)),\"\",VLOOKUP(C243,'Capacidad Financiera'!$B$12:$X$3580,2,0))","v":0}]
[null,null,{"$f":"+'Capacidad Financiera'!B247","v":""},{"$f":"IF(ISERROR(VLOOKUP(C244,'Capacidad Financiera'!$B$12:$X$62720,2,0)),\"\",VLOOKUP(C244,'Capacidad Financiera'!$B$12:$X$3580,2,0))","v":0}]
[null,null,{"$f":"+'Capacidad Financiera'!B248","v":""},{"$f":"IF(ISERROR(VLOOKUP(C245,'Capacidad Financiera'!$B$12:$X$62720,2,0)),\"\",VLOOKUP(C245,'Capacidad Financiera'!$B$12:$X$3580,2,0))","v":0}]
[null,null,{"$f":"+'Capacidad Financiera'!B249","v":""},{"$f":"IF(ISERROR(VLOOKUP(C246,'Capacidad Financiera'!$B$12:$X$62720,2,0)),\"\",VLOOKUP(C246,'Capacidad Financiera'!$B$12:$X$3580,2,0))","v":0}]
[null,null,{"$f":"+'Capacidad Financiera'!B250","v":""},{"$f":"IF(ISERROR(VLOOKUP(C247,'Capacidad Financiera'!$B$12:$X$62720,2,0)),\"\",VLOOKUP(C247,'Capacidad Financiera'!$B$12:$X$3580,2,0))","v":0}]
[null,null,{"$f":"+'Capacidad Financiera'!B251","v":""},{"$f":"IF(ISERROR(VLOOKUP(C248,'Capacidad Financiera'!$B$12:$X$62720,2,0)),\"\",VLOOKUP(C248,'Capacidad Financiera'!$B$12:$X$3580,2,0))","v":0}]
[null,null,{"$f":"+'Capacidad Financiera'!B252","v":""},{"$f":"IF(ISERROR(VLOOKUP(C249,'Capacidad Financiera'!$B$12:$X$62720,2,0)),\"\",VLOOKUP(C249,'Capacidad Financiera'!$B$12:$X$3580,2,0))","v":0}]
[null,null,{"$f":"+'Capacidad Financiera'!B253","v":""},{"$f":"IF(ISERROR(VLOOKUP(C250,'Capacidad Financiera'!$B$12:$X$62720,2,0)),\"\",VLOOKUP(C250,'Capacidad Financiera'!$B$12:$X$3580,2,0))","v":0}]
[null,null,23,{"$f":"IF(ISERROR(VLOOKUP(C251,'Capacidad Financiera'!$B$12:$X$62720,2,0)),\"\",VLOOKUP(C251,'Capacidad Financiera'!$B$12:$X$3580,2,0))","v":"CONSORCIO VIAL SUCRE 2014"}]
[null,null,{"$f":"+'Capacidad Financiera'!B255","v":23.1},{"$f":"IF(ISERROR(VLOOKUP(C252,'Capacidad Financiera'!$B$12:$X$62720,2,0)),\"\",VLOOKUP(C252,'Capacidad Financiera'!$B$12:$X$3580,2,0))","v":"PROVIAS S.A.S."},26771056332.959999]
[null,null,{"$f":"+'Capacidad Financiera'!B256","v":23.200000000000003},{"$f":"IF(ISERROR(VLOOKUP(C253,'Capacidad Financiera'!$B$12:$X$62720,2,0)),\"\",VLOOKUP(C253,'Capacidad Financiera'!$B$12:$X$3580,2,0))","v":"ICG PROYECTOS S.A.S."},0]
[null,null,{"$f":"+'Capacidad Financiera'!B257","v":""},{"$f":"IF(ISERROR(VLOOKUP(C254,'Capacidad Financiera'!$B$12:$X$62720,2,0)),\"\",VLOOKUP(C254,'Capacidad Financiera'!$B$12:$X$3580,2,0))","v":0}]
[null,null,{"$f":"+'Capacidad Financiera'!B258","v":""},{"$f":"IF(ISERROR(VLOOKUP(C255,'Capacidad Financiera'!$B$12:$X$62720,2,0)),\"\",VLOOKUP(C255,'Capacidad Financiera'!$B$12:$X$3580,2,0))","v":0}]
[null,null,{"$f":"+'Capacidad Financiera'!B259","v":""},{"$f":"IF(ISERROR(VLOOKUP(C256,'Capacidad Financiera'!$B$12:$X$62720,2,0)),\"\",VLOOKUP(C256,'Capacidad Financiera'!$B$12:$X$3580,2,0))","v":0}]
[null,null,{"$f":"+'Capacidad Financiera'!B260","v":""},{"$f":"IF(ISERROR(VLOOKUP(C257,'Capacidad Financiera'!$B$12:$X$62720,2,0)),\"\",VLOOKUP(C257,'Capacidad Financiera'!$B$12:$X$3580,2,0))","v":0}]
[null,null,{"$f":"+'Capacidad Financiera'!B261","v":""},{"$f":"IF(ISERROR(VLOOKUP(C258,'Capacidad Financiera'!$B$12:$X$62720,2,0)),\"\",VLOOKUP(C258,'Capacidad Financiera'!$B$12:$X$3580,2,0))","v":0}]
[null,null,{"$f":"+'Capacidad Financiera'!B262","v":""},{"$f":"IF(ISERROR(VLOOKUP(C259,'Capacidad Financiera'!$B$12:$X$62720,2,0)),\"\",VLOOKUP(C259,'Capacidad Financiera'!$B$12:$X$3580,2,0))","v":0}]
[null,null,{"$f":"+'Capacidad Financiera'!B263","v":""},{"$f":"IF(ISERROR(VLOOKUP(C260,'Capacidad Financiera'!$B$12:$X$62720,2,0)),\"\",VLOOKUP(C260,'Capacidad Financiera'!$B$12:$X$3580,2,0))","v":0}]
[null,null,{"$f":"+'Capacidad Financiera'!B264","v":""},{"$f":"IF(ISERROR(VLOOKUP(C261,'Capacidad Financiera'!$B$12:$X$62720,2,0)),\"\",VLOOKUP(C261,'Capacidad Financiera'!$B$12:$X$3580,2,0))","v":0}]
[null,null,24,{"$f":"IF(ISERROR(VLOOKUP(C262,'Capacidad Financiera'!$B$12:$X$62720,2,0)),\"\",VLOOKUP(C262,'Capacidad Financiera'!$B$12:$X$3580,2,0))","v":"INGENIERIA Y VIAS S.A.S."}]
["req dias neg",null,{"$f":"+'Capacidad Financiera'!B266","v":24.1},{"$f":"IF(ISERROR(VLOOKUP(C263,'Capacidad Financiera'!$B$12:$X$62720,2,0)),\"\",VLOOKUP(C263,'Capacidad Financiera'!$B$12:$X$3580,2,0))","v":"INGENIERIA Y VIAS S.A.S."}]
[null,null,{"$f":"+'Capacidad Financiera'!B267","v":""},{"$f":"IF(ISERROR(VLOOKUP(C264,'Capacidad Financiera'!$B$12:$X$62720,2,0)),\"\",VLOOKUP(C264,'Capacidad Financiera'!$B$12:$X$3580,2,0))","v":0}]
[null,null,{"$f":"+'Capacidad Financiera'!B268","v":""},{"$f":"IF(ISERROR(VLOOKUP(C265,'Capacidad Financiera'!$B$12:$X$62720,2,0)),\"\",VLOOKUP(C265,'Capacidad Financiera'!$B$12:$X$3580,2,0))","v":0}]
[null,null,{"$f":"+'Capacidad Financiera'!B269","v":""},{"$f":"IF(ISERROR(VLOOKUP(C266,'Capacidad Financiera'!$B$12:$X$62720,2,0)),\"\",VLOOKUP(C266,'Capacidad Financiera'!$B$12:$X$3580,2,0))","v":0}]
[null,null,{"$f":"+'Capacidad Financiera'!B270","v":""},{"$f":"IF(ISERROR(VLOOKUP(C267,'Capacidad Financiera'!$B$12:$X$62720,2,0)),\"\",VLOOKUP(C267,'Capacidad Financiera'!$B$12:$X$3580,2,0))","v":0}]
[null,null,{"$f":"+'Capacidad Financiera'!B271","v":""},{"$f":"IF(ISERROR(VLOOKUP(C268,'Capacidad Financiera'!$B$12:$X$62720,2,0)),\"\",VLOOKUP(C268,'Capacidad Financiera'!$B$12:$X$3580,2,0))","v":0}]
[null,null,{"$f":"+'Capacidad Financiera'!B272","v":""},{"$f":"IF(ISERROR(VLOOKUP(C269,'Capacidad Financiera'!$B$12:$X$62720,2,0)),\"\",VLOOKUP(C269,'Capacidad Financiera'!$B$12:$X$3580,2,0))","v":0}]
[null,null,{"$f":"+'Capacidad Financiera'!B273","v":""},{"$f":"IF(ISERROR(VLOOKUP(C270,'Capacidad Financiera'!$B$12:$X$62720,2,0)),\"\",VLOOKUP(C270,'Capacidad Financiera'!$B$12:$X$3580,2,0))","v":0}]
[null,null,{"$f":"+'Capacidad Financiera'!B274","v":""},{"$f":"IF(ISERROR(VLOOKUP(C271,'Capacidad Financiera'!$B$12:$X$62720,2,0)),\"\",VLOOKUP(C271,'Capacidad Financiera'!$B$12:$X$3580,2,0))","v":0}]
[null,null,{"$f":"+'Capacidad Financiera'!B275","v":""},{"$f":"IF(ISERROR(VLOOKUP(C272,'Capacidad Financiera'!$B$12:$X$62720,2,0)),\"\",VLOOKUP(C272,'Capacidad Financiera'!$B$12:$X$3580,2,0))","v":0}]
[null,null,25,{"$f":"IF(ISERROR(VLOOKUP(C273,'Capacidad Financiera'!$B$12:$X$62720,2,0)),\"\",VLOOKUP(C273,'Capacidad Financiera'!$B$12:$X$3580,2,0))","v":"GUSTAVO VELANDIA POVEDA"}]
["req dias neg",null,{"$f":"+'Capacidad Financiera'!B277","v":25.1},{"$f":"IF(ISERROR(VLOOKUP(C274,'Capacidad Financiera'!$B$12:$X$62720,2,0)),\"\",VLOOKUP(C274,'Capacidad Financiera'!$B$12:$X$3580,2,0))","v":"GUSTAVO VELANDIA POVEDA"}]
[null,null,{"$f":"+'Capacidad Financiera'!B278","v":""},{"$f":"IF(ISERROR(VLOOKUP(C275,'Capacidad Financiera'!$B$12:$X$62720,2,0)),\"\",VLOOKUP(C275,'Capacidad Financiera'!$B$12:$X$3580,2,0))","v":0}]
[null,null,{"$f":"+'Capacidad Financiera'!B279","v":""},{"$f":"IF(ISERROR(VLOOKUP(C276,'Capacidad Financiera'!$B$12:$X$62720,2,0)),\"\",VLOOKUP(C276,'Capacidad Financiera'!$B$12:$X$3580,2,0))","v":0}]
[null,null,{"$f":"+'Capacidad Financiera'!B280","v":""},{"$f":"IF(ISERROR(VLOOKUP(C277,'Capacidad Financiera'!$B$12:$X$62720,2,0)),\"\",VLOOKUP(C277,'Capacidad Financiera'!$B$12:$X$3580,2,0))","v":0}]
[null,null,{"$f":"+'Capacidad Financiera'!B281","v":""},{"$f":"IF(ISERROR(VLOOKUP(C278,'Capacidad Financiera'!$B$12:$X$62720,2,0)),\"\",VLOOKUP(C278,'Capacidad Financiera'!$B$12:$X$3580,2,0))","v":0}]
[null,null,{"$f":"+'Capacidad Financiera'!B282","v":""},{"$f":"IF(ISERROR(VLOOKUP(C279,'Capacidad Financiera'!$B$12:$X$62720,2,0)),\"\",VLOOKUP(C279,'Capacidad Financiera'!$B$12:$X$3580,2,0))","v":0}]
[null,null,{"$f":"+'Capacidad Financiera'!B283","v":""},{"$f":"IF(ISERROR(VLOOKUP(C280,'Capacidad Financiera'!$B$12:$X$62720,2,0)),\"\",VLOOKUP(C280,'Capacidad Financiera'!$B$12:$X$3580,2,0))","v":0}]
[null,null,{"$f":"+'Capacidad Financiera'!B284","v":""},{"$f":"IF(ISERROR(VLOOKUP(C281,'Capacidad Financiera'!$B$12:$X$62720,2,0)),\"\",VLOOKUP(C281,'Capacidad Financiera'!$B$12:$X$3580,2,0))","v":0}]
[null,null,{"$f":"+'Capacidad Financiera'!B285","v":""},{"$f":"IF(ISERROR(VLOOKUP(C282,'Capacidad Financiera'!$B$12:$X$62720,2,0)),\"\",VLOOKUP(C282,'Capacidad Financiera'!$B$12:$X$3580,2,0))","v":0}]
[null,null,{"$f":"+'Capacidad Financiera'!B286","v":""},{"$f":"IF(ISERROR(VLOOKUP(C283,'Capacidad Financiera'!$B$12:$X$62720,2,0)),\"\",VLOOKUP(C283,'Capacidad Financiera'!$B$12:$X$3580,2,0))","v":0}]
[null,null,26,{"$f":"IF(ISERROR(VLOOKUP(C284,'Capacidad Financiera'!$B$12:$X$62720,2,0)),\"\",VLOOKUP(C284,'Capacidad Financiera'!$B$12:$X$3580,2,0))","v":"UNION TEMPORAL MACROVIAS"}]
[null,null,{"$f":"+'Capacidad Financiera'!B288","v":26.1},{"$f":"IF(ISERROR(VLOOKUP(C285,'Capacidad Financiera'!$B$12:$X$62720,2,0)),\"\",VLOOKUP(C285,'Capacidad Financiera'!$B$12:$X$3580,2,0))","v":"SIBEL INGENIERIA S.A.S."},0]
[null,null,{"$f":"+'Capacidad Financiera'!B289","v":26.200000000000003},{"$f":"IF(ISERROR(VLOOKUP(C286,'Capacidad Financiera'!$B$12:$X$62720,2,0)),\"\",VLOOKUP(C286,'Capacidad Financiera'!$B$12:$X$3580,2,0))","v":"MILTON RIVERA RINCON"},2127269299.9100001]
[null,null,{"$f":"+'Capacidad Financiera'!B290","v":26.300000000000004},{"$f":"IF(ISERROR(VLOOKUP(C287,'Capacidad Financiera'!$B$12:$X$62720,2,0)),\"\",VLOOKUP(C287,'Capacidad Financiera'!$B$12:$X$3580,2,0))","v":"YEBRAIL CADENA LOZANO"},0]
[null,null,{"$f":"+'Capacidad Financiera'!B291","v":""},{"$f":"IF(ISERROR(VLOOKUP(C288,'Capacidad Financiera'!$B$12:$X$62720,2,0)),\"\",VLOOKUP(C288,'Capacidad Financiera'!$B$12:$X$3580,2,0))","v":0}]
[null,null,{"$f":"+'Capacidad Financiera'!B292","v":""},{"$f":"IF(ISERROR(VLOOKUP(C289,'Capacidad Financiera'!$B$12:$X$62720,2,0)),\"\",VLOOKUP(C289,'Capacidad Financiera'!$B$12:$X$3580,2,0))","v":0}]
[null,null,{"$f":"+'Capacidad Financiera'!B293","v":""},{"$f":"IF(ISERROR(VLOOKUP(C290,'Capacidad Financiera'!$B$12:$X$62720,2,0)),\"\",VLOOKUP(C290,'Capacidad Financiera'!$B$12:$X$3580,2,0))","v":0}]
[null,null,{"$f":"+'Capacidad Financiera'!B294","v":""},{"$f":"IF(ISERROR(VLOOKUP(C291,'Capacidad Financiera'!$B$12:$X$62720,2,0)),\"\",VLOOKUP(C291,'Capacidad Financiera'!$B$12:$X$3580,2,0))","v":0}]
[null,null,{"$f":"+'Capacidad Financiera'!B295","v":""},{"$f":"IF(ISERROR(VLOOKUP(C292,'Capacidad Financiera'!$B$12:$X$62720,2,0)),\"\",VLOOKUP(C292,'Capacidad Financiera'!$B$12:$X$3580,2,0))","v":0}]
[null,null,{"$f":"+'Capacidad Financiera'!B296","v":""},{"$f":"IF(ISERROR(VLOOKUP(C293,'Capacidad Financiera'!$B$12:$X$62720,2,0)),\"\",VLOOKUP(C293,'Capacidad Financiera'!$B$12:$X$3580,2,0))","v":0}]
[null,null,{"$f":"+'Capacidad Financiera'!B297","v":""},{"$f":"IF(ISERROR(VLOOKUP(C294,'Capacidad Financiera'!$B$12:$X$62720,2,0)),\"\",VLOOKUP(C294,'Capacidad Financiera'!$B$12:$X$3580,2,0))","v":0}]
[null,null,27,{"$f":"IF(ISERROR(VLOOKUP(C295,'Capacidad Financiera'!$B$12:$X$62720,2,0)),\"\",VLOOKUP(C295,'Capacidad Financiera'!$B$12:$X$3580,2,0))","v":"CONSORCIO LOS PATIOS 2014"}]
[null,null,{"$f":"+'Capacidad Financiera'!B299","v":27.1},{"$f":"IF(ISERROR(VLOOKUP(C296,'Capacidad Financiera'!$B$12:$X$62720,2,0)),\"\",VLOOKUP(C296,'Capacidad Financiera'!$B$12:$X$3580,2,0))","v":"S Y M INGENIERIA S.A.S."},6907438123.6700001]
[null,null,{"$f":"+'Capacidad Financiera'!B300","v":27.200000000000003},{"$f":"IF(ISERROR(VLOOKUP(C297,'Capacidad Financiera'!$B$12:$X$62720,2,0)),\"\",VLOOKUP(C297,'Capacidad Financiera'!$B$12:$X$3580,2,0))","v":"MACIAS MORA Y CIA. S. EN C.S."},0]
[null,null,{"$f":"+'Capacidad Financiera'!B301","v":27.300000000000004},{"$f":"IF(ISERROR(VLOOKUP(C298,'Capacidad Financiera'!$B$12:$X$62720,2,0)),\"\",VLOOKUP(C298,'Capacidad Financiera'!$B$12:$X$3580,2,0))","v":"ESTEBAN MACIAS VARGAS"},0]
[null,null,{"$f":"+'Capacidad Financiera'!B302","v":""},{"$f":"IF(ISERROR(VLOOKUP(C299,'Capacidad Financiera'!$B$12:$X$62720,2,0)),\"\",VLOOKUP(C299,'Capacidad Financiera'!$B$12:$X$3580,2,0))","v":0}]
[null,null,{"$f":"+'Capacidad Financiera'!B303","v":""},{"$f":"IF(ISERROR(VLOOKUP(C300,'Capacidad Financiera'!$B$12:$X$62720,2,0)),\"\",VLOOKUP(C300,'Capacidad Financiera'!$B$12:$X$3580,2,0))","v":0}]
[null,null,{"$f":"+'Capacidad Financiera'!B304","v":""},{"$f":"IF(ISERROR(VLOOKUP(C301,'Capacidad Financiera'!$B$12:$X$62720,2,0)),\"\",VLOOKUP(C301,'Capacidad Financiera'!$B$12:$X$3580,2,0))","v":0}]
[null,null,{"$f":"+'Capacidad Financiera'!B305","v":""},{"$f":"IF(ISERROR(VLOOKUP(C302,'Capacidad Financiera'!$B$12:$X$62720,2,0)),\"\",VLOOKUP(C302,'Capacidad Financiera'!$B$12:$X$3580,2,0))","v":0}]
[null,null,{"$f":"+'Capacidad Financiera'!B306","v":""},{"$f":"IF(ISERROR(VLOOKUP(C303,'Capacidad Financiera'!$B$12:$X$62720,2,0)),\"\",VLOOKUP(C303,'Capacidad Financiera'!$B$12:$X$3580,2,0))","v":0}]
[null,null,{"$f":"+'Capacidad Financiera'!B307","v":""},{"$f":"IF(ISERROR(VLOOKUP(C304,'Capacidad Financiera'!$B$12:$X$62720,2,0)),\"\",VLOOKUP(C304,'Capacidad Financiera'!$B$12:$X$3580,2,0))","v":0}]
[null,null,{"$f":"+'Capacidad Financiera'!B308","v":""},{"$f":"IF(ISERROR(VLOOKUP(C305,'Capacidad Financiera'!$B$12:$X$62720,2,0)),\"\",VLOOKUP(C305,'Capacidad Financiera'!$B$12:$X$3580,2,0))","v":0}]
[null,null,28,{"$f":"IF(ISERROR(VLOOKUP(C306,'Capacidad Financiera'!$B$12:$X$62720,2,0)),\"\",VLOOKUP(C306,'Capacidad Financiera'!$B$12:$X$3580,2,0))","v":"SOFAN INGENIERIA S.A.S."}]
[null,null,{"$f":"+'Capacidad Financiera'!B310","v":28.1},{"$f":"IF(ISERROR(VLOOKUP(C307,'Capacidad Financiera'!$B$12:$X$62720,2,0)),\"\",VLOOKUP(C307,'Capacidad Financiera'!$B$12:$X$3580,2,0))","v":"SOFAN INGENIERIA S.A.S."},10212512769.959999]
[null,null,{"$f":"+'Capacidad Financiera'!B311","v":""},{"$f":"IF(ISERROR(VLOOKUP(C308,'Capacidad Financiera'!$B$12:$X$62720,2,0)),\"\",VLOOKUP(C308,'Capacidad Financiera'!$B$12:$X$3580,2,0))","v":0}]
[null,null,{"$f":"+'Capacidad Financiera'!B312","v":""},{"$f":"IF(ISERROR(VLOOKUP(C309,'Capacidad Financiera'!$B$12:$X$62720,2,0)),\"\",VLOOKUP(C309,'Capacidad Financiera'!$B$12:$X$3580,2,0))","v":0}]
[null,null,{"$f":"+'Capacidad Financiera'!B313","v":""},{"$f":"IF(ISERROR(VLOOKUP(C310,'Capacidad Financiera'!$B$12:$X$62720,2,0)),\"\",VLOOKUP(C310,'Capacidad Financiera'!$B$12:$X$3580,2,0))","v":0}]
[null,null,{"$f":"+'Capacidad Financiera'!B314","v":""},{"$f":"IF(ISERROR(VLOOKUP(C311,'Capacidad Financiera'!$B$12:$X$62720,2,0)),\"\",VLOOKUP(C311,'Capacidad Financiera'!$B$12:$X$3580,2,0))","v":0}]
[null,null,{"$f":"+'Capacidad Financiera'!B315","v":""},{"$f":"IF(ISERROR(VLOOKUP(C312,'Capacidad Financiera'!$B$12:$X$62720,2,0)),\"\",VLOOKUP(C312,'Capacidad Financiera'!$B$12:$X$3580,2,0))","v":0}]
[null,null,{"$f":"+'Capacidad Financiera'!B316","v":""},{"$f":"IF(ISERROR(VLOOKUP(C313,'Capacidad Financiera'!$B$12:$X$62720,2,0)),\"\",VLOOKUP(C313,'Capacidad Financiera'!$B$12:$X$3580,2,0))","v":0}]
[null,null,{"$f":"+'Capacidad Financiera'!B317","v":""},{"$f":"IF(ISERROR(VLOOKUP(C314,'Capacidad Financiera'!$B$12:$X$62720,2,0)),\"\",VLOOKUP(C314,'Capacidad Financiera'!$B$12:$X$3580,2,0))","v":0}]
[null,null,{"$f":"+'Capacidad Financiera'!B318","v":""},{"$f":"IF(ISERROR(VLOOKUP(C315,'Capacidad Financiera'!$B$12:$X$62720,2,0)),\"\",VLOOKUP(C315,'Capacidad Financiera'!$B$12:$X$3580,2,0))","v":0}]
[null,null,{"$f":"+'Capacidad Financiera'!B319","v":""},{"$f":"IF(ISERROR(VLOOKUP(C316,'Capacidad Financiera'!$B$12:$X$62720,2,0)),\"\",VLOOKUP(C316,'Capacidad Financiera'!$B$12:$X$3580,2,0))","v":0}]
[null,null,29,{"$f":"IF(ISERROR(VLOOKUP(C317,'Capacidad Financiera'!$B$12:$X$62720,2,0)),\"\",VLOOKUP(C317,'Capacidad Financiera'!$B$12:$X$3580,2,0))","v":"CARMELO JOAQUIN ROSALES AMELL"}]
[null,null,{"$f":"+'Capacidad Financiera'!B321","v":29.1},{"$f":"IF(ISERROR(VLOOKUP(C318,'Capacidad Financiera'!$B$12:$X$62720,2,0)),\"\",VLOOKUP(C318,'Capacidad Financiera'!$B$12:$X$3580,2,0))","v":"CARMELO JOAQUIN ROSALES AMELL"},3975307862.9000001]
[null,null,{"$f":"+'Capacidad Financiera'!B322","v":""},{"$f":"IF(ISERROR(VLOOKUP(C319,'Capacidad Financiera'!$B$12:$X$62720,2,0)),\"\",VLOOKUP(C319,'Capacidad Financiera'!$B$12:$X$3580,2,0))","v":0}]
[null,null,{"$f":"+'Capacidad Financiera'!B323","v":""},{"$f":"IF(ISERROR(VLOOKUP(C320,'Capacidad Financiera'!$B$12:$X$62720,2,0)),\"\",VLOOKUP(C320,'Capacidad Financiera'!$B$12:$X$3580,2,0))","v":0}]
[null,null,{"$f":"+'Capacidad Financiera'!B324","v":""},{"$f":"IF(ISERROR(VLOOKUP(C321,'Capacidad Financiera'!$B$12:$X$62720,2,0)),\"\",VLOOKUP(C321,'Capacidad Financiera'!$B$12:$X$3580,2,0))","v":0}]
[null,null,{"$f":"+'Capacidad Financiera'!B325","v":""},{"$f":"IF(ISERROR(VLOOKUP(C322,'Capacidad Financiera'!$B$12:$X$62720,2,0)),\"\",VLOOKUP(C322,'Capacidad Financiera'!$B$12:$X$3580,2,0))","v":0}]
[null,null,{"$f":"+'Capacidad Financiera'!B326","v":""},{"$f":"IF(ISERROR(VLOOKUP(C323,'Capacidad Financiera'!$B$12:$X$62720,2,0)),\"\",VLOOKUP(C323,'Capacidad Financiera'!$B$12:$X$3580,2,0))","v":0}]
[null,null,{"$f":"+'Capacidad Financiera'!B327","v":""},{"$f":"IF(ISERROR(VLOOKUP(C324,'Capacidad Financiera'!$B$12:$X$62720,2,0)),\"\",VLOOKUP(C324,'Capacidad Financiera'!$B$12:$X$3580,2,0))","v":0}]
[null,null,{"$f":"+'Capacidad Financiera'!B328","v":""},{"$f":"IF(ISERROR(VLOOKUP(C325,'Capacidad Financiera'!$B$12:$X$62720,2,0)),\"\",VLOOKUP(C325,'Capacidad Financiera'!$B$12:$X$3580,2,0))","v":0}]
[null,null,{"$f":"+'Capacidad Financiera'!B329","v":""},{"$f":"IF(ISERROR(VLOOKUP(C326,'Capacidad Financiera'!$B$12:$X$62720,2,0)),\"\",VLOOKUP(C326,'Capacidad Financiera'!$B$12:$X$3580,2,0))","v":0}]
[null,null,{"$f":"+'Capacidad Financiera'!B330","v":""},{"$f":"IF(ISERROR(VLOOKUP(C327,'Capacidad Financiera'!$B$12:$X$62720,2,0)),\"\",VLOOKUP(C327,'Capacidad Financiera'!$B$12:$X$3580,2,0))","v":0}]
[null,null,30,{"$f":"IF(ISERROR(VLOOKUP(C328,'Capacidad Financiera'!$B$12:$X$62720,2,0)),\"\",VLOOKUP(C328,'Capacidad Financiera'!$B$12:$X$3580,2,0))","v":"CONSORCIO MP - ML"}]
[null,null,{"$f":"+'Capacidad Financiera'!B332","v":30.1},{"$f":"IF(ISERROR(VLOOKUP(C329,'Capacidad Financiera'!$B$12:$X$62720,2,0)),\"\",VLOOKUP(C329,'Capacidad Financiera'!$B$12:$X$3580,2,0))","v":"CONSTRUCTORA MP S.A."},3492153805.29]
[null,null,{"$f":"+'Capacidad Financiera'!B333","v":30.200000000000003},{"$f":"IF(ISERROR(VLOOKUP(C330,'Capacidad Financiera'!$B$12:$X$62720,2,0)),\"\",VLOOKUP(C330,'Capacidad Financiera'!$B$12:$X$3580,2,0))","v":"ML INGENIEROS S.A."},0]
[null,null,{"$f":"+'Capacidad Financiera'!B334","v":""},{"$f":"IF(ISERROR(VLOOKUP(C331,'Capacidad Financiera'!$B$12:$X$62720,2,0)),\"\",VLOOKUP(C331,'Capacidad Financiera'!$B$12:$X$3580,2,0))","v":0}]
[null,null,{"$f":"+'Capacidad Financiera'!B335","v":""},{"$f":"IF(ISERROR(VLOOKUP(C332,'Capacidad Financiera'!$B$12:$X$62720,2,0)),\"\",VLOOKUP(C332,'Capacidad Financiera'!$B$12:$X$3580,2,0))","v":0}]
[null,null,{"$f":"+'Capacidad Financiera'!B336","v":""},{"$f":"IF(ISERROR(VLOOKUP(C333,'Capacidad Financiera'!$B$12:$X$62720,2,0)),\"\",VLOOKUP(C333,'Capacidad Financiera'!$B$12:$X$3580,2,0))","v":0}]
[null,null,{"$f":"+'Capacidad Financiera'!B337","v":""},{"$f":"IF(ISERROR(VLOOKUP(C334,'Capacidad Financiera'!$B$12:$X$62720,2,0)),\"\",VLOOKUP(C334,'Capacidad Financiera'!$B$12:$X$3580,2,0))","v":0}]
[null,null,{"$f":"+'Capacidad Financiera'!B338","v":""},{"$f":"IF(ISERROR(VLOOKUP(C335,'Capacidad Financiera'!$B$12:$X$62720,2,0)),\"\",VLOOKUP(C335,'Capacidad Financiera'!$B$12:$X$3580,2,0))","v":0}]
[null,null,{"$f":"+'Capacidad Financiera'!B339","v":""},{"$f":"IF(ISERROR(VLOOKUP(C336,'Capacidad Financiera'!$B$12:$X$62720,2,0)),\"\",VLOOKUP(C336,'Capacidad Financiera'!$B$12:$X$3580,2,0))","v":0}]
[null,null,{"$f":"+'Capacidad Financiera'!B340","v":""},{"$f":"IF(ISERROR(VLOOKUP(C337,'Capacidad Financiera'!$B$12:$X$62720,2,0)),\"\",VLOOKUP(C337,'Capacidad Financiera'!$B$12:$X$3580,2,0))","v":0}]
[null,null,{"$f":"+'Capacidad Financiera'!B341","v":""},{"$f":"IF(ISERROR(VLOOKUP(C338,'Capacidad Financiera'!$B$12:$X$62720,2,0)),\"\",VLOOKUP(C338,'Capacidad Financiera'!$B$12:$X$3580,2,0))","v":0}]
[null,null,31,{"$f":"IF(ISERROR(VLOOKUP(C339,'Capacidad Financiera'!$B$12:$X$62720,2,0)),\"\",VLOOKUP(C339,'Capacidad Financiera'!$B$12:$X$3580,2,0))","v":"LATINCO S.A."}]
[null,null,{"$f":"+'Capacidad Financiera'!B343","v":31.1},{"$f":"IF(ISERROR(VLOOKUP(C340,'Capacidad Financiera'!$B$12:$X$62720,2,0)),\"\",VLOOKUP(C340,'Capacidad Financiera'!$B$12:$X$3580,2,0))","v":"LATINCO S.A."},89623776473.339996]
[null,null,{"$f":"+'Capacidad Financiera'!B344","v":""},{"$f":"IF(ISERROR(VLOOKUP(C341,'Capacidad Financiera'!$B$12:$X$62720,2,0)),\"\",VLOOKUP(C341,'Capacidad Financiera'!$B$12:$X$3580,2,0))","v":0}]
[null,null,{"$f":"+'Capacidad Financiera'!B345","v":""},{"$f":"IF(ISERROR(VLOOKUP(C342,'Capacidad Financiera'!$B$12:$X$62720,2,0)),\"\",VLOOKUP(C342,'Capacidad Financiera'!$B$12:$X$3580,2,0))","v":0}]
[null,null,{"$f":"+'Capacidad Financiera'!B346","v":""},{"$f":"IF(ISERROR(VLOOKUP(C343,'Capacidad Financiera'!$B$12:$X$62720,2,0)),\"\",VLOOKUP(C343,'Capacidad Financiera'!$B$12:$X$3580,2,0))","v":0}]
[null,null,{"$f":"+'Capacidad Financiera'!B347","v":""},{"$f":"IF(ISERROR(VLOOKUP(C344,'Capacidad Financiera'!$B$12:$X$62720,2,0)),\"\",VLOOKUP(C344,'Capacidad Financiera'!$B$12:$X$3580,2,0))","v":0}]
[null,null,{"$f":"+'Capacidad Financiera'!B348","v":""},{"$f":"IF(ISERROR(VLOOKUP(C345,'Capacidad Financiera'!$B$12:$X$62720,2,0)),\"\",VLOOKUP(C345,'Capacidad Financiera'!$B$12:$X$3580,2,0))","v":0}]
[null,null,{"$f":"+'Capacidad Financiera'!B349","v":""},{"$f":"IF(ISERROR(VLOOKUP(C346,'Capacidad Financiera'!$B$12:$X$62720,2,0)),\"\",VLOOKUP(C346,'Capacidad Financiera'!$B$12:$X$3580,2,0))","v":0}]
[null,null,{"$f":"+'Capacidad Financiera'!B350","v":""},{"$f":"IF(ISERROR(VLOOKUP(C347,'Capacidad Financiera'!$B$12:$X$62720,2,0)),\"\",VLOOKUP(C347,'Capacidad Financiera'!$B$12:$X$3580,2,0))","v":0}]
[null,null,{"$f":"+'Capacidad Financiera'!B351","v":""},{"$f":"IF(ISERROR(VLOOKUP(C348,'Capacidad Financiera'!$B$12:$X$62720,2,0)),\"\",VLOOKUP(C348,'Capacidad Financiera'!$B$12:$X$3580,2,0))","v":0}]
[null,null,{"$f":"+'Capacidad Financiera'!B352","v":""},{"$f":"IF(ISERROR(VLOOKUP(C349,'Capacidad Financiera'!$B$12:$X$62720,2,0)),\"\",VLOOKUP(C349,'Capacidad Financiera'!$B$12:$X$3580,2,0))","v":0}]
[null,null,32,{"$f":"IF(ISERROR(VLOOKUP(C350,'Capacidad Financiera'!$B$12:$X$62720,2,0)),\"\",VLOOKUP(C350,'Capacidad Financiera'!$B$12:$X$3580,2,0))","v":"ICEIN S.A.S."}]
[null,null,{"$f":"+'Capacidad Financiera'!B354","v":32.1},{"$f":"IF(ISERROR(VLOOKUP(C351,'Capacidad Financiera'!$B$12:$X$62720,2,0)),\"\",VLOOKUP(C351,'Capacidad Financiera'!$B$12:$X$3580,2,0))","v":"ICEIN S.A.S."},49012030503.480003]
[null,null,{"$f":"+'Capacidad Financiera'!B355","v":""},{"$f":"IF(ISERROR(VLOOKUP(C352,'Capacidad Financiera'!$B$12:$X$62720,2,0)),\"\",VLOOKUP(C352,'Capacidad Financiera'!$B$12:$X$3580,2,0))","v":0}]
[null,null,{"$f":"+'Capacidad Financiera'!B356","v":""},{"$f":"IF(ISERROR(VLOOKUP(C353,'Capacidad Financiera'!$B$12:$X$62720,2,0)),\"\",VLOOKUP(C353,'Capacidad Financiera'!$B$12:$X$3580,2,0))","v":0}]
[null,null,{"$f":"+'Capacidad Financiera'!B357","v":""},{"$f":"IF(ISERROR(VLOOKUP(C354,'Capacidad Financiera'!$B$12:$X$62720,2,0)),\"\",VLOOKUP(C354,'Capacidad Financiera'!$B$12:$X$3580,2,0))","v":0}]
[null,null,{"$f":"+'Capacidad Financiera'!B358","v":""},{"$f":"IF(ISERROR(VLOOKUP(C355,'Capacidad Financiera'!$B$12:$X$62720,2,0)),\"\",VLOOKUP(C355,'Capacidad Financiera'!$B$12:$X$3580,2,0))","v":0}]
[null,null,{"$f":"+'Capacidad Financiera'!B359","v":""},{"$f":"IF(ISERROR(VLOOKUP(C356,'Capacidad Financiera'!$B$12:$X$62720,2,0)),\"\",VLOOKUP(C356,'Capacidad Financiera'!$B$12:$X$3580,2,0))","v":0}]
[null,null,{"$f":"+'Capacidad Financiera'!B360","v":""},{"$f":"IF(ISERROR(VLOOKUP(C357,'Capacidad Financiera'!$B$12:$X$62720,2,0)),\"\",VLOOKUP(C357,'Capacidad Financiera'!$B$12:$X$3580,2,0))","v":0}]
[null,null,{"$f":"+'Capacidad Financiera'!B361","v":""},{"$f":"IF(ISERROR(VLOOKUP(C358,'Capacidad Financiera'!$B$12:$X$62720,2,0)),\"\",VLOOKUP(C358,'Capacidad Financiera'!$B$12:$X$3580,2,0))","v":0}]
[null,null,{"$f":"+'Capacidad Financiera'!B362","v":""},{"$f":"IF(ISERROR(VLOOKUP(C359,'Capacidad Financiera'!$B$12:$X$62720,2,0)),\"\",VLOOKUP(C359,'Capacidad Financiera'!$B$12:$X$3580,2,0))","v":0}]
[null,null,{"$f":"+'Capacidad Financiera'!B363","v":""},{"$f":"IF(ISERROR(VLOOKUP(C360,'Capacidad Financiera'!$B$12:$X$62720,2,0)),\"\",VLOOKUP(C360,'Capacidad Financiera'!$B$12:$X$3580,2,0))","v":0}]
[null,null,33,{"$f":"IF(ISERROR(VLOOKUP(C361,'Capacidad Financiera'!$B$12:$X$62720,2,0)),\"\",VLOOKUP(C361,'Capacidad Financiera'!$B$12:$X$3580,2,0))","v":"CONSTRUCCIONES E INVERSIONES BETA S.A.S."}]
["req dias neg",null,{"$f":"+'Capacidad Financiera'!B365","v":33.1},{"$f":"IF(ISERROR(VLOOKUP(C362,'Capacidad Financiera'!$B$12:$X$62720,2,0)),\"\",VLOOKUP(C362,'Capacidad Financiera'!$B$12:$X$3580,2,0))","v":"CONSTRUCCIONES E INVERSIONES BETA S.A.S."}]
[null,null,{"$f":"+'Capacidad Financiera'!B366","v":""},{"$f":"IF(ISERROR(VLOOKUP(C363,'Capacidad Financiera'!$B$12:$X$62720,2,0)),\"\",VLOOKUP(C363,'Capacidad Financiera'!$B$12:$X$3580,2,0))","v":0}]
[null,null,{"$f":"+'Capacidad Financiera'!B367","v":""},{"$f":"IF(ISERROR(VLOOKUP(C364,'Capacidad Financiera'!$B$12:$X$62720,2,0)),\"\",VLOOKUP(C364,'Capacidad Financiera'!$B$12:$X$3580,2,0))","v":0}]
[null,null,{"$f":"+'Capacidad Financiera'!B368","v":""},{"$f":"IF(ISERROR(VLOOKUP(C365,'Capacidad Financiera'!$B$12:$X$62720,2,0)),\"\",VLOOKUP(C365,'Capacidad Financiera'!$B$12:$X$3580,2,0))","v":0}]
[null,null,{"$f":"+'Capacidad Financiera'!B369","v":""},{"$f":"IF(ISERROR(VLOOKUP(C366,'Capacidad Financiera'!$B$12:$X$62720,2,0)),\"\",VLOOKUP(C366,'Capacidad Financiera'!$B$12:$X$3580,2,0))","v":0}]
[null,null,{"$f":"+'Capacidad Financiera'!B370","v":""},{"$f":"IF(ISERROR(VLOOKUP(C367,'Capacidad Financiera'!$B$12:$X$62720,2,0)),\"\",VLOOKUP(C367,'Capacidad Financiera'!$B$12:$X$3580,2,0))","v":0}]
[null,null,{"$f":"+'Capacidad Financiera'!B371","v":""},{"$f":"IF(ISERROR(VLOOKUP(C368,'Capacidad Financiera'!$B$12:$X$62720,2,0)),\"\",VLOOKUP(C368,'Capacidad Financiera'!$B$12:$X$3580,2,0))","v":0}]
[null,null,{"$f":"+'Capacidad Financiera'!B372","v":""},{"$f":"IF(ISERROR(VLOOKUP(C369,'Capacidad Financiera'!$B$12:$X$62720,2,0)),\"\",VLOOKUP(C369,'Capacidad Financiera'!$B$12:$X$3580,2,0))","v":0}]
[null,null,{"$f":"+'Capacidad Financiera'!B373","v":""},{"$f":"IF(ISERROR(VLOOKUP(C370,'Capacidad Financiera'!$B$12:$X$62720,2,0)),\"\",VLOOKUP(C370,'Capacidad Financiera'!$B$12:$X$3580,2,0))","v":0}]
[null,null,{"$f":"+'Capacidad Financiera'!B374","v":""},{"$f":"IF(ISERROR(VLOOKUP(C371,'Capacidad Financiera'!$B$12:$X$62720,2,0)),\"\",VLOOKUP(C371,'Capacidad Financiera'!$B$12:$X$3580,2,0))","v":0}]
[null,null,34,{"$f":"IF(ISERROR(VLOOKUP(C372,'Capacidad Financiera'!$B$12:$X$62720,2,0)),\"\",VLOOKUP(C372,'Capacidad Financiera'!$B$12:$X$3580,2,0))","v":"CI GRODCO S EN CA INGENIEROS CIVILES"}]
["req dias neg",null,{"$f":"+'Capacidad Financiera'!B376","v":34.1},{"$f":"IF(ISERROR(VLOOKUP(C373,'Capacidad Financiera'!$B$12:$X$62720,2,0)),\"\",VLOOKUP(C373,'Capacidad Financiera'!$B$12:$X$3580,2,0))","v":"CI GRODCO S EN CA INGENIEROS CIVILES"}]
[null,null,{"$f":"+'Capacidad Financiera'!B377","v":""},{"$f":"IF(ISERROR(VLOOKUP(C374,'Capacidad Financiera'!$B$12:$X$62720,2,0)),\"\",VLOOKUP(C374,'Capacidad Financiera'!$B$12:$X$3580,2,0))","v":0}]
[null,null,{"$f":"+'Capacidad Financiera'!B378","v":""},{"$f":"IF(ISERROR(VLOOKUP(C375,'Capacidad Financiera'!$B$12:$X$62720,2,0)),\"\",VLOOKUP(C375,'Capacidad Financiera'!$B$12:$X$3580,2,0))","v":0}]
[null,null,{"$f":"+'Capacidad Financiera'!B379","v":""},{"$f":"IF(ISERROR(VLOOKUP(C376,'Capacidad Financiera'!$B$12:$X$62720,2,0)),\"\",VLOOKUP(C376,'Capacidad Financiera'!$B$12:$X$3580,2,0))","v":0}]
[null,null,{"$f":"+'Capacidad Financiera'!B380","v":""},{"$f":"IF(ISERROR(VLOOKUP(C377,'Capacidad Financiera'!$B$12:$X$62720,2,0)),\"\",VLOOKUP(C377,'Capacidad Financiera'!$B$12:$X$3580,2,0))","v":0}]
[null,null,{"$f":"+'Capacidad Financiera'!B381","v":""},{"$f":"IF(ISERROR(VLOOKUP(C378,'Capacidad Financiera'!$B$12:$X$62720,2,0)),\"\",VLOOKUP(C378,'Capacidad Financiera'!$B$12:$X$3580,2,0))","v":0}]
[null,null,{"$f":"+'Capacidad Financiera'!B382","v":""},{"$f":"IF(ISERROR(VLOOKUP(C379,'Capacidad Financiera'!$B$12:$X$62720,2,0)),\"\",VLOOKUP(C379,'Capacidad Financiera'!$B$12:$X$3580,2,0))","v":0}]
[null,null,{"$f":"+'Capacidad Financiera'!B383","v":""},{"$f":"IF(ISERROR(VLOOKUP(C380,'Capacidad Financiera'!$B$12:$X$62720,2,0)),\"\",VLOOKUP(C380,'Capacidad Financiera'!$B$12:$X$3580,2,0))","v":0}]
[null,null,{"$f":"+'Capacidad Financiera'!B384","v":""},{"$f":"IF(ISERROR(VLOOKUP(C381,'Capacidad Financiera'!$B$12:$X$62720,2,0)),\"\",VLOOKUP(C381,'Capacidad Financiera'!$B$12:$X$3580,2,0))","v":0}]
[null,null,{"$f":"+'Capacidad Financiera'!B385","v":""},{"$f":"IF(ISERROR(VLOOKUP(C382,'Capacidad Financiera'!$B$12:$X$62720,2,0)),\"\",VLOOKUP(C382,'Capacidad Financiera'!$B$12:$X$3580,2,0))","v":0}]
[null,null,35,{"$f":"IF(ISERROR(VLOOKUP(C383,'Capacidad Financiera'!$B$12:$X$62720,2,0)),\"\",VLOOKUP(C383,'Capacidad Financiera'!$B$12:$X$3580,2,0))","v":"MUVEK S.A.S"}]
[null,null,{"$f":"+'Capacidad Financiera'!B387","v":35.1},{"$f":"IF(ISERROR(VLOOKUP(C384,'Capacidad Financiera'!$B$12:$X$62720,2,0)),\"\",VLOOKUP(C384,'Capacidad Financiera'!$B$12:$X$3580,2,0))","v":"MUVEK S.A.S"},0]
[null,null,{"$f":"+'Capacidad Financiera'!B388","v":""},{"$f":"IF(ISERROR(VLOOKUP(C385,'Capacidad Financiera'!$B$12:$X$62720,2,0)),\"\",VLOOKUP(C385,'Capacidad Financiera'!$B$12:$X$3580,2,0))","v":0}]
[null,null,{"$f":"+'Capacidad Financiera'!B389","v":""},{"$f":"IF(ISERROR(VLOOKUP(C386,'Capacidad Financiera'!$B$12:$X$62720,2,0)),\"\",VLOOKUP(C386,'Capacidad Financiera'!$B$12:$X$3580,2,0))","v":0}]
[null,null,{"$f":"+'Capacidad Financiera'!B390","v":""},{"$f":"IF(ISERROR(VLOOKUP(C387,'Capacidad Financiera'!$B$12:$X$62720,2,0)),\"\",VLOOKUP(C387,'Capacidad Financiera'!$B$12:$X$3580,2,0))","v":0}]
[null,null,{"$f":"+'Capacidad Financiera'!B391","v":""},{"$f":"IF(ISERROR(VLOOKUP(C388,'Capacidad Financiera'!$B$12:$X$62720,2,0)),\"\",VLOOKUP(C388,'Capacidad Financiera'!$B$12:$X$3580,2,0))","v":0}]
[null,null,{"$f":"+'Capacidad Financiera'!B392","v":""},{"$f":"IF(ISERROR(VLOOKUP(C389,'Capacidad Financiera'!$B$12:$X$62720,2,0)),\"\",VLOOKUP(C389,'Capacidad Financiera'!$B$12:$X$3580,2,0))","v":0}]
[null,null,{"$f":"+'Capacidad Financiera'!B393","v":""},{"$f":"IF(ISERROR(VLOOKUP(C390,'Capacidad Financiera'!$B$12:$X$62720,2,0)),\"\",VLOOKUP(C390,'Capacidad Financiera'!$B$12:$X$3580,2,0))","v":0}]
[null,null,{"$f":"+'Capacidad Financiera'!B394","v":""},{"$f":"IF(ISERROR(VLOOKUP(C391,'Capacidad Financiera'!$B$12:$X$62720,2,0)),\"\",VLOOKUP(C391,'Capacidad Financiera'!$B$12:$X$3580,2,0))","v":0}]
[null,null,{"$f":"+'Capacidad Financiera'!B395","v":""},{"$f":"IF(ISERROR(VLOOKUP(C392,'Capacidad Financiera'!$B$12:$X$62720,2,0)),\"\",VLOOKUP(C392,'Capacidad Financiera'!$B$12:$X$3580,2,0))","v":0}]
[null,null,{"$f":"+'Capacidad Financiera'!B396","v":""},{"$f":"IF(ISERROR(VLOOKUP(C393,'Capacidad Financiera'!$B$12:$X$62720,2,0)),\"\",VLOOKUP(C393,'Capacidad Financiera'!$B$12:$X$3580,2,0))","v":0}]
[null,null,36,{"$f":"IF(ISERROR(VLOOKUP(C394,'Capacidad Financiera'!$B$12:$X$62720,2,0)),\"\",VLOOKUP(C394,'Capacidad Financiera'!$B$12:$X$3580,2,0))","v":"CONSORCIO SUCRE VIAL"}]
[null,null,{"$f":"+'Capacidad Financiera'!B398","v":36.1},{"$f":"IF(ISERROR(VLOOKUP(C395,'Capacidad Financiera'!$B$12:$X$62720,2,0)),\"\",VLOOKUP(C395,'Capacidad Financiera'!$B$12:$X$3580,2,0))","v":"CROMAS S.A."},17815341863.830002]
["req dias neg",null,{"$f":"+'Capacidad Financiera'!B399","v":36.200000000000003},{"$f":"IF(ISERROR(VLOOKUP(C396,'Capacidad Financiera'!$B$12:$X$62720,2,0)),\"\",VLOOKUP(C396,'Capacidad Financiera'!$B$12:$X$3580,2,0))","v":"OSCAR ANDRADE LARA"}]
[null,null,{"$f":"+'Capacidad Financiera'!B400","v":""},{"$f":"IF(ISERROR(VLOOKUP(C397,'Capacidad Financiera'!$B$12:$X$62720,2,0)),\"\",VLOOKUP(C397,'Capacidad Financiera'!$B$12:$X$3580,2,0))","v":0}]
[null,null,{"$f":"+'Capacidad Financiera'!B401","v":""},{"$f":"IF(ISERROR(VLOOKUP(C398,'Capacidad Financiera'!$B$12:$X$62720,2,0)),\"\",VLOOKUP(C398,'Capacidad Financiera'!$B$12:$X$3580,2,0))","v":0}]
[null,null,{"$f":"+'Capacidad Financiera'!B402","v":""},{"$f":"IF(ISERROR(VLOOKUP(C399,'Capacidad Financiera'!$B$12:$X$62720,2,0)),\"\",VLOOKUP(C399,'Capacidad Financiera'!$B$12:$X$3580,2,0))","v":0}]
[null,null,{"$f":"+'Capacidad Financiera'!B403","v":""},{"$f":"IF(ISERROR(VLOOKUP(C400,'Capacidad Financiera'!$B$12:$X$62720,2,0)),\"\",VLOOKUP(C400,'Capacidad Financiera'!$B$12:$X$3580,2,0))","v":0}]
[null,null,{"$f":"+'Capacidad Financiera'!B404","v":""},{"$f":"IF(ISERROR(VLOOKUP(C401,'Capacidad Financiera'!$B$12:$X$62720,2,0)),\"\",VLOOKUP(C401,'Capacidad Financiera'!$B$12:$X$3580,2,0))","v":0}]
[null,null,{"$f":"+'Capacidad Financiera'!B405","v":""},{"$f":"IF(ISERROR(VLOOKUP(C402,'Capacidad Financiera'!$B$12:$X$62720,2,0)),\"\",VLOOKUP(C402,'Capacidad Financiera'!$B$12:$X$3580,2,0))","v":0}]
[null,null,{"$f":"+'Capacidad Financiera'!B406","v":""},{"$f":"IF(ISERROR(VLOOKUP(C403,'Capacidad Financiera'!$B$12:$X$62720,2,0)),\"\",VLOOKUP(C403,'Capacidad Financiera'!$B$12:$X$3580,2,0))","v":0}]
[null,null,{"$f":"+'Capacidad Financiera'!B407","v":""},{"$f":"IF(ISERROR(VLOOKUP(C404,'Capacidad Financiera'!$B$12:$X$62720,2,0)),\"\",VLOOKUP(C404,'Capacidad Financiera'!$B$12:$X$3580,2,0))","v":0}]
[null,null,37,{"$f":"IF(ISERROR(VLOOKUP(C405,'Capacidad Financiera'!$B$12:$X$62720,2,0)),\"\",VLOOKUP(C405,'Capacidad Financiera'!$B$12:$X$3580,2,0))","v":"CONSORCIO SALITRE "}]
[null,null,{"$f":"+'Capacidad Financiera'!B409","v":37.1},{"$f":"IF(ISERROR(VLOOKUP(C406,'Capacidad Financiera'!$B$12:$X$62720,2,0)),\"\",VLOOKUP(C406,'Capacidad Financiera'!$B$12:$X$3580,2,0))","v":"CONSTRUCTORA CRD S.A."},0]
[null,null,{"$f":"+'Capacidad Financiera'!B410","v":37.200000000000003},{"$f":"IF(ISERROR(VLOOKUP(C407,'Capacidad Financiera'!$B$12:$X$62720,2,0)),\"\",VLOOKUP(C407,'Capacidad Financiera'!$B$12:$X$3580,2,0))","v":"CONSTRUCTORA S&L S.A.S."},0]
[null,null,{"$f":"+'Capacidad Financiera'!B411","v":""},{"$f":"IF(ISERROR(VLOOKUP(C408,'Capacidad Financiera'!$B$12:$X$62720,2,0)),\"\",VLOOKUP(C408,'Capacidad Financiera'!$B$12:$X$3580,2,0))","v":0}]
[null,null,{"$f":"+'Capacidad Financiera'!B412","v":""},{"$f":"IF(ISERROR(VLOOKUP(C409,'Capacidad Financiera'!$B$12:$X$62720,2,0)),\"\",VLOOKUP(C409,'Capacidad Financiera'!$B$12:$X$3580,2,0))","v":0}]
[null,null,{"$f":"+'Capacidad Financiera'!B413","v":""},{"$f":"IF(ISERROR(VLOOKUP(C410,'Capacidad Financiera'!$B$12:$X$62720,2,0)),\"\",VLOOKUP(C410,'Capacidad Financiera'!$B$12:$X$3580,2,0))","v":0}]
[null,null,{"$f":"+'Capacidad Financiera'!B414","v":""},{"$f":"IF(ISERROR(VLOOKUP(C411,'Capacidad Financiera'!$B$12:$X$62720,2,0)),\"\",VLOOKUP(C411,'Capacidad Financiera'!$B$12:$X$3580,2,0))","v":0}]
[null,null,{"$f":"+'Capacidad Financiera'!B415","v":""},{"$f":"IF(ISERROR(VLOOKUP(C412,'Capacidad Financiera'!$B$12:$X$62720,2,0)),\"\",VLOOKUP(C412,'Capacidad Financiera'!$B$12:$X$3580,2,0))","v":0}]
[null,null,{"$f":"+'Capacidad Financiera'!B416","v":""},{"$f":"IF(ISERROR(VLOOKUP(C413,'Capacidad Financiera'!$B$12:$X$62720,2,0)),\"\",VLOOKUP(C413,'Capacidad Financiera'!$B$12:$X$3580,2,0))","v":0}]
[null,null,{"$f":"+'Capacidad Financiera'!B417","v":""},{"$f":"IF(ISERROR(VLOOKUP(C414,'Capacidad Financiera'!$B$12:$X$62720,2,0)),\"\",VLOOKUP(C414,'Capacidad Financiera'!$B$12:$X$3580,2,0))","v":0}]
[null,null,{"$f":"+'Capacidad Financiera'!B418","v":""},{"$f":"IF(ISERROR(VLOOKUP(C415,'Capacidad Financiera'!$B$12:$X$62720,2,0)),\"\",VLOOKUP(C415,'Capacidad Financiera'!$B$12:$X$3580,2,0))","v":0}]
[null,null,38,{"$f":"IF(ISERROR(VLOOKUP(C416,'Capacidad Financiera'!$B$12:$X$62720,2,0)),\"\",VLOOKUP(C416,'Capacidad Financiera'!$B$12:$X$3580,2,0))","v":"CONSORCIO PATIOS 444"}]
["req dias neg",null,{"$f":"+'Capacidad Financiera'!B420","v":38.1},{"$f":"IF(ISERROR(VLOOKUP(C417,'Capacidad Financiera'!$B$12:$X$62720,2,0)),\"\",VLOOKUP(C417,'Capacidad Financiera'!$B$12:$X$3580,2,0))","v":"CONSTRUSOCIAL S.A.S."}]
[null,null,{"$f":"+'Capacidad Financiera'!B421","v":38.200000000000003},{"$f":"IF(ISERROR(VLOOKUP(C418,'Capacidad Financiera'!$B$12:$X$62720,2,0)),\"\",VLOOKUP(C418,'Capacidad Financiera'!$B$12:$X$3580,2,0))","v":"CORPOANDINA S.A.S."},0]
[null,null,{"$f":"+'Capacidad Financiera'!B422","v":38.300000000000004},{"$f":"IF(ISERROR(VLOOKUP(C419,'Capacidad Financiera'!$B$12:$X$62720,2,0)),\"\",VLOOKUP(C419,'Capacidad Financiera'!$B$12:$X$3580,2,0))","v":"R&U CONSTRUCTORES S.A.S."},1049446634.59]
[null,null,{"$f":"+'Capacidad Financiera'!B423","v":""},{"$f":"IF(ISERROR(VLOOKUP(C420,'Capacidad Financiera'!$B$12:$X$62720,2,0)),\"\",VLOOKUP(C420,'Capacidad Financiera'!$B$12:$X$3580,2,0))","v":0}]
[null,null,{"$f":"+'Capacidad Financiera'!B424","v":""},{"$f":"IF(ISERROR(VLOOKUP(C421,'Capacidad Financiera'!$B$12:$X$62720,2,0)),\"\",VLOOKUP(C421,'Capacidad Financiera'!$B$12:$X$3580,2,0))","v":0}]
[null,null,{"$f":"+'Capacidad Financiera'!B425","v":""},{"$f":"IF(ISERROR(VLOOKUP(C422,'Capacidad Financiera'!$B$12:$X$62720,2,0)),\"\",VLOOKUP(C422,'Capacidad Financiera'!$B$12:$X$3580,2,0))","v":0}]
[null,null,{"$f":"+'Capacidad Financiera'!B426","v":""},{"$f":"IF(ISERROR(VLOOKUP(C423,'Capacidad Financiera'!$B$12:$X$62720,2,0)),\"\",VLOOKUP(C423,'Capacidad Financiera'!$B$12:$X$3580,2,0))","v":0}]
[null,null,{"$f":"+'Capacidad Financiera'!B427","v":""},{"$f":"IF(ISERROR(VLOOKUP(C424,'Capacidad Financiera'!$B$12:$X$62720,2,0)),\"\",VLOOKUP(C424,'Capacidad Financiera'!$B$12:$X$3580,2,0))","v":0}]
[null,null,{"$f":"+'Capacidad Financiera'!B428","v":""},{"$f":"IF(ISERROR(VLOOKUP(C425,'Capacidad Financiera'!$B$12:$X$62720,2,0)),\"\",VLOOKUP(C425,'Capacidad Financiera'!$B$12:$X$3580,2,0))","v":0}]
[null,null,{"$f":"+'Capacidad Financiera'!B429","v":""},{"$f":"IF(ISERROR(VLOOKUP(C426,'Capacidad Financiera'!$B$12:$X$62720,2,0)),\"\",VLOOKUP(C426,'Capacidad Financiera'!$B$12:$X$3580,2,0))","v":0}]
[null,null,39,{"$f":"IF(ISERROR(VLOOKUP(C427,'Capacidad Financiera'!$B$12:$X$62720,2,0)),\"\",VLOOKUP(C427,'Capacidad Financiera'!$B$12:$X$3580,2,0))","v":"VIAS S.A."}]
["req dias neg",null,{"$f":"+'Capacidad Financiera'!B431","v":39.1},{"$f":"IF(ISERROR(VLOOKUP(C428,'Capacidad Financiera'!$B$12:$X$62720,2,0)),\"\",VLOOKUP(C428,'Capacidad Financiera'!$B$12:$X$3580,2,0))","v":"VIAS S.A."}]
[null,null,{"$f":"+'Capacidad Financiera'!B432","v":""},{"$f":"IF(ISERROR(VLOOKUP(C429,'Capacidad Financiera'!$B$12:$X$62720,2,0)),\"\",VLOOKUP(C429,'Capacidad Financiera'!$B$12:$X$3580,2,0))","v":0}]
[null,null,{"$f":"+'Capacidad Financiera'!B433","v":""},{"$f":"IF(ISERROR(VLOOKUP(C430,'Capacidad Financiera'!$B$12:$X$62720,2,0)),\"\",VLOOKUP(C430,'Capacidad Financiera'!$B$12:$X$3580,2,0))","v":0}]
[null,null,{"$f":"+'Capacidad Financiera'!B434","v":""},{"$f":"IF(ISERROR(VLOOKUP(C431,'Capacidad Financiera'!$B$12:$X$62720,2,0)),\"\",VLOOKUP(C431,'Capacidad Financiera'!$B$12:$X$3580,2,0))","v":0}]
[null,null,{"$f":"+'Capacidad Financiera'!B435","v":""},{"$f":"IF(ISERROR(VLOOKUP(C432,'Capacidad Financiera'!$B$12:$X$62720,2,0)),\"\",VLOOKUP(C432,'Capacidad Financiera'!$B$12:$X$3580,2,0))","v":0}]
[null,null,{"$f":"+'Capacidad Financiera'!B436","v":""},{"$f":"IF(ISERROR(VLOOKUP(C433,'Capacidad Financiera'!$B$12:$X$62720,2,0)),\"\",VLOOKUP(C433,'Capacidad Financiera'!$B$12:$X$3580,2,0))","v":0}]
[null,null,{"$f":"+'Capacidad Financiera'!B437","v":""},{"$f":"IF(ISERROR(VLOOKUP(C434,'Capacidad Financiera'!$B$12:$X$62720,2,0)),\"\",VLOOKUP(C434,'Capacidad Financiera'!$B$12:$X$3580,2,0))","v":0}]
[null,null,{"$f":"+'Capacidad Financiera'!B438","v":""},{"$f":"IF(ISERROR(VLOOKUP(C435,'Capacidad Financiera'!$B$12:$X$62720,2,0)),\"\",VLOOKUP(C435,'Capacidad Financiera'!$B$12:$X$3580,2,0))","v":0}]
[null,null,{"$f":"+'Capacidad Financiera'!B439","v":""},{"$f":"IF(ISERROR(VLOOKUP(C436,'Capacidad Financiera'!$B$12:$X$62720,2,0)),\"\",VLOOKUP(C436,'Capacidad Financiera'!$B$12:$X$3580,2,0))","v":0}]
[null,null,{"$f":"+'Capacidad Financiera'!B440","v":""},{"$f":"IF(ISERROR(VLOOKUP(C437,'Capacidad Financiera'!$B$12:$X$62720,2,0)),\"\",VLOOKUP(C437,'Capacidad Financiera'!$B$12:$X$3580,2,0))","v":0}]
[null,null,40,{"$f":"IF(ISERROR(VLOOKUP(C438,'Capacidad Financiera'!$B$12:$X$62720,2,0)),\"\",VLOOKUP(C438,'Capacidad Financiera'!$B$12:$X$3580,2,0))","v":"CONSTRUCCIONES Y TRACTORES S.A."}]
[null,null,{"$f":"+'Capacidad Financiera'!B442","v":40.1},{"$f":"IF(ISERROR(VLOOKUP(C439,'Capacidad Financiera'!$B$12:$X$62720,2,0)),\"\",VLOOKUP(C439,'Capacidad Financiera'!$B$12:$X$3580,2,0))","v":"CONSTRUCCIONES Y TRACTORES S.A."},8390547230.1000004]
[null,null,{"$f":"+'Capacidad Financiera'!B443","v":""},{"$f":"IF(ISERROR(VLOOKUP(C440,'Capacidad Financiera'!$B$12:$X$62720,2,0)),\"\",VLOOKUP(C440,'Capacidad Financiera'!$B$12:$X$3580,2,0))","v":0}]
[null,null,{"$f":"+'Capacidad Financiera'!B444","v":""},{"$f":"IF(ISERROR(VLOOKUP(C441,'Capacidad Financiera'!$B$12:$X$62720,2,0)),\"\",VLOOKUP(C441,'Capacidad Financiera'!$B$12:$X$3580,2,0))","v":0}]
[null,null,{"$f":"+'Capacidad Financiera'!B445","v":""},{"$f":"IF(ISERROR(VLOOKUP(C442,'Capacidad Financiera'!$B$12:$X$62720,2,0)),\"\",VLOOKUP(C442,'Capacidad Financiera'!$B$12:$X$3580,2,0))","v":0}]
[null,null,{"$f":"+'Capacidad Financiera'!B446","v":""},{"$f":"IF(ISERROR(VLOOKUP(C443,'Capacidad Financiera'!$B$12:$X$62720,2,0)),\"\",VLOOKUP(C443,'Capacidad Financiera'!$B$12:$X$3580,2,0))","v":0}]
[null,null,{"$f":"+'Capacidad Financiera'!B447","v":""},{"$f":"IF(ISERROR(VLOOKUP(C444,'Capacidad Financiera'!$B$12:$X$62720,2,0)),\"\",VLOOKUP(C444,'Capacidad Financiera'!$B$12:$X$3580,2,0))","v":0}]
[null,null,{"$f":"+'Capacidad Financiera'!B448","v":""},{"$f":"IF(ISERROR(VLOOKUP(C445,'Capacidad Financiera'!$B$12:$X$62720,2,0)),\"\",VLOOKUP(C445,'Capacidad Financiera'!$B$12:$X$3580,2,0))","v":0}]
[null,null,{"$f":"+'Capacidad Financiera'!B449","v":""},{"$f":"IF(ISERROR(VLOOKUP(C446,'Capacidad Financiera'!$B$12:$X$62720,2,0)),\"\",VLOOKUP(C446,'Capacidad Financiera'!$B$12:$X$3580,2,0))","v":0}]
[null,null,{"$f":"+'Capacidad Financiera'!B450","v":""},{"$f":"IF(ISERROR(VLOOKUP(C447,'Capacidad Financiera'!$B$12:$X$62720,2,0)),\"\",VLOOKUP(C447,'Capacidad Financiera'!$B$12:$X$3580,2,0))","v":0}]
[null,null,{"$f":"+'Capacidad Financiera'!B451","v":""},{"$f":"IF(ISERROR(VLOOKUP(C448,'Capacidad Financiera'!$B$12:$X$62720,2,0)),\"\",VLOOKUP(C448,'Capacidad Financiera'!$B$12:$X$3580,2,0))","v":0}]
[null,null,41,{"$f":"IF(ISERROR(VLOOKUP(C449,'Capacidad Financiera'!$B$12:$X$62720,2,0)),\"\",VLOOKUP(C449,'Capacidad Financiera'!$B$12:$X$3580,2,0))","v":"RICARDO ORTIGOZA GONZALEZ"}]
["req dias neg",null,{"$f":"+'Capacidad Financiera'!B453","v":41.1},{"$f":"IF(ISERROR(VLOOKUP(C450,'Capacidad Financiera'!$B$12:$X$62720,2,0)),\"\",VLOOKUP(C450,'Capacidad Financiera'!$B$12:$X$3580,2,0))","v":"RICARDO ORTIGOZA GONZALEZ"}]
[null,null,{"$f":"+'Capacidad Financiera'!B454","v":""},{"$f":"IF(ISERROR(VLOOKUP(C451,'Capacidad Financiera'!$B$12:$X$62720,2,0)),\"\",VLOOKUP(C451,'Capacidad Financiera'!$B$12:$X$3580,2,0))","v":0}]
[null,null,{"$f":"+'Capacidad Financiera'!B455","v":""},{"$f":"IF(ISERROR(VLOOKUP(C452,'Capacidad Financiera'!$B$12:$X$62720,2,0)),\"\",VLOOKUP(C452,'Capacidad Financiera'!$B$12:$X$3580,2,0))","v":0}]
[null,null,{"$f":"+'Capacidad Financiera'!B456","v":""},{"$f":"IF(ISERROR(VLOOKUP(C453,'Capacidad Financiera'!$B$12:$X$62720,2,0)),\"\",VLOOKUP(C453,'Capacidad Financiera'!$B$12:$X$3580,2,0))","v":0}]
[null,null,{"$f":"+'Capacidad Financiera'!B457","v":""},{"$f":"IF(ISERROR(VLOOKUP(C454,'Capacidad Financiera'!$B$12:$X$62720,2,0)),\"\",VLOOKUP(C454,'Capacidad Financiera'!$B$12:$X$3580,2,0))","v":0}]
[null,null,{"$f":"+'Capacidad Financiera'!B458","v":""},{"$f":"IF(ISERROR(VLOOKUP(C455,'Capacidad Financiera'!$B$12:$X$62720,2,0)),\"\",VLOOKUP(C455,'Capacidad Financiera'!$B$12:$X$3580,2,0))","v":0}]
[null,null,{"$f":"+'Capacidad Financiera'!B459","v":""},{"$f":"IF(ISERROR(VLOOKUP(C456,'Capacidad Financiera'!$B$12:$X$62720,2,0)),\"\",VLOOKUP(C456,'Capacidad Financiera'!$B$12:$X$3580,2,0))","v":0}]
[null,null,{"$f":"+'Capacidad Financiera'!B460","v":""},{"$f":"IF(ISERROR(VLOOKUP(C457,'Capacidad Financiera'!$B$12:$X$62720,2,0)),\"\",VLOOKUP(C457,'Capacidad Financiera'!$B$12:$X$3580,2,0))","v":0}]
[null,null,{"$f":"+'Capacidad Financiera'!B461","v":""},{"$f":"IF(ISERROR(VLOOKUP(C458,'Capacidad Financiera'!$B$12:$X$62720,2,0)),\"\",VLOOKUP(C458,'Capacidad Financiera'!$B$12:$X$3580,2,0))","v":0}]
[null,null,{"$f":"+'Capacidad Financiera'!B462","v":""},{"$f":"IF(ISERROR(VLOOKUP(C459,'Capacidad Financiera'!$B$12:$X$62720,2,0)),\"\",VLOOKUP(C459,'Capacidad Financiera'!$B$12:$X$3580,2,0))","v":0}]
[null,null,42,{"$f":"IF(ISERROR(VLOOKUP(C460,'Capacidad Financiera'!$B$12:$X$62720,2,0)),\"\",VLOOKUP(C460,'Capacidad Financiera'!$B$12:$X$3580,2,0))","v":"CONSORCIO VIALES CUNDINAMARCA"}]
["req dias neg",null,{"$f":"+'Capacidad Financiera'!B464","v":42.1},{"$f":"IF(ISERROR(VLOOKUP(C461,'Capacidad Financiera'!$B$12:$X$62720,2,0)),\"\",VLOOKUP(C461,'Capacidad Financiera'!$B$12:$X$3580,2,0))","v":"OLT CONSTRUCTORES S.A.S."}]
[null,null,{"$f":"+'Capacidad Financiera'!B465","v":42.2},{"$f":"IF(ISERROR(VLOOKUP(C462,'Capacidad Financiera'!$B$12:$X$62720,2,0)),\"\",VLOOKUP(C462,'Capacidad Financiera'!$B$12:$X$3580,2,0))","v":"CONSTRUCCIONES MAJA S.A.S."},4205702468.6399999]
[null,null,{"$f":"+'Capacidad Financiera'!B466","v":""},{"$f":"IF(ISERROR(VLOOKUP(C463,'Capacidad Financiera'!$B$12:$X$62720,2,0)),\"\",VLOOKUP(C463,'Capacidad Financiera'!$B$12:$X$3580,2,0))","v":0}]
[null,null,{"$f":"+'Capacidad Financiera'!B467","v":""},{"$f":"IF(ISERROR(VLOOKUP(C464,'Capacidad Financiera'!$B$12:$X$62720,2,0)),\"\",VLOOKUP(C464,'Capacidad Financiera'!$B$12:$X$3580,2,0))","v":0}]
[null,null,{"$f":"+'Capacidad Financiera'!B468","v":""},{"$f":"IF(ISERROR(VLOOKUP(C465,'Capacidad Financiera'!$B$12:$X$62720,2,0)),\"\",VLOOKUP(C465,'Capacidad Financiera'!$B$12:$X$3580,2,0))","v":0}]
[null,null,{"$f":"+'Capacidad Financiera'!B469","v":""},{"$f":"IF(ISERROR(VLOOKUP(C466,'Capacidad Financiera'!$B$12:$X$62720,2,0)),\"\",VLOOKUP(C466,'Capacidad Financiera'!$B$12:$X$3580,2,0))","v":0}]
[null,null,{"$f":"+'Capacidad Financiera'!B470","v":""},{"$f":"IF(ISERROR(VLOOKUP(C467,'Capacidad Financiera'!$B$12:$X$62720,2,0)),\"\",VLOOKUP(C467,'Capacidad Financiera'!$B$12:$X$3580,2,0))","v":0}]
[null,null,{"$f":"+'Capacidad Financiera'!B471","v":""},{"$f":"IF(ISERROR(VLOOKUP(C468,'Capacidad Financiera'!$B$12:$X$62720,2,0)),\"\",VLOOKUP(C468,'Capacidad Financiera'!$B$12:$X$3580,2,0))","v":0}]
[null,null,{"$f":"+'Capacidad Financiera'!B472","v":""},{"$f":"IF(ISERROR(VLOOKUP(C469,'Capacidad Financiera'!$B$12:$X$62720,2,0)),\"\",VLOOKUP(C469,'Capacidad Financiera'!$B$12:$X$3580,2,0))","v":0}]
[null,null,{"$f":"+'Capacidad Financiera'!B473","v":""},{"$f":"IF(ISERROR(VLOOKUP(C470,'Capacidad Financiera'!$B$12:$X$62720,2,0)),\"\",VLOOKUP(C470,'Capacidad Financiera'!$B$12:$X$3580,2,0))","v":0}]
[null,null,43,{"$f":"IF(ISERROR(VLOOKUP(C471,'Capacidad Financiera'!$B$12:$X$62720,2,0)),\"\",VLOOKUP(C471,'Capacidad Financiera'!$B$12:$X$3580,2,0))","v":"CONSORCIO LA CALERA 034"}]
[null,null,{"$f":"+'Capacidad Financiera'!B475","v":43.1},{"$f":"IF(ISERROR(VLOOKUP(C472,'Capacidad Financiera'!$B$12:$X$62720,2,0)),\"\",VLOOKUP(C472,'Capacidad Financiera'!$B$12:$X$3580,2,0))","v":"JULIO ECHEVERRY SARMIENTO"},0]
[null,null,{"$f":"+'Capacidad Financiera'!B476","v":43.2},{"$f":"IF(ISERROR(VLOOKUP(C473,'Capacidad Financiera'!$B$12:$X$62720,2,0)),\"\",VLOOKUP(C473,'Capacidad Financiera'!$B$12:$X$3580,2,0))","v":"FRANKLIN PIRAGUA ROA"},674921252.79999995]
["req dias neg",null,{"$f":"+'Capacidad Financiera'!B477","v":43.300000000000004},{"$f":"IF(ISERROR(VLOOKUP(C474,'Capacidad Financiera'!$B$12:$X$62720,2,0)),\"\",VLOOKUP(C474,'Capacidad Financiera'!$B$12:$X$3580,2,0))","v":"CARLOS ARANGO SALAZAR"}]
[null,null,{"$f":"+'Capacidad Financiera'!B478","v":""},{"$f":"IF(ISERROR(VLOOKUP(C475,'Capacidad Financiera'!$B$12:$X$62720,2,0)),\"\",VLOOKUP(C475,'Capacidad Financiera'!$B$12:$X$3580,2,0))","v":0}]
[null,null,{"$f":"+'Capacidad Financiera'!B479","v":""},{"$f":"IF(ISERROR(VLOOKUP(C476,'Capacidad Financiera'!$B$12:$X$62720,2,0)),\"\",VLOOKUP(C476,'Capacidad Financiera'!$B$12:$X$3580,2,0))","v":0}]
[null,null,{"$f":"+'Capacidad Financiera'!B480","v":""},{"$f":"IF(ISERROR(VLOOKUP(C477,'Capacidad Financiera'!$B$12:$X$62720,2,0)),\"\",VLOOKUP(C477,'Capacidad Financiera'!$B$12:$X$3580,2,0))","v":0}]
[null,null,{"$f":"+'Capacidad Financiera'!B481","v":""},{"$f":"IF(ISERROR(VLOOKUP(C478,'Capacidad Financiera'!$B$12:$X$62720,2,0)),\"\",VLOOKUP(C478,'Capacidad Financiera'!$B$12:$X$3580,2,0))","v":0}]
[null,null,{"$f":"+'Capacidad Financiera'!B482","v":""},{"$f":"IF(ISERROR(VLOOKUP(C479,'Capacidad Financiera'!$B$12:$X$62720,2,0)),\"\",VLOOKUP(C479,'Capacidad Financiera'!$B$12:$X$3580,2,0))","v":0}]
[null,null,{"$f":"+'Capacidad Financiera'!B483","v":""},{"$f":"IF(ISERROR(VLOOKUP(C480,'Capacidad Financiera'!$B$12:$X$62720,2,0)),\"\",VLOOKUP(C480,'Capacidad Financiera'!$B$12:$X$3580,2,0))","v":0}]
[null,null,{"$f":"+'Capacidad Financiera'!B484","v":""},{"$f":"IF(ISERROR(VLOOKUP(C481,'Capacidad Financiera'!$B$12:$X$62720,2,0)),\"\",VLOOKUP(C481,'Capacidad Financiera'!$B$12:$X$3580,2,0))","v":0}]
[null,null,44,{"$f":"IF(ISERROR(VLOOKUP(C482,'Capacidad Financiera'!$B$12:$X$62720,2,0)),\"\",VLOOKUP(C482,'Capacidad Financiera'!$B$12:$X$3580,2,0))","v":"CONCRETOS Y ASFALTOS S.A."}]
["req dias neg",null,{"$f":"+'Capacidad Financiera'!B486","v":44.1},{"$f":"IF(ISERROR(VLOOKUP(C483,'Capacidad Financiera'!$B$12:$X$62720,2,0)),\"\",VLOOKUP(C483,'Capacidad Financiera'!$B$12:$X$3580,2,0))","v":"CONCRETOS Y ASFALTOS S.A."}]
[null,null,{"$f":"+'Capacidad Financiera'!B487","v":""},{"$f":"IF(ISERROR(VLOOKUP(C484,'Capacidad Financiera'!$B$12:$X$62720,2,0)),\"\",VLOOKUP(C484,'Capacidad Financiera'!$B$12:$X$3580,2,0))","v":0}]
[null,null,{"$f":"+'Capacidad Financiera'!B488","v":""},{"$f":"IF(ISERROR(VLOOKUP(C485,'Capacidad Financiera'!$B$12:$X$62720,2,0)),\"\",VLOOKUP(C485,'Capacidad Financiera'!$B$12:$X$3580,2,0))","v":0}]
[null,null,{"$f":"+'Capacidad Financiera'!B489","v":""},{"$f":"IF(ISERROR(VLOOKUP(C486,'Capacidad Financiera'!$B$12:$X$62720,2,0)),\"\",VLOOKUP(C486,'Capacidad Financiera'!$B$12:$X$3580,2,0))","v":0}]
[null,null,{"$f":"+'Capacidad Financiera'!B490","v":""},{"$f":"IF(ISERROR(VLOOKUP(C487,'Capacidad Financiera'!$B$12:$X$62720,2,0)),\"\",VLOOKUP(C487,'Capacidad Financiera'!$B$12:$X$3580,2,0))","v":0}]
[null,null,{"$f":"+'Capacidad Financiera'!B491","v":""},{"$f":"IF(ISERROR(VLOOKUP(C488,'Capacidad Financiera'!$B$12:$X$62720,2,0)),\"\",VLOOKUP(C488,'Capacidad Financiera'!$B$12:$X$3580,2,0))","v":0}]
[null,null,{"$f":"+'Capacidad Financiera'!B492","v":""},{"$f":"IF(ISERROR(VLOOKUP(C489,'Capacidad Financiera'!$B$12:$X$62720,2,0)),\"\",VLOOKUP(C489,'Capacidad Financiera'!$B$12:$X$3580,2,0))","v":0}]
[null,null,{"$f":"+'Capacidad Financiera'!B493","v":""},{"$f":"IF(ISERROR(VLOOKUP(C490,'Capacidad Financiera'!$B$12:$X$62720,2,0)),\"\",VLOOKUP(C490,'Capacidad Financiera'!$B$12:$X$3580,2,0))","v":0}]
[null,null,{"$f":"+'Capacidad Financiera'!B494","v":""},{"$f":"IF(ISERROR(VLOOKUP(C491,'Capacidad Financiera'!$B$12:$X$62720,2,0)),\"\",VLOOKUP(C491,'Capacidad Financiera'!$B$12:$X$3580,2,0))","v":0}]
[null,null,{"$f":"+'Capacidad Financiera'!B495","v":""},{"$f":"IF(ISERROR(VLOOKUP(C492,'Capacidad Financiera'!$B$12:$X$62720,2,0)),\"\",VLOOKUP(C492,'Capacidad Financiera'!$B$12:$X$3580,2,0))","v":0}]
[null,null,45,{"$f":"IF(ISERROR(VLOOKUP(C493,'Capacidad Financiera'!$B$12:$X$62720,2,0)),\"\",VLOOKUP(C493,'Capacidad Financiera'!$B$12:$X$3580,2,0))","v":"CONSORCIO INFRAESTRUCTURA GUASCA"}]
[null,null,{"$f":"+'Capacidad Financiera'!B497","v":45.1},{"$f":"IF(ISERROR(VLOOKUP(C494,'Capacidad Financiera'!$B$12:$X$62720,2,0)),\"\",VLOOKUP(C494,'Capacidad Financiera'!$B$12:$X$3580,2,0))","v":"INFRAESTRUCTURA NACIONAL LTDA."},921766093.51999998]
[null,null,{"$f":"+'Capacidad Financiera'!B498","v":45.2},{"$f":"IF(ISERROR(VLOOKUP(C495,'Capacidad Financiera'!$B$12:$X$62720,2,0)),\"\",VLOOKUP(C495,'Capacidad Financiera'!$B$12:$X$3580,2,0))","v":"RB DE COLOMBIA S.A."},1618081868.28]
["req dias neg",null,{"$f":"+'Capacidad Financiera'!B499","v":45.300000000000004},{"$f":"IF(ISERROR(VLOOKUP(C496,'Capacidad Financiera'!$B$12:$X$62720,2,0)),\"\",VLOOKUP(C496,'Capacidad Financiera'!$B$12:$X$3580,2,0))","v":"YAMIL MONTENEGRO CALDERON"}]
[null,null,{"$f":"+'Capacidad Financiera'!B500","v":""},{"$f":"IF(ISERROR(VLOOKUP(C497,'Capacidad Financiera'!$B$12:$X$62720,2,0)),\"\",VLOOKUP(C497,'Capacidad Financiera'!$B$12:$X$3580,2,0))","v":0}]
[null,null,{"$f":"+'Capacidad Financiera'!B501","v":""},{"$f":"IF(ISERROR(VLOOKUP(C498,'Capacidad Financiera'!$B$12:$X$62720,2,0)),\"\",VLOOKUP(C498,'Capacidad Financiera'!$B$12:$X$3580,2,0))","v":0}]
[null,null,{"$f":"+'Capacidad Financiera'!B502","v":""},{"$f":"IF(ISERROR(VLOOKUP(C499,'Capacidad Financiera'!$B$12:$X$62720,2,0)),\"\",VLOOKUP(C499,'Capacidad Financiera'!$B$12:$X$3580,2,0))","v":0}]
[null,null,{"$f":"+'Capacidad Financiera'!B503","v":""},{"$f":"IF(ISERROR(VLOOKUP(C500,'Capacidad Financiera'!$B$12:$X$62720,2,0)),\"\",VLOOKUP(C500,'Capacidad Financiera'!$B$12:$X$3580,2,0))","v":0}]
[null,null,{"$f":"+'Capacidad Financiera'!B504","v":""},{"$f":"IF(ISERROR(VLOOKUP(C501,'Capacidad Financiera'!$B$12:$X$62720,2,0)),\"\",VLOOKUP(C501,'Capacidad Financiera'!$B$12:$X$3580,2,0))","v":0}]
[null,null,{"$f":"+'Capacidad Financiera'!B505","v":""},{"$f":"IF(ISERROR(VLOOKUP(C502,'Capacidad Financiera'!$B$12:$X$62720,2,0)),\"\",VLOOKUP(C502,'Capacidad Financiera'!$B$12:$X$3580,2,0))","v":0}]
[null,null,{"$f":"+'Capacidad Financiera'!B506","v":""},{"$f":"IF(ISERROR(VLOOKUP(C503,'Capacidad Financiera'!$B$12:$X$62720,2,0)),\"\",VLOOKUP(C503,'Capacidad Financiera'!$B$12:$X$3580,2,0))","v":0}]
[null,null,46,{"$f":"IF(ISERROR(VLOOKUP(C504,'Capacidad Financiera'!$B$12:$X$62720,2,0)),\"\",VLOOKUP(C504,'Capacidad Financiera'!$B$12:$X$3580,2,0))","v":"RG INGENIERIA LTDA."}]
[null,null,{"$f":"+'Capacidad Financiera'!B508","v":46.1},{"$f":"IF(ISERROR(VLOOKUP(C505,'Capacidad Financiera'!$B$12:$X$62720,2,0)),\"\",VLOOKUP(C505,'Capacidad Financiera'!$B$12:$X$3580,2,0))","v":"RG INGENIERIA LTDA."},1193763732.29]
[null,null,{"$f":"+'Capacidad Financiera'!B509","v":""},{"$f":"IF(ISERROR(VLOOKUP(C506,'Capacidad Financiera'!$B$12:$X$62720,2,0)),\"\",VLOOKUP(C506,'Capacidad Financiera'!$B$12:$X$3580,2,0))","v":0}]
[null,null,{"$f":"+'Capacidad Financiera'!B510","v":""},{"$f":"IF(ISERROR(VLOOKUP(C507,'Capacidad Financiera'!$B$12:$X$62720,2,0)),\"\",VLOOKUP(C507,'Capacidad Financiera'!$B$12:$X$3580,2,0))","v":0}]
[null,null,{"$f":"+'Capacidad Financiera'!B511","v":""},{"$f":"IF(ISERROR(VLOOKUP(C508,'Capacidad Financiera'!$B$12:$X$62720,2,0)),\"\",VLOOKUP(C508,'Capacidad Financiera'!$B$12:$X$3580,2,0))","v":0}]
[null,null,{"$f":"+'Capacidad Financiera'!B512","v":""},{"$f":"IF(ISERROR(VLOOKUP(C509,'Capacidad Financiera'!$B$12:$X$62720,2,0)),\"\",VLOOKUP(C509,'Capacidad Financiera'!$B$12:$X$3580,2,0))","v":0}]
[null,null,{"$f":"+'Capacidad Financiera'!B513","v":""},{"$f":"IF(ISERROR(VLOOKUP(C510,'Capacidad Financiera'!$B$12:$X$62720,2,0)),\"\",VLOOKUP(C510,'Capacidad Financiera'!$B$12:$X$3580,2,0))","v":0}]
[null,null,{"$f":"+'Capacidad Financiera'!B514","v":""},{"$f":"IF(ISERROR(VLOOKUP(C511,'Capacidad Financiera'!$B$12:$X$62720,2,0)),\"\",VLOOKUP(C511,'Capacidad Financiera'!$B$12:$X$3580,2,0))","v":0}]
[null,null,{"$f":"+'Capacidad Financiera'!B515","v":""},{"$f":"IF(ISERROR(VLOOKUP(C512,'Capacidad Financiera'!$B$12:$X$62720,2,0)),\"\",VLOOKUP(C512,'Capacidad Financiera'!$B$12:$X$3580,2,0))","v":0}]
[null,null,{"$f":"+'Capacidad Financiera'!B516","v":""},{"$f":"IF(ISERROR(VLOOKUP(C513,'Capacidad Financiera'!$B$12:$X$62720,2,0)),\"\",VLOOKUP(C513,'Capacidad Financiera'!$B$12:$X$3580,2,0))","v":0}]
[null,null,{"$f":"+'Capacidad Financiera'!B517","v":""},{"$f":"IF(ISERROR(VLOOKUP(C514,'Capacidad Financiera'!$B$12:$X$62720,2,0)),\"\",VLOOKUP(C514,'Capacidad Financiera'!$B$12:$X$3580,2,0))","v":0}]
[null,null,47,{"$f":"IF(ISERROR(VLOOKUP(C515,'Capacidad Financiera'!$B$12:$X$62720,2,0)),\"\",VLOOKUP(C515,'Capacidad Financiera'!$B$12:$X$3580,2,0))","v":"CONSORCIO GAMA 034"}]
[null,null,{"$f":"+'Capacidad Financiera'!B519","v":47.1},{"$f":"IF(ISERROR(VLOOKUP(C516,'Capacidad Financiera'!$B$12:$X$62720,2,0)),\"\",VLOOKUP(C516,'Capacidad Financiera'!$B$12:$X$3580,2,0))","v":"GAMA INGENIEROS ARQUITECTOS S.A.S."}]
[null,null,{"$f":"+'Capacidad Financiera'!B520","v":47.2},{"$f":"IF(ISERROR(VLOOKUP(C517,'Capacidad Financiera'!$B$12:$X$62720,2,0)),\"\",VLOOKUP(C517,'Capacidad Financiera'!$B$12:$X$3580,2,0))","v":"JOSE GALAN GOMEZ"}]
[null,null,{"$f":"+'Capacidad Financiera'!B521","v":""},{"$f":"IF(ISERROR(VLOOKUP(C518,'Capacidad Financiera'!$B$12:$X$62720,2,0)),\"\",VLOOKUP(C518,'Capacidad Financiera'!$B$12:$X$3580,2,0))","v":0}]
[null,null,{"$f":"+'Capacidad Financiera'!B522","v":""},{"$f":"IF(ISERROR(VLOOKUP(C519,'Capacidad Financiera'!$B$12:$X$62720,2,0)),\"\",VLOOKUP(C519,'Capacidad Financiera'!$B$12:$X$3580,2,0))","v":0}]
[null,null,{"$f":"+'Capacidad Financiera'!B523","v":""},{"$f":"IF(ISERROR(VLOOKUP(C520,'Capacidad Financiera'!$B$12:$X$62720,2,0)),\"\",VLOOKUP(C520,'Capacidad Financiera'!$B$12:$X$3580,2,0))","v":0}]
[null,null,{"$f":"+'Capacidad Financiera'!B524","v":""},{"$f":"IF(ISERROR(VLOOKUP(C521,'Capacidad Financiera'!$B$12:$X$62720,2,0)),\"\",VLOOKUP(C521,'Capacidad Financiera'!$B$12:$X$3580,2,0))","v":0}]
[null,null,{"$f":"+'Capacidad Financiera'!B525","v":""},{"$f":"IF(ISERROR(VLOOKUP(C522,'Capacidad Financiera'!$B$12:$X$62720,2,0)),\"\",VLOOKUP(C522,'Capacidad Financiera'!$B$12:$X$3580,2,0))","v":0}]
[null,null,{"$f":"+'Capacidad Financiera'!B526","v":""},{"$f":"IF(ISERROR(VLOOKUP(C523,'Capacidad Financiera'!$B$12:$X$62720,2,0)),\"\",VLOOKUP(C523,'Capacidad Financiera'!$B$12:$X$3580,2,0))","v":0}]
[null,null,{"$f":"+'Capacidad Financiera'!B527","v":""},{"$f":"IF(ISERROR(VLOOKUP(C524,'Capacidad Financiera'!$B$12:$X$62720,2,0)),\"\",VLOOKUP(C524,'Capacidad Financiera'!$B$12:$X$3580,2,0))","v":0}]
[null,null,{"$f":"+'Capacidad Financiera'!B528","v":""},{"$f":"IF(ISERROR(VLOOKUP(C525,'Capacidad Financiera'!$B$12:$X$62720,2,0)),\"\",VLOOKUP(C525,'Capacidad Financiera'!$B$12:$X$3580,2,0))","v":0}]
[null,null,48,{"$f":"IF(ISERROR(VLOOKUP(C526,'Capacidad Financiera'!$B$12:$X$62720,2,0)),\"\",VLOOKUP(C526,'Capacidad Financiera'!$B$12:$X$3580,2,0))","v":0}]
[null,null,{"$f":"+'Capacidad Financiera'!B530","v":""},{"$f":"IF(ISERROR(VLOOKUP(C527,'Capacidad Financiera'!$B$12:$X$62720,2,0)),\"\",VLOOKUP(C527,'Capacidad Financiera'!$B$12:$X$3580,2,0))","v":0}]
[null,null,{"$f":"+'Capacidad Financiera'!B531","v":""},{"$f":"IF(ISERROR(VLOOKUP(C528,'Capacidad Financiera'!$B$12:$X$62720,2,0)),\"\",VLOOKUP(C528,'Capacidad Financiera'!$B$12:$X$3580,2,0))","v":0}]
[null,null,{"$f":"+'Capacidad Financiera'!B532","v":""},{"$f":"IF(ISERROR(VLOOKUP(C529,'Capacidad Financiera'!$B$12:$X$62720,2,0)),\"\",VLOOKUP(C529,'Capacidad Financiera'!$B$12:$X$3580,2,0))","v":0}]
[null,null,{"$f":"+'Capacidad Financiera'!B533","v":""},{"$f":"IF(ISERROR(VLOOKUP(C530,'Capacidad Financiera'!$B$12:$X$62720,2,0)),\"\",VLOOKUP(C530,'Capacidad Financiera'!$B$12:$X$3580,2,0))","v":0}]
[null,null,{"$f":"+'Capacidad Financiera'!B534","v":""},{"$f":"IF(ISERROR(VLOOKUP(C531,'Capacidad Financiera'!$B$12:$X$62720,2,0)),\"\",VLOOKUP(C531,'Capacidad Financiera'!$B$12:$X$3580,2,0))","v":0}]
[null,null,{"$f":"+'Capacidad Financiera'!B535","v":""},{"$f":"IF(ISERROR(VLOOKUP(C532,'Capacidad Financiera'!$B$12:$X$62720,2,0)),\"\",VLOOKUP(C532,'Capacidad Financiera'!$B$12:$X$3580,2,0))","v":0}]
[null,null,{"$f":"+'Capacidad Financiera'!B536","v":""},{"$f":"IF(ISERROR(VLOOKUP(C533,'Capacidad Financiera'!$B$12:$X$62720,2,0)),\"\",VLOOKUP(C533,'Capacidad Financiera'!$B$12:$X$3580,2,0))","v":0}]
[null,null,{"$f":"+'Capacidad Financiera'!B537","v":""},{"$f":"IF(ISERROR(VLOOKUP(C534,'Capacidad Financiera'!$B$12:$X$62720,2,0)),\"\",VLOOKUP(C534,'Capacidad Financiera'!$B$12:$X$3580,2,0))","v":0}]
[null,null,{"$f":"+'Capacidad Financiera'!B538","v":""},{"$f":"IF(ISERROR(VLOOKUP(C535,'Capacidad Financiera'!$B$12:$X$62720,2,0)),\"\",VLOOKUP(C535,'Capacidad Financiera'!$B$12:$X$3580,2,0))","v":0}]
[null,null,{"$f":"+'Capacidad Financiera'!B539","v":""},{"$f":"IF(ISERROR(VLOOKUP(C536,'Capacidad Financiera'!$B$12:$X$62720,2,0)),\"\",VLOOKUP(C536,'Capacidad Financiera'!$B$12:$X$3580,2,0))","v":0}]
[null,null,49,{"$f":"IF(ISERROR(VLOOKUP(C537,'Capacidad Financiera'!$B$12:$X$62720,2,0)),\"\",VLOOKUP(C537,'Capacidad Financiera'!$B$12:$X$3580,2,0))","v":0}]
[null,null,{"$f":"+'Capacidad Financiera'!B541","v":""},{"$f":"IF(ISERROR(VLOOKUP(C538,'Capacidad Financiera'!$B$12:$X$62720,2,0)),\"\",VLOOKUP(C538,'Capacidad Financiera'!$B$12:$X$3580,2,0))","v":0}]
[null,null,{"$f":"+'Capacidad Financiera'!B542","v":""},{"$f":"IF(ISERROR(VLOOKUP(C539,'Capacidad Financiera'!$B$12:$X$62720,2,0)),\"\",VLOOKUP(C539,'Capacidad Financiera'!$B$12:$X$3580,2,0))","v":0}]
[null,null,{"$f":"+'Capacidad Financiera'!B543","v":""},{"$f":"IF(ISERROR(VLOOKUP(C540,'Capacidad Financiera'!$B$12:$X$62720,2,0)),\"\",VLOOKUP(C540,'Capacidad Financiera'!$B$12:$X$3580,2,0))","v":0}]
[null,null,{"$f":"+'Capacidad Financiera'!B544","v":""},{"$f":"IF(ISERROR(VLOOKUP(C541,'Capacidad Financiera'!$B$12:$X$62720,2,0)),\"\",VLOOKUP(C541,'Capacidad Financiera'!$B$12:$X$3580,2,0))","v":0}]
[null,null,{"$f":"+'Capacidad Financiera'!B545","v":""},{"$f":"IF(ISERROR(VLOOKUP(C542,'Capacidad Financiera'!$B$12:$X$62720,2,0)),\"\",VLOOKUP(C542,'Capacidad Financiera'!$B$12:$X$3580,2,0))","v":0}]
[null,null,{"$f":"+'Capacidad Financiera'!B546","v":""},{"$f":"IF(ISERROR(VLOOKUP(C543,'Capacidad Financiera'!$B$12:$X$62720,2,0)),\"\",VLOOKUP(C543,'Capacidad Financiera'!$B$12:$X$3580,2,0))","v":0}]
[null,null,{"$f":"+'Capacidad Financiera'!B547","v":""},{"$f":"IF(ISERROR(VLOOKUP(C544,'Capacidad Financiera'!$B$12:$X$62720,2,0)),\"\",VLOOKUP(C544,'Capacidad Financiera'!$B$12:$X$3580,2,0))","v":0}]
[null,null,{"$f":"+'Capacidad Financiera'!B548","v":""},{"$f":"IF(ISERROR(VLOOKUP(C545,'Capacidad Financiera'!$B$12:$X$62720,2,0)),\"\",VLOOKUP(C545,'Capacidad Financiera'!$B$12:$X$3580,2,0))","v":0}]
[null,null,{"$f":"+'Capacidad Financiera'!B549","v":""},{"$f":"IF(ISERROR(VLOOKUP(C546,'Capacidad Financiera'!$B$12:$X$62720,2,0)),\"\",VLOOKUP(C546,'Capacidad Financiera'!$B$12:$X$3580,2,0))","v":0}]
[null,null,{"$f":"+'Capacidad Financiera'!B550","v":""},{"$f":"IF(ISERROR(VLOOKUP(C547,'Capacidad Financiera'!$B$12:$X$62720,2,0)),\"\",VLOOKUP(C547,'Capacidad Financiera'!$B$12:$X$3580,2,0))","v":0}]
[null,null,50,{"$f":"IF(ISERROR(VLOOKUP(C548,'Capacidad Financiera'!$B$12:$X$62720,2,0)),\"\",VLOOKUP(C548,'Capacidad Financiera'!$B$12:$X$3580,2,0))","v":0}]
[null,null,{"$f":"+'Capacidad Financiera'!B552","v":""},{"$f":"IF(ISERROR(VLOOKUP(C549,'Capacidad Financiera'!$B$12:$X$62720,2,0)),\"\",VLOOKUP(C549,'Capacidad Financiera'!$B$12:$X$3580,2,0))","v":0}]
[null,null,{"$f":"+'Capacidad Financiera'!B553","v":""},{"$f":"IF(ISERROR(VLOOKUP(C550,'Capacidad Financiera'!$B$12:$X$62720,2,0)),\"\",VLOOKUP(C550,'Capacidad Financiera'!$B$12:$X$3580,2,0))","v":0}]
[null,null,{"$f":"+'Capacidad Financiera'!B554","v":""},{"$f":"IF(ISERROR(VLOOKUP(C551,'Capacidad Financiera'!$B$12:$X$62720,2,0)),\"\",VLOOKUP(C551,'Capacidad Financiera'!$B$12:$X$3580,2,0))","v":0}]
[null,null,{"$f":"+'Capacidad Financiera'!B555","v":""},{"$f":"IF(ISERROR(VLOOKUP(C552,'Capacidad Financiera'!$B$12:$X$62720,2,0)),\"\",VLOOKUP(C552,'Capacidad Financiera'!$B$12:$X$3580,2,0))","v":0}]
[null,null,{"$f":"+'Capacidad Financiera'!B556","v":""},{"$f":"IF(ISERROR(VLOOKUP(C553,'Capacidad Financiera'!$B$12:$X$62720,2,0)),\"\",VLOOKUP(C553,'Capacidad Financiera'!$B$12:$X$3580,2,0))","v":0}]
[null,null,{"$f":"+'Capacidad Financiera'!B557","v":""},{"$f":"IF(ISERROR(VLOOKUP(C554,'Capacidad Financiera'!$B$12:$X$62720,2,0)),\"\",VLOOKUP(C554,'Capacidad Financiera'!$B$12:$X$3580,2,0))","v":0}]
[null,null,{"$f":"+'Capacidad Financiera'!B558","v":""},{"$f":"IF(ISERROR(VLOOKUP(C555,'Capacidad Financiera'!$B$12:$X$62720,2,0)),\"\",VLOOKUP(C555,'Capacidad Financiera'!$B$12:$X$3580,2,0))","v":0}]
[null,null,{"$f":"+'Capacidad Financiera'!B559","v":""},{"$f":"IF(ISERROR(VLOOKUP(C556,'Capacidad Financiera'!$B$12:$X$62720,2,0)),\"\",VLOOKUP(C556,'Capacidad Financiera'!$B$12:$X$3580,2,0))","v":0}]
[null,null,{"$f":"+'Capacidad Financiera'!B560","v":""},{"$f":"IF(ISERROR(VLOOKUP(C557,'Capacidad Financiera'!$B$12:$X$62720,2,0)),\"\",VLOOKUP(C557,'Capacidad Financiera'!$B$12:$X$3580,2,0))","v":0}]
[null,null,{"$f":"+'Capacidad Financiera'!B561","v":""},{"$f":"IF(ISERROR(VLOOKUP(C558,'Capacidad Financiera'!$B$12:$X$62720,2,0)),\"\",VLOOKUP(C558,'Capacidad Financiera'!$B$12:$X$3580,2,0))","v":0}]
[null,null,51,{"$f":"IF(ISERROR(VLOOKUP(C559,'Capacidad Financiera'!$B$12:$X$62720,2,0)),\"\",VLOOKUP(C559,'Capacidad Financiera'!$B$12:$X$3580,2,0))","v":0}]
[null,null,{"$f":"+'Capacidad Financiera'!B563","v":""},{"$f":"IF(ISERROR(VLOOKUP(C560,'Capacidad Financiera'!$B$12:$X$62720,2,0)),\"\",VLOOKUP(C560,'Capacidad Financiera'!$B$12:$X$3580,2,0))","v":0}]
[null,null,{"$f":"+'Capacidad Financiera'!B564","v":""},{"$f":"IF(ISERROR(VLOOKUP(C561,'Capacidad Financiera'!$B$12:$X$62720,2,0)),\"\",VLOOKUP(C561,'Capacidad Financiera'!$B$12:$X$3580,2,0))","v":0}]
[null,null,{"$f":"+'Capacidad Financiera'!B565","v":""},{"$f":"IF(ISERROR(VLOOKUP(C562,'Capacidad Financiera'!$B$12:$X$62720,2,0)),\"\",VLOOKUP(C562,'Capacidad Financiera'!$B$12:$X$3580,2,0))","v":0}]
[null,null,{"$f":"+'Capacidad Financiera'!B566","v":""},{"$f":"IF(ISERROR(VLOOKUP(C563,'Capacidad Financiera'!$B$12:$X$62720,2,0)),\"\",VLOOKUP(C563,'Capacidad Financiera'!$B$12:$X$3580,2,0))","v":0}]
[null,null,{"$f":"+'Capacidad Financiera'!B567","v":""},{"$f":"IF(ISERROR(VLOOKUP(C564,'Capacidad Financiera'!$B$12:$X$62720,2,0)),\"\",VLOOKUP(C564,'Capacidad Financiera'!$B$12:$X$3580,2,0))","v":0}]
[null,null,{"$f":"+'Capacidad Financiera'!B568","v":""},{"$f":"IF(ISERROR(VLOOKUP(C565,'Capacidad Financiera'!$B$12:$X$62720,2,0)),\"\",VLOOKUP(C565,'Capacidad Financiera'!$B$12:$X$3580,2,0))","v":0}]
[null,null,{"$f":"+'Capacidad Financiera'!B569","v":""},{"$f":"IF(ISERROR(VLOOKUP(C566,'Capacidad Financiera'!$B$12:$X$62720,2,0)),\"\",VLOOKUP(C566,'Capacidad Financiera'!$B$12:$X$3580,2,0))","v":0}]
[null,null,{"$f":"+'Capacidad Financiera'!B570","v":""},{"$f":"IF(ISERROR(VLOOKUP(C567,'Capacidad Financiera'!$B$12:$X$62720,2,0)),\"\",VLOOKUP(C567,'Capacidad Financiera'!$B$12:$X$3580,2,0))","v":0}]
[null,null,{"$f":"+'Capacidad Financiera'!B571","v":""},{"$f":"IF(ISERROR(VLOOKUP(C568,'Capacidad Financiera'!$B$12:$X$62720,2,0)),\"\",VLOOKUP(C568,'Capacidad Financiera'!$B$12:$X$3580,2,0))","v":0}]
[null,null,{"$f":"+'Capacidad Financiera'!B572","v":""},{"$f":"IF(ISERROR(VLOOKUP(C569,'Capacidad Financiera'!$B$12:$X$62720,2,0)),\"\",VLOOKUP(C569,'Capacidad Financiera'!$B$12:$X$3580,2,0))","v":0}]
[null,null,52,{"$f":"IF(ISERROR(VLOOKUP(C570,'Capacidad Financiera'!$B$12:$X$62720,2,0)),\"\",VLOOKUP(C570,'Capacidad Financiera'!$B$12:$X$3580,2,0))","v":0}]
[null,null,{"$f":"+'Capacidad Financiera'!B574","v":""},{"$f":"IF(ISERROR(VLOOKUP(C571,'Capacidad Financiera'!$B$12:$X$62720,2,0)),\"\",VLOOKUP(C571,'Capacidad Financiera'!$B$12:$X$3580,2,0))","v":0}]
[null,null,{"$f":"+'Capacidad Financiera'!B575","v":""},{"$f":"IF(ISERROR(VLOOKUP(C572,'Capacidad Financiera'!$B$12:$X$62720,2,0)),\"\",VLOOKUP(C572,'Capacidad Financiera'!$B$12:$X$3580,2,0))","v":0}]
[null,null,{"$f":"+'Capacidad Financiera'!B576","v":""},{"$f":"IF(ISERROR(VLOOKUP(C573,'Capacidad Financiera'!$B$12:$X$62720,2,0)),\"\",VLOOKUP(C573,'Capacidad Financiera'!$B$12:$X$3580,2,0))","v":0}]
[null,null,{"$f":"+'Capacidad Financiera'!B577","v":""},{"$f":"IF(ISERROR(VLOOKUP(C574,'Capacidad Financiera'!$B$12:$X$62720,2,0)),\"\",VLOOKUP(C574,'Capacidad Financiera'!$B$12:$X$3580,2,0))","v":0}]
[null,null,{"$f":"+'Capacidad Financiera'!B578","v":""},{"$f":"IF(ISERROR(VLOOKUP(C575,'Capacidad Financiera'!$B$12:$X$62720,2,0)),\"\",VLOOKUP(C575,'Capacidad Financiera'!$B$12:$X$3580,2,0))","v":0}]
[null,null,{"$f":"+'Capacidad Financiera'!B579","v":""},{"$f":"IF(ISERROR(VLOOKUP(C576,'Capacidad Financiera'!$B$12:$X$62720,2,0)),\"\",VLOOKUP(C576,'Capacidad Financiera'!$B$12:$X$3580,2,0))","v":0}]
[null,null,{"$f":"+'Capacidad Financiera'!B580","v":""},{"$f":"IF(ISERROR(VLOOKUP(C577,'Capacidad Financiera'!$B$12:$X$62720,2,0)),\"\",VLOOKUP(C577,'Capacidad Financiera'!$B$12:$X$3580,2,0))","v":0}]
[null,null,{"$f":"+'Capacidad Financiera'!B581","v":""},{"$f":"IF(ISERROR(VLOOKUP(C578,'Capacidad Financiera'!$B$12:$X$62720,2,0)),\"\",VLOOKUP(C578,'Capacidad Financiera'!$B$12:$X$3580,2,0))","v":0}]
[null,null,{"$f":"+'Capacidad Financiera'!B582","v":""},{"$f":"IF(ISERROR(VLOOKUP(C579,'Capacidad Financiera'!$B$12:$X$62720,2,0)),\"\",VLOOKUP(C579,'Capacidad Financiera'!$B$12:$X$3580,2,0))","v":0}]
[null,null,{"$f":"+'Capacidad Financiera'!B583","v":""},{"$f":"IF(ISERROR(VLOOKUP(C580,'Capacidad Financiera'!$B$12:$X$62720,2,0)),\"\",VLOOKUP(C580,'Capacidad Financiera'!$B$12:$X$3580,2,0))","v":0}]
[null,null,53,{"$f":"IF(ISERROR(VLOOKUP(C581,'Capacidad Financiera'!$B$12:$X$62720,2,0)),\"\",VLOOKUP(C581,'Capacidad Financiera'!$B$12:$X$3580,2,0))","v":0}]
[null,null,{"$f":"+'Capacidad Financiera'!B585","v":""},{"$f":"IF(ISERROR(VLOOKUP(C582,'Capacidad Financiera'!$B$12:$X$62720,2,0)),\"\",VLOOKUP(C582,'Capacidad Financiera'!$B$12:$X$3580,2,0))","v":0}]
[null,null,{"$f":"+'Capacidad Financiera'!B586","v":""},{"$f":"IF(ISERROR(VLOOKUP(C583,'Capacidad Financiera'!$B$12:$X$62720,2,0)),\"\",VLOOKUP(C583,'Capacidad Financiera'!$B$12:$X$3580,2,0))","v":0}]
[null,null,{"$f":"+'Capacidad Financiera'!B587","v":""},{"$f":"IF(ISERROR(VLOOKUP(C584,'Capacidad Financiera'!$B$12:$X$62720,2,0)),\"\",VLOOKUP(C584,'Capacidad Financiera'!$B$12:$X$3580,2,0))","v":0}]
[null,null,{"$f":"+'Capacidad Financiera'!B588","v":""},{"$f":"IF(ISERROR(VLOOKUP(C585,'Capacidad Financiera'!$B$12:$X$62720,2,0)),\"\",VLOOKUP(C585,'Capacidad Financiera'!$B$12:$X$3580,2,0))","v":0}]
[null,null,{"$f":"+'Capacidad Financiera'!B589","v":""},{"$f":"IF(ISERROR(VLOOKUP(C586,'Capacidad Financiera'!$B$12:$X$62720,2,0)),\"\",VLOOKUP(C586,'Capacidad Financiera'!$B$12:$X$3580,2,0))","v":0}]
[null,null,{"$f":"+'Capacidad Financiera'!B590","v":""},{"$f":"IF(ISERROR(VLOOKUP(C587,'Capacidad Financiera'!$B$12:$X$62720,2,0)),\"\",VLOOKUP(C587,'Capacidad Financiera'!$B$12:$X$3580,2,0))","v":0}]
[null,null,{"$f":"+'Capacidad Financiera'!B591","v":""},{"$f":"IF(ISERROR(VLOOKUP(C588,'Capacidad Financiera'!$B$12:$X$62720,2,0)),\"\",VLOOKUP(C588,'Capacidad Financiera'!$B$12:$X$3580,2,0))","v":0}]
[null,null,{"$f":"+'Capacidad Financiera'!B592","v":""},{"$f":"IF(ISERROR(VLOOKUP(C589,'Capacidad Financiera'!$B$12:$X$62720,2,0)),\"\",VLOOKUP(C589,'Capacidad Financiera'!$B$12:$X$3580,2,0))","v":0}]
[null,null,{"$f":"+'Capacidad Financiera'!B593","v":""},{"$f":"IF(ISERROR(VLOOKUP(C590,'Capacidad Financiera'!$B$12:$X$62720,2,0)),\"\",VLOOKUP(C590,'Capacidad Financiera'!$B$12:$X$3580,2,0))","v":0}]
[null,null,{"$f":"+'Capacidad Financiera'!B594","v":""},{"$f":"IF(ISERROR(VLOOKUP(C591,'Capacidad Financiera'!$B$12:$X$62720,2,0)),\"\",VLOOKUP(C591,'Capacidad Financiera'!$B$12:$X$3580,2,0))","v":0}]
[null,null,54,{"$f":"IF(ISERROR(VLOOKUP(C592,'Capacidad Financiera'!$B$12:$X$62720,2,0)),\"\",VLOOKUP(C592,'Capacidad Financiera'!$B$12:$X$3580,2,0))","v":0}]
[null,null,{"$f":"+'Capacidad Financiera'!B596","v":""},{"$f":"IF(ISERROR(VLOOKUP(C593,'Capacidad Financiera'!$B$12:$X$62720,2,0)),\"\",VLOOKUP(C593,'Capacidad Financiera'!$B$12:$X$3580,2,0))","v":0}]
[null,null,{"$f":"+'Capacidad Financiera'!B597","v":""},{"$f":"IF(ISERROR(VLOOKUP(C594,'Capacidad Financiera'!$B$12:$X$62720,2,0)),\"\",VLOOKUP(C594,'Capacidad Financiera'!$B$12:$X$3580,2,0))","v":0}]
[null,null,{"$f":"+'Capacidad Financiera'!B598","v":""},{"$f":"IF(ISERROR(VLOOKUP(C595,'Capacidad Financiera'!$B$12:$X$62720,2,0)),\"\",VLOOKUP(C595,'Capacidad Financiera'!$B$12:$X$3580,2,0))","v":0}]
[null,null,{"$f":"+'Capacidad Financiera'!B599","v":""},{"$f":"IF(ISERROR(VLOOKUP(C596,'Capacidad Financiera'!$B$12:$X$62720,2,0)),\"\",VLOOKUP(C596,'Capacidad Financiera'!$B$12:$X$3580,2,0))","v":0}]
[null,null,{"$f":"+'Capacidad Financiera'!B600","v":""},{"$f":"IF(ISERROR(VLOOKUP(C597,'Capacidad Financiera'!$B$12:$X$62720,2,0)),\"\",VLOOKUP(C597,'Capacidad Financiera'!$B$12:$X$3580,2,0))","v":0}]
[null,null,{"$f":"+'Capacidad Financiera'!B601","v":""},{"$f":"IF(ISERROR(VLOOKUP(C598,'Capacidad Financiera'!$B$12:$X$62720,2,0)),\"\",VLOOKUP(C598,'Capacidad Financiera'!$B$12:$X$3580,2,0))","v":0}]
[null,null,{"$f":"+'Capacidad Financiera'!B602","v":""},{"$f":"IF(ISERROR(VLOOKUP(C599,'Capacidad Financiera'!$B$12:$X$62720,2,0)),\"\",VLOOKUP(C599,'Capacidad Financiera'!$B$12:$X$3580,2,0))","v":0}]
[null,null,{"$f":"+'Capacidad Financiera'!B603","v":""},{"$f":"IF(ISERROR(VLOOKUP(C600,'Capacidad Financiera'!$B$12:$X$62720,2,0)),\"\",VLOOKUP(C600,'Capacidad Financiera'!$B$12:$X$3580,2,0))","v":0}]
[null,null,{"$f":"+'Capacidad Financiera'!B604","v":""},{"$f":"IF(ISERROR(VLOOKUP(C601,'Capacidad Financiera'!$B$12:$X$62720,2,0)),\"\",VLOOKUP(C601,'Capacidad Financiera'!$B$12:$X$3580,2,0))","v":0}]
[null,null,{"$f":"+'Capacidad Financiera'!B605","v":""},{"$f":"IF(ISERROR(VLOOKUP(C602,'Capacidad Financiera'!$B$12:$X$62720,2,0)),\"\",VLOOKUP(C602,'Capacidad Financiera'!$B$12:$X$3580,2,0))","v":0}]
[null,null,55,{"$f":"IF(ISERROR(VLOOKUP(C603,'Capacidad Financiera'!$B$12:$X$62720,2,0)),\"\",VLOOKUP(C603,'Capacidad Financiera'!$B$12:$X$3580,2,0))","v":0}]
[null,null,{"$f":"+'Capacidad Financiera'!B607","v":""},{"$f":"IF(ISERROR(VLOOKUP(C604,'Capacidad Financiera'!$B$12:$X$62720,2,0)),\"\",VLOOKUP(C604,'Capacidad Financiera'!$B$12:$X$3580,2,0))","v":0}]
[null,null,{"$f":"+'Capacidad Financiera'!B608","v":""},{"$f":"IF(ISERROR(VLOOKUP(C605,'Capacidad Financiera'!$B$12:$X$62720,2,0)),\"\",VLOOKUP(C605,'Capacidad Financiera'!$B$12:$X$3580,2,0))","v":0}]
[null,null,{"$f":"+'Capacidad Financiera'!B609","v":""},{"$f":"IF(ISERROR(VLOOKUP(C606,'Capacidad Financiera'!$B$12:$X$62720,2,0)),\"\",VLOOKUP(C606,'Capacidad Financiera'!$B$12:$X$3580,2,0))","v":0}]
[null,null,{"$f":"+'Capacidad Financiera'!B610","v":""},{"$f":"IF(ISERROR(VLOOKUP(C607,'Capacidad Financiera'!$B$12:$X$62720,2,0)),\"\",VLOOKUP(C607,'Capacidad Financiera'!$B$12:$X$3580,2,0))","v":0}]
[null,null,{"$f":"+'Capacidad Financiera'!B611","v":""},{"$f":"IF(ISERROR(VLOOKUP(C608,'Capacidad Financiera'!$B$12:$X$62720,2,0)),\"\",VLOOKUP(C608,'Capacidad Financiera'!$B$12:$X$3580,2,0))","v":0}]
[null,null,{"$f":"+'Capacidad Financiera'!B612","v":""},{"$f":"IF(ISERROR(VLOOKUP(C609,'Capacidad Financiera'!$B$12:$X$62720,2,0)),\"\",VLOOKUP(C609,'Capacidad Financiera'!$B$12:$X$3580,2,0))","v":0}]
[null,null,{"$f":"+'Capacidad Financiera'!B613","v":""},{"$f":"IF(ISERROR(VLOOKUP(C610,'Capacidad Financiera'!$B$12:$X$62720,2,0)),\"\",VLOOKUP(C610,'Capacidad Financiera'!$B$12:$X$3580,2,0))","v":0}]
[null,null,{"$f":"+'Capacidad Financiera'!B614","v":""},{"$f":"IF(ISERROR(VLOOKUP(C611,'Capacidad Financiera'!$B$12:$X$62720,2,0)),\"\",VLOOKUP(C611,'Capacidad Financiera'!$B$12:$X$3580,2,0))","v":0}]
[null,null,{"$f":"+'Capacidad Financiera'!B615","v":""},{"$f":"IF(ISERROR(VLOOKUP(C612,'Capacidad Financiera'!$B$12:$X$62720,2,0)),\"\",VLOOKUP(C612,'Capacidad Financiera'!$B$12:$X$3580,2,0))","v":0}]
[null,null,{"$f":"+'Capacidad Financiera'!B616","v":""},{"$f":"IF(ISERROR(VLOOKUP(C613,'Capacidad Financiera'!$B$12:$X$62720,2,0)),\"\",VLOOKUP(C613,'Capacidad Financiera'!$B$12:$X$3580,2,0))","v":0}]
[null,null,56,{"$f":"IF(ISERROR(VLOOKUP(C614,'Capacidad Financiera'!$B$12:$X$62720,2,0)),\"\",VLOOKUP(C614,'Capacidad Financiera'!$B$12:$X$3580,2,0))","v":0}]
[null,null,{"$f":"+'Capacidad Financiera'!B618","v":""},{"$f":"IF(ISERROR(VLOOKUP(C615,'Capacidad Financiera'!$B$12:$X$62720,2,0)),\"\",VLOOKUP(C615,'Capacidad Financiera'!$B$12:$X$3580,2,0))","v":0}]
[null,null,{"$f":"+'Capacidad Financiera'!B619","v":""},{"$f":"IF(ISERROR(VLOOKUP(C616,'Capacidad Financiera'!$B$12:$X$62720,2,0)),\"\",VLOOKUP(C616,'Capacidad Financiera'!$B$12:$X$3580,2,0))","v":0}]
[null,null,{"$f":"+'Capacidad Financiera'!B620","v":""},{"$f":"IF(ISERROR(VLOOKUP(C617,'Capacidad Financiera'!$B$12:$X$62720,2,0)),\"\",VLOOKUP(C617,'Capacidad Financiera'!$B$12:$X$3580,2,0))","v":0}]
[null,null,{"$f":"+'Capacidad Financiera'!B621","v":""},{"$f":"IF(ISERROR(VLOOKUP(C618,'Capacidad Financiera'!$B$12:$X$62720,2,0)),\"\",VLOOKUP(C618,'Capacidad Financiera'!$B$12:$X$3580,2,0))","v":0}]
[null,null,{"$f":"+'Capacidad Financiera'!B622","v":""},{"$f":"IF(ISERROR(VLOOKUP(C619,'Capacidad Financiera'!$B$12:$X$62720,2,0)),\"\",VLOOKUP(C619,'Capacidad Financiera'!$B$12:$X$3580,2,0))","v":0}]
[null,null,{"$f":"+'Capacidad Financiera'!B623","v":""},{"$f":"IF(ISERROR(VLOOKUP(C620,'Capacidad Financiera'!$B$12:$X$62720,2,0)),\"\",VLOOKUP(C620,'Capacidad Financiera'!$B$12:$X$3580,2,0))","v":0}]
[null,null,{"$f":"+'Capacidad Financiera'!B624","v":""},{"$f":"IF(ISERROR(VLOOKUP(C621,'Capacidad Financiera'!$B$12:$X$62720,2,0)),\"\",VLOOKUP(C621,'Capacidad Financiera'!$B$12:$X$3580,2,0))","v":0}]
[null,null,{"$f":"+'Capacidad Financiera'!B625","v":""},{"$f":"IF(ISERROR(VLOOKUP(C622,'Capacidad Financiera'!$B$12:$X$62720,2,0)),\"\",VLOOKUP(C622,'Capacidad Financiera'!$B$12:$X$3580,2,0))","v":0}]
[null,null,{"$f":"+'Capacidad Financiera'!B626","v":""},{"$f":"IF(ISERROR(VLOOKUP(C623,'Capacidad Financiera'!$B$12:$X$62720,2,0)),\"\",VLOOKUP(C623,'Capacidad Financiera'!$B$12:$X$3580,2,0))","v":0}]
[null,null,{"$f":"+'Capacidad Financiera'!B627","v":""},{"$f":"IF(ISERROR(VLOOKUP(C624,'Capacidad Financiera'!$B$12:$X$62720,2,0)),\"\",VLOOKUP(C624,'Capacidad Financiera'!$B$12:$X$3580,2,0))","v":0}]
[null,null,57,{"$f":"IF(ISERROR(VLOOKUP(C625,'Capacidad Financiera'!$B$12:$X$62720,2,0)),\"\",VLOOKUP(C625,'Capacidad Financiera'!$B$12:$X$3580,2,0))","v":0}]
[null,null,{"$f":"+'Capacidad Financiera'!B629","v":""},{"$f":"IF(ISERROR(VLOOKUP(C626,'Capacidad Financiera'!$B$12:$X$62720,2,0)),\"\",VLOOKUP(C626,'Capacidad Financiera'!$B$12:$X$3580,2,0))","v":0}]
[null,null,{"$f":"+'Capacidad Financiera'!B630","v":""},{"$f":"IF(ISERROR(VLOOKUP(C627,'Capacidad Financiera'!$B$12:$X$62720,2,0)),\"\",VLOOKUP(C627,'Capacidad Financiera'!$B$12:$X$3580,2,0))","v":0}]
[null,null,{"$f":"+'Capacidad Financiera'!B631","v":""},{"$f":"IF(ISERROR(VLOOKUP(C628,'Capacidad Financiera'!$B$12:$X$62720,2,0)),\"\",VLOOKUP(C628,'Capacidad Financiera'!$B$12:$X$3580,2,0))","v":0}]
[null,null,{"$f":"+'Capacidad Financiera'!B632","v":""},{"$f":"IF(ISERROR(VLOOKUP(C629,'Capacidad Financiera'!$B$12:$X$62720,2,0)),\"\",VLOOKUP(C629,'Capacidad Financiera'!$B$12:$X$3580,2,0))","v":0}]
[null,null,{"$f":"+'Capacidad Financiera'!B633","v":""},{"$f":"IF(ISERROR(VLOOKUP(C630,'Capacidad Financiera'!$B$12:$X$62720,2,0)),\"\",VLOOKUP(C630,'Capacidad Financiera'!$B$12:$X$3580,2,0))","v":0}]
[null,null,{"$f":"+'Capacidad Financiera'!B634","v":""},{"$f":"IF(ISERROR(VLOOKUP(C631,'Capacidad Financiera'!$B$12:$X$62720,2,0)),\"\",VLOOKUP(C631,'Capacidad Financiera'!$B$12:$X$3580,2,0))","v":0}]
[null,null,{"$f":"+'Capacidad Financiera'!B635","v":""},{"$f":"IF(ISERROR(VLOOKUP(C632,'Capacidad Financiera'!$B$12:$X$62720,2,0)),\"\",VLOOKUP(C632,'Capacidad Financiera'!$B$12:$X$3580,2,0))","v":0}]
[null,null,{"$f":"+'Capacidad Financiera'!B636","v":""},{"$f":"IF(ISERROR(VLOOKUP(C633,'Capacidad Financiera'!$B$12:$X$62720,2,0)),\"\",VLOOKUP(C633,'Capacidad Financiera'!$B$12:$X$3580,2,0))","v":0}]
[null,null,{"$f":"+'Capacidad Financiera'!B637","v":""},{"$f":"IF(ISERROR(VLOOKUP(C634,'Capacidad Financiera'!$B$12:$X$62720,2,0)),\"\",VLOOKUP(C634,'Capacidad Financiera'!$B$12:$X$3580,2,0))","v":0}]
[null,null,{"$f":"+'Capacidad Financiera'!B638","v":""},{"$f":"IF(ISERROR(VLOOKUP(C635,'Capacidad Financiera'!$B$12:$X$62720,2,0)),\"\",VLOOKUP(C635,'Capacidad Financiera'!$B$12:$X$3580,2,0))","v":0}]
[null,null,58,{"$f":"IF(ISERROR(VLOOKUP(C636,'Capacidad Financiera'!$B$12:$X$62720,2,0)),\"\",VLOOKUP(C636,'Capacidad Financiera'!$B$12:$X$3580,2,0))","v":0}]
[null,null,{"$f":"+'Capacidad Financiera'!B640","v":""},{"$f":"IF(ISERROR(VLOOKUP(C637,'Capacidad Financiera'!$B$12:$X$62720,2,0)),\"\",VLOOKUP(C637,'Capacidad Financiera'!$B$12:$X$3580,2,0))","v":0}]
[null,null,{"$f":"+'Capacidad Financiera'!B641","v":""},{"$f":"IF(ISERROR(VLOOKUP(C638,'Capacidad Financiera'!$B$12:$X$62720,2,0)),\"\",VLOOKUP(C638,'Capacidad Financiera'!$B$12:$X$3580,2,0))","v":0}]
[null,null,{"$f":"+'Capacidad Financiera'!B642","v":""},{"$f":"IF(ISERROR(VLOOKUP(C639,'Capacidad Financiera'!$B$12:$X$62720,2,0)),\"\",VLOOKUP(C639,'Capacidad Financiera'!$B$12:$X$3580,2,0))","v":0}]
[null,null,{"$f":"+'Capacidad Financiera'!B643","v":""},{"$f":"IF(ISERROR(VLOOKUP(C640,'Capacidad Financiera'!$B$12:$X$62720,2,0)),\"\",VLOOKUP(C640,'Capacidad Financiera'!$B$12:$X$3580,2,0))","v":0}]
[null,null,{"$f":"+'Capacidad Financiera'!B644","v":""},{"$f":"IF(ISERROR(VLOOKUP(C641,'Capacidad Financiera'!$B$12:$X$62720,2,0)),\"\",VLOOKUP(C641,'Capacidad Financiera'!$B$12:$X$3580,2,0))","v":0}]
[null,null,{"$f":"+'Capacidad Financiera'!B645","v":""},{"$f":"IF(ISERROR(VLOOKUP(C642,'Capacidad Financiera'!$B$12:$X$62720,2,0)),\"\",VLOOKUP(C642,'Capacidad Financiera'!$B$12:$X$3580,2,0))","v":0}]
[null,null,{"$f":"+'Capacidad Financiera'!B646","v":""},{"$f":"IF(ISERROR(VLOOKUP(C643,'Capacidad Financiera'!$B$12:$X$62720,2,0)),\"\",VLOOKUP(C643,'Capacidad Financiera'!$B$12:$X$3580,2,0))","v":0}]
[null,null,{"$f":"+'Capacidad Financiera'!B647","v":""},{"$f":"IF(ISERROR(VLOOKUP(C644,'Capacidad Financiera'!$B$12:$X$62720,2,0)),\"\",VLOOKUP(C644,'Capacidad Financiera'!$B$12:$X$3580,2,0))","v":0}]
[null,null,{"$f":"+'Capacidad Financiera'!B648","v":""},{"$f":"IF(ISERROR(VLOOKUP(C645,'Capacidad Financiera'!$B$12:$X$62720,2,0)),\"\",VLOOKUP(C645,'Capacidad Financiera'!$B$12:$X$3580,2,0))","v":0}]
[null,null,{"$f":"+'Capacidad Financiera'!B649","v":""},{"$f":"IF(ISERROR(VLOOKUP(C646,'Capacidad Financiera'!$B$12:$X$62720,2,0)),\"\",VLOOKUP(C646,'Capacidad Financiera'!$B$12:$X$3580,2,0))","v":0}]
[null,null,59,{"$f":"IF(ISERROR(VLOOKUP(C647,'Capacidad Financiera'!$B$12:$X$62720,2,0)),\"\",VLOOKUP(C647,'Capacidad Financiera'!$B$12:$X$3580,2,0))","v":0}]
[null,null,{"$f":"+'Capacidad Financiera'!B651","v":""},{"$f":"IF(ISERROR(VLOOKUP(C648,'Capacidad Financiera'!$B$12:$X$62720,2,0)),\"\",VLOOKUP(C648,'Capacidad Financiera'!$B$12:$X$3580,2,0))","v":0}]
[null,null,{"$f":"+'Capacidad Financiera'!B652","v":""},{"$f":"IF(ISERROR(VLOOKUP(C649,'Capacidad Financiera'!$B$12:$X$62720,2,0)),\"\",VLOOKUP(C649,'Capacidad Financiera'!$B$12:$X$3580,2,0))","v":0}]
[null,null,{"$f":"+'Capacidad Financiera'!B653","v":""},{"$f":"IF(ISERROR(VLOOKUP(C650,'Capacidad Financiera'!$B$12:$X$62720,2,0)),\"\",VLOOKUP(C650,'Capacidad Financiera'!$B$12:$X$3580,2,0))","v":0}]
[null,null,{"$f":"+'Capacidad Financiera'!B654","v":""},{"$f":"IF(ISERROR(VLOOKUP(C651,'Capacidad Financiera'!$B$12:$X$62720,2,0)),\"\",VLOOKUP(C651,'Capacidad Financiera'!$B$12:$X$3580,2,0))","v":0}]
[null,null,{"$f":"+'Capacidad Financiera'!B655","v":""},{"$f":"IF(ISERROR(VLOOKUP(C652,'Capacidad Financiera'!$B$12:$X$62720,2,0)),\"\",VLOOKUP(C652,'Capacidad Financiera'!$B$12:$X$3580,2,0))","v":0}]
[null,null,{"$f":"+'Capacidad Financiera'!B656","v":""},{"$f":"IF(ISERROR(VLOOKUP(C653,'Capacidad Financiera'!$B$12:$X$62720,2,0)),\"\",VLOOKUP(C653,'Capacidad Financiera'!$B$12:$X$3580,2,0))","v":0}]
[null,null,{"$f":"+'Capacidad Financiera'!B657","v":""},{"$f":"IF(ISERROR(VLOOKUP(C654,'Capacidad Financiera'!$B$12:$X$62720,2,0)),\"\",VLOOKUP(C654,'Capacidad Financiera'!$B$12:$X$3580,2,0))","v":0}]
[null,null,{"$f":"+'Capacidad Financiera'!B658","v":""},{"$f":"IF(ISERROR(VLOOKUP(C655,'Capacidad Financiera'!$B$12:$X$62720,2,0)),\"\",VLOOKUP(C655,'Capacidad Financiera'!$B$12:$X$3580,2,0))","v":0}]
[null,null,{"$f":"+'Capacidad Financiera'!B659","v":""},{"$f":"IF(ISERROR(VLOOKUP(C656,'Capacidad Financiera'!$B$12:$X$62720,2,0)),\"\",VLOOKUP(C656,'Capacidad Financiera'!$B$12:$X$3580,2,0))","v":0}]
[null,null,{"$f":"+'Capacidad Financiera'!B660","v":""},{"$f":"IF(ISERROR(VLOOKUP(C657,'Capacidad Financiera'!$B$12:$X$62720,2,0)),\"\",VLOOKUP(C657,'Capacidad Financiera'!$B$12:$X$3580,2,0))","v":0}]
[null,null,60,{"$f":"IF(ISERROR(VLOOKUP(C658,'Capacidad Financiera'!$B$12:$X$62720,2,0)),\"\",VLOOKUP(C658,'Capacidad Financiera'!$B$12:$X$3580,2,0))","v":0}]
[null,null,{"$f":"+'Capacidad Financiera'!B662","v":""},{"$f":"IF(ISERROR(VLOOKUP(C659,'Capacidad Financiera'!$B$12:$X$62720,2,0)),\"\",VLOOKUP(C659,'Capacidad Financiera'!$B$12:$X$3580,2,0))","v":0}]
[null,null,{"$f":"+'Capacidad Financiera'!B663","v":""},{"$f":"IF(ISERROR(VLOOKUP(C660,'Capacidad Financiera'!$B$12:$X$62720,2,0)),\"\",VLOOKUP(C660,'Capacidad Financiera'!$B$12:$X$3580,2,0))","v":0}]
[null,null,{"$f":"+'Capacidad Financiera'!B664","v":""},{"$f":"IF(ISERROR(VLOOKUP(C661,'Capacidad Financiera'!$B$12:$X$62720,2,0)),\"\",VLOOKUP(C661,'Capacidad Financiera'!$B$12:$X$3580,2,0))","v":0}]
[null,null,{"$f":"+'Capacidad Financiera'!B665","v":""},{"$f":"IF(ISERROR(VLOOKUP(C662,'Capacidad Financiera'!$B$12:$X$62720,2,0)),\"\",VLOOKUP(C662,'Capacidad Financiera'!$B$12:$X$3580,2,0))","v":0}]
[null,null,{"$f":"+'Capacidad Financiera'!B666","v":""},{"$f":"IF(ISERROR(VLOOKUP(C663,'Capacidad Financiera'!$B$12:$X$62720,2,0)),\"\",VLOOKUP(C663,'Capacidad Financiera'!$B$12:$X$3580,2,0))","v":0}]
[null,null,{"$f":"+'Capacidad Financiera'!B667","v":""},{"$f":"IF(ISERROR(VLOOKUP(C664,'Capacidad Financiera'!$B$12:$X$62720,2,0)),\"\",VLOOKUP(C664,'Capacidad Financiera'!$B$12:$X$3580,2,0))","v":0}]
[null,null,{"$f":"+'Capacidad Financiera'!B668","v":""},{"$f":"IF(ISERROR(VLOOKUP(C665,'Capacidad Financiera'!$B$12:$X$62720,2,0)),\"\",VLOOKUP(C665,'Capacidad Financiera'!$B$12:$X$3580,2,0))","v":0}]
[null,null,{"$f":"+'Capacidad Financiera'!B669","v":""},{"$f":"IF(ISERROR(VLOOKUP(C666,'Capacidad Financiera'!$B$12:$X$62720,2,0)),\"\",VLOOKUP(C666,'Capacidad Financiera'!$B$12:$X$3580,2,0))","v":0}]
[null,null,{"$f":"+'Capacidad Financiera'!B670","v":""},{"$f":"IF(ISERROR(VLOOKUP(C667,'Capacidad Financiera'!$B$12:$X$62720,2,0)),\"\",VLOOKUP(C667,'Capacidad Financiera'!$B$12:$X$3580,2,0))","v":0}]
[null,null,{"$f":"+'Capacidad Financiera'!B671","v":""},{"$f":"IF(ISERROR(VLOOKUP(C668,'Capacidad Financiera'!$B$12:$X$62720,2,0)),\"\",VLOOKUP(C668,'Capacidad Financiera'!$B$12:$X$3580,2,0))","v":0}]
[null,null,61,{"$f":"IF(ISERROR(VLOOKUP(C669,'Capacidad Financiera'!$B$12:$X$62720,2,0)),\"\",VLOOKUP(C669,'Capacidad Financiera'!$B$12:$X$3580,2,0))","v":0}]
[null,null,{"$f":"+'Capacidad Financiera'!B673","v":""},{"$f":"IF(ISERROR(VLOOKUP(C670,'Capacidad Financiera'!$B$12:$X$62720,2,0)),\"\",VLOOKUP(C670,'Capacidad Financiera'!$B$12:$X$3580,2,0))","v":0}]
[null,null,{"$f":"+'Capacidad Financiera'!B674","v":""},{"$f":"IF(ISERROR(VLOOKUP(C671,'Capacidad Financiera'!$B$12:$X$62720,2,0)),\"\",VLOOKUP(C671,'Capacidad Financiera'!$B$12:$X$3580,2,0))","v":0}]
[null,null,{"$f":"+'Capacidad Financiera'!B675","v":""},{"$f":"IF(ISERROR(VLOOKUP(C672,'Capacidad Financiera'!$B$12:$X$62720,2,0)),\"\",VLOOKUP(C672,'Capacidad Financiera'!$B$12:$X$3580,2,0))","v":0}]
[null,null,{"$f":"+'Capacidad Financiera'!B676","v":""},{"$f":"IF(ISERROR(VLOOKUP(C673,'Capacidad Financiera'!$B$12:$X$62720,2,0)),\"\",VLOOKUP(C673,'Capacidad Financiera'!$B$12:$X$3580,2,0))","v":0}]
[null,null,{"$f":"+'Capacidad Financiera'!B677","v":""},{"$f":"IF(ISERROR(VLOOKUP(C674,'Capacidad Financiera'!$B$12:$X$62720,2,0)),\"\",VLOOKUP(C674,'Capacidad Financiera'!$B$12:$X$3580,2,0))","v":0}]
[null,null,{"$f":"+'Capacidad Financiera'!B678","v":""},{"$f":"IF(ISERROR(VLOOKUP(C675,'Capacidad Financiera'!$B$12:$X$62720,2,0)),\"\",VLOOKUP(C675,'Capacidad Financiera'!$B$12:$X$3580,2,0))","v":0}]
[null,null,{"$f":"+'Capacidad Financiera'!B679","v":""},{"$f":"IF(ISERROR(VLOOKUP(C676,'Capacidad Financiera'!$B$12:$X$62720,2,0)),\"\",VLOOKUP(C676,'Capacidad Financiera'!$B$12:$X$3580,2,0))","v":0}]
[null,null,{"$f":"+'Capacidad Financiera'!B680","v":""},{"$f":"IF(ISERROR(VLOOKUP(C677,'Capacidad Financiera'!$B$12:$X$62720,2,0)),\"\",VLOOKUP(C677,'Capacidad Financiera'!$B$12:$X$3580,2,0))","v":0}]
[null,null,{"$f":"+'Capacidad Financiera'!B681","v":""},{"$f":"IF(ISERROR(VLOOKUP(C678,'Capacidad Financiera'!$B$12:$X$62720,2,0)),\"\",VLOOKUP(C678,'Capacidad Financiera'!$B$12:$X$3580,2,0))","v":0}]
[null,null,{"$f":"+'Capacidad Financiera'!B682","v":""},{"$f":"IF(ISERROR(VLOOKUP(C679,'Capacidad Financiera'!$B$12:$X$62720,2,0)),\"\",VLOOKUP(C679,'Capacidad Financiera'!$B$12:$X$3580,2,0))","v":0}]
[null,null,62,{"$f":"IF(ISERROR(VLOOKUP(C680,'Capacidad Financiera'!$B$12:$X$62720,2,0)),\"\",VLOOKUP(C680,'Capacidad Financiera'!$B$12:$X$3580,2,0))","v":0}]
[null,null,{"$f":"+'Capacidad Financiera'!B684","v":""},{"$f":"IF(ISERROR(VLOOKUP(C681,'Capacidad Financiera'!$B$12:$X$62720,2,0)),\"\",VLOOKUP(C681,'Capacidad Financiera'!$B$12:$X$3580,2,0))","v":0}]
[null,null,{"$f":"+'Capacidad Financiera'!B685","v":""},{"$f":"IF(ISERROR(VLOOKUP(C682,'Capacidad Financiera'!$B$12:$X$62720,2,0)),\"\",VLOOKUP(C682,'Capacidad Financiera'!$B$12:$X$3580,2,0))","v":0}]
[null,null,{"$f":"+'Capacidad Financiera'!B686","v":""},{"$f":"IF(ISERROR(VLOOKUP(C683,'Capacidad Financiera'!$B$12:$X$62720,2,0)),\"\",VLOOKUP(C683,'Capacidad Financiera'!$B$12:$X$3580,2,0))","v":0}]
[null,null,{"$f":"+'Capacidad Financiera'!B687","v":""},{"$f":"IF(ISERROR(VLOOKUP(C684,'Capacidad Financiera'!$B$12:$X$62720,2,0)),\"\",VLOOKUP(C684,'Capacidad Financiera'!$B$12:$X$3580,2,0))","v":0}]
[null,null,{"$f":"+'Capacidad Financiera'!B688","v":""},{"$f":"IF(ISERROR(VLOOKUP(C685,'Capacidad Financiera'!$B$12:$X$62720,2,0)),\"\",VLOOKUP(C685,'Capacidad Financiera'!$B$12:$X$3580,2,0))","v":0}]
[null,null,{"$f":"+'Capacidad Financiera'!B689","v":""},{"$f":"IF(ISERROR(VLOOKUP(C686,'Capacidad Financiera'!$B$12:$X$62720,2,0)),\"\",VLOOKUP(C686,'Capacidad Financiera'!$B$12:$X$3580,2,0))","v":0}]
[null,null,{"$f":"+'Capacidad Financiera'!B690","v":""},{"$f":"IF(ISERROR(VLOOKUP(C687,'Capacidad Financiera'!$B$12:$X$62720,2,0)),\"\",VLOOKUP(C687,'Capacidad Financiera'!$B$12:$X$3580,2,0))","v":0}]
[null,null,{"$f":"+'Capacidad Financiera'!B691","v":""},{"$f":"IF(ISERROR(VLOOKUP(C688,'Capacidad Financiera'!$B$12:$X$62720,2,0)),\"\",VLOOKUP(C688,'Capacidad Financiera'!$B$12:$X$3580,2,0))","v":0}]
[null,null,{"$f":"+'Capacidad Financiera'!B692","v":""},{"$f":"IF(ISERROR(VLOOKUP(C689,'Capacidad Financiera'!$B$12:$X$62720,2,0)),\"\",VLOOKUP(C689,'Capacidad Financiera'!$B$12:$X$3580,2,0))","v":0}]
[null,null,{"$f":"+'Capacidad Financiera'!B693","v":""},{"$f":"IF(ISERROR(VLOOKUP(C690,'Capacidad Financiera'!$B$12:$X$62720,2,0)),\"\",VLOOKUP(C690,'Capacidad Financiera'!$B$12:$X$3580,2,0))","v":0}]
[null,null,63,{"$f":"IF(ISERROR(VLOOKUP(C691,'Capacidad Financiera'!$B$12:$X$62720,2,0)),\"\",VLOOKUP(C691,'Capacidad Financiera'!$B$12:$X$3580,2,0))","v":0}]
[null,null,{"$f":"+'Capacidad Financiera'!B695","v":""},{"$f":"IF(ISERROR(VLOOKUP(C692,'Capacidad Financiera'!$B$12:$X$62720,2,0)),\"\",VLOOKUP(C692,'Capacidad Financiera'!$B$12:$X$3580,2,0))","v":0}]
[null,null,{"$f":"+'Capacidad Financiera'!B696","v":""},{"$f":"IF(ISERROR(VLOOKUP(C693,'Capacidad Financiera'!$B$12:$X$62720,2,0)),\"\",VLOOKUP(C693,'Capacidad Financiera'!$B$12:$X$3580,2,0))","v":0}]
[null,null,{"$f":"+'Capacidad Financiera'!B697","v":""},{"$f":"IF(ISERROR(VLOOKUP(C694,'Capacidad Financiera'!$B$12:$X$62720,2,0)),\"\",VLOOKUP(C694,'Capacidad Financiera'!$B$12:$X$3580,2,0))","v":0}]
[null,null,{"$f":"+'Capacidad Financiera'!B698","v":""},{"$f":"IF(ISERROR(VLOOKUP(C695,'Capacidad Financiera'!$B$12:$X$62720,2,0)),\"\",VLOOKUP(C695,'Capacidad Financiera'!$B$12:$X$3580,2,0))","v":0}]
[null,null,{"$f":"+'Capacidad Financiera'!B699","v":""},{"$f":"IF(ISERROR(VLOOKUP(C696,'Capacidad Financiera'!$B$12:$X$62720,2,0)),\"\",VLOOKUP(C696,'Capacidad Financiera'!$B$12:$X$3580,2,0))","v":0}]
[null,null,{"$f":"+'Capacidad Financiera'!B700","v":""},{"$f":"IF(ISERROR(VLOOKUP(C697,'Capacidad Financiera'!$B$12:$X$62720,2,0)),\"\",VLOOKUP(C697,'Capacidad Financiera'!$B$12:$X$3580,2,0))","v":0}]
[null,null,{"$f":"+'Capacidad Financiera'!B701","v":""},{"$f":"IF(ISERROR(VLOOKUP(C698,'Capacidad Financiera'!$B$12:$X$62720,2,0)),\"\",VLOOKUP(C698,'Capacidad Financiera'!$B$12:$X$3580,2,0))","v":0}]
[null,null,{"$f":"+'Capacidad Financiera'!B702","v":""},{"$f":"IF(ISERROR(VLOOKUP(C699,'Capacidad Financiera'!$B$12:$X$62720,2,0)),\"\",VLOOKUP(C699,'Capacidad Financiera'!$B$12:$X$3580,2,0))","v":0}]
[null,null,{"$f":"+'Capacidad Financiera'!B703","v":""},{"$f":"IF(ISERROR(VLOOKUP(C700,'Capacidad Financiera'!$B$12:$X$62720,2,0)),\"\",VLOOKUP(C700,'Capacidad Financiera'!$B$12:$X$3580,2,0))","v":0}]
[null,null,{"$f":"+'Capacidad Financiera'!B704","v":""},{"$f":"IF(ISERROR(VLOOKUP(C701,'Capacidad Financiera'!$B$12:$X$62720,2,0)),\"\",VLOOKUP(C701,'Capacidad Financiera'!$B$12:$X$3580,2,0))","v":0}]
[null,null,64,{"$f":"IF(ISERROR(VLOOKUP(C702,'Capacidad Financiera'!$B$12:$X$62720,2,0)),\"\",VLOOKUP(C702,'Capacidad Financiera'!$B$12:$X$3580,2,0))","v":0}]
[null,null,{"$f":"+'Capacidad Financiera'!B706","v":""},{"$f":"IF(ISERROR(VLOOKUP(C703,'Capacidad Financiera'!$B$12:$X$62720,2,0)),\"\",VLOOKUP(C703,'Capacidad Financiera'!$B$12:$X$3580,2,0))","v":0}]
[null,null,{"$f":"+'Capacidad Financiera'!B707","v":""},{"$f":"IF(ISERROR(VLOOKUP(C704,'Capacidad Financiera'!$B$12:$X$62720,2,0)),\"\",VLOOKUP(C704,'Capacidad Financiera'!$B$12:$X$3580,2,0))","v":0}]
[null,null,{"$f":"+'Capacidad Financiera'!B708","v":""},{"$f":"IF(ISERROR(VLOOKUP(C705,'Capacidad Financiera'!$B$12:$X$62720,2,0)),\"\",VLOOKUP(C705,'Capacidad Financiera'!$B$12:$X$3580,2,0))","v":0}]
[null,null,{"$f":"+'Capacidad Financiera'!B709","v":""},{"$f":"IF(ISERROR(VLOOKUP(C706,'Capacidad Financiera'!$B$12:$X$62720,2,0)),\"\",VLOOKUP(C706,'Capacidad Financiera'!$B$12:$X$3580,2,0))","v":0}]
[null,null,{"$f":"+'Capacidad Financiera'!B710","v":""},{"$f":"IF(ISERROR(VLOOKUP(C707,'Capacidad Financiera'!$B$12:$X$62720,2,0)),\"\",VLOOKUP(C707,'Capacidad Financiera'!$B$12:$X$3580,2,0))","v":0}]
[null,null,{"$f":"+'Capacidad Financiera'!B711","v":""},{"$f":"IF(ISERROR(VLOOKUP(C708,'Capacidad Financiera'!$B$12:$X$62720,2,0)),\"\",VLOOKUP(C708,'Capacidad Financiera'!$B$12:$X$3580,2,0))","v":0}]
[null,null,{"$f":"+'Capacidad Financiera'!B712","v":""},{"$f":"IF(ISERROR(VLOOKUP(C709,'Capacidad Financiera'!$B$12:$X$62720,2,0)),\"\",VLOOKUP(C709,'Capacidad Financiera'!$B$12:$X$3580,2,0))","v":0}]
[null,null,{"$f":"+'Capacidad Financiera'!B713","v":""},{"$f":"IF(ISERROR(VLOOKUP(C710,'Capacidad Financiera'!$B$12:$X$62720,2,0)),\"\",VLOOKUP(C710,'Capacidad Financiera'!$B$12:$X$3580,2,0))","v":0}]
[null,null,{"$f":"+'Capacidad Financiera'!B714","v":""},{"$f":"IF(ISERROR(VLOOKUP(C711,'Capacidad Financiera'!$B$12:$X$62720,2,0)),\"\",VLOOKUP(C711,'Capacidad Financiera'!$B$12:$X$3580,2,0))","v":0}]
[null,null,{"$f":"+'Capacidad Financiera'!B715","v":""},{"$f":"IF(ISERROR(VLOOKUP(C712,'Capacidad Financiera'!$B$12:$X$62720,2,0)),\"\",VLOOKUP(C712,'Capacidad Financiera'!$B$12:$X$3580,2,0))","v":0}]
[null,null,65,{"$f":"IF(ISERROR(VLOOKUP(C713,'Capacidad Financiera'!$B$12:$X$62720,2,0)),\"\",VLOOKUP(C713,'Capacidad Financiera'!$B$12:$X$3580,2,0))","v":0}]
[null,null,{"$f":"+'Capacidad Financiera'!B717","v":""},{"$f":"IF(ISERROR(VLOOKUP(C714,'Capacidad Financiera'!$B$12:$X$62720,2,0)),\"\",VLOOKUP(C714,'Capacidad Financiera'!$B$12:$X$3580,2,0))","v":0}]
[null,null,{"$f":"+'Capacidad Financiera'!B718","v":""},{"$f":"IF(ISERROR(VLOOKUP(C715,'Capacidad Financiera'!$B$12:$X$62720,2,0)),\"\",VLOOKUP(C715,'Capacidad Financiera'!$B$12:$X$3580,2,0))","v":0}]
[null,null,{"$f":"+'Capacidad Financiera'!B719","v":""},{"$f":"IF(ISERROR(VLOOKUP(C716,'Capacidad Financiera'!$B$12:$X$62720,2,0)),\"\",VLOOKUP(C716,'Capacidad Financiera'!$B$12:$X$3580,2,0))","v":0}]
[null,null,{"$f":"+'Capacidad Financiera'!B720","v":""},{"$f":"IF(ISERROR(VLOOKUP(C717,'Capacidad Financiera'!$B$12:$X$62720,2,0)),\"\",VLOOKUP(C717,'Capacidad Financiera'!$B$12:$X$3580,2,0))","v":0}]
[null,null,{"$f":"+'Capacidad Financiera'!B721","v":""},{"$f":"IF(ISERROR(VLOOKUP(C718,'Capacidad Financiera'!$B$12:$X$62720,2,0)),\"\",VLOOKUP(C718,'Capacidad Financiera'!$B$12:$X$3580,2,0))","v":0}]
[null,null,{"$f":"+'Capacidad Financiera'!B722","v":""},{"$f":"IF(ISERROR(VLOOKUP(C719,'Capacidad Financiera'!$B$12:$X$62720,2,0)),\"\",VLOOKUP(C719,'Capacidad Financiera'!$B$12:$X$3580,2,0))","v":0}]
[null,null,{"$f":"+'Capacidad Financiera'!B723","v":""},{"$f":"IF(ISERROR(VLOOKUP(C720,'Capacidad Financiera'!$B$12:$X$62720,2,0)),\"\",VLOOKUP(C720,'Capacidad Financiera'!$B$12:$X$3580,2,0))","v":0}]
[null,null,{"$f":"+'Capacidad Financiera'!B724","v":""},{"$f":"IF(ISERROR(VLOOKUP(C721,'Capacidad Financiera'!$B$12:$X$62720,2,0)),\"\",VLOOKUP(C721,'Capacidad Financiera'!$B$12:$X$3580,2,0))","v":0}]
[null,null,{"$f":"+'Capacidad Financiera'!B725","v":""},{"$f":"IF(ISERROR(VLOOKUP(C722,'Capacidad Financiera'!$B$12:$X$62720,2,0)),\"\",VLOOKUP(C722,'Capacidad Financiera'!$B$12:$X$3580,2,0))","v":0}]
[null,null,{"$f":"+'Capacidad Financiera'!B726","v":""},{"$f":"IF(ISERROR(VLOOKUP(C723,'Capacidad Financiera'!$B$12:$X$62720,2,0)),\"\",VLOOKUP(C723,'Capacidad Financiera'!$B$12:$X$3580,2,0))","v":0}]
[null,null,66,{"$f":"IF(ISERROR(VLOOKUP(C724,'Capacidad Financiera'!$B$12:$X$62720,2,0)),\"\",VLOOKUP(C724,'Capacidad Financiera'!$B$12:$X$3580,2,0))","v":0}]
[null,null,{"$f":"+'Capacidad Financiera'!B728","v":""},{"$f":"IF(ISERROR(VLOOKUP(C725,'Capacidad Financiera'!$B$12:$X$62720,2,0)),\"\",VLOOKUP(C725,'Capacidad Financiera'!$B$12:$X$3580,2,0))","v":0}]
[null,null,{"$f":"+'Capacidad Financiera'!B729","v":""},{"$f":"IF(ISERROR(VLOOKUP(C726,'Capacidad Financiera'!$B$12:$X$62720,2,0)),\"\",VLOOKUP(C726,'Capacidad Financiera'!$B$12:$X$3580,2,0))","v":0}]
[null,null,{"$f":"+'Capacidad Financiera'!B730","v":""},{"$f":"IF(ISERROR(VLOOKUP(C727,'Capacidad Financiera'!$B$12:$X$62720,2,0)),\"\",VLOOKUP(C727,'Capacidad Financiera'!$B$12:$X$3580,2,0))","v":0}]
[null,null,{"$f":"+'Capacidad Financiera'!B731","v":""},{"$f":"IF(ISERROR(VLOOKUP(C728,'Capacidad Financiera'!$B$12:$X$62720,2,0)),\"\",VLOOKUP(C728,'Capacidad Financiera'!$B$12:$X$3580,2,0))","v":0}]
[null,null,{"$f":"+'Capacidad Financiera'!B732","v":""},{"$f":"IF(ISERROR(VLOOKUP(C729,'Capacidad Financiera'!$B$12:$X$62720,2,0)),\"\",VLOOKUP(C729,'Capacidad Financiera'!$B$12:$X$3580,2,0))","v":0}]
[null,null,{"$f":"+'Capacidad Financiera'!B733","v":""},{"$f":"IF(ISERROR(VLOOKUP(C730,'Capacidad Financiera'!$B$12:$X$62720,2,0)),\"\",VLOOKUP(C730,'Capacidad Financiera'!$B$12:$X$3580,2,0))","v":0}]
[null,null,{"$f":"+'Capacidad Financiera'!B734","v":""},{"$f":"IF(ISERROR(VLOOKUP(C731,'Capacidad Financiera'!$B$12:$X$62720,2,0)),\"\",VLOOKUP(C731,'Capacidad Financiera'!$B$12:$X$3580,2,0))","v":0}]
[null,null,{"$f":"+'Capacidad Financiera'!B735","v":""},{"$f":"IF(ISERROR(VLOOKUP(C732,'Capacidad Financiera'!$B$12:$X$62720,2,0)),\"\",VLOOKUP(C732,'Capacidad Financiera'!$B$12:$X$3580,2,0))","v":0}]
[null,null,{"$f":"+'Capacidad Financiera'!B736","v":""},{"$f":"IF(ISERROR(VLOOKUP(C733,'Capacidad Financiera'!$B$12:$X$62720,2,0)),\"\",VLOOKUP(C733,'Capacidad Financiera'!$B$12:$X$3580,2,0))","v":0}]
[null,null,{"$f":"+'Capacidad Financiera'!B737","v":""},{"$f":"IF(ISERROR(VLOOKUP(C734,'Capacidad Financiera'!$B$12:$X$62720,2,0)),\"\",VLOOKUP(C734,'Capacidad Financiera'!$B$12:$X$3580,2,0))","v":0}]
[null,null,67,{"$f":"IF(ISERROR(VLOOKUP(C735,'Capacidad Financiera'!$B$12:$X$62720,2,0)),\"\",VLOOKUP(C735,'Capacidad Financiera'!$B$12:$X$3580,2,0))","v":0}]
[null,null,{"$f":"+'Capacidad Financiera'!B739","v":""},{"$f":"IF(ISERROR(VLOOKUP(C736,'Capacidad Financiera'!$B$12:$X$62720,2,0)),\"\",VLOOKUP(C736,'Capacidad Financiera'!$B$12:$X$3580,2,0))","v":0}]
[null,null,{"$f":"+'Capacidad Financiera'!B740","v":""},{"$f":"IF(ISERROR(VLOOKUP(C737,'Capacidad Financiera'!$B$12:$X$62720,2,0)),\"\",VLOOKUP(C737,'Capacidad Financiera'!$B$12:$X$3580,2,0))","v":0}]
[null,null,{"$f":"+'Capacidad Financiera'!B741","v":""},{"$f":"IF(ISERROR(VLOOKUP(C738,'Capacidad Financiera'!$B$12:$X$62720,2,0)),\"\",VLOOKUP(C738,'Capacidad Financiera'!$B$12:$X$3580,2,0))","v":0}]
[null,null,{"$f":"+'Capacidad Financiera'!B742","v":""},{"$f":"IF(ISERROR(VLOOKUP(C739,'Capacidad Financiera'!$B$12:$X$62720,2,0)),\"\",VLOOKUP(C739,'Capacidad Financiera'!$B$12:$X$3580,2,0))","v":0}]
[null,null,{"$f":"+'Capacidad Financiera'!B743","v":""},{"$f":"IF(ISERROR(VLOOKUP(C740,'Capacidad Financiera'!$B$12:$X$62720,2,0)),\"\",VLOOKUP(C740,'Capacidad Financiera'!$B$12:$X$3580,2,0))","v":0}]
[null,null,{"$f":"+'Capacidad Financiera'!B744","v":""},{"$f":"IF(ISERROR(VLOOKUP(C741,'Capacidad Financiera'!$B$12:$X$62720,2,0)),\"\",VLOOKUP(C741,'Capacidad Financiera'!$B$12:$X$3580,2,0))","v":0}]
[null,null,{"$f":"+'Capacidad Financiera'!B745","v":""},{"$f":"IF(ISERROR(VLOOKUP(C742,'Capacidad Financiera'!$B$12:$X$62720,2,0)),\"\",VLOOKUP(C742,'Capacidad Financiera'!$B$12:$X$3580,2,0))","v":0}]
[null,null,{"$f":"+'Capacidad Financiera'!B746","v":""},{"$f":"IF(ISERROR(VLOOKUP(C743,'Capacidad Financiera'!$B$12:$X$62720,2,0)),\"\",VLOOKUP(C743,'Capacidad Financiera'!$B$12:$X$3580,2,0))","v":0}]
[null,null,{"$f":"+'Capacidad Financiera'!B747","v":""},{"$f":"IF(ISERROR(VLOOKUP(C744,'Capacidad Financiera'!$B$12:$X$62720,2,0)),\"\",VLOOKUP(C744,'Capacidad Financiera'!$B$12:$X$3580,2,0))","v":0}]
[null,null,{"$f":"+'Capacidad Financiera'!B748","v":""},{"$f":"IF(ISERROR(VLOOKUP(C745,'Capacidad Financiera'!$B$12:$X$62720,2,0)),\"\",VLOOKUP(C745,'Capacidad Financiera'!$B$12:$X$3580,2,0))","v":0}]
[null,null,68,{"$f":"IF(ISERROR(VLOOKUP(C746,'Capacidad Financiera'!$B$12:$X$62720,2,0)),\"\",VLOOKUP(C746,'Capacidad Financiera'!$B$12:$X$3580,2,0))","v":0}]
[null,null,{"$f":"+'Capacidad Financiera'!B750","v":""},{"$f":"IF(ISERROR(VLOOKUP(C747,'Capacidad Financiera'!$B$12:$X$62720,2,0)),\"\",VLOOKUP(C747,'Capacidad Financiera'!$B$12:$X$3580,2,0))","v":0}]
[null,null,{"$f":"+'Capacidad Financiera'!B751","v":""},{"$f":"IF(ISERROR(VLOOKUP(C748,'Capacidad Financiera'!$B$12:$X$62720,2,0)),\"\",VLOOKUP(C748,'Capacidad Financiera'!$B$12:$X$3580,2,0))","v":0}]
[null,null,{"$f":"+'Capacidad Financiera'!B752","v":""},{"$f":"IF(ISERROR(VLOOKUP(C749,'Capacidad Financiera'!$B$12:$X$62720,2,0)),\"\",VLOOKUP(C749,'Capacidad Financiera'!$B$12:$X$3580,2,0))","v":0}]
[null,null,{"$f":"+'Capacidad Financiera'!B753","v":""},{"$f":"IF(ISERROR(VLOOKUP(C750,'Capacidad Financiera'!$B$12:$X$62720,2,0)),\"\",VLOOKUP(C750,'Capacidad Financiera'!$B$12:$X$3580,2,0))","v":0}]
[null,null,{"$f":"+'Capacidad Financiera'!B754","v":""},{"$f":"IF(ISERROR(VLOOKUP(C751,'Capacidad Financiera'!$B$12:$X$62720,2,0)),\"\",VLOOKUP(C751,'Capacidad Financiera'!$B$12:$X$3580,2,0))","v":0}]
[null,null,{"$f":"+'Capacidad Financiera'!B755","v":""},{"$f":"IF(ISERROR(VLOOKUP(C752,'Capacidad Financiera'!$B$12:$X$62720,2,0)),\"\",VLOOKUP(C752,'Capacidad Financiera'!$B$12:$X$3580,2,0))","v":0}]
[null,null,{"$f":"+'Capacidad Financiera'!B756","v":""},{"$f":"IF(ISERROR(VLOOKUP(C753,'Capacidad Financiera'!$B$12:$X$62720,2,0)),\"\",VLOOKUP(C753,'Capacidad Financiera'!$B$12:$X$3580,2,0))","v":0}]
[null,null,{"$f":"+'Capacidad Financiera'!B757","v":""},{"$f":"IF(ISERROR(VLOOKUP(C754,'Capacidad Financiera'!$B$12:$X$62720,2,0)),\"\",VLOOKUP(C754,'Capacidad Financiera'!$B$12:$X$3580,2,0))","v":0}]
[null,null,{"$f":"+'Capacidad Financiera'!B758","v":""},{"$f":"IF(ISERROR(VLOOKUP(C755,'Capacidad Financiera'!$B$12:$X$62720,2,0)),\"\",VLOOKUP(C755,'Capacidad Financiera'!$B$12:$X$3580,2,0))","v":0}]
[null,null,{"$f":"+'Capacidad Financiera'!B759","v":""},{"$f":"IF(ISERROR(VLOOKUP(C756,'Capacidad Financiera'!$B$12:$X$62720,2,0)),\"\",VLOOKUP(C756,'Capacidad Financiera'!$B$12:$X$3580,2,0))","v":0}]
[null,null,69,{"$f":"IF(ISERROR(VLOOKUP(C757,'Capacidad Financiera'!$B$12:$X$62720,2,0)),\"\",VLOOKUP(C757,'Capacidad Financiera'!$B$12:$X$3580,2,0))","v":0}]
[null,null,{"$f":"+'Capacidad Financiera'!B761","v":""},{"$f":"IF(ISERROR(VLOOKUP(C758,'Capacidad Financiera'!$B$12:$X$62720,2,0)),\"\",VLOOKUP(C758,'Capacidad Financiera'!$B$12:$X$3580,2,0))","v":0}]
[null,null,{"$f":"+'Capacidad Financiera'!B762","v":""},{"$f":"IF(ISERROR(VLOOKUP(C759,'Capacidad Financiera'!$B$12:$X$62720,2,0)),\"\",VLOOKUP(C759,'Capacidad Financiera'!$B$12:$X$3580,2,0))","v":0}]
[null,null,{"$f":"+'Capacidad Financiera'!B763","v":""},{"$f":"IF(ISERROR(VLOOKUP(C760,'Capacidad Financiera'!$B$12:$X$62720,2,0)),\"\",VLOOKUP(C760,'Capacidad Financiera'!$B$12:$X$3580,2,0))","v":0}]
[null,null,{"$f":"+'Capacidad Financiera'!B764","v":""},{"$f":"IF(ISERROR(VLOOKUP(C761,'Capacidad Financiera'!$B$12:$X$62720,2,0)),\"\",VLOOKUP(C761,'Capacidad Financiera'!$B$12:$X$3580,2,0))","v":0}]
[null,null,{"$f":"+'Capacidad Financiera'!B765","v":""},{"$f":"IF(ISERROR(VLOOKUP(C762,'Capacidad Financiera'!$B$12:$X$62720,2,0)),\"\",VLOOKUP(C762,'Capacidad Financiera'!$B$12:$X$3580,2,0))","v":0}]
[null,null,{"$f":"+'Capacidad Financiera'!B766","v":""},{"$f":"IF(ISERROR(VLOOKUP(C763,'Capacidad Financiera'!$B$12:$X$62720,2,0)),\"\",VLOOKUP(C763,'Capacidad Financiera'!$B$12:$X$3580,2,0))","v":0}]
[null,null,{"$f":"+'Capacidad Financiera'!B767","v":""},{"$f":"IF(ISERROR(VLOOKUP(C764,'Capacidad Financiera'!$B$12:$X$62720,2,0)),\"\",VLOOKUP(C764,'Capacidad Financiera'!$B$12:$X$3580,2,0))","v":0}]
[null,null,{"$f":"+'Capacidad Financiera'!B768","v":""},{"$f":"IF(ISERROR(VLOOKUP(C765,'Capacidad Financiera'!$B$12:$X$62720,2,0)),\"\",VLOOKUP(C765,'Capacidad Financiera'!$B$12:$X$3580,2,0))","v":0}]
[null,null,{"$f":"+'Capacidad Financiera'!B769","v":""},{"$f":"IF(ISERROR(VLOOKUP(C766,'Capacidad Financiera'!$B$12:$X$62720,2,0)),\"\",VLOOKUP(C766,'Capacidad Financiera'!$B$12:$X$3580,2,0))","v":0}]
[null,null,{"$f":"+'Capacidad Financiera'!B770","v":""},{"$f":"IF(ISERROR(VLOOKUP(C767,'Capacidad Financiera'!$B$12:$X$62720,2,0)),\"\",VLOOKUP(C767,'Capacidad Financiera'!$B$12:$X$3580,2,0))","v":0}]
[null,null,70,{"$f":"IF(ISERROR(VLOOKUP(C768,'Capacidad Financiera'!$B$12:$X$62720,2,0)),\"\",VLOOKUP(C768,'Capacidad Financiera'!$B$12:$X$3580,2,0))","v":0}]
[null,null,{"$f":"+'Capacidad Financiera'!B772","v":""},{"$f":"IF(ISERROR(VLOOKUP(C769,'Capacidad Financiera'!$B$12:$X$62720,2,0)),\"\",VLOOKUP(C769,'Capacidad Financiera'!$B$12:$X$3580,2,0))","v":0}]
[null,null,{"$f":"+'Capacidad Financiera'!B773","v":""},{"$f":"IF(ISERROR(VLOOKUP(C770,'Capacidad Financiera'!$B$12:$X$62720,2,0)),\"\",VLOOKUP(C770,'Capacidad Financiera'!$B$12:$X$3580,2,0))","v":0}]
[null,null,{"$f":"+'Capacidad Financiera'!B774","v":""},{"$f":"IF(ISERROR(VLOOKUP(C771,'Capacidad Financiera'!$B$12:$X$62720,2,0)),\"\",VLOOKUP(C771,'Capacidad Financiera'!$B$12:$X$3580,2,0))","v":0}]
[null,null,{"$f":"+'Capacidad Financiera'!B775","v":""},{"$f":"IF(ISERROR(VLOOKUP(C772,'Capacidad Financiera'!$B$12:$X$62720,2,0)),\"\",VLOOKUP(C772,'Capacidad Financiera'!$B$12:$X$3580,2,0))","v":0}]
[null,null,{"$f":"+'Capacidad Financiera'!B776","v":""},{"$f":"IF(ISERROR(VLOOKUP(C773,'Capacidad Financiera'!$B$12:$X$62720,2,0)),\"\",VLOOKUP(C773,'Capacidad Financiera'!$B$12:$X$3580,2,0))","v":0}]
[null,null,{"$f":"+'Capacidad Financiera'!B777","v":""},{"$f":"IF(ISERROR(VLOOKUP(C774,'Capacidad Financiera'!$B$12:$X$62720,2,0)),\"\",VLOOKUP(C774,'Capacidad Financiera'!$B$12:$X$3580,2,0))","v":0}]
[null,null,{"$f":"+'Capacidad Financiera'!B778","v":""},{"$f":"IF(ISERROR(VLOOKUP(C775,'Capacidad Financiera'!$B$12:$X$62720,2,0)),\"\",VLOOKUP(C775,'Capacidad Financiera'!$B$12:$X$3580,2,0))","v":0}]
[null,null,{"$f":"+'Capacidad Financiera'!B779","v":""},{"$f":"IF(ISERROR(VLOOKUP(C776,'Capacidad Financiera'!$B$12:$X$62720,2,0)),\"\",VLOOKUP(C776,'Capacidad Financiera'!$B$12:$X$3580,2,0))","v":0}]
[null,null,{"$f":"+'Capacidad Financiera'!B780","v":""},{"$f":"IF(ISERROR(VLOOKUP(C777,'Capacidad Financiera'!$B$12:$X$62720,2,0)),\"\",VLOOKUP(C777,'Capacidad Financiera'!$B$12:$X$3580,2,0))","v":0}]
[null,null,{"$f":"+'Capacidad Financiera'!B781","v":""},{"$f":"IF(ISERROR(VLOOKUP(C778,'Capacidad Financiera'!$B$12:$X$62720,2,0)),\"\",VLOOKUP(C778,'Capacidad Financiera'!$B$12:$X$3580,2,0))","v":0}]

{"sheet":"PO","index":9,"n_rows":101,"n_cols":2,"rows_kept":101,"cut":false,"hidden":true,"merged":[]}
["ANEXO 1 - ADENDO 4 - DG-164-2004"]
[]
["NUMERO DE GRUPO","TOTAL GRUPO DE TRAMOS"]
[]
["Tramo 01",16097532669.306931]
["Tramo 02",18724260670]
["Tramo 03",15886461489]
["Tramo 04",18533406621]
["Tramo 05",14971945628]
["Tramo 06",16484340849]
["Tramo 07",16686919713.999998]
["Tramo 08",11566305868]
["Tramo 09",6300474910]
["Tramo 10",1428162158.4158416]
["Tramo 11",1292851961.3861387]
["Tramo 12",14200237260]
["Tramo 13",14388115033]
["Tramo 14",7076050599]
["Tramo 15",20893814942]
["Tramo 16",8810989120]
["Tramo 17",5818381842]
["Tramo 18",9650261634]
["Tramo 19",5385776414]
["Tramo 20",5759505844]
["Tramo 21",11365045650]
["Tramo 22",15652530637]
["Tramo 23",5772808797]
["Tramo 24",7512106130]
["Tramo 25",9347559589]
["Tramo 26",19825977010]
["Tramo 27",9200191515]
["Tramo 29",18743806542]
["Tramo 30",12488203547]
["Tramo 31",12337277639]
["Tramo 32",16198497482.999998]
["Tramo 33",17764576319]
["Tramo 35",22882731815]
["Tramo 36",7383905477]
["Tramo 37",12423743774]
["Tramo 38",14187262851]
["Tramo 39",9099377756]
["Tramo 40",7416098511]
["Tramo 41",16654736652]
["Tramo 42",12006016561]
["Tramo 43",14602426835]
["Tramo 44",16600395825]
["Tramo 45",9490692823]
["Tramo 46",14966356774]
["Tramo 47",16628059484]
["Tramo 48",11545020876]
["Tramo 49",11069859631]
["Tramo 50",16462254401]
["Tramo 51",29122451003]
["Tramo 52",19110837484]
["Tramo 53",14355039068]
["Tramo 54",10742553232]
["Tramo 55",12944688820]
["Tramo 56",11689433662]
["Tramo 57",11397659254]
["Tramo 59",16236395384]
["Tramo 60",6151462908.9075203]
["Tramo 61",24188206629]
["Tramo 62",22229863427]
["Tramo 63",23200278421]
["Tramo 64",33729146012]
["Tramo 65",25741331764]
["Tramo 66",10895316694.06304]
["Tramo 67",15574902572]
["Tramo 68",11085498362]
["Tramo 69",15569378930]
["Tramo 70",19872456988.21376]
["Tramo 71",9279916346]
["Tramo 72",11879598172]
["Tramo 73",14944234555]
["Tramo 74",8486287813]
["Tramo 75",7048832262]
["Tramo 76",5348779190]
["Tramo 77",5466387046]
["Tramo 78",16518448889]
["Tramo 79",8675202615]
["Tramo 81",16760013498]
["Tramo 82",12438755743]
["Tramo 83",14593425402]
["Tramo 84",6689468251]
["Tramo 85",8186369892]
["Tramo 86",28561249598]
["Tramo 87",34980509996]
["Tramo 88",6950846586]
["Tramo 89",11116163961]
["Tramo 90",21274070645]
["Tramo 91",2826770201]
["Tramo 92",4775546619]
["Tramo 93",23755514236]
["Tramo 94",22463613073]
["Tramo 95",20949816946]
["Tramo 96",14104036918]
["Tramo 97",1396272140.5940592]
["Tramo 98",1211346171.2871287]
["Tramo 99",1239693623.7623763]
["Tramo 100",1625508018.1759996]
[null,{"$f":"SUM(B4:B100)","v":1276966895152.1125}]

{"sheet":"Formato Contratos En Ejecucion","index":10,"n_rows":35,"n_cols":12,"rows_kept":35,"cut":false,"hidden":false,"merged":[[895,10,896,10],[901,0,901,9],[892,0,892,9],[895,0,896,0],[895,1,896,1],[895,2,896,2],[895,3,896,3],[895,5,896,5],[895,6,896,6],[895,7,896,7],[895,8,896,8],[895,9,896,9],[878,10,879,10],[885,0,885,9],[888,0,889,0],[888,1,889,1],[888,2,889,2],[888,3,889,3],[888,5,889,5],[888,6,889,6],[888,7,889,7],[888,8,889,8],[888,9,889,9],[888,10,889,10],[872,0,872,9],[878,0,879,0],[878,1,879,1],[878,2,879,2],[878,3,879,3],[878,5,879,5],[878,6,879,6],[878,7,879,7],[878,8,879,8],[878,9,879,9],[843,10,844,10],[850,0,850,9],[858,0,859,0],[858,1,859,1],[858,2,859,2],[858,3,859,3],[858,5,859,5],[858,6,859,6],[858,7,859,7],[858,8,859,8],[858,9,859,9],[858,10,859,10],[840,0,840,9],[843,0,844,0],[843,1,844,1],[843,2,844,2],[843,3,844,3],[843,5,844,5],[843,6,844,6],[843,7,844,7],[843,8,844,8],[843,9,844,9],[820,10,821,10],[829,0,829,9],[835,0,836,0],[835,1,836,1],[835,2,836,2],[835,3,836,3],[835,5,836,5],[835,6,836,6],[835,7,836,7],[835,8,836,8],[835,9,836,9],[835,10,836,10],[817,0,817,9],[820,0,821,0],[820,1,821,1],[820,2,821,2],[820,3,821,3],[820,5,821,5],[820,6,821,6],[820,7,821,7],[820,8,821,8],[820,9,821,9],[797,10,798,10],[806,0,806,9],[812,0,813,0],[812,1,813,1],[812,2,813,2],[812,3,813,3],[812,5,813,5],[812,6,813,6],[812,7,813,7],[812,8,813,8],[812,9,813,9],[812,10,813,10],[792,0,792,9],[797,0,798,0],[797,1,798,1],[797,2,798,2],[797,3,798,3],[797,5,798,5],[797,6,798,6],[797,7,798,7],[797,8,798,8],[797,9,798,9],[762,10,763,10],[778,0,778,9],[783,0,784,0],[783,1,784,1],[783,2,784,2],[783,3,784,3],[783,5,784,5],[783,6,784,6],[783,7,784,7],[783,8,784,8],[783,9,784,9],[783,10,784,10],[757,0,757,9],[762,0,763,0],[762,1,763,1],[762,2,763,2],[762,3,763,3],[762,5,763,5],[762,6,763,6],[762,7,763,7],[762,8,763,8],[762,9,763,9],[729,10,730,10],[741,0,741,9],[744,0,745,0],[744,1,745,1],[744,2,745,2],[744,3,745,3],[744,5,745,5],[744,6,745,6],[744,7,745,7],[744,8,745,8],[744,9,745,9],[744,10,745,10],[722,2,725,6],[726,0,726,9],[729,0,730,0],[729,1,730,1],[729,2,730,2],[729,3,730,3],[729,5,730,5],[729,6,730,6],[729,7,730,7],[729,8,730,8],[729,9,730,9],[689,10,690,10],[700,0,700,9],[709,0,709,9],[720,0,721,0],[720,1,721,1],[720,2,721,2],[720,3,721,3],[720,5,721,5],[720,6,721,6],[720,7,721,7],[720,8,721,8],[720,9,721,9],[720,10,721,10],[679,0,679,9],[689,0,690,0],[689,1,690,1],[689,2,690,2],[689,3,690,3],[689,5,690,5],[689,6,690,6],[689,7,690,7],[689,8,690,8],[689,9,690,9],[627,10,628,10],[657,0,657,9],[662,0,663,0],[662,1,663,1],[662,2,663,2],[662,3,663,3],[662,5,663,5],[662,6,663,6],[662,7,663,7],[662,8,663,8],[662,9,663,9],[662,10,663,10],[622,0,622,9],[627,0,628,0],[627,1,628,1],[627,2,628,2],[627,3,628,3],[627,5,628,5],[627,6,628,6],[627,7,628,7],[627,8,628,8],[627,9,628,9],[569,10,570,10],[600,0,600,9],[605,0,606,0],[605,1,606,1],[605,2,606,2],[605,3,606,3],[605,5,606,5],[605,6,606,6],[605,7,606,7],[605,8,606,8],[605,9,606,9],[605,10,606,10],[565,0,565,9],[569,0,570,0],[569,1,570,1],[569,2,570,2],[569,3,570,3],[569,5,570,5],[569,6,570,6],[569,7,570,7],[569,8,570,8],[569,9,570,9],[549,10,550,10],[555,0,555,9],[559,0,560,0],[559,1,560,1],[559,2,560,2],[559,3,560,3],[559,5,560,5],[559,6,560,6],[559,7,560,7],[559,8,560,8],[559,9,560,9],[559,10,560,10],[543,0,543,9],[549,0,550,0],[549,1,550,1],[549,2,550,2],[549,3,550,3],[549,5,550,5],[549,6,550,6],[549,7,550,7],[549,8,550,8],[549,9,550,9],[529,10,530,10],[534,0,534,9],[539,0,540,0],[539,1,540,1],[539,2,540,2],[539,3,540,3],[539,5,540,5],[539,6,540,6],[539,7,540,7],[539,8,540,8],[539,9,540,9],[539,10,540,10],[529,0,530,0],[529,1,530,1],[529,2,530,2],[529,3,530,3],[529,5,530,5],[529,6,530,6],[529,7,530,7],[529,8,530,8],[529,9,530,9],[289,0,289,9],[276,10,277,10],[280,0,280,9],[283,0,284,0],[283,1,284,1],[283,2,284,2],[283,3,284,3],[283,5,284,5],[283,6,284,6],[283,7,284,7],[283,8,284,8],[283,9,284,9],[283,10,284,10],[273,0,273,9],[276,0,277,0],[276,1,277,1],[276,2,277,2],[276,3,277,3],[276,5,277,5],[276,6,277,6],[276,7,277,7],[276,8,277,8],[276,9,277,9],[257,10,258,10],[260,0,260,9],[269,0,270,0],[269,1,270,1],[269,2,270,2],[269,3,270,3],[269,5,270,5],[269,6,270,6],[269,7,270,7],[269,8,270,8],[269,9,270,9],[269,10,270,10],[257,0,258,0],[257,1,258,1],[257,2,258,2],[257,3,258,3],[257,5,258,5],[257,6,258,6],[257,7,258,7],[257,8,258,8],[257,9,258,9],[34,1,34,3],[27,1,27,11],[28,1,28,11],[31,1,31,3],[31,8,31,10],[32,1,33,3],[29,1,29,11],[26,1,26,11],[6,1,6,2],[7,1,7,2],[8,1,8,2],[10,1,10,11],[12,1,13,1],[12,2,13,2],[12,3,13,3],[12,5,13,5],[12,6,13,6],[12,7,13,7],[12,8,13,8],[12,9,13,9],[12,10,13,10],[12,11,13,11],[24,1,24,10],[12,4,13,4],[46,6,47,6],[46,7,47,7],[46,8,47,8],[46,9,47,9],[46,10,47,10],[46,0,47,0],[46,1,47,1],[46,2,47,2],[46,3,47,3],[46,5,47,5],[54,0,54,9],[60,0,61,0],[60,1,61,1],[60,2,61,2],[60,3,61,3],[60,5,61,5],[60,6,61,6],[60,7,61,7],[60,8,61,8],[60,9,61,9],[60,10,61,10],[65,0,65,9],[68,0,69,0],[68,1,69,1],[68,2,69,2],[68,3,69,3],[68,5,69,5],[68,6,69,6],[68,7,69,7],[68,8,69,8],[68,9,69,9],[68,10,69,10],[75,0,75,9],[80,0,81,0],[80,1,81,1],[80,2,81,2],[80,3,81,3],[80,5,81,5],[80,6,81,6],[80,7,81,7],[80,8,81,8],[80,9,81,9],[103,0,103,9],[110,0,110,9],[80,10,81,10],[86,0,86,9],[96,0,97,0],[96,1,97,1],[96,2,97,2],[96,3,97,3],[96,5,97,5],[96,6,97,6],[96,7,97,7],[96,8,97,8],[96,9,97,9],[96,10,97,10],[118,6,119,6],[118,7,119,7],[118,8,119,8],[118,9,119,9],[118,10,119,10],[118,0,119,0],[118,1,119,1],[118,2,119,2],[118,3,119,3],[118,5,119,5],[122,0,122,9],[125,0,126,0],[125,1,126,1],[125,2,126,2],[125,3,126,3],[125,5,126,5],[125,6,126,6],[125,7,126,7],[125,8,126,8],[125,9,126,9],[125,10,126,10],[129,0,129,9],[135,0,136,0],[135,1,136,1],[135,2,136,2],[135,3,136,3],[135,5,136,5],[135,6,136,6],[135,7,136,7],[135,8,136,8],[135,9,136,9],[135,10,136,10],[138,0,138,9],[141,0,142,0],[141,1,142,1],[141,2,142,2],[141,3,142,3],[141,5,142,5],[141,6,142,6],[141,7,142,7],[141,8,142,8],[141,9,142,9],[141,10,142,10],[144,0,144,9],[149,0,150,0],[149,1,150,1],[149,2,150,2],[149,3,150,3],[149,5,150,5],[149,6,150,6],[149,7,150,7],[149,8,150,8],[149,9,150,9],[149,10,150,10],[162,0,162,9],[168,0,169,0],[168,1,169,1],[168,2,169,2],[168,3,169,3],[168,5,169,5],[168,6,169,6],[168,7,169,7],[168,8,169,8],[168,9,169,9],[168,10,169,10],[173,0,173,9],[176,0,177,0],[176,1,177,1],[176,2,177,2],[176,3,177,3],[176,5,177,5],[176,6,177,6],[176,7,177,7],[176,8,177,8],[176,9,177,9],[176,10,177,10],[180,0,180,9],[186,0,187,0],[186,1,187,1],[186,2,187,2],[186,3,187,3],[186,5,187,5],[186,6,187,6],[186,7,187,7],[186,8,187,8],[186,9,187,9],[186,10,187,10],[194,0,194,9],[197,0,198,0],[197,1,198,1],[197,2,198,2],[197,3,198,3],[197,5,198,5],[197,6,198,6],[197,7,198,7],[197,8,198,8],[197,9,198,9],[197,10,198,10],[208,0,208,9],[217,0,218,0],[217,1,218,1],[217,2,218,2],[217,3,218,3],[217,5,218,5],[217,6,218,6],[217,7,218,7],[217,8,218,8],[217,9,218,9],[217,10,218,10],[222,0,222,9],[231,0,232,0],[231,1,232,1],[231,2,232,2],[231,3,232,3],[231,5,232,5],[231,6,232,6],[231,7,232,7],[231,8,232,8],[231,9,232,9],[231,10,232,10],[237,10,238,10],[240,0,240,9],[234,0,234,9],[237,0,238,0],[237,1,238,1],[237,2,238,2],[237,3,238,3],[237,5,238,5],[237,6,238,6],[237,7,238,7],[237,8,238,8],[237,9,238,9],[295,10,296,10],[303,0,303,9],[307,0,308,0],[307,1,308,1],[307,2,308,2],[307,3,308,3],[307,5,308,5],[307,6,308,6],[307,7,308,7],[307,8,308,8],[307,9,308,9],[307,10,308,10],[295,0,296,0],[295,1,296,1],[295,2,296,2],[295,3,296,3],[295,5,296,5],[295,6,296,6],[295,7,296,7],[295,8,296,8],[295,9,296,9],[337,0,337,9],[343,0,344,0],[343,1,344,1],[343,2,344,2],[343,3,344,3],[343,5,344,5],[343,6,344,6],[343,7,344,7],[343,8,344,8],[343,9,344,9],[343,10,344,10],[349,0,349,9],[352,0,353,0],[352,1,353,1],[352,2,353,2],[352,3,353,3],[352,5,353,5],[352,6,353,6],[352,7,353,7],[352,8,353,8],[352,9,353,9],[352,10,353,10],[356,0,356,9],[362,0,363,0],[362,1,363,1],[362,2,363,2],[362,3,363,3],[362,5,363,5],[362,6,363,6],[362,7,363,7],[362,8,363,8],[362,9,363,9],[362,10,363,10],[372,0,372,9],[375,0,376,0],[375,1,376,1],[375,2,376,2],[375,3,376,3],[375,5,376,5],[375,6,376,6],[375,7,376,7],[375,8,376,8],[375,9,376,9],[375,10,376,10],[381,0,381,9],[386,0,387,0],[386,1,387,1],[386,2,387,2],[386,3,387,3],[386,5,387,5],[386,6,387,6],[386,7,387,7],[386,8,387,8],[386,9,387,9],[386,10,387,10],[394,0,394,9],[409,0,410,0],[409,1,410,1],[409,2,410,2],[409,3,410,3],[409,5,410,5],[409,6,410,6],[409,7,410,7],[409,8,410,8],[409,9,410,9],[409,10,410,10],[417,10,418,10],[424,0,424,9],[429,10,430,10],[414,0,414,9],[417,0,418,0],[417,1,418,1],[417,2,418,2],[417,3,418,3],[417,5,418,5],[417,6,418,6],[417,7,418,7],[417,8,418,8],[417,9,418,9],[429,0,430,0],[429,1,430,1],[429,2,430,2],[429,3,430,3],[429,5,430,5],[429,6,430,6],[429,7,430,7],[429,8,430,8],[429,9,430,9],[443,0,443,9],[452,0,453,0],[452,1,453,1],[452,2,453,2],[452,3,453,3],[452,5,453,5],[452,6,453,6],[452,7,453,7],[452,8,453,8],[452,9,453,9],[452,10,453,10],[462,0,462,9],[467,0,468,0],[467,1,468,1],[467,2,468,2],[467,3,468,3],[467,5,468,5],[467,6,468,6],[467,7,468,7],[467,8,468,8],[467,9,468,9],[467,10,468,10],[485,0,485,9],[490,0,491,0],[490,1,491,1],[490,2,491,2],[490,3,491,3],[490,5,491,5],[490,6,491,6],[490,7,491,7],[490,8,491,8],[490,9,491,9],[490,10,491,10],[496,0,496,9],[502,0,503,0],[502,1,503,1],[502,2,503,2],[502,3,503,3],[502,5,503,5],[502,6,503,6],[502,7,503,7],[502,8,503,8],[502,9,503,9],[502,10,503,10],[517,10,518,10],[521,0,521,9],[508,0,508,9],[517,0,518,0],[517,1,518,1],[517,2,518,2],[517,3,518,3],[517,5,518,5],[517,6,518,6],[517,7,518,7],[517,8,518,8],[517,9,518,9],[906,0,907,0],[906,1,907,1],[906,3,907,3],[906,6,907,6],[906,7,907,7],[906,8,907,8],[906,9,907,9],[906,10,907,10],[913,0,913,9]]}
[]
[]
[]
[null,null,null,null,null,null,null,"ANEXO 3"]
[null,null,null,null,null,null,null,"SALDO CONTRATOS EN EJECUCION (SCE)"]
[]
[null,"Ciudad:"]
[null,"Proc. De Selecciòn No.:"]
[null,"Fecha (DD/MM/AAAA):",null,"xx/xx/2020"]
[]
[null,"Con el fin de acreditar la Capacidad Residual para la Contratación de Obras (CR) (Decreto 791 de Abril 14 de 2014, Artìculo 72 de la Ley 1682 de 2013),  a continuación nos permitimos relacionar los contratos en ejecución que afectan mi capacidad, en los siguientes términos:"]
[]
[null,"Contrato de Orden No.","Plazo del Contrato en Meses               (B)","Valor del  Contrato (incluido IVA y adiciones)          (A)","Si el Contrato està Suspendido colocar Saldo Pendiente por Ejecutar (Nota 4) (G)      ","Fecha de Inicio o Reinicio del Contrato (dd/mm/aa)     (H)","Porcentaje de participación \n(C)","Fecha de Cierre de Presentacion de la Oferta Objeto del Presente Proceso de Contrataciòn (dd/mm/aa)","Dìas Ejecutados del Contrato","Dias por Ejecutar del Contrato a Partir de la Fecha de Presentaciòn de la Oferta Objeto del Proceso de Contrataciòn                (D)","Saldo Diario del Contrato en Ejecuciòn                     A/(Bx30 dìas)= (E)","Saldo del Contrato en Ejecuciòn                     (E)x(D)x(C)=(F)"]
[null,null,null,"(Pesos $)","(Pesos $)",null,"(%)"]
[null,1,null,null,null,null,null,null,{"$f":"+H15-F15","v":0},{"$f":"+MIN(C15*30-I15,360)","v":0},{"$f":"D15/(C15*30)","v":{"$error":"#DIV/0!"}},{"$f":"(+K15*J15*G15)","v":{"$error":"#DIV/0!"}}]
[null,2,null,null,null,null,null,null,{"$f":"+H16-F16","v":0},{"$f":"+MIN(C16*30-I16,360)","v":0},{"$f":"D16/(C16*30)","v":{"$error":"#DIV/0!"}},{"$f":"(+K16*J16*G16)","v":{"$error":"#DIV/0!"}}]
[null,3,null,null,null,null,null,null,{"$f":"+H17-F17","v":0},{"$f":"+MIN(C17*30-I17,360)","v":0},{"$f":"D17/(C17*30)","v":{"$error":"#DIV/0!"}},{"$f":"(+K17*J17*G17)","v":{"$error":"#DIV/0!"}}]
[null,4,null,null,null,null,null,null,0,0,{"$error":"#DIV/0!"},{"$error":"#DIV/0!"}]
[null,5,null,null,null,null,null,null,0,0,{"$error":"#DIV/0!"},{"$error":"#DIV/0!"}]
[null,6,null,null,null,null,null,null,0,0,{"$error":"#DIV/0!"},{"$error":"#DIV/0!"}]
[null,7,null,null,null,null,null,null,0,0,{"$error":"#DIV/0!"},{"$error":"#DIV/0!"}]
[null,8,null,null,null,null,null,null,0,0,{"$error":"#DIV/0!"},{"$error":"#DIV/0!"}]
[null,9,null,null,null,null,null,null,0,0,{"$error":"#DIV/0!"},{"$error":"#DIV/0!"}]
[null,10,null,null,null,null,null,null,0,0,{"$error":"#DIV/0!"},{"$error":"#DIV/0!"}]
[null,"SUMATORIA COLUMNA (F)",null,null,null,null,null,null,null,null,null,{"$f":"+SUM(L15:L23)","v":{"$error":"#DIV/0!"}}]
[null,"(Se debe diligenciar únicamente las columnas sombreadas)"]
[null,"Nota 1: La información aquí presentada, es veraz y se presenta bajo la gravedad de juramento, que se entiende prestada con la suscripción del mismo."]
[null,"Nota 2: El formulario debe ser diligenciado por el proponente o por cada uno de los integrantes del consorcio o unión temporal cuando el proponente sea plural."]
[null,"Nota 3: En la columna (D) si los dìas por ejecutar son mayor a un año, se debe reflejar automaticamente 360 dìas."]
[null,"Nota 4: Si un contrato se encuentra suspendido, el càlculo del Saldo del Contrato en Ejecuciòn (columna F del formato),  debe hacerse asumiendo que lo que falta por ejecutar empezarà a partir de la Fecha de Cierre de la Presentaciòn de la Oferta Objeto del Presente Proceso de Contratación. Para esto el proponente o integrante, debe informar el Saldo que tiene Pendiente por Ejecutar, digitar ese valor en la columna (G) del formato y en la Formula de la columna (E) del formato \"Saldo Diario del Contrato en Ejecuciòn\", se debe modificar la fòrmula cambiando la letra D (Columna valor del contrato) por la E (Columna si el contrato esta suspendido) y en la columna H del formato (Fecha de inicio o reinicio del contrato)  digitar la Fecha de Cierre de Presentaciòn de la Oferta Objeto del Presente Proceso de Contratacion."]
[]
[null,"Nombre Oferente o Integrante:",null,null,null,null,null,null," ",null,null," "]
[null,"Nombre Representante Legal:",null,null,null,null,"Nombre del Contador Publico o Revisor Fiscal:"]
[]
[null,"Firma:",null,null,null,null,"Firma:"]